{"text_format":"1","workbook":"xlsx","n_sheets":11,"sheets":["README","ReleaseNotes","unique_contracts","Calcs","resources","lse_names","misc","btm_pv_forecast","Reliability","CSPReportSheet","ReportSheet"],"not_rendered":{"charts":0,"images":0,"macros":1,"external_links":0,"defined_names":64,"comments":0,"pivot_tables":0},"unopened":[],"bounds":{"document_bytes":16777216,"sheet_cells":100000,"rows_first":2000,"rows_last":500,"rows_between":2000,"halvings":0,"cell_chars":16384,"cell_head_chars":4096},"cells_cut":0,"cells_raw":0,"read":"whole","date_system":"1900"}

{"sheet":"README","index":0,"n_rows":4,"n_cols":4,"rows_kept":4,"cut":false,"hidden":false,"merged":[[3,0,3,1],[3,3,4,6]]}
["ReleaseVersion","rdtv3"]
["ReleaseDate","2022-09-23"]
[]
[null,null,null," In order to run the macro, LSEs must FIRST enable macros. Then, they are instructed to complete the RDT data entry fully, then push the button on the README tab. "]

{"sheet":"ReleaseNotes","index":1,"n_rows":8,"n_cols":4,"rows_kept":8,"cut":false,"hidden":false,"merged":[]}
["ReleaseVersion","ReleaseDate","ID","Note"]
["RDTv3 beta","2022-06-06"]
["RDTv3 Release","2022-06-15"]
["RDTv3 Updated","2022-06-20",null,"Minor updates in columns' names"]
["RDTv3 Updated","2022-07-15",null,"Reliability tabs updates & some minor updates to the resource tab"]
["RDTv3 Updated","2022-07-29",null,"1)\"misc\" tab: updated with all ELCC % values and added MRN/TRN ratios\n2)“Reliability” tab: added formulas to pull MRN/TRN ratios from the “misc” worksheet; updated formatting for cells H23:J50 and L23:P50 (previously greyed out since results weren’t available for those years)\n3)“Calcs” tab: updated formulas in columns S:T so that battery contracts with durations greater than or equal to 9 hours will get “8hr_batteries” ELCC%; updated formulas in columns S:T and added formulas in column Y so that battery contracts with durations less than 4 hours will get (“4hr_batteries” ELCC%) * (contract duration) / 4hr"]
["RDTv3 Updated","2022-08-23",null,"1)\"resources\" tab: updated to include several new resource IDs, remove duplicates, adjust how baseline hybrid/paired resources are characterized, and update some project-specific information\n2) \"btm_pv_forecast\" tab: Added an additional LSE\n3)“ReportSheet” tab: new macro generated error flag, Rows with invalid buying_energy_capacity and csp_resource_category; flags contracts with non-storage CSP resources is marked as CapacityOnly and is marked as CSP.\n4)“ReportSheet” tab: summation now includes contracts that ara both \"Buy\" and \"Owned\""]
["RDTv3 Updated","2022-09-23",null,"1) corrects made to macro\n2) fixes the ELCC type issues for a few generic resources"]

{"sheet":"unique_contracts","index":2,"n_rows":90,"n_cols":77,"rows_kept":90,"cut":false,"hidden":false,"merged":[]}
["lse_unique_contract_id","resource","alternative_resource_name","contract_status","project_interconnection_position","interconnection_substation","marginal_addition","marginal_addition_to","total_nameplate_capacity","contracted_nameplate_capacity","sep_contracted_mw_nqc","contract_gwh_annual","is_hybrid_paired","can_charge_from_grid","total_generator_mw","contracted_generator_mw","total_storage_mw","contracted_storage_mw","solar_technology_sub_type","storage_technology_sub_type","total_storage_depth_mwh","contracted_storage_depth_mwh","viability_cod_reasonableness","viability_technical_feasibility","viability_financing_sitecontrol","resource_mix","cam_d1911016_vamo_ghgfreepcia","buy_sell_own","counterparty","generator_supplier","developer_name","capacity_area","capacity_sub_area","cpuc_approval_ref","county","COD_year","COD_month","COD_day","contract_start_date_year","contract_start_date_month","contract_start_date_day","contract_end_date_year","contract_end_date_month","contract_end_date_day","contract_execution_date_year","contract_execution_date_month","contract_execution_date_day","tx_upgrades","tx_upgrade_date_year","tx_upgrade_date_month","tx_upgrade_date_day","tx_upgrade_description","d1911016_tranche","d2106035_procurement_cat","mtr_tranche1_NQC","mtr_tranche2_NQC","mtr_tranche3_NQC","mtr_tranche4_NQC_LDES","mtr_tranche4_NQC_firm_ZE","mtr_NQC_ZE_gen_paired_dr","previous_COD_year","previous_COD_month","previous_COD_day","remediation_plan","signed_contract","notice_to_proceed","public_contract","buying_energy_capacity","NQC_reporting_source","procurement_origin","csp_resource_category","csp_annual_2024","csp_annual_2026","csp_annual_2030","csp_annual_2035","macro_supertype","notes"]
["MSCG_GHGFree_2022-2024","_SUPPLIERS_CHOICE","Morgan GHG-Free 3 yr 2022-2024","Online",null,null,"NA",null,0,0,0,100,"NotHybrid",null,null,null,null,null,null,null,null,null,null,null,null,"[hydro, 100%]",null,"Buy","non-LSE supplier","Morgan Stanley Capital Group Inc.","NA",null,null,null,"various",1990,1,1,2022,1,1,2024,12,31,2021,9,21,"NA",null,null,null,null,"NA",null,null,null,null,null,null,null,null,null,null,"NA","YES",null,"YES","EnergyOnly",null,"bilateral","Imported Hydro (GWh)",100,0,0,0,"supplierschoice"]
["SHELL_GHGFree_2022-2024","_SUPPLIERS_CHOICE","Shell GHG-Free 3 yr 2022-2024","Online",null,null,"NA",null,0,0,0,250,"NotHybrid",null,null,null,null,null,null,null,null,null,null,null,null,"[hydro, 100%]",null,"Buy","non-LSE supplier","Shell Energy North America (US), L.P.","NA",null,null,null,"various",1990,1,1,2022,1,1,2024,12,31,2021,9,9,"NA",null,null,null,null,"NA",null,null,null,null,null,null,null,null,null,null,"NA","YES",null,"YES","EnergyOnly",null,"bilateral","Imported Hydro (GWh)",150,0,0,0,"supplierschoice"]
["SHELL_GHGFree_2023-2024","_SUPPLIERS_CHOICE","Shell GHG-Free 2 yr 2023-2024","Online",null,null,"NA",null,0,0,0,250,"NotHybrid",null,null,null,null,null,null,null,null,null,null,null,null,"[hydro, 100%]",null,"Buy","non-LSE supplier","Shell Energy North America (US), L.P.","NA",null,null,null,"various",1990,1,1,2023,1,1,2024,12,31,2022,3,21,"NA",null,null,null,null,"NA",null,null,null,null,null,null,null,null,null,null,"NA","YES",null,"YES","EnergyOnly",null,"bilateral","Imported Hydro (GWh)",250,0,0,0,"supplierschoice"]
["Planned - Placeholder GHG-Free 2024","_SUPPLIERS_CHOICE","Placeholder GHG-Free 2023","PlannedExisting",null,null,"NA",null,0,0,0,null,"NotHybrid",null,null,null,null,null,null,null,null,null,null,null,null,"[hydro, 100%]",null,"Buy","non-LSE supplier","unknown - planned future contract","NA",null,null,null,"various",1990,1,1,2024,1,1,2024,12,31,null,null,null,"NA",null,null,null,null,"NA",null,null,null,null,null,null,null,null,null,null,"NA","NO",null,"NO","EnergyOnly",null,"Plannedfuture","Imported Hydro (GWh)",null,0,0,0,"supplierschoice"]
["PCE30001","GEYS18_7_UNIT18","Geysers","Online",null,null,"NA",null,0,0,0,306.60000000000002,"NotHybrid",null,null,null,null,null,null,null,null,null,null,null,null,null,null,"Buy","non-LSE supplier",null,"NA","PacGE",null,null,"LakeCounty",1990,1,1,2022,7,1,2032,12,31,2021,8,26,"NA",null,null,null,null,"NA",null,null,null,null,null,null,null,null,null,null,"NA","YES",null,"YES","EnergyOnly",null,"RFO","RPS Resource Custom Profile (GWh)",307.44,306.60000000000002,306.60000000000002,0,"physical"]
["PPA_RA_GPC_Geysers_8.26.21","GEYS18_7_UNIT18","Geysers RA Deal","Online",null,null,"NA",null,72,35,null,0,"NotHybrid",null,null,null,null,null,null,null,null,null,null,null,null,null,null,"Buy","non-LSE supplier",null,"NA","PacGE",null,null,"LakeCounty",1990,1,1,2022,1,1,2032,6,30,2021,8,26,"NA",null,null,null,null,"NA",null,null,null,null,null,null,null,null,null,null,"NA","YES",null,"YES","CapacityOnly","In the contract","RFO","NA",0,0,0,0,"physical"]
["PCE30002","_CREZ_GENERIC_GREATER_IMPERIAL_GEOTHERMAL","Heber 2","Development",null,null,"NA",null,26,26,null,208.6,"NotHybrid",null,null,null,null,null,null,null,null,null,null,null,null,null,null,"Buy","non-LSE supplier",null,"Ormat","PacGE",null,null,"ImperialCounty",2023,1,1,2023,1,1,2037,12,31,2022,3,24,null,null,null,null,null,"NA","general_&_ZE_gen_paired_dr",12.1,null,null,null,null,12.1,null,null,null,"NA","YES",null,"YES","EnergyCapacity","Calculated","RFB","RPS Resource Custom Profile (GWh)",232.02,232.02,232.02,232.02,"newresolve"]
["PCE30003","_NEW_GENERIC_GEOTHERMAL","CC Power Firm Clean - OME Fish Lake","Development",null,null,"NA",null,13,2.3140000000000001,null,19.523686400667145,"NotHybrid",null,null,null,null,null,null,null,null,null,null,null,null,null,null,"Buy","non-LSE supplier","Open_Mountain_Energy","Open_Mountain_Energy","NEVP",null,null,"Nevada",2024,6,1,2024,6,1,2044,5,31,2022,5,31,null,null,null,null,null,"NA","firm_ZE",null,null,null,null,2.0129354759925753,null,null,null,null,"NA","YES",null,"YES","EnergyCapacity","Calculated","D2106035","RPS Resource Custom Profile (GWh)",11.056938029971674,19.523686400667145,19.523686400667145,19.523686400667145,"newgeneric","Represents PCEA's share of CC Power contract for MTR - Open Mountain Fish Lake"]
["PCE30004-Project1","_NEW_GENERIC_GEOTHERMAL","CC Power Firm Clean - Ormat","Development",null,null,"NA",null,16.666666666666668,2.8500000000000005,null,24.456964644698878,"NotHybrid",null,null,null,null,null,null,null,null,null,null,null,null,null,null,"Buy","non-LSE supplier","Ormat","Ormat","NEVP",null,null,"Nevada",2024,10,1,2024,10,1,2044,9,30,2022,5,31,null,null,null,null,null,"NA","firm_ZE",null,null,null,null,2.5488048403870942,null,null,null,null,"NA","YES",null,"YES","EnergyCapacity","Calculated","D2106035","RPS Resource Custom Profile (GWh)",6.8318331202221803,24.456964644698878,24.456964644698878,24.456964644698878,"newgeneric","Represents PCEA's share of CC Power contract for MTR from Ormat Portfolio; representing candidate project in portfolio (not yet finalized and subject to flux); supplier indicating likely delay; dependent on MIC"]
["PCE30004-Project2","_NEW_GENERIC_GEOTHERMAL","CC Power Firm Clean - Ormat","Development",null,null,"NA",null,20.833333333333336,3.5625000000000009,null,30.494958752291762,"NotHybrid",null,null,null,null,null,null,null,null,null,null,null,null,null,null,"Buy","non-LSE supplier","Ormat","Ormat","NEVP",null,null,"Nevada",2025,1,1,2025,1,1,2044,9,30,2022,5,31,null,null,null,null,null,"NA","firm_ZE",null,null,null,null,2.9073937415529669,null,null,null,null,"NA","YES",null,"YES","EnergyCapacity","Calculated","D2106035","RPS Resource Custom Profile (GWh)",0,30.494958752291762,30.494958752291762,30.494958752291762,"newgeneric","Represents PCEA's share of CC Power contract for MTR from Ormat Portfolio; representing candidate project in portfolio (not yet finalized and subject to flux); supplier indicating likely delay; dependent on MIC"]
["PCE30004-Project3","_NEW_GENERIC_GEOTHERMAL","CC Power Firm Clean - Ormat","Development",null,null,"NA",null,16.666666666666668,2.8500000000000005,null,24.501581100000003,"NotHybrid",null,null,null,null,null,null,null,null,null,null,null,null,null,null,"Buy","non-LSE supplier","Ormat","Ormat","NEVP",null,null,"Nevada",2025,6,1,2025,6,1,2044,9,30,2022,5,31,null,null,null,null,null,"NA","firm_ZE",null,null,null,null,1.97106,null,null,null,null,"NA","YES",null,"YES","EnergyCapacity","Calculated","D2106035","RPS Resource Custom Profile (GWh)",0,24.501581100000003,24.501581100000003,24.501581100000003,"newgeneric","Represents PCEA's share of CC Power contract for MTR from Ormat Portfolio; representing candidate project in portfolio (not yet finalized and subject to flux); supplier indicating likely delay; dependent on MIC"]
["PCE30004-Project4","_NEW_GENERIC_GEOTHERMAL","CC Power Firm Clean - Ormat","Development",null,null,"NA",null,16.666666666666668,2.8500000000000005,null,24.53015715484721,"NotHybrid",null,null,null,null,null,null,null,null,null,null,null,null,null,null,"Buy","non-LSE supplier","Ormat","Ormat","IID",null,null,"Imperial",2025,9,1,2025,9,1,2044,9,30,2022,5,31,null,null,null,null,null,"NA","firm_ZE",null,null,null,null,2.358022312337233,null,null,null,null,"NA","YES",null,"YES","EnergyCapacity","Calculated","D2106035","RPS Resource Custom Profile (GWh)",0,24.53015715484721,24.53015715484721,24.53015715484721,"newgeneric","Represents PCEA's share of CC Power contract for MTR from Ormat Portfolio; representing candidate project in portfolio (not yet finalized and subject to flux); supplier indicating likely delay; dependent on MIC"]
["PCE30004-Project5","_NEW_GENERIC_GEOTHERMAL","CC Power Firm Clean - Ormat","Development",null,null,"NA",null,16.666666666666668,2.8500000000000005,null,24.53015715484721,"NotHybrid",null,null,null,null,null,null,null,null,null,null,null,null,null,null,"Buy","non-LSE supplier","Ormat","Ormat","IID",null,null,"Imperial",2025,10,1,2025,10,1,2044,9,30,2022,5,31,null,null,null,null,null,"NA","firm_ZE",null,null,null,null,2.358022312337233,null,null,null,null,"NA","YES",null,"YES","EnergyCapacity","Calculated","D2106035","RPS Resource Custom Profile (GWh)",0,24.53015715484721,24.53015715484721,24.53015715484721,"newgeneric","Represents PCEA's share of CC Power contract for MTR from Ormat Portfolio; representing candidate project in portfolio (not yet finalized and subject to flux); supplier indicating likely delay; dependent on MIC"]
["PCE30004-Project6","_NEW_GENERIC_GEOTHERMAL","CC Power Firm Clean - Ormat","Development",null,null,"NA",null,16.666666666666668,2.8500000000000005,null,24.478489218064261,"NotHybrid",null,null,null,null,null,null,null,null,null,null,null,null,null,null,"Buy","non-LSE supplier","Ormat","Ormat","IID",null,null,"Imperial",2026,1,1,2026,1,1,2044,9,30,2022,5,31,null,null,null,null,null,"NA","firm_ZE",null,null,null,null,2.4447972110240386,null,null,null,null,"NA","YES",null,"YES","EnergyCapacity","Calculated","D2106035","RPS Resource Custom Profile (GWh)",0,24.478489218064261,24.478489218064261,24.478489218064261,"newgeneric","Represents PCEA's share of CC Power contract for MTR from Ormat Portfolio; representing candidate project in portfolio (not yet finalized and subject to flux); supplier indicating likely delay; dependent on MIC"]
["PCE30004-Project7","_CREZ_GENERIC_SOLANO_GEOTHERMAL","CC Power Firm Clean - Ormat","Development",null,null,"NA",null,20.833333333333336,3.5625000000000009,null,30.757117508651906,"NotHybrid",null,null,null,null,null,null,null,null,null,null,null,null,null,null,"Buy","non-LSE supplier","Ormat","Ormat","PacGE",null,null,"SonomaCounty",2026,12,1,2026,12,1,2044,9,30,2022,5,31,null,null,null,null,null,"NA","firm_ZE",null,null,null,null,3.0186274173183145,null,null,null,null,"NA","YES",null,"YES","EnergyCapacity","Calculated","D2106035","RPS Resource Custom Profile (GWh)",0,30.757117508651906,30.757117508651906,30.757117508651906,"newresolve","Represents PCEA's share of CC Power contract for MTR from Ormat Portfolio; representing candidate project in portfolio (not yet finalized and subject to flux); supplier indicating likely delay; dependent on MIC"]
["PCE40001","HATLOS_6_BWDHY1","Bidwell","Online",null,null,"NA",null,2,2,null,11.4,"NotHybrid",null,null,null,null,null,null,null,null,null,null,null,null,null,null,"Buy","non-LSE supplier",null,"NA","PacGE",null,null,"ShastaCounty",1987,2,22,2017,3,9,2034,3,8,2017,1,26,"NA",null,null,null,null,"NA",null,null,null,null,null,null,null,null,null,null,"NA","YES",null,"YES","EnergyCapacity","Calculated","RFO","RPS Resource Custom Profile (GWh)",11.476000000000001,11.444000000000001,11.444000000000001,0,"physical"]
["PCE40002","COVERD_2_RCKHY1","Roaring","Online",null,null,"NA",null,2,2,null,5.6,"NotHybrid",null,null,null,null,null,null,null,null,null,null,null,null,null,null,"Buy","non-LSE supplier",null,"NA","PacGE",null,null,"ShastaCounty",1986,12,5,2017,3,16,2034,3,15,2017,1,26,"NA",null,null,null,null,"NA",null,null,null,null,null,null,null,null,null,null,"NA","YES",null,"YES","EnergyCapacity","Calculated","RFO","RPS Resource Custom Profile (GWh)",5.6479999999999997,5.6180000000000003,5.6180000000000003,0,"physical"]
["PCE40003","COVERD_2_HCKHY1","Hatchet","Online",null,null,"NA",null,6.89,6.89,null,15.249866666666666,"NotHybrid",null,null,null,null,null,null,null,null,null,null,null,null,null,null,"Buy","non-LSE supplier",null,"NA","PacGE",null,null,"ShastaCounty",1986,12,5,2017,3,9,2037,3,8,2017,1,26,"NA",null,null,null,null,"NA",null,null,null,null,null,null,null,null,null,null,"NA","YES",null,"YES","EnergyCapacity","Calculated","RFO","RPS Resource Custom Profile (GWh)",15.273752,15.161674666666666,15.161674666666666,15.161674666666666,"physical"]
["PCE40004","CLOVER_2_UNIT","Clover","Online",null,null,"NA",null,0.99,0.9,null,3.5,"NotHybrid",null,null,null,null,null,null,null,null,null,null,null,null,null,null,"Buy","non-LSE supplier",null,"NA","PacGE",null,null,"ShastaCounty",1986,2,21,2018,4,1,2033,3,31,2018,1,26,"NA",null,null,null,null,"NA",null,null,null,null,null,null,null,null,null,null,"NA","YES",null,"YES","EnergyCapacity","Calculated","RFO","RPS Resource Custom Profile (GWh)",3.5579999999999998,3.54,3.54,0,"physical"]
["PCE50002","CABALO_2_M2WSR2","Mustang","Online",null,null,"NA",null,100,100,null,287.37,"NotHybrid",null,null,null,null,null,"1Axis",null,null,null,null,null,null,null,null,"Buy","non-LSE supplier",null,"NA","PacGE",null,null,"KingsCounty",2020,11,11,2020,11,11,2035,11,10,2017,8,25,"NA",null,null,null,null,"NA",null,null,null,null,null,null,null,null,null,null,"NA","YES",null,"YES","EnergyCapacity","Calculated","RFO","RPS Resource Custom Profile (GWh)",293.541,290.76100000000002,284.98899999999998,262.34800000000001,"physical"]
["PCE50003","WRGTSR_2_WSFSR1","Wright","Online",null,null,"NA",null,200,200,null,512.94000000000005,"NotHybrid",null,null,null,null,null,"1Axis",null,null,null,null,null,null,null,null,"Buy","non-LSE supplier",null,"NA","PacGE",null,null,"MercedCounty",2020,1,3,2020,1,3,2045,1,2,2017,9,23,"NA",null,null,null,null,"NA",null,null,null,null,null,null,null,null,null,null,"NA","YES",null,"YES","EnergyCapacity","Calculated","RFO","RPS Resource Custom Profile (GWh)",536.85400000000004,530.89300000000003,520.40800000000002,507.52699999999999,"physical"]
["PCE50004-no_grid_charging","_CREZ_GENERIC_TEHACHAPI_SOLAR","Chaparral Solar and Storage","Development",null,null,"NA",null,102,102,null,296.85000000000002,"NewSolarNewStorage","NO",null,null,null,null,"1Axis","Li",null,null,null,null,null,null,null,"Buy","non-LSE supplier",null,"Leeward","PacGE",null,null,"KernCounty",2023,5,1,2023,5,1,2038,12,31,2021,9,27,null,null,null,null,null,3,"general",null,41.548000000000002,null,null,null,null,null,null,null,"YES","YES","YES","YES","EnergyCapacity","Calculated","RFO","RPS Resource Custom Profile (GWh)",281.86,281.86,0,0,"newresolve",208]
["PCE50004-grid_charging","_CREZ_GENERIC_TEHACHAPI_SOLAR","Chaparral Solar and Storage","Development",null,null,"NA",null,102,102,null,296.85000000000002,"NewSolarNewStorage","YES",null,null,null,null,"1Axis","Li",null,null,null,null,null,null,null,"Buy","non-LSE supplier",null,"Leeward","PacGE",null,null,"KernCounty",2024,1,1,2024,1,1,2038,12,31,2021,9,27,null,null,null,null,null,3,"general",null,41.548000000000002,null,null,null,null,null,null,null,"YES","YES","YES","YES","EnergyCapacity","Calculated","RFO","RPS Resource Custom Profile (GWh)",0,0,281.86,281.86,"newresolve",208]
["PCE50004-Bridge_Resource","_CREZ_GENERIC_TEHACHAPI_SOLAR","Willow Spring Solar (bridge resource for Chaparral Storage)","Development",null,null,"NA",null,72,72,null,0,"NotHybrid",null,null,null,null,null,null,null,null,null,null,null,null,null,null,"Buy","non-LSE supplier",null,"Leeward","PacGE",null,null,"KernCounty",2023,5,1,2023,5,1,2023,12,31,2022,9,22,null,null,null,null,null,3,"general",3.9093599999999999,null,null,null,null,null,null,null,null,"YES","YES","YES","YES","CapacityOnly","Calculated","RFO","NA",0,0,0,0,"newresolve"]
["PCE50005-no_grid_charging","_CREZ_GENERIC_RIVERSIDE_PALM_SPRINGS_SOLAR","Arica Solar and Storage","Development",null,null,"NA",null,100,100,null,287,"NewSolarNewStorage","NO",null,null,null,null,"1Axis","Li",null,null,null,null,null,null,null,"Buy","non-LSE supplier",null,"Clearway","SCE",null,null,"RiversideCounty",2024,4,1,2024,4,1,2039,4,1,2021,10,29,null,null,null,null,null,"NA","general_&_ZE_gen_paired_dr",null,36.6,null,null,null,34.9,null,null,null,"NA","YES",null,"YES","EnergyCapacity","Calculated","RFO","RPS Resource Custom Profile (GWh)",0,278.39999999999998,0,0,"newresolve",200]
["PCE50005-grid_charging","_CREZ_GENERIC_RIVERSIDE_PALM_SPRINGS_SOLAR","Arica Solar and Storage","Development",null,null,"NA",null,100,100,null,287,"NewSolarNewStorage","YES",null,null,null,null,"1Axis","Li",null,null,null,null,null,null,null,"Buy","non-LSE supplier",null,"Clearway","SCE",null,null,"RiversideCounty",2024,4,1,2024,4,1,2039,4,1,2021,10,29,null,null,null,null,null,"NA","general_&_ZE_gen_paired_dr",null,36.6,null,null,null,34.9,null,null,null,"NA","YES",null,"YES","EnergyCapacity","Calculated","RFO","RPS Resource Custom Profile (GWh)",0,0,278.39999999999998,278.39999999999998,"newresolve",200]
["PCE50006","GOOSLK_1_SOLAR1","MCE Interrim Resource","Online",null,null,"NA",null,12,3.74,0,7.6340000000000003,"NotHybrid",null,null,null,null,null,"1Axis",null,null,null,null,null,null,null,null,"Buy","Marin Clean Energy",null,"NA","PacGE",null,null,"KernCounty",2015,5,1,2022,1,17,2027,1,16,2021,11,29,"NA",null,null,null,null,"NA",null,null,null,null,null,null,null,null,null,null,"NA","YES",null,"YES","EnergyOnly",null,"bilateral","Solar Existing California (GWh)",7.6340000000000003,7.6340000000000003,0,0,"physical"]
["PCE50007","_CREZ_GENERIC_CENTRAL_VALLEY_NORTH_LOS_BANOS_SOLAR","Dos Palos DAC Resource","Development",null,null,"NA",null,3,3,0,8.2270000000000003,"NotHybrid",null,null,null,null,null,"1Axis",null,null,null,null,null,null,null,null,"Buy","non-LSE supplier",null,"Renewable_Amercia","PacGE",null,null,"MercedCounty",2023,8,1,2023,8,1,2043,7,31,2022,9,2,"NO",null,null,null,null,"NA",null,null,null,null,null,null,null,null,null,null,"NA","YES",null,"YES","EnergyOnly",null,"RFO_DAC-GT","Solar New PG&E (GWh)",8.2270000000000003,8.2270000000000003,8.2270000000000003,8.2270000000000003,"newresolve"]
["PCE70003","BRDSLD_2_SHILO1","Shiloh","Online",null,null,"NA",null,150,150,null,253.99,"NotHybrid",null,null,null,null,null,null,null,null,null,null,null,null,null,null,"Buy","non-LSE supplier",null,"NA","PacGE",null,null,"SolanoCounty",2006,5,1,2019,1,1,2023,12,31,2017,5,26,"NA",null,null,null,null,"NA",null,null,null,null,null,null,null,null,null,null,"NA","YES",null,"YES","EnergyCapacity","Calculated","RFO","RPS Resource Custom Profile (GWh)",0,0,0,0,"physical"]
["PCE70005","BRDSLD_2_SHILO1","Shiloh Extension","Online",null,null,"NA",null,150,150,null,418.47,"NotHybrid",null,null,null,null,null,null,null,null,null,null,null,null,null,null,"Buy","non-LSE supplier",null,"NA","PacGE",null,null,"SolanoCounty",2006,5,1,2024,1,1,2030,12,31,2020,10,23,"NA",null,null,null,null,"NA",null,null,null,null,null,null,null,null,null,null,"NA","YES",null,"YES","EnergyCapacity","Calculated","bilateral","RPS Resource Custom Profile (GWh)",398.1,398.1,398.1,0,"physical"]
["PCE70006","JAWBNE_2_SRWND","Sky River B","Online",null,null,"NA",null,60,30.2,null,114.68,"NotHybrid",null,null,null,null,null,null,null,null,null,null,null,null,null,null,"Buy","non-LSE supplier",null,"NA","PacGE",null,null,"KernCounty",2021,9,17,2021,9,17,2041,9,16,2020,11,30,"NA",null,null,null,null,"NA",null,null,null,null,null,null,null,null,null,null,"NA","YES",null,"YES","EnergyCapacity","Calculated","bilateral","RPS Resource Custom Profile (GWh)",116,116,116,116,"physical"]
["PCE70007","VOYAGR_2_VOYWD2","Voyager","Online",null,null,"NA",null,126.25,63.125,null,210.63,"NotHybrid",null,null,null,null,null,null,null,null,null,null,null,null,null,null,"Buy","non-LSE supplier",null,"NA","SCE",null,null,"KernCounty",2018,12,19,2021,1,1,2028,12,31,2020,12,18,"NA",null,null,null,null,"NA",null,null,null,null,null,null,null,null,null,null,"NA","YES",null,"YES","EnergyCapacity","Calculated","RFO","RPS Resource Custom Profile (GWh)",212.482,212.482,0,0,"physical"]
["PCE70008","_CREZ_GENERIC_CENTRAL_VALLEY_NORTH_LOS_BANOS_WIND","Gonzaga Wind","Development",null,null,"NA",null,129,76.349999999999994,null,180.161,"NotHybrid",null,null,null,null,null,null,null,null,null,null,null,null,null,null,"Buy","non-LSE supplier",null,"Scout","PacGE",null,null,"MercedCounty",2024,10,31,2025,10,31,2040,10,30,2021,11,19,null,null,null,null,null,"NA","general",null,null,17.2,null,null,null,null,null,null,"NA","YES",null,"YES","EnergyCapacity","Calculated","RFO","RPS Resource Custom Profile (GWh)",0,194.07,194.07,194.07,"newresolve"]
["PCE70009","WNDMAS_2_UNIT 1","Buena Extension","Online",null,null,"NA",null,38,38,null,96,"NotHybrid",null,null,null,null,null,null,null,null,null,null,null,null,null,null,"Buy","non-LSE supplier",null,"NA","PacGE",null,null,"ContraCostaCounty",2006,1,1,2023,1,1,2027,12,31,2022,8,26,"NA",null,null,null,null,"NA",null,null,null,null,null,null,null,null,null,null,"NA","YES",null,"YES","EnergyCapacity","Calculated","bilateral","RPS Resource Custom Profile (GWh)",91.4,91.4,0,0,"physical"]
["PCE80002","_SUPPLIERS_CHOICE","Direct long term","Online",null,null,"NA",null,0,0,null,0.1,"NotHybrid",null,null,null,null,null,null,null,null,null,null,null,null,null,null,"Buy","non-LSE supplier","NRG Energy, Inc","NA",null,null,null,"various",1990,1,1,2017,1,1,2026,12,31,2019,12,31,"NA",null,null,null,null,"NA",null,null,null,null,null,null,null,null,null,null,"NA","YES",null,"YES","EnergyOnly",null,"RPS","RPS Resource Custom Profile (GWh)",0.1,0.1,0,0,"supplierschoice"]
["RA_Buy_Calpine_Sutter_2021-2023_3.20.20","SUTTER_2_CISO","Sutter","Online",null,null,"NA",null,150,41.75,null,0,"NotHybrid",null,null,null,null,null,null,null,null,null,null,null,null,null,null,"Buy","non-LSE supplier",null,"NA","PacGE",null,null,"YubaCounty",2001,7,2,2021,1,1,2023,12,31,2020,3,20,"NA",null,null,null,null,"1&2",null,null,null,null,null,null,null,null,null,null,"NO","YES","YES","YES","CapacityOnly","In the contract","D1911016","NA",0,0,0,0,"specifiedimport"]
["Tumbleweed_2026-2041","_NEW_GENERIC_BATTERY_STORAGE","CC Power Tumbleweed","Online",null,null,"NA",null,63,13.6,null,0,"NotHybrid",null,null,null,null,null,null,"Li",null,null,null,null,null,null,null,"Buy","non-LSE supplier",null,"LS Power","SCE",null,null,"KernCounty",2026,6,1,2026,6,1,2041,5,31,2022,4,19,null,null,null,null,null,"NA","long_duration_storage",null,null,null,10.6,null,null,null,null,null,"NA","YES",null,"YES","EnergyCapacity","Calculated","D2106035","Storage Resource Custom Profile (MW)",0,13.6,13.6,13.6,"newgeneric",13.6]
["Planned_Existing_Small_Hydro",null,null,"PlannedExisting",null,null,"NA",null,null,null,null,1.3501333333333356,"NotHybrid",null,null,null,null,null,null,null,null,null,null,null,null,null,null,"Buy","non-LSE supplier",null,"NA","PacGE",null,null,"ShastaCounty",2024,1,1,2024,1,1,2045,12,31,null,null,null,"NA",null,null,null,null,"NA",null,null,null,null,null,null,null,null,null,null,"NA","NO",null,"NO","EnergyCapacity","Calculated","RFO","RPS Resource Custom Profile (GWh)",1.3522480000000012,1.3423253333333349,1.3423253333333349,1.3423253333333349,"physical"]
["Planned_Existing_Wind_1",null,null,"PlannedExisting",null,null,"NA",null,null,null,null,65.78,"NotHybrid",null,null,null,null,null,null,null,null,null,null,null,null,null,null,"Buy","non-LSE supplier",null,"NA","SCE",null,null,"KernCounty",1997,1,1,2024,6,1,2034,5,31,null,null,null,"NA",null,null,null,null,"NA",null,null,null,null,null,null,null,null,null,null,"NA","NO",null,"NO","EnergyCapacity","Calculated","RFO","RPS Resource Custom Profile (GWh)",39.398333333333341,67.540000000000006,67.540000000000006,67.540000000000006,"physical",65.78]
["Planned_Existing_Wind_2",null,null,"PlannedExisting",null,null,"NA",null,null,null,null,14.37,"NotHybrid",null,null,null,null,null,null,null,null,null,null,null,null,null,null,"Buy","non-LSE supplier",null,"NA","SCE",null,null,"KernCounty",1984,1,1,2024,1,1,2026,12,31,null,null,null,"NA",null,null,null,null,"NA",null,null,null,null,null,null,null,null,null,null,"NA","NO",null,"NO","EnergyCapacity","Calculated","RFO","RPS Resource Custom Profile (GWh)",14.37,14.37,14.37,14.37,"physical",14.37]
["Planned_Existing_Small_Hydro",null,null,"PlannedExisting",null,null,"NA",null,null,null,null,5.4,"NotHybrid",null,null,null,null,null,null,null,null,null,null,null,null,null,null,"Buy","non-LSE supplier",null,"NA","PacGE",null,null,"ShastaCounty",1990,3,1,2024,1,1,2038,12,31,null,null,null,"NA",null,null,null,null,"NA",null,null,null,null,null,null,null,null,null,null,"NA","NO",null,"NO","EnergyCapacity","Calculated","RFO","RPS Resource Custom Profile (GWh)",5.4,5.4,5.4,5.4,"physical",5.4]
["Planned_New_Storage","_NEW_GENERIC_BATTERY_STORAGE",null,"PlannedNew",null,null,"NA",null,null,null,null,0,"NotHybrid",null,null,null,null,null,null,"Li",null,null,null,null,null,null,null,"Buy","non-LSE supplier",null,null,"SDGE",null,null,"SanDiegoCounty",2024,6,1,2024,6,1,2039,5,31,null,null,null,null,null,null,null,null,"NA","general",null,90.7,null,null,null,null,null,null,null,"NA","NO",null,"NO","EnergyCapacity","Calculated","Plannedfuture","Storage Resource Custom Profile (MW)",100,100,100,100,"newgeneric"]
["Planned_NM_Wind","_CREZ_GENERIC_NEW_MEXICO_WIND",null,"PlannedNew",null,null,"NA",null,null,null,null,682.59827486873405,"NotHybrid",null,null,null,null,null,null,null,null,null,null,null,null,null,null,"Buy","non-LSE supplier",null,null,"PNM",null,null,"NewMexico",2025,12,31,2025,12,31,2040,12,30,null,null,null,null,null,null,null,null,"NA",null,null,null,null,null,null,null,null,null,null,"NA","NO",null,"NO","EnergyCapacity","Calculated","RFO","RPS Resource Custom Profile (GWh)",0,682.59827486873405,682.59827486873405,682.59827486873405,"newresolve"]
["Planned_NM_Wind_EnergyOnly","_CREZ_GENERIC_NEW_MEXICO_WIND",null,"PlannedNew",null,null,"NA",null,null,null,null,416.38494766992812,"NotHybrid",null,null,null,null,null,null,null,null,null,null,null,null,null,null,"Buy","non-LSE supplier",null,null,"PNM",null,null,"NewMexico",2025,12,31,2025,12,31,2040,12,30,null,null,null,null,null,null,null,null,"NA",null,null,null,null,null,null,null,null,null,null,"NA","NO",null,"NO","EnergyOnly","Calculated","Plannedfuture","RPS Resource Custom Profile (GWh)",0,416.38494766992812,416.38494766992812,416.38494766992812,"newresolve"]
["Planned_8hr_Storage","_NEW_GENERIC_BATTERY_STORAGE",null,"PlannedNew",null,null,"NA",null,null,null,null,0,"NotHybrid",null,null,null,null,null,null,"other",null,null,null,null,null,null,null,"Buy","non-LSE supplier",null,null,"SCE",null,null,"KernCounty",2026,1,1,2026,1,1,2045,12,31,null,null,null,null,null,null,null,null,"NA",null,null,null,null,null,null,null,null,null,null,"NA","NO",null,"NO","EnergyCapacity","Calculated","Plannedfuture","Storage Resource Custom Profile (MW)",0,10.71,10.71,10.71,"newgeneric"]
["PVHybrid_Desert_50","_CREZ_GENERIC_SOUTHERN_CALIFORNIA_DESERT_EX_SOLAR","PVHybrid_Desert_50","PlannedNew",null,null,"NA",null,null,null,null,576.27,"NewSolarNewStorage","Yes",null,null,null,null,"1Axis","Li",null,null,1,3,1,null,null,"Buy","non-LSE supplier",null,"Generic","SCE",null,null,"KernCounty",2026,1,1,2026,1,1,2041,1,1,null,null,null,"NA",null,null,null,"Generic, Type of upgrade unknown","NA",null,null,null,null,null,null,null,null,null,null,"NA","NO",null,"NO","EnergyCapacity","Calculated","Plannedfuture","RPS Resource Custom Profile (GWh)",0,576.27,576.27,576.27,"newresolve"]
["Planned_SolarPlusStorage_2030","_CREZ_GENERIC_WESTLANDS_SOLAR",null,"PlannedNew",null,null,"NA",null,null,null,null,337.85599999999999,"NewSolarNewStorage","YES",null,null,null,null,"1Axis","Li",null,null,1,3,2,null,null,"Buy","non-LSE supplier",null,null,"PacGE",null,null,"FresnoCounty",2026,11,1,2026,11,1,2041,10,31,null,null,null,"NA",null,null,null,"Pre-Phase I, Type of upgrade unknown","NA",null,null,null,null,null,null,null,null,null,null,"NA","NO",null,"NO","EnergyCapacity","Calculated","RFO","RPS Resource Custom Profile (GWh)",0,0,332.5,332.5,"newresolve",337.85599999999999]
["Planned_PNW_Wind","_CREZ_GENERIC_PACIFIC_NORTHWEST_WIND","PNW Wind","PlannedNew",null,null,"NA",null,null,null,null,13,"NotHybrid",null,null,null,null,null,null,null,null,null,1,3,1,null,null,"Buy","non-LSE supplier",null,"Generic","PacGE",null,null,"Washington",2030,1,1,2030,1,1,2045,1,1,null,null,null,"NA",null,null,null,"Generic and Pre-Phase I, Type of upgrade unknown","NA",null,null,null,null,null,null,null,null,null,null,"NA","NO",null,"NO","EnergyCapacity","Calculated","plannedfuture","RPS Resource Custom Profile (GWh)",0,0,12.77,12.77,"newresolve"]
["Planned_4hr_Storage","_NEW_GENERIC_BATTERY_STORAGE",null,"PlannedNew",null,null,"NA",null,null,null,null,0,"NotHybrid",null,null,null,null,null,null,"Li",null,null,1,3,1,null,null,"Buy","non-LSE supplier",null,null,"SCE",null,null,"KernCounty",2030,1,1,2030,1,1,2045,1,1,null,null,null,"NA",null,null,null,"Pre-Phase I, Type of upgrade unknown","NA",null,null,null,null,null,null,null,null,null,null,"NA","NO",null,"NO","EnergyCapacity","Calculated","plannedfuture","Storage Resource Custom Profile (MW)",0,0,50,50,"newgeneric"]
["Planned_SolarThermalPlusStorage_CentralValley","_CREZ_GENERIC_WESTLANDS_SOLAR",null,"PlannedNew",null,null,"NA",null,null,null,null,132.11000000000001,"NewSolarNewStorage","Yes",null,null,null,null,"SolarThermal","Other",null,null,1,2,1,null,null,"Buy","non-LSE supplier",null,null,"PacGE",null,null,"KernCounty",2030,1,1,2030,1,1,2045,1,1,null,null,null,"NA",null,null,null,"Pre-Phase I, Type of upgrade unknown","NA",null,null,null,null,null,null,null,null,null,null,"NA","NO",null,"NO","EnergyCapacity","Calculated","plannedfuture","RPS Resource Custom Profile (GWh)",0,0,132.12,132.12,"newresolve"]
["Planned_SolarThermalPlusStorage_South","_CREZ_GENERIC_GREATER_KRAMER_SOLAR",null,"PlannedNew",null,null,"NA",null,null,null,null,139.30000000000001,"NewSolarNewStorage","Yes",null,null,null,null,"SolarThermal","Other",null,null,1,2,1,null,null,"Buy","non-LSE supplier",null,null,"SCE",null,null,"KernCounty",2030,1,1,2030,1,1,2045,1,1,null,null,null,"NA",null,null,null,"Pre-Phase I, Type of upgrade unknown","NA",null,null,null,null,null,null,null,null,null,null,"NA","NO",null,"NO","EnergyCapacity","Calculated","plannedfuture","RPS Resource Custom Profile (GWh)",0,0,139.30000000000001,139.30000000000001,"newresolve"]
["Planned_SolarPlusStorage_2035","_CREZ_GENERIC_TEHACHAPI_SOLAR",null,"PlannedNew",null,null,"NA",null,null,null,null,293.24,"NewWindNewStorage","Yes",null,null,null,null,"1Axis","Li",null,null,1,3,1,null,null,"Buy","non-LSE supplier",null,null,"SCE",null,null,"KernCounty",2035,1,1,2035,1,1,2050,1,1,null,null,null,"NA",null,null,null,"Pre-Phase I, Type of upgrade unknown","NA",null,null,null,null,null,null,null,null,null,null,"NA","NO",null,"NO","EnergyCapacity","Calculated","plannedfuture","RPS Resource Custom Profile (GWh)",0,0,0,293.24,"newresolve"]
["Cape_Mendocino_Offshore","_CREZ_GENERIC_CAPE_MENDOCINO_OFFSHORE_WIND","Cape_Mendocino_Offshore","PlannedNew",null,null,"NA",null,null,null,null,1418.5993618287741,"NotHybrid",null,null,null,null,null,null,null,null,null,1,2,1,null,null,"Buy","non-LSE supplier",null,"Generic","PacGE",null,null,"HumboldtCounty",2035,1,1,2035,1,1,2050,1,1,null,null,null,"NA",null,null,null,"Generic and Pre-Phase I, Type of upgrade unknown","NA",null,null,null,null,null,null,null,null,null,null,"NA","NO",null,"NO","EnergyCapacity","Calculated","plannedfuture","RPS Resource Custom Profile (GWh)",0,0,0,1418.5993618287741,"newresolve"]
["Generic 2023 Swap - Buy","_NEW_GENERIC_BATTERY_STORAGE","Planned 2023 MTR Swap - Buy portion","PlannedNew",null,null,"NA",null,0,0,0,0,"NotHybrid","Yes",null,null,null,null,null,"Li",0,0,1,3,1,null,null,"Buy","non-LSE supplier",null,"Generic","SCE",null,null,null,2023,8,1,2023,8,1,2024,12,31,null,null,null,"NA",null,null,null,"Not yet known","NA",null,22,null,null,null,null,null,null,null,null,"NA","NO",null,"NO","CapacityOnly","In the contract","plannedfuture_MTR","NA",0,0,0,0,"newgeneric"]
["Generic 2023 Swap - Sell","_NEW_GENERIC_BATTERY_STORAGE","Planned 2023 MTR Swap - Sell portion","PlannedNew",null,null,"NA",null,0,0,0,0,"NotHybrid","Yes",null,null,null,null,null,"Li",0,0,1,3,1,null,null,"Sell","non-LSE supplier",null,"Generic","SCE",null,null,null,2024,6,1,2024,6,1,2024,12,31,null,null,null,"NA",null,null,null,"Not yet known","NA",null,null,25,null,null,null,null,null,null,null,"NA","NO",null,"NO","CapacityOnly","In the contract","plannedfuture_MTR","NA",0,0,0,0,"newgeneric"]
["Generic LDS Amendment","_NEW_GENERIC_BATTERY_STORAGE","Planned Long Duration Storage Amendment to Existing Contract","PlannedNew",null,null,"NA",null,0,0,0,0,"NotHybrid","Yes",null,null,null,null,null,"Li",33.6,33.6,1,3,1,null,null,"Buy","non-LSE supplier",null,"Generic","SCE",null,null,null,2026,6,1,2026,6,1,2041,5,31,null,null,null,"NA",null,null,null,"Not yet known","NA",null,null,null,null,8.4,null,null,null,null,null,"NA","NO",null,"NO","EnergyCapacity","In the contract","plannedfuture_MTR","NA",0,0,0,0,"newgeneric"]
["PGE_Online_ccgt_1","_EXISTING_GENERIC_COMBINED_CYCLE","PCEA_CAM_RMR_and_DR_Resource_Allocation","Online",null,null,null,null,null,null,null,0,"NotHybrid",null,null,null,null,null,null,null,null,null,null,null,null,null,"CAM","Buy","Pacific Gas & Electric",null,null,null,null,null,null,2018,1,1,2024,1,1,2026,12,31,2017,1,1,null,null,null,null,null,null,null,null,null,null,null,null,null,null,null,null,null,null,null,null,"CapacityOnly",null,null,"NA",0,0,0,0,"existinggeneric"]
["PGE_Online_ccgt_2","_EXISTING_GENERIC_COMBINED_CYCLE","PCEA_CAM_Resource_Allocation","Online",null,null,null,null,null,null,null,0,"NotHybrid",null,null,null,null,null,null,null,null,null,null,null,null,null,"CAM","Buy","Pacific Gas & Electric",null,null,null,null,null,null,2018,1,1,2024,1,1,2025,12,31,2017,1,1,null,null,null,null,null,null,null,null,null,null,null,null,null,null,null,null,null,null,null,null,"CapacityOnly",null,null,"NA",0,0,0,0,"existinggeneric"]
["PGE_Online_ccgt_3","_EXISTING_GENERIC_COMBINED_CYCLE","PCEA_CAM_Resource_Allocation","Online",null,null,null,null,null,null,null,0,"NotHybrid",null,null,null,null,null,null,null,null,null,null,null,null,null,"CAM","Buy","Pacific Gas & Electric",null,null,null,null,null,null,2018,1,1,2024,1,1,2024,12,31,2017,1,1,null,null,null,null,null,null,null,null,null,null,null,null,null,null,null,null,null,null,null,null,"CapacityOnly",null,null,"NA",0,0,0,0,"existinggeneric"]
["PGE_Online_chp","_EXISTING_GENERIC_COGEN","PCEA_CAM_Resource_Allocation","Online",null,null,null,null,null,null,null,0,"NotHybrid",null,null,null,null,null,null,null,null,null,null,null,null,null,"CAM","Buy","Pacific Gas & Electric",null,null,null,null,null,null,2018,1,1,2024,1,1,2024,12,31,2017,1,1,null,null,null,null,null,null,null,null,null,null,null,null,null,null,null,null,null,null,null,null,"CapacityOnly",null,null,"NA",0,0,0,0,"existinggeneric"]
["PGE_Online_chp_1","_EXISTING_GENERIC_COGEN","PCEA_CAM_Resource_Allocation","Online",null,null,null,null,null,null,null,0,"NotHybrid",null,null,null,null,null,null,null,null,null,null,null,null,null,"CAM","Buy","Pacific Gas & Electric",null,null,null,null,null,null,2018,1,1,2024,1,1,2025,12,31,2017,1,1,null,null,null,null,null,null,null,null,null,null,null,null,null,null,null,null,null,null,null,null,"CapacityOnly",null,null,"NA",0,0,0,0,"existinggeneric"]
["PGE_Online_chp_2","_EXISTING_GENERIC_COGEN","PCEA_CAM_Resource_Allocation","Online",null,null,null,null,null,null,null,0,"NotHybrid",null,null,null,null,null,null,null,null,null,null,null,null,null,"CAM","Buy","Pacific Gas & Electric",null,null,null,null,null,null,2018,1,1,2024,1,1,2026,12,31,2017,1,1,null,null,null,null,null,null,null,null,null,null,null,null,null,null,null,null,null,null,null,null,"CapacityOnly",null,null,"NA",0,0,0,0,"existinggeneric"]
["PGE_Online_battery","_EXISTING_GENERIC_BATTERY_STORAGE","PCEA_CAM_Resource_Allocation","Online",null,null,null,null,null,null,null,0,"NotHybrid",null,null,null,null,null,null,"Li",null,null,null,null,null,null,"CAM","Buy","Pacific Gas & Electric",null,null,null,null,null,null,2018,1,1,2024,1,1,2035,12,31,2017,1,1,null,null,null,null,null,null,null,null,null,null,null,null,null,null,null,null,null,null,null,null,"CapacityOnly",null,null,"Battery Storage (MWh Energy Capacity)",0,0,0,0,"existinggeneric"]
["PGE_Development_battery_1","_NEW_GENERIC_BATTERY_STORAGE","PCEA_CAM_Resource_Allocation","Development",null,null,null,null,null,null,null,0,"NotHybrid",null,null,null,null,null,null,"Li",null,null,null,null,null,null,"CAM","Buy","Pacific Gas & Electric",null,null,null,null,null,null,2024,1,1,2025,1,1,2035,12,31,2022,1,1,null,null,null,null,null,null,null,null,null,null,null,null,null,null,null,null,null,null,null,null,"CapacityOnly",null,null,"Battery Storage (MWh Energy Capacity)",0,0,0,0,"newgeneric"]
["PGE_Development_battery_2","_NEW_GENERIC_BATTERY_STORAGE","PCEA_CAM_Resource_Allocation","Development",null,null,null,null,null,null,null,0,"NotHybrid",null,null,null,null,null,null,"Li",null,null,null,null,null,null,"CAM","Buy","Pacific Gas & Electric",null,null,null,null,null,null,2024,1,1,2024,1,1,2035,12,31,2022,1,1,null,null,null,null,null,null,null,null,null,null,null,null,null,null,null,null,null,null,null,null,"CapacityOnly",null,null,"Battery Storage (MWh Energy Capacity)",0,0,0,0,"newgeneric"]
["Generic RA contract 2024","_EXISTING_GENERIC_COMBINED_CYCLE","Generic RA contract 2024","PlannedExisting",null,null,null,null,null,null,null,0,"NotHybrid","NA",null,null,null,null,null,null,null,null,null,null,null,null,null,"Buy","non-LSE supplier",null,null,null,null,null,null,2024,1,1,2024,1,1,2024,12,31,null,null,null,null,null,null,null,null,null,null,null,null,null,null,null,null,"NA","NA","NA","NA","NO",null,"NO","CapacityOnly","Calculated","Plannedfuture","NA",0,0,0,0,"existinggeneric"]
["Generic RA contract 2025","_EXISTING_GENERIC_COMBINED_CYCLE","Generic RA contract 2025","PlannedExisting",null,null,null,null,null,null,null,0,"NotHybrid","NA",null,null,null,null,null,null,null,null,null,null,null,null,null,"Buy","non-LSE supplier",null,null,null,null,null,null,2025,1,1,2025,1,1,2025,12,31,null,null,null,null,null,null,null,null,null,null,null,null,null,null,null,null,"NA","NA","NA","NA","NO",null,"NO","CapacityOnly","Calculated","Plannedfuture","NA",0,0,0,0,"existinggeneric"]
["RA sale 2026","_NEW_GENERIC_BATTERY_STORAGE","RA sale 2026","PlannedNew",null,null,null,null,null,null,null,0,"NotHybrid","NA",null,null,null,null,null,"Li",{"$f":"I69*4","v":0},null,1,3,1,null,null,"Sell","non-LSE supplier",null,null,null,null,null,null,2026,1,1,2026,1,1,2026,12,31,null,null,null,"NA",null,null,null,"Not yet known",null,null,null,null,null,null,null,null,"NA","NA","NA","NA","NO",null,"NO","CapacityOnly","Calculated","Plannedfuture","NA",0,0,0,0,"newgeneric"]
["RA sale 2027","_NEW_GENERIC_BATTERY_STORAGE","RA sale 2027","PlannedNew",null,null,null,null,null,null,null,0,"NotHybrid","NA",null,null,null,null,null,"Li",{"$f":"I70*4","v":0},null,1,3,1,null,null,"Sell","non-LSE supplier",null,null,null,null,null,null,2026,1,1,2027,1,1,2027,12,31,null,null,null,"NA",null,null,null,"Not yet known",null,null,null,null,null,null,null,null,"NA","NA","NA","NA","NO",null,"NO","CapacityOnly","Calculated","Plannedfuture","NA",0,0,0,0,"newgeneric"]
["RA sale 2028","_NEW_GENERIC_BATTERY_STORAGE","RA sale 2028","PlannedNew",null,null,null,null,null,null,null,0,"NotHybrid","NA",null,null,null,null,null,"Li",0,null,1,3,1,null,null,"Sell","non-LSE supplier",null,null,null,null,null,null,2026,1,1,2028,1,1,2028,12,31,null,null,null,"NA",null,null,null,"Not yet known",null,null,null,null,null,null,null,null,"NA","NA","NA","NA","NO",null,"NO","CapacityOnly","Calculated","Plannedfuture","NA",0,0,0,0,"newgeneric"]
["RA sale 2029","_NEW_GENERIC_BATTERY_STORAGE","RA sale 2029","PlannedNew",null,null,null,null,null,null,null,0,"NotHybrid","NA",null,null,null,null,null,"Li",0,null,1,3,1,null,null,"Sell","non-LSE supplier",null,null,null,null,null,null,2026,1,1,2029,1,1,2029,12,31,null,null,null,"NA",null,null,null,"Not yet known",null,null,null,null,null,null,null,null,"NA","NA","NA","NA","NO",null,"NO","CapacityOnly","Calculated","plannedfuture","NA",0,0,0,0,"newgeneric"]
["RA sale 2030","_NEW_GENERIC_BATTERY_STORAGE","RA sale 2030","PlannedNew",null,null,null,null,null,null,null,0,"NotHybrid","NA",null,null,null,null,null,"Li",0,null,1,3,1,null,null,"Sell","non-LSE supplier",null,null,null,null,null,null,2026,1,1,2030,1,1,2030,12,31,null,null,null,"NA",null,null,null,"Not yet known",null,null,null,null,null,null,null,null,"NA","NA","NA","NA","NO",null,"NO","CapacityOnly","Calculated","plannedfuture","NA",0,0,0,0,"newgeneric"]
["RA sale 2031","_NEW_GENERIC_BATTERY_STORAGE","RA sale 2031","PlannedNew",null,null,null,null,null,null,null,0,"NotHybrid","NA",null,null,null,null,null,"Li",0,null,1,3,1,null,null,"Sell","non-LSE supplier",null,null,null,null,null,null,2026,1,1,2031,1,1,2031,12,31,null,null,null,"NA",null,null,null,"Not yet known",null,null,null,null,null,null,null,null,"NA","NA","NA","NA","NO",null,"NO","CapacityOnly","Calculated","plannedfuture","NA",0,0,0,0,"newgeneric"]
["RA sale 2032","_NEW_GENERIC_BATTERY_STORAGE","RA sale 2032","PlannedNew",null,null,null,null,null,null,null,0,"NotHybrid","NA",null,null,null,null,null,"Li",0,null,1,3,1,null,null,"Sell","non-LSE supplier",null,null,null,null,null,null,2026,1,1,2032,1,1,2032,12,31,null,null,null,"NA",null,null,null,"Not yet known",null,null,null,null,null,null,null,null,"NA","NA","NA","NA","NO",null,"NO","CapacityOnly","Calculated","plannedfuture","NA",0,0,0,0,"newgeneric"]
["RA sale 2033","_NEW_GENERIC_BATTERY_STORAGE","RA sale 2033","PlannedNew",null,null,null,null,null,null,null,0,"NotHybrid","NA",null,null,null,null,null,"Li",0,null,1,3,1,null,null,"Sell","non-LSE supplier",null,null,null,null,null,null,2026,1,1,2033,1,1,2033,12,31,null,null,null,"NA",null,null,null,"Not yet known",null,null,null,null,null,null,null,null,"NA","NA","NA","NA","NO",null,"NO","CapacityOnly","Calculated","plannedfuture","NA",0,0,0,0,"newgeneric"]
["RA sale 2034","_NEW_GENERIC_BATTERY_STORAGE","RA sale 2034","PlannedNew",null,null,null,null,null,null,null,0,"NotHybrid","NA",null,null,null,null,null,"Li",0,null,1,3,1,null,null,"Sell","non-LSE supplier",null,null,null,null,null,null,2026,1,1,2034,1,1,2034,12,31,null,null,null,"NA",null,null,null,"Not yet known",null,null,null,null,null,null,null,null,"NA","NA","NA","NA","NO",null,"NO","CapacityOnly","Calculated","plannedfuture","NA",0,0,0,0,"newgeneric"]
["RA sale 2035","_NEW_GENERIC_BATTERY_STORAGE","RA sale 2035","PlannedNew",null,null,null,null,null,null,null,0,"NotHybrid","NA",null,null,null,null,null,"Li",0,null,1,3,1,null,null,"Sell","non-LSE supplier",null,null,null,null,null,null,2026,1,1,2035,1,1,2035,12,31,null,null,null,"NA",null,null,null,"Not yet known",null,null,null,null,null,null,null,null,"NA","NA","NA","NA","NO",null,"NO","CapacityOnly","Calculated","plannedfuture","NA",0,0,0,0,"newgeneric"]
["RA purchase 2033","_NEW_GENERIC_BATTERY_STORAGE","RA purchase 2033","PlannedNew",null,null,null,null,null,null,null,0,"NotHybrid","NA",null,null,null,null,null,"Li",0,null,1,3,1,null,null,"Buy","non-LSE supplier",null,null,null,null,null,null,2026,1,1,2033,1,1,2033,12,31,null,null,null,"NA",null,null,null,"Not yet known",null,null,null,null,null,null,null,null,"NA","NA","NA","NA","NO",null,"NO","CapacityOnly","Calculated","plannedfuture","NA",0,0,0,0,"newgeneric"]
["RA purchase 2034","_NEW_GENERIC_BATTERY_STORAGE","RA purchase 2034","PlannedNew",null,null,null,null,null,null,null,0,"NotHybrid","NA",null,null,null,null,null,"Li",0,null,1,3,1,null,null,"Buy","non-LSE supplier",null,null,null,null,null,null,2026,1,1,2034,1,1,2034,12,31,null,null,null,"NA",null,null,null,"Not yet known",null,null,null,null,null,null,null,null,"NA","NA","NA","NA","NO",null,"NO","CapacityOnly","Calculated","plannedfuture","NA",0,0,0,0,"newgeneric"]
["Solar sale 2026","_NEW_GENERIC_SOLAR_1AXIS","Solar sale 2026","PlannedNew",null,null,null,null,0,0,0,1099.2816550115299,"NotHybrid","NA",null,null,null,null,null,null,null,null,1,3,1,null,null,"Sell","non-LSE supplier",null,null,null,null,null,null,2026,1,1,2026,1,1,2026,12,31,null,null,null,"NA",null,null,null,"Not yet known",null,null,null,null,null,null,null,null,"NA","NA","NA","NA","NO",null,"NO","EnergyOnly","Calculated","plannedfuture","RPS Resource Custom Profile (GWh)",0,{"$f":"L81","v":1099.2816550115299},0,0,"newgeneric"]
["Solar sale 2027","_NEW_GENERIC_SOLAR_1AXIS","Solar sale 2027","PlannedNew",null,null,null,null,0,0,0,1099.2816550115299,"NotHybrid","NA",null,null,null,null,null,null,null,null,1,3,1,null,null,"Sell","non-LSE supplier",null,null,null,null,null,null,2026,1,1,2027,1,1,2027,12,31,null,null,null,"NA",null,null,null,"Not yet known",null,null,null,null,null,null,null,null,"NA","NA","NA","NA","NO",null,"NO","EnergyOnly","Calculated","plannedfuture","RPS Resource Custom Profile (GWh)",0,0,0,0,"newgeneric"]
["Solar sale 2028","_NEW_GENERIC_SOLAR_1AXIS","Solar sale 2028","PlannedNew",null,null,null,null,0,0,0,1099.2816550115299,"NotHybrid","NA",null,null,null,null,null,null,null,null,1,3,1,null,null,"Sell","non-LSE supplier",null,null,null,null,null,null,2026,1,1,2028,1,1,2028,12,31,null,null,null,"NA",null,null,null,"Not yet known",null,null,null,null,null,null,null,null,"NA","NA","NA","NA","NO",null,"NO","EnergyOnly","Calculated","plannedfuture","RPS Resource Custom Profile (GWh)",0,0,0,0,"newgeneric"]
["Solar sale 2029","_NEW_GENERIC_SOLAR_1AXIS","Solar sale 2029","PlannedNew",null,null,null,null,0,0,0,1099.2816550115299,"NotHybrid","NA",null,null,null,null,null,null,null,null,1,3,1,null,null,"Sell","non-LSE supplier",null,null,null,null,null,null,2026,1,1,2029,1,1,2029,12,31,null,null,null,"NA",null,null,null,"Not yet known",null,null,null,null,null,null,null,null,"NA","NA","NA","NA","NO",null,"NO","EnergyOnly","Calculated","plannedfuture","RPS Resource Custom Profile (GWh)",0,0,0,0,"newgeneric"]
["Solar sale 2030","_NEW_GENERIC_SOLAR_1AXIS","Solar sale 2030","PlannedNew",null,null,null,null,0,0,0,1089.81784865037,"NotHybrid","NA",null,null,null,null,null,null,null,null,1,3,1,null,null,"Sell","non-LSE supplier",null,null,null,null,null,null,2026,1,1,2030,1,1,2030,12,31,null,null,null,"NA",null,null,null,"Not yet known",null,null,null,null,null,null,null,null,"NA","NA","NA","NA","NO",null,"NO","EnergyOnly","Calculated","plannedfuture","RPS Resource Custom Profile (GWh)",0,0,{"$f":"L85","v":1089.81784865037},0,"newgeneric"]
["Solar sale 2031","_NEW_GENERIC_SOLAR_1AXIS","Solar sale 2031","PlannedNew",null,null,null,null,0,0,0,1089.81784865037,"NotHybrid","NA",null,null,null,null,null,null,null,null,1,3,1,null,null,"Sell","non-LSE supplier",null,null,null,null,null,null,2026,1,1,2031,1,1,2031,12,31,null,null,null,"NA",null,null,null,"Not yet known",null,null,null,null,null,null,null,null,"NA","NA","NA","NA","NO",null,"NO","EnergyOnly","Calculated","plannedfuture","RPS Resource Custom Profile (GWh)",0,0,0,0,"newgeneric"]
["Solar sale 2032","_NEW_GENERIC_SOLAR_1AXIS","Solar sale 2032","PlannedNew",null,null,null,null,0,0,0,1089.81784865037,"NotHybrid","NA",null,null,null,null,null,null,null,null,1,3,1,null,null,"Sell","non-LSE supplier",null,null,null,null,null,null,2026,1,1,2032,1,1,2032,12,31,null,null,null,"NA",null,null,null,"Not yet known",null,null,null,null,null,null,null,null,"NA","NA","NA","NA","NO",null,"NO","EnergyOnly","Calculated","plannedfuture","RPS Resource Custom Profile (GWh)",0,0,0,0,"newgeneric"]
["Solar sale 2033","_NEW_GENERIC_SOLAR_1AXIS","Solar sale 2033","PlannedNew",null,null,null,null,0,0,0,1089.81784865037,"NotHybrid","NA",null,null,null,null,null,null,null,null,1,3,1,null,null,"Sell","non-LSE supplier",null,null,null,null,null,null,2026,1,1,2033,1,1,2033,12,31,null,null,null,"NA",null,null,null,"Not yet known",null,null,null,null,null,null,null,null,"NA","NA","NA","NA","NO",null,"NO","EnergyOnly","Calculated","plannedfuture","RPS Resource Custom Profile (GWh)",0,0,0,0,"newgeneric"]
["Solar sale 2034","_NEW_GENERIC_SOLAR_1AXIS","Solar sale 2034","PlannedNew",null,null,null,null,0,0,0,1089.81784865037,"NotHybrid","NA",null,null,null,null,null,null,null,null,1,3,1,null,null,"Sell","non-LSE supplier",null,null,null,null,null,null,2026,1,1,2034,1,1,2034,12,31,null,null,null,"NA",null,null,null,"Not yet known",null,null,null,null,null,null,null,null,"NA","NA","NA","NA","NO",null,"NO","EnergyOnly","Calculated","plannedfuture","RPS Resource Custom Profile (GWh)",0,0,0,0,"newgeneric"]
["Solar sale 2035","_NEW_GENERIC_SOLAR_1AXIS","Solar sale 2035","PlannedNew",null,null,null,null,0,0,0,1433.72512469496,"NotHybrid","NA",null,null,null,null,null,null,null,null,1,3,1,null,null,"Sell","non-LSE supplier",null,null,null,null,null,null,2026,1,1,2035,1,1,2035,12,31,null,null,null,"NA",null,null,null,"Not yet known",null,null,null,null,null,null,null,null,"NA","NA","NA","NA","NO",null,"NO","EnergyOnly","Calculated","plannedfuture","RPS Resource Custom Profile (GWh)",0,0,0,{"$f":"L90","v":1433.72512469496},"newgeneric"]

{"sheet":"Calcs","index":3,"n_rows":493,"n_cols":37,"rows_kept":493,"cut":false,"hidden":false,"merged":[[0,0,20,0]]}
["Instruction: This worksheet consists of formulas only. LSEs should extend formulas in columns B:AK to cover all contracts entered in the \"unique_contracts\" worksheet (i.e. the last row that has formulas in this worksheet should have a row number that is greater than or equal to that of the last row in the \"unique_contracts\" worksheet). To extend formulas in this worksheet, please select one row (e.g. B500:AK500) and drag down the formulas vertically. PLEASE DO NOT DRAG FORMULAS HORIZONTALLY. Please do not hard-code values in this worksheet. All contract information should be entered in the \"unique_contracts\" tab.","resource","contract_status","contracted_nameplate_capacity","is_hybrid_paired","can_charge_from_grid","contracted_generator_mw","contracted_storage_mw","contracted_storage_depth_mwh","buy_sell_own","contract_start_date_year","contract_start_date_month","contract_start_date_day","contract_end_date_year","contract_end_date_month","contract_end_date_day","buying_energy_capacity","multiplier","resource elcc type","hybrid/paired storage elcc type","elcc type (for summary tables and charts)","start year","end year","hybrid storage derate (100% means no derates)","short duration derate",2024,2025,2026,2027,2028,2029,2030,2031,2032,2033,2034,2035]
[null,{"$f":"unique_contracts!B2","v":"_SUPPLIERS_CHOICE"},{"$f":"unique_contracts!D2","v":"Online"},{"$f":"unique_contracts!J2","v":0},{"$f":"unique_contracts!M2","v":"NotHybrid"},{"$f":"unique_contracts!N2","v":0},{"$f":"unique_contracts!P2","v":0},{"$f":"unique_contracts!R2","v":0},{"$f":"unique_contracts!V2","v":0},{"$f":"unique_contracts!AB2","v":"Buy"},{"$f":"unique_contracts!AM2","v":2022},{"$f":"unique_contracts!AN2","v":1},{"$f":"unique_contracts!AO2","v":1},{"$f":"unique_contracts!AP2","v":2024},{"$f":"unique_contracts!AQ2","v":12},{"$f":"unique_contracts!AR2","v":31},{"$f":"unique_contracts!BP2","v":"EnergyOnly"},{"$f":"IF(AND(J2=\"Sell\",ISNUMBER(SEARCH(\"Capacity\",Q2))),-1,IF(AND(NOT(J2=\"Sell\"),ISNUMBER(SEARCH(\"Capacity\",Q2))),1,0))","v":0},{"$f":"IFERROR(IF(AND(I2>0,E2=\"NotHybrid\"),_xlfn.CONCAT(MAX(MIN(ROUNDDOWN(I2/D2,0),8),4),INDEX(resources!$G:$G,MATCH(B2,resources!$A:$A,0))),INDEX(resources!$G:$G,MATCH(B2,resources!$A:$A,0))),\"n/a\")","v":"n/a"},{"$f":"IFERROR(IF(NOT(E2=\"NotHybrid\"),_xlfn.CONCAT(MAX(MIN(ROUNDDOWN(I2/H2,0),8),4),\"hr_batteries\"),\"n/a\"),\"n/a\")","v":"n/a"},{"$f":"IF(T2=\"n/a\",S2,\"hybrid\")","v":"n/a"},{"$f":"IFERROR(IF(DATE(K2,L2,M2)<=DATE(K2,6,1),K2,K2+1),0)","v":2022},{"$f":"IFERROR(IF(DATE(N2,O2,P2)>=DATE(N2,10,1),N2,N2-1),0)","v":2024},{"$f":"IF(OR(T2=\"n/a\",NOT(F2=\"NO\")),100%,IF(ISNUMBER(SEARCH(\"pv\",S2)),MIN(G2/(1*(ROUNDDOWN(I2/H2,0)/4)),H2)/H2,IF(ISNUMBER(SEARCH(\"wind\",S2)),MIN(G2/(2*(ROUNDDOWN(I2/H2,0)/4)),H2)/H2,1)))","v":1},{"$f":"IF(ISNUMBER(SEARCH(\"batteries\",S2)),MIN(ROUNDDOWN(I2/D2,0)/4,1), IF(ISNUMBER(SEARCH(\"batteries\",T2)),MIN(ROUNDDOWN(I2/H2,0)/4,1),1))","v":1},{"$f":"MIN((IFERROR(IF(AND($V2<=Z$1,$W2>=Z$1),INDEX(Reliability!E$23:E$50,MATCH($S2,Reliability!$C$23:$C$50,0)),0),0)*IF($T2=\"n/a\",$D2*$Y2,$G2)+IFERROR(IF(AND($V2<=Z$1,$W2>=Z$1),INDEX(Reliability!E$23:E$50,MATCH($T2,Reliability!$C$23:$C$50,0)),0),0)*$H2*$X2*$Y2),$D2)*$R2","v":0},{"$f":"MIN((IFERROR(IF(AND($V2<=AA$1,$W2>=AA$1),INDEX(Reliability!F$23:F$50,MATCH($S2,Reliability!$C$23:$C$50,0)),0),0)*IF($T2=\"n/a\",$D2*$Y2,$G2)+IFERROR(IF(AND($V2<=AA$1,$W2>=AA$1),INDEX(Reliability!F$23:F$50,MATCH($T2,Reliability!$C$23:$C$50,0)),0),0)*$H2*$X2*$Y2),$D2)*$R2","v":0},{"$f":"MIN((IFERROR(IF(AND($V2<=AB$1,$W2>=AB$1),INDEX(Reliability!G$23:G$50,MATCH($S2,Reliability!$C$23:$C$50,0)),0),0)*IF($T2=\"n/a\",$D2*$Y2,$G2)+IFERROR(IF(AND($V2<=AB$1,$W2>=AB$1),INDEX(Reliability!G$23:G$50,MATCH($T2,Reliability!$C$23:$C$50,0)),0),0)*$H2*$X2*$Y2),$D2)*$R2","v":0},{"$f":"MIN((IFERROR(IF(AND($V2<=AC$1,$W2>=AC$1),INDEX(Reliability!H$23:H$50,MATCH($S2,Reliability!$C$23:$C$50,0)),0),0)*IF($T2=\"n/a\",$D2*$Y2,$G2)+IFERROR(IF(AND($V2<=AC$1,$W2>=AC$1),INDEX(Reliability!H$23:H$50,MATCH($T2,Reliability!$C$23:$C$50,0)),0),0)*$H2*$X2*$Y2),$D2)*$R2","v":0},{"$f":"MIN((IFERROR(IF(AND($V2<=AD$1,$W2>=AD$1),INDEX(Reliability!I$23:I$50,MATCH($S2,Reliability!$C$23:$C$50,0)),0),0)*IF($T2=\"n/a\",$D2*$Y2,$G2)+IFERROR(IF(AND($V2<=AD$1,$W2>=AD$1),INDEX(Reliability!I$23:I$50,MATCH($T2,Reliability!$C$23:$C$50,0)),0),0)*$H2*$X2*$Y2),$D2)*$R2","v":0},{"$f":"MIN((IFERROR(IF(AND($V2<=AE$1,$W2>=AE$1),INDEX(Reliability!J$23:J$50,MATCH($S2,Reliability!$C$23:$C$50,0)),0),0)*IF($T2=\"n/a\",$D2*$Y2,$G2)+IFERROR(IF(AND($V2<=AE$1,$W2>=AE$1),INDEX(Reliability!J$23:J$50,MATCH($T2,Reliability!$C$23:$C$50,0)),0),0)*$H2*$X2*$Y2),$D2)*$R2","v":0},{"$f":"MIN((IFERROR(IF(AND($V2<=AF$1,$W2>=AF$1),INDEX(Reliability!K$23:K$50,MATCH($S2,Reliability!$C$23:$C$50,0)),0),0)*IF($T2=\"n/a\",$D2*$Y2,$G2)+IFERROR(IF(AND($V2<=AF$1,$W2>=AF$1),INDEX(Reliability!K$23:K$50,MATCH($T2,Reliability!$C$23:$C$50,0)),0),0)*$H2*$X2*$Y2),$D2)*$R2","v":0},{"$f":"MIN((IFERROR(IF(AND($V2<=AG$1,$W2>=AG$1),INDEX(Reliability!L$23:L$50,MATCH($S2,Reliability!$C$23:$C$50,0)),0),0)*IF($T2=\"n/a\",$D2*$Y2,$G2)+IFERROR(IF(AND($V2<=AG$1,$W2>=AG$1),INDEX(Reliability!L$23:L$50,MATCH($T2,Reliability!$C$23:$C$50,0)),0),0)*$H2*$X2*$Y2),$D2)*$R2","v":0},{"$f":"MIN((IFERROR(IF(AND($V2<=AH$1,$W2>=AH$1),INDEX(Reliability!M$23:M$50,MATCH($S2,Reliability!$C$23:$C$50,0)),0),0)*IF($T2=\"n/a\",$D2*$Y2,$G2)+IFERROR(IF(AND($V2<=AH$1,$W2>=AH$1),INDEX(Reliability!M$23:M$50,MATCH($T2,Reliability!$C$23:$C$50,0)),0),0)*$H2*$X2*$Y2),$D2)*$R2","v":0},{"$f":"MIN((IFERROR(IF(AND($V2<=AI$1,$W2>=AI$1),INDEX(Reliability!N$23:N$50,MATCH($S2,Reliability!$C$23:$C$50,0)),0),0)*IF($T2=\"n/a\",$D2*$Y2,$G2)+IFERROR(IF(AND($V2<=AI$1,$W2>=AI$1),INDEX(Reliability!N$23:N$50,MATCH($T2,Reliability!$C$23:$C$50,0)),0),0)*$H2*$X2*$Y2),$D2)*$R2","v":0},{"$f":"MIN((IFERROR(IF(AND($V2<=AJ$1,$W2>=AJ$1),INDEX(Reliability!O$23:O$50,MATCH($S2,Reliability!$C$23:$C$50,0)),0),0)*IF($T2=\"n/a\",$D2*$Y2,$G2)+IFERROR(IF(AND($V2<=AJ$1,$W2>=AJ$1),INDEX(Reliability!O$23:O$50,MATCH($T2,Reliability!$C$23:$C$50,0)),0),0)*$H2*$X2*$Y2),$D2)*$R2","v":0},{"$f":"MIN((IFERROR(IF(AND($V2<=AK$1,$W2>=AK$1),INDEX(Reliability!P$23:P$50,MATCH($S2,Reliability!$C$23:$C$50,0)),0),0)*IF($T2=\"n/a\",$D2*$Y2,$G2)+IFERROR(IF(AND($V2<=AK$1,$W2>=AK$1),INDEX(Reliability!P$23:P$50,MATCH($T2,Reliability!$C$23:$C$50,0)),0),0)*$H2*$X2*$Y2),$D2)*$R2","v":0}]
[null,{"$f":"unique_contracts!B3","v":"_SUPPLIERS_CHOICE"},{"$f":"unique_contracts!D3","v":"Online"},{"$f":"unique_contracts!J3","v":0},{"$f":"unique_contracts!M3","v":"NotHybrid"},{"$f":"unique_contracts!N3","v":0},{"$f":"unique_contracts!P3","v":0},{"$f":"unique_contracts!R3","v":0},{"$f":"unique_contracts!V3","v":0},{"$f":"unique_contracts!AB3","v":"Buy"},{"$f":"unique_contracts!AM3","v":2022},{"$f":"unique_contracts!AN3","v":1},{"$f":"unique_contracts!AO3","v":1},{"$f":"unique_contracts!AP3","v":2024},{"$f":"unique_contracts!AQ3","v":12},{"$f":"unique_contracts!AR3","v":31},{"$f":"unique_contracts!BP3","v":"EnergyOnly"},{"$f":"IF(AND(J3=\"Sell\",ISNUMBER(SEARCH(\"Capacity\",Q3))),-1,IF(AND(NOT(J3=\"Sell\"),ISNUMBER(SEARCH(\"Capacity\",Q3))),1,0))","v":0},{"$f":"IFERROR(IF(AND(I3>0,E3=\"NotHybrid\"),_xlfn.CONCAT(MAX(MIN(ROUNDDOWN(I3/D3,0),8),4),INDEX(resources!$G:$G,MATCH(B3,resources!$A:$A,0))),INDEX(resources!$G:$G,MATCH(B3,resources!$A:$A,0))),\"n/a\")","v":"n/a"},{"$f":"IFERROR(IF(NOT(E3=\"NotHybrid\"),_xlfn.CONCAT(MAX(MIN(ROUNDDOWN(I3/H3,0),8),4),\"hr_batteries\"),\"n/a\"),\"n/a\")","v":"n/a"},{"$f":"IF(T3=\"n/a\",S3,\"hybrid\")","v":"n/a"},{"$f":"IFERROR(IF(DATE(K3,L3,M3)<=DATE(K3,6,1),K3,K3+1),0)","v":2022},{"$f":"IFERROR(IF(DATE(N3,O3,P3)>=DATE(N3,10,1),N3,N3-1),0)","v":2024},{"$f":"IF(OR(T3=\"n/a\",NOT(F3=\"NO\")),100%,IF(ISNUMBER(SEARCH(\"pv\",S3)),MIN(G3/(1*(ROUNDDOWN(I3/H3,0)/4)),H3)/H3,IF(ISNUMBER(SEARCH(\"wind\",S3)),MIN(G3/(2*(ROUNDDOWN(I3/H3,0)/4)),H3)/H3,1)))","v":1},{"$f":"IF(ISNUMBER(SEARCH(\"batteries\",S3)),MIN(ROUNDDOWN(I3/D3,0)/4,1), IF(ISNUMBER(SEARCH(\"batteries\",T3)),MIN(ROUNDDOWN(I3/H3,0)/4,1),1))","v":1},{"$f":"MIN((IFERROR(IF(AND($V3<=Z$1,$W3>=Z$1),INDEX(Reliability!E$23:E$50,MATCH($S3,Reliability!$C$23:$C$50,0)),0),0)*IF($T3=\"n/a\",$D3*$Y3,$G3)+IFERROR(IF(AND($V3<=Z$1,$W3>=Z$1),INDEX(Reliability!E$23:E$50,MATCH($T3,Reliability!$C$23:$C$50,0)),0),0)*$H3*$X3*$Y3),$D3)*$R3","v":0},{"$f":"MIN((IFERROR(IF(AND($V3<=AA$1,$W3>=AA$1),INDEX(Reliability!F$23:F$50,MATCH($S3,Reliability!$C$23:$C$50,0)),0),0)*IF($T3=\"n/a\",$D3*$Y3,$G3)+IFERROR(IF(AND($V3<=AA$1,$W3>=AA$1),INDEX(Reliability!F$23:F$50,MATCH($T3,Reliability!$C$23:$C$50,0)),0),0)*$H3*$X3*$Y3),$D3)*$R3","v":0},{"$f":"MIN((IFERROR(IF(AND($V3<=AB$1,$W3>=AB$1),INDEX(Reliability!G$23:G$50,MATCH($S3,Reliability!$C$23:$C$50,0)),0),0)*IF($T3=\"n/a\",$D3*$Y3,$G3)+IFERROR(IF(AND($V3<=AB$1,$W3>=AB$1),INDEX(Reliability!G$23:G$50,MATCH($T3,Reliability!$C$23:$C$50,0)),0),0)*$H3*$X3*$Y3),$D3)*$R3","v":0},{"$f":"MIN((IFERROR(IF(AND($V3<=AC$1,$W3>=AC$1),INDEX(Reliability!H$23:H$50,MATCH($S3,Reliability!$C$23:$C$50,0)),0),0)*IF($T3=\"n/a\",$D3*$Y3,$G3)+IFERROR(IF(AND($V3<=AC$1,$W3>=AC$1),INDEX(Reliability!H$23:H$50,MATCH($T3,Reliability!$C$23:$C$50,0)),0),0)*$H3*$X3*$Y3),$D3)*$R3","v":0},{"$f":"MIN((IFERROR(IF(AND($V3<=AD$1,$W3>=AD$1),INDEX(Reliability!I$23:I$50,MATCH($S3,Reliability!$C$23:$C$50,0)),0),0)*IF($T3=\"n/a\",$D3*$Y3,$G3)+IFERROR(IF(AND($V3<=AD$1,$W3>=AD$1),INDEX(Reliability!I$23:I$50,MATCH($T3,Reliability!$C$23:$C$50,0)),0),0)*$H3*$X3*$Y3),$D3)*$R3","v":0},{"$f":"MIN((IFERROR(IF(AND($V3<=AE$1,$W3>=AE$1),INDEX(Reliability!J$23:J$50,MATCH($S3,Reliability!$C$23:$C$50,0)),0),0)*IF($T3=\"n/a\",$D3*$Y3,$G3)+IFERROR(IF(AND($V3<=AE$1,$W3>=AE$1),INDEX(Reliability!J$23:J$50,MATCH($T3,Reliability!$C$23:$C$50,0)),0),0)*$H3*$X3*$Y3),$D3)*$R3","v":0},{"$f":"MIN((IFERROR(IF(AND($V3<=AF$1,$W3>=AF$1),INDEX(Reliability!K$23:K$50,MATCH($S3,Reliability!$C$23:$C$50,0)),0),0)*IF($T3=\"n/a\",$D3*$Y3,$G3)+IFERROR(IF(AND($V3<=AF$1,$W3>=AF$1),INDEX(Reliability!K$23:K$50,MATCH($T3,Reliability!$C$23:$C$50,0)),0),0)*$H3*$X3*$Y3),$D3)*$R3","v":0},{"$f":"MIN((IFERROR(IF(AND($V3<=AG$1,$W3>=AG$1),INDEX(Reliability!L$23:L$50,MATCH($S3,Reliability!$C$23:$C$50,0)),0),0)*IF($T3=\"n/a\",$D3*$Y3,$G3)+IFERROR(IF(AND($V3<=AG$1,$W3>=AG$1),INDEX(Reliability!L$23:L$50,MATCH($T3,Reliability!$C$23:$C$50,0)),0),0)*$H3*$X3*$Y3),$D3)*$R3","v":0},{"$f":"MIN((IFERROR(IF(AND($V3<=AH$1,$W3>=AH$1),INDEX(Reliability!M$23:M$50,MATCH($S3,Reliability!$C$23:$C$50,0)),0),0)*IF($T3=\"n/a\",$D3*$Y3,$G3)+IFERROR(IF(AND($V3<=AH$1,$W3>=AH$1),INDEX(Reliability!M$23:M$50,MATCH($T3,Reliability!$C$23:$C$50,0)),0),0)*$H3*$X3*$Y3),$D3)*$R3","v":0},{"$f":"MIN((IFERROR(IF(AND($V3<=AI$1,$W3>=AI$1),INDEX(Reliability!N$23:N$50,MATCH($S3,Reliability!$C$23:$C$50,0)),0),0)*IF($T3=\"n/a\",$D3*$Y3,$G3)+IFERROR(IF(AND($V3<=AI$1,$W3>=AI$1),INDEX(Reliability!N$23:N$50,MATCH($T3,Reliability!$C$23:$C$50,0)),0),0)*$H3*$X3*$Y3),$D3)*$R3","v":0},{"$f":"MIN((IFERROR(IF(AND($V3<=AJ$1,$W3>=AJ$1),INDEX(Reliability!O$23:O$50,MATCH($S3,Reliability!$C$23:$C$50,0)),0),0)*IF($T3=\"n/a\",$D3*$Y3,$G3)+IFERROR(IF(AND($V3<=AJ$1,$W3>=AJ$1),INDEX(Reliability!O$23:O$50,MATCH($T3,Reliability!$C$23:$C$50,0)),0),0)*$H3*$X3*$Y3),$D3)*$R3","v":0},{"$f":"MIN((IFERROR(IF(AND($V3<=AK$1,$W3>=AK$1),INDEX(Reliability!P$23:P$50,MATCH($S3,Reliability!$C$23:$C$50,0)),0),0)*IF($T3=\"n/a\",$D3*$Y3,$G3)+IFERROR(IF(AND($V3<=AK$1,$W3>=AK$1),INDEX(Reliability!P$23:P$50,MATCH($T3,Reliability!$C$23:$C$50,0)),0),0)*$H3*$X3*$Y3),$D3)*$R3","v":0}]
[null,{"$f":"unique_contracts!B4","v":"_SUPPLIERS_CHOICE"},{"$f":"unique_contracts!D4","v":"Online"},{"$f":"unique_contracts!J4","v":0},{"$f":"unique_contracts!M4","v":"NotHybrid"},{"$f":"unique_contracts!N4","v":0},{"$f":"unique_contracts!P4","v":0},{"$f":"unique_contracts!R4","v":0},{"$f":"unique_contracts!V4","v":0},{"$f":"unique_contracts!AB4","v":"Buy"},{"$f":"unique_contracts!AM4","v":2023},{"$f":"unique_contracts!AN4","v":1},{"$f":"unique_contracts!AO4","v":1},{"$f":"unique_contracts!AP4","v":2024},{"$f":"unique_contracts!AQ4","v":12},{"$f":"unique_contracts!AR4","v":31},{"$f":"unique_contracts!BP4","v":"EnergyOnly"},0,{"$f":"IFERROR(IF(AND(I4>0,E4=\"NotHybrid\"),_xlfn.CONCAT(MAX(MIN(ROUNDDOWN(I4/D4,0),8),4),INDEX(resources!$G:$G,MATCH(B4,resources!$A:$A,0))),INDEX(resources!$G:$G,MATCH(B4,resources!$A:$A,0))),\"n/a\")","v":"n/a"},"n/a","n/a",2023,2024,1,1,{"$f":"MIN((IFERROR(IF(AND($V4<=Z$1,$W4>=Z$1),INDEX(Reliability!E$23:E$50,MATCH($S4,Reliability!$C$23:$C$50,0)),0),0)*IF($T4=\"n/a\",$D4*$Y4,$G4)+IFERROR(IF(AND($V4<=Z$1,$W4>=Z$1),INDEX(Reliability!E$23:E$50,MATCH($T4,Reliability!$C$23:$C$50,0)),0),0)*$H4*$X4*$Y4),$D4)*$R4","v":0},{"$f":"MIN((IFERROR(IF(AND($V4<=AA$1,$W4>=AA$1),INDEX(Reliability!F$23:F$50,MATCH($S4,Reliability!$C$23:$C$50,0)),0),0)*IF($T4=\"n/a\",$D4*$Y4,$G4)+IFERROR(IF(AND($V4<=AA$1,$W4>=AA$1),INDEX(Reliability!F$23:F$50,MATCH($T4,Reliability!$C$23:$C$50,0)),0),0)*$H4*$X4*$Y4),$D4)*$R4","v":0},{"$f":"MIN((IFERROR(IF(AND($V4<=AB$1,$W4>=AB$1),INDEX(Reliability!G$23:G$50,MATCH($S4,Reliability!$C$23:$C$50,0)),0),0)*IF($T4=\"n/a\",$D4*$Y4,$G4)+IFERROR(IF(AND($V4<=AB$1,$W4>=AB$1),INDEX(Reliability!G$23:G$50,MATCH($T4,Reliability!$C$23:$C$50,0)),0),0)*$H4*$X4*$Y4),$D4)*$R4","v":0},{"$f":"MIN((IFERROR(IF(AND($V4<=AC$1,$W4>=AC$1),INDEX(Reliability!H$23:H$50,MATCH($S4,Reliability!$C$23:$C$50,0)),0),0)*IF($T4=\"n/a\",$D4*$Y4,$G4)+IFERROR(IF(AND($V4<=AC$1,$W4>=AC$1),INDEX(Reliability!H$23:H$50,MATCH($T4,Reliability!$C$23:$C$50,0)),0),0)*$H4*$X4*$Y4),$D4)*$R4","v":0},{"$f":"MIN((IFERROR(IF(AND($V4<=AD$1,$W4>=AD$1),INDEX(Reliability!I$23:I$50,MATCH($S4,Reliability!$C$23:$C$50,0)),0),0)*IF($T4=\"n/a\",$D4*$Y4,$G4)+IFERROR(IF(AND($V4<=AD$1,$W4>=AD$1),INDEX(Reliability!I$23:I$50,MATCH($T4,Reliability!$C$23:$C$50,0)),0),0)*$H4*$X4*$Y4),$D4)*$R4","v":0},{"$f":"MIN((IFERROR(IF(AND($V4<=AE$1,$W4>=AE$1),INDEX(Reliability!J$23:J$50,MATCH($S4,Reliability!$C$23:$C$50,0)),0),0)*IF($T4=\"n/a\",$D4*$Y4,$G4)+IFERROR(IF(AND($V4<=AE$1,$W4>=AE$1),INDEX(Reliability!J$23:J$50,MATCH($T4,Reliability!$C$23:$C$50,0)),0),0)*$H4*$X4*$Y4),$D4)*$R4","v":0},{"$f":"MIN((IFERROR(IF(AND($V4<=AF$1,$W4>=AF$1),INDEX(Reliability!K$23:K$50,MATCH($S4,Reliability!$C$23:$C$50,0)),0),0)*IF($T4=\"n/a\",$D4*$Y4,$G4)+IFERROR(IF(AND($V4<=AF$1,$W4>=AF$1),INDEX(Reliability!K$23:K$50,MATCH($T4,Reliability!$C$23:$C$50,0)),0),0)*$H4*$X4*$Y4),$D4)*$R4","v":0},{"$f":"MIN((IFERROR(IF(AND($V4<=AG$1,$W4>=AG$1),INDEX(Reliability!L$23:L$50,MATCH($S4,Reliability!$C$23:$C$50,0)),0),0)*IF($T4=\"n/a\",$D4*$Y4,$G4)+IFERROR(IF(AND($V4<=AG$1,$W4>=AG$1),INDEX(Reliability!L$23:L$50,MATCH($T4,Reliability!$C$23:$C$50,0)),0),0)*$H4*$X4*$Y4),$D4)*$R4","v":0},{"$f":"MIN((IFERROR(IF(AND($V4<=AH$1,$W4>=AH$1),INDEX(Reliability!M$23:M$50,MATCH($S4,Reliability!$C$23:$C$50,0)),0),0)*IF($T4=\"n/a\",$D4*$Y4,$G4)+IFERROR(IF(AND($V4<=AH$1,$W4>=AH$1),INDEX(Reliability!M$23:M$50,MATCH($T4,Reliability!$C$23:$C$50,0)),0),0)*$H4*$X4*$Y4),$D4)*$R4","v":0},{"$f":"MIN((IFERROR(IF(AND($V4<=AI$1,$W4>=AI$1),INDEX(Reliability!N$23:N$50,MATCH($S4,Reliability!$C$23:$C$50,0)),0),0)*IF($T4=\"n/a\",$D4*$Y4,$G4)+IFERROR(IF(AND($V4<=AI$1,$W4>=AI$1),INDEX(Reliability!N$23:N$50,MATCH($T4,Reliability!$C$23:$C$50,0)),0),0)*$H4*$X4*$Y4),$D4)*$R4","v":0},{"$f":"MIN((IFERROR(IF(AND($V4<=AJ$1,$W4>=AJ$1),INDEX(Reliability!O$23:O$50,MATCH($S4,Reliability!$C$23:$C$50,0)),0),0)*IF($T4=\"n/a\",$D4*$Y4,$G4)+IFERROR(IF(AND($V4<=AJ$1,$W4>=AJ$1),INDEX(Reliability!O$23:O$50,MATCH($T4,Reliability!$C$23:$C$50,0)),0),0)*$H4*$X4*$Y4),$D4)*$R4","v":0},{"$f":"MIN((IFERROR(IF(AND($V4<=AK$1,$W4>=AK$1),INDEX(Reliability!P$23:P$50,MATCH($S4,Reliability!$C$23:$C$50,0)),0),0)*IF($T4=\"n/a\",$D4*$Y4,$G4)+IFERROR(IF(AND($V4<=AK$1,$W4>=AK$1),INDEX(Reliability!P$23:P$50,MATCH($T4,Reliability!$C$23:$C$50,0)),0),0)*$H4*$X4*$Y4),$D4)*$R4","v":0}]
[null,{"$f":"unique_contracts!B5","v":"_SUPPLIERS_CHOICE"},{"$f":"unique_contracts!D5","v":"PlannedExisting"},{"$f":"unique_contracts!J5","v":0},{"$f":"unique_contracts!M5","v":"NotHybrid"},{"$f":"unique_contracts!N5","v":0},{"$f":"unique_contracts!P5","v":0},{"$f":"unique_contracts!R5","v":0},{"$f":"unique_contracts!V5","v":0},{"$f":"unique_contracts!AB5","v":"Buy"},{"$f":"unique_contracts!AM5","v":2024},{"$f":"unique_contracts!AN5","v":1},{"$f":"unique_contracts!AO5","v":1},{"$f":"unique_contracts!AP5","v":2024},{"$f":"unique_contracts!AQ5","v":12},{"$f":"unique_contracts!AR5","v":31},{"$f":"unique_contracts!BP5","v":"EnergyOnly"},0,{"$f":"IFERROR(IF(AND(I5>0,E5=\"NotHybrid\"),_xlfn.CONCAT(MAX(MIN(ROUNDDOWN(I5/D5,0),8),4),INDEX(resources!$G:$G,MATCH(B5,resources!$A:$A,0))),INDEX(resources!$G:$G,MATCH(B5,resources!$A:$A,0))),\"n/a\")","v":"n/a"},"n/a","n/a",2024,2024,1,1,{"$f":"MIN((IFERROR(IF(AND($V5<=Z$1,$W5>=Z$1),INDEX(Reliability!E$23:E$50,MATCH($S5,Reliability!$C$23:$C$50,0)),0),0)*IF($T5=\"n/a\",$D5*$Y5,$G5)+IFERROR(IF(AND($V5<=Z$1,$W5>=Z$1),INDEX(Reliability!E$23:E$50,MATCH($T5,Reliability!$C$23:$C$50,0)),0),0)*$H5*$X5*$Y5),$D5)*$R5","v":0},{"$f":"MIN((IFERROR(IF(AND($V5<=AA$1,$W5>=AA$1),INDEX(Reliability!F$23:F$50,MATCH($S5,Reliability!$C$23:$C$50,0)),0),0)*IF($T5=\"n/a\",$D5*$Y5,$G5)+IFERROR(IF(AND($V5<=AA$1,$W5>=AA$1),INDEX(Reliability!F$23:F$50,MATCH($T5,Reliability!$C$23:$C$50,0)),0),0)*$H5*$X5*$Y5),$D5)*$R5","v":0},{"$f":"MIN((IFERROR(IF(AND($V5<=AB$1,$W5>=AB$1),INDEX(Reliability!G$23:G$50,MATCH($S5,Reliability!$C$23:$C$50,0)),0),0)*IF($T5=\"n/a\",$D5*$Y5,$G5)+IFERROR(IF(AND($V5<=AB$1,$W5>=AB$1),INDEX(Reliability!G$23:G$50,MATCH($T5,Reliability!$C$23:$C$50,0)),0),0)*$H5*$X5*$Y5),$D5)*$R5","v":0},{"$f":"MIN((IFERROR(IF(AND($V5<=AC$1,$W5>=AC$1),INDEX(Reliability!H$23:H$50,MATCH($S5,Reliability!$C$23:$C$50,0)),0),0)*IF($T5=\"n/a\",$D5*$Y5,$G5)+IFERROR(IF(AND($V5<=AC$1,$W5>=AC$1),INDEX(Reliability!H$23:H$50,MATCH($T5,Reliability!$C$23:$C$50,0)),0),0)*$H5*$X5*$Y5),$D5)*$R5","v":0},{"$f":"MIN((IFERROR(IF(AND($V5<=AD$1,$W5>=AD$1),INDEX(Reliability!I$23:I$50,MATCH($S5,Reliability!$C$23:$C$50,0)),0),0)*IF($T5=\"n/a\",$D5*$Y5,$G5)+IFERROR(IF(AND($V5<=AD$1,$W5>=AD$1),INDEX(Reliability!I$23:I$50,MATCH($T5,Reliability!$C$23:$C$50,0)),0),0)*$H5*$X5*$Y5),$D5)*$R5","v":0},{"$f":"MIN((IFERROR(IF(AND($V5<=AE$1,$W5>=AE$1),INDEX(Reliability!J$23:J$50,MATCH($S5,Reliability!$C$23:$C$50,0)),0),0)*IF($T5=\"n/a\",$D5*$Y5,$G5)+IFERROR(IF(AND($V5<=AE$1,$W5>=AE$1),INDEX(Reliability!J$23:J$50,MATCH($T5,Reliability!$C$23:$C$50,0)),0),0)*$H5*$X5*$Y5),$D5)*$R5","v":0},{"$f":"MIN((IFERROR(IF(AND($V5<=AF$1,$W5>=AF$1),INDEX(Reliability!K$23:K$50,MATCH($S5,Reliability!$C$23:$C$50,0)),0),0)*IF($T5=\"n/a\",$D5*$Y5,$G5)+IFERROR(IF(AND($V5<=AF$1,$W5>=AF$1),INDEX(Reliability!K$23:K$50,MATCH($T5,Reliability!$C$23:$C$50,0)),0),0)*$H5*$X5*$Y5),$D5)*$R5","v":0},{"$f":"MIN((IFERROR(IF(AND($V5<=AG$1,$W5>=AG$1),INDEX(Reliability!L$23:L$50,MATCH($S5,Reliability!$C$23:$C$50,0)),0),0)*IF($T5=\"n/a\",$D5*$Y5,$G5)+IFERROR(IF(AND($V5<=AG$1,$W5>=AG$1),INDEX(Reliability!L$23:L$50,MATCH($T5,Reliability!$C$23:$C$50,0)),0),0)*$H5*$X5*$Y5),$D5)*$R5","v":0},{"$f":"MIN((IFERROR(IF(AND($V5<=AH$1,$W5>=AH$1),INDEX(Reliability!M$23:M$50,MATCH($S5,Reliability!$C$23:$C$50,0)),0),0)*IF($T5=\"n/a\",$D5*$Y5,$G5)+IFERROR(IF(AND($V5<=AH$1,$W5>=AH$1),INDEX(Reliability!M$23:M$50,MATCH($T5,Reliability!$C$23:$C$50,0)),0),0)*$H5*$X5*$Y5),$D5)*$R5","v":0},{"$f":"MIN((IFERROR(IF(AND($V5<=AI$1,$W5>=AI$1),INDEX(Reliability!N$23:N$50,MATCH($S5,Reliability!$C$23:$C$50,0)),0),0)*IF($T5=\"n/a\",$D5*$Y5,$G5)+IFERROR(IF(AND($V5<=AI$1,$W5>=AI$1),INDEX(Reliability!N$23:N$50,MATCH($T5,Reliability!$C$23:$C$50,0)),0),0)*$H5*$X5*$Y5),$D5)*$R5","v":0},{"$f":"MIN((IFERROR(IF(AND($V5<=AJ$1,$W5>=AJ$1),INDEX(Reliability!O$23:O$50,MATCH($S5,Reliability!$C$23:$C$50,0)),0),0)*IF($T5=\"n/a\",$D5*$Y5,$G5)+IFERROR(IF(AND($V5<=AJ$1,$W5>=AJ$1),INDEX(Reliability!O$23:O$50,MATCH($T5,Reliability!$C$23:$C$50,0)),0),0)*$H5*$X5*$Y5),$D5)*$R5","v":0},{"$f":"MIN((IFERROR(IF(AND($V5<=AK$1,$W5>=AK$1),INDEX(Reliability!P$23:P$50,MATCH($S5,Reliability!$C$23:$C$50,0)),0),0)*IF($T5=\"n/a\",$D5*$Y5,$G5)+IFERROR(IF(AND($V5<=AK$1,$W5>=AK$1),INDEX(Reliability!P$23:P$50,MATCH($T5,Reliability!$C$23:$C$50,0)),0),0)*$H5*$X5*$Y5),$D5)*$R5","v":0}]
[null,{"$f":"unique_contracts!B6","v":"GEYS18_7_UNIT18"},{"$f":"unique_contracts!D6","v":"Online"},{"$f":"unique_contracts!J6","v":0},{"$f":"unique_contracts!M6","v":"NotHybrid"},{"$f":"unique_contracts!N6","v":0},{"$f":"unique_contracts!P6","v":0},{"$f":"unique_contracts!R6","v":0},{"$f":"unique_contracts!V6","v":0},{"$f":"unique_contracts!AB6","v":"Buy"},{"$f":"unique_contracts!AM6","v":2022},{"$f":"unique_contracts!AN6","v":7},{"$f":"unique_contracts!AO6","v":1},{"$f":"unique_contracts!AP6","v":2032},{"$f":"unique_contracts!AQ6","v":12},{"$f":"unique_contracts!AR6","v":31},{"$f":"unique_contracts!BP6","v":"EnergyOnly"},0,{"$f":"IFERROR(IF(AND(I6>0,E6=\"NotHybrid\"),_xlfn.CONCAT(MAX(MIN(ROUNDDOWN(I6/D6,0),8),4),INDEX(resources!$G:$G,MATCH(B6,resources!$A:$A,0))),INDEX(resources!$G:$G,MATCH(B6,resources!$A:$A,0))),\"n/a\")","v":"geothermal"},"n/a","geothermal",2023,2032,1,1,{"$f":"MIN((IFERROR(IF(AND($V6<=Z$1,$W6>=Z$1),INDEX(Reliability!E$23:E$50,MATCH($S6,Reliability!$C$23:$C$50,0)),0),0)*IF($T6=\"n/a\",$D6*$Y6,$G6)+IFERROR(IF(AND($V6<=Z$1,$W6>=Z$1),INDEX(Reliability!E$23:E$50,MATCH($T6,Reliability!$C$23:$C$50,0)),0),0)*$H6*$X6*$Y6),$D6)*$R6","v":0},{"$f":"MIN((IFERROR(IF(AND($V6<=AA$1,$W6>=AA$1),INDEX(Reliability!F$23:F$50,MATCH($S6,Reliability!$C$23:$C$50,0)),0),0)*IF($T6=\"n/a\",$D6*$Y6,$G6)+IFERROR(IF(AND($V6<=AA$1,$W6>=AA$1),INDEX(Reliability!F$23:F$50,MATCH($T6,Reliability!$C$23:$C$50,0)),0),0)*$H6*$X6*$Y6),$D6)*$R6","v":0},{"$f":"MIN((IFERROR(IF(AND($V6<=AB$1,$W6>=AB$1),INDEX(Reliability!G$23:G$50,MATCH($S6,Reliability!$C$23:$C$50,0)),0),0)*IF($T6=\"n/a\",$D6*$Y6,$G6)+IFERROR(IF(AND($V6<=AB$1,$W6>=AB$1),INDEX(Reliability!G$23:G$50,MATCH($T6,Reliability!$C$23:$C$50,0)),0),0)*$H6*$X6*$Y6),$D6)*$R6","v":0},{"$f":"MIN((IFERROR(IF(AND($V6<=AC$1,$W6>=AC$1),INDEX(Reliability!H$23:H$50,MATCH($S6,Reliability!$C$23:$C$50,0)),0),0)*IF($T6=\"n/a\",$D6*$Y6,$G6)+IFERROR(IF(AND($V6<=AC$1,$W6>=AC$1),INDEX(Reliability!H$23:H$50,MATCH($T6,Reliability!$C$23:$C$50,0)),0),0)*$H6*$X6*$Y6),$D6)*$R6","v":0},{"$f":"MIN((IFERROR(IF(AND($V6<=AD$1,$W6>=AD$1),INDEX(Reliability!I$23:I$50,MATCH($S6,Reliability!$C$23:$C$50,0)),0),0)*IF($T6=\"n/a\",$D6*$Y6,$G6)+IFERROR(IF(AND($V6<=AD$1,$W6>=AD$1),INDEX(Reliability!I$23:I$50,MATCH($T6,Reliability!$C$23:$C$50,0)),0),0)*$H6*$X6*$Y6),$D6)*$R6","v":0},{"$f":"MIN((IFERROR(IF(AND($V6<=AE$1,$W6>=AE$1),INDEX(Reliability!J$23:J$50,MATCH($S6,Reliability!$C$23:$C$50,0)),0),0)*IF($T6=\"n/a\",$D6*$Y6,$G6)+IFERROR(IF(AND($V6<=AE$1,$W6>=AE$1),INDEX(Reliability!J$23:J$50,MATCH($T6,Reliability!$C$23:$C$50,0)),0),0)*$H6*$X6*$Y6),$D6)*$R6","v":0},{"$f":"MIN((IFERROR(IF(AND($V6<=AF$1,$W6>=AF$1),INDEX(Reliability!K$23:K$50,MATCH($S6,Reliability!$C$23:$C$50,0)),0),0)*IF($T6=\"n/a\",$D6*$Y6,$G6)+IFERROR(IF(AND($V6<=AF$1,$W6>=AF$1),INDEX(Reliability!K$23:K$50,MATCH($T6,Reliability!$C$23:$C$50,0)),0),0)*$H6*$X6*$Y6),$D6)*$R6","v":0},{"$f":"MIN((IFERROR(IF(AND($V6<=AG$1,$W6>=AG$1),INDEX(Reliability!L$23:L$50,MATCH($S6,Reliability!$C$23:$C$50,0)),0),0)*IF($T6=\"n/a\",$D6*$Y6,$G6)+IFERROR(IF(AND($V6<=AG$1,$W6>=AG$1),INDEX(Reliability!L$23:L$50,MATCH($T6,Reliability!$C$23:$C$50,0)),0),0)*$H6*$X6*$Y6),$D6)*$R6","v":0},{"$f":"MIN((IFERROR(IF(AND($V6<=AH$1,$W6>=AH$1),INDEX(Reliability!M$23:M$50,MATCH($S6,Reliability!$C$23:$C$50,0)),0),0)*IF($T6=\"n/a\",$D6*$Y6,$G6)+IFERROR(IF(AND($V6<=AH$1,$W6>=AH$1),INDEX(Reliability!M$23:M$50,MATCH($T6,Reliability!$C$23:$C$50,0)),0),0)*$H6*$X6*$Y6),$D6)*$R6","v":0},{"$f":"MIN((IFERROR(IF(AND($V6<=AI$1,$W6>=AI$1),INDEX(Reliability!N$23:N$50,MATCH($S6,Reliability!$C$23:$C$50,0)),0),0)*IF($T6=\"n/a\",$D6*$Y6,$G6)+IFERROR(IF(AND($V6<=AI$1,$W6>=AI$1),INDEX(Reliability!N$23:N$50,MATCH($T6,Reliability!$C$23:$C$50,0)),0),0)*$H6*$X6*$Y6),$D6)*$R6","v":0},{"$f":"MIN((IFERROR(IF(AND($V6<=AJ$1,$W6>=AJ$1),INDEX(Reliability!O$23:O$50,MATCH($S6,Reliability!$C$23:$C$50,0)),0),0)*IF($T6=\"n/a\",$D6*$Y6,$G6)+IFERROR(IF(AND($V6<=AJ$1,$W6>=AJ$1),INDEX(Reliability!O$23:O$50,MATCH($T6,Reliability!$C$23:$C$50,0)),0),0)*$H6*$X6*$Y6),$D6)*$R6","v":0},{"$f":"MIN((IFERROR(IF(AND($V6<=AK$1,$W6>=AK$1),INDEX(Reliability!P$23:P$50,MATCH($S6,Reliability!$C$23:$C$50,0)),0),0)*IF($T6=\"n/a\",$D6*$Y6,$G6)+IFERROR(IF(AND($V6<=AK$1,$W6>=AK$1),INDEX(Reliability!P$23:P$50,MATCH($T6,Reliability!$C$23:$C$50,0)),0),0)*$H6*$X6*$Y6),$D6)*$R6","v":0}]
[null,{"$f":"unique_contracts!B7","v":"GEYS18_7_UNIT18"},{"$f":"unique_contracts!D7","v":"Online"},{"$f":"unique_contracts!J7","v":35},{"$f":"unique_contracts!M7","v":"NotHybrid"},{"$f":"unique_contracts!N7","v":0},{"$f":"unique_contracts!P7","v":0},{"$f":"unique_contracts!R7","v":0},{"$f":"unique_contracts!V7","v":0},{"$f":"unique_contracts!AB7","v":"Buy"},{"$f":"unique_contracts!AM7","v":2022},{"$f":"unique_contracts!AN7","v":1},{"$f":"unique_contracts!AO7","v":1},{"$f":"unique_contracts!AP7","v":2032},{"$f":"unique_contracts!AQ7","v":6},{"$f":"unique_contracts!AR7","v":30},{"$f":"unique_contracts!BP7","v":"CapacityOnly"},1,{"$f":"IFERROR(IF(AND(I7>0,E7=\"NotHybrid\"),_xlfn.CONCAT(MAX(MIN(ROUNDDOWN(I7/D7,0),8),4),INDEX(resources!$G:$G,MATCH(B7,resources!$A:$A,0))),INDEX(resources!$G:$G,MATCH(B7,resources!$A:$A,0))),\"n/a\")","v":"geothermal"},"n/a","geothermal",2022,2031,1,1,{"$f":"MIN((IFERROR(IF(AND($V7<=Z$1,$W7>=Z$1),INDEX(Reliability!E$23:E$50,MATCH($S7,Reliability!$C$23:$C$50,0)),0),0)*IF($T7=\"n/a\",$D7*$Y7,$G7)+IFERROR(IF(AND($V7<=Z$1,$W7>=Z$1),INDEX(Reliability!E$23:E$50,MATCH($T7,Reliability!$C$23:$C$50,0)),0),0)*$H7*$X7*$Y7),$D7)*$R7","v":30.112507388492745},{"$f":"MIN((IFERROR(IF(AND($V7<=AA$1,$W7>=AA$1),INDEX(Reliability!F$23:F$50,MATCH($S7,Reliability!$C$23:$C$50,0)),0),0)*IF($T7=\"n/a\",$D7*$Y7,$G7)+IFERROR(IF(AND($V7<=AA$1,$W7>=AA$1),INDEX(Reliability!F$23:F$50,MATCH($T7,Reliability!$C$23:$C$50,0)),0),0)*$H7*$X7*$Y7),$D7)*$R7","v":31.095897831886479},{"$f":"MIN((IFERROR(IF(AND($V7<=AB$1,$W7>=AB$1),INDEX(Reliability!G$23:G$50,MATCH($S7,Reliability!$C$23:$C$50,0)),0),0)*IF($T7=\"n/a\",$D7*$Y7,$G7)+IFERROR(IF(AND($V7<=AB$1,$W7>=AB$1),INDEX(Reliability!G$23:G$50,MATCH($T7,Reliability!$C$23:$C$50,0)),0),0)*$H7*$X7*$Y7),$D7)*$R7","v":32.079288275280206},{"$f":"MIN((IFERROR(IF(AND($V7<=AC$1,$W7>=AC$1),INDEX(Reliability!H$23:H$50,MATCH($S7,Reliability!$C$23:$C$50,0)),0),0)*IF($T7=\"n/a\",$D7*$Y7,$G7)+IFERROR(IF(AND($V7<=AC$1,$W7>=AC$1),INDEX(Reliability!H$23:H$50,MATCH($T7,Reliability!$C$23:$C$50,0)),0),0)*$H7*$X7*$Y7),$D7)*$R7","v":32.249540764422768},{"$f":"MIN((IFERROR(IF(AND($V7<=AD$1,$W7>=AD$1),INDEX(Reliability!I$23:I$50,MATCH($S7,Reliability!$C$23:$C$50,0)),0),0)*IF($T7=\"n/a\",$D7*$Y7,$G7)+IFERROR(IF(AND($V7<=AD$1,$W7>=AD$1),INDEX(Reliability!I$23:I$50,MATCH($T7,Reliability!$C$23:$C$50,0)),0),0)*$H7*$X7*$Y7),$D7)*$R7","v":32.419793253565324},{"$f":"MIN((IFERROR(IF(AND($V7<=AE$1,$W7>=AE$1),INDEX(Reliability!J$23:J$50,MATCH($S7,Reliability!$C$23:$C$50,0)),0),0)*IF($T7=\"n/a\",$D7*$Y7,$G7)+IFERROR(IF(AND($V7<=AE$1,$W7>=AE$1),INDEX(Reliability!J$23:J$50,MATCH($T7,Reliability!$C$23:$C$50,0)),0),0)*$H7*$X7*$Y7),$D7)*$R7","v":32.16731640547755},{"$f":"MIN((IFERROR(IF(AND($V7<=AF$1,$W7>=AF$1),INDEX(Reliability!K$23:K$50,MATCH($S7,Reliability!$C$23:$C$50,0)),0),0)*IF($T7=\"n/a\",$D7*$Y7,$G7)+IFERROR(IF(AND($V7<=AF$1,$W7>=AF$1),INDEX(Reliability!K$23:K$50,MATCH($T7,Reliability!$C$23:$C$50,0)),0),0)*$H7*$X7*$Y7),$D7)*$R7","v":31.914839557389776},{"$f":"MIN((IFERROR(IF(AND($V7<=AG$1,$W7>=AG$1),INDEX(Reliability!L$23:L$50,MATCH($S7,Reliability!$C$23:$C$50,0)),0),0)*IF($T7=\"n/a\",$D7*$Y7,$G7)+IFERROR(IF(AND($V7<=AG$1,$W7>=AG$1),INDEX(Reliability!L$23:L$50,MATCH($T7,Reliability!$C$23:$C$50,0)),0),0)*$H7*$X7*$Y7),$D7)*$R7","v":32.184528977427121},{"$f":"MIN((IFERROR(IF(AND($V7<=AH$1,$W7>=AH$1),INDEX(Reliability!M$23:M$50,MATCH($S7,Reliability!$C$23:$C$50,0)),0),0)*IF($T7=\"n/a\",$D7*$Y7,$G7)+IFERROR(IF(AND($V7<=AH$1,$W7>=AH$1),INDEX(Reliability!M$23:M$50,MATCH($T7,Reliability!$C$23:$C$50,0)),0),0)*$H7*$X7*$Y7),$D7)*$R7","v":0},{"$f":"MIN((IFERROR(IF(AND($V7<=AI$1,$W7>=AI$1),INDEX(Reliability!N$23:N$50,MATCH($S7,Reliability!$C$23:$C$50,0)),0),0)*IF($T7=\"n/a\",$D7*$Y7,$G7)+IFERROR(IF(AND($V7<=AI$1,$W7>=AI$1),INDEX(Reliability!N$23:N$50,MATCH($T7,Reliability!$C$23:$C$50,0)),0),0)*$H7*$X7*$Y7),$D7)*$R7","v":0},{"$f":"MIN((IFERROR(IF(AND($V7<=AJ$1,$W7>=AJ$1),INDEX(Reliability!O$23:O$50,MATCH($S7,Reliability!$C$23:$C$50,0)),0),0)*IF($T7=\"n/a\",$D7*$Y7,$G7)+IFERROR(IF(AND($V7<=AJ$1,$W7>=AJ$1),INDEX(Reliability!O$23:O$50,MATCH($T7,Reliability!$C$23:$C$50,0)),0),0)*$H7*$X7*$Y7),$D7)*$R7","v":0},{"$f":"MIN((IFERROR(IF(AND($V7<=AK$1,$W7>=AK$1),INDEX(Reliability!P$23:P$50,MATCH($S7,Reliability!$C$23:$C$50,0)),0),0)*IF($T7=\"n/a\",$D7*$Y7,$G7)+IFERROR(IF(AND($V7<=AK$1,$W7>=AK$1),INDEX(Reliability!P$23:P$50,MATCH($T7,Reliability!$C$23:$C$50,0)),0),0)*$H7*$X7*$Y7),$D7)*$R7","v":0}]
[null,{"$f":"unique_contracts!B8","v":"_CREZ_GENERIC_GREATER_IMPERIAL_GEOTHERMAL"},{"$f":"unique_contracts!D8","v":"Development"},{"$f":"unique_contracts!J8","v":26},{"$f":"unique_contracts!M8","v":"NotHybrid"},{"$f":"unique_contracts!N8","v":0},{"$f":"unique_contracts!P8","v":0},{"$f":"unique_contracts!R8","v":0},{"$f":"unique_contracts!V8","v":0},{"$f":"unique_contracts!AB8","v":"Buy"},{"$f":"unique_contracts!AM8","v":2023},{"$f":"unique_contracts!AN8","v":1},{"$f":"unique_contracts!AO8","v":1},{"$f":"unique_contracts!AP8","v":2037},{"$f":"unique_contracts!AQ8","v":12},{"$f":"unique_contracts!AR8","v":31},{"$f":"unique_contracts!BP8","v":"EnergyCapacity"},1,{"$f":"IFERROR(IF(AND(I8>0,E8=\"NotHybrid\"),_xlfn.CONCAT(MAX(MIN(ROUNDDOWN(I8/D8,0),8),4),INDEX(resources!$G:$G,MATCH(B8,resources!$A:$A,0))),INDEX(resources!$G:$G,MATCH(B8,resources!$A:$A,0))),\"n/a\")","v":"geothermal"},"n/a","geothermal",2023,2037,1,1,{"$f":"MIN((IFERROR(IF(AND($V8<=Z$1,$W8>=Z$1),INDEX(Reliability!E$23:E$50,MATCH($S8,Reliability!$C$23:$C$50,0)),0),0)*IF($T8=\"n/a\",$D8*$Y8,$G8)+IFERROR(IF(AND($V8<=Z$1,$W8>=Z$1),INDEX(Reliability!E$23:E$50,MATCH($T8,Reliability!$C$23:$C$50,0)),0),0)*$H8*$X8*$Y8),$D8)*$R8","v":22.369291202880326},{"$f":"MIN((IFERROR(IF(AND($V8<=AA$1,$W8>=AA$1),INDEX(Reliability!F$23:F$50,MATCH($S8,Reliability!$C$23:$C$50,0)),0),0)*IF($T8=\"n/a\",$D8*$Y8,$G8)+IFERROR(IF(AND($V8<=AA$1,$W8>=AA$1),INDEX(Reliability!F$23:F$50,MATCH($T8,Reliability!$C$23:$C$50,0)),0),0)*$H8*$X8*$Y8),$D8)*$R8","v":23.099809817972812},{"$f":"MIN((IFERROR(IF(AND($V8<=AB$1,$W8>=AB$1),INDEX(Reliability!G$23:G$50,MATCH($S8,Reliability!$C$23:$C$50,0)),0),0)*IF($T8=\"n/a\",$D8*$Y8,$G8)+IFERROR(IF(AND($V8<=AB$1,$W8>=AB$1),INDEX(Reliability!G$23:G$50,MATCH($T8,Reliability!$C$23:$C$50,0)),0),0)*$H8*$X8*$Y8),$D8)*$R8","v":23.830328433065297},{"$f":"MIN((IFERROR(IF(AND($V8<=AC$1,$W8>=AC$1),INDEX(Reliability!H$23:H$50,MATCH($S8,Reliability!$C$23:$C$50,0)),0),0)*IF($T8=\"n/a\",$D8*$Y8,$G8)+IFERROR(IF(AND($V8<=AC$1,$W8>=AC$1),INDEX(Reliability!H$23:H$50,MATCH($T8,Reliability!$C$23:$C$50,0)),0),0)*$H8*$X8*$Y8),$D8)*$R8","v":23.956801710714057},{"$f":"MIN((IFERROR(IF(AND($V8<=AD$1,$W8>=AD$1),INDEX(Reliability!I$23:I$50,MATCH($S8,Reliability!$C$23:$C$50,0)),0),0)*IF($T8=\"n/a\",$D8*$Y8,$G8)+IFERROR(IF(AND($V8<=AD$1,$W8>=AD$1),INDEX(Reliability!I$23:I$50,MATCH($T8,Reliability!$C$23:$C$50,0)),0),0)*$H8*$X8*$Y8),$D8)*$R8","v":24.083274988362813},{"$f":"MIN((IFERROR(IF(AND($V8<=AE$1,$W8>=AE$1),INDEX(Reliability!J$23:J$50,MATCH($S8,Reliability!$C$23:$C$50,0)),0),0)*IF($T8=\"n/a\",$D8*$Y8,$G8)+IFERROR(IF(AND($V8<=AE$1,$W8>=AE$1),INDEX(Reliability!J$23:J$50,MATCH($T8,Reliability!$C$23:$C$50,0)),0),0)*$H8*$X8*$Y8),$D8)*$R8","v":23.895720758354752},{"$f":"MIN((IFERROR(IF(AND($V8<=AF$1,$W8>=AF$1),INDEX(Reliability!K$23:K$50,MATCH($S8,Reliability!$C$23:$C$50,0)),0),0)*IF($T8=\"n/a\",$D8*$Y8,$G8)+IFERROR(IF(AND($V8<=AF$1,$W8>=AF$1),INDEX(Reliability!K$23:K$50,MATCH($T8,Reliability!$C$23:$C$50,0)),0),0)*$H8*$X8*$Y8),$D8)*$R8","v":23.708166528346691},{"$f":"MIN((IFERROR(IF(AND($V8<=AG$1,$W8>=AG$1),INDEX(Reliability!L$23:L$50,MATCH($S8,Reliability!$C$23:$C$50,0)),0),0)*IF($T8=\"n/a\",$D8*$Y8,$G8)+IFERROR(IF(AND($V8<=AG$1,$W8>=AG$1),INDEX(Reliability!L$23:L$50,MATCH($T8,Reliability!$C$23:$C$50,0)),0),0)*$H8*$X8*$Y8),$D8)*$R8","v":23.908507240374433},{"$f":"MIN((IFERROR(IF(AND($V8<=AH$1,$W8>=AH$1),INDEX(Reliability!M$23:M$50,MATCH($S8,Reliability!$C$23:$C$50,0)),0),0)*IF($T8=\"n/a\",$D8*$Y8,$G8)+IFERROR(IF(AND($V8<=AH$1,$W8>=AH$1),INDEX(Reliability!M$23:M$50,MATCH($T8,Reliability!$C$23:$C$50,0)),0),0)*$H8*$X8*$Y8),$D8)*$R8","v":24.108847952402179},{"$f":"MIN((IFERROR(IF(AND($V8<=AI$1,$W8>=AI$1),INDEX(Reliability!N$23:N$50,MATCH($S8,Reliability!$C$23:$C$50,0)),0),0)*IF($T8=\"n/a\",$D8*$Y8,$G8)+IFERROR(IF(AND($V8<=AI$1,$W8>=AI$1),INDEX(Reliability!N$23:N$50,MATCH($T8,Reliability!$C$23:$C$50,0)),0),0)*$H8*$X8*$Y8),$D8)*$R8","v":24.309188664429925},{"$f":"MIN((IFERROR(IF(AND($V8<=AJ$1,$W8>=AJ$1),INDEX(Reliability!O$23:O$50,MATCH($S8,Reliability!$C$23:$C$50,0)),0),0)*IF($T8=\"n/a\",$D8*$Y8,$G8)+IFERROR(IF(AND($V8<=AJ$1,$W8>=AJ$1),INDEX(Reliability!O$23:O$50,MATCH($T8,Reliability!$C$23:$C$50,0)),0),0)*$H8*$X8*$Y8),$D8)*$R8","v":24.509529376457671},{"$f":"MIN((IFERROR(IF(AND($V8<=AK$1,$W8>=AK$1),INDEX(Reliability!P$23:P$50,MATCH($S8,Reliability!$C$23:$C$50,0)),0),0)*IF($T8=\"n/a\",$D8*$Y8,$G8)+IFERROR(IF(AND($V8<=AK$1,$W8>=AK$1),INDEX(Reliability!P$23:P$50,MATCH($T8,Reliability!$C$23:$C$50,0)),0),0)*$H8*$X8*$Y8),$D8)*$R8","v":24.709870088485413}]
[null,{"$f":"unique_contracts!B9","v":"_NEW_GENERIC_GEOTHERMAL"},{"$f":"unique_contracts!D9","v":"Development"},{"$f":"unique_contracts!J9","v":2.3140000000000001},{"$f":"unique_contracts!M9","v":"NotHybrid"},{"$f":"unique_contracts!N9","v":0},{"$f":"unique_contracts!P9","v":0},{"$f":"unique_contracts!R9","v":0},{"$f":"unique_contracts!V9","v":0},{"$f":"unique_contracts!AB9","v":"Buy"},{"$f":"unique_contracts!AM9","v":2024},{"$f":"unique_contracts!AN9","v":6},{"$f":"unique_contracts!AO9","v":1},{"$f":"unique_contracts!AP9","v":2044},{"$f":"unique_contracts!AQ9","v":5},{"$f":"unique_contracts!AR9","v":31},{"$f":"unique_contracts!BP9","v":"EnergyCapacity"},1,{"$f":"IFERROR(IF(AND(I9>0,E9=\"NotHybrid\"),_xlfn.CONCAT(MAX(MIN(ROUNDDOWN(I9/D9,0),8),4),INDEX(resources!$G:$G,MATCH(B9,resources!$A:$A,0))),INDEX(resources!$G:$G,MATCH(B9,resources!$A:$A,0))),\"n/a\")","v":"geothermal"},"n/a","geothermal",2024,2043,1,1,{"$f":"MIN((IFERROR(IF(AND($V9<=Z$1,$W9>=Z$1),INDEX(Reliability!E$23:E$50,MATCH($S9,Reliability!$C$23:$C$50,0)),0),0)*IF($T9=\"n/a\",$D9*$Y9,$G9)+IFERROR(IF(AND($V9<=Z$1,$W9>=Z$1),INDEX(Reliability!E$23:E$50,MATCH($T9,Reliability!$C$23:$C$50,0)),0),0)*$H9*$X9*$Y9),$D9)*$R9","v":1.9908669170563489},{"$f":"MIN((IFERROR(IF(AND($V9<=AA$1,$W9>=AA$1),INDEX(Reliability!F$23:F$50,MATCH($S9,Reliability!$C$23:$C$50,0)),0),0)*IF($T9=\"n/a\",$D9*$Y9,$G9)+IFERROR(IF(AND($V9<=AA$1,$W9>=AA$1),INDEX(Reliability!F$23:F$50,MATCH($T9,Reliability!$C$23:$C$50,0)),0),0)*$H9*$X9*$Y9),$D9)*$R9","v":2.0558830737995804},{"$f":"MIN((IFERROR(IF(AND($V9<=AB$1,$W9>=AB$1),INDEX(Reliability!G$23:G$50,MATCH($S9,Reliability!$C$23:$C$50,0)),0),0)*IF($T9=\"n/a\",$D9*$Y9,$G9)+IFERROR(IF(AND($V9<=AB$1,$W9>=AB$1),INDEX(Reliability!G$23:G$50,MATCH($T9,Reliability!$C$23:$C$50,0)),0),0)*$H9*$X9*$Y9),$D9)*$R9","v":2.1208992305428116},{"$f":"MIN((IFERROR(IF(AND($V9<=AC$1,$W9>=AC$1),INDEX(Reliability!H$23:H$50,MATCH($S9,Reliability!$C$23:$C$50,0)),0),0)*IF($T9=\"n/a\",$D9*$Y9,$G9)+IFERROR(IF(AND($V9<=AC$1,$W9>=AC$1),INDEX(Reliability!H$23:H$50,MATCH($T9,Reliability!$C$23:$C$50,0)),0),0)*$H9*$X9*$Y9),$D9)*$R9","v":2.1321553522535508},{"$f":"MIN((IFERROR(IF(AND($V9<=AD$1,$W9>=AD$1),INDEX(Reliability!I$23:I$50,MATCH($S9,Reliability!$C$23:$C$50,0)),0),0)*IF($T9=\"n/a\",$D9*$Y9,$G9)+IFERROR(IF(AND($V9<=AD$1,$W9>=AD$1),INDEX(Reliability!I$23:I$50,MATCH($T9,Reliability!$C$23:$C$50,0)),0),0)*$H9*$X9*$Y9),$D9)*$R9","v":2.1434114739642904},{"$f":"MIN((IFERROR(IF(AND($V9<=AE$1,$W9>=AE$1),INDEX(Reliability!J$23:J$50,MATCH($S9,Reliability!$C$23:$C$50,0)),0),0)*IF($T9=\"n/a\",$D9*$Y9,$G9)+IFERROR(IF(AND($V9<=AE$1,$W9>=AE$1),INDEX(Reliability!J$23:J$50,MATCH($T9,Reliability!$C$23:$C$50,0)),0),0)*$H9*$X9*$Y9),$D9)*$R9","v":2.1267191474935729},{"$f":"MIN((IFERROR(IF(AND($V9<=AF$1,$W9>=AF$1),INDEX(Reliability!K$23:K$50,MATCH($S9,Reliability!$C$23:$C$50,0)),0),0)*IF($T9=\"n/a\",$D9*$Y9,$G9)+IFERROR(IF(AND($V9<=AF$1,$W9>=AF$1),INDEX(Reliability!K$23:K$50,MATCH($T9,Reliability!$C$23:$C$50,0)),0),0)*$H9*$X9*$Y9),$D9)*$R9","v":2.1100268210228554},{"$f":"MIN((IFERROR(IF(AND($V9<=AG$1,$W9>=AG$1),INDEX(Reliability!L$23:L$50,MATCH($S9,Reliability!$C$23:$C$50,0)),0),0)*IF($T9=\"n/a\",$D9*$Y9,$G9)+IFERROR(IF(AND($V9<=AG$1,$W9>=AG$1),INDEX(Reliability!L$23:L$50,MATCH($T9,Reliability!$C$23:$C$50,0)),0),0)*$H9*$X9*$Y9),$D9)*$R9","v":2.127857144393325},{"$f":"MIN((IFERROR(IF(AND($V9<=AH$1,$W9>=AH$1),INDEX(Reliability!M$23:M$50,MATCH($S9,Reliability!$C$23:$C$50,0)),0),0)*IF($T9=\"n/a\",$D9*$Y9,$G9)+IFERROR(IF(AND($V9<=AH$1,$W9>=AH$1),INDEX(Reliability!M$23:M$50,MATCH($T9,Reliability!$C$23:$C$50,0)),0),0)*$H9*$X9*$Y9),$D9)*$R9","v":2.145687467763794},{"$f":"MIN((IFERROR(IF(AND($V9<=AI$1,$W9>=AI$1),INDEX(Reliability!N$23:N$50,MATCH($S9,Reliability!$C$23:$C$50,0)),0),0)*IF($T9=\"n/a\",$D9*$Y9,$G9)+IFERROR(IF(AND($V9<=AI$1,$W9>=AI$1),INDEX(Reliability!N$23:N$50,MATCH($T9,Reliability!$C$23:$C$50,0)),0),0)*$H9*$X9*$Y9),$D9)*$R9","v":2.1635177911342636},{"$f":"MIN((IFERROR(IF(AND($V9<=AJ$1,$W9>=AJ$1),INDEX(Reliability!O$23:O$50,MATCH($S9,Reliability!$C$23:$C$50,0)),0),0)*IF($T9=\"n/a\",$D9*$Y9,$G9)+IFERROR(IF(AND($V9<=AJ$1,$W9>=AJ$1),INDEX(Reliability!O$23:O$50,MATCH($T9,Reliability!$C$23:$C$50,0)),0),0)*$H9*$X9*$Y9),$D9)*$R9","v":2.1813481145047326},{"$f":"MIN((IFERROR(IF(AND($V9<=AK$1,$W9>=AK$1),INDEX(Reliability!P$23:P$50,MATCH($S9,Reliability!$C$23:$C$50,0)),0),0)*IF($T9=\"n/a\",$D9*$Y9,$G9)+IFERROR(IF(AND($V9<=AK$1,$W9>=AK$1),INDEX(Reliability!P$23:P$50,MATCH($T9,Reliability!$C$23:$C$50,0)),0),0)*$H9*$X9*$Y9),$D9)*$R9","v":2.1991784378752017}]
[null,{"$f":"unique_contracts!B10","v":"_NEW_GENERIC_GEOTHERMAL"},{"$f":"unique_contracts!D10","v":"Development"},{"$f":"unique_contracts!J10","v":2.8500000000000005},{"$f":"unique_contracts!M10","v":"NotHybrid"},{"$f":"unique_contracts!N10","v":0},{"$f":"unique_contracts!P10","v":0},{"$f":"unique_contracts!R10","v":0},{"$f":"unique_contracts!V10","v":0},{"$f":"unique_contracts!AB10","v":"Buy"},{"$f":"unique_contracts!AM10","v":2024},{"$f":"unique_contracts!AN10","v":10},{"$f":"unique_contracts!AO10","v":1},{"$f":"unique_contracts!AP10","v":2044},{"$f":"unique_contracts!AQ10","v":9},{"$f":"unique_contracts!AR10","v":30},{"$f":"unique_contracts!BP10","v":"EnergyCapacity"},1,{"$f":"IFERROR(IF(AND(I10>0,E10=\"NotHybrid\"),_xlfn.CONCAT(MAX(MIN(ROUNDDOWN(I10/D10,0),8),4),INDEX(resources!$G:$G,MATCH(B10,resources!$A:$A,0))),INDEX(resources!$G:$G,MATCH(B10,resources!$A:$A,0))),\"n/a\")","v":"geothermal"},"n/a","geothermal",2025,2043,1,1,{"$f":"MIN((IFERROR(IF(AND($V10<=Z$1,$W10>=Z$1),INDEX(Reliability!E$23:E$50,MATCH($S10,Reliability!$C$23:$C$50,0)),0),0)*IF($T10=\"n/a\",$D10*$Y10,$G10)+IFERROR(IF(AND($V10<=Z$1,$W10>=Z$1),INDEX(Reliability!E$23:E$50,MATCH($T10,Reliability!$C$23:$C$50,0)),0),0)*$H10*$X10*$Y10),$D10)*$R10","v":0},{"$f":"MIN((IFERROR(IF(AND($V10<=AA$1,$W10>=AA$1),INDEX(Reliability!F$23:F$50,MATCH($S10,Reliability!$C$23:$C$50,0)),0),0)*IF($T10=\"n/a\",$D10*$Y10,$G10)+IFERROR(IF(AND($V10<=AA$1,$W10>=AA$1),INDEX(Reliability!F$23:F$50,MATCH($T10,Reliability!$C$23:$C$50,0)),0),0)*$H10*$X10*$Y10),$D10)*$R10","v":2.532094537739328},{"$f":"MIN((IFERROR(IF(AND($V10<=AB$1,$W10>=AB$1),INDEX(Reliability!G$23:G$50,MATCH($S10,Reliability!$C$23:$C$50,0)),0),0)*IF($T10=\"n/a\",$D10*$Y10,$G10)+IFERROR(IF(AND($V10<=AB$1,$W10>=AB$1),INDEX(Reliability!G$23:G$50,MATCH($T10,Reliability!$C$23:$C$50,0)),0),0)*$H10*$X10*$Y10),$D10)*$R10","v":2.6121706167013889},{"$f":"MIN((IFERROR(IF(AND($V10<=AC$1,$W10>=AC$1),INDEX(Reliability!H$23:H$50,MATCH($S10,Reliability!$C$23:$C$50,0)),0),0)*IF($T10=\"n/a\",$D10*$Y10,$G10)+IFERROR(IF(AND($V10<=AC$1,$W10>=AC$1),INDEX(Reliability!H$23:H$50,MATCH($T10,Reliability!$C$23:$C$50,0)),0),0)*$H10*$X10*$Y10),$D10)*$R10","v":2.6260340336744257},{"$f":"MIN((IFERROR(IF(AND($V10<=AD$1,$W10>=AD$1),INDEX(Reliability!I$23:I$50,MATCH($S10,Reliability!$C$23:$C$50,0)),0),0)*IF($T10=\"n/a\",$D10*$Y10,$G10)+IFERROR(IF(AND($V10<=AD$1,$W10>=AD$1),INDEX(Reliability!I$23:I$50,MATCH($T10,Reliability!$C$23:$C$50,0)),0),0)*$H10*$X10*$Y10),$D10)*$R10","v":2.6398974506474628},{"$f":"MIN((IFERROR(IF(AND($V10<=AE$1,$W10>=AE$1),INDEX(Reliability!J$23:J$50,MATCH($S10,Reliability!$C$23:$C$50,0)),0),0)*IF($T10=\"n/a\",$D10*$Y10,$G10)+IFERROR(IF(AND($V10<=AE$1,$W10>=AE$1),INDEX(Reliability!J$23:J$50,MATCH($T10,Reliability!$C$23:$C$50,0)),0),0)*$H10*$X10*$Y10),$D10)*$R10","v":2.6193386215888865},{"$f":"MIN((IFERROR(IF(AND($V10<=AF$1,$W10>=AF$1),INDEX(Reliability!K$23:K$50,MATCH($S10,Reliability!$C$23:$C$50,0)),0),0)*IF($T10=\"n/a\",$D10*$Y10,$G10)+IFERROR(IF(AND($V10<=AF$1,$W10>=AF$1),INDEX(Reliability!K$23:K$50,MATCH($T10,Reliability!$C$23:$C$50,0)),0),0)*$H10*$X10*$Y10),$D10)*$R10","v":2.5987797925303107},{"$f":"MIN((IFERROR(IF(AND($V10<=AG$1,$W10>=AG$1),INDEX(Reliability!L$23:L$50,MATCH($S10,Reliability!$C$23:$C$50,0)),0),0)*IF($T10=\"n/a\",$D10*$Y10,$G10)+IFERROR(IF(AND($V10<=AG$1,$W10>=AG$1),INDEX(Reliability!L$23:L$50,MATCH($T10,Reliability!$C$23:$C$50,0)),0),0)*$H10*$X10*$Y10),$D10)*$R10","v":2.6207402167333518},{"$f":"MIN((IFERROR(IF(AND($V10<=AH$1,$W10>=AH$1),INDEX(Reliability!M$23:M$50,MATCH($S10,Reliability!$C$23:$C$50,0)),0),0)*IF($T10=\"n/a\",$D10*$Y10,$G10)+IFERROR(IF(AND($V10<=AH$1,$W10>=AH$1),INDEX(Reliability!M$23:M$50,MATCH($T10,Reliability!$C$23:$C$50,0)),0),0)*$H10*$X10*$Y10),$D10)*$R10","v":2.6427006409363933},{"$f":"MIN((IFERROR(IF(AND($V10<=AI$1,$W10>=AI$1),INDEX(Reliability!N$23:N$50,MATCH($S10,Reliability!$C$23:$C$50,0)),0),0)*IF($T10=\"n/a\",$D10*$Y10,$G10)+IFERROR(IF(AND($V10<=AI$1,$W10>=AI$1),INDEX(Reliability!N$23:N$50,MATCH($T10,Reliability!$C$23:$C$50,0)),0),0)*$H10*$X10*$Y10),$D10)*$R10","v":2.6646610651394345},{"$f":"MIN((IFERROR(IF(AND($V10<=AJ$1,$W10>=AJ$1),INDEX(Reliability!O$23:O$50,MATCH($S10,Reliability!$C$23:$C$50,0)),0),0)*IF($T10=\"n/a\",$D10*$Y10,$G10)+IFERROR(IF(AND($V10<=AJ$1,$W10>=AJ$1),INDEX(Reliability!O$23:O$50,MATCH($T10,Reliability!$C$23:$C$50,0)),0),0)*$H10*$X10*$Y10),$D10)*$R10","v":2.686621489342476},{"$f":"MIN((IFERROR(IF(AND($V10<=AK$1,$W10>=AK$1),INDEX(Reliability!P$23:P$50,MATCH($S10,Reliability!$C$23:$C$50,0)),0),0)*IF($T10=\"n/a\",$D10*$Y10,$G10)+IFERROR(IF(AND($V10<=AK$1,$W10>=AK$1),INDEX(Reliability!P$23:P$50,MATCH($T10,Reliability!$C$23:$C$50,0)),0),0)*$H10*$X10*$Y10),$D10)*$R10","v":2.7085819135455171}]
[null,{"$f":"unique_contracts!B11","v":"_NEW_GENERIC_GEOTHERMAL"},{"$f":"unique_contracts!D11","v":"Development"},{"$f":"unique_contracts!J11","v":3.5625000000000009},{"$f":"unique_contracts!M11","v":"NotHybrid"},{"$f":"unique_contracts!N11","v":0},{"$f":"unique_contracts!P11","v":0},{"$f":"unique_contracts!R11","v":0},{"$f":"unique_contracts!V11","v":0},{"$f":"unique_contracts!AB11","v":"Buy"},{"$f":"unique_contracts!AM11","v":2025},{"$f":"unique_contracts!AN11","v":1},{"$f":"unique_contracts!AO11","v":1},{"$f":"unique_contracts!AP11","v":2044},{"$f":"unique_contracts!AQ11","v":9},{"$f":"unique_contracts!AR11","v":30},{"$f":"unique_contracts!BP11","v":"EnergyCapacity"},1,{"$f":"IFERROR(IF(AND(I11>0,E11=\"NotHybrid\"),_xlfn.CONCAT(MAX(MIN(ROUNDDOWN(I11/D11,0),8),4),INDEX(resources!$G:$G,MATCH(B11,resources!$A:$A,0))),INDEX(resources!$G:$G,MATCH(B11,resources!$A:$A,0))),\"n/a\")","v":"geothermal"},"n/a","geothermal",2025,2043,1,1,{"$f":"MIN((IFERROR(IF(AND($V11<=Z$1,$W11>=Z$1),INDEX(Reliability!E$23:E$50,MATCH($S11,Reliability!$C$23:$C$50,0)),0),0)*IF($T11=\"n/a\",$D11*$Y11,$G11)+IFERROR(IF(AND($V11<=Z$1,$W11>=Z$1),INDEX(Reliability!E$23:E$50,MATCH($T11,Reliability!$C$23:$C$50,0)),0),0)*$H11*$X11*$Y11),$D11)*$R11","v":0},{"$f":"MIN((IFERROR(IF(AND($V11<=AA$1,$W11>=AA$1),INDEX(Reliability!F$23:F$50,MATCH($S11,Reliability!$C$23:$C$50,0)),0),0)*IF($T11=\"n/a\",$D11*$Y11,$G11)+IFERROR(IF(AND($V11<=AA$1,$W11>=AA$1),INDEX(Reliability!F$23:F$50,MATCH($T11,Reliability!$C$23:$C$50,0)),0),0)*$H11*$X11*$Y11),$D11)*$R11","v":3.1651181721741599},{"$f":"MIN((IFERROR(IF(AND($V11<=AB$1,$W11>=AB$1),INDEX(Reliability!G$23:G$50,MATCH($S11,Reliability!$C$23:$C$50,0)),0),0)*IF($T11=\"n/a\",$D11*$Y11,$G11)+IFERROR(IF(AND($V11<=AB$1,$W11>=AB$1),INDEX(Reliability!G$23:G$50,MATCH($T11,Reliability!$C$23:$C$50,0)),0),0)*$H11*$X11*$Y11),$D11)*$R11","v":3.2652132708767363},{"$f":"MIN((IFERROR(IF(AND($V11<=AC$1,$W11>=AC$1),INDEX(Reliability!H$23:H$50,MATCH($S11,Reliability!$C$23:$C$50,0)),0),0)*IF($T11=\"n/a\",$D11*$Y11,$G11)+IFERROR(IF(AND($V11<=AC$1,$W11>=AC$1),INDEX(Reliability!H$23:H$50,MATCH($T11,Reliability!$C$23:$C$50,0)),0),0)*$H11*$X11*$Y11),$D11)*$R11","v":3.2825425420930325},{"$f":"MIN((IFERROR(IF(AND($V11<=AD$1,$W11>=AD$1),INDEX(Reliability!I$23:I$50,MATCH($S11,Reliability!$C$23:$C$50,0)),0),0)*IF($T11=\"n/a\",$D11*$Y11,$G11)+IFERROR(IF(AND($V11<=AD$1,$W11>=AD$1),INDEX(Reliability!I$23:I$50,MATCH($T11,Reliability!$C$23:$C$50,0)),0),0)*$H11*$X11*$Y11),$D11)*$R11","v":3.2998718133093288},{"$f":"MIN((IFERROR(IF(AND($V11<=AE$1,$W11>=AE$1),INDEX(Reliability!J$23:J$50,MATCH($S11,Reliability!$C$23:$C$50,0)),0),0)*IF($T11=\"n/a\",$D11*$Y11,$G11)+IFERROR(IF(AND($V11<=AE$1,$W11>=AE$1),INDEX(Reliability!J$23:J$50,MATCH($T11,Reliability!$C$23:$C$50,0)),0),0)*$H11*$X11*$Y11),$D11)*$R11","v":3.2741732769861085},{"$f":"MIN((IFERROR(IF(AND($V11<=AF$1,$W11>=AF$1),INDEX(Reliability!K$23:K$50,MATCH($S11,Reliability!$C$23:$C$50,0)),0),0)*IF($T11=\"n/a\",$D11*$Y11,$G11)+IFERROR(IF(AND($V11<=AF$1,$W11>=AF$1),INDEX(Reliability!K$23:K$50,MATCH($T11,Reliability!$C$23:$C$50,0)),0),0)*$H11*$X11*$Y11),$D11)*$R11","v":3.2484747406628887},{"$f":"MIN((IFERROR(IF(AND($V11<=AG$1,$W11>=AG$1),INDEX(Reliability!L$23:L$50,MATCH($S11,Reliability!$C$23:$C$50,0)),0),0)*IF($T11=\"n/a\",$D11*$Y11,$G11)+IFERROR(IF(AND($V11<=AG$1,$W11>=AG$1),INDEX(Reliability!L$23:L$50,MATCH($T11,Reliability!$C$23:$C$50,0)),0),0)*$H11*$X11*$Y11),$D11)*$R11","v":3.2759252709166904},{"$f":"MIN((IFERROR(IF(AND($V11<=AH$1,$W11>=AH$1),INDEX(Reliability!M$23:M$50,MATCH($S11,Reliability!$C$23:$C$50,0)),0),0)*IF($T11=\"n/a\",$D11*$Y11,$G11)+IFERROR(IF(AND($V11<=AH$1,$W11>=AH$1),INDEX(Reliability!M$23:M$50,MATCH($T11,Reliability!$C$23:$C$50,0)),0),0)*$H11*$X11*$Y11),$D11)*$R11","v":3.3033758011704917},{"$f":"MIN((IFERROR(IF(AND($V11<=AI$1,$W11>=AI$1),INDEX(Reliability!N$23:N$50,MATCH($S11,Reliability!$C$23:$C$50,0)),0),0)*IF($T11=\"n/a\",$D11*$Y11,$G11)+IFERROR(IF(AND($V11<=AI$1,$W11>=AI$1),INDEX(Reliability!N$23:N$50,MATCH($T11,Reliability!$C$23:$C$50,0)),0),0)*$H11*$X11*$Y11),$D11)*$R11","v":3.3308263314242934},{"$f":"MIN((IFERROR(IF(AND($V11<=AJ$1,$W11>=AJ$1),INDEX(Reliability!O$23:O$50,MATCH($S11,Reliability!$C$23:$C$50,0)),0),0)*IF($T11=\"n/a\",$D11*$Y11,$G11)+IFERROR(IF(AND($V11<=AJ$1,$W11>=AJ$1),INDEX(Reliability!O$23:O$50,MATCH($T11,Reliability!$C$23:$C$50,0)),0),0)*$H11*$X11*$Y11),$D11)*$R11","v":3.3582768616780951},{"$f":"MIN((IFERROR(IF(AND($V11<=AK$1,$W11>=AK$1),INDEX(Reliability!P$23:P$50,MATCH($S11,Reliability!$C$23:$C$50,0)),0),0)*IF($T11=\"n/a\",$D11*$Y11,$G11)+IFERROR(IF(AND($V11<=AK$1,$W11>=AK$1),INDEX(Reliability!P$23:P$50,MATCH($T11,Reliability!$C$23:$C$50,0)),0),0)*$H11*$X11*$Y11),$D11)*$R11","v":3.3857273919318964}]
[null,{"$f":"unique_contracts!B12","v":"_NEW_GENERIC_GEOTHERMAL"},{"$f":"unique_contracts!D12","v":"Development"},{"$f":"unique_contracts!J12","v":2.8500000000000005},{"$f":"unique_contracts!M12","v":"NotHybrid"},{"$f":"unique_contracts!N12","v":0},{"$f":"unique_contracts!P12","v":0},{"$f":"unique_contracts!R12","v":0},{"$f":"unique_contracts!V12","v":0},{"$f":"unique_contracts!AB12","v":"Buy"},{"$f":"unique_contracts!AM12","v":2025},{"$f":"unique_contracts!AN12","v":6},{"$f":"unique_contracts!AO12","v":1},{"$f":"unique_contracts!AP12","v":2044},{"$f":"unique_contracts!AQ12","v":9},{"$f":"unique_contracts!AR12","v":30},{"$f":"unique_contracts!BP12","v":"EnergyCapacity"},1,{"$f":"IFERROR(IF(AND(I12>0,E12=\"NotHybrid\"),_xlfn.CONCAT(MAX(MIN(ROUNDDOWN(I12/D12,0),8),4),INDEX(resources!$G:$G,MATCH(B12,resources!$A:$A,0))),INDEX(resources!$G:$G,MATCH(B12,resources!$A:$A,0))),\"n/a\")","v":"geothermal"},"n/a","geothermal",2025,2043,1,1,{"$f":"MIN((IFERROR(IF(AND($V12<=Z$1,$W12>=Z$1),INDEX(Reliability!E$23:E$50,MATCH($S12,Reliability!$C$23:$C$50,0)),0),0)*IF($T12=\"n/a\",$D12*$Y12,$G12)+IFERROR(IF(AND($V12<=Z$1,$W12>=Z$1),INDEX(Reliability!E$23:E$50,MATCH($T12,Reliability!$C$23:$C$50,0)),0),0)*$H12*$X12*$Y12),$D12)*$R12","v":0},{"$f":"MIN((IFERROR(IF(AND($V12<=AA$1,$W12>=AA$1),INDEX(Reliability!F$23:F$50,MATCH($S12,Reliability!$C$23:$C$50,0)),0),0)*IF($T12=\"n/a\",$D12*$Y12,$G12)+IFERROR(IF(AND($V12<=AA$1,$W12>=AA$1),INDEX(Reliability!F$23:F$50,MATCH($T12,Reliability!$C$23:$C$50,0)),0),0)*$H12*$X12*$Y12),$D12)*$R12","v":2.532094537739328},{"$f":"MIN((IFERROR(IF(AND($V12<=AB$1,$W12>=AB$1),INDEX(Reliability!G$23:G$50,MATCH($S12,Reliability!$C$23:$C$50,0)),0),0)*IF($T12=\"n/a\",$D12*$Y12,$G12)+IFERROR(IF(AND($V12<=AB$1,$W12>=AB$1),INDEX(Reliability!G$23:G$50,MATCH($T12,Reliability!$C$23:$C$50,0)),0),0)*$H12*$X12*$Y12),$D12)*$R12","v":2.6121706167013889},{"$f":"MIN((IFERROR(IF(AND($V12<=AC$1,$W12>=AC$1),INDEX(Reliability!H$23:H$50,MATCH($S12,Reliability!$C$23:$C$50,0)),0),0)*IF($T12=\"n/a\",$D12*$Y12,$G12)+IFERROR(IF(AND($V12<=AC$1,$W12>=AC$1),INDEX(Reliability!H$23:H$50,MATCH($T12,Reliability!$C$23:$C$50,0)),0),0)*$H12*$X12*$Y12),$D12)*$R12","v":2.6260340336744257},{"$f":"MIN((IFERROR(IF(AND($V12<=AD$1,$W12>=AD$1),INDEX(Reliability!I$23:I$50,MATCH($S12,Reliability!$C$23:$C$50,0)),0),0)*IF($T12=\"n/a\",$D12*$Y12,$G12)+IFERROR(IF(AND($V12<=AD$1,$W12>=AD$1),INDEX(Reliability!I$23:I$50,MATCH($T12,Reliability!$C$23:$C$50,0)),0),0)*$H12*$X12*$Y12),$D12)*$R12","v":2.6398974506474628},{"$f":"MIN((IFERROR(IF(AND($V12<=AE$1,$W12>=AE$1),INDEX(Reliability!J$23:J$50,MATCH($S12,Reliability!$C$23:$C$50,0)),0),0)*IF($T12=\"n/a\",$D12*$Y12,$G12)+IFERROR(IF(AND($V12<=AE$1,$W12>=AE$1),INDEX(Reliability!J$23:J$50,MATCH($T12,Reliability!$C$23:$C$50,0)),0),0)*$H12*$X12*$Y12),$D12)*$R12","v":2.6193386215888865},{"$f":"MIN((IFERROR(IF(AND($V12<=AF$1,$W12>=AF$1),INDEX(Reliability!K$23:K$50,MATCH($S12,Reliability!$C$23:$C$50,0)),0),0)*IF($T12=\"n/a\",$D12*$Y12,$G12)+IFERROR(IF(AND($V12<=AF$1,$W12>=AF$1),INDEX(Reliability!K$23:K$50,MATCH($T12,Reliability!$C$23:$C$50,0)),0),0)*$H12*$X12*$Y12),$D12)*$R12","v":2.5987797925303107},{"$f":"MIN((IFERROR(IF(AND($V12<=AG$1,$W12>=AG$1),INDEX(Reliability!L$23:L$50,MATCH($S12,Reliability!$C$23:$C$50,0)),0),0)*IF($T12=\"n/a\",$D12*$Y12,$G12)+IFERROR(IF(AND($V12<=AG$1,$W12>=AG$1),INDEX(Reliability!L$23:L$50,MATCH($T12,Reliability!$C$23:$C$50,0)),0),0)*$H12*$X12*$Y12),$D12)*$R12","v":2.6207402167333518},{"$f":"MIN((IFERROR(IF(AND($V12<=AH$1,$W12>=AH$1),INDEX(Reliability!M$23:M$50,MATCH($S12,Reliability!$C$23:$C$50,0)),0),0)*IF($T12=\"n/a\",$D12*$Y12,$G12)+IFERROR(IF(AND($V12<=AH$1,$W12>=AH$1),INDEX(Reliability!M$23:M$50,MATCH($T12,Reliability!$C$23:$C$50,0)),0),0)*$H12*$X12*$Y12),$D12)*$R12","v":2.6427006409363933},{"$f":"MIN((IFERROR(IF(AND($V12<=AI$1,$W12>=AI$1),INDEX(Reliability!N$23:N$50,MATCH($S12,Reliability!$C$23:$C$50,0)),0),0)*IF($T12=\"n/a\",$D12*$Y12,$G12)+IFERROR(IF(AND($V12<=AI$1,$W12>=AI$1),INDEX(Reliability!N$23:N$50,MATCH($T12,Reliability!$C$23:$C$50,0)),0),0)*$H12*$X12*$Y12),$D12)*$R12","v":2.6646610651394345},{"$f":"MIN((IFERROR(IF(AND($V12<=AJ$1,$W12>=AJ$1),INDEX(Reliability!O$23:O$50,MATCH($S12,Reliability!$C$23:$C$50,0)),0),0)*IF($T12=\"n/a\",$D12*$Y12,$G12)+IFERROR(IF(AND($V12<=AJ$1,$W12>=AJ$1),INDEX(Reliability!O$23:O$50,MATCH($T12,Reliability!$C$23:$C$50,0)),0),0)*$H12*$X12*$Y12),$D12)*$R12","v":2.686621489342476},{"$f":"MIN((IFERROR(IF(AND($V12<=AK$1,$W12>=AK$1),INDEX(Reliability!P$23:P$50,MATCH($S12,Reliability!$C$23:$C$50,0)),0),0)*IF($T12=\"n/a\",$D12*$Y12,$G12)+IFERROR(IF(AND($V12<=AK$1,$W12>=AK$1),INDEX(Reliability!P$23:P$50,MATCH($T12,Reliability!$C$23:$C$50,0)),0),0)*$H12*$X12*$Y12),$D12)*$R12","v":2.7085819135455171}]
[null,{"$f":"unique_contracts!B13","v":"_NEW_GENERIC_GEOTHERMAL"},{"$f":"unique_contracts!D13","v":"Development"},{"$f":"unique_contracts!J13","v":2.8500000000000005},{"$f":"unique_contracts!M13","v":"NotHybrid"},{"$f":"unique_contracts!N13","v":0},{"$f":"unique_contracts!P13","v":0},{"$f":"unique_contracts!R13","v":0},{"$f":"unique_contracts!V13","v":0},{"$f":"unique_contracts!AB13","v":"Buy"},{"$f":"unique_contracts!AM13","v":2025},{"$f":"unique_contracts!AN13","v":9},{"$f":"unique_contracts!AO13","v":1},{"$f":"unique_contracts!AP13","v":2044},{"$f":"unique_contracts!AQ13","v":9},{"$f":"unique_contracts!AR13","v":30},{"$f":"unique_contracts!BP13","v":"EnergyCapacity"},1,{"$f":"IFERROR(IF(AND(I13>0,E13=\"NotHybrid\"),_xlfn.CONCAT(MAX(MIN(ROUNDDOWN(I13/D13,0),8),4),INDEX(resources!$G:$G,MATCH(B13,resources!$A:$A,0))),INDEX(resources!$G:$G,MATCH(B13,resources!$A:$A,0))),\"n/a\")","v":"geothermal"},"n/a","geothermal",2026,2043,1,1,{"$f":"MIN((IFERROR(IF(AND($V13<=Z$1,$W13>=Z$1),INDEX(Reliability!E$23:E$50,MATCH($S13,Reliability!$C$23:$C$50,0)),0),0)*IF($T13=\"n/a\",$D13*$Y13,$G13)+IFERROR(IF(AND($V13<=Z$1,$W13>=Z$1),INDEX(Reliability!E$23:E$50,MATCH($T13,Reliability!$C$23:$C$50,0)),0),0)*$H13*$X13*$Y13),$D13)*$R13","v":0},{"$f":"MIN((IFERROR(IF(AND($V13<=AA$1,$W13>=AA$1),INDEX(Reliability!F$23:F$50,MATCH($S13,Reliability!$C$23:$C$50,0)),0),0)*IF($T13=\"n/a\",$D13*$Y13,$G13)+IFERROR(IF(AND($V13<=AA$1,$W13>=AA$1),INDEX(Reliability!F$23:F$50,MATCH($T13,Reliability!$C$23:$C$50,0)),0),0)*$H13*$X13*$Y13),$D13)*$R13","v":0},{"$f":"MIN((IFERROR(IF(AND($V13<=AB$1,$W13>=AB$1),INDEX(Reliability!G$23:G$50,MATCH($S13,Reliability!$C$23:$C$50,0)),0),0)*IF($T13=\"n/a\",$D13*$Y13,$G13)+IFERROR(IF(AND($V13<=AB$1,$W13>=AB$1),INDEX(Reliability!G$23:G$50,MATCH($T13,Reliability!$C$23:$C$50,0)),0),0)*$H13*$X13*$Y13),$D13)*$R13","v":2.6121706167013889},{"$f":"MIN((IFERROR(IF(AND($V13<=AC$1,$W13>=AC$1),INDEX(Reliability!H$23:H$50,MATCH($S13,Reliability!$C$23:$C$50,0)),0),0)*IF($T13=\"n/a\",$D13*$Y13,$G13)+IFERROR(IF(AND($V13<=AC$1,$W13>=AC$1),INDEX(Reliability!H$23:H$50,MATCH($T13,Reliability!$C$23:$C$50,0)),0),0)*$H13*$X13*$Y13),$D13)*$R13","v":2.6260340336744257},{"$f":"MIN((IFERROR(IF(AND($V13<=AD$1,$W13>=AD$1),INDEX(Reliability!I$23:I$50,MATCH($S13,Reliability!$C$23:$C$50,0)),0),0)*IF($T13=\"n/a\",$D13*$Y13,$G13)+IFERROR(IF(AND($V13<=AD$1,$W13>=AD$1),INDEX(Reliability!I$23:I$50,MATCH($T13,Reliability!$C$23:$C$50,0)),0),0)*$H13*$X13*$Y13),$D13)*$R13","v":2.6398974506474628},{"$f":"MIN((IFERROR(IF(AND($V13<=AE$1,$W13>=AE$1),INDEX(Reliability!J$23:J$50,MATCH($S13,Reliability!$C$23:$C$50,0)),0),0)*IF($T13=\"n/a\",$D13*$Y13,$G13)+IFERROR(IF(AND($V13<=AE$1,$W13>=AE$1),INDEX(Reliability!J$23:J$50,MATCH($T13,Reliability!$C$23:$C$50,0)),0),0)*$H13*$X13*$Y13),$D13)*$R13","v":2.6193386215888865},{"$f":"MIN((IFERROR(IF(AND($V13<=AF$1,$W13>=AF$1),INDEX(Reliability!K$23:K$50,MATCH($S13,Reliability!$C$23:$C$50,0)),0),0)*IF($T13=\"n/a\",$D13*$Y13,$G13)+IFERROR(IF(AND($V13<=AF$1,$W13>=AF$1),INDEX(Reliability!K$23:K$50,MATCH($T13,Reliability!$C$23:$C$50,0)),0),0)*$H13*$X13*$Y13),$D13)*$R13","v":2.5987797925303107},{"$f":"MIN((IFERROR(IF(AND($V13<=AG$1,$W13>=AG$1),INDEX(Reliability!L$23:L$50,MATCH($S13,Reliability!$C$23:$C$50,0)),0),0)*IF($T13=\"n/a\",$D13*$Y13,$G13)+IFERROR(IF(AND($V13<=AG$1,$W13>=AG$1),INDEX(Reliability!L$23:L$50,MATCH($T13,Reliability!$C$23:$C$50,0)),0),0)*$H13*$X13*$Y13),$D13)*$R13","v":2.6207402167333518},{"$f":"MIN((IFERROR(IF(AND($V13<=AH$1,$W13>=AH$1),INDEX(Reliability!M$23:M$50,MATCH($S13,Reliability!$C$23:$C$50,0)),0),0)*IF($T13=\"n/a\",$D13*$Y13,$G13)+IFERROR(IF(AND($V13<=AH$1,$W13>=AH$1),INDEX(Reliability!M$23:M$50,MATCH($T13,Reliability!$C$23:$C$50,0)),0),0)*$H13*$X13*$Y13),$D13)*$R13","v":2.6427006409363933},{"$f":"MIN((IFERROR(IF(AND($V13<=AI$1,$W13>=AI$1),INDEX(Reliability!N$23:N$50,MATCH($S13,Reliability!$C$23:$C$50,0)),0),0)*IF($T13=\"n/a\",$D13*$Y13,$G13)+IFERROR(IF(AND($V13<=AI$1,$W13>=AI$1),INDEX(Reliability!N$23:N$50,MATCH($T13,Reliability!$C$23:$C$50,0)),0),0)*$H13*$X13*$Y13),$D13)*$R13","v":2.6646610651394345},{"$f":"MIN((IFERROR(IF(AND($V13<=AJ$1,$W13>=AJ$1),INDEX(Reliability!O$23:O$50,MATCH($S13,Reliability!$C$23:$C$50,0)),0),0)*IF($T13=\"n/a\",$D13*$Y13,$G13)+IFERROR(IF(AND($V13<=AJ$1,$W13>=AJ$1),INDEX(Reliability!O$23:O$50,MATCH($T13,Reliability!$C$23:$C$50,0)),0),0)*$H13*$X13*$Y13),$D13)*$R13","v":2.686621489342476},{"$f":"MIN((IFERROR(IF(AND($V13<=AK$1,$W13>=AK$1),INDEX(Reliability!P$23:P$50,MATCH($S13,Reliability!$C$23:$C$50,0)),0),0)*IF($T13=\"n/a\",$D13*$Y13,$G13)+IFERROR(IF(AND($V13<=AK$1,$W13>=AK$1),INDEX(Reliability!P$23:P$50,MATCH($T13,Reliability!$C$23:$C$50,0)),0),0)*$H13*$X13*$Y13),$D13)*$R13","v":2.7085819135455171}]
[null,{"$f":"unique_contracts!B14","v":"_NEW_GENERIC_GEOTHERMAL"},{"$f":"unique_contracts!D14","v":"Development"},{"$f":"unique_contracts!J14","v":2.8500000000000005},{"$f":"unique_contracts!M14","v":"NotHybrid"},{"$f":"unique_contracts!N14","v":0},{"$f":"unique_contracts!P14","v":0},{"$f":"unique_contracts!R14","v":0},{"$f":"unique_contracts!V14","v":0},{"$f":"unique_contracts!AB14","v":"Buy"},{"$f":"unique_contracts!AM14","v":2025},{"$f":"unique_contracts!AN14","v":10},{"$f":"unique_contracts!AO14","v":1},{"$f":"unique_contracts!AP14","v":2044},{"$f":"unique_contracts!AQ14","v":9},{"$f":"unique_contracts!AR14","v":30},{"$f":"unique_contracts!BP14","v":"EnergyCapacity"},1,{"$f":"IFERROR(IF(AND(I14>0,E14=\"NotHybrid\"),_xlfn.CONCAT(MAX(MIN(ROUNDDOWN(I14/D14,0),8),4),INDEX(resources!$G:$G,MATCH(B14,resources!$A:$A,0))),INDEX(resources!$G:$G,MATCH(B14,resources!$A:$A,0))),\"n/a\")","v":"geothermal"},"n/a","geothermal",2026,2043,1,1,{"$f":"MIN((IFERROR(IF(AND($V14<=Z$1,$W14>=Z$1),INDEX(Reliability!E$23:E$50,MATCH($S14,Reliability!$C$23:$C$50,0)),0),0)*IF($T14=\"n/a\",$D14*$Y14,$G14)+IFERROR(IF(AND($V14<=Z$1,$W14>=Z$1),INDEX(Reliability!E$23:E$50,MATCH($T14,Reliability!$C$23:$C$50,0)),0),0)*$H14*$X14*$Y14),$D14)*$R14","v":0},{"$f":"MIN((IFERROR(IF(AND($V14<=AA$1,$W14>=AA$1),INDEX(Reliability!F$23:F$50,MATCH($S14,Reliability!$C$23:$C$50,0)),0),0)*IF($T14=\"n/a\",$D14*$Y14,$G14)+IFERROR(IF(AND($V14<=AA$1,$W14>=AA$1),INDEX(Reliability!F$23:F$50,MATCH($T14,Reliability!$C$23:$C$50,0)),0),0)*$H14*$X14*$Y14),$D14)*$R14","v":0},{"$f":"MIN((IFERROR(IF(AND($V14<=AB$1,$W14>=AB$1),INDEX(Reliability!G$23:G$50,MATCH($S14,Reliability!$C$23:$C$50,0)),0),0)*IF($T14=\"n/a\",$D14*$Y14,$G14)+IFERROR(IF(AND($V14<=AB$1,$W14>=AB$1),INDEX(Reliability!G$23:G$50,MATCH($T14,Reliability!$C$23:$C$50,0)),0),0)*$H14*$X14*$Y14),$D14)*$R14","v":2.6121706167013889},{"$f":"MIN((IFERROR(IF(AND($V14<=AC$1,$W14>=AC$1),INDEX(Reliability!H$23:H$50,MATCH($S14,Reliability!$C$23:$C$50,0)),0),0)*IF($T14=\"n/a\",$D14*$Y14,$G14)+IFERROR(IF(AND($V14<=AC$1,$W14>=AC$1),INDEX(Reliability!H$23:H$50,MATCH($T14,Reliability!$C$23:$C$50,0)),0),0)*$H14*$X14*$Y14),$D14)*$R14","v":2.6260340336744257},{"$f":"MIN((IFERROR(IF(AND($V14<=AD$1,$W14>=AD$1),INDEX(Reliability!I$23:I$50,MATCH($S14,Reliability!$C$23:$C$50,0)),0),0)*IF($T14=\"n/a\",$D14*$Y14,$G14)+IFERROR(IF(AND($V14<=AD$1,$W14>=AD$1),INDEX(Reliability!I$23:I$50,MATCH($T14,Reliability!$C$23:$C$50,0)),0),0)*$H14*$X14*$Y14),$D14)*$R14","v":2.6398974506474628},{"$f":"MIN((IFERROR(IF(AND($V14<=AE$1,$W14>=AE$1),INDEX(Reliability!J$23:J$50,MATCH($S14,Reliability!$C$23:$C$50,0)),0),0)*IF($T14=\"n/a\",$D14*$Y14,$G14)+IFERROR(IF(AND($V14<=AE$1,$W14>=AE$1),INDEX(Reliability!J$23:J$50,MATCH($T14,Reliability!$C$23:$C$50,0)),0),0)*$H14*$X14*$Y14),$D14)*$R14","v":2.6193386215888865},{"$f":"MIN((IFERROR(IF(AND($V14<=AF$1,$W14>=AF$1),INDEX(Reliability!K$23:K$50,MATCH($S14,Reliability!$C$23:$C$50,0)),0),0)*IF($T14=\"n/a\",$D14*$Y14,$G14)+IFERROR(IF(AND($V14<=AF$1,$W14>=AF$1),INDEX(Reliability!K$23:K$50,MATCH($T14,Reliability!$C$23:$C$50,0)),0),0)*$H14*$X14*$Y14),$D14)*$R14","v":2.5987797925303107},{"$f":"MIN((IFERROR(IF(AND($V14<=AG$1,$W14>=AG$1),INDEX(Reliability!L$23:L$50,MATCH($S14,Reliability!$C$23:$C$50,0)),0),0)*IF($T14=\"n/a\",$D14*$Y14,$G14)+IFERROR(IF(AND($V14<=AG$1,$W14>=AG$1),INDEX(Reliability!L$23:L$50,MATCH($T14,Reliability!$C$23:$C$50,0)),0),0)*$H14*$X14*$Y14),$D14)*$R14","v":2.6207402167333518},{"$f":"MIN((IFERROR(IF(AND($V14<=AH$1,$W14>=AH$1),INDEX(Reliability!M$23:M$50,MATCH($S14,Reliability!$C$23:$C$50,0)),0),0)*IF($T14=\"n/a\",$D14*$Y14,$G14)+IFERROR(IF(AND($V14<=AH$1,$W14>=AH$1),INDEX(Reliability!M$23:M$50,MATCH($T14,Reliability!$C$23:$C$50,0)),0),0)*$H14*$X14*$Y14),$D14)*$R14","v":2.6427006409363933},{"$f":"MIN((IFERROR(IF(AND($V14<=AI$1,$W14>=AI$1),INDEX(Reliability!N$23:N$50,MATCH($S14,Reliability!$C$23:$C$50,0)),0),0)*IF($T14=\"n/a\",$D14*$Y14,$G14)+IFERROR(IF(AND($V14<=AI$1,$W14>=AI$1),INDEX(Reliability!N$23:N$50,MATCH($T14,Reliability!$C$23:$C$50,0)),0),0)*$H14*$X14*$Y14),$D14)*$R14","v":2.6646610651394345},{"$f":"MIN((IFERROR(IF(AND($V14<=AJ$1,$W14>=AJ$1),INDEX(Reliability!O$23:O$50,MATCH($S14,Reliability!$C$23:$C$50,0)),0),0)*IF($T14=\"n/a\",$D14*$Y14,$G14)+IFERROR(IF(AND($V14<=AJ$1,$W14>=AJ$1),INDEX(Reliability!O$23:O$50,MATCH($T14,Reliability!$C$23:$C$50,0)),0),0)*$H14*$X14*$Y14),$D14)*$R14","v":2.686621489342476},{"$f":"MIN((IFERROR(IF(AND($V14<=AK$1,$W14>=AK$1),INDEX(Reliability!P$23:P$50,MATCH($S14,Reliability!$C$23:$C$50,0)),0),0)*IF($T14=\"n/a\",$D14*$Y14,$G14)+IFERROR(IF(AND($V14<=AK$1,$W14>=AK$1),INDEX(Reliability!P$23:P$50,MATCH($T14,Reliability!$C$23:$C$50,0)),0),0)*$H14*$X14*$Y14),$D14)*$R14","v":2.7085819135455171}]
[null,{"$f":"unique_contracts!B15","v":"_NEW_GENERIC_GEOTHERMAL"},{"$f":"unique_contracts!D15","v":"Development"},{"$f":"unique_contracts!J15","v":2.8500000000000005},{"$f":"unique_contracts!M15","v":"NotHybrid"},{"$f":"unique_contracts!N15","v":0},{"$f":"unique_contracts!P15","v":0},{"$f":"unique_contracts!R15","v":0},{"$f":"unique_contracts!V15","v":0},{"$f":"unique_contracts!AB15","v":"Buy"},{"$f":"unique_contracts!AM15","v":2026},{"$f":"unique_contracts!AN15","v":1},{"$f":"unique_contracts!AO15","v":1},{"$f":"unique_contracts!AP15","v":2044},{"$f":"unique_contracts!AQ15","v":9},{"$f":"unique_contracts!AR15","v":30},{"$f":"unique_contracts!BP15","v":"EnergyCapacity"},1,{"$f":"IFERROR(IF(AND(I15>0,E15=\"NotHybrid\"),_xlfn.CONCAT(MAX(MIN(ROUNDDOWN(I15/D15,0),8),4),INDEX(resources!$G:$G,MATCH(B15,resources!$A:$A,0))),INDEX(resources!$G:$G,MATCH(B15,resources!$A:$A,0))),\"n/a\")","v":"geothermal"},"n/a","geothermal",2026,2043,1,1,{"$f":"MIN((IFERROR(IF(AND($V15<=Z$1,$W15>=Z$1),INDEX(Reliability!E$23:E$50,MATCH($S15,Reliability!$C$23:$C$50,0)),0),0)*IF($T15=\"n/a\",$D15*$Y15,$G15)+IFERROR(IF(AND($V15<=Z$1,$W15>=Z$1),INDEX(Reliability!E$23:E$50,MATCH($T15,Reliability!$C$23:$C$50,0)),0),0)*$H15*$X15*$Y15),$D15)*$R15","v":0},{"$f":"MIN((IFERROR(IF(AND($V15<=AA$1,$W15>=AA$1),INDEX(Reliability!F$23:F$50,MATCH($S15,Reliability!$C$23:$C$50,0)),0),0)*IF($T15=\"n/a\",$D15*$Y15,$G15)+IFERROR(IF(AND($V15<=AA$1,$W15>=AA$1),INDEX(Reliability!F$23:F$50,MATCH($T15,Reliability!$C$23:$C$50,0)),0),0)*$H15*$X15*$Y15),$D15)*$R15","v":0},{"$f":"MIN((IFERROR(IF(AND($V15<=AB$1,$W15>=AB$1),INDEX(Reliability!G$23:G$50,MATCH($S15,Reliability!$C$23:$C$50,0)),0),0)*IF($T15=\"n/a\",$D15*$Y15,$G15)+IFERROR(IF(AND($V15<=AB$1,$W15>=AB$1),INDEX(Reliability!G$23:G$50,MATCH($T15,Reliability!$C$23:$C$50,0)),0),0)*$H15*$X15*$Y15),$D15)*$R15","v":2.6121706167013889},{"$f":"MIN((IFERROR(IF(AND($V15<=AC$1,$W15>=AC$1),INDEX(Reliability!H$23:H$50,MATCH($S15,Reliability!$C$23:$C$50,0)),0),0)*IF($T15=\"n/a\",$D15*$Y15,$G15)+IFERROR(IF(AND($V15<=AC$1,$W15>=AC$1),INDEX(Reliability!H$23:H$50,MATCH($T15,Reliability!$C$23:$C$50,0)),0),0)*$H15*$X15*$Y15),$D15)*$R15","v":2.6260340336744257},{"$f":"MIN((IFERROR(IF(AND($V15<=AD$1,$W15>=AD$1),INDEX(Reliability!I$23:I$50,MATCH($S15,Reliability!$C$23:$C$50,0)),0),0)*IF($T15=\"n/a\",$D15*$Y15,$G15)+IFERROR(IF(AND($V15<=AD$1,$W15>=AD$1),INDEX(Reliability!I$23:I$50,MATCH($T15,Reliability!$C$23:$C$50,0)),0),0)*$H15*$X15*$Y15),$D15)*$R15","v":2.6398974506474628},{"$f":"MIN((IFERROR(IF(AND($V15<=AE$1,$W15>=AE$1),INDEX(Reliability!J$23:J$50,MATCH($S15,Reliability!$C$23:$C$50,0)),0),0)*IF($T15=\"n/a\",$D15*$Y15,$G15)+IFERROR(IF(AND($V15<=AE$1,$W15>=AE$1),INDEX(Reliability!J$23:J$50,MATCH($T15,Reliability!$C$23:$C$50,0)),0),0)*$H15*$X15*$Y15),$D15)*$R15","v":2.6193386215888865},{"$f":"MIN((IFERROR(IF(AND($V15<=AF$1,$W15>=AF$1),INDEX(Reliability!K$23:K$50,MATCH($S15,Reliability!$C$23:$C$50,0)),0),0)*IF($T15=\"n/a\",$D15*$Y15,$G15)+IFERROR(IF(AND($V15<=AF$1,$W15>=AF$1),INDEX(Reliability!K$23:K$50,MATCH($T15,Reliability!$C$23:$C$50,0)),0),0)*$H15*$X15*$Y15),$D15)*$R15","v":2.5987797925303107},{"$f":"MIN((IFERROR(IF(AND($V15<=AG$1,$W15>=AG$1),INDEX(Reliability!L$23:L$50,MATCH($S15,Reliability!$C$23:$C$50,0)),0),0)*IF($T15=\"n/a\",$D15*$Y15,$G15)+IFERROR(IF(AND($V15<=AG$1,$W15>=AG$1),INDEX(Reliability!L$23:L$50,MATCH($T15,Reliability!$C$23:$C$50,0)),0),0)*$H15*$X15*$Y15),$D15)*$R15","v":2.6207402167333518},{"$f":"MIN((IFERROR(IF(AND($V15<=AH$1,$W15>=AH$1),INDEX(Reliability!M$23:M$50,MATCH($S15,Reliability!$C$23:$C$50,0)),0),0)*IF($T15=\"n/a\",$D15*$Y15,$G15)+IFERROR(IF(AND($V15<=AH$1,$W15>=AH$1),INDEX(Reliability!M$23:M$50,MATCH($T15,Reliability!$C$23:$C$50,0)),0),0)*$H15*$X15*$Y15),$D15)*$R15","v":2.6427006409363933},{"$f":"MIN((IFERROR(IF(AND($V15<=AI$1,$W15>=AI$1),INDEX(Reliability!N$23:N$50,MATCH($S15,Reliability!$C$23:$C$50,0)),0),0)*IF($T15=\"n/a\",$D15*$Y15,$G15)+IFERROR(IF(AND($V15<=AI$1,$W15>=AI$1),INDEX(Reliability!N$23:N$50,MATCH($T15,Reliability!$C$23:$C$50,0)),0),0)*$H15*$X15*$Y15),$D15)*$R15","v":2.6646610651394345},{"$f":"MIN((IFERROR(IF(AND($V15<=AJ$1,$W15>=AJ$1),INDEX(Reliability!O$23:O$50,MATCH($S15,Reliability!$C$23:$C$50,0)),0),0)*IF($T15=\"n/a\",$D15*$Y15,$G15)+IFERROR(IF(AND($V15<=AJ$1,$W15>=AJ$1),INDEX(Reliability!O$23:O$50,MATCH($T15,Reliability!$C$23:$C$50,0)),0),0)*$H15*$X15*$Y15),$D15)*$R15","v":2.686621489342476},{"$f":"MIN((IFERROR(IF(AND($V15<=AK$1,$W15>=AK$1),INDEX(Reliability!P$23:P$50,MATCH($S15,Reliability!$C$23:$C$50,0)),0),0)*IF($T15=\"n/a\",$D15*$Y15,$G15)+IFERROR(IF(AND($V15<=AK$1,$W15>=AK$1),INDEX(Reliability!P$23:P$50,MATCH($T15,Reliability!$C$23:$C$50,0)),0),0)*$H15*$X15*$Y15),$D15)*$R15","v":2.7085819135455171}]
[null,{"$f":"unique_contracts!B16","v":"_CREZ_GENERIC_SOLANO_GEOTHERMAL"},{"$f":"unique_contracts!D16","v":"Development"},{"$f":"unique_contracts!J16","v":3.5625000000000009},{"$f":"unique_contracts!M16","v":"NotHybrid"},{"$f":"unique_contracts!N16","v":0},{"$f":"unique_contracts!P16","v":0},{"$f":"unique_contracts!R16","v":0},{"$f":"unique_contracts!V16","v":0},{"$f":"unique_contracts!AB16","v":"Buy"},{"$f":"unique_contracts!AM16","v":2026},{"$f":"unique_contracts!AN16","v":12},{"$f":"unique_contracts!AO16","v":1},{"$f":"unique_contracts!AP16","v":2044},{"$f":"unique_contracts!AQ16","v":9},{"$f":"unique_contracts!AR16","v":30},{"$f":"unique_contracts!BP16","v":"EnergyCapacity"},1,{"$f":"IFERROR(IF(AND(I16>0,E16=\"NotHybrid\"),_xlfn.CONCAT(MAX(MIN(ROUNDDOWN(I16/D16,0),8),4),INDEX(resources!$G:$G,MATCH(B16,resources!$A:$A,0))),INDEX(resources!$G:$G,MATCH(B16,resources!$A:$A,0))),\"n/a\")","v":"geothermal"},"n/a","geothermal",2027,2043,1,1,{"$f":"MIN((IFERROR(IF(AND($V16<=Z$1,$W16>=Z$1),INDEX(Reliability!E$23:E$50,MATCH($S16,Reliability!$C$23:$C$50,0)),0),0)*IF($T16=\"n/a\",$D16*$Y16,$G16)+IFERROR(IF(AND($V16<=Z$1,$W16>=Z$1),INDEX(Reliability!E$23:E$50,MATCH($T16,Reliability!$C$23:$C$50,0)),0),0)*$H16*$X16*$Y16),$D16)*$R16","v":0},{"$f":"MIN((IFERROR(IF(AND($V16<=AA$1,$W16>=AA$1),INDEX(Reliability!F$23:F$50,MATCH($S16,Reliability!$C$23:$C$50,0)),0),0)*IF($T16=\"n/a\",$D16*$Y16,$G16)+IFERROR(IF(AND($V16<=AA$1,$W16>=AA$1),INDEX(Reliability!F$23:F$50,MATCH($T16,Reliability!$C$23:$C$50,0)),0),0)*$H16*$X16*$Y16),$D16)*$R16","v":0},{"$f":"MIN((IFERROR(IF(AND($V16<=AB$1,$W16>=AB$1),INDEX(Reliability!G$23:G$50,MATCH($S16,Reliability!$C$23:$C$50,0)),0),0)*IF($T16=\"n/a\",$D16*$Y16,$G16)+IFERROR(IF(AND($V16<=AB$1,$W16>=AB$1),INDEX(Reliability!G$23:G$50,MATCH($T16,Reliability!$C$23:$C$50,0)),0),0)*$H16*$X16*$Y16),$D16)*$R16","v":0},{"$f":"MIN((IFERROR(IF(AND($V16<=AC$1,$W16>=AC$1),INDEX(Reliability!H$23:H$50,MATCH($S16,Reliability!$C$23:$C$50,0)),0),0)*IF($T16=\"n/a\",$D16*$Y16,$G16)+IFERROR(IF(AND($V16<=AC$1,$W16>=AC$1),INDEX(Reliability!H$23:H$50,MATCH($T16,Reliability!$C$23:$C$50,0)),0),0)*$H16*$X16*$Y16),$D16)*$R16","v":3.2825425420930325},{"$f":"MIN((IFERROR(IF(AND($V16<=AD$1,$W16>=AD$1),INDEX(Reliability!I$23:I$50,MATCH($S16,Reliability!$C$23:$C$50,0)),0),0)*IF($T16=\"n/a\",$D16*$Y16,$G16)+IFERROR(IF(AND($V16<=AD$1,$W16>=AD$1),INDEX(Reliability!I$23:I$50,MATCH($T16,Reliability!$C$23:$C$50,0)),0),0)*$H16*$X16*$Y16),$D16)*$R16","v":3.2998718133093288},{"$f":"MIN((IFERROR(IF(AND($V16<=AE$1,$W16>=AE$1),INDEX(Reliability!J$23:J$50,MATCH($S16,Reliability!$C$23:$C$50,0)),0),0)*IF($T16=\"n/a\",$D16*$Y16,$G16)+IFERROR(IF(AND($V16<=AE$1,$W16>=AE$1),INDEX(Reliability!J$23:J$50,MATCH($T16,Reliability!$C$23:$C$50,0)),0),0)*$H16*$X16*$Y16),$D16)*$R16","v":3.2741732769861085},{"$f":"MIN((IFERROR(IF(AND($V16<=AF$1,$W16>=AF$1),INDEX(Reliability!K$23:K$50,MATCH($S16,Reliability!$C$23:$C$50,0)),0),0)*IF($T16=\"n/a\",$D16*$Y16,$G16)+IFERROR(IF(AND($V16<=AF$1,$W16>=AF$1),INDEX(Reliability!K$23:K$50,MATCH($T16,Reliability!$C$23:$C$50,0)),0),0)*$H16*$X16*$Y16),$D16)*$R16","v":3.2484747406628887},{"$f":"MIN((IFERROR(IF(AND($V16<=AG$1,$W16>=AG$1),INDEX(Reliability!L$23:L$50,MATCH($S16,Reliability!$C$23:$C$50,0)),0),0)*IF($T16=\"n/a\",$D16*$Y16,$G16)+IFERROR(IF(AND($V16<=AG$1,$W16>=AG$1),INDEX(Reliability!L$23:L$50,MATCH($T16,Reliability!$C$23:$C$50,0)),0),0)*$H16*$X16*$Y16),$D16)*$R16","v":3.2759252709166904},{"$f":"MIN((IFERROR(IF(AND($V16<=AH$1,$W16>=AH$1),INDEX(Reliability!M$23:M$50,MATCH($S16,Reliability!$C$23:$C$50,0)),0),0)*IF($T16=\"n/a\",$D16*$Y16,$G16)+IFERROR(IF(AND($V16<=AH$1,$W16>=AH$1),INDEX(Reliability!M$23:M$50,MATCH($T16,Reliability!$C$23:$C$50,0)),0),0)*$H16*$X16*$Y16),$D16)*$R16","v":3.3033758011704917},{"$f":"MIN((IFERROR(IF(AND($V16<=AI$1,$W16>=AI$1),INDEX(Reliability!N$23:N$50,MATCH($S16,Reliability!$C$23:$C$50,0)),0),0)*IF($T16=\"n/a\",$D16*$Y16,$G16)+IFERROR(IF(AND($V16<=AI$1,$W16>=AI$1),INDEX(Reliability!N$23:N$50,MATCH($T16,Reliability!$C$23:$C$50,0)),0),0)*$H16*$X16*$Y16),$D16)*$R16","v":3.3308263314242934},{"$f":"MIN((IFERROR(IF(AND($V16<=AJ$1,$W16>=AJ$1),INDEX(Reliability!O$23:O$50,MATCH($S16,Reliability!$C$23:$C$50,0)),0),0)*IF($T16=\"n/a\",$D16*$Y16,$G16)+IFERROR(IF(AND($V16<=AJ$1,$W16>=AJ$1),INDEX(Reliability!O$23:O$50,MATCH($T16,Reliability!$C$23:$C$50,0)),0),0)*$H16*$X16*$Y16),$D16)*$R16","v":3.3582768616780951},{"$f":"MIN((IFERROR(IF(AND($V16<=AK$1,$W16>=AK$1),INDEX(Reliability!P$23:P$50,MATCH($S16,Reliability!$C$23:$C$50,0)),0),0)*IF($T16=\"n/a\",$D16*$Y16,$G16)+IFERROR(IF(AND($V16<=AK$1,$W16>=AK$1),INDEX(Reliability!P$23:P$50,MATCH($T16,Reliability!$C$23:$C$50,0)),0),0)*$H16*$X16*$Y16),$D16)*$R16","v":3.3857273919318964}]
[null,{"$f":"unique_contracts!B17","v":"HATLOS_6_BWDHY1"},{"$f":"unique_contracts!D17","v":"Online"},{"$f":"unique_contracts!J17","v":2},{"$f":"unique_contracts!M17","v":"NotHybrid"},{"$f":"unique_contracts!N17","v":0},{"$f":"unique_contracts!P17","v":0},{"$f":"unique_contracts!R17","v":0},{"$f":"unique_contracts!V17","v":0},{"$f":"unique_contracts!AB17","v":"Buy"},{"$f":"unique_contracts!AM17","v":2017},{"$f":"unique_contracts!AN17","v":3},{"$f":"unique_contracts!AO17","v":9},{"$f":"unique_contracts!AP17","v":2034},{"$f":"unique_contracts!AQ17","v":3},{"$f":"unique_contracts!AR17","v":8},{"$f":"unique_contracts!BP17","v":"EnergyCapacity"},1,{"$f":"IFERROR(IF(AND(I17>0,E17=\"NotHybrid\"),_xlfn.CONCAT(MAX(MIN(ROUNDDOWN(I17/D17,0),8),4),INDEX(resources!$G:$G,MATCH(B17,resources!$A:$A,0))),INDEX(resources!$G:$G,MATCH(B17,resources!$A:$A,0))),\"n/a\")","v":"hydro"},"n/a","hydro",2017,2033,1,1,{"$f":"MIN((IFERROR(IF(AND($V17<=Z$1,$W17>=Z$1),INDEX(Reliability!E$23:E$50,MATCH($S17,Reliability!$C$23:$C$50,0)),0),0)*IF($T17=\"n/a\",$D17*$Y17,$G17)+IFERROR(IF(AND($V17<=Z$1,$W17>=Z$1),INDEX(Reliability!E$23:E$50,MATCH($T17,Reliability!$C$23:$C$50,0)),0),0)*$H17*$X17*$Y17),$D17)*$R17","v":1.0161708522904724},{"$f":"MIN((IFERROR(IF(AND($V17<=AA$1,$W17>=AA$1),INDEX(Reliability!F$23:F$50,MATCH($S17,Reliability!$C$23:$C$50,0)),0),0)*IF($T17=\"n/a\",$D17*$Y17,$G17)+IFERROR(IF(AND($V17<=AA$1,$W17>=AA$1),INDEX(Reliability!F$23:F$50,MATCH($T17,Reliability!$C$23:$C$50,0)),0),0)*$H17*$X17*$Y17),$D17)*$R17","v":1.0427316800975479},{"$f":"MIN((IFERROR(IF(AND($V17<=AB$1,$W17>=AB$1),INDEX(Reliability!G$23:G$50,MATCH($S17,Reliability!$C$23:$C$50,0)),0),0)*IF($T17=\"n/a\",$D17*$Y17,$G17)+IFERROR(IF(AND($V17<=AB$1,$W17>=AB$1),INDEX(Reliability!G$23:G$50,MATCH($T17,Reliability!$C$23:$C$50,0)),0),0)*$H17*$X17*$Y17),$D17)*$R17","v":1.0692925079046234},{"$f":"MIN((IFERROR(IF(AND($V17<=AC$1,$W17>=AC$1),INDEX(Reliability!H$23:H$50,MATCH($S17,Reliability!$C$23:$C$50,0)),0),0)*IF($T17=\"n/a\",$D17*$Y17,$G17)+IFERROR(IF(AND($V17<=AC$1,$W17>=AC$1),INDEX(Reliability!H$23:H$50,MATCH($T17,Reliability!$C$23:$C$50,0)),0),0)*$H17*$X17*$Y17),$D17)*$R17","v":1.049268436616325},{"$f":"MIN((IFERROR(IF(AND($V17<=AD$1,$W17>=AD$1),INDEX(Reliability!I$23:I$50,MATCH($S17,Reliability!$C$23:$C$50,0)),0),0)*IF($T17=\"n/a\",$D17*$Y17,$G17)+IFERROR(IF(AND($V17<=AD$1,$W17>=AD$1),INDEX(Reliability!I$23:I$50,MATCH($T17,Reliability!$C$23:$C$50,0)),0),0)*$H17*$X17*$Y17),$D17)*$R17","v":1.0292443653280268},{"$f":"MIN((IFERROR(IF(AND($V17<=AE$1,$W17>=AE$1),INDEX(Reliability!J$23:J$50,MATCH($S17,Reliability!$C$23:$C$50,0)),0),0)*IF($T17=\"n/a\",$D17*$Y17,$G17)+IFERROR(IF(AND($V17<=AE$1,$W17>=AE$1),INDEX(Reliability!J$23:J$50,MATCH($T17,Reliability!$C$23:$C$50,0)),0),0)*$H17*$X17*$Y17),$D17)*$R17","v":1.0593187725146214},{"$f":"MIN((IFERROR(IF(AND($V17<=AF$1,$W17>=AF$1),INDEX(Reliability!K$23:K$50,MATCH($S17,Reliability!$C$23:$C$50,0)),0),0)*IF($T17=\"n/a\",$D17*$Y17,$G17)+IFERROR(IF(AND($V17<=AF$1,$W17>=AF$1),INDEX(Reliability!K$23:K$50,MATCH($T17,Reliability!$C$23:$C$50,0)),0),0)*$H17*$X17*$Y17),$D17)*$R17","v":1.0893931797012157},{"$f":"MIN((IFERROR(IF(AND($V17<=AG$1,$W17>=AG$1),INDEX(Reliability!L$23:L$50,MATCH($S17,Reliability!$C$23:$C$50,0)),0),0)*IF($T17=\"n/a\",$D17*$Y17,$G17)+IFERROR(IF(AND($V17<=AG$1,$W17>=AG$1),INDEX(Reliability!L$23:L$50,MATCH($T17,Reliability!$C$23:$C$50,0)),0),0)*$H17*$X17*$Y17),$D17)*$R17","v":1.043449828798618},{"$f":"MIN((IFERROR(IF(AND($V17<=AH$1,$W17>=AH$1),INDEX(Reliability!M$23:M$50,MATCH($S17,Reliability!$C$23:$C$50,0)),0),0)*IF($T17=\"n/a\",$D17*$Y17,$G17)+IFERROR(IF(AND($V17<=AH$1,$W17>=AH$1),INDEX(Reliability!M$23:M$50,MATCH($T17,Reliability!$C$23:$C$50,0)),0),0)*$H17*$X17*$Y17),$D17)*$R17","v":0.9975064778960202},{"$f":"MIN((IFERROR(IF(AND($V17<=AI$1,$W17>=AI$1),INDEX(Reliability!N$23:N$50,MATCH($S17,Reliability!$C$23:$C$50,0)),0),0)*IF($T17=\"n/a\",$D17*$Y17,$G17)+IFERROR(IF(AND($V17<=AI$1,$W17>=AI$1),INDEX(Reliability!N$23:N$50,MATCH($T17,Reliability!$C$23:$C$50,0)),0),0)*$H17*$X17*$Y17),$D17)*$R17","v":0.95156312699342238},{"$f":"MIN((IFERROR(IF(AND($V17<=AJ$1,$W17>=AJ$1),INDEX(Reliability!O$23:O$50,MATCH($S17,Reliability!$C$23:$C$50,0)),0),0)*IF($T17=\"n/a\",$D17*$Y17,$G17)+IFERROR(IF(AND($V17<=AJ$1,$W17>=AJ$1),INDEX(Reliability!O$23:O$50,MATCH($T17,Reliability!$C$23:$C$50,0)),0),0)*$H17*$X17*$Y17),$D17)*$R17","v":0},{"$f":"MIN((IFERROR(IF(AND($V17<=AK$1,$W17>=AK$1),INDEX(Reliability!P$23:P$50,MATCH($S17,Reliability!$C$23:$C$50,0)),0),0)*IF($T17=\"n/a\",$D17*$Y17,$G17)+IFERROR(IF(AND($V17<=AK$1,$W17>=AK$1),INDEX(Reliability!P$23:P$50,MATCH($T17,Reliability!$C$23:$C$50,0)),0),0)*$H17*$X17*$Y17),$D17)*$R17","v":0}]
[null,{"$f":"unique_contracts!B18","v":"COVERD_2_RCKHY1"},{"$f":"unique_contracts!D18","v":"Online"},{"$f":"unique_contracts!J18","v":2},{"$f":"unique_contracts!M18","v":"NotHybrid"},{"$f":"unique_contracts!N18","v":0},{"$f":"unique_contracts!P18","v":0},{"$f":"unique_contracts!R18","v":0},{"$f":"unique_contracts!V18","v":0},{"$f":"unique_contracts!AB18","v":"Buy"},{"$f":"unique_contracts!AM18","v":2017},{"$f":"unique_contracts!AN18","v":3},{"$f":"unique_contracts!AO18","v":16},{"$f":"unique_contracts!AP18","v":2034},{"$f":"unique_contracts!AQ18","v":3},{"$f":"unique_contracts!AR18","v":15},{"$f":"unique_contracts!BP18","v":"EnergyCapacity"},1,{"$f":"IFERROR(IF(AND(I18>0,E18=\"NotHybrid\"),_xlfn.CONCAT(MAX(MIN(ROUNDDOWN(I18/D18,0),8),4),INDEX(resources!$G:$G,MATCH(B18,resources!$A:$A,0))),INDEX(resources!$G:$G,MATCH(B18,resources!$A:$A,0))),\"n/a\")","v":"hydro"},"n/a","hydro",2017,2033,1,1,{"$f":"MIN((IFERROR(IF(AND($V18<=Z$1,$W18>=Z$1),INDEX(Reliability!E$23:E$50,MATCH($S18,Reliability!$C$23:$C$50,0)),0),0)*IF($T18=\"n/a\",$D18*$Y18,$G18)+IFERROR(IF(AND($V18<=Z$1,$W18>=Z$1),INDEX(Reliability!E$23:E$50,MATCH($T18,Reliability!$C$23:$C$50,0)),0),0)*$H18*$X18*$Y18),$D18)*$R18","v":1.0161708522904724},{"$f":"MIN((IFERROR(IF(AND($V18<=AA$1,$W18>=AA$1),INDEX(Reliability!F$23:F$50,MATCH($S18,Reliability!$C$23:$C$50,0)),0),0)*IF($T18=\"n/a\",$D18*$Y18,$G18)+IFERROR(IF(AND($V18<=AA$1,$W18>=AA$1),INDEX(Reliability!F$23:F$50,MATCH($T18,Reliability!$C$23:$C$50,0)),0),0)*$H18*$X18*$Y18),$D18)*$R18","v":1.0427316800975479},{"$f":"MIN((IFERROR(IF(AND($V18<=AB$1,$W18>=AB$1),INDEX(Reliability!G$23:G$50,MATCH($S18,Reliability!$C$23:$C$50,0)),0),0)*IF($T18=\"n/a\",$D18*$Y18,$G18)+IFERROR(IF(AND($V18<=AB$1,$W18>=AB$1),INDEX(Reliability!G$23:G$50,MATCH($T18,Reliability!$C$23:$C$50,0)),0),0)*$H18*$X18*$Y18),$D18)*$R18","v":1.0692925079046234},{"$f":"MIN((IFERROR(IF(AND($V18<=AC$1,$W18>=AC$1),INDEX(Reliability!H$23:H$50,MATCH($S18,Reliability!$C$23:$C$50,0)),0),0)*IF($T18=\"n/a\",$D18*$Y18,$G18)+IFERROR(IF(AND($V18<=AC$1,$W18>=AC$1),INDEX(Reliability!H$23:H$50,MATCH($T18,Reliability!$C$23:$C$50,0)),0),0)*$H18*$X18*$Y18),$D18)*$R18","v":1.049268436616325},{"$f":"MIN((IFERROR(IF(AND($V18<=AD$1,$W18>=AD$1),INDEX(Reliability!I$23:I$50,MATCH($S18,Reliability!$C$23:$C$50,0)),0),0)*IF($T18=\"n/a\",$D18*$Y18,$G18)+IFERROR(IF(AND($V18<=AD$1,$W18>=AD$1),INDEX(Reliability!I$23:I$50,MATCH($T18,Reliability!$C$23:$C$50,0)),0),0)*$H18*$X18*$Y18),$D18)*$R18","v":1.0292443653280268},{"$f":"MIN((IFERROR(IF(AND($V18<=AE$1,$W18>=AE$1),INDEX(Reliability!J$23:J$50,MATCH($S18,Reliability!$C$23:$C$50,0)),0),0)*IF($T18=\"n/a\",$D18*$Y18,$G18)+IFERROR(IF(AND($V18<=AE$1,$W18>=AE$1),INDEX(Reliability!J$23:J$50,MATCH($T18,Reliability!$C$23:$C$50,0)),0),0)*$H18*$X18*$Y18),$D18)*$R18","v":1.0593187725146214},{"$f":"MIN((IFERROR(IF(AND($V18<=AF$1,$W18>=AF$1),INDEX(Reliability!K$23:K$50,MATCH($S18,Reliability!$C$23:$C$50,0)),0),0)*IF($T18=\"n/a\",$D18*$Y18,$G18)+IFERROR(IF(AND($V18<=AF$1,$W18>=AF$1),INDEX(Reliability!K$23:K$50,MATCH($T18,Reliability!$C$23:$C$50,0)),0),0)*$H18*$X18*$Y18),$D18)*$R18","v":1.0893931797012157},{"$f":"MIN((IFERROR(IF(AND($V18<=AG$1,$W18>=AG$1),INDEX(Reliability!L$23:L$50,MATCH($S18,Reliability!$C$23:$C$50,0)),0),0)*IF($T18=\"n/a\",$D18*$Y18,$G18)+IFERROR(IF(AND($V18<=AG$1,$W18>=AG$1),INDEX(Reliability!L$23:L$50,MATCH($T18,Reliability!$C$23:$C$50,0)),0),0)*$H18*$X18*$Y18),$D18)*$R18","v":1.043449828798618},{"$f":"MIN((IFERROR(IF(AND($V18<=AH$1,$W18>=AH$1),INDEX(Reliability!M$23:M$50,MATCH($S18,Reliability!$C$23:$C$50,0)),0),0)*IF($T18=\"n/a\",$D18*$Y18,$G18)+IFERROR(IF(AND($V18<=AH$1,$W18>=AH$1),INDEX(Reliability!M$23:M$50,MATCH($T18,Reliability!$C$23:$C$50,0)),0),0)*$H18*$X18*$Y18),$D18)*$R18","v":0.9975064778960202},{"$f":"MIN((IFERROR(IF(AND($V18<=AI$1,$W18>=AI$1),INDEX(Reliability!N$23:N$50,MATCH($S18,Reliability!$C$23:$C$50,0)),0),0)*IF($T18=\"n/a\",$D18*$Y18,$G18)+IFERROR(IF(AND($V18<=AI$1,$W18>=AI$1),INDEX(Reliability!N$23:N$50,MATCH($T18,Reliability!$C$23:$C$50,0)),0),0)*$H18*$X18*$Y18),$D18)*$R18","v":0.95156312699342238},{"$f":"MIN((IFERROR(IF(AND($V18<=AJ$1,$W18>=AJ$1),INDEX(Reliability!O$23:O$50,MATCH($S18,Reliability!$C$23:$C$50,0)),0),0)*IF($T18=\"n/a\",$D18*$Y18,$G18)+IFERROR(IF(AND($V18<=AJ$1,$W18>=AJ$1),INDEX(Reliability!O$23:O$50,MATCH($T18,Reliability!$C$23:$C$50,0)),0),0)*$H18*$X18*$Y18),$D18)*$R18","v":0},{"$f":"MIN((IFERROR(IF(AND($V18<=AK$1,$W18>=AK$1),INDEX(Reliability!P$23:P$50,MATCH($S18,Reliability!$C$23:$C$50,0)),0),0)*IF($T18=\"n/a\",$D18*$Y18,$G18)+IFERROR(IF(AND($V18<=AK$1,$W18>=AK$1),INDEX(Reliability!P$23:P$50,MATCH($T18,Reliability!$C$23:$C$50,0)),0),0)*$H18*$X18*$Y18),$D18)*$R18","v":0}]
[null,{"$f":"unique_contracts!B19","v":"COVERD_2_HCKHY1"},{"$f":"unique_contracts!D19","v":"Online"},{"$f":"unique_contracts!J19","v":6.89},{"$f":"unique_contracts!M19","v":"NotHybrid"},{"$f":"unique_contracts!N19","v":0},{"$f":"unique_contracts!P19","v":0},{"$f":"unique_contracts!R19","v":0},{"$f":"unique_contracts!V19","v":0},{"$f":"unique_contracts!AB19","v":"Buy"},{"$f":"unique_contracts!AM19","v":2017},{"$f":"unique_contracts!AN19","v":3},{"$f":"unique_contracts!AO19","v":9},{"$f":"unique_contracts!AP19","v":2037},{"$f":"unique_contracts!AQ19","v":3},{"$f":"unique_contracts!AR19","v":8},{"$f":"unique_contracts!BP19","v":"EnergyCapacity"},1,{"$f":"IFERROR(IF(AND(I19>0,E19=\"NotHybrid\"),_xlfn.CONCAT(MAX(MIN(ROUNDDOWN(I19/D19,0),8),4),INDEX(resources!$G:$G,MATCH(B19,resources!$A:$A,0))),INDEX(resources!$G:$G,MATCH(B19,resources!$A:$A,0))),\"n/a\")","v":"hydro"},"n/a","hydro",2017,2036,1,1,{"$f":"MIN((IFERROR(IF(AND($V19<=Z$1,$W19>=Z$1),INDEX(Reliability!E$23:E$50,MATCH($S19,Reliability!$C$23:$C$50,0)),0),0)*IF($T19=\"n/a\",$D19*$Y19,$G19)+IFERROR(IF(AND($V19<=Z$1,$W19>=Z$1),INDEX(Reliability!E$23:E$50,MATCH($T19,Reliability!$C$23:$C$50,0)),0),0)*$H19*$X19*$Y19),$D19)*$R19","v":3.5007085861406773},{"$f":"MIN((IFERROR(IF(AND($V19<=AA$1,$W19>=AA$1),INDEX(Reliability!F$23:F$50,MATCH($S19,Reliability!$C$23:$C$50,0)),0),0)*IF($T19=\"n/a\",$D19*$Y19,$G19)+IFERROR(IF(AND($V19<=AA$1,$W19>=AA$1),INDEX(Reliability!F$23:F$50,MATCH($T19,Reliability!$C$23:$C$50,0)),0),0)*$H19*$X19*$Y19),$D19)*$R19","v":3.5922106379360526},{"$f":"MIN((IFERROR(IF(AND($V19<=AB$1,$W19>=AB$1),INDEX(Reliability!G$23:G$50,MATCH($S19,Reliability!$C$23:$C$50,0)),0),0)*IF($T19=\"n/a\",$D19*$Y19,$G19)+IFERROR(IF(AND($V19<=AB$1,$W19>=AB$1),INDEX(Reliability!G$23:G$50,MATCH($T19,Reliability!$C$23:$C$50,0)),0),0)*$H19*$X19*$Y19),$D19)*$R19","v":3.6837126897314274},{"$f":"MIN((IFERROR(IF(AND($V19<=AC$1,$W19>=AC$1),INDEX(Reliability!H$23:H$50,MATCH($S19,Reliability!$C$23:$C$50,0)),0),0)*IF($T19=\"n/a\",$D19*$Y19,$G19)+IFERROR(IF(AND($V19<=AC$1,$W19>=AC$1),INDEX(Reliability!H$23:H$50,MATCH($T19,Reliability!$C$23:$C$50,0)),0),0)*$H19*$X19*$Y19),$D19)*$R19","v":3.6147297641432394},{"$f":"MIN((IFERROR(IF(AND($V19<=AD$1,$W19>=AD$1),INDEX(Reliability!I$23:I$50,MATCH($S19,Reliability!$C$23:$C$50,0)),0),0)*IF($T19=\"n/a\",$D19*$Y19,$G19)+IFERROR(IF(AND($V19<=AD$1,$W19>=AD$1),INDEX(Reliability!I$23:I$50,MATCH($T19,Reliability!$C$23:$C$50,0)),0),0)*$H19*$X19*$Y19),$D19)*$R19","v":3.5457468385550519},{"$f":"MIN((IFERROR(IF(AND($V19<=AE$1,$W19>=AE$1),INDEX(Reliability!J$23:J$50,MATCH($S19,Reliability!$C$23:$C$50,0)),0),0)*IF($T19=\"n/a\",$D19*$Y19,$G19)+IFERROR(IF(AND($V19<=AE$1,$W19>=AE$1),INDEX(Reliability!J$23:J$50,MATCH($T19,Reliability!$C$23:$C$50,0)),0),0)*$H19*$X19*$Y19),$D19)*$R19","v":3.6493531713128706},{"$f":"MIN((IFERROR(IF(AND($V19<=AF$1,$W19>=AF$1),INDEX(Reliability!K$23:K$50,MATCH($S19,Reliability!$C$23:$C$50,0)),0),0)*IF($T19=\"n/a\",$D19*$Y19,$G19)+IFERROR(IF(AND($V19<=AF$1,$W19>=AF$1),INDEX(Reliability!K$23:K$50,MATCH($T19,Reliability!$C$23:$C$50,0)),0),0)*$H19*$X19*$Y19),$D19)*$R19","v":3.752959504070688},{"$f":"MIN((IFERROR(IF(AND($V19<=AG$1,$W19>=AG$1),INDEX(Reliability!L$23:L$50,MATCH($S19,Reliability!$C$23:$C$50,0)),0),0)*IF($T19=\"n/a\",$D19*$Y19,$G19)+IFERROR(IF(AND($V19<=AG$1,$W19>=AG$1),INDEX(Reliability!L$23:L$50,MATCH($T19,Reliability!$C$23:$C$50,0)),0),0)*$H19*$X19*$Y19),$D19)*$R19","v":3.594684660211239},{"$f":"MIN((IFERROR(IF(AND($V19<=AH$1,$W19>=AH$1),INDEX(Reliability!M$23:M$50,MATCH($S19,Reliability!$C$23:$C$50,0)),0),0)*IF($T19=\"n/a\",$D19*$Y19,$G19)+IFERROR(IF(AND($V19<=AH$1,$W19>=AH$1),INDEX(Reliability!M$23:M$50,MATCH($T19,Reliability!$C$23:$C$50,0)),0),0)*$H19*$X19*$Y19),$D19)*$R19","v":3.4364098163517895},{"$f":"MIN((IFERROR(IF(AND($V19<=AI$1,$W19>=AI$1),INDEX(Reliability!N$23:N$50,MATCH($S19,Reliability!$C$23:$C$50,0)),0),0)*IF($T19=\"n/a\",$D19*$Y19,$G19)+IFERROR(IF(AND($V19<=AI$1,$W19>=AI$1),INDEX(Reliability!N$23:N$50,MATCH($T19,Reliability!$C$23:$C$50,0)),0),0)*$H19*$X19*$Y19),$D19)*$R19","v":3.2781349724923401},{"$f":"MIN((IFERROR(IF(AND($V19<=AJ$1,$W19>=AJ$1),INDEX(Reliability!O$23:O$50,MATCH($S19,Reliability!$C$23:$C$50,0)),0),0)*IF($T19=\"n/a\",$D19*$Y19,$G19)+IFERROR(IF(AND($V19<=AJ$1,$W19>=AJ$1),INDEX(Reliability!O$23:O$50,MATCH($T19,Reliability!$C$23:$C$50,0)),0),0)*$H19*$X19*$Y19),$D19)*$R19","v":3.1198601286328906},{"$f":"MIN((IFERROR(IF(AND($V19<=AK$1,$W19>=AK$1),INDEX(Reliability!P$23:P$50,MATCH($S19,Reliability!$C$23:$C$50,0)),0),0)*IF($T19=\"n/a\",$D19*$Y19,$G19)+IFERROR(IF(AND($V19<=AK$1,$W19>=AK$1),INDEX(Reliability!P$23:P$50,MATCH($T19,Reliability!$C$23:$C$50,0)),0),0)*$H19*$X19*$Y19),$D19)*$R19","v":2.9615852847734407}]
[null,{"$f":"unique_contracts!B20","v":"CLOVER_2_UNIT"},{"$f":"unique_contracts!D20","v":"Online"},{"$f":"unique_contracts!J20","v":0.9},{"$f":"unique_contracts!M20","v":"NotHybrid"},{"$f":"unique_contracts!N20","v":0},{"$f":"unique_contracts!P20","v":0},{"$f":"unique_contracts!R20","v":0},{"$f":"unique_contracts!V20","v":0},{"$f":"unique_contracts!AB20","v":"Buy"},{"$f":"unique_contracts!AM20","v":2018},{"$f":"unique_contracts!AN20","v":4},{"$f":"unique_contracts!AO20","v":1},{"$f":"unique_contracts!AP20","v":2033},{"$f":"unique_contracts!AQ20","v":3},{"$f":"unique_contracts!AR20","v":31},{"$f":"unique_contracts!BP20","v":"EnergyCapacity"},1,{"$f":"IFERROR(IF(AND(I20>0,E20=\"NotHybrid\"),_xlfn.CONCAT(MAX(MIN(ROUNDDOWN(I20/D20,0),8),4),INDEX(resources!$G:$G,MATCH(B20,resources!$A:$A,0))),INDEX(resources!$G:$G,MATCH(B20,resources!$A:$A,0))),\"n/a\")","v":"small_hydro"},"n/a","small_hydro",2018,2032,1,1,{"$f":"MIN((IFERROR(IF(AND($V20<=Z$1,$W20>=Z$1),INDEX(Reliability!E$23:E$50,MATCH($S20,Reliability!$C$23:$C$50,0)),0),0)*IF($T20=\"n/a\",$D20*$Y20,$G20)+IFERROR(IF(AND($V20<=Z$1,$W20>=Z$1),INDEX(Reliability!E$23:E$50,MATCH($T20,Reliability!$C$23:$C$50,0)),0),0)*$H20*$X20*$Y20),$D20)*$R20","v":0.32795636410032974},{"$f":"MIN((IFERROR(IF(AND($V20<=AA$1,$W20>=AA$1),INDEX(Reliability!F$23:F$50,MATCH($S20,Reliability!$C$23:$C$50,0)),0),0)*IF($T20=\"n/a\",$D20*$Y20,$G20)+IFERROR(IF(AND($V20<=AA$1,$W20>=AA$1),INDEX(Reliability!F$23:F$50,MATCH($T20,Reliability!$C$23:$C$50,0)),0),0)*$H20*$X20*$Y20),$D20)*$R20","v":0.33652853726930926},{"$f":"MIN((IFERROR(IF(AND($V20<=AB$1,$W20>=AB$1),INDEX(Reliability!G$23:G$50,MATCH($S20,Reliability!$C$23:$C$50,0)),0),0)*IF($T20=\"n/a\",$D20*$Y20,$G20)+IFERROR(IF(AND($V20<=AB$1,$W20>=AB$1),INDEX(Reliability!G$23:G$50,MATCH($T20,Reliability!$C$23:$C$50,0)),0),0)*$H20*$X20*$Y20),$D20)*$R20","v":0.34510071043828872},{"$f":"MIN((IFERROR(IF(AND($V20<=AC$1,$W20>=AC$1),INDEX(Reliability!H$23:H$50,MATCH($S20,Reliability!$C$23:$C$50,0)),0),0)*IF($T20=\"n/a\",$D20*$Y20,$G20)+IFERROR(IF(AND($V20<=AC$1,$W20>=AC$1),INDEX(Reliability!H$23:H$50,MATCH($T20,Reliability!$C$23:$C$50,0)),0),0)*$H20*$X20*$Y20),$D20)*$R20","v":0.33863819323520827},{"$f":"MIN((IFERROR(IF(AND($V20<=AD$1,$W20>=AD$1),INDEX(Reliability!I$23:I$50,MATCH($S20,Reliability!$C$23:$C$50,0)),0),0)*IF($T20=\"n/a\",$D20*$Y20,$G20)+IFERROR(IF(AND($V20<=AD$1,$W20>=AD$1),INDEX(Reliability!I$23:I$50,MATCH($T20,Reliability!$C$23:$C$50,0)),0),0)*$H20*$X20*$Y20),$D20)*$R20","v":0.33217567603212778},{"$f":"MIN((IFERROR(IF(AND($V20<=AE$1,$W20>=AE$1),INDEX(Reliability!J$23:J$50,MATCH($S20,Reliability!$C$23:$C$50,0)),0),0)*IF($T20=\"n/a\",$D20*$Y20,$G20)+IFERROR(IF(AND($V20<=AE$1,$W20>=AE$1),INDEX(Reliability!J$23:J$50,MATCH($T20,Reliability!$C$23:$C$50,0)),0),0)*$H20*$X20*$Y20),$D20)*$R20","v":0.34188181276214391},{"$f":"MIN((IFERROR(IF(AND($V20<=AF$1,$W20>=AF$1),INDEX(Reliability!K$23:K$50,MATCH($S20,Reliability!$C$23:$C$50,0)),0),0)*IF($T20=\"n/a\",$D20*$Y20,$G20)+IFERROR(IF(AND($V20<=AF$1,$W20>=AF$1),INDEX(Reliability!K$23:K$50,MATCH($T20,Reliability!$C$23:$C$50,0)),0),0)*$H20*$X20*$Y20),$D20)*$R20","v":0.35158794949216005},{"$f":"MIN((IFERROR(IF(AND($V20<=AG$1,$W20>=AG$1),INDEX(Reliability!L$23:L$50,MATCH($S20,Reliability!$C$23:$C$50,0)),0),0)*IF($T20=\"n/a\",$D20*$Y20,$G20)+IFERROR(IF(AND($V20<=AG$1,$W20>=AG$1),INDEX(Reliability!L$23:L$50,MATCH($T20,Reliability!$C$23:$C$50,0)),0),0)*$H20*$X20*$Y20),$D20)*$R20","v":0.33676031073176926},{"$f":"MIN((IFERROR(IF(AND($V20<=AH$1,$W20>=AH$1),INDEX(Reliability!M$23:M$50,MATCH($S20,Reliability!$C$23:$C$50,0)),0),0)*IF($T20=\"n/a\",$D20*$Y20,$G20)+IFERROR(IF(AND($V20<=AH$1,$W20>=AH$1),INDEX(Reliability!M$23:M$50,MATCH($T20,Reliability!$C$23:$C$50,0)),0),0)*$H20*$X20*$Y20),$D20)*$R20","v":0.32193267197137848},{"$f":"MIN((IFERROR(IF(AND($V20<=AI$1,$W20>=AI$1),INDEX(Reliability!N$23:N$50,MATCH($S20,Reliability!$C$23:$C$50,0)),0),0)*IF($T20=\"n/a\",$D20*$Y20,$G20)+IFERROR(IF(AND($V20<=AI$1,$W20>=AI$1),INDEX(Reliability!N$23:N$50,MATCH($T20,Reliability!$C$23:$C$50,0)),0),0)*$H20*$X20*$Y20),$D20)*$R20","v":0},{"$f":"MIN((IFERROR(IF(AND($V20<=AJ$1,$W20>=AJ$1),INDEX(Reliability!O$23:O$50,MATCH($S20,Reliability!$C$23:$C$50,0)),0),0)*IF($T20=\"n/a\",$D20*$Y20,$G20)+IFERROR(IF(AND($V20<=AJ$1,$W20>=AJ$1),INDEX(Reliability!O$23:O$50,MATCH($T20,Reliability!$C$23:$C$50,0)),0),0)*$H20*$X20*$Y20),$D20)*$R20","v":0},{"$f":"MIN((IFERROR(IF(AND($V20<=AK$1,$W20>=AK$1),INDEX(Reliability!P$23:P$50,MATCH($S20,Reliability!$C$23:$C$50,0)),0),0)*IF($T20=\"n/a\",$D20*$Y20,$G20)+IFERROR(IF(AND($V20<=AK$1,$W20>=AK$1),INDEX(Reliability!P$23:P$50,MATCH($T20,Reliability!$C$23:$C$50,0)),0),0)*$H20*$X20*$Y20),$D20)*$R20","v":0}]
[null,{"$f":"unique_contracts!B21","v":"CABALO_2_M2WSR2"},{"$f":"unique_contracts!D21","v":"Online"},{"$f":"unique_contracts!J21","v":100},{"$f":"unique_contracts!M21","v":"NotHybrid"},{"$f":"unique_contracts!N21","v":0},{"$f":"unique_contracts!P21","v":0},{"$f":"unique_contracts!R21","v":0},{"$f":"unique_contracts!V21","v":0},{"$f":"unique_contracts!AB21","v":"Buy"},{"$f":"unique_contracts!AM21","v":2020},{"$f":"unique_contracts!AN21","v":11},{"$f":"unique_contracts!AO21","v":11},{"$f":"unique_contracts!AP21","v":2035},{"$f":"unique_contracts!AQ21","v":11},{"$f":"unique_contracts!AR21","v":10},{"$f":"unique_contracts!BP21","v":"EnergyCapacity"},1,{"$f":"IFERROR(IF(AND(I21>0,E21=\"NotHybrid\"),_xlfn.CONCAT(MAX(MIN(ROUNDDOWN(I21/D21,0),8),4),INDEX(resources!$G:$G,MATCH(B21,resources!$A:$A,0))),INDEX(resources!$G:$G,MATCH(B21,resources!$A:$A,0))),\"n/a\")","v":"utility_pv"},"n/a","utility_pv",2021,2035,1,1,{"$f":"MIN((IFERROR(IF(AND($V21<=Z$1,$W21>=Z$1),INDEX(Reliability!E$23:E$50,MATCH($S21,Reliability!$C$23:$C$50,0)),0),0)*IF($T21=\"n/a\",$D21*$Y21,$G21)+IFERROR(IF(AND($V21<=Z$1,$W21>=Z$1),INDEX(Reliability!E$23:E$50,MATCH($T21,Reliability!$C$23:$C$50,0)),0),0)*$H21*$X21*$Y21),$D21)*$R21","v":12.434584155282009},{"$f":"MIN((IFERROR(IF(AND($V21<=AA$1,$W21>=AA$1),INDEX(Reliability!F$23:F$50,MATCH($S21,Reliability!$C$23:$C$50,0)),0),0)*IF($T21=\"n/a\",$D21*$Y21,$G21)+IFERROR(IF(AND($V21<=AA$1,$W21>=AA$1),INDEX(Reliability!F$23:F$50,MATCH($T21,Reliability!$C$23:$C$50,0)),0),0)*$H21*$X21*$Y21),$D21)*$R21","v":12.102944303332039},{"$f":"MIN((IFERROR(IF(AND($V21<=AB$1,$W21>=AB$1),INDEX(Reliability!G$23:G$50,MATCH($S21,Reliability!$C$23:$C$50,0)),0),0)*IF($T21=\"n/a\",$D21*$Y21,$G21)+IFERROR(IF(AND($V21<=AB$1,$W21>=AB$1),INDEX(Reliability!G$23:G$50,MATCH($T21,Reliability!$C$23:$C$50,0)),0),0)*$H21*$X21*$Y21),$D21)*$R21","v":11.771304451382068},{"$f":"MIN((IFERROR(IF(AND($V21<=AC$1,$W21>=AC$1),INDEX(Reliability!H$23:H$50,MATCH($S21,Reliability!$C$23:$C$50,0)),0),0)*IF($T21=\"n/a\",$D21*$Y21,$G21)+IFERROR(IF(AND($V21<=AC$1,$W21>=AC$1),INDEX(Reliability!H$23:H$50,MATCH($T21,Reliability!$C$23:$C$50,0)),0),0)*$H21*$X21*$Y21),$D21)*$R21","v":10.01620473979912},{"$f":"MIN((IFERROR(IF(AND($V21<=AD$1,$W21>=AD$1),INDEX(Reliability!I$23:I$50,MATCH($S21,Reliability!$C$23:$C$50,0)),0),0)*IF($T21=\"n/a\",$D21*$Y21,$G21)+IFERROR(IF(AND($V21<=AD$1,$W21>=AD$1),INDEX(Reliability!I$23:I$50,MATCH($T21,Reliability!$C$23:$C$50,0)),0),0)*$H21*$X21*$Y21),$D21)*$R21","v":8.2611050282161731},{"$f":"MIN((IFERROR(IF(AND($V21<=AE$1,$W21>=AE$1),INDEX(Reliability!J$23:J$50,MATCH($S21,Reliability!$C$23:$C$50,0)),0),0)*IF($T21=\"n/a\",$D21*$Y21,$G21)+IFERROR(IF(AND($V21<=AE$1,$W21>=AE$1),INDEX(Reliability!J$23:J$50,MATCH($T21,Reliability!$C$23:$C$50,0)),0),0)*$H21*$X21*$Y21),$D21)*$R21","v":7.6604612550073998},{"$f":"MIN((IFERROR(IF(AND($V21<=AF$1,$W21>=AF$1),INDEX(Reliability!K$23:K$50,MATCH($S21,Reliability!$C$23:$C$50,0)),0),0)*IF($T21=\"n/a\",$D21*$Y21,$G21)+IFERROR(IF(AND($V21<=AF$1,$W21>=AF$1),INDEX(Reliability!K$23:K$50,MATCH($T21,Reliability!$C$23:$C$50,0)),0),0)*$H21*$X21*$Y21),$D21)*$R21","v":7.0598174817986266},{"$f":"MIN((IFERROR(IF(AND($V21<=AG$1,$W21>=AG$1),INDEX(Reliability!L$23:L$50,MATCH($S21,Reliability!$C$23:$C$50,0)),0),0)*IF($T21=\"n/a\",$D21*$Y21,$G21)+IFERROR(IF(AND($V21<=AG$1,$W21>=AG$1),INDEX(Reliability!L$23:L$50,MATCH($T21,Reliability!$C$23:$C$50,0)),0),0)*$H21*$X21*$Y21),$D21)*$R21","v":6.9278539854389001},{"$f":"MIN((IFERROR(IF(AND($V21<=AH$1,$W21>=AH$1),INDEX(Reliability!M$23:M$50,MATCH($S21,Reliability!$C$23:$C$50,0)),0),0)*IF($T21=\"n/a\",$D21*$Y21,$G21)+IFERROR(IF(AND($V21<=AH$1,$W21>=AH$1),INDEX(Reliability!M$23:M$50,MATCH($T21,Reliability!$C$23:$C$50,0)),0),0)*$H21*$X21*$Y21),$D21)*$R21","v":6.7958904890791745},{"$f":"MIN((IFERROR(IF(AND($V21<=AI$1,$W21>=AI$1),INDEX(Reliability!N$23:N$50,MATCH($S21,Reliability!$C$23:$C$50,0)),0),0)*IF($T21=\"n/a\",$D21*$Y21,$G21)+IFERROR(IF(AND($V21<=AI$1,$W21>=AI$1),INDEX(Reliability!N$23:N$50,MATCH($T21,Reliability!$C$23:$C$50,0)),0),0)*$H21*$X21*$Y21),$D21)*$R21","v":6.6639269927194489},{"$f":"MIN((IFERROR(IF(AND($V21<=AJ$1,$W21>=AJ$1),INDEX(Reliability!O$23:O$50,MATCH($S21,Reliability!$C$23:$C$50,0)),0),0)*IF($T21=\"n/a\",$D21*$Y21,$G21)+IFERROR(IF(AND($V21<=AJ$1,$W21>=AJ$1),INDEX(Reliability!O$23:O$50,MATCH($T21,Reliability!$C$23:$C$50,0)),0),0)*$H21*$X21*$Y21),$D21)*$R21","v":6.5319634963597233},{"$f":"MIN((IFERROR(IF(AND($V21<=AK$1,$W21>=AK$1),INDEX(Reliability!P$23:P$50,MATCH($S21,Reliability!$C$23:$C$50,0)),0),0)*IF($T21=\"n/a\",$D21*$Y21,$G21)+IFERROR(IF(AND($V21<=AK$1,$W21>=AK$1),INDEX(Reliability!P$23:P$50,MATCH($T21,Reliability!$C$23:$C$50,0)),0),0)*$H21*$X21*$Y21),$D21)*$R21","v":6.4}]
[null,{"$f":"unique_contracts!B22","v":"WRGTSR_2_WSFSR1"},{"$f":"unique_contracts!D22","v":"Online"},{"$f":"unique_contracts!J22","v":200},{"$f":"unique_contracts!M22","v":"NotHybrid"},{"$f":"unique_contracts!N22","v":0},{"$f":"unique_contracts!P22","v":0},{"$f":"unique_contracts!R22","v":0},{"$f":"unique_contracts!V22","v":0},{"$f":"unique_contracts!AB22","v":"Buy"},{"$f":"unique_contracts!AM22","v":2020},{"$f":"unique_contracts!AN22","v":1},{"$f":"unique_contracts!AO22","v":3},{"$f":"unique_contracts!AP22","v":2045},{"$f":"unique_contracts!AQ22","v":1},{"$f":"unique_contracts!AR22","v":2},{"$f":"unique_contracts!BP22","v":"EnergyCapacity"},1,{"$f":"IFERROR(IF(AND(I22>0,E22=\"NotHybrid\"),_xlfn.CONCAT(MAX(MIN(ROUNDDOWN(I22/D22,0),8),4),INDEX(resources!$G:$G,MATCH(B22,resources!$A:$A,0))),INDEX(resources!$G:$G,MATCH(B22,resources!$A:$A,0))),\"n/a\")","v":"utility_pv"},"n/a","utility_pv",2020,2044,1,1,{"$f":"MIN((IFERROR(IF(AND($V22<=Z$1,$W22>=Z$1),INDEX(Reliability!E$23:E$50,MATCH($S22,Reliability!$C$23:$C$50,0)),0),0)*IF($T22=\"n/a\",$D22*$Y22,$G22)+IFERROR(IF(AND($V22<=Z$1,$W22>=Z$1),INDEX(Reliability!E$23:E$50,MATCH($T22,Reliability!$C$23:$C$50,0)),0),0)*$H22*$X22*$Y22),$D22)*$R22","v":24.869168310564017},{"$f":"MIN((IFERROR(IF(AND($V22<=AA$1,$W22>=AA$1),INDEX(Reliability!F$23:F$50,MATCH($S22,Reliability!$C$23:$C$50,0)),0),0)*IF($T22=\"n/a\",$D22*$Y22,$G22)+IFERROR(IF(AND($V22<=AA$1,$W22>=AA$1),INDEX(Reliability!F$23:F$50,MATCH($T22,Reliability!$C$23:$C$50,0)),0),0)*$H22*$X22*$Y22),$D22)*$R22","v":24.205888606664079},{"$f":"MIN((IFERROR(IF(AND($V22<=AB$1,$W22>=AB$1),INDEX(Reliability!G$23:G$50,MATCH($S22,Reliability!$C$23:$C$50,0)),0),0)*IF($T22=\"n/a\",$D22*$Y22,$G22)+IFERROR(IF(AND($V22<=AB$1,$W22>=AB$1),INDEX(Reliability!G$23:G$50,MATCH($T22,Reliability!$C$23:$C$50,0)),0),0)*$H22*$X22*$Y22),$D22)*$R22","v":23.542608902764137},{"$f":"MIN((IFERROR(IF(AND($V22<=AC$1,$W22>=AC$1),INDEX(Reliability!H$23:H$50,MATCH($S22,Reliability!$C$23:$C$50,0)),0),0)*IF($T22=\"n/a\",$D22*$Y22,$G22)+IFERROR(IF(AND($V22<=AC$1,$W22>=AC$1),INDEX(Reliability!H$23:H$50,MATCH($T22,Reliability!$C$23:$C$50,0)),0),0)*$H22*$X22*$Y22),$D22)*$R22","v":20.03240947959824},{"$f":"MIN((IFERROR(IF(AND($V22<=AD$1,$W22>=AD$1),INDEX(Reliability!I$23:I$50,MATCH($S22,Reliability!$C$23:$C$50,0)),0),0)*IF($T22=\"n/a\",$D22*$Y22,$G22)+IFERROR(IF(AND($V22<=AD$1,$W22>=AD$1),INDEX(Reliability!I$23:I$50,MATCH($T22,Reliability!$C$23:$C$50,0)),0),0)*$H22*$X22*$Y22),$D22)*$R22","v":16.522210056432346},{"$f":"MIN((IFERROR(IF(AND($V22<=AE$1,$W22>=AE$1),INDEX(Reliability!J$23:J$50,MATCH($S22,Reliability!$C$23:$C$50,0)),0),0)*IF($T22=\"n/a\",$D22*$Y22,$G22)+IFERROR(IF(AND($V22<=AE$1,$W22>=AE$1),INDEX(Reliability!J$23:J$50,MATCH($T22,Reliability!$C$23:$C$50,0)),0),0)*$H22*$X22*$Y22),$D22)*$R22","v":15.3209225100148},{"$f":"MIN((IFERROR(IF(AND($V22<=AF$1,$W22>=AF$1),INDEX(Reliability!K$23:K$50,MATCH($S22,Reliability!$C$23:$C$50,0)),0),0)*IF($T22=\"n/a\",$D22*$Y22,$G22)+IFERROR(IF(AND($V22<=AF$1,$W22>=AF$1),INDEX(Reliability!K$23:K$50,MATCH($T22,Reliability!$C$23:$C$50,0)),0),0)*$H22*$X22*$Y22),$D22)*$R22","v":14.119634963597253},{"$f":"MIN((IFERROR(IF(AND($V22<=AG$1,$W22>=AG$1),INDEX(Reliability!L$23:L$50,MATCH($S22,Reliability!$C$23:$C$50,0)),0),0)*IF($T22=\"n/a\",$D22*$Y22,$G22)+IFERROR(IF(AND($V22<=AG$1,$W22>=AG$1),INDEX(Reliability!L$23:L$50,MATCH($T22,Reliability!$C$23:$C$50,0)),0),0)*$H22*$X22*$Y22),$D22)*$R22","v":13.8557079708778},{"$f":"MIN((IFERROR(IF(AND($V22<=AH$1,$W22>=AH$1),INDEX(Reliability!M$23:M$50,MATCH($S22,Reliability!$C$23:$C$50,0)),0),0)*IF($T22=\"n/a\",$D22*$Y22,$G22)+IFERROR(IF(AND($V22<=AH$1,$W22>=AH$1),INDEX(Reliability!M$23:M$50,MATCH($T22,Reliability!$C$23:$C$50,0)),0),0)*$H22*$X22*$Y22),$D22)*$R22","v":13.591780978158349},{"$f":"MIN((IFERROR(IF(AND($V22<=AI$1,$W22>=AI$1),INDEX(Reliability!N$23:N$50,MATCH($S22,Reliability!$C$23:$C$50,0)),0),0)*IF($T22=\"n/a\",$D22*$Y22,$G22)+IFERROR(IF(AND($V22<=AI$1,$W22>=AI$1),INDEX(Reliability!N$23:N$50,MATCH($T22,Reliability!$C$23:$C$50,0)),0),0)*$H22*$X22*$Y22),$D22)*$R22","v":13.327853985438898},{"$f":"MIN((IFERROR(IF(AND($V22<=AJ$1,$W22>=AJ$1),INDEX(Reliability!O$23:O$50,MATCH($S22,Reliability!$C$23:$C$50,0)),0),0)*IF($T22=\"n/a\",$D22*$Y22,$G22)+IFERROR(IF(AND($V22<=AJ$1,$W22>=AJ$1),INDEX(Reliability!O$23:O$50,MATCH($T22,Reliability!$C$23:$C$50,0)),0),0)*$H22*$X22*$Y22),$D22)*$R22","v":13.063926992719447},{"$f":"MIN((IFERROR(IF(AND($V22<=AK$1,$W22>=AK$1),INDEX(Reliability!P$23:P$50,MATCH($S22,Reliability!$C$23:$C$50,0)),0),0)*IF($T22=\"n/a\",$D22*$Y22,$G22)+IFERROR(IF(AND($V22<=AK$1,$W22>=AK$1),INDEX(Reliability!P$23:P$50,MATCH($T22,Reliability!$C$23:$C$50,0)),0),0)*$H22*$X22*$Y22),$D22)*$R22","v":12.8}]
[null,{"$f":"unique_contracts!B23","v":"_CREZ_GENERIC_TEHACHAPI_SOLAR"},{"$f":"unique_contracts!D23","v":"Development"},{"$f":"unique_contracts!J23","v":102},{"$f":"unique_contracts!M23","v":"NewSolarNewStorage"},{"$f":"unique_contracts!N23","v":"NO"},{"$f":"unique_contracts!P23","v":0},{"$f":"unique_contracts!R23","v":0},{"$f":"unique_contracts!V23","v":0},{"$f":"unique_contracts!AB23","v":"Buy"},{"$f":"unique_contracts!AM23","v":2023},{"$f":"unique_contracts!AN23","v":5},{"$f":"unique_contracts!AO23","v":1},{"$f":"unique_contracts!AP23","v":2038},{"$f":"unique_contracts!AQ23","v":12},{"$f":"unique_contracts!AR23","v":31},{"$f":"unique_contracts!BP23","v":"EnergyCapacity"},1,{"$f":"IFERROR(IF(AND(I23>0,E23=\"NotHybrid\"),_xlfn.CONCAT(MAX(MIN(ROUNDDOWN(I23/D23,0),8),4),INDEX(resources!$G:$G,MATCH(B23,resources!$A:$A,0))),INDEX(resources!$G:$G,MATCH(B23,resources!$A:$A,0))),\"n/a\")","v":"utility_pv"},"n/a","utility_pv",2023,2038,1,1,{"$f":"MIN((IFERROR(IF(AND($V23<=Z$1,$W23>=Z$1),INDEX(Reliability!E$23:E$50,MATCH($S23,Reliability!$C$23:$C$50,0)),0),0)*IF($T23=\"n/a\",$D23*$Y23,$G23)+IFERROR(IF(AND($V23<=Z$1,$W23>=Z$1),INDEX(Reliability!E$23:E$50,MATCH($T23,Reliability!$C$23:$C$50,0)),0),0)*$H23*$X23*$Y23),$D23)*$R23","v":12.683275838387649},{"$f":"MIN((IFERROR(IF(AND($V23<=AA$1,$W23>=AA$1),INDEX(Reliability!F$23:F$50,MATCH($S23,Reliability!$C$23:$C$50,0)),0),0)*IF($T23=\"n/a\",$D23*$Y23,$G23)+IFERROR(IF(AND($V23<=AA$1,$W23>=AA$1),INDEX(Reliability!F$23:F$50,MATCH($T23,Reliability!$C$23:$C$50,0)),0),0)*$H23*$X23*$Y23),$D23)*$R23","v":12.34500318939868},{"$f":"MIN((IFERROR(IF(AND($V23<=AB$1,$W23>=AB$1),INDEX(Reliability!G$23:G$50,MATCH($S23,Reliability!$C$23:$C$50,0)),0),0)*IF($T23=\"n/a\",$D23*$Y23,$G23)+IFERROR(IF(AND($V23<=AB$1,$W23>=AB$1),INDEX(Reliability!G$23:G$50,MATCH($T23,Reliability!$C$23:$C$50,0)),0),0)*$H23*$X23*$Y23),$D23)*$R23","v":12.006730540409709},{"$f":"MIN((IFERROR(IF(AND($V23<=AC$1,$W23>=AC$1),INDEX(Reliability!H$23:H$50,MATCH($S23,Reliability!$C$23:$C$50,0)),0),0)*IF($T23=\"n/a\",$D23*$Y23,$G23)+IFERROR(IF(AND($V23<=AC$1,$W23>=AC$1),INDEX(Reliability!H$23:H$50,MATCH($T23,Reliability!$C$23:$C$50,0)),0),0)*$H23*$X23*$Y23),$D23)*$R23","v":10.216528834595103},{"$f":"MIN((IFERROR(IF(AND($V23<=AD$1,$W23>=AD$1),INDEX(Reliability!I$23:I$50,MATCH($S23,Reliability!$C$23:$C$50,0)),0),0)*IF($T23=\"n/a\",$D23*$Y23,$G23)+IFERROR(IF(AND($V23<=AD$1,$W23>=AD$1),INDEX(Reliability!I$23:I$50,MATCH($T23,Reliability!$C$23:$C$50,0)),0),0)*$H23*$X23*$Y23),$D23)*$R23","v":8.4263271287804962},{"$f":"MIN((IFERROR(IF(AND($V23<=AE$1,$W23>=AE$1),INDEX(Reliability!J$23:J$50,MATCH($S23,Reliability!$C$23:$C$50,0)),0),0)*IF($T23=\"n/a\",$D23*$Y23,$G23)+IFERROR(IF(AND($V23<=AE$1,$W23>=AE$1),INDEX(Reliability!J$23:J$50,MATCH($T23,Reliability!$C$23:$C$50,0)),0),0)*$H23*$X23*$Y23),$D23)*$R23","v":7.8136704801075485},{"$f":"MIN((IFERROR(IF(AND($V23<=AF$1,$W23>=AF$1),INDEX(Reliability!K$23:K$50,MATCH($S23,Reliability!$C$23:$C$50,0)),0),0)*IF($T23=\"n/a\",$D23*$Y23,$G23)+IFERROR(IF(AND($V23<=AF$1,$W23>=AF$1),INDEX(Reliability!K$23:K$50,MATCH($T23,Reliability!$C$23:$C$50,0)),0),0)*$H23*$X23*$Y23),$D23)*$R23","v":7.2010138314345991},{"$f":"MIN((IFERROR(IF(AND($V23<=AG$1,$W23>=AG$1),INDEX(Reliability!L$23:L$50,MATCH($S23,Reliability!$C$23:$C$50,0)),0),0)*IF($T23=\"n/a\",$D23*$Y23,$G23)+IFERROR(IF(AND($V23<=AG$1,$W23>=AG$1),INDEX(Reliability!L$23:L$50,MATCH($T23,Reliability!$C$23:$C$50,0)),0),0)*$H23*$X23*$Y23),$D23)*$R23","v":7.0664110651476788},{"$f":"MIN((IFERROR(IF(AND($V23<=AH$1,$W23>=AH$1),INDEX(Reliability!M$23:M$50,MATCH($S23,Reliability!$C$23:$C$50,0)),0),0)*IF($T23=\"n/a\",$D23*$Y23,$G23)+IFERROR(IF(AND($V23<=AH$1,$W23>=AH$1),INDEX(Reliability!M$23:M$50,MATCH($T23,Reliability!$C$23:$C$50,0)),0),0)*$H23*$X23*$Y23),$D23)*$R23","v":6.9318082988607586},{"$f":"MIN((IFERROR(IF(AND($V23<=AI$1,$W23>=AI$1),INDEX(Reliability!N$23:N$50,MATCH($S23,Reliability!$C$23:$C$50,0)),0),0)*IF($T23=\"n/a\",$D23*$Y23,$G23)+IFERROR(IF(AND($V23<=AI$1,$W23>=AI$1),INDEX(Reliability!N$23:N$50,MATCH($T23,Reliability!$C$23:$C$50,0)),0),0)*$H23*$X23*$Y23),$D23)*$R23","v":6.7972055325738374},{"$f":"MIN((IFERROR(IF(AND($V23<=AJ$1,$W23>=AJ$1),INDEX(Reliability!O$23:O$50,MATCH($S23,Reliability!$C$23:$C$50,0)),0),0)*IF($T23=\"n/a\",$D23*$Y23,$G23)+IFERROR(IF(AND($V23<=AJ$1,$W23>=AJ$1),INDEX(Reliability!O$23:O$50,MATCH($T23,Reliability!$C$23:$C$50,0)),0),0)*$H23*$X23*$Y23),$D23)*$R23","v":6.6626027662869172},{"$f":"MIN((IFERROR(IF(AND($V23<=AK$1,$W23>=AK$1),INDEX(Reliability!P$23:P$50,MATCH($S23,Reliability!$C$23:$C$50,0)),0),0)*IF($T23=\"n/a\",$D23*$Y23,$G23)+IFERROR(IF(AND($V23<=AK$1,$W23>=AK$1),INDEX(Reliability!P$23:P$50,MATCH($T23,Reliability!$C$23:$C$50,0)),0),0)*$H23*$X23*$Y23),$D23)*$R23","v":6.5280000000000005}]
[null,{"$f":"unique_contracts!B24","v":"_CREZ_GENERIC_TEHACHAPI_SOLAR"},{"$f":"unique_contracts!D24","v":"Development"},{"$f":"unique_contracts!J24","v":102},{"$f":"unique_contracts!M24","v":"NewSolarNewStorage"},{"$f":"unique_contracts!N24","v":"YES"},{"$f":"unique_contracts!P24","v":0},{"$f":"unique_contracts!R24","v":0},{"$f":"unique_contracts!V24","v":0},{"$f":"unique_contracts!AB24","v":"Buy"},{"$f":"unique_contracts!AM24","v":2024},{"$f":"unique_contracts!AN24","v":1},{"$f":"unique_contracts!AO24","v":1},{"$f":"unique_contracts!AP24","v":2038},{"$f":"unique_contracts!AQ24","v":12},{"$f":"unique_contracts!AR24","v":31},{"$f":"unique_contracts!BP24","v":"EnergyCapacity"},1,{"$f":"IFERROR(IF(AND(I24>0,E24=\"NotHybrid\"),_xlfn.CONCAT(MAX(MIN(ROUNDDOWN(I24/D24,0),8),4),INDEX(resources!$G:$G,MATCH(B24,resources!$A:$A,0))),INDEX(resources!$G:$G,MATCH(B24,resources!$A:$A,0))),\"n/a\")","v":"utility_pv"},"n/a","utility_pv",2024,2038,1,1,{"$f":"MIN((IFERROR(IF(AND($V24<=Z$1,$W24>=Z$1),INDEX(Reliability!E$23:E$50,MATCH($S24,Reliability!$C$23:$C$50,0)),0),0)*IF($T24=\"n/a\",$D24*$Y24,$G24)+IFERROR(IF(AND($V24<=Z$1,$W24>=Z$1),INDEX(Reliability!E$23:E$50,MATCH($T24,Reliability!$C$23:$C$50,0)),0),0)*$H24*$X24*$Y24),$D24)*$R24","v":12.683275838387649},{"$f":"MIN((IFERROR(IF(AND($V24<=AA$1,$W24>=AA$1),INDEX(Reliability!F$23:F$50,MATCH($S24,Reliability!$C$23:$C$50,0)),0),0)*IF($T24=\"n/a\",$D24*$Y24,$G24)+IFERROR(IF(AND($V24<=AA$1,$W24>=AA$1),INDEX(Reliability!F$23:F$50,MATCH($T24,Reliability!$C$23:$C$50,0)),0),0)*$H24*$X24*$Y24),$D24)*$R24","v":12.34500318939868},{"$f":"MIN((IFERROR(IF(AND($V24<=AB$1,$W24>=AB$1),INDEX(Reliability!G$23:G$50,MATCH($S24,Reliability!$C$23:$C$50,0)),0),0)*IF($T24=\"n/a\",$D24*$Y24,$G24)+IFERROR(IF(AND($V24<=AB$1,$W24>=AB$1),INDEX(Reliability!G$23:G$50,MATCH($T24,Reliability!$C$23:$C$50,0)),0),0)*$H24*$X24*$Y24),$D24)*$R24","v":12.006730540409709},{"$f":"MIN((IFERROR(IF(AND($V24<=AC$1,$W24>=AC$1),INDEX(Reliability!H$23:H$50,MATCH($S24,Reliability!$C$23:$C$50,0)),0),0)*IF($T24=\"n/a\",$D24*$Y24,$G24)+IFERROR(IF(AND($V24<=AC$1,$W24>=AC$1),INDEX(Reliability!H$23:H$50,MATCH($T24,Reliability!$C$23:$C$50,0)),0),0)*$H24*$X24*$Y24),$D24)*$R24","v":10.216528834595103},{"$f":"MIN((IFERROR(IF(AND($V24<=AD$1,$W24>=AD$1),INDEX(Reliability!I$23:I$50,MATCH($S24,Reliability!$C$23:$C$50,0)),0),0)*IF($T24=\"n/a\",$D24*$Y24,$G24)+IFERROR(IF(AND($V24<=AD$1,$W24>=AD$1),INDEX(Reliability!I$23:I$50,MATCH($T24,Reliability!$C$23:$C$50,0)),0),0)*$H24*$X24*$Y24),$D24)*$R24","v":8.4263271287804962},{"$f":"MIN((IFERROR(IF(AND($V24<=AE$1,$W24>=AE$1),INDEX(Reliability!J$23:J$50,MATCH($S24,Reliability!$C$23:$C$50,0)),0),0)*IF($T24=\"n/a\",$D24*$Y24,$G24)+IFERROR(IF(AND($V24<=AE$1,$W24>=AE$1),INDEX(Reliability!J$23:J$50,MATCH($T24,Reliability!$C$23:$C$50,0)),0),0)*$H24*$X24*$Y24),$D24)*$R24","v":7.8136704801075485},{"$f":"MIN((IFERROR(IF(AND($V24<=AF$1,$W24>=AF$1),INDEX(Reliability!K$23:K$50,MATCH($S24,Reliability!$C$23:$C$50,0)),0),0)*IF($T24=\"n/a\",$D24*$Y24,$G24)+IFERROR(IF(AND($V24<=AF$1,$W24>=AF$1),INDEX(Reliability!K$23:K$50,MATCH($T24,Reliability!$C$23:$C$50,0)),0),0)*$H24*$X24*$Y24),$D24)*$R24","v":7.2010138314345991},{"$f":"MIN((IFERROR(IF(AND($V24<=AG$1,$W24>=AG$1),INDEX(Reliability!L$23:L$50,MATCH($S24,Reliability!$C$23:$C$50,0)),0),0)*IF($T24=\"n/a\",$D24*$Y24,$G24)+IFERROR(IF(AND($V24<=AG$1,$W24>=AG$1),INDEX(Reliability!L$23:L$50,MATCH($T24,Reliability!$C$23:$C$50,0)),0),0)*$H24*$X24*$Y24),$D24)*$R24","v":7.0664110651476788},{"$f":"MIN((IFERROR(IF(AND($V24<=AH$1,$W24>=AH$1),INDEX(Reliability!M$23:M$50,MATCH($S24,Reliability!$C$23:$C$50,0)),0),0)*IF($T24=\"n/a\",$D24*$Y24,$G24)+IFERROR(IF(AND($V24<=AH$1,$W24>=AH$1),INDEX(Reliability!M$23:M$50,MATCH($T24,Reliability!$C$23:$C$50,0)),0),0)*$H24*$X24*$Y24),$D24)*$R24","v":6.9318082988607586},{"$f":"MIN((IFERROR(IF(AND($V24<=AI$1,$W24>=AI$1),INDEX(Reliability!N$23:N$50,MATCH($S24,Reliability!$C$23:$C$50,0)),0),0)*IF($T24=\"n/a\",$D24*$Y24,$G24)+IFERROR(IF(AND($V24<=AI$1,$W24>=AI$1),INDEX(Reliability!N$23:N$50,MATCH($T24,Reliability!$C$23:$C$50,0)),0),0)*$H24*$X24*$Y24),$D24)*$R24","v":6.7972055325738374},{"$f":"MIN((IFERROR(IF(AND($V24<=AJ$1,$W24>=AJ$1),INDEX(Reliability!O$23:O$50,MATCH($S24,Reliability!$C$23:$C$50,0)),0),0)*IF($T24=\"n/a\",$D24*$Y24,$G24)+IFERROR(IF(AND($V24<=AJ$1,$W24>=AJ$1),INDEX(Reliability!O$23:O$50,MATCH($T24,Reliability!$C$23:$C$50,0)),0),0)*$H24*$X24*$Y24),$D24)*$R24","v":6.6626027662869172},{"$f":"MIN((IFERROR(IF(AND($V24<=AK$1,$W24>=AK$1),INDEX(Reliability!P$23:P$50,MATCH($S24,Reliability!$C$23:$C$50,0)),0),0)*IF($T24=\"n/a\",$D24*$Y24,$G24)+IFERROR(IF(AND($V24<=AK$1,$W24>=AK$1),INDEX(Reliability!P$23:P$50,MATCH($T24,Reliability!$C$23:$C$50,0)),0),0)*$H24*$X24*$Y24),$D24)*$R24","v":6.5280000000000005}]
[null,{"$f":"unique_contracts!B25","v":"_CREZ_GENERIC_TEHACHAPI_SOLAR"},{"$f":"unique_contracts!D25","v":"Development"},{"$f":"unique_contracts!J25","v":72},{"$f":"unique_contracts!M25","v":"NotHybrid"},{"$f":"unique_contracts!N25","v":0},{"$f":"unique_contracts!P25","v":0},{"$f":"unique_contracts!R25","v":0},{"$f":"unique_contracts!V25","v":0},{"$f":"unique_contracts!AB25","v":"Buy"},{"$f":"unique_contracts!AM25","v":2023},{"$f":"unique_contracts!AN25","v":5},{"$f":"unique_contracts!AO25","v":1},{"$f":"unique_contracts!AP25","v":2023},{"$f":"unique_contracts!AQ25","v":12},{"$f":"unique_contracts!AR25","v":31},{"$f":"unique_contracts!BP25","v":"CapacityOnly"},1,{"$f":"IFERROR(IF(AND(I25>0,E25=\"NotHybrid\"),_xlfn.CONCAT(MAX(MIN(ROUNDDOWN(I25/D25,0),8),4),INDEX(resources!$G:$G,MATCH(B25,resources!$A:$A,0))),INDEX(resources!$G:$G,MATCH(B25,resources!$A:$A,0))),\"n/a\")","v":"utility_pv"},"n/a","utility_pv",2023,2023,1,1,{"$f":"MIN((IFERROR(IF(AND($V25<=Z$1,$W25>=Z$1),INDEX(Reliability!E$23:E$50,MATCH($S25,Reliability!$C$23:$C$50,0)),0),0)*IF($T25=\"n/a\",$D25*$Y25,$G25)+IFERROR(IF(AND($V25<=Z$1,$W25>=Z$1),INDEX(Reliability!E$23:E$50,MATCH($T25,Reliability!$C$23:$C$50,0)),0),0)*$H25*$X25*$Y25),$D25)*$R25","v":0},{"$f":"MIN((IFERROR(IF(AND($V25<=AA$1,$W25>=AA$1),INDEX(Reliability!F$23:F$50,MATCH($S25,Reliability!$C$23:$C$50,0)),0),0)*IF($T25=\"n/a\",$D25*$Y25,$G25)+IFERROR(IF(AND($V25<=AA$1,$W25>=AA$1),INDEX(Reliability!F$23:F$50,MATCH($T25,Reliability!$C$23:$C$50,0)),0),0)*$H25*$X25*$Y25),$D25)*$R25","v":0},{"$f":"MIN((IFERROR(IF(AND($V25<=AB$1,$W25>=AB$1),INDEX(Reliability!G$23:G$50,MATCH($S25,Reliability!$C$23:$C$50,0)),0),0)*IF($T25=\"n/a\",$D25*$Y25,$G25)+IFERROR(IF(AND($V25<=AB$1,$W25>=AB$1),INDEX(Reliability!G$23:G$50,MATCH($T25,Reliability!$C$23:$C$50,0)),0),0)*$H25*$X25*$Y25),$D25)*$R25","v":0},{"$f":"MIN((IFERROR(IF(AND($V25<=AC$1,$W25>=AC$1),INDEX(Reliability!H$23:H$50,MATCH($S25,Reliability!$C$23:$C$50,0)),0),0)*IF($T25=\"n/a\",$D25*$Y25,$G25)+IFERROR(IF(AND($V25<=AC$1,$W25>=AC$1),INDEX(Reliability!H$23:H$50,MATCH($T25,Reliability!$C$23:$C$50,0)),0),0)*$H25*$X25*$Y25),$D25)*$R25","v":0},{"$f":"MIN((IFERROR(IF(AND($V25<=AD$1,$W25>=AD$1),INDEX(Reliability!I$23:I$50,MATCH($S25,Reliability!$C$23:$C$50,0)),0),0)*IF($T25=\"n/a\",$D25*$Y25,$G25)+IFERROR(IF(AND($V25<=AD$1,$W25>=AD$1),INDEX(Reliability!I$23:I$50,MATCH($T25,Reliability!$C$23:$C$50,0)),0),0)*$H25*$X25*$Y25),$D25)*$R25","v":0},{"$f":"MIN((IFERROR(IF(AND($V25<=AE$1,$W25>=AE$1),INDEX(Reliability!J$23:J$50,MATCH($S25,Reliability!$C$23:$C$50,0)),0),0)*IF($T25=\"n/a\",$D25*$Y25,$G25)+IFERROR(IF(AND($V25<=AE$1,$W25>=AE$1),INDEX(Reliability!J$23:J$50,MATCH($T25,Reliability!$C$23:$C$50,0)),0),0)*$H25*$X25*$Y25),$D25)*$R25","v":0},{"$f":"MIN((IFERROR(IF(AND($V25<=AF$1,$W25>=AF$1),INDEX(Reliability!K$23:K$50,MATCH($S25,Reliability!$C$23:$C$50,0)),0),0)*IF($T25=\"n/a\",$D25*$Y25,$G25)+IFERROR(IF(AND($V25<=AF$1,$W25>=AF$1),INDEX(Reliability!K$23:K$50,MATCH($T25,Reliability!$C$23:$C$50,0)),0),0)*$H25*$X25*$Y25),$D25)*$R25","v":0},{"$f":"MIN((IFERROR(IF(AND($V25<=AG$1,$W25>=AG$1),INDEX(Reliability!L$23:L$50,MATCH($S25,Reliability!$C$23:$C$50,0)),0),0)*IF($T25=\"n/a\",$D25*$Y25,$G25)+IFERROR(IF(AND($V25<=AG$1,$W25>=AG$1),INDEX(Reliability!L$23:L$50,MATCH($T25,Reliability!$C$23:$C$50,0)),0),0)*$H25*$X25*$Y25),$D25)*$R25","v":0},{"$f":"MIN((IFERROR(IF(AND($V25<=AH$1,$W25>=AH$1),INDEX(Reliability!M$23:M$50,MATCH($S25,Reliability!$C$23:$C$50,0)),0),0)*IF($T25=\"n/a\",$D25*$Y25,$G25)+IFERROR(IF(AND($V25<=AH$1,$W25>=AH$1),INDEX(Reliability!M$23:M$50,MATCH($T25,Reliability!$C$23:$C$50,0)),0),0)*$H25*$X25*$Y25),$D25)*$R25","v":0},{"$f":"MIN((IFERROR(IF(AND($V25<=AI$1,$W25>=AI$1),INDEX(Reliability!N$23:N$50,MATCH($S25,Reliability!$C$23:$C$50,0)),0),0)*IF($T25=\"n/a\",$D25*$Y25,$G25)+IFERROR(IF(AND($V25<=AI$1,$W25>=AI$1),INDEX(Reliability!N$23:N$50,MATCH($T25,Reliability!$C$23:$C$50,0)),0),0)*$H25*$X25*$Y25),$D25)*$R25","v":0},{"$f":"MIN((IFERROR(IF(AND($V25<=AJ$1,$W25>=AJ$1),INDEX(Reliability!O$23:O$50,MATCH($S25,Reliability!$C$23:$C$50,0)),0),0)*IF($T25=\"n/a\",$D25*$Y25,$G25)+IFERROR(IF(AND($V25<=AJ$1,$W25>=AJ$1),INDEX(Reliability!O$23:O$50,MATCH($T25,Reliability!$C$23:$C$50,0)),0),0)*$H25*$X25*$Y25),$D25)*$R25","v":0},{"$f":"MIN((IFERROR(IF(AND($V25<=AK$1,$W25>=AK$1),INDEX(Reliability!P$23:P$50,MATCH($S25,Reliability!$C$23:$C$50,0)),0),0)*IF($T25=\"n/a\",$D25*$Y25,$G25)+IFERROR(IF(AND($V25<=AK$1,$W25>=AK$1),INDEX(Reliability!P$23:P$50,MATCH($T25,Reliability!$C$23:$C$50,0)),0),0)*$H25*$X25*$Y25),$D25)*$R25","v":0}]
[null,{"$f":"unique_contracts!B26","v":"_CREZ_GENERIC_RIVERSIDE_PALM_SPRINGS_SOLAR"},{"$f":"unique_contracts!D26","v":"Development"},{"$f":"unique_contracts!J26","v":100},{"$f":"unique_contracts!M26","v":"NewSolarNewStorage"},{"$f":"unique_contracts!N26","v":"NO"},{"$f":"unique_contracts!P26","v":0},{"$f":"unique_contracts!R26","v":0},{"$f":"unique_contracts!V26","v":0},{"$f":"unique_contracts!AB26","v":"Buy"},{"$f":"unique_contracts!AM26","v":2024},{"$f":"unique_contracts!AN26","v":4},{"$f":"unique_contracts!AO26","v":1},{"$f":"unique_contracts!AP26","v":2039},{"$f":"unique_contracts!AQ26","v":4},{"$f":"unique_contracts!AR26","v":1},{"$f":"unique_contracts!BP26","v":"EnergyCapacity"},1,{"$f":"IFERROR(IF(AND(I26>0,E26=\"NotHybrid\"),_xlfn.CONCAT(MAX(MIN(ROUNDDOWN(I26/D26,0),8),4),INDEX(resources!$G:$G,MATCH(B26,resources!$A:$A,0))),INDEX(resources!$G:$G,MATCH(B26,resources!$A:$A,0))),\"n/a\")","v":"utility_pv"},"n/a","utility_pv",2024,2038,1,1,{"$f":"MIN((IFERROR(IF(AND($V26<=Z$1,$W26>=Z$1),INDEX(Reliability!E$23:E$50,MATCH($S26,Reliability!$C$23:$C$50,0)),0),0)*IF($T26=\"n/a\",$D26*$Y26,$G26)+IFERROR(IF(AND($V26<=Z$1,$W26>=Z$1),INDEX(Reliability!E$23:E$50,MATCH($T26,Reliability!$C$23:$C$50,0)),0),0)*$H26*$X26*$Y26),$D26)*$R26","v":12.434584155282009},{"$f":"MIN((IFERROR(IF(AND($V26<=AA$1,$W26>=AA$1),INDEX(Reliability!F$23:F$50,MATCH($S26,Reliability!$C$23:$C$50,0)),0),0)*IF($T26=\"n/a\",$D26*$Y26,$G26)+IFERROR(IF(AND($V26<=AA$1,$W26>=AA$1),INDEX(Reliability!F$23:F$50,MATCH($T26,Reliability!$C$23:$C$50,0)),0),0)*$H26*$X26*$Y26),$D26)*$R26","v":12.102944303332039},{"$f":"MIN((IFERROR(IF(AND($V26<=AB$1,$W26>=AB$1),INDEX(Reliability!G$23:G$50,MATCH($S26,Reliability!$C$23:$C$50,0)),0),0)*IF($T26=\"n/a\",$D26*$Y26,$G26)+IFERROR(IF(AND($V26<=AB$1,$W26>=AB$1),INDEX(Reliability!G$23:G$50,MATCH($T26,Reliability!$C$23:$C$50,0)),0),0)*$H26*$X26*$Y26),$D26)*$R26","v":11.771304451382068},{"$f":"MIN((IFERROR(IF(AND($V26<=AC$1,$W26>=AC$1),INDEX(Reliability!H$23:H$50,MATCH($S26,Reliability!$C$23:$C$50,0)),0),0)*IF($T26=\"n/a\",$D26*$Y26,$G26)+IFERROR(IF(AND($V26<=AC$1,$W26>=AC$1),INDEX(Reliability!H$23:H$50,MATCH($T26,Reliability!$C$23:$C$50,0)),0),0)*$H26*$X26*$Y26),$D26)*$R26","v":10.01620473979912},{"$f":"MIN((IFERROR(IF(AND($V26<=AD$1,$W26>=AD$1),INDEX(Reliability!I$23:I$50,MATCH($S26,Reliability!$C$23:$C$50,0)),0),0)*IF($T26=\"n/a\",$D26*$Y26,$G26)+IFERROR(IF(AND($V26<=AD$1,$W26>=AD$1),INDEX(Reliability!I$23:I$50,MATCH($T26,Reliability!$C$23:$C$50,0)),0),0)*$H26*$X26*$Y26),$D26)*$R26","v":8.2611050282161731},{"$f":"MIN((IFERROR(IF(AND($V26<=AE$1,$W26>=AE$1),INDEX(Reliability!J$23:J$50,MATCH($S26,Reliability!$C$23:$C$50,0)),0),0)*IF($T26=\"n/a\",$D26*$Y26,$G26)+IFERROR(IF(AND($V26<=AE$1,$W26>=AE$1),INDEX(Reliability!J$23:J$50,MATCH($T26,Reliability!$C$23:$C$50,0)),0),0)*$H26*$X26*$Y26),$D26)*$R26","v":7.6604612550073998},{"$f":"MIN((IFERROR(IF(AND($V26<=AF$1,$W26>=AF$1),INDEX(Reliability!K$23:K$50,MATCH($S26,Reliability!$C$23:$C$50,0)),0),0)*IF($T26=\"n/a\",$D26*$Y26,$G26)+IFERROR(IF(AND($V26<=AF$1,$W26>=AF$1),INDEX(Reliability!K$23:K$50,MATCH($T26,Reliability!$C$23:$C$50,0)),0),0)*$H26*$X26*$Y26),$D26)*$R26","v":7.0598174817986266},{"$f":"MIN((IFERROR(IF(AND($V26<=AG$1,$W26>=AG$1),INDEX(Reliability!L$23:L$50,MATCH($S26,Reliability!$C$23:$C$50,0)),0),0)*IF($T26=\"n/a\",$D26*$Y26,$G26)+IFERROR(IF(AND($V26<=AG$1,$W26>=AG$1),INDEX(Reliability!L$23:L$50,MATCH($T26,Reliability!$C$23:$C$50,0)),0),0)*$H26*$X26*$Y26),$D26)*$R26","v":6.9278539854389001},{"$f":"MIN((IFERROR(IF(AND($V26<=AH$1,$W26>=AH$1),INDEX(Reliability!M$23:M$50,MATCH($S26,Reliability!$C$23:$C$50,0)),0),0)*IF($T26=\"n/a\",$D26*$Y26,$G26)+IFERROR(IF(AND($V26<=AH$1,$W26>=AH$1),INDEX(Reliability!M$23:M$50,MATCH($T26,Reliability!$C$23:$C$50,0)),0),0)*$H26*$X26*$Y26),$D26)*$R26","v":6.7958904890791745},{"$f":"MIN((IFERROR(IF(AND($V26<=AI$1,$W26>=AI$1),INDEX(Reliability!N$23:N$50,MATCH($S26,Reliability!$C$23:$C$50,0)),0),0)*IF($T26=\"n/a\",$D26*$Y26,$G26)+IFERROR(IF(AND($V26<=AI$1,$W26>=AI$1),INDEX(Reliability!N$23:N$50,MATCH($T26,Reliability!$C$23:$C$50,0)),0),0)*$H26*$X26*$Y26),$D26)*$R26","v":6.6639269927194489},{"$f":"MIN((IFERROR(IF(AND($V26<=AJ$1,$W26>=AJ$1),INDEX(Reliability!O$23:O$50,MATCH($S26,Reliability!$C$23:$C$50,0)),0),0)*IF($T26=\"n/a\",$D26*$Y26,$G26)+IFERROR(IF(AND($V26<=AJ$1,$W26>=AJ$1),INDEX(Reliability!O$23:O$50,MATCH($T26,Reliability!$C$23:$C$50,0)),0),0)*$H26*$X26*$Y26),$D26)*$R26","v":6.5319634963597233},{"$f":"MIN((IFERROR(IF(AND($V26<=AK$1,$W26>=AK$1),INDEX(Reliability!P$23:P$50,MATCH($S26,Reliability!$C$23:$C$50,0)),0),0)*IF($T26=\"n/a\",$D26*$Y26,$G26)+IFERROR(IF(AND($V26<=AK$1,$W26>=AK$1),INDEX(Reliability!P$23:P$50,MATCH($T26,Reliability!$C$23:$C$50,0)),0),0)*$H26*$X26*$Y26),$D26)*$R26","v":6.4}]
[null,{"$f":"unique_contracts!B27","v":"_CREZ_GENERIC_RIVERSIDE_PALM_SPRINGS_SOLAR"},{"$f":"unique_contracts!D27","v":"Development"},{"$f":"unique_contracts!J27","v":100},{"$f":"unique_contracts!M27","v":"NewSolarNewStorage"},{"$f":"unique_contracts!N27","v":"YES"},{"$f":"unique_contracts!P27","v":0},{"$f":"unique_contracts!R27","v":0},{"$f":"unique_contracts!V27","v":0},{"$f":"unique_contracts!AB27","v":"Buy"},{"$f":"unique_contracts!AM27","v":2024},{"$f":"unique_contracts!AN27","v":4},{"$f":"unique_contracts!AO27","v":1},{"$f":"unique_contracts!AP27","v":2039},{"$f":"unique_contracts!AQ27","v":4},{"$f":"unique_contracts!AR27","v":1},{"$f":"unique_contracts!BP27","v":"EnergyCapacity"},{"$f":"IF(AND(J27=\"Sell\",ISNUMBER(SEARCH(\"Capacity\",Q27))),-1,IF(AND(NOT(J27=\"Sell\"),ISNUMBER(SEARCH(\"Capacity\",Q27))),1,0))","v":1},{"$f":"IFERROR(IF(AND(I27>0,E27=\"NotHybrid\"),_xlfn.CONCAT(MAX(MIN(ROUNDDOWN(I27/D27,0),8),4),INDEX(resources!$G:$G,MATCH(B27,resources!$A:$A,0))),INDEX(resources!$G:$G,MATCH(B27,resources!$A:$A,0))),\"n/a\")","v":"utility_pv"},{"$f":"IFERROR(IF(NOT(E27=\"NotHybrid\"),_xlfn.CONCAT(MAX(MIN(ROUNDDOWN(I27/H27,0),8),4),\"hr_batteries\"),\"n/a\"),\"n/a\")","v":"n/a"},{"$f":"IF(T27=\"n/a\",S27,\"hybrid\")","v":"utility_pv"},{"$f":"IFERROR(IF(DATE(K27,L27,M27)<=DATE(K27,6,1),K27,K27+1),0)","v":2024},{"$f":"IFERROR(IF(DATE(N27,O27,P27)>=DATE(N27,10,1),N27,N27-1),0)","v":2038},{"$f":"IF(OR(T27=\"n/a\",NOT(F27=\"NO\")),100%,IF(ISNUMBER(SEARCH(\"pv\",S27)),MIN(G27/(1*(ROUNDDOWN(I27/H27,0)/4)),H27)/H27,IF(ISNUMBER(SEARCH(\"wind\",S27)),MIN(G27/(2*(ROUNDDOWN(I27/H27,0)/4)),H27)/H27,1)))","v":1},{"$f":"IF(ISNUMBER(SEARCH(\"batteries\",S27)),MIN(ROUNDDOWN(I27/D27,0)/4,1), IF(ISNUMBER(SEARCH(\"batteries\",T27)),MIN(ROUNDDOWN(I27/H27,0)/4,1),1))","v":1},{"$f":"MIN((IFERROR(IF(AND($V27<=Z$1,$W27>=Z$1),INDEX(Reliability!E$23:E$50,MATCH($S27,Reliability!$C$23:$C$50,0)),0),0)*IF($T27=\"n/a\",$D27*$Y27,$G27)+IFERROR(IF(AND($V27<=Z$1,$W27>=Z$1),INDEX(Reliability!E$23:E$50,MATCH($T27,Reliability!$C$23:$C$50,0)),0),0)*$H27*$X27*$Y27),$D27)*$R27","v":12.434584155282009},{"$f":"MIN((IFERROR(IF(AND($V27<=AA$1,$W27>=AA$1),INDEX(Reliability!F$23:F$50,MATCH($S27,Reliability!$C$23:$C$50,0)),0),0)*IF($T27=\"n/a\",$D27*$Y27,$G27)+IFERROR(IF(AND($V27<=AA$1,$W27>=AA$1),INDEX(Reliability!F$23:F$50,MATCH($T27,Reliability!$C$23:$C$50,0)),0),0)*$H27*$X27*$Y27),$D27)*$R27","v":12.102944303332039},{"$f":"MIN((IFERROR(IF(AND($V27<=AB$1,$W27>=AB$1),INDEX(Reliability!G$23:G$50,MATCH($S27,Reliability!$C$23:$C$50,0)),0),0)*IF($T27=\"n/a\",$D27*$Y27,$G27)+IFERROR(IF(AND($V27<=AB$1,$W27>=AB$1),INDEX(Reliability!G$23:G$50,MATCH($T27,Reliability!$C$23:$C$50,0)),0),0)*$H27*$X27*$Y27),$D27)*$R27","v":11.771304451382068},{"$f":"MIN((IFERROR(IF(AND($V27<=AC$1,$W27>=AC$1),INDEX(Reliability!H$23:H$50,MATCH($S27,Reliability!$C$23:$C$50,0)),0),0)*IF($T27=\"n/a\",$D27*$Y27,$G27)+IFERROR(IF(AND($V27<=AC$1,$W27>=AC$1),INDEX(Reliability!H$23:H$50,MATCH($T27,Reliability!$C$23:$C$50,0)),0),0)*$H27*$X27*$Y27),$D27)*$R27","v":10.01620473979912},{"$f":"MIN((IFERROR(IF(AND($V27<=AD$1,$W27>=AD$1),INDEX(Reliability!I$23:I$50,MATCH($S27,Reliability!$C$23:$C$50,0)),0),0)*IF($T27=\"n/a\",$D27*$Y27,$G27)+IFERROR(IF(AND($V27<=AD$1,$W27>=AD$1),INDEX(Reliability!I$23:I$50,MATCH($T27,Reliability!$C$23:$C$50,0)),0),0)*$H27*$X27*$Y27),$D27)*$R27","v":8.2611050282161731},{"$f":"MIN((IFERROR(IF(AND($V27<=AE$1,$W27>=AE$1),INDEX(Reliability!J$23:J$50,MATCH($S27,Reliability!$C$23:$C$50,0)),0),0)*IF($T27=\"n/a\",$D27*$Y27,$G27)+IFERROR(IF(AND($V27<=AE$1,$W27>=AE$1),INDEX(Reliability!J$23:J$50,MATCH($T27,Reliability!$C$23:$C$50,0)),0),0)*$H27*$X27*$Y27),$D27)*$R27","v":7.6604612550073998},{"$f":"MIN((IFERROR(IF(AND($V27<=AF$1,$W27>=AF$1),INDEX(Reliability!K$23:K$50,MATCH($S27,Reliability!$C$23:$C$50,0)),0),0)*IF($T27=\"n/a\",$D27*$Y27,$G27)+IFERROR(IF(AND($V27<=AF$1,$W27>=AF$1),INDEX(Reliability!K$23:K$50,MATCH($T27,Reliability!$C$23:$C$50,0)),0),0)*$H27*$X27*$Y27),$D27)*$R27","v":7.0598174817986266},{"$f":"MIN((IFERROR(IF(AND($V27<=AG$1,$W27>=AG$1),INDEX(Reliability!L$23:L$50,MATCH($S27,Reliability!$C$23:$C$50,0)),0),0)*IF($T27=\"n/a\",$D27*$Y27,$G27)+IFERROR(IF(AND($V27<=AG$1,$W27>=AG$1),INDEX(Reliability!L$23:L$50,MATCH($T27,Reliability!$C$23:$C$50,0)),0),0)*$H27*$X27*$Y27),$D27)*$R27","v":6.9278539854389001},{"$f":"MIN((IFERROR(IF(AND($V27<=AH$1,$W27>=AH$1),INDEX(Reliability!M$23:M$50,MATCH($S27,Reliability!$C$23:$C$50,0)),0),0)*IF($T27=\"n/a\",$D27*$Y27,$G27)+IFERROR(IF(AND($V27<=AH$1,$W27>=AH$1),INDEX(Reliability!M$23:M$50,MATCH($T27,Reliability!$C$23:$C$50,0)),0),0)*$H27*$X27*$Y27),$D27)*$R27","v":6.7958904890791745},{"$f":"MIN((IFERROR(IF(AND($V27<=AI$1,$W27>=AI$1),INDEX(Reliability!N$23:N$50,MATCH($S27,Reliability!$C$23:$C$50,0)),0),0)*IF($T27=\"n/a\",$D27*$Y27,$G27)+IFERROR(IF(AND($V27<=AI$1,$W27>=AI$1),INDEX(Reliability!N$23:N$50,MATCH($T27,Reliability!$C$23:$C$50,0)),0),0)*$H27*$X27*$Y27),$D27)*$R27","v":6.6639269927194489},{"$f":"MIN((IFERROR(IF(AND($V27<=AJ$1,$W27>=AJ$1),INDEX(Reliability!O$23:O$50,MATCH($S27,Reliability!$C$23:$C$50,0)),0),0)*IF($T27=\"n/a\",$D27*$Y27,$G27)+IFERROR(IF(AND($V27<=AJ$1,$W27>=AJ$1),INDEX(Reliability!O$23:O$50,MATCH($T27,Reliability!$C$23:$C$50,0)),0),0)*$H27*$X27*$Y27),$D27)*$R27","v":6.5319634963597233},{"$f":"MIN((IFERROR(IF(AND($V27<=AK$1,$W27>=AK$1),INDEX(Reliability!P$23:P$50,MATCH($S27,Reliability!$C$23:$C$50,0)),0),0)*IF($T27=\"n/a\",$D27*$Y27,$G27)+IFERROR(IF(AND($V27<=AK$1,$W27>=AK$1),INDEX(Reliability!P$23:P$50,MATCH($T27,Reliability!$C$23:$C$50,0)),0),0)*$H27*$X27*$Y27),$D27)*$R27","v":6.4}]
[null,{"$f":"unique_contracts!B28","v":"GOOSLK_1_SOLAR1"},{"$f":"unique_contracts!D28","v":"Online"},{"$f":"unique_contracts!J28","v":3.74},{"$f":"unique_contracts!M28","v":"NotHybrid"},{"$f":"unique_contracts!N28","v":0},{"$f":"unique_contracts!P28","v":0},{"$f":"unique_contracts!R28","v":0},{"$f":"unique_contracts!V28","v":0},{"$f":"unique_contracts!AB28","v":"Buy"},{"$f":"unique_contracts!AM28","v":2022},{"$f":"unique_contracts!AN28","v":1},{"$f":"unique_contracts!AO28","v":17},{"$f":"unique_contracts!AP28","v":2027},{"$f":"unique_contracts!AQ28","v":1},{"$f":"unique_contracts!AR28","v":16},{"$f":"unique_contracts!BP28","v":"EnergyOnly"},0,{"$f":"IFERROR(IF(AND(I28>0,E28=\"NotHybrid\"),_xlfn.CONCAT(MAX(MIN(ROUNDDOWN(I28/D28,0),8),4),INDEX(resources!$G:$G,MATCH(B28,resources!$A:$A,0))),INDEX(resources!$G:$G,MATCH(B28,resources!$A:$A,0))),\"n/a\")","v":"utility_pv"},"n/a","utility_pv",2022,2026,1,1,{"$f":"MIN((IFERROR(IF(AND($V28<=Z$1,$W28>=Z$1),INDEX(Reliability!E$23:E$50,MATCH($S28,Reliability!$C$23:$C$50,0)),0),0)*IF($T28=\"n/a\",$D28*$Y28,$G28)+IFERROR(IF(AND($V28<=Z$1,$W28>=Z$1),INDEX(Reliability!E$23:E$50,MATCH($T28,Reliability!$C$23:$C$50,0)),0),0)*$H28*$X28*$Y28),$D28)*$R28","v":0},{"$f":"MIN((IFERROR(IF(AND($V28<=AA$1,$W28>=AA$1),INDEX(Reliability!F$23:F$50,MATCH($S28,Reliability!$C$23:$C$50,0)),0),0)*IF($T28=\"n/a\",$D28*$Y28,$G28)+IFERROR(IF(AND($V28<=AA$1,$W28>=AA$1),INDEX(Reliability!F$23:F$50,MATCH($T28,Reliability!$C$23:$C$50,0)),0),0)*$H28*$X28*$Y28),$D28)*$R28","v":0},{"$f":"MIN((IFERROR(IF(AND($V28<=AB$1,$W28>=AB$1),INDEX(Reliability!G$23:G$50,MATCH($S28,Reliability!$C$23:$C$50,0)),0),0)*IF($T28=\"n/a\",$D28*$Y28,$G28)+IFERROR(IF(AND($V28<=AB$1,$W28>=AB$1),INDEX(Reliability!G$23:G$50,MATCH($T28,Reliability!$C$23:$C$50,0)),0),0)*$H28*$X28*$Y28),$D28)*$R28","v":0},{"$f":"MIN((IFERROR(IF(AND($V28<=AC$1,$W28>=AC$1),INDEX(Reliability!H$23:H$50,MATCH($S28,Reliability!$C$23:$C$50,0)),0),0)*IF($T28=\"n/a\",$D28*$Y28,$G28)+IFERROR(IF(AND($V28<=AC$1,$W28>=AC$1),INDEX(Reliability!H$23:H$50,MATCH($T28,Reliability!$C$23:$C$50,0)),0),0)*$H28*$X28*$Y28),$D28)*$R28","v":0},{"$f":"MIN((IFERROR(IF(AND($V28<=AD$1,$W28>=AD$1),INDEX(Reliability!I$23:I$50,MATCH($S28,Reliability!$C$23:$C$50,0)),0),0)*IF($T28=\"n/a\",$D28*$Y28,$G28)+IFERROR(IF(AND($V28<=AD$1,$W28>=AD$1),INDEX(Reliability!I$23:I$50,MATCH($T28,Reliability!$C$23:$C$50,0)),0),0)*$H28*$X28*$Y28),$D28)*$R28","v":0},{"$f":"MIN((IFERROR(IF(AND($V28<=AE$1,$W28>=AE$1),INDEX(Reliability!J$23:J$50,MATCH($S28,Reliability!$C$23:$C$50,0)),0),0)*IF($T28=\"n/a\",$D28*$Y28,$G28)+IFERROR(IF(AND($V28<=AE$1,$W28>=AE$1),INDEX(Reliability!J$23:J$50,MATCH($T28,Reliability!$C$23:$C$50,0)),0),0)*$H28*$X28*$Y28),$D28)*$R28","v":0},{"$f":"MIN((IFERROR(IF(AND($V28<=AF$1,$W28>=AF$1),INDEX(Reliability!K$23:K$50,MATCH($S28,Reliability!$C$23:$C$50,0)),0),0)*IF($T28=\"n/a\",$D28*$Y28,$G28)+IFERROR(IF(AND($V28<=AF$1,$W28>=AF$1),INDEX(Reliability!K$23:K$50,MATCH($T28,Reliability!$C$23:$C$50,0)),0),0)*$H28*$X28*$Y28),$D28)*$R28","v":0},{"$f":"MIN((IFERROR(IF(AND($V28<=AG$1,$W28>=AG$1),INDEX(Reliability!L$23:L$50,MATCH($S28,Reliability!$C$23:$C$50,0)),0),0)*IF($T28=\"n/a\",$D28*$Y28,$G28)+IFERROR(IF(AND($V28<=AG$1,$W28>=AG$1),INDEX(Reliability!L$23:L$50,MATCH($T28,Reliability!$C$23:$C$50,0)),0),0)*$H28*$X28*$Y28),$D28)*$R28","v":0},{"$f":"MIN((IFERROR(IF(AND($V28<=AH$1,$W28>=AH$1),INDEX(Reliability!M$23:M$50,MATCH($S28,Reliability!$C$23:$C$50,0)),0),0)*IF($T28=\"n/a\",$D28*$Y28,$G28)+IFERROR(IF(AND($V28<=AH$1,$W28>=AH$1),INDEX(Reliability!M$23:M$50,MATCH($T28,Reliability!$C$23:$C$50,0)),0),0)*$H28*$X28*$Y28),$D28)*$R28","v":0},{"$f":"MIN((IFERROR(IF(AND($V28<=AI$1,$W28>=AI$1),INDEX(Reliability!N$23:N$50,MATCH($S28,Reliability!$C$23:$C$50,0)),0),0)*IF($T28=\"n/a\",$D28*$Y28,$G28)+IFERROR(IF(AND($V28<=AI$1,$W28>=AI$1),INDEX(Reliability!N$23:N$50,MATCH($T28,Reliability!$C$23:$C$50,0)),0),0)*$H28*$X28*$Y28),$D28)*$R28","v":0},{"$f":"MIN((IFERROR(IF(AND($V28<=AJ$1,$W28>=AJ$1),INDEX(Reliability!O$23:O$50,MATCH($S28,Reliability!$C$23:$C$50,0)),0),0)*IF($T28=\"n/a\",$D28*$Y28,$G28)+IFERROR(IF(AND($V28<=AJ$1,$W28>=AJ$1),INDEX(Reliability!O$23:O$50,MATCH($T28,Reliability!$C$23:$C$50,0)),0),0)*$H28*$X28*$Y28),$D28)*$R28","v":0},{"$f":"MIN((IFERROR(IF(AND($V28<=AK$1,$W28>=AK$1),INDEX(Reliability!P$23:P$50,MATCH($S28,Reliability!$C$23:$C$50,0)),0),0)*IF($T28=\"n/a\",$D28*$Y28,$G28)+IFERROR(IF(AND($V28<=AK$1,$W28>=AK$1),INDEX(Reliability!P$23:P$50,MATCH($T28,Reliability!$C$23:$C$50,0)),0),0)*$H28*$X28*$Y28),$D28)*$R28","v":0}]
[null,{"$f":"unique_contracts!B29","v":"_CREZ_GENERIC_CENTRAL_VALLEY_NORTH_LOS_BANOS_SOLAR"},{"$f":"unique_contracts!D29","v":"Development"},{"$f":"unique_contracts!J29","v":3},{"$f":"unique_contracts!M29","v":"NotHybrid"},{"$f":"unique_contracts!N29","v":0},{"$f":"unique_contracts!P29","v":0},{"$f":"unique_contracts!R29","v":0},{"$f":"unique_contracts!V29","v":0},{"$f":"unique_contracts!AB29","v":"Buy"},{"$f":"unique_contracts!AM29","v":2023},{"$f":"unique_contracts!AN29","v":8},{"$f":"unique_contracts!AO29","v":1},{"$f":"unique_contracts!AP29","v":2043},{"$f":"unique_contracts!AQ29","v":7},{"$f":"unique_contracts!AR29","v":31},{"$f":"unique_contracts!BP29","v":"EnergyOnly"},0,{"$f":"IFERROR(IF(AND(I29>0,E29=\"NotHybrid\"),_xlfn.CONCAT(MAX(MIN(ROUNDDOWN(I29/D29,0),8),4),INDEX(resources!$G:$G,MATCH(B29,resources!$A:$A,0))),INDEX(resources!$G:$G,MATCH(B29,resources!$A:$A,0))),\"n/a\")","v":"utility_pv"},"n/a","utility_pv",2024,2042,1,1,{"$f":"MIN((IFERROR(IF(AND($V29<=Z$1,$W29>=Z$1),INDEX(Reliability!E$23:E$50,MATCH($S29,Reliability!$C$23:$C$50,0)),0),0)*IF($T29=\"n/a\",$D29*$Y29,$G29)+IFERROR(IF(AND($V29<=Z$1,$W29>=Z$1),INDEX(Reliability!E$23:E$50,MATCH($T29,Reliability!$C$23:$C$50,0)),0),0)*$H29*$X29*$Y29),$D29)*$R29","v":0},{"$f":"MIN((IFERROR(IF(AND($V29<=AA$1,$W29>=AA$1),INDEX(Reliability!F$23:F$50,MATCH($S29,Reliability!$C$23:$C$50,0)),0),0)*IF($T29=\"n/a\",$D29*$Y29,$G29)+IFERROR(IF(AND($V29<=AA$1,$W29>=AA$1),INDEX(Reliability!F$23:F$50,MATCH($T29,Reliability!$C$23:$C$50,0)),0),0)*$H29*$X29*$Y29),$D29)*$R29","v":0},{"$f":"MIN((IFERROR(IF(AND($V29<=AB$1,$W29>=AB$1),INDEX(Reliability!G$23:G$50,MATCH($S29,Reliability!$C$23:$C$50,0)),0),0)*IF($T29=\"n/a\",$D29*$Y29,$G29)+IFERROR(IF(AND($V29<=AB$1,$W29>=AB$1),INDEX(Reliability!G$23:G$50,MATCH($T29,Reliability!$C$23:$C$50,0)),0),0)*$H29*$X29*$Y29),$D29)*$R29","v":0},{"$f":"MIN((IFERROR(IF(AND($V29<=AC$1,$W29>=AC$1),INDEX(Reliability!H$23:H$50,MATCH($S29,Reliability!$C$23:$C$50,0)),0),0)*IF($T29=\"n/a\",$D29*$Y29,$G29)+IFERROR(IF(AND($V29<=AC$1,$W29>=AC$1),INDEX(Reliability!H$23:H$50,MATCH($T29,Reliability!$C$23:$C$50,0)),0),0)*$H29*$X29*$Y29),$D29)*$R29","v":0},{"$f":"MIN((IFERROR(IF(AND($V29<=AD$1,$W29>=AD$1),INDEX(Reliability!I$23:I$50,MATCH($S29,Reliability!$C$23:$C$50,0)),0),0)*IF($T29=\"n/a\",$D29*$Y29,$G29)+IFERROR(IF(AND($V29<=AD$1,$W29>=AD$1),INDEX(Reliability!I$23:I$50,MATCH($T29,Reliability!$C$23:$C$50,0)),0),0)*$H29*$X29*$Y29),$D29)*$R29","v":0},{"$f":"MIN((IFERROR(IF(AND($V29<=AE$1,$W29>=AE$1),INDEX(Reliability!J$23:J$50,MATCH($S29,Reliability!$C$23:$C$50,0)),0),0)*IF($T29=\"n/a\",$D29*$Y29,$G29)+IFERROR(IF(AND($V29<=AE$1,$W29>=AE$1),INDEX(Reliability!J$23:J$50,MATCH($T29,Reliability!$C$23:$C$50,0)),0),0)*$H29*$X29*$Y29),$D29)*$R29","v":0},{"$f":"MIN((IFERROR(IF(AND($V29<=AF$1,$W29>=AF$1),INDEX(Reliability!K$23:K$50,MATCH($S29,Reliability!$C$23:$C$50,0)),0),0)*IF($T29=\"n/a\",$D29*$Y29,$G29)+IFERROR(IF(AND($V29<=AF$1,$W29>=AF$1),INDEX(Reliability!K$23:K$50,MATCH($T29,Reliability!$C$23:$C$50,0)),0),0)*$H29*$X29*$Y29),$D29)*$R29","v":0},{"$f":"MIN((IFERROR(IF(AND($V29<=AG$1,$W29>=AG$1),INDEX(Reliability!L$23:L$50,MATCH($S29,Reliability!$C$23:$C$50,0)),0),0)*IF($T29=\"n/a\",$D29*$Y29,$G29)+IFERROR(IF(AND($V29<=AG$1,$W29>=AG$1),INDEX(Reliability!L$23:L$50,MATCH($T29,Reliability!$C$23:$C$50,0)),0),0)*$H29*$X29*$Y29),$D29)*$R29","v":0},{"$f":"MIN((IFERROR(IF(AND($V29<=AH$1,$W29>=AH$1),INDEX(Reliability!M$23:M$50,MATCH($S29,Reliability!$C$23:$C$50,0)),0),0)*IF($T29=\"n/a\",$D29*$Y29,$G29)+IFERROR(IF(AND($V29<=AH$1,$W29>=AH$1),INDEX(Reliability!M$23:M$50,MATCH($T29,Reliability!$C$23:$C$50,0)),0),0)*$H29*$X29*$Y29),$D29)*$R29","v":0},{"$f":"MIN((IFERROR(IF(AND($V29<=AI$1,$W29>=AI$1),INDEX(Reliability!N$23:N$50,MATCH($S29,Reliability!$C$23:$C$50,0)),0),0)*IF($T29=\"n/a\",$D29*$Y29,$G29)+IFERROR(IF(AND($V29<=AI$1,$W29>=AI$1),INDEX(Reliability!N$23:N$50,MATCH($T29,Reliability!$C$23:$C$50,0)),0),0)*$H29*$X29*$Y29),$D29)*$R29","v":0},{"$f":"MIN((IFERROR(IF(AND($V29<=AJ$1,$W29>=AJ$1),INDEX(Reliability!O$23:O$50,MATCH($S29,Reliability!$C$23:$C$50,0)),0),0)*IF($T29=\"n/a\",$D29*$Y29,$G29)+IFERROR(IF(AND($V29<=AJ$1,$W29>=AJ$1),INDEX(Reliability!O$23:O$50,MATCH($T29,Reliability!$C$23:$C$50,0)),0),0)*$H29*$X29*$Y29),$D29)*$R29","v":0},{"$f":"MIN((IFERROR(IF(AND($V29<=AK$1,$W29>=AK$1),INDEX(Reliability!P$23:P$50,MATCH($S29,Reliability!$C$23:$C$50,0)),0),0)*IF($T29=\"n/a\",$D29*$Y29,$G29)+IFERROR(IF(AND($V29<=AK$1,$W29>=AK$1),INDEX(Reliability!P$23:P$50,MATCH($T29,Reliability!$C$23:$C$50,0)),0),0)*$H29*$X29*$Y29),$D29)*$R29","v":0}]
[null,{"$f":"unique_contracts!B30","v":"BRDSLD_2_SHILO1"},{"$f":"unique_contracts!D30","v":"Online"},{"$f":"unique_contracts!J30","v":150},{"$f":"unique_contracts!M30","v":"NotHybrid"},{"$f":"unique_contracts!N30","v":0},{"$f":"unique_contracts!P30","v":0},{"$f":"unique_contracts!R30","v":0},{"$f":"unique_contracts!V30","v":0},{"$f":"unique_contracts!AB30","v":"Buy"},{"$f":"unique_contracts!AM30","v":2019},{"$f":"unique_contracts!AN30","v":1},{"$f":"unique_contracts!AO30","v":1},{"$f":"unique_contracts!AP30","v":2023},{"$f":"unique_contracts!AQ30","v":12},{"$f":"unique_contracts!AR30","v":31},{"$f":"unique_contracts!BP30","v":"EnergyCapacity"},1,{"$f":"IFERROR(IF(AND(I30>0,E30=\"NotHybrid\"),_xlfn.CONCAT(MAX(MIN(ROUNDDOWN(I30/D30,0),8),4),INDEX(resources!$G:$G,MATCH(B30,resources!$A:$A,0))),INDEX(resources!$G:$G,MATCH(B30,resources!$A:$A,0))),\"n/a\")","v":"in_state_wind_north"},"n/a","in_state_wind_north",2019,2023,1,1,{"$f":"MIN((IFERROR(IF(AND($V30<=Z$1,$W30>=Z$1),INDEX(Reliability!E$23:E$50,MATCH($S30,Reliability!$C$23:$C$50,0)),0),0)*IF($T30=\"n/a\",$D30*$Y30,$G30)+IFERROR(IF(AND($V30<=Z$1,$W30>=Z$1),INDEX(Reliability!E$23:E$50,MATCH($T30,Reliability!$C$23:$C$50,0)),0),0)*$H30*$X30*$Y30),$D30)*$R30","v":0},{"$f":"MIN((IFERROR(IF(AND($V30<=AA$1,$W30>=AA$1),INDEX(Reliability!F$23:F$50,MATCH($S30,Reliability!$C$23:$C$50,0)),0),0)*IF($T30=\"n/a\",$D30*$Y30,$G30)+IFERROR(IF(AND($V30<=AA$1,$W30>=AA$1),INDEX(Reliability!F$23:F$50,MATCH($T30,Reliability!$C$23:$C$50,0)),0),0)*$H30*$X30*$Y30),$D30)*$R30","v":0},{"$f":"MIN((IFERROR(IF(AND($V30<=AB$1,$W30>=AB$1),INDEX(Reliability!G$23:G$50,MATCH($S30,Reliability!$C$23:$C$50,0)),0),0)*IF($T30=\"n/a\",$D30*$Y30,$G30)+IFERROR(IF(AND($V30<=AB$1,$W30>=AB$1),INDEX(Reliability!G$23:G$50,MATCH($T30,Reliability!$C$23:$C$50,0)),0),0)*$H30*$X30*$Y30),$D30)*$R30","v":0},{"$f":"MIN((IFERROR(IF(AND($V30<=AC$1,$W30>=AC$1),INDEX(Reliability!H$23:H$50,MATCH($S30,Reliability!$C$23:$C$50,0)),0),0)*IF($T30=\"n/a\",$D30*$Y30,$G30)+IFERROR(IF(AND($V30<=AC$1,$W30>=AC$1),INDEX(Reliability!H$23:H$50,MATCH($T30,Reliability!$C$23:$C$50,0)),0),0)*$H30*$X30*$Y30),$D30)*$R30","v":0},{"$f":"MIN((IFERROR(IF(AND($V30<=AD$1,$W30>=AD$1),INDEX(Reliability!I$23:I$50,MATCH($S30,Reliability!$C$23:$C$50,0)),0),0)*IF($T30=\"n/a\",$D30*$Y30,$G30)+IFERROR(IF(AND($V30<=AD$1,$W30>=AD$1),INDEX(Reliability!I$23:I$50,MATCH($T30,Reliability!$C$23:$C$50,0)),0),0)*$H30*$X30*$Y30),$D30)*$R30","v":0},{"$f":"MIN((IFERROR(IF(AND($V30<=AE$1,$W30>=AE$1),INDEX(Reliability!J$23:J$50,MATCH($S30,Reliability!$C$23:$C$50,0)),0),0)*IF($T30=\"n/a\",$D30*$Y30,$G30)+IFERROR(IF(AND($V30<=AE$1,$W30>=AE$1),INDEX(Reliability!J$23:J$50,MATCH($T30,Reliability!$C$23:$C$50,0)),0),0)*$H30*$X30*$Y30),$D30)*$R30","v":0},{"$f":"MIN((IFERROR(IF(AND($V30<=AF$1,$W30>=AF$1),INDEX(Reliability!K$23:K$50,MATCH($S30,Reliability!$C$23:$C$50,0)),0),0)*IF($T30=\"n/a\",$D30*$Y30,$G30)+IFERROR(IF(AND($V30<=AF$1,$W30>=AF$1),INDEX(Reliability!K$23:K$50,MATCH($T30,Reliability!$C$23:$C$50,0)),0),0)*$H30*$X30*$Y30),$D30)*$R30","v":0},{"$f":"MIN((IFERROR(IF(AND($V30<=AG$1,$W30>=AG$1),INDEX(Reliability!L$23:L$50,MATCH($S30,Reliability!$C$23:$C$50,0)),0),0)*IF($T30=\"n/a\",$D30*$Y30,$G30)+IFERROR(IF(AND($V30<=AG$1,$W30>=AG$1),INDEX(Reliability!L$23:L$50,MATCH($T30,Reliability!$C$23:$C$50,0)),0),0)*$H30*$X30*$Y30),$D30)*$R30","v":0},{"$f":"MIN((IFERROR(IF(AND($V30<=AH$1,$W30>=AH$1),INDEX(Reliability!M$23:M$50,MATCH($S30,Reliability!$C$23:$C$50,0)),0),0)*IF($T30=\"n/a\",$D30*$Y30,$G30)+IFERROR(IF(AND($V30<=AH$1,$W30>=AH$1),INDEX(Reliability!M$23:M$50,MATCH($T30,Reliability!$C$23:$C$50,0)),0),0)*$H30*$X30*$Y30),$D30)*$R30","v":0},{"$f":"MIN((IFERROR(IF(AND($V30<=AI$1,$W30>=AI$1),INDEX(Reliability!N$23:N$50,MATCH($S30,Reliability!$C$23:$C$50,0)),0),0)*IF($T30=\"n/a\",$D30*$Y30,$G30)+IFERROR(IF(AND($V30<=AI$1,$W30>=AI$1),INDEX(Reliability!N$23:N$50,MATCH($T30,Reliability!$C$23:$C$50,0)),0),0)*$H30*$X30*$Y30),$D30)*$R30","v":0},{"$f":"MIN((IFERROR(IF(AND($V30<=AJ$1,$W30>=AJ$1),INDEX(Reliability!O$23:O$50,MATCH($S30,Reliability!$C$23:$C$50,0)),0),0)*IF($T30=\"n/a\",$D30*$Y30,$G30)+IFERROR(IF(AND($V30<=AJ$1,$W30>=AJ$1),INDEX(Reliability!O$23:O$50,MATCH($T30,Reliability!$C$23:$C$50,0)),0),0)*$H30*$X30*$Y30),$D30)*$R30","v":0},{"$f":"MIN((IFERROR(IF(AND($V30<=AK$1,$W30>=AK$1),INDEX(Reliability!P$23:P$50,MATCH($S30,Reliability!$C$23:$C$50,0)),0),0)*IF($T30=\"n/a\",$D30*$Y30,$G30)+IFERROR(IF(AND($V30<=AK$1,$W30>=AK$1),INDEX(Reliability!P$23:P$50,MATCH($T30,Reliability!$C$23:$C$50,0)),0),0)*$H30*$X30*$Y30),$D30)*$R30","v":0}]
[null,{"$f":"unique_contracts!B31","v":"BRDSLD_2_SHILO1"},{"$f":"unique_contracts!D31","v":"Online"},{"$f":"unique_contracts!J31","v":150},{"$f":"unique_contracts!M31","v":"NotHybrid"},{"$f":"unique_contracts!N31","v":0},{"$f":"unique_contracts!P31","v":0},{"$f":"unique_contracts!R31","v":0},{"$f":"unique_contracts!V31","v":0},{"$f":"unique_contracts!AB31","v":"Buy"},{"$f":"unique_contracts!AM31","v":2024},{"$f":"unique_contracts!AN31","v":1},{"$f":"unique_contracts!AO31","v":1},{"$f":"unique_contracts!AP31","v":2030},{"$f":"unique_contracts!AQ31","v":12},{"$f":"unique_contracts!AR31","v":31},{"$f":"unique_contracts!BP31","v":"EnergyCapacity"},1,{"$f":"IFERROR(IF(AND(I31>0,E31=\"NotHybrid\"),_xlfn.CONCAT(MAX(MIN(ROUNDDOWN(I31/D31,0),8),4),INDEX(resources!$G:$G,MATCH(B31,resources!$A:$A,0))),INDEX(resources!$G:$G,MATCH(B31,resources!$A:$A,0))),\"n/a\")","v":"in_state_wind_north"},"n/a","in_state_wind_north",2024,2030,1,1,{"$f":"MIN((IFERROR(IF(AND($V31<=Z$1,$W31>=Z$1),INDEX(Reliability!E$23:E$50,MATCH($S31,Reliability!$C$23:$C$50,0)),0),0)*IF($T31=\"n/a\",$D31*$Y31,$G31)+IFERROR(IF(AND($V31<=Z$1,$W31>=Z$1),INDEX(Reliability!E$23:E$50,MATCH($T31,Reliability!$C$23:$C$50,0)),0),0)*$H31*$X31*$Y31),$D31)*$R31","v":35.524065228306959},{"$f":"MIN((IFERROR(IF(AND($V31<=AA$1,$W31>=AA$1),INDEX(Reliability!F$23:F$50,MATCH($S31,Reliability!$C$23:$C$50,0)),0),0)*IF($T31=\"n/a\",$D31*$Y31,$G31)+IFERROR(IF(AND($V31<=AA$1,$W31>=AA$1),INDEX(Reliability!F$23:F$50,MATCH($T31,Reliability!$C$23:$C$50,0)),0),0)*$H31*$X31*$Y31),$D31)*$R31","v":40.908212055385938},{"$f":"MIN((IFERROR(IF(AND($V31<=AB$1,$W31>=AB$1),INDEX(Reliability!G$23:G$50,MATCH($S31,Reliability!$C$23:$C$50,0)),0),0)*IF($T31=\"n/a\",$D31*$Y31,$G31)+IFERROR(IF(AND($V31<=AB$1,$W31>=AB$1),INDEX(Reliability!G$23:G$50,MATCH($T31,Reliability!$C$23:$C$50,0)),0),0)*$H31*$X31*$Y31),$D31)*$R31","v":46.292358882464917},{"$f":"MIN((IFERROR(IF(AND($V31<=AC$1,$W31>=AC$1),INDEX(Reliability!H$23:H$50,MATCH($S31,Reliability!$C$23:$C$50,0)),0),0)*IF($T31=\"n/a\",$D31*$Y31,$G31)+IFERROR(IF(AND($V31<=AC$1,$W31>=AC$1),INDEX(Reliability!H$23:H$50,MATCH($T31,Reliability!$C$23:$C$50,0)),0),0)*$H31*$X31*$Y31),$D31)*$R31","v":32.080977667188911},{"$f":"MIN((IFERROR(IF(AND($V31<=AD$1,$W31>=AD$1),INDEX(Reliability!I$23:I$50,MATCH($S31,Reliability!$C$23:$C$50,0)),0),0)*IF($T31=\"n/a\",$D31*$Y31,$G31)+IFERROR(IF(AND($V31<=AD$1,$W31>=AD$1),INDEX(Reliability!I$23:I$50,MATCH($T31,Reliability!$C$23:$C$50,0)),0),0)*$H31*$X31*$Y31),$D31)*$R31","v":17.869596451912912},{"$f":"MIN((IFERROR(IF(AND($V31<=AE$1,$W31>=AE$1),INDEX(Reliability!J$23:J$50,MATCH($S31,Reliability!$C$23:$C$50,0)),0),0)*IF($T31=\"n/a\",$D31*$Y31,$G31)+IFERROR(IF(AND($V31<=AE$1,$W31>=AE$1),INDEX(Reliability!J$23:J$50,MATCH($T31,Reliability!$C$23:$C$50,0)),0),0)*$H31*$X31*$Y31),$D31)*$R31","v":23.160432817447433},{"$f":"MIN((IFERROR(IF(AND($V31<=AF$1,$W31>=AF$1),INDEX(Reliability!K$23:K$50,MATCH($S31,Reliability!$C$23:$C$50,0)),0),0)*IF($T31=\"n/a\",$D31*$Y31,$G31)+IFERROR(IF(AND($V31<=AF$1,$W31>=AF$1),INDEX(Reliability!K$23:K$50,MATCH($T31,Reliability!$C$23:$C$50,0)),0),0)*$H31*$X31*$Y31),$D31)*$R31","v":28.45126918298196},{"$f":"MIN((IFERROR(IF(AND($V31<=AG$1,$W31>=AG$1),INDEX(Reliability!L$23:L$50,MATCH($S31,Reliability!$C$23:$C$50,0)),0),0)*IF($T31=\"n/a\",$D31*$Y31,$G31)+IFERROR(IF(AND($V31<=AG$1,$W31>=AG$1),INDEX(Reliability!L$23:L$50,MATCH($T31,Reliability!$C$23:$C$50,0)),0),0)*$H31*$X31*$Y31),$D31)*$R31","v":0},{"$f":"MIN((IFERROR(IF(AND($V31<=AH$1,$W31>=AH$1),INDEX(Reliability!M$23:M$50,MATCH($S31,Reliability!$C$23:$C$50,0)),0),0)*IF($T31=\"n/a\",$D31*$Y31,$G31)+IFERROR(IF(AND($V31<=AH$1,$W31>=AH$1),INDEX(Reliability!M$23:M$50,MATCH($T31,Reliability!$C$23:$C$50,0)),0),0)*$H31*$X31*$Y31),$D31)*$R31","v":0},{"$f":"MIN((IFERROR(IF(AND($V31<=AI$1,$W31>=AI$1),INDEX(Reliability!N$23:N$50,MATCH($S31,Reliability!$C$23:$C$50,0)),0),0)*IF($T31=\"n/a\",$D31*$Y31,$G31)+IFERROR(IF(AND($V31<=AI$1,$W31>=AI$1),INDEX(Reliability!N$23:N$50,MATCH($T31,Reliability!$C$23:$C$50,0)),0),0)*$H31*$X31*$Y31),$D31)*$R31","v":0},{"$f":"MIN((IFERROR(IF(AND($V31<=AJ$1,$W31>=AJ$1),INDEX(Reliability!O$23:O$50,MATCH($S31,Reliability!$C$23:$C$50,0)),0),0)*IF($T31=\"n/a\",$D31*$Y31,$G31)+IFERROR(IF(AND($V31<=AJ$1,$W31>=AJ$1),INDEX(Reliability!O$23:O$50,MATCH($T31,Reliability!$C$23:$C$50,0)),0),0)*$H31*$X31*$Y31),$D31)*$R31","v":0},{"$f":"MIN((IFERROR(IF(AND($V31<=AK$1,$W31>=AK$1),INDEX(Reliability!P$23:P$50,MATCH($S31,Reliability!$C$23:$C$50,0)),0),0)*IF($T31=\"n/a\",$D31*$Y31,$G31)+IFERROR(IF(AND($V31<=AK$1,$W31>=AK$1),INDEX(Reliability!P$23:P$50,MATCH($T31,Reliability!$C$23:$C$50,0)),0),0)*$H31*$X31*$Y31),$D31)*$R31","v":0}]
[null,{"$f":"unique_contracts!B32","v":"JAWBNE_2_SRWND"},{"$f":"unique_contracts!D32","v":"Online"},{"$f":"unique_contracts!J32","v":30.2},{"$f":"unique_contracts!M32","v":"NotHybrid"},{"$f":"unique_contracts!N32","v":0},{"$f":"unique_contracts!P32","v":0},{"$f":"unique_contracts!R32","v":0},{"$f":"unique_contracts!V32","v":0},{"$f":"unique_contracts!AB32","v":"Buy"},{"$f":"unique_contracts!AM32","v":2021},{"$f":"unique_contracts!AN32","v":9},{"$f":"unique_contracts!AO32","v":17},{"$f":"unique_contracts!AP32","v":2041},{"$f":"unique_contracts!AQ32","v":9},{"$f":"unique_contracts!AR32","v":16},{"$f":"unique_contracts!BP32","v":"EnergyCapacity"},1,{"$f":"IFERROR(IF(AND(I32>0,E32=\"NotHybrid\"),_xlfn.CONCAT(MAX(MIN(ROUNDDOWN(I32/D32,0),8),4),INDEX(resources!$G:$G,MATCH(B32,resources!$A:$A,0))),INDEX(resources!$G:$G,MATCH(B32,resources!$A:$A,0))),\"n/a\")","v":"in_state_wind_south"},"n/a","in_state_wind_south",2022,2040,1,1,{"$f":"MIN((IFERROR(IF(AND($V32<=Z$1,$W32>=Z$1),INDEX(Reliability!E$23:E$50,MATCH($S32,Reliability!$C$23:$C$50,0)),0),0)*IF($T32=\"n/a\",$D32*$Y32,$G32)+IFERROR(IF(AND($V32<=Z$1,$W32>=Z$1),INDEX(Reliability!E$23:E$50,MATCH($T32,Reliability!$C$23:$C$50,0)),0),0)*$H32*$X32*$Y32),$D32)*$R32","v":3.576089232982901},{"$f":"MIN((IFERROR(IF(AND($V32<=AA$1,$W32>=AA$1),INDEX(Reliability!F$23:F$50,MATCH($S32,Reliability!$C$23:$C$50,0)),0),0)*IF($T32=\"n/a\",$D32*$Y32,$G32)+IFERROR(IF(AND($V32<=AA$1,$W32>=AA$1),INDEX(Reliability!F$23:F$50,MATCH($T32,Reliability!$C$23:$C$50,0)),0),0)*$H32*$X32*$Y32),$D32)*$R32","v":4.118093346908851},{"$f":"MIN((IFERROR(IF(AND($V32<=AB$1,$W32>=AB$1),INDEX(Reliability!G$23:G$50,MATCH($S32,Reliability!$C$23:$C$50,0)),0),0)*IF($T32=\"n/a\",$D32*$Y32,$G32)+IFERROR(IF(AND($V32<=AB$1,$W32>=AB$1),INDEX(Reliability!G$23:G$50,MATCH($T32,Reliability!$C$23:$C$50,0)),0),0)*$H32*$X32*$Y32),$D32)*$R32","v":4.6600974608348009},{"$f":"MIN((IFERROR(IF(AND($V32<=AC$1,$W32>=AC$1),INDEX(Reliability!H$23:H$50,MATCH($S32,Reliability!$C$23:$C$50,0)),0),0)*IF($T32=\"n/a\",$D32*$Y32,$G32)+IFERROR(IF(AND($V32<=AC$1,$W32>=AC$1),INDEX(Reliability!H$23:H$50,MATCH($T32,Reliability!$C$23:$C$50,0)),0),0)*$H32*$X32*$Y32),$D32)*$R32","v":3.2294850851636836},{"$f":"MIN((IFERROR(IF(AND($V32<=AD$1,$W32>=AD$1),INDEX(Reliability!I$23:I$50,MATCH($S32,Reliability!$C$23:$C$50,0)),0),0)*IF($T32=\"n/a\",$D32*$Y32,$G32)+IFERROR(IF(AND($V32<=AD$1,$W32>=AD$1),INDEX(Reliability!I$23:I$50,MATCH($T32,Reliability!$C$23:$C$50,0)),0),0)*$H32*$X32*$Y32),$D32)*$R32","v":1.7988727094925663},{"$f":"MIN((IFERROR(IF(AND($V32<=AE$1,$W32>=AE$1),INDEX(Reliability!J$23:J$50,MATCH($S32,Reliability!$C$23:$C$50,0)),0),0)*IF($T32=\"n/a\",$D32*$Y32,$G32)+IFERROR(IF(AND($V32<=AE$1,$W32>=AE$1),INDEX(Reliability!J$23:J$50,MATCH($T32,Reliability!$C$23:$C$50,0)),0),0)*$H32*$X32*$Y32),$D32)*$R32","v":2.3314835702897083},{"$f":"MIN((IFERROR(IF(AND($V32<=AF$1,$W32>=AF$1),INDEX(Reliability!K$23:K$50,MATCH($S32,Reliability!$C$23:$C$50,0)),0),0)*IF($T32=\"n/a\",$D32*$Y32,$G32)+IFERROR(IF(AND($V32<=AF$1,$W32>=AF$1),INDEX(Reliability!K$23:K$50,MATCH($T32,Reliability!$C$23:$C$50,0)),0),0)*$H32*$X32*$Y32),$D32)*$R32","v":2.8640944310868504},{"$f":"MIN((IFERROR(IF(AND($V32<=AG$1,$W32>=AG$1),INDEX(Reliability!L$23:L$50,MATCH($S32,Reliability!$C$23:$C$50,0)),0),0)*IF($T32=\"n/a\",$D32*$Y32,$G32)+IFERROR(IF(AND($V32<=AG$1,$W32>=AG$1),INDEX(Reliability!L$23:L$50,MATCH($T32,Reliability!$C$23:$C$50,0)),0),0)*$H32*$X32*$Y32),$D32)*$R32","v":2.5562715485540677},{"$f":"MIN((IFERROR(IF(AND($V32<=AH$1,$W32>=AH$1),INDEX(Reliability!M$23:M$50,MATCH($S32,Reliability!$C$23:$C$50,0)),0),0)*IF($T32=\"n/a\",$D32*$Y32,$G32)+IFERROR(IF(AND($V32<=AH$1,$W32>=AH$1),INDEX(Reliability!M$23:M$50,MATCH($T32,Reliability!$C$23:$C$50,0)),0),0)*$H32*$X32*$Y32),$D32)*$R32","v":2.2484486660212846},{"$f":"MIN((IFERROR(IF(AND($V32<=AI$1,$W32>=AI$1),INDEX(Reliability!N$23:N$50,MATCH($S32,Reliability!$C$23:$C$50,0)),0),0)*IF($T32=\"n/a\",$D32*$Y32,$G32)+IFERROR(IF(AND($V32<=AI$1,$W32>=AI$1),INDEX(Reliability!N$23:N$50,MATCH($T32,Reliability!$C$23:$C$50,0)),0),0)*$H32*$X32*$Y32),$D32)*$R32","v":1.9406257834885019},{"$f":"MIN((IFERROR(IF(AND($V32<=AJ$1,$W32>=AJ$1),INDEX(Reliability!O$23:O$50,MATCH($S32,Reliability!$C$23:$C$50,0)),0),0)*IF($T32=\"n/a\",$D32*$Y32,$G32)+IFERROR(IF(AND($V32<=AJ$1,$W32>=AJ$1),INDEX(Reliability!O$23:O$50,MATCH($T32,Reliability!$C$23:$C$50,0)),0),0)*$H32*$X32*$Y32),$D32)*$R32","v":1.632802900955719},{"$f":"MIN((IFERROR(IF(AND($V32<=AK$1,$W32>=AK$1),INDEX(Reliability!P$23:P$50,MATCH($S32,Reliability!$C$23:$C$50,0)),0),0)*IF($T32=\"n/a\",$D32*$Y32,$G32)+IFERROR(IF(AND($V32<=AK$1,$W32>=AK$1),INDEX(Reliability!P$23:P$50,MATCH($T32,Reliability!$C$23:$C$50,0)),0),0)*$H32*$X32*$Y32),$D32)*$R32","v":1.3249800184229363}]
[null,{"$f":"unique_contracts!B33","v":"VOYAGR_2_VOYWD2"},{"$f":"unique_contracts!D33","v":"Online"},{"$f":"unique_contracts!J33","v":63.125},{"$f":"unique_contracts!M33","v":"NotHybrid"},{"$f":"unique_contracts!N33","v":0},{"$f":"unique_contracts!P33","v":0},{"$f":"unique_contracts!R33","v":0},{"$f":"unique_contracts!V33","v":0},{"$f":"unique_contracts!AB33","v":"Buy"},{"$f":"unique_contracts!AM33","v":2021},{"$f":"unique_contracts!AN33","v":1},{"$f":"unique_contracts!AO33","v":1},{"$f":"unique_contracts!AP33","v":2028},{"$f":"unique_contracts!AQ33","v":12},{"$f":"unique_contracts!AR33","v":31},{"$f":"unique_contracts!BP33","v":"EnergyCapacity"},1,{"$f":"IFERROR(IF(AND(I33>0,E33=\"NotHybrid\"),_xlfn.CONCAT(MAX(MIN(ROUNDDOWN(I33/D33,0),8),4),INDEX(resources!$G:$G,MATCH(B33,resources!$A:$A,0))),INDEX(resources!$G:$G,MATCH(B33,resources!$A:$A,0))),\"n/a\")","v":"in_state_wind_south"},"n/a","in_state_wind_south",2021,2028,1,1,{"$f":"MIN((IFERROR(IF(AND($V33<=Z$1,$W33>=Z$1),INDEX(Reliability!E$23:E$50,MATCH($S33,Reliability!$C$23:$C$50,0)),0),0)*IF($T33=\"n/a\",$D33*$Y33,$G33)+IFERROR(IF(AND($V33<=Z$1,$W33>=Z$1),INDEX(Reliability!E$23:E$50,MATCH($T33,Reliability!$C$23:$C$50,0)),0),0)*$H33*$X33*$Y33),$D33)*$R33","v":7.4748553917895899},{"$f":"MIN((IFERROR(IF(AND($V33<=AA$1,$W33>=AA$1),INDEX(Reliability!F$23:F$50,MATCH($S33,Reliability!$C$23:$C$50,0)),0),0)*IF($T33=\"n/a\",$D33*$Y33,$G33)+IFERROR(IF(AND($V33<=AA$1,$W33>=AA$1),INDEX(Reliability!F$23:F$50,MATCH($T33,Reliability!$C$23:$C$50,0)),0),0)*$H33*$X33*$Y33),$D33)*$R33","v":8.607769619987458},{"$f":"MIN((IFERROR(IF(AND($V33<=AB$1,$W33>=AB$1),INDEX(Reliability!G$23:G$50,MATCH($S33,Reliability!$C$23:$C$50,0)),0),0)*IF($T33=\"n/a\",$D33*$Y33,$G33)+IFERROR(IF(AND($V33<=AB$1,$W33>=AB$1),INDEX(Reliability!G$23:G$50,MATCH($T33,Reliability!$C$23:$C$50,0)),0),0)*$H33*$X33*$Y33),$D33)*$R33","v":9.7406838481853253},{"$f":"MIN((IFERROR(IF(AND($V33<=AC$1,$W33>=AC$1),INDEX(Reliability!H$23:H$50,MATCH($S33,Reliability!$C$23:$C$50,0)),0),0)*IF($T33=\"n/a\",$D33*$Y33,$G33)+IFERROR(IF(AND($V33<=AC$1,$W33>=AC$1),INDEX(Reliability!H$23:H$50,MATCH($T33,Reliability!$C$23:$C$50,0)),0),0)*$H33*$X33*$Y33),$D33)*$R33","v":6.750372384137667},{"$f":"MIN((IFERROR(IF(AND($V33<=AD$1,$W33>=AD$1),INDEX(Reliability!I$23:I$50,MATCH($S33,Reliability!$C$23:$C$50,0)),0),0)*IF($T33=\"n/a\",$D33*$Y33,$G33)+IFERROR(IF(AND($V33<=AD$1,$W33>=AD$1),INDEX(Reliability!I$23:I$50,MATCH($T33,Reliability!$C$23:$C$50,0)),0),0)*$H33*$X33*$Y33),$D33)*$R33","v":3.7600609200900084},{"$f":"MIN((IFERROR(IF(AND($V33<=AE$1,$W33>=AE$1),INDEX(Reliability!J$23:J$50,MATCH($S33,Reliability!$C$23:$C$50,0)),0),0)*IF($T33=\"n/a\",$D33*$Y33,$G33)+IFERROR(IF(AND($V33<=AE$1,$W33>=AE$1),INDEX(Reliability!J$23:J$50,MATCH($T33,Reliability!$C$23:$C$50,0)),0),0)*$H33*$X33*$Y33),$D33)*$R33","v":0},{"$f":"MIN((IFERROR(IF(AND($V33<=AF$1,$W33>=AF$1),INDEX(Reliability!K$23:K$50,MATCH($S33,Reliability!$C$23:$C$50,0)),0),0)*IF($T33=\"n/a\",$D33*$Y33,$G33)+IFERROR(IF(AND($V33<=AF$1,$W33>=AF$1),INDEX(Reliability!K$23:K$50,MATCH($T33,Reliability!$C$23:$C$50,0)),0),0)*$H33*$X33*$Y33),$D33)*$R33","v":0},{"$f":"MIN((IFERROR(IF(AND($V33<=AG$1,$W33>=AG$1),INDEX(Reliability!L$23:L$50,MATCH($S33,Reliability!$C$23:$C$50,0)),0),0)*IF($T33=\"n/a\",$D33*$Y33,$G33)+IFERROR(IF(AND($V33<=AG$1,$W33>=AG$1),INDEX(Reliability!L$23:L$50,MATCH($T33,Reliability!$C$23:$C$50,0)),0),0)*$H33*$X33*$Y33),$D33)*$R33","v":0},{"$f":"MIN((IFERROR(IF(AND($V33<=AH$1,$W33>=AH$1),INDEX(Reliability!M$23:M$50,MATCH($S33,Reliability!$C$23:$C$50,0)),0),0)*IF($T33=\"n/a\",$D33*$Y33,$G33)+IFERROR(IF(AND($V33<=AH$1,$W33>=AH$1),INDEX(Reliability!M$23:M$50,MATCH($T33,Reliability!$C$23:$C$50,0)),0),0)*$H33*$X33*$Y33),$D33)*$R33","v":0},{"$f":"MIN((IFERROR(IF(AND($V33<=AI$1,$W33>=AI$1),INDEX(Reliability!N$23:N$50,MATCH($S33,Reliability!$C$23:$C$50,0)),0),0)*IF($T33=\"n/a\",$D33*$Y33,$G33)+IFERROR(IF(AND($V33<=AI$1,$W33>=AI$1),INDEX(Reliability!N$23:N$50,MATCH($T33,Reliability!$C$23:$C$50,0)),0),0)*$H33*$X33*$Y33),$D33)*$R33","v":0},{"$f":"MIN((IFERROR(IF(AND($V33<=AJ$1,$W33>=AJ$1),INDEX(Reliability!O$23:O$50,MATCH($S33,Reliability!$C$23:$C$50,0)),0),0)*IF($T33=\"n/a\",$D33*$Y33,$G33)+IFERROR(IF(AND($V33<=AJ$1,$W33>=AJ$1),INDEX(Reliability!O$23:O$50,MATCH($T33,Reliability!$C$23:$C$50,0)),0),0)*$H33*$X33*$Y33),$D33)*$R33","v":0},{"$f":"MIN((IFERROR(IF(AND($V33<=AK$1,$W33>=AK$1),INDEX(Reliability!P$23:P$50,MATCH($S33,Reliability!$C$23:$C$50,0)),0),0)*IF($T33=\"n/a\",$D33*$Y33,$G33)+IFERROR(IF(AND($V33<=AK$1,$W33>=AK$1),INDEX(Reliability!P$23:P$50,MATCH($T33,Reliability!$C$23:$C$50,0)),0),0)*$H33*$X33*$Y33),$D33)*$R33","v":0}]
[null,{"$f":"unique_contracts!B34","v":"_CREZ_GENERIC_CENTRAL_VALLEY_NORTH_LOS_BANOS_WIND"},{"$f":"unique_contracts!D34","v":"Development"},{"$f":"unique_contracts!J34","v":76.349999999999994},{"$f":"unique_contracts!M34","v":"NotHybrid"},{"$f":"unique_contracts!N34","v":0},{"$f":"unique_contracts!P34","v":0},{"$f":"unique_contracts!R34","v":0},{"$f":"unique_contracts!V34","v":0},{"$f":"unique_contracts!AB34","v":"Buy"},{"$f":"unique_contracts!AM34","v":2025},{"$f":"unique_contracts!AN34","v":10},{"$f":"unique_contracts!AO34","v":31},{"$f":"unique_contracts!AP34","v":2040},{"$f":"unique_contracts!AQ34","v":10},{"$f":"unique_contracts!AR34","v":30},{"$f":"unique_contracts!BP34","v":"EnergyCapacity"},1,{"$f":"IFERROR(IF(AND(I34>0,E34=\"NotHybrid\"),_xlfn.CONCAT(MAX(MIN(ROUNDDOWN(I34/D34,0),8),4),INDEX(resources!$G:$G,MATCH(B34,resources!$A:$A,0))),INDEX(resources!$G:$G,MATCH(B34,resources!$A:$A,0))),\"n/a\")","v":"in_state_wind_north"},"n/a","in_state_wind_north",2026,2040,1,1,{"$f":"MIN((IFERROR(IF(AND($V34<=Z$1,$W34>=Z$1),INDEX(Reliability!E$23:E$50,MATCH($S34,Reliability!$C$23:$C$50,0)),0),0)*IF($T34=\"n/a\",$D34*$Y34,$G34)+IFERROR(IF(AND($V34<=Z$1,$W34>=Z$1),INDEX(Reliability!E$23:E$50,MATCH($T34,Reliability!$C$23:$C$50,0)),0),0)*$H34*$X34*$Y34),$D34)*$R34","v":0},{"$f":"MIN((IFERROR(IF(AND($V34<=AA$1,$W34>=AA$1),INDEX(Reliability!F$23:F$50,MATCH($S34,Reliability!$C$23:$C$50,0)),0),0)*IF($T34=\"n/a\",$D34*$Y34,$G34)+IFERROR(IF(AND($V34<=AA$1,$W34>=AA$1),INDEX(Reliability!F$23:F$50,MATCH($T34,Reliability!$C$23:$C$50,0)),0),0)*$H34*$X34*$Y34),$D34)*$R34","v":0},{"$f":"MIN((IFERROR(IF(AND($V34<=AB$1,$W34>=AB$1),INDEX(Reliability!G$23:G$50,MATCH($S34,Reliability!$C$23:$C$50,0)),0),0)*IF($T34=\"n/a\",$D34*$Y34,$G34)+IFERROR(IF(AND($V34<=AB$1,$W34>=AB$1),INDEX(Reliability!G$23:G$50,MATCH($T34,Reliability!$C$23:$C$50,0)),0),0)*$H34*$X34*$Y34),$D34)*$R34","v":23.562810671174638},{"$f":"MIN((IFERROR(IF(AND($V34<=AC$1,$W34>=AC$1),INDEX(Reliability!H$23:H$50,MATCH($S34,Reliability!$C$23:$C$50,0)),0),0)*IF($T34=\"n/a\",$D34*$Y34,$G34)+IFERROR(IF(AND($V34<=AC$1,$W34>=AC$1),INDEX(Reliability!H$23:H$50,MATCH($T34,Reliability!$C$23:$C$50,0)),0),0)*$H34*$X34*$Y34),$D34)*$R34","v":16.329217632599153},{"$f":"MIN((IFERROR(IF(AND($V34<=AD$1,$W34>=AD$1),INDEX(Reliability!I$23:I$50,MATCH($S34,Reliability!$C$23:$C$50,0)),0),0)*IF($T34=\"n/a\",$D34*$Y34,$G34)+IFERROR(IF(AND($V34<=AD$1,$W34>=AD$1),INDEX(Reliability!I$23:I$50,MATCH($T34,Reliability!$C$23:$C$50,0)),0),0)*$H34*$X34*$Y34),$D34)*$R34","v":9.0956245940236702},{"$f":"MIN((IFERROR(IF(AND($V34<=AE$1,$W34>=AE$1),INDEX(Reliability!J$23:J$50,MATCH($S34,Reliability!$C$23:$C$50,0)),0),0)*IF($T34=\"n/a\",$D34*$Y34,$G34)+IFERROR(IF(AND($V34<=AE$1,$W34>=AE$1),INDEX(Reliability!J$23:J$50,MATCH($T34,Reliability!$C$23:$C$50,0)),0),0)*$H34*$X34*$Y34),$D34)*$R34","v":11.788660304080743},{"$f":"MIN((IFERROR(IF(AND($V34<=AF$1,$W34>=AF$1),INDEX(Reliability!K$23:K$50,MATCH($S34,Reliability!$C$23:$C$50,0)),0),0)*IF($T34=\"n/a\",$D34*$Y34,$G34)+IFERROR(IF(AND($V34<=AF$1,$W34>=AF$1),INDEX(Reliability!K$23:K$50,MATCH($T34,Reliability!$C$23:$C$50,0)),0),0)*$H34*$X34*$Y34),$D34)*$R34","v":14.481696014137816},{"$f":"MIN((IFERROR(IF(AND($V34<=AG$1,$W34>=AG$1),INDEX(Reliability!L$23:L$50,MATCH($S34,Reliability!$C$23:$C$50,0)),0),0)*IF($T34=\"n/a\",$D34*$Y34,$G34)+IFERROR(IF(AND($V34<=AG$1,$W34>=AG$1),INDEX(Reliability!L$23:L$50,MATCH($T34,Reliability!$C$23:$C$50,0)),0),0)*$H34*$X34*$Y34),$D34)*$R34","v":12.925253823318084},{"$f":"MIN((IFERROR(IF(AND($V34<=AH$1,$W34>=AH$1),INDEX(Reliability!M$23:M$50,MATCH($S34,Reliability!$C$23:$C$50,0)),0),0)*IF($T34=\"n/a\",$D34*$Y34,$G34)+IFERROR(IF(AND($V34<=AH$1,$W34>=AH$1),INDEX(Reliability!M$23:M$50,MATCH($T34,Reliability!$C$23:$C$50,0)),0),0)*$H34*$X34*$Y34),$D34)*$R34","v":11.36881163249835},{"$f":"MIN((IFERROR(IF(AND($V34<=AI$1,$W34>=AI$1),INDEX(Reliability!N$23:N$50,MATCH($S34,Reliability!$C$23:$C$50,0)),0),0)*IF($T34=\"n/a\",$D34*$Y34,$G34)+IFERROR(IF(AND($V34<=AI$1,$W34>=AI$1),INDEX(Reliability!N$23:N$50,MATCH($T34,Reliability!$C$23:$C$50,0)),0),0)*$H34*$X34*$Y34),$D34)*$R34","v":9.8123694416786176},{"$f":"MIN((IFERROR(IF(AND($V34<=AJ$1,$W34>=AJ$1),INDEX(Reliability!O$23:O$50,MATCH($S34,Reliability!$C$23:$C$50,0)),0),0)*IF($T34=\"n/a\",$D34*$Y34,$G34)+IFERROR(IF(AND($V34<=AJ$1,$W34>=AJ$1),INDEX(Reliability!O$23:O$50,MATCH($T34,Reliability!$C$23:$C$50,0)),0),0)*$H34*$X34*$Y34),$D34)*$R34","v":8.2559272508588837},{"$f":"MIN((IFERROR(IF(AND($V34<=AK$1,$W34>=AK$1),INDEX(Reliability!P$23:P$50,MATCH($S34,Reliability!$C$23:$C$50,0)),0),0)*IF($T34=\"n/a\",$D34*$Y34,$G34)+IFERROR(IF(AND($V34<=AK$1,$W34>=AK$1),INDEX(Reliability!P$23:P$50,MATCH($T34,Reliability!$C$23:$C$50,0)),0),0)*$H34*$X34*$Y34),$D34)*$R34","v":6.6994850600391507}]
[null,{"$f":"unique_contracts!B35","v":"WNDMAS_2_UNIT 1"},{"$f":"unique_contracts!D35","v":"Online"},{"$f":"unique_contracts!J35","v":38},{"$f":"unique_contracts!M35","v":"NotHybrid"},{"$f":"unique_contracts!N35","v":0},{"$f":"unique_contracts!P35","v":0},{"$f":"unique_contracts!R35","v":0},{"$f":"unique_contracts!V35","v":0},{"$f":"unique_contracts!AB35","v":"Buy"},{"$f":"unique_contracts!AM35","v":2023},{"$f":"unique_contracts!AN35","v":1},{"$f":"unique_contracts!AO35","v":1},{"$f":"unique_contracts!AP35","v":2027},{"$f":"unique_contracts!AQ35","v":12},{"$f":"unique_contracts!AR35","v":31},{"$f":"unique_contracts!BP35","v":"EnergyCapacity"},1,{"$f":"IFERROR(IF(AND(I35>0,E35=\"NotHybrid\"),_xlfn.CONCAT(MAX(MIN(ROUNDDOWN(I35/D35,0),8),4),INDEX(resources!$G:$G,MATCH(B35,resources!$A:$A,0))),INDEX(resources!$G:$G,MATCH(B35,resources!$A:$A,0))),\"n/a\")","v":"in_state_wind_north"},"n/a","in_state_wind_north",2023,2027,1,1,{"$f":"MIN((IFERROR(IF(AND($V35<=Z$1,$W35>=Z$1),INDEX(Reliability!E$23:E$50,MATCH($S35,Reliability!$C$23:$C$50,0)),0),0)*IF($T35=\"n/a\",$D35*$Y35,$G35)+IFERROR(IF(AND($V35<=Z$1,$W35>=Z$1),INDEX(Reliability!E$23:E$50,MATCH($T35,Reliability!$C$23:$C$50,0)),0),0)*$H35*$X35*$Y35),$D35)*$R35","v":8.9994298578377645},{"$f":"MIN((IFERROR(IF(AND($V35<=AA$1,$W35>=AA$1),INDEX(Reliability!F$23:F$50,MATCH($S35,Reliability!$C$23:$C$50,0)),0),0)*IF($T35=\"n/a\",$D35*$Y35,$G35)+IFERROR(IF(AND($V35<=AA$1,$W35>=AA$1),INDEX(Reliability!F$23:F$50,MATCH($T35,Reliability!$C$23:$C$50,0)),0),0)*$H35*$X35*$Y35),$D35)*$R35","v":10.363413720697771},{"$f":"MIN((IFERROR(IF(AND($V35<=AB$1,$W35>=AB$1),INDEX(Reliability!G$23:G$50,MATCH($S35,Reliability!$C$23:$C$50,0)),0),0)*IF($T35=\"n/a\",$D35*$Y35,$G35)+IFERROR(IF(AND($V35<=AB$1,$W35>=AB$1),INDEX(Reliability!G$23:G$50,MATCH($T35,Reliability!$C$23:$C$50,0)),0),0)*$H35*$X35*$Y35),$D35)*$R35","v":11.727397583557778},{"$f":"MIN((IFERROR(IF(AND($V35<=AC$1,$W35>=AC$1),INDEX(Reliability!H$23:H$50,MATCH($S35,Reliability!$C$23:$C$50,0)),0),0)*IF($T35=\"n/a\",$D35*$Y35,$G35)+IFERROR(IF(AND($V35<=AC$1,$W35>=AC$1),INDEX(Reliability!H$23:H$50,MATCH($T35,Reliability!$C$23:$C$50,0)),0),0)*$H35*$X35*$Y35),$D35)*$R35","v":8.1271810090211911},{"$f":"MIN((IFERROR(IF(AND($V35<=AD$1,$W35>=AD$1),INDEX(Reliability!I$23:I$50,MATCH($S35,Reliability!$C$23:$C$50,0)),0),0)*IF($T35=\"n/a\",$D35*$Y35,$G35)+IFERROR(IF(AND($V35<=AD$1,$W35>=AD$1),INDEX(Reliability!I$23:I$50,MATCH($T35,Reliability!$C$23:$C$50,0)),0),0)*$H35*$X35*$Y35),$D35)*$R35","v":0},{"$f":"MIN((IFERROR(IF(AND($V35<=AE$1,$W35>=AE$1),INDEX(Reliability!J$23:J$50,MATCH($S35,Reliability!$C$23:$C$50,0)),0),0)*IF($T35=\"n/a\",$D35*$Y35,$G35)+IFERROR(IF(AND($V35<=AE$1,$W35>=AE$1),INDEX(Reliability!J$23:J$50,MATCH($T35,Reliability!$C$23:$C$50,0)),0),0)*$H35*$X35*$Y35),$D35)*$R35","v":0},{"$f":"MIN((IFERROR(IF(AND($V35<=AF$1,$W35>=AF$1),INDEX(Reliability!K$23:K$50,MATCH($S35,Reliability!$C$23:$C$50,0)),0),0)*IF($T35=\"n/a\",$D35*$Y35,$G35)+IFERROR(IF(AND($V35<=AF$1,$W35>=AF$1),INDEX(Reliability!K$23:K$50,MATCH($T35,Reliability!$C$23:$C$50,0)),0),0)*$H35*$X35*$Y35),$D35)*$R35","v":0},{"$f":"MIN((IFERROR(IF(AND($V35<=AG$1,$W35>=AG$1),INDEX(Reliability!L$23:L$50,MATCH($S35,Reliability!$C$23:$C$50,0)),0),0)*IF($T35=\"n/a\",$D35*$Y35,$G35)+IFERROR(IF(AND($V35<=AG$1,$W35>=AG$1),INDEX(Reliability!L$23:L$50,MATCH($T35,Reliability!$C$23:$C$50,0)),0),0)*$H35*$X35*$Y35),$D35)*$R35","v":0},{"$f":"MIN((IFERROR(IF(AND($V35<=AH$1,$W35>=AH$1),INDEX(Reliability!M$23:M$50,MATCH($S35,Reliability!$C$23:$C$50,0)),0),0)*IF($T35=\"n/a\",$D35*$Y35,$G35)+IFERROR(IF(AND($V35<=AH$1,$W35>=AH$1),INDEX(Reliability!M$23:M$50,MATCH($T35,Reliability!$C$23:$C$50,0)),0),0)*$H35*$X35*$Y35),$D35)*$R35","v":0},{"$f":"MIN((IFERROR(IF(AND($V35<=AI$1,$W35>=AI$1),INDEX(Reliability!N$23:N$50,MATCH($S35,Reliability!$C$23:$C$50,0)),0),0)*IF($T35=\"n/a\",$D35*$Y35,$G35)+IFERROR(IF(AND($V35<=AI$1,$W35>=AI$1),INDEX(Reliability!N$23:N$50,MATCH($T35,Reliability!$C$23:$C$50,0)),0),0)*$H35*$X35*$Y35),$D35)*$R35","v":0},{"$f":"MIN((IFERROR(IF(AND($V35<=AJ$1,$W35>=AJ$1),INDEX(Reliability!O$23:O$50,MATCH($S35,Reliability!$C$23:$C$50,0)),0),0)*IF($T35=\"n/a\",$D35*$Y35,$G35)+IFERROR(IF(AND($V35<=AJ$1,$W35>=AJ$1),INDEX(Reliability!O$23:O$50,MATCH($T35,Reliability!$C$23:$C$50,0)),0),0)*$H35*$X35*$Y35),$D35)*$R35","v":0},{"$f":"MIN((IFERROR(IF(AND($V35<=AK$1,$W35>=AK$1),INDEX(Reliability!P$23:P$50,MATCH($S35,Reliability!$C$23:$C$50,0)),0),0)*IF($T35=\"n/a\",$D35*$Y35,$G35)+IFERROR(IF(AND($V35<=AK$1,$W35>=AK$1),INDEX(Reliability!P$23:P$50,MATCH($T35,Reliability!$C$23:$C$50,0)),0),0)*$H35*$X35*$Y35),$D35)*$R35","v":0}]
[null,{"$f":"unique_contracts!B36","v":"_SUPPLIERS_CHOICE"},{"$f":"unique_contracts!D36","v":"Online"},{"$f":"unique_contracts!J36","v":0},{"$f":"unique_contracts!M36","v":"NotHybrid"},{"$f":"unique_contracts!N36","v":0},{"$f":"unique_contracts!P36","v":0},{"$f":"unique_contracts!R36","v":0},{"$f":"unique_contracts!V36","v":0},{"$f":"unique_contracts!AB36","v":"Buy"},{"$f":"unique_contracts!AM36","v":2017},{"$f":"unique_contracts!AN36","v":1},{"$f":"unique_contracts!AO36","v":1},{"$f":"unique_contracts!AP36","v":2026},{"$f":"unique_contracts!AQ36","v":12},{"$f":"unique_contracts!AR36","v":31},{"$f":"unique_contracts!BP36","v":"EnergyOnly"},0,{"$f":"IFERROR(IF(AND(I36>0,E36=\"NotHybrid\"),_xlfn.CONCAT(MAX(MIN(ROUNDDOWN(I36/D36,0),8),4),INDEX(resources!$G:$G,MATCH(B36,resources!$A:$A,0))),INDEX(resources!$G:$G,MATCH(B36,resources!$A:$A,0))),\"n/a\")","v":"n/a"},"n/a","n/a",2017,2026,1,1,{"$f":"MIN((IFERROR(IF(AND($V36<=Z$1,$W36>=Z$1),INDEX(Reliability!E$23:E$50,MATCH($S36,Reliability!$C$23:$C$50,0)),0),0)*IF($T36=\"n/a\",$D36*$Y36,$G36)+IFERROR(IF(AND($V36<=Z$1,$W36>=Z$1),INDEX(Reliability!E$23:E$50,MATCH($T36,Reliability!$C$23:$C$50,0)),0),0)*$H36*$X36*$Y36),$D36)*$R36","v":0},{"$f":"MIN((IFERROR(IF(AND($V36<=AA$1,$W36>=AA$1),INDEX(Reliability!F$23:F$50,MATCH($S36,Reliability!$C$23:$C$50,0)),0),0)*IF($T36=\"n/a\",$D36*$Y36,$G36)+IFERROR(IF(AND($V36<=AA$1,$W36>=AA$1),INDEX(Reliability!F$23:F$50,MATCH($T36,Reliability!$C$23:$C$50,0)),0),0)*$H36*$X36*$Y36),$D36)*$R36","v":0},{"$f":"MIN((IFERROR(IF(AND($V36<=AB$1,$W36>=AB$1),INDEX(Reliability!G$23:G$50,MATCH($S36,Reliability!$C$23:$C$50,0)),0),0)*IF($T36=\"n/a\",$D36*$Y36,$G36)+IFERROR(IF(AND($V36<=AB$1,$W36>=AB$1),INDEX(Reliability!G$23:G$50,MATCH($T36,Reliability!$C$23:$C$50,0)),0),0)*$H36*$X36*$Y36),$D36)*$R36","v":0},{"$f":"MIN((IFERROR(IF(AND($V36<=AC$1,$W36>=AC$1),INDEX(Reliability!H$23:H$50,MATCH($S36,Reliability!$C$23:$C$50,0)),0),0)*IF($T36=\"n/a\",$D36*$Y36,$G36)+IFERROR(IF(AND($V36<=AC$1,$W36>=AC$1),INDEX(Reliability!H$23:H$50,MATCH($T36,Reliability!$C$23:$C$50,0)),0),0)*$H36*$X36*$Y36),$D36)*$R36","v":0},{"$f":"MIN((IFERROR(IF(AND($V36<=AD$1,$W36>=AD$1),INDEX(Reliability!I$23:I$50,MATCH($S36,Reliability!$C$23:$C$50,0)),0),0)*IF($T36=\"n/a\",$D36*$Y36,$G36)+IFERROR(IF(AND($V36<=AD$1,$W36>=AD$1),INDEX(Reliability!I$23:I$50,MATCH($T36,Reliability!$C$23:$C$50,0)),0),0)*$H36*$X36*$Y36),$D36)*$R36","v":0},{"$f":"MIN((IFERROR(IF(AND($V36<=AE$1,$W36>=AE$1),INDEX(Reliability!J$23:J$50,MATCH($S36,Reliability!$C$23:$C$50,0)),0),0)*IF($T36=\"n/a\",$D36*$Y36,$G36)+IFERROR(IF(AND($V36<=AE$1,$W36>=AE$1),INDEX(Reliability!J$23:J$50,MATCH($T36,Reliability!$C$23:$C$50,0)),0),0)*$H36*$X36*$Y36),$D36)*$R36","v":0},{"$f":"MIN((IFERROR(IF(AND($V36<=AF$1,$W36>=AF$1),INDEX(Reliability!K$23:K$50,MATCH($S36,Reliability!$C$23:$C$50,0)),0),0)*IF($T36=\"n/a\",$D36*$Y36,$G36)+IFERROR(IF(AND($V36<=AF$1,$W36>=AF$1),INDEX(Reliability!K$23:K$50,MATCH($T36,Reliability!$C$23:$C$50,0)),0),0)*$H36*$X36*$Y36),$D36)*$R36","v":0},{"$f":"MIN((IFERROR(IF(AND($V36<=AG$1,$W36>=AG$1),INDEX(Reliability!L$23:L$50,MATCH($S36,Reliability!$C$23:$C$50,0)),0),0)*IF($T36=\"n/a\",$D36*$Y36,$G36)+IFERROR(IF(AND($V36<=AG$1,$W36>=AG$1),INDEX(Reliability!L$23:L$50,MATCH($T36,Reliability!$C$23:$C$50,0)),0),0)*$H36*$X36*$Y36),$D36)*$R36","v":0},{"$f":"MIN((IFERROR(IF(AND($V36<=AH$1,$W36>=AH$1),INDEX(Reliability!M$23:M$50,MATCH($S36,Reliability!$C$23:$C$50,0)),0),0)*IF($T36=\"n/a\",$D36*$Y36,$G36)+IFERROR(IF(AND($V36<=AH$1,$W36>=AH$1),INDEX(Reliability!M$23:M$50,MATCH($T36,Reliability!$C$23:$C$50,0)),0),0)*$H36*$X36*$Y36),$D36)*$R36","v":0},{"$f":"MIN((IFERROR(IF(AND($V36<=AI$1,$W36>=AI$1),INDEX(Reliability!N$23:N$50,MATCH($S36,Reliability!$C$23:$C$50,0)),0),0)*IF($T36=\"n/a\",$D36*$Y36,$G36)+IFERROR(IF(AND($V36<=AI$1,$W36>=AI$1),INDEX(Reliability!N$23:N$50,MATCH($T36,Reliability!$C$23:$C$50,0)),0),0)*$H36*$X36*$Y36),$D36)*$R36","v":0},{"$f":"MIN((IFERROR(IF(AND($V36<=AJ$1,$W36>=AJ$1),INDEX(Reliability!O$23:O$50,MATCH($S36,Reliability!$C$23:$C$50,0)),0),0)*IF($T36=\"n/a\",$D36*$Y36,$G36)+IFERROR(IF(AND($V36<=AJ$1,$W36>=AJ$1),INDEX(Reliability!O$23:O$50,MATCH($T36,Reliability!$C$23:$C$50,0)),0),0)*$H36*$X36*$Y36),$D36)*$R36","v":0},{"$f":"MIN((IFERROR(IF(AND($V36<=AK$1,$W36>=AK$1),INDEX(Reliability!P$23:P$50,MATCH($S36,Reliability!$C$23:$C$50,0)),0),0)*IF($T36=\"n/a\",$D36*$Y36,$G36)+IFERROR(IF(AND($V36<=AK$1,$W36>=AK$1),INDEX(Reliability!P$23:P$50,MATCH($T36,Reliability!$C$23:$C$50,0)),0),0)*$H36*$X36*$Y36),$D36)*$R36","v":0}]
[null,{"$f":"unique_contracts!B37","v":"SUTTER_2_CISO"},{"$f":"unique_contracts!D37","v":"Online"},{"$f":"unique_contracts!J37","v":41.75},{"$f":"unique_contracts!M37","v":"NotHybrid"},{"$f":"unique_contracts!N37","v":0},{"$f":"unique_contracts!P37","v":0},{"$f":"unique_contracts!R37","v":0},{"$f":"unique_contracts!V37","v":0},{"$f":"unique_contracts!AB37","v":"Buy"},{"$f":"unique_contracts!AM37","v":2021},{"$f":"unique_contracts!AN37","v":1},{"$f":"unique_contracts!AO37","v":1},{"$f":"unique_contracts!AP37","v":2023},{"$f":"unique_contracts!AQ37","v":12},{"$f":"unique_contracts!AR37","v":31},{"$f":"unique_contracts!BP37","v":"CapacityOnly"},1,{"$f":"IFERROR(IF(AND(I37>0,E37=\"NotHybrid\"),_xlfn.CONCAT(MAX(MIN(ROUNDDOWN(I37/D37,0),8),4),INDEX(resources!$G:$G,MATCH(B37,resources!$A:$A,0))),INDEX(resources!$G:$G,MATCH(B37,resources!$A:$A,0))),\"n/a\")","v":"gas_cc"},"n/a","gas_cc",2021,2023,1,1,{"$f":"MIN((IFERROR(IF(AND($V37<=Z$1,$W37>=Z$1),INDEX(Reliability!E$23:E$50,MATCH($S37,Reliability!$C$23:$C$50,0)),0),0)*IF($T37=\"n/a\",$D37*$Y37,$G37)+IFERROR(IF(AND($V37<=Z$1,$W37>=Z$1),INDEX(Reliability!E$23:E$50,MATCH($T37,Reliability!$C$23:$C$50,0)),0),0)*$H37*$X37*$Y37),$D37)*$R37","v":0},{"$f":"MIN((IFERROR(IF(AND($V37<=AA$1,$W37>=AA$1),INDEX(Reliability!F$23:F$50,MATCH($S37,Reliability!$C$23:$C$50,0)),0),0)*IF($T37=\"n/a\",$D37*$Y37,$G37)+IFERROR(IF(AND($V37<=AA$1,$W37>=AA$1),INDEX(Reliability!F$23:F$50,MATCH($T37,Reliability!$C$23:$C$50,0)),0),0)*$H37*$X37*$Y37),$D37)*$R37","v":0},{"$f":"MIN((IFERROR(IF(AND($V37<=AB$1,$W37>=AB$1),INDEX(Reliability!G$23:G$50,MATCH($S37,Reliability!$C$23:$C$50,0)),0),0)*IF($T37=\"n/a\",$D37*$Y37,$G37)+IFERROR(IF(AND($V37<=AB$1,$W37>=AB$1),INDEX(Reliability!G$23:G$50,MATCH($T37,Reliability!$C$23:$C$50,0)),0),0)*$H37*$X37*$Y37),$D37)*$R37","v":0},{"$f":"MIN((IFERROR(IF(AND($V37<=AC$1,$W37>=AC$1),INDEX(Reliability!H$23:H$50,MATCH($S37,Reliability!$C$23:$C$50,0)),0),0)*IF($T37=\"n/a\",$D37*$Y37,$G37)+IFERROR(IF(AND($V37<=AC$1,$W37>=AC$1),INDEX(Reliability!H$23:H$50,MATCH($T37,Reliability!$C$23:$C$50,0)),0),0)*$H37*$X37*$Y37),$D37)*$R37","v":0},{"$f":"MIN((IFERROR(IF(AND($V37<=AD$1,$W37>=AD$1),INDEX(Reliability!I$23:I$50,MATCH($S37,Reliability!$C$23:$C$50,0)),0),0)*IF($T37=\"n/a\",$D37*$Y37,$G37)+IFERROR(IF(AND($V37<=AD$1,$W37>=AD$1),INDEX(Reliability!I$23:I$50,MATCH($T37,Reliability!$C$23:$C$50,0)),0),0)*$H37*$X37*$Y37),$D37)*$R37","v":0},{"$f":"MIN((IFERROR(IF(AND($V37<=AE$1,$W37>=AE$1),INDEX(Reliability!J$23:J$50,MATCH($S37,Reliability!$C$23:$C$50,0)),0),0)*IF($T37=\"n/a\",$D37*$Y37,$G37)+IFERROR(IF(AND($V37<=AE$1,$W37>=AE$1),INDEX(Reliability!J$23:J$50,MATCH($T37,Reliability!$C$23:$C$50,0)),0),0)*$H37*$X37*$Y37),$D37)*$R37","v":0},{"$f":"MIN((IFERROR(IF(AND($V37<=AF$1,$W37>=AF$1),INDEX(Reliability!K$23:K$50,MATCH($S37,Reliability!$C$23:$C$50,0)),0),0)*IF($T37=\"n/a\",$D37*$Y37,$G37)+IFERROR(IF(AND($V37<=AF$1,$W37>=AF$1),INDEX(Reliability!K$23:K$50,MATCH($T37,Reliability!$C$23:$C$50,0)),0),0)*$H37*$X37*$Y37),$D37)*$R37","v":0},{"$f":"MIN((IFERROR(IF(AND($V37<=AG$1,$W37>=AG$1),INDEX(Reliability!L$23:L$50,MATCH($S37,Reliability!$C$23:$C$50,0)),0),0)*IF($T37=\"n/a\",$D37*$Y37,$G37)+IFERROR(IF(AND($V37<=AG$1,$W37>=AG$1),INDEX(Reliability!L$23:L$50,MATCH($T37,Reliability!$C$23:$C$50,0)),0),0)*$H37*$X37*$Y37),$D37)*$R37","v":0},{"$f":"MIN((IFERROR(IF(AND($V37<=AH$1,$W37>=AH$1),INDEX(Reliability!M$23:M$50,MATCH($S37,Reliability!$C$23:$C$50,0)),0),0)*IF($T37=\"n/a\",$D37*$Y37,$G37)+IFERROR(IF(AND($V37<=AH$1,$W37>=AH$1),INDEX(Reliability!M$23:M$50,MATCH($T37,Reliability!$C$23:$C$50,0)),0),0)*$H37*$X37*$Y37),$D37)*$R37","v":0},{"$f":"MIN((IFERROR(IF(AND($V37<=AI$1,$W37>=AI$1),INDEX(Reliability!N$23:N$50,MATCH($S37,Reliability!$C$23:$C$50,0)),0),0)*IF($T37=\"n/a\",$D37*$Y37,$G37)+IFERROR(IF(AND($V37<=AI$1,$W37>=AI$1),INDEX(Reliability!N$23:N$50,MATCH($T37,Reliability!$C$23:$C$50,0)),0),0)*$H37*$X37*$Y37),$D37)*$R37","v":0},{"$f":"MIN((IFERROR(IF(AND($V37<=AJ$1,$W37>=AJ$1),INDEX(Reliability!O$23:O$50,MATCH($S37,Reliability!$C$23:$C$50,0)),0),0)*IF($T37=\"n/a\",$D37*$Y37,$G37)+IFERROR(IF(AND($V37<=AJ$1,$W37>=AJ$1),INDEX(Reliability!O$23:O$50,MATCH($T37,Reliability!$C$23:$C$50,0)),0),0)*$H37*$X37*$Y37),$D37)*$R37","v":0},{"$f":"MIN((IFERROR(IF(AND($V37<=AK$1,$W37>=AK$1),INDEX(Reliability!P$23:P$50,MATCH($S37,Reliability!$C$23:$C$50,0)),0),0)*IF($T37=\"n/a\",$D37*$Y37,$G37)+IFERROR(IF(AND($V37<=AK$1,$W37>=AK$1),INDEX(Reliability!P$23:P$50,MATCH($T37,Reliability!$C$23:$C$50,0)),0),0)*$H37*$X37*$Y37),$D37)*$R37","v":0}]
[null,{"$f":"unique_contracts!B38","v":"_NEW_GENERIC_BATTERY_STORAGE"},{"$f":"unique_contracts!D38","v":"Online"},{"$f":"unique_contracts!J38","v":13.6},{"$f":"unique_contracts!M38","v":"NotHybrid"},{"$f":"unique_contracts!N38","v":0},{"$f":"unique_contracts!P38","v":0},{"$f":"unique_contracts!R38","v":0},{"$f":"unique_contracts!V38","v":0},{"$f":"unique_contracts!AB38","v":"Buy"},{"$f":"unique_contracts!AM38","v":2026},{"$f":"unique_contracts!AN38","v":6},{"$f":"unique_contracts!AO38","v":1},{"$f":"unique_contracts!AP38","v":2041},{"$f":"unique_contracts!AQ38","v":5},{"$f":"unique_contracts!AR38","v":31},{"$f":"unique_contracts!BP38","v":"EnergyCapacity"},1,{"$f":"IFERROR(IF(AND(I38>0,E38=\"NotHybrid\"),_xlfn.CONCAT(MAX(MIN(ROUNDDOWN(I38/D38,0),8),4),INDEX(resources!$G:$G,MATCH(B38,resources!$A:$A,0))),INDEX(resources!$G:$G,MATCH(B38,resources!$A:$A,0))),\"n/a\")","v":"hr_batteries"},"n/a","hr_batteries",2026,2040,1,0,{"$f":"MIN((IFERROR(IF(AND($V38<=Z$1,$W38>=Z$1),INDEX(Reliability!E$23:E$50,MATCH($S38,Reliability!$C$23:$C$50,0)),0),0)*IF($T38=\"n/a\",$D38*$Y38,$G38)+IFERROR(IF(AND($V38<=Z$1,$W38>=Z$1),INDEX(Reliability!E$23:E$50,MATCH($T38,Reliability!$C$23:$C$50,0)),0),0)*$H38*$X38*$Y38),$D38)*$R38","v":0},{"$f":"MIN((IFERROR(IF(AND($V38<=AA$1,$W38>=AA$1),INDEX(Reliability!F$23:F$50,MATCH($S38,Reliability!$C$23:$C$50,0)),0),0)*IF($T38=\"n/a\",$D38*$Y38,$G38)+IFERROR(IF(AND($V38<=AA$1,$W38>=AA$1),INDEX(Reliability!F$23:F$50,MATCH($T38,Reliability!$C$23:$C$50,0)),0),0)*$H38*$X38*$Y38),$D38)*$R38","v":0},{"$f":"MIN((IFERROR(IF(AND($V38<=AB$1,$W38>=AB$1),INDEX(Reliability!G$23:G$50,MATCH($S38,Reliability!$C$23:$C$50,0)),0),0)*IF($T38=\"n/a\",$D38*$Y38,$G38)+IFERROR(IF(AND($V38<=AB$1,$W38>=AB$1),INDEX(Reliability!G$23:G$50,MATCH($T38,Reliability!$C$23:$C$50,0)),0),0)*$H38*$X38*$Y38),$D38)*$R38","v":0},{"$f":"MIN((IFERROR(IF(AND($V38<=AC$1,$W38>=AC$1),INDEX(Reliability!H$23:H$50,MATCH($S38,Reliability!$C$23:$C$50,0)),0),0)*IF($T38=\"n/a\",$D38*$Y38,$G38)+IFERROR(IF(AND($V38<=AC$1,$W38>=AC$1),INDEX(Reliability!H$23:H$50,MATCH($T38,Reliability!$C$23:$C$50,0)),0),0)*$H38*$X38*$Y38),$D38)*$R38","v":0},{"$f":"MIN((IFERROR(IF(AND($V38<=AD$1,$W38>=AD$1),INDEX(Reliability!I$23:I$50,MATCH($S38,Reliability!$C$23:$C$50,0)),0),0)*IF($T38=\"n/a\",$D38*$Y38,$G38)+IFERROR(IF(AND($V38<=AD$1,$W38>=AD$1),INDEX(Reliability!I$23:I$50,MATCH($T38,Reliability!$C$23:$C$50,0)),0),0)*$H38*$X38*$Y38),$D38)*$R38","v":0},{"$f":"MIN((IFERROR(IF(AND($V38<=AE$1,$W38>=AE$1),INDEX(Reliability!J$23:J$50,MATCH($S38,Reliability!$C$23:$C$50,0)),0),0)*IF($T38=\"n/a\",$D38*$Y38,$G38)+IFERROR(IF(AND($V38<=AE$1,$W38>=AE$1),INDEX(Reliability!J$23:J$50,MATCH($T38,Reliability!$C$23:$C$50,0)),0),0)*$H38*$X38*$Y38),$D38)*$R38","v":0},{"$f":"MIN((IFERROR(IF(AND($V38<=AF$1,$W38>=AF$1),INDEX(Reliability!K$23:K$50,MATCH($S38,Reliability!$C$23:$C$50,0)),0),0)*IF($T38=\"n/a\",$D38*$Y38,$G38)+IFERROR(IF(AND($V38<=AF$1,$W38>=AF$1),INDEX(Reliability!K$23:K$50,MATCH($T38,Reliability!$C$23:$C$50,0)),0),0)*$H38*$X38*$Y38),$D38)*$R38","v":0},{"$f":"MIN((IFERROR(IF(AND($V38<=AG$1,$W38>=AG$1),INDEX(Reliability!L$23:L$50,MATCH($S38,Reliability!$C$23:$C$50,0)),0),0)*IF($T38=\"n/a\",$D38*$Y38,$G38)+IFERROR(IF(AND($V38<=AG$1,$W38>=AG$1),INDEX(Reliability!L$23:L$50,MATCH($T38,Reliability!$C$23:$C$50,0)),0),0)*$H38*$X38*$Y38),$D38)*$R38","v":0},{"$f":"MIN((IFERROR(IF(AND($V38<=AH$1,$W38>=AH$1),INDEX(Reliability!M$23:M$50,MATCH($S38,Reliability!$C$23:$C$50,0)),0),0)*IF($T38=\"n/a\",$D38*$Y38,$G38)+IFERROR(IF(AND($V38<=AH$1,$W38>=AH$1),INDEX(Reliability!M$23:M$50,MATCH($T38,Reliability!$C$23:$C$50,0)),0),0)*$H38*$X38*$Y38),$D38)*$R38","v":0},{"$f":"MIN((IFERROR(IF(AND($V38<=AI$1,$W38>=AI$1),INDEX(Reliability!N$23:N$50,MATCH($S38,Reliability!$C$23:$C$50,0)),0),0)*IF($T38=\"n/a\",$D38*$Y38,$G38)+IFERROR(IF(AND($V38<=AI$1,$W38>=AI$1),INDEX(Reliability!N$23:N$50,MATCH($T38,Reliability!$C$23:$C$50,0)),0),0)*$H38*$X38*$Y38),$D38)*$R38","v":0},{"$f":"MIN((IFERROR(IF(AND($V38<=AJ$1,$W38>=AJ$1),INDEX(Reliability!O$23:O$50,MATCH($S38,Reliability!$C$23:$C$50,0)),0),0)*IF($T38=\"n/a\",$D38*$Y38,$G38)+IFERROR(IF(AND($V38<=AJ$1,$W38>=AJ$1),INDEX(Reliability!O$23:O$50,MATCH($T38,Reliability!$C$23:$C$50,0)),0),0)*$H38*$X38*$Y38),$D38)*$R38","v":0},{"$f":"MIN((IFERROR(IF(AND($V38<=AK$1,$W38>=AK$1),INDEX(Reliability!P$23:P$50,MATCH($S38,Reliability!$C$23:$C$50,0)),0),0)*IF($T38=\"n/a\",$D38*$Y38,$G38)+IFERROR(IF(AND($V38<=AK$1,$W38>=AK$1),INDEX(Reliability!P$23:P$50,MATCH($T38,Reliability!$C$23:$C$50,0)),0),0)*$H38*$X38*$Y38),$D38)*$R38","v":0}]
[null,{"$f":"unique_contracts!B40","v":0},{"$f":"unique_contracts!D40","v":"PlannedExisting"},{"$f":"unique_contracts!J40","v":0},{"$f":"unique_contracts!M40","v":"NotHybrid"},{"$f":"unique_contracts!N40","v":0},{"$f":"unique_contracts!P40","v":0},{"$f":"unique_contracts!R40","v":0},{"$f":"unique_contracts!V40","v":0},{"$f":"unique_contracts!AB40","v":"Buy"},{"$f":"unique_contracts!AM40","v":2024},{"$f":"unique_contracts!AN40","v":6},{"$f":"unique_contracts!AO40","v":1},{"$f":"unique_contracts!AP40","v":2034},{"$f":"unique_contracts!AQ40","v":5},{"$f":"unique_contracts!AR40","v":31},{"$f":"unique_contracts!BP40","v":"EnergyCapacity"},1,{"$f":"IFERROR(IF(AND(I39>0,E39=\"NotHybrid\"),_xlfn.CONCAT(MAX(MIN(ROUNDDOWN(I39/D39,0),8),4),INDEX(resources!$G:$G,MATCH(B39,resources!$A:$A,0))),INDEX(resources!$G:$G,MATCH(B39,resources!$A:$A,0))),\"n/a\")","v":"n/a"},"n/a","n/a",2024,2033,1,1,{"$f":"MIN((IFERROR(IF(AND($V39<=Z$1,$W39>=Z$1),INDEX(Reliability!E$23:E$50,MATCH($S39,Reliability!$C$23:$C$50,0)),0),0)*IF($T39=\"n/a\",$D39*$Y39,$G39)+IFERROR(IF(AND($V39<=Z$1,$W39>=Z$1),INDEX(Reliability!E$23:E$50,MATCH($T39,Reliability!$C$23:$C$50,0)),0),0)*$H39*$X39*$Y39),$D39)*$R39","v":0},{"$f":"MIN((IFERROR(IF(AND($V39<=AA$1,$W39>=AA$1),INDEX(Reliability!F$23:F$50,MATCH($S39,Reliability!$C$23:$C$50,0)),0),0)*IF($T39=\"n/a\",$D39*$Y39,$G39)+IFERROR(IF(AND($V39<=AA$1,$W39>=AA$1),INDEX(Reliability!F$23:F$50,MATCH($T39,Reliability!$C$23:$C$50,0)),0),0)*$H39*$X39*$Y39),$D39)*$R39","v":0},{"$f":"MIN((IFERROR(IF(AND($V39<=AB$1,$W39>=AB$1),INDEX(Reliability!G$23:G$50,MATCH($S39,Reliability!$C$23:$C$50,0)),0),0)*IF($T39=\"n/a\",$D39*$Y39,$G39)+IFERROR(IF(AND($V39<=AB$1,$W39>=AB$1),INDEX(Reliability!G$23:G$50,MATCH($T39,Reliability!$C$23:$C$50,0)),0),0)*$H39*$X39*$Y39),$D39)*$R39","v":0},{"$f":"MIN((IFERROR(IF(AND($V39<=AC$1,$W39>=AC$1),INDEX(Reliability!H$23:H$50,MATCH($S39,Reliability!$C$23:$C$50,0)),0),0)*IF($T39=\"n/a\",$D39*$Y39,$G39)+IFERROR(IF(AND($V39<=AC$1,$W39>=AC$1),INDEX(Reliability!H$23:H$50,MATCH($T39,Reliability!$C$23:$C$50,0)),0),0)*$H39*$X39*$Y39),$D39)*$R39","v":0},{"$f":"MIN((IFERROR(IF(AND($V39<=AD$1,$W39>=AD$1),INDEX(Reliability!I$23:I$50,MATCH($S39,Reliability!$C$23:$C$50,0)),0),0)*IF($T39=\"n/a\",$D39*$Y39,$G39)+IFERROR(IF(AND($V39<=AD$1,$W39>=AD$1),INDEX(Reliability!I$23:I$50,MATCH($T39,Reliability!$C$23:$C$50,0)),0),0)*$H39*$X39*$Y39),$D39)*$R39","v":0},{"$f":"MIN((IFERROR(IF(AND($V39<=AE$1,$W39>=AE$1),INDEX(Reliability!J$23:J$50,MATCH($S39,Reliability!$C$23:$C$50,0)),0),0)*IF($T39=\"n/a\",$D39*$Y39,$G39)+IFERROR(IF(AND($V39<=AE$1,$W39>=AE$1),INDEX(Reliability!J$23:J$50,MATCH($T39,Reliability!$C$23:$C$50,0)),0),0)*$H39*$X39*$Y39),$D39)*$R39","v":0},{"$f":"MIN((IFERROR(IF(AND($V39<=AF$1,$W39>=AF$1),INDEX(Reliability!K$23:K$50,MATCH($S39,Reliability!$C$23:$C$50,0)),0),0)*IF($T39=\"n/a\",$D39*$Y39,$G39)+IFERROR(IF(AND($V39<=AF$1,$W39>=AF$1),INDEX(Reliability!K$23:K$50,MATCH($T39,Reliability!$C$23:$C$50,0)),0),0)*$H39*$X39*$Y39),$D39)*$R39","v":0},{"$f":"MIN((IFERROR(IF(AND($V39<=AG$1,$W39>=AG$1),INDEX(Reliability!L$23:L$50,MATCH($S39,Reliability!$C$23:$C$50,0)),0),0)*IF($T39=\"n/a\",$D39*$Y39,$G39)+IFERROR(IF(AND($V39<=AG$1,$W39>=AG$1),INDEX(Reliability!L$23:L$50,MATCH($T39,Reliability!$C$23:$C$50,0)),0),0)*$H39*$X39*$Y39),$D39)*$R39","v":0},{"$f":"MIN((IFERROR(IF(AND($V39<=AH$1,$W39>=AH$1),INDEX(Reliability!M$23:M$50,MATCH($S39,Reliability!$C$23:$C$50,0)),0),0)*IF($T39=\"n/a\",$D39*$Y39,$G39)+IFERROR(IF(AND($V39<=AH$1,$W39>=AH$1),INDEX(Reliability!M$23:M$50,MATCH($T39,Reliability!$C$23:$C$50,0)),0),0)*$H39*$X39*$Y39),$D39)*$R39","v":0},{"$f":"MIN((IFERROR(IF(AND($V39<=AI$1,$W39>=AI$1),INDEX(Reliability!N$23:N$50,MATCH($S39,Reliability!$C$23:$C$50,0)),0),0)*IF($T39=\"n/a\",$D39*$Y39,$G39)+IFERROR(IF(AND($V39<=AI$1,$W39>=AI$1),INDEX(Reliability!N$23:N$50,MATCH($T39,Reliability!$C$23:$C$50,0)),0),0)*$H39*$X39*$Y39),$D39)*$R39","v":0},{"$f":"MIN((IFERROR(IF(AND($V39<=AJ$1,$W39>=AJ$1),INDEX(Reliability!O$23:O$50,MATCH($S39,Reliability!$C$23:$C$50,0)),0),0)*IF($T39=\"n/a\",$D39*$Y39,$G39)+IFERROR(IF(AND($V39<=AJ$1,$W39>=AJ$1),INDEX(Reliability!O$23:O$50,MATCH($T39,Reliability!$C$23:$C$50,0)),0),0)*$H39*$X39*$Y39),$D39)*$R39","v":0},{"$f":"MIN((IFERROR(IF(AND($V39<=AK$1,$W39>=AK$1),INDEX(Reliability!P$23:P$50,MATCH($S39,Reliability!$C$23:$C$50,0)),0),0)*IF($T39=\"n/a\",$D39*$Y39,$G39)+IFERROR(IF(AND($V39<=AK$1,$W39>=AK$1),INDEX(Reliability!P$23:P$50,MATCH($T39,Reliability!$C$23:$C$50,0)),0),0)*$H39*$X39*$Y39),$D39)*$R39","v":0}]
[null,{"$f":"unique_contracts!B41","v":0},{"$f":"unique_contracts!D41","v":"PlannedExisting"},{"$f":"unique_contracts!J41","v":0},{"$f":"unique_contracts!M41","v":"NotHybrid"},{"$f":"unique_contracts!N41","v":0},{"$f":"unique_contracts!P41","v":0},{"$f":"unique_contracts!R41","v":0},{"$f":"unique_contracts!V41","v":0},{"$f":"unique_contracts!AB41","v":"Buy"},{"$f":"unique_contracts!AM41","v":2024},{"$f":"unique_contracts!AN41","v":1},{"$f":"unique_contracts!AO41","v":1},{"$f":"unique_contracts!AP41","v":2026},{"$f":"unique_contracts!AQ41","v":12},{"$f":"unique_contracts!AR41","v":31},{"$f":"unique_contracts!BP41","v":"EnergyCapacity"},1,{"$f":"IFERROR(IF(AND(I40>0,E40=\"NotHybrid\"),_xlfn.CONCAT(MAX(MIN(ROUNDDOWN(I40/D40,0),8),4),INDEX(resources!$G:$G,MATCH(B40,resources!$A:$A,0))),INDEX(resources!$G:$G,MATCH(B40,resources!$A:$A,0))),\"n/a\")","v":"n/a"},"n/a","n/a",2024,2026,1,1,{"$f":"MIN((IFERROR(IF(AND($V40<=Z$1,$W40>=Z$1),INDEX(Reliability!E$23:E$50,MATCH($S40,Reliability!$C$23:$C$50,0)),0),0)*IF($T40=\"n/a\",$D40*$Y40,$G40)+IFERROR(IF(AND($V40<=Z$1,$W40>=Z$1),INDEX(Reliability!E$23:E$50,MATCH($T40,Reliability!$C$23:$C$50,0)),0),0)*$H40*$X40*$Y40),$D40)*$R40","v":0},{"$f":"MIN((IFERROR(IF(AND($V40<=AA$1,$W40>=AA$1),INDEX(Reliability!F$23:F$50,MATCH($S40,Reliability!$C$23:$C$50,0)),0),0)*IF($T40=\"n/a\",$D40*$Y40,$G40)+IFERROR(IF(AND($V40<=AA$1,$W40>=AA$1),INDEX(Reliability!F$23:F$50,MATCH($T40,Reliability!$C$23:$C$50,0)),0),0)*$H40*$X40*$Y40),$D40)*$R40","v":0},{"$f":"MIN((IFERROR(IF(AND($V40<=AB$1,$W40>=AB$1),INDEX(Reliability!G$23:G$50,MATCH($S40,Reliability!$C$23:$C$50,0)),0),0)*IF($T40=\"n/a\",$D40*$Y40,$G40)+IFERROR(IF(AND($V40<=AB$1,$W40>=AB$1),INDEX(Reliability!G$23:G$50,MATCH($T40,Reliability!$C$23:$C$50,0)),0),0)*$H40*$X40*$Y40),$D40)*$R40","v":0},{"$f":"MIN((IFERROR(IF(AND($V40<=AC$1,$W40>=AC$1),INDEX(Reliability!H$23:H$50,MATCH($S40,Reliability!$C$23:$C$50,0)),0),0)*IF($T40=\"n/a\",$D40*$Y40,$G40)+IFERROR(IF(AND($V40<=AC$1,$W40>=AC$1),INDEX(Reliability!H$23:H$50,MATCH($T40,Reliability!$C$23:$C$50,0)),0),0)*$H40*$X40*$Y40),$D40)*$R40","v":0},{"$f":"MIN((IFERROR(IF(AND($V40<=AD$1,$W40>=AD$1),INDEX(Reliability!I$23:I$50,MATCH($S40,Reliability!$C$23:$C$50,0)),0),0)*IF($T40=\"n/a\",$D40*$Y40,$G40)+IFERROR(IF(AND($V40<=AD$1,$W40>=AD$1),INDEX(Reliability!I$23:I$50,MATCH($T40,Reliability!$C$23:$C$50,0)),0),0)*$H40*$X40*$Y40),$D40)*$R40","v":0},{"$f":"MIN((IFERROR(IF(AND($V40<=AE$1,$W40>=AE$1),INDEX(Reliability!J$23:J$50,MATCH($S40,Reliability!$C$23:$C$50,0)),0),0)*IF($T40=\"n/a\",$D40*$Y40,$G40)+IFERROR(IF(AND($V40<=AE$1,$W40>=AE$1),INDEX(Reliability!J$23:J$50,MATCH($T40,Reliability!$C$23:$C$50,0)),0),0)*$H40*$X40*$Y40),$D40)*$R40","v":0},{"$f":"MIN((IFERROR(IF(AND($V40<=AF$1,$W40>=AF$1),INDEX(Reliability!K$23:K$50,MATCH($S40,Reliability!$C$23:$C$50,0)),0),0)*IF($T40=\"n/a\",$D40*$Y40,$G40)+IFERROR(IF(AND($V40<=AF$1,$W40>=AF$1),INDEX(Reliability!K$23:K$50,MATCH($T40,Reliability!$C$23:$C$50,0)),0),0)*$H40*$X40*$Y40),$D40)*$R40","v":0},{"$f":"MIN((IFERROR(IF(AND($V40<=AG$1,$W40>=AG$1),INDEX(Reliability!L$23:L$50,MATCH($S40,Reliability!$C$23:$C$50,0)),0),0)*IF($T40=\"n/a\",$D40*$Y40,$G40)+IFERROR(IF(AND($V40<=AG$1,$W40>=AG$1),INDEX(Reliability!L$23:L$50,MATCH($T40,Reliability!$C$23:$C$50,0)),0),0)*$H40*$X40*$Y40),$D40)*$R40","v":0},{"$f":"MIN((IFERROR(IF(AND($V40<=AH$1,$W40>=AH$1),INDEX(Reliability!M$23:M$50,MATCH($S40,Reliability!$C$23:$C$50,0)),0),0)*IF($T40=\"n/a\",$D40*$Y40,$G40)+IFERROR(IF(AND($V40<=AH$1,$W40>=AH$1),INDEX(Reliability!M$23:M$50,MATCH($T40,Reliability!$C$23:$C$50,0)),0),0)*$H40*$X40*$Y40),$D40)*$R40","v":0},{"$f":"MIN((IFERROR(IF(AND($V40<=AI$1,$W40>=AI$1),INDEX(Reliability!N$23:N$50,MATCH($S40,Reliability!$C$23:$C$50,0)),0),0)*IF($T40=\"n/a\",$D40*$Y40,$G40)+IFERROR(IF(AND($V40<=AI$1,$W40>=AI$1),INDEX(Reliability!N$23:N$50,MATCH($T40,Reliability!$C$23:$C$50,0)),0),0)*$H40*$X40*$Y40),$D40)*$R40","v":0},{"$f":"MIN((IFERROR(IF(AND($V40<=AJ$1,$W40>=AJ$1),INDEX(Reliability!O$23:O$50,MATCH($S40,Reliability!$C$23:$C$50,0)),0),0)*IF($T40=\"n/a\",$D40*$Y40,$G40)+IFERROR(IF(AND($V40<=AJ$1,$W40>=AJ$1),INDEX(Reliability!O$23:O$50,MATCH($T40,Reliability!$C$23:$C$50,0)),0),0)*$H40*$X40*$Y40),$D40)*$R40","v":0},{"$f":"MIN((IFERROR(IF(AND($V40<=AK$1,$W40>=AK$1),INDEX(Reliability!P$23:P$50,MATCH($S40,Reliability!$C$23:$C$50,0)),0),0)*IF($T40=\"n/a\",$D40*$Y40,$G40)+IFERROR(IF(AND($V40<=AK$1,$W40>=AK$1),INDEX(Reliability!P$23:P$50,MATCH($T40,Reliability!$C$23:$C$50,0)),0),0)*$H40*$X40*$Y40),$D40)*$R40","v":0}]
[null,{"$f":"unique_contracts!B42","v":0},{"$f":"unique_contracts!D42","v":"PlannedExisting"},{"$f":"unique_contracts!J42","v":0},{"$f":"unique_contracts!M42","v":"NotHybrid"},{"$f":"unique_contracts!N42","v":0},{"$f":"unique_contracts!P42","v":0},{"$f":"unique_contracts!R42","v":0},{"$f":"unique_contracts!V42","v":0},{"$f":"unique_contracts!AB42","v":"Buy"},{"$f":"unique_contracts!AM42","v":2024},{"$f":"unique_contracts!AN42","v":1},{"$f":"unique_contracts!AO42","v":1},{"$f":"unique_contracts!AP42","v":2038},{"$f":"unique_contracts!AQ42","v":12},{"$f":"unique_contracts!AR42","v":31},{"$f":"unique_contracts!BP42","v":"EnergyCapacity"},1,{"$f":"IFERROR(IF(AND(I41>0,E41=\"NotHybrid\"),_xlfn.CONCAT(MAX(MIN(ROUNDDOWN(I41/D41,0),8),4),INDEX(resources!$G:$G,MATCH(B41,resources!$A:$A,0))),INDEX(resources!$G:$G,MATCH(B41,resources!$A:$A,0))),\"n/a\")","v":"n/a"},"n/a","n/a",2024,2038,1,1,{"$f":"MIN((IFERROR(IF(AND($V41<=Z$1,$W41>=Z$1),INDEX(Reliability!E$23:E$50,MATCH($S41,Reliability!$C$23:$C$50,0)),0),0)*IF($T41=\"n/a\",$D41*$Y41,$G41)+IFERROR(IF(AND($V41<=Z$1,$W41>=Z$1),INDEX(Reliability!E$23:E$50,MATCH($T41,Reliability!$C$23:$C$50,0)),0),0)*$H41*$X41*$Y41),$D41)*$R41","v":0},{"$f":"MIN((IFERROR(IF(AND($V41<=AA$1,$W41>=AA$1),INDEX(Reliability!F$23:F$50,MATCH($S41,Reliability!$C$23:$C$50,0)),0),0)*IF($T41=\"n/a\",$D41*$Y41,$G41)+IFERROR(IF(AND($V41<=AA$1,$W41>=AA$1),INDEX(Reliability!F$23:F$50,MATCH($T41,Reliability!$C$23:$C$50,0)),0),0)*$H41*$X41*$Y41),$D41)*$R41","v":0},{"$f":"MIN((IFERROR(IF(AND($V41<=AB$1,$W41>=AB$1),INDEX(Reliability!G$23:G$50,MATCH($S41,Reliability!$C$23:$C$50,0)),0),0)*IF($T41=\"n/a\",$D41*$Y41,$G41)+IFERROR(IF(AND($V41<=AB$1,$W41>=AB$1),INDEX(Reliability!G$23:G$50,MATCH($T41,Reliability!$C$23:$C$50,0)),0),0)*$H41*$X41*$Y41),$D41)*$R41","v":0},{"$f":"MIN((IFERROR(IF(AND($V41<=AC$1,$W41>=AC$1),INDEX(Reliability!H$23:H$50,MATCH($S41,Reliability!$C$23:$C$50,0)),0),0)*IF($T41=\"n/a\",$D41*$Y41,$G41)+IFERROR(IF(AND($V41<=AC$1,$W41>=AC$1),INDEX(Reliability!H$23:H$50,MATCH($T41,Reliability!$C$23:$C$50,0)),0),0)*$H41*$X41*$Y41),$D41)*$R41","v":0},{"$f":"MIN((IFERROR(IF(AND($V41<=AD$1,$W41>=AD$1),INDEX(Reliability!I$23:I$50,MATCH($S41,Reliability!$C$23:$C$50,0)),0),0)*IF($T41=\"n/a\",$D41*$Y41,$G41)+IFERROR(IF(AND($V41<=AD$1,$W41>=AD$1),INDEX(Reliability!I$23:I$50,MATCH($T41,Reliability!$C$23:$C$50,0)),0),0)*$H41*$X41*$Y41),$D41)*$R41","v":0},{"$f":"MIN((IFERROR(IF(AND($V41<=AE$1,$W41>=AE$1),INDEX(Reliability!J$23:J$50,MATCH($S41,Reliability!$C$23:$C$50,0)),0),0)*IF($T41=\"n/a\",$D41*$Y41,$G41)+IFERROR(IF(AND($V41<=AE$1,$W41>=AE$1),INDEX(Reliability!J$23:J$50,MATCH($T41,Reliability!$C$23:$C$50,0)),0),0)*$H41*$X41*$Y41),$D41)*$R41","v":0},{"$f":"MIN((IFERROR(IF(AND($V41<=AF$1,$W41>=AF$1),INDEX(Reliability!K$23:K$50,MATCH($S41,Reliability!$C$23:$C$50,0)),0),0)*IF($T41=\"n/a\",$D41*$Y41,$G41)+IFERROR(IF(AND($V41<=AF$1,$W41>=AF$1),INDEX(Reliability!K$23:K$50,MATCH($T41,Reliability!$C$23:$C$50,0)),0),0)*$H41*$X41*$Y41),$D41)*$R41","v":0},{"$f":"MIN((IFERROR(IF(AND($V41<=AG$1,$W41>=AG$1),INDEX(Reliability!L$23:L$50,MATCH($S41,Reliability!$C$23:$C$50,0)),0),0)*IF($T41=\"n/a\",$D41*$Y41,$G41)+IFERROR(IF(AND($V41<=AG$1,$W41>=AG$1),INDEX(Reliability!L$23:L$50,MATCH($T41,Reliability!$C$23:$C$50,0)),0),0)*$H41*$X41*$Y41),$D41)*$R41","v":0},{"$f":"MIN((IFERROR(IF(AND($V41<=AH$1,$W41>=AH$1),INDEX(Reliability!M$23:M$50,MATCH($S41,Reliability!$C$23:$C$50,0)),0),0)*IF($T41=\"n/a\",$D41*$Y41,$G41)+IFERROR(IF(AND($V41<=AH$1,$W41>=AH$1),INDEX(Reliability!M$23:M$50,MATCH($T41,Reliability!$C$23:$C$50,0)),0),0)*$H41*$X41*$Y41),$D41)*$R41","v":0},{"$f":"MIN((IFERROR(IF(AND($V41<=AI$1,$W41>=AI$1),INDEX(Reliability!N$23:N$50,MATCH($S41,Reliability!$C$23:$C$50,0)),0),0)*IF($T41=\"n/a\",$D41*$Y41,$G41)+IFERROR(IF(AND($V41<=AI$1,$W41>=AI$1),INDEX(Reliability!N$23:N$50,MATCH($T41,Reliability!$C$23:$C$50,0)),0),0)*$H41*$X41*$Y41),$D41)*$R41","v":0},{"$f":"MIN((IFERROR(IF(AND($V41<=AJ$1,$W41>=AJ$1),INDEX(Reliability!O$23:O$50,MATCH($S41,Reliability!$C$23:$C$50,0)),0),0)*IF($T41=\"n/a\",$D41*$Y41,$G41)+IFERROR(IF(AND($V41<=AJ$1,$W41>=AJ$1),INDEX(Reliability!O$23:O$50,MATCH($T41,Reliability!$C$23:$C$50,0)),0),0)*$H41*$X41*$Y41),$D41)*$R41","v":0},{"$f":"MIN((IFERROR(IF(AND($V41<=AK$1,$W41>=AK$1),INDEX(Reliability!P$23:P$50,MATCH($S41,Reliability!$C$23:$C$50,0)),0),0)*IF($T41=\"n/a\",$D41*$Y41,$G41)+IFERROR(IF(AND($V41<=AK$1,$W41>=AK$1),INDEX(Reliability!P$23:P$50,MATCH($T41,Reliability!$C$23:$C$50,0)),0),0)*$H41*$X41*$Y41),$D41)*$R41","v":0}]
[null,{"$f":"unique_contracts!B43","v":"_NEW_GENERIC_BATTERY_STORAGE"},{"$f":"unique_contracts!D43","v":"PlannedNew"},{"$f":"unique_contracts!J43","v":0},{"$f":"unique_contracts!M43","v":"NotHybrid"},{"$f":"unique_contracts!N43","v":0},{"$f":"unique_contracts!P43","v":0},{"$f":"unique_contracts!R43","v":0},{"$f":"unique_contracts!V43","v":0},{"$f":"unique_contracts!AB43","v":"Buy"},{"$f":"unique_contracts!AM43","v":2024},{"$f":"unique_contracts!AN43","v":6},{"$f":"unique_contracts!AO43","v":1},{"$f":"unique_contracts!AP43","v":2039},{"$f":"unique_contracts!AQ43","v":5},{"$f":"unique_contracts!AR43","v":31},{"$f":"unique_contracts!BP43","v":"EnergyCapacity"},1,{"$f":"IFERROR(IF(AND(I42>0,E42=\"NotHybrid\"),_xlfn.CONCAT(MAX(MIN(ROUNDDOWN(I42/D42,0),8),4),INDEX(resources!$G:$G,MATCH(B42,resources!$A:$A,0))),INDEX(resources!$G:$G,MATCH(B42,resources!$A:$A,0))),\"n/a\")","v":"hr_batteries"},"n/a","hr_batteries",2024,2038,1,{"$error":"#DIV/0!"},{"$f":"MIN((IFERROR(IF(AND($V42<=Z$1,$W42>=Z$1),INDEX(Reliability!E$23:E$50,MATCH($S42,Reliability!$C$23:$C$50,0)),0),0)*IF($T42=\"n/a\",$D42*$Y42,$G42)+IFERROR(IF(AND($V42<=Z$1,$W42>=Z$1),INDEX(Reliability!E$23:E$50,MATCH($T42,Reliability!$C$23:$C$50,0)),0),0)*$H42*$X42*$Y42),$D42)*$R42","v":{"$error":"#DIV/0!"}},{"$f":"MIN((IFERROR(IF(AND($V42<=AA$1,$W42>=AA$1),INDEX(Reliability!F$23:F$50,MATCH($S42,Reliability!$C$23:$C$50,0)),0),0)*IF($T42=\"n/a\",$D42*$Y42,$G42)+IFERROR(IF(AND($V42<=AA$1,$W42>=AA$1),INDEX(Reliability!F$23:F$50,MATCH($T42,Reliability!$C$23:$C$50,0)),0),0)*$H42*$X42*$Y42),$D42)*$R42","v":{"$error":"#DIV/0!"}},{"$f":"MIN((IFERROR(IF(AND($V42<=AB$1,$W42>=AB$1),INDEX(Reliability!G$23:G$50,MATCH($S42,Reliability!$C$23:$C$50,0)),0),0)*IF($T42=\"n/a\",$D42*$Y42,$G42)+IFERROR(IF(AND($V42<=AB$1,$W42>=AB$1),INDEX(Reliability!G$23:G$50,MATCH($T42,Reliability!$C$23:$C$50,0)),0),0)*$H42*$X42*$Y42),$D42)*$R42","v":{"$error":"#DIV/0!"}},{"$f":"MIN((IFERROR(IF(AND($V42<=AC$1,$W42>=AC$1),INDEX(Reliability!H$23:H$50,MATCH($S42,Reliability!$C$23:$C$50,0)),0),0)*IF($T42=\"n/a\",$D42*$Y42,$G42)+IFERROR(IF(AND($V42<=AC$1,$W42>=AC$1),INDEX(Reliability!H$23:H$50,MATCH($T42,Reliability!$C$23:$C$50,0)),0),0)*$H42*$X42*$Y42),$D42)*$R42","v":{"$error":"#DIV/0!"}},{"$f":"MIN((IFERROR(IF(AND($V42<=AD$1,$W42>=AD$1),INDEX(Reliability!I$23:I$50,MATCH($S42,Reliability!$C$23:$C$50,0)),0),0)*IF($T42=\"n/a\",$D42*$Y42,$G42)+IFERROR(IF(AND($V42<=AD$1,$W42>=AD$1),INDEX(Reliability!I$23:I$50,MATCH($T42,Reliability!$C$23:$C$50,0)),0),0)*$H42*$X42*$Y42),$D42)*$R42","v":{"$error":"#DIV/0!"}},{"$f":"MIN((IFERROR(IF(AND($V42<=AE$1,$W42>=AE$1),INDEX(Reliability!J$23:J$50,MATCH($S42,Reliability!$C$23:$C$50,0)),0),0)*IF($T42=\"n/a\",$D42*$Y42,$G42)+IFERROR(IF(AND($V42<=AE$1,$W42>=AE$1),INDEX(Reliability!J$23:J$50,MATCH($T42,Reliability!$C$23:$C$50,0)),0),0)*$H42*$X42*$Y42),$D42)*$R42","v":{"$error":"#DIV/0!"}},{"$f":"MIN((IFERROR(IF(AND($V42<=AF$1,$W42>=AF$1),INDEX(Reliability!K$23:K$50,MATCH($S42,Reliability!$C$23:$C$50,0)),0),0)*IF($T42=\"n/a\",$D42*$Y42,$G42)+IFERROR(IF(AND($V42<=AF$1,$W42>=AF$1),INDEX(Reliability!K$23:K$50,MATCH($T42,Reliability!$C$23:$C$50,0)),0),0)*$H42*$X42*$Y42),$D42)*$R42","v":{"$error":"#DIV/0!"}},{"$f":"MIN((IFERROR(IF(AND($V42<=AG$1,$W42>=AG$1),INDEX(Reliability!L$23:L$50,MATCH($S42,Reliability!$C$23:$C$50,0)),0),0)*IF($T42=\"n/a\",$D42*$Y42,$G42)+IFERROR(IF(AND($V42<=AG$1,$W42>=AG$1),INDEX(Reliability!L$23:L$50,MATCH($T42,Reliability!$C$23:$C$50,0)),0),0)*$H42*$X42*$Y42),$D42)*$R42","v":{"$error":"#DIV/0!"}},{"$f":"MIN((IFERROR(IF(AND($V42<=AH$1,$W42>=AH$1),INDEX(Reliability!M$23:M$50,MATCH($S42,Reliability!$C$23:$C$50,0)),0),0)*IF($T42=\"n/a\",$D42*$Y42,$G42)+IFERROR(IF(AND($V42<=AH$1,$W42>=AH$1),INDEX(Reliability!M$23:M$50,MATCH($T42,Reliability!$C$23:$C$50,0)),0),0)*$H42*$X42*$Y42),$D42)*$R42","v":{"$error":"#DIV/0!"}},{"$f":"MIN((IFERROR(IF(AND($V42<=AI$1,$W42>=AI$1),INDEX(Reliability!N$23:N$50,MATCH($S42,Reliability!$C$23:$C$50,0)),0),0)*IF($T42=\"n/a\",$D42*$Y42,$G42)+IFERROR(IF(AND($V42<=AI$1,$W42>=AI$1),INDEX(Reliability!N$23:N$50,MATCH($T42,Reliability!$C$23:$C$50,0)),0),0)*$H42*$X42*$Y42),$D42)*$R42","v":{"$error":"#DIV/0!"}},{"$f":"MIN((IFERROR(IF(AND($V42<=AJ$1,$W42>=AJ$1),INDEX(Reliability!O$23:O$50,MATCH($S42,Reliability!$C$23:$C$50,0)),0),0)*IF($T42=\"n/a\",$D42*$Y42,$G42)+IFERROR(IF(AND($V42<=AJ$1,$W42>=AJ$1),INDEX(Reliability!O$23:O$50,MATCH($T42,Reliability!$C$23:$C$50,0)),0),0)*$H42*$X42*$Y42),$D42)*$R42","v":{"$error":"#DIV/0!"}},{"$f":"MIN((IFERROR(IF(AND($V42<=AK$1,$W42>=AK$1),INDEX(Reliability!P$23:P$50,MATCH($S42,Reliability!$C$23:$C$50,0)),0),0)*IF($T42=\"n/a\",$D42*$Y42,$G42)+IFERROR(IF(AND($V42<=AK$1,$W42>=AK$1),INDEX(Reliability!P$23:P$50,MATCH($T42,Reliability!$C$23:$C$50,0)),0),0)*$H42*$X42*$Y42),$D42)*$R42","v":{"$error":"#DIV/0!"}}]
[null,{"$f":"unique_contracts!B44","v":"_CREZ_GENERIC_NEW_MEXICO_WIND"},{"$f":"unique_contracts!D44","v":"PlannedNew"},{"$f":"unique_contracts!J44","v":0},{"$f":"unique_contracts!M44","v":"NotHybrid"},{"$f":"unique_contracts!N44","v":0},{"$f":"unique_contracts!P44","v":0},{"$f":"unique_contracts!R44","v":0},{"$f":"unique_contracts!V44","v":0},{"$f":"unique_contracts!AB44","v":"Buy"},{"$f":"unique_contracts!AM44","v":2025},{"$f":"unique_contracts!AN44","v":12},{"$f":"unique_contracts!AO44","v":31},{"$f":"unique_contracts!AP44","v":2040},{"$f":"unique_contracts!AQ44","v":12},{"$f":"unique_contracts!AR44","v":30},{"$f":"unique_contracts!BP44","v":"EnergyCapacity"},1,{"$f":"IFERROR(IF(AND(I43>0,E43=\"NotHybrid\"),_xlfn.CONCAT(MAX(MIN(ROUNDDOWN(I43/D43,0),8),4),INDEX(resources!$G:$G,MATCH(B43,resources!$A:$A,0))),INDEX(resources!$G:$G,MATCH(B43,resources!$A:$A,0))),\"n/a\")","v":"out_of_state_wind_AZNM"},"n/a","out_of_state_wind_AZNM",2026,2040,1,1,{"$f":"MIN((IFERROR(IF(AND($V43<=Z$1,$W43>=Z$1),INDEX(Reliability!E$23:E$50,MATCH($S43,Reliability!$C$23:$C$50,0)),0),0)*IF($T43=\"n/a\",$D43*$Y43,$G43)+IFERROR(IF(AND($V43<=Z$1,$W43>=Z$1),INDEX(Reliability!E$23:E$50,MATCH($T43,Reliability!$C$23:$C$50,0)),0),0)*$H43*$X43*$Y43),$D43)*$R43","v":0},{"$f":"MIN((IFERROR(IF(AND($V43<=AA$1,$W43>=AA$1),INDEX(Reliability!F$23:F$50,MATCH($S43,Reliability!$C$23:$C$50,0)),0),0)*IF($T43=\"n/a\",$D43*$Y43,$G43)+IFERROR(IF(AND($V43<=AA$1,$W43>=AA$1),INDEX(Reliability!F$23:F$50,MATCH($T43,Reliability!$C$23:$C$50,0)),0),0)*$H43*$X43*$Y43),$D43)*$R43","v":0},{"$f":"MIN((IFERROR(IF(AND($V43<=AB$1,$W43>=AB$1),INDEX(Reliability!G$23:G$50,MATCH($S43,Reliability!$C$23:$C$50,0)),0),0)*IF($T43=\"n/a\",$D43*$Y43,$G43)+IFERROR(IF(AND($V43<=AB$1,$W43>=AB$1),INDEX(Reliability!G$23:G$50,MATCH($T43,Reliability!$C$23:$C$50,0)),0),0)*$H43*$X43*$Y43),$D43)*$R43","v":0},{"$f":"MIN((IFERROR(IF(AND($V43<=AC$1,$W43>=AC$1),INDEX(Reliability!H$23:H$50,MATCH($S43,Reliability!$C$23:$C$50,0)),0),0)*IF($T43=\"n/a\",$D43*$Y43,$G43)+IFERROR(IF(AND($V43<=AC$1,$W43>=AC$1),INDEX(Reliability!H$23:H$50,MATCH($T43,Reliability!$C$23:$C$50,0)),0),0)*$H43*$X43*$Y43),$D43)*$R43","v":0},{"$f":"MIN((IFERROR(IF(AND($V43<=AD$1,$W43>=AD$1),INDEX(Reliability!I$23:I$50,MATCH($S43,Reliability!$C$23:$C$50,0)),0),0)*IF($T43=\"n/a\",$D43*$Y43,$G43)+IFERROR(IF(AND($V43<=AD$1,$W43>=AD$1),INDEX(Reliability!I$23:I$50,MATCH($T43,Reliability!$C$23:$C$50,0)),0),0)*$H43*$X43*$Y43),$D43)*$R43","v":0},{"$f":"MIN((IFERROR(IF(AND($V43<=AE$1,$W43>=AE$1),INDEX(Reliability!J$23:J$50,MATCH($S43,Reliability!$C$23:$C$50,0)),0),0)*IF($T43=\"n/a\",$D43*$Y43,$G43)+IFERROR(IF(AND($V43<=AE$1,$W43>=AE$1),INDEX(Reliability!J$23:J$50,MATCH($T43,Reliability!$C$23:$C$50,0)),0),0)*$H43*$X43*$Y43),$D43)*$R43","v":0},{"$f":"MIN((IFERROR(IF(AND($V43<=AF$1,$W43>=AF$1),INDEX(Reliability!K$23:K$50,MATCH($S43,Reliability!$C$23:$C$50,0)),0),0)*IF($T43=\"n/a\",$D43*$Y43,$G43)+IFERROR(IF(AND($V43<=AF$1,$W43>=AF$1),INDEX(Reliability!K$23:K$50,MATCH($T43,Reliability!$C$23:$C$50,0)),0),0)*$H43*$X43*$Y43),$D43)*$R43","v":0},{"$f":"MIN((IFERROR(IF(AND($V43<=AG$1,$W43>=AG$1),INDEX(Reliability!L$23:L$50,MATCH($S43,Reliability!$C$23:$C$50,0)),0),0)*IF($T43=\"n/a\",$D43*$Y43,$G43)+IFERROR(IF(AND($V43<=AG$1,$W43>=AG$1),INDEX(Reliability!L$23:L$50,MATCH($T43,Reliability!$C$23:$C$50,0)),0),0)*$H43*$X43*$Y43),$D43)*$R43","v":0},{"$f":"MIN((IFERROR(IF(AND($V43<=AH$1,$W43>=AH$1),INDEX(Reliability!M$23:M$50,MATCH($S43,Reliability!$C$23:$C$50,0)),0),0)*IF($T43=\"n/a\",$D43*$Y43,$G43)+IFERROR(IF(AND($V43<=AH$1,$W43>=AH$1),INDEX(Reliability!M$23:M$50,MATCH($T43,Reliability!$C$23:$C$50,0)),0),0)*$H43*$X43*$Y43),$D43)*$R43","v":0},{"$f":"MIN((IFERROR(IF(AND($V43<=AI$1,$W43>=AI$1),INDEX(Reliability!N$23:N$50,MATCH($S43,Reliability!$C$23:$C$50,0)),0),0)*IF($T43=\"n/a\",$D43*$Y43,$G43)+IFERROR(IF(AND($V43<=AI$1,$W43>=AI$1),INDEX(Reliability!N$23:N$50,MATCH($T43,Reliability!$C$23:$C$50,0)),0),0)*$H43*$X43*$Y43),$D43)*$R43","v":0},{"$f":"MIN((IFERROR(IF(AND($V43<=AJ$1,$W43>=AJ$1),INDEX(Reliability!O$23:O$50,MATCH($S43,Reliability!$C$23:$C$50,0)),0),0)*IF($T43=\"n/a\",$D43*$Y43,$G43)+IFERROR(IF(AND($V43<=AJ$1,$W43>=AJ$1),INDEX(Reliability!O$23:O$50,MATCH($T43,Reliability!$C$23:$C$50,0)),0),0)*$H43*$X43*$Y43),$D43)*$R43","v":0},{"$f":"MIN((IFERROR(IF(AND($V43<=AK$1,$W43>=AK$1),INDEX(Reliability!P$23:P$50,MATCH($S43,Reliability!$C$23:$C$50,0)),0),0)*IF($T43=\"n/a\",$D43*$Y43,$G43)+IFERROR(IF(AND($V43<=AK$1,$W43>=AK$1),INDEX(Reliability!P$23:P$50,MATCH($T43,Reliability!$C$23:$C$50,0)),0),0)*$H43*$X43*$Y43),$D43)*$R43","v":0}]
[null,{"$f":"unique_contracts!B45","v":"_CREZ_GENERIC_NEW_MEXICO_WIND"},{"$f":"unique_contracts!D45","v":"PlannedNew"},{"$f":"unique_contracts!J45","v":0},{"$f":"unique_contracts!M45","v":"NotHybrid"},{"$f":"unique_contracts!N45","v":0},{"$f":"unique_contracts!P45","v":0},{"$f":"unique_contracts!R45","v":0},{"$f":"unique_contracts!V45","v":0},{"$f":"unique_contracts!AB45","v":"Buy"},{"$f":"unique_contracts!AM45","v":2025},{"$f":"unique_contracts!AN45","v":12},{"$f":"unique_contracts!AO45","v":31},{"$f":"unique_contracts!AP45","v":2040},{"$f":"unique_contracts!AQ45","v":12},{"$f":"unique_contracts!AR45","v":30},{"$f":"unique_contracts!BP45","v":"EnergyOnly"},0,{"$f":"IFERROR(IF(AND(I44>0,E44=\"NotHybrid\"),_xlfn.CONCAT(MAX(MIN(ROUNDDOWN(I44/D44,0),8),4),INDEX(resources!$G:$G,MATCH(B44,resources!$A:$A,0))),INDEX(resources!$G:$G,MATCH(B44,resources!$A:$A,0))),\"n/a\")","v":"out_of_state_wind_AZNM"},"n/a","out_of_state_wind_AZNM",2026,2040,1,1,{"$f":"MIN((IFERROR(IF(AND($V44<=Z$1,$W44>=Z$1),INDEX(Reliability!E$23:E$50,MATCH($S44,Reliability!$C$23:$C$50,0)),0),0)*IF($T44=\"n/a\",$D44*$Y44,$G44)+IFERROR(IF(AND($V44<=Z$1,$W44>=Z$1),INDEX(Reliability!E$23:E$50,MATCH($T44,Reliability!$C$23:$C$50,0)),0),0)*$H44*$X44*$Y44),$D44)*$R44","v":0},{"$f":"MIN((IFERROR(IF(AND($V44<=AA$1,$W44>=AA$1),INDEX(Reliability!F$23:F$50,MATCH($S44,Reliability!$C$23:$C$50,0)),0),0)*IF($T44=\"n/a\",$D44*$Y44,$G44)+IFERROR(IF(AND($V44<=AA$1,$W44>=AA$1),INDEX(Reliability!F$23:F$50,MATCH($T44,Reliability!$C$23:$C$50,0)),0),0)*$H44*$X44*$Y44),$D44)*$R44","v":0},{"$f":"MIN((IFERROR(IF(AND($V44<=AB$1,$W44>=AB$1),INDEX(Reliability!G$23:G$50,MATCH($S44,Reliability!$C$23:$C$50,0)),0),0)*IF($T44=\"n/a\",$D44*$Y44,$G44)+IFERROR(IF(AND($V44<=AB$1,$W44>=AB$1),INDEX(Reliability!G$23:G$50,MATCH($T44,Reliability!$C$23:$C$50,0)),0),0)*$H44*$X44*$Y44),$D44)*$R44","v":0},{"$f":"MIN((IFERROR(IF(AND($V44<=AC$1,$W44>=AC$1),INDEX(Reliability!H$23:H$50,MATCH($S44,Reliability!$C$23:$C$50,0)),0),0)*IF($T44=\"n/a\",$D44*$Y44,$G44)+IFERROR(IF(AND($V44<=AC$1,$W44>=AC$1),INDEX(Reliability!H$23:H$50,MATCH($T44,Reliability!$C$23:$C$50,0)),0),0)*$H44*$X44*$Y44),$D44)*$R44","v":0},{"$f":"MIN((IFERROR(IF(AND($V44<=AD$1,$W44>=AD$1),INDEX(Reliability!I$23:I$50,MATCH($S44,Reliability!$C$23:$C$50,0)),0),0)*IF($T44=\"n/a\",$D44*$Y44,$G44)+IFERROR(IF(AND($V44<=AD$1,$W44>=AD$1),INDEX(Reliability!I$23:I$50,MATCH($T44,Reliability!$C$23:$C$50,0)),0),0)*$H44*$X44*$Y44),$D44)*$R44","v":0},{"$f":"MIN((IFERROR(IF(AND($V44<=AE$1,$W44>=AE$1),INDEX(Reliability!J$23:J$50,MATCH($S44,Reliability!$C$23:$C$50,0)),0),0)*IF($T44=\"n/a\",$D44*$Y44,$G44)+IFERROR(IF(AND($V44<=AE$1,$W44>=AE$1),INDEX(Reliability!J$23:J$50,MATCH($T44,Reliability!$C$23:$C$50,0)),0),0)*$H44*$X44*$Y44),$D44)*$R44","v":0},{"$f":"MIN((IFERROR(IF(AND($V44<=AF$1,$W44>=AF$1),INDEX(Reliability!K$23:K$50,MATCH($S44,Reliability!$C$23:$C$50,0)),0),0)*IF($T44=\"n/a\",$D44*$Y44,$G44)+IFERROR(IF(AND($V44<=AF$1,$W44>=AF$1),INDEX(Reliability!K$23:K$50,MATCH($T44,Reliability!$C$23:$C$50,0)),0),0)*$H44*$X44*$Y44),$D44)*$R44","v":0},{"$f":"MIN((IFERROR(IF(AND($V44<=AG$1,$W44>=AG$1),INDEX(Reliability!L$23:L$50,MATCH($S44,Reliability!$C$23:$C$50,0)),0),0)*IF($T44=\"n/a\",$D44*$Y44,$G44)+IFERROR(IF(AND($V44<=AG$1,$W44>=AG$1),INDEX(Reliability!L$23:L$50,MATCH($T44,Reliability!$C$23:$C$50,0)),0),0)*$H44*$X44*$Y44),$D44)*$R44","v":0},{"$f":"MIN((IFERROR(IF(AND($V44<=AH$1,$W44>=AH$1),INDEX(Reliability!M$23:M$50,MATCH($S44,Reliability!$C$23:$C$50,0)),0),0)*IF($T44=\"n/a\",$D44*$Y44,$G44)+IFERROR(IF(AND($V44<=AH$1,$W44>=AH$1),INDEX(Reliability!M$23:M$50,MATCH($T44,Reliability!$C$23:$C$50,0)),0),0)*$H44*$X44*$Y44),$D44)*$R44","v":0},{"$f":"MIN((IFERROR(IF(AND($V44<=AI$1,$W44>=AI$1),INDEX(Reliability!N$23:N$50,MATCH($S44,Reliability!$C$23:$C$50,0)),0),0)*IF($T44=\"n/a\",$D44*$Y44,$G44)+IFERROR(IF(AND($V44<=AI$1,$W44>=AI$1),INDEX(Reliability!N$23:N$50,MATCH($T44,Reliability!$C$23:$C$50,0)),0),0)*$H44*$X44*$Y44),$D44)*$R44","v":0},{"$f":"MIN((IFERROR(IF(AND($V44<=AJ$1,$W44>=AJ$1),INDEX(Reliability!O$23:O$50,MATCH($S44,Reliability!$C$23:$C$50,0)),0),0)*IF($T44=\"n/a\",$D44*$Y44,$G44)+IFERROR(IF(AND($V44<=AJ$1,$W44>=AJ$1),INDEX(Reliability!O$23:O$50,MATCH($T44,Reliability!$C$23:$C$50,0)),0),0)*$H44*$X44*$Y44),$D44)*$R44","v":0},{"$f":"MIN((IFERROR(IF(AND($V44<=AK$1,$W44>=AK$1),INDEX(Reliability!P$23:P$50,MATCH($S44,Reliability!$C$23:$C$50,0)),0),0)*IF($T44=\"n/a\",$D44*$Y44,$G44)+IFERROR(IF(AND($V44<=AK$1,$W44>=AK$1),INDEX(Reliability!P$23:P$50,MATCH($T44,Reliability!$C$23:$C$50,0)),0),0)*$H44*$X44*$Y44),$D44)*$R44","v":0}]
[null,{"$f":"unique_contracts!B46","v":"_NEW_GENERIC_BATTERY_STORAGE"},{"$f":"unique_contracts!D46","v":"PlannedNew"},{"$f":"unique_contracts!J46","v":0},{"$f":"unique_contracts!M46","v":"NotHybrid"},{"$f":"unique_contracts!N46","v":0},{"$f":"unique_contracts!P46","v":0},{"$f":"unique_contracts!R46","v":0},{"$f":"unique_contracts!V46","v":0},{"$f":"unique_contracts!AB46","v":"Buy"},{"$f":"unique_contracts!AM46","v":2026},{"$f":"unique_contracts!AN46","v":1},{"$f":"unique_contracts!AO46","v":1},{"$f":"unique_contracts!AP46","v":2045},{"$f":"unique_contracts!AQ46","v":12},{"$f":"unique_contracts!AR46","v":31},{"$f":"unique_contracts!BP46","v":"EnergyCapacity"},1,{"$f":"IFERROR(IF(AND(I45>0,E45=\"NotHybrid\"),_xlfn.CONCAT(MAX(MIN(ROUNDDOWN(I45/D45,0),8),4),INDEX(resources!$G:$G,MATCH(B45,resources!$A:$A,0))),INDEX(resources!$G:$G,MATCH(B45,resources!$A:$A,0))),\"n/a\")","v":"hr_batteries"},"n/a","hr_batteries",2026,2045,1,{"$error":"#DIV/0!"},{"$f":"MIN((IFERROR(IF(AND($V45<=Z$1,$W45>=Z$1),INDEX(Reliability!E$23:E$50,MATCH($S45,Reliability!$C$23:$C$50,0)),0),0)*IF($T45=\"n/a\",$D45*$Y45,$G45)+IFERROR(IF(AND($V45<=Z$1,$W45>=Z$1),INDEX(Reliability!E$23:E$50,MATCH($T45,Reliability!$C$23:$C$50,0)),0),0)*$H45*$X45*$Y45),$D45)*$R45","v":{"$error":"#DIV/0!"}},{"$f":"MIN((IFERROR(IF(AND($V45<=AA$1,$W45>=AA$1),INDEX(Reliability!F$23:F$50,MATCH($S45,Reliability!$C$23:$C$50,0)),0),0)*IF($T45=\"n/a\",$D45*$Y45,$G45)+IFERROR(IF(AND($V45<=AA$1,$W45>=AA$1),INDEX(Reliability!F$23:F$50,MATCH($T45,Reliability!$C$23:$C$50,0)),0),0)*$H45*$X45*$Y45),$D45)*$R45","v":{"$error":"#DIV/0!"}},{"$f":"MIN((IFERROR(IF(AND($V45<=AB$1,$W45>=AB$1),INDEX(Reliability!G$23:G$50,MATCH($S45,Reliability!$C$23:$C$50,0)),0),0)*IF($T45=\"n/a\",$D45*$Y45,$G45)+IFERROR(IF(AND($V45<=AB$1,$W45>=AB$1),INDEX(Reliability!G$23:G$50,MATCH($T45,Reliability!$C$23:$C$50,0)),0),0)*$H45*$X45*$Y45),$D45)*$R45","v":{"$error":"#DIV/0!"}},{"$f":"MIN((IFERROR(IF(AND($V45<=AC$1,$W45>=AC$1),INDEX(Reliability!H$23:H$50,MATCH($S45,Reliability!$C$23:$C$50,0)),0),0)*IF($T45=\"n/a\",$D45*$Y45,$G45)+IFERROR(IF(AND($V45<=AC$1,$W45>=AC$1),INDEX(Reliability!H$23:H$50,MATCH($T45,Reliability!$C$23:$C$50,0)),0),0)*$H45*$X45*$Y45),$D45)*$R45","v":{"$error":"#DIV/0!"}},{"$f":"MIN((IFERROR(IF(AND($V45<=AD$1,$W45>=AD$1),INDEX(Reliability!I$23:I$50,MATCH($S45,Reliability!$C$23:$C$50,0)),0),0)*IF($T45=\"n/a\",$D45*$Y45,$G45)+IFERROR(IF(AND($V45<=AD$1,$W45>=AD$1),INDEX(Reliability!I$23:I$50,MATCH($T45,Reliability!$C$23:$C$50,0)),0),0)*$H45*$X45*$Y45),$D45)*$R45","v":{"$error":"#DIV/0!"}},{"$f":"MIN((IFERROR(IF(AND($V45<=AE$1,$W45>=AE$1),INDEX(Reliability!J$23:J$50,MATCH($S45,Reliability!$C$23:$C$50,0)),0),0)*IF($T45=\"n/a\",$D45*$Y45,$G45)+IFERROR(IF(AND($V45<=AE$1,$W45>=AE$1),INDEX(Reliability!J$23:J$50,MATCH($T45,Reliability!$C$23:$C$50,0)),0),0)*$H45*$X45*$Y45),$D45)*$R45","v":{"$error":"#DIV/0!"}},{"$f":"MIN((IFERROR(IF(AND($V45<=AF$1,$W45>=AF$1),INDEX(Reliability!K$23:K$50,MATCH($S45,Reliability!$C$23:$C$50,0)),0),0)*IF($T45=\"n/a\",$D45*$Y45,$G45)+IFERROR(IF(AND($V45<=AF$1,$W45>=AF$1),INDEX(Reliability!K$23:K$50,MATCH($T45,Reliability!$C$23:$C$50,0)),0),0)*$H45*$X45*$Y45),$D45)*$R45","v":{"$error":"#DIV/0!"}},{"$f":"MIN((IFERROR(IF(AND($V45<=AG$1,$W45>=AG$1),INDEX(Reliability!L$23:L$50,MATCH($S45,Reliability!$C$23:$C$50,0)),0),0)*IF($T45=\"n/a\",$D45*$Y45,$G45)+IFERROR(IF(AND($V45<=AG$1,$W45>=AG$1),INDEX(Reliability!L$23:L$50,MATCH($T45,Reliability!$C$23:$C$50,0)),0),0)*$H45*$X45*$Y45),$D45)*$R45","v":{"$error":"#DIV/0!"}},{"$f":"MIN((IFERROR(IF(AND($V45<=AH$1,$W45>=AH$1),INDEX(Reliability!M$23:M$50,MATCH($S45,Reliability!$C$23:$C$50,0)),0),0)*IF($T45=\"n/a\",$D45*$Y45,$G45)+IFERROR(IF(AND($V45<=AH$1,$W45>=AH$1),INDEX(Reliability!M$23:M$50,MATCH($T45,Reliability!$C$23:$C$50,0)),0),0)*$H45*$X45*$Y45),$D45)*$R45","v":{"$error":"#DIV/0!"}},{"$f":"MIN((IFERROR(IF(AND($V45<=AI$1,$W45>=AI$1),INDEX(Reliability!N$23:N$50,MATCH($S45,Reliability!$C$23:$C$50,0)),0),0)*IF($T45=\"n/a\",$D45*$Y45,$G45)+IFERROR(IF(AND($V45<=AI$1,$W45>=AI$1),INDEX(Reliability!N$23:N$50,MATCH($T45,Reliability!$C$23:$C$50,0)),0),0)*$H45*$X45*$Y45),$D45)*$R45","v":{"$error":"#DIV/0!"}},{"$f":"MIN((IFERROR(IF(AND($V45<=AJ$1,$W45>=AJ$1),INDEX(Reliability!O$23:O$50,MATCH($S45,Reliability!$C$23:$C$50,0)),0),0)*IF($T45=\"n/a\",$D45*$Y45,$G45)+IFERROR(IF(AND($V45<=AJ$1,$W45>=AJ$1),INDEX(Reliability!O$23:O$50,MATCH($T45,Reliability!$C$23:$C$50,0)),0),0)*$H45*$X45*$Y45),$D45)*$R45","v":{"$error":"#DIV/0!"}},{"$f":"MIN((IFERROR(IF(AND($V45<=AK$1,$W45>=AK$1),INDEX(Reliability!P$23:P$50,MATCH($S45,Reliability!$C$23:$C$50,0)),0),0)*IF($T45=\"n/a\",$D45*$Y45,$G45)+IFERROR(IF(AND($V45<=AK$1,$W45>=AK$1),INDEX(Reliability!P$23:P$50,MATCH($T45,Reliability!$C$23:$C$50,0)),0),0)*$H45*$X45*$Y45),$D45)*$R45","v":{"$error":"#DIV/0!"}}]
[null,{"$f":"unique_contracts!B47","v":"_CREZ_GENERIC_SOUTHERN_CALIFORNIA_DESERT_EX_SOLAR"},{"$f":"unique_contracts!D47","v":"PlannedNew"},{"$f":"unique_contracts!J47","v":0},{"$f":"unique_contracts!M47","v":"NewSolarNewStorage"},{"$f":"unique_contracts!N47","v":"Yes"},{"$f":"unique_contracts!P47","v":0},{"$f":"unique_contracts!R47","v":0},{"$f":"unique_contracts!V47","v":0},{"$f":"unique_contracts!AB47","v":"Buy"},{"$f":"unique_contracts!AM47","v":2026},{"$f":"unique_contracts!AN47","v":1},{"$f":"unique_contracts!AO47","v":1},{"$f":"unique_contracts!AP47","v":2041},{"$f":"unique_contracts!AQ47","v":1},{"$f":"unique_contracts!AR47","v":1},{"$f":"unique_contracts!BP47","v":"EnergyCapacity"},1,{"$f":"IFERROR(IF(AND(I46>0,E46=\"NotHybrid\"),_xlfn.CONCAT(MAX(MIN(ROUNDDOWN(I46/D46,0),8),4),INDEX(resources!$G:$G,MATCH(B46,resources!$A:$A,0))),INDEX(resources!$G:$G,MATCH(B46,resources!$A:$A,0))),\"n/a\")","v":"utility_pv"},"n/a","utility_pv",2026,2040,1,1,{"$f":"MIN((IFERROR(IF(AND($V46<=Z$1,$W46>=Z$1),INDEX(Reliability!E$23:E$50,MATCH($S46,Reliability!$C$23:$C$50,0)),0),0)*IF($T46=\"n/a\",$D46*$Y46,$G46)+IFERROR(IF(AND($V46<=Z$1,$W46>=Z$1),INDEX(Reliability!E$23:E$50,MATCH($T46,Reliability!$C$23:$C$50,0)),0),0)*$H46*$X46*$Y46),$D46)*$R46","v":0},{"$f":"MIN((IFERROR(IF(AND($V46<=AA$1,$W46>=AA$1),INDEX(Reliability!F$23:F$50,MATCH($S46,Reliability!$C$23:$C$50,0)),0),0)*IF($T46=\"n/a\",$D46*$Y46,$G46)+IFERROR(IF(AND($V46<=AA$1,$W46>=AA$1),INDEX(Reliability!F$23:F$50,MATCH($T46,Reliability!$C$23:$C$50,0)),0),0)*$H46*$X46*$Y46),$D46)*$R46","v":0},{"$f":"MIN((IFERROR(IF(AND($V46<=AB$1,$W46>=AB$1),INDEX(Reliability!G$23:G$50,MATCH($S46,Reliability!$C$23:$C$50,0)),0),0)*IF($T46=\"n/a\",$D46*$Y46,$G46)+IFERROR(IF(AND($V46<=AB$1,$W46>=AB$1),INDEX(Reliability!G$23:G$50,MATCH($T46,Reliability!$C$23:$C$50,0)),0),0)*$H46*$X46*$Y46),$D46)*$R46","v":0},{"$f":"MIN((IFERROR(IF(AND($V46<=AC$1,$W46>=AC$1),INDEX(Reliability!H$23:H$50,MATCH($S46,Reliability!$C$23:$C$50,0)),0),0)*IF($T46=\"n/a\",$D46*$Y46,$G46)+IFERROR(IF(AND($V46<=AC$1,$W46>=AC$1),INDEX(Reliability!H$23:H$50,MATCH($T46,Reliability!$C$23:$C$50,0)),0),0)*$H46*$X46*$Y46),$D46)*$R46","v":0},{"$f":"MIN((IFERROR(IF(AND($V46<=AD$1,$W46>=AD$1),INDEX(Reliability!I$23:I$50,MATCH($S46,Reliability!$C$23:$C$50,0)),0),0)*IF($T46=\"n/a\",$D46*$Y46,$G46)+IFERROR(IF(AND($V46<=AD$1,$W46>=AD$1),INDEX(Reliability!I$23:I$50,MATCH($T46,Reliability!$C$23:$C$50,0)),0),0)*$H46*$X46*$Y46),$D46)*$R46","v":0},{"$f":"MIN((IFERROR(IF(AND($V46<=AE$1,$W46>=AE$1),INDEX(Reliability!J$23:J$50,MATCH($S46,Reliability!$C$23:$C$50,0)),0),0)*IF($T46=\"n/a\",$D46*$Y46,$G46)+IFERROR(IF(AND($V46<=AE$1,$W46>=AE$1),INDEX(Reliability!J$23:J$50,MATCH($T46,Reliability!$C$23:$C$50,0)),0),0)*$H46*$X46*$Y46),$D46)*$R46","v":0},{"$f":"MIN((IFERROR(IF(AND($V46<=AF$1,$W46>=AF$1),INDEX(Reliability!K$23:K$50,MATCH($S46,Reliability!$C$23:$C$50,0)),0),0)*IF($T46=\"n/a\",$D46*$Y46,$G46)+IFERROR(IF(AND($V46<=AF$1,$W46>=AF$1),INDEX(Reliability!K$23:K$50,MATCH($T46,Reliability!$C$23:$C$50,0)),0),0)*$H46*$X46*$Y46),$D46)*$R46","v":0},{"$f":"MIN((IFERROR(IF(AND($V46<=AG$1,$W46>=AG$1),INDEX(Reliability!L$23:L$50,MATCH($S46,Reliability!$C$23:$C$50,0)),0),0)*IF($T46=\"n/a\",$D46*$Y46,$G46)+IFERROR(IF(AND($V46<=AG$1,$W46>=AG$1),INDEX(Reliability!L$23:L$50,MATCH($T46,Reliability!$C$23:$C$50,0)),0),0)*$H46*$X46*$Y46),$D46)*$R46","v":0},{"$f":"MIN((IFERROR(IF(AND($V46<=AH$1,$W46>=AH$1),INDEX(Reliability!M$23:M$50,MATCH($S46,Reliability!$C$23:$C$50,0)),0),0)*IF($T46=\"n/a\",$D46*$Y46,$G46)+IFERROR(IF(AND($V46<=AH$1,$W46>=AH$1),INDEX(Reliability!M$23:M$50,MATCH($T46,Reliability!$C$23:$C$50,0)),0),0)*$H46*$X46*$Y46),$D46)*$R46","v":0},{"$f":"MIN((IFERROR(IF(AND($V46<=AI$1,$W46>=AI$1),INDEX(Reliability!N$23:N$50,MATCH($S46,Reliability!$C$23:$C$50,0)),0),0)*IF($T46=\"n/a\",$D46*$Y46,$G46)+IFERROR(IF(AND($V46<=AI$1,$W46>=AI$1),INDEX(Reliability!N$23:N$50,MATCH($T46,Reliability!$C$23:$C$50,0)),0),0)*$H46*$X46*$Y46),$D46)*$R46","v":0},{"$f":"MIN((IFERROR(IF(AND($V46<=AJ$1,$W46>=AJ$1),INDEX(Reliability!O$23:O$50,MATCH($S46,Reliability!$C$23:$C$50,0)),0),0)*IF($T46=\"n/a\",$D46*$Y46,$G46)+IFERROR(IF(AND($V46<=AJ$1,$W46>=AJ$1),INDEX(Reliability!O$23:O$50,MATCH($T46,Reliability!$C$23:$C$50,0)),0),0)*$H46*$X46*$Y46),$D46)*$R46","v":0},{"$f":"MIN((IFERROR(IF(AND($V46<=AK$1,$W46>=AK$1),INDEX(Reliability!P$23:P$50,MATCH($S46,Reliability!$C$23:$C$50,0)),0),0)*IF($T46=\"n/a\",$D46*$Y46,$G46)+IFERROR(IF(AND($V46<=AK$1,$W46>=AK$1),INDEX(Reliability!P$23:P$50,MATCH($T46,Reliability!$C$23:$C$50,0)),0),0)*$H46*$X46*$Y46),$D46)*$R46","v":0}]
[null,{"$f":"unique_contracts!B48","v":"_CREZ_GENERIC_WESTLANDS_SOLAR"},{"$f":"unique_contracts!D48","v":"PlannedNew"},{"$f":"unique_contracts!J48","v":0},{"$f":"unique_contracts!M48","v":"NewSolarNewStorage"},{"$f":"unique_contracts!N48","v":"YES"},{"$f":"unique_contracts!P48","v":0},{"$f":"unique_contracts!R48","v":0},{"$f":"unique_contracts!V48","v":0},{"$f":"unique_contracts!AB48","v":"Buy"},{"$f":"unique_contracts!AM48","v":2026},{"$f":"unique_contracts!AN48","v":11},{"$f":"unique_contracts!AO48","v":1},{"$f":"unique_contracts!AP48","v":2041},{"$f":"unique_contracts!AQ48","v":10},{"$f":"unique_contracts!AR48","v":31},{"$f":"unique_contracts!BP48","v":"EnergyCapacity"},1,{"$f":"IFERROR(IF(AND(I47>0,E47=\"NotHybrid\"),_xlfn.CONCAT(MAX(MIN(ROUNDDOWN(I47/D47,0),8),4),INDEX(resources!$G:$G,MATCH(B47,resources!$A:$A,0))),INDEX(resources!$G:$G,MATCH(B47,resources!$A:$A,0))),\"n/a\")","v":"utility_pv"},"n/a","utility_pv",2027,2041,1,1,{"$f":"MIN((IFERROR(IF(AND($V47<=Z$1,$W47>=Z$1),INDEX(Reliability!E$23:E$50,MATCH($S47,Reliability!$C$23:$C$50,0)),0),0)*IF($T47=\"n/a\",$D47*$Y47,$G47)+IFERROR(IF(AND($V47<=Z$1,$W47>=Z$1),INDEX(Reliability!E$23:E$50,MATCH($T47,Reliability!$C$23:$C$50,0)),0),0)*$H47*$X47*$Y47),$D47)*$R47","v":0},{"$f":"MIN((IFERROR(IF(AND($V47<=AA$1,$W47>=AA$1),INDEX(Reliability!F$23:F$50,MATCH($S47,Reliability!$C$23:$C$50,0)),0),0)*IF($T47=\"n/a\",$D47*$Y47,$G47)+IFERROR(IF(AND($V47<=AA$1,$W47>=AA$1),INDEX(Reliability!F$23:F$50,MATCH($T47,Reliability!$C$23:$C$50,0)),0),0)*$H47*$X47*$Y47),$D47)*$R47","v":0},{"$f":"MIN((IFERROR(IF(AND($V47<=AB$1,$W47>=AB$1),INDEX(Reliability!G$23:G$50,MATCH($S47,Reliability!$C$23:$C$50,0)),0),0)*IF($T47=\"n/a\",$D47*$Y47,$G47)+IFERROR(IF(AND($V47<=AB$1,$W47>=AB$1),INDEX(Reliability!G$23:G$50,MATCH($T47,Reliability!$C$23:$C$50,0)),0),0)*$H47*$X47*$Y47),$D47)*$R47","v":0},{"$f":"MIN((IFERROR(IF(AND($V47<=AC$1,$W47>=AC$1),INDEX(Reliability!H$23:H$50,MATCH($S47,Reliability!$C$23:$C$50,0)),0),0)*IF($T47=\"n/a\",$D47*$Y47,$G47)+IFERROR(IF(AND($V47<=AC$1,$W47>=AC$1),INDEX(Reliability!H$23:H$50,MATCH($T47,Reliability!$C$23:$C$50,0)),0),0)*$H47*$X47*$Y47),$D47)*$R47","v":0},{"$f":"MIN((IFERROR(IF(AND($V47<=AD$1,$W47>=AD$1),INDEX(Reliability!I$23:I$50,MATCH($S47,Reliability!$C$23:$C$50,0)),0),0)*IF($T47=\"n/a\",$D47*$Y47,$G47)+IFERROR(IF(AND($V47<=AD$1,$W47>=AD$1),INDEX(Reliability!I$23:I$50,MATCH($T47,Reliability!$C$23:$C$50,0)),0),0)*$H47*$X47*$Y47),$D47)*$R47","v":0},{"$f":"MIN((IFERROR(IF(AND($V47<=AE$1,$W47>=AE$1),INDEX(Reliability!J$23:J$50,MATCH($S47,Reliability!$C$23:$C$50,0)),0),0)*IF($T47=\"n/a\",$D47*$Y47,$G47)+IFERROR(IF(AND($V47<=AE$1,$W47>=AE$1),INDEX(Reliability!J$23:J$50,MATCH($T47,Reliability!$C$23:$C$50,0)),0),0)*$H47*$X47*$Y47),$D47)*$R47","v":0},{"$f":"MIN((IFERROR(IF(AND($V47<=AF$1,$W47>=AF$1),INDEX(Reliability!K$23:K$50,MATCH($S47,Reliability!$C$23:$C$50,0)),0),0)*IF($T47=\"n/a\",$D47*$Y47,$G47)+IFERROR(IF(AND($V47<=AF$1,$W47>=AF$1),INDEX(Reliability!K$23:K$50,MATCH($T47,Reliability!$C$23:$C$50,0)),0),0)*$H47*$X47*$Y47),$D47)*$R47","v":0},{"$f":"MIN((IFERROR(IF(AND($V47<=AG$1,$W47>=AG$1),INDEX(Reliability!L$23:L$50,MATCH($S47,Reliability!$C$23:$C$50,0)),0),0)*IF($T47=\"n/a\",$D47*$Y47,$G47)+IFERROR(IF(AND($V47<=AG$1,$W47>=AG$1),INDEX(Reliability!L$23:L$50,MATCH($T47,Reliability!$C$23:$C$50,0)),0),0)*$H47*$X47*$Y47),$D47)*$R47","v":0},{"$f":"MIN((IFERROR(IF(AND($V47<=AH$1,$W47>=AH$1),INDEX(Reliability!M$23:M$50,MATCH($S47,Reliability!$C$23:$C$50,0)),0),0)*IF($T47=\"n/a\",$D47*$Y47,$G47)+IFERROR(IF(AND($V47<=AH$1,$W47>=AH$1),INDEX(Reliability!M$23:M$50,MATCH($T47,Reliability!$C$23:$C$50,0)),0),0)*$H47*$X47*$Y47),$D47)*$R47","v":0},{"$f":"MIN((IFERROR(IF(AND($V47<=AI$1,$W47>=AI$1),INDEX(Reliability!N$23:N$50,MATCH($S47,Reliability!$C$23:$C$50,0)),0),0)*IF($T47=\"n/a\",$D47*$Y47,$G47)+IFERROR(IF(AND($V47<=AI$1,$W47>=AI$1),INDEX(Reliability!N$23:N$50,MATCH($T47,Reliability!$C$23:$C$50,0)),0),0)*$H47*$X47*$Y47),$D47)*$R47","v":0},{"$f":"MIN((IFERROR(IF(AND($V47<=AJ$1,$W47>=AJ$1),INDEX(Reliability!O$23:O$50,MATCH($S47,Reliability!$C$23:$C$50,0)),0),0)*IF($T47=\"n/a\",$D47*$Y47,$G47)+IFERROR(IF(AND($V47<=AJ$1,$W47>=AJ$1),INDEX(Reliability!O$23:O$50,MATCH($T47,Reliability!$C$23:$C$50,0)),0),0)*$H47*$X47*$Y47),$D47)*$R47","v":0},{"$f":"MIN((IFERROR(IF(AND($V47<=AK$1,$W47>=AK$1),INDEX(Reliability!P$23:P$50,MATCH($S47,Reliability!$C$23:$C$50,0)),0),0)*IF($T47=\"n/a\",$D47*$Y47,$G47)+IFERROR(IF(AND($V47<=AK$1,$W47>=AK$1),INDEX(Reliability!P$23:P$50,MATCH($T47,Reliability!$C$23:$C$50,0)),0),0)*$H47*$X47*$Y47),$D47)*$R47","v":0}]
[null,{"$f":"unique_contracts!B49","v":"_CREZ_GENERIC_PACIFIC_NORTHWEST_WIND"},{"$f":"unique_contracts!D49","v":"PlannedNew"},{"$f":"unique_contracts!J49","v":0},{"$f":"unique_contracts!M49","v":"NotHybrid"},{"$f":"unique_contracts!N49","v":0},{"$f":"unique_contracts!P49","v":0},{"$f":"unique_contracts!R49","v":0},{"$f":"unique_contracts!V49","v":0},{"$f":"unique_contracts!AB49","v":"Buy"},{"$f":"unique_contracts!AM49","v":2030},{"$f":"unique_contracts!AN49","v":1},{"$f":"unique_contracts!AO49","v":1},{"$f":"unique_contracts!AP49","v":2045},{"$f":"unique_contracts!AQ49","v":1},{"$f":"unique_contracts!AR49","v":1},{"$f":"unique_contracts!BP49","v":"EnergyCapacity"},1,{"$f":"IFERROR(IF(AND(I48>0,E48=\"NotHybrid\"),_xlfn.CONCAT(MAX(MIN(ROUNDDOWN(I48/D48,0),8),4),INDEX(resources!$G:$G,MATCH(B48,resources!$A:$A,0))),INDEX(resources!$G:$G,MATCH(B48,resources!$A:$A,0))),\"n/a\")","v":"out_of_state_wind_WAOR"},"n/a","out_of_state_wind_WAOR",2030,2044,1,1,{"$f":"MIN((IFERROR(IF(AND($V48<=Z$1,$W48>=Z$1),INDEX(Reliability!E$23:E$50,MATCH($S48,Reliability!$C$23:$C$50,0)),0),0)*IF($T48=\"n/a\",$D48*$Y48,$G48)+IFERROR(IF(AND($V48<=Z$1,$W48>=Z$1),INDEX(Reliability!E$23:E$50,MATCH($T48,Reliability!$C$23:$C$50,0)),0),0)*$H48*$X48*$Y48),$D48)*$R48","v":0},{"$f":"MIN((IFERROR(IF(AND($V48<=AA$1,$W48>=AA$1),INDEX(Reliability!F$23:F$50,MATCH($S48,Reliability!$C$23:$C$50,0)),0),0)*IF($T48=\"n/a\",$D48*$Y48,$G48)+IFERROR(IF(AND($V48<=AA$1,$W48>=AA$1),INDEX(Reliability!F$23:F$50,MATCH($T48,Reliability!$C$23:$C$50,0)),0),0)*$H48*$X48*$Y48),$D48)*$R48","v":0},{"$f":"MIN((IFERROR(IF(AND($V48<=AB$1,$W48>=AB$1),INDEX(Reliability!G$23:G$50,MATCH($S48,Reliability!$C$23:$C$50,0)),0),0)*IF($T48=\"n/a\",$D48*$Y48,$G48)+IFERROR(IF(AND($V48<=AB$1,$W48>=AB$1),INDEX(Reliability!G$23:G$50,MATCH($T48,Reliability!$C$23:$C$50,0)),0),0)*$H48*$X48*$Y48),$D48)*$R48","v":0},{"$f":"MIN((IFERROR(IF(AND($V48<=AC$1,$W48>=AC$1),INDEX(Reliability!H$23:H$50,MATCH($S48,Reliability!$C$23:$C$50,0)),0),0)*IF($T48=\"n/a\",$D48*$Y48,$G48)+IFERROR(IF(AND($V48<=AC$1,$W48>=AC$1),INDEX(Reliability!H$23:H$50,MATCH($T48,Reliability!$C$23:$C$50,0)),0),0)*$H48*$X48*$Y48),$D48)*$R48","v":0},{"$f":"MIN((IFERROR(IF(AND($V48<=AD$1,$W48>=AD$1),INDEX(Reliability!I$23:I$50,MATCH($S48,Reliability!$C$23:$C$50,0)),0),0)*IF($T48=\"n/a\",$D48*$Y48,$G48)+IFERROR(IF(AND($V48<=AD$1,$W48>=AD$1),INDEX(Reliability!I$23:I$50,MATCH($T48,Reliability!$C$23:$C$50,0)),0),0)*$H48*$X48*$Y48),$D48)*$R48","v":0},{"$f":"MIN((IFERROR(IF(AND($V48<=AE$1,$W48>=AE$1),INDEX(Reliability!J$23:J$50,MATCH($S48,Reliability!$C$23:$C$50,0)),0),0)*IF($T48=\"n/a\",$D48*$Y48,$G48)+IFERROR(IF(AND($V48<=AE$1,$W48>=AE$1),INDEX(Reliability!J$23:J$50,MATCH($T48,Reliability!$C$23:$C$50,0)),0),0)*$H48*$X48*$Y48),$D48)*$R48","v":0},{"$f":"MIN((IFERROR(IF(AND($V48<=AF$1,$W48>=AF$1),INDEX(Reliability!K$23:K$50,MATCH($S48,Reliability!$C$23:$C$50,0)),0),0)*IF($T48=\"n/a\",$D48*$Y48,$G48)+IFERROR(IF(AND($V48<=AF$1,$W48>=AF$1),INDEX(Reliability!K$23:K$50,MATCH($T48,Reliability!$C$23:$C$50,0)),0),0)*$H48*$X48*$Y48),$D48)*$R48","v":0},{"$f":"MIN((IFERROR(IF(AND($V48<=AG$1,$W48>=AG$1),INDEX(Reliability!L$23:L$50,MATCH($S48,Reliability!$C$23:$C$50,0)),0),0)*IF($T48=\"n/a\",$D48*$Y48,$G48)+IFERROR(IF(AND($V48<=AG$1,$W48>=AG$1),INDEX(Reliability!L$23:L$50,MATCH($T48,Reliability!$C$23:$C$50,0)),0),0)*$H48*$X48*$Y48),$D48)*$R48","v":0},{"$f":"MIN((IFERROR(IF(AND($V48<=AH$1,$W48>=AH$1),INDEX(Reliability!M$23:M$50,MATCH($S48,Reliability!$C$23:$C$50,0)),0),0)*IF($T48=\"n/a\",$D48*$Y48,$G48)+IFERROR(IF(AND($V48<=AH$1,$W48>=AH$1),INDEX(Reliability!M$23:M$50,MATCH($T48,Reliability!$C$23:$C$50,0)),0),0)*$H48*$X48*$Y48),$D48)*$R48","v":0},{"$f":"MIN((IFERROR(IF(AND($V48<=AI$1,$W48>=AI$1),INDEX(Reliability!N$23:N$50,MATCH($S48,Reliability!$C$23:$C$50,0)),0),0)*IF($T48=\"n/a\",$D48*$Y48,$G48)+IFERROR(IF(AND($V48<=AI$1,$W48>=AI$1),INDEX(Reliability!N$23:N$50,MATCH($T48,Reliability!$C$23:$C$50,0)),0),0)*$H48*$X48*$Y48),$D48)*$R48","v":0},{"$f":"MIN((IFERROR(IF(AND($V48<=AJ$1,$W48>=AJ$1),INDEX(Reliability!O$23:O$50,MATCH($S48,Reliability!$C$23:$C$50,0)),0),0)*IF($T48=\"n/a\",$D48*$Y48,$G48)+IFERROR(IF(AND($V48<=AJ$1,$W48>=AJ$1),INDEX(Reliability!O$23:O$50,MATCH($T48,Reliability!$C$23:$C$50,0)),0),0)*$H48*$X48*$Y48),$D48)*$R48","v":0},{"$f":"MIN((IFERROR(IF(AND($V48<=AK$1,$W48>=AK$1),INDEX(Reliability!P$23:P$50,MATCH($S48,Reliability!$C$23:$C$50,0)),0),0)*IF($T48=\"n/a\",$D48*$Y48,$G48)+IFERROR(IF(AND($V48<=AK$1,$W48>=AK$1),INDEX(Reliability!P$23:P$50,MATCH($T48,Reliability!$C$23:$C$50,0)),0),0)*$H48*$X48*$Y48),$D48)*$R48","v":0}]
[null,{"$f":"unique_contracts!B50","v":"_NEW_GENERIC_BATTERY_STORAGE"},{"$f":"unique_contracts!D50","v":"PlannedNew"},{"$f":"unique_contracts!J50","v":0},{"$f":"unique_contracts!M50","v":"NotHybrid"},{"$f":"unique_contracts!N50","v":0},{"$f":"unique_contracts!P50","v":0},{"$f":"unique_contracts!R50","v":0},{"$f":"unique_contracts!V50","v":0},{"$f":"unique_contracts!AB50","v":"Buy"},{"$f":"unique_contracts!AM50","v":2030},{"$f":"unique_contracts!AN50","v":1},{"$f":"unique_contracts!AO50","v":1},{"$f":"unique_contracts!AP50","v":2045},{"$f":"unique_contracts!AQ50","v":1},{"$f":"unique_contracts!AR50","v":1},{"$f":"unique_contracts!BP50","v":"EnergyCapacity"},1,{"$f":"IFERROR(IF(AND(I49>0,E49=\"NotHybrid\"),_xlfn.CONCAT(MAX(MIN(ROUNDDOWN(I49/D49,0),8),4),INDEX(resources!$G:$G,MATCH(B49,resources!$A:$A,0))),INDEX(resources!$G:$G,MATCH(B49,resources!$A:$A,0))),\"n/a\")","v":"hr_batteries"},"n/a","hr_batteries",2030,2044,1,{"$error":"#DIV/0!"},{"$f":"MIN((IFERROR(IF(AND($V49<=Z$1,$W49>=Z$1),INDEX(Reliability!E$23:E$50,MATCH($S49,Reliability!$C$23:$C$50,0)),0),0)*IF($T49=\"n/a\",$D49*$Y49,$G49)+IFERROR(IF(AND($V49<=Z$1,$W49>=Z$1),INDEX(Reliability!E$23:E$50,MATCH($T49,Reliability!$C$23:$C$50,0)),0),0)*$H49*$X49*$Y49),$D49)*$R49","v":{"$error":"#DIV/0!"}},{"$f":"MIN((IFERROR(IF(AND($V49<=AA$1,$W49>=AA$1),INDEX(Reliability!F$23:F$50,MATCH($S49,Reliability!$C$23:$C$50,0)),0),0)*IF($T49=\"n/a\",$D49*$Y49,$G49)+IFERROR(IF(AND($V49<=AA$1,$W49>=AA$1),INDEX(Reliability!F$23:F$50,MATCH($T49,Reliability!$C$23:$C$50,0)),0),0)*$H49*$X49*$Y49),$D49)*$R49","v":{"$error":"#DIV/0!"}},{"$f":"MIN((IFERROR(IF(AND($V49<=AB$1,$W49>=AB$1),INDEX(Reliability!G$23:G$50,MATCH($S49,Reliability!$C$23:$C$50,0)),0),0)*IF($T49=\"n/a\",$D49*$Y49,$G49)+IFERROR(IF(AND($V49<=AB$1,$W49>=AB$1),INDEX(Reliability!G$23:G$50,MATCH($T49,Reliability!$C$23:$C$50,0)),0),0)*$H49*$X49*$Y49),$D49)*$R49","v":{"$error":"#DIV/0!"}},{"$f":"MIN((IFERROR(IF(AND($V49<=AC$1,$W49>=AC$1),INDEX(Reliability!H$23:H$50,MATCH($S49,Reliability!$C$23:$C$50,0)),0),0)*IF($T49=\"n/a\",$D49*$Y49,$G49)+IFERROR(IF(AND($V49<=AC$1,$W49>=AC$1),INDEX(Reliability!H$23:H$50,MATCH($T49,Reliability!$C$23:$C$50,0)),0),0)*$H49*$X49*$Y49),$D49)*$R49","v":{"$error":"#DIV/0!"}},{"$f":"MIN((IFERROR(IF(AND($V49<=AD$1,$W49>=AD$1),INDEX(Reliability!I$23:I$50,MATCH($S49,Reliability!$C$23:$C$50,0)),0),0)*IF($T49=\"n/a\",$D49*$Y49,$G49)+IFERROR(IF(AND($V49<=AD$1,$W49>=AD$1),INDEX(Reliability!I$23:I$50,MATCH($T49,Reliability!$C$23:$C$50,0)),0),0)*$H49*$X49*$Y49),$D49)*$R49","v":{"$error":"#DIV/0!"}},{"$f":"MIN((IFERROR(IF(AND($V49<=AE$1,$W49>=AE$1),INDEX(Reliability!J$23:J$50,MATCH($S49,Reliability!$C$23:$C$50,0)),0),0)*IF($T49=\"n/a\",$D49*$Y49,$G49)+IFERROR(IF(AND($V49<=AE$1,$W49>=AE$1),INDEX(Reliability!J$23:J$50,MATCH($T49,Reliability!$C$23:$C$50,0)),0),0)*$H49*$X49*$Y49),$D49)*$R49","v":{"$error":"#DIV/0!"}},{"$f":"MIN((IFERROR(IF(AND($V49<=AF$1,$W49>=AF$1),INDEX(Reliability!K$23:K$50,MATCH($S49,Reliability!$C$23:$C$50,0)),0),0)*IF($T49=\"n/a\",$D49*$Y49,$G49)+IFERROR(IF(AND($V49<=AF$1,$W49>=AF$1),INDEX(Reliability!K$23:K$50,MATCH($T49,Reliability!$C$23:$C$50,0)),0),0)*$H49*$X49*$Y49),$D49)*$R49","v":{"$error":"#DIV/0!"}},{"$f":"MIN((IFERROR(IF(AND($V49<=AG$1,$W49>=AG$1),INDEX(Reliability!L$23:L$50,MATCH($S49,Reliability!$C$23:$C$50,0)),0),0)*IF($T49=\"n/a\",$D49*$Y49,$G49)+IFERROR(IF(AND($V49<=AG$1,$W49>=AG$1),INDEX(Reliability!L$23:L$50,MATCH($T49,Reliability!$C$23:$C$50,0)),0),0)*$H49*$X49*$Y49),$D49)*$R49","v":{"$error":"#DIV/0!"}},{"$f":"MIN((IFERROR(IF(AND($V49<=AH$1,$W49>=AH$1),INDEX(Reliability!M$23:M$50,MATCH($S49,Reliability!$C$23:$C$50,0)),0),0)*IF($T49=\"n/a\",$D49*$Y49,$G49)+IFERROR(IF(AND($V49<=AH$1,$W49>=AH$1),INDEX(Reliability!M$23:M$50,MATCH($T49,Reliability!$C$23:$C$50,0)),0),0)*$H49*$X49*$Y49),$D49)*$R49","v":{"$error":"#DIV/0!"}},{"$f":"MIN((IFERROR(IF(AND($V49<=AI$1,$W49>=AI$1),INDEX(Reliability!N$23:N$50,MATCH($S49,Reliability!$C$23:$C$50,0)),0),0)*IF($T49=\"n/a\",$D49*$Y49,$G49)+IFERROR(IF(AND($V49<=AI$1,$W49>=AI$1),INDEX(Reliability!N$23:N$50,MATCH($T49,Reliability!$C$23:$C$50,0)),0),0)*$H49*$X49*$Y49),$D49)*$R49","v":{"$error":"#DIV/0!"}},{"$f":"MIN((IFERROR(IF(AND($V49<=AJ$1,$W49>=AJ$1),INDEX(Reliability!O$23:O$50,MATCH($S49,Reliability!$C$23:$C$50,0)),0),0)*IF($T49=\"n/a\",$D49*$Y49,$G49)+IFERROR(IF(AND($V49<=AJ$1,$W49>=AJ$1),INDEX(Reliability!O$23:O$50,MATCH($T49,Reliability!$C$23:$C$50,0)),0),0)*$H49*$X49*$Y49),$D49)*$R49","v":{"$error":"#DIV/0!"}},{"$f":"MIN((IFERROR(IF(AND($V49<=AK$1,$W49>=AK$1),INDEX(Reliability!P$23:P$50,MATCH($S49,Reliability!$C$23:$C$50,0)),0),0)*IF($T49=\"n/a\",$D49*$Y49,$G49)+IFERROR(IF(AND($V49<=AK$1,$W49>=AK$1),INDEX(Reliability!P$23:P$50,MATCH($T49,Reliability!$C$23:$C$50,0)),0),0)*$H49*$X49*$Y49),$D49)*$R49","v":{"$error":"#DIV/0!"}}]
[null,{"$f":"unique_contracts!B51","v":"_CREZ_GENERIC_WESTLANDS_SOLAR"},{"$f":"unique_contracts!D51","v":"PlannedNew"},{"$f":"unique_contracts!J51","v":0},{"$f":"unique_contracts!M51","v":"NewSolarNewStorage"},{"$f":"unique_contracts!N51","v":"Yes"},{"$f":"unique_contracts!P51","v":0},{"$f":"unique_contracts!R51","v":0},{"$f":"unique_contracts!V51","v":0},{"$f":"unique_contracts!AB51","v":"Buy"},{"$f":"unique_contracts!AM51","v":2030},{"$f":"unique_contracts!AN51","v":1},{"$f":"unique_contracts!AO51","v":1},{"$f":"unique_contracts!AP51","v":2045},{"$f":"unique_contracts!AQ51","v":1},{"$f":"unique_contracts!AR51","v":1},{"$f":"unique_contracts!BP51","v":"EnergyCapacity"},1,{"$f":"IFERROR(IF(AND(I50>0,E50=\"NotHybrid\"),_xlfn.CONCAT(MAX(MIN(ROUNDDOWN(I50/D50,0),8),4),INDEX(resources!$G:$G,MATCH(B50,resources!$A:$A,0))),INDEX(resources!$G:$G,MATCH(B50,resources!$A:$A,0))),\"n/a\")","v":"utility_pv"},"n/a","utility_pv",2030,2044,1,1,{"$f":"MIN((IFERROR(IF(AND($V50<=Z$1,$W50>=Z$1),INDEX(Reliability!E$23:E$50,MATCH($S50,Reliability!$C$23:$C$50,0)),0),0)*IF($T50=\"n/a\",$D50*$Y50,$G50)+IFERROR(IF(AND($V50<=Z$1,$W50>=Z$1),INDEX(Reliability!E$23:E$50,MATCH($T50,Reliability!$C$23:$C$50,0)),0),0)*$H50*$X50*$Y50),$D50)*$R50","v":0},{"$f":"MIN((IFERROR(IF(AND($V50<=AA$1,$W50>=AA$1),INDEX(Reliability!F$23:F$50,MATCH($S50,Reliability!$C$23:$C$50,0)),0),0)*IF($T50=\"n/a\",$D50*$Y50,$G50)+IFERROR(IF(AND($V50<=AA$1,$W50>=AA$1),INDEX(Reliability!F$23:F$50,MATCH($T50,Reliability!$C$23:$C$50,0)),0),0)*$H50*$X50*$Y50),$D50)*$R50","v":0},{"$f":"MIN((IFERROR(IF(AND($V50<=AB$1,$W50>=AB$1),INDEX(Reliability!G$23:G$50,MATCH($S50,Reliability!$C$23:$C$50,0)),0),0)*IF($T50=\"n/a\",$D50*$Y50,$G50)+IFERROR(IF(AND($V50<=AB$1,$W50>=AB$1),INDEX(Reliability!G$23:G$50,MATCH($T50,Reliability!$C$23:$C$50,0)),0),0)*$H50*$X50*$Y50),$D50)*$R50","v":0},{"$f":"MIN((IFERROR(IF(AND($V50<=AC$1,$W50>=AC$1),INDEX(Reliability!H$23:H$50,MATCH($S50,Reliability!$C$23:$C$50,0)),0),0)*IF($T50=\"n/a\",$D50*$Y50,$G50)+IFERROR(IF(AND($V50<=AC$1,$W50>=AC$1),INDEX(Reliability!H$23:H$50,MATCH($T50,Reliability!$C$23:$C$50,0)),0),0)*$H50*$X50*$Y50),$D50)*$R50","v":0},{"$f":"MIN((IFERROR(IF(AND($V50<=AD$1,$W50>=AD$1),INDEX(Reliability!I$23:I$50,MATCH($S50,Reliability!$C$23:$C$50,0)),0),0)*IF($T50=\"n/a\",$D50*$Y50,$G50)+IFERROR(IF(AND($V50<=AD$1,$W50>=AD$1),INDEX(Reliability!I$23:I$50,MATCH($T50,Reliability!$C$23:$C$50,0)),0),0)*$H50*$X50*$Y50),$D50)*$R50","v":0},{"$f":"MIN((IFERROR(IF(AND($V50<=AE$1,$W50>=AE$1),INDEX(Reliability!J$23:J$50,MATCH($S50,Reliability!$C$23:$C$50,0)),0),0)*IF($T50=\"n/a\",$D50*$Y50,$G50)+IFERROR(IF(AND($V50<=AE$1,$W50>=AE$1),INDEX(Reliability!J$23:J$50,MATCH($T50,Reliability!$C$23:$C$50,0)),0),0)*$H50*$X50*$Y50),$D50)*$R50","v":0},{"$f":"MIN((IFERROR(IF(AND($V50<=AF$1,$W50>=AF$1),INDEX(Reliability!K$23:K$50,MATCH($S50,Reliability!$C$23:$C$50,0)),0),0)*IF($T50=\"n/a\",$D50*$Y50,$G50)+IFERROR(IF(AND($V50<=AF$1,$W50>=AF$1),INDEX(Reliability!K$23:K$50,MATCH($T50,Reliability!$C$23:$C$50,0)),0),0)*$H50*$X50*$Y50),$D50)*$R50","v":0},{"$f":"MIN((IFERROR(IF(AND($V50<=AG$1,$W50>=AG$1),INDEX(Reliability!L$23:L$50,MATCH($S50,Reliability!$C$23:$C$50,0)),0),0)*IF($T50=\"n/a\",$D50*$Y50,$G50)+IFERROR(IF(AND($V50<=AG$1,$W50>=AG$1),INDEX(Reliability!L$23:L$50,MATCH($T50,Reliability!$C$23:$C$50,0)),0),0)*$H50*$X50*$Y50),$D50)*$R50","v":0},{"$f":"MIN((IFERROR(IF(AND($V50<=AH$1,$W50>=AH$1),INDEX(Reliability!M$23:M$50,MATCH($S50,Reliability!$C$23:$C$50,0)),0),0)*IF($T50=\"n/a\",$D50*$Y50,$G50)+IFERROR(IF(AND($V50<=AH$1,$W50>=AH$1),INDEX(Reliability!M$23:M$50,MATCH($T50,Reliability!$C$23:$C$50,0)),0),0)*$H50*$X50*$Y50),$D50)*$R50","v":0},{"$f":"MIN((IFERROR(IF(AND($V50<=AI$1,$W50>=AI$1),INDEX(Reliability!N$23:N$50,MATCH($S50,Reliability!$C$23:$C$50,0)),0),0)*IF($T50=\"n/a\",$D50*$Y50,$G50)+IFERROR(IF(AND($V50<=AI$1,$W50>=AI$1),INDEX(Reliability!N$23:N$50,MATCH($T50,Reliability!$C$23:$C$50,0)),0),0)*$H50*$X50*$Y50),$D50)*$R50","v":0},{"$f":"MIN((IFERROR(IF(AND($V50<=AJ$1,$W50>=AJ$1),INDEX(Reliability!O$23:O$50,MATCH($S50,Reliability!$C$23:$C$50,0)),0),0)*IF($T50=\"n/a\",$D50*$Y50,$G50)+IFERROR(IF(AND($V50<=AJ$1,$W50>=AJ$1),INDEX(Reliability!O$23:O$50,MATCH($T50,Reliability!$C$23:$C$50,0)),0),0)*$H50*$X50*$Y50),$D50)*$R50","v":0},{"$f":"MIN((IFERROR(IF(AND($V50<=AK$1,$W50>=AK$1),INDEX(Reliability!P$23:P$50,MATCH($S50,Reliability!$C$23:$C$50,0)),0),0)*IF($T50=\"n/a\",$D50*$Y50,$G50)+IFERROR(IF(AND($V50<=AK$1,$W50>=AK$1),INDEX(Reliability!P$23:P$50,MATCH($T50,Reliability!$C$23:$C$50,0)),0),0)*$H50*$X50*$Y50),$D50)*$R50","v":0}]
[null,{"$f":"unique_contracts!B52","v":"_CREZ_GENERIC_GREATER_KRAMER_SOLAR"},{"$f":"unique_contracts!D52","v":"PlannedNew"},{"$f":"unique_contracts!J52","v":0},{"$f":"unique_contracts!M52","v":"NewSolarNewStorage"},{"$f":"unique_contracts!N52","v":"Yes"},{"$f":"unique_contracts!P52","v":0},{"$f":"unique_contracts!R52","v":0},{"$f":"unique_contracts!V52","v":0},{"$f":"unique_contracts!AB52","v":"Buy"},{"$f":"unique_contracts!AM52","v":2030},{"$f":"unique_contracts!AN52","v":1},{"$f":"unique_contracts!AO52","v":1},{"$f":"unique_contracts!AP52","v":2045},{"$f":"unique_contracts!AQ52","v":1},{"$f":"unique_contracts!AR52","v":1},{"$f":"unique_contracts!BP52","v":"EnergyCapacity"},1,{"$f":"IFERROR(IF(AND(I51>0,E51=\"NotHybrid\"),_xlfn.CONCAT(MAX(MIN(ROUNDDOWN(I51/D51,0),8),4),INDEX(resources!$G:$G,MATCH(B51,resources!$A:$A,0))),INDEX(resources!$G:$G,MATCH(B51,resources!$A:$A,0))),\"n/a\")","v":"utility_pv"},"n/a","utility_pv",2030,2044,1,1,{"$f":"MIN((IFERROR(IF(AND($V51<=Z$1,$W51>=Z$1),INDEX(Reliability!E$23:E$50,MATCH($S51,Reliability!$C$23:$C$50,0)),0),0)*IF($T51=\"n/a\",$D51*$Y51,$G51)+IFERROR(IF(AND($V51<=Z$1,$W51>=Z$1),INDEX(Reliability!E$23:E$50,MATCH($T51,Reliability!$C$23:$C$50,0)),0),0)*$H51*$X51*$Y51),$D51)*$R51","v":0},{"$f":"MIN((IFERROR(IF(AND($V51<=AA$1,$W51>=AA$1),INDEX(Reliability!F$23:F$50,MATCH($S51,Reliability!$C$23:$C$50,0)),0),0)*IF($T51=\"n/a\",$D51*$Y51,$G51)+IFERROR(IF(AND($V51<=AA$1,$W51>=AA$1),INDEX(Reliability!F$23:F$50,MATCH($T51,Reliability!$C$23:$C$50,0)),0),0)*$H51*$X51*$Y51),$D51)*$R51","v":0},{"$f":"MIN((IFERROR(IF(AND($V51<=AB$1,$W51>=AB$1),INDEX(Reliability!G$23:G$50,MATCH($S51,Reliability!$C$23:$C$50,0)),0),0)*IF($T51=\"n/a\",$D51*$Y51,$G51)+IFERROR(IF(AND($V51<=AB$1,$W51>=AB$1),INDEX(Reliability!G$23:G$50,MATCH($T51,Reliability!$C$23:$C$50,0)),0),0)*$H51*$X51*$Y51),$D51)*$R51","v":0},{"$f":"MIN((IFERROR(IF(AND($V51<=AC$1,$W51>=AC$1),INDEX(Reliability!H$23:H$50,MATCH($S51,Reliability!$C$23:$C$50,0)),0),0)*IF($T51=\"n/a\",$D51*$Y51,$G51)+IFERROR(IF(AND($V51<=AC$1,$W51>=AC$1),INDEX(Reliability!H$23:H$50,MATCH($T51,Reliability!$C$23:$C$50,0)),0),0)*$H51*$X51*$Y51),$D51)*$R51","v":0},{"$f":"MIN((IFERROR(IF(AND($V51<=AD$1,$W51>=AD$1),INDEX(Reliability!I$23:I$50,MATCH($S51,Reliability!$C$23:$C$50,0)),0),0)*IF($T51=\"n/a\",$D51*$Y51,$G51)+IFERROR(IF(AND($V51<=AD$1,$W51>=AD$1),INDEX(Reliability!I$23:I$50,MATCH($T51,Reliability!$C$23:$C$50,0)),0),0)*$H51*$X51*$Y51),$D51)*$R51","v":0},{"$f":"MIN((IFERROR(IF(AND($V51<=AE$1,$W51>=AE$1),INDEX(Reliability!J$23:J$50,MATCH($S51,Reliability!$C$23:$C$50,0)),0),0)*IF($T51=\"n/a\",$D51*$Y51,$G51)+IFERROR(IF(AND($V51<=AE$1,$W51>=AE$1),INDEX(Reliability!J$23:J$50,MATCH($T51,Reliability!$C$23:$C$50,0)),0),0)*$H51*$X51*$Y51),$D51)*$R51","v":0},{"$f":"MIN((IFERROR(IF(AND($V51<=AF$1,$W51>=AF$1),INDEX(Reliability!K$23:K$50,MATCH($S51,Reliability!$C$23:$C$50,0)),0),0)*IF($T51=\"n/a\",$D51*$Y51,$G51)+IFERROR(IF(AND($V51<=AF$1,$W51>=AF$1),INDEX(Reliability!K$23:K$50,MATCH($T51,Reliability!$C$23:$C$50,0)),0),0)*$H51*$X51*$Y51),$D51)*$R51","v":0},{"$f":"MIN((IFERROR(IF(AND($V51<=AG$1,$W51>=AG$1),INDEX(Reliability!L$23:L$50,MATCH($S51,Reliability!$C$23:$C$50,0)),0),0)*IF($T51=\"n/a\",$D51*$Y51,$G51)+IFERROR(IF(AND($V51<=AG$1,$W51>=AG$1),INDEX(Reliability!L$23:L$50,MATCH($T51,Reliability!$C$23:$C$50,0)),0),0)*$H51*$X51*$Y51),$D51)*$R51","v":0},{"$f":"MIN((IFERROR(IF(AND($V51<=AH$1,$W51>=AH$1),INDEX(Reliability!M$23:M$50,MATCH($S51,Reliability!$C$23:$C$50,0)),0),0)*IF($T51=\"n/a\",$D51*$Y51,$G51)+IFERROR(IF(AND($V51<=AH$1,$W51>=AH$1),INDEX(Reliability!M$23:M$50,MATCH($T51,Reliability!$C$23:$C$50,0)),0),0)*$H51*$X51*$Y51),$D51)*$R51","v":0},{"$f":"MIN((IFERROR(IF(AND($V51<=AI$1,$W51>=AI$1),INDEX(Reliability!N$23:N$50,MATCH($S51,Reliability!$C$23:$C$50,0)),0),0)*IF($T51=\"n/a\",$D51*$Y51,$G51)+IFERROR(IF(AND($V51<=AI$1,$W51>=AI$1),INDEX(Reliability!N$23:N$50,MATCH($T51,Reliability!$C$23:$C$50,0)),0),0)*$H51*$X51*$Y51),$D51)*$R51","v":0},{"$f":"MIN((IFERROR(IF(AND($V51<=AJ$1,$W51>=AJ$1),INDEX(Reliability!O$23:O$50,MATCH($S51,Reliability!$C$23:$C$50,0)),0),0)*IF($T51=\"n/a\",$D51*$Y51,$G51)+IFERROR(IF(AND($V51<=AJ$1,$W51>=AJ$1),INDEX(Reliability!O$23:O$50,MATCH($T51,Reliability!$C$23:$C$50,0)),0),0)*$H51*$X51*$Y51),$D51)*$R51","v":0},{"$f":"MIN((IFERROR(IF(AND($V51<=AK$1,$W51>=AK$1),INDEX(Reliability!P$23:P$50,MATCH($S51,Reliability!$C$23:$C$50,0)),0),0)*IF($T51=\"n/a\",$D51*$Y51,$G51)+IFERROR(IF(AND($V51<=AK$1,$W51>=AK$1),INDEX(Reliability!P$23:P$50,MATCH($T51,Reliability!$C$23:$C$50,0)),0),0)*$H51*$X51*$Y51),$D51)*$R51","v":0}]
[null,{"$f":"unique_contracts!B53","v":"_CREZ_GENERIC_TEHACHAPI_SOLAR"},{"$f":"unique_contracts!D53","v":"PlannedNew"},{"$f":"unique_contracts!J53","v":0},{"$f":"unique_contracts!M53","v":"NewWindNewStorage"},{"$f":"unique_contracts!N53","v":"Yes"},{"$f":"unique_contracts!P53","v":0},{"$f":"unique_contracts!R53","v":0},{"$f":"unique_contracts!V53","v":0},{"$f":"unique_contracts!AB53","v":"Buy"},{"$f":"unique_contracts!AM53","v":2035},{"$f":"unique_contracts!AN53","v":1},{"$f":"unique_contracts!AO53","v":1},{"$f":"unique_contracts!AP53","v":2050},{"$f":"unique_contracts!AQ53","v":1},{"$f":"unique_contracts!AR53","v":1},{"$f":"unique_contracts!BP53","v":"EnergyCapacity"},1,{"$f":"IFERROR(IF(AND(I52>0,E52=\"NotHybrid\"),_xlfn.CONCAT(MAX(MIN(ROUNDDOWN(I52/D52,0),8),4),INDEX(resources!$G:$G,MATCH(B52,resources!$A:$A,0))),INDEX(resources!$G:$G,MATCH(B52,resources!$A:$A,0))),\"n/a\")","v":"utility_pv"},"n/a","utility_pv",2035,2049,1,1,{"$f":"MIN((IFERROR(IF(AND($V52<=Z$1,$W52>=Z$1),INDEX(Reliability!E$23:E$50,MATCH($S52,Reliability!$C$23:$C$50,0)),0),0)*IF($T52=\"n/a\",$D52*$Y52,$G52)+IFERROR(IF(AND($V52<=Z$1,$W52>=Z$1),INDEX(Reliability!E$23:E$50,MATCH($T52,Reliability!$C$23:$C$50,0)),0),0)*$H52*$X52*$Y52),$D52)*$R52","v":0},{"$f":"MIN((IFERROR(IF(AND($V52<=AA$1,$W52>=AA$1),INDEX(Reliability!F$23:F$50,MATCH($S52,Reliability!$C$23:$C$50,0)),0),0)*IF($T52=\"n/a\",$D52*$Y52,$G52)+IFERROR(IF(AND($V52<=AA$1,$W52>=AA$1),INDEX(Reliability!F$23:F$50,MATCH($T52,Reliability!$C$23:$C$50,0)),0),0)*$H52*$X52*$Y52),$D52)*$R52","v":0},{"$f":"MIN((IFERROR(IF(AND($V52<=AB$1,$W52>=AB$1),INDEX(Reliability!G$23:G$50,MATCH($S52,Reliability!$C$23:$C$50,0)),0),0)*IF($T52=\"n/a\",$D52*$Y52,$G52)+IFERROR(IF(AND($V52<=AB$1,$W52>=AB$1),INDEX(Reliability!G$23:G$50,MATCH($T52,Reliability!$C$23:$C$50,0)),0),0)*$H52*$X52*$Y52),$D52)*$R52","v":0},{"$f":"MIN((IFERROR(IF(AND($V52<=AC$1,$W52>=AC$1),INDEX(Reliability!H$23:H$50,MATCH($S52,Reliability!$C$23:$C$50,0)),0),0)*IF($T52=\"n/a\",$D52*$Y52,$G52)+IFERROR(IF(AND($V52<=AC$1,$W52>=AC$1),INDEX(Reliability!H$23:H$50,MATCH($T52,Reliability!$C$23:$C$50,0)),0),0)*$H52*$X52*$Y52),$D52)*$R52","v":0},{"$f":"MIN((IFERROR(IF(AND($V52<=AD$1,$W52>=AD$1),INDEX(Reliability!I$23:I$50,MATCH($S52,Reliability!$C$23:$C$50,0)),0),0)*IF($T52=\"n/a\",$D52*$Y52,$G52)+IFERROR(IF(AND($V52<=AD$1,$W52>=AD$1),INDEX(Reliability!I$23:I$50,MATCH($T52,Reliability!$C$23:$C$50,0)),0),0)*$H52*$X52*$Y52),$D52)*$R52","v":0},{"$f":"MIN((IFERROR(IF(AND($V52<=AE$1,$W52>=AE$1),INDEX(Reliability!J$23:J$50,MATCH($S52,Reliability!$C$23:$C$50,0)),0),0)*IF($T52=\"n/a\",$D52*$Y52,$G52)+IFERROR(IF(AND($V52<=AE$1,$W52>=AE$1),INDEX(Reliability!J$23:J$50,MATCH($T52,Reliability!$C$23:$C$50,0)),0),0)*$H52*$X52*$Y52),$D52)*$R52","v":0},{"$f":"MIN((IFERROR(IF(AND($V52<=AF$1,$W52>=AF$1),INDEX(Reliability!K$23:K$50,MATCH($S52,Reliability!$C$23:$C$50,0)),0),0)*IF($T52=\"n/a\",$D52*$Y52,$G52)+IFERROR(IF(AND($V52<=AF$1,$W52>=AF$1),INDEX(Reliability!K$23:K$50,MATCH($T52,Reliability!$C$23:$C$50,0)),0),0)*$H52*$X52*$Y52),$D52)*$R52","v":0},{"$f":"MIN((IFERROR(IF(AND($V52<=AG$1,$W52>=AG$1),INDEX(Reliability!L$23:L$50,MATCH($S52,Reliability!$C$23:$C$50,0)),0),0)*IF($T52=\"n/a\",$D52*$Y52,$G52)+IFERROR(IF(AND($V52<=AG$1,$W52>=AG$1),INDEX(Reliability!L$23:L$50,MATCH($T52,Reliability!$C$23:$C$50,0)),0),0)*$H52*$X52*$Y52),$D52)*$R52","v":0},{"$f":"MIN((IFERROR(IF(AND($V52<=AH$1,$W52>=AH$1),INDEX(Reliability!M$23:M$50,MATCH($S52,Reliability!$C$23:$C$50,0)),0),0)*IF($T52=\"n/a\",$D52*$Y52,$G52)+IFERROR(IF(AND($V52<=AH$1,$W52>=AH$1),INDEX(Reliability!M$23:M$50,MATCH($T52,Reliability!$C$23:$C$50,0)),0),0)*$H52*$X52*$Y52),$D52)*$R52","v":0},{"$f":"MIN((IFERROR(IF(AND($V52<=AI$1,$W52>=AI$1),INDEX(Reliability!N$23:N$50,MATCH($S52,Reliability!$C$23:$C$50,0)),0),0)*IF($T52=\"n/a\",$D52*$Y52,$G52)+IFERROR(IF(AND($V52<=AI$1,$W52>=AI$1),INDEX(Reliability!N$23:N$50,MATCH($T52,Reliability!$C$23:$C$50,0)),0),0)*$H52*$X52*$Y52),$D52)*$R52","v":0},{"$f":"MIN((IFERROR(IF(AND($V52<=AJ$1,$W52>=AJ$1),INDEX(Reliability!O$23:O$50,MATCH($S52,Reliability!$C$23:$C$50,0)),0),0)*IF($T52=\"n/a\",$D52*$Y52,$G52)+IFERROR(IF(AND($V52<=AJ$1,$W52>=AJ$1),INDEX(Reliability!O$23:O$50,MATCH($T52,Reliability!$C$23:$C$50,0)),0),0)*$H52*$X52*$Y52),$D52)*$R52","v":0},{"$f":"MIN((IFERROR(IF(AND($V52<=AK$1,$W52>=AK$1),INDEX(Reliability!P$23:P$50,MATCH($S52,Reliability!$C$23:$C$50,0)),0),0)*IF($T52=\"n/a\",$D52*$Y52,$G52)+IFERROR(IF(AND($V52<=AK$1,$W52>=AK$1),INDEX(Reliability!P$23:P$50,MATCH($T52,Reliability!$C$23:$C$50,0)),0),0)*$H52*$X52*$Y52),$D52)*$R52","v":0}]
[null,{"$f":"unique_contracts!B54","v":"_CREZ_GENERIC_CAPE_MENDOCINO_OFFSHORE_WIND"},{"$f":"unique_contracts!D54","v":"PlannedNew"},{"$f":"unique_contracts!J54","v":0},{"$f":"unique_contracts!M54","v":"NotHybrid"},{"$f":"unique_contracts!N54","v":0},{"$f":"unique_contracts!P54","v":0},{"$f":"unique_contracts!R54","v":0},{"$f":"unique_contracts!V54","v":0},{"$f":"unique_contracts!AB54","v":"Buy"},{"$f":"unique_contracts!AM54","v":2035},{"$f":"unique_contracts!AN54","v":1},{"$f":"unique_contracts!AO54","v":1},{"$f":"unique_contracts!AP54","v":2050},{"$f":"unique_contracts!AQ54","v":1},{"$f":"unique_contracts!AR54","v":1},{"$f":"unique_contracts!BP54","v":"EnergyCapacity"},1,{"$f":"IFERROR(IF(AND(I53>0,E53=\"NotHybrid\"),_xlfn.CONCAT(MAX(MIN(ROUNDDOWN(I53/D53,0),8),4),INDEX(resources!$G:$G,MATCH(B53,resources!$A:$A,0))),INDEX(resources!$G:$G,MATCH(B53,resources!$A:$A,0))),\"n/a\")","v":"offshore_wind"},"n/a","offshore_wind",2035,2049,1,1,{"$f":"MIN((IFERROR(IF(AND($V53<=Z$1,$W53>=Z$1),INDEX(Reliability!E$23:E$50,MATCH($S53,Reliability!$C$23:$C$50,0)),0),0)*IF($T53=\"n/a\",$D53*$Y53,$G53)+IFERROR(IF(AND($V53<=Z$1,$W53>=Z$1),INDEX(Reliability!E$23:E$50,MATCH($T53,Reliability!$C$23:$C$50,0)),0),0)*$H53*$X53*$Y53),$D53)*$R53","v":0},{"$f":"MIN((IFERROR(IF(AND($V53<=AA$1,$W53>=AA$1),INDEX(Reliability!F$23:F$50,MATCH($S53,Reliability!$C$23:$C$50,0)),0),0)*IF($T53=\"n/a\",$D53*$Y53,$G53)+IFERROR(IF(AND($V53<=AA$1,$W53>=AA$1),INDEX(Reliability!F$23:F$50,MATCH($T53,Reliability!$C$23:$C$50,0)),0),0)*$H53*$X53*$Y53),$D53)*$R53","v":0},{"$f":"MIN((IFERROR(IF(AND($V53<=AB$1,$W53>=AB$1),INDEX(Reliability!G$23:G$50,MATCH($S53,Reliability!$C$23:$C$50,0)),0),0)*IF($T53=\"n/a\",$D53*$Y53,$G53)+IFERROR(IF(AND($V53<=AB$1,$W53>=AB$1),INDEX(Reliability!G$23:G$50,MATCH($T53,Reliability!$C$23:$C$50,0)),0),0)*$H53*$X53*$Y53),$D53)*$R53","v":0},{"$f":"MIN((IFERROR(IF(AND($V53<=AC$1,$W53>=AC$1),INDEX(Reliability!H$23:H$50,MATCH($S53,Reliability!$C$23:$C$50,0)),0),0)*IF($T53=\"n/a\",$D53*$Y53,$G53)+IFERROR(IF(AND($V53<=AC$1,$W53>=AC$1),INDEX(Reliability!H$23:H$50,MATCH($T53,Reliability!$C$23:$C$50,0)),0),0)*$H53*$X53*$Y53),$D53)*$R53","v":0},{"$f":"MIN((IFERROR(IF(AND($V53<=AD$1,$W53>=AD$1),INDEX(Reliability!I$23:I$50,MATCH($S53,Reliability!$C$23:$C$50,0)),0),0)*IF($T53=\"n/a\",$D53*$Y53,$G53)+IFERROR(IF(AND($V53<=AD$1,$W53>=AD$1),INDEX(Reliability!I$23:I$50,MATCH($T53,Reliability!$C$23:$C$50,0)),0),0)*$H53*$X53*$Y53),$D53)*$R53","v":0},{"$f":"MIN((IFERROR(IF(AND($V53<=AE$1,$W53>=AE$1),INDEX(Reliability!J$23:J$50,MATCH($S53,Reliability!$C$23:$C$50,0)),0),0)*IF($T53=\"n/a\",$D53*$Y53,$G53)+IFERROR(IF(AND($V53<=AE$1,$W53>=AE$1),INDEX(Reliability!J$23:J$50,MATCH($T53,Reliability!$C$23:$C$50,0)),0),0)*$H53*$X53*$Y53),$D53)*$R53","v":0},{"$f":"MIN((IFERROR(IF(AND($V53<=AF$1,$W53>=AF$1),INDEX(Reliability!K$23:K$50,MATCH($S53,Reliability!$C$23:$C$50,0)),0),0)*IF($T53=\"n/a\",$D53*$Y53,$G53)+IFERROR(IF(AND($V53<=AF$1,$W53>=AF$1),INDEX(Reliability!K$23:K$50,MATCH($T53,Reliability!$C$23:$C$50,0)),0),0)*$H53*$X53*$Y53),$D53)*$R53","v":0},{"$f":"MIN((IFERROR(IF(AND($V53<=AG$1,$W53>=AG$1),INDEX(Reliability!L$23:L$50,MATCH($S53,Reliability!$C$23:$C$50,0)),0),0)*IF($T53=\"n/a\",$D53*$Y53,$G53)+IFERROR(IF(AND($V53<=AG$1,$W53>=AG$1),INDEX(Reliability!L$23:L$50,MATCH($T53,Reliability!$C$23:$C$50,0)),0),0)*$H53*$X53*$Y53),$D53)*$R53","v":0},{"$f":"MIN((IFERROR(IF(AND($V53<=AH$1,$W53>=AH$1),INDEX(Reliability!M$23:M$50,MATCH($S53,Reliability!$C$23:$C$50,0)),0),0)*IF($T53=\"n/a\",$D53*$Y53,$G53)+IFERROR(IF(AND($V53<=AH$1,$W53>=AH$1),INDEX(Reliability!M$23:M$50,MATCH($T53,Reliability!$C$23:$C$50,0)),0),0)*$H53*$X53*$Y53),$D53)*$R53","v":0},{"$f":"MIN((IFERROR(IF(AND($V53<=AI$1,$W53>=AI$1),INDEX(Reliability!N$23:N$50,MATCH($S53,Reliability!$C$23:$C$50,0)),0),0)*IF($T53=\"n/a\",$D53*$Y53,$G53)+IFERROR(IF(AND($V53<=AI$1,$W53>=AI$1),INDEX(Reliability!N$23:N$50,MATCH($T53,Reliability!$C$23:$C$50,0)),0),0)*$H53*$X53*$Y53),$D53)*$R53","v":0},{"$f":"MIN((IFERROR(IF(AND($V53<=AJ$1,$W53>=AJ$1),INDEX(Reliability!O$23:O$50,MATCH($S53,Reliability!$C$23:$C$50,0)),0),0)*IF($T53=\"n/a\",$D53*$Y53,$G53)+IFERROR(IF(AND($V53<=AJ$1,$W53>=AJ$1),INDEX(Reliability!O$23:O$50,MATCH($T53,Reliability!$C$23:$C$50,0)),0),0)*$H53*$X53*$Y53),$D53)*$R53","v":0},{"$f":"MIN((IFERROR(IF(AND($V53<=AK$1,$W53>=AK$1),INDEX(Reliability!P$23:P$50,MATCH($S53,Reliability!$C$23:$C$50,0)),0),0)*IF($T53=\"n/a\",$D53*$Y53,$G53)+IFERROR(IF(AND($V53<=AK$1,$W53>=AK$1),INDEX(Reliability!P$23:P$50,MATCH($T53,Reliability!$C$23:$C$50,0)),0),0)*$H53*$X53*$Y53),$D53)*$R53","v":0}]
[null,{"$f":"unique_contracts!B55","v":"_NEW_GENERIC_BATTERY_STORAGE"},{"$f":"unique_contracts!D55","v":"PlannedNew"},{"$f":"unique_contracts!J55","v":0},{"$f":"unique_contracts!M55","v":"NotHybrid"},{"$f":"unique_contracts!N55","v":"Yes"},{"$f":"unique_contracts!P55","v":0},{"$f":"unique_contracts!R55","v":0},{"$f":"unique_contracts!V55","v":0},{"$f":"unique_contracts!AB55","v":"Buy"},{"$f":"unique_contracts!AM55","v":2023},{"$f":"unique_contracts!AN55","v":8},{"$f":"unique_contracts!AO55","v":1},{"$f":"unique_contracts!AP55","v":2024},{"$f":"unique_contracts!AQ55","v":12},{"$f":"unique_contracts!AR55","v":31},{"$f":"unique_contracts!BP55","v":"CapacityOnly"},1,{"$f":"IFERROR(IF(AND(I54>0,E54=\"NotHybrid\"),_xlfn.CONCAT(MAX(MIN(ROUNDDOWN(I54/D54,0),8),4),INDEX(resources!$G:$G,MATCH(B54,resources!$A:$A,0))),INDEX(resources!$G:$G,MATCH(B54,resources!$A:$A,0))),\"n/a\")","v":"hr_batteries"},"n/a","hr_batteries",2024,2024,1,{"$error":"#DIV/0!"},{"$f":"MIN((IFERROR(IF(AND($V54<=Z$1,$W54>=Z$1),INDEX(Reliability!E$23:E$50,MATCH($S54,Reliability!$C$23:$C$50,0)),0),0)*IF($T54=\"n/a\",$D54*$Y54,$G54)+IFERROR(IF(AND($V54<=Z$1,$W54>=Z$1),INDEX(Reliability!E$23:E$50,MATCH($T54,Reliability!$C$23:$C$50,0)),0),0)*$H54*$X54*$Y54),$D54)*$R54","v":{"$error":"#DIV/0!"}},{"$f":"MIN((IFERROR(IF(AND($V54<=AA$1,$W54>=AA$1),INDEX(Reliability!F$23:F$50,MATCH($S54,Reliability!$C$23:$C$50,0)),0),0)*IF($T54=\"n/a\",$D54*$Y54,$G54)+IFERROR(IF(AND($V54<=AA$1,$W54>=AA$1),INDEX(Reliability!F$23:F$50,MATCH($T54,Reliability!$C$23:$C$50,0)),0),0)*$H54*$X54*$Y54),$D54)*$R54","v":{"$error":"#DIV/0!"}},{"$f":"MIN((IFERROR(IF(AND($V54<=AB$1,$W54>=AB$1),INDEX(Reliability!G$23:G$50,MATCH($S54,Reliability!$C$23:$C$50,0)),0),0)*IF($T54=\"n/a\",$D54*$Y54,$G54)+IFERROR(IF(AND($V54<=AB$1,$W54>=AB$1),INDEX(Reliability!G$23:G$50,MATCH($T54,Reliability!$C$23:$C$50,0)),0),0)*$H54*$X54*$Y54),$D54)*$R54","v":{"$error":"#DIV/0!"}},{"$f":"MIN((IFERROR(IF(AND($V54<=AC$1,$W54>=AC$1),INDEX(Reliability!H$23:H$50,MATCH($S54,Reliability!$C$23:$C$50,0)),0),0)*IF($T54=\"n/a\",$D54*$Y54,$G54)+IFERROR(IF(AND($V54<=AC$1,$W54>=AC$1),INDEX(Reliability!H$23:H$50,MATCH($T54,Reliability!$C$23:$C$50,0)),0),0)*$H54*$X54*$Y54),$D54)*$R54","v":{"$error":"#DIV/0!"}},{"$f":"MIN((IFERROR(IF(AND($V54<=AD$1,$W54>=AD$1),INDEX(Reliability!I$23:I$50,MATCH($S54,Reliability!$C$23:$C$50,0)),0),0)*IF($T54=\"n/a\",$D54*$Y54,$G54)+IFERROR(IF(AND($V54<=AD$1,$W54>=AD$1),INDEX(Reliability!I$23:I$50,MATCH($T54,Reliability!$C$23:$C$50,0)),0),0)*$H54*$X54*$Y54),$D54)*$R54","v":{"$error":"#DIV/0!"}},{"$f":"MIN((IFERROR(IF(AND($V54<=AE$1,$W54>=AE$1),INDEX(Reliability!J$23:J$50,MATCH($S54,Reliability!$C$23:$C$50,0)),0),0)*IF($T54=\"n/a\",$D54*$Y54,$G54)+IFERROR(IF(AND($V54<=AE$1,$W54>=AE$1),INDEX(Reliability!J$23:J$50,MATCH($T54,Reliability!$C$23:$C$50,0)),0),0)*$H54*$X54*$Y54),$D54)*$R54","v":{"$error":"#DIV/0!"}},{"$f":"MIN((IFERROR(IF(AND($V54<=AF$1,$W54>=AF$1),INDEX(Reliability!K$23:K$50,MATCH($S54,Reliability!$C$23:$C$50,0)),0),0)*IF($T54=\"n/a\",$D54*$Y54,$G54)+IFERROR(IF(AND($V54<=AF$1,$W54>=AF$1),INDEX(Reliability!K$23:K$50,MATCH($T54,Reliability!$C$23:$C$50,0)),0),0)*$H54*$X54*$Y54),$D54)*$R54","v":{"$error":"#DIV/0!"}},{"$f":"MIN((IFERROR(IF(AND($V54<=AG$1,$W54>=AG$1),INDEX(Reliability!L$23:L$50,MATCH($S54,Reliability!$C$23:$C$50,0)),0),0)*IF($T54=\"n/a\",$D54*$Y54,$G54)+IFERROR(IF(AND($V54<=AG$1,$W54>=AG$1),INDEX(Reliability!L$23:L$50,MATCH($T54,Reliability!$C$23:$C$50,0)),0),0)*$H54*$X54*$Y54),$D54)*$R54","v":{"$error":"#DIV/0!"}},{"$f":"MIN((IFERROR(IF(AND($V54<=AH$1,$W54>=AH$1),INDEX(Reliability!M$23:M$50,MATCH($S54,Reliability!$C$23:$C$50,0)),0),0)*IF($T54=\"n/a\",$D54*$Y54,$G54)+IFERROR(IF(AND($V54<=AH$1,$W54>=AH$1),INDEX(Reliability!M$23:M$50,MATCH($T54,Reliability!$C$23:$C$50,0)),0),0)*$H54*$X54*$Y54),$D54)*$R54","v":{"$error":"#DIV/0!"}},{"$f":"MIN((IFERROR(IF(AND($V54<=AI$1,$W54>=AI$1),INDEX(Reliability!N$23:N$50,MATCH($S54,Reliability!$C$23:$C$50,0)),0),0)*IF($T54=\"n/a\",$D54*$Y54,$G54)+IFERROR(IF(AND($V54<=AI$1,$W54>=AI$1),INDEX(Reliability!N$23:N$50,MATCH($T54,Reliability!$C$23:$C$50,0)),0),0)*$H54*$X54*$Y54),$D54)*$R54","v":{"$error":"#DIV/0!"}},{"$f":"MIN((IFERROR(IF(AND($V54<=AJ$1,$W54>=AJ$1),INDEX(Reliability!O$23:O$50,MATCH($S54,Reliability!$C$23:$C$50,0)),0),0)*IF($T54=\"n/a\",$D54*$Y54,$G54)+IFERROR(IF(AND($V54<=AJ$1,$W54>=AJ$1),INDEX(Reliability!O$23:O$50,MATCH($T54,Reliability!$C$23:$C$50,0)),0),0)*$H54*$X54*$Y54),$D54)*$R54","v":{"$error":"#DIV/0!"}},{"$f":"MIN((IFERROR(IF(AND($V54<=AK$1,$W54>=AK$1),INDEX(Reliability!P$23:P$50,MATCH($S54,Reliability!$C$23:$C$50,0)),0),0)*IF($T54=\"n/a\",$D54*$Y54,$G54)+IFERROR(IF(AND($V54<=AK$1,$W54>=AK$1),INDEX(Reliability!P$23:P$50,MATCH($T54,Reliability!$C$23:$C$50,0)),0),0)*$H54*$X54*$Y54),$D54)*$R54","v":{"$error":"#DIV/0!"}}]
[null,{"$f":"unique_contracts!B56","v":"_NEW_GENERIC_BATTERY_STORAGE"},{"$f":"unique_contracts!D56","v":"PlannedNew"},{"$f":"unique_contracts!J56","v":0},{"$f":"unique_contracts!M56","v":"NotHybrid"},{"$f":"unique_contracts!N56","v":"Yes"},{"$f":"unique_contracts!P56","v":0},{"$f":"unique_contracts!R56","v":0},{"$f":"unique_contracts!V56","v":0},{"$f":"unique_contracts!AB56","v":"Sell"},{"$f":"unique_contracts!AM56","v":2024},{"$f":"unique_contracts!AN56","v":6},{"$f":"unique_contracts!AO56","v":1},{"$f":"unique_contracts!AP56","v":2024},{"$f":"unique_contracts!AQ56","v":12},{"$f":"unique_contracts!AR56","v":31},{"$f":"unique_contracts!BP56","v":"CapacityOnly"},-1,{"$f":"IFERROR(IF(AND(I55>0,E55=\"NotHybrid\"),_xlfn.CONCAT(MAX(MIN(ROUNDDOWN(I55/D55,0),8),4),INDEX(resources!$G:$G,MATCH(B55,resources!$A:$A,0))),INDEX(resources!$G:$G,MATCH(B55,resources!$A:$A,0))),\"n/a\")","v":"hr_batteries"},"n/a","hr_batteries",2024,2024,1,{"$error":"#DIV/0!"},{"$f":"MIN((IFERROR(IF(AND($V55<=Z$1,$W55>=Z$1),INDEX(Reliability!E$23:E$50,MATCH($S55,Reliability!$C$23:$C$50,0)),0),0)*IF($T55=\"n/a\",$D55*$Y55,$G55)+IFERROR(IF(AND($V55<=Z$1,$W55>=Z$1),INDEX(Reliability!E$23:E$50,MATCH($T55,Reliability!$C$23:$C$50,0)),0),0)*$H55*$X55*$Y55),$D55)*$R55","v":{"$error":"#DIV/0!"}},{"$f":"MIN((IFERROR(IF(AND($V55<=AA$1,$W55>=AA$1),INDEX(Reliability!F$23:F$50,MATCH($S55,Reliability!$C$23:$C$50,0)),0),0)*IF($T55=\"n/a\",$D55*$Y55,$G55)+IFERROR(IF(AND($V55<=AA$1,$W55>=AA$1),INDEX(Reliability!F$23:F$50,MATCH($T55,Reliability!$C$23:$C$50,0)),0),0)*$H55*$X55*$Y55),$D55)*$R55","v":{"$error":"#DIV/0!"}},{"$f":"MIN((IFERROR(IF(AND($V55<=AB$1,$W55>=AB$1),INDEX(Reliability!G$23:G$50,MATCH($S55,Reliability!$C$23:$C$50,0)),0),0)*IF($T55=\"n/a\",$D55*$Y55,$G55)+IFERROR(IF(AND($V55<=AB$1,$W55>=AB$1),INDEX(Reliability!G$23:G$50,MATCH($T55,Reliability!$C$23:$C$50,0)),0),0)*$H55*$X55*$Y55),$D55)*$R55","v":{"$error":"#DIV/0!"}},{"$f":"MIN((IFERROR(IF(AND($V55<=AC$1,$W55>=AC$1),INDEX(Reliability!H$23:H$50,MATCH($S55,Reliability!$C$23:$C$50,0)),0),0)*IF($T55=\"n/a\",$D55*$Y55,$G55)+IFERROR(IF(AND($V55<=AC$1,$W55>=AC$1),INDEX(Reliability!H$23:H$50,MATCH($T55,Reliability!$C$23:$C$50,0)),0),0)*$H55*$X55*$Y55),$D55)*$R55","v":{"$error":"#DIV/0!"}},{"$f":"MIN((IFERROR(IF(AND($V55<=AD$1,$W55>=AD$1),INDEX(Reliability!I$23:I$50,MATCH($S55,Reliability!$C$23:$C$50,0)),0),0)*IF($T55=\"n/a\",$D55*$Y55,$G55)+IFERROR(IF(AND($V55<=AD$1,$W55>=AD$1),INDEX(Reliability!I$23:I$50,MATCH($T55,Reliability!$C$23:$C$50,0)),0),0)*$H55*$X55*$Y55),$D55)*$R55","v":{"$error":"#DIV/0!"}},{"$f":"MIN((IFERROR(IF(AND($V55<=AE$1,$W55>=AE$1),INDEX(Reliability!J$23:J$50,MATCH($S55,Reliability!$C$23:$C$50,0)),0),0)*IF($T55=\"n/a\",$D55*$Y55,$G55)+IFERROR(IF(AND($V55<=AE$1,$W55>=AE$1),INDEX(Reliability!J$23:J$50,MATCH($T55,Reliability!$C$23:$C$50,0)),0),0)*$H55*$X55*$Y55),$D55)*$R55","v":{"$error":"#DIV/0!"}},{"$f":"MIN((IFERROR(IF(AND($V55<=AF$1,$W55>=AF$1),INDEX(Reliability!K$23:K$50,MATCH($S55,Reliability!$C$23:$C$50,0)),0),0)*IF($T55=\"n/a\",$D55*$Y55,$G55)+IFERROR(IF(AND($V55<=AF$1,$W55>=AF$1),INDEX(Reliability!K$23:K$50,MATCH($T55,Reliability!$C$23:$C$50,0)),0),0)*$H55*$X55*$Y55),$D55)*$R55","v":{"$error":"#DIV/0!"}},{"$f":"MIN((IFERROR(IF(AND($V55<=AG$1,$W55>=AG$1),INDEX(Reliability!L$23:L$50,MATCH($S55,Reliability!$C$23:$C$50,0)),0),0)*IF($T55=\"n/a\",$D55*$Y55,$G55)+IFERROR(IF(AND($V55<=AG$1,$W55>=AG$1),INDEX(Reliability!L$23:L$50,MATCH($T55,Reliability!$C$23:$C$50,0)),0),0)*$H55*$X55*$Y55),$D55)*$R55","v":{"$error":"#DIV/0!"}},{"$f":"MIN((IFERROR(IF(AND($V55<=AH$1,$W55>=AH$1),INDEX(Reliability!M$23:M$50,MATCH($S55,Reliability!$C$23:$C$50,0)),0),0)*IF($T55=\"n/a\",$D55*$Y55,$G55)+IFERROR(IF(AND($V55<=AH$1,$W55>=AH$1),INDEX(Reliability!M$23:M$50,MATCH($T55,Reliability!$C$23:$C$50,0)),0),0)*$H55*$X55*$Y55),$D55)*$R55","v":{"$error":"#DIV/0!"}},{"$f":"MIN((IFERROR(IF(AND($V55<=AI$1,$W55>=AI$1),INDEX(Reliability!N$23:N$50,MATCH($S55,Reliability!$C$23:$C$50,0)),0),0)*IF($T55=\"n/a\",$D55*$Y55,$G55)+IFERROR(IF(AND($V55<=AI$1,$W55>=AI$1),INDEX(Reliability!N$23:N$50,MATCH($T55,Reliability!$C$23:$C$50,0)),0),0)*$H55*$X55*$Y55),$D55)*$R55","v":{"$error":"#DIV/0!"}},{"$f":"MIN((IFERROR(IF(AND($V55<=AJ$1,$W55>=AJ$1),INDEX(Reliability!O$23:O$50,MATCH($S55,Reliability!$C$23:$C$50,0)),0),0)*IF($T55=\"n/a\",$D55*$Y55,$G55)+IFERROR(IF(AND($V55<=AJ$1,$W55>=AJ$1),INDEX(Reliability!O$23:O$50,MATCH($T55,Reliability!$C$23:$C$50,0)),0),0)*$H55*$X55*$Y55),$D55)*$R55","v":{"$error":"#DIV/0!"}},{"$f":"MIN((IFERROR(IF(AND($V55<=AK$1,$W55>=AK$1),INDEX(Reliability!P$23:P$50,MATCH($S55,Reliability!$C$23:$C$50,0)),0),0)*IF($T55=\"n/a\",$D55*$Y55,$G55)+IFERROR(IF(AND($V55<=AK$1,$W55>=AK$1),INDEX(Reliability!P$23:P$50,MATCH($T55,Reliability!$C$23:$C$50,0)),0),0)*$H55*$X55*$Y55),$D55)*$R55","v":{"$error":"#DIV/0!"}}]
[null,{"$f":"unique_contracts!B57","v":"_NEW_GENERIC_BATTERY_STORAGE"},{"$f":"unique_contracts!D57","v":"PlannedNew"},{"$f":"unique_contracts!J57","v":0},{"$f":"unique_contracts!M57","v":"NotHybrid"},{"$f":"unique_contracts!N57","v":"Yes"},{"$f":"unique_contracts!P57","v":0},{"$f":"unique_contracts!R57","v":0},{"$f":"unique_contracts!V57","v":33.6},{"$f":"unique_contracts!AB57","v":"Buy"},{"$f":"unique_contracts!AM57","v":2026},{"$f":"unique_contracts!AN57","v":6},{"$f":"unique_contracts!AO57","v":1},{"$f":"unique_contracts!AP57","v":2041},{"$f":"unique_contracts!AQ57","v":5},{"$f":"unique_contracts!AR57","v":31},{"$f":"unique_contracts!BP57","v":"EnergyCapacity"},1,{"$f":"IFERROR(IF(AND(I56>0,E56=\"NotHybrid\"),_xlfn.CONCAT(MAX(MIN(ROUNDDOWN(I56/D56,0),8),4),INDEX(resources!$G:$G,MATCH(B56,resources!$A:$A,0))),INDEX(resources!$G:$G,MATCH(B56,resources!$A:$A,0))),\"n/a\")","v":"n/a"},"n/a","n/a",2026,2040,1,1,{"$f":"MIN((IFERROR(IF(AND($V56<=Z$1,$W56>=Z$1),INDEX(Reliability!E$23:E$50,MATCH($S56,Reliability!$C$23:$C$50,0)),0),0)*IF($T56=\"n/a\",$D56*$Y56,$G56)+IFERROR(IF(AND($V56<=Z$1,$W56>=Z$1),INDEX(Reliability!E$23:E$50,MATCH($T56,Reliability!$C$23:$C$50,0)),0),0)*$H56*$X56*$Y56),$D56)*$R56","v":0},{"$f":"MIN((IFERROR(IF(AND($V56<=AA$1,$W56>=AA$1),INDEX(Reliability!F$23:F$50,MATCH($S56,Reliability!$C$23:$C$50,0)),0),0)*IF($T56=\"n/a\",$D56*$Y56,$G56)+IFERROR(IF(AND($V56<=AA$1,$W56>=AA$1),INDEX(Reliability!F$23:F$50,MATCH($T56,Reliability!$C$23:$C$50,0)),0),0)*$H56*$X56*$Y56),$D56)*$R56","v":0},{"$f":"MIN((IFERROR(IF(AND($V56<=AB$1,$W56>=AB$1),INDEX(Reliability!G$23:G$50,MATCH($S56,Reliability!$C$23:$C$50,0)),0),0)*IF($T56=\"n/a\",$D56*$Y56,$G56)+IFERROR(IF(AND($V56<=AB$1,$W56>=AB$1),INDEX(Reliability!G$23:G$50,MATCH($T56,Reliability!$C$23:$C$50,0)),0),0)*$H56*$X56*$Y56),$D56)*$R56","v":0},{"$f":"MIN((IFERROR(IF(AND($V56<=AC$1,$W56>=AC$1),INDEX(Reliability!H$23:H$50,MATCH($S56,Reliability!$C$23:$C$50,0)),0),0)*IF($T56=\"n/a\",$D56*$Y56,$G56)+IFERROR(IF(AND($V56<=AC$1,$W56>=AC$1),INDEX(Reliability!H$23:H$50,MATCH($T56,Reliability!$C$23:$C$50,0)),0),0)*$H56*$X56*$Y56),$D56)*$R56","v":0},{"$f":"MIN((IFERROR(IF(AND($V56<=AD$1,$W56>=AD$1),INDEX(Reliability!I$23:I$50,MATCH($S56,Reliability!$C$23:$C$50,0)),0),0)*IF($T56=\"n/a\",$D56*$Y56,$G56)+IFERROR(IF(AND($V56<=AD$1,$W56>=AD$1),INDEX(Reliability!I$23:I$50,MATCH($T56,Reliability!$C$23:$C$50,0)),0),0)*$H56*$X56*$Y56),$D56)*$R56","v":0},{"$f":"MIN((IFERROR(IF(AND($V56<=AE$1,$W56>=AE$1),INDEX(Reliability!J$23:J$50,MATCH($S56,Reliability!$C$23:$C$50,0)),0),0)*IF($T56=\"n/a\",$D56*$Y56,$G56)+IFERROR(IF(AND($V56<=AE$1,$W56>=AE$1),INDEX(Reliability!J$23:J$50,MATCH($T56,Reliability!$C$23:$C$50,0)),0),0)*$H56*$X56*$Y56),$D56)*$R56","v":0},{"$f":"MIN((IFERROR(IF(AND($V56<=AF$1,$W56>=AF$1),INDEX(Reliability!K$23:K$50,MATCH($S56,Reliability!$C$23:$C$50,0)),0),0)*IF($T56=\"n/a\",$D56*$Y56,$G56)+IFERROR(IF(AND($V56<=AF$1,$W56>=AF$1),INDEX(Reliability!K$23:K$50,MATCH($T56,Reliability!$C$23:$C$50,0)),0),0)*$H56*$X56*$Y56),$D56)*$R56","v":0},{"$f":"MIN((IFERROR(IF(AND($V56<=AG$1,$W56>=AG$1),INDEX(Reliability!L$23:L$50,MATCH($S56,Reliability!$C$23:$C$50,0)),0),0)*IF($T56=\"n/a\",$D56*$Y56,$G56)+IFERROR(IF(AND($V56<=AG$1,$W56>=AG$1),INDEX(Reliability!L$23:L$50,MATCH($T56,Reliability!$C$23:$C$50,0)),0),0)*$H56*$X56*$Y56),$D56)*$R56","v":0},{"$f":"MIN((IFERROR(IF(AND($V56<=AH$1,$W56>=AH$1),INDEX(Reliability!M$23:M$50,MATCH($S56,Reliability!$C$23:$C$50,0)),0),0)*IF($T56=\"n/a\",$D56*$Y56,$G56)+IFERROR(IF(AND($V56<=AH$1,$W56>=AH$1),INDEX(Reliability!M$23:M$50,MATCH($T56,Reliability!$C$23:$C$50,0)),0),0)*$H56*$X56*$Y56),$D56)*$R56","v":0},{"$f":"MIN((IFERROR(IF(AND($V56<=AI$1,$W56>=AI$1),INDEX(Reliability!N$23:N$50,MATCH($S56,Reliability!$C$23:$C$50,0)),0),0)*IF($T56=\"n/a\",$D56*$Y56,$G56)+IFERROR(IF(AND($V56<=AI$1,$W56>=AI$1),INDEX(Reliability!N$23:N$50,MATCH($T56,Reliability!$C$23:$C$50,0)),0),0)*$H56*$X56*$Y56),$D56)*$R56","v":0},{"$f":"MIN((IFERROR(IF(AND($V56<=AJ$1,$W56>=AJ$1),INDEX(Reliability!O$23:O$50,MATCH($S56,Reliability!$C$23:$C$50,0)),0),0)*IF($T56=\"n/a\",$D56*$Y56,$G56)+IFERROR(IF(AND($V56<=AJ$1,$W56>=AJ$1),INDEX(Reliability!O$23:O$50,MATCH($T56,Reliability!$C$23:$C$50,0)),0),0)*$H56*$X56*$Y56),$D56)*$R56","v":0},{"$f":"MIN((IFERROR(IF(AND($V56<=AK$1,$W56>=AK$1),INDEX(Reliability!P$23:P$50,MATCH($S56,Reliability!$C$23:$C$50,0)),0),0)*IF($T56=\"n/a\",$D56*$Y56,$G56)+IFERROR(IF(AND($V56<=AK$1,$W56>=AK$1),INDEX(Reliability!P$23:P$50,MATCH($T56,Reliability!$C$23:$C$50,0)),0),0)*$H56*$X56*$Y56),$D56)*$R56","v":0}]
[null,{"$f":"unique_contracts!B58","v":"_EXISTING_GENERIC_COMBINED_CYCLE"},{"$f":"unique_contracts!D58","v":"Online"},{"$f":"unique_contracts!J58","v":0},{"$f":"unique_contracts!M58","v":"NotHybrid"},{"$f":"unique_contracts!N58","v":0},{"$f":"unique_contracts!P58","v":0},{"$f":"unique_contracts!R58","v":0},{"$f":"unique_contracts!V58","v":0},{"$f":"unique_contracts!AB58","v":"Buy"},{"$f":"unique_contracts!AM58","v":2024},{"$f":"unique_contracts!AN58","v":1},{"$f":"unique_contracts!AO58","v":1},{"$f":"unique_contracts!AP58","v":2026},{"$f":"unique_contracts!AQ58","v":12},{"$f":"unique_contracts!AR58","v":31},{"$f":"unique_contracts!BP58","v":"CapacityOnly"},1,{"$f":"IFERROR(IF(AND(I57>0,E57=\"NotHybrid\"),_xlfn.CONCAT(MAX(MIN(ROUNDDOWN(I57/D57,0),8),4),INDEX(resources!$G:$G,MATCH(B57,resources!$A:$A,0))),INDEX(resources!$G:$G,MATCH(B57,resources!$A:$A,0))),\"n/a\")","v":"gas_cc"},"n/a","gas_cc",2024,2026,1,1,{"$f":"MIN((IFERROR(IF(AND($V57<=Z$1,$W57>=Z$1),INDEX(Reliability!E$23:E$50,MATCH($S57,Reliability!$C$23:$C$50,0)),0),0)*IF($T57=\"n/a\",$D57*$Y57,$G57)+IFERROR(IF(AND($V57<=Z$1,$W57>=Z$1),INDEX(Reliability!E$23:E$50,MATCH($T57,Reliability!$C$23:$C$50,0)),0),0)*$H57*$X57*$Y57),$D57)*$R57","v":0},{"$f":"MIN((IFERROR(IF(AND($V57<=AA$1,$W57>=AA$1),INDEX(Reliability!F$23:F$50,MATCH($S57,Reliability!$C$23:$C$50,0)),0),0)*IF($T57=\"n/a\",$D57*$Y57,$G57)+IFERROR(IF(AND($V57<=AA$1,$W57>=AA$1),INDEX(Reliability!F$23:F$50,MATCH($T57,Reliability!$C$23:$C$50,0)),0),0)*$H57*$X57*$Y57),$D57)*$R57","v":0},{"$f":"MIN((IFERROR(IF(AND($V57<=AB$1,$W57>=AB$1),INDEX(Reliability!G$23:G$50,MATCH($S57,Reliability!$C$23:$C$50,0)),0),0)*IF($T57=\"n/a\",$D57*$Y57,$G57)+IFERROR(IF(AND($V57<=AB$1,$W57>=AB$1),INDEX(Reliability!G$23:G$50,MATCH($T57,Reliability!$C$23:$C$50,0)),0),0)*$H57*$X57*$Y57),$D57)*$R57","v":0},{"$f":"MIN((IFERROR(IF(AND($V57<=AC$1,$W57>=AC$1),INDEX(Reliability!H$23:H$50,MATCH($S57,Reliability!$C$23:$C$50,0)),0),0)*IF($T57=\"n/a\",$D57*$Y57,$G57)+IFERROR(IF(AND($V57<=AC$1,$W57>=AC$1),INDEX(Reliability!H$23:H$50,MATCH($T57,Reliability!$C$23:$C$50,0)),0),0)*$H57*$X57*$Y57),$D57)*$R57","v":0},{"$f":"MIN((IFERROR(IF(AND($V57<=AD$1,$W57>=AD$1),INDEX(Reliability!I$23:I$50,MATCH($S57,Reliability!$C$23:$C$50,0)),0),0)*IF($T57=\"n/a\",$D57*$Y57,$G57)+IFERROR(IF(AND($V57<=AD$1,$W57>=AD$1),INDEX(Reliability!I$23:I$50,MATCH($T57,Reliability!$C$23:$C$50,0)),0),0)*$H57*$X57*$Y57),$D57)*$R57","v":0},{"$f":"MIN((IFERROR(IF(AND($V57<=AE$1,$W57>=AE$1),INDEX(Reliability!J$23:J$50,MATCH($S57,Reliability!$C$23:$C$50,0)),0),0)*IF($T57=\"n/a\",$D57*$Y57,$G57)+IFERROR(IF(AND($V57<=AE$1,$W57>=AE$1),INDEX(Reliability!J$23:J$50,MATCH($T57,Reliability!$C$23:$C$50,0)),0),0)*$H57*$X57*$Y57),$D57)*$R57","v":0},{"$f":"MIN((IFERROR(IF(AND($V57<=AF$1,$W57>=AF$1),INDEX(Reliability!K$23:K$50,MATCH($S57,Reliability!$C$23:$C$50,0)),0),0)*IF($T57=\"n/a\",$D57*$Y57,$G57)+IFERROR(IF(AND($V57<=AF$1,$W57>=AF$1),INDEX(Reliability!K$23:K$50,MATCH($T57,Reliability!$C$23:$C$50,0)),0),0)*$H57*$X57*$Y57),$D57)*$R57","v":0},{"$f":"MIN((IFERROR(IF(AND($V57<=AG$1,$W57>=AG$1),INDEX(Reliability!L$23:L$50,MATCH($S57,Reliability!$C$23:$C$50,0)),0),0)*IF($T57=\"n/a\",$D57*$Y57,$G57)+IFERROR(IF(AND($V57<=AG$1,$W57>=AG$1),INDEX(Reliability!L$23:L$50,MATCH($T57,Reliability!$C$23:$C$50,0)),0),0)*$H57*$X57*$Y57),$D57)*$R57","v":0},{"$f":"MIN((IFERROR(IF(AND($V57<=AH$1,$W57>=AH$1),INDEX(Reliability!M$23:M$50,MATCH($S57,Reliability!$C$23:$C$50,0)),0),0)*IF($T57=\"n/a\",$D57*$Y57,$G57)+IFERROR(IF(AND($V57<=AH$1,$W57>=AH$1),INDEX(Reliability!M$23:M$50,MATCH($T57,Reliability!$C$23:$C$50,0)),0),0)*$H57*$X57*$Y57),$D57)*$R57","v":0},{"$f":"MIN((IFERROR(IF(AND($V57<=AI$1,$W57>=AI$1),INDEX(Reliability!N$23:N$50,MATCH($S57,Reliability!$C$23:$C$50,0)),0),0)*IF($T57=\"n/a\",$D57*$Y57,$G57)+IFERROR(IF(AND($V57<=AI$1,$W57>=AI$1),INDEX(Reliability!N$23:N$50,MATCH($T57,Reliability!$C$23:$C$50,0)),0),0)*$H57*$X57*$Y57),$D57)*$R57","v":0},{"$f":"MIN((IFERROR(IF(AND($V57<=AJ$1,$W57>=AJ$1),INDEX(Reliability!O$23:O$50,MATCH($S57,Reliability!$C$23:$C$50,0)),0),0)*IF($T57=\"n/a\",$D57*$Y57,$G57)+IFERROR(IF(AND($V57<=AJ$1,$W57>=AJ$1),INDEX(Reliability!O$23:O$50,MATCH($T57,Reliability!$C$23:$C$50,0)),0),0)*$H57*$X57*$Y57),$D57)*$R57","v":0},{"$f":"MIN((IFERROR(IF(AND($V57<=AK$1,$W57>=AK$1),INDEX(Reliability!P$23:P$50,MATCH($S57,Reliability!$C$23:$C$50,0)),0),0)*IF($T57=\"n/a\",$D57*$Y57,$G57)+IFERROR(IF(AND($V57<=AK$1,$W57>=AK$1),INDEX(Reliability!P$23:P$50,MATCH($T57,Reliability!$C$23:$C$50,0)),0),0)*$H57*$X57*$Y57),$D57)*$R57","v":0}]
[null,{"$f":"unique_contracts!B59","v":"_EXISTING_GENERIC_COMBINED_CYCLE"},{"$f":"unique_contracts!D59","v":"Online"},{"$f":"unique_contracts!J59","v":0},{"$f":"unique_contracts!M59","v":"NotHybrid"},{"$f":"unique_contracts!N59","v":0},{"$f":"unique_contracts!P59","v":0},{"$f":"unique_contracts!R59","v":0},{"$f":"unique_contracts!V59","v":0},{"$f":"unique_contracts!AB59","v":"Buy"},{"$f":"unique_contracts!AM59","v":2024},{"$f":"unique_contracts!AN59","v":1},{"$f":"unique_contracts!AO59","v":1},{"$f":"unique_contracts!AP59","v":2025},{"$f":"unique_contracts!AQ59","v":12},{"$f":"unique_contracts!AR59","v":31},{"$f":"unique_contracts!BP59","v":"CapacityOnly"},1,{"$f":"IFERROR(IF(AND(I58>0,E58=\"NotHybrid\"),_xlfn.CONCAT(MAX(MIN(ROUNDDOWN(I58/D58,0),8),4),INDEX(resources!$G:$G,MATCH(B58,resources!$A:$A,0))),INDEX(resources!$G:$G,MATCH(B58,resources!$A:$A,0))),\"n/a\")","v":"gas_cc"},"n/a","gas_cc",2024,2025,1,1,{"$f":"MIN((IFERROR(IF(AND($V58<=Z$1,$W58>=Z$1),INDEX(Reliability!E$23:E$50,MATCH($S58,Reliability!$C$23:$C$50,0)),0),0)*IF($T58=\"n/a\",$D58*$Y58,$G58)+IFERROR(IF(AND($V58<=Z$1,$W58>=Z$1),INDEX(Reliability!E$23:E$50,MATCH($T58,Reliability!$C$23:$C$50,0)),0),0)*$H58*$X58*$Y58),$D58)*$R58","v":0},{"$f":"MIN((IFERROR(IF(AND($V58<=AA$1,$W58>=AA$1),INDEX(Reliability!F$23:F$50,MATCH($S58,Reliability!$C$23:$C$50,0)),0),0)*IF($T58=\"n/a\",$D58*$Y58,$G58)+IFERROR(IF(AND($V58<=AA$1,$W58>=AA$1),INDEX(Reliability!F$23:F$50,MATCH($T58,Reliability!$C$23:$C$50,0)),0),0)*$H58*$X58*$Y58),$D58)*$R58","v":0},{"$f":"MIN((IFERROR(IF(AND($V58<=AB$1,$W58>=AB$1),INDEX(Reliability!G$23:G$50,MATCH($S58,Reliability!$C$23:$C$50,0)),0),0)*IF($T58=\"n/a\",$D58*$Y58,$G58)+IFERROR(IF(AND($V58<=AB$1,$W58>=AB$1),INDEX(Reliability!G$23:G$50,MATCH($T58,Reliability!$C$23:$C$50,0)),0),0)*$H58*$X58*$Y58),$D58)*$R58","v":0},{"$f":"MIN((IFERROR(IF(AND($V58<=AC$1,$W58>=AC$1),INDEX(Reliability!H$23:H$50,MATCH($S58,Reliability!$C$23:$C$50,0)),0),0)*IF($T58=\"n/a\",$D58*$Y58,$G58)+IFERROR(IF(AND($V58<=AC$1,$W58>=AC$1),INDEX(Reliability!H$23:H$50,MATCH($T58,Reliability!$C$23:$C$50,0)),0),0)*$H58*$X58*$Y58),$D58)*$R58","v":0},{"$f":"MIN((IFERROR(IF(AND($V58<=AD$1,$W58>=AD$1),INDEX(Reliability!I$23:I$50,MATCH($S58,Reliability!$C$23:$C$50,0)),0),0)*IF($T58=\"n/a\",$D58*$Y58,$G58)+IFERROR(IF(AND($V58<=AD$1,$W58>=AD$1),INDEX(Reliability!I$23:I$50,MATCH($T58,Reliability!$C$23:$C$50,0)),0),0)*$H58*$X58*$Y58),$D58)*$R58","v":0},{"$f":"MIN((IFERROR(IF(AND($V58<=AE$1,$W58>=AE$1),INDEX(Reliability!J$23:J$50,MATCH($S58,Reliability!$C$23:$C$50,0)),0),0)*IF($T58=\"n/a\",$D58*$Y58,$G58)+IFERROR(IF(AND($V58<=AE$1,$W58>=AE$1),INDEX(Reliability!J$23:J$50,MATCH($T58,Reliability!$C$23:$C$50,0)),0),0)*$H58*$X58*$Y58),$D58)*$R58","v":0},{"$f":"MIN((IFERROR(IF(AND($V58<=AF$1,$W58>=AF$1),INDEX(Reliability!K$23:K$50,MATCH($S58,Reliability!$C$23:$C$50,0)),0),0)*IF($T58=\"n/a\",$D58*$Y58,$G58)+IFERROR(IF(AND($V58<=AF$1,$W58>=AF$1),INDEX(Reliability!K$23:K$50,MATCH($T58,Reliability!$C$23:$C$50,0)),0),0)*$H58*$X58*$Y58),$D58)*$R58","v":0},{"$f":"MIN((IFERROR(IF(AND($V58<=AG$1,$W58>=AG$1),INDEX(Reliability!L$23:L$50,MATCH($S58,Reliability!$C$23:$C$50,0)),0),0)*IF($T58=\"n/a\",$D58*$Y58,$G58)+IFERROR(IF(AND($V58<=AG$1,$W58>=AG$1),INDEX(Reliability!L$23:L$50,MATCH($T58,Reliability!$C$23:$C$50,0)),0),0)*$H58*$X58*$Y58),$D58)*$R58","v":0},{"$f":"MIN((IFERROR(IF(AND($V58<=AH$1,$W58>=AH$1),INDEX(Reliability!M$23:M$50,MATCH($S58,Reliability!$C$23:$C$50,0)),0),0)*IF($T58=\"n/a\",$D58*$Y58,$G58)+IFERROR(IF(AND($V58<=AH$1,$W58>=AH$1),INDEX(Reliability!M$23:M$50,MATCH($T58,Reliability!$C$23:$C$50,0)),0),0)*$H58*$X58*$Y58),$D58)*$R58","v":0},{"$f":"MIN((IFERROR(IF(AND($V58<=AI$1,$W58>=AI$1),INDEX(Reliability!N$23:N$50,MATCH($S58,Reliability!$C$23:$C$50,0)),0),0)*IF($T58=\"n/a\",$D58*$Y58,$G58)+IFERROR(IF(AND($V58<=AI$1,$W58>=AI$1),INDEX(Reliability!N$23:N$50,MATCH($T58,Reliability!$C$23:$C$50,0)),0),0)*$H58*$X58*$Y58),$D58)*$R58","v":0},{"$f":"MIN((IFERROR(IF(AND($V58<=AJ$1,$W58>=AJ$1),INDEX(Reliability!O$23:O$50,MATCH($S58,Reliability!$C$23:$C$50,0)),0),0)*IF($T58=\"n/a\",$D58*$Y58,$G58)+IFERROR(IF(AND($V58<=AJ$1,$W58>=AJ$1),INDEX(Reliability!O$23:O$50,MATCH($T58,Reliability!$C$23:$C$50,0)),0),0)*$H58*$X58*$Y58),$D58)*$R58","v":0},{"$f":"MIN((IFERROR(IF(AND($V58<=AK$1,$W58>=AK$1),INDEX(Reliability!P$23:P$50,MATCH($S58,Reliability!$C$23:$C$50,0)),0),0)*IF($T58=\"n/a\",$D58*$Y58,$G58)+IFERROR(IF(AND($V58<=AK$1,$W58>=AK$1),INDEX(Reliability!P$23:P$50,MATCH($T58,Reliability!$C$23:$C$50,0)),0),0)*$H58*$X58*$Y58),$D58)*$R58","v":0}]
[null,{"$f":"unique_contracts!B60","v":"_EXISTING_GENERIC_COMBINED_CYCLE"},{"$f":"unique_contracts!D60","v":"Online"},{"$f":"unique_contracts!J60","v":0},{"$f":"unique_contracts!M60","v":"NotHybrid"},{"$f":"unique_contracts!N60","v":0},{"$f":"unique_contracts!P60","v":0},{"$f":"unique_contracts!R60","v":0},{"$f":"unique_contracts!V60","v":0},{"$f":"unique_contracts!AB60","v":"Buy"},{"$f":"unique_contracts!AM60","v":2024},{"$f":"unique_contracts!AN60","v":1},{"$f":"unique_contracts!AO60","v":1},{"$f":"unique_contracts!AP60","v":2024},{"$f":"unique_contracts!AQ60","v":12},{"$f":"unique_contracts!AR60","v":31},{"$f":"unique_contracts!BP60","v":"CapacityOnly"},1,{"$f":"IFERROR(IF(AND(I59>0,E59=\"NotHybrid\"),_xlfn.CONCAT(MAX(MIN(ROUNDDOWN(I59/D59,0),8),4),INDEX(resources!$G:$G,MATCH(B59,resources!$A:$A,0))),INDEX(resources!$G:$G,MATCH(B59,resources!$A:$A,0))),\"n/a\")","v":"gas_cc"},"n/a","gas_cc",2024,2024,1,1,{"$f":"MIN((IFERROR(IF(AND($V59<=Z$1,$W59>=Z$1),INDEX(Reliability!E$23:E$50,MATCH($S59,Reliability!$C$23:$C$50,0)),0),0)*IF($T59=\"n/a\",$D59*$Y59,$G59)+IFERROR(IF(AND($V59<=Z$1,$W59>=Z$1),INDEX(Reliability!E$23:E$50,MATCH($T59,Reliability!$C$23:$C$50,0)),0),0)*$H59*$X59*$Y59),$D59)*$R59","v":0},{"$f":"MIN((IFERROR(IF(AND($V59<=AA$1,$W59>=AA$1),INDEX(Reliability!F$23:F$50,MATCH($S59,Reliability!$C$23:$C$50,0)),0),0)*IF($T59=\"n/a\",$D59*$Y59,$G59)+IFERROR(IF(AND($V59<=AA$1,$W59>=AA$1),INDEX(Reliability!F$23:F$50,MATCH($T59,Reliability!$C$23:$C$50,0)),0),0)*$H59*$X59*$Y59),$D59)*$R59","v":0},{"$f":"MIN((IFERROR(IF(AND($V59<=AB$1,$W59>=AB$1),INDEX(Reliability!G$23:G$50,MATCH($S59,Reliability!$C$23:$C$50,0)),0),0)*IF($T59=\"n/a\",$D59*$Y59,$G59)+IFERROR(IF(AND($V59<=AB$1,$W59>=AB$1),INDEX(Reliability!G$23:G$50,MATCH($T59,Reliability!$C$23:$C$50,0)),0),0)*$H59*$X59*$Y59),$D59)*$R59","v":0},{"$f":"MIN((IFERROR(IF(AND($V59<=AC$1,$W59>=AC$1),INDEX(Reliability!H$23:H$50,MATCH($S59,Reliability!$C$23:$C$50,0)),0),0)*IF($T59=\"n/a\",$D59*$Y59,$G59)+IFERROR(IF(AND($V59<=AC$1,$W59>=AC$1),INDEX(Reliability!H$23:H$50,MATCH($T59,Reliability!$C$23:$C$50,0)),0),0)*$H59*$X59*$Y59),$D59)*$R59","v":0},{"$f":"MIN((IFERROR(IF(AND($V59<=AD$1,$W59>=AD$1),INDEX(Reliability!I$23:I$50,MATCH($S59,Reliability!$C$23:$C$50,0)),0),0)*IF($T59=\"n/a\",$D59*$Y59,$G59)+IFERROR(IF(AND($V59<=AD$1,$W59>=AD$1),INDEX(Reliability!I$23:I$50,MATCH($T59,Reliability!$C$23:$C$50,0)),0),0)*$H59*$X59*$Y59),$D59)*$R59","v":0},{"$f":"MIN((IFERROR(IF(AND($V59<=AE$1,$W59>=AE$1),INDEX(Reliability!J$23:J$50,MATCH($S59,Reliability!$C$23:$C$50,0)),0),0)*IF($T59=\"n/a\",$D59*$Y59,$G59)+IFERROR(IF(AND($V59<=AE$1,$W59>=AE$1),INDEX(Reliability!J$23:J$50,MATCH($T59,Reliability!$C$23:$C$50,0)),0),0)*$H59*$X59*$Y59),$D59)*$R59","v":0},{"$f":"MIN((IFERROR(IF(AND($V59<=AF$1,$W59>=AF$1),INDEX(Reliability!K$23:K$50,MATCH($S59,Reliability!$C$23:$C$50,0)),0),0)*IF($T59=\"n/a\",$D59*$Y59,$G59)+IFERROR(IF(AND($V59<=AF$1,$W59>=AF$1),INDEX(Reliability!K$23:K$50,MATCH($T59,Reliability!$C$23:$C$50,0)),0),0)*$H59*$X59*$Y59),$D59)*$R59","v":0},{"$f":"MIN((IFERROR(IF(AND($V59<=AG$1,$W59>=AG$1),INDEX(Reliability!L$23:L$50,MATCH($S59,Reliability!$C$23:$C$50,0)),0),0)*IF($T59=\"n/a\",$D59*$Y59,$G59)+IFERROR(IF(AND($V59<=AG$1,$W59>=AG$1),INDEX(Reliability!L$23:L$50,MATCH($T59,Reliability!$C$23:$C$50,0)),0),0)*$H59*$X59*$Y59),$D59)*$R59","v":0},{"$f":"MIN((IFERROR(IF(AND($V59<=AH$1,$W59>=AH$1),INDEX(Reliability!M$23:M$50,MATCH($S59,Reliability!$C$23:$C$50,0)),0),0)*IF($T59=\"n/a\",$D59*$Y59,$G59)+IFERROR(IF(AND($V59<=AH$1,$W59>=AH$1),INDEX(Reliability!M$23:M$50,MATCH($T59,Reliability!$C$23:$C$50,0)),0),0)*$H59*$X59*$Y59),$D59)*$R59","v":0},{"$f":"MIN((IFERROR(IF(AND($V59<=AI$1,$W59>=AI$1),INDEX(Reliability!N$23:N$50,MATCH($S59,Reliability!$C$23:$C$50,0)),0),0)*IF($T59=\"n/a\",$D59*$Y59,$G59)+IFERROR(IF(AND($V59<=AI$1,$W59>=AI$1),INDEX(Reliability!N$23:N$50,MATCH($T59,Reliability!$C$23:$C$50,0)),0),0)*$H59*$X59*$Y59),$D59)*$R59","v":0},{"$f":"MIN((IFERROR(IF(AND($V59<=AJ$1,$W59>=AJ$1),INDEX(Reliability!O$23:O$50,MATCH($S59,Reliability!$C$23:$C$50,0)),0),0)*IF($T59=\"n/a\",$D59*$Y59,$G59)+IFERROR(IF(AND($V59<=AJ$1,$W59>=AJ$1),INDEX(Reliability!O$23:O$50,MATCH($T59,Reliability!$C$23:$C$50,0)),0),0)*$H59*$X59*$Y59),$D59)*$R59","v":0},{"$f":"MIN((IFERROR(IF(AND($V59<=AK$1,$W59>=AK$1),INDEX(Reliability!P$23:P$50,MATCH($S59,Reliability!$C$23:$C$50,0)),0),0)*IF($T59=\"n/a\",$D59*$Y59,$G59)+IFERROR(IF(AND($V59<=AK$1,$W59>=AK$1),INDEX(Reliability!P$23:P$50,MATCH($T59,Reliability!$C$23:$C$50,0)),0),0)*$H59*$X59*$Y59),$D59)*$R59","v":0}]
[null,{"$f":"unique_contracts!B61","v":"_EXISTING_GENERIC_COGEN"},{"$f":"unique_contracts!D61","v":"Online"},{"$f":"unique_contracts!J61","v":0},{"$f":"unique_contracts!M61","v":"NotHybrid"},{"$f":"unique_contracts!N61","v":0},{"$f":"unique_contracts!P61","v":0},{"$f":"unique_contracts!R61","v":0},{"$f":"unique_contracts!V61","v":0},{"$f":"unique_contracts!AB61","v":"Buy"},{"$f":"unique_contracts!AM61","v":2024},{"$f":"unique_contracts!AN61","v":1},{"$f":"unique_contracts!AO61","v":1},{"$f":"unique_contracts!AP61","v":2024},{"$f":"unique_contracts!AQ61","v":12},{"$f":"unique_contracts!AR61","v":31},{"$f":"unique_contracts!BP61","v":"CapacityOnly"},1,{"$f":"IFERROR(IF(AND(I60>0,E60=\"NotHybrid\"),_xlfn.CONCAT(MAX(MIN(ROUNDDOWN(I60/D60,0),8),4),INDEX(resources!$G:$G,MATCH(B60,resources!$A:$A,0))),INDEX(resources!$G:$G,MATCH(B60,resources!$A:$A,0))),\"n/a\")","v":"cogen"},"n/a","cogen",2024,2024,1,1,{"$f":"MIN((IFERROR(IF(AND($V60<=Z$1,$W60>=Z$1),INDEX(Reliability!E$23:E$50,MATCH($S60,Reliability!$C$23:$C$50,0)),0),0)*IF($T60=\"n/a\",$D60*$Y60,$G60)+IFERROR(IF(AND($V60<=Z$1,$W60>=Z$1),INDEX(Reliability!E$23:E$50,MATCH($T60,Reliability!$C$23:$C$50,0)),0),0)*$H60*$X60*$Y60),$D60)*$R60","v":0},{"$f":"MIN((IFERROR(IF(AND($V60<=AA$1,$W60>=AA$1),INDEX(Reliability!F$23:F$50,MATCH($S60,Reliability!$C$23:$C$50,0)),0),0)*IF($T60=\"n/a\",$D60*$Y60,$G60)+IFERROR(IF(AND($V60<=AA$1,$W60>=AA$1),INDEX(Reliability!F$23:F$50,MATCH($T60,Reliability!$C$23:$C$50,0)),0),0)*$H60*$X60*$Y60),$D60)*$R60","v":0},{"$f":"MIN((IFERROR(IF(AND($V60<=AB$1,$W60>=AB$1),INDEX(Reliability!G$23:G$50,MATCH($S60,Reliability!$C$23:$C$50,0)),0),0)*IF($T60=\"n/a\",$D60*$Y60,$G60)+IFERROR(IF(AND($V60<=AB$1,$W60>=AB$1),INDEX(Reliability!G$23:G$50,MATCH($T60,Reliability!$C$23:$C$50,0)),0),0)*$H60*$X60*$Y60),$D60)*$R60","v":0},{"$f":"MIN((IFERROR(IF(AND($V60<=AC$1,$W60>=AC$1),INDEX(Reliability!H$23:H$50,MATCH($S60,Reliability!$C$23:$C$50,0)),0),0)*IF($T60=\"n/a\",$D60*$Y60,$G60)+IFERROR(IF(AND($V60<=AC$1,$W60>=AC$1),INDEX(Reliability!H$23:H$50,MATCH($T60,Reliability!$C$23:$C$50,0)),0),0)*$H60*$X60*$Y60),$D60)*$R60","v":0},{"$f":"MIN((IFERROR(IF(AND($V60<=AD$1,$W60>=AD$1),INDEX(Reliability!I$23:I$50,MATCH($S60,Reliability!$C$23:$C$50,0)),0),0)*IF($T60=\"n/a\",$D60*$Y60,$G60)+IFERROR(IF(AND($V60<=AD$1,$W60>=AD$1),INDEX(Reliability!I$23:I$50,MATCH($T60,Reliability!$C$23:$C$50,0)),0),0)*$H60*$X60*$Y60),$D60)*$R60","v":0},{"$f":"MIN((IFERROR(IF(AND($V60<=AE$1,$W60>=AE$1),INDEX(Reliability!J$23:J$50,MATCH($S60,Reliability!$C$23:$C$50,0)),0),0)*IF($T60=\"n/a\",$D60*$Y60,$G60)+IFERROR(IF(AND($V60<=AE$1,$W60>=AE$1),INDEX(Reliability!J$23:J$50,MATCH($T60,Reliability!$C$23:$C$50,0)),0),0)*$H60*$X60*$Y60),$D60)*$R60","v":0},{"$f":"MIN((IFERROR(IF(AND($V60<=AF$1,$W60>=AF$1),INDEX(Reliability!K$23:K$50,MATCH($S60,Reliability!$C$23:$C$50,0)),0),0)*IF($T60=\"n/a\",$D60*$Y60,$G60)+IFERROR(IF(AND($V60<=AF$1,$W60>=AF$1),INDEX(Reliability!K$23:K$50,MATCH($T60,Reliability!$C$23:$C$50,0)),0),0)*$H60*$X60*$Y60),$D60)*$R60","v":0},{"$f":"MIN((IFERROR(IF(AND($V60<=AG$1,$W60>=AG$1),INDEX(Reliability!L$23:L$50,MATCH($S60,Reliability!$C$23:$C$50,0)),0),0)*IF($T60=\"n/a\",$D60*$Y60,$G60)+IFERROR(IF(AND($V60<=AG$1,$W60>=AG$1),INDEX(Reliability!L$23:L$50,MATCH($T60,Reliability!$C$23:$C$50,0)),0),0)*$H60*$X60*$Y60),$D60)*$R60","v":0},{"$f":"MIN((IFERROR(IF(AND($V60<=AH$1,$W60>=AH$1),INDEX(Reliability!M$23:M$50,MATCH($S60,Reliability!$C$23:$C$50,0)),0),0)*IF($T60=\"n/a\",$D60*$Y60,$G60)+IFERROR(IF(AND($V60<=AH$1,$W60>=AH$1),INDEX(Reliability!M$23:M$50,MATCH($T60,Reliability!$C$23:$C$50,0)),0),0)*$H60*$X60*$Y60),$D60)*$R60","v":0},{"$f":"MIN((IFERROR(IF(AND($V60<=AI$1,$W60>=AI$1),INDEX(Reliability!N$23:N$50,MATCH($S60,Reliability!$C$23:$C$50,0)),0),0)*IF($T60=\"n/a\",$D60*$Y60,$G60)+IFERROR(IF(AND($V60<=AI$1,$W60>=AI$1),INDEX(Reliability!N$23:N$50,MATCH($T60,Reliability!$C$23:$C$50,0)),0),0)*$H60*$X60*$Y60),$D60)*$R60","v":0},{"$f":"MIN((IFERROR(IF(AND($V60<=AJ$1,$W60>=AJ$1),INDEX(Reliability!O$23:O$50,MATCH($S60,Reliability!$C$23:$C$50,0)),0),0)*IF($T60=\"n/a\",$D60*$Y60,$G60)+IFERROR(IF(AND($V60<=AJ$1,$W60>=AJ$1),INDEX(Reliability!O$23:O$50,MATCH($T60,Reliability!$C$23:$C$50,0)),0),0)*$H60*$X60*$Y60),$D60)*$R60","v":0},{"$f":"MIN((IFERROR(IF(AND($V60<=AK$1,$W60>=AK$1),INDEX(Reliability!P$23:P$50,MATCH($S60,Reliability!$C$23:$C$50,0)),0),0)*IF($T60=\"n/a\",$D60*$Y60,$G60)+IFERROR(IF(AND($V60<=AK$1,$W60>=AK$1),INDEX(Reliability!P$23:P$50,MATCH($T60,Reliability!$C$23:$C$50,0)),0),0)*$H60*$X60*$Y60),$D60)*$R60","v":0}]
[null,{"$f":"unique_contracts!B62","v":"_EXISTING_GENERIC_COGEN"},{"$f":"unique_contracts!D62","v":"Online"},{"$f":"unique_contracts!J62","v":0},{"$f":"unique_contracts!M62","v":"NotHybrid"},{"$f":"unique_contracts!N62","v":0},{"$f":"unique_contracts!P62","v":0},{"$f":"unique_contracts!R62","v":0},{"$f":"unique_contracts!V62","v":0},{"$f":"unique_contracts!AB62","v":"Buy"},{"$f":"unique_contracts!AM62","v":2024},{"$f":"unique_contracts!AN62","v":1},{"$f":"unique_contracts!AO62","v":1},{"$f":"unique_contracts!AP62","v":2025},{"$f":"unique_contracts!AQ62","v":12},{"$f":"unique_contracts!AR62","v":31},{"$f":"unique_contracts!BP62","v":"CapacityOnly"},1,{"$f":"IFERROR(IF(AND(I61>0,E61=\"NotHybrid\"),_xlfn.CONCAT(MAX(MIN(ROUNDDOWN(I61/D61,0),8),4),INDEX(resources!$G:$G,MATCH(B61,resources!$A:$A,0))),INDEX(resources!$G:$G,MATCH(B61,resources!$A:$A,0))),\"n/a\")","v":"cogen"},"n/a","cogen",2024,2025,1,1,{"$f":"MIN((IFERROR(IF(AND($V61<=Z$1,$W61>=Z$1),INDEX(Reliability!E$23:E$50,MATCH($S61,Reliability!$C$23:$C$50,0)),0),0)*IF($T61=\"n/a\",$D61*$Y61,$G61)+IFERROR(IF(AND($V61<=Z$1,$W61>=Z$1),INDEX(Reliability!E$23:E$50,MATCH($T61,Reliability!$C$23:$C$50,0)),0),0)*$H61*$X61*$Y61),$D61)*$R61","v":0},{"$f":"MIN((IFERROR(IF(AND($V61<=AA$1,$W61>=AA$1),INDEX(Reliability!F$23:F$50,MATCH($S61,Reliability!$C$23:$C$50,0)),0),0)*IF($T61=\"n/a\",$D61*$Y61,$G61)+IFERROR(IF(AND($V61<=AA$1,$W61>=AA$1),INDEX(Reliability!F$23:F$50,MATCH($T61,Reliability!$C$23:$C$50,0)),0),0)*$H61*$X61*$Y61),$D61)*$R61","v":0},{"$f":"MIN((IFERROR(IF(AND($V61<=AB$1,$W61>=AB$1),INDEX(Reliability!G$23:G$50,MATCH($S61,Reliability!$C$23:$C$50,0)),0),0)*IF($T61=\"n/a\",$D61*$Y61,$G61)+IFERROR(IF(AND($V61<=AB$1,$W61>=AB$1),INDEX(Reliability!G$23:G$50,MATCH($T61,Reliability!$C$23:$C$50,0)),0),0)*$H61*$X61*$Y61),$D61)*$R61","v":0},{"$f":"MIN((IFERROR(IF(AND($V61<=AC$1,$W61>=AC$1),INDEX(Reliability!H$23:H$50,MATCH($S61,Reliability!$C$23:$C$50,0)),0),0)*IF($T61=\"n/a\",$D61*$Y61,$G61)+IFERROR(IF(AND($V61<=AC$1,$W61>=AC$1),INDEX(Reliability!H$23:H$50,MATCH($T61,Reliability!$C$23:$C$50,0)),0),0)*$H61*$X61*$Y61),$D61)*$R61","v":0},{"$f":"MIN((IFERROR(IF(AND($V61<=AD$1,$W61>=AD$1),INDEX(Reliability!I$23:I$50,MATCH($S61,Reliability!$C$23:$C$50,0)),0),0)*IF($T61=\"n/a\",$D61*$Y61,$G61)+IFERROR(IF(AND($V61<=AD$1,$W61>=AD$1),INDEX(Reliability!I$23:I$50,MATCH($T61,Reliability!$C$23:$C$50,0)),0),0)*$H61*$X61*$Y61),$D61)*$R61","v":0},{"$f":"MIN((IFERROR(IF(AND($V61<=AE$1,$W61>=AE$1),INDEX(Reliability!J$23:J$50,MATCH($S61,Reliability!$C$23:$C$50,0)),0),0)*IF($T61=\"n/a\",$D61*$Y61,$G61)+IFERROR(IF(AND($V61<=AE$1,$W61>=AE$1),INDEX(Reliability!J$23:J$50,MATCH($T61,Reliability!$C$23:$C$50,0)),0),0)*$H61*$X61*$Y61),$D61)*$R61","v":0},{"$f":"MIN((IFERROR(IF(AND($V61<=AF$1,$W61>=AF$1),INDEX(Reliability!K$23:K$50,MATCH($S61,Reliability!$C$23:$C$50,0)),0),0)*IF($T61=\"n/a\",$D61*$Y61,$G61)+IFERROR(IF(AND($V61<=AF$1,$W61>=AF$1),INDEX(Reliability!K$23:K$50,MATCH($T61,Reliability!$C$23:$C$50,0)),0),0)*$H61*$X61*$Y61),$D61)*$R61","v":0},{"$f":"MIN((IFERROR(IF(AND($V61<=AG$1,$W61>=AG$1),INDEX(Reliability!L$23:L$50,MATCH($S61,Reliability!$C$23:$C$50,0)),0),0)*IF($T61=\"n/a\",$D61*$Y61,$G61)+IFERROR(IF(AND($V61<=AG$1,$W61>=AG$1),INDEX(Reliability!L$23:L$50,MATCH($T61,Reliability!$C$23:$C$50,0)),0),0)*$H61*$X61*$Y61),$D61)*$R61","v":0},{"$f":"MIN((IFERROR(IF(AND($V61<=AH$1,$W61>=AH$1),INDEX(Reliability!M$23:M$50,MATCH($S61,Reliability!$C$23:$C$50,0)),0),0)*IF($T61=\"n/a\",$D61*$Y61,$G61)+IFERROR(IF(AND($V61<=AH$1,$W61>=AH$1),INDEX(Reliability!M$23:M$50,MATCH($T61,Reliability!$C$23:$C$50,0)),0),0)*$H61*$X61*$Y61),$D61)*$R61","v":0},{"$f":"MIN((IFERROR(IF(AND($V61<=AI$1,$W61>=AI$1),INDEX(Reliability!N$23:N$50,MATCH($S61,Reliability!$C$23:$C$50,0)),0),0)*IF($T61=\"n/a\",$D61*$Y61,$G61)+IFERROR(IF(AND($V61<=AI$1,$W61>=AI$1),INDEX(Reliability!N$23:N$50,MATCH($T61,Reliability!$C$23:$C$50,0)),0),0)*$H61*$X61*$Y61),$D61)*$R61","v":0},{"$f":"MIN((IFERROR(IF(AND($V61<=AJ$1,$W61>=AJ$1),INDEX(Reliability!O$23:O$50,MATCH($S61,Reliability!$C$23:$C$50,0)),0),0)*IF($T61=\"n/a\",$D61*$Y61,$G61)+IFERROR(IF(AND($V61<=AJ$1,$W61>=AJ$1),INDEX(Reliability!O$23:O$50,MATCH($T61,Reliability!$C$23:$C$50,0)),0),0)*$H61*$X61*$Y61),$D61)*$R61","v":0},{"$f":"MIN((IFERROR(IF(AND($V61<=AK$1,$W61>=AK$1),INDEX(Reliability!P$23:P$50,MATCH($S61,Reliability!$C$23:$C$50,0)),0),0)*IF($T61=\"n/a\",$D61*$Y61,$G61)+IFERROR(IF(AND($V61<=AK$1,$W61>=AK$1),INDEX(Reliability!P$23:P$50,MATCH($T61,Reliability!$C$23:$C$50,0)),0),0)*$H61*$X61*$Y61),$D61)*$R61","v":0}]
[null,{"$f":"unique_contracts!B63","v":"_EXISTING_GENERIC_COGEN"},{"$f":"unique_contracts!D63","v":"Online"},{"$f":"unique_contracts!J63","v":0},{"$f":"unique_contracts!M63","v":"NotHybrid"},{"$f":"unique_contracts!N63","v":0},{"$f":"unique_contracts!P63","v":0},{"$f":"unique_contracts!R63","v":0},{"$f":"unique_contracts!V63","v":0},{"$f":"unique_contracts!AB63","v":"Buy"},{"$f":"unique_contracts!AM63","v":2024},{"$f":"unique_contracts!AN63","v":1},{"$f":"unique_contracts!AO63","v":1},{"$f":"unique_contracts!AP63","v":2026},{"$f":"unique_contracts!AQ63","v":12},{"$f":"unique_contracts!AR63","v":31},{"$f":"unique_contracts!BP63","v":"CapacityOnly"},1,{"$f":"IFERROR(IF(AND(I62>0,E62=\"NotHybrid\"),_xlfn.CONCAT(MAX(MIN(ROUNDDOWN(I62/D62,0),8),4),INDEX(resources!$G:$G,MATCH(B62,resources!$A:$A,0))),INDEX(resources!$G:$G,MATCH(B62,resources!$A:$A,0))),\"n/a\")","v":"cogen"},"n/a","cogen",2024,2026,1,1,{"$f":"MIN((IFERROR(IF(AND($V62<=Z$1,$W62>=Z$1),INDEX(Reliability!E$23:E$50,MATCH($S62,Reliability!$C$23:$C$50,0)),0),0)*IF($T62=\"n/a\",$D62*$Y62,$G62)+IFERROR(IF(AND($V62<=Z$1,$W62>=Z$1),INDEX(Reliability!E$23:E$50,MATCH($T62,Reliability!$C$23:$C$50,0)),0),0)*$H62*$X62*$Y62),$D62)*$R62","v":0},{"$f":"MIN((IFERROR(IF(AND($V62<=AA$1,$W62>=AA$1),INDEX(Reliability!F$23:F$50,MATCH($S62,Reliability!$C$23:$C$50,0)),0),0)*IF($T62=\"n/a\",$D62*$Y62,$G62)+IFERROR(IF(AND($V62<=AA$1,$W62>=AA$1),INDEX(Reliability!F$23:F$50,MATCH($T62,Reliability!$C$23:$C$50,0)),0),0)*$H62*$X62*$Y62),$D62)*$R62","v":0},{"$f":"MIN((IFERROR(IF(AND($V62<=AB$1,$W62>=AB$1),INDEX(Reliability!G$23:G$50,MATCH($S62,Reliability!$C$23:$C$50,0)),0),0)*IF($T62=\"n/a\",$D62*$Y62,$G62)+IFERROR(IF(AND($V62<=AB$1,$W62>=AB$1),INDEX(Reliability!G$23:G$50,MATCH($T62,Reliability!$C$23:$C$50,0)),0),0)*$H62*$X62*$Y62),$D62)*$R62","v":0},{"$f":"MIN((IFERROR(IF(AND($V62<=AC$1,$W62>=AC$1),INDEX(Reliability!H$23:H$50,MATCH($S62,Reliability!$C$23:$C$50,0)),0),0)*IF($T62=\"n/a\",$D62*$Y62,$G62)+IFERROR(IF(AND($V62<=AC$1,$W62>=AC$1),INDEX(Reliability!H$23:H$50,MATCH($T62,Reliability!$C$23:$C$50,0)),0),0)*$H62*$X62*$Y62),$D62)*$R62","v":0},{"$f":"MIN((IFERROR(IF(AND($V62<=AD$1,$W62>=AD$1),INDEX(Reliability!I$23:I$50,MATCH($S62,Reliability!$C$23:$C$50,0)),0),0)*IF($T62=\"n/a\",$D62*$Y62,$G62)+IFERROR(IF(AND($V62<=AD$1,$W62>=AD$1),INDEX(Reliability!I$23:I$50,MATCH($T62,Reliability!$C$23:$C$50,0)),0),0)*$H62*$X62*$Y62),$D62)*$R62","v":0},{"$f":"MIN((IFERROR(IF(AND($V62<=AE$1,$W62>=AE$1),INDEX(Reliability!J$23:J$50,MATCH($S62,Reliability!$C$23:$C$50,0)),0),0)*IF($T62=\"n/a\",$D62*$Y62,$G62)+IFERROR(IF(AND($V62<=AE$1,$W62>=AE$1),INDEX(Reliability!J$23:J$50,MATCH($T62,Reliability!$C$23:$C$50,0)),0),0)*$H62*$X62*$Y62),$D62)*$R62","v":0},{"$f":"MIN((IFERROR(IF(AND($V62<=AF$1,$W62>=AF$1),INDEX(Reliability!K$23:K$50,MATCH($S62,Reliability!$C$23:$C$50,0)),0),0)*IF($T62=\"n/a\",$D62*$Y62,$G62)+IFERROR(IF(AND($V62<=AF$1,$W62>=AF$1),INDEX(Reliability!K$23:K$50,MATCH($T62,Reliability!$C$23:$C$50,0)),0),0)*$H62*$X62*$Y62),$D62)*$R62","v":0},{"$f":"MIN((IFERROR(IF(AND($V62<=AG$1,$W62>=AG$1),INDEX(Reliability!L$23:L$50,MATCH($S62,Reliability!$C$23:$C$50,0)),0),0)*IF($T62=\"n/a\",$D62*$Y62,$G62)+IFERROR(IF(AND($V62<=AG$1,$W62>=AG$1),INDEX(Reliability!L$23:L$50,MATCH($T62,Reliability!$C$23:$C$50,0)),0),0)*$H62*$X62*$Y62),$D62)*$R62","v":0},{"$f":"MIN((IFERROR(IF(AND($V62<=AH$1,$W62>=AH$1),INDEX(Reliability!M$23:M$50,MATCH($S62,Reliability!$C$23:$C$50,0)),0),0)*IF($T62=\"n/a\",$D62*$Y62,$G62)+IFERROR(IF(AND($V62<=AH$1,$W62>=AH$1),INDEX(Reliability!M$23:M$50,MATCH($T62,Reliability!$C$23:$C$50,0)),0),0)*$H62*$X62*$Y62),$D62)*$R62","v":0},{"$f":"MIN((IFERROR(IF(AND($V62<=AI$1,$W62>=AI$1),INDEX(Reliability!N$23:N$50,MATCH($S62,Reliability!$C$23:$C$50,0)),0),0)*IF($T62=\"n/a\",$D62*$Y62,$G62)+IFERROR(IF(AND($V62<=AI$1,$W62>=AI$1),INDEX(Reliability!N$23:N$50,MATCH($T62,Reliability!$C$23:$C$50,0)),0),0)*$H62*$X62*$Y62),$D62)*$R62","v":0},{"$f":"MIN((IFERROR(IF(AND($V62<=AJ$1,$W62>=AJ$1),INDEX(Reliability!O$23:O$50,MATCH($S62,Reliability!$C$23:$C$50,0)),0),0)*IF($T62=\"n/a\",$D62*$Y62,$G62)+IFERROR(IF(AND($V62<=AJ$1,$W62>=AJ$1),INDEX(Reliability!O$23:O$50,MATCH($T62,Reliability!$C$23:$C$50,0)),0),0)*$H62*$X62*$Y62),$D62)*$R62","v":0},{"$f":"MIN((IFERROR(IF(AND($V62<=AK$1,$W62>=AK$1),INDEX(Reliability!P$23:P$50,MATCH($S62,Reliability!$C$23:$C$50,0)),0),0)*IF($T62=\"n/a\",$D62*$Y62,$G62)+IFERROR(IF(AND($V62<=AK$1,$W62>=AK$1),INDEX(Reliability!P$23:P$50,MATCH($T62,Reliability!$C$23:$C$50,0)),0),0)*$H62*$X62*$Y62),$D62)*$R62","v":0}]
[null,{"$f":"unique_contracts!B64","v":"_EXISTING_GENERIC_BATTERY_STORAGE"},{"$f":"unique_contracts!D64","v":"Online"},{"$f":"unique_contracts!J64","v":0},{"$f":"unique_contracts!M64","v":"NotHybrid"},{"$f":"unique_contracts!N64","v":0},{"$f":"unique_contracts!P64","v":0},{"$f":"unique_contracts!R64","v":0},{"$f":"unique_contracts!V64","v":0},{"$f":"unique_contracts!AB64","v":"Buy"},{"$f":"unique_contracts!AM64","v":2024},{"$f":"unique_contracts!AN64","v":1},{"$f":"unique_contracts!AO64","v":1},{"$f":"unique_contracts!AP64","v":2035},{"$f":"unique_contracts!AQ64","v":12},{"$f":"unique_contracts!AR64","v":31},{"$f":"unique_contracts!BP64","v":"CapacityOnly"},1,{"$f":"IFERROR(IF(AND(I63>0,E63=\"NotHybrid\"),_xlfn.CONCAT(MAX(MIN(ROUNDDOWN(I63/D63,0),8),4),INDEX(resources!$G:$G,MATCH(B63,resources!$A:$A,0))),INDEX(resources!$G:$G,MATCH(B63,resources!$A:$A,0))),\"n/a\")","v":"hr_batteries"},"n/a","hr_batteries",2024,2035,1,{"$error":"#DIV/0!"},{"$f":"MIN((IFERROR(IF(AND($V63<=Z$1,$W63>=Z$1),INDEX(Reliability!E$23:E$50,MATCH($S63,Reliability!$C$23:$C$50,0)),0),0)*IF($T63=\"n/a\",$D63*$Y63,$G63)+IFERROR(IF(AND($V63<=Z$1,$W63>=Z$1),INDEX(Reliability!E$23:E$50,MATCH($T63,Reliability!$C$23:$C$50,0)),0),0)*$H63*$X63*$Y63),$D63)*$R63","v":{"$error":"#DIV/0!"}},{"$f":"MIN((IFERROR(IF(AND($V63<=AA$1,$W63>=AA$1),INDEX(Reliability!F$23:F$50,MATCH($S63,Reliability!$C$23:$C$50,0)),0),0)*IF($T63=\"n/a\",$D63*$Y63,$G63)+IFERROR(IF(AND($V63<=AA$1,$W63>=AA$1),INDEX(Reliability!F$23:F$50,MATCH($T63,Reliability!$C$23:$C$50,0)),0),0)*$H63*$X63*$Y63),$D63)*$R63","v":{"$error":"#DIV/0!"}},{"$f":"MIN((IFERROR(IF(AND($V63<=AB$1,$W63>=AB$1),INDEX(Reliability!G$23:G$50,MATCH($S63,Reliability!$C$23:$C$50,0)),0),0)*IF($T63=\"n/a\",$D63*$Y63,$G63)+IFERROR(IF(AND($V63<=AB$1,$W63>=AB$1),INDEX(Reliability!G$23:G$50,MATCH($T63,Reliability!$C$23:$C$50,0)),0),0)*$H63*$X63*$Y63),$D63)*$R63","v":{"$error":"#DIV/0!"}},{"$f":"MIN((IFERROR(IF(AND($V63<=AC$1,$W63>=AC$1),INDEX(Reliability!H$23:H$50,MATCH($S63,Reliability!$C$23:$C$50,0)),0),0)*IF($T63=\"n/a\",$D63*$Y63,$G63)+IFERROR(IF(AND($V63<=AC$1,$W63>=AC$1),INDEX(Reliability!H$23:H$50,MATCH($T63,Reliability!$C$23:$C$50,0)),0),0)*$H63*$X63*$Y63),$D63)*$R63","v":{"$error":"#DIV/0!"}},{"$f":"MIN((IFERROR(IF(AND($V63<=AD$1,$W63>=AD$1),INDEX(Reliability!I$23:I$50,MATCH($S63,Reliability!$C$23:$C$50,0)),0),0)*IF($T63=\"n/a\",$D63*$Y63,$G63)+IFERROR(IF(AND($V63<=AD$1,$W63>=AD$1),INDEX(Reliability!I$23:I$50,MATCH($T63,Reliability!$C$23:$C$50,0)),0),0)*$H63*$X63*$Y63),$D63)*$R63","v":{"$error":"#DIV/0!"}},{"$f":"MIN((IFERROR(IF(AND($V63<=AE$1,$W63>=AE$1),INDEX(Reliability!J$23:J$50,MATCH($S63,Reliability!$C$23:$C$50,0)),0),0)*IF($T63=\"n/a\",$D63*$Y63,$G63)+IFERROR(IF(AND($V63<=AE$1,$W63>=AE$1),INDEX(Reliability!J$23:J$50,MATCH($T63,Reliability!$C$23:$C$50,0)),0),0)*$H63*$X63*$Y63),$D63)*$R63","v":{"$error":"#DIV/0!"}},{"$f":"MIN((IFERROR(IF(AND($V63<=AF$1,$W63>=AF$1),INDEX(Reliability!K$23:K$50,MATCH($S63,Reliability!$C$23:$C$50,0)),0),0)*IF($T63=\"n/a\",$D63*$Y63,$G63)+IFERROR(IF(AND($V63<=AF$1,$W63>=AF$1),INDEX(Reliability!K$23:K$50,MATCH($T63,Reliability!$C$23:$C$50,0)),0),0)*$H63*$X63*$Y63),$D63)*$R63","v":{"$error":"#DIV/0!"}},{"$f":"MIN((IFERROR(IF(AND($V63<=AG$1,$W63>=AG$1),INDEX(Reliability!L$23:L$50,MATCH($S63,Reliability!$C$23:$C$50,0)),0),0)*IF($T63=\"n/a\",$D63*$Y63,$G63)+IFERROR(IF(AND($V63<=AG$1,$W63>=AG$1),INDEX(Reliability!L$23:L$50,MATCH($T63,Reliability!$C$23:$C$50,0)),0),0)*$H63*$X63*$Y63),$D63)*$R63","v":{"$error":"#DIV/0!"}},{"$f":"MIN((IFERROR(IF(AND($V63<=AH$1,$W63>=AH$1),INDEX(Reliability!M$23:M$50,MATCH($S63,Reliability!$C$23:$C$50,0)),0),0)*IF($T63=\"n/a\",$D63*$Y63,$G63)+IFERROR(IF(AND($V63<=AH$1,$W63>=AH$1),INDEX(Reliability!M$23:M$50,MATCH($T63,Reliability!$C$23:$C$50,0)),0),0)*$H63*$X63*$Y63),$D63)*$R63","v":{"$error":"#DIV/0!"}},{"$f":"MIN((IFERROR(IF(AND($V63<=AI$1,$W63>=AI$1),INDEX(Reliability!N$23:N$50,MATCH($S63,Reliability!$C$23:$C$50,0)),0),0)*IF($T63=\"n/a\",$D63*$Y63,$G63)+IFERROR(IF(AND($V63<=AI$1,$W63>=AI$1),INDEX(Reliability!N$23:N$50,MATCH($T63,Reliability!$C$23:$C$50,0)),0),0)*$H63*$X63*$Y63),$D63)*$R63","v":{"$error":"#DIV/0!"}},{"$f":"MIN((IFERROR(IF(AND($V63<=AJ$1,$W63>=AJ$1),INDEX(Reliability!O$23:O$50,MATCH($S63,Reliability!$C$23:$C$50,0)),0),0)*IF($T63=\"n/a\",$D63*$Y63,$G63)+IFERROR(IF(AND($V63<=AJ$1,$W63>=AJ$1),INDEX(Reliability!O$23:O$50,MATCH($T63,Reliability!$C$23:$C$50,0)),0),0)*$H63*$X63*$Y63),$D63)*$R63","v":{"$error":"#DIV/0!"}},{"$f":"MIN((IFERROR(IF(AND($V63<=AK$1,$W63>=AK$1),INDEX(Reliability!P$23:P$50,MATCH($S63,Reliability!$C$23:$C$50,0)),0),0)*IF($T63=\"n/a\",$D63*$Y63,$G63)+IFERROR(IF(AND($V63<=AK$1,$W63>=AK$1),INDEX(Reliability!P$23:P$50,MATCH($T63,Reliability!$C$23:$C$50,0)),0),0)*$H63*$X63*$Y63),$D63)*$R63","v":{"$error":"#DIV/0!"}}]
[null,{"$f":"unique_contracts!B65","v":"_NEW_GENERIC_BATTERY_STORAGE"},{"$f":"unique_contracts!D65","v":"Development"},{"$f":"unique_contracts!J65","v":0},{"$f":"unique_contracts!M65","v":"NotHybrid"},{"$f":"unique_contracts!N65","v":0},{"$f":"unique_contracts!P65","v":0},{"$f":"unique_contracts!R65","v":0},{"$f":"unique_contracts!V65","v":0},{"$f":"unique_contracts!AB65","v":"Buy"},{"$f":"unique_contracts!AM65","v":2025},{"$f":"unique_contracts!AN65","v":1},{"$f":"unique_contracts!AO65","v":1},{"$f":"unique_contracts!AP65","v":2035},{"$f":"unique_contracts!AQ65","v":12},{"$f":"unique_contracts!AR65","v":31},{"$f":"unique_contracts!BP65","v":"CapacityOnly"},1,{"$f":"IFERROR(IF(AND(I64>0,E64=\"NotHybrid\"),_xlfn.CONCAT(MAX(MIN(ROUNDDOWN(I64/D64,0),8),4),INDEX(resources!$G:$G,MATCH(B64,resources!$A:$A,0))),INDEX(resources!$G:$G,MATCH(B64,resources!$A:$A,0))),\"n/a\")","v":"hr_batteries"},"n/a","hr_batteries",2025,2035,1,{"$error":"#DIV/0!"},{"$f":"MIN((IFERROR(IF(AND($V64<=Z$1,$W64>=Z$1),INDEX(Reliability!E$23:E$50,MATCH($S64,Reliability!$C$23:$C$50,0)),0),0)*IF($T64=\"n/a\",$D64*$Y64,$G64)+IFERROR(IF(AND($V64<=Z$1,$W64>=Z$1),INDEX(Reliability!E$23:E$50,MATCH($T64,Reliability!$C$23:$C$50,0)),0),0)*$H64*$X64*$Y64),$D64)*$R64","v":{"$error":"#DIV/0!"}},{"$f":"MIN((IFERROR(IF(AND($V64<=AA$1,$W64>=AA$1),INDEX(Reliability!F$23:F$50,MATCH($S64,Reliability!$C$23:$C$50,0)),0),0)*IF($T64=\"n/a\",$D64*$Y64,$G64)+IFERROR(IF(AND($V64<=AA$1,$W64>=AA$1),INDEX(Reliability!F$23:F$50,MATCH($T64,Reliability!$C$23:$C$50,0)),0),0)*$H64*$X64*$Y64),$D64)*$R64","v":{"$error":"#DIV/0!"}},{"$f":"MIN((IFERROR(IF(AND($V64<=AB$1,$W64>=AB$1),INDEX(Reliability!G$23:G$50,MATCH($S64,Reliability!$C$23:$C$50,0)),0),0)*IF($T64=\"n/a\",$D64*$Y64,$G64)+IFERROR(IF(AND($V64<=AB$1,$W64>=AB$1),INDEX(Reliability!G$23:G$50,MATCH($T64,Reliability!$C$23:$C$50,0)),0),0)*$H64*$X64*$Y64),$D64)*$R64","v":{"$error":"#DIV/0!"}},{"$f":"MIN((IFERROR(IF(AND($V64<=AC$1,$W64>=AC$1),INDEX(Reliability!H$23:H$50,MATCH($S64,Reliability!$C$23:$C$50,0)),0),0)*IF($T64=\"n/a\",$D64*$Y64,$G64)+IFERROR(IF(AND($V64<=AC$1,$W64>=AC$1),INDEX(Reliability!H$23:H$50,MATCH($T64,Reliability!$C$23:$C$50,0)),0),0)*$H64*$X64*$Y64),$D64)*$R64","v":{"$error":"#DIV/0!"}},{"$f":"MIN((IFERROR(IF(AND($V64<=AD$1,$W64>=AD$1),INDEX(Reliability!I$23:I$50,MATCH($S64,Reliability!$C$23:$C$50,0)),0),0)*IF($T64=\"n/a\",$D64*$Y64,$G64)+IFERROR(IF(AND($V64<=AD$1,$W64>=AD$1),INDEX(Reliability!I$23:I$50,MATCH($T64,Reliability!$C$23:$C$50,0)),0),0)*$H64*$X64*$Y64),$D64)*$R64","v":{"$error":"#DIV/0!"}},{"$f":"MIN((IFERROR(IF(AND($V64<=AE$1,$W64>=AE$1),INDEX(Reliability!J$23:J$50,MATCH($S64,Reliability!$C$23:$C$50,0)),0),0)*IF($T64=\"n/a\",$D64*$Y64,$G64)+IFERROR(IF(AND($V64<=AE$1,$W64>=AE$1),INDEX(Reliability!J$23:J$50,MATCH($T64,Reliability!$C$23:$C$50,0)),0),0)*$H64*$X64*$Y64),$D64)*$R64","v":{"$error":"#DIV/0!"}},{"$f":"MIN((IFERROR(IF(AND($V64<=AF$1,$W64>=AF$1),INDEX(Reliability!K$23:K$50,MATCH($S64,Reliability!$C$23:$C$50,0)),0),0)*IF($T64=\"n/a\",$D64*$Y64,$G64)+IFERROR(IF(AND($V64<=AF$1,$W64>=AF$1),INDEX(Reliability!K$23:K$50,MATCH($T64,Reliability!$C$23:$C$50,0)),0),0)*$H64*$X64*$Y64),$D64)*$R64","v":{"$error":"#DIV/0!"}},{"$f":"MIN((IFERROR(IF(AND($V64<=AG$1,$W64>=AG$1),INDEX(Reliability!L$23:L$50,MATCH($S64,Reliability!$C$23:$C$50,0)),0),0)*IF($T64=\"n/a\",$D64*$Y64,$G64)+IFERROR(IF(AND($V64<=AG$1,$W64>=AG$1),INDEX(Reliability!L$23:L$50,MATCH($T64,Reliability!$C$23:$C$50,0)),0),0)*$H64*$X64*$Y64),$D64)*$R64","v":{"$error":"#DIV/0!"}},{"$f":"MIN((IFERROR(IF(AND($V64<=AH$1,$W64>=AH$1),INDEX(Reliability!M$23:M$50,MATCH($S64,Reliability!$C$23:$C$50,0)),0),0)*IF($T64=\"n/a\",$D64*$Y64,$G64)+IFERROR(IF(AND($V64<=AH$1,$W64>=AH$1),INDEX(Reliability!M$23:M$50,MATCH($T64,Reliability!$C$23:$C$50,0)),0),0)*$H64*$X64*$Y64),$D64)*$R64","v":{"$error":"#DIV/0!"}},{"$f":"MIN((IFERROR(IF(AND($V64<=AI$1,$W64>=AI$1),INDEX(Reliability!N$23:N$50,MATCH($S64,Reliability!$C$23:$C$50,0)),0),0)*IF($T64=\"n/a\",$D64*$Y64,$G64)+IFERROR(IF(AND($V64<=AI$1,$W64>=AI$1),INDEX(Reliability!N$23:N$50,MATCH($T64,Reliability!$C$23:$C$50,0)),0),0)*$H64*$X64*$Y64),$D64)*$R64","v":{"$error":"#DIV/0!"}},{"$f":"MIN((IFERROR(IF(AND($V64<=AJ$1,$W64>=AJ$1),INDEX(Reliability!O$23:O$50,MATCH($S64,Reliability!$C$23:$C$50,0)),0),0)*IF($T64=\"n/a\",$D64*$Y64,$G64)+IFERROR(IF(AND($V64<=AJ$1,$W64>=AJ$1),INDEX(Reliability!O$23:O$50,MATCH($T64,Reliability!$C$23:$C$50,0)),0),0)*$H64*$X64*$Y64),$D64)*$R64","v":{"$error":"#DIV/0!"}},{"$f":"MIN((IFERROR(IF(AND($V64<=AK$1,$W64>=AK$1),INDEX(Reliability!P$23:P$50,MATCH($S64,Reliability!$C$23:$C$50,0)),0),0)*IF($T64=\"n/a\",$D64*$Y64,$G64)+IFERROR(IF(AND($V64<=AK$1,$W64>=AK$1),INDEX(Reliability!P$23:P$50,MATCH($T64,Reliability!$C$23:$C$50,0)),0),0)*$H64*$X64*$Y64),$D64)*$R64","v":{"$error":"#DIV/0!"}}]
[null,{"$f":"unique_contracts!B66","v":"_NEW_GENERIC_BATTERY_STORAGE"},{"$f":"unique_contracts!D66","v":"Development"},{"$f":"unique_contracts!J66","v":0},{"$f":"unique_contracts!M66","v":"NotHybrid"},{"$f":"unique_contracts!N66","v":0},{"$f":"unique_contracts!P66","v":0},{"$f":"unique_contracts!R66","v":0},{"$f":"unique_contracts!V66","v":0},{"$f":"unique_contracts!AB66","v":"Buy"},{"$f":"unique_contracts!AM66","v":2024},{"$f":"unique_contracts!AN66","v":1},{"$f":"unique_contracts!AO66","v":1},{"$f":"unique_contracts!AP66","v":2035},{"$f":"unique_contracts!AQ66","v":12},{"$f":"unique_contracts!AR66","v":31},{"$f":"unique_contracts!BP66","v":"CapacityOnly"},1,{"$f":"IFERROR(IF(AND(I65>0,E65=\"NotHybrid\"),_xlfn.CONCAT(MAX(MIN(ROUNDDOWN(I65/D65,0),8),4),INDEX(resources!$G:$G,MATCH(B65,resources!$A:$A,0))),INDEX(resources!$G:$G,MATCH(B65,resources!$A:$A,0))),\"n/a\")","v":"hr_batteries"},"n/a","hr_batteries",2024,2035,1,{"$error":"#DIV/0!"},{"$f":"MIN((IFERROR(IF(AND($V65<=Z$1,$W65>=Z$1),INDEX(Reliability!E$23:E$50,MATCH($S65,Reliability!$C$23:$C$50,0)),0),0)*IF($T65=\"n/a\",$D65*$Y65,$G65)+IFERROR(IF(AND($V65<=Z$1,$W65>=Z$1),INDEX(Reliability!E$23:E$50,MATCH($T65,Reliability!$C$23:$C$50,0)),0),0)*$H65*$X65*$Y65),$D65)*$R65","v":{"$error":"#DIV/0!"}},{"$f":"MIN((IFERROR(IF(AND($V65<=AA$1,$W65>=AA$1),INDEX(Reliability!F$23:F$50,MATCH($S65,Reliability!$C$23:$C$50,0)),0),0)*IF($T65=\"n/a\",$D65*$Y65,$G65)+IFERROR(IF(AND($V65<=AA$1,$W65>=AA$1),INDEX(Reliability!F$23:F$50,MATCH($T65,Reliability!$C$23:$C$50,0)),0),0)*$H65*$X65*$Y65),$D65)*$R65","v":{"$error":"#DIV/0!"}},{"$f":"MIN((IFERROR(IF(AND($V65<=AB$1,$W65>=AB$1),INDEX(Reliability!G$23:G$50,MATCH($S65,Reliability!$C$23:$C$50,0)),0),0)*IF($T65=\"n/a\",$D65*$Y65,$G65)+IFERROR(IF(AND($V65<=AB$1,$W65>=AB$1),INDEX(Reliability!G$23:G$50,MATCH($T65,Reliability!$C$23:$C$50,0)),0),0)*$H65*$X65*$Y65),$D65)*$R65","v":{"$error":"#DIV/0!"}},{"$f":"MIN((IFERROR(IF(AND($V65<=AC$1,$W65>=AC$1),INDEX(Reliability!H$23:H$50,MATCH($S65,Reliability!$C$23:$C$50,0)),0),0)*IF($T65=\"n/a\",$D65*$Y65,$G65)+IFERROR(IF(AND($V65<=AC$1,$W65>=AC$1),INDEX(Reliability!H$23:H$50,MATCH($T65,Reliability!$C$23:$C$50,0)),0),0)*$H65*$X65*$Y65),$D65)*$R65","v":{"$error":"#DIV/0!"}},{"$f":"MIN((IFERROR(IF(AND($V65<=AD$1,$W65>=AD$1),INDEX(Reliability!I$23:I$50,MATCH($S65,Reliability!$C$23:$C$50,0)),0),0)*IF($T65=\"n/a\",$D65*$Y65,$G65)+IFERROR(IF(AND($V65<=AD$1,$W65>=AD$1),INDEX(Reliability!I$23:I$50,MATCH($T65,Reliability!$C$23:$C$50,0)),0),0)*$H65*$X65*$Y65),$D65)*$R65","v":{"$error":"#DIV/0!"}},{"$f":"MIN((IFERROR(IF(AND($V65<=AE$1,$W65>=AE$1),INDEX(Reliability!J$23:J$50,MATCH($S65,Reliability!$C$23:$C$50,0)),0),0)*IF($T65=\"n/a\",$D65*$Y65,$G65)+IFERROR(IF(AND($V65<=AE$1,$W65>=AE$1),INDEX(Reliability!J$23:J$50,MATCH($T65,Reliability!$C$23:$C$50,0)),0),0)*$H65*$X65*$Y65),$D65)*$R65","v":{"$error":"#DIV/0!"}},{"$f":"MIN((IFERROR(IF(AND($V65<=AF$1,$W65>=AF$1),INDEX(Reliability!K$23:K$50,MATCH($S65,Reliability!$C$23:$C$50,0)),0),0)*IF($T65=\"n/a\",$D65*$Y65,$G65)+IFERROR(IF(AND($V65<=AF$1,$W65>=AF$1),INDEX(Reliability!K$23:K$50,MATCH($T65,Reliability!$C$23:$C$50,0)),0),0)*$H65*$X65*$Y65),$D65)*$R65","v":{"$error":"#DIV/0!"}},{"$f":"MIN((IFERROR(IF(AND($V65<=AG$1,$W65>=AG$1),INDEX(Reliability!L$23:L$50,MATCH($S65,Reliability!$C$23:$C$50,0)),0),0)*IF($T65=\"n/a\",$D65*$Y65,$G65)+IFERROR(IF(AND($V65<=AG$1,$W65>=AG$1),INDEX(Reliability!L$23:L$50,MATCH($T65,Reliability!$C$23:$C$50,0)),0),0)*$H65*$X65*$Y65),$D65)*$R65","v":{"$error":"#DIV/0!"}},{"$f":"MIN((IFERROR(IF(AND($V65<=AH$1,$W65>=AH$1),INDEX(Reliability!M$23:M$50,MATCH($S65,Reliability!$C$23:$C$50,0)),0),0)*IF($T65=\"n/a\",$D65*$Y65,$G65)+IFERROR(IF(AND($V65<=AH$1,$W65>=AH$1),INDEX(Reliability!M$23:M$50,MATCH($T65,Reliability!$C$23:$C$50,0)),0),0)*$H65*$X65*$Y65),$D65)*$R65","v":{"$error":"#DIV/0!"}},{"$f":"MIN((IFERROR(IF(AND($V65<=AI$1,$W65>=AI$1),INDEX(Reliability!N$23:N$50,MATCH($S65,Reliability!$C$23:$C$50,0)),0),0)*IF($T65=\"n/a\",$D65*$Y65,$G65)+IFERROR(IF(AND($V65<=AI$1,$W65>=AI$1),INDEX(Reliability!N$23:N$50,MATCH($T65,Reliability!$C$23:$C$50,0)),0),0)*$H65*$X65*$Y65),$D65)*$R65","v":{"$error":"#DIV/0!"}},{"$f":"MIN((IFERROR(IF(AND($V65<=AJ$1,$W65>=AJ$1),INDEX(Reliability!O$23:O$50,MATCH($S65,Reliability!$C$23:$C$50,0)),0),0)*IF($T65=\"n/a\",$D65*$Y65,$G65)+IFERROR(IF(AND($V65<=AJ$1,$W65>=AJ$1),INDEX(Reliability!O$23:O$50,MATCH($T65,Reliability!$C$23:$C$50,0)),0),0)*$H65*$X65*$Y65),$D65)*$R65","v":{"$error":"#DIV/0!"}},{"$f":"MIN((IFERROR(IF(AND($V65<=AK$1,$W65>=AK$1),INDEX(Reliability!P$23:P$50,MATCH($S65,Reliability!$C$23:$C$50,0)),0),0)*IF($T65=\"n/a\",$D65*$Y65,$G65)+IFERROR(IF(AND($V65<=AK$1,$W65>=AK$1),INDEX(Reliability!P$23:P$50,MATCH($T65,Reliability!$C$23:$C$50,0)),0),0)*$H65*$X65*$Y65),$D65)*$R65","v":{"$error":"#DIV/0!"}}]
[null,{"$f":"unique_contracts!B67","v":"_EXISTING_GENERIC_COMBINED_CYCLE"},{"$f":"unique_contracts!D67","v":"PlannedExisting"},{"$f":"unique_contracts!J67","v":0},{"$f":"unique_contracts!M67","v":"NotHybrid"},{"$f":"unique_contracts!N67","v":"NA"},{"$f":"unique_contracts!P67","v":0},{"$f":"unique_contracts!R67","v":0},{"$f":"unique_contracts!V67","v":0},{"$f":"unique_contracts!AB67","v":"Buy"},{"$f":"unique_contracts!AM67","v":2024},{"$f":"unique_contracts!AN67","v":1},{"$f":"unique_contracts!AO67","v":1},{"$f":"unique_contracts!AP67","v":2024},{"$f":"unique_contracts!AQ67","v":12},{"$f":"unique_contracts!AR67","v":31},{"$f":"unique_contracts!BP67","v":"CapacityOnly"},1,{"$f":"IFERROR(IF(AND(I66>0,E66=\"NotHybrid\"),_xlfn.CONCAT(MAX(MIN(ROUNDDOWN(I66/D66,0),8),4),INDEX(resources!$G:$G,MATCH(B66,resources!$A:$A,0))),INDEX(resources!$G:$G,MATCH(B66,resources!$A:$A,0))),\"n/a\")","v":"gas_cc"},"n/a","gas_cc",2024,2024,1,1,{"$f":"MIN((IFERROR(IF(AND($V66<=Z$1,$W66>=Z$1),INDEX(Reliability!E$23:E$50,MATCH($S66,Reliability!$C$23:$C$50,0)),0),0)*IF($T66=\"n/a\",$D66*$Y66,$G66)+IFERROR(IF(AND($V66<=Z$1,$W66>=Z$1),INDEX(Reliability!E$23:E$50,MATCH($T66,Reliability!$C$23:$C$50,0)),0),0)*$H66*$X66*$Y66),$D66)*$R66","v":0},{"$f":"MIN((IFERROR(IF(AND($V66<=AA$1,$W66>=AA$1),INDEX(Reliability!F$23:F$50,MATCH($S66,Reliability!$C$23:$C$50,0)),0),0)*IF($T66=\"n/a\",$D66*$Y66,$G66)+IFERROR(IF(AND($V66<=AA$1,$W66>=AA$1),INDEX(Reliability!F$23:F$50,MATCH($T66,Reliability!$C$23:$C$50,0)),0),0)*$H66*$X66*$Y66),$D66)*$R66","v":0},{"$f":"MIN((IFERROR(IF(AND($V66<=AB$1,$W66>=AB$1),INDEX(Reliability!G$23:G$50,MATCH($S66,Reliability!$C$23:$C$50,0)),0),0)*IF($T66=\"n/a\",$D66*$Y66,$G66)+IFERROR(IF(AND($V66<=AB$1,$W66>=AB$1),INDEX(Reliability!G$23:G$50,MATCH($T66,Reliability!$C$23:$C$50,0)),0),0)*$H66*$X66*$Y66),$D66)*$R66","v":0},{"$f":"MIN((IFERROR(IF(AND($V66<=AC$1,$W66>=AC$1),INDEX(Reliability!H$23:H$50,MATCH($S66,Reliability!$C$23:$C$50,0)),0),0)*IF($T66=\"n/a\",$D66*$Y66,$G66)+IFERROR(IF(AND($V66<=AC$1,$W66>=AC$1),INDEX(Reliability!H$23:H$50,MATCH($T66,Reliability!$C$23:$C$50,0)),0),0)*$H66*$X66*$Y66),$D66)*$R66","v":0},{"$f":"MIN((IFERROR(IF(AND($V66<=AD$1,$W66>=AD$1),INDEX(Reliability!I$23:I$50,MATCH($S66,Reliability!$C$23:$C$50,0)),0),0)*IF($T66=\"n/a\",$D66*$Y66,$G66)+IFERROR(IF(AND($V66<=AD$1,$W66>=AD$1),INDEX(Reliability!I$23:I$50,MATCH($T66,Reliability!$C$23:$C$50,0)),0),0)*$H66*$X66*$Y66),$D66)*$R66","v":0},{"$f":"MIN((IFERROR(IF(AND($V66<=AE$1,$W66>=AE$1),INDEX(Reliability!J$23:J$50,MATCH($S66,Reliability!$C$23:$C$50,0)),0),0)*IF($T66=\"n/a\",$D66*$Y66,$G66)+IFERROR(IF(AND($V66<=AE$1,$W66>=AE$1),INDEX(Reliability!J$23:J$50,MATCH($T66,Reliability!$C$23:$C$50,0)),0),0)*$H66*$X66*$Y66),$D66)*$R66","v":0},{"$f":"MIN((IFERROR(IF(AND($V66<=AF$1,$W66>=AF$1),INDEX(Reliability!K$23:K$50,MATCH($S66,Reliability!$C$23:$C$50,0)),0),0)*IF($T66=\"n/a\",$D66*$Y66,$G66)+IFERROR(IF(AND($V66<=AF$1,$W66>=AF$1),INDEX(Reliability!K$23:K$50,MATCH($T66,Reliability!$C$23:$C$50,0)),0),0)*$H66*$X66*$Y66),$D66)*$R66","v":0},{"$f":"MIN((IFERROR(IF(AND($V66<=AG$1,$W66>=AG$1),INDEX(Reliability!L$23:L$50,MATCH($S66,Reliability!$C$23:$C$50,0)),0),0)*IF($T66=\"n/a\",$D66*$Y66,$G66)+IFERROR(IF(AND($V66<=AG$1,$W66>=AG$1),INDEX(Reliability!L$23:L$50,MATCH($T66,Reliability!$C$23:$C$50,0)),0),0)*$H66*$X66*$Y66),$D66)*$R66","v":0},{"$f":"MIN((IFERROR(IF(AND($V66<=AH$1,$W66>=AH$1),INDEX(Reliability!M$23:M$50,MATCH($S66,Reliability!$C$23:$C$50,0)),0),0)*IF($T66=\"n/a\",$D66*$Y66,$G66)+IFERROR(IF(AND($V66<=AH$1,$W66>=AH$1),INDEX(Reliability!M$23:M$50,MATCH($T66,Reliability!$C$23:$C$50,0)),0),0)*$H66*$X66*$Y66),$D66)*$R66","v":0},{"$f":"MIN((IFERROR(IF(AND($V66<=AI$1,$W66>=AI$1),INDEX(Reliability!N$23:N$50,MATCH($S66,Reliability!$C$23:$C$50,0)),0),0)*IF($T66=\"n/a\",$D66*$Y66,$G66)+IFERROR(IF(AND($V66<=AI$1,$W66>=AI$1),INDEX(Reliability!N$23:N$50,MATCH($T66,Reliability!$C$23:$C$50,0)),0),0)*$H66*$X66*$Y66),$D66)*$R66","v":0},{"$f":"MIN((IFERROR(IF(AND($V66<=AJ$1,$W66>=AJ$1),INDEX(Reliability!O$23:O$50,MATCH($S66,Reliability!$C$23:$C$50,0)),0),0)*IF($T66=\"n/a\",$D66*$Y66,$G66)+IFERROR(IF(AND($V66<=AJ$1,$W66>=AJ$1),INDEX(Reliability!O$23:O$50,MATCH($T66,Reliability!$C$23:$C$50,0)),0),0)*$H66*$X66*$Y66),$D66)*$R66","v":0},{"$f":"MIN((IFERROR(IF(AND($V66<=AK$1,$W66>=AK$1),INDEX(Reliability!P$23:P$50,MATCH($S66,Reliability!$C$23:$C$50,0)),0),0)*IF($T66=\"n/a\",$D66*$Y66,$G66)+IFERROR(IF(AND($V66<=AK$1,$W66>=AK$1),INDEX(Reliability!P$23:P$50,MATCH($T66,Reliability!$C$23:$C$50,0)),0),0)*$H66*$X66*$Y66),$D66)*$R66","v":0}]
[null,{"$f":"unique_contracts!B68","v":"_EXISTING_GENERIC_COMBINED_CYCLE"},{"$f":"unique_contracts!D68","v":"PlannedExisting"},{"$f":"unique_contracts!J68","v":0},{"$f":"unique_contracts!M68","v":"NotHybrid"},{"$f":"unique_contracts!N68","v":"NA"},{"$f":"unique_contracts!P68","v":0},{"$f":"unique_contracts!R68","v":0},{"$f":"unique_contracts!V68","v":0},{"$f":"unique_contracts!AB68","v":"Buy"},{"$f":"unique_contracts!AM68","v":2025},{"$f":"unique_contracts!AN68","v":1},{"$f":"unique_contracts!AO68","v":1},{"$f":"unique_contracts!AP68","v":2025},{"$f":"unique_contracts!AQ68","v":12},{"$f":"unique_contracts!AR68","v":31},{"$f":"unique_contracts!BP68","v":"CapacityOnly"},1,{"$f":"IFERROR(IF(AND(I67>0,E67=\"NotHybrid\"),_xlfn.CONCAT(MAX(MIN(ROUNDDOWN(I67/D67,0),8),4),INDEX(resources!$G:$G,MATCH(B67,resources!$A:$A,0))),INDEX(resources!$G:$G,MATCH(B67,resources!$A:$A,0))),\"n/a\")","v":"gas_cc"},"n/a","gas_cc",2025,2025,1,1,{"$f":"MIN((IFERROR(IF(AND($V67<=Z$1,$W67>=Z$1),INDEX(Reliability!E$23:E$50,MATCH($S67,Reliability!$C$23:$C$50,0)),0),0)*IF($T67=\"n/a\",$D67*$Y67,$G67)+IFERROR(IF(AND($V67<=Z$1,$W67>=Z$1),INDEX(Reliability!E$23:E$50,MATCH($T67,Reliability!$C$23:$C$50,0)),0),0)*$H67*$X67*$Y67),$D67)*$R67","v":0},{"$f":"MIN((IFERROR(IF(AND($V67<=AA$1,$W67>=AA$1),INDEX(Reliability!F$23:F$50,MATCH($S67,Reliability!$C$23:$C$50,0)),0),0)*IF($T67=\"n/a\",$D67*$Y67,$G67)+IFERROR(IF(AND($V67<=AA$1,$W67>=AA$1),INDEX(Reliability!F$23:F$50,MATCH($T67,Reliability!$C$23:$C$50,0)),0),0)*$H67*$X67*$Y67),$D67)*$R67","v":0},{"$f":"MIN((IFERROR(IF(AND($V67<=AB$1,$W67>=AB$1),INDEX(Reliability!G$23:G$50,MATCH($S67,Reliability!$C$23:$C$50,0)),0),0)*IF($T67=\"n/a\",$D67*$Y67,$G67)+IFERROR(IF(AND($V67<=AB$1,$W67>=AB$1),INDEX(Reliability!G$23:G$50,MATCH($T67,Reliability!$C$23:$C$50,0)),0),0)*$H67*$X67*$Y67),$D67)*$R67","v":0},{"$f":"MIN((IFERROR(IF(AND($V67<=AC$1,$W67>=AC$1),INDEX(Reliability!H$23:H$50,MATCH($S67,Reliability!$C$23:$C$50,0)),0),0)*IF($T67=\"n/a\",$D67*$Y67,$G67)+IFERROR(IF(AND($V67<=AC$1,$W67>=AC$1),INDEX(Reliability!H$23:H$50,MATCH($T67,Reliability!$C$23:$C$50,0)),0),0)*$H67*$X67*$Y67),$D67)*$R67","v":0},{"$f":"MIN((IFERROR(IF(AND($V67<=AD$1,$W67>=AD$1),INDEX(Reliability!I$23:I$50,MATCH($S67,Reliability!$C$23:$C$50,0)),0),0)*IF($T67=\"n/a\",$D67*$Y67,$G67)+IFERROR(IF(AND($V67<=AD$1,$W67>=AD$1),INDEX(Reliability!I$23:I$50,MATCH($T67,Reliability!$C$23:$C$50,0)),0),0)*$H67*$X67*$Y67),$D67)*$R67","v":0},{"$f":"MIN((IFERROR(IF(AND($V67<=AE$1,$W67>=AE$1),INDEX(Reliability!J$23:J$50,MATCH($S67,Reliability!$C$23:$C$50,0)),0),0)*IF($T67=\"n/a\",$D67*$Y67,$G67)+IFERROR(IF(AND($V67<=AE$1,$W67>=AE$1),INDEX(Reliability!J$23:J$50,MATCH($T67,Reliability!$C$23:$C$50,0)),0),0)*$H67*$X67*$Y67),$D67)*$R67","v":0},{"$f":"MIN((IFERROR(IF(AND($V67<=AF$1,$W67>=AF$1),INDEX(Reliability!K$23:K$50,MATCH($S67,Reliability!$C$23:$C$50,0)),0),0)*IF($T67=\"n/a\",$D67*$Y67,$G67)+IFERROR(IF(AND($V67<=AF$1,$W67>=AF$1),INDEX(Reliability!K$23:K$50,MATCH($T67,Reliability!$C$23:$C$50,0)),0),0)*$H67*$X67*$Y67),$D67)*$R67","v":0},{"$f":"MIN((IFERROR(IF(AND($V67<=AG$1,$W67>=AG$1),INDEX(Reliability!L$23:L$50,MATCH($S67,Reliability!$C$23:$C$50,0)),0),0)*IF($T67=\"n/a\",$D67*$Y67,$G67)+IFERROR(IF(AND($V67<=AG$1,$W67>=AG$1),INDEX(Reliability!L$23:L$50,MATCH($T67,Reliability!$C$23:$C$50,0)),0),0)*$H67*$X67*$Y67),$D67)*$R67","v":0},{"$f":"MIN((IFERROR(IF(AND($V67<=AH$1,$W67>=AH$1),INDEX(Reliability!M$23:M$50,MATCH($S67,Reliability!$C$23:$C$50,0)),0),0)*IF($T67=\"n/a\",$D67*$Y67,$G67)+IFERROR(IF(AND($V67<=AH$1,$W67>=AH$1),INDEX(Reliability!M$23:M$50,MATCH($T67,Reliability!$C$23:$C$50,0)),0),0)*$H67*$X67*$Y67),$D67)*$R67","v":0},{"$f":"MIN((IFERROR(IF(AND($V67<=AI$1,$W67>=AI$1),INDEX(Reliability!N$23:N$50,MATCH($S67,Reliability!$C$23:$C$50,0)),0),0)*IF($T67=\"n/a\",$D67*$Y67,$G67)+IFERROR(IF(AND($V67<=AI$1,$W67>=AI$1),INDEX(Reliability!N$23:N$50,MATCH($T67,Reliability!$C$23:$C$50,0)),0),0)*$H67*$X67*$Y67),$D67)*$R67","v":0},{"$f":"MIN((IFERROR(IF(AND($V67<=AJ$1,$W67>=AJ$1),INDEX(Reliability!O$23:O$50,MATCH($S67,Reliability!$C$23:$C$50,0)),0),0)*IF($T67=\"n/a\",$D67*$Y67,$G67)+IFERROR(IF(AND($V67<=AJ$1,$W67>=AJ$1),INDEX(Reliability!O$23:O$50,MATCH($T67,Reliability!$C$23:$C$50,0)),0),0)*$H67*$X67*$Y67),$D67)*$R67","v":0},{"$f":"MIN((IFERROR(IF(AND($V67<=AK$1,$W67>=AK$1),INDEX(Reliability!P$23:P$50,MATCH($S67,Reliability!$C$23:$C$50,0)),0),0)*IF($T67=\"n/a\",$D67*$Y67,$G67)+IFERROR(IF(AND($V67<=AK$1,$W67>=AK$1),INDEX(Reliability!P$23:P$50,MATCH($T67,Reliability!$C$23:$C$50,0)),0),0)*$H67*$X67*$Y67),$D67)*$R67","v":0}]
[null,{"$f":"unique_contracts!B69","v":"_NEW_GENERIC_BATTERY_STORAGE"},{"$f":"unique_contracts!D69","v":"PlannedNew"},{"$f":"unique_contracts!J69","v":0},{"$f":"unique_contracts!M69","v":"NotHybrid"},{"$f":"unique_contracts!N69","v":"NA"},{"$f":"unique_contracts!P69","v":0},{"$f":"unique_contracts!R69","v":0},{"$f":"unique_contracts!V69","v":0},{"$f":"unique_contracts!AB69","v":"Sell"},{"$f":"unique_contracts!AM69","v":2026},{"$f":"unique_contracts!AN69","v":1},{"$f":"unique_contracts!AO69","v":1},{"$f":"unique_contracts!AP69","v":2026},{"$f":"unique_contracts!AQ69","v":12},{"$f":"unique_contracts!AR69","v":31},{"$f":"unique_contracts!BP69","v":"CapacityOnly"},-1,{"$f":"IFERROR(IF(AND(I68>0,E68=\"NotHybrid\"),_xlfn.CONCAT(MAX(MIN(ROUNDDOWN(I68/D68,0),8),4),INDEX(resources!$G:$G,MATCH(B68,resources!$A:$A,0))),INDEX(resources!$G:$G,MATCH(B68,resources!$A:$A,0))),\"n/a\")","v":"hr_batteries"},"n/a","hr_batteries",2026,2026,1,{"$error":"#DIV/0!"},{"$f":"MIN((IFERROR(IF(AND($V68<=Z$1,$W68>=Z$1),INDEX(Reliability!E$23:E$50,MATCH($S68,Reliability!$C$23:$C$50,0)),0),0)*IF($T68=\"n/a\",$D68*$Y68,$G68)+IFERROR(IF(AND($V68<=Z$1,$W68>=Z$1),INDEX(Reliability!E$23:E$50,MATCH($T68,Reliability!$C$23:$C$50,0)),0),0)*$H68*$X68*$Y68),$D68)*$R68","v":{"$error":"#DIV/0!"}},{"$f":"MIN((IFERROR(IF(AND($V68<=AA$1,$W68>=AA$1),INDEX(Reliability!F$23:F$50,MATCH($S68,Reliability!$C$23:$C$50,0)),0),0)*IF($T68=\"n/a\",$D68*$Y68,$G68)+IFERROR(IF(AND($V68<=AA$1,$W68>=AA$1),INDEX(Reliability!F$23:F$50,MATCH($T68,Reliability!$C$23:$C$50,0)),0),0)*$H68*$X68*$Y68),$D68)*$R68","v":{"$error":"#DIV/0!"}},{"$f":"MIN((IFERROR(IF(AND($V68<=AB$1,$W68>=AB$1),INDEX(Reliability!G$23:G$50,MATCH($S68,Reliability!$C$23:$C$50,0)),0),0)*IF($T68=\"n/a\",$D68*$Y68,$G68)+IFERROR(IF(AND($V68<=AB$1,$W68>=AB$1),INDEX(Reliability!G$23:G$50,MATCH($T68,Reliability!$C$23:$C$50,0)),0),0)*$H68*$X68*$Y68),$D68)*$R68","v":{"$error":"#DIV/0!"}},{"$f":"MIN((IFERROR(IF(AND($V68<=AC$1,$W68>=AC$1),INDEX(Reliability!H$23:H$50,MATCH($S68,Reliability!$C$23:$C$50,0)),0),0)*IF($T68=\"n/a\",$D68*$Y68,$G68)+IFERROR(IF(AND($V68<=AC$1,$W68>=AC$1),INDEX(Reliability!H$23:H$50,MATCH($T68,Reliability!$C$23:$C$50,0)),0),0)*$H68*$X68*$Y68),$D68)*$R68","v":{"$error":"#DIV/0!"}},{"$f":"MIN((IFERROR(IF(AND($V68<=AD$1,$W68>=AD$1),INDEX(Reliability!I$23:I$50,MATCH($S68,Reliability!$C$23:$C$50,0)),0),0)*IF($T68=\"n/a\",$D68*$Y68,$G68)+IFERROR(IF(AND($V68<=AD$1,$W68>=AD$1),INDEX(Reliability!I$23:I$50,MATCH($T68,Reliability!$C$23:$C$50,0)),0),0)*$H68*$X68*$Y68),$D68)*$R68","v":{"$error":"#DIV/0!"}},{"$f":"MIN((IFERROR(IF(AND($V68<=AE$1,$W68>=AE$1),INDEX(Reliability!J$23:J$50,MATCH($S68,Reliability!$C$23:$C$50,0)),0),0)*IF($T68=\"n/a\",$D68*$Y68,$G68)+IFERROR(IF(AND($V68<=AE$1,$W68>=AE$1),INDEX(Reliability!J$23:J$50,MATCH($T68,Reliability!$C$23:$C$50,0)),0),0)*$H68*$X68*$Y68),$D68)*$R68","v":{"$error":"#DIV/0!"}},{"$f":"MIN((IFERROR(IF(AND($V68<=AF$1,$W68>=AF$1),INDEX(Reliability!K$23:K$50,MATCH($S68,Reliability!$C$23:$C$50,0)),0),0)*IF($T68=\"n/a\",$D68*$Y68,$G68)+IFERROR(IF(AND($V68<=AF$1,$W68>=AF$1),INDEX(Reliability!K$23:K$50,MATCH($T68,Reliability!$C$23:$C$50,0)),0),0)*$H68*$X68*$Y68),$D68)*$R68","v":{"$error":"#DIV/0!"}},{"$f":"MIN((IFERROR(IF(AND($V68<=AG$1,$W68>=AG$1),INDEX(Reliability!L$23:L$50,MATCH($S68,Reliability!$C$23:$C$50,0)),0),0)*IF($T68=\"n/a\",$D68*$Y68,$G68)+IFERROR(IF(AND($V68<=AG$1,$W68>=AG$1),INDEX(Reliability!L$23:L$50,MATCH($T68,Reliability!$C$23:$C$50,0)),0),0)*$H68*$X68*$Y68),$D68)*$R68","v":{"$error":"#DIV/0!"}},{"$f":"MIN((IFERROR(IF(AND($V68<=AH$1,$W68>=AH$1),INDEX(Reliability!M$23:M$50,MATCH($S68,Reliability!$C$23:$C$50,0)),0),0)*IF($T68=\"n/a\",$D68*$Y68,$G68)+IFERROR(IF(AND($V68<=AH$1,$W68>=AH$1),INDEX(Reliability!M$23:M$50,MATCH($T68,Reliability!$C$23:$C$50,0)),0),0)*$H68*$X68*$Y68),$D68)*$R68","v":{"$error":"#DIV/0!"}},{"$f":"MIN((IFERROR(IF(AND($V68<=AI$1,$W68>=AI$1),INDEX(Reliability!N$23:N$50,MATCH($S68,Reliability!$C$23:$C$50,0)),0),0)*IF($T68=\"n/a\",$D68*$Y68,$G68)+IFERROR(IF(AND($V68<=AI$1,$W68>=AI$1),INDEX(Reliability!N$23:N$50,MATCH($T68,Reliability!$C$23:$C$50,0)),0),0)*$H68*$X68*$Y68),$D68)*$R68","v":{"$error":"#DIV/0!"}},{"$f":"MIN((IFERROR(IF(AND($V68<=AJ$1,$W68>=AJ$1),INDEX(Reliability!O$23:O$50,MATCH($S68,Reliability!$C$23:$C$50,0)),0),0)*IF($T68=\"n/a\",$D68*$Y68,$G68)+IFERROR(IF(AND($V68<=AJ$1,$W68>=AJ$1),INDEX(Reliability!O$23:O$50,MATCH($T68,Reliability!$C$23:$C$50,0)),0),0)*$H68*$X68*$Y68),$D68)*$R68","v":{"$error":"#DIV/0!"}},{"$f":"MIN((IFERROR(IF(AND($V68<=AK$1,$W68>=AK$1),INDEX(Reliability!P$23:P$50,MATCH($S68,Reliability!$C$23:$C$50,0)),0),0)*IF($T68=\"n/a\",$D68*$Y68,$G68)+IFERROR(IF(AND($V68<=AK$1,$W68>=AK$1),INDEX(Reliability!P$23:P$50,MATCH($T68,Reliability!$C$23:$C$50,0)),0),0)*$H68*$X68*$Y68),$D68)*$R68","v":{"$error":"#DIV/0!"}}]
[null,{"$f":"unique_contracts!B70","v":"_NEW_GENERIC_BATTERY_STORAGE"},{"$f":"unique_contracts!D70","v":"PlannedNew"},{"$f":"unique_contracts!J70","v":0},{"$f":"unique_contracts!M70","v":"NotHybrid"},{"$f":"unique_contracts!N70","v":"NA"},{"$f":"unique_contracts!P70","v":0},{"$f":"unique_contracts!R70","v":0},{"$f":"unique_contracts!V70","v":0},{"$f":"unique_contracts!AB70","v":"Sell"},{"$f":"unique_contracts!AM70","v":2027},{"$f":"unique_contracts!AN70","v":1},{"$f":"unique_contracts!AO70","v":1},{"$f":"unique_contracts!AP70","v":2027},{"$f":"unique_contracts!AQ70","v":12},{"$f":"unique_contracts!AR70","v":31},{"$f":"unique_contracts!BP70","v":"CapacityOnly"},-1,{"$f":"IFERROR(IF(AND(I69>0,E69=\"NotHybrid\"),_xlfn.CONCAT(MAX(MIN(ROUNDDOWN(I69/D69,0),8),4),INDEX(resources!$G:$G,MATCH(B69,resources!$A:$A,0))),INDEX(resources!$G:$G,MATCH(B69,resources!$A:$A,0))),\"n/a\")","v":"hr_batteries"},"n/a","hr_batteries",2027,2027,1,{"$error":"#DIV/0!"},{"$f":"MIN((IFERROR(IF(AND($V69<=Z$1,$W69>=Z$1),INDEX(Reliability!E$23:E$50,MATCH($S69,Reliability!$C$23:$C$50,0)),0),0)*IF($T69=\"n/a\",$D69*$Y69,$G69)+IFERROR(IF(AND($V69<=Z$1,$W69>=Z$1),INDEX(Reliability!E$23:E$50,MATCH($T69,Reliability!$C$23:$C$50,0)),0),0)*$H69*$X69*$Y69),$D69)*$R69","v":{"$error":"#DIV/0!"}},{"$f":"MIN((IFERROR(IF(AND($V69<=AA$1,$W69>=AA$1),INDEX(Reliability!F$23:F$50,MATCH($S69,Reliability!$C$23:$C$50,0)),0),0)*IF($T69=\"n/a\",$D69*$Y69,$G69)+IFERROR(IF(AND($V69<=AA$1,$W69>=AA$1),INDEX(Reliability!F$23:F$50,MATCH($T69,Reliability!$C$23:$C$50,0)),0),0)*$H69*$X69*$Y69),$D69)*$R69","v":{"$error":"#DIV/0!"}},{"$f":"MIN((IFERROR(IF(AND($V69<=AB$1,$W69>=AB$1),INDEX(Reliability!G$23:G$50,MATCH($S69,Reliability!$C$23:$C$50,0)),0),0)*IF($T69=\"n/a\",$D69*$Y69,$G69)+IFERROR(IF(AND($V69<=AB$1,$W69>=AB$1),INDEX(Reliability!G$23:G$50,MATCH($T69,Reliability!$C$23:$C$50,0)),0),0)*$H69*$X69*$Y69),$D69)*$R69","v":{"$error":"#DIV/0!"}},{"$f":"MIN((IFERROR(IF(AND($V69<=AC$1,$W69>=AC$1),INDEX(Reliability!H$23:H$50,MATCH($S69,Reliability!$C$23:$C$50,0)),0),0)*IF($T69=\"n/a\",$D69*$Y69,$G69)+IFERROR(IF(AND($V69<=AC$1,$W69>=AC$1),INDEX(Reliability!H$23:H$50,MATCH($T69,Reliability!$C$23:$C$50,0)),0),0)*$H69*$X69*$Y69),$D69)*$R69","v":{"$error":"#DIV/0!"}},{"$f":"MIN((IFERROR(IF(AND($V69<=AD$1,$W69>=AD$1),INDEX(Reliability!I$23:I$50,MATCH($S69,Reliability!$C$23:$C$50,0)),0),0)*IF($T69=\"n/a\",$D69*$Y69,$G69)+IFERROR(IF(AND($V69<=AD$1,$W69>=AD$1),INDEX(Reliability!I$23:I$50,MATCH($T69,Reliability!$C$23:$C$50,0)),0),0)*$H69*$X69*$Y69),$D69)*$R69","v":{"$error":"#DIV/0!"}},{"$f":"MIN((IFERROR(IF(AND($V69<=AE$1,$W69>=AE$1),INDEX(Reliability!J$23:J$50,MATCH($S69,Reliability!$C$23:$C$50,0)),0),0)*IF($T69=\"n/a\",$D69*$Y69,$G69)+IFERROR(IF(AND($V69<=AE$1,$W69>=AE$1),INDEX(Reliability!J$23:J$50,MATCH($T69,Reliability!$C$23:$C$50,0)),0),0)*$H69*$X69*$Y69),$D69)*$R69","v":{"$error":"#DIV/0!"}},{"$f":"MIN((IFERROR(IF(AND($V69<=AF$1,$W69>=AF$1),INDEX(Reliability!K$23:K$50,MATCH($S69,Reliability!$C$23:$C$50,0)),0),0)*IF($T69=\"n/a\",$D69*$Y69,$G69)+IFERROR(IF(AND($V69<=AF$1,$W69>=AF$1),INDEX(Reliability!K$23:K$50,MATCH($T69,Reliability!$C$23:$C$50,0)),0),0)*$H69*$X69*$Y69),$D69)*$R69","v":{"$error":"#DIV/0!"}},{"$f":"MIN((IFERROR(IF(AND($V69<=AG$1,$W69>=AG$1),INDEX(Reliability!L$23:L$50,MATCH($S69,Reliability!$C$23:$C$50,0)),0),0)*IF($T69=\"n/a\",$D69*$Y69,$G69)+IFERROR(IF(AND($V69<=AG$1,$W69>=AG$1),INDEX(Reliability!L$23:L$50,MATCH($T69,Reliability!$C$23:$C$50,0)),0),0)*$H69*$X69*$Y69),$D69)*$R69","v":{"$error":"#DIV/0!"}},{"$f":"MIN((IFERROR(IF(AND($V69<=AH$1,$W69>=AH$1),INDEX(Reliability!M$23:M$50,MATCH($S69,Reliability!$C$23:$C$50,0)),0),0)*IF($T69=\"n/a\",$D69*$Y69,$G69)+IFERROR(IF(AND($V69<=AH$1,$W69>=AH$1),INDEX(Reliability!M$23:M$50,MATCH($T69,Reliability!$C$23:$C$50,0)),0),0)*$H69*$X69*$Y69),$D69)*$R69","v":{"$error":"#DIV/0!"}},{"$f":"MIN((IFERROR(IF(AND($V69<=AI$1,$W69>=AI$1),INDEX(Reliability!N$23:N$50,MATCH($S69,Reliability!$C$23:$C$50,0)),0),0)*IF($T69=\"n/a\",$D69*$Y69,$G69)+IFERROR(IF(AND($V69<=AI$1,$W69>=AI$1),INDEX(Reliability!N$23:N$50,MATCH($T69,Reliability!$C$23:$C$50,0)),0),0)*$H69*$X69*$Y69),$D69)*$R69","v":{"$error":"#DIV/0!"}},{"$f":"MIN((IFERROR(IF(AND($V69<=AJ$1,$W69>=AJ$1),INDEX(Reliability!O$23:O$50,MATCH($S69,Reliability!$C$23:$C$50,0)),0),0)*IF($T69=\"n/a\",$D69*$Y69,$G69)+IFERROR(IF(AND($V69<=AJ$1,$W69>=AJ$1),INDEX(Reliability!O$23:O$50,MATCH($T69,Reliability!$C$23:$C$50,0)),0),0)*$H69*$X69*$Y69),$D69)*$R69","v":{"$error":"#DIV/0!"}},{"$f":"MIN((IFERROR(IF(AND($V69<=AK$1,$W69>=AK$1),INDEX(Reliability!P$23:P$50,MATCH($S69,Reliability!$C$23:$C$50,0)),0),0)*IF($T69=\"n/a\",$D69*$Y69,$G69)+IFERROR(IF(AND($V69<=AK$1,$W69>=AK$1),INDEX(Reliability!P$23:P$50,MATCH($T69,Reliability!$C$23:$C$50,0)),0),0)*$H69*$X69*$Y69),$D69)*$R69","v":{"$error":"#DIV/0!"}}]
[null,{"$f":"unique_contracts!B71","v":"_NEW_GENERIC_BATTERY_STORAGE"},{"$f":"unique_contracts!D71","v":"PlannedNew"},{"$f":"unique_contracts!J71","v":0},{"$f":"unique_contracts!M71","v":"NotHybrid"},{"$f":"unique_contracts!N71","v":"NA"},{"$f":"unique_contracts!P71","v":0},{"$f":"unique_contracts!R71","v":0},{"$f":"unique_contracts!V71","v":0},{"$f":"unique_contracts!AB71","v":"Sell"},{"$f":"unique_contracts!AM71","v":2028},{"$f":"unique_contracts!AN71","v":1},{"$f":"unique_contracts!AO71","v":1},{"$f":"unique_contracts!AP71","v":2028},{"$f":"unique_contracts!AQ71","v":12},{"$f":"unique_contracts!AR71","v":31},{"$f":"unique_contracts!BP71","v":"CapacityOnly"},-1,{"$f":"IFERROR(IF(AND(I70>0,E70=\"NotHybrid\"),_xlfn.CONCAT(MAX(MIN(ROUNDDOWN(I70/D70,0),8),4),INDEX(resources!$G:$G,MATCH(B70,resources!$A:$A,0))),INDEX(resources!$G:$G,MATCH(B70,resources!$A:$A,0))),\"n/a\")","v":"hr_batteries"},"n/a","hr_batteries",2028,2028,1,{"$error":"#DIV/0!"},{"$f":"MIN((IFERROR(IF(AND($V70<=Z$1,$W70>=Z$1),INDEX(Reliability!E$23:E$50,MATCH($S70,Reliability!$C$23:$C$50,0)),0),0)*IF($T70=\"n/a\",$D70*$Y70,$G70)+IFERROR(IF(AND($V70<=Z$1,$W70>=Z$1),INDEX(Reliability!E$23:E$50,MATCH($T70,Reliability!$C$23:$C$50,0)),0),0)*$H70*$X70*$Y70),$D70)*$R70","v":{"$error":"#DIV/0!"}},{"$f":"MIN((IFERROR(IF(AND($V70<=AA$1,$W70>=AA$1),INDEX(Reliability!F$23:F$50,MATCH($S70,Reliability!$C$23:$C$50,0)),0),0)*IF($T70=\"n/a\",$D70*$Y70,$G70)+IFERROR(IF(AND($V70<=AA$1,$W70>=AA$1),INDEX(Reliability!F$23:F$50,MATCH($T70,Reliability!$C$23:$C$50,0)),0),0)*$H70*$X70*$Y70),$D70)*$R70","v":{"$error":"#DIV/0!"}},{"$f":"MIN((IFERROR(IF(AND($V70<=AB$1,$W70>=AB$1),INDEX(Reliability!G$23:G$50,MATCH($S70,Reliability!$C$23:$C$50,0)),0),0)*IF($T70=\"n/a\",$D70*$Y70,$G70)+IFERROR(IF(AND($V70<=AB$1,$W70>=AB$1),INDEX(Reliability!G$23:G$50,MATCH($T70,Reliability!$C$23:$C$50,0)),0),0)*$H70*$X70*$Y70),$D70)*$R70","v":{"$error":"#DIV/0!"}},{"$f":"MIN((IFERROR(IF(AND($V70<=AC$1,$W70>=AC$1),INDEX(Reliability!H$23:H$50,MATCH($S70,Reliability!$C$23:$C$50,0)),0),0)*IF($T70=\"n/a\",$D70*$Y70,$G70)+IFERROR(IF(AND($V70<=AC$1,$W70>=AC$1),INDEX(Reliability!H$23:H$50,MATCH($T70,Reliability!$C$23:$C$50,0)),0),0)*$H70*$X70*$Y70),$D70)*$R70","v":{"$error":"#DIV/0!"}},{"$f":"MIN((IFERROR(IF(AND($V70<=AD$1,$W70>=AD$1),INDEX(Reliability!I$23:I$50,MATCH($S70,Reliability!$C$23:$C$50,0)),0),0)*IF($T70=\"n/a\",$D70*$Y70,$G70)+IFERROR(IF(AND($V70<=AD$1,$W70>=AD$1),INDEX(Reliability!I$23:I$50,MATCH($T70,Reliability!$C$23:$C$50,0)),0),0)*$H70*$X70*$Y70),$D70)*$R70","v":{"$error":"#DIV/0!"}},{"$f":"MIN((IFERROR(IF(AND($V70<=AE$1,$W70>=AE$1),INDEX(Reliability!J$23:J$50,MATCH($S70,Reliability!$C$23:$C$50,0)),0),0)*IF($T70=\"n/a\",$D70*$Y70,$G70)+IFERROR(IF(AND($V70<=AE$1,$W70>=AE$1),INDEX(Reliability!J$23:J$50,MATCH($T70,Reliability!$C$23:$C$50,0)),0),0)*$H70*$X70*$Y70),$D70)*$R70","v":{"$error":"#DIV/0!"}},{"$f":"MIN((IFERROR(IF(AND($V70<=AF$1,$W70>=AF$1),INDEX(Reliability!K$23:K$50,MATCH($S70,Reliability!$C$23:$C$50,0)),0),0)*IF($T70=\"n/a\",$D70*$Y70,$G70)+IFERROR(IF(AND($V70<=AF$1,$W70>=AF$1),INDEX(Reliability!K$23:K$50,MATCH($T70,Reliability!$C$23:$C$50,0)),0),0)*$H70*$X70*$Y70),$D70)*$R70","v":{"$error":"#DIV/0!"}},{"$f":"MIN((IFERROR(IF(AND($V70<=AG$1,$W70>=AG$1),INDEX(Reliability!L$23:L$50,MATCH($S70,Reliability!$C$23:$C$50,0)),0),0)*IF($T70=\"n/a\",$D70*$Y70,$G70)+IFERROR(IF(AND($V70<=AG$1,$W70>=AG$1),INDEX(Reliability!L$23:L$50,MATCH($T70,Reliability!$C$23:$C$50,0)),0),0)*$H70*$X70*$Y70),$D70)*$R70","v":{"$error":"#DIV/0!"}},{"$f":"MIN((IFERROR(IF(AND($V70<=AH$1,$W70>=AH$1),INDEX(Reliability!M$23:M$50,MATCH($S70,Reliability!$C$23:$C$50,0)),0),0)*IF($T70=\"n/a\",$D70*$Y70,$G70)+IFERROR(IF(AND($V70<=AH$1,$W70>=AH$1),INDEX(Reliability!M$23:M$50,MATCH($T70,Reliability!$C$23:$C$50,0)),0),0)*$H70*$X70*$Y70),$D70)*$R70","v":{"$error":"#DIV/0!"}},{"$f":"MIN((IFERROR(IF(AND($V70<=AI$1,$W70>=AI$1),INDEX(Reliability!N$23:N$50,MATCH($S70,Reliability!$C$23:$C$50,0)),0),0)*IF($T70=\"n/a\",$D70*$Y70,$G70)+IFERROR(IF(AND($V70<=AI$1,$W70>=AI$1),INDEX(Reliability!N$23:N$50,MATCH($T70,Reliability!$C$23:$C$50,0)),0),0)*$H70*$X70*$Y70),$D70)*$R70","v":{"$error":"#DIV/0!"}},{"$f":"MIN((IFERROR(IF(AND($V70<=AJ$1,$W70>=AJ$1),INDEX(Reliability!O$23:O$50,MATCH($S70,Reliability!$C$23:$C$50,0)),0),0)*IF($T70=\"n/a\",$D70*$Y70,$G70)+IFERROR(IF(AND($V70<=AJ$1,$W70>=AJ$1),INDEX(Reliability!O$23:O$50,MATCH($T70,Reliability!$C$23:$C$50,0)),0),0)*$H70*$X70*$Y70),$D70)*$R70","v":{"$error":"#DIV/0!"}},{"$f":"MIN((IFERROR(IF(AND($V70<=AK$1,$W70>=AK$1),INDEX(Reliability!P$23:P$50,MATCH($S70,Reliability!$C$23:$C$50,0)),0),0)*IF($T70=\"n/a\",$D70*$Y70,$G70)+IFERROR(IF(AND($V70<=AK$1,$W70>=AK$1),INDEX(Reliability!P$23:P$50,MATCH($T70,Reliability!$C$23:$C$50,0)),0),0)*$H70*$X70*$Y70),$D70)*$R70","v":{"$error":"#DIV/0!"}}]
[null,{"$f":"unique_contracts!B72","v":"_NEW_GENERIC_BATTERY_STORAGE"},{"$f":"unique_contracts!D72","v":"PlannedNew"},{"$f":"unique_contracts!J72","v":0},{"$f":"unique_contracts!M72","v":"NotHybrid"},{"$f":"unique_contracts!N72","v":"NA"},{"$f":"unique_contracts!P72","v":0},{"$f":"unique_contracts!R72","v":0},{"$f":"unique_contracts!V72","v":0},{"$f":"unique_contracts!AB72","v":"Sell"},{"$f":"unique_contracts!AM72","v":2029},{"$f":"unique_contracts!AN72","v":1},{"$f":"unique_contracts!AO72","v":1},{"$f":"unique_contracts!AP72","v":2029},{"$f":"unique_contracts!AQ72","v":12},{"$f":"unique_contracts!AR72","v":31},{"$f":"unique_contracts!BP72","v":"CapacityOnly"},-1,{"$f":"IFERROR(IF(AND(I71>0,E71=\"NotHybrid\"),_xlfn.CONCAT(MAX(MIN(ROUNDDOWN(I71/D71,0),8),4),INDEX(resources!$G:$G,MATCH(B71,resources!$A:$A,0))),INDEX(resources!$G:$G,MATCH(B71,resources!$A:$A,0))),\"n/a\")","v":"hr_batteries"},"n/a","hr_batteries",2029,2029,1,{"$error":"#DIV/0!"},{"$f":"MIN((IFERROR(IF(AND($V71<=Z$1,$W71>=Z$1),INDEX(Reliability!E$23:E$50,MATCH($S71,Reliability!$C$23:$C$50,0)),0),0)*IF($T71=\"n/a\",$D71*$Y71,$G71)+IFERROR(IF(AND($V71<=Z$1,$W71>=Z$1),INDEX(Reliability!E$23:E$50,MATCH($T71,Reliability!$C$23:$C$50,0)),0),0)*$H71*$X71*$Y71),$D71)*$R71","v":{"$error":"#DIV/0!"}},{"$f":"MIN((IFERROR(IF(AND($V71<=AA$1,$W71>=AA$1),INDEX(Reliability!F$23:F$50,MATCH($S71,Reliability!$C$23:$C$50,0)),0),0)*IF($T71=\"n/a\",$D71*$Y71,$G71)+IFERROR(IF(AND($V71<=AA$1,$W71>=AA$1),INDEX(Reliability!F$23:F$50,MATCH($T71,Reliability!$C$23:$C$50,0)),0),0)*$H71*$X71*$Y71),$D71)*$R71","v":{"$error":"#DIV/0!"}},{"$f":"MIN((IFERROR(IF(AND($V71<=AB$1,$W71>=AB$1),INDEX(Reliability!G$23:G$50,MATCH($S71,Reliability!$C$23:$C$50,0)),0),0)*IF($T71=\"n/a\",$D71*$Y71,$G71)+IFERROR(IF(AND($V71<=AB$1,$W71>=AB$1),INDEX(Reliability!G$23:G$50,MATCH($T71,Reliability!$C$23:$C$50,0)),0),0)*$H71*$X71*$Y71),$D71)*$R71","v":{"$error":"#DIV/0!"}},{"$f":"MIN((IFERROR(IF(AND($V71<=AC$1,$W71>=AC$1),INDEX(Reliability!H$23:H$50,MATCH($S71,Reliability!$C$23:$C$50,0)),0),0)*IF($T71=\"n/a\",$D71*$Y71,$G71)+IFERROR(IF(AND($V71<=AC$1,$W71>=AC$1),INDEX(Reliability!H$23:H$50,MATCH($T71,Reliability!$C$23:$C$50,0)),0),0)*$H71*$X71*$Y71),$D71)*$R71","v":{"$error":"#DIV/0!"}},{"$f":"MIN((IFERROR(IF(AND($V71<=AD$1,$W71>=AD$1),INDEX(Reliability!I$23:I$50,MATCH($S71,Reliability!$C$23:$C$50,0)),0),0)*IF($T71=\"n/a\",$D71*$Y71,$G71)+IFERROR(IF(AND($V71<=AD$1,$W71>=AD$1),INDEX(Reliability!I$23:I$50,MATCH($T71,Reliability!$C$23:$C$50,0)),0),0)*$H71*$X71*$Y71),$D71)*$R71","v":{"$error":"#DIV/0!"}},{"$f":"MIN((IFERROR(IF(AND($V71<=AE$1,$W71>=AE$1),INDEX(Reliability!J$23:J$50,MATCH($S71,Reliability!$C$23:$C$50,0)),0),0)*IF($T71=\"n/a\",$D71*$Y71,$G71)+IFERROR(IF(AND($V71<=AE$1,$W71>=AE$1),INDEX(Reliability!J$23:J$50,MATCH($T71,Reliability!$C$23:$C$50,0)),0),0)*$H71*$X71*$Y71),$D71)*$R71","v":{"$error":"#DIV/0!"}},{"$f":"MIN((IFERROR(IF(AND($V71<=AF$1,$W71>=AF$1),INDEX(Reliability!K$23:K$50,MATCH($S71,Reliability!$C$23:$C$50,0)),0),0)*IF($T71=\"n/a\",$D71*$Y71,$G71)+IFERROR(IF(AND($V71<=AF$1,$W71>=AF$1),INDEX(Reliability!K$23:K$50,MATCH($T71,Reliability!$C$23:$C$50,0)),0),0)*$H71*$X71*$Y71),$D71)*$R71","v":{"$error":"#DIV/0!"}},{"$f":"MIN((IFERROR(IF(AND($V71<=AG$1,$W71>=AG$1),INDEX(Reliability!L$23:L$50,MATCH($S71,Reliability!$C$23:$C$50,0)),0),0)*IF($T71=\"n/a\",$D71*$Y71,$G71)+IFERROR(IF(AND($V71<=AG$1,$W71>=AG$1),INDEX(Reliability!L$23:L$50,MATCH($T71,Reliability!$C$23:$C$50,0)),0),0)*$H71*$X71*$Y71),$D71)*$R71","v":{"$error":"#DIV/0!"}},{"$f":"MIN((IFERROR(IF(AND($V71<=AH$1,$W71>=AH$1),INDEX(Reliability!M$23:M$50,MATCH($S71,Reliability!$C$23:$C$50,0)),0),0)*IF($T71=\"n/a\",$D71*$Y71,$G71)+IFERROR(IF(AND($V71<=AH$1,$W71>=AH$1),INDEX(Reliability!M$23:M$50,MATCH($T71,Reliability!$C$23:$C$50,0)),0),0)*$H71*$X71*$Y71),$D71)*$R71","v":{"$error":"#DIV/0!"}},{"$f":"MIN((IFERROR(IF(AND($V71<=AI$1,$W71>=AI$1),INDEX(Reliability!N$23:N$50,MATCH($S71,Reliability!$C$23:$C$50,0)),0),0)*IF($T71=\"n/a\",$D71*$Y71,$G71)+IFERROR(IF(AND($V71<=AI$1,$W71>=AI$1),INDEX(Reliability!N$23:N$50,MATCH($T71,Reliability!$C$23:$C$50,0)),0),0)*$H71*$X71*$Y71),$D71)*$R71","v":{"$error":"#DIV/0!"}},{"$f":"MIN((IFERROR(IF(AND($V71<=AJ$1,$W71>=AJ$1),INDEX(Reliability!O$23:O$50,MATCH($S71,Reliability!$C$23:$C$50,0)),0),0)*IF($T71=\"n/a\",$D71*$Y71,$G71)+IFERROR(IF(AND($V71<=AJ$1,$W71>=AJ$1),INDEX(Reliability!O$23:O$50,MATCH($T71,Reliability!$C$23:$C$50,0)),0),0)*$H71*$X71*$Y71),$D71)*$R71","v":{"$error":"#DIV/0!"}},{"$f":"MIN((IFERROR(IF(AND($V71<=AK$1,$W71>=AK$1),INDEX(Reliability!P$23:P$50,MATCH($S71,Reliability!$C$23:$C$50,0)),0),0)*IF($T71=\"n/a\",$D71*$Y71,$G71)+IFERROR(IF(AND($V71<=AK$1,$W71>=AK$1),INDEX(Reliability!P$23:P$50,MATCH($T71,Reliability!$C$23:$C$50,0)),0),0)*$H71*$X71*$Y71),$D71)*$R71","v":{"$error":"#DIV/0!"}}]
[null,{"$f":"unique_contracts!B73","v":"_NEW_GENERIC_BATTERY_STORAGE"},{"$f":"unique_contracts!D73","v":"PlannedNew"},{"$f":"unique_contracts!J73","v":0},{"$f":"unique_contracts!M73","v":"NotHybrid"},{"$f":"unique_contracts!N73","v":"NA"},{"$f":"unique_contracts!P73","v":0},{"$f":"unique_contracts!R73","v":0},{"$f":"unique_contracts!V73","v":0},{"$f":"unique_contracts!AB73","v":"Sell"},{"$f":"unique_contracts!AM73","v":2030},{"$f":"unique_contracts!AN73","v":1},{"$f":"unique_contracts!AO73","v":1},{"$f":"unique_contracts!AP73","v":2030},{"$f":"unique_contracts!AQ73","v":12},{"$f":"unique_contracts!AR73","v":31},{"$f":"unique_contracts!BP73","v":"CapacityOnly"},-1,{"$f":"IFERROR(IF(AND(I72>0,E72=\"NotHybrid\"),_xlfn.CONCAT(MAX(MIN(ROUNDDOWN(I72/D72,0),8),4),INDEX(resources!$G:$G,MATCH(B72,resources!$A:$A,0))),INDEX(resources!$G:$G,MATCH(B72,resources!$A:$A,0))),\"n/a\")","v":"hr_batteries"},"n/a","hr_batteries",2030,2030,1,{"$error":"#DIV/0!"},{"$f":"MIN((IFERROR(IF(AND($V72<=Z$1,$W72>=Z$1),INDEX(Reliability!E$23:E$50,MATCH($S72,Reliability!$C$23:$C$50,0)),0),0)*IF($T72=\"n/a\",$D72*$Y72,$G72)+IFERROR(IF(AND($V72<=Z$1,$W72>=Z$1),INDEX(Reliability!E$23:E$50,MATCH($T72,Reliability!$C$23:$C$50,0)),0),0)*$H72*$X72*$Y72),$D72)*$R72","v":{"$error":"#DIV/0!"}},{"$f":"MIN((IFERROR(IF(AND($V72<=AA$1,$W72>=AA$1),INDEX(Reliability!F$23:F$50,MATCH($S72,Reliability!$C$23:$C$50,0)),0),0)*IF($T72=\"n/a\",$D72*$Y72,$G72)+IFERROR(IF(AND($V72<=AA$1,$W72>=AA$1),INDEX(Reliability!F$23:F$50,MATCH($T72,Reliability!$C$23:$C$50,0)),0),0)*$H72*$X72*$Y72),$D72)*$R72","v":{"$error":"#DIV/0!"}},{"$f":"MIN((IFERROR(IF(AND($V72<=AB$1,$W72>=AB$1),INDEX(Reliability!G$23:G$50,MATCH($S72,Reliability!$C$23:$C$50,0)),0),0)*IF($T72=\"n/a\",$D72*$Y72,$G72)+IFERROR(IF(AND($V72<=AB$1,$W72>=AB$1),INDEX(Reliability!G$23:G$50,MATCH($T72,Reliability!$C$23:$C$50,0)),0),0)*$H72*$X72*$Y72),$D72)*$R72","v":{"$error":"#DIV/0!"}},{"$f":"MIN((IFERROR(IF(AND($V72<=AC$1,$W72>=AC$1),INDEX(Reliability!H$23:H$50,MATCH($S72,Reliability!$C$23:$C$50,0)),0),0)*IF($T72=\"n/a\",$D72*$Y72,$G72)+IFERROR(IF(AND($V72<=AC$1,$W72>=AC$1),INDEX(Reliability!H$23:H$50,MATCH($T72,Reliability!$C$23:$C$50,0)),0),0)*$H72*$X72*$Y72),$D72)*$R72","v":{"$error":"#DIV/0!"}},{"$f":"MIN((IFERROR(IF(AND($V72<=AD$1,$W72>=AD$1),INDEX(Reliability!I$23:I$50,MATCH($S72,Reliability!$C$23:$C$50,0)),0),0)*IF($T72=\"n/a\",$D72*$Y72,$G72)+IFERROR(IF(AND($V72<=AD$1,$W72>=AD$1),INDEX(Reliability!I$23:I$50,MATCH($T72,Reliability!$C$23:$C$50,0)),0),0)*$H72*$X72*$Y72),$D72)*$R72","v":{"$error":"#DIV/0!"}},{"$f":"MIN((IFERROR(IF(AND($V72<=AE$1,$W72>=AE$1),INDEX(Reliability!J$23:J$50,MATCH($S72,Reliability!$C$23:$C$50,0)),0),0)*IF($T72=\"n/a\",$D72*$Y72,$G72)+IFERROR(IF(AND($V72<=AE$1,$W72>=AE$1),INDEX(Reliability!J$23:J$50,MATCH($T72,Reliability!$C$23:$C$50,0)),0),0)*$H72*$X72*$Y72),$D72)*$R72","v":{"$error":"#DIV/0!"}},{"$f":"MIN((IFERROR(IF(AND($V72<=AF$1,$W72>=AF$1),INDEX(Reliability!K$23:K$50,MATCH($S72,Reliability!$C$23:$C$50,0)),0),0)*IF($T72=\"n/a\",$D72*$Y72,$G72)+IFERROR(IF(AND($V72<=AF$1,$W72>=AF$1),INDEX(Reliability!K$23:K$50,MATCH($T72,Reliability!$C$23:$C$50,0)),0),0)*$H72*$X72*$Y72),$D72)*$R72","v":{"$error":"#DIV/0!"}},{"$f":"MIN((IFERROR(IF(AND($V72<=AG$1,$W72>=AG$1),INDEX(Reliability!L$23:L$50,MATCH($S72,Reliability!$C$23:$C$50,0)),0),0)*IF($T72=\"n/a\",$D72*$Y72,$G72)+IFERROR(IF(AND($V72<=AG$1,$W72>=AG$1),INDEX(Reliability!L$23:L$50,MATCH($T72,Reliability!$C$23:$C$50,0)),0),0)*$H72*$X72*$Y72),$D72)*$R72","v":{"$error":"#DIV/0!"}},{"$f":"MIN((IFERROR(IF(AND($V72<=AH$1,$W72>=AH$1),INDEX(Reliability!M$23:M$50,MATCH($S72,Reliability!$C$23:$C$50,0)),0),0)*IF($T72=\"n/a\",$D72*$Y72,$G72)+IFERROR(IF(AND($V72<=AH$1,$W72>=AH$1),INDEX(Reliability!M$23:M$50,MATCH($T72,Reliability!$C$23:$C$50,0)),0),0)*$H72*$X72*$Y72),$D72)*$R72","v":{"$error":"#DIV/0!"}},{"$f":"MIN((IFERROR(IF(AND($V72<=AI$1,$W72>=AI$1),INDEX(Reliability!N$23:N$50,MATCH($S72,Reliability!$C$23:$C$50,0)),0),0)*IF($T72=\"n/a\",$D72*$Y72,$G72)+IFERROR(IF(AND($V72<=AI$1,$W72>=AI$1),INDEX(Reliability!N$23:N$50,MATCH($T72,Reliability!$C$23:$C$50,0)),0),0)*$H72*$X72*$Y72),$D72)*$R72","v":{"$error":"#DIV/0!"}},{"$f":"MIN((IFERROR(IF(AND($V72<=AJ$1,$W72>=AJ$1),INDEX(Reliability!O$23:O$50,MATCH($S72,Reliability!$C$23:$C$50,0)),0),0)*IF($T72=\"n/a\",$D72*$Y72,$G72)+IFERROR(IF(AND($V72<=AJ$1,$W72>=AJ$1),INDEX(Reliability!O$23:O$50,MATCH($T72,Reliability!$C$23:$C$50,0)),0),0)*$H72*$X72*$Y72),$D72)*$R72","v":{"$error":"#DIV/0!"}},{"$f":"MIN((IFERROR(IF(AND($V72<=AK$1,$W72>=AK$1),INDEX(Reliability!P$23:P$50,MATCH($S72,Reliability!$C$23:$C$50,0)),0),0)*IF($T72=\"n/a\",$D72*$Y72,$G72)+IFERROR(IF(AND($V72<=AK$1,$W72>=AK$1),INDEX(Reliability!P$23:P$50,MATCH($T72,Reliability!$C$23:$C$50,0)),0),0)*$H72*$X72*$Y72),$D72)*$R72","v":{"$error":"#DIV/0!"}}]
[null,{"$f":"unique_contracts!B74","v":"_NEW_GENERIC_BATTERY_STORAGE"},{"$f":"unique_contracts!D74","v":"PlannedNew"},{"$f":"unique_contracts!J74","v":0},{"$f":"unique_contracts!M74","v":"NotHybrid"},{"$f":"unique_contracts!N74","v":"NA"},{"$f":"unique_contracts!P74","v":0},{"$f":"unique_contracts!R74","v":0},{"$f":"unique_contracts!V74","v":0},{"$f":"unique_contracts!AB74","v":"Sell"},{"$f":"unique_contracts!AM74","v":2031},{"$f":"unique_contracts!AN74","v":1},{"$f":"unique_contracts!AO74","v":1},{"$f":"unique_contracts!AP74","v":2031},{"$f":"unique_contracts!AQ74","v":12},{"$f":"unique_contracts!AR74","v":31},{"$f":"unique_contracts!BP74","v":"CapacityOnly"},-1,{"$f":"IFERROR(IF(AND(I73>0,E73=\"NotHybrid\"),_xlfn.CONCAT(MAX(MIN(ROUNDDOWN(I73/D73,0),8),4),INDEX(resources!$G:$G,MATCH(B73,resources!$A:$A,0))),INDEX(resources!$G:$G,MATCH(B73,resources!$A:$A,0))),\"n/a\")","v":"hr_batteries"},"n/a","hr_batteries",2031,2031,1,{"$error":"#DIV/0!"},{"$f":"MIN((IFERROR(IF(AND($V73<=Z$1,$W73>=Z$1),INDEX(Reliability!E$23:E$50,MATCH($S73,Reliability!$C$23:$C$50,0)),0),0)*IF($T73=\"n/a\",$D73*$Y73,$G73)+IFERROR(IF(AND($V73<=Z$1,$W73>=Z$1),INDEX(Reliability!E$23:E$50,MATCH($T73,Reliability!$C$23:$C$50,0)),0),0)*$H73*$X73*$Y73),$D73)*$R73","v":{"$error":"#DIV/0!"}},{"$f":"MIN((IFERROR(IF(AND($V73<=AA$1,$W73>=AA$1),INDEX(Reliability!F$23:F$50,MATCH($S73,Reliability!$C$23:$C$50,0)),0),0)*IF($T73=\"n/a\",$D73*$Y73,$G73)+IFERROR(IF(AND($V73<=AA$1,$W73>=AA$1),INDEX(Reliability!F$23:F$50,MATCH($T73,Reliability!$C$23:$C$50,0)),0),0)*$H73*$X73*$Y73),$D73)*$R73","v":{"$error":"#DIV/0!"}},{"$f":"MIN((IFERROR(IF(AND($V73<=AB$1,$W73>=AB$1),INDEX(Reliability!G$23:G$50,MATCH($S73,Reliability!$C$23:$C$50,0)),0),0)*IF($T73=\"n/a\",$D73*$Y73,$G73)+IFERROR(IF(AND($V73<=AB$1,$W73>=AB$1),INDEX(Reliability!G$23:G$50,MATCH($T73,Reliability!$C$23:$C$50,0)),0),0)*$H73*$X73*$Y73),$D73)*$R73","v":{"$error":"#DIV/0!"}},{"$f":"MIN((IFERROR(IF(AND($V73<=AC$1,$W73>=AC$1),INDEX(Reliability!H$23:H$50,MATCH($S73,Reliability!$C$23:$C$50,0)),0),0)*IF($T73=\"n/a\",$D73*$Y73,$G73)+IFERROR(IF(AND($V73<=AC$1,$W73>=AC$1),INDEX(Reliability!H$23:H$50,MATCH($T73,Reliability!$C$23:$C$50,0)),0),0)*$H73*$X73*$Y73),$D73)*$R73","v":{"$error":"#DIV/0!"}},{"$f":"MIN((IFERROR(IF(AND($V73<=AD$1,$W73>=AD$1),INDEX(Reliability!I$23:I$50,MATCH($S73,Reliability!$C$23:$C$50,0)),0),0)*IF($T73=\"n/a\",$D73*$Y73,$G73)+IFERROR(IF(AND($V73<=AD$1,$W73>=AD$1),INDEX(Reliability!I$23:I$50,MATCH($T73,Reliability!$C$23:$C$50,0)),0),0)*$H73*$X73*$Y73),$D73)*$R73","v":{"$error":"#DIV/0!"}},{"$f":"MIN((IFERROR(IF(AND($V73<=AE$1,$W73>=AE$1),INDEX(Reliability!J$23:J$50,MATCH($S73,Reliability!$C$23:$C$50,0)),0),0)*IF($T73=\"n/a\",$D73*$Y73,$G73)+IFERROR(IF(AND($V73<=AE$1,$W73>=AE$1),INDEX(Reliability!J$23:J$50,MATCH($T73,Reliability!$C$23:$C$50,0)),0),0)*$H73*$X73*$Y73),$D73)*$R73","v":{"$error":"#DIV/0!"}},{"$f":"MIN((IFERROR(IF(AND($V73<=AF$1,$W73>=AF$1),INDEX(Reliability!K$23:K$50,MATCH($S73,Reliability!$C$23:$C$50,0)),0),0)*IF($T73=\"n/a\",$D73*$Y73,$G73)+IFERROR(IF(AND($V73<=AF$1,$W73>=AF$1),INDEX(Reliability!K$23:K$50,MATCH($T73,Reliability!$C$23:$C$50,0)),0),0)*$H73*$X73*$Y73),$D73)*$R73","v":{"$error":"#DIV/0!"}},{"$f":"MIN((IFERROR(IF(AND($V73<=AG$1,$W73>=AG$1),INDEX(Reliability!L$23:L$50,MATCH($S73,Reliability!$C$23:$C$50,0)),0),0)*IF($T73=\"n/a\",$D73*$Y73,$G73)+IFERROR(IF(AND($V73<=AG$1,$W73>=AG$1),INDEX(Reliability!L$23:L$50,MATCH($T73,Reliability!$C$23:$C$50,0)),0),0)*$H73*$X73*$Y73),$D73)*$R73","v":{"$error":"#DIV/0!"}},{"$f":"MIN((IFERROR(IF(AND($V73<=AH$1,$W73>=AH$1),INDEX(Reliability!M$23:M$50,MATCH($S73,Reliability!$C$23:$C$50,0)),0),0)*IF($T73=\"n/a\",$D73*$Y73,$G73)+IFERROR(IF(AND($V73<=AH$1,$W73>=AH$1),INDEX(Reliability!M$23:M$50,MATCH($T73,Reliability!$C$23:$C$50,0)),0),0)*$H73*$X73*$Y73),$D73)*$R73","v":{"$error":"#DIV/0!"}},{"$f":"MIN((IFERROR(IF(AND($V73<=AI$1,$W73>=AI$1),INDEX(Reliability!N$23:N$50,MATCH($S73,Reliability!$C$23:$C$50,0)),0),0)*IF($T73=\"n/a\",$D73*$Y73,$G73)+IFERROR(IF(AND($V73<=AI$1,$W73>=AI$1),INDEX(Reliability!N$23:N$50,MATCH($T73,Reliability!$C$23:$C$50,0)),0),0)*$H73*$X73*$Y73),$D73)*$R73","v":{"$error":"#DIV/0!"}},{"$f":"MIN((IFERROR(IF(AND($V73<=AJ$1,$W73>=AJ$1),INDEX(Reliability!O$23:O$50,MATCH($S73,Reliability!$C$23:$C$50,0)),0),0)*IF($T73=\"n/a\",$D73*$Y73,$G73)+IFERROR(IF(AND($V73<=AJ$1,$W73>=AJ$1),INDEX(Reliability!O$23:O$50,MATCH($T73,Reliability!$C$23:$C$50,0)),0),0)*$H73*$X73*$Y73),$D73)*$R73","v":{"$error":"#DIV/0!"}},{"$f":"MIN((IFERROR(IF(AND($V73<=AK$1,$W73>=AK$1),INDEX(Reliability!P$23:P$50,MATCH($S73,Reliability!$C$23:$C$50,0)),0),0)*IF($T73=\"n/a\",$D73*$Y73,$G73)+IFERROR(IF(AND($V73<=AK$1,$W73>=AK$1),INDEX(Reliability!P$23:P$50,MATCH($T73,Reliability!$C$23:$C$50,0)),0),0)*$H73*$X73*$Y73),$D73)*$R73","v":{"$error":"#DIV/0!"}}]
[null,{"$f":"unique_contracts!B75","v":"_NEW_GENERIC_BATTERY_STORAGE"},{"$f":"unique_contracts!D75","v":"PlannedNew"},{"$f":"unique_contracts!J75","v":0},{"$f":"unique_contracts!M75","v":"NotHybrid"},{"$f":"unique_contracts!N75","v":"NA"},{"$f":"unique_contracts!P75","v":0},{"$f":"unique_contracts!R75","v":0},{"$f":"unique_contracts!V75","v":0},{"$f":"unique_contracts!AB75","v":"Sell"},{"$f":"unique_contracts!AM75","v":2032},{"$f":"unique_contracts!AN75","v":1},{"$f":"unique_contracts!AO75","v":1},{"$f":"unique_contracts!AP75","v":2032},{"$f":"unique_contracts!AQ75","v":12},{"$f":"unique_contracts!AR75","v":31},{"$f":"unique_contracts!BP75","v":"CapacityOnly"},-1,{"$f":"IFERROR(IF(AND(I74>0,E74=\"NotHybrid\"),_xlfn.CONCAT(MAX(MIN(ROUNDDOWN(I74/D74,0),8),4),INDEX(resources!$G:$G,MATCH(B74,resources!$A:$A,0))),INDEX(resources!$G:$G,MATCH(B74,resources!$A:$A,0))),\"n/a\")","v":"hr_batteries"},"n/a","hr_batteries",2032,2032,1,{"$error":"#DIV/0!"},{"$f":"MIN((IFERROR(IF(AND($V74<=Z$1,$W74>=Z$1),INDEX(Reliability!E$23:E$50,MATCH($S74,Reliability!$C$23:$C$50,0)),0),0)*IF($T74=\"n/a\",$D74*$Y74,$G74)+IFERROR(IF(AND($V74<=Z$1,$W74>=Z$1),INDEX(Reliability!E$23:E$50,MATCH($T74,Reliability!$C$23:$C$50,0)),0),0)*$H74*$X74*$Y74),$D74)*$R74","v":{"$error":"#DIV/0!"}},{"$f":"MIN((IFERROR(IF(AND($V74<=AA$1,$W74>=AA$1),INDEX(Reliability!F$23:F$50,MATCH($S74,Reliability!$C$23:$C$50,0)),0),0)*IF($T74=\"n/a\",$D74*$Y74,$G74)+IFERROR(IF(AND($V74<=AA$1,$W74>=AA$1),INDEX(Reliability!F$23:F$50,MATCH($T74,Reliability!$C$23:$C$50,0)),0),0)*$H74*$X74*$Y74),$D74)*$R74","v":{"$error":"#DIV/0!"}},{"$f":"MIN((IFERROR(IF(AND($V74<=AB$1,$W74>=AB$1),INDEX(Reliability!G$23:G$50,MATCH($S74,Reliability!$C$23:$C$50,0)),0),0)*IF($T74=\"n/a\",$D74*$Y74,$G74)+IFERROR(IF(AND($V74<=AB$1,$W74>=AB$1),INDEX(Reliability!G$23:G$50,MATCH($T74,Reliability!$C$23:$C$50,0)),0),0)*$H74*$X74*$Y74),$D74)*$R74","v":{"$error":"#DIV/0!"}},{"$f":"MIN((IFERROR(IF(AND($V74<=AC$1,$W74>=AC$1),INDEX(Reliability!H$23:H$50,MATCH($S74,Reliability!$C$23:$C$50,0)),0),0)*IF($T74=\"n/a\",$D74*$Y74,$G74)+IFERROR(IF(AND($V74<=AC$1,$W74>=AC$1),INDEX(Reliability!H$23:H$50,MATCH($T74,Reliability!$C$23:$C$50,0)),0),0)*$H74*$X74*$Y74),$D74)*$R74","v":{"$error":"#DIV/0!"}},{"$f":"MIN((IFERROR(IF(AND($V74<=AD$1,$W74>=AD$1),INDEX(Reliability!I$23:I$50,MATCH($S74,Reliability!$C$23:$C$50,0)),0),0)*IF($T74=\"n/a\",$D74*$Y74,$G74)+IFERROR(IF(AND($V74<=AD$1,$W74>=AD$1),INDEX(Reliability!I$23:I$50,MATCH($T74,Reliability!$C$23:$C$50,0)),0),0)*$H74*$X74*$Y74),$D74)*$R74","v":{"$error":"#DIV/0!"}},{"$f":"MIN((IFERROR(IF(AND($V74<=AE$1,$W74>=AE$1),INDEX(Reliability!J$23:J$50,MATCH($S74,Reliability!$C$23:$C$50,0)),0),0)*IF($T74=\"n/a\",$D74*$Y74,$G74)+IFERROR(IF(AND($V74<=AE$1,$W74>=AE$1),INDEX(Reliability!J$23:J$50,MATCH($T74,Reliability!$C$23:$C$50,0)),0),0)*$H74*$X74*$Y74),$D74)*$R74","v":{"$error":"#DIV/0!"}},{"$f":"MIN((IFERROR(IF(AND($V74<=AF$1,$W74>=AF$1),INDEX(Reliability!K$23:K$50,MATCH($S74,Reliability!$C$23:$C$50,0)),0),0)*IF($T74=\"n/a\",$D74*$Y74,$G74)+IFERROR(IF(AND($V74<=AF$1,$W74>=AF$1),INDEX(Reliability!K$23:K$50,MATCH($T74,Reliability!$C$23:$C$50,0)),0),0)*$H74*$X74*$Y74),$D74)*$R74","v":{"$error":"#DIV/0!"}},{"$f":"MIN((IFERROR(IF(AND($V74<=AG$1,$W74>=AG$1),INDEX(Reliability!L$23:L$50,MATCH($S74,Reliability!$C$23:$C$50,0)),0),0)*IF($T74=\"n/a\",$D74*$Y74,$G74)+IFERROR(IF(AND($V74<=AG$1,$W74>=AG$1),INDEX(Reliability!L$23:L$50,MATCH($T74,Reliability!$C$23:$C$50,0)),0),0)*$H74*$X74*$Y74),$D74)*$R74","v":{"$error":"#DIV/0!"}},{"$f":"MIN((IFERROR(IF(AND($V74<=AH$1,$W74>=AH$1),INDEX(Reliability!M$23:M$50,MATCH($S74,Reliability!$C$23:$C$50,0)),0),0)*IF($T74=\"n/a\",$D74*$Y74,$G74)+IFERROR(IF(AND($V74<=AH$1,$W74>=AH$1),INDEX(Reliability!M$23:M$50,MATCH($T74,Reliability!$C$23:$C$50,0)),0),0)*$H74*$X74*$Y74),$D74)*$R74","v":{"$error":"#DIV/0!"}},{"$f":"MIN((IFERROR(IF(AND($V74<=AI$1,$W74>=AI$1),INDEX(Reliability!N$23:N$50,MATCH($S74,Reliability!$C$23:$C$50,0)),0),0)*IF($T74=\"n/a\",$D74*$Y74,$G74)+IFERROR(IF(AND($V74<=AI$1,$W74>=AI$1),INDEX(Reliability!N$23:N$50,MATCH($T74,Reliability!$C$23:$C$50,0)),0),0)*$H74*$X74*$Y74),$D74)*$R74","v":{"$error":"#DIV/0!"}},{"$f":"MIN((IFERROR(IF(AND($V74<=AJ$1,$W74>=AJ$1),INDEX(Reliability!O$23:O$50,MATCH($S74,Reliability!$C$23:$C$50,0)),0),0)*IF($T74=\"n/a\",$D74*$Y74,$G74)+IFERROR(IF(AND($V74<=AJ$1,$W74>=AJ$1),INDEX(Reliability!O$23:O$50,MATCH($T74,Reliability!$C$23:$C$50,0)),0),0)*$H74*$X74*$Y74),$D74)*$R74","v":{"$error":"#DIV/0!"}},{"$f":"MIN((IFERROR(IF(AND($V74<=AK$1,$W74>=AK$1),INDEX(Reliability!P$23:P$50,MATCH($S74,Reliability!$C$23:$C$50,0)),0),0)*IF($T74=\"n/a\",$D74*$Y74,$G74)+IFERROR(IF(AND($V74<=AK$1,$W74>=AK$1),INDEX(Reliability!P$23:P$50,MATCH($T74,Reliability!$C$23:$C$50,0)),0),0)*$H74*$X74*$Y74),$D74)*$R74","v":{"$error":"#DIV/0!"}}]
[null,{"$f":"unique_contracts!B76","v":"_NEW_GENERIC_BATTERY_STORAGE"},{"$f":"unique_contracts!D76","v":"PlannedNew"},{"$f":"unique_contracts!J76","v":0},{"$f":"unique_contracts!M76","v":"NotHybrid"},{"$f":"unique_contracts!N76","v":"NA"},{"$f":"unique_contracts!P76","v":0},{"$f":"unique_contracts!R76","v":0},{"$f":"unique_contracts!V76","v":0},{"$f":"unique_contracts!AB76","v":"Sell"},{"$f":"unique_contracts!AM76","v":2033},{"$f":"unique_contracts!AN76","v":1},{"$f":"unique_contracts!AO76","v":1},{"$f":"unique_contracts!AP76","v":2033},{"$f":"unique_contracts!AQ76","v":12},{"$f":"unique_contracts!AR76","v":31},{"$f":"unique_contracts!BP76","v":"CapacityOnly"},-1,{"$f":"IFERROR(IF(AND(I75>0,E75=\"NotHybrid\"),_xlfn.CONCAT(MAX(MIN(ROUNDDOWN(I75/D75,0),8),4),INDEX(resources!$G:$G,MATCH(B75,resources!$A:$A,0))),INDEX(resources!$G:$G,MATCH(B75,resources!$A:$A,0))),\"n/a\")","v":"hr_batteries"},"n/a","hr_batteries",2033,2033,1,{"$error":"#DIV/0!"},{"$f":"MIN((IFERROR(IF(AND($V75<=Z$1,$W75>=Z$1),INDEX(Reliability!E$23:E$50,MATCH($S75,Reliability!$C$23:$C$50,0)),0),0)*IF($T75=\"n/a\",$D75*$Y75,$G75)+IFERROR(IF(AND($V75<=Z$1,$W75>=Z$1),INDEX(Reliability!E$23:E$50,MATCH($T75,Reliability!$C$23:$C$50,0)),0),0)*$H75*$X75*$Y75),$D75)*$R75","v":{"$error":"#DIV/0!"}},{"$f":"MIN((IFERROR(IF(AND($V75<=AA$1,$W75>=AA$1),INDEX(Reliability!F$23:F$50,MATCH($S75,Reliability!$C$23:$C$50,0)),0),0)*IF($T75=\"n/a\",$D75*$Y75,$G75)+IFERROR(IF(AND($V75<=AA$1,$W75>=AA$1),INDEX(Reliability!F$23:F$50,MATCH($T75,Reliability!$C$23:$C$50,0)),0),0)*$H75*$X75*$Y75),$D75)*$R75","v":{"$error":"#DIV/0!"}},{"$f":"MIN((IFERROR(IF(AND($V75<=AB$1,$W75>=AB$1),INDEX(Reliability!G$23:G$50,MATCH($S75,Reliability!$C$23:$C$50,0)),0),0)*IF($T75=\"n/a\",$D75*$Y75,$G75)+IFERROR(IF(AND($V75<=AB$1,$W75>=AB$1),INDEX(Reliability!G$23:G$50,MATCH($T75,Reliability!$C$23:$C$50,0)),0),0)*$H75*$X75*$Y75),$D75)*$R75","v":{"$error":"#DIV/0!"}},{"$f":"MIN((IFERROR(IF(AND($V75<=AC$1,$W75>=AC$1),INDEX(Reliability!H$23:H$50,MATCH($S75,Reliability!$C$23:$C$50,0)),0),0)*IF($T75=\"n/a\",$D75*$Y75,$G75)+IFERROR(IF(AND($V75<=AC$1,$W75>=AC$1),INDEX(Reliability!H$23:H$50,MATCH($T75,Reliability!$C$23:$C$50,0)),0),0)*$H75*$X75*$Y75),$D75)*$R75","v":{"$error":"#DIV/0!"}},{"$f":"MIN((IFERROR(IF(AND($V75<=AD$1,$W75>=AD$1),INDEX(Reliability!I$23:I$50,MATCH($S75,Reliability!$C$23:$C$50,0)),0),0)*IF($T75=\"n/a\",$D75*$Y75,$G75)+IFERROR(IF(AND($V75<=AD$1,$W75>=AD$1),INDEX(Reliability!I$23:I$50,MATCH($T75,Reliability!$C$23:$C$50,0)),0),0)*$H75*$X75*$Y75),$D75)*$R75","v":{"$error":"#DIV/0!"}},{"$f":"MIN((IFERROR(IF(AND($V75<=AE$1,$W75>=AE$1),INDEX(Reliability!J$23:J$50,MATCH($S75,Reliability!$C$23:$C$50,0)),0),0)*IF($T75=\"n/a\",$D75*$Y75,$G75)+IFERROR(IF(AND($V75<=AE$1,$W75>=AE$1),INDEX(Reliability!J$23:J$50,MATCH($T75,Reliability!$C$23:$C$50,0)),0),0)*$H75*$X75*$Y75),$D75)*$R75","v":{"$error":"#DIV/0!"}},{"$f":"MIN((IFERROR(IF(AND($V75<=AF$1,$W75>=AF$1),INDEX(Reliability!K$23:K$50,MATCH($S75,Reliability!$C$23:$C$50,0)),0),0)*IF($T75=\"n/a\",$D75*$Y75,$G75)+IFERROR(IF(AND($V75<=AF$1,$W75>=AF$1),INDEX(Reliability!K$23:K$50,MATCH($T75,Reliability!$C$23:$C$50,0)),0),0)*$H75*$X75*$Y75),$D75)*$R75","v":{"$error":"#DIV/0!"}},{"$f":"MIN((IFERROR(IF(AND($V75<=AG$1,$W75>=AG$1),INDEX(Reliability!L$23:L$50,MATCH($S75,Reliability!$C$23:$C$50,0)),0),0)*IF($T75=\"n/a\",$D75*$Y75,$G75)+IFERROR(IF(AND($V75<=AG$1,$W75>=AG$1),INDEX(Reliability!L$23:L$50,MATCH($T75,Reliability!$C$23:$C$50,0)),0),0)*$H75*$X75*$Y75),$D75)*$R75","v":{"$error":"#DIV/0!"}},{"$f":"MIN((IFERROR(IF(AND($V75<=AH$1,$W75>=AH$1),INDEX(Reliability!M$23:M$50,MATCH($S75,Reliability!$C$23:$C$50,0)),0),0)*IF($T75=\"n/a\",$D75*$Y75,$G75)+IFERROR(IF(AND($V75<=AH$1,$W75>=AH$1),INDEX(Reliability!M$23:M$50,MATCH($T75,Reliability!$C$23:$C$50,0)),0),0)*$H75*$X75*$Y75),$D75)*$R75","v":{"$error":"#DIV/0!"}},{"$f":"MIN((IFERROR(IF(AND($V75<=AI$1,$W75>=AI$1),INDEX(Reliability!N$23:N$50,MATCH($S75,Reliability!$C$23:$C$50,0)),0),0)*IF($T75=\"n/a\",$D75*$Y75,$G75)+IFERROR(IF(AND($V75<=AI$1,$W75>=AI$1),INDEX(Reliability!N$23:N$50,MATCH($T75,Reliability!$C$23:$C$50,0)),0),0)*$H75*$X75*$Y75),$D75)*$R75","v":{"$error":"#DIV/0!"}},{"$f":"MIN((IFERROR(IF(AND($V75<=AJ$1,$W75>=AJ$1),INDEX(Reliability!O$23:O$50,MATCH($S75,Reliability!$C$23:$C$50,0)),0),0)*IF($T75=\"n/a\",$D75*$Y75,$G75)+IFERROR(IF(AND($V75<=AJ$1,$W75>=AJ$1),INDEX(Reliability!O$23:O$50,MATCH($T75,Reliability!$C$23:$C$50,0)),0),0)*$H75*$X75*$Y75),$D75)*$R75","v":{"$error":"#DIV/0!"}},{"$f":"MIN((IFERROR(IF(AND($V75<=AK$1,$W75>=AK$1),INDEX(Reliability!P$23:P$50,MATCH($S75,Reliability!$C$23:$C$50,0)),0),0)*IF($T75=\"n/a\",$D75*$Y75,$G75)+IFERROR(IF(AND($V75<=AK$1,$W75>=AK$1),INDEX(Reliability!P$23:P$50,MATCH($T75,Reliability!$C$23:$C$50,0)),0),0)*$H75*$X75*$Y75),$D75)*$R75","v":{"$error":"#DIV/0!"}}]
[null,{"$f":"unique_contracts!B77","v":"_NEW_GENERIC_BATTERY_STORAGE"},{"$f":"unique_contracts!D77","v":"PlannedNew"},{"$f":"unique_contracts!J77","v":0},{"$f":"unique_contracts!M77","v":"NotHybrid"},{"$f":"unique_contracts!N77","v":"NA"},{"$f":"unique_contracts!P77","v":0},{"$f":"unique_contracts!R77","v":0},{"$f":"unique_contracts!V77","v":0},{"$f":"unique_contracts!AB77","v":"Sell"},{"$f":"unique_contracts!AM77","v":2034},{"$f":"unique_contracts!AN77","v":1},{"$f":"unique_contracts!AO77","v":1},{"$f":"unique_contracts!AP77","v":2034},{"$f":"unique_contracts!AQ77","v":12},{"$f":"unique_contracts!AR77","v":31},{"$f":"unique_contracts!BP77","v":"CapacityOnly"},-1,{"$f":"IFERROR(IF(AND(I76>0,E76=\"NotHybrid\"),_xlfn.CONCAT(MAX(MIN(ROUNDDOWN(I76/D76,0),8),4),INDEX(resources!$G:$G,MATCH(B76,resources!$A:$A,0))),INDEX(resources!$G:$G,MATCH(B76,resources!$A:$A,0))),\"n/a\")","v":"hr_batteries"},"n/a","hr_batteries",2034,2034,1,{"$error":"#DIV/0!"},{"$f":"MIN((IFERROR(IF(AND($V76<=Z$1,$W76>=Z$1),INDEX(Reliability!E$23:E$50,MATCH($S76,Reliability!$C$23:$C$50,0)),0),0)*IF($T76=\"n/a\",$D76*$Y76,$G76)+IFERROR(IF(AND($V76<=Z$1,$W76>=Z$1),INDEX(Reliability!E$23:E$50,MATCH($T76,Reliability!$C$23:$C$50,0)),0),0)*$H76*$X76*$Y76),$D76)*$R76","v":{"$error":"#DIV/0!"}},{"$f":"MIN((IFERROR(IF(AND($V76<=AA$1,$W76>=AA$1),INDEX(Reliability!F$23:F$50,MATCH($S76,Reliability!$C$23:$C$50,0)),0),0)*IF($T76=\"n/a\",$D76*$Y76,$G76)+IFERROR(IF(AND($V76<=AA$1,$W76>=AA$1),INDEX(Reliability!F$23:F$50,MATCH($T76,Reliability!$C$23:$C$50,0)),0),0)*$H76*$X76*$Y76),$D76)*$R76","v":{"$error":"#DIV/0!"}},{"$f":"MIN((IFERROR(IF(AND($V76<=AB$1,$W76>=AB$1),INDEX(Reliability!G$23:G$50,MATCH($S76,Reliability!$C$23:$C$50,0)),0),0)*IF($T76=\"n/a\",$D76*$Y76,$G76)+IFERROR(IF(AND($V76<=AB$1,$W76>=AB$1),INDEX(Reliability!G$23:G$50,MATCH($T76,Reliability!$C$23:$C$50,0)),0),0)*$H76*$X76*$Y76),$D76)*$R76","v":{"$error":"#DIV/0!"}},{"$f":"MIN((IFERROR(IF(AND($V76<=AC$1,$W76>=AC$1),INDEX(Reliability!H$23:H$50,MATCH($S76,Reliability!$C$23:$C$50,0)),0),0)*IF($T76=\"n/a\",$D76*$Y76,$G76)+IFERROR(IF(AND($V76<=AC$1,$W76>=AC$1),INDEX(Reliability!H$23:H$50,MATCH($T76,Reliability!$C$23:$C$50,0)),0),0)*$H76*$X76*$Y76),$D76)*$R76","v":{"$error":"#DIV/0!"}},{"$f":"MIN((IFERROR(IF(AND($V76<=AD$1,$W76>=AD$1),INDEX(Reliability!I$23:I$50,MATCH($S76,Reliability!$C$23:$C$50,0)),0),0)*IF($T76=\"n/a\",$D76*$Y76,$G76)+IFERROR(IF(AND($V76<=AD$1,$W76>=AD$1),INDEX(Reliability!I$23:I$50,MATCH($T76,Reliability!$C$23:$C$50,0)),0),0)*$H76*$X76*$Y76),$D76)*$R76","v":{"$error":"#DIV/0!"}},{"$f":"MIN((IFERROR(IF(AND($V76<=AE$1,$W76>=AE$1),INDEX(Reliability!J$23:J$50,MATCH($S76,Reliability!$C$23:$C$50,0)),0),0)*IF($T76=\"n/a\",$D76*$Y76,$G76)+IFERROR(IF(AND($V76<=AE$1,$W76>=AE$1),INDEX(Reliability!J$23:J$50,MATCH($T76,Reliability!$C$23:$C$50,0)),0),0)*$H76*$X76*$Y76),$D76)*$R76","v":{"$error":"#DIV/0!"}},{"$f":"MIN((IFERROR(IF(AND($V76<=AF$1,$W76>=AF$1),INDEX(Reliability!K$23:K$50,MATCH($S76,Reliability!$C$23:$C$50,0)),0),0)*IF($T76=\"n/a\",$D76*$Y76,$G76)+IFERROR(IF(AND($V76<=AF$1,$W76>=AF$1),INDEX(Reliability!K$23:K$50,MATCH($T76,Reliability!$C$23:$C$50,0)),0),0)*$H76*$X76*$Y76),$D76)*$R76","v":{"$error":"#DIV/0!"}},{"$f":"MIN((IFERROR(IF(AND($V76<=AG$1,$W76>=AG$1),INDEX(Reliability!L$23:L$50,MATCH($S76,Reliability!$C$23:$C$50,0)),0),0)*IF($T76=\"n/a\",$D76*$Y76,$G76)+IFERROR(IF(AND($V76<=AG$1,$W76>=AG$1),INDEX(Reliability!L$23:L$50,MATCH($T76,Reliability!$C$23:$C$50,0)),0),0)*$H76*$X76*$Y76),$D76)*$R76","v":{"$error":"#DIV/0!"}},{"$f":"MIN((IFERROR(IF(AND($V76<=AH$1,$W76>=AH$1),INDEX(Reliability!M$23:M$50,MATCH($S76,Reliability!$C$23:$C$50,0)),0),0)*IF($T76=\"n/a\",$D76*$Y76,$G76)+IFERROR(IF(AND($V76<=AH$1,$W76>=AH$1),INDEX(Reliability!M$23:M$50,MATCH($T76,Reliability!$C$23:$C$50,0)),0),0)*$H76*$X76*$Y76),$D76)*$R76","v":{"$error":"#DIV/0!"}},{"$f":"MIN((IFERROR(IF(AND($V76<=AI$1,$W76>=AI$1),INDEX(Reliability!N$23:N$50,MATCH($S76,Reliability!$C$23:$C$50,0)),0),0)*IF($T76=\"n/a\",$D76*$Y76,$G76)+IFERROR(IF(AND($V76<=AI$1,$W76>=AI$1),INDEX(Reliability!N$23:N$50,MATCH($T76,Reliability!$C$23:$C$50,0)),0),0)*$H76*$X76*$Y76),$D76)*$R76","v":{"$error":"#DIV/0!"}},{"$f":"MIN((IFERROR(IF(AND($V76<=AJ$1,$W76>=AJ$1),INDEX(Reliability!O$23:O$50,MATCH($S76,Reliability!$C$23:$C$50,0)),0),0)*IF($T76=\"n/a\",$D76*$Y76,$G76)+IFERROR(IF(AND($V76<=AJ$1,$W76>=AJ$1),INDEX(Reliability!O$23:O$50,MATCH($T76,Reliability!$C$23:$C$50,0)),0),0)*$H76*$X76*$Y76),$D76)*$R76","v":{"$error":"#DIV/0!"}},{"$f":"MIN((IFERROR(IF(AND($V76<=AK$1,$W76>=AK$1),INDEX(Reliability!P$23:P$50,MATCH($S76,Reliability!$C$23:$C$50,0)),0),0)*IF($T76=\"n/a\",$D76*$Y76,$G76)+IFERROR(IF(AND($V76<=AK$1,$W76>=AK$1),INDEX(Reliability!P$23:P$50,MATCH($T76,Reliability!$C$23:$C$50,0)),0),0)*$H76*$X76*$Y76),$D76)*$R76","v":{"$error":"#DIV/0!"}}]
[null,{"$f":"unique_contracts!B78","v":"_NEW_GENERIC_BATTERY_STORAGE"},{"$f":"unique_contracts!D78","v":"PlannedNew"},{"$f":"unique_contracts!J78","v":0},{"$f":"unique_contracts!M78","v":"NotHybrid"},{"$f":"unique_contracts!N78","v":"NA"},{"$f":"unique_contracts!P78","v":0},{"$f":"unique_contracts!R78","v":0},{"$f":"unique_contracts!V78","v":0},{"$f":"unique_contracts!AB78","v":"Sell"},{"$f":"unique_contracts!AM78","v":2035},{"$f":"unique_contracts!AN78","v":1},{"$f":"unique_contracts!AO78","v":1},{"$f":"unique_contracts!AP78","v":2035},{"$f":"unique_contracts!AQ78","v":12},{"$f":"unique_contracts!AR78","v":31},{"$f":"unique_contracts!BP78","v":"CapacityOnly"},-1,{"$f":"IFERROR(IF(AND(I77>0,E77=\"NotHybrid\"),_xlfn.CONCAT(MAX(MIN(ROUNDDOWN(I77/D77,0),8),4),INDEX(resources!$G:$G,MATCH(B77,resources!$A:$A,0))),INDEX(resources!$G:$G,MATCH(B77,resources!$A:$A,0))),\"n/a\")","v":"hr_batteries"},"n/a","hr_batteries",2035,2035,1,{"$error":"#DIV/0!"},{"$f":"MIN((IFERROR(IF(AND($V77<=Z$1,$W77>=Z$1),INDEX(Reliability!E$23:E$50,MATCH($S77,Reliability!$C$23:$C$50,0)),0),0)*IF($T77=\"n/a\",$D77*$Y77,$G77)+IFERROR(IF(AND($V77<=Z$1,$W77>=Z$1),INDEX(Reliability!E$23:E$50,MATCH($T77,Reliability!$C$23:$C$50,0)),0),0)*$H77*$X77*$Y77),$D77)*$R77","v":{"$error":"#DIV/0!"}},{"$f":"MIN((IFERROR(IF(AND($V77<=AA$1,$W77>=AA$1),INDEX(Reliability!F$23:F$50,MATCH($S77,Reliability!$C$23:$C$50,0)),0),0)*IF($T77=\"n/a\",$D77*$Y77,$G77)+IFERROR(IF(AND($V77<=AA$1,$W77>=AA$1),INDEX(Reliability!F$23:F$50,MATCH($T77,Reliability!$C$23:$C$50,0)),0),0)*$H77*$X77*$Y77),$D77)*$R77","v":{"$error":"#DIV/0!"}},{"$f":"MIN((IFERROR(IF(AND($V77<=AB$1,$W77>=AB$1),INDEX(Reliability!G$23:G$50,MATCH($S77,Reliability!$C$23:$C$50,0)),0),0)*IF($T77=\"n/a\",$D77*$Y77,$G77)+IFERROR(IF(AND($V77<=AB$1,$W77>=AB$1),INDEX(Reliability!G$23:G$50,MATCH($T77,Reliability!$C$23:$C$50,0)),0),0)*$H77*$X77*$Y77),$D77)*$R77","v":{"$error":"#DIV/0!"}},{"$f":"MIN((IFERROR(IF(AND($V77<=AC$1,$W77>=AC$1),INDEX(Reliability!H$23:H$50,MATCH($S77,Reliability!$C$23:$C$50,0)),0),0)*IF($T77=\"n/a\",$D77*$Y77,$G77)+IFERROR(IF(AND($V77<=AC$1,$W77>=AC$1),INDEX(Reliability!H$23:H$50,MATCH($T77,Reliability!$C$23:$C$50,0)),0),0)*$H77*$X77*$Y77),$D77)*$R77","v":{"$error":"#DIV/0!"}},{"$f":"MIN((IFERROR(IF(AND($V77<=AD$1,$W77>=AD$1),INDEX(Reliability!I$23:I$50,MATCH($S77,Reliability!$C$23:$C$50,0)),0),0)*IF($T77=\"n/a\",$D77*$Y77,$G77)+IFERROR(IF(AND($V77<=AD$1,$W77>=AD$1),INDEX(Reliability!I$23:I$50,MATCH($T77,Reliability!$C$23:$C$50,0)),0),0)*$H77*$X77*$Y77),$D77)*$R77","v":{"$error":"#DIV/0!"}},{"$f":"MIN((IFERROR(IF(AND($V77<=AE$1,$W77>=AE$1),INDEX(Reliability!J$23:J$50,MATCH($S77,Reliability!$C$23:$C$50,0)),0),0)*IF($T77=\"n/a\",$D77*$Y77,$G77)+IFERROR(IF(AND($V77<=AE$1,$W77>=AE$1),INDEX(Reliability!J$23:J$50,MATCH($T77,Reliability!$C$23:$C$50,0)),0),0)*$H77*$X77*$Y77),$D77)*$R77","v":{"$error":"#DIV/0!"}},{"$f":"MIN((IFERROR(IF(AND($V77<=AF$1,$W77>=AF$1),INDEX(Reliability!K$23:K$50,MATCH($S77,Reliability!$C$23:$C$50,0)),0),0)*IF($T77=\"n/a\",$D77*$Y77,$G77)+IFERROR(IF(AND($V77<=AF$1,$W77>=AF$1),INDEX(Reliability!K$23:K$50,MATCH($T77,Reliability!$C$23:$C$50,0)),0),0)*$H77*$X77*$Y77),$D77)*$R77","v":{"$error":"#DIV/0!"}},{"$f":"MIN((IFERROR(IF(AND($V77<=AG$1,$W77>=AG$1),INDEX(Reliability!L$23:L$50,MATCH($S77,Reliability!$C$23:$C$50,0)),0),0)*IF($T77=\"n/a\",$D77*$Y77,$G77)+IFERROR(IF(AND($V77<=AG$1,$W77>=AG$1),INDEX(Reliability!L$23:L$50,MATCH($T77,Reliability!$C$23:$C$50,0)),0),0)*$H77*$X77*$Y77),$D77)*$R77","v":{"$error":"#DIV/0!"}},{"$f":"MIN((IFERROR(IF(AND($V77<=AH$1,$W77>=AH$1),INDEX(Reliability!M$23:M$50,MATCH($S77,Reliability!$C$23:$C$50,0)),0),0)*IF($T77=\"n/a\",$D77*$Y77,$G77)+IFERROR(IF(AND($V77<=AH$1,$W77>=AH$1),INDEX(Reliability!M$23:M$50,MATCH($T77,Reliability!$C$23:$C$50,0)),0),0)*$H77*$X77*$Y77),$D77)*$R77","v":{"$error":"#DIV/0!"}},{"$f":"MIN((IFERROR(IF(AND($V77<=AI$1,$W77>=AI$1),INDEX(Reliability!N$23:N$50,MATCH($S77,Reliability!$C$23:$C$50,0)),0),0)*IF($T77=\"n/a\",$D77*$Y77,$G77)+IFERROR(IF(AND($V77<=AI$1,$W77>=AI$1),INDEX(Reliability!N$23:N$50,MATCH($T77,Reliability!$C$23:$C$50,0)),0),0)*$H77*$X77*$Y77),$D77)*$R77","v":{"$error":"#DIV/0!"}},{"$f":"MIN((IFERROR(IF(AND($V77<=AJ$1,$W77>=AJ$1),INDEX(Reliability!O$23:O$50,MATCH($S77,Reliability!$C$23:$C$50,0)),0),0)*IF($T77=\"n/a\",$D77*$Y77,$G77)+IFERROR(IF(AND($V77<=AJ$1,$W77>=AJ$1),INDEX(Reliability!O$23:O$50,MATCH($T77,Reliability!$C$23:$C$50,0)),0),0)*$H77*$X77*$Y77),$D77)*$R77","v":{"$error":"#DIV/0!"}},{"$f":"MIN((IFERROR(IF(AND($V77<=AK$1,$W77>=AK$1),INDEX(Reliability!P$23:P$50,MATCH($S77,Reliability!$C$23:$C$50,0)),0),0)*IF($T77=\"n/a\",$D77*$Y77,$G77)+IFERROR(IF(AND($V77<=AK$1,$W77>=AK$1),INDEX(Reliability!P$23:P$50,MATCH($T77,Reliability!$C$23:$C$50,0)),0),0)*$H77*$X77*$Y77),$D77)*$R77","v":{"$error":"#DIV/0!"}}]
[null,{"$f":"unique_contracts!B79","v":"_NEW_GENERIC_BATTERY_STORAGE"},{"$f":"unique_contracts!D79","v":"PlannedNew"},{"$f":"unique_contracts!J79","v":0},{"$f":"unique_contracts!M79","v":"NotHybrid"},{"$f":"unique_contracts!N79","v":"NA"},{"$f":"unique_contracts!P79","v":0},{"$f":"unique_contracts!R79","v":0},{"$f":"unique_contracts!V79","v":0},{"$f":"unique_contracts!AB79","v":"Buy"},{"$f":"unique_contracts!AM79","v":2033},{"$f":"unique_contracts!AN79","v":1},{"$f":"unique_contracts!AO79","v":1},{"$f":"unique_contracts!AP79","v":2033},{"$f":"unique_contracts!AQ79","v":12},{"$f":"unique_contracts!AR79","v":31},{"$f":"unique_contracts!BP79","v":"CapacityOnly"},1,{"$f":"IFERROR(IF(AND(I78>0,E78=\"NotHybrid\"),_xlfn.CONCAT(MAX(MIN(ROUNDDOWN(I78/D78,0),8),4),INDEX(resources!$G:$G,MATCH(B78,resources!$A:$A,0))),INDEX(resources!$G:$G,MATCH(B78,resources!$A:$A,0))),\"n/a\")","v":"hr_batteries"},"n/a","hr_batteries",2033,2033,1,{"$error":"#DIV/0!"},{"$f":"MIN((IFERROR(IF(AND($V78<=Z$1,$W78>=Z$1),INDEX(Reliability!E$23:E$50,MATCH($S78,Reliability!$C$23:$C$50,0)),0),0)*IF($T78=\"n/a\",$D78*$Y78,$G78)+IFERROR(IF(AND($V78<=Z$1,$W78>=Z$1),INDEX(Reliability!E$23:E$50,MATCH($T78,Reliability!$C$23:$C$50,0)),0),0)*$H78*$X78*$Y78),$D78)*$R78","v":{"$error":"#DIV/0!"}},{"$f":"MIN((IFERROR(IF(AND($V78<=AA$1,$W78>=AA$1),INDEX(Reliability!F$23:F$50,MATCH($S78,Reliability!$C$23:$C$50,0)),0),0)*IF($T78=\"n/a\",$D78*$Y78,$G78)+IFERROR(IF(AND($V78<=AA$1,$W78>=AA$1),INDEX(Reliability!F$23:F$50,MATCH($T78,Reliability!$C$23:$C$50,0)),0),0)*$H78*$X78*$Y78),$D78)*$R78","v":{"$error":"#DIV/0!"}},{"$f":"MIN((IFERROR(IF(AND($V78<=AB$1,$W78>=AB$1),INDEX(Reliability!G$23:G$50,MATCH($S78,Reliability!$C$23:$C$50,0)),0),0)*IF($T78=\"n/a\",$D78*$Y78,$G78)+IFERROR(IF(AND($V78<=AB$1,$W78>=AB$1),INDEX(Reliability!G$23:G$50,MATCH($T78,Reliability!$C$23:$C$50,0)),0),0)*$H78*$X78*$Y78),$D78)*$R78","v":{"$error":"#DIV/0!"}},{"$f":"MIN((IFERROR(IF(AND($V78<=AC$1,$W78>=AC$1),INDEX(Reliability!H$23:H$50,MATCH($S78,Reliability!$C$23:$C$50,0)),0),0)*IF($T78=\"n/a\",$D78*$Y78,$G78)+IFERROR(IF(AND($V78<=AC$1,$W78>=AC$1),INDEX(Reliability!H$23:H$50,MATCH($T78,Reliability!$C$23:$C$50,0)),0),0)*$H78*$X78*$Y78),$D78)*$R78","v":{"$error":"#DIV/0!"}},{"$f":"MIN((IFERROR(IF(AND($V78<=AD$1,$W78>=AD$1),INDEX(Reliability!I$23:I$50,MATCH($S78,Reliability!$C$23:$C$50,0)),0),0)*IF($T78=\"n/a\",$D78*$Y78,$G78)+IFERROR(IF(AND($V78<=AD$1,$W78>=AD$1),INDEX(Reliability!I$23:I$50,MATCH($T78,Reliability!$C$23:$C$50,0)),0),0)*$H78*$X78*$Y78),$D78)*$R78","v":{"$error":"#DIV/0!"}},{"$f":"MIN((IFERROR(IF(AND($V78<=AE$1,$W78>=AE$1),INDEX(Reliability!J$23:J$50,MATCH($S78,Reliability!$C$23:$C$50,0)),0),0)*IF($T78=\"n/a\",$D78*$Y78,$G78)+IFERROR(IF(AND($V78<=AE$1,$W78>=AE$1),INDEX(Reliability!J$23:J$50,MATCH($T78,Reliability!$C$23:$C$50,0)),0),0)*$H78*$X78*$Y78),$D78)*$R78","v":{"$error":"#DIV/0!"}},{"$f":"MIN((IFERROR(IF(AND($V78<=AF$1,$W78>=AF$1),INDEX(Reliability!K$23:K$50,MATCH($S78,Reliability!$C$23:$C$50,0)),0),0)*IF($T78=\"n/a\",$D78*$Y78,$G78)+IFERROR(IF(AND($V78<=AF$1,$W78>=AF$1),INDEX(Reliability!K$23:K$50,MATCH($T78,Reliability!$C$23:$C$50,0)),0),0)*$H78*$X78*$Y78),$D78)*$R78","v":{"$error":"#DIV/0!"}},{"$f":"MIN((IFERROR(IF(AND($V78<=AG$1,$W78>=AG$1),INDEX(Reliability!L$23:L$50,MATCH($S78,Reliability!$C$23:$C$50,0)),0),0)*IF($T78=\"n/a\",$D78*$Y78,$G78)+IFERROR(IF(AND($V78<=AG$1,$W78>=AG$1),INDEX(Reliability!L$23:L$50,MATCH($T78,Reliability!$C$23:$C$50,0)),0),0)*$H78*$X78*$Y78),$D78)*$R78","v":{"$error":"#DIV/0!"}},{"$f":"MIN((IFERROR(IF(AND($V78<=AH$1,$W78>=AH$1),INDEX(Reliability!M$23:M$50,MATCH($S78,Reliability!$C$23:$C$50,0)),0),0)*IF($T78=\"n/a\",$D78*$Y78,$G78)+IFERROR(IF(AND($V78<=AH$1,$W78>=AH$1),INDEX(Reliability!M$23:M$50,MATCH($T78,Reliability!$C$23:$C$50,0)),0),0)*$H78*$X78*$Y78),$D78)*$R78","v":{"$error":"#DIV/0!"}},{"$f":"MIN((IFERROR(IF(AND($V78<=AI$1,$W78>=AI$1),INDEX(Reliability!N$23:N$50,MATCH($S78,Reliability!$C$23:$C$50,0)),0),0)*IF($T78=\"n/a\",$D78*$Y78,$G78)+IFERROR(IF(AND($V78<=AI$1,$W78>=AI$1),INDEX(Reliability!N$23:N$50,MATCH($T78,Reliability!$C$23:$C$50,0)),0),0)*$H78*$X78*$Y78),$D78)*$R78","v":{"$error":"#DIV/0!"}},{"$f":"MIN((IFERROR(IF(AND($V78<=AJ$1,$W78>=AJ$1),INDEX(Reliability!O$23:O$50,MATCH($S78,Reliability!$C$23:$C$50,0)),0),0)*IF($T78=\"n/a\",$D78*$Y78,$G78)+IFERROR(IF(AND($V78<=AJ$1,$W78>=AJ$1),INDEX(Reliability!O$23:O$50,MATCH($T78,Reliability!$C$23:$C$50,0)),0),0)*$H78*$X78*$Y78),$D78)*$R78","v":{"$error":"#DIV/0!"}},{"$f":"MIN((IFERROR(IF(AND($V78<=AK$1,$W78>=AK$1),INDEX(Reliability!P$23:P$50,MATCH($S78,Reliability!$C$23:$C$50,0)),0),0)*IF($T78=\"n/a\",$D78*$Y78,$G78)+IFERROR(IF(AND($V78<=AK$1,$W78>=AK$1),INDEX(Reliability!P$23:P$50,MATCH($T78,Reliability!$C$23:$C$50,0)),0),0)*$H78*$X78*$Y78),$D78)*$R78","v":{"$error":"#DIV/0!"}}]
[null,{"$f":"unique_contracts!B80","v":"_NEW_GENERIC_BATTERY_STORAGE"},{"$f":"unique_contracts!D80","v":"PlannedNew"},{"$f":"unique_contracts!J80","v":0},{"$f":"unique_contracts!M80","v":"NotHybrid"},{"$f":"unique_contracts!N80","v":"NA"},{"$f":"unique_contracts!P80","v":0},{"$f":"unique_contracts!R80","v":0},{"$f":"unique_contracts!V80","v":0},{"$f":"unique_contracts!AB80","v":"Buy"},{"$f":"unique_contracts!AM80","v":2034},{"$f":"unique_contracts!AN80","v":1},{"$f":"unique_contracts!AO80","v":1},{"$f":"unique_contracts!AP80","v":2034},{"$f":"unique_contracts!AQ80","v":12},{"$f":"unique_contracts!AR80","v":31},{"$f":"unique_contracts!BP80","v":"CapacityOnly"},1,{"$f":"IFERROR(IF(AND(I79>0,E79=\"NotHybrid\"),_xlfn.CONCAT(MAX(MIN(ROUNDDOWN(I79/D79,0),8),4),INDEX(resources!$G:$G,MATCH(B79,resources!$A:$A,0))),INDEX(resources!$G:$G,MATCH(B79,resources!$A:$A,0))),\"n/a\")","v":"hr_batteries"},"n/a","hr_batteries",2034,2034,1,{"$error":"#DIV/0!"},{"$f":"MIN((IFERROR(IF(AND($V79<=Z$1,$W79>=Z$1),INDEX(Reliability!E$23:E$50,MATCH($S79,Reliability!$C$23:$C$50,0)),0),0)*IF($T79=\"n/a\",$D79*$Y79,$G79)+IFERROR(IF(AND($V79<=Z$1,$W79>=Z$1),INDEX(Reliability!E$23:E$50,MATCH($T79,Reliability!$C$23:$C$50,0)),0),0)*$H79*$X79*$Y79),$D79)*$R79","v":{"$error":"#DIV/0!"}},{"$f":"MIN((IFERROR(IF(AND($V79<=AA$1,$W79>=AA$1),INDEX(Reliability!F$23:F$50,MATCH($S79,Reliability!$C$23:$C$50,0)),0),0)*IF($T79=\"n/a\",$D79*$Y79,$G79)+IFERROR(IF(AND($V79<=AA$1,$W79>=AA$1),INDEX(Reliability!F$23:F$50,MATCH($T79,Reliability!$C$23:$C$50,0)),0),0)*$H79*$X79*$Y79),$D79)*$R79","v":{"$error":"#DIV/0!"}},{"$f":"MIN((IFERROR(IF(AND($V79<=AB$1,$W79>=AB$1),INDEX(Reliability!G$23:G$50,MATCH($S79,Reliability!$C$23:$C$50,0)),0),0)*IF($T79=\"n/a\",$D79*$Y79,$G79)+IFERROR(IF(AND($V79<=AB$1,$W79>=AB$1),INDEX(Reliability!G$23:G$50,MATCH($T79,Reliability!$C$23:$C$50,0)),0),0)*$H79*$X79*$Y79),$D79)*$R79","v":{"$error":"#DIV/0!"}},{"$f":"MIN((IFERROR(IF(AND($V79<=AC$1,$W79>=AC$1),INDEX(Reliability!H$23:H$50,MATCH($S79,Reliability!$C$23:$C$50,0)),0),0)*IF($T79=\"n/a\",$D79*$Y79,$G79)+IFERROR(IF(AND($V79<=AC$1,$W79>=AC$1),INDEX(Reliability!H$23:H$50,MATCH($T79,Reliability!$C$23:$C$50,0)),0),0)*$H79*$X79*$Y79),$D79)*$R79","v":{"$error":"#DIV/0!"}},{"$f":"MIN((IFERROR(IF(AND($V79<=AD$1,$W79>=AD$1),INDEX(Reliability!I$23:I$50,MATCH($S79,Reliability!$C$23:$C$50,0)),0),0)*IF($T79=\"n/a\",$D79*$Y79,$G79)+IFERROR(IF(AND($V79<=AD$1,$W79>=AD$1),INDEX(Reliability!I$23:I$50,MATCH($T79,Reliability!$C$23:$C$50,0)),0),0)*$H79*$X79*$Y79),$D79)*$R79","v":{"$error":"#DIV/0!"}},{"$f":"MIN((IFERROR(IF(AND($V79<=AE$1,$W79>=AE$1),INDEX(Reliability!J$23:J$50,MATCH($S79,Reliability!$C$23:$C$50,0)),0),0)*IF($T79=\"n/a\",$D79*$Y79,$G79)+IFERROR(IF(AND($V79<=AE$1,$W79>=AE$1),INDEX(Reliability!J$23:J$50,MATCH($T79,Reliability!$C$23:$C$50,0)),0),0)*$H79*$X79*$Y79),$D79)*$R79","v":{"$error":"#DIV/0!"}},{"$f":"MIN((IFERROR(IF(AND($V79<=AF$1,$W79>=AF$1),INDEX(Reliability!K$23:K$50,MATCH($S79,Reliability!$C$23:$C$50,0)),0),0)*IF($T79=\"n/a\",$D79*$Y79,$G79)+IFERROR(IF(AND($V79<=AF$1,$W79>=AF$1),INDEX(Reliability!K$23:K$50,MATCH($T79,Reliability!$C$23:$C$50,0)),0),0)*$H79*$X79*$Y79),$D79)*$R79","v":{"$error":"#DIV/0!"}},{"$f":"MIN((IFERROR(IF(AND($V79<=AG$1,$W79>=AG$1),INDEX(Reliability!L$23:L$50,MATCH($S79,Reliability!$C$23:$C$50,0)),0),0)*IF($T79=\"n/a\",$D79*$Y79,$G79)+IFERROR(IF(AND($V79<=AG$1,$W79>=AG$1),INDEX(Reliability!L$23:L$50,MATCH($T79,Reliability!$C$23:$C$50,0)),0),0)*$H79*$X79*$Y79),$D79)*$R79","v":{"$error":"#DIV/0!"}},{"$f":"MIN((IFERROR(IF(AND($V79<=AH$1,$W79>=AH$1),INDEX(Reliability!M$23:M$50,MATCH($S79,Reliability!$C$23:$C$50,0)),0),0)*IF($T79=\"n/a\",$D79*$Y79,$G79)+IFERROR(IF(AND($V79<=AH$1,$W79>=AH$1),INDEX(Reliability!M$23:M$50,MATCH($T79,Reliability!$C$23:$C$50,0)),0),0)*$H79*$X79*$Y79),$D79)*$R79","v":{"$error":"#DIV/0!"}},{"$f":"MIN((IFERROR(IF(AND($V79<=AI$1,$W79>=AI$1),INDEX(Reliability!N$23:N$50,MATCH($S79,Reliability!$C$23:$C$50,0)),0),0)*IF($T79=\"n/a\",$D79*$Y79,$G79)+IFERROR(IF(AND($V79<=AI$1,$W79>=AI$1),INDEX(Reliability!N$23:N$50,MATCH($T79,Reliability!$C$23:$C$50,0)),0),0)*$H79*$X79*$Y79),$D79)*$R79","v":{"$error":"#DIV/0!"}},{"$f":"MIN((IFERROR(IF(AND($V79<=AJ$1,$W79>=AJ$1),INDEX(Reliability!O$23:O$50,MATCH($S79,Reliability!$C$23:$C$50,0)),0),0)*IF($T79=\"n/a\",$D79*$Y79,$G79)+IFERROR(IF(AND($V79<=AJ$1,$W79>=AJ$1),INDEX(Reliability!O$23:O$50,MATCH($T79,Reliability!$C$23:$C$50,0)),0),0)*$H79*$X79*$Y79),$D79)*$R79","v":{"$error":"#DIV/0!"}},{"$f":"MIN((IFERROR(IF(AND($V79<=AK$1,$W79>=AK$1),INDEX(Reliability!P$23:P$50,MATCH($S79,Reliability!$C$23:$C$50,0)),0),0)*IF($T79=\"n/a\",$D79*$Y79,$G79)+IFERROR(IF(AND($V79<=AK$1,$W79>=AK$1),INDEX(Reliability!P$23:P$50,MATCH($T79,Reliability!$C$23:$C$50,0)),0),0)*$H79*$X79*$Y79),$D79)*$R79","v":{"$error":"#DIV/0!"}}]
[null,{"$f":"unique_contracts!B81","v":"_NEW_GENERIC_SOLAR_1AXIS"},{"$f":"unique_contracts!D81","v":"PlannedNew"},{"$f":"unique_contracts!J81","v":0},{"$f":"unique_contracts!M81","v":"NotHybrid"},{"$f":"unique_contracts!N81","v":"NA"},{"$f":"unique_contracts!P81","v":0},{"$f":"unique_contracts!R81","v":0},{"$f":"unique_contracts!V81","v":0},{"$f":"unique_contracts!AB81","v":"Sell"},{"$f":"unique_contracts!AM81","v":2026},{"$f":"unique_contracts!AN81","v":1},{"$f":"unique_contracts!AO81","v":1},{"$f":"unique_contracts!AP81","v":2026},{"$f":"unique_contracts!AQ81","v":12},{"$f":"unique_contracts!AR81","v":31},{"$f":"unique_contracts!BP81","v":"EnergyOnly"},0,{"$f":"IFERROR(IF(AND(I80>0,E80=\"NotHybrid\"),_xlfn.CONCAT(MAX(MIN(ROUNDDOWN(I80/D80,0),8),4),INDEX(resources!$G:$G,MATCH(B80,resources!$A:$A,0))),INDEX(resources!$G:$G,MATCH(B80,resources!$A:$A,0))),\"n/a\")","v":"utility_pv"},"n/a","utility_pv",2026,2026,1,1,{"$f":"MIN((IFERROR(IF(AND($V80<=Z$1,$W80>=Z$1),INDEX(Reliability!E$23:E$50,MATCH($S80,Reliability!$C$23:$C$50,0)),0),0)*IF($T80=\"n/a\",$D80*$Y80,$G80)+IFERROR(IF(AND($V80<=Z$1,$W80>=Z$1),INDEX(Reliability!E$23:E$50,MATCH($T80,Reliability!$C$23:$C$50,0)),0),0)*$H80*$X80*$Y80),$D80)*$R80","v":0},{"$f":"MIN((IFERROR(IF(AND($V80<=AA$1,$W80>=AA$1),INDEX(Reliability!F$23:F$50,MATCH($S80,Reliability!$C$23:$C$50,0)),0),0)*IF($T80=\"n/a\",$D80*$Y80,$G80)+IFERROR(IF(AND($V80<=AA$1,$W80>=AA$1),INDEX(Reliability!F$23:F$50,MATCH($T80,Reliability!$C$23:$C$50,0)),0),0)*$H80*$X80*$Y80),$D80)*$R80","v":0},{"$f":"MIN((IFERROR(IF(AND($V80<=AB$1,$W80>=AB$1),INDEX(Reliability!G$23:G$50,MATCH($S80,Reliability!$C$23:$C$50,0)),0),0)*IF($T80=\"n/a\",$D80*$Y80,$G80)+IFERROR(IF(AND($V80<=AB$1,$W80>=AB$1),INDEX(Reliability!G$23:G$50,MATCH($T80,Reliability!$C$23:$C$50,0)),0),0)*$H80*$X80*$Y80),$D80)*$R80","v":0},{"$f":"MIN((IFERROR(IF(AND($V80<=AC$1,$W80>=AC$1),INDEX(Reliability!H$23:H$50,MATCH($S80,Reliability!$C$23:$C$50,0)),0),0)*IF($T80=\"n/a\",$D80*$Y80,$G80)+IFERROR(IF(AND($V80<=AC$1,$W80>=AC$1),INDEX(Reliability!H$23:H$50,MATCH($T80,Reliability!$C$23:$C$50,0)),0),0)*$H80*$X80*$Y80),$D80)*$R80","v":0},{"$f":"MIN((IFERROR(IF(AND($V80<=AD$1,$W80>=AD$1),INDEX(Reliability!I$23:I$50,MATCH($S80,Reliability!$C$23:$C$50,0)),0),0)*IF($T80=\"n/a\",$D80*$Y80,$G80)+IFERROR(IF(AND($V80<=AD$1,$W80>=AD$1),INDEX(Reliability!I$23:I$50,MATCH($T80,Reliability!$C$23:$C$50,0)),0),0)*$H80*$X80*$Y80),$D80)*$R80","v":0},{"$f":"MIN((IFERROR(IF(AND($V80<=AE$1,$W80>=AE$1),INDEX(Reliability!J$23:J$50,MATCH($S80,Reliability!$C$23:$C$50,0)),0),0)*IF($T80=\"n/a\",$D80*$Y80,$G80)+IFERROR(IF(AND($V80<=AE$1,$W80>=AE$1),INDEX(Reliability!J$23:J$50,MATCH($T80,Reliability!$C$23:$C$50,0)),0),0)*$H80*$X80*$Y80),$D80)*$R80","v":0},{"$f":"MIN((IFERROR(IF(AND($V80<=AF$1,$W80>=AF$1),INDEX(Reliability!K$23:K$50,MATCH($S80,Reliability!$C$23:$C$50,0)),0),0)*IF($T80=\"n/a\",$D80*$Y80,$G80)+IFERROR(IF(AND($V80<=AF$1,$W80>=AF$1),INDEX(Reliability!K$23:K$50,MATCH($T80,Reliability!$C$23:$C$50,0)),0),0)*$H80*$X80*$Y80),$D80)*$R80","v":0},{"$f":"MIN((IFERROR(IF(AND($V80<=AG$1,$W80>=AG$1),INDEX(Reliability!L$23:L$50,MATCH($S80,Reliability!$C$23:$C$50,0)),0),0)*IF($T80=\"n/a\",$D80*$Y80,$G80)+IFERROR(IF(AND($V80<=AG$1,$W80>=AG$1),INDEX(Reliability!L$23:L$50,MATCH($T80,Reliability!$C$23:$C$50,0)),0),0)*$H80*$X80*$Y80),$D80)*$R80","v":0},{"$f":"MIN((IFERROR(IF(AND($V80<=AH$1,$W80>=AH$1),INDEX(Reliability!M$23:M$50,MATCH($S80,Reliability!$C$23:$C$50,0)),0),0)*IF($T80=\"n/a\",$D80*$Y80,$G80)+IFERROR(IF(AND($V80<=AH$1,$W80>=AH$1),INDEX(Reliability!M$23:M$50,MATCH($T80,Reliability!$C$23:$C$50,0)),0),0)*$H80*$X80*$Y80),$D80)*$R80","v":0},{"$f":"MIN((IFERROR(IF(AND($V80<=AI$1,$W80>=AI$1),INDEX(Reliability!N$23:N$50,MATCH($S80,Reliability!$C$23:$C$50,0)),0),0)*IF($T80=\"n/a\",$D80*$Y80,$G80)+IFERROR(IF(AND($V80<=AI$1,$W80>=AI$1),INDEX(Reliability!N$23:N$50,MATCH($T80,Reliability!$C$23:$C$50,0)),0),0)*$H80*$X80*$Y80),$D80)*$R80","v":0},{"$f":"MIN((IFERROR(IF(AND($V80<=AJ$1,$W80>=AJ$1),INDEX(Reliability!O$23:O$50,MATCH($S80,Reliability!$C$23:$C$50,0)),0),0)*IF($T80=\"n/a\",$D80*$Y80,$G80)+IFERROR(IF(AND($V80<=AJ$1,$W80>=AJ$1),INDEX(Reliability!O$23:O$50,MATCH($T80,Reliability!$C$23:$C$50,0)),0),0)*$H80*$X80*$Y80),$D80)*$R80","v":0},{"$f":"MIN((IFERROR(IF(AND($V80<=AK$1,$W80>=AK$1),INDEX(Reliability!P$23:P$50,MATCH($S80,Reliability!$C$23:$C$50,0)),0),0)*IF($T80=\"n/a\",$D80*$Y80,$G80)+IFERROR(IF(AND($V80<=AK$1,$W80>=AK$1),INDEX(Reliability!P$23:P$50,MATCH($T80,Reliability!$C$23:$C$50,0)),0),0)*$H80*$X80*$Y80),$D80)*$R80","v":0}]
[null,{"$f":"unique_contracts!B82","v":"_NEW_GENERIC_SOLAR_1AXIS"},{"$f":"unique_contracts!D82","v":"PlannedNew"},{"$f":"unique_contracts!J82","v":0},{"$f":"unique_contracts!M82","v":"NotHybrid"},{"$f":"unique_contracts!N82","v":"NA"},{"$f":"unique_contracts!P82","v":0},{"$f":"unique_contracts!R82","v":0},{"$f":"unique_contracts!V82","v":0},{"$f":"unique_contracts!AB82","v":"Sell"},{"$f":"unique_contracts!AM82","v":2027},{"$f":"unique_contracts!AN82","v":1},{"$f":"unique_contracts!AO82","v":1},{"$f":"unique_contracts!AP82","v":2027},{"$f":"unique_contracts!AQ82","v":12},{"$f":"unique_contracts!AR82","v":31},{"$f":"unique_contracts!BP82","v":"EnergyOnly"},0,{"$f":"IFERROR(IF(AND(I81>0,E81=\"NotHybrid\"),_xlfn.CONCAT(MAX(MIN(ROUNDDOWN(I81/D81,0),8),4),INDEX(resources!$G:$G,MATCH(B81,resources!$A:$A,0))),INDEX(resources!$G:$G,MATCH(B81,resources!$A:$A,0))),\"n/a\")","v":"utility_pv"},"n/a","utility_pv",2027,2027,1,1,{"$f":"MIN((IFERROR(IF(AND($V81<=Z$1,$W81>=Z$1),INDEX(Reliability!E$23:E$50,MATCH($S81,Reliability!$C$23:$C$50,0)),0),0)*IF($T81=\"n/a\",$D81*$Y81,$G81)+IFERROR(IF(AND($V81<=Z$1,$W81>=Z$1),INDEX(Reliability!E$23:E$50,MATCH($T81,Reliability!$C$23:$C$50,0)),0),0)*$H81*$X81*$Y81),$D81)*$R81","v":0},{"$f":"MIN((IFERROR(IF(AND($V81<=AA$1,$W81>=AA$1),INDEX(Reliability!F$23:F$50,MATCH($S81,Reliability!$C$23:$C$50,0)),0),0)*IF($T81=\"n/a\",$D81*$Y81,$G81)+IFERROR(IF(AND($V81<=AA$1,$W81>=AA$1),INDEX(Reliability!F$23:F$50,MATCH($T81,Reliability!$C$23:$C$50,0)),0),0)*$H81*$X81*$Y81),$D81)*$R81","v":0},{"$f":"MIN((IFERROR(IF(AND($V81<=AB$1,$W81>=AB$1),INDEX(Reliability!G$23:G$50,MATCH($S81,Reliability!$C$23:$C$50,0)),0),0)*IF($T81=\"n/a\",$D81*$Y81,$G81)+IFERROR(IF(AND($V81<=AB$1,$W81>=AB$1),INDEX(Reliability!G$23:G$50,MATCH($T81,Reliability!$C$23:$C$50,0)),0),0)*$H81*$X81*$Y81),$D81)*$R81","v":0},{"$f":"MIN((IFERROR(IF(AND($V81<=AC$1,$W81>=AC$1),INDEX(Reliability!H$23:H$50,MATCH($S81,Reliability!$C$23:$C$50,0)),0),0)*IF($T81=\"n/a\",$D81*$Y81,$G81)+IFERROR(IF(AND($V81<=AC$1,$W81>=AC$1),INDEX(Reliability!H$23:H$50,MATCH($T81,Reliability!$C$23:$C$50,0)),0),0)*$H81*$X81*$Y81),$D81)*$R81","v":0},{"$f":"MIN((IFERROR(IF(AND($V81<=AD$1,$W81>=AD$1),INDEX(Reliability!I$23:I$50,MATCH($S81,Reliability!$C$23:$C$50,0)),0),0)*IF($T81=\"n/a\",$D81*$Y81,$G81)+IFERROR(IF(AND($V81<=AD$1,$W81>=AD$1),INDEX(Reliability!I$23:I$50,MATCH($T81,Reliability!$C$23:$C$50,0)),0),0)*$H81*$X81*$Y81),$D81)*$R81","v":0},{"$f":"MIN((IFERROR(IF(AND($V81<=AE$1,$W81>=AE$1),INDEX(Reliability!J$23:J$50,MATCH($S81,Reliability!$C$23:$C$50,0)),0),0)*IF($T81=\"n/a\",$D81*$Y81,$G81)+IFERROR(IF(AND($V81<=AE$1,$W81>=AE$1),INDEX(Reliability!J$23:J$50,MATCH($T81,Reliability!$C$23:$C$50,0)),0),0)*$H81*$X81*$Y81),$D81)*$R81","v":0},{"$f":"MIN((IFERROR(IF(AND($V81<=AF$1,$W81>=AF$1),INDEX(Reliability!K$23:K$50,MATCH($S81,Reliability!$C$23:$C$50,0)),0),0)*IF($T81=\"n/a\",$D81*$Y81,$G81)+IFERROR(IF(AND($V81<=AF$1,$W81>=AF$1),INDEX(Reliability!K$23:K$50,MATCH($T81,Reliability!$C$23:$C$50,0)),0),0)*$H81*$X81*$Y81),$D81)*$R81","v":0},{"$f":"MIN((IFERROR(IF(AND($V81<=AG$1,$W81>=AG$1),INDEX(Reliability!L$23:L$50,MATCH($S81,Reliability!$C$23:$C$50,0)),0),0)*IF($T81=\"n/a\",$D81*$Y81,$G81)+IFERROR(IF(AND($V81<=AG$1,$W81>=AG$1),INDEX(Reliability!L$23:L$50,MATCH($T81,Reliability!$C$23:$C$50,0)),0),0)*$H81*$X81*$Y81),$D81)*$R81","v":0},{"$f":"MIN((IFERROR(IF(AND($V81<=AH$1,$W81>=AH$1),INDEX(Reliability!M$23:M$50,MATCH($S81,Reliability!$C$23:$C$50,0)),0),0)*IF($T81=\"n/a\",$D81*$Y81,$G81)+IFERROR(IF(AND($V81<=AH$1,$W81>=AH$1),INDEX(Reliability!M$23:M$50,MATCH($T81,Reliability!$C$23:$C$50,0)),0),0)*$H81*$X81*$Y81),$D81)*$R81","v":0},{"$f":"MIN((IFERROR(IF(AND($V81<=AI$1,$W81>=AI$1),INDEX(Reliability!N$23:N$50,MATCH($S81,Reliability!$C$23:$C$50,0)),0),0)*IF($T81=\"n/a\",$D81*$Y81,$G81)+IFERROR(IF(AND($V81<=AI$1,$W81>=AI$1),INDEX(Reliability!N$23:N$50,MATCH($T81,Reliability!$C$23:$C$50,0)),0),0)*$H81*$X81*$Y81),$D81)*$R81","v":0},{"$f":"MIN((IFERROR(IF(AND($V81<=AJ$1,$W81>=AJ$1),INDEX(Reliability!O$23:O$50,MATCH($S81,Reliability!$C$23:$C$50,0)),0),0)*IF($T81=\"n/a\",$D81*$Y81,$G81)+IFERROR(IF(AND($V81<=AJ$1,$W81>=AJ$1),INDEX(Reliability!O$23:O$50,MATCH($T81,Reliability!$C$23:$C$50,0)),0),0)*$H81*$X81*$Y81),$D81)*$R81","v":0},{"$f":"MIN((IFERROR(IF(AND($V81<=AK$1,$W81>=AK$1),INDEX(Reliability!P$23:P$50,MATCH($S81,Reliability!$C$23:$C$50,0)),0),0)*IF($T81=\"n/a\",$D81*$Y81,$G81)+IFERROR(IF(AND($V81<=AK$1,$W81>=AK$1),INDEX(Reliability!P$23:P$50,MATCH($T81,Reliability!$C$23:$C$50,0)),0),0)*$H81*$X81*$Y81),$D81)*$R81","v":0}]
[null,{"$f":"unique_contracts!B83","v":"_NEW_GENERIC_SOLAR_1AXIS"},{"$f":"unique_contracts!D83","v":"PlannedNew"},{"$f":"unique_contracts!J83","v":0},{"$f":"unique_contracts!M83","v":"NotHybrid"},{"$f":"unique_contracts!N83","v":"NA"},{"$f":"unique_contracts!P83","v":0},{"$f":"unique_contracts!R83","v":0},{"$f":"unique_contracts!V83","v":0},{"$f":"unique_contracts!AB83","v":"Sell"},{"$f":"unique_contracts!AM83","v":2028},{"$f":"unique_contracts!AN83","v":1},{"$f":"unique_contracts!AO83","v":1},{"$f":"unique_contracts!AP83","v":2028},{"$f":"unique_contracts!AQ83","v":12},{"$f":"unique_contracts!AR83","v":31},{"$f":"unique_contracts!BP83","v":"EnergyOnly"},0,{"$f":"IFERROR(IF(AND(I82>0,E82=\"NotHybrid\"),_xlfn.CONCAT(MAX(MIN(ROUNDDOWN(I82/D82,0),8),4),INDEX(resources!$G:$G,MATCH(B82,resources!$A:$A,0))),INDEX(resources!$G:$G,MATCH(B82,resources!$A:$A,0))),\"n/a\")","v":"utility_pv"},"n/a","utility_pv",2028,2028,1,1,{"$f":"MIN((IFERROR(IF(AND($V82<=Z$1,$W82>=Z$1),INDEX(Reliability!E$23:E$50,MATCH($S82,Reliability!$C$23:$C$50,0)),0),0)*IF($T82=\"n/a\",$D82*$Y82,$G82)+IFERROR(IF(AND($V82<=Z$1,$W82>=Z$1),INDEX(Reliability!E$23:E$50,MATCH($T82,Reliability!$C$23:$C$50,0)),0),0)*$H82*$X82*$Y82),$D82)*$R82","v":0},{"$f":"MIN((IFERROR(IF(AND($V82<=AA$1,$W82>=AA$1),INDEX(Reliability!F$23:F$50,MATCH($S82,Reliability!$C$23:$C$50,0)),0),0)*IF($T82=\"n/a\",$D82*$Y82,$G82)+IFERROR(IF(AND($V82<=AA$1,$W82>=AA$1),INDEX(Reliability!F$23:F$50,MATCH($T82,Reliability!$C$23:$C$50,0)),0),0)*$H82*$X82*$Y82),$D82)*$R82","v":0},{"$f":"MIN((IFERROR(IF(AND($V82<=AB$1,$W82>=AB$1),INDEX(Reliability!G$23:G$50,MATCH($S82,Reliability!$C$23:$C$50,0)),0),0)*IF($T82=\"n/a\",$D82*$Y82,$G82)+IFERROR(IF(AND($V82<=AB$1,$W82>=AB$1),INDEX(Reliability!G$23:G$50,MATCH($T82,Reliability!$C$23:$C$50,0)),0),0)*$H82*$X82*$Y82),$D82)*$R82","v":0},{"$f":"MIN((IFERROR(IF(AND($V82<=AC$1,$W82>=AC$1),INDEX(Reliability!H$23:H$50,MATCH($S82,Reliability!$C$23:$C$50,0)),0),0)*IF($T82=\"n/a\",$D82*$Y82,$G82)+IFERROR(IF(AND($V82<=AC$1,$W82>=AC$1),INDEX(Reliability!H$23:H$50,MATCH($T82,Reliability!$C$23:$C$50,0)),0),0)*$H82*$X82*$Y82),$D82)*$R82","v":0},{"$f":"MIN((IFERROR(IF(AND($V82<=AD$1,$W82>=AD$1),INDEX(Reliability!I$23:I$50,MATCH($S82,Reliability!$C$23:$C$50,0)),0),0)*IF($T82=\"n/a\",$D82*$Y82,$G82)+IFERROR(IF(AND($V82<=AD$1,$W82>=AD$1),INDEX(Reliability!I$23:I$50,MATCH($T82,Reliability!$C$23:$C$50,0)),0),0)*$H82*$X82*$Y82),$D82)*$R82","v":0},{"$f":"MIN((IFERROR(IF(AND($V82<=AE$1,$W82>=AE$1),INDEX(Reliability!J$23:J$50,MATCH($S82,Reliability!$C$23:$C$50,0)),0),0)*IF($T82=\"n/a\",$D82*$Y82,$G82)+IFERROR(IF(AND($V82<=AE$1,$W82>=AE$1),INDEX(Reliability!J$23:J$50,MATCH($T82,Reliability!$C$23:$C$50,0)),0),0)*$H82*$X82*$Y82),$D82)*$R82","v":0},{"$f":"MIN((IFERROR(IF(AND($V82<=AF$1,$W82>=AF$1),INDEX(Reliability!K$23:K$50,MATCH($S82,Reliability!$C$23:$C$50,0)),0),0)*IF($T82=\"n/a\",$D82*$Y82,$G82)+IFERROR(IF(AND($V82<=AF$1,$W82>=AF$1),INDEX(Reliability!K$23:K$50,MATCH($T82,Reliability!$C$23:$C$50,0)),0),0)*$H82*$X82*$Y82),$D82)*$R82","v":0},{"$f":"MIN((IFERROR(IF(AND($V82<=AG$1,$W82>=AG$1),INDEX(Reliability!L$23:L$50,MATCH($S82,Reliability!$C$23:$C$50,0)),0),0)*IF($T82=\"n/a\",$D82*$Y82,$G82)+IFERROR(IF(AND($V82<=AG$1,$W82>=AG$1),INDEX(Reliability!L$23:L$50,MATCH($T82,Reliability!$C$23:$C$50,0)),0),0)*$H82*$X82*$Y82),$D82)*$R82","v":0},{"$f":"MIN((IFERROR(IF(AND($V82<=AH$1,$W82>=AH$1),INDEX(Reliability!M$23:M$50,MATCH($S82,Reliability!$C$23:$C$50,0)),0),0)*IF($T82=\"n/a\",$D82*$Y82,$G82)+IFERROR(IF(AND($V82<=AH$1,$W82>=AH$1),INDEX(Reliability!M$23:M$50,MATCH($T82,Reliability!$C$23:$C$50,0)),0),0)*$H82*$X82*$Y82),$D82)*$R82","v":0},{"$f":"MIN((IFERROR(IF(AND($V82<=AI$1,$W82>=AI$1),INDEX(Reliability!N$23:N$50,MATCH($S82,Reliability!$C$23:$C$50,0)),0),0)*IF($T82=\"n/a\",$D82*$Y82,$G82)+IFERROR(IF(AND($V82<=AI$1,$W82>=AI$1),INDEX(Reliability!N$23:N$50,MATCH($T82,Reliability!$C$23:$C$50,0)),0),0)*$H82*$X82*$Y82),$D82)*$R82","v":0},{"$f":"MIN((IFERROR(IF(AND($V82<=AJ$1,$W82>=AJ$1),INDEX(Reliability!O$23:O$50,MATCH($S82,Reliability!$C$23:$C$50,0)),0),0)*IF($T82=\"n/a\",$D82*$Y82,$G82)+IFERROR(IF(AND($V82<=AJ$1,$W82>=AJ$1),INDEX(Reliability!O$23:O$50,MATCH($T82,Reliability!$C$23:$C$50,0)),0),0)*$H82*$X82*$Y82),$D82)*$R82","v":0},{"$f":"MIN((IFERROR(IF(AND($V82<=AK$1,$W82>=AK$1),INDEX(Reliability!P$23:P$50,MATCH($S82,Reliability!$C$23:$C$50,0)),0),0)*IF($T82=\"n/a\",$D82*$Y82,$G82)+IFERROR(IF(AND($V82<=AK$1,$W82>=AK$1),INDEX(Reliability!P$23:P$50,MATCH($T82,Reliability!$C$23:$C$50,0)),0),0)*$H82*$X82*$Y82),$D82)*$R82","v":0}]
[null,{"$f":"unique_contracts!B84","v":"_NEW_GENERIC_SOLAR_1AXIS"},{"$f":"unique_contracts!D84","v":"PlannedNew"},{"$f":"unique_contracts!J84","v":0},{"$f":"unique_contracts!M84","v":"NotHybrid"},{"$f":"unique_contracts!N84","v":"NA"},{"$f":"unique_contracts!P84","v":0},{"$f":"unique_contracts!R84","v":0},{"$f":"unique_contracts!V84","v":0},{"$f":"unique_contracts!AB84","v":"Sell"},{"$f":"unique_contracts!AM84","v":2029},{"$f":"unique_contracts!AN84","v":1},{"$f":"unique_contracts!AO84","v":1},{"$f":"unique_contracts!AP84","v":2029},{"$f":"unique_contracts!AQ84","v":12},{"$f":"unique_contracts!AR84","v":31},{"$f":"unique_contracts!BP84","v":"EnergyOnly"},0,{"$f":"IFERROR(IF(AND(I83>0,E83=\"NotHybrid\"),_xlfn.CONCAT(MAX(MIN(ROUNDDOWN(I83/D83,0),8),4),INDEX(resources!$G:$G,MATCH(B83,resources!$A:$A,0))),INDEX(resources!$G:$G,MATCH(B83,resources!$A:$A,0))),\"n/a\")","v":"utility_pv"},"n/a","utility_pv",2029,2029,1,1,{"$f":"MIN((IFERROR(IF(AND($V83<=Z$1,$W83>=Z$1),INDEX(Reliability!E$23:E$50,MATCH($S83,Reliability!$C$23:$C$50,0)),0),0)*IF($T83=\"n/a\",$D83*$Y83,$G83)+IFERROR(IF(AND($V83<=Z$1,$W83>=Z$1),INDEX(Reliability!E$23:E$50,MATCH($T83,Reliability!$C$23:$C$50,0)),0),0)*$H83*$X83*$Y83),$D83)*$R83","v":0},{"$f":"MIN((IFERROR(IF(AND($V83<=AA$1,$W83>=AA$1),INDEX(Reliability!F$23:F$50,MATCH($S83,Reliability!$C$23:$C$50,0)),0),0)*IF($T83=\"n/a\",$D83*$Y83,$G83)+IFERROR(IF(AND($V83<=AA$1,$W83>=AA$1),INDEX(Reliability!F$23:F$50,MATCH($T83,Reliability!$C$23:$C$50,0)),0),0)*$H83*$X83*$Y83),$D83)*$R83","v":0},{"$f":"MIN((IFERROR(IF(AND($V83<=AB$1,$W83>=AB$1),INDEX(Reliability!G$23:G$50,MATCH($S83,Reliability!$C$23:$C$50,0)),0),0)*IF($T83=\"n/a\",$D83*$Y83,$G83)+IFERROR(IF(AND($V83<=AB$1,$W83>=AB$1),INDEX(Reliability!G$23:G$50,MATCH($T83,Reliability!$C$23:$C$50,0)),0),0)*$H83*$X83*$Y83),$D83)*$R83","v":0},{"$f":"MIN((IFERROR(IF(AND($V83<=AC$1,$W83>=AC$1),INDEX(Reliability!H$23:H$50,MATCH($S83,Reliability!$C$23:$C$50,0)),0),0)*IF($T83=\"n/a\",$D83*$Y83,$G83)+IFERROR(IF(AND($V83<=AC$1,$W83>=AC$1),INDEX(Reliability!H$23:H$50,MATCH($T83,Reliability!$C$23:$C$50,0)),0),0)*$H83*$X83*$Y83),$D83)*$R83","v":0},{"$f":"MIN((IFERROR(IF(AND($V83<=AD$1,$W83>=AD$1),INDEX(Reliability!I$23:I$50,MATCH($S83,Reliability!$C$23:$C$50,0)),0),0)*IF($T83=\"n/a\",$D83*$Y83,$G83)+IFERROR(IF(AND($V83<=AD$1,$W83>=AD$1),INDEX(Reliability!I$23:I$50,MATCH($T83,Reliability!$C$23:$C$50,0)),0),0)*$H83*$X83*$Y83),$D83)*$R83","v":0},{"$f":"MIN((IFERROR(IF(AND($V83<=AE$1,$W83>=AE$1),INDEX(Reliability!J$23:J$50,MATCH($S83,Reliability!$C$23:$C$50,0)),0),0)*IF($T83=\"n/a\",$D83*$Y83,$G83)+IFERROR(IF(AND($V83<=AE$1,$W83>=AE$1),INDEX(Reliability!J$23:J$50,MATCH($T83,Reliability!$C$23:$C$50,0)),0),0)*$H83*$X83*$Y83),$D83)*$R83","v":0},{"$f":"MIN((IFERROR(IF(AND($V83<=AF$1,$W83>=AF$1),INDEX(Reliability!K$23:K$50,MATCH($S83,Reliability!$C$23:$C$50,0)),0),0)*IF($T83=\"n/a\",$D83*$Y83,$G83)+IFERROR(IF(AND($V83<=AF$1,$W83>=AF$1),INDEX(Reliability!K$23:K$50,MATCH($T83,Reliability!$C$23:$C$50,0)),0),0)*$H83*$X83*$Y83),$D83)*$R83","v":0},{"$f":"MIN((IFERROR(IF(AND($V83<=AG$1,$W83>=AG$1),INDEX(Reliability!L$23:L$50,MATCH($S83,Reliability!$C$23:$C$50,0)),0),0)*IF($T83=\"n/a\",$D83*$Y83,$G83)+IFERROR(IF(AND($V83<=AG$1,$W83>=AG$1),INDEX(Reliability!L$23:L$50,MATCH($T83,Reliability!$C$23:$C$50,0)),0),0)*$H83*$X83*$Y83),$D83)*$R83","v":0},{"$f":"MIN((IFERROR(IF(AND($V83<=AH$1,$W83>=AH$1),INDEX(Reliability!M$23:M$50,MATCH($S83,Reliability!$C$23:$C$50,0)),0),0)*IF($T83=\"n/a\",$D83*$Y83,$G83)+IFERROR(IF(AND($V83<=AH$1,$W83>=AH$1),INDEX(Reliability!M$23:M$50,MATCH($T83,Reliability!$C$23:$C$50,0)),0),0)*$H83*$X83*$Y83),$D83)*$R83","v":0},{"$f":"MIN((IFERROR(IF(AND($V83<=AI$1,$W83>=AI$1),INDEX(Reliability!N$23:N$50,MATCH($S83,Reliability!$C$23:$C$50,0)),0),0)*IF($T83=\"n/a\",$D83*$Y83,$G83)+IFERROR(IF(AND($V83<=AI$1,$W83>=AI$1),INDEX(Reliability!N$23:N$50,MATCH($T83,Reliability!$C$23:$C$50,0)),0),0)*$H83*$X83*$Y83),$D83)*$R83","v":0},{"$f":"MIN((IFERROR(IF(AND($V83<=AJ$1,$W83>=AJ$1),INDEX(Reliability!O$23:O$50,MATCH($S83,Reliability!$C$23:$C$50,0)),0),0)*IF($T83=\"n/a\",$D83*$Y83,$G83)+IFERROR(IF(AND($V83<=AJ$1,$W83>=AJ$1),INDEX(Reliability!O$23:O$50,MATCH($T83,Reliability!$C$23:$C$50,0)),0),0)*$H83*$X83*$Y83),$D83)*$R83","v":0},{"$f":"MIN((IFERROR(IF(AND($V83<=AK$1,$W83>=AK$1),INDEX(Reliability!P$23:P$50,MATCH($S83,Reliability!$C$23:$C$50,0)),0),0)*IF($T83=\"n/a\",$D83*$Y83,$G83)+IFERROR(IF(AND($V83<=AK$1,$W83>=AK$1),INDEX(Reliability!P$23:P$50,MATCH($T83,Reliability!$C$23:$C$50,0)),0),0)*$H83*$X83*$Y83),$D83)*$R83","v":0}]
[null,{"$f":"unique_contracts!B85","v":"_NEW_GENERIC_SOLAR_1AXIS"},{"$f":"unique_contracts!D85","v":"PlannedNew"},{"$f":"unique_contracts!J85","v":0},{"$f":"unique_contracts!M85","v":"NotHybrid"},{"$f":"unique_contracts!N85","v":"NA"},{"$f":"unique_contracts!P85","v":0},{"$f":"unique_contracts!R85","v":0},{"$f":"unique_contracts!V85","v":0},{"$f":"unique_contracts!AB85","v":"Sell"},{"$f":"unique_contracts!AM85","v":2030},{"$f":"unique_contracts!AN85","v":1},{"$f":"unique_contracts!AO85","v":1},{"$f":"unique_contracts!AP85","v":2030},{"$f":"unique_contracts!AQ85","v":12},{"$f":"unique_contracts!AR85","v":31},{"$f":"unique_contracts!BP85","v":"EnergyOnly"},0,{"$f":"IFERROR(IF(AND(I84>0,E84=\"NotHybrid\"),_xlfn.CONCAT(MAX(MIN(ROUNDDOWN(I84/D84,0),8),4),INDEX(resources!$G:$G,MATCH(B84,resources!$A:$A,0))),INDEX(resources!$G:$G,MATCH(B84,resources!$A:$A,0))),\"n/a\")","v":"utility_pv"},"n/a","utility_pv",2030,2030,1,1,{"$f":"MIN((IFERROR(IF(AND($V84<=Z$1,$W84>=Z$1),INDEX(Reliability!E$23:E$50,MATCH($S84,Reliability!$C$23:$C$50,0)),0),0)*IF($T84=\"n/a\",$D84*$Y84,$G84)+IFERROR(IF(AND($V84<=Z$1,$W84>=Z$1),INDEX(Reliability!E$23:E$50,MATCH($T84,Reliability!$C$23:$C$50,0)),0),0)*$H84*$X84*$Y84),$D84)*$R84","v":0},{"$f":"MIN((IFERROR(IF(AND($V84<=AA$1,$W84>=AA$1),INDEX(Reliability!F$23:F$50,MATCH($S84,Reliability!$C$23:$C$50,0)),0),0)*IF($T84=\"n/a\",$D84*$Y84,$G84)+IFERROR(IF(AND($V84<=AA$1,$W84>=AA$1),INDEX(Reliability!F$23:F$50,MATCH($T84,Reliability!$C$23:$C$50,0)),0),0)*$H84*$X84*$Y84),$D84)*$R84","v":0},{"$f":"MIN((IFERROR(IF(AND($V84<=AB$1,$W84>=AB$1),INDEX(Reliability!G$23:G$50,MATCH($S84,Reliability!$C$23:$C$50,0)),0),0)*IF($T84=\"n/a\",$D84*$Y84,$G84)+IFERROR(IF(AND($V84<=AB$1,$W84>=AB$1),INDEX(Reliability!G$23:G$50,MATCH($T84,Reliability!$C$23:$C$50,0)),0),0)*$H84*$X84*$Y84),$D84)*$R84","v":0},{"$f":"MIN((IFERROR(IF(AND($V84<=AC$1,$W84>=AC$1),INDEX(Reliability!H$23:H$50,MATCH($S84,Reliability!$C$23:$C$50,0)),0),0)*IF($T84=\"n/a\",$D84*$Y84,$G84)+IFERROR(IF(AND($V84<=AC$1,$W84>=AC$1),INDEX(Reliability!H$23:H$50,MATCH($T84,Reliability!$C$23:$C$50,0)),0),0)*$H84*$X84*$Y84),$D84)*$R84","v":0},{"$f":"MIN((IFERROR(IF(AND($V84<=AD$1,$W84>=AD$1),INDEX(Reliability!I$23:I$50,MATCH($S84,Reliability!$C$23:$C$50,0)),0),0)*IF($T84=\"n/a\",$D84*$Y84,$G84)+IFERROR(IF(AND($V84<=AD$1,$W84>=AD$1),INDEX(Reliability!I$23:I$50,MATCH($T84,Reliability!$C$23:$C$50,0)),0),0)*$H84*$X84*$Y84),$D84)*$R84","v":0},{"$f":"MIN((IFERROR(IF(AND($V84<=AE$1,$W84>=AE$1),INDEX(Reliability!J$23:J$50,MATCH($S84,Reliability!$C$23:$C$50,0)),0),0)*IF($T84=\"n/a\",$D84*$Y84,$G84)+IFERROR(IF(AND($V84<=AE$1,$W84>=AE$1),INDEX(Reliability!J$23:J$50,MATCH($T84,Reliability!$C$23:$C$50,0)),0),0)*$H84*$X84*$Y84),$D84)*$R84","v":0},{"$f":"MIN((IFERROR(IF(AND($V84<=AF$1,$W84>=AF$1),INDEX(Reliability!K$23:K$50,MATCH($S84,Reliability!$C$23:$C$50,0)),0),0)*IF($T84=\"n/a\",$D84*$Y84,$G84)+IFERROR(IF(AND($V84<=AF$1,$W84>=AF$1),INDEX(Reliability!K$23:K$50,MATCH($T84,Reliability!$C$23:$C$50,0)),0),0)*$H84*$X84*$Y84),$D84)*$R84","v":0},{"$f":"MIN((IFERROR(IF(AND($V84<=AG$1,$W84>=AG$1),INDEX(Reliability!L$23:L$50,MATCH($S84,Reliability!$C$23:$C$50,0)),0),0)*IF($T84=\"n/a\",$D84*$Y84,$G84)+IFERROR(IF(AND($V84<=AG$1,$W84>=AG$1),INDEX(Reliability!L$23:L$50,MATCH($T84,Reliability!$C$23:$C$50,0)),0),0)*$H84*$X84*$Y84),$D84)*$R84","v":0},{"$f":"MIN((IFERROR(IF(AND($V84<=AH$1,$W84>=AH$1),INDEX(Reliability!M$23:M$50,MATCH($S84,Reliability!$C$23:$C$50,0)),0),0)*IF($T84=\"n/a\",$D84*$Y84,$G84)+IFERROR(IF(AND($V84<=AH$1,$W84>=AH$1),INDEX(Reliability!M$23:M$50,MATCH($T84,Reliability!$C$23:$C$50,0)),0),0)*$H84*$X84*$Y84),$D84)*$R84","v":0},{"$f":"MIN((IFERROR(IF(AND($V84<=AI$1,$W84>=AI$1),INDEX(Reliability!N$23:N$50,MATCH($S84,Reliability!$C$23:$C$50,0)),0),0)*IF($T84=\"n/a\",$D84*$Y84,$G84)+IFERROR(IF(AND($V84<=AI$1,$W84>=AI$1),INDEX(Reliability!N$23:N$50,MATCH($T84,Reliability!$C$23:$C$50,0)),0),0)*$H84*$X84*$Y84),$D84)*$R84","v":0},{"$f":"MIN((IFERROR(IF(AND($V84<=AJ$1,$W84>=AJ$1),INDEX(Reliability!O$23:O$50,MATCH($S84,Reliability!$C$23:$C$50,0)),0),0)*IF($T84=\"n/a\",$D84*$Y84,$G84)+IFERROR(IF(AND($V84<=AJ$1,$W84>=AJ$1),INDEX(Reliability!O$23:O$50,MATCH($T84,Reliability!$C$23:$C$50,0)),0),0)*$H84*$X84*$Y84),$D84)*$R84","v":0},{"$f":"MIN((IFERROR(IF(AND($V84<=AK$1,$W84>=AK$1),INDEX(Reliability!P$23:P$50,MATCH($S84,Reliability!$C$23:$C$50,0)),0),0)*IF($T84=\"n/a\",$D84*$Y84,$G84)+IFERROR(IF(AND($V84<=AK$1,$W84>=AK$1),INDEX(Reliability!P$23:P$50,MATCH($T84,Reliability!$C$23:$C$50,0)),0),0)*$H84*$X84*$Y84),$D84)*$R84","v":0}]
[null,{"$f":"unique_contracts!B86","v":"_NEW_GENERIC_SOLAR_1AXIS"},{"$f":"unique_contracts!D86","v":"PlannedNew"},{"$f":"unique_contracts!J86","v":0},{"$f":"unique_contracts!M86","v":"NotHybrid"},{"$f":"unique_contracts!N86","v":"NA"},{"$f":"unique_contracts!P86","v":0},{"$f":"unique_contracts!R86","v":0},{"$f":"unique_contracts!V86","v":0},{"$f":"unique_contracts!AB86","v":"Sell"},{"$f":"unique_contracts!AM86","v":2031},{"$f":"unique_contracts!AN86","v":1},{"$f":"unique_contracts!AO86","v":1},{"$f":"unique_contracts!AP86","v":2031},{"$f":"unique_contracts!AQ86","v":12},{"$f":"unique_contracts!AR86","v":31},{"$f":"unique_contracts!BP86","v":"EnergyOnly"},0,{"$f":"IFERROR(IF(AND(I85>0,E85=\"NotHybrid\"),_xlfn.CONCAT(MAX(MIN(ROUNDDOWN(I85/D85,0),8),4),INDEX(resources!$G:$G,MATCH(B85,resources!$A:$A,0))),INDEX(resources!$G:$G,MATCH(B85,resources!$A:$A,0))),\"n/a\")","v":"utility_pv"},"n/a","utility_pv",2031,2031,1,1,{"$f":"MIN((IFERROR(IF(AND($V85<=Z$1,$W85>=Z$1),INDEX(Reliability!E$23:E$50,MATCH($S85,Reliability!$C$23:$C$50,0)),0),0)*IF($T85=\"n/a\",$D85*$Y85,$G85)+IFERROR(IF(AND($V85<=Z$1,$W85>=Z$1),INDEX(Reliability!E$23:E$50,MATCH($T85,Reliability!$C$23:$C$50,0)),0),0)*$H85*$X85*$Y85),$D85)*$R85","v":0},{"$f":"MIN((IFERROR(IF(AND($V85<=AA$1,$W85>=AA$1),INDEX(Reliability!F$23:F$50,MATCH($S85,Reliability!$C$23:$C$50,0)),0),0)*IF($T85=\"n/a\",$D85*$Y85,$G85)+IFERROR(IF(AND($V85<=AA$1,$W85>=AA$1),INDEX(Reliability!F$23:F$50,MATCH($T85,Reliability!$C$23:$C$50,0)),0),0)*$H85*$X85*$Y85),$D85)*$R85","v":0},{"$f":"MIN((IFERROR(IF(AND($V85<=AB$1,$W85>=AB$1),INDEX(Reliability!G$23:G$50,MATCH($S85,Reliability!$C$23:$C$50,0)),0),0)*IF($T85=\"n/a\",$D85*$Y85,$G85)+IFERROR(IF(AND($V85<=AB$1,$W85>=AB$1),INDEX(Reliability!G$23:G$50,MATCH($T85,Reliability!$C$23:$C$50,0)),0),0)*$H85*$X85*$Y85),$D85)*$R85","v":0},{"$f":"MIN((IFERROR(IF(AND($V85<=AC$1,$W85>=AC$1),INDEX(Reliability!H$23:H$50,MATCH($S85,Reliability!$C$23:$C$50,0)),0),0)*IF($T85=\"n/a\",$D85*$Y85,$G85)+IFERROR(IF(AND($V85<=AC$1,$W85>=AC$1),INDEX(Reliability!H$23:H$50,MATCH($T85,Reliability!$C$23:$C$50,0)),0),0)*$H85*$X85*$Y85),$D85)*$R85","v":0},{"$f":"MIN((IFERROR(IF(AND($V85<=AD$1,$W85>=AD$1),INDEX(Reliability!I$23:I$50,MATCH($S85,Reliability!$C$23:$C$50,0)),0),0)*IF($T85=\"n/a\",$D85*$Y85,$G85)+IFERROR(IF(AND($V85<=AD$1,$W85>=AD$1),INDEX(Reliability!I$23:I$50,MATCH($T85,Reliability!$C$23:$C$50,0)),0),0)*$H85*$X85*$Y85),$D85)*$R85","v":0},{"$f":"MIN((IFERROR(IF(AND($V85<=AE$1,$W85>=AE$1),INDEX(Reliability!J$23:J$50,MATCH($S85,Reliability!$C$23:$C$50,0)),0),0)*IF($T85=\"n/a\",$D85*$Y85,$G85)+IFERROR(IF(AND($V85<=AE$1,$W85>=AE$1),INDEX(Reliability!J$23:J$50,MATCH($T85,Reliability!$C$23:$C$50,0)),0),0)*$H85*$X85*$Y85),$D85)*$R85","v":0},{"$f":"MIN((IFERROR(IF(AND($V85<=AF$1,$W85>=AF$1),INDEX(Reliability!K$23:K$50,MATCH($S85,Reliability!$C$23:$C$50,0)),0),0)*IF($T85=\"n/a\",$D85*$Y85,$G85)+IFERROR(IF(AND($V85<=AF$1,$W85>=AF$1),INDEX(Reliability!K$23:K$50,MATCH($T85,Reliability!$C$23:$C$50,0)),0),0)*$H85*$X85*$Y85),$D85)*$R85","v":0},{"$f":"MIN((IFERROR(IF(AND($V85<=AG$1,$W85>=AG$1),INDEX(Reliability!L$23:L$50,MATCH($S85,Reliability!$C$23:$C$50,0)),0),0)*IF($T85=\"n/a\",$D85*$Y85,$G85)+IFERROR(IF(AND($V85<=AG$1,$W85>=AG$1),INDEX(Reliability!L$23:L$50,MATCH($T85,Reliability!$C$23:$C$50,0)),0),0)*$H85*$X85*$Y85),$D85)*$R85","v":0},{"$f":"MIN((IFERROR(IF(AND($V85<=AH$1,$W85>=AH$1),INDEX(Reliability!M$23:M$50,MATCH($S85,Reliability!$C$23:$C$50,0)),0),0)*IF($T85=\"n/a\",$D85*$Y85,$G85)+IFERROR(IF(AND($V85<=AH$1,$W85>=AH$1),INDEX(Reliability!M$23:M$50,MATCH($T85,Reliability!$C$23:$C$50,0)),0),0)*$H85*$X85*$Y85),$D85)*$R85","v":0},{"$f":"MIN((IFERROR(IF(AND($V85<=AI$1,$W85>=AI$1),INDEX(Reliability!N$23:N$50,MATCH($S85,Reliability!$C$23:$C$50,0)),0),0)*IF($T85=\"n/a\",$D85*$Y85,$G85)+IFERROR(IF(AND($V85<=AI$1,$W85>=AI$1),INDEX(Reliability!N$23:N$50,MATCH($T85,Reliability!$C$23:$C$50,0)),0),0)*$H85*$X85*$Y85),$D85)*$R85","v":0},{"$f":"MIN((IFERROR(IF(AND($V85<=AJ$1,$W85>=AJ$1),INDEX(Reliability!O$23:O$50,MATCH($S85,Reliability!$C$23:$C$50,0)),0),0)*IF($T85=\"n/a\",$D85*$Y85,$G85)+IFERROR(IF(AND($V85<=AJ$1,$W85>=AJ$1),INDEX(Reliability!O$23:O$50,MATCH($T85,Reliability!$C$23:$C$50,0)),0),0)*$H85*$X85*$Y85),$D85)*$R85","v":0},{"$f":"MIN((IFERROR(IF(AND($V85<=AK$1,$W85>=AK$1),INDEX(Reliability!P$23:P$50,MATCH($S85,Reliability!$C$23:$C$50,0)),0),0)*IF($T85=\"n/a\",$D85*$Y85,$G85)+IFERROR(IF(AND($V85<=AK$1,$W85>=AK$1),INDEX(Reliability!P$23:P$50,MATCH($T85,Reliability!$C$23:$C$50,0)),0),0)*$H85*$X85*$Y85),$D85)*$R85","v":0}]
[null,{"$f":"unique_contracts!B87","v":"_NEW_GENERIC_SOLAR_1AXIS"},{"$f":"unique_contracts!D87","v":"PlannedNew"},{"$f":"unique_contracts!J87","v":0},{"$f":"unique_contracts!M87","v":"NotHybrid"},{"$f":"unique_contracts!N87","v":"NA"},{"$f":"unique_contracts!P87","v":0},{"$f":"unique_contracts!R87","v":0},{"$f":"unique_contracts!V87","v":0},{"$f":"unique_contracts!AB87","v":"Sell"},{"$f":"unique_contracts!AM87","v":2032},{"$f":"unique_contracts!AN87","v":1},{"$f":"unique_contracts!AO87","v":1},{"$f":"unique_contracts!AP87","v":2032},{"$f":"unique_contracts!AQ87","v":12},{"$f":"unique_contracts!AR87","v":31},{"$f":"unique_contracts!BP87","v":"EnergyOnly"},0,{"$f":"IFERROR(IF(AND(I86>0,E86=\"NotHybrid\"),_xlfn.CONCAT(MAX(MIN(ROUNDDOWN(I86/D86,0),8),4),INDEX(resources!$G:$G,MATCH(B86,resources!$A:$A,0))),INDEX(resources!$G:$G,MATCH(B86,resources!$A:$A,0))),\"n/a\")","v":"utility_pv"},"n/a","utility_pv",2032,2032,1,1,{"$f":"MIN((IFERROR(IF(AND($V86<=Z$1,$W86>=Z$1),INDEX(Reliability!E$23:E$50,MATCH($S86,Reliability!$C$23:$C$50,0)),0),0)*IF($T86=\"n/a\",$D86*$Y86,$G86)+IFERROR(IF(AND($V86<=Z$1,$W86>=Z$1),INDEX(Reliability!E$23:E$50,MATCH($T86,Reliability!$C$23:$C$50,0)),0),0)*$H86*$X86*$Y86),$D86)*$R86","v":0},{"$f":"MIN((IFERROR(IF(AND($V86<=AA$1,$W86>=AA$1),INDEX(Reliability!F$23:F$50,MATCH($S86,Reliability!$C$23:$C$50,0)),0),0)*IF($T86=\"n/a\",$D86*$Y86,$G86)+IFERROR(IF(AND($V86<=AA$1,$W86>=AA$1),INDEX(Reliability!F$23:F$50,MATCH($T86,Reliability!$C$23:$C$50,0)),0),0)*$H86*$X86*$Y86),$D86)*$R86","v":0},{"$f":"MIN((IFERROR(IF(AND($V86<=AB$1,$W86>=AB$1),INDEX(Reliability!G$23:G$50,MATCH($S86,Reliability!$C$23:$C$50,0)),0),0)*IF($T86=\"n/a\",$D86*$Y86,$G86)+IFERROR(IF(AND($V86<=AB$1,$W86>=AB$1),INDEX(Reliability!G$23:G$50,MATCH($T86,Reliability!$C$23:$C$50,0)),0),0)*$H86*$X86*$Y86),$D86)*$R86","v":0},{"$f":"MIN((IFERROR(IF(AND($V86<=AC$1,$W86>=AC$1),INDEX(Reliability!H$23:H$50,MATCH($S86,Reliability!$C$23:$C$50,0)),0),0)*IF($T86=\"n/a\",$D86*$Y86,$G86)+IFERROR(IF(AND($V86<=AC$1,$W86>=AC$1),INDEX(Reliability!H$23:H$50,MATCH($T86,Reliability!$C$23:$C$50,0)),0),0)*$H86*$X86*$Y86),$D86)*$R86","v":0},{"$f":"MIN((IFERROR(IF(AND($V86<=AD$1,$W86>=AD$1),INDEX(Reliability!I$23:I$50,MATCH($S86,Reliability!$C$23:$C$50,0)),0),0)*IF($T86=\"n/a\",$D86*$Y86,$G86)+IFERROR(IF(AND($V86<=AD$1,$W86>=AD$1),INDEX(Reliability!I$23:I$50,MATCH($T86,Reliability!$C$23:$C$50,0)),0),0)*$H86*$X86*$Y86),$D86)*$R86","v":0},{"$f":"MIN((IFERROR(IF(AND($V86<=AE$1,$W86>=AE$1),INDEX(Reliability!J$23:J$50,MATCH($S86,Reliability!$C$23:$C$50,0)),0),0)*IF($T86=\"n/a\",$D86*$Y86,$G86)+IFERROR(IF(AND($V86<=AE$1,$W86>=AE$1),INDEX(Reliability!J$23:J$50,MATCH($T86,Reliability!$C$23:$C$50,0)),0),0)*$H86*$X86*$Y86),$D86)*$R86","v":0},{"$f":"MIN((IFERROR(IF(AND($V86<=AF$1,$W86>=AF$1),INDEX(Reliability!K$23:K$50,MATCH($S86,Reliability!$C$23:$C$50,0)),0),0)*IF($T86=\"n/a\",$D86*$Y86,$G86)+IFERROR(IF(AND($V86<=AF$1,$W86>=AF$1),INDEX(Reliability!K$23:K$50,MATCH($T86,Reliability!$C$23:$C$50,0)),0),0)*$H86*$X86*$Y86),$D86)*$R86","v":0},{"$f":"MIN((IFERROR(IF(AND($V86<=AG$1,$W86>=AG$1),INDEX(Reliability!L$23:L$50,MATCH($S86,Reliability!$C$23:$C$50,0)),0),0)*IF($T86=\"n/a\",$D86*$Y86,$G86)+IFERROR(IF(AND($V86<=AG$1,$W86>=AG$1),INDEX(Reliability!L$23:L$50,MATCH($T86,Reliability!$C$23:$C$50,0)),0),0)*$H86*$X86*$Y86),$D86)*$R86","v":0},{"$f":"MIN((IFERROR(IF(AND($V86<=AH$1,$W86>=AH$1),INDEX(Reliability!M$23:M$50,MATCH($S86,Reliability!$C$23:$C$50,0)),0),0)*IF($T86=\"n/a\",$D86*$Y86,$G86)+IFERROR(IF(AND($V86<=AH$1,$W86>=AH$1),INDEX(Reliability!M$23:M$50,MATCH($T86,Reliability!$C$23:$C$50,0)),0),0)*$H86*$X86*$Y86),$D86)*$R86","v":0},{"$f":"MIN((IFERROR(IF(AND($V86<=AI$1,$W86>=AI$1),INDEX(Reliability!N$23:N$50,MATCH($S86,Reliability!$C$23:$C$50,0)),0),0)*IF($T86=\"n/a\",$D86*$Y86,$G86)+IFERROR(IF(AND($V86<=AI$1,$W86>=AI$1),INDEX(Reliability!N$23:N$50,MATCH($T86,Reliability!$C$23:$C$50,0)),0),0)*$H86*$X86*$Y86),$D86)*$R86","v":0},{"$f":"MIN((IFERROR(IF(AND($V86<=AJ$1,$W86>=AJ$1),INDEX(Reliability!O$23:O$50,MATCH($S86,Reliability!$C$23:$C$50,0)),0),0)*IF($T86=\"n/a\",$D86*$Y86,$G86)+IFERROR(IF(AND($V86<=AJ$1,$W86>=AJ$1),INDEX(Reliability!O$23:O$50,MATCH($T86,Reliability!$C$23:$C$50,0)),0),0)*$H86*$X86*$Y86),$D86)*$R86","v":0},{"$f":"MIN((IFERROR(IF(AND($V86<=AK$1,$W86>=AK$1),INDEX(Reliability!P$23:P$50,MATCH($S86,Reliability!$C$23:$C$50,0)),0),0)*IF($T86=\"n/a\",$D86*$Y86,$G86)+IFERROR(IF(AND($V86<=AK$1,$W86>=AK$1),INDEX(Reliability!P$23:P$50,MATCH($T86,Reliability!$C$23:$C$50,0)),0),0)*$H86*$X86*$Y86),$D86)*$R86","v":0}]
[null,{"$f":"unique_contracts!B88","v":"_NEW_GENERIC_SOLAR_1AXIS"},{"$f":"unique_contracts!D88","v":"PlannedNew"},{"$f":"unique_contracts!J88","v":0},{"$f":"unique_contracts!M88","v":"NotHybrid"},{"$f":"unique_contracts!N88","v":"NA"},{"$f":"unique_contracts!P88","v":0},{"$f":"unique_contracts!R88","v":0},{"$f":"unique_contracts!V88","v":0},{"$f":"unique_contracts!AB88","v":"Sell"},{"$f":"unique_contracts!AM88","v":2033},{"$f":"unique_contracts!AN88","v":1},{"$f":"unique_contracts!AO88","v":1},{"$f":"unique_contracts!AP88","v":2033},{"$f":"unique_contracts!AQ88","v":12},{"$f":"unique_contracts!AR88","v":31},{"$f":"unique_contracts!BP88","v":"EnergyOnly"},0,{"$f":"IFERROR(IF(AND(I87>0,E87=\"NotHybrid\"),_xlfn.CONCAT(MAX(MIN(ROUNDDOWN(I87/D87,0),8),4),INDEX(resources!$G:$G,MATCH(B87,resources!$A:$A,0))),INDEX(resources!$G:$G,MATCH(B87,resources!$A:$A,0))),\"n/a\")","v":"utility_pv"},"n/a","utility_pv",2033,2033,1,1,{"$f":"MIN((IFERROR(IF(AND($V87<=Z$1,$W87>=Z$1),INDEX(Reliability!E$23:E$50,MATCH($S87,Reliability!$C$23:$C$50,0)),0),0)*IF($T87=\"n/a\",$D87*$Y87,$G87)+IFERROR(IF(AND($V87<=Z$1,$W87>=Z$1),INDEX(Reliability!E$23:E$50,MATCH($T87,Reliability!$C$23:$C$50,0)),0),0)*$H87*$X87*$Y87),$D87)*$R87","v":0},{"$f":"MIN((IFERROR(IF(AND($V87<=AA$1,$W87>=AA$1),INDEX(Reliability!F$23:F$50,MATCH($S87,Reliability!$C$23:$C$50,0)),0),0)*IF($T87=\"n/a\",$D87*$Y87,$G87)+IFERROR(IF(AND($V87<=AA$1,$W87>=AA$1),INDEX(Reliability!F$23:F$50,MATCH($T87,Reliability!$C$23:$C$50,0)),0),0)*$H87*$X87*$Y87),$D87)*$R87","v":0},{"$f":"MIN((IFERROR(IF(AND($V87<=AB$1,$W87>=AB$1),INDEX(Reliability!G$23:G$50,MATCH($S87,Reliability!$C$23:$C$50,0)),0),0)*IF($T87=\"n/a\",$D87*$Y87,$G87)+IFERROR(IF(AND($V87<=AB$1,$W87>=AB$1),INDEX(Reliability!G$23:G$50,MATCH($T87,Reliability!$C$23:$C$50,0)),0),0)*$H87*$X87*$Y87),$D87)*$R87","v":0},{"$f":"MIN((IFERROR(IF(AND($V87<=AC$1,$W87>=AC$1),INDEX(Reliability!H$23:H$50,MATCH($S87,Reliability!$C$23:$C$50,0)),0),0)*IF($T87=\"n/a\",$D87*$Y87,$G87)+IFERROR(IF(AND($V87<=AC$1,$W87>=AC$1),INDEX(Reliability!H$23:H$50,MATCH($T87,Reliability!$C$23:$C$50,0)),0),0)*$H87*$X87*$Y87),$D87)*$R87","v":0},{"$f":"MIN((IFERROR(IF(AND($V87<=AD$1,$W87>=AD$1),INDEX(Reliability!I$23:I$50,MATCH($S87,Reliability!$C$23:$C$50,0)),0),0)*IF($T87=\"n/a\",$D87*$Y87,$G87)+IFERROR(IF(AND($V87<=AD$1,$W87>=AD$1),INDEX(Reliability!I$23:I$50,MATCH($T87,Reliability!$C$23:$C$50,0)),0),0)*$H87*$X87*$Y87),$D87)*$R87","v":0},{"$f":"MIN((IFERROR(IF(AND($V87<=AE$1,$W87>=AE$1),INDEX(Reliability!J$23:J$50,MATCH($S87,Reliability!$C$23:$C$50,0)),0),0)*IF($T87=\"n/a\",$D87*$Y87,$G87)+IFERROR(IF(AND($V87<=AE$1,$W87>=AE$1),INDEX(Reliability!J$23:J$50,MATCH($T87,Reliability!$C$23:$C$50,0)),0),0)*$H87*$X87*$Y87),$D87)*$R87","v":0},{"$f":"MIN((IFERROR(IF(AND($V87<=AF$1,$W87>=AF$1),INDEX(Reliability!K$23:K$50,MATCH($S87,Reliability!$C$23:$C$50,0)),0),0)*IF($T87=\"n/a\",$D87*$Y87,$G87)+IFERROR(IF(AND($V87<=AF$1,$W87>=AF$1),INDEX(Reliability!K$23:K$50,MATCH($T87,Reliability!$C$23:$C$50,0)),0),0)*$H87*$X87*$Y87),$D87)*$R87","v":0},{"$f":"MIN((IFERROR(IF(AND($V87<=AG$1,$W87>=AG$1),INDEX(Reliability!L$23:L$50,MATCH($S87,Reliability!$C$23:$C$50,0)),0),0)*IF($T87=\"n/a\",$D87*$Y87,$G87)+IFERROR(IF(AND($V87<=AG$1,$W87>=AG$1),INDEX(Reliability!L$23:L$50,MATCH($T87,Reliability!$C$23:$C$50,0)),0),0)*$H87*$X87*$Y87),$D87)*$R87","v":0},{"$f":"MIN((IFERROR(IF(AND($V87<=AH$1,$W87>=AH$1),INDEX(Reliability!M$23:M$50,MATCH($S87,Reliability!$C$23:$C$50,0)),0),0)*IF($T87=\"n/a\",$D87*$Y87,$G87)+IFERROR(IF(AND($V87<=AH$1,$W87>=AH$1),INDEX(Reliability!M$23:M$50,MATCH($T87,Reliability!$C$23:$C$50,0)),0),0)*$H87*$X87*$Y87),$D87)*$R87","v":0},{"$f":"MIN((IFERROR(IF(AND($V87<=AI$1,$W87>=AI$1),INDEX(Reliability!N$23:N$50,MATCH($S87,Reliability!$C$23:$C$50,0)),0),0)*IF($T87=\"n/a\",$D87*$Y87,$G87)+IFERROR(IF(AND($V87<=AI$1,$W87>=AI$1),INDEX(Reliability!N$23:N$50,MATCH($T87,Reliability!$C$23:$C$50,0)),0),0)*$H87*$X87*$Y87),$D87)*$R87","v":0},{"$f":"MIN((IFERROR(IF(AND($V87<=AJ$1,$W87>=AJ$1),INDEX(Reliability!O$23:O$50,MATCH($S87,Reliability!$C$23:$C$50,0)),0),0)*IF($T87=\"n/a\",$D87*$Y87,$G87)+IFERROR(IF(AND($V87<=AJ$1,$W87>=AJ$1),INDEX(Reliability!O$23:O$50,MATCH($T87,Reliability!$C$23:$C$50,0)),0),0)*$H87*$X87*$Y87),$D87)*$R87","v":0},{"$f":"MIN((IFERROR(IF(AND($V87<=AK$1,$W87>=AK$1),INDEX(Reliability!P$23:P$50,MATCH($S87,Reliability!$C$23:$C$50,0)),0),0)*IF($T87=\"n/a\",$D87*$Y87,$G87)+IFERROR(IF(AND($V87<=AK$1,$W87>=AK$1),INDEX(Reliability!P$23:P$50,MATCH($T87,Reliability!$C$23:$C$50,0)),0),0)*$H87*$X87*$Y87),$D87)*$R87","v":0}]
[null,{"$f":"unique_contracts!B89","v":"_NEW_GENERIC_SOLAR_1AXIS"},{"$f":"unique_contracts!D89","v":"PlannedNew"},{"$f":"unique_contracts!J89","v":0},{"$f":"unique_contracts!M89","v":"NotHybrid"},{"$f":"unique_contracts!N89","v":"NA"},{"$f":"unique_contracts!P89","v":0},{"$f":"unique_contracts!R89","v":0},{"$f":"unique_contracts!V89","v":0},{"$f":"unique_contracts!AB89","v":"Sell"},{"$f":"unique_contracts!AM89","v":2034},{"$f":"unique_contracts!AN89","v":1},{"$f":"unique_contracts!AO89","v":1},{"$f":"unique_contracts!AP89","v":2034},{"$f":"unique_contracts!AQ89","v":12},{"$f":"unique_contracts!AR89","v":31},{"$f":"unique_contracts!BP89","v":"EnergyOnly"},0,{"$f":"IFERROR(IF(AND(I88>0,E88=\"NotHybrid\"),_xlfn.CONCAT(MAX(MIN(ROUNDDOWN(I88/D88,0),8),4),INDEX(resources!$G:$G,MATCH(B88,resources!$A:$A,0))),INDEX(resources!$G:$G,MATCH(B88,resources!$A:$A,0))),\"n/a\")","v":"utility_pv"},"n/a","utility_pv",2034,2034,1,1,{"$f":"MIN((IFERROR(IF(AND($V88<=Z$1,$W88>=Z$1),INDEX(Reliability!E$23:E$50,MATCH($S88,Reliability!$C$23:$C$50,0)),0),0)*IF($T88=\"n/a\",$D88*$Y88,$G88)+IFERROR(IF(AND($V88<=Z$1,$W88>=Z$1),INDEX(Reliability!E$23:E$50,MATCH($T88,Reliability!$C$23:$C$50,0)),0),0)*$H88*$X88*$Y88),$D88)*$R88","v":0},{"$f":"MIN((IFERROR(IF(AND($V88<=AA$1,$W88>=AA$1),INDEX(Reliability!F$23:F$50,MATCH($S88,Reliability!$C$23:$C$50,0)),0),0)*IF($T88=\"n/a\",$D88*$Y88,$G88)+IFERROR(IF(AND($V88<=AA$1,$W88>=AA$1),INDEX(Reliability!F$23:F$50,MATCH($T88,Reliability!$C$23:$C$50,0)),0),0)*$H88*$X88*$Y88),$D88)*$R88","v":0},{"$f":"MIN((IFERROR(IF(AND($V88<=AB$1,$W88>=AB$1),INDEX(Reliability!G$23:G$50,MATCH($S88,Reliability!$C$23:$C$50,0)),0),0)*IF($T88=\"n/a\",$D88*$Y88,$G88)+IFERROR(IF(AND($V88<=AB$1,$W88>=AB$1),INDEX(Reliability!G$23:G$50,MATCH($T88,Reliability!$C$23:$C$50,0)),0),0)*$H88*$X88*$Y88),$D88)*$R88","v":0},{"$f":"MIN((IFERROR(IF(AND($V88<=AC$1,$W88>=AC$1),INDEX(Reliability!H$23:H$50,MATCH($S88,Reliability!$C$23:$C$50,0)),0),0)*IF($T88=\"n/a\",$D88*$Y88,$G88)+IFERROR(IF(AND($V88<=AC$1,$W88>=AC$1),INDEX(Reliability!H$23:H$50,MATCH($T88,Reliability!$C$23:$C$50,0)),0),0)*$H88*$X88*$Y88),$D88)*$R88","v":0},{"$f":"MIN((IFERROR(IF(AND($V88<=AD$1,$W88>=AD$1),INDEX(Reliability!I$23:I$50,MATCH($S88,Reliability!$C$23:$C$50,0)),0),0)*IF($T88=\"n/a\",$D88*$Y88,$G88)+IFERROR(IF(AND($V88<=AD$1,$W88>=AD$1),INDEX(Reliability!I$23:I$50,MATCH($T88,Reliability!$C$23:$C$50,0)),0),0)*$H88*$X88*$Y88),$D88)*$R88","v":0},{"$f":"MIN((IFERROR(IF(AND($V88<=AE$1,$W88>=AE$1),INDEX(Reliability!J$23:J$50,MATCH($S88,Reliability!$C$23:$C$50,0)),0),0)*IF($T88=\"n/a\",$D88*$Y88,$G88)+IFERROR(IF(AND($V88<=AE$1,$W88>=AE$1),INDEX(Reliability!J$23:J$50,MATCH($T88,Reliability!$C$23:$C$50,0)),0),0)*$H88*$X88*$Y88),$D88)*$R88","v":0},{"$f":"MIN((IFERROR(IF(AND($V88<=AF$1,$W88>=AF$1),INDEX(Reliability!K$23:K$50,MATCH($S88,Reliability!$C$23:$C$50,0)),0),0)*IF($T88=\"n/a\",$D88*$Y88,$G88)+IFERROR(IF(AND($V88<=AF$1,$W88>=AF$1),INDEX(Reliability!K$23:K$50,MATCH($T88,Reliability!$C$23:$C$50,0)),0),0)*$H88*$X88*$Y88),$D88)*$R88","v":0},{"$f":"MIN((IFERROR(IF(AND($V88<=AG$1,$W88>=AG$1),INDEX(Reliability!L$23:L$50,MATCH($S88,Reliability!$C$23:$C$50,0)),0),0)*IF($T88=\"n/a\",$D88*$Y88,$G88)+IFERROR(IF(AND($V88<=AG$1,$W88>=AG$1),INDEX(Reliability!L$23:L$50,MATCH($T88,Reliability!$C$23:$C$50,0)),0),0)*$H88*$X88*$Y88),$D88)*$R88","v":0},{"$f":"MIN((IFERROR(IF(AND($V88<=AH$1,$W88>=AH$1),INDEX(Reliability!M$23:M$50,MATCH($S88,Reliability!$C$23:$C$50,0)),0),0)*IF($T88=\"n/a\",$D88*$Y88,$G88)+IFERROR(IF(AND($V88<=AH$1,$W88>=AH$1),INDEX(Reliability!M$23:M$50,MATCH($T88,Reliability!$C$23:$C$50,0)),0),0)*$H88*$X88*$Y88),$D88)*$R88","v":0},{"$f":"MIN((IFERROR(IF(AND($V88<=AI$1,$W88>=AI$1),INDEX(Reliability!N$23:N$50,MATCH($S88,Reliability!$C$23:$C$50,0)),0),0)*IF($T88=\"n/a\",$D88*$Y88,$G88)+IFERROR(IF(AND($V88<=AI$1,$W88>=AI$1),INDEX(Reliability!N$23:N$50,MATCH($T88,Reliability!$C$23:$C$50,0)),0),0)*$H88*$X88*$Y88),$D88)*$R88","v":0},{"$f":"MIN((IFERROR(IF(AND($V88<=AJ$1,$W88>=AJ$1),INDEX(Reliability!O$23:O$50,MATCH($S88,Reliability!$C$23:$C$50,0)),0),0)*IF($T88=\"n/a\",$D88*$Y88,$G88)+IFERROR(IF(AND($V88<=AJ$1,$W88>=AJ$1),INDEX(Reliability!O$23:O$50,MATCH($T88,Reliability!$C$23:$C$50,0)),0),0)*$H88*$X88*$Y88),$D88)*$R88","v":0},{"$f":"MIN((IFERROR(IF(AND($V88<=AK$1,$W88>=AK$1),INDEX(Reliability!P$23:P$50,MATCH($S88,Reliability!$C$23:$C$50,0)),0),0)*IF($T88=\"n/a\",$D88*$Y88,$G88)+IFERROR(IF(AND($V88<=AK$1,$W88>=AK$1),INDEX(Reliability!P$23:P$50,MATCH($T88,Reliability!$C$23:$C$50,0)),0),0)*$H88*$X88*$Y88),$D88)*$R88","v":0}]
[null,{"$f":"unique_contracts!B90","v":"_NEW_GENERIC_SOLAR_1AXIS"},{"$f":"unique_contracts!D90","v":"PlannedNew"},{"$f":"unique_contracts!J90","v":0},{"$f":"unique_contracts!M90","v":"NotHybrid"},{"$f":"unique_contracts!N90","v":"NA"},{"$f":"unique_contracts!P90","v":0},{"$f":"unique_contracts!R90","v":0},{"$f":"unique_contracts!V90","v":0},{"$f":"unique_contracts!AB90","v":"Sell"},{"$f":"unique_contracts!AM90","v":2035},{"$f":"unique_contracts!AN90","v":1},{"$f":"unique_contracts!AO90","v":1},{"$f":"unique_contracts!AP90","v":2035},{"$f":"unique_contracts!AQ90","v":12},{"$f":"unique_contracts!AR90","v":31},{"$f":"unique_contracts!BP90","v":"EnergyOnly"},0,{"$f":"IFERROR(IF(AND(I89>0,E89=\"NotHybrid\"),_xlfn.CONCAT(MAX(MIN(ROUNDDOWN(I89/D89,0),8),4),INDEX(resources!$G:$G,MATCH(B89,resources!$A:$A,0))),INDEX(resources!$G:$G,MATCH(B89,resources!$A:$A,0))),\"n/a\")","v":"utility_pv"},"n/a","utility_pv",2035,2035,1,1,{"$f":"MIN((IFERROR(IF(AND($V89<=Z$1,$W89>=Z$1),INDEX(Reliability!E$23:E$50,MATCH($S89,Reliability!$C$23:$C$50,0)),0),0)*IF($T89=\"n/a\",$D89*$Y89,$G89)+IFERROR(IF(AND($V89<=Z$1,$W89>=Z$1),INDEX(Reliability!E$23:E$50,MATCH($T89,Reliability!$C$23:$C$50,0)),0),0)*$H89*$X89*$Y89),$D89)*$R89","v":0},{"$f":"MIN((IFERROR(IF(AND($V89<=AA$1,$W89>=AA$1),INDEX(Reliability!F$23:F$50,MATCH($S89,Reliability!$C$23:$C$50,0)),0),0)*IF($T89=\"n/a\",$D89*$Y89,$G89)+IFERROR(IF(AND($V89<=AA$1,$W89>=AA$1),INDEX(Reliability!F$23:F$50,MATCH($T89,Reliability!$C$23:$C$50,0)),0),0)*$H89*$X89*$Y89),$D89)*$R89","v":0},{"$f":"MIN((IFERROR(IF(AND($V89<=AB$1,$W89>=AB$1),INDEX(Reliability!G$23:G$50,MATCH($S89,Reliability!$C$23:$C$50,0)),0),0)*IF($T89=\"n/a\",$D89*$Y89,$G89)+IFERROR(IF(AND($V89<=AB$1,$W89>=AB$1),INDEX(Reliability!G$23:G$50,MATCH($T89,Reliability!$C$23:$C$50,0)),0),0)*$H89*$X89*$Y89),$D89)*$R89","v":0},{"$f":"MIN((IFERROR(IF(AND($V89<=AC$1,$W89>=AC$1),INDEX(Reliability!H$23:H$50,MATCH($S89,Reliability!$C$23:$C$50,0)),0),0)*IF($T89=\"n/a\",$D89*$Y89,$G89)+IFERROR(IF(AND($V89<=AC$1,$W89>=AC$1),INDEX(Reliability!H$23:H$50,MATCH($T89,Reliability!$C$23:$C$50,0)),0),0)*$H89*$X89*$Y89),$D89)*$R89","v":0},{"$f":"MIN((IFERROR(IF(AND($V89<=AD$1,$W89>=AD$1),INDEX(Reliability!I$23:I$50,MATCH($S89,Reliability!$C$23:$C$50,0)),0),0)*IF($T89=\"n/a\",$D89*$Y89,$G89)+IFERROR(IF(AND($V89<=AD$1,$W89>=AD$1),INDEX(Reliability!I$23:I$50,MATCH($T89,Reliability!$C$23:$C$50,0)),0),0)*$H89*$X89*$Y89),$D89)*$R89","v":0},{"$f":"MIN((IFERROR(IF(AND($V89<=AE$1,$W89>=AE$1),INDEX(Reliability!J$23:J$50,MATCH($S89,Reliability!$C$23:$C$50,0)),0),0)*IF($T89=\"n/a\",$D89*$Y89,$G89)+IFERROR(IF(AND($V89<=AE$1,$W89>=AE$1),INDEX(Reliability!J$23:J$50,MATCH($T89,Reliability!$C$23:$C$50,0)),0),0)*$H89*$X89*$Y89),$D89)*$R89","v":0},{"$f":"MIN((IFERROR(IF(AND($V89<=AF$1,$W89>=AF$1),INDEX(Reliability!K$23:K$50,MATCH($S89,Reliability!$C$23:$C$50,0)),0),0)*IF($T89=\"n/a\",$D89*$Y89,$G89)+IFERROR(IF(AND($V89<=AF$1,$W89>=AF$1),INDEX(Reliability!K$23:K$50,MATCH($T89,Reliability!$C$23:$C$50,0)),0),0)*$H89*$X89*$Y89),$D89)*$R89","v":0},{"$f":"MIN((IFERROR(IF(AND($V89<=AG$1,$W89>=AG$1),INDEX(Reliability!L$23:L$50,MATCH($S89,Reliability!$C$23:$C$50,0)),0),0)*IF($T89=\"n/a\",$D89*$Y89,$G89)+IFERROR(IF(AND($V89<=AG$1,$W89>=AG$1),INDEX(Reliability!L$23:L$50,MATCH($T89,Reliability!$C$23:$C$50,0)),0),0)*$H89*$X89*$Y89),$D89)*$R89","v":0},{"$f":"MIN((IFERROR(IF(AND($V89<=AH$1,$W89>=AH$1),INDEX(Reliability!M$23:M$50,MATCH($S89,Reliability!$C$23:$C$50,0)),0),0)*IF($T89=\"n/a\",$D89*$Y89,$G89)+IFERROR(IF(AND($V89<=AH$1,$W89>=AH$1),INDEX(Reliability!M$23:M$50,MATCH($T89,Reliability!$C$23:$C$50,0)),0),0)*$H89*$X89*$Y89),$D89)*$R89","v":0},{"$f":"MIN((IFERROR(IF(AND($V89<=AI$1,$W89>=AI$1),INDEX(Reliability!N$23:N$50,MATCH($S89,Reliability!$C$23:$C$50,0)),0),0)*IF($T89=\"n/a\",$D89*$Y89,$G89)+IFERROR(IF(AND($V89<=AI$1,$W89>=AI$1),INDEX(Reliability!N$23:N$50,MATCH($T89,Reliability!$C$23:$C$50,0)),0),0)*$H89*$X89*$Y89),$D89)*$R89","v":0},{"$f":"MIN((IFERROR(IF(AND($V89<=AJ$1,$W89>=AJ$1),INDEX(Reliability!O$23:O$50,MATCH($S89,Reliability!$C$23:$C$50,0)),0),0)*IF($T89=\"n/a\",$D89*$Y89,$G89)+IFERROR(IF(AND($V89<=AJ$1,$W89>=AJ$1),INDEX(Reliability!O$23:O$50,MATCH($T89,Reliability!$C$23:$C$50,0)),0),0)*$H89*$X89*$Y89),$D89)*$R89","v":0},{"$f":"MIN((IFERROR(IF(AND($V89<=AK$1,$W89>=AK$1),INDEX(Reliability!P$23:P$50,MATCH($S89,Reliability!$C$23:$C$50,0)),0),0)*IF($T89=\"n/a\",$D89*$Y89,$G89)+IFERROR(IF(AND($V89<=AK$1,$W89>=AK$1),INDEX(Reliability!P$23:P$50,MATCH($T89,Reliability!$C$23:$C$50,0)),0),0)*$H89*$X89*$Y89),$D89)*$R89","v":0}]
[null,{"$f":"unique_contracts!B91","v":0},{"$f":"unique_contracts!D91","v":0},{"$f":"unique_contracts!J91","v":0},{"$f":"unique_contracts!M91","v":0},{"$f":"unique_contracts!N91","v":0},{"$f":"unique_contracts!P91","v":0},{"$f":"unique_contracts!R91","v":0},{"$f":"unique_contracts!V91","v":0},{"$f":"unique_contracts!AB91","v":0},{"$f":"unique_contracts!AM91","v":0},{"$f":"unique_contracts!AN91","v":0},{"$f":"unique_contracts!AO91","v":0},{"$f":"unique_contracts!AP91","v":0},{"$f":"unique_contracts!AQ91","v":0},{"$f":"unique_contracts!AR91","v":0},{"$f":"unique_contracts!BP91","v":0},0,{"$f":"IFERROR(IF(AND(I90>0,E90=\"NotHybrid\"),_xlfn.CONCAT(MAX(MIN(ROUNDDOWN(I90/D90,0),8),4),INDEX(resources!$G:$G,MATCH(B90,resources!$A:$A,0))),INDEX(resources!$G:$G,MATCH(B90,resources!$A:$A,0))),\"n/a\")","v":"n/a"},"n/a","n/a",0,0,1,1,{"$f":"MIN((IFERROR(IF(AND($V90<=Z$1,$W90>=Z$1),INDEX(Reliability!E$23:E$50,MATCH($S90,Reliability!$C$23:$C$50,0)),0),0)*IF($T90=\"n/a\",$D90*$Y90,$G90)+IFERROR(IF(AND($V90<=Z$1,$W90>=Z$1),INDEX(Reliability!E$23:E$50,MATCH($T90,Reliability!$C$23:$C$50,0)),0),0)*$H90*$X90*$Y90),$D90)*$R90","v":0},{"$f":"MIN((IFERROR(IF(AND($V90<=AA$1,$W90>=AA$1),INDEX(Reliability!F$23:F$50,MATCH($S90,Reliability!$C$23:$C$50,0)),0),0)*IF($T90=\"n/a\",$D90*$Y90,$G90)+IFERROR(IF(AND($V90<=AA$1,$W90>=AA$1),INDEX(Reliability!F$23:F$50,MATCH($T90,Reliability!$C$23:$C$50,0)),0),0)*$H90*$X90*$Y90),$D90)*$R90","v":0},{"$f":"MIN((IFERROR(IF(AND($V90<=AB$1,$W90>=AB$1),INDEX(Reliability!G$23:G$50,MATCH($S90,Reliability!$C$23:$C$50,0)),0),0)*IF($T90=\"n/a\",$D90*$Y90,$G90)+IFERROR(IF(AND($V90<=AB$1,$W90>=AB$1),INDEX(Reliability!G$23:G$50,MATCH($T90,Reliability!$C$23:$C$50,0)),0),0)*$H90*$X90*$Y90),$D90)*$R90","v":0},{"$f":"MIN((IFERROR(IF(AND($V90<=AC$1,$W90>=AC$1),INDEX(Reliability!H$23:H$50,MATCH($S90,Reliability!$C$23:$C$50,0)),0),0)*IF($T90=\"n/a\",$D90*$Y90,$G90)+IFERROR(IF(AND($V90<=AC$1,$W90>=AC$1),INDEX(Reliability!H$23:H$50,MATCH($T90,Reliability!$C$23:$C$50,0)),0),0)*$H90*$X90*$Y90),$D90)*$R90","v":0},{"$f":"MIN((IFERROR(IF(AND($V90<=AD$1,$W90>=AD$1),INDEX(Reliability!I$23:I$50,MATCH($S90,Reliability!$C$23:$C$50,0)),0),0)*IF($T90=\"n/a\",$D90*$Y90,$G90)+IFERROR(IF(AND($V90<=AD$1,$W90>=AD$1),INDEX(Reliability!I$23:I$50,MATCH($T90,Reliability!$C$23:$C$50,0)),0),0)*$H90*$X90*$Y90),$D90)*$R90","v":0},{"$f":"MIN((IFERROR(IF(AND($V90<=AE$1,$W90>=AE$1),INDEX(Reliability!J$23:J$50,MATCH($S90,Reliability!$C$23:$C$50,0)),0),0)*IF($T90=\"n/a\",$D90*$Y90,$G90)+IFERROR(IF(AND($V90<=AE$1,$W90>=AE$1),INDEX(Reliability!J$23:J$50,MATCH($T90,Reliability!$C$23:$C$50,0)),0),0)*$H90*$X90*$Y90),$D90)*$R90","v":0},{"$f":"MIN((IFERROR(IF(AND($V90<=AF$1,$W90>=AF$1),INDEX(Reliability!K$23:K$50,MATCH($S90,Reliability!$C$23:$C$50,0)),0),0)*IF($T90=\"n/a\",$D90*$Y90,$G90)+IFERROR(IF(AND($V90<=AF$1,$W90>=AF$1),INDEX(Reliability!K$23:K$50,MATCH($T90,Reliability!$C$23:$C$50,0)),0),0)*$H90*$X90*$Y90),$D90)*$R90","v":0},{"$f":"MIN((IFERROR(IF(AND($V90<=AG$1,$W90>=AG$1),INDEX(Reliability!L$23:L$50,MATCH($S90,Reliability!$C$23:$C$50,0)),0),0)*IF($T90=\"n/a\",$D90*$Y90,$G90)+IFERROR(IF(AND($V90<=AG$1,$W90>=AG$1),INDEX(Reliability!L$23:L$50,MATCH($T90,Reliability!$C$23:$C$50,0)),0),0)*$H90*$X90*$Y90),$D90)*$R90","v":0},{"$f":"MIN((IFERROR(IF(AND($V90<=AH$1,$W90>=AH$1),INDEX(Reliability!M$23:M$50,MATCH($S90,Reliability!$C$23:$C$50,0)),0),0)*IF($T90=\"n/a\",$D90*$Y90,$G90)+IFERROR(IF(AND($V90<=AH$1,$W90>=AH$1),INDEX(Reliability!M$23:M$50,MATCH($T90,Reliability!$C$23:$C$50,0)),0),0)*$H90*$X90*$Y90),$D90)*$R90","v":0},{"$f":"MIN((IFERROR(IF(AND($V90<=AI$1,$W90>=AI$1),INDEX(Reliability!N$23:N$50,MATCH($S90,Reliability!$C$23:$C$50,0)),0),0)*IF($T90=\"n/a\",$D90*$Y90,$G90)+IFERROR(IF(AND($V90<=AI$1,$W90>=AI$1),INDEX(Reliability!N$23:N$50,MATCH($T90,Reliability!$C$23:$C$50,0)),0),0)*$H90*$X90*$Y90),$D90)*$R90","v":0},{"$f":"MIN((IFERROR(IF(AND($V90<=AJ$1,$W90>=AJ$1),INDEX(Reliability!O$23:O$50,MATCH($S90,Reliability!$C$23:$C$50,0)),0),0)*IF($T90=\"n/a\",$D90*$Y90,$G90)+IFERROR(IF(AND($V90<=AJ$1,$W90>=AJ$1),INDEX(Reliability!O$23:O$50,MATCH($T90,Reliability!$C$23:$C$50,0)),0),0)*$H90*$X90*$Y90),$D90)*$R90","v":0},{"$f":"MIN((IFERROR(IF(AND($V90<=AK$1,$W90>=AK$1),INDEX(Reliability!P$23:P$50,MATCH($S90,Reliability!$C$23:$C$50,0)),0),0)*IF($T90=\"n/a\",$D90*$Y90,$G90)+IFERROR(IF(AND($V90<=AK$1,$W90>=AK$1),INDEX(Reliability!P$23:P$50,MATCH($T90,Reliability!$C$23:$C$50,0)),0),0)*$H90*$X90*$Y90),$D90)*$R90","v":0}]
[null,{"$f":"unique_contracts!B92","v":0},{"$f":"unique_contracts!D92","v":0},{"$f":"unique_contracts!J92","v":0},{"$f":"unique_contracts!M92","v":0},{"$f":"unique_contracts!N92","v":0},{"$f":"unique_contracts!P92","v":0},{"$f":"unique_contracts!R92","v":0},{"$f":"unique_contracts!V92","v":0},{"$f":"unique_contracts!AB92","v":0},{"$f":"unique_contracts!AM92","v":0},{"$f":"unique_contracts!AN92","v":0},{"$f":"unique_contracts!AO92","v":0},{"$f":"unique_contracts!AP92","v":0},{"$f":"unique_contracts!AQ92","v":0},{"$f":"unique_contracts!AR92","v":0},{"$f":"unique_contracts!BP92","v":0},{"$f":"IF(AND(J91=\"Sell\",ISNUMBER(SEARCH(\"Capacity\",Q91))),-1,IF(AND(NOT(J91=\"Sell\"),ISNUMBER(SEARCH(\"Capacity\",Q91))),1,0))","v":0},{"$f":"IFERROR(IF(AND(I91>0,E91=\"NotHybrid\"),_xlfn.CONCAT(MAX(MIN(ROUNDDOWN(I91/D91,0),8),4),INDEX(resources!$G:$G,MATCH(B91,resources!$A:$A,0))),INDEX(resources!$G:$G,MATCH(B91,resources!$A:$A,0))),\"n/a\")","v":"n/a"},{"$f":"IFERROR(IF(NOT(E91=\"NotHybrid\"),_xlfn.CONCAT(MAX(MIN(ROUNDDOWN(I91/H91,0),8),4),\"hr_batteries\"),\"n/a\"),\"n/a\")","v":"n/a"},{"$f":"IF(T91=\"n/a\",S91,\"hybrid\")","v":"n/a"},{"$f":"IFERROR(IF(DATE(K91,L91,M91)<=DATE(K91,6,1),K91,K91+1),0)","v":0},{"$f":"IFERROR(IF(DATE(N91,O91,P91)>=DATE(N91,10,1),N91,N91-1),0)","v":0},{"$f":"IF(OR(T91=\"n/a\",NOT(F91=\"NO\")),100%,IF(ISNUMBER(SEARCH(\"pv\",S91)),MIN(G91/(1*(ROUNDDOWN(I91/H91,0)/4)),H91)/H91,IF(ISNUMBER(SEARCH(\"wind\",S91)),MIN(G91/(2*(ROUNDDOWN(I91/H91,0)/4)),H91)/H91,1)))","v":1},{"$f":"IF(ISNUMBER(SEARCH(\"batteries\",S91)),MIN(ROUNDDOWN(I91/D91,0)/4,1), IF(ISNUMBER(SEARCH(\"batteries\",T91)),MIN(ROUNDDOWN(I91/H91,0)/4,1),1))","v":1},{"$f":"MIN((IFERROR(IF(AND($V91<=Z$1,$W91>=Z$1),INDEX(Reliability!E$23:E$50,MATCH($S91,Reliability!$C$23:$C$50,0)),0),0)*IF($T91=\"n/a\",$D91*$Y91,$G91)+IFERROR(IF(AND($V91<=Z$1,$W91>=Z$1),INDEX(Reliability!E$23:E$50,MATCH($T91,Reliability!$C$23:$C$50,0)),0),0)*$H91*$X91*$Y91),$D91)*$R91","v":0},{"$f":"MIN((IFERROR(IF(AND($V91<=AA$1,$W91>=AA$1),INDEX(Reliability!F$23:F$50,MATCH($S91,Reliability!$C$23:$C$50,0)),0),0)*IF($T91=\"n/a\",$D91*$Y91,$G91)+IFERROR(IF(AND($V91<=AA$1,$W91>=AA$1),INDEX(Reliability!F$23:F$50,MATCH($T91,Reliability!$C$23:$C$50,0)),0),0)*$H91*$X91*$Y91),$D91)*$R91","v":0},{"$f":"MIN((IFERROR(IF(AND($V91<=AB$1,$W91>=AB$1),INDEX(Reliability!G$23:G$50,MATCH($S91,Reliability!$C$23:$C$50,0)),0),0)*IF($T91=\"n/a\",$D91*$Y91,$G91)+IFERROR(IF(AND($V91<=AB$1,$W91>=AB$1),INDEX(Reliability!G$23:G$50,MATCH($T91,Reliability!$C$23:$C$50,0)),0),0)*$H91*$X91*$Y91),$D91)*$R91","v":0},{"$f":"MIN((IFERROR(IF(AND($V91<=AC$1,$W91>=AC$1),INDEX(Reliability!H$23:H$50,MATCH($S91,Reliability!$C$23:$C$50,0)),0),0)*IF($T91=\"n/a\",$D91*$Y91,$G91)+IFERROR(IF(AND($V91<=AC$1,$W91>=AC$1),INDEX(Reliability!H$23:H$50,MATCH($T91,Reliability!$C$23:$C$50,0)),0),0)*$H91*$X91*$Y91),$D91)*$R91","v":0},{"$f":"MIN((IFERROR(IF(AND($V91<=AD$1,$W91>=AD$1),INDEX(Reliability!I$23:I$50,MATCH($S91,Reliability!$C$23:$C$50,0)),0),0)*IF($T91=\"n/a\",$D91*$Y91,$G91)+IFERROR(IF(AND($V91<=AD$1,$W91>=AD$1),INDEX(Reliability!I$23:I$50,MATCH($T91,Reliability!$C$23:$C$50,0)),0),0)*$H91*$X91*$Y91),$D91)*$R91","v":0},{"$f":"MIN((IFERROR(IF(AND($V91<=AE$1,$W91>=AE$1),INDEX(Reliability!J$23:J$50,MATCH($S91,Reliability!$C$23:$C$50,0)),0),0)*IF($T91=\"n/a\",$D91*$Y91,$G91)+IFERROR(IF(AND($V91<=AE$1,$W91>=AE$1),INDEX(Reliability!J$23:J$50,MATCH($T91,Reliability!$C$23:$C$50,0)),0),0)*$H91*$X91*$Y91),$D91)*$R91","v":0},{"$f":"MIN((IFERROR(IF(AND($V91<=AF$1,$W91>=AF$1),INDEX(Reliability!K$23:K$50,MATCH($S91,Reliability!$C$23:$C$50,0)),0),0)*IF($T91=\"n/a\",$D91*$Y91,$G91)+IFERROR(IF(AND($V91<=AF$1,$W91>=AF$1),INDEX(Reliability!K$23:K$50,MATCH($T91,Reliability!$C$23:$C$50,0)),0),0)*$H91*$X91*$Y91),$D91)*$R91","v":0},{"$f":"MIN((IFERROR(IF(AND($V91<=AG$1,$W91>=AG$1),INDEX(Reliability!L$23:L$50,MATCH($S91,Reliability!$C$23:$C$50,0)),0),0)*IF($T91=\"n/a\",$D91*$Y91,$G91)+IFERROR(IF(AND($V91<=AG$1,$W91>=AG$1),INDEX(Reliability!L$23:L$50,MATCH($T91,Reliability!$C$23:$C$50,0)),0),0)*$H91*$X91*$Y91),$D91)*$R91","v":0},{"$f":"MIN((IFERROR(IF(AND($V91<=AH$1,$W91>=AH$1),INDEX(Reliability!M$23:M$50,MATCH($S91,Reliability!$C$23:$C$50,0)),0),0)*IF($T91=\"n/a\",$D91*$Y91,$G91)+IFERROR(IF(AND($V91<=AH$1,$W91>=AH$1),INDEX(Reliability!M$23:M$50,MATCH($T91,Reliability!$C$23:$C$50,0)),0),0)*$H91*$X91*$Y91),$D91)*$R91","v":0},{"$f":"MIN((IFERROR(IF(AND($V91<=AI$1,$W91>=AI$1),INDEX(Reliability!N$23:N$50,MATCH($S91,Reliability!$C$23:$C$50,0)),0),0)*IF($T91=\"n/a\",$D91*$Y91,$G91)+IFERROR(IF(AND($V91<=AI$1,$W91>=AI$1),INDEX(Reliability!N$23:N$50,MATCH($T91,Reliability!$C$23:$C$50,0)),0),0)*$H91*$X91*$Y91),$D91)*$R91","v":0},{"$f":"MIN((IFERROR(IF(AND($V91<=AJ$1,$W91>=AJ$1),INDEX(Reliability!O$23:O$50,MATCH($S91,Reliability!$C$23:$C$50,0)),0),0)*IF($T91=\"n/a\",$D91*$Y91,$G91)+IFERROR(IF(AND($V91<=AJ$1,$W91>=AJ$1),INDEX(Reliability!O$23:O$50,MATCH($T91,Reliability!$C$23:$C$50,0)),0),0)*$H91*$X91*$Y91),$D91)*$R91","v":0},{"$f":"MIN((IFERROR(IF(AND($V91<=AK$1,$W91>=AK$1),INDEX(Reliability!P$23:P$50,MATCH($S91,Reliability!$C$23:$C$50,0)),0),0)*IF($T91=\"n/a\",$D91*$Y91,$G91)+IFERROR(IF(AND($V91<=AK$1,$W91>=AK$1),INDEX(Reliability!P$23:P$50,MATCH($T91,Reliability!$C$23:$C$50,0)),0),0)*$H91*$X91*$Y91),$D91)*$R91","v":0}]
[null,{"$f":"unique_contracts!B93","v":0},{"$f":"unique_contracts!D93","v":0},{"$f":"unique_contracts!J93","v":0},{"$f":"unique_contracts!M93","v":0},{"$f":"unique_contracts!N93","v":0},{"$f":"unique_contracts!P93","v":0},{"$f":"unique_contracts!R93","v":0},{"$f":"unique_contracts!V93","v":0},{"$f":"unique_contracts!AB93","v":0},{"$f":"unique_contracts!AM93","v":0},{"$f":"unique_contracts!AN93","v":0},{"$f":"unique_contracts!AO93","v":0},{"$f":"unique_contracts!AP93","v":0},{"$f":"unique_contracts!AQ93","v":0},{"$f":"unique_contracts!AR93","v":0},{"$f":"unique_contracts!BP93","v":0},0,{"$f":"IFERROR(IF(AND(I92>0,E92=\"NotHybrid\"),_xlfn.CONCAT(MAX(MIN(ROUNDDOWN(I92/D92,0),8),4),INDEX(resources!$G:$G,MATCH(B92,resources!$A:$A,0))),INDEX(resources!$G:$G,MATCH(B92,resources!$A:$A,0))),\"n/a\")","v":"n/a"},"n/a","n/a",0,0,1,1,{"$f":"MIN((IFERROR(IF(AND($V92<=Z$1,$W92>=Z$1),INDEX(Reliability!E$23:E$50,MATCH($S92,Reliability!$C$23:$C$50,0)),0),0)*IF($T92=\"n/a\",$D92*$Y92,$G92)+IFERROR(IF(AND($V92<=Z$1,$W92>=Z$1),INDEX(Reliability!E$23:E$50,MATCH($T92,Reliability!$C$23:$C$50,0)),0),0)*$H92*$X92*$Y92),$D92)*$R92","v":0},{"$f":"MIN((IFERROR(IF(AND($V92<=AA$1,$W92>=AA$1),INDEX(Reliability!F$23:F$50,MATCH($S92,Reliability!$C$23:$C$50,0)),0),0)*IF($T92=\"n/a\",$D92*$Y92,$G92)+IFERROR(IF(AND($V92<=AA$1,$W92>=AA$1),INDEX(Reliability!F$23:F$50,MATCH($T92,Reliability!$C$23:$C$50,0)),0),0)*$H92*$X92*$Y92),$D92)*$R92","v":0},{"$f":"MIN((IFERROR(IF(AND($V92<=AB$1,$W92>=AB$1),INDEX(Reliability!G$23:G$50,MATCH($S92,Reliability!$C$23:$C$50,0)),0),0)*IF($T92=\"n/a\",$D92*$Y92,$G92)+IFERROR(IF(AND($V92<=AB$1,$W92>=AB$1),INDEX(Reliability!G$23:G$50,MATCH($T92,Reliability!$C$23:$C$50,0)),0),0)*$H92*$X92*$Y92),$D92)*$R92","v":0},{"$f":"MIN((IFERROR(IF(AND($V92<=AC$1,$W92>=AC$1),INDEX(Reliability!H$23:H$50,MATCH($S92,Reliability!$C$23:$C$50,0)),0),0)*IF($T92=\"n/a\",$D92*$Y92,$G92)+IFERROR(IF(AND($V92<=AC$1,$W92>=AC$1),INDEX(Reliability!H$23:H$50,MATCH($T92,Reliability!$C$23:$C$50,0)),0),0)*$H92*$X92*$Y92),$D92)*$R92","v":0},{"$f":"MIN((IFERROR(IF(AND($V92<=AD$1,$W92>=AD$1),INDEX(Reliability!I$23:I$50,MATCH($S92,Reliability!$C$23:$C$50,0)),0),0)*IF($T92=\"n/a\",$D92*$Y92,$G92)+IFERROR(IF(AND($V92<=AD$1,$W92>=AD$1),INDEX(Reliability!I$23:I$50,MATCH($T92,Reliability!$C$23:$C$50,0)),0),0)*$H92*$X92*$Y92),$D92)*$R92","v":0},{"$f":"MIN((IFERROR(IF(AND($V92<=AE$1,$W92>=AE$1),INDEX(Reliability!J$23:J$50,MATCH($S92,Reliability!$C$23:$C$50,0)),0),0)*IF($T92=\"n/a\",$D92*$Y92,$G92)+IFERROR(IF(AND($V92<=AE$1,$W92>=AE$1),INDEX(Reliability!J$23:J$50,MATCH($T92,Reliability!$C$23:$C$50,0)),0),0)*$H92*$X92*$Y92),$D92)*$R92","v":0},{"$f":"MIN((IFERROR(IF(AND($V92<=AF$1,$W92>=AF$1),INDEX(Reliability!K$23:K$50,MATCH($S92,Reliability!$C$23:$C$50,0)),0),0)*IF($T92=\"n/a\",$D92*$Y92,$G92)+IFERROR(IF(AND($V92<=AF$1,$W92>=AF$1),INDEX(Reliability!K$23:K$50,MATCH($T92,Reliability!$C$23:$C$50,0)),0),0)*$H92*$X92*$Y92),$D92)*$R92","v":0},{"$f":"MIN((IFERROR(IF(AND($V92<=AG$1,$W92>=AG$1),INDEX(Reliability!L$23:L$50,MATCH($S92,Reliability!$C$23:$C$50,0)),0),0)*IF($T92=\"n/a\",$D92*$Y92,$G92)+IFERROR(IF(AND($V92<=AG$1,$W92>=AG$1),INDEX(Reliability!L$23:L$50,MATCH($T92,Reliability!$C$23:$C$50,0)),0),0)*$H92*$X92*$Y92),$D92)*$R92","v":0},{"$f":"MIN((IFERROR(IF(AND($V92<=AH$1,$W92>=AH$1),INDEX(Reliability!M$23:M$50,MATCH($S92,Reliability!$C$23:$C$50,0)),0),0)*IF($T92=\"n/a\",$D92*$Y92,$G92)+IFERROR(IF(AND($V92<=AH$1,$W92>=AH$1),INDEX(Reliability!M$23:M$50,MATCH($T92,Reliability!$C$23:$C$50,0)),0),0)*$H92*$X92*$Y92),$D92)*$R92","v":0},{"$f":"MIN((IFERROR(IF(AND($V92<=AI$1,$W92>=AI$1),INDEX(Reliability!N$23:N$50,MATCH($S92,Reliability!$C$23:$C$50,0)),0),0)*IF($T92=\"n/a\",$D92*$Y92,$G92)+IFERROR(IF(AND($V92<=AI$1,$W92>=AI$1),INDEX(Reliability!N$23:N$50,MATCH($T92,Reliability!$C$23:$C$50,0)),0),0)*$H92*$X92*$Y92),$D92)*$R92","v":0},{"$f":"MIN((IFERROR(IF(AND($V92<=AJ$1,$W92>=AJ$1),INDEX(Reliability!O$23:O$50,MATCH($S92,Reliability!$C$23:$C$50,0)),0),0)*IF($T92=\"n/a\",$D92*$Y92,$G92)+IFERROR(IF(AND($V92<=AJ$1,$W92>=AJ$1),INDEX(Reliability!O$23:O$50,MATCH($T92,Reliability!$C$23:$C$50,0)),0),0)*$H92*$X92*$Y92),$D92)*$R92","v":0},{"$f":"MIN((IFERROR(IF(AND($V92<=AK$1,$W92>=AK$1),INDEX(Reliability!P$23:P$50,MATCH($S92,Reliability!$C$23:$C$50,0)),0),0)*IF($T92=\"n/a\",$D92*$Y92,$G92)+IFERROR(IF(AND($V92<=AK$1,$W92>=AK$1),INDEX(Reliability!P$23:P$50,MATCH($T92,Reliability!$C$23:$C$50,0)),0),0)*$H92*$X92*$Y92),$D92)*$R92","v":0}]
[null,{"$f":"unique_contracts!B94","v":0},{"$f":"unique_contracts!D94","v":0},{"$f":"unique_contracts!J94","v":0},{"$f":"unique_contracts!M94","v":0},{"$f":"unique_contracts!N94","v":0},{"$f":"unique_contracts!P94","v":0},{"$f":"unique_contracts!R94","v":0},{"$f":"unique_contracts!V94","v":0},{"$f":"unique_contracts!AB94","v":0},{"$f":"unique_contracts!AM94","v":0},{"$f":"unique_contracts!AN94","v":0},{"$f":"unique_contracts!AO94","v":0},{"$f":"unique_contracts!AP94","v":0},{"$f":"unique_contracts!AQ94","v":0},{"$f":"unique_contracts!AR94","v":0},{"$f":"unique_contracts!BP94","v":0},0,{"$f":"IFERROR(IF(AND(I93>0,E93=\"NotHybrid\"),_xlfn.CONCAT(MAX(MIN(ROUNDDOWN(I93/D93,0),8),4),INDEX(resources!$G:$G,MATCH(B93,resources!$A:$A,0))),INDEX(resources!$G:$G,MATCH(B93,resources!$A:$A,0))),\"n/a\")","v":"n/a"},"n/a","n/a",0,0,1,1,{"$f":"MIN((IFERROR(IF(AND($V93<=Z$1,$W93>=Z$1),INDEX(Reliability!E$23:E$50,MATCH($S93,Reliability!$C$23:$C$50,0)),0),0)*IF($T93=\"n/a\",$D93*$Y93,$G93)+IFERROR(IF(AND($V93<=Z$1,$W93>=Z$1),INDEX(Reliability!E$23:E$50,MATCH($T93,Reliability!$C$23:$C$50,0)),0),0)*$H93*$X93*$Y93),$D93)*$R93","v":0},{"$f":"MIN((IFERROR(IF(AND($V93<=AA$1,$W93>=AA$1),INDEX(Reliability!F$23:F$50,MATCH($S93,Reliability!$C$23:$C$50,0)),0),0)*IF($T93=\"n/a\",$D93*$Y93,$G93)+IFERROR(IF(AND($V93<=AA$1,$W93>=AA$1),INDEX(Reliability!F$23:F$50,MATCH($T93,Reliability!$C$23:$C$50,0)),0),0)*$H93*$X93*$Y93),$D93)*$R93","v":0},{"$f":"MIN((IFERROR(IF(AND($V93<=AB$1,$W93>=AB$1),INDEX(Reliability!G$23:G$50,MATCH($S93,Reliability!$C$23:$C$50,0)),0),0)*IF($T93=\"n/a\",$D93*$Y93,$G93)+IFERROR(IF(AND($V93<=AB$1,$W93>=AB$1),INDEX(Reliability!G$23:G$50,MATCH($T93,Reliability!$C$23:$C$50,0)),0),0)*$H93*$X93*$Y93),$D93)*$R93","v":0},{"$f":"MIN((IFERROR(IF(AND($V93<=AC$1,$W93>=AC$1),INDEX(Reliability!H$23:H$50,MATCH($S93,Reliability!$C$23:$C$50,0)),0),0)*IF($T93=\"n/a\",$D93*$Y93,$G93)+IFERROR(IF(AND($V93<=AC$1,$W93>=AC$1),INDEX(Reliability!H$23:H$50,MATCH($T93,Reliability!$C$23:$C$50,0)),0),0)*$H93*$X93*$Y93),$D93)*$R93","v":0},{"$f":"MIN((IFERROR(IF(AND($V93<=AD$1,$W93>=AD$1),INDEX(Reliability!I$23:I$50,MATCH($S93,Reliability!$C$23:$C$50,0)),0),0)*IF($T93=\"n/a\",$D93*$Y93,$G93)+IFERROR(IF(AND($V93<=AD$1,$W93>=AD$1),INDEX(Reliability!I$23:I$50,MATCH($T93,Reliability!$C$23:$C$50,0)),0),0)*$H93*$X93*$Y93),$D93)*$R93","v":0},{"$f":"MIN((IFERROR(IF(AND($V93<=AE$1,$W93>=AE$1),INDEX(Reliability!J$23:J$50,MATCH($S93,Reliability!$C$23:$C$50,0)),0),0)*IF($T93=\"n/a\",$D93*$Y93,$G93)+IFERROR(IF(AND($V93<=AE$1,$W93>=AE$1),INDEX(Reliability!J$23:J$50,MATCH($T93,Reliability!$C$23:$C$50,0)),0),0)*$H93*$X93*$Y93),$D93)*$R93","v":0},{"$f":"MIN((IFERROR(IF(AND($V93<=AF$1,$W93>=AF$1),INDEX(Reliability!K$23:K$50,MATCH($S93,Reliability!$C$23:$C$50,0)),0),0)*IF($T93=\"n/a\",$D93*$Y93,$G93)+IFERROR(IF(AND($V93<=AF$1,$W93>=AF$1),INDEX(Reliability!K$23:K$50,MATCH($T93,Reliability!$C$23:$C$50,0)),0),0)*$H93*$X93*$Y93),$D93)*$R93","v":0},{"$f":"MIN((IFERROR(IF(AND($V93<=AG$1,$W93>=AG$1),INDEX(Reliability!L$23:L$50,MATCH($S93,Reliability!$C$23:$C$50,0)),0),0)*IF($T93=\"n/a\",$D93*$Y93,$G93)+IFERROR(IF(AND($V93<=AG$1,$W93>=AG$1),INDEX(Reliability!L$23:L$50,MATCH($T93,Reliability!$C$23:$C$50,0)),0),0)*$H93*$X93*$Y93),$D93)*$R93","v":0},{"$f":"MIN((IFERROR(IF(AND($V93<=AH$1,$W93>=AH$1),INDEX(Reliability!M$23:M$50,MATCH($S93,Reliability!$C$23:$C$50,0)),0),0)*IF($T93=\"n/a\",$D93*$Y93,$G93)+IFERROR(IF(AND($V93<=AH$1,$W93>=AH$1),INDEX(Reliability!M$23:M$50,MATCH($T93,Reliability!$C$23:$C$50,0)),0),0)*$H93*$X93*$Y93),$D93)*$R93","v":0},{"$f":"MIN((IFERROR(IF(AND($V93<=AI$1,$W93>=AI$1),INDEX(Reliability!N$23:N$50,MATCH($S93,Reliability!$C$23:$C$50,0)),0),0)*IF($T93=\"n/a\",$D93*$Y93,$G93)+IFERROR(IF(AND($V93<=AI$1,$W93>=AI$1),INDEX(Reliability!N$23:N$50,MATCH($T93,Reliability!$C$23:$C$50,0)),0),0)*$H93*$X93*$Y93),$D93)*$R93","v":0},{"$f":"MIN((IFERROR(IF(AND($V93<=AJ$1,$W93>=AJ$1),INDEX(Reliability!O$23:O$50,MATCH($S93,Reliability!$C$23:$C$50,0)),0),0)*IF($T93=\"n/a\",$D93*$Y93,$G93)+IFERROR(IF(AND($V93<=AJ$1,$W93>=AJ$1),INDEX(Reliability!O$23:O$50,MATCH($T93,Reliability!$C$23:$C$50,0)),0),0)*$H93*$X93*$Y93),$D93)*$R93","v":0},{"$f":"MIN((IFERROR(IF(AND($V93<=AK$1,$W93>=AK$1),INDEX(Reliability!P$23:P$50,MATCH($S93,Reliability!$C$23:$C$50,0)),0),0)*IF($T93=\"n/a\",$D93*$Y93,$G93)+IFERROR(IF(AND($V93<=AK$1,$W93>=AK$1),INDEX(Reliability!P$23:P$50,MATCH($T93,Reliability!$C$23:$C$50,0)),0),0)*$H93*$X93*$Y93),$D93)*$R93","v":0}]
[null,{"$f":"unique_contracts!B95","v":0},{"$f":"unique_contracts!D95","v":0},{"$f":"unique_contracts!J95","v":0},{"$f":"unique_contracts!M95","v":0},{"$f":"unique_contracts!N95","v":0},{"$f":"unique_contracts!P95","v":0},{"$f":"unique_contracts!R95","v":0},{"$f":"unique_contracts!V95","v":0},{"$f":"unique_contracts!AB95","v":0},{"$f":"unique_contracts!AM95","v":0},{"$f":"unique_contracts!AN95","v":0},{"$f":"unique_contracts!AO95","v":0},{"$f":"unique_contracts!AP95","v":0},{"$f":"unique_contracts!AQ95","v":0},{"$f":"unique_contracts!AR95","v":0},{"$f":"unique_contracts!BP95","v":0},0,{"$f":"IFERROR(IF(AND(I94>0,E94=\"NotHybrid\"),_xlfn.CONCAT(MAX(MIN(ROUNDDOWN(I94/D94,0),8),4),INDEX(resources!$G:$G,MATCH(B94,resources!$A:$A,0))),INDEX(resources!$G:$G,MATCH(B94,resources!$A:$A,0))),\"n/a\")","v":"n/a"},"n/a","n/a",0,0,1,1,{"$f":"MIN((IFERROR(IF(AND($V94<=Z$1,$W94>=Z$1),INDEX(Reliability!E$23:E$50,MATCH($S94,Reliability!$C$23:$C$50,0)),0),0)*IF($T94=\"n/a\",$D94*$Y94,$G94)+IFERROR(IF(AND($V94<=Z$1,$W94>=Z$1),INDEX(Reliability!E$23:E$50,MATCH($T94,Reliability!$C$23:$C$50,0)),0),0)*$H94*$X94*$Y94),$D94)*$R94","v":0},{"$f":"MIN((IFERROR(IF(AND($V94<=AA$1,$W94>=AA$1),INDEX(Reliability!F$23:F$50,MATCH($S94,Reliability!$C$23:$C$50,0)),0),0)*IF($T94=\"n/a\",$D94*$Y94,$G94)+IFERROR(IF(AND($V94<=AA$1,$W94>=AA$1),INDEX(Reliability!F$23:F$50,MATCH($T94,Reliability!$C$23:$C$50,0)),0),0)*$H94*$X94*$Y94),$D94)*$R94","v":0},{"$f":"MIN((IFERROR(IF(AND($V94<=AB$1,$W94>=AB$1),INDEX(Reliability!G$23:G$50,MATCH($S94,Reliability!$C$23:$C$50,0)),0),0)*IF($T94=\"n/a\",$D94*$Y94,$G94)+IFERROR(IF(AND($V94<=AB$1,$W94>=AB$1),INDEX(Reliability!G$23:G$50,MATCH($T94,Reliability!$C$23:$C$50,0)),0),0)*$H94*$X94*$Y94),$D94)*$R94","v":0},{"$f":"MIN((IFERROR(IF(AND($V94<=AC$1,$W94>=AC$1),INDEX(Reliability!H$23:H$50,MATCH($S94,Reliability!$C$23:$C$50,0)),0),0)*IF($T94=\"n/a\",$D94*$Y94,$G94)+IFERROR(IF(AND($V94<=AC$1,$W94>=AC$1),INDEX(Reliability!H$23:H$50,MATCH($T94,Reliability!$C$23:$C$50,0)),0),0)*$H94*$X94*$Y94),$D94)*$R94","v":0},{"$f":"MIN((IFERROR(IF(AND($V94<=AD$1,$W94>=AD$1),INDEX(Reliability!I$23:I$50,MATCH($S94,Reliability!$C$23:$C$50,0)),0),0)*IF($T94=\"n/a\",$D94*$Y94,$G94)+IFERROR(IF(AND($V94<=AD$1,$W94>=AD$1),INDEX(Reliability!I$23:I$50,MATCH($T94,Reliability!$C$23:$C$50,0)),0),0)*$H94*$X94*$Y94),$D94)*$R94","v":0},{"$f":"MIN((IFERROR(IF(AND($V94<=AE$1,$W94>=AE$1),INDEX(Reliability!J$23:J$50,MATCH($S94,Reliability!$C$23:$C$50,0)),0),0)*IF($T94=\"n/a\",$D94*$Y94,$G94)+IFERROR(IF(AND($V94<=AE$1,$W94>=AE$1),INDEX(Reliability!J$23:J$50,MATCH($T94,Reliability!$C$23:$C$50,0)),0),0)*$H94*$X94*$Y94),$D94)*$R94","v":0},{"$f":"MIN((IFERROR(IF(AND($V94<=AF$1,$W94>=AF$1),INDEX(Reliability!K$23:K$50,MATCH($S94,Reliability!$C$23:$C$50,0)),0),0)*IF($T94=\"n/a\",$D94*$Y94,$G94)+IFERROR(IF(AND($V94<=AF$1,$W94>=AF$1),INDEX(Reliability!K$23:K$50,MATCH($T94,Reliability!$C$23:$C$50,0)),0),0)*$H94*$X94*$Y94),$D94)*$R94","v":0},{"$f":"MIN((IFERROR(IF(AND($V94<=AG$1,$W94>=AG$1),INDEX(Reliability!L$23:L$50,MATCH($S94,Reliability!$C$23:$C$50,0)),0),0)*IF($T94=\"n/a\",$D94*$Y94,$G94)+IFERROR(IF(AND($V94<=AG$1,$W94>=AG$1),INDEX(Reliability!L$23:L$50,MATCH($T94,Reliability!$C$23:$C$50,0)),0),0)*$H94*$X94*$Y94),$D94)*$R94","v":0},{"$f":"MIN((IFERROR(IF(AND($V94<=AH$1,$W94>=AH$1),INDEX(Reliability!M$23:M$50,MATCH($S94,Reliability!$C$23:$C$50,0)),0),0)*IF($T94=\"n/a\",$D94*$Y94,$G94)+IFERROR(IF(AND($V94<=AH$1,$W94>=AH$1),INDEX(Reliability!M$23:M$50,MATCH($T94,Reliability!$C$23:$C$50,0)),0),0)*$H94*$X94*$Y94),$D94)*$R94","v":0},{"$f":"MIN((IFERROR(IF(AND($V94<=AI$1,$W94>=AI$1),INDEX(Reliability!N$23:N$50,MATCH($S94,Reliability!$C$23:$C$50,0)),0),0)*IF($T94=\"n/a\",$D94*$Y94,$G94)+IFERROR(IF(AND($V94<=AI$1,$W94>=AI$1),INDEX(Reliability!N$23:N$50,MATCH($T94,Reliability!$C$23:$C$50,0)),0),0)*$H94*$X94*$Y94),$D94)*$R94","v":0},{"$f":"MIN((IFERROR(IF(AND($V94<=AJ$1,$W94>=AJ$1),INDEX(Reliability!O$23:O$50,MATCH($S94,Reliability!$C$23:$C$50,0)),0),0)*IF($T94=\"n/a\",$D94*$Y94,$G94)+IFERROR(IF(AND($V94<=AJ$1,$W94>=AJ$1),INDEX(Reliability!O$23:O$50,MATCH($T94,Reliability!$C$23:$C$50,0)),0),0)*$H94*$X94*$Y94),$D94)*$R94","v":0},{"$f":"MIN((IFERROR(IF(AND($V94<=AK$1,$W94>=AK$1),INDEX(Reliability!P$23:P$50,MATCH($S94,Reliability!$C$23:$C$50,0)),0),0)*IF($T94=\"n/a\",$D94*$Y94,$G94)+IFERROR(IF(AND($V94<=AK$1,$W94>=AK$1),INDEX(Reliability!P$23:P$50,MATCH($T94,Reliability!$C$23:$C$50,0)),0),0)*$H94*$X94*$Y94),$D94)*$R94","v":0}]
[null,{"$f":"unique_contracts!B96","v":0},{"$f":"unique_contracts!D96","v":0},{"$f":"unique_contracts!J96","v":0},{"$f":"unique_contracts!M96","v":0},{"$f":"unique_contracts!N96","v":0},{"$f":"unique_contracts!P96","v":0},{"$f":"unique_contracts!R96","v":0},{"$f":"unique_contracts!V96","v":0},{"$f":"unique_contracts!AB96","v":0},{"$f":"unique_contracts!AM96","v":0},{"$f":"unique_contracts!AN96","v":0},{"$f":"unique_contracts!AO96","v":0},{"$f":"unique_contracts!AP96","v":0},{"$f":"unique_contracts!AQ96","v":0},{"$f":"unique_contracts!AR96","v":0},{"$f":"unique_contracts!BP96","v":0},0,{"$f":"IFERROR(IF(AND(I95>0,E95=\"NotHybrid\"),_xlfn.CONCAT(MAX(MIN(ROUNDDOWN(I95/D95,0),8),4),INDEX(resources!$G:$G,MATCH(B95,resources!$A:$A,0))),INDEX(resources!$G:$G,MATCH(B95,resources!$A:$A,0))),\"n/a\")","v":"n/a"},"n/a","n/a",0,0,1,1,{"$f":"MIN((IFERROR(IF(AND($V95<=Z$1,$W95>=Z$1),INDEX(Reliability!E$23:E$50,MATCH($S95,Reliability!$C$23:$C$50,0)),0),0)*IF($T95=\"n/a\",$D95*$Y95,$G95)+IFERROR(IF(AND($V95<=Z$1,$W95>=Z$1),INDEX(Reliability!E$23:E$50,MATCH($T95,Reliability!$C$23:$C$50,0)),0),0)*$H95*$X95*$Y95),$D95)*$R95","v":0},{"$f":"MIN((IFERROR(IF(AND($V95<=AA$1,$W95>=AA$1),INDEX(Reliability!F$23:F$50,MATCH($S95,Reliability!$C$23:$C$50,0)),0),0)*IF($T95=\"n/a\",$D95*$Y95,$G95)+IFERROR(IF(AND($V95<=AA$1,$W95>=AA$1),INDEX(Reliability!F$23:F$50,MATCH($T95,Reliability!$C$23:$C$50,0)),0),0)*$H95*$X95*$Y95),$D95)*$R95","v":0},{"$f":"MIN((IFERROR(IF(AND($V95<=AB$1,$W95>=AB$1),INDEX(Reliability!G$23:G$50,MATCH($S95,Reliability!$C$23:$C$50,0)),0),0)*IF($T95=\"n/a\",$D95*$Y95,$G95)+IFERROR(IF(AND($V95<=AB$1,$W95>=AB$1),INDEX(Reliability!G$23:G$50,MATCH($T95,Reliability!$C$23:$C$50,0)),0),0)*$H95*$X95*$Y95),$D95)*$R95","v":0},{"$f":"MIN((IFERROR(IF(AND($V95<=AC$1,$W95>=AC$1),INDEX(Reliability!H$23:H$50,MATCH($S95,Reliability!$C$23:$C$50,0)),0),0)*IF($T95=\"n/a\",$D95*$Y95,$G95)+IFERROR(IF(AND($V95<=AC$1,$W95>=AC$1),INDEX(Reliability!H$23:H$50,MATCH($T95,Reliability!$C$23:$C$50,0)),0),0)*$H95*$X95*$Y95),$D95)*$R95","v":0},{"$f":"MIN((IFERROR(IF(AND($V95<=AD$1,$W95>=AD$1),INDEX(Reliability!I$23:I$50,MATCH($S95,Reliability!$C$23:$C$50,0)),0),0)*IF($T95=\"n/a\",$D95*$Y95,$G95)+IFERROR(IF(AND($V95<=AD$1,$W95>=AD$1),INDEX(Reliability!I$23:I$50,MATCH($T95,Reliability!$C$23:$C$50,0)),0),0)*$H95*$X95*$Y95),$D95)*$R95","v":0},{"$f":"MIN((IFERROR(IF(AND($V95<=AE$1,$W95>=AE$1),INDEX(Reliability!J$23:J$50,MATCH($S95,Reliability!$C$23:$C$50,0)),0),0)*IF($T95=\"n/a\",$D95*$Y95,$G95)+IFERROR(IF(AND($V95<=AE$1,$W95>=AE$1),INDEX(Reliability!J$23:J$50,MATCH($T95,Reliability!$C$23:$C$50,0)),0),0)*$H95*$X95*$Y95),$D95)*$R95","v":0},{"$f":"MIN((IFERROR(IF(AND($V95<=AF$1,$W95>=AF$1),INDEX(Reliability!K$23:K$50,MATCH($S95,Reliability!$C$23:$C$50,0)),0),0)*IF($T95=\"n/a\",$D95*$Y95,$G95)+IFERROR(IF(AND($V95<=AF$1,$W95>=AF$1),INDEX(Reliability!K$23:K$50,MATCH($T95,Reliability!$C$23:$C$50,0)),0),0)*$H95*$X95*$Y95),$D95)*$R95","v":0},{"$f":"MIN((IFERROR(IF(AND($V95<=AG$1,$W95>=AG$1),INDEX(Reliability!L$23:L$50,MATCH($S95,Reliability!$C$23:$C$50,0)),0),0)*IF($T95=\"n/a\",$D95*$Y95,$G95)+IFERROR(IF(AND($V95<=AG$1,$W95>=AG$1),INDEX(Reliability!L$23:L$50,MATCH($T95,Reliability!$C$23:$C$50,0)),0),0)*$H95*$X95*$Y95),$D95)*$R95","v":0},{"$f":"MIN((IFERROR(IF(AND($V95<=AH$1,$W95>=AH$1),INDEX(Reliability!M$23:M$50,MATCH($S95,Reliability!$C$23:$C$50,0)),0),0)*IF($T95=\"n/a\",$D95*$Y95,$G95)+IFERROR(IF(AND($V95<=AH$1,$W95>=AH$1),INDEX(Reliability!M$23:M$50,MATCH($T95,Reliability!$C$23:$C$50,0)),0),0)*$H95*$X95*$Y95),$D95)*$R95","v":0},{"$f":"MIN((IFERROR(IF(AND($V95<=AI$1,$W95>=AI$1),INDEX(Reliability!N$23:N$50,MATCH($S95,Reliability!$C$23:$C$50,0)),0),0)*IF($T95=\"n/a\",$D95*$Y95,$G95)+IFERROR(IF(AND($V95<=AI$1,$W95>=AI$1),INDEX(Reliability!N$23:N$50,MATCH($T95,Reliability!$C$23:$C$50,0)),0),0)*$H95*$X95*$Y95),$D95)*$R95","v":0},{"$f":"MIN((IFERROR(IF(AND($V95<=AJ$1,$W95>=AJ$1),INDEX(Reliability!O$23:O$50,MATCH($S95,Reliability!$C$23:$C$50,0)),0),0)*IF($T95=\"n/a\",$D95*$Y95,$G95)+IFERROR(IF(AND($V95<=AJ$1,$W95>=AJ$1),INDEX(Reliability!O$23:O$50,MATCH($T95,Reliability!$C$23:$C$50,0)),0),0)*$H95*$X95*$Y95),$D95)*$R95","v":0},{"$f":"MIN((IFERROR(IF(AND($V95<=AK$1,$W95>=AK$1),INDEX(Reliability!P$23:P$50,MATCH($S95,Reliability!$C$23:$C$50,0)),0),0)*IF($T95=\"n/a\",$D95*$Y95,$G95)+IFERROR(IF(AND($V95<=AK$1,$W95>=AK$1),INDEX(Reliability!P$23:P$50,MATCH($T95,Reliability!$C$23:$C$50,0)),0),0)*$H95*$X95*$Y95),$D95)*$R95","v":0}]
[null,{"$f":"unique_contracts!B97","v":0},{"$f":"unique_contracts!D97","v":0},{"$f":"unique_contracts!J97","v":0},{"$f":"unique_contracts!M97","v":0},{"$f":"unique_contracts!N97","v":0},{"$f":"unique_contracts!P97","v":0},{"$f":"unique_contracts!R97","v":0},{"$f":"unique_contracts!V97","v":0},{"$f":"unique_contracts!AB97","v":0},{"$f":"unique_contracts!AM97","v":0},{"$f":"unique_contracts!AN97","v":0},{"$f":"unique_contracts!AO97","v":0},{"$f":"unique_contracts!AP97","v":0},{"$f":"unique_contracts!AQ97","v":0},{"$f":"unique_contracts!AR97","v":0},{"$f":"unique_contracts!BP97","v":0},0,{"$f":"IFERROR(IF(AND(I96>0,E96=\"NotHybrid\"),_xlfn.CONCAT(MAX(MIN(ROUNDDOWN(I96/D96,0),8),4),INDEX(resources!$G:$G,MATCH(B96,resources!$A:$A,0))),INDEX(resources!$G:$G,MATCH(B96,resources!$A:$A,0))),\"n/a\")","v":"n/a"},"n/a","n/a",0,0,1,1,{"$f":"MIN((IFERROR(IF(AND($V96<=Z$1,$W96>=Z$1),INDEX(Reliability!E$23:E$50,MATCH($S96,Reliability!$C$23:$C$50,0)),0),0)*IF($T96=\"n/a\",$D96*$Y96,$G96)+IFERROR(IF(AND($V96<=Z$1,$W96>=Z$1),INDEX(Reliability!E$23:E$50,MATCH($T96,Reliability!$C$23:$C$50,0)),0),0)*$H96*$X96*$Y96),$D96)*$R96","v":0},{"$f":"MIN((IFERROR(IF(AND($V96<=AA$1,$W96>=AA$1),INDEX(Reliability!F$23:F$50,MATCH($S96,Reliability!$C$23:$C$50,0)),0),0)*IF($T96=\"n/a\",$D96*$Y96,$G96)+IFERROR(IF(AND($V96<=AA$1,$W96>=AA$1),INDEX(Reliability!F$23:F$50,MATCH($T96,Reliability!$C$23:$C$50,0)),0),0)*$H96*$X96*$Y96),$D96)*$R96","v":0},{"$f":"MIN((IFERROR(IF(AND($V96<=AB$1,$W96>=AB$1),INDEX(Reliability!G$23:G$50,MATCH($S96,Reliability!$C$23:$C$50,0)),0),0)*IF($T96=\"n/a\",$D96*$Y96,$G96)+IFERROR(IF(AND($V96<=AB$1,$W96>=AB$1),INDEX(Reliability!G$23:G$50,MATCH($T96,Reliability!$C$23:$C$50,0)),0),0)*$H96*$X96*$Y96),$D96)*$R96","v":0},{"$f":"MIN((IFERROR(IF(AND($V96<=AC$1,$W96>=AC$1),INDEX(Reliability!H$23:H$50,MATCH($S96,Reliability!$C$23:$C$50,0)),0),0)*IF($T96=\"n/a\",$D96*$Y96,$G96)+IFERROR(IF(AND($V96<=AC$1,$W96>=AC$1),INDEX(Reliability!H$23:H$50,MATCH($T96,Reliability!$C$23:$C$50,0)),0),0)*$H96*$X96*$Y96),$D96)*$R96","v":0},{"$f":"MIN((IFERROR(IF(AND($V96<=AD$1,$W96>=AD$1),INDEX(Reliability!I$23:I$50,MATCH($S96,Reliability!$C$23:$C$50,0)),0),0)*IF($T96=\"n/a\",$D96*$Y96,$G96)+IFERROR(IF(AND($V96<=AD$1,$W96>=AD$1),INDEX(Reliability!I$23:I$50,MATCH($T96,Reliability!$C$23:$C$50,0)),0),0)*$H96*$X96*$Y96),$D96)*$R96","v":0},{"$f":"MIN((IFERROR(IF(AND($V96<=AE$1,$W96>=AE$1),INDEX(Reliability!J$23:J$50,MATCH($S96,Reliability!$C$23:$C$50,0)),0),0)*IF($T96=\"n/a\",$D96*$Y96,$G96)+IFERROR(IF(AND($V96<=AE$1,$W96>=AE$1),INDEX(Reliability!J$23:J$50,MATCH($T96,Reliability!$C$23:$C$50,0)),0),0)*$H96*$X96*$Y96),$D96)*$R96","v":0},{"$f":"MIN((IFERROR(IF(AND($V96<=AF$1,$W96>=AF$1),INDEX(Reliability!K$23:K$50,MATCH($S96,Reliability!$C$23:$C$50,0)),0),0)*IF($T96=\"n/a\",$D96*$Y96,$G96)+IFERROR(IF(AND($V96<=AF$1,$W96>=AF$1),INDEX(Reliability!K$23:K$50,MATCH($T96,Reliability!$C$23:$C$50,0)),0),0)*$H96*$X96*$Y96),$D96)*$R96","v":0},{"$f":"MIN((IFERROR(IF(AND($V96<=AG$1,$W96>=AG$1),INDEX(Reliability!L$23:L$50,MATCH($S96,Reliability!$C$23:$C$50,0)),0),0)*IF($T96=\"n/a\",$D96*$Y96,$G96)+IFERROR(IF(AND($V96<=AG$1,$W96>=AG$1),INDEX(Reliability!L$23:L$50,MATCH($T96,Reliability!$C$23:$C$50,0)),0),0)*$H96*$X96*$Y96),$D96)*$R96","v":0},{"$f":"MIN((IFERROR(IF(AND($V96<=AH$1,$W96>=AH$1),INDEX(Reliability!M$23:M$50,MATCH($S96,Reliability!$C$23:$C$50,0)),0),0)*IF($T96=\"n/a\",$D96*$Y96,$G96)+IFERROR(IF(AND($V96<=AH$1,$W96>=AH$1),INDEX(Reliability!M$23:M$50,MATCH($T96,Reliability!$C$23:$C$50,0)),0),0)*$H96*$X96*$Y96),$D96)*$R96","v":0},{"$f":"MIN((IFERROR(IF(AND($V96<=AI$1,$W96>=AI$1),INDEX(Reliability!N$23:N$50,MATCH($S96,Reliability!$C$23:$C$50,0)),0),0)*IF($T96=\"n/a\",$D96*$Y96,$G96)+IFERROR(IF(AND($V96<=AI$1,$W96>=AI$1),INDEX(Reliability!N$23:N$50,MATCH($T96,Reliability!$C$23:$C$50,0)),0),0)*$H96*$X96*$Y96),$D96)*$R96","v":0},{"$f":"MIN((IFERROR(IF(AND($V96<=AJ$1,$W96>=AJ$1),INDEX(Reliability!O$23:O$50,MATCH($S96,Reliability!$C$23:$C$50,0)),0),0)*IF($T96=\"n/a\",$D96*$Y96,$G96)+IFERROR(IF(AND($V96<=AJ$1,$W96>=AJ$1),INDEX(Reliability!O$23:O$50,MATCH($T96,Reliability!$C$23:$C$50,0)),0),0)*$H96*$X96*$Y96),$D96)*$R96","v":0},{"$f":"MIN((IFERROR(IF(AND($V96<=AK$1,$W96>=AK$1),INDEX(Reliability!P$23:P$50,MATCH($S96,Reliability!$C$23:$C$50,0)),0),0)*IF($T96=\"n/a\",$D96*$Y96,$G96)+IFERROR(IF(AND($V96<=AK$1,$W96>=AK$1),INDEX(Reliability!P$23:P$50,MATCH($T96,Reliability!$C$23:$C$50,0)),0),0)*$H96*$X96*$Y96),$D96)*$R96","v":0}]
[null,{"$f":"unique_contracts!B98","v":0},{"$f":"unique_contracts!D98","v":0},{"$f":"unique_contracts!J98","v":0},{"$f":"unique_contracts!M98","v":0},{"$f":"unique_contracts!N98","v":0},{"$f":"unique_contracts!P98","v":0},{"$f":"unique_contracts!R98","v":0},{"$f":"unique_contracts!V98","v":0},{"$f":"unique_contracts!AB98","v":0},{"$f":"unique_contracts!AM98","v":0},{"$f":"unique_contracts!AN98","v":0},{"$f":"unique_contracts!AO98","v":0},{"$f":"unique_contracts!AP98","v":0},{"$f":"unique_contracts!AQ98","v":0},{"$f":"unique_contracts!AR98","v":0},{"$f":"unique_contracts!BP98","v":0},0,{"$f":"IFERROR(IF(AND(I97>0,E97=\"NotHybrid\"),_xlfn.CONCAT(MAX(MIN(ROUNDDOWN(I97/D97,0),8),4),INDEX(resources!$G:$G,MATCH(B97,resources!$A:$A,0))),INDEX(resources!$G:$G,MATCH(B97,resources!$A:$A,0))),\"n/a\")","v":"n/a"},"n/a","n/a",0,0,1,1,{"$f":"MIN((IFERROR(IF(AND($V97<=Z$1,$W97>=Z$1),INDEX(Reliability!E$23:E$50,MATCH($S97,Reliability!$C$23:$C$50,0)),0),0)*IF($T97=\"n/a\",$D97*$Y97,$G97)+IFERROR(IF(AND($V97<=Z$1,$W97>=Z$1),INDEX(Reliability!E$23:E$50,MATCH($T97,Reliability!$C$23:$C$50,0)),0),0)*$H97*$X97*$Y97),$D97)*$R97","v":0},{"$f":"MIN((IFERROR(IF(AND($V97<=AA$1,$W97>=AA$1),INDEX(Reliability!F$23:F$50,MATCH($S97,Reliability!$C$23:$C$50,0)),0),0)*IF($T97=\"n/a\",$D97*$Y97,$G97)+IFERROR(IF(AND($V97<=AA$1,$W97>=AA$1),INDEX(Reliability!F$23:F$50,MATCH($T97,Reliability!$C$23:$C$50,0)),0),0)*$H97*$X97*$Y97),$D97)*$R97","v":0},{"$f":"MIN((IFERROR(IF(AND($V97<=AB$1,$W97>=AB$1),INDEX(Reliability!G$23:G$50,MATCH($S97,Reliability!$C$23:$C$50,0)),0),0)*IF($T97=\"n/a\",$D97*$Y97,$G97)+IFERROR(IF(AND($V97<=AB$1,$W97>=AB$1),INDEX(Reliability!G$23:G$50,MATCH($T97,Reliability!$C$23:$C$50,0)),0),0)*$H97*$X97*$Y97),$D97)*$R97","v":0},{"$f":"MIN((IFERROR(IF(AND($V97<=AC$1,$W97>=AC$1),INDEX(Reliability!H$23:H$50,MATCH($S97,Reliability!$C$23:$C$50,0)),0),0)*IF($T97=\"n/a\",$D97*$Y97,$G97)+IFERROR(IF(AND($V97<=AC$1,$W97>=AC$1),INDEX(Reliability!H$23:H$50,MATCH($T97,Reliability!$C$23:$C$50,0)),0),0)*$H97*$X97*$Y97),$D97)*$R97","v":0},{"$f":"MIN((IFERROR(IF(AND($V97<=AD$1,$W97>=AD$1),INDEX(Reliability!I$23:I$50,MATCH($S97,Reliability!$C$23:$C$50,0)),0),0)*IF($T97=\"n/a\",$D97*$Y97,$G97)+IFERROR(IF(AND($V97<=AD$1,$W97>=AD$1),INDEX(Reliability!I$23:I$50,MATCH($T97,Reliability!$C$23:$C$50,0)),0),0)*$H97*$X97*$Y97),$D97)*$R97","v":0},{"$f":"MIN((IFERROR(IF(AND($V97<=AE$1,$W97>=AE$1),INDEX(Reliability!J$23:J$50,MATCH($S97,Reliability!$C$23:$C$50,0)),0),0)*IF($T97=\"n/a\",$D97*$Y97,$G97)+IFERROR(IF(AND($V97<=AE$1,$W97>=AE$1),INDEX(Reliability!J$23:J$50,MATCH($T97,Reliability!$C$23:$C$50,0)),0),0)*$H97*$X97*$Y97),$D97)*$R97","v":0},{"$f":"MIN((IFERROR(IF(AND($V97<=AF$1,$W97>=AF$1),INDEX(Reliability!K$23:K$50,MATCH($S97,Reliability!$C$23:$C$50,0)),0),0)*IF($T97=\"n/a\",$D97*$Y97,$G97)+IFERROR(IF(AND($V97<=AF$1,$W97>=AF$1),INDEX(Reliability!K$23:K$50,MATCH($T97,Reliability!$C$23:$C$50,0)),0),0)*$H97*$X97*$Y97),$D97)*$R97","v":0},{"$f":"MIN((IFERROR(IF(AND($V97<=AG$1,$W97>=AG$1),INDEX(Reliability!L$23:L$50,MATCH($S97,Reliability!$C$23:$C$50,0)),0),0)*IF($T97=\"n/a\",$D97*$Y97,$G97)+IFERROR(IF(AND($V97<=AG$1,$W97>=AG$1),INDEX(Reliability!L$23:L$50,MATCH($T97,Reliability!$C$23:$C$50,0)),0),0)*$H97*$X97*$Y97),$D97)*$R97","v":0},{"$f":"MIN((IFERROR(IF(AND($V97<=AH$1,$W97>=AH$1),INDEX(Reliability!M$23:M$50,MATCH($S97,Reliability!$C$23:$C$50,0)),0),0)*IF($T97=\"n/a\",$D97*$Y97,$G97)+IFERROR(IF(AND($V97<=AH$1,$W97>=AH$1),INDEX(Reliability!M$23:M$50,MATCH($T97,Reliability!$C$23:$C$50,0)),0),0)*$H97*$X97*$Y97),$D97)*$R97","v":0},{"$f":"MIN((IFERROR(IF(AND($V97<=AI$1,$W97>=AI$1),INDEX(Reliability!N$23:N$50,MATCH($S97,Reliability!$C$23:$C$50,0)),0),0)*IF($T97=\"n/a\",$D97*$Y97,$G97)+IFERROR(IF(AND($V97<=AI$1,$W97>=AI$1),INDEX(Reliability!N$23:N$50,MATCH($T97,Reliability!$C$23:$C$50,0)),0),0)*$H97*$X97*$Y97),$D97)*$R97","v":0},{"$f":"MIN((IFERROR(IF(AND($V97<=AJ$1,$W97>=AJ$1),INDEX(Reliability!O$23:O$50,MATCH($S97,Reliability!$C$23:$C$50,0)),0),0)*IF($T97=\"n/a\",$D97*$Y97,$G97)+IFERROR(IF(AND($V97<=AJ$1,$W97>=AJ$1),INDEX(Reliability!O$23:O$50,MATCH($T97,Reliability!$C$23:$C$50,0)),0),0)*$H97*$X97*$Y97),$D97)*$R97","v":0},{"$f":"MIN((IFERROR(IF(AND($V97<=AK$1,$W97>=AK$1),INDEX(Reliability!P$23:P$50,MATCH($S97,Reliability!$C$23:$C$50,0)),0),0)*IF($T97=\"n/a\",$D97*$Y97,$G97)+IFERROR(IF(AND($V97<=AK$1,$W97>=AK$1),INDEX(Reliability!P$23:P$50,MATCH($T97,Reliability!$C$23:$C$50,0)),0),0)*$H97*$X97*$Y97),$D97)*$R97","v":0}]
[null,{"$f":"unique_contracts!B99","v":0},{"$f":"unique_contracts!D99","v":0},{"$f":"unique_contracts!J99","v":0},{"$f":"unique_contracts!M99","v":0},{"$f":"unique_contracts!N99","v":0},{"$f":"unique_contracts!P99","v":0},{"$f":"unique_contracts!R99","v":0},{"$f":"unique_contracts!V99","v":0},{"$f":"unique_contracts!AB99","v":0},{"$f":"unique_contracts!AM99","v":0},{"$f":"unique_contracts!AN99","v":0},{"$f":"unique_contracts!AO99","v":0},{"$f":"unique_contracts!AP99","v":0},{"$f":"unique_contracts!AQ99","v":0},{"$f":"unique_contracts!AR99","v":0},{"$f":"unique_contracts!BP99","v":0},0,{"$f":"IFERROR(IF(AND(I98>0,E98=\"NotHybrid\"),_xlfn.CONCAT(MAX(MIN(ROUNDDOWN(I98/D98,0),8),4),INDEX(resources!$G:$G,MATCH(B98,resources!$A:$A,0))),INDEX(resources!$G:$G,MATCH(B98,resources!$A:$A,0))),\"n/a\")","v":"n/a"},"n/a","n/a",0,0,1,1,{"$f":"MIN((IFERROR(IF(AND($V98<=Z$1,$W98>=Z$1),INDEX(Reliability!E$23:E$50,MATCH($S98,Reliability!$C$23:$C$50,0)),0),0)*IF($T98=\"n/a\",$D98*$Y98,$G98)+IFERROR(IF(AND($V98<=Z$1,$W98>=Z$1),INDEX(Reliability!E$23:E$50,MATCH($T98,Reliability!$C$23:$C$50,0)),0),0)*$H98*$X98*$Y98),$D98)*$R98","v":0},{"$f":"MIN((IFERROR(IF(AND($V98<=AA$1,$W98>=AA$1),INDEX(Reliability!F$23:F$50,MATCH($S98,Reliability!$C$23:$C$50,0)),0),0)*IF($T98=\"n/a\",$D98*$Y98,$G98)+IFERROR(IF(AND($V98<=AA$1,$W98>=AA$1),INDEX(Reliability!F$23:F$50,MATCH($T98,Reliability!$C$23:$C$50,0)),0),0)*$H98*$X98*$Y98),$D98)*$R98","v":0},{"$f":"MIN((IFERROR(IF(AND($V98<=AB$1,$W98>=AB$1),INDEX(Reliability!G$23:G$50,MATCH($S98,Reliability!$C$23:$C$50,0)),0),0)*IF($T98=\"n/a\",$D98*$Y98,$G98)+IFERROR(IF(AND($V98<=AB$1,$W98>=AB$1),INDEX(Reliability!G$23:G$50,MATCH($T98,Reliability!$C$23:$C$50,0)),0),0)*$H98*$X98*$Y98),$D98)*$R98","v":0},{"$f":"MIN((IFERROR(IF(AND($V98<=AC$1,$W98>=AC$1),INDEX(Reliability!H$23:H$50,MATCH($S98,Reliability!$C$23:$C$50,0)),0),0)*IF($T98=\"n/a\",$D98*$Y98,$G98)+IFERROR(IF(AND($V98<=AC$1,$W98>=AC$1),INDEX(Reliability!H$23:H$50,MATCH($T98,Reliability!$C$23:$C$50,0)),0),0)*$H98*$X98*$Y98),$D98)*$R98","v":0},{"$f":"MIN((IFERROR(IF(AND($V98<=AD$1,$W98>=AD$1),INDEX(Reliability!I$23:I$50,MATCH($S98,Reliability!$C$23:$C$50,0)),0),0)*IF($T98=\"n/a\",$D98*$Y98,$G98)+IFERROR(IF(AND($V98<=AD$1,$W98>=AD$1),INDEX(Reliability!I$23:I$50,MATCH($T98,Reliability!$C$23:$C$50,0)),0),0)*$H98*$X98*$Y98),$D98)*$R98","v":0},{"$f":"MIN((IFERROR(IF(AND($V98<=AE$1,$W98>=AE$1),INDEX(Reliability!J$23:J$50,MATCH($S98,Reliability!$C$23:$C$50,0)),0),0)*IF($T98=\"n/a\",$D98*$Y98,$G98)+IFERROR(IF(AND($V98<=AE$1,$W98>=AE$1),INDEX(Reliability!J$23:J$50,MATCH($T98,Reliability!$C$23:$C$50,0)),0),0)*$H98*$X98*$Y98),$D98)*$R98","v":0},{"$f":"MIN((IFERROR(IF(AND($V98<=AF$1,$W98>=AF$1),INDEX(Reliability!K$23:K$50,MATCH($S98,Reliability!$C$23:$C$50,0)),0),0)*IF($T98=\"n/a\",$D98*$Y98,$G98)+IFERROR(IF(AND($V98<=AF$1,$W98>=AF$1),INDEX(Reliability!K$23:K$50,MATCH($T98,Reliability!$C$23:$C$50,0)),0),0)*$H98*$X98*$Y98),$D98)*$R98","v":0},{"$f":"MIN((IFERROR(IF(AND($V98<=AG$1,$W98>=AG$1),INDEX(Reliability!L$23:L$50,MATCH($S98,Reliability!$C$23:$C$50,0)),0),0)*IF($T98=\"n/a\",$D98*$Y98,$G98)+IFERROR(IF(AND($V98<=AG$1,$W98>=AG$1),INDEX(Reliability!L$23:L$50,MATCH($T98,Reliability!$C$23:$C$50,0)),0),0)*$H98*$X98*$Y98),$D98)*$R98","v":0},{"$f":"MIN((IFERROR(IF(AND($V98<=AH$1,$W98>=AH$1),INDEX(Reliability!M$23:M$50,MATCH($S98,Reliability!$C$23:$C$50,0)),0),0)*IF($T98=\"n/a\",$D98*$Y98,$G98)+IFERROR(IF(AND($V98<=AH$1,$W98>=AH$1),INDEX(Reliability!M$23:M$50,MATCH($T98,Reliability!$C$23:$C$50,0)),0),0)*$H98*$X98*$Y98),$D98)*$R98","v":0},{"$f":"MIN((IFERROR(IF(AND($V98<=AI$1,$W98>=AI$1),INDEX(Reliability!N$23:N$50,MATCH($S98,Reliability!$C$23:$C$50,0)),0),0)*IF($T98=\"n/a\",$D98*$Y98,$G98)+IFERROR(IF(AND($V98<=AI$1,$W98>=AI$1),INDEX(Reliability!N$23:N$50,MATCH($T98,Reliability!$C$23:$C$50,0)),0),0)*$H98*$X98*$Y98),$D98)*$R98","v":0},{"$f":"MIN((IFERROR(IF(AND($V98<=AJ$1,$W98>=AJ$1),INDEX(Reliability!O$23:O$50,MATCH($S98,Reliability!$C$23:$C$50,0)),0),0)*IF($T98=\"n/a\",$D98*$Y98,$G98)+IFERROR(IF(AND($V98<=AJ$1,$W98>=AJ$1),INDEX(Reliability!O$23:O$50,MATCH($T98,Reliability!$C$23:$C$50,0)),0),0)*$H98*$X98*$Y98),$D98)*$R98","v":0},{"$f":"MIN((IFERROR(IF(AND($V98<=AK$1,$W98>=AK$1),INDEX(Reliability!P$23:P$50,MATCH($S98,Reliability!$C$23:$C$50,0)),0),0)*IF($T98=\"n/a\",$D98*$Y98,$G98)+IFERROR(IF(AND($V98<=AK$1,$W98>=AK$1),INDEX(Reliability!P$23:P$50,MATCH($T98,Reliability!$C$23:$C$50,0)),0),0)*$H98*$X98*$Y98),$D98)*$R98","v":0}]
[null,{"$f":"unique_contracts!B100","v":0},{"$f":"unique_contracts!D100","v":0},{"$f":"unique_contracts!J100","v":0},{"$f":"unique_contracts!M100","v":0},{"$f":"unique_contracts!N100","v":0},{"$f":"unique_contracts!P100","v":0},{"$f":"unique_contracts!R100","v":0},{"$f":"unique_contracts!V100","v":0},{"$f":"unique_contracts!AB100","v":0},{"$f":"unique_contracts!AM100","v":0},{"$f":"unique_contracts!AN100","v":0},{"$f":"unique_contracts!AO100","v":0},{"$f":"unique_contracts!AP100","v":0},{"$f":"unique_contracts!AQ100","v":0},{"$f":"unique_contracts!AR100","v":0},{"$f":"unique_contracts!BP100","v":0},0,{"$f":"IFERROR(IF(AND(I99>0,E99=\"NotHybrid\"),_xlfn.CONCAT(MAX(MIN(ROUNDDOWN(I99/D99,0),8),4),INDEX(resources!$G:$G,MATCH(B99,resources!$A:$A,0))),INDEX(resources!$G:$G,MATCH(B99,resources!$A:$A,0))),\"n/a\")","v":"n/a"},"n/a","n/a",0,0,1,1,{"$f":"MIN((IFERROR(IF(AND($V99<=Z$1,$W99>=Z$1),INDEX(Reliability!E$23:E$50,MATCH($S99,Reliability!$C$23:$C$50,0)),0),0)*IF($T99=\"n/a\",$D99*$Y99,$G99)+IFERROR(IF(AND($V99<=Z$1,$W99>=Z$1),INDEX(Reliability!E$23:E$50,MATCH($T99,Reliability!$C$23:$C$50,0)),0),0)*$H99*$X99*$Y99),$D99)*$R99","v":0},{"$f":"MIN((IFERROR(IF(AND($V99<=AA$1,$W99>=AA$1),INDEX(Reliability!F$23:F$50,MATCH($S99,Reliability!$C$23:$C$50,0)),0),0)*IF($T99=\"n/a\",$D99*$Y99,$G99)+IFERROR(IF(AND($V99<=AA$1,$W99>=AA$1),INDEX(Reliability!F$23:F$50,MATCH($T99,Reliability!$C$23:$C$50,0)),0),0)*$H99*$X99*$Y99),$D99)*$R99","v":0},{"$f":"MIN((IFERROR(IF(AND($V99<=AB$1,$W99>=AB$1),INDEX(Reliability!G$23:G$50,MATCH($S99,Reliability!$C$23:$C$50,0)),0),0)*IF($T99=\"n/a\",$D99*$Y99,$G99)+IFERROR(IF(AND($V99<=AB$1,$W99>=AB$1),INDEX(Reliability!G$23:G$50,MATCH($T99,Reliability!$C$23:$C$50,0)),0),0)*$H99*$X99*$Y99),$D99)*$R99","v":0},{"$f":"MIN((IFERROR(IF(AND($V99<=AC$1,$W99>=AC$1),INDEX(Reliability!H$23:H$50,MATCH($S99,Reliability!$C$23:$C$50,0)),0),0)*IF($T99=\"n/a\",$D99*$Y99,$G99)+IFERROR(IF(AND($V99<=AC$1,$W99>=AC$1),INDEX(Reliability!H$23:H$50,MATCH($T99,Reliability!$C$23:$C$50,0)),0),0)*$H99*$X99*$Y99),$D99)*$R99","v":0},{"$f":"MIN((IFERROR(IF(AND($V99<=AD$1,$W99>=AD$1),INDEX(Reliability!I$23:I$50,MATCH($S99,Reliability!$C$23:$C$50,0)),0),0)*IF($T99=\"n/a\",$D99*$Y99,$G99)+IFERROR(IF(AND($V99<=AD$1,$W99>=AD$1),INDEX(Reliability!I$23:I$50,MATCH($T99,Reliability!$C$23:$C$50,0)),0),0)*$H99*$X99*$Y99),$D99)*$R99","v":0},{"$f":"MIN((IFERROR(IF(AND($V99<=AE$1,$W99>=AE$1),INDEX(Reliability!J$23:J$50,MATCH($S99,Reliability!$C$23:$C$50,0)),0),0)*IF($T99=\"n/a\",$D99*$Y99,$G99)+IFERROR(IF(AND($V99<=AE$1,$W99>=AE$1),INDEX(Reliability!J$23:J$50,MATCH($T99,Reliability!$C$23:$C$50,0)),0),0)*$H99*$X99*$Y99),$D99)*$R99","v":0},{"$f":"MIN((IFERROR(IF(AND($V99<=AF$1,$W99>=AF$1),INDEX(Reliability!K$23:K$50,MATCH($S99,Reliability!$C$23:$C$50,0)),0),0)*IF($T99=\"n/a\",$D99*$Y99,$G99)+IFERROR(IF(AND($V99<=AF$1,$W99>=AF$1),INDEX(Reliability!K$23:K$50,MATCH($T99,Reliability!$C$23:$C$50,0)),0),0)*$H99*$X99*$Y99),$D99)*$R99","v":0},{"$f":"MIN((IFERROR(IF(AND($V99<=AG$1,$W99>=AG$1),INDEX(Reliability!L$23:L$50,MATCH($S99,Reliability!$C$23:$C$50,0)),0),0)*IF($T99=\"n/a\",$D99*$Y99,$G99)+IFERROR(IF(AND($V99<=AG$1,$W99>=AG$1),INDEX(Reliability!L$23:L$50,MATCH($T99,Reliability!$C$23:$C$50,0)),0),0)*$H99*$X99*$Y99),$D99)*$R99","v":0},{"$f":"MIN((IFERROR(IF(AND($V99<=AH$1,$W99>=AH$1),INDEX(Reliability!M$23:M$50,MATCH($S99,Reliability!$C$23:$C$50,0)),0),0)*IF($T99=\"n/a\",$D99*$Y99,$G99)+IFERROR(IF(AND($V99<=AH$1,$W99>=AH$1),INDEX(Reliability!M$23:M$50,MATCH($T99,Reliability!$C$23:$C$50,0)),0),0)*$H99*$X99*$Y99),$D99)*$R99","v":0},{"$f":"MIN((IFERROR(IF(AND($V99<=AI$1,$W99>=AI$1),INDEX(Reliability!N$23:N$50,MATCH($S99,Reliability!$C$23:$C$50,0)),0),0)*IF($T99=\"n/a\",$D99*$Y99,$G99)+IFERROR(IF(AND($V99<=AI$1,$W99>=AI$1),INDEX(Reliability!N$23:N$50,MATCH($T99,Reliability!$C$23:$C$50,0)),0),0)*$H99*$X99*$Y99),$D99)*$R99","v":0},{"$f":"MIN((IFERROR(IF(AND($V99<=AJ$1,$W99>=AJ$1),INDEX(Reliability!O$23:O$50,MATCH($S99,Reliability!$C$23:$C$50,0)),0),0)*IF($T99=\"n/a\",$D99*$Y99,$G99)+IFERROR(IF(AND($V99<=AJ$1,$W99>=AJ$1),INDEX(Reliability!O$23:O$50,MATCH($T99,Reliability!$C$23:$C$50,0)),0),0)*$H99*$X99*$Y99),$D99)*$R99","v":0},{"$f":"MIN((IFERROR(IF(AND($V99<=AK$1,$W99>=AK$1),INDEX(Reliability!P$23:P$50,MATCH($S99,Reliability!$C$23:$C$50,0)),0),0)*IF($T99=\"n/a\",$D99*$Y99,$G99)+IFERROR(IF(AND($V99<=AK$1,$W99>=AK$1),INDEX(Reliability!P$23:P$50,MATCH($T99,Reliability!$C$23:$C$50,0)),0),0)*$H99*$X99*$Y99),$D99)*$R99","v":0}]
[null,{"$f":"unique_contracts!B101","v":0},{"$f":"unique_contracts!D101","v":0},{"$f":"unique_contracts!J101","v":0},{"$f":"unique_contracts!M101","v":0},{"$f":"unique_contracts!N101","v":0},{"$f":"unique_contracts!P101","v":0},{"$f":"unique_contracts!R101","v":0},{"$f":"unique_contracts!V101","v":0},{"$f":"unique_contracts!AB101","v":0},{"$f":"unique_contracts!AM101","v":0},{"$f":"unique_contracts!AN101","v":0},{"$f":"unique_contracts!AO101","v":0},{"$f":"unique_contracts!AP101","v":0},{"$f":"unique_contracts!AQ101","v":0},{"$f":"unique_contracts!AR101","v":0},{"$f":"unique_contracts!BP101","v":0},0,{"$f":"IFERROR(IF(AND(I100>0,E100=\"NotHybrid\"),_xlfn.CONCAT(MAX(MIN(ROUNDDOWN(I100/D100,0),8),4),INDEX(resources!$G:$G,MATCH(B100,resources!$A:$A,0))),INDEX(resources!$G:$G,MATCH(B100,resources!$A:$A,0))),\"n/a\")","v":"n/a"},"n/a","n/a",0,0,1,1,{"$f":"MIN((IFERROR(IF(AND($V100<=Z$1,$W100>=Z$1),INDEX(Reliability!E$23:E$50,MATCH($S100,Reliability!$C$23:$C$50,0)),0),0)*IF($T100=\"n/a\",$D100*$Y100,$G100)+IFERROR(IF(AND($V100<=Z$1,$W100>=Z$1),INDEX(Reliability!E$23:E$50,MATCH($T100,Reliability!$C$23:$C$50,0)),0),0)*$H100*$X100*$Y100),$D100)*$R100","v":0},{"$f":"MIN((IFERROR(IF(AND($V100<=AA$1,$W100>=AA$1),INDEX(Reliability!F$23:F$50,MATCH($S100,Reliability!$C$23:$C$50,0)),0),0)*IF($T100=\"n/a\",$D100*$Y100,$G100)+IFERROR(IF(AND($V100<=AA$1,$W100>=AA$1),INDEX(Reliability!F$23:F$50,MATCH($T100,Reliability!$C$23:$C$50,0)),0),0)*$H100*$X100*$Y100),$D100)*$R100","v":0},{"$f":"MIN((IFERROR(IF(AND($V100<=AB$1,$W100>=AB$1),INDEX(Reliability!G$23:G$50,MATCH($S100,Reliability!$C$23:$C$50,0)),0),0)*IF($T100=\"n/a\",$D100*$Y100,$G100)+IFERROR(IF(AND($V100<=AB$1,$W100>=AB$1),INDEX(Reliability!G$23:G$50,MATCH($T100,Reliability!$C$23:$C$50,0)),0),0)*$H100*$X100*$Y100),$D100)*$R100","v":0},{"$f":"MIN((IFERROR(IF(AND($V100<=AC$1,$W100>=AC$1),INDEX(Reliability!H$23:H$50,MATCH($S100,Reliability!$C$23:$C$50,0)),0),0)*IF($T100=\"n/a\",$D100*$Y100,$G100)+IFERROR(IF(AND($V100<=AC$1,$W100>=AC$1),INDEX(Reliability!H$23:H$50,MATCH($T100,Reliability!$C$23:$C$50,0)),0),0)*$H100*$X100*$Y100),$D100)*$R100","v":0},{"$f":"MIN((IFERROR(IF(AND($V100<=AD$1,$W100>=AD$1),INDEX(Reliability!I$23:I$50,MATCH($S100,Reliability!$C$23:$C$50,0)),0),0)*IF($T100=\"n/a\",$D100*$Y100,$G100)+IFERROR(IF(AND($V100<=AD$1,$W100>=AD$1),INDEX(Reliability!I$23:I$50,MATCH($T100,Reliability!$C$23:$C$50,0)),0),0)*$H100*$X100*$Y100),$D100)*$R100","v":0},{"$f":"MIN((IFERROR(IF(AND($V100<=AE$1,$W100>=AE$1),INDEX(Reliability!J$23:J$50,MATCH($S100,Reliability!$C$23:$C$50,0)),0),0)*IF($T100=\"n/a\",$D100*$Y100,$G100)+IFERROR(IF(AND($V100<=AE$1,$W100>=AE$1),INDEX(Reliability!J$23:J$50,MATCH($T100,Reliability!$C$23:$C$50,0)),0),0)*$H100*$X100*$Y100),$D100)*$R100","v":0},{"$f":"MIN((IFERROR(IF(AND($V100<=AF$1,$W100>=AF$1),INDEX(Reliability!K$23:K$50,MATCH($S100,Reliability!$C$23:$C$50,0)),0),0)*IF($T100=\"n/a\",$D100*$Y100,$G100)+IFERROR(IF(AND($V100<=AF$1,$W100>=AF$1),INDEX(Reliability!K$23:K$50,MATCH($T100,Reliability!$C$23:$C$50,0)),0),0)*$H100*$X100*$Y100),$D100)*$R100","v":0},{"$f":"MIN((IFERROR(IF(AND($V100<=AG$1,$W100>=AG$1),INDEX(Reliability!L$23:L$50,MATCH($S100,Reliability!$C$23:$C$50,0)),0),0)*IF($T100=\"n/a\",$D100*$Y100,$G100)+IFERROR(IF(AND($V100<=AG$1,$W100>=AG$1),INDEX(Reliability!L$23:L$50,MATCH($T100,Reliability!$C$23:$C$50,0)),0),0)*$H100*$X100*$Y100),$D100)*$R100","v":0},{"$f":"MIN((IFERROR(IF(AND($V100<=AH$1,$W100>=AH$1),INDEX(Reliability!M$23:M$50,MATCH($S100,Reliability!$C$23:$C$50,0)),0),0)*IF($T100=\"n/a\",$D100*$Y100,$G100)+IFERROR(IF(AND($V100<=AH$1,$W100>=AH$1),INDEX(Reliability!M$23:M$50,MATCH($T100,Reliability!$C$23:$C$50,0)),0),0)*$H100*$X100*$Y100),$D100)*$R100","v":0},{"$f":"MIN((IFERROR(IF(AND($V100<=AI$1,$W100>=AI$1),INDEX(Reliability!N$23:N$50,MATCH($S100,Reliability!$C$23:$C$50,0)),0),0)*IF($T100=\"n/a\",$D100*$Y100,$G100)+IFERROR(IF(AND($V100<=AI$1,$W100>=AI$1),INDEX(Reliability!N$23:N$50,MATCH($T100,Reliability!$C$23:$C$50,0)),0),0)*$H100*$X100*$Y100),$D100)*$R100","v":0},{"$f":"MIN((IFERROR(IF(AND($V100<=AJ$1,$W100>=AJ$1),INDEX(Reliability!O$23:O$50,MATCH($S100,Reliability!$C$23:$C$50,0)),0),0)*IF($T100=\"n/a\",$D100*$Y100,$G100)+IFERROR(IF(AND($V100<=AJ$1,$W100>=AJ$1),INDEX(Reliability!O$23:O$50,MATCH($T100,Reliability!$C$23:$C$50,0)),0),0)*$H100*$X100*$Y100),$D100)*$R100","v":0},{"$f":"MIN((IFERROR(IF(AND($V100<=AK$1,$W100>=AK$1),INDEX(Reliability!P$23:P$50,MATCH($S100,Reliability!$C$23:$C$50,0)),0),0)*IF($T100=\"n/a\",$D100*$Y100,$G100)+IFERROR(IF(AND($V100<=AK$1,$W100>=AK$1),INDEX(Reliability!P$23:P$50,MATCH($T100,Reliability!$C$23:$C$50,0)),0),0)*$H100*$X100*$Y100),$D100)*$R100","v":0}]
[null,{"$f":"unique_contracts!B102","v":0},{"$f":"unique_contracts!D102","v":0},{"$f":"unique_contracts!J102","v":0},{"$f":"unique_contracts!M102","v":0},{"$f":"unique_contracts!N102","v":0},{"$f":"unique_contracts!P102","v":0},{"$f":"unique_contracts!R102","v":0},{"$f":"unique_contracts!V102","v":0},{"$f":"unique_contracts!AB102","v":0},{"$f":"unique_contracts!AM102","v":0},{"$f":"unique_contracts!AN102","v":0},{"$f":"unique_contracts!AO102","v":0},{"$f":"unique_contracts!AP102","v":0},{"$f":"unique_contracts!AQ102","v":0},{"$f":"unique_contracts!AR102","v":0},{"$f":"unique_contracts!BP102","v":0},0,{"$f":"IFERROR(IF(AND(I101>0,E101=\"NotHybrid\"),_xlfn.CONCAT(MAX(MIN(ROUNDDOWN(I101/D101,0),8),4),INDEX(resources!$G:$G,MATCH(B101,resources!$A:$A,0))),INDEX(resources!$G:$G,MATCH(B101,resources!$A:$A,0))),\"n/a\")","v":"n/a"},"n/a","n/a",0,0,1,1,{"$f":"MIN((IFERROR(IF(AND($V101<=Z$1,$W101>=Z$1),INDEX(Reliability!E$23:E$50,MATCH($S101,Reliability!$C$23:$C$50,0)),0),0)*IF($T101=\"n/a\",$D101*$Y101,$G101)+IFERROR(IF(AND($V101<=Z$1,$W101>=Z$1),INDEX(Reliability!E$23:E$50,MATCH($T101,Reliability!$C$23:$C$50,0)),0),0)*$H101*$X101*$Y101),$D101)*$R101","v":0},{"$f":"MIN((IFERROR(IF(AND($V101<=AA$1,$W101>=AA$1),INDEX(Reliability!F$23:F$50,MATCH($S101,Reliability!$C$23:$C$50,0)),0),0)*IF($T101=\"n/a\",$D101*$Y101,$G101)+IFERROR(IF(AND($V101<=AA$1,$W101>=AA$1),INDEX(Reliability!F$23:F$50,MATCH($T101,Reliability!$C$23:$C$50,0)),0),0)*$H101*$X101*$Y101),$D101)*$R101","v":0},{"$f":"MIN((IFERROR(IF(AND($V101<=AB$1,$W101>=AB$1),INDEX(Reliability!G$23:G$50,MATCH($S101,Reliability!$C$23:$C$50,0)),0),0)*IF($T101=\"n/a\",$D101*$Y101,$G101)+IFERROR(IF(AND($V101<=AB$1,$W101>=AB$1),INDEX(Reliability!G$23:G$50,MATCH($T101,Reliability!$C$23:$C$50,0)),0),0)*$H101*$X101*$Y101),$D101)*$R101","v":0},{"$f":"MIN((IFERROR(IF(AND($V101<=AC$1,$W101>=AC$1),INDEX(Reliability!H$23:H$50,MATCH($S101,Reliability!$C$23:$C$50,0)),0),0)*IF($T101=\"n/a\",$D101*$Y101,$G101)+IFERROR(IF(AND($V101<=AC$1,$W101>=AC$1),INDEX(Reliability!H$23:H$50,MATCH($T101,Reliability!$C$23:$C$50,0)),0),0)*$H101*$X101*$Y101),$D101)*$R101","v":0},{"$f":"MIN((IFERROR(IF(AND($V101<=AD$1,$W101>=AD$1),INDEX(Reliability!I$23:I$50,MATCH($S101,Reliability!$C$23:$C$50,0)),0),0)*IF($T101=\"n/a\",$D101*$Y101,$G101)+IFERROR(IF(AND($V101<=AD$1,$W101>=AD$1),INDEX(Reliability!I$23:I$50,MATCH($T101,Reliability!$C$23:$C$50,0)),0),0)*$H101*$X101*$Y101),$D101)*$R101","v":0},{"$f":"MIN((IFERROR(IF(AND($V101<=AE$1,$W101>=AE$1),INDEX(Reliability!J$23:J$50,MATCH($S101,Reliability!$C$23:$C$50,0)),0),0)*IF($T101=\"n/a\",$D101*$Y101,$G101)+IFERROR(IF(AND($V101<=AE$1,$W101>=AE$1),INDEX(Reliability!J$23:J$50,MATCH($T101,Reliability!$C$23:$C$50,0)),0),0)*$H101*$X101*$Y101),$D101)*$R101","v":0},{"$f":"MIN((IFERROR(IF(AND($V101<=AF$1,$W101>=AF$1),INDEX(Reliability!K$23:K$50,MATCH($S101,Reliability!$C$23:$C$50,0)),0),0)*IF($T101=\"n/a\",$D101*$Y101,$G101)+IFERROR(IF(AND($V101<=AF$1,$W101>=AF$1),INDEX(Reliability!K$23:K$50,MATCH($T101,Reliability!$C$23:$C$50,0)),0),0)*$H101*$X101*$Y101),$D101)*$R101","v":0},{"$f":"MIN((IFERROR(IF(AND($V101<=AG$1,$W101>=AG$1),INDEX(Reliability!L$23:L$50,MATCH($S101,Reliability!$C$23:$C$50,0)),0),0)*IF($T101=\"n/a\",$D101*$Y101,$G101)+IFERROR(IF(AND($V101<=AG$1,$W101>=AG$1),INDEX(Reliability!L$23:L$50,MATCH($T101,Reliability!$C$23:$C$50,0)),0),0)*$H101*$X101*$Y101),$D101)*$R101","v":0},{"$f":"MIN((IFERROR(IF(AND($V101<=AH$1,$W101>=AH$1),INDEX(Reliability!M$23:M$50,MATCH($S101,Reliability!$C$23:$C$50,0)),0),0)*IF($T101=\"n/a\",$D101*$Y101,$G101)+IFERROR(IF(AND($V101<=AH$1,$W101>=AH$1),INDEX(Reliability!M$23:M$50,MATCH($T101,Reliability!$C$23:$C$50,0)),0),0)*$H101*$X101*$Y101),$D101)*$R101","v":0},{"$f":"MIN((IFERROR(IF(AND($V101<=AI$1,$W101>=AI$1),INDEX(Reliability!N$23:N$50,MATCH($S101,Reliability!$C$23:$C$50,0)),0),0)*IF($T101=\"n/a\",$D101*$Y101,$G101)+IFERROR(IF(AND($V101<=AI$1,$W101>=AI$1),INDEX(Reliability!N$23:N$50,MATCH($T101,Reliability!$C$23:$C$50,0)),0),0)*$H101*$X101*$Y101),$D101)*$R101","v":0},{"$f":"MIN((IFERROR(IF(AND($V101<=AJ$1,$W101>=AJ$1),INDEX(Reliability!O$23:O$50,MATCH($S101,Reliability!$C$23:$C$50,0)),0),0)*IF($T101=\"n/a\",$D101*$Y101,$G101)+IFERROR(IF(AND($V101<=AJ$1,$W101>=AJ$1),INDEX(Reliability!O$23:O$50,MATCH($T101,Reliability!$C$23:$C$50,0)),0),0)*$H101*$X101*$Y101),$D101)*$R101","v":0},{"$f":"MIN((IFERROR(IF(AND($V101<=AK$1,$W101>=AK$1),INDEX(Reliability!P$23:P$50,MATCH($S101,Reliability!$C$23:$C$50,0)),0),0)*IF($T101=\"n/a\",$D101*$Y101,$G101)+IFERROR(IF(AND($V101<=AK$1,$W101>=AK$1),INDEX(Reliability!P$23:P$50,MATCH($T101,Reliability!$C$23:$C$50,0)),0),0)*$H101*$X101*$Y101),$D101)*$R101","v":0}]
[null,{"$f":"unique_contracts!B103","v":0},{"$f":"unique_contracts!D103","v":0},{"$f":"unique_contracts!J103","v":0},{"$f":"unique_contracts!M103","v":0},{"$f":"unique_contracts!N103","v":0},{"$f":"unique_contracts!P103","v":0},{"$f":"unique_contracts!R103","v":0},{"$f":"unique_contracts!V103","v":0},{"$f":"unique_contracts!AB103","v":0},{"$f":"unique_contracts!AM103","v":0},{"$f":"unique_contracts!AN103","v":0},{"$f":"unique_contracts!AO103","v":0},{"$f":"unique_contracts!AP103","v":0},{"$f":"unique_contracts!AQ103","v":0},{"$f":"unique_contracts!AR103","v":0},{"$f":"unique_contracts!BP103","v":0},0,{"$f":"IFERROR(IF(AND(I102>0,E102=\"NotHybrid\"),_xlfn.CONCAT(MAX(MIN(ROUNDDOWN(I102/D102,0),8),4),INDEX(resources!$G:$G,MATCH(B102,resources!$A:$A,0))),INDEX(resources!$G:$G,MATCH(B102,resources!$A:$A,0))),\"n/a\")","v":"n/a"},"n/a","n/a",0,0,1,1,{"$f":"MIN((IFERROR(IF(AND($V102<=Z$1,$W102>=Z$1),INDEX(Reliability!E$23:E$50,MATCH($S102,Reliability!$C$23:$C$50,0)),0),0)*IF($T102=\"n/a\",$D102*$Y102,$G102)+IFERROR(IF(AND($V102<=Z$1,$W102>=Z$1),INDEX(Reliability!E$23:E$50,MATCH($T102,Reliability!$C$23:$C$50,0)),0),0)*$H102*$X102*$Y102),$D102)*$R102","v":0},{"$f":"MIN((IFERROR(IF(AND($V102<=AA$1,$W102>=AA$1),INDEX(Reliability!F$23:F$50,MATCH($S102,Reliability!$C$23:$C$50,0)),0),0)*IF($T102=\"n/a\",$D102*$Y102,$G102)+IFERROR(IF(AND($V102<=AA$1,$W102>=AA$1),INDEX(Reliability!F$23:F$50,MATCH($T102,Reliability!$C$23:$C$50,0)),0),0)*$H102*$X102*$Y102),$D102)*$R102","v":0},{"$f":"MIN((IFERROR(IF(AND($V102<=AB$1,$W102>=AB$1),INDEX(Reliability!G$23:G$50,MATCH($S102,Reliability!$C$23:$C$50,0)),0),0)*IF($T102=\"n/a\",$D102*$Y102,$G102)+IFERROR(IF(AND($V102<=AB$1,$W102>=AB$1),INDEX(Reliability!G$23:G$50,MATCH($T102,Reliability!$C$23:$C$50,0)),0),0)*$H102*$X102*$Y102),$D102)*$R102","v":0},{"$f":"MIN((IFERROR(IF(AND($V102<=AC$1,$W102>=AC$1),INDEX(Reliability!H$23:H$50,MATCH($S102,Reliability!$C$23:$C$50,0)),0),0)*IF($T102=\"n/a\",$D102*$Y102,$G102)+IFERROR(IF(AND($V102<=AC$1,$W102>=AC$1),INDEX(Reliability!H$23:H$50,MATCH($T102,Reliability!$C$23:$C$50,0)),0),0)*$H102*$X102*$Y102),$D102)*$R102","v":0},{"$f":"MIN((IFERROR(IF(AND($V102<=AD$1,$W102>=AD$1),INDEX(Reliability!I$23:I$50,MATCH($S102,Reliability!$C$23:$C$50,0)),0),0)*IF($T102=\"n/a\",$D102*$Y102,$G102)+IFERROR(IF(AND($V102<=AD$1,$W102>=AD$1),INDEX(Reliability!I$23:I$50,MATCH($T102,Reliability!$C$23:$C$50,0)),0),0)*$H102*$X102*$Y102),$D102)*$R102","v":0},{"$f":"MIN((IFERROR(IF(AND($V102<=AE$1,$W102>=AE$1),INDEX(Reliability!J$23:J$50,MATCH($S102,Reliability!$C$23:$C$50,0)),0),0)*IF($T102=\"n/a\",$D102*$Y102,$G102)+IFERROR(IF(AND($V102<=AE$1,$W102>=AE$1),INDEX(Reliability!J$23:J$50,MATCH($T102,Reliability!$C$23:$C$50,0)),0),0)*$H102*$X102*$Y102),$D102)*$R102","v":0},{"$f":"MIN((IFERROR(IF(AND($V102<=AF$1,$W102>=AF$1),INDEX(Reliability!K$23:K$50,MATCH($S102,Reliability!$C$23:$C$50,0)),0),0)*IF($T102=\"n/a\",$D102*$Y102,$G102)+IFERROR(IF(AND($V102<=AF$1,$W102>=AF$1),INDEX(Reliability!K$23:K$50,MATCH($T102,Reliability!$C$23:$C$50,0)),0),0)*$H102*$X102*$Y102),$D102)*$R102","v":0},{"$f":"MIN((IFERROR(IF(AND($V102<=AG$1,$W102>=AG$1),INDEX(Reliability!L$23:L$50,MATCH($S102,Reliability!$C$23:$C$50,0)),0),0)*IF($T102=\"n/a\",$D102*$Y102,$G102)+IFERROR(IF(AND($V102<=AG$1,$W102>=AG$1),INDEX(Reliability!L$23:L$50,MATCH($T102,Reliability!$C$23:$C$50,0)),0),0)*$H102*$X102*$Y102),$D102)*$R102","v":0},{"$f":"MIN((IFERROR(IF(AND($V102<=AH$1,$W102>=AH$1),INDEX(Reliability!M$23:M$50,MATCH($S102,Reliability!$C$23:$C$50,0)),0),0)*IF($T102=\"n/a\",$D102*$Y102,$G102)+IFERROR(IF(AND($V102<=AH$1,$W102>=AH$1),INDEX(Reliability!M$23:M$50,MATCH($T102,Reliability!$C$23:$C$50,0)),0),0)*$H102*$X102*$Y102),$D102)*$R102","v":0},{"$f":"MIN((IFERROR(IF(AND($V102<=AI$1,$W102>=AI$1),INDEX(Reliability!N$23:N$50,MATCH($S102,Reliability!$C$23:$C$50,0)),0),0)*IF($T102=\"n/a\",$D102*$Y102,$G102)+IFERROR(IF(AND($V102<=AI$1,$W102>=AI$1),INDEX(Reliability!N$23:N$50,MATCH($T102,Reliability!$C$23:$C$50,0)),0),0)*$H102*$X102*$Y102),$D102)*$R102","v":0},{"$f":"MIN((IFERROR(IF(AND($V102<=AJ$1,$W102>=AJ$1),INDEX(Reliability!O$23:O$50,MATCH($S102,Reliability!$C$23:$C$50,0)),0),0)*IF($T102=\"n/a\",$D102*$Y102,$G102)+IFERROR(IF(AND($V102<=AJ$1,$W102>=AJ$1),INDEX(Reliability!O$23:O$50,MATCH($T102,Reliability!$C$23:$C$50,0)),0),0)*$H102*$X102*$Y102),$D102)*$R102","v":0},{"$f":"MIN((IFERROR(IF(AND($V102<=AK$1,$W102>=AK$1),INDEX(Reliability!P$23:P$50,MATCH($S102,Reliability!$C$23:$C$50,0)),0),0)*IF($T102=\"n/a\",$D102*$Y102,$G102)+IFERROR(IF(AND($V102<=AK$1,$W102>=AK$1),INDEX(Reliability!P$23:P$50,MATCH($T102,Reliability!$C$23:$C$50,0)),0),0)*$H102*$X102*$Y102),$D102)*$R102","v":0}]
[null,{"$f":"unique_contracts!B104","v":0},{"$f":"unique_contracts!D104","v":0},{"$f":"unique_contracts!J104","v":0},{"$f":"unique_contracts!M104","v":0},{"$f":"unique_contracts!N104","v":0},{"$f":"unique_contracts!P104","v":0},{"$f":"unique_contracts!R104","v":0},{"$f":"unique_contracts!V104","v":0},{"$f":"unique_contracts!AB104","v":0},{"$f":"unique_contracts!AM104","v":0},{"$f":"unique_contracts!AN104","v":0},{"$f":"unique_contracts!AO104","v":0},{"$f":"unique_contracts!AP104","v":0},{"$f":"unique_contracts!AQ104","v":0},{"$f":"unique_contracts!AR104","v":0},{"$f":"unique_contracts!BP104","v":0},0,{"$f":"IFERROR(IF(AND(I103>0,E103=\"NotHybrid\"),_xlfn.CONCAT(MAX(MIN(ROUNDDOWN(I103/D103,0),8),4),INDEX(resources!$G:$G,MATCH(B103,resources!$A:$A,0))),INDEX(resources!$G:$G,MATCH(B103,resources!$A:$A,0))),\"n/a\")","v":"n/a"},"n/a","n/a",0,0,1,1,{"$f":"MIN((IFERROR(IF(AND($V103<=Z$1,$W103>=Z$1),INDEX(Reliability!E$23:E$50,MATCH($S103,Reliability!$C$23:$C$50,0)),0),0)*IF($T103=\"n/a\",$D103*$Y103,$G103)+IFERROR(IF(AND($V103<=Z$1,$W103>=Z$1),INDEX(Reliability!E$23:E$50,MATCH($T103,Reliability!$C$23:$C$50,0)),0),0)*$H103*$X103*$Y103),$D103)*$R103","v":0},{"$f":"MIN((IFERROR(IF(AND($V103<=AA$1,$W103>=AA$1),INDEX(Reliability!F$23:F$50,MATCH($S103,Reliability!$C$23:$C$50,0)),0),0)*IF($T103=\"n/a\",$D103*$Y103,$G103)+IFERROR(IF(AND($V103<=AA$1,$W103>=AA$1),INDEX(Reliability!F$23:F$50,MATCH($T103,Reliability!$C$23:$C$50,0)),0),0)*$H103*$X103*$Y103),$D103)*$R103","v":0},{"$f":"MIN((IFERROR(IF(AND($V103<=AB$1,$W103>=AB$1),INDEX(Reliability!G$23:G$50,MATCH($S103,Reliability!$C$23:$C$50,0)),0),0)*IF($T103=\"n/a\",$D103*$Y103,$G103)+IFERROR(IF(AND($V103<=AB$1,$W103>=AB$1),INDEX(Reliability!G$23:G$50,MATCH($T103,Reliability!$C$23:$C$50,0)),0),0)*$H103*$X103*$Y103),$D103)*$R103","v":0},{"$f":"MIN((IFERROR(IF(AND($V103<=AC$1,$W103>=AC$1),INDEX(Reliability!H$23:H$50,MATCH($S103,Reliability!$C$23:$C$50,0)),0),0)*IF($T103=\"n/a\",$D103*$Y103,$G103)+IFERROR(IF(AND($V103<=AC$1,$W103>=AC$1),INDEX(Reliability!H$23:H$50,MATCH($T103,Reliability!$C$23:$C$50,0)),0),0)*$H103*$X103*$Y103),$D103)*$R103","v":0},{"$f":"MIN((IFERROR(IF(AND($V103<=AD$1,$W103>=AD$1),INDEX(Reliability!I$23:I$50,MATCH($S103,Reliability!$C$23:$C$50,0)),0),0)*IF($T103=\"n/a\",$D103*$Y103,$G103)+IFERROR(IF(AND($V103<=AD$1,$W103>=AD$1),INDEX(Reliability!I$23:I$50,MATCH($T103,Reliability!$C$23:$C$50,0)),0),0)*$H103*$X103*$Y103),$D103)*$R103","v":0},{"$f":"MIN((IFERROR(IF(AND($V103<=AE$1,$W103>=AE$1),INDEX(Reliability!J$23:J$50,MATCH($S103,Reliability!$C$23:$C$50,0)),0),0)*IF($T103=\"n/a\",$D103*$Y103,$G103)+IFERROR(IF(AND($V103<=AE$1,$W103>=AE$1),INDEX(Reliability!J$23:J$50,MATCH($T103,Reliability!$C$23:$C$50,0)),0),0)*$H103*$X103*$Y103),$D103)*$R103","v":0},{"$f":"MIN((IFERROR(IF(AND($V103<=AF$1,$W103>=AF$1),INDEX(Reliability!K$23:K$50,MATCH($S103,Reliability!$C$23:$C$50,0)),0),0)*IF($T103=\"n/a\",$D103*$Y103,$G103)+IFERROR(IF(AND($V103<=AF$1,$W103>=AF$1),INDEX(Reliability!K$23:K$50,MATCH($T103,Reliability!$C$23:$C$50,0)),0),0)*$H103*$X103*$Y103),$D103)*$R103","v":0},{"$f":"MIN((IFERROR(IF(AND($V103<=AG$1,$W103>=AG$1),INDEX(Reliability!L$23:L$50,MATCH($S103,Reliability!$C$23:$C$50,0)),0),0)*IF($T103=\"n/a\",$D103*$Y103,$G103)+IFERROR(IF(AND($V103<=AG$1,$W103>=AG$1),INDEX(Reliability!L$23:L$50,MATCH($T103,Reliability!$C$23:$C$50,0)),0),0)*$H103*$X103*$Y103),$D103)*$R103","v":0},{"$f":"MIN((IFERROR(IF(AND($V103<=AH$1,$W103>=AH$1),INDEX(Reliability!M$23:M$50,MATCH($S103,Reliability!$C$23:$C$50,0)),0),0)*IF($T103=\"n/a\",$D103*$Y103,$G103)+IFERROR(IF(AND($V103<=AH$1,$W103>=AH$1),INDEX(Reliability!M$23:M$50,MATCH($T103,Reliability!$C$23:$C$50,0)),0),0)*$H103*$X103*$Y103),$D103)*$R103","v":0},{"$f":"MIN((IFERROR(IF(AND($V103<=AI$1,$W103>=AI$1),INDEX(Reliability!N$23:N$50,MATCH($S103,Reliability!$C$23:$C$50,0)),0),0)*IF($T103=\"n/a\",$D103*$Y103,$G103)+IFERROR(IF(AND($V103<=AI$1,$W103>=AI$1),INDEX(Reliability!N$23:N$50,MATCH($T103,Reliability!$C$23:$C$50,0)),0),0)*$H103*$X103*$Y103),$D103)*$R103","v":0},{"$f":"MIN((IFERROR(IF(AND($V103<=AJ$1,$W103>=AJ$1),INDEX(Reliability!O$23:O$50,MATCH($S103,Reliability!$C$23:$C$50,0)),0),0)*IF($T103=\"n/a\",$D103*$Y103,$G103)+IFERROR(IF(AND($V103<=AJ$1,$W103>=AJ$1),INDEX(Reliability!O$23:O$50,MATCH($T103,Reliability!$C$23:$C$50,0)),0),0)*$H103*$X103*$Y103),$D103)*$R103","v":0},{"$f":"MIN((IFERROR(IF(AND($V103<=AK$1,$W103>=AK$1),INDEX(Reliability!P$23:P$50,MATCH($S103,Reliability!$C$23:$C$50,0)),0),0)*IF($T103=\"n/a\",$D103*$Y103,$G103)+IFERROR(IF(AND($V103<=AK$1,$W103>=AK$1),INDEX(Reliability!P$23:P$50,MATCH($T103,Reliability!$C$23:$C$50,0)),0),0)*$H103*$X103*$Y103),$D103)*$R103","v":0}]
[null,{"$f":"unique_contracts!B105","v":0},{"$f":"unique_contracts!D105","v":0},{"$f":"unique_contracts!J105","v":0},{"$f":"unique_contracts!M105","v":0},{"$f":"unique_contracts!N105","v":0},{"$f":"unique_contracts!P105","v":0},{"$f":"unique_contracts!R105","v":0},{"$f":"unique_contracts!V105","v":0},{"$f":"unique_contracts!AB105","v":0},{"$f":"unique_contracts!AM105","v":0},{"$f":"unique_contracts!AN105","v":0},{"$f":"unique_contracts!AO105","v":0},{"$f":"unique_contracts!AP105","v":0},{"$f":"unique_contracts!AQ105","v":0},{"$f":"unique_contracts!AR105","v":0},{"$f":"unique_contracts!BP105","v":0},0,{"$f":"IFERROR(IF(AND(I104>0,E104=\"NotHybrid\"),_xlfn.CONCAT(MAX(MIN(ROUNDDOWN(I104/D104,0),8),4),INDEX(resources!$G:$G,MATCH(B104,resources!$A:$A,0))),INDEX(resources!$G:$G,MATCH(B104,resources!$A:$A,0))),\"n/a\")","v":"n/a"},"n/a","n/a",0,0,1,1,{"$f":"MIN((IFERROR(IF(AND($V104<=Z$1,$W104>=Z$1),INDEX(Reliability!E$23:E$50,MATCH($S104,Reliability!$C$23:$C$50,0)),0),0)*IF($T104=\"n/a\",$D104*$Y104,$G104)+IFERROR(IF(AND($V104<=Z$1,$W104>=Z$1),INDEX(Reliability!E$23:E$50,MATCH($T104,Reliability!$C$23:$C$50,0)),0),0)*$H104*$X104*$Y104),$D104)*$R104","v":0},{"$f":"MIN((IFERROR(IF(AND($V104<=AA$1,$W104>=AA$1),INDEX(Reliability!F$23:F$50,MATCH($S104,Reliability!$C$23:$C$50,0)),0),0)*IF($T104=\"n/a\",$D104*$Y104,$G104)+IFERROR(IF(AND($V104<=AA$1,$W104>=AA$1),INDEX(Reliability!F$23:F$50,MATCH($T104,Reliability!$C$23:$C$50,0)),0),0)*$H104*$X104*$Y104),$D104)*$R104","v":0},{"$f":"MIN((IFERROR(IF(AND($V104<=AB$1,$W104>=AB$1),INDEX(Reliability!G$23:G$50,MATCH($S104,Reliability!$C$23:$C$50,0)),0),0)*IF($T104=\"n/a\",$D104*$Y104,$G104)+IFERROR(IF(AND($V104<=AB$1,$W104>=AB$1),INDEX(Reliability!G$23:G$50,MATCH($T104,Reliability!$C$23:$C$50,0)),0),0)*$H104*$X104*$Y104),$D104)*$R104","v":0},{"$f":"MIN((IFERROR(IF(AND($V104<=AC$1,$W104>=AC$1),INDEX(Reliability!H$23:H$50,MATCH($S104,Reliability!$C$23:$C$50,0)),0),0)*IF($T104=\"n/a\",$D104*$Y104,$G104)+IFERROR(IF(AND($V104<=AC$1,$W104>=AC$1),INDEX(Reliability!H$23:H$50,MATCH($T104,Reliability!$C$23:$C$50,0)),0),0)*$H104*$X104*$Y104),$D104)*$R104","v":0},{"$f":"MIN((IFERROR(IF(AND($V104<=AD$1,$W104>=AD$1),INDEX(Reliability!I$23:I$50,MATCH($S104,Reliability!$C$23:$C$50,0)),0),0)*IF($T104=\"n/a\",$D104*$Y104,$G104)+IFERROR(IF(AND($V104<=AD$1,$W104>=AD$1),INDEX(Reliability!I$23:I$50,MATCH($T104,Reliability!$C$23:$C$50,0)),0),0)*$H104*$X104*$Y104),$D104)*$R104","v":0},{"$f":"MIN((IFERROR(IF(AND($V104<=AE$1,$W104>=AE$1),INDEX(Reliability!J$23:J$50,MATCH($S104,Reliability!$C$23:$C$50,0)),0),0)*IF($T104=\"n/a\",$D104*$Y104,$G104)+IFERROR(IF(AND($V104<=AE$1,$W104>=AE$1),INDEX(Reliability!J$23:J$50,MATCH($T104,Reliability!$C$23:$C$50,0)),0),0)*$H104*$X104*$Y104),$D104)*$R104","v":0},{"$f":"MIN((IFERROR(IF(AND($V104<=AF$1,$W104>=AF$1),INDEX(Reliability!K$23:K$50,MATCH($S104,Reliability!$C$23:$C$50,0)),0),0)*IF($T104=\"n/a\",$D104*$Y104,$G104)+IFERROR(IF(AND($V104<=AF$1,$W104>=AF$1),INDEX(Reliability!K$23:K$50,MATCH($T104,Reliability!$C$23:$C$50,0)),0),0)*$H104*$X104*$Y104),$D104)*$R104","v":0},{"$f":"MIN((IFERROR(IF(AND($V104<=AG$1,$W104>=AG$1),INDEX(Reliability!L$23:L$50,MATCH($S104,Reliability!$C$23:$C$50,0)),0),0)*IF($T104=\"n/a\",$D104*$Y104,$G104)+IFERROR(IF(AND($V104<=AG$1,$W104>=AG$1),INDEX(Reliability!L$23:L$50,MATCH($T104,Reliability!$C$23:$C$50,0)),0),0)*$H104*$X104*$Y104),$D104)*$R104","v":0},{"$f":"MIN((IFERROR(IF(AND($V104<=AH$1,$W104>=AH$1),INDEX(Reliability!M$23:M$50,MATCH($S104,Reliability!$C$23:$C$50,0)),0),0)*IF($T104=\"n/a\",$D104*$Y104,$G104)+IFERROR(IF(AND($V104<=AH$1,$W104>=AH$1),INDEX(Reliability!M$23:M$50,MATCH($T104,Reliability!$C$23:$C$50,0)),0),0)*$H104*$X104*$Y104),$D104)*$R104","v":0},{"$f":"MIN((IFERROR(IF(AND($V104<=AI$1,$W104>=AI$1),INDEX(Reliability!N$23:N$50,MATCH($S104,Reliability!$C$23:$C$50,0)),0),0)*IF($T104=\"n/a\",$D104*$Y104,$G104)+IFERROR(IF(AND($V104<=AI$1,$W104>=AI$1),INDEX(Reliability!N$23:N$50,MATCH($T104,Reliability!$C$23:$C$50,0)),0),0)*$H104*$X104*$Y104),$D104)*$R104","v":0},{"$f":"MIN((IFERROR(IF(AND($V104<=AJ$1,$W104>=AJ$1),INDEX(Reliability!O$23:O$50,MATCH($S104,Reliability!$C$23:$C$50,0)),0),0)*IF($T104=\"n/a\",$D104*$Y104,$G104)+IFERROR(IF(AND($V104<=AJ$1,$W104>=AJ$1),INDEX(Reliability!O$23:O$50,MATCH($T104,Reliability!$C$23:$C$50,0)),0),0)*$H104*$X104*$Y104),$D104)*$R104","v":0},{"$f":"MIN((IFERROR(IF(AND($V104<=AK$1,$W104>=AK$1),INDEX(Reliability!P$23:P$50,MATCH($S104,Reliability!$C$23:$C$50,0)),0),0)*IF($T104=\"n/a\",$D104*$Y104,$G104)+IFERROR(IF(AND($V104<=AK$1,$W104>=AK$1),INDEX(Reliability!P$23:P$50,MATCH($T104,Reliability!$C$23:$C$50,0)),0),0)*$H104*$X104*$Y104),$D104)*$R104","v":0}]
[null,{"$f":"unique_contracts!B106","v":0},{"$f":"unique_contracts!D106","v":0},{"$f":"unique_contracts!J106","v":0},{"$f":"unique_contracts!M106","v":0},{"$f":"unique_contracts!N106","v":0},{"$f":"unique_contracts!P106","v":0},{"$f":"unique_contracts!R106","v":0},{"$f":"unique_contracts!V106","v":0},{"$f":"unique_contracts!AB106","v":0},{"$f":"unique_contracts!AM106","v":0},{"$f":"unique_contracts!AN106","v":0},{"$f":"unique_contracts!AO106","v":0},{"$f":"unique_contracts!AP106","v":0},{"$f":"unique_contracts!AQ106","v":0},{"$f":"unique_contracts!AR106","v":0},{"$f":"unique_contracts!BP106","v":0},0,{"$f":"IFERROR(IF(AND(I105>0,E105=\"NotHybrid\"),_xlfn.CONCAT(MAX(MIN(ROUNDDOWN(I105/D105,0),8),4),INDEX(resources!$G:$G,MATCH(B105,resources!$A:$A,0))),INDEX(resources!$G:$G,MATCH(B105,resources!$A:$A,0))),\"n/a\")","v":"n/a"},"n/a","n/a",0,0,1,1,{"$f":"MIN((IFERROR(IF(AND($V105<=Z$1,$W105>=Z$1),INDEX(Reliability!E$23:E$50,MATCH($S105,Reliability!$C$23:$C$50,0)),0),0)*IF($T105=\"n/a\",$D105*$Y105,$G105)+IFERROR(IF(AND($V105<=Z$1,$W105>=Z$1),INDEX(Reliability!E$23:E$50,MATCH($T105,Reliability!$C$23:$C$50,0)),0),0)*$H105*$X105*$Y105),$D105)*$R105","v":0},{"$f":"MIN((IFERROR(IF(AND($V105<=AA$1,$W105>=AA$1),INDEX(Reliability!F$23:F$50,MATCH($S105,Reliability!$C$23:$C$50,0)),0),0)*IF($T105=\"n/a\",$D105*$Y105,$G105)+IFERROR(IF(AND($V105<=AA$1,$W105>=AA$1),INDEX(Reliability!F$23:F$50,MATCH($T105,Reliability!$C$23:$C$50,0)),0),0)*$H105*$X105*$Y105),$D105)*$R105","v":0},{"$f":"MIN((IFERROR(IF(AND($V105<=AB$1,$W105>=AB$1),INDEX(Reliability!G$23:G$50,MATCH($S105,Reliability!$C$23:$C$50,0)),0),0)*IF($T105=\"n/a\",$D105*$Y105,$G105)+IFERROR(IF(AND($V105<=AB$1,$W105>=AB$1),INDEX(Reliability!G$23:G$50,MATCH($T105,Reliability!$C$23:$C$50,0)),0),0)*$H105*$X105*$Y105),$D105)*$R105","v":0},{"$f":"MIN((IFERROR(IF(AND($V105<=AC$1,$W105>=AC$1),INDEX(Reliability!H$23:H$50,MATCH($S105,Reliability!$C$23:$C$50,0)),0),0)*IF($T105=\"n/a\",$D105*$Y105,$G105)+IFERROR(IF(AND($V105<=AC$1,$W105>=AC$1),INDEX(Reliability!H$23:H$50,MATCH($T105,Reliability!$C$23:$C$50,0)),0),0)*$H105*$X105*$Y105),$D105)*$R105","v":0},{"$f":"MIN((IFERROR(IF(AND($V105<=AD$1,$W105>=AD$1),INDEX(Reliability!I$23:I$50,MATCH($S105,Reliability!$C$23:$C$50,0)),0),0)*IF($T105=\"n/a\",$D105*$Y105,$G105)+IFERROR(IF(AND($V105<=AD$1,$W105>=AD$1),INDEX(Reliability!I$23:I$50,MATCH($T105,Reliability!$C$23:$C$50,0)),0),0)*$H105*$X105*$Y105),$D105)*$R105","v":0},{"$f":"MIN((IFERROR(IF(AND($V105<=AE$1,$W105>=AE$1),INDEX(Reliability!J$23:J$50,MATCH($S105,Reliability!$C$23:$C$50,0)),0),0)*IF($T105=\"n/a\",$D105*$Y105,$G105)+IFERROR(IF(AND($V105<=AE$1,$W105>=AE$1),INDEX(Reliability!J$23:J$50,MATCH($T105,Reliability!$C$23:$C$50,0)),0),0)*$H105*$X105*$Y105),$D105)*$R105","v":0},{"$f":"MIN((IFERROR(IF(AND($V105<=AF$1,$W105>=AF$1),INDEX(Reliability!K$23:K$50,MATCH($S105,Reliability!$C$23:$C$50,0)),0),0)*IF($T105=\"n/a\",$D105*$Y105,$G105)+IFERROR(IF(AND($V105<=AF$1,$W105>=AF$1),INDEX(Reliability!K$23:K$50,MATCH($T105,Reliability!$C$23:$C$50,0)),0),0)*$H105*$X105*$Y105),$D105)*$R105","v":0},{"$f":"MIN((IFERROR(IF(AND($V105<=AG$1,$W105>=AG$1),INDEX(Reliability!L$23:L$50,MATCH($S105,Reliability!$C$23:$C$50,0)),0),0)*IF($T105=\"n/a\",$D105*$Y105,$G105)+IFERROR(IF(AND($V105<=AG$1,$W105>=AG$1),INDEX(Reliability!L$23:L$50,MATCH($T105,Reliability!$C$23:$C$50,0)),0),0)*$H105*$X105*$Y105),$D105)*$R105","v":0},{"$f":"MIN((IFERROR(IF(AND($V105<=AH$1,$W105>=AH$1),INDEX(Reliability!M$23:M$50,MATCH($S105,Reliability!$C$23:$C$50,0)),0),0)*IF($T105=\"n/a\",$D105*$Y105,$G105)+IFERROR(IF(AND($V105<=AH$1,$W105>=AH$1),INDEX(Reliability!M$23:M$50,MATCH($T105,Reliability!$C$23:$C$50,0)),0),0)*$H105*$X105*$Y105),$D105)*$R105","v":0},{"$f":"MIN((IFERROR(IF(AND($V105<=AI$1,$W105>=AI$1),INDEX(Reliability!N$23:N$50,MATCH($S105,Reliability!$C$23:$C$50,0)),0),0)*IF($T105=\"n/a\",$D105*$Y105,$G105)+IFERROR(IF(AND($V105<=AI$1,$W105>=AI$1),INDEX(Reliability!N$23:N$50,MATCH($T105,Reliability!$C$23:$C$50,0)),0),0)*$H105*$X105*$Y105),$D105)*$R105","v":0},{"$f":"MIN((IFERROR(IF(AND($V105<=AJ$1,$W105>=AJ$1),INDEX(Reliability!O$23:O$50,MATCH($S105,Reliability!$C$23:$C$50,0)),0),0)*IF($T105=\"n/a\",$D105*$Y105,$G105)+IFERROR(IF(AND($V105<=AJ$1,$W105>=AJ$1),INDEX(Reliability!O$23:O$50,MATCH($T105,Reliability!$C$23:$C$50,0)),0),0)*$H105*$X105*$Y105),$D105)*$R105","v":0},{"$f":"MIN((IFERROR(IF(AND($V105<=AK$1,$W105>=AK$1),INDEX(Reliability!P$23:P$50,MATCH($S105,Reliability!$C$23:$C$50,0)),0),0)*IF($T105=\"n/a\",$D105*$Y105,$G105)+IFERROR(IF(AND($V105<=AK$1,$W105>=AK$1),INDEX(Reliability!P$23:P$50,MATCH($T105,Reliability!$C$23:$C$50,0)),0),0)*$H105*$X105*$Y105),$D105)*$R105","v":0}]
[null,{"$f":"unique_contracts!B107","v":0},{"$f":"unique_contracts!D107","v":0},{"$f":"unique_contracts!J107","v":0},{"$f":"unique_contracts!M107","v":0},{"$f":"unique_contracts!N107","v":0},{"$f":"unique_contracts!P107","v":0},{"$f":"unique_contracts!R107","v":0},{"$f":"unique_contracts!V107","v":0},{"$f":"unique_contracts!AB107","v":0},{"$f":"unique_contracts!AM107","v":0},{"$f":"unique_contracts!AN107","v":0},{"$f":"unique_contracts!AO107","v":0},{"$f":"unique_contracts!AP107","v":0},{"$f":"unique_contracts!AQ107","v":0},{"$f":"unique_contracts!AR107","v":0},{"$f":"unique_contracts!BP107","v":0},0,{"$f":"IFERROR(IF(AND(I106>0,E106=\"NotHybrid\"),_xlfn.CONCAT(MAX(MIN(ROUNDDOWN(I106/D106,0),8),4),INDEX(resources!$G:$G,MATCH(B106,resources!$A:$A,0))),INDEX(resources!$G:$G,MATCH(B106,resources!$A:$A,0))),\"n/a\")","v":"n/a"},"n/a","n/a",0,0,1,1,{"$f":"MIN((IFERROR(IF(AND($V106<=Z$1,$W106>=Z$1),INDEX(Reliability!E$23:E$50,MATCH($S106,Reliability!$C$23:$C$50,0)),0),0)*IF($T106=\"n/a\",$D106*$Y106,$G106)+IFERROR(IF(AND($V106<=Z$1,$W106>=Z$1),INDEX(Reliability!E$23:E$50,MATCH($T106,Reliability!$C$23:$C$50,0)),0),0)*$H106*$X106*$Y106),$D106)*$R106","v":0},{"$f":"MIN((IFERROR(IF(AND($V106<=AA$1,$W106>=AA$1),INDEX(Reliability!F$23:F$50,MATCH($S106,Reliability!$C$23:$C$50,0)),0),0)*IF($T106=\"n/a\",$D106*$Y106,$G106)+IFERROR(IF(AND($V106<=AA$1,$W106>=AA$1),INDEX(Reliability!F$23:F$50,MATCH($T106,Reliability!$C$23:$C$50,0)),0),0)*$H106*$X106*$Y106),$D106)*$R106","v":0},{"$f":"MIN((IFERROR(IF(AND($V106<=AB$1,$W106>=AB$1),INDEX(Reliability!G$23:G$50,MATCH($S106,Reliability!$C$23:$C$50,0)),0),0)*IF($T106=\"n/a\",$D106*$Y106,$G106)+IFERROR(IF(AND($V106<=AB$1,$W106>=AB$1),INDEX(Reliability!G$23:G$50,MATCH($T106,Reliability!$C$23:$C$50,0)),0),0)*$H106*$X106*$Y106),$D106)*$R106","v":0},{"$f":"MIN((IFERROR(IF(AND($V106<=AC$1,$W106>=AC$1),INDEX(Reliability!H$23:H$50,MATCH($S106,Reliability!$C$23:$C$50,0)),0),0)*IF($T106=\"n/a\",$D106*$Y106,$G106)+IFERROR(IF(AND($V106<=AC$1,$W106>=AC$1),INDEX(Reliability!H$23:H$50,MATCH($T106,Reliability!$C$23:$C$50,0)),0),0)*$H106*$X106*$Y106),$D106)*$R106","v":0},{"$f":"MIN((IFERROR(IF(AND($V106<=AD$1,$W106>=AD$1),INDEX(Reliability!I$23:I$50,MATCH($S106,Reliability!$C$23:$C$50,0)),0),0)*IF($T106=\"n/a\",$D106*$Y106,$G106)+IFERROR(IF(AND($V106<=AD$1,$W106>=AD$1),INDEX(Reliability!I$23:I$50,MATCH($T106,Reliability!$C$23:$C$50,0)),0),0)*$H106*$X106*$Y106),$D106)*$R106","v":0},{"$f":"MIN((IFERROR(IF(AND($V106<=AE$1,$W106>=AE$1),INDEX(Reliability!J$23:J$50,MATCH($S106,Reliability!$C$23:$C$50,0)),0),0)*IF($T106=\"n/a\",$D106*$Y106,$G106)+IFERROR(IF(AND($V106<=AE$1,$W106>=AE$1),INDEX(Reliability!J$23:J$50,MATCH($T106,Reliability!$C$23:$C$50,0)),0),0)*$H106*$X106*$Y106),$D106)*$R106","v":0},{"$f":"MIN((IFERROR(IF(AND($V106<=AF$1,$W106>=AF$1),INDEX(Reliability!K$23:K$50,MATCH($S106,Reliability!$C$23:$C$50,0)),0),0)*IF($T106=\"n/a\",$D106*$Y106,$G106)+IFERROR(IF(AND($V106<=AF$1,$W106>=AF$1),INDEX(Reliability!K$23:K$50,MATCH($T106,Reliability!$C$23:$C$50,0)),0),0)*$H106*$X106*$Y106),$D106)*$R106","v":0},{"$f":"MIN((IFERROR(IF(AND($V106<=AG$1,$W106>=AG$1),INDEX(Reliability!L$23:L$50,MATCH($S106,Reliability!$C$23:$C$50,0)),0),0)*IF($T106=\"n/a\",$D106*$Y106,$G106)+IFERROR(IF(AND($V106<=AG$1,$W106>=AG$1),INDEX(Reliability!L$23:L$50,MATCH($T106,Reliability!$C$23:$C$50,0)),0),0)*$H106*$X106*$Y106),$D106)*$R106","v":0},{"$f":"MIN((IFERROR(IF(AND($V106<=AH$1,$W106>=AH$1),INDEX(Reliability!M$23:M$50,MATCH($S106,Reliability!$C$23:$C$50,0)),0),0)*IF($T106=\"n/a\",$D106*$Y106,$G106)+IFERROR(IF(AND($V106<=AH$1,$W106>=AH$1),INDEX(Reliability!M$23:M$50,MATCH($T106,Reliability!$C$23:$C$50,0)),0),0)*$H106*$X106*$Y106),$D106)*$R106","v":0},{"$f":"MIN((IFERROR(IF(AND($V106<=AI$1,$W106>=AI$1),INDEX(Reliability!N$23:N$50,MATCH($S106,Reliability!$C$23:$C$50,0)),0),0)*IF($T106=\"n/a\",$D106*$Y106,$G106)+IFERROR(IF(AND($V106<=AI$1,$W106>=AI$1),INDEX(Reliability!N$23:N$50,MATCH($T106,Reliability!$C$23:$C$50,0)),0),0)*$H106*$X106*$Y106),$D106)*$R106","v":0},{"$f":"MIN((IFERROR(IF(AND($V106<=AJ$1,$W106>=AJ$1),INDEX(Reliability!O$23:O$50,MATCH($S106,Reliability!$C$23:$C$50,0)),0),0)*IF($T106=\"n/a\",$D106*$Y106,$G106)+IFERROR(IF(AND($V106<=AJ$1,$W106>=AJ$1),INDEX(Reliability!O$23:O$50,MATCH($T106,Reliability!$C$23:$C$50,0)),0),0)*$H106*$X106*$Y106),$D106)*$R106","v":0},{"$f":"MIN((IFERROR(IF(AND($V106<=AK$1,$W106>=AK$1),INDEX(Reliability!P$23:P$50,MATCH($S106,Reliability!$C$23:$C$50,0)),0),0)*IF($T106=\"n/a\",$D106*$Y106,$G106)+IFERROR(IF(AND($V106<=AK$1,$W106>=AK$1),INDEX(Reliability!P$23:P$50,MATCH($T106,Reliability!$C$23:$C$50,0)),0),0)*$H106*$X106*$Y106),$D106)*$R106","v":0}]
[null,{"$f":"unique_contracts!B108","v":0},{"$f":"unique_contracts!D108","v":0},{"$f":"unique_contracts!J108","v":0},{"$f":"unique_contracts!M108","v":0},{"$f":"unique_contracts!N108","v":0},{"$f":"unique_contracts!P108","v":0},{"$f":"unique_contracts!R108","v":0},{"$f":"unique_contracts!V108","v":0},{"$f":"unique_contracts!AB108","v":0},{"$f":"unique_contracts!AM108","v":0},{"$f":"unique_contracts!AN108","v":0},{"$f":"unique_contracts!AO108","v":0},{"$f":"unique_contracts!AP108","v":0},{"$f":"unique_contracts!AQ108","v":0},{"$f":"unique_contracts!AR108","v":0},{"$f":"unique_contracts!BP108","v":0},0,{"$f":"IFERROR(IF(AND(I107>0,E107=\"NotHybrid\"),_xlfn.CONCAT(MAX(MIN(ROUNDDOWN(I107/D107,0),8),4),INDEX(resources!$G:$G,MATCH(B107,resources!$A:$A,0))),INDEX(resources!$G:$G,MATCH(B107,resources!$A:$A,0))),\"n/a\")","v":"n/a"},"n/a","n/a",0,0,1,1,{"$f":"MIN((IFERROR(IF(AND($V107<=Z$1,$W107>=Z$1),INDEX(Reliability!E$23:E$50,MATCH($S107,Reliability!$C$23:$C$50,0)),0),0)*IF($T107=\"n/a\",$D107*$Y107,$G107)+IFERROR(IF(AND($V107<=Z$1,$W107>=Z$1),INDEX(Reliability!E$23:E$50,MATCH($T107,Reliability!$C$23:$C$50,0)),0),0)*$H107*$X107*$Y107),$D107)*$R107","v":0},{"$f":"MIN((IFERROR(IF(AND($V107<=AA$1,$W107>=AA$1),INDEX(Reliability!F$23:F$50,MATCH($S107,Reliability!$C$23:$C$50,0)),0),0)*IF($T107=\"n/a\",$D107*$Y107,$G107)+IFERROR(IF(AND($V107<=AA$1,$W107>=AA$1),INDEX(Reliability!F$23:F$50,MATCH($T107,Reliability!$C$23:$C$50,0)),0),0)*$H107*$X107*$Y107),$D107)*$R107","v":0},{"$f":"MIN((IFERROR(IF(AND($V107<=AB$1,$W107>=AB$1),INDEX(Reliability!G$23:G$50,MATCH($S107,Reliability!$C$23:$C$50,0)),0),0)*IF($T107=\"n/a\",$D107*$Y107,$G107)+IFERROR(IF(AND($V107<=AB$1,$W107>=AB$1),INDEX(Reliability!G$23:G$50,MATCH($T107,Reliability!$C$23:$C$50,0)),0),0)*$H107*$X107*$Y107),$D107)*$R107","v":0},{"$f":"MIN((IFERROR(IF(AND($V107<=AC$1,$W107>=AC$1),INDEX(Reliability!H$23:H$50,MATCH($S107,Reliability!$C$23:$C$50,0)),0),0)*IF($T107=\"n/a\",$D107*$Y107,$G107)+IFERROR(IF(AND($V107<=AC$1,$W107>=AC$1),INDEX(Reliability!H$23:H$50,MATCH($T107,Reliability!$C$23:$C$50,0)),0),0)*$H107*$X107*$Y107),$D107)*$R107","v":0},{"$f":"MIN((IFERROR(IF(AND($V107<=AD$1,$W107>=AD$1),INDEX(Reliability!I$23:I$50,MATCH($S107,Reliability!$C$23:$C$50,0)),0),0)*IF($T107=\"n/a\",$D107*$Y107,$G107)+IFERROR(IF(AND($V107<=AD$1,$W107>=AD$1),INDEX(Reliability!I$23:I$50,MATCH($T107,Reliability!$C$23:$C$50,0)),0),0)*$H107*$X107*$Y107),$D107)*$R107","v":0},{"$f":"MIN((IFERROR(IF(AND($V107<=AE$1,$W107>=AE$1),INDEX(Reliability!J$23:J$50,MATCH($S107,Reliability!$C$23:$C$50,0)),0),0)*IF($T107=\"n/a\",$D107*$Y107,$G107)+IFERROR(IF(AND($V107<=AE$1,$W107>=AE$1),INDEX(Reliability!J$23:J$50,MATCH($T107,Reliability!$C$23:$C$50,0)),0),0)*$H107*$X107*$Y107),$D107)*$R107","v":0},{"$f":"MIN((IFERROR(IF(AND($V107<=AF$1,$W107>=AF$1),INDEX(Reliability!K$23:K$50,MATCH($S107,Reliability!$C$23:$C$50,0)),0),0)*IF($T107=\"n/a\",$D107*$Y107,$G107)+IFERROR(IF(AND($V107<=AF$1,$W107>=AF$1),INDEX(Reliability!K$23:K$50,MATCH($T107,Reliability!$C$23:$C$50,0)),0),0)*$H107*$X107*$Y107),$D107)*$R107","v":0},{"$f":"MIN((IFERROR(IF(AND($V107<=AG$1,$W107>=AG$1),INDEX(Reliability!L$23:L$50,MATCH($S107,Reliability!$C$23:$C$50,0)),0),0)*IF($T107=\"n/a\",$D107*$Y107,$G107)+IFERROR(IF(AND($V107<=AG$1,$W107>=AG$1),INDEX(Reliability!L$23:L$50,MATCH($T107,Reliability!$C$23:$C$50,0)),0),0)*$H107*$X107*$Y107),$D107)*$R107","v":0},{"$f":"MIN((IFERROR(IF(AND($V107<=AH$1,$W107>=AH$1),INDEX(Reliability!M$23:M$50,MATCH($S107,Reliability!$C$23:$C$50,0)),0),0)*IF($T107=\"n/a\",$D107*$Y107,$G107)+IFERROR(IF(AND($V107<=AH$1,$W107>=AH$1),INDEX(Reliability!M$23:M$50,MATCH($T107,Reliability!$C$23:$C$50,0)),0),0)*$H107*$X107*$Y107),$D107)*$R107","v":0},{"$f":"MIN((IFERROR(IF(AND($V107<=AI$1,$W107>=AI$1),INDEX(Reliability!N$23:N$50,MATCH($S107,Reliability!$C$23:$C$50,0)),0),0)*IF($T107=\"n/a\",$D107*$Y107,$G107)+IFERROR(IF(AND($V107<=AI$1,$W107>=AI$1),INDEX(Reliability!N$23:N$50,MATCH($T107,Reliability!$C$23:$C$50,0)),0),0)*$H107*$X107*$Y107),$D107)*$R107","v":0},{"$f":"MIN((IFERROR(IF(AND($V107<=AJ$1,$W107>=AJ$1),INDEX(Reliability!O$23:O$50,MATCH($S107,Reliability!$C$23:$C$50,0)),0),0)*IF($T107=\"n/a\",$D107*$Y107,$G107)+IFERROR(IF(AND($V107<=AJ$1,$W107>=AJ$1),INDEX(Reliability!O$23:O$50,MATCH($T107,Reliability!$C$23:$C$50,0)),0),0)*$H107*$X107*$Y107),$D107)*$R107","v":0},{"$f":"MIN((IFERROR(IF(AND($V107<=AK$1,$W107>=AK$1),INDEX(Reliability!P$23:P$50,MATCH($S107,Reliability!$C$23:$C$50,0)),0),0)*IF($T107=\"n/a\",$D107*$Y107,$G107)+IFERROR(IF(AND($V107<=AK$1,$W107>=AK$1),INDEX(Reliability!P$23:P$50,MATCH($T107,Reliability!$C$23:$C$50,0)),0),0)*$H107*$X107*$Y107),$D107)*$R107","v":0}]
[null,{"$f":"unique_contracts!B109","v":0},{"$f":"unique_contracts!D109","v":0},{"$f":"unique_contracts!J109","v":0},{"$f":"unique_contracts!M109","v":0},{"$f":"unique_contracts!N109","v":0},{"$f":"unique_contracts!P109","v":0},{"$f":"unique_contracts!R109","v":0},{"$f":"unique_contracts!V109","v":0},{"$f":"unique_contracts!AB109","v":0},{"$f":"unique_contracts!AM109","v":0},{"$f":"unique_contracts!AN109","v":0},{"$f":"unique_contracts!AO109","v":0},{"$f":"unique_contracts!AP109","v":0},{"$f":"unique_contracts!AQ109","v":0},{"$f":"unique_contracts!AR109","v":0},{"$f":"unique_contracts!BP109","v":0},0,{"$f":"IFERROR(IF(AND(I108>0,E108=\"NotHybrid\"),_xlfn.CONCAT(MAX(MIN(ROUNDDOWN(I108/D108,0),8),4),INDEX(resources!$G:$G,MATCH(B108,resources!$A:$A,0))),INDEX(resources!$G:$G,MATCH(B108,resources!$A:$A,0))),\"n/a\")","v":"n/a"},"n/a","n/a",0,0,1,1,{"$f":"MIN((IFERROR(IF(AND($V108<=Z$1,$W108>=Z$1),INDEX(Reliability!E$23:E$50,MATCH($S108,Reliability!$C$23:$C$50,0)),0),0)*IF($T108=\"n/a\",$D108*$Y108,$G108)+IFERROR(IF(AND($V108<=Z$1,$W108>=Z$1),INDEX(Reliability!E$23:E$50,MATCH($T108,Reliability!$C$23:$C$50,0)),0),0)*$H108*$X108*$Y108),$D108)*$R108","v":0},{"$f":"MIN((IFERROR(IF(AND($V108<=AA$1,$W108>=AA$1),INDEX(Reliability!F$23:F$50,MATCH($S108,Reliability!$C$23:$C$50,0)),0),0)*IF($T108=\"n/a\",$D108*$Y108,$G108)+IFERROR(IF(AND($V108<=AA$1,$W108>=AA$1),INDEX(Reliability!F$23:F$50,MATCH($T108,Reliability!$C$23:$C$50,0)),0),0)*$H108*$X108*$Y108),$D108)*$R108","v":0},{"$f":"MIN((IFERROR(IF(AND($V108<=AB$1,$W108>=AB$1),INDEX(Reliability!G$23:G$50,MATCH($S108,Reliability!$C$23:$C$50,0)),0),0)*IF($T108=\"n/a\",$D108*$Y108,$G108)+IFERROR(IF(AND($V108<=AB$1,$W108>=AB$1),INDEX(Reliability!G$23:G$50,MATCH($T108,Reliability!$C$23:$C$50,0)),0),0)*$H108*$X108*$Y108),$D108)*$R108","v":0},{"$f":"MIN((IFERROR(IF(AND($V108<=AC$1,$W108>=AC$1),INDEX(Reliability!H$23:H$50,MATCH($S108,Reliability!$C$23:$C$50,0)),0),0)*IF($T108=\"n/a\",$D108*$Y108,$G108)+IFERROR(IF(AND($V108<=AC$1,$W108>=AC$1),INDEX(Reliability!H$23:H$50,MATCH($T108,Reliability!$C$23:$C$50,0)),0),0)*$H108*$X108*$Y108),$D108)*$R108","v":0},{"$f":"MIN((IFERROR(IF(AND($V108<=AD$1,$W108>=AD$1),INDEX(Reliability!I$23:I$50,MATCH($S108,Reliability!$C$23:$C$50,0)),0),0)*IF($T108=\"n/a\",$D108*$Y108,$G108)+IFERROR(IF(AND($V108<=AD$1,$W108>=AD$1),INDEX(Reliability!I$23:I$50,MATCH($T108,Reliability!$C$23:$C$50,0)),0),0)*$H108*$X108*$Y108),$D108)*$R108","v":0},{"$f":"MIN((IFERROR(IF(AND($V108<=AE$1,$W108>=AE$1),INDEX(Reliability!J$23:J$50,MATCH($S108,Reliability!$C$23:$C$50,0)),0),0)*IF($T108=\"n/a\",$D108*$Y108,$G108)+IFERROR(IF(AND($V108<=AE$1,$W108>=AE$1),INDEX(Reliability!J$23:J$50,MATCH($T108,Reliability!$C$23:$C$50,0)),0),0)*$H108*$X108*$Y108),$D108)*$R108","v":0},{"$f":"MIN((IFERROR(IF(AND($V108<=AF$1,$W108>=AF$1),INDEX(Reliability!K$23:K$50,MATCH($S108,Reliability!$C$23:$C$50,0)),0),0)*IF($T108=\"n/a\",$D108*$Y108,$G108)+IFERROR(IF(AND($V108<=AF$1,$W108>=AF$1),INDEX(Reliability!K$23:K$50,MATCH($T108,Reliability!$C$23:$C$50,0)),0),0)*$H108*$X108*$Y108),$D108)*$R108","v":0},{"$f":"MIN((IFERROR(IF(AND($V108<=AG$1,$W108>=AG$1),INDEX(Reliability!L$23:L$50,MATCH($S108,Reliability!$C$23:$C$50,0)),0),0)*IF($T108=\"n/a\",$D108*$Y108,$G108)+IFERROR(IF(AND($V108<=AG$1,$W108>=AG$1),INDEX(Reliability!L$23:L$50,MATCH($T108,Reliability!$C$23:$C$50,0)),0),0)*$H108*$X108*$Y108),$D108)*$R108","v":0},{"$f":"MIN((IFERROR(IF(AND($V108<=AH$1,$W108>=AH$1),INDEX(Reliability!M$23:M$50,MATCH($S108,Reliability!$C$23:$C$50,0)),0),0)*IF($T108=\"n/a\",$D108*$Y108,$G108)+IFERROR(IF(AND($V108<=AH$1,$W108>=AH$1),INDEX(Reliability!M$23:M$50,MATCH($T108,Reliability!$C$23:$C$50,0)),0),0)*$H108*$X108*$Y108),$D108)*$R108","v":0},{"$f":"MIN((IFERROR(IF(AND($V108<=AI$1,$W108>=AI$1),INDEX(Reliability!N$23:N$50,MATCH($S108,Reliability!$C$23:$C$50,0)),0),0)*IF($T108=\"n/a\",$D108*$Y108,$G108)+IFERROR(IF(AND($V108<=AI$1,$W108>=AI$1),INDEX(Reliability!N$23:N$50,MATCH($T108,Reliability!$C$23:$C$50,0)),0),0)*$H108*$X108*$Y108),$D108)*$R108","v":0},{"$f":"MIN((IFERROR(IF(AND($V108<=AJ$1,$W108>=AJ$1),INDEX(Reliability!O$23:O$50,MATCH($S108,Reliability!$C$23:$C$50,0)),0),0)*IF($T108=\"n/a\",$D108*$Y108,$G108)+IFERROR(IF(AND($V108<=AJ$1,$W108>=AJ$1),INDEX(Reliability!O$23:O$50,MATCH($T108,Reliability!$C$23:$C$50,0)),0),0)*$H108*$X108*$Y108),$D108)*$R108","v":0},{"$f":"MIN((IFERROR(IF(AND($V108<=AK$1,$W108>=AK$1),INDEX(Reliability!P$23:P$50,MATCH($S108,Reliability!$C$23:$C$50,0)),0),0)*IF($T108=\"n/a\",$D108*$Y108,$G108)+IFERROR(IF(AND($V108<=AK$1,$W108>=AK$1),INDEX(Reliability!P$23:P$50,MATCH($T108,Reliability!$C$23:$C$50,0)),0),0)*$H108*$X108*$Y108),$D108)*$R108","v":0}]
[null,{"$f":"unique_contracts!B110","v":0},{"$f":"unique_contracts!D110","v":0},{"$f":"unique_contracts!J110","v":0},{"$f":"unique_contracts!M110","v":0},{"$f":"unique_contracts!N110","v":0},{"$f":"unique_contracts!P110","v":0},{"$f":"unique_contracts!R110","v":0},{"$f":"unique_contracts!V110","v":0},{"$f":"unique_contracts!AB110","v":0},{"$f":"unique_contracts!AM110","v":0},{"$f":"unique_contracts!AN110","v":0},{"$f":"unique_contracts!AO110","v":0},{"$f":"unique_contracts!AP110","v":0},{"$f":"unique_contracts!AQ110","v":0},{"$f":"unique_contracts!AR110","v":0},{"$f":"unique_contracts!BP110","v":0},0,{"$f":"IFERROR(IF(AND(I109>0,E109=\"NotHybrid\"),_xlfn.CONCAT(MAX(MIN(ROUNDDOWN(I109/D109,0),8),4),INDEX(resources!$G:$G,MATCH(B109,resources!$A:$A,0))),INDEX(resources!$G:$G,MATCH(B109,resources!$A:$A,0))),\"n/a\")","v":"n/a"},"n/a","n/a",0,0,1,1,{"$f":"MIN((IFERROR(IF(AND($V109<=Z$1,$W109>=Z$1),INDEX(Reliability!E$23:E$50,MATCH($S109,Reliability!$C$23:$C$50,0)),0),0)*IF($T109=\"n/a\",$D109*$Y109,$G109)+IFERROR(IF(AND($V109<=Z$1,$W109>=Z$1),INDEX(Reliability!E$23:E$50,MATCH($T109,Reliability!$C$23:$C$50,0)),0),0)*$H109*$X109*$Y109),$D109)*$R109","v":0},{"$f":"MIN((IFERROR(IF(AND($V109<=AA$1,$W109>=AA$1),INDEX(Reliability!F$23:F$50,MATCH($S109,Reliability!$C$23:$C$50,0)),0),0)*IF($T109=\"n/a\",$D109*$Y109,$G109)+IFERROR(IF(AND($V109<=AA$1,$W109>=AA$1),INDEX(Reliability!F$23:F$50,MATCH($T109,Reliability!$C$23:$C$50,0)),0),0)*$H109*$X109*$Y109),$D109)*$R109","v":0},{"$f":"MIN((IFERROR(IF(AND($V109<=AB$1,$W109>=AB$1),INDEX(Reliability!G$23:G$50,MATCH($S109,Reliability!$C$23:$C$50,0)),0),0)*IF($T109=\"n/a\",$D109*$Y109,$G109)+IFERROR(IF(AND($V109<=AB$1,$W109>=AB$1),INDEX(Reliability!G$23:G$50,MATCH($T109,Reliability!$C$23:$C$50,0)),0),0)*$H109*$X109*$Y109),$D109)*$R109","v":0},{"$f":"MIN((IFERROR(IF(AND($V109<=AC$1,$W109>=AC$1),INDEX(Reliability!H$23:H$50,MATCH($S109,Reliability!$C$23:$C$50,0)),0),0)*IF($T109=\"n/a\",$D109*$Y109,$G109)+IFERROR(IF(AND($V109<=AC$1,$W109>=AC$1),INDEX(Reliability!H$23:H$50,MATCH($T109,Reliability!$C$23:$C$50,0)),0),0)*$H109*$X109*$Y109),$D109)*$R109","v":0},{"$f":"MIN((IFERROR(IF(AND($V109<=AD$1,$W109>=AD$1),INDEX(Reliability!I$23:I$50,MATCH($S109,Reliability!$C$23:$C$50,0)),0),0)*IF($T109=\"n/a\",$D109*$Y109,$G109)+IFERROR(IF(AND($V109<=AD$1,$W109>=AD$1),INDEX(Reliability!I$23:I$50,MATCH($T109,Reliability!$C$23:$C$50,0)),0),0)*$H109*$X109*$Y109),$D109)*$R109","v":0},{"$f":"MIN((IFERROR(IF(AND($V109<=AE$1,$W109>=AE$1),INDEX(Reliability!J$23:J$50,MATCH($S109,Reliability!$C$23:$C$50,0)),0),0)*IF($T109=\"n/a\",$D109*$Y109,$G109)+IFERROR(IF(AND($V109<=AE$1,$W109>=AE$1),INDEX(Reliability!J$23:J$50,MATCH($T109,Reliability!$C$23:$C$50,0)),0),0)*$H109*$X109*$Y109),$D109)*$R109","v":0},{"$f":"MIN((IFERROR(IF(AND($V109<=AF$1,$W109>=AF$1),INDEX(Reliability!K$23:K$50,MATCH($S109,Reliability!$C$23:$C$50,0)),0),0)*IF($T109=\"n/a\",$D109*$Y109,$G109)+IFERROR(IF(AND($V109<=AF$1,$W109>=AF$1),INDEX(Reliability!K$23:K$50,MATCH($T109,Reliability!$C$23:$C$50,0)),0),0)*$H109*$X109*$Y109),$D109)*$R109","v":0},{"$f":"MIN((IFERROR(IF(AND($V109<=AG$1,$W109>=AG$1),INDEX(Reliability!L$23:L$50,MATCH($S109,Reliability!$C$23:$C$50,0)),0),0)*IF($T109=\"n/a\",$D109*$Y109,$G109)+IFERROR(IF(AND($V109<=AG$1,$W109>=AG$1),INDEX(Reliability!L$23:L$50,MATCH($T109,Reliability!$C$23:$C$50,0)),0),0)*$H109*$X109*$Y109),$D109)*$R109","v":0},{"$f":"MIN((IFERROR(IF(AND($V109<=AH$1,$W109>=AH$1),INDEX(Reliability!M$23:M$50,MATCH($S109,Reliability!$C$23:$C$50,0)),0),0)*IF($T109=\"n/a\",$D109*$Y109,$G109)+IFERROR(IF(AND($V109<=AH$1,$W109>=AH$1),INDEX(Reliability!M$23:M$50,MATCH($T109,Reliability!$C$23:$C$50,0)),0),0)*$H109*$X109*$Y109),$D109)*$R109","v":0},{"$f":"MIN((IFERROR(IF(AND($V109<=AI$1,$W109>=AI$1),INDEX(Reliability!N$23:N$50,MATCH($S109,Reliability!$C$23:$C$50,0)),0),0)*IF($T109=\"n/a\",$D109*$Y109,$G109)+IFERROR(IF(AND($V109<=AI$1,$W109>=AI$1),INDEX(Reliability!N$23:N$50,MATCH($T109,Reliability!$C$23:$C$50,0)),0),0)*$H109*$X109*$Y109),$D109)*$R109","v":0},{"$f":"MIN((IFERROR(IF(AND($V109<=AJ$1,$W109>=AJ$1),INDEX(Reliability!O$23:O$50,MATCH($S109,Reliability!$C$23:$C$50,0)),0),0)*IF($T109=\"n/a\",$D109*$Y109,$G109)+IFERROR(IF(AND($V109<=AJ$1,$W109>=AJ$1),INDEX(Reliability!O$23:O$50,MATCH($T109,Reliability!$C$23:$C$50,0)),0),0)*$H109*$X109*$Y109),$D109)*$R109","v":0},{"$f":"MIN((IFERROR(IF(AND($V109<=AK$1,$W109>=AK$1),INDEX(Reliability!P$23:P$50,MATCH($S109,Reliability!$C$23:$C$50,0)),0),0)*IF($T109=\"n/a\",$D109*$Y109,$G109)+IFERROR(IF(AND($V109<=AK$1,$W109>=AK$1),INDEX(Reliability!P$23:P$50,MATCH($T109,Reliability!$C$23:$C$50,0)),0),0)*$H109*$X109*$Y109),$D109)*$R109","v":0}]
[null,{"$f":"unique_contracts!B111","v":0},{"$f":"unique_contracts!D111","v":0},{"$f":"unique_contracts!J111","v":0},{"$f":"unique_contracts!M111","v":0},{"$f":"unique_contracts!N111","v":0},{"$f":"unique_contracts!P111","v":0},{"$f":"unique_contracts!R111","v":0},{"$f":"unique_contracts!V111","v":0},{"$f":"unique_contracts!AB111","v":0},{"$f":"unique_contracts!AM111","v":0},{"$f":"unique_contracts!AN111","v":0},{"$f":"unique_contracts!AO111","v":0},{"$f":"unique_contracts!AP111","v":0},{"$f":"unique_contracts!AQ111","v":0},{"$f":"unique_contracts!AR111","v":0},{"$f":"unique_contracts!BP111","v":0},0,{"$f":"IFERROR(IF(AND(I110>0,E110=\"NotHybrid\"),_xlfn.CONCAT(MAX(MIN(ROUNDDOWN(I110/D110,0),8),4),INDEX(resources!$G:$G,MATCH(B110,resources!$A:$A,0))),INDEX(resources!$G:$G,MATCH(B110,resources!$A:$A,0))),\"n/a\")","v":"n/a"},"n/a","n/a",0,0,1,1,{"$f":"MIN((IFERROR(IF(AND($V110<=Z$1,$W110>=Z$1),INDEX(Reliability!E$23:E$50,MATCH($S110,Reliability!$C$23:$C$50,0)),0),0)*IF($T110=\"n/a\",$D110*$Y110,$G110)+IFERROR(IF(AND($V110<=Z$1,$W110>=Z$1),INDEX(Reliability!E$23:E$50,MATCH($T110,Reliability!$C$23:$C$50,0)),0),0)*$H110*$X110*$Y110),$D110)*$R110","v":0},{"$f":"MIN((IFERROR(IF(AND($V110<=AA$1,$W110>=AA$1),INDEX(Reliability!F$23:F$50,MATCH($S110,Reliability!$C$23:$C$50,0)),0),0)*IF($T110=\"n/a\",$D110*$Y110,$G110)+IFERROR(IF(AND($V110<=AA$1,$W110>=AA$1),INDEX(Reliability!F$23:F$50,MATCH($T110,Reliability!$C$23:$C$50,0)),0),0)*$H110*$X110*$Y110),$D110)*$R110","v":0},{"$f":"MIN((IFERROR(IF(AND($V110<=AB$1,$W110>=AB$1),INDEX(Reliability!G$23:G$50,MATCH($S110,Reliability!$C$23:$C$50,0)),0),0)*IF($T110=\"n/a\",$D110*$Y110,$G110)+IFERROR(IF(AND($V110<=AB$1,$W110>=AB$1),INDEX(Reliability!G$23:G$50,MATCH($T110,Reliability!$C$23:$C$50,0)),0),0)*$H110*$X110*$Y110),$D110)*$R110","v":0},{"$f":"MIN((IFERROR(IF(AND($V110<=AC$1,$W110>=AC$1),INDEX(Reliability!H$23:H$50,MATCH($S110,Reliability!$C$23:$C$50,0)),0),0)*IF($T110=\"n/a\",$D110*$Y110,$G110)+IFERROR(IF(AND($V110<=AC$1,$W110>=AC$1),INDEX(Reliability!H$23:H$50,MATCH($T110,Reliability!$C$23:$C$50,0)),0),0)*$H110*$X110*$Y110),$D110)*$R110","v":0},{"$f":"MIN((IFERROR(IF(AND($V110<=AD$1,$W110>=AD$1),INDEX(Reliability!I$23:I$50,MATCH($S110,Reliability!$C$23:$C$50,0)),0),0)*IF($T110=\"n/a\",$D110*$Y110,$G110)+IFERROR(IF(AND($V110<=AD$1,$W110>=AD$1),INDEX(Reliability!I$23:I$50,MATCH($T110,Reliability!$C$23:$C$50,0)),0),0)*$H110*$X110*$Y110),$D110)*$R110","v":0},{"$f":"MIN((IFERROR(IF(AND($V110<=AE$1,$W110>=AE$1),INDEX(Reliability!J$23:J$50,MATCH($S110,Reliability!$C$23:$C$50,0)),0),0)*IF($T110=\"n/a\",$D110*$Y110,$G110)+IFERROR(IF(AND($V110<=AE$1,$W110>=AE$1),INDEX(Reliability!J$23:J$50,MATCH($T110,Reliability!$C$23:$C$50,0)),0),0)*$H110*$X110*$Y110),$D110)*$R110","v":0},{"$f":"MIN((IFERROR(IF(AND($V110<=AF$1,$W110>=AF$1),INDEX(Reliability!K$23:K$50,MATCH($S110,Reliability!$C$23:$C$50,0)),0),0)*IF($T110=\"n/a\",$D110*$Y110,$G110)+IFERROR(IF(AND($V110<=AF$1,$W110>=AF$1),INDEX(Reliability!K$23:K$50,MATCH($T110,Reliability!$C$23:$C$50,0)),0),0)*$H110*$X110*$Y110),$D110)*$R110","v":0},{"$f":"MIN((IFERROR(IF(AND($V110<=AG$1,$W110>=AG$1),INDEX(Reliability!L$23:L$50,MATCH($S110,Reliability!$C$23:$C$50,0)),0),0)*IF($T110=\"n/a\",$D110*$Y110,$G110)+IFERROR(IF(AND($V110<=AG$1,$W110>=AG$1),INDEX(Reliability!L$23:L$50,MATCH($T110,Reliability!$C$23:$C$50,0)),0),0)*$H110*$X110*$Y110),$D110)*$R110","v":0},{"$f":"MIN((IFERROR(IF(AND($V110<=AH$1,$W110>=AH$1),INDEX(Reliability!M$23:M$50,MATCH($S110,Reliability!$C$23:$C$50,0)),0),0)*IF($T110=\"n/a\",$D110*$Y110,$G110)+IFERROR(IF(AND($V110<=AH$1,$W110>=AH$1),INDEX(Reliability!M$23:M$50,MATCH($T110,Reliability!$C$23:$C$50,0)),0),0)*$H110*$X110*$Y110),$D110)*$R110","v":0},{"$f":"MIN((IFERROR(IF(AND($V110<=AI$1,$W110>=AI$1),INDEX(Reliability!N$23:N$50,MATCH($S110,Reliability!$C$23:$C$50,0)),0),0)*IF($T110=\"n/a\",$D110*$Y110,$G110)+IFERROR(IF(AND($V110<=AI$1,$W110>=AI$1),INDEX(Reliability!N$23:N$50,MATCH($T110,Reliability!$C$23:$C$50,0)),0),0)*$H110*$X110*$Y110),$D110)*$R110","v":0},{"$f":"MIN((IFERROR(IF(AND($V110<=AJ$1,$W110>=AJ$1),INDEX(Reliability!O$23:O$50,MATCH($S110,Reliability!$C$23:$C$50,0)),0),0)*IF($T110=\"n/a\",$D110*$Y110,$G110)+IFERROR(IF(AND($V110<=AJ$1,$W110>=AJ$1),INDEX(Reliability!O$23:O$50,MATCH($T110,Reliability!$C$23:$C$50,0)),0),0)*$H110*$X110*$Y110),$D110)*$R110","v":0},{"$f":"MIN((IFERROR(IF(AND($V110<=AK$1,$W110>=AK$1),INDEX(Reliability!P$23:P$50,MATCH($S110,Reliability!$C$23:$C$50,0)),0),0)*IF($T110=\"n/a\",$D110*$Y110,$G110)+IFERROR(IF(AND($V110<=AK$1,$W110>=AK$1),INDEX(Reliability!P$23:P$50,MATCH($T110,Reliability!$C$23:$C$50,0)),0),0)*$H110*$X110*$Y110),$D110)*$R110","v":0}]
[null,{"$f":"unique_contracts!B112","v":0},{"$f":"unique_contracts!D112","v":0},{"$f":"unique_contracts!J112","v":0},{"$f":"unique_contracts!M112","v":0},{"$f":"unique_contracts!N112","v":0},{"$f":"unique_contracts!P112","v":0},{"$f":"unique_contracts!R112","v":0},{"$f":"unique_contracts!V112","v":0},{"$f":"unique_contracts!AB112","v":0},{"$f":"unique_contracts!AM112","v":0},{"$f":"unique_contracts!AN112","v":0},{"$f":"unique_contracts!AO112","v":0},{"$f":"unique_contracts!AP112","v":0},{"$f":"unique_contracts!AQ112","v":0},{"$f":"unique_contracts!AR112","v":0},{"$f":"unique_contracts!BP112","v":0},0,{"$f":"IFERROR(IF(AND(I111>0,E111=\"NotHybrid\"),_xlfn.CONCAT(MAX(MIN(ROUNDDOWN(I111/D111,0),8),4),INDEX(resources!$G:$G,MATCH(B111,resources!$A:$A,0))),INDEX(resources!$G:$G,MATCH(B111,resources!$A:$A,0))),\"n/a\")","v":"n/a"},"n/a","n/a",0,0,1,1,{"$f":"MIN((IFERROR(IF(AND($V111<=Z$1,$W111>=Z$1),INDEX(Reliability!E$23:E$50,MATCH($S111,Reliability!$C$23:$C$50,0)),0),0)*IF($T111=\"n/a\",$D111*$Y111,$G111)+IFERROR(IF(AND($V111<=Z$1,$W111>=Z$1),INDEX(Reliability!E$23:E$50,MATCH($T111,Reliability!$C$23:$C$50,0)),0),0)*$H111*$X111*$Y111),$D111)*$R111","v":0},{"$f":"MIN((IFERROR(IF(AND($V111<=AA$1,$W111>=AA$1),INDEX(Reliability!F$23:F$50,MATCH($S111,Reliability!$C$23:$C$50,0)),0),0)*IF($T111=\"n/a\",$D111*$Y111,$G111)+IFERROR(IF(AND($V111<=AA$1,$W111>=AA$1),INDEX(Reliability!F$23:F$50,MATCH($T111,Reliability!$C$23:$C$50,0)),0),0)*$H111*$X111*$Y111),$D111)*$R111","v":0},{"$f":"MIN((IFERROR(IF(AND($V111<=AB$1,$W111>=AB$1),INDEX(Reliability!G$23:G$50,MATCH($S111,Reliability!$C$23:$C$50,0)),0),0)*IF($T111=\"n/a\",$D111*$Y111,$G111)+IFERROR(IF(AND($V111<=AB$1,$W111>=AB$1),INDEX(Reliability!G$23:G$50,MATCH($T111,Reliability!$C$23:$C$50,0)),0),0)*$H111*$X111*$Y111),$D111)*$R111","v":0},{"$f":"MIN((IFERROR(IF(AND($V111<=AC$1,$W111>=AC$1),INDEX(Reliability!H$23:H$50,MATCH($S111,Reliability!$C$23:$C$50,0)),0),0)*IF($T111=\"n/a\",$D111*$Y111,$G111)+IFERROR(IF(AND($V111<=AC$1,$W111>=AC$1),INDEX(Reliability!H$23:H$50,MATCH($T111,Reliability!$C$23:$C$50,0)),0),0)*$H111*$X111*$Y111),$D111)*$R111","v":0},{"$f":"MIN((IFERROR(IF(AND($V111<=AD$1,$W111>=AD$1),INDEX(Reliability!I$23:I$50,MATCH($S111,Reliability!$C$23:$C$50,0)),0),0)*IF($T111=\"n/a\",$D111*$Y111,$G111)+IFERROR(IF(AND($V111<=AD$1,$W111>=AD$1),INDEX(Reliability!I$23:I$50,MATCH($T111,Reliability!$C$23:$C$50,0)),0),0)*$H111*$X111*$Y111),$D111)*$R111","v":0},{"$f":"MIN((IFERROR(IF(AND($V111<=AE$1,$W111>=AE$1),INDEX(Reliability!J$23:J$50,MATCH($S111,Reliability!$C$23:$C$50,0)),0),0)*IF($T111=\"n/a\",$D111*$Y111,$G111)+IFERROR(IF(AND($V111<=AE$1,$W111>=AE$1),INDEX(Reliability!J$23:J$50,MATCH($T111,Reliability!$C$23:$C$50,0)),0),0)*$H111*$X111*$Y111),$D111)*$R111","v":0},{"$f":"MIN((IFERROR(IF(AND($V111<=AF$1,$W111>=AF$1),INDEX(Reliability!K$23:K$50,MATCH($S111,Reliability!$C$23:$C$50,0)),0),0)*IF($T111=\"n/a\",$D111*$Y111,$G111)+IFERROR(IF(AND($V111<=AF$1,$W111>=AF$1),INDEX(Reliability!K$23:K$50,MATCH($T111,Reliability!$C$23:$C$50,0)),0),0)*$H111*$X111*$Y111),$D111)*$R111","v":0},{"$f":"MIN((IFERROR(IF(AND($V111<=AG$1,$W111>=AG$1),INDEX(Reliability!L$23:L$50,MATCH($S111,Reliability!$C$23:$C$50,0)),0),0)*IF($T111=\"n/a\",$D111*$Y111,$G111)+IFERROR(IF(AND($V111<=AG$1,$W111>=AG$1),INDEX(Reliability!L$23:L$50,MATCH($T111,Reliability!$C$23:$C$50,0)),0),0)*$H111*$X111*$Y111),$D111)*$R111","v":0},{"$f":"MIN((IFERROR(IF(AND($V111<=AH$1,$W111>=AH$1),INDEX(Reliability!M$23:M$50,MATCH($S111,Reliability!$C$23:$C$50,0)),0),0)*IF($T111=\"n/a\",$D111*$Y111,$G111)+IFERROR(IF(AND($V111<=AH$1,$W111>=AH$1),INDEX(Reliability!M$23:M$50,MATCH($T111,Reliability!$C$23:$C$50,0)),0),0)*$H111*$X111*$Y111),$D111)*$R111","v":0},{"$f":"MIN((IFERROR(IF(AND($V111<=AI$1,$W111>=AI$1),INDEX(Reliability!N$23:N$50,MATCH($S111,Reliability!$C$23:$C$50,0)),0),0)*IF($T111=\"n/a\",$D111*$Y111,$G111)+IFERROR(IF(AND($V111<=AI$1,$W111>=AI$1),INDEX(Reliability!N$23:N$50,MATCH($T111,Reliability!$C$23:$C$50,0)),0),0)*$H111*$X111*$Y111),$D111)*$R111","v":0},{"$f":"MIN((IFERROR(IF(AND($V111<=AJ$1,$W111>=AJ$1),INDEX(Reliability!O$23:O$50,MATCH($S111,Reliability!$C$23:$C$50,0)),0),0)*IF($T111=\"n/a\",$D111*$Y111,$G111)+IFERROR(IF(AND($V111<=AJ$1,$W111>=AJ$1),INDEX(Reliability!O$23:O$50,MATCH($T111,Reliability!$C$23:$C$50,0)),0),0)*$H111*$X111*$Y111),$D111)*$R111","v":0},{"$f":"MIN((IFERROR(IF(AND($V111<=AK$1,$W111>=AK$1),INDEX(Reliability!P$23:P$50,MATCH($S111,Reliability!$C$23:$C$50,0)),0),0)*IF($T111=\"n/a\",$D111*$Y111,$G111)+IFERROR(IF(AND($V111<=AK$1,$W111>=AK$1),INDEX(Reliability!P$23:P$50,MATCH($T111,Reliability!$C$23:$C$50,0)),0),0)*$H111*$X111*$Y111),$D111)*$R111","v":0}]
[null,{"$f":"unique_contracts!B113","v":0},{"$f":"unique_contracts!D113","v":0},{"$f":"unique_contracts!J113","v":0},{"$f":"unique_contracts!M113","v":0},{"$f":"unique_contracts!N113","v":0},{"$f":"unique_contracts!P113","v":0},{"$f":"unique_contracts!R113","v":0},{"$f":"unique_contracts!V113","v":0},{"$f":"unique_contracts!AB113","v":0},{"$f":"unique_contracts!AM113","v":0},{"$f":"unique_contracts!AN113","v":0},{"$f":"unique_contracts!AO113","v":0},{"$f":"unique_contracts!AP113","v":0},{"$f":"unique_contracts!AQ113","v":0},{"$f":"unique_contracts!AR113","v":0},{"$f":"unique_contracts!BP113","v":0},0,{"$f":"IFERROR(IF(AND(I112>0,E112=\"NotHybrid\"),_xlfn.CONCAT(MAX(MIN(ROUNDDOWN(I112/D112,0),8),4),INDEX(resources!$G:$G,MATCH(B112,resources!$A:$A,0))),INDEX(resources!$G:$G,MATCH(B112,resources!$A:$A,0))),\"n/a\")","v":"n/a"},"n/a","n/a",0,0,1,1,{"$f":"MIN((IFERROR(IF(AND($V112<=Z$1,$W112>=Z$1),INDEX(Reliability!E$23:E$50,MATCH($S112,Reliability!$C$23:$C$50,0)),0),0)*IF($T112=\"n/a\",$D112*$Y112,$G112)+IFERROR(IF(AND($V112<=Z$1,$W112>=Z$1),INDEX(Reliability!E$23:E$50,MATCH($T112,Reliability!$C$23:$C$50,0)),0),0)*$H112*$X112*$Y112),$D112)*$R112","v":0},{"$f":"MIN((IFERROR(IF(AND($V112<=AA$1,$W112>=AA$1),INDEX(Reliability!F$23:F$50,MATCH($S112,Reliability!$C$23:$C$50,0)),0),0)*IF($T112=\"n/a\",$D112*$Y112,$G112)+IFERROR(IF(AND($V112<=AA$1,$W112>=AA$1),INDEX(Reliability!F$23:F$50,MATCH($T112,Reliability!$C$23:$C$50,0)),0),0)*$H112*$X112*$Y112),$D112)*$R112","v":0},{"$f":"MIN((IFERROR(IF(AND($V112<=AB$1,$W112>=AB$1),INDEX(Reliability!G$23:G$50,MATCH($S112,Reliability!$C$23:$C$50,0)),0),0)*IF($T112=\"n/a\",$D112*$Y112,$G112)+IFERROR(IF(AND($V112<=AB$1,$W112>=AB$1),INDEX(Reliability!G$23:G$50,MATCH($T112,Reliability!$C$23:$C$50,0)),0),0)*$H112*$X112*$Y112),$D112)*$R112","v":0},{"$f":"MIN((IFERROR(IF(AND($V112<=AC$1,$W112>=AC$1),INDEX(Reliability!H$23:H$50,MATCH($S112,Reliability!$C$23:$C$50,0)),0),0)*IF($T112=\"n/a\",$D112*$Y112,$G112)+IFERROR(IF(AND($V112<=AC$1,$W112>=AC$1),INDEX(Reliability!H$23:H$50,MATCH($T112,Reliability!$C$23:$C$50,0)),0),0)*$H112*$X112*$Y112),$D112)*$R112","v":0},{"$f":"MIN((IFERROR(IF(AND($V112<=AD$1,$W112>=AD$1),INDEX(Reliability!I$23:I$50,MATCH($S112,Reliability!$C$23:$C$50,0)),0),0)*IF($T112=\"n/a\",$D112*$Y112,$G112)+IFERROR(IF(AND($V112<=AD$1,$W112>=AD$1),INDEX(Reliability!I$23:I$50,MATCH($T112,Reliability!$C$23:$C$50,0)),0),0)*$H112*$X112*$Y112),$D112)*$R112","v":0},{"$f":"MIN((IFERROR(IF(AND($V112<=AE$1,$W112>=AE$1),INDEX(Reliability!J$23:J$50,MATCH($S112,Reliability!$C$23:$C$50,0)),0),0)*IF($T112=\"n/a\",$D112*$Y112,$G112)+IFERROR(IF(AND($V112<=AE$1,$W112>=AE$1),INDEX(Reliability!J$23:J$50,MATCH($T112,Reliability!$C$23:$C$50,0)),0),0)*$H112*$X112*$Y112),$D112)*$R112","v":0},{"$f":"MIN((IFERROR(IF(AND($V112<=AF$1,$W112>=AF$1),INDEX(Reliability!K$23:K$50,MATCH($S112,Reliability!$C$23:$C$50,0)),0),0)*IF($T112=\"n/a\",$D112*$Y112,$G112)+IFERROR(IF(AND($V112<=AF$1,$W112>=AF$1),INDEX(Reliability!K$23:K$50,MATCH($T112,Reliability!$C$23:$C$50,0)),0),0)*$H112*$X112*$Y112),$D112)*$R112","v":0},{"$f":"MIN((IFERROR(IF(AND($V112<=AG$1,$W112>=AG$1),INDEX(Reliability!L$23:L$50,MATCH($S112,Reliability!$C$23:$C$50,0)),0),0)*IF($T112=\"n/a\",$D112*$Y112,$G112)+IFERROR(IF(AND($V112<=AG$1,$W112>=AG$1),INDEX(Reliability!L$23:L$50,MATCH($T112,Reliability!$C$23:$C$50,0)),0),0)*$H112*$X112*$Y112),$D112)*$R112","v":0},{"$f":"MIN((IFERROR(IF(AND($V112<=AH$1,$W112>=AH$1),INDEX(Reliability!M$23:M$50,MATCH($S112,Reliability!$C$23:$C$50,0)),0),0)*IF($T112=\"n/a\",$D112*$Y112,$G112)+IFERROR(IF(AND($V112<=AH$1,$W112>=AH$1),INDEX(Reliability!M$23:M$50,MATCH($T112,Reliability!$C$23:$C$50,0)),0),0)*$H112*$X112*$Y112),$D112)*$R112","v":0},{"$f":"MIN((IFERROR(IF(AND($V112<=AI$1,$W112>=AI$1),INDEX(Reliability!N$23:N$50,MATCH($S112,Reliability!$C$23:$C$50,0)),0),0)*IF($T112=\"n/a\",$D112*$Y112,$G112)+IFERROR(IF(AND($V112<=AI$1,$W112>=AI$1),INDEX(Reliability!N$23:N$50,MATCH($T112,Reliability!$C$23:$C$50,0)),0),0)*$H112*$X112*$Y112),$D112)*$R112","v":0},{"$f":"MIN((IFERROR(IF(AND($V112<=AJ$1,$W112>=AJ$1),INDEX(Reliability!O$23:O$50,MATCH($S112,Reliability!$C$23:$C$50,0)),0),0)*IF($T112=\"n/a\",$D112*$Y112,$G112)+IFERROR(IF(AND($V112<=AJ$1,$W112>=AJ$1),INDEX(Reliability!O$23:O$50,MATCH($T112,Reliability!$C$23:$C$50,0)),0),0)*$H112*$X112*$Y112),$D112)*$R112","v":0},{"$f":"MIN((IFERROR(IF(AND($V112<=AK$1,$W112>=AK$1),INDEX(Reliability!P$23:P$50,MATCH($S112,Reliability!$C$23:$C$50,0)),0),0)*IF($T112=\"n/a\",$D112*$Y112,$G112)+IFERROR(IF(AND($V112<=AK$1,$W112>=AK$1),INDEX(Reliability!P$23:P$50,MATCH($T112,Reliability!$C$23:$C$50,0)),0),0)*$H112*$X112*$Y112),$D112)*$R112","v":0}]
[null,{"$f":"unique_contracts!B114","v":0},{"$f":"unique_contracts!D114","v":0},{"$f":"unique_contracts!J114","v":0},{"$f":"unique_contracts!M114","v":0},{"$f":"unique_contracts!N114","v":0},{"$f":"unique_contracts!P114","v":0},{"$f":"unique_contracts!R114","v":0},{"$f":"unique_contracts!V114","v":0},{"$f":"unique_contracts!AB114","v":0},{"$f":"unique_contracts!AM114","v":0},{"$f":"unique_contracts!AN114","v":0},{"$f":"unique_contracts!AO114","v":0},{"$f":"unique_contracts!AP114","v":0},{"$f":"unique_contracts!AQ114","v":0},{"$f":"unique_contracts!AR114","v":0},{"$f":"unique_contracts!BP114","v":0},0,{"$f":"IFERROR(IF(AND(I113>0,E113=\"NotHybrid\"),_xlfn.CONCAT(MAX(MIN(ROUNDDOWN(I113/D113,0),8),4),INDEX(resources!$G:$G,MATCH(B113,resources!$A:$A,0))),INDEX(resources!$G:$G,MATCH(B113,resources!$A:$A,0))),\"n/a\")","v":"n/a"},"n/a","n/a",0,0,1,1,{"$f":"MIN((IFERROR(IF(AND($V113<=Z$1,$W113>=Z$1),INDEX(Reliability!E$23:E$50,MATCH($S113,Reliability!$C$23:$C$50,0)),0),0)*IF($T113=\"n/a\",$D113*$Y113,$G113)+IFERROR(IF(AND($V113<=Z$1,$W113>=Z$1),INDEX(Reliability!E$23:E$50,MATCH($T113,Reliability!$C$23:$C$50,0)),0),0)*$H113*$X113*$Y113),$D113)*$R113","v":0},{"$f":"MIN((IFERROR(IF(AND($V113<=AA$1,$W113>=AA$1),INDEX(Reliability!F$23:F$50,MATCH($S113,Reliability!$C$23:$C$50,0)),0),0)*IF($T113=\"n/a\",$D113*$Y113,$G113)+IFERROR(IF(AND($V113<=AA$1,$W113>=AA$1),INDEX(Reliability!F$23:F$50,MATCH($T113,Reliability!$C$23:$C$50,0)),0),0)*$H113*$X113*$Y113),$D113)*$R113","v":0},{"$f":"MIN((IFERROR(IF(AND($V113<=AB$1,$W113>=AB$1),INDEX(Reliability!G$23:G$50,MATCH($S113,Reliability!$C$23:$C$50,0)),0),0)*IF($T113=\"n/a\",$D113*$Y113,$G113)+IFERROR(IF(AND($V113<=AB$1,$W113>=AB$1),INDEX(Reliability!G$23:G$50,MATCH($T113,Reliability!$C$23:$C$50,0)),0),0)*$H113*$X113*$Y113),$D113)*$R113","v":0},{"$f":"MIN((IFERROR(IF(AND($V113<=AC$1,$W113>=AC$1),INDEX(Reliability!H$23:H$50,MATCH($S113,Reliability!$C$23:$C$50,0)),0),0)*IF($T113=\"n/a\",$D113*$Y113,$G113)+IFERROR(IF(AND($V113<=AC$1,$W113>=AC$1),INDEX(Reliability!H$23:H$50,MATCH($T113,Reliability!$C$23:$C$50,0)),0),0)*$H113*$X113*$Y113),$D113)*$R113","v":0},{"$f":"MIN((IFERROR(IF(AND($V113<=AD$1,$W113>=AD$1),INDEX(Reliability!I$23:I$50,MATCH($S113,Reliability!$C$23:$C$50,0)),0),0)*IF($T113=\"n/a\",$D113*$Y113,$G113)+IFERROR(IF(AND($V113<=AD$1,$W113>=AD$1),INDEX(Reliability!I$23:I$50,MATCH($T113,Reliability!$C$23:$C$50,0)),0),0)*$H113*$X113*$Y113),$D113)*$R113","v":0},{"$f":"MIN((IFERROR(IF(AND($V113<=AE$1,$W113>=AE$1),INDEX(Reliability!J$23:J$50,MATCH($S113,Reliability!$C$23:$C$50,0)),0),0)*IF($T113=\"n/a\",$D113*$Y113,$G113)+IFERROR(IF(AND($V113<=AE$1,$W113>=AE$1),INDEX(Reliability!J$23:J$50,MATCH($T113,Reliability!$C$23:$C$50,0)),0),0)*$H113*$X113*$Y113),$D113)*$R113","v":0},{"$f":"MIN((IFERROR(IF(AND($V113<=AF$1,$W113>=AF$1),INDEX(Reliability!K$23:K$50,MATCH($S113,Reliability!$C$23:$C$50,0)),0),0)*IF($T113=\"n/a\",$D113*$Y113,$G113)+IFERROR(IF(AND($V113<=AF$1,$W113>=AF$1),INDEX(Reliability!K$23:K$50,MATCH($T113,Reliability!$C$23:$C$50,0)),0),0)*$H113*$X113*$Y113),$D113)*$R113","v":0},{"$f":"MIN((IFERROR(IF(AND($V113<=AG$1,$W113>=AG$1),INDEX(Reliability!L$23:L$50,MATCH($S113,Reliability!$C$23:$C$50,0)),0),0)*IF($T113=\"n/a\",$D113*$Y113,$G113)+IFERROR(IF(AND($V113<=AG$1,$W113>=AG$1),INDEX(Reliability!L$23:L$50,MATCH($T113,Reliability!$C$23:$C$50,0)),0),0)*$H113*$X113*$Y113),$D113)*$R113","v":0},{"$f":"MIN((IFERROR(IF(AND($V113<=AH$1,$W113>=AH$1),INDEX(Reliability!M$23:M$50,MATCH($S113,Reliability!$C$23:$C$50,0)),0),0)*IF($T113=\"n/a\",$D113*$Y113,$G113)+IFERROR(IF(AND($V113<=AH$1,$W113>=AH$1),INDEX(Reliability!M$23:M$50,MATCH($T113,Reliability!$C$23:$C$50,0)),0),0)*$H113*$X113*$Y113),$D113)*$R113","v":0},{"$f":"MIN((IFERROR(IF(AND($V113<=AI$1,$W113>=AI$1),INDEX(Reliability!N$23:N$50,MATCH($S113,Reliability!$C$23:$C$50,0)),0),0)*IF($T113=\"n/a\",$D113*$Y113,$G113)+IFERROR(IF(AND($V113<=AI$1,$W113>=AI$1),INDEX(Reliability!N$23:N$50,MATCH($T113,Reliability!$C$23:$C$50,0)),0),0)*$H113*$X113*$Y113),$D113)*$R113","v":0},{"$f":"MIN((IFERROR(IF(AND($V113<=AJ$1,$W113>=AJ$1),INDEX(Reliability!O$23:O$50,MATCH($S113,Reliability!$C$23:$C$50,0)),0),0)*IF($T113=\"n/a\",$D113*$Y113,$G113)+IFERROR(IF(AND($V113<=AJ$1,$W113>=AJ$1),INDEX(Reliability!O$23:O$50,MATCH($T113,Reliability!$C$23:$C$50,0)),0),0)*$H113*$X113*$Y113),$D113)*$R113","v":0},{"$f":"MIN((IFERROR(IF(AND($V113<=AK$1,$W113>=AK$1),INDEX(Reliability!P$23:P$50,MATCH($S113,Reliability!$C$23:$C$50,0)),0),0)*IF($T113=\"n/a\",$D113*$Y113,$G113)+IFERROR(IF(AND($V113<=AK$1,$W113>=AK$1),INDEX(Reliability!P$23:P$50,MATCH($T113,Reliability!$C$23:$C$50,0)),0),0)*$H113*$X113*$Y113),$D113)*$R113","v":0}]
[null,{"$f":"unique_contracts!B115","v":0},{"$f":"unique_contracts!D115","v":0},{"$f":"unique_contracts!J115","v":0},{"$f":"unique_contracts!M115","v":0},{"$f":"unique_contracts!N115","v":0},{"$f":"unique_contracts!P115","v":0},{"$f":"unique_contracts!R115","v":0},{"$f":"unique_contracts!V115","v":0},{"$f":"unique_contracts!AB115","v":0},{"$f":"unique_contracts!AM115","v":0},{"$f":"unique_contracts!AN115","v":0},{"$f":"unique_contracts!AO115","v":0},{"$f":"unique_contracts!AP115","v":0},{"$f":"unique_contracts!AQ115","v":0},{"$f":"unique_contracts!AR115","v":0},{"$f":"unique_contracts!BP115","v":0},0,{"$f":"IFERROR(IF(AND(I114>0,E114=\"NotHybrid\"),_xlfn.CONCAT(MAX(MIN(ROUNDDOWN(I114/D114,0),8),4),INDEX(resources!$G:$G,MATCH(B114,resources!$A:$A,0))),INDEX(resources!$G:$G,MATCH(B114,resources!$A:$A,0))),\"n/a\")","v":"n/a"},"n/a","n/a",0,0,1,1,{"$f":"MIN((IFERROR(IF(AND($V114<=Z$1,$W114>=Z$1),INDEX(Reliability!E$23:E$50,MATCH($S114,Reliability!$C$23:$C$50,0)),0),0)*IF($T114=\"n/a\",$D114*$Y114,$G114)+IFERROR(IF(AND($V114<=Z$1,$W114>=Z$1),INDEX(Reliability!E$23:E$50,MATCH($T114,Reliability!$C$23:$C$50,0)),0),0)*$H114*$X114*$Y114),$D114)*$R114","v":0},{"$f":"MIN((IFERROR(IF(AND($V114<=AA$1,$W114>=AA$1),INDEX(Reliability!F$23:F$50,MATCH($S114,Reliability!$C$23:$C$50,0)),0),0)*IF($T114=\"n/a\",$D114*$Y114,$G114)+IFERROR(IF(AND($V114<=AA$1,$W114>=AA$1),INDEX(Reliability!F$23:F$50,MATCH($T114,Reliability!$C$23:$C$50,0)),0),0)*$H114*$X114*$Y114),$D114)*$R114","v":0},{"$f":"MIN((IFERROR(IF(AND($V114<=AB$1,$W114>=AB$1),INDEX(Reliability!G$23:G$50,MATCH($S114,Reliability!$C$23:$C$50,0)),0),0)*IF($T114=\"n/a\",$D114*$Y114,$G114)+IFERROR(IF(AND($V114<=AB$1,$W114>=AB$1),INDEX(Reliability!G$23:G$50,MATCH($T114,Reliability!$C$23:$C$50,0)),0),0)*$H114*$X114*$Y114),$D114)*$R114","v":0},{"$f":"MIN((IFERROR(IF(AND($V114<=AC$1,$W114>=AC$1),INDEX(Reliability!H$23:H$50,MATCH($S114,Reliability!$C$23:$C$50,0)),0),0)*IF($T114=\"n/a\",$D114*$Y114,$G114)+IFERROR(IF(AND($V114<=AC$1,$W114>=AC$1),INDEX(Reliability!H$23:H$50,MATCH($T114,Reliability!$C$23:$C$50,0)),0),0)*$H114*$X114*$Y114),$D114)*$R114","v":0},{"$f":"MIN((IFERROR(IF(AND($V114<=AD$1,$W114>=AD$1),INDEX(Reliability!I$23:I$50,MATCH($S114,Reliability!$C$23:$C$50,0)),0),0)*IF($T114=\"n/a\",$D114*$Y114,$G114)+IFERROR(IF(AND($V114<=AD$1,$W114>=AD$1),INDEX(Reliability!I$23:I$50,MATCH($T114,Reliability!$C$23:$C$50,0)),0),0)*$H114*$X114*$Y114),$D114)*$R114","v":0},{"$f":"MIN((IFERROR(IF(AND($V114<=AE$1,$W114>=AE$1),INDEX(Reliability!J$23:J$50,MATCH($S114,Reliability!$C$23:$C$50,0)),0),0)*IF($T114=\"n/a\",$D114*$Y114,$G114)+IFERROR(IF(AND($V114<=AE$1,$W114>=AE$1),INDEX(Reliability!J$23:J$50,MATCH($T114,Reliability!$C$23:$C$50,0)),0),0)*$H114*$X114*$Y114),$D114)*$R114","v":0},{"$f":"MIN((IFERROR(IF(AND($V114<=AF$1,$W114>=AF$1),INDEX(Reliability!K$23:K$50,MATCH($S114,Reliability!$C$23:$C$50,0)),0),0)*IF($T114=\"n/a\",$D114*$Y114,$G114)+IFERROR(IF(AND($V114<=AF$1,$W114>=AF$1),INDEX(Reliability!K$23:K$50,MATCH($T114,Reliability!$C$23:$C$50,0)),0),0)*$H114*$X114*$Y114),$D114)*$R114","v":0},{"$f":"MIN((IFERROR(IF(AND($V114<=AG$1,$W114>=AG$1),INDEX(Reliability!L$23:L$50,MATCH($S114,Reliability!$C$23:$C$50,0)),0),0)*IF($T114=\"n/a\",$D114*$Y114,$G114)+IFERROR(IF(AND($V114<=AG$1,$W114>=AG$1),INDEX(Reliability!L$23:L$50,MATCH($T114,Reliability!$C$23:$C$50,0)),0),0)*$H114*$X114*$Y114),$D114)*$R114","v":0},{"$f":"MIN((IFERROR(IF(AND($V114<=AH$1,$W114>=AH$1),INDEX(Reliability!M$23:M$50,MATCH($S114,Reliability!$C$23:$C$50,0)),0),0)*IF($T114=\"n/a\",$D114*$Y114,$G114)+IFERROR(IF(AND($V114<=AH$1,$W114>=AH$1),INDEX(Reliability!M$23:M$50,MATCH($T114,Reliability!$C$23:$C$50,0)),0),0)*$H114*$X114*$Y114),$D114)*$R114","v":0},{"$f":"MIN((IFERROR(IF(AND($V114<=AI$1,$W114>=AI$1),INDEX(Reliability!N$23:N$50,MATCH($S114,Reliability!$C$23:$C$50,0)),0),0)*IF($T114=\"n/a\",$D114*$Y114,$G114)+IFERROR(IF(AND($V114<=AI$1,$W114>=AI$1),INDEX(Reliability!N$23:N$50,MATCH($T114,Reliability!$C$23:$C$50,0)),0),0)*$H114*$X114*$Y114),$D114)*$R114","v":0},{"$f":"MIN((IFERROR(IF(AND($V114<=AJ$1,$W114>=AJ$1),INDEX(Reliability!O$23:O$50,MATCH($S114,Reliability!$C$23:$C$50,0)),0),0)*IF($T114=\"n/a\",$D114*$Y114,$G114)+IFERROR(IF(AND($V114<=AJ$1,$W114>=AJ$1),INDEX(Reliability!O$23:O$50,MATCH($T114,Reliability!$C$23:$C$50,0)),0),0)*$H114*$X114*$Y114),$D114)*$R114","v":0},{"$f":"MIN((IFERROR(IF(AND($V114<=AK$1,$W114>=AK$1),INDEX(Reliability!P$23:P$50,MATCH($S114,Reliability!$C$23:$C$50,0)),0),0)*IF($T114=\"n/a\",$D114*$Y114,$G114)+IFERROR(IF(AND($V114<=AK$1,$W114>=AK$1),INDEX(Reliability!P$23:P$50,MATCH($T114,Reliability!$C$23:$C$50,0)),0),0)*$H114*$X114*$Y114),$D114)*$R114","v":0}]
[null,{"$f":"unique_contracts!B116","v":0},{"$f":"unique_contracts!D116","v":0},{"$f":"unique_contracts!J116","v":0},{"$f":"unique_contracts!M116","v":0},{"$f":"unique_contracts!N116","v":0},{"$f":"unique_contracts!P116","v":0},{"$f":"unique_contracts!R116","v":0},{"$f":"unique_contracts!V116","v":0},{"$f":"unique_contracts!AB116","v":0},{"$f":"unique_contracts!AM116","v":0},{"$f":"unique_contracts!AN116","v":0},{"$f":"unique_contracts!AO116","v":0},{"$f":"unique_contracts!AP116","v":0},{"$f":"unique_contracts!AQ116","v":0},{"$f":"unique_contracts!AR116","v":0},{"$f":"unique_contracts!BP116","v":0},0,{"$f":"IFERROR(IF(AND(I115>0,E115=\"NotHybrid\"),_xlfn.CONCAT(MAX(MIN(ROUNDDOWN(I115/D115,0),8),4),INDEX(resources!$G:$G,MATCH(B115,resources!$A:$A,0))),INDEX(resources!$G:$G,MATCH(B115,resources!$A:$A,0))),\"n/a\")","v":"n/a"},"n/a","n/a",0,0,1,1,{"$f":"MIN((IFERROR(IF(AND($V115<=Z$1,$W115>=Z$1),INDEX(Reliability!E$23:E$50,MATCH($S115,Reliability!$C$23:$C$50,0)),0),0)*IF($T115=\"n/a\",$D115*$Y115,$G115)+IFERROR(IF(AND($V115<=Z$1,$W115>=Z$1),INDEX(Reliability!E$23:E$50,MATCH($T115,Reliability!$C$23:$C$50,0)),0),0)*$H115*$X115*$Y115),$D115)*$R115","v":0},{"$f":"MIN((IFERROR(IF(AND($V115<=AA$1,$W115>=AA$1),INDEX(Reliability!F$23:F$50,MATCH($S115,Reliability!$C$23:$C$50,0)),0),0)*IF($T115=\"n/a\",$D115*$Y115,$G115)+IFERROR(IF(AND($V115<=AA$1,$W115>=AA$1),INDEX(Reliability!F$23:F$50,MATCH($T115,Reliability!$C$23:$C$50,0)),0),0)*$H115*$X115*$Y115),$D115)*$R115","v":0},{"$f":"MIN((IFERROR(IF(AND($V115<=AB$1,$W115>=AB$1),INDEX(Reliability!G$23:G$50,MATCH($S115,Reliability!$C$23:$C$50,0)),0),0)*IF($T115=\"n/a\",$D115*$Y115,$G115)+IFERROR(IF(AND($V115<=AB$1,$W115>=AB$1),INDEX(Reliability!G$23:G$50,MATCH($T115,Reliability!$C$23:$C$50,0)),0),0)*$H115*$X115*$Y115),$D115)*$R115","v":0},{"$f":"MIN((IFERROR(IF(AND($V115<=AC$1,$W115>=AC$1),INDEX(Reliability!H$23:H$50,MATCH($S115,Reliability!$C$23:$C$50,0)),0),0)*IF($T115=\"n/a\",$D115*$Y115,$G115)+IFERROR(IF(AND($V115<=AC$1,$W115>=AC$1),INDEX(Reliability!H$23:H$50,MATCH($T115,Reliability!$C$23:$C$50,0)),0),0)*$H115*$X115*$Y115),$D115)*$R115","v":0},{"$f":"MIN((IFERROR(IF(AND($V115<=AD$1,$W115>=AD$1),INDEX(Reliability!I$23:I$50,MATCH($S115,Reliability!$C$23:$C$50,0)),0),0)*IF($T115=\"n/a\",$D115*$Y115,$G115)+IFERROR(IF(AND($V115<=AD$1,$W115>=AD$1),INDEX(Reliability!I$23:I$50,MATCH($T115,Reliability!$C$23:$C$50,0)),0),0)*$H115*$X115*$Y115),$D115)*$R115","v":0},{"$f":"MIN((IFERROR(IF(AND($V115<=AE$1,$W115>=AE$1),INDEX(Reliability!J$23:J$50,MATCH($S115,Reliability!$C$23:$C$50,0)),0),0)*IF($T115=\"n/a\",$D115*$Y115,$G115)+IFERROR(IF(AND($V115<=AE$1,$W115>=AE$1),INDEX(Reliability!J$23:J$50,MATCH($T115,Reliability!$C$23:$C$50,0)),0),0)*$H115*$X115*$Y115),$D115)*$R115","v":0},{"$f":"MIN((IFERROR(IF(AND($V115<=AF$1,$W115>=AF$1),INDEX(Reliability!K$23:K$50,MATCH($S115,Reliability!$C$23:$C$50,0)),0),0)*IF($T115=\"n/a\",$D115*$Y115,$G115)+IFERROR(IF(AND($V115<=AF$1,$W115>=AF$1),INDEX(Reliability!K$23:K$50,MATCH($T115,Reliability!$C$23:$C$50,0)),0),0)*$H115*$X115*$Y115),$D115)*$R115","v":0},{"$f":"MIN((IFERROR(IF(AND($V115<=AG$1,$W115>=AG$1),INDEX(Reliability!L$23:L$50,MATCH($S115,Reliability!$C$23:$C$50,0)),0),0)*IF($T115=\"n/a\",$D115*$Y115,$G115)+IFERROR(IF(AND($V115<=AG$1,$W115>=AG$1),INDEX(Reliability!L$23:L$50,MATCH($T115,Reliability!$C$23:$C$50,0)),0),0)*$H115*$X115*$Y115),$D115)*$R115","v":0},{"$f":"MIN((IFERROR(IF(AND($V115<=AH$1,$W115>=AH$1),INDEX(Reliability!M$23:M$50,MATCH($S115,Reliability!$C$23:$C$50,0)),0),0)*IF($T115=\"n/a\",$D115*$Y115,$G115)+IFERROR(IF(AND($V115<=AH$1,$W115>=AH$1),INDEX(Reliability!M$23:M$50,MATCH($T115,Reliability!$C$23:$C$50,0)),0),0)*$H115*$X115*$Y115),$D115)*$R115","v":0},{"$f":"MIN((IFERROR(IF(AND($V115<=AI$1,$W115>=AI$1),INDEX(Reliability!N$23:N$50,MATCH($S115,Reliability!$C$23:$C$50,0)),0),0)*IF($T115=\"n/a\",$D115*$Y115,$G115)+IFERROR(IF(AND($V115<=AI$1,$W115>=AI$1),INDEX(Reliability!N$23:N$50,MATCH($T115,Reliability!$C$23:$C$50,0)),0),0)*$H115*$X115*$Y115),$D115)*$R115","v":0},{"$f":"MIN((IFERROR(IF(AND($V115<=AJ$1,$W115>=AJ$1),INDEX(Reliability!O$23:O$50,MATCH($S115,Reliability!$C$23:$C$50,0)),0),0)*IF($T115=\"n/a\",$D115*$Y115,$G115)+IFERROR(IF(AND($V115<=AJ$1,$W115>=AJ$1),INDEX(Reliability!O$23:O$50,MATCH($T115,Reliability!$C$23:$C$50,0)),0),0)*$H115*$X115*$Y115),$D115)*$R115","v":0},{"$f":"MIN((IFERROR(IF(AND($V115<=AK$1,$W115>=AK$1),INDEX(Reliability!P$23:P$50,MATCH($S115,Reliability!$C$23:$C$50,0)),0),0)*IF($T115=\"n/a\",$D115*$Y115,$G115)+IFERROR(IF(AND($V115<=AK$1,$W115>=AK$1),INDEX(Reliability!P$23:P$50,MATCH($T115,Reliability!$C$23:$C$50,0)),0),0)*$H115*$X115*$Y115),$D115)*$R115","v":0}]
[null,{"$f":"unique_contracts!B117","v":0},{"$f":"unique_contracts!D117","v":0},{"$f":"unique_contracts!J117","v":0},{"$f":"unique_contracts!M117","v":0},{"$f":"unique_contracts!N117","v":0},{"$f":"unique_contracts!P117","v":0},{"$f":"unique_contracts!R117","v":0},{"$f":"unique_contracts!V117","v":0},{"$f":"unique_contracts!AB117","v":0},{"$f":"unique_contracts!AM117","v":0},{"$f":"unique_contracts!AN117","v":0},{"$f":"unique_contracts!AO117","v":0},{"$f":"unique_contracts!AP117","v":0},{"$f":"unique_contracts!AQ117","v":0},{"$f":"unique_contracts!AR117","v":0},{"$f":"unique_contracts!BP117","v":0},0,{"$f":"IFERROR(IF(AND(I116>0,E116=\"NotHybrid\"),_xlfn.CONCAT(MAX(MIN(ROUNDDOWN(I116/D116,0),8),4),INDEX(resources!$G:$G,MATCH(B116,resources!$A:$A,0))),INDEX(resources!$G:$G,MATCH(B116,resources!$A:$A,0))),\"n/a\")","v":"n/a"},"n/a","n/a",0,0,1,1,{"$f":"MIN((IFERROR(IF(AND($V116<=Z$1,$W116>=Z$1),INDEX(Reliability!E$23:E$50,MATCH($S116,Reliability!$C$23:$C$50,0)),0),0)*IF($T116=\"n/a\",$D116*$Y116,$G116)+IFERROR(IF(AND($V116<=Z$1,$W116>=Z$1),INDEX(Reliability!E$23:E$50,MATCH($T116,Reliability!$C$23:$C$50,0)),0),0)*$H116*$X116*$Y116),$D116)*$R116","v":0},{"$f":"MIN((IFERROR(IF(AND($V116<=AA$1,$W116>=AA$1),INDEX(Reliability!F$23:F$50,MATCH($S116,Reliability!$C$23:$C$50,0)),0),0)*IF($T116=\"n/a\",$D116*$Y116,$G116)+IFERROR(IF(AND($V116<=AA$1,$W116>=AA$1),INDEX(Reliability!F$23:F$50,MATCH($T116,Reliability!$C$23:$C$50,0)),0),0)*$H116*$X116*$Y116),$D116)*$R116","v":0},{"$f":"MIN((IFERROR(IF(AND($V116<=AB$1,$W116>=AB$1),INDEX(Reliability!G$23:G$50,MATCH($S116,Reliability!$C$23:$C$50,0)),0),0)*IF($T116=\"n/a\",$D116*$Y116,$G116)+IFERROR(IF(AND($V116<=AB$1,$W116>=AB$1),INDEX(Reliability!G$23:G$50,MATCH($T116,Reliability!$C$23:$C$50,0)),0),0)*$H116*$X116*$Y116),$D116)*$R116","v":0},{"$f":"MIN((IFERROR(IF(AND($V116<=AC$1,$W116>=AC$1),INDEX(Reliability!H$23:H$50,MATCH($S116,Reliability!$C$23:$C$50,0)),0),0)*IF($T116=\"n/a\",$D116*$Y116,$G116)+IFERROR(IF(AND($V116<=AC$1,$W116>=AC$1),INDEX(Reliability!H$23:H$50,MATCH($T116,Reliability!$C$23:$C$50,0)),0),0)*$H116*$X116*$Y116),$D116)*$R116","v":0},{"$f":"MIN((IFERROR(IF(AND($V116<=AD$1,$W116>=AD$1),INDEX(Reliability!I$23:I$50,MATCH($S116,Reliability!$C$23:$C$50,0)),0),0)*IF($T116=\"n/a\",$D116*$Y116,$G116)+IFERROR(IF(AND($V116<=AD$1,$W116>=AD$1),INDEX(Reliability!I$23:I$50,MATCH($T116,Reliability!$C$23:$C$50,0)),0),0)*$H116*$X116*$Y116),$D116)*$R116","v":0},{"$f":"MIN((IFERROR(IF(AND($V116<=AE$1,$W116>=AE$1),INDEX(Reliability!J$23:J$50,MATCH($S116,Reliability!$C$23:$C$50,0)),0),0)*IF($T116=\"n/a\",$D116*$Y116,$G116)+IFERROR(IF(AND($V116<=AE$1,$W116>=AE$1),INDEX(Reliability!J$23:J$50,MATCH($T116,Reliability!$C$23:$C$50,0)),0),0)*$H116*$X116*$Y116),$D116)*$R116","v":0},{"$f":"MIN((IFERROR(IF(AND($V116<=AF$1,$W116>=AF$1),INDEX(Reliability!K$23:K$50,MATCH($S116,Reliability!$C$23:$C$50,0)),0),0)*IF($T116=\"n/a\",$D116*$Y116,$G116)+IFERROR(IF(AND($V116<=AF$1,$W116>=AF$1),INDEX(Reliability!K$23:K$50,MATCH($T116,Reliability!$C$23:$C$50,0)),0),0)*$H116*$X116*$Y116),$D116)*$R116","v":0},{"$f":"MIN((IFERROR(IF(AND($V116<=AG$1,$W116>=AG$1),INDEX(Reliability!L$23:L$50,MATCH($S116,Reliability!$C$23:$C$50,0)),0),0)*IF($T116=\"n/a\",$D116*$Y116,$G116)+IFERROR(IF(AND($V116<=AG$1,$W116>=AG$1),INDEX(Reliability!L$23:L$50,MATCH($T116,Reliability!$C$23:$C$50,0)),0),0)*$H116*$X116*$Y116),$D116)*$R116","v":0},{"$f":"MIN((IFERROR(IF(AND($V116<=AH$1,$W116>=AH$1),INDEX(Reliability!M$23:M$50,MATCH($S116,Reliability!$C$23:$C$50,0)),0),0)*IF($T116=\"n/a\",$D116*$Y116,$G116)+IFERROR(IF(AND($V116<=AH$1,$W116>=AH$1),INDEX(Reliability!M$23:M$50,MATCH($T116,Reliability!$C$23:$C$50,0)),0),0)*$H116*$X116*$Y116),$D116)*$R116","v":0},{"$f":"MIN((IFERROR(IF(AND($V116<=AI$1,$W116>=AI$1),INDEX(Reliability!N$23:N$50,MATCH($S116,Reliability!$C$23:$C$50,0)),0),0)*IF($T116=\"n/a\",$D116*$Y116,$G116)+IFERROR(IF(AND($V116<=AI$1,$W116>=AI$1),INDEX(Reliability!N$23:N$50,MATCH($T116,Reliability!$C$23:$C$50,0)),0),0)*$H116*$X116*$Y116),$D116)*$R116","v":0},{"$f":"MIN((IFERROR(IF(AND($V116<=AJ$1,$W116>=AJ$1),INDEX(Reliability!O$23:O$50,MATCH($S116,Reliability!$C$23:$C$50,0)),0),0)*IF($T116=\"n/a\",$D116*$Y116,$G116)+IFERROR(IF(AND($V116<=AJ$1,$W116>=AJ$1),INDEX(Reliability!O$23:O$50,MATCH($T116,Reliability!$C$23:$C$50,0)),0),0)*$H116*$X116*$Y116),$D116)*$R116","v":0},{"$f":"MIN((IFERROR(IF(AND($V116<=AK$1,$W116>=AK$1),INDEX(Reliability!P$23:P$50,MATCH($S116,Reliability!$C$23:$C$50,0)),0),0)*IF($T116=\"n/a\",$D116*$Y116,$G116)+IFERROR(IF(AND($V116<=AK$1,$W116>=AK$1),INDEX(Reliability!P$23:P$50,MATCH($T116,Reliability!$C$23:$C$50,0)),0),0)*$H116*$X116*$Y116),$D116)*$R116","v":0}]
[null,{"$f":"unique_contracts!B118","v":0},{"$f":"unique_contracts!D118","v":0},{"$f":"unique_contracts!J118","v":0},{"$f":"unique_contracts!M118","v":0},{"$f":"unique_contracts!N118","v":0},{"$f":"unique_contracts!P118","v":0},{"$f":"unique_contracts!R118","v":0},{"$f":"unique_contracts!V118","v":0},{"$f":"unique_contracts!AB118","v":0},{"$f":"unique_contracts!AM118","v":0},{"$f":"unique_contracts!AN118","v":0},{"$f":"unique_contracts!AO118","v":0},{"$f":"unique_contracts!AP118","v":0},{"$f":"unique_contracts!AQ118","v":0},{"$f":"unique_contracts!AR118","v":0},{"$f":"unique_contracts!BP118","v":0},0,{"$f":"IFERROR(IF(AND(I117>0,E117=\"NotHybrid\"),_xlfn.CONCAT(MAX(MIN(ROUNDDOWN(I117/D117,0),8),4),INDEX(resources!$G:$G,MATCH(B117,resources!$A:$A,0))),INDEX(resources!$G:$G,MATCH(B117,resources!$A:$A,0))),\"n/a\")","v":"n/a"},"n/a","n/a",0,0,1,1,{"$f":"MIN((IFERROR(IF(AND($V117<=Z$1,$W117>=Z$1),INDEX(Reliability!E$23:E$50,MATCH($S117,Reliability!$C$23:$C$50,0)),0),0)*IF($T117=\"n/a\",$D117*$Y117,$G117)+IFERROR(IF(AND($V117<=Z$1,$W117>=Z$1),INDEX(Reliability!E$23:E$50,MATCH($T117,Reliability!$C$23:$C$50,0)),0),0)*$H117*$X117*$Y117),$D117)*$R117","v":0},{"$f":"MIN((IFERROR(IF(AND($V117<=AA$1,$W117>=AA$1),INDEX(Reliability!F$23:F$50,MATCH($S117,Reliability!$C$23:$C$50,0)),0),0)*IF($T117=\"n/a\",$D117*$Y117,$G117)+IFERROR(IF(AND($V117<=AA$1,$W117>=AA$1),INDEX(Reliability!F$23:F$50,MATCH($T117,Reliability!$C$23:$C$50,0)),0),0)*$H117*$X117*$Y117),$D117)*$R117","v":0},{"$f":"MIN((IFERROR(IF(AND($V117<=AB$1,$W117>=AB$1),INDEX(Reliability!G$23:G$50,MATCH($S117,Reliability!$C$23:$C$50,0)),0),0)*IF($T117=\"n/a\",$D117*$Y117,$G117)+IFERROR(IF(AND($V117<=AB$1,$W117>=AB$1),INDEX(Reliability!G$23:G$50,MATCH($T117,Reliability!$C$23:$C$50,0)),0),0)*$H117*$X117*$Y117),$D117)*$R117","v":0},{"$f":"MIN((IFERROR(IF(AND($V117<=AC$1,$W117>=AC$1),INDEX(Reliability!H$23:H$50,MATCH($S117,Reliability!$C$23:$C$50,0)),0),0)*IF($T117=\"n/a\",$D117*$Y117,$G117)+IFERROR(IF(AND($V117<=AC$1,$W117>=AC$1),INDEX(Reliability!H$23:H$50,MATCH($T117,Reliability!$C$23:$C$50,0)),0),0)*$H117*$X117*$Y117),$D117)*$R117","v":0},{"$f":"MIN((IFERROR(IF(AND($V117<=AD$1,$W117>=AD$1),INDEX(Reliability!I$23:I$50,MATCH($S117,Reliability!$C$23:$C$50,0)),0),0)*IF($T117=\"n/a\",$D117*$Y117,$G117)+IFERROR(IF(AND($V117<=AD$1,$W117>=AD$1),INDEX(Reliability!I$23:I$50,MATCH($T117,Reliability!$C$23:$C$50,0)),0),0)*$H117*$X117*$Y117),$D117)*$R117","v":0},{"$f":"MIN((IFERROR(IF(AND($V117<=AE$1,$W117>=AE$1),INDEX(Reliability!J$23:J$50,MATCH($S117,Reliability!$C$23:$C$50,0)),0),0)*IF($T117=\"n/a\",$D117*$Y117,$G117)+IFERROR(IF(AND($V117<=AE$1,$W117>=AE$1),INDEX(Reliability!J$23:J$50,MATCH($T117,Reliability!$C$23:$C$50,0)),0),0)*$H117*$X117*$Y117),$D117)*$R117","v":0},{"$f":"MIN((IFERROR(IF(AND($V117<=AF$1,$W117>=AF$1),INDEX(Reliability!K$23:K$50,MATCH($S117,Reliability!$C$23:$C$50,0)),0),0)*IF($T117=\"n/a\",$D117*$Y117,$G117)+IFERROR(IF(AND($V117<=AF$1,$W117>=AF$1),INDEX(Reliability!K$23:K$50,MATCH($T117,Reliability!$C$23:$C$50,0)),0),0)*$H117*$X117*$Y117),$D117)*$R117","v":0},{"$f":"MIN((IFERROR(IF(AND($V117<=AG$1,$W117>=AG$1),INDEX(Reliability!L$23:L$50,MATCH($S117,Reliability!$C$23:$C$50,0)),0),0)*IF($T117=\"n/a\",$D117*$Y117,$G117)+IFERROR(IF(AND($V117<=AG$1,$W117>=AG$1),INDEX(Reliability!L$23:L$50,MATCH($T117,Reliability!$C$23:$C$50,0)),0),0)*$H117*$X117*$Y117),$D117)*$R117","v":0},{"$f":"MIN((IFERROR(IF(AND($V117<=AH$1,$W117>=AH$1),INDEX(Reliability!M$23:M$50,MATCH($S117,Reliability!$C$23:$C$50,0)),0),0)*IF($T117=\"n/a\",$D117*$Y117,$G117)+IFERROR(IF(AND($V117<=AH$1,$W117>=AH$1),INDEX(Reliability!M$23:M$50,MATCH($T117,Reliability!$C$23:$C$50,0)),0),0)*$H117*$X117*$Y117),$D117)*$R117","v":0},{"$f":"MIN((IFERROR(IF(AND($V117<=AI$1,$W117>=AI$1),INDEX(Reliability!N$23:N$50,MATCH($S117,Reliability!$C$23:$C$50,0)),0),0)*IF($T117=\"n/a\",$D117*$Y117,$G117)+IFERROR(IF(AND($V117<=AI$1,$W117>=AI$1),INDEX(Reliability!N$23:N$50,MATCH($T117,Reliability!$C$23:$C$50,0)),0),0)*$H117*$X117*$Y117),$D117)*$R117","v":0},{"$f":"MIN((IFERROR(IF(AND($V117<=AJ$1,$W117>=AJ$1),INDEX(Reliability!O$23:O$50,MATCH($S117,Reliability!$C$23:$C$50,0)),0),0)*IF($T117=\"n/a\",$D117*$Y117,$G117)+IFERROR(IF(AND($V117<=AJ$1,$W117>=AJ$1),INDEX(Reliability!O$23:O$50,MATCH($T117,Reliability!$C$23:$C$50,0)),0),0)*$H117*$X117*$Y117),$D117)*$R117","v":0},{"$f":"MIN((IFERROR(IF(AND($V117<=AK$1,$W117>=AK$1),INDEX(Reliability!P$23:P$50,MATCH($S117,Reliability!$C$23:$C$50,0)),0),0)*IF($T117=\"n/a\",$D117*$Y117,$G117)+IFERROR(IF(AND($V117<=AK$1,$W117>=AK$1),INDEX(Reliability!P$23:P$50,MATCH($T117,Reliability!$C$23:$C$50,0)),0),0)*$H117*$X117*$Y117),$D117)*$R117","v":0}]
[null,{"$f":"unique_contracts!B119","v":0},{"$f":"unique_contracts!D119","v":0},{"$f":"unique_contracts!J119","v":0},{"$f":"unique_contracts!M119","v":0},{"$f":"unique_contracts!N119","v":0},{"$f":"unique_contracts!P119","v":0},{"$f":"unique_contracts!R119","v":0},{"$f":"unique_contracts!V119","v":0},{"$f":"unique_contracts!AB119","v":0},{"$f":"unique_contracts!AM119","v":0},{"$f":"unique_contracts!AN119","v":0},{"$f":"unique_contracts!AO119","v":0},{"$f":"unique_contracts!AP119","v":0},{"$f":"unique_contracts!AQ119","v":0},{"$f":"unique_contracts!AR119","v":0},{"$f":"unique_contracts!BP119","v":0},0,{"$f":"IFERROR(IF(AND(I118>0,E118=\"NotHybrid\"),_xlfn.CONCAT(MAX(MIN(ROUNDDOWN(I118/D118,0),8),4),INDEX(resources!$G:$G,MATCH(B118,resources!$A:$A,0))),INDEX(resources!$G:$G,MATCH(B118,resources!$A:$A,0))),\"n/a\")","v":"n/a"},"n/a","n/a",0,0,1,1,{"$f":"MIN((IFERROR(IF(AND($V118<=Z$1,$W118>=Z$1),INDEX(Reliability!E$23:E$50,MATCH($S118,Reliability!$C$23:$C$50,0)),0),0)*IF($T118=\"n/a\",$D118*$Y118,$G118)+IFERROR(IF(AND($V118<=Z$1,$W118>=Z$1),INDEX(Reliability!E$23:E$50,MATCH($T118,Reliability!$C$23:$C$50,0)),0),0)*$H118*$X118*$Y118),$D118)*$R118","v":0},{"$f":"MIN((IFERROR(IF(AND($V118<=AA$1,$W118>=AA$1),INDEX(Reliability!F$23:F$50,MATCH($S118,Reliability!$C$23:$C$50,0)),0),0)*IF($T118=\"n/a\",$D118*$Y118,$G118)+IFERROR(IF(AND($V118<=AA$1,$W118>=AA$1),INDEX(Reliability!F$23:F$50,MATCH($T118,Reliability!$C$23:$C$50,0)),0),0)*$H118*$X118*$Y118),$D118)*$R118","v":0},{"$f":"MIN((IFERROR(IF(AND($V118<=AB$1,$W118>=AB$1),INDEX(Reliability!G$23:G$50,MATCH($S118,Reliability!$C$23:$C$50,0)),0),0)*IF($T118=\"n/a\",$D118*$Y118,$G118)+IFERROR(IF(AND($V118<=AB$1,$W118>=AB$1),INDEX(Reliability!G$23:G$50,MATCH($T118,Reliability!$C$23:$C$50,0)),0),0)*$H118*$X118*$Y118),$D118)*$R118","v":0},{"$f":"MIN((IFERROR(IF(AND($V118<=AC$1,$W118>=AC$1),INDEX(Reliability!H$23:H$50,MATCH($S118,Reliability!$C$23:$C$50,0)),0),0)*IF($T118=\"n/a\",$D118*$Y118,$G118)+IFERROR(IF(AND($V118<=AC$1,$W118>=AC$1),INDEX(Reliability!H$23:H$50,MATCH($T118,Reliability!$C$23:$C$50,0)),0),0)*$H118*$X118*$Y118),$D118)*$R118","v":0},{"$f":"MIN((IFERROR(IF(AND($V118<=AD$1,$W118>=AD$1),INDEX(Reliability!I$23:I$50,MATCH($S118,Reliability!$C$23:$C$50,0)),0),0)*IF($T118=\"n/a\",$D118*$Y118,$G118)+IFERROR(IF(AND($V118<=AD$1,$W118>=AD$1),INDEX(Reliability!I$23:I$50,MATCH($T118,Reliability!$C$23:$C$50,0)),0),0)*$H118*$X118*$Y118),$D118)*$R118","v":0},{"$f":"MIN((IFERROR(IF(AND($V118<=AE$1,$W118>=AE$1),INDEX(Reliability!J$23:J$50,MATCH($S118,Reliability!$C$23:$C$50,0)),0),0)*IF($T118=\"n/a\",$D118*$Y118,$G118)+IFERROR(IF(AND($V118<=AE$1,$W118>=AE$1),INDEX(Reliability!J$23:J$50,MATCH($T118,Reliability!$C$23:$C$50,0)),0),0)*$H118*$X118*$Y118),$D118)*$R118","v":0},{"$f":"MIN((IFERROR(IF(AND($V118<=AF$1,$W118>=AF$1),INDEX(Reliability!K$23:K$50,MATCH($S118,Reliability!$C$23:$C$50,0)),0),0)*IF($T118=\"n/a\",$D118*$Y118,$G118)+IFERROR(IF(AND($V118<=AF$1,$W118>=AF$1),INDEX(Reliability!K$23:K$50,MATCH($T118,Reliability!$C$23:$C$50,0)),0),0)*$H118*$X118*$Y118),$D118)*$R118","v":0},{"$f":"MIN((IFERROR(IF(AND($V118<=AG$1,$W118>=AG$1),INDEX(Reliability!L$23:L$50,MATCH($S118,Reliability!$C$23:$C$50,0)),0),0)*IF($T118=\"n/a\",$D118*$Y118,$G118)+IFERROR(IF(AND($V118<=AG$1,$W118>=AG$1),INDEX(Reliability!L$23:L$50,MATCH($T118,Reliability!$C$23:$C$50,0)),0),0)*$H118*$X118*$Y118),$D118)*$R118","v":0},{"$f":"MIN((IFERROR(IF(AND($V118<=AH$1,$W118>=AH$1),INDEX(Reliability!M$23:M$50,MATCH($S118,Reliability!$C$23:$C$50,0)),0),0)*IF($T118=\"n/a\",$D118*$Y118,$G118)+IFERROR(IF(AND($V118<=AH$1,$W118>=AH$1),INDEX(Reliability!M$23:M$50,MATCH($T118,Reliability!$C$23:$C$50,0)),0),0)*$H118*$X118*$Y118),$D118)*$R118","v":0},{"$f":"MIN((IFERROR(IF(AND($V118<=AI$1,$W118>=AI$1),INDEX(Reliability!N$23:N$50,MATCH($S118,Reliability!$C$23:$C$50,0)),0),0)*IF($T118=\"n/a\",$D118*$Y118,$G118)+IFERROR(IF(AND($V118<=AI$1,$W118>=AI$1),INDEX(Reliability!N$23:N$50,MATCH($T118,Reliability!$C$23:$C$50,0)),0),0)*$H118*$X118*$Y118),$D118)*$R118","v":0},{"$f":"MIN((IFERROR(IF(AND($V118<=AJ$1,$W118>=AJ$1),INDEX(Reliability!O$23:O$50,MATCH($S118,Reliability!$C$23:$C$50,0)),0),0)*IF($T118=\"n/a\",$D118*$Y118,$G118)+IFERROR(IF(AND($V118<=AJ$1,$W118>=AJ$1),INDEX(Reliability!O$23:O$50,MATCH($T118,Reliability!$C$23:$C$50,0)),0),0)*$H118*$X118*$Y118),$D118)*$R118","v":0},{"$f":"MIN((IFERROR(IF(AND($V118<=AK$1,$W118>=AK$1),INDEX(Reliability!P$23:P$50,MATCH($S118,Reliability!$C$23:$C$50,0)),0),0)*IF($T118=\"n/a\",$D118*$Y118,$G118)+IFERROR(IF(AND($V118<=AK$1,$W118>=AK$1),INDEX(Reliability!P$23:P$50,MATCH($T118,Reliability!$C$23:$C$50,0)),0),0)*$H118*$X118*$Y118),$D118)*$R118","v":0}]
[null,{"$f":"unique_contracts!B120","v":0},{"$f":"unique_contracts!D120","v":0},{"$f":"unique_contracts!J120","v":0},{"$f":"unique_contracts!M120","v":0},{"$f":"unique_contracts!N120","v":0},{"$f":"unique_contracts!P120","v":0},{"$f":"unique_contracts!R120","v":0},{"$f":"unique_contracts!V120","v":0},{"$f":"unique_contracts!AB120","v":0},{"$f":"unique_contracts!AM120","v":0},{"$f":"unique_contracts!AN120","v":0},{"$f":"unique_contracts!AO120","v":0},{"$f":"unique_contracts!AP120","v":0},{"$f":"unique_contracts!AQ120","v":0},{"$f":"unique_contracts!AR120","v":0},{"$f":"unique_contracts!BP120","v":0},0,{"$f":"IFERROR(IF(AND(I119>0,E119=\"NotHybrid\"),_xlfn.CONCAT(MAX(MIN(ROUNDDOWN(I119/D119,0),8),4),INDEX(resources!$G:$G,MATCH(B119,resources!$A:$A,0))),INDEX(resources!$G:$G,MATCH(B119,resources!$A:$A,0))),\"n/a\")","v":"n/a"},"n/a","n/a",0,0,1,1,{"$f":"MIN((IFERROR(IF(AND($V119<=Z$1,$W119>=Z$1),INDEX(Reliability!E$23:E$50,MATCH($S119,Reliability!$C$23:$C$50,0)),0),0)*IF($T119=\"n/a\",$D119*$Y119,$G119)+IFERROR(IF(AND($V119<=Z$1,$W119>=Z$1),INDEX(Reliability!E$23:E$50,MATCH($T119,Reliability!$C$23:$C$50,0)),0),0)*$H119*$X119*$Y119),$D119)*$R119","v":0},{"$f":"MIN((IFERROR(IF(AND($V119<=AA$1,$W119>=AA$1),INDEX(Reliability!F$23:F$50,MATCH($S119,Reliability!$C$23:$C$50,0)),0),0)*IF($T119=\"n/a\",$D119*$Y119,$G119)+IFERROR(IF(AND($V119<=AA$1,$W119>=AA$1),INDEX(Reliability!F$23:F$50,MATCH($T119,Reliability!$C$23:$C$50,0)),0),0)*$H119*$X119*$Y119),$D119)*$R119","v":0},{"$f":"MIN((IFERROR(IF(AND($V119<=AB$1,$W119>=AB$1),INDEX(Reliability!G$23:G$50,MATCH($S119,Reliability!$C$23:$C$50,0)),0),0)*IF($T119=\"n/a\",$D119*$Y119,$G119)+IFERROR(IF(AND($V119<=AB$1,$W119>=AB$1),INDEX(Reliability!G$23:G$50,MATCH($T119,Reliability!$C$23:$C$50,0)),0),0)*$H119*$X119*$Y119),$D119)*$R119","v":0},{"$f":"MIN((IFERROR(IF(AND($V119<=AC$1,$W119>=AC$1),INDEX(Reliability!H$23:H$50,MATCH($S119,Reliability!$C$23:$C$50,0)),0),0)*IF($T119=\"n/a\",$D119*$Y119,$G119)+IFERROR(IF(AND($V119<=AC$1,$W119>=AC$1),INDEX(Reliability!H$23:H$50,MATCH($T119,Reliability!$C$23:$C$50,0)),0),0)*$H119*$X119*$Y119),$D119)*$R119","v":0},{"$f":"MIN((IFERROR(IF(AND($V119<=AD$1,$W119>=AD$1),INDEX(Reliability!I$23:I$50,MATCH($S119,Reliability!$C$23:$C$50,0)),0),0)*IF($T119=\"n/a\",$D119*$Y119,$G119)+IFERROR(IF(AND($V119<=AD$1,$W119>=AD$1),INDEX(Reliability!I$23:I$50,MATCH($T119,Reliability!$C$23:$C$50,0)),0),0)*$H119*$X119*$Y119),$D119)*$R119","v":0},{"$f":"MIN((IFERROR(IF(AND($V119<=AE$1,$W119>=AE$1),INDEX(Reliability!J$23:J$50,MATCH($S119,Reliability!$C$23:$C$50,0)),0),0)*IF($T119=\"n/a\",$D119*$Y119,$G119)+IFERROR(IF(AND($V119<=AE$1,$W119>=AE$1),INDEX(Reliability!J$23:J$50,MATCH($T119,Reliability!$C$23:$C$50,0)),0),0)*$H119*$X119*$Y119),$D119)*$R119","v":0},{"$f":"MIN((IFERROR(IF(AND($V119<=AF$1,$W119>=AF$1),INDEX(Reliability!K$23:K$50,MATCH($S119,Reliability!$C$23:$C$50,0)),0),0)*IF($T119=\"n/a\",$D119*$Y119,$G119)+IFERROR(IF(AND($V119<=AF$1,$W119>=AF$1),INDEX(Reliability!K$23:K$50,MATCH($T119,Reliability!$C$23:$C$50,0)),0),0)*$H119*$X119*$Y119),$D119)*$R119","v":0},{"$f":"MIN((IFERROR(IF(AND($V119<=AG$1,$W119>=AG$1),INDEX(Reliability!L$23:L$50,MATCH($S119,Reliability!$C$23:$C$50,0)),0),0)*IF($T119=\"n/a\",$D119*$Y119,$G119)+IFERROR(IF(AND($V119<=AG$1,$W119>=AG$1),INDEX(Reliability!L$23:L$50,MATCH($T119,Reliability!$C$23:$C$50,0)),0),0)*$H119*$X119*$Y119),$D119)*$R119","v":0},{"$f":"MIN((IFERROR(IF(AND($V119<=AH$1,$W119>=AH$1),INDEX(Reliability!M$23:M$50,MATCH($S119,Reliability!$C$23:$C$50,0)),0),0)*IF($T119=\"n/a\",$D119*$Y119,$G119)+IFERROR(IF(AND($V119<=AH$1,$W119>=AH$1),INDEX(Reliability!M$23:M$50,MATCH($T119,Reliability!$C$23:$C$50,0)),0),0)*$H119*$X119*$Y119),$D119)*$R119","v":0},{"$f":"MIN((IFERROR(IF(AND($V119<=AI$1,$W119>=AI$1),INDEX(Reliability!N$23:N$50,MATCH($S119,Reliability!$C$23:$C$50,0)),0),0)*IF($T119=\"n/a\",$D119*$Y119,$G119)+IFERROR(IF(AND($V119<=AI$1,$W119>=AI$1),INDEX(Reliability!N$23:N$50,MATCH($T119,Reliability!$C$23:$C$50,0)),0),0)*$H119*$X119*$Y119),$D119)*$R119","v":0},{"$f":"MIN((IFERROR(IF(AND($V119<=AJ$1,$W119>=AJ$1),INDEX(Reliability!O$23:O$50,MATCH($S119,Reliability!$C$23:$C$50,0)),0),0)*IF($T119=\"n/a\",$D119*$Y119,$G119)+IFERROR(IF(AND($V119<=AJ$1,$W119>=AJ$1),INDEX(Reliability!O$23:O$50,MATCH($T119,Reliability!$C$23:$C$50,0)),0),0)*$H119*$X119*$Y119),$D119)*$R119","v":0},{"$f":"MIN((IFERROR(IF(AND($V119<=AK$1,$W119>=AK$1),INDEX(Reliability!P$23:P$50,MATCH($S119,Reliability!$C$23:$C$50,0)),0),0)*IF($T119=\"n/a\",$D119*$Y119,$G119)+IFERROR(IF(AND($V119<=AK$1,$W119>=AK$1),INDEX(Reliability!P$23:P$50,MATCH($T119,Reliability!$C$23:$C$50,0)),0),0)*$H119*$X119*$Y119),$D119)*$R119","v":0}]
[null,{"$f":"unique_contracts!B121","v":0},{"$f":"unique_contracts!D121","v":0},{"$f":"unique_contracts!J121","v":0},{"$f":"unique_contracts!M121","v":0},{"$f":"unique_contracts!N121","v":0},{"$f":"unique_contracts!P121","v":0},{"$f":"unique_contracts!R121","v":0},{"$f":"unique_contracts!V121","v":0},{"$f":"unique_contracts!AB121","v":0},{"$f":"unique_contracts!AM121","v":0},{"$f":"unique_contracts!AN121","v":0},{"$f":"unique_contracts!AO121","v":0},{"$f":"unique_contracts!AP121","v":0},{"$f":"unique_contracts!AQ121","v":0},{"$f":"unique_contracts!AR121","v":0},{"$f":"unique_contracts!BP121","v":0},0,{"$f":"IFERROR(IF(AND(I120>0,E120=\"NotHybrid\"),_xlfn.CONCAT(MAX(MIN(ROUNDDOWN(I120/D120,0),8),4),INDEX(resources!$G:$G,MATCH(B120,resources!$A:$A,0))),INDEX(resources!$G:$G,MATCH(B120,resources!$A:$A,0))),\"n/a\")","v":"n/a"},"n/a","n/a",0,0,1,1,{"$f":"MIN((IFERROR(IF(AND($V120<=Z$1,$W120>=Z$1),INDEX(Reliability!E$23:E$50,MATCH($S120,Reliability!$C$23:$C$50,0)),0),0)*IF($T120=\"n/a\",$D120*$Y120,$G120)+IFERROR(IF(AND($V120<=Z$1,$W120>=Z$1),INDEX(Reliability!E$23:E$50,MATCH($T120,Reliability!$C$23:$C$50,0)),0),0)*$H120*$X120*$Y120),$D120)*$R120","v":0},{"$f":"MIN((IFERROR(IF(AND($V120<=AA$1,$W120>=AA$1),INDEX(Reliability!F$23:F$50,MATCH($S120,Reliability!$C$23:$C$50,0)),0),0)*IF($T120=\"n/a\",$D120*$Y120,$G120)+IFERROR(IF(AND($V120<=AA$1,$W120>=AA$1),INDEX(Reliability!F$23:F$50,MATCH($T120,Reliability!$C$23:$C$50,0)),0),0)*$H120*$X120*$Y120),$D120)*$R120","v":0},{"$f":"MIN((IFERROR(IF(AND($V120<=AB$1,$W120>=AB$1),INDEX(Reliability!G$23:G$50,MATCH($S120,Reliability!$C$23:$C$50,0)),0),0)*IF($T120=\"n/a\",$D120*$Y120,$G120)+IFERROR(IF(AND($V120<=AB$1,$W120>=AB$1),INDEX(Reliability!G$23:G$50,MATCH($T120,Reliability!$C$23:$C$50,0)),0),0)*$H120*$X120*$Y120),$D120)*$R120","v":0},{"$f":"MIN((IFERROR(IF(AND($V120<=AC$1,$W120>=AC$1),INDEX(Reliability!H$23:H$50,MATCH($S120,Reliability!$C$23:$C$50,0)),0),0)*IF($T120=\"n/a\",$D120*$Y120,$G120)+IFERROR(IF(AND($V120<=AC$1,$W120>=AC$1),INDEX(Reliability!H$23:H$50,MATCH($T120,Reliability!$C$23:$C$50,0)),0),0)*$H120*$X120*$Y120),$D120)*$R120","v":0},{"$f":"MIN((IFERROR(IF(AND($V120<=AD$1,$W120>=AD$1),INDEX(Reliability!I$23:I$50,MATCH($S120,Reliability!$C$23:$C$50,0)),0),0)*IF($T120=\"n/a\",$D120*$Y120,$G120)+IFERROR(IF(AND($V120<=AD$1,$W120>=AD$1),INDEX(Reliability!I$23:I$50,MATCH($T120,Reliability!$C$23:$C$50,0)),0),0)*$H120*$X120*$Y120),$D120)*$R120","v":0},{"$f":"MIN((IFERROR(IF(AND($V120<=AE$1,$W120>=AE$1),INDEX(Reliability!J$23:J$50,MATCH($S120,Reliability!$C$23:$C$50,0)),0),0)*IF($T120=\"n/a\",$D120*$Y120,$G120)+IFERROR(IF(AND($V120<=AE$1,$W120>=AE$1),INDEX(Reliability!J$23:J$50,MATCH($T120,Reliability!$C$23:$C$50,0)),0),0)*$H120*$X120*$Y120),$D120)*$R120","v":0},{"$f":"MIN((IFERROR(IF(AND($V120<=AF$1,$W120>=AF$1),INDEX(Reliability!K$23:K$50,MATCH($S120,Reliability!$C$23:$C$50,0)),0),0)*IF($T120=\"n/a\",$D120*$Y120,$G120)+IFERROR(IF(AND($V120<=AF$1,$W120>=AF$1),INDEX(Reliability!K$23:K$50,MATCH($T120,Reliability!$C$23:$C$50,0)),0),0)*$H120*$X120*$Y120),$D120)*$R120","v":0},{"$f":"MIN((IFERROR(IF(AND($V120<=AG$1,$W120>=AG$1),INDEX(Reliability!L$23:L$50,MATCH($S120,Reliability!$C$23:$C$50,0)),0),0)*IF($T120=\"n/a\",$D120*$Y120,$G120)+IFERROR(IF(AND($V120<=AG$1,$W120>=AG$1),INDEX(Reliability!L$23:L$50,MATCH($T120,Reliability!$C$23:$C$50,0)),0),0)*$H120*$X120*$Y120),$D120)*$R120","v":0},{"$f":"MIN((IFERROR(IF(AND($V120<=AH$1,$W120>=AH$1),INDEX(Reliability!M$23:M$50,MATCH($S120,Reliability!$C$23:$C$50,0)),0),0)*IF($T120=\"n/a\",$D120*$Y120,$G120)+IFERROR(IF(AND($V120<=AH$1,$W120>=AH$1),INDEX(Reliability!M$23:M$50,MATCH($T120,Reliability!$C$23:$C$50,0)),0),0)*$H120*$X120*$Y120),$D120)*$R120","v":0},{"$f":"MIN((IFERROR(IF(AND($V120<=AI$1,$W120>=AI$1),INDEX(Reliability!N$23:N$50,MATCH($S120,Reliability!$C$23:$C$50,0)),0),0)*IF($T120=\"n/a\",$D120*$Y120,$G120)+IFERROR(IF(AND($V120<=AI$1,$W120>=AI$1),INDEX(Reliability!N$23:N$50,MATCH($T120,Reliability!$C$23:$C$50,0)),0),0)*$H120*$X120*$Y120),$D120)*$R120","v":0},{"$f":"MIN((IFERROR(IF(AND($V120<=AJ$1,$W120>=AJ$1),INDEX(Reliability!O$23:O$50,MATCH($S120,Reliability!$C$23:$C$50,0)),0),0)*IF($T120=\"n/a\",$D120*$Y120,$G120)+IFERROR(IF(AND($V120<=AJ$1,$W120>=AJ$1),INDEX(Reliability!O$23:O$50,MATCH($T120,Reliability!$C$23:$C$50,0)),0),0)*$H120*$X120*$Y120),$D120)*$R120","v":0},{"$f":"MIN((IFERROR(IF(AND($V120<=AK$1,$W120>=AK$1),INDEX(Reliability!P$23:P$50,MATCH($S120,Reliability!$C$23:$C$50,0)),0),0)*IF($T120=\"n/a\",$D120*$Y120,$G120)+IFERROR(IF(AND($V120<=AK$1,$W120>=AK$1),INDEX(Reliability!P$23:P$50,MATCH($T120,Reliability!$C$23:$C$50,0)),0),0)*$H120*$X120*$Y120),$D120)*$R120","v":0}]
[null,{"$f":"unique_contracts!B122","v":0},{"$f":"unique_contracts!D122","v":0},{"$f":"unique_contracts!J122","v":0},{"$f":"unique_contracts!M122","v":0},{"$f":"unique_contracts!N122","v":0},{"$f":"unique_contracts!P122","v":0},{"$f":"unique_contracts!R122","v":0},{"$f":"unique_contracts!V122","v":0},{"$f":"unique_contracts!AB122","v":0},{"$f":"unique_contracts!AM122","v":0},{"$f":"unique_contracts!AN122","v":0},{"$f":"unique_contracts!AO122","v":0},{"$f":"unique_contracts!AP122","v":0},{"$f":"unique_contracts!AQ122","v":0},{"$f":"unique_contracts!AR122","v":0},{"$f":"unique_contracts!BP122","v":0},0,{"$f":"IFERROR(IF(AND(I121>0,E121=\"NotHybrid\"),_xlfn.CONCAT(MAX(MIN(ROUNDDOWN(I121/D121,0),8),4),INDEX(resources!$G:$G,MATCH(B121,resources!$A:$A,0))),INDEX(resources!$G:$G,MATCH(B121,resources!$A:$A,0))),\"n/a\")","v":"n/a"},"n/a","n/a",0,0,1,1,{"$f":"MIN((IFERROR(IF(AND($V121<=Z$1,$W121>=Z$1),INDEX(Reliability!E$23:E$50,MATCH($S121,Reliability!$C$23:$C$50,0)),0),0)*IF($T121=\"n/a\",$D121*$Y121,$G121)+IFERROR(IF(AND($V121<=Z$1,$W121>=Z$1),INDEX(Reliability!E$23:E$50,MATCH($T121,Reliability!$C$23:$C$50,0)),0),0)*$H121*$X121*$Y121),$D121)*$R121","v":0},{"$f":"MIN((IFERROR(IF(AND($V121<=AA$1,$W121>=AA$1),INDEX(Reliability!F$23:F$50,MATCH($S121,Reliability!$C$23:$C$50,0)),0),0)*IF($T121=\"n/a\",$D121*$Y121,$G121)+IFERROR(IF(AND($V121<=AA$1,$W121>=AA$1),INDEX(Reliability!F$23:F$50,MATCH($T121,Reliability!$C$23:$C$50,0)),0),0)*$H121*$X121*$Y121),$D121)*$R121","v":0},{"$f":"MIN((IFERROR(IF(AND($V121<=AB$1,$W121>=AB$1),INDEX(Reliability!G$23:G$50,MATCH($S121,Reliability!$C$23:$C$50,0)),0),0)*IF($T121=\"n/a\",$D121*$Y121,$G121)+IFERROR(IF(AND($V121<=AB$1,$W121>=AB$1),INDEX(Reliability!G$23:G$50,MATCH($T121,Reliability!$C$23:$C$50,0)),0),0)*$H121*$X121*$Y121),$D121)*$R121","v":0},{"$f":"MIN((IFERROR(IF(AND($V121<=AC$1,$W121>=AC$1),INDEX(Reliability!H$23:H$50,MATCH($S121,Reliability!$C$23:$C$50,0)),0),0)*IF($T121=\"n/a\",$D121*$Y121,$G121)+IFERROR(IF(AND($V121<=AC$1,$W121>=AC$1),INDEX(Reliability!H$23:H$50,MATCH($T121,Reliability!$C$23:$C$50,0)),0),0)*$H121*$X121*$Y121),$D121)*$R121","v":0},{"$f":"MIN((IFERROR(IF(AND($V121<=AD$1,$W121>=AD$1),INDEX(Reliability!I$23:I$50,MATCH($S121,Reliability!$C$23:$C$50,0)),0),0)*IF($T121=\"n/a\",$D121*$Y121,$G121)+IFERROR(IF(AND($V121<=AD$1,$W121>=AD$1),INDEX(Reliability!I$23:I$50,MATCH($T121,Reliability!$C$23:$C$50,0)),0),0)*$H121*$X121*$Y121),$D121)*$R121","v":0},{"$f":"MIN((IFERROR(IF(AND($V121<=AE$1,$W121>=AE$1),INDEX(Reliability!J$23:J$50,MATCH($S121,Reliability!$C$23:$C$50,0)),0),0)*IF($T121=\"n/a\",$D121*$Y121,$G121)+IFERROR(IF(AND($V121<=AE$1,$W121>=AE$1),INDEX(Reliability!J$23:J$50,MATCH($T121,Reliability!$C$23:$C$50,0)),0),0)*$H121*$X121*$Y121),$D121)*$R121","v":0},{"$f":"MIN((IFERROR(IF(AND($V121<=AF$1,$W121>=AF$1),INDEX(Reliability!K$23:K$50,MATCH($S121,Reliability!$C$23:$C$50,0)),0),0)*IF($T121=\"n/a\",$D121*$Y121,$G121)+IFERROR(IF(AND($V121<=AF$1,$W121>=AF$1),INDEX(Reliability!K$23:K$50,MATCH($T121,Reliability!$C$23:$C$50,0)),0),0)*$H121*$X121*$Y121),$D121)*$R121","v":0},{"$f":"MIN((IFERROR(IF(AND($V121<=AG$1,$W121>=AG$1),INDEX(Reliability!L$23:L$50,MATCH($S121,Reliability!$C$23:$C$50,0)),0),0)*IF($T121=\"n/a\",$D121*$Y121,$G121)+IFERROR(IF(AND($V121<=AG$1,$W121>=AG$1),INDEX(Reliability!L$23:L$50,MATCH($T121,Reliability!$C$23:$C$50,0)),0),0)*$H121*$X121*$Y121),$D121)*$R121","v":0},{"$f":"MIN((IFERROR(IF(AND($V121<=AH$1,$W121>=AH$1),INDEX(Reliability!M$23:M$50,MATCH($S121,Reliability!$C$23:$C$50,0)),0),0)*IF($T121=\"n/a\",$D121*$Y121,$G121)+IFERROR(IF(AND($V121<=AH$1,$W121>=AH$1),INDEX(Reliability!M$23:M$50,MATCH($T121,Reliability!$C$23:$C$50,0)),0),0)*$H121*$X121*$Y121),$D121)*$R121","v":0},{"$f":"MIN((IFERROR(IF(AND($V121<=AI$1,$W121>=AI$1),INDEX(Reliability!N$23:N$50,MATCH($S121,Reliability!$C$23:$C$50,0)),0),0)*IF($T121=\"n/a\",$D121*$Y121,$G121)+IFERROR(IF(AND($V121<=AI$1,$W121>=AI$1),INDEX(Reliability!N$23:N$50,MATCH($T121,Reliability!$C$23:$C$50,0)),0),0)*$H121*$X121*$Y121),$D121)*$R121","v":0},{"$f":"MIN((IFERROR(IF(AND($V121<=AJ$1,$W121>=AJ$1),INDEX(Reliability!O$23:O$50,MATCH($S121,Reliability!$C$23:$C$50,0)),0),0)*IF($T121=\"n/a\",$D121*$Y121,$G121)+IFERROR(IF(AND($V121<=AJ$1,$W121>=AJ$1),INDEX(Reliability!O$23:O$50,MATCH($T121,Reliability!$C$23:$C$50,0)),0),0)*$H121*$X121*$Y121),$D121)*$R121","v":0},{"$f":"MIN((IFERROR(IF(AND($V121<=AK$1,$W121>=AK$1),INDEX(Reliability!P$23:P$50,MATCH($S121,Reliability!$C$23:$C$50,0)),0),0)*IF($T121=\"n/a\",$D121*$Y121,$G121)+IFERROR(IF(AND($V121<=AK$1,$W121>=AK$1),INDEX(Reliability!P$23:P$50,MATCH($T121,Reliability!$C$23:$C$50,0)),0),0)*$H121*$X121*$Y121),$D121)*$R121","v":0}]
[null,{"$f":"unique_contracts!B123","v":0},{"$f":"unique_contracts!D123","v":0},{"$f":"unique_contracts!J123","v":0},{"$f":"unique_contracts!M123","v":0},{"$f":"unique_contracts!N123","v":0},{"$f":"unique_contracts!P123","v":0},{"$f":"unique_contracts!R123","v":0},{"$f":"unique_contracts!V123","v":0},{"$f":"unique_contracts!AB123","v":0},{"$f":"unique_contracts!AM123","v":0},{"$f":"unique_contracts!AN123","v":0},{"$f":"unique_contracts!AO123","v":0},{"$f":"unique_contracts!AP123","v":0},{"$f":"unique_contracts!AQ123","v":0},{"$f":"unique_contracts!AR123","v":0},{"$f":"unique_contracts!BP123","v":0},0,{"$f":"IFERROR(IF(AND(I122>0,E122=\"NotHybrid\"),_xlfn.CONCAT(MAX(MIN(ROUNDDOWN(I122/D122,0),8),4),INDEX(resources!$G:$G,MATCH(B122,resources!$A:$A,0))),INDEX(resources!$G:$G,MATCH(B122,resources!$A:$A,0))),\"n/a\")","v":"n/a"},"n/a","n/a",0,0,1,1,{"$f":"MIN((IFERROR(IF(AND($V122<=Z$1,$W122>=Z$1),INDEX(Reliability!E$23:E$50,MATCH($S122,Reliability!$C$23:$C$50,0)),0),0)*IF($T122=\"n/a\",$D122*$Y122,$G122)+IFERROR(IF(AND($V122<=Z$1,$W122>=Z$1),INDEX(Reliability!E$23:E$50,MATCH($T122,Reliability!$C$23:$C$50,0)),0),0)*$H122*$X122*$Y122),$D122)*$R122","v":0},{"$f":"MIN((IFERROR(IF(AND($V122<=AA$1,$W122>=AA$1),INDEX(Reliability!F$23:F$50,MATCH($S122,Reliability!$C$23:$C$50,0)),0),0)*IF($T122=\"n/a\",$D122*$Y122,$G122)+IFERROR(IF(AND($V122<=AA$1,$W122>=AA$1),INDEX(Reliability!F$23:F$50,MATCH($T122,Reliability!$C$23:$C$50,0)),0),0)*$H122*$X122*$Y122),$D122)*$R122","v":0},{"$f":"MIN((IFERROR(IF(AND($V122<=AB$1,$W122>=AB$1),INDEX(Reliability!G$23:G$50,MATCH($S122,Reliability!$C$23:$C$50,0)),0),0)*IF($T122=\"n/a\",$D122*$Y122,$G122)+IFERROR(IF(AND($V122<=AB$1,$W122>=AB$1),INDEX(Reliability!G$23:G$50,MATCH($T122,Reliability!$C$23:$C$50,0)),0),0)*$H122*$X122*$Y122),$D122)*$R122","v":0},{"$f":"MIN((IFERROR(IF(AND($V122<=AC$1,$W122>=AC$1),INDEX(Reliability!H$23:H$50,MATCH($S122,Reliability!$C$23:$C$50,0)),0),0)*IF($T122=\"n/a\",$D122*$Y122,$G122)+IFERROR(IF(AND($V122<=AC$1,$W122>=AC$1),INDEX(Reliability!H$23:H$50,MATCH($T122,Reliability!$C$23:$C$50,0)),0),0)*$H122*$X122*$Y122),$D122)*$R122","v":0},{"$f":"MIN((IFERROR(IF(AND($V122<=AD$1,$W122>=AD$1),INDEX(Reliability!I$23:I$50,MATCH($S122,Reliability!$C$23:$C$50,0)),0),0)*IF($T122=\"n/a\",$D122*$Y122,$G122)+IFERROR(IF(AND($V122<=AD$1,$W122>=AD$1),INDEX(Reliability!I$23:I$50,MATCH($T122,Reliability!$C$23:$C$50,0)),0),0)*$H122*$X122*$Y122),$D122)*$R122","v":0},{"$f":"MIN((IFERROR(IF(AND($V122<=AE$1,$W122>=AE$1),INDEX(Reliability!J$23:J$50,MATCH($S122,Reliability!$C$23:$C$50,0)),0),0)*IF($T122=\"n/a\",$D122*$Y122,$G122)+IFERROR(IF(AND($V122<=AE$1,$W122>=AE$1),INDEX(Reliability!J$23:J$50,MATCH($T122,Reliability!$C$23:$C$50,0)),0),0)*$H122*$X122*$Y122),$D122)*$R122","v":0},{"$f":"MIN((IFERROR(IF(AND($V122<=AF$1,$W122>=AF$1),INDEX(Reliability!K$23:K$50,MATCH($S122,Reliability!$C$23:$C$50,0)),0),0)*IF($T122=\"n/a\",$D122*$Y122,$G122)+IFERROR(IF(AND($V122<=AF$1,$W122>=AF$1),INDEX(Reliability!K$23:K$50,MATCH($T122,Reliability!$C$23:$C$50,0)),0),0)*$H122*$X122*$Y122),$D122)*$R122","v":0},{"$f":"MIN((IFERROR(IF(AND($V122<=AG$1,$W122>=AG$1),INDEX(Reliability!L$23:L$50,MATCH($S122,Reliability!$C$23:$C$50,0)),0),0)*IF($T122=\"n/a\",$D122*$Y122,$G122)+IFERROR(IF(AND($V122<=AG$1,$W122>=AG$1),INDEX(Reliability!L$23:L$50,MATCH($T122,Reliability!$C$23:$C$50,0)),0),0)*$H122*$X122*$Y122),$D122)*$R122","v":0},{"$f":"MIN((IFERROR(IF(AND($V122<=AH$1,$W122>=AH$1),INDEX(Reliability!M$23:M$50,MATCH($S122,Reliability!$C$23:$C$50,0)),0),0)*IF($T122=\"n/a\",$D122*$Y122,$G122)+IFERROR(IF(AND($V122<=AH$1,$W122>=AH$1),INDEX(Reliability!M$23:M$50,MATCH($T122,Reliability!$C$23:$C$50,0)),0),0)*$H122*$X122*$Y122),$D122)*$R122","v":0},{"$f":"MIN((IFERROR(IF(AND($V122<=AI$1,$W122>=AI$1),INDEX(Reliability!N$23:N$50,MATCH($S122,Reliability!$C$23:$C$50,0)),0),0)*IF($T122=\"n/a\",$D122*$Y122,$G122)+IFERROR(IF(AND($V122<=AI$1,$W122>=AI$1),INDEX(Reliability!N$23:N$50,MATCH($T122,Reliability!$C$23:$C$50,0)),0),0)*$H122*$X122*$Y122),$D122)*$R122","v":0},{"$f":"MIN((IFERROR(IF(AND($V122<=AJ$1,$W122>=AJ$1),INDEX(Reliability!O$23:O$50,MATCH($S122,Reliability!$C$23:$C$50,0)),0),0)*IF($T122=\"n/a\",$D122*$Y122,$G122)+IFERROR(IF(AND($V122<=AJ$1,$W122>=AJ$1),INDEX(Reliability!O$23:O$50,MATCH($T122,Reliability!$C$23:$C$50,0)),0),0)*$H122*$X122*$Y122),$D122)*$R122","v":0},{"$f":"MIN((IFERROR(IF(AND($V122<=AK$1,$W122>=AK$1),INDEX(Reliability!P$23:P$50,MATCH($S122,Reliability!$C$23:$C$50,0)),0),0)*IF($T122=\"n/a\",$D122*$Y122,$G122)+IFERROR(IF(AND($V122<=AK$1,$W122>=AK$1),INDEX(Reliability!P$23:P$50,MATCH($T122,Reliability!$C$23:$C$50,0)),0),0)*$H122*$X122*$Y122),$D122)*$R122","v":0}]
[null,{"$f":"unique_contracts!B124","v":0},{"$f":"unique_contracts!D124","v":0},{"$f":"unique_contracts!J124","v":0},{"$f":"unique_contracts!M124","v":0},{"$f":"unique_contracts!N124","v":0},{"$f":"unique_contracts!P124","v":0},{"$f":"unique_contracts!R124","v":0},{"$f":"unique_contracts!V124","v":0},{"$f":"unique_contracts!AB124","v":0},{"$f":"unique_contracts!AM124","v":0},{"$f":"unique_contracts!AN124","v":0},{"$f":"unique_contracts!AO124","v":0},{"$f":"unique_contracts!AP124","v":0},{"$f":"unique_contracts!AQ124","v":0},{"$f":"unique_contracts!AR124","v":0},{"$f":"unique_contracts!BP124","v":0},0,{"$f":"IFERROR(IF(AND(I123>0,E123=\"NotHybrid\"),_xlfn.CONCAT(MAX(MIN(ROUNDDOWN(I123/D123,0),8),4),INDEX(resources!$G:$G,MATCH(B123,resources!$A:$A,0))),INDEX(resources!$G:$G,MATCH(B123,resources!$A:$A,0))),\"n/a\")","v":"n/a"},"n/a","n/a",0,0,1,1,{"$f":"MIN((IFERROR(IF(AND($V123<=Z$1,$W123>=Z$1),INDEX(Reliability!E$23:E$50,MATCH($S123,Reliability!$C$23:$C$50,0)),0),0)*IF($T123=\"n/a\",$D123*$Y123,$G123)+IFERROR(IF(AND($V123<=Z$1,$W123>=Z$1),INDEX(Reliability!E$23:E$50,MATCH($T123,Reliability!$C$23:$C$50,0)),0),0)*$H123*$X123*$Y123),$D123)*$R123","v":0},{"$f":"MIN((IFERROR(IF(AND($V123<=AA$1,$W123>=AA$1),INDEX(Reliability!F$23:F$50,MATCH($S123,Reliability!$C$23:$C$50,0)),0),0)*IF($T123=\"n/a\",$D123*$Y123,$G123)+IFERROR(IF(AND($V123<=AA$1,$W123>=AA$1),INDEX(Reliability!F$23:F$50,MATCH($T123,Reliability!$C$23:$C$50,0)),0),0)*$H123*$X123*$Y123),$D123)*$R123","v":0},{"$f":"MIN((IFERROR(IF(AND($V123<=AB$1,$W123>=AB$1),INDEX(Reliability!G$23:G$50,MATCH($S123,Reliability!$C$23:$C$50,0)),0),0)*IF($T123=\"n/a\",$D123*$Y123,$G123)+IFERROR(IF(AND($V123<=AB$1,$W123>=AB$1),INDEX(Reliability!G$23:G$50,MATCH($T123,Reliability!$C$23:$C$50,0)),0),0)*$H123*$X123*$Y123),$D123)*$R123","v":0},{"$f":"MIN((IFERROR(IF(AND($V123<=AC$1,$W123>=AC$1),INDEX(Reliability!H$23:H$50,MATCH($S123,Reliability!$C$23:$C$50,0)),0),0)*IF($T123=\"n/a\",$D123*$Y123,$G123)+IFERROR(IF(AND($V123<=AC$1,$W123>=AC$1),INDEX(Reliability!H$23:H$50,MATCH($T123,Reliability!$C$23:$C$50,0)),0),0)*$H123*$X123*$Y123),$D123)*$R123","v":0},{"$f":"MIN((IFERROR(IF(AND($V123<=AD$1,$W123>=AD$1),INDEX(Reliability!I$23:I$50,MATCH($S123,Reliability!$C$23:$C$50,0)),0),0)*IF($T123=\"n/a\",$D123*$Y123,$G123)+IFERROR(IF(AND($V123<=AD$1,$W123>=AD$1),INDEX(Reliability!I$23:I$50,MATCH($T123,Reliability!$C$23:$C$50,0)),0),0)*$H123*$X123*$Y123),$D123)*$R123","v":0},{"$f":"MIN((IFERROR(IF(AND($V123<=AE$1,$W123>=AE$1),INDEX(Reliability!J$23:J$50,MATCH($S123,Reliability!$C$23:$C$50,0)),0),0)*IF($T123=\"n/a\",$D123*$Y123,$G123)+IFERROR(IF(AND($V123<=AE$1,$W123>=AE$1),INDEX(Reliability!J$23:J$50,MATCH($T123,Reliability!$C$23:$C$50,0)),0),0)*$H123*$X123*$Y123),$D123)*$R123","v":0},{"$f":"MIN((IFERROR(IF(AND($V123<=AF$1,$W123>=AF$1),INDEX(Reliability!K$23:K$50,MATCH($S123,Reliability!$C$23:$C$50,0)),0),0)*IF($T123=\"n/a\",$D123*$Y123,$G123)+IFERROR(IF(AND($V123<=AF$1,$W123>=AF$1),INDEX(Reliability!K$23:K$50,MATCH($T123,Reliability!$C$23:$C$50,0)),0),0)*$H123*$X123*$Y123),$D123)*$R123","v":0},{"$f":"MIN((IFERROR(IF(AND($V123<=AG$1,$W123>=AG$1),INDEX(Reliability!L$23:L$50,MATCH($S123,Reliability!$C$23:$C$50,0)),0),0)*IF($T123=\"n/a\",$D123*$Y123,$G123)+IFERROR(IF(AND($V123<=AG$1,$W123>=AG$1),INDEX(Reliability!L$23:L$50,MATCH($T123,Reliability!$C$23:$C$50,0)),0),0)*$H123*$X123*$Y123),$D123)*$R123","v":0},{"$f":"MIN((IFERROR(IF(AND($V123<=AH$1,$W123>=AH$1),INDEX(Reliability!M$23:M$50,MATCH($S123,Reliability!$C$23:$C$50,0)),0),0)*IF($T123=\"n/a\",$D123*$Y123,$G123)+IFERROR(IF(AND($V123<=AH$1,$W123>=AH$1),INDEX(Reliability!M$23:M$50,MATCH($T123,Reliability!$C$23:$C$50,0)),0),0)*$H123*$X123*$Y123),$D123)*$R123","v":0},{"$f":"MIN((IFERROR(IF(AND($V123<=AI$1,$W123>=AI$1),INDEX(Reliability!N$23:N$50,MATCH($S123,Reliability!$C$23:$C$50,0)),0),0)*IF($T123=\"n/a\",$D123*$Y123,$G123)+IFERROR(IF(AND($V123<=AI$1,$W123>=AI$1),INDEX(Reliability!N$23:N$50,MATCH($T123,Reliability!$C$23:$C$50,0)),0),0)*$H123*$X123*$Y123),$D123)*$R123","v":0},{"$f":"MIN((IFERROR(IF(AND($V123<=AJ$1,$W123>=AJ$1),INDEX(Reliability!O$23:O$50,MATCH($S123,Reliability!$C$23:$C$50,0)),0),0)*IF($T123=\"n/a\",$D123*$Y123,$G123)+IFERROR(IF(AND($V123<=AJ$1,$W123>=AJ$1),INDEX(Reliability!O$23:O$50,MATCH($T123,Reliability!$C$23:$C$50,0)),0),0)*$H123*$X123*$Y123),$D123)*$R123","v":0},{"$f":"MIN((IFERROR(IF(AND($V123<=AK$1,$W123>=AK$1),INDEX(Reliability!P$23:P$50,MATCH($S123,Reliability!$C$23:$C$50,0)),0),0)*IF($T123=\"n/a\",$D123*$Y123,$G123)+IFERROR(IF(AND($V123<=AK$1,$W123>=AK$1),INDEX(Reliability!P$23:P$50,MATCH($T123,Reliability!$C$23:$C$50,0)),0),0)*$H123*$X123*$Y123),$D123)*$R123","v":0}]
[null,{"$f":"unique_contracts!B125","v":0},{"$f":"unique_contracts!D125","v":0},{"$f":"unique_contracts!J125","v":0},{"$f":"unique_contracts!M125","v":0},{"$f":"unique_contracts!N125","v":0},{"$f":"unique_contracts!P125","v":0},{"$f":"unique_contracts!R125","v":0},{"$f":"unique_contracts!V125","v":0},{"$f":"unique_contracts!AB125","v":0},{"$f":"unique_contracts!AM125","v":0},{"$f":"unique_contracts!AN125","v":0},{"$f":"unique_contracts!AO125","v":0},{"$f":"unique_contracts!AP125","v":0},{"$f":"unique_contracts!AQ125","v":0},{"$f":"unique_contracts!AR125","v":0},{"$f":"unique_contracts!BP125","v":0},0,{"$f":"IFERROR(IF(AND(I124>0,E124=\"NotHybrid\"),_xlfn.CONCAT(MAX(MIN(ROUNDDOWN(I124/D124,0),8),4),INDEX(resources!$G:$G,MATCH(B124,resources!$A:$A,0))),INDEX(resources!$G:$G,MATCH(B124,resources!$A:$A,0))),\"n/a\")","v":"n/a"},"n/a","n/a",0,0,1,1,{"$f":"MIN((IFERROR(IF(AND($V124<=Z$1,$W124>=Z$1),INDEX(Reliability!E$23:E$50,MATCH($S124,Reliability!$C$23:$C$50,0)),0),0)*IF($T124=\"n/a\",$D124*$Y124,$G124)+IFERROR(IF(AND($V124<=Z$1,$W124>=Z$1),INDEX(Reliability!E$23:E$50,MATCH($T124,Reliability!$C$23:$C$50,0)),0),0)*$H124*$X124*$Y124),$D124)*$R124","v":0},{"$f":"MIN((IFERROR(IF(AND($V124<=AA$1,$W124>=AA$1),INDEX(Reliability!F$23:F$50,MATCH($S124,Reliability!$C$23:$C$50,0)),0),0)*IF($T124=\"n/a\",$D124*$Y124,$G124)+IFERROR(IF(AND($V124<=AA$1,$W124>=AA$1),INDEX(Reliability!F$23:F$50,MATCH($T124,Reliability!$C$23:$C$50,0)),0),0)*$H124*$X124*$Y124),$D124)*$R124","v":0},{"$f":"MIN((IFERROR(IF(AND($V124<=AB$1,$W124>=AB$1),INDEX(Reliability!G$23:G$50,MATCH($S124,Reliability!$C$23:$C$50,0)),0),0)*IF($T124=\"n/a\",$D124*$Y124,$G124)+IFERROR(IF(AND($V124<=AB$1,$W124>=AB$1),INDEX(Reliability!G$23:G$50,MATCH($T124,Reliability!$C$23:$C$50,0)),0),0)*$H124*$X124*$Y124),$D124)*$R124","v":0},{"$f":"MIN((IFERROR(IF(AND($V124<=AC$1,$W124>=AC$1),INDEX(Reliability!H$23:H$50,MATCH($S124,Reliability!$C$23:$C$50,0)),0),0)*IF($T124=\"n/a\",$D124*$Y124,$G124)+IFERROR(IF(AND($V124<=AC$1,$W124>=AC$1),INDEX(Reliability!H$23:H$50,MATCH($T124,Reliability!$C$23:$C$50,0)),0),0)*$H124*$X124*$Y124),$D124)*$R124","v":0},{"$f":"MIN((IFERROR(IF(AND($V124<=AD$1,$W124>=AD$1),INDEX(Reliability!I$23:I$50,MATCH($S124,Reliability!$C$23:$C$50,0)),0),0)*IF($T124=\"n/a\",$D124*$Y124,$G124)+IFERROR(IF(AND($V124<=AD$1,$W124>=AD$1),INDEX(Reliability!I$23:I$50,MATCH($T124,Reliability!$C$23:$C$50,0)),0),0)*$H124*$X124*$Y124),$D124)*$R124","v":0},{"$f":"MIN((IFERROR(IF(AND($V124<=AE$1,$W124>=AE$1),INDEX(Reliability!J$23:J$50,MATCH($S124,Reliability!$C$23:$C$50,0)),0),0)*IF($T124=\"n/a\",$D124*$Y124,$G124)+IFERROR(IF(AND($V124<=AE$1,$W124>=AE$1),INDEX(Reliability!J$23:J$50,MATCH($T124,Reliability!$C$23:$C$50,0)),0),0)*$H124*$X124*$Y124),$D124)*$R124","v":0},{"$f":"MIN((IFERROR(IF(AND($V124<=AF$1,$W124>=AF$1),INDEX(Reliability!K$23:K$50,MATCH($S124,Reliability!$C$23:$C$50,0)),0),0)*IF($T124=\"n/a\",$D124*$Y124,$G124)+IFERROR(IF(AND($V124<=AF$1,$W124>=AF$1),INDEX(Reliability!K$23:K$50,MATCH($T124,Reliability!$C$23:$C$50,0)),0),0)*$H124*$X124*$Y124),$D124)*$R124","v":0},{"$f":"MIN((IFERROR(IF(AND($V124<=AG$1,$W124>=AG$1),INDEX(Reliability!L$23:L$50,MATCH($S124,Reliability!$C$23:$C$50,0)),0),0)*IF($T124=\"n/a\",$D124*$Y124,$G124)+IFERROR(IF(AND($V124<=AG$1,$W124>=AG$1),INDEX(Reliability!L$23:L$50,MATCH($T124,Reliability!$C$23:$C$50,0)),0),0)*$H124*$X124*$Y124),$D124)*$R124","v":0},{"$f":"MIN((IFERROR(IF(AND($V124<=AH$1,$W124>=AH$1),INDEX(Reliability!M$23:M$50,MATCH($S124,Reliability!$C$23:$C$50,0)),0),0)*IF($T124=\"n/a\",$D124*$Y124,$G124)+IFERROR(IF(AND($V124<=AH$1,$W124>=AH$1),INDEX(Reliability!M$23:M$50,MATCH($T124,Reliability!$C$23:$C$50,0)),0),0)*$H124*$X124*$Y124),$D124)*$R124","v":0},{"$f":"MIN((IFERROR(IF(AND($V124<=AI$1,$W124>=AI$1),INDEX(Reliability!N$23:N$50,MATCH($S124,Reliability!$C$23:$C$50,0)),0),0)*IF($T124=\"n/a\",$D124*$Y124,$G124)+IFERROR(IF(AND($V124<=AI$1,$W124>=AI$1),INDEX(Reliability!N$23:N$50,MATCH($T124,Reliability!$C$23:$C$50,0)),0),0)*$H124*$X124*$Y124),$D124)*$R124","v":0},{"$f":"MIN((IFERROR(IF(AND($V124<=AJ$1,$W124>=AJ$1),INDEX(Reliability!O$23:O$50,MATCH($S124,Reliability!$C$23:$C$50,0)),0),0)*IF($T124=\"n/a\",$D124*$Y124,$G124)+IFERROR(IF(AND($V124<=AJ$1,$W124>=AJ$1),INDEX(Reliability!O$23:O$50,MATCH($T124,Reliability!$C$23:$C$50,0)),0),0)*$H124*$X124*$Y124),$D124)*$R124","v":0},{"$f":"MIN((IFERROR(IF(AND($V124<=AK$1,$W124>=AK$1),INDEX(Reliability!P$23:P$50,MATCH($S124,Reliability!$C$23:$C$50,0)),0),0)*IF($T124=\"n/a\",$D124*$Y124,$G124)+IFERROR(IF(AND($V124<=AK$1,$W124>=AK$1),INDEX(Reliability!P$23:P$50,MATCH($T124,Reliability!$C$23:$C$50,0)),0),0)*$H124*$X124*$Y124),$D124)*$R124","v":0}]
[null,{"$f":"unique_contracts!B126","v":0},{"$f":"unique_contracts!D126","v":0},{"$f":"unique_contracts!J126","v":0},{"$f":"unique_contracts!M126","v":0},{"$f":"unique_contracts!N126","v":0},{"$f":"unique_contracts!P126","v":0},{"$f":"unique_contracts!R126","v":0},{"$f":"unique_contracts!V126","v":0},{"$f":"unique_contracts!AB126","v":0},{"$f":"unique_contracts!AM126","v":0},{"$f":"unique_contracts!AN126","v":0},{"$f":"unique_contracts!AO126","v":0},{"$f":"unique_contracts!AP126","v":0},{"$f":"unique_contracts!AQ126","v":0},{"$f":"unique_contracts!AR126","v":0},{"$f":"unique_contracts!BP126","v":0},0,{"$f":"IFERROR(IF(AND(I125>0,E125=\"NotHybrid\"),_xlfn.CONCAT(MAX(MIN(ROUNDDOWN(I125/D125,0),8),4),INDEX(resources!$G:$G,MATCH(B125,resources!$A:$A,0))),INDEX(resources!$G:$G,MATCH(B125,resources!$A:$A,0))),\"n/a\")","v":"n/a"},"n/a","n/a",0,0,1,1,{"$f":"MIN((IFERROR(IF(AND($V125<=Z$1,$W125>=Z$1),INDEX(Reliability!E$23:E$50,MATCH($S125,Reliability!$C$23:$C$50,0)),0),0)*IF($T125=\"n/a\",$D125*$Y125,$G125)+IFERROR(IF(AND($V125<=Z$1,$W125>=Z$1),INDEX(Reliability!E$23:E$50,MATCH($T125,Reliability!$C$23:$C$50,0)),0),0)*$H125*$X125*$Y125),$D125)*$R125","v":0},{"$f":"MIN((IFERROR(IF(AND($V125<=AA$1,$W125>=AA$1),INDEX(Reliability!F$23:F$50,MATCH($S125,Reliability!$C$23:$C$50,0)),0),0)*IF($T125=\"n/a\",$D125*$Y125,$G125)+IFERROR(IF(AND($V125<=AA$1,$W125>=AA$1),INDEX(Reliability!F$23:F$50,MATCH($T125,Reliability!$C$23:$C$50,0)),0),0)*$H125*$X125*$Y125),$D125)*$R125","v":0},{"$f":"MIN((IFERROR(IF(AND($V125<=AB$1,$W125>=AB$1),INDEX(Reliability!G$23:G$50,MATCH($S125,Reliability!$C$23:$C$50,0)),0),0)*IF($T125=\"n/a\",$D125*$Y125,$G125)+IFERROR(IF(AND($V125<=AB$1,$W125>=AB$1),INDEX(Reliability!G$23:G$50,MATCH($T125,Reliability!$C$23:$C$50,0)),0),0)*$H125*$X125*$Y125),$D125)*$R125","v":0},{"$f":"MIN((IFERROR(IF(AND($V125<=AC$1,$W125>=AC$1),INDEX(Reliability!H$23:H$50,MATCH($S125,Reliability!$C$23:$C$50,0)),0),0)*IF($T125=\"n/a\",$D125*$Y125,$G125)+IFERROR(IF(AND($V125<=AC$1,$W125>=AC$1),INDEX(Reliability!H$23:H$50,MATCH($T125,Reliability!$C$23:$C$50,0)),0),0)*$H125*$X125*$Y125),$D125)*$R125","v":0},{"$f":"MIN((IFERROR(IF(AND($V125<=AD$1,$W125>=AD$1),INDEX(Reliability!I$23:I$50,MATCH($S125,Reliability!$C$23:$C$50,0)),0),0)*IF($T125=\"n/a\",$D125*$Y125,$G125)+IFERROR(IF(AND($V125<=AD$1,$W125>=AD$1),INDEX(Reliability!I$23:I$50,MATCH($T125,Reliability!$C$23:$C$50,0)),0),0)*$H125*$X125*$Y125),$D125)*$R125","v":0},{"$f":"MIN((IFERROR(IF(AND($V125<=AE$1,$W125>=AE$1),INDEX(Reliability!J$23:J$50,MATCH($S125,Reliability!$C$23:$C$50,0)),0),0)*IF($T125=\"n/a\",$D125*$Y125,$G125)+IFERROR(IF(AND($V125<=AE$1,$W125>=AE$1),INDEX(Reliability!J$23:J$50,MATCH($T125,Reliability!$C$23:$C$50,0)),0),0)*$H125*$X125*$Y125),$D125)*$R125","v":0},{"$f":"MIN((IFERROR(IF(AND($V125<=AF$1,$W125>=AF$1),INDEX(Reliability!K$23:K$50,MATCH($S125,Reliability!$C$23:$C$50,0)),0),0)*IF($T125=\"n/a\",$D125*$Y125,$G125)+IFERROR(IF(AND($V125<=AF$1,$W125>=AF$1),INDEX(Reliability!K$23:K$50,MATCH($T125,Reliability!$C$23:$C$50,0)),0),0)*$H125*$X125*$Y125),$D125)*$R125","v":0},{"$f":"MIN((IFERROR(IF(AND($V125<=AG$1,$W125>=AG$1),INDEX(Reliability!L$23:L$50,MATCH($S125,Reliability!$C$23:$C$50,0)),0),0)*IF($T125=\"n/a\",$D125*$Y125,$G125)+IFERROR(IF(AND($V125<=AG$1,$W125>=AG$1),INDEX(Reliability!L$23:L$50,MATCH($T125,Reliability!$C$23:$C$50,0)),0),0)*$H125*$X125*$Y125),$D125)*$R125","v":0},{"$f":"MIN((IFERROR(IF(AND($V125<=AH$1,$W125>=AH$1),INDEX(Reliability!M$23:M$50,MATCH($S125,Reliability!$C$23:$C$50,0)),0),0)*IF($T125=\"n/a\",$D125*$Y125,$G125)+IFERROR(IF(AND($V125<=AH$1,$W125>=AH$1),INDEX(Reliability!M$23:M$50,MATCH($T125,Reliability!$C$23:$C$50,0)),0),0)*$H125*$X125*$Y125),$D125)*$R125","v":0},{"$f":"MIN((IFERROR(IF(AND($V125<=AI$1,$W125>=AI$1),INDEX(Reliability!N$23:N$50,MATCH($S125,Reliability!$C$23:$C$50,0)),0),0)*IF($T125=\"n/a\",$D125*$Y125,$G125)+IFERROR(IF(AND($V125<=AI$1,$W125>=AI$1),INDEX(Reliability!N$23:N$50,MATCH($T125,Reliability!$C$23:$C$50,0)),0),0)*$H125*$X125*$Y125),$D125)*$R125","v":0},{"$f":"MIN((IFERROR(IF(AND($V125<=AJ$1,$W125>=AJ$1),INDEX(Reliability!O$23:O$50,MATCH($S125,Reliability!$C$23:$C$50,0)),0),0)*IF($T125=\"n/a\",$D125*$Y125,$G125)+IFERROR(IF(AND($V125<=AJ$1,$W125>=AJ$1),INDEX(Reliability!O$23:O$50,MATCH($T125,Reliability!$C$23:$C$50,0)),0),0)*$H125*$X125*$Y125),$D125)*$R125","v":0},{"$f":"MIN((IFERROR(IF(AND($V125<=AK$1,$W125>=AK$1),INDEX(Reliability!P$23:P$50,MATCH($S125,Reliability!$C$23:$C$50,0)),0),0)*IF($T125=\"n/a\",$D125*$Y125,$G125)+IFERROR(IF(AND($V125<=AK$1,$W125>=AK$1),INDEX(Reliability!P$23:P$50,MATCH($T125,Reliability!$C$23:$C$50,0)),0),0)*$H125*$X125*$Y125),$D125)*$R125","v":0}]
[null,{"$f":"unique_contracts!B127","v":0},{"$f":"unique_contracts!D127","v":0},{"$f":"unique_contracts!J127","v":0},{"$f":"unique_contracts!M127","v":0},{"$f":"unique_contracts!N127","v":0},{"$f":"unique_contracts!P127","v":0},{"$f":"unique_contracts!R127","v":0},{"$f":"unique_contracts!V127","v":0},{"$f":"unique_contracts!AB127","v":0},{"$f":"unique_contracts!AM127","v":0},{"$f":"unique_contracts!AN127","v":0},{"$f":"unique_contracts!AO127","v":0},{"$f":"unique_contracts!AP127","v":0},{"$f":"unique_contracts!AQ127","v":0},{"$f":"unique_contracts!AR127","v":0},{"$f":"unique_contracts!BP127","v":0},0,{"$f":"IFERROR(IF(AND(I126>0,E126=\"NotHybrid\"),_xlfn.CONCAT(MAX(MIN(ROUNDDOWN(I126/D126,0),8),4),INDEX(resources!$G:$G,MATCH(B126,resources!$A:$A,0))),INDEX(resources!$G:$G,MATCH(B126,resources!$A:$A,0))),\"n/a\")","v":"n/a"},"n/a","n/a",0,0,1,1,{"$f":"MIN((IFERROR(IF(AND($V126<=Z$1,$W126>=Z$1),INDEX(Reliability!E$23:E$50,MATCH($S126,Reliability!$C$23:$C$50,0)),0),0)*IF($T126=\"n/a\",$D126*$Y126,$G126)+IFERROR(IF(AND($V126<=Z$1,$W126>=Z$1),INDEX(Reliability!E$23:E$50,MATCH($T126,Reliability!$C$23:$C$50,0)),0),0)*$H126*$X126*$Y126),$D126)*$R126","v":0},{"$f":"MIN((IFERROR(IF(AND($V126<=AA$1,$W126>=AA$1),INDEX(Reliability!F$23:F$50,MATCH($S126,Reliability!$C$23:$C$50,0)),0),0)*IF($T126=\"n/a\",$D126*$Y126,$G126)+IFERROR(IF(AND($V126<=AA$1,$W126>=AA$1),INDEX(Reliability!F$23:F$50,MATCH($T126,Reliability!$C$23:$C$50,0)),0),0)*$H126*$X126*$Y126),$D126)*$R126","v":0},{"$f":"MIN((IFERROR(IF(AND($V126<=AB$1,$W126>=AB$1),INDEX(Reliability!G$23:G$50,MATCH($S126,Reliability!$C$23:$C$50,0)),0),0)*IF($T126=\"n/a\",$D126*$Y126,$G126)+IFERROR(IF(AND($V126<=AB$1,$W126>=AB$1),INDEX(Reliability!G$23:G$50,MATCH($T126,Reliability!$C$23:$C$50,0)),0),0)*$H126*$X126*$Y126),$D126)*$R126","v":0},{"$f":"MIN((IFERROR(IF(AND($V126<=AC$1,$W126>=AC$1),INDEX(Reliability!H$23:H$50,MATCH($S126,Reliability!$C$23:$C$50,0)),0),0)*IF($T126=\"n/a\",$D126*$Y126,$G126)+IFERROR(IF(AND($V126<=AC$1,$W126>=AC$1),INDEX(Reliability!H$23:H$50,MATCH($T126,Reliability!$C$23:$C$50,0)),0),0)*$H126*$X126*$Y126),$D126)*$R126","v":0},{"$f":"MIN((IFERROR(IF(AND($V126<=AD$1,$W126>=AD$1),INDEX(Reliability!I$23:I$50,MATCH($S126,Reliability!$C$23:$C$50,0)),0),0)*IF($T126=\"n/a\",$D126*$Y126,$G126)+IFERROR(IF(AND($V126<=AD$1,$W126>=AD$1),INDEX(Reliability!I$23:I$50,MATCH($T126,Reliability!$C$23:$C$50,0)),0),0)*$H126*$X126*$Y126),$D126)*$R126","v":0},{"$f":"MIN((IFERROR(IF(AND($V126<=AE$1,$W126>=AE$1),INDEX(Reliability!J$23:J$50,MATCH($S126,Reliability!$C$23:$C$50,0)),0),0)*IF($T126=\"n/a\",$D126*$Y126,$G126)+IFERROR(IF(AND($V126<=AE$1,$W126>=AE$1),INDEX(Reliability!J$23:J$50,MATCH($T126,Reliability!$C$23:$C$50,0)),0),0)*$H126*$X126*$Y126),$D126)*$R126","v":0},{"$f":"MIN((IFERROR(IF(AND($V126<=AF$1,$W126>=AF$1),INDEX(Reliability!K$23:K$50,MATCH($S126,Reliability!$C$23:$C$50,0)),0),0)*IF($T126=\"n/a\",$D126*$Y126,$G126)+IFERROR(IF(AND($V126<=AF$1,$W126>=AF$1),INDEX(Reliability!K$23:K$50,MATCH($T126,Reliability!$C$23:$C$50,0)),0),0)*$H126*$X126*$Y126),$D126)*$R126","v":0},{"$f":"MIN((IFERROR(IF(AND($V126<=AG$1,$W126>=AG$1),INDEX(Reliability!L$23:L$50,MATCH($S126,Reliability!$C$23:$C$50,0)),0),0)*IF($T126=\"n/a\",$D126*$Y126,$G126)+IFERROR(IF(AND($V126<=AG$1,$W126>=AG$1),INDEX(Reliability!L$23:L$50,MATCH($T126,Reliability!$C$23:$C$50,0)),0),0)*$H126*$X126*$Y126),$D126)*$R126","v":0},{"$f":"MIN((IFERROR(IF(AND($V126<=AH$1,$W126>=AH$1),INDEX(Reliability!M$23:M$50,MATCH($S126,Reliability!$C$23:$C$50,0)),0),0)*IF($T126=\"n/a\",$D126*$Y126,$G126)+IFERROR(IF(AND($V126<=AH$1,$W126>=AH$1),INDEX(Reliability!M$23:M$50,MATCH($T126,Reliability!$C$23:$C$50,0)),0),0)*$H126*$X126*$Y126),$D126)*$R126","v":0},{"$f":"MIN((IFERROR(IF(AND($V126<=AI$1,$W126>=AI$1),INDEX(Reliability!N$23:N$50,MATCH($S126,Reliability!$C$23:$C$50,0)),0),0)*IF($T126=\"n/a\",$D126*$Y126,$G126)+IFERROR(IF(AND($V126<=AI$1,$W126>=AI$1),INDEX(Reliability!N$23:N$50,MATCH($T126,Reliability!$C$23:$C$50,0)),0),0)*$H126*$X126*$Y126),$D126)*$R126","v":0},{"$f":"MIN((IFERROR(IF(AND($V126<=AJ$1,$W126>=AJ$1),INDEX(Reliability!O$23:O$50,MATCH($S126,Reliability!$C$23:$C$50,0)),0),0)*IF($T126=\"n/a\",$D126*$Y126,$G126)+IFERROR(IF(AND($V126<=AJ$1,$W126>=AJ$1),INDEX(Reliability!O$23:O$50,MATCH($T126,Reliability!$C$23:$C$50,0)),0),0)*$H126*$X126*$Y126),$D126)*$R126","v":0},{"$f":"MIN((IFERROR(IF(AND($V126<=AK$1,$W126>=AK$1),INDEX(Reliability!P$23:P$50,MATCH($S126,Reliability!$C$23:$C$50,0)),0),0)*IF($T126=\"n/a\",$D126*$Y126,$G126)+IFERROR(IF(AND($V126<=AK$1,$W126>=AK$1),INDEX(Reliability!P$23:P$50,MATCH($T126,Reliability!$C$23:$C$50,0)),0),0)*$H126*$X126*$Y126),$D126)*$R126","v":0}]
[null,{"$f":"unique_contracts!B128","v":0},{"$f":"unique_contracts!D128","v":0},{"$f":"unique_contracts!J128","v":0},{"$f":"unique_contracts!M128","v":0},{"$f":"unique_contracts!N128","v":0},{"$f":"unique_contracts!P128","v":0},{"$f":"unique_contracts!R128","v":0},{"$f":"unique_contracts!V128","v":0},{"$f":"unique_contracts!AB128","v":0},{"$f":"unique_contracts!AM128","v":0},{"$f":"unique_contracts!AN128","v":0},{"$f":"unique_contracts!AO128","v":0},{"$f":"unique_contracts!AP128","v":0},{"$f":"unique_contracts!AQ128","v":0},{"$f":"unique_contracts!AR128","v":0},{"$f":"unique_contracts!BP128","v":0},0,{"$f":"IFERROR(IF(AND(I127>0,E127=\"NotHybrid\"),_xlfn.CONCAT(MAX(MIN(ROUNDDOWN(I127/D127,0),8),4),INDEX(resources!$G:$G,MATCH(B127,resources!$A:$A,0))),INDEX(resources!$G:$G,MATCH(B127,resources!$A:$A,0))),\"n/a\")","v":"n/a"},"n/a","n/a",0,0,1,1,{"$f":"MIN((IFERROR(IF(AND($V127<=Z$1,$W127>=Z$1),INDEX(Reliability!E$23:E$50,MATCH($S127,Reliability!$C$23:$C$50,0)),0),0)*IF($T127=\"n/a\",$D127*$Y127,$G127)+IFERROR(IF(AND($V127<=Z$1,$W127>=Z$1),INDEX(Reliability!E$23:E$50,MATCH($T127,Reliability!$C$23:$C$50,0)),0),0)*$H127*$X127*$Y127),$D127)*$R127","v":0},{"$f":"MIN((IFERROR(IF(AND($V127<=AA$1,$W127>=AA$1),INDEX(Reliability!F$23:F$50,MATCH($S127,Reliability!$C$23:$C$50,0)),0),0)*IF($T127=\"n/a\",$D127*$Y127,$G127)+IFERROR(IF(AND($V127<=AA$1,$W127>=AA$1),INDEX(Reliability!F$23:F$50,MATCH($T127,Reliability!$C$23:$C$50,0)),0),0)*$H127*$X127*$Y127),$D127)*$R127","v":0},{"$f":"MIN((IFERROR(IF(AND($V127<=AB$1,$W127>=AB$1),INDEX(Reliability!G$23:G$50,MATCH($S127,Reliability!$C$23:$C$50,0)),0),0)*IF($T127=\"n/a\",$D127*$Y127,$G127)+IFERROR(IF(AND($V127<=AB$1,$W127>=AB$1),INDEX(Reliability!G$23:G$50,MATCH($T127,Reliability!$C$23:$C$50,0)),0),0)*$H127*$X127*$Y127),$D127)*$R127","v":0},{"$f":"MIN((IFERROR(IF(AND($V127<=AC$1,$W127>=AC$1),INDEX(Reliability!H$23:H$50,MATCH($S127,Reliability!$C$23:$C$50,0)),0),0)*IF($T127=\"n/a\",$D127*$Y127,$G127)+IFERROR(IF(AND($V127<=AC$1,$W127>=AC$1),INDEX(Reliability!H$23:H$50,MATCH($T127,Reliability!$C$23:$C$50,0)),0),0)*$H127*$X127*$Y127),$D127)*$R127","v":0},{"$f":"MIN((IFERROR(IF(AND($V127<=AD$1,$W127>=AD$1),INDEX(Reliability!I$23:I$50,MATCH($S127,Reliability!$C$23:$C$50,0)),0),0)*IF($T127=\"n/a\",$D127*$Y127,$G127)+IFERROR(IF(AND($V127<=AD$1,$W127>=AD$1),INDEX(Reliability!I$23:I$50,MATCH($T127,Reliability!$C$23:$C$50,0)),0),0)*$H127*$X127*$Y127),$D127)*$R127","v":0},{"$f":"MIN((IFERROR(IF(AND($V127<=AE$1,$W127>=AE$1),INDEX(Reliability!J$23:J$50,MATCH($S127,Reliability!$C$23:$C$50,0)),0),0)*IF($T127=\"n/a\",$D127*$Y127,$G127)+IFERROR(IF(AND($V127<=AE$1,$W127>=AE$1),INDEX(Reliability!J$23:J$50,MATCH($T127,Reliability!$C$23:$C$50,0)),0),0)*$H127*$X127*$Y127),$D127)*$R127","v":0},{"$f":"MIN((IFERROR(IF(AND($V127<=AF$1,$W127>=AF$1),INDEX(Reliability!K$23:K$50,MATCH($S127,Reliability!$C$23:$C$50,0)),0),0)*IF($T127=\"n/a\",$D127*$Y127,$G127)+IFERROR(IF(AND($V127<=AF$1,$W127>=AF$1),INDEX(Reliability!K$23:K$50,MATCH($T127,Reliability!$C$23:$C$50,0)),0),0)*$H127*$X127*$Y127),$D127)*$R127","v":0},{"$f":"MIN((IFERROR(IF(AND($V127<=AG$1,$W127>=AG$1),INDEX(Reliability!L$23:L$50,MATCH($S127,Reliability!$C$23:$C$50,0)),0),0)*IF($T127=\"n/a\",$D127*$Y127,$G127)+IFERROR(IF(AND($V127<=AG$1,$W127>=AG$1),INDEX(Reliability!L$23:L$50,MATCH($T127,Reliability!$C$23:$C$50,0)),0),0)*$H127*$X127*$Y127),$D127)*$R127","v":0},{"$f":"MIN((IFERROR(IF(AND($V127<=AH$1,$W127>=AH$1),INDEX(Reliability!M$23:M$50,MATCH($S127,Reliability!$C$23:$C$50,0)),0),0)*IF($T127=\"n/a\",$D127*$Y127,$G127)+IFERROR(IF(AND($V127<=AH$1,$W127>=AH$1),INDEX(Reliability!M$23:M$50,MATCH($T127,Reliability!$C$23:$C$50,0)),0),0)*$H127*$X127*$Y127),$D127)*$R127","v":0},{"$f":"MIN((IFERROR(IF(AND($V127<=AI$1,$W127>=AI$1),INDEX(Reliability!N$23:N$50,MATCH($S127,Reliability!$C$23:$C$50,0)),0),0)*IF($T127=\"n/a\",$D127*$Y127,$G127)+IFERROR(IF(AND($V127<=AI$1,$W127>=AI$1),INDEX(Reliability!N$23:N$50,MATCH($T127,Reliability!$C$23:$C$50,0)),0),0)*$H127*$X127*$Y127),$D127)*$R127","v":0},{"$f":"MIN((IFERROR(IF(AND($V127<=AJ$1,$W127>=AJ$1),INDEX(Reliability!O$23:O$50,MATCH($S127,Reliability!$C$23:$C$50,0)),0),0)*IF($T127=\"n/a\",$D127*$Y127,$G127)+IFERROR(IF(AND($V127<=AJ$1,$W127>=AJ$1),INDEX(Reliability!O$23:O$50,MATCH($T127,Reliability!$C$23:$C$50,0)),0),0)*$H127*$X127*$Y127),$D127)*$R127","v":0},{"$f":"MIN((IFERROR(IF(AND($V127<=AK$1,$W127>=AK$1),INDEX(Reliability!P$23:P$50,MATCH($S127,Reliability!$C$23:$C$50,0)),0),0)*IF($T127=\"n/a\",$D127*$Y127,$G127)+IFERROR(IF(AND($V127<=AK$1,$W127>=AK$1),INDEX(Reliability!P$23:P$50,MATCH($T127,Reliability!$C$23:$C$50,0)),0),0)*$H127*$X127*$Y127),$D127)*$R127","v":0}]
[null,{"$f":"unique_contracts!B129","v":0},{"$f":"unique_contracts!D129","v":0},{"$f":"unique_contracts!J129","v":0},{"$f":"unique_contracts!M129","v":0},{"$f":"unique_contracts!N129","v":0},{"$f":"unique_contracts!P129","v":0},{"$f":"unique_contracts!R129","v":0},{"$f":"unique_contracts!V129","v":0},{"$f":"unique_contracts!AB129","v":0},{"$f":"unique_contracts!AM129","v":0},{"$f":"unique_contracts!AN129","v":0},{"$f":"unique_contracts!AO129","v":0},{"$f":"unique_contracts!AP129","v":0},{"$f":"unique_contracts!AQ129","v":0},{"$f":"unique_contracts!AR129","v":0},{"$f":"unique_contracts!BP129","v":0},0,{"$f":"IFERROR(IF(AND(I128>0,E128=\"NotHybrid\"),_xlfn.CONCAT(MAX(MIN(ROUNDDOWN(I128/D128,0),8),4),INDEX(resources!$G:$G,MATCH(B128,resources!$A:$A,0))),INDEX(resources!$G:$G,MATCH(B128,resources!$A:$A,0))),\"n/a\")","v":"n/a"},"n/a","n/a",0,0,1,1,{"$f":"MIN((IFERROR(IF(AND($V128<=Z$1,$W128>=Z$1),INDEX(Reliability!E$23:E$50,MATCH($S128,Reliability!$C$23:$C$50,0)),0),0)*IF($T128=\"n/a\",$D128*$Y128,$G128)+IFERROR(IF(AND($V128<=Z$1,$W128>=Z$1),INDEX(Reliability!E$23:E$50,MATCH($T128,Reliability!$C$23:$C$50,0)),0),0)*$H128*$X128*$Y128),$D128)*$R128","v":0},{"$f":"MIN((IFERROR(IF(AND($V128<=AA$1,$W128>=AA$1),INDEX(Reliability!F$23:F$50,MATCH($S128,Reliability!$C$23:$C$50,0)),0),0)*IF($T128=\"n/a\",$D128*$Y128,$G128)+IFERROR(IF(AND($V128<=AA$1,$W128>=AA$1),INDEX(Reliability!F$23:F$50,MATCH($T128,Reliability!$C$23:$C$50,0)),0),0)*$H128*$X128*$Y128),$D128)*$R128","v":0},{"$f":"MIN((IFERROR(IF(AND($V128<=AB$1,$W128>=AB$1),INDEX(Reliability!G$23:G$50,MATCH($S128,Reliability!$C$23:$C$50,0)),0),0)*IF($T128=\"n/a\",$D128*$Y128,$G128)+IFERROR(IF(AND($V128<=AB$1,$W128>=AB$1),INDEX(Reliability!G$23:G$50,MATCH($T128,Reliability!$C$23:$C$50,0)),0),0)*$H128*$X128*$Y128),$D128)*$R128","v":0},{"$f":"MIN((IFERROR(IF(AND($V128<=AC$1,$W128>=AC$1),INDEX(Reliability!H$23:H$50,MATCH($S128,Reliability!$C$23:$C$50,0)),0),0)*IF($T128=\"n/a\",$D128*$Y128,$G128)+IFERROR(IF(AND($V128<=AC$1,$W128>=AC$1),INDEX(Reliability!H$23:H$50,MATCH($T128,Reliability!$C$23:$C$50,0)),0),0)*$H128*$X128*$Y128),$D128)*$R128","v":0},{"$f":"MIN((IFERROR(IF(AND($V128<=AD$1,$W128>=AD$1),INDEX(Reliability!I$23:I$50,MATCH($S128,Reliability!$C$23:$C$50,0)),0),0)*IF($T128=\"n/a\",$D128*$Y128,$G128)+IFERROR(IF(AND($V128<=AD$1,$W128>=AD$1),INDEX(Reliability!I$23:I$50,MATCH($T128,Reliability!$C$23:$C$50,0)),0),0)*$H128*$X128*$Y128),$D128)*$R128","v":0},{"$f":"MIN((IFERROR(IF(AND($V128<=AE$1,$W128>=AE$1),INDEX(Reliability!J$23:J$50,MATCH($S128,Reliability!$C$23:$C$50,0)),0),0)*IF($T128=\"n/a\",$D128*$Y128,$G128)+IFERROR(IF(AND($V128<=AE$1,$W128>=AE$1),INDEX(Reliability!J$23:J$50,MATCH($T128,Reliability!$C$23:$C$50,0)),0),0)*$H128*$X128*$Y128),$D128)*$R128","v":0},{"$f":"MIN((IFERROR(IF(AND($V128<=AF$1,$W128>=AF$1),INDEX(Reliability!K$23:K$50,MATCH($S128,Reliability!$C$23:$C$50,0)),0),0)*IF($T128=\"n/a\",$D128*$Y128,$G128)+IFERROR(IF(AND($V128<=AF$1,$W128>=AF$1),INDEX(Reliability!K$23:K$50,MATCH($T128,Reliability!$C$23:$C$50,0)),0),0)*$H128*$X128*$Y128),$D128)*$R128","v":0},{"$f":"MIN((IFERROR(IF(AND($V128<=AG$1,$W128>=AG$1),INDEX(Reliability!L$23:L$50,MATCH($S128,Reliability!$C$23:$C$50,0)),0),0)*IF($T128=\"n/a\",$D128*$Y128,$G128)+IFERROR(IF(AND($V128<=AG$1,$W128>=AG$1),INDEX(Reliability!L$23:L$50,MATCH($T128,Reliability!$C$23:$C$50,0)),0),0)*$H128*$X128*$Y128),$D128)*$R128","v":0},{"$f":"MIN((IFERROR(IF(AND($V128<=AH$1,$W128>=AH$1),INDEX(Reliability!M$23:M$50,MATCH($S128,Reliability!$C$23:$C$50,0)),0),0)*IF($T128=\"n/a\",$D128*$Y128,$G128)+IFERROR(IF(AND($V128<=AH$1,$W128>=AH$1),INDEX(Reliability!M$23:M$50,MATCH($T128,Reliability!$C$23:$C$50,0)),0),0)*$H128*$X128*$Y128),$D128)*$R128","v":0},{"$f":"MIN((IFERROR(IF(AND($V128<=AI$1,$W128>=AI$1),INDEX(Reliability!N$23:N$50,MATCH($S128,Reliability!$C$23:$C$50,0)),0),0)*IF($T128=\"n/a\",$D128*$Y128,$G128)+IFERROR(IF(AND($V128<=AI$1,$W128>=AI$1),INDEX(Reliability!N$23:N$50,MATCH($T128,Reliability!$C$23:$C$50,0)),0),0)*$H128*$X128*$Y128),$D128)*$R128","v":0},{"$f":"MIN((IFERROR(IF(AND($V128<=AJ$1,$W128>=AJ$1),INDEX(Reliability!O$23:O$50,MATCH($S128,Reliability!$C$23:$C$50,0)),0),0)*IF($T128=\"n/a\",$D128*$Y128,$G128)+IFERROR(IF(AND($V128<=AJ$1,$W128>=AJ$1),INDEX(Reliability!O$23:O$50,MATCH($T128,Reliability!$C$23:$C$50,0)),0),0)*$H128*$X128*$Y128),$D128)*$R128","v":0},{"$f":"MIN((IFERROR(IF(AND($V128<=AK$1,$W128>=AK$1),INDEX(Reliability!P$23:P$50,MATCH($S128,Reliability!$C$23:$C$50,0)),0),0)*IF($T128=\"n/a\",$D128*$Y128,$G128)+IFERROR(IF(AND($V128<=AK$1,$W128>=AK$1),INDEX(Reliability!P$23:P$50,MATCH($T128,Reliability!$C$23:$C$50,0)),0),0)*$H128*$X128*$Y128),$D128)*$R128","v":0}]
[null,{"$f":"unique_contracts!B130","v":0},{"$f":"unique_contracts!D130","v":0},{"$f":"unique_contracts!J130","v":0},{"$f":"unique_contracts!M130","v":0},{"$f":"unique_contracts!N130","v":0},{"$f":"unique_contracts!P130","v":0},{"$f":"unique_contracts!R130","v":0},{"$f":"unique_contracts!V130","v":0},{"$f":"unique_contracts!AB130","v":0},{"$f":"unique_contracts!AM130","v":0},{"$f":"unique_contracts!AN130","v":0},{"$f":"unique_contracts!AO130","v":0},{"$f":"unique_contracts!AP130","v":0},{"$f":"unique_contracts!AQ130","v":0},{"$f":"unique_contracts!AR130","v":0},{"$f":"unique_contracts!BP130","v":0},0,{"$f":"IFERROR(IF(AND(I129>0,E129=\"NotHybrid\"),_xlfn.CONCAT(MAX(MIN(ROUNDDOWN(I129/D129,0),8),4),INDEX(resources!$G:$G,MATCH(B129,resources!$A:$A,0))),INDEX(resources!$G:$G,MATCH(B129,resources!$A:$A,0))),\"n/a\")","v":"n/a"},"n/a","n/a",0,0,1,1,{"$f":"MIN((IFERROR(IF(AND($V129<=Z$1,$W129>=Z$1),INDEX(Reliability!E$23:E$50,MATCH($S129,Reliability!$C$23:$C$50,0)),0),0)*IF($T129=\"n/a\",$D129*$Y129,$G129)+IFERROR(IF(AND($V129<=Z$1,$W129>=Z$1),INDEX(Reliability!E$23:E$50,MATCH($T129,Reliability!$C$23:$C$50,0)),0),0)*$H129*$X129*$Y129),$D129)*$R129","v":0},{"$f":"MIN((IFERROR(IF(AND($V129<=AA$1,$W129>=AA$1),INDEX(Reliability!F$23:F$50,MATCH($S129,Reliability!$C$23:$C$50,0)),0),0)*IF($T129=\"n/a\",$D129*$Y129,$G129)+IFERROR(IF(AND($V129<=AA$1,$W129>=AA$1),INDEX(Reliability!F$23:F$50,MATCH($T129,Reliability!$C$23:$C$50,0)),0),0)*$H129*$X129*$Y129),$D129)*$R129","v":0},{"$f":"MIN((IFERROR(IF(AND($V129<=AB$1,$W129>=AB$1),INDEX(Reliability!G$23:G$50,MATCH($S129,Reliability!$C$23:$C$50,0)),0),0)*IF($T129=\"n/a\",$D129*$Y129,$G129)+IFERROR(IF(AND($V129<=AB$1,$W129>=AB$1),INDEX(Reliability!G$23:G$50,MATCH($T129,Reliability!$C$23:$C$50,0)),0),0)*$H129*$X129*$Y129),$D129)*$R129","v":0},{"$f":"MIN((IFERROR(IF(AND($V129<=AC$1,$W129>=AC$1),INDEX(Reliability!H$23:H$50,MATCH($S129,Reliability!$C$23:$C$50,0)),0),0)*IF($T129=\"n/a\",$D129*$Y129,$G129)+IFERROR(IF(AND($V129<=AC$1,$W129>=AC$1),INDEX(Reliability!H$23:H$50,MATCH($T129,Reliability!$C$23:$C$50,0)),0),0)*$H129*$X129*$Y129),$D129)*$R129","v":0},{"$f":"MIN((IFERROR(IF(AND($V129<=AD$1,$W129>=AD$1),INDEX(Reliability!I$23:I$50,MATCH($S129,Reliability!$C$23:$C$50,0)),0),0)*IF($T129=\"n/a\",$D129*$Y129,$G129)+IFERROR(IF(AND($V129<=AD$1,$W129>=AD$1),INDEX(Reliability!I$23:I$50,MATCH($T129,Reliability!$C$23:$C$50,0)),0),0)*$H129*$X129*$Y129),$D129)*$R129","v":0},{"$f":"MIN((IFERROR(IF(AND($V129<=AE$1,$W129>=AE$1),INDEX(Reliability!J$23:J$50,MATCH($S129,Reliability!$C$23:$C$50,0)),0),0)*IF($T129=\"n/a\",$D129*$Y129,$G129)+IFERROR(IF(AND($V129<=AE$1,$W129>=AE$1),INDEX(Reliability!J$23:J$50,MATCH($T129,Reliability!$C$23:$C$50,0)),0),0)*$H129*$X129*$Y129),$D129)*$R129","v":0},{"$f":"MIN((IFERROR(IF(AND($V129<=AF$1,$W129>=AF$1),INDEX(Reliability!K$23:K$50,MATCH($S129,Reliability!$C$23:$C$50,0)),0),0)*IF($T129=\"n/a\",$D129*$Y129,$G129)+IFERROR(IF(AND($V129<=AF$1,$W129>=AF$1),INDEX(Reliability!K$23:K$50,MATCH($T129,Reliability!$C$23:$C$50,0)),0),0)*$H129*$X129*$Y129),$D129)*$R129","v":0},{"$f":"MIN((IFERROR(IF(AND($V129<=AG$1,$W129>=AG$1),INDEX(Reliability!L$23:L$50,MATCH($S129,Reliability!$C$23:$C$50,0)),0),0)*IF($T129=\"n/a\",$D129*$Y129,$G129)+IFERROR(IF(AND($V129<=AG$1,$W129>=AG$1),INDEX(Reliability!L$23:L$50,MATCH($T129,Reliability!$C$23:$C$50,0)),0),0)*$H129*$X129*$Y129),$D129)*$R129","v":0},{"$f":"MIN((IFERROR(IF(AND($V129<=AH$1,$W129>=AH$1),INDEX(Reliability!M$23:M$50,MATCH($S129,Reliability!$C$23:$C$50,0)),0),0)*IF($T129=\"n/a\",$D129*$Y129,$G129)+IFERROR(IF(AND($V129<=AH$1,$W129>=AH$1),INDEX(Reliability!M$23:M$50,MATCH($T129,Reliability!$C$23:$C$50,0)),0),0)*$H129*$X129*$Y129),$D129)*$R129","v":0},{"$f":"MIN((IFERROR(IF(AND($V129<=AI$1,$W129>=AI$1),INDEX(Reliability!N$23:N$50,MATCH($S129,Reliability!$C$23:$C$50,0)),0),0)*IF($T129=\"n/a\",$D129*$Y129,$G129)+IFERROR(IF(AND($V129<=AI$1,$W129>=AI$1),INDEX(Reliability!N$23:N$50,MATCH($T129,Reliability!$C$23:$C$50,0)),0),0)*$H129*$X129*$Y129),$D129)*$R129","v":0},{"$f":"MIN((IFERROR(IF(AND($V129<=AJ$1,$W129>=AJ$1),INDEX(Reliability!O$23:O$50,MATCH($S129,Reliability!$C$23:$C$50,0)),0),0)*IF($T129=\"n/a\",$D129*$Y129,$G129)+IFERROR(IF(AND($V129<=AJ$1,$W129>=AJ$1),INDEX(Reliability!O$23:O$50,MATCH($T129,Reliability!$C$23:$C$50,0)),0),0)*$H129*$X129*$Y129),$D129)*$R129","v":0},{"$f":"MIN((IFERROR(IF(AND($V129<=AK$1,$W129>=AK$1),INDEX(Reliability!P$23:P$50,MATCH($S129,Reliability!$C$23:$C$50,0)),0),0)*IF($T129=\"n/a\",$D129*$Y129,$G129)+IFERROR(IF(AND($V129<=AK$1,$W129>=AK$1),INDEX(Reliability!P$23:P$50,MATCH($T129,Reliability!$C$23:$C$50,0)),0),0)*$H129*$X129*$Y129),$D129)*$R129","v":0}]
[null,{"$f":"unique_contracts!B131","v":0},{"$f":"unique_contracts!D131","v":0},{"$f":"unique_contracts!J131","v":0},{"$f":"unique_contracts!M131","v":0},{"$f":"unique_contracts!N131","v":0},{"$f":"unique_contracts!P131","v":0},{"$f":"unique_contracts!R131","v":0},{"$f":"unique_contracts!V131","v":0},{"$f":"unique_contracts!AB131","v":0},{"$f":"unique_contracts!AM131","v":0},{"$f":"unique_contracts!AN131","v":0},{"$f":"unique_contracts!AO131","v":0},{"$f":"unique_contracts!AP131","v":0},{"$f":"unique_contracts!AQ131","v":0},{"$f":"unique_contracts!AR131","v":0},{"$f":"unique_contracts!BP131","v":0},0,{"$f":"IFERROR(IF(AND(I130>0,E130=\"NotHybrid\"),_xlfn.CONCAT(MAX(MIN(ROUNDDOWN(I130/D130,0),8),4),INDEX(resources!$G:$G,MATCH(B130,resources!$A:$A,0))),INDEX(resources!$G:$G,MATCH(B130,resources!$A:$A,0))),\"n/a\")","v":"n/a"},"n/a","n/a",0,0,1,1,{"$f":"MIN((IFERROR(IF(AND($V130<=Z$1,$W130>=Z$1),INDEX(Reliability!E$23:E$50,MATCH($S130,Reliability!$C$23:$C$50,0)),0),0)*IF($T130=\"n/a\",$D130*$Y130,$G130)+IFERROR(IF(AND($V130<=Z$1,$W130>=Z$1),INDEX(Reliability!E$23:E$50,MATCH($T130,Reliability!$C$23:$C$50,0)),0),0)*$H130*$X130*$Y130),$D130)*$R130","v":0},{"$f":"MIN((IFERROR(IF(AND($V130<=AA$1,$W130>=AA$1),INDEX(Reliability!F$23:F$50,MATCH($S130,Reliability!$C$23:$C$50,0)),0),0)*IF($T130=\"n/a\",$D130*$Y130,$G130)+IFERROR(IF(AND($V130<=AA$1,$W130>=AA$1),INDEX(Reliability!F$23:F$50,MATCH($T130,Reliability!$C$23:$C$50,0)),0),0)*$H130*$X130*$Y130),$D130)*$R130","v":0},{"$f":"MIN((IFERROR(IF(AND($V130<=AB$1,$W130>=AB$1),INDEX(Reliability!G$23:G$50,MATCH($S130,Reliability!$C$23:$C$50,0)),0),0)*IF($T130=\"n/a\",$D130*$Y130,$G130)+IFERROR(IF(AND($V130<=AB$1,$W130>=AB$1),INDEX(Reliability!G$23:G$50,MATCH($T130,Reliability!$C$23:$C$50,0)),0),0)*$H130*$X130*$Y130),$D130)*$R130","v":0},{"$f":"MIN((IFERROR(IF(AND($V130<=AC$1,$W130>=AC$1),INDEX(Reliability!H$23:H$50,MATCH($S130,Reliability!$C$23:$C$50,0)),0),0)*IF($T130=\"n/a\",$D130*$Y130,$G130)+IFERROR(IF(AND($V130<=AC$1,$W130>=AC$1),INDEX(Reliability!H$23:H$50,MATCH($T130,Reliability!$C$23:$C$50,0)),0),0)*$H130*$X130*$Y130),$D130)*$R130","v":0},{"$f":"MIN((IFERROR(IF(AND($V130<=AD$1,$W130>=AD$1),INDEX(Reliability!I$23:I$50,MATCH($S130,Reliability!$C$23:$C$50,0)),0),0)*IF($T130=\"n/a\",$D130*$Y130,$G130)+IFERROR(IF(AND($V130<=AD$1,$W130>=AD$1),INDEX(Reliability!I$23:I$50,MATCH($T130,Reliability!$C$23:$C$50,0)),0),0)*$H130*$X130*$Y130),$D130)*$R130","v":0},{"$f":"MIN((IFERROR(IF(AND($V130<=AE$1,$W130>=AE$1),INDEX(Reliability!J$23:J$50,MATCH($S130,Reliability!$C$23:$C$50,0)),0),0)*IF($T130=\"n/a\",$D130*$Y130,$G130)+IFERROR(IF(AND($V130<=AE$1,$W130>=AE$1),INDEX(Reliability!J$23:J$50,MATCH($T130,Reliability!$C$23:$C$50,0)),0),0)*$H130*$X130*$Y130),$D130)*$R130","v":0},{"$f":"MIN((IFERROR(IF(AND($V130<=AF$1,$W130>=AF$1),INDEX(Reliability!K$23:K$50,MATCH($S130,Reliability!$C$23:$C$50,0)),0),0)*IF($T130=\"n/a\",$D130*$Y130,$G130)+IFERROR(IF(AND($V130<=AF$1,$W130>=AF$1),INDEX(Reliability!K$23:K$50,MATCH($T130,Reliability!$C$23:$C$50,0)),0),0)*$H130*$X130*$Y130),$D130)*$R130","v":0},{"$f":"MIN((IFERROR(IF(AND($V130<=AG$1,$W130>=AG$1),INDEX(Reliability!L$23:L$50,MATCH($S130,Reliability!$C$23:$C$50,0)),0),0)*IF($T130=\"n/a\",$D130*$Y130,$G130)+IFERROR(IF(AND($V130<=AG$1,$W130>=AG$1),INDEX(Reliability!L$23:L$50,MATCH($T130,Reliability!$C$23:$C$50,0)),0),0)*$H130*$X130*$Y130),$D130)*$R130","v":0},{"$f":"MIN((IFERROR(IF(AND($V130<=AH$1,$W130>=AH$1),INDEX(Reliability!M$23:M$50,MATCH($S130,Reliability!$C$23:$C$50,0)),0),0)*IF($T130=\"n/a\",$D130*$Y130,$G130)+IFERROR(IF(AND($V130<=AH$1,$W130>=AH$1),INDEX(Reliability!M$23:M$50,MATCH($T130,Reliability!$C$23:$C$50,0)),0),0)*$H130*$X130*$Y130),$D130)*$R130","v":0},{"$f":"MIN((IFERROR(IF(AND($V130<=AI$1,$W130>=AI$1),INDEX(Reliability!N$23:N$50,MATCH($S130,Reliability!$C$23:$C$50,0)),0),0)*IF($T130=\"n/a\",$D130*$Y130,$G130)+IFERROR(IF(AND($V130<=AI$1,$W130>=AI$1),INDEX(Reliability!N$23:N$50,MATCH($T130,Reliability!$C$23:$C$50,0)),0),0)*$H130*$X130*$Y130),$D130)*$R130","v":0},{"$f":"MIN((IFERROR(IF(AND($V130<=AJ$1,$W130>=AJ$1),INDEX(Reliability!O$23:O$50,MATCH($S130,Reliability!$C$23:$C$50,0)),0),0)*IF($T130=\"n/a\",$D130*$Y130,$G130)+IFERROR(IF(AND($V130<=AJ$1,$W130>=AJ$1),INDEX(Reliability!O$23:O$50,MATCH($T130,Reliability!$C$23:$C$50,0)),0),0)*$H130*$X130*$Y130),$D130)*$R130","v":0},{"$f":"MIN((IFERROR(IF(AND($V130<=AK$1,$W130>=AK$1),INDEX(Reliability!P$23:P$50,MATCH($S130,Reliability!$C$23:$C$50,0)),0),0)*IF($T130=\"n/a\",$D130*$Y130,$G130)+IFERROR(IF(AND($V130<=AK$1,$W130>=AK$1),INDEX(Reliability!P$23:P$50,MATCH($T130,Reliability!$C$23:$C$50,0)),0),0)*$H130*$X130*$Y130),$D130)*$R130","v":0}]
[null,{"$f":"unique_contracts!B132","v":0},{"$f":"unique_contracts!D132","v":0},{"$f":"unique_contracts!J132","v":0},{"$f":"unique_contracts!M132","v":0},{"$f":"unique_contracts!N132","v":0},{"$f":"unique_contracts!P132","v":0},{"$f":"unique_contracts!R132","v":0},{"$f":"unique_contracts!V132","v":0},{"$f":"unique_contracts!AB132","v":0},{"$f":"unique_contracts!AM132","v":0},{"$f":"unique_contracts!AN132","v":0},{"$f":"unique_contracts!AO132","v":0},{"$f":"unique_contracts!AP132","v":0},{"$f":"unique_contracts!AQ132","v":0},{"$f":"unique_contracts!AR132","v":0},{"$f":"unique_contracts!BP132","v":0},0,{"$f":"IFERROR(IF(AND(I131>0,E131=\"NotHybrid\"),_xlfn.CONCAT(MAX(MIN(ROUNDDOWN(I131/D131,0),8),4),INDEX(resources!$G:$G,MATCH(B131,resources!$A:$A,0))),INDEX(resources!$G:$G,MATCH(B131,resources!$A:$A,0))),\"n/a\")","v":"n/a"},"n/a","n/a",0,0,1,1,{"$f":"MIN((IFERROR(IF(AND($V131<=Z$1,$W131>=Z$1),INDEX(Reliability!E$23:E$50,MATCH($S131,Reliability!$C$23:$C$50,0)),0),0)*IF($T131=\"n/a\",$D131*$Y131,$G131)+IFERROR(IF(AND($V131<=Z$1,$W131>=Z$1),INDEX(Reliability!E$23:E$50,MATCH($T131,Reliability!$C$23:$C$50,0)),0),0)*$H131*$X131*$Y131),$D131)*$R131","v":0},{"$f":"MIN((IFERROR(IF(AND($V131<=AA$1,$W131>=AA$1),INDEX(Reliability!F$23:F$50,MATCH($S131,Reliability!$C$23:$C$50,0)),0),0)*IF($T131=\"n/a\",$D131*$Y131,$G131)+IFERROR(IF(AND($V131<=AA$1,$W131>=AA$1),INDEX(Reliability!F$23:F$50,MATCH($T131,Reliability!$C$23:$C$50,0)),0),0)*$H131*$X131*$Y131),$D131)*$R131","v":0},{"$f":"MIN((IFERROR(IF(AND($V131<=AB$1,$W131>=AB$1),INDEX(Reliability!G$23:G$50,MATCH($S131,Reliability!$C$23:$C$50,0)),0),0)*IF($T131=\"n/a\",$D131*$Y131,$G131)+IFERROR(IF(AND($V131<=AB$1,$W131>=AB$1),INDEX(Reliability!G$23:G$50,MATCH($T131,Reliability!$C$23:$C$50,0)),0),0)*$H131*$X131*$Y131),$D131)*$R131","v":0},{"$f":"MIN((IFERROR(IF(AND($V131<=AC$1,$W131>=AC$1),INDEX(Reliability!H$23:H$50,MATCH($S131,Reliability!$C$23:$C$50,0)),0),0)*IF($T131=\"n/a\",$D131*$Y131,$G131)+IFERROR(IF(AND($V131<=AC$1,$W131>=AC$1),INDEX(Reliability!H$23:H$50,MATCH($T131,Reliability!$C$23:$C$50,0)),0),0)*$H131*$X131*$Y131),$D131)*$R131","v":0},{"$f":"MIN((IFERROR(IF(AND($V131<=AD$1,$W131>=AD$1),INDEX(Reliability!I$23:I$50,MATCH($S131,Reliability!$C$23:$C$50,0)),0),0)*IF($T131=\"n/a\",$D131*$Y131,$G131)+IFERROR(IF(AND($V131<=AD$1,$W131>=AD$1),INDEX(Reliability!I$23:I$50,MATCH($T131,Reliability!$C$23:$C$50,0)),0),0)*$H131*$X131*$Y131),$D131)*$R131","v":0},{"$f":"MIN((IFERROR(IF(AND($V131<=AE$1,$W131>=AE$1),INDEX(Reliability!J$23:J$50,MATCH($S131,Reliability!$C$23:$C$50,0)),0),0)*IF($T131=\"n/a\",$D131*$Y131,$G131)+IFERROR(IF(AND($V131<=AE$1,$W131>=AE$1),INDEX(Reliability!J$23:J$50,MATCH($T131,Reliability!$C$23:$C$50,0)),0),0)*$H131*$X131*$Y131),$D131)*$R131","v":0},{"$f":"MIN((IFERROR(IF(AND($V131<=AF$1,$W131>=AF$1),INDEX(Reliability!K$23:K$50,MATCH($S131,Reliability!$C$23:$C$50,0)),0),0)*IF($T131=\"n/a\",$D131*$Y131,$G131)+IFERROR(IF(AND($V131<=AF$1,$W131>=AF$1),INDEX(Reliability!K$23:K$50,MATCH($T131,Reliability!$C$23:$C$50,0)),0),0)*$H131*$X131*$Y131),$D131)*$R131","v":0},{"$f":"MIN((IFERROR(IF(AND($V131<=AG$1,$W131>=AG$1),INDEX(Reliability!L$23:L$50,MATCH($S131,Reliability!$C$23:$C$50,0)),0),0)*IF($T131=\"n/a\",$D131*$Y131,$G131)+IFERROR(IF(AND($V131<=AG$1,$W131>=AG$1),INDEX(Reliability!L$23:L$50,MATCH($T131,Reliability!$C$23:$C$50,0)),0),0)*$H131*$X131*$Y131),$D131)*$R131","v":0},{"$f":"MIN((IFERROR(IF(AND($V131<=AH$1,$W131>=AH$1),INDEX(Reliability!M$23:M$50,MATCH($S131,Reliability!$C$23:$C$50,0)),0),0)*IF($T131=\"n/a\",$D131*$Y131,$G131)+IFERROR(IF(AND($V131<=AH$1,$W131>=AH$1),INDEX(Reliability!M$23:M$50,MATCH($T131,Reliability!$C$23:$C$50,0)),0),0)*$H131*$X131*$Y131),$D131)*$R131","v":0},{"$f":"MIN((IFERROR(IF(AND($V131<=AI$1,$W131>=AI$1),INDEX(Reliability!N$23:N$50,MATCH($S131,Reliability!$C$23:$C$50,0)),0),0)*IF($T131=\"n/a\",$D131*$Y131,$G131)+IFERROR(IF(AND($V131<=AI$1,$W131>=AI$1),INDEX(Reliability!N$23:N$50,MATCH($T131,Reliability!$C$23:$C$50,0)),0),0)*$H131*$X131*$Y131),$D131)*$R131","v":0},{"$f":"MIN((IFERROR(IF(AND($V131<=AJ$1,$W131>=AJ$1),INDEX(Reliability!O$23:O$50,MATCH($S131,Reliability!$C$23:$C$50,0)),0),0)*IF($T131=\"n/a\",$D131*$Y131,$G131)+IFERROR(IF(AND($V131<=AJ$1,$W131>=AJ$1),INDEX(Reliability!O$23:O$50,MATCH($T131,Reliability!$C$23:$C$50,0)),0),0)*$H131*$X131*$Y131),$D131)*$R131","v":0},{"$f":"MIN((IFERROR(IF(AND($V131<=AK$1,$W131>=AK$1),INDEX(Reliability!P$23:P$50,MATCH($S131,Reliability!$C$23:$C$50,0)),0),0)*IF($T131=\"n/a\",$D131*$Y131,$G131)+IFERROR(IF(AND($V131<=AK$1,$W131>=AK$1),INDEX(Reliability!P$23:P$50,MATCH($T131,Reliability!$C$23:$C$50,0)),0),0)*$H131*$X131*$Y131),$D131)*$R131","v":0}]
[null,{"$f":"unique_contracts!B133","v":0},{"$f":"unique_contracts!D133","v":0},{"$f":"unique_contracts!J133","v":0},{"$f":"unique_contracts!M133","v":0},{"$f":"unique_contracts!N133","v":0},{"$f":"unique_contracts!P133","v":0},{"$f":"unique_contracts!R133","v":0},{"$f":"unique_contracts!V133","v":0},{"$f":"unique_contracts!AB133","v":0},{"$f":"unique_contracts!AM133","v":0},{"$f":"unique_contracts!AN133","v":0},{"$f":"unique_contracts!AO133","v":0},{"$f":"unique_contracts!AP133","v":0},{"$f":"unique_contracts!AQ133","v":0},{"$f":"unique_contracts!AR133","v":0},{"$f":"unique_contracts!BP133","v":0},0,{"$f":"IFERROR(IF(AND(I132>0,E132=\"NotHybrid\"),_xlfn.CONCAT(MAX(MIN(ROUNDDOWN(I132/D132,0),8),4),INDEX(resources!$G:$G,MATCH(B132,resources!$A:$A,0))),INDEX(resources!$G:$G,MATCH(B132,resources!$A:$A,0))),\"n/a\")","v":"n/a"},"n/a","n/a",0,0,1,1,{"$f":"MIN((IFERROR(IF(AND($V132<=Z$1,$W132>=Z$1),INDEX(Reliability!E$23:E$50,MATCH($S132,Reliability!$C$23:$C$50,0)),0),0)*IF($T132=\"n/a\",$D132*$Y132,$G132)+IFERROR(IF(AND($V132<=Z$1,$W132>=Z$1),INDEX(Reliability!E$23:E$50,MATCH($T132,Reliability!$C$23:$C$50,0)),0),0)*$H132*$X132*$Y132),$D132)*$R132","v":0},{"$f":"MIN((IFERROR(IF(AND($V132<=AA$1,$W132>=AA$1),INDEX(Reliability!F$23:F$50,MATCH($S132,Reliability!$C$23:$C$50,0)),0),0)*IF($T132=\"n/a\",$D132*$Y132,$G132)+IFERROR(IF(AND($V132<=AA$1,$W132>=AA$1),INDEX(Reliability!F$23:F$50,MATCH($T132,Reliability!$C$23:$C$50,0)),0),0)*$H132*$X132*$Y132),$D132)*$R132","v":0},{"$f":"MIN((IFERROR(IF(AND($V132<=AB$1,$W132>=AB$1),INDEX(Reliability!G$23:G$50,MATCH($S132,Reliability!$C$23:$C$50,0)),0),0)*IF($T132=\"n/a\",$D132*$Y132,$G132)+IFERROR(IF(AND($V132<=AB$1,$W132>=AB$1),INDEX(Reliability!G$23:G$50,MATCH($T132,Reliability!$C$23:$C$50,0)),0),0)*$H132*$X132*$Y132),$D132)*$R132","v":0},{"$f":"MIN((IFERROR(IF(AND($V132<=AC$1,$W132>=AC$1),INDEX(Reliability!H$23:H$50,MATCH($S132,Reliability!$C$23:$C$50,0)),0),0)*IF($T132=\"n/a\",$D132*$Y132,$G132)+IFERROR(IF(AND($V132<=AC$1,$W132>=AC$1),INDEX(Reliability!H$23:H$50,MATCH($T132,Reliability!$C$23:$C$50,0)),0),0)*$H132*$X132*$Y132),$D132)*$R132","v":0},{"$f":"MIN((IFERROR(IF(AND($V132<=AD$1,$W132>=AD$1),INDEX(Reliability!I$23:I$50,MATCH($S132,Reliability!$C$23:$C$50,0)),0),0)*IF($T132=\"n/a\",$D132*$Y132,$G132)+IFERROR(IF(AND($V132<=AD$1,$W132>=AD$1),INDEX(Reliability!I$23:I$50,MATCH($T132,Reliability!$C$23:$C$50,0)),0),0)*$H132*$X132*$Y132),$D132)*$R132","v":0},{"$f":"MIN((IFERROR(IF(AND($V132<=AE$1,$W132>=AE$1),INDEX(Reliability!J$23:J$50,MATCH($S132,Reliability!$C$23:$C$50,0)),0),0)*IF($T132=\"n/a\",$D132*$Y132,$G132)+IFERROR(IF(AND($V132<=AE$1,$W132>=AE$1),INDEX(Reliability!J$23:J$50,MATCH($T132,Reliability!$C$23:$C$50,0)),0),0)*$H132*$X132*$Y132),$D132)*$R132","v":0},{"$f":"MIN((IFERROR(IF(AND($V132<=AF$1,$W132>=AF$1),INDEX(Reliability!K$23:K$50,MATCH($S132,Reliability!$C$23:$C$50,0)),0),0)*IF($T132=\"n/a\",$D132*$Y132,$G132)+IFERROR(IF(AND($V132<=AF$1,$W132>=AF$1),INDEX(Reliability!K$23:K$50,MATCH($T132,Reliability!$C$23:$C$50,0)),0),0)*$H132*$X132*$Y132),$D132)*$R132","v":0},{"$f":"MIN((IFERROR(IF(AND($V132<=AG$1,$W132>=AG$1),INDEX(Reliability!L$23:L$50,MATCH($S132,Reliability!$C$23:$C$50,0)),0),0)*IF($T132=\"n/a\",$D132*$Y132,$G132)+IFERROR(IF(AND($V132<=AG$1,$W132>=AG$1),INDEX(Reliability!L$23:L$50,MATCH($T132,Reliability!$C$23:$C$50,0)),0),0)*$H132*$X132*$Y132),$D132)*$R132","v":0},{"$f":"MIN((IFERROR(IF(AND($V132<=AH$1,$W132>=AH$1),INDEX(Reliability!M$23:M$50,MATCH($S132,Reliability!$C$23:$C$50,0)),0),0)*IF($T132=\"n/a\",$D132*$Y132,$G132)+IFERROR(IF(AND($V132<=AH$1,$W132>=AH$1),INDEX(Reliability!M$23:M$50,MATCH($T132,Reliability!$C$23:$C$50,0)),0),0)*$H132*$X132*$Y132),$D132)*$R132","v":0},{"$f":"MIN((IFERROR(IF(AND($V132<=AI$1,$W132>=AI$1),INDEX(Reliability!N$23:N$50,MATCH($S132,Reliability!$C$23:$C$50,0)),0),0)*IF($T132=\"n/a\",$D132*$Y132,$G132)+IFERROR(IF(AND($V132<=AI$1,$W132>=AI$1),INDEX(Reliability!N$23:N$50,MATCH($T132,Reliability!$C$23:$C$50,0)),0),0)*$H132*$X132*$Y132),$D132)*$R132","v":0},{"$f":"MIN((IFERROR(IF(AND($V132<=AJ$1,$W132>=AJ$1),INDEX(Reliability!O$23:O$50,MATCH($S132,Reliability!$C$23:$C$50,0)),0),0)*IF($T132=\"n/a\",$D132*$Y132,$G132)+IFERROR(IF(AND($V132<=AJ$1,$W132>=AJ$1),INDEX(Reliability!O$23:O$50,MATCH($T132,Reliability!$C$23:$C$50,0)),0),0)*$H132*$X132*$Y132),$D132)*$R132","v":0},{"$f":"MIN((IFERROR(IF(AND($V132<=AK$1,$W132>=AK$1),INDEX(Reliability!P$23:P$50,MATCH($S132,Reliability!$C$23:$C$50,0)),0),0)*IF($T132=\"n/a\",$D132*$Y132,$G132)+IFERROR(IF(AND($V132<=AK$1,$W132>=AK$1),INDEX(Reliability!P$23:P$50,MATCH($T132,Reliability!$C$23:$C$50,0)),0),0)*$H132*$X132*$Y132),$D132)*$R132","v":0}]
[null,{"$f":"unique_contracts!B134","v":0},{"$f":"unique_contracts!D134","v":0},{"$f":"unique_contracts!J134","v":0},{"$f":"unique_contracts!M134","v":0},{"$f":"unique_contracts!N134","v":0},{"$f":"unique_contracts!P134","v":0},{"$f":"unique_contracts!R134","v":0},{"$f":"unique_contracts!V134","v":0},{"$f":"unique_contracts!AB134","v":0},{"$f":"unique_contracts!AM134","v":0},{"$f":"unique_contracts!AN134","v":0},{"$f":"unique_contracts!AO134","v":0},{"$f":"unique_contracts!AP134","v":0},{"$f":"unique_contracts!AQ134","v":0},{"$f":"unique_contracts!AR134","v":0},{"$f":"unique_contracts!BP134","v":0},0,{"$f":"IFERROR(IF(AND(I133>0,E133=\"NotHybrid\"),_xlfn.CONCAT(MAX(MIN(ROUNDDOWN(I133/D133,0),8),4),INDEX(resources!$G:$G,MATCH(B133,resources!$A:$A,0))),INDEX(resources!$G:$G,MATCH(B133,resources!$A:$A,0))),\"n/a\")","v":"n/a"},"n/a","n/a",0,0,1,1,{"$f":"MIN((IFERROR(IF(AND($V133<=Z$1,$W133>=Z$1),INDEX(Reliability!E$23:E$50,MATCH($S133,Reliability!$C$23:$C$50,0)),0),0)*IF($T133=\"n/a\",$D133*$Y133,$G133)+IFERROR(IF(AND($V133<=Z$1,$W133>=Z$1),INDEX(Reliability!E$23:E$50,MATCH($T133,Reliability!$C$23:$C$50,0)),0),0)*$H133*$X133*$Y133),$D133)*$R133","v":0},{"$f":"MIN((IFERROR(IF(AND($V133<=AA$1,$W133>=AA$1),INDEX(Reliability!F$23:F$50,MATCH($S133,Reliability!$C$23:$C$50,0)),0),0)*IF($T133=\"n/a\",$D133*$Y133,$G133)+IFERROR(IF(AND($V133<=AA$1,$W133>=AA$1),INDEX(Reliability!F$23:F$50,MATCH($T133,Reliability!$C$23:$C$50,0)),0),0)*$H133*$X133*$Y133),$D133)*$R133","v":0},{"$f":"MIN((IFERROR(IF(AND($V133<=AB$1,$W133>=AB$1),INDEX(Reliability!G$23:G$50,MATCH($S133,Reliability!$C$23:$C$50,0)),0),0)*IF($T133=\"n/a\",$D133*$Y133,$G133)+IFERROR(IF(AND($V133<=AB$1,$W133>=AB$1),INDEX(Reliability!G$23:G$50,MATCH($T133,Reliability!$C$23:$C$50,0)),0),0)*$H133*$X133*$Y133),$D133)*$R133","v":0},{"$f":"MIN((IFERROR(IF(AND($V133<=AC$1,$W133>=AC$1),INDEX(Reliability!H$23:H$50,MATCH($S133,Reliability!$C$23:$C$50,0)),0),0)*IF($T133=\"n/a\",$D133*$Y133,$G133)+IFERROR(IF(AND($V133<=AC$1,$W133>=AC$1),INDEX(Reliability!H$23:H$50,MATCH($T133,Reliability!$C$23:$C$50,0)),0),0)*$H133*$X133*$Y133),$D133)*$R133","v":0},{"$f":"MIN((IFERROR(IF(AND($V133<=AD$1,$W133>=AD$1),INDEX(Reliability!I$23:I$50,MATCH($S133,Reliability!$C$23:$C$50,0)),0),0)*IF($T133=\"n/a\",$D133*$Y133,$G133)+IFERROR(IF(AND($V133<=AD$1,$W133>=AD$1),INDEX(Reliability!I$23:I$50,MATCH($T133,Reliability!$C$23:$C$50,0)),0),0)*$H133*$X133*$Y133),$D133)*$R133","v":0},{"$f":"MIN((IFERROR(IF(AND($V133<=AE$1,$W133>=AE$1),INDEX(Reliability!J$23:J$50,MATCH($S133,Reliability!$C$23:$C$50,0)),0),0)*IF($T133=\"n/a\",$D133*$Y133,$G133)+IFERROR(IF(AND($V133<=AE$1,$W133>=AE$1),INDEX(Reliability!J$23:J$50,MATCH($T133,Reliability!$C$23:$C$50,0)),0),0)*$H133*$X133*$Y133),$D133)*$R133","v":0},{"$f":"MIN((IFERROR(IF(AND($V133<=AF$1,$W133>=AF$1),INDEX(Reliability!K$23:K$50,MATCH($S133,Reliability!$C$23:$C$50,0)),0),0)*IF($T133=\"n/a\",$D133*$Y133,$G133)+IFERROR(IF(AND($V133<=AF$1,$W133>=AF$1),INDEX(Reliability!K$23:K$50,MATCH($T133,Reliability!$C$23:$C$50,0)),0),0)*$H133*$X133*$Y133),$D133)*$R133","v":0},{"$f":"MIN((IFERROR(IF(AND($V133<=AG$1,$W133>=AG$1),INDEX(Reliability!L$23:L$50,MATCH($S133,Reliability!$C$23:$C$50,0)),0),0)*IF($T133=\"n/a\",$D133*$Y133,$G133)+IFERROR(IF(AND($V133<=AG$1,$W133>=AG$1),INDEX(Reliability!L$23:L$50,MATCH($T133,Reliability!$C$23:$C$50,0)),0),0)*$H133*$X133*$Y133),$D133)*$R133","v":0},{"$f":"MIN((IFERROR(IF(AND($V133<=AH$1,$W133>=AH$1),INDEX(Reliability!M$23:M$50,MATCH($S133,Reliability!$C$23:$C$50,0)),0),0)*IF($T133=\"n/a\",$D133*$Y133,$G133)+IFERROR(IF(AND($V133<=AH$1,$W133>=AH$1),INDEX(Reliability!M$23:M$50,MATCH($T133,Reliability!$C$23:$C$50,0)),0),0)*$H133*$X133*$Y133),$D133)*$R133","v":0},{"$f":"MIN((IFERROR(IF(AND($V133<=AI$1,$W133>=AI$1),INDEX(Reliability!N$23:N$50,MATCH($S133,Reliability!$C$23:$C$50,0)),0),0)*IF($T133=\"n/a\",$D133*$Y133,$G133)+IFERROR(IF(AND($V133<=AI$1,$W133>=AI$1),INDEX(Reliability!N$23:N$50,MATCH($T133,Reliability!$C$23:$C$50,0)),0),0)*$H133*$X133*$Y133),$D133)*$R133","v":0},{"$f":"MIN((IFERROR(IF(AND($V133<=AJ$1,$W133>=AJ$1),INDEX(Reliability!O$23:O$50,MATCH($S133,Reliability!$C$23:$C$50,0)),0),0)*IF($T133=\"n/a\",$D133*$Y133,$G133)+IFERROR(IF(AND($V133<=AJ$1,$W133>=AJ$1),INDEX(Reliability!O$23:O$50,MATCH($T133,Reliability!$C$23:$C$50,0)),0),0)*$H133*$X133*$Y133),$D133)*$R133","v":0},{"$f":"MIN((IFERROR(IF(AND($V133<=AK$1,$W133>=AK$1),INDEX(Reliability!P$23:P$50,MATCH($S133,Reliability!$C$23:$C$50,0)),0),0)*IF($T133=\"n/a\",$D133*$Y133,$G133)+IFERROR(IF(AND($V133<=AK$1,$W133>=AK$1),INDEX(Reliability!P$23:P$50,MATCH($T133,Reliability!$C$23:$C$50,0)),0),0)*$H133*$X133*$Y133),$D133)*$R133","v":0}]
[null,{"$f":"unique_contracts!B135","v":0},{"$f":"unique_contracts!D135","v":0},{"$f":"unique_contracts!J135","v":0},{"$f":"unique_contracts!M135","v":0},{"$f":"unique_contracts!N135","v":0},{"$f":"unique_contracts!P135","v":0},{"$f":"unique_contracts!R135","v":0},{"$f":"unique_contracts!V135","v":0},{"$f":"unique_contracts!AB135","v":0},{"$f":"unique_contracts!AM135","v":0},{"$f":"unique_contracts!AN135","v":0},{"$f":"unique_contracts!AO135","v":0},{"$f":"unique_contracts!AP135","v":0},{"$f":"unique_contracts!AQ135","v":0},{"$f":"unique_contracts!AR135","v":0},{"$f":"unique_contracts!BP135","v":0},0,{"$f":"IFERROR(IF(AND(I134>0,E134=\"NotHybrid\"),_xlfn.CONCAT(MAX(MIN(ROUNDDOWN(I134/D134,0),8),4),INDEX(resources!$G:$G,MATCH(B134,resources!$A:$A,0))),INDEX(resources!$G:$G,MATCH(B134,resources!$A:$A,0))),\"n/a\")","v":"n/a"},"n/a","n/a",0,0,1,1,{"$f":"MIN((IFERROR(IF(AND($V134<=Z$1,$W134>=Z$1),INDEX(Reliability!E$23:E$50,MATCH($S134,Reliability!$C$23:$C$50,0)),0),0)*IF($T134=\"n/a\",$D134*$Y134,$G134)+IFERROR(IF(AND($V134<=Z$1,$W134>=Z$1),INDEX(Reliability!E$23:E$50,MATCH($T134,Reliability!$C$23:$C$50,0)),0),0)*$H134*$X134*$Y134),$D134)*$R134","v":0},{"$f":"MIN((IFERROR(IF(AND($V134<=AA$1,$W134>=AA$1),INDEX(Reliability!F$23:F$50,MATCH($S134,Reliability!$C$23:$C$50,0)),0),0)*IF($T134=\"n/a\",$D134*$Y134,$G134)+IFERROR(IF(AND($V134<=AA$1,$W134>=AA$1),INDEX(Reliability!F$23:F$50,MATCH($T134,Reliability!$C$23:$C$50,0)),0),0)*$H134*$X134*$Y134),$D134)*$R134","v":0},{"$f":"MIN((IFERROR(IF(AND($V134<=AB$1,$W134>=AB$1),INDEX(Reliability!G$23:G$50,MATCH($S134,Reliability!$C$23:$C$50,0)),0),0)*IF($T134=\"n/a\",$D134*$Y134,$G134)+IFERROR(IF(AND($V134<=AB$1,$W134>=AB$1),INDEX(Reliability!G$23:G$50,MATCH($T134,Reliability!$C$23:$C$50,0)),0),0)*$H134*$X134*$Y134),$D134)*$R134","v":0},{"$f":"MIN((IFERROR(IF(AND($V134<=AC$1,$W134>=AC$1),INDEX(Reliability!H$23:H$50,MATCH($S134,Reliability!$C$23:$C$50,0)),0),0)*IF($T134=\"n/a\",$D134*$Y134,$G134)+IFERROR(IF(AND($V134<=AC$1,$W134>=AC$1),INDEX(Reliability!H$23:H$50,MATCH($T134,Reliability!$C$23:$C$50,0)),0),0)*$H134*$X134*$Y134),$D134)*$R134","v":0},{"$f":"MIN((IFERROR(IF(AND($V134<=AD$1,$W134>=AD$1),INDEX(Reliability!I$23:I$50,MATCH($S134,Reliability!$C$23:$C$50,0)),0),0)*IF($T134=\"n/a\",$D134*$Y134,$G134)+IFERROR(IF(AND($V134<=AD$1,$W134>=AD$1),INDEX(Reliability!I$23:I$50,MATCH($T134,Reliability!$C$23:$C$50,0)),0),0)*$H134*$X134*$Y134),$D134)*$R134","v":0},{"$f":"MIN((IFERROR(IF(AND($V134<=AE$1,$W134>=AE$1),INDEX(Reliability!J$23:J$50,MATCH($S134,Reliability!$C$23:$C$50,0)),0),0)*IF($T134=\"n/a\",$D134*$Y134,$G134)+IFERROR(IF(AND($V134<=AE$1,$W134>=AE$1),INDEX(Reliability!J$23:J$50,MATCH($T134,Reliability!$C$23:$C$50,0)),0),0)*$H134*$X134*$Y134),$D134)*$R134","v":0},{"$f":"MIN((IFERROR(IF(AND($V134<=AF$1,$W134>=AF$1),INDEX(Reliability!K$23:K$50,MATCH($S134,Reliability!$C$23:$C$50,0)),0),0)*IF($T134=\"n/a\",$D134*$Y134,$G134)+IFERROR(IF(AND($V134<=AF$1,$W134>=AF$1),INDEX(Reliability!K$23:K$50,MATCH($T134,Reliability!$C$23:$C$50,0)),0),0)*$H134*$X134*$Y134),$D134)*$R134","v":0},{"$f":"MIN((IFERROR(IF(AND($V134<=AG$1,$W134>=AG$1),INDEX(Reliability!L$23:L$50,MATCH($S134,Reliability!$C$23:$C$50,0)),0),0)*IF($T134=\"n/a\",$D134*$Y134,$G134)+IFERROR(IF(AND($V134<=AG$1,$W134>=AG$1),INDEX(Reliability!L$23:L$50,MATCH($T134,Reliability!$C$23:$C$50,0)),0),0)*$H134*$X134*$Y134),$D134)*$R134","v":0},{"$f":"MIN((IFERROR(IF(AND($V134<=AH$1,$W134>=AH$1),INDEX(Reliability!M$23:M$50,MATCH($S134,Reliability!$C$23:$C$50,0)),0),0)*IF($T134=\"n/a\",$D134*$Y134,$G134)+IFERROR(IF(AND($V134<=AH$1,$W134>=AH$1),INDEX(Reliability!M$23:M$50,MATCH($T134,Reliability!$C$23:$C$50,0)),0),0)*$H134*$X134*$Y134),$D134)*$R134","v":0},{"$f":"MIN((IFERROR(IF(AND($V134<=AI$1,$W134>=AI$1),INDEX(Reliability!N$23:N$50,MATCH($S134,Reliability!$C$23:$C$50,0)),0),0)*IF($T134=\"n/a\",$D134*$Y134,$G134)+IFERROR(IF(AND($V134<=AI$1,$W134>=AI$1),INDEX(Reliability!N$23:N$50,MATCH($T134,Reliability!$C$23:$C$50,0)),0),0)*$H134*$X134*$Y134),$D134)*$R134","v":0},{"$f":"MIN((IFERROR(IF(AND($V134<=AJ$1,$W134>=AJ$1),INDEX(Reliability!O$23:O$50,MATCH($S134,Reliability!$C$23:$C$50,0)),0),0)*IF($T134=\"n/a\",$D134*$Y134,$G134)+IFERROR(IF(AND($V134<=AJ$1,$W134>=AJ$1),INDEX(Reliability!O$23:O$50,MATCH($T134,Reliability!$C$23:$C$50,0)),0),0)*$H134*$X134*$Y134),$D134)*$R134","v":0},{"$f":"MIN((IFERROR(IF(AND($V134<=AK$1,$W134>=AK$1),INDEX(Reliability!P$23:P$50,MATCH($S134,Reliability!$C$23:$C$50,0)),0),0)*IF($T134=\"n/a\",$D134*$Y134,$G134)+IFERROR(IF(AND($V134<=AK$1,$W134>=AK$1),INDEX(Reliability!P$23:P$50,MATCH($T134,Reliability!$C$23:$C$50,0)),0),0)*$H134*$X134*$Y134),$D134)*$R134","v":0}]
[null,{"$f":"unique_contracts!B136","v":0},{"$f":"unique_contracts!D136","v":0},{"$f":"unique_contracts!J136","v":0},{"$f":"unique_contracts!M136","v":0},{"$f":"unique_contracts!N136","v":0},{"$f":"unique_contracts!P136","v":0},{"$f":"unique_contracts!R136","v":0},{"$f":"unique_contracts!V136","v":0},{"$f":"unique_contracts!AB136","v":0},{"$f":"unique_contracts!AM136","v":0},{"$f":"unique_contracts!AN136","v":0},{"$f":"unique_contracts!AO136","v":0},{"$f":"unique_contracts!AP136","v":0},{"$f":"unique_contracts!AQ136","v":0},{"$f":"unique_contracts!AR136","v":0},{"$f":"unique_contracts!BP136","v":0},0,{"$f":"IFERROR(IF(AND(I135>0,E135=\"NotHybrid\"),_xlfn.CONCAT(MAX(MIN(ROUNDDOWN(I135/D135,0),8),4),INDEX(resources!$G:$G,MATCH(B135,resources!$A:$A,0))),INDEX(resources!$G:$G,MATCH(B135,resources!$A:$A,0))),\"n/a\")","v":"n/a"},"n/a","n/a",0,0,1,1,{"$f":"MIN((IFERROR(IF(AND($V135<=Z$1,$W135>=Z$1),INDEX(Reliability!E$23:E$50,MATCH($S135,Reliability!$C$23:$C$50,0)),0),0)*IF($T135=\"n/a\",$D135*$Y135,$G135)+IFERROR(IF(AND($V135<=Z$1,$W135>=Z$1),INDEX(Reliability!E$23:E$50,MATCH($T135,Reliability!$C$23:$C$50,0)),0),0)*$H135*$X135*$Y135),$D135)*$R135","v":0},{"$f":"MIN((IFERROR(IF(AND($V135<=AA$1,$W135>=AA$1),INDEX(Reliability!F$23:F$50,MATCH($S135,Reliability!$C$23:$C$50,0)),0),0)*IF($T135=\"n/a\",$D135*$Y135,$G135)+IFERROR(IF(AND($V135<=AA$1,$W135>=AA$1),INDEX(Reliability!F$23:F$50,MATCH($T135,Reliability!$C$23:$C$50,0)),0),0)*$H135*$X135*$Y135),$D135)*$R135","v":0},{"$f":"MIN((IFERROR(IF(AND($V135<=AB$1,$W135>=AB$1),INDEX(Reliability!G$23:G$50,MATCH($S135,Reliability!$C$23:$C$50,0)),0),0)*IF($T135=\"n/a\",$D135*$Y135,$G135)+IFERROR(IF(AND($V135<=AB$1,$W135>=AB$1),INDEX(Reliability!G$23:G$50,MATCH($T135,Reliability!$C$23:$C$50,0)),0),0)*$H135*$X135*$Y135),$D135)*$R135","v":0},{"$f":"MIN((IFERROR(IF(AND($V135<=AC$1,$W135>=AC$1),INDEX(Reliability!H$23:H$50,MATCH($S135,Reliability!$C$23:$C$50,0)),0),0)*IF($T135=\"n/a\",$D135*$Y135,$G135)+IFERROR(IF(AND($V135<=AC$1,$W135>=AC$1),INDEX(Reliability!H$23:H$50,MATCH($T135,Reliability!$C$23:$C$50,0)),0),0)*$H135*$X135*$Y135),$D135)*$R135","v":0},{"$f":"MIN((IFERROR(IF(AND($V135<=AD$1,$W135>=AD$1),INDEX(Reliability!I$23:I$50,MATCH($S135,Reliability!$C$23:$C$50,0)),0),0)*IF($T135=\"n/a\",$D135*$Y135,$G135)+IFERROR(IF(AND($V135<=AD$1,$W135>=AD$1),INDEX(Reliability!I$23:I$50,MATCH($T135,Reliability!$C$23:$C$50,0)),0),0)*$H135*$X135*$Y135),$D135)*$R135","v":0},{"$f":"MIN((IFERROR(IF(AND($V135<=AE$1,$W135>=AE$1),INDEX(Reliability!J$23:J$50,MATCH($S135,Reliability!$C$23:$C$50,0)),0),0)*IF($T135=\"n/a\",$D135*$Y135,$G135)+IFERROR(IF(AND($V135<=AE$1,$W135>=AE$1),INDEX(Reliability!J$23:J$50,MATCH($T135,Reliability!$C$23:$C$50,0)),0),0)*$H135*$X135*$Y135),$D135)*$R135","v":0},{"$f":"MIN((IFERROR(IF(AND($V135<=AF$1,$W135>=AF$1),INDEX(Reliability!K$23:K$50,MATCH($S135,Reliability!$C$23:$C$50,0)),0),0)*IF($T135=\"n/a\",$D135*$Y135,$G135)+IFERROR(IF(AND($V135<=AF$1,$W135>=AF$1),INDEX(Reliability!K$23:K$50,MATCH($T135,Reliability!$C$23:$C$50,0)),0),0)*$H135*$X135*$Y135),$D135)*$R135","v":0},{"$f":"MIN((IFERROR(IF(AND($V135<=AG$1,$W135>=AG$1),INDEX(Reliability!L$23:L$50,MATCH($S135,Reliability!$C$23:$C$50,0)),0),0)*IF($T135=\"n/a\",$D135*$Y135,$G135)+IFERROR(IF(AND($V135<=AG$1,$W135>=AG$1),INDEX(Reliability!L$23:L$50,MATCH($T135,Reliability!$C$23:$C$50,0)),0),0)*$H135*$X135*$Y135),$D135)*$R135","v":0},{"$f":"MIN((IFERROR(IF(AND($V135<=AH$1,$W135>=AH$1),INDEX(Reliability!M$23:M$50,MATCH($S135,Reliability!$C$23:$C$50,0)),0),0)*IF($T135=\"n/a\",$D135*$Y135,$G135)+IFERROR(IF(AND($V135<=AH$1,$W135>=AH$1),INDEX(Reliability!M$23:M$50,MATCH($T135,Reliability!$C$23:$C$50,0)),0),0)*$H135*$X135*$Y135),$D135)*$R135","v":0},{"$f":"MIN((IFERROR(IF(AND($V135<=AI$1,$W135>=AI$1),INDEX(Reliability!N$23:N$50,MATCH($S135,Reliability!$C$23:$C$50,0)),0),0)*IF($T135=\"n/a\",$D135*$Y135,$G135)+IFERROR(IF(AND($V135<=AI$1,$W135>=AI$1),INDEX(Reliability!N$23:N$50,MATCH($T135,Reliability!$C$23:$C$50,0)),0),0)*$H135*$X135*$Y135),$D135)*$R135","v":0},{"$f":"MIN((IFERROR(IF(AND($V135<=AJ$1,$W135>=AJ$1),INDEX(Reliability!O$23:O$50,MATCH($S135,Reliability!$C$23:$C$50,0)),0),0)*IF($T135=\"n/a\",$D135*$Y135,$G135)+IFERROR(IF(AND($V135<=AJ$1,$W135>=AJ$1),INDEX(Reliability!O$23:O$50,MATCH($T135,Reliability!$C$23:$C$50,0)),0),0)*$H135*$X135*$Y135),$D135)*$R135","v":0},{"$f":"MIN((IFERROR(IF(AND($V135<=AK$1,$W135>=AK$1),INDEX(Reliability!P$23:P$50,MATCH($S135,Reliability!$C$23:$C$50,0)),0),0)*IF($T135=\"n/a\",$D135*$Y135,$G135)+IFERROR(IF(AND($V135<=AK$1,$W135>=AK$1),INDEX(Reliability!P$23:P$50,MATCH($T135,Reliability!$C$23:$C$50,0)),0),0)*$H135*$X135*$Y135),$D135)*$R135","v":0}]
[null,{"$f":"unique_contracts!B137","v":0},{"$f":"unique_contracts!D137","v":0},{"$f":"unique_contracts!J137","v":0},{"$f":"unique_contracts!M137","v":0},{"$f":"unique_contracts!N137","v":0},{"$f":"unique_contracts!P137","v":0},{"$f":"unique_contracts!R137","v":0},{"$f":"unique_contracts!V137","v":0},{"$f":"unique_contracts!AB137","v":0},{"$f":"unique_contracts!AM137","v":0},{"$f":"unique_contracts!AN137","v":0},{"$f":"unique_contracts!AO137","v":0},{"$f":"unique_contracts!AP137","v":0},{"$f":"unique_contracts!AQ137","v":0},{"$f":"unique_contracts!AR137","v":0},{"$f":"unique_contracts!BP137","v":0},0,{"$f":"IFERROR(IF(AND(I136>0,E136=\"NotHybrid\"),_xlfn.CONCAT(MAX(MIN(ROUNDDOWN(I136/D136,0),8),4),INDEX(resources!$G:$G,MATCH(B136,resources!$A:$A,0))),INDEX(resources!$G:$G,MATCH(B136,resources!$A:$A,0))),\"n/a\")","v":"n/a"},"n/a","n/a",0,0,1,1,{"$f":"MIN((IFERROR(IF(AND($V136<=Z$1,$W136>=Z$1),INDEX(Reliability!E$23:E$50,MATCH($S136,Reliability!$C$23:$C$50,0)),0),0)*IF($T136=\"n/a\",$D136*$Y136,$G136)+IFERROR(IF(AND($V136<=Z$1,$W136>=Z$1),INDEX(Reliability!E$23:E$50,MATCH($T136,Reliability!$C$23:$C$50,0)),0),0)*$H136*$X136*$Y136),$D136)*$R136","v":0},{"$f":"MIN((IFERROR(IF(AND($V136<=AA$1,$W136>=AA$1),INDEX(Reliability!F$23:F$50,MATCH($S136,Reliability!$C$23:$C$50,0)),0),0)*IF($T136=\"n/a\",$D136*$Y136,$G136)+IFERROR(IF(AND($V136<=AA$1,$W136>=AA$1),INDEX(Reliability!F$23:F$50,MATCH($T136,Reliability!$C$23:$C$50,0)),0),0)*$H136*$X136*$Y136),$D136)*$R136","v":0},{"$f":"MIN((IFERROR(IF(AND($V136<=AB$1,$W136>=AB$1),INDEX(Reliability!G$23:G$50,MATCH($S136,Reliability!$C$23:$C$50,0)),0),0)*IF($T136=\"n/a\",$D136*$Y136,$G136)+IFERROR(IF(AND($V136<=AB$1,$W136>=AB$1),INDEX(Reliability!G$23:G$50,MATCH($T136,Reliability!$C$23:$C$50,0)),0),0)*$H136*$X136*$Y136),$D136)*$R136","v":0},{"$f":"MIN((IFERROR(IF(AND($V136<=AC$1,$W136>=AC$1),INDEX(Reliability!H$23:H$50,MATCH($S136,Reliability!$C$23:$C$50,0)),0),0)*IF($T136=\"n/a\",$D136*$Y136,$G136)+IFERROR(IF(AND($V136<=AC$1,$W136>=AC$1),INDEX(Reliability!H$23:H$50,MATCH($T136,Reliability!$C$23:$C$50,0)),0),0)*$H136*$X136*$Y136),$D136)*$R136","v":0},{"$f":"MIN((IFERROR(IF(AND($V136<=AD$1,$W136>=AD$1),INDEX(Reliability!I$23:I$50,MATCH($S136,Reliability!$C$23:$C$50,0)),0),0)*IF($T136=\"n/a\",$D136*$Y136,$G136)+IFERROR(IF(AND($V136<=AD$1,$W136>=AD$1),INDEX(Reliability!I$23:I$50,MATCH($T136,Reliability!$C$23:$C$50,0)),0),0)*$H136*$X136*$Y136),$D136)*$R136","v":0},{"$f":"MIN((IFERROR(IF(AND($V136<=AE$1,$W136>=AE$1),INDEX(Reliability!J$23:J$50,MATCH($S136,Reliability!$C$23:$C$50,0)),0),0)*IF($T136=\"n/a\",$D136*$Y136,$G136)+IFERROR(IF(AND($V136<=AE$1,$W136>=AE$1),INDEX(Reliability!J$23:J$50,MATCH($T136,Reliability!$C$23:$C$50,0)),0),0)*$H136*$X136*$Y136),$D136)*$R136","v":0},{"$f":"MIN((IFERROR(IF(AND($V136<=AF$1,$W136>=AF$1),INDEX(Reliability!K$23:K$50,MATCH($S136,Reliability!$C$23:$C$50,0)),0),0)*IF($T136=\"n/a\",$D136*$Y136,$G136)+IFERROR(IF(AND($V136<=AF$1,$W136>=AF$1),INDEX(Reliability!K$23:K$50,MATCH($T136,Reliability!$C$23:$C$50,0)),0),0)*$H136*$X136*$Y136),$D136)*$R136","v":0},{"$f":"MIN((IFERROR(IF(AND($V136<=AG$1,$W136>=AG$1),INDEX(Reliability!L$23:L$50,MATCH($S136,Reliability!$C$23:$C$50,0)),0),0)*IF($T136=\"n/a\",$D136*$Y136,$G136)+IFERROR(IF(AND($V136<=AG$1,$W136>=AG$1),INDEX(Reliability!L$23:L$50,MATCH($T136,Reliability!$C$23:$C$50,0)),0),0)*$H136*$X136*$Y136),$D136)*$R136","v":0},{"$f":"MIN((IFERROR(IF(AND($V136<=AH$1,$W136>=AH$1),INDEX(Reliability!M$23:M$50,MATCH($S136,Reliability!$C$23:$C$50,0)),0),0)*IF($T136=\"n/a\",$D136*$Y136,$G136)+IFERROR(IF(AND($V136<=AH$1,$W136>=AH$1),INDEX(Reliability!M$23:M$50,MATCH($T136,Reliability!$C$23:$C$50,0)),0),0)*$H136*$X136*$Y136),$D136)*$R136","v":0},{"$f":"MIN((IFERROR(IF(AND($V136<=AI$1,$W136>=AI$1),INDEX(Reliability!N$23:N$50,MATCH($S136,Reliability!$C$23:$C$50,0)),0),0)*IF($T136=\"n/a\",$D136*$Y136,$G136)+IFERROR(IF(AND($V136<=AI$1,$W136>=AI$1),INDEX(Reliability!N$23:N$50,MATCH($T136,Reliability!$C$23:$C$50,0)),0),0)*$H136*$X136*$Y136),$D136)*$R136","v":0},{"$f":"MIN((IFERROR(IF(AND($V136<=AJ$1,$W136>=AJ$1),INDEX(Reliability!O$23:O$50,MATCH($S136,Reliability!$C$23:$C$50,0)),0),0)*IF($T136=\"n/a\",$D136*$Y136,$G136)+IFERROR(IF(AND($V136<=AJ$1,$W136>=AJ$1),INDEX(Reliability!O$23:O$50,MATCH($T136,Reliability!$C$23:$C$50,0)),0),0)*$H136*$X136*$Y136),$D136)*$R136","v":0},{"$f":"MIN((IFERROR(IF(AND($V136<=AK$1,$W136>=AK$1),INDEX(Reliability!P$23:P$50,MATCH($S136,Reliability!$C$23:$C$50,0)),0),0)*IF($T136=\"n/a\",$D136*$Y136,$G136)+IFERROR(IF(AND($V136<=AK$1,$W136>=AK$1),INDEX(Reliability!P$23:P$50,MATCH($T136,Reliability!$C$23:$C$50,0)),0),0)*$H136*$X136*$Y136),$D136)*$R136","v":0}]
[null,{"$f":"unique_contracts!B138","v":0},{"$f":"unique_contracts!D138","v":0},{"$f":"unique_contracts!J138","v":0},{"$f":"unique_contracts!M138","v":0},{"$f":"unique_contracts!N138","v":0},{"$f":"unique_contracts!P138","v":0},{"$f":"unique_contracts!R138","v":0},{"$f":"unique_contracts!V138","v":0},{"$f":"unique_contracts!AB138","v":0},{"$f":"unique_contracts!AM138","v":0},{"$f":"unique_contracts!AN138","v":0},{"$f":"unique_contracts!AO138","v":0},{"$f":"unique_contracts!AP138","v":0},{"$f":"unique_contracts!AQ138","v":0},{"$f":"unique_contracts!AR138","v":0},{"$f":"unique_contracts!BP138","v":0},0,{"$f":"IFERROR(IF(AND(I137>0,E137=\"NotHybrid\"),_xlfn.CONCAT(MAX(MIN(ROUNDDOWN(I137/D137,0),8),4),INDEX(resources!$G:$G,MATCH(B137,resources!$A:$A,0))),INDEX(resources!$G:$G,MATCH(B137,resources!$A:$A,0))),\"n/a\")","v":"n/a"},"n/a","n/a",0,0,1,1,{"$f":"MIN((IFERROR(IF(AND($V137<=Z$1,$W137>=Z$1),INDEX(Reliability!E$23:E$50,MATCH($S137,Reliability!$C$23:$C$50,0)),0),0)*IF($T137=\"n/a\",$D137*$Y137,$G137)+IFERROR(IF(AND($V137<=Z$1,$W137>=Z$1),INDEX(Reliability!E$23:E$50,MATCH($T137,Reliability!$C$23:$C$50,0)),0),0)*$H137*$X137*$Y137),$D137)*$R137","v":0},{"$f":"MIN((IFERROR(IF(AND($V137<=AA$1,$W137>=AA$1),INDEX(Reliability!F$23:F$50,MATCH($S137,Reliability!$C$23:$C$50,0)),0),0)*IF($T137=\"n/a\",$D137*$Y137,$G137)+IFERROR(IF(AND($V137<=AA$1,$W137>=AA$1),INDEX(Reliability!F$23:F$50,MATCH($T137,Reliability!$C$23:$C$50,0)),0),0)*$H137*$X137*$Y137),$D137)*$R137","v":0},{"$f":"MIN((IFERROR(IF(AND($V137<=AB$1,$W137>=AB$1),INDEX(Reliability!G$23:G$50,MATCH($S137,Reliability!$C$23:$C$50,0)),0),0)*IF($T137=\"n/a\",$D137*$Y137,$G137)+IFERROR(IF(AND($V137<=AB$1,$W137>=AB$1),INDEX(Reliability!G$23:G$50,MATCH($T137,Reliability!$C$23:$C$50,0)),0),0)*$H137*$X137*$Y137),$D137)*$R137","v":0},{"$f":"MIN((IFERROR(IF(AND($V137<=AC$1,$W137>=AC$1),INDEX(Reliability!H$23:H$50,MATCH($S137,Reliability!$C$23:$C$50,0)),0),0)*IF($T137=\"n/a\",$D137*$Y137,$G137)+IFERROR(IF(AND($V137<=AC$1,$W137>=AC$1),INDEX(Reliability!H$23:H$50,MATCH($T137,Reliability!$C$23:$C$50,0)),0),0)*$H137*$X137*$Y137),$D137)*$R137","v":0},{"$f":"MIN((IFERROR(IF(AND($V137<=AD$1,$W137>=AD$1),INDEX(Reliability!I$23:I$50,MATCH($S137,Reliability!$C$23:$C$50,0)),0),0)*IF($T137=\"n/a\",$D137*$Y137,$G137)+IFERROR(IF(AND($V137<=AD$1,$W137>=AD$1),INDEX(Reliability!I$23:I$50,MATCH($T137,Reliability!$C$23:$C$50,0)),0),0)*$H137*$X137*$Y137),$D137)*$R137","v":0},{"$f":"MIN((IFERROR(IF(AND($V137<=AE$1,$W137>=AE$1),INDEX(Reliability!J$23:J$50,MATCH($S137,Reliability!$C$23:$C$50,0)),0),0)*IF($T137=\"n/a\",$D137*$Y137,$G137)+IFERROR(IF(AND($V137<=AE$1,$W137>=AE$1),INDEX(Reliability!J$23:J$50,MATCH($T137,Reliability!$C$23:$C$50,0)),0),0)*$H137*$X137*$Y137),$D137)*$R137","v":0},{"$f":"MIN((IFERROR(IF(AND($V137<=AF$1,$W137>=AF$1),INDEX(Reliability!K$23:K$50,MATCH($S137,Reliability!$C$23:$C$50,0)),0),0)*IF($T137=\"n/a\",$D137*$Y137,$G137)+IFERROR(IF(AND($V137<=AF$1,$W137>=AF$1),INDEX(Reliability!K$23:K$50,MATCH($T137,Reliability!$C$23:$C$50,0)),0),0)*$H137*$X137*$Y137),$D137)*$R137","v":0},{"$f":"MIN((IFERROR(IF(AND($V137<=AG$1,$W137>=AG$1),INDEX(Reliability!L$23:L$50,MATCH($S137,Reliability!$C$23:$C$50,0)),0),0)*IF($T137=\"n/a\",$D137*$Y137,$G137)+IFERROR(IF(AND($V137<=AG$1,$W137>=AG$1),INDEX(Reliability!L$23:L$50,MATCH($T137,Reliability!$C$23:$C$50,0)),0),0)*$H137*$X137*$Y137),$D137)*$R137","v":0},{"$f":"MIN((IFERROR(IF(AND($V137<=AH$1,$W137>=AH$1),INDEX(Reliability!M$23:M$50,MATCH($S137,Reliability!$C$23:$C$50,0)),0),0)*IF($T137=\"n/a\",$D137*$Y137,$G137)+IFERROR(IF(AND($V137<=AH$1,$W137>=AH$1),INDEX(Reliability!M$23:M$50,MATCH($T137,Reliability!$C$23:$C$50,0)),0),0)*$H137*$X137*$Y137),$D137)*$R137","v":0},{"$f":"MIN((IFERROR(IF(AND($V137<=AI$1,$W137>=AI$1),INDEX(Reliability!N$23:N$50,MATCH($S137,Reliability!$C$23:$C$50,0)),0),0)*IF($T137=\"n/a\",$D137*$Y137,$G137)+IFERROR(IF(AND($V137<=AI$1,$W137>=AI$1),INDEX(Reliability!N$23:N$50,MATCH($T137,Reliability!$C$23:$C$50,0)),0),0)*$H137*$X137*$Y137),$D137)*$R137","v":0},{"$f":"MIN((IFERROR(IF(AND($V137<=AJ$1,$W137>=AJ$1),INDEX(Reliability!O$23:O$50,MATCH($S137,Reliability!$C$23:$C$50,0)),0),0)*IF($T137=\"n/a\",$D137*$Y137,$G137)+IFERROR(IF(AND($V137<=AJ$1,$W137>=AJ$1),INDEX(Reliability!O$23:O$50,MATCH($T137,Reliability!$C$23:$C$50,0)),0),0)*$H137*$X137*$Y137),$D137)*$R137","v":0},{"$f":"MIN((IFERROR(IF(AND($V137<=AK$1,$W137>=AK$1),INDEX(Reliability!P$23:P$50,MATCH($S137,Reliability!$C$23:$C$50,0)),0),0)*IF($T137=\"n/a\",$D137*$Y137,$G137)+IFERROR(IF(AND($V137<=AK$1,$W137>=AK$1),INDEX(Reliability!P$23:P$50,MATCH($T137,Reliability!$C$23:$C$50,0)),0),0)*$H137*$X137*$Y137),$D137)*$R137","v":0}]
[null,{"$f":"unique_contracts!B139","v":0},{"$f":"unique_contracts!D139","v":0},{"$f":"unique_contracts!J139","v":0},{"$f":"unique_contracts!M139","v":0},{"$f":"unique_contracts!N139","v":0},{"$f":"unique_contracts!P139","v":0},{"$f":"unique_contracts!R139","v":0},{"$f":"unique_contracts!V139","v":0},{"$f":"unique_contracts!AB139","v":0},{"$f":"unique_contracts!AM139","v":0},{"$f":"unique_contracts!AN139","v":0},{"$f":"unique_contracts!AO139","v":0},{"$f":"unique_contracts!AP139","v":0},{"$f":"unique_contracts!AQ139","v":0},{"$f":"unique_contracts!AR139","v":0},{"$f":"unique_contracts!BP139","v":0},0,{"$f":"IFERROR(IF(AND(I138>0,E138=\"NotHybrid\"),_xlfn.CONCAT(MAX(MIN(ROUNDDOWN(I138/D138,0),8),4),INDEX(resources!$G:$G,MATCH(B138,resources!$A:$A,0))),INDEX(resources!$G:$G,MATCH(B138,resources!$A:$A,0))),\"n/a\")","v":"n/a"},"n/a","n/a",0,0,1,1,{"$f":"MIN((IFERROR(IF(AND($V138<=Z$1,$W138>=Z$1),INDEX(Reliability!E$23:E$50,MATCH($S138,Reliability!$C$23:$C$50,0)),0),0)*IF($T138=\"n/a\",$D138*$Y138,$G138)+IFERROR(IF(AND($V138<=Z$1,$W138>=Z$1),INDEX(Reliability!E$23:E$50,MATCH($T138,Reliability!$C$23:$C$50,0)),0),0)*$H138*$X138*$Y138),$D138)*$R138","v":0},{"$f":"MIN((IFERROR(IF(AND($V138<=AA$1,$W138>=AA$1),INDEX(Reliability!F$23:F$50,MATCH($S138,Reliability!$C$23:$C$50,0)),0),0)*IF($T138=\"n/a\",$D138*$Y138,$G138)+IFERROR(IF(AND($V138<=AA$1,$W138>=AA$1),INDEX(Reliability!F$23:F$50,MATCH($T138,Reliability!$C$23:$C$50,0)),0),0)*$H138*$X138*$Y138),$D138)*$R138","v":0},{"$f":"MIN((IFERROR(IF(AND($V138<=AB$1,$W138>=AB$1),INDEX(Reliability!G$23:G$50,MATCH($S138,Reliability!$C$23:$C$50,0)),0),0)*IF($T138=\"n/a\",$D138*$Y138,$G138)+IFERROR(IF(AND($V138<=AB$1,$W138>=AB$1),INDEX(Reliability!G$23:G$50,MATCH($T138,Reliability!$C$23:$C$50,0)),0),0)*$H138*$X138*$Y138),$D138)*$R138","v":0},{"$f":"MIN((IFERROR(IF(AND($V138<=AC$1,$W138>=AC$1),INDEX(Reliability!H$23:H$50,MATCH($S138,Reliability!$C$23:$C$50,0)),0),0)*IF($T138=\"n/a\",$D138*$Y138,$G138)+IFERROR(IF(AND($V138<=AC$1,$W138>=AC$1),INDEX(Reliability!H$23:H$50,MATCH($T138,Reliability!$C$23:$C$50,0)),0),0)*$H138*$X138*$Y138),$D138)*$R138","v":0},{"$f":"MIN((IFERROR(IF(AND($V138<=AD$1,$W138>=AD$1),INDEX(Reliability!I$23:I$50,MATCH($S138,Reliability!$C$23:$C$50,0)),0),0)*IF($T138=\"n/a\",$D138*$Y138,$G138)+IFERROR(IF(AND($V138<=AD$1,$W138>=AD$1),INDEX(Reliability!I$23:I$50,MATCH($T138,Reliability!$C$23:$C$50,0)),0),0)*$H138*$X138*$Y138),$D138)*$R138","v":0},{"$f":"MIN((IFERROR(IF(AND($V138<=AE$1,$W138>=AE$1),INDEX(Reliability!J$23:J$50,MATCH($S138,Reliability!$C$23:$C$50,0)),0),0)*IF($T138=\"n/a\",$D138*$Y138,$G138)+IFERROR(IF(AND($V138<=AE$1,$W138>=AE$1),INDEX(Reliability!J$23:J$50,MATCH($T138,Reliability!$C$23:$C$50,0)),0),0)*$H138*$X138*$Y138),$D138)*$R138","v":0},{"$f":"MIN((IFERROR(IF(AND($V138<=AF$1,$W138>=AF$1),INDEX(Reliability!K$23:K$50,MATCH($S138,Reliability!$C$23:$C$50,0)),0),0)*IF($T138=\"n/a\",$D138*$Y138,$G138)+IFERROR(IF(AND($V138<=AF$1,$W138>=AF$1),INDEX(Reliability!K$23:K$50,MATCH($T138,Reliability!$C$23:$C$50,0)),0),0)*$H138*$X138*$Y138),$D138)*$R138","v":0},{"$f":"MIN((IFERROR(IF(AND($V138<=AG$1,$W138>=AG$1),INDEX(Reliability!L$23:L$50,MATCH($S138,Reliability!$C$23:$C$50,0)),0),0)*IF($T138=\"n/a\",$D138*$Y138,$G138)+IFERROR(IF(AND($V138<=AG$1,$W138>=AG$1),INDEX(Reliability!L$23:L$50,MATCH($T138,Reliability!$C$23:$C$50,0)),0),0)*$H138*$X138*$Y138),$D138)*$R138","v":0},{"$f":"MIN((IFERROR(IF(AND($V138<=AH$1,$W138>=AH$1),INDEX(Reliability!M$23:M$50,MATCH($S138,Reliability!$C$23:$C$50,0)),0),0)*IF($T138=\"n/a\",$D138*$Y138,$G138)+IFERROR(IF(AND($V138<=AH$1,$W138>=AH$1),INDEX(Reliability!M$23:M$50,MATCH($T138,Reliability!$C$23:$C$50,0)),0),0)*$H138*$X138*$Y138),$D138)*$R138","v":0},{"$f":"MIN((IFERROR(IF(AND($V138<=AI$1,$W138>=AI$1),INDEX(Reliability!N$23:N$50,MATCH($S138,Reliability!$C$23:$C$50,0)),0),0)*IF($T138=\"n/a\",$D138*$Y138,$G138)+IFERROR(IF(AND($V138<=AI$1,$W138>=AI$1),INDEX(Reliability!N$23:N$50,MATCH($T138,Reliability!$C$23:$C$50,0)),0),0)*$H138*$X138*$Y138),$D138)*$R138","v":0},{"$f":"MIN((IFERROR(IF(AND($V138<=AJ$1,$W138>=AJ$1),INDEX(Reliability!O$23:O$50,MATCH($S138,Reliability!$C$23:$C$50,0)),0),0)*IF($T138=\"n/a\",$D138*$Y138,$G138)+IFERROR(IF(AND($V138<=AJ$1,$W138>=AJ$1),INDEX(Reliability!O$23:O$50,MATCH($T138,Reliability!$C$23:$C$50,0)),0),0)*$H138*$X138*$Y138),$D138)*$R138","v":0},{"$f":"MIN((IFERROR(IF(AND($V138<=AK$1,$W138>=AK$1),INDEX(Reliability!P$23:P$50,MATCH($S138,Reliability!$C$23:$C$50,0)),0),0)*IF($T138=\"n/a\",$D138*$Y138,$G138)+IFERROR(IF(AND($V138<=AK$1,$W138>=AK$1),INDEX(Reliability!P$23:P$50,MATCH($T138,Reliability!$C$23:$C$50,0)),0),0)*$H138*$X138*$Y138),$D138)*$R138","v":0}]
[null,{"$f":"unique_contracts!B140","v":0},{"$f":"unique_contracts!D140","v":0},{"$f":"unique_contracts!J140","v":0},{"$f":"unique_contracts!M140","v":0},{"$f":"unique_contracts!N140","v":0},{"$f":"unique_contracts!P140","v":0},{"$f":"unique_contracts!R140","v":0},{"$f":"unique_contracts!V140","v":0},{"$f":"unique_contracts!AB140","v":0},{"$f":"unique_contracts!AM140","v":0},{"$f":"unique_contracts!AN140","v":0},{"$f":"unique_contracts!AO140","v":0},{"$f":"unique_contracts!AP140","v":0},{"$f":"unique_contracts!AQ140","v":0},{"$f":"unique_contracts!AR140","v":0},{"$f":"unique_contracts!BP140","v":0},0,{"$f":"IFERROR(IF(AND(I139>0,E139=\"NotHybrid\"),_xlfn.CONCAT(MAX(MIN(ROUNDDOWN(I139/D139,0),8),4),INDEX(resources!$G:$G,MATCH(B139,resources!$A:$A,0))),INDEX(resources!$G:$G,MATCH(B139,resources!$A:$A,0))),\"n/a\")","v":"n/a"},"n/a","n/a",0,0,1,1,{"$f":"MIN((IFERROR(IF(AND($V139<=Z$1,$W139>=Z$1),INDEX(Reliability!E$23:E$50,MATCH($S139,Reliability!$C$23:$C$50,0)),0),0)*IF($T139=\"n/a\",$D139*$Y139,$G139)+IFERROR(IF(AND($V139<=Z$1,$W139>=Z$1),INDEX(Reliability!E$23:E$50,MATCH($T139,Reliability!$C$23:$C$50,0)),0),0)*$H139*$X139*$Y139),$D139)*$R139","v":0},{"$f":"MIN((IFERROR(IF(AND($V139<=AA$1,$W139>=AA$1),INDEX(Reliability!F$23:F$50,MATCH($S139,Reliability!$C$23:$C$50,0)),0),0)*IF($T139=\"n/a\",$D139*$Y139,$G139)+IFERROR(IF(AND($V139<=AA$1,$W139>=AA$1),INDEX(Reliability!F$23:F$50,MATCH($T139,Reliability!$C$23:$C$50,0)),0),0)*$H139*$X139*$Y139),$D139)*$R139","v":0},{"$f":"MIN((IFERROR(IF(AND($V139<=AB$1,$W139>=AB$1),INDEX(Reliability!G$23:G$50,MATCH($S139,Reliability!$C$23:$C$50,0)),0),0)*IF($T139=\"n/a\",$D139*$Y139,$G139)+IFERROR(IF(AND($V139<=AB$1,$W139>=AB$1),INDEX(Reliability!G$23:G$50,MATCH($T139,Reliability!$C$23:$C$50,0)),0),0)*$H139*$X139*$Y139),$D139)*$R139","v":0},{"$f":"MIN((IFERROR(IF(AND($V139<=AC$1,$W139>=AC$1),INDEX(Reliability!H$23:H$50,MATCH($S139,Reliability!$C$23:$C$50,0)),0),0)*IF($T139=\"n/a\",$D139*$Y139,$G139)+IFERROR(IF(AND($V139<=AC$1,$W139>=AC$1),INDEX(Reliability!H$23:H$50,MATCH($T139,Reliability!$C$23:$C$50,0)),0),0)*$H139*$X139*$Y139),$D139)*$R139","v":0},{"$f":"MIN((IFERROR(IF(AND($V139<=AD$1,$W139>=AD$1),INDEX(Reliability!I$23:I$50,MATCH($S139,Reliability!$C$23:$C$50,0)),0),0)*IF($T139=\"n/a\",$D139*$Y139,$G139)+IFERROR(IF(AND($V139<=AD$1,$W139>=AD$1),INDEX(Reliability!I$23:I$50,MATCH($T139,Reliability!$C$23:$C$50,0)),0),0)*$H139*$X139*$Y139),$D139)*$R139","v":0},{"$f":"MIN((IFERROR(IF(AND($V139<=AE$1,$W139>=AE$1),INDEX(Reliability!J$23:J$50,MATCH($S139,Reliability!$C$23:$C$50,0)),0),0)*IF($T139=\"n/a\",$D139*$Y139,$G139)+IFERROR(IF(AND($V139<=AE$1,$W139>=AE$1),INDEX(Reliability!J$23:J$50,MATCH($T139,Reliability!$C$23:$C$50,0)),0),0)*$H139*$X139*$Y139),$D139)*$R139","v":0},{"$f":"MIN((IFERROR(IF(AND($V139<=AF$1,$W139>=AF$1),INDEX(Reliability!K$23:K$50,MATCH($S139,Reliability!$C$23:$C$50,0)),0),0)*IF($T139=\"n/a\",$D139*$Y139,$G139)+IFERROR(IF(AND($V139<=AF$1,$W139>=AF$1),INDEX(Reliability!K$23:K$50,MATCH($T139,Reliability!$C$23:$C$50,0)),0),0)*$H139*$X139*$Y139),$D139)*$R139","v":0},{"$f":"MIN((IFERROR(IF(AND($V139<=AG$1,$W139>=AG$1),INDEX(Reliability!L$23:L$50,MATCH($S139,Reliability!$C$23:$C$50,0)),0),0)*IF($T139=\"n/a\",$D139*$Y139,$G139)+IFERROR(IF(AND($V139<=AG$1,$W139>=AG$1),INDEX(Reliability!L$23:L$50,MATCH($T139,Reliability!$C$23:$C$50,0)),0),0)*$H139*$X139*$Y139),$D139)*$R139","v":0},{"$f":"MIN((IFERROR(IF(AND($V139<=AH$1,$W139>=AH$1),INDEX(Reliability!M$23:M$50,MATCH($S139,Reliability!$C$23:$C$50,0)),0),0)*IF($T139=\"n/a\",$D139*$Y139,$G139)+IFERROR(IF(AND($V139<=AH$1,$W139>=AH$1),INDEX(Reliability!M$23:M$50,MATCH($T139,Reliability!$C$23:$C$50,0)),0),0)*$H139*$X139*$Y139),$D139)*$R139","v":0},{"$f":"MIN((IFERROR(IF(AND($V139<=AI$1,$W139>=AI$1),INDEX(Reliability!N$23:N$50,MATCH($S139,Reliability!$C$23:$C$50,0)),0),0)*IF($T139=\"n/a\",$D139*$Y139,$G139)+IFERROR(IF(AND($V139<=AI$1,$W139>=AI$1),INDEX(Reliability!N$23:N$50,MATCH($T139,Reliability!$C$23:$C$50,0)),0),0)*$H139*$X139*$Y139),$D139)*$R139","v":0},{"$f":"MIN((IFERROR(IF(AND($V139<=AJ$1,$W139>=AJ$1),INDEX(Reliability!O$23:O$50,MATCH($S139,Reliability!$C$23:$C$50,0)),0),0)*IF($T139=\"n/a\",$D139*$Y139,$G139)+IFERROR(IF(AND($V139<=AJ$1,$W139>=AJ$1),INDEX(Reliability!O$23:O$50,MATCH($T139,Reliability!$C$23:$C$50,0)),0),0)*$H139*$X139*$Y139),$D139)*$R139","v":0},{"$f":"MIN((IFERROR(IF(AND($V139<=AK$1,$W139>=AK$1),INDEX(Reliability!P$23:P$50,MATCH($S139,Reliability!$C$23:$C$50,0)),0),0)*IF($T139=\"n/a\",$D139*$Y139,$G139)+IFERROR(IF(AND($V139<=AK$1,$W139>=AK$1),INDEX(Reliability!P$23:P$50,MATCH($T139,Reliability!$C$23:$C$50,0)),0),0)*$H139*$X139*$Y139),$D139)*$R139","v":0}]
[null,{"$f":"unique_contracts!B141","v":0},{"$f":"unique_contracts!D141","v":0},{"$f":"unique_contracts!J141","v":0},{"$f":"unique_contracts!M141","v":0},{"$f":"unique_contracts!N141","v":0},{"$f":"unique_contracts!P141","v":0},{"$f":"unique_contracts!R141","v":0},{"$f":"unique_contracts!V141","v":0},{"$f":"unique_contracts!AB141","v":0},{"$f":"unique_contracts!AM141","v":0},{"$f":"unique_contracts!AN141","v":0},{"$f":"unique_contracts!AO141","v":0},{"$f":"unique_contracts!AP141","v":0},{"$f":"unique_contracts!AQ141","v":0},{"$f":"unique_contracts!AR141","v":0},{"$f":"unique_contracts!BP141","v":0},0,{"$f":"IFERROR(IF(AND(I140>0,E140=\"NotHybrid\"),_xlfn.CONCAT(MAX(MIN(ROUNDDOWN(I140/D140,0),8),4),INDEX(resources!$G:$G,MATCH(B140,resources!$A:$A,0))),INDEX(resources!$G:$G,MATCH(B140,resources!$A:$A,0))),\"n/a\")","v":"n/a"},"n/a","n/a",0,0,1,1,{"$f":"MIN((IFERROR(IF(AND($V140<=Z$1,$W140>=Z$1),INDEX(Reliability!E$23:E$50,MATCH($S140,Reliability!$C$23:$C$50,0)),0),0)*IF($T140=\"n/a\",$D140*$Y140,$G140)+IFERROR(IF(AND($V140<=Z$1,$W140>=Z$1),INDEX(Reliability!E$23:E$50,MATCH($T140,Reliability!$C$23:$C$50,0)),0),0)*$H140*$X140*$Y140),$D140)*$R140","v":0},{"$f":"MIN((IFERROR(IF(AND($V140<=AA$1,$W140>=AA$1),INDEX(Reliability!F$23:F$50,MATCH($S140,Reliability!$C$23:$C$50,0)),0),0)*IF($T140=\"n/a\",$D140*$Y140,$G140)+IFERROR(IF(AND($V140<=AA$1,$W140>=AA$1),INDEX(Reliability!F$23:F$50,MATCH($T140,Reliability!$C$23:$C$50,0)),0),0)*$H140*$X140*$Y140),$D140)*$R140","v":0},{"$f":"MIN((IFERROR(IF(AND($V140<=AB$1,$W140>=AB$1),INDEX(Reliability!G$23:G$50,MATCH($S140,Reliability!$C$23:$C$50,0)),0),0)*IF($T140=\"n/a\",$D140*$Y140,$G140)+IFERROR(IF(AND($V140<=AB$1,$W140>=AB$1),INDEX(Reliability!G$23:G$50,MATCH($T140,Reliability!$C$23:$C$50,0)),0),0)*$H140*$X140*$Y140),$D140)*$R140","v":0},{"$f":"MIN((IFERROR(IF(AND($V140<=AC$1,$W140>=AC$1),INDEX(Reliability!H$23:H$50,MATCH($S140,Reliability!$C$23:$C$50,0)),0),0)*IF($T140=\"n/a\",$D140*$Y140,$G140)+IFERROR(IF(AND($V140<=AC$1,$W140>=AC$1),INDEX(Reliability!H$23:H$50,MATCH($T140,Reliability!$C$23:$C$50,0)),0),0)*$H140*$X140*$Y140),$D140)*$R140","v":0},{"$f":"MIN((IFERROR(IF(AND($V140<=AD$1,$W140>=AD$1),INDEX(Reliability!I$23:I$50,MATCH($S140,Reliability!$C$23:$C$50,0)),0),0)*IF($T140=\"n/a\",$D140*$Y140,$G140)+IFERROR(IF(AND($V140<=AD$1,$W140>=AD$1),INDEX(Reliability!I$23:I$50,MATCH($T140,Reliability!$C$23:$C$50,0)),0),0)*$H140*$X140*$Y140),$D140)*$R140","v":0},{"$f":"MIN((IFERROR(IF(AND($V140<=AE$1,$W140>=AE$1),INDEX(Reliability!J$23:J$50,MATCH($S140,Reliability!$C$23:$C$50,0)),0),0)*IF($T140=\"n/a\",$D140*$Y140,$G140)+IFERROR(IF(AND($V140<=AE$1,$W140>=AE$1),INDEX(Reliability!J$23:J$50,MATCH($T140,Reliability!$C$23:$C$50,0)),0),0)*$H140*$X140*$Y140),$D140)*$R140","v":0},{"$f":"MIN((IFERROR(IF(AND($V140<=AF$1,$W140>=AF$1),INDEX(Reliability!K$23:K$50,MATCH($S140,Reliability!$C$23:$C$50,0)),0),0)*IF($T140=\"n/a\",$D140*$Y140,$G140)+IFERROR(IF(AND($V140<=AF$1,$W140>=AF$1),INDEX(Reliability!K$23:K$50,MATCH($T140,Reliability!$C$23:$C$50,0)),0),0)*$H140*$X140*$Y140),$D140)*$R140","v":0},{"$f":"MIN((IFERROR(IF(AND($V140<=AG$1,$W140>=AG$1),INDEX(Reliability!L$23:L$50,MATCH($S140,Reliability!$C$23:$C$50,0)),0),0)*IF($T140=\"n/a\",$D140*$Y140,$G140)+IFERROR(IF(AND($V140<=AG$1,$W140>=AG$1),INDEX(Reliability!L$23:L$50,MATCH($T140,Reliability!$C$23:$C$50,0)),0),0)*$H140*$X140*$Y140),$D140)*$R140","v":0},{"$f":"MIN((IFERROR(IF(AND($V140<=AH$1,$W140>=AH$1),INDEX(Reliability!M$23:M$50,MATCH($S140,Reliability!$C$23:$C$50,0)),0),0)*IF($T140=\"n/a\",$D140*$Y140,$G140)+IFERROR(IF(AND($V140<=AH$1,$W140>=AH$1),INDEX(Reliability!M$23:M$50,MATCH($T140,Reliability!$C$23:$C$50,0)),0),0)*$H140*$X140*$Y140),$D140)*$R140","v":0},{"$f":"MIN((IFERROR(IF(AND($V140<=AI$1,$W140>=AI$1),INDEX(Reliability!N$23:N$50,MATCH($S140,Reliability!$C$23:$C$50,0)),0),0)*IF($T140=\"n/a\",$D140*$Y140,$G140)+IFERROR(IF(AND($V140<=AI$1,$W140>=AI$1),INDEX(Reliability!N$23:N$50,MATCH($T140,Reliability!$C$23:$C$50,0)),0),0)*$H140*$X140*$Y140),$D140)*$R140","v":0},{"$f":"MIN((IFERROR(IF(AND($V140<=AJ$1,$W140>=AJ$1),INDEX(Reliability!O$23:O$50,MATCH($S140,Reliability!$C$23:$C$50,0)),0),0)*IF($T140=\"n/a\",$D140*$Y140,$G140)+IFERROR(IF(AND($V140<=AJ$1,$W140>=AJ$1),INDEX(Reliability!O$23:O$50,MATCH($T140,Reliability!$C$23:$C$50,0)),0),0)*$H140*$X140*$Y140),$D140)*$R140","v":0},{"$f":"MIN((IFERROR(IF(AND($V140<=AK$1,$W140>=AK$1),INDEX(Reliability!P$23:P$50,MATCH($S140,Reliability!$C$23:$C$50,0)),0),0)*IF($T140=\"n/a\",$D140*$Y140,$G140)+IFERROR(IF(AND($V140<=AK$1,$W140>=AK$1),INDEX(Reliability!P$23:P$50,MATCH($T140,Reliability!$C$23:$C$50,0)),0),0)*$H140*$X140*$Y140),$D140)*$R140","v":0}]
[null,{"$f":"unique_contracts!B142","v":0},{"$f":"unique_contracts!D142","v":0},{"$f":"unique_contracts!J142","v":0},{"$f":"unique_contracts!M142","v":0},{"$f":"unique_contracts!N142","v":0},{"$f":"unique_contracts!P142","v":0},{"$f":"unique_contracts!R142","v":0},{"$f":"unique_contracts!V142","v":0},{"$f":"unique_contracts!AB142","v":0},{"$f":"unique_contracts!AM142","v":0},{"$f":"unique_contracts!AN142","v":0},{"$f":"unique_contracts!AO142","v":0},{"$f":"unique_contracts!AP142","v":0},{"$f":"unique_contracts!AQ142","v":0},{"$f":"unique_contracts!AR142","v":0},{"$f":"unique_contracts!BP142","v":0},0,{"$f":"IFERROR(IF(AND(I141>0,E141=\"NotHybrid\"),_xlfn.CONCAT(MAX(MIN(ROUNDDOWN(I141/D141,0),8),4),INDEX(resources!$G:$G,MATCH(B141,resources!$A:$A,0))),INDEX(resources!$G:$G,MATCH(B141,resources!$A:$A,0))),\"n/a\")","v":"n/a"},"n/a","n/a",0,0,1,1,{"$f":"MIN((IFERROR(IF(AND($V141<=Z$1,$W141>=Z$1),INDEX(Reliability!E$23:E$50,MATCH($S141,Reliability!$C$23:$C$50,0)),0),0)*IF($T141=\"n/a\",$D141*$Y141,$G141)+IFERROR(IF(AND($V141<=Z$1,$W141>=Z$1),INDEX(Reliability!E$23:E$50,MATCH($T141,Reliability!$C$23:$C$50,0)),0),0)*$H141*$X141*$Y141),$D141)*$R141","v":0},{"$f":"MIN((IFERROR(IF(AND($V141<=AA$1,$W141>=AA$1),INDEX(Reliability!F$23:F$50,MATCH($S141,Reliability!$C$23:$C$50,0)),0),0)*IF($T141=\"n/a\",$D141*$Y141,$G141)+IFERROR(IF(AND($V141<=AA$1,$W141>=AA$1),INDEX(Reliability!F$23:F$50,MATCH($T141,Reliability!$C$23:$C$50,0)),0),0)*$H141*$X141*$Y141),$D141)*$R141","v":0},{"$f":"MIN((IFERROR(IF(AND($V141<=AB$1,$W141>=AB$1),INDEX(Reliability!G$23:G$50,MATCH($S141,Reliability!$C$23:$C$50,0)),0),0)*IF($T141=\"n/a\",$D141*$Y141,$G141)+IFERROR(IF(AND($V141<=AB$1,$W141>=AB$1),INDEX(Reliability!G$23:G$50,MATCH($T141,Reliability!$C$23:$C$50,0)),0),0)*$H141*$X141*$Y141),$D141)*$R141","v":0},{"$f":"MIN((IFERROR(IF(AND($V141<=AC$1,$W141>=AC$1),INDEX(Reliability!H$23:H$50,MATCH($S141,Reliability!$C$23:$C$50,0)),0),0)*IF($T141=\"n/a\",$D141*$Y141,$G141)+IFERROR(IF(AND($V141<=AC$1,$W141>=AC$1),INDEX(Reliability!H$23:H$50,MATCH($T141,Reliability!$C$23:$C$50,0)),0),0)*$H141*$X141*$Y141),$D141)*$R141","v":0},{"$f":"MIN((IFERROR(IF(AND($V141<=AD$1,$W141>=AD$1),INDEX(Reliability!I$23:I$50,MATCH($S141,Reliability!$C$23:$C$50,0)),0),0)*IF($T141=\"n/a\",$D141*$Y141,$G141)+IFERROR(IF(AND($V141<=AD$1,$W141>=AD$1),INDEX(Reliability!I$23:I$50,MATCH($T141,Reliability!$C$23:$C$50,0)),0),0)*$H141*$X141*$Y141),$D141)*$R141","v":0},{"$f":"MIN((IFERROR(IF(AND($V141<=AE$1,$W141>=AE$1),INDEX(Reliability!J$23:J$50,MATCH($S141,Reliability!$C$23:$C$50,0)),0),0)*IF($T141=\"n/a\",$D141*$Y141,$G141)+IFERROR(IF(AND($V141<=AE$1,$W141>=AE$1),INDEX(Reliability!J$23:J$50,MATCH($T141,Reliability!$C$23:$C$50,0)),0),0)*$H141*$X141*$Y141),$D141)*$R141","v":0},{"$f":"MIN((IFERROR(IF(AND($V141<=AF$1,$W141>=AF$1),INDEX(Reliability!K$23:K$50,MATCH($S141,Reliability!$C$23:$C$50,0)),0),0)*IF($T141=\"n/a\",$D141*$Y141,$G141)+IFERROR(IF(AND($V141<=AF$1,$W141>=AF$1),INDEX(Reliability!K$23:K$50,MATCH($T141,Reliability!$C$23:$C$50,0)),0),0)*$H141*$X141*$Y141),$D141)*$R141","v":0},{"$f":"MIN((IFERROR(IF(AND($V141<=AG$1,$W141>=AG$1),INDEX(Reliability!L$23:L$50,MATCH($S141,Reliability!$C$23:$C$50,0)),0),0)*IF($T141=\"n/a\",$D141*$Y141,$G141)+IFERROR(IF(AND($V141<=AG$1,$W141>=AG$1),INDEX(Reliability!L$23:L$50,MATCH($T141,Reliability!$C$23:$C$50,0)),0),0)*$H141*$X141*$Y141),$D141)*$R141","v":0},{"$f":"MIN((IFERROR(IF(AND($V141<=AH$1,$W141>=AH$1),INDEX(Reliability!M$23:M$50,MATCH($S141,Reliability!$C$23:$C$50,0)),0),0)*IF($T141=\"n/a\",$D141*$Y141,$G141)+IFERROR(IF(AND($V141<=AH$1,$W141>=AH$1),INDEX(Reliability!M$23:M$50,MATCH($T141,Reliability!$C$23:$C$50,0)),0),0)*$H141*$X141*$Y141),$D141)*$R141","v":0},{"$f":"MIN((IFERROR(IF(AND($V141<=AI$1,$W141>=AI$1),INDEX(Reliability!N$23:N$50,MATCH($S141,Reliability!$C$23:$C$50,0)),0),0)*IF($T141=\"n/a\",$D141*$Y141,$G141)+IFERROR(IF(AND($V141<=AI$1,$W141>=AI$1),INDEX(Reliability!N$23:N$50,MATCH($T141,Reliability!$C$23:$C$50,0)),0),0)*$H141*$X141*$Y141),$D141)*$R141","v":0},{"$f":"MIN((IFERROR(IF(AND($V141<=AJ$1,$W141>=AJ$1),INDEX(Reliability!O$23:O$50,MATCH($S141,Reliability!$C$23:$C$50,0)),0),0)*IF($T141=\"n/a\",$D141*$Y141,$G141)+IFERROR(IF(AND($V141<=AJ$1,$W141>=AJ$1),INDEX(Reliability!O$23:O$50,MATCH($T141,Reliability!$C$23:$C$50,0)),0),0)*$H141*$X141*$Y141),$D141)*$R141","v":0},{"$f":"MIN((IFERROR(IF(AND($V141<=AK$1,$W141>=AK$1),INDEX(Reliability!P$23:P$50,MATCH($S141,Reliability!$C$23:$C$50,0)),0),0)*IF($T141=\"n/a\",$D141*$Y141,$G141)+IFERROR(IF(AND($V141<=AK$1,$W141>=AK$1),INDEX(Reliability!P$23:P$50,MATCH($T141,Reliability!$C$23:$C$50,0)),0),0)*$H141*$X141*$Y141),$D141)*$R141","v":0}]
[null,{"$f":"unique_contracts!B143","v":0},{"$f":"unique_contracts!D143","v":0},{"$f":"unique_contracts!J143","v":0},{"$f":"unique_contracts!M143","v":0},{"$f":"unique_contracts!N143","v":0},{"$f":"unique_contracts!P143","v":0},{"$f":"unique_contracts!R143","v":0},{"$f":"unique_contracts!V143","v":0},{"$f":"unique_contracts!AB143","v":0},{"$f":"unique_contracts!AM143","v":0},{"$f":"unique_contracts!AN143","v":0},{"$f":"unique_contracts!AO143","v":0},{"$f":"unique_contracts!AP143","v":0},{"$f":"unique_contracts!AQ143","v":0},{"$f":"unique_contracts!AR143","v":0},{"$f":"unique_contracts!BP143","v":0},0,{"$f":"IFERROR(IF(AND(I142>0,E142=\"NotHybrid\"),_xlfn.CONCAT(MAX(MIN(ROUNDDOWN(I142/D142,0),8),4),INDEX(resources!$G:$G,MATCH(B142,resources!$A:$A,0))),INDEX(resources!$G:$G,MATCH(B142,resources!$A:$A,0))),\"n/a\")","v":"n/a"},"n/a","n/a",0,0,1,1,{"$f":"MIN((IFERROR(IF(AND($V142<=Z$1,$W142>=Z$1),INDEX(Reliability!E$23:E$50,MATCH($S142,Reliability!$C$23:$C$50,0)),0),0)*IF($T142=\"n/a\",$D142*$Y142,$G142)+IFERROR(IF(AND($V142<=Z$1,$W142>=Z$1),INDEX(Reliability!E$23:E$50,MATCH($T142,Reliability!$C$23:$C$50,0)),0),0)*$H142*$X142*$Y142),$D142)*$R142","v":0},{"$f":"MIN((IFERROR(IF(AND($V142<=AA$1,$W142>=AA$1),INDEX(Reliability!F$23:F$50,MATCH($S142,Reliability!$C$23:$C$50,0)),0),0)*IF($T142=\"n/a\",$D142*$Y142,$G142)+IFERROR(IF(AND($V142<=AA$1,$W142>=AA$1),INDEX(Reliability!F$23:F$50,MATCH($T142,Reliability!$C$23:$C$50,0)),0),0)*$H142*$X142*$Y142),$D142)*$R142","v":0},{"$f":"MIN((IFERROR(IF(AND($V142<=AB$1,$W142>=AB$1),INDEX(Reliability!G$23:G$50,MATCH($S142,Reliability!$C$23:$C$50,0)),0),0)*IF($T142=\"n/a\",$D142*$Y142,$G142)+IFERROR(IF(AND($V142<=AB$1,$W142>=AB$1),INDEX(Reliability!G$23:G$50,MATCH($T142,Reliability!$C$23:$C$50,0)),0),0)*$H142*$X142*$Y142),$D142)*$R142","v":0},{"$f":"MIN((IFERROR(IF(AND($V142<=AC$1,$W142>=AC$1),INDEX(Reliability!H$23:H$50,MATCH($S142,Reliability!$C$23:$C$50,0)),0),0)*IF($T142=\"n/a\",$D142*$Y142,$G142)+IFERROR(IF(AND($V142<=AC$1,$W142>=AC$1),INDEX(Reliability!H$23:H$50,MATCH($T142,Reliability!$C$23:$C$50,0)),0),0)*$H142*$X142*$Y142),$D142)*$R142","v":0},{"$f":"MIN((IFERROR(IF(AND($V142<=AD$1,$W142>=AD$1),INDEX(Reliability!I$23:I$50,MATCH($S142,Reliability!$C$23:$C$50,0)),0),0)*IF($T142=\"n/a\",$D142*$Y142,$G142)+IFERROR(IF(AND($V142<=AD$1,$W142>=AD$1),INDEX(Reliability!I$23:I$50,MATCH($T142,Reliability!$C$23:$C$50,0)),0),0)*$H142*$X142*$Y142),$D142)*$R142","v":0},{"$f":"MIN((IFERROR(IF(AND($V142<=AE$1,$W142>=AE$1),INDEX(Reliability!J$23:J$50,MATCH($S142,Reliability!$C$23:$C$50,0)),0),0)*IF($T142=\"n/a\",$D142*$Y142,$G142)+IFERROR(IF(AND($V142<=AE$1,$W142>=AE$1),INDEX(Reliability!J$23:J$50,MATCH($T142,Reliability!$C$23:$C$50,0)),0),0)*$H142*$X142*$Y142),$D142)*$R142","v":0},{"$f":"MIN((IFERROR(IF(AND($V142<=AF$1,$W142>=AF$1),INDEX(Reliability!K$23:K$50,MATCH($S142,Reliability!$C$23:$C$50,0)),0),0)*IF($T142=\"n/a\",$D142*$Y142,$G142)+IFERROR(IF(AND($V142<=AF$1,$W142>=AF$1),INDEX(Reliability!K$23:K$50,MATCH($T142,Reliability!$C$23:$C$50,0)),0),0)*$H142*$X142*$Y142),$D142)*$R142","v":0},{"$f":"MIN((IFERROR(IF(AND($V142<=AG$1,$W142>=AG$1),INDEX(Reliability!L$23:L$50,MATCH($S142,Reliability!$C$23:$C$50,0)),0),0)*IF($T142=\"n/a\",$D142*$Y142,$G142)+IFERROR(IF(AND($V142<=AG$1,$W142>=AG$1),INDEX(Reliability!L$23:L$50,MATCH($T142,Reliability!$C$23:$C$50,0)),0),0)*$H142*$X142*$Y142),$D142)*$R142","v":0},{"$f":"MIN((IFERROR(IF(AND($V142<=AH$1,$W142>=AH$1),INDEX(Reliability!M$23:M$50,MATCH($S142,Reliability!$C$23:$C$50,0)),0),0)*IF($T142=\"n/a\",$D142*$Y142,$G142)+IFERROR(IF(AND($V142<=AH$1,$W142>=AH$1),INDEX(Reliability!M$23:M$50,MATCH($T142,Reliability!$C$23:$C$50,0)),0),0)*$H142*$X142*$Y142),$D142)*$R142","v":0},{"$f":"MIN((IFERROR(IF(AND($V142<=AI$1,$W142>=AI$1),INDEX(Reliability!N$23:N$50,MATCH($S142,Reliability!$C$23:$C$50,0)),0),0)*IF($T142=\"n/a\",$D142*$Y142,$G142)+IFERROR(IF(AND($V142<=AI$1,$W142>=AI$1),INDEX(Reliability!N$23:N$50,MATCH($T142,Reliability!$C$23:$C$50,0)),0),0)*$H142*$X142*$Y142),$D142)*$R142","v":0},{"$f":"MIN((IFERROR(IF(AND($V142<=AJ$1,$W142>=AJ$1),INDEX(Reliability!O$23:O$50,MATCH($S142,Reliability!$C$23:$C$50,0)),0),0)*IF($T142=\"n/a\",$D142*$Y142,$G142)+IFERROR(IF(AND($V142<=AJ$1,$W142>=AJ$1),INDEX(Reliability!O$23:O$50,MATCH($T142,Reliability!$C$23:$C$50,0)),0),0)*$H142*$X142*$Y142),$D142)*$R142","v":0},{"$f":"MIN((IFERROR(IF(AND($V142<=AK$1,$W142>=AK$1),INDEX(Reliability!P$23:P$50,MATCH($S142,Reliability!$C$23:$C$50,0)),0),0)*IF($T142=\"n/a\",$D142*$Y142,$G142)+IFERROR(IF(AND($V142<=AK$1,$W142>=AK$1),INDEX(Reliability!P$23:P$50,MATCH($T142,Reliability!$C$23:$C$50,0)),0),0)*$H142*$X142*$Y142),$D142)*$R142","v":0}]
[null,{"$f":"unique_contracts!B144","v":0},{"$f":"unique_contracts!D144","v":0},{"$f":"unique_contracts!J144","v":0},{"$f":"unique_contracts!M144","v":0},{"$f":"unique_contracts!N144","v":0},{"$f":"unique_contracts!P144","v":0},{"$f":"unique_contracts!R144","v":0},{"$f":"unique_contracts!V144","v":0},{"$f":"unique_contracts!AB144","v":0},{"$f":"unique_contracts!AM144","v":0},{"$f":"unique_contracts!AN144","v":0},{"$f":"unique_contracts!AO144","v":0},{"$f":"unique_contracts!AP144","v":0},{"$f":"unique_contracts!AQ144","v":0},{"$f":"unique_contracts!AR144","v":0},{"$f":"unique_contracts!BP144","v":0},0,{"$f":"IFERROR(IF(AND(I143>0,E143=\"NotHybrid\"),_xlfn.CONCAT(MAX(MIN(ROUNDDOWN(I143/D143,0),8),4),INDEX(resources!$G:$G,MATCH(B143,resources!$A:$A,0))),INDEX(resources!$G:$G,MATCH(B143,resources!$A:$A,0))),\"n/a\")","v":"n/a"},"n/a","n/a",0,0,1,1,{"$f":"MIN((IFERROR(IF(AND($V143<=Z$1,$W143>=Z$1),INDEX(Reliability!E$23:E$50,MATCH($S143,Reliability!$C$23:$C$50,0)),0),0)*IF($T143=\"n/a\",$D143*$Y143,$G143)+IFERROR(IF(AND($V143<=Z$1,$W143>=Z$1),INDEX(Reliability!E$23:E$50,MATCH($T143,Reliability!$C$23:$C$50,0)),0),0)*$H143*$X143*$Y143),$D143)*$R143","v":0},{"$f":"MIN((IFERROR(IF(AND($V143<=AA$1,$W143>=AA$1),INDEX(Reliability!F$23:F$50,MATCH($S143,Reliability!$C$23:$C$50,0)),0),0)*IF($T143=\"n/a\",$D143*$Y143,$G143)+IFERROR(IF(AND($V143<=AA$1,$W143>=AA$1),INDEX(Reliability!F$23:F$50,MATCH($T143,Reliability!$C$23:$C$50,0)),0),0)*$H143*$X143*$Y143),$D143)*$R143","v":0},{"$f":"MIN((IFERROR(IF(AND($V143<=AB$1,$W143>=AB$1),INDEX(Reliability!G$23:G$50,MATCH($S143,Reliability!$C$23:$C$50,0)),0),0)*IF($T143=\"n/a\",$D143*$Y143,$G143)+IFERROR(IF(AND($V143<=AB$1,$W143>=AB$1),INDEX(Reliability!G$23:G$50,MATCH($T143,Reliability!$C$23:$C$50,0)),0),0)*$H143*$X143*$Y143),$D143)*$R143","v":0},{"$f":"MIN((IFERROR(IF(AND($V143<=AC$1,$W143>=AC$1),INDEX(Reliability!H$23:H$50,MATCH($S143,Reliability!$C$23:$C$50,0)),0),0)*IF($T143=\"n/a\",$D143*$Y143,$G143)+IFERROR(IF(AND($V143<=AC$1,$W143>=AC$1),INDEX(Reliability!H$23:H$50,MATCH($T143,Reliability!$C$23:$C$50,0)),0),0)*$H143*$X143*$Y143),$D143)*$R143","v":0},{"$f":"MIN((IFERROR(IF(AND($V143<=AD$1,$W143>=AD$1),INDEX(Reliability!I$23:I$50,MATCH($S143,Reliability!$C$23:$C$50,0)),0),0)*IF($T143=\"n/a\",$D143*$Y143,$G143)+IFERROR(IF(AND($V143<=AD$1,$W143>=AD$1),INDEX(Reliability!I$23:I$50,MATCH($T143,Reliability!$C$23:$C$50,0)),0),0)*$H143*$X143*$Y143),$D143)*$R143","v":0},{"$f":"MIN((IFERROR(IF(AND($V143<=AE$1,$W143>=AE$1),INDEX(Reliability!J$23:J$50,MATCH($S143,Reliability!$C$23:$C$50,0)),0),0)*IF($T143=\"n/a\",$D143*$Y143,$G143)+IFERROR(IF(AND($V143<=AE$1,$W143>=AE$1),INDEX(Reliability!J$23:J$50,MATCH($T143,Reliability!$C$23:$C$50,0)),0),0)*$H143*$X143*$Y143),$D143)*$R143","v":0},{"$f":"MIN((IFERROR(IF(AND($V143<=AF$1,$W143>=AF$1),INDEX(Reliability!K$23:K$50,MATCH($S143,Reliability!$C$23:$C$50,0)),0),0)*IF($T143=\"n/a\",$D143*$Y143,$G143)+IFERROR(IF(AND($V143<=AF$1,$W143>=AF$1),INDEX(Reliability!K$23:K$50,MATCH($T143,Reliability!$C$23:$C$50,0)),0),0)*$H143*$X143*$Y143),$D143)*$R143","v":0},{"$f":"MIN((IFERROR(IF(AND($V143<=AG$1,$W143>=AG$1),INDEX(Reliability!L$23:L$50,MATCH($S143,Reliability!$C$23:$C$50,0)),0),0)*IF($T143=\"n/a\",$D143*$Y143,$G143)+IFERROR(IF(AND($V143<=AG$1,$W143>=AG$1),INDEX(Reliability!L$23:L$50,MATCH($T143,Reliability!$C$23:$C$50,0)),0),0)*$H143*$X143*$Y143),$D143)*$R143","v":0},{"$f":"MIN((IFERROR(IF(AND($V143<=AH$1,$W143>=AH$1),INDEX(Reliability!M$23:M$50,MATCH($S143,Reliability!$C$23:$C$50,0)),0),0)*IF($T143=\"n/a\",$D143*$Y143,$G143)+IFERROR(IF(AND($V143<=AH$1,$W143>=AH$1),INDEX(Reliability!M$23:M$50,MATCH($T143,Reliability!$C$23:$C$50,0)),0),0)*$H143*$X143*$Y143),$D143)*$R143","v":0},{"$f":"MIN((IFERROR(IF(AND($V143<=AI$1,$W143>=AI$1),INDEX(Reliability!N$23:N$50,MATCH($S143,Reliability!$C$23:$C$50,0)),0),0)*IF($T143=\"n/a\",$D143*$Y143,$G143)+IFERROR(IF(AND($V143<=AI$1,$W143>=AI$1),INDEX(Reliability!N$23:N$50,MATCH($T143,Reliability!$C$23:$C$50,0)),0),0)*$H143*$X143*$Y143),$D143)*$R143","v":0},{"$f":"MIN((IFERROR(IF(AND($V143<=AJ$1,$W143>=AJ$1),INDEX(Reliability!O$23:O$50,MATCH($S143,Reliability!$C$23:$C$50,0)),0),0)*IF($T143=\"n/a\",$D143*$Y143,$G143)+IFERROR(IF(AND($V143<=AJ$1,$W143>=AJ$1),INDEX(Reliability!O$23:O$50,MATCH($T143,Reliability!$C$23:$C$50,0)),0),0)*$H143*$X143*$Y143),$D143)*$R143","v":0},{"$f":"MIN((IFERROR(IF(AND($V143<=AK$1,$W143>=AK$1),INDEX(Reliability!P$23:P$50,MATCH($S143,Reliability!$C$23:$C$50,0)),0),0)*IF($T143=\"n/a\",$D143*$Y143,$G143)+IFERROR(IF(AND($V143<=AK$1,$W143>=AK$1),INDEX(Reliability!P$23:P$50,MATCH($T143,Reliability!$C$23:$C$50,0)),0),0)*$H143*$X143*$Y143),$D143)*$R143","v":0}]
[null,{"$f":"unique_contracts!B145","v":0},{"$f":"unique_contracts!D145","v":0},{"$f":"unique_contracts!J145","v":0},{"$f":"unique_contracts!M145","v":0},{"$f":"unique_contracts!N145","v":0},{"$f":"unique_contracts!P145","v":0},{"$f":"unique_contracts!R145","v":0},{"$f":"unique_contracts!V145","v":0},{"$f":"unique_contracts!AB145","v":0},{"$f":"unique_contracts!AM145","v":0},{"$f":"unique_contracts!AN145","v":0},{"$f":"unique_contracts!AO145","v":0},{"$f":"unique_contracts!AP145","v":0},{"$f":"unique_contracts!AQ145","v":0},{"$f":"unique_contracts!AR145","v":0},{"$f":"unique_contracts!BP145","v":0},0,{"$f":"IFERROR(IF(AND(I144>0,E144=\"NotHybrid\"),_xlfn.CONCAT(MAX(MIN(ROUNDDOWN(I144/D144,0),8),4),INDEX(resources!$G:$G,MATCH(B144,resources!$A:$A,0))),INDEX(resources!$G:$G,MATCH(B144,resources!$A:$A,0))),\"n/a\")","v":"n/a"},"n/a","n/a",0,0,1,1,{"$f":"MIN((IFERROR(IF(AND($V144<=Z$1,$W144>=Z$1),INDEX(Reliability!E$23:E$50,MATCH($S144,Reliability!$C$23:$C$50,0)),0),0)*IF($T144=\"n/a\",$D144*$Y144,$G144)+IFERROR(IF(AND($V144<=Z$1,$W144>=Z$1),INDEX(Reliability!E$23:E$50,MATCH($T144,Reliability!$C$23:$C$50,0)),0),0)*$H144*$X144*$Y144),$D144)*$R144","v":0},{"$f":"MIN((IFERROR(IF(AND($V144<=AA$1,$W144>=AA$1),INDEX(Reliability!F$23:F$50,MATCH($S144,Reliability!$C$23:$C$50,0)),0),0)*IF($T144=\"n/a\",$D144*$Y144,$G144)+IFERROR(IF(AND($V144<=AA$1,$W144>=AA$1),INDEX(Reliability!F$23:F$50,MATCH($T144,Reliability!$C$23:$C$50,0)),0),0)*$H144*$X144*$Y144),$D144)*$R144","v":0},{"$f":"MIN((IFERROR(IF(AND($V144<=AB$1,$W144>=AB$1),INDEX(Reliability!G$23:G$50,MATCH($S144,Reliability!$C$23:$C$50,0)),0),0)*IF($T144=\"n/a\",$D144*$Y144,$G144)+IFERROR(IF(AND($V144<=AB$1,$W144>=AB$1),INDEX(Reliability!G$23:G$50,MATCH($T144,Reliability!$C$23:$C$50,0)),0),0)*$H144*$X144*$Y144),$D144)*$R144","v":0},{"$f":"MIN((IFERROR(IF(AND($V144<=AC$1,$W144>=AC$1),INDEX(Reliability!H$23:H$50,MATCH($S144,Reliability!$C$23:$C$50,0)),0),0)*IF($T144=\"n/a\",$D144*$Y144,$G144)+IFERROR(IF(AND($V144<=AC$1,$W144>=AC$1),INDEX(Reliability!H$23:H$50,MATCH($T144,Reliability!$C$23:$C$50,0)),0),0)*$H144*$X144*$Y144),$D144)*$R144","v":0},{"$f":"MIN((IFERROR(IF(AND($V144<=AD$1,$W144>=AD$1),INDEX(Reliability!I$23:I$50,MATCH($S144,Reliability!$C$23:$C$50,0)),0),0)*IF($T144=\"n/a\",$D144*$Y144,$G144)+IFERROR(IF(AND($V144<=AD$1,$W144>=AD$1),INDEX(Reliability!I$23:I$50,MATCH($T144,Reliability!$C$23:$C$50,0)),0),0)*$H144*$X144*$Y144),$D144)*$R144","v":0},{"$f":"MIN((IFERROR(IF(AND($V144<=AE$1,$W144>=AE$1),INDEX(Reliability!J$23:J$50,MATCH($S144,Reliability!$C$23:$C$50,0)),0),0)*IF($T144=\"n/a\",$D144*$Y144,$G144)+IFERROR(IF(AND($V144<=AE$1,$W144>=AE$1),INDEX(Reliability!J$23:J$50,MATCH($T144,Reliability!$C$23:$C$50,0)),0),0)*$H144*$X144*$Y144),$D144)*$R144","v":0},{"$f":"MIN((IFERROR(IF(AND($V144<=AF$1,$W144>=AF$1),INDEX(Reliability!K$23:K$50,MATCH($S144,Reliability!$C$23:$C$50,0)),0),0)*IF($T144=\"n/a\",$D144*$Y144,$G144)+IFERROR(IF(AND($V144<=AF$1,$W144>=AF$1),INDEX(Reliability!K$23:K$50,MATCH($T144,Reliability!$C$23:$C$50,0)),0),0)*$H144*$X144*$Y144),$D144)*$R144","v":0},{"$f":"MIN((IFERROR(IF(AND($V144<=AG$1,$W144>=AG$1),INDEX(Reliability!L$23:L$50,MATCH($S144,Reliability!$C$23:$C$50,0)),0),0)*IF($T144=\"n/a\",$D144*$Y144,$G144)+IFERROR(IF(AND($V144<=AG$1,$W144>=AG$1),INDEX(Reliability!L$23:L$50,MATCH($T144,Reliability!$C$23:$C$50,0)),0),0)*$H144*$X144*$Y144),$D144)*$R144","v":0},{"$f":"MIN((IFERROR(IF(AND($V144<=AH$1,$W144>=AH$1),INDEX(Reliability!M$23:M$50,MATCH($S144,Reliability!$C$23:$C$50,0)),0),0)*IF($T144=\"n/a\",$D144*$Y144,$G144)+IFERROR(IF(AND($V144<=AH$1,$W144>=AH$1),INDEX(Reliability!M$23:M$50,MATCH($T144,Reliability!$C$23:$C$50,0)),0),0)*$H144*$X144*$Y144),$D144)*$R144","v":0},{"$f":"MIN((IFERROR(IF(AND($V144<=AI$1,$W144>=AI$1),INDEX(Reliability!N$23:N$50,MATCH($S144,Reliability!$C$23:$C$50,0)),0),0)*IF($T144=\"n/a\",$D144*$Y144,$G144)+IFERROR(IF(AND($V144<=AI$1,$W144>=AI$1),INDEX(Reliability!N$23:N$50,MATCH($T144,Reliability!$C$23:$C$50,0)),0),0)*$H144*$X144*$Y144),$D144)*$R144","v":0},{"$f":"MIN((IFERROR(IF(AND($V144<=AJ$1,$W144>=AJ$1),INDEX(Reliability!O$23:O$50,MATCH($S144,Reliability!$C$23:$C$50,0)),0),0)*IF($T144=\"n/a\",$D144*$Y144,$G144)+IFERROR(IF(AND($V144<=AJ$1,$W144>=AJ$1),INDEX(Reliability!O$23:O$50,MATCH($T144,Reliability!$C$23:$C$50,0)),0),0)*$H144*$X144*$Y144),$D144)*$R144","v":0},{"$f":"MIN((IFERROR(IF(AND($V144<=AK$1,$W144>=AK$1),INDEX(Reliability!P$23:P$50,MATCH($S144,Reliability!$C$23:$C$50,0)),0),0)*IF($T144=\"n/a\",$D144*$Y144,$G144)+IFERROR(IF(AND($V144<=AK$1,$W144>=AK$1),INDEX(Reliability!P$23:P$50,MATCH($T144,Reliability!$C$23:$C$50,0)),0),0)*$H144*$X144*$Y144),$D144)*$R144","v":0}]
[null,{"$f":"unique_contracts!B146","v":0},{"$f":"unique_contracts!D146","v":0},{"$f":"unique_contracts!J146","v":0},{"$f":"unique_contracts!M146","v":0},{"$f":"unique_contracts!N146","v":0},{"$f":"unique_contracts!P146","v":0},{"$f":"unique_contracts!R146","v":0},{"$f":"unique_contracts!V146","v":0},{"$f":"unique_contracts!AB146","v":0},{"$f":"unique_contracts!AM146","v":0},{"$f":"unique_contracts!AN146","v":0},{"$f":"unique_contracts!AO146","v":0},{"$f":"unique_contracts!AP146","v":0},{"$f":"unique_contracts!AQ146","v":0},{"$f":"unique_contracts!AR146","v":0},{"$f":"unique_contracts!BP146","v":0},0,{"$f":"IFERROR(IF(AND(I145>0,E145=\"NotHybrid\"),_xlfn.CONCAT(MAX(MIN(ROUNDDOWN(I145/D145,0),8),4),INDEX(resources!$G:$G,MATCH(B145,resources!$A:$A,0))),INDEX(resources!$G:$G,MATCH(B145,resources!$A:$A,0))),\"n/a\")","v":"n/a"},"n/a","n/a",0,0,1,1,{"$f":"MIN((IFERROR(IF(AND($V145<=Z$1,$W145>=Z$1),INDEX(Reliability!E$23:E$50,MATCH($S145,Reliability!$C$23:$C$50,0)),0),0)*IF($T145=\"n/a\",$D145*$Y145,$G145)+IFERROR(IF(AND($V145<=Z$1,$W145>=Z$1),INDEX(Reliability!E$23:E$50,MATCH($T145,Reliability!$C$23:$C$50,0)),0),0)*$H145*$X145*$Y145),$D145)*$R145","v":0},{"$f":"MIN((IFERROR(IF(AND($V145<=AA$1,$W145>=AA$1),INDEX(Reliability!F$23:F$50,MATCH($S145,Reliability!$C$23:$C$50,0)),0),0)*IF($T145=\"n/a\",$D145*$Y145,$G145)+IFERROR(IF(AND($V145<=AA$1,$W145>=AA$1),INDEX(Reliability!F$23:F$50,MATCH($T145,Reliability!$C$23:$C$50,0)),0),0)*$H145*$X145*$Y145),$D145)*$R145","v":0},{"$f":"MIN((IFERROR(IF(AND($V145<=AB$1,$W145>=AB$1),INDEX(Reliability!G$23:G$50,MATCH($S145,Reliability!$C$23:$C$50,0)),0),0)*IF($T145=\"n/a\",$D145*$Y145,$G145)+IFERROR(IF(AND($V145<=AB$1,$W145>=AB$1),INDEX(Reliability!G$23:G$50,MATCH($T145,Reliability!$C$23:$C$50,0)),0),0)*$H145*$X145*$Y145),$D145)*$R145","v":0},{"$f":"MIN((IFERROR(IF(AND($V145<=AC$1,$W145>=AC$1),INDEX(Reliability!H$23:H$50,MATCH($S145,Reliability!$C$23:$C$50,0)),0),0)*IF($T145=\"n/a\",$D145*$Y145,$G145)+IFERROR(IF(AND($V145<=AC$1,$W145>=AC$1),INDEX(Reliability!H$23:H$50,MATCH($T145,Reliability!$C$23:$C$50,0)),0),0)*$H145*$X145*$Y145),$D145)*$R145","v":0},{"$f":"MIN((IFERROR(IF(AND($V145<=AD$1,$W145>=AD$1),INDEX(Reliability!I$23:I$50,MATCH($S145,Reliability!$C$23:$C$50,0)),0),0)*IF($T145=\"n/a\",$D145*$Y145,$G145)+IFERROR(IF(AND($V145<=AD$1,$W145>=AD$1),INDEX(Reliability!I$23:I$50,MATCH($T145,Reliability!$C$23:$C$50,0)),0),0)*$H145*$X145*$Y145),$D145)*$R145","v":0},{"$f":"MIN((IFERROR(IF(AND($V145<=AE$1,$W145>=AE$1),INDEX(Reliability!J$23:J$50,MATCH($S145,Reliability!$C$23:$C$50,0)),0),0)*IF($T145=\"n/a\",$D145*$Y145,$G145)+IFERROR(IF(AND($V145<=AE$1,$W145>=AE$1),INDEX(Reliability!J$23:J$50,MATCH($T145,Reliability!$C$23:$C$50,0)),0),0)*$H145*$X145*$Y145),$D145)*$R145","v":0},{"$f":"MIN((IFERROR(IF(AND($V145<=AF$1,$W145>=AF$1),INDEX(Reliability!K$23:K$50,MATCH($S145,Reliability!$C$23:$C$50,0)),0),0)*IF($T145=\"n/a\",$D145*$Y145,$G145)+IFERROR(IF(AND($V145<=AF$1,$W145>=AF$1),INDEX(Reliability!K$23:K$50,MATCH($T145,Reliability!$C$23:$C$50,0)),0),0)*$H145*$X145*$Y145),$D145)*$R145","v":0},{"$f":"MIN((IFERROR(IF(AND($V145<=AG$1,$W145>=AG$1),INDEX(Reliability!L$23:L$50,MATCH($S145,Reliability!$C$23:$C$50,0)),0),0)*IF($T145=\"n/a\",$D145*$Y145,$G145)+IFERROR(IF(AND($V145<=AG$1,$W145>=AG$1),INDEX(Reliability!L$23:L$50,MATCH($T145,Reliability!$C$23:$C$50,0)),0),0)*$H145*$X145*$Y145),$D145)*$R145","v":0},{"$f":"MIN((IFERROR(IF(AND($V145<=AH$1,$W145>=AH$1),INDEX(Reliability!M$23:M$50,MATCH($S145,Reliability!$C$23:$C$50,0)),0),0)*IF($T145=\"n/a\",$D145*$Y145,$G145)+IFERROR(IF(AND($V145<=AH$1,$W145>=AH$1),INDEX(Reliability!M$23:M$50,MATCH($T145,Reliability!$C$23:$C$50,0)),0),0)*$H145*$X145*$Y145),$D145)*$R145","v":0},{"$f":"MIN((IFERROR(IF(AND($V145<=AI$1,$W145>=AI$1),INDEX(Reliability!N$23:N$50,MATCH($S145,Reliability!$C$23:$C$50,0)),0),0)*IF($T145=\"n/a\",$D145*$Y145,$G145)+IFERROR(IF(AND($V145<=AI$1,$W145>=AI$1),INDEX(Reliability!N$23:N$50,MATCH($T145,Reliability!$C$23:$C$50,0)),0),0)*$H145*$X145*$Y145),$D145)*$R145","v":0},{"$f":"MIN((IFERROR(IF(AND($V145<=AJ$1,$W145>=AJ$1),INDEX(Reliability!O$23:O$50,MATCH($S145,Reliability!$C$23:$C$50,0)),0),0)*IF($T145=\"n/a\",$D145*$Y145,$G145)+IFERROR(IF(AND($V145<=AJ$1,$W145>=AJ$1),INDEX(Reliability!O$23:O$50,MATCH($T145,Reliability!$C$23:$C$50,0)),0),0)*$H145*$X145*$Y145),$D145)*$R145","v":0},{"$f":"MIN((IFERROR(IF(AND($V145<=AK$1,$W145>=AK$1),INDEX(Reliability!P$23:P$50,MATCH($S145,Reliability!$C$23:$C$50,0)),0),0)*IF($T145=\"n/a\",$D145*$Y145,$G145)+IFERROR(IF(AND($V145<=AK$1,$W145>=AK$1),INDEX(Reliability!P$23:P$50,MATCH($T145,Reliability!$C$23:$C$50,0)),0),0)*$H145*$X145*$Y145),$D145)*$R145","v":0}]
[null,{"$f":"unique_contracts!B147","v":0},{"$f":"unique_contracts!D147","v":0},{"$f":"unique_contracts!J147","v":0},{"$f":"unique_contracts!M147","v":0},{"$f":"unique_contracts!N147","v":0},{"$f":"unique_contracts!P147","v":0},{"$f":"unique_contracts!R147","v":0},{"$f":"unique_contracts!V147","v":0},{"$f":"unique_contracts!AB147","v":0},{"$f":"unique_contracts!AM147","v":0},{"$f":"unique_contracts!AN147","v":0},{"$f":"unique_contracts!AO147","v":0},{"$f":"unique_contracts!AP147","v":0},{"$f":"unique_contracts!AQ147","v":0},{"$f":"unique_contracts!AR147","v":0},{"$f":"unique_contracts!BP147","v":0},0,{"$f":"IFERROR(IF(AND(I146>0,E146=\"NotHybrid\"),_xlfn.CONCAT(MAX(MIN(ROUNDDOWN(I146/D146,0),8),4),INDEX(resources!$G:$G,MATCH(B146,resources!$A:$A,0))),INDEX(resources!$G:$G,MATCH(B146,resources!$A:$A,0))),\"n/a\")","v":"n/a"},"n/a","n/a",0,0,1,1,{"$f":"MIN((IFERROR(IF(AND($V146<=Z$1,$W146>=Z$1),INDEX(Reliability!E$23:E$50,MATCH($S146,Reliability!$C$23:$C$50,0)),0),0)*IF($T146=\"n/a\",$D146*$Y146,$G146)+IFERROR(IF(AND($V146<=Z$1,$W146>=Z$1),INDEX(Reliability!E$23:E$50,MATCH($T146,Reliability!$C$23:$C$50,0)),0),0)*$H146*$X146*$Y146),$D146)*$R146","v":0},{"$f":"MIN((IFERROR(IF(AND($V146<=AA$1,$W146>=AA$1),INDEX(Reliability!F$23:F$50,MATCH($S146,Reliability!$C$23:$C$50,0)),0),0)*IF($T146=\"n/a\",$D146*$Y146,$G146)+IFERROR(IF(AND($V146<=AA$1,$W146>=AA$1),INDEX(Reliability!F$23:F$50,MATCH($T146,Reliability!$C$23:$C$50,0)),0),0)*$H146*$X146*$Y146),$D146)*$R146","v":0},{"$f":"MIN((IFERROR(IF(AND($V146<=AB$1,$W146>=AB$1),INDEX(Reliability!G$23:G$50,MATCH($S146,Reliability!$C$23:$C$50,0)),0),0)*IF($T146=\"n/a\",$D146*$Y146,$G146)+IFERROR(IF(AND($V146<=AB$1,$W146>=AB$1),INDEX(Reliability!G$23:G$50,MATCH($T146,Reliability!$C$23:$C$50,0)),0),0)*$H146*$X146*$Y146),$D146)*$R146","v":0},{"$f":"MIN((IFERROR(IF(AND($V146<=AC$1,$W146>=AC$1),INDEX(Reliability!H$23:H$50,MATCH($S146,Reliability!$C$23:$C$50,0)),0),0)*IF($T146=\"n/a\",$D146*$Y146,$G146)+IFERROR(IF(AND($V146<=AC$1,$W146>=AC$1),INDEX(Reliability!H$23:H$50,MATCH($T146,Reliability!$C$23:$C$50,0)),0),0)*$H146*$X146*$Y146),$D146)*$R146","v":0},{"$f":"MIN((IFERROR(IF(AND($V146<=AD$1,$W146>=AD$1),INDEX(Reliability!I$23:I$50,MATCH($S146,Reliability!$C$23:$C$50,0)),0),0)*IF($T146=\"n/a\",$D146*$Y146,$G146)+IFERROR(IF(AND($V146<=AD$1,$W146>=AD$1),INDEX(Reliability!I$23:I$50,MATCH($T146,Reliability!$C$23:$C$50,0)),0),0)*$H146*$X146*$Y146),$D146)*$R146","v":0},{"$f":"MIN((IFERROR(IF(AND($V146<=AE$1,$W146>=AE$1),INDEX(Reliability!J$23:J$50,MATCH($S146,Reliability!$C$23:$C$50,0)),0),0)*IF($T146=\"n/a\",$D146*$Y146,$G146)+IFERROR(IF(AND($V146<=AE$1,$W146>=AE$1),INDEX(Reliability!J$23:J$50,MATCH($T146,Reliability!$C$23:$C$50,0)),0),0)*$H146*$X146*$Y146),$D146)*$R146","v":0},{"$f":"MIN((IFERROR(IF(AND($V146<=AF$1,$W146>=AF$1),INDEX(Reliability!K$23:K$50,MATCH($S146,Reliability!$C$23:$C$50,0)),0),0)*IF($T146=\"n/a\",$D146*$Y146,$G146)+IFERROR(IF(AND($V146<=AF$1,$W146>=AF$1),INDEX(Reliability!K$23:K$50,MATCH($T146,Reliability!$C$23:$C$50,0)),0),0)*$H146*$X146*$Y146),$D146)*$R146","v":0},{"$f":"MIN((IFERROR(IF(AND($V146<=AG$1,$W146>=AG$1),INDEX(Reliability!L$23:L$50,MATCH($S146,Reliability!$C$23:$C$50,0)),0),0)*IF($T146=\"n/a\",$D146*$Y146,$G146)+IFERROR(IF(AND($V146<=AG$1,$W146>=AG$1),INDEX(Reliability!L$23:L$50,MATCH($T146,Reliability!$C$23:$C$50,0)),0),0)*$H146*$X146*$Y146),$D146)*$R146","v":0},{"$f":"MIN((IFERROR(IF(AND($V146<=AH$1,$W146>=AH$1),INDEX(Reliability!M$23:M$50,MATCH($S146,Reliability!$C$23:$C$50,0)),0),0)*IF($T146=\"n/a\",$D146*$Y146,$G146)+IFERROR(IF(AND($V146<=AH$1,$W146>=AH$1),INDEX(Reliability!M$23:M$50,MATCH($T146,Reliability!$C$23:$C$50,0)),0),0)*$H146*$X146*$Y146),$D146)*$R146","v":0},{"$f":"MIN((IFERROR(IF(AND($V146<=AI$1,$W146>=AI$1),INDEX(Reliability!N$23:N$50,MATCH($S146,Reliability!$C$23:$C$50,0)),0),0)*IF($T146=\"n/a\",$D146*$Y146,$G146)+IFERROR(IF(AND($V146<=AI$1,$W146>=AI$1),INDEX(Reliability!N$23:N$50,MATCH($T146,Reliability!$C$23:$C$50,0)),0),0)*$H146*$X146*$Y146),$D146)*$R146","v":0},{"$f":"MIN((IFERROR(IF(AND($V146<=AJ$1,$W146>=AJ$1),INDEX(Reliability!O$23:O$50,MATCH($S146,Reliability!$C$23:$C$50,0)),0),0)*IF($T146=\"n/a\",$D146*$Y146,$G146)+IFERROR(IF(AND($V146<=AJ$1,$W146>=AJ$1),INDEX(Reliability!O$23:O$50,MATCH($T146,Reliability!$C$23:$C$50,0)),0),0)*$H146*$X146*$Y146),$D146)*$R146","v":0},{"$f":"MIN((IFERROR(IF(AND($V146<=AK$1,$W146>=AK$1),INDEX(Reliability!P$23:P$50,MATCH($S146,Reliability!$C$23:$C$50,0)),0),0)*IF($T146=\"n/a\",$D146*$Y146,$G146)+IFERROR(IF(AND($V146<=AK$1,$W146>=AK$1),INDEX(Reliability!P$23:P$50,MATCH($T146,Reliability!$C$23:$C$50,0)),0),0)*$H146*$X146*$Y146),$D146)*$R146","v":0}]
[null,{"$f":"unique_contracts!B148","v":0},{"$f":"unique_contracts!D148","v":0},{"$f":"unique_contracts!J148","v":0},{"$f":"unique_contracts!M148","v":0},{"$f":"unique_contracts!N148","v":0},{"$f":"unique_contracts!P148","v":0},{"$f":"unique_contracts!R148","v":0},{"$f":"unique_contracts!V148","v":0},{"$f":"unique_contracts!AB148","v":0},{"$f":"unique_contracts!AM148","v":0},{"$f":"unique_contracts!AN148","v":0},{"$f":"unique_contracts!AO148","v":0},{"$f":"unique_contracts!AP148","v":0},{"$f":"unique_contracts!AQ148","v":0},{"$f":"unique_contracts!AR148","v":0},{"$f":"unique_contracts!BP148","v":0},0,{"$f":"IFERROR(IF(AND(I147>0,E147=\"NotHybrid\"),_xlfn.CONCAT(MAX(MIN(ROUNDDOWN(I147/D147,0),8),4),INDEX(resources!$G:$G,MATCH(B147,resources!$A:$A,0))),INDEX(resources!$G:$G,MATCH(B147,resources!$A:$A,0))),\"n/a\")","v":"n/a"},"n/a","n/a",0,0,1,1,{"$f":"MIN((IFERROR(IF(AND($V147<=Z$1,$W147>=Z$1),INDEX(Reliability!E$23:E$50,MATCH($S147,Reliability!$C$23:$C$50,0)),0),0)*IF($T147=\"n/a\",$D147*$Y147,$G147)+IFERROR(IF(AND($V147<=Z$1,$W147>=Z$1),INDEX(Reliability!E$23:E$50,MATCH($T147,Reliability!$C$23:$C$50,0)),0),0)*$H147*$X147*$Y147),$D147)*$R147","v":0},{"$f":"MIN((IFERROR(IF(AND($V147<=AA$1,$W147>=AA$1),INDEX(Reliability!F$23:F$50,MATCH($S147,Reliability!$C$23:$C$50,0)),0),0)*IF($T147=\"n/a\",$D147*$Y147,$G147)+IFERROR(IF(AND($V147<=AA$1,$W147>=AA$1),INDEX(Reliability!F$23:F$50,MATCH($T147,Reliability!$C$23:$C$50,0)),0),0)*$H147*$X147*$Y147),$D147)*$R147","v":0},{"$f":"MIN((IFERROR(IF(AND($V147<=AB$1,$W147>=AB$1),INDEX(Reliability!G$23:G$50,MATCH($S147,Reliability!$C$23:$C$50,0)),0),0)*IF($T147=\"n/a\",$D147*$Y147,$G147)+IFERROR(IF(AND($V147<=AB$1,$W147>=AB$1),INDEX(Reliability!G$23:G$50,MATCH($T147,Reliability!$C$23:$C$50,0)),0),0)*$H147*$X147*$Y147),$D147)*$R147","v":0},{"$f":"MIN((IFERROR(IF(AND($V147<=AC$1,$W147>=AC$1),INDEX(Reliability!H$23:H$50,MATCH($S147,Reliability!$C$23:$C$50,0)),0),0)*IF($T147=\"n/a\",$D147*$Y147,$G147)+IFERROR(IF(AND($V147<=AC$1,$W147>=AC$1),INDEX(Reliability!H$23:H$50,MATCH($T147,Reliability!$C$23:$C$50,0)),0),0)*$H147*$X147*$Y147),$D147)*$R147","v":0},{"$f":"MIN((IFERROR(IF(AND($V147<=AD$1,$W147>=AD$1),INDEX(Reliability!I$23:I$50,MATCH($S147,Reliability!$C$23:$C$50,0)),0),0)*IF($T147=\"n/a\",$D147*$Y147,$G147)+IFERROR(IF(AND($V147<=AD$1,$W147>=AD$1),INDEX(Reliability!I$23:I$50,MATCH($T147,Reliability!$C$23:$C$50,0)),0),0)*$H147*$X147*$Y147),$D147)*$R147","v":0},{"$f":"MIN((IFERROR(IF(AND($V147<=AE$1,$W147>=AE$1),INDEX(Reliability!J$23:J$50,MATCH($S147,Reliability!$C$23:$C$50,0)),0),0)*IF($T147=\"n/a\",$D147*$Y147,$G147)+IFERROR(IF(AND($V147<=AE$1,$W147>=AE$1),INDEX(Reliability!J$23:J$50,MATCH($T147,Reliability!$C$23:$C$50,0)),0),0)*$H147*$X147*$Y147),$D147)*$R147","v":0},{"$f":"MIN((IFERROR(IF(AND($V147<=AF$1,$W147>=AF$1),INDEX(Reliability!K$23:K$50,MATCH($S147,Reliability!$C$23:$C$50,0)),0),0)*IF($T147=\"n/a\",$D147*$Y147,$G147)+IFERROR(IF(AND($V147<=AF$1,$W147>=AF$1),INDEX(Reliability!K$23:K$50,MATCH($T147,Reliability!$C$23:$C$50,0)),0),0)*$H147*$X147*$Y147),$D147)*$R147","v":0},{"$f":"MIN((IFERROR(IF(AND($V147<=AG$1,$W147>=AG$1),INDEX(Reliability!L$23:L$50,MATCH($S147,Reliability!$C$23:$C$50,0)),0),0)*IF($T147=\"n/a\",$D147*$Y147,$G147)+IFERROR(IF(AND($V147<=AG$1,$W147>=AG$1),INDEX(Reliability!L$23:L$50,MATCH($T147,Reliability!$C$23:$C$50,0)),0),0)*$H147*$X147*$Y147),$D147)*$R147","v":0},{"$f":"MIN((IFERROR(IF(AND($V147<=AH$1,$W147>=AH$1),INDEX(Reliability!M$23:M$50,MATCH($S147,Reliability!$C$23:$C$50,0)),0),0)*IF($T147=\"n/a\",$D147*$Y147,$G147)+IFERROR(IF(AND($V147<=AH$1,$W147>=AH$1),INDEX(Reliability!M$23:M$50,MATCH($T147,Reliability!$C$23:$C$50,0)),0),0)*$H147*$X147*$Y147),$D147)*$R147","v":0},{"$f":"MIN((IFERROR(IF(AND($V147<=AI$1,$W147>=AI$1),INDEX(Reliability!N$23:N$50,MATCH($S147,Reliability!$C$23:$C$50,0)),0),0)*IF($T147=\"n/a\",$D147*$Y147,$G147)+IFERROR(IF(AND($V147<=AI$1,$W147>=AI$1),INDEX(Reliability!N$23:N$50,MATCH($T147,Reliability!$C$23:$C$50,0)),0),0)*$H147*$X147*$Y147),$D147)*$R147","v":0},{"$f":"MIN((IFERROR(IF(AND($V147<=AJ$1,$W147>=AJ$1),INDEX(Reliability!O$23:O$50,MATCH($S147,Reliability!$C$23:$C$50,0)),0),0)*IF($T147=\"n/a\",$D147*$Y147,$G147)+IFERROR(IF(AND($V147<=AJ$1,$W147>=AJ$1),INDEX(Reliability!O$23:O$50,MATCH($T147,Reliability!$C$23:$C$50,0)),0),0)*$H147*$X147*$Y147),$D147)*$R147","v":0},{"$f":"MIN((IFERROR(IF(AND($V147<=AK$1,$W147>=AK$1),INDEX(Reliability!P$23:P$50,MATCH($S147,Reliability!$C$23:$C$50,0)),0),0)*IF($T147=\"n/a\",$D147*$Y147,$G147)+IFERROR(IF(AND($V147<=AK$1,$W147>=AK$1),INDEX(Reliability!P$23:P$50,MATCH($T147,Reliability!$C$23:$C$50,0)),0),0)*$H147*$X147*$Y147),$D147)*$R147","v":0}]
[null,{"$f":"unique_contracts!B149","v":0},{"$f":"unique_contracts!D149","v":0},{"$f":"unique_contracts!J149","v":0},{"$f":"unique_contracts!M149","v":0},{"$f":"unique_contracts!N149","v":0},{"$f":"unique_contracts!P149","v":0},{"$f":"unique_contracts!R149","v":0},{"$f":"unique_contracts!V149","v":0},{"$f":"unique_contracts!AB149","v":0},{"$f":"unique_contracts!AM149","v":0},{"$f":"unique_contracts!AN149","v":0},{"$f":"unique_contracts!AO149","v":0},{"$f":"unique_contracts!AP149","v":0},{"$f":"unique_contracts!AQ149","v":0},{"$f":"unique_contracts!AR149","v":0},{"$f":"unique_contracts!BP149","v":0},0,{"$f":"IFERROR(IF(AND(I148>0,E148=\"NotHybrid\"),_xlfn.CONCAT(MAX(MIN(ROUNDDOWN(I148/D148,0),8),4),INDEX(resources!$G:$G,MATCH(B148,resources!$A:$A,0))),INDEX(resources!$G:$G,MATCH(B148,resources!$A:$A,0))),\"n/a\")","v":"n/a"},"n/a","n/a",0,0,1,1,{"$f":"MIN((IFERROR(IF(AND($V148<=Z$1,$W148>=Z$1),INDEX(Reliability!E$23:E$50,MATCH($S148,Reliability!$C$23:$C$50,0)),0),0)*IF($T148=\"n/a\",$D148*$Y148,$G148)+IFERROR(IF(AND($V148<=Z$1,$W148>=Z$1),INDEX(Reliability!E$23:E$50,MATCH($T148,Reliability!$C$23:$C$50,0)),0),0)*$H148*$X148*$Y148),$D148)*$R148","v":0},{"$f":"MIN((IFERROR(IF(AND($V148<=AA$1,$W148>=AA$1),INDEX(Reliability!F$23:F$50,MATCH($S148,Reliability!$C$23:$C$50,0)),0),0)*IF($T148=\"n/a\",$D148*$Y148,$G148)+IFERROR(IF(AND($V148<=AA$1,$W148>=AA$1),INDEX(Reliability!F$23:F$50,MATCH($T148,Reliability!$C$23:$C$50,0)),0),0)*$H148*$X148*$Y148),$D148)*$R148","v":0},{"$f":"MIN((IFERROR(IF(AND($V148<=AB$1,$W148>=AB$1),INDEX(Reliability!G$23:G$50,MATCH($S148,Reliability!$C$23:$C$50,0)),0),0)*IF($T148=\"n/a\",$D148*$Y148,$G148)+IFERROR(IF(AND($V148<=AB$1,$W148>=AB$1),INDEX(Reliability!G$23:G$50,MATCH($T148,Reliability!$C$23:$C$50,0)),0),0)*$H148*$X148*$Y148),$D148)*$R148","v":0},{"$f":"MIN((IFERROR(IF(AND($V148<=AC$1,$W148>=AC$1),INDEX(Reliability!H$23:H$50,MATCH($S148,Reliability!$C$23:$C$50,0)),0),0)*IF($T148=\"n/a\",$D148*$Y148,$G148)+IFERROR(IF(AND($V148<=AC$1,$W148>=AC$1),INDEX(Reliability!H$23:H$50,MATCH($T148,Reliability!$C$23:$C$50,0)),0),0)*$H148*$X148*$Y148),$D148)*$R148","v":0},{"$f":"MIN((IFERROR(IF(AND($V148<=AD$1,$W148>=AD$1),INDEX(Reliability!I$23:I$50,MATCH($S148,Reliability!$C$23:$C$50,0)),0),0)*IF($T148=\"n/a\",$D148*$Y148,$G148)+IFERROR(IF(AND($V148<=AD$1,$W148>=AD$1),INDEX(Reliability!I$23:I$50,MATCH($T148,Reliability!$C$23:$C$50,0)),0),0)*$H148*$X148*$Y148),$D148)*$R148","v":0},{"$f":"MIN((IFERROR(IF(AND($V148<=AE$1,$W148>=AE$1),INDEX(Reliability!J$23:J$50,MATCH($S148,Reliability!$C$23:$C$50,0)),0),0)*IF($T148=\"n/a\",$D148*$Y148,$G148)+IFERROR(IF(AND($V148<=AE$1,$W148>=AE$1),INDEX(Reliability!J$23:J$50,MATCH($T148,Reliability!$C$23:$C$50,0)),0),0)*$H148*$X148*$Y148),$D148)*$R148","v":0},{"$f":"MIN((IFERROR(IF(AND($V148<=AF$1,$W148>=AF$1),INDEX(Reliability!K$23:K$50,MATCH($S148,Reliability!$C$23:$C$50,0)),0),0)*IF($T148=\"n/a\",$D148*$Y148,$G148)+IFERROR(IF(AND($V148<=AF$1,$W148>=AF$1),INDEX(Reliability!K$23:K$50,MATCH($T148,Reliability!$C$23:$C$50,0)),0),0)*$H148*$X148*$Y148),$D148)*$R148","v":0},{"$f":"MIN((IFERROR(IF(AND($V148<=AG$1,$W148>=AG$1),INDEX(Reliability!L$23:L$50,MATCH($S148,Reliability!$C$23:$C$50,0)),0),0)*IF($T148=\"n/a\",$D148*$Y148,$G148)+IFERROR(IF(AND($V148<=AG$1,$W148>=AG$1),INDEX(Reliability!L$23:L$50,MATCH($T148,Reliability!$C$23:$C$50,0)),0),0)*$H148*$X148*$Y148),$D148)*$R148","v":0},{"$f":"MIN((IFERROR(IF(AND($V148<=AH$1,$W148>=AH$1),INDEX(Reliability!M$23:M$50,MATCH($S148,Reliability!$C$23:$C$50,0)),0),0)*IF($T148=\"n/a\",$D148*$Y148,$G148)+IFERROR(IF(AND($V148<=AH$1,$W148>=AH$1),INDEX(Reliability!M$23:M$50,MATCH($T148,Reliability!$C$23:$C$50,0)),0),0)*$H148*$X148*$Y148),$D148)*$R148","v":0},{"$f":"MIN((IFERROR(IF(AND($V148<=AI$1,$W148>=AI$1),INDEX(Reliability!N$23:N$50,MATCH($S148,Reliability!$C$23:$C$50,0)),0),0)*IF($T148=\"n/a\",$D148*$Y148,$G148)+IFERROR(IF(AND($V148<=AI$1,$W148>=AI$1),INDEX(Reliability!N$23:N$50,MATCH($T148,Reliability!$C$23:$C$50,0)),0),0)*$H148*$X148*$Y148),$D148)*$R148","v":0},{"$f":"MIN((IFERROR(IF(AND($V148<=AJ$1,$W148>=AJ$1),INDEX(Reliability!O$23:O$50,MATCH($S148,Reliability!$C$23:$C$50,0)),0),0)*IF($T148=\"n/a\",$D148*$Y148,$G148)+IFERROR(IF(AND($V148<=AJ$1,$W148>=AJ$1),INDEX(Reliability!O$23:O$50,MATCH($T148,Reliability!$C$23:$C$50,0)),0),0)*$H148*$X148*$Y148),$D148)*$R148","v":0},{"$f":"MIN((IFERROR(IF(AND($V148<=AK$1,$W148>=AK$1),INDEX(Reliability!P$23:P$50,MATCH($S148,Reliability!$C$23:$C$50,0)),0),0)*IF($T148=\"n/a\",$D148*$Y148,$G148)+IFERROR(IF(AND($V148<=AK$1,$W148>=AK$1),INDEX(Reliability!P$23:P$50,MATCH($T148,Reliability!$C$23:$C$50,0)),0),0)*$H148*$X148*$Y148),$D148)*$R148","v":0}]
[null,{"$f":"unique_contracts!B150","v":0},{"$f":"unique_contracts!D150","v":0},{"$f":"unique_contracts!J150","v":0},{"$f":"unique_contracts!M150","v":0},{"$f":"unique_contracts!N150","v":0},{"$f":"unique_contracts!P150","v":0},{"$f":"unique_contracts!R150","v":0},{"$f":"unique_contracts!V150","v":0},{"$f":"unique_contracts!AB150","v":0},{"$f":"unique_contracts!AM150","v":0},{"$f":"unique_contracts!AN150","v":0},{"$f":"unique_contracts!AO150","v":0},{"$f":"unique_contracts!AP150","v":0},{"$f":"unique_contracts!AQ150","v":0},{"$f":"unique_contracts!AR150","v":0},{"$f":"unique_contracts!BP150","v":0},0,{"$f":"IFERROR(IF(AND(I149>0,E149=\"NotHybrid\"),_xlfn.CONCAT(MAX(MIN(ROUNDDOWN(I149/D149,0),8),4),INDEX(resources!$G:$G,MATCH(B149,resources!$A:$A,0))),INDEX(resources!$G:$G,MATCH(B149,resources!$A:$A,0))),\"n/a\")","v":"n/a"},"n/a","n/a",0,0,1,1,{"$f":"MIN((IFERROR(IF(AND($V149<=Z$1,$W149>=Z$1),INDEX(Reliability!E$23:E$50,MATCH($S149,Reliability!$C$23:$C$50,0)),0),0)*IF($T149=\"n/a\",$D149*$Y149,$G149)+IFERROR(IF(AND($V149<=Z$1,$W149>=Z$1),INDEX(Reliability!E$23:E$50,MATCH($T149,Reliability!$C$23:$C$50,0)),0),0)*$H149*$X149*$Y149),$D149)*$R149","v":0},{"$f":"MIN((IFERROR(IF(AND($V149<=AA$1,$W149>=AA$1),INDEX(Reliability!F$23:F$50,MATCH($S149,Reliability!$C$23:$C$50,0)),0),0)*IF($T149=\"n/a\",$D149*$Y149,$G149)+IFERROR(IF(AND($V149<=AA$1,$W149>=AA$1),INDEX(Reliability!F$23:F$50,MATCH($T149,Reliability!$C$23:$C$50,0)),0),0)*$H149*$X149*$Y149),$D149)*$R149","v":0},{"$f":"MIN((IFERROR(IF(AND($V149<=AB$1,$W149>=AB$1),INDEX(Reliability!G$23:G$50,MATCH($S149,Reliability!$C$23:$C$50,0)),0),0)*IF($T149=\"n/a\",$D149*$Y149,$G149)+IFERROR(IF(AND($V149<=AB$1,$W149>=AB$1),INDEX(Reliability!G$23:G$50,MATCH($T149,Reliability!$C$23:$C$50,0)),0),0)*$H149*$X149*$Y149),$D149)*$R149","v":0},{"$f":"MIN((IFERROR(IF(AND($V149<=AC$1,$W149>=AC$1),INDEX(Reliability!H$23:H$50,MATCH($S149,Reliability!$C$23:$C$50,0)),0),0)*IF($T149=\"n/a\",$D149*$Y149,$G149)+IFERROR(IF(AND($V149<=AC$1,$W149>=AC$1),INDEX(Reliability!H$23:H$50,MATCH($T149,Reliability!$C$23:$C$50,0)),0),0)*$H149*$X149*$Y149),$D149)*$R149","v":0},{"$f":"MIN((IFERROR(IF(AND($V149<=AD$1,$W149>=AD$1),INDEX(Reliability!I$23:I$50,MATCH($S149,Reliability!$C$23:$C$50,0)),0),0)*IF($T149=\"n/a\",$D149*$Y149,$G149)+IFERROR(IF(AND($V149<=AD$1,$W149>=AD$1),INDEX(Reliability!I$23:I$50,MATCH($T149,Reliability!$C$23:$C$50,0)),0),0)*$H149*$X149*$Y149),$D149)*$R149","v":0},{"$f":"MIN((IFERROR(IF(AND($V149<=AE$1,$W149>=AE$1),INDEX(Reliability!J$23:J$50,MATCH($S149,Reliability!$C$23:$C$50,0)),0),0)*IF($T149=\"n/a\",$D149*$Y149,$G149)+IFERROR(IF(AND($V149<=AE$1,$W149>=AE$1),INDEX(Reliability!J$23:J$50,MATCH($T149,Reliability!$C$23:$C$50,0)),0),0)*$H149*$X149*$Y149),$D149)*$R149","v":0},{"$f":"MIN((IFERROR(IF(AND($V149<=AF$1,$W149>=AF$1),INDEX(Reliability!K$23:K$50,MATCH($S149,Reliability!$C$23:$C$50,0)),0),0)*IF($T149=\"n/a\",$D149*$Y149,$G149)+IFERROR(IF(AND($V149<=AF$1,$W149>=AF$1),INDEX(Reliability!K$23:K$50,MATCH($T149,Reliability!$C$23:$C$50,0)),0),0)*$H149*$X149*$Y149),$D149)*$R149","v":0},{"$f":"MIN((IFERROR(IF(AND($V149<=AG$1,$W149>=AG$1),INDEX(Reliability!L$23:L$50,MATCH($S149,Reliability!$C$23:$C$50,0)),0),0)*IF($T149=\"n/a\",$D149*$Y149,$G149)+IFERROR(IF(AND($V149<=AG$1,$W149>=AG$1),INDEX(Reliability!L$23:L$50,MATCH($T149,Reliability!$C$23:$C$50,0)),0),0)*$H149*$X149*$Y149),$D149)*$R149","v":0},{"$f":"MIN((IFERROR(IF(AND($V149<=AH$1,$W149>=AH$1),INDEX(Reliability!M$23:M$50,MATCH($S149,Reliability!$C$23:$C$50,0)),0),0)*IF($T149=\"n/a\",$D149*$Y149,$G149)+IFERROR(IF(AND($V149<=AH$1,$W149>=AH$1),INDEX(Reliability!M$23:M$50,MATCH($T149,Reliability!$C$23:$C$50,0)),0),0)*$H149*$X149*$Y149),$D149)*$R149","v":0},{"$f":"MIN((IFERROR(IF(AND($V149<=AI$1,$W149>=AI$1),INDEX(Reliability!N$23:N$50,MATCH($S149,Reliability!$C$23:$C$50,0)),0),0)*IF($T149=\"n/a\",$D149*$Y149,$G149)+IFERROR(IF(AND($V149<=AI$1,$W149>=AI$1),INDEX(Reliability!N$23:N$50,MATCH($T149,Reliability!$C$23:$C$50,0)),0),0)*$H149*$X149*$Y149),$D149)*$R149","v":0},{"$f":"MIN((IFERROR(IF(AND($V149<=AJ$1,$W149>=AJ$1),INDEX(Reliability!O$23:O$50,MATCH($S149,Reliability!$C$23:$C$50,0)),0),0)*IF($T149=\"n/a\",$D149*$Y149,$G149)+IFERROR(IF(AND($V149<=AJ$1,$W149>=AJ$1),INDEX(Reliability!O$23:O$50,MATCH($T149,Reliability!$C$23:$C$50,0)),0),0)*$H149*$X149*$Y149),$D149)*$R149","v":0},{"$f":"MIN((IFERROR(IF(AND($V149<=AK$1,$W149>=AK$1),INDEX(Reliability!P$23:P$50,MATCH($S149,Reliability!$C$23:$C$50,0)),0),0)*IF($T149=\"n/a\",$D149*$Y149,$G149)+IFERROR(IF(AND($V149<=AK$1,$W149>=AK$1),INDEX(Reliability!P$23:P$50,MATCH($T149,Reliability!$C$23:$C$50,0)),0),0)*$H149*$X149*$Y149),$D149)*$R149","v":0}]
[null,{"$f":"unique_contracts!B151","v":0},{"$f":"unique_contracts!D151","v":0},{"$f":"unique_contracts!J151","v":0},{"$f":"unique_contracts!M151","v":0},{"$f":"unique_contracts!N151","v":0},{"$f":"unique_contracts!P151","v":0},{"$f":"unique_contracts!R151","v":0},{"$f":"unique_contracts!V151","v":0},{"$f":"unique_contracts!AB151","v":0},{"$f":"unique_contracts!AM151","v":0},{"$f":"unique_contracts!AN151","v":0},{"$f":"unique_contracts!AO151","v":0},{"$f":"unique_contracts!AP151","v":0},{"$f":"unique_contracts!AQ151","v":0},{"$f":"unique_contracts!AR151","v":0},{"$f":"unique_contracts!BP151","v":0},0,{"$f":"IFERROR(IF(AND(I150>0,E150=\"NotHybrid\"),_xlfn.CONCAT(MAX(MIN(ROUNDDOWN(I150/D150,0),8),4),INDEX(resources!$G:$G,MATCH(B150,resources!$A:$A,0))),INDEX(resources!$G:$G,MATCH(B150,resources!$A:$A,0))),\"n/a\")","v":"n/a"},"n/a","n/a",0,0,1,1,{"$f":"MIN((IFERROR(IF(AND($V150<=Z$1,$W150>=Z$1),INDEX(Reliability!E$23:E$50,MATCH($S150,Reliability!$C$23:$C$50,0)),0),0)*IF($T150=\"n/a\",$D150*$Y150,$G150)+IFERROR(IF(AND($V150<=Z$1,$W150>=Z$1),INDEX(Reliability!E$23:E$50,MATCH($T150,Reliability!$C$23:$C$50,0)),0),0)*$H150*$X150*$Y150),$D150)*$R150","v":0},{"$f":"MIN((IFERROR(IF(AND($V150<=AA$1,$W150>=AA$1),INDEX(Reliability!F$23:F$50,MATCH($S150,Reliability!$C$23:$C$50,0)),0),0)*IF($T150=\"n/a\",$D150*$Y150,$G150)+IFERROR(IF(AND($V150<=AA$1,$W150>=AA$1),INDEX(Reliability!F$23:F$50,MATCH($T150,Reliability!$C$23:$C$50,0)),0),0)*$H150*$X150*$Y150),$D150)*$R150","v":0},{"$f":"MIN((IFERROR(IF(AND($V150<=AB$1,$W150>=AB$1),INDEX(Reliability!G$23:G$50,MATCH($S150,Reliability!$C$23:$C$50,0)),0),0)*IF($T150=\"n/a\",$D150*$Y150,$G150)+IFERROR(IF(AND($V150<=AB$1,$W150>=AB$1),INDEX(Reliability!G$23:G$50,MATCH($T150,Reliability!$C$23:$C$50,0)),0),0)*$H150*$X150*$Y150),$D150)*$R150","v":0},{"$f":"MIN((IFERROR(IF(AND($V150<=AC$1,$W150>=AC$1),INDEX(Reliability!H$23:H$50,MATCH($S150,Reliability!$C$23:$C$50,0)),0),0)*IF($T150=\"n/a\",$D150*$Y150,$G150)+IFERROR(IF(AND($V150<=AC$1,$W150>=AC$1),INDEX(Reliability!H$23:H$50,MATCH($T150,Reliability!$C$23:$C$50,0)),0),0)*$H150*$X150*$Y150),$D150)*$R150","v":0},{"$f":"MIN((IFERROR(IF(AND($V150<=AD$1,$W150>=AD$1),INDEX(Reliability!I$23:I$50,MATCH($S150,Reliability!$C$23:$C$50,0)),0),0)*IF($T150=\"n/a\",$D150*$Y150,$G150)+IFERROR(IF(AND($V150<=AD$1,$W150>=AD$1),INDEX(Reliability!I$23:I$50,MATCH($T150,Reliability!$C$23:$C$50,0)),0),0)*$H150*$X150*$Y150),$D150)*$R150","v":0},{"$f":"MIN((IFERROR(IF(AND($V150<=AE$1,$W150>=AE$1),INDEX(Reliability!J$23:J$50,MATCH($S150,Reliability!$C$23:$C$50,0)),0),0)*IF($T150=\"n/a\",$D150*$Y150,$G150)+IFERROR(IF(AND($V150<=AE$1,$W150>=AE$1),INDEX(Reliability!J$23:J$50,MATCH($T150,Reliability!$C$23:$C$50,0)),0),0)*$H150*$X150*$Y150),$D150)*$R150","v":0},{"$f":"MIN((IFERROR(IF(AND($V150<=AF$1,$W150>=AF$1),INDEX(Reliability!K$23:K$50,MATCH($S150,Reliability!$C$23:$C$50,0)),0),0)*IF($T150=\"n/a\",$D150*$Y150,$G150)+IFERROR(IF(AND($V150<=AF$1,$W150>=AF$1),INDEX(Reliability!K$23:K$50,MATCH($T150,Reliability!$C$23:$C$50,0)),0),0)*$H150*$X150*$Y150),$D150)*$R150","v":0},{"$f":"MIN((IFERROR(IF(AND($V150<=AG$1,$W150>=AG$1),INDEX(Reliability!L$23:L$50,MATCH($S150,Reliability!$C$23:$C$50,0)),0),0)*IF($T150=\"n/a\",$D150*$Y150,$G150)+IFERROR(IF(AND($V150<=AG$1,$W150>=AG$1),INDEX(Reliability!L$23:L$50,MATCH($T150,Reliability!$C$23:$C$50,0)),0),0)*$H150*$X150*$Y150),$D150)*$R150","v":0},{"$f":"MIN((IFERROR(IF(AND($V150<=AH$1,$W150>=AH$1),INDEX(Reliability!M$23:M$50,MATCH($S150,Reliability!$C$23:$C$50,0)),0),0)*IF($T150=\"n/a\",$D150*$Y150,$G150)+IFERROR(IF(AND($V150<=AH$1,$W150>=AH$1),INDEX(Reliability!M$23:M$50,MATCH($T150,Reliability!$C$23:$C$50,0)),0),0)*$H150*$X150*$Y150),$D150)*$R150","v":0},{"$f":"MIN((IFERROR(IF(AND($V150<=AI$1,$W150>=AI$1),INDEX(Reliability!N$23:N$50,MATCH($S150,Reliability!$C$23:$C$50,0)),0),0)*IF($T150=\"n/a\",$D150*$Y150,$G150)+IFERROR(IF(AND($V150<=AI$1,$W150>=AI$1),INDEX(Reliability!N$23:N$50,MATCH($T150,Reliability!$C$23:$C$50,0)),0),0)*$H150*$X150*$Y150),$D150)*$R150","v":0},{"$f":"MIN((IFERROR(IF(AND($V150<=AJ$1,$W150>=AJ$1),INDEX(Reliability!O$23:O$50,MATCH($S150,Reliability!$C$23:$C$50,0)),0),0)*IF($T150=\"n/a\",$D150*$Y150,$G150)+IFERROR(IF(AND($V150<=AJ$1,$W150>=AJ$1),INDEX(Reliability!O$23:O$50,MATCH($T150,Reliability!$C$23:$C$50,0)),0),0)*$H150*$X150*$Y150),$D150)*$R150","v":0},{"$f":"MIN((IFERROR(IF(AND($V150<=AK$1,$W150>=AK$1),INDEX(Reliability!P$23:P$50,MATCH($S150,Reliability!$C$23:$C$50,0)),0),0)*IF($T150=\"n/a\",$D150*$Y150,$G150)+IFERROR(IF(AND($V150<=AK$1,$W150>=AK$1),INDEX(Reliability!P$23:P$50,MATCH($T150,Reliability!$C$23:$C$50,0)),0),0)*$H150*$X150*$Y150),$D150)*$R150","v":0}]
[null,{"$f":"unique_contracts!B152","v":0},{"$f":"unique_contracts!D152","v":0},{"$f":"unique_contracts!J152","v":0},{"$f":"unique_contracts!M152","v":0},{"$f":"unique_contracts!N152","v":0},{"$f":"unique_contracts!P152","v":0},{"$f":"unique_contracts!R152","v":0},{"$f":"unique_contracts!V152","v":0},{"$f":"unique_contracts!AB152","v":0},{"$f":"unique_contracts!AM152","v":0},{"$f":"unique_contracts!AN152","v":0},{"$f":"unique_contracts!AO152","v":0},{"$f":"unique_contracts!AP152","v":0},{"$f":"unique_contracts!AQ152","v":0},{"$f":"unique_contracts!AR152","v":0},{"$f":"unique_contracts!BP152","v":0},0,{"$f":"IFERROR(IF(AND(I151>0,E151=\"NotHybrid\"),_xlfn.CONCAT(MAX(MIN(ROUNDDOWN(I151/D151,0),8),4),INDEX(resources!$G:$G,MATCH(B151,resources!$A:$A,0))),INDEX(resources!$G:$G,MATCH(B151,resources!$A:$A,0))),\"n/a\")","v":"n/a"},"n/a","n/a",0,0,1,1,{"$f":"MIN((IFERROR(IF(AND($V151<=Z$1,$W151>=Z$1),INDEX(Reliability!E$23:E$50,MATCH($S151,Reliability!$C$23:$C$50,0)),0),0)*IF($T151=\"n/a\",$D151*$Y151,$G151)+IFERROR(IF(AND($V151<=Z$1,$W151>=Z$1),INDEX(Reliability!E$23:E$50,MATCH($T151,Reliability!$C$23:$C$50,0)),0),0)*$H151*$X151*$Y151),$D151)*$R151","v":0},{"$f":"MIN((IFERROR(IF(AND($V151<=AA$1,$W151>=AA$1),INDEX(Reliability!F$23:F$50,MATCH($S151,Reliability!$C$23:$C$50,0)),0),0)*IF($T151=\"n/a\",$D151*$Y151,$G151)+IFERROR(IF(AND($V151<=AA$1,$W151>=AA$1),INDEX(Reliability!F$23:F$50,MATCH($T151,Reliability!$C$23:$C$50,0)),0),0)*$H151*$X151*$Y151),$D151)*$R151","v":0},{"$f":"MIN((IFERROR(IF(AND($V151<=AB$1,$W151>=AB$1),INDEX(Reliability!G$23:G$50,MATCH($S151,Reliability!$C$23:$C$50,0)),0),0)*IF($T151=\"n/a\",$D151*$Y151,$G151)+IFERROR(IF(AND($V151<=AB$1,$W151>=AB$1),INDEX(Reliability!G$23:G$50,MATCH($T151,Reliability!$C$23:$C$50,0)),0),0)*$H151*$X151*$Y151),$D151)*$R151","v":0},{"$f":"MIN((IFERROR(IF(AND($V151<=AC$1,$W151>=AC$1),INDEX(Reliability!H$23:H$50,MATCH($S151,Reliability!$C$23:$C$50,0)),0),0)*IF($T151=\"n/a\",$D151*$Y151,$G151)+IFERROR(IF(AND($V151<=AC$1,$W151>=AC$1),INDEX(Reliability!H$23:H$50,MATCH($T151,Reliability!$C$23:$C$50,0)),0),0)*$H151*$X151*$Y151),$D151)*$R151","v":0},{"$f":"MIN((IFERROR(IF(AND($V151<=AD$1,$W151>=AD$1),INDEX(Reliability!I$23:I$50,MATCH($S151,Reliability!$C$23:$C$50,0)),0),0)*IF($T151=\"n/a\",$D151*$Y151,$G151)+IFERROR(IF(AND($V151<=AD$1,$W151>=AD$1),INDEX(Reliability!I$23:I$50,MATCH($T151,Reliability!$C$23:$C$50,0)),0),0)*$H151*$X151*$Y151),$D151)*$R151","v":0},{"$f":"MIN((IFERROR(IF(AND($V151<=AE$1,$W151>=AE$1),INDEX(Reliability!J$23:J$50,MATCH($S151,Reliability!$C$23:$C$50,0)),0),0)*IF($T151=\"n/a\",$D151*$Y151,$G151)+IFERROR(IF(AND($V151<=AE$1,$W151>=AE$1),INDEX(Reliability!J$23:J$50,MATCH($T151,Reliability!$C$23:$C$50,0)),0),0)*$H151*$X151*$Y151),$D151)*$R151","v":0},{"$f":"MIN((IFERROR(IF(AND($V151<=AF$1,$W151>=AF$1),INDEX(Reliability!K$23:K$50,MATCH($S151,Reliability!$C$23:$C$50,0)),0),0)*IF($T151=\"n/a\",$D151*$Y151,$G151)+IFERROR(IF(AND($V151<=AF$1,$W151>=AF$1),INDEX(Reliability!K$23:K$50,MATCH($T151,Reliability!$C$23:$C$50,0)),0),0)*$H151*$X151*$Y151),$D151)*$R151","v":0},{"$f":"MIN((IFERROR(IF(AND($V151<=AG$1,$W151>=AG$1),INDEX(Reliability!L$23:L$50,MATCH($S151,Reliability!$C$23:$C$50,0)),0),0)*IF($T151=\"n/a\",$D151*$Y151,$G151)+IFERROR(IF(AND($V151<=AG$1,$W151>=AG$1),INDEX(Reliability!L$23:L$50,MATCH($T151,Reliability!$C$23:$C$50,0)),0),0)*$H151*$X151*$Y151),$D151)*$R151","v":0},{"$f":"MIN((IFERROR(IF(AND($V151<=AH$1,$W151>=AH$1),INDEX(Reliability!M$23:M$50,MATCH($S151,Reliability!$C$23:$C$50,0)),0),0)*IF($T151=\"n/a\",$D151*$Y151,$G151)+IFERROR(IF(AND($V151<=AH$1,$W151>=AH$1),INDEX(Reliability!M$23:M$50,MATCH($T151,Reliability!$C$23:$C$50,0)),0),0)*$H151*$X151*$Y151),$D151)*$R151","v":0},{"$f":"MIN((IFERROR(IF(AND($V151<=AI$1,$W151>=AI$1),INDEX(Reliability!N$23:N$50,MATCH($S151,Reliability!$C$23:$C$50,0)),0),0)*IF($T151=\"n/a\",$D151*$Y151,$G151)+IFERROR(IF(AND($V151<=AI$1,$W151>=AI$1),INDEX(Reliability!N$23:N$50,MATCH($T151,Reliability!$C$23:$C$50,0)),0),0)*$H151*$X151*$Y151),$D151)*$R151","v":0},{"$f":"MIN((IFERROR(IF(AND($V151<=AJ$1,$W151>=AJ$1),INDEX(Reliability!O$23:O$50,MATCH($S151,Reliability!$C$23:$C$50,0)),0),0)*IF($T151=\"n/a\",$D151*$Y151,$G151)+IFERROR(IF(AND($V151<=AJ$1,$W151>=AJ$1),INDEX(Reliability!O$23:O$50,MATCH($T151,Reliability!$C$23:$C$50,0)),0),0)*$H151*$X151*$Y151),$D151)*$R151","v":0},{"$f":"MIN((IFERROR(IF(AND($V151<=AK$1,$W151>=AK$1),INDEX(Reliability!P$23:P$50,MATCH($S151,Reliability!$C$23:$C$50,0)),0),0)*IF($T151=\"n/a\",$D151*$Y151,$G151)+IFERROR(IF(AND($V151<=AK$1,$W151>=AK$1),INDEX(Reliability!P$23:P$50,MATCH($T151,Reliability!$C$23:$C$50,0)),0),0)*$H151*$X151*$Y151),$D151)*$R151","v":0}]
[null,{"$f":"unique_contracts!B153","v":0},{"$f":"unique_contracts!D153","v":0},{"$f":"unique_contracts!J153","v":0},{"$f":"unique_contracts!M153","v":0},{"$f":"unique_contracts!N153","v":0},{"$f":"unique_contracts!P153","v":0},{"$f":"unique_contracts!R153","v":0},{"$f":"unique_contracts!V153","v":0},{"$f":"unique_contracts!AB153","v":0},{"$f":"unique_contracts!AM153","v":0},{"$f":"unique_contracts!AN153","v":0},{"$f":"unique_contracts!AO153","v":0},{"$f":"unique_contracts!AP153","v":0},{"$f":"unique_contracts!AQ153","v":0},{"$f":"unique_contracts!AR153","v":0},{"$f":"unique_contracts!BP153","v":0},0,{"$f":"IFERROR(IF(AND(I152>0,E152=\"NotHybrid\"),_xlfn.CONCAT(MAX(MIN(ROUNDDOWN(I152/D152,0),8),4),INDEX(resources!$G:$G,MATCH(B152,resources!$A:$A,0))),INDEX(resources!$G:$G,MATCH(B152,resources!$A:$A,0))),\"n/a\")","v":"n/a"},"n/a","n/a",0,0,1,1,{"$f":"MIN((IFERROR(IF(AND($V152<=Z$1,$W152>=Z$1),INDEX(Reliability!E$23:E$50,MATCH($S152,Reliability!$C$23:$C$50,0)),0),0)*IF($T152=\"n/a\",$D152*$Y152,$G152)+IFERROR(IF(AND($V152<=Z$1,$W152>=Z$1),INDEX(Reliability!E$23:E$50,MATCH($T152,Reliability!$C$23:$C$50,0)),0),0)*$H152*$X152*$Y152),$D152)*$R152","v":0},{"$f":"MIN((IFERROR(IF(AND($V152<=AA$1,$W152>=AA$1),INDEX(Reliability!F$23:F$50,MATCH($S152,Reliability!$C$23:$C$50,0)),0),0)*IF($T152=\"n/a\",$D152*$Y152,$G152)+IFERROR(IF(AND($V152<=AA$1,$W152>=AA$1),INDEX(Reliability!F$23:F$50,MATCH($T152,Reliability!$C$23:$C$50,0)),0),0)*$H152*$X152*$Y152),$D152)*$R152","v":0},{"$f":"MIN((IFERROR(IF(AND($V152<=AB$1,$W152>=AB$1),INDEX(Reliability!G$23:G$50,MATCH($S152,Reliability!$C$23:$C$50,0)),0),0)*IF($T152=\"n/a\",$D152*$Y152,$G152)+IFERROR(IF(AND($V152<=AB$1,$W152>=AB$1),INDEX(Reliability!G$23:G$50,MATCH($T152,Reliability!$C$23:$C$50,0)),0),0)*$H152*$X152*$Y152),$D152)*$R152","v":0},{"$f":"MIN((IFERROR(IF(AND($V152<=AC$1,$W152>=AC$1),INDEX(Reliability!H$23:H$50,MATCH($S152,Reliability!$C$23:$C$50,0)),0),0)*IF($T152=\"n/a\",$D152*$Y152,$G152)+IFERROR(IF(AND($V152<=AC$1,$W152>=AC$1),INDEX(Reliability!H$23:H$50,MATCH($T152,Reliability!$C$23:$C$50,0)),0),0)*$H152*$X152*$Y152),$D152)*$R152","v":0},{"$f":"MIN((IFERROR(IF(AND($V152<=AD$1,$W152>=AD$1),INDEX(Reliability!I$23:I$50,MATCH($S152,Reliability!$C$23:$C$50,0)),0),0)*IF($T152=\"n/a\",$D152*$Y152,$G152)+IFERROR(IF(AND($V152<=AD$1,$W152>=AD$1),INDEX(Reliability!I$23:I$50,MATCH($T152,Reliability!$C$23:$C$50,0)),0),0)*$H152*$X152*$Y152),$D152)*$R152","v":0},{"$f":"MIN((IFERROR(IF(AND($V152<=AE$1,$W152>=AE$1),INDEX(Reliability!J$23:J$50,MATCH($S152,Reliability!$C$23:$C$50,0)),0),0)*IF($T152=\"n/a\",$D152*$Y152,$G152)+IFERROR(IF(AND($V152<=AE$1,$W152>=AE$1),INDEX(Reliability!J$23:J$50,MATCH($T152,Reliability!$C$23:$C$50,0)),0),0)*$H152*$X152*$Y152),$D152)*$R152","v":0},{"$f":"MIN((IFERROR(IF(AND($V152<=AF$1,$W152>=AF$1),INDEX(Reliability!K$23:K$50,MATCH($S152,Reliability!$C$23:$C$50,0)),0),0)*IF($T152=\"n/a\",$D152*$Y152,$G152)+IFERROR(IF(AND($V152<=AF$1,$W152>=AF$1),INDEX(Reliability!K$23:K$50,MATCH($T152,Reliability!$C$23:$C$50,0)),0),0)*$H152*$X152*$Y152),$D152)*$R152","v":0},{"$f":"MIN((IFERROR(IF(AND($V152<=AG$1,$W152>=AG$1),INDEX(Reliability!L$23:L$50,MATCH($S152,Reliability!$C$23:$C$50,0)),0),0)*IF($T152=\"n/a\",$D152*$Y152,$G152)+IFERROR(IF(AND($V152<=AG$1,$W152>=AG$1),INDEX(Reliability!L$23:L$50,MATCH($T152,Reliability!$C$23:$C$50,0)),0),0)*$H152*$X152*$Y152),$D152)*$R152","v":0},{"$f":"MIN((IFERROR(IF(AND($V152<=AH$1,$W152>=AH$1),INDEX(Reliability!M$23:M$50,MATCH($S152,Reliability!$C$23:$C$50,0)),0),0)*IF($T152=\"n/a\",$D152*$Y152,$G152)+IFERROR(IF(AND($V152<=AH$1,$W152>=AH$1),INDEX(Reliability!M$23:M$50,MATCH($T152,Reliability!$C$23:$C$50,0)),0),0)*$H152*$X152*$Y152),$D152)*$R152","v":0},{"$f":"MIN((IFERROR(IF(AND($V152<=AI$1,$W152>=AI$1),INDEX(Reliability!N$23:N$50,MATCH($S152,Reliability!$C$23:$C$50,0)),0),0)*IF($T152=\"n/a\",$D152*$Y152,$G152)+IFERROR(IF(AND($V152<=AI$1,$W152>=AI$1),INDEX(Reliability!N$23:N$50,MATCH($T152,Reliability!$C$23:$C$50,0)),0),0)*$H152*$X152*$Y152),$D152)*$R152","v":0},{"$f":"MIN((IFERROR(IF(AND($V152<=AJ$1,$W152>=AJ$1),INDEX(Reliability!O$23:O$50,MATCH($S152,Reliability!$C$23:$C$50,0)),0),0)*IF($T152=\"n/a\",$D152*$Y152,$G152)+IFERROR(IF(AND($V152<=AJ$1,$W152>=AJ$1),INDEX(Reliability!O$23:O$50,MATCH($T152,Reliability!$C$23:$C$50,0)),0),0)*$H152*$X152*$Y152),$D152)*$R152","v":0},{"$f":"MIN((IFERROR(IF(AND($V152<=AK$1,$W152>=AK$1),INDEX(Reliability!P$23:P$50,MATCH($S152,Reliability!$C$23:$C$50,0)),0),0)*IF($T152=\"n/a\",$D152*$Y152,$G152)+IFERROR(IF(AND($V152<=AK$1,$W152>=AK$1),INDEX(Reliability!P$23:P$50,MATCH($T152,Reliability!$C$23:$C$50,0)),0),0)*$H152*$X152*$Y152),$D152)*$R152","v":0}]
[null,{"$f":"unique_contracts!B154","v":0},{"$f":"unique_contracts!D154","v":0},{"$f":"unique_contracts!J154","v":0},{"$f":"unique_contracts!M154","v":0},{"$f":"unique_contracts!N154","v":0},{"$f":"unique_contracts!P154","v":0},{"$f":"unique_contracts!R154","v":0},{"$f":"unique_contracts!V154","v":0},{"$f":"unique_contracts!AB154","v":0},{"$f":"unique_contracts!AM154","v":0},{"$f":"unique_contracts!AN154","v":0},{"$f":"unique_contracts!AO154","v":0},{"$f":"unique_contracts!AP154","v":0},{"$f":"unique_contracts!AQ154","v":0},{"$f":"unique_contracts!AR154","v":0},{"$f":"unique_contracts!BP154","v":0},0,{"$f":"IFERROR(IF(AND(I153>0,E153=\"NotHybrid\"),_xlfn.CONCAT(MAX(MIN(ROUNDDOWN(I153/D153,0),8),4),INDEX(resources!$G:$G,MATCH(B153,resources!$A:$A,0))),INDEX(resources!$G:$G,MATCH(B153,resources!$A:$A,0))),\"n/a\")","v":"n/a"},"n/a","n/a",0,0,1,1,{"$f":"MIN((IFERROR(IF(AND($V153<=Z$1,$W153>=Z$1),INDEX(Reliability!E$23:E$50,MATCH($S153,Reliability!$C$23:$C$50,0)),0),0)*IF($T153=\"n/a\",$D153*$Y153,$G153)+IFERROR(IF(AND($V153<=Z$1,$W153>=Z$1),INDEX(Reliability!E$23:E$50,MATCH($T153,Reliability!$C$23:$C$50,0)),0),0)*$H153*$X153*$Y153),$D153)*$R153","v":0},{"$f":"MIN((IFERROR(IF(AND($V153<=AA$1,$W153>=AA$1),INDEX(Reliability!F$23:F$50,MATCH($S153,Reliability!$C$23:$C$50,0)),0),0)*IF($T153=\"n/a\",$D153*$Y153,$G153)+IFERROR(IF(AND($V153<=AA$1,$W153>=AA$1),INDEX(Reliability!F$23:F$50,MATCH($T153,Reliability!$C$23:$C$50,0)),0),0)*$H153*$X153*$Y153),$D153)*$R153","v":0},{"$f":"MIN((IFERROR(IF(AND($V153<=AB$1,$W153>=AB$1),INDEX(Reliability!G$23:G$50,MATCH($S153,Reliability!$C$23:$C$50,0)),0),0)*IF($T153=\"n/a\",$D153*$Y153,$G153)+IFERROR(IF(AND($V153<=AB$1,$W153>=AB$1),INDEX(Reliability!G$23:G$50,MATCH($T153,Reliability!$C$23:$C$50,0)),0),0)*$H153*$X153*$Y153),$D153)*$R153","v":0},{"$f":"MIN((IFERROR(IF(AND($V153<=AC$1,$W153>=AC$1),INDEX(Reliability!H$23:H$50,MATCH($S153,Reliability!$C$23:$C$50,0)),0),0)*IF($T153=\"n/a\",$D153*$Y153,$G153)+IFERROR(IF(AND($V153<=AC$1,$W153>=AC$1),INDEX(Reliability!H$23:H$50,MATCH($T153,Reliability!$C$23:$C$50,0)),0),0)*$H153*$X153*$Y153),$D153)*$R153","v":0},{"$f":"MIN((IFERROR(IF(AND($V153<=AD$1,$W153>=AD$1),INDEX(Reliability!I$23:I$50,MATCH($S153,Reliability!$C$23:$C$50,0)),0),0)*IF($T153=\"n/a\",$D153*$Y153,$G153)+IFERROR(IF(AND($V153<=AD$1,$W153>=AD$1),INDEX(Reliability!I$23:I$50,MATCH($T153,Reliability!$C$23:$C$50,0)),0),0)*$H153*$X153*$Y153),$D153)*$R153","v":0},{"$f":"MIN((IFERROR(IF(AND($V153<=AE$1,$W153>=AE$1),INDEX(Reliability!J$23:J$50,MATCH($S153,Reliability!$C$23:$C$50,0)),0),0)*IF($T153=\"n/a\",$D153*$Y153,$G153)+IFERROR(IF(AND($V153<=AE$1,$W153>=AE$1),INDEX(Reliability!J$23:J$50,MATCH($T153,Reliability!$C$23:$C$50,0)),0),0)*$H153*$X153*$Y153),$D153)*$R153","v":0},{"$f":"MIN((IFERROR(IF(AND($V153<=AF$1,$W153>=AF$1),INDEX(Reliability!K$23:K$50,MATCH($S153,Reliability!$C$23:$C$50,0)),0),0)*IF($T153=\"n/a\",$D153*$Y153,$G153)+IFERROR(IF(AND($V153<=AF$1,$W153>=AF$1),INDEX(Reliability!K$23:K$50,MATCH($T153,Reliability!$C$23:$C$50,0)),0),0)*$H153*$X153*$Y153),$D153)*$R153","v":0},{"$f":"MIN((IFERROR(IF(AND($V153<=AG$1,$W153>=AG$1),INDEX(Reliability!L$23:L$50,MATCH($S153,Reliability!$C$23:$C$50,0)),0),0)*IF($T153=\"n/a\",$D153*$Y153,$G153)+IFERROR(IF(AND($V153<=AG$1,$W153>=AG$1),INDEX(Reliability!L$23:L$50,MATCH($T153,Reliability!$C$23:$C$50,0)),0),0)*$H153*$X153*$Y153),$D153)*$R153","v":0},{"$f":"MIN((IFERROR(IF(AND($V153<=AH$1,$W153>=AH$1),INDEX(Reliability!M$23:M$50,MATCH($S153,Reliability!$C$23:$C$50,0)),0),0)*IF($T153=\"n/a\",$D153*$Y153,$G153)+IFERROR(IF(AND($V153<=AH$1,$W153>=AH$1),INDEX(Reliability!M$23:M$50,MATCH($T153,Reliability!$C$23:$C$50,0)),0),0)*$H153*$X153*$Y153),$D153)*$R153","v":0},{"$f":"MIN((IFERROR(IF(AND($V153<=AI$1,$W153>=AI$1),INDEX(Reliability!N$23:N$50,MATCH($S153,Reliability!$C$23:$C$50,0)),0),0)*IF($T153=\"n/a\",$D153*$Y153,$G153)+IFERROR(IF(AND($V153<=AI$1,$W153>=AI$1),INDEX(Reliability!N$23:N$50,MATCH($T153,Reliability!$C$23:$C$50,0)),0),0)*$H153*$X153*$Y153),$D153)*$R153","v":0},{"$f":"MIN((IFERROR(IF(AND($V153<=AJ$1,$W153>=AJ$1),INDEX(Reliability!O$23:O$50,MATCH($S153,Reliability!$C$23:$C$50,0)),0),0)*IF($T153=\"n/a\",$D153*$Y153,$G153)+IFERROR(IF(AND($V153<=AJ$1,$W153>=AJ$1),INDEX(Reliability!O$23:O$50,MATCH($T153,Reliability!$C$23:$C$50,0)),0),0)*$H153*$X153*$Y153),$D153)*$R153","v":0},{"$f":"MIN((IFERROR(IF(AND($V153<=AK$1,$W153>=AK$1),INDEX(Reliability!P$23:P$50,MATCH($S153,Reliability!$C$23:$C$50,0)),0),0)*IF($T153=\"n/a\",$D153*$Y153,$G153)+IFERROR(IF(AND($V153<=AK$1,$W153>=AK$1),INDEX(Reliability!P$23:P$50,MATCH($T153,Reliability!$C$23:$C$50,0)),0),0)*$H153*$X153*$Y153),$D153)*$R153","v":0}]
[null,{"$f":"unique_contracts!B155","v":0},{"$f":"unique_contracts!D155","v":0},{"$f":"unique_contracts!J155","v":0},{"$f":"unique_contracts!M155","v":0},{"$f":"unique_contracts!N155","v":0},{"$f":"unique_contracts!P155","v":0},{"$f":"unique_contracts!R155","v":0},{"$f":"unique_contracts!V155","v":0},{"$f":"unique_contracts!AB155","v":0},{"$f":"unique_contracts!AM155","v":0},{"$f":"unique_contracts!AN155","v":0},{"$f":"unique_contracts!AO155","v":0},{"$f":"unique_contracts!AP155","v":0},{"$f":"unique_contracts!AQ155","v":0},{"$f":"unique_contracts!AR155","v":0},{"$f":"unique_contracts!BP155","v":0},0,{"$f":"IFERROR(IF(AND(I154>0,E154=\"NotHybrid\"),_xlfn.CONCAT(MAX(MIN(ROUNDDOWN(I154/D154,0),8),4),INDEX(resources!$G:$G,MATCH(B154,resources!$A:$A,0))),INDEX(resources!$G:$G,MATCH(B154,resources!$A:$A,0))),\"n/a\")","v":"n/a"},"n/a","n/a",0,0,1,1,{"$f":"MIN((IFERROR(IF(AND($V154<=Z$1,$W154>=Z$1),INDEX(Reliability!E$23:E$50,MATCH($S154,Reliability!$C$23:$C$50,0)),0),0)*IF($T154=\"n/a\",$D154*$Y154,$G154)+IFERROR(IF(AND($V154<=Z$1,$W154>=Z$1),INDEX(Reliability!E$23:E$50,MATCH($T154,Reliability!$C$23:$C$50,0)),0),0)*$H154*$X154*$Y154),$D154)*$R154","v":0},{"$f":"MIN((IFERROR(IF(AND($V154<=AA$1,$W154>=AA$1),INDEX(Reliability!F$23:F$50,MATCH($S154,Reliability!$C$23:$C$50,0)),0),0)*IF($T154=\"n/a\",$D154*$Y154,$G154)+IFERROR(IF(AND($V154<=AA$1,$W154>=AA$1),INDEX(Reliability!F$23:F$50,MATCH($T154,Reliability!$C$23:$C$50,0)),0),0)*$H154*$X154*$Y154),$D154)*$R154","v":0},{"$f":"MIN((IFERROR(IF(AND($V154<=AB$1,$W154>=AB$1),INDEX(Reliability!G$23:G$50,MATCH($S154,Reliability!$C$23:$C$50,0)),0),0)*IF($T154=\"n/a\",$D154*$Y154,$G154)+IFERROR(IF(AND($V154<=AB$1,$W154>=AB$1),INDEX(Reliability!G$23:G$50,MATCH($T154,Reliability!$C$23:$C$50,0)),0),0)*$H154*$X154*$Y154),$D154)*$R154","v":0},{"$f":"MIN((IFERROR(IF(AND($V154<=AC$1,$W154>=AC$1),INDEX(Reliability!H$23:H$50,MATCH($S154,Reliability!$C$23:$C$50,0)),0),0)*IF($T154=\"n/a\",$D154*$Y154,$G154)+IFERROR(IF(AND($V154<=AC$1,$W154>=AC$1),INDEX(Reliability!H$23:H$50,MATCH($T154,Reliability!$C$23:$C$50,0)),0),0)*$H154*$X154*$Y154),$D154)*$R154","v":0},{"$f":"MIN((IFERROR(IF(AND($V154<=AD$1,$W154>=AD$1),INDEX(Reliability!I$23:I$50,MATCH($S154,Reliability!$C$23:$C$50,0)),0),0)*IF($T154=\"n/a\",$D154*$Y154,$G154)+IFERROR(IF(AND($V154<=AD$1,$W154>=AD$1),INDEX(Reliability!I$23:I$50,MATCH($T154,Reliability!$C$23:$C$50,0)),0),0)*$H154*$X154*$Y154),$D154)*$R154","v":0},{"$f":"MIN((IFERROR(IF(AND($V154<=AE$1,$W154>=AE$1),INDEX(Reliability!J$23:J$50,MATCH($S154,Reliability!$C$23:$C$50,0)),0),0)*IF($T154=\"n/a\",$D154*$Y154,$G154)+IFERROR(IF(AND($V154<=AE$1,$W154>=AE$1),INDEX(Reliability!J$23:J$50,MATCH($T154,Reliability!$C$23:$C$50,0)),0),0)*$H154*$X154*$Y154),$D154)*$R154","v":0},{"$f":"MIN((IFERROR(IF(AND($V154<=AF$1,$W154>=AF$1),INDEX(Reliability!K$23:K$50,MATCH($S154,Reliability!$C$23:$C$50,0)),0),0)*IF($T154=\"n/a\",$D154*$Y154,$G154)+IFERROR(IF(AND($V154<=AF$1,$W154>=AF$1),INDEX(Reliability!K$23:K$50,MATCH($T154,Reliability!$C$23:$C$50,0)),0),0)*$H154*$X154*$Y154),$D154)*$R154","v":0},{"$f":"MIN((IFERROR(IF(AND($V154<=AG$1,$W154>=AG$1),INDEX(Reliability!L$23:L$50,MATCH($S154,Reliability!$C$23:$C$50,0)),0),0)*IF($T154=\"n/a\",$D154*$Y154,$G154)+IFERROR(IF(AND($V154<=AG$1,$W154>=AG$1),INDEX(Reliability!L$23:L$50,MATCH($T154,Reliability!$C$23:$C$50,0)),0),0)*$H154*$X154*$Y154),$D154)*$R154","v":0},{"$f":"MIN((IFERROR(IF(AND($V154<=AH$1,$W154>=AH$1),INDEX(Reliability!M$23:M$50,MATCH($S154,Reliability!$C$23:$C$50,0)),0),0)*IF($T154=\"n/a\",$D154*$Y154,$G154)+IFERROR(IF(AND($V154<=AH$1,$W154>=AH$1),INDEX(Reliability!M$23:M$50,MATCH($T154,Reliability!$C$23:$C$50,0)),0),0)*$H154*$X154*$Y154),$D154)*$R154","v":0},{"$f":"MIN((IFERROR(IF(AND($V154<=AI$1,$W154>=AI$1),INDEX(Reliability!N$23:N$50,MATCH($S154,Reliability!$C$23:$C$50,0)),0),0)*IF($T154=\"n/a\",$D154*$Y154,$G154)+IFERROR(IF(AND($V154<=AI$1,$W154>=AI$1),INDEX(Reliability!N$23:N$50,MATCH($T154,Reliability!$C$23:$C$50,0)),0),0)*$H154*$X154*$Y154),$D154)*$R154","v":0},{"$f":"MIN((IFERROR(IF(AND($V154<=AJ$1,$W154>=AJ$1),INDEX(Reliability!O$23:O$50,MATCH($S154,Reliability!$C$23:$C$50,0)),0),0)*IF($T154=\"n/a\",$D154*$Y154,$G154)+IFERROR(IF(AND($V154<=AJ$1,$W154>=AJ$1),INDEX(Reliability!O$23:O$50,MATCH($T154,Reliability!$C$23:$C$50,0)),0),0)*$H154*$X154*$Y154),$D154)*$R154","v":0},{"$f":"MIN((IFERROR(IF(AND($V154<=AK$1,$W154>=AK$1),INDEX(Reliability!P$23:P$50,MATCH($S154,Reliability!$C$23:$C$50,0)),0),0)*IF($T154=\"n/a\",$D154*$Y154,$G154)+IFERROR(IF(AND($V154<=AK$1,$W154>=AK$1),INDEX(Reliability!P$23:P$50,MATCH($T154,Reliability!$C$23:$C$50,0)),0),0)*$H154*$X154*$Y154),$D154)*$R154","v":0}]
[null,{"$f":"unique_contracts!B156","v":0},{"$f":"unique_contracts!D156","v":0},{"$f":"unique_contracts!J156","v":0},{"$f":"unique_contracts!M156","v":0},{"$f":"unique_contracts!N156","v":0},{"$f":"unique_contracts!P156","v":0},{"$f":"unique_contracts!R156","v":0},{"$f":"unique_contracts!V156","v":0},{"$f":"unique_contracts!AB156","v":0},{"$f":"unique_contracts!AM156","v":0},{"$f":"unique_contracts!AN156","v":0},{"$f":"unique_contracts!AO156","v":0},{"$f":"unique_contracts!AP156","v":0},{"$f":"unique_contracts!AQ156","v":0},{"$f":"unique_contracts!AR156","v":0},{"$f":"unique_contracts!BP156","v":0},{"$f":"IF(AND(J155=\"Sell\",ISNUMBER(SEARCH(\"Capacity\",Q155))),-1,IF(AND(NOT(J155=\"Sell\"),ISNUMBER(SEARCH(\"Capacity\",Q155))),1,0))","v":0},{"$f":"IFERROR(IF(AND(I155>0,E155=\"NotHybrid\"),_xlfn.CONCAT(MAX(MIN(ROUNDDOWN(I155/D155,0),8),4),INDEX(resources!$G:$G,MATCH(B155,resources!$A:$A,0))),INDEX(resources!$G:$G,MATCH(B155,resources!$A:$A,0))),\"n/a\")","v":"n/a"},{"$f":"IFERROR(IF(NOT(E155=\"NotHybrid\"),_xlfn.CONCAT(MAX(MIN(ROUNDDOWN(I155/H155,0),8),4),\"hr_batteries\"),\"n/a\"),\"n/a\")","v":"n/a"},{"$f":"IF(T155=\"n/a\",S155,\"hybrid\")","v":"n/a"},{"$f":"IFERROR(IF(DATE(K155,L155,M155)<=DATE(K155,6,1),K155,K155+1),0)","v":0},{"$f":"IFERROR(IF(DATE(N155,O155,P155)>=DATE(N155,10,1),N155,N155-1),0)","v":0},{"$f":"IF(OR(T155=\"n/a\",NOT(F155=\"NO\")),100%,IF(ISNUMBER(SEARCH(\"pv\",S155)),MIN(G155/(1*(ROUNDDOWN(I155/H155,0)/4)),H155)/H155,IF(ISNUMBER(SEARCH(\"wind\",S155)),MIN(G155/(2*(ROUNDDOWN(I155/H155,0)/4)),H155)/H155,1)))","v":1},{"$f":"IF(ISNUMBER(SEARCH(\"batteries\",S155)),MIN(ROUNDDOWN(I155/D155,0)/4,1), IF(ISNUMBER(SEARCH(\"batteries\",T155)),MIN(ROUNDDOWN(I155/H155,0)/4,1),1))","v":1},{"$f":"MIN((IFERROR(IF(AND($V155<=Z$1,$W155>=Z$1),INDEX(Reliability!E$23:E$50,MATCH($S155,Reliability!$C$23:$C$50,0)),0),0)*IF($T155=\"n/a\",$D155*$Y155,$G155)+IFERROR(IF(AND($V155<=Z$1,$W155>=Z$1),INDEX(Reliability!E$23:E$50,MATCH($T155,Reliability!$C$23:$C$50,0)),0),0)*$H155*$X155*$Y155),$D155)*$R155","v":0},{"$f":"MIN((IFERROR(IF(AND($V155<=AA$1,$W155>=AA$1),INDEX(Reliability!F$23:F$50,MATCH($S155,Reliability!$C$23:$C$50,0)),0),0)*IF($T155=\"n/a\",$D155*$Y155,$G155)+IFERROR(IF(AND($V155<=AA$1,$W155>=AA$1),INDEX(Reliability!F$23:F$50,MATCH($T155,Reliability!$C$23:$C$50,0)),0),0)*$H155*$X155*$Y155),$D155)*$R155","v":0},{"$f":"MIN((IFERROR(IF(AND($V155<=AB$1,$W155>=AB$1),INDEX(Reliability!G$23:G$50,MATCH($S155,Reliability!$C$23:$C$50,0)),0),0)*IF($T155=\"n/a\",$D155*$Y155,$G155)+IFERROR(IF(AND($V155<=AB$1,$W155>=AB$1),INDEX(Reliability!G$23:G$50,MATCH($T155,Reliability!$C$23:$C$50,0)),0),0)*$H155*$X155*$Y155),$D155)*$R155","v":0},{"$f":"MIN((IFERROR(IF(AND($V155<=AC$1,$W155>=AC$1),INDEX(Reliability!H$23:H$50,MATCH($S155,Reliability!$C$23:$C$50,0)),0),0)*IF($T155=\"n/a\",$D155*$Y155,$G155)+IFERROR(IF(AND($V155<=AC$1,$W155>=AC$1),INDEX(Reliability!H$23:H$50,MATCH($T155,Reliability!$C$23:$C$50,0)),0),0)*$H155*$X155*$Y155),$D155)*$R155","v":0},{"$f":"MIN((IFERROR(IF(AND($V155<=AD$1,$W155>=AD$1),INDEX(Reliability!I$23:I$50,MATCH($S155,Reliability!$C$23:$C$50,0)),0),0)*IF($T155=\"n/a\",$D155*$Y155,$G155)+IFERROR(IF(AND($V155<=AD$1,$W155>=AD$1),INDEX(Reliability!I$23:I$50,MATCH($T155,Reliability!$C$23:$C$50,0)),0),0)*$H155*$X155*$Y155),$D155)*$R155","v":0},{"$f":"MIN((IFERROR(IF(AND($V155<=AE$1,$W155>=AE$1),INDEX(Reliability!J$23:J$50,MATCH($S155,Reliability!$C$23:$C$50,0)),0),0)*IF($T155=\"n/a\",$D155*$Y155,$G155)+IFERROR(IF(AND($V155<=AE$1,$W155>=AE$1),INDEX(Reliability!J$23:J$50,MATCH($T155,Reliability!$C$23:$C$50,0)),0),0)*$H155*$X155*$Y155),$D155)*$R155","v":0},{"$f":"MIN((IFERROR(IF(AND($V155<=AF$1,$W155>=AF$1),INDEX(Reliability!K$23:K$50,MATCH($S155,Reliability!$C$23:$C$50,0)),0),0)*IF($T155=\"n/a\",$D155*$Y155,$G155)+IFERROR(IF(AND($V155<=AF$1,$W155>=AF$1),INDEX(Reliability!K$23:K$50,MATCH($T155,Reliability!$C$23:$C$50,0)),0),0)*$H155*$X155*$Y155),$D155)*$R155","v":0},{"$f":"MIN((IFERROR(IF(AND($V155<=AG$1,$W155>=AG$1),INDEX(Reliability!L$23:L$50,MATCH($S155,Reliability!$C$23:$C$50,0)),0),0)*IF($T155=\"n/a\",$D155*$Y155,$G155)+IFERROR(IF(AND($V155<=AG$1,$W155>=AG$1),INDEX(Reliability!L$23:L$50,MATCH($T155,Reliability!$C$23:$C$50,0)),0),0)*$H155*$X155*$Y155),$D155)*$R155","v":0},{"$f":"MIN((IFERROR(IF(AND($V155<=AH$1,$W155>=AH$1),INDEX(Reliability!M$23:M$50,MATCH($S155,Reliability!$C$23:$C$50,0)),0),0)*IF($T155=\"n/a\",$D155*$Y155,$G155)+IFERROR(IF(AND($V155<=AH$1,$W155>=AH$1),INDEX(Reliability!M$23:M$50,MATCH($T155,Reliability!$C$23:$C$50,0)),0),0)*$H155*$X155*$Y155),$D155)*$R155","v":0},{"$f":"MIN((IFERROR(IF(AND($V155<=AI$1,$W155>=AI$1),INDEX(Reliability!N$23:N$50,MATCH($S155,Reliability!$C$23:$C$50,0)),0),0)*IF($T155=\"n/a\",$D155*$Y155,$G155)+IFERROR(IF(AND($V155<=AI$1,$W155>=AI$1),INDEX(Reliability!N$23:N$50,MATCH($T155,Reliability!$C$23:$C$50,0)),0),0)*$H155*$X155*$Y155),$D155)*$R155","v":0},{"$f":"MIN((IFERROR(IF(AND($V155<=AJ$1,$W155>=AJ$1),INDEX(Reliability!O$23:O$50,MATCH($S155,Reliability!$C$23:$C$50,0)),0),0)*IF($T155=\"n/a\",$D155*$Y155,$G155)+IFERROR(IF(AND($V155<=AJ$1,$W155>=AJ$1),INDEX(Reliability!O$23:O$50,MATCH($T155,Reliability!$C$23:$C$50,0)),0),0)*$H155*$X155*$Y155),$D155)*$R155","v":0},{"$f":"MIN((IFERROR(IF(AND($V155<=AK$1,$W155>=AK$1),INDEX(Reliability!P$23:P$50,MATCH($S155,Reliability!$C$23:$C$50,0)),0),0)*IF($T155=\"n/a\",$D155*$Y155,$G155)+IFERROR(IF(AND($V155<=AK$1,$W155>=AK$1),INDEX(Reliability!P$23:P$50,MATCH($T155,Reliability!$C$23:$C$50,0)),0),0)*$H155*$X155*$Y155),$D155)*$R155","v":0}]
[null,{"$f":"unique_contracts!B157","v":0},{"$f":"unique_contracts!D157","v":0},{"$f":"unique_contracts!J157","v":0},{"$f":"unique_contracts!M157","v":0},{"$f":"unique_contracts!N157","v":0},{"$f":"unique_contracts!P157","v":0},{"$f":"unique_contracts!R157","v":0},{"$f":"unique_contracts!V157","v":0},{"$f":"unique_contracts!AB157","v":0},{"$f":"unique_contracts!AM157","v":0},{"$f":"unique_contracts!AN157","v":0},{"$f":"unique_contracts!AO157","v":0},{"$f":"unique_contracts!AP157","v":0},{"$f":"unique_contracts!AQ157","v":0},{"$f":"unique_contracts!AR157","v":0},{"$f":"unique_contracts!BP157","v":0},0,{"$f":"IFERROR(IF(AND(I156>0,E156=\"NotHybrid\"),_xlfn.CONCAT(MAX(MIN(ROUNDDOWN(I156/D156,0),8),4),INDEX(resources!$G:$G,MATCH(B156,resources!$A:$A,0))),INDEX(resources!$G:$G,MATCH(B156,resources!$A:$A,0))),\"n/a\")","v":"n/a"},"n/a","n/a",0,0,1,1,{"$f":"MIN((IFERROR(IF(AND($V156<=Z$1,$W156>=Z$1),INDEX(Reliability!E$23:E$50,MATCH($S156,Reliability!$C$23:$C$50,0)),0),0)*IF($T156=\"n/a\",$D156*$Y156,$G156)+IFERROR(IF(AND($V156<=Z$1,$W156>=Z$1),INDEX(Reliability!E$23:E$50,MATCH($T156,Reliability!$C$23:$C$50,0)),0),0)*$H156*$X156*$Y156),$D156)*$R156","v":0},{"$f":"MIN((IFERROR(IF(AND($V156<=AA$1,$W156>=AA$1),INDEX(Reliability!F$23:F$50,MATCH($S156,Reliability!$C$23:$C$50,0)),0),0)*IF($T156=\"n/a\",$D156*$Y156,$G156)+IFERROR(IF(AND($V156<=AA$1,$W156>=AA$1),INDEX(Reliability!F$23:F$50,MATCH($T156,Reliability!$C$23:$C$50,0)),0),0)*$H156*$X156*$Y156),$D156)*$R156","v":0},{"$f":"MIN((IFERROR(IF(AND($V156<=AB$1,$W156>=AB$1),INDEX(Reliability!G$23:G$50,MATCH($S156,Reliability!$C$23:$C$50,0)),0),0)*IF($T156=\"n/a\",$D156*$Y156,$G156)+IFERROR(IF(AND($V156<=AB$1,$W156>=AB$1),INDEX(Reliability!G$23:G$50,MATCH($T156,Reliability!$C$23:$C$50,0)),0),0)*$H156*$X156*$Y156),$D156)*$R156","v":0},{"$f":"MIN((IFERROR(IF(AND($V156<=AC$1,$W156>=AC$1),INDEX(Reliability!H$23:H$50,MATCH($S156,Reliability!$C$23:$C$50,0)),0),0)*IF($T156=\"n/a\",$D156*$Y156,$G156)+IFERROR(IF(AND($V156<=AC$1,$W156>=AC$1),INDEX(Reliability!H$23:H$50,MATCH($T156,Reliability!$C$23:$C$50,0)),0),0)*$H156*$X156*$Y156),$D156)*$R156","v":0},{"$f":"MIN((IFERROR(IF(AND($V156<=AD$1,$W156>=AD$1),INDEX(Reliability!I$23:I$50,MATCH($S156,Reliability!$C$23:$C$50,0)),0),0)*IF($T156=\"n/a\",$D156*$Y156,$G156)+IFERROR(IF(AND($V156<=AD$1,$W156>=AD$1),INDEX(Reliability!I$23:I$50,MATCH($T156,Reliability!$C$23:$C$50,0)),0),0)*$H156*$X156*$Y156),$D156)*$R156","v":0},{"$f":"MIN((IFERROR(IF(AND($V156<=AE$1,$W156>=AE$1),INDEX(Reliability!J$23:J$50,MATCH($S156,Reliability!$C$23:$C$50,0)),0),0)*IF($T156=\"n/a\",$D156*$Y156,$G156)+IFERROR(IF(AND($V156<=AE$1,$W156>=AE$1),INDEX(Reliability!J$23:J$50,MATCH($T156,Reliability!$C$23:$C$50,0)),0),0)*$H156*$X156*$Y156),$D156)*$R156","v":0},{"$f":"MIN((IFERROR(IF(AND($V156<=AF$1,$W156>=AF$1),INDEX(Reliability!K$23:K$50,MATCH($S156,Reliability!$C$23:$C$50,0)),0),0)*IF($T156=\"n/a\",$D156*$Y156,$G156)+IFERROR(IF(AND($V156<=AF$1,$W156>=AF$1),INDEX(Reliability!K$23:K$50,MATCH($T156,Reliability!$C$23:$C$50,0)),0),0)*$H156*$X156*$Y156),$D156)*$R156","v":0},{"$f":"MIN((IFERROR(IF(AND($V156<=AG$1,$W156>=AG$1),INDEX(Reliability!L$23:L$50,MATCH($S156,Reliability!$C$23:$C$50,0)),0),0)*IF($T156=\"n/a\",$D156*$Y156,$G156)+IFERROR(IF(AND($V156<=AG$1,$W156>=AG$1),INDEX(Reliability!L$23:L$50,MATCH($T156,Reliability!$C$23:$C$50,0)),0),0)*$H156*$X156*$Y156),$D156)*$R156","v":0},{"$f":"MIN((IFERROR(IF(AND($V156<=AH$1,$W156>=AH$1),INDEX(Reliability!M$23:M$50,MATCH($S156,Reliability!$C$23:$C$50,0)),0),0)*IF($T156=\"n/a\",$D156*$Y156,$G156)+IFERROR(IF(AND($V156<=AH$1,$W156>=AH$1),INDEX(Reliability!M$23:M$50,MATCH($T156,Reliability!$C$23:$C$50,0)),0),0)*$H156*$X156*$Y156),$D156)*$R156","v":0},{"$f":"MIN((IFERROR(IF(AND($V156<=AI$1,$W156>=AI$1),INDEX(Reliability!N$23:N$50,MATCH($S156,Reliability!$C$23:$C$50,0)),0),0)*IF($T156=\"n/a\",$D156*$Y156,$G156)+IFERROR(IF(AND($V156<=AI$1,$W156>=AI$1),INDEX(Reliability!N$23:N$50,MATCH($T156,Reliability!$C$23:$C$50,0)),0),0)*$H156*$X156*$Y156),$D156)*$R156","v":0},{"$f":"MIN((IFERROR(IF(AND($V156<=AJ$1,$W156>=AJ$1),INDEX(Reliability!O$23:O$50,MATCH($S156,Reliability!$C$23:$C$50,0)),0),0)*IF($T156=\"n/a\",$D156*$Y156,$G156)+IFERROR(IF(AND($V156<=AJ$1,$W156>=AJ$1),INDEX(Reliability!O$23:O$50,MATCH($T156,Reliability!$C$23:$C$50,0)),0),0)*$H156*$X156*$Y156),$D156)*$R156","v":0},{"$f":"MIN((IFERROR(IF(AND($V156<=AK$1,$W156>=AK$1),INDEX(Reliability!P$23:P$50,MATCH($S156,Reliability!$C$23:$C$50,0)),0),0)*IF($T156=\"n/a\",$D156*$Y156,$G156)+IFERROR(IF(AND($V156<=AK$1,$W156>=AK$1),INDEX(Reliability!P$23:P$50,MATCH($T156,Reliability!$C$23:$C$50,0)),0),0)*$H156*$X156*$Y156),$D156)*$R156","v":0}]
[null,{"$f":"unique_contracts!B158","v":0},{"$f":"unique_contracts!D158","v":0},{"$f":"unique_contracts!J158","v":0},{"$f":"unique_contracts!M158","v":0},{"$f":"unique_contracts!N158","v":0},{"$f":"unique_contracts!P158","v":0},{"$f":"unique_contracts!R158","v":0},{"$f":"unique_contracts!V158","v":0},{"$f":"unique_contracts!AB158","v":0},{"$f":"unique_contracts!AM158","v":0},{"$f":"unique_contracts!AN158","v":0},{"$f":"unique_contracts!AO158","v":0},{"$f":"unique_contracts!AP158","v":0},{"$f":"unique_contracts!AQ158","v":0},{"$f":"unique_contracts!AR158","v":0},{"$f":"unique_contracts!BP158","v":0},0,{"$f":"IFERROR(IF(AND(I157>0,E157=\"NotHybrid\"),_xlfn.CONCAT(MAX(MIN(ROUNDDOWN(I157/D157,0),8),4),INDEX(resources!$G:$G,MATCH(B157,resources!$A:$A,0))),INDEX(resources!$G:$G,MATCH(B157,resources!$A:$A,0))),\"n/a\")","v":"n/a"},"n/a","n/a",0,0,1,1,{"$f":"MIN((IFERROR(IF(AND($V157<=Z$1,$W157>=Z$1),INDEX(Reliability!E$23:E$50,MATCH($S157,Reliability!$C$23:$C$50,0)),0),0)*IF($T157=\"n/a\",$D157*$Y157,$G157)+IFERROR(IF(AND($V157<=Z$1,$W157>=Z$1),INDEX(Reliability!E$23:E$50,MATCH($T157,Reliability!$C$23:$C$50,0)),0),0)*$H157*$X157*$Y157),$D157)*$R157","v":0},{"$f":"MIN((IFERROR(IF(AND($V157<=AA$1,$W157>=AA$1),INDEX(Reliability!F$23:F$50,MATCH($S157,Reliability!$C$23:$C$50,0)),0),0)*IF($T157=\"n/a\",$D157*$Y157,$G157)+IFERROR(IF(AND($V157<=AA$1,$W157>=AA$1),INDEX(Reliability!F$23:F$50,MATCH($T157,Reliability!$C$23:$C$50,0)),0),0)*$H157*$X157*$Y157),$D157)*$R157","v":0},{"$f":"MIN((IFERROR(IF(AND($V157<=AB$1,$W157>=AB$1),INDEX(Reliability!G$23:G$50,MATCH($S157,Reliability!$C$23:$C$50,0)),0),0)*IF($T157=\"n/a\",$D157*$Y157,$G157)+IFERROR(IF(AND($V157<=AB$1,$W157>=AB$1),INDEX(Reliability!G$23:G$50,MATCH($T157,Reliability!$C$23:$C$50,0)),0),0)*$H157*$X157*$Y157),$D157)*$R157","v":0},{"$f":"MIN((IFERROR(IF(AND($V157<=AC$1,$W157>=AC$1),INDEX(Reliability!H$23:H$50,MATCH($S157,Reliability!$C$23:$C$50,0)),0),0)*IF($T157=\"n/a\",$D157*$Y157,$G157)+IFERROR(IF(AND($V157<=AC$1,$W157>=AC$1),INDEX(Reliability!H$23:H$50,MATCH($T157,Reliability!$C$23:$C$50,0)),0),0)*$H157*$X157*$Y157),$D157)*$R157","v":0},{"$f":"MIN((IFERROR(IF(AND($V157<=AD$1,$W157>=AD$1),INDEX(Reliability!I$23:I$50,MATCH($S157,Reliability!$C$23:$C$50,0)),0),0)*IF($T157=\"n/a\",$D157*$Y157,$G157)+IFERROR(IF(AND($V157<=AD$1,$W157>=AD$1),INDEX(Reliability!I$23:I$50,MATCH($T157,Reliability!$C$23:$C$50,0)),0),0)*$H157*$X157*$Y157),$D157)*$R157","v":0},{"$f":"MIN((IFERROR(IF(AND($V157<=AE$1,$W157>=AE$1),INDEX(Reliability!J$23:J$50,MATCH($S157,Reliability!$C$23:$C$50,0)),0),0)*IF($T157=\"n/a\",$D157*$Y157,$G157)+IFERROR(IF(AND($V157<=AE$1,$W157>=AE$1),INDEX(Reliability!J$23:J$50,MATCH($T157,Reliability!$C$23:$C$50,0)),0),0)*$H157*$X157*$Y157),$D157)*$R157","v":0},{"$f":"MIN((IFERROR(IF(AND($V157<=AF$1,$W157>=AF$1),INDEX(Reliability!K$23:K$50,MATCH($S157,Reliability!$C$23:$C$50,0)),0),0)*IF($T157=\"n/a\",$D157*$Y157,$G157)+IFERROR(IF(AND($V157<=AF$1,$W157>=AF$1),INDEX(Reliability!K$23:K$50,MATCH($T157,Reliability!$C$23:$C$50,0)),0),0)*$H157*$X157*$Y157),$D157)*$R157","v":0},{"$f":"MIN((IFERROR(IF(AND($V157<=AG$1,$W157>=AG$1),INDEX(Reliability!L$23:L$50,MATCH($S157,Reliability!$C$23:$C$50,0)),0),0)*IF($T157=\"n/a\",$D157*$Y157,$G157)+IFERROR(IF(AND($V157<=AG$1,$W157>=AG$1),INDEX(Reliability!L$23:L$50,MATCH($T157,Reliability!$C$23:$C$50,0)),0),0)*$H157*$X157*$Y157),$D157)*$R157","v":0},{"$f":"MIN((IFERROR(IF(AND($V157<=AH$1,$W157>=AH$1),INDEX(Reliability!M$23:M$50,MATCH($S157,Reliability!$C$23:$C$50,0)),0),0)*IF($T157=\"n/a\",$D157*$Y157,$G157)+IFERROR(IF(AND($V157<=AH$1,$W157>=AH$1),INDEX(Reliability!M$23:M$50,MATCH($T157,Reliability!$C$23:$C$50,0)),0),0)*$H157*$X157*$Y157),$D157)*$R157","v":0},{"$f":"MIN((IFERROR(IF(AND($V157<=AI$1,$W157>=AI$1),INDEX(Reliability!N$23:N$50,MATCH($S157,Reliability!$C$23:$C$50,0)),0),0)*IF($T157=\"n/a\",$D157*$Y157,$G157)+IFERROR(IF(AND($V157<=AI$1,$W157>=AI$1),INDEX(Reliability!N$23:N$50,MATCH($T157,Reliability!$C$23:$C$50,0)),0),0)*$H157*$X157*$Y157),$D157)*$R157","v":0},{"$f":"MIN((IFERROR(IF(AND($V157<=AJ$1,$W157>=AJ$1),INDEX(Reliability!O$23:O$50,MATCH($S157,Reliability!$C$23:$C$50,0)),0),0)*IF($T157=\"n/a\",$D157*$Y157,$G157)+IFERROR(IF(AND($V157<=AJ$1,$W157>=AJ$1),INDEX(Reliability!O$23:O$50,MATCH($T157,Reliability!$C$23:$C$50,0)),0),0)*$H157*$X157*$Y157),$D157)*$R157","v":0},{"$f":"MIN((IFERROR(IF(AND($V157<=AK$1,$W157>=AK$1),INDEX(Reliability!P$23:P$50,MATCH($S157,Reliability!$C$23:$C$50,0)),0),0)*IF($T157=\"n/a\",$D157*$Y157,$G157)+IFERROR(IF(AND($V157<=AK$1,$W157>=AK$1),INDEX(Reliability!P$23:P$50,MATCH($T157,Reliability!$C$23:$C$50,0)),0),0)*$H157*$X157*$Y157),$D157)*$R157","v":0}]
[null,{"$f":"unique_contracts!B159","v":0},{"$f":"unique_contracts!D159","v":0},{"$f":"unique_contracts!J159","v":0},{"$f":"unique_contracts!M159","v":0},{"$f":"unique_contracts!N159","v":0},{"$f":"unique_contracts!P159","v":0},{"$f":"unique_contracts!R159","v":0},{"$f":"unique_contracts!V159","v":0},{"$f":"unique_contracts!AB159","v":0},{"$f":"unique_contracts!AM159","v":0},{"$f":"unique_contracts!AN159","v":0},{"$f":"unique_contracts!AO159","v":0},{"$f":"unique_contracts!AP159","v":0},{"$f":"unique_contracts!AQ159","v":0},{"$f":"unique_contracts!AR159","v":0},{"$f":"unique_contracts!BP159","v":0},0,{"$f":"IFERROR(IF(AND(I158>0,E158=\"NotHybrid\"),_xlfn.CONCAT(MAX(MIN(ROUNDDOWN(I158/D158,0),8),4),INDEX(resources!$G:$G,MATCH(B158,resources!$A:$A,0))),INDEX(resources!$G:$G,MATCH(B158,resources!$A:$A,0))),\"n/a\")","v":"n/a"},"n/a","n/a",0,0,1,1,{"$f":"MIN((IFERROR(IF(AND($V158<=Z$1,$W158>=Z$1),INDEX(Reliability!E$23:E$50,MATCH($S158,Reliability!$C$23:$C$50,0)),0),0)*IF($T158=\"n/a\",$D158*$Y158,$G158)+IFERROR(IF(AND($V158<=Z$1,$W158>=Z$1),INDEX(Reliability!E$23:E$50,MATCH($T158,Reliability!$C$23:$C$50,0)),0),0)*$H158*$X158*$Y158),$D158)*$R158","v":0},{"$f":"MIN((IFERROR(IF(AND($V158<=AA$1,$W158>=AA$1),INDEX(Reliability!F$23:F$50,MATCH($S158,Reliability!$C$23:$C$50,0)),0),0)*IF($T158=\"n/a\",$D158*$Y158,$G158)+IFERROR(IF(AND($V158<=AA$1,$W158>=AA$1),INDEX(Reliability!F$23:F$50,MATCH($T158,Reliability!$C$23:$C$50,0)),0),0)*$H158*$X158*$Y158),$D158)*$R158","v":0},{"$f":"MIN((IFERROR(IF(AND($V158<=AB$1,$W158>=AB$1),INDEX(Reliability!G$23:G$50,MATCH($S158,Reliability!$C$23:$C$50,0)),0),0)*IF($T158=\"n/a\",$D158*$Y158,$G158)+IFERROR(IF(AND($V158<=AB$1,$W158>=AB$1),INDEX(Reliability!G$23:G$50,MATCH($T158,Reliability!$C$23:$C$50,0)),0),0)*$H158*$X158*$Y158),$D158)*$R158","v":0},{"$f":"MIN((IFERROR(IF(AND($V158<=AC$1,$W158>=AC$1),INDEX(Reliability!H$23:H$50,MATCH($S158,Reliability!$C$23:$C$50,0)),0),0)*IF($T158=\"n/a\",$D158*$Y158,$G158)+IFERROR(IF(AND($V158<=AC$1,$W158>=AC$1),INDEX(Reliability!H$23:H$50,MATCH($T158,Reliability!$C$23:$C$50,0)),0),0)*$H158*$X158*$Y158),$D158)*$R158","v":0},{"$f":"MIN((IFERROR(IF(AND($V158<=AD$1,$W158>=AD$1),INDEX(Reliability!I$23:I$50,MATCH($S158,Reliability!$C$23:$C$50,0)),0),0)*IF($T158=\"n/a\",$D158*$Y158,$G158)+IFERROR(IF(AND($V158<=AD$1,$W158>=AD$1),INDEX(Reliability!I$23:I$50,MATCH($T158,Reliability!$C$23:$C$50,0)),0),0)*$H158*$X158*$Y158),$D158)*$R158","v":0},{"$f":"MIN((IFERROR(IF(AND($V158<=AE$1,$W158>=AE$1),INDEX(Reliability!J$23:J$50,MATCH($S158,Reliability!$C$23:$C$50,0)),0),0)*IF($T158=\"n/a\",$D158*$Y158,$G158)+IFERROR(IF(AND($V158<=AE$1,$W158>=AE$1),INDEX(Reliability!J$23:J$50,MATCH($T158,Reliability!$C$23:$C$50,0)),0),0)*$H158*$X158*$Y158),$D158)*$R158","v":0},{"$f":"MIN((IFERROR(IF(AND($V158<=AF$1,$W158>=AF$1),INDEX(Reliability!K$23:K$50,MATCH($S158,Reliability!$C$23:$C$50,0)),0),0)*IF($T158=\"n/a\",$D158*$Y158,$G158)+IFERROR(IF(AND($V158<=AF$1,$W158>=AF$1),INDEX(Reliability!K$23:K$50,MATCH($T158,Reliability!$C$23:$C$50,0)),0),0)*$H158*$X158*$Y158),$D158)*$R158","v":0},{"$f":"MIN((IFERROR(IF(AND($V158<=AG$1,$W158>=AG$1),INDEX(Reliability!L$23:L$50,MATCH($S158,Reliability!$C$23:$C$50,0)),0),0)*IF($T158=\"n/a\",$D158*$Y158,$G158)+IFERROR(IF(AND($V158<=AG$1,$W158>=AG$1),INDEX(Reliability!L$23:L$50,MATCH($T158,Reliability!$C$23:$C$50,0)),0),0)*$H158*$X158*$Y158),$D158)*$R158","v":0},{"$f":"MIN((IFERROR(IF(AND($V158<=AH$1,$W158>=AH$1),INDEX(Reliability!M$23:M$50,MATCH($S158,Reliability!$C$23:$C$50,0)),0),0)*IF($T158=\"n/a\",$D158*$Y158,$G158)+IFERROR(IF(AND($V158<=AH$1,$W158>=AH$1),INDEX(Reliability!M$23:M$50,MATCH($T158,Reliability!$C$23:$C$50,0)),0),0)*$H158*$X158*$Y158),$D158)*$R158","v":0},{"$f":"MIN((IFERROR(IF(AND($V158<=AI$1,$W158>=AI$1),INDEX(Reliability!N$23:N$50,MATCH($S158,Reliability!$C$23:$C$50,0)),0),0)*IF($T158=\"n/a\",$D158*$Y158,$G158)+IFERROR(IF(AND($V158<=AI$1,$W158>=AI$1),INDEX(Reliability!N$23:N$50,MATCH($T158,Reliability!$C$23:$C$50,0)),0),0)*$H158*$X158*$Y158),$D158)*$R158","v":0},{"$f":"MIN((IFERROR(IF(AND($V158<=AJ$1,$W158>=AJ$1),INDEX(Reliability!O$23:O$50,MATCH($S158,Reliability!$C$23:$C$50,0)),0),0)*IF($T158=\"n/a\",$D158*$Y158,$G158)+IFERROR(IF(AND($V158<=AJ$1,$W158>=AJ$1),INDEX(Reliability!O$23:O$50,MATCH($T158,Reliability!$C$23:$C$50,0)),0),0)*$H158*$X158*$Y158),$D158)*$R158","v":0},{"$f":"MIN((IFERROR(IF(AND($V158<=AK$1,$W158>=AK$1),INDEX(Reliability!P$23:P$50,MATCH($S158,Reliability!$C$23:$C$50,0)),0),0)*IF($T158=\"n/a\",$D158*$Y158,$G158)+IFERROR(IF(AND($V158<=AK$1,$W158>=AK$1),INDEX(Reliability!P$23:P$50,MATCH($T158,Reliability!$C$23:$C$50,0)),0),0)*$H158*$X158*$Y158),$D158)*$R158","v":0}]
[null,{"$f":"unique_contracts!B160","v":0},{"$f":"unique_contracts!D160","v":0},{"$f":"unique_contracts!J160","v":0},{"$f":"unique_contracts!M160","v":0},{"$f":"unique_contracts!N160","v":0},{"$f":"unique_contracts!P160","v":0},{"$f":"unique_contracts!R160","v":0},{"$f":"unique_contracts!V160","v":0},{"$f":"unique_contracts!AB160","v":0},{"$f":"unique_contracts!AM160","v":0},{"$f":"unique_contracts!AN160","v":0},{"$f":"unique_contracts!AO160","v":0},{"$f":"unique_contracts!AP160","v":0},{"$f":"unique_contracts!AQ160","v":0},{"$f":"unique_contracts!AR160","v":0},{"$f":"unique_contracts!BP160","v":0},0,{"$f":"IFERROR(IF(AND(I159>0,E159=\"NotHybrid\"),_xlfn.CONCAT(MAX(MIN(ROUNDDOWN(I159/D159,0),8),4),INDEX(resources!$G:$G,MATCH(B159,resources!$A:$A,0))),INDEX(resources!$G:$G,MATCH(B159,resources!$A:$A,0))),\"n/a\")","v":"n/a"},"n/a","n/a",0,0,1,1,{"$f":"MIN((IFERROR(IF(AND($V159<=Z$1,$W159>=Z$1),INDEX(Reliability!E$23:E$50,MATCH($S159,Reliability!$C$23:$C$50,0)),0),0)*IF($T159=\"n/a\",$D159*$Y159,$G159)+IFERROR(IF(AND($V159<=Z$1,$W159>=Z$1),INDEX(Reliability!E$23:E$50,MATCH($T159,Reliability!$C$23:$C$50,0)),0),0)*$H159*$X159*$Y159),$D159)*$R159","v":0},{"$f":"MIN((IFERROR(IF(AND($V159<=AA$1,$W159>=AA$1),INDEX(Reliability!F$23:F$50,MATCH($S159,Reliability!$C$23:$C$50,0)),0),0)*IF($T159=\"n/a\",$D159*$Y159,$G159)+IFERROR(IF(AND($V159<=AA$1,$W159>=AA$1),INDEX(Reliability!F$23:F$50,MATCH($T159,Reliability!$C$23:$C$50,0)),0),0)*$H159*$X159*$Y159),$D159)*$R159","v":0},{"$f":"MIN((IFERROR(IF(AND($V159<=AB$1,$W159>=AB$1),INDEX(Reliability!G$23:G$50,MATCH($S159,Reliability!$C$23:$C$50,0)),0),0)*IF($T159=\"n/a\",$D159*$Y159,$G159)+IFERROR(IF(AND($V159<=AB$1,$W159>=AB$1),INDEX(Reliability!G$23:G$50,MATCH($T159,Reliability!$C$23:$C$50,0)),0),0)*$H159*$X159*$Y159),$D159)*$R159","v":0},{"$f":"MIN((IFERROR(IF(AND($V159<=AC$1,$W159>=AC$1),INDEX(Reliability!H$23:H$50,MATCH($S159,Reliability!$C$23:$C$50,0)),0),0)*IF($T159=\"n/a\",$D159*$Y159,$G159)+IFERROR(IF(AND($V159<=AC$1,$W159>=AC$1),INDEX(Reliability!H$23:H$50,MATCH($T159,Reliability!$C$23:$C$50,0)),0),0)*$H159*$X159*$Y159),$D159)*$R159","v":0},{"$f":"MIN((IFERROR(IF(AND($V159<=AD$1,$W159>=AD$1),INDEX(Reliability!I$23:I$50,MATCH($S159,Reliability!$C$23:$C$50,0)),0),0)*IF($T159=\"n/a\",$D159*$Y159,$G159)+IFERROR(IF(AND($V159<=AD$1,$W159>=AD$1),INDEX(Reliability!I$23:I$50,MATCH($T159,Reliability!$C$23:$C$50,0)),0),0)*$H159*$X159*$Y159),$D159)*$R159","v":0},{"$f":"MIN((IFERROR(IF(AND($V159<=AE$1,$W159>=AE$1),INDEX(Reliability!J$23:J$50,MATCH($S159,Reliability!$C$23:$C$50,0)),0),0)*IF($T159=\"n/a\",$D159*$Y159,$G159)+IFERROR(IF(AND($V159<=AE$1,$W159>=AE$1),INDEX(Reliability!J$23:J$50,MATCH($T159,Reliability!$C$23:$C$50,0)),0),0)*$H159*$X159*$Y159),$D159)*$R159","v":0},{"$f":"MIN((IFERROR(IF(AND($V159<=AF$1,$W159>=AF$1),INDEX(Reliability!K$23:K$50,MATCH($S159,Reliability!$C$23:$C$50,0)),0),0)*IF($T159=\"n/a\",$D159*$Y159,$G159)+IFERROR(IF(AND($V159<=AF$1,$W159>=AF$1),INDEX(Reliability!K$23:K$50,MATCH($T159,Reliability!$C$23:$C$50,0)),0),0)*$H159*$X159*$Y159),$D159)*$R159","v":0},{"$f":"MIN((IFERROR(IF(AND($V159<=AG$1,$W159>=AG$1),INDEX(Reliability!L$23:L$50,MATCH($S159,Reliability!$C$23:$C$50,0)),0),0)*IF($T159=\"n/a\",$D159*$Y159,$G159)+IFERROR(IF(AND($V159<=AG$1,$W159>=AG$1),INDEX(Reliability!L$23:L$50,MATCH($T159,Reliability!$C$23:$C$50,0)),0),0)*$H159*$X159*$Y159),$D159)*$R159","v":0},{"$f":"MIN((IFERROR(IF(AND($V159<=AH$1,$W159>=AH$1),INDEX(Reliability!M$23:M$50,MATCH($S159,Reliability!$C$23:$C$50,0)),0),0)*IF($T159=\"n/a\",$D159*$Y159,$G159)+IFERROR(IF(AND($V159<=AH$1,$W159>=AH$1),INDEX(Reliability!M$23:M$50,MATCH($T159,Reliability!$C$23:$C$50,0)),0),0)*$H159*$X159*$Y159),$D159)*$R159","v":0},{"$f":"MIN((IFERROR(IF(AND($V159<=AI$1,$W159>=AI$1),INDEX(Reliability!N$23:N$50,MATCH($S159,Reliability!$C$23:$C$50,0)),0),0)*IF($T159=\"n/a\",$D159*$Y159,$G159)+IFERROR(IF(AND($V159<=AI$1,$W159>=AI$1),INDEX(Reliability!N$23:N$50,MATCH($T159,Reliability!$C$23:$C$50,0)),0),0)*$H159*$X159*$Y159),$D159)*$R159","v":0},{"$f":"MIN((IFERROR(IF(AND($V159<=AJ$1,$W159>=AJ$1),INDEX(Reliability!O$23:O$50,MATCH($S159,Reliability!$C$23:$C$50,0)),0),0)*IF($T159=\"n/a\",$D159*$Y159,$G159)+IFERROR(IF(AND($V159<=AJ$1,$W159>=AJ$1),INDEX(Reliability!O$23:O$50,MATCH($T159,Reliability!$C$23:$C$50,0)),0),0)*$H159*$X159*$Y159),$D159)*$R159","v":0},{"$f":"MIN((IFERROR(IF(AND($V159<=AK$1,$W159>=AK$1),INDEX(Reliability!P$23:P$50,MATCH($S159,Reliability!$C$23:$C$50,0)),0),0)*IF($T159=\"n/a\",$D159*$Y159,$G159)+IFERROR(IF(AND($V159<=AK$1,$W159>=AK$1),INDEX(Reliability!P$23:P$50,MATCH($T159,Reliability!$C$23:$C$50,0)),0),0)*$H159*$X159*$Y159),$D159)*$R159","v":0}]
[null,{"$f":"unique_contracts!B161","v":0},{"$f":"unique_contracts!D161","v":0},{"$f":"unique_contracts!J161","v":0},{"$f":"unique_contracts!M161","v":0},{"$f":"unique_contracts!N161","v":0},{"$f":"unique_contracts!P161","v":0},{"$f":"unique_contracts!R161","v":0},{"$f":"unique_contracts!V161","v":0},{"$f":"unique_contracts!AB161","v":0},{"$f":"unique_contracts!AM161","v":0},{"$f":"unique_contracts!AN161","v":0},{"$f":"unique_contracts!AO161","v":0},{"$f":"unique_contracts!AP161","v":0},{"$f":"unique_contracts!AQ161","v":0},{"$f":"unique_contracts!AR161","v":0},{"$f":"unique_contracts!BP161","v":0},0,{"$f":"IFERROR(IF(AND(I160>0,E160=\"NotHybrid\"),_xlfn.CONCAT(MAX(MIN(ROUNDDOWN(I160/D160,0),8),4),INDEX(resources!$G:$G,MATCH(B160,resources!$A:$A,0))),INDEX(resources!$G:$G,MATCH(B160,resources!$A:$A,0))),\"n/a\")","v":"n/a"},"n/a","n/a",0,0,1,1,{"$f":"MIN((IFERROR(IF(AND($V160<=Z$1,$W160>=Z$1),INDEX(Reliability!E$23:E$50,MATCH($S160,Reliability!$C$23:$C$50,0)),0),0)*IF($T160=\"n/a\",$D160*$Y160,$G160)+IFERROR(IF(AND($V160<=Z$1,$W160>=Z$1),INDEX(Reliability!E$23:E$50,MATCH($T160,Reliability!$C$23:$C$50,0)),0),0)*$H160*$X160*$Y160),$D160)*$R160","v":0},{"$f":"MIN((IFERROR(IF(AND($V160<=AA$1,$W160>=AA$1),INDEX(Reliability!F$23:F$50,MATCH($S160,Reliability!$C$23:$C$50,0)),0),0)*IF($T160=\"n/a\",$D160*$Y160,$G160)+IFERROR(IF(AND($V160<=AA$1,$W160>=AA$1),INDEX(Reliability!F$23:F$50,MATCH($T160,Reliability!$C$23:$C$50,0)),0),0)*$H160*$X160*$Y160),$D160)*$R160","v":0},{"$f":"MIN((IFERROR(IF(AND($V160<=AB$1,$W160>=AB$1),INDEX(Reliability!G$23:G$50,MATCH($S160,Reliability!$C$23:$C$50,0)),0),0)*IF($T160=\"n/a\",$D160*$Y160,$G160)+IFERROR(IF(AND($V160<=AB$1,$W160>=AB$1),INDEX(Reliability!G$23:G$50,MATCH($T160,Reliability!$C$23:$C$50,0)),0),0)*$H160*$X160*$Y160),$D160)*$R160","v":0},{"$f":"MIN((IFERROR(IF(AND($V160<=AC$1,$W160>=AC$1),INDEX(Reliability!H$23:H$50,MATCH($S160,Reliability!$C$23:$C$50,0)),0),0)*IF($T160=\"n/a\",$D160*$Y160,$G160)+IFERROR(IF(AND($V160<=AC$1,$W160>=AC$1),INDEX(Reliability!H$23:H$50,MATCH($T160,Reliability!$C$23:$C$50,0)),0),0)*$H160*$X160*$Y160),$D160)*$R160","v":0},{"$f":"MIN((IFERROR(IF(AND($V160<=AD$1,$W160>=AD$1),INDEX(Reliability!I$23:I$50,MATCH($S160,Reliability!$C$23:$C$50,0)),0),0)*IF($T160=\"n/a\",$D160*$Y160,$G160)+IFERROR(IF(AND($V160<=AD$1,$W160>=AD$1),INDEX(Reliability!I$23:I$50,MATCH($T160,Reliability!$C$23:$C$50,0)),0),0)*$H160*$X160*$Y160),$D160)*$R160","v":0},{"$f":"MIN((IFERROR(IF(AND($V160<=AE$1,$W160>=AE$1),INDEX(Reliability!J$23:J$50,MATCH($S160,Reliability!$C$23:$C$50,0)),0),0)*IF($T160=\"n/a\",$D160*$Y160,$G160)+IFERROR(IF(AND($V160<=AE$1,$W160>=AE$1),INDEX(Reliability!J$23:J$50,MATCH($T160,Reliability!$C$23:$C$50,0)),0),0)*$H160*$X160*$Y160),$D160)*$R160","v":0},{"$f":"MIN((IFERROR(IF(AND($V160<=AF$1,$W160>=AF$1),INDEX(Reliability!K$23:K$50,MATCH($S160,Reliability!$C$23:$C$50,0)),0),0)*IF($T160=\"n/a\",$D160*$Y160,$G160)+IFERROR(IF(AND($V160<=AF$1,$W160>=AF$1),INDEX(Reliability!K$23:K$50,MATCH($T160,Reliability!$C$23:$C$50,0)),0),0)*$H160*$X160*$Y160),$D160)*$R160","v":0},{"$f":"MIN((IFERROR(IF(AND($V160<=AG$1,$W160>=AG$1),INDEX(Reliability!L$23:L$50,MATCH($S160,Reliability!$C$23:$C$50,0)),0),0)*IF($T160=\"n/a\",$D160*$Y160,$G160)+IFERROR(IF(AND($V160<=AG$1,$W160>=AG$1),INDEX(Reliability!L$23:L$50,MATCH($T160,Reliability!$C$23:$C$50,0)),0),0)*$H160*$X160*$Y160),$D160)*$R160","v":0},{"$f":"MIN((IFERROR(IF(AND($V160<=AH$1,$W160>=AH$1),INDEX(Reliability!M$23:M$50,MATCH($S160,Reliability!$C$23:$C$50,0)),0),0)*IF($T160=\"n/a\",$D160*$Y160,$G160)+IFERROR(IF(AND($V160<=AH$1,$W160>=AH$1),INDEX(Reliability!M$23:M$50,MATCH($T160,Reliability!$C$23:$C$50,0)),0),0)*$H160*$X160*$Y160),$D160)*$R160","v":0},{"$f":"MIN((IFERROR(IF(AND($V160<=AI$1,$W160>=AI$1),INDEX(Reliability!N$23:N$50,MATCH($S160,Reliability!$C$23:$C$50,0)),0),0)*IF($T160=\"n/a\",$D160*$Y160,$G160)+IFERROR(IF(AND($V160<=AI$1,$W160>=AI$1),INDEX(Reliability!N$23:N$50,MATCH($T160,Reliability!$C$23:$C$50,0)),0),0)*$H160*$X160*$Y160),$D160)*$R160","v":0},{"$f":"MIN((IFERROR(IF(AND($V160<=AJ$1,$W160>=AJ$1),INDEX(Reliability!O$23:O$50,MATCH($S160,Reliability!$C$23:$C$50,0)),0),0)*IF($T160=\"n/a\",$D160*$Y160,$G160)+IFERROR(IF(AND($V160<=AJ$1,$W160>=AJ$1),INDEX(Reliability!O$23:O$50,MATCH($T160,Reliability!$C$23:$C$50,0)),0),0)*$H160*$X160*$Y160),$D160)*$R160","v":0},{"$f":"MIN((IFERROR(IF(AND($V160<=AK$1,$W160>=AK$1),INDEX(Reliability!P$23:P$50,MATCH($S160,Reliability!$C$23:$C$50,0)),0),0)*IF($T160=\"n/a\",$D160*$Y160,$G160)+IFERROR(IF(AND($V160<=AK$1,$W160>=AK$1),INDEX(Reliability!P$23:P$50,MATCH($T160,Reliability!$C$23:$C$50,0)),0),0)*$H160*$X160*$Y160),$D160)*$R160","v":0}]
[null,{"$f":"unique_contracts!B162","v":0},{"$f":"unique_contracts!D162","v":0},{"$f":"unique_contracts!J162","v":0},{"$f":"unique_contracts!M162","v":0},{"$f":"unique_contracts!N162","v":0},{"$f":"unique_contracts!P162","v":0},{"$f":"unique_contracts!R162","v":0},{"$f":"unique_contracts!V162","v":0},{"$f":"unique_contracts!AB162","v":0},{"$f":"unique_contracts!AM162","v":0},{"$f":"unique_contracts!AN162","v":0},{"$f":"unique_contracts!AO162","v":0},{"$f":"unique_contracts!AP162","v":0},{"$f":"unique_contracts!AQ162","v":0},{"$f":"unique_contracts!AR162","v":0},{"$f":"unique_contracts!BP162","v":0},0,{"$f":"IFERROR(IF(AND(I161>0,E161=\"NotHybrid\"),_xlfn.CONCAT(MAX(MIN(ROUNDDOWN(I161/D161,0),8),4),INDEX(resources!$G:$G,MATCH(B161,resources!$A:$A,0))),INDEX(resources!$G:$G,MATCH(B161,resources!$A:$A,0))),\"n/a\")","v":"n/a"},"n/a","n/a",0,0,1,1,{"$f":"MIN((IFERROR(IF(AND($V161<=Z$1,$W161>=Z$1),INDEX(Reliability!E$23:E$50,MATCH($S161,Reliability!$C$23:$C$50,0)),0),0)*IF($T161=\"n/a\",$D161*$Y161,$G161)+IFERROR(IF(AND($V161<=Z$1,$W161>=Z$1),INDEX(Reliability!E$23:E$50,MATCH($T161,Reliability!$C$23:$C$50,0)),0),0)*$H161*$X161*$Y161),$D161)*$R161","v":0},{"$f":"MIN((IFERROR(IF(AND($V161<=AA$1,$W161>=AA$1),INDEX(Reliability!F$23:F$50,MATCH($S161,Reliability!$C$23:$C$50,0)),0),0)*IF($T161=\"n/a\",$D161*$Y161,$G161)+IFERROR(IF(AND($V161<=AA$1,$W161>=AA$1),INDEX(Reliability!F$23:F$50,MATCH($T161,Reliability!$C$23:$C$50,0)),0),0)*$H161*$X161*$Y161),$D161)*$R161","v":0},{"$f":"MIN((IFERROR(IF(AND($V161<=AB$1,$W161>=AB$1),INDEX(Reliability!G$23:G$50,MATCH($S161,Reliability!$C$23:$C$50,0)),0),0)*IF($T161=\"n/a\",$D161*$Y161,$G161)+IFERROR(IF(AND($V161<=AB$1,$W161>=AB$1),INDEX(Reliability!G$23:G$50,MATCH($T161,Reliability!$C$23:$C$50,0)),0),0)*$H161*$X161*$Y161),$D161)*$R161","v":0},{"$f":"MIN((IFERROR(IF(AND($V161<=AC$1,$W161>=AC$1),INDEX(Reliability!H$23:H$50,MATCH($S161,Reliability!$C$23:$C$50,0)),0),0)*IF($T161=\"n/a\",$D161*$Y161,$G161)+IFERROR(IF(AND($V161<=AC$1,$W161>=AC$1),INDEX(Reliability!H$23:H$50,MATCH($T161,Reliability!$C$23:$C$50,0)),0),0)*$H161*$X161*$Y161),$D161)*$R161","v":0},{"$f":"MIN((IFERROR(IF(AND($V161<=AD$1,$W161>=AD$1),INDEX(Reliability!I$23:I$50,MATCH($S161,Reliability!$C$23:$C$50,0)),0),0)*IF($T161=\"n/a\",$D161*$Y161,$G161)+IFERROR(IF(AND($V161<=AD$1,$W161>=AD$1),INDEX(Reliability!I$23:I$50,MATCH($T161,Reliability!$C$23:$C$50,0)),0),0)*$H161*$X161*$Y161),$D161)*$R161","v":0},{"$f":"MIN((IFERROR(IF(AND($V161<=AE$1,$W161>=AE$1),INDEX(Reliability!J$23:J$50,MATCH($S161,Reliability!$C$23:$C$50,0)),0),0)*IF($T161=\"n/a\",$D161*$Y161,$G161)+IFERROR(IF(AND($V161<=AE$1,$W161>=AE$1),INDEX(Reliability!J$23:J$50,MATCH($T161,Reliability!$C$23:$C$50,0)),0),0)*$H161*$X161*$Y161),$D161)*$R161","v":0},{"$f":"MIN((IFERROR(IF(AND($V161<=AF$1,$W161>=AF$1),INDEX(Reliability!K$23:K$50,MATCH($S161,Reliability!$C$23:$C$50,0)),0),0)*IF($T161=\"n/a\",$D161*$Y161,$G161)+IFERROR(IF(AND($V161<=AF$1,$W161>=AF$1),INDEX(Reliability!K$23:K$50,MATCH($T161,Reliability!$C$23:$C$50,0)),0),0)*$H161*$X161*$Y161),$D161)*$R161","v":0},{"$f":"MIN((IFERROR(IF(AND($V161<=AG$1,$W161>=AG$1),INDEX(Reliability!L$23:L$50,MATCH($S161,Reliability!$C$23:$C$50,0)),0),0)*IF($T161=\"n/a\",$D161*$Y161,$G161)+IFERROR(IF(AND($V161<=AG$1,$W161>=AG$1),INDEX(Reliability!L$23:L$50,MATCH($T161,Reliability!$C$23:$C$50,0)),0),0)*$H161*$X161*$Y161),$D161)*$R161","v":0},{"$f":"MIN((IFERROR(IF(AND($V161<=AH$1,$W161>=AH$1),INDEX(Reliability!M$23:M$50,MATCH($S161,Reliability!$C$23:$C$50,0)),0),0)*IF($T161=\"n/a\",$D161*$Y161,$G161)+IFERROR(IF(AND($V161<=AH$1,$W161>=AH$1),INDEX(Reliability!M$23:M$50,MATCH($T161,Reliability!$C$23:$C$50,0)),0),0)*$H161*$X161*$Y161),$D161)*$R161","v":0},{"$f":"MIN((IFERROR(IF(AND($V161<=AI$1,$W161>=AI$1),INDEX(Reliability!N$23:N$50,MATCH($S161,Reliability!$C$23:$C$50,0)),0),0)*IF($T161=\"n/a\",$D161*$Y161,$G161)+IFERROR(IF(AND($V161<=AI$1,$W161>=AI$1),INDEX(Reliability!N$23:N$50,MATCH($T161,Reliability!$C$23:$C$50,0)),0),0)*$H161*$X161*$Y161),$D161)*$R161","v":0},{"$f":"MIN((IFERROR(IF(AND($V161<=AJ$1,$W161>=AJ$1),INDEX(Reliability!O$23:O$50,MATCH($S161,Reliability!$C$23:$C$50,0)),0),0)*IF($T161=\"n/a\",$D161*$Y161,$G161)+IFERROR(IF(AND($V161<=AJ$1,$W161>=AJ$1),INDEX(Reliability!O$23:O$50,MATCH($T161,Reliability!$C$23:$C$50,0)),0),0)*$H161*$X161*$Y161),$D161)*$R161","v":0},{"$f":"MIN((IFERROR(IF(AND($V161<=AK$1,$W161>=AK$1),INDEX(Reliability!P$23:P$50,MATCH($S161,Reliability!$C$23:$C$50,0)),0),0)*IF($T161=\"n/a\",$D161*$Y161,$G161)+IFERROR(IF(AND($V161<=AK$1,$W161>=AK$1),INDEX(Reliability!P$23:P$50,MATCH($T161,Reliability!$C$23:$C$50,0)),0),0)*$H161*$X161*$Y161),$D161)*$R161","v":0}]
[null,{"$f":"unique_contracts!B163","v":0},{"$f":"unique_contracts!D163","v":0},{"$f":"unique_contracts!J163","v":0},{"$f":"unique_contracts!M163","v":0},{"$f":"unique_contracts!N163","v":0},{"$f":"unique_contracts!P163","v":0},{"$f":"unique_contracts!R163","v":0},{"$f":"unique_contracts!V163","v":0},{"$f":"unique_contracts!AB163","v":0},{"$f":"unique_contracts!AM163","v":0},{"$f":"unique_contracts!AN163","v":0},{"$f":"unique_contracts!AO163","v":0},{"$f":"unique_contracts!AP163","v":0},{"$f":"unique_contracts!AQ163","v":0},{"$f":"unique_contracts!AR163","v":0},{"$f":"unique_contracts!BP163","v":0},0,{"$f":"IFERROR(IF(AND(I162>0,E162=\"NotHybrid\"),_xlfn.CONCAT(MAX(MIN(ROUNDDOWN(I162/D162,0),8),4),INDEX(resources!$G:$G,MATCH(B162,resources!$A:$A,0))),INDEX(resources!$G:$G,MATCH(B162,resources!$A:$A,0))),\"n/a\")","v":"n/a"},"n/a","n/a",0,0,1,1,{"$f":"MIN((IFERROR(IF(AND($V162<=Z$1,$W162>=Z$1),INDEX(Reliability!E$23:E$50,MATCH($S162,Reliability!$C$23:$C$50,0)),0),0)*IF($T162=\"n/a\",$D162*$Y162,$G162)+IFERROR(IF(AND($V162<=Z$1,$W162>=Z$1),INDEX(Reliability!E$23:E$50,MATCH($T162,Reliability!$C$23:$C$50,0)),0),0)*$H162*$X162*$Y162),$D162)*$R162","v":0},{"$f":"MIN((IFERROR(IF(AND($V162<=AA$1,$W162>=AA$1),INDEX(Reliability!F$23:F$50,MATCH($S162,Reliability!$C$23:$C$50,0)),0),0)*IF($T162=\"n/a\",$D162*$Y162,$G162)+IFERROR(IF(AND($V162<=AA$1,$W162>=AA$1),INDEX(Reliability!F$23:F$50,MATCH($T162,Reliability!$C$23:$C$50,0)),0),0)*$H162*$X162*$Y162),$D162)*$R162","v":0},{"$f":"MIN((IFERROR(IF(AND($V162<=AB$1,$W162>=AB$1),INDEX(Reliability!G$23:G$50,MATCH($S162,Reliability!$C$23:$C$50,0)),0),0)*IF($T162=\"n/a\",$D162*$Y162,$G162)+IFERROR(IF(AND($V162<=AB$1,$W162>=AB$1),INDEX(Reliability!G$23:G$50,MATCH($T162,Reliability!$C$23:$C$50,0)),0),0)*$H162*$X162*$Y162),$D162)*$R162","v":0},{"$f":"MIN((IFERROR(IF(AND($V162<=AC$1,$W162>=AC$1),INDEX(Reliability!H$23:H$50,MATCH($S162,Reliability!$C$23:$C$50,0)),0),0)*IF($T162=\"n/a\",$D162*$Y162,$G162)+IFERROR(IF(AND($V162<=AC$1,$W162>=AC$1),INDEX(Reliability!H$23:H$50,MATCH($T162,Reliability!$C$23:$C$50,0)),0),0)*$H162*$X162*$Y162),$D162)*$R162","v":0},{"$f":"MIN((IFERROR(IF(AND($V162<=AD$1,$W162>=AD$1),INDEX(Reliability!I$23:I$50,MATCH($S162,Reliability!$C$23:$C$50,0)),0),0)*IF($T162=\"n/a\",$D162*$Y162,$G162)+IFERROR(IF(AND($V162<=AD$1,$W162>=AD$1),INDEX(Reliability!I$23:I$50,MATCH($T162,Reliability!$C$23:$C$50,0)),0),0)*$H162*$X162*$Y162),$D162)*$R162","v":0},{"$f":"MIN((IFERROR(IF(AND($V162<=AE$1,$W162>=AE$1),INDEX(Reliability!J$23:J$50,MATCH($S162,Reliability!$C$23:$C$50,0)),0),0)*IF($T162=\"n/a\",$D162*$Y162,$G162)+IFERROR(IF(AND($V162<=AE$1,$W162>=AE$1),INDEX(Reliability!J$23:J$50,MATCH($T162,Reliability!$C$23:$C$50,0)),0),0)*$H162*$X162*$Y162),$D162)*$R162","v":0},{"$f":"MIN((IFERROR(IF(AND($V162<=AF$1,$W162>=AF$1),INDEX(Reliability!K$23:K$50,MATCH($S162,Reliability!$C$23:$C$50,0)),0),0)*IF($T162=\"n/a\",$D162*$Y162,$G162)+IFERROR(IF(AND($V162<=AF$1,$W162>=AF$1),INDEX(Reliability!K$23:K$50,MATCH($T162,Reliability!$C$23:$C$50,0)),0),0)*$H162*$X162*$Y162),$D162)*$R162","v":0},{"$f":"MIN((IFERROR(IF(AND($V162<=AG$1,$W162>=AG$1),INDEX(Reliability!L$23:L$50,MATCH($S162,Reliability!$C$23:$C$50,0)),0),0)*IF($T162=\"n/a\",$D162*$Y162,$G162)+IFERROR(IF(AND($V162<=AG$1,$W162>=AG$1),INDEX(Reliability!L$23:L$50,MATCH($T162,Reliability!$C$23:$C$50,0)),0),0)*$H162*$X162*$Y162),$D162)*$R162","v":0},{"$f":"MIN((IFERROR(IF(AND($V162<=AH$1,$W162>=AH$1),INDEX(Reliability!M$23:M$50,MATCH($S162,Reliability!$C$23:$C$50,0)),0),0)*IF($T162=\"n/a\",$D162*$Y162,$G162)+IFERROR(IF(AND($V162<=AH$1,$W162>=AH$1),INDEX(Reliability!M$23:M$50,MATCH($T162,Reliability!$C$23:$C$50,0)),0),0)*$H162*$X162*$Y162),$D162)*$R162","v":0},{"$f":"MIN((IFERROR(IF(AND($V162<=AI$1,$W162>=AI$1),INDEX(Reliability!N$23:N$50,MATCH($S162,Reliability!$C$23:$C$50,0)),0),0)*IF($T162=\"n/a\",$D162*$Y162,$G162)+IFERROR(IF(AND($V162<=AI$1,$W162>=AI$1),INDEX(Reliability!N$23:N$50,MATCH($T162,Reliability!$C$23:$C$50,0)),0),0)*$H162*$X162*$Y162),$D162)*$R162","v":0},{"$f":"MIN((IFERROR(IF(AND($V162<=AJ$1,$W162>=AJ$1),INDEX(Reliability!O$23:O$50,MATCH($S162,Reliability!$C$23:$C$50,0)),0),0)*IF($T162=\"n/a\",$D162*$Y162,$G162)+IFERROR(IF(AND($V162<=AJ$1,$W162>=AJ$1),INDEX(Reliability!O$23:O$50,MATCH($T162,Reliability!$C$23:$C$50,0)),0),0)*$H162*$X162*$Y162),$D162)*$R162","v":0},{"$f":"MIN((IFERROR(IF(AND($V162<=AK$1,$W162>=AK$1),INDEX(Reliability!P$23:P$50,MATCH($S162,Reliability!$C$23:$C$50,0)),0),0)*IF($T162=\"n/a\",$D162*$Y162,$G162)+IFERROR(IF(AND($V162<=AK$1,$W162>=AK$1),INDEX(Reliability!P$23:P$50,MATCH($T162,Reliability!$C$23:$C$50,0)),0),0)*$H162*$X162*$Y162),$D162)*$R162","v":0}]
[null,{"$f":"unique_contracts!B164","v":0},{"$f":"unique_contracts!D164","v":0},{"$f":"unique_contracts!J164","v":0},{"$f":"unique_contracts!M164","v":0},{"$f":"unique_contracts!N164","v":0},{"$f":"unique_contracts!P164","v":0},{"$f":"unique_contracts!R164","v":0},{"$f":"unique_contracts!V164","v":0},{"$f":"unique_contracts!AB164","v":0},{"$f":"unique_contracts!AM164","v":0},{"$f":"unique_contracts!AN164","v":0},{"$f":"unique_contracts!AO164","v":0},{"$f":"unique_contracts!AP164","v":0},{"$f":"unique_contracts!AQ164","v":0},{"$f":"unique_contracts!AR164","v":0},{"$f":"unique_contracts!BP164","v":0},0,{"$f":"IFERROR(IF(AND(I163>0,E163=\"NotHybrid\"),_xlfn.CONCAT(MAX(MIN(ROUNDDOWN(I163/D163,0),8),4),INDEX(resources!$G:$G,MATCH(B163,resources!$A:$A,0))),INDEX(resources!$G:$G,MATCH(B163,resources!$A:$A,0))),\"n/a\")","v":"n/a"},"n/a","n/a",0,0,1,1,{"$f":"MIN((IFERROR(IF(AND($V163<=Z$1,$W163>=Z$1),INDEX(Reliability!E$23:E$50,MATCH($S163,Reliability!$C$23:$C$50,0)),0),0)*IF($T163=\"n/a\",$D163*$Y163,$G163)+IFERROR(IF(AND($V163<=Z$1,$W163>=Z$1),INDEX(Reliability!E$23:E$50,MATCH($T163,Reliability!$C$23:$C$50,0)),0),0)*$H163*$X163*$Y163),$D163)*$R163","v":0},{"$f":"MIN((IFERROR(IF(AND($V163<=AA$1,$W163>=AA$1),INDEX(Reliability!F$23:F$50,MATCH($S163,Reliability!$C$23:$C$50,0)),0),0)*IF($T163=\"n/a\",$D163*$Y163,$G163)+IFERROR(IF(AND($V163<=AA$1,$W163>=AA$1),INDEX(Reliability!F$23:F$50,MATCH($T163,Reliability!$C$23:$C$50,0)),0),0)*$H163*$X163*$Y163),$D163)*$R163","v":0},{"$f":"MIN((IFERROR(IF(AND($V163<=AB$1,$W163>=AB$1),INDEX(Reliability!G$23:G$50,MATCH($S163,Reliability!$C$23:$C$50,0)),0),0)*IF($T163=\"n/a\",$D163*$Y163,$G163)+IFERROR(IF(AND($V163<=AB$1,$W163>=AB$1),INDEX(Reliability!G$23:G$50,MATCH($T163,Reliability!$C$23:$C$50,0)),0),0)*$H163*$X163*$Y163),$D163)*$R163","v":0},{"$f":"MIN((IFERROR(IF(AND($V163<=AC$1,$W163>=AC$1),INDEX(Reliability!H$23:H$50,MATCH($S163,Reliability!$C$23:$C$50,0)),0),0)*IF($T163=\"n/a\",$D163*$Y163,$G163)+IFERROR(IF(AND($V163<=AC$1,$W163>=AC$1),INDEX(Reliability!H$23:H$50,MATCH($T163,Reliability!$C$23:$C$50,0)),0),0)*$H163*$X163*$Y163),$D163)*$R163","v":0},{"$f":"MIN((IFERROR(IF(AND($V163<=AD$1,$W163>=AD$1),INDEX(Reliability!I$23:I$50,MATCH($S163,Reliability!$C$23:$C$50,0)),0),0)*IF($T163=\"n/a\",$D163*$Y163,$G163)+IFERROR(IF(AND($V163<=AD$1,$W163>=AD$1),INDEX(Reliability!I$23:I$50,MATCH($T163,Reliability!$C$23:$C$50,0)),0),0)*$H163*$X163*$Y163),$D163)*$R163","v":0},{"$f":"MIN((IFERROR(IF(AND($V163<=AE$1,$W163>=AE$1),INDEX(Reliability!J$23:J$50,MATCH($S163,Reliability!$C$23:$C$50,0)),0),0)*IF($T163=\"n/a\",$D163*$Y163,$G163)+IFERROR(IF(AND($V163<=AE$1,$W163>=AE$1),INDEX(Reliability!J$23:J$50,MATCH($T163,Reliability!$C$23:$C$50,0)),0),0)*$H163*$X163*$Y163),$D163)*$R163","v":0},{"$f":"MIN((IFERROR(IF(AND($V163<=AF$1,$W163>=AF$1),INDEX(Reliability!K$23:K$50,MATCH($S163,Reliability!$C$23:$C$50,0)),0),0)*IF($T163=\"n/a\",$D163*$Y163,$G163)+IFERROR(IF(AND($V163<=AF$1,$W163>=AF$1),INDEX(Reliability!K$23:K$50,MATCH($T163,Reliability!$C$23:$C$50,0)),0),0)*$H163*$X163*$Y163),$D163)*$R163","v":0},{"$f":"MIN((IFERROR(IF(AND($V163<=AG$1,$W163>=AG$1),INDEX(Reliability!L$23:L$50,MATCH($S163,Reliability!$C$23:$C$50,0)),0),0)*IF($T163=\"n/a\",$D163*$Y163,$G163)+IFERROR(IF(AND($V163<=AG$1,$W163>=AG$1),INDEX(Reliability!L$23:L$50,MATCH($T163,Reliability!$C$23:$C$50,0)),0),0)*$H163*$X163*$Y163),$D163)*$R163","v":0},{"$f":"MIN((IFERROR(IF(AND($V163<=AH$1,$W163>=AH$1),INDEX(Reliability!M$23:M$50,MATCH($S163,Reliability!$C$23:$C$50,0)),0),0)*IF($T163=\"n/a\",$D163*$Y163,$G163)+IFERROR(IF(AND($V163<=AH$1,$W163>=AH$1),INDEX(Reliability!M$23:M$50,MATCH($T163,Reliability!$C$23:$C$50,0)),0),0)*$H163*$X163*$Y163),$D163)*$R163","v":0},{"$f":"MIN((IFERROR(IF(AND($V163<=AI$1,$W163>=AI$1),INDEX(Reliability!N$23:N$50,MATCH($S163,Reliability!$C$23:$C$50,0)),0),0)*IF($T163=\"n/a\",$D163*$Y163,$G163)+IFERROR(IF(AND($V163<=AI$1,$W163>=AI$1),INDEX(Reliability!N$23:N$50,MATCH($T163,Reliability!$C$23:$C$50,0)),0),0)*$H163*$X163*$Y163),$D163)*$R163","v":0},{"$f":"MIN((IFERROR(IF(AND($V163<=AJ$1,$W163>=AJ$1),INDEX(Reliability!O$23:O$50,MATCH($S163,Reliability!$C$23:$C$50,0)),0),0)*IF($T163=\"n/a\",$D163*$Y163,$G163)+IFERROR(IF(AND($V163<=AJ$1,$W163>=AJ$1),INDEX(Reliability!O$23:O$50,MATCH($T163,Reliability!$C$23:$C$50,0)),0),0)*$H163*$X163*$Y163),$D163)*$R163","v":0},{"$f":"MIN((IFERROR(IF(AND($V163<=AK$1,$W163>=AK$1),INDEX(Reliability!P$23:P$50,MATCH($S163,Reliability!$C$23:$C$50,0)),0),0)*IF($T163=\"n/a\",$D163*$Y163,$G163)+IFERROR(IF(AND($V163<=AK$1,$W163>=AK$1),INDEX(Reliability!P$23:P$50,MATCH($T163,Reliability!$C$23:$C$50,0)),0),0)*$H163*$X163*$Y163),$D163)*$R163","v":0}]
[null,{"$f":"unique_contracts!B165","v":0},{"$f":"unique_contracts!D165","v":0},{"$f":"unique_contracts!J165","v":0},{"$f":"unique_contracts!M165","v":0},{"$f":"unique_contracts!N165","v":0},{"$f":"unique_contracts!P165","v":0},{"$f":"unique_contracts!R165","v":0},{"$f":"unique_contracts!V165","v":0},{"$f":"unique_contracts!AB165","v":0},{"$f":"unique_contracts!AM165","v":0},{"$f":"unique_contracts!AN165","v":0},{"$f":"unique_contracts!AO165","v":0},{"$f":"unique_contracts!AP165","v":0},{"$f":"unique_contracts!AQ165","v":0},{"$f":"unique_contracts!AR165","v":0},{"$f":"unique_contracts!BP165","v":0},0,{"$f":"IFERROR(IF(AND(I164>0,E164=\"NotHybrid\"),_xlfn.CONCAT(MAX(MIN(ROUNDDOWN(I164/D164,0),8),4),INDEX(resources!$G:$G,MATCH(B164,resources!$A:$A,0))),INDEX(resources!$G:$G,MATCH(B164,resources!$A:$A,0))),\"n/a\")","v":"n/a"},"n/a","n/a",0,0,1,1,{"$f":"MIN((IFERROR(IF(AND($V164<=Z$1,$W164>=Z$1),INDEX(Reliability!E$23:E$50,MATCH($S164,Reliability!$C$23:$C$50,0)),0),0)*IF($T164=\"n/a\",$D164*$Y164,$G164)+IFERROR(IF(AND($V164<=Z$1,$W164>=Z$1),INDEX(Reliability!E$23:E$50,MATCH($T164,Reliability!$C$23:$C$50,0)),0),0)*$H164*$X164*$Y164),$D164)*$R164","v":0},{"$f":"MIN((IFERROR(IF(AND($V164<=AA$1,$W164>=AA$1),INDEX(Reliability!F$23:F$50,MATCH($S164,Reliability!$C$23:$C$50,0)),0),0)*IF($T164=\"n/a\",$D164*$Y164,$G164)+IFERROR(IF(AND($V164<=AA$1,$W164>=AA$1),INDEX(Reliability!F$23:F$50,MATCH($T164,Reliability!$C$23:$C$50,0)),0),0)*$H164*$X164*$Y164),$D164)*$R164","v":0},{"$f":"MIN((IFERROR(IF(AND($V164<=AB$1,$W164>=AB$1),INDEX(Reliability!G$23:G$50,MATCH($S164,Reliability!$C$23:$C$50,0)),0),0)*IF($T164=\"n/a\",$D164*$Y164,$G164)+IFERROR(IF(AND($V164<=AB$1,$W164>=AB$1),INDEX(Reliability!G$23:G$50,MATCH($T164,Reliability!$C$23:$C$50,0)),0),0)*$H164*$X164*$Y164),$D164)*$R164","v":0},{"$f":"MIN((IFERROR(IF(AND($V164<=AC$1,$W164>=AC$1),INDEX(Reliability!H$23:H$50,MATCH($S164,Reliability!$C$23:$C$50,0)),0),0)*IF($T164=\"n/a\",$D164*$Y164,$G164)+IFERROR(IF(AND($V164<=AC$1,$W164>=AC$1),INDEX(Reliability!H$23:H$50,MATCH($T164,Reliability!$C$23:$C$50,0)),0),0)*$H164*$X164*$Y164),$D164)*$R164","v":0},{"$f":"MIN((IFERROR(IF(AND($V164<=AD$1,$W164>=AD$1),INDEX(Reliability!I$23:I$50,MATCH($S164,Reliability!$C$23:$C$50,0)),0),0)*IF($T164=\"n/a\",$D164*$Y164,$G164)+IFERROR(IF(AND($V164<=AD$1,$W164>=AD$1),INDEX(Reliability!I$23:I$50,MATCH($T164,Reliability!$C$23:$C$50,0)),0),0)*$H164*$X164*$Y164),$D164)*$R164","v":0},{"$f":"MIN((IFERROR(IF(AND($V164<=AE$1,$W164>=AE$1),INDEX(Reliability!J$23:J$50,MATCH($S164,Reliability!$C$23:$C$50,0)),0),0)*IF($T164=\"n/a\",$D164*$Y164,$G164)+IFERROR(IF(AND($V164<=AE$1,$W164>=AE$1),INDEX(Reliability!J$23:J$50,MATCH($T164,Reliability!$C$23:$C$50,0)),0),0)*$H164*$X164*$Y164),$D164)*$R164","v":0},{"$f":"MIN((IFERROR(IF(AND($V164<=AF$1,$W164>=AF$1),INDEX(Reliability!K$23:K$50,MATCH($S164,Reliability!$C$23:$C$50,0)),0),0)*IF($T164=\"n/a\",$D164*$Y164,$G164)+IFERROR(IF(AND($V164<=AF$1,$W164>=AF$1),INDEX(Reliability!K$23:K$50,MATCH($T164,Reliability!$C$23:$C$50,0)),0),0)*$H164*$X164*$Y164),$D164)*$R164","v":0},{"$f":"MIN((IFERROR(IF(AND($V164<=AG$1,$W164>=AG$1),INDEX(Reliability!L$23:L$50,MATCH($S164,Reliability!$C$23:$C$50,0)),0),0)*IF($T164=\"n/a\",$D164*$Y164,$G164)+IFERROR(IF(AND($V164<=AG$1,$W164>=AG$1),INDEX(Reliability!L$23:L$50,MATCH($T164,Reliability!$C$23:$C$50,0)),0),0)*$H164*$X164*$Y164),$D164)*$R164","v":0},{"$f":"MIN((IFERROR(IF(AND($V164<=AH$1,$W164>=AH$1),INDEX(Reliability!M$23:M$50,MATCH($S164,Reliability!$C$23:$C$50,0)),0),0)*IF($T164=\"n/a\",$D164*$Y164,$G164)+IFERROR(IF(AND($V164<=AH$1,$W164>=AH$1),INDEX(Reliability!M$23:M$50,MATCH($T164,Reliability!$C$23:$C$50,0)),0),0)*$H164*$X164*$Y164),$D164)*$R164","v":0},{"$f":"MIN((IFERROR(IF(AND($V164<=AI$1,$W164>=AI$1),INDEX(Reliability!N$23:N$50,MATCH($S164,Reliability!$C$23:$C$50,0)),0),0)*IF($T164=\"n/a\",$D164*$Y164,$G164)+IFERROR(IF(AND($V164<=AI$1,$W164>=AI$1),INDEX(Reliability!N$23:N$50,MATCH($T164,Reliability!$C$23:$C$50,0)),0),0)*$H164*$X164*$Y164),$D164)*$R164","v":0},{"$f":"MIN((IFERROR(IF(AND($V164<=AJ$1,$W164>=AJ$1),INDEX(Reliability!O$23:O$50,MATCH($S164,Reliability!$C$23:$C$50,0)),0),0)*IF($T164=\"n/a\",$D164*$Y164,$G164)+IFERROR(IF(AND($V164<=AJ$1,$W164>=AJ$1),INDEX(Reliability!O$23:O$50,MATCH($T164,Reliability!$C$23:$C$50,0)),0),0)*$H164*$X164*$Y164),$D164)*$R164","v":0},{"$f":"MIN((IFERROR(IF(AND($V164<=AK$1,$W164>=AK$1),INDEX(Reliability!P$23:P$50,MATCH($S164,Reliability!$C$23:$C$50,0)),0),0)*IF($T164=\"n/a\",$D164*$Y164,$G164)+IFERROR(IF(AND($V164<=AK$1,$W164>=AK$1),INDEX(Reliability!P$23:P$50,MATCH($T164,Reliability!$C$23:$C$50,0)),0),0)*$H164*$X164*$Y164),$D164)*$R164","v":0}]
[null,{"$f":"unique_contracts!B166","v":0},{"$f":"unique_contracts!D166","v":0},{"$f":"unique_contracts!J166","v":0},{"$f":"unique_contracts!M166","v":0},{"$f":"unique_contracts!N166","v":0},{"$f":"unique_contracts!P166","v":0},{"$f":"unique_contracts!R166","v":0},{"$f":"unique_contracts!V166","v":0},{"$f":"unique_contracts!AB166","v":0},{"$f":"unique_contracts!AM166","v":0},{"$f":"unique_contracts!AN166","v":0},{"$f":"unique_contracts!AO166","v":0},{"$f":"unique_contracts!AP166","v":0},{"$f":"unique_contracts!AQ166","v":0},{"$f":"unique_contracts!AR166","v":0},{"$f":"unique_contracts!BP166","v":0},0,{"$f":"IFERROR(IF(AND(I165>0,E165=\"NotHybrid\"),_xlfn.CONCAT(MAX(MIN(ROUNDDOWN(I165/D165,0),8),4),INDEX(resources!$G:$G,MATCH(B165,resources!$A:$A,0))),INDEX(resources!$G:$G,MATCH(B165,resources!$A:$A,0))),\"n/a\")","v":"n/a"},"n/a","n/a",0,0,1,1,{"$f":"MIN((IFERROR(IF(AND($V165<=Z$1,$W165>=Z$1),INDEX(Reliability!E$23:E$50,MATCH($S165,Reliability!$C$23:$C$50,0)),0),0)*IF($T165=\"n/a\",$D165*$Y165,$G165)+IFERROR(IF(AND($V165<=Z$1,$W165>=Z$1),INDEX(Reliability!E$23:E$50,MATCH($T165,Reliability!$C$23:$C$50,0)),0),0)*$H165*$X165*$Y165),$D165)*$R165","v":0},{"$f":"MIN((IFERROR(IF(AND($V165<=AA$1,$W165>=AA$1),INDEX(Reliability!F$23:F$50,MATCH($S165,Reliability!$C$23:$C$50,0)),0),0)*IF($T165=\"n/a\",$D165*$Y165,$G165)+IFERROR(IF(AND($V165<=AA$1,$W165>=AA$1),INDEX(Reliability!F$23:F$50,MATCH($T165,Reliability!$C$23:$C$50,0)),0),0)*$H165*$X165*$Y165),$D165)*$R165","v":0},{"$f":"MIN((IFERROR(IF(AND($V165<=AB$1,$W165>=AB$1),INDEX(Reliability!G$23:G$50,MATCH($S165,Reliability!$C$23:$C$50,0)),0),0)*IF($T165=\"n/a\",$D165*$Y165,$G165)+IFERROR(IF(AND($V165<=AB$1,$W165>=AB$1),INDEX(Reliability!G$23:G$50,MATCH($T165,Reliability!$C$23:$C$50,0)),0),0)*$H165*$X165*$Y165),$D165)*$R165","v":0},{"$f":"MIN((IFERROR(IF(AND($V165<=AC$1,$W165>=AC$1),INDEX(Reliability!H$23:H$50,MATCH($S165,Reliability!$C$23:$C$50,0)),0),0)*IF($T165=\"n/a\",$D165*$Y165,$G165)+IFERROR(IF(AND($V165<=AC$1,$W165>=AC$1),INDEX(Reliability!H$23:H$50,MATCH($T165,Reliability!$C$23:$C$50,0)),0),0)*$H165*$X165*$Y165),$D165)*$R165","v":0},{"$f":"MIN((IFERROR(IF(AND($V165<=AD$1,$W165>=AD$1),INDEX(Reliability!I$23:I$50,MATCH($S165,Reliability!$C$23:$C$50,0)),0),0)*IF($T165=\"n/a\",$D165*$Y165,$G165)+IFERROR(IF(AND($V165<=AD$1,$W165>=AD$1),INDEX(Reliability!I$23:I$50,MATCH($T165,Reliability!$C$23:$C$50,0)),0),0)*$H165*$X165*$Y165),$D165)*$R165","v":0},{"$f":"MIN((IFERROR(IF(AND($V165<=AE$1,$W165>=AE$1),INDEX(Reliability!J$23:J$50,MATCH($S165,Reliability!$C$23:$C$50,0)),0),0)*IF($T165=\"n/a\",$D165*$Y165,$G165)+IFERROR(IF(AND($V165<=AE$1,$W165>=AE$1),INDEX(Reliability!J$23:J$50,MATCH($T165,Reliability!$C$23:$C$50,0)),0),0)*$H165*$X165*$Y165),$D165)*$R165","v":0},{"$f":"MIN((IFERROR(IF(AND($V165<=AF$1,$W165>=AF$1),INDEX(Reliability!K$23:K$50,MATCH($S165,Reliability!$C$23:$C$50,0)),0),0)*IF($T165=\"n/a\",$D165*$Y165,$G165)+IFERROR(IF(AND($V165<=AF$1,$W165>=AF$1),INDEX(Reliability!K$23:K$50,MATCH($T165,Reliability!$C$23:$C$50,0)),0),0)*$H165*$X165*$Y165),$D165)*$R165","v":0},{"$f":"MIN((IFERROR(IF(AND($V165<=AG$1,$W165>=AG$1),INDEX(Reliability!L$23:L$50,MATCH($S165,Reliability!$C$23:$C$50,0)),0),0)*IF($T165=\"n/a\",$D165*$Y165,$G165)+IFERROR(IF(AND($V165<=AG$1,$W165>=AG$1),INDEX(Reliability!L$23:L$50,MATCH($T165,Reliability!$C$23:$C$50,0)),0),0)*$H165*$X165*$Y165),$D165)*$R165","v":0},{"$f":"MIN((IFERROR(IF(AND($V165<=AH$1,$W165>=AH$1),INDEX(Reliability!M$23:M$50,MATCH($S165,Reliability!$C$23:$C$50,0)),0),0)*IF($T165=\"n/a\",$D165*$Y165,$G165)+IFERROR(IF(AND($V165<=AH$1,$W165>=AH$1),INDEX(Reliability!M$23:M$50,MATCH($T165,Reliability!$C$23:$C$50,0)),0),0)*$H165*$X165*$Y165),$D165)*$R165","v":0},{"$f":"MIN((IFERROR(IF(AND($V165<=AI$1,$W165>=AI$1),INDEX(Reliability!N$23:N$50,MATCH($S165,Reliability!$C$23:$C$50,0)),0),0)*IF($T165=\"n/a\",$D165*$Y165,$G165)+IFERROR(IF(AND($V165<=AI$1,$W165>=AI$1),INDEX(Reliability!N$23:N$50,MATCH($T165,Reliability!$C$23:$C$50,0)),0),0)*$H165*$X165*$Y165),$D165)*$R165","v":0},{"$f":"MIN((IFERROR(IF(AND($V165<=AJ$1,$W165>=AJ$1),INDEX(Reliability!O$23:O$50,MATCH($S165,Reliability!$C$23:$C$50,0)),0),0)*IF($T165=\"n/a\",$D165*$Y165,$G165)+IFERROR(IF(AND($V165<=AJ$1,$W165>=AJ$1),INDEX(Reliability!O$23:O$50,MATCH($T165,Reliability!$C$23:$C$50,0)),0),0)*$H165*$X165*$Y165),$D165)*$R165","v":0},{"$f":"MIN((IFERROR(IF(AND($V165<=AK$1,$W165>=AK$1),INDEX(Reliability!P$23:P$50,MATCH($S165,Reliability!$C$23:$C$50,0)),0),0)*IF($T165=\"n/a\",$D165*$Y165,$G165)+IFERROR(IF(AND($V165<=AK$1,$W165>=AK$1),INDEX(Reliability!P$23:P$50,MATCH($T165,Reliability!$C$23:$C$50,0)),0),0)*$H165*$X165*$Y165),$D165)*$R165","v":0}]
[null,{"$f":"unique_contracts!B167","v":0},{"$f":"unique_contracts!D167","v":0},{"$f":"unique_contracts!J167","v":0},{"$f":"unique_contracts!M167","v":0},{"$f":"unique_contracts!N167","v":0},{"$f":"unique_contracts!P167","v":0},{"$f":"unique_contracts!R167","v":0},{"$f":"unique_contracts!V167","v":0},{"$f":"unique_contracts!AB167","v":0},{"$f":"unique_contracts!AM167","v":0},{"$f":"unique_contracts!AN167","v":0},{"$f":"unique_contracts!AO167","v":0},{"$f":"unique_contracts!AP167","v":0},{"$f":"unique_contracts!AQ167","v":0},{"$f":"unique_contracts!AR167","v":0},{"$f":"unique_contracts!BP167","v":0},0,{"$f":"IFERROR(IF(AND(I166>0,E166=\"NotHybrid\"),_xlfn.CONCAT(MAX(MIN(ROUNDDOWN(I166/D166,0),8),4),INDEX(resources!$G:$G,MATCH(B166,resources!$A:$A,0))),INDEX(resources!$G:$G,MATCH(B166,resources!$A:$A,0))),\"n/a\")","v":"n/a"},"n/a","n/a",0,0,1,1,{"$f":"MIN((IFERROR(IF(AND($V166<=Z$1,$W166>=Z$1),INDEX(Reliability!E$23:E$50,MATCH($S166,Reliability!$C$23:$C$50,0)),0),0)*IF($T166=\"n/a\",$D166*$Y166,$G166)+IFERROR(IF(AND($V166<=Z$1,$W166>=Z$1),INDEX(Reliability!E$23:E$50,MATCH($T166,Reliability!$C$23:$C$50,0)),0),0)*$H166*$X166*$Y166),$D166)*$R166","v":0},{"$f":"MIN((IFERROR(IF(AND($V166<=AA$1,$W166>=AA$1),INDEX(Reliability!F$23:F$50,MATCH($S166,Reliability!$C$23:$C$50,0)),0),0)*IF($T166=\"n/a\",$D166*$Y166,$G166)+IFERROR(IF(AND($V166<=AA$1,$W166>=AA$1),INDEX(Reliability!F$23:F$50,MATCH($T166,Reliability!$C$23:$C$50,0)),0),0)*$H166*$X166*$Y166),$D166)*$R166","v":0},{"$f":"MIN((IFERROR(IF(AND($V166<=AB$1,$W166>=AB$1),INDEX(Reliability!G$23:G$50,MATCH($S166,Reliability!$C$23:$C$50,0)),0),0)*IF($T166=\"n/a\",$D166*$Y166,$G166)+IFERROR(IF(AND($V166<=AB$1,$W166>=AB$1),INDEX(Reliability!G$23:G$50,MATCH($T166,Reliability!$C$23:$C$50,0)),0),0)*$H166*$X166*$Y166),$D166)*$R166","v":0},{"$f":"MIN((IFERROR(IF(AND($V166<=AC$1,$W166>=AC$1),INDEX(Reliability!H$23:H$50,MATCH($S166,Reliability!$C$23:$C$50,0)),0),0)*IF($T166=\"n/a\",$D166*$Y166,$G166)+IFERROR(IF(AND($V166<=AC$1,$W166>=AC$1),INDEX(Reliability!H$23:H$50,MATCH($T166,Reliability!$C$23:$C$50,0)),0),0)*$H166*$X166*$Y166),$D166)*$R166","v":0},{"$f":"MIN((IFERROR(IF(AND($V166<=AD$1,$W166>=AD$1),INDEX(Reliability!I$23:I$50,MATCH($S166,Reliability!$C$23:$C$50,0)),0),0)*IF($T166=\"n/a\",$D166*$Y166,$G166)+IFERROR(IF(AND($V166<=AD$1,$W166>=AD$1),INDEX(Reliability!I$23:I$50,MATCH($T166,Reliability!$C$23:$C$50,0)),0),0)*$H166*$X166*$Y166),$D166)*$R166","v":0},{"$f":"MIN((IFERROR(IF(AND($V166<=AE$1,$W166>=AE$1),INDEX(Reliability!J$23:J$50,MATCH($S166,Reliability!$C$23:$C$50,0)),0),0)*IF($T166=\"n/a\",$D166*$Y166,$G166)+IFERROR(IF(AND($V166<=AE$1,$W166>=AE$1),INDEX(Reliability!J$23:J$50,MATCH($T166,Reliability!$C$23:$C$50,0)),0),0)*$H166*$X166*$Y166),$D166)*$R166","v":0},{"$f":"MIN((IFERROR(IF(AND($V166<=AF$1,$W166>=AF$1),INDEX(Reliability!K$23:K$50,MATCH($S166,Reliability!$C$23:$C$50,0)),0),0)*IF($T166=\"n/a\",$D166*$Y166,$G166)+IFERROR(IF(AND($V166<=AF$1,$W166>=AF$1),INDEX(Reliability!K$23:K$50,MATCH($T166,Reliability!$C$23:$C$50,0)),0),0)*$H166*$X166*$Y166),$D166)*$R166","v":0},{"$f":"MIN((IFERROR(IF(AND($V166<=AG$1,$W166>=AG$1),INDEX(Reliability!L$23:L$50,MATCH($S166,Reliability!$C$23:$C$50,0)),0),0)*IF($T166=\"n/a\",$D166*$Y166,$G166)+IFERROR(IF(AND($V166<=AG$1,$W166>=AG$1),INDEX(Reliability!L$23:L$50,MATCH($T166,Reliability!$C$23:$C$50,0)),0),0)*$H166*$X166*$Y166),$D166)*$R166","v":0},{"$f":"MIN((IFERROR(IF(AND($V166<=AH$1,$W166>=AH$1),INDEX(Reliability!M$23:M$50,MATCH($S166,Reliability!$C$23:$C$50,0)),0),0)*IF($T166=\"n/a\",$D166*$Y166,$G166)+IFERROR(IF(AND($V166<=AH$1,$W166>=AH$1),INDEX(Reliability!M$23:M$50,MATCH($T166,Reliability!$C$23:$C$50,0)),0),0)*$H166*$X166*$Y166),$D166)*$R166","v":0},{"$f":"MIN((IFERROR(IF(AND($V166<=AI$1,$W166>=AI$1),INDEX(Reliability!N$23:N$50,MATCH($S166,Reliability!$C$23:$C$50,0)),0),0)*IF($T166=\"n/a\",$D166*$Y166,$G166)+IFERROR(IF(AND($V166<=AI$1,$W166>=AI$1),INDEX(Reliability!N$23:N$50,MATCH($T166,Reliability!$C$23:$C$50,0)),0),0)*$H166*$X166*$Y166),$D166)*$R166","v":0},{"$f":"MIN((IFERROR(IF(AND($V166<=AJ$1,$W166>=AJ$1),INDEX(Reliability!O$23:O$50,MATCH($S166,Reliability!$C$23:$C$50,0)),0),0)*IF($T166=\"n/a\",$D166*$Y166,$G166)+IFERROR(IF(AND($V166<=AJ$1,$W166>=AJ$1),INDEX(Reliability!O$23:O$50,MATCH($T166,Reliability!$C$23:$C$50,0)),0),0)*$H166*$X166*$Y166),$D166)*$R166","v":0},{"$f":"MIN((IFERROR(IF(AND($V166<=AK$1,$W166>=AK$1),INDEX(Reliability!P$23:P$50,MATCH($S166,Reliability!$C$23:$C$50,0)),0),0)*IF($T166=\"n/a\",$D166*$Y166,$G166)+IFERROR(IF(AND($V166<=AK$1,$W166>=AK$1),INDEX(Reliability!P$23:P$50,MATCH($T166,Reliability!$C$23:$C$50,0)),0),0)*$H166*$X166*$Y166),$D166)*$R166","v":0}]
[null,{"$f":"unique_contracts!B168","v":0},{"$f":"unique_contracts!D168","v":0},{"$f":"unique_contracts!J168","v":0},{"$f":"unique_contracts!M168","v":0},{"$f":"unique_contracts!N168","v":0},{"$f":"unique_contracts!P168","v":0},{"$f":"unique_contracts!R168","v":0},{"$f":"unique_contracts!V168","v":0},{"$f":"unique_contracts!AB168","v":0},{"$f":"unique_contracts!AM168","v":0},{"$f":"unique_contracts!AN168","v":0},{"$f":"unique_contracts!AO168","v":0},{"$f":"unique_contracts!AP168","v":0},{"$f":"unique_contracts!AQ168","v":0},{"$f":"unique_contracts!AR168","v":0},{"$f":"unique_contracts!BP168","v":0},0,{"$f":"IFERROR(IF(AND(I167>0,E167=\"NotHybrid\"),_xlfn.CONCAT(MAX(MIN(ROUNDDOWN(I167/D167,0),8),4),INDEX(resources!$G:$G,MATCH(B167,resources!$A:$A,0))),INDEX(resources!$G:$G,MATCH(B167,resources!$A:$A,0))),\"n/a\")","v":"n/a"},"n/a","n/a",0,0,1,1,{"$f":"MIN((IFERROR(IF(AND($V167<=Z$1,$W167>=Z$1),INDEX(Reliability!E$23:E$50,MATCH($S167,Reliability!$C$23:$C$50,0)),0),0)*IF($T167=\"n/a\",$D167*$Y167,$G167)+IFERROR(IF(AND($V167<=Z$1,$W167>=Z$1),INDEX(Reliability!E$23:E$50,MATCH($T167,Reliability!$C$23:$C$50,0)),0),0)*$H167*$X167*$Y167),$D167)*$R167","v":0},{"$f":"MIN((IFERROR(IF(AND($V167<=AA$1,$W167>=AA$1),INDEX(Reliability!F$23:F$50,MATCH($S167,Reliability!$C$23:$C$50,0)),0),0)*IF($T167=\"n/a\",$D167*$Y167,$G167)+IFERROR(IF(AND($V167<=AA$1,$W167>=AA$1),INDEX(Reliability!F$23:F$50,MATCH($T167,Reliability!$C$23:$C$50,0)),0),0)*$H167*$X167*$Y167),$D167)*$R167","v":0},{"$f":"MIN((IFERROR(IF(AND($V167<=AB$1,$W167>=AB$1),INDEX(Reliability!G$23:G$50,MATCH($S167,Reliability!$C$23:$C$50,0)),0),0)*IF($T167=\"n/a\",$D167*$Y167,$G167)+IFERROR(IF(AND($V167<=AB$1,$W167>=AB$1),INDEX(Reliability!G$23:G$50,MATCH($T167,Reliability!$C$23:$C$50,0)),0),0)*$H167*$X167*$Y167),$D167)*$R167","v":0},{"$f":"MIN((IFERROR(IF(AND($V167<=AC$1,$W167>=AC$1),INDEX(Reliability!H$23:H$50,MATCH($S167,Reliability!$C$23:$C$50,0)),0),0)*IF($T167=\"n/a\",$D167*$Y167,$G167)+IFERROR(IF(AND($V167<=AC$1,$W167>=AC$1),INDEX(Reliability!H$23:H$50,MATCH($T167,Reliability!$C$23:$C$50,0)),0),0)*$H167*$X167*$Y167),$D167)*$R167","v":0},{"$f":"MIN((IFERROR(IF(AND($V167<=AD$1,$W167>=AD$1),INDEX(Reliability!I$23:I$50,MATCH($S167,Reliability!$C$23:$C$50,0)),0),0)*IF($T167=\"n/a\",$D167*$Y167,$G167)+IFERROR(IF(AND($V167<=AD$1,$W167>=AD$1),INDEX(Reliability!I$23:I$50,MATCH($T167,Reliability!$C$23:$C$50,0)),0),0)*$H167*$X167*$Y167),$D167)*$R167","v":0},{"$f":"MIN((IFERROR(IF(AND($V167<=AE$1,$W167>=AE$1),INDEX(Reliability!J$23:J$50,MATCH($S167,Reliability!$C$23:$C$50,0)),0),0)*IF($T167=\"n/a\",$D167*$Y167,$G167)+IFERROR(IF(AND($V167<=AE$1,$W167>=AE$1),INDEX(Reliability!J$23:J$50,MATCH($T167,Reliability!$C$23:$C$50,0)),0),0)*$H167*$X167*$Y167),$D167)*$R167","v":0},{"$f":"MIN((IFERROR(IF(AND($V167<=AF$1,$W167>=AF$1),INDEX(Reliability!K$23:K$50,MATCH($S167,Reliability!$C$23:$C$50,0)),0),0)*IF($T167=\"n/a\",$D167*$Y167,$G167)+IFERROR(IF(AND($V167<=AF$1,$W167>=AF$1),INDEX(Reliability!K$23:K$50,MATCH($T167,Reliability!$C$23:$C$50,0)),0),0)*$H167*$X167*$Y167),$D167)*$R167","v":0},{"$f":"MIN((IFERROR(IF(AND($V167<=AG$1,$W167>=AG$1),INDEX(Reliability!L$23:L$50,MATCH($S167,Reliability!$C$23:$C$50,0)),0),0)*IF($T167=\"n/a\",$D167*$Y167,$G167)+IFERROR(IF(AND($V167<=AG$1,$W167>=AG$1),INDEX(Reliability!L$23:L$50,MATCH($T167,Reliability!$C$23:$C$50,0)),0),0)*$H167*$X167*$Y167),$D167)*$R167","v":0},{"$f":"MIN((IFERROR(IF(AND($V167<=AH$1,$W167>=AH$1),INDEX(Reliability!M$23:M$50,MATCH($S167,Reliability!$C$23:$C$50,0)),0),0)*IF($T167=\"n/a\",$D167*$Y167,$G167)+IFERROR(IF(AND($V167<=AH$1,$W167>=AH$1),INDEX(Reliability!M$23:M$50,MATCH($T167,Reliability!$C$23:$C$50,0)),0),0)*$H167*$X167*$Y167),$D167)*$R167","v":0},{"$f":"MIN((IFERROR(IF(AND($V167<=AI$1,$W167>=AI$1),INDEX(Reliability!N$23:N$50,MATCH($S167,Reliability!$C$23:$C$50,0)),0),0)*IF($T167=\"n/a\",$D167*$Y167,$G167)+IFERROR(IF(AND($V167<=AI$1,$W167>=AI$1),INDEX(Reliability!N$23:N$50,MATCH($T167,Reliability!$C$23:$C$50,0)),0),0)*$H167*$X167*$Y167),$D167)*$R167","v":0},{"$f":"MIN((IFERROR(IF(AND($V167<=AJ$1,$W167>=AJ$1),INDEX(Reliability!O$23:O$50,MATCH($S167,Reliability!$C$23:$C$50,0)),0),0)*IF($T167=\"n/a\",$D167*$Y167,$G167)+IFERROR(IF(AND($V167<=AJ$1,$W167>=AJ$1),INDEX(Reliability!O$23:O$50,MATCH($T167,Reliability!$C$23:$C$50,0)),0),0)*$H167*$X167*$Y167),$D167)*$R167","v":0},{"$f":"MIN((IFERROR(IF(AND($V167<=AK$1,$W167>=AK$1),INDEX(Reliability!P$23:P$50,MATCH($S167,Reliability!$C$23:$C$50,0)),0),0)*IF($T167=\"n/a\",$D167*$Y167,$G167)+IFERROR(IF(AND($V167<=AK$1,$W167>=AK$1),INDEX(Reliability!P$23:P$50,MATCH($T167,Reliability!$C$23:$C$50,0)),0),0)*$H167*$X167*$Y167),$D167)*$R167","v":0}]
[null,{"$f":"unique_contracts!B169","v":0},{"$f":"unique_contracts!D169","v":0},{"$f":"unique_contracts!J169","v":0},{"$f":"unique_contracts!M169","v":0},{"$f":"unique_contracts!N169","v":0},{"$f":"unique_contracts!P169","v":0},{"$f":"unique_contracts!R169","v":0},{"$f":"unique_contracts!V169","v":0},{"$f":"unique_contracts!AB169","v":0},{"$f":"unique_contracts!AM169","v":0},{"$f":"unique_contracts!AN169","v":0},{"$f":"unique_contracts!AO169","v":0},{"$f":"unique_contracts!AP169","v":0},{"$f":"unique_contracts!AQ169","v":0},{"$f":"unique_contracts!AR169","v":0},{"$f":"unique_contracts!BP169","v":0},0,{"$f":"IFERROR(IF(AND(I168>0,E168=\"NotHybrid\"),_xlfn.CONCAT(MAX(MIN(ROUNDDOWN(I168/D168,0),8),4),INDEX(resources!$G:$G,MATCH(B168,resources!$A:$A,0))),INDEX(resources!$G:$G,MATCH(B168,resources!$A:$A,0))),\"n/a\")","v":"n/a"},"n/a","n/a",0,0,1,1,{"$f":"MIN((IFERROR(IF(AND($V168<=Z$1,$W168>=Z$1),INDEX(Reliability!E$23:E$50,MATCH($S168,Reliability!$C$23:$C$50,0)),0),0)*IF($T168=\"n/a\",$D168*$Y168,$G168)+IFERROR(IF(AND($V168<=Z$1,$W168>=Z$1),INDEX(Reliability!E$23:E$50,MATCH($T168,Reliability!$C$23:$C$50,0)),0),0)*$H168*$X168*$Y168),$D168)*$R168","v":0},{"$f":"MIN((IFERROR(IF(AND($V168<=AA$1,$W168>=AA$1),INDEX(Reliability!F$23:F$50,MATCH($S168,Reliability!$C$23:$C$50,0)),0),0)*IF($T168=\"n/a\",$D168*$Y168,$G168)+IFERROR(IF(AND($V168<=AA$1,$W168>=AA$1),INDEX(Reliability!F$23:F$50,MATCH($T168,Reliability!$C$23:$C$50,0)),0),0)*$H168*$X168*$Y168),$D168)*$R168","v":0},{"$f":"MIN((IFERROR(IF(AND($V168<=AB$1,$W168>=AB$1),INDEX(Reliability!G$23:G$50,MATCH($S168,Reliability!$C$23:$C$50,0)),0),0)*IF($T168=\"n/a\",$D168*$Y168,$G168)+IFERROR(IF(AND($V168<=AB$1,$W168>=AB$1),INDEX(Reliability!G$23:G$50,MATCH($T168,Reliability!$C$23:$C$50,0)),0),0)*$H168*$X168*$Y168),$D168)*$R168","v":0},{"$f":"MIN((IFERROR(IF(AND($V168<=AC$1,$W168>=AC$1),INDEX(Reliability!H$23:H$50,MATCH($S168,Reliability!$C$23:$C$50,0)),0),0)*IF($T168=\"n/a\",$D168*$Y168,$G168)+IFERROR(IF(AND($V168<=AC$1,$W168>=AC$1),INDEX(Reliability!H$23:H$50,MATCH($T168,Reliability!$C$23:$C$50,0)),0),0)*$H168*$X168*$Y168),$D168)*$R168","v":0},{"$f":"MIN((IFERROR(IF(AND($V168<=AD$1,$W168>=AD$1),INDEX(Reliability!I$23:I$50,MATCH($S168,Reliability!$C$23:$C$50,0)),0),0)*IF($T168=\"n/a\",$D168*$Y168,$G168)+IFERROR(IF(AND($V168<=AD$1,$W168>=AD$1),INDEX(Reliability!I$23:I$50,MATCH($T168,Reliability!$C$23:$C$50,0)),0),0)*$H168*$X168*$Y168),$D168)*$R168","v":0},{"$f":"MIN((IFERROR(IF(AND($V168<=AE$1,$W168>=AE$1),INDEX(Reliability!J$23:J$50,MATCH($S168,Reliability!$C$23:$C$50,0)),0),0)*IF($T168=\"n/a\",$D168*$Y168,$G168)+IFERROR(IF(AND($V168<=AE$1,$W168>=AE$1),INDEX(Reliability!J$23:J$50,MATCH($T168,Reliability!$C$23:$C$50,0)),0),0)*$H168*$X168*$Y168),$D168)*$R168","v":0},{"$f":"MIN((IFERROR(IF(AND($V168<=AF$1,$W168>=AF$1),INDEX(Reliability!K$23:K$50,MATCH($S168,Reliability!$C$23:$C$50,0)),0),0)*IF($T168=\"n/a\",$D168*$Y168,$G168)+IFERROR(IF(AND($V168<=AF$1,$W168>=AF$1),INDEX(Reliability!K$23:K$50,MATCH($T168,Reliability!$C$23:$C$50,0)),0),0)*$H168*$X168*$Y168),$D168)*$R168","v":0},{"$f":"MIN((IFERROR(IF(AND($V168<=AG$1,$W168>=AG$1),INDEX(Reliability!L$23:L$50,MATCH($S168,Reliability!$C$23:$C$50,0)),0),0)*IF($T168=\"n/a\",$D168*$Y168,$G168)+IFERROR(IF(AND($V168<=AG$1,$W168>=AG$1),INDEX(Reliability!L$23:L$50,MATCH($T168,Reliability!$C$23:$C$50,0)),0),0)*$H168*$X168*$Y168),$D168)*$R168","v":0},{"$f":"MIN((IFERROR(IF(AND($V168<=AH$1,$W168>=AH$1),INDEX(Reliability!M$23:M$50,MATCH($S168,Reliability!$C$23:$C$50,0)),0),0)*IF($T168=\"n/a\",$D168*$Y168,$G168)+IFERROR(IF(AND($V168<=AH$1,$W168>=AH$1),INDEX(Reliability!M$23:M$50,MATCH($T168,Reliability!$C$23:$C$50,0)),0),0)*$H168*$X168*$Y168),$D168)*$R168","v":0},{"$f":"MIN((IFERROR(IF(AND($V168<=AI$1,$W168>=AI$1),INDEX(Reliability!N$23:N$50,MATCH($S168,Reliability!$C$23:$C$50,0)),0),0)*IF($T168=\"n/a\",$D168*$Y168,$G168)+IFERROR(IF(AND($V168<=AI$1,$W168>=AI$1),INDEX(Reliability!N$23:N$50,MATCH($T168,Reliability!$C$23:$C$50,0)),0),0)*$H168*$X168*$Y168),$D168)*$R168","v":0},{"$f":"MIN((IFERROR(IF(AND($V168<=AJ$1,$W168>=AJ$1),INDEX(Reliability!O$23:O$50,MATCH($S168,Reliability!$C$23:$C$50,0)),0),0)*IF($T168=\"n/a\",$D168*$Y168,$G168)+IFERROR(IF(AND($V168<=AJ$1,$W168>=AJ$1),INDEX(Reliability!O$23:O$50,MATCH($T168,Reliability!$C$23:$C$50,0)),0),0)*$H168*$X168*$Y168),$D168)*$R168","v":0},{"$f":"MIN((IFERROR(IF(AND($V168<=AK$1,$W168>=AK$1),INDEX(Reliability!P$23:P$50,MATCH($S168,Reliability!$C$23:$C$50,0)),0),0)*IF($T168=\"n/a\",$D168*$Y168,$G168)+IFERROR(IF(AND($V168<=AK$1,$W168>=AK$1),INDEX(Reliability!P$23:P$50,MATCH($T168,Reliability!$C$23:$C$50,0)),0),0)*$H168*$X168*$Y168),$D168)*$R168","v":0}]
[null,{"$f":"unique_contracts!B170","v":0},{"$f":"unique_contracts!D170","v":0},{"$f":"unique_contracts!J170","v":0},{"$f":"unique_contracts!M170","v":0},{"$f":"unique_contracts!N170","v":0},{"$f":"unique_contracts!P170","v":0},{"$f":"unique_contracts!R170","v":0},{"$f":"unique_contracts!V170","v":0},{"$f":"unique_contracts!AB170","v":0},{"$f":"unique_contracts!AM170","v":0},{"$f":"unique_contracts!AN170","v":0},{"$f":"unique_contracts!AO170","v":0},{"$f":"unique_contracts!AP170","v":0},{"$f":"unique_contracts!AQ170","v":0},{"$f":"unique_contracts!AR170","v":0},{"$f":"unique_contracts!BP170","v":0},0,{"$f":"IFERROR(IF(AND(I169>0,E169=\"NotHybrid\"),_xlfn.CONCAT(MAX(MIN(ROUNDDOWN(I169/D169,0),8),4),INDEX(resources!$G:$G,MATCH(B169,resources!$A:$A,0))),INDEX(resources!$G:$G,MATCH(B169,resources!$A:$A,0))),\"n/a\")","v":"n/a"},"n/a","n/a",0,0,1,1,{"$f":"MIN((IFERROR(IF(AND($V169<=Z$1,$W169>=Z$1),INDEX(Reliability!E$23:E$50,MATCH($S169,Reliability!$C$23:$C$50,0)),0),0)*IF($T169=\"n/a\",$D169*$Y169,$G169)+IFERROR(IF(AND($V169<=Z$1,$W169>=Z$1),INDEX(Reliability!E$23:E$50,MATCH($T169,Reliability!$C$23:$C$50,0)),0),0)*$H169*$X169*$Y169),$D169)*$R169","v":0},{"$f":"MIN((IFERROR(IF(AND($V169<=AA$1,$W169>=AA$1),INDEX(Reliability!F$23:F$50,MATCH($S169,Reliability!$C$23:$C$50,0)),0),0)*IF($T169=\"n/a\",$D169*$Y169,$G169)+IFERROR(IF(AND($V169<=AA$1,$W169>=AA$1),INDEX(Reliability!F$23:F$50,MATCH($T169,Reliability!$C$23:$C$50,0)),0),0)*$H169*$X169*$Y169),$D169)*$R169","v":0},{"$f":"MIN((IFERROR(IF(AND($V169<=AB$1,$W169>=AB$1),INDEX(Reliability!G$23:G$50,MATCH($S169,Reliability!$C$23:$C$50,0)),0),0)*IF($T169=\"n/a\",$D169*$Y169,$G169)+IFERROR(IF(AND($V169<=AB$1,$W169>=AB$1),INDEX(Reliability!G$23:G$50,MATCH($T169,Reliability!$C$23:$C$50,0)),0),0)*$H169*$X169*$Y169),$D169)*$R169","v":0},{"$f":"MIN((IFERROR(IF(AND($V169<=AC$1,$W169>=AC$1),INDEX(Reliability!H$23:H$50,MATCH($S169,Reliability!$C$23:$C$50,0)),0),0)*IF($T169=\"n/a\",$D169*$Y169,$G169)+IFERROR(IF(AND($V169<=AC$1,$W169>=AC$1),INDEX(Reliability!H$23:H$50,MATCH($T169,Reliability!$C$23:$C$50,0)),0),0)*$H169*$X169*$Y169),$D169)*$R169","v":0},{"$f":"MIN((IFERROR(IF(AND($V169<=AD$1,$W169>=AD$1),INDEX(Reliability!I$23:I$50,MATCH($S169,Reliability!$C$23:$C$50,0)),0),0)*IF($T169=\"n/a\",$D169*$Y169,$G169)+IFERROR(IF(AND($V169<=AD$1,$W169>=AD$1),INDEX(Reliability!I$23:I$50,MATCH($T169,Reliability!$C$23:$C$50,0)),0),0)*$H169*$X169*$Y169),$D169)*$R169","v":0},{"$f":"MIN((IFERROR(IF(AND($V169<=AE$1,$W169>=AE$1),INDEX(Reliability!J$23:J$50,MATCH($S169,Reliability!$C$23:$C$50,0)),0),0)*IF($T169=\"n/a\",$D169*$Y169,$G169)+IFERROR(IF(AND($V169<=AE$1,$W169>=AE$1),INDEX(Reliability!J$23:J$50,MATCH($T169,Reliability!$C$23:$C$50,0)),0),0)*$H169*$X169*$Y169),$D169)*$R169","v":0},{"$f":"MIN((IFERROR(IF(AND($V169<=AF$1,$W169>=AF$1),INDEX(Reliability!K$23:K$50,MATCH($S169,Reliability!$C$23:$C$50,0)),0),0)*IF($T169=\"n/a\",$D169*$Y169,$G169)+IFERROR(IF(AND($V169<=AF$1,$W169>=AF$1),INDEX(Reliability!K$23:K$50,MATCH($T169,Reliability!$C$23:$C$50,0)),0),0)*$H169*$X169*$Y169),$D169)*$R169","v":0},{"$f":"MIN((IFERROR(IF(AND($V169<=AG$1,$W169>=AG$1),INDEX(Reliability!L$23:L$50,MATCH($S169,Reliability!$C$23:$C$50,0)),0),0)*IF($T169=\"n/a\",$D169*$Y169,$G169)+IFERROR(IF(AND($V169<=AG$1,$W169>=AG$1),INDEX(Reliability!L$23:L$50,MATCH($T169,Reliability!$C$23:$C$50,0)),0),0)*$H169*$X169*$Y169),$D169)*$R169","v":0},{"$f":"MIN((IFERROR(IF(AND($V169<=AH$1,$W169>=AH$1),INDEX(Reliability!M$23:M$50,MATCH($S169,Reliability!$C$23:$C$50,0)),0),0)*IF($T169=\"n/a\",$D169*$Y169,$G169)+IFERROR(IF(AND($V169<=AH$1,$W169>=AH$1),INDEX(Reliability!M$23:M$50,MATCH($T169,Reliability!$C$23:$C$50,0)),0),0)*$H169*$X169*$Y169),$D169)*$R169","v":0},{"$f":"MIN((IFERROR(IF(AND($V169<=AI$1,$W169>=AI$1),INDEX(Reliability!N$23:N$50,MATCH($S169,Reliability!$C$23:$C$50,0)),0),0)*IF($T169=\"n/a\",$D169*$Y169,$G169)+IFERROR(IF(AND($V169<=AI$1,$W169>=AI$1),INDEX(Reliability!N$23:N$50,MATCH($T169,Reliability!$C$23:$C$50,0)),0),0)*$H169*$X169*$Y169),$D169)*$R169","v":0},{"$f":"MIN((IFERROR(IF(AND($V169<=AJ$1,$W169>=AJ$1),INDEX(Reliability!O$23:O$50,MATCH($S169,Reliability!$C$23:$C$50,0)),0),0)*IF($T169=\"n/a\",$D169*$Y169,$G169)+IFERROR(IF(AND($V169<=AJ$1,$W169>=AJ$1),INDEX(Reliability!O$23:O$50,MATCH($T169,Reliability!$C$23:$C$50,0)),0),0)*$H169*$X169*$Y169),$D169)*$R169","v":0},{"$f":"MIN((IFERROR(IF(AND($V169<=AK$1,$W169>=AK$1),INDEX(Reliability!P$23:P$50,MATCH($S169,Reliability!$C$23:$C$50,0)),0),0)*IF($T169=\"n/a\",$D169*$Y169,$G169)+IFERROR(IF(AND($V169<=AK$1,$W169>=AK$1),INDEX(Reliability!P$23:P$50,MATCH($T169,Reliability!$C$23:$C$50,0)),0),0)*$H169*$X169*$Y169),$D169)*$R169","v":0}]
[null,{"$f":"unique_contracts!B171","v":0},{"$f":"unique_contracts!D171","v":0},{"$f":"unique_contracts!J171","v":0},{"$f":"unique_contracts!M171","v":0},{"$f":"unique_contracts!N171","v":0},{"$f":"unique_contracts!P171","v":0},{"$f":"unique_contracts!R171","v":0},{"$f":"unique_contracts!V171","v":0},{"$f":"unique_contracts!AB171","v":0},{"$f":"unique_contracts!AM171","v":0},{"$f":"unique_contracts!AN171","v":0},{"$f":"unique_contracts!AO171","v":0},{"$f":"unique_contracts!AP171","v":0},{"$f":"unique_contracts!AQ171","v":0},{"$f":"unique_contracts!AR171","v":0},{"$f":"unique_contracts!BP171","v":0},0,{"$f":"IFERROR(IF(AND(I170>0,E170=\"NotHybrid\"),_xlfn.CONCAT(MAX(MIN(ROUNDDOWN(I170/D170,0),8),4),INDEX(resources!$G:$G,MATCH(B170,resources!$A:$A,0))),INDEX(resources!$G:$G,MATCH(B170,resources!$A:$A,0))),\"n/a\")","v":"n/a"},"n/a","n/a",0,0,1,1,{"$f":"MIN((IFERROR(IF(AND($V170<=Z$1,$W170>=Z$1),INDEX(Reliability!E$23:E$50,MATCH($S170,Reliability!$C$23:$C$50,0)),0),0)*IF($T170=\"n/a\",$D170*$Y170,$G170)+IFERROR(IF(AND($V170<=Z$1,$W170>=Z$1),INDEX(Reliability!E$23:E$50,MATCH($T170,Reliability!$C$23:$C$50,0)),0),0)*$H170*$X170*$Y170),$D170)*$R170","v":0},{"$f":"MIN((IFERROR(IF(AND($V170<=AA$1,$W170>=AA$1),INDEX(Reliability!F$23:F$50,MATCH($S170,Reliability!$C$23:$C$50,0)),0),0)*IF($T170=\"n/a\",$D170*$Y170,$G170)+IFERROR(IF(AND($V170<=AA$1,$W170>=AA$1),INDEX(Reliability!F$23:F$50,MATCH($T170,Reliability!$C$23:$C$50,0)),0),0)*$H170*$X170*$Y170),$D170)*$R170","v":0},{"$f":"MIN((IFERROR(IF(AND($V170<=AB$1,$W170>=AB$1),INDEX(Reliability!G$23:G$50,MATCH($S170,Reliability!$C$23:$C$50,0)),0),0)*IF($T170=\"n/a\",$D170*$Y170,$G170)+IFERROR(IF(AND($V170<=AB$1,$W170>=AB$1),INDEX(Reliability!G$23:G$50,MATCH($T170,Reliability!$C$23:$C$50,0)),0),0)*$H170*$X170*$Y170),$D170)*$R170","v":0},{"$f":"MIN((IFERROR(IF(AND($V170<=AC$1,$W170>=AC$1),INDEX(Reliability!H$23:H$50,MATCH($S170,Reliability!$C$23:$C$50,0)),0),0)*IF($T170=\"n/a\",$D170*$Y170,$G170)+IFERROR(IF(AND($V170<=AC$1,$W170>=AC$1),INDEX(Reliability!H$23:H$50,MATCH($T170,Reliability!$C$23:$C$50,0)),0),0)*$H170*$X170*$Y170),$D170)*$R170","v":0},{"$f":"MIN((IFERROR(IF(AND($V170<=AD$1,$W170>=AD$1),INDEX(Reliability!I$23:I$50,MATCH($S170,Reliability!$C$23:$C$50,0)),0),0)*IF($T170=\"n/a\",$D170*$Y170,$G170)+IFERROR(IF(AND($V170<=AD$1,$W170>=AD$1),INDEX(Reliability!I$23:I$50,MATCH($T170,Reliability!$C$23:$C$50,0)),0),0)*$H170*$X170*$Y170),$D170)*$R170","v":0},{"$f":"MIN((IFERROR(IF(AND($V170<=AE$1,$W170>=AE$1),INDEX(Reliability!J$23:J$50,MATCH($S170,Reliability!$C$23:$C$50,0)),0),0)*IF($T170=\"n/a\",$D170*$Y170,$G170)+IFERROR(IF(AND($V170<=AE$1,$W170>=AE$1),INDEX(Reliability!J$23:J$50,MATCH($T170,Reliability!$C$23:$C$50,0)),0),0)*$H170*$X170*$Y170),$D170)*$R170","v":0},{"$f":"MIN((IFERROR(IF(AND($V170<=AF$1,$W170>=AF$1),INDEX(Reliability!K$23:K$50,MATCH($S170,Reliability!$C$23:$C$50,0)),0),0)*IF($T170=\"n/a\",$D170*$Y170,$G170)+IFERROR(IF(AND($V170<=AF$1,$W170>=AF$1),INDEX(Reliability!K$23:K$50,MATCH($T170,Reliability!$C$23:$C$50,0)),0),0)*$H170*$X170*$Y170),$D170)*$R170","v":0},{"$f":"MIN((IFERROR(IF(AND($V170<=AG$1,$W170>=AG$1),INDEX(Reliability!L$23:L$50,MATCH($S170,Reliability!$C$23:$C$50,0)),0),0)*IF($T170=\"n/a\",$D170*$Y170,$G170)+IFERROR(IF(AND($V170<=AG$1,$W170>=AG$1),INDEX(Reliability!L$23:L$50,MATCH($T170,Reliability!$C$23:$C$50,0)),0),0)*$H170*$X170*$Y170),$D170)*$R170","v":0},{"$f":"MIN((IFERROR(IF(AND($V170<=AH$1,$W170>=AH$1),INDEX(Reliability!M$23:M$50,MATCH($S170,Reliability!$C$23:$C$50,0)),0),0)*IF($T170=\"n/a\",$D170*$Y170,$G170)+IFERROR(IF(AND($V170<=AH$1,$W170>=AH$1),INDEX(Reliability!M$23:M$50,MATCH($T170,Reliability!$C$23:$C$50,0)),0),0)*$H170*$X170*$Y170),$D170)*$R170","v":0},{"$f":"MIN((IFERROR(IF(AND($V170<=AI$1,$W170>=AI$1),INDEX(Reliability!N$23:N$50,MATCH($S170,Reliability!$C$23:$C$50,0)),0),0)*IF($T170=\"n/a\",$D170*$Y170,$G170)+IFERROR(IF(AND($V170<=AI$1,$W170>=AI$1),INDEX(Reliability!N$23:N$50,MATCH($T170,Reliability!$C$23:$C$50,0)),0),0)*$H170*$X170*$Y170),$D170)*$R170","v":0},{"$f":"MIN((IFERROR(IF(AND($V170<=AJ$1,$W170>=AJ$1),INDEX(Reliability!O$23:O$50,MATCH($S170,Reliability!$C$23:$C$50,0)),0),0)*IF($T170=\"n/a\",$D170*$Y170,$G170)+IFERROR(IF(AND($V170<=AJ$1,$W170>=AJ$1),INDEX(Reliability!O$23:O$50,MATCH($T170,Reliability!$C$23:$C$50,0)),0),0)*$H170*$X170*$Y170),$D170)*$R170","v":0},{"$f":"MIN((IFERROR(IF(AND($V170<=AK$1,$W170>=AK$1),INDEX(Reliability!P$23:P$50,MATCH($S170,Reliability!$C$23:$C$50,0)),0),0)*IF($T170=\"n/a\",$D170*$Y170,$G170)+IFERROR(IF(AND($V170<=AK$1,$W170>=AK$1),INDEX(Reliability!P$23:P$50,MATCH($T170,Reliability!$C$23:$C$50,0)),0),0)*$H170*$X170*$Y170),$D170)*$R170","v":0}]
[null,{"$f":"unique_contracts!B172","v":0},{"$f":"unique_contracts!D172","v":0},{"$f":"unique_contracts!J172","v":0},{"$f":"unique_contracts!M172","v":0},{"$f":"unique_contracts!N172","v":0},{"$f":"unique_contracts!P172","v":0},{"$f":"unique_contracts!R172","v":0},{"$f":"unique_contracts!V172","v":0},{"$f":"unique_contracts!AB172","v":0},{"$f":"unique_contracts!AM172","v":0},{"$f":"unique_contracts!AN172","v":0},{"$f":"unique_contracts!AO172","v":0},{"$f":"unique_contracts!AP172","v":0},{"$f":"unique_contracts!AQ172","v":0},{"$f":"unique_contracts!AR172","v":0},{"$f":"unique_contracts!BP172","v":0},0,{"$f":"IFERROR(IF(AND(I171>0,E171=\"NotHybrid\"),_xlfn.CONCAT(MAX(MIN(ROUNDDOWN(I171/D171,0),8),4),INDEX(resources!$G:$G,MATCH(B171,resources!$A:$A,0))),INDEX(resources!$G:$G,MATCH(B171,resources!$A:$A,0))),\"n/a\")","v":"n/a"},"n/a","n/a",0,0,1,1,{"$f":"MIN((IFERROR(IF(AND($V171<=Z$1,$W171>=Z$1),INDEX(Reliability!E$23:E$50,MATCH($S171,Reliability!$C$23:$C$50,0)),0),0)*IF($T171=\"n/a\",$D171*$Y171,$G171)+IFERROR(IF(AND($V171<=Z$1,$W171>=Z$1),INDEX(Reliability!E$23:E$50,MATCH($T171,Reliability!$C$23:$C$50,0)),0),0)*$H171*$X171*$Y171),$D171)*$R171","v":0},{"$f":"MIN((IFERROR(IF(AND($V171<=AA$1,$W171>=AA$1),INDEX(Reliability!F$23:F$50,MATCH($S171,Reliability!$C$23:$C$50,0)),0),0)*IF($T171=\"n/a\",$D171*$Y171,$G171)+IFERROR(IF(AND($V171<=AA$1,$W171>=AA$1),INDEX(Reliability!F$23:F$50,MATCH($T171,Reliability!$C$23:$C$50,0)),0),0)*$H171*$X171*$Y171),$D171)*$R171","v":0},{"$f":"MIN((IFERROR(IF(AND($V171<=AB$1,$W171>=AB$1),INDEX(Reliability!G$23:G$50,MATCH($S171,Reliability!$C$23:$C$50,0)),0),0)*IF($T171=\"n/a\",$D171*$Y171,$G171)+IFERROR(IF(AND($V171<=AB$1,$W171>=AB$1),INDEX(Reliability!G$23:G$50,MATCH($T171,Reliability!$C$23:$C$50,0)),0),0)*$H171*$X171*$Y171),$D171)*$R171","v":0},{"$f":"MIN((IFERROR(IF(AND($V171<=AC$1,$W171>=AC$1),INDEX(Reliability!H$23:H$50,MATCH($S171,Reliability!$C$23:$C$50,0)),0),0)*IF($T171=\"n/a\",$D171*$Y171,$G171)+IFERROR(IF(AND($V171<=AC$1,$W171>=AC$1),INDEX(Reliability!H$23:H$50,MATCH($T171,Reliability!$C$23:$C$50,0)),0),0)*$H171*$X171*$Y171),$D171)*$R171","v":0},{"$f":"MIN((IFERROR(IF(AND($V171<=AD$1,$W171>=AD$1),INDEX(Reliability!I$23:I$50,MATCH($S171,Reliability!$C$23:$C$50,0)),0),0)*IF($T171=\"n/a\",$D171*$Y171,$G171)+IFERROR(IF(AND($V171<=AD$1,$W171>=AD$1),INDEX(Reliability!I$23:I$50,MATCH($T171,Reliability!$C$23:$C$50,0)),0),0)*$H171*$X171*$Y171),$D171)*$R171","v":0},{"$f":"MIN((IFERROR(IF(AND($V171<=AE$1,$W171>=AE$1),INDEX(Reliability!J$23:J$50,MATCH($S171,Reliability!$C$23:$C$50,0)),0),0)*IF($T171=\"n/a\",$D171*$Y171,$G171)+IFERROR(IF(AND($V171<=AE$1,$W171>=AE$1),INDEX(Reliability!J$23:J$50,MATCH($T171,Reliability!$C$23:$C$50,0)),0),0)*$H171*$X171*$Y171),$D171)*$R171","v":0},{"$f":"MIN((IFERROR(IF(AND($V171<=AF$1,$W171>=AF$1),INDEX(Reliability!K$23:K$50,MATCH($S171,Reliability!$C$23:$C$50,0)),0),0)*IF($T171=\"n/a\",$D171*$Y171,$G171)+IFERROR(IF(AND($V171<=AF$1,$W171>=AF$1),INDEX(Reliability!K$23:K$50,MATCH($T171,Reliability!$C$23:$C$50,0)),0),0)*$H171*$X171*$Y171),$D171)*$R171","v":0},{"$f":"MIN((IFERROR(IF(AND($V171<=AG$1,$W171>=AG$1),INDEX(Reliability!L$23:L$50,MATCH($S171,Reliability!$C$23:$C$50,0)),0),0)*IF($T171=\"n/a\",$D171*$Y171,$G171)+IFERROR(IF(AND($V171<=AG$1,$W171>=AG$1),INDEX(Reliability!L$23:L$50,MATCH($T171,Reliability!$C$23:$C$50,0)),0),0)*$H171*$X171*$Y171),$D171)*$R171","v":0},{"$f":"MIN((IFERROR(IF(AND($V171<=AH$1,$W171>=AH$1),INDEX(Reliability!M$23:M$50,MATCH($S171,Reliability!$C$23:$C$50,0)),0),0)*IF($T171=\"n/a\",$D171*$Y171,$G171)+IFERROR(IF(AND($V171<=AH$1,$W171>=AH$1),INDEX(Reliability!M$23:M$50,MATCH($T171,Reliability!$C$23:$C$50,0)),0),0)*$H171*$X171*$Y171),$D171)*$R171","v":0},{"$f":"MIN((IFERROR(IF(AND($V171<=AI$1,$W171>=AI$1),INDEX(Reliability!N$23:N$50,MATCH($S171,Reliability!$C$23:$C$50,0)),0),0)*IF($T171=\"n/a\",$D171*$Y171,$G171)+IFERROR(IF(AND($V171<=AI$1,$W171>=AI$1),INDEX(Reliability!N$23:N$50,MATCH($T171,Reliability!$C$23:$C$50,0)),0),0)*$H171*$X171*$Y171),$D171)*$R171","v":0},{"$f":"MIN((IFERROR(IF(AND($V171<=AJ$1,$W171>=AJ$1),INDEX(Reliability!O$23:O$50,MATCH($S171,Reliability!$C$23:$C$50,0)),0),0)*IF($T171=\"n/a\",$D171*$Y171,$G171)+IFERROR(IF(AND($V171<=AJ$1,$W171>=AJ$1),INDEX(Reliability!O$23:O$50,MATCH($T171,Reliability!$C$23:$C$50,0)),0),0)*$H171*$X171*$Y171),$D171)*$R171","v":0},{"$f":"MIN((IFERROR(IF(AND($V171<=AK$1,$W171>=AK$1),INDEX(Reliability!P$23:P$50,MATCH($S171,Reliability!$C$23:$C$50,0)),0),0)*IF($T171=\"n/a\",$D171*$Y171,$G171)+IFERROR(IF(AND($V171<=AK$1,$W171>=AK$1),INDEX(Reliability!P$23:P$50,MATCH($T171,Reliability!$C$23:$C$50,0)),0),0)*$H171*$X171*$Y171),$D171)*$R171","v":0}]
[null,{"$f":"unique_contracts!B173","v":0},{"$f":"unique_contracts!D173","v":0},{"$f":"unique_contracts!J173","v":0},{"$f":"unique_contracts!M173","v":0},{"$f":"unique_contracts!N173","v":0},{"$f":"unique_contracts!P173","v":0},{"$f":"unique_contracts!R173","v":0},{"$f":"unique_contracts!V173","v":0},{"$f":"unique_contracts!AB173","v":0},{"$f":"unique_contracts!AM173","v":0},{"$f":"unique_contracts!AN173","v":0},{"$f":"unique_contracts!AO173","v":0},{"$f":"unique_contracts!AP173","v":0},{"$f":"unique_contracts!AQ173","v":0},{"$f":"unique_contracts!AR173","v":0},{"$f":"unique_contracts!BP173","v":0},0,{"$f":"IFERROR(IF(AND(I172>0,E172=\"NotHybrid\"),_xlfn.CONCAT(MAX(MIN(ROUNDDOWN(I172/D172,0),8),4),INDEX(resources!$G:$G,MATCH(B172,resources!$A:$A,0))),INDEX(resources!$G:$G,MATCH(B172,resources!$A:$A,0))),\"n/a\")","v":"n/a"},"n/a","n/a",0,0,1,1,{"$f":"MIN((IFERROR(IF(AND($V172<=Z$1,$W172>=Z$1),INDEX(Reliability!E$23:E$50,MATCH($S172,Reliability!$C$23:$C$50,0)),0),0)*IF($T172=\"n/a\",$D172*$Y172,$G172)+IFERROR(IF(AND($V172<=Z$1,$W172>=Z$1),INDEX(Reliability!E$23:E$50,MATCH($T172,Reliability!$C$23:$C$50,0)),0),0)*$H172*$X172*$Y172),$D172)*$R172","v":0},{"$f":"MIN((IFERROR(IF(AND($V172<=AA$1,$W172>=AA$1),INDEX(Reliability!F$23:F$50,MATCH($S172,Reliability!$C$23:$C$50,0)),0),0)*IF($T172=\"n/a\",$D172*$Y172,$G172)+IFERROR(IF(AND($V172<=AA$1,$W172>=AA$1),INDEX(Reliability!F$23:F$50,MATCH($T172,Reliability!$C$23:$C$50,0)),0),0)*$H172*$X172*$Y172),$D172)*$R172","v":0},{"$f":"MIN((IFERROR(IF(AND($V172<=AB$1,$W172>=AB$1),INDEX(Reliability!G$23:G$50,MATCH($S172,Reliability!$C$23:$C$50,0)),0),0)*IF($T172=\"n/a\",$D172*$Y172,$G172)+IFERROR(IF(AND($V172<=AB$1,$W172>=AB$1),INDEX(Reliability!G$23:G$50,MATCH($T172,Reliability!$C$23:$C$50,0)),0),0)*$H172*$X172*$Y172),$D172)*$R172","v":0},{"$f":"MIN((IFERROR(IF(AND($V172<=AC$1,$W172>=AC$1),INDEX(Reliability!H$23:H$50,MATCH($S172,Reliability!$C$23:$C$50,0)),0),0)*IF($T172=\"n/a\",$D172*$Y172,$G172)+IFERROR(IF(AND($V172<=AC$1,$W172>=AC$1),INDEX(Reliability!H$23:H$50,MATCH($T172,Reliability!$C$23:$C$50,0)),0),0)*$H172*$X172*$Y172),$D172)*$R172","v":0},{"$f":"MIN((IFERROR(IF(AND($V172<=AD$1,$W172>=AD$1),INDEX(Reliability!I$23:I$50,MATCH($S172,Reliability!$C$23:$C$50,0)),0),0)*IF($T172=\"n/a\",$D172*$Y172,$G172)+IFERROR(IF(AND($V172<=AD$1,$W172>=AD$1),INDEX(Reliability!I$23:I$50,MATCH($T172,Reliability!$C$23:$C$50,0)),0),0)*$H172*$X172*$Y172),$D172)*$R172","v":0},{"$f":"MIN((IFERROR(IF(AND($V172<=AE$1,$W172>=AE$1),INDEX(Reliability!J$23:J$50,MATCH($S172,Reliability!$C$23:$C$50,0)),0),0)*IF($T172=\"n/a\",$D172*$Y172,$G172)+IFERROR(IF(AND($V172<=AE$1,$W172>=AE$1),INDEX(Reliability!J$23:J$50,MATCH($T172,Reliability!$C$23:$C$50,0)),0),0)*$H172*$X172*$Y172),$D172)*$R172","v":0},{"$f":"MIN((IFERROR(IF(AND($V172<=AF$1,$W172>=AF$1),INDEX(Reliability!K$23:K$50,MATCH($S172,Reliability!$C$23:$C$50,0)),0),0)*IF($T172=\"n/a\",$D172*$Y172,$G172)+IFERROR(IF(AND($V172<=AF$1,$W172>=AF$1),INDEX(Reliability!K$23:K$50,MATCH($T172,Reliability!$C$23:$C$50,0)),0),0)*$H172*$X172*$Y172),$D172)*$R172","v":0},{"$f":"MIN((IFERROR(IF(AND($V172<=AG$1,$W172>=AG$1),INDEX(Reliability!L$23:L$50,MATCH($S172,Reliability!$C$23:$C$50,0)),0),0)*IF($T172=\"n/a\",$D172*$Y172,$G172)+IFERROR(IF(AND($V172<=AG$1,$W172>=AG$1),INDEX(Reliability!L$23:L$50,MATCH($T172,Reliability!$C$23:$C$50,0)),0),0)*$H172*$X172*$Y172),$D172)*$R172","v":0},{"$f":"MIN((IFERROR(IF(AND($V172<=AH$1,$W172>=AH$1),INDEX(Reliability!M$23:M$50,MATCH($S172,Reliability!$C$23:$C$50,0)),0),0)*IF($T172=\"n/a\",$D172*$Y172,$G172)+IFERROR(IF(AND($V172<=AH$1,$W172>=AH$1),INDEX(Reliability!M$23:M$50,MATCH($T172,Reliability!$C$23:$C$50,0)),0),0)*$H172*$X172*$Y172),$D172)*$R172","v":0},{"$f":"MIN((IFERROR(IF(AND($V172<=AI$1,$W172>=AI$1),INDEX(Reliability!N$23:N$50,MATCH($S172,Reliability!$C$23:$C$50,0)),0),0)*IF($T172=\"n/a\",$D172*$Y172,$G172)+IFERROR(IF(AND($V172<=AI$1,$W172>=AI$1),INDEX(Reliability!N$23:N$50,MATCH($T172,Reliability!$C$23:$C$50,0)),0),0)*$H172*$X172*$Y172),$D172)*$R172","v":0},{"$f":"MIN((IFERROR(IF(AND($V172<=AJ$1,$W172>=AJ$1),INDEX(Reliability!O$23:O$50,MATCH($S172,Reliability!$C$23:$C$50,0)),0),0)*IF($T172=\"n/a\",$D172*$Y172,$G172)+IFERROR(IF(AND($V172<=AJ$1,$W172>=AJ$1),INDEX(Reliability!O$23:O$50,MATCH($T172,Reliability!$C$23:$C$50,0)),0),0)*$H172*$X172*$Y172),$D172)*$R172","v":0},{"$f":"MIN((IFERROR(IF(AND($V172<=AK$1,$W172>=AK$1),INDEX(Reliability!P$23:P$50,MATCH($S172,Reliability!$C$23:$C$50,0)),0),0)*IF($T172=\"n/a\",$D172*$Y172,$G172)+IFERROR(IF(AND($V172<=AK$1,$W172>=AK$1),INDEX(Reliability!P$23:P$50,MATCH($T172,Reliability!$C$23:$C$50,0)),0),0)*$H172*$X172*$Y172),$D172)*$R172","v":0}]
[null,{"$f":"unique_contracts!B174","v":0},{"$f":"unique_contracts!D174","v":0},{"$f":"unique_contracts!J174","v":0},{"$f":"unique_contracts!M174","v":0},{"$f":"unique_contracts!N174","v":0},{"$f":"unique_contracts!P174","v":0},{"$f":"unique_contracts!R174","v":0},{"$f":"unique_contracts!V174","v":0},{"$f":"unique_contracts!AB174","v":0},{"$f":"unique_contracts!AM174","v":0},{"$f":"unique_contracts!AN174","v":0},{"$f":"unique_contracts!AO174","v":0},{"$f":"unique_contracts!AP174","v":0},{"$f":"unique_contracts!AQ174","v":0},{"$f":"unique_contracts!AR174","v":0},{"$f":"unique_contracts!BP174","v":0},0,{"$f":"IFERROR(IF(AND(I173>0,E173=\"NotHybrid\"),_xlfn.CONCAT(MAX(MIN(ROUNDDOWN(I173/D173,0),8),4),INDEX(resources!$G:$G,MATCH(B173,resources!$A:$A,0))),INDEX(resources!$G:$G,MATCH(B173,resources!$A:$A,0))),\"n/a\")","v":"n/a"},"n/a","n/a",0,0,1,1,{"$f":"MIN((IFERROR(IF(AND($V173<=Z$1,$W173>=Z$1),INDEX(Reliability!E$23:E$50,MATCH($S173,Reliability!$C$23:$C$50,0)),0),0)*IF($T173=\"n/a\",$D173*$Y173,$G173)+IFERROR(IF(AND($V173<=Z$1,$W173>=Z$1),INDEX(Reliability!E$23:E$50,MATCH($T173,Reliability!$C$23:$C$50,0)),0),0)*$H173*$X173*$Y173),$D173)*$R173","v":0},{"$f":"MIN((IFERROR(IF(AND($V173<=AA$1,$W173>=AA$1),INDEX(Reliability!F$23:F$50,MATCH($S173,Reliability!$C$23:$C$50,0)),0),0)*IF($T173=\"n/a\",$D173*$Y173,$G173)+IFERROR(IF(AND($V173<=AA$1,$W173>=AA$1),INDEX(Reliability!F$23:F$50,MATCH($T173,Reliability!$C$23:$C$50,0)),0),0)*$H173*$X173*$Y173),$D173)*$R173","v":0},{"$f":"MIN((IFERROR(IF(AND($V173<=AB$1,$W173>=AB$1),INDEX(Reliability!G$23:G$50,MATCH($S173,Reliability!$C$23:$C$50,0)),0),0)*IF($T173=\"n/a\",$D173*$Y173,$G173)+IFERROR(IF(AND($V173<=AB$1,$W173>=AB$1),INDEX(Reliability!G$23:G$50,MATCH($T173,Reliability!$C$23:$C$50,0)),0),0)*$H173*$X173*$Y173),$D173)*$R173","v":0},{"$f":"MIN((IFERROR(IF(AND($V173<=AC$1,$W173>=AC$1),INDEX(Reliability!H$23:H$50,MATCH($S173,Reliability!$C$23:$C$50,0)),0),0)*IF($T173=\"n/a\",$D173*$Y173,$G173)+IFERROR(IF(AND($V173<=AC$1,$W173>=AC$1),INDEX(Reliability!H$23:H$50,MATCH($T173,Reliability!$C$23:$C$50,0)),0),0)*$H173*$X173*$Y173),$D173)*$R173","v":0},{"$f":"MIN((IFERROR(IF(AND($V173<=AD$1,$W173>=AD$1),INDEX(Reliability!I$23:I$50,MATCH($S173,Reliability!$C$23:$C$50,0)),0),0)*IF($T173=\"n/a\",$D173*$Y173,$G173)+IFERROR(IF(AND($V173<=AD$1,$W173>=AD$1),INDEX(Reliability!I$23:I$50,MATCH($T173,Reliability!$C$23:$C$50,0)),0),0)*$H173*$X173*$Y173),$D173)*$R173","v":0},{"$f":"MIN((IFERROR(IF(AND($V173<=AE$1,$W173>=AE$1),INDEX(Reliability!J$23:J$50,MATCH($S173,Reliability!$C$23:$C$50,0)),0),0)*IF($T173=\"n/a\",$D173*$Y173,$G173)+IFERROR(IF(AND($V173<=AE$1,$W173>=AE$1),INDEX(Reliability!J$23:J$50,MATCH($T173,Reliability!$C$23:$C$50,0)),0),0)*$H173*$X173*$Y173),$D173)*$R173","v":0},{"$f":"MIN((IFERROR(IF(AND($V173<=AF$1,$W173>=AF$1),INDEX(Reliability!K$23:K$50,MATCH($S173,Reliability!$C$23:$C$50,0)),0),0)*IF($T173=\"n/a\",$D173*$Y173,$G173)+IFERROR(IF(AND($V173<=AF$1,$W173>=AF$1),INDEX(Reliability!K$23:K$50,MATCH($T173,Reliability!$C$23:$C$50,0)),0),0)*$H173*$X173*$Y173),$D173)*$R173","v":0},{"$f":"MIN((IFERROR(IF(AND($V173<=AG$1,$W173>=AG$1),INDEX(Reliability!L$23:L$50,MATCH($S173,Reliability!$C$23:$C$50,0)),0),0)*IF($T173=\"n/a\",$D173*$Y173,$G173)+IFERROR(IF(AND($V173<=AG$1,$W173>=AG$1),INDEX(Reliability!L$23:L$50,MATCH($T173,Reliability!$C$23:$C$50,0)),0),0)*$H173*$X173*$Y173),$D173)*$R173","v":0},{"$f":"MIN((IFERROR(IF(AND($V173<=AH$1,$W173>=AH$1),INDEX(Reliability!M$23:M$50,MATCH($S173,Reliability!$C$23:$C$50,0)),0),0)*IF($T173=\"n/a\",$D173*$Y173,$G173)+IFERROR(IF(AND($V173<=AH$1,$W173>=AH$1),INDEX(Reliability!M$23:M$50,MATCH($T173,Reliability!$C$23:$C$50,0)),0),0)*$H173*$X173*$Y173),$D173)*$R173","v":0},{"$f":"MIN((IFERROR(IF(AND($V173<=AI$1,$W173>=AI$1),INDEX(Reliability!N$23:N$50,MATCH($S173,Reliability!$C$23:$C$50,0)),0),0)*IF($T173=\"n/a\",$D173*$Y173,$G173)+IFERROR(IF(AND($V173<=AI$1,$W173>=AI$1),INDEX(Reliability!N$23:N$50,MATCH($T173,Reliability!$C$23:$C$50,0)),0),0)*$H173*$X173*$Y173),$D173)*$R173","v":0},{"$f":"MIN((IFERROR(IF(AND($V173<=AJ$1,$W173>=AJ$1),INDEX(Reliability!O$23:O$50,MATCH($S173,Reliability!$C$23:$C$50,0)),0),0)*IF($T173=\"n/a\",$D173*$Y173,$G173)+IFERROR(IF(AND($V173<=AJ$1,$W173>=AJ$1),INDEX(Reliability!O$23:O$50,MATCH($T173,Reliability!$C$23:$C$50,0)),0),0)*$H173*$X173*$Y173),$D173)*$R173","v":0},{"$f":"MIN((IFERROR(IF(AND($V173<=AK$1,$W173>=AK$1),INDEX(Reliability!P$23:P$50,MATCH($S173,Reliability!$C$23:$C$50,0)),0),0)*IF($T173=\"n/a\",$D173*$Y173,$G173)+IFERROR(IF(AND($V173<=AK$1,$W173>=AK$1),INDEX(Reliability!P$23:P$50,MATCH($T173,Reliability!$C$23:$C$50,0)),0),0)*$H173*$X173*$Y173),$D173)*$R173","v":0}]
[null,{"$f":"unique_contracts!B175","v":0},{"$f":"unique_contracts!D175","v":0},{"$f":"unique_contracts!J175","v":0},{"$f":"unique_contracts!M175","v":0},{"$f":"unique_contracts!N175","v":0},{"$f":"unique_contracts!P175","v":0},{"$f":"unique_contracts!R175","v":0},{"$f":"unique_contracts!V175","v":0},{"$f":"unique_contracts!AB175","v":0},{"$f":"unique_contracts!AM175","v":0},{"$f":"unique_contracts!AN175","v":0},{"$f":"unique_contracts!AO175","v":0},{"$f":"unique_contracts!AP175","v":0},{"$f":"unique_contracts!AQ175","v":0},{"$f":"unique_contracts!AR175","v":0},{"$f":"unique_contracts!BP175","v":0},0,{"$f":"IFERROR(IF(AND(I174>0,E174=\"NotHybrid\"),_xlfn.CONCAT(MAX(MIN(ROUNDDOWN(I174/D174,0),8),4),INDEX(resources!$G:$G,MATCH(B174,resources!$A:$A,0))),INDEX(resources!$G:$G,MATCH(B174,resources!$A:$A,0))),\"n/a\")","v":"n/a"},"n/a","n/a",0,0,1,1,{"$f":"MIN((IFERROR(IF(AND($V174<=Z$1,$W174>=Z$1),INDEX(Reliability!E$23:E$50,MATCH($S174,Reliability!$C$23:$C$50,0)),0),0)*IF($T174=\"n/a\",$D174*$Y174,$G174)+IFERROR(IF(AND($V174<=Z$1,$W174>=Z$1),INDEX(Reliability!E$23:E$50,MATCH($T174,Reliability!$C$23:$C$50,0)),0),0)*$H174*$X174*$Y174),$D174)*$R174","v":0},{"$f":"MIN((IFERROR(IF(AND($V174<=AA$1,$W174>=AA$1),INDEX(Reliability!F$23:F$50,MATCH($S174,Reliability!$C$23:$C$50,0)),0),0)*IF($T174=\"n/a\",$D174*$Y174,$G174)+IFERROR(IF(AND($V174<=AA$1,$W174>=AA$1),INDEX(Reliability!F$23:F$50,MATCH($T174,Reliability!$C$23:$C$50,0)),0),0)*$H174*$X174*$Y174),$D174)*$R174","v":0},{"$f":"MIN((IFERROR(IF(AND($V174<=AB$1,$W174>=AB$1),INDEX(Reliability!G$23:G$50,MATCH($S174,Reliability!$C$23:$C$50,0)),0),0)*IF($T174=\"n/a\",$D174*$Y174,$G174)+IFERROR(IF(AND($V174<=AB$1,$W174>=AB$1),INDEX(Reliability!G$23:G$50,MATCH($T174,Reliability!$C$23:$C$50,0)),0),0)*$H174*$X174*$Y174),$D174)*$R174","v":0},{"$f":"MIN((IFERROR(IF(AND($V174<=AC$1,$W174>=AC$1),INDEX(Reliability!H$23:H$50,MATCH($S174,Reliability!$C$23:$C$50,0)),0),0)*IF($T174=\"n/a\",$D174*$Y174,$G174)+IFERROR(IF(AND($V174<=AC$1,$W174>=AC$1),INDEX(Reliability!H$23:H$50,MATCH($T174,Reliability!$C$23:$C$50,0)),0),0)*$H174*$X174*$Y174),$D174)*$R174","v":0},{"$f":"MIN((IFERROR(IF(AND($V174<=AD$1,$W174>=AD$1),INDEX(Reliability!I$23:I$50,MATCH($S174,Reliability!$C$23:$C$50,0)),0),0)*IF($T174=\"n/a\",$D174*$Y174,$G174)+IFERROR(IF(AND($V174<=AD$1,$W174>=AD$1),INDEX(Reliability!I$23:I$50,MATCH($T174,Reliability!$C$23:$C$50,0)),0),0)*$H174*$X174*$Y174),$D174)*$R174","v":0},{"$f":"MIN((IFERROR(IF(AND($V174<=AE$1,$W174>=AE$1),INDEX(Reliability!J$23:J$50,MATCH($S174,Reliability!$C$23:$C$50,0)),0),0)*IF($T174=\"n/a\",$D174*$Y174,$G174)+IFERROR(IF(AND($V174<=AE$1,$W174>=AE$1),INDEX(Reliability!J$23:J$50,MATCH($T174,Reliability!$C$23:$C$50,0)),0),0)*$H174*$X174*$Y174),$D174)*$R174","v":0},{"$f":"MIN((IFERROR(IF(AND($V174<=AF$1,$W174>=AF$1),INDEX(Reliability!K$23:K$50,MATCH($S174,Reliability!$C$23:$C$50,0)),0),0)*IF($T174=\"n/a\",$D174*$Y174,$G174)+IFERROR(IF(AND($V174<=AF$1,$W174>=AF$1),INDEX(Reliability!K$23:K$50,MATCH($T174,Reliability!$C$23:$C$50,0)),0),0)*$H174*$X174*$Y174),$D174)*$R174","v":0},{"$f":"MIN((IFERROR(IF(AND($V174<=AG$1,$W174>=AG$1),INDEX(Reliability!L$23:L$50,MATCH($S174,Reliability!$C$23:$C$50,0)),0),0)*IF($T174=\"n/a\",$D174*$Y174,$G174)+IFERROR(IF(AND($V174<=AG$1,$W174>=AG$1),INDEX(Reliability!L$23:L$50,MATCH($T174,Reliability!$C$23:$C$50,0)),0),0)*$H174*$X174*$Y174),$D174)*$R174","v":0},{"$f":"MIN((IFERROR(IF(AND($V174<=AH$1,$W174>=AH$1),INDEX(Reliability!M$23:M$50,MATCH($S174,Reliability!$C$23:$C$50,0)),0),0)*IF($T174=\"n/a\",$D174*$Y174,$G174)+IFERROR(IF(AND($V174<=AH$1,$W174>=AH$1),INDEX(Reliability!M$23:M$50,MATCH($T174,Reliability!$C$23:$C$50,0)),0),0)*$H174*$X174*$Y174),$D174)*$R174","v":0},{"$f":"MIN((IFERROR(IF(AND($V174<=AI$1,$W174>=AI$1),INDEX(Reliability!N$23:N$50,MATCH($S174,Reliability!$C$23:$C$50,0)),0),0)*IF($T174=\"n/a\",$D174*$Y174,$G174)+IFERROR(IF(AND($V174<=AI$1,$W174>=AI$1),INDEX(Reliability!N$23:N$50,MATCH($T174,Reliability!$C$23:$C$50,0)),0),0)*$H174*$X174*$Y174),$D174)*$R174","v":0},{"$f":"MIN((IFERROR(IF(AND($V174<=AJ$1,$W174>=AJ$1),INDEX(Reliability!O$23:O$50,MATCH($S174,Reliability!$C$23:$C$50,0)),0),0)*IF($T174=\"n/a\",$D174*$Y174,$G174)+IFERROR(IF(AND($V174<=AJ$1,$W174>=AJ$1),INDEX(Reliability!O$23:O$50,MATCH($T174,Reliability!$C$23:$C$50,0)),0),0)*$H174*$X174*$Y174),$D174)*$R174","v":0},{"$f":"MIN((IFERROR(IF(AND($V174<=AK$1,$W174>=AK$1),INDEX(Reliability!P$23:P$50,MATCH($S174,Reliability!$C$23:$C$50,0)),0),0)*IF($T174=\"n/a\",$D174*$Y174,$G174)+IFERROR(IF(AND($V174<=AK$1,$W174>=AK$1),INDEX(Reliability!P$23:P$50,MATCH($T174,Reliability!$C$23:$C$50,0)),0),0)*$H174*$X174*$Y174),$D174)*$R174","v":0}]
[null,{"$f":"unique_contracts!B176","v":0},{"$f":"unique_contracts!D176","v":0},{"$f":"unique_contracts!J176","v":0},{"$f":"unique_contracts!M176","v":0},{"$f":"unique_contracts!N176","v":0},{"$f":"unique_contracts!P176","v":0},{"$f":"unique_contracts!R176","v":0},{"$f":"unique_contracts!V176","v":0},{"$f":"unique_contracts!AB176","v":0},{"$f":"unique_contracts!AM176","v":0},{"$f":"unique_contracts!AN176","v":0},{"$f":"unique_contracts!AO176","v":0},{"$f":"unique_contracts!AP176","v":0},{"$f":"unique_contracts!AQ176","v":0},{"$f":"unique_contracts!AR176","v":0},{"$f":"unique_contracts!BP176","v":0},0,{"$f":"IFERROR(IF(AND(I175>0,E175=\"NotHybrid\"),_xlfn.CONCAT(MAX(MIN(ROUNDDOWN(I175/D175,0),8),4),INDEX(resources!$G:$G,MATCH(B175,resources!$A:$A,0))),INDEX(resources!$G:$G,MATCH(B175,resources!$A:$A,0))),\"n/a\")","v":"n/a"},"n/a","n/a",0,0,1,1,{"$f":"MIN((IFERROR(IF(AND($V175<=Z$1,$W175>=Z$1),INDEX(Reliability!E$23:E$50,MATCH($S175,Reliability!$C$23:$C$50,0)),0),0)*IF($T175=\"n/a\",$D175*$Y175,$G175)+IFERROR(IF(AND($V175<=Z$1,$W175>=Z$1),INDEX(Reliability!E$23:E$50,MATCH($T175,Reliability!$C$23:$C$50,0)),0),0)*$H175*$X175*$Y175),$D175)*$R175","v":0},{"$f":"MIN((IFERROR(IF(AND($V175<=AA$1,$W175>=AA$1),INDEX(Reliability!F$23:F$50,MATCH($S175,Reliability!$C$23:$C$50,0)),0),0)*IF($T175=\"n/a\",$D175*$Y175,$G175)+IFERROR(IF(AND($V175<=AA$1,$W175>=AA$1),INDEX(Reliability!F$23:F$50,MATCH($T175,Reliability!$C$23:$C$50,0)),0),0)*$H175*$X175*$Y175),$D175)*$R175","v":0},{"$f":"MIN((IFERROR(IF(AND($V175<=AB$1,$W175>=AB$1),INDEX(Reliability!G$23:G$50,MATCH($S175,Reliability!$C$23:$C$50,0)),0),0)*IF($T175=\"n/a\",$D175*$Y175,$G175)+IFERROR(IF(AND($V175<=AB$1,$W175>=AB$1),INDEX(Reliability!G$23:G$50,MATCH($T175,Reliability!$C$23:$C$50,0)),0),0)*$H175*$X175*$Y175),$D175)*$R175","v":0},{"$f":"MIN((IFERROR(IF(AND($V175<=AC$1,$W175>=AC$1),INDEX(Reliability!H$23:H$50,MATCH($S175,Reliability!$C$23:$C$50,0)),0),0)*IF($T175=\"n/a\",$D175*$Y175,$G175)+IFERROR(IF(AND($V175<=AC$1,$W175>=AC$1),INDEX(Reliability!H$23:H$50,MATCH($T175,Reliability!$C$23:$C$50,0)),0),0)*$H175*$X175*$Y175),$D175)*$R175","v":0},{"$f":"MIN((IFERROR(IF(AND($V175<=AD$1,$W175>=AD$1),INDEX(Reliability!I$23:I$50,MATCH($S175,Reliability!$C$23:$C$50,0)),0),0)*IF($T175=\"n/a\",$D175*$Y175,$G175)+IFERROR(IF(AND($V175<=AD$1,$W175>=AD$1),INDEX(Reliability!I$23:I$50,MATCH($T175,Reliability!$C$23:$C$50,0)),0),0)*$H175*$X175*$Y175),$D175)*$R175","v":0},{"$f":"MIN((IFERROR(IF(AND($V175<=AE$1,$W175>=AE$1),INDEX(Reliability!J$23:J$50,MATCH($S175,Reliability!$C$23:$C$50,0)),0),0)*IF($T175=\"n/a\",$D175*$Y175,$G175)+IFERROR(IF(AND($V175<=AE$1,$W175>=AE$1),INDEX(Reliability!J$23:J$50,MATCH($T175,Reliability!$C$23:$C$50,0)),0),0)*$H175*$X175*$Y175),$D175)*$R175","v":0},{"$f":"MIN((IFERROR(IF(AND($V175<=AF$1,$W175>=AF$1),INDEX(Reliability!K$23:K$50,MATCH($S175,Reliability!$C$23:$C$50,0)),0),0)*IF($T175=\"n/a\",$D175*$Y175,$G175)+IFERROR(IF(AND($V175<=AF$1,$W175>=AF$1),INDEX(Reliability!K$23:K$50,MATCH($T175,Reliability!$C$23:$C$50,0)),0),0)*$H175*$X175*$Y175),$D175)*$R175","v":0},{"$f":"MIN((IFERROR(IF(AND($V175<=AG$1,$W175>=AG$1),INDEX(Reliability!L$23:L$50,MATCH($S175,Reliability!$C$23:$C$50,0)),0),0)*IF($T175=\"n/a\",$D175*$Y175,$G175)+IFERROR(IF(AND($V175<=AG$1,$W175>=AG$1),INDEX(Reliability!L$23:L$50,MATCH($T175,Reliability!$C$23:$C$50,0)),0),0)*$H175*$X175*$Y175),$D175)*$R175","v":0},{"$f":"MIN((IFERROR(IF(AND($V175<=AH$1,$W175>=AH$1),INDEX(Reliability!M$23:M$50,MATCH($S175,Reliability!$C$23:$C$50,0)),0),0)*IF($T175=\"n/a\",$D175*$Y175,$G175)+IFERROR(IF(AND($V175<=AH$1,$W175>=AH$1),INDEX(Reliability!M$23:M$50,MATCH($T175,Reliability!$C$23:$C$50,0)),0),0)*$H175*$X175*$Y175),$D175)*$R175","v":0},{"$f":"MIN((IFERROR(IF(AND($V175<=AI$1,$W175>=AI$1),INDEX(Reliability!N$23:N$50,MATCH($S175,Reliability!$C$23:$C$50,0)),0),0)*IF($T175=\"n/a\",$D175*$Y175,$G175)+IFERROR(IF(AND($V175<=AI$1,$W175>=AI$1),INDEX(Reliability!N$23:N$50,MATCH($T175,Reliability!$C$23:$C$50,0)),0),0)*$H175*$X175*$Y175),$D175)*$R175","v":0},{"$f":"MIN((IFERROR(IF(AND($V175<=AJ$1,$W175>=AJ$1),INDEX(Reliability!O$23:O$50,MATCH($S175,Reliability!$C$23:$C$50,0)),0),0)*IF($T175=\"n/a\",$D175*$Y175,$G175)+IFERROR(IF(AND($V175<=AJ$1,$W175>=AJ$1),INDEX(Reliability!O$23:O$50,MATCH($T175,Reliability!$C$23:$C$50,0)),0),0)*$H175*$X175*$Y175),$D175)*$R175","v":0},{"$f":"MIN((IFERROR(IF(AND($V175<=AK$1,$W175>=AK$1),INDEX(Reliability!P$23:P$50,MATCH($S175,Reliability!$C$23:$C$50,0)),0),0)*IF($T175=\"n/a\",$D175*$Y175,$G175)+IFERROR(IF(AND($V175<=AK$1,$W175>=AK$1),INDEX(Reliability!P$23:P$50,MATCH($T175,Reliability!$C$23:$C$50,0)),0),0)*$H175*$X175*$Y175),$D175)*$R175","v":0}]
[null,{"$f":"unique_contracts!B177","v":0},{"$f":"unique_contracts!D177","v":0},{"$f":"unique_contracts!J177","v":0},{"$f":"unique_contracts!M177","v":0},{"$f":"unique_contracts!N177","v":0},{"$f":"unique_contracts!P177","v":0},{"$f":"unique_contracts!R177","v":0},{"$f":"unique_contracts!V177","v":0},{"$f":"unique_contracts!AB177","v":0},{"$f":"unique_contracts!AM177","v":0},{"$f":"unique_contracts!AN177","v":0},{"$f":"unique_contracts!AO177","v":0},{"$f":"unique_contracts!AP177","v":0},{"$f":"unique_contracts!AQ177","v":0},{"$f":"unique_contracts!AR177","v":0},{"$f":"unique_contracts!BP177","v":0},0,{"$f":"IFERROR(IF(AND(I176>0,E176=\"NotHybrid\"),_xlfn.CONCAT(MAX(MIN(ROUNDDOWN(I176/D176,0),8),4),INDEX(resources!$G:$G,MATCH(B176,resources!$A:$A,0))),INDEX(resources!$G:$G,MATCH(B176,resources!$A:$A,0))),\"n/a\")","v":"n/a"},"n/a","n/a",0,0,1,1,{"$f":"MIN((IFERROR(IF(AND($V176<=Z$1,$W176>=Z$1),INDEX(Reliability!E$23:E$50,MATCH($S176,Reliability!$C$23:$C$50,0)),0),0)*IF($T176=\"n/a\",$D176*$Y176,$G176)+IFERROR(IF(AND($V176<=Z$1,$W176>=Z$1),INDEX(Reliability!E$23:E$50,MATCH($T176,Reliability!$C$23:$C$50,0)),0),0)*$H176*$X176*$Y176),$D176)*$R176","v":0},{"$f":"MIN((IFERROR(IF(AND($V176<=AA$1,$W176>=AA$1),INDEX(Reliability!F$23:F$50,MATCH($S176,Reliability!$C$23:$C$50,0)),0),0)*IF($T176=\"n/a\",$D176*$Y176,$G176)+IFERROR(IF(AND($V176<=AA$1,$W176>=AA$1),INDEX(Reliability!F$23:F$50,MATCH($T176,Reliability!$C$23:$C$50,0)),0),0)*$H176*$X176*$Y176),$D176)*$R176","v":0},{"$f":"MIN((IFERROR(IF(AND($V176<=AB$1,$W176>=AB$1),INDEX(Reliability!G$23:G$50,MATCH($S176,Reliability!$C$23:$C$50,0)),0),0)*IF($T176=\"n/a\",$D176*$Y176,$G176)+IFERROR(IF(AND($V176<=AB$1,$W176>=AB$1),INDEX(Reliability!G$23:G$50,MATCH($T176,Reliability!$C$23:$C$50,0)),0),0)*$H176*$X176*$Y176),$D176)*$R176","v":0},{"$f":"MIN((IFERROR(IF(AND($V176<=AC$1,$W176>=AC$1),INDEX(Reliability!H$23:H$50,MATCH($S176,Reliability!$C$23:$C$50,0)),0),0)*IF($T176=\"n/a\",$D176*$Y176,$G176)+IFERROR(IF(AND($V176<=AC$1,$W176>=AC$1),INDEX(Reliability!H$23:H$50,MATCH($T176,Reliability!$C$23:$C$50,0)),0),0)*$H176*$X176*$Y176),$D176)*$R176","v":0},{"$f":"MIN((IFERROR(IF(AND($V176<=AD$1,$W176>=AD$1),INDEX(Reliability!I$23:I$50,MATCH($S176,Reliability!$C$23:$C$50,0)),0),0)*IF($T176=\"n/a\",$D176*$Y176,$G176)+IFERROR(IF(AND($V176<=AD$1,$W176>=AD$1),INDEX(Reliability!I$23:I$50,MATCH($T176,Reliability!$C$23:$C$50,0)),0),0)*$H176*$X176*$Y176),$D176)*$R176","v":0},{"$f":"MIN((IFERROR(IF(AND($V176<=AE$1,$W176>=AE$1),INDEX(Reliability!J$23:J$50,MATCH($S176,Reliability!$C$23:$C$50,0)),0),0)*IF($T176=\"n/a\",$D176*$Y176,$G176)+IFERROR(IF(AND($V176<=AE$1,$W176>=AE$1),INDEX(Reliability!J$23:J$50,MATCH($T176,Reliability!$C$23:$C$50,0)),0),0)*$H176*$X176*$Y176),$D176)*$R176","v":0},{"$f":"MIN((IFERROR(IF(AND($V176<=AF$1,$W176>=AF$1),INDEX(Reliability!K$23:K$50,MATCH($S176,Reliability!$C$23:$C$50,0)),0),0)*IF($T176=\"n/a\",$D176*$Y176,$G176)+IFERROR(IF(AND($V176<=AF$1,$W176>=AF$1),INDEX(Reliability!K$23:K$50,MATCH($T176,Reliability!$C$23:$C$50,0)),0),0)*$H176*$X176*$Y176),$D176)*$R176","v":0},{"$f":"MIN((IFERROR(IF(AND($V176<=AG$1,$W176>=AG$1),INDEX(Reliability!L$23:L$50,MATCH($S176,Reliability!$C$23:$C$50,0)),0),0)*IF($T176=\"n/a\",$D176*$Y176,$G176)+IFERROR(IF(AND($V176<=AG$1,$W176>=AG$1),INDEX(Reliability!L$23:L$50,MATCH($T176,Reliability!$C$23:$C$50,0)),0),0)*$H176*$X176*$Y176),$D176)*$R176","v":0},{"$f":"MIN((IFERROR(IF(AND($V176<=AH$1,$W176>=AH$1),INDEX(Reliability!M$23:M$50,MATCH($S176,Reliability!$C$23:$C$50,0)),0),0)*IF($T176=\"n/a\",$D176*$Y176,$G176)+IFERROR(IF(AND($V176<=AH$1,$W176>=AH$1),INDEX(Reliability!M$23:M$50,MATCH($T176,Reliability!$C$23:$C$50,0)),0),0)*$H176*$X176*$Y176),$D176)*$R176","v":0},{"$f":"MIN((IFERROR(IF(AND($V176<=AI$1,$W176>=AI$1),INDEX(Reliability!N$23:N$50,MATCH($S176,Reliability!$C$23:$C$50,0)),0),0)*IF($T176=\"n/a\",$D176*$Y176,$G176)+IFERROR(IF(AND($V176<=AI$1,$W176>=AI$1),INDEX(Reliability!N$23:N$50,MATCH($T176,Reliability!$C$23:$C$50,0)),0),0)*$H176*$X176*$Y176),$D176)*$R176","v":0},{"$f":"MIN((IFERROR(IF(AND($V176<=AJ$1,$W176>=AJ$1),INDEX(Reliability!O$23:O$50,MATCH($S176,Reliability!$C$23:$C$50,0)),0),0)*IF($T176=\"n/a\",$D176*$Y176,$G176)+IFERROR(IF(AND($V176<=AJ$1,$W176>=AJ$1),INDEX(Reliability!O$23:O$50,MATCH($T176,Reliability!$C$23:$C$50,0)),0),0)*$H176*$X176*$Y176),$D176)*$R176","v":0},{"$f":"MIN((IFERROR(IF(AND($V176<=AK$1,$W176>=AK$1),INDEX(Reliability!P$23:P$50,MATCH($S176,Reliability!$C$23:$C$50,0)),0),0)*IF($T176=\"n/a\",$D176*$Y176,$G176)+IFERROR(IF(AND($V176<=AK$1,$W176>=AK$1),INDEX(Reliability!P$23:P$50,MATCH($T176,Reliability!$C$23:$C$50,0)),0),0)*$H176*$X176*$Y176),$D176)*$R176","v":0}]
[null,{"$f":"unique_contracts!B178","v":0},{"$f":"unique_contracts!D178","v":0},{"$f":"unique_contracts!J178","v":0},{"$f":"unique_contracts!M178","v":0},{"$f":"unique_contracts!N178","v":0},{"$f":"unique_contracts!P178","v":0},{"$f":"unique_contracts!R178","v":0},{"$f":"unique_contracts!V178","v":0},{"$f":"unique_contracts!AB178","v":0},{"$f":"unique_contracts!AM178","v":0},{"$f":"unique_contracts!AN178","v":0},{"$f":"unique_contracts!AO178","v":0},{"$f":"unique_contracts!AP178","v":0},{"$f":"unique_contracts!AQ178","v":0},{"$f":"unique_contracts!AR178","v":0},{"$f":"unique_contracts!BP178","v":0},0,{"$f":"IFERROR(IF(AND(I177>0,E177=\"NotHybrid\"),_xlfn.CONCAT(MAX(MIN(ROUNDDOWN(I177/D177,0),8),4),INDEX(resources!$G:$G,MATCH(B177,resources!$A:$A,0))),INDEX(resources!$G:$G,MATCH(B177,resources!$A:$A,0))),\"n/a\")","v":"n/a"},"n/a","n/a",0,0,1,1,{"$f":"MIN((IFERROR(IF(AND($V177<=Z$1,$W177>=Z$1),INDEX(Reliability!E$23:E$50,MATCH($S177,Reliability!$C$23:$C$50,0)),0),0)*IF($T177=\"n/a\",$D177*$Y177,$G177)+IFERROR(IF(AND($V177<=Z$1,$W177>=Z$1),INDEX(Reliability!E$23:E$50,MATCH($T177,Reliability!$C$23:$C$50,0)),0),0)*$H177*$X177*$Y177),$D177)*$R177","v":0},{"$f":"MIN((IFERROR(IF(AND($V177<=AA$1,$W177>=AA$1),INDEX(Reliability!F$23:F$50,MATCH($S177,Reliability!$C$23:$C$50,0)),0),0)*IF($T177=\"n/a\",$D177*$Y177,$G177)+IFERROR(IF(AND($V177<=AA$1,$W177>=AA$1),INDEX(Reliability!F$23:F$50,MATCH($T177,Reliability!$C$23:$C$50,0)),0),0)*$H177*$X177*$Y177),$D177)*$R177","v":0},{"$f":"MIN((IFERROR(IF(AND($V177<=AB$1,$W177>=AB$1),INDEX(Reliability!G$23:G$50,MATCH($S177,Reliability!$C$23:$C$50,0)),0),0)*IF($T177=\"n/a\",$D177*$Y177,$G177)+IFERROR(IF(AND($V177<=AB$1,$W177>=AB$1),INDEX(Reliability!G$23:G$50,MATCH($T177,Reliability!$C$23:$C$50,0)),0),0)*$H177*$X177*$Y177),$D177)*$R177","v":0},{"$f":"MIN((IFERROR(IF(AND($V177<=AC$1,$W177>=AC$1),INDEX(Reliability!H$23:H$50,MATCH($S177,Reliability!$C$23:$C$50,0)),0),0)*IF($T177=\"n/a\",$D177*$Y177,$G177)+IFERROR(IF(AND($V177<=AC$1,$W177>=AC$1),INDEX(Reliability!H$23:H$50,MATCH($T177,Reliability!$C$23:$C$50,0)),0),0)*$H177*$X177*$Y177),$D177)*$R177","v":0},{"$f":"MIN((IFERROR(IF(AND($V177<=AD$1,$W177>=AD$1),INDEX(Reliability!I$23:I$50,MATCH($S177,Reliability!$C$23:$C$50,0)),0),0)*IF($T177=\"n/a\",$D177*$Y177,$G177)+IFERROR(IF(AND($V177<=AD$1,$W177>=AD$1),INDEX(Reliability!I$23:I$50,MATCH($T177,Reliability!$C$23:$C$50,0)),0),0)*$H177*$X177*$Y177),$D177)*$R177","v":0},{"$f":"MIN((IFERROR(IF(AND($V177<=AE$1,$W177>=AE$1),INDEX(Reliability!J$23:J$50,MATCH($S177,Reliability!$C$23:$C$50,0)),0),0)*IF($T177=\"n/a\",$D177*$Y177,$G177)+IFERROR(IF(AND($V177<=AE$1,$W177>=AE$1),INDEX(Reliability!J$23:J$50,MATCH($T177,Reliability!$C$23:$C$50,0)),0),0)*$H177*$X177*$Y177),$D177)*$R177","v":0},{"$f":"MIN((IFERROR(IF(AND($V177<=AF$1,$W177>=AF$1),INDEX(Reliability!K$23:K$50,MATCH($S177,Reliability!$C$23:$C$50,0)),0),0)*IF($T177=\"n/a\",$D177*$Y177,$G177)+IFERROR(IF(AND($V177<=AF$1,$W177>=AF$1),INDEX(Reliability!K$23:K$50,MATCH($T177,Reliability!$C$23:$C$50,0)),0),0)*$H177*$X177*$Y177),$D177)*$R177","v":0},{"$f":"MIN((IFERROR(IF(AND($V177<=AG$1,$W177>=AG$1),INDEX(Reliability!L$23:L$50,MATCH($S177,Reliability!$C$23:$C$50,0)),0),0)*IF($T177=\"n/a\",$D177*$Y177,$G177)+IFERROR(IF(AND($V177<=AG$1,$W177>=AG$1),INDEX(Reliability!L$23:L$50,MATCH($T177,Reliability!$C$23:$C$50,0)),0),0)*$H177*$X177*$Y177),$D177)*$R177","v":0},{"$f":"MIN((IFERROR(IF(AND($V177<=AH$1,$W177>=AH$1),INDEX(Reliability!M$23:M$50,MATCH($S177,Reliability!$C$23:$C$50,0)),0),0)*IF($T177=\"n/a\",$D177*$Y177,$G177)+IFERROR(IF(AND($V177<=AH$1,$W177>=AH$1),INDEX(Reliability!M$23:M$50,MATCH($T177,Reliability!$C$23:$C$50,0)),0),0)*$H177*$X177*$Y177),$D177)*$R177","v":0},{"$f":"MIN((IFERROR(IF(AND($V177<=AI$1,$W177>=AI$1),INDEX(Reliability!N$23:N$50,MATCH($S177,Reliability!$C$23:$C$50,0)),0),0)*IF($T177=\"n/a\",$D177*$Y177,$G177)+IFERROR(IF(AND($V177<=AI$1,$W177>=AI$1),INDEX(Reliability!N$23:N$50,MATCH($T177,Reliability!$C$23:$C$50,0)),0),0)*$H177*$X177*$Y177),$D177)*$R177","v":0},{"$f":"MIN((IFERROR(IF(AND($V177<=AJ$1,$W177>=AJ$1),INDEX(Reliability!O$23:O$50,MATCH($S177,Reliability!$C$23:$C$50,0)),0),0)*IF($T177=\"n/a\",$D177*$Y177,$G177)+IFERROR(IF(AND($V177<=AJ$1,$W177>=AJ$1),INDEX(Reliability!O$23:O$50,MATCH($T177,Reliability!$C$23:$C$50,0)),0),0)*$H177*$X177*$Y177),$D177)*$R177","v":0},{"$f":"MIN((IFERROR(IF(AND($V177<=AK$1,$W177>=AK$1),INDEX(Reliability!P$23:P$50,MATCH($S177,Reliability!$C$23:$C$50,0)),0),0)*IF($T177=\"n/a\",$D177*$Y177,$G177)+IFERROR(IF(AND($V177<=AK$1,$W177>=AK$1),INDEX(Reliability!P$23:P$50,MATCH($T177,Reliability!$C$23:$C$50,0)),0),0)*$H177*$X177*$Y177),$D177)*$R177","v":0}]
[null,{"$f":"unique_contracts!B179","v":0},{"$f":"unique_contracts!D179","v":0},{"$f":"unique_contracts!J179","v":0},{"$f":"unique_contracts!M179","v":0},{"$f":"unique_contracts!N179","v":0},{"$f":"unique_contracts!P179","v":0},{"$f":"unique_contracts!R179","v":0},{"$f":"unique_contracts!V179","v":0},{"$f":"unique_contracts!AB179","v":0},{"$f":"unique_contracts!AM179","v":0},{"$f":"unique_contracts!AN179","v":0},{"$f":"unique_contracts!AO179","v":0},{"$f":"unique_contracts!AP179","v":0},{"$f":"unique_contracts!AQ179","v":0},{"$f":"unique_contracts!AR179","v":0},{"$f":"unique_contracts!BP179","v":0},0,{"$f":"IFERROR(IF(AND(I178>0,E178=\"NotHybrid\"),_xlfn.CONCAT(MAX(MIN(ROUNDDOWN(I178/D178,0),8),4),INDEX(resources!$G:$G,MATCH(B178,resources!$A:$A,0))),INDEX(resources!$G:$G,MATCH(B178,resources!$A:$A,0))),\"n/a\")","v":"n/a"},"n/a","n/a",0,0,1,1,{"$f":"MIN((IFERROR(IF(AND($V178<=Z$1,$W178>=Z$1),INDEX(Reliability!E$23:E$50,MATCH($S178,Reliability!$C$23:$C$50,0)),0),0)*IF($T178=\"n/a\",$D178*$Y178,$G178)+IFERROR(IF(AND($V178<=Z$1,$W178>=Z$1),INDEX(Reliability!E$23:E$50,MATCH($T178,Reliability!$C$23:$C$50,0)),0),0)*$H178*$X178*$Y178),$D178)*$R178","v":0},{"$f":"MIN((IFERROR(IF(AND($V178<=AA$1,$W178>=AA$1),INDEX(Reliability!F$23:F$50,MATCH($S178,Reliability!$C$23:$C$50,0)),0),0)*IF($T178=\"n/a\",$D178*$Y178,$G178)+IFERROR(IF(AND($V178<=AA$1,$W178>=AA$1),INDEX(Reliability!F$23:F$50,MATCH($T178,Reliability!$C$23:$C$50,0)),0),0)*$H178*$X178*$Y178),$D178)*$R178","v":0},{"$f":"MIN((IFERROR(IF(AND($V178<=AB$1,$W178>=AB$1),INDEX(Reliability!G$23:G$50,MATCH($S178,Reliability!$C$23:$C$50,0)),0),0)*IF($T178=\"n/a\",$D178*$Y178,$G178)+IFERROR(IF(AND($V178<=AB$1,$W178>=AB$1),INDEX(Reliability!G$23:G$50,MATCH($T178,Reliability!$C$23:$C$50,0)),0),0)*$H178*$X178*$Y178),$D178)*$R178","v":0},{"$f":"MIN((IFERROR(IF(AND($V178<=AC$1,$W178>=AC$1),INDEX(Reliability!H$23:H$50,MATCH($S178,Reliability!$C$23:$C$50,0)),0),0)*IF($T178=\"n/a\",$D178*$Y178,$G178)+IFERROR(IF(AND($V178<=AC$1,$W178>=AC$1),INDEX(Reliability!H$23:H$50,MATCH($T178,Reliability!$C$23:$C$50,0)),0),0)*$H178*$X178*$Y178),$D178)*$R178","v":0},{"$f":"MIN((IFERROR(IF(AND($V178<=AD$1,$W178>=AD$1),INDEX(Reliability!I$23:I$50,MATCH($S178,Reliability!$C$23:$C$50,0)),0),0)*IF($T178=\"n/a\",$D178*$Y178,$G178)+IFERROR(IF(AND($V178<=AD$1,$W178>=AD$1),INDEX(Reliability!I$23:I$50,MATCH($T178,Reliability!$C$23:$C$50,0)),0),0)*$H178*$X178*$Y178),$D178)*$R178","v":0},{"$f":"MIN((IFERROR(IF(AND($V178<=AE$1,$W178>=AE$1),INDEX(Reliability!J$23:J$50,MATCH($S178,Reliability!$C$23:$C$50,0)),0),0)*IF($T178=\"n/a\",$D178*$Y178,$G178)+IFERROR(IF(AND($V178<=AE$1,$W178>=AE$1),INDEX(Reliability!J$23:J$50,MATCH($T178,Reliability!$C$23:$C$50,0)),0),0)*$H178*$X178*$Y178),$D178)*$R178","v":0},{"$f":"MIN((IFERROR(IF(AND($V178<=AF$1,$W178>=AF$1),INDEX(Reliability!K$23:K$50,MATCH($S178,Reliability!$C$23:$C$50,0)),0),0)*IF($T178=\"n/a\",$D178*$Y178,$G178)+IFERROR(IF(AND($V178<=AF$1,$W178>=AF$1),INDEX(Reliability!K$23:K$50,MATCH($T178,Reliability!$C$23:$C$50,0)),0),0)*$H178*$X178*$Y178),$D178)*$R178","v":0},{"$f":"MIN((IFERROR(IF(AND($V178<=AG$1,$W178>=AG$1),INDEX(Reliability!L$23:L$50,MATCH($S178,Reliability!$C$23:$C$50,0)),0),0)*IF($T178=\"n/a\",$D178*$Y178,$G178)+IFERROR(IF(AND($V178<=AG$1,$W178>=AG$1),INDEX(Reliability!L$23:L$50,MATCH($T178,Reliability!$C$23:$C$50,0)),0),0)*$H178*$X178*$Y178),$D178)*$R178","v":0},{"$f":"MIN((IFERROR(IF(AND($V178<=AH$1,$W178>=AH$1),INDEX(Reliability!M$23:M$50,MATCH($S178,Reliability!$C$23:$C$50,0)),0),0)*IF($T178=\"n/a\",$D178*$Y178,$G178)+IFERROR(IF(AND($V178<=AH$1,$W178>=AH$1),INDEX(Reliability!M$23:M$50,MATCH($T178,Reliability!$C$23:$C$50,0)),0),0)*$H178*$X178*$Y178),$D178)*$R178","v":0},{"$f":"MIN((IFERROR(IF(AND($V178<=AI$1,$W178>=AI$1),INDEX(Reliability!N$23:N$50,MATCH($S178,Reliability!$C$23:$C$50,0)),0),0)*IF($T178=\"n/a\",$D178*$Y178,$G178)+IFERROR(IF(AND($V178<=AI$1,$W178>=AI$1),INDEX(Reliability!N$23:N$50,MATCH($T178,Reliability!$C$23:$C$50,0)),0),0)*$H178*$X178*$Y178),$D178)*$R178","v":0},{"$f":"MIN((IFERROR(IF(AND($V178<=AJ$1,$W178>=AJ$1),INDEX(Reliability!O$23:O$50,MATCH($S178,Reliability!$C$23:$C$50,0)),0),0)*IF($T178=\"n/a\",$D178*$Y178,$G178)+IFERROR(IF(AND($V178<=AJ$1,$W178>=AJ$1),INDEX(Reliability!O$23:O$50,MATCH($T178,Reliability!$C$23:$C$50,0)),0),0)*$H178*$X178*$Y178),$D178)*$R178","v":0},{"$f":"MIN((IFERROR(IF(AND($V178<=AK$1,$W178>=AK$1),INDEX(Reliability!P$23:P$50,MATCH($S178,Reliability!$C$23:$C$50,0)),0),0)*IF($T178=\"n/a\",$D178*$Y178,$G178)+IFERROR(IF(AND($V178<=AK$1,$W178>=AK$1),INDEX(Reliability!P$23:P$50,MATCH($T178,Reliability!$C$23:$C$50,0)),0),0)*$H178*$X178*$Y178),$D178)*$R178","v":0}]
[null,{"$f":"unique_contracts!B180","v":0},{"$f":"unique_contracts!D180","v":0},{"$f":"unique_contracts!J180","v":0},{"$f":"unique_contracts!M180","v":0},{"$f":"unique_contracts!N180","v":0},{"$f":"unique_contracts!P180","v":0},{"$f":"unique_contracts!R180","v":0},{"$f":"unique_contracts!V180","v":0},{"$f":"unique_contracts!AB180","v":0},{"$f":"unique_contracts!AM180","v":0},{"$f":"unique_contracts!AN180","v":0},{"$f":"unique_contracts!AO180","v":0},{"$f":"unique_contracts!AP180","v":0},{"$f":"unique_contracts!AQ180","v":0},{"$f":"unique_contracts!AR180","v":0},{"$f":"unique_contracts!BP180","v":0},0,{"$f":"IFERROR(IF(AND(I179>0,E179=\"NotHybrid\"),_xlfn.CONCAT(MAX(MIN(ROUNDDOWN(I179/D179,0),8),4),INDEX(resources!$G:$G,MATCH(B179,resources!$A:$A,0))),INDEX(resources!$G:$G,MATCH(B179,resources!$A:$A,0))),\"n/a\")","v":"n/a"},"n/a","n/a",0,0,1,1,{"$f":"MIN((IFERROR(IF(AND($V179<=Z$1,$W179>=Z$1),INDEX(Reliability!E$23:E$50,MATCH($S179,Reliability!$C$23:$C$50,0)),0),0)*IF($T179=\"n/a\",$D179*$Y179,$G179)+IFERROR(IF(AND($V179<=Z$1,$W179>=Z$1),INDEX(Reliability!E$23:E$50,MATCH($T179,Reliability!$C$23:$C$50,0)),0),0)*$H179*$X179*$Y179),$D179)*$R179","v":0},{"$f":"MIN((IFERROR(IF(AND($V179<=AA$1,$W179>=AA$1),INDEX(Reliability!F$23:F$50,MATCH($S179,Reliability!$C$23:$C$50,0)),0),0)*IF($T179=\"n/a\",$D179*$Y179,$G179)+IFERROR(IF(AND($V179<=AA$1,$W179>=AA$1),INDEX(Reliability!F$23:F$50,MATCH($T179,Reliability!$C$23:$C$50,0)),0),0)*$H179*$X179*$Y179),$D179)*$R179","v":0},{"$f":"MIN((IFERROR(IF(AND($V179<=AB$1,$W179>=AB$1),INDEX(Reliability!G$23:G$50,MATCH($S179,Reliability!$C$23:$C$50,0)),0),0)*IF($T179=\"n/a\",$D179*$Y179,$G179)+IFERROR(IF(AND($V179<=AB$1,$W179>=AB$1),INDEX(Reliability!G$23:G$50,MATCH($T179,Reliability!$C$23:$C$50,0)),0),0)*$H179*$X179*$Y179),$D179)*$R179","v":0},{"$f":"MIN((IFERROR(IF(AND($V179<=AC$1,$W179>=AC$1),INDEX(Reliability!H$23:H$50,MATCH($S179,Reliability!$C$23:$C$50,0)),0),0)*IF($T179=\"n/a\",$D179*$Y179,$G179)+IFERROR(IF(AND($V179<=AC$1,$W179>=AC$1),INDEX(Reliability!H$23:H$50,MATCH($T179,Reliability!$C$23:$C$50,0)),0),0)*$H179*$X179*$Y179),$D179)*$R179","v":0},{"$f":"MIN((IFERROR(IF(AND($V179<=AD$1,$W179>=AD$1),INDEX(Reliability!I$23:I$50,MATCH($S179,Reliability!$C$23:$C$50,0)),0),0)*IF($T179=\"n/a\",$D179*$Y179,$G179)+IFERROR(IF(AND($V179<=AD$1,$W179>=AD$1),INDEX(Reliability!I$23:I$50,MATCH($T179,Reliability!$C$23:$C$50,0)),0),0)*$H179*$X179*$Y179),$D179)*$R179","v":0},{"$f":"MIN((IFERROR(IF(AND($V179<=AE$1,$W179>=AE$1),INDEX(Reliability!J$23:J$50,MATCH($S179,Reliability!$C$23:$C$50,0)),0),0)*IF($T179=\"n/a\",$D179*$Y179,$G179)+IFERROR(IF(AND($V179<=AE$1,$W179>=AE$1),INDEX(Reliability!J$23:J$50,MATCH($T179,Reliability!$C$23:$C$50,0)),0),0)*$H179*$X179*$Y179),$D179)*$R179","v":0},{"$f":"MIN((IFERROR(IF(AND($V179<=AF$1,$W179>=AF$1),INDEX(Reliability!K$23:K$50,MATCH($S179,Reliability!$C$23:$C$50,0)),0),0)*IF($T179=\"n/a\",$D179*$Y179,$G179)+IFERROR(IF(AND($V179<=AF$1,$W179>=AF$1),INDEX(Reliability!K$23:K$50,MATCH($T179,Reliability!$C$23:$C$50,0)),0),0)*$H179*$X179*$Y179),$D179)*$R179","v":0},{"$f":"MIN((IFERROR(IF(AND($V179<=AG$1,$W179>=AG$1),INDEX(Reliability!L$23:L$50,MATCH($S179,Reliability!$C$23:$C$50,0)),0),0)*IF($T179=\"n/a\",$D179*$Y179,$G179)+IFERROR(IF(AND($V179<=AG$1,$W179>=AG$1),INDEX(Reliability!L$23:L$50,MATCH($T179,Reliability!$C$23:$C$50,0)),0),0)*$H179*$X179*$Y179),$D179)*$R179","v":0},{"$f":"MIN((IFERROR(IF(AND($V179<=AH$1,$W179>=AH$1),INDEX(Reliability!M$23:M$50,MATCH($S179,Reliability!$C$23:$C$50,0)),0),0)*IF($T179=\"n/a\",$D179*$Y179,$G179)+IFERROR(IF(AND($V179<=AH$1,$W179>=AH$1),INDEX(Reliability!M$23:M$50,MATCH($T179,Reliability!$C$23:$C$50,0)),0),0)*$H179*$X179*$Y179),$D179)*$R179","v":0},{"$f":"MIN((IFERROR(IF(AND($V179<=AI$1,$W179>=AI$1),INDEX(Reliability!N$23:N$50,MATCH($S179,Reliability!$C$23:$C$50,0)),0),0)*IF($T179=\"n/a\",$D179*$Y179,$G179)+IFERROR(IF(AND($V179<=AI$1,$W179>=AI$1),INDEX(Reliability!N$23:N$50,MATCH($T179,Reliability!$C$23:$C$50,0)),0),0)*$H179*$X179*$Y179),$D179)*$R179","v":0},{"$f":"MIN((IFERROR(IF(AND($V179<=AJ$1,$W179>=AJ$1),INDEX(Reliability!O$23:O$50,MATCH($S179,Reliability!$C$23:$C$50,0)),0),0)*IF($T179=\"n/a\",$D179*$Y179,$G179)+IFERROR(IF(AND($V179<=AJ$1,$W179>=AJ$1),INDEX(Reliability!O$23:O$50,MATCH($T179,Reliability!$C$23:$C$50,0)),0),0)*$H179*$X179*$Y179),$D179)*$R179","v":0},{"$f":"MIN((IFERROR(IF(AND($V179<=AK$1,$W179>=AK$1),INDEX(Reliability!P$23:P$50,MATCH($S179,Reliability!$C$23:$C$50,0)),0),0)*IF($T179=\"n/a\",$D179*$Y179,$G179)+IFERROR(IF(AND($V179<=AK$1,$W179>=AK$1),INDEX(Reliability!P$23:P$50,MATCH($T179,Reliability!$C$23:$C$50,0)),0),0)*$H179*$X179*$Y179),$D179)*$R179","v":0}]
[null,{"$f":"unique_contracts!B181","v":0},{"$f":"unique_contracts!D181","v":0},{"$f":"unique_contracts!J181","v":0},{"$f":"unique_contracts!M181","v":0},{"$f":"unique_contracts!N181","v":0},{"$f":"unique_contracts!P181","v":0},{"$f":"unique_contracts!R181","v":0},{"$f":"unique_contracts!V181","v":0},{"$f":"unique_contracts!AB181","v":0},{"$f":"unique_contracts!AM181","v":0},{"$f":"unique_contracts!AN181","v":0},{"$f":"unique_contracts!AO181","v":0},{"$f":"unique_contracts!AP181","v":0},{"$f":"unique_contracts!AQ181","v":0},{"$f":"unique_contracts!AR181","v":0},{"$f":"unique_contracts!BP181","v":0},0,{"$f":"IFERROR(IF(AND(I180>0,E180=\"NotHybrid\"),_xlfn.CONCAT(MAX(MIN(ROUNDDOWN(I180/D180,0),8),4),INDEX(resources!$G:$G,MATCH(B180,resources!$A:$A,0))),INDEX(resources!$G:$G,MATCH(B180,resources!$A:$A,0))),\"n/a\")","v":"n/a"},"n/a","n/a",0,0,1,1,{"$f":"MIN((IFERROR(IF(AND($V180<=Z$1,$W180>=Z$1),INDEX(Reliability!E$23:E$50,MATCH($S180,Reliability!$C$23:$C$50,0)),0),0)*IF($T180=\"n/a\",$D180*$Y180,$G180)+IFERROR(IF(AND($V180<=Z$1,$W180>=Z$1),INDEX(Reliability!E$23:E$50,MATCH($T180,Reliability!$C$23:$C$50,0)),0),0)*$H180*$X180*$Y180),$D180)*$R180","v":0},{"$f":"MIN((IFERROR(IF(AND($V180<=AA$1,$W180>=AA$1),INDEX(Reliability!F$23:F$50,MATCH($S180,Reliability!$C$23:$C$50,0)),0),0)*IF($T180=\"n/a\",$D180*$Y180,$G180)+IFERROR(IF(AND($V180<=AA$1,$W180>=AA$1),INDEX(Reliability!F$23:F$50,MATCH($T180,Reliability!$C$23:$C$50,0)),0),0)*$H180*$X180*$Y180),$D180)*$R180","v":0},{"$f":"MIN((IFERROR(IF(AND($V180<=AB$1,$W180>=AB$1),INDEX(Reliability!G$23:G$50,MATCH($S180,Reliability!$C$23:$C$50,0)),0),0)*IF($T180=\"n/a\",$D180*$Y180,$G180)+IFERROR(IF(AND($V180<=AB$1,$W180>=AB$1),INDEX(Reliability!G$23:G$50,MATCH($T180,Reliability!$C$23:$C$50,0)),0),0)*$H180*$X180*$Y180),$D180)*$R180","v":0},{"$f":"MIN((IFERROR(IF(AND($V180<=AC$1,$W180>=AC$1),INDEX(Reliability!H$23:H$50,MATCH($S180,Reliability!$C$23:$C$50,0)),0),0)*IF($T180=\"n/a\",$D180*$Y180,$G180)+IFERROR(IF(AND($V180<=AC$1,$W180>=AC$1),INDEX(Reliability!H$23:H$50,MATCH($T180,Reliability!$C$23:$C$50,0)),0),0)*$H180*$X180*$Y180),$D180)*$R180","v":0},{"$f":"MIN((IFERROR(IF(AND($V180<=AD$1,$W180>=AD$1),INDEX(Reliability!I$23:I$50,MATCH($S180,Reliability!$C$23:$C$50,0)),0),0)*IF($T180=\"n/a\",$D180*$Y180,$G180)+IFERROR(IF(AND($V180<=AD$1,$W180>=AD$1),INDEX(Reliability!I$23:I$50,MATCH($T180,Reliability!$C$23:$C$50,0)),0),0)*$H180*$X180*$Y180),$D180)*$R180","v":0},{"$f":"MIN((IFERROR(IF(AND($V180<=AE$1,$W180>=AE$1),INDEX(Reliability!J$23:J$50,MATCH($S180,Reliability!$C$23:$C$50,0)),0),0)*IF($T180=\"n/a\",$D180*$Y180,$G180)+IFERROR(IF(AND($V180<=AE$1,$W180>=AE$1),INDEX(Reliability!J$23:J$50,MATCH($T180,Reliability!$C$23:$C$50,0)),0),0)*$H180*$X180*$Y180),$D180)*$R180","v":0},{"$f":"MIN((IFERROR(IF(AND($V180<=AF$1,$W180>=AF$1),INDEX(Reliability!K$23:K$50,MATCH($S180,Reliability!$C$23:$C$50,0)),0),0)*IF($T180=\"n/a\",$D180*$Y180,$G180)+IFERROR(IF(AND($V180<=AF$1,$W180>=AF$1),INDEX(Reliability!K$23:K$50,MATCH($T180,Reliability!$C$23:$C$50,0)),0),0)*$H180*$X180*$Y180),$D180)*$R180","v":0},{"$f":"MIN((IFERROR(IF(AND($V180<=AG$1,$W180>=AG$1),INDEX(Reliability!L$23:L$50,MATCH($S180,Reliability!$C$23:$C$50,0)),0),0)*IF($T180=\"n/a\",$D180*$Y180,$G180)+IFERROR(IF(AND($V180<=AG$1,$W180>=AG$1),INDEX(Reliability!L$23:L$50,MATCH($T180,Reliability!$C$23:$C$50,0)),0),0)*$H180*$X180*$Y180),$D180)*$R180","v":0},{"$f":"MIN((IFERROR(IF(AND($V180<=AH$1,$W180>=AH$1),INDEX(Reliability!M$23:M$50,MATCH($S180,Reliability!$C$23:$C$50,0)),0),0)*IF($T180=\"n/a\",$D180*$Y180,$G180)+IFERROR(IF(AND($V180<=AH$1,$W180>=AH$1),INDEX(Reliability!M$23:M$50,MATCH($T180,Reliability!$C$23:$C$50,0)),0),0)*$H180*$X180*$Y180),$D180)*$R180","v":0},{"$f":"MIN((IFERROR(IF(AND($V180<=AI$1,$W180>=AI$1),INDEX(Reliability!N$23:N$50,MATCH($S180,Reliability!$C$23:$C$50,0)),0),0)*IF($T180=\"n/a\",$D180*$Y180,$G180)+IFERROR(IF(AND($V180<=AI$1,$W180>=AI$1),INDEX(Reliability!N$23:N$50,MATCH($T180,Reliability!$C$23:$C$50,0)),0),0)*$H180*$X180*$Y180),$D180)*$R180","v":0},{"$f":"MIN((IFERROR(IF(AND($V180<=AJ$1,$W180>=AJ$1),INDEX(Reliability!O$23:O$50,MATCH($S180,Reliability!$C$23:$C$50,0)),0),0)*IF($T180=\"n/a\",$D180*$Y180,$G180)+IFERROR(IF(AND($V180<=AJ$1,$W180>=AJ$1),INDEX(Reliability!O$23:O$50,MATCH($T180,Reliability!$C$23:$C$50,0)),0),0)*$H180*$X180*$Y180),$D180)*$R180","v":0},{"$f":"MIN((IFERROR(IF(AND($V180<=AK$1,$W180>=AK$1),INDEX(Reliability!P$23:P$50,MATCH($S180,Reliability!$C$23:$C$50,0)),0),0)*IF($T180=\"n/a\",$D180*$Y180,$G180)+IFERROR(IF(AND($V180<=AK$1,$W180>=AK$1),INDEX(Reliability!P$23:P$50,MATCH($T180,Reliability!$C$23:$C$50,0)),0),0)*$H180*$X180*$Y180),$D180)*$R180","v":0}]
[null,{"$f":"unique_contracts!B182","v":0},{"$f":"unique_contracts!D182","v":0},{"$f":"unique_contracts!J182","v":0},{"$f":"unique_contracts!M182","v":0},{"$f":"unique_contracts!N182","v":0},{"$f":"unique_contracts!P182","v":0},{"$f":"unique_contracts!R182","v":0},{"$f":"unique_contracts!V182","v":0},{"$f":"unique_contracts!AB182","v":0},{"$f":"unique_contracts!AM182","v":0},{"$f":"unique_contracts!AN182","v":0},{"$f":"unique_contracts!AO182","v":0},{"$f":"unique_contracts!AP182","v":0},{"$f":"unique_contracts!AQ182","v":0},{"$f":"unique_contracts!AR182","v":0},{"$f":"unique_contracts!BP182","v":0},0,{"$f":"IFERROR(IF(AND(I181>0,E181=\"NotHybrid\"),_xlfn.CONCAT(MAX(MIN(ROUNDDOWN(I181/D181,0),8),4),INDEX(resources!$G:$G,MATCH(B181,resources!$A:$A,0))),INDEX(resources!$G:$G,MATCH(B181,resources!$A:$A,0))),\"n/a\")","v":"n/a"},"n/a","n/a",0,0,1,1,{"$f":"MIN((IFERROR(IF(AND($V181<=Z$1,$W181>=Z$1),INDEX(Reliability!E$23:E$50,MATCH($S181,Reliability!$C$23:$C$50,0)),0),0)*IF($T181=\"n/a\",$D181*$Y181,$G181)+IFERROR(IF(AND($V181<=Z$1,$W181>=Z$1),INDEX(Reliability!E$23:E$50,MATCH($T181,Reliability!$C$23:$C$50,0)),0),0)*$H181*$X181*$Y181),$D181)*$R181","v":0},{"$f":"MIN((IFERROR(IF(AND($V181<=AA$1,$W181>=AA$1),INDEX(Reliability!F$23:F$50,MATCH($S181,Reliability!$C$23:$C$50,0)),0),0)*IF($T181=\"n/a\",$D181*$Y181,$G181)+IFERROR(IF(AND($V181<=AA$1,$W181>=AA$1),INDEX(Reliability!F$23:F$50,MATCH($T181,Reliability!$C$23:$C$50,0)),0),0)*$H181*$X181*$Y181),$D181)*$R181","v":0},{"$f":"MIN((IFERROR(IF(AND($V181<=AB$1,$W181>=AB$1),INDEX(Reliability!G$23:G$50,MATCH($S181,Reliability!$C$23:$C$50,0)),0),0)*IF($T181=\"n/a\",$D181*$Y181,$G181)+IFERROR(IF(AND($V181<=AB$1,$W181>=AB$1),INDEX(Reliability!G$23:G$50,MATCH($T181,Reliability!$C$23:$C$50,0)),0),0)*$H181*$X181*$Y181),$D181)*$R181","v":0},{"$f":"MIN((IFERROR(IF(AND($V181<=AC$1,$W181>=AC$1),INDEX(Reliability!H$23:H$50,MATCH($S181,Reliability!$C$23:$C$50,0)),0),0)*IF($T181=\"n/a\",$D181*$Y181,$G181)+IFERROR(IF(AND($V181<=AC$1,$W181>=AC$1),INDEX(Reliability!H$23:H$50,MATCH($T181,Reliability!$C$23:$C$50,0)),0),0)*$H181*$X181*$Y181),$D181)*$R181","v":0},{"$f":"MIN((IFERROR(IF(AND($V181<=AD$1,$W181>=AD$1),INDEX(Reliability!I$23:I$50,MATCH($S181,Reliability!$C$23:$C$50,0)),0),0)*IF($T181=\"n/a\",$D181*$Y181,$G181)+IFERROR(IF(AND($V181<=AD$1,$W181>=AD$1),INDEX(Reliability!I$23:I$50,MATCH($T181,Reliability!$C$23:$C$50,0)),0),0)*$H181*$X181*$Y181),$D181)*$R181","v":0},{"$f":"MIN((IFERROR(IF(AND($V181<=AE$1,$W181>=AE$1),INDEX(Reliability!J$23:J$50,MATCH($S181,Reliability!$C$23:$C$50,0)),0),0)*IF($T181=\"n/a\",$D181*$Y181,$G181)+IFERROR(IF(AND($V181<=AE$1,$W181>=AE$1),INDEX(Reliability!J$23:J$50,MATCH($T181,Reliability!$C$23:$C$50,0)),0),0)*$H181*$X181*$Y181),$D181)*$R181","v":0},{"$f":"MIN((IFERROR(IF(AND($V181<=AF$1,$W181>=AF$1),INDEX(Reliability!K$23:K$50,MATCH($S181,Reliability!$C$23:$C$50,0)),0),0)*IF($T181=\"n/a\",$D181*$Y181,$G181)+IFERROR(IF(AND($V181<=AF$1,$W181>=AF$1),INDEX(Reliability!K$23:K$50,MATCH($T181,Reliability!$C$23:$C$50,0)),0),0)*$H181*$X181*$Y181),$D181)*$R181","v":0},{"$f":"MIN((IFERROR(IF(AND($V181<=AG$1,$W181>=AG$1),INDEX(Reliability!L$23:L$50,MATCH($S181,Reliability!$C$23:$C$50,0)),0),0)*IF($T181=\"n/a\",$D181*$Y181,$G181)+IFERROR(IF(AND($V181<=AG$1,$W181>=AG$1),INDEX(Reliability!L$23:L$50,MATCH($T181,Reliability!$C$23:$C$50,0)),0),0)*$H181*$X181*$Y181),$D181)*$R181","v":0},{"$f":"MIN((IFERROR(IF(AND($V181<=AH$1,$W181>=AH$1),INDEX(Reliability!M$23:M$50,MATCH($S181,Reliability!$C$23:$C$50,0)),0),0)*IF($T181=\"n/a\",$D181*$Y181,$G181)+IFERROR(IF(AND($V181<=AH$1,$W181>=AH$1),INDEX(Reliability!M$23:M$50,MATCH($T181,Reliability!$C$23:$C$50,0)),0),0)*$H181*$X181*$Y181),$D181)*$R181","v":0},{"$f":"MIN((IFERROR(IF(AND($V181<=AI$1,$W181>=AI$1),INDEX(Reliability!N$23:N$50,MATCH($S181,Reliability!$C$23:$C$50,0)),0),0)*IF($T181=\"n/a\",$D181*$Y181,$G181)+IFERROR(IF(AND($V181<=AI$1,$W181>=AI$1),INDEX(Reliability!N$23:N$50,MATCH($T181,Reliability!$C$23:$C$50,0)),0),0)*$H181*$X181*$Y181),$D181)*$R181","v":0},{"$f":"MIN((IFERROR(IF(AND($V181<=AJ$1,$W181>=AJ$1),INDEX(Reliability!O$23:O$50,MATCH($S181,Reliability!$C$23:$C$50,0)),0),0)*IF($T181=\"n/a\",$D181*$Y181,$G181)+IFERROR(IF(AND($V181<=AJ$1,$W181>=AJ$1),INDEX(Reliability!O$23:O$50,MATCH($T181,Reliability!$C$23:$C$50,0)),0),0)*$H181*$X181*$Y181),$D181)*$R181","v":0},{"$f":"MIN((IFERROR(IF(AND($V181<=AK$1,$W181>=AK$1),INDEX(Reliability!P$23:P$50,MATCH($S181,Reliability!$C$23:$C$50,0)),0),0)*IF($T181=\"n/a\",$D181*$Y181,$G181)+IFERROR(IF(AND($V181<=AK$1,$W181>=AK$1),INDEX(Reliability!P$23:P$50,MATCH($T181,Reliability!$C$23:$C$50,0)),0),0)*$H181*$X181*$Y181),$D181)*$R181","v":0}]
[null,{"$f":"unique_contracts!B183","v":0},{"$f":"unique_contracts!D183","v":0},{"$f":"unique_contracts!J183","v":0},{"$f":"unique_contracts!M183","v":0},{"$f":"unique_contracts!N183","v":0},{"$f":"unique_contracts!P183","v":0},{"$f":"unique_contracts!R183","v":0},{"$f":"unique_contracts!V183","v":0},{"$f":"unique_contracts!AB183","v":0},{"$f":"unique_contracts!AM183","v":0},{"$f":"unique_contracts!AN183","v":0},{"$f":"unique_contracts!AO183","v":0},{"$f":"unique_contracts!AP183","v":0},{"$f":"unique_contracts!AQ183","v":0},{"$f":"unique_contracts!AR183","v":0},{"$f":"unique_contracts!BP183","v":0},0,{"$f":"IFERROR(IF(AND(I182>0,E182=\"NotHybrid\"),_xlfn.CONCAT(MAX(MIN(ROUNDDOWN(I182/D182,0),8),4),INDEX(resources!$G:$G,MATCH(B182,resources!$A:$A,0))),INDEX(resources!$G:$G,MATCH(B182,resources!$A:$A,0))),\"n/a\")","v":"n/a"},"n/a","n/a",0,0,1,1,{"$f":"MIN((IFERROR(IF(AND($V182<=Z$1,$W182>=Z$1),INDEX(Reliability!E$23:E$50,MATCH($S182,Reliability!$C$23:$C$50,0)),0),0)*IF($T182=\"n/a\",$D182*$Y182,$G182)+IFERROR(IF(AND($V182<=Z$1,$W182>=Z$1),INDEX(Reliability!E$23:E$50,MATCH($T182,Reliability!$C$23:$C$50,0)),0),0)*$H182*$X182*$Y182),$D182)*$R182","v":0},{"$f":"MIN((IFERROR(IF(AND($V182<=AA$1,$W182>=AA$1),INDEX(Reliability!F$23:F$50,MATCH($S182,Reliability!$C$23:$C$50,0)),0),0)*IF($T182=\"n/a\",$D182*$Y182,$G182)+IFERROR(IF(AND($V182<=AA$1,$W182>=AA$1),INDEX(Reliability!F$23:F$50,MATCH($T182,Reliability!$C$23:$C$50,0)),0),0)*$H182*$X182*$Y182),$D182)*$R182","v":0},{"$f":"MIN((IFERROR(IF(AND($V182<=AB$1,$W182>=AB$1),INDEX(Reliability!G$23:G$50,MATCH($S182,Reliability!$C$23:$C$50,0)),0),0)*IF($T182=\"n/a\",$D182*$Y182,$G182)+IFERROR(IF(AND($V182<=AB$1,$W182>=AB$1),INDEX(Reliability!G$23:G$50,MATCH($T182,Reliability!$C$23:$C$50,0)),0),0)*$H182*$X182*$Y182),$D182)*$R182","v":0},{"$f":"MIN((IFERROR(IF(AND($V182<=AC$1,$W182>=AC$1),INDEX(Reliability!H$23:H$50,MATCH($S182,Reliability!$C$23:$C$50,0)),0),0)*IF($T182=\"n/a\",$D182*$Y182,$G182)+IFERROR(IF(AND($V182<=AC$1,$W182>=AC$1),INDEX(Reliability!H$23:H$50,MATCH($T182,Reliability!$C$23:$C$50,0)),0),0)*$H182*$X182*$Y182),$D182)*$R182","v":0},{"$f":"MIN((IFERROR(IF(AND($V182<=AD$1,$W182>=AD$1),INDEX(Reliability!I$23:I$50,MATCH($S182,Reliability!$C$23:$C$50,0)),0),0)*IF($T182=\"n/a\",$D182*$Y182,$G182)+IFERROR(IF(AND($V182<=AD$1,$W182>=AD$1),INDEX(Reliability!I$23:I$50,MATCH($T182,Reliability!$C$23:$C$50,0)),0),0)*$H182*$X182*$Y182),$D182)*$R182","v":0},{"$f":"MIN((IFERROR(IF(AND($V182<=AE$1,$W182>=AE$1),INDEX(Reliability!J$23:J$50,MATCH($S182,Reliability!$C$23:$C$50,0)),0),0)*IF($T182=\"n/a\",$D182*$Y182,$G182)+IFERROR(IF(AND($V182<=AE$1,$W182>=AE$1),INDEX(Reliability!J$23:J$50,MATCH($T182,Reliability!$C$23:$C$50,0)),0),0)*$H182*$X182*$Y182),$D182)*$R182","v":0},{"$f":"MIN((IFERROR(IF(AND($V182<=AF$1,$W182>=AF$1),INDEX(Reliability!K$23:K$50,MATCH($S182,Reliability!$C$23:$C$50,0)),0),0)*IF($T182=\"n/a\",$D182*$Y182,$G182)+IFERROR(IF(AND($V182<=AF$1,$W182>=AF$1),INDEX(Reliability!K$23:K$50,MATCH($T182,Reliability!$C$23:$C$50,0)),0),0)*$H182*$X182*$Y182),$D182)*$R182","v":0},{"$f":"MIN((IFERROR(IF(AND($V182<=AG$1,$W182>=AG$1),INDEX(Reliability!L$23:L$50,MATCH($S182,Reliability!$C$23:$C$50,0)),0),0)*IF($T182=\"n/a\",$D182*$Y182,$G182)+IFERROR(IF(AND($V182<=AG$1,$W182>=AG$1),INDEX(Reliability!L$23:L$50,MATCH($T182,Reliability!$C$23:$C$50,0)),0),0)*$H182*$X182*$Y182),$D182)*$R182","v":0},{"$f":"MIN((IFERROR(IF(AND($V182<=AH$1,$W182>=AH$1),INDEX(Reliability!M$23:M$50,MATCH($S182,Reliability!$C$23:$C$50,0)),0),0)*IF($T182=\"n/a\",$D182*$Y182,$G182)+IFERROR(IF(AND($V182<=AH$1,$W182>=AH$1),INDEX(Reliability!M$23:M$50,MATCH($T182,Reliability!$C$23:$C$50,0)),0),0)*$H182*$X182*$Y182),$D182)*$R182","v":0},{"$f":"MIN((IFERROR(IF(AND($V182<=AI$1,$W182>=AI$1),INDEX(Reliability!N$23:N$50,MATCH($S182,Reliability!$C$23:$C$50,0)),0),0)*IF($T182=\"n/a\",$D182*$Y182,$G182)+IFERROR(IF(AND($V182<=AI$1,$W182>=AI$1),INDEX(Reliability!N$23:N$50,MATCH($T182,Reliability!$C$23:$C$50,0)),0),0)*$H182*$X182*$Y182),$D182)*$R182","v":0},{"$f":"MIN((IFERROR(IF(AND($V182<=AJ$1,$W182>=AJ$1),INDEX(Reliability!O$23:O$50,MATCH($S182,Reliability!$C$23:$C$50,0)),0),0)*IF($T182=\"n/a\",$D182*$Y182,$G182)+IFERROR(IF(AND($V182<=AJ$1,$W182>=AJ$1),INDEX(Reliability!O$23:O$50,MATCH($T182,Reliability!$C$23:$C$50,0)),0),0)*$H182*$X182*$Y182),$D182)*$R182","v":0},{"$f":"MIN((IFERROR(IF(AND($V182<=AK$1,$W182>=AK$1),INDEX(Reliability!P$23:P$50,MATCH($S182,Reliability!$C$23:$C$50,0)),0),0)*IF($T182=\"n/a\",$D182*$Y182,$G182)+IFERROR(IF(AND($V182<=AK$1,$W182>=AK$1),INDEX(Reliability!P$23:P$50,MATCH($T182,Reliability!$C$23:$C$50,0)),0),0)*$H182*$X182*$Y182),$D182)*$R182","v":0}]
[null,{"$f":"unique_contracts!B184","v":0},{"$f":"unique_contracts!D184","v":0},{"$f":"unique_contracts!J184","v":0},{"$f":"unique_contracts!M184","v":0},{"$f":"unique_contracts!N184","v":0},{"$f":"unique_contracts!P184","v":0},{"$f":"unique_contracts!R184","v":0},{"$f":"unique_contracts!V184","v":0},{"$f":"unique_contracts!AB184","v":0},{"$f":"unique_contracts!AM184","v":0},{"$f":"unique_contracts!AN184","v":0},{"$f":"unique_contracts!AO184","v":0},{"$f":"unique_contracts!AP184","v":0},{"$f":"unique_contracts!AQ184","v":0},{"$f":"unique_contracts!AR184","v":0},{"$f":"unique_contracts!BP184","v":0},0,{"$f":"IFERROR(IF(AND(I183>0,E183=\"NotHybrid\"),_xlfn.CONCAT(MAX(MIN(ROUNDDOWN(I183/D183,0),8),4),INDEX(resources!$G:$G,MATCH(B183,resources!$A:$A,0))),INDEX(resources!$G:$G,MATCH(B183,resources!$A:$A,0))),\"n/a\")","v":"n/a"},"n/a","n/a",0,0,1,1,{"$f":"MIN((IFERROR(IF(AND($V183<=Z$1,$W183>=Z$1),INDEX(Reliability!E$23:E$50,MATCH($S183,Reliability!$C$23:$C$50,0)),0),0)*IF($T183=\"n/a\",$D183*$Y183,$G183)+IFERROR(IF(AND($V183<=Z$1,$W183>=Z$1),INDEX(Reliability!E$23:E$50,MATCH($T183,Reliability!$C$23:$C$50,0)),0),0)*$H183*$X183*$Y183),$D183)*$R183","v":0},{"$f":"MIN((IFERROR(IF(AND($V183<=AA$1,$W183>=AA$1),INDEX(Reliability!F$23:F$50,MATCH($S183,Reliability!$C$23:$C$50,0)),0),0)*IF($T183=\"n/a\",$D183*$Y183,$G183)+IFERROR(IF(AND($V183<=AA$1,$W183>=AA$1),INDEX(Reliability!F$23:F$50,MATCH($T183,Reliability!$C$23:$C$50,0)),0),0)*$H183*$X183*$Y183),$D183)*$R183","v":0},{"$f":"MIN((IFERROR(IF(AND($V183<=AB$1,$W183>=AB$1),INDEX(Reliability!G$23:G$50,MATCH($S183,Reliability!$C$23:$C$50,0)),0),0)*IF($T183=\"n/a\",$D183*$Y183,$G183)+IFERROR(IF(AND($V183<=AB$1,$W183>=AB$1),INDEX(Reliability!G$23:G$50,MATCH($T183,Reliability!$C$23:$C$50,0)),0),0)*$H183*$X183*$Y183),$D183)*$R183","v":0},{"$f":"MIN((IFERROR(IF(AND($V183<=AC$1,$W183>=AC$1),INDEX(Reliability!H$23:H$50,MATCH($S183,Reliability!$C$23:$C$50,0)),0),0)*IF($T183=\"n/a\",$D183*$Y183,$G183)+IFERROR(IF(AND($V183<=AC$1,$W183>=AC$1),INDEX(Reliability!H$23:H$50,MATCH($T183,Reliability!$C$23:$C$50,0)),0),0)*$H183*$X183*$Y183),$D183)*$R183","v":0},{"$f":"MIN((IFERROR(IF(AND($V183<=AD$1,$W183>=AD$1),INDEX(Reliability!I$23:I$50,MATCH($S183,Reliability!$C$23:$C$50,0)),0),0)*IF($T183=\"n/a\",$D183*$Y183,$G183)+IFERROR(IF(AND($V183<=AD$1,$W183>=AD$1),INDEX(Reliability!I$23:I$50,MATCH($T183,Reliability!$C$23:$C$50,0)),0),0)*$H183*$X183*$Y183),$D183)*$R183","v":0},{"$f":"MIN((IFERROR(IF(AND($V183<=AE$1,$W183>=AE$1),INDEX(Reliability!J$23:J$50,MATCH($S183,Reliability!$C$23:$C$50,0)),0),0)*IF($T183=\"n/a\",$D183*$Y183,$G183)+IFERROR(IF(AND($V183<=AE$1,$W183>=AE$1),INDEX(Reliability!J$23:J$50,MATCH($T183,Reliability!$C$23:$C$50,0)),0),0)*$H183*$X183*$Y183),$D183)*$R183","v":0},{"$f":"MIN((IFERROR(IF(AND($V183<=AF$1,$W183>=AF$1),INDEX(Reliability!K$23:K$50,MATCH($S183,Reliability!$C$23:$C$50,0)),0),0)*IF($T183=\"n/a\",$D183*$Y183,$G183)+IFERROR(IF(AND($V183<=AF$1,$W183>=AF$1),INDEX(Reliability!K$23:K$50,MATCH($T183,Reliability!$C$23:$C$50,0)),0),0)*$H183*$X183*$Y183),$D183)*$R183","v":0},{"$f":"MIN((IFERROR(IF(AND($V183<=AG$1,$W183>=AG$1),INDEX(Reliability!L$23:L$50,MATCH($S183,Reliability!$C$23:$C$50,0)),0),0)*IF($T183=\"n/a\",$D183*$Y183,$G183)+IFERROR(IF(AND($V183<=AG$1,$W183>=AG$1),INDEX(Reliability!L$23:L$50,MATCH($T183,Reliability!$C$23:$C$50,0)),0),0)*$H183*$X183*$Y183),$D183)*$R183","v":0},{"$f":"MIN((IFERROR(IF(AND($V183<=AH$1,$W183>=AH$1),INDEX(Reliability!M$23:M$50,MATCH($S183,Reliability!$C$23:$C$50,0)),0),0)*IF($T183=\"n/a\",$D183*$Y183,$G183)+IFERROR(IF(AND($V183<=AH$1,$W183>=AH$1),INDEX(Reliability!M$23:M$50,MATCH($T183,Reliability!$C$23:$C$50,0)),0),0)*$H183*$X183*$Y183),$D183)*$R183","v":0},{"$f":"MIN((IFERROR(IF(AND($V183<=AI$1,$W183>=AI$1),INDEX(Reliability!N$23:N$50,MATCH($S183,Reliability!$C$23:$C$50,0)),0),0)*IF($T183=\"n/a\",$D183*$Y183,$G183)+IFERROR(IF(AND($V183<=AI$1,$W183>=AI$1),INDEX(Reliability!N$23:N$50,MATCH($T183,Reliability!$C$23:$C$50,0)),0),0)*$H183*$X183*$Y183),$D183)*$R183","v":0},{"$f":"MIN((IFERROR(IF(AND($V183<=AJ$1,$W183>=AJ$1),INDEX(Reliability!O$23:O$50,MATCH($S183,Reliability!$C$23:$C$50,0)),0),0)*IF($T183=\"n/a\",$D183*$Y183,$G183)+IFERROR(IF(AND($V183<=AJ$1,$W183>=AJ$1),INDEX(Reliability!O$23:O$50,MATCH($T183,Reliability!$C$23:$C$50,0)),0),0)*$H183*$X183*$Y183),$D183)*$R183","v":0},{"$f":"MIN((IFERROR(IF(AND($V183<=AK$1,$W183>=AK$1),INDEX(Reliability!P$23:P$50,MATCH($S183,Reliability!$C$23:$C$50,0)),0),0)*IF($T183=\"n/a\",$D183*$Y183,$G183)+IFERROR(IF(AND($V183<=AK$1,$W183>=AK$1),INDEX(Reliability!P$23:P$50,MATCH($T183,Reliability!$C$23:$C$50,0)),0),0)*$H183*$X183*$Y183),$D183)*$R183","v":0}]
[null,{"$f":"unique_contracts!B185","v":0},{"$f":"unique_contracts!D185","v":0},{"$f":"unique_contracts!J185","v":0},{"$f":"unique_contracts!M185","v":0},{"$f":"unique_contracts!N185","v":0},{"$f":"unique_contracts!P185","v":0},{"$f":"unique_contracts!R185","v":0},{"$f":"unique_contracts!V185","v":0},{"$f":"unique_contracts!AB185","v":0},{"$f":"unique_contracts!AM185","v":0},{"$f":"unique_contracts!AN185","v":0},{"$f":"unique_contracts!AO185","v":0},{"$f":"unique_contracts!AP185","v":0},{"$f":"unique_contracts!AQ185","v":0},{"$f":"unique_contracts!AR185","v":0},{"$f":"unique_contracts!BP185","v":0},0,{"$f":"IFERROR(IF(AND(I184>0,E184=\"NotHybrid\"),_xlfn.CONCAT(MAX(MIN(ROUNDDOWN(I184/D184,0),8),4),INDEX(resources!$G:$G,MATCH(B184,resources!$A:$A,0))),INDEX(resources!$G:$G,MATCH(B184,resources!$A:$A,0))),\"n/a\")","v":"n/a"},"n/a","n/a",0,0,1,1,{"$f":"MIN((IFERROR(IF(AND($V184<=Z$1,$W184>=Z$1),INDEX(Reliability!E$23:E$50,MATCH($S184,Reliability!$C$23:$C$50,0)),0),0)*IF($T184=\"n/a\",$D184*$Y184,$G184)+IFERROR(IF(AND($V184<=Z$1,$W184>=Z$1),INDEX(Reliability!E$23:E$50,MATCH($T184,Reliability!$C$23:$C$50,0)),0),0)*$H184*$X184*$Y184),$D184)*$R184","v":0},{"$f":"MIN((IFERROR(IF(AND($V184<=AA$1,$W184>=AA$1),INDEX(Reliability!F$23:F$50,MATCH($S184,Reliability!$C$23:$C$50,0)),0),0)*IF($T184=\"n/a\",$D184*$Y184,$G184)+IFERROR(IF(AND($V184<=AA$1,$W184>=AA$1),INDEX(Reliability!F$23:F$50,MATCH($T184,Reliability!$C$23:$C$50,0)),0),0)*$H184*$X184*$Y184),$D184)*$R184","v":0},{"$f":"MIN((IFERROR(IF(AND($V184<=AB$1,$W184>=AB$1),INDEX(Reliability!G$23:G$50,MATCH($S184,Reliability!$C$23:$C$50,0)),0),0)*IF($T184=\"n/a\",$D184*$Y184,$G184)+IFERROR(IF(AND($V184<=AB$1,$W184>=AB$1),INDEX(Reliability!G$23:G$50,MATCH($T184,Reliability!$C$23:$C$50,0)),0),0)*$H184*$X184*$Y184),$D184)*$R184","v":0},{"$f":"MIN((IFERROR(IF(AND($V184<=AC$1,$W184>=AC$1),INDEX(Reliability!H$23:H$50,MATCH($S184,Reliability!$C$23:$C$50,0)),0),0)*IF($T184=\"n/a\",$D184*$Y184,$G184)+IFERROR(IF(AND($V184<=AC$1,$W184>=AC$1),INDEX(Reliability!H$23:H$50,MATCH($T184,Reliability!$C$23:$C$50,0)),0),0)*$H184*$X184*$Y184),$D184)*$R184","v":0},{"$f":"MIN((IFERROR(IF(AND($V184<=AD$1,$W184>=AD$1),INDEX(Reliability!I$23:I$50,MATCH($S184,Reliability!$C$23:$C$50,0)),0),0)*IF($T184=\"n/a\",$D184*$Y184,$G184)+IFERROR(IF(AND($V184<=AD$1,$W184>=AD$1),INDEX(Reliability!I$23:I$50,MATCH($T184,Reliability!$C$23:$C$50,0)),0),0)*$H184*$X184*$Y184),$D184)*$R184","v":0},{"$f":"MIN((IFERROR(IF(AND($V184<=AE$1,$W184>=AE$1),INDEX(Reliability!J$23:J$50,MATCH($S184,Reliability!$C$23:$C$50,0)),0),0)*IF($T184=\"n/a\",$D184*$Y184,$G184)+IFERROR(IF(AND($V184<=AE$1,$W184>=AE$1),INDEX(Reliability!J$23:J$50,MATCH($T184,Reliability!$C$23:$C$50,0)),0),0)*$H184*$X184*$Y184),$D184)*$R184","v":0},{"$f":"MIN((IFERROR(IF(AND($V184<=AF$1,$W184>=AF$1),INDEX(Reliability!K$23:K$50,MATCH($S184,Reliability!$C$23:$C$50,0)),0),0)*IF($T184=\"n/a\",$D184*$Y184,$G184)+IFERROR(IF(AND($V184<=AF$1,$W184>=AF$1),INDEX(Reliability!K$23:K$50,MATCH($T184,Reliability!$C$23:$C$50,0)),0),0)*$H184*$X184*$Y184),$D184)*$R184","v":0},{"$f":"MIN((IFERROR(IF(AND($V184<=AG$1,$W184>=AG$1),INDEX(Reliability!L$23:L$50,MATCH($S184,Reliability!$C$23:$C$50,0)),0),0)*IF($T184=\"n/a\",$D184*$Y184,$G184)+IFERROR(IF(AND($V184<=AG$1,$W184>=AG$1),INDEX(Reliability!L$23:L$50,MATCH($T184,Reliability!$C$23:$C$50,0)),0),0)*$H184*$X184*$Y184),$D184)*$R184","v":0},{"$f":"MIN((IFERROR(IF(AND($V184<=AH$1,$W184>=AH$1),INDEX(Reliability!M$23:M$50,MATCH($S184,Reliability!$C$23:$C$50,0)),0),0)*IF($T184=\"n/a\",$D184*$Y184,$G184)+IFERROR(IF(AND($V184<=AH$1,$W184>=AH$1),INDEX(Reliability!M$23:M$50,MATCH($T184,Reliability!$C$23:$C$50,0)),0),0)*$H184*$X184*$Y184),$D184)*$R184","v":0},{"$f":"MIN((IFERROR(IF(AND($V184<=AI$1,$W184>=AI$1),INDEX(Reliability!N$23:N$50,MATCH($S184,Reliability!$C$23:$C$50,0)),0),0)*IF($T184=\"n/a\",$D184*$Y184,$G184)+IFERROR(IF(AND($V184<=AI$1,$W184>=AI$1),INDEX(Reliability!N$23:N$50,MATCH($T184,Reliability!$C$23:$C$50,0)),0),0)*$H184*$X184*$Y184),$D184)*$R184","v":0},{"$f":"MIN((IFERROR(IF(AND($V184<=AJ$1,$W184>=AJ$1),INDEX(Reliability!O$23:O$50,MATCH($S184,Reliability!$C$23:$C$50,0)),0),0)*IF($T184=\"n/a\",$D184*$Y184,$G184)+IFERROR(IF(AND($V184<=AJ$1,$W184>=AJ$1),INDEX(Reliability!O$23:O$50,MATCH($T184,Reliability!$C$23:$C$50,0)),0),0)*$H184*$X184*$Y184),$D184)*$R184","v":0},{"$f":"MIN((IFERROR(IF(AND($V184<=AK$1,$W184>=AK$1),INDEX(Reliability!P$23:P$50,MATCH($S184,Reliability!$C$23:$C$50,0)),0),0)*IF($T184=\"n/a\",$D184*$Y184,$G184)+IFERROR(IF(AND($V184<=AK$1,$W184>=AK$1),INDEX(Reliability!P$23:P$50,MATCH($T184,Reliability!$C$23:$C$50,0)),0),0)*$H184*$X184*$Y184),$D184)*$R184","v":0}]
[null,{"$f":"unique_contracts!B186","v":0},{"$f":"unique_contracts!D186","v":0},{"$f":"unique_contracts!J186","v":0},{"$f":"unique_contracts!M186","v":0},{"$f":"unique_contracts!N186","v":0},{"$f":"unique_contracts!P186","v":0},{"$f":"unique_contracts!R186","v":0},{"$f":"unique_contracts!V186","v":0},{"$f":"unique_contracts!AB186","v":0},{"$f":"unique_contracts!AM186","v":0},{"$f":"unique_contracts!AN186","v":0},{"$f":"unique_contracts!AO186","v":0},{"$f":"unique_contracts!AP186","v":0},{"$f":"unique_contracts!AQ186","v":0},{"$f":"unique_contracts!AR186","v":0},{"$f":"unique_contracts!BP186","v":0},0,{"$f":"IFERROR(IF(AND(I185>0,E185=\"NotHybrid\"),_xlfn.CONCAT(MAX(MIN(ROUNDDOWN(I185/D185,0),8),4),INDEX(resources!$G:$G,MATCH(B185,resources!$A:$A,0))),INDEX(resources!$G:$G,MATCH(B185,resources!$A:$A,0))),\"n/a\")","v":"n/a"},"n/a","n/a",0,0,1,1,{"$f":"MIN((IFERROR(IF(AND($V185<=Z$1,$W185>=Z$1),INDEX(Reliability!E$23:E$50,MATCH($S185,Reliability!$C$23:$C$50,0)),0),0)*IF($T185=\"n/a\",$D185*$Y185,$G185)+IFERROR(IF(AND($V185<=Z$1,$W185>=Z$1),INDEX(Reliability!E$23:E$50,MATCH($T185,Reliability!$C$23:$C$50,0)),0),0)*$H185*$X185*$Y185),$D185)*$R185","v":0},{"$f":"MIN((IFERROR(IF(AND($V185<=AA$1,$W185>=AA$1),INDEX(Reliability!F$23:F$50,MATCH($S185,Reliability!$C$23:$C$50,0)),0),0)*IF($T185=\"n/a\",$D185*$Y185,$G185)+IFERROR(IF(AND($V185<=AA$1,$W185>=AA$1),INDEX(Reliability!F$23:F$50,MATCH($T185,Reliability!$C$23:$C$50,0)),0),0)*$H185*$X185*$Y185),$D185)*$R185","v":0},{"$f":"MIN((IFERROR(IF(AND($V185<=AB$1,$W185>=AB$1),INDEX(Reliability!G$23:G$50,MATCH($S185,Reliability!$C$23:$C$50,0)),0),0)*IF($T185=\"n/a\",$D185*$Y185,$G185)+IFERROR(IF(AND($V185<=AB$1,$W185>=AB$1),INDEX(Reliability!G$23:G$50,MATCH($T185,Reliability!$C$23:$C$50,0)),0),0)*$H185*$X185*$Y185),$D185)*$R185","v":0},{"$f":"MIN((IFERROR(IF(AND($V185<=AC$1,$W185>=AC$1),INDEX(Reliability!H$23:H$50,MATCH($S185,Reliability!$C$23:$C$50,0)),0),0)*IF($T185=\"n/a\",$D185*$Y185,$G185)+IFERROR(IF(AND($V185<=AC$1,$W185>=AC$1),INDEX(Reliability!H$23:H$50,MATCH($T185,Reliability!$C$23:$C$50,0)),0),0)*$H185*$X185*$Y185),$D185)*$R185","v":0},{"$f":"MIN((IFERROR(IF(AND($V185<=AD$1,$W185>=AD$1),INDEX(Reliability!I$23:I$50,MATCH($S185,Reliability!$C$23:$C$50,0)),0),0)*IF($T185=\"n/a\",$D185*$Y185,$G185)+IFERROR(IF(AND($V185<=AD$1,$W185>=AD$1),INDEX(Reliability!I$23:I$50,MATCH($T185,Reliability!$C$23:$C$50,0)),0),0)*$H185*$X185*$Y185),$D185)*$R185","v":0},{"$f":"MIN((IFERROR(IF(AND($V185<=AE$1,$W185>=AE$1),INDEX(Reliability!J$23:J$50,MATCH($S185,Reliability!$C$23:$C$50,0)),0),0)*IF($T185=\"n/a\",$D185*$Y185,$G185)+IFERROR(IF(AND($V185<=AE$1,$W185>=AE$1),INDEX(Reliability!J$23:J$50,MATCH($T185,Reliability!$C$23:$C$50,0)),0),0)*$H185*$X185*$Y185),$D185)*$R185","v":0},{"$f":"MIN((IFERROR(IF(AND($V185<=AF$1,$W185>=AF$1),INDEX(Reliability!K$23:K$50,MATCH($S185,Reliability!$C$23:$C$50,0)),0),0)*IF($T185=\"n/a\",$D185*$Y185,$G185)+IFERROR(IF(AND($V185<=AF$1,$W185>=AF$1),INDEX(Reliability!K$23:K$50,MATCH($T185,Reliability!$C$23:$C$50,0)),0),0)*$H185*$X185*$Y185),$D185)*$R185","v":0},{"$f":"MIN((IFERROR(IF(AND($V185<=AG$1,$W185>=AG$1),INDEX(Reliability!L$23:L$50,MATCH($S185,Reliability!$C$23:$C$50,0)),0),0)*IF($T185=\"n/a\",$D185*$Y185,$G185)+IFERROR(IF(AND($V185<=AG$1,$W185>=AG$1),INDEX(Reliability!L$23:L$50,MATCH($T185,Reliability!$C$23:$C$50,0)),0),0)*$H185*$X185*$Y185),$D185)*$R185","v":0},{"$f":"MIN((IFERROR(IF(AND($V185<=AH$1,$W185>=AH$1),INDEX(Reliability!M$23:M$50,MATCH($S185,Reliability!$C$23:$C$50,0)),0),0)*IF($T185=\"n/a\",$D185*$Y185,$G185)+IFERROR(IF(AND($V185<=AH$1,$W185>=AH$1),INDEX(Reliability!M$23:M$50,MATCH($T185,Reliability!$C$23:$C$50,0)),0),0)*$H185*$X185*$Y185),$D185)*$R185","v":0},{"$f":"MIN((IFERROR(IF(AND($V185<=AI$1,$W185>=AI$1),INDEX(Reliability!N$23:N$50,MATCH($S185,Reliability!$C$23:$C$50,0)),0),0)*IF($T185=\"n/a\",$D185*$Y185,$G185)+IFERROR(IF(AND($V185<=AI$1,$W185>=AI$1),INDEX(Reliability!N$23:N$50,MATCH($T185,Reliability!$C$23:$C$50,0)),0),0)*$H185*$X185*$Y185),$D185)*$R185","v":0},{"$f":"MIN((IFERROR(IF(AND($V185<=AJ$1,$W185>=AJ$1),INDEX(Reliability!O$23:O$50,MATCH($S185,Reliability!$C$23:$C$50,0)),0),0)*IF($T185=\"n/a\",$D185*$Y185,$G185)+IFERROR(IF(AND($V185<=AJ$1,$W185>=AJ$1),INDEX(Reliability!O$23:O$50,MATCH($T185,Reliability!$C$23:$C$50,0)),0),0)*$H185*$X185*$Y185),$D185)*$R185","v":0},{"$f":"MIN((IFERROR(IF(AND($V185<=AK$1,$W185>=AK$1),INDEX(Reliability!P$23:P$50,MATCH($S185,Reliability!$C$23:$C$50,0)),0),0)*IF($T185=\"n/a\",$D185*$Y185,$G185)+IFERROR(IF(AND($V185<=AK$1,$W185>=AK$1),INDEX(Reliability!P$23:P$50,MATCH($T185,Reliability!$C$23:$C$50,0)),0),0)*$H185*$X185*$Y185),$D185)*$R185","v":0}]
[null,{"$f":"unique_contracts!B187","v":0},{"$f":"unique_contracts!D187","v":0},{"$f":"unique_contracts!J187","v":0},{"$f":"unique_contracts!M187","v":0},{"$f":"unique_contracts!N187","v":0},{"$f":"unique_contracts!P187","v":0},{"$f":"unique_contracts!R187","v":0},{"$f":"unique_contracts!V187","v":0},{"$f":"unique_contracts!AB187","v":0},{"$f":"unique_contracts!AM187","v":0},{"$f":"unique_contracts!AN187","v":0},{"$f":"unique_contracts!AO187","v":0},{"$f":"unique_contracts!AP187","v":0},{"$f":"unique_contracts!AQ187","v":0},{"$f":"unique_contracts!AR187","v":0},{"$f":"unique_contracts!BP187","v":0},0,{"$f":"IFERROR(IF(AND(I186>0,E186=\"NotHybrid\"),_xlfn.CONCAT(MAX(MIN(ROUNDDOWN(I186/D186,0),8),4),INDEX(resources!$G:$G,MATCH(B186,resources!$A:$A,0))),INDEX(resources!$G:$G,MATCH(B186,resources!$A:$A,0))),\"n/a\")","v":"n/a"},"n/a","n/a",0,0,1,1,{"$f":"MIN((IFERROR(IF(AND($V186<=Z$1,$W186>=Z$1),INDEX(Reliability!E$23:E$50,MATCH($S186,Reliability!$C$23:$C$50,0)),0),0)*IF($T186=\"n/a\",$D186*$Y186,$G186)+IFERROR(IF(AND($V186<=Z$1,$W186>=Z$1),INDEX(Reliability!E$23:E$50,MATCH($T186,Reliability!$C$23:$C$50,0)),0),0)*$H186*$X186*$Y186),$D186)*$R186","v":0},{"$f":"MIN((IFERROR(IF(AND($V186<=AA$1,$W186>=AA$1),INDEX(Reliability!F$23:F$50,MATCH($S186,Reliability!$C$23:$C$50,0)),0),0)*IF($T186=\"n/a\",$D186*$Y186,$G186)+IFERROR(IF(AND($V186<=AA$1,$W186>=AA$1),INDEX(Reliability!F$23:F$50,MATCH($T186,Reliability!$C$23:$C$50,0)),0),0)*$H186*$X186*$Y186),$D186)*$R186","v":0},{"$f":"MIN((IFERROR(IF(AND($V186<=AB$1,$W186>=AB$1),INDEX(Reliability!G$23:G$50,MATCH($S186,Reliability!$C$23:$C$50,0)),0),0)*IF($T186=\"n/a\",$D186*$Y186,$G186)+IFERROR(IF(AND($V186<=AB$1,$W186>=AB$1),INDEX(Reliability!G$23:G$50,MATCH($T186,Reliability!$C$23:$C$50,0)),0),0)*$H186*$X186*$Y186),$D186)*$R186","v":0},{"$f":"MIN((IFERROR(IF(AND($V186<=AC$1,$W186>=AC$1),INDEX(Reliability!H$23:H$50,MATCH($S186,Reliability!$C$23:$C$50,0)),0),0)*IF($T186=\"n/a\",$D186*$Y186,$G186)+IFERROR(IF(AND($V186<=AC$1,$W186>=AC$1),INDEX(Reliability!H$23:H$50,MATCH($T186,Reliability!$C$23:$C$50,0)),0),0)*$H186*$X186*$Y186),$D186)*$R186","v":0},{"$f":"MIN((IFERROR(IF(AND($V186<=AD$1,$W186>=AD$1),INDEX(Reliability!I$23:I$50,MATCH($S186,Reliability!$C$23:$C$50,0)),0),0)*IF($T186=\"n/a\",$D186*$Y186,$G186)+IFERROR(IF(AND($V186<=AD$1,$W186>=AD$1),INDEX(Reliability!I$23:I$50,MATCH($T186,Reliability!$C$23:$C$50,0)),0),0)*$H186*$X186*$Y186),$D186)*$R186","v":0},{"$f":"MIN((IFERROR(IF(AND($V186<=AE$1,$W186>=AE$1),INDEX(Reliability!J$23:J$50,MATCH($S186,Reliability!$C$23:$C$50,0)),0),0)*IF($T186=\"n/a\",$D186*$Y186,$G186)+IFERROR(IF(AND($V186<=AE$1,$W186>=AE$1),INDEX(Reliability!J$23:J$50,MATCH($T186,Reliability!$C$23:$C$50,0)),0),0)*$H186*$X186*$Y186),$D186)*$R186","v":0},{"$f":"MIN((IFERROR(IF(AND($V186<=AF$1,$W186>=AF$1),INDEX(Reliability!K$23:K$50,MATCH($S186,Reliability!$C$23:$C$50,0)),0),0)*IF($T186=\"n/a\",$D186*$Y186,$G186)+IFERROR(IF(AND($V186<=AF$1,$W186>=AF$1),INDEX(Reliability!K$23:K$50,MATCH($T186,Reliability!$C$23:$C$50,0)),0),0)*$H186*$X186*$Y186),$D186)*$R186","v":0},{"$f":"MIN((IFERROR(IF(AND($V186<=AG$1,$W186>=AG$1),INDEX(Reliability!L$23:L$50,MATCH($S186,Reliability!$C$23:$C$50,0)),0),0)*IF($T186=\"n/a\",$D186*$Y186,$G186)+IFERROR(IF(AND($V186<=AG$1,$W186>=AG$1),INDEX(Reliability!L$23:L$50,MATCH($T186,Reliability!$C$23:$C$50,0)),0),0)*$H186*$X186*$Y186),$D186)*$R186","v":0},{"$f":"MIN((IFERROR(IF(AND($V186<=AH$1,$W186>=AH$1),INDEX(Reliability!M$23:M$50,MATCH($S186,Reliability!$C$23:$C$50,0)),0),0)*IF($T186=\"n/a\",$D186*$Y186,$G186)+IFERROR(IF(AND($V186<=AH$1,$W186>=AH$1),INDEX(Reliability!M$23:M$50,MATCH($T186,Reliability!$C$23:$C$50,0)),0),0)*$H186*$X186*$Y186),$D186)*$R186","v":0},{"$f":"MIN((IFERROR(IF(AND($V186<=AI$1,$W186>=AI$1),INDEX(Reliability!N$23:N$50,MATCH($S186,Reliability!$C$23:$C$50,0)),0),0)*IF($T186=\"n/a\",$D186*$Y186,$G186)+IFERROR(IF(AND($V186<=AI$1,$W186>=AI$1),INDEX(Reliability!N$23:N$50,MATCH($T186,Reliability!$C$23:$C$50,0)),0),0)*$H186*$X186*$Y186),$D186)*$R186","v":0},{"$f":"MIN((IFERROR(IF(AND($V186<=AJ$1,$W186>=AJ$1),INDEX(Reliability!O$23:O$50,MATCH($S186,Reliability!$C$23:$C$50,0)),0),0)*IF($T186=\"n/a\",$D186*$Y186,$G186)+IFERROR(IF(AND($V186<=AJ$1,$W186>=AJ$1),INDEX(Reliability!O$23:O$50,MATCH($T186,Reliability!$C$23:$C$50,0)),0),0)*$H186*$X186*$Y186),$D186)*$R186","v":0},{"$f":"MIN((IFERROR(IF(AND($V186<=AK$1,$W186>=AK$1),INDEX(Reliability!P$23:P$50,MATCH($S186,Reliability!$C$23:$C$50,0)),0),0)*IF($T186=\"n/a\",$D186*$Y186,$G186)+IFERROR(IF(AND($V186<=AK$1,$W186>=AK$1),INDEX(Reliability!P$23:P$50,MATCH($T186,Reliability!$C$23:$C$50,0)),0),0)*$H186*$X186*$Y186),$D186)*$R186","v":0}]
[null,{"$f":"unique_contracts!B188","v":0},{"$f":"unique_contracts!D188","v":0},{"$f":"unique_contracts!J188","v":0},{"$f":"unique_contracts!M188","v":0},{"$f":"unique_contracts!N188","v":0},{"$f":"unique_contracts!P188","v":0},{"$f":"unique_contracts!R188","v":0},{"$f":"unique_contracts!V188","v":0},{"$f":"unique_contracts!AB188","v":0},{"$f":"unique_contracts!AM188","v":0},{"$f":"unique_contracts!AN188","v":0},{"$f":"unique_contracts!AO188","v":0},{"$f":"unique_contracts!AP188","v":0},{"$f":"unique_contracts!AQ188","v":0},{"$f":"unique_contracts!AR188","v":0},{"$f":"unique_contracts!BP188","v":0},0,{"$f":"IFERROR(IF(AND(I187>0,E187=\"NotHybrid\"),_xlfn.CONCAT(MAX(MIN(ROUNDDOWN(I187/D187,0),8),4),INDEX(resources!$G:$G,MATCH(B187,resources!$A:$A,0))),INDEX(resources!$G:$G,MATCH(B187,resources!$A:$A,0))),\"n/a\")","v":"n/a"},"n/a","n/a",0,0,1,1,{"$f":"MIN((IFERROR(IF(AND($V187<=Z$1,$W187>=Z$1),INDEX(Reliability!E$23:E$50,MATCH($S187,Reliability!$C$23:$C$50,0)),0),0)*IF($T187=\"n/a\",$D187*$Y187,$G187)+IFERROR(IF(AND($V187<=Z$1,$W187>=Z$1),INDEX(Reliability!E$23:E$50,MATCH($T187,Reliability!$C$23:$C$50,0)),0),0)*$H187*$X187*$Y187),$D187)*$R187","v":0},{"$f":"MIN((IFERROR(IF(AND($V187<=AA$1,$W187>=AA$1),INDEX(Reliability!F$23:F$50,MATCH($S187,Reliability!$C$23:$C$50,0)),0),0)*IF($T187=\"n/a\",$D187*$Y187,$G187)+IFERROR(IF(AND($V187<=AA$1,$W187>=AA$1),INDEX(Reliability!F$23:F$50,MATCH($T187,Reliability!$C$23:$C$50,0)),0),0)*$H187*$X187*$Y187),$D187)*$R187","v":0},{"$f":"MIN((IFERROR(IF(AND($V187<=AB$1,$W187>=AB$1),INDEX(Reliability!G$23:G$50,MATCH($S187,Reliability!$C$23:$C$50,0)),0),0)*IF($T187=\"n/a\",$D187*$Y187,$G187)+IFERROR(IF(AND($V187<=AB$1,$W187>=AB$1),INDEX(Reliability!G$23:G$50,MATCH($T187,Reliability!$C$23:$C$50,0)),0),0)*$H187*$X187*$Y187),$D187)*$R187","v":0},{"$f":"MIN((IFERROR(IF(AND($V187<=AC$1,$W187>=AC$1),INDEX(Reliability!H$23:H$50,MATCH($S187,Reliability!$C$23:$C$50,0)),0),0)*IF($T187=\"n/a\",$D187*$Y187,$G187)+IFERROR(IF(AND($V187<=AC$1,$W187>=AC$1),INDEX(Reliability!H$23:H$50,MATCH($T187,Reliability!$C$23:$C$50,0)),0),0)*$H187*$X187*$Y187),$D187)*$R187","v":0},{"$f":"MIN((IFERROR(IF(AND($V187<=AD$1,$W187>=AD$1),INDEX(Reliability!I$23:I$50,MATCH($S187,Reliability!$C$23:$C$50,0)),0),0)*IF($T187=\"n/a\",$D187*$Y187,$G187)+IFERROR(IF(AND($V187<=AD$1,$W187>=AD$1),INDEX(Reliability!I$23:I$50,MATCH($T187,Reliability!$C$23:$C$50,0)),0),0)*$H187*$X187*$Y187),$D187)*$R187","v":0},{"$f":"MIN((IFERROR(IF(AND($V187<=AE$1,$W187>=AE$1),INDEX(Reliability!J$23:J$50,MATCH($S187,Reliability!$C$23:$C$50,0)),0),0)*IF($T187=\"n/a\",$D187*$Y187,$G187)+IFERROR(IF(AND($V187<=AE$1,$W187>=AE$1),INDEX(Reliability!J$23:J$50,MATCH($T187,Reliability!$C$23:$C$50,0)),0),0)*$H187*$X187*$Y187),$D187)*$R187","v":0},{"$f":"MIN((IFERROR(IF(AND($V187<=AF$1,$W187>=AF$1),INDEX(Reliability!K$23:K$50,MATCH($S187,Reliability!$C$23:$C$50,0)),0),0)*IF($T187=\"n/a\",$D187*$Y187,$G187)+IFERROR(IF(AND($V187<=AF$1,$W187>=AF$1),INDEX(Reliability!K$23:K$50,MATCH($T187,Reliability!$C$23:$C$50,0)),0),0)*$H187*$X187*$Y187),$D187)*$R187","v":0},{"$f":"MIN((IFERROR(IF(AND($V187<=AG$1,$W187>=AG$1),INDEX(Reliability!L$23:L$50,MATCH($S187,Reliability!$C$23:$C$50,0)),0),0)*IF($T187=\"n/a\",$D187*$Y187,$G187)+IFERROR(IF(AND($V187<=AG$1,$W187>=AG$1),INDEX(Reliability!L$23:L$50,MATCH($T187,Reliability!$C$23:$C$50,0)),0),0)*$H187*$X187*$Y187),$D187)*$R187","v":0},{"$f":"MIN((IFERROR(IF(AND($V187<=AH$1,$W187>=AH$1),INDEX(Reliability!M$23:M$50,MATCH($S187,Reliability!$C$23:$C$50,0)),0),0)*IF($T187=\"n/a\",$D187*$Y187,$G187)+IFERROR(IF(AND($V187<=AH$1,$W187>=AH$1),INDEX(Reliability!M$23:M$50,MATCH($T187,Reliability!$C$23:$C$50,0)),0),0)*$H187*$X187*$Y187),$D187)*$R187","v":0},{"$f":"MIN((IFERROR(IF(AND($V187<=AI$1,$W187>=AI$1),INDEX(Reliability!N$23:N$50,MATCH($S187,Reliability!$C$23:$C$50,0)),0),0)*IF($T187=\"n/a\",$D187*$Y187,$G187)+IFERROR(IF(AND($V187<=AI$1,$W187>=AI$1),INDEX(Reliability!N$23:N$50,MATCH($T187,Reliability!$C$23:$C$50,0)),0),0)*$H187*$X187*$Y187),$D187)*$R187","v":0},{"$f":"MIN((IFERROR(IF(AND($V187<=AJ$1,$W187>=AJ$1),INDEX(Reliability!O$23:O$50,MATCH($S187,Reliability!$C$23:$C$50,0)),0),0)*IF($T187=\"n/a\",$D187*$Y187,$G187)+IFERROR(IF(AND($V187<=AJ$1,$W187>=AJ$1),INDEX(Reliability!O$23:O$50,MATCH($T187,Reliability!$C$23:$C$50,0)),0),0)*$H187*$X187*$Y187),$D187)*$R187","v":0},{"$f":"MIN((IFERROR(IF(AND($V187<=AK$1,$W187>=AK$1),INDEX(Reliability!P$23:P$50,MATCH($S187,Reliability!$C$23:$C$50,0)),0),0)*IF($T187=\"n/a\",$D187*$Y187,$G187)+IFERROR(IF(AND($V187<=AK$1,$W187>=AK$1),INDEX(Reliability!P$23:P$50,MATCH($T187,Reliability!$C$23:$C$50,0)),0),0)*$H187*$X187*$Y187),$D187)*$R187","v":0}]
[null,{"$f":"unique_contracts!B189","v":0},{"$f":"unique_contracts!D189","v":0},{"$f":"unique_contracts!J189","v":0},{"$f":"unique_contracts!M189","v":0},{"$f":"unique_contracts!N189","v":0},{"$f":"unique_contracts!P189","v":0},{"$f":"unique_contracts!R189","v":0},{"$f":"unique_contracts!V189","v":0},{"$f":"unique_contracts!AB189","v":0},{"$f":"unique_contracts!AM189","v":0},{"$f":"unique_contracts!AN189","v":0},{"$f":"unique_contracts!AO189","v":0},{"$f":"unique_contracts!AP189","v":0},{"$f":"unique_contracts!AQ189","v":0},{"$f":"unique_contracts!AR189","v":0},{"$f":"unique_contracts!BP189","v":0},0,{"$f":"IFERROR(IF(AND(I188>0,E188=\"NotHybrid\"),_xlfn.CONCAT(MAX(MIN(ROUNDDOWN(I188/D188,0),8),4),INDEX(resources!$G:$G,MATCH(B188,resources!$A:$A,0))),INDEX(resources!$G:$G,MATCH(B188,resources!$A:$A,0))),\"n/a\")","v":"n/a"},"n/a","n/a",0,0,1,1,{"$f":"MIN((IFERROR(IF(AND($V188<=Z$1,$W188>=Z$1),INDEX(Reliability!E$23:E$50,MATCH($S188,Reliability!$C$23:$C$50,0)),0),0)*IF($T188=\"n/a\",$D188*$Y188,$G188)+IFERROR(IF(AND($V188<=Z$1,$W188>=Z$1),INDEX(Reliability!E$23:E$50,MATCH($T188,Reliability!$C$23:$C$50,0)),0),0)*$H188*$X188*$Y188),$D188)*$R188","v":0},{"$f":"MIN((IFERROR(IF(AND($V188<=AA$1,$W188>=AA$1),INDEX(Reliability!F$23:F$50,MATCH($S188,Reliability!$C$23:$C$50,0)),0),0)*IF($T188=\"n/a\",$D188*$Y188,$G188)+IFERROR(IF(AND($V188<=AA$1,$W188>=AA$1),INDEX(Reliability!F$23:F$50,MATCH($T188,Reliability!$C$23:$C$50,0)),0),0)*$H188*$X188*$Y188),$D188)*$R188","v":0},{"$f":"MIN((IFERROR(IF(AND($V188<=AB$1,$W188>=AB$1),INDEX(Reliability!G$23:G$50,MATCH($S188,Reliability!$C$23:$C$50,0)),0),0)*IF($T188=\"n/a\",$D188*$Y188,$G188)+IFERROR(IF(AND($V188<=AB$1,$W188>=AB$1),INDEX(Reliability!G$23:G$50,MATCH($T188,Reliability!$C$23:$C$50,0)),0),0)*$H188*$X188*$Y188),$D188)*$R188","v":0},{"$f":"MIN((IFERROR(IF(AND($V188<=AC$1,$W188>=AC$1),INDEX(Reliability!H$23:H$50,MATCH($S188,Reliability!$C$23:$C$50,0)),0),0)*IF($T188=\"n/a\",$D188*$Y188,$G188)+IFERROR(IF(AND($V188<=AC$1,$W188>=AC$1),INDEX(Reliability!H$23:H$50,MATCH($T188,Reliability!$C$23:$C$50,0)),0),0)*$H188*$X188*$Y188),$D188)*$R188","v":0},{"$f":"MIN((IFERROR(IF(AND($V188<=AD$1,$W188>=AD$1),INDEX(Reliability!I$23:I$50,MATCH($S188,Reliability!$C$23:$C$50,0)),0),0)*IF($T188=\"n/a\",$D188*$Y188,$G188)+IFERROR(IF(AND($V188<=AD$1,$W188>=AD$1),INDEX(Reliability!I$23:I$50,MATCH($T188,Reliability!$C$23:$C$50,0)),0),0)*$H188*$X188*$Y188),$D188)*$R188","v":0},{"$f":"MIN((IFERROR(IF(AND($V188<=AE$1,$W188>=AE$1),INDEX(Reliability!J$23:J$50,MATCH($S188,Reliability!$C$23:$C$50,0)),0),0)*IF($T188=\"n/a\",$D188*$Y188,$G188)+IFERROR(IF(AND($V188<=AE$1,$W188>=AE$1),INDEX(Reliability!J$23:J$50,MATCH($T188,Reliability!$C$23:$C$50,0)),0),0)*$H188*$X188*$Y188),$D188)*$R188","v":0},{"$f":"MIN((IFERROR(IF(AND($V188<=AF$1,$W188>=AF$1),INDEX(Reliability!K$23:K$50,MATCH($S188,Reliability!$C$23:$C$50,0)),0),0)*IF($T188=\"n/a\",$D188*$Y188,$G188)+IFERROR(IF(AND($V188<=AF$1,$W188>=AF$1),INDEX(Reliability!K$23:K$50,MATCH($T188,Reliability!$C$23:$C$50,0)),0),0)*$H188*$X188*$Y188),$D188)*$R188","v":0},{"$f":"MIN((IFERROR(IF(AND($V188<=AG$1,$W188>=AG$1),INDEX(Reliability!L$23:L$50,MATCH($S188,Reliability!$C$23:$C$50,0)),0),0)*IF($T188=\"n/a\",$D188*$Y188,$G188)+IFERROR(IF(AND($V188<=AG$1,$W188>=AG$1),INDEX(Reliability!L$23:L$50,MATCH($T188,Reliability!$C$23:$C$50,0)),0),0)*$H188*$X188*$Y188),$D188)*$R188","v":0},{"$f":"MIN((IFERROR(IF(AND($V188<=AH$1,$W188>=AH$1),INDEX(Reliability!M$23:M$50,MATCH($S188,Reliability!$C$23:$C$50,0)),0),0)*IF($T188=\"n/a\",$D188*$Y188,$G188)+IFERROR(IF(AND($V188<=AH$1,$W188>=AH$1),INDEX(Reliability!M$23:M$50,MATCH($T188,Reliability!$C$23:$C$50,0)),0),0)*$H188*$X188*$Y188),$D188)*$R188","v":0},{"$f":"MIN((IFERROR(IF(AND($V188<=AI$1,$W188>=AI$1),INDEX(Reliability!N$23:N$50,MATCH($S188,Reliability!$C$23:$C$50,0)),0),0)*IF($T188=\"n/a\",$D188*$Y188,$G188)+IFERROR(IF(AND($V188<=AI$1,$W188>=AI$1),INDEX(Reliability!N$23:N$50,MATCH($T188,Reliability!$C$23:$C$50,0)),0),0)*$H188*$X188*$Y188),$D188)*$R188","v":0},{"$f":"MIN((IFERROR(IF(AND($V188<=AJ$1,$W188>=AJ$1),INDEX(Reliability!O$23:O$50,MATCH($S188,Reliability!$C$23:$C$50,0)),0),0)*IF($T188=\"n/a\",$D188*$Y188,$G188)+IFERROR(IF(AND($V188<=AJ$1,$W188>=AJ$1),INDEX(Reliability!O$23:O$50,MATCH($T188,Reliability!$C$23:$C$50,0)),0),0)*$H188*$X188*$Y188),$D188)*$R188","v":0},{"$f":"MIN((IFERROR(IF(AND($V188<=AK$1,$W188>=AK$1),INDEX(Reliability!P$23:P$50,MATCH($S188,Reliability!$C$23:$C$50,0)),0),0)*IF($T188=\"n/a\",$D188*$Y188,$G188)+IFERROR(IF(AND($V188<=AK$1,$W188>=AK$1),INDEX(Reliability!P$23:P$50,MATCH($T188,Reliability!$C$23:$C$50,0)),0),0)*$H188*$X188*$Y188),$D188)*$R188","v":0}]
[null,{"$f":"unique_contracts!B190","v":0},{"$f":"unique_contracts!D190","v":0},{"$f":"unique_contracts!J190","v":0},{"$f":"unique_contracts!M190","v":0},{"$f":"unique_contracts!N190","v":0},{"$f":"unique_contracts!P190","v":0},{"$f":"unique_contracts!R190","v":0},{"$f":"unique_contracts!V190","v":0},{"$f":"unique_contracts!AB190","v":0},{"$f":"unique_contracts!AM190","v":0},{"$f":"unique_contracts!AN190","v":0},{"$f":"unique_contracts!AO190","v":0},{"$f":"unique_contracts!AP190","v":0},{"$f":"unique_contracts!AQ190","v":0},{"$f":"unique_contracts!AR190","v":0},{"$f":"unique_contracts!BP190","v":0},0,{"$f":"IFERROR(IF(AND(I189>0,E189=\"NotHybrid\"),_xlfn.CONCAT(MAX(MIN(ROUNDDOWN(I189/D189,0),8),4),INDEX(resources!$G:$G,MATCH(B189,resources!$A:$A,0))),INDEX(resources!$G:$G,MATCH(B189,resources!$A:$A,0))),\"n/a\")","v":"n/a"},"n/a","n/a",0,0,1,1,{"$f":"MIN((IFERROR(IF(AND($V189<=Z$1,$W189>=Z$1),INDEX(Reliability!E$23:E$50,MATCH($S189,Reliability!$C$23:$C$50,0)),0),0)*IF($T189=\"n/a\",$D189*$Y189,$G189)+IFERROR(IF(AND($V189<=Z$1,$W189>=Z$1),INDEX(Reliability!E$23:E$50,MATCH($T189,Reliability!$C$23:$C$50,0)),0),0)*$H189*$X189*$Y189),$D189)*$R189","v":0},{"$f":"MIN((IFERROR(IF(AND($V189<=AA$1,$W189>=AA$1),INDEX(Reliability!F$23:F$50,MATCH($S189,Reliability!$C$23:$C$50,0)),0),0)*IF($T189=\"n/a\",$D189*$Y189,$G189)+IFERROR(IF(AND($V189<=AA$1,$W189>=AA$1),INDEX(Reliability!F$23:F$50,MATCH($T189,Reliability!$C$23:$C$50,0)),0),0)*$H189*$X189*$Y189),$D189)*$R189","v":0},{"$f":"MIN((IFERROR(IF(AND($V189<=AB$1,$W189>=AB$1),INDEX(Reliability!G$23:G$50,MATCH($S189,Reliability!$C$23:$C$50,0)),0),0)*IF($T189=\"n/a\",$D189*$Y189,$G189)+IFERROR(IF(AND($V189<=AB$1,$W189>=AB$1),INDEX(Reliability!G$23:G$50,MATCH($T189,Reliability!$C$23:$C$50,0)),0),0)*$H189*$X189*$Y189),$D189)*$R189","v":0},{"$f":"MIN((IFERROR(IF(AND($V189<=AC$1,$W189>=AC$1),INDEX(Reliability!H$23:H$50,MATCH($S189,Reliability!$C$23:$C$50,0)),0),0)*IF($T189=\"n/a\",$D189*$Y189,$G189)+IFERROR(IF(AND($V189<=AC$1,$W189>=AC$1),INDEX(Reliability!H$23:H$50,MATCH($T189,Reliability!$C$23:$C$50,0)),0),0)*$H189*$X189*$Y189),$D189)*$R189","v":0},{"$f":"MIN((IFERROR(IF(AND($V189<=AD$1,$W189>=AD$1),INDEX(Reliability!I$23:I$50,MATCH($S189,Reliability!$C$23:$C$50,0)),0),0)*IF($T189=\"n/a\",$D189*$Y189,$G189)+IFERROR(IF(AND($V189<=AD$1,$W189>=AD$1),INDEX(Reliability!I$23:I$50,MATCH($T189,Reliability!$C$23:$C$50,0)),0),0)*$H189*$X189*$Y189),$D189)*$R189","v":0},{"$f":"MIN((IFERROR(IF(AND($V189<=AE$1,$W189>=AE$1),INDEX(Reliability!J$23:J$50,MATCH($S189,Reliability!$C$23:$C$50,0)),0),0)*IF($T189=\"n/a\",$D189*$Y189,$G189)+IFERROR(IF(AND($V189<=AE$1,$W189>=AE$1),INDEX(Reliability!J$23:J$50,MATCH($T189,Reliability!$C$23:$C$50,0)),0),0)*$H189*$X189*$Y189),$D189)*$R189","v":0},{"$f":"MIN((IFERROR(IF(AND($V189<=AF$1,$W189>=AF$1),INDEX(Reliability!K$23:K$50,MATCH($S189,Reliability!$C$23:$C$50,0)),0),0)*IF($T189=\"n/a\",$D189*$Y189,$G189)+IFERROR(IF(AND($V189<=AF$1,$W189>=AF$1),INDEX(Reliability!K$23:K$50,MATCH($T189,Reliability!$C$23:$C$50,0)),0),0)*$H189*$X189*$Y189),$D189)*$R189","v":0},{"$f":"MIN((IFERROR(IF(AND($V189<=AG$1,$W189>=AG$1),INDEX(Reliability!L$23:L$50,MATCH($S189,Reliability!$C$23:$C$50,0)),0),0)*IF($T189=\"n/a\",$D189*$Y189,$G189)+IFERROR(IF(AND($V189<=AG$1,$W189>=AG$1),INDEX(Reliability!L$23:L$50,MATCH($T189,Reliability!$C$23:$C$50,0)),0),0)*$H189*$X189*$Y189),$D189)*$R189","v":0},{"$f":"MIN((IFERROR(IF(AND($V189<=AH$1,$W189>=AH$1),INDEX(Reliability!M$23:M$50,MATCH($S189,Reliability!$C$23:$C$50,0)),0),0)*IF($T189=\"n/a\",$D189*$Y189,$G189)+IFERROR(IF(AND($V189<=AH$1,$W189>=AH$1),INDEX(Reliability!M$23:M$50,MATCH($T189,Reliability!$C$23:$C$50,0)),0),0)*$H189*$X189*$Y189),$D189)*$R189","v":0},{"$f":"MIN((IFERROR(IF(AND($V189<=AI$1,$W189>=AI$1),INDEX(Reliability!N$23:N$50,MATCH($S189,Reliability!$C$23:$C$50,0)),0),0)*IF($T189=\"n/a\",$D189*$Y189,$G189)+IFERROR(IF(AND($V189<=AI$1,$W189>=AI$1),INDEX(Reliability!N$23:N$50,MATCH($T189,Reliability!$C$23:$C$50,0)),0),0)*$H189*$X189*$Y189),$D189)*$R189","v":0},{"$f":"MIN((IFERROR(IF(AND($V189<=AJ$1,$W189>=AJ$1),INDEX(Reliability!O$23:O$50,MATCH($S189,Reliability!$C$23:$C$50,0)),0),0)*IF($T189=\"n/a\",$D189*$Y189,$G189)+IFERROR(IF(AND($V189<=AJ$1,$W189>=AJ$1),INDEX(Reliability!O$23:O$50,MATCH($T189,Reliability!$C$23:$C$50,0)),0),0)*$H189*$X189*$Y189),$D189)*$R189","v":0},{"$f":"MIN((IFERROR(IF(AND($V189<=AK$1,$W189>=AK$1),INDEX(Reliability!P$23:P$50,MATCH($S189,Reliability!$C$23:$C$50,0)),0),0)*IF($T189=\"n/a\",$D189*$Y189,$G189)+IFERROR(IF(AND($V189<=AK$1,$W189>=AK$1),INDEX(Reliability!P$23:P$50,MATCH($T189,Reliability!$C$23:$C$50,0)),0),0)*$H189*$X189*$Y189),$D189)*$R189","v":0}]
[null,{"$f":"unique_contracts!B191","v":0},{"$f":"unique_contracts!D191","v":0},{"$f":"unique_contracts!J191","v":0},{"$f":"unique_contracts!M191","v":0},{"$f":"unique_contracts!N191","v":0},{"$f":"unique_contracts!P191","v":0},{"$f":"unique_contracts!R191","v":0},{"$f":"unique_contracts!V191","v":0},{"$f":"unique_contracts!AB191","v":0},{"$f":"unique_contracts!AM191","v":0},{"$f":"unique_contracts!AN191","v":0},{"$f":"unique_contracts!AO191","v":0},{"$f":"unique_contracts!AP191","v":0},{"$f":"unique_contracts!AQ191","v":0},{"$f":"unique_contracts!AR191","v":0},{"$f":"unique_contracts!BP191","v":0},0,{"$f":"IFERROR(IF(AND(I190>0,E190=\"NotHybrid\"),_xlfn.CONCAT(MAX(MIN(ROUNDDOWN(I190/D190,0),8),4),INDEX(resources!$G:$G,MATCH(B190,resources!$A:$A,0))),INDEX(resources!$G:$G,MATCH(B190,resources!$A:$A,0))),\"n/a\")","v":"n/a"},"n/a","n/a",0,0,1,1,{"$f":"MIN((IFERROR(IF(AND($V190<=Z$1,$W190>=Z$1),INDEX(Reliability!E$23:E$50,MATCH($S190,Reliability!$C$23:$C$50,0)),0),0)*IF($T190=\"n/a\",$D190*$Y190,$G190)+IFERROR(IF(AND($V190<=Z$1,$W190>=Z$1),INDEX(Reliability!E$23:E$50,MATCH($T190,Reliability!$C$23:$C$50,0)),0),0)*$H190*$X190*$Y190),$D190)*$R190","v":0},{"$f":"MIN((IFERROR(IF(AND($V190<=AA$1,$W190>=AA$1),INDEX(Reliability!F$23:F$50,MATCH($S190,Reliability!$C$23:$C$50,0)),0),0)*IF($T190=\"n/a\",$D190*$Y190,$G190)+IFERROR(IF(AND($V190<=AA$1,$W190>=AA$1),INDEX(Reliability!F$23:F$50,MATCH($T190,Reliability!$C$23:$C$50,0)),0),0)*$H190*$X190*$Y190),$D190)*$R190","v":0},{"$f":"MIN((IFERROR(IF(AND($V190<=AB$1,$W190>=AB$1),INDEX(Reliability!G$23:G$50,MATCH($S190,Reliability!$C$23:$C$50,0)),0),0)*IF($T190=\"n/a\",$D190*$Y190,$G190)+IFERROR(IF(AND($V190<=AB$1,$W190>=AB$1),INDEX(Reliability!G$23:G$50,MATCH($T190,Reliability!$C$23:$C$50,0)),0),0)*$H190*$X190*$Y190),$D190)*$R190","v":0},{"$f":"MIN((IFERROR(IF(AND($V190<=AC$1,$W190>=AC$1),INDEX(Reliability!H$23:H$50,MATCH($S190,Reliability!$C$23:$C$50,0)),0),0)*IF($T190=\"n/a\",$D190*$Y190,$G190)+IFERROR(IF(AND($V190<=AC$1,$W190>=AC$1),INDEX(Reliability!H$23:H$50,MATCH($T190,Reliability!$C$23:$C$50,0)),0),0)*$H190*$X190*$Y190),$D190)*$R190","v":0},{"$f":"MIN((IFERROR(IF(AND($V190<=AD$1,$W190>=AD$1),INDEX(Reliability!I$23:I$50,MATCH($S190,Reliability!$C$23:$C$50,0)),0),0)*IF($T190=\"n/a\",$D190*$Y190,$G190)+IFERROR(IF(AND($V190<=AD$1,$W190>=AD$1),INDEX(Reliability!I$23:I$50,MATCH($T190,Reliability!$C$23:$C$50,0)),0),0)*$H190*$X190*$Y190),$D190)*$R190","v":0},{"$f":"MIN((IFERROR(IF(AND($V190<=AE$1,$W190>=AE$1),INDEX(Reliability!J$23:J$50,MATCH($S190,Reliability!$C$23:$C$50,0)),0),0)*IF($T190=\"n/a\",$D190*$Y190,$G190)+IFERROR(IF(AND($V190<=AE$1,$W190>=AE$1),INDEX(Reliability!J$23:J$50,MATCH($T190,Reliability!$C$23:$C$50,0)),0),0)*$H190*$X190*$Y190),$D190)*$R190","v":0},{"$f":"MIN((IFERROR(IF(AND($V190<=AF$1,$W190>=AF$1),INDEX(Reliability!K$23:K$50,MATCH($S190,Reliability!$C$23:$C$50,0)),0),0)*IF($T190=\"n/a\",$D190*$Y190,$G190)+IFERROR(IF(AND($V190<=AF$1,$W190>=AF$1),INDEX(Reliability!K$23:K$50,MATCH($T190,Reliability!$C$23:$C$50,0)),0),0)*$H190*$X190*$Y190),$D190)*$R190","v":0},{"$f":"MIN((IFERROR(IF(AND($V190<=AG$1,$W190>=AG$1),INDEX(Reliability!L$23:L$50,MATCH($S190,Reliability!$C$23:$C$50,0)),0),0)*IF($T190=\"n/a\",$D190*$Y190,$G190)+IFERROR(IF(AND($V190<=AG$1,$W190>=AG$1),INDEX(Reliability!L$23:L$50,MATCH($T190,Reliability!$C$23:$C$50,0)),0),0)*$H190*$X190*$Y190),$D190)*$R190","v":0},{"$f":"MIN((IFERROR(IF(AND($V190<=AH$1,$W190>=AH$1),INDEX(Reliability!M$23:M$50,MATCH($S190,Reliability!$C$23:$C$50,0)),0),0)*IF($T190=\"n/a\",$D190*$Y190,$G190)+IFERROR(IF(AND($V190<=AH$1,$W190>=AH$1),INDEX(Reliability!M$23:M$50,MATCH($T190,Reliability!$C$23:$C$50,0)),0),0)*$H190*$X190*$Y190),$D190)*$R190","v":0},{"$f":"MIN((IFERROR(IF(AND($V190<=AI$1,$W190>=AI$1),INDEX(Reliability!N$23:N$50,MATCH($S190,Reliability!$C$23:$C$50,0)),0),0)*IF($T190=\"n/a\",$D190*$Y190,$G190)+IFERROR(IF(AND($V190<=AI$1,$W190>=AI$1),INDEX(Reliability!N$23:N$50,MATCH($T190,Reliability!$C$23:$C$50,0)),0),0)*$H190*$X190*$Y190),$D190)*$R190","v":0},{"$f":"MIN((IFERROR(IF(AND($V190<=AJ$1,$W190>=AJ$1),INDEX(Reliability!O$23:O$50,MATCH($S190,Reliability!$C$23:$C$50,0)),0),0)*IF($T190=\"n/a\",$D190*$Y190,$G190)+IFERROR(IF(AND($V190<=AJ$1,$W190>=AJ$1),INDEX(Reliability!O$23:O$50,MATCH($T190,Reliability!$C$23:$C$50,0)),0),0)*$H190*$X190*$Y190),$D190)*$R190","v":0},{"$f":"MIN((IFERROR(IF(AND($V190<=AK$1,$W190>=AK$1),INDEX(Reliability!P$23:P$50,MATCH($S190,Reliability!$C$23:$C$50,0)),0),0)*IF($T190=\"n/a\",$D190*$Y190,$G190)+IFERROR(IF(AND($V190<=AK$1,$W190>=AK$1),INDEX(Reliability!P$23:P$50,MATCH($T190,Reliability!$C$23:$C$50,0)),0),0)*$H190*$X190*$Y190),$D190)*$R190","v":0}]
[null,{"$f":"unique_contracts!B192","v":0},{"$f":"unique_contracts!D192","v":0},{"$f":"unique_contracts!J192","v":0},{"$f":"unique_contracts!M192","v":0},{"$f":"unique_contracts!N192","v":0},{"$f":"unique_contracts!P192","v":0},{"$f":"unique_contracts!R192","v":0},{"$f":"unique_contracts!V192","v":0},{"$f":"unique_contracts!AB192","v":0},{"$f":"unique_contracts!AM192","v":0},{"$f":"unique_contracts!AN192","v":0},{"$f":"unique_contracts!AO192","v":0},{"$f":"unique_contracts!AP192","v":0},{"$f":"unique_contracts!AQ192","v":0},{"$f":"unique_contracts!AR192","v":0},{"$f":"unique_contracts!BP192","v":0},0,{"$f":"IFERROR(IF(AND(I191>0,E191=\"NotHybrid\"),_xlfn.CONCAT(MAX(MIN(ROUNDDOWN(I191/D191,0),8),4),INDEX(resources!$G:$G,MATCH(B191,resources!$A:$A,0))),INDEX(resources!$G:$G,MATCH(B191,resources!$A:$A,0))),\"n/a\")","v":"n/a"},"n/a","n/a",0,0,1,1,{"$f":"MIN((IFERROR(IF(AND($V191<=Z$1,$W191>=Z$1),INDEX(Reliability!E$23:E$50,MATCH($S191,Reliability!$C$23:$C$50,0)),0),0)*IF($T191=\"n/a\",$D191*$Y191,$G191)+IFERROR(IF(AND($V191<=Z$1,$W191>=Z$1),INDEX(Reliability!E$23:E$50,MATCH($T191,Reliability!$C$23:$C$50,0)),0),0)*$H191*$X191*$Y191),$D191)*$R191","v":0},{"$f":"MIN((IFERROR(IF(AND($V191<=AA$1,$W191>=AA$1),INDEX(Reliability!F$23:F$50,MATCH($S191,Reliability!$C$23:$C$50,0)),0),0)*IF($T191=\"n/a\",$D191*$Y191,$G191)+IFERROR(IF(AND($V191<=AA$1,$W191>=AA$1),INDEX(Reliability!F$23:F$50,MATCH($T191,Reliability!$C$23:$C$50,0)),0),0)*$H191*$X191*$Y191),$D191)*$R191","v":0},{"$f":"MIN((IFERROR(IF(AND($V191<=AB$1,$W191>=AB$1),INDEX(Reliability!G$23:G$50,MATCH($S191,Reliability!$C$23:$C$50,0)),0),0)*IF($T191=\"n/a\",$D191*$Y191,$G191)+IFERROR(IF(AND($V191<=AB$1,$W191>=AB$1),INDEX(Reliability!G$23:G$50,MATCH($T191,Reliability!$C$23:$C$50,0)),0),0)*$H191*$X191*$Y191),$D191)*$R191","v":0},{"$f":"MIN((IFERROR(IF(AND($V191<=AC$1,$W191>=AC$1),INDEX(Reliability!H$23:H$50,MATCH($S191,Reliability!$C$23:$C$50,0)),0),0)*IF($T191=\"n/a\",$D191*$Y191,$G191)+IFERROR(IF(AND($V191<=AC$1,$W191>=AC$1),INDEX(Reliability!H$23:H$50,MATCH($T191,Reliability!$C$23:$C$50,0)),0),0)*$H191*$X191*$Y191),$D191)*$R191","v":0},{"$f":"MIN((IFERROR(IF(AND($V191<=AD$1,$W191>=AD$1),INDEX(Reliability!I$23:I$50,MATCH($S191,Reliability!$C$23:$C$50,0)),0),0)*IF($T191=\"n/a\",$D191*$Y191,$G191)+IFERROR(IF(AND($V191<=AD$1,$W191>=AD$1),INDEX(Reliability!I$23:I$50,MATCH($T191,Reliability!$C$23:$C$50,0)),0),0)*$H191*$X191*$Y191),$D191)*$R191","v":0},{"$f":"MIN((IFERROR(IF(AND($V191<=AE$1,$W191>=AE$1),INDEX(Reliability!J$23:J$50,MATCH($S191,Reliability!$C$23:$C$50,0)),0),0)*IF($T191=\"n/a\",$D191*$Y191,$G191)+IFERROR(IF(AND($V191<=AE$1,$W191>=AE$1),INDEX(Reliability!J$23:J$50,MATCH($T191,Reliability!$C$23:$C$50,0)),0),0)*$H191*$X191*$Y191),$D191)*$R191","v":0},{"$f":"MIN((IFERROR(IF(AND($V191<=AF$1,$W191>=AF$1),INDEX(Reliability!K$23:K$50,MATCH($S191,Reliability!$C$23:$C$50,0)),0),0)*IF($T191=\"n/a\",$D191*$Y191,$G191)+IFERROR(IF(AND($V191<=AF$1,$W191>=AF$1),INDEX(Reliability!K$23:K$50,MATCH($T191,Reliability!$C$23:$C$50,0)),0),0)*$H191*$X191*$Y191),$D191)*$R191","v":0},{"$f":"MIN((IFERROR(IF(AND($V191<=AG$1,$W191>=AG$1),INDEX(Reliability!L$23:L$50,MATCH($S191,Reliability!$C$23:$C$50,0)),0),0)*IF($T191=\"n/a\",$D191*$Y191,$G191)+IFERROR(IF(AND($V191<=AG$1,$W191>=AG$1),INDEX(Reliability!L$23:L$50,MATCH($T191,Reliability!$C$23:$C$50,0)),0),0)*$H191*$X191*$Y191),$D191)*$R191","v":0},{"$f":"MIN((IFERROR(IF(AND($V191<=AH$1,$W191>=AH$1),INDEX(Reliability!M$23:M$50,MATCH($S191,Reliability!$C$23:$C$50,0)),0),0)*IF($T191=\"n/a\",$D191*$Y191,$G191)+IFERROR(IF(AND($V191<=AH$1,$W191>=AH$1),INDEX(Reliability!M$23:M$50,MATCH($T191,Reliability!$C$23:$C$50,0)),0),0)*$H191*$X191*$Y191),$D191)*$R191","v":0},{"$f":"MIN((IFERROR(IF(AND($V191<=AI$1,$W191>=AI$1),INDEX(Reliability!N$23:N$50,MATCH($S191,Reliability!$C$23:$C$50,0)),0),0)*IF($T191=\"n/a\",$D191*$Y191,$G191)+IFERROR(IF(AND($V191<=AI$1,$W191>=AI$1),INDEX(Reliability!N$23:N$50,MATCH($T191,Reliability!$C$23:$C$50,0)),0),0)*$H191*$X191*$Y191),$D191)*$R191","v":0},{"$f":"MIN((IFERROR(IF(AND($V191<=AJ$1,$W191>=AJ$1),INDEX(Reliability!O$23:O$50,MATCH($S191,Reliability!$C$23:$C$50,0)),0),0)*IF($T191=\"n/a\",$D191*$Y191,$G191)+IFERROR(IF(AND($V191<=AJ$1,$W191>=AJ$1),INDEX(Reliability!O$23:O$50,MATCH($T191,Reliability!$C$23:$C$50,0)),0),0)*$H191*$X191*$Y191),$D191)*$R191","v":0},{"$f":"MIN((IFERROR(IF(AND($V191<=AK$1,$W191>=AK$1),INDEX(Reliability!P$23:P$50,MATCH($S191,Reliability!$C$23:$C$50,0)),0),0)*IF($T191=\"n/a\",$D191*$Y191,$G191)+IFERROR(IF(AND($V191<=AK$1,$W191>=AK$1),INDEX(Reliability!P$23:P$50,MATCH($T191,Reliability!$C$23:$C$50,0)),0),0)*$H191*$X191*$Y191),$D191)*$R191","v":0}]
[null,{"$f":"unique_contracts!B193","v":0},{"$f":"unique_contracts!D193","v":0},{"$f":"unique_contracts!J193","v":0},{"$f":"unique_contracts!M193","v":0},{"$f":"unique_contracts!N193","v":0},{"$f":"unique_contracts!P193","v":0},{"$f":"unique_contracts!R193","v":0},{"$f":"unique_contracts!V193","v":0},{"$f":"unique_contracts!AB193","v":0},{"$f":"unique_contracts!AM193","v":0},{"$f":"unique_contracts!AN193","v":0},{"$f":"unique_contracts!AO193","v":0},{"$f":"unique_contracts!AP193","v":0},{"$f":"unique_contracts!AQ193","v":0},{"$f":"unique_contracts!AR193","v":0},{"$f":"unique_contracts!BP193","v":0},0,{"$f":"IFERROR(IF(AND(I192>0,E192=\"NotHybrid\"),_xlfn.CONCAT(MAX(MIN(ROUNDDOWN(I192/D192,0),8),4),INDEX(resources!$G:$G,MATCH(B192,resources!$A:$A,0))),INDEX(resources!$G:$G,MATCH(B192,resources!$A:$A,0))),\"n/a\")","v":"n/a"},"n/a","n/a",0,0,1,1,{"$f":"MIN((IFERROR(IF(AND($V192<=Z$1,$W192>=Z$1),INDEX(Reliability!E$23:E$50,MATCH($S192,Reliability!$C$23:$C$50,0)),0),0)*IF($T192=\"n/a\",$D192*$Y192,$G192)+IFERROR(IF(AND($V192<=Z$1,$W192>=Z$1),INDEX(Reliability!E$23:E$50,MATCH($T192,Reliability!$C$23:$C$50,0)),0),0)*$H192*$X192*$Y192),$D192)*$R192","v":0},{"$f":"MIN((IFERROR(IF(AND($V192<=AA$1,$W192>=AA$1),INDEX(Reliability!F$23:F$50,MATCH($S192,Reliability!$C$23:$C$50,0)),0),0)*IF($T192=\"n/a\",$D192*$Y192,$G192)+IFERROR(IF(AND($V192<=AA$1,$W192>=AA$1),INDEX(Reliability!F$23:F$50,MATCH($T192,Reliability!$C$23:$C$50,0)),0),0)*$H192*$X192*$Y192),$D192)*$R192","v":0},{"$f":"MIN((IFERROR(IF(AND($V192<=AB$1,$W192>=AB$1),INDEX(Reliability!G$23:G$50,MATCH($S192,Reliability!$C$23:$C$50,0)),0),0)*IF($T192=\"n/a\",$D192*$Y192,$G192)+IFERROR(IF(AND($V192<=AB$1,$W192>=AB$1),INDEX(Reliability!G$23:G$50,MATCH($T192,Reliability!$C$23:$C$50,0)),0),0)*$H192*$X192*$Y192),$D192)*$R192","v":0},{"$f":"MIN((IFERROR(IF(AND($V192<=AC$1,$W192>=AC$1),INDEX(Reliability!H$23:H$50,MATCH($S192,Reliability!$C$23:$C$50,0)),0),0)*IF($T192=\"n/a\",$D192*$Y192,$G192)+IFERROR(IF(AND($V192<=AC$1,$W192>=AC$1),INDEX(Reliability!H$23:H$50,MATCH($T192,Reliability!$C$23:$C$50,0)),0),0)*$H192*$X192*$Y192),$D192)*$R192","v":0},{"$f":"MIN((IFERROR(IF(AND($V192<=AD$1,$W192>=AD$1),INDEX(Reliability!I$23:I$50,MATCH($S192,Reliability!$C$23:$C$50,0)),0),0)*IF($T192=\"n/a\",$D192*$Y192,$G192)+IFERROR(IF(AND($V192<=AD$1,$W192>=AD$1),INDEX(Reliability!I$23:I$50,MATCH($T192,Reliability!$C$23:$C$50,0)),0),0)*$H192*$X192*$Y192),$D192)*$R192","v":0},{"$f":"MIN((IFERROR(IF(AND($V192<=AE$1,$W192>=AE$1),INDEX(Reliability!J$23:J$50,MATCH($S192,Reliability!$C$23:$C$50,0)),0),0)*IF($T192=\"n/a\",$D192*$Y192,$G192)+IFERROR(IF(AND($V192<=AE$1,$W192>=AE$1),INDEX(Reliability!J$23:J$50,MATCH($T192,Reliability!$C$23:$C$50,0)),0),0)*$H192*$X192*$Y192),$D192)*$R192","v":0},{"$f":"MIN((IFERROR(IF(AND($V192<=AF$1,$W192>=AF$1),INDEX(Reliability!K$23:K$50,MATCH($S192,Reliability!$C$23:$C$50,0)),0),0)*IF($T192=\"n/a\",$D192*$Y192,$G192)+IFERROR(IF(AND($V192<=AF$1,$W192>=AF$1),INDEX(Reliability!K$23:K$50,MATCH($T192,Reliability!$C$23:$C$50,0)),0),0)*$H192*$X192*$Y192),$D192)*$R192","v":0},{"$f":"MIN((IFERROR(IF(AND($V192<=AG$1,$W192>=AG$1),INDEX(Reliability!L$23:L$50,MATCH($S192,Reliability!$C$23:$C$50,0)),0),0)*IF($T192=\"n/a\",$D192*$Y192,$G192)+IFERROR(IF(AND($V192<=AG$1,$W192>=AG$1),INDEX(Reliability!L$23:L$50,MATCH($T192,Reliability!$C$23:$C$50,0)),0),0)*$H192*$X192*$Y192),$D192)*$R192","v":0},{"$f":"MIN((IFERROR(IF(AND($V192<=AH$1,$W192>=AH$1),INDEX(Reliability!M$23:M$50,MATCH($S192,Reliability!$C$23:$C$50,0)),0),0)*IF($T192=\"n/a\",$D192*$Y192,$G192)+IFERROR(IF(AND($V192<=AH$1,$W192>=AH$1),INDEX(Reliability!M$23:M$50,MATCH($T192,Reliability!$C$23:$C$50,0)),0),0)*$H192*$X192*$Y192),$D192)*$R192","v":0},{"$f":"MIN((IFERROR(IF(AND($V192<=AI$1,$W192>=AI$1),INDEX(Reliability!N$23:N$50,MATCH($S192,Reliability!$C$23:$C$50,0)),0),0)*IF($T192=\"n/a\",$D192*$Y192,$G192)+IFERROR(IF(AND($V192<=AI$1,$W192>=AI$1),INDEX(Reliability!N$23:N$50,MATCH($T192,Reliability!$C$23:$C$50,0)),0),0)*$H192*$X192*$Y192),$D192)*$R192","v":0},{"$f":"MIN((IFERROR(IF(AND($V192<=AJ$1,$W192>=AJ$1),INDEX(Reliability!O$23:O$50,MATCH($S192,Reliability!$C$23:$C$50,0)),0),0)*IF($T192=\"n/a\",$D192*$Y192,$G192)+IFERROR(IF(AND($V192<=AJ$1,$W192>=AJ$1),INDEX(Reliability!O$23:O$50,MATCH($T192,Reliability!$C$23:$C$50,0)),0),0)*$H192*$X192*$Y192),$D192)*$R192","v":0},{"$f":"MIN((IFERROR(IF(AND($V192<=AK$1,$W192>=AK$1),INDEX(Reliability!P$23:P$50,MATCH($S192,Reliability!$C$23:$C$50,0)),0),0)*IF($T192=\"n/a\",$D192*$Y192,$G192)+IFERROR(IF(AND($V192<=AK$1,$W192>=AK$1),INDEX(Reliability!P$23:P$50,MATCH($T192,Reliability!$C$23:$C$50,0)),0),0)*$H192*$X192*$Y192),$D192)*$R192","v":0}]
[null,{"$f":"unique_contracts!B194","v":0},{"$f":"unique_contracts!D194","v":0},{"$f":"unique_contracts!J194","v":0},{"$f":"unique_contracts!M194","v":0},{"$f":"unique_contracts!N194","v":0},{"$f":"unique_contracts!P194","v":0},{"$f":"unique_contracts!R194","v":0},{"$f":"unique_contracts!V194","v":0},{"$f":"unique_contracts!AB194","v":0},{"$f":"unique_contracts!AM194","v":0},{"$f":"unique_contracts!AN194","v":0},{"$f":"unique_contracts!AO194","v":0},{"$f":"unique_contracts!AP194","v":0},{"$f":"unique_contracts!AQ194","v":0},{"$f":"unique_contracts!AR194","v":0},{"$f":"unique_contracts!BP194","v":0},0,{"$f":"IFERROR(IF(AND(I193>0,E193=\"NotHybrid\"),_xlfn.CONCAT(MAX(MIN(ROUNDDOWN(I193/D193,0),8),4),INDEX(resources!$G:$G,MATCH(B193,resources!$A:$A,0))),INDEX(resources!$G:$G,MATCH(B193,resources!$A:$A,0))),\"n/a\")","v":"n/a"},"n/a","n/a",0,0,1,1,{"$f":"MIN((IFERROR(IF(AND($V193<=Z$1,$W193>=Z$1),INDEX(Reliability!E$23:E$50,MATCH($S193,Reliability!$C$23:$C$50,0)),0),0)*IF($T193=\"n/a\",$D193*$Y193,$G193)+IFERROR(IF(AND($V193<=Z$1,$W193>=Z$1),INDEX(Reliability!E$23:E$50,MATCH($T193,Reliability!$C$23:$C$50,0)),0),0)*$H193*$X193*$Y193),$D193)*$R193","v":0},{"$f":"MIN((IFERROR(IF(AND($V193<=AA$1,$W193>=AA$1),INDEX(Reliability!F$23:F$50,MATCH($S193,Reliability!$C$23:$C$50,0)),0),0)*IF($T193=\"n/a\",$D193*$Y193,$G193)+IFERROR(IF(AND($V193<=AA$1,$W193>=AA$1),INDEX(Reliability!F$23:F$50,MATCH($T193,Reliability!$C$23:$C$50,0)),0),0)*$H193*$X193*$Y193),$D193)*$R193","v":0},{"$f":"MIN((IFERROR(IF(AND($V193<=AB$1,$W193>=AB$1),INDEX(Reliability!G$23:G$50,MATCH($S193,Reliability!$C$23:$C$50,0)),0),0)*IF($T193=\"n/a\",$D193*$Y193,$G193)+IFERROR(IF(AND($V193<=AB$1,$W193>=AB$1),INDEX(Reliability!G$23:G$50,MATCH($T193,Reliability!$C$23:$C$50,0)),0),0)*$H193*$X193*$Y193),$D193)*$R193","v":0},{"$f":"MIN((IFERROR(IF(AND($V193<=AC$1,$W193>=AC$1),INDEX(Reliability!H$23:H$50,MATCH($S193,Reliability!$C$23:$C$50,0)),0),0)*IF($T193=\"n/a\",$D193*$Y193,$G193)+IFERROR(IF(AND($V193<=AC$1,$W193>=AC$1),INDEX(Reliability!H$23:H$50,MATCH($T193,Reliability!$C$23:$C$50,0)),0),0)*$H193*$X193*$Y193),$D193)*$R193","v":0},{"$f":"MIN((IFERROR(IF(AND($V193<=AD$1,$W193>=AD$1),INDEX(Reliability!I$23:I$50,MATCH($S193,Reliability!$C$23:$C$50,0)),0),0)*IF($T193=\"n/a\",$D193*$Y193,$G193)+IFERROR(IF(AND($V193<=AD$1,$W193>=AD$1),INDEX(Reliability!I$23:I$50,MATCH($T193,Reliability!$C$23:$C$50,0)),0),0)*$H193*$X193*$Y193),$D193)*$R193","v":0},{"$f":"MIN((IFERROR(IF(AND($V193<=AE$1,$W193>=AE$1),INDEX(Reliability!J$23:J$50,MATCH($S193,Reliability!$C$23:$C$50,0)),0),0)*IF($T193=\"n/a\",$D193*$Y193,$G193)+IFERROR(IF(AND($V193<=AE$1,$W193>=AE$1),INDEX(Reliability!J$23:J$50,MATCH($T193,Reliability!$C$23:$C$50,0)),0),0)*$H193*$X193*$Y193),$D193)*$R193","v":0},{"$f":"MIN((IFERROR(IF(AND($V193<=AF$1,$W193>=AF$1),INDEX(Reliability!K$23:K$50,MATCH($S193,Reliability!$C$23:$C$50,0)),0),0)*IF($T193=\"n/a\",$D193*$Y193,$G193)+IFERROR(IF(AND($V193<=AF$1,$W193>=AF$1),INDEX(Reliability!K$23:K$50,MATCH($T193,Reliability!$C$23:$C$50,0)),0),0)*$H193*$X193*$Y193),$D193)*$R193","v":0},{"$f":"MIN((IFERROR(IF(AND($V193<=AG$1,$W193>=AG$1),INDEX(Reliability!L$23:L$50,MATCH($S193,Reliability!$C$23:$C$50,0)),0),0)*IF($T193=\"n/a\",$D193*$Y193,$G193)+IFERROR(IF(AND($V193<=AG$1,$W193>=AG$1),INDEX(Reliability!L$23:L$50,MATCH($T193,Reliability!$C$23:$C$50,0)),0),0)*$H193*$X193*$Y193),$D193)*$R193","v":0},{"$f":"MIN((IFERROR(IF(AND($V193<=AH$1,$W193>=AH$1),INDEX(Reliability!M$23:M$50,MATCH($S193,Reliability!$C$23:$C$50,0)),0),0)*IF($T193=\"n/a\",$D193*$Y193,$G193)+IFERROR(IF(AND($V193<=AH$1,$W193>=AH$1),INDEX(Reliability!M$23:M$50,MATCH($T193,Reliability!$C$23:$C$50,0)),0),0)*$H193*$X193*$Y193),$D193)*$R193","v":0},{"$f":"MIN((IFERROR(IF(AND($V193<=AI$1,$W193>=AI$1),INDEX(Reliability!N$23:N$50,MATCH($S193,Reliability!$C$23:$C$50,0)),0),0)*IF($T193=\"n/a\",$D193*$Y193,$G193)+IFERROR(IF(AND($V193<=AI$1,$W193>=AI$1),INDEX(Reliability!N$23:N$50,MATCH($T193,Reliability!$C$23:$C$50,0)),0),0)*$H193*$X193*$Y193),$D193)*$R193","v":0},{"$f":"MIN((IFERROR(IF(AND($V193<=AJ$1,$W193>=AJ$1),INDEX(Reliability!O$23:O$50,MATCH($S193,Reliability!$C$23:$C$50,0)),0),0)*IF($T193=\"n/a\",$D193*$Y193,$G193)+IFERROR(IF(AND($V193<=AJ$1,$W193>=AJ$1),INDEX(Reliability!O$23:O$50,MATCH($T193,Reliability!$C$23:$C$50,0)),0),0)*$H193*$X193*$Y193),$D193)*$R193","v":0},{"$f":"MIN((IFERROR(IF(AND($V193<=AK$1,$W193>=AK$1),INDEX(Reliability!P$23:P$50,MATCH($S193,Reliability!$C$23:$C$50,0)),0),0)*IF($T193=\"n/a\",$D193*$Y193,$G193)+IFERROR(IF(AND($V193<=AK$1,$W193>=AK$1),INDEX(Reliability!P$23:P$50,MATCH($T193,Reliability!$C$23:$C$50,0)),0),0)*$H193*$X193*$Y193),$D193)*$R193","v":0}]
[null,{"$f":"unique_contracts!B195","v":0},{"$f":"unique_contracts!D195","v":0},{"$f":"unique_contracts!J195","v":0},{"$f":"unique_contracts!M195","v":0},{"$f":"unique_contracts!N195","v":0},{"$f":"unique_contracts!P195","v":0},{"$f":"unique_contracts!R195","v":0},{"$f":"unique_contracts!V195","v":0},{"$f":"unique_contracts!AB195","v":0},{"$f":"unique_contracts!AM195","v":0},{"$f":"unique_contracts!AN195","v":0},{"$f":"unique_contracts!AO195","v":0},{"$f":"unique_contracts!AP195","v":0},{"$f":"unique_contracts!AQ195","v":0},{"$f":"unique_contracts!AR195","v":0},{"$f":"unique_contracts!BP195","v":0},0,{"$f":"IFERROR(IF(AND(I194>0,E194=\"NotHybrid\"),_xlfn.CONCAT(MAX(MIN(ROUNDDOWN(I194/D194,0),8),4),INDEX(resources!$G:$G,MATCH(B194,resources!$A:$A,0))),INDEX(resources!$G:$G,MATCH(B194,resources!$A:$A,0))),\"n/a\")","v":"n/a"},"n/a","n/a",0,0,1,1,{"$f":"MIN((IFERROR(IF(AND($V194<=Z$1,$W194>=Z$1),INDEX(Reliability!E$23:E$50,MATCH($S194,Reliability!$C$23:$C$50,0)),0),0)*IF($T194=\"n/a\",$D194*$Y194,$G194)+IFERROR(IF(AND($V194<=Z$1,$W194>=Z$1),INDEX(Reliability!E$23:E$50,MATCH($T194,Reliability!$C$23:$C$50,0)),0),0)*$H194*$X194*$Y194),$D194)*$R194","v":0},{"$f":"MIN((IFERROR(IF(AND($V194<=AA$1,$W194>=AA$1),INDEX(Reliability!F$23:F$50,MATCH($S194,Reliability!$C$23:$C$50,0)),0),0)*IF($T194=\"n/a\",$D194*$Y194,$G194)+IFERROR(IF(AND($V194<=AA$1,$W194>=AA$1),INDEX(Reliability!F$23:F$50,MATCH($T194,Reliability!$C$23:$C$50,0)),0),0)*$H194*$X194*$Y194),$D194)*$R194","v":0},{"$f":"MIN((IFERROR(IF(AND($V194<=AB$1,$W194>=AB$1),INDEX(Reliability!G$23:G$50,MATCH($S194,Reliability!$C$23:$C$50,0)),0),0)*IF($T194=\"n/a\",$D194*$Y194,$G194)+IFERROR(IF(AND($V194<=AB$1,$W194>=AB$1),INDEX(Reliability!G$23:G$50,MATCH($T194,Reliability!$C$23:$C$50,0)),0),0)*$H194*$X194*$Y194),$D194)*$R194","v":0},{"$f":"MIN((IFERROR(IF(AND($V194<=AC$1,$W194>=AC$1),INDEX(Reliability!H$23:H$50,MATCH($S194,Reliability!$C$23:$C$50,0)),0),0)*IF($T194=\"n/a\",$D194*$Y194,$G194)+IFERROR(IF(AND($V194<=AC$1,$W194>=AC$1),INDEX(Reliability!H$23:H$50,MATCH($T194,Reliability!$C$23:$C$50,0)),0),0)*$H194*$X194*$Y194),$D194)*$R194","v":0},{"$f":"MIN((IFERROR(IF(AND($V194<=AD$1,$W194>=AD$1),INDEX(Reliability!I$23:I$50,MATCH($S194,Reliability!$C$23:$C$50,0)),0),0)*IF($T194=\"n/a\",$D194*$Y194,$G194)+IFERROR(IF(AND($V194<=AD$1,$W194>=AD$1),INDEX(Reliability!I$23:I$50,MATCH($T194,Reliability!$C$23:$C$50,0)),0),0)*$H194*$X194*$Y194),$D194)*$R194","v":0},{"$f":"MIN((IFERROR(IF(AND($V194<=AE$1,$W194>=AE$1),INDEX(Reliability!J$23:J$50,MATCH($S194,Reliability!$C$23:$C$50,0)),0),0)*IF($T194=\"n/a\",$D194*$Y194,$G194)+IFERROR(IF(AND($V194<=AE$1,$W194>=AE$1),INDEX(Reliability!J$23:J$50,MATCH($T194,Reliability!$C$23:$C$50,0)),0),0)*$H194*$X194*$Y194),$D194)*$R194","v":0},{"$f":"MIN((IFERROR(IF(AND($V194<=AF$1,$W194>=AF$1),INDEX(Reliability!K$23:K$50,MATCH($S194,Reliability!$C$23:$C$50,0)),0),0)*IF($T194=\"n/a\",$D194*$Y194,$G194)+IFERROR(IF(AND($V194<=AF$1,$W194>=AF$1),INDEX(Reliability!K$23:K$50,MATCH($T194,Reliability!$C$23:$C$50,0)),0),0)*$H194*$X194*$Y194),$D194)*$R194","v":0},{"$f":"MIN((IFERROR(IF(AND($V194<=AG$1,$W194>=AG$1),INDEX(Reliability!L$23:L$50,MATCH($S194,Reliability!$C$23:$C$50,0)),0),0)*IF($T194=\"n/a\",$D194*$Y194,$G194)+IFERROR(IF(AND($V194<=AG$1,$W194>=AG$1),INDEX(Reliability!L$23:L$50,MATCH($T194,Reliability!$C$23:$C$50,0)),0),0)*$H194*$X194*$Y194),$D194)*$R194","v":0},{"$f":"MIN((IFERROR(IF(AND($V194<=AH$1,$W194>=AH$1),INDEX(Reliability!M$23:M$50,MATCH($S194,Reliability!$C$23:$C$50,0)),0),0)*IF($T194=\"n/a\",$D194*$Y194,$G194)+IFERROR(IF(AND($V194<=AH$1,$W194>=AH$1),INDEX(Reliability!M$23:M$50,MATCH($T194,Reliability!$C$23:$C$50,0)),0),0)*$H194*$X194*$Y194),$D194)*$R194","v":0},{"$f":"MIN((IFERROR(IF(AND($V194<=AI$1,$W194>=AI$1),INDEX(Reliability!N$23:N$50,MATCH($S194,Reliability!$C$23:$C$50,0)),0),0)*IF($T194=\"n/a\",$D194*$Y194,$G194)+IFERROR(IF(AND($V194<=AI$1,$W194>=AI$1),INDEX(Reliability!N$23:N$50,MATCH($T194,Reliability!$C$23:$C$50,0)),0),0)*$H194*$X194*$Y194),$D194)*$R194","v":0},{"$f":"MIN((IFERROR(IF(AND($V194<=AJ$1,$W194>=AJ$1),INDEX(Reliability!O$23:O$50,MATCH($S194,Reliability!$C$23:$C$50,0)),0),0)*IF($T194=\"n/a\",$D194*$Y194,$G194)+IFERROR(IF(AND($V194<=AJ$1,$W194>=AJ$1),INDEX(Reliability!O$23:O$50,MATCH($T194,Reliability!$C$23:$C$50,0)),0),0)*$H194*$X194*$Y194),$D194)*$R194","v":0},{"$f":"MIN((IFERROR(IF(AND($V194<=AK$1,$W194>=AK$1),INDEX(Reliability!P$23:P$50,MATCH($S194,Reliability!$C$23:$C$50,0)),0),0)*IF($T194=\"n/a\",$D194*$Y194,$G194)+IFERROR(IF(AND($V194<=AK$1,$W194>=AK$1),INDEX(Reliability!P$23:P$50,MATCH($T194,Reliability!$C$23:$C$50,0)),0),0)*$H194*$X194*$Y194),$D194)*$R194","v":0}]
[null,{"$f":"unique_contracts!B196","v":0},{"$f":"unique_contracts!D196","v":0},{"$f":"unique_contracts!J196","v":0},{"$f":"unique_contracts!M196","v":0},{"$f":"unique_contracts!N196","v":0},{"$f":"unique_contracts!P196","v":0},{"$f":"unique_contracts!R196","v":0},{"$f":"unique_contracts!V196","v":0},{"$f":"unique_contracts!AB196","v":0},{"$f":"unique_contracts!AM196","v":0},{"$f":"unique_contracts!AN196","v":0},{"$f":"unique_contracts!AO196","v":0},{"$f":"unique_contracts!AP196","v":0},{"$f":"unique_contracts!AQ196","v":0},{"$f":"unique_contracts!AR196","v":0},{"$f":"unique_contracts!BP196","v":0},0,{"$f":"IFERROR(IF(AND(I195>0,E195=\"NotHybrid\"),_xlfn.CONCAT(MAX(MIN(ROUNDDOWN(I195/D195,0),8),4),INDEX(resources!$G:$G,MATCH(B195,resources!$A:$A,0))),INDEX(resources!$G:$G,MATCH(B195,resources!$A:$A,0))),\"n/a\")","v":"n/a"},"n/a","n/a",0,0,1,1,{"$f":"MIN((IFERROR(IF(AND($V195<=Z$1,$W195>=Z$1),INDEX(Reliability!E$23:E$50,MATCH($S195,Reliability!$C$23:$C$50,0)),0),0)*IF($T195=\"n/a\",$D195*$Y195,$G195)+IFERROR(IF(AND($V195<=Z$1,$W195>=Z$1),INDEX(Reliability!E$23:E$50,MATCH($T195,Reliability!$C$23:$C$50,0)),0),0)*$H195*$X195*$Y195),$D195)*$R195","v":0},{"$f":"MIN((IFERROR(IF(AND($V195<=AA$1,$W195>=AA$1),INDEX(Reliability!F$23:F$50,MATCH($S195,Reliability!$C$23:$C$50,0)),0),0)*IF($T195=\"n/a\",$D195*$Y195,$G195)+IFERROR(IF(AND($V195<=AA$1,$W195>=AA$1),INDEX(Reliability!F$23:F$50,MATCH($T195,Reliability!$C$23:$C$50,0)),0),0)*$H195*$X195*$Y195),$D195)*$R195","v":0},{"$f":"MIN((IFERROR(IF(AND($V195<=AB$1,$W195>=AB$1),INDEX(Reliability!G$23:G$50,MATCH($S195,Reliability!$C$23:$C$50,0)),0),0)*IF($T195=\"n/a\",$D195*$Y195,$G195)+IFERROR(IF(AND($V195<=AB$1,$W195>=AB$1),INDEX(Reliability!G$23:G$50,MATCH($T195,Reliability!$C$23:$C$50,0)),0),0)*$H195*$X195*$Y195),$D195)*$R195","v":0},{"$f":"MIN((IFERROR(IF(AND($V195<=AC$1,$W195>=AC$1),INDEX(Reliability!H$23:H$50,MATCH($S195,Reliability!$C$23:$C$50,0)),0),0)*IF($T195=\"n/a\",$D195*$Y195,$G195)+IFERROR(IF(AND($V195<=AC$1,$W195>=AC$1),INDEX(Reliability!H$23:H$50,MATCH($T195,Reliability!$C$23:$C$50,0)),0),0)*$H195*$X195*$Y195),$D195)*$R195","v":0},{"$f":"MIN((IFERROR(IF(AND($V195<=AD$1,$W195>=AD$1),INDEX(Reliability!I$23:I$50,MATCH($S195,Reliability!$C$23:$C$50,0)),0),0)*IF($T195=\"n/a\",$D195*$Y195,$G195)+IFERROR(IF(AND($V195<=AD$1,$W195>=AD$1),INDEX(Reliability!I$23:I$50,MATCH($T195,Reliability!$C$23:$C$50,0)),0),0)*$H195*$X195*$Y195),$D195)*$R195","v":0},{"$f":"MIN((IFERROR(IF(AND($V195<=AE$1,$W195>=AE$1),INDEX(Reliability!J$23:J$50,MATCH($S195,Reliability!$C$23:$C$50,0)),0),0)*IF($T195=\"n/a\",$D195*$Y195,$G195)+IFERROR(IF(AND($V195<=AE$1,$W195>=AE$1),INDEX(Reliability!J$23:J$50,MATCH($T195,Reliability!$C$23:$C$50,0)),0),0)*$H195*$X195*$Y195),$D195)*$R195","v":0},{"$f":"MIN((IFERROR(IF(AND($V195<=AF$1,$W195>=AF$1),INDEX(Reliability!K$23:K$50,MATCH($S195,Reliability!$C$23:$C$50,0)),0),0)*IF($T195=\"n/a\",$D195*$Y195,$G195)+IFERROR(IF(AND($V195<=AF$1,$W195>=AF$1),INDEX(Reliability!K$23:K$50,MATCH($T195,Reliability!$C$23:$C$50,0)),0),0)*$H195*$X195*$Y195),$D195)*$R195","v":0},{"$f":"MIN((IFERROR(IF(AND($V195<=AG$1,$W195>=AG$1),INDEX(Reliability!L$23:L$50,MATCH($S195,Reliability!$C$23:$C$50,0)),0),0)*IF($T195=\"n/a\",$D195*$Y195,$G195)+IFERROR(IF(AND($V195<=AG$1,$W195>=AG$1),INDEX(Reliability!L$23:L$50,MATCH($T195,Reliability!$C$23:$C$50,0)),0),0)*$H195*$X195*$Y195),$D195)*$R195","v":0},{"$f":"MIN((IFERROR(IF(AND($V195<=AH$1,$W195>=AH$1),INDEX(Reliability!M$23:M$50,MATCH($S195,Reliability!$C$23:$C$50,0)),0),0)*IF($T195=\"n/a\",$D195*$Y195,$G195)+IFERROR(IF(AND($V195<=AH$1,$W195>=AH$1),INDEX(Reliability!M$23:M$50,MATCH($T195,Reliability!$C$23:$C$50,0)),0),0)*$H195*$X195*$Y195),$D195)*$R195","v":0},{"$f":"MIN((IFERROR(IF(AND($V195<=AI$1,$W195>=AI$1),INDEX(Reliability!N$23:N$50,MATCH($S195,Reliability!$C$23:$C$50,0)),0),0)*IF($T195=\"n/a\",$D195*$Y195,$G195)+IFERROR(IF(AND($V195<=AI$1,$W195>=AI$1),INDEX(Reliability!N$23:N$50,MATCH($T195,Reliability!$C$23:$C$50,0)),0),0)*$H195*$X195*$Y195),$D195)*$R195","v":0},{"$f":"MIN((IFERROR(IF(AND($V195<=AJ$1,$W195>=AJ$1),INDEX(Reliability!O$23:O$50,MATCH($S195,Reliability!$C$23:$C$50,0)),0),0)*IF($T195=\"n/a\",$D195*$Y195,$G195)+IFERROR(IF(AND($V195<=AJ$1,$W195>=AJ$1),INDEX(Reliability!O$23:O$50,MATCH($T195,Reliability!$C$23:$C$50,0)),0),0)*$H195*$X195*$Y195),$D195)*$R195","v":0},{"$f":"MIN((IFERROR(IF(AND($V195<=AK$1,$W195>=AK$1),INDEX(Reliability!P$23:P$50,MATCH($S195,Reliability!$C$23:$C$50,0)),0),0)*IF($T195=\"n/a\",$D195*$Y195,$G195)+IFERROR(IF(AND($V195<=AK$1,$W195>=AK$1),INDEX(Reliability!P$23:P$50,MATCH($T195,Reliability!$C$23:$C$50,0)),0),0)*$H195*$X195*$Y195),$D195)*$R195","v":0}]
[null,{"$f":"unique_contracts!B197","v":0},{"$f":"unique_contracts!D197","v":0},{"$f":"unique_contracts!J197","v":0},{"$f":"unique_contracts!M197","v":0},{"$f":"unique_contracts!N197","v":0},{"$f":"unique_contracts!P197","v":0},{"$f":"unique_contracts!R197","v":0},{"$f":"unique_contracts!V197","v":0},{"$f":"unique_contracts!AB197","v":0},{"$f":"unique_contracts!AM197","v":0},{"$f":"unique_contracts!AN197","v":0},{"$f":"unique_contracts!AO197","v":0},{"$f":"unique_contracts!AP197","v":0},{"$f":"unique_contracts!AQ197","v":0},{"$f":"unique_contracts!AR197","v":0},{"$f":"unique_contracts!BP197","v":0},0,{"$f":"IFERROR(IF(AND(I196>0,E196=\"NotHybrid\"),_xlfn.CONCAT(MAX(MIN(ROUNDDOWN(I196/D196,0),8),4),INDEX(resources!$G:$G,MATCH(B196,resources!$A:$A,0))),INDEX(resources!$G:$G,MATCH(B196,resources!$A:$A,0))),\"n/a\")","v":"n/a"},"n/a","n/a",0,0,1,1,{"$f":"MIN((IFERROR(IF(AND($V196<=Z$1,$W196>=Z$1),INDEX(Reliability!E$23:E$50,MATCH($S196,Reliability!$C$23:$C$50,0)),0),0)*IF($T196=\"n/a\",$D196*$Y196,$G196)+IFERROR(IF(AND($V196<=Z$1,$W196>=Z$1),INDEX(Reliability!E$23:E$50,MATCH($T196,Reliability!$C$23:$C$50,0)),0),0)*$H196*$X196*$Y196),$D196)*$R196","v":0},{"$f":"MIN((IFERROR(IF(AND($V196<=AA$1,$W196>=AA$1),INDEX(Reliability!F$23:F$50,MATCH($S196,Reliability!$C$23:$C$50,0)),0),0)*IF($T196=\"n/a\",$D196*$Y196,$G196)+IFERROR(IF(AND($V196<=AA$1,$W196>=AA$1),INDEX(Reliability!F$23:F$50,MATCH($T196,Reliability!$C$23:$C$50,0)),0),0)*$H196*$X196*$Y196),$D196)*$R196","v":0},{"$f":"MIN((IFERROR(IF(AND($V196<=AB$1,$W196>=AB$1),INDEX(Reliability!G$23:G$50,MATCH($S196,Reliability!$C$23:$C$50,0)),0),0)*IF($T196=\"n/a\",$D196*$Y196,$G196)+IFERROR(IF(AND($V196<=AB$1,$W196>=AB$1),INDEX(Reliability!G$23:G$50,MATCH($T196,Reliability!$C$23:$C$50,0)),0),0)*$H196*$X196*$Y196),$D196)*$R196","v":0},{"$f":"MIN((IFERROR(IF(AND($V196<=AC$1,$W196>=AC$1),INDEX(Reliability!H$23:H$50,MATCH($S196,Reliability!$C$23:$C$50,0)),0),0)*IF($T196=\"n/a\",$D196*$Y196,$G196)+IFERROR(IF(AND($V196<=AC$1,$W196>=AC$1),INDEX(Reliability!H$23:H$50,MATCH($T196,Reliability!$C$23:$C$50,0)),0),0)*$H196*$X196*$Y196),$D196)*$R196","v":0},{"$f":"MIN((IFERROR(IF(AND($V196<=AD$1,$W196>=AD$1),INDEX(Reliability!I$23:I$50,MATCH($S196,Reliability!$C$23:$C$50,0)),0),0)*IF($T196=\"n/a\",$D196*$Y196,$G196)+IFERROR(IF(AND($V196<=AD$1,$W196>=AD$1),INDEX(Reliability!I$23:I$50,MATCH($T196,Reliability!$C$23:$C$50,0)),0),0)*$H196*$X196*$Y196),$D196)*$R196","v":0},{"$f":"MIN((IFERROR(IF(AND($V196<=AE$1,$W196>=AE$1),INDEX(Reliability!J$23:J$50,MATCH($S196,Reliability!$C$23:$C$50,0)),0),0)*IF($T196=\"n/a\",$D196*$Y196,$G196)+IFERROR(IF(AND($V196<=AE$1,$W196>=AE$1),INDEX(Reliability!J$23:J$50,MATCH($T196,Reliability!$C$23:$C$50,0)),0),0)*$H196*$X196*$Y196),$D196)*$R196","v":0},{"$f":"MIN((IFERROR(IF(AND($V196<=AF$1,$W196>=AF$1),INDEX(Reliability!K$23:K$50,MATCH($S196,Reliability!$C$23:$C$50,0)),0),0)*IF($T196=\"n/a\",$D196*$Y196,$G196)+IFERROR(IF(AND($V196<=AF$1,$W196>=AF$1),INDEX(Reliability!K$23:K$50,MATCH($T196,Reliability!$C$23:$C$50,0)),0),0)*$H196*$X196*$Y196),$D196)*$R196","v":0},{"$f":"MIN((IFERROR(IF(AND($V196<=AG$1,$W196>=AG$1),INDEX(Reliability!L$23:L$50,MATCH($S196,Reliability!$C$23:$C$50,0)),0),0)*IF($T196=\"n/a\",$D196*$Y196,$G196)+IFERROR(IF(AND($V196<=AG$1,$W196>=AG$1),INDEX(Reliability!L$23:L$50,MATCH($T196,Reliability!$C$23:$C$50,0)),0),0)*$H196*$X196*$Y196),$D196)*$R196","v":0},{"$f":"MIN((IFERROR(IF(AND($V196<=AH$1,$W196>=AH$1),INDEX(Reliability!M$23:M$50,MATCH($S196,Reliability!$C$23:$C$50,0)),0),0)*IF($T196=\"n/a\",$D196*$Y196,$G196)+IFERROR(IF(AND($V196<=AH$1,$W196>=AH$1),INDEX(Reliability!M$23:M$50,MATCH($T196,Reliability!$C$23:$C$50,0)),0),0)*$H196*$X196*$Y196),$D196)*$R196","v":0},{"$f":"MIN((IFERROR(IF(AND($V196<=AI$1,$W196>=AI$1),INDEX(Reliability!N$23:N$50,MATCH($S196,Reliability!$C$23:$C$50,0)),0),0)*IF($T196=\"n/a\",$D196*$Y196,$G196)+IFERROR(IF(AND($V196<=AI$1,$W196>=AI$1),INDEX(Reliability!N$23:N$50,MATCH($T196,Reliability!$C$23:$C$50,0)),0),0)*$H196*$X196*$Y196),$D196)*$R196","v":0},{"$f":"MIN((IFERROR(IF(AND($V196<=AJ$1,$W196>=AJ$1),INDEX(Reliability!O$23:O$50,MATCH($S196,Reliability!$C$23:$C$50,0)),0),0)*IF($T196=\"n/a\",$D196*$Y196,$G196)+IFERROR(IF(AND($V196<=AJ$1,$W196>=AJ$1),INDEX(Reliability!O$23:O$50,MATCH($T196,Reliability!$C$23:$C$50,0)),0),0)*$H196*$X196*$Y196),$D196)*$R196","v":0},{"$f":"MIN((IFERROR(IF(AND($V196<=AK$1,$W196>=AK$1),INDEX(Reliability!P$23:P$50,MATCH($S196,Reliability!$C$23:$C$50,0)),0),0)*IF($T196=\"n/a\",$D196*$Y196,$G196)+IFERROR(IF(AND($V196<=AK$1,$W196>=AK$1),INDEX(Reliability!P$23:P$50,MATCH($T196,Reliability!$C$23:$C$50,0)),0),0)*$H196*$X196*$Y196),$D196)*$R196","v":0}]
[null,{"$f":"unique_contracts!B198","v":0},{"$f":"unique_contracts!D198","v":0},{"$f":"unique_contracts!J198","v":0},{"$f":"unique_contracts!M198","v":0},{"$f":"unique_contracts!N198","v":0},{"$f":"unique_contracts!P198","v":0},{"$f":"unique_contracts!R198","v":0},{"$f":"unique_contracts!V198","v":0},{"$f":"unique_contracts!AB198","v":0},{"$f":"unique_contracts!AM198","v":0},{"$f":"unique_contracts!AN198","v":0},{"$f":"unique_contracts!AO198","v":0},{"$f":"unique_contracts!AP198","v":0},{"$f":"unique_contracts!AQ198","v":0},{"$f":"unique_contracts!AR198","v":0},{"$f":"unique_contracts!BP198","v":0},0,{"$f":"IFERROR(IF(AND(I197>0,E197=\"NotHybrid\"),_xlfn.CONCAT(MAX(MIN(ROUNDDOWN(I197/D197,0),8),4),INDEX(resources!$G:$G,MATCH(B197,resources!$A:$A,0))),INDEX(resources!$G:$G,MATCH(B197,resources!$A:$A,0))),\"n/a\")","v":"n/a"},"n/a","n/a",0,0,1,1,{"$f":"MIN((IFERROR(IF(AND($V197<=Z$1,$W197>=Z$1),INDEX(Reliability!E$23:E$50,MATCH($S197,Reliability!$C$23:$C$50,0)),0),0)*IF($T197=\"n/a\",$D197*$Y197,$G197)+IFERROR(IF(AND($V197<=Z$1,$W197>=Z$1),INDEX(Reliability!E$23:E$50,MATCH($T197,Reliability!$C$23:$C$50,0)),0),0)*$H197*$X197*$Y197),$D197)*$R197","v":0},{"$f":"MIN((IFERROR(IF(AND($V197<=AA$1,$W197>=AA$1),INDEX(Reliability!F$23:F$50,MATCH($S197,Reliability!$C$23:$C$50,0)),0),0)*IF($T197=\"n/a\",$D197*$Y197,$G197)+IFERROR(IF(AND($V197<=AA$1,$W197>=AA$1),INDEX(Reliability!F$23:F$50,MATCH($T197,Reliability!$C$23:$C$50,0)),0),0)*$H197*$X197*$Y197),$D197)*$R197","v":0},{"$f":"MIN((IFERROR(IF(AND($V197<=AB$1,$W197>=AB$1),INDEX(Reliability!G$23:G$50,MATCH($S197,Reliability!$C$23:$C$50,0)),0),0)*IF($T197=\"n/a\",$D197*$Y197,$G197)+IFERROR(IF(AND($V197<=AB$1,$W197>=AB$1),INDEX(Reliability!G$23:G$50,MATCH($T197,Reliability!$C$23:$C$50,0)),0),0)*$H197*$X197*$Y197),$D197)*$R197","v":0},{"$f":"MIN((IFERROR(IF(AND($V197<=AC$1,$W197>=AC$1),INDEX(Reliability!H$23:H$50,MATCH($S197,Reliability!$C$23:$C$50,0)),0),0)*IF($T197=\"n/a\",$D197*$Y197,$G197)+IFERROR(IF(AND($V197<=AC$1,$W197>=AC$1),INDEX(Reliability!H$23:H$50,MATCH($T197,Reliability!$C$23:$C$50,0)),0),0)*$H197*$X197*$Y197),$D197)*$R197","v":0},{"$f":"MIN((IFERROR(IF(AND($V197<=AD$1,$W197>=AD$1),INDEX(Reliability!I$23:I$50,MATCH($S197,Reliability!$C$23:$C$50,0)),0),0)*IF($T197=\"n/a\",$D197*$Y197,$G197)+IFERROR(IF(AND($V197<=AD$1,$W197>=AD$1),INDEX(Reliability!I$23:I$50,MATCH($T197,Reliability!$C$23:$C$50,0)),0),0)*$H197*$X197*$Y197),$D197)*$R197","v":0},{"$f":"MIN((IFERROR(IF(AND($V197<=AE$1,$W197>=AE$1),INDEX(Reliability!J$23:J$50,MATCH($S197,Reliability!$C$23:$C$50,0)),0),0)*IF($T197=\"n/a\",$D197*$Y197,$G197)+IFERROR(IF(AND($V197<=AE$1,$W197>=AE$1),INDEX(Reliability!J$23:J$50,MATCH($T197,Reliability!$C$23:$C$50,0)),0),0)*$H197*$X197*$Y197),$D197)*$R197","v":0},{"$f":"MIN((IFERROR(IF(AND($V197<=AF$1,$W197>=AF$1),INDEX(Reliability!K$23:K$50,MATCH($S197,Reliability!$C$23:$C$50,0)),0),0)*IF($T197=\"n/a\",$D197*$Y197,$G197)+IFERROR(IF(AND($V197<=AF$1,$W197>=AF$1),INDEX(Reliability!K$23:K$50,MATCH($T197,Reliability!$C$23:$C$50,0)),0),0)*$H197*$X197*$Y197),$D197)*$R197","v":0},{"$f":"MIN((IFERROR(IF(AND($V197<=AG$1,$W197>=AG$1),INDEX(Reliability!L$23:L$50,MATCH($S197,Reliability!$C$23:$C$50,0)),0),0)*IF($T197=\"n/a\",$D197*$Y197,$G197)+IFERROR(IF(AND($V197<=AG$1,$W197>=AG$1),INDEX(Reliability!L$23:L$50,MATCH($T197,Reliability!$C$23:$C$50,0)),0),0)*$H197*$X197*$Y197),$D197)*$R197","v":0},{"$f":"MIN((IFERROR(IF(AND($V197<=AH$1,$W197>=AH$1),INDEX(Reliability!M$23:M$50,MATCH($S197,Reliability!$C$23:$C$50,0)),0),0)*IF($T197=\"n/a\",$D197*$Y197,$G197)+IFERROR(IF(AND($V197<=AH$1,$W197>=AH$1),INDEX(Reliability!M$23:M$50,MATCH($T197,Reliability!$C$23:$C$50,0)),0),0)*$H197*$X197*$Y197),$D197)*$R197","v":0},{"$f":"MIN((IFERROR(IF(AND($V197<=AI$1,$W197>=AI$1),INDEX(Reliability!N$23:N$50,MATCH($S197,Reliability!$C$23:$C$50,0)),0),0)*IF($T197=\"n/a\",$D197*$Y197,$G197)+IFERROR(IF(AND($V197<=AI$1,$W197>=AI$1),INDEX(Reliability!N$23:N$50,MATCH($T197,Reliability!$C$23:$C$50,0)),0),0)*$H197*$X197*$Y197),$D197)*$R197","v":0},{"$f":"MIN((IFERROR(IF(AND($V197<=AJ$1,$W197>=AJ$1),INDEX(Reliability!O$23:O$50,MATCH($S197,Reliability!$C$23:$C$50,0)),0),0)*IF($T197=\"n/a\",$D197*$Y197,$G197)+IFERROR(IF(AND($V197<=AJ$1,$W197>=AJ$1),INDEX(Reliability!O$23:O$50,MATCH($T197,Reliability!$C$23:$C$50,0)),0),0)*$H197*$X197*$Y197),$D197)*$R197","v":0},{"$f":"MIN((IFERROR(IF(AND($V197<=AK$1,$W197>=AK$1),INDEX(Reliability!P$23:P$50,MATCH($S197,Reliability!$C$23:$C$50,0)),0),0)*IF($T197=\"n/a\",$D197*$Y197,$G197)+IFERROR(IF(AND($V197<=AK$1,$W197>=AK$1),INDEX(Reliability!P$23:P$50,MATCH($T197,Reliability!$C$23:$C$50,0)),0),0)*$H197*$X197*$Y197),$D197)*$R197","v":0}]
[null,{"$f":"unique_contracts!B199","v":0},{"$f":"unique_contracts!D199","v":0},{"$f":"unique_contracts!J199","v":0},{"$f":"unique_contracts!M199","v":0},{"$f":"unique_contracts!N199","v":0},{"$f":"unique_contracts!P199","v":0},{"$f":"unique_contracts!R199","v":0},{"$f":"unique_contracts!V199","v":0},{"$f":"unique_contracts!AB199","v":0},{"$f":"unique_contracts!AM199","v":0},{"$f":"unique_contracts!AN199","v":0},{"$f":"unique_contracts!AO199","v":0},{"$f":"unique_contracts!AP199","v":0},{"$f":"unique_contracts!AQ199","v":0},{"$f":"unique_contracts!AR199","v":0},{"$f":"unique_contracts!BP199","v":0},0,{"$f":"IFERROR(IF(AND(I198>0,E198=\"NotHybrid\"),_xlfn.CONCAT(MAX(MIN(ROUNDDOWN(I198/D198,0),8),4),INDEX(resources!$G:$G,MATCH(B198,resources!$A:$A,0))),INDEX(resources!$G:$G,MATCH(B198,resources!$A:$A,0))),\"n/a\")","v":"n/a"},"n/a","n/a",0,0,1,1,{"$f":"MIN((IFERROR(IF(AND($V198<=Z$1,$W198>=Z$1),INDEX(Reliability!E$23:E$50,MATCH($S198,Reliability!$C$23:$C$50,0)),0),0)*IF($T198=\"n/a\",$D198*$Y198,$G198)+IFERROR(IF(AND($V198<=Z$1,$W198>=Z$1),INDEX(Reliability!E$23:E$50,MATCH($T198,Reliability!$C$23:$C$50,0)),0),0)*$H198*$X198*$Y198),$D198)*$R198","v":0},{"$f":"MIN((IFERROR(IF(AND($V198<=AA$1,$W198>=AA$1),INDEX(Reliability!F$23:F$50,MATCH($S198,Reliability!$C$23:$C$50,0)),0),0)*IF($T198=\"n/a\",$D198*$Y198,$G198)+IFERROR(IF(AND($V198<=AA$1,$W198>=AA$1),INDEX(Reliability!F$23:F$50,MATCH($T198,Reliability!$C$23:$C$50,0)),0),0)*$H198*$X198*$Y198),$D198)*$R198","v":0},{"$f":"MIN((IFERROR(IF(AND($V198<=AB$1,$W198>=AB$1),INDEX(Reliability!G$23:G$50,MATCH($S198,Reliability!$C$23:$C$50,0)),0),0)*IF($T198=\"n/a\",$D198*$Y198,$G198)+IFERROR(IF(AND($V198<=AB$1,$W198>=AB$1),INDEX(Reliability!G$23:G$50,MATCH($T198,Reliability!$C$23:$C$50,0)),0),0)*$H198*$X198*$Y198),$D198)*$R198","v":0},{"$f":"MIN((IFERROR(IF(AND($V198<=AC$1,$W198>=AC$1),INDEX(Reliability!H$23:H$50,MATCH($S198,Reliability!$C$23:$C$50,0)),0),0)*IF($T198=\"n/a\",$D198*$Y198,$G198)+IFERROR(IF(AND($V198<=AC$1,$W198>=AC$1),INDEX(Reliability!H$23:H$50,MATCH($T198,Reliability!$C$23:$C$50,0)),0),0)*$H198*$X198*$Y198),$D198)*$R198","v":0},{"$f":"MIN((IFERROR(IF(AND($V198<=AD$1,$W198>=AD$1),INDEX(Reliability!I$23:I$50,MATCH($S198,Reliability!$C$23:$C$50,0)),0),0)*IF($T198=\"n/a\",$D198*$Y198,$G198)+IFERROR(IF(AND($V198<=AD$1,$W198>=AD$1),INDEX(Reliability!I$23:I$50,MATCH($T198,Reliability!$C$23:$C$50,0)),0),0)*$H198*$X198*$Y198),$D198)*$R198","v":0},{"$f":"MIN((IFERROR(IF(AND($V198<=AE$1,$W198>=AE$1),INDEX(Reliability!J$23:J$50,MATCH($S198,Reliability!$C$23:$C$50,0)),0),0)*IF($T198=\"n/a\",$D198*$Y198,$G198)+IFERROR(IF(AND($V198<=AE$1,$W198>=AE$1),INDEX(Reliability!J$23:J$50,MATCH($T198,Reliability!$C$23:$C$50,0)),0),0)*$H198*$X198*$Y198),$D198)*$R198","v":0},{"$f":"MIN((IFERROR(IF(AND($V198<=AF$1,$W198>=AF$1),INDEX(Reliability!K$23:K$50,MATCH($S198,Reliability!$C$23:$C$50,0)),0),0)*IF($T198=\"n/a\",$D198*$Y198,$G198)+IFERROR(IF(AND($V198<=AF$1,$W198>=AF$1),INDEX(Reliability!K$23:K$50,MATCH($T198,Reliability!$C$23:$C$50,0)),0),0)*$H198*$X198*$Y198),$D198)*$R198","v":0},{"$f":"MIN((IFERROR(IF(AND($V198<=AG$1,$W198>=AG$1),INDEX(Reliability!L$23:L$50,MATCH($S198,Reliability!$C$23:$C$50,0)),0),0)*IF($T198=\"n/a\",$D198*$Y198,$G198)+IFERROR(IF(AND($V198<=AG$1,$W198>=AG$1),INDEX(Reliability!L$23:L$50,MATCH($T198,Reliability!$C$23:$C$50,0)),0),0)*$H198*$X198*$Y198),$D198)*$R198","v":0},{"$f":"MIN((IFERROR(IF(AND($V198<=AH$1,$W198>=AH$1),INDEX(Reliability!M$23:M$50,MATCH($S198,Reliability!$C$23:$C$50,0)),0),0)*IF($T198=\"n/a\",$D198*$Y198,$G198)+IFERROR(IF(AND($V198<=AH$1,$W198>=AH$1),INDEX(Reliability!M$23:M$50,MATCH($T198,Reliability!$C$23:$C$50,0)),0),0)*$H198*$X198*$Y198),$D198)*$R198","v":0},{"$f":"MIN((IFERROR(IF(AND($V198<=AI$1,$W198>=AI$1),INDEX(Reliability!N$23:N$50,MATCH($S198,Reliability!$C$23:$C$50,0)),0),0)*IF($T198=\"n/a\",$D198*$Y198,$G198)+IFERROR(IF(AND($V198<=AI$1,$W198>=AI$1),INDEX(Reliability!N$23:N$50,MATCH($T198,Reliability!$C$23:$C$50,0)),0),0)*$H198*$X198*$Y198),$D198)*$R198","v":0},{"$f":"MIN((IFERROR(IF(AND($V198<=AJ$1,$W198>=AJ$1),INDEX(Reliability!O$23:O$50,MATCH($S198,Reliability!$C$23:$C$50,0)),0),0)*IF($T198=\"n/a\",$D198*$Y198,$G198)+IFERROR(IF(AND($V198<=AJ$1,$W198>=AJ$1),INDEX(Reliability!O$23:O$50,MATCH($T198,Reliability!$C$23:$C$50,0)),0),0)*$H198*$X198*$Y198),$D198)*$R198","v":0},{"$f":"MIN((IFERROR(IF(AND($V198<=AK$1,$W198>=AK$1),INDEX(Reliability!P$23:P$50,MATCH($S198,Reliability!$C$23:$C$50,0)),0),0)*IF($T198=\"n/a\",$D198*$Y198,$G198)+IFERROR(IF(AND($V198<=AK$1,$W198>=AK$1),INDEX(Reliability!P$23:P$50,MATCH($T198,Reliability!$C$23:$C$50,0)),0),0)*$H198*$X198*$Y198),$D198)*$R198","v":0}]
[null,{"$f":"unique_contracts!B200","v":0},{"$f":"unique_contracts!D200","v":0},{"$f":"unique_contracts!J200","v":0},{"$f":"unique_contracts!M200","v":0},{"$f":"unique_contracts!N200","v":0},{"$f":"unique_contracts!P200","v":0},{"$f":"unique_contracts!R200","v":0},{"$f":"unique_contracts!V200","v":0},{"$f":"unique_contracts!AB200","v":0},{"$f":"unique_contracts!AM200","v":0},{"$f":"unique_contracts!AN200","v":0},{"$f":"unique_contracts!AO200","v":0},{"$f":"unique_contracts!AP200","v":0},{"$f":"unique_contracts!AQ200","v":0},{"$f":"unique_contracts!AR200","v":0},{"$f":"unique_contracts!BP200","v":0},0,{"$f":"IFERROR(IF(AND(I199>0,E199=\"NotHybrid\"),_xlfn.CONCAT(MAX(MIN(ROUNDDOWN(I199/D199,0),8),4),INDEX(resources!$G:$G,MATCH(B199,resources!$A:$A,0))),INDEX(resources!$G:$G,MATCH(B199,resources!$A:$A,0))),\"n/a\")","v":"n/a"},"n/a","n/a",0,0,1,1,{"$f":"MIN((IFERROR(IF(AND($V199<=Z$1,$W199>=Z$1),INDEX(Reliability!E$23:E$50,MATCH($S199,Reliability!$C$23:$C$50,0)),0),0)*IF($T199=\"n/a\",$D199*$Y199,$G199)+IFERROR(IF(AND($V199<=Z$1,$W199>=Z$1),INDEX(Reliability!E$23:E$50,MATCH($T199,Reliability!$C$23:$C$50,0)),0),0)*$H199*$X199*$Y199),$D199)*$R199","v":0},{"$f":"MIN((IFERROR(IF(AND($V199<=AA$1,$W199>=AA$1),INDEX(Reliability!F$23:F$50,MATCH($S199,Reliability!$C$23:$C$50,0)),0),0)*IF($T199=\"n/a\",$D199*$Y199,$G199)+IFERROR(IF(AND($V199<=AA$1,$W199>=AA$1),INDEX(Reliability!F$23:F$50,MATCH($T199,Reliability!$C$23:$C$50,0)),0),0)*$H199*$X199*$Y199),$D199)*$R199","v":0},{"$f":"MIN((IFERROR(IF(AND($V199<=AB$1,$W199>=AB$1),INDEX(Reliability!G$23:G$50,MATCH($S199,Reliability!$C$23:$C$50,0)),0),0)*IF($T199=\"n/a\",$D199*$Y199,$G199)+IFERROR(IF(AND($V199<=AB$1,$W199>=AB$1),INDEX(Reliability!G$23:G$50,MATCH($T199,Reliability!$C$23:$C$50,0)),0),0)*$H199*$X199*$Y199),$D199)*$R199","v":0},{"$f":"MIN((IFERROR(IF(AND($V199<=AC$1,$W199>=AC$1),INDEX(Reliability!H$23:H$50,MATCH($S199,Reliability!$C$23:$C$50,0)),0),0)*IF($T199=\"n/a\",$D199*$Y199,$G199)+IFERROR(IF(AND($V199<=AC$1,$W199>=AC$1),INDEX(Reliability!H$23:H$50,MATCH($T199,Reliability!$C$23:$C$50,0)),0),0)*$H199*$X199*$Y199),$D199)*$R199","v":0},{"$f":"MIN((IFERROR(IF(AND($V199<=AD$1,$W199>=AD$1),INDEX(Reliability!I$23:I$50,MATCH($S199,Reliability!$C$23:$C$50,0)),0),0)*IF($T199=\"n/a\",$D199*$Y199,$G199)+IFERROR(IF(AND($V199<=AD$1,$W199>=AD$1),INDEX(Reliability!I$23:I$50,MATCH($T199,Reliability!$C$23:$C$50,0)),0),0)*$H199*$X199*$Y199),$D199)*$R199","v":0},{"$f":"MIN((IFERROR(IF(AND($V199<=AE$1,$W199>=AE$1),INDEX(Reliability!J$23:J$50,MATCH($S199,Reliability!$C$23:$C$50,0)),0),0)*IF($T199=\"n/a\",$D199*$Y199,$G199)+IFERROR(IF(AND($V199<=AE$1,$W199>=AE$1),INDEX(Reliability!J$23:J$50,MATCH($T199,Reliability!$C$23:$C$50,0)),0),0)*$H199*$X199*$Y199),$D199)*$R199","v":0},{"$f":"MIN((IFERROR(IF(AND($V199<=AF$1,$W199>=AF$1),INDEX(Reliability!K$23:K$50,MATCH($S199,Reliability!$C$23:$C$50,0)),0),0)*IF($T199=\"n/a\",$D199*$Y199,$G199)+IFERROR(IF(AND($V199<=AF$1,$W199>=AF$1),INDEX(Reliability!K$23:K$50,MATCH($T199,Reliability!$C$23:$C$50,0)),0),0)*$H199*$X199*$Y199),$D199)*$R199","v":0},{"$f":"MIN((IFERROR(IF(AND($V199<=AG$1,$W199>=AG$1),INDEX(Reliability!L$23:L$50,MATCH($S199,Reliability!$C$23:$C$50,0)),0),0)*IF($T199=\"n/a\",$D199*$Y199,$G199)+IFERROR(IF(AND($V199<=AG$1,$W199>=AG$1),INDEX(Reliability!L$23:L$50,MATCH($T199,Reliability!$C$23:$C$50,0)),0),0)*$H199*$X199*$Y199),$D199)*$R199","v":0},{"$f":"MIN((IFERROR(IF(AND($V199<=AH$1,$W199>=AH$1),INDEX(Reliability!M$23:M$50,MATCH($S199,Reliability!$C$23:$C$50,0)),0),0)*IF($T199=\"n/a\",$D199*$Y199,$G199)+IFERROR(IF(AND($V199<=AH$1,$W199>=AH$1),INDEX(Reliability!M$23:M$50,MATCH($T199,Reliability!$C$23:$C$50,0)),0),0)*$H199*$X199*$Y199),$D199)*$R199","v":0},{"$f":"MIN((IFERROR(IF(AND($V199<=AI$1,$W199>=AI$1),INDEX(Reliability!N$23:N$50,MATCH($S199,Reliability!$C$23:$C$50,0)),0),0)*IF($T199=\"n/a\",$D199*$Y199,$G199)+IFERROR(IF(AND($V199<=AI$1,$W199>=AI$1),INDEX(Reliability!N$23:N$50,MATCH($T199,Reliability!$C$23:$C$50,0)),0),0)*$H199*$X199*$Y199),$D199)*$R199","v":0},{"$f":"MIN((IFERROR(IF(AND($V199<=AJ$1,$W199>=AJ$1),INDEX(Reliability!O$23:O$50,MATCH($S199,Reliability!$C$23:$C$50,0)),0),0)*IF($T199=\"n/a\",$D199*$Y199,$G199)+IFERROR(IF(AND($V199<=AJ$1,$W199>=AJ$1),INDEX(Reliability!O$23:O$50,MATCH($T199,Reliability!$C$23:$C$50,0)),0),0)*$H199*$X199*$Y199),$D199)*$R199","v":0},{"$f":"MIN((IFERROR(IF(AND($V199<=AK$1,$W199>=AK$1),INDEX(Reliability!P$23:P$50,MATCH($S199,Reliability!$C$23:$C$50,0)),0),0)*IF($T199=\"n/a\",$D199*$Y199,$G199)+IFERROR(IF(AND($V199<=AK$1,$W199>=AK$1),INDEX(Reliability!P$23:P$50,MATCH($T199,Reliability!$C$23:$C$50,0)),0),0)*$H199*$X199*$Y199),$D199)*$R199","v":0}]
[null,{"$f":"unique_contracts!B201","v":0},{"$f":"unique_contracts!D201","v":0},{"$f":"unique_contracts!J201","v":0},{"$f":"unique_contracts!M201","v":0},{"$f":"unique_contracts!N201","v":0},{"$f":"unique_contracts!P201","v":0},{"$f":"unique_contracts!R201","v":0},{"$f":"unique_contracts!V201","v":0},{"$f":"unique_contracts!AB201","v":0},{"$f":"unique_contracts!AM201","v":0},{"$f":"unique_contracts!AN201","v":0},{"$f":"unique_contracts!AO201","v":0},{"$f":"unique_contracts!AP201","v":0},{"$f":"unique_contracts!AQ201","v":0},{"$f":"unique_contracts!AR201","v":0},{"$f":"unique_contracts!BP201","v":0},0,{"$f":"IFERROR(IF(AND(I200>0,E200=\"NotHybrid\"),_xlfn.CONCAT(MAX(MIN(ROUNDDOWN(I200/D200,0),8),4),INDEX(resources!$G:$G,MATCH(B200,resources!$A:$A,0))),INDEX(resources!$G:$G,MATCH(B200,resources!$A:$A,0))),\"n/a\")","v":"n/a"},"n/a","n/a",0,0,1,1,{"$f":"MIN((IFERROR(IF(AND($V200<=Z$1,$W200>=Z$1),INDEX(Reliability!E$23:E$50,MATCH($S200,Reliability!$C$23:$C$50,0)),0),0)*IF($T200=\"n/a\",$D200*$Y200,$G200)+IFERROR(IF(AND($V200<=Z$1,$W200>=Z$1),INDEX(Reliability!E$23:E$50,MATCH($T200,Reliability!$C$23:$C$50,0)),0),0)*$H200*$X200*$Y200),$D200)*$R200","v":0},{"$f":"MIN((IFERROR(IF(AND($V200<=AA$1,$W200>=AA$1),INDEX(Reliability!F$23:F$50,MATCH($S200,Reliability!$C$23:$C$50,0)),0),0)*IF($T200=\"n/a\",$D200*$Y200,$G200)+IFERROR(IF(AND($V200<=AA$1,$W200>=AA$1),INDEX(Reliability!F$23:F$50,MATCH($T200,Reliability!$C$23:$C$50,0)),0),0)*$H200*$X200*$Y200),$D200)*$R200","v":0},{"$f":"MIN((IFERROR(IF(AND($V200<=AB$1,$W200>=AB$1),INDEX(Reliability!G$23:G$50,MATCH($S200,Reliability!$C$23:$C$50,0)),0),0)*IF($T200=\"n/a\",$D200*$Y200,$G200)+IFERROR(IF(AND($V200<=AB$1,$W200>=AB$1),INDEX(Reliability!G$23:G$50,MATCH($T200,Reliability!$C$23:$C$50,0)),0),0)*$H200*$X200*$Y200),$D200)*$R200","v":0},{"$f":"MIN((IFERROR(IF(AND($V200<=AC$1,$W200>=AC$1),INDEX(Reliability!H$23:H$50,MATCH($S200,Reliability!$C$23:$C$50,0)),0),0)*IF($T200=\"n/a\",$D200*$Y200,$G200)+IFERROR(IF(AND($V200<=AC$1,$W200>=AC$1),INDEX(Reliability!H$23:H$50,MATCH($T200,Reliability!$C$23:$C$50,0)),0),0)*$H200*$X200*$Y200),$D200)*$R200","v":0},{"$f":"MIN((IFERROR(IF(AND($V200<=AD$1,$W200>=AD$1),INDEX(Reliability!I$23:I$50,MATCH($S200,Reliability!$C$23:$C$50,0)),0),0)*IF($T200=\"n/a\",$D200*$Y200,$G200)+IFERROR(IF(AND($V200<=AD$1,$W200>=AD$1),INDEX(Reliability!I$23:I$50,MATCH($T200,Reliability!$C$23:$C$50,0)),0),0)*$H200*$X200*$Y200),$D200)*$R200","v":0},{"$f":"MIN((IFERROR(IF(AND($V200<=AE$1,$W200>=AE$1),INDEX(Reliability!J$23:J$50,MATCH($S200,Reliability!$C$23:$C$50,0)),0),0)*IF($T200=\"n/a\",$D200*$Y200,$G200)+IFERROR(IF(AND($V200<=AE$1,$W200>=AE$1),INDEX(Reliability!J$23:J$50,MATCH($T200,Reliability!$C$23:$C$50,0)),0),0)*$H200*$X200*$Y200),$D200)*$R200","v":0},{"$f":"MIN((IFERROR(IF(AND($V200<=AF$1,$W200>=AF$1),INDEX(Reliability!K$23:K$50,MATCH($S200,Reliability!$C$23:$C$50,0)),0),0)*IF($T200=\"n/a\",$D200*$Y200,$G200)+IFERROR(IF(AND($V200<=AF$1,$W200>=AF$1),INDEX(Reliability!K$23:K$50,MATCH($T200,Reliability!$C$23:$C$50,0)),0),0)*$H200*$X200*$Y200),$D200)*$R200","v":0},{"$f":"MIN((IFERROR(IF(AND($V200<=AG$1,$W200>=AG$1),INDEX(Reliability!L$23:L$50,MATCH($S200,Reliability!$C$23:$C$50,0)),0),0)*IF($T200=\"n/a\",$D200*$Y200,$G200)+IFERROR(IF(AND($V200<=AG$1,$W200>=AG$1),INDEX(Reliability!L$23:L$50,MATCH($T200,Reliability!$C$23:$C$50,0)),0),0)*$H200*$X200*$Y200),$D200)*$R200","v":0},{"$f":"MIN((IFERROR(IF(AND($V200<=AH$1,$W200>=AH$1),INDEX(Reliability!M$23:M$50,MATCH($S200,Reliability!$C$23:$C$50,0)),0),0)*IF($T200=\"n/a\",$D200*$Y200,$G200)+IFERROR(IF(AND($V200<=AH$1,$W200>=AH$1),INDEX(Reliability!M$23:M$50,MATCH($T200,Reliability!$C$23:$C$50,0)),0),0)*$H200*$X200*$Y200),$D200)*$R200","v":0},{"$f":"MIN((IFERROR(IF(AND($V200<=AI$1,$W200>=AI$1),INDEX(Reliability!N$23:N$50,MATCH($S200,Reliability!$C$23:$C$50,0)),0),0)*IF($T200=\"n/a\",$D200*$Y200,$G200)+IFERROR(IF(AND($V200<=AI$1,$W200>=AI$1),INDEX(Reliability!N$23:N$50,MATCH($T200,Reliability!$C$23:$C$50,0)),0),0)*$H200*$X200*$Y200),$D200)*$R200","v":0},{"$f":"MIN((IFERROR(IF(AND($V200<=AJ$1,$W200>=AJ$1),INDEX(Reliability!O$23:O$50,MATCH($S200,Reliability!$C$23:$C$50,0)),0),0)*IF($T200=\"n/a\",$D200*$Y200,$G200)+IFERROR(IF(AND($V200<=AJ$1,$W200>=AJ$1),INDEX(Reliability!O$23:O$50,MATCH($T200,Reliability!$C$23:$C$50,0)),0),0)*$H200*$X200*$Y200),$D200)*$R200","v":0},{"$f":"MIN((IFERROR(IF(AND($V200<=AK$1,$W200>=AK$1),INDEX(Reliability!P$23:P$50,MATCH($S200,Reliability!$C$23:$C$50,0)),0),0)*IF($T200=\"n/a\",$D200*$Y200,$G200)+IFERROR(IF(AND($V200<=AK$1,$W200>=AK$1),INDEX(Reliability!P$23:P$50,MATCH($T200,Reliability!$C$23:$C$50,0)),0),0)*$H200*$X200*$Y200),$D200)*$R200","v":0}]
[null,{"$f":"unique_contracts!B202","v":0},{"$f":"unique_contracts!D202","v":0},{"$f":"unique_contracts!J202","v":0},{"$f":"unique_contracts!M202","v":0},{"$f":"unique_contracts!N202","v":0},{"$f":"unique_contracts!P202","v":0},{"$f":"unique_contracts!R202","v":0},{"$f":"unique_contracts!V202","v":0},{"$f":"unique_contracts!AB202","v":0},{"$f":"unique_contracts!AM202","v":0},{"$f":"unique_contracts!AN202","v":0},{"$f":"unique_contracts!AO202","v":0},{"$f":"unique_contracts!AP202","v":0},{"$f":"unique_contracts!AQ202","v":0},{"$f":"unique_contracts!AR202","v":0},{"$f":"unique_contracts!BP202","v":0},0,{"$f":"IFERROR(IF(AND(I201>0,E201=\"NotHybrid\"),_xlfn.CONCAT(MAX(MIN(ROUNDDOWN(I201/D201,0),8),4),INDEX(resources!$G:$G,MATCH(B201,resources!$A:$A,0))),INDEX(resources!$G:$G,MATCH(B201,resources!$A:$A,0))),\"n/a\")","v":"n/a"},"n/a","n/a",0,0,1,1,{"$f":"MIN((IFERROR(IF(AND($V201<=Z$1,$W201>=Z$1),INDEX(Reliability!E$23:E$50,MATCH($S201,Reliability!$C$23:$C$50,0)),0),0)*IF($T201=\"n/a\",$D201*$Y201,$G201)+IFERROR(IF(AND($V201<=Z$1,$W201>=Z$1),INDEX(Reliability!E$23:E$50,MATCH($T201,Reliability!$C$23:$C$50,0)),0),0)*$H201*$X201*$Y201),$D201)*$R201","v":0},{"$f":"MIN((IFERROR(IF(AND($V201<=AA$1,$W201>=AA$1),INDEX(Reliability!F$23:F$50,MATCH($S201,Reliability!$C$23:$C$50,0)),0),0)*IF($T201=\"n/a\",$D201*$Y201,$G201)+IFERROR(IF(AND($V201<=AA$1,$W201>=AA$1),INDEX(Reliability!F$23:F$50,MATCH($T201,Reliability!$C$23:$C$50,0)),0),0)*$H201*$X201*$Y201),$D201)*$R201","v":0},{"$f":"MIN((IFERROR(IF(AND($V201<=AB$1,$W201>=AB$1),INDEX(Reliability!G$23:G$50,MATCH($S201,Reliability!$C$23:$C$50,0)),0),0)*IF($T201=\"n/a\",$D201*$Y201,$G201)+IFERROR(IF(AND($V201<=AB$1,$W201>=AB$1),INDEX(Reliability!G$23:G$50,MATCH($T201,Reliability!$C$23:$C$50,0)),0),0)*$H201*$X201*$Y201),$D201)*$R201","v":0},{"$f":"MIN((IFERROR(IF(AND($V201<=AC$1,$W201>=AC$1),INDEX(Reliability!H$23:H$50,MATCH($S201,Reliability!$C$23:$C$50,0)),0),0)*IF($T201=\"n/a\",$D201*$Y201,$G201)+IFERROR(IF(AND($V201<=AC$1,$W201>=AC$1),INDEX(Reliability!H$23:H$50,MATCH($T201,Reliability!$C$23:$C$50,0)),0),0)*$H201*$X201*$Y201),$D201)*$R201","v":0},{"$f":"MIN((IFERROR(IF(AND($V201<=AD$1,$W201>=AD$1),INDEX(Reliability!I$23:I$50,MATCH($S201,Reliability!$C$23:$C$50,0)),0),0)*IF($T201=\"n/a\",$D201*$Y201,$G201)+IFERROR(IF(AND($V201<=AD$1,$W201>=AD$1),INDEX(Reliability!I$23:I$50,MATCH($T201,Reliability!$C$23:$C$50,0)),0),0)*$H201*$X201*$Y201),$D201)*$R201","v":0},{"$f":"MIN((IFERROR(IF(AND($V201<=AE$1,$W201>=AE$1),INDEX(Reliability!J$23:J$50,MATCH($S201,Reliability!$C$23:$C$50,0)),0),0)*IF($T201=\"n/a\",$D201*$Y201,$G201)+IFERROR(IF(AND($V201<=AE$1,$W201>=AE$1),INDEX(Reliability!J$23:J$50,MATCH($T201,Reliability!$C$23:$C$50,0)),0),0)*$H201*$X201*$Y201),$D201)*$R201","v":0},{"$f":"MIN((IFERROR(IF(AND($V201<=AF$1,$W201>=AF$1),INDEX(Reliability!K$23:K$50,MATCH($S201,Reliability!$C$23:$C$50,0)),0),0)*IF($T201=\"n/a\",$D201*$Y201,$G201)+IFERROR(IF(AND($V201<=AF$1,$W201>=AF$1),INDEX(Reliability!K$23:K$50,MATCH($T201,Reliability!$C$23:$C$50,0)),0),0)*$H201*$X201*$Y201),$D201)*$R201","v":0},{"$f":"MIN((IFERROR(IF(AND($V201<=AG$1,$W201>=AG$1),INDEX(Reliability!L$23:L$50,MATCH($S201,Reliability!$C$23:$C$50,0)),0),0)*IF($T201=\"n/a\",$D201*$Y201,$G201)+IFERROR(IF(AND($V201<=AG$1,$W201>=AG$1),INDEX(Reliability!L$23:L$50,MATCH($T201,Reliability!$C$23:$C$50,0)),0),0)*$H201*$X201*$Y201),$D201)*$R201","v":0},{"$f":"MIN((IFERROR(IF(AND($V201<=AH$1,$W201>=AH$1),INDEX(Reliability!M$23:M$50,MATCH($S201,Reliability!$C$23:$C$50,0)),0),0)*IF($T201=\"n/a\",$D201*$Y201,$G201)+IFERROR(IF(AND($V201<=AH$1,$W201>=AH$1),INDEX(Reliability!M$23:M$50,MATCH($T201,Reliability!$C$23:$C$50,0)),0),0)*$H201*$X201*$Y201),$D201)*$R201","v":0},{"$f":"MIN((IFERROR(IF(AND($V201<=AI$1,$W201>=AI$1),INDEX(Reliability!N$23:N$50,MATCH($S201,Reliability!$C$23:$C$50,0)),0),0)*IF($T201=\"n/a\",$D201*$Y201,$G201)+IFERROR(IF(AND($V201<=AI$1,$W201>=AI$1),INDEX(Reliability!N$23:N$50,MATCH($T201,Reliability!$C$23:$C$50,0)),0),0)*$H201*$X201*$Y201),$D201)*$R201","v":0},{"$f":"MIN((IFERROR(IF(AND($V201<=AJ$1,$W201>=AJ$1),INDEX(Reliability!O$23:O$50,MATCH($S201,Reliability!$C$23:$C$50,0)),0),0)*IF($T201=\"n/a\",$D201*$Y201,$G201)+IFERROR(IF(AND($V201<=AJ$1,$W201>=AJ$1),INDEX(Reliability!O$23:O$50,MATCH($T201,Reliability!$C$23:$C$50,0)),0),0)*$H201*$X201*$Y201),$D201)*$R201","v":0},{"$f":"MIN((IFERROR(IF(AND($V201<=AK$1,$W201>=AK$1),INDEX(Reliability!P$23:P$50,MATCH($S201,Reliability!$C$23:$C$50,0)),0),0)*IF($T201=\"n/a\",$D201*$Y201,$G201)+IFERROR(IF(AND($V201<=AK$1,$W201>=AK$1),INDEX(Reliability!P$23:P$50,MATCH($T201,Reliability!$C$23:$C$50,0)),0),0)*$H201*$X201*$Y201),$D201)*$R201","v":0}]
[null,{"$f":"unique_contracts!B203","v":0},{"$f":"unique_contracts!D203","v":0},{"$f":"unique_contracts!J203","v":0},{"$f":"unique_contracts!M203","v":0},{"$f":"unique_contracts!N203","v":0},{"$f":"unique_contracts!P203","v":0},{"$f":"unique_contracts!R203","v":0},{"$f":"unique_contracts!V203","v":0},{"$f":"unique_contracts!AB203","v":0},{"$f":"unique_contracts!AM203","v":0},{"$f":"unique_contracts!AN203","v":0},{"$f":"unique_contracts!AO203","v":0},{"$f":"unique_contracts!AP203","v":0},{"$f":"unique_contracts!AQ203","v":0},{"$f":"unique_contracts!AR203","v":0},{"$f":"unique_contracts!BP203","v":0},0,{"$f":"IFERROR(IF(AND(I202>0,E202=\"NotHybrid\"),_xlfn.CONCAT(MAX(MIN(ROUNDDOWN(I202/D202,0),8),4),INDEX(resources!$G:$G,MATCH(B202,resources!$A:$A,0))),INDEX(resources!$G:$G,MATCH(B202,resources!$A:$A,0))),\"n/a\")","v":"n/a"},"n/a","n/a",0,0,1,1,{"$f":"MIN((IFERROR(IF(AND($V202<=Z$1,$W202>=Z$1),INDEX(Reliability!E$23:E$50,MATCH($S202,Reliability!$C$23:$C$50,0)),0),0)*IF($T202=\"n/a\",$D202*$Y202,$G202)+IFERROR(IF(AND($V202<=Z$1,$W202>=Z$1),INDEX(Reliability!E$23:E$50,MATCH($T202,Reliability!$C$23:$C$50,0)),0),0)*$H202*$X202*$Y202),$D202)*$R202","v":0},{"$f":"MIN((IFERROR(IF(AND($V202<=AA$1,$W202>=AA$1),INDEX(Reliability!F$23:F$50,MATCH($S202,Reliability!$C$23:$C$50,0)),0),0)*IF($T202=\"n/a\",$D202*$Y202,$G202)+IFERROR(IF(AND($V202<=AA$1,$W202>=AA$1),INDEX(Reliability!F$23:F$50,MATCH($T202,Reliability!$C$23:$C$50,0)),0),0)*$H202*$X202*$Y202),$D202)*$R202","v":0},{"$f":"MIN((IFERROR(IF(AND($V202<=AB$1,$W202>=AB$1),INDEX(Reliability!G$23:G$50,MATCH($S202,Reliability!$C$23:$C$50,0)),0),0)*IF($T202=\"n/a\",$D202*$Y202,$G202)+IFERROR(IF(AND($V202<=AB$1,$W202>=AB$1),INDEX(Reliability!G$23:G$50,MATCH($T202,Reliability!$C$23:$C$50,0)),0),0)*$H202*$X202*$Y202),$D202)*$R202","v":0},{"$f":"MIN((IFERROR(IF(AND($V202<=AC$1,$W202>=AC$1),INDEX(Reliability!H$23:H$50,MATCH($S202,Reliability!$C$23:$C$50,0)),0),0)*IF($T202=\"n/a\",$D202*$Y202,$G202)+IFERROR(IF(AND($V202<=AC$1,$W202>=AC$1),INDEX(Reliability!H$23:H$50,MATCH($T202,Reliability!$C$23:$C$50,0)),0),0)*$H202*$X202*$Y202),$D202)*$R202","v":0},{"$f":"MIN((IFERROR(IF(AND($V202<=AD$1,$W202>=AD$1),INDEX(Reliability!I$23:I$50,MATCH($S202,Reliability!$C$23:$C$50,0)),0),0)*IF($T202=\"n/a\",$D202*$Y202,$G202)+IFERROR(IF(AND($V202<=AD$1,$W202>=AD$1),INDEX(Reliability!I$23:I$50,MATCH($T202,Reliability!$C$23:$C$50,0)),0),0)*$H202*$X202*$Y202),$D202)*$R202","v":0},{"$f":"MIN((IFERROR(IF(AND($V202<=AE$1,$W202>=AE$1),INDEX(Reliability!J$23:J$50,MATCH($S202,Reliability!$C$23:$C$50,0)),0),0)*IF($T202=\"n/a\",$D202*$Y202,$G202)+IFERROR(IF(AND($V202<=AE$1,$W202>=AE$1),INDEX(Reliability!J$23:J$50,MATCH($T202,Reliability!$C$23:$C$50,0)),0),0)*$H202*$X202*$Y202),$D202)*$R202","v":0},{"$f":"MIN((IFERROR(IF(AND($V202<=AF$1,$W202>=AF$1),INDEX(Reliability!K$23:K$50,MATCH($S202,Reliability!$C$23:$C$50,0)),0),0)*IF($T202=\"n/a\",$D202*$Y202,$G202)+IFERROR(IF(AND($V202<=AF$1,$W202>=AF$1),INDEX(Reliability!K$23:K$50,MATCH($T202,Reliability!$C$23:$C$50,0)),0),0)*$H202*$X202*$Y202),$D202)*$R202","v":0},{"$f":"MIN((IFERROR(IF(AND($V202<=AG$1,$W202>=AG$1),INDEX(Reliability!L$23:L$50,MATCH($S202,Reliability!$C$23:$C$50,0)),0),0)*IF($T202=\"n/a\",$D202*$Y202,$G202)+IFERROR(IF(AND($V202<=AG$1,$W202>=AG$1),INDEX(Reliability!L$23:L$50,MATCH($T202,Reliability!$C$23:$C$50,0)),0),0)*$H202*$X202*$Y202),$D202)*$R202","v":0},{"$f":"MIN((IFERROR(IF(AND($V202<=AH$1,$W202>=AH$1),INDEX(Reliability!M$23:M$50,MATCH($S202,Reliability!$C$23:$C$50,0)),0),0)*IF($T202=\"n/a\",$D202*$Y202,$G202)+IFERROR(IF(AND($V202<=AH$1,$W202>=AH$1),INDEX(Reliability!M$23:M$50,MATCH($T202,Reliability!$C$23:$C$50,0)),0),0)*$H202*$X202*$Y202),$D202)*$R202","v":0},{"$f":"MIN((IFERROR(IF(AND($V202<=AI$1,$W202>=AI$1),INDEX(Reliability!N$23:N$50,MATCH($S202,Reliability!$C$23:$C$50,0)),0),0)*IF($T202=\"n/a\",$D202*$Y202,$G202)+IFERROR(IF(AND($V202<=AI$1,$W202>=AI$1),INDEX(Reliability!N$23:N$50,MATCH($T202,Reliability!$C$23:$C$50,0)),0),0)*$H202*$X202*$Y202),$D202)*$R202","v":0},{"$f":"MIN((IFERROR(IF(AND($V202<=AJ$1,$W202>=AJ$1),INDEX(Reliability!O$23:O$50,MATCH($S202,Reliability!$C$23:$C$50,0)),0),0)*IF($T202=\"n/a\",$D202*$Y202,$G202)+IFERROR(IF(AND($V202<=AJ$1,$W202>=AJ$1),INDEX(Reliability!O$23:O$50,MATCH($T202,Reliability!$C$23:$C$50,0)),0),0)*$H202*$X202*$Y202),$D202)*$R202","v":0},{"$f":"MIN((IFERROR(IF(AND($V202<=AK$1,$W202>=AK$1),INDEX(Reliability!P$23:P$50,MATCH($S202,Reliability!$C$23:$C$50,0)),0),0)*IF($T202=\"n/a\",$D202*$Y202,$G202)+IFERROR(IF(AND($V202<=AK$1,$W202>=AK$1),INDEX(Reliability!P$23:P$50,MATCH($T202,Reliability!$C$23:$C$50,0)),0),0)*$H202*$X202*$Y202),$D202)*$R202","v":0}]
[null,{"$f":"unique_contracts!B204","v":0},{"$f":"unique_contracts!D204","v":0},{"$f":"unique_contracts!J204","v":0},{"$f":"unique_contracts!M204","v":0},{"$f":"unique_contracts!N204","v":0},{"$f":"unique_contracts!P204","v":0},{"$f":"unique_contracts!R204","v":0},{"$f":"unique_contracts!V204","v":0},{"$f":"unique_contracts!AB204","v":0},{"$f":"unique_contracts!AM204","v":0},{"$f":"unique_contracts!AN204","v":0},{"$f":"unique_contracts!AO204","v":0},{"$f":"unique_contracts!AP204","v":0},{"$f":"unique_contracts!AQ204","v":0},{"$f":"unique_contracts!AR204","v":0},{"$f":"unique_contracts!BP204","v":0},0,{"$f":"IFERROR(IF(AND(I203>0,E203=\"NotHybrid\"),_xlfn.CONCAT(MAX(MIN(ROUNDDOWN(I203/D203,0),8),4),INDEX(resources!$G:$G,MATCH(B203,resources!$A:$A,0))),INDEX(resources!$G:$G,MATCH(B203,resources!$A:$A,0))),\"n/a\")","v":"n/a"},"n/a","n/a",0,0,1,1,{"$f":"MIN((IFERROR(IF(AND($V203<=Z$1,$W203>=Z$1),INDEX(Reliability!E$23:E$50,MATCH($S203,Reliability!$C$23:$C$50,0)),0),0)*IF($T203=\"n/a\",$D203*$Y203,$G203)+IFERROR(IF(AND($V203<=Z$1,$W203>=Z$1),INDEX(Reliability!E$23:E$50,MATCH($T203,Reliability!$C$23:$C$50,0)),0),0)*$H203*$X203*$Y203),$D203)*$R203","v":0},{"$f":"MIN((IFERROR(IF(AND($V203<=AA$1,$W203>=AA$1),INDEX(Reliability!F$23:F$50,MATCH($S203,Reliability!$C$23:$C$50,0)),0),0)*IF($T203=\"n/a\",$D203*$Y203,$G203)+IFERROR(IF(AND($V203<=AA$1,$W203>=AA$1),INDEX(Reliability!F$23:F$50,MATCH($T203,Reliability!$C$23:$C$50,0)),0),0)*$H203*$X203*$Y203),$D203)*$R203","v":0},{"$f":"MIN((IFERROR(IF(AND($V203<=AB$1,$W203>=AB$1),INDEX(Reliability!G$23:G$50,MATCH($S203,Reliability!$C$23:$C$50,0)),0),0)*IF($T203=\"n/a\",$D203*$Y203,$G203)+IFERROR(IF(AND($V203<=AB$1,$W203>=AB$1),INDEX(Reliability!G$23:G$50,MATCH($T203,Reliability!$C$23:$C$50,0)),0),0)*$H203*$X203*$Y203),$D203)*$R203","v":0},{"$f":"MIN((IFERROR(IF(AND($V203<=AC$1,$W203>=AC$1),INDEX(Reliability!H$23:H$50,MATCH($S203,Reliability!$C$23:$C$50,0)),0),0)*IF($T203=\"n/a\",$D203*$Y203,$G203)+IFERROR(IF(AND($V203<=AC$1,$W203>=AC$1),INDEX(Reliability!H$23:H$50,MATCH($T203,Reliability!$C$23:$C$50,0)),0),0)*$H203*$X203*$Y203),$D203)*$R203","v":0},{"$f":"MIN((IFERROR(IF(AND($V203<=AD$1,$W203>=AD$1),INDEX(Reliability!I$23:I$50,MATCH($S203,Reliability!$C$23:$C$50,0)),0),0)*IF($T203=\"n/a\",$D203*$Y203,$G203)+IFERROR(IF(AND($V203<=AD$1,$W203>=AD$1),INDEX(Reliability!I$23:I$50,MATCH($T203,Reliability!$C$23:$C$50,0)),0),0)*$H203*$X203*$Y203),$D203)*$R203","v":0},{"$f":"MIN((IFERROR(IF(AND($V203<=AE$1,$W203>=AE$1),INDEX(Reliability!J$23:J$50,MATCH($S203,Reliability!$C$23:$C$50,0)),0),0)*IF($T203=\"n/a\",$D203*$Y203,$G203)+IFERROR(IF(AND($V203<=AE$1,$W203>=AE$1),INDEX(Reliability!J$23:J$50,MATCH($T203,Reliability!$C$23:$C$50,0)),0),0)*$H203*$X203*$Y203),$D203)*$R203","v":0},{"$f":"MIN((IFERROR(IF(AND($V203<=AF$1,$W203>=AF$1),INDEX(Reliability!K$23:K$50,MATCH($S203,Reliability!$C$23:$C$50,0)),0),0)*IF($T203=\"n/a\",$D203*$Y203,$G203)+IFERROR(IF(AND($V203<=AF$1,$W203>=AF$1),INDEX(Reliability!K$23:K$50,MATCH($T203,Reliability!$C$23:$C$50,0)),0),0)*$H203*$X203*$Y203),$D203)*$R203","v":0},{"$f":"MIN((IFERROR(IF(AND($V203<=AG$1,$W203>=AG$1),INDEX(Reliability!L$23:L$50,MATCH($S203,Reliability!$C$23:$C$50,0)),0),0)*IF($T203=\"n/a\",$D203*$Y203,$G203)+IFERROR(IF(AND($V203<=AG$1,$W203>=AG$1),INDEX(Reliability!L$23:L$50,MATCH($T203,Reliability!$C$23:$C$50,0)),0),0)*$H203*$X203*$Y203),$D203)*$R203","v":0},{"$f":"MIN((IFERROR(IF(AND($V203<=AH$1,$W203>=AH$1),INDEX(Reliability!M$23:M$50,MATCH($S203,Reliability!$C$23:$C$50,0)),0),0)*IF($T203=\"n/a\",$D203*$Y203,$G203)+IFERROR(IF(AND($V203<=AH$1,$W203>=AH$1),INDEX(Reliability!M$23:M$50,MATCH($T203,Reliability!$C$23:$C$50,0)),0),0)*$H203*$X203*$Y203),$D203)*$R203","v":0},{"$f":"MIN((IFERROR(IF(AND($V203<=AI$1,$W203>=AI$1),INDEX(Reliability!N$23:N$50,MATCH($S203,Reliability!$C$23:$C$50,0)),0),0)*IF($T203=\"n/a\",$D203*$Y203,$G203)+IFERROR(IF(AND($V203<=AI$1,$W203>=AI$1),INDEX(Reliability!N$23:N$50,MATCH($T203,Reliability!$C$23:$C$50,0)),0),0)*$H203*$X203*$Y203),$D203)*$R203","v":0},{"$f":"MIN((IFERROR(IF(AND($V203<=AJ$1,$W203>=AJ$1),INDEX(Reliability!O$23:O$50,MATCH($S203,Reliability!$C$23:$C$50,0)),0),0)*IF($T203=\"n/a\",$D203*$Y203,$G203)+IFERROR(IF(AND($V203<=AJ$1,$W203>=AJ$1),INDEX(Reliability!O$23:O$50,MATCH($T203,Reliability!$C$23:$C$50,0)),0),0)*$H203*$X203*$Y203),$D203)*$R203","v":0},{"$f":"MIN((IFERROR(IF(AND($V203<=AK$1,$W203>=AK$1),INDEX(Reliability!P$23:P$50,MATCH($S203,Reliability!$C$23:$C$50,0)),0),0)*IF($T203=\"n/a\",$D203*$Y203,$G203)+IFERROR(IF(AND($V203<=AK$1,$W203>=AK$1),INDEX(Reliability!P$23:P$50,MATCH($T203,Reliability!$C$23:$C$50,0)),0),0)*$H203*$X203*$Y203),$D203)*$R203","v":0}]
[null,{"$f":"unique_contracts!B205","v":0},{"$f":"unique_contracts!D205","v":0},{"$f":"unique_contracts!J205","v":0},{"$f":"unique_contracts!M205","v":0},{"$f":"unique_contracts!N205","v":0},{"$f":"unique_contracts!P205","v":0},{"$f":"unique_contracts!R205","v":0},{"$f":"unique_contracts!V205","v":0},{"$f":"unique_contracts!AB205","v":0},{"$f":"unique_contracts!AM205","v":0},{"$f":"unique_contracts!AN205","v":0},{"$f":"unique_contracts!AO205","v":0},{"$f":"unique_contracts!AP205","v":0},{"$f":"unique_contracts!AQ205","v":0},{"$f":"unique_contracts!AR205","v":0},{"$f":"unique_contracts!BP205","v":0},0,{"$f":"IFERROR(IF(AND(I204>0,E204=\"NotHybrid\"),_xlfn.CONCAT(MAX(MIN(ROUNDDOWN(I204/D204,0),8),4),INDEX(resources!$G:$G,MATCH(B204,resources!$A:$A,0))),INDEX(resources!$G:$G,MATCH(B204,resources!$A:$A,0))),\"n/a\")","v":"n/a"},"n/a","n/a",0,0,1,1,{"$f":"MIN((IFERROR(IF(AND($V204<=Z$1,$W204>=Z$1),INDEX(Reliability!E$23:E$50,MATCH($S204,Reliability!$C$23:$C$50,0)),0),0)*IF($T204=\"n/a\",$D204*$Y204,$G204)+IFERROR(IF(AND($V204<=Z$1,$W204>=Z$1),INDEX(Reliability!E$23:E$50,MATCH($T204,Reliability!$C$23:$C$50,0)),0),0)*$H204*$X204*$Y204),$D204)*$R204","v":0},{"$f":"MIN((IFERROR(IF(AND($V204<=AA$1,$W204>=AA$1),INDEX(Reliability!F$23:F$50,MATCH($S204,Reliability!$C$23:$C$50,0)),0),0)*IF($T204=\"n/a\",$D204*$Y204,$G204)+IFERROR(IF(AND($V204<=AA$1,$W204>=AA$1),INDEX(Reliability!F$23:F$50,MATCH($T204,Reliability!$C$23:$C$50,0)),0),0)*$H204*$X204*$Y204),$D204)*$R204","v":0},{"$f":"MIN((IFERROR(IF(AND($V204<=AB$1,$W204>=AB$1),INDEX(Reliability!G$23:G$50,MATCH($S204,Reliability!$C$23:$C$50,0)),0),0)*IF($T204=\"n/a\",$D204*$Y204,$G204)+IFERROR(IF(AND($V204<=AB$1,$W204>=AB$1),INDEX(Reliability!G$23:G$50,MATCH($T204,Reliability!$C$23:$C$50,0)),0),0)*$H204*$X204*$Y204),$D204)*$R204","v":0},{"$f":"MIN((IFERROR(IF(AND($V204<=AC$1,$W204>=AC$1),INDEX(Reliability!H$23:H$50,MATCH($S204,Reliability!$C$23:$C$50,0)),0),0)*IF($T204=\"n/a\",$D204*$Y204,$G204)+IFERROR(IF(AND($V204<=AC$1,$W204>=AC$1),INDEX(Reliability!H$23:H$50,MATCH($T204,Reliability!$C$23:$C$50,0)),0),0)*$H204*$X204*$Y204),$D204)*$R204","v":0},{"$f":"MIN((IFERROR(IF(AND($V204<=AD$1,$W204>=AD$1),INDEX(Reliability!I$23:I$50,MATCH($S204,Reliability!$C$23:$C$50,0)),0),0)*IF($T204=\"n/a\",$D204*$Y204,$G204)+IFERROR(IF(AND($V204<=AD$1,$W204>=AD$1),INDEX(Reliability!I$23:I$50,MATCH($T204,Reliability!$C$23:$C$50,0)),0),0)*$H204*$X204*$Y204),$D204)*$R204","v":0},{"$f":"MIN((IFERROR(IF(AND($V204<=AE$1,$W204>=AE$1),INDEX(Reliability!J$23:J$50,MATCH($S204,Reliability!$C$23:$C$50,0)),0),0)*IF($T204=\"n/a\",$D204*$Y204,$G204)+IFERROR(IF(AND($V204<=AE$1,$W204>=AE$1),INDEX(Reliability!J$23:J$50,MATCH($T204,Reliability!$C$23:$C$50,0)),0),0)*$H204*$X204*$Y204),$D204)*$R204","v":0},{"$f":"MIN((IFERROR(IF(AND($V204<=AF$1,$W204>=AF$1),INDEX(Reliability!K$23:K$50,MATCH($S204,Reliability!$C$23:$C$50,0)),0),0)*IF($T204=\"n/a\",$D204*$Y204,$G204)+IFERROR(IF(AND($V204<=AF$1,$W204>=AF$1),INDEX(Reliability!K$23:K$50,MATCH($T204,Reliability!$C$23:$C$50,0)),0),0)*$H204*$X204*$Y204),$D204)*$R204","v":0},{"$f":"MIN((IFERROR(IF(AND($V204<=AG$1,$W204>=AG$1),INDEX(Reliability!L$23:L$50,MATCH($S204,Reliability!$C$23:$C$50,0)),0),0)*IF($T204=\"n/a\",$D204*$Y204,$G204)+IFERROR(IF(AND($V204<=AG$1,$W204>=AG$1),INDEX(Reliability!L$23:L$50,MATCH($T204,Reliability!$C$23:$C$50,0)),0),0)*$H204*$X204*$Y204),$D204)*$R204","v":0},{"$f":"MIN((IFERROR(IF(AND($V204<=AH$1,$W204>=AH$1),INDEX(Reliability!M$23:M$50,MATCH($S204,Reliability!$C$23:$C$50,0)),0),0)*IF($T204=\"n/a\",$D204*$Y204,$G204)+IFERROR(IF(AND($V204<=AH$1,$W204>=AH$1),INDEX(Reliability!M$23:M$50,MATCH($T204,Reliability!$C$23:$C$50,0)),0),0)*$H204*$X204*$Y204),$D204)*$R204","v":0},{"$f":"MIN((IFERROR(IF(AND($V204<=AI$1,$W204>=AI$1),INDEX(Reliability!N$23:N$50,MATCH($S204,Reliability!$C$23:$C$50,0)),0),0)*IF($T204=\"n/a\",$D204*$Y204,$G204)+IFERROR(IF(AND($V204<=AI$1,$W204>=AI$1),INDEX(Reliability!N$23:N$50,MATCH($T204,Reliability!$C$23:$C$50,0)),0),0)*$H204*$X204*$Y204),$D204)*$R204","v":0},{"$f":"MIN((IFERROR(IF(AND($V204<=AJ$1,$W204>=AJ$1),INDEX(Reliability!O$23:O$50,MATCH($S204,Reliability!$C$23:$C$50,0)),0),0)*IF($T204=\"n/a\",$D204*$Y204,$G204)+IFERROR(IF(AND($V204<=AJ$1,$W204>=AJ$1),INDEX(Reliability!O$23:O$50,MATCH($T204,Reliability!$C$23:$C$50,0)),0),0)*$H204*$X204*$Y204),$D204)*$R204","v":0},{"$f":"MIN((IFERROR(IF(AND($V204<=AK$1,$W204>=AK$1),INDEX(Reliability!P$23:P$50,MATCH($S204,Reliability!$C$23:$C$50,0)),0),0)*IF($T204=\"n/a\",$D204*$Y204,$G204)+IFERROR(IF(AND($V204<=AK$1,$W204>=AK$1),INDEX(Reliability!P$23:P$50,MATCH($T204,Reliability!$C$23:$C$50,0)),0),0)*$H204*$X204*$Y204),$D204)*$R204","v":0}]
[null,{"$f":"unique_contracts!B206","v":0},{"$f":"unique_contracts!D206","v":0},{"$f":"unique_contracts!J206","v":0},{"$f":"unique_contracts!M206","v":0},{"$f":"unique_contracts!N206","v":0},{"$f":"unique_contracts!P206","v":0},{"$f":"unique_contracts!R206","v":0},{"$f":"unique_contracts!V206","v":0},{"$f":"unique_contracts!AB206","v":0},{"$f":"unique_contracts!AM206","v":0},{"$f":"unique_contracts!AN206","v":0},{"$f":"unique_contracts!AO206","v":0},{"$f":"unique_contracts!AP206","v":0},{"$f":"unique_contracts!AQ206","v":0},{"$f":"unique_contracts!AR206","v":0},{"$f":"unique_contracts!BP206","v":0},0,{"$f":"IFERROR(IF(AND(I205>0,E205=\"NotHybrid\"),_xlfn.CONCAT(MAX(MIN(ROUNDDOWN(I205/D205,0),8),4),INDEX(resources!$G:$G,MATCH(B205,resources!$A:$A,0))),INDEX(resources!$G:$G,MATCH(B205,resources!$A:$A,0))),\"n/a\")","v":"n/a"},"n/a","n/a",0,0,1,1,{"$f":"MIN((IFERROR(IF(AND($V205<=Z$1,$W205>=Z$1),INDEX(Reliability!E$23:E$50,MATCH($S205,Reliability!$C$23:$C$50,0)),0),0)*IF($T205=\"n/a\",$D205*$Y205,$G205)+IFERROR(IF(AND($V205<=Z$1,$W205>=Z$1),INDEX(Reliability!E$23:E$50,MATCH($T205,Reliability!$C$23:$C$50,0)),0),0)*$H205*$X205*$Y205),$D205)*$R205","v":0},{"$f":"MIN((IFERROR(IF(AND($V205<=AA$1,$W205>=AA$1),INDEX(Reliability!F$23:F$50,MATCH($S205,Reliability!$C$23:$C$50,0)),0),0)*IF($T205=\"n/a\",$D205*$Y205,$G205)+IFERROR(IF(AND($V205<=AA$1,$W205>=AA$1),INDEX(Reliability!F$23:F$50,MATCH($T205,Reliability!$C$23:$C$50,0)),0),0)*$H205*$X205*$Y205),$D205)*$R205","v":0},{"$f":"MIN((IFERROR(IF(AND($V205<=AB$1,$W205>=AB$1),INDEX(Reliability!G$23:G$50,MATCH($S205,Reliability!$C$23:$C$50,0)),0),0)*IF($T205=\"n/a\",$D205*$Y205,$G205)+IFERROR(IF(AND($V205<=AB$1,$W205>=AB$1),INDEX(Reliability!G$23:G$50,MATCH($T205,Reliability!$C$23:$C$50,0)),0),0)*$H205*$X205*$Y205),$D205)*$R205","v":0},{"$f":"MIN((IFERROR(IF(AND($V205<=AC$1,$W205>=AC$1),INDEX(Reliability!H$23:H$50,MATCH($S205,Reliability!$C$23:$C$50,0)),0),0)*IF($T205=\"n/a\",$D205*$Y205,$G205)+IFERROR(IF(AND($V205<=AC$1,$W205>=AC$1),INDEX(Reliability!H$23:H$50,MATCH($T205,Reliability!$C$23:$C$50,0)),0),0)*$H205*$X205*$Y205),$D205)*$R205","v":0},{"$f":"MIN((IFERROR(IF(AND($V205<=AD$1,$W205>=AD$1),INDEX(Reliability!I$23:I$50,MATCH($S205,Reliability!$C$23:$C$50,0)),0),0)*IF($T205=\"n/a\",$D205*$Y205,$G205)+IFERROR(IF(AND($V205<=AD$1,$W205>=AD$1),INDEX(Reliability!I$23:I$50,MATCH($T205,Reliability!$C$23:$C$50,0)),0),0)*$H205*$X205*$Y205),$D205)*$R205","v":0},{"$f":"MIN((IFERROR(IF(AND($V205<=AE$1,$W205>=AE$1),INDEX(Reliability!J$23:J$50,MATCH($S205,Reliability!$C$23:$C$50,0)),0),0)*IF($T205=\"n/a\",$D205*$Y205,$G205)+IFERROR(IF(AND($V205<=AE$1,$W205>=AE$1),INDEX(Reliability!J$23:J$50,MATCH($T205,Reliability!$C$23:$C$50,0)),0),0)*$H205*$X205*$Y205),$D205)*$R205","v":0},{"$f":"MIN((IFERROR(IF(AND($V205<=AF$1,$W205>=AF$1),INDEX(Reliability!K$23:K$50,MATCH($S205,Reliability!$C$23:$C$50,0)),0),0)*IF($T205=\"n/a\",$D205*$Y205,$G205)+IFERROR(IF(AND($V205<=AF$1,$W205>=AF$1),INDEX(Reliability!K$23:K$50,MATCH($T205,Reliability!$C$23:$C$50,0)),0),0)*$H205*$X205*$Y205),$D205)*$R205","v":0},{"$f":"MIN((IFERROR(IF(AND($V205<=AG$1,$W205>=AG$1),INDEX(Reliability!L$23:L$50,MATCH($S205,Reliability!$C$23:$C$50,0)),0),0)*IF($T205=\"n/a\",$D205*$Y205,$G205)+IFERROR(IF(AND($V205<=AG$1,$W205>=AG$1),INDEX(Reliability!L$23:L$50,MATCH($T205,Reliability!$C$23:$C$50,0)),0),0)*$H205*$X205*$Y205),$D205)*$R205","v":0},{"$f":"MIN((IFERROR(IF(AND($V205<=AH$1,$W205>=AH$1),INDEX(Reliability!M$23:M$50,MATCH($S205,Reliability!$C$23:$C$50,0)),0),0)*IF($T205=\"n/a\",$D205*$Y205,$G205)+IFERROR(IF(AND($V205<=AH$1,$W205>=AH$1),INDEX(Reliability!M$23:M$50,MATCH($T205,Reliability!$C$23:$C$50,0)),0),0)*$H205*$X205*$Y205),$D205)*$R205","v":0},{"$f":"MIN((IFERROR(IF(AND($V205<=AI$1,$W205>=AI$1),INDEX(Reliability!N$23:N$50,MATCH($S205,Reliability!$C$23:$C$50,0)),0),0)*IF($T205=\"n/a\",$D205*$Y205,$G205)+IFERROR(IF(AND($V205<=AI$1,$W205>=AI$1),INDEX(Reliability!N$23:N$50,MATCH($T205,Reliability!$C$23:$C$50,0)),0),0)*$H205*$X205*$Y205),$D205)*$R205","v":0},{"$f":"MIN((IFERROR(IF(AND($V205<=AJ$1,$W205>=AJ$1),INDEX(Reliability!O$23:O$50,MATCH($S205,Reliability!$C$23:$C$50,0)),0),0)*IF($T205=\"n/a\",$D205*$Y205,$G205)+IFERROR(IF(AND($V205<=AJ$1,$W205>=AJ$1),INDEX(Reliability!O$23:O$50,MATCH($T205,Reliability!$C$23:$C$50,0)),0),0)*$H205*$X205*$Y205),$D205)*$R205","v":0},{"$f":"MIN((IFERROR(IF(AND($V205<=AK$1,$W205>=AK$1),INDEX(Reliability!P$23:P$50,MATCH($S205,Reliability!$C$23:$C$50,0)),0),0)*IF($T205=\"n/a\",$D205*$Y205,$G205)+IFERROR(IF(AND($V205<=AK$1,$W205>=AK$1),INDEX(Reliability!P$23:P$50,MATCH($T205,Reliability!$C$23:$C$50,0)),0),0)*$H205*$X205*$Y205),$D205)*$R205","v":0}]
[null,{"$f":"unique_contracts!B207","v":0},{"$f":"unique_contracts!D207","v":0},{"$f":"unique_contracts!J207","v":0},{"$f":"unique_contracts!M207","v":0},{"$f":"unique_contracts!N207","v":0},{"$f":"unique_contracts!P207","v":0},{"$f":"unique_contracts!R207","v":0},{"$f":"unique_contracts!V207","v":0},{"$f":"unique_contracts!AB207","v":0},{"$f":"unique_contracts!AM207","v":0},{"$f":"unique_contracts!AN207","v":0},{"$f":"unique_contracts!AO207","v":0},{"$f":"unique_contracts!AP207","v":0},{"$f":"unique_contracts!AQ207","v":0},{"$f":"unique_contracts!AR207","v":0},{"$f":"unique_contracts!BP207","v":0},0,{"$f":"IFERROR(IF(AND(I206>0,E206=\"NotHybrid\"),_xlfn.CONCAT(MAX(MIN(ROUNDDOWN(I206/D206,0),8),4),INDEX(resources!$G:$G,MATCH(B206,resources!$A:$A,0))),INDEX(resources!$G:$G,MATCH(B206,resources!$A:$A,0))),\"n/a\")","v":"n/a"},"n/a","n/a",0,0,1,1,{"$f":"MIN((IFERROR(IF(AND($V206<=Z$1,$W206>=Z$1),INDEX(Reliability!E$23:E$50,MATCH($S206,Reliability!$C$23:$C$50,0)),0),0)*IF($T206=\"n/a\",$D206*$Y206,$G206)+IFERROR(IF(AND($V206<=Z$1,$W206>=Z$1),INDEX(Reliability!E$23:E$50,MATCH($T206,Reliability!$C$23:$C$50,0)),0),0)*$H206*$X206*$Y206),$D206)*$R206","v":0},{"$f":"MIN((IFERROR(IF(AND($V206<=AA$1,$W206>=AA$1),INDEX(Reliability!F$23:F$50,MATCH($S206,Reliability!$C$23:$C$50,0)),0),0)*IF($T206=\"n/a\",$D206*$Y206,$G206)+IFERROR(IF(AND($V206<=AA$1,$W206>=AA$1),INDEX(Reliability!F$23:F$50,MATCH($T206,Reliability!$C$23:$C$50,0)),0),0)*$H206*$X206*$Y206),$D206)*$R206","v":0},{"$f":"MIN((IFERROR(IF(AND($V206<=AB$1,$W206>=AB$1),INDEX(Reliability!G$23:G$50,MATCH($S206,Reliability!$C$23:$C$50,0)),0),0)*IF($T206=\"n/a\",$D206*$Y206,$G206)+IFERROR(IF(AND($V206<=AB$1,$W206>=AB$1),INDEX(Reliability!G$23:G$50,MATCH($T206,Reliability!$C$23:$C$50,0)),0),0)*$H206*$X206*$Y206),$D206)*$R206","v":0},{"$f":"MIN((IFERROR(IF(AND($V206<=AC$1,$W206>=AC$1),INDEX(Reliability!H$23:H$50,MATCH($S206,Reliability!$C$23:$C$50,0)),0),0)*IF($T206=\"n/a\",$D206*$Y206,$G206)+IFERROR(IF(AND($V206<=AC$1,$W206>=AC$1),INDEX(Reliability!H$23:H$50,MATCH($T206,Reliability!$C$23:$C$50,0)),0),0)*$H206*$X206*$Y206),$D206)*$R206","v":0},{"$f":"MIN((IFERROR(IF(AND($V206<=AD$1,$W206>=AD$1),INDEX(Reliability!I$23:I$50,MATCH($S206,Reliability!$C$23:$C$50,0)),0),0)*IF($T206=\"n/a\",$D206*$Y206,$G206)+IFERROR(IF(AND($V206<=AD$1,$W206>=AD$1),INDEX(Reliability!I$23:I$50,MATCH($T206,Reliability!$C$23:$C$50,0)),0),0)*$H206*$X206*$Y206),$D206)*$R206","v":0},{"$f":"MIN((IFERROR(IF(AND($V206<=AE$1,$W206>=AE$1),INDEX(Reliability!J$23:J$50,MATCH($S206,Reliability!$C$23:$C$50,0)),0),0)*IF($T206=\"n/a\",$D206*$Y206,$G206)+IFERROR(IF(AND($V206<=AE$1,$W206>=AE$1),INDEX(Reliability!J$23:J$50,MATCH($T206,Reliability!$C$23:$C$50,0)),0),0)*$H206*$X206*$Y206),$D206)*$R206","v":0},{"$f":"MIN((IFERROR(IF(AND($V206<=AF$1,$W206>=AF$1),INDEX(Reliability!K$23:K$50,MATCH($S206,Reliability!$C$23:$C$50,0)),0),0)*IF($T206=\"n/a\",$D206*$Y206,$G206)+IFERROR(IF(AND($V206<=AF$1,$W206>=AF$1),INDEX(Reliability!K$23:K$50,MATCH($T206,Reliability!$C$23:$C$50,0)),0),0)*$H206*$X206*$Y206),$D206)*$R206","v":0},{"$f":"MIN((IFERROR(IF(AND($V206<=AG$1,$W206>=AG$1),INDEX(Reliability!L$23:L$50,MATCH($S206,Reliability!$C$23:$C$50,0)),0),0)*IF($T206=\"n/a\",$D206*$Y206,$G206)+IFERROR(IF(AND($V206<=AG$1,$W206>=AG$1),INDEX(Reliability!L$23:L$50,MATCH($T206,Reliability!$C$23:$C$50,0)),0),0)*$H206*$X206*$Y206),$D206)*$R206","v":0},{"$f":"MIN((IFERROR(IF(AND($V206<=AH$1,$W206>=AH$1),INDEX(Reliability!M$23:M$50,MATCH($S206,Reliability!$C$23:$C$50,0)),0),0)*IF($T206=\"n/a\",$D206*$Y206,$G206)+IFERROR(IF(AND($V206<=AH$1,$W206>=AH$1),INDEX(Reliability!M$23:M$50,MATCH($T206,Reliability!$C$23:$C$50,0)),0),0)*$H206*$X206*$Y206),$D206)*$R206","v":0},{"$f":"MIN((IFERROR(IF(AND($V206<=AI$1,$W206>=AI$1),INDEX(Reliability!N$23:N$50,MATCH($S206,Reliability!$C$23:$C$50,0)),0),0)*IF($T206=\"n/a\",$D206*$Y206,$G206)+IFERROR(IF(AND($V206<=AI$1,$W206>=AI$1),INDEX(Reliability!N$23:N$50,MATCH($T206,Reliability!$C$23:$C$50,0)),0),0)*$H206*$X206*$Y206),$D206)*$R206","v":0},{"$f":"MIN((IFERROR(IF(AND($V206<=AJ$1,$W206>=AJ$1),INDEX(Reliability!O$23:O$50,MATCH($S206,Reliability!$C$23:$C$50,0)),0),0)*IF($T206=\"n/a\",$D206*$Y206,$G206)+IFERROR(IF(AND($V206<=AJ$1,$W206>=AJ$1),INDEX(Reliability!O$23:O$50,MATCH($T206,Reliability!$C$23:$C$50,0)),0),0)*$H206*$X206*$Y206),$D206)*$R206","v":0},{"$f":"MIN((IFERROR(IF(AND($V206<=AK$1,$W206>=AK$1),INDEX(Reliability!P$23:P$50,MATCH($S206,Reliability!$C$23:$C$50,0)),0),0)*IF($T206=\"n/a\",$D206*$Y206,$G206)+IFERROR(IF(AND($V206<=AK$1,$W206>=AK$1),INDEX(Reliability!P$23:P$50,MATCH($T206,Reliability!$C$23:$C$50,0)),0),0)*$H206*$X206*$Y206),$D206)*$R206","v":0}]
[null,{"$f":"unique_contracts!B208","v":0},{"$f":"unique_contracts!D208","v":0},{"$f":"unique_contracts!J208","v":0},{"$f":"unique_contracts!M208","v":0},{"$f":"unique_contracts!N208","v":0},{"$f":"unique_contracts!P208","v":0},{"$f":"unique_contracts!R208","v":0},{"$f":"unique_contracts!V208","v":0},{"$f":"unique_contracts!AB208","v":0},{"$f":"unique_contracts!AM208","v":0},{"$f":"unique_contracts!AN208","v":0},{"$f":"unique_contracts!AO208","v":0},{"$f":"unique_contracts!AP208","v":0},{"$f":"unique_contracts!AQ208","v":0},{"$f":"unique_contracts!AR208","v":0},{"$f":"unique_contracts!BP208","v":0},0,{"$f":"IFERROR(IF(AND(I207>0,E207=\"NotHybrid\"),_xlfn.CONCAT(MAX(MIN(ROUNDDOWN(I207/D207,0),8),4),INDEX(resources!$G:$G,MATCH(B207,resources!$A:$A,0))),INDEX(resources!$G:$G,MATCH(B207,resources!$A:$A,0))),\"n/a\")","v":"n/a"},"n/a","n/a",0,0,1,1,{"$f":"MIN((IFERROR(IF(AND($V207<=Z$1,$W207>=Z$1),INDEX(Reliability!E$23:E$50,MATCH($S207,Reliability!$C$23:$C$50,0)),0),0)*IF($T207=\"n/a\",$D207*$Y207,$G207)+IFERROR(IF(AND($V207<=Z$1,$W207>=Z$1),INDEX(Reliability!E$23:E$50,MATCH($T207,Reliability!$C$23:$C$50,0)),0),0)*$H207*$X207*$Y207),$D207)*$R207","v":0},{"$f":"MIN((IFERROR(IF(AND($V207<=AA$1,$W207>=AA$1),INDEX(Reliability!F$23:F$50,MATCH($S207,Reliability!$C$23:$C$50,0)),0),0)*IF($T207=\"n/a\",$D207*$Y207,$G207)+IFERROR(IF(AND($V207<=AA$1,$W207>=AA$1),INDEX(Reliability!F$23:F$50,MATCH($T207,Reliability!$C$23:$C$50,0)),0),0)*$H207*$X207*$Y207),$D207)*$R207","v":0},{"$f":"MIN((IFERROR(IF(AND($V207<=AB$1,$W207>=AB$1),INDEX(Reliability!G$23:G$50,MATCH($S207,Reliability!$C$23:$C$50,0)),0),0)*IF($T207=\"n/a\",$D207*$Y207,$G207)+IFERROR(IF(AND($V207<=AB$1,$W207>=AB$1),INDEX(Reliability!G$23:G$50,MATCH($T207,Reliability!$C$23:$C$50,0)),0),0)*$H207*$X207*$Y207),$D207)*$R207","v":0},{"$f":"MIN((IFERROR(IF(AND($V207<=AC$1,$W207>=AC$1),INDEX(Reliability!H$23:H$50,MATCH($S207,Reliability!$C$23:$C$50,0)),0),0)*IF($T207=\"n/a\",$D207*$Y207,$G207)+IFERROR(IF(AND($V207<=AC$1,$W207>=AC$1),INDEX(Reliability!H$23:H$50,MATCH($T207,Reliability!$C$23:$C$50,0)),0),0)*$H207*$X207*$Y207),$D207)*$R207","v":0},{"$f":"MIN((IFERROR(IF(AND($V207<=AD$1,$W207>=AD$1),INDEX(Reliability!I$23:I$50,MATCH($S207,Reliability!$C$23:$C$50,0)),0),0)*IF($T207=\"n/a\",$D207*$Y207,$G207)+IFERROR(IF(AND($V207<=AD$1,$W207>=AD$1),INDEX(Reliability!I$23:I$50,MATCH($T207,Reliability!$C$23:$C$50,0)),0),0)*$H207*$X207*$Y207),$D207)*$R207","v":0},{"$f":"MIN((IFERROR(IF(AND($V207<=AE$1,$W207>=AE$1),INDEX(Reliability!J$23:J$50,MATCH($S207,Reliability!$C$23:$C$50,0)),0),0)*IF($T207=\"n/a\",$D207*$Y207,$G207)+IFERROR(IF(AND($V207<=AE$1,$W207>=AE$1),INDEX(Reliability!J$23:J$50,MATCH($T207,Reliability!$C$23:$C$50,0)),0),0)*$H207*$X207*$Y207),$D207)*$R207","v":0},{"$f":"MIN((IFERROR(IF(AND($V207<=AF$1,$W207>=AF$1),INDEX(Reliability!K$23:K$50,MATCH($S207,Reliability!$C$23:$C$50,0)),0),0)*IF($T207=\"n/a\",$D207*$Y207,$G207)+IFERROR(IF(AND($V207<=AF$1,$W207>=AF$1),INDEX(Reliability!K$23:K$50,MATCH($T207,Reliability!$C$23:$C$50,0)),0),0)*$H207*$X207*$Y207),$D207)*$R207","v":0},{"$f":"MIN((IFERROR(IF(AND($V207<=AG$1,$W207>=AG$1),INDEX(Reliability!L$23:L$50,MATCH($S207,Reliability!$C$23:$C$50,0)),0),0)*IF($T207=\"n/a\",$D207*$Y207,$G207)+IFERROR(IF(AND($V207<=AG$1,$W207>=AG$1),INDEX(Reliability!L$23:L$50,MATCH($T207,Reliability!$C$23:$C$50,0)),0),0)*$H207*$X207*$Y207),$D207)*$R207","v":0},{"$f":"MIN((IFERROR(IF(AND($V207<=AH$1,$W207>=AH$1),INDEX(Reliability!M$23:M$50,MATCH($S207,Reliability!$C$23:$C$50,0)),0),0)*IF($T207=\"n/a\",$D207*$Y207,$G207)+IFERROR(IF(AND($V207<=AH$1,$W207>=AH$1),INDEX(Reliability!M$23:M$50,MATCH($T207,Reliability!$C$23:$C$50,0)),0),0)*$H207*$X207*$Y207),$D207)*$R207","v":0},{"$f":"MIN((IFERROR(IF(AND($V207<=AI$1,$W207>=AI$1),INDEX(Reliability!N$23:N$50,MATCH($S207,Reliability!$C$23:$C$50,0)),0),0)*IF($T207=\"n/a\",$D207*$Y207,$G207)+IFERROR(IF(AND($V207<=AI$1,$W207>=AI$1),INDEX(Reliability!N$23:N$50,MATCH($T207,Reliability!$C$23:$C$50,0)),0),0)*$H207*$X207*$Y207),$D207)*$R207","v":0},{"$f":"MIN((IFERROR(IF(AND($V207<=AJ$1,$W207>=AJ$1),INDEX(Reliability!O$23:O$50,MATCH($S207,Reliability!$C$23:$C$50,0)),0),0)*IF($T207=\"n/a\",$D207*$Y207,$G207)+IFERROR(IF(AND($V207<=AJ$1,$W207>=AJ$1),INDEX(Reliability!O$23:O$50,MATCH($T207,Reliability!$C$23:$C$50,0)),0),0)*$H207*$X207*$Y207),$D207)*$R207","v":0},{"$f":"MIN((IFERROR(IF(AND($V207<=AK$1,$W207>=AK$1),INDEX(Reliability!P$23:P$50,MATCH($S207,Reliability!$C$23:$C$50,0)),0),0)*IF($T207=\"n/a\",$D207*$Y207,$G207)+IFERROR(IF(AND($V207<=AK$1,$W207>=AK$1),INDEX(Reliability!P$23:P$50,MATCH($T207,Reliability!$C$23:$C$50,0)),0),0)*$H207*$X207*$Y207),$D207)*$R207","v":0}]
[null,{"$f":"unique_contracts!B209","v":0},{"$f":"unique_contracts!D209","v":0},{"$f":"unique_contracts!J209","v":0},{"$f":"unique_contracts!M209","v":0},{"$f":"unique_contracts!N209","v":0},{"$f":"unique_contracts!P209","v":0},{"$f":"unique_contracts!R209","v":0},{"$f":"unique_contracts!V209","v":0},{"$f":"unique_contracts!AB209","v":0},{"$f":"unique_contracts!AM209","v":0},{"$f":"unique_contracts!AN209","v":0},{"$f":"unique_contracts!AO209","v":0},{"$f":"unique_contracts!AP209","v":0},{"$f":"unique_contracts!AQ209","v":0},{"$f":"unique_contracts!AR209","v":0},{"$f":"unique_contracts!BP209","v":0},0,{"$f":"IFERROR(IF(AND(I208>0,E208=\"NotHybrid\"),_xlfn.CONCAT(MAX(MIN(ROUNDDOWN(I208/D208,0),8),4),INDEX(resources!$G:$G,MATCH(B208,resources!$A:$A,0))),INDEX(resources!$G:$G,MATCH(B208,resources!$A:$A,0))),\"n/a\")","v":"n/a"},"n/a","n/a",0,0,1,1,{"$f":"MIN((IFERROR(IF(AND($V208<=Z$1,$W208>=Z$1),INDEX(Reliability!E$23:E$50,MATCH($S208,Reliability!$C$23:$C$50,0)),0),0)*IF($T208=\"n/a\",$D208*$Y208,$G208)+IFERROR(IF(AND($V208<=Z$1,$W208>=Z$1),INDEX(Reliability!E$23:E$50,MATCH($T208,Reliability!$C$23:$C$50,0)),0),0)*$H208*$X208*$Y208),$D208)*$R208","v":0},{"$f":"MIN((IFERROR(IF(AND($V208<=AA$1,$W208>=AA$1),INDEX(Reliability!F$23:F$50,MATCH($S208,Reliability!$C$23:$C$50,0)),0),0)*IF($T208=\"n/a\",$D208*$Y208,$G208)+IFERROR(IF(AND($V208<=AA$1,$W208>=AA$1),INDEX(Reliability!F$23:F$50,MATCH($T208,Reliability!$C$23:$C$50,0)),0),0)*$H208*$X208*$Y208),$D208)*$R208","v":0},{"$f":"MIN((IFERROR(IF(AND($V208<=AB$1,$W208>=AB$1),INDEX(Reliability!G$23:G$50,MATCH($S208,Reliability!$C$23:$C$50,0)),0),0)*IF($T208=\"n/a\",$D208*$Y208,$G208)+IFERROR(IF(AND($V208<=AB$1,$W208>=AB$1),INDEX(Reliability!G$23:G$50,MATCH($T208,Reliability!$C$23:$C$50,0)),0),0)*$H208*$X208*$Y208),$D208)*$R208","v":0},{"$f":"MIN((IFERROR(IF(AND($V208<=AC$1,$W208>=AC$1),INDEX(Reliability!H$23:H$50,MATCH($S208,Reliability!$C$23:$C$50,0)),0),0)*IF($T208=\"n/a\",$D208*$Y208,$G208)+IFERROR(IF(AND($V208<=AC$1,$W208>=AC$1),INDEX(Reliability!H$23:H$50,MATCH($T208,Reliability!$C$23:$C$50,0)),0),0)*$H208*$X208*$Y208),$D208)*$R208","v":0},{"$f":"MIN((IFERROR(IF(AND($V208<=AD$1,$W208>=AD$1),INDEX(Reliability!I$23:I$50,MATCH($S208,Reliability!$C$23:$C$50,0)),0),0)*IF($T208=\"n/a\",$D208*$Y208,$G208)+IFERROR(IF(AND($V208<=AD$1,$W208>=AD$1),INDEX(Reliability!I$23:I$50,MATCH($T208,Reliability!$C$23:$C$50,0)),0),0)*$H208*$X208*$Y208),$D208)*$R208","v":0},{"$f":"MIN((IFERROR(IF(AND($V208<=AE$1,$W208>=AE$1),INDEX(Reliability!J$23:J$50,MATCH($S208,Reliability!$C$23:$C$50,0)),0),0)*IF($T208=\"n/a\",$D208*$Y208,$G208)+IFERROR(IF(AND($V208<=AE$1,$W208>=AE$1),INDEX(Reliability!J$23:J$50,MATCH($T208,Reliability!$C$23:$C$50,0)),0),0)*$H208*$X208*$Y208),$D208)*$R208","v":0},{"$f":"MIN((IFERROR(IF(AND($V208<=AF$1,$W208>=AF$1),INDEX(Reliability!K$23:K$50,MATCH($S208,Reliability!$C$23:$C$50,0)),0),0)*IF($T208=\"n/a\",$D208*$Y208,$G208)+IFERROR(IF(AND($V208<=AF$1,$W208>=AF$1),INDEX(Reliability!K$23:K$50,MATCH($T208,Reliability!$C$23:$C$50,0)),0),0)*$H208*$X208*$Y208),$D208)*$R208","v":0},{"$f":"MIN((IFERROR(IF(AND($V208<=AG$1,$W208>=AG$1),INDEX(Reliability!L$23:L$50,MATCH($S208,Reliability!$C$23:$C$50,0)),0),0)*IF($T208=\"n/a\",$D208*$Y208,$G208)+IFERROR(IF(AND($V208<=AG$1,$W208>=AG$1),INDEX(Reliability!L$23:L$50,MATCH($T208,Reliability!$C$23:$C$50,0)),0),0)*$H208*$X208*$Y208),$D208)*$R208","v":0},{"$f":"MIN((IFERROR(IF(AND($V208<=AH$1,$W208>=AH$1),INDEX(Reliability!M$23:M$50,MATCH($S208,Reliability!$C$23:$C$50,0)),0),0)*IF($T208=\"n/a\",$D208*$Y208,$G208)+IFERROR(IF(AND($V208<=AH$1,$W208>=AH$1),INDEX(Reliability!M$23:M$50,MATCH($T208,Reliability!$C$23:$C$50,0)),0),0)*$H208*$X208*$Y208),$D208)*$R208","v":0},{"$f":"MIN((IFERROR(IF(AND($V208<=AI$1,$W208>=AI$1),INDEX(Reliability!N$23:N$50,MATCH($S208,Reliability!$C$23:$C$50,0)),0),0)*IF($T208=\"n/a\",$D208*$Y208,$G208)+IFERROR(IF(AND($V208<=AI$1,$W208>=AI$1),INDEX(Reliability!N$23:N$50,MATCH($T208,Reliability!$C$23:$C$50,0)),0),0)*$H208*$X208*$Y208),$D208)*$R208","v":0},{"$f":"MIN((IFERROR(IF(AND($V208<=AJ$1,$W208>=AJ$1),INDEX(Reliability!O$23:O$50,MATCH($S208,Reliability!$C$23:$C$50,0)),0),0)*IF($T208=\"n/a\",$D208*$Y208,$G208)+IFERROR(IF(AND($V208<=AJ$1,$W208>=AJ$1),INDEX(Reliability!O$23:O$50,MATCH($T208,Reliability!$C$23:$C$50,0)),0),0)*$H208*$X208*$Y208),$D208)*$R208","v":0},{"$f":"MIN((IFERROR(IF(AND($V208<=AK$1,$W208>=AK$1),INDEX(Reliability!P$23:P$50,MATCH($S208,Reliability!$C$23:$C$50,0)),0),0)*IF($T208=\"n/a\",$D208*$Y208,$G208)+IFERROR(IF(AND($V208<=AK$1,$W208>=AK$1),INDEX(Reliability!P$23:P$50,MATCH($T208,Reliability!$C$23:$C$50,0)),0),0)*$H208*$X208*$Y208),$D208)*$R208","v":0}]
[null,{"$f":"unique_contracts!B210","v":0},{"$f":"unique_contracts!D210","v":0},{"$f":"unique_contracts!J210","v":0},{"$f":"unique_contracts!M210","v":0},{"$f":"unique_contracts!N210","v":0},{"$f":"unique_contracts!P210","v":0},{"$f":"unique_contracts!R210","v":0},{"$f":"unique_contracts!V210","v":0},{"$f":"unique_contracts!AB210","v":0},{"$f":"unique_contracts!AM210","v":0},{"$f":"unique_contracts!AN210","v":0},{"$f":"unique_contracts!AO210","v":0},{"$f":"unique_contracts!AP210","v":0},{"$f":"unique_contracts!AQ210","v":0},{"$f":"unique_contracts!AR210","v":0},{"$f":"unique_contracts!BP210","v":0},0,{"$f":"IFERROR(IF(AND(I209>0,E209=\"NotHybrid\"),_xlfn.CONCAT(MAX(MIN(ROUNDDOWN(I209/D209,0),8),4),INDEX(resources!$G:$G,MATCH(B209,resources!$A:$A,0))),INDEX(resources!$G:$G,MATCH(B209,resources!$A:$A,0))),\"n/a\")","v":"n/a"},"n/a","n/a",0,0,1,1,{"$f":"MIN((IFERROR(IF(AND($V209<=Z$1,$W209>=Z$1),INDEX(Reliability!E$23:E$50,MATCH($S209,Reliability!$C$23:$C$50,0)),0),0)*IF($T209=\"n/a\",$D209*$Y209,$G209)+IFERROR(IF(AND($V209<=Z$1,$W209>=Z$1),INDEX(Reliability!E$23:E$50,MATCH($T209,Reliability!$C$23:$C$50,0)),0),0)*$H209*$X209*$Y209),$D209)*$R209","v":0},{"$f":"MIN((IFERROR(IF(AND($V209<=AA$1,$W209>=AA$1),INDEX(Reliability!F$23:F$50,MATCH($S209,Reliability!$C$23:$C$50,0)),0),0)*IF($T209=\"n/a\",$D209*$Y209,$G209)+IFERROR(IF(AND($V209<=AA$1,$W209>=AA$1),INDEX(Reliability!F$23:F$50,MATCH($T209,Reliability!$C$23:$C$50,0)),0),0)*$H209*$X209*$Y209),$D209)*$R209","v":0},{"$f":"MIN((IFERROR(IF(AND($V209<=AB$1,$W209>=AB$1),INDEX(Reliability!G$23:G$50,MATCH($S209,Reliability!$C$23:$C$50,0)),0),0)*IF($T209=\"n/a\",$D209*$Y209,$G209)+IFERROR(IF(AND($V209<=AB$1,$W209>=AB$1),INDEX(Reliability!G$23:G$50,MATCH($T209,Reliability!$C$23:$C$50,0)),0),0)*$H209*$X209*$Y209),$D209)*$R209","v":0},{"$f":"MIN((IFERROR(IF(AND($V209<=AC$1,$W209>=AC$1),INDEX(Reliability!H$23:H$50,MATCH($S209,Reliability!$C$23:$C$50,0)),0),0)*IF($T209=\"n/a\",$D209*$Y209,$G209)+IFERROR(IF(AND($V209<=AC$1,$W209>=AC$1),INDEX(Reliability!H$23:H$50,MATCH($T209,Reliability!$C$23:$C$50,0)),0),0)*$H209*$X209*$Y209),$D209)*$R209","v":0},{"$f":"MIN((IFERROR(IF(AND($V209<=AD$1,$W209>=AD$1),INDEX(Reliability!I$23:I$50,MATCH($S209,Reliability!$C$23:$C$50,0)),0),0)*IF($T209=\"n/a\",$D209*$Y209,$G209)+IFERROR(IF(AND($V209<=AD$1,$W209>=AD$1),INDEX(Reliability!I$23:I$50,MATCH($T209,Reliability!$C$23:$C$50,0)),0),0)*$H209*$X209*$Y209),$D209)*$R209","v":0},{"$f":"MIN((IFERROR(IF(AND($V209<=AE$1,$W209>=AE$1),INDEX(Reliability!J$23:J$50,MATCH($S209,Reliability!$C$23:$C$50,0)),0),0)*IF($T209=\"n/a\",$D209*$Y209,$G209)+IFERROR(IF(AND($V209<=AE$1,$W209>=AE$1),INDEX(Reliability!J$23:J$50,MATCH($T209,Reliability!$C$23:$C$50,0)),0),0)*$H209*$X209*$Y209),$D209)*$R209","v":0},{"$f":"MIN((IFERROR(IF(AND($V209<=AF$1,$W209>=AF$1),INDEX(Reliability!K$23:K$50,MATCH($S209,Reliability!$C$23:$C$50,0)),0),0)*IF($T209=\"n/a\",$D209*$Y209,$G209)+IFERROR(IF(AND($V209<=AF$1,$W209>=AF$1),INDEX(Reliability!K$23:K$50,MATCH($T209,Reliability!$C$23:$C$50,0)),0),0)*$H209*$X209*$Y209),$D209)*$R209","v":0},{"$f":"MIN((IFERROR(IF(AND($V209<=AG$1,$W209>=AG$1),INDEX(Reliability!L$23:L$50,MATCH($S209,Reliability!$C$23:$C$50,0)),0),0)*IF($T209=\"n/a\",$D209*$Y209,$G209)+IFERROR(IF(AND($V209<=AG$1,$W209>=AG$1),INDEX(Reliability!L$23:L$50,MATCH($T209,Reliability!$C$23:$C$50,0)),0),0)*$H209*$X209*$Y209),$D209)*$R209","v":0},{"$f":"MIN((IFERROR(IF(AND($V209<=AH$1,$W209>=AH$1),INDEX(Reliability!M$23:M$50,MATCH($S209,Reliability!$C$23:$C$50,0)),0),0)*IF($T209=\"n/a\",$D209*$Y209,$G209)+IFERROR(IF(AND($V209<=AH$1,$W209>=AH$1),INDEX(Reliability!M$23:M$50,MATCH($T209,Reliability!$C$23:$C$50,0)),0),0)*$H209*$X209*$Y209),$D209)*$R209","v":0},{"$f":"MIN((IFERROR(IF(AND($V209<=AI$1,$W209>=AI$1),INDEX(Reliability!N$23:N$50,MATCH($S209,Reliability!$C$23:$C$50,0)),0),0)*IF($T209=\"n/a\",$D209*$Y209,$G209)+IFERROR(IF(AND($V209<=AI$1,$W209>=AI$1),INDEX(Reliability!N$23:N$50,MATCH($T209,Reliability!$C$23:$C$50,0)),0),0)*$H209*$X209*$Y209),$D209)*$R209","v":0},{"$f":"MIN((IFERROR(IF(AND($V209<=AJ$1,$W209>=AJ$1),INDEX(Reliability!O$23:O$50,MATCH($S209,Reliability!$C$23:$C$50,0)),0),0)*IF($T209=\"n/a\",$D209*$Y209,$G209)+IFERROR(IF(AND($V209<=AJ$1,$W209>=AJ$1),INDEX(Reliability!O$23:O$50,MATCH($T209,Reliability!$C$23:$C$50,0)),0),0)*$H209*$X209*$Y209),$D209)*$R209","v":0},{"$f":"MIN((IFERROR(IF(AND($V209<=AK$1,$W209>=AK$1),INDEX(Reliability!P$23:P$50,MATCH($S209,Reliability!$C$23:$C$50,0)),0),0)*IF($T209=\"n/a\",$D209*$Y209,$G209)+IFERROR(IF(AND($V209<=AK$1,$W209>=AK$1),INDEX(Reliability!P$23:P$50,MATCH($T209,Reliability!$C$23:$C$50,0)),0),0)*$H209*$X209*$Y209),$D209)*$R209","v":0}]
[null,{"$f":"unique_contracts!B211","v":0},{"$f":"unique_contracts!D211","v":0},{"$f":"unique_contracts!J211","v":0},{"$f":"unique_contracts!M211","v":0},{"$f":"unique_contracts!N211","v":0},{"$f":"unique_contracts!P211","v":0},{"$f":"unique_contracts!R211","v":0},{"$f":"unique_contracts!V211","v":0},{"$f":"unique_contracts!AB211","v":0},{"$f":"unique_contracts!AM211","v":0},{"$f":"unique_contracts!AN211","v":0},{"$f":"unique_contracts!AO211","v":0},{"$f":"unique_contracts!AP211","v":0},{"$f":"unique_contracts!AQ211","v":0},{"$f":"unique_contracts!AR211","v":0},{"$f":"unique_contracts!BP211","v":0},0,{"$f":"IFERROR(IF(AND(I210>0,E210=\"NotHybrid\"),_xlfn.CONCAT(MAX(MIN(ROUNDDOWN(I210/D210,0),8),4),INDEX(resources!$G:$G,MATCH(B210,resources!$A:$A,0))),INDEX(resources!$G:$G,MATCH(B210,resources!$A:$A,0))),\"n/a\")","v":"n/a"},"n/a","n/a",0,0,1,1,{"$f":"MIN((IFERROR(IF(AND($V210<=Z$1,$W210>=Z$1),INDEX(Reliability!E$23:E$50,MATCH($S210,Reliability!$C$23:$C$50,0)),0),0)*IF($T210=\"n/a\",$D210*$Y210,$G210)+IFERROR(IF(AND($V210<=Z$1,$W210>=Z$1),INDEX(Reliability!E$23:E$50,MATCH($T210,Reliability!$C$23:$C$50,0)),0),0)*$H210*$X210*$Y210),$D210)*$R210","v":0},{"$f":"MIN((IFERROR(IF(AND($V210<=AA$1,$W210>=AA$1),INDEX(Reliability!F$23:F$50,MATCH($S210,Reliability!$C$23:$C$50,0)),0),0)*IF($T210=\"n/a\",$D210*$Y210,$G210)+IFERROR(IF(AND($V210<=AA$1,$W210>=AA$1),INDEX(Reliability!F$23:F$50,MATCH($T210,Reliability!$C$23:$C$50,0)),0),0)*$H210*$X210*$Y210),$D210)*$R210","v":0},{"$f":"MIN((IFERROR(IF(AND($V210<=AB$1,$W210>=AB$1),INDEX(Reliability!G$23:G$50,MATCH($S210,Reliability!$C$23:$C$50,0)),0),0)*IF($T210=\"n/a\",$D210*$Y210,$G210)+IFERROR(IF(AND($V210<=AB$1,$W210>=AB$1),INDEX(Reliability!G$23:G$50,MATCH($T210,Reliability!$C$23:$C$50,0)),0),0)*$H210*$X210*$Y210),$D210)*$R210","v":0},{"$f":"MIN((IFERROR(IF(AND($V210<=AC$1,$W210>=AC$1),INDEX(Reliability!H$23:H$50,MATCH($S210,Reliability!$C$23:$C$50,0)),0),0)*IF($T210=\"n/a\",$D210*$Y210,$G210)+IFERROR(IF(AND($V210<=AC$1,$W210>=AC$1),INDEX(Reliability!H$23:H$50,MATCH($T210,Reliability!$C$23:$C$50,0)),0),0)*$H210*$X210*$Y210),$D210)*$R210","v":0},{"$f":"MIN((IFERROR(IF(AND($V210<=AD$1,$W210>=AD$1),INDEX(Reliability!I$23:I$50,MATCH($S210,Reliability!$C$23:$C$50,0)),0),0)*IF($T210=\"n/a\",$D210*$Y210,$G210)+IFERROR(IF(AND($V210<=AD$1,$W210>=AD$1),INDEX(Reliability!I$23:I$50,MATCH($T210,Reliability!$C$23:$C$50,0)),0),0)*$H210*$X210*$Y210),$D210)*$R210","v":0},{"$f":"MIN((IFERROR(IF(AND($V210<=AE$1,$W210>=AE$1),INDEX(Reliability!J$23:J$50,MATCH($S210,Reliability!$C$23:$C$50,0)),0),0)*IF($T210=\"n/a\",$D210*$Y210,$G210)+IFERROR(IF(AND($V210<=AE$1,$W210>=AE$1),INDEX(Reliability!J$23:J$50,MATCH($T210,Reliability!$C$23:$C$50,0)),0),0)*$H210*$X210*$Y210),$D210)*$R210","v":0},{"$f":"MIN((IFERROR(IF(AND($V210<=AF$1,$W210>=AF$1),INDEX(Reliability!K$23:K$50,MATCH($S210,Reliability!$C$23:$C$50,0)),0),0)*IF($T210=\"n/a\",$D210*$Y210,$G210)+IFERROR(IF(AND($V210<=AF$1,$W210>=AF$1),INDEX(Reliability!K$23:K$50,MATCH($T210,Reliability!$C$23:$C$50,0)),0),0)*$H210*$X210*$Y210),$D210)*$R210","v":0},{"$f":"MIN((IFERROR(IF(AND($V210<=AG$1,$W210>=AG$1),INDEX(Reliability!L$23:L$50,MATCH($S210,Reliability!$C$23:$C$50,0)),0),0)*IF($T210=\"n/a\",$D210*$Y210,$G210)+IFERROR(IF(AND($V210<=AG$1,$W210>=AG$1),INDEX(Reliability!L$23:L$50,MATCH($T210,Reliability!$C$23:$C$50,0)),0),0)*$H210*$X210*$Y210),$D210)*$R210","v":0},{"$f":"MIN((IFERROR(IF(AND($V210<=AH$1,$W210>=AH$1),INDEX(Reliability!M$23:M$50,MATCH($S210,Reliability!$C$23:$C$50,0)),0),0)*IF($T210=\"n/a\",$D210*$Y210,$G210)+IFERROR(IF(AND($V210<=AH$1,$W210>=AH$1),INDEX(Reliability!M$23:M$50,MATCH($T210,Reliability!$C$23:$C$50,0)),0),0)*$H210*$X210*$Y210),$D210)*$R210","v":0},{"$f":"MIN((IFERROR(IF(AND($V210<=AI$1,$W210>=AI$1),INDEX(Reliability!N$23:N$50,MATCH($S210,Reliability!$C$23:$C$50,0)),0),0)*IF($T210=\"n/a\",$D210*$Y210,$G210)+IFERROR(IF(AND($V210<=AI$1,$W210>=AI$1),INDEX(Reliability!N$23:N$50,MATCH($T210,Reliability!$C$23:$C$50,0)),0),0)*$H210*$X210*$Y210),$D210)*$R210","v":0},{"$f":"MIN((IFERROR(IF(AND($V210<=AJ$1,$W210>=AJ$1),INDEX(Reliability!O$23:O$50,MATCH($S210,Reliability!$C$23:$C$50,0)),0),0)*IF($T210=\"n/a\",$D210*$Y210,$G210)+IFERROR(IF(AND($V210<=AJ$1,$W210>=AJ$1),INDEX(Reliability!O$23:O$50,MATCH($T210,Reliability!$C$23:$C$50,0)),0),0)*$H210*$X210*$Y210),$D210)*$R210","v":0},{"$f":"MIN((IFERROR(IF(AND($V210<=AK$1,$W210>=AK$1),INDEX(Reliability!P$23:P$50,MATCH($S210,Reliability!$C$23:$C$50,0)),0),0)*IF($T210=\"n/a\",$D210*$Y210,$G210)+IFERROR(IF(AND($V210<=AK$1,$W210>=AK$1),INDEX(Reliability!P$23:P$50,MATCH($T210,Reliability!$C$23:$C$50,0)),0),0)*$H210*$X210*$Y210),$D210)*$R210","v":0}]
[null,{"$f":"unique_contracts!B212","v":0},{"$f":"unique_contracts!D212","v":0},{"$f":"unique_contracts!J212","v":0},{"$f":"unique_contracts!M212","v":0},{"$f":"unique_contracts!N212","v":0},{"$f":"unique_contracts!P212","v":0},{"$f":"unique_contracts!R212","v":0},{"$f":"unique_contracts!V212","v":0},{"$f":"unique_contracts!AB212","v":0},{"$f":"unique_contracts!AM212","v":0},{"$f":"unique_contracts!AN212","v":0},{"$f":"unique_contracts!AO212","v":0},{"$f":"unique_contracts!AP212","v":0},{"$f":"unique_contracts!AQ212","v":0},{"$f":"unique_contracts!AR212","v":0},{"$f":"unique_contracts!BP212","v":0},0,{"$f":"IFERROR(IF(AND(I211>0,E211=\"NotHybrid\"),_xlfn.CONCAT(MAX(MIN(ROUNDDOWN(I211/D211,0),8),4),INDEX(resources!$G:$G,MATCH(B211,resources!$A:$A,0))),INDEX(resources!$G:$G,MATCH(B211,resources!$A:$A,0))),\"n/a\")","v":"n/a"},"n/a","n/a",0,0,1,1,{"$f":"MIN((IFERROR(IF(AND($V211<=Z$1,$W211>=Z$1),INDEX(Reliability!E$23:E$50,MATCH($S211,Reliability!$C$23:$C$50,0)),0),0)*IF($T211=\"n/a\",$D211*$Y211,$G211)+IFERROR(IF(AND($V211<=Z$1,$W211>=Z$1),INDEX(Reliability!E$23:E$50,MATCH($T211,Reliability!$C$23:$C$50,0)),0),0)*$H211*$X211*$Y211),$D211)*$R211","v":0},{"$f":"MIN((IFERROR(IF(AND($V211<=AA$1,$W211>=AA$1),INDEX(Reliability!F$23:F$50,MATCH($S211,Reliability!$C$23:$C$50,0)),0),0)*IF($T211=\"n/a\",$D211*$Y211,$G211)+IFERROR(IF(AND($V211<=AA$1,$W211>=AA$1),INDEX(Reliability!F$23:F$50,MATCH($T211,Reliability!$C$23:$C$50,0)),0),0)*$H211*$X211*$Y211),$D211)*$R211","v":0},{"$f":"MIN((IFERROR(IF(AND($V211<=AB$1,$W211>=AB$1),INDEX(Reliability!G$23:G$50,MATCH($S211,Reliability!$C$23:$C$50,0)),0),0)*IF($T211=\"n/a\",$D211*$Y211,$G211)+IFERROR(IF(AND($V211<=AB$1,$W211>=AB$1),INDEX(Reliability!G$23:G$50,MATCH($T211,Reliability!$C$23:$C$50,0)),0),0)*$H211*$X211*$Y211),$D211)*$R211","v":0},{"$f":"MIN((IFERROR(IF(AND($V211<=AC$1,$W211>=AC$1),INDEX(Reliability!H$23:H$50,MATCH($S211,Reliability!$C$23:$C$50,0)),0),0)*IF($T211=\"n/a\",$D211*$Y211,$G211)+IFERROR(IF(AND($V211<=AC$1,$W211>=AC$1),INDEX(Reliability!H$23:H$50,MATCH($T211,Reliability!$C$23:$C$50,0)),0),0)*$H211*$X211*$Y211),$D211)*$R211","v":0},{"$f":"MIN((IFERROR(IF(AND($V211<=AD$1,$W211>=AD$1),INDEX(Reliability!I$23:I$50,MATCH($S211,Reliability!$C$23:$C$50,0)),0),0)*IF($T211=\"n/a\",$D211*$Y211,$G211)+IFERROR(IF(AND($V211<=AD$1,$W211>=AD$1),INDEX(Reliability!I$23:I$50,MATCH($T211,Reliability!$C$23:$C$50,0)),0),0)*$H211*$X211*$Y211),$D211)*$R211","v":0},{"$f":"MIN((IFERROR(IF(AND($V211<=AE$1,$W211>=AE$1),INDEX(Reliability!J$23:J$50,MATCH($S211,Reliability!$C$23:$C$50,0)),0),0)*IF($T211=\"n/a\",$D211*$Y211,$G211)+IFERROR(IF(AND($V211<=AE$1,$W211>=AE$1),INDEX(Reliability!J$23:J$50,MATCH($T211,Reliability!$C$23:$C$50,0)),0),0)*$H211*$X211*$Y211),$D211)*$R211","v":0},{"$f":"MIN((IFERROR(IF(AND($V211<=AF$1,$W211>=AF$1),INDEX(Reliability!K$23:K$50,MATCH($S211,Reliability!$C$23:$C$50,0)),0),0)*IF($T211=\"n/a\",$D211*$Y211,$G211)+IFERROR(IF(AND($V211<=AF$1,$W211>=AF$1),INDEX(Reliability!K$23:K$50,MATCH($T211,Reliability!$C$23:$C$50,0)),0),0)*$H211*$X211*$Y211),$D211)*$R211","v":0},{"$f":"MIN((IFERROR(IF(AND($V211<=AG$1,$W211>=AG$1),INDEX(Reliability!L$23:L$50,MATCH($S211,Reliability!$C$23:$C$50,0)),0),0)*IF($T211=\"n/a\",$D211*$Y211,$G211)+IFERROR(IF(AND($V211<=AG$1,$W211>=AG$1),INDEX(Reliability!L$23:L$50,MATCH($T211,Reliability!$C$23:$C$50,0)),0),0)*$H211*$X211*$Y211),$D211)*$R211","v":0},{"$f":"MIN((IFERROR(IF(AND($V211<=AH$1,$W211>=AH$1),INDEX(Reliability!M$23:M$50,MATCH($S211,Reliability!$C$23:$C$50,0)),0),0)*IF($T211=\"n/a\",$D211*$Y211,$G211)+IFERROR(IF(AND($V211<=AH$1,$W211>=AH$1),INDEX(Reliability!M$23:M$50,MATCH($T211,Reliability!$C$23:$C$50,0)),0),0)*$H211*$X211*$Y211),$D211)*$R211","v":0},{"$f":"MIN((IFERROR(IF(AND($V211<=AI$1,$W211>=AI$1),INDEX(Reliability!N$23:N$50,MATCH($S211,Reliability!$C$23:$C$50,0)),0),0)*IF($T211=\"n/a\",$D211*$Y211,$G211)+IFERROR(IF(AND($V211<=AI$1,$W211>=AI$1),INDEX(Reliability!N$23:N$50,MATCH($T211,Reliability!$C$23:$C$50,0)),0),0)*$H211*$X211*$Y211),$D211)*$R211","v":0},{"$f":"MIN((IFERROR(IF(AND($V211<=AJ$1,$W211>=AJ$1),INDEX(Reliability!O$23:O$50,MATCH($S211,Reliability!$C$23:$C$50,0)),0),0)*IF($T211=\"n/a\",$D211*$Y211,$G211)+IFERROR(IF(AND($V211<=AJ$1,$W211>=AJ$1),INDEX(Reliability!O$23:O$50,MATCH($T211,Reliability!$C$23:$C$50,0)),0),0)*$H211*$X211*$Y211),$D211)*$R211","v":0},{"$f":"MIN((IFERROR(IF(AND($V211<=AK$1,$W211>=AK$1),INDEX(Reliability!P$23:P$50,MATCH($S211,Reliability!$C$23:$C$50,0)),0),0)*IF($T211=\"n/a\",$D211*$Y211,$G211)+IFERROR(IF(AND($V211<=AK$1,$W211>=AK$1),INDEX(Reliability!P$23:P$50,MATCH($T211,Reliability!$C$23:$C$50,0)),0),0)*$H211*$X211*$Y211),$D211)*$R211","v":0}]
[null,{"$f":"unique_contracts!B213","v":0},{"$f":"unique_contracts!D213","v":0},{"$f":"unique_contracts!J213","v":0},{"$f":"unique_contracts!M213","v":0},{"$f":"unique_contracts!N213","v":0},{"$f":"unique_contracts!P213","v":0},{"$f":"unique_contracts!R213","v":0},{"$f":"unique_contracts!V213","v":0},{"$f":"unique_contracts!AB213","v":0},{"$f":"unique_contracts!AM213","v":0},{"$f":"unique_contracts!AN213","v":0},{"$f":"unique_contracts!AO213","v":0},{"$f":"unique_contracts!AP213","v":0},{"$f":"unique_contracts!AQ213","v":0},{"$f":"unique_contracts!AR213","v":0},{"$f":"unique_contracts!BP213","v":0},0,{"$f":"IFERROR(IF(AND(I212>0,E212=\"NotHybrid\"),_xlfn.CONCAT(MAX(MIN(ROUNDDOWN(I212/D212,0),8),4),INDEX(resources!$G:$G,MATCH(B212,resources!$A:$A,0))),INDEX(resources!$G:$G,MATCH(B212,resources!$A:$A,0))),\"n/a\")","v":"n/a"},"n/a","n/a",0,0,1,1,{"$f":"MIN((IFERROR(IF(AND($V212<=Z$1,$W212>=Z$1),INDEX(Reliability!E$23:E$50,MATCH($S212,Reliability!$C$23:$C$50,0)),0),0)*IF($T212=\"n/a\",$D212*$Y212,$G212)+IFERROR(IF(AND($V212<=Z$1,$W212>=Z$1),INDEX(Reliability!E$23:E$50,MATCH($T212,Reliability!$C$23:$C$50,0)),0),0)*$H212*$X212*$Y212),$D212)*$R212","v":0},{"$f":"MIN((IFERROR(IF(AND($V212<=AA$1,$W212>=AA$1),INDEX(Reliability!F$23:F$50,MATCH($S212,Reliability!$C$23:$C$50,0)),0),0)*IF($T212=\"n/a\",$D212*$Y212,$G212)+IFERROR(IF(AND($V212<=AA$1,$W212>=AA$1),INDEX(Reliability!F$23:F$50,MATCH($T212,Reliability!$C$23:$C$50,0)),0),0)*$H212*$X212*$Y212),$D212)*$R212","v":0},{"$f":"MIN((IFERROR(IF(AND($V212<=AB$1,$W212>=AB$1),INDEX(Reliability!G$23:G$50,MATCH($S212,Reliability!$C$23:$C$50,0)),0),0)*IF($T212=\"n/a\",$D212*$Y212,$G212)+IFERROR(IF(AND($V212<=AB$1,$W212>=AB$1),INDEX(Reliability!G$23:G$50,MATCH($T212,Reliability!$C$23:$C$50,0)),0),0)*$H212*$X212*$Y212),$D212)*$R212","v":0},{"$f":"MIN((IFERROR(IF(AND($V212<=AC$1,$W212>=AC$1),INDEX(Reliability!H$23:H$50,MATCH($S212,Reliability!$C$23:$C$50,0)),0),0)*IF($T212=\"n/a\",$D212*$Y212,$G212)+IFERROR(IF(AND($V212<=AC$1,$W212>=AC$1),INDEX(Reliability!H$23:H$50,MATCH($T212,Reliability!$C$23:$C$50,0)),0),0)*$H212*$X212*$Y212),$D212)*$R212","v":0},{"$f":"MIN((IFERROR(IF(AND($V212<=AD$1,$W212>=AD$1),INDEX(Reliability!I$23:I$50,MATCH($S212,Reliability!$C$23:$C$50,0)),0),0)*IF($T212=\"n/a\",$D212*$Y212,$G212)+IFERROR(IF(AND($V212<=AD$1,$W212>=AD$1),INDEX(Reliability!I$23:I$50,MATCH($T212,Reliability!$C$23:$C$50,0)),0),0)*$H212*$X212*$Y212),$D212)*$R212","v":0},{"$f":"MIN((IFERROR(IF(AND($V212<=AE$1,$W212>=AE$1),INDEX(Reliability!J$23:J$50,MATCH($S212,Reliability!$C$23:$C$50,0)),0),0)*IF($T212=\"n/a\",$D212*$Y212,$G212)+IFERROR(IF(AND($V212<=AE$1,$W212>=AE$1),INDEX(Reliability!J$23:J$50,MATCH($T212,Reliability!$C$23:$C$50,0)),0),0)*$H212*$X212*$Y212),$D212)*$R212","v":0},{"$f":"MIN((IFERROR(IF(AND($V212<=AF$1,$W212>=AF$1),INDEX(Reliability!K$23:K$50,MATCH($S212,Reliability!$C$23:$C$50,0)),0),0)*IF($T212=\"n/a\",$D212*$Y212,$G212)+IFERROR(IF(AND($V212<=AF$1,$W212>=AF$1),INDEX(Reliability!K$23:K$50,MATCH($T212,Reliability!$C$23:$C$50,0)),0),0)*$H212*$X212*$Y212),$D212)*$R212","v":0},{"$f":"MIN((IFERROR(IF(AND($V212<=AG$1,$W212>=AG$1),INDEX(Reliability!L$23:L$50,MATCH($S212,Reliability!$C$23:$C$50,0)),0),0)*IF($T212=\"n/a\",$D212*$Y212,$G212)+IFERROR(IF(AND($V212<=AG$1,$W212>=AG$1),INDEX(Reliability!L$23:L$50,MATCH($T212,Reliability!$C$23:$C$50,0)),0),0)*$H212*$X212*$Y212),$D212)*$R212","v":0},{"$f":"MIN((IFERROR(IF(AND($V212<=AH$1,$W212>=AH$1),INDEX(Reliability!M$23:M$50,MATCH($S212,Reliability!$C$23:$C$50,0)),0),0)*IF($T212=\"n/a\",$D212*$Y212,$G212)+IFERROR(IF(AND($V212<=AH$1,$W212>=AH$1),INDEX(Reliability!M$23:M$50,MATCH($T212,Reliability!$C$23:$C$50,0)),0),0)*$H212*$X212*$Y212),$D212)*$R212","v":0},{"$f":"MIN((IFERROR(IF(AND($V212<=AI$1,$W212>=AI$1),INDEX(Reliability!N$23:N$50,MATCH($S212,Reliability!$C$23:$C$50,0)),0),0)*IF($T212=\"n/a\",$D212*$Y212,$G212)+IFERROR(IF(AND($V212<=AI$1,$W212>=AI$1),INDEX(Reliability!N$23:N$50,MATCH($T212,Reliability!$C$23:$C$50,0)),0),0)*$H212*$X212*$Y212),$D212)*$R212","v":0},{"$f":"MIN((IFERROR(IF(AND($V212<=AJ$1,$W212>=AJ$1),INDEX(Reliability!O$23:O$50,MATCH($S212,Reliability!$C$23:$C$50,0)),0),0)*IF($T212=\"n/a\",$D212*$Y212,$G212)+IFERROR(IF(AND($V212<=AJ$1,$W212>=AJ$1),INDEX(Reliability!O$23:O$50,MATCH($T212,Reliability!$C$23:$C$50,0)),0),0)*$H212*$X212*$Y212),$D212)*$R212","v":0},{"$f":"MIN((IFERROR(IF(AND($V212<=AK$1,$W212>=AK$1),INDEX(Reliability!P$23:P$50,MATCH($S212,Reliability!$C$23:$C$50,0)),0),0)*IF($T212=\"n/a\",$D212*$Y212,$G212)+IFERROR(IF(AND($V212<=AK$1,$W212>=AK$1),INDEX(Reliability!P$23:P$50,MATCH($T212,Reliability!$C$23:$C$50,0)),0),0)*$H212*$X212*$Y212),$D212)*$R212","v":0}]
[null,{"$f":"unique_contracts!B214","v":0},{"$f":"unique_contracts!D214","v":0},{"$f":"unique_contracts!J214","v":0},{"$f":"unique_contracts!M214","v":0},{"$f":"unique_contracts!N214","v":0},{"$f":"unique_contracts!P214","v":0},{"$f":"unique_contracts!R214","v":0},{"$f":"unique_contracts!V214","v":0},{"$f":"unique_contracts!AB214","v":0},{"$f":"unique_contracts!AM214","v":0},{"$f":"unique_contracts!AN214","v":0},{"$f":"unique_contracts!AO214","v":0},{"$f":"unique_contracts!AP214","v":0},{"$f":"unique_contracts!AQ214","v":0},{"$f":"unique_contracts!AR214","v":0},{"$f":"unique_contracts!BP214","v":0},0,{"$f":"IFERROR(IF(AND(I213>0,E213=\"NotHybrid\"),_xlfn.CONCAT(MAX(MIN(ROUNDDOWN(I213/D213,0),8),4),INDEX(resources!$G:$G,MATCH(B213,resources!$A:$A,0))),INDEX(resources!$G:$G,MATCH(B213,resources!$A:$A,0))),\"n/a\")","v":"n/a"},"n/a","n/a",0,0,1,1,{"$f":"MIN((IFERROR(IF(AND($V213<=Z$1,$W213>=Z$1),INDEX(Reliability!E$23:E$50,MATCH($S213,Reliability!$C$23:$C$50,0)),0),0)*IF($T213=\"n/a\",$D213*$Y213,$G213)+IFERROR(IF(AND($V213<=Z$1,$W213>=Z$1),INDEX(Reliability!E$23:E$50,MATCH($T213,Reliability!$C$23:$C$50,0)),0),0)*$H213*$X213*$Y213),$D213)*$R213","v":0},{"$f":"MIN((IFERROR(IF(AND($V213<=AA$1,$W213>=AA$1),INDEX(Reliability!F$23:F$50,MATCH($S213,Reliability!$C$23:$C$50,0)),0),0)*IF($T213=\"n/a\",$D213*$Y213,$G213)+IFERROR(IF(AND($V213<=AA$1,$W213>=AA$1),INDEX(Reliability!F$23:F$50,MATCH($T213,Reliability!$C$23:$C$50,0)),0),0)*$H213*$X213*$Y213),$D213)*$R213","v":0},{"$f":"MIN((IFERROR(IF(AND($V213<=AB$1,$W213>=AB$1),INDEX(Reliability!G$23:G$50,MATCH($S213,Reliability!$C$23:$C$50,0)),0),0)*IF($T213=\"n/a\",$D213*$Y213,$G213)+IFERROR(IF(AND($V213<=AB$1,$W213>=AB$1),INDEX(Reliability!G$23:G$50,MATCH($T213,Reliability!$C$23:$C$50,0)),0),0)*$H213*$X213*$Y213),$D213)*$R213","v":0},{"$f":"MIN((IFERROR(IF(AND($V213<=AC$1,$W213>=AC$1),INDEX(Reliability!H$23:H$50,MATCH($S213,Reliability!$C$23:$C$50,0)),0),0)*IF($T213=\"n/a\",$D213*$Y213,$G213)+IFERROR(IF(AND($V213<=AC$1,$W213>=AC$1),INDEX(Reliability!H$23:H$50,MATCH($T213,Reliability!$C$23:$C$50,0)),0),0)*$H213*$X213*$Y213),$D213)*$R213","v":0},{"$f":"MIN((IFERROR(IF(AND($V213<=AD$1,$W213>=AD$1),INDEX(Reliability!I$23:I$50,MATCH($S213,Reliability!$C$23:$C$50,0)),0),0)*IF($T213=\"n/a\",$D213*$Y213,$G213)+IFERROR(IF(AND($V213<=AD$1,$W213>=AD$1),INDEX(Reliability!I$23:I$50,MATCH($T213,Reliability!$C$23:$C$50,0)),0),0)*$H213*$X213*$Y213),$D213)*$R213","v":0},{"$f":"MIN((IFERROR(IF(AND($V213<=AE$1,$W213>=AE$1),INDEX(Reliability!J$23:J$50,MATCH($S213,Reliability!$C$23:$C$50,0)),0),0)*IF($T213=\"n/a\",$D213*$Y213,$G213)+IFERROR(IF(AND($V213<=AE$1,$W213>=AE$1),INDEX(Reliability!J$23:J$50,MATCH($T213,Reliability!$C$23:$C$50,0)),0),0)*$H213*$X213*$Y213),$D213)*$R213","v":0},{"$f":"MIN((IFERROR(IF(AND($V213<=AF$1,$W213>=AF$1),INDEX(Reliability!K$23:K$50,MATCH($S213,Reliability!$C$23:$C$50,0)),0),0)*IF($T213=\"n/a\",$D213*$Y213,$G213)+IFERROR(IF(AND($V213<=AF$1,$W213>=AF$1),INDEX(Reliability!K$23:K$50,MATCH($T213,Reliability!$C$23:$C$50,0)),0),0)*$H213*$X213*$Y213),$D213)*$R213","v":0},{"$f":"MIN((IFERROR(IF(AND($V213<=AG$1,$W213>=AG$1),INDEX(Reliability!L$23:L$50,MATCH($S213,Reliability!$C$23:$C$50,0)),0),0)*IF($T213=\"n/a\",$D213*$Y213,$G213)+IFERROR(IF(AND($V213<=AG$1,$W213>=AG$1),INDEX(Reliability!L$23:L$50,MATCH($T213,Reliability!$C$23:$C$50,0)),0),0)*$H213*$X213*$Y213),$D213)*$R213","v":0},{"$f":"MIN((IFERROR(IF(AND($V213<=AH$1,$W213>=AH$1),INDEX(Reliability!M$23:M$50,MATCH($S213,Reliability!$C$23:$C$50,0)),0),0)*IF($T213=\"n/a\",$D213*$Y213,$G213)+IFERROR(IF(AND($V213<=AH$1,$W213>=AH$1),INDEX(Reliability!M$23:M$50,MATCH($T213,Reliability!$C$23:$C$50,0)),0),0)*$H213*$X213*$Y213),$D213)*$R213","v":0},{"$f":"MIN((IFERROR(IF(AND($V213<=AI$1,$W213>=AI$1),INDEX(Reliability!N$23:N$50,MATCH($S213,Reliability!$C$23:$C$50,0)),0),0)*IF($T213=\"n/a\",$D213*$Y213,$G213)+IFERROR(IF(AND($V213<=AI$1,$W213>=AI$1),INDEX(Reliability!N$23:N$50,MATCH($T213,Reliability!$C$23:$C$50,0)),0),0)*$H213*$X213*$Y213),$D213)*$R213","v":0},{"$f":"MIN((IFERROR(IF(AND($V213<=AJ$1,$W213>=AJ$1),INDEX(Reliability!O$23:O$50,MATCH($S213,Reliability!$C$23:$C$50,0)),0),0)*IF($T213=\"n/a\",$D213*$Y213,$G213)+IFERROR(IF(AND($V213<=AJ$1,$W213>=AJ$1),INDEX(Reliability!O$23:O$50,MATCH($T213,Reliability!$C$23:$C$50,0)),0),0)*$H213*$X213*$Y213),$D213)*$R213","v":0},{"$f":"MIN((IFERROR(IF(AND($V213<=AK$1,$W213>=AK$1),INDEX(Reliability!P$23:P$50,MATCH($S213,Reliability!$C$23:$C$50,0)),0),0)*IF($T213=\"n/a\",$D213*$Y213,$G213)+IFERROR(IF(AND($V213<=AK$1,$W213>=AK$1),INDEX(Reliability!P$23:P$50,MATCH($T213,Reliability!$C$23:$C$50,0)),0),0)*$H213*$X213*$Y213),$D213)*$R213","v":0}]
[null,{"$f":"unique_contracts!B215","v":0},{"$f":"unique_contracts!D215","v":0},{"$f":"unique_contracts!J215","v":0},{"$f":"unique_contracts!M215","v":0},{"$f":"unique_contracts!N215","v":0},{"$f":"unique_contracts!P215","v":0},{"$f":"unique_contracts!R215","v":0},{"$f":"unique_contracts!V215","v":0},{"$f":"unique_contracts!AB215","v":0},{"$f":"unique_contracts!AM215","v":0},{"$f":"unique_contracts!AN215","v":0},{"$f":"unique_contracts!AO215","v":0},{"$f":"unique_contracts!AP215","v":0},{"$f":"unique_contracts!AQ215","v":0},{"$f":"unique_contracts!AR215","v":0},{"$f":"unique_contracts!BP215","v":0},0,{"$f":"IFERROR(IF(AND(I214>0,E214=\"NotHybrid\"),_xlfn.CONCAT(MAX(MIN(ROUNDDOWN(I214/D214,0),8),4),INDEX(resources!$G:$G,MATCH(B214,resources!$A:$A,0))),INDEX(resources!$G:$G,MATCH(B214,resources!$A:$A,0))),\"n/a\")","v":"n/a"},"n/a","n/a",0,0,1,1,{"$f":"MIN((IFERROR(IF(AND($V214<=Z$1,$W214>=Z$1),INDEX(Reliability!E$23:E$50,MATCH($S214,Reliability!$C$23:$C$50,0)),0),0)*IF($T214=\"n/a\",$D214*$Y214,$G214)+IFERROR(IF(AND($V214<=Z$1,$W214>=Z$1),INDEX(Reliability!E$23:E$50,MATCH($T214,Reliability!$C$23:$C$50,0)),0),0)*$H214*$X214*$Y214),$D214)*$R214","v":0},{"$f":"MIN((IFERROR(IF(AND($V214<=AA$1,$W214>=AA$1),INDEX(Reliability!F$23:F$50,MATCH($S214,Reliability!$C$23:$C$50,0)),0),0)*IF($T214=\"n/a\",$D214*$Y214,$G214)+IFERROR(IF(AND($V214<=AA$1,$W214>=AA$1),INDEX(Reliability!F$23:F$50,MATCH($T214,Reliability!$C$23:$C$50,0)),0),0)*$H214*$X214*$Y214),$D214)*$R214","v":0},{"$f":"MIN((IFERROR(IF(AND($V214<=AB$1,$W214>=AB$1),INDEX(Reliability!G$23:G$50,MATCH($S214,Reliability!$C$23:$C$50,0)),0),0)*IF($T214=\"n/a\",$D214*$Y214,$G214)+IFERROR(IF(AND($V214<=AB$1,$W214>=AB$1),INDEX(Reliability!G$23:G$50,MATCH($T214,Reliability!$C$23:$C$50,0)),0),0)*$H214*$X214*$Y214),$D214)*$R214","v":0},{"$f":"MIN((IFERROR(IF(AND($V214<=AC$1,$W214>=AC$1),INDEX(Reliability!H$23:H$50,MATCH($S214,Reliability!$C$23:$C$50,0)),0),0)*IF($T214=\"n/a\",$D214*$Y214,$G214)+IFERROR(IF(AND($V214<=AC$1,$W214>=AC$1),INDEX(Reliability!H$23:H$50,MATCH($T214,Reliability!$C$23:$C$50,0)),0),0)*$H214*$X214*$Y214),$D214)*$R214","v":0},{"$f":"MIN((IFERROR(IF(AND($V214<=AD$1,$W214>=AD$1),INDEX(Reliability!I$23:I$50,MATCH($S214,Reliability!$C$23:$C$50,0)),0),0)*IF($T214=\"n/a\",$D214*$Y214,$G214)+IFERROR(IF(AND($V214<=AD$1,$W214>=AD$1),INDEX(Reliability!I$23:I$50,MATCH($T214,Reliability!$C$23:$C$50,0)),0),0)*$H214*$X214*$Y214),$D214)*$R214","v":0},{"$f":"MIN((IFERROR(IF(AND($V214<=AE$1,$W214>=AE$1),INDEX(Reliability!J$23:J$50,MATCH($S214,Reliability!$C$23:$C$50,0)),0),0)*IF($T214=\"n/a\",$D214*$Y214,$G214)+IFERROR(IF(AND($V214<=AE$1,$W214>=AE$1),INDEX(Reliability!J$23:J$50,MATCH($T214,Reliability!$C$23:$C$50,0)),0),0)*$H214*$X214*$Y214),$D214)*$R214","v":0},{"$f":"MIN((IFERROR(IF(AND($V214<=AF$1,$W214>=AF$1),INDEX(Reliability!K$23:K$50,MATCH($S214,Reliability!$C$23:$C$50,0)),0),0)*IF($T214=\"n/a\",$D214*$Y214,$G214)+IFERROR(IF(AND($V214<=AF$1,$W214>=AF$1),INDEX(Reliability!K$23:K$50,MATCH($T214,Reliability!$C$23:$C$50,0)),0),0)*$H214*$X214*$Y214),$D214)*$R214","v":0},{"$f":"MIN((IFERROR(IF(AND($V214<=AG$1,$W214>=AG$1),INDEX(Reliability!L$23:L$50,MATCH($S214,Reliability!$C$23:$C$50,0)),0),0)*IF($T214=\"n/a\",$D214*$Y214,$G214)+IFERROR(IF(AND($V214<=AG$1,$W214>=AG$1),INDEX(Reliability!L$23:L$50,MATCH($T214,Reliability!$C$23:$C$50,0)),0),0)*$H214*$X214*$Y214),$D214)*$R214","v":0},{"$f":"MIN((IFERROR(IF(AND($V214<=AH$1,$W214>=AH$1),INDEX(Reliability!M$23:M$50,MATCH($S214,Reliability!$C$23:$C$50,0)),0),0)*IF($T214=\"n/a\",$D214*$Y214,$G214)+IFERROR(IF(AND($V214<=AH$1,$W214>=AH$1),INDEX(Reliability!M$23:M$50,MATCH($T214,Reliability!$C$23:$C$50,0)),0),0)*$H214*$X214*$Y214),$D214)*$R214","v":0},{"$f":"MIN((IFERROR(IF(AND($V214<=AI$1,$W214>=AI$1),INDEX(Reliability!N$23:N$50,MATCH($S214,Reliability!$C$23:$C$50,0)),0),0)*IF($T214=\"n/a\",$D214*$Y214,$G214)+IFERROR(IF(AND($V214<=AI$1,$W214>=AI$1),INDEX(Reliability!N$23:N$50,MATCH($T214,Reliability!$C$23:$C$50,0)),0),0)*$H214*$X214*$Y214),$D214)*$R214","v":0},{"$f":"MIN((IFERROR(IF(AND($V214<=AJ$1,$W214>=AJ$1),INDEX(Reliability!O$23:O$50,MATCH($S214,Reliability!$C$23:$C$50,0)),0),0)*IF($T214=\"n/a\",$D214*$Y214,$G214)+IFERROR(IF(AND($V214<=AJ$1,$W214>=AJ$1),INDEX(Reliability!O$23:O$50,MATCH($T214,Reliability!$C$23:$C$50,0)),0),0)*$H214*$X214*$Y214),$D214)*$R214","v":0},{"$f":"MIN((IFERROR(IF(AND($V214<=AK$1,$W214>=AK$1),INDEX(Reliability!P$23:P$50,MATCH($S214,Reliability!$C$23:$C$50,0)),0),0)*IF($T214=\"n/a\",$D214*$Y214,$G214)+IFERROR(IF(AND($V214<=AK$1,$W214>=AK$1),INDEX(Reliability!P$23:P$50,MATCH($T214,Reliability!$C$23:$C$50,0)),0),0)*$H214*$X214*$Y214),$D214)*$R214","v":0}]
[null,{"$f":"unique_contracts!B216","v":0},{"$f":"unique_contracts!D216","v":0},{"$f":"unique_contracts!J216","v":0},{"$f":"unique_contracts!M216","v":0},{"$f":"unique_contracts!N216","v":0},{"$f":"unique_contracts!P216","v":0},{"$f":"unique_contracts!R216","v":0},{"$f":"unique_contracts!V216","v":0},{"$f":"unique_contracts!AB216","v":0},{"$f":"unique_contracts!AM216","v":0},{"$f":"unique_contracts!AN216","v":0},{"$f":"unique_contracts!AO216","v":0},{"$f":"unique_contracts!AP216","v":0},{"$f":"unique_contracts!AQ216","v":0},{"$f":"unique_contracts!AR216","v":0},{"$f":"unique_contracts!BP216","v":0},0,{"$f":"IFERROR(IF(AND(I215>0,E215=\"NotHybrid\"),_xlfn.CONCAT(MAX(MIN(ROUNDDOWN(I215/D215,0),8),4),INDEX(resources!$G:$G,MATCH(B215,resources!$A:$A,0))),INDEX(resources!$G:$G,MATCH(B215,resources!$A:$A,0))),\"n/a\")","v":"n/a"},"n/a","n/a",0,0,1,1,{"$f":"MIN((IFERROR(IF(AND($V215<=Z$1,$W215>=Z$1),INDEX(Reliability!E$23:E$50,MATCH($S215,Reliability!$C$23:$C$50,0)),0),0)*IF($T215=\"n/a\",$D215*$Y215,$G215)+IFERROR(IF(AND($V215<=Z$1,$W215>=Z$1),INDEX(Reliability!E$23:E$50,MATCH($T215,Reliability!$C$23:$C$50,0)),0),0)*$H215*$X215*$Y215),$D215)*$R215","v":0},{"$f":"MIN((IFERROR(IF(AND($V215<=AA$1,$W215>=AA$1),INDEX(Reliability!F$23:F$50,MATCH($S215,Reliability!$C$23:$C$50,0)),0),0)*IF($T215=\"n/a\",$D215*$Y215,$G215)+IFERROR(IF(AND($V215<=AA$1,$W215>=AA$1),INDEX(Reliability!F$23:F$50,MATCH($T215,Reliability!$C$23:$C$50,0)),0),0)*$H215*$X215*$Y215),$D215)*$R215","v":0},{"$f":"MIN((IFERROR(IF(AND($V215<=AB$1,$W215>=AB$1),INDEX(Reliability!G$23:G$50,MATCH($S215,Reliability!$C$23:$C$50,0)),0),0)*IF($T215=\"n/a\",$D215*$Y215,$G215)+IFERROR(IF(AND($V215<=AB$1,$W215>=AB$1),INDEX(Reliability!G$23:G$50,MATCH($T215,Reliability!$C$23:$C$50,0)),0),0)*$H215*$X215*$Y215),$D215)*$R215","v":0},{"$f":"MIN((IFERROR(IF(AND($V215<=AC$1,$W215>=AC$1),INDEX(Reliability!H$23:H$50,MATCH($S215,Reliability!$C$23:$C$50,0)),0),0)*IF($T215=\"n/a\",$D215*$Y215,$G215)+IFERROR(IF(AND($V215<=AC$1,$W215>=AC$1),INDEX(Reliability!H$23:H$50,MATCH($T215,Reliability!$C$23:$C$50,0)),0),0)*$H215*$X215*$Y215),$D215)*$R215","v":0},{"$f":"MIN((IFERROR(IF(AND($V215<=AD$1,$W215>=AD$1),INDEX(Reliability!I$23:I$50,MATCH($S215,Reliability!$C$23:$C$50,0)),0),0)*IF($T215=\"n/a\",$D215*$Y215,$G215)+IFERROR(IF(AND($V215<=AD$1,$W215>=AD$1),INDEX(Reliability!I$23:I$50,MATCH($T215,Reliability!$C$23:$C$50,0)),0),0)*$H215*$X215*$Y215),$D215)*$R215","v":0},{"$f":"MIN((IFERROR(IF(AND($V215<=AE$1,$W215>=AE$1),INDEX(Reliability!J$23:J$50,MATCH($S215,Reliability!$C$23:$C$50,0)),0),0)*IF($T215=\"n/a\",$D215*$Y215,$G215)+IFERROR(IF(AND($V215<=AE$1,$W215>=AE$1),INDEX(Reliability!J$23:J$50,MATCH($T215,Reliability!$C$23:$C$50,0)),0),0)*$H215*$X215*$Y215),$D215)*$R215","v":0},{"$f":"MIN((IFERROR(IF(AND($V215<=AF$1,$W215>=AF$1),INDEX(Reliability!K$23:K$50,MATCH($S215,Reliability!$C$23:$C$50,0)),0),0)*IF($T215=\"n/a\",$D215*$Y215,$G215)+IFERROR(IF(AND($V215<=AF$1,$W215>=AF$1),INDEX(Reliability!K$23:K$50,MATCH($T215,Reliability!$C$23:$C$50,0)),0),0)*$H215*$X215*$Y215),$D215)*$R215","v":0},{"$f":"MIN((IFERROR(IF(AND($V215<=AG$1,$W215>=AG$1),INDEX(Reliability!L$23:L$50,MATCH($S215,Reliability!$C$23:$C$50,0)),0),0)*IF($T215=\"n/a\",$D215*$Y215,$G215)+IFERROR(IF(AND($V215<=AG$1,$W215>=AG$1),INDEX(Reliability!L$23:L$50,MATCH($T215,Reliability!$C$23:$C$50,0)),0),0)*$H215*$X215*$Y215),$D215)*$R215","v":0},{"$f":"MIN((IFERROR(IF(AND($V215<=AH$1,$W215>=AH$1),INDEX(Reliability!M$23:M$50,MATCH($S215,Reliability!$C$23:$C$50,0)),0),0)*IF($T215=\"n/a\",$D215*$Y215,$G215)+IFERROR(IF(AND($V215<=AH$1,$W215>=AH$1),INDEX(Reliability!M$23:M$50,MATCH($T215,Reliability!$C$23:$C$50,0)),0),0)*$H215*$X215*$Y215),$D215)*$R215","v":0},{"$f":"MIN((IFERROR(IF(AND($V215<=AI$1,$W215>=AI$1),INDEX(Reliability!N$23:N$50,MATCH($S215,Reliability!$C$23:$C$50,0)),0),0)*IF($T215=\"n/a\",$D215*$Y215,$G215)+IFERROR(IF(AND($V215<=AI$1,$W215>=AI$1),INDEX(Reliability!N$23:N$50,MATCH($T215,Reliability!$C$23:$C$50,0)),0),0)*$H215*$X215*$Y215),$D215)*$R215","v":0},{"$f":"MIN((IFERROR(IF(AND($V215<=AJ$1,$W215>=AJ$1),INDEX(Reliability!O$23:O$50,MATCH($S215,Reliability!$C$23:$C$50,0)),0),0)*IF($T215=\"n/a\",$D215*$Y215,$G215)+IFERROR(IF(AND($V215<=AJ$1,$W215>=AJ$1),INDEX(Reliability!O$23:O$50,MATCH($T215,Reliability!$C$23:$C$50,0)),0),0)*$H215*$X215*$Y215),$D215)*$R215","v":0},{"$f":"MIN((IFERROR(IF(AND($V215<=AK$1,$W215>=AK$1),INDEX(Reliability!P$23:P$50,MATCH($S215,Reliability!$C$23:$C$50,0)),0),0)*IF($T215=\"n/a\",$D215*$Y215,$G215)+IFERROR(IF(AND($V215<=AK$1,$W215>=AK$1),INDEX(Reliability!P$23:P$50,MATCH($T215,Reliability!$C$23:$C$50,0)),0),0)*$H215*$X215*$Y215),$D215)*$R215","v":0}]
[null,{"$f":"unique_contracts!B217","v":0},{"$f":"unique_contracts!D217","v":0},{"$f":"unique_contracts!J217","v":0},{"$f":"unique_contracts!M217","v":0},{"$f":"unique_contracts!N217","v":0},{"$f":"unique_contracts!P217","v":0},{"$f":"unique_contracts!R217","v":0},{"$f":"unique_contracts!V217","v":0},{"$f":"unique_contracts!AB217","v":0},{"$f":"unique_contracts!AM217","v":0},{"$f":"unique_contracts!AN217","v":0},{"$f":"unique_contracts!AO217","v":0},{"$f":"unique_contracts!AP217","v":0},{"$f":"unique_contracts!AQ217","v":0},{"$f":"unique_contracts!AR217","v":0},{"$f":"unique_contracts!BP217","v":0},0,{"$f":"IFERROR(IF(AND(I216>0,E216=\"NotHybrid\"),_xlfn.CONCAT(MAX(MIN(ROUNDDOWN(I216/D216,0),8),4),INDEX(resources!$G:$G,MATCH(B216,resources!$A:$A,0))),INDEX(resources!$G:$G,MATCH(B216,resources!$A:$A,0))),\"n/a\")","v":"n/a"},"n/a","n/a",0,0,1,1,{"$f":"MIN((IFERROR(IF(AND($V216<=Z$1,$W216>=Z$1),INDEX(Reliability!E$23:E$50,MATCH($S216,Reliability!$C$23:$C$50,0)),0),0)*IF($T216=\"n/a\",$D216*$Y216,$G216)+IFERROR(IF(AND($V216<=Z$1,$W216>=Z$1),INDEX(Reliability!E$23:E$50,MATCH($T216,Reliability!$C$23:$C$50,0)),0),0)*$H216*$X216*$Y216),$D216)*$R216","v":0},{"$f":"MIN((IFERROR(IF(AND($V216<=AA$1,$W216>=AA$1),INDEX(Reliability!F$23:F$50,MATCH($S216,Reliability!$C$23:$C$50,0)),0),0)*IF($T216=\"n/a\",$D216*$Y216,$G216)+IFERROR(IF(AND($V216<=AA$1,$W216>=AA$1),INDEX(Reliability!F$23:F$50,MATCH($T216,Reliability!$C$23:$C$50,0)),0),0)*$H216*$X216*$Y216),$D216)*$R216","v":0},{"$f":"MIN((IFERROR(IF(AND($V216<=AB$1,$W216>=AB$1),INDEX(Reliability!G$23:G$50,MATCH($S216,Reliability!$C$23:$C$50,0)),0),0)*IF($T216=\"n/a\",$D216*$Y216,$G216)+IFERROR(IF(AND($V216<=AB$1,$W216>=AB$1),INDEX(Reliability!G$23:G$50,MATCH($T216,Reliability!$C$23:$C$50,0)),0),0)*$H216*$X216*$Y216),$D216)*$R216","v":0},{"$f":"MIN((IFERROR(IF(AND($V216<=AC$1,$W216>=AC$1),INDEX(Reliability!H$23:H$50,MATCH($S216,Reliability!$C$23:$C$50,0)),0),0)*IF($T216=\"n/a\",$D216*$Y216,$G216)+IFERROR(IF(AND($V216<=AC$1,$W216>=AC$1),INDEX(Reliability!H$23:H$50,MATCH($T216,Reliability!$C$23:$C$50,0)),0),0)*$H216*$X216*$Y216),$D216)*$R216","v":0},{"$f":"MIN((IFERROR(IF(AND($V216<=AD$1,$W216>=AD$1),INDEX(Reliability!I$23:I$50,MATCH($S216,Reliability!$C$23:$C$50,0)),0),0)*IF($T216=\"n/a\",$D216*$Y216,$G216)+IFERROR(IF(AND($V216<=AD$1,$W216>=AD$1),INDEX(Reliability!I$23:I$50,MATCH($T216,Reliability!$C$23:$C$50,0)),0),0)*$H216*$X216*$Y216),$D216)*$R216","v":0},{"$f":"MIN((IFERROR(IF(AND($V216<=AE$1,$W216>=AE$1),INDEX(Reliability!J$23:J$50,MATCH($S216,Reliability!$C$23:$C$50,0)),0),0)*IF($T216=\"n/a\",$D216*$Y216,$G216)+IFERROR(IF(AND($V216<=AE$1,$W216>=AE$1),INDEX(Reliability!J$23:J$50,MATCH($T216,Reliability!$C$23:$C$50,0)),0),0)*$H216*$X216*$Y216),$D216)*$R216","v":0},{"$f":"MIN((IFERROR(IF(AND($V216<=AF$1,$W216>=AF$1),INDEX(Reliability!K$23:K$50,MATCH($S216,Reliability!$C$23:$C$50,0)),0),0)*IF($T216=\"n/a\",$D216*$Y216,$G216)+IFERROR(IF(AND($V216<=AF$1,$W216>=AF$1),INDEX(Reliability!K$23:K$50,MATCH($T216,Reliability!$C$23:$C$50,0)),0),0)*$H216*$X216*$Y216),$D216)*$R216","v":0},{"$f":"MIN((IFERROR(IF(AND($V216<=AG$1,$W216>=AG$1),INDEX(Reliability!L$23:L$50,MATCH($S216,Reliability!$C$23:$C$50,0)),0),0)*IF($T216=\"n/a\",$D216*$Y216,$G216)+IFERROR(IF(AND($V216<=AG$1,$W216>=AG$1),INDEX(Reliability!L$23:L$50,MATCH($T216,Reliability!$C$23:$C$50,0)),0),0)*$H216*$X216*$Y216),$D216)*$R216","v":0},{"$f":"MIN((IFERROR(IF(AND($V216<=AH$1,$W216>=AH$1),INDEX(Reliability!M$23:M$50,MATCH($S216,Reliability!$C$23:$C$50,0)),0),0)*IF($T216=\"n/a\",$D216*$Y216,$G216)+IFERROR(IF(AND($V216<=AH$1,$W216>=AH$1),INDEX(Reliability!M$23:M$50,MATCH($T216,Reliability!$C$23:$C$50,0)),0),0)*$H216*$X216*$Y216),$D216)*$R216","v":0},{"$f":"MIN((IFERROR(IF(AND($V216<=AI$1,$W216>=AI$1),INDEX(Reliability!N$23:N$50,MATCH($S216,Reliability!$C$23:$C$50,0)),0),0)*IF($T216=\"n/a\",$D216*$Y216,$G216)+IFERROR(IF(AND($V216<=AI$1,$W216>=AI$1),INDEX(Reliability!N$23:N$50,MATCH($T216,Reliability!$C$23:$C$50,0)),0),0)*$H216*$X216*$Y216),$D216)*$R216","v":0},{"$f":"MIN((IFERROR(IF(AND($V216<=AJ$1,$W216>=AJ$1),INDEX(Reliability!O$23:O$50,MATCH($S216,Reliability!$C$23:$C$50,0)),0),0)*IF($T216=\"n/a\",$D216*$Y216,$G216)+IFERROR(IF(AND($V216<=AJ$1,$W216>=AJ$1),INDEX(Reliability!O$23:O$50,MATCH($T216,Reliability!$C$23:$C$50,0)),0),0)*$H216*$X216*$Y216),$D216)*$R216","v":0},{"$f":"MIN((IFERROR(IF(AND($V216<=AK$1,$W216>=AK$1),INDEX(Reliability!P$23:P$50,MATCH($S216,Reliability!$C$23:$C$50,0)),0),0)*IF($T216=\"n/a\",$D216*$Y216,$G216)+IFERROR(IF(AND($V216<=AK$1,$W216>=AK$1),INDEX(Reliability!P$23:P$50,MATCH($T216,Reliability!$C$23:$C$50,0)),0),0)*$H216*$X216*$Y216),$D216)*$R216","v":0}]
[null,{"$f":"unique_contracts!B218","v":0},{"$f":"unique_contracts!D218","v":0},{"$f":"unique_contracts!J218","v":0},{"$f":"unique_contracts!M218","v":0},{"$f":"unique_contracts!N218","v":0},{"$f":"unique_contracts!P218","v":0},{"$f":"unique_contracts!R218","v":0},{"$f":"unique_contracts!V218","v":0},{"$f":"unique_contracts!AB218","v":0},{"$f":"unique_contracts!AM218","v":0},{"$f":"unique_contracts!AN218","v":0},{"$f":"unique_contracts!AO218","v":0},{"$f":"unique_contracts!AP218","v":0},{"$f":"unique_contracts!AQ218","v":0},{"$f":"unique_contracts!AR218","v":0},{"$f":"unique_contracts!BP218","v":0},0,{"$f":"IFERROR(IF(AND(I217>0,E217=\"NotHybrid\"),_xlfn.CONCAT(MAX(MIN(ROUNDDOWN(I217/D217,0),8),4),INDEX(resources!$G:$G,MATCH(B217,resources!$A:$A,0))),INDEX(resources!$G:$G,MATCH(B217,resources!$A:$A,0))),\"n/a\")","v":"n/a"},"n/a","n/a",0,0,1,1,{"$f":"MIN((IFERROR(IF(AND($V217<=Z$1,$W217>=Z$1),INDEX(Reliability!E$23:E$50,MATCH($S217,Reliability!$C$23:$C$50,0)),0),0)*IF($T217=\"n/a\",$D217*$Y217,$G217)+IFERROR(IF(AND($V217<=Z$1,$W217>=Z$1),INDEX(Reliability!E$23:E$50,MATCH($T217,Reliability!$C$23:$C$50,0)),0),0)*$H217*$X217*$Y217),$D217)*$R217","v":0},{"$f":"MIN((IFERROR(IF(AND($V217<=AA$1,$W217>=AA$1),INDEX(Reliability!F$23:F$50,MATCH($S217,Reliability!$C$23:$C$50,0)),0),0)*IF($T217=\"n/a\",$D217*$Y217,$G217)+IFERROR(IF(AND($V217<=AA$1,$W217>=AA$1),INDEX(Reliability!F$23:F$50,MATCH($T217,Reliability!$C$23:$C$50,0)),0),0)*$H217*$X217*$Y217),$D217)*$R217","v":0},{"$f":"MIN((IFERROR(IF(AND($V217<=AB$1,$W217>=AB$1),INDEX(Reliability!G$23:G$50,MATCH($S217,Reliability!$C$23:$C$50,0)),0),0)*IF($T217=\"n/a\",$D217*$Y217,$G217)+IFERROR(IF(AND($V217<=AB$1,$W217>=AB$1),INDEX(Reliability!G$23:G$50,MATCH($T217,Reliability!$C$23:$C$50,0)),0),0)*$H217*$X217*$Y217),$D217)*$R217","v":0},{"$f":"MIN((IFERROR(IF(AND($V217<=AC$1,$W217>=AC$1),INDEX(Reliability!H$23:H$50,MATCH($S217,Reliability!$C$23:$C$50,0)),0),0)*IF($T217=\"n/a\",$D217*$Y217,$G217)+IFERROR(IF(AND($V217<=AC$1,$W217>=AC$1),INDEX(Reliability!H$23:H$50,MATCH($T217,Reliability!$C$23:$C$50,0)),0),0)*$H217*$X217*$Y217),$D217)*$R217","v":0},{"$f":"MIN((IFERROR(IF(AND($V217<=AD$1,$W217>=AD$1),INDEX(Reliability!I$23:I$50,MATCH($S217,Reliability!$C$23:$C$50,0)),0),0)*IF($T217=\"n/a\",$D217*$Y217,$G217)+IFERROR(IF(AND($V217<=AD$1,$W217>=AD$1),INDEX(Reliability!I$23:I$50,MATCH($T217,Reliability!$C$23:$C$50,0)),0),0)*$H217*$X217*$Y217),$D217)*$R217","v":0},{"$f":"MIN((IFERROR(IF(AND($V217<=AE$1,$W217>=AE$1),INDEX(Reliability!J$23:J$50,MATCH($S217,Reliability!$C$23:$C$50,0)),0),0)*IF($T217=\"n/a\",$D217*$Y217,$G217)+IFERROR(IF(AND($V217<=AE$1,$W217>=AE$1),INDEX(Reliability!J$23:J$50,MATCH($T217,Reliability!$C$23:$C$50,0)),0),0)*$H217*$X217*$Y217),$D217)*$R217","v":0},{"$f":"MIN((IFERROR(IF(AND($V217<=AF$1,$W217>=AF$1),INDEX(Reliability!K$23:K$50,MATCH($S217,Reliability!$C$23:$C$50,0)),0),0)*IF($T217=\"n/a\",$D217*$Y217,$G217)+IFERROR(IF(AND($V217<=AF$1,$W217>=AF$1),INDEX(Reliability!K$23:K$50,MATCH($T217,Reliability!$C$23:$C$50,0)),0),0)*$H217*$X217*$Y217),$D217)*$R217","v":0},{"$f":"MIN((IFERROR(IF(AND($V217<=AG$1,$W217>=AG$1),INDEX(Reliability!L$23:L$50,MATCH($S217,Reliability!$C$23:$C$50,0)),0),0)*IF($T217=\"n/a\",$D217*$Y217,$G217)+IFERROR(IF(AND($V217<=AG$1,$W217>=AG$1),INDEX(Reliability!L$23:L$50,MATCH($T217,Reliability!$C$23:$C$50,0)),0),0)*$H217*$X217*$Y217),$D217)*$R217","v":0},{"$f":"MIN((IFERROR(IF(AND($V217<=AH$1,$W217>=AH$1),INDEX(Reliability!M$23:M$50,MATCH($S217,Reliability!$C$23:$C$50,0)),0),0)*IF($T217=\"n/a\",$D217*$Y217,$G217)+IFERROR(IF(AND($V217<=AH$1,$W217>=AH$1),INDEX(Reliability!M$23:M$50,MATCH($T217,Reliability!$C$23:$C$50,0)),0),0)*$H217*$X217*$Y217),$D217)*$R217","v":0},{"$f":"MIN((IFERROR(IF(AND($V217<=AI$1,$W217>=AI$1),INDEX(Reliability!N$23:N$50,MATCH($S217,Reliability!$C$23:$C$50,0)),0),0)*IF($T217=\"n/a\",$D217*$Y217,$G217)+IFERROR(IF(AND($V217<=AI$1,$W217>=AI$1),INDEX(Reliability!N$23:N$50,MATCH($T217,Reliability!$C$23:$C$50,0)),0),0)*$H217*$X217*$Y217),$D217)*$R217","v":0},{"$f":"MIN((IFERROR(IF(AND($V217<=AJ$1,$W217>=AJ$1),INDEX(Reliability!O$23:O$50,MATCH($S217,Reliability!$C$23:$C$50,0)),0),0)*IF($T217=\"n/a\",$D217*$Y217,$G217)+IFERROR(IF(AND($V217<=AJ$1,$W217>=AJ$1),INDEX(Reliability!O$23:O$50,MATCH($T217,Reliability!$C$23:$C$50,0)),0),0)*$H217*$X217*$Y217),$D217)*$R217","v":0},{"$f":"MIN((IFERROR(IF(AND($V217<=AK$1,$W217>=AK$1),INDEX(Reliability!P$23:P$50,MATCH($S217,Reliability!$C$23:$C$50,0)),0),0)*IF($T217=\"n/a\",$D217*$Y217,$G217)+IFERROR(IF(AND($V217<=AK$1,$W217>=AK$1),INDEX(Reliability!P$23:P$50,MATCH($T217,Reliability!$C$23:$C$50,0)),0),0)*$H217*$X217*$Y217),$D217)*$R217","v":0}]
[null,{"$f":"unique_contracts!B219","v":0},{"$f":"unique_contracts!D219","v":0},{"$f":"unique_contracts!J219","v":0},{"$f":"unique_contracts!M219","v":0},{"$f":"unique_contracts!N219","v":0},{"$f":"unique_contracts!P219","v":0},{"$f":"unique_contracts!R219","v":0},{"$f":"unique_contracts!V219","v":0},{"$f":"unique_contracts!AB219","v":0},{"$f":"unique_contracts!AM219","v":0},{"$f":"unique_contracts!AN219","v":0},{"$f":"unique_contracts!AO219","v":0},{"$f":"unique_contracts!AP219","v":0},{"$f":"unique_contracts!AQ219","v":0},{"$f":"unique_contracts!AR219","v":0},{"$f":"unique_contracts!BP219","v":0},0,{"$f":"IFERROR(IF(AND(I218>0,E218=\"NotHybrid\"),_xlfn.CONCAT(MAX(MIN(ROUNDDOWN(I218/D218,0),8),4),INDEX(resources!$G:$G,MATCH(B218,resources!$A:$A,0))),INDEX(resources!$G:$G,MATCH(B218,resources!$A:$A,0))),\"n/a\")","v":"n/a"},"n/a","n/a",0,0,1,1,{"$f":"MIN((IFERROR(IF(AND($V218<=Z$1,$W218>=Z$1),INDEX(Reliability!E$23:E$50,MATCH($S218,Reliability!$C$23:$C$50,0)),0),0)*IF($T218=\"n/a\",$D218*$Y218,$G218)+IFERROR(IF(AND($V218<=Z$1,$W218>=Z$1),INDEX(Reliability!E$23:E$50,MATCH($T218,Reliability!$C$23:$C$50,0)),0),0)*$H218*$X218*$Y218),$D218)*$R218","v":0},{"$f":"MIN((IFERROR(IF(AND($V218<=AA$1,$W218>=AA$1),INDEX(Reliability!F$23:F$50,MATCH($S218,Reliability!$C$23:$C$50,0)),0),0)*IF($T218=\"n/a\",$D218*$Y218,$G218)+IFERROR(IF(AND($V218<=AA$1,$W218>=AA$1),INDEX(Reliability!F$23:F$50,MATCH($T218,Reliability!$C$23:$C$50,0)),0),0)*$H218*$X218*$Y218),$D218)*$R218","v":0},{"$f":"MIN((IFERROR(IF(AND($V218<=AB$1,$W218>=AB$1),INDEX(Reliability!G$23:G$50,MATCH($S218,Reliability!$C$23:$C$50,0)),0),0)*IF($T218=\"n/a\",$D218*$Y218,$G218)+IFERROR(IF(AND($V218<=AB$1,$W218>=AB$1),INDEX(Reliability!G$23:G$50,MATCH($T218,Reliability!$C$23:$C$50,0)),0),0)*$H218*$X218*$Y218),$D218)*$R218","v":0},{"$f":"MIN((IFERROR(IF(AND($V218<=AC$1,$W218>=AC$1),INDEX(Reliability!H$23:H$50,MATCH($S218,Reliability!$C$23:$C$50,0)),0),0)*IF($T218=\"n/a\",$D218*$Y218,$G218)+IFERROR(IF(AND($V218<=AC$1,$W218>=AC$1),INDEX(Reliability!H$23:H$50,MATCH($T218,Reliability!$C$23:$C$50,0)),0),0)*$H218*$X218*$Y218),$D218)*$R218","v":0},{"$f":"MIN((IFERROR(IF(AND($V218<=AD$1,$W218>=AD$1),INDEX(Reliability!I$23:I$50,MATCH($S218,Reliability!$C$23:$C$50,0)),0),0)*IF($T218=\"n/a\",$D218*$Y218,$G218)+IFERROR(IF(AND($V218<=AD$1,$W218>=AD$1),INDEX(Reliability!I$23:I$50,MATCH($T218,Reliability!$C$23:$C$50,0)),0),0)*$H218*$X218*$Y218),$D218)*$R218","v":0},{"$f":"MIN((IFERROR(IF(AND($V218<=AE$1,$W218>=AE$1),INDEX(Reliability!J$23:J$50,MATCH($S218,Reliability!$C$23:$C$50,0)),0),0)*IF($T218=\"n/a\",$D218*$Y218,$G218)+IFERROR(IF(AND($V218<=AE$1,$W218>=AE$1),INDEX(Reliability!J$23:J$50,MATCH($T218,Reliability!$C$23:$C$50,0)),0),0)*$H218*$X218*$Y218),$D218)*$R218","v":0},{"$f":"MIN((IFERROR(IF(AND($V218<=AF$1,$W218>=AF$1),INDEX(Reliability!K$23:K$50,MATCH($S218,Reliability!$C$23:$C$50,0)),0),0)*IF($T218=\"n/a\",$D218*$Y218,$G218)+IFERROR(IF(AND($V218<=AF$1,$W218>=AF$1),INDEX(Reliability!K$23:K$50,MATCH($T218,Reliability!$C$23:$C$50,0)),0),0)*$H218*$X218*$Y218),$D218)*$R218","v":0},{"$f":"MIN((IFERROR(IF(AND($V218<=AG$1,$W218>=AG$1),INDEX(Reliability!L$23:L$50,MATCH($S218,Reliability!$C$23:$C$50,0)),0),0)*IF($T218=\"n/a\",$D218*$Y218,$G218)+IFERROR(IF(AND($V218<=AG$1,$W218>=AG$1),INDEX(Reliability!L$23:L$50,MATCH($T218,Reliability!$C$23:$C$50,0)),0),0)*$H218*$X218*$Y218),$D218)*$R218","v":0},{"$f":"MIN((IFERROR(IF(AND($V218<=AH$1,$W218>=AH$1),INDEX(Reliability!M$23:M$50,MATCH($S218,Reliability!$C$23:$C$50,0)),0),0)*IF($T218=\"n/a\",$D218*$Y218,$G218)+IFERROR(IF(AND($V218<=AH$1,$W218>=AH$1),INDEX(Reliability!M$23:M$50,MATCH($T218,Reliability!$C$23:$C$50,0)),0),0)*$H218*$X218*$Y218),$D218)*$R218","v":0},{"$f":"MIN((IFERROR(IF(AND($V218<=AI$1,$W218>=AI$1),INDEX(Reliability!N$23:N$50,MATCH($S218,Reliability!$C$23:$C$50,0)),0),0)*IF($T218=\"n/a\",$D218*$Y218,$G218)+IFERROR(IF(AND($V218<=AI$1,$W218>=AI$1),INDEX(Reliability!N$23:N$50,MATCH($T218,Reliability!$C$23:$C$50,0)),0),0)*$H218*$X218*$Y218),$D218)*$R218","v":0},{"$f":"MIN((IFERROR(IF(AND($V218<=AJ$1,$W218>=AJ$1),INDEX(Reliability!O$23:O$50,MATCH($S218,Reliability!$C$23:$C$50,0)),0),0)*IF($T218=\"n/a\",$D218*$Y218,$G218)+IFERROR(IF(AND($V218<=AJ$1,$W218>=AJ$1),INDEX(Reliability!O$23:O$50,MATCH($T218,Reliability!$C$23:$C$50,0)),0),0)*$H218*$X218*$Y218),$D218)*$R218","v":0},{"$f":"MIN((IFERROR(IF(AND($V218<=AK$1,$W218>=AK$1),INDEX(Reliability!P$23:P$50,MATCH($S218,Reliability!$C$23:$C$50,0)),0),0)*IF($T218=\"n/a\",$D218*$Y218,$G218)+IFERROR(IF(AND($V218<=AK$1,$W218>=AK$1),INDEX(Reliability!P$23:P$50,MATCH($T218,Reliability!$C$23:$C$50,0)),0),0)*$H218*$X218*$Y218),$D218)*$R218","v":0}]
[null,{"$f":"unique_contracts!B220","v":0},{"$f":"unique_contracts!D220","v":0},{"$f":"unique_contracts!J220","v":0},{"$f":"unique_contracts!M220","v":0},{"$f":"unique_contracts!N220","v":0},{"$f":"unique_contracts!P220","v":0},{"$f":"unique_contracts!R220","v":0},{"$f":"unique_contracts!V220","v":0},{"$f":"unique_contracts!AB220","v":0},{"$f":"unique_contracts!AM220","v":0},{"$f":"unique_contracts!AN220","v":0},{"$f":"unique_contracts!AO220","v":0},{"$f":"unique_contracts!AP220","v":0},{"$f":"unique_contracts!AQ220","v":0},{"$f":"unique_contracts!AR220","v":0},{"$f":"unique_contracts!BP220","v":0},{"$f":"IF(AND(J219=\"Sell\",ISNUMBER(SEARCH(\"Capacity\",Q219))),-1,IF(AND(NOT(J219=\"Sell\"),ISNUMBER(SEARCH(\"Capacity\",Q219))),1,0))","v":0},{"$f":"IFERROR(IF(AND(I219>0,E219=\"NotHybrid\"),_xlfn.CONCAT(MAX(MIN(ROUNDDOWN(I219/D219,0),8),4),INDEX(resources!$G:$G,MATCH(B219,resources!$A:$A,0))),INDEX(resources!$G:$G,MATCH(B219,resources!$A:$A,0))),\"n/a\")","v":"n/a"},{"$f":"IFERROR(IF(NOT(E219=\"NotHybrid\"),_xlfn.CONCAT(MAX(MIN(ROUNDDOWN(I219/H219,0),8),4),\"hr_batteries\"),\"n/a\"),\"n/a\")","v":"n/a"},{"$f":"IF(T219=\"n/a\",S219,\"hybrid\")","v":"n/a"},{"$f":"IFERROR(IF(DATE(K219,L219,M219)<=DATE(K219,6,1),K219,K219+1),0)","v":0},{"$f":"IFERROR(IF(DATE(N219,O219,P219)>=DATE(N219,10,1),N219,N219-1),0)","v":0},{"$f":"IF(OR(T219=\"n/a\",NOT(F219=\"NO\")),100%,IF(ISNUMBER(SEARCH(\"pv\",S219)),MIN(G219/(1*(ROUNDDOWN(I219/H219,0)/4)),H219)/H219,IF(ISNUMBER(SEARCH(\"wind\",S219)),MIN(G219/(2*(ROUNDDOWN(I219/H219,0)/4)),H219)/H219,1)))","v":1},{"$f":"IF(ISNUMBER(SEARCH(\"batteries\",S219)),MIN(ROUNDDOWN(I219/D219,0)/4,1), IF(ISNUMBER(SEARCH(\"batteries\",T219)),MIN(ROUNDDOWN(I219/H219,0)/4,1),1))","v":1},{"$f":"MIN((IFERROR(IF(AND($V219<=Z$1,$W219>=Z$1),INDEX(Reliability!E$23:E$50,MATCH($S219,Reliability!$C$23:$C$50,0)),0),0)*IF($T219=\"n/a\",$D219*$Y219,$G219)+IFERROR(IF(AND($V219<=Z$1,$W219>=Z$1),INDEX(Reliability!E$23:E$50,MATCH($T219,Reliability!$C$23:$C$50,0)),0),0)*$H219*$X219*$Y219),$D219)*$R219","v":0},{"$f":"MIN((IFERROR(IF(AND($V219<=AA$1,$W219>=AA$1),INDEX(Reliability!F$23:F$50,MATCH($S219,Reliability!$C$23:$C$50,0)),0),0)*IF($T219=\"n/a\",$D219*$Y219,$G219)+IFERROR(IF(AND($V219<=AA$1,$W219>=AA$1),INDEX(Reliability!F$23:F$50,MATCH($T219,Reliability!$C$23:$C$50,0)),0),0)*$H219*$X219*$Y219),$D219)*$R219","v":0},{"$f":"MIN((IFERROR(IF(AND($V219<=AB$1,$W219>=AB$1),INDEX(Reliability!G$23:G$50,MATCH($S219,Reliability!$C$23:$C$50,0)),0),0)*IF($T219=\"n/a\",$D219*$Y219,$G219)+IFERROR(IF(AND($V219<=AB$1,$W219>=AB$1),INDEX(Reliability!G$23:G$50,MATCH($T219,Reliability!$C$23:$C$50,0)),0),0)*$H219*$X219*$Y219),$D219)*$R219","v":0},{"$f":"MIN((IFERROR(IF(AND($V219<=AC$1,$W219>=AC$1),INDEX(Reliability!H$23:H$50,MATCH($S219,Reliability!$C$23:$C$50,0)),0),0)*IF($T219=\"n/a\",$D219*$Y219,$G219)+IFERROR(IF(AND($V219<=AC$1,$W219>=AC$1),INDEX(Reliability!H$23:H$50,MATCH($T219,Reliability!$C$23:$C$50,0)),0),0)*$H219*$X219*$Y219),$D219)*$R219","v":0},{"$f":"MIN((IFERROR(IF(AND($V219<=AD$1,$W219>=AD$1),INDEX(Reliability!I$23:I$50,MATCH($S219,Reliability!$C$23:$C$50,0)),0),0)*IF($T219=\"n/a\",$D219*$Y219,$G219)+IFERROR(IF(AND($V219<=AD$1,$W219>=AD$1),INDEX(Reliability!I$23:I$50,MATCH($T219,Reliability!$C$23:$C$50,0)),0),0)*$H219*$X219*$Y219),$D219)*$R219","v":0},{"$f":"MIN((IFERROR(IF(AND($V219<=AE$1,$W219>=AE$1),INDEX(Reliability!J$23:J$50,MATCH($S219,Reliability!$C$23:$C$50,0)),0),0)*IF($T219=\"n/a\",$D219*$Y219,$G219)+IFERROR(IF(AND($V219<=AE$1,$W219>=AE$1),INDEX(Reliability!J$23:J$50,MATCH($T219,Reliability!$C$23:$C$50,0)),0),0)*$H219*$X219*$Y219),$D219)*$R219","v":0},{"$f":"MIN((IFERROR(IF(AND($V219<=AF$1,$W219>=AF$1),INDEX(Reliability!K$23:K$50,MATCH($S219,Reliability!$C$23:$C$50,0)),0),0)*IF($T219=\"n/a\",$D219*$Y219,$G219)+IFERROR(IF(AND($V219<=AF$1,$W219>=AF$1),INDEX(Reliability!K$23:K$50,MATCH($T219,Reliability!$C$23:$C$50,0)),0),0)*$H219*$X219*$Y219),$D219)*$R219","v":0},{"$f":"MIN((IFERROR(IF(AND($V219<=AG$1,$W219>=AG$1),INDEX(Reliability!L$23:L$50,MATCH($S219,Reliability!$C$23:$C$50,0)),0),0)*IF($T219=\"n/a\",$D219*$Y219,$G219)+IFERROR(IF(AND($V219<=AG$1,$W219>=AG$1),INDEX(Reliability!L$23:L$50,MATCH($T219,Reliability!$C$23:$C$50,0)),0),0)*$H219*$X219*$Y219),$D219)*$R219","v":0},{"$f":"MIN((IFERROR(IF(AND($V219<=AH$1,$W219>=AH$1),INDEX(Reliability!M$23:M$50,MATCH($S219,Reliability!$C$23:$C$50,0)),0),0)*IF($T219=\"n/a\",$D219*$Y219,$G219)+IFERROR(IF(AND($V219<=AH$1,$W219>=AH$1),INDEX(Reliability!M$23:M$50,MATCH($T219,Reliability!$C$23:$C$50,0)),0),0)*$H219*$X219*$Y219),$D219)*$R219","v":0},{"$f":"MIN((IFERROR(IF(AND($V219<=AI$1,$W219>=AI$1),INDEX(Reliability!N$23:N$50,MATCH($S219,Reliability!$C$23:$C$50,0)),0),0)*IF($T219=\"n/a\",$D219*$Y219,$G219)+IFERROR(IF(AND($V219<=AI$1,$W219>=AI$1),INDEX(Reliability!N$23:N$50,MATCH($T219,Reliability!$C$23:$C$50,0)),0),0)*$H219*$X219*$Y219),$D219)*$R219","v":0},{"$f":"MIN((IFERROR(IF(AND($V219<=AJ$1,$W219>=AJ$1),INDEX(Reliability!O$23:O$50,MATCH($S219,Reliability!$C$23:$C$50,0)),0),0)*IF($T219=\"n/a\",$D219*$Y219,$G219)+IFERROR(IF(AND($V219<=AJ$1,$W219>=AJ$1),INDEX(Reliability!O$23:O$50,MATCH($T219,Reliability!$C$23:$C$50,0)),0),0)*$H219*$X219*$Y219),$D219)*$R219","v":0},{"$f":"MIN((IFERROR(IF(AND($V219<=AK$1,$W219>=AK$1),INDEX(Reliability!P$23:P$50,MATCH($S219,Reliability!$C$23:$C$50,0)),0),0)*IF($T219=\"n/a\",$D219*$Y219,$G219)+IFERROR(IF(AND($V219<=AK$1,$W219>=AK$1),INDEX(Reliability!P$23:P$50,MATCH($T219,Reliability!$C$23:$C$50,0)),0),0)*$H219*$X219*$Y219),$D219)*$R219","v":0}]
[null,{"$f":"unique_contracts!B221","v":0},{"$f":"unique_contracts!D221","v":0},{"$f":"unique_contracts!J221","v":0},{"$f":"unique_contracts!M221","v":0},{"$f":"unique_contracts!N221","v":0},{"$f":"unique_contracts!P221","v":0},{"$f":"unique_contracts!R221","v":0},{"$f":"unique_contracts!V221","v":0},{"$f":"unique_contracts!AB221","v":0},{"$f":"unique_contracts!AM221","v":0},{"$f":"unique_contracts!AN221","v":0},{"$f":"unique_contracts!AO221","v":0},{"$f":"unique_contracts!AP221","v":0},{"$f":"unique_contracts!AQ221","v":0},{"$f":"unique_contracts!AR221","v":0},{"$f":"unique_contracts!BP221","v":0},0,{"$f":"IFERROR(IF(AND(I220>0,E220=\"NotHybrid\"),_xlfn.CONCAT(MAX(MIN(ROUNDDOWN(I220/D220,0),8),4),INDEX(resources!$G:$G,MATCH(B220,resources!$A:$A,0))),INDEX(resources!$G:$G,MATCH(B220,resources!$A:$A,0))),\"n/a\")","v":"n/a"},"n/a","n/a",0,0,1,1,{"$f":"MIN((IFERROR(IF(AND($V220<=Z$1,$W220>=Z$1),INDEX(Reliability!E$23:E$50,MATCH($S220,Reliability!$C$23:$C$50,0)),0),0)*IF($T220=\"n/a\",$D220*$Y220,$G220)+IFERROR(IF(AND($V220<=Z$1,$W220>=Z$1),INDEX(Reliability!E$23:E$50,MATCH($T220,Reliability!$C$23:$C$50,0)),0),0)*$H220*$X220*$Y220),$D220)*$R220","v":0},{"$f":"MIN((IFERROR(IF(AND($V220<=AA$1,$W220>=AA$1),INDEX(Reliability!F$23:F$50,MATCH($S220,Reliability!$C$23:$C$50,0)),0),0)*IF($T220=\"n/a\",$D220*$Y220,$G220)+IFERROR(IF(AND($V220<=AA$1,$W220>=AA$1),INDEX(Reliability!F$23:F$50,MATCH($T220,Reliability!$C$23:$C$50,0)),0),0)*$H220*$X220*$Y220),$D220)*$R220","v":0},{"$f":"MIN((IFERROR(IF(AND($V220<=AB$1,$W220>=AB$1),INDEX(Reliability!G$23:G$50,MATCH($S220,Reliability!$C$23:$C$50,0)),0),0)*IF($T220=\"n/a\",$D220*$Y220,$G220)+IFERROR(IF(AND($V220<=AB$1,$W220>=AB$1),INDEX(Reliability!G$23:G$50,MATCH($T220,Reliability!$C$23:$C$50,0)),0),0)*$H220*$X220*$Y220),$D220)*$R220","v":0},{"$f":"MIN((IFERROR(IF(AND($V220<=AC$1,$W220>=AC$1),INDEX(Reliability!H$23:H$50,MATCH($S220,Reliability!$C$23:$C$50,0)),0),0)*IF($T220=\"n/a\",$D220*$Y220,$G220)+IFERROR(IF(AND($V220<=AC$1,$W220>=AC$1),INDEX(Reliability!H$23:H$50,MATCH($T220,Reliability!$C$23:$C$50,0)),0),0)*$H220*$X220*$Y220),$D220)*$R220","v":0},{"$f":"MIN((IFERROR(IF(AND($V220<=AD$1,$W220>=AD$1),INDEX(Reliability!I$23:I$50,MATCH($S220,Reliability!$C$23:$C$50,0)),0),0)*IF($T220=\"n/a\",$D220*$Y220,$G220)+IFERROR(IF(AND($V220<=AD$1,$W220>=AD$1),INDEX(Reliability!I$23:I$50,MATCH($T220,Reliability!$C$23:$C$50,0)),0),0)*$H220*$X220*$Y220),$D220)*$R220","v":0},{"$f":"MIN((IFERROR(IF(AND($V220<=AE$1,$W220>=AE$1),INDEX(Reliability!J$23:J$50,MATCH($S220,Reliability!$C$23:$C$50,0)),0),0)*IF($T220=\"n/a\",$D220*$Y220,$G220)+IFERROR(IF(AND($V220<=AE$1,$W220>=AE$1),INDEX(Reliability!J$23:J$50,MATCH($T220,Reliability!$C$23:$C$50,0)),0),0)*$H220*$X220*$Y220),$D220)*$R220","v":0},{"$f":"MIN((IFERROR(IF(AND($V220<=AF$1,$W220>=AF$1),INDEX(Reliability!K$23:K$50,MATCH($S220,Reliability!$C$23:$C$50,0)),0),0)*IF($T220=\"n/a\",$D220*$Y220,$G220)+IFERROR(IF(AND($V220<=AF$1,$W220>=AF$1),INDEX(Reliability!K$23:K$50,MATCH($T220,Reliability!$C$23:$C$50,0)),0),0)*$H220*$X220*$Y220),$D220)*$R220","v":0},{"$f":"MIN((IFERROR(IF(AND($V220<=AG$1,$W220>=AG$1),INDEX(Reliability!L$23:L$50,MATCH($S220,Reliability!$C$23:$C$50,0)),0),0)*IF($T220=\"n/a\",$D220*$Y220,$G220)+IFERROR(IF(AND($V220<=AG$1,$W220>=AG$1),INDEX(Reliability!L$23:L$50,MATCH($T220,Reliability!$C$23:$C$50,0)),0),0)*$H220*$X220*$Y220),$D220)*$R220","v":0},{"$f":"MIN((IFERROR(IF(AND($V220<=AH$1,$W220>=AH$1),INDEX(Reliability!M$23:M$50,MATCH($S220,Reliability!$C$23:$C$50,0)),0),0)*IF($T220=\"n/a\",$D220*$Y220,$G220)+IFERROR(IF(AND($V220<=AH$1,$W220>=AH$1),INDEX(Reliability!M$23:M$50,MATCH($T220,Reliability!$C$23:$C$50,0)),0),0)*$H220*$X220*$Y220),$D220)*$R220","v":0},{"$f":"MIN((IFERROR(IF(AND($V220<=AI$1,$W220>=AI$1),INDEX(Reliability!N$23:N$50,MATCH($S220,Reliability!$C$23:$C$50,0)),0),0)*IF($T220=\"n/a\",$D220*$Y220,$G220)+IFERROR(IF(AND($V220<=AI$1,$W220>=AI$1),INDEX(Reliability!N$23:N$50,MATCH($T220,Reliability!$C$23:$C$50,0)),0),0)*$H220*$X220*$Y220),$D220)*$R220","v":0},{"$f":"MIN((IFERROR(IF(AND($V220<=AJ$1,$W220>=AJ$1),INDEX(Reliability!O$23:O$50,MATCH($S220,Reliability!$C$23:$C$50,0)),0),0)*IF($T220=\"n/a\",$D220*$Y220,$G220)+IFERROR(IF(AND($V220<=AJ$1,$W220>=AJ$1),INDEX(Reliability!O$23:O$50,MATCH($T220,Reliability!$C$23:$C$50,0)),0),0)*$H220*$X220*$Y220),$D220)*$R220","v":0},{"$f":"MIN((IFERROR(IF(AND($V220<=AK$1,$W220>=AK$1),INDEX(Reliability!P$23:P$50,MATCH($S220,Reliability!$C$23:$C$50,0)),0),0)*IF($T220=\"n/a\",$D220*$Y220,$G220)+IFERROR(IF(AND($V220<=AK$1,$W220>=AK$1),INDEX(Reliability!P$23:P$50,MATCH($T220,Reliability!$C$23:$C$50,0)),0),0)*$H220*$X220*$Y220),$D220)*$R220","v":0}]
[null,{"$f":"unique_contracts!B222","v":0},{"$f":"unique_contracts!D222","v":0},{"$f":"unique_contracts!J222","v":0},{"$f":"unique_contracts!M222","v":0},{"$f":"unique_contracts!N222","v":0},{"$f":"unique_contracts!P222","v":0},{"$f":"unique_contracts!R222","v":0},{"$f":"unique_contracts!V222","v":0},{"$f":"unique_contracts!AB222","v":0},{"$f":"unique_contracts!AM222","v":0},{"$f":"unique_contracts!AN222","v":0},{"$f":"unique_contracts!AO222","v":0},{"$f":"unique_contracts!AP222","v":0},{"$f":"unique_contracts!AQ222","v":0},{"$f":"unique_contracts!AR222","v":0},{"$f":"unique_contracts!BP222","v":0},0,{"$f":"IFERROR(IF(AND(I221>0,E221=\"NotHybrid\"),_xlfn.CONCAT(MAX(MIN(ROUNDDOWN(I221/D221,0),8),4),INDEX(resources!$G:$G,MATCH(B221,resources!$A:$A,0))),INDEX(resources!$G:$G,MATCH(B221,resources!$A:$A,0))),\"n/a\")","v":"n/a"},"n/a","n/a",0,0,1,1,{"$f":"MIN((IFERROR(IF(AND($V221<=Z$1,$W221>=Z$1),INDEX(Reliability!E$23:E$50,MATCH($S221,Reliability!$C$23:$C$50,0)),0),0)*IF($T221=\"n/a\",$D221*$Y221,$G221)+IFERROR(IF(AND($V221<=Z$1,$W221>=Z$1),INDEX(Reliability!E$23:E$50,MATCH($T221,Reliability!$C$23:$C$50,0)),0),0)*$H221*$X221*$Y221),$D221)*$R221","v":0},{"$f":"MIN((IFERROR(IF(AND($V221<=AA$1,$W221>=AA$1),INDEX(Reliability!F$23:F$50,MATCH($S221,Reliability!$C$23:$C$50,0)),0),0)*IF($T221=\"n/a\",$D221*$Y221,$G221)+IFERROR(IF(AND($V221<=AA$1,$W221>=AA$1),INDEX(Reliability!F$23:F$50,MATCH($T221,Reliability!$C$23:$C$50,0)),0),0)*$H221*$X221*$Y221),$D221)*$R221","v":0},{"$f":"MIN((IFERROR(IF(AND($V221<=AB$1,$W221>=AB$1),INDEX(Reliability!G$23:G$50,MATCH($S221,Reliability!$C$23:$C$50,0)),0),0)*IF($T221=\"n/a\",$D221*$Y221,$G221)+IFERROR(IF(AND($V221<=AB$1,$W221>=AB$1),INDEX(Reliability!G$23:G$50,MATCH($T221,Reliability!$C$23:$C$50,0)),0),0)*$H221*$X221*$Y221),$D221)*$R221","v":0},{"$f":"MIN((IFERROR(IF(AND($V221<=AC$1,$W221>=AC$1),INDEX(Reliability!H$23:H$50,MATCH($S221,Reliability!$C$23:$C$50,0)),0),0)*IF($T221=\"n/a\",$D221*$Y221,$G221)+IFERROR(IF(AND($V221<=AC$1,$W221>=AC$1),INDEX(Reliability!H$23:H$50,MATCH($T221,Reliability!$C$23:$C$50,0)),0),0)*$H221*$X221*$Y221),$D221)*$R221","v":0},{"$f":"MIN((IFERROR(IF(AND($V221<=AD$1,$W221>=AD$1),INDEX(Reliability!I$23:I$50,MATCH($S221,Reliability!$C$23:$C$50,0)),0),0)*IF($T221=\"n/a\",$D221*$Y221,$G221)+IFERROR(IF(AND($V221<=AD$1,$W221>=AD$1),INDEX(Reliability!I$23:I$50,MATCH($T221,Reliability!$C$23:$C$50,0)),0),0)*$H221*$X221*$Y221),$D221)*$R221","v":0},{"$f":"MIN((IFERROR(IF(AND($V221<=AE$1,$W221>=AE$1),INDEX(Reliability!J$23:J$50,MATCH($S221,Reliability!$C$23:$C$50,0)),0),0)*IF($T221=\"n/a\",$D221*$Y221,$G221)+IFERROR(IF(AND($V221<=AE$1,$W221>=AE$1),INDEX(Reliability!J$23:J$50,MATCH($T221,Reliability!$C$23:$C$50,0)),0),0)*$H221*$X221*$Y221),$D221)*$R221","v":0},{"$f":"MIN((IFERROR(IF(AND($V221<=AF$1,$W221>=AF$1),INDEX(Reliability!K$23:K$50,MATCH($S221,Reliability!$C$23:$C$50,0)),0),0)*IF($T221=\"n/a\",$D221*$Y221,$G221)+IFERROR(IF(AND($V221<=AF$1,$W221>=AF$1),INDEX(Reliability!K$23:K$50,MATCH($T221,Reliability!$C$23:$C$50,0)),0),0)*$H221*$X221*$Y221),$D221)*$R221","v":0},{"$f":"MIN((IFERROR(IF(AND($V221<=AG$1,$W221>=AG$1),INDEX(Reliability!L$23:L$50,MATCH($S221,Reliability!$C$23:$C$50,0)),0),0)*IF($T221=\"n/a\",$D221*$Y221,$G221)+IFERROR(IF(AND($V221<=AG$1,$W221>=AG$1),INDEX(Reliability!L$23:L$50,MATCH($T221,Reliability!$C$23:$C$50,0)),0),0)*$H221*$X221*$Y221),$D221)*$R221","v":0},{"$f":"MIN((IFERROR(IF(AND($V221<=AH$1,$W221>=AH$1),INDEX(Reliability!M$23:M$50,MATCH($S221,Reliability!$C$23:$C$50,0)),0),0)*IF($T221=\"n/a\",$D221*$Y221,$G221)+IFERROR(IF(AND($V221<=AH$1,$W221>=AH$1),INDEX(Reliability!M$23:M$50,MATCH($T221,Reliability!$C$23:$C$50,0)),0),0)*$H221*$X221*$Y221),$D221)*$R221","v":0},{"$f":"MIN((IFERROR(IF(AND($V221<=AI$1,$W221>=AI$1),INDEX(Reliability!N$23:N$50,MATCH($S221,Reliability!$C$23:$C$50,0)),0),0)*IF($T221=\"n/a\",$D221*$Y221,$G221)+IFERROR(IF(AND($V221<=AI$1,$W221>=AI$1),INDEX(Reliability!N$23:N$50,MATCH($T221,Reliability!$C$23:$C$50,0)),0),0)*$H221*$X221*$Y221),$D221)*$R221","v":0},{"$f":"MIN((IFERROR(IF(AND($V221<=AJ$1,$W221>=AJ$1),INDEX(Reliability!O$23:O$50,MATCH($S221,Reliability!$C$23:$C$50,0)),0),0)*IF($T221=\"n/a\",$D221*$Y221,$G221)+IFERROR(IF(AND($V221<=AJ$1,$W221>=AJ$1),INDEX(Reliability!O$23:O$50,MATCH($T221,Reliability!$C$23:$C$50,0)),0),0)*$H221*$X221*$Y221),$D221)*$R221","v":0},{"$f":"MIN((IFERROR(IF(AND($V221<=AK$1,$W221>=AK$1),INDEX(Reliability!P$23:P$50,MATCH($S221,Reliability!$C$23:$C$50,0)),0),0)*IF($T221=\"n/a\",$D221*$Y221,$G221)+IFERROR(IF(AND($V221<=AK$1,$W221>=AK$1),INDEX(Reliability!P$23:P$50,MATCH($T221,Reliability!$C$23:$C$50,0)),0),0)*$H221*$X221*$Y221),$D221)*$R221","v":0}]
[null,{"$f":"unique_contracts!B223","v":0},{"$f":"unique_contracts!D223","v":0},{"$f":"unique_contracts!J223","v":0},{"$f":"unique_contracts!M223","v":0},{"$f":"unique_contracts!N223","v":0},{"$f":"unique_contracts!P223","v":0},{"$f":"unique_contracts!R223","v":0},{"$f":"unique_contracts!V223","v":0},{"$f":"unique_contracts!AB223","v":0},{"$f":"unique_contracts!AM223","v":0},{"$f":"unique_contracts!AN223","v":0},{"$f":"unique_contracts!AO223","v":0},{"$f":"unique_contracts!AP223","v":0},{"$f":"unique_contracts!AQ223","v":0},{"$f":"unique_contracts!AR223","v":0},{"$f":"unique_contracts!BP223","v":0},0,{"$f":"IFERROR(IF(AND(I222>0,E222=\"NotHybrid\"),_xlfn.CONCAT(MAX(MIN(ROUNDDOWN(I222/D222,0),8),4),INDEX(resources!$G:$G,MATCH(B222,resources!$A:$A,0))),INDEX(resources!$G:$G,MATCH(B222,resources!$A:$A,0))),\"n/a\")","v":"n/a"},"n/a","n/a",0,0,1,1,{"$f":"MIN((IFERROR(IF(AND($V222<=Z$1,$W222>=Z$1),INDEX(Reliability!E$23:E$50,MATCH($S222,Reliability!$C$23:$C$50,0)),0),0)*IF($T222=\"n/a\",$D222*$Y222,$G222)+IFERROR(IF(AND($V222<=Z$1,$W222>=Z$1),INDEX(Reliability!E$23:E$50,MATCH($T222,Reliability!$C$23:$C$50,0)),0),0)*$H222*$X222*$Y222),$D222)*$R222","v":0},{"$f":"MIN((IFERROR(IF(AND($V222<=AA$1,$W222>=AA$1),INDEX(Reliability!F$23:F$50,MATCH($S222,Reliability!$C$23:$C$50,0)),0),0)*IF($T222=\"n/a\",$D222*$Y222,$G222)+IFERROR(IF(AND($V222<=AA$1,$W222>=AA$1),INDEX(Reliability!F$23:F$50,MATCH($T222,Reliability!$C$23:$C$50,0)),0),0)*$H222*$X222*$Y222),$D222)*$R222","v":0},{"$f":"MIN((IFERROR(IF(AND($V222<=AB$1,$W222>=AB$1),INDEX(Reliability!G$23:G$50,MATCH($S222,Reliability!$C$23:$C$50,0)),0),0)*IF($T222=\"n/a\",$D222*$Y222,$G222)+IFERROR(IF(AND($V222<=AB$1,$W222>=AB$1),INDEX(Reliability!G$23:G$50,MATCH($T222,Reliability!$C$23:$C$50,0)),0),0)*$H222*$X222*$Y222),$D222)*$R222","v":0},{"$f":"MIN((IFERROR(IF(AND($V222<=AC$1,$W222>=AC$1),INDEX(Reliability!H$23:H$50,MATCH($S222,Reliability!$C$23:$C$50,0)),0),0)*IF($T222=\"n/a\",$D222*$Y222,$G222)+IFERROR(IF(AND($V222<=AC$1,$W222>=AC$1),INDEX(Reliability!H$23:H$50,MATCH($T222,Reliability!$C$23:$C$50,0)),0),0)*$H222*$X222*$Y222),$D222)*$R222","v":0},{"$f":"MIN((IFERROR(IF(AND($V222<=AD$1,$W222>=AD$1),INDEX(Reliability!I$23:I$50,MATCH($S222,Reliability!$C$23:$C$50,0)),0),0)*IF($T222=\"n/a\",$D222*$Y222,$G222)+IFERROR(IF(AND($V222<=AD$1,$W222>=AD$1),INDEX(Reliability!I$23:I$50,MATCH($T222,Reliability!$C$23:$C$50,0)),0),0)*$H222*$X222*$Y222),$D222)*$R222","v":0},{"$f":"MIN((IFERROR(IF(AND($V222<=AE$1,$W222>=AE$1),INDEX(Reliability!J$23:J$50,MATCH($S222,Reliability!$C$23:$C$50,0)),0),0)*IF($T222=\"n/a\",$D222*$Y222,$G222)+IFERROR(IF(AND($V222<=AE$1,$W222>=AE$1),INDEX(Reliability!J$23:J$50,MATCH($T222,Reliability!$C$23:$C$50,0)),0),0)*$H222*$X222*$Y222),$D222)*$R222","v":0},{"$f":"MIN((IFERROR(IF(AND($V222<=AF$1,$W222>=AF$1),INDEX(Reliability!K$23:K$50,MATCH($S222,Reliability!$C$23:$C$50,0)),0),0)*IF($T222=\"n/a\",$D222*$Y222,$G222)+IFERROR(IF(AND($V222<=AF$1,$W222>=AF$1),INDEX(Reliability!K$23:K$50,MATCH($T222,Reliability!$C$23:$C$50,0)),0),0)*$H222*$X222*$Y222),$D222)*$R222","v":0},{"$f":"MIN((IFERROR(IF(AND($V222<=AG$1,$W222>=AG$1),INDEX(Reliability!L$23:L$50,MATCH($S222,Reliability!$C$23:$C$50,0)),0),0)*IF($T222=\"n/a\",$D222*$Y222,$G222)+IFERROR(IF(AND($V222<=AG$1,$W222>=AG$1),INDEX(Reliability!L$23:L$50,MATCH($T222,Reliability!$C$23:$C$50,0)),0),0)*$H222*$X222*$Y222),$D222)*$R222","v":0},{"$f":"MIN((IFERROR(IF(AND($V222<=AH$1,$W222>=AH$1),INDEX(Reliability!M$23:M$50,MATCH($S222,Reliability!$C$23:$C$50,0)),0),0)*IF($T222=\"n/a\",$D222*$Y222,$G222)+IFERROR(IF(AND($V222<=AH$1,$W222>=AH$1),INDEX(Reliability!M$23:M$50,MATCH($T222,Reliability!$C$23:$C$50,0)),0),0)*$H222*$X222*$Y222),$D222)*$R222","v":0},{"$f":"MIN((IFERROR(IF(AND($V222<=AI$1,$W222>=AI$1),INDEX(Reliability!N$23:N$50,MATCH($S222,Reliability!$C$23:$C$50,0)),0),0)*IF($T222=\"n/a\",$D222*$Y222,$G222)+IFERROR(IF(AND($V222<=AI$1,$W222>=AI$1),INDEX(Reliability!N$23:N$50,MATCH($T222,Reliability!$C$23:$C$50,0)),0),0)*$H222*$X222*$Y222),$D222)*$R222","v":0},{"$f":"MIN((IFERROR(IF(AND($V222<=AJ$1,$W222>=AJ$1),INDEX(Reliability!O$23:O$50,MATCH($S222,Reliability!$C$23:$C$50,0)),0),0)*IF($T222=\"n/a\",$D222*$Y222,$G222)+IFERROR(IF(AND($V222<=AJ$1,$W222>=AJ$1),INDEX(Reliability!O$23:O$50,MATCH($T222,Reliability!$C$23:$C$50,0)),0),0)*$H222*$X222*$Y222),$D222)*$R222","v":0},{"$f":"MIN((IFERROR(IF(AND($V222<=AK$1,$W222>=AK$1),INDEX(Reliability!P$23:P$50,MATCH($S222,Reliability!$C$23:$C$50,0)),0),0)*IF($T222=\"n/a\",$D222*$Y222,$G222)+IFERROR(IF(AND($V222<=AK$1,$W222>=AK$1),INDEX(Reliability!P$23:P$50,MATCH($T222,Reliability!$C$23:$C$50,0)),0),0)*$H222*$X222*$Y222),$D222)*$R222","v":0}]
[null,{"$f":"unique_contracts!B224","v":0},{"$f":"unique_contracts!D224","v":0},{"$f":"unique_contracts!J224","v":0},{"$f":"unique_contracts!M224","v":0},{"$f":"unique_contracts!N224","v":0},{"$f":"unique_contracts!P224","v":0},{"$f":"unique_contracts!R224","v":0},{"$f":"unique_contracts!V224","v":0},{"$f":"unique_contracts!AB224","v":0},{"$f":"unique_contracts!AM224","v":0},{"$f":"unique_contracts!AN224","v":0},{"$f":"unique_contracts!AO224","v":0},{"$f":"unique_contracts!AP224","v":0},{"$f":"unique_contracts!AQ224","v":0},{"$f":"unique_contracts!AR224","v":0},{"$f":"unique_contracts!BP224","v":0},0,{"$f":"IFERROR(IF(AND(I223>0,E223=\"NotHybrid\"),_xlfn.CONCAT(MAX(MIN(ROUNDDOWN(I223/D223,0),8),4),INDEX(resources!$G:$G,MATCH(B223,resources!$A:$A,0))),INDEX(resources!$G:$G,MATCH(B223,resources!$A:$A,0))),\"n/a\")","v":"n/a"},"n/a","n/a",0,0,1,1,{"$f":"MIN((IFERROR(IF(AND($V223<=Z$1,$W223>=Z$1),INDEX(Reliability!E$23:E$50,MATCH($S223,Reliability!$C$23:$C$50,0)),0),0)*IF($T223=\"n/a\",$D223*$Y223,$G223)+IFERROR(IF(AND($V223<=Z$1,$W223>=Z$1),INDEX(Reliability!E$23:E$50,MATCH($T223,Reliability!$C$23:$C$50,0)),0),0)*$H223*$X223*$Y223),$D223)*$R223","v":0},{"$f":"MIN((IFERROR(IF(AND($V223<=AA$1,$W223>=AA$1),INDEX(Reliability!F$23:F$50,MATCH($S223,Reliability!$C$23:$C$50,0)),0),0)*IF($T223=\"n/a\",$D223*$Y223,$G223)+IFERROR(IF(AND($V223<=AA$1,$W223>=AA$1),INDEX(Reliability!F$23:F$50,MATCH($T223,Reliability!$C$23:$C$50,0)),0),0)*$H223*$X223*$Y223),$D223)*$R223","v":0},{"$f":"MIN((IFERROR(IF(AND($V223<=AB$1,$W223>=AB$1),INDEX(Reliability!G$23:G$50,MATCH($S223,Reliability!$C$23:$C$50,0)),0),0)*IF($T223=\"n/a\",$D223*$Y223,$G223)+IFERROR(IF(AND($V223<=AB$1,$W223>=AB$1),INDEX(Reliability!G$23:G$50,MATCH($T223,Reliability!$C$23:$C$50,0)),0),0)*$H223*$X223*$Y223),$D223)*$R223","v":0},{"$f":"MIN((IFERROR(IF(AND($V223<=AC$1,$W223>=AC$1),INDEX(Reliability!H$23:H$50,MATCH($S223,Reliability!$C$23:$C$50,0)),0),0)*IF($T223=\"n/a\",$D223*$Y223,$G223)+IFERROR(IF(AND($V223<=AC$1,$W223>=AC$1),INDEX(Reliability!H$23:H$50,MATCH($T223,Reliability!$C$23:$C$50,0)),0),0)*$H223*$X223*$Y223),$D223)*$R223","v":0},{"$f":"MIN((IFERROR(IF(AND($V223<=AD$1,$W223>=AD$1),INDEX(Reliability!I$23:I$50,MATCH($S223,Reliability!$C$23:$C$50,0)),0),0)*IF($T223=\"n/a\",$D223*$Y223,$G223)+IFERROR(IF(AND($V223<=AD$1,$W223>=AD$1),INDEX(Reliability!I$23:I$50,MATCH($T223,Reliability!$C$23:$C$50,0)),0),0)*$H223*$X223*$Y223),$D223)*$R223","v":0},{"$f":"MIN((IFERROR(IF(AND($V223<=AE$1,$W223>=AE$1),INDEX(Reliability!J$23:J$50,MATCH($S223,Reliability!$C$23:$C$50,0)),0),0)*IF($T223=\"n/a\",$D223*$Y223,$G223)+IFERROR(IF(AND($V223<=AE$1,$W223>=AE$1),INDEX(Reliability!J$23:J$50,MATCH($T223,Reliability!$C$23:$C$50,0)),0),0)*$H223*$X223*$Y223),$D223)*$R223","v":0},{"$f":"MIN((IFERROR(IF(AND($V223<=AF$1,$W223>=AF$1),INDEX(Reliability!K$23:K$50,MATCH($S223,Reliability!$C$23:$C$50,0)),0),0)*IF($T223=\"n/a\",$D223*$Y223,$G223)+IFERROR(IF(AND($V223<=AF$1,$W223>=AF$1),INDEX(Reliability!K$23:K$50,MATCH($T223,Reliability!$C$23:$C$50,0)),0),0)*$H223*$X223*$Y223),$D223)*$R223","v":0},{"$f":"MIN((IFERROR(IF(AND($V223<=AG$1,$W223>=AG$1),INDEX(Reliability!L$23:L$50,MATCH($S223,Reliability!$C$23:$C$50,0)),0),0)*IF($T223=\"n/a\",$D223*$Y223,$G223)+IFERROR(IF(AND($V223<=AG$1,$W223>=AG$1),INDEX(Reliability!L$23:L$50,MATCH($T223,Reliability!$C$23:$C$50,0)),0),0)*$H223*$X223*$Y223),$D223)*$R223","v":0},{"$f":"MIN((IFERROR(IF(AND($V223<=AH$1,$W223>=AH$1),INDEX(Reliability!M$23:M$50,MATCH($S223,Reliability!$C$23:$C$50,0)),0),0)*IF($T223=\"n/a\",$D223*$Y223,$G223)+IFERROR(IF(AND($V223<=AH$1,$W223>=AH$1),INDEX(Reliability!M$23:M$50,MATCH($T223,Reliability!$C$23:$C$50,0)),0),0)*$H223*$X223*$Y223),$D223)*$R223","v":0},{"$f":"MIN((IFERROR(IF(AND($V223<=AI$1,$W223>=AI$1),INDEX(Reliability!N$23:N$50,MATCH($S223,Reliability!$C$23:$C$50,0)),0),0)*IF($T223=\"n/a\",$D223*$Y223,$G223)+IFERROR(IF(AND($V223<=AI$1,$W223>=AI$1),INDEX(Reliability!N$23:N$50,MATCH($T223,Reliability!$C$23:$C$50,0)),0),0)*$H223*$X223*$Y223),$D223)*$R223","v":0},{"$f":"MIN((IFERROR(IF(AND($V223<=AJ$1,$W223>=AJ$1),INDEX(Reliability!O$23:O$50,MATCH($S223,Reliability!$C$23:$C$50,0)),0),0)*IF($T223=\"n/a\",$D223*$Y223,$G223)+IFERROR(IF(AND($V223<=AJ$1,$W223>=AJ$1),INDEX(Reliability!O$23:O$50,MATCH($T223,Reliability!$C$23:$C$50,0)),0),0)*$H223*$X223*$Y223),$D223)*$R223","v":0},{"$f":"MIN((IFERROR(IF(AND($V223<=AK$1,$W223>=AK$1),INDEX(Reliability!P$23:P$50,MATCH($S223,Reliability!$C$23:$C$50,0)),0),0)*IF($T223=\"n/a\",$D223*$Y223,$G223)+IFERROR(IF(AND($V223<=AK$1,$W223>=AK$1),INDEX(Reliability!P$23:P$50,MATCH($T223,Reliability!$C$23:$C$50,0)),0),0)*$H223*$X223*$Y223),$D223)*$R223","v":0}]
[null,{"$f":"unique_contracts!B225","v":0},{"$f":"unique_contracts!D225","v":0},{"$f":"unique_contracts!J225","v":0},{"$f":"unique_contracts!M225","v":0},{"$f":"unique_contracts!N225","v":0},{"$f":"unique_contracts!P225","v":0},{"$f":"unique_contracts!R225","v":0},{"$f":"unique_contracts!V225","v":0},{"$f":"unique_contracts!AB225","v":0},{"$f":"unique_contracts!AM225","v":0},{"$f":"unique_contracts!AN225","v":0},{"$f":"unique_contracts!AO225","v":0},{"$f":"unique_contracts!AP225","v":0},{"$f":"unique_contracts!AQ225","v":0},{"$f":"unique_contracts!AR225","v":0},{"$f":"unique_contracts!BP225","v":0},0,{"$f":"IFERROR(IF(AND(I224>0,E224=\"NotHybrid\"),_xlfn.CONCAT(MAX(MIN(ROUNDDOWN(I224/D224,0),8),4),INDEX(resources!$G:$G,MATCH(B224,resources!$A:$A,0))),INDEX(resources!$G:$G,MATCH(B224,resources!$A:$A,0))),\"n/a\")","v":"n/a"},"n/a","n/a",0,0,1,1,{"$f":"MIN((IFERROR(IF(AND($V224<=Z$1,$W224>=Z$1),INDEX(Reliability!E$23:E$50,MATCH($S224,Reliability!$C$23:$C$50,0)),0),0)*IF($T224=\"n/a\",$D224*$Y224,$G224)+IFERROR(IF(AND($V224<=Z$1,$W224>=Z$1),INDEX(Reliability!E$23:E$50,MATCH($T224,Reliability!$C$23:$C$50,0)),0),0)*$H224*$X224*$Y224),$D224)*$R224","v":0},{"$f":"MIN((IFERROR(IF(AND($V224<=AA$1,$W224>=AA$1),INDEX(Reliability!F$23:F$50,MATCH($S224,Reliability!$C$23:$C$50,0)),0),0)*IF($T224=\"n/a\",$D224*$Y224,$G224)+IFERROR(IF(AND($V224<=AA$1,$W224>=AA$1),INDEX(Reliability!F$23:F$50,MATCH($T224,Reliability!$C$23:$C$50,0)),0),0)*$H224*$X224*$Y224),$D224)*$R224","v":0},{"$f":"MIN((IFERROR(IF(AND($V224<=AB$1,$W224>=AB$1),INDEX(Reliability!G$23:G$50,MATCH($S224,Reliability!$C$23:$C$50,0)),0),0)*IF($T224=\"n/a\",$D224*$Y224,$G224)+IFERROR(IF(AND($V224<=AB$1,$W224>=AB$1),INDEX(Reliability!G$23:G$50,MATCH($T224,Reliability!$C$23:$C$50,0)),0),0)*$H224*$X224*$Y224),$D224)*$R224","v":0},{"$f":"MIN((IFERROR(IF(AND($V224<=AC$1,$W224>=AC$1),INDEX(Reliability!H$23:H$50,MATCH($S224,Reliability!$C$23:$C$50,0)),0),0)*IF($T224=\"n/a\",$D224*$Y224,$G224)+IFERROR(IF(AND($V224<=AC$1,$W224>=AC$1),INDEX(Reliability!H$23:H$50,MATCH($T224,Reliability!$C$23:$C$50,0)),0),0)*$H224*$X224*$Y224),$D224)*$R224","v":0},{"$f":"MIN((IFERROR(IF(AND($V224<=AD$1,$W224>=AD$1),INDEX(Reliability!I$23:I$50,MATCH($S224,Reliability!$C$23:$C$50,0)),0),0)*IF($T224=\"n/a\",$D224*$Y224,$G224)+IFERROR(IF(AND($V224<=AD$1,$W224>=AD$1),INDEX(Reliability!I$23:I$50,MATCH($T224,Reliability!$C$23:$C$50,0)),0),0)*$H224*$X224*$Y224),$D224)*$R224","v":0},{"$f":"MIN((IFERROR(IF(AND($V224<=AE$1,$W224>=AE$1),INDEX(Reliability!J$23:J$50,MATCH($S224,Reliability!$C$23:$C$50,0)),0),0)*IF($T224=\"n/a\",$D224*$Y224,$G224)+IFERROR(IF(AND($V224<=AE$1,$W224>=AE$1),INDEX(Reliability!J$23:J$50,MATCH($T224,Reliability!$C$23:$C$50,0)),0),0)*$H224*$X224*$Y224),$D224)*$R224","v":0},{"$f":"MIN((IFERROR(IF(AND($V224<=AF$1,$W224>=AF$1),INDEX(Reliability!K$23:K$50,MATCH($S224,Reliability!$C$23:$C$50,0)),0),0)*IF($T224=\"n/a\",$D224*$Y224,$G224)+IFERROR(IF(AND($V224<=AF$1,$W224>=AF$1),INDEX(Reliability!K$23:K$50,MATCH($T224,Reliability!$C$23:$C$50,0)),0),0)*$H224*$X224*$Y224),$D224)*$R224","v":0},{"$f":"MIN((IFERROR(IF(AND($V224<=AG$1,$W224>=AG$1),INDEX(Reliability!L$23:L$50,MATCH($S224,Reliability!$C$23:$C$50,0)),0),0)*IF($T224=\"n/a\",$D224*$Y224,$G224)+IFERROR(IF(AND($V224<=AG$1,$W224>=AG$1),INDEX(Reliability!L$23:L$50,MATCH($T224,Reliability!$C$23:$C$50,0)),0),0)*$H224*$X224*$Y224),$D224)*$R224","v":0},{"$f":"MIN((IFERROR(IF(AND($V224<=AH$1,$W224>=AH$1),INDEX(Reliability!M$23:M$50,MATCH($S224,Reliability!$C$23:$C$50,0)),0),0)*IF($T224=\"n/a\",$D224*$Y224,$G224)+IFERROR(IF(AND($V224<=AH$1,$W224>=AH$1),INDEX(Reliability!M$23:M$50,MATCH($T224,Reliability!$C$23:$C$50,0)),0),0)*$H224*$X224*$Y224),$D224)*$R224","v":0},{"$f":"MIN((IFERROR(IF(AND($V224<=AI$1,$W224>=AI$1),INDEX(Reliability!N$23:N$50,MATCH($S224,Reliability!$C$23:$C$50,0)),0),0)*IF($T224=\"n/a\",$D224*$Y224,$G224)+IFERROR(IF(AND($V224<=AI$1,$W224>=AI$1),INDEX(Reliability!N$23:N$50,MATCH($T224,Reliability!$C$23:$C$50,0)),0),0)*$H224*$X224*$Y224),$D224)*$R224","v":0},{"$f":"MIN((IFERROR(IF(AND($V224<=AJ$1,$W224>=AJ$1),INDEX(Reliability!O$23:O$50,MATCH($S224,Reliability!$C$23:$C$50,0)),0),0)*IF($T224=\"n/a\",$D224*$Y224,$G224)+IFERROR(IF(AND($V224<=AJ$1,$W224>=AJ$1),INDEX(Reliability!O$23:O$50,MATCH($T224,Reliability!$C$23:$C$50,0)),0),0)*$H224*$X224*$Y224),$D224)*$R224","v":0},{"$f":"MIN((IFERROR(IF(AND($V224<=AK$1,$W224>=AK$1),INDEX(Reliability!P$23:P$50,MATCH($S224,Reliability!$C$23:$C$50,0)),0),0)*IF($T224=\"n/a\",$D224*$Y224,$G224)+IFERROR(IF(AND($V224<=AK$1,$W224>=AK$1),INDEX(Reliability!P$23:P$50,MATCH($T224,Reliability!$C$23:$C$50,0)),0),0)*$H224*$X224*$Y224),$D224)*$R224","v":0}]
[null,{"$f":"unique_contracts!B226","v":0},{"$f":"unique_contracts!D226","v":0},{"$f":"unique_contracts!J226","v":0},{"$f":"unique_contracts!M226","v":0},{"$f":"unique_contracts!N226","v":0},{"$f":"unique_contracts!P226","v":0},{"$f":"unique_contracts!R226","v":0},{"$f":"unique_contracts!V226","v":0},{"$f":"unique_contracts!AB226","v":0},{"$f":"unique_contracts!AM226","v":0},{"$f":"unique_contracts!AN226","v":0},{"$f":"unique_contracts!AO226","v":0},{"$f":"unique_contracts!AP226","v":0},{"$f":"unique_contracts!AQ226","v":0},{"$f":"unique_contracts!AR226","v":0},{"$f":"unique_contracts!BP226","v":0},0,{"$f":"IFERROR(IF(AND(I225>0,E225=\"NotHybrid\"),_xlfn.CONCAT(MAX(MIN(ROUNDDOWN(I225/D225,0),8),4),INDEX(resources!$G:$G,MATCH(B225,resources!$A:$A,0))),INDEX(resources!$G:$G,MATCH(B225,resources!$A:$A,0))),\"n/a\")","v":"n/a"},"n/a","n/a",0,0,1,1,{"$f":"MIN((IFERROR(IF(AND($V225<=Z$1,$W225>=Z$1),INDEX(Reliability!E$23:E$50,MATCH($S225,Reliability!$C$23:$C$50,0)),0),0)*IF($T225=\"n/a\",$D225*$Y225,$G225)+IFERROR(IF(AND($V225<=Z$1,$W225>=Z$1),INDEX(Reliability!E$23:E$50,MATCH($T225,Reliability!$C$23:$C$50,0)),0),0)*$H225*$X225*$Y225),$D225)*$R225","v":0},{"$f":"MIN((IFERROR(IF(AND($V225<=AA$1,$W225>=AA$1),INDEX(Reliability!F$23:F$50,MATCH($S225,Reliability!$C$23:$C$50,0)),0),0)*IF($T225=\"n/a\",$D225*$Y225,$G225)+IFERROR(IF(AND($V225<=AA$1,$W225>=AA$1),INDEX(Reliability!F$23:F$50,MATCH($T225,Reliability!$C$23:$C$50,0)),0),0)*$H225*$X225*$Y225),$D225)*$R225","v":0},{"$f":"MIN((IFERROR(IF(AND($V225<=AB$1,$W225>=AB$1),INDEX(Reliability!G$23:G$50,MATCH($S225,Reliability!$C$23:$C$50,0)),0),0)*IF($T225=\"n/a\",$D225*$Y225,$G225)+IFERROR(IF(AND($V225<=AB$1,$W225>=AB$1),INDEX(Reliability!G$23:G$50,MATCH($T225,Reliability!$C$23:$C$50,0)),0),0)*$H225*$X225*$Y225),$D225)*$R225","v":0},{"$f":"MIN((IFERROR(IF(AND($V225<=AC$1,$W225>=AC$1),INDEX(Reliability!H$23:H$50,MATCH($S225,Reliability!$C$23:$C$50,0)),0),0)*IF($T225=\"n/a\",$D225*$Y225,$G225)+IFERROR(IF(AND($V225<=AC$1,$W225>=AC$1),INDEX(Reliability!H$23:H$50,MATCH($T225,Reliability!$C$23:$C$50,0)),0),0)*$H225*$X225*$Y225),$D225)*$R225","v":0},{"$f":"MIN((IFERROR(IF(AND($V225<=AD$1,$W225>=AD$1),INDEX(Reliability!I$23:I$50,MATCH($S225,Reliability!$C$23:$C$50,0)),0),0)*IF($T225=\"n/a\",$D225*$Y225,$G225)+IFERROR(IF(AND($V225<=AD$1,$W225>=AD$1),INDEX(Reliability!I$23:I$50,MATCH($T225,Reliability!$C$23:$C$50,0)),0),0)*$H225*$X225*$Y225),$D225)*$R225","v":0},{"$f":"MIN((IFERROR(IF(AND($V225<=AE$1,$W225>=AE$1),INDEX(Reliability!J$23:J$50,MATCH($S225,Reliability!$C$23:$C$50,0)),0),0)*IF($T225=\"n/a\",$D225*$Y225,$G225)+IFERROR(IF(AND($V225<=AE$1,$W225>=AE$1),INDEX(Reliability!J$23:J$50,MATCH($T225,Reliability!$C$23:$C$50,0)),0),0)*$H225*$X225*$Y225),$D225)*$R225","v":0},{"$f":"MIN((IFERROR(IF(AND($V225<=AF$1,$W225>=AF$1),INDEX(Reliability!K$23:K$50,MATCH($S225,Reliability!$C$23:$C$50,0)),0),0)*IF($T225=\"n/a\",$D225*$Y225,$G225)+IFERROR(IF(AND($V225<=AF$1,$W225>=AF$1),INDEX(Reliability!K$23:K$50,MATCH($T225,Reliability!$C$23:$C$50,0)),0),0)*$H225*$X225*$Y225),$D225)*$R225","v":0},{"$f":"MIN((IFERROR(IF(AND($V225<=AG$1,$W225>=AG$1),INDEX(Reliability!L$23:L$50,MATCH($S225,Reliability!$C$23:$C$50,0)),0),0)*IF($T225=\"n/a\",$D225*$Y225,$G225)+IFERROR(IF(AND($V225<=AG$1,$W225>=AG$1),INDEX(Reliability!L$23:L$50,MATCH($T225,Reliability!$C$23:$C$50,0)),0),0)*$H225*$X225*$Y225),$D225)*$R225","v":0},{"$f":"MIN((IFERROR(IF(AND($V225<=AH$1,$W225>=AH$1),INDEX(Reliability!M$23:M$50,MATCH($S225,Reliability!$C$23:$C$50,0)),0),0)*IF($T225=\"n/a\",$D225*$Y225,$G225)+IFERROR(IF(AND($V225<=AH$1,$W225>=AH$1),INDEX(Reliability!M$23:M$50,MATCH($T225,Reliability!$C$23:$C$50,0)),0),0)*$H225*$X225*$Y225),$D225)*$R225","v":0},{"$f":"MIN((IFERROR(IF(AND($V225<=AI$1,$W225>=AI$1),INDEX(Reliability!N$23:N$50,MATCH($S225,Reliability!$C$23:$C$50,0)),0),0)*IF($T225=\"n/a\",$D225*$Y225,$G225)+IFERROR(IF(AND($V225<=AI$1,$W225>=AI$1),INDEX(Reliability!N$23:N$50,MATCH($T225,Reliability!$C$23:$C$50,0)),0),0)*$H225*$X225*$Y225),$D225)*$R225","v":0},{"$f":"MIN((IFERROR(IF(AND($V225<=AJ$1,$W225>=AJ$1),INDEX(Reliability!O$23:O$50,MATCH($S225,Reliability!$C$23:$C$50,0)),0),0)*IF($T225=\"n/a\",$D225*$Y225,$G225)+IFERROR(IF(AND($V225<=AJ$1,$W225>=AJ$1),INDEX(Reliability!O$23:O$50,MATCH($T225,Reliability!$C$23:$C$50,0)),0),0)*$H225*$X225*$Y225),$D225)*$R225","v":0},{"$f":"MIN((IFERROR(IF(AND($V225<=AK$1,$W225>=AK$1),INDEX(Reliability!P$23:P$50,MATCH($S225,Reliability!$C$23:$C$50,0)),0),0)*IF($T225=\"n/a\",$D225*$Y225,$G225)+IFERROR(IF(AND($V225<=AK$1,$W225>=AK$1),INDEX(Reliability!P$23:P$50,MATCH($T225,Reliability!$C$23:$C$50,0)),0),0)*$H225*$X225*$Y225),$D225)*$R225","v":0}]
[null,{"$f":"unique_contracts!B227","v":0},{"$f":"unique_contracts!D227","v":0},{"$f":"unique_contracts!J227","v":0},{"$f":"unique_contracts!M227","v":0},{"$f":"unique_contracts!N227","v":0},{"$f":"unique_contracts!P227","v":0},{"$f":"unique_contracts!R227","v":0},{"$f":"unique_contracts!V227","v":0},{"$f":"unique_contracts!AB227","v":0},{"$f":"unique_contracts!AM227","v":0},{"$f":"unique_contracts!AN227","v":0},{"$f":"unique_contracts!AO227","v":0},{"$f":"unique_contracts!AP227","v":0},{"$f":"unique_contracts!AQ227","v":0},{"$f":"unique_contracts!AR227","v":0},{"$f":"unique_contracts!BP227","v":0},0,{"$f":"IFERROR(IF(AND(I226>0,E226=\"NotHybrid\"),_xlfn.CONCAT(MAX(MIN(ROUNDDOWN(I226/D226,0),8),4),INDEX(resources!$G:$G,MATCH(B226,resources!$A:$A,0))),INDEX(resources!$G:$G,MATCH(B226,resources!$A:$A,0))),\"n/a\")","v":"n/a"},"n/a","n/a",0,0,1,1,{"$f":"MIN((IFERROR(IF(AND($V226<=Z$1,$W226>=Z$1),INDEX(Reliability!E$23:E$50,MATCH($S226,Reliability!$C$23:$C$50,0)),0),0)*IF($T226=\"n/a\",$D226*$Y226,$G226)+IFERROR(IF(AND($V226<=Z$1,$W226>=Z$1),INDEX(Reliability!E$23:E$50,MATCH($T226,Reliability!$C$23:$C$50,0)),0),0)*$H226*$X226*$Y226),$D226)*$R226","v":0},{"$f":"MIN((IFERROR(IF(AND($V226<=AA$1,$W226>=AA$1),INDEX(Reliability!F$23:F$50,MATCH($S226,Reliability!$C$23:$C$50,0)),0),0)*IF($T226=\"n/a\",$D226*$Y226,$G226)+IFERROR(IF(AND($V226<=AA$1,$W226>=AA$1),INDEX(Reliability!F$23:F$50,MATCH($T226,Reliability!$C$23:$C$50,0)),0),0)*$H226*$X226*$Y226),$D226)*$R226","v":0},{"$f":"MIN((IFERROR(IF(AND($V226<=AB$1,$W226>=AB$1),INDEX(Reliability!G$23:G$50,MATCH($S226,Reliability!$C$23:$C$50,0)),0),0)*IF($T226=\"n/a\",$D226*$Y226,$G226)+IFERROR(IF(AND($V226<=AB$1,$W226>=AB$1),INDEX(Reliability!G$23:G$50,MATCH($T226,Reliability!$C$23:$C$50,0)),0),0)*$H226*$X226*$Y226),$D226)*$R226","v":0},{"$f":"MIN((IFERROR(IF(AND($V226<=AC$1,$W226>=AC$1),INDEX(Reliability!H$23:H$50,MATCH($S226,Reliability!$C$23:$C$50,0)),0),0)*IF($T226=\"n/a\",$D226*$Y226,$G226)+IFERROR(IF(AND($V226<=AC$1,$W226>=AC$1),INDEX(Reliability!H$23:H$50,MATCH($T226,Reliability!$C$23:$C$50,0)),0),0)*$H226*$X226*$Y226),$D226)*$R226","v":0},{"$f":"MIN((IFERROR(IF(AND($V226<=AD$1,$W226>=AD$1),INDEX(Reliability!I$23:I$50,MATCH($S226,Reliability!$C$23:$C$50,0)),0),0)*IF($T226=\"n/a\",$D226*$Y226,$G226)+IFERROR(IF(AND($V226<=AD$1,$W226>=AD$1),INDEX(Reliability!I$23:I$50,MATCH($T226,Reliability!$C$23:$C$50,0)),0),0)*$H226*$X226*$Y226),$D226)*$R226","v":0},{"$f":"MIN((IFERROR(IF(AND($V226<=AE$1,$W226>=AE$1),INDEX(Reliability!J$23:J$50,MATCH($S226,Reliability!$C$23:$C$50,0)),0),0)*IF($T226=\"n/a\",$D226*$Y226,$G226)+IFERROR(IF(AND($V226<=AE$1,$W226>=AE$1),INDEX(Reliability!J$23:J$50,MATCH($T226,Reliability!$C$23:$C$50,0)),0),0)*$H226*$X226*$Y226),$D226)*$R226","v":0},{"$f":"MIN((IFERROR(IF(AND($V226<=AF$1,$W226>=AF$1),INDEX(Reliability!K$23:K$50,MATCH($S226,Reliability!$C$23:$C$50,0)),0),0)*IF($T226=\"n/a\",$D226*$Y226,$G226)+IFERROR(IF(AND($V226<=AF$1,$W226>=AF$1),INDEX(Reliability!K$23:K$50,MATCH($T226,Reliability!$C$23:$C$50,0)),0),0)*$H226*$X226*$Y226),$D226)*$R226","v":0},{"$f":"MIN((IFERROR(IF(AND($V226<=AG$1,$W226>=AG$1),INDEX(Reliability!L$23:L$50,MATCH($S226,Reliability!$C$23:$C$50,0)),0),0)*IF($T226=\"n/a\",$D226*$Y226,$G226)+IFERROR(IF(AND($V226<=AG$1,$W226>=AG$1),INDEX(Reliability!L$23:L$50,MATCH($T226,Reliability!$C$23:$C$50,0)),0),0)*$H226*$X226*$Y226),$D226)*$R226","v":0},{"$f":"MIN((IFERROR(IF(AND($V226<=AH$1,$W226>=AH$1),INDEX(Reliability!M$23:M$50,MATCH($S226,Reliability!$C$23:$C$50,0)),0),0)*IF($T226=\"n/a\",$D226*$Y226,$G226)+IFERROR(IF(AND($V226<=AH$1,$W226>=AH$1),INDEX(Reliability!M$23:M$50,MATCH($T226,Reliability!$C$23:$C$50,0)),0),0)*$H226*$X226*$Y226),$D226)*$R226","v":0},{"$f":"MIN((IFERROR(IF(AND($V226<=AI$1,$W226>=AI$1),INDEX(Reliability!N$23:N$50,MATCH($S226,Reliability!$C$23:$C$50,0)),0),0)*IF($T226=\"n/a\",$D226*$Y226,$G226)+IFERROR(IF(AND($V226<=AI$1,$W226>=AI$1),INDEX(Reliability!N$23:N$50,MATCH($T226,Reliability!$C$23:$C$50,0)),0),0)*$H226*$X226*$Y226),$D226)*$R226","v":0},{"$f":"MIN((IFERROR(IF(AND($V226<=AJ$1,$W226>=AJ$1),INDEX(Reliability!O$23:O$50,MATCH($S226,Reliability!$C$23:$C$50,0)),0),0)*IF($T226=\"n/a\",$D226*$Y226,$G226)+IFERROR(IF(AND($V226<=AJ$1,$W226>=AJ$1),INDEX(Reliability!O$23:O$50,MATCH($T226,Reliability!$C$23:$C$50,0)),0),0)*$H226*$X226*$Y226),$D226)*$R226","v":0},{"$f":"MIN((IFERROR(IF(AND($V226<=AK$1,$W226>=AK$1),INDEX(Reliability!P$23:P$50,MATCH($S226,Reliability!$C$23:$C$50,0)),0),0)*IF($T226=\"n/a\",$D226*$Y226,$G226)+IFERROR(IF(AND($V226<=AK$1,$W226>=AK$1),INDEX(Reliability!P$23:P$50,MATCH($T226,Reliability!$C$23:$C$50,0)),0),0)*$H226*$X226*$Y226),$D226)*$R226","v":0}]
[null,{"$f":"unique_contracts!B228","v":0},{"$f":"unique_contracts!D228","v":0},{"$f":"unique_contracts!J228","v":0},{"$f":"unique_contracts!M228","v":0},{"$f":"unique_contracts!N228","v":0},{"$f":"unique_contracts!P228","v":0},{"$f":"unique_contracts!R228","v":0},{"$f":"unique_contracts!V228","v":0},{"$f":"unique_contracts!AB228","v":0},{"$f":"unique_contracts!AM228","v":0},{"$f":"unique_contracts!AN228","v":0},{"$f":"unique_contracts!AO228","v":0},{"$f":"unique_contracts!AP228","v":0},{"$f":"unique_contracts!AQ228","v":0},{"$f":"unique_contracts!AR228","v":0},{"$f":"unique_contracts!BP228","v":0},0,{"$f":"IFERROR(IF(AND(I227>0,E227=\"NotHybrid\"),_xlfn.CONCAT(MAX(MIN(ROUNDDOWN(I227/D227,0),8),4),INDEX(resources!$G:$G,MATCH(B227,resources!$A:$A,0))),INDEX(resources!$G:$G,MATCH(B227,resources!$A:$A,0))),\"n/a\")","v":"n/a"},"n/a","n/a",0,0,1,1,{"$f":"MIN((IFERROR(IF(AND($V227<=Z$1,$W227>=Z$1),INDEX(Reliability!E$23:E$50,MATCH($S227,Reliability!$C$23:$C$50,0)),0),0)*IF($T227=\"n/a\",$D227*$Y227,$G227)+IFERROR(IF(AND($V227<=Z$1,$W227>=Z$1),INDEX(Reliability!E$23:E$50,MATCH($T227,Reliability!$C$23:$C$50,0)),0),0)*$H227*$X227*$Y227),$D227)*$R227","v":0},{"$f":"MIN((IFERROR(IF(AND($V227<=AA$1,$W227>=AA$1),INDEX(Reliability!F$23:F$50,MATCH($S227,Reliability!$C$23:$C$50,0)),0),0)*IF($T227=\"n/a\",$D227*$Y227,$G227)+IFERROR(IF(AND($V227<=AA$1,$W227>=AA$1),INDEX(Reliability!F$23:F$50,MATCH($T227,Reliability!$C$23:$C$50,0)),0),0)*$H227*$X227*$Y227),$D227)*$R227","v":0},{"$f":"MIN((IFERROR(IF(AND($V227<=AB$1,$W227>=AB$1),INDEX(Reliability!G$23:G$50,MATCH($S227,Reliability!$C$23:$C$50,0)),0),0)*IF($T227=\"n/a\",$D227*$Y227,$G227)+IFERROR(IF(AND($V227<=AB$1,$W227>=AB$1),INDEX(Reliability!G$23:G$50,MATCH($T227,Reliability!$C$23:$C$50,0)),0),0)*$H227*$X227*$Y227),$D227)*$R227","v":0},{"$f":"MIN((IFERROR(IF(AND($V227<=AC$1,$W227>=AC$1),INDEX(Reliability!H$23:H$50,MATCH($S227,Reliability!$C$23:$C$50,0)),0),0)*IF($T227=\"n/a\",$D227*$Y227,$G227)+IFERROR(IF(AND($V227<=AC$1,$W227>=AC$1),INDEX(Reliability!H$23:H$50,MATCH($T227,Reliability!$C$23:$C$50,0)),0),0)*$H227*$X227*$Y227),$D227)*$R227","v":0},{"$f":"MIN((IFERROR(IF(AND($V227<=AD$1,$W227>=AD$1),INDEX(Reliability!I$23:I$50,MATCH($S227,Reliability!$C$23:$C$50,0)),0),0)*IF($T227=\"n/a\",$D227*$Y227,$G227)+IFERROR(IF(AND($V227<=AD$1,$W227>=AD$1),INDEX(Reliability!I$23:I$50,MATCH($T227,Reliability!$C$23:$C$50,0)),0),0)*$H227*$X227*$Y227),$D227)*$R227","v":0},{"$f":"MIN((IFERROR(IF(AND($V227<=AE$1,$W227>=AE$1),INDEX(Reliability!J$23:J$50,MATCH($S227,Reliability!$C$23:$C$50,0)),0),0)*IF($T227=\"n/a\",$D227*$Y227,$G227)+IFERROR(IF(AND($V227<=AE$1,$W227>=AE$1),INDEX(Reliability!J$23:J$50,MATCH($T227,Reliability!$C$23:$C$50,0)),0),0)*$H227*$X227*$Y227),$D227)*$R227","v":0},{"$f":"MIN((IFERROR(IF(AND($V227<=AF$1,$W227>=AF$1),INDEX(Reliability!K$23:K$50,MATCH($S227,Reliability!$C$23:$C$50,0)),0),0)*IF($T227=\"n/a\",$D227*$Y227,$G227)+IFERROR(IF(AND($V227<=AF$1,$W227>=AF$1),INDEX(Reliability!K$23:K$50,MATCH($T227,Reliability!$C$23:$C$50,0)),0),0)*$H227*$X227*$Y227),$D227)*$R227","v":0},{"$f":"MIN((IFERROR(IF(AND($V227<=AG$1,$W227>=AG$1),INDEX(Reliability!L$23:L$50,MATCH($S227,Reliability!$C$23:$C$50,0)),0),0)*IF($T227=\"n/a\",$D227*$Y227,$G227)+IFERROR(IF(AND($V227<=AG$1,$W227>=AG$1),INDEX(Reliability!L$23:L$50,MATCH($T227,Reliability!$C$23:$C$50,0)),0),0)*$H227*$X227*$Y227),$D227)*$R227","v":0},{"$f":"MIN((IFERROR(IF(AND($V227<=AH$1,$W227>=AH$1),INDEX(Reliability!M$23:M$50,MATCH($S227,Reliability!$C$23:$C$50,0)),0),0)*IF($T227=\"n/a\",$D227*$Y227,$G227)+IFERROR(IF(AND($V227<=AH$1,$W227>=AH$1),INDEX(Reliability!M$23:M$50,MATCH($T227,Reliability!$C$23:$C$50,0)),0),0)*$H227*$X227*$Y227),$D227)*$R227","v":0},{"$f":"MIN((IFERROR(IF(AND($V227<=AI$1,$W227>=AI$1),INDEX(Reliability!N$23:N$50,MATCH($S227,Reliability!$C$23:$C$50,0)),0),0)*IF($T227=\"n/a\",$D227*$Y227,$G227)+IFERROR(IF(AND($V227<=AI$1,$W227>=AI$1),INDEX(Reliability!N$23:N$50,MATCH($T227,Reliability!$C$23:$C$50,0)),0),0)*$H227*$X227*$Y227),$D227)*$R227","v":0},{"$f":"MIN((IFERROR(IF(AND($V227<=AJ$1,$W227>=AJ$1),INDEX(Reliability!O$23:O$50,MATCH($S227,Reliability!$C$23:$C$50,0)),0),0)*IF($T227=\"n/a\",$D227*$Y227,$G227)+IFERROR(IF(AND($V227<=AJ$1,$W227>=AJ$1),INDEX(Reliability!O$23:O$50,MATCH($T227,Reliability!$C$23:$C$50,0)),0),0)*$H227*$X227*$Y227),$D227)*$R227","v":0},{"$f":"MIN((IFERROR(IF(AND($V227<=AK$1,$W227>=AK$1),INDEX(Reliability!P$23:P$50,MATCH($S227,Reliability!$C$23:$C$50,0)),0),0)*IF($T227=\"n/a\",$D227*$Y227,$G227)+IFERROR(IF(AND($V227<=AK$1,$W227>=AK$1),INDEX(Reliability!P$23:P$50,MATCH($T227,Reliability!$C$23:$C$50,0)),0),0)*$H227*$X227*$Y227),$D227)*$R227","v":0}]
[null,{"$f":"unique_contracts!B229","v":0},{"$f":"unique_contracts!D229","v":0},{"$f":"unique_contracts!J229","v":0},{"$f":"unique_contracts!M229","v":0},{"$f":"unique_contracts!N229","v":0},{"$f":"unique_contracts!P229","v":0},{"$f":"unique_contracts!R229","v":0},{"$f":"unique_contracts!V229","v":0},{"$f":"unique_contracts!AB229","v":0},{"$f":"unique_contracts!AM229","v":0},{"$f":"unique_contracts!AN229","v":0},{"$f":"unique_contracts!AO229","v":0},{"$f":"unique_contracts!AP229","v":0},{"$f":"unique_contracts!AQ229","v":0},{"$f":"unique_contracts!AR229","v":0},{"$f":"unique_contracts!BP229","v":0},0,{"$f":"IFERROR(IF(AND(I228>0,E228=\"NotHybrid\"),_xlfn.CONCAT(MAX(MIN(ROUNDDOWN(I228/D228,0),8),4),INDEX(resources!$G:$G,MATCH(B228,resources!$A:$A,0))),INDEX(resources!$G:$G,MATCH(B228,resources!$A:$A,0))),\"n/a\")","v":"n/a"},"n/a","n/a",0,0,1,1,{"$f":"MIN((IFERROR(IF(AND($V228<=Z$1,$W228>=Z$1),INDEX(Reliability!E$23:E$50,MATCH($S228,Reliability!$C$23:$C$50,0)),0),0)*IF($T228=\"n/a\",$D228*$Y228,$G228)+IFERROR(IF(AND($V228<=Z$1,$W228>=Z$1),INDEX(Reliability!E$23:E$50,MATCH($T228,Reliability!$C$23:$C$50,0)),0),0)*$H228*$X228*$Y228),$D228)*$R228","v":0},{"$f":"MIN((IFERROR(IF(AND($V228<=AA$1,$W228>=AA$1),INDEX(Reliability!F$23:F$50,MATCH($S228,Reliability!$C$23:$C$50,0)),0),0)*IF($T228=\"n/a\",$D228*$Y228,$G228)+IFERROR(IF(AND($V228<=AA$1,$W228>=AA$1),INDEX(Reliability!F$23:F$50,MATCH($T228,Reliability!$C$23:$C$50,0)),0),0)*$H228*$X228*$Y228),$D228)*$R228","v":0},{"$f":"MIN((IFERROR(IF(AND($V228<=AB$1,$W228>=AB$1),INDEX(Reliability!G$23:G$50,MATCH($S228,Reliability!$C$23:$C$50,0)),0),0)*IF($T228=\"n/a\",$D228*$Y228,$G228)+IFERROR(IF(AND($V228<=AB$1,$W228>=AB$1),INDEX(Reliability!G$23:G$50,MATCH($T228,Reliability!$C$23:$C$50,0)),0),0)*$H228*$X228*$Y228),$D228)*$R228","v":0},{"$f":"MIN((IFERROR(IF(AND($V228<=AC$1,$W228>=AC$1),INDEX(Reliability!H$23:H$50,MATCH($S228,Reliability!$C$23:$C$50,0)),0),0)*IF($T228=\"n/a\",$D228*$Y228,$G228)+IFERROR(IF(AND($V228<=AC$1,$W228>=AC$1),INDEX(Reliability!H$23:H$50,MATCH($T228,Reliability!$C$23:$C$50,0)),0),0)*$H228*$X228*$Y228),$D228)*$R228","v":0},{"$f":"MIN((IFERROR(IF(AND($V228<=AD$1,$W228>=AD$1),INDEX(Reliability!I$23:I$50,MATCH($S228,Reliability!$C$23:$C$50,0)),0),0)*IF($T228=\"n/a\",$D228*$Y228,$G228)+IFERROR(IF(AND($V228<=AD$1,$W228>=AD$1),INDEX(Reliability!I$23:I$50,MATCH($T228,Reliability!$C$23:$C$50,0)),0),0)*$H228*$X228*$Y228),$D228)*$R228","v":0},{"$f":"MIN((IFERROR(IF(AND($V228<=AE$1,$W228>=AE$1),INDEX(Reliability!J$23:J$50,MATCH($S228,Reliability!$C$23:$C$50,0)),0),0)*IF($T228=\"n/a\",$D228*$Y228,$G228)+IFERROR(IF(AND($V228<=AE$1,$W228>=AE$1),INDEX(Reliability!J$23:J$50,MATCH($T228,Reliability!$C$23:$C$50,0)),0),0)*$H228*$X228*$Y228),$D228)*$R228","v":0},{"$f":"MIN((IFERROR(IF(AND($V228<=AF$1,$W228>=AF$1),INDEX(Reliability!K$23:K$50,MATCH($S228,Reliability!$C$23:$C$50,0)),0),0)*IF($T228=\"n/a\",$D228*$Y228,$G228)+IFERROR(IF(AND($V228<=AF$1,$W228>=AF$1),INDEX(Reliability!K$23:K$50,MATCH($T228,Reliability!$C$23:$C$50,0)),0),0)*$H228*$X228*$Y228),$D228)*$R228","v":0},{"$f":"MIN((IFERROR(IF(AND($V228<=AG$1,$W228>=AG$1),INDEX(Reliability!L$23:L$50,MATCH($S228,Reliability!$C$23:$C$50,0)),0),0)*IF($T228=\"n/a\",$D228*$Y228,$G228)+IFERROR(IF(AND($V228<=AG$1,$W228>=AG$1),INDEX(Reliability!L$23:L$50,MATCH($T228,Reliability!$C$23:$C$50,0)),0),0)*$H228*$X228*$Y228),$D228)*$R228","v":0},{"$f":"MIN((IFERROR(IF(AND($V228<=AH$1,$W228>=AH$1),INDEX(Reliability!M$23:M$50,MATCH($S228,Reliability!$C$23:$C$50,0)),0),0)*IF($T228=\"n/a\",$D228*$Y228,$G228)+IFERROR(IF(AND($V228<=AH$1,$W228>=AH$1),INDEX(Reliability!M$23:M$50,MATCH($T228,Reliability!$C$23:$C$50,0)),0),0)*$H228*$X228*$Y228),$D228)*$R228","v":0},{"$f":"MIN((IFERROR(IF(AND($V228<=AI$1,$W228>=AI$1),INDEX(Reliability!N$23:N$50,MATCH($S228,Reliability!$C$23:$C$50,0)),0),0)*IF($T228=\"n/a\",$D228*$Y228,$G228)+IFERROR(IF(AND($V228<=AI$1,$W228>=AI$1),INDEX(Reliability!N$23:N$50,MATCH($T228,Reliability!$C$23:$C$50,0)),0),0)*$H228*$X228*$Y228),$D228)*$R228","v":0},{"$f":"MIN((IFERROR(IF(AND($V228<=AJ$1,$W228>=AJ$1),INDEX(Reliability!O$23:O$50,MATCH($S228,Reliability!$C$23:$C$50,0)),0),0)*IF($T228=\"n/a\",$D228*$Y228,$G228)+IFERROR(IF(AND($V228<=AJ$1,$W228>=AJ$1),INDEX(Reliability!O$23:O$50,MATCH($T228,Reliability!$C$23:$C$50,0)),0),0)*$H228*$X228*$Y228),$D228)*$R228","v":0},{"$f":"MIN((IFERROR(IF(AND($V228<=AK$1,$W228>=AK$1),INDEX(Reliability!P$23:P$50,MATCH($S228,Reliability!$C$23:$C$50,0)),0),0)*IF($T228=\"n/a\",$D228*$Y228,$G228)+IFERROR(IF(AND($V228<=AK$1,$W228>=AK$1),INDEX(Reliability!P$23:P$50,MATCH($T228,Reliability!$C$23:$C$50,0)),0),0)*$H228*$X228*$Y228),$D228)*$R228","v":0}]
[null,{"$f":"unique_contracts!B230","v":0},{"$f":"unique_contracts!D230","v":0},{"$f":"unique_contracts!J230","v":0},{"$f":"unique_contracts!M230","v":0},{"$f":"unique_contracts!N230","v":0},{"$f":"unique_contracts!P230","v":0},{"$f":"unique_contracts!R230","v":0},{"$f":"unique_contracts!V230","v":0},{"$f":"unique_contracts!AB230","v":0},{"$f":"unique_contracts!AM230","v":0},{"$f":"unique_contracts!AN230","v":0},{"$f":"unique_contracts!AO230","v":0},{"$f":"unique_contracts!AP230","v":0},{"$f":"unique_contracts!AQ230","v":0},{"$f":"unique_contracts!AR230","v":0},{"$f":"unique_contracts!BP230","v":0},0,{"$f":"IFERROR(IF(AND(I229>0,E229=\"NotHybrid\"),_xlfn.CONCAT(MAX(MIN(ROUNDDOWN(I229/D229,0),8),4),INDEX(resources!$G:$G,MATCH(B229,resources!$A:$A,0))),INDEX(resources!$G:$G,MATCH(B229,resources!$A:$A,0))),\"n/a\")","v":"n/a"},"n/a","n/a",0,0,1,1,{"$f":"MIN((IFERROR(IF(AND($V229<=Z$1,$W229>=Z$1),INDEX(Reliability!E$23:E$50,MATCH($S229,Reliability!$C$23:$C$50,0)),0),0)*IF($T229=\"n/a\",$D229*$Y229,$G229)+IFERROR(IF(AND($V229<=Z$1,$W229>=Z$1),INDEX(Reliability!E$23:E$50,MATCH($T229,Reliability!$C$23:$C$50,0)),0),0)*$H229*$X229*$Y229),$D229)*$R229","v":0},{"$f":"MIN((IFERROR(IF(AND($V229<=AA$1,$W229>=AA$1),INDEX(Reliability!F$23:F$50,MATCH($S229,Reliability!$C$23:$C$50,0)),0),0)*IF($T229=\"n/a\",$D229*$Y229,$G229)+IFERROR(IF(AND($V229<=AA$1,$W229>=AA$1),INDEX(Reliability!F$23:F$50,MATCH($T229,Reliability!$C$23:$C$50,0)),0),0)*$H229*$X229*$Y229),$D229)*$R229","v":0},{"$f":"MIN((IFERROR(IF(AND($V229<=AB$1,$W229>=AB$1),INDEX(Reliability!G$23:G$50,MATCH($S229,Reliability!$C$23:$C$50,0)),0),0)*IF($T229=\"n/a\",$D229*$Y229,$G229)+IFERROR(IF(AND($V229<=AB$1,$W229>=AB$1),INDEX(Reliability!G$23:G$50,MATCH($T229,Reliability!$C$23:$C$50,0)),0),0)*$H229*$X229*$Y229),$D229)*$R229","v":0},{"$f":"MIN((IFERROR(IF(AND($V229<=AC$1,$W229>=AC$1),INDEX(Reliability!H$23:H$50,MATCH($S229,Reliability!$C$23:$C$50,0)),0),0)*IF($T229=\"n/a\",$D229*$Y229,$G229)+IFERROR(IF(AND($V229<=AC$1,$W229>=AC$1),INDEX(Reliability!H$23:H$50,MATCH($T229,Reliability!$C$23:$C$50,0)),0),0)*$H229*$X229*$Y229),$D229)*$R229","v":0},{"$f":"MIN((IFERROR(IF(AND($V229<=AD$1,$W229>=AD$1),INDEX(Reliability!I$23:I$50,MATCH($S229,Reliability!$C$23:$C$50,0)),0),0)*IF($T229=\"n/a\",$D229*$Y229,$G229)+IFERROR(IF(AND($V229<=AD$1,$W229>=AD$1),INDEX(Reliability!I$23:I$50,MATCH($T229,Reliability!$C$23:$C$50,0)),0),0)*$H229*$X229*$Y229),$D229)*$R229","v":0},{"$f":"MIN((IFERROR(IF(AND($V229<=AE$1,$W229>=AE$1),INDEX(Reliability!J$23:J$50,MATCH($S229,Reliability!$C$23:$C$50,0)),0),0)*IF($T229=\"n/a\",$D229*$Y229,$G229)+IFERROR(IF(AND($V229<=AE$1,$W229>=AE$1),INDEX(Reliability!J$23:J$50,MATCH($T229,Reliability!$C$23:$C$50,0)),0),0)*$H229*$X229*$Y229),$D229)*$R229","v":0},{"$f":"MIN((IFERROR(IF(AND($V229<=AF$1,$W229>=AF$1),INDEX(Reliability!K$23:K$50,MATCH($S229,Reliability!$C$23:$C$50,0)),0),0)*IF($T229=\"n/a\",$D229*$Y229,$G229)+IFERROR(IF(AND($V229<=AF$1,$W229>=AF$1),INDEX(Reliability!K$23:K$50,MATCH($T229,Reliability!$C$23:$C$50,0)),0),0)*$H229*$X229*$Y229),$D229)*$R229","v":0},{"$f":"MIN((IFERROR(IF(AND($V229<=AG$1,$W229>=AG$1),INDEX(Reliability!L$23:L$50,MATCH($S229,Reliability!$C$23:$C$50,0)),0),0)*IF($T229=\"n/a\",$D229*$Y229,$G229)+IFERROR(IF(AND($V229<=AG$1,$W229>=AG$1),INDEX(Reliability!L$23:L$50,MATCH($T229,Reliability!$C$23:$C$50,0)),0),0)*$H229*$X229*$Y229),$D229)*$R229","v":0},{"$f":"MIN((IFERROR(IF(AND($V229<=AH$1,$W229>=AH$1),INDEX(Reliability!M$23:M$50,MATCH($S229,Reliability!$C$23:$C$50,0)),0),0)*IF($T229=\"n/a\",$D229*$Y229,$G229)+IFERROR(IF(AND($V229<=AH$1,$W229>=AH$1),INDEX(Reliability!M$23:M$50,MATCH($T229,Reliability!$C$23:$C$50,0)),0),0)*$H229*$X229*$Y229),$D229)*$R229","v":0},{"$f":"MIN((IFERROR(IF(AND($V229<=AI$1,$W229>=AI$1),INDEX(Reliability!N$23:N$50,MATCH($S229,Reliability!$C$23:$C$50,0)),0),0)*IF($T229=\"n/a\",$D229*$Y229,$G229)+IFERROR(IF(AND($V229<=AI$1,$W229>=AI$1),INDEX(Reliability!N$23:N$50,MATCH($T229,Reliability!$C$23:$C$50,0)),0),0)*$H229*$X229*$Y229),$D229)*$R229","v":0},{"$f":"MIN((IFERROR(IF(AND($V229<=AJ$1,$W229>=AJ$1),INDEX(Reliability!O$23:O$50,MATCH($S229,Reliability!$C$23:$C$50,0)),0),0)*IF($T229=\"n/a\",$D229*$Y229,$G229)+IFERROR(IF(AND($V229<=AJ$1,$W229>=AJ$1),INDEX(Reliability!O$23:O$50,MATCH($T229,Reliability!$C$23:$C$50,0)),0),0)*$H229*$X229*$Y229),$D229)*$R229","v":0},{"$f":"MIN((IFERROR(IF(AND($V229<=AK$1,$W229>=AK$1),INDEX(Reliability!P$23:P$50,MATCH($S229,Reliability!$C$23:$C$50,0)),0),0)*IF($T229=\"n/a\",$D229*$Y229,$G229)+IFERROR(IF(AND($V229<=AK$1,$W229>=AK$1),INDEX(Reliability!P$23:P$50,MATCH($T229,Reliability!$C$23:$C$50,0)),0),0)*$H229*$X229*$Y229),$D229)*$R229","v":0}]
[null,{"$f":"unique_contracts!B231","v":0},{"$f":"unique_contracts!D231","v":0},{"$f":"unique_contracts!J231","v":0},{"$f":"unique_contracts!M231","v":0},{"$f":"unique_contracts!N231","v":0},{"$f":"unique_contracts!P231","v":0},{"$f":"unique_contracts!R231","v":0},{"$f":"unique_contracts!V231","v":0},{"$f":"unique_contracts!AB231","v":0},{"$f":"unique_contracts!AM231","v":0},{"$f":"unique_contracts!AN231","v":0},{"$f":"unique_contracts!AO231","v":0},{"$f":"unique_contracts!AP231","v":0},{"$f":"unique_contracts!AQ231","v":0},{"$f":"unique_contracts!AR231","v":0},{"$f":"unique_contracts!BP231","v":0},0,{"$f":"IFERROR(IF(AND(I230>0,E230=\"NotHybrid\"),_xlfn.CONCAT(MAX(MIN(ROUNDDOWN(I230/D230,0),8),4),INDEX(resources!$G:$G,MATCH(B230,resources!$A:$A,0))),INDEX(resources!$G:$G,MATCH(B230,resources!$A:$A,0))),\"n/a\")","v":"n/a"},"n/a","n/a",0,0,1,1,{"$f":"MIN((IFERROR(IF(AND($V230<=Z$1,$W230>=Z$1),INDEX(Reliability!E$23:E$50,MATCH($S230,Reliability!$C$23:$C$50,0)),0),0)*IF($T230=\"n/a\",$D230*$Y230,$G230)+IFERROR(IF(AND($V230<=Z$1,$W230>=Z$1),INDEX(Reliability!E$23:E$50,MATCH($T230,Reliability!$C$23:$C$50,0)),0),0)*$H230*$X230*$Y230),$D230)*$R230","v":0},{"$f":"MIN((IFERROR(IF(AND($V230<=AA$1,$W230>=AA$1),INDEX(Reliability!F$23:F$50,MATCH($S230,Reliability!$C$23:$C$50,0)),0),0)*IF($T230=\"n/a\",$D230*$Y230,$G230)+IFERROR(IF(AND($V230<=AA$1,$W230>=AA$1),INDEX(Reliability!F$23:F$50,MATCH($T230,Reliability!$C$23:$C$50,0)),0),0)*$H230*$X230*$Y230),$D230)*$R230","v":0},{"$f":"MIN((IFERROR(IF(AND($V230<=AB$1,$W230>=AB$1),INDEX(Reliability!G$23:G$50,MATCH($S230,Reliability!$C$23:$C$50,0)),0),0)*IF($T230=\"n/a\",$D230*$Y230,$G230)+IFERROR(IF(AND($V230<=AB$1,$W230>=AB$1),INDEX(Reliability!G$23:G$50,MATCH($T230,Reliability!$C$23:$C$50,0)),0),0)*$H230*$X230*$Y230),$D230)*$R230","v":0},{"$f":"MIN((IFERROR(IF(AND($V230<=AC$1,$W230>=AC$1),INDEX(Reliability!H$23:H$50,MATCH($S230,Reliability!$C$23:$C$50,0)),0),0)*IF($T230=\"n/a\",$D230*$Y230,$G230)+IFERROR(IF(AND($V230<=AC$1,$W230>=AC$1),INDEX(Reliability!H$23:H$50,MATCH($T230,Reliability!$C$23:$C$50,0)),0),0)*$H230*$X230*$Y230),$D230)*$R230","v":0},{"$f":"MIN((IFERROR(IF(AND($V230<=AD$1,$W230>=AD$1),INDEX(Reliability!I$23:I$50,MATCH($S230,Reliability!$C$23:$C$50,0)),0),0)*IF($T230=\"n/a\",$D230*$Y230,$G230)+IFERROR(IF(AND($V230<=AD$1,$W230>=AD$1),INDEX(Reliability!I$23:I$50,MATCH($T230,Reliability!$C$23:$C$50,0)),0),0)*$H230*$X230*$Y230),$D230)*$R230","v":0},{"$f":"MIN((IFERROR(IF(AND($V230<=AE$1,$W230>=AE$1),INDEX(Reliability!J$23:J$50,MATCH($S230,Reliability!$C$23:$C$50,0)),0),0)*IF($T230=\"n/a\",$D230*$Y230,$G230)+IFERROR(IF(AND($V230<=AE$1,$W230>=AE$1),INDEX(Reliability!J$23:J$50,MATCH($T230,Reliability!$C$23:$C$50,0)),0),0)*$H230*$X230*$Y230),$D230)*$R230","v":0},{"$f":"MIN((IFERROR(IF(AND($V230<=AF$1,$W230>=AF$1),INDEX(Reliability!K$23:K$50,MATCH($S230,Reliability!$C$23:$C$50,0)),0),0)*IF($T230=\"n/a\",$D230*$Y230,$G230)+IFERROR(IF(AND($V230<=AF$1,$W230>=AF$1),INDEX(Reliability!K$23:K$50,MATCH($T230,Reliability!$C$23:$C$50,0)),0),0)*$H230*$X230*$Y230),$D230)*$R230","v":0},{"$f":"MIN((IFERROR(IF(AND($V230<=AG$1,$W230>=AG$1),INDEX(Reliability!L$23:L$50,MATCH($S230,Reliability!$C$23:$C$50,0)),0),0)*IF($T230=\"n/a\",$D230*$Y230,$G230)+IFERROR(IF(AND($V230<=AG$1,$W230>=AG$1),INDEX(Reliability!L$23:L$50,MATCH($T230,Reliability!$C$23:$C$50,0)),0),0)*$H230*$X230*$Y230),$D230)*$R230","v":0},{"$f":"MIN((IFERROR(IF(AND($V230<=AH$1,$W230>=AH$1),INDEX(Reliability!M$23:M$50,MATCH($S230,Reliability!$C$23:$C$50,0)),0),0)*IF($T230=\"n/a\",$D230*$Y230,$G230)+IFERROR(IF(AND($V230<=AH$1,$W230>=AH$1),INDEX(Reliability!M$23:M$50,MATCH($T230,Reliability!$C$23:$C$50,0)),0),0)*$H230*$X230*$Y230),$D230)*$R230","v":0},{"$f":"MIN((IFERROR(IF(AND($V230<=AI$1,$W230>=AI$1),INDEX(Reliability!N$23:N$50,MATCH($S230,Reliability!$C$23:$C$50,0)),0),0)*IF($T230=\"n/a\",$D230*$Y230,$G230)+IFERROR(IF(AND($V230<=AI$1,$W230>=AI$1),INDEX(Reliability!N$23:N$50,MATCH($T230,Reliability!$C$23:$C$50,0)),0),0)*$H230*$X230*$Y230),$D230)*$R230","v":0},{"$f":"MIN((IFERROR(IF(AND($V230<=AJ$1,$W230>=AJ$1),INDEX(Reliability!O$23:O$50,MATCH($S230,Reliability!$C$23:$C$50,0)),0),0)*IF($T230=\"n/a\",$D230*$Y230,$G230)+IFERROR(IF(AND($V230<=AJ$1,$W230>=AJ$1),INDEX(Reliability!O$23:O$50,MATCH($T230,Reliability!$C$23:$C$50,0)),0),0)*$H230*$X230*$Y230),$D230)*$R230","v":0},{"$f":"MIN((IFERROR(IF(AND($V230<=AK$1,$W230>=AK$1),INDEX(Reliability!P$23:P$50,MATCH($S230,Reliability!$C$23:$C$50,0)),0),0)*IF($T230=\"n/a\",$D230*$Y230,$G230)+IFERROR(IF(AND($V230<=AK$1,$W230>=AK$1),INDEX(Reliability!P$23:P$50,MATCH($T230,Reliability!$C$23:$C$50,0)),0),0)*$H230*$X230*$Y230),$D230)*$R230","v":0}]
[null,{"$f":"unique_contracts!B232","v":0},{"$f":"unique_contracts!D232","v":0},{"$f":"unique_contracts!J232","v":0},{"$f":"unique_contracts!M232","v":0},{"$f":"unique_contracts!N232","v":0},{"$f":"unique_contracts!P232","v":0},{"$f":"unique_contracts!R232","v":0},{"$f":"unique_contracts!V232","v":0},{"$f":"unique_contracts!AB232","v":0},{"$f":"unique_contracts!AM232","v":0},{"$f":"unique_contracts!AN232","v":0},{"$f":"unique_contracts!AO232","v":0},{"$f":"unique_contracts!AP232","v":0},{"$f":"unique_contracts!AQ232","v":0},{"$f":"unique_contracts!AR232","v":0},{"$f":"unique_contracts!BP232","v":0},0,{"$f":"IFERROR(IF(AND(I231>0,E231=\"NotHybrid\"),_xlfn.CONCAT(MAX(MIN(ROUNDDOWN(I231/D231,0),8),4),INDEX(resources!$G:$G,MATCH(B231,resources!$A:$A,0))),INDEX(resources!$G:$G,MATCH(B231,resources!$A:$A,0))),\"n/a\")","v":"n/a"},"n/a","n/a",0,0,1,1,{"$f":"MIN((IFERROR(IF(AND($V231<=Z$1,$W231>=Z$1),INDEX(Reliability!E$23:E$50,MATCH($S231,Reliability!$C$23:$C$50,0)),0),0)*IF($T231=\"n/a\",$D231*$Y231,$G231)+IFERROR(IF(AND($V231<=Z$1,$W231>=Z$1),INDEX(Reliability!E$23:E$50,MATCH($T231,Reliability!$C$23:$C$50,0)),0),0)*$H231*$X231*$Y231),$D231)*$R231","v":0},{"$f":"MIN((IFERROR(IF(AND($V231<=AA$1,$W231>=AA$1),INDEX(Reliability!F$23:F$50,MATCH($S231,Reliability!$C$23:$C$50,0)),0),0)*IF($T231=\"n/a\",$D231*$Y231,$G231)+IFERROR(IF(AND($V231<=AA$1,$W231>=AA$1),INDEX(Reliability!F$23:F$50,MATCH($T231,Reliability!$C$23:$C$50,0)),0),0)*$H231*$X231*$Y231),$D231)*$R231","v":0},{"$f":"MIN((IFERROR(IF(AND($V231<=AB$1,$W231>=AB$1),INDEX(Reliability!G$23:G$50,MATCH($S231,Reliability!$C$23:$C$50,0)),0),0)*IF($T231=\"n/a\",$D231*$Y231,$G231)+IFERROR(IF(AND($V231<=AB$1,$W231>=AB$1),INDEX(Reliability!G$23:G$50,MATCH($T231,Reliability!$C$23:$C$50,0)),0),0)*$H231*$X231*$Y231),$D231)*$R231","v":0},{"$f":"MIN((IFERROR(IF(AND($V231<=AC$1,$W231>=AC$1),INDEX(Reliability!H$23:H$50,MATCH($S231,Reliability!$C$23:$C$50,0)),0),0)*IF($T231=\"n/a\",$D231*$Y231,$G231)+IFERROR(IF(AND($V231<=AC$1,$W231>=AC$1),INDEX(Reliability!H$23:H$50,MATCH($T231,Reliability!$C$23:$C$50,0)),0),0)*$H231*$X231*$Y231),$D231)*$R231","v":0},{"$f":"MIN((IFERROR(IF(AND($V231<=AD$1,$W231>=AD$1),INDEX(Reliability!I$23:I$50,MATCH($S231,Reliability!$C$23:$C$50,0)),0),0)*IF($T231=\"n/a\",$D231*$Y231,$G231)+IFERROR(IF(AND($V231<=AD$1,$W231>=AD$1),INDEX(Reliability!I$23:I$50,MATCH($T231,Reliability!$C$23:$C$50,0)),0),0)*$H231*$X231*$Y231),$D231)*$R231","v":0},{"$f":"MIN((IFERROR(IF(AND($V231<=AE$1,$W231>=AE$1),INDEX(Reliability!J$23:J$50,MATCH($S231,Reliability!$C$23:$C$50,0)),0),0)*IF($T231=\"n/a\",$D231*$Y231,$G231)+IFERROR(IF(AND($V231<=AE$1,$W231>=AE$1),INDEX(Reliability!J$23:J$50,MATCH($T231,Reliability!$C$23:$C$50,0)),0),0)*$H231*$X231*$Y231),$D231)*$R231","v":0},{"$f":"MIN((IFERROR(IF(AND($V231<=AF$1,$W231>=AF$1),INDEX(Reliability!K$23:K$50,MATCH($S231,Reliability!$C$23:$C$50,0)),0),0)*IF($T231=\"n/a\",$D231*$Y231,$G231)+IFERROR(IF(AND($V231<=AF$1,$W231>=AF$1),INDEX(Reliability!K$23:K$50,MATCH($T231,Reliability!$C$23:$C$50,0)),0),0)*$H231*$X231*$Y231),$D231)*$R231","v":0},{"$f":"MIN((IFERROR(IF(AND($V231<=AG$1,$W231>=AG$1),INDEX(Reliability!L$23:L$50,MATCH($S231,Reliability!$C$23:$C$50,0)),0),0)*IF($T231=\"n/a\",$D231*$Y231,$G231)+IFERROR(IF(AND($V231<=AG$1,$W231>=AG$1),INDEX(Reliability!L$23:L$50,MATCH($T231,Reliability!$C$23:$C$50,0)),0),0)*$H231*$X231*$Y231),$D231)*$R231","v":0},{"$f":"MIN((IFERROR(IF(AND($V231<=AH$1,$W231>=AH$1),INDEX(Reliability!M$23:M$50,MATCH($S231,Reliability!$C$23:$C$50,0)),0),0)*IF($T231=\"n/a\",$D231*$Y231,$G231)+IFERROR(IF(AND($V231<=AH$1,$W231>=AH$1),INDEX(Reliability!M$23:M$50,MATCH($T231,Reliability!$C$23:$C$50,0)),0),0)*$H231*$X231*$Y231),$D231)*$R231","v":0},{"$f":"MIN((IFERROR(IF(AND($V231<=AI$1,$W231>=AI$1),INDEX(Reliability!N$23:N$50,MATCH($S231,Reliability!$C$23:$C$50,0)),0),0)*IF($T231=\"n/a\",$D231*$Y231,$G231)+IFERROR(IF(AND($V231<=AI$1,$W231>=AI$1),INDEX(Reliability!N$23:N$50,MATCH($T231,Reliability!$C$23:$C$50,0)),0),0)*$H231*$X231*$Y231),$D231)*$R231","v":0},{"$f":"MIN((IFERROR(IF(AND($V231<=AJ$1,$W231>=AJ$1),INDEX(Reliability!O$23:O$50,MATCH($S231,Reliability!$C$23:$C$50,0)),0),0)*IF($T231=\"n/a\",$D231*$Y231,$G231)+IFERROR(IF(AND($V231<=AJ$1,$W231>=AJ$1),INDEX(Reliability!O$23:O$50,MATCH($T231,Reliability!$C$23:$C$50,0)),0),0)*$H231*$X231*$Y231),$D231)*$R231","v":0},{"$f":"MIN((IFERROR(IF(AND($V231<=AK$1,$W231>=AK$1),INDEX(Reliability!P$23:P$50,MATCH($S231,Reliability!$C$23:$C$50,0)),0),0)*IF($T231=\"n/a\",$D231*$Y231,$G231)+IFERROR(IF(AND($V231<=AK$1,$W231>=AK$1),INDEX(Reliability!P$23:P$50,MATCH($T231,Reliability!$C$23:$C$50,0)),0),0)*$H231*$X231*$Y231),$D231)*$R231","v":0}]
[null,{"$f":"unique_contracts!B233","v":0},{"$f":"unique_contracts!D233","v":0},{"$f":"unique_contracts!J233","v":0},{"$f":"unique_contracts!M233","v":0},{"$f":"unique_contracts!N233","v":0},{"$f":"unique_contracts!P233","v":0},{"$f":"unique_contracts!R233","v":0},{"$f":"unique_contracts!V233","v":0},{"$f":"unique_contracts!AB233","v":0},{"$f":"unique_contracts!AM233","v":0},{"$f":"unique_contracts!AN233","v":0},{"$f":"unique_contracts!AO233","v":0},{"$f":"unique_contracts!AP233","v":0},{"$f":"unique_contracts!AQ233","v":0},{"$f":"unique_contracts!AR233","v":0},{"$f":"unique_contracts!BP233","v":0},0,{"$f":"IFERROR(IF(AND(I232>0,E232=\"NotHybrid\"),_xlfn.CONCAT(MAX(MIN(ROUNDDOWN(I232/D232,0),8),4),INDEX(resources!$G:$G,MATCH(B232,resources!$A:$A,0))),INDEX(resources!$G:$G,MATCH(B232,resources!$A:$A,0))),\"n/a\")","v":"n/a"},"n/a","n/a",0,0,1,1,{"$f":"MIN((IFERROR(IF(AND($V232<=Z$1,$W232>=Z$1),INDEX(Reliability!E$23:E$50,MATCH($S232,Reliability!$C$23:$C$50,0)),0),0)*IF($T232=\"n/a\",$D232*$Y232,$G232)+IFERROR(IF(AND($V232<=Z$1,$W232>=Z$1),INDEX(Reliability!E$23:E$50,MATCH($T232,Reliability!$C$23:$C$50,0)),0),0)*$H232*$X232*$Y232),$D232)*$R232","v":0},{"$f":"MIN((IFERROR(IF(AND($V232<=AA$1,$W232>=AA$1),INDEX(Reliability!F$23:F$50,MATCH($S232,Reliability!$C$23:$C$50,0)),0),0)*IF($T232=\"n/a\",$D232*$Y232,$G232)+IFERROR(IF(AND($V232<=AA$1,$W232>=AA$1),INDEX(Reliability!F$23:F$50,MATCH($T232,Reliability!$C$23:$C$50,0)),0),0)*$H232*$X232*$Y232),$D232)*$R232","v":0},{"$f":"MIN((IFERROR(IF(AND($V232<=AB$1,$W232>=AB$1),INDEX(Reliability!G$23:G$50,MATCH($S232,Reliability!$C$23:$C$50,0)),0),0)*IF($T232=\"n/a\",$D232*$Y232,$G232)+IFERROR(IF(AND($V232<=AB$1,$W232>=AB$1),INDEX(Reliability!G$23:G$50,MATCH($T232,Reliability!$C$23:$C$50,0)),0),0)*$H232*$X232*$Y232),$D232)*$R232","v":0},{"$f":"MIN((IFERROR(IF(AND($V232<=AC$1,$W232>=AC$1),INDEX(Reliability!H$23:H$50,MATCH($S232,Reliability!$C$23:$C$50,0)),0),0)*IF($T232=\"n/a\",$D232*$Y232,$G232)+IFERROR(IF(AND($V232<=AC$1,$W232>=AC$1),INDEX(Reliability!H$23:H$50,MATCH($T232,Reliability!$C$23:$C$50,0)),0),0)*$H232*$X232*$Y232),$D232)*$R232","v":0},{"$f":"MIN((IFERROR(IF(AND($V232<=AD$1,$W232>=AD$1),INDEX(Reliability!I$23:I$50,MATCH($S232,Reliability!$C$23:$C$50,0)),0),0)*IF($T232=\"n/a\",$D232*$Y232,$G232)+IFERROR(IF(AND($V232<=AD$1,$W232>=AD$1),INDEX(Reliability!I$23:I$50,MATCH($T232,Reliability!$C$23:$C$50,0)),0),0)*$H232*$X232*$Y232),$D232)*$R232","v":0},{"$f":"MIN((IFERROR(IF(AND($V232<=AE$1,$W232>=AE$1),INDEX(Reliability!J$23:J$50,MATCH($S232,Reliability!$C$23:$C$50,0)),0),0)*IF($T232=\"n/a\",$D232*$Y232,$G232)+IFERROR(IF(AND($V232<=AE$1,$W232>=AE$1),INDEX(Reliability!J$23:J$50,MATCH($T232,Reliability!$C$23:$C$50,0)),0),0)*$H232*$X232*$Y232),$D232)*$R232","v":0},{"$f":"MIN((IFERROR(IF(AND($V232<=AF$1,$W232>=AF$1),INDEX(Reliability!K$23:K$50,MATCH($S232,Reliability!$C$23:$C$50,0)),0),0)*IF($T232=\"n/a\",$D232*$Y232,$G232)+IFERROR(IF(AND($V232<=AF$1,$W232>=AF$1),INDEX(Reliability!K$23:K$50,MATCH($T232,Reliability!$C$23:$C$50,0)),0),0)*$H232*$X232*$Y232),$D232)*$R232","v":0},{"$f":"MIN((IFERROR(IF(AND($V232<=AG$1,$W232>=AG$1),INDEX(Reliability!L$23:L$50,MATCH($S232,Reliability!$C$23:$C$50,0)),0),0)*IF($T232=\"n/a\",$D232*$Y232,$G232)+IFERROR(IF(AND($V232<=AG$1,$W232>=AG$1),INDEX(Reliability!L$23:L$50,MATCH($T232,Reliability!$C$23:$C$50,0)),0),0)*$H232*$X232*$Y232),$D232)*$R232","v":0},{"$f":"MIN((IFERROR(IF(AND($V232<=AH$1,$W232>=AH$1),INDEX(Reliability!M$23:M$50,MATCH($S232,Reliability!$C$23:$C$50,0)),0),0)*IF($T232=\"n/a\",$D232*$Y232,$G232)+IFERROR(IF(AND($V232<=AH$1,$W232>=AH$1),INDEX(Reliability!M$23:M$50,MATCH($T232,Reliability!$C$23:$C$50,0)),0),0)*$H232*$X232*$Y232),$D232)*$R232","v":0},{"$f":"MIN((IFERROR(IF(AND($V232<=AI$1,$W232>=AI$1),INDEX(Reliability!N$23:N$50,MATCH($S232,Reliability!$C$23:$C$50,0)),0),0)*IF($T232=\"n/a\",$D232*$Y232,$G232)+IFERROR(IF(AND($V232<=AI$1,$W232>=AI$1),INDEX(Reliability!N$23:N$50,MATCH($T232,Reliability!$C$23:$C$50,0)),0),0)*$H232*$X232*$Y232),$D232)*$R232","v":0},{"$f":"MIN((IFERROR(IF(AND($V232<=AJ$1,$W232>=AJ$1),INDEX(Reliability!O$23:O$50,MATCH($S232,Reliability!$C$23:$C$50,0)),0),0)*IF($T232=\"n/a\",$D232*$Y232,$G232)+IFERROR(IF(AND($V232<=AJ$1,$W232>=AJ$1),INDEX(Reliability!O$23:O$50,MATCH($T232,Reliability!$C$23:$C$50,0)),0),0)*$H232*$X232*$Y232),$D232)*$R232","v":0},{"$f":"MIN((IFERROR(IF(AND($V232<=AK$1,$W232>=AK$1),INDEX(Reliability!P$23:P$50,MATCH($S232,Reliability!$C$23:$C$50,0)),0),0)*IF($T232=\"n/a\",$D232*$Y232,$G232)+IFERROR(IF(AND($V232<=AK$1,$W232>=AK$1),INDEX(Reliability!P$23:P$50,MATCH($T232,Reliability!$C$23:$C$50,0)),0),0)*$H232*$X232*$Y232),$D232)*$R232","v":0}]
[null,{"$f":"unique_contracts!B234","v":0},{"$f":"unique_contracts!D234","v":0},{"$f":"unique_contracts!J234","v":0},{"$f":"unique_contracts!M234","v":0},{"$f":"unique_contracts!N234","v":0},{"$f":"unique_contracts!P234","v":0},{"$f":"unique_contracts!R234","v":0},{"$f":"unique_contracts!V234","v":0},{"$f":"unique_contracts!AB234","v":0},{"$f":"unique_contracts!AM234","v":0},{"$f":"unique_contracts!AN234","v":0},{"$f":"unique_contracts!AO234","v":0},{"$f":"unique_contracts!AP234","v":0},{"$f":"unique_contracts!AQ234","v":0},{"$f":"unique_contracts!AR234","v":0},{"$f":"unique_contracts!BP234","v":0},0,{"$f":"IFERROR(IF(AND(I233>0,E233=\"NotHybrid\"),_xlfn.CONCAT(MAX(MIN(ROUNDDOWN(I233/D233,0),8),4),INDEX(resources!$G:$G,MATCH(B233,resources!$A:$A,0))),INDEX(resources!$G:$G,MATCH(B233,resources!$A:$A,0))),\"n/a\")","v":"n/a"},"n/a","n/a",0,0,1,1,{"$f":"MIN((IFERROR(IF(AND($V233<=Z$1,$W233>=Z$1),INDEX(Reliability!E$23:E$50,MATCH($S233,Reliability!$C$23:$C$50,0)),0),0)*IF($T233=\"n/a\",$D233*$Y233,$G233)+IFERROR(IF(AND($V233<=Z$1,$W233>=Z$1),INDEX(Reliability!E$23:E$50,MATCH($T233,Reliability!$C$23:$C$50,0)),0),0)*$H233*$X233*$Y233),$D233)*$R233","v":0},{"$f":"MIN((IFERROR(IF(AND($V233<=AA$1,$W233>=AA$1),INDEX(Reliability!F$23:F$50,MATCH($S233,Reliability!$C$23:$C$50,0)),0),0)*IF($T233=\"n/a\",$D233*$Y233,$G233)+IFERROR(IF(AND($V233<=AA$1,$W233>=AA$1),INDEX(Reliability!F$23:F$50,MATCH($T233,Reliability!$C$23:$C$50,0)),0),0)*$H233*$X233*$Y233),$D233)*$R233","v":0},{"$f":"MIN((IFERROR(IF(AND($V233<=AB$1,$W233>=AB$1),INDEX(Reliability!G$23:G$50,MATCH($S233,Reliability!$C$23:$C$50,0)),0),0)*IF($T233=\"n/a\",$D233*$Y233,$G233)+IFERROR(IF(AND($V233<=AB$1,$W233>=AB$1),INDEX(Reliability!G$23:G$50,MATCH($T233,Reliability!$C$23:$C$50,0)),0),0)*$H233*$X233*$Y233),$D233)*$R233","v":0},{"$f":"MIN((IFERROR(IF(AND($V233<=AC$1,$W233>=AC$1),INDEX(Reliability!H$23:H$50,MATCH($S233,Reliability!$C$23:$C$50,0)),0),0)*IF($T233=\"n/a\",$D233*$Y233,$G233)+IFERROR(IF(AND($V233<=AC$1,$W233>=AC$1),INDEX(Reliability!H$23:H$50,MATCH($T233,Reliability!$C$23:$C$50,0)),0),0)*$H233*$X233*$Y233),$D233)*$R233","v":0},{"$f":"MIN((IFERROR(IF(AND($V233<=AD$1,$W233>=AD$1),INDEX(Reliability!I$23:I$50,MATCH($S233,Reliability!$C$23:$C$50,0)),0),0)*IF($T233=\"n/a\",$D233*$Y233,$G233)+IFERROR(IF(AND($V233<=AD$1,$W233>=AD$1),INDEX(Reliability!I$23:I$50,MATCH($T233,Reliability!$C$23:$C$50,0)),0),0)*$H233*$X233*$Y233),$D233)*$R233","v":0},{"$f":"MIN((IFERROR(IF(AND($V233<=AE$1,$W233>=AE$1),INDEX(Reliability!J$23:J$50,MATCH($S233,Reliability!$C$23:$C$50,0)),0),0)*IF($T233=\"n/a\",$D233*$Y233,$G233)+IFERROR(IF(AND($V233<=AE$1,$W233>=AE$1),INDEX(Reliability!J$23:J$50,MATCH($T233,Reliability!$C$23:$C$50,0)),0),0)*$H233*$X233*$Y233),$D233)*$R233","v":0},{"$f":"MIN((IFERROR(IF(AND($V233<=AF$1,$W233>=AF$1),INDEX(Reliability!K$23:K$50,MATCH($S233,Reliability!$C$23:$C$50,0)),0),0)*IF($T233=\"n/a\",$D233*$Y233,$G233)+IFERROR(IF(AND($V233<=AF$1,$W233>=AF$1),INDEX(Reliability!K$23:K$50,MATCH($T233,Reliability!$C$23:$C$50,0)),0),0)*$H233*$X233*$Y233),$D233)*$R233","v":0},{"$f":"MIN((IFERROR(IF(AND($V233<=AG$1,$W233>=AG$1),INDEX(Reliability!L$23:L$50,MATCH($S233,Reliability!$C$23:$C$50,0)),0),0)*IF($T233=\"n/a\",$D233*$Y233,$G233)+IFERROR(IF(AND($V233<=AG$1,$W233>=AG$1),INDEX(Reliability!L$23:L$50,MATCH($T233,Reliability!$C$23:$C$50,0)),0),0)*$H233*$X233*$Y233),$D233)*$R233","v":0},{"$f":"MIN((IFERROR(IF(AND($V233<=AH$1,$W233>=AH$1),INDEX(Reliability!M$23:M$50,MATCH($S233,Reliability!$C$23:$C$50,0)),0),0)*IF($T233=\"n/a\",$D233*$Y233,$G233)+IFERROR(IF(AND($V233<=AH$1,$W233>=AH$1),INDEX(Reliability!M$23:M$50,MATCH($T233,Reliability!$C$23:$C$50,0)),0),0)*$H233*$X233*$Y233),$D233)*$R233","v":0},{"$f":"MIN((IFERROR(IF(AND($V233<=AI$1,$W233>=AI$1),INDEX(Reliability!N$23:N$50,MATCH($S233,Reliability!$C$23:$C$50,0)),0),0)*IF($T233=\"n/a\",$D233*$Y233,$G233)+IFERROR(IF(AND($V233<=AI$1,$W233>=AI$1),INDEX(Reliability!N$23:N$50,MATCH($T233,Reliability!$C$23:$C$50,0)),0),0)*$H233*$X233*$Y233),$D233)*$R233","v":0},{"$f":"MIN((IFERROR(IF(AND($V233<=AJ$1,$W233>=AJ$1),INDEX(Reliability!O$23:O$50,MATCH($S233,Reliability!$C$23:$C$50,0)),0),0)*IF($T233=\"n/a\",$D233*$Y233,$G233)+IFERROR(IF(AND($V233<=AJ$1,$W233>=AJ$1),INDEX(Reliability!O$23:O$50,MATCH($T233,Reliability!$C$23:$C$50,0)),0),0)*$H233*$X233*$Y233),$D233)*$R233","v":0},{"$f":"MIN((IFERROR(IF(AND($V233<=AK$1,$W233>=AK$1),INDEX(Reliability!P$23:P$50,MATCH($S233,Reliability!$C$23:$C$50,0)),0),0)*IF($T233=\"n/a\",$D233*$Y233,$G233)+IFERROR(IF(AND($V233<=AK$1,$W233>=AK$1),INDEX(Reliability!P$23:P$50,MATCH($T233,Reliability!$C$23:$C$50,0)),0),0)*$H233*$X233*$Y233),$D233)*$R233","v":0}]
[null,{"$f":"unique_contracts!B235","v":0},{"$f":"unique_contracts!D235","v":0},{"$f":"unique_contracts!J235","v":0},{"$f":"unique_contracts!M235","v":0},{"$f":"unique_contracts!N235","v":0},{"$f":"unique_contracts!P235","v":0},{"$f":"unique_contracts!R235","v":0},{"$f":"unique_contracts!V235","v":0},{"$f":"unique_contracts!AB235","v":0},{"$f":"unique_contracts!AM235","v":0},{"$f":"unique_contracts!AN235","v":0},{"$f":"unique_contracts!AO235","v":0},{"$f":"unique_contracts!AP235","v":0},{"$f":"unique_contracts!AQ235","v":0},{"$f":"unique_contracts!AR235","v":0},{"$f":"unique_contracts!BP235","v":0},0,{"$f":"IFERROR(IF(AND(I234>0,E234=\"NotHybrid\"),_xlfn.CONCAT(MAX(MIN(ROUNDDOWN(I234/D234,0),8),4),INDEX(resources!$G:$G,MATCH(B234,resources!$A:$A,0))),INDEX(resources!$G:$G,MATCH(B234,resources!$A:$A,0))),\"n/a\")","v":"n/a"},"n/a","n/a",0,0,1,1,{"$f":"MIN((IFERROR(IF(AND($V234<=Z$1,$W234>=Z$1),INDEX(Reliability!E$23:E$50,MATCH($S234,Reliability!$C$23:$C$50,0)),0),0)*IF($T234=\"n/a\",$D234*$Y234,$G234)+IFERROR(IF(AND($V234<=Z$1,$W234>=Z$1),INDEX(Reliability!E$23:E$50,MATCH($T234,Reliability!$C$23:$C$50,0)),0),0)*$H234*$X234*$Y234),$D234)*$R234","v":0},{"$f":"MIN((IFERROR(IF(AND($V234<=AA$1,$W234>=AA$1),INDEX(Reliability!F$23:F$50,MATCH($S234,Reliability!$C$23:$C$50,0)),0),0)*IF($T234=\"n/a\",$D234*$Y234,$G234)+IFERROR(IF(AND($V234<=AA$1,$W234>=AA$1),INDEX(Reliability!F$23:F$50,MATCH($T234,Reliability!$C$23:$C$50,0)),0),0)*$H234*$X234*$Y234),$D234)*$R234","v":0},{"$f":"MIN((IFERROR(IF(AND($V234<=AB$1,$W234>=AB$1),INDEX(Reliability!G$23:G$50,MATCH($S234,Reliability!$C$23:$C$50,0)),0),0)*IF($T234=\"n/a\",$D234*$Y234,$G234)+IFERROR(IF(AND($V234<=AB$1,$W234>=AB$1),INDEX(Reliability!G$23:G$50,MATCH($T234,Reliability!$C$23:$C$50,0)),0),0)*$H234*$X234*$Y234),$D234)*$R234","v":0},{"$f":"MIN((IFERROR(IF(AND($V234<=AC$1,$W234>=AC$1),INDEX(Reliability!H$23:H$50,MATCH($S234,Reliability!$C$23:$C$50,0)),0),0)*IF($T234=\"n/a\",$D234*$Y234,$G234)+IFERROR(IF(AND($V234<=AC$1,$W234>=AC$1),INDEX(Reliability!H$23:H$50,MATCH($T234,Reliability!$C$23:$C$50,0)),0),0)*$H234*$X234*$Y234),$D234)*$R234","v":0},{"$f":"MIN((IFERROR(IF(AND($V234<=AD$1,$W234>=AD$1),INDEX(Reliability!I$23:I$50,MATCH($S234,Reliability!$C$23:$C$50,0)),0),0)*IF($T234=\"n/a\",$D234*$Y234,$G234)+IFERROR(IF(AND($V234<=AD$1,$W234>=AD$1),INDEX(Reliability!I$23:I$50,MATCH($T234,Reliability!$C$23:$C$50,0)),0),0)*$H234*$X234*$Y234),$D234)*$R234","v":0},{"$f":"MIN((IFERROR(IF(AND($V234<=AE$1,$W234>=AE$1),INDEX(Reliability!J$23:J$50,MATCH($S234,Reliability!$C$23:$C$50,0)),0),0)*IF($T234=\"n/a\",$D234*$Y234,$G234)+IFERROR(IF(AND($V234<=AE$1,$W234>=AE$1),INDEX(Reliability!J$23:J$50,MATCH($T234,Reliability!$C$23:$C$50,0)),0),0)*$H234*$X234*$Y234),$D234)*$R234","v":0},{"$f":"MIN((IFERROR(IF(AND($V234<=AF$1,$W234>=AF$1),INDEX(Reliability!K$23:K$50,MATCH($S234,Reliability!$C$23:$C$50,0)),0),0)*IF($T234=\"n/a\",$D234*$Y234,$G234)+IFERROR(IF(AND($V234<=AF$1,$W234>=AF$1),INDEX(Reliability!K$23:K$50,MATCH($T234,Reliability!$C$23:$C$50,0)),0),0)*$H234*$X234*$Y234),$D234)*$R234","v":0},{"$f":"MIN((IFERROR(IF(AND($V234<=AG$1,$W234>=AG$1),INDEX(Reliability!L$23:L$50,MATCH($S234,Reliability!$C$23:$C$50,0)),0),0)*IF($T234=\"n/a\",$D234*$Y234,$G234)+IFERROR(IF(AND($V234<=AG$1,$W234>=AG$1),INDEX(Reliability!L$23:L$50,MATCH($T234,Reliability!$C$23:$C$50,0)),0),0)*$H234*$X234*$Y234),$D234)*$R234","v":0},{"$f":"MIN((IFERROR(IF(AND($V234<=AH$1,$W234>=AH$1),INDEX(Reliability!M$23:M$50,MATCH($S234,Reliability!$C$23:$C$50,0)),0),0)*IF($T234=\"n/a\",$D234*$Y234,$G234)+IFERROR(IF(AND($V234<=AH$1,$W234>=AH$1),INDEX(Reliability!M$23:M$50,MATCH($T234,Reliability!$C$23:$C$50,0)),0),0)*$H234*$X234*$Y234),$D234)*$R234","v":0},{"$f":"MIN((IFERROR(IF(AND($V234<=AI$1,$W234>=AI$1),INDEX(Reliability!N$23:N$50,MATCH($S234,Reliability!$C$23:$C$50,0)),0),0)*IF($T234=\"n/a\",$D234*$Y234,$G234)+IFERROR(IF(AND($V234<=AI$1,$W234>=AI$1),INDEX(Reliability!N$23:N$50,MATCH($T234,Reliability!$C$23:$C$50,0)),0),0)*$H234*$X234*$Y234),$D234)*$R234","v":0},{"$f":"MIN((IFERROR(IF(AND($V234<=AJ$1,$W234>=AJ$1),INDEX(Reliability!O$23:O$50,MATCH($S234,Reliability!$C$23:$C$50,0)),0),0)*IF($T234=\"n/a\",$D234*$Y234,$G234)+IFERROR(IF(AND($V234<=AJ$1,$W234>=AJ$1),INDEX(Reliability!O$23:O$50,MATCH($T234,Reliability!$C$23:$C$50,0)),0),0)*$H234*$X234*$Y234),$D234)*$R234","v":0},{"$f":"MIN((IFERROR(IF(AND($V234<=AK$1,$W234>=AK$1),INDEX(Reliability!P$23:P$50,MATCH($S234,Reliability!$C$23:$C$50,0)),0),0)*IF($T234=\"n/a\",$D234*$Y234,$G234)+IFERROR(IF(AND($V234<=AK$1,$W234>=AK$1),INDEX(Reliability!P$23:P$50,MATCH($T234,Reliability!$C$23:$C$50,0)),0),0)*$H234*$X234*$Y234),$D234)*$R234","v":0}]
[null,{"$f":"unique_contracts!B236","v":0},{"$f":"unique_contracts!D236","v":0},{"$f":"unique_contracts!J236","v":0},{"$f":"unique_contracts!M236","v":0},{"$f":"unique_contracts!N236","v":0},{"$f":"unique_contracts!P236","v":0},{"$f":"unique_contracts!R236","v":0},{"$f":"unique_contracts!V236","v":0},{"$f":"unique_contracts!AB236","v":0},{"$f":"unique_contracts!AM236","v":0},{"$f":"unique_contracts!AN236","v":0},{"$f":"unique_contracts!AO236","v":0},{"$f":"unique_contracts!AP236","v":0},{"$f":"unique_contracts!AQ236","v":0},{"$f":"unique_contracts!AR236","v":0},{"$f":"unique_contracts!BP236","v":0},0,{"$f":"IFERROR(IF(AND(I235>0,E235=\"NotHybrid\"),_xlfn.CONCAT(MAX(MIN(ROUNDDOWN(I235/D235,0),8),4),INDEX(resources!$G:$G,MATCH(B235,resources!$A:$A,0))),INDEX(resources!$G:$G,MATCH(B235,resources!$A:$A,0))),\"n/a\")","v":"n/a"},"n/a","n/a",0,0,1,1,{"$f":"MIN((IFERROR(IF(AND($V235<=Z$1,$W235>=Z$1),INDEX(Reliability!E$23:E$50,MATCH($S235,Reliability!$C$23:$C$50,0)),0),0)*IF($T235=\"n/a\",$D235*$Y235,$G235)+IFERROR(IF(AND($V235<=Z$1,$W235>=Z$1),INDEX(Reliability!E$23:E$50,MATCH($T235,Reliability!$C$23:$C$50,0)),0),0)*$H235*$X235*$Y235),$D235)*$R235","v":0},{"$f":"MIN((IFERROR(IF(AND($V235<=AA$1,$W235>=AA$1),INDEX(Reliability!F$23:F$50,MATCH($S235,Reliability!$C$23:$C$50,0)),0),0)*IF($T235=\"n/a\",$D235*$Y235,$G235)+IFERROR(IF(AND($V235<=AA$1,$W235>=AA$1),INDEX(Reliability!F$23:F$50,MATCH($T235,Reliability!$C$23:$C$50,0)),0),0)*$H235*$X235*$Y235),$D235)*$R235","v":0},{"$f":"MIN((IFERROR(IF(AND($V235<=AB$1,$W235>=AB$1),INDEX(Reliability!G$23:G$50,MATCH($S235,Reliability!$C$23:$C$50,0)),0),0)*IF($T235=\"n/a\",$D235*$Y235,$G235)+IFERROR(IF(AND($V235<=AB$1,$W235>=AB$1),INDEX(Reliability!G$23:G$50,MATCH($T235,Reliability!$C$23:$C$50,0)),0),0)*$H235*$X235*$Y235),$D235)*$R235","v":0},{"$f":"MIN((IFERROR(IF(AND($V235<=AC$1,$W235>=AC$1),INDEX(Reliability!H$23:H$50,MATCH($S235,Reliability!$C$23:$C$50,0)),0),0)*IF($T235=\"n/a\",$D235*$Y235,$G235)+IFERROR(IF(AND($V235<=AC$1,$W235>=AC$1),INDEX(Reliability!H$23:H$50,MATCH($T235,Reliability!$C$23:$C$50,0)),0),0)*$H235*$X235*$Y235),$D235)*$R235","v":0},{"$f":"MIN((IFERROR(IF(AND($V235<=AD$1,$W235>=AD$1),INDEX(Reliability!I$23:I$50,MATCH($S235,Reliability!$C$23:$C$50,0)),0),0)*IF($T235=\"n/a\",$D235*$Y235,$G235)+IFERROR(IF(AND($V235<=AD$1,$W235>=AD$1),INDEX(Reliability!I$23:I$50,MATCH($T235,Reliability!$C$23:$C$50,0)),0),0)*$H235*$X235*$Y235),$D235)*$R235","v":0},{"$f":"MIN((IFERROR(IF(AND($V235<=AE$1,$W235>=AE$1),INDEX(Reliability!J$23:J$50,MATCH($S235,Reliability!$C$23:$C$50,0)),0),0)*IF($T235=\"n/a\",$D235*$Y235,$G235)+IFERROR(IF(AND($V235<=AE$1,$W235>=AE$1),INDEX(Reliability!J$23:J$50,MATCH($T235,Reliability!$C$23:$C$50,0)),0),0)*$H235*$X235*$Y235),$D235)*$R235","v":0},{"$f":"MIN((IFERROR(IF(AND($V235<=AF$1,$W235>=AF$1),INDEX(Reliability!K$23:K$50,MATCH($S235,Reliability!$C$23:$C$50,0)),0),0)*IF($T235=\"n/a\",$D235*$Y235,$G235)+IFERROR(IF(AND($V235<=AF$1,$W235>=AF$1),INDEX(Reliability!K$23:K$50,MATCH($T235,Reliability!$C$23:$C$50,0)),0),0)*$H235*$X235*$Y235),$D235)*$R235","v":0},{"$f":"MIN((IFERROR(IF(AND($V235<=AG$1,$W235>=AG$1),INDEX(Reliability!L$23:L$50,MATCH($S235,Reliability!$C$23:$C$50,0)),0),0)*IF($T235=\"n/a\",$D235*$Y235,$G235)+IFERROR(IF(AND($V235<=AG$1,$W235>=AG$1),INDEX(Reliability!L$23:L$50,MATCH($T235,Reliability!$C$23:$C$50,0)),0),0)*$H235*$X235*$Y235),$D235)*$R235","v":0},{"$f":"MIN((IFERROR(IF(AND($V235<=AH$1,$W235>=AH$1),INDEX(Reliability!M$23:M$50,MATCH($S235,Reliability!$C$23:$C$50,0)),0),0)*IF($T235=\"n/a\",$D235*$Y235,$G235)+IFERROR(IF(AND($V235<=AH$1,$W235>=AH$1),INDEX(Reliability!M$23:M$50,MATCH($T235,Reliability!$C$23:$C$50,0)),0),0)*$H235*$X235*$Y235),$D235)*$R235","v":0},{"$f":"MIN((IFERROR(IF(AND($V235<=AI$1,$W235>=AI$1),INDEX(Reliability!N$23:N$50,MATCH($S235,Reliability!$C$23:$C$50,0)),0),0)*IF($T235=\"n/a\",$D235*$Y235,$G235)+IFERROR(IF(AND($V235<=AI$1,$W235>=AI$1),INDEX(Reliability!N$23:N$50,MATCH($T235,Reliability!$C$23:$C$50,0)),0),0)*$H235*$X235*$Y235),$D235)*$R235","v":0},{"$f":"MIN((IFERROR(IF(AND($V235<=AJ$1,$W235>=AJ$1),INDEX(Reliability!O$23:O$50,MATCH($S235,Reliability!$C$23:$C$50,0)),0),0)*IF($T235=\"n/a\",$D235*$Y235,$G235)+IFERROR(IF(AND($V235<=AJ$1,$W235>=AJ$1),INDEX(Reliability!O$23:O$50,MATCH($T235,Reliability!$C$23:$C$50,0)),0),0)*$H235*$X235*$Y235),$D235)*$R235","v":0},{"$f":"MIN((IFERROR(IF(AND($V235<=AK$1,$W235>=AK$1),INDEX(Reliability!P$23:P$50,MATCH($S235,Reliability!$C$23:$C$50,0)),0),0)*IF($T235=\"n/a\",$D235*$Y235,$G235)+IFERROR(IF(AND($V235<=AK$1,$W235>=AK$1),INDEX(Reliability!P$23:P$50,MATCH($T235,Reliability!$C$23:$C$50,0)),0),0)*$H235*$X235*$Y235),$D235)*$R235","v":0}]
[null,{"$f":"unique_contracts!B237","v":0},{"$f":"unique_contracts!D237","v":0},{"$f":"unique_contracts!J237","v":0},{"$f":"unique_contracts!M237","v":0},{"$f":"unique_contracts!N237","v":0},{"$f":"unique_contracts!P237","v":0},{"$f":"unique_contracts!R237","v":0},{"$f":"unique_contracts!V237","v":0},{"$f":"unique_contracts!AB237","v":0},{"$f":"unique_contracts!AM237","v":0},{"$f":"unique_contracts!AN237","v":0},{"$f":"unique_contracts!AO237","v":0},{"$f":"unique_contracts!AP237","v":0},{"$f":"unique_contracts!AQ237","v":0},{"$f":"unique_contracts!AR237","v":0},{"$f":"unique_contracts!BP237","v":0},0,{"$f":"IFERROR(IF(AND(I236>0,E236=\"NotHybrid\"),_xlfn.CONCAT(MAX(MIN(ROUNDDOWN(I236/D236,0),8),4),INDEX(resources!$G:$G,MATCH(B236,resources!$A:$A,0))),INDEX(resources!$G:$G,MATCH(B236,resources!$A:$A,0))),\"n/a\")","v":"n/a"},"n/a","n/a",0,0,1,1,{"$f":"MIN((IFERROR(IF(AND($V236<=Z$1,$W236>=Z$1),INDEX(Reliability!E$23:E$50,MATCH($S236,Reliability!$C$23:$C$50,0)),0),0)*IF($T236=\"n/a\",$D236*$Y236,$G236)+IFERROR(IF(AND($V236<=Z$1,$W236>=Z$1),INDEX(Reliability!E$23:E$50,MATCH($T236,Reliability!$C$23:$C$50,0)),0),0)*$H236*$X236*$Y236),$D236)*$R236","v":0},{"$f":"MIN((IFERROR(IF(AND($V236<=AA$1,$W236>=AA$1),INDEX(Reliability!F$23:F$50,MATCH($S236,Reliability!$C$23:$C$50,0)),0),0)*IF($T236=\"n/a\",$D236*$Y236,$G236)+IFERROR(IF(AND($V236<=AA$1,$W236>=AA$1),INDEX(Reliability!F$23:F$50,MATCH($T236,Reliability!$C$23:$C$50,0)),0),0)*$H236*$X236*$Y236),$D236)*$R236","v":0},{"$f":"MIN((IFERROR(IF(AND($V236<=AB$1,$W236>=AB$1),INDEX(Reliability!G$23:G$50,MATCH($S236,Reliability!$C$23:$C$50,0)),0),0)*IF($T236=\"n/a\",$D236*$Y236,$G236)+IFERROR(IF(AND($V236<=AB$1,$W236>=AB$1),INDEX(Reliability!G$23:G$50,MATCH($T236,Reliability!$C$23:$C$50,0)),0),0)*$H236*$X236*$Y236),$D236)*$R236","v":0},{"$f":"MIN((IFERROR(IF(AND($V236<=AC$1,$W236>=AC$1),INDEX(Reliability!H$23:H$50,MATCH($S236,Reliability!$C$23:$C$50,0)),0),0)*IF($T236=\"n/a\",$D236*$Y236,$G236)+IFERROR(IF(AND($V236<=AC$1,$W236>=AC$1),INDEX(Reliability!H$23:H$50,MATCH($T236,Reliability!$C$23:$C$50,0)),0),0)*$H236*$X236*$Y236),$D236)*$R236","v":0},{"$f":"MIN((IFERROR(IF(AND($V236<=AD$1,$W236>=AD$1),INDEX(Reliability!I$23:I$50,MATCH($S236,Reliability!$C$23:$C$50,0)),0),0)*IF($T236=\"n/a\",$D236*$Y236,$G236)+IFERROR(IF(AND($V236<=AD$1,$W236>=AD$1),INDEX(Reliability!I$23:I$50,MATCH($T236,Reliability!$C$23:$C$50,0)),0),0)*$H236*$X236*$Y236),$D236)*$R236","v":0},{"$f":"MIN((IFERROR(IF(AND($V236<=AE$1,$W236>=AE$1),INDEX(Reliability!J$23:J$50,MATCH($S236,Reliability!$C$23:$C$50,0)),0),0)*IF($T236=\"n/a\",$D236*$Y236,$G236)+IFERROR(IF(AND($V236<=AE$1,$W236>=AE$1),INDEX(Reliability!J$23:J$50,MATCH($T236,Reliability!$C$23:$C$50,0)),0),0)*$H236*$X236*$Y236),$D236)*$R236","v":0},{"$f":"MIN((IFERROR(IF(AND($V236<=AF$1,$W236>=AF$1),INDEX(Reliability!K$23:K$50,MATCH($S236,Reliability!$C$23:$C$50,0)),0),0)*IF($T236=\"n/a\",$D236*$Y236,$G236)+IFERROR(IF(AND($V236<=AF$1,$W236>=AF$1),INDEX(Reliability!K$23:K$50,MATCH($T236,Reliability!$C$23:$C$50,0)),0),0)*$H236*$X236*$Y236),$D236)*$R236","v":0},{"$f":"MIN((IFERROR(IF(AND($V236<=AG$1,$W236>=AG$1),INDEX(Reliability!L$23:L$50,MATCH($S236,Reliability!$C$23:$C$50,0)),0),0)*IF($T236=\"n/a\",$D236*$Y236,$G236)+IFERROR(IF(AND($V236<=AG$1,$W236>=AG$1),INDEX(Reliability!L$23:L$50,MATCH($T236,Reliability!$C$23:$C$50,0)),0),0)*$H236*$X236*$Y236),$D236)*$R236","v":0},{"$f":"MIN((IFERROR(IF(AND($V236<=AH$1,$W236>=AH$1),INDEX(Reliability!M$23:M$50,MATCH($S236,Reliability!$C$23:$C$50,0)),0),0)*IF($T236=\"n/a\",$D236*$Y236,$G236)+IFERROR(IF(AND($V236<=AH$1,$W236>=AH$1),INDEX(Reliability!M$23:M$50,MATCH($T236,Reliability!$C$23:$C$50,0)),0),0)*$H236*$X236*$Y236),$D236)*$R236","v":0},{"$f":"MIN((IFERROR(IF(AND($V236<=AI$1,$W236>=AI$1),INDEX(Reliability!N$23:N$50,MATCH($S236,Reliability!$C$23:$C$50,0)),0),0)*IF($T236=\"n/a\",$D236*$Y236,$G236)+IFERROR(IF(AND($V236<=AI$1,$W236>=AI$1),INDEX(Reliability!N$23:N$50,MATCH($T236,Reliability!$C$23:$C$50,0)),0),0)*$H236*$X236*$Y236),$D236)*$R236","v":0},{"$f":"MIN((IFERROR(IF(AND($V236<=AJ$1,$W236>=AJ$1),INDEX(Reliability!O$23:O$50,MATCH($S236,Reliability!$C$23:$C$50,0)),0),0)*IF($T236=\"n/a\",$D236*$Y236,$G236)+IFERROR(IF(AND($V236<=AJ$1,$W236>=AJ$1),INDEX(Reliability!O$23:O$50,MATCH($T236,Reliability!$C$23:$C$50,0)),0),0)*$H236*$X236*$Y236),$D236)*$R236","v":0},{"$f":"MIN((IFERROR(IF(AND($V236<=AK$1,$W236>=AK$1),INDEX(Reliability!P$23:P$50,MATCH($S236,Reliability!$C$23:$C$50,0)),0),0)*IF($T236=\"n/a\",$D236*$Y236,$G236)+IFERROR(IF(AND($V236<=AK$1,$W236>=AK$1),INDEX(Reliability!P$23:P$50,MATCH($T236,Reliability!$C$23:$C$50,0)),0),0)*$H236*$X236*$Y236),$D236)*$R236","v":0}]
[null,{"$f":"unique_contracts!B238","v":0},{"$f":"unique_contracts!D238","v":0},{"$f":"unique_contracts!J238","v":0},{"$f":"unique_contracts!M238","v":0},{"$f":"unique_contracts!N238","v":0},{"$f":"unique_contracts!P238","v":0},{"$f":"unique_contracts!R238","v":0},{"$f":"unique_contracts!V238","v":0},{"$f":"unique_contracts!AB238","v":0},{"$f":"unique_contracts!AM238","v":0},{"$f":"unique_contracts!AN238","v":0},{"$f":"unique_contracts!AO238","v":0},{"$f":"unique_contracts!AP238","v":0},{"$f":"unique_contracts!AQ238","v":0},{"$f":"unique_contracts!AR238","v":0},{"$f":"unique_contracts!BP238","v":0},0,{"$f":"IFERROR(IF(AND(I237>0,E237=\"NotHybrid\"),_xlfn.CONCAT(MAX(MIN(ROUNDDOWN(I237/D237,0),8),4),INDEX(resources!$G:$G,MATCH(B237,resources!$A:$A,0))),INDEX(resources!$G:$G,MATCH(B237,resources!$A:$A,0))),\"n/a\")","v":"n/a"},"n/a","n/a",0,0,1,1,{"$f":"MIN((IFERROR(IF(AND($V237<=Z$1,$W237>=Z$1),INDEX(Reliability!E$23:E$50,MATCH($S237,Reliability!$C$23:$C$50,0)),0),0)*IF($T237=\"n/a\",$D237*$Y237,$G237)+IFERROR(IF(AND($V237<=Z$1,$W237>=Z$1),INDEX(Reliability!E$23:E$50,MATCH($T237,Reliability!$C$23:$C$50,0)),0),0)*$H237*$X237*$Y237),$D237)*$R237","v":0},{"$f":"MIN((IFERROR(IF(AND($V237<=AA$1,$W237>=AA$1),INDEX(Reliability!F$23:F$50,MATCH($S237,Reliability!$C$23:$C$50,0)),0),0)*IF($T237=\"n/a\",$D237*$Y237,$G237)+IFERROR(IF(AND($V237<=AA$1,$W237>=AA$1),INDEX(Reliability!F$23:F$50,MATCH($T237,Reliability!$C$23:$C$50,0)),0),0)*$H237*$X237*$Y237),$D237)*$R237","v":0},{"$f":"MIN((IFERROR(IF(AND($V237<=AB$1,$W237>=AB$1),INDEX(Reliability!G$23:G$50,MATCH($S237,Reliability!$C$23:$C$50,0)),0),0)*IF($T237=\"n/a\",$D237*$Y237,$G237)+IFERROR(IF(AND($V237<=AB$1,$W237>=AB$1),INDEX(Reliability!G$23:G$50,MATCH($T237,Reliability!$C$23:$C$50,0)),0),0)*$H237*$X237*$Y237),$D237)*$R237","v":0},{"$f":"MIN((IFERROR(IF(AND($V237<=AC$1,$W237>=AC$1),INDEX(Reliability!H$23:H$50,MATCH($S237,Reliability!$C$23:$C$50,0)),0),0)*IF($T237=\"n/a\",$D237*$Y237,$G237)+IFERROR(IF(AND($V237<=AC$1,$W237>=AC$1),INDEX(Reliability!H$23:H$50,MATCH($T237,Reliability!$C$23:$C$50,0)),0),0)*$H237*$X237*$Y237),$D237)*$R237","v":0},{"$f":"MIN((IFERROR(IF(AND($V237<=AD$1,$W237>=AD$1),INDEX(Reliability!I$23:I$50,MATCH($S237,Reliability!$C$23:$C$50,0)),0),0)*IF($T237=\"n/a\",$D237*$Y237,$G237)+IFERROR(IF(AND($V237<=AD$1,$W237>=AD$1),INDEX(Reliability!I$23:I$50,MATCH($T237,Reliability!$C$23:$C$50,0)),0),0)*$H237*$X237*$Y237),$D237)*$R237","v":0},{"$f":"MIN((IFERROR(IF(AND($V237<=AE$1,$W237>=AE$1),INDEX(Reliability!J$23:J$50,MATCH($S237,Reliability!$C$23:$C$50,0)),0),0)*IF($T237=\"n/a\",$D237*$Y237,$G237)+IFERROR(IF(AND($V237<=AE$1,$W237>=AE$1),INDEX(Reliability!J$23:J$50,MATCH($T237,Reliability!$C$23:$C$50,0)),0),0)*$H237*$X237*$Y237),$D237)*$R237","v":0},{"$f":"MIN((IFERROR(IF(AND($V237<=AF$1,$W237>=AF$1),INDEX(Reliability!K$23:K$50,MATCH($S237,Reliability!$C$23:$C$50,0)),0),0)*IF($T237=\"n/a\",$D237*$Y237,$G237)+IFERROR(IF(AND($V237<=AF$1,$W237>=AF$1),INDEX(Reliability!K$23:K$50,MATCH($T237,Reliability!$C$23:$C$50,0)),0),0)*$H237*$X237*$Y237),$D237)*$R237","v":0},{"$f":"MIN((IFERROR(IF(AND($V237<=AG$1,$W237>=AG$1),INDEX(Reliability!L$23:L$50,MATCH($S237,Reliability!$C$23:$C$50,0)),0),0)*IF($T237=\"n/a\",$D237*$Y237,$G237)+IFERROR(IF(AND($V237<=AG$1,$W237>=AG$1),INDEX(Reliability!L$23:L$50,MATCH($T237,Reliability!$C$23:$C$50,0)),0),0)*$H237*$X237*$Y237),$D237)*$R237","v":0},{"$f":"MIN((IFERROR(IF(AND($V237<=AH$1,$W237>=AH$1),INDEX(Reliability!M$23:M$50,MATCH($S237,Reliability!$C$23:$C$50,0)),0),0)*IF($T237=\"n/a\",$D237*$Y237,$G237)+IFERROR(IF(AND($V237<=AH$1,$W237>=AH$1),INDEX(Reliability!M$23:M$50,MATCH($T237,Reliability!$C$23:$C$50,0)),0),0)*$H237*$X237*$Y237),$D237)*$R237","v":0},{"$f":"MIN((IFERROR(IF(AND($V237<=AI$1,$W237>=AI$1),INDEX(Reliability!N$23:N$50,MATCH($S237,Reliability!$C$23:$C$50,0)),0),0)*IF($T237=\"n/a\",$D237*$Y237,$G237)+IFERROR(IF(AND($V237<=AI$1,$W237>=AI$1),INDEX(Reliability!N$23:N$50,MATCH($T237,Reliability!$C$23:$C$50,0)),0),0)*$H237*$X237*$Y237),$D237)*$R237","v":0},{"$f":"MIN((IFERROR(IF(AND($V237<=AJ$1,$W237>=AJ$1),INDEX(Reliability!O$23:O$50,MATCH($S237,Reliability!$C$23:$C$50,0)),0),0)*IF($T237=\"n/a\",$D237*$Y237,$G237)+IFERROR(IF(AND($V237<=AJ$1,$W237>=AJ$1),INDEX(Reliability!O$23:O$50,MATCH($T237,Reliability!$C$23:$C$50,0)),0),0)*$H237*$X237*$Y237),$D237)*$R237","v":0},{"$f":"MIN((IFERROR(IF(AND($V237<=AK$1,$W237>=AK$1),INDEX(Reliability!P$23:P$50,MATCH($S237,Reliability!$C$23:$C$50,0)),0),0)*IF($T237=\"n/a\",$D237*$Y237,$G237)+IFERROR(IF(AND($V237<=AK$1,$W237>=AK$1),INDEX(Reliability!P$23:P$50,MATCH($T237,Reliability!$C$23:$C$50,0)),0),0)*$H237*$X237*$Y237),$D237)*$R237","v":0}]
[null,{"$f":"unique_contracts!B239","v":0},{"$f":"unique_contracts!D239","v":0},{"$f":"unique_contracts!J239","v":0},{"$f":"unique_contracts!M239","v":0},{"$f":"unique_contracts!N239","v":0},{"$f":"unique_contracts!P239","v":0},{"$f":"unique_contracts!R239","v":0},{"$f":"unique_contracts!V239","v":0},{"$f":"unique_contracts!AB239","v":0},{"$f":"unique_contracts!AM239","v":0},{"$f":"unique_contracts!AN239","v":0},{"$f":"unique_contracts!AO239","v":0},{"$f":"unique_contracts!AP239","v":0},{"$f":"unique_contracts!AQ239","v":0},{"$f":"unique_contracts!AR239","v":0},{"$f":"unique_contracts!BP239","v":0},0,{"$f":"IFERROR(IF(AND(I238>0,E238=\"NotHybrid\"),_xlfn.CONCAT(MAX(MIN(ROUNDDOWN(I238/D238,0),8),4),INDEX(resources!$G:$G,MATCH(B238,resources!$A:$A,0))),INDEX(resources!$G:$G,MATCH(B238,resources!$A:$A,0))),\"n/a\")","v":"n/a"},"n/a","n/a",0,0,1,1,{"$f":"MIN((IFERROR(IF(AND($V238<=Z$1,$W238>=Z$1),INDEX(Reliability!E$23:E$50,MATCH($S238,Reliability!$C$23:$C$50,0)),0),0)*IF($T238=\"n/a\",$D238*$Y238,$G238)+IFERROR(IF(AND($V238<=Z$1,$W238>=Z$1),INDEX(Reliability!E$23:E$50,MATCH($T238,Reliability!$C$23:$C$50,0)),0),0)*$H238*$X238*$Y238),$D238)*$R238","v":0},{"$f":"MIN((IFERROR(IF(AND($V238<=AA$1,$W238>=AA$1),INDEX(Reliability!F$23:F$50,MATCH($S238,Reliability!$C$23:$C$50,0)),0),0)*IF($T238=\"n/a\",$D238*$Y238,$G238)+IFERROR(IF(AND($V238<=AA$1,$W238>=AA$1),INDEX(Reliability!F$23:F$50,MATCH($T238,Reliability!$C$23:$C$50,0)),0),0)*$H238*$X238*$Y238),$D238)*$R238","v":0},{"$f":"MIN((IFERROR(IF(AND($V238<=AB$1,$W238>=AB$1),INDEX(Reliability!G$23:G$50,MATCH($S238,Reliability!$C$23:$C$50,0)),0),0)*IF($T238=\"n/a\",$D238*$Y238,$G238)+IFERROR(IF(AND($V238<=AB$1,$W238>=AB$1),INDEX(Reliability!G$23:G$50,MATCH($T238,Reliability!$C$23:$C$50,0)),0),0)*$H238*$X238*$Y238),$D238)*$R238","v":0},{"$f":"MIN((IFERROR(IF(AND($V238<=AC$1,$W238>=AC$1),INDEX(Reliability!H$23:H$50,MATCH($S238,Reliability!$C$23:$C$50,0)),0),0)*IF($T238=\"n/a\",$D238*$Y238,$G238)+IFERROR(IF(AND($V238<=AC$1,$W238>=AC$1),INDEX(Reliability!H$23:H$50,MATCH($T238,Reliability!$C$23:$C$50,0)),0),0)*$H238*$X238*$Y238),$D238)*$R238","v":0},{"$f":"MIN((IFERROR(IF(AND($V238<=AD$1,$W238>=AD$1),INDEX(Reliability!I$23:I$50,MATCH($S238,Reliability!$C$23:$C$50,0)),0),0)*IF($T238=\"n/a\",$D238*$Y238,$G238)+IFERROR(IF(AND($V238<=AD$1,$W238>=AD$1),INDEX(Reliability!I$23:I$50,MATCH($T238,Reliability!$C$23:$C$50,0)),0),0)*$H238*$X238*$Y238),$D238)*$R238","v":0},{"$f":"MIN((IFERROR(IF(AND($V238<=AE$1,$W238>=AE$1),INDEX(Reliability!J$23:J$50,MATCH($S238,Reliability!$C$23:$C$50,0)),0),0)*IF($T238=\"n/a\",$D238*$Y238,$G238)+IFERROR(IF(AND($V238<=AE$1,$W238>=AE$1),INDEX(Reliability!J$23:J$50,MATCH($T238,Reliability!$C$23:$C$50,0)),0),0)*$H238*$X238*$Y238),$D238)*$R238","v":0},{"$f":"MIN((IFERROR(IF(AND($V238<=AF$1,$W238>=AF$1),INDEX(Reliability!K$23:K$50,MATCH($S238,Reliability!$C$23:$C$50,0)),0),0)*IF($T238=\"n/a\",$D238*$Y238,$G238)+IFERROR(IF(AND($V238<=AF$1,$W238>=AF$1),INDEX(Reliability!K$23:K$50,MATCH($T238,Reliability!$C$23:$C$50,0)),0),0)*$H238*$X238*$Y238),$D238)*$R238","v":0},{"$f":"MIN((IFERROR(IF(AND($V238<=AG$1,$W238>=AG$1),INDEX(Reliability!L$23:L$50,MATCH($S238,Reliability!$C$23:$C$50,0)),0),0)*IF($T238=\"n/a\",$D238*$Y238,$G238)+IFERROR(IF(AND($V238<=AG$1,$W238>=AG$1),INDEX(Reliability!L$23:L$50,MATCH($T238,Reliability!$C$23:$C$50,0)),0),0)*$H238*$X238*$Y238),$D238)*$R238","v":0},{"$f":"MIN((IFERROR(IF(AND($V238<=AH$1,$W238>=AH$1),INDEX(Reliability!M$23:M$50,MATCH($S238,Reliability!$C$23:$C$50,0)),0),0)*IF($T238=\"n/a\",$D238*$Y238,$G238)+IFERROR(IF(AND($V238<=AH$1,$W238>=AH$1),INDEX(Reliability!M$23:M$50,MATCH($T238,Reliability!$C$23:$C$50,0)),0),0)*$H238*$X238*$Y238),$D238)*$R238","v":0},{"$f":"MIN((IFERROR(IF(AND($V238<=AI$1,$W238>=AI$1),INDEX(Reliability!N$23:N$50,MATCH($S238,Reliability!$C$23:$C$50,0)),0),0)*IF($T238=\"n/a\",$D238*$Y238,$G238)+IFERROR(IF(AND($V238<=AI$1,$W238>=AI$1),INDEX(Reliability!N$23:N$50,MATCH($T238,Reliability!$C$23:$C$50,0)),0),0)*$H238*$X238*$Y238),$D238)*$R238","v":0},{"$f":"MIN((IFERROR(IF(AND($V238<=AJ$1,$W238>=AJ$1),INDEX(Reliability!O$23:O$50,MATCH($S238,Reliability!$C$23:$C$50,0)),0),0)*IF($T238=\"n/a\",$D238*$Y238,$G238)+IFERROR(IF(AND($V238<=AJ$1,$W238>=AJ$1),INDEX(Reliability!O$23:O$50,MATCH($T238,Reliability!$C$23:$C$50,0)),0),0)*$H238*$X238*$Y238),$D238)*$R238","v":0},{"$f":"MIN((IFERROR(IF(AND($V238<=AK$1,$W238>=AK$1),INDEX(Reliability!P$23:P$50,MATCH($S238,Reliability!$C$23:$C$50,0)),0),0)*IF($T238=\"n/a\",$D238*$Y238,$G238)+IFERROR(IF(AND($V238<=AK$1,$W238>=AK$1),INDEX(Reliability!P$23:P$50,MATCH($T238,Reliability!$C$23:$C$50,0)),0),0)*$H238*$X238*$Y238),$D238)*$R238","v":0}]
[null,{"$f":"unique_contracts!B240","v":0},{"$f":"unique_contracts!D240","v":0},{"$f":"unique_contracts!J240","v":0},{"$f":"unique_contracts!M240","v":0},{"$f":"unique_contracts!N240","v":0},{"$f":"unique_contracts!P240","v":0},{"$f":"unique_contracts!R240","v":0},{"$f":"unique_contracts!V240","v":0},{"$f":"unique_contracts!AB240","v":0},{"$f":"unique_contracts!AM240","v":0},{"$f":"unique_contracts!AN240","v":0},{"$f":"unique_contracts!AO240","v":0},{"$f":"unique_contracts!AP240","v":0},{"$f":"unique_contracts!AQ240","v":0},{"$f":"unique_contracts!AR240","v":0},{"$f":"unique_contracts!BP240","v":0},0,{"$f":"IFERROR(IF(AND(I239>0,E239=\"NotHybrid\"),_xlfn.CONCAT(MAX(MIN(ROUNDDOWN(I239/D239,0),8),4),INDEX(resources!$G:$G,MATCH(B239,resources!$A:$A,0))),INDEX(resources!$G:$G,MATCH(B239,resources!$A:$A,0))),\"n/a\")","v":"n/a"},"n/a","n/a",0,0,1,1,{"$f":"MIN((IFERROR(IF(AND($V239<=Z$1,$W239>=Z$1),INDEX(Reliability!E$23:E$50,MATCH($S239,Reliability!$C$23:$C$50,0)),0),0)*IF($T239=\"n/a\",$D239*$Y239,$G239)+IFERROR(IF(AND($V239<=Z$1,$W239>=Z$1),INDEX(Reliability!E$23:E$50,MATCH($T239,Reliability!$C$23:$C$50,0)),0),0)*$H239*$X239*$Y239),$D239)*$R239","v":0},{"$f":"MIN((IFERROR(IF(AND($V239<=AA$1,$W239>=AA$1),INDEX(Reliability!F$23:F$50,MATCH($S239,Reliability!$C$23:$C$50,0)),0),0)*IF($T239=\"n/a\",$D239*$Y239,$G239)+IFERROR(IF(AND($V239<=AA$1,$W239>=AA$1),INDEX(Reliability!F$23:F$50,MATCH($T239,Reliability!$C$23:$C$50,0)),0),0)*$H239*$X239*$Y239),$D239)*$R239","v":0},{"$f":"MIN((IFERROR(IF(AND($V239<=AB$1,$W239>=AB$1),INDEX(Reliability!G$23:G$50,MATCH($S239,Reliability!$C$23:$C$50,0)),0),0)*IF($T239=\"n/a\",$D239*$Y239,$G239)+IFERROR(IF(AND($V239<=AB$1,$W239>=AB$1),INDEX(Reliability!G$23:G$50,MATCH($T239,Reliability!$C$23:$C$50,0)),0),0)*$H239*$X239*$Y239),$D239)*$R239","v":0},{"$f":"MIN((IFERROR(IF(AND($V239<=AC$1,$W239>=AC$1),INDEX(Reliability!H$23:H$50,MATCH($S239,Reliability!$C$23:$C$50,0)),0),0)*IF($T239=\"n/a\",$D239*$Y239,$G239)+IFERROR(IF(AND($V239<=AC$1,$W239>=AC$1),INDEX(Reliability!H$23:H$50,MATCH($T239,Reliability!$C$23:$C$50,0)),0),0)*$H239*$X239*$Y239),$D239)*$R239","v":0},{"$f":"MIN((IFERROR(IF(AND($V239<=AD$1,$W239>=AD$1),INDEX(Reliability!I$23:I$50,MATCH($S239,Reliability!$C$23:$C$50,0)),0),0)*IF($T239=\"n/a\",$D239*$Y239,$G239)+IFERROR(IF(AND($V239<=AD$1,$W239>=AD$1),INDEX(Reliability!I$23:I$50,MATCH($T239,Reliability!$C$23:$C$50,0)),0),0)*$H239*$X239*$Y239),$D239)*$R239","v":0},{"$f":"MIN((IFERROR(IF(AND($V239<=AE$1,$W239>=AE$1),INDEX(Reliability!J$23:J$50,MATCH($S239,Reliability!$C$23:$C$50,0)),0),0)*IF($T239=\"n/a\",$D239*$Y239,$G239)+IFERROR(IF(AND($V239<=AE$1,$W239>=AE$1),INDEX(Reliability!J$23:J$50,MATCH($T239,Reliability!$C$23:$C$50,0)),0),0)*$H239*$X239*$Y239),$D239)*$R239","v":0},{"$f":"MIN((IFERROR(IF(AND($V239<=AF$1,$W239>=AF$1),INDEX(Reliability!K$23:K$50,MATCH($S239,Reliability!$C$23:$C$50,0)),0),0)*IF($T239=\"n/a\",$D239*$Y239,$G239)+IFERROR(IF(AND($V239<=AF$1,$W239>=AF$1),INDEX(Reliability!K$23:K$50,MATCH($T239,Reliability!$C$23:$C$50,0)),0),0)*$H239*$X239*$Y239),$D239)*$R239","v":0},{"$f":"MIN((IFERROR(IF(AND($V239<=AG$1,$W239>=AG$1),INDEX(Reliability!L$23:L$50,MATCH($S239,Reliability!$C$23:$C$50,0)),0),0)*IF($T239=\"n/a\",$D239*$Y239,$G239)+IFERROR(IF(AND($V239<=AG$1,$W239>=AG$1),INDEX(Reliability!L$23:L$50,MATCH($T239,Reliability!$C$23:$C$50,0)),0),0)*$H239*$X239*$Y239),$D239)*$R239","v":0},{"$f":"MIN((IFERROR(IF(AND($V239<=AH$1,$W239>=AH$1),INDEX(Reliability!M$23:M$50,MATCH($S239,Reliability!$C$23:$C$50,0)),0),0)*IF($T239=\"n/a\",$D239*$Y239,$G239)+IFERROR(IF(AND($V239<=AH$1,$W239>=AH$1),INDEX(Reliability!M$23:M$50,MATCH($T239,Reliability!$C$23:$C$50,0)),0),0)*$H239*$X239*$Y239),$D239)*$R239","v":0},{"$f":"MIN((IFERROR(IF(AND($V239<=AI$1,$W239>=AI$1),INDEX(Reliability!N$23:N$50,MATCH($S239,Reliability!$C$23:$C$50,0)),0),0)*IF($T239=\"n/a\",$D239*$Y239,$G239)+IFERROR(IF(AND($V239<=AI$1,$W239>=AI$1),INDEX(Reliability!N$23:N$50,MATCH($T239,Reliability!$C$23:$C$50,0)),0),0)*$H239*$X239*$Y239),$D239)*$R239","v":0},{"$f":"MIN((IFERROR(IF(AND($V239<=AJ$1,$W239>=AJ$1),INDEX(Reliability!O$23:O$50,MATCH($S239,Reliability!$C$23:$C$50,0)),0),0)*IF($T239=\"n/a\",$D239*$Y239,$G239)+IFERROR(IF(AND($V239<=AJ$1,$W239>=AJ$1),INDEX(Reliability!O$23:O$50,MATCH($T239,Reliability!$C$23:$C$50,0)),0),0)*$H239*$X239*$Y239),$D239)*$R239","v":0},{"$f":"MIN((IFERROR(IF(AND($V239<=AK$1,$W239>=AK$1),INDEX(Reliability!P$23:P$50,MATCH($S239,Reliability!$C$23:$C$50,0)),0),0)*IF($T239=\"n/a\",$D239*$Y239,$G239)+IFERROR(IF(AND($V239<=AK$1,$W239>=AK$1),INDEX(Reliability!P$23:P$50,MATCH($T239,Reliability!$C$23:$C$50,0)),0),0)*$H239*$X239*$Y239),$D239)*$R239","v":0}]
[null,{"$f":"unique_contracts!B241","v":0},{"$f":"unique_contracts!D241","v":0},{"$f":"unique_contracts!J241","v":0},{"$f":"unique_contracts!M241","v":0},{"$f":"unique_contracts!N241","v":0},{"$f":"unique_contracts!P241","v":0},{"$f":"unique_contracts!R241","v":0},{"$f":"unique_contracts!V241","v":0},{"$f":"unique_contracts!AB241","v":0},{"$f":"unique_contracts!AM241","v":0},{"$f":"unique_contracts!AN241","v":0},{"$f":"unique_contracts!AO241","v":0},{"$f":"unique_contracts!AP241","v":0},{"$f":"unique_contracts!AQ241","v":0},{"$f":"unique_contracts!AR241","v":0},{"$f":"unique_contracts!BP241","v":0},0,{"$f":"IFERROR(IF(AND(I240>0,E240=\"NotHybrid\"),_xlfn.CONCAT(MAX(MIN(ROUNDDOWN(I240/D240,0),8),4),INDEX(resources!$G:$G,MATCH(B240,resources!$A:$A,0))),INDEX(resources!$G:$G,MATCH(B240,resources!$A:$A,0))),\"n/a\")","v":"n/a"},"n/a","n/a",0,0,1,1,{"$f":"MIN((IFERROR(IF(AND($V240<=Z$1,$W240>=Z$1),INDEX(Reliability!E$23:E$50,MATCH($S240,Reliability!$C$23:$C$50,0)),0),0)*IF($T240=\"n/a\",$D240*$Y240,$G240)+IFERROR(IF(AND($V240<=Z$1,$W240>=Z$1),INDEX(Reliability!E$23:E$50,MATCH($T240,Reliability!$C$23:$C$50,0)),0),0)*$H240*$X240*$Y240),$D240)*$R240","v":0},{"$f":"MIN((IFERROR(IF(AND($V240<=AA$1,$W240>=AA$1),INDEX(Reliability!F$23:F$50,MATCH($S240,Reliability!$C$23:$C$50,0)),0),0)*IF($T240=\"n/a\",$D240*$Y240,$G240)+IFERROR(IF(AND($V240<=AA$1,$W240>=AA$1),INDEX(Reliability!F$23:F$50,MATCH($T240,Reliability!$C$23:$C$50,0)),0),0)*$H240*$X240*$Y240),$D240)*$R240","v":0},{"$f":"MIN((IFERROR(IF(AND($V240<=AB$1,$W240>=AB$1),INDEX(Reliability!G$23:G$50,MATCH($S240,Reliability!$C$23:$C$50,0)),0),0)*IF($T240=\"n/a\",$D240*$Y240,$G240)+IFERROR(IF(AND($V240<=AB$1,$W240>=AB$1),INDEX(Reliability!G$23:G$50,MATCH($T240,Reliability!$C$23:$C$50,0)),0),0)*$H240*$X240*$Y240),$D240)*$R240","v":0},{"$f":"MIN((IFERROR(IF(AND($V240<=AC$1,$W240>=AC$1),INDEX(Reliability!H$23:H$50,MATCH($S240,Reliability!$C$23:$C$50,0)),0),0)*IF($T240=\"n/a\",$D240*$Y240,$G240)+IFERROR(IF(AND($V240<=AC$1,$W240>=AC$1),INDEX(Reliability!H$23:H$50,MATCH($T240,Reliability!$C$23:$C$50,0)),0),0)*$H240*$X240*$Y240),$D240)*$R240","v":0},{"$f":"MIN((IFERROR(IF(AND($V240<=AD$1,$W240>=AD$1),INDEX(Reliability!I$23:I$50,MATCH($S240,Reliability!$C$23:$C$50,0)),0),0)*IF($T240=\"n/a\",$D240*$Y240,$G240)+IFERROR(IF(AND($V240<=AD$1,$W240>=AD$1),INDEX(Reliability!I$23:I$50,MATCH($T240,Reliability!$C$23:$C$50,0)),0),0)*$H240*$X240*$Y240),$D240)*$R240","v":0},{"$f":"MIN((IFERROR(IF(AND($V240<=AE$1,$W240>=AE$1),INDEX(Reliability!J$23:J$50,MATCH($S240,Reliability!$C$23:$C$50,0)),0),0)*IF($T240=\"n/a\",$D240*$Y240,$G240)+IFERROR(IF(AND($V240<=AE$1,$W240>=AE$1),INDEX(Reliability!J$23:J$50,MATCH($T240,Reliability!$C$23:$C$50,0)),0),0)*$H240*$X240*$Y240),$D240)*$R240","v":0},{"$f":"MIN((IFERROR(IF(AND($V240<=AF$1,$W240>=AF$1),INDEX(Reliability!K$23:K$50,MATCH($S240,Reliability!$C$23:$C$50,0)),0),0)*IF($T240=\"n/a\",$D240*$Y240,$G240)+IFERROR(IF(AND($V240<=AF$1,$W240>=AF$1),INDEX(Reliability!K$23:K$50,MATCH($T240,Reliability!$C$23:$C$50,0)),0),0)*$H240*$X240*$Y240),$D240)*$R240","v":0},{"$f":"MIN((IFERROR(IF(AND($V240<=AG$1,$W240>=AG$1),INDEX(Reliability!L$23:L$50,MATCH($S240,Reliability!$C$23:$C$50,0)),0),0)*IF($T240=\"n/a\",$D240*$Y240,$G240)+IFERROR(IF(AND($V240<=AG$1,$W240>=AG$1),INDEX(Reliability!L$23:L$50,MATCH($T240,Reliability!$C$23:$C$50,0)),0),0)*$H240*$X240*$Y240),$D240)*$R240","v":0},{"$f":"MIN((IFERROR(IF(AND($V240<=AH$1,$W240>=AH$1),INDEX(Reliability!M$23:M$50,MATCH($S240,Reliability!$C$23:$C$50,0)),0),0)*IF($T240=\"n/a\",$D240*$Y240,$G240)+IFERROR(IF(AND($V240<=AH$1,$W240>=AH$1),INDEX(Reliability!M$23:M$50,MATCH($T240,Reliability!$C$23:$C$50,0)),0),0)*$H240*$X240*$Y240),$D240)*$R240","v":0},{"$f":"MIN((IFERROR(IF(AND($V240<=AI$1,$W240>=AI$1),INDEX(Reliability!N$23:N$50,MATCH($S240,Reliability!$C$23:$C$50,0)),0),0)*IF($T240=\"n/a\",$D240*$Y240,$G240)+IFERROR(IF(AND($V240<=AI$1,$W240>=AI$1),INDEX(Reliability!N$23:N$50,MATCH($T240,Reliability!$C$23:$C$50,0)),0),0)*$H240*$X240*$Y240),$D240)*$R240","v":0},{"$f":"MIN((IFERROR(IF(AND($V240<=AJ$1,$W240>=AJ$1),INDEX(Reliability!O$23:O$50,MATCH($S240,Reliability!$C$23:$C$50,0)),0),0)*IF($T240=\"n/a\",$D240*$Y240,$G240)+IFERROR(IF(AND($V240<=AJ$1,$W240>=AJ$1),INDEX(Reliability!O$23:O$50,MATCH($T240,Reliability!$C$23:$C$50,0)),0),0)*$H240*$X240*$Y240),$D240)*$R240","v":0},{"$f":"MIN((IFERROR(IF(AND($V240<=AK$1,$W240>=AK$1),INDEX(Reliability!P$23:P$50,MATCH($S240,Reliability!$C$23:$C$50,0)),0),0)*IF($T240=\"n/a\",$D240*$Y240,$G240)+IFERROR(IF(AND($V240<=AK$1,$W240>=AK$1),INDEX(Reliability!P$23:P$50,MATCH($T240,Reliability!$C$23:$C$50,0)),0),0)*$H240*$X240*$Y240),$D240)*$R240","v":0}]
[null,{"$f":"unique_contracts!B242","v":0},{"$f":"unique_contracts!D242","v":0},{"$f":"unique_contracts!J242","v":0},{"$f":"unique_contracts!M242","v":0},{"$f":"unique_contracts!N242","v":0},{"$f":"unique_contracts!P242","v":0},{"$f":"unique_contracts!R242","v":0},{"$f":"unique_contracts!V242","v":0},{"$f":"unique_contracts!AB242","v":0},{"$f":"unique_contracts!AM242","v":0},{"$f":"unique_contracts!AN242","v":0},{"$f":"unique_contracts!AO242","v":0},{"$f":"unique_contracts!AP242","v":0},{"$f":"unique_contracts!AQ242","v":0},{"$f":"unique_contracts!AR242","v":0},{"$f":"unique_contracts!BP242","v":0},0,{"$f":"IFERROR(IF(AND(I241>0,E241=\"NotHybrid\"),_xlfn.CONCAT(MAX(MIN(ROUNDDOWN(I241/D241,0),8),4),INDEX(resources!$G:$G,MATCH(B241,resources!$A:$A,0))),INDEX(resources!$G:$G,MATCH(B241,resources!$A:$A,0))),\"n/a\")","v":"n/a"},"n/a","n/a",0,0,1,1,{"$f":"MIN((IFERROR(IF(AND($V241<=Z$1,$W241>=Z$1),INDEX(Reliability!E$23:E$50,MATCH($S241,Reliability!$C$23:$C$50,0)),0),0)*IF($T241=\"n/a\",$D241*$Y241,$G241)+IFERROR(IF(AND($V241<=Z$1,$W241>=Z$1),INDEX(Reliability!E$23:E$50,MATCH($T241,Reliability!$C$23:$C$50,0)),0),0)*$H241*$X241*$Y241),$D241)*$R241","v":0},{"$f":"MIN((IFERROR(IF(AND($V241<=AA$1,$W241>=AA$1),INDEX(Reliability!F$23:F$50,MATCH($S241,Reliability!$C$23:$C$50,0)),0),0)*IF($T241=\"n/a\",$D241*$Y241,$G241)+IFERROR(IF(AND($V241<=AA$1,$W241>=AA$1),INDEX(Reliability!F$23:F$50,MATCH($T241,Reliability!$C$23:$C$50,0)),0),0)*$H241*$X241*$Y241),$D241)*$R241","v":0},{"$f":"MIN((IFERROR(IF(AND($V241<=AB$1,$W241>=AB$1),INDEX(Reliability!G$23:G$50,MATCH($S241,Reliability!$C$23:$C$50,0)),0),0)*IF($T241=\"n/a\",$D241*$Y241,$G241)+IFERROR(IF(AND($V241<=AB$1,$W241>=AB$1),INDEX(Reliability!G$23:G$50,MATCH($T241,Reliability!$C$23:$C$50,0)),0),0)*$H241*$X241*$Y241),$D241)*$R241","v":0},{"$f":"MIN((IFERROR(IF(AND($V241<=AC$1,$W241>=AC$1),INDEX(Reliability!H$23:H$50,MATCH($S241,Reliability!$C$23:$C$50,0)),0),0)*IF($T241=\"n/a\",$D241*$Y241,$G241)+IFERROR(IF(AND($V241<=AC$1,$W241>=AC$1),INDEX(Reliability!H$23:H$50,MATCH($T241,Reliability!$C$23:$C$50,0)),0),0)*$H241*$X241*$Y241),$D241)*$R241","v":0},{"$f":"MIN((IFERROR(IF(AND($V241<=AD$1,$W241>=AD$1),INDEX(Reliability!I$23:I$50,MATCH($S241,Reliability!$C$23:$C$50,0)),0),0)*IF($T241=\"n/a\",$D241*$Y241,$G241)+IFERROR(IF(AND($V241<=AD$1,$W241>=AD$1),INDEX(Reliability!I$23:I$50,MATCH($T241,Reliability!$C$23:$C$50,0)),0),0)*$H241*$X241*$Y241),$D241)*$R241","v":0},{"$f":"MIN((IFERROR(IF(AND($V241<=AE$1,$W241>=AE$1),INDEX(Reliability!J$23:J$50,MATCH($S241,Reliability!$C$23:$C$50,0)),0),0)*IF($T241=\"n/a\",$D241*$Y241,$G241)+IFERROR(IF(AND($V241<=AE$1,$W241>=AE$1),INDEX(Reliability!J$23:J$50,MATCH($T241,Reliability!$C$23:$C$50,0)),0),0)*$H241*$X241*$Y241),$D241)*$R241","v":0},{"$f":"MIN((IFERROR(IF(AND($V241<=AF$1,$W241>=AF$1),INDEX(Reliability!K$23:K$50,MATCH($S241,Reliability!$C$23:$C$50,0)),0),0)*IF($T241=\"n/a\",$D241*$Y241,$G241)+IFERROR(IF(AND($V241<=AF$1,$W241>=AF$1),INDEX(Reliability!K$23:K$50,MATCH($T241,Reliability!$C$23:$C$50,0)),0),0)*$H241*$X241*$Y241),$D241)*$R241","v":0},{"$f":"MIN((IFERROR(IF(AND($V241<=AG$1,$W241>=AG$1),INDEX(Reliability!L$23:L$50,MATCH($S241,Reliability!$C$23:$C$50,0)),0),0)*IF($T241=\"n/a\",$D241*$Y241,$G241)+IFERROR(IF(AND($V241<=AG$1,$W241>=AG$1),INDEX(Reliability!L$23:L$50,MATCH($T241,Reliability!$C$23:$C$50,0)),0),0)*$H241*$X241*$Y241),$D241)*$R241","v":0},{"$f":"MIN((IFERROR(IF(AND($V241<=AH$1,$W241>=AH$1),INDEX(Reliability!M$23:M$50,MATCH($S241,Reliability!$C$23:$C$50,0)),0),0)*IF($T241=\"n/a\",$D241*$Y241,$G241)+IFERROR(IF(AND($V241<=AH$1,$W241>=AH$1),INDEX(Reliability!M$23:M$50,MATCH($T241,Reliability!$C$23:$C$50,0)),0),0)*$H241*$X241*$Y241),$D241)*$R241","v":0},{"$f":"MIN((IFERROR(IF(AND($V241<=AI$1,$W241>=AI$1),INDEX(Reliability!N$23:N$50,MATCH($S241,Reliability!$C$23:$C$50,0)),0),0)*IF($T241=\"n/a\",$D241*$Y241,$G241)+IFERROR(IF(AND($V241<=AI$1,$W241>=AI$1),INDEX(Reliability!N$23:N$50,MATCH($T241,Reliability!$C$23:$C$50,0)),0),0)*$H241*$X241*$Y241),$D241)*$R241","v":0},{"$f":"MIN((IFERROR(IF(AND($V241<=AJ$1,$W241>=AJ$1),INDEX(Reliability!O$23:O$50,MATCH($S241,Reliability!$C$23:$C$50,0)),0),0)*IF($T241=\"n/a\",$D241*$Y241,$G241)+IFERROR(IF(AND($V241<=AJ$1,$W241>=AJ$1),INDEX(Reliability!O$23:O$50,MATCH($T241,Reliability!$C$23:$C$50,0)),0),0)*$H241*$X241*$Y241),$D241)*$R241","v":0},{"$f":"MIN((IFERROR(IF(AND($V241<=AK$1,$W241>=AK$1),INDEX(Reliability!P$23:P$50,MATCH($S241,Reliability!$C$23:$C$50,0)),0),0)*IF($T241=\"n/a\",$D241*$Y241,$G241)+IFERROR(IF(AND($V241<=AK$1,$W241>=AK$1),INDEX(Reliability!P$23:P$50,MATCH($T241,Reliability!$C$23:$C$50,0)),0),0)*$H241*$X241*$Y241),$D241)*$R241","v":0}]
[null,{"$f":"unique_contracts!B243","v":0},{"$f":"unique_contracts!D243","v":0},{"$f":"unique_contracts!J243","v":0},{"$f":"unique_contracts!M243","v":0},{"$f":"unique_contracts!N243","v":0},{"$f":"unique_contracts!P243","v":0},{"$f":"unique_contracts!R243","v":0},{"$f":"unique_contracts!V243","v":0},{"$f":"unique_contracts!AB243","v":0},{"$f":"unique_contracts!AM243","v":0},{"$f":"unique_contracts!AN243","v":0},{"$f":"unique_contracts!AO243","v":0},{"$f":"unique_contracts!AP243","v":0},{"$f":"unique_contracts!AQ243","v":0},{"$f":"unique_contracts!AR243","v":0},{"$f":"unique_contracts!BP243","v":0},0,{"$f":"IFERROR(IF(AND(I242>0,E242=\"NotHybrid\"),_xlfn.CONCAT(MAX(MIN(ROUNDDOWN(I242/D242,0),8),4),INDEX(resources!$G:$G,MATCH(B242,resources!$A:$A,0))),INDEX(resources!$G:$G,MATCH(B242,resources!$A:$A,0))),\"n/a\")","v":"n/a"},"n/a","n/a",0,0,1,1,{"$f":"MIN((IFERROR(IF(AND($V242<=Z$1,$W242>=Z$1),INDEX(Reliability!E$23:E$50,MATCH($S242,Reliability!$C$23:$C$50,0)),0),0)*IF($T242=\"n/a\",$D242*$Y242,$G242)+IFERROR(IF(AND($V242<=Z$1,$W242>=Z$1),INDEX(Reliability!E$23:E$50,MATCH($T242,Reliability!$C$23:$C$50,0)),0),0)*$H242*$X242*$Y242),$D242)*$R242","v":0},{"$f":"MIN((IFERROR(IF(AND($V242<=AA$1,$W242>=AA$1),INDEX(Reliability!F$23:F$50,MATCH($S242,Reliability!$C$23:$C$50,0)),0),0)*IF($T242=\"n/a\",$D242*$Y242,$G242)+IFERROR(IF(AND($V242<=AA$1,$W242>=AA$1),INDEX(Reliability!F$23:F$50,MATCH($T242,Reliability!$C$23:$C$50,0)),0),0)*$H242*$X242*$Y242),$D242)*$R242","v":0},{"$f":"MIN((IFERROR(IF(AND($V242<=AB$1,$W242>=AB$1),INDEX(Reliability!G$23:G$50,MATCH($S242,Reliability!$C$23:$C$50,0)),0),0)*IF($T242=\"n/a\",$D242*$Y242,$G242)+IFERROR(IF(AND($V242<=AB$1,$W242>=AB$1),INDEX(Reliability!G$23:G$50,MATCH($T242,Reliability!$C$23:$C$50,0)),0),0)*$H242*$X242*$Y242),$D242)*$R242","v":0},{"$f":"MIN((IFERROR(IF(AND($V242<=AC$1,$W242>=AC$1),INDEX(Reliability!H$23:H$50,MATCH($S242,Reliability!$C$23:$C$50,0)),0),0)*IF($T242=\"n/a\",$D242*$Y242,$G242)+IFERROR(IF(AND($V242<=AC$1,$W242>=AC$1),INDEX(Reliability!H$23:H$50,MATCH($T242,Reliability!$C$23:$C$50,0)),0),0)*$H242*$X242*$Y242),$D242)*$R242","v":0},{"$f":"MIN((IFERROR(IF(AND($V242<=AD$1,$W242>=AD$1),INDEX(Reliability!I$23:I$50,MATCH($S242,Reliability!$C$23:$C$50,0)),0),0)*IF($T242=\"n/a\",$D242*$Y242,$G242)+IFERROR(IF(AND($V242<=AD$1,$W242>=AD$1),INDEX(Reliability!I$23:I$50,MATCH($T242,Reliability!$C$23:$C$50,0)),0),0)*$H242*$X242*$Y242),$D242)*$R242","v":0},{"$f":"MIN((IFERROR(IF(AND($V242<=AE$1,$W242>=AE$1),INDEX(Reliability!J$23:J$50,MATCH($S242,Reliability!$C$23:$C$50,0)),0),0)*IF($T242=\"n/a\",$D242*$Y242,$G242)+IFERROR(IF(AND($V242<=AE$1,$W242>=AE$1),INDEX(Reliability!J$23:J$50,MATCH($T242,Reliability!$C$23:$C$50,0)),0),0)*$H242*$X242*$Y242),$D242)*$R242","v":0},{"$f":"MIN((IFERROR(IF(AND($V242<=AF$1,$W242>=AF$1),INDEX(Reliability!K$23:K$50,MATCH($S242,Reliability!$C$23:$C$50,0)),0),0)*IF($T242=\"n/a\",$D242*$Y242,$G242)+IFERROR(IF(AND($V242<=AF$1,$W242>=AF$1),INDEX(Reliability!K$23:K$50,MATCH($T242,Reliability!$C$23:$C$50,0)),0),0)*$H242*$X242*$Y242),$D242)*$R242","v":0},{"$f":"MIN((IFERROR(IF(AND($V242<=AG$1,$W242>=AG$1),INDEX(Reliability!L$23:L$50,MATCH($S242,Reliability!$C$23:$C$50,0)),0),0)*IF($T242=\"n/a\",$D242*$Y242,$G242)+IFERROR(IF(AND($V242<=AG$1,$W242>=AG$1),INDEX(Reliability!L$23:L$50,MATCH($T242,Reliability!$C$23:$C$50,0)),0),0)*$H242*$X242*$Y242),$D242)*$R242","v":0},{"$f":"MIN((IFERROR(IF(AND($V242<=AH$1,$W242>=AH$1),INDEX(Reliability!M$23:M$50,MATCH($S242,Reliability!$C$23:$C$50,0)),0),0)*IF($T242=\"n/a\",$D242*$Y242,$G242)+IFERROR(IF(AND($V242<=AH$1,$W242>=AH$1),INDEX(Reliability!M$23:M$50,MATCH($T242,Reliability!$C$23:$C$50,0)),0),0)*$H242*$X242*$Y242),$D242)*$R242","v":0},{"$f":"MIN((IFERROR(IF(AND($V242<=AI$1,$W242>=AI$1),INDEX(Reliability!N$23:N$50,MATCH($S242,Reliability!$C$23:$C$50,0)),0),0)*IF($T242=\"n/a\",$D242*$Y242,$G242)+IFERROR(IF(AND($V242<=AI$1,$W242>=AI$1),INDEX(Reliability!N$23:N$50,MATCH($T242,Reliability!$C$23:$C$50,0)),0),0)*$H242*$X242*$Y242),$D242)*$R242","v":0},{"$f":"MIN((IFERROR(IF(AND($V242<=AJ$1,$W242>=AJ$1),INDEX(Reliability!O$23:O$50,MATCH($S242,Reliability!$C$23:$C$50,0)),0),0)*IF($T242=\"n/a\",$D242*$Y242,$G242)+IFERROR(IF(AND($V242<=AJ$1,$W242>=AJ$1),INDEX(Reliability!O$23:O$50,MATCH($T242,Reliability!$C$23:$C$50,0)),0),0)*$H242*$X242*$Y242),$D242)*$R242","v":0},{"$f":"MIN((IFERROR(IF(AND($V242<=AK$1,$W242>=AK$1),INDEX(Reliability!P$23:P$50,MATCH($S242,Reliability!$C$23:$C$50,0)),0),0)*IF($T242=\"n/a\",$D242*$Y242,$G242)+IFERROR(IF(AND($V242<=AK$1,$W242>=AK$1),INDEX(Reliability!P$23:P$50,MATCH($T242,Reliability!$C$23:$C$50,0)),0),0)*$H242*$X242*$Y242),$D242)*$R242","v":0}]
[null,{"$f":"unique_contracts!B244","v":0},{"$f":"unique_contracts!D244","v":0},{"$f":"unique_contracts!J244","v":0},{"$f":"unique_contracts!M244","v":0},{"$f":"unique_contracts!N244","v":0},{"$f":"unique_contracts!P244","v":0},{"$f":"unique_contracts!R244","v":0},{"$f":"unique_contracts!V244","v":0},{"$f":"unique_contracts!AB244","v":0},{"$f":"unique_contracts!AM244","v":0},{"$f":"unique_contracts!AN244","v":0},{"$f":"unique_contracts!AO244","v":0},{"$f":"unique_contracts!AP244","v":0},{"$f":"unique_contracts!AQ244","v":0},{"$f":"unique_contracts!AR244","v":0},{"$f":"unique_contracts!BP244","v":0},0,{"$f":"IFERROR(IF(AND(I243>0,E243=\"NotHybrid\"),_xlfn.CONCAT(MAX(MIN(ROUNDDOWN(I243/D243,0),8),4),INDEX(resources!$G:$G,MATCH(B243,resources!$A:$A,0))),INDEX(resources!$G:$G,MATCH(B243,resources!$A:$A,0))),\"n/a\")","v":"n/a"},"n/a","n/a",0,0,1,1,{"$f":"MIN((IFERROR(IF(AND($V243<=Z$1,$W243>=Z$1),INDEX(Reliability!E$23:E$50,MATCH($S243,Reliability!$C$23:$C$50,0)),0),0)*IF($T243=\"n/a\",$D243*$Y243,$G243)+IFERROR(IF(AND($V243<=Z$1,$W243>=Z$1),INDEX(Reliability!E$23:E$50,MATCH($T243,Reliability!$C$23:$C$50,0)),0),0)*$H243*$X243*$Y243),$D243)*$R243","v":0},{"$f":"MIN((IFERROR(IF(AND($V243<=AA$1,$W243>=AA$1),INDEX(Reliability!F$23:F$50,MATCH($S243,Reliability!$C$23:$C$50,0)),0),0)*IF($T243=\"n/a\",$D243*$Y243,$G243)+IFERROR(IF(AND($V243<=AA$1,$W243>=AA$1),INDEX(Reliability!F$23:F$50,MATCH($T243,Reliability!$C$23:$C$50,0)),0),0)*$H243*$X243*$Y243),$D243)*$R243","v":0},{"$f":"MIN((IFERROR(IF(AND($V243<=AB$1,$W243>=AB$1),INDEX(Reliability!G$23:G$50,MATCH($S243,Reliability!$C$23:$C$50,0)),0),0)*IF($T243=\"n/a\",$D243*$Y243,$G243)+IFERROR(IF(AND($V243<=AB$1,$W243>=AB$1),INDEX(Reliability!G$23:G$50,MATCH($T243,Reliability!$C$23:$C$50,0)),0),0)*$H243*$X243*$Y243),$D243)*$R243","v":0},{"$f":"MIN((IFERROR(IF(AND($V243<=AC$1,$W243>=AC$1),INDEX(Reliability!H$23:H$50,MATCH($S243,Reliability!$C$23:$C$50,0)),0),0)*IF($T243=\"n/a\",$D243*$Y243,$G243)+IFERROR(IF(AND($V243<=AC$1,$W243>=AC$1),INDEX(Reliability!H$23:H$50,MATCH($T243,Reliability!$C$23:$C$50,0)),0),0)*$H243*$X243*$Y243),$D243)*$R243","v":0},{"$f":"MIN((IFERROR(IF(AND($V243<=AD$1,$W243>=AD$1),INDEX(Reliability!I$23:I$50,MATCH($S243,Reliability!$C$23:$C$50,0)),0),0)*IF($T243=\"n/a\",$D243*$Y243,$G243)+IFERROR(IF(AND($V243<=AD$1,$W243>=AD$1),INDEX(Reliability!I$23:I$50,MATCH($T243,Reliability!$C$23:$C$50,0)),0),0)*$H243*$X243*$Y243),$D243)*$R243","v":0},{"$f":"MIN((IFERROR(IF(AND($V243<=AE$1,$W243>=AE$1),INDEX(Reliability!J$23:J$50,MATCH($S243,Reliability!$C$23:$C$50,0)),0),0)*IF($T243=\"n/a\",$D243*$Y243,$G243)+IFERROR(IF(AND($V243<=AE$1,$W243>=AE$1),INDEX(Reliability!J$23:J$50,MATCH($T243,Reliability!$C$23:$C$50,0)),0),0)*$H243*$X243*$Y243),$D243)*$R243","v":0},{"$f":"MIN((IFERROR(IF(AND($V243<=AF$1,$W243>=AF$1),INDEX(Reliability!K$23:K$50,MATCH($S243,Reliability!$C$23:$C$50,0)),0),0)*IF($T243=\"n/a\",$D243*$Y243,$G243)+IFERROR(IF(AND($V243<=AF$1,$W243>=AF$1),INDEX(Reliability!K$23:K$50,MATCH($T243,Reliability!$C$23:$C$50,0)),0),0)*$H243*$X243*$Y243),$D243)*$R243","v":0},{"$f":"MIN((IFERROR(IF(AND($V243<=AG$1,$W243>=AG$1),INDEX(Reliability!L$23:L$50,MATCH($S243,Reliability!$C$23:$C$50,0)),0),0)*IF($T243=\"n/a\",$D243*$Y243,$G243)+IFERROR(IF(AND($V243<=AG$1,$W243>=AG$1),INDEX(Reliability!L$23:L$50,MATCH($T243,Reliability!$C$23:$C$50,0)),0),0)*$H243*$X243*$Y243),$D243)*$R243","v":0},{"$f":"MIN((IFERROR(IF(AND($V243<=AH$1,$W243>=AH$1),INDEX(Reliability!M$23:M$50,MATCH($S243,Reliability!$C$23:$C$50,0)),0),0)*IF($T243=\"n/a\",$D243*$Y243,$G243)+IFERROR(IF(AND($V243<=AH$1,$W243>=AH$1),INDEX(Reliability!M$23:M$50,MATCH($T243,Reliability!$C$23:$C$50,0)),0),0)*$H243*$X243*$Y243),$D243)*$R243","v":0},{"$f":"MIN((IFERROR(IF(AND($V243<=AI$1,$W243>=AI$1),INDEX(Reliability!N$23:N$50,MATCH($S243,Reliability!$C$23:$C$50,0)),0),0)*IF($T243=\"n/a\",$D243*$Y243,$G243)+IFERROR(IF(AND($V243<=AI$1,$W243>=AI$1),INDEX(Reliability!N$23:N$50,MATCH($T243,Reliability!$C$23:$C$50,0)),0),0)*$H243*$X243*$Y243),$D243)*$R243","v":0},{"$f":"MIN((IFERROR(IF(AND($V243<=AJ$1,$W243>=AJ$1),INDEX(Reliability!O$23:O$50,MATCH($S243,Reliability!$C$23:$C$50,0)),0),0)*IF($T243=\"n/a\",$D243*$Y243,$G243)+IFERROR(IF(AND($V243<=AJ$1,$W243>=AJ$1),INDEX(Reliability!O$23:O$50,MATCH($T243,Reliability!$C$23:$C$50,0)),0),0)*$H243*$X243*$Y243),$D243)*$R243","v":0},{"$f":"MIN((IFERROR(IF(AND($V243<=AK$1,$W243>=AK$1),INDEX(Reliability!P$23:P$50,MATCH($S243,Reliability!$C$23:$C$50,0)),0),0)*IF($T243=\"n/a\",$D243*$Y243,$G243)+IFERROR(IF(AND($V243<=AK$1,$W243>=AK$1),INDEX(Reliability!P$23:P$50,MATCH($T243,Reliability!$C$23:$C$50,0)),0),0)*$H243*$X243*$Y243),$D243)*$R243","v":0}]
[null,{"$f":"unique_contracts!B245","v":0},{"$f":"unique_contracts!D245","v":0},{"$f":"unique_contracts!J245","v":0},{"$f":"unique_contracts!M245","v":0},{"$f":"unique_contracts!N245","v":0},{"$f":"unique_contracts!P245","v":0},{"$f":"unique_contracts!R245","v":0},{"$f":"unique_contracts!V245","v":0},{"$f":"unique_contracts!AB245","v":0},{"$f":"unique_contracts!AM245","v":0},{"$f":"unique_contracts!AN245","v":0},{"$f":"unique_contracts!AO245","v":0},{"$f":"unique_contracts!AP245","v":0},{"$f":"unique_contracts!AQ245","v":0},{"$f":"unique_contracts!AR245","v":0},{"$f":"unique_contracts!BP245","v":0},0,{"$f":"IFERROR(IF(AND(I244>0,E244=\"NotHybrid\"),_xlfn.CONCAT(MAX(MIN(ROUNDDOWN(I244/D244,0),8),4),INDEX(resources!$G:$G,MATCH(B244,resources!$A:$A,0))),INDEX(resources!$G:$G,MATCH(B244,resources!$A:$A,0))),\"n/a\")","v":"n/a"},"n/a","n/a",0,0,1,1,{"$f":"MIN((IFERROR(IF(AND($V244<=Z$1,$W244>=Z$1),INDEX(Reliability!E$23:E$50,MATCH($S244,Reliability!$C$23:$C$50,0)),0),0)*IF($T244=\"n/a\",$D244*$Y244,$G244)+IFERROR(IF(AND($V244<=Z$1,$W244>=Z$1),INDEX(Reliability!E$23:E$50,MATCH($T244,Reliability!$C$23:$C$50,0)),0),0)*$H244*$X244*$Y244),$D244)*$R244","v":0},{"$f":"MIN((IFERROR(IF(AND($V244<=AA$1,$W244>=AA$1),INDEX(Reliability!F$23:F$50,MATCH($S244,Reliability!$C$23:$C$50,0)),0),0)*IF($T244=\"n/a\",$D244*$Y244,$G244)+IFERROR(IF(AND($V244<=AA$1,$W244>=AA$1),INDEX(Reliability!F$23:F$50,MATCH($T244,Reliability!$C$23:$C$50,0)),0),0)*$H244*$X244*$Y244),$D244)*$R244","v":0},{"$f":"MIN((IFERROR(IF(AND($V244<=AB$1,$W244>=AB$1),INDEX(Reliability!G$23:G$50,MATCH($S244,Reliability!$C$23:$C$50,0)),0),0)*IF($T244=\"n/a\",$D244*$Y244,$G244)+IFERROR(IF(AND($V244<=AB$1,$W244>=AB$1),INDEX(Reliability!G$23:G$50,MATCH($T244,Reliability!$C$23:$C$50,0)),0),0)*$H244*$X244*$Y244),$D244)*$R244","v":0},{"$f":"MIN((IFERROR(IF(AND($V244<=AC$1,$W244>=AC$1),INDEX(Reliability!H$23:H$50,MATCH($S244,Reliability!$C$23:$C$50,0)),0),0)*IF($T244=\"n/a\",$D244*$Y244,$G244)+IFERROR(IF(AND($V244<=AC$1,$W244>=AC$1),INDEX(Reliability!H$23:H$50,MATCH($T244,Reliability!$C$23:$C$50,0)),0),0)*$H244*$X244*$Y244),$D244)*$R244","v":0},{"$f":"MIN((IFERROR(IF(AND($V244<=AD$1,$W244>=AD$1),INDEX(Reliability!I$23:I$50,MATCH($S244,Reliability!$C$23:$C$50,0)),0),0)*IF($T244=\"n/a\",$D244*$Y244,$G244)+IFERROR(IF(AND($V244<=AD$1,$W244>=AD$1),INDEX(Reliability!I$23:I$50,MATCH($T244,Reliability!$C$23:$C$50,0)),0),0)*$H244*$X244*$Y244),$D244)*$R244","v":0},{"$f":"MIN((IFERROR(IF(AND($V244<=AE$1,$W244>=AE$1),INDEX(Reliability!J$23:J$50,MATCH($S244,Reliability!$C$23:$C$50,0)),0),0)*IF($T244=\"n/a\",$D244*$Y244,$G244)+IFERROR(IF(AND($V244<=AE$1,$W244>=AE$1),INDEX(Reliability!J$23:J$50,MATCH($T244,Reliability!$C$23:$C$50,0)),0),0)*$H244*$X244*$Y244),$D244)*$R244","v":0},{"$f":"MIN((IFERROR(IF(AND($V244<=AF$1,$W244>=AF$1),INDEX(Reliability!K$23:K$50,MATCH($S244,Reliability!$C$23:$C$50,0)),0),0)*IF($T244=\"n/a\",$D244*$Y244,$G244)+IFERROR(IF(AND($V244<=AF$1,$W244>=AF$1),INDEX(Reliability!K$23:K$50,MATCH($T244,Reliability!$C$23:$C$50,0)),0),0)*$H244*$X244*$Y244),$D244)*$R244","v":0},{"$f":"MIN((IFERROR(IF(AND($V244<=AG$1,$W244>=AG$1),INDEX(Reliability!L$23:L$50,MATCH($S244,Reliability!$C$23:$C$50,0)),0),0)*IF($T244=\"n/a\",$D244*$Y244,$G244)+IFERROR(IF(AND($V244<=AG$1,$W244>=AG$1),INDEX(Reliability!L$23:L$50,MATCH($T244,Reliability!$C$23:$C$50,0)),0),0)*$H244*$X244*$Y244),$D244)*$R244","v":0},{"$f":"MIN((IFERROR(IF(AND($V244<=AH$1,$W244>=AH$1),INDEX(Reliability!M$23:M$50,MATCH($S244,Reliability!$C$23:$C$50,0)),0),0)*IF($T244=\"n/a\",$D244*$Y244,$G244)+IFERROR(IF(AND($V244<=AH$1,$W244>=AH$1),INDEX(Reliability!M$23:M$50,MATCH($T244,Reliability!$C$23:$C$50,0)),0),0)*$H244*$X244*$Y244),$D244)*$R244","v":0},{"$f":"MIN((IFERROR(IF(AND($V244<=AI$1,$W244>=AI$1),INDEX(Reliability!N$23:N$50,MATCH($S244,Reliability!$C$23:$C$50,0)),0),0)*IF($T244=\"n/a\",$D244*$Y244,$G244)+IFERROR(IF(AND($V244<=AI$1,$W244>=AI$1),INDEX(Reliability!N$23:N$50,MATCH($T244,Reliability!$C$23:$C$50,0)),0),0)*$H244*$X244*$Y244),$D244)*$R244","v":0},{"$f":"MIN((IFERROR(IF(AND($V244<=AJ$1,$W244>=AJ$1),INDEX(Reliability!O$23:O$50,MATCH($S244,Reliability!$C$23:$C$50,0)),0),0)*IF($T244=\"n/a\",$D244*$Y244,$G244)+IFERROR(IF(AND($V244<=AJ$1,$W244>=AJ$1),INDEX(Reliability!O$23:O$50,MATCH($T244,Reliability!$C$23:$C$50,0)),0),0)*$H244*$X244*$Y244),$D244)*$R244","v":0},{"$f":"MIN((IFERROR(IF(AND($V244<=AK$1,$W244>=AK$1),INDEX(Reliability!P$23:P$50,MATCH($S244,Reliability!$C$23:$C$50,0)),0),0)*IF($T244=\"n/a\",$D244*$Y244,$G244)+IFERROR(IF(AND($V244<=AK$1,$W244>=AK$1),INDEX(Reliability!P$23:P$50,MATCH($T244,Reliability!$C$23:$C$50,0)),0),0)*$H244*$X244*$Y244),$D244)*$R244","v":0}]
[null,{"$f":"unique_contracts!B246","v":0},{"$f":"unique_contracts!D246","v":0},{"$f":"unique_contracts!J246","v":0},{"$f":"unique_contracts!M246","v":0},{"$f":"unique_contracts!N246","v":0},{"$f":"unique_contracts!P246","v":0},{"$f":"unique_contracts!R246","v":0},{"$f":"unique_contracts!V246","v":0},{"$f":"unique_contracts!AB246","v":0},{"$f":"unique_contracts!AM246","v":0},{"$f":"unique_contracts!AN246","v":0},{"$f":"unique_contracts!AO246","v":0},{"$f":"unique_contracts!AP246","v":0},{"$f":"unique_contracts!AQ246","v":0},{"$f":"unique_contracts!AR246","v":0},{"$f":"unique_contracts!BP246","v":0},0,{"$f":"IFERROR(IF(AND(I245>0,E245=\"NotHybrid\"),_xlfn.CONCAT(MAX(MIN(ROUNDDOWN(I245/D245,0),8),4),INDEX(resources!$G:$G,MATCH(B245,resources!$A:$A,0))),INDEX(resources!$G:$G,MATCH(B245,resources!$A:$A,0))),\"n/a\")","v":"n/a"},"n/a","n/a",0,0,1,1,{"$f":"MIN((IFERROR(IF(AND($V245<=Z$1,$W245>=Z$1),INDEX(Reliability!E$23:E$50,MATCH($S245,Reliability!$C$23:$C$50,0)),0),0)*IF($T245=\"n/a\",$D245*$Y245,$G245)+IFERROR(IF(AND($V245<=Z$1,$W245>=Z$1),INDEX(Reliability!E$23:E$50,MATCH($T245,Reliability!$C$23:$C$50,0)),0),0)*$H245*$X245*$Y245),$D245)*$R245","v":0},{"$f":"MIN((IFERROR(IF(AND($V245<=AA$1,$W245>=AA$1),INDEX(Reliability!F$23:F$50,MATCH($S245,Reliability!$C$23:$C$50,0)),0),0)*IF($T245=\"n/a\",$D245*$Y245,$G245)+IFERROR(IF(AND($V245<=AA$1,$W245>=AA$1),INDEX(Reliability!F$23:F$50,MATCH($T245,Reliability!$C$23:$C$50,0)),0),0)*$H245*$X245*$Y245),$D245)*$R245","v":0},{"$f":"MIN((IFERROR(IF(AND($V245<=AB$1,$W245>=AB$1),INDEX(Reliability!G$23:G$50,MATCH($S245,Reliability!$C$23:$C$50,0)),0),0)*IF($T245=\"n/a\",$D245*$Y245,$G245)+IFERROR(IF(AND($V245<=AB$1,$W245>=AB$1),INDEX(Reliability!G$23:G$50,MATCH($T245,Reliability!$C$23:$C$50,0)),0),0)*$H245*$X245*$Y245),$D245)*$R245","v":0},{"$f":"MIN((IFERROR(IF(AND($V245<=AC$1,$W245>=AC$1),INDEX(Reliability!H$23:H$50,MATCH($S245,Reliability!$C$23:$C$50,0)),0),0)*IF($T245=\"n/a\",$D245*$Y245,$G245)+IFERROR(IF(AND($V245<=AC$1,$W245>=AC$1),INDEX(Reliability!H$23:H$50,MATCH($T245,Reliability!$C$23:$C$50,0)),0),0)*$H245*$X245*$Y245),$D245)*$R245","v":0},{"$f":"MIN((IFERROR(IF(AND($V245<=AD$1,$W245>=AD$1),INDEX(Reliability!I$23:I$50,MATCH($S245,Reliability!$C$23:$C$50,0)),0),0)*IF($T245=\"n/a\",$D245*$Y245,$G245)+IFERROR(IF(AND($V245<=AD$1,$W245>=AD$1),INDEX(Reliability!I$23:I$50,MATCH($T245,Reliability!$C$23:$C$50,0)),0),0)*$H245*$X245*$Y245),$D245)*$R245","v":0},{"$f":"MIN((IFERROR(IF(AND($V245<=AE$1,$W245>=AE$1),INDEX(Reliability!J$23:J$50,MATCH($S245,Reliability!$C$23:$C$50,0)),0),0)*IF($T245=\"n/a\",$D245*$Y245,$G245)+IFERROR(IF(AND($V245<=AE$1,$W245>=AE$1),INDEX(Reliability!J$23:J$50,MATCH($T245,Reliability!$C$23:$C$50,0)),0),0)*$H245*$X245*$Y245),$D245)*$R245","v":0},{"$f":"MIN((IFERROR(IF(AND($V245<=AF$1,$W245>=AF$1),INDEX(Reliability!K$23:K$50,MATCH($S245,Reliability!$C$23:$C$50,0)),0),0)*IF($T245=\"n/a\",$D245*$Y245,$G245)+IFERROR(IF(AND($V245<=AF$1,$W245>=AF$1),INDEX(Reliability!K$23:K$50,MATCH($T245,Reliability!$C$23:$C$50,0)),0),0)*$H245*$X245*$Y245),$D245)*$R245","v":0},{"$f":"MIN((IFERROR(IF(AND($V245<=AG$1,$W245>=AG$1),INDEX(Reliability!L$23:L$50,MATCH($S245,Reliability!$C$23:$C$50,0)),0),0)*IF($T245=\"n/a\",$D245*$Y245,$G245)+IFERROR(IF(AND($V245<=AG$1,$W245>=AG$1),INDEX(Reliability!L$23:L$50,MATCH($T245,Reliability!$C$23:$C$50,0)),0),0)*$H245*$X245*$Y245),$D245)*$R245","v":0},{"$f":"MIN((IFERROR(IF(AND($V245<=AH$1,$W245>=AH$1),INDEX(Reliability!M$23:M$50,MATCH($S245,Reliability!$C$23:$C$50,0)),0),0)*IF($T245=\"n/a\",$D245*$Y245,$G245)+IFERROR(IF(AND($V245<=AH$1,$W245>=AH$1),INDEX(Reliability!M$23:M$50,MATCH($T245,Reliability!$C$23:$C$50,0)),0),0)*$H245*$X245*$Y245),$D245)*$R245","v":0},{"$f":"MIN((IFERROR(IF(AND($V245<=AI$1,$W245>=AI$1),INDEX(Reliability!N$23:N$50,MATCH($S245,Reliability!$C$23:$C$50,0)),0),0)*IF($T245=\"n/a\",$D245*$Y245,$G245)+IFERROR(IF(AND($V245<=AI$1,$W245>=AI$1),INDEX(Reliability!N$23:N$50,MATCH($T245,Reliability!$C$23:$C$50,0)),0),0)*$H245*$X245*$Y245),$D245)*$R245","v":0},{"$f":"MIN((IFERROR(IF(AND($V245<=AJ$1,$W245>=AJ$1),INDEX(Reliability!O$23:O$50,MATCH($S245,Reliability!$C$23:$C$50,0)),0),0)*IF($T245=\"n/a\",$D245*$Y245,$G245)+IFERROR(IF(AND($V245<=AJ$1,$W245>=AJ$1),INDEX(Reliability!O$23:O$50,MATCH($T245,Reliability!$C$23:$C$50,0)),0),0)*$H245*$X245*$Y245),$D245)*$R245","v":0},{"$f":"MIN((IFERROR(IF(AND($V245<=AK$1,$W245>=AK$1),INDEX(Reliability!P$23:P$50,MATCH($S245,Reliability!$C$23:$C$50,0)),0),0)*IF($T245=\"n/a\",$D245*$Y245,$G245)+IFERROR(IF(AND($V245<=AK$1,$W245>=AK$1),INDEX(Reliability!P$23:P$50,MATCH($T245,Reliability!$C$23:$C$50,0)),0),0)*$H245*$X245*$Y245),$D245)*$R245","v":0}]
[null,{"$f":"unique_contracts!B247","v":0},{"$f":"unique_contracts!D247","v":0},{"$f":"unique_contracts!J247","v":0},{"$f":"unique_contracts!M247","v":0},{"$f":"unique_contracts!N247","v":0},{"$f":"unique_contracts!P247","v":0},{"$f":"unique_contracts!R247","v":0},{"$f":"unique_contracts!V247","v":0},{"$f":"unique_contracts!AB247","v":0},{"$f":"unique_contracts!AM247","v":0},{"$f":"unique_contracts!AN247","v":0},{"$f":"unique_contracts!AO247","v":0},{"$f":"unique_contracts!AP247","v":0},{"$f":"unique_contracts!AQ247","v":0},{"$f":"unique_contracts!AR247","v":0},{"$f":"unique_contracts!BP247","v":0},0,{"$f":"IFERROR(IF(AND(I246>0,E246=\"NotHybrid\"),_xlfn.CONCAT(MAX(MIN(ROUNDDOWN(I246/D246,0),8),4),INDEX(resources!$G:$G,MATCH(B246,resources!$A:$A,0))),INDEX(resources!$G:$G,MATCH(B246,resources!$A:$A,0))),\"n/a\")","v":"n/a"},"n/a","n/a",0,0,1,1,{"$f":"MIN((IFERROR(IF(AND($V246<=Z$1,$W246>=Z$1),INDEX(Reliability!E$23:E$50,MATCH($S246,Reliability!$C$23:$C$50,0)),0),0)*IF($T246=\"n/a\",$D246*$Y246,$G246)+IFERROR(IF(AND($V246<=Z$1,$W246>=Z$1),INDEX(Reliability!E$23:E$50,MATCH($T246,Reliability!$C$23:$C$50,0)),0),0)*$H246*$X246*$Y246),$D246)*$R246","v":0},{"$f":"MIN((IFERROR(IF(AND($V246<=AA$1,$W246>=AA$1),INDEX(Reliability!F$23:F$50,MATCH($S246,Reliability!$C$23:$C$50,0)),0),0)*IF($T246=\"n/a\",$D246*$Y246,$G246)+IFERROR(IF(AND($V246<=AA$1,$W246>=AA$1),INDEX(Reliability!F$23:F$50,MATCH($T246,Reliability!$C$23:$C$50,0)),0),0)*$H246*$X246*$Y246),$D246)*$R246","v":0},{"$f":"MIN((IFERROR(IF(AND($V246<=AB$1,$W246>=AB$1),INDEX(Reliability!G$23:G$50,MATCH($S246,Reliability!$C$23:$C$50,0)),0),0)*IF($T246=\"n/a\",$D246*$Y246,$G246)+IFERROR(IF(AND($V246<=AB$1,$W246>=AB$1),INDEX(Reliability!G$23:G$50,MATCH($T246,Reliability!$C$23:$C$50,0)),0),0)*$H246*$X246*$Y246),$D246)*$R246","v":0},{"$f":"MIN((IFERROR(IF(AND($V246<=AC$1,$W246>=AC$1),INDEX(Reliability!H$23:H$50,MATCH($S246,Reliability!$C$23:$C$50,0)),0),0)*IF($T246=\"n/a\",$D246*$Y246,$G246)+IFERROR(IF(AND($V246<=AC$1,$W246>=AC$1),INDEX(Reliability!H$23:H$50,MATCH($T246,Reliability!$C$23:$C$50,0)),0),0)*$H246*$X246*$Y246),$D246)*$R246","v":0},{"$f":"MIN((IFERROR(IF(AND($V246<=AD$1,$W246>=AD$1),INDEX(Reliability!I$23:I$50,MATCH($S246,Reliability!$C$23:$C$50,0)),0),0)*IF($T246=\"n/a\",$D246*$Y246,$G246)+IFERROR(IF(AND($V246<=AD$1,$W246>=AD$1),INDEX(Reliability!I$23:I$50,MATCH($T246,Reliability!$C$23:$C$50,0)),0),0)*$H246*$X246*$Y246),$D246)*$R246","v":0},{"$f":"MIN((IFERROR(IF(AND($V246<=AE$1,$W246>=AE$1),INDEX(Reliability!J$23:J$50,MATCH($S246,Reliability!$C$23:$C$50,0)),0),0)*IF($T246=\"n/a\",$D246*$Y246,$G246)+IFERROR(IF(AND($V246<=AE$1,$W246>=AE$1),INDEX(Reliability!J$23:J$50,MATCH($T246,Reliability!$C$23:$C$50,0)),0),0)*$H246*$X246*$Y246),$D246)*$R246","v":0},{"$f":"MIN((IFERROR(IF(AND($V246<=AF$1,$W246>=AF$1),INDEX(Reliability!K$23:K$50,MATCH($S246,Reliability!$C$23:$C$50,0)),0),0)*IF($T246=\"n/a\",$D246*$Y246,$G246)+IFERROR(IF(AND($V246<=AF$1,$W246>=AF$1),INDEX(Reliability!K$23:K$50,MATCH($T246,Reliability!$C$23:$C$50,0)),0),0)*$H246*$X246*$Y246),$D246)*$R246","v":0},{"$f":"MIN((IFERROR(IF(AND($V246<=AG$1,$W246>=AG$1),INDEX(Reliability!L$23:L$50,MATCH($S246,Reliability!$C$23:$C$50,0)),0),0)*IF($T246=\"n/a\",$D246*$Y246,$G246)+IFERROR(IF(AND($V246<=AG$1,$W246>=AG$1),INDEX(Reliability!L$23:L$50,MATCH($T246,Reliability!$C$23:$C$50,0)),0),0)*$H246*$X246*$Y246),$D246)*$R246","v":0},{"$f":"MIN((IFERROR(IF(AND($V246<=AH$1,$W246>=AH$1),INDEX(Reliability!M$23:M$50,MATCH($S246,Reliability!$C$23:$C$50,0)),0),0)*IF($T246=\"n/a\",$D246*$Y246,$G246)+IFERROR(IF(AND($V246<=AH$1,$W246>=AH$1),INDEX(Reliability!M$23:M$50,MATCH($T246,Reliability!$C$23:$C$50,0)),0),0)*$H246*$X246*$Y246),$D246)*$R246","v":0},{"$f":"MIN((IFERROR(IF(AND($V246<=AI$1,$W246>=AI$1),INDEX(Reliability!N$23:N$50,MATCH($S246,Reliability!$C$23:$C$50,0)),0),0)*IF($T246=\"n/a\",$D246*$Y246,$G246)+IFERROR(IF(AND($V246<=AI$1,$W246>=AI$1),INDEX(Reliability!N$23:N$50,MATCH($T246,Reliability!$C$23:$C$50,0)),0),0)*$H246*$X246*$Y246),$D246)*$R246","v":0},{"$f":"MIN((IFERROR(IF(AND($V246<=AJ$1,$W246>=AJ$1),INDEX(Reliability!O$23:O$50,MATCH($S246,Reliability!$C$23:$C$50,0)),0),0)*IF($T246=\"n/a\",$D246*$Y246,$G246)+IFERROR(IF(AND($V246<=AJ$1,$W246>=AJ$1),INDEX(Reliability!O$23:O$50,MATCH($T246,Reliability!$C$23:$C$50,0)),0),0)*$H246*$X246*$Y246),$D246)*$R246","v":0},{"$f":"MIN((IFERROR(IF(AND($V246<=AK$1,$W246>=AK$1),INDEX(Reliability!P$23:P$50,MATCH($S246,Reliability!$C$23:$C$50,0)),0),0)*IF($T246=\"n/a\",$D246*$Y246,$G246)+IFERROR(IF(AND($V246<=AK$1,$W246>=AK$1),INDEX(Reliability!P$23:P$50,MATCH($T246,Reliability!$C$23:$C$50,0)),0),0)*$H246*$X246*$Y246),$D246)*$R246","v":0}]
[null,{"$f":"unique_contracts!B248","v":0},{"$f":"unique_contracts!D248","v":0},{"$f":"unique_contracts!J248","v":0},{"$f":"unique_contracts!M248","v":0},{"$f":"unique_contracts!N248","v":0},{"$f":"unique_contracts!P248","v":0},{"$f":"unique_contracts!R248","v":0},{"$f":"unique_contracts!V248","v":0},{"$f":"unique_contracts!AB248","v":0},{"$f":"unique_contracts!AM248","v":0},{"$f":"unique_contracts!AN248","v":0},{"$f":"unique_contracts!AO248","v":0},{"$f":"unique_contracts!AP248","v":0},{"$f":"unique_contracts!AQ248","v":0},{"$f":"unique_contracts!AR248","v":0},{"$f":"unique_contracts!BP248","v":0},0,{"$f":"IFERROR(IF(AND(I247>0,E247=\"NotHybrid\"),_xlfn.CONCAT(MAX(MIN(ROUNDDOWN(I247/D247,0),8),4),INDEX(resources!$G:$G,MATCH(B247,resources!$A:$A,0))),INDEX(resources!$G:$G,MATCH(B247,resources!$A:$A,0))),\"n/a\")","v":"n/a"},"n/a","n/a",0,0,1,1,{"$f":"MIN((IFERROR(IF(AND($V247<=Z$1,$W247>=Z$1),INDEX(Reliability!E$23:E$50,MATCH($S247,Reliability!$C$23:$C$50,0)),0),0)*IF($T247=\"n/a\",$D247*$Y247,$G247)+IFERROR(IF(AND($V247<=Z$1,$W247>=Z$1),INDEX(Reliability!E$23:E$50,MATCH($T247,Reliability!$C$23:$C$50,0)),0),0)*$H247*$X247*$Y247),$D247)*$R247","v":0},{"$f":"MIN((IFERROR(IF(AND($V247<=AA$1,$W247>=AA$1),INDEX(Reliability!F$23:F$50,MATCH($S247,Reliability!$C$23:$C$50,0)),0),0)*IF($T247=\"n/a\",$D247*$Y247,$G247)+IFERROR(IF(AND($V247<=AA$1,$W247>=AA$1),INDEX(Reliability!F$23:F$50,MATCH($T247,Reliability!$C$23:$C$50,0)),0),0)*$H247*$X247*$Y247),$D247)*$R247","v":0},{"$f":"MIN((IFERROR(IF(AND($V247<=AB$1,$W247>=AB$1),INDEX(Reliability!G$23:G$50,MATCH($S247,Reliability!$C$23:$C$50,0)),0),0)*IF($T247=\"n/a\",$D247*$Y247,$G247)+IFERROR(IF(AND($V247<=AB$1,$W247>=AB$1),INDEX(Reliability!G$23:G$50,MATCH($T247,Reliability!$C$23:$C$50,0)),0),0)*$H247*$X247*$Y247),$D247)*$R247","v":0},{"$f":"MIN((IFERROR(IF(AND($V247<=AC$1,$W247>=AC$1),INDEX(Reliability!H$23:H$50,MATCH($S247,Reliability!$C$23:$C$50,0)),0),0)*IF($T247=\"n/a\",$D247*$Y247,$G247)+IFERROR(IF(AND($V247<=AC$1,$W247>=AC$1),INDEX(Reliability!H$23:H$50,MATCH($T247,Reliability!$C$23:$C$50,0)),0),0)*$H247*$X247*$Y247),$D247)*$R247","v":0},{"$f":"MIN((IFERROR(IF(AND($V247<=AD$1,$W247>=AD$1),INDEX(Reliability!I$23:I$50,MATCH($S247,Reliability!$C$23:$C$50,0)),0),0)*IF($T247=\"n/a\",$D247*$Y247,$G247)+IFERROR(IF(AND($V247<=AD$1,$W247>=AD$1),INDEX(Reliability!I$23:I$50,MATCH($T247,Reliability!$C$23:$C$50,0)),0),0)*$H247*$X247*$Y247),$D247)*$R247","v":0},{"$f":"MIN((IFERROR(IF(AND($V247<=AE$1,$W247>=AE$1),INDEX(Reliability!J$23:J$50,MATCH($S247,Reliability!$C$23:$C$50,0)),0),0)*IF($T247=\"n/a\",$D247*$Y247,$G247)+IFERROR(IF(AND($V247<=AE$1,$W247>=AE$1),INDEX(Reliability!J$23:J$50,MATCH($T247,Reliability!$C$23:$C$50,0)),0),0)*$H247*$X247*$Y247),$D247)*$R247","v":0},{"$f":"MIN((IFERROR(IF(AND($V247<=AF$1,$W247>=AF$1),INDEX(Reliability!K$23:K$50,MATCH($S247,Reliability!$C$23:$C$50,0)),0),0)*IF($T247=\"n/a\",$D247*$Y247,$G247)+IFERROR(IF(AND($V247<=AF$1,$W247>=AF$1),INDEX(Reliability!K$23:K$50,MATCH($T247,Reliability!$C$23:$C$50,0)),0),0)*$H247*$X247*$Y247),$D247)*$R247","v":0},{"$f":"MIN((IFERROR(IF(AND($V247<=AG$1,$W247>=AG$1),INDEX(Reliability!L$23:L$50,MATCH($S247,Reliability!$C$23:$C$50,0)),0),0)*IF($T247=\"n/a\",$D247*$Y247,$G247)+IFERROR(IF(AND($V247<=AG$1,$W247>=AG$1),INDEX(Reliability!L$23:L$50,MATCH($T247,Reliability!$C$23:$C$50,0)),0),0)*$H247*$X247*$Y247),$D247)*$R247","v":0},{"$f":"MIN((IFERROR(IF(AND($V247<=AH$1,$W247>=AH$1),INDEX(Reliability!M$23:M$50,MATCH($S247,Reliability!$C$23:$C$50,0)),0),0)*IF($T247=\"n/a\",$D247*$Y247,$G247)+IFERROR(IF(AND($V247<=AH$1,$W247>=AH$1),INDEX(Reliability!M$23:M$50,MATCH($T247,Reliability!$C$23:$C$50,0)),0),0)*$H247*$X247*$Y247),$D247)*$R247","v":0},{"$f":"MIN((IFERROR(IF(AND($V247<=AI$1,$W247>=AI$1),INDEX(Reliability!N$23:N$50,MATCH($S247,Reliability!$C$23:$C$50,0)),0),0)*IF($T247=\"n/a\",$D247*$Y247,$G247)+IFERROR(IF(AND($V247<=AI$1,$W247>=AI$1),INDEX(Reliability!N$23:N$50,MATCH($T247,Reliability!$C$23:$C$50,0)),0),0)*$H247*$X247*$Y247),$D247)*$R247","v":0},{"$f":"MIN((IFERROR(IF(AND($V247<=AJ$1,$W247>=AJ$1),INDEX(Reliability!O$23:O$50,MATCH($S247,Reliability!$C$23:$C$50,0)),0),0)*IF($T247=\"n/a\",$D247*$Y247,$G247)+IFERROR(IF(AND($V247<=AJ$1,$W247>=AJ$1),INDEX(Reliability!O$23:O$50,MATCH($T247,Reliability!$C$23:$C$50,0)),0),0)*$H247*$X247*$Y247),$D247)*$R247","v":0},{"$f":"MIN((IFERROR(IF(AND($V247<=AK$1,$W247>=AK$1),INDEX(Reliability!P$23:P$50,MATCH($S247,Reliability!$C$23:$C$50,0)),0),0)*IF($T247=\"n/a\",$D247*$Y247,$G247)+IFERROR(IF(AND($V247<=AK$1,$W247>=AK$1),INDEX(Reliability!P$23:P$50,MATCH($T247,Reliability!$C$23:$C$50,0)),0),0)*$H247*$X247*$Y247),$D247)*$R247","v":0}]
[null,{"$f":"unique_contracts!B249","v":0},{"$f":"unique_contracts!D249","v":0},{"$f":"unique_contracts!J249","v":0},{"$f":"unique_contracts!M249","v":0},{"$f":"unique_contracts!N249","v":0},{"$f":"unique_contracts!P249","v":0},{"$f":"unique_contracts!R249","v":0},{"$f":"unique_contracts!V249","v":0},{"$f":"unique_contracts!AB249","v":0},{"$f":"unique_contracts!AM249","v":0},{"$f":"unique_contracts!AN249","v":0},{"$f":"unique_contracts!AO249","v":0},{"$f":"unique_contracts!AP249","v":0},{"$f":"unique_contracts!AQ249","v":0},{"$f":"unique_contracts!AR249","v":0},{"$f":"unique_contracts!BP249","v":0},0,{"$f":"IFERROR(IF(AND(I248>0,E248=\"NotHybrid\"),_xlfn.CONCAT(MAX(MIN(ROUNDDOWN(I248/D248,0),8),4),INDEX(resources!$G:$G,MATCH(B248,resources!$A:$A,0))),INDEX(resources!$G:$G,MATCH(B248,resources!$A:$A,0))),\"n/a\")","v":"n/a"},"n/a","n/a",0,0,1,1,{"$f":"MIN((IFERROR(IF(AND($V248<=Z$1,$W248>=Z$1),INDEX(Reliability!E$23:E$50,MATCH($S248,Reliability!$C$23:$C$50,0)),0),0)*IF($T248=\"n/a\",$D248*$Y248,$G248)+IFERROR(IF(AND($V248<=Z$1,$W248>=Z$1),INDEX(Reliability!E$23:E$50,MATCH($T248,Reliability!$C$23:$C$50,0)),0),0)*$H248*$X248*$Y248),$D248)*$R248","v":0},{"$f":"MIN((IFERROR(IF(AND($V248<=AA$1,$W248>=AA$1),INDEX(Reliability!F$23:F$50,MATCH($S248,Reliability!$C$23:$C$50,0)),0),0)*IF($T248=\"n/a\",$D248*$Y248,$G248)+IFERROR(IF(AND($V248<=AA$1,$W248>=AA$1),INDEX(Reliability!F$23:F$50,MATCH($T248,Reliability!$C$23:$C$50,0)),0),0)*$H248*$X248*$Y248),$D248)*$R248","v":0},{"$f":"MIN((IFERROR(IF(AND($V248<=AB$1,$W248>=AB$1),INDEX(Reliability!G$23:G$50,MATCH($S248,Reliability!$C$23:$C$50,0)),0),0)*IF($T248=\"n/a\",$D248*$Y248,$G248)+IFERROR(IF(AND($V248<=AB$1,$W248>=AB$1),INDEX(Reliability!G$23:G$50,MATCH($T248,Reliability!$C$23:$C$50,0)),0),0)*$H248*$X248*$Y248),$D248)*$R248","v":0},{"$f":"MIN((IFERROR(IF(AND($V248<=AC$1,$W248>=AC$1),INDEX(Reliability!H$23:H$50,MATCH($S248,Reliability!$C$23:$C$50,0)),0),0)*IF($T248=\"n/a\",$D248*$Y248,$G248)+IFERROR(IF(AND($V248<=AC$1,$W248>=AC$1),INDEX(Reliability!H$23:H$50,MATCH($T248,Reliability!$C$23:$C$50,0)),0),0)*$H248*$X248*$Y248),$D248)*$R248","v":0},{"$f":"MIN((IFERROR(IF(AND($V248<=AD$1,$W248>=AD$1),INDEX(Reliability!I$23:I$50,MATCH($S248,Reliability!$C$23:$C$50,0)),0),0)*IF($T248=\"n/a\",$D248*$Y248,$G248)+IFERROR(IF(AND($V248<=AD$1,$W248>=AD$1),INDEX(Reliability!I$23:I$50,MATCH($T248,Reliability!$C$23:$C$50,0)),0),0)*$H248*$X248*$Y248),$D248)*$R248","v":0},{"$f":"MIN((IFERROR(IF(AND($V248<=AE$1,$W248>=AE$1),INDEX(Reliability!J$23:J$50,MATCH($S248,Reliability!$C$23:$C$50,0)),0),0)*IF($T248=\"n/a\",$D248*$Y248,$G248)+IFERROR(IF(AND($V248<=AE$1,$W248>=AE$1),INDEX(Reliability!J$23:J$50,MATCH($T248,Reliability!$C$23:$C$50,0)),0),0)*$H248*$X248*$Y248),$D248)*$R248","v":0},{"$f":"MIN((IFERROR(IF(AND($V248<=AF$1,$W248>=AF$1),INDEX(Reliability!K$23:K$50,MATCH($S248,Reliability!$C$23:$C$50,0)),0),0)*IF($T248=\"n/a\",$D248*$Y248,$G248)+IFERROR(IF(AND($V248<=AF$1,$W248>=AF$1),INDEX(Reliability!K$23:K$50,MATCH($T248,Reliability!$C$23:$C$50,0)),0),0)*$H248*$X248*$Y248),$D248)*$R248","v":0},{"$f":"MIN((IFERROR(IF(AND($V248<=AG$1,$W248>=AG$1),INDEX(Reliability!L$23:L$50,MATCH($S248,Reliability!$C$23:$C$50,0)),0),0)*IF($T248=\"n/a\",$D248*$Y248,$G248)+IFERROR(IF(AND($V248<=AG$1,$W248>=AG$1),INDEX(Reliability!L$23:L$50,MATCH($T248,Reliability!$C$23:$C$50,0)),0),0)*$H248*$X248*$Y248),$D248)*$R248","v":0},{"$f":"MIN((IFERROR(IF(AND($V248<=AH$1,$W248>=AH$1),INDEX(Reliability!M$23:M$50,MATCH($S248,Reliability!$C$23:$C$50,0)),0),0)*IF($T248=\"n/a\",$D248*$Y248,$G248)+IFERROR(IF(AND($V248<=AH$1,$W248>=AH$1),INDEX(Reliability!M$23:M$50,MATCH($T248,Reliability!$C$23:$C$50,0)),0),0)*$H248*$X248*$Y248),$D248)*$R248","v":0},{"$f":"MIN((IFERROR(IF(AND($V248<=AI$1,$W248>=AI$1),INDEX(Reliability!N$23:N$50,MATCH($S248,Reliability!$C$23:$C$50,0)),0),0)*IF($T248=\"n/a\",$D248*$Y248,$G248)+IFERROR(IF(AND($V248<=AI$1,$W248>=AI$1),INDEX(Reliability!N$23:N$50,MATCH($T248,Reliability!$C$23:$C$50,0)),0),0)*$H248*$X248*$Y248),$D248)*$R248","v":0},{"$f":"MIN((IFERROR(IF(AND($V248<=AJ$1,$W248>=AJ$1),INDEX(Reliability!O$23:O$50,MATCH($S248,Reliability!$C$23:$C$50,0)),0),0)*IF($T248=\"n/a\",$D248*$Y248,$G248)+IFERROR(IF(AND($V248<=AJ$1,$W248>=AJ$1),INDEX(Reliability!O$23:O$50,MATCH($T248,Reliability!$C$23:$C$50,0)),0),0)*$H248*$X248*$Y248),$D248)*$R248","v":0},{"$f":"MIN((IFERROR(IF(AND($V248<=AK$1,$W248>=AK$1),INDEX(Reliability!P$23:P$50,MATCH($S248,Reliability!$C$23:$C$50,0)),0),0)*IF($T248=\"n/a\",$D248*$Y248,$G248)+IFERROR(IF(AND($V248<=AK$1,$W248>=AK$1),INDEX(Reliability!P$23:P$50,MATCH($T248,Reliability!$C$23:$C$50,0)),0),0)*$H248*$X248*$Y248),$D248)*$R248","v":0}]
[null,{"$f":"unique_contracts!B250","v":0},{"$f":"unique_contracts!D250","v":0},{"$f":"unique_contracts!J250","v":0},{"$f":"unique_contracts!M250","v":0},{"$f":"unique_contracts!N250","v":0},{"$f":"unique_contracts!P250","v":0},{"$f":"unique_contracts!R250","v":0},{"$f":"unique_contracts!V250","v":0},{"$f":"unique_contracts!AB250","v":0},{"$f":"unique_contracts!AM250","v":0},{"$f":"unique_contracts!AN250","v":0},{"$f":"unique_contracts!AO250","v":0},{"$f":"unique_contracts!AP250","v":0},{"$f":"unique_contracts!AQ250","v":0},{"$f":"unique_contracts!AR250","v":0},{"$f":"unique_contracts!BP250","v":0},0,{"$f":"IFERROR(IF(AND(I249>0,E249=\"NotHybrid\"),_xlfn.CONCAT(MAX(MIN(ROUNDDOWN(I249/D249,0),8),4),INDEX(resources!$G:$G,MATCH(B249,resources!$A:$A,0))),INDEX(resources!$G:$G,MATCH(B249,resources!$A:$A,0))),\"n/a\")","v":"n/a"},"n/a","n/a",0,0,1,1,{"$f":"MIN((IFERROR(IF(AND($V249<=Z$1,$W249>=Z$1),INDEX(Reliability!E$23:E$50,MATCH($S249,Reliability!$C$23:$C$50,0)),0),0)*IF($T249=\"n/a\",$D249*$Y249,$G249)+IFERROR(IF(AND($V249<=Z$1,$W249>=Z$1),INDEX(Reliability!E$23:E$50,MATCH($T249,Reliability!$C$23:$C$50,0)),0),0)*$H249*$X249*$Y249),$D249)*$R249","v":0},{"$f":"MIN((IFERROR(IF(AND($V249<=AA$1,$W249>=AA$1),INDEX(Reliability!F$23:F$50,MATCH($S249,Reliability!$C$23:$C$50,0)),0),0)*IF($T249=\"n/a\",$D249*$Y249,$G249)+IFERROR(IF(AND($V249<=AA$1,$W249>=AA$1),INDEX(Reliability!F$23:F$50,MATCH($T249,Reliability!$C$23:$C$50,0)),0),0)*$H249*$X249*$Y249),$D249)*$R249","v":0},{"$f":"MIN((IFERROR(IF(AND($V249<=AB$1,$W249>=AB$1),INDEX(Reliability!G$23:G$50,MATCH($S249,Reliability!$C$23:$C$50,0)),0),0)*IF($T249=\"n/a\",$D249*$Y249,$G249)+IFERROR(IF(AND($V249<=AB$1,$W249>=AB$1),INDEX(Reliability!G$23:G$50,MATCH($T249,Reliability!$C$23:$C$50,0)),0),0)*$H249*$X249*$Y249),$D249)*$R249","v":0},{"$f":"MIN((IFERROR(IF(AND($V249<=AC$1,$W249>=AC$1),INDEX(Reliability!H$23:H$50,MATCH($S249,Reliability!$C$23:$C$50,0)),0),0)*IF($T249=\"n/a\",$D249*$Y249,$G249)+IFERROR(IF(AND($V249<=AC$1,$W249>=AC$1),INDEX(Reliability!H$23:H$50,MATCH($T249,Reliability!$C$23:$C$50,0)),0),0)*$H249*$X249*$Y249),$D249)*$R249","v":0},{"$f":"MIN((IFERROR(IF(AND($V249<=AD$1,$W249>=AD$1),INDEX(Reliability!I$23:I$50,MATCH($S249,Reliability!$C$23:$C$50,0)),0),0)*IF($T249=\"n/a\",$D249*$Y249,$G249)+IFERROR(IF(AND($V249<=AD$1,$W249>=AD$1),INDEX(Reliability!I$23:I$50,MATCH($T249,Reliability!$C$23:$C$50,0)),0),0)*$H249*$X249*$Y249),$D249)*$R249","v":0},{"$f":"MIN((IFERROR(IF(AND($V249<=AE$1,$W249>=AE$1),INDEX(Reliability!J$23:J$50,MATCH($S249,Reliability!$C$23:$C$50,0)),0),0)*IF($T249=\"n/a\",$D249*$Y249,$G249)+IFERROR(IF(AND($V249<=AE$1,$W249>=AE$1),INDEX(Reliability!J$23:J$50,MATCH($T249,Reliability!$C$23:$C$50,0)),0),0)*$H249*$X249*$Y249),$D249)*$R249","v":0},{"$f":"MIN((IFERROR(IF(AND($V249<=AF$1,$W249>=AF$1),INDEX(Reliability!K$23:K$50,MATCH($S249,Reliability!$C$23:$C$50,0)),0),0)*IF($T249=\"n/a\",$D249*$Y249,$G249)+IFERROR(IF(AND($V249<=AF$1,$W249>=AF$1),INDEX(Reliability!K$23:K$50,MATCH($T249,Reliability!$C$23:$C$50,0)),0),0)*$H249*$X249*$Y249),$D249)*$R249","v":0},{"$f":"MIN((IFERROR(IF(AND($V249<=AG$1,$W249>=AG$1),INDEX(Reliability!L$23:L$50,MATCH($S249,Reliability!$C$23:$C$50,0)),0),0)*IF($T249=\"n/a\",$D249*$Y249,$G249)+IFERROR(IF(AND($V249<=AG$1,$W249>=AG$1),INDEX(Reliability!L$23:L$50,MATCH($T249,Reliability!$C$23:$C$50,0)),0),0)*$H249*$X249*$Y249),$D249)*$R249","v":0},{"$f":"MIN((IFERROR(IF(AND($V249<=AH$1,$W249>=AH$1),INDEX(Reliability!M$23:M$50,MATCH($S249,Reliability!$C$23:$C$50,0)),0),0)*IF($T249=\"n/a\",$D249*$Y249,$G249)+IFERROR(IF(AND($V249<=AH$1,$W249>=AH$1),INDEX(Reliability!M$23:M$50,MATCH($T249,Reliability!$C$23:$C$50,0)),0),0)*$H249*$X249*$Y249),$D249)*$R249","v":0},{"$f":"MIN((IFERROR(IF(AND($V249<=AI$1,$W249>=AI$1),INDEX(Reliability!N$23:N$50,MATCH($S249,Reliability!$C$23:$C$50,0)),0),0)*IF($T249=\"n/a\",$D249*$Y249,$G249)+IFERROR(IF(AND($V249<=AI$1,$W249>=AI$1),INDEX(Reliability!N$23:N$50,MATCH($T249,Reliability!$C$23:$C$50,0)),0),0)*$H249*$X249*$Y249),$D249)*$R249","v":0},{"$f":"MIN((IFERROR(IF(AND($V249<=AJ$1,$W249>=AJ$1),INDEX(Reliability!O$23:O$50,MATCH($S249,Reliability!$C$23:$C$50,0)),0),0)*IF($T249=\"n/a\",$D249*$Y249,$G249)+IFERROR(IF(AND($V249<=AJ$1,$W249>=AJ$1),INDEX(Reliability!O$23:O$50,MATCH($T249,Reliability!$C$23:$C$50,0)),0),0)*$H249*$X249*$Y249),$D249)*$R249","v":0},{"$f":"MIN((IFERROR(IF(AND($V249<=AK$1,$W249>=AK$1),INDEX(Reliability!P$23:P$50,MATCH($S249,Reliability!$C$23:$C$50,0)),0),0)*IF($T249=\"n/a\",$D249*$Y249,$G249)+IFERROR(IF(AND($V249<=AK$1,$W249>=AK$1),INDEX(Reliability!P$23:P$50,MATCH($T249,Reliability!$C$23:$C$50,0)),0),0)*$H249*$X249*$Y249),$D249)*$R249","v":0}]
[null,{"$f":"unique_contracts!B251","v":0},{"$f":"unique_contracts!D251","v":0},{"$f":"unique_contracts!J251","v":0},{"$f":"unique_contracts!M251","v":0},{"$f":"unique_contracts!N251","v":0},{"$f":"unique_contracts!P251","v":0},{"$f":"unique_contracts!R251","v":0},{"$f":"unique_contracts!V251","v":0},{"$f":"unique_contracts!AB251","v":0},{"$f":"unique_contracts!AM251","v":0},{"$f":"unique_contracts!AN251","v":0},{"$f":"unique_contracts!AO251","v":0},{"$f":"unique_contracts!AP251","v":0},{"$f":"unique_contracts!AQ251","v":0},{"$f":"unique_contracts!AR251","v":0},{"$f":"unique_contracts!BP251","v":0},0,{"$f":"IFERROR(IF(AND(I250>0,E250=\"NotHybrid\"),_xlfn.CONCAT(MAX(MIN(ROUNDDOWN(I250/D250,0),8),4),INDEX(resources!$G:$G,MATCH(B250,resources!$A:$A,0))),INDEX(resources!$G:$G,MATCH(B250,resources!$A:$A,0))),\"n/a\")","v":"n/a"},"n/a","n/a",0,0,1,1,{"$f":"MIN((IFERROR(IF(AND($V250<=Z$1,$W250>=Z$1),INDEX(Reliability!E$23:E$50,MATCH($S250,Reliability!$C$23:$C$50,0)),0),0)*IF($T250=\"n/a\",$D250*$Y250,$G250)+IFERROR(IF(AND($V250<=Z$1,$W250>=Z$1),INDEX(Reliability!E$23:E$50,MATCH($T250,Reliability!$C$23:$C$50,0)),0),0)*$H250*$X250*$Y250),$D250)*$R250","v":0},{"$f":"MIN((IFERROR(IF(AND($V250<=AA$1,$W250>=AA$1),INDEX(Reliability!F$23:F$50,MATCH($S250,Reliability!$C$23:$C$50,0)),0),0)*IF($T250=\"n/a\",$D250*$Y250,$G250)+IFERROR(IF(AND($V250<=AA$1,$W250>=AA$1),INDEX(Reliability!F$23:F$50,MATCH($T250,Reliability!$C$23:$C$50,0)),0),0)*$H250*$X250*$Y250),$D250)*$R250","v":0},{"$f":"MIN((IFERROR(IF(AND($V250<=AB$1,$W250>=AB$1),INDEX(Reliability!G$23:G$50,MATCH($S250,Reliability!$C$23:$C$50,0)),0),0)*IF($T250=\"n/a\",$D250*$Y250,$G250)+IFERROR(IF(AND($V250<=AB$1,$W250>=AB$1),INDEX(Reliability!G$23:G$50,MATCH($T250,Reliability!$C$23:$C$50,0)),0),0)*$H250*$X250*$Y250),$D250)*$R250","v":0},{"$f":"MIN((IFERROR(IF(AND($V250<=AC$1,$W250>=AC$1),INDEX(Reliability!H$23:H$50,MATCH($S250,Reliability!$C$23:$C$50,0)),0),0)*IF($T250=\"n/a\",$D250*$Y250,$G250)+IFERROR(IF(AND($V250<=AC$1,$W250>=AC$1),INDEX(Reliability!H$23:H$50,MATCH($T250,Reliability!$C$23:$C$50,0)),0),0)*$H250*$X250*$Y250),$D250)*$R250","v":0},{"$f":"MIN((IFERROR(IF(AND($V250<=AD$1,$W250>=AD$1),INDEX(Reliability!I$23:I$50,MATCH($S250,Reliability!$C$23:$C$50,0)),0),0)*IF($T250=\"n/a\",$D250*$Y250,$G250)+IFERROR(IF(AND($V250<=AD$1,$W250>=AD$1),INDEX(Reliability!I$23:I$50,MATCH($T250,Reliability!$C$23:$C$50,0)),0),0)*$H250*$X250*$Y250),$D250)*$R250","v":0},{"$f":"MIN((IFERROR(IF(AND($V250<=AE$1,$W250>=AE$1),INDEX(Reliability!J$23:J$50,MATCH($S250,Reliability!$C$23:$C$50,0)),0),0)*IF($T250=\"n/a\",$D250*$Y250,$G250)+IFERROR(IF(AND($V250<=AE$1,$W250>=AE$1),INDEX(Reliability!J$23:J$50,MATCH($T250,Reliability!$C$23:$C$50,0)),0),0)*$H250*$X250*$Y250),$D250)*$R250","v":0},{"$f":"MIN((IFERROR(IF(AND($V250<=AF$1,$W250>=AF$1),INDEX(Reliability!K$23:K$50,MATCH($S250,Reliability!$C$23:$C$50,0)),0),0)*IF($T250=\"n/a\",$D250*$Y250,$G250)+IFERROR(IF(AND($V250<=AF$1,$W250>=AF$1),INDEX(Reliability!K$23:K$50,MATCH($T250,Reliability!$C$23:$C$50,0)),0),0)*$H250*$X250*$Y250),$D250)*$R250","v":0},{"$f":"MIN((IFERROR(IF(AND($V250<=AG$1,$W250>=AG$1),INDEX(Reliability!L$23:L$50,MATCH($S250,Reliability!$C$23:$C$50,0)),0),0)*IF($T250=\"n/a\",$D250*$Y250,$G250)+IFERROR(IF(AND($V250<=AG$1,$W250>=AG$1),INDEX(Reliability!L$23:L$50,MATCH($T250,Reliability!$C$23:$C$50,0)),0),0)*$H250*$X250*$Y250),$D250)*$R250","v":0},{"$f":"MIN((IFERROR(IF(AND($V250<=AH$1,$W250>=AH$1),INDEX(Reliability!M$23:M$50,MATCH($S250,Reliability!$C$23:$C$50,0)),0),0)*IF($T250=\"n/a\",$D250*$Y250,$G250)+IFERROR(IF(AND($V250<=AH$1,$W250>=AH$1),INDEX(Reliability!M$23:M$50,MATCH($T250,Reliability!$C$23:$C$50,0)),0),0)*$H250*$X250*$Y250),$D250)*$R250","v":0},{"$f":"MIN((IFERROR(IF(AND($V250<=AI$1,$W250>=AI$1),INDEX(Reliability!N$23:N$50,MATCH($S250,Reliability!$C$23:$C$50,0)),0),0)*IF($T250=\"n/a\",$D250*$Y250,$G250)+IFERROR(IF(AND($V250<=AI$1,$W250>=AI$1),INDEX(Reliability!N$23:N$50,MATCH($T250,Reliability!$C$23:$C$50,0)),0),0)*$H250*$X250*$Y250),$D250)*$R250","v":0},{"$f":"MIN((IFERROR(IF(AND($V250<=AJ$1,$W250>=AJ$1),INDEX(Reliability!O$23:O$50,MATCH($S250,Reliability!$C$23:$C$50,0)),0),0)*IF($T250=\"n/a\",$D250*$Y250,$G250)+IFERROR(IF(AND($V250<=AJ$1,$W250>=AJ$1),INDEX(Reliability!O$23:O$50,MATCH($T250,Reliability!$C$23:$C$50,0)),0),0)*$H250*$X250*$Y250),$D250)*$R250","v":0},{"$f":"MIN((IFERROR(IF(AND($V250<=AK$1,$W250>=AK$1),INDEX(Reliability!P$23:P$50,MATCH($S250,Reliability!$C$23:$C$50,0)),0),0)*IF($T250=\"n/a\",$D250*$Y250,$G250)+IFERROR(IF(AND($V250<=AK$1,$W250>=AK$1),INDEX(Reliability!P$23:P$50,MATCH($T250,Reliability!$C$23:$C$50,0)),0),0)*$H250*$X250*$Y250),$D250)*$R250","v":0}]
[null,{"$f":"unique_contracts!B252","v":0},{"$f":"unique_contracts!D252","v":0},{"$f":"unique_contracts!J252","v":0},{"$f":"unique_contracts!M252","v":0},{"$f":"unique_contracts!N252","v":0},{"$f":"unique_contracts!P252","v":0},{"$f":"unique_contracts!R252","v":0},{"$f":"unique_contracts!V252","v":0},{"$f":"unique_contracts!AB252","v":0},{"$f":"unique_contracts!AM252","v":0},{"$f":"unique_contracts!AN252","v":0},{"$f":"unique_contracts!AO252","v":0},{"$f":"unique_contracts!AP252","v":0},{"$f":"unique_contracts!AQ252","v":0},{"$f":"unique_contracts!AR252","v":0},{"$f":"unique_contracts!BP252","v":0},0,{"$f":"IFERROR(IF(AND(I251>0,E251=\"NotHybrid\"),_xlfn.CONCAT(MAX(MIN(ROUNDDOWN(I251/D251,0),8),4),INDEX(resources!$G:$G,MATCH(B251,resources!$A:$A,0))),INDEX(resources!$G:$G,MATCH(B251,resources!$A:$A,0))),\"n/a\")","v":"n/a"},"n/a","n/a",0,0,1,1,{"$f":"MIN((IFERROR(IF(AND($V251<=Z$1,$W251>=Z$1),INDEX(Reliability!E$23:E$50,MATCH($S251,Reliability!$C$23:$C$50,0)),0),0)*IF($T251=\"n/a\",$D251*$Y251,$G251)+IFERROR(IF(AND($V251<=Z$1,$W251>=Z$1),INDEX(Reliability!E$23:E$50,MATCH($T251,Reliability!$C$23:$C$50,0)),0),0)*$H251*$X251*$Y251),$D251)*$R251","v":0},{"$f":"MIN((IFERROR(IF(AND($V251<=AA$1,$W251>=AA$1),INDEX(Reliability!F$23:F$50,MATCH($S251,Reliability!$C$23:$C$50,0)),0),0)*IF($T251=\"n/a\",$D251*$Y251,$G251)+IFERROR(IF(AND($V251<=AA$1,$W251>=AA$1),INDEX(Reliability!F$23:F$50,MATCH($T251,Reliability!$C$23:$C$50,0)),0),0)*$H251*$X251*$Y251),$D251)*$R251","v":0},{"$f":"MIN((IFERROR(IF(AND($V251<=AB$1,$W251>=AB$1),INDEX(Reliability!G$23:G$50,MATCH($S251,Reliability!$C$23:$C$50,0)),0),0)*IF($T251=\"n/a\",$D251*$Y251,$G251)+IFERROR(IF(AND($V251<=AB$1,$W251>=AB$1),INDEX(Reliability!G$23:G$50,MATCH($T251,Reliability!$C$23:$C$50,0)),0),0)*$H251*$X251*$Y251),$D251)*$R251","v":0},{"$f":"MIN((IFERROR(IF(AND($V251<=AC$1,$W251>=AC$1),INDEX(Reliability!H$23:H$50,MATCH($S251,Reliability!$C$23:$C$50,0)),0),0)*IF($T251=\"n/a\",$D251*$Y251,$G251)+IFERROR(IF(AND($V251<=AC$1,$W251>=AC$1),INDEX(Reliability!H$23:H$50,MATCH($T251,Reliability!$C$23:$C$50,0)),0),0)*$H251*$X251*$Y251),$D251)*$R251","v":0},{"$f":"MIN((IFERROR(IF(AND($V251<=AD$1,$W251>=AD$1),INDEX(Reliability!I$23:I$50,MATCH($S251,Reliability!$C$23:$C$50,0)),0),0)*IF($T251=\"n/a\",$D251*$Y251,$G251)+IFERROR(IF(AND($V251<=AD$1,$W251>=AD$1),INDEX(Reliability!I$23:I$50,MATCH($T251,Reliability!$C$23:$C$50,0)),0),0)*$H251*$X251*$Y251),$D251)*$R251","v":0},{"$f":"MIN((IFERROR(IF(AND($V251<=AE$1,$W251>=AE$1),INDEX(Reliability!J$23:J$50,MATCH($S251,Reliability!$C$23:$C$50,0)),0),0)*IF($T251=\"n/a\",$D251*$Y251,$G251)+IFERROR(IF(AND($V251<=AE$1,$W251>=AE$1),INDEX(Reliability!J$23:J$50,MATCH($T251,Reliability!$C$23:$C$50,0)),0),0)*$H251*$X251*$Y251),$D251)*$R251","v":0},{"$f":"MIN((IFERROR(IF(AND($V251<=AF$1,$W251>=AF$1),INDEX(Reliability!K$23:K$50,MATCH($S251,Reliability!$C$23:$C$50,0)),0),0)*IF($T251=\"n/a\",$D251*$Y251,$G251)+IFERROR(IF(AND($V251<=AF$1,$W251>=AF$1),INDEX(Reliability!K$23:K$50,MATCH($T251,Reliability!$C$23:$C$50,0)),0),0)*$H251*$X251*$Y251),$D251)*$R251","v":0},{"$f":"MIN((IFERROR(IF(AND($V251<=AG$1,$W251>=AG$1),INDEX(Reliability!L$23:L$50,MATCH($S251,Reliability!$C$23:$C$50,0)),0),0)*IF($T251=\"n/a\",$D251*$Y251,$G251)+IFERROR(IF(AND($V251<=AG$1,$W251>=AG$1),INDEX(Reliability!L$23:L$50,MATCH($T251,Reliability!$C$23:$C$50,0)),0),0)*$H251*$X251*$Y251),$D251)*$R251","v":0},{"$f":"MIN((IFERROR(IF(AND($V251<=AH$1,$W251>=AH$1),INDEX(Reliability!M$23:M$50,MATCH($S251,Reliability!$C$23:$C$50,0)),0),0)*IF($T251=\"n/a\",$D251*$Y251,$G251)+IFERROR(IF(AND($V251<=AH$1,$W251>=AH$1),INDEX(Reliability!M$23:M$50,MATCH($T251,Reliability!$C$23:$C$50,0)),0),0)*$H251*$X251*$Y251),$D251)*$R251","v":0},{"$f":"MIN((IFERROR(IF(AND($V251<=AI$1,$W251>=AI$1),INDEX(Reliability!N$23:N$50,MATCH($S251,Reliability!$C$23:$C$50,0)),0),0)*IF($T251=\"n/a\",$D251*$Y251,$G251)+IFERROR(IF(AND($V251<=AI$1,$W251>=AI$1),INDEX(Reliability!N$23:N$50,MATCH($T251,Reliability!$C$23:$C$50,0)),0),0)*$H251*$X251*$Y251),$D251)*$R251","v":0},{"$f":"MIN((IFERROR(IF(AND($V251<=AJ$1,$W251>=AJ$1),INDEX(Reliability!O$23:O$50,MATCH($S251,Reliability!$C$23:$C$50,0)),0),0)*IF($T251=\"n/a\",$D251*$Y251,$G251)+IFERROR(IF(AND($V251<=AJ$1,$W251>=AJ$1),INDEX(Reliability!O$23:O$50,MATCH($T251,Reliability!$C$23:$C$50,0)),0),0)*$H251*$X251*$Y251),$D251)*$R251","v":0},{"$f":"MIN((IFERROR(IF(AND($V251<=AK$1,$W251>=AK$1),INDEX(Reliability!P$23:P$50,MATCH($S251,Reliability!$C$23:$C$50,0)),0),0)*IF($T251=\"n/a\",$D251*$Y251,$G251)+IFERROR(IF(AND($V251<=AK$1,$W251>=AK$1),INDEX(Reliability!P$23:P$50,MATCH($T251,Reliability!$C$23:$C$50,0)),0),0)*$H251*$X251*$Y251),$D251)*$R251","v":0}]
[null,{"$f":"unique_contracts!B253","v":0},{"$f":"unique_contracts!D253","v":0},{"$f":"unique_contracts!J253","v":0},{"$f":"unique_contracts!M253","v":0},{"$f":"unique_contracts!N253","v":0},{"$f":"unique_contracts!P253","v":0},{"$f":"unique_contracts!R253","v":0},{"$f":"unique_contracts!V253","v":0},{"$f":"unique_contracts!AB253","v":0},{"$f":"unique_contracts!AM253","v":0},{"$f":"unique_contracts!AN253","v":0},{"$f":"unique_contracts!AO253","v":0},{"$f":"unique_contracts!AP253","v":0},{"$f":"unique_contracts!AQ253","v":0},{"$f":"unique_contracts!AR253","v":0},{"$f":"unique_contracts!BP253","v":0},0,{"$f":"IFERROR(IF(AND(I252>0,E252=\"NotHybrid\"),_xlfn.CONCAT(MAX(MIN(ROUNDDOWN(I252/D252,0),8),4),INDEX(resources!$G:$G,MATCH(B252,resources!$A:$A,0))),INDEX(resources!$G:$G,MATCH(B252,resources!$A:$A,0))),\"n/a\")","v":"n/a"},"n/a","n/a",0,0,1,1,{"$f":"MIN((IFERROR(IF(AND($V252<=Z$1,$W252>=Z$1),INDEX(Reliability!E$23:E$50,MATCH($S252,Reliability!$C$23:$C$50,0)),0),0)*IF($T252=\"n/a\",$D252*$Y252,$G252)+IFERROR(IF(AND($V252<=Z$1,$W252>=Z$1),INDEX(Reliability!E$23:E$50,MATCH($T252,Reliability!$C$23:$C$50,0)),0),0)*$H252*$X252*$Y252),$D252)*$R252","v":0},{"$f":"MIN((IFERROR(IF(AND($V252<=AA$1,$W252>=AA$1),INDEX(Reliability!F$23:F$50,MATCH($S252,Reliability!$C$23:$C$50,0)),0),0)*IF($T252=\"n/a\",$D252*$Y252,$G252)+IFERROR(IF(AND($V252<=AA$1,$W252>=AA$1),INDEX(Reliability!F$23:F$50,MATCH($T252,Reliability!$C$23:$C$50,0)),0),0)*$H252*$X252*$Y252),$D252)*$R252","v":0},{"$f":"MIN((IFERROR(IF(AND($V252<=AB$1,$W252>=AB$1),INDEX(Reliability!G$23:G$50,MATCH($S252,Reliability!$C$23:$C$50,0)),0),0)*IF($T252=\"n/a\",$D252*$Y252,$G252)+IFERROR(IF(AND($V252<=AB$1,$W252>=AB$1),INDEX(Reliability!G$23:G$50,MATCH($T252,Reliability!$C$23:$C$50,0)),0),0)*$H252*$X252*$Y252),$D252)*$R252","v":0},{"$f":"MIN((IFERROR(IF(AND($V252<=AC$1,$W252>=AC$1),INDEX(Reliability!H$23:H$50,MATCH($S252,Reliability!$C$23:$C$50,0)),0),0)*IF($T252=\"n/a\",$D252*$Y252,$G252)+IFERROR(IF(AND($V252<=AC$1,$W252>=AC$1),INDEX(Reliability!H$23:H$50,MATCH($T252,Reliability!$C$23:$C$50,0)),0),0)*$H252*$X252*$Y252),$D252)*$R252","v":0},{"$f":"MIN((IFERROR(IF(AND($V252<=AD$1,$W252>=AD$1),INDEX(Reliability!I$23:I$50,MATCH($S252,Reliability!$C$23:$C$50,0)),0),0)*IF($T252=\"n/a\",$D252*$Y252,$G252)+IFERROR(IF(AND($V252<=AD$1,$W252>=AD$1),INDEX(Reliability!I$23:I$50,MATCH($T252,Reliability!$C$23:$C$50,0)),0),0)*$H252*$X252*$Y252),$D252)*$R252","v":0},{"$f":"MIN((IFERROR(IF(AND($V252<=AE$1,$W252>=AE$1),INDEX(Reliability!J$23:J$50,MATCH($S252,Reliability!$C$23:$C$50,0)),0),0)*IF($T252=\"n/a\",$D252*$Y252,$G252)+IFERROR(IF(AND($V252<=AE$1,$W252>=AE$1),INDEX(Reliability!J$23:J$50,MATCH($T252,Reliability!$C$23:$C$50,0)),0),0)*$H252*$X252*$Y252),$D252)*$R252","v":0},{"$f":"MIN((IFERROR(IF(AND($V252<=AF$1,$W252>=AF$1),INDEX(Reliability!K$23:K$50,MATCH($S252,Reliability!$C$23:$C$50,0)),0),0)*IF($T252=\"n/a\",$D252*$Y252,$G252)+IFERROR(IF(AND($V252<=AF$1,$W252>=AF$1),INDEX(Reliability!K$23:K$50,MATCH($T252,Reliability!$C$23:$C$50,0)),0),0)*$H252*$X252*$Y252),$D252)*$R252","v":0},{"$f":"MIN((IFERROR(IF(AND($V252<=AG$1,$W252>=AG$1),INDEX(Reliability!L$23:L$50,MATCH($S252,Reliability!$C$23:$C$50,0)),0),0)*IF($T252=\"n/a\",$D252*$Y252,$G252)+IFERROR(IF(AND($V252<=AG$1,$W252>=AG$1),INDEX(Reliability!L$23:L$50,MATCH($T252,Reliability!$C$23:$C$50,0)),0),0)*$H252*$X252*$Y252),$D252)*$R252","v":0},{"$f":"MIN((IFERROR(IF(AND($V252<=AH$1,$W252>=AH$1),INDEX(Reliability!M$23:M$50,MATCH($S252,Reliability!$C$23:$C$50,0)),0),0)*IF($T252=\"n/a\",$D252*$Y252,$G252)+IFERROR(IF(AND($V252<=AH$1,$W252>=AH$1),INDEX(Reliability!M$23:M$50,MATCH($T252,Reliability!$C$23:$C$50,0)),0),0)*$H252*$X252*$Y252),$D252)*$R252","v":0},{"$f":"MIN((IFERROR(IF(AND($V252<=AI$1,$W252>=AI$1),INDEX(Reliability!N$23:N$50,MATCH($S252,Reliability!$C$23:$C$50,0)),0),0)*IF($T252=\"n/a\",$D252*$Y252,$G252)+IFERROR(IF(AND($V252<=AI$1,$W252>=AI$1),INDEX(Reliability!N$23:N$50,MATCH($T252,Reliability!$C$23:$C$50,0)),0),0)*$H252*$X252*$Y252),$D252)*$R252","v":0},{"$f":"MIN((IFERROR(IF(AND($V252<=AJ$1,$W252>=AJ$1),INDEX(Reliability!O$23:O$50,MATCH($S252,Reliability!$C$23:$C$50,0)),0),0)*IF($T252=\"n/a\",$D252*$Y252,$G252)+IFERROR(IF(AND($V252<=AJ$1,$W252>=AJ$1),INDEX(Reliability!O$23:O$50,MATCH($T252,Reliability!$C$23:$C$50,0)),0),0)*$H252*$X252*$Y252),$D252)*$R252","v":0},{"$f":"MIN((IFERROR(IF(AND($V252<=AK$1,$W252>=AK$1),INDEX(Reliability!P$23:P$50,MATCH($S252,Reliability!$C$23:$C$50,0)),0),0)*IF($T252=\"n/a\",$D252*$Y252,$G252)+IFERROR(IF(AND($V252<=AK$1,$W252>=AK$1),INDEX(Reliability!P$23:P$50,MATCH($T252,Reliability!$C$23:$C$50,0)),0),0)*$H252*$X252*$Y252),$D252)*$R252","v":0}]
[null,{"$f":"unique_contracts!B254","v":0},{"$f":"unique_contracts!D254","v":0},{"$f":"unique_contracts!J254","v":0},{"$f":"unique_contracts!M254","v":0},{"$f":"unique_contracts!N254","v":0},{"$f":"unique_contracts!P254","v":0},{"$f":"unique_contracts!R254","v":0},{"$f":"unique_contracts!V254","v":0},{"$f":"unique_contracts!AB254","v":0},{"$f":"unique_contracts!AM254","v":0},{"$f":"unique_contracts!AN254","v":0},{"$f":"unique_contracts!AO254","v":0},{"$f":"unique_contracts!AP254","v":0},{"$f":"unique_contracts!AQ254","v":0},{"$f":"unique_contracts!AR254","v":0},{"$f":"unique_contracts!BP254","v":0},0,{"$f":"IFERROR(IF(AND(I253>0,E253=\"NotHybrid\"),_xlfn.CONCAT(MAX(MIN(ROUNDDOWN(I253/D253,0),8),4),INDEX(resources!$G:$G,MATCH(B253,resources!$A:$A,0))),INDEX(resources!$G:$G,MATCH(B253,resources!$A:$A,0))),\"n/a\")","v":"n/a"},"n/a","n/a",0,0,1,1,{"$f":"MIN((IFERROR(IF(AND($V253<=Z$1,$W253>=Z$1),INDEX(Reliability!E$23:E$50,MATCH($S253,Reliability!$C$23:$C$50,0)),0),0)*IF($T253=\"n/a\",$D253*$Y253,$G253)+IFERROR(IF(AND($V253<=Z$1,$W253>=Z$1),INDEX(Reliability!E$23:E$50,MATCH($T253,Reliability!$C$23:$C$50,0)),0),0)*$H253*$X253*$Y253),$D253)*$R253","v":0},{"$f":"MIN((IFERROR(IF(AND($V253<=AA$1,$W253>=AA$1),INDEX(Reliability!F$23:F$50,MATCH($S253,Reliability!$C$23:$C$50,0)),0),0)*IF($T253=\"n/a\",$D253*$Y253,$G253)+IFERROR(IF(AND($V253<=AA$1,$W253>=AA$1),INDEX(Reliability!F$23:F$50,MATCH($T253,Reliability!$C$23:$C$50,0)),0),0)*$H253*$X253*$Y253),$D253)*$R253","v":0},{"$f":"MIN((IFERROR(IF(AND($V253<=AB$1,$W253>=AB$1),INDEX(Reliability!G$23:G$50,MATCH($S253,Reliability!$C$23:$C$50,0)),0),0)*IF($T253=\"n/a\",$D253*$Y253,$G253)+IFERROR(IF(AND($V253<=AB$1,$W253>=AB$1),INDEX(Reliability!G$23:G$50,MATCH($T253,Reliability!$C$23:$C$50,0)),0),0)*$H253*$X253*$Y253),$D253)*$R253","v":0},{"$f":"MIN((IFERROR(IF(AND($V253<=AC$1,$W253>=AC$1),INDEX(Reliability!H$23:H$50,MATCH($S253,Reliability!$C$23:$C$50,0)),0),0)*IF($T253=\"n/a\",$D253*$Y253,$G253)+IFERROR(IF(AND($V253<=AC$1,$W253>=AC$1),INDEX(Reliability!H$23:H$50,MATCH($T253,Reliability!$C$23:$C$50,0)),0),0)*$H253*$X253*$Y253),$D253)*$R253","v":0},{"$f":"MIN((IFERROR(IF(AND($V253<=AD$1,$W253>=AD$1),INDEX(Reliability!I$23:I$50,MATCH($S253,Reliability!$C$23:$C$50,0)),0),0)*IF($T253=\"n/a\",$D253*$Y253,$G253)+IFERROR(IF(AND($V253<=AD$1,$W253>=AD$1),INDEX(Reliability!I$23:I$50,MATCH($T253,Reliability!$C$23:$C$50,0)),0),0)*$H253*$X253*$Y253),$D253)*$R253","v":0},{"$f":"MIN((IFERROR(IF(AND($V253<=AE$1,$W253>=AE$1),INDEX(Reliability!J$23:J$50,MATCH($S253,Reliability!$C$23:$C$50,0)),0),0)*IF($T253=\"n/a\",$D253*$Y253,$G253)+IFERROR(IF(AND($V253<=AE$1,$W253>=AE$1),INDEX(Reliability!J$23:J$50,MATCH($T253,Reliability!$C$23:$C$50,0)),0),0)*$H253*$X253*$Y253),$D253)*$R253","v":0},{"$f":"MIN((IFERROR(IF(AND($V253<=AF$1,$W253>=AF$1),INDEX(Reliability!K$23:K$50,MATCH($S253,Reliability!$C$23:$C$50,0)),0),0)*IF($T253=\"n/a\",$D253*$Y253,$G253)+IFERROR(IF(AND($V253<=AF$1,$W253>=AF$1),INDEX(Reliability!K$23:K$50,MATCH($T253,Reliability!$C$23:$C$50,0)),0),0)*$H253*$X253*$Y253),$D253)*$R253","v":0},{"$f":"MIN((IFERROR(IF(AND($V253<=AG$1,$W253>=AG$1),INDEX(Reliability!L$23:L$50,MATCH($S253,Reliability!$C$23:$C$50,0)),0),0)*IF($T253=\"n/a\",$D253*$Y253,$G253)+IFERROR(IF(AND($V253<=AG$1,$W253>=AG$1),INDEX(Reliability!L$23:L$50,MATCH($T253,Reliability!$C$23:$C$50,0)),0),0)*$H253*$X253*$Y253),$D253)*$R253","v":0},{"$f":"MIN((IFERROR(IF(AND($V253<=AH$1,$W253>=AH$1),INDEX(Reliability!M$23:M$50,MATCH($S253,Reliability!$C$23:$C$50,0)),0),0)*IF($T253=\"n/a\",$D253*$Y253,$G253)+IFERROR(IF(AND($V253<=AH$1,$W253>=AH$1),INDEX(Reliability!M$23:M$50,MATCH($T253,Reliability!$C$23:$C$50,0)),0),0)*$H253*$X253*$Y253),$D253)*$R253","v":0},{"$f":"MIN((IFERROR(IF(AND($V253<=AI$1,$W253>=AI$1),INDEX(Reliability!N$23:N$50,MATCH($S253,Reliability!$C$23:$C$50,0)),0),0)*IF($T253=\"n/a\",$D253*$Y253,$G253)+IFERROR(IF(AND($V253<=AI$1,$W253>=AI$1),INDEX(Reliability!N$23:N$50,MATCH($T253,Reliability!$C$23:$C$50,0)),0),0)*$H253*$X253*$Y253),$D253)*$R253","v":0},{"$f":"MIN((IFERROR(IF(AND($V253<=AJ$1,$W253>=AJ$1),INDEX(Reliability!O$23:O$50,MATCH($S253,Reliability!$C$23:$C$50,0)),0),0)*IF($T253=\"n/a\",$D253*$Y253,$G253)+IFERROR(IF(AND($V253<=AJ$1,$W253>=AJ$1),INDEX(Reliability!O$23:O$50,MATCH($T253,Reliability!$C$23:$C$50,0)),0),0)*$H253*$X253*$Y253),$D253)*$R253","v":0},{"$f":"MIN((IFERROR(IF(AND($V253<=AK$1,$W253>=AK$1),INDEX(Reliability!P$23:P$50,MATCH($S253,Reliability!$C$23:$C$50,0)),0),0)*IF($T253=\"n/a\",$D253*$Y253,$G253)+IFERROR(IF(AND($V253<=AK$1,$W253>=AK$1),INDEX(Reliability!P$23:P$50,MATCH($T253,Reliability!$C$23:$C$50,0)),0),0)*$H253*$X253*$Y253),$D253)*$R253","v":0}]
[null,{"$f":"unique_contracts!B255","v":0},{"$f":"unique_contracts!D255","v":0},{"$f":"unique_contracts!J255","v":0},{"$f":"unique_contracts!M255","v":0},{"$f":"unique_contracts!N255","v":0},{"$f":"unique_contracts!P255","v":0},{"$f":"unique_contracts!R255","v":0},{"$f":"unique_contracts!V255","v":0},{"$f":"unique_contracts!AB255","v":0},{"$f":"unique_contracts!AM255","v":0},{"$f":"unique_contracts!AN255","v":0},{"$f":"unique_contracts!AO255","v":0},{"$f":"unique_contracts!AP255","v":0},{"$f":"unique_contracts!AQ255","v":0},{"$f":"unique_contracts!AR255","v":0},{"$f":"unique_contracts!BP255","v":0},0,{"$f":"IFERROR(IF(AND(I254>0,E254=\"NotHybrid\"),_xlfn.CONCAT(MAX(MIN(ROUNDDOWN(I254/D254,0),8),4),INDEX(resources!$G:$G,MATCH(B254,resources!$A:$A,0))),INDEX(resources!$G:$G,MATCH(B254,resources!$A:$A,0))),\"n/a\")","v":"n/a"},"n/a","n/a",0,0,1,1,{"$f":"MIN((IFERROR(IF(AND($V254<=Z$1,$W254>=Z$1),INDEX(Reliability!E$23:E$50,MATCH($S254,Reliability!$C$23:$C$50,0)),0),0)*IF($T254=\"n/a\",$D254*$Y254,$G254)+IFERROR(IF(AND($V254<=Z$1,$W254>=Z$1),INDEX(Reliability!E$23:E$50,MATCH($T254,Reliability!$C$23:$C$50,0)),0),0)*$H254*$X254*$Y254),$D254)*$R254","v":0},{"$f":"MIN((IFERROR(IF(AND($V254<=AA$1,$W254>=AA$1),INDEX(Reliability!F$23:F$50,MATCH($S254,Reliability!$C$23:$C$50,0)),0),0)*IF($T254=\"n/a\",$D254*$Y254,$G254)+IFERROR(IF(AND($V254<=AA$1,$W254>=AA$1),INDEX(Reliability!F$23:F$50,MATCH($T254,Reliability!$C$23:$C$50,0)),0),0)*$H254*$X254*$Y254),$D254)*$R254","v":0},{"$f":"MIN((IFERROR(IF(AND($V254<=AB$1,$W254>=AB$1),INDEX(Reliability!G$23:G$50,MATCH($S254,Reliability!$C$23:$C$50,0)),0),0)*IF($T254=\"n/a\",$D254*$Y254,$G254)+IFERROR(IF(AND($V254<=AB$1,$W254>=AB$1),INDEX(Reliability!G$23:G$50,MATCH($T254,Reliability!$C$23:$C$50,0)),0),0)*$H254*$X254*$Y254),$D254)*$R254","v":0},{"$f":"MIN((IFERROR(IF(AND($V254<=AC$1,$W254>=AC$1),INDEX(Reliability!H$23:H$50,MATCH($S254,Reliability!$C$23:$C$50,0)),0),0)*IF($T254=\"n/a\",$D254*$Y254,$G254)+IFERROR(IF(AND($V254<=AC$1,$W254>=AC$1),INDEX(Reliability!H$23:H$50,MATCH($T254,Reliability!$C$23:$C$50,0)),0),0)*$H254*$X254*$Y254),$D254)*$R254","v":0},{"$f":"MIN((IFERROR(IF(AND($V254<=AD$1,$W254>=AD$1),INDEX(Reliability!I$23:I$50,MATCH($S254,Reliability!$C$23:$C$50,0)),0),0)*IF($T254=\"n/a\",$D254*$Y254,$G254)+IFERROR(IF(AND($V254<=AD$1,$W254>=AD$1),INDEX(Reliability!I$23:I$50,MATCH($T254,Reliability!$C$23:$C$50,0)),0),0)*$H254*$X254*$Y254),$D254)*$R254","v":0},{"$f":"MIN((IFERROR(IF(AND($V254<=AE$1,$W254>=AE$1),INDEX(Reliability!J$23:J$50,MATCH($S254,Reliability!$C$23:$C$50,0)),0),0)*IF($T254=\"n/a\",$D254*$Y254,$G254)+IFERROR(IF(AND($V254<=AE$1,$W254>=AE$1),INDEX(Reliability!J$23:J$50,MATCH($T254,Reliability!$C$23:$C$50,0)),0),0)*$H254*$X254*$Y254),$D254)*$R254","v":0},{"$f":"MIN((IFERROR(IF(AND($V254<=AF$1,$W254>=AF$1),INDEX(Reliability!K$23:K$50,MATCH($S254,Reliability!$C$23:$C$50,0)),0),0)*IF($T254=\"n/a\",$D254*$Y254,$G254)+IFERROR(IF(AND($V254<=AF$1,$W254>=AF$1),INDEX(Reliability!K$23:K$50,MATCH($T254,Reliability!$C$23:$C$50,0)),0),0)*$H254*$X254*$Y254),$D254)*$R254","v":0},{"$f":"MIN((IFERROR(IF(AND($V254<=AG$1,$W254>=AG$1),INDEX(Reliability!L$23:L$50,MATCH($S254,Reliability!$C$23:$C$50,0)),0),0)*IF($T254=\"n/a\",$D254*$Y254,$G254)+IFERROR(IF(AND($V254<=AG$1,$W254>=AG$1),INDEX(Reliability!L$23:L$50,MATCH($T254,Reliability!$C$23:$C$50,0)),0),0)*$H254*$X254*$Y254),$D254)*$R254","v":0},{"$f":"MIN((IFERROR(IF(AND($V254<=AH$1,$W254>=AH$1),INDEX(Reliability!M$23:M$50,MATCH($S254,Reliability!$C$23:$C$50,0)),0),0)*IF($T254=\"n/a\",$D254*$Y254,$G254)+IFERROR(IF(AND($V254<=AH$1,$W254>=AH$1),INDEX(Reliability!M$23:M$50,MATCH($T254,Reliability!$C$23:$C$50,0)),0),0)*$H254*$X254*$Y254),$D254)*$R254","v":0},{"$f":"MIN((IFERROR(IF(AND($V254<=AI$1,$W254>=AI$1),INDEX(Reliability!N$23:N$50,MATCH($S254,Reliability!$C$23:$C$50,0)),0),0)*IF($T254=\"n/a\",$D254*$Y254,$G254)+IFERROR(IF(AND($V254<=AI$1,$W254>=AI$1),INDEX(Reliability!N$23:N$50,MATCH($T254,Reliability!$C$23:$C$50,0)),0),0)*$H254*$X254*$Y254),$D254)*$R254","v":0},{"$f":"MIN((IFERROR(IF(AND($V254<=AJ$1,$W254>=AJ$1),INDEX(Reliability!O$23:O$50,MATCH($S254,Reliability!$C$23:$C$50,0)),0),0)*IF($T254=\"n/a\",$D254*$Y254,$G254)+IFERROR(IF(AND($V254<=AJ$1,$W254>=AJ$1),INDEX(Reliability!O$23:O$50,MATCH($T254,Reliability!$C$23:$C$50,0)),0),0)*$H254*$X254*$Y254),$D254)*$R254","v":0},{"$f":"MIN((IFERROR(IF(AND($V254<=AK$1,$W254>=AK$1),INDEX(Reliability!P$23:P$50,MATCH($S254,Reliability!$C$23:$C$50,0)),0),0)*IF($T254=\"n/a\",$D254*$Y254,$G254)+IFERROR(IF(AND($V254<=AK$1,$W254>=AK$1),INDEX(Reliability!P$23:P$50,MATCH($T254,Reliability!$C$23:$C$50,0)),0),0)*$H254*$X254*$Y254),$D254)*$R254","v":0}]
[null,{"$f":"unique_contracts!B256","v":0},{"$f":"unique_contracts!D256","v":0},{"$f":"unique_contracts!J256","v":0},{"$f":"unique_contracts!M256","v":0},{"$f":"unique_contracts!N256","v":0},{"$f":"unique_contracts!P256","v":0},{"$f":"unique_contracts!R256","v":0},{"$f":"unique_contracts!V256","v":0},{"$f":"unique_contracts!AB256","v":0},{"$f":"unique_contracts!AM256","v":0},{"$f":"unique_contracts!AN256","v":0},{"$f":"unique_contracts!AO256","v":0},{"$f":"unique_contracts!AP256","v":0},{"$f":"unique_contracts!AQ256","v":0},{"$f":"unique_contracts!AR256","v":0},{"$f":"unique_contracts!BP256","v":0},0,{"$f":"IFERROR(IF(AND(I255>0,E255=\"NotHybrid\"),_xlfn.CONCAT(MAX(MIN(ROUNDDOWN(I255/D255,0),8),4),INDEX(resources!$G:$G,MATCH(B255,resources!$A:$A,0))),INDEX(resources!$G:$G,MATCH(B255,resources!$A:$A,0))),\"n/a\")","v":"n/a"},"n/a","n/a",0,0,1,1,{"$f":"MIN((IFERROR(IF(AND($V255<=Z$1,$W255>=Z$1),INDEX(Reliability!E$23:E$50,MATCH($S255,Reliability!$C$23:$C$50,0)),0),0)*IF($T255=\"n/a\",$D255*$Y255,$G255)+IFERROR(IF(AND($V255<=Z$1,$W255>=Z$1),INDEX(Reliability!E$23:E$50,MATCH($T255,Reliability!$C$23:$C$50,0)),0),0)*$H255*$X255*$Y255),$D255)*$R255","v":0},{"$f":"MIN((IFERROR(IF(AND($V255<=AA$1,$W255>=AA$1),INDEX(Reliability!F$23:F$50,MATCH($S255,Reliability!$C$23:$C$50,0)),0),0)*IF($T255=\"n/a\",$D255*$Y255,$G255)+IFERROR(IF(AND($V255<=AA$1,$W255>=AA$1),INDEX(Reliability!F$23:F$50,MATCH($T255,Reliability!$C$23:$C$50,0)),0),0)*$H255*$X255*$Y255),$D255)*$R255","v":0},{"$f":"MIN((IFERROR(IF(AND($V255<=AB$1,$W255>=AB$1),INDEX(Reliability!G$23:G$50,MATCH($S255,Reliability!$C$23:$C$50,0)),0),0)*IF($T255=\"n/a\",$D255*$Y255,$G255)+IFERROR(IF(AND($V255<=AB$1,$W255>=AB$1),INDEX(Reliability!G$23:G$50,MATCH($T255,Reliability!$C$23:$C$50,0)),0),0)*$H255*$X255*$Y255),$D255)*$R255","v":0},{"$f":"MIN((IFERROR(IF(AND($V255<=AC$1,$W255>=AC$1),INDEX(Reliability!H$23:H$50,MATCH($S255,Reliability!$C$23:$C$50,0)),0),0)*IF($T255=\"n/a\",$D255*$Y255,$G255)+IFERROR(IF(AND($V255<=AC$1,$W255>=AC$1),INDEX(Reliability!H$23:H$50,MATCH($T255,Reliability!$C$23:$C$50,0)),0),0)*$H255*$X255*$Y255),$D255)*$R255","v":0},{"$f":"MIN((IFERROR(IF(AND($V255<=AD$1,$W255>=AD$1),INDEX(Reliability!I$23:I$50,MATCH($S255,Reliability!$C$23:$C$50,0)),0),0)*IF($T255=\"n/a\",$D255*$Y255,$G255)+IFERROR(IF(AND($V255<=AD$1,$W255>=AD$1),INDEX(Reliability!I$23:I$50,MATCH($T255,Reliability!$C$23:$C$50,0)),0),0)*$H255*$X255*$Y255),$D255)*$R255","v":0},{"$f":"MIN((IFERROR(IF(AND($V255<=AE$1,$W255>=AE$1),INDEX(Reliability!J$23:J$50,MATCH($S255,Reliability!$C$23:$C$50,0)),0),0)*IF($T255=\"n/a\",$D255*$Y255,$G255)+IFERROR(IF(AND($V255<=AE$1,$W255>=AE$1),INDEX(Reliability!J$23:J$50,MATCH($T255,Reliability!$C$23:$C$50,0)),0),0)*$H255*$X255*$Y255),$D255)*$R255","v":0},{"$f":"MIN((IFERROR(IF(AND($V255<=AF$1,$W255>=AF$1),INDEX(Reliability!K$23:K$50,MATCH($S255,Reliability!$C$23:$C$50,0)),0),0)*IF($T255=\"n/a\",$D255*$Y255,$G255)+IFERROR(IF(AND($V255<=AF$1,$W255>=AF$1),INDEX(Reliability!K$23:K$50,MATCH($T255,Reliability!$C$23:$C$50,0)),0),0)*$H255*$X255*$Y255),$D255)*$R255","v":0},{"$f":"MIN((IFERROR(IF(AND($V255<=AG$1,$W255>=AG$1),INDEX(Reliability!L$23:L$50,MATCH($S255,Reliability!$C$23:$C$50,0)),0),0)*IF($T255=\"n/a\",$D255*$Y255,$G255)+IFERROR(IF(AND($V255<=AG$1,$W255>=AG$1),INDEX(Reliability!L$23:L$50,MATCH($T255,Reliability!$C$23:$C$50,0)),0),0)*$H255*$X255*$Y255),$D255)*$R255","v":0},{"$f":"MIN((IFERROR(IF(AND($V255<=AH$1,$W255>=AH$1),INDEX(Reliability!M$23:M$50,MATCH($S255,Reliability!$C$23:$C$50,0)),0),0)*IF($T255=\"n/a\",$D255*$Y255,$G255)+IFERROR(IF(AND($V255<=AH$1,$W255>=AH$1),INDEX(Reliability!M$23:M$50,MATCH($T255,Reliability!$C$23:$C$50,0)),0),0)*$H255*$X255*$Y255),$D255)*$R255","v":0},{"$f":"MIN((IFERROR(IF(AND($V255<=AI$1,$W255>=AI$1),INDEX(Reliability!N$23:N$50,MATCH($S255,Reliability!$C$23:$C$50,0)),0),0)*IF($T255=\"n/a\",$D255*$Y255,$G255)+IFERROR(IF(AND($V255<=AI$1,$W255>=AI$1),INDEX(Reliability!N$23:N$50,MATCH($T255,Reliability!$C$23:$C$50,0)),0),0)*$H255*$X255*$Y255),$D255)*$R255","v":0},{"$f":"MIN((IFERROR(IF(AND($V255<=AJ$1,$W255>=AJ$1),INDEX(Reliability!O$23:O$50,MATCH($S255,Reliability!$C$23:$C$50,0)),0),0)*IF($T255=\"n/a\",$D255*$Y255,$G255)+IFERROR(IF(AND($V255<=AJ$1,$W255>=AJ$1),INDEX(Reliability!O$23:O$50,MATCH($T255,Reliability!$C$23:$C$50,0)),0),0)*$H255*$X255*$Y255),$D255)*$R255","v":0},{"$f":"MIN((IFERROR(IF(AND($V255<=AK$1,$W255>=AK$1),INDEX(Reliability!P$23:P$50,MATCH($S255,Reliability!$C$23:$C$50,0)),0),0)*IF($T255=\"n/a\",$D255*$Y255,$G255)+IFERROR(IF(AND($V255<=AK$1,$W255>=AK$1),INDEX(Reliability!P$23:P$50,MATCH($T255,Reliability!$C$23:$C$50,0)),0),0)*$H255*$X255*$Y255),$D255)*$R255","v":0}]
[null,{"$f":"unique_contracts!B257","v":0},{"$f":"unique_contracts!D257","v":0},{"$f":"unique_contracts!J257","v":0},{"$f":"unique_contracts!M257","v":0},{"$f":"unique_contracts!N257","v":0},{"$f":"unique_contracts!P257","v":0},{"$f":"unique_contracts!R257","v":0},{"$f":"unique_contracts!V257","v":0},{"$f":"unique_contracts!AB257","v":0},{"$f":"unique_contracts!AM257","v":0},{"$f":"unique_contracts!AN257","v":0},{"$f":"unique_contracts!AO257","v":0},{"$f":"unique_contracts!AP257","v":0},{"$f":"unique_contracts!AQ257","v":0},{"$f":"unique_contracts!AR257","v":0},{"$f":"unique_contracts!BP257","v":0},0,{"$f":"IFERROR(IF(AND(I256>0,E256=\"NotHybrid\"),_xlfn.CONCAT(MAX(MIN(ROUNDDOWN(I256/D256,0),8),4),INDEX(resources!$G:$G,MATCH(B256,resources!$A:$A,0))),INDEX(resources!$G:$G,MATCH(B256,resources!$A:$A,0))),\"n/a\")","v":"n/a"},"n/a","n/a",0,0,1,1,{"$f":"MIN((IFERROR(IF(AND($V256<=Z$1,$W256>=Z$1),INDEX(Reliability!E$23:E$50,MATCH($S256,Reliability!$C$23:$C$50,0)),0),0)*IF($T256=\"n/a\",$D256*$Y256,$G256)+IFERROR(IF(AND($V256<=Z$1,$W256>=Z$1),INDEX(Reliability!E$23:E$50,MATCH($T256,Reliability!$C$23:$C$50,0)),0),0)*$H256*$X256*$Y256),$D256)*$R256","v":0},{"$f":"MIN((IFERROR(IF(AND($V256<=AA$1,$W256>=AA$1),INDEX(Reliability!F$23:F$50,MATCH($S256,Reliability!$C$23:$C$50,0)),0),0)*IF($T256=\"n/a\",$D256*$Y256,$G256)+IFERROR(IF(AND($V256<=AA$1,$W256>=AA$1),INDEX(Reliability!F$23:F$50,MATCH($T256,Reliability!$C$23:$C$50,0)),0),0)*$H256*$X256*$Y256),$D256)*$R256","v":0},{"$f":"MIN((IFERROR(IF(AND($V256<=AB$1,$W256>=AB$1),INDEX(Reliability!G$23:G$50,MATCH($S256,Reliability!$C$23:$C$50,0)),0),0)*IF($T256=\"n/a\",$D256*$Y256,$G256)+IFERROR(IF(AND($V256<=AB$1,$W256>=AB$1),INDEX(Reliability!G$23:G$50,MATCH($T256,Reliability!$C$23:$C$50,0)),0),0)*$H256*$X256*$Y256),$D256)*$R256","v":0},{"$f":"MIN((IFERROR(IF(AND($V256<=AC$1,$W256>=AC$1),INDEX(Reliability!H$23:H$50,MATCH($S256,Reliability!$C$23:$C$50,0)),0),0)*IF($T256=\"n/a\",$D256*$Y256,$G256)+IFERROR(IF(AND($V256<=AC$1,$W256>=AC$1),INDEX(Reliability!H$23:H$50,MATCH($T256,Reliability!$C$23:$C$50,0)),0),0)*$H256*$X256*$Y256),$D256)*$R256","v":0},{"$f":"MIN((IFERROR(IF(AND($V256<=AD$1,$W256>=AD$1),INDEX(Reliability!I$23:I$50,MATCH($S256,Reliability!$C$23:$C$50,0)),0),0)*IF($T256=\"n/a\",$D256*$Y256,$G256)+IFERROR(IF(AND($V256<=AD$1,$W256>=AD$1),INDEX(Reliability!I$23:I$50,MATCH($T256,Reliability!$C$23:$C$50,0)),0),0)*$H256*$X256*$Y256),$D256)*$R256","v":0},{"$f":"MIN((IFERROR(IF(AND($V256<=AE$1,$W256>=AE$1),INDEX(Reliability!J$23:J$50,MATCH($S256,Reliability!$C$23:$C$50,0)),0),0)*IF($T256=\"n/a\",$D256*$Y256,$G256)+IFERROR(IF(AND($V256<=AE$1,$W256>=AE$1),INDEX(Reliability!J$23:J$50,MATCH($T256,Reliability!$C$23:$C$50,0)),0),0)*$H256*$X256*$Y256),$D256)*$R256","v":0},{"$f":"MIN((IFERROR(IF(AND($V256<=AF$1,$W256>=AF$1),INDEX(Reliability!K$23:K$50,MATCH($S256,Reliability!$C$23:$C$50,0)),0),0)*IF($T256=\"n/a\",$D256*$Y256,$G256)+IFERROR(IF(AND($V256<=AF$1,$W256>=AF$1),INDEX(Reliability!K$23:K$50,MATCH($T256,Reliability!$C$23:$C$50,0)),0),0)*$H256*$X256*$Y256),$D256)*$R256","v":0},{"$f":"MIN((IFERROR(IF(AND($V256<=AG$1,$W256>=AG$1),INDEX(Reliability!L$23:L$50,MATCH($S256,Reliability!$C$23:$C$50,0)),0),0)*IF($T256=\"n/a\",$D256*$Y256,$G256)+IFERROR(IF(AND($V256<=AG$1,$W256>=AG$1),INDEX(Reliability!L$23:L$50,MATCH($T256,Reliability!$C$23:$C$50,0)),0),0)*$H256*$X256*$Y256),$D256)*$R256","v":0},{"$f":"MIN((IFERROR(IF(AND($V256<=AH$1,$W256>=AH$1),INDEX(Reliability!M$23:M$50,MATCH($S256,Reliability!$C$23:$C$50,0)),0),0)*IF($T256=\"n/a\",$D256*$Y256,$G256)+IFERROR(IF(AND($V256<=AH$1,$W256>=AH$1),INDEX(Reliability!M$23:M$50,MATCH($T256,Reliability!$C$23:$C$50,0)),0),0)*$H256*$X256*$Y256),$D256)*$R256","v":0},{"$f":"MIN((IFERROR(IF(AND($V256<=AI$1,$W256>=AI$1),INDEX(Reliability!N$23:N$50,MATCH($S256,Reliability!$C$23:$C$50,0)),0),0)*IF($T256=\"n/a\",$D256*$Y256,$G256)+IFERROR(IF(AND($V256<=AI$1,$W256>=AI$1),INDEX(Reliability!N$23:N$50,MATCH($T256,Reliability!$C$23:$C$50,0)),0),0)*$H256*$X256*$Y256),$D256)*$R256","v":0},{"$f":"MIN((IFERROR(IF(AND($V256<=AJ$1,$W256>=AJ$1),INDEX(Reliability!O$23:O$50,MATCH($S256,Reliability!$C$23:$C$50,0)),0),0)*IF($T256=\"n/a\",$D256*$Y256,$G256)+IFERROR(IF(AND($V256<=AJ$1,$W256>=AJ$1),INDEX(Reliability!O$23:O$50,MATCH($T256,Reliability!$C$23:$C$50,0)),0),0)*$H256*$X256*$Y256),$D256)*$R256","v":0},{"$f":"MIN((IFERROR(IF(AND($V256<=AK$1,$W256>=AK$1),INDEX(Reliability!P$23:P$50,MATCH($S256,Reliability!$C$23:$C$50,0)),0),0)*IF($T256=\"n/a\",$D256*$Y256,$G256)+IFERROR(IF(AND($V256<=AK$1,$W256>=AK$1),INDEX(Reliability!P$23:P$50,MATCH($T256,Reliability!$C$23:$C$50,0)),0),0)*$H256*$X256*$Y256),$D256)*$R256","v":0}]
[null,{"$f":"unique_contracts!B258","v":0},{"$f":"unique_contracts!D258","v":0},{"$f":"unique_contracts!J258","v":0},{"$f":"unique_contracts!M258","v":0},{"$f":"unique_contracts!N258","v":0},{"$f":"unique_contracts!P258","v":0},{"$f":"unique_contracts!R258","v":0},{"$f":"unique_contracts!V258","v":0},{"$f":"unique_contracts!AB258","v":0},{"$f":"unique_contracts!AM258","v":0},{"$f":"unique_contracts!AN258","v":0},{"$f":"unique_contracts!AO258","v":0},{"$f":"unique_contracts!AP258","v":0},{"$f":"unique_contracts!AQ258","v":0},{"$f":"unique_contracts!AR258","v":0},{"$f":"unique_contracts!BP258","v":0},0,{"$f":"IFERROR(IF(AND(I257>0,E257=\"NotHybrid\"),_xlfn.CONCAT(MAX(MIN(ROUNDDOWN(I257/D257,0),8),4),INDEX(resources!$G:$G,MATCH(B257,resources!$A:$A,0))),INDEX(resources!$G:$G,MATCH(B257,resources!$A:$A,0))),\"n/a\")","v":"n/a"},"n/a","n/a",0,0,1,1,{"$f":"MIN((IFERROR(IF(AND($V257<=Z$1,$W257>=Z$1),INDEX(Reliability!E$23:E$50,MATCH($S257,Reliability!$C$23:$C$50,0)),0),0)*IF($T257=\"n/a\",$D257*$Y257,$G257)+IFERROR(IF(AND($V257<=Z$1,$W257>=Z$1),INDEX(Reliability!E$23:E$50,MATCH($T257,Reliability!$C$23:$C$50,0)),0),0)*$H257*$X257*$Y257),$D257)*$R257","v":0},{"$f":"MIN((IFERROR(IF(AND($V257<=AA$1,$W257>=AA$1),INDEX(Reliability!F$23:F$50,MATCH($S257,Reliability!$C$23:$C$50,0)),0),0)*IF($T257=\"n/a\",$D257*$Y257,$G257)+IFERROR(IF(AND($V257<=AA$1,$W257>=AA$1),INDEX(Reliability!F$23:F$50,MATCH($T257,Reliability!$C$23:$C$50,0)),0),0)*$H257*$X257*$Y257),$D257)*$R257","v":0},{"$f":"MIN((IFERROR(IF(AND($V257<=AB$1,$W257>=AB$1),INDEX(Reliability!G$23:G$50,MATCH($S257,Reliability!$C$23:$C$50,0)),0),0)*IF($T257=\"n/a\",$D257*$Y257,$G257)+IFERROR(IF(AND($V257<=AB$1,$W257>=AB$1),INDEX(Reliability!G$23:G$50,MATCH($T257,Reliability!$C$23:$C$50,0)),0),0)*$H257*$X257*$Y257),$D257)*$R257","v":0},{"$f":"MIN((IFERROR(IF(AND($V257<=AC$1,$W257>=AC$1),INDEX(Reliability!H$23:H$50,MATCH($S257,Reliability!$C$23:$C$50,0)),0),0)*IF($T257=\"n/a\",$D257*$Y257,$G257)+IFERROR(IF(AND($V257<=AC$1,$W257>=AC$1),INDEX(Reliability!H$23:H$50,MATCH($T257,Reliability!$C$23:$C$50,0)),0),0)*$H257*$X257*$Y257),$D257)*$R257","v":0},{"$f":"MIN((IFERROR(IF(AND($V257<=AD$1,$W257>=AD$1),INDEX(Reliability!I$23:I$50,MATCH($S257,Reliability!$C$23:$C$50,0)),0),0)*IF($T257=\"n/a\",$D257*$Y257,$G257)+IFERROR(IF(AND($V257<=AD$1,$W257>=AD$1),INDEX(Reliability!I$23:I$50,MATCH($T257,Reliability!$C$23:$C$50,0)),0),0)*$H257*$X257*$Y257),$D257)*$R257","v":0},{"$f":"MIN((IFERROR(IF(AND($V257<=AE$1,$W257>=AE$1),INDEX(Reliability!J$23:J$50,MATCH($S257,Reliability!$C$23:$C$50,0)),0),0)*IF($T257=\"n/a\",$D257*$Y257,$G257)+IFERROR(IF(AND($V257<=AE$1,$W257>=AE$1),INDEX(Reliability!J$23:J$50,MATCH($T257,Reliability!$C$23:$C$50,0)),0),0)*$H257*$X257*$Y257),$D257)*$R257","v":0},{"$f":"MIN((IFERROR(IF(AND($V257<=AF$1,$W257>=AF$1),INDEX(Reliability!K$23:K$50,MATCH($S257,Reliability!$C$23:$C$50,0)),0),0)*IF($T257=\"n/a\",$D257*$Y257,$G257)+IFERROR(IF(AND($V257<=AF$1,$W257>=AF$1),INDEX(Reliability!K$23:K$50,MATCH($T257,Reliability!$C$23:$C$50,0)),0),0)*$H257*$X257*$Y257),$D257)*$R257","v":0},{"$f":"MIN((IFERROR(IF(AND($V257<=AG$1,$W257>=AG$1),INDEX(Reliability!L$23:L$50,MATCH($S257,Reliability!$C$23:$C$50,0)),0),0)*IF($T257=\"n/a\",$D257*$Y257,$G257)+IFERROR(IF(AND($V257<=AG$1,$W257>=AG$1),INDEX(Reliability!L$23:L$50,MATCH($T257,Reliability!$C$23:$C$50,0)),0),0)*$H257*$X257*$Y257),$D257)*$R257","v":0},{"$f":"MIN((IFERROR(IF(AND($V257<=AH$1,$W257>=AH$1),INDEX(Reliability!M$23:M$50,MATCH($S257,Reliability!$C$23:$C$50,0)),0),0)*IF($T257=\"n/a\",$D257*$Y257,$G257)+IFERROR(IF(AND($V257<=AH$1,$W257>=AH$1),INDEX(Reliability!M$23:M$50,MATCH($T257,Reliability!$C$23:$C$50,0)),0),0)*$H257*$X257*$Y257),$D257)*$R257","v":0},{"$f":"MIN((IFERROR(IF(AND($V257<=AI$1,$W257>=AI$1),INDEX(Reliability!N$23:N$50,MATCH($S257,Reliability!$C$23:$C$50,0)),0),0)*IF($T257=\"n/a\",$D257*$Y257,$G257)+IFERROR(IF(AND($V257<=AI$1,$W257>=AI$1),INDEX(Reliability!N$23:N$50,MATCH($T257,Reliability!$C$23:$C$50,0)),0),0)*$H257*$X257*$Y257),$D257)*$R257","v":0},{"$f":"MIN((IFERROR(IF(AND($V257<=AJ$1,$W257>=AJ$1),INDEX(Reliability!O$23:O$50,MATCH($S257,Reliability!$C$23:$C$50,0)),0),0)*IF($T257=\"n/a\",$D257*$Y257,$G257)+IFERROR(IF(AND($V257<=AJ$1,$W257>=AJ$1),INDEX(Reliability!O$23:O$50,MATCH($T257,Reliability!$C$23:$C$50,0)),0),0)*$H257*$X257*$Y257),$D257)*$R257","v":0},{"$f":"MIN((IFERROR(IF(AND($V257<=AK$1,$W257>=AK$1),INDEX(Reliability!P$23:P$50,MATCH($S257,Reliability!$C$23:$C$50,0)),0),0)*IF($T257=\"n/a\",$D257*$Y257,$G257)+IFERROR(IF(AND($V257<=AK$1,$W257>=AK$1),INDEX(Reliability!P$23:P$50,MATCH($T257,Reliability!$C$23:$C$50,0)),0),0)*$H257*$X257*$Y257),$D257)*$R257","v":0}]
[null,{"$f":"unique_contracts!B259","v":0},{"$f":"unique_contracts!D259","v":0},{"$f":"unique_contracts!J259","v":0},{"$f":"unique_contracts!M259","v":0},{"$f":"unique_contracts!N259","v":0},{"$f":"unique_contracts!P259","v":0},{"$f":"unique_contracts!R259","v":0},{"$f":"unique_contracts!V259","v":0},{"$f":"unique_contracts!AB259","v":0},{"$f":"unique_contracts!AM259","v":0},{"$f":"unique_contracts!AN259","v":0},{"$f":"unique_contracts!AO259","v":0},{"$f":"unique_contracts!AP259","v":0},{"$f":"unique_contracts!AQ259","v":0},{"$f":"unique_contracts!AR259","v":0},{"$f":"unique_contracts!BP259","v":0},0,{"$f":"IFERROR(IF(AND(I258>0,E258=\"NotHybrid\"),_xlfn.CONCAT(MAX(MIN(ROUNDDOWN(I258/D258,0),8),4),INDEX(resources!$G:$G,MATCH(B258,resources!$A:$A,0))),INDEX(resources!$G:$G,MATCH(B258,resources!$A:$A,0))),\"n/a\")","v":"n/a"},"n/a","n/a",0,0,1,1,{"$f":"MIN((IFERROR(IF(AND($V258<=Z$1,$W258>=Z$1),INDEX(Reliability!E$23:E$50,MATCH($S258,Reliability!$C$23:$C$50,0)),0),0)*IF($T258=\"n/a\",$D258*$Y258,$G258)+IFERROR(IF(AND($V258<=Z$1,$W258>=Z$1),INDEX(Reliability!E$23:E$50,MATCH($T258,Reliability!$C$23:$C$50,0)),0),0)*$H258*$X258*$Y258),$D258)*$R258","v":0},{"$f":"MIN((IFERROR(IF(AND($V258<=AA$1,$W258>=AA$1),INDEX(Reliability!F$23:F$50,MATCH($S258,Reliability!$C$23:$C$50,0)),0),0)*IF($T258=\"n/a\",$D258*$Y258,$G258)+IFERROR(IF(AND($V258<=AA$1,$W258>=AA$1),INDEX(Reliability!F$23:F$50,MATCH($T258,Reliability!$C$23:$C$50,0)),0),0)*$H258*$X258*$Y258),$D258)*$R258","v":0},{"$f":"MIN((IFERROR(IF(AND($V258<=AB$1,$W258>=AB$1),INDEX(Reliability!G$23:G$50,MATCH($S258,Reliability!$C$23:$C$50,0)),0),0)*IF($T258=\"n/a\",$D258*$Y258,$G258)+IFERROR(IF(AND($V258<=AB$1,$W258>=AB$1),INDEX(Reliability!G$23:G$50,MATCH($T258,Reliability!$C$23:$C$50,0)),0),0)*$H258*$X258*$Y258),$D258)*$R258","v":0},{"$f":"MIN((IFERROR(IF(AND($V258<=AC$1,$W258>=AC$1),INDEX(Reliability!H$23:H$50,MATCH($S258,Reliability!$C$23:$C$50,0)),0),0)*IF($T258=\"n/a\",$D258*$Y258,$G258)+IFERROR(IF(AND($V258<=AC$1,$W258>=AC$1),INDEX(Reliability!H$23:H$50,MATCH($T258,Reliability!$C$23:$C$50,0)),0),0)*$H258*$X258*$Y258),$D258)*$R258","v":0},{"$f":"MIN((IFERROR(IF(AND($V258<=AD$1,$W258>=AD$1),INDEX(Reliability!I$23:I$50,MATCH($S258,Reliability!$C$23:$C$50,0)),0),0)*IF($T258=\"n/a\",$D258*$Y258,$G258)+IFERROR(IF(AND($V258<=AD$1,$W258>=AD$1),INDEX(Reliability!I$23:I$50,MATCH($T258,Reliability!$C$23:$C$50,0)),0),0)*$H258*$X258*$Y258),$D258)*$R258","v":0},{"$f":"MIN((IFERROR(IF(AND($V258<=AE$1,$W258>=AE$1),INDEX(Reliability!J$23:J$50,MATCH($S258,Reliability!$C$23:$C$50,0)),0),0)*IF($T258=\"n/a\",$D258*$Y258,$G258)+IFERROR(IF(AND($V258<=AE$1,$W258>=AE$1),INDEX(Reliability!J$23:J$50,MATCH($T258,Reliability!$C$23:$C$50,0)),0),0)*$H258*$X258*$Y258),$D258)*$R258","v":0},{"$f":"MIN((IFERROR(IF(AND($V258<=AF$1,$W258>=AF$1),INDEX(Reliability!K$23:K$50,MATCH($S258,Reliability!$C$23:$C$50,0)),0),0)*IF($T258=\"n/a\",$D258*$Y258,$G258)+IFERROR(IF(AND($V258<=AF$1,$W258>=AF$1),INDEX(Reliability!K$23:K$50,MATCH($T258,Reliability!$C$23:$C$50,0)),0),0)*$H258*$X258*$Y258),$D258)*$R258","v":0},{"$f":"MIN((IFERROR(IF(AND($V258<=AG$1,$W258>=AG$1),INDEX(Reliability!L$23:L$50,MATCH($S258,Reliability!$C$23:$C$50,0)),0),0)*IF($T258=\"n/a\",$D258*$Y258,$G258)+IFERROR(IF(AND($V258<=AG$1,$W258>=AG$1),INDEX(Reliability!L$23:L$50,MATCH($T258,Reliability!$C$23:$C$50,0)),0),0)*$H258*$X258*$Y258),$D258)*$R258","v":0},{"$f":"MIN((IFERROR(IF(AND($V258<=AH$1,$W258>=AH$1),INDEX(Reliability!M$23:M$50,MATCH($S258,Reliability!$C$23:$C$50,0)),0),0)*IF($T258=\"n/a\",$D258*$Y258,$G258)+IFERROR(IF(AND($V258<=AH$1,$W258>=AH$1),INDEX(Reliability!M$23:M$50,MATCH($T258,Reliability!$C$23:$C$50,0)),0),0)*$H258*$X258*$Y258),$D258)*$R258","v":0},{"$f":"MIN((IFERROR(IF(AND($V258<=AI$1,$W258>=AI$1),INDEX(Reliability!N$23:N$50,MATCH($S258,Reliability!$C$23:$C$50,0)),0),0)*IF($T258=\"n/a\",$D258*$Y258,$G258)+IFERROR(IF(AND($V258<=AI$1,$W258>=AI$1),INDEX(Reliability!N$23:N$50,MATCH($T258,Reliability!$C$23:$C$50,0)),0),0)*$H258*$X258*$Y258),$D258)*$R258","v":0},{"$f":"MIN((IFERROR(IF(AND($V258<=AJ$1,$W258>=AJ$1),INDEX(Reliability!O$23:O$50,MATCH($S258,Reliability!$C$23:$C$50,0)),0),0)*IF($T258=\"n/a\",$D258*$Y258,$G258)+IFERROR(IF(AND($V258<=AJ$1,$W258>=AJ$1),INDEX(Reliability!O$23:O$50,MATCH($T258,Reliability!$C$23:$C$50,0)),0),0)*$H258*$X258*$Y258),$D258)*$R258","v":0},{"$f":"MIN((IFERROR(IF(AND($V258<=AK$1,$W258>=AK$1),INDEX(Reliability!P$23:P$50,MATCH($S258,Reliability!$C$23:$C$50,0)),0),0)*IF($T258=\"n/a\",$D258*$Y258,$G258)+IFERROR(IF(AND($V258<=AK$1,$W258>=AK$1),INDEX(Reliability!P$23:P$50,MATCH($T258,Reliability!$C$23:$C$50,0)),0),0)*$H258*$X258*$Y258),$D258)*$R258","v":0}]
[null,{"$f":"unique_contracts!B260","v":0},{"$f":"unique_contracts!D260","v":0},{"$f":"unique_contracts!J260","v":0},{"$f":"unique_contracts!M260","v":0},{"$f":"unique_contracts!N260","v":0},{"$f":"unique_contracts!P260","v":0},{"$f":"unique_contracts!R260","v":0},{"$f":"unique_contracts!V260","v":0},{"$f":"unique_contracts!AB260","v":0},{"$f":"unique_contracts!AM260","v":0},{"$f":"unique_contracts!AN260","v":0},{"$f":"unique_contracts!AO260","v":0},{"$f":"unique_contracts!AP260","v":0},{"$f":"unique_contracts!AQ260","v":0},{"$f":"unique_contracts!AR260","v":0},{"$f":"unique_contracts!BP260","v":0},0,{"$f":"IFERROR(IF(AND(I259>0,E259=\"NotHybrid\"),_xlfn.CONCAT(MAX(MIN(ROUNDDOWN(I259/D259,0),8),4),INDEX(resources!$G:$G,MATCH(B259,resources!$A:$A,0))),INDEX(resources!$G:$G,MATCH(B259,resources!$A:$A,0))),\"n/a\")","v":"n/a"},"n/a","n/a",0,0,1,1,{"$f":"MIN((IFERROR(IF(AND($V259<=Z$1,$W259>=Z$1),INDEX(Reliability!E$23:E$50,MATCH($S259,Reliability!$C$23:$C$50,0)),0),0)*IF($T259=\"n/a\",$D259*$Y259,$G259)+IFERROR(IF(AND($V259<=Z$1,$W259>=Z$1),INDEX(Reliability!E$23:E$50,MATCH($T259,Reliability!$C$23:$C$50,0)),0),0)*$H259*$X259*$Y259),$D259)*$R259","v":0},{"$f":"MIN((IFERROR(IF(AND($V259<=AA$1,$W259>=AA$1),INDEX(Reliability!F$23:F$50,MATCH($S259,Reliability!$C$23:$C$50,0)),0),0)*IF($T259=\"n/a\",$D259*$Y259,$G259)+IFERROR(IF(AND($V259<=AA$1,$W259>=AA$1),INDEX(Reliability!F$23:F$50,MATCH($T259,Reliability!$C$23:$C$50,0)),0),0)*$H259*$X259*$Y259),$D259)*$R259","v":0},{"$f":"MIN((IFERROR(IF(AND($V259<=AB$1,$W259>=AB$1),INDEX(Reliability!G$23:G$50,MATCH($S259,Reliability!$C$23:$C$50,0)),0),0)*IF($T259=\"n/a\",$D259*$Y259,$G259)+IFERROR(IF(AND($V259<=AB$1,$W259>=AB$1),INDEX(Reliability!G$23:G$50,MATCH($T259,Reliability!$C$23:$C$50,0)),0),0)*$H259*$X259*$Y259),$D259)*$R259","v":0},{"$f":"MIN((IFERROR(IF(AND($V259<=AC$1,$W259>=AC$1),INDEX(Reliability!H$23:H$50,MATCH($S259,Reliability!$C$23:$C$50,0)),0),0)*IF($T259=\"n/a\",$D259*$Y259,$G259)+IFERROR(IF(AND($V259<=AC$1,$W259>=AC$1),INDEX(Reliability!H$23:H$50,MATCH($T259,Reliability!$C$23:$C$50,0)),0),0)*$H259*$X259*$Y259),$D259)*$R259","v":0},{"$f":"MIN((IFERROR(IF(AND($V259<=AD$1,$W259>=AD$1),INDEX(Reliability!I$23:I$50,MATCH($S259,Reliability!$C$23:$C$50,0)),0),0)*IF($T259=\"n/a\",$D259*$Y259,$G259)+IFERROR(IF(AND($V259<=AD$1,$W259>=AD$1),INDEX(Reliability!I$23:I$50,MATCH($T259,Reliability!$C$23:$C$50,0)),0),0)*$H259*$X259*$Y259),$D259)*$R259","v":0},{"$f":"MIN((IFERROR(IF(AND($V259<=AE$1,$W259>=AE$1),INDEX(Reliability!J$23:J$50,MATCH($S259,Reliability!$C$23:$C$50,0)),0),0)*IF($T259=\"n/a\",$D259*$Y259,$G259)+IFERROR(IF(AND($V259<=AE$1,$W259>=AE$1),INDEX(Reliability!J$23:J$50,MATCH($T259,Reliability!$C$23:$C$50,0)),0),0)*$H259*$X259*$Y259),$D259)*$R259","v":0},{"$f":"MIN((IFERROR(IF(AND($V259<=AF$1,$W259>=AF$1),INDEX(Reliability!K$23:K$50,MATCH($S259,Reliability!$C$23:$C$50,0)),0),0)*IF($T259=\"n/a\",$D259*$Y259,$G259)+IFERROR(IF(AND($V259<=AF$1,$W259>=AF$1),INDEX(Reliability!K$23:K$50,MATCH($T259,Reliability!$C$23:$C$50,0)),0),0)*$H259*$X259*$Y259),$D259)*$R259","v":0},{"$f":"MIN((IFERROR(IF(AND($V259<=AG$1,$W259>=AG$1),INDEX(Reliability!L$23:L$50,MATCH($S259,Reliability!$C$23:$C$50,0)),0),0)*IF($T259=\"n/a\",$D259*$Y259,$G259)+IFERROR(IF(AND($V259<=AG$1,$W259>=AG$1),INDEX(Reliability!L$23:L$50,MATCH($T259,Reliability!$C$23:$C$50,0)),0),0)*$H259*$X259*$Y259),$D259)*$R259","v":0},{"$f":"MIN((IFERROR(IF(AND($V259<=AH$1,$W259>=AH$1),INDEX(Reliability!M$23:M$50,MATCH($S259,Reliability!$C$23:$C$50,0)),0),0)*IF($T259=\"n/a\",$D259*$Y259,$G259)+IFERROR(IF(AND($V259<=AH$1,$W259>=AH$1),INDEX(Reliability!M$23:M$50,MATCH($T259,Reliability!$C$23:$C$50,0)),0),0)*$H259*$X259*$Y259),$D259)*$R259","v":0},{"$f":"MIN((IFERROR(IF(AND($V259<=AI$1,$W259>=AI$1),INDEX(Reliability!N$23:N$50,MATCH($S259,Reliability!$C$23:$C$50,0)),0),0)*IF($T259=\"n/a\",$D259*$Y259,$G259)+IFERROR(IF(AND($V259<=AI$1,$W259>=AI$1),INDEX(Reliability!N$23:N$50,MATCH($T259,Reliability!$C$23:$C$50,0)),0),0)*$H259*$X259*$Y259),$D259)*$R259","v":0},{"$f":"MIN((IFERROR(IF(AND($V259<=AJ$1,$W259>=AJ$1),INDEX(Reliability!O$23:O$50,MATCH($S259,Reliability!$C$23:$C$50,0)),0),0)*IF($T259=\"n/a\",$D259*$Y259,$G259)+IFERROR(IF(AND($V259<=AJ$1,$W259>=AJ$1),INDEX(Reliability!O$23:O$50,MATCH($T259,Reliability!$C$23:$C$50,0)),0),0)*$H259*$X259*$Y259),$D259)*$R259","v":0},{"$f":"MIN((IFERROR(IF(AND($V259<=AK$1,$W259>=AK$1),INDEX(Reliability!P$23:P$50,MATCH($S259,Reliability!$C$23:$C$50,0)),0),0)*IF($T259=\"n/a\",$D259*$Y259,$G259)+IFERROR(IF(AND($V259<=AK$1,$W259>=AK$1),INDEX(Reliability!P$23:P$50,MATCH($T259,Reliability!$C$23:$C$50,0)),0),0)*$H259*$X259*$Y259),$D259)*$R259","v":0}]
[null,{"$f":"unique_contracts!B261","v":0},{"$f":"unique_contracts!D261","v":0},{"$f":"unique_contracts!J261","v":0},{"$f":"unique_contracts!M261","v":0},{"$f":"unique_contracts!N261","v":0},{"$f":"unique_contracts!P261","v":0},{"$f":"unique_contracts!R261","v":0},{"$f":"unique_contracts!V261","v":0},{"$f":"unique_contracts!AB261","v":0},{"$f":"unique_contracts!AM261","v":0},{"$f":"unique_contracts!AN261","v":0},{"$f":"unique_contracts!AO261","v":0},{"$f":"unique_contracts!AP261","v":0},{"$f":"unique_contracts!AQ261","v":0},{"$f":"unique_contracts!AR261","v":0},{"$f":"unique_contracts!BP261","v":0},0,{"$f":"IFERROR(IF(AND(I260>0,E260=\"NotHybrid\"),_xlfn.CONCAT(MAX(MIN(ROUNDDOWN(I260/D260,0),8),4),INDEX(resources!$G:$G,MATCH(B260,resources!$A:$A,0))),INDEX(resources!$G:$G,MATCH(B260,resources!$A:$A,0))),\"n/a\")","v":"n/a"},"n/a","n/a",0,0,1,1,{"$f":"MIN((IFERROR(IF(AND($V260<=Z$1,$W260>=Z$1),INDEX(Reliability!E$23:E$50,MATCH($S260,Reliability!$C$23:$C$50,0)),0),0)*IF($T260=\"n/a\",$D260*$Y260,$G260)+IFERROR(IF(AND($V260<=Z$1,$W260>=Z$1),INDEX(Reliability!E$23:E$50,MATCH($T260,Reliability!$C$23:$C$50,0)),0),0)*$H260*$X260*$Y260),$D260)*$R260","v":0},{"$f":"MIN((IFERROR(IF(AND($V260<=AA$1,$W260>=AA$1),INDEX(Reliability!F$23:F$50,MATCH($S260,Reliability!$C$23:$C$50,0)),0),0)*IF($T260=\"n/a\",$D260*$Y260,$G260)+IFERROR(IF(AND($V260<=AA$1,$W260>=AA$1),INDEX(Reliability!F$23:F$50,MATCH($T260,Reliability!$C$23:$C$50,0)),0),0)*$H260*$X260*$Y260),$D260)*$R260","v":0},{"$f":"MIN((IFERROR(IF(AND($V260<=AB$1,$W260>=AB$1),INDEX(Reliability!G$23:G$50,MATCH($S260,Reliability!$C$23:$C$50,0)),0),0)*IF($T260=\"n/a\",$D260*$Y260,$G260)+IFERROR(IF(AND($V260<=AB$1,$W260>=AB$1),INDEX(Reliability!G$23:G$50,MATCH($T260,Reliability!$C$23:$C$50,0)),0),0)*$H260*$X260*$Y260),$D260)*$R260","v":0},{"$f":"MIN((IFERROR(IF(AND($V260<=AC$1,$W260>=AC$1),INDEX(Reliability!H$23:H$50,MATCH($S260,Reliability!$C$23:$C$50,0)),0),0)*IF($T260=\"n/a\",$D260*$Y260,$G260)+IFERROR(IF(AND($V260<=AC$1,$W260>=AC$1),INDEX(Reliability!H$23:H$50,MATCH($T260,Reliability!$C$23:$C$50,0)),0),0)*$H260*$X260*$Y260),$D260)*$R260","v":0},{"$f":"MIN((IFERROR(IF(AND($V260<=AD$1,$W260>=AD$1),INDEX(Reliability!I$23:I$50,MATCH($S260,Reliability!$C$23:$C$50,0)),0),0)*IF($T260=\"n/a\",$D260*$Y260,$G260)+IFERROR(IF(AND($V260<=AD$1,$W260>=AD$1),INDEX(Reliability!I$23:I$50,MATCH($T260,Reliability!$C$23:$C$50,0)),0),0)*$H260*$X260*$Y260),$D260)*$R260","v":0},{"$f":"MIN((IFERROR(IF(AND($V260<=AE$1,$W260>=AE$1),INDEX(Reliability!J$23:J$50,MATCH($S260,Reliability!$C$23:$C$50,0)),0),0)*IF($T260=\"n/a\",$D260*$Y260,$G260)+IFERROR(IF(AND($V260<=AE$1,$W260>=AE$1),INDEX(Reliability!J$23:J$50,MATCH($T260,Reliability!$C$23:$C$50,0)),0),0)*$H260*$X260*$Y260),$D260)*$R260","v":0},{"$f":"MIN((IFERROR(IF(AND($V260<=AF$1,$W260>=AF$1),INDEX(Reliability!K$23:K$50,MATCH($S260,Reliability!$C$23:$C$50,0)),0),0)*IF($T260=\"n/a\",$D260*$Y260,$G260)+IFERROR(IF(AND($V260<=AF$1,$W260>=AF$1),INDEX(Reliability!K$23:K$50,MATCH($T260,Reliability!$C$23:$C$50,0)),0),0)*$H260*$X260*$Y260),$D260)*$R260","v":0},{"$f":"MIN((IFERROR(IF(AND($V260<=AG$1,$W260>=AG$1),INDEX(Reliability!L$23:L$50,MATCH($S260,Reliability!$C$23:$C$50,0)),0),0)*IF($T260=\"n/a\",$D260*$Y260,$G260)+IFERROR(IF(AND($V260<=AG$1,$W260>=AG$1),INDEX(Reliability!L$23:L$50,MATCH($T260,Reliability!$C$23:$C$50,0)),0),0)*$H260*$X260*$Y260),$D260)*$R260","v":0},{"$f":"MIN((IFERROR(IF(AND($V260<=AH$1,$W260>=AH$1),INDEX(Reliability!M$23:M$50,MATCH($S260,Reliability!$C$23:$C$50,0)),0),0)*IF($T260=\"n/a\",$D260*$Y260,$G260)+IFERROR(IF(AND($V260<=AH$1,$W260>=AH$1),INDEX(Reliability!M$23:M$50,MATCH($T260,Reliability!$C$23:$C$50,0)),0),0)*$H260*$X260*$Y260),$D260)*$R260","v":0},{"$f":"MIN((IFERROR(IF(AND($V260<=AI$1,$W260>=AI$1),INDEX(Reliability!N$23:N$50,MATCH($S260,Reliability!$C$23:$C$50,0)),0),0)*IF($T260=\"n/a\",$D260*$Y260,$G260)+IFERROR(IF(AND($V260<=AI$1,$W260>=AI$1),INDEX(Reliability!N$23:N$50,MATCH($T260,Reliability!$C$23:$C$50,0)),0),0)*$H260*$X260*$Y260),$D260)*$R260","v":0},{"$f":"MIN((IFERROR(IF(AND($V260<=AJ$1,$W260>=AJ$1),INDEX(Reliability!O$23:O$50,MATCH($S260,Reliability!$C$23:$C$50,0)),0),0)*IF($T260=\"n/a\",$D260*$Y260,$G260)+IFERROR(IF(AND($V260<=AJ$1,$W260>=AJ$1),INDEX(Reliability!O$23:O$50,MATCH($T260,Reliability!$C$23:$C$50,0)),0),0)*$H260*$X260*$Y260),$D260)*$R260","v":0},{"$f":"MIN((IFERROR(IF(AND($V260<=AK$1,$W260>=AK$1),INDEX(Reliability!P$23:P$50,MATCH($S260,Reliability!$C$23:$C$50,0)),0),0)*IF($T260=\"n/a\",$D260*$Y260,$G260)+IFERROR(IF(AND($V260<=AK$1,$W260>=AK$1),INDEX(Reliability!P$23:P$50,MATCH($T260,Reliability!$C$23:$C$50,0)),0),0)*$H260*$X260*$Y260),$D260)*$R260","v":0}]
[null,{"$f":"unique_contracts!B262","v":0},{"$f":"unique_contracts!D262","v":0},{"$f":"unique_contracts!J262","v":0},{"$f":"unique_contracts!M262","v":0},{"$f":"unique_contracts!N262","v":0},{"$f":"unique_contracts!P262","v":0},{"$f":"unique_contracts!R262","v":0},{"$f":"unique_contracts!V262","v":0},{"$f":"unique_contracts!AB262","v":0},{"$f":"unique_contracts!AM262","v":0},{"$f":"unique_contracts!AN262","v":0},{"$f":"unique_contracts!AO262","v":0},{"$f":"unique_contracts!AP262","v":0},{"$f":"unique_contracts!AQ262","v":0},{"$f":"unique_contracts!AR262","v":0},{"$f":"unique_contracts!BP262","v":0},0,{"$f":"IFERROR(IF(AND(I261>0,E261=\"NotHybrid\"),_xlfn.CONCAT(MAX(MIN(ROUNDDOWN(I261/D261,0),8),4),INDEX(resources!$G:$G,MATCH(B261,resources!$A:$A,0))),INDEX(resources!$G:$G,MATCH(B261,resources!$A:$A,0))),\"n/a\")","v":"n/a"},"n/a","n/a",0,0,1,1,{"$f":"MIN((IFERROR(IF(AND($V261<=Z$1,$W261>=Z$1),INDEX(Reliability!E$23:E$50,MATCH($S261,Reliability!$C$23:$C$50,0)),0),0)*IF($T261=\"n/a\",$D261*$Y261,$G261)+IFERROR(IF(AND($V261<=Z$1,$W261>=Z$1),INDEX(Reliability!E$23:E$50,MATCH($T261,Reliability!$C$23:$C$50,0)),0),0)*$H261*$X261*$Y261),$D261)*$R261","v":0},{"$f":"MIN((IFERROR(IF(AND($V261<=AA$1,$W261>=AA$1),INDEX(Reliability!F$23:F$50,MATCH($S261,Reliability!$C$23:$C$50,0)),0),0)*IF($T261=\"n/a\",$D261*$Y261,$G261)+IFERROR(IF(AND($V261<=AA$1,$W261>=AA$1),INDEX(Reliability!F$23:F$50,MATCH($T261,Reliability!$C$23:$C$50,0)),0),0)*$H261*$X261*$Y261),$D261)*$R261","v":0},{"$f":"MIN((IFERROR(IF(AND($V261<=AB$1,$W261>=AB$1),INDEX(Reliability!G$23:G$50,MATCH($S261,Reliability!$C$23:$C$50,0)),0),0)*IF($T261=\"n/a\",$D261*$Y261,$G261)+IFERROR(IF(AND($V261<=AB$1,$W261>=AB$1),INDEX(Reliability!G$23:G$50,MATCH($T261,Reliability!$C$23:$C$50,0)),0),0)*$H261*$X261*$Y261),$D261)*$R261","v":0},{"$f":"MIN((IFERROR(IF(AND($V261<=AC$1,$W261>=AC$1),INDEX(Reliability!H$23:H$50,MATCH($S261,Reliability!$C$23:$C$50,0)),0),0)*IF($T261=\"n/a\",$D261*$Y261,$G261)+IFERROR(IF(AND($V261<=AC$1,$W261>=AC$1),INDEX(Reliability!H$23:H$50,MATCH($T261,Reliability!$C$23:$C$50,0)),0),0)*$H261*$X261*$Y261),$D261)*$R261","v":0},{"$f":"MIN((IFERROR(IF(AND($V261<=AD$1,$W261>=AD$1),INDEX(Reliability!I$23:I$50,MATCH($S261,Reliability!$C$23:$C$50,0)),0),0)*IF($T261=\"n/a\",$D261*$Y261,$G261)+IFERROR(IF(AND($V261<=AD$1,$W261>=AD$1),INDEX(Reliability!I$23:I$50,MATCH($T261,Reliability!$C$23:$C$50,0)),0),0)*$H261*$X261*$Y261),$D261)*$R261","v":0},{"$f":"MIN((IFERROR(IF(AND($V261<=AE$1,$W261>=AE$1),INDEX(Reliability!J$23:J$50,MATCH($S261,Reliability!$C$23:$C$50,0)),0),0)*IF($T261=\"n/a\",$D261*$Y261,$G261)+IFERROR(IF(AND($V261<=AE$1,$W261>=AE$1),INDEX(Reliability!J$23:J$50,MATCH($T261,Reliability!$C$23:$C$50,0)),0),0)*$H261*$X261*$Y261),$D261)*$R261","v":0},{"$f":"MIN((IFERROR(IF(AND($V261<=AF$1,$W261>=AF$1),INDEX(Reliability!K$23:K$50,MATCH($S261,Reliability!$C$23:$C$50,0)),0),0)*IF($T261=\"n/a\",$D261*$Y261,$G261)+IFERROR(IF(AND($V261<=AF$1,$W261>=AF$1),INDEX(Reliability!K$23:K$50,MATCH($T261,Reliability!$C$23:$C$50,0)),0),0)*$H261*$X261*$Y261),$D261)*$R261","v":0},{"$f":"MIN((IFERROR(IF(AND($V261<=AG$1,$W261>=AG$1),INDEX(Reliability!L$23:L$50,MATCH($S261,Reliability!$C$23:$C$50,0)),0),0)*IF($T261=\"n/a\",$D261*$Y261,$G261)+IFERROR(IF(AND($V261<=AG$1,$W261>=AG$1),INDEX(Reliability!L$23:L$50,MATCH($T261,Reliability!$C$23:$C$50,0)),0),0)*$H261*$X261*$Y261),$D261)*$R261","v":0},{"$f":"MIN((IFERROR(IF(AND($V261<=AH$1,$W261>=AH$1),INDEX(Reliability!M$23:M$50,MATCH($S261,Reliability!$C$23:$C$50,0)),0),0)*IF($T261=\"n/a\",$D261*$Y261,$G261)+IFERROR(IF(AND($V261<=AH$1,$W261>=AH$1),INDEX(Reliability!M$23:M$50,MATCH($T261,Reliability!$C$23:$C$50,0)),0),0)*$H261*$X261*$Y261),$D261)*$R261","v":0},{"$f":"MIN((IFERROR(IF(AND($V261<=AI$1,$W261>=AI$1),INDEX(Reliability!N$23:N$50,MATCH($S261,Reliability!$C$23:$C$50,0)),0),0)*IF($T261=\"n/a\",$D261*$Y261,$G261)+IFERROR(IF(AND($V261<=AI$1,$W261>=AI$1),INDEX(Reliability!N$23:N$50,MATCH($T261,Reliability!$C$23:$C$50,0)),0),0)*$H261*$X261*$Y261),$D261)*$R261","v":0},{"$f":"MIN((IFERROR(IF(AND($V261<=AJ$1,$W261>=AJ$1),INDEX(Reliability!O$23:O$50,MATCH($S261,Reliability!$C$23:$C$50,0)),0),0)*IF($T261=\"n/a\",$D261*$Y261,$G261)+IFERROR(IF(AND($V261<=AJ$1,$W261>=AJ$1),INDEX(Reliability!O$23:O$50,MATCH($T261,Reliability!$C$23:$C$50,0)),0),0)*$H261*$X261*$Y261),$D261)*$R261","v":0},{"$f":"MIN((IFERROR(IF(AND($V261<=AK$1,$W261>=AK$1),INDEX(Reliability!P$23:P$50,MATCH($S261,Reliability!$C$23:$C$50,0)),0),0)*IF($T261=\"n/a\",$D261*$Y261,$G261)+IFERROR(IF(AND($V261<=AK$1,$W261>=AK$1),INDEX(Reliability!P$23:P$50,MATCH($T261,Reliability!$C$23:$C$50,0)),0),0)*$H261*$X261*$Y261),$D261)*$R261","v":0}]
[null,{"$f":"unique_contracts!B263","v":0},{"$f":"unique_contracts!D263","v":0},{"$f":"unique_contracts!J263","v":0},{"$f":"unique_contracts!M263","v":0},{"$f":"unique_contracts!N263","v":0},{"$f":"unique_contracts!P263","v":0},{"$f":"unique_contracts!R263","v":0},{"$f":"unique_contracts!V263","v":0},{"$f":"unique_contracts!AB263","v":0},{"$f":"unique_contracts!AM263","v":0},{"$f":"unique_contracts!AN263","v":0},{"$f":"unique_contracts!AO263","v":0},{"$f":"unique_contracts!AP263","v":0},{"$f":"unique_contracts!AQ263","v":0},{"$f":"unique_contracts!AR263","v":0},{"$f":"unique_contracts!BP263","v":0},0,{"$f":"IFERROR(IF(AND(I262>0,E262=\"NotHybrid\"),_xlfn.CONCAT(MAX(MIN(ROUNDDOWN(I262/D262,0),8),4),INDEX(resources!$G:$G,MATCH(B262,resources!$A:$A,0))),INDEX(resources!$G:$G,MATCH(B262,resources!$A:$A,0))),\"n/a\")","v":"n/a"},"n/a","n/a",0,0,1,1,{"$f":"MIN((IFERROR(IF(AND($V262<=Z$1,$W262>=Z$1),INDEX(Reliability!E$23:E$50,MATCH($S262,Reliability!$C$23:$C$50,0)),0),0)*IF($T262=\"n/a\",$D262*$Y262,$G262)+IFERROR(IF(AND($V262<=Z$1,$W262>=Z$1),INDEX(Reliability!E$23:E$50,MATCH($T262,Reliability!$C$23:$C$50,0)),0),0)*$H262*$X262*$Y262),$D262)*$R262","v":0},{"$f":"MIN((IFERROR(IF(AND($V262<=AA$1,$W262>=AA$1),INDEX(Reliability!F$23:F$50,MATCH($S262,Reliability!$C$23:$C$50,0)),0),0)*IF($T262=\"n/a\",$D262*$Y262,$G262)+IFERROR(IF(AND($V262<=AA$1,$W262>=AA$1),INDEX(Reliability!F$23:F$50,MATCH($T262,Reliability!$C$23:$C$50,0)),0),0)*$H262*$X262*$Y262),$D262)*$R262","v":0},{"$f":"MIN((IFERROR(IF(AND($V262<=AB$1,$W262>=AB$1),INDEX(Reliability!G$23:G$50,MATCH($S262,Reliability!$C$23:$C$50,0)),0),0)*IF($T262=\"n/a\",$D262*$Y262,$G262)+IFERROR(IF(AND($V262<=AB$1,$W262>=AB$1),INDEX(Reliability!G$23:G$50,MATCH($T262,Reliability!$C$23:$C$50,0)),0),0)*$H262*$X262*$Y262),$D262)*$R262","v":0},{"$f":"MIN((IFERROR(IF(AND($V262<=AC$1,$W262>=AC$1),INDEX(Reliability!H$23:H$50,MATCH($S262,Reliability!$C$23:$C$50,0)),0),0)*IF($T262=\"n/a\",$D262*$Y262,$G262)+IFERROR(IF(AND($V262<=AC$1,$W262>=AC$1),INDEX(Reliability!H$23:H$50,MATCH($T262,Reliability!$C$23:$C$50,0)),0),0)*$H262*$X262*$Y262),$D262)*$R262","v":0},{"$f":"MIN((IFERROR(IF(AND($V262<=AD$1,$W262>=AD$1),INDEX(Reliability!I$23:I$50,MATCH($S262,Reliability!$C$23:$C$50,0)),0),0)*IF($T262=\"n/a\",$D262*$Y262,$G262)+IFERROR(IF(AND($V262<=AD$1,$W262>=AD$1),INDEX(Reliability!I$23:I$50,MATCH($T262,Reliability!$C$23:$C$50,0)),0),0)*$H262*$X262*$Y262),$D262)*$R262","v":0},{"$f":"MIN((IFERROR(IF(AND($V262<=AE$1,$W262>=AE$1),INDEX(Reliability!J$23:J$50,MATCH($S262,Reliability!$C$23:$C$50,0)),0),0)*IF($T262=\"n/a\",$D262*$Y262,$G262)+IFERROR(IF(AND($V262<=AE$1,$W262>=AE$1),INDEX(Reliability!J$23:J$50,MATCH($T262,Reliability!$C$23:$C$50,0)),0),0)*$H262*$X262*$Y262),$D262)*$R262","v":0},{"$f":"MIN((IFERROR(IF(AND($V262<=AF$1,$W262>=AF$1),INDEX(Reliability!K$23:K$50,MATCH($S262,Reliability!$C$23:$C$50,0)),0),0)*IF($T262=\"n/a\",$D262*$Y262,$G262)+IFERROR(IF(AND($V262<=AF$1,$W262>=AF$1),INDEX(Reliability!K$23:K$50,MATCH($T262,Reliability!$C$23:$C$50,0)),0),0)*$H262*$X262*$Y262),$D262)*$R262","v":0},{"$f":"MIN((IFERROR(IF(AND($V262<=AG$1,$W262>=AG$1),INDEX(Reliability!L$23:L$50,MATCH($S262,Reliability!$C$23:$C$50,0)),0),0)*IF($T262=\"n/a\",$D262*$Y262,$G262)+IFERROR(IF(AND($V262<=AG$1,$W262>=AG$1),INDEX(Reliability!L$23:L$50,MATCH($T262,Reliability!$C$23:$C$50,0)),0),0)*$H262*$X262*$Y262),$D262)*$R262","v":0},{"$f":"MIN((IFERROR(IF(AND($V262<=AH$1,$W262>=AH$1),INDEX(Reliability!M$23:M$50,MATCH($S262,Reliability!$C$23:$C$50,0)),0),0)*IF($T262=\"n/a\",$D262*$Y262,$G262)+IFERROR(IF(AND($V262<=AH$1,$W262>=AH$1),INDEX(Reliability!M$23:M$50,MATCH($T262,Reliability!$C$23:$C$50,0)),0),0)*$H262*$X262*$Y262),$D262)*$R262","v":0},{"$f":"MIN((IFERROR(IF(AND($V262<=AI$1,$W262>=AI$1),INDEX(Reliability!N$23:N$50,MATCH($S262,Reliability!$C$23:$C$50,0)),0),0)*IF($T262=\"n/a\",$D262*$Y262,$G262)+IFERROR(IF(AND($V262<=AI$1,$W262>=AI$1),INDEX(Reliability!N$23:N$50,MATCH($T262,Reliability!$C$23:$C$50,0)),0),0)*$H262*$X262*$Y262),$D262)*$R262","v":0},{"$f":"MIN((IFERROR(IF(AND($V262<=AJ$1,$W262>=AJ$1),INDEX(Reliability!O$23:O$50,MATCH($S262,Reliability!$C$23:$C$50,0)),0),0)*IF($T262=\"n/a\",$D262*$Y262,$G262)+IFERROR(IF(AND($V262<=AJ$1,$W262>=AJ$1),INDEX(Reliability!O$23:O$50,MATCH($T262,Reliability!$C$23:$C$50,0)),0),0)*$H262*$X262*$Y262),$D262)*$R262","v":0},{"$f":"MIN((IFERROR(IF(AND($V262<=AK$1,$W262>=AK$1),INDEX(Reliability!P$23:P$50,MATCH($S262,Reliability!$C$23:$C$50,0)),0),0)*IF($T262=\"n/a\",$D262*$Y262,$G262)+IFERROR(IF(AND($V262<=AK$1,$W262>=AK$1),INDEX(Reliability!P$23:P$50,MATCH($T262,Reliability!$C$23:$C$50,0)),0),0)*$H262*$X262*$Y262),$D262)*$R262","v":0}]
[null,{"$f":"unique_contracts!B264","v":0},{"$f":"unique_contracts!D264","v":0},{"$f":"unique_contracts!J264","v":0},{"$f":"unique_contracts!M264","v":0},{"$f":"unique_contracts!N264","v":0},{"$f":"unique_contracts!P264","v":0},{"$f":"unique_contracts!R264","v":0},{"$f":"unique_contracts!V264","v":0},{"$f":"unique_contracts!AB264","v":0},{"$f":"unique_contracts!AM264","v":0},{"$f":"unique_contracts!AN264","v":0},{"$f":"unique_contracts!AO264","v":0},{"$f":"unique_contracts!AP264","v":0},{"$f":"unique_contracts!AQ264","v":0},{"$f":"unique_contracts!AR264","v":0},{"$f":"unique_contracts!BP264","v":0},0,{"$f":"IFERROR(IF(AND(I263>0,E263=\"NotHybrid\"),_xlfn.CONCAT(MAX(MIN(ROUNDDOWN(I263/D263,0),8),4),INDEX(resources!$G:$G,MATCH(B263,resources!$A:$A,0))),INDEX(resources!$G:$G,MATCH(B263,resources!$A:$A,0))),\"n/a\")","v":"n/a"},"n/a","n/a",0,0,1,1,{"$f":"MIN((IFERROR(IF(AND($V263<=Z$1,$W263>=Z$1),INDEX(Reliability!E$23:E$50,MATCH($S263,Reliability!$C$23:$C$50,0)),0),0)*IF($T263=\"n/a\",$D263*$Y263,$G263)+IFERROR(IF(AND($V263<=Z$1,$W263>=Z$1),INDEX(Reliability!E$23:E$50,MATCH($T263,Reliability!$C$23:$C$50,0)),0),0)*$H263*$X263*$Y263),$D263)*$R263","v":0},{"$f":"MIN((IFERROR(IF(AND($V263<=AA$1,$W263>=AA$1),INDEX(Reliability!F$23:F$50,MATCH($S263,Reliability!$C$23:$C$50,0)),0),0)*IF($T263=\"n/a\",$D263*$Y263,$G263)+IFERROR(IF(AND($V263<=AA$1,$W263>=AA$1),INDEX(Reliability!F$23:F$50,MATCH($T263,Reliability!$C$23:$C$50,0)),0),0)*$H263*$X263*$Y263),$D263)*$R263","v":0},{"$f":"MIN((IFERROR(IF(AND($V263<=AB$1,$W263>=AB$1),INDEX(Reliability!G$23:G$50,MATCH($S263,Reliability!$C$23:$C$50,0)),0),0)*IF($T263=\"n/a\",$D263*$Y263,$G263)+IFERROR(IF(AND($V263<=AB$1,$W263>=AB$1),INDEX(Reliability!G$23:G$50,MATCH($T263,Reliability!$C$23:$C$50,0)),0),0)*$H263*$X263*$Y263),$D263)*$R263","v":0},{"$f":"MIN((IFERROR(IF(AND($V263<=AC$1,$W263>=AC$1),INDEX(Reliability!H$23:H$50,MATCH($S263,Reliability!$C$23:$C$50,0)),0),0)*IF($T263=\"n/a\",$D263*$Y263,$G263)+IFERROR(IF(AND($V263<=AC$1,$W263>=AC$1),INDEX(Reliability!H$23:H$50,MATCH($T263,Reliability!$C$23:$C$50,0)),0),0)*$H263*$X263*$Y263),$D263)*$R263","v":0},{"$f":"MIN((IFERROR(IF(AND($V263<=AD$1,$W263>=AD$1),INDEX(Reliability!I$23:I$50,MATCH($S263,Reliability!$C$23:$C$50,0)),0),0)*IF($T263=\"n/a\",$D263*$Y263,$G263)+IFERROR(IF(AND($V263<=AD$1,$W263>=AD$1),INDEX(Reliability!I$23:I$50,MATCH($T263,Reliability!$C$23:$C$50,0)),0),0)*$H263*$X263*$Y263),$D263)*$R263","v":0},{"$f":"MIN((IFERROR(IF(AND($V263<=AE$1,$W263>=AE$1),INDEX(Reliability!J$23:J$50,MATCH($S263,Reliability!$C$23:$C$50,0)),0),0)*IF($T263=\"n/a\",$D263*$Y263,$G263)+IFERROR(IF(AND($V263<=AE$1,$W263>=AE$1),INDEX(Reliability!J$23:J$50,MATCH($T263,Reliability!$C$23:$C$50,0)),0),0)*$H263*$X263*$Y263),$D263)*$R263","v":0},{"$f":"MIN((IFERROR(IF(AND($V263<=AF$1,$W263>=AF$1),INDEX(Reliability!K$23:K$50,MATCH($S263,Reliability!$C$23:$C$50,0)),0),0)*IF($T263=\"n/a\",$D263*$Y263,$G263)+IFERROR(IF(AND($V263<=AF$1,$W263>=AF$1),INDEX(Reliability!K$23:K$50,MATCH($T263,Reliability!$C$23:$C$50,0)),0),0)*$H263*$X263*$Y263),$D263)*$R263","v":0},{"$f":"MIN((IFERROR(IF(AND($V263<=AG$1,$W263>=AG$1),INDEX(Reliability!L$23:L$50,MATCH($S263,Reliability!$C$23:$C$50,0)),0),0)*IF($T263=\"n/a\",$D263*$Y263,$G263)+IFERROR(IF(AND($V263<=AG$1,$W263>=AG$1),INDEX(Reliability!L$23:L$50,MATCH($T263,Reliability!$C$23:$C$50,0)),0),0)*$H263*$X263*$Y263),$D263)*$R263","v":0},{"$f":"MIN((IFERROR(IF(AND($V263<=AH$1,$W263>=AH$1),INDEX(Reliability!M$23:M$50,MATCH($S263,Reliability!$C$23:$C$50,0)),0),0)*IF($T263=\"n/a\",$D263*$Y263,$G263)+IFERROR(IF(AND($V263<=AH$1,$W263>=AH$1),INDEX(Reliability!M$23:M$50,MATCH($T263,Reliability!$C$23:$C$50,0)),0),0)*$H263*$X263*$Y263),$D263)*$R263","v":0},{"$f":"MIN((IFERROR(IF(AND($V263<=AI$1,$W263>=AI$1),INDEX(Reliability!N$23:N$50,MATCH($S263,Reliability!$C$23:$C$50,0)),0),0)*IF($T263=\"n/a\",$D263*$Y263,$G263)+IFERROR(IF(AND($V263<=AI$1,$W263>=AI$1),INDEX(Reliability!N$23:N$50,MATCH($T263,Reliability!$C$23:$C$50,0)),0),0)*$H263*$X263*$Y263),$D263)*$R263","v":0},{"$f":"MIN((IFERROR(IF(AND($V263<=AJ$1,$W263>=AJ$1),INDEX(Reliability!O$23:O$50,MATCH($S263,Reliability!$C$23:$C$50,0)),0),0)*IF($T263=\"n/a\",$D263*$Y263,$G263)+IFERROR(IF(AND($V263<=AJ$1,$W263>=AJ$1),INDEX(Reliability!O$23:O$50,MATCH($T263,Reliability!$C$23:$C$50,0)),0),0)*$H263*$X263*$Y263),$D263)*$R263","v":0},{"$f":"MIN((IFERROR(IF(AND($V263<=AK$1,$W263>=AK$1),INDEX(Reliability!P$23:P$50,MATCH($S263,Reliability!$C$23:$C$50,0)),0),0)*IF($T263=\"n/a\",$D263*$Y263,$G263)+IFERROR(IF(AND($V263<=AK$1,$W263>=AK$1),INDEX(Reliability!P$23:P$50,MATCH($T263,Reliability!$C$23:$C$50,0)),0),0)*$H263*$X263*$Y263),$D263)*$R263","v":0}]
[null,{"$f":"unique_contracts!B265","v":0},{"$f":"unique_contracts!D265","v":0},{"$f":"unique_contracts!J265","v":0},{"$f":"unique_contracts!M265","v":0},{"$f":"unique_contracts!N265","v":0},{"$f":"unique_contracts!P265","v":0},{"$f":"unique_contracts!R265","v":0},{"$f":"unique_contracts!V265","v":0},{"$f":"unique_contracts!AB265","v":0},{"$f":"unique_contracts!AM265","v":0},{"$f":"unique_contracts!AN265","v":0},{"$f":"unique_contracts!AO265","v":0},{"$f":"unique_contracts!AP265","v":0},{"$f":"unique_contracts!AQ265","v":0},{"$f":"unique_contracts!AR265","v":0},{"$f":"unique_contracts!BP265","v":0},0,{"$f":"IFERROR(IF(AND(I264>0,E264=\"NotHybrid\"),_xlfn.CONCAT(MAX(MIN(ROUNDDOWN(I264/D264,0),8),4),INDEX(resources!$G:$G,MATCH(B264,resources!$A:$A,0))),INDEX(resources!$G:$G,MATCH(B264,resources!$A:$A,0))),\"n/a\")","v":"n/a"},"n/a","n/a",0,0,1,1,{"$f":"MIN((IFERROR(IF(AND($V264<=Z$1,$W264>=Z$1),INDEX(Reliability!E$23:E$50,MATCH($S264,Reliability!$C$23:$C$50,0)),0),0)*IF($T264=\"n/a\",$D264*$Y264,$G264)+IFERROR(IF(AND($V264<=Z$1,$W264>=Z$1),INDEX(Reliability!E$23:E$50,MATCH($T264,Reliability!$C$23:$C$50,0)),0),0)*$H264*$X264*$Y264),$D264)*$R264","v":0},{"$f":"MIN((IFERROR(IF(AND($V264<=AA$1,$W264>=AA$1),INDEX(Reliability!F$23:F$50,MATCH($S264,Reliability!$C$23:$C$50,0)),0),0)*IF($T264=\"n/a\",$D264*$Y264,$G264)+IFERROR(IF(AND($V264<=AA$1,$W264>=AA$1),INDEX(Reliability!F$23:F$50,MATCH($T264,Reliability!$C$23:$C$50,0)),0),0)*$H264*$X264*$Y264),$D264)*$R264","v":0},{"$f":"MIN((IFERROR(IF(AND($V264<=AB$1,$W264>=AB$1),INDEX(Reliability!G$23:G$50,MATCH($S264,Reliability!$C$23:$C$50,0)),0),0)*IF($T264=\"n/a\",$D264*$Y264,$G264)+IFERROR(IF(AND($V264<=AB$1,$W264>=AB$1),INDEX(Reliability!G$23:G$50,MATCH($T264,Reliability!$C$23:$C$50,0)),0),0)*$H264*$X264*$Y264),$D264)*$R264","v":0},{"$f":"MIN((IFERROR(IF(AND($V264<=AC$1,$W264>=AC$1),INDEX(Reliability!H$23:H$50,MATCH($S264,Reliability!$C$23:$C$50,0)),0),0)*IF($T264=\"n/a\",$D264*$Y264,$G264)+IFERROR(IF(AND($V264<=AC$1,$W264>=AC$1),INDEX(Reliability!H$23:H$50,MATCH($T264,Reliability!$C$23:$C$50,0)),0),0)*$H264*$X264*$Y264),$D264)*$R264","v":0},{"$f":"MIN((IFERROR(IF(AND($V264<=AD$1,$W264>=AD$1),INDEX(Reliability!I$23:I$50,MATCH($S264,Reliability!$C$23:$C$50,0)),0),0)*IF($T264=\"n/a\",$D264*$Y264,$G264)+IFERROR(IF(AND($V264<=AD$1,$W264>=AD$1),INDEX(Reliability!I$23:I$50,MATCH($T264,Reliability!$C$23:$C$50,0)),0),0)*$H264*$X264*$Y264),$D264)*$R264","v":0},{"$f":"MIN((IFERROR(IF(AND($V264<=AE$1,$W264>=AE$1),INDEX(Reliability!J$23:J$50,MATCH($S264,Reliability!$C$23:$C$50,0)),0),0)*IF($T264=\"n/a\",$D264*$Y264,$G264)+IFERROR(IF(AND($V264<=AE$1,$W264>=AE$1),INDEX(Reliability!J$23:J$50,MATCH($T264,Reliability!$C$23:$C$50,0)),0),0)*$H264*$X264*$Y264),$D264)*$R264","v":0},{"$f":"MIN((IFERROR(IF(AND($V264<=AF$1,$W264>=AF$1),INDEX(Reliability!K$23:K$50,MATCH($S264,Reliability!$C$23:$C$50,0)),0),0)*IF($T264=\"n/a\",$D264*$Y264,$G264)+IFERROR(IF(AND($V264<=AF$1,$W264>=AF$1),INDEX(Reliability!K$23:K$50,MATCH($T264,Reliability!$C$23:$C$50,0)),0),0)*$H264*$X264*$Y264),$D264)*$R264","v":0},{"$f":"MIN((IFERROR(IF(AND($V264<=AG$1,$W264>=AG$1),INDEX(Reliability!L$23:L$50,MATCH($S264,Reliability!$C$23:$C$50,0)),0),0)*IF($T264=\"n/a\",$D264*$Y264,$G264)+IFERROR(IF(AND($V264<=AG$1,$W264>=AG$1),INDEX(Reliability!L$23:L$50,MATCH($T264,Reliability!$C$23:$C$50,0)),0),0)*$H264*$X264*$Y264),$D264)*$R264","v":0},{"$f":"MIN((IFERROR(IF(AND($V264<=AH$1,$W264>=AH$1),INDEX(Reliability!M$23:M$50,MATCH($S264,Reliability!$C$23:$C$50,0)),0),0)*IF($T264=\"n/a\",$D264*$Y264,$G264)+IFERROR(IF(AND($V264<=AH$1,$W264>=AH$1),INDEX(Reliability!M$23:M$50,MATCH($T264,Reliability!$C$23:$C$50,0)),0),0)*$H264*$X264*$Y264),$D264)*$R264","v":0},{"$f":"MIN((IFERROR(IF(AND($V264<=AI$1,$W264>=AI$1),INDEX(Reliability!N$23:N$50,MATCH($S264,Reliability!$C$23:$C$50,0)),0),0)*IF($T264=\"n/a\",$D264*$Y264,$G264)+IFERROR(IF(AND($V264<=AI$1,$W264>=AI$1),INDEX(Reliability!N$23:N$50,MATCH($T264,Reliability!$C$23:$C$50,0)),0),0)*$H264*$X264*$Y264),$D264)*$R264","v":0},{"$f":"MIN((IFERROR(IF(AND($V264<=AJ$1,$W264>=AJ$1),INDEX(Reliability!O$23:O$50,MATCH($S264,Reliability!$C$23:$C$50,0)),0),0)*IF($T264=\"n/a\",$D264*$Y264,$G264)+IFERROR(IF(AND($V264<=AJ$1,$W264>=AJ$1),INDEX(Reliability!O$23:O$50,MATCH($T264,Reliability!$C$23:$C$50,0)),0),0)*$H264*$X264*$Y264),$D264)*$R264","v":0},{"$f":"MIN((IFERROR(IF(AND($V264<=AK$1,$W264>=AK$1),INDEX(Reliability!P$23:P$50,MATCH($S264,Reliability!$C$23:$C$50,0)),0),0)*IF($T264=\"n/a\",$D264*$Y264,$G264)+IFERROR(IF(AND($V264<=AK$1,$W264>=AK$1),INDEX(Reliability!P$23:P$50,MATCH($T264,Reliability!$C$23:$C$50,0)),0),0)*$H264*$X264*$Y264),$D264)*$R264","v":0}]
[null,{"$f":"unique_contracts!B266","v":0},{"$f":"unique_contracts!D266","v":0},{"$f":"unique_contracts!J266","v":0},{"$f":"unique_contracts!M266","v":0},{"$f":"unique_contracts!N266","v":0},{"$f":"unique_contracts!P266","v":0},{"$f":"unique_contracts!R266","v":0},{"$f":"unique_contracts!V266","v":0},{"$f":"unique_contracts!AB266","v":0},{"$f":"unique_contracts!AM266","v":0},{"$f":"unique_contracts!AN266","v":0},{"$f":"unique_contracts!AO266","v":0},{"$f":"unique_contracts!AP266","v":0},{"$f":"unique_contracts!AQ266","v":0},{"$f":"unique_contracts!AR266","v":0},{"$f":"unique_contracts!BP266","v":0},0,{"$f":"IFERROR(IF(AND(I265>0,E265=\"NotHybrid\"),_xlfn.CONCAT(MAX(MIN(ROUNDDOWN(I265/D265,0),8),4),INDEX(resources!$G:$G,MATCH(B265,resources!$A:$A,0))),INDEX(resources!$G:$G,MATCH(B265,resources!$A:$A,0))),\"n/a\")","v":"n/a"},"n/a","n/a",0,0,1,1,{"$f":"MIN((IFERROR(IF(AND($V265<=Z$1,$W265>=Z$1),INDEX(Reliability!E$23:E$50,MATCH($S265,Reliability!$C$23:$C$50,0)),0),0)*IF($T265=\"n/a\",$D265*$Y265,$G265)+IFERROR(IF(AND($V265<=Z$1,$W265>=Z$1),INDEX(Reliability!E$23:E$50,MATCH($T265,Reliability!$C$23:$C$50,0)),0),0)*$H265*$X265*$Y265),$D265)*$R265","v":0},{"$f":"MIN((IFERROR(IF(AND($V265<=AA$1,$W265>=AA$1),INDEX(Reliability!F$23:F$50,MATCH($S265,Reliability!$C$23:$C$50,0)),0),0)*IF($T265=\"n/a\",$D265*$Y265,$G265)+IFERROR(IF(AND($V265<=AA$1,$W265>=AA$1),INDEX(Reliability!F$23:F$50,MATCH($T265,Reliability!$C$23:$C$50,0)),0),0)*$H265*$X265*$Y265),$D265)*$R265","v":0},{"$f":"MIN((IFERROR(IF(AND($V265<=AB$1,$W265>=AB$1),INDEX(Reliability!G$23:G$50,MATCH($S265,Reliability!$C$23:$C$50,0)),0),0)*IF($T265=\"n/a\",$D265*$Y265,$G265)+IFERROR(IF(AND($V265<=AB$1,$W265>=AB$1),INDEX(Reliability!G$23:G$50,MATCH($T265,Reliability!$C$23:$C$50,0)),0),0)*$H265*$X265*$Y265),$D265)*$R265","v":0},{"$f":"MIN((IFERROR(IF(AND($V265<=AC$1,$W265>=AC$1),INDEX(Reliability!H$23:H$50,MATCH($S265,Reliability!$C$23:$C$50,0)),0),0)*IF($T265=\"n/a\",$D265*$Y265,$G265)+IFERROR(IF(AND($V265<=AC$1,$W265>=AC$1),INDEX(Reliability!H$23:H$50,MATCH($T265,Reliability!$C$23:$C$50,0)),0),0)*$H265*$X265*$Y265),$D265)*$R265","v":0},{"$f":"MIN((IFERROR(IF(AND($V265<=AD$1,$W265>=AD$1),INDEX(Reliability!I$23:I$50,MATCH($S265,Reliability!$C$23:$C$50,0)),0),0)*IF($T265=\"n/a\",$D265*$Y265,$G265)+IFERROR(IF(AND($V265<=AD$1,$W265>=AD$1),INDEX(Reliability!I$23:I$50,MATCH($T265,Reliability!$C$23:$C$50,0)),0),0)*$H265*$X265*$Y265),$D265)*$R265","v":0},{"$f":"MIN((IFERROR(IF(AND($V265<=AE$1,$W265>=AE$1),INDEX(Reliability!J$23:J$50,MATCH($S265,Reliability!$C$23:$C$50,0)),0),0)*IF($T265=\"n/a\",$D265*$Y265,$G265)+IFERROR(IF(AND($V265<=AE$1,$W265>=AE$1),INDEX(Reliability!J$23:J$50,MATCH($T265,Reliability!$C$23:$C$50,0)),0),0)*$H265*$X265*$Y265),$D265)*$R265","v":0},{"$f":"MIN((IFERROR(IF(AND($V265<=AF$1,$W265>=AF$1),INDEX(Reliability!K$23:K$50,MATCH($S265,Reliability!$C$23:$C$50,0)),0),0)*IF($T265=\"n/a\",$D265*$Y265,$G265)+IFERROR(IF(AND($V265<=AF$1,$W265>=AF$1),INDEX(Reliability!K$23:K$50,MATCH($T265,Reliability!$C$23:$C$50,0)),0),0)*$H265*$X265*$Y265),$D265)*$R265","v":0},{"$f":"MIN((IFERROR(IF(AND($V265<=AG$1,$W265>=AG$1),INDEX(Reliability!L$23:L$50,MATCH($S265,Reliability!$C$23:$C$50,0)),0),0)*IF($T265=\"n/a\",$D265*$Y265,$G265)+IFERROR(IF(AND($V265<=AG$1,$W265>=AG$1),INDEX(Reliability!L$23:L$50,MATCH($T265,Reliability!$C$23:$C$50,0)),0),0)*$H265*$X265*$Y265),$D265)*$R265","v":0},{"$f":"MIN((IFERROR(IF(AND($V265<=AH$1,$W265>=AH$1),INDEX(Reliability!M$23:M$50,MATCH($S265,Reliability!$C$23:$C$50,0)),0),0)*IF($T265=\"n/a\",$D265*$Y265,$G265)+IFERROR(IF(AND($V265<=AH$1,$W265>=AH$1),INDEX(Reliability!M$23:M$50,MATCH($T265,Reliability!$C$23:$C$50,0)),0),0)*$H265*$X265*$Y265),$D265)*$R265","v":0},{"$f":"MIN((IFERROR(IF(AND($V265<=AI$1,$W265>=AI$1),INDEX(Reliability!N$23:N$50,MATCH($S265,Reliability!$C$23:$C$50,0)),0),0)*IF($T265=\"n/a\",$D265*$Y265,$G265)+IFERROR(IF(AND($V265<=AI$1,$W265>=AI$1),INDEX(Reliability!N$23:N$50,MATCH($T265,Reliability!$C$23:$C$50,0)),0),0)*$H265*$X265*$Y265),$D265)*$R265","v":0},{"$f":"MIN((IFERROR(IF(AND($V265<=AJ$1,$W265>=AJ$1),INDEX(Reliability!O$23:O$50,MATCH($S265,Reliability!$C$23:$C$50,0)),0),0)*IF($T265=\"n/a\",$D265*$Y265,$G265)+IFERROR(IF(AND($V265<=AJ$1,$W265>=AJ$1),INDEX(Reliability!O$23:O$50,MATCH($T265,Reliability!$C$23:$C$50,0)),0),0)*$H265*$X265*$Y265),$D265)*$R265","v":0},{"$f":"MIN((IFERROR(IF(AND($V265<=AK$1,$W265>=AK$1),INDEX(Reliability!P$23:P$50,MATCH($S265,Reliability!$C$23:$C$50,0)),0),0)*IF($T265=\"n/a\",$D265*$Y265,$G265)+IFERROR(IF(AND($V265<=AK$1,$W265>=AK$1),INDEX(Reliability!P$23:P$50,MATCH($T265,Reliability!$C$23:$C$50,0)),0),0)*$H265*$X265*$Y265),$D265)*$R265","v":0}]
[null,{"$f":"unique_contracts!B267","v":0},{"$f":"unique_contracts!D267","v":0},{"$f":"unique_contracts!J267","v":0},{"$f":"unique_contracts!M267","v":0},{"$f":"unique_contracts!N267","v":0},{"$f":"unique_contracts!P267","v":0},{"$f":"unique_contracts!R267","v":0},{"$f":"unique_contracts!V267","v":0},{"$f":"unique_contracts!AB267","v":0},{"$f":"unique_contracts!AM267","v":0},{"$f":"unique_contracts!AN267","v":0},{"$f":"unique_contracts!AO267","v":0},{"$f":"unique_contracts!AP267","v":0},{"$f":"unique_contracts!AQ267","v":0},{"$f":"unique_contracts!AR267","v":0},{"$f":"unique_contracts!BP267","v":0},0,{"$f":"IFERROR(IF(AND(I266>0,E266=\"NotHybrid\"),_xlfn.CONCAT(MAX(MIN(ROUNDDOWN(I266/D266,0),8),4),INDEX(resources!$G:$G,MATCH(B266,resources!$A:$A,0))),INDEX(resources!$G:$G,MATCH(B266,resources!$A:$A,0))),\"n/a\")","v":"n/a"},"n/a","n/a",0,0,1,1,{"$f":"MIN((IFERROR(IF(AND($V266<=Z$1,$W266>=Z$1),INDEX(Reliability!E$23:E$50,MATCH($S266,Reliability!$C$23:$C$50,0)),0),0)*IF($T266=\"n/a\",$D266*$Y266,$G266)+IFERROR(IF(AND($V266<=Z$1,$W266>=Z$1),INDEX(Reliability!E$23:E$50,MATCH($T266,Reliability!$C$23:$C$50,0)),0),0)*$H266*$X266*$Y266),$D266)*$R266","v":0},{"$f":"MIN((IFERROR(IF(AND($V266<=AA$1,$W266>=AA$1),INDEX(Reliability!F$23:F$50,MATCH($S266,Reliability!$C$23:$C$50,0)),0),0)*IF($T266=\"n/a\",$D266*$Y266,$G266)+IFERROR(IF(AND($V266<=AA$1,$W266>=AA$1),INDEX(Reliability!F$23:F$50,MATCH($T266,Reliability!$C$23:$C$50,0)),0),0)*$H266*$X266*$Y266),$D266)*$R266","v":0},{"$f":"MIN((IFERROR(IF(AND($V266<=AB$1,$W266>=AB$1),INDEX(Reliability!G$23:G$50,MATCH($S266,Reliability!$C$23:$C$50,0)),0),0)*IF($T266=\"n/a\",$D266*$Y266,$G266)+IFERROR(IF(AND($V266<=AB$1,$W266>=AB$1),INDEX(Reliability!G$23:G$50,MATCH($T266,Reliability!$C$23:$C$50,0)),0),0)*$H266*$X266*$Y266),$D266)*$R266","v":0},{"$f":"MIN((IFERROR(IF(AND($V266<=AC$1,$W266>=AC$1),INDEX(Reliability!H$23:H$50,MATCH($S266,Reliability!$C$23:$C$50,0)),0),0)*IF($T266=\"n/a\",$D266*$Y266,$G266)+IFERROR(IF(AND($V266<=AC$1,$W266>=AC$1),INDEX(Reliability!H$23:H$50,MATCH($T266,Reliability!$C$23:$C$50,0)),0),0)*$H266*$X266*$Y266),$D266)*$R266","v":0},{"$f":"MIN((IFERROR(IF(AND($V266<=AD$1,$W266>=AD$1),INDEX(Reliability!I$23:I$50,MATCH($S266,Reliability!$C$23:$C$50,0)),0),0)*IF($T266=\"n/a\",$D266*$Y266,$G266)+IFERROR(IF(AND($V266<=AD$1,$W266>=AD$1),INDEX(Reliability!I$23:I$50,MATCH($T266,Reliability!$C$23:$C$50,0)),0),0)*$H266*$X266*$Y266),$D266)*$R266","v":0},{"$f":"MIN((IFERROR(IF(AND($V266<=AE$1,$W266>=AE$1),INDEX(Reliability!J$23:J$50,MATCH($S266,Reliability!$C$23:$C$50,0)),0),0)*IF($T266=\"n/a\",$D266*$Y266,$G266)+IFERROR(IF(AND($V266<=AE$1,$W266>=AE$1),INDEX(Reliability!J$23:J$50,MATCH($T266,Reliability!$C$23:$C$50,0)),0),0)*$H266*$X266*$Y266),$D266)*$R266","v":0},{"$f":"MIN((IFERROR(IF(AND($V266<=AF$1,$W266>=AF$1),INDEX(Reliability!K$23:K$50,MATCH($S266,Reliability!$C$23:$C$50,0)),0),0)*IF($T266=\"n/a\",$D266*$Y266,$G266)+IFERROR(IF(AND($V266<=AF$1,$W266>=AF$1),INDEX(Reliability!K$23:K$50,MATCH($T266,Reliability!$C$23:$C$50,0)),0),0)*$H266*$X266*$Y266),$D266)*$R266","v":0},{"$f":"MIN((IFERROR(IF(AND($V266<=AG$1,$W266>=AG$1),INDEX(Reliability!L$23:L$50,MATCH($S266,Reliability!$C$23:$C$50,0)),0),0)*IF($T266=\"n/a\",$D266*$Y266,$G266)+IFERROR(IF(AND($V266<=AG$1,$W266>=AG$1),INDEX(Reliability!L$23:L$50,MATCH($T266,Reliability!$C$23:$C$50,0)),0),0)*$H266*$X266*$Y266),$D266)*$R266","v":0},{"$f":"MIN((IFERROR(IF(AND($V266<=AH$1,$W266>=AH$1),INDEX(Reliability!M$23:M$50,MATCH($S266,Reliability!$C$23:$C$50,0)),0),0)*IF($T266=\"n/a\",$D266*$Y266,$G266)+IFERROR(IF(AND($V266<=AH$1,$W266>=AH$1),INDEX(Reliability!M$23:M$50,MATCH($T266,Reliability!$C$23:$C$50,0)),0),0)*$H266*$X266*$Y266),$D266)*$R266","v":0},{"$f":"MIN((IFERROR(IF(AND($V266<=AI$1,$W266>=AI$1),INDEX(Reliability!N$23:N$50,MATCH($S266,Reliability!$C$23:$C$50,0)),0),0)*IF($T266=\"n/a\",$D266*$Y266,$G266)+IFERROR(IF(AND($V266<=AI$1,$W266>=AI$1),INDEX(Reliability!N$23:N$50,MATCH($T266,Reliability!$C$23:$C$50,0)),0),0)*$H266*$X266*$Y266),$D266)*$R266","v":0},{"$f":"MIN((IFERROR(IF(AND($V266<=AJ$1,$W266>=AJ$1),INDEX(Reliability!O$23:O$50,MATCH($S266,Reliability!$C$23:$C$50,0)),0),0)*IF($T266=\"n/a\",$D266*$Y266,$G266)+IFERROR(IF(AND($V266<=AJ$1,$W266>=AJ$1),INDEX(Reliability!O$23:O$50,MATCH($T266,Reliability!$C$23:$C$50,0)),0),0)*$H266*$X266*$Y266),$D266)*$R266","v":0},{"$f":"MIN((IFERROR(IF(AND($V266<=AK$1,$W266>=AK$1),INDEX(Reliability!P$23:P$50,MATCH($S266,Reliability!$C$23:$C$50,0)),0),0)*IF($T266=\"n/a\",$D266*$Y266,$G266)+IFERROR(IF(AND($V266<=AK$1,$W266>=AK$1),INDEX(Reliability!P$23:P$50,MATCH($T266,Reliability!$C$23:$C$50,0)),0),0)*$H266*$X266*$Y266),$D266)*$R266","v":0}]
[null,{"$f":"unique_contracts!B268","v":0},{"$f":"unique_contracts!D268","v":0},{"$f":"unique_contracts!J268","v":0},{"$f":"unique_contracts!M268","v":0},{"$f":"unique_contracts!N268","v":0},{"$f":"unique_contracts!P268","v":0},{"$f":"unique_contracts!R268","v":0},{"$f":"unique_contracts!V268","v":0},{"$f":"unique_contracts!AB268","v":0},{"$f":"unique_contracts!AM268","v":0},{"$f":"unique_contracts!AN268","v":0},{"$f":"unique_contracts!AO268","v":0},{"$f":"unique_contracts!AP268","v":0},{"$f":"unique_contracts!AQ268","v":0},{"$f":"unique_contracts!AR268","v":0},{"$f":"unique_contracts!BP268","v":0},0,{"$f":"IFERROR(IF(AND(I267>0,E267=\"NotHybrid\"),_xlfn.CONCAT(MAX(MIN(ROUNDDOWN(I267/D267,0),8),4),INDEX(resources!$G:$G,MATCH(B267,resources!$A:$A,0))),INDEX(resources!$G:$G,MATCH(B267,resources!$A:$A,0))),\"n/a\")","v":"n/a"},"n/a","n/a",0,0,1,1,{"$f":"MIN((IFERROR(IF(AND($V267<=Z$1,$W267>=Z$1),INDEX(Reliability!E$23:E$50,MATCH($S267,Reliability!$C$23:$C$50,0)),0),0)*IF($T267=\"n/a\",$D267*$Y267,$G267)+IFERROR(IF(AND($V267<=Z$1,$W267>=Z$1),INDEX(Reliability!E$23:E$50,MATCH($T267,Reliability!$C$23:$C$50,0)),0),0)*$H267*$X267*$Y267),$D267)*$R267","v":0},{"$f":"MIN((IFERROR(IF(AND($V267<=AA$1,$W267>=AA$1),INDEX(Reliability!F$23:F$50,MATCH($S267,Reliability!$C$23:$C$50,0)),0),0)*IF($T267=\"n/a\",$D267*$Y267,$G267)+IFERROR(IF(AND($V267<=AA$1,$W267>=AA$1),INDEX(Reliability!F$23:F$50,MATCH($T267,Reliability!$C$23:$C$50,0)),0),0)*$H267*$X267*$Y267),$D267)*$R267","v":0},{"$f":"MIN((IFERROR(IF(AND($V267<=AB$1,$W267>=AB$1),INDEX(Reliability!G$23:G$50,MATCH($S267,Reliability!$C$23:$C$50,0)),0),0)*IF($T267=\"n/a\",$D267*$Y267,$G267)+IFERROR(IF(AND($V267<=AB$1,$W267>=AB$1),INDEX(Reliability!G$23:G$50,MATCH($T267,Reliability!$C$23:$C$50,0)),0),0)*$H267*$X267*$Y267),$D267)*$R267","v":0},{"$f":"MIN((IFERROR(IF(AND($V267<=AC$1,$W267>=AC$1),INDEX(Reliability!H$23:H$50,MATCH($S267,Reliability!$C$23:$C$50,0)),0),0)*IF($T267=\"n/a\",$D267*$Y267,$G267)+IFERROR(IF(AND($V267<=AC$1,$W267>=AC$1),INDEX(Reliability!H$23:H$50,MATCH($T267,Reliability!$C$23:$C$50,0)),0),0)*$H267*$X267*$Y267),$D267)*$R267","v":0},{"$f":"MIN((IFERROR(IF(AND($V267<=AD$1,$W267>=AD$1),INDEX(Reliability!I$23:I$50,MATCH($S267,Reliability!$C$23:$C$50,0)),0),0)*IF($T267=\"n/a\",$D267*$Y267,$G267)+IFERROR(IF(AND($V267<=AD$1,$W267>=AD$1),INDEX(Reliability!I$23:I$50,MATCH($T267,Reliability!$C$23:$C$50,0)),0),0)*$H267*$X267*$Y267),$D267)*$R267","v":0},{"$f":"MIN((IFERROR(IF(AND($V267<=AE$1,$W267>=AE$1),INDEX(Reliability!J$23:J$50,MATCH($S267,Reliability!$C$23:$C$50,0)),0),0)*IF($T267=\"n/a\",$D267*$Y267,$G267)+IFERROR(IF(AND($V267<=AE$1,$W267>=AE$1),INDEX(Reliability!J$23:J$50,MATCH($T267,Reliability!$C$23:$C$50,0)),0),0)*$H267*$X267*$Y267),$D267)*$R267","v":0},{"$f":"MIN((IFERROR(IF(AND($V267<=AF$1,$W267>=AF$1),INDEX(Reliability!K$23:K$50,MATCH($S267,Reliability!$C$23:$C$50,0)),0),0)*IF($T267=\"n/a\",$D267*$Y267,$G267)+IFERROR(IF(AND($V267<=AF$1,$W267>=AF$1),INDEX(Reliability!K$23:K$50,MATCH($T267,Reliability!$C$23:$C$50,0)),0),0)*$H267*$X267*$Y267),$D267)*$R267","v":0},{"$f":"MIN((IFERROR(IF(AND($V267<=AG$1,$W267>=AG$1),INDEX(Reliability!L$23:L$50,MATCH($S267,Reliability!$C$23:$C$50,0)),0),0)*IF($T267=\"n/a\",$D267*$Y267,$G267)+IFERROR(IF(AND($V267<=AG$1,$W267>=AG$1),INDEX(Reliability!L$23:L$50,MATCH($T267,Reliability!$C$23:$C$50,0)),0),0)*$H267*$X267*$Y267),$D267)*$R267","v":0},{"$f":"MIN((IFERROR(IF(AND($V267<=AH$1,$W267>=AH$1),INDEX(Reliability!M$23:M$50,MATCH($S267,Reliability!$C$23:$C$50,0)),0),0)*IF($T267=\"n/a\",$D267*$Y267,$G267)+IFERROR(IF(AND($V267<=AH$1,$W267>=AH$1),INDEX(Reliability!M$23:M$50,MATCH($T267,Reliability!$C$23:$C$50,0)),0),0)*$H267*$X267*$Y267),$D267)*$R267","v":0},{"$f":"MIN((IFERROR(IF(AND($V267<=AI$1,$W267>=AI$1),INDEX(Reliability!N$23:N$50,MATCH($S267,Reliability!$C$23:$C$50,0)),0),0)*IF($T267=\"n/a\",$D267*$Y267,$G267)+IFERROR(IF(AND($V267<=AI$1,$W267>=AI$1),INDEX(Reliability!N$23:N$50,MATCH($T267,Reliability!$C$23:$C$50,0)),0),0)*$H267*$X267*$Y267),$D267)*$R267","v":0},{"$f":"MIN((IFERROR(IF(AND($V267<=AJ$1,$W267>=AJ$1),INDEX(Reliability!O$23:O$50,MATCH($S267,Reliability!$C$23:$C$50,0)),0),0)*IF($T267=\"n/a\",$D267*$Y267,$G267)+IFERROR(IF(AND($V267<=AJ$1,$W267>=AJ$1),INDEX(Reliability!O$23:O$50,MATCH($T267,Reliability!$C$23:$C$50,0)),0),0)*$H267*$X267*$Y267),$D267)*$R267","v":0},{"$f":"MIN((IFERROR(IF(AND($V267<=AK$1,$W267>=AK$1),INDEX(Reliability!P$23:P$50,MATCH($S267,Reliability!$C$23:$C$50,0)),0),0)*IF($T267=\"n/a\",$D267*$Y267,$G267)+IFERROR(IF(AND($V267<=AK$1,$W267>=AK$1),INDEX(Reliability!P$23:P$50,MATCH($T267,Reliability!$C$23:$C$50,0)),0),0)*$H267*$X267*$Y267),$D267)*$R267","v":0}]
[null,{"$f":"unique_contracts!B269","v":0},{"$f":"unique_contracts!D269","v":0},{"$f":"unique_contracts!J269","v":0},{"$f":"unique_contracts!M269","v":0},{"$f":"unique_contracts!N269","v":0},{"$f":"unique_contracts!P269","v":0},{"$f":"unique_contracts!R269","v":0},{"$f":"unique_contracts!V269","v":0},{"$f":"unique_contracts!AB269","v":0},{"$f":"unique_contracts!AM269","v":0},{"$f":"unique_contracts!AN269","v":0},{"$f":"unique_contracts!AO269","v":0},{"$f":"unique_contracts!AP269","v":0},{"$f":"unique_contracts!AQ269","v":0},{"$f":"unique_contracts!AR269","v":0},{"$f":"unique_contracts!BP269","v":0},0,{"$f":"IFERROR(IF(AND(I268>0,E268=\"NotHybrid\"),_xlfn.CONCAT(MAX(MIN(ROUNDDOWN(I268/D268,0),8),4),INDEX(resources!$G:$G,MATCH(B268,resources!$A:$A,0))),INDEX(resources!$G:$G,MATCH(B268,resources!$A:$A,0))),\"n/a\")","v":"n/a"},"n/a","n/a",0,0,1,1,{"$f":"MIN((IFERROR(IF(AND($V268<=Z$1,$W268>=Z$1),INDEX(Reliability!E$23:E$50,MATCH($S268,Reliability!$C$23:$C$50,0)),0),0)*IF($T268=\"n/a\",$D268*$Y268,$G268)+IFERROR(IF(AND($V268<=Z$1,$W268>=Z$1),INDEX(Reliability!E$23:E$50,MATCH($T268,Reliability!$C$23:$C$50,0)),0),0)*$H268*$X268*$Y268),$D268)*$R268","v":0},{"$f":"MIN((IFERROR(IF(AND($V268<=AA$1,$W268>=AA$1),INDEX(Reliability!F$23:F$50,MATCH($S268,Reliability!$C$23:$C$50,0)),0),0)*IF($T268=\"n/a\",$D268*$Y268,$G268)+IFERROR(IF(AND($V268<=AA$1,$W268>=AA$1),INDEX(Reliability!F$23:F$50,MATCH($T268,Reliability!$C$23:$C$50,0)),0),0)*$H268*$X268*$Y268),$D268)*$R268","v":0},{"$f":"MIN((IFERROR(IF(AND($V268<=AB$1,$W268>=AB$1),INDEX(Reliability!G$23:G$50,MATCH($S268,Reliability!$C$23:$C$50,0)),0),0)*IF($T268=\"n/a\",$D268*$Y268,$G268)+IFERROR(IF(AND($V268<=AB$1,$W268>=AB$1),INDEX(Reliability!G$23:G$50,MATCH($T268,Reliability!$C$23:$C$50,0)),0),0)*$H268*$X268*$Y268),$D268)*$R268","v":0},{"$f":"MIN((IFERROR(IF(AND($V268<=AC$1,$W268>=AC$1),INDEX(Reliability!H$23:H$50,MATCH($S268,Reliability!$C$23:$C$50,0)),0),0)*IF($T268=\"n/a\",$D268*$Y268,$G268)+IFERROR(IF(AND($V268<=AC$1,$W268>=AC$1),INDEX(Reliability!H$23:H$50,MATCH($T268,Reliability!$C$23:$C$50,0)),0),0)*$H268*$X268*$Y268),$D268)*$R268","v":0},{"$f":"MIN((IFERROR(IF(AND($V268<=AD$1,$W268>=AD$1),INDEX(Reliability!I$23:I$50,MATCH($S268,Reliability!$C$23:$C$50,0)),0),0)*IF($T268=\"n/a\",$D268*$Y268,$G268)+IFERROR(IF(AND($V268<=AD$1,$W268>=AD$1),INDEX(Reliability!I$23:I$50,MATCH($T268,Reliability!$C$23:$C$50,0)),0),0)*$H268*$X268*$Y268),$D268)*$R268","v":0},{"$f":"MIN((IFERROR(IF(AND($V268<=AE$1,$W268>=AE$1),INDEX(Reliability!J$23:J$50,MATCH($S268,Reliability!$C$23:$C$50,0)),0),0)*IF($T268=\"n/a\",$D268*$Y268,$G268)+IFERROR(IF(AND($V268<=AE$1,$W268>=AE$1),INDEX(Reliability!J$23:J$50,MATCH($T268,Reliability!$C$23:$C$50,0)),0),0)*$H268*$X268*$Y268),$D268)*$R268","v":0},{"$f":"MIN((IFERROR(IF(AND($V268<=AF$1,$W268>=AF$1),INDEX(Reliability!K$23:K$50,MATCH($S268,Reliability!$C$23:$C$50,0)),0),0)*IF($T268=\"n/a\",$D268*$Y268,$G268)+IFERROR(IF(AND($V268<=AF$1,$W268>=AF$1),INDEX(Reliability!K$23:K$50,MATCH($T268,Reliability!$C$23:$C$50,0)),0),0)*$H268*$X268*$Y268),$D268)*$R268","v":0},{"$f":"MIN((IFERROR(IF(AND($V268<=AG$1,$W268>=AG$1),INDEX(Reliability!L$23:L$50,MATCH($S268,Reliability!$C$23:$C$50,0)),0),0)*IF($T268=\"n/a\",$D268*$Y268,$G268)+IFERROR(IF(AND($V268<=AG$1,$W268>=AG$1),INDEX(Reliability!L$23:L$50,MATCH($T268,Reliability!$C$23:$C$50,0)),0),0)*$H268*$X268*$Y268),$D268)*$R268","v":0},{"$f":"MIN((IFERROR(IF(AND($V268<=AH$1,$W268>=AH$1),INDEX(Reliability!M$23:M$50,MATCH($S268,Reliability!$C$23:$C$50,0)),0),0)*IF($T268=\"n/a\",$D268*$Y268,$G268)+IFERROR(IF(AND($V268<=AH$1,$W268>=AH$1),INDEX(Reliability!M$23:M$50,MATCH($T268,Reliability!$C$23:$C$50,0)),0),0)*$H268*$X268*$Y268),$D268)*$R268","v":0},{"$f":"MIN((IFERROR(IF(AND($V268<=AI$1,$W268>=AI$1),INDEX(Reliability!N$23:N$50,MATCH($S268,Reliability!$C$23:$C$50,0)),0),0)*IF($T268=\"n/a\",$D268*$Y268,$G268)+IFERROR(IF(AND($V268<=AI$1,$W268>=AI$1),INDEX(Reliability!N$23:N$50,MATCH($T268,Reliability!$C$23:$C$50,0)),0),0)*$H268*$X268*$Y268),$D268)*$R268","v":0},{"$f":"MIN((IFERROR(IF(AND($V268<=AJ$1,$W268>=AJ$1),INDEX(Reliability!O$23:O$50,MATCH($S268,Reliability!$C$23:$C$50,0)),0),0)*IF($T268=\"n/a\",$D268*$Y268,$G268)+IFERROR(IF(AND($V268<=AJ$1,$W268>=AJ$1),INDEX(Reliability!O$23:O$50,MATCH($T268,Reliability!$C$23:$C$50,0)),0),0)*$H268*$X268*$Y268),$D268)*$R268","v":0},{"$f":"MIN((IFERROR(IF(AND($V268<=AK$1,$W268>=AK$1),INDEX(Reliability!P$23:P$50,MATCH($S268,Reliability!$C$23:$C$50,0)),0),0)*IF($T268=\"n/a\",$D268*$Y268,$G268)+IFERROR(IF(AND($V268<=AK$1,$W268>=AK$1),INDEX(Reliability!P$23:P$50,MATCH($T268,Reliability!$C$23:$C$50,0)),0),0)*$H268*$X268*$Y268),$D268)*$R268","v":0}]
[null,{"$f":"unique_contracts!B270","v":0},{"$f":"unique_contracts!D270","v":0},{"$f":"unique_contracts!J270","v":0},{"$f":"unique_contracts!M270","v":0},{"$f":"unique_contracts!N270","v":0},{"$f":"unique_contracts!P270","v":0},{"$f":"unique_contracts!R270","v":0},{"$f":"unique_contracts!V270","v":0},{"$f":"unique_contracts!AB270","v":0},{"$f":"unique_contracts!AM270","v":0},{"$f":"unique_contracts!AN270","v":0},{"$f":"unique_contracts!AO270","v":0},{"$f":"unique_contracts!AP270","v":0},{"$f":"unique_contracts!AQ270","v":0},{"$f":"unique_contracts!AR270","v":0},{"$f":"unique_contracts!BP270","v":0},0,{"$f":"IFERROR(IF(AND(I269>0,E269=\"NotHybrid\"),_xlfn.CONCAT(MAX(MIN(ROUNDDOWN(I269/D269,0),8),4),INDEX(resources!$G:$G,MATCH(B269,resources!$A:$A,0))),INDEX(resources!$G:$G,MATCH(B269,resources!$A:$A,0))),\"n/a\")","v":"n/a"},"n/a","n/a",0,0,1,1,{"$f":"MIN((IFERROR(IF(AND($V269<=Z$1,$W269>=Z$1),INDEX(Reliability!E$23:E$50,MATCH($S269,Reliability!$C$23:$C$50,0)),0),0)*IF($T269=\"n/a\",$D269*$Y269,$G269)+IFERROR(IF(AND($V269<=Z$1,$W269>=Z$1),INDEX(Reliability!E$23:E$50,MATCH($T269,Reliability!$C$23:$C$50,0)),0),0)*$H269*$X269*$Y269),$D269)*$R269","v":0},{"$f":"MIN((IFERROR(IF(AND($V269<=AA$1,$W269>=AA$1),INDEX(Reliability!F$23:F$50,MATCH($S269,Reliability!$C$23:$C$50,0)),0),0)*IF($T269=\"n/a\",$D269*$Y269,$G269)+IFERROR(IF(AND($V269<=AA$1,$W269>=AA$1),INDEX(Reliability!F$23:F$50,MATCH($T269,Reliability!$C$23:$C$50,0)),0),0)*$H269*$X269*$Y269),$D269)*$R269","v":0},{"$f":"MIN((IFERROR(IF(AND($V269<=AB$1,$W269>=AB$1),INDEX(Reliability!G$23:G$50,MATCH($S269,Reliability!$C$23:$C$50,0)),0),0)*IF($T269=\"n/a\",$D269*$Y269,$G269)+IFERROR(IF(AND($V269<=AB$1,$W269>=AB$1),INDEX(Reliability!G$23:G$50,MATCH($T269,Reliability!$C$23:$C$50,0)),0),0)*$H269*$X269*$Y269),$D269)*$R269","v":0},{"$f":"MIN((IFERROR(IF(AND($V269<=AC$1,$W269>=AC$1),INDEX(Reliability!H$23:H$50,MATCH($S269,Reliability!$C$23:$C$50,0)),0),0)*IF($T269=\"n/a\",$D269*$Y269,$G269)+IFERROR(IF(AND($V269<=AC$1,$W269>=AC$1),INDEX(Reliability!H$23:H$50,MATCH($T269,Reliability!$C$23:$C$50,0)),0),0)*$H269*$X269*$Y269),$D269)*$R269","v":0},{"$f":"MIN((IFERROR(IF(AND($V269<=AD$1,$W269>=AD$1),INDEX(Reliability!I$23:I$50,MATCH($S269,Reliability!$C$23:$C$50,0)),0),0)*IF($T269=\"n/a\",$D269*$Y269,$G269)+IFERROR(IF(AND($V269<=AD$1,$W269>=AD$1),INDEX(Reliability!I$23:I$50,MATCH($T269,Reliability!$C$23:$C$50,0)),0),0)*$H269*$X269*$Y269),$D269)*$R269","v":0},{"$f":"MIN((IFERROR(IF(AND($V269<=AE$1,$W269>=AE$1),INDEX(Reliability!J$23:J$50,MATCH($S269,Reliability!$C$23:$C$50,0)),0),0)*IF($T269=\"n/a\",$D269*$Y269,$G269)+IFERROR(IF(AND($V269<=AE$1,$W269>=AE$1),INDEX(Reliability!J$23:J$50,MATCH($T269,Reliability!$C$23:$C$50,0)),0),0)*$H269*$X269*$Y269),$D269)*$R269","v":0},{"$f":"MIN((IFERROR(IF(AND($V269<=AF$1,$W269>=AF$1),INDEX(Reliability!K$23:K$50,MATCH($S269,Reliability!$C$23:$C$50,0)),0),0)*IF($T269=\"n/a\",$D269*$Y269,$G269)+IFERROR(IF(AND($V269<=AF$1,$W269>=AF$1),INDEX(Reliability!K$23:K$50,MATCH($T269,Reliability!$C$23:$C$50,0)),0),0)*$H269*$X269*$Y269),$D269)*$R269","v":0},{"$f":"MIN((IFERROR(IF(AND($V269<=AG$1,$W269>=AG$1),INDEX(Reliability!L$23:L$50,MATCH($S269,Reliability!$C$23:$C$50,0)),0),0)*IF($T269=\"n/a\",$D269*$Y269,$G269)+IFERROR(IF(AND($V269<=AG$1,$W269>=AG$1),INDEX(Reliability!L$23:L$50,MATCH($T269,Reliability!$C$23:$C$50,0)),0),0)*$H269*$X269*$Y269),$D269)*$R269","v":0},{"$f":"MIN((IFERROR(IF(AND($V269<=AH$1,$W269>=AH$1),INDEX(Reliability!M$23:M$50,MATCH($S269,Reliability!$C$23:$C$50,0)),0),0)*IF($T269=\"n/a\",$D269*$Y269,$G269)+IFERROR(IF(AND($V269<=AH$1,$W269>=AH$1),INDEX(Reliability!M$23:M$50,MATCH($T269,Reliability!$C$23:$C$50,0)),0),0)*$H269*$X269*$Y269),$D269)*$R269","v":0},{"$f":"MIN((IFERROR(IF(AND($V269<=AI$1,$W269>=AI$1),INDEX(Reliability!N$23:N$50,MATCH($S269,Reliability!$C$23:$C$50,0)),0),0)*IF($T269=\"n/a\",$D269*$Y269,$G269)+IFERROR(IF(AND($V269<=AI$1,$W269>=AI$1),INDEX(Reliability!N$23:N$50,MATCH($T269,Reliability!$C$23:$C$50,0)),0),0)*$H269*$X269*$Y269),$D269)*$R269","v":0},{"$f":"MIN((IFERROR(IF(AND($V269<=AJ$1,$W269>=AJ$1),INDEX(Reliability!O$23:O$50,MATCH($S269,Reliability!$C$23:$C$50,0)),0),0)*IF($T269=\"n/a\",$D269*$Y269,$G269)+IFERROR(IF(AND($V269<=AJ$1,$W269>=AJ$1),INDEX(Reliability!O$23:O$50,MATCH($T269,Reliability!$C$23:$C$50,0)),0),0)*$H269*$X269*$Y269),$D269)*$R269","v":0},{"$f":"MIN((IFERROR(IF(AND($V269<=AK$1,$W269>=AK$1),INDEX(Reliability!P$23:P$50,MATCH($S269,Reliability!$C$23:$C$50,0)),0),0)*IF($T269=\"n/a\",$D269*$Y269,$G269)+IFERROR(IF(AND($V269<=AK$1,$W269>=AK$1),INDEX(Reliability!P$23:P$50,MATCH($T269,Reliability!$C$23:$C$50,0)),0),0)*$H269*$X269*$Y269),$D269)*$R269","v":0}]
[null,{"$f":"unique_contracts!B271","v":0},{"$f":"unique_contracts!D271","v":0},{"$f":"unique_contracts!J271","v":0},{"$f":"unique_contracts!M271","v":0},{"$f":"unique_contracts!N271","v":0},{"$f":"unique_contracts!P271","v":0},{"$f":"unique_contracts!R271","v":0},{"$f":"unique_contracts!V271","v":0},{"$f":"unique_contracts!AB271","v":0},{"$f":"unique_contracts!AM271","v":0},{"$f":"unique_contracts!AN271","v":0},{"$f":"unique_contracts!AO271","v":0},{"$f":"unique_contracts!AP271","v":0},{"$f":"unique_contracts!AQ271","v":0},{"$f":"unique_contracts!AR271","v":0},{"$f":"unique_contracts!BP271","v":0},0,{"$f":"IFERROR(IF(AND(I270>0,E270=\"NotHybrid\"),_xlfn.CONCAT(MAX(MIN(ROUNDDOWN(I270/D270,0),8),4),INDEX(resources!$G:$G,MATCH(B270,resources!$A:$A,0))),INDEX(resources!$G:$G,MATCH(B270,resources!$A:$A,0))),\"n/a\")","v":"n/a"},"n/a","n/a",0,0,1,1,{"$f":"MIN((IFERROR(IF(AND($V270<=Z$1,$W270>=Z$1),INDEX(Reliability!E$23:E$50,MATCH($S270,Reliability!$C$23:$C$50,0)),0),0)*IF($T270=\"n/a\",$D270*$Y270,$G270)+IFERROR(IF(AND($V270<=Z$1,$W270>=Z$1),INDEX(Reliability!E$23:E$50,MATCH($T270,Reliability!$C$23:$C$50,0)),0),0)*$H270*$X270*$Y270),$D270)*$R270","v":0},{"$f":"MIN((IFERROR(IF(AND($V270<=AA$1,$W270>=AA$1),INDEX(Reliability!F$23:F$50,MATCH($S270,Reliability!$C$23:$C$50,0)),0),0)*IF($T270=\"n/a\",$D270*$Y270,$G270)+IFERROR(IF(AND($V270<=AA$1,$W270>=AA$1),INDEX(Reliability!F$23:F$50,MATCH($T270,Reliability!$C$23:$C$50,0)),0),0)*$H270*$X270*$Y270),$D270)*$R270","v":0},{"$f":"MIN((IFERROR(IF(AND($V270<=AB$1,$W270>=AB$1),INDEX(Reliability!G$23:G$50,MATCH($S270,Reliability!$C$23:$C$50,0)),0),0)*IF($T270=\"n/a\",$D270*$Y270,$G270)+IFERROR(IF(AND($V270<=AB$1,$W270>=AB$1),INDEX(Reliability!G$23:G$50,MATCH($T270,Reliability!$C$23:$C$50,0)),0),0)*$H270*$X270*$Y270),$D270)*$R270","v":0},{"$f":"MIN((IFERROR(IF(AND($V270<=AC$1,$W270>=AC$1),INDEX(Reliability!H$23:H$50,MATCH($S270,Reliability!$C$23:$C$50,0)),0),0)*IF($T270=\"n/a\",$D270*$Y270,$G270)+IFERROR(IF(AND($V270<=AC$1,$W270>=AC$1),INDEX(Reliability!H$23:H$50,MATCH($T270,Reliability!$C$23:$C$50,0)),0),0)*$H270*$X270*$Y270),$D270)*$R270","v":0},{"$f":"MIN((IFERROR(IF(AND($V270<=AD$1,$W270>=AD$1),INDEX(Reliability!I$23:I$50,MATCH($S270,Reliability!$C$23:$C$50,0)),0),0)*IF($T270=\"n/a\",$D270*$Y270,$G270)+IFERROR(IF(AND($V270<=AD$1,$W270>=AD$1),INDEX(Reliability!I$23:I$50,MATCH($T270,Reliability!$C$23:$C$50,0)),0),0)*$H270*$X270*$Y270),$D270)*$R270","v":0},{"$f":"MIN((IFERROR(IF(AND($V270<=AE$1,$W270>=AE$1),INDEX(Reliability!J$23:J$50,MATCH($S270,Reliability!$C$23:$C$50,0)),0),0)*IF($T270=\"n/a\",$D270*$Y270,$G270)+IFERROR(IF(AND($V270<=AE$1,$W270>=AE$1),INDEX(Reliability!J$23:J$50,MATCH($T270,Reliability!$C$23:$C$50,0)),0),0)*$H270*$X270*$Y270),$D270)*$R270","v":0},{"$f":"MIN((IFERROR(IF(AND($V270<=AF$1,$W270>=AF$1),INDEX(Reliability!K$23:K$50,MATCH($S270,Reliability!$C$23:$C$50,0)),0),0)*IF($T270=\"n/a\",$D270*$Y270,$G270)+IFERROR(IF(AND($V270<=AF$1,$W270>=AF$1),INDEX(Reliability!K$23:K$50,MATCH($T270,Reliability!$C$23:$C$50,0)),0),0)*$H270*$X270*$Y270),$D270)*$R270","v":0},{"$f":"MIN((IFERROR(IF(AND($V270<=AG$1,$W270>=AG$1),INDEX(Reliability!L$23:L$50,MATCH($S270,Reliability!$C$23:$C$50,0)),0),0)*IF($T270=\"n/a\",$D270*$Y270,$G270)+IFERROR(IF(AND($V270<=AG$1,$W270>=AG$1),INDEX(Reliability!L$23:L$50,MATCH($T270,Reliability!$C$23:$C$50,0)),0),0)*$H270*$X270*$Y270),$D270)*$R270","v":0},{"$f":"MIN((IFERROR(IF(AND($V270<=AH$1,$W270>=AH$1),INDEX(Reliability!M$23:M$50,MATCH($S270,Reliability!$C$23:$C$50,0)),0),0)*IF($T270=\"n/a\",$D270*$Y270,$G270)+IFERROR(IF(AND($V270<=AH$1,$W270>=AH$1),INDEX(Reliability!M$23:M$50,MATCH($T270,Reliability!$C$23:$C$50,0)),0),0)*$H270*$X270*$Y270),$D270)*$R270","v":0},{"$f":"MIN((IFERROR(IF(AND($V270<=AI$1,$W270>=AI$1),INDEX(Reliability!N$23:N$50,MATCH($S270,Reliability!$C$23:$C$50,0)),0),0)*IF($T270=\"n/a\",$D270*$Y270,$G270)+IFERROR(IF(AND($V270<=AI$1,$W270>=AI$1),INDEX(Reliability!N$23:N$50,MATCH($T270,Reliability!$C$23:$C$50,0)),0),0)*$H270*$X270*$Y270),$D270)*$R270","v":0},{"$f":"MIN((IFERROR(IF(AND($V270<=AJ$1,$W270>=AJ$1),INDEX(Reliability!O$23:O$50,MATCH($S270,Reliability!$C$23:$C$50,0)),0),0)*IF($T270=\"n/a\",$D270*$Y270,$G270)+IFERROR(IF(AND($V270<=AJ$1,$W270>=AJ$1),INDEX(Reliability!O$23:O$50,MATCH($T270,Reliability!$C$23:$C$50,0)),0),0)*$H270*$X270*$Y270),$D270)*$R270","v":0},{"$f":"MIN((IFERROR(IF(AND($V270<=AK$1,$W270>=AK$1),INDEX(Reliability!P$23:P$50,MATCH($S270,Reliability!$C$23:$C$50,0)),0),0)*IF($T270=\"n/a\",$D270*$Y270,$G270)+IFERROR(IF(AND($V270<=AK$1,$W270>=AK$1),INDEX(Reliability!P$23:P$50,MATCH($T270,Reliability!$C$23:$C$50,0)),0),0)*$H270*$X270*$Y270),$D270)*$R270","v":0}]
[null,{"$f":"unique_contracts!B272","v":0},{"$f":"unique_contracts!D272","v":0},{"$f":"unique_contracts!J272","v":0},{"$f":"unique_contracts!M272","v":0},{"$f":"unique_contracts!N272","v":0},{"$f":"unique_contracts!P272","v":0},{"$f":"unique_contracts!R272","v":0},{"$f":"unique_contracts!V272","v":0},{"$f":"unique_contracts!AB272","v":0},{"$f":"unique_contracts!AM272","v":0},{"$f":"unique_contracts!AN272","v":0},{"$f":"unique_contracts!AO272","v":0},{"$f":"unique_contracts!AP272","v":0},{"$f":"unique_contracts!AQ272","v":0},{"$f":"unique_contracts!AR272","v":0},{"$f":"unique_contracts!BP272","v":0},0,{"$f":"IFERROR(IF(AND(I271>0,E271=\"NotHybrid\"),_xlfn.CONCAT(MAX(MIN(ROUNDDOWN(I271/D271,0),8),4),INDEX(resources!$G:$G,MATCH(B271,resources!$A:$A,0))),INDEX(resources!$G:$G,MATCH(B271,resources!$A:$A,0))),\"n/a\")","v":"n/a"},"n/a","n/a",0,0,1,1,{"$f":"MIN((IFERROR(IF(AND($V271<=Z$1,$W271>=Z$1),INDEX(Reliability!E$23:E$50,MATCH($S271,Reliability!$C$23:$C$50,0)),0),0)*IF($T271=\"n/a\",$D271*$Y271,$G271)+IFERROR(IF(AND($V271<=Z$1,$W271>=Z$1),INDEX(Reliability!E$23:E$50,MATCH($T271,Reliability!$C$23:$C$50,0)),0),0)*$H271*$X271*$Y271),$D271)*$R271","v":0},{"$f":"MIN((IFERROR(IF(AND($V271<=AA$1,$W271>=AA$1),INDEX(Reliability!F$23:F$50,MATCH($S271,Reliability!$C$23:$C$50,0)),0),0)*IF($T271=\"n/a\",$D271*$Y271,$G271)+IFERROR(IF(AND($V271<=AA$1,$W271>=AA$1),INDEX(Reliability!F$23:F$50,MATCH($T271,Reliability!$C$23:$C$50,0)),0),0)*$H271*$X271*$Y271),$D271)*$R271","v":0},{"$f":"MIN((IFERROR(IF(AND($V271<=AB$1,$W271>=AB$1),INDEX(Reliability!G$23:G$50,MATCH($S271,Reliability!$C$23:$C$50,0)),0),0)*IF($T271=\"n/a\",$D271*$Y271,$G271)+IFERROR(IF(AND($V271<=AB$1,$W271>=AB$1),INDEX(Reliability!G$23:G$50,MATCH($T271,Reliability!$C$23:$C$50,0)),0),0)*$H271*$X271*$Y271),$D271)*$R271","v":0},{"$f":"MIN((IFERROR(IF(AND($V271<=AC$1,$W271>=AC$1),INDEX(Reliability!H$23:H$50,MATCH($S271,Reliability!$C$23:$C$50,0)),0),0)*IF($T271=\"n/a\",$D271*$Y271,$G271)+IFERROR(IF(AND($V271<=AC$1,$W271>=AC$1),INDEX(Reliability!H$23:H$50,MATCH($T271,Reliability!$C$23:$C$50,0)),0),0)*$H271*$X271*$Y271),$D271)*$R271","v":0},{"$f":"MIN((IFERROR(IF(AND($V271<=AD$1,$W271>=AD$1),INDEX(Reliability!I$23:I$50,MATCH($S271,Reliability!$C$23:$C$50,0)),0),0)*IF($T271=\"n/a\",$D271*$Y271,$G271)+IFERROR(IF(AND($V271<=AD$1,$W271>=AD$1),INDEX(Reliability!I$23:I$50,MATCH($T271,Reliability!$C$23:$C$50,0)),0),0)*$H271*$X271*$Y271),$D271)*$R271","v":0},{"$f":"MIN((IFERROR(IF(AND($V271<=AE$1,$W271>=AE$1),INDEX(Reliability!J$23:J$50,MATCH($S271,Reliability!$C$23:$C$50,0)),0),0)*IF($T271=\"n/a\",$D271*$Y271,$G271)+IFERROR(IF(AND($V271<=AE$1,$W271>=AE$1),INDEX(Reliability!J$23:J$50,MATCH($T271,Reliability!$C$23:$C$50,0)),0),0)*$H271*$X271*$Y271),$D271)*$R271","v":0},{"$f":"MIN((IFERROR(IF(AND($V271<=AF$1,$W271>=AF$1),INDEX(Reliability!K$23:K$50,MATCH($S271,Reliability!$C$23:$C$50,0)),0),0)*IF($T271=\"n/a\",$D271*$Y271,$G271)+IFERROR(IF(AND($V271<=AF$1,$W271>=AF$1),INDEX(Reliability!K$23:K$50,MATCH($T271,Reliability!$C$23:$C$50,0)),0),0)*$H271*$X271*$Y271),$D271)*$R271","v":0},{"$f":"MIN((IFERROR(IF(AND($V271<=AG$1,$W271>=AG$1),INDEX(Reliability!L$23:L$50,MATCH($S271,Reliability!$C$23:$C$50,0)),0),0)*IF($T271=\"n/a\",$D271*$Y271,$G271)+IFERROR(IF(AND($V271<=AG$1,$W271>=AG$1),INDEX(Reliability!L$23:L$50,MATCH($T271,Reliability!$C$23:$C$50,0)),0),0)*$H271*$X271*$Y271),$D271)*$R271","v":0},{"$f":"MIN((IFERROR(IF(AND($V271<=AH$1,$W271>=AH$1),INDEX(Reliability!M$23:M$50,MATCH($S271,Reliability!$C$23:$C$50,0)),0),0)*IF($T271=\"n/a\",$D271*$Y271,$G271)+IFERROR(IF(AND($V271<=AH$1,$W271>=AH$1),INDEX(Reliability!M$23:M$50,MATCH($T271,Reliability!$C$23:$C$50,0)),0),0)*$H271*$X271*$Y271),$D271)*$R271","v":0},{"$f":"MIN((IFERROR(IF(AND($V271<=AI$1,$W271>=AI$1),INDEX(Reliability!N$23:N$50,MATCH($S271,Reliability!$C$23:$C$50,0)),0),0)*IF($T271=\"n/a\",$D271*$Y271,$G271)+IFERROR(IF(AND($V271<=AI$1,$W271>=AI$1),INDEX(Reliability!N$23:N$50,MATCH($T271,Reliability!$C$23:$C$50,0)),0),0)*$H271*$X271*$Y271),$D271)*$R271","v":0},{"$f":"MIN((IFERROR(IF(AND($V271<=AJ$1,$W271>=AJ$1),INDEX(Reliability!O$23:O$50,MATCH($S271,Reliability!$C$23:$C$50,0)),0),0)*IF($T271=\"n/a\",$D271*$Y271,$G271)+IFERROR(IF(AND($V271<=AJ$1,$W271>=AJ$1),INDEX(Reliability!O$23:O$50,MATCH($T271,Reliability!$C$23:$C$50,0)),0),0)*$H271*$X271*$Y271),$D271)*$R271","v":0},{"$f":"MIN((IFERROR(IF(AND($V271<=AK$1,$W271>=AK$1),INDEX(Reliability!P$23:P$50,MATCH($S271,Reliability!$C$23:$C$50,0)),0),0)*IF($T271=\"n/a\",$D271*$Y271,$G271)+IFERROR(IF(AND($V271<=AK$1,$W271>=AK$1),INDEX(Reliability!P$23:P$50,MATCH($T271,Reliability!$C$23:$C$50,0)),0),0)*$H271*$X271*$Y271),$D271)*$R271","v":0}]
[null,{"$f":"unique_contracts!B273","v":0},{"$f":"unique_contracts!D273","v":0},{"$f":"unique_contracts!J273","v":0},{"$f":"unique_contracts!M273","v":0},{"$f":"unique_contracts!N273","v":0},{"$f":"unique_contracts!P273","v":0},{"$f":"unique_contracts!R273","v":0},{"$f":"unique_contracts!V273","v":0},{"$f":"unique_contracts!AB273","v":0},{"$f":"unique_contracts!AM273","v":0},{"$f":"unique_contracts!AN273","v":0},{"$f":"unique_contracts!AO273","v":0},{"$f":"unique_contracts!AP273","v":0},{"$f":"unique_contracts!AQ273","v":0},{"$f":"unique_contracts!AR273","v":0},{"$f":"unique_contracts!BP273","v":0},0,{"$f":"IFERROR(IF(AND(I272>0,E272=\"NotHybrid\"),_xlfn.CONCAT(MAX(MIN(ROUNDDOWN(I272/D272,0),8),4),INDEX(resources!$G:$G,MATCH(B272,resources!$A:$A,0))),INDEX(resources!$G:$G,MATCH(B272,resources!$A:$A,0))),\"n/a\")","v":"n/a"},"n/a","n/a",0,0,1,1,{"$f":"MIN((IFERROR(IF(AND($V272<=Z$1,$W272>=Z$1),INDEX(Reliability!E$23:E$50,MATCH($S272,Reliability!$C$23:$C$50,0)),0),0)*IF($T272=\"n/a\",$D272*$Y272,$G272)+IFERROR(IF(AND($V272<=Z$1,$W272>=Z$1),INDEX(Reliability!E$23:E$50,MATCH($T272,Reliability!$C$23:$C$50,0)),0),0)*$H272*$X272*$Y272),$D272)*$R272","v":0},{"$f":"MIN((IFERROR(IF(AND($V272<=AA$1,$W272>=AA$1),INDEX(Reliability!F$23:F$50,MATCH($S272,Reliability!$C$23:$C$50,0)),0),0)*IF($T272=\"n/a\",$D272*$Y272,$G272)+IFERROR(IF(AND($V272<=AA$1,$W272>=AA$1),INDEX(Reliability!F$23:F$50,MATCH($T272,Reliability!$C$23:$C$50,0)),0),0)*$H272*$X272*$Y272),$D272)*$R272","v":0},{"$f":"MIN((IFERROR(IF(AND($V272<=AB$1,$W272>=AB$1),INDEX(Reliability!G$23:G$50,MATCH($S272,Reliability!$C$23:$C$50,0)),0),0)*IF($T272=\"n/a\",$D272*$Y272,$G272)+IFERROR(IF(AND($V272<=AB$1,$W272>=AB$1),INDEX(Reliability!G$23:G$50,MATCH($T272,Reliability!$C$23:$C$50,0)),0),0)*$H272*$X272*$Y272),$D272)*$R272","v":0},{"$f":"MIN((IFERROR(IF(AND($V272<=AC$1,$W272>=AC$1),INDEX(Reliability!H$23:H$50,MATCH($S272,Reliability!$C$23:$C$50,0)),0),0)*IF($T272=\"n/a\",$D272*$Y272,$G272)+IFERROR(IF(AND($V272<=AC$1,$W272>=AC$1),INDEX(Reliability!H$23:H$50,MATCH($T272,Reliability!$C$23:$C$50,0)),0),0)*$H272*$X272*$Y272),$D272)*$R272","v":0},{"$f":"MIN((IFERROR(IF(AND($V272<=AD$1,$W272>=AD$1),INDEX(Reliability!I$23:I$50,MATCH($S272,Reliability!$C$23:$C$50,0)),0),0)*IF($T272=\"n/a\",$D272*$Y272,$G272)+IFERROR(IF(AND($V272<=AD$1,$W272>=AD$1),INDEX(Reliability!I$23:I$50,MATCH($T272,Reliability!$C$23:$C$50,0)),0),0)*$H272*$X272*$Y272),$D272)*$R272","v":0},{"$f":"MIN((IFERROR(IF(AND($V272<=AE$1,$W272>=AE$1),INDEX(Reliability!J$23:J$50,MATCH($S272,Reliability!$C$23:$C$50,0)),0),0)*IF($T272=\"n/a\",$D272*$Y272,$G272)+IFERROR(IF(AND($V272<=AE$1,$W272>=AE$1),INDEX(Reliability!J$23:J$50,MATCH($T272,Reliability!$C$23:$C$50,0)),0),0)*$H272*$X272*$Y272),$D272)*$R272","v":0},{"$f":"MIN((IFERROR(IF(AND($V272<=AF$1,$W272>=AF$1),INDEX(Reliability!K$23:K$50,MATCH($S272,Reliability!$C$23:$C$50,0)),0),0)*IF($T272=\"n/a\",$D272*$Y272,$G272)+IFERROR(IF(AND($V272<=AF$1,$W272>=AF$1),INDEX(Reliability!K$23:K$50,MATCH($T272,Reliability!$C$23:$C$50,0)),0),0)*$H272*$X272*$Y272),$D272)*$R272","v":0},{"$f":"MIN((IFERROR(IF(AND($V272<=AG$1,$W272>=AG$1),INDEX(Reliability!L$23:L$50,MATCH($S272,Reliability!$C$23:$C$50,0)),0),0)*IF($T272=\"n/a\",$D272*$Y272,$G272)+IFERROR(IF(AND($V272<=AG$1,$W272>=AG$1),INDEX(Reliability!L$23:L$50,MATCH($T272,Reliability!$C$23:$C$50,0)),0),0)*$H272*$X272*$Y272),$D272)*$R272","v":0},{"$f":"MIN((IFERROR(IF(AND($V272<=AH$1,$W272>=AH$1),INDEX(Reliability!M$23:M$50,MATCH($S272,Reliability!$C$23:$C$50,0)),0),0)*IF($T272=\"n/a\",$D272*$Y272,$G272)+IFERROR(IF(AND($V272<=AH$1,$W272>=AH$1),INDEX(Reliability!M$23:M$50,MATCH($T272,Reliability!$C$23:$C$50,0)),0),0)*$H272*$X272*$Y272),$D272)*$R272","v":0},{"$f":"MIN((IFERROR(IF(AND($V272<=AI$1,$W272>=AI$1),INDEX(Reliability!N$23:N$50,MATCH($S272,Reliability!$C$23:$C$50,0)),0),0)*IF($T272=\"n/a\",$D272*$Y272,$G272)+IFERROR(IF(AND($V272<=AI$1,$W272>=AI$1),INDEX(Reliability!N$23:N$50,MATCH($T272,Reliability!$C$23:$C$50,0)),0),0)*$H272*$X272*$Y272),$D272)*$R272","v":0},{"$f":"MIN((IFERROR(IF(AND($V272<=AJ$1,$W272>=AJ$1),INDEX(Reliability!O$23:O$50,MATCH($S272,Reliability!$C$23:$C$50,0)),0),0)*IF($T272=\"n/a\",$D272*$Y272,$G272)+IFERROR(IF(AND($V272<=AJ$1,$W272>=AJ$1),INDEX(Reliability!O$23:O$50,MATCH($T272,Reliability!$C$23:$C$50,0)),0),0)*$H272*$X272*$Y272),$D272)*$R272","v":0},{"$f":"MIN((IFERROR(IF(AND($V272<=AK$1,$W272>=AK$1),INDEX(Reliability!P$23:P$50,MATCH($S272,Reliability!$C$23:$C$50,0)),0),0)*IF($T272=\"n/a\",$D272*$Y272,$G272)+IFERROR(IF(AND($V272<=AK$1,$W272>=AK$1),INDEX(Reliability!P$23:P$50,MATCH($T272,Reliability!$C$23:$C$50,0)),0),0)*$H272*$X272*$Y272),$D272)*$R272","v":0}]
[null,{"$f":"unique_contracts!B274","v":0},{"$f":"unique_contracts!D274","v":0},{"$f":"unique_contracts!J274","v":0},{"$f":"unique_contracts!M274","v":0},{"$f":"unique_contracts!N274","v":0},{"$f":"unique_contracts!P274","v":0},{"$f":"unique_contracts!R274","v":0},{"$f":"unique_contracts!V274","v":0},{"$f":"unique_contracts!AB274","v":0},{"$f":"unique_contracts!AM274","v":0},{"$f":"unique_contracts!AN274","v":0},{"$f":"unique_contracts!AO274","v":0},{"$f":"unique_contracts!AP274","v":0},{"$f":"unique_contracts!AQ274","v":0},{"$f":"unique_contracts!AR274","v":0},{"$f":"unique_contracts!BP274","v":0},0,{"$f":"IFERROR(IF(AND(I273>0,E273=\"NotHybrid\"),_xlfn.CONCAT(MAX(MIN(ROUNDDOWN(I273/D273,0),8),4),INDEX(resources!$G:$G,MATCH(B273,resources!$A:$A,0))),INDEX(resources!$G:$G,MATCH(B273,resources!$A:$A,0))),\"n/a\")","v":"n/a"},"n/a","n/a",0,0,1,1,{"$f":"MIN((IFERROR(IF(AND($V273<=Z$1,$W273>=Z$1),INDEX(Reliability!E$23:E$50,MATCH($S273,Reliability!$C$23:$C$50,0)),0),0)*IF($T273=\"n/a\",$D273*$Y273,$G273)+IFERROR(IF(AND($V273<=Z$1,$W273>=Z$1),INDEX(Reliability!E$23:E$50,MATCH($T273,Reliability!$C$23:$C$50,0)),0),0)*$H273*$X273*$Y273),$D273)*$R273","v":0},{"$f":"MIN((IFERROR(IF(AND($V273<=AA$1,$W273>=AA$1),INDEX(Reliability!F$23:F$50,MATCH($S273,Reliability!$C$23:$C$50,0)),0),0)*IF($T273=\"n/a\",$D273*$Y273,$G273)+IFERROR(IF(AND($V273<=AA$1,$W273>=AA$1),INDEX(Reliability!F$23:F$50,MATCH($T273,Reliability!$C$23:$C$50,0)),0),0)*$H273*$X273*$Y273),$D273)*$R273","v":0},{"$f":"MIN((IFERROR(IF(AND($V273<=AB$1,$W273>=AB$1),INDEX(Reliability!G$23:G$50,MATCH($S273,Reliability!$C$23:$C$50,0)),0),0)*IF($T273=\"n/a\",$D273*$Y273,$G273)+IFERROR(IF(AND($V273<=AB$1,$W273>=AB$1),INDEX(Reliability!G$23:G$50,MATCH($T273,Reliability!$C$23:$C$50,0)),0),0)*$H273*$X273*$Y273),$D273)*$R273","v":0},{"$f":"MIN((IFERROR(IF(AND($V273<=AC$1,$W273>=AC$1),INDEX(Reliability!H$23:H$50,MATCH($S273,Reliability!$C$23:$C$50,0)),0),0)*IF($T273=\"n/a\",$D273*$Y273,$G273)+IFERROR(IF(AND($V273<=AC$1,$W273>=AC$1),INDEX(Reliability!H$23:H$50,MATCH($T273,Reliability!$C$23:$C$50,0)),0),0)*$H273*$X273*$Y273),$D273)*$R273","v":0},{"$f":"MIN((IFERROR(IF(AND($V273<=AD$1,$W273>=AD$1),INDEX(Reliability!I$23:I$50,MATCH($S273,Reliability!$C$23:$C$50,0)),0),0)*IF($T273=\"n/a\",$D273*$Y273,$G273)+IFERROR(IF(AND($V273<=AD$1,$W273>=AD$1),INDEX(Reliability!I$23:I$50,MATCH($T273,Reliability!$C$23:$C$50,0)),0),0)*$H273*$X273*$Y273),$D273)*$R273","v":0},{"$f":"MIN((IFERROR(IF(AND($V273<=AE$1,$W273>=AE$1),INDEX(Reliability!J$23:J$50,MATCH($S273,Reliability!$C$23:$C$50,0)),0),0)*IF($T273=\"n/a\",$D273*$Y273,$G273)+IFERROR(IF(AND($V273<=AE$1,$W273>=AE$1),INDEX(Reliability!J$23:J$50,MATCH($T273,Reliability!$C$23:$C$50,0)),0),0)*$H273*$X273*$Y273),$D273)*$R273","v":0},{"$f":"MIN((IFERROR(IF(AND($V273<=AF$1,$W273>=AF$1),INDEX(Reliability!K$23:K$50,MATCH($S273,Reliability!$C$23:$C$50,0)),0),0)*IF($T273=\"n/a\",$D273*$Y273,$G273)+IFERROR(IF(AND($V273<=AF$1,$W273>=AF$1),INDEX(Reliability!K$23:K$50,MATCH($T273,Reliability!$C$23:$C$50,0)),0),0)*$H273*$X273*$Y273),$D273)*$R273","v":0},{"$f":"MIN((IFERROR(IF(AND($V273<=AG$1,$W273>=AG$1),INDEX(Reliability!L$23:L$50,MATCH($S273,Reliability!$C$23:$C$50,0)),0),0)*IF($T273=\"n/a\",$D273*$Y273,$G273)+IFERROR(IF(AND($V273<=AG$1,$W273>=AG$1),INDEX(Reliability!L$23:L$50,MATCH($T273,Reliability!$C$23:$C$50,0)),0),0)*$H273*$X273*$Y273),$D273)*$R273","v":0},{"$f":"MIN((IFERROR(IF(AND($V273<=AH$1,$W273>=AH$1),INDEX(Reliability!M$23:M$50,MATCH($S273,Reliability!$C$23:$C$50,0)),0),0)*IF($T273=\"n/a\",$D273*$Y273,$G273)+IFERROR(IF(AND($V273<=AH$1,$W273>=AH$1),INDEX(Reliability!M$23:M$50,MATCH($T273,Reliability!$C$23:$C$50,0)),0),0)*$H273*$X273*$Y273),$D273)*$R273","v":0},{"$f":"MIN((IFERROR(IF(AND($V273<=AI$1,$W273>=AI$1),INDEX(Reliability!N$23:N$50,MATCH($S273,Reliability!$C$23:$C$50,0)),0),0)*IF($T273=\"n/a\",$D273*$Y273,$G273)+IFERROR(IF(AND($V273<=AI$1,$W273>=AI$1),INDEX(Reliability!N$23:N$50,MATCH($T273,Reliability!$C$23:$C$50,0)),0),0)*$H273*$X273*$Y273),$D273)*$R273","v":0},{"$f":"MIN((IFERROR(IF(AND($V273<=AJ$1,$W273>=AJ$1),INDEX(Reliability!O$23:O$50,MATCH($S273,Reliability!$C$23:$C$50,0)),0),0)*IF($T273=\"n/a\",$D273*$Y273,$G273)+IFERROR(IF(AND($V273<=AJ$1,$W273>=AJ$1),INDEX(Reliability!O$23:O$50,MATCH($T273,Reliability!$C$23:$C$50,0)),0),0)*$H273*$X273*$Y273),$D273)*$R273","v":0},{"$f":"MIN((IFERROR(IF(AND($V273<=AK$1,$W273>=AK$1),INDEX(Reliability!P$23:P$50,MATCH($S273,Reliability!$C$23:$C$50,0)),0),0)*IF($T273=\"n/a\",$D273*$Y273,$G273)+IFERROR(IF(AND($V273<=AK$1,$W273>=AK$1),INDEX(Reliability!P$23:P$50,MATCH($T273,Reliability!$C$23:$C$50,0)),0),0)*$H273*$X273*$Y273),$D273)*$R273","v":0}]
[null,{"$f":"unique_contracts!B275","v":0},{"$f":"unique_contracts!D275","v":0},{"$f":"unique_contracts!J275","v":0},{"$f":"unique_contracts!M275","v":0},{"$f":"unique_contracts!N275","v":0},{"$f":"unique_contracts!P275","v":0},{"$f":"unique_contracts!R275","v":0},{"$f":"unique_contracts!V275","v":0},{"$f":"unique_contracts!AB275","v":0},{"$f":"unique_contracts!AM275","v":0},{"$f":"unique_contracts!AN275","v":0},{"$f":"unique_contracts!AO275","v":0},{"$f":"unique_contracts!AP275","v":0},{"$f":"unique_contracts!AQ275","v":0},{"$f":"unique_contracts!AR275","v":0},{"$f":"unique_contracts!BP275","v":0},0,{"$f":"IFERROR(IF(AND(I274>0,E274=\"NotHybrid\"),_xlfn.CONCAT(MAX(MIN(ROUNDDOWN(I274/D274,0),8),4),INDEX(resources!$G:$G,MATCH(B274,resources!$A:$A,0))),INDEX(resources!$G:$G,MATCH(B274,resources!$A:$A,0))),\"n/a\")","v":"n/a"},"n/a","n/a",0,0,1,1,{"$f":"MIN((IFERROR(IF(AND($V274<=Z$1,$W274>=Z$1),INDEX(Reliability!E$23:E$50,MATCH($S274,Reliability!$C$23:$C$50,0)),0),0)*IF($T274=\"n/a\",$D274*$Y274,$G274)+IFERROR(IF(AND($V274<=Z$1,$W274>=Z$1),INDEX(Reliability!E$23:E$50,MATCH($T274,Reliability!$C$23:$C$50,0)),0),0)*$H274*$X274*$Y274),$D274)*$R274","v":0},{"$f":"MIN((IFERROR(IF(AND($V274<=AA$1,$W274>=AA$1),INDEX(Reliability!F$23:F$50,MATCH($S274,Reliability!$C$23:$C$50,0)),0),0)*IF($T274=\"n/a\",$D274*$Y274,$G274)+IFERROR(IF(AND($V274<=AA$1,$W274>=AA$1),INDEX(Reliability!F$23:F$50,MATCH($T274,Reliability!$C$23:$C$50,0)),0),0)*$H274*$X274*$Y274),$D274)*$R274","v":0},{"$f":"MIN((IFERROR(IF(AND($V274<=AB$1,$W274>=AB$1),INDEX(Reliability!G$23:G$50,MATCH($S274,Reliability!$C$23:$C$50,0)),0),0)*IF($T274=\"n/a\",$D274*$Y274,$G274)+IFERROR(IF(AND($V274<=AB$1,$W274>=AB$1),INDEX(Reliability!G$23:G$50,MATCH($T274,Reliability!$C$23:$C$50,0)),0),0)*$H274*$X274*$Y274),$D274)*$R274","v":0},{"$f":"MIN((IFERROR(IF(AND($V274<=AC$1,$W274>=AC$1),INDEX(Reliability!H$23:H$50,MATCH($S274,Reliability!$C$23:$C$50,0)),0),0)*IF($T274=\"n/a\",$D274*$Y274,$G274)+IFERROR(IF(AND($V274<=AC$1,$W274>=AC$1),INDEX(Reliability!H$23:H$50,MATCH($T274,Reliability!$C$23:$C$50,0)),0),0)*$H274*$X274*$Y274),$D274)*$R274","v":0},{"$f":"MIN((IFERROR(IF(AND($V274<=AD$1,$W274>=AD$1),INDEX(Reliability!I$23:I$50,MATCH($S274,Reliability!$C$23:$C$50,0)),0),0)*IF($T274=\"n/a\",$D274*$Y274,$G274)+IFERROR(IF(AND($V274<=AD$1,$W274>=AD$1),INDEX(Reliability!I$23:I$50,MATCH($T274,Reliability!$C$23:$C$50,0)),0),0)*$H274*$X274*$Y274),$D274)*$R274","v":0},{"$f":"MIN((IFERROR(IF(AND($V274<=AE$1,$W274>=AE$1),INDEX(Reliability!J$23:J$50,MATCH($S274,Reliability!$C$23:$C$50,0)),0),0)*IF($T274=\"n/a\",$D274*$Y274,$G274)+IFERROR(IF(AND($V274<=AE$1,$W274>=AE$1),INDEX(Reliability!J$23:J$50,MATCH($T274,Reliability!$C$23:$C$50,0)),0),0)*$H274*$X274*$Y274),$D274)*$R274","v":0},{"$f":"MIN((IFERROR(IF(AND($V274<=AF$1,$W274>=AF$1),INDEX(Reliability!K$23:K$50,MATCH($S274,Reliability!$C$23:$C$50,0)),0),0)*IF($T274=\"n/a\",$D274*$Y274,$G274)+IFERROR(IF(AND($V274<=AF$1,$W274>=AF$1),INDEX(Reliability!K$23:K$50,MATCH($T274,Reliability!$C$23:$C$50,0)),0),0)*$H274*$X274*$Y274),$D274)*$R274","v":0},{"$f":"MIN((IFERROR(IF(AND($V274<=AG$1,$W274>=AG$1),INDEX(Reliability!L$23:L$50,MATCH($S274,Reliability!$C$23:$C$50,0)),0),0)*IF($T274=\"n/a\",$D274*$Y274,$G274)+IFERROR(IF(AND($V274<=AG$1,$W274>=AG$1),INDEX(Reliability!L$23:L$50,MATCH($T274,Reliability!$C$23:$C$50,0)),0),0)*$H274*$X274*$Y274),$D274)*$R274","v":0},{"$f":"MIN((IFERROR(IF(AND($V274<=AH$1,$W274>=AH$1),INDEX(Reliability!M$23:M$50,MATCH($S274,Reliability!$C$23:$C$50,0)),0),0)*IF($T274=\"n/a\",$D274*$Y274,$G274)+IFERROR(IF(AND($V274<=AH$1,$W274>=AH$1),INDEX(Reliability!M$23:M$50,MATCH($T274,Reliability!$C$23:$C$50,0)),0),0)*$H274*$X274*$Y274),$D274)*$R274","v":0},{"$f":"MIN((IFERROR(IF(AND($V274<=AI$1,$W274>=AI$1),INDEX(Reliability!N$23:N$50,MATCH($S274,Reliability!$C$23:$C$50,0)),0),0)*IF($T274=\"n/a\",$D274*$Y274,$G274)+IFERROR(IF(AND($V274<=AI$1,$W274>=AI$1),INDEX(Reliability!N$23:N$50,MATCH($T274,Reliability!$C$23:$C$50,0)),0),0)*$H274*$X274*$Y274),$D274)*$R274","v":0},{"$f":"MIN((IFERROR(IF(AND($V274<=AJ$1,$W274>=AJ$1),INDEX(Reliability!O$23:O$50,MATCH($S274,Reliability!$C$23:$C$50,0)),0),0)*IF($T274=\"n/a\",$D274*$Y274,$G274)+IFERROR(IF(AND($V274<=AJ$1,$W274>=AJ$1),INDEX(Reliability!O$23:O$50,MATCH($T274,Reliability!$C$23:$C$50,0)),0),0)*$H274*$X274*$Y274),$D274)*$R274","v":0},{"$f":"MIN((IFERROR(IF(AND($V274<=AK$1,$W274>=AK$1),INDEX(Reliability!P$23:P$50,MATCH($S274,Reliability!$C$23:$C$50,0)),0),0)*IF($T274=\"n/a\",$D274*$Y274,$G274)+IFERROR(IF(AND($V274<=AK$1,$W274>=AK$1),INDEX(Reliability!P$23:P$50,MATCH($T274,Reliability!$C$23:$C$50,0)),0),0)*$H274*$X274*$Y274),$D274)*$R274","v":0}]
[null,{"$f":"unique_contracts!B276","v":0},{"$f":"unique_contracts!D276","v":0},{"$f":"unique_contracts!J276","v":0},{"$f":"unique_contracts!M276","v":0},{"$f":"unique_contracts!N276","v":0},{"$f":"unique_contracts!P276","v":0},{"$f":"unique_contracts!R276","v":0},{"$f":"unique_contracts!V276","v":0},{"$f":"unique_contracts!AB276","v":0},{"$f":"unique_contracts!AM276","v":0},{"$f":"unique_contracts!AN276","v":0},{"$f":"unique_contracts!AO276","v":0},{"$f":"unique_contracts!AP276","v":0},{"$f":"unique_contracts!AQ276","v":0},{"$f":"unique_contracts!AR276","v":0},{"$f":"unique_contracts!BP276","v":0},0,{"$f":"IFERROR(IF(AND(I275>0,E275=\"NotHybrid\"),_xlfn.CONCAT(MAX(MIN(ROUNDDOWN(I275/D275,0),8),4),INDEX(resources!$G:$G,MATCH(B275,resources!$A:$A,0))),INDEX(resources!$G:$G,MATCH(B275,resources!$A:$A,0))),\"n/a\")","v":"n/a"},"n/a","n/a",0,0,1,1,{"$f":"MIN((IFERROR(IF(AND($V275<=Z$1,$W275>=Z$1),INDEX(Reliability!E$23:E$50,MATCH($S275,Reliability!$C$23:$C$50,0)),0),0)*IF($T275=\"n/a\",$D275*$Y275,$G275)+IFERROR(IF(AND($V275<=Z$1,$W275>=Z$1),INDEX(Reliability!E$23:E$50,MATCH($T275,Reliability!$C$23:$C$50,0)),0),0)*$H275*$X275*$Y275),$D275)*$R275","v":0},{"$f":"MIN((IFERROR(IF(AND($V275<=AA$1,$W275>=AA$1),INDEX(Reliability!F$23:F$50,MATCH($S275,Reliability!$C$23:$C$50,0)),0),0)*IF($T275=\"n/a\",$D275*$Y275,$G275)+IFERROR(IF(AND($V275<=AA$1,$W275>=AA$1),INDEX(Reliability!F$23:F$50,MATCH($T275,Reliability!$C$23:$C$50,0)),0),0)*$H275*$X275*$Y275),$D275)*$R275","v":0},{"$f":"MIN((IFERROR(IF(AND($V275<=AB$1,$W275>=AB$1),INDEX(Reliability!G$23:G$50,MATCH($S275,Reliability!$C$23:$C$50,0)),0),0)*IF($T275=\"n/a\",$D275*$Y275,$G275)+IFERROR(IF(AND($V275<=AB$1,$W275>=AB$1),INDEX(Reliability!G$23:G$50,MATCH($T275,Reliability!$C$23:$C$50,0)),0),0)*$H275*$X275*$Y275),$D275)*$R275","v":0},{"$f":"MIN((IFERROR(IF(AND($V275<=AC$1,$W275>=AC$1),INDEX(Reliability!H$23:H$50,MATCH($S275,Reliability!$C$23:$C$50,0)),0),0)*IF($T275=\"n/a\",$D275*$Y275,$G275)+IFERROR(IF(AND($V275<=AC$1,$W275>=AC$1),INDEX(Reliability!H$23:H$50,MATCH($T275,Reliability!$C$23:$C$50,0)),0),0)*$H275*$X275*$Y275),$D275)*$R275","v":0},{"$f":"MIN((IFERROR(IF(AND($V275<=AD$1,$W275>=AD$1),INDEX(Reliability!I$23:I$50,MATCH($S275,Reliability!$C$23:$C$50,0)),0),0)*IF($T275=\"n/a\",$D275*$Y275,$G275)+IFERROR(IF(AND($V275<=AD$1,$W275>=AD$1),INDEX(Reliability!I$23:I$50,MATCH($T275,Reliability!$C$23:$C$50,0)),0),0)*$H275*$X275*$Y275),$D275)*$R275","v":0},{"$f":"MIN((IFERROR(IF(AND($V275<=AE$1,$W275>=AE$1),INDEX(Reliability!J$23:J$50,MATCH($S275,Reliability!$C$23:$C$50,0)),0),0)*IF($T275=\"n/a\",$D275*$Y275,$G275)+IFERROR(IF(AND($V275<=AE$1,$W275>=AE$1),INDEX(Reliability!J$23:J$50,MATCH($T275,Reliability!$C$23:$C$50,0)),0),0)*$H275*$X275*$Y275),$D275)*$R275","v":0},{"$f":"MIN((IFERROR(IF(AND($V275<=AF$1,$W275>=AF$1),INDEX(Reliability!K$23:K$50,MATCH($S275,Reliability!$C$23:$C$50,0)),0),0)*IF($T275=\"n/a\",$D275*$Y275,$G275)+IFERROR(IF(AND($V275<=AF$1,$W275>=AF$1),INDEX(Reliability!K$23:K$50,MATCH($T275,Reliability!$C$23:$C$50,0)),0),0)*$H275*$X275*$Y275),$D275)*$R275","v":0},{"$f":"MIN((IFERROR(IF(AND($V275<=AG$1,$W275>=AG$1),INDEX(Reliability!L$23:L$50,MATCH($S275,Reliability!$C$23:$C$50,0)),0),0)*IF($T275=\"n/a\",$D275*$Y275,$G275)+IFERROR(IF(AND($V275<=AG$1,$W275>=AG$1),INDEX(Reliability!L$23:L$50,MATCH($T275,Reliability!$C$23:$C$50,0)),0),0)*$H275*$X275*$Y275),$D275)*$R275","v":0},{"$f":"MIN((IFERROR(IF(AND($V275<=AH$1,$W275>=AH$1),INDEX(Reliability!M$23:M$50,MATCH($S275,Reliability!$C$23:$C$50,0)),0),0)*IF($T275=\"n/a\",$D275*$Y275,$G275)+IFERROR(IF(AND($V275<=AH$1,$W275>=AH$1),INDEX(Reliability!M$23:M$50,MATCH($T275,Reliability!$C$23:$C$50,0)),0),0)*$H275*$X275*$Y275),$D275)*$R275","v":0},{"$f":"MIN((IFERROR(IF(AND($V275<=AI$1,$W275>=AI$1),INDEX(Reliability!N$23:N$50,MATCH($S275,Reliability!$C$23:$C$50,0)),0),0)*IF($T275=\"n/a\",$D275*$Y275,$G275)+IFERROR(IF(AND($V275<=AI$1,$W275>=AI$1),INDEX(Reliability!N$23:N$50,MATCH($T275,Reliability!$C$23:$C$50,0)),0),0)*$H275*$X275*$Y275),$D275)*$R275","v":0},{"$f":"MIN((IFERROR(IF(AND($V275<=AJ$1,$W275>=AJ$1),INDEX(Reliability!O$23:O$50,MATCH($S275,Reliability!$C$23:$C$50,0)),0),0)*IF($T275=\"n/a\",$D275*$Y275,$G275)+IFERROR(IF(AND($V275<=AJ$1,$W275>=AJ$1),INDEX(Reliability!O$23:O$50,MATCH($T275,Reliability!$C$23:$C$50,0)),0),0)*$H275*$X275*$Y275),$D275)*$R275","v":0},{"$f":"MIN((IFERROR(IF(AND($V275<=AK$1,$W275>=AK$1),INDEX(Reliability!P$23:P$50,MATCH($S275,Reliability!$C$23:$C$50,0)),0),0)*IF($T275=\"n/a\",$D275*$Y275,$G275)+IFERROR(IF(AND($V275<=AK$1,$W275>=AK$1),INDEX(Reliability!P$23:P$50,MATCH($T275,Reliability!$C$23:$C$50,0)),0),0)*$H275*$X275*$Y275),$D275)*$R275","v":0}]
[null,{"$f":"unique_contracts!B277","v":0},{"$f":"unique_contracts!D277","v":0},{"$f":"unique_contracts!J277","v":0},{"$f":"unique_contracts!M277","v":0},{"$f":"unique_contracts!N277","v":0},{"$f":"unique_contracts!P277","v":0},{"$f":"unique_contracts!R277","v":0},{"$f":"unique_contracts!V277","v":0},{"$f":"unique_contracts!AB277","v":0},{"$f":"unique_contracts!AM277","v":0},{"$f":"unique_contracts!AN277","v":0},{"$f":"unique_contracts!AO277","v":0},{"$f":"unique_contracts!AP277","v":0},{"$f":"unique_contracts!AQ277","v":0},{"$f":"unique_contracts!AR277","v":0},{"$f":"unique_contracts!BP277","v":0},0,{"$f":"IFERROR(IF(AND(I276>0,E276=\"NotHybrid\"),_xlfn.CONCAT(MAX(MIN(ROUNDDOWN(I276/D276,0),8),4),INDEX(resources!$G:$G,MATCH(B276,resources!$A:$A,0))),INDEX(resources!$G:$G,MATCH(B276,resources!$A:$A,0))),\"n/a\")","v":"n/a"},"n/a","n/a",0,0,1,1,{"$f":"MIN((IFERROR(IF(AND($V276<=Z$1,$W276>=Z$1),INDEX(Reliability!E$23:E$50,MATCH($S276,Reliability!$C$23:$C$50,0)),0),0)*IF($T276=\"n/a\",$D276*$Y276,$G276)+IFERROR(IF(AND($V276<=Z$1,$W276>=Z$1),INDEX(Reliability!E$23:E$50,MATCH($T276,Reliability!$C$23:$C$50,0)),0),0)*$H276*$X276*$Y276),$D276)*$R276","v":0},{"$f":"MIN((IFERROR(IF(AND($V276<=AA$1,$W276>=AA$1),INDEX(Reliability!F$23:F$50,MATCH($S276,Reliability!$C$23:$C$50,0)),0),0)*IF($T276=\"n/a\",$D276*$Y276,$G276)+IFERROR(IF(AND($V276<=AA$1,$W276>=AA$1),INDEX(Reliability!F$23:F$50,MATCH($T276,Reliability!$C$23:$C$50,0)),0),0)*$H276*$X276*$Y276),$D276)*$R276","v":0},{"$f":"MIN((IFERROR(IF(AND($V276<=AB$1,$W276>=AB$1),INDEX(Reliability!G$23:G$50,MATCH($S276,Reliability!$C$23:$C$50,0)),0),0)*IF($T276=\"n/a\",$D276*$Y276,$G276)+IFERROR(IF(AND($V276<=AB$1,$W276>=AB$1),INDEX(Reliability!G$23:G$50,MATCH($T276,Reliability!$C$23:$C$50,0)),0),0)*$H276*$X276*$Y276),$D276)*$R276","v":0},{"$f":"MIN((IFERROR(IF(AND($V276<=AC$1,$W276>=AC$1),INDEX(Reliability!H$23:H$50,MATCH($S276,Reliability!$C$23:$C$50,0)),0),0)*IF($T276=\"n/a\",$D276*$Y276,$G276)+IFERROR(IF(AND($V276<=AC$1,$W276>=AC$1),INDEX(Reliability!H$23:H$50,MATCH($T276,Reliability!$C$23:$C$50,0)),0),0)*$H276*$X276*$Y276),$D276)*$R276","v":0},{"$f":"MIN((IFERROR(IF(AND($V276<=AD$1,$W276>=AD$1),INDEX(Reliability!I$23:I$50,MATCH($S276,Reliability!$C$23:$C$50,0)),0),0)*IF($T276=\"n/a\",$D276*$Y276,$G276)+IFERROR(IF(AND($V276<=AD$1,$W276>=AD$1),INDEX(Reliability!I$23:I$50,MATCH($T276,Reliability!$C$23:$C$50,0)),0),0)*$H276*$X276*$Y276),$D276)*$R276","v":0},{"$f":"MIN((IFERROR(IF(AND($V276<=AE$1,$W276>=AE$1),INDEX(Reliability!J$23:J$50,MATCH($S276,Reliability!$C$23:$C$50,0)),0),0)*IF($T276=\"n/a\",$D276*$Y276,$G276)+IFERROR(IF(AND($V276<=AE$1,$W276>=AE$1),INDEX(Reliability!J$23:J$50,MATCH($T276,Reliability!$C$23:$C$50,0)),0),0)*$H276*$X276*$Y276),$D276)*$R276","v":0},{"$f":"MIN((IFERROR(IF(AND($V276<=AF$1,$W276>=AF$1),INDEX(Reliability!K$23:K$50,MATCH($S276,Reliability!$C$23:$C$50,0)),0),0)*IF($T276=\"n/a\",$D276*$Y276,$G276)+IFERROR(IF(AND($V276<=AF$1,$W276>=AF$1),INDEX(Reliability!K$23:K$50,MATCH($T276,Reliability!$C$23:$C$50,0)),0),0)*$H276*$X276*$Y276),$D276)*$R276","v":0},{"$f":"MIN((IFERROR(IF(AND($V276<=AG$1,$W276>=AG$1),INDEX(Reliability!L$23:L$50,MATCH($S276,Reliability!$C$23:$C$50,0)),0),0)*IF($T276=\"n/a\",$D276*$Y276,$G276)+IFERROR(IF(AND($V276<=AG$1,$W276>=AG$1),INDEX(Reliability!L$23:L$50,MATCH($T276,Reliability!$C$23:$C$50,0)),0),0)*$H276*$X276*$Y276),$D276)*$R276","v":0},{"$f":"MIN((IFERROR(IF(AND($V276<=AH$1,$W276>=AH$1),INDEX(Reliability!M$23:M$50,MATCH($S276,Reliability!$C$23:$C$50,0)),0),0)*IF($T276=\"n/a\",$D276*$Y276,$G276)+IFERROR(IF(AND($V276<=AH$1,$W276>=AH$1),INDEX(Reliability!M$23:M$50,MATCH($T276,Reliability!$C$23:$C$50,0)),0),0)*$H276*$X276*$Y276),$D276)*$R276","v":0},{"$f":"MIN((IFERROR(IF(AND($V276<=AI$1,$W276>=AI$1),INDEX(Reliability!N$23:N$50,MATCH($S276,Reliability!$C$23:$C$50,0)),0),0)*IF($T276=\"n/a\",$D276*$Y276,$G276)+IFERROR(IF(AND($V276<=AI$1,$W276>=AI$1),INDEX(Reliability!N$23:N$50,MATCH($T276,Reliability!$C$23:$C$50,0)),0),0)*$H276*$X276*$Y276),$D276)*$R276","v":0},{"$f":"MIN((IFERROR(IF(AND($V276<=AJ$1,$W276>=AJ$1),INDEX(Reliability!O$23:O$50,MATCH($S276,Reliability!$C$23:$C$50,0)),0),0)*IF($T276=\"n/a\",$D276*$Y276,$G276)+IFERROR(IF(AND($V276<=AJ$1,$W276>=AJ$1),INDEX(Reliability!O$23:O$50,MATCH($T276,Reliability!$C$23:$C$50,0)),0),0)*$H276*$X276*$Y276),$D276)*$R276","v":0},{"$f":"MIN((IFERROR(IF(AND($V276<=AK$1,$W276>=AK$1),INDEX(Reliability!P$23:P$50,MATCH($S276,Reliability!$C$23:$C$50,0)),0),0)*IF($T276=\"n/a\",$D276*$Y276,$G276)+IFERROR(IF(AND($V276<=AK$1,$W276>=AK$1),INDEX(Reliability!P$23:P$50,MATCH($T276,Reliability!$C$23:$C$50,0)),0),0)*$H276*$X276*$Y276),$D276)*$R276","v":0}]
[null,{"$f":"unique_contracts!B278","v":0},{"$f":"unique_contracts!D278","v":0},{"$f":"unique_contracts!J278","v":0},{"$f":"unique_contracts!M278","v":0},{"$f":"unique_contracts!N278","v":0},{"$f":"unique_contracts!P278","v":0},{"$f":"unique_contracts!R278","v":0},{"$f":"unique_contracts!V278","v":0},{"$f":"unique_contracts!AB278","v":0},{"$f":"unique_contracts!AM278","v":0},{"$f":"unique_contracts!AN278","v":0},{"$f":"unique_contracts!AO278","v":0},{"$f":"unique_contracts!AP278","v":0},{"$f":"unique_contracts!AQ278","v":0},{"$f":"unique_contracts!AR278","v":0},{"$f":"unique_contracts!BP278","v":0},0,{"$f":"IFERROR(IF(AND(I277>0,E277=\"NotHybrid\"),_xlfn.CONCAT(MAX(MIN(ROUNDDOWN(I277/D277,0),8),4),INDEX(resources!$G:$G,MATCH(B277,resources!$A:$A,0))),INDEX(resources!$G:$G,MATCH(B277,resources!$A:$A,0))),\"n/a\")","v":"n/a"},"n/a","n/a",0,0,1,1,{"$f":"MIN((IFERROR(IF(AND($V277<=Z$1,$W277>=Z$1),INDEX(Reliability!E$23:E$50,MATCH($S277,Reliability!$C$23:$C$50,0)),0),0)*IF($T277=\"n/a\",$D277*$Y277,$G277)+IFERROR(IF(AND($V277<=Z$1,$W277>=Z$1),INDEX(Reliability!E$23:E$50,MATCH($T277,Reliability!$C$23:$C$50,0)),0),0)*$H277*$X277*$Y277),$D277)*$R277","v":0},{"$f":"MIN((IFERROR(IF(AND($V277<=AA$1,$W277>=AA$1),INDEX(Reliability!F$23:F$50,MATCH($S277,Reliability!$C$23:$C$50,0)),0),0)*IF($T277=\"n/a\",$D277*$Y277,$G277)+IFERROR(IF(AND($V277<=AA$1,$W277>=AA$1),INDEX(Reliability!F$23:F$50,MATCH($T277,Reliability!$C$23:$C$50,0)),0),0)*$H277*$X277*$Y277),$D277)*$R277","v":0},{"$f":"MIN((IFERROR(IF(AND($V277<=AB$1,$W277>=AB$1),INDEX(Reliability!G$23:G$50,MATCH($S277,Reliability!$C$23:$C$50,0)),0),0)*IF($T277=\"n/a\",$D277*$Y277,$G277)+IFERROR(IF(AND($V277<=AB$1,$W277>=AB$1),INDEX(Reliability!G$23:G$50,MATCH($T277,Reliability!$C$23:$C$50,0)),0),0)*$H277*$X277*$Y277),$D277)*$R277","v":0},{"$f":"MIN((IFERROR(IF(AND($V277<=AC$1,$W277>=AC$1),INDEX(Reliability!H$23:H$50,MATCH($S277,Reliability!$C$23:$C$50,0)),0),0)*IF($T277=\"n/a\",$D277*$Y277,$G277)+IFERROR(IF(AND($V277<=AC$1,$W277>=AC$1),INDEX(Reliability!H$23:H$50,MATCH($T277,Reliability!$C$23:$C$50,0)),0),0)*$H277*$X277*$Y277),$D277)*$R277","v":0},{"$f":"MIN((IFERROR(IF(AND($V277<=AD$1,$W277>=AD$1),INDEX(Reliability!I$23:I$50,MATCH($S277,Reliability!$C$23:$C$50,0)),0),0)*IF($T277=\"n/a\",$D277*$Y277,$G277)+IFERROR(IF(AND($V277<=AD$1,$W277>=AD$1),INDEX(Reliability!I$23:I$50,MATCH($T277,Reliability!$C$23:$C$50,0)),0),0)*$H277*$X277*$Y277),$D277)*$R277","v":0},{"$f":"MIN((IFERROR(IF(AND($V277<=AE$1,$W277>=AE$1),INDEX(Reliability!J$23:J$50,MATCH($S277,Reliability!$C$23:$C$50,0)),0),0)*IF($T277=\"n/a\",$D277*$Y277,$G277)+IFERROR(IF(AND($V277<=AE$1,$W277>=AE$1),INDEX(Reliability!J$23:J$50,MATCH($T277,Reliability!$C$23:$C$50,0)),0),0)*$H277*$X277*$Y277),$D277)*$R277","v":0},{"$f":"MIN((IFERROR(IF(AND($V277<=AF$1,$W277>=AF$1),INDEX(Reliability!K$23:K$50,MATCH($S277,Reliability!$C$23:$C$50,0)),0),0)*IF($T277=\"n/a\",$D277*$Y277,$G277)+IFERROR(IF(AND($V277<=AF$1,$W277>=AF$1),INDEX(Reliability!K$23:K$50,MATCH($T277,Reliability!$C$23:$C$50,0)),0),0)*$H277*$X277*$Y277),$D277)*$R277","v":0},{"$f":"MIN((IFERROR(IF(AND($V277<=AG$1,$W277>=AG$1),INDEX(Reliability!L$23:L$50,MATCH($S277,Reliability!$C$23:$C$50,0)),0),0)*IF($T277=\"n/a\",$D277*$Y277,$G277)+IFERROR(IF(AND($V277<=AG$1,$W277>=AG$1),INDEX(Reliability!L$23:L$50,MATCH($T277,Reliability!$C$23:$C$50,0)),0),0)*$H277*$X277*$Y277),$D277)*$R277","v":0},{"$f":"MIN((IFERROR(IF(AND($V277<=AH$1,$W277>=AH$1),INDEX(Reliability!M$23:M$50,MATCH($S277,Reliability!$C$23:$C$50,0)),0),0)*IF($T277=\"n/a\",$D277*$Y277,$G277)+IFERROR(IF(AND($V277<=AH$1,$W277>=AH$1),INDEX(Reliability!M$23:M$50,MATCH($T277,Reliability!$C$23:$C$50,0)),0),0)*$H277*$X277*$Y277),$D277)*$R277","v":0},{"$f":"MIN((IFERROR(IF(AND($V277<=AI$1,$W277>=AI$1),INDEX(Reliability!N$23:N$50,MATCH($S277,Reliability!$C$23:$C$50,0)),0),0)*IF($T277=\"n/a\",$D277*$Y277,$G277)+IFERROR(IF(AND($V277<=AI$1,$W277>=AI$1),INDEX(Reliability!N$23:N$50,MATCH($T277,Reliability!$C$23:$C$50,0)),0),0)*$H277*$X277*$Y277),$D277)*$R277","v":0},{"$f":"MIN((IFERROR(IF(AND($V277<=AJ$1,$W277>=AJ$1),INDEX(Reliability!O$23:O$50,MATCH($S277,Reliability!$C$23:$C$50,0)),0),0)*IF($T277=\"n/a\",$D277*$Y277,$G277)+IFERROR(IF(AND($V277<=AJ$1,$W277>=AJ$1),INDEX(Reliability!O$23:O$50,MATCH($T277,Reliability!$C$23:$C$50,0)),0),0)*$H277*$X277*$Y277),$D277)*$R277","v":0},{"$f":"MIN((IFERROR(IF(AND($V277<=AK$1,$W277>=AK$1),INDEX(Reliability!P$23:P$50,MATCH($S277,Reliability!$C$23:$C$50,0)),0),0)*IF($T277=\"n/a\",$D277*$Y277,$G277)+IFERROR(IF(AND($V277<=AK$1,$W277>=AK$1),INDEX(Reliability!P$23:P$50,MATCH($T277,Reliability!$C$23:$C$50,0)),0),0)*$H277*$X277*$Y277),$D277)*$R277","v":0}]
[null,{"$f":"unique_contracts!B279","v":0},{"$f":"unique_contracts!D279","v":0},{"$f":"unique_contracts!J279","v":0},{"$f":"unique_contracts!M279","v":0},{"$f":"unique_contracts!N279","v":0},{"$f":"unique_contracts!P279","v":0},{"$f":"unique_contracts!R279","v":0},{"$f":"unique_contracts!V279","v":0},{"$f":"unique_contracts!AB279","v":0},{"$f":"unique_contracts!AM279","v":0},{"$f":"unique_contracts!AN279","v":0},{"$f":"unique_contracts!AO279","v":0},{"$f":"unique_contracts!AP279","v":0},{"$f":"unique_contracts!AQ279","v":0},{"$f":"unique_contracts!AR279","v":0},{"$f":"unique_contracts!BP279","v":0},0,{"$f":"IFERROR(IF(AND(I278>0,E278=\"NotHybrid\"),_xlfn.CONCAT(MAX(MIN(ROUNDDOWN(I278/D278,0),8),4),INDEX(resources!$G:$G,MATCH(B278,resources!$A:$A,0))),INDEX(resources!$G:$G,MATCH(B278,resources!$A:$A,0))),\"n/a\")","v":"n/a"},"n/a","n/a",0,0,1,1,{"$f":"MIN((IFERROR(IF(AND($V278<=Z$1,$W278>=Z$1),INDEX(Reliability!E$23:E$50,MATCH($S278,Reliability!$C$23:$C$50,0)),0),0)*IF($T278=\"n/a\",$D278*$Y278,$G278)+IFERROR(IF(AND($V278<=Z$1,$W278>=Z$1),INDEX(Reliability!E$23:E$50,MATCH($T278,Reliability!$C$23:$C$50,0)),0),0)*$H278*$X278*$Y278),$D278)*$R278","v":0},{"$f":"MIN((IFERROR(IF(AND($V278<=AA$1,$W278>=AA$1),INDEX(Reliability!F$23:F$50,MATCH($S278,Reliability!$C$23:$C$50,0)),0),0)*IF($T278=\"n/a\",$D278*$Y278,$G278)+IFERROR(IF(AND($V278<=AA$1,$W278>=AA$1),INDEX(Reliability!F$23:F$50,MATCH($T278,Reliability!$C$23:$C$50,0)),0),0)*$H278*$X278*$Y278),$D278)*$R278","v":0},{"$f":"MIN((IFERROR(IF(AND($V278<=AB$1,$W278>=AB$1),INDEX(Reliability!G$23:G$50,MATCH($S278,Reliability!$C$23:$C$50,0)),0),0)*IF($T278=\"n/a\",$D278*$Y278,$G278)+IFERROR(IF(AND($V278<=AB$1,$W278>=AB$1),INDEX(Reliability!G$23:G$50,MATCH($T278,Reliability!$C$23:$C$50,0)),0),0)*$H278*$X278*$Y278),$D278)*$R278","v":0},{"$f":"MIN((IFERROR(IF(AND($V278<=AC$1,$W278>=AC$1),INDEX(Reliability!H$23:H$50,MATCH($S278,Reliability!$C$23:$C$50,0)),0),0)*IF($T278=\"n/a\",$D278*$Y278,$G278)+IFERROR(IF(AND($V278<=AC$1,$W278>=AC$1),INDEX(Reliability!H$23:H$50,MATCH($T278,Reliability!$C$23:$C$50,0)),0),0)*$H278*$X278*$Y278),$D278)*$R278","v":0},{"$f":"MIN((IFERROR(IF(AND($V278<=AD$1,$W278>=AD$1),INDEX(Reliability!I$23:I$50,MATCH($S278,Reliability!$C$23:$C$50,0)),0),0)*IF($T278=\"n/a\",$D278*$Y278,$G278)+IFERROR(IF(AND($V278<=AD$1,$W278>=AD$1),INDEX(Reliability!I$23:I$50,MATCH($T278,Reliability!$C$23:$C$50,0)),0),0)*$H278*$X278*$Y278),$D278)*$R278","v":0},{"$f":"MIN((IFERROR(IF(AND($V278<=AE$1,$W278>=AE$1),INDEX(Reliability!J$23:J$50,MATCH($S278,Reliability!$C$23:$C$50,0)),0),0)*IF($T278=\"n/a\",$D278*$Y278,$G278)+IFERROR(IF(AND($V278<=AE$1,$W278>=AE$1),INDEX(Reliability!J$23:J$50,MATCH($T278,Reliability!$C$23:$C$50,0)),0),0)*$H278*$X278*$Y278),$D278)*$R278","v":0},{"$f":"MIN((IFERROR(IF(AND($V278<=AF$1,$W278>=AF$1),INDEX(Reliability!K$23:K$50,MATCH($S278,Reliability!$C$23:$C$50,0)),0),0)*IF($T278=\"n/a\",$D278*$Y278,$G278)+IFERROR(IF(AND($V278<=AF$1,$W278>=AF$1),INDEX(Reliability!K$23:K$50,MATCH($T278,Reliability!$C$23:$C$50,0)),0),0)*$H278*$X278*$Y278),$D278)*$R278","v":0},{"$f":"MIN((IFERROR(IF(AND($V278<=AG$1,$W278>=AG$1),INDEX(Reliability!L$23:L$50,MATCH($S278,Reliability!$C$23:$C$50,0)),0),0)*IF($T278=\"n/a\",$D278*$Y278,$G278)+IFERROR(IF(AND($V278<=AG$1,$W278>=AG$1),INDEX(Reliability!L$23:L$50,MATCH($T278,Reliability!$C$23:$C$50,0)),0),0)*$H278*$X278*$Y278),$D278)*$R278","v":0},{"$f":"MIN((IFERROR(IF(AND($V278<=AH$1,$W278>=AH$1),INDEX(Reliability!M$23:M$50,MATCH($S278,Reliability!$C$23:$C$50,0)),0),0)*IF($T278=\"n/a\",$D278*$Y278,$G278)+IFERROR(IF(AND($V278<=AH$1,$W278>=AH$1),INDEX(Reliability!M$23:M$50,MATCH($T278,Reliability!$C$23:$C$50,0)),0),0)*$H278*$X278*$Y278),$D278)*$R278","v":0},{"$f":"MIN((IFERROR(IF(AND($V278<=AI$1,$W278>=AI$1),INDEX(Reliability!N$23:N$50,MATCH($S278,Reliability!$C$23:$C$50,0)),0),0)*IF($T278=\"n/a\",$D278*$Y278,$G278)+IFERROR(IF(AND($V278<=AI$1,$W278>=AI$1),INDEX(Reliability!N$23:N$50,MATCH($T278,Reliability!$C$23:$C$50,0)),0),0)*$H278*$X278*$Y278),$D278)*$R278","v":0},{"$f":"MIN((IFERROR(IF(AND($V278<=AJ$1,$W278>=AJ$1),INDEX(Reliability!O$23:O$50,MATCH($S278,Reliability!$C$23:$C$50,0)),0),0)*IF($T278=\"n/a\",$D278*$Y278,$G278)+IFERROR(IF(AND($V278<=AJ$1,$W278>=AJ$1),INDEX(Reliability!O$23:O$50,MATCH($T278,Reliability!$C$23:$C$50,0)),0),0)*$H278*$X278*$Y278),$D278)*$R278","v":0},{"$f":"MIN((IFERROR(IF(AND($V278<=AK$1,$W278>=AK$1),INDEX(Reliability!P$23:P$50,MATCH($S278,Reliability!$C$23:$C$50,0)),0),0)*IF($T278=\"n/a\",$D278*$Y278,$G278)+IFERROR(IF(AND($V278<=AK$1,$W278>=AK$1),INDEX(Reliability!P$23:P$50,MATCH($T278,Reliability!$C$23:$C$50,0)),0),0)*$H278*$X278*$Y278),$D278)*$R278","v":0}]
[null,{"$f":"unique_contracts!B280","v":0},{"$f":"unique_contracts!D280","v":0},{"$f":"unique_contracts!J280","v":0},{"$f":"unique_contracts!M280","v":0},{"$f":"unique_contracts!N280","v":0},{"$f":"unique_contracts!P280","v":0},{"$f":"unique_contracts!R280","v":0},{"$f":"unique_contracts!V280","v":0},{"$f":"unique_contracts!AB280","v":0},{"$f":"unique_contracts!AM280","v":0},{"$f":"unique_contracts!AN280","v":0},{"$f":"unique_contracts!AO280","v":0},{"$f":"unique_contracts!AP280","v":0},{"$f":"unique_contracts!AQ280","v":0},{"$f":"unique_contracts!AR280","v":0},{"$f":"unique_contracts!BP280","v":0},0,{"$f":"IFERROR(IF(AND(I279>0,E279=\"NotHybrid\"),_xlfn.CONCAT(MAX(MIN(ROUNDDOWN(I279/D279,0),8),4),INDEX(resources!$G:$G,MATCH(B279,resources!$A:$A,0))),INDEX(resources!$G:$G,MATCH(B279,resources!$A:$A,0))),\"n/a\")","v":"n/a"},"n/a","n/a",0,0,1,1,{"$f":"MIN((IFERROR(IF(AND($V279<=Z$1,$W279>=Z$1),INDEX(Reliability!E$23:E$50,MATCH($S279,Reliability!$C$23:$C$50,0)),0),0)*IF($T279=\"n/a\",$D279*$Y279,$G279)+IFERROR(IF(AND($V279<=Z$1,$W279>=Z$1),INDEX(Reliability!E$23:E$50,MATCH($T279,Reliability!$C$23:$C$50,0)),0),0)*$H279*$X279*$Y279),$D279)*$R279","v":0},{"$f":"MIN((IFERROR(IF(AND($V279<=AA$1,$W279>=AA$1),INDEX(Reliability!F$23:F$50,MATCH($S279,Reliability!$C$23:$C$50,0)),0),0)*IF($T279=\"n/a\",$D279*$Y279,$G279)+IFERROR(IF(AND($V279<=AA$1,$W279>=AA$1),INDEX(Reliability!F$23:F$50,MATCH($T279,Reliability!$C$23:$C$50,0)),0),0)*$H279*$X279*$Y279),$D279)*$R279","v":0},{"$f":"MIN((IFERROR(IF(AND($V279<=AB$1,$W279>=AB$1),INDEX(Reliability!G$23:G$50,MATCH($S279,Reliability!$C$23:$C$50,0)),0),0)*IF($T279=\"n/a\",$D279*$Y279,$G279)+IFERROR(IF(AND($V279<=AB$1,$W279>=AB$1),INDEX(Reliability!G$23:G$50,MATCH($T279,Reliability!$C$23:$C$50,0)),0),0)*$H279*$X279*$Y279),$D279)*$R279","v":0},{"$f":"MIN((IFERROR(IF(AND($V279<=AC$1,$W279>=AC$1),INDEX(Reliability!H$23:H$50,MATCH($S279,Reliability!$C$23:$C$50,0)),0),0)*IF($T279=\"n/a\",$D279*$Y279,$G279)+IFERROR(IF(AND($V279<=AC$1,$W279>=AC$1),INDEX(Reliability!H$23:H$50,MATCH($T279,Reliability!$C$23:$C$50,0)),0),0)*$H279*$X279*$Y279),$D279)*$R279","v":0},{"$f":"MIN((IFERROR(IF(AND($V279<=AD$1,$W279>=AD$1),INDEX(Reliability!I$23:I$50,MATCH($S279,Reliability!$C$23:$C$50,0)),0),0)*IF($T279=\"n/a\",$D279*$Y279,$G279)+IFERROR(IF(AND($V279<=AD$1,$W279>=AD$1),INDEX(Reliability!I$23:I$50,MATCH($T279,Reliability!$C$23:$C$50,0)),0),0)*$H279*$X279*$Y279),$D279)*$R279","v":0},{"$f":"MIN((IFERROR(IF(AND($V279<=AE$1,$W279>=AE$1),INDEX(Reliability!J$23:J$50,MATCH($S279,Reliability!$C$23:$C$50,0)),0),0)*IF($T279=\"n/a\",$D279*$Y279,$G279)+IFERROR(IF(AND($V279<=AE$1,$W279>=AE$1),INDEX(Reliability!J$23:J$50,MATCH($T279,Reliability!$C$23:$C$50,0)),0),0)*$H279*$X279*$Y279),$D279)*$R279","v":0},{"$f":"MIN((IFERROR(IF(AND($V279<=AF$1,$W279>=AF$1),INDEX(Reliability!K$23:K$50,MATCH($S279,Reliability!$C$23:$C$50,0)),0),0)*IF($T279=\"n/a\",$D279*$Y279,$G279)+IFERROR(IF(AND($V279<=AF$1,$W279>=AF$1),INDEX(Reliability!K$23:K$50,MATCH($T279,Reliability!$C$23:$C$50,0)),0),0)*$H279*$X279*$Y279),$D279)*$R279","v":0},{"$f":"MIN((IFERROR(IF(AND($V279<=AG$1,$W279>=AG$1),INDEX(Reliability!L$23:L$50,MATCH($S279,Reliability!$C$23:$C$50,0)),0),0)*IF($T279=\"n/a\",$D279*$Y279,$G279)+IFERROR(IF(AND($V279<=AG$1,$W279>=AG$1),INDEX(Reliability!L$23:L$50,MATCH($T279,Reliability!$C$23:$C$50,0)),0),0)*$H279*$X279*$Y279),$D279)*$R279","v":0},{"$f":"MIN((IFERROR(IF(AND($V279<=AH$1,$W279>=AH$1),INDEX(Reliability!M$23:M$50,MATCH($S279,Reliability!$C$23:$C$50,0)),0),0)*IF($T279=\"n/a\",$D279*$Y279,$G279)+IFERROR(IF(AND($V279<=AH$1,$W279>=AH$1),INDEX(Reliability!M$23:M$50,MATCH($T279,Reliability!$C$23:$C$50,0)),0),0)*$H279*$X279*$Y279),$D279)*$R279","v":0},{"$f":"MIN((IFERROR(IF(AND($V279<=AI$1,$W279>=AI$1),INDEX(Reliability!N$23:N$50,MATCH($S279,Reliability!$C$23:$C$50,0)),0),0)*IF($T279=\"n/a\",$D279*$Y279,$G279)+IFERROR(IF(AND($V279<=AI$1,$W279>=AI$1),INDEX(Reliability!N$23:N$50,MATCH($T279,Reliability!$C$23:$C$50,0)),0),0)*$H279*$X279*$Y279),$D279)*$R279","v":0},{"$f":"MIN((IFERROR(IF(AND($V279<=AJ$1,$W279>=AJ$1),INDEX(Reliability!O$23:O$50,MATCH($S279,Reliability!$C$23:$C$50,0)),0),0)*IF($T279=\"n/a\",$D279*$Y279,$G279)+IFERROR(IF(AND($V279<=AJ$1,$W279>=AJ$1),INDEX(Reliability!O$23:O$50,MATCH($T279,Reliability!$C$23:$C$50,0)),0),0)*$H279*$X279*$Y279),$D279)*$R279","v":0},{"$f":"MIN((IFERROR(IF(AND($V279<=AK$1,$W279>=AK$1),INDEX(Reliability!P$23:P$50,MATCH($S279,Reliability!$C$23:$C$50,0)),0),0)*IF($T279=\"n/a\",$D279*$Y279,$G279)+IFERROR(IF(AND($V279<=AK$1,$W279>=AK$1),INDEX(Reliability!P$23:P$50,MATCH($T279,Reliability!$C$23:$C$50,0)),0),0)*$H279*$X279*$Y279),$D279)*$R279","v":0}]
[null,{"$f":"unique_contracts!B281","v":0},{"$f":"unique_contracts!D281","v":0},{"$f":"unique_contracts!J281","v":0},{"$f":"unique_contracts!M281","v":0},{"$f":"unique_contracts!N281","v":0},{"$f":"unique_contracts!P281","v":0},{"$f":"unique_contracts!R281","v":0},{"$f":"unique_contracts!V281","v":0},{"$f":"unique_contracts!AB281","v":0},{"$f":"unique_contracts!AM281","v":0},{"$f":"unique_contracts!AN281","v":0},{"$f":"unique_contracts!AO281","v":0},{"$f":"unique_contracts!AP281","v":0},{"$f":"unique_contracts!AQ281","v":0},{"$f":"unique_contracts!AR281","v":0},{"$f":"unique_contracts!BP281","v":0},0,{"$f":"IFERROR(IF(AND(I280>0,E280=\"NotHybrid\"),_xlfn.CONCAT(MAX(MIN(ROUNDDOWN(I280/D280,0),8),4),INDEX(resources!$G:$G,MATCH(B280,resources!$A:$A,0))),INDEX(resources!$G:$G,MATCH(B280,resources!$A:$A,0))),\"n/a\")","v":"n/a"},"n/a","n/a",0,0,1,1,{"$f":"MIN((IFERROR(IF(AND($V280<=Z$1,$W280>=Z$1),INDEX(Reliability!E$23:E$50,MATCH($S280,Reliability!$C$23:$C$50,0)),0),0)*IF($T280=\"n/a\",$D280*$Y280,$G280)+IFERROR(IF(AND($V280<=Z$1,$W280>=Z$1),INDEX(Reliability!E$23:E$50,MATCH($T280,Reliability!$C$23:$C$50,0)),0),0)*$H280*$X280*$Y280),$D280)*$R280","v":0},{"$f":"MIN((IFERROR(IF(AND($V280<=AA$1,$W280>=AA$1),INDEX(Reliability!F$23:F$50,MATCH($S280,Reliability!$C$23:$C$50,0)),0),0)*IF($T280=\"n/a\",$D280*$Y280,$G280)+IFERROR(IF(AND($V280<=AA$1,$W280>=AA$1),INDEX(Reliability!F$23:F$50,MATCH($T280,Reliability!$C$23:$C$50,0)),0),0)*$H280*$X280*$Y280),$D280)*$R280","v":0},{"$f":"MIN((IFERROR(IF(AND($V280<=AB$1,$W280>=AB$1),INDEX(Reliability!G$23:G$50,MATCH($S280,Reliability!$C$23:$C$50,0)),0),0)*IF($T280=\"n/a\",$D280*$Y280,$G280)+IFERROR(IF(AND($V280<=AB$1,$W280>=AB$1),INDEX(Reliability!G$23:G$50,MATCH($T280,Reliability!$C$23:$C$50,0)),0),0)*$H280*$X280*$Y280),$D280)*$R280","v":0},{"$f":"MIN((IFERROR(IF(AND($V280<=AC$1,$W280>=AC$1),INDEX(Reliability!H$23:H$50,MATCH($S280,Reliability!$C$23:$C$50,0)),0),0)*IF($T280=\"n/a\",$D280*$Y280,$G280)+IFERROR(IF(AND($V280<=AC$1,$W280>=AC$1),INDEX(Reliability!H$23:H$50,MATCH($T280,Reliability!$C$23:$C$50,0)),0),0)*$H280*$X280*$Y280),$D280)*$R280","v":0},{"$f":"MIN((IFERROR(IF(AND($V280<=AD$1,$W280>=AD$1),INDEX(Reliability!I$23:I$50,MATCH($S280,Reliability!$C$23:$C$50,0)),0),0)*IF($T280=\"n/a\",$D280*$Y280,$G280)+IFERROR(IF(AND($V280<=AD$1,$W280>=AD$1),INDEX(Reliability!I$23:I$50,MATCH($T280,Reliability!$C$23:$C$50,0)),0),0)*$H280*$X280*$Y280),$D280)*$R280","v":0},{"$f":"MIN((IFERROR(IF(AND($V280<=AE$1,$W280>=AE$1),INDEX(Reliability!J$23:J$50,MATCH($S280,Reliability!$C$23:$C$50,0)),0),0)*IF($T280=\"n/a\",$D280*$Y280,$G280)+IFERROR(IF(AND($V280<=AE$1,$W280>=AE$1),INDEX(Reliability!J$23:J$50,MATCH($T280,Reliability!$C$23:$C$50,0)),0),0)*$H280*$X280*$Y280),$D280)*$R280","v":0},{"$f":"MIN((IFERROR(IF(AND($V280<=AF$1,$W280>=AF$1),INDEX(Reliability!K$23:K$50,MATCH($S280,Reliability!$C$23:$C$50,0)),0),0)*IF($T280=\"n/a\",$D280*$Y280,$G280)+IFERROR(IF(AND($V280<=AF$1,$W280>=AF$1),INDEX(Reliability!K$23:K$50,MATCH($T280,Reliability!$C$23:$C$50,0)),0),0)*$H280*$X280*$Y280),$D280)*$R280","v":0},{"$f":"MIN((IFERROR(IF(AND($V280<=AG$1,$W280>=AG$1),INDEX(Reliability!L$23:L$50,MATCH($S280,Reliability!$C$23:$C$50,0)),0),0)*IF($T280=\"n/a\",$D280*$Y280,$G280)+IFERROR(IF(AND($V280<=AG$1,$W280>=AG$1),INDEX(Reliability!L$23:L$50,MATCH($T280,Reliability!$C$23:$C$50,0)),0),0)*$H280*$X280*$Y280),$D280)*$R280","v":0},{"$f":"MIN((IFERROR(IF(AND($V280<=AH$1,$W280>=AH$1),INDEX(Reliability!M$23:M$50,MATCH($S280,Reliability!$C$23:$C$50,0)),0),0)*IF($T280=\"n/a\",$D280*$Y280,$G280)+IFERROR(IF(AND($V280<=AH$1,$W280>=AH$1),INDEX(Reliability!M$23:M$50,MATCH($T280,Reliability!$C$23:$C$50,0)),0),0)*$H280*$X280*$Y280),$D280)*$R280","v":0},{"$f":"MIN((IFERROR(IF(AND($V280<=AI$1,$W280>=AI$1),INDEX(Reliability!N$23:N$50,MATCH($S280,Reliability!$C$23:$C$50,0)),0),0)*IF($T280=\"n/a\",$D280*$Y280,$G280)+IFERROR(IF(AND($V280<=AI$1,$W280>=AI$1),INDEX(Reliability!N$23:N$50,MATCH($T280,Reliability!$C$23:$C$50,0)),0),0)*$H280*$X280*$Y280),$D280)*$R280","v":0},{"$f":"MIN((IFERROR(IF(AND($V280<=AJ$1,$W280>=AJ$1),INDEX(Reliability!O$23:O$50,MATCH($S280,Reliability!$C$23:$C$50,0)),0),0)*IF($T280=\"n/a\",$D280*$Y280,$G280)+IFERROR(IF(AND($V280<=AJ$1,$W280>=AJ$1),INDEX(Reliability!O$23:O$50,MATCH($T280,Reliability!$C$23:$C$50,0)),0),0)*$H280*$X280*$Y280),$D280)*$R280","v":0},{"$f":"MIN((IFERROR(IF(AND($V280<=AK$1,$W280>=AK$1),INDEX(Reliability!P$23:P$50,MATCH($S280,Reliability!$C$23:$C$50,0)),0),0)*IF($T280=\"n/a\",$D280*$Y280,$G280)+IFERROR(IF(AND($V280<=AK$1,$W280>=AK$1),INDEX(Reliability!P$23:P$50,MATCH($T280,Reliability!$C$23:$C$50,0)),0),0)*$H280*$X280*$Y280),$D280)*$R280","v":0}]
[null,{"$f":"unique_contracts!B282","v":0},{"$f":"unique_contracts!D282","v":0},{"$f":"unique_contracts!J282","v":0},{"$f":"unique_contracts!M282","v":0},{"$f":"unique_contracts!N282","v":0},{"$f":"unique_contracts!P282","v":0},{"$f":"unique_contracts!R282","v":0},{"$f":"unique_contracts!V282","v":0},{"$f":"unique_contracts!AB282","v":0},{"$f":"unique_contracts!AM282","v":0},{"$f":"unique_contracts!AN282","v":0},{"$f":"unique_contracts!AO282","v":0},{"$f":"unique_contracts!AP282","v":0},{"$f":"unique_contracts!AQ282","v":0},{"$f":"unique_contracts!AR282","v":0},{"$f":"unique_contracts!BP282","v":0},0,{"$f":"IFERROR(IF(AND(I281>0,E281=\"NotHybrid\"),_xlfn.CONCAT(MAX(MIN(ROUNDDOWN(I281/D281,0),8),4),INDEX(resources!$G:$G,MATCH(B281,resources!$A:$A,0))),INDEX(resources!$G:$G,MATCH(B281,resources!$A:$A,0))),\"n/a\")","v":"n/a"},"n/a","n/a",0,0,1,1,{"$f":"MIN((IFERROR(IF(AND($V281<=Z$1,$W281>=Z$1),INDEX(Reliability!E$23:E$50,MATCH($S281,Reliability!$C$23:$C$50,0)),0),0)*IF($T281=\"n/a\",$D281*$Y281,$G281)+IFERROR(IF(AND($V281<=Z$1,$W281>=Z$1),INDEX(Reliability!E$23:E$50,MATCH($T281,Reliability!$C$23:$C$50,0)),0),0)*$H281*$X281*$Y281),$D281)*$R281","v":0},{"$f":"MIN((IFERROR(IF(AND($V281<=AA$1,$W281>=AA$1),INDEX(Reliability!F$23:F$50,MATCH($S281,Reliability!$C$23:$C$50,0)),0),0)*IF($T281=\"n/a\",$D281*$Y281,$G281)+IFERROR(IF(AND($V281<=AA$1,$W281>=AA$1),INDEX(Reliability!F$23:F$50,MATCH($T281,Reliability!$C$23:$C$50,0)),0),0)*$H281*$X281*$Y281),$D281)*$R281","v":0},{"$f":"MIN((IFERROR(IF(AND($V281<=AB$1,$W281>=AB$1),INDEX(Reliability!G$23:G$50,MATCH($S281,Reliability!$C$23:$C$50,0)),0),0)*IF($T281=\"n/a\",$D281*$Y281,$G281)+IFERROR(IF(AND($V281<=AB$1,$W281>=AB$1),INDEX(Reliability!G$23:G$50,MATCH($T281,Reliability!$C$23:$C$50,0)),0),0)*$H281*$X281*$Y281),$D281)*$R281","v":0},{"$f":"MIN((IFERROR(IF(AND($V281<=AC$1,$W281>=AC$1),INDEX(Reliability!H$23:H$50,MATCH($S281,Reliability!$C$23:$C$50,0)),0),0)*IF($T281=\"n/a\",$D281*$Y281,$G281)+IFERROR(IF(AND($V281<=AC$1,$W281>=AC$1),INDEX(Reliability!H$23:H$50,MATCH($T281,Reliability!$C$23:$C$50,0)),0),0)*$H281*$X281*$Y281),$D281)*$R281","v":0},{"$f":"MIN((IFERROR(IF(AND($V281<=AD$1,$W281>=AD$1),INDEX(Reliability!I$23:I$50,MATCH($S281,Reliability!$C$23:$C$50,0)),0),0)*IF($T281=\"n/a\",$D281*$Y281,$G281)+IFERROR(IF(AND($V281<=AD$1,$W281>=AD$1),INDEX(Reliability!I$23:I$50,MATCH($T281,Reliability!$C$23:$C$50,0)),0),0)*$H281*$X281*$Y281),$D281)*$R281","v":0},{"$f":"MIN((IFERROR(IF(AND($V281<=AE$1,$W281>=AE$1),INDEX(Reliability!J$23:J$50,MATCH($S281,Reliability!$C$23:$C$50,0)),0),0)*IF($T281=\"n/a\",$D281*$Y281,$G281)+IFERROR(IF(AND($V281<=AE$1,$W281>=AE$1),INDEX(Reliability!J$23:J$50,MATCH($T281,Reliability!$C$23:$C$50,0)),0),0)*$H281*$X281*$Y281),$D281)*$R281","v":0},{"$f":"MIN((IFERROR(IF(AND($V281<=AF$1,$W281>=AF$1),INDEX(Reliability!K$23:K$50,MATCH($S281,Reliability!$C$23:$C$50,0)),0),0)*IF($T281=\"n/a\",$D281*$Y281,$G281)+IFERROR(IF(AND($V281<=AF$1,$W281>=AF$1),INDEX(Reliability!K$23:K$50,MATCH($T281,Reliability!$C$23:$C$50,0)),0),0)*$H281*$X281*$Y281),$D281)*$R281","v":0},{"$f":"MIN((IFERROR(IF(AND($V281<=AG$1,$W281>=AG$1),INDEX(Reliability!L$23:L$50,MATCH($S281,Reliability!$C$23:$C$50,0)),0),0)*IF($T281=\"n/a\",$D281*$Y281,$G281)+IFERROR(IF(AND($V281<=AG$1,$W281>=AG$1),INDEX(Reliability!L$23:L$50,MATCH($T281,Reliability!$C$23:$C$50,0)),0),0)*$H281*$X281*$Y281),$D281)*$R281","v":0},{"$f":"MIN((IFERROR(IF(AND($V281<=AH$1,$W281>=AH$1),INDEX(Reliability!M$23:M$50,MATCH($S281,Reliability!$C$23:$C$50,0)),0),0)*IF($T281=\"n/a\",$D281*$Y281,$G281)+IFERROR(IF(AND($V281<=AH$1,$W281>=AH$1),INDEX(Reliability!M$23:M$50,MATCH($T281,Reliability!$C$23:$C$50,0)),0),0)*$H281*$X281*$Y281),$D281)*$R281","v":0},{"$f":"MIN((IFERROR(IF(AND($V281<=AI$1,$W281>=AI$1),INDEX(Reliability!N$23:N$50,MATCH($S281,Reliability!$C$23:$C$50,0)),0),0)*IF($T281=\"n/a\",$D281*$Y281,$G281)+IFERROR(IF(AND($V281<=AI$1,$W281>=AI$1),INDEX(Reliability!N$23:N$50,MATCH($T281,Reliability!$C$23:$C$50,0)),0),0)*$H281*$X281*$Y281),$D281)*$R281","v":0},{"$f":"MIN((IFERROR(IF(AND($V281<=AJ$1,$W281>=AJ$1),INDEX(Reliability!O$23:O$50,MATCH($S281,Reliability!$C$23:$C$50,0)),0),0)*IF($T281=\"n/a\",$D281*$Y281,$G281)+IFERROR(IF(AND($V281<=AJ$1,$W281>=AJ$1),INDEX(Reliability!O$23:O$50,MATCH($T281,Reliability!$C$23:$C$50,0)),0),0)*$H281*$X281*$Y281),$D281)*$R281","v":0},{"$f":"MIN((IFERROR(IF(AND($V281<=AK$1,$W281>=AK$1),INDEX(Reliability!P$23:P$50,MATCH($S281,Reliability!$C$23:$C$50,0)),0),0)*IF($T281=\"n/a\",$D281*$Y281,$G281)+IFERROR(IF(AND($V281<=AK$1,$W281>=AK$1),INDEX(Reliability!P$23:P$50,MATCH($T281,Reliability!$C$23:$C$50,0)),0),0)*$H281*$X281*$Y281),$D281)*$R281","v":0}]
[null,{"$f":"unique_contracts!B283","v":0},{"$f":"unique_contracts!D283","v":0},{"$f":"unique_contracts!J283","v":0},{"$f":"unique_contracts!M283","v":0},{"$f":"unique_contracts!N283","v":0},{"$f":"unique_contracts!P283","v":0},{"$f":"unique_contracts!R283","v":0},{"$f":"unique_contracts!V283","v":0},{"$f":"unique_contracts!AB283","v":0},{"$f":"unique_contracts!AM283","v":0},{"$f":"unique_contracts!AN283","v":0},{"$f":"unique_contracts!AO283","v":0},{"$f":"unique_contracts!AP283","v":0},{"$f":"unique_contracts!AQ283","v":0},{"$f":"unique_contracts!AR283","v":0},{"$f":"unique_contracts!BP283","v":0},0,{"$f":"IFERROR(IF(AND(I282>0,E282=\"NotHybrid\"),_xlfn.CONCAT(MAX(MIN(ROUNDDOWN(I282/D282,0),8),4),INDEX(resources!$G:$G,MATCH(B282,resources!$A:$A,0))),INDEX(resources!$G:$G,MATCH(B282,resources!$A:$A,0))),\"n/a\")","v":"n/a"},"n/a","n/a",0,0,1,1,{"$f":"MIN((IFERROR(IF(AND($V282<=Z$1,$W282>=Z$1),INDEX(Reliability!E$23:E$50,MATCH($S282,Reliability!$C$23:$C$50,0)),0),0)*IF($T282=\"n/a\",$D282*$Y282,$G282)+IFERROR(IF(AND($V282<=Z$1,$W282>=Z$1),INDEX(Reliability!E$23:E$50,MATCH($T282,Reliability!$C$23:$C$50,0)),0),0)*$H282*$X282*$Y282),$D282)*$R282","v":0},{"$f":"MIN((IFERROR(IF(AND($V282<=AA$1,$W282>=AA$1),INDEX(Reliability!F$23:F$50,MATCH($S282,Reliability!$C$23:$C$50,0)),0),0)*IF($T282=\"n/a\",$D282*$Y282,$G282)+IFERROR(IF(AND($V282<=AA$1,$W282>=AA$1),INDEX(Reliability!F$23:F$50,MATCH($T282,Reliability!$C$23:$C$50,0)),0),0)*$H282*$X282*$Y282),$D282)*$R282","v":0},{"$f":"MIN((IFERROR(IF(AND($V282<=AB$1,$W282>=AB$1),INDEX(Reliability!G$23:G$50,MATCH($S282,Reliability!$C$23:$C$50,0)),0),0)*IF($T282=\"n/a\",$D282*$Y282,$G282)+IFERROR(IF(AND($V282<=AB$1,$W282>=AB$1),INDEX(Reliability!G$23:G$50,MATCH($T282,Reliability!$C$23:$C$50,0)),0),0)*$H282*$X282*$Y282),$D282)*$R282","v":0},{"$f":"MIN((IFERROR(IF(AND($V282<=AC$1,$W282>=AC$1),INDEX(Reliability!H$23:H$50,MATCH($S282,Reliability!$C$23:$C$50,0)),0),0)*IF($T282=\"n/a\",$D282*$Y282,$G282)+IFERROR(IF(AND($V282<=AC$1,$W282>=AC$1),INDEX(Reliability!H$23:H$50,MATCH($T282,Reliability!$C$23:$C$50,0)),0),0)*$H282*$X282*$Y282),$D282)*$R282","v":0},{"$f":"MIN((IFERROR(IF(AND($V282<=AD$1,$W282>=AD$1),INDEX(Reliability!I$23:I$50,MATCH($S282,Reliability!$C$23:$C$50,0)),0),0)*IF($T282=\"n/a\",$D282*$Y282,$G282)+IFERROR(IF(AND($V282<=AD$1,$W282>=AD$1),INDEX(Reliability!I$23:I$50,MATCH($T282,Reliability!$C$23:$C$50,0)),0),0)*$H282*$X282*$Y282),$D282)*$R282","v":0},{"$f":"MIN((IFERROR(IF(AND($V282<=AE$1,$W282>=AE$1),INDEX(Reliability!J$23:J$50,MATCH($S282,Reliability!$C$23:$C$50,0)),0),0)*IF($T282=\"n/a\",$D282*$Y282,$G282)+IFERROR(IF(AND($V282<=AE$1,$W282>=AE$1),INDEX(Reliability!J$23:J$50,MATCH($T282,Reliability!$C$23:$C$50,0)),0),0)*$H282*$X282*$Y282),$D282)*$R282","v":0},{"$f":"MIN((IFERROR(IF(AND($V282<=AF$1,$W282>=AF$1),INDEX(Reliability!K$23:K$50,MATCH($S282,Reliability!$C$23:$C$50,0)),0),0)*IF($T282=\"n/a\",$D282*$Y282,$G282)+IFERROR(IF(AND($V282<=AF$1,$W282>=AF$1),INDEX(Reliability!K$23:K$50,MATCH($T282,Reliability!$C$23:$C$50,0)),0),0)*$H282*$X282*$Y282),$D282)*$R282","v":0},{"$f":"MIN((IFERROR(IF(AND($V282<=AG$1,$W282>=AG$1),INDEX(Reliability!L$23:L$50,MATCH($S282,Reliability!$C$23:$C$50,0)),0),0)*IF($T282=\"n/a\",$D282*$Y282,$G282)+IFERROR(IF(AND($V282<=AG$1,$W282>=AG$1),INDEX(Reliability!L$23:L$50,MATCH($T282,Reliability!$C$23:$C$50,0)),0),0)*$H282*$X282*$Y282),$D282)*$R282","v":0},{"$f":"MIN((IFERROR(IF(AND($V282<=AH$1,$W282>=AH$1),INDEX(Reliability!M$23:M$50,MATCH($S282,Reliability!$C$23:$C$50,0)),0),0)*IF($T282=\"n/a\",$D282*$Y282,$G282)+IFERROR(IF(AND($V282<=AH$1,$W282>=AH$1),INDEX(Reliability!M$23:M$50,MATCH($T282,Reliability!$C$23:$C$50,0)),0),0)*$H282*$X282*$Y282),$D282)*$R282","v":0},{"$f":"MIN((IFERROR(IF(AND($V282<=AI$1,$W282>=AI$1),INDEX(Reliability!N$23:N$50,MATCH($S282,Reliability!$C$23:$C$50,0)),0),0)*IF($T282=\"n/a\",$D282*$Y282,$G282)+IFERROR(IF(AND($V282<=AI$1,$W282>=AI$1),INDEX(Reliability!N$23:N$50,MATCH($T282,Reliability!$C$23:$C$50,0)),0),0)*$H282*$X282*$Y282),$D282)*$R282","v":0},{"$f":"MIN((IFERROR(IF(AND($V282<=AJ$1,$W282>=AJ$1),INDEX(Reliability!O$23:O$50,MATCH($S282,Reliability!$C$23:$C$50,0)),0),0)*IF($T282=\"n/a\",$D282*$Y282,$G282)+IFERROR(IF(AND($V282<=AJ$1,$W282>=AJ$1),INDEX(Reliability!O$23:O$50,MATCH($T282,Reliability!$C$23:$C$50,0)),0),0)*$H282*$X282*$Y282),$D282)*$R282","v":0},{"$f":"MIN((IFERROR(IF(AND($V282<=AK$1,$W282>=AK$1),INDEX(Reliability!P$23:P$50,MATCH($S282,Reliability!$C$23:$C$50,0)),0),0)*IF($T282=\"n/a\",$D282*$Y282,$G282)+IFERROR(IF(AND($V282<=AK$1,$W282>=AK$1),INDEX(Reliability!P$23:P$50,MATCH($T282,Reliability!$C$23:$C$50,0)),0),0)*$H282*$X282*$Y282),$D282)*$R282","v":0}]
[null,{"$f":"unique_contracts!B284","v":0},{"$f":"unique_contracts!D284","v":0},{"$f":"unique_contracts!J284","v":0},{"$f":"unique_contracts!M284","v":0},{"$f":"unique_contracts!N284","v":0},{"$f":"unique_contracts!P284","v":0},{"$f":"unique_contracts!R284","v":0},{"$f":"unique_contracts!V284","v":0},{"$f":"unique_contracts!AB284","v":0},{"$f":"unique_contracts!AM284","v":0},{"$f":"unique_contracts!AN284","v":0},{"$f":"unique_contracts!AO284","v":0},{"$f":"unique_contracts!AP284","v":0},{"$f":"unique_contracts!AQ284","v":0},{"$f":"unique_contracts!AR284","v":0},{"$f":"unique_contracts!BP284","v":0},{"$f":"IF(AND(J283=\"Sell\",ISNUMBER(SEARCH(\"Capacity\",Q283))),-1,IF(AND(NOT(J283=\"Sell\"),ISNUMBER(SEARCH(\"Capacity\",Q283))),1,0))","v":0},{"$f":"IFERROR(IF(AND(I283>0,E283=\"NotHybrid\"),_xlfn.CONCAT(MAX(MIN(ROUNDDOWN(I283/D283,0),8),4),INDEX(resources!$G:$G,MATCH(B283,resources!$A:$A,0))),INDEX(resources!$G:$G,MATCH(B283,resources!$A:$A,0))),\"n/a\")","v":"n/a"},{"$f":"IFERROR(IF(NOT(E283=\"NotHybrid\"),_xlfn.CONCAT(MAX(MIN(ROUNDDOWN(I283/H283,0),8),4),\"hr_batteries\"),\"n/a\"),\"n/a\")","v":"n/a"},{"$f":"IF(T283=\"n/a\",S283,\"hybrid\")","v":"n/a"},{"$f":"IFERROR(IF(DATE(K283,L283,M283)<=DATE(K283,6,1),K283,K283+1),0)","v":0},{"$f":"IFERROR(IF(DATE(N283,O283,P283)>=DATE(N283,10,1),N283,N283-1),0)","v":0},{"$f":"IF(OR(T283=\"n/a\",NOT(F283=\"NO\")),100%,IF(ISNUMBER(SEARCH(\"pv\",S283)),MIN(G283/(1*(ROUNDDOWN(I283/H283,0)/4)),H283)/H283,IF(ISNUMBER(SEARCH(\"wind\",S283)),MIN(G283/(2*(ROUNDDOWN(I283/H283,0)/4)),H283)/H283,1)))","v":1},{"$f":"IF(ISNUMBER(SEARCH(\"batteries\",S283)),MIN(ROUNDDOWN(I283/D283,0)/4,1), IF(ISNUMBER(SEARCH(\"batteries\",T283)),MIN(ROUNDDOWN(I283/H283,0)/4,1),1))","v":1},{"$f":"MIN((IFERROR(IF(AND($V283<=Z$1,$W283>=Z$1),INDEX(Reliability!E$23:E$50,MATCH($S283,Reliability!$C$23:$C$50,0)),0),0)*IF($T283=\"n/a\",$D283*$Y283,$G283)+IFERROR(IF(AND($V283<=Z$1,$W283>=Z$1),INDEX(Reliability!E$23:E$50,MATCH($T283,Reliability!$C$23:$C$50,0)),0),0)*$H283*$X283*$Y283),$D283)*$R283","v":0},{"$f":"MIN((IFERROR(IF(AND($V283<=AA$1,$W283>=AA$1),INDEX(Reliability!F$23:F$50,MATCH($S283,Reliability!$C$23:$C$50,0)),0),0)*IF($T283=\"n/a\",$D283*$Y283,$G283)+IFERROR(IF(AND($V283<=AA$1,$W283>=AA$1),INDEX(Reliability!F$23:F$50,MATCH($T283,Reliability!$C$23:$C$50,0)),0),0)*$H283*$X283*$Y283),$D283)*$R283","v":0},{"$f":"MIN((IFERROR(IF(AND($V283<=AB$1,$W283>=AB$1),INDEX(Reliability!G$23:G$50,MATCH($S283,Reliability!$C$23:$C$50,0)),0),0)*IF($T283=\"n/a\",$D283*$Y283,$G283)+IFERROR(IF(AND($V283<=AB$1,$W283>=AB$1),INDEX(Reliability!G$23:G$50,MATCH($T283,Reliability!$C$23:$C$50,0)),0),0)*$H283*$X283*$Y283),$D283)*$R283","v":0},{"$f":"MIN((IFERROR(IF(AND($V283<=AC$1,$W283>=AC$1),INDEX(Reliability!H$23:H$50,MATCH($S283,Reliability!$C$23:$C$50,0)),0),0)*IF($T283=\"n/a\",$D283*$Y283,$G283)+IFERROR(IF(AND($V283<=AC$1,$W283>=AC$1),INDEX(Reliability!H$23:H$50,MATCH($T283,Reliability!$C$23:$C$50,0)),0),0)*$H283*$X283*$Y283),$D283)*$R283","v":0},{"$f":"MIN((IFERROR(IF(AND($V283<=AD$1,$W283>=AD$1),INDEX(Reliability!I$23:I$50,MATCH($S283,Reliability!$C$23:$C$50,0)),0),0)*IF($T283=\"n/a\",$D283*$Y283,$G283)+IFERROR(IF(AND($V283<=AD$1,$W283>=AD$1),INDEX(Reliability!I$23:I$50,MATCH($T283,Reliability!$C$23:$C$50,0)),0),0)*$H283*$X283*$Y283),$D283)*$R283","v":0},{"$f":"MIN((IFERROR(IF(AND($V283<=AE$1,$W283>=AE$1),INDEX(Reliability!J$23:J$50,MATCH($S283,Reliability!$C$23:$C$50,0)),0),0)*IF($T283=\"n/a\",$D283*$Y283,$G283)+IFERROR(IF(AND($V283<=AE$1,$W283>=AE$1),INDEX(Reliability!J$23:J$50,MATCH($T283,Reliability!$C$23:$C$50,0)),0),0)*$H283*$X283*$Y283),$D283)*$R283","v":0},{"$f":"MIN((IFERROR(IF(AND($V283<=AF$1,$W283>=AF$1),INDEX(Reliability!K$23:K$50,MATCH($S283,Reliability!$C$23:$C$50,0)),0),0)*IF($T283=\"n/a\",$D283*$Y283,$G283)+IFERROR(IF(AND($V283<=AF$1,$W283>=AF$1),INDEX(Reliability!K$23:K$50,MATCH($T283,Reliability!$C$23:$C$50,0)),0),0)*$H283*$X283*$Y283),$D283)*$R283","v":0},{"$f":"MIN((IFERROR(IF(AND($V283<=AG$1,$W283>=AG$1),INDEX(Reliability!L$23:L$50,MATCH($S283,Reliability!$C$23:$C$50,0)),0),0)*IF($T283=\"n/a\",$D283*$Y283,$G283)+IFERROR(IF(AND($V283<=AG$1,$W283>=AG$1),INDEX(Reliability!L$23:L$50,MATCH($T283,Reliability!$C$23:$C$50,0)),0),0)*$H283*$X283*$Y283),$D283)*$R283","v":0},{"$f":"MIN((IFERROR(IF(AND($V283<=AH$1,$W283>=AH$1),INDEX(Reliability!M$23:M$50,MATCH($S283,Reliability!$C$23:$C$50,0)),0),0)*IF($T283=\"n/a\",$D283*$Y283,$G283)+IFERROR(IF(AND($V283<=AH$1,$W283>=AH$1),INDEX(Reliability!M$23:M$50,MATCH($T283,Reliability!$C$23:$C$50,0)),0),0)*$H283*$X283*$Y283),$D283)*$R283","v":0},{"$f":"MIN((IFERROR(IF(AND($V283<=AI$1,$W283>=AI$1),INDEX(Reliability!N$23:N$50,MATCH($S283,Reliability!$C$23:$C$50,0)),0),0)*IF($T283=\"n/a\",$D283*$Y283,$G283)+IFERROR(IF(AND($V283<=AI$1,$W283>=AI$1),INDEX(Reliability!N$23:N$50,MATCH($T283,Reliability!$C$23:$C$50,0)),0),0)*$H283*$X283*$Y283),$D283)*$R283","v":0},{"$f":"MIN((IFERROR(IF(AND($V283<=AJ$1,$W283>=AJ$1),INDEX(Reliability!O$23:O$50,MATCH($S283,Reliability!$C$23:$C$50,0)),0),0)*IF($T283=\"n/a\",$D283*$Y283,$G283)+IFERROR(IF(AND($V283<=AJ$1,$W283>=AJ$1),INDEX(Reliability!O$23:O$50,MATCH($T283,Reliability!$C$23:$C$50,0)),0),0)*$H283*$X283*$Y283),$D283)*$R283","v":0},{"$f":"MIN((IFERROR(IF(AND($V283<=AK$1,$W283>=AK$1),INDEX(Reliability!P$23:P$50,MATCH($S283,Reliability!$C$23:$C$50,0)),0),0)*IF($T283=\"n/a\",$D283*$Y283,$G283)+IFERROR(IF(AND($V283<=AK$1,$W283>=AK$1),INDEX(Reliability!P$23:P$50,MATCH($T283,Reliability!$C$23:$C$50,0)),0),0)*$H283*$X283*$Y283),$D283)*$R283","v":0}]
[null,{"$f":"unique_contracts!B285","v":0},{"$f":"unique_contracts!D285","v":0},{"$f":"unique_contracts!J285","v":0},{"$f":"unique_contracts!M285","v":0},{"$f":"unique_contracts!N285","v":0},{"$f":"unique_contracts!P285","v":0},{"$f":"unique_contracts!R285","v":0},{"$f":"unique_contracts!V285","v":0},{"$f":"unique_contracts!AB285","v":0},{"$f":"unique_contracts!AM285","v":0},{"$f":"unique_contracts!AN285","v":0},{"$f":"unique_contracts!AO285","v":0},{"$f":"unique_contracts!AP285","v":0},{"$f":"unique_contracts!AQ285","v":0},{"$f":"unique_contracts!AR285","v":0},{"$f":"unique_contracts!BP285","v":0},0,{"$f":"IFERROR(IF(AND(I284>0,E284=\"NotHybrid\"),_xlfn.CONCAT(MAX(MIN(ROUNDDOWN(I284/D284,0),8),4),INDEX(resources!$G:$G,MATCH(B284,resources!$A:$A,0))),INDEX(resources!$G:$G,MATCH(B284,resources!$A:$A,0))),\"n/a\")","v":"n/a"},"n/a","n/a",0,0,1,1,{"$f":"MIN((IFERROR(IF(AND($V284<=Z$1,$W284>=Z$1),INDEX(Reliability!E$23:E$50,MATCH($S284,Reliability!$C$23:$C$50,0)),0),0)*IF($T284=\"n/a\",$D284*$Y284,$G284)+IFERROR(IF(AND($V284<=Z$1,$W284>=Z$1),INDEX(Reliability!E$23:E$50,MATCH($T284,Reliability!$C$23:$C$50,0)),0),0)*$H284*$X284*$Y284),$D284)*$R284","v":0},{"$f":"MIN((IFERROR(IF(AND($V284<=AA$1,$W284>=AA$1),INDEX(Reliability!F$23:F$50,MATCH($S284,Reliability!$C$23:$C$50,0)),0),0)*IF($T284=\"n/a\",$D284*$Y284,$G284)+IFERROR(IF(AND($V284<=AA$1,$W284>=AA$1),INDEX(Reliability!F$23:F$50,MATCH($T284,Reliability!$C$23:$C$50,0)),0),0)*$H284*$X284*$Y284),$D284)*$R284","v":0},{"$f":"MIN((IFERROR(IF(AND($V284<=AB$1,$W284>=AB$1),INDEX(Reliability!G$23:G$50,MATCH($S284,Reliability!$C$23:$C$50,0)),0),0)*IF($T284=\"n/a\",$D284*$Y284,$G284)+IFERROR(IF(AND($V284<=AB$1,$W284>=AB$1),INDEX(Reliability!G$23:G$50,MATCH($T284,Reliability!$C$23:$C$50,0)),0),0)*$H284*$X284*$Y284),$D284)*$R284","v":0},{"$f":"MIN((IFERROR(IF(AND($V284<=AC$1,$W284>=AC$1),INDEX(Reliability!H$23:H$50,MATCH($S284,Reliability!$C$23:$C$50,0)),0),0)*IF($T284=\"n/a\",$D284*$Y284,$G284)+IFERROR(IF(AND($V284<=AC$1,$W284>=AC$1),INDEX(Reliability!H$23:H$50,MATCH($T284,Reliability!$C$23:$C$50,0)),0),0)*$H284*$X284*$Y284),$D284)*$R284","v":0},{"$f":"MIN((IFERROR(IF(AND($V284<=AD$1,$W284>=AD$1),INDEX(Reliability!I$23:I$50,MATCH($S284,Reliability!$C$23:$C$50,0)),0),0)*IF($T284=\"n/a\",$D284*$Y284,$G284)+IFERROR(IF(AND($V284<=AD$1,$W284>=AD$1),INDEX(Reliability!I$23:I$50,MATCH($T284,Reliability!$C$23:$C$50,0)),0),0)*$H284*$X284*$Y284),$D284)*$R284","v":0},{"$f":"MIN((IFERROR(IF(AND($V284<=AE$1,$W284>=AE$1),INDEX(Reliability!J$23:J$50,MATCH($S284,Reliability!$C$23:$C$50,0)),0),0)*IF($T284=\"n/a\",$D284*$Y284,$G284)+IFERROR(IF(AND($V284<=AE$1,$W284>=AE$1),INDEX(Reliability!J$23:J$50,MATCH($T284,Reliability!$C$23:$C$50,0)),0),0)*$H284*$X284*$Y284),$D284)*$R284","v":0},{"$f":"MIN((IFERROR(IF(AND($V284<=AF$1,$W284>=AF$1),INDEX(Reliability!K$23:K$50,MATCH($S284,Reliability!$C$23:$C$50,0)),0),0)*IF($T284=\"n/a\",$D284*$Y284,$G284)+IFERROR(IF(AND($V284<=AF$1,$W284>=AF$1),INDEX(Reliability!K$23:K$50,MATCH($T284,Reliability!$C$23:$C$50,0)),0),0)*$H284*$X284*$Y284),$D284)*$R284","v":0},{"$f":"MIN((IFERROR(IF(AND($V284<=AG$1,$W284>=AG$1),INDEX(Reliability!L$23:L$50,MATCH($S284,Reliability!$C$23:$C$50,0)),0),0)*IF($T284=\"n/a\",$D284*$Y284,$G284)+IFERROR(IF(AND($V284<=AG$1,$W284>=AG$1),INDEX(Reliability!L$23:L$50,MATCH($T284,Reliability!$C$23:$C$50,0)),0),0)*$H284*$X284*$Y284),$D284)*$R284","v":0},{"$f":"MIN((IFERROR(IF(AND($V284<=AH$1,$W284>=AH$1),INDEX(Reliability!M$23:M$50,MATCH($S284,Reliability!$C$23:$C$50,0)),0),0)*IF($T284=\"n/a\",$D284*$Y284,$G284)+IFERROR(IF(AND($V284<=AH$1,$W284>=AH$1),INDEX(Reliability!M$23:M$50,MATCH($T284,Reliability!$C$23:$C$50,0)),0),0)*$H284*$X284*$Y284),$D284)*$R284","v":0},{"$f":"MIN((IFERROR(IF(AND($V284<=AI$1,$W284>=AI$1),INDEX(Reliability!N$23:N$50,MATCH($S284,Reliability!$C$23:$C$50,0)),0),0)*IF($T284=\"n/a\",$D284*$Y284,$G284)+IFERROR(IF(AND($V284<=AI$1,$W284>=AI$1),INDEX(Reliability!N$23:N$50,MATCH($T284,Reliability!$C$23:$C$50,0)),0),0)*$H284*$X284*$Y284),$D284)*$R284","v":0},{"$f":"MIN((IFERROR(IF(AND($V284<=AJ$1,$W284>=AJ$1),INDEX(Reliability!O$23:O$50,MATCH($S284,Reliability!$C$23:$C$50,0)),0),0)*IF($T284=\"n/a\",$D284*$Y284,$G284)+IFERROR(IF(AND($V284<=AJ$1,$W284>=AJ$1),INDEX(Reliability!O$23:O$50,MATCH($T284,Reliability!$C$23:$C$50,0)),0),0)*$H284*$X284*$Y284),$D284)*$R284","v":0},{"$f":"MIN((IFERROR(IF(AND($V284<=AK$1,$W284>=AK$1),INDEX(Reliability!P$23:P$50,MATCH($S284,Reliability!$C$23:$C$50,0)),0),0)*IF($T284=\"n/a\",$D284*$Y284,$G284)+IFERROR(IF(AND($V284<=AK$1,$W284>=AK$1),INDEX(Reliability!P$23:P$50,MATCH($T284,Reliability!$C$23:$C$50,0)),0),0)*$H284*$X284*$Y284),$D284)*$R284","v":0}]
[null,{"$f":"unique_contracts!B286","v":0},{"$f":"unique_contracts!D286","v":0},{"$f":"unique_contracts!J286","v":0},{"$f":"unique_contracts!M286","v":0},{"$f":"unique_contracts!N286","v":0},{"$f":"unique_contracts!P286","v":0},{"$f":"unique_contracts!R286","v":0},{"$f":"unique_contracts!V286","v":0},{"$f":"unique_contracts!AB286","v":0},{"$f":"unique_contracts!AM286","v":0},{"$f":"unique_contracts!AN286","v":0},{"$f":"unique_contracts!AO286","v":0},{"$f":"unique_contracts!AP286","v":0},{"$f":"unique_contracts!AQ286","v":0},{"$f":"unique_contracts!AR286","v":0},{"$f":"unique_contracts!BP286","v":0},0,{"$f":"IFERROR(IF(AND(I285>0,E285=\"NotHybrid\"),_xlfn.CONCAT(MAX(MIN(ROUNDDOWN(I285/D285,0),8),4),INDEX(resources!$G:$G,MATCH(B285,resources!$A:$A,0))),INDEX(resources!$G:$G,MATCH(B285,resources!$A:$A,0))),\"n/a\")","v":"n/a"},"n/a","n/a",0,0,1,1,{"$f":"MIN((IFERROR(IF(AND($V285<=Z$1,$W285>=Z$1),INDEX(Reliability!E$23:E$50,MATCH($S285,Reliability!$C$23:$C$50,0)),0),0)*IF($T285=\"n/a\",$D285*$Y285,$G285)+IFERROR(IF(AND($V285<=Z$1,$W285>=Z$1),INDEX(Reliability!E$23:E$50,MATCH($T285,Reliability!$C$23:$C$50,0)),0),0)*$H285*$X285*$Y285),$D285)*$R285","v":0},{"$f":"MIN((IFERROR(IF(AND($V285<=AA$1,$W285>=AA$1),INDEX(Reliability!F$23:F$50,MATCH($S285,Reliability!$C$23:$C$50,0)),0),0)*IF($T285=\"n/a\",$D285*$Y285,$G285)+IFERROR(IF(AND($V285<=AA$1,$W285>=AA$1),INDEX(Reliability!F$23:F$50,MATCH($T285,Reliability!$C$23:$C$50,0)),0),0)*$H285*$X285*$Y285),$D285)*$R285","v":0},{"$f":"MIN((IFERROR(IF(AND($V285<=AB$1,$W285>=AB$1),INDEX(Reliability!G$23:G$50,MATCH($S285,Reliability!$C$23:$C$50,0)),0),0)*IF($T285=\"n/a\",$D285*$Y285,$G285)+IFERROR(IF(AND($V285<=AB$1,$W285>=AB$1),INDEX(Reliability!G$23:G$50,MATCH($T285,Reliability!$C$23:$C$50,0)),0),0)*$H285*$X285*$Y285),$D285)*$R285","v":0},{"$f":"MIN((IFERROR(IF(AND($V285<=AC$1,$W285>=AC$1),INDEX(Reliability!H$23:H$50,MATCH($S285,Reliability!$C$23:$C$50,0)),0),0)*IF($T285=\"n/a\",$D285*$Y285,$G285)+IFERROR(IF(AND($V285<=AC$1,$W285>=AC$1),INDEX(Reliability!H$23:H$50,MATCH($T285,Reliability!$C$23:$C$50,0)),0),0)*$H285*$X285*$Y285),$D285)*$R285","v":0},{"$f":"MIN((IFERROR(IF(AND($V285<=AD$1,$W285>=AD$1),INDEX(Reliability!I$23:I$50,MATCH($S285,Reliability!$C$23:$C$50,0)),0),0)*IF($T285=\"n/a\",$D285*$Y285,$G285)+IFERROR(IF(AND($V285<=AD$1,$W285>=AD$1),INDEX(Reliability!I$23:I$50,MATCH($T285,Reliability!$C$23:$C$50,0)),0),0)*$H285*$X285*$Y285),$D285)*$R285","v":0},{"$f":"MIN((IFERROR(IF(AND($V285<=AE$1,$W285>=AE$1),INDEX(Reliability!J$23:J$50,MATCH($S285,Reliability!$C$23:$C$50,0)),0),0)*IF($T285=\"n/a\",$D285*$Y285,$G285)+IFERROR(IF(AND($V285<=AE$1,$W285>=AE$1),INDEX(Reliability!J$23:J$50,MATCH($T285,Reliability!$C$23:$C$50,0)),0),0)*$H285*$X285*$Y285),$D285)*$R285","v":0},{"$f":"MIN((IFERROR(IF(AND($V285<=AF$1,$W285>=AF$1),INDEX(Reliability!K$23:K$50,MATCH($S285,Reliability!$C$23:$C$50,0)),0),0)*IF($T285=\"n/a\",$D285*$Y285,$G285)+IFERROR(IF(AND($V285<=AF$1,$W285>=AF$1),INDEX(Reliability!K$23:K$50,MATCH($T285,Reliability!$C$23:$C$50,0)),0),0)*$H285*$X285*$Y285),$D285)*$R285","v":0},{"$f":"MIN((IFERROR(IF(AND($V285<=AG$1,$W285>=AG$1),INDEX(Reliability!L$23:L$50,MATCH($S285,Reliability!$C$23:$C$50,0)),0),0)*IF($T285=\"n/a\",$D285*$Y285,$G285)+IFERROR(IF(AND($V285<=AG$1,$W285>=AG$1),INDEX(Reliability!L$23:L$50,MATCH($T285,Reliability!$C$23:$C$50,0)),0),0)*$H285*$X285*$Y285),$D285)*$R285","v":0},{"$f":"MIN((IFERROR(IF(AND($V285<=AH$1,$W285>=AH$1),INDEX(Reliability!M$23:M$50,MATCH($S285,Reliability!$C$23:$C$50,0)),0),0)*IF($T285=\"n/a\",$D285*$Y285,$G285)+IFERROR(IF(AND($V285<=AH$1,$W285>=AH$1),INDEX(Reliability!M$23:M$50,MATCH($T285,Reliability!$C$23:$C$50,0)),0),0)*$H285*$X285*$Y285),$D285)*$R285","v":0},{"$f":"MIN((IFERROR(IF(AND($V285<=AI$1,$W285>=AI$1),INDEX(Reliability!N$23:N$50,MATCH($S285,Reliability!$C$23:$C$50,0)),0),0)*IF($T285=\"n/a\",$D285*$Y285,$G285)+IFERROR(IF(AND($V285<=AI$1,$W285>=AI$1),INDEX(Reliability!N$23:N$50,MATCH($T285,Reliability!$C$23:$C$50,0)),0),0)*$H285*$X285*$Y285),$D285)*$R285","v":0},{"$f":"MIN((IFERROR(IF(AND($V285<=AJ$1,$W285>=AJ$1),INDEX(Reliability!O$23:O$50,MATCH($S285,Reliability!$C$23:$C$50,0)),0),0)*IF($T285=\"n/a\",$D285*$Y285,$G285)+IFERROR(IF(AND($V285<=AJ$1,$W285>=AJ$1),INDEX(Reliability!O$23:O$50,MATCH($T285,Reliability!$C$23:$C$50,0)),0),0)*$H285*$X285*$Y285),$D285)*$R285","v":0},{"$f":"MIN((IFERROR(IF(AND($V285<=AK$1,$W285>=AK$1),INDEX(Reliability!P$23:P$50,MATCH($S285,Reliability!$C$23:$C$50,0)),0),0)*IF($T285=\"n/a\",$D285*$Y285,$G285)+IFERROR(IF(AND($V285<=AK$1,$W285>=AK$1),INDEX(Reliability!P$23:P$50,MATCH($T285,Reliability!$C$23:$C$50,0)),0),0)*$H285*$X285*$Y285),$D285)*$R285","v":0}]
[null,{"$f":"unique_contracts!B287","v":0},{"$f":"unique_contracts!D287","v":0},{"$f":"unique_contracts!J287","v":0},{"$f":"unique_contracts!M287","v":0},{"$f":"unique_contracts!N287","v":0},{"$f":"unique_contracts!P287","v":0},{"$f":"unique_contracts!R287","v":0},{"$f":"unique_contracts!V287","v":0},{"$f":"unique_contracts!AB287","v":0},{"$f":"unique_contracts!AM287","v":0},{"$f":"unique_contracts!AN287","v":0},{"$f":"unique_contracts!AO287","v":0},{"$f":"unique_contracts!AP287","v":0},{"$f":"unique_contracts!AQ287","v":0},{"$f":"unique_contracts!AR287","v":0},{"$f":"unique_contracts!BP287","v":0},0,{"$f":"IFERROR(IF(AND(I286>0,E286=\"NotHybrid\"),_xlfn.CONCAT(MAX(MIN(ROUNDDOWN(I286/D286,0),8),4),INDEX(resources!$G:$G,MATCH(B286,resources!$A:$A,0))),INDEX(resources!$G:$G,MATCH(B286,resources!$A:$A,0))),\"n/a\")","v":"n/a"},"n/a","n/a",0,0,1,1,{"$f":"MIN((IFERROR(IF(AND($V286<=Z$1,$W286>=Z$1),INDEX(Reliability!E$23:E$50,MATCH($S286,Reliability!$C$23:$C$50,0)),0),0)*IF($T286=\"n/a\",$D286*$Y286,$G286)+IFERROR(IF(AND($V286<=Z$1,$W286>=Z$1),INDEX(Reliability!E$23:E$50,MATCH($T286,Reliability!$C$23:$C$50,0)),0),0)*$H286*$X286*$Y286),$D286)*$R286","v":0},{"$f":"MIN((IFERROR(IF(AND($V286<=AA$1,$W286>=AA$1),INDEX(Reliability!F$23:F$50,MATCH($S286,Reliability!$C$23:$C$50,0)),0),0)*IF($T286=\"n/a\",$D286*$Y286,$G286)+IFERROR(IF(AND($V286<=AA$1,$W286>=AA$1),INDEX(Reliability!F$23:F$50,MATCH($T286,Reliability!$C$23:$C$50,0)),0),0)*$H286*$X286*$Y286),$D286)*$R286","v":0},{"$f":"MIN((IFERROR(IF(AND($V286<=AB$1,$W286>=AB$1),INDEX(Reliability!G$23:G$50,MATCH($S286,Reliability!$C$23:$C$50,0)),0),0)*IF($T286=\"n/a\",$D286*$Y286,$G286)+IFERROR(IF(AND($V286<=AB$1,$W286>=AB$1),INDEX(Reliability!G$23:G$50,MATCH($T286,Reliability!$C$23:$C$50,0)),0),0)*$H286*$X286*$Y286),$D286)*$R286","v":0},{"$f":"MIN((IFERROR(IF(AND($V286<=AC$1,$W286>=AC$1),INDEX(Reliability!H$23:H$50,MATCH($S286,Reliability!$C$23:$C$50,0)),0),0)*IF($T286=\"n/a\",$D286*$Y286,$G286)+IFERROR(IF(AND($V286<=AC$1,$W286>=AC$1),INDEX(Reliability!H$23:H$50,MATCH($T286,Reliability!$C$23:$C$50,0)),0),0)*$H286*$X286*$Y286),$D286)*$R286","v":0},{"$f":"MIN((IFERROR(IF(AND($V286<=AD$1,$W286>=AD$1),INDEX(Reliability!I$23:I$50,MATCH($S286,Reliability!$C$23:$C$50,0)),0),0)*IF($T286=\"n/a\",$D286*$Y286,$G286)+IFERROR(IF(AND($V286<=AD$1,$W286>=AD$1),INDEX(Reliability!I$23:I$50,MATCH($T286,Reliability!$C$23:$C$50,0)),0),0)*$H286*$X286*$Y286),$D286)*$R286","v":0},{"$f":"MIN((IFERROR(IF(AND($V286<=AE$1,$W286>=AE$1),INDEX(Reliability!J$23:J$50,MATCH($S286,Reliability!$C$23:$C$50,0)),0),0)*IF($T286=\"n/a\",$D286*$Y286,$G286)+IFERROR(IF(AND($V286<=AE$1,$W286>=AE$1),INDEX(Reliability!J$23:J$50,MATCH($T286,Reliability!$C$23:$C$50,0)),0),0)*$H286*$X286*$Y286),$D286)*$R286","v":0},{"$f":"MIN((IFERROR(IF(AND($V286<=AF$1,$W286>=AF$1),INDEX(Reliability!K$23:K$50,MATCH($S286,Reliability!$C$23:$C$50,0)),0),0)*IF($T286=\"n/a\",$D286*$Y286,$G286)+IFERROR(IF(AND($V286<=AF$1,$W286>=AF$1),INDEX(Reliability!K$23:K$50,MATCH($T286,Reliability!$C$23:$C$50,0)),0),0)*$H286*$X286*$Y286),$D286)*$R286","v":0},{"$f":"MIN((IFERROR(IF(AND($V286<=AG$1,$W286>=AG$1),INDEX(Reliability!L$23:L$50,MATCH($S286,Reliability!$C$23:$C$50,0)),0),0)*IF($T286=\"n/a\",$D286*$Y286,$G286)+IFERROR(IF(AND($V286<=AG$1,$W286>=AG$1),INDEX(Reliability!L$23:L$50,MATCH($T286,Reliability!$C$23:$C$50,0)),0),0)*$H286*$X286*$Y286),$D286)*$R286","v":0},{"$f":"MIN((IFERROR(IF(AND($V286<=AH$1,$W286>=AH$1),INDEX(Reliability!M$23:M$50,MATCH($S286,Reliability!$C$23:$C$50,0)),0),0)*IF($T286=\"n/a\",$D286*$Y286,$G286)+IFERROR(IF(AND($V286<=AH$1,$W286>=AH$1),INDEX(Reliability!M$23:M$50,MATCH($T286,Reliability!$C$23:$C$50,0)),0),0)*$H286*$X286*$Y286),$D286)*$R286","v":0},{"$f":"MIN((IFERROR(IF(AND($V286<=AI$1,$W286>=AI$1),INDEX(Reliability!N$23:N$50,MATCH($S286,Reliability!$C$23:$C$50,0)),0),0)*IF($T286=\"n/a\",$D286*$Y286,$G286)+IFERROR(IF(AND($V286<=AI$1,$W286>=AI$1),INDEX(Reliability!N$23:N$50,MATCH($T286,Reliability!$C$23:$C$50,0)),0),0)*$H286*$X286*$Y286),$D286)*$R286","v":0},{"$f":"MIN((IFERROR(IF(AND($V286<=AJ$1,$W286>=AJ$1),INDEX(Reliability!O$23:O$50,MATCH($S286,Reliability!$C$23:$C$50,0)),0),0)*IF($T286=\"n/a\",$D286*$Y286,$G286)+IFERROR(IF(AND($V286<=AJ$1,$W286>=AJ$1),INDEX(Reliability!O$23:O$50,MATCH($T286,Reliability!$C$23:$C$50,0)),0),0)*$H286*$X286*$Y286),$D286)*$R286","v":0},{"$f":"MIN((IFERROR(IF(AND($V286<=AK$1,$W286>=AK$1),INDEX(Reliability!P$23:P$50,MATCH($S286,Reliability!$C$23:$C$50,0)),0),0)*IF($T286=\"n/a\",$D286*$Y286,$G286)+IFERROR(IF(AND($V286<=AK$1,$W286>=AK$1),INDEX(Reliability!P$23:P$50,MATCH($T286,Reliability!$C$23:$C$50,0)),0),0)*$H286*$X286*$Y286),$D286)*$R286","v":0}]
[null,{"$f":"unique_contracts!B288","v":0},{"$f":"unique_contracts!D288","v":0},{"$f":"unique_contracts!J288","v":0},{"$f":"unique_contracts!M288","v":0},{"$f":"unique_contracts!N288","v":0},{"$f":"unique_contracts!P288","v":0},{"$f":"unique_contracts!R288","v":0},{"$f":"unique_contracts!V288","v":0},{"$f":"unique_contracts!AB288","v":0},{"$f":"unique_contracts!AM288","v":0},{"$f":"unique_contracts!AN288","v":0},{"$f":"unique_contracts!AO288","v":0},{"$f":"unique_contracts!AP288","v":0},{"$f":"unique_contracts!AQ288","v":0},{"$f":"unique_contracts!AR288","v":0},{"$f":"unique_contracts!BP288","v":0},0,{"$f":"IFERROR(IF(AND(I287>0,E287=\"NotHybrid\"),_xlfn.CONCAT(MAX(MIN(ROUNDDOWN(I287/D287,0),8),4),INDEX(resources!$G:$G,MATCH(B287,resources!$A:$A,0))),INDEX(resources!$G:$G,MATCH(B287,resources!$A:$A,0))),\"n/a\")","v":"n/a"},"n/a","n/a",0,0,1,1,{"$f":"MIN((IFERROR(IF(AND($V287<=Z$1,$W287>=Z$1),INDEX(Reliability!E$23:E$50,MATCH($S287,Reliability!$C$23:$C$50,0)),0),0)*IF($T287=\"n/a\",$D287*$Y287,$G287)+IFERROR(IF(AND($V287<=Z$1,$W287>=Z$1),INDEX(Reliability!E$23:E$50,MATCH($T287,Reliability!$C$23:$C$50,0)),0),0)*$H287*$X287*$Y287),$D287)*$R287","v":0},{"$f":"MIN((IFERROR(IF(AND($V287<=AA$1,$W287>=AA$1),INDEX(Reliability!F$23:F$50,MATCH($S287,Reliability!$C$23:$C$50,0)),0),0)*IF($T287=\"n/a\",$D287*$Y287,$G287)+IFERROR(IF(AND($V287<=AA$1,$W287>=AA$1),INDEX(Reliability!F$23:F$50,MATCH($T287,Reliability!$C$23:$C$50,0)),0),0)*$H287*$X287*$Y287),$D287)*$R287","v":0},{"$f":"MIN((IFERROR(IF(AND($V287<=AB$1,$W287>=AB$1),INDEX(Reliability!G$23:G$50,MATCH($S287,Reliability!$C$23:$C$50,0)),0),0)*IF($T287=\"n/a\",$D287*$Y287,$G287)+IFERROR(IF(AND($V287<=AB$1,$W287>=AB$1),INDEX(Reliability!G$23:G$50,MATCH($T287,Reliability!$C$23:$C$50,0)),0),0)*$H287*$X287*$Y287),$D287)*$R287","v":0},{"$f":"MIN((IFERROR(IF(AND($V287<=AC$1,$W287>=AC$1),INDEX(Reliability!H$23:H$50,MATCH($S287,Reliability!$C$23:$C$50,0)),0),0)*IF($T287=\"n/a\",$D287*$Y287,$G287)+IFERROR(IF(AND($V287<=AC$1,$W287>=AC$1),INDEX(Reliability!H$23:H$50,MATCH($T287,Reliability!$C$23:$C$50,0)),0),0)*$H287*$X287*$Y287),$D287)*$R287","v":0},{"$f":"MIN((IFERROR(IF(AND($V287<=AD$1,$W287>=AD$1),INDEX(Reliability!I$23:I$50,MATCH($S287,Reliability!$C$23:$C$50,0)),0),0)*IF($T287=\"n/a\",$D287*$Y287,$G287)+IFERROR(IF(AND($V287<=AD$1,$W287>=AD$1),INDEX(Reliability!I$23:I$50,MATCH($T287,Reliability!$C$23:$C$50,0)),0),0)*$H287*$X287*$Y287),$D287)*$R287","v":0},{"$f":"MIN((IFERROR(IF(AND($V287<=AE$1,$W287>=AE$1),INDEX(Reliability!J$23:J$50,MATCH($S287,Reliability!$C$23:$C$50,0)),0),0)*IF($T287=\"n/a\",$D287*$Y287,$G287)+IFERROR(IF(AND($V287<=AE$1,$W287>=AE$1),INDEX(Reliability!J$23:J$50,MATCH($T287,Reliability!$C$23:$C$50,0)),0),0)*$H287*$X287*$Y287),$D287)*$R287","v":0},{"$f":"MIN((IFERROR(IF(AND($V287<=AF$1,$W287>=AF$1),INDEX(Reliability!K$23:K$50,MATCH($S287,Reliability!$C$23:$C$50,0)),0),0)*IF($T287=\"n/a\",$D287*$Y287,$G287)+IFERROR(IF(AND($V287<=AF$1,$W287>=AF$1),INDEX(Reliability!K$23:K$50,MATCH($T287,Reliability!$C$23:$C$50,0)),0),0)*$H287*$X287*$Y287),$D287)*$R287","v":0},{"$f":"MIN((IFERROR(IF(AND($V287<=AG$1,$W287>=AG$1),INDEX(Reliability!L$23:L$50,MATCH($S287,Reliability!$C$23:$C$50,0)),0),0)*IF($T287=\"n/a\",$D287*$Y287,$G287)+IFERROR(IF(AND($V287<=AG$1,$W287>=AG$1),INDEX(Reliability!L$23:L$50,MATCH($T287,Reliability!$C$23:$C$50,0)),0),0)*$H287*$X287*$Y287),$D287)*$R287","v":0},{"$f":"MIN((IFERROR(IF(AND($V287<=AH$1,$W287>=AH$1),INDEX(Reliability!M$23:M$50,MATCH($S287,Reliability!$C$23:$C$50,0)),0),0)*IF($T287=\"n/a\",$D287*$Y287,$G287)+IFERROR(IF(AND($V287<=AH$1,$W287>=AH$1),INDEX(Reliability!M$23:M$50,MATCH($T287,Reliability!$C$23:$C$50,0)),0),0)*$H287*$X287*$Y287),$D287)*$R287","v":0},{"$f":"MIN((IFERROR(IF(AND($V287<=AI$1,$W287>=AI$1),INDEX(Reliability!N$23:N$50,MATCH($S287,Reliability!$C$23:$C$50,0)),0),0)*IF($T287=\"n/a\",$D287*$Y287,$G287)+IFERROR(IF(AND($V287<=AI$1,$W287>=AI$1),INDEX(Reliability!N$23:N$50,MATCH($T287,Reliability!$C$23:$C$50,0)),0),0)*$H287*$X287*$Y287),$D287)*$R287","v":0},{"$f":"MIN((IFERROR(IF(AND($V287<=AJ$1,$W287>=AJ$1),INDEX(Reliability!O$23:O$50,MATCH($S287,Reliability!$C$23:$C$50,0)),0),0)*IF($T287=\"n/a\",$D287*$Y287,$G287)+IFERROR(IF(AND($V287<=AJ$1,$W287>=AJ$1),INDEX(Reliability!O$23:O$50,MATCH($T287,Reliability!$C$23:$C$50,0)),0),0)*$H287*$X287*$Y287),$D287)*$R287","v":0},{"$f":"MIN((IFERROR(IF(AND($V287<=AK$1,$W287>=AK$1),INDEX(Reliability!P$23:P$50,MATCH($S287,Reliability!$C$23:$C$50,0)),0),0)*IF($T287=\"n/a\",$D287*$Y287,$G287)+IFERROR(IF(AND($V287<=AK$1,$W287>=AK$1),INDEX(Reliability!P$23:P$50,MATCH($T287,Reliability!$C$23:$C$50,0)),0),0)*$H287*$X287*$Y287),$D287)*$R287","v":0}]
[null,{"$f":"unique_contracts!B289","v":0},{"$f":"unique_contracts!D289","v":0},{"$f":"unique_contracts!J289","v":0},{"$f":"unique_contracts!M289","v":0},{"$f":"unique_contracts!N289","v":0},{"$f":"unique_contracts!P289","v":0},{"$f":"unique_contracts!R289","v":0},{"$f":"unique_contracts!V289","v":0},{"$f":"unique_contracts!AB289","v":0},{"$f":"unique_contracts!AM289","v":0},{"$f":"unique_contracts!AN289","v":0},{"$f":"unique_contracts!AO289","v":0},{"$f":"unique_contracts!AP289","v":0},{"$f":"unique_contracts!AQ289","v":0},{"$f":"unique_contracts!AR289","v":0},{"$f":"unique_contracts!BP289","v":0},0,{"$f":"IFERROR(IF(AND(I288>0,E288=\"NotHybrid\"),_xlfn.CONCAT(MAX(MIN(ROUNDDOWN(I288/D288,0),8),4),INDEX(resources!$G:$G,MATCH(B288,resources!$A:$A,0))),INDEX(resources!$G:$G,MATCH(B288,resources!$A:$A,0))),\"n/a\")","v":"n/a"},"n/a","n/a",0,0,1,1,{"$f":"MIN((IFERROR(IF(AND($V288<=Z$1,$W288>=Z$1),INDEX(Reliability!E$23:E$50,MATCH($S288,Reliability!$C$23:$C$50,0)),0),0)*IF($T288=\"n/a\",$D288*$Y288,$G288)+IFERROR(IF(AND($V288<=Z$1,$W288>=Z$1),INDEX(Reliability!E$23:E$50,MATCH($T288,Reliability!$C$23:$C$50,0)),0),0)*$H288*$X288*$Y288),$D288)*$R288","v":0},{"$f":"MIN((IFERROR(IF(AND($V288<=AA$1,$W288>=AA$1),INDEX(Reliability!F$23:F$50,MATCH($S288,Reliability!$C$23:$C$50,0)),0),0)*IF($T288=\"n/a\",$D288*$Y288,$G288)+IFERROR(IF(AND($V288<=AA$1,$W288>=AA$1),INDEX(Reliability!F$23:F$50,MATCH($T288,Reliability!$C$23:$C$50,0)),0),0)*$H288*$X288*$Y288),$D288)*$R288","v":0},{"$f":"MIN((IFERROR(IF(AND($V288<=AB$1,$W288>=AB$1),INDEX(Reliability!G$23:G$50,MATCH($S288,Reliability!$C$23:$C$50,0)),0),0)*IF($T288=\"n/a\",$D288*$Y288,$G288)+IFERROR(IF(AND($V288<=AB$1,$W288>=AB$1),INDEX(Reliability!G$23:G$50,MATCH($T288,Reliability!$C$23:$C$50,0)),0),0)*$H288*$X288*$Y288),$D288)*$R288","v":0},{"$f":"MIN((IFERROR(IF(AND($V288<=AC$1,$W288>=AC$1),INDEX(Reliability!H$23:H$50,MATCH($S288,Reliability!$C$23:$C$50,0)),0),0)*IF($T288=\"n/a\",$D288*$Y288,$G288)+IFERROR(IF(AND($V288<=AC$1,$W288>=AC$1),INDEX(Reliability!H$23:H$50,MATCH($T288,Reliability!$C$23:$C$50,0)),0),0)*$H288*$X288*$Y288),$D288)*$R288","v":0},{"$f":"MIN((IFERROR(IF(AND($V288<=AD$1,$W288>=AD$1),INDEX(Reliability!I$23:I$50,MATCH($S288,Reliability!$C$23:$C$50,0)),0),0)*IF($T288=\"n/a\",$D288*$Y288,$G288)+IFERROR(IF(AND($V288<=AD$1,$W288>=AD$1),INDEX(Reliability!I$23:I$50,MATCH($T288,Reliability!$C$23:$C$50,0)),0),0)*$H288*$X288*$Y288),$D288)*$R288","v":0},{"$f":"MIN((IFERROR(IF(AND($V288<=AE$1,$W288>=AE$1),INDEX(Reliability!J$23:J$50,MATCH($S288,Reliability!$C$23:$C$50,0)),0),0)*IF($T288=\"n/a\",$D288*$Y288,$G288)+IFERROR(IF(AND($V288<=AE$1,$W288>=AE$1),INDEX(Reliability!J$23:J$50,MATCH($T288,Reliability!$C$23:$C$50,0)),0),0)*$H288*$X288*$Y288),$D288)*$R288","v":0},{"$f":"MIN((IFERROR(IF(AND($V288<=AF$1,$W288>=AF$1),INDEX(Reliability!K$23:K$50,MATCH($S288,Reliability!$C$23:$C$50,0)),0),0)*IF($T288=\"n/a\",$D288*$Y288,$G288)+IFERROR(IF(AND($V288<=AF$1,$W288>=AF$1),INDEX(Reliability!K$23:K$50,MATCH($T288,Reliability!$C$23:$C$50,0)),0),0)*$H288*$X288*$Y288),$D288)*$R288","v":0},{"$f":"MIN((IFERROR(IF(AND($V288<=AG$1,$W288>=AG$1),INDEX(Reliability!L$23:L$50,MATCH($S288,Reliability!$C$23:$C$50,0)),0),0)*IF($T288=\"n/a\",$D288*$Y288,$G288)+IFERROR(IF(AND($V288<=AG$1,$W288>=AG$1),INDEX(Reliability!L$23:L$50,MATCH($T288,Reliability!$C$23:$C$50,0)),0),0)*$H288*$X288*$Y288),$D288)*$R288","v":0},{"$f":"MIN((IFERROR(IF(AND($V288<=AH$1,$W288>=AH$1),INDEX(Reliability!M$23:M$50,MATCH($S288,Reliability!$C$23:$C$50,0)),0),0)*IF($T288=\"n/a\",$D288*$Y288,$G288)+IFERROR(IF(AND($V288<=AH$1,$W288>=AH$1),INDEX(Reliability!M$23:M$50,MATCH($T288,Reliability!$C$23:$C$50,0)),0),0)*$H288*$X288*$Y288),$D288)*$R288","v":0},{"$f":"MIN((IFERROR(IF(AND($V288<=AI$1,$W288>=AI$1),INDEX(Reliability!N$23:N$50,MATCH($S288,Reliability!$C$23:$C$50,0)),0),0)*IF($T288=\"n/a\",$D288*$Y288,$G288)+IFERROR(IF(AND($V288<=AI$1,$W288>=AI$1),INDEX(Reliability!N$23:N$50,MATCH($T288,Reliability!$C$23:$C$50,0)),0),0)*$H288*$X288*$Y288),$D288)*$R288","v":0},{"$f":"MIN((IFERROR(IF(AND($V288<=AJ$1,$W288>=AJ$1),INDEX(Reliability!O$23:O$50,MATCH($S288,Reliability!$C$23:$C$50,0)),0),0)*IF($T288=\"n/a\",$D288*$Y288,$G288)+IFERROR(IF(AND($V288<=AJ$1,$W288>=AJ$1),INDEX(Reliability!O$23:O$50,MATCH($T288,Reliability!$C$23:$C$50,0)),0),0)*$H288*$X288*$Y288),$D288)*$R288","v":0},{"$f":"MIN((IFERROR(IF(AND($V288<=AK$1,$W288>=AK$1),INDEX(Reliability!P$23:P$50,MATCH($S288,Reliability!$C$23:$C$50,0)),0),0)*IF($T288=\"n/a\",$D288*$Y288,$G288)+IFERROR(IF(AND($V288<=AK$1,$W288>=AK$1),INDEX(Reliability!P$23:P$50,MATCH($T288,Reliability!$C$23:$C$50,0)),0),0)*$H288*$X288*$Y288),$D288)*$R288","v":0}]
[null,{"$f":"unique_contracts!B290","v":0},{"$f":"unique_contracts!D290","v":0},{"$f":"unique_contracts!J290","v":0},{"$f":"unique_contracts!M290","v":0},{"$f":"unique_contracts!N290","v":0},{"$f":"unique_contracts!P290","v":0},{"$f":"unique_contracts!R290","v":0},{"$f":"unique_contracts!V290","v":0},{"$f":"unique_contracts!AB290","v":0},{"$f":"unique_contracts!AM290","v":0},{"$f":"unique_contracts!AN290","v":0},{"$f":"unique_contracts!AO290","v":0},{"$f":"unique_contracts!AP290","v":0},{"$f":"unique_contracts!AQ290","v":0},{"$f":"unique_contracts!AR290","v":0},{"$f":"unique_contracts!BP290","v":0},0,{"$f":"IFERROR(IF(AND(I289>0,E289=\"NotHybrid\"),_xlfn.CONCAT(MAX(MIN(ROUNDDOWN(I289/D289,0),8),4),INDEX(resources!$G:$G,MATCH(B289,resources!$A:$A,0))),INDEX(resources!$G:$G,MATCH(B289,resources!$A:$A,0))),\"n/a\")","v":"n/a"},"n/a","n/a",0,0,1,1,{"$f":"MIN((IFERROR(IF(AND($V289<=Z$1,$W289>=Z$1),INDEX(Reliability!E$23:E$50,MATCH($S289,Reliability!$C$23:$C$50,0)),0),0)*IF($T289=\"n/a\",$D289*$Y289,$G289)+IFERROR(IF(AND($V289<=Z$1,$W289>=Z$1),INDEX(Reliability!E$23:E$50,MATCH($T289,Reliability!$C$23:$C$50,0)),0),0)*$H289*$X289*$Y289),$D289)*$R289","v":0},{"$f":"MIN((IFERROR(IF(AND($V289<=AA$1,$W289>=AA$1),INDEX(Reliability!F$23:F$50,MATCH($S289,Reliability!$C$23:$C$50,0)),0),0)*IF($T289=\"n/a\",$D289*$Y289,$G289)+IFERROR(IF(AND($V289<=AA$1,$W289>=AA$1),INDEX(Reliability!F$23:F$50,MATCH($T289,Reliability!$C$23:$C$50,0)),0),0)*$H289*$X289*$Y289),$D289)*$R289","v":0},{"$f":"MIN((IFERROR(IF(AND($V289<=AB$1,$W289>=AB$1),INDEX(Reliability!G$23:G$50,MATCH($S289,Reliability!$C$23:$C$50,0)),0),0)*IF($T289=\"n/a\",$D289*$Y289,$G289)+IFERROR(IF(AND($V289<=AB$1,$W289>=AB$1),INDEX(Reliability!G$23:G$50,MATCH($T289,Reliability!$C$23:$C$50,0)),0),0)*$H289*$X289*$Y289),$D289)*$R289","v":0},{"$f":"MIN((IFERROR(IF(AND($V289<=AC$1,$W289>=AC$1),INDEX(Reliability!H$23:H$50,MATCH($S289,Reliability!$C$23:$C$50,0)),0),0)*IF($T289=\"n/a\",$D289*$Y289,$G289)+IFERROR(IF(AND($V289<=AC$1,$W289>=AC$1),INDEX(Reliability!H$23:H$50,MATCH($T289,Reliability!$C$23:$C$50,0)),0),0)*$H289*$X289*$Y289),$D289)*$R289","v":0},{"$f":"MIN((IFERROR(IF(AND($V289<=AD$1,$W289>=AD$1),INDEX(Reliability!I$23:I$50,MATCH($S289,Reliability!$C$23:$C$50,0)),0),0)*IF($T289=\"n/a\",$D289*$Y289,$G289)+IFERROR(IF(AND($V289<=AD$1,$W289>=AD$1),INDEX(Reliability!I$23:I$50,MATCH($T289,Reliability!$C$23:$C$50,0)),0),0)*$H289*$X289*$Y289),$D289)*$R289","v":0},{"$f":"MIN((IFERROR(IF(AND($V289<=AE$1,$W289>=AE$1),INDEX(Reliability!J$23:J$50,MATCH($S289,Reliability!$C$23:$C$50,0)),0),0)*IF($T289=\"n/a\",$D289*$Y289,$G289)+IFERROR(IF(AND($V289<=AE$1,$W289>=AE$1),INDEX(Reliability!J$23:J$50,MATCH($T289,Reliability!$C$23:$C$50,0)),0),0)*$H289*$X289*$Y289),$D289)*$R289","v":0},{"$f":"MIN((IFERROR(IF(AND($V289<=AF$1,$W289>=AF$1),INDEX(Reliability!K$23:K$50,MATCH($S289,Reliability!$C$23:$C$50,0)),0),0)*IF($T289=\"n/a\",$D289*$Y289,$G289)+IFERROR(IF(AND($V289<=AF$1,$W289>=AF$1),INDEX(Reliability!K$23:K$50,MATCH($T289,Reliability!$C$23:$C$50,0)),0),0)*$H289*$X289*$Y289),$D289)*$R289","v":0},{"$f":"MIN((IFERROR(IF(AND($V289<=AG$1,$W289>=AG$1),INDEX(Reliability!L$23:L$50,MATCH($S289,Reliability!$C$23:$C$50,0)),0),0)*IF($T289=\"n/a\",$D289*$Y289,$G289)+IFERROR(IF(AND($V289<=AG$1,$W289>=AG$1),INDEX(Reliability!L$23:L$50,MATCH($T289,Reliability!$C$23:$C$50,0)),0),0)*$H289*$X289*$Y289),$D289)*$R289","v":0},{"$f":"MIN((IFERROR(IF(AND($V289<=AH$1,$W289>=AH$1),INDEX(Reliability!M$23:M$50,MATCH($S289,Reliability!$C$23:$C$50,0)),0),0)*IF($T289=\"n/a\",$D289*$Y289,$G289)+IFERROR(IF(AND($V289<=AH$1,$W289>=AH$1),INDEX(Reliability!M$23:M$50,MATCH($T289,Reliability!$C$23:$C$50,0)),0),0)*$H289*$X289*$Y289),$D289)*$R289","v":0},{"$f":"MIN((IFERROR(IF(AND($V289<=AI$1,$W289>=AI$1),INDEX(Reliability!N$23:N$50,MATCH($S289,Reliability!$C$23:$C$50,0)),0),0)*IF($T289=\"n/a\",$D289*$Y289,$G289)+IFERROR(IF(AND($V289<=AI$1,$W289>=AI$1),INDEX(Reliability!N$23:N$50,MATCH($T289,Reliability!$C$23:$C$50,0)),0),0)*$H289*$X289*$Y289),$D289)*$R289","v":0},{"$f":"MIN((IFERROR(IF(AND($V289<=AJ$1,$W289>=AJ$1),INDEX(Reliability!O$23:O$50,MATCH($S289,Reliability!$C$23:$C$50,0)),0),0)*IF($T289=\"n/a\",$D289*$Y289,$G289)+IFERROR(IF(AND($V289<=AJ$1,$W289>=AJ$1),INDEX(Reliability!O$23:O$50,MATCH($T289,Reliability!$C$23:$C$50,0)),0),0)*$H289*$X289*$Y289),$D289)*$R289","v":0},{"$f":"MIN((IFERROR(IF(AND($V289<=AK$1,$W289>=AK$1),INDEX(Reliability!P$23:P$50,MATCH($S289,Reliability!$C$23:$C$50,0)),0),0)*IF($T289=\"n/a\",$D289*$Y289,$G289)+IFERROR(IF(AND($V289<=AK$1,$W289>=AK$1),INDEX(Reliability!P$23:P$50,MATCH($T289,Reliability!$C$23:$C$50,0)),0),0)*$H289*$X289*$Y289),$D289)*$R289","v":0}]
[null,{"$f":"unique_contracts!B291","v":0},{"$f":"unique_contracts!D291","v":0},{"$f":"unique_contracts!J291","v":0},{"$f":"unique_contracts!M291","v":0},{"$f":"unique_contracts!N291","v":0},{"$f":"unique_contracts!P291","v":0},{"$f":"unique_contracts!R291","v":0},{"$f":"unique_contracts!V291","v":0},{"$f":"unique_contracts!AB291","v":0},{"$f":"unique_contracts!AM291","v":0},{"$f":"unique_contracts!AN291","v":0},{"$f":"unique_contracts!AO291","v":0},{"$f":"unique_contracts!AP291","v":0},{"$f":"unique_contracts!AQ291","v":0},{"$f":"unique_contracts!AR291","v":0},{"$f":"unique_contracts!BP291","v":0},0,{"$f":"IFERROR(IF(AND(I290>0,E290=\"NotHybrid\"),_xlfn.CONCAT(MAX(MIN(ROUNDDOWN(I290/D290,0),8),4),INDEX(resources!$G:$G,MATCH(B290,resources!$A:$A,0))),INDEX(resources!$G:$G,MATCH(B290,resources!$A:$A,0))),\"n/a\")","v":"n/a"},"n/a","n/a",0,0,1,1,{"$f":"MIN((IFERROR(IF(AND($V290<=Z$1,$W290>=Z$1),INDEX(Reliability!E$23:E$50,MATCH($S290,Reliability!$C$23:$C$50,0)),0),0)*IF($T290=\"n/a\",$D290*$Y290,$G290)+IFERROR(IF(AND($V290<=Z$1,$W290>=Z$1),INDEX(Reliability!E$23:E$50,MATCH($T290,Reliability!$C$23:$C$50,0)),0),0)*$H290*$X290*$Y290),$D290)*$R290","v":0},{"$f":"MIN((IFERROR(IF(AND($V290<=AA$1,$W290>=AA$1),INDEX(Reliability!F$23:F$50,MATCH($S290,Reliability!$C$23:$C$50,0)),0),0)*IF($T290=\"n/a\",$D290*$Y290,$G290)+IFERROR(IF(AND($V290<=AA$1,$W290>=AA$1),INDEX(Reliability!F$23:F$50,MATCH($T290,Reliability!$C$23:$C$50,0)),0),0)*$H290*$X290*$Y290),$D290)*$R290","v":0},{"$f":"MIN((IFERROR(IF(AND($V290<=AB$1,$W290>=AB$1),INDEX(Reliability!G$23:G$50,MATCH($S290,Reliability!$C$23:$C$50,0)),0),0)*IF($T290=\"n/a\",$D290*$Y290,$G290)+IFERROR(IF(AND($V290<=AB$1,$W290>=AB$1),INDEX(Reliability!G$23:G$50,MATCH($T290,Reliability!$C$23:$C$50,0)),0),0)*$H290*$X290*$Y290),$D290)*$R290","v":0},{"$f":"MIN((IFERROR(IF(AND($V290<=AC$1,$W290>=AC$1),INDEX(Reliability!H$23:H$50,MATCH($S290,Reliability!$C$23:$C$50,0)),0),0)*IF($T290=\"n/a\",$D290*$Y290,$G290)+IFERROR(IF(AND($V290<=AC$1,$W290>=AC$1),INDEX(Reliability!H$23:H$50,MATCH($T290,Reliability!$C$23:$C$50,0)),0),0)*$H290*$X290*$Y290),$D290)*$R290","v":0},{"$f":"MIN((IFERROR(IF(AND($V290<=AD$1,$W290>=AD$1),INDEX(Reliability!I$23:I$50,MATCH($S290,Reliability!$C$23:$C$50,0)),0),0)*IF($T290=\"n/a\",$D290*$Y290,$G290)+IFERROR(IF(AND($V290<=AD$1,$W290>=AD$1),INDEX(Reliability!I$23:I$50,MATCH($T290,Reliability!$C$23:$C$50,0)),0),0)*$H290*$X290*$Y290),$D290)*$R290","v":0},{"$f":"MIN((IFERROR(IF(AND($V290<=AE$1,$W290>=AE$1),INDEX(Reliability!J$23:J$50,MATCH($S290,Reliability!$C$23:$C$50,0)),0),0)*IF($T290=\"n/a\",$D290*$Y290,$G290)+IFERROR(IF(AND($V290<=AE$1,$W290>=AE$1),INDEX(Reliability!J$23:J$50,MATCH($T290,Reliability!$C$23:$C$50,0)),0),0)*$H290*$X290*$Y290),$D290)*$R290","v":0},{"$f":"MIN((IFERROR(IF(AND($V290<=AF$1,$W290>=AF$1),INDEX(Reliability!K$23:K$50,MATCH($S290,Reliability!$C$23:$C$50,0)),0),0)*IF($T290=\"n/a\",$D290*$Y290,$G290)+IFERROR(IF(AND($V290<=AF$1,$W290>=AF$1),INDEX(Reliability!K$23:K$50,MATCH($T290,Reliability!$C$23:$C$50,0)),0),0)*$H290*$X290*$Y290),$D290)*$R290","v":0},{"$f":"MIN((IFERROR(IF(AND($V290<=AG$1,$W290>=AG$1),INDEX(Reliability!L$23:L$50,MATCH($S290,Reliability!$C$23:$C$50,0)),0),0)*IF($T290=\"n/a\",$D290*$Y290,$G290)+IFERROR(IF(AND($V290<=AG$1,$W290>=AG$1),INDEX(Reliability!L$23:L$50,MATCH($T290,Reliability!$C$23:$C$50,0)),0),0)*$H290*$X290*$Y290),$D290)*$R290","v":0},{"$f":"MIN((IFERROR(IF(AND($V290<=AH$1,$W290>=AH$1),INDEX(Reliability!M$23:M$50,MATCH($S290,Reliability!$C$23:$C$50,0)),0),0)*IF($T290=\"n/a\",$D290*$Y290,$G290)+IFERROR(IF(AND($V290<=AH$1,$W290>=AH$1),INDEX(Reliability!M$23:M$50,MATCH($T290,Reliability!$C$23:$C$50,0)),0),0)*$H290*$X290*$Y290),$D290)*$R290","v":0},{"$f":"MIN((IFERROR(IF(AND($V290<=AI$1,$W290>=AI$1),INDEX(Reliability!N$23:N$50,MATCH($S290,Reliability!$C$23:$C$50,0)),0),0)*IF($T290=\"n/a\",$D290*$Y290,$G290)+IFERROR(IF(AND($V290<=AI$1,$W290>=AI$1),INDEX(Reliability!N$23:N$50,MATCH($T290,Reliability!$C$23:$C$50,0)),0),0)*$H290*$X290*$Y290),$D290)*$R290","v":0},{"$f":"MIN((IFERROR(IF(AND($V290<=AJ$1,$W290>=AJ$1),INDEX(Reliability!O$23:O$50,MATCH($S290,Reliability!$C$23:$C$50,0)),0),0)*IF($T290=\"n/a\",$D290*$Y290,$G290)+IFERROR(IF(AND($V290<=AJ$1,$W290>=AJ$1),INDEX(Reliability!O$23:O$50,MATCH($T290,Reliability!$C$23:$C$50,0)),0),0)*$H290*$X290*$Y290),$D290)*$R290","v":0},{"$f":"MIN((IFERROR(IF(AND($V290<=AK$1,$W290>=AK$1),INDEX(Reliability!P$23:P$50,MATCH($S290,Reliability!$C$23:$C$50,0)),0),0)*IF($T290=\"n/a\",$D290*$Y290,$G290)+IFERROR(IF(AND($V290<=AK$1,$W290>=AK$1),INDEX(Reliability!P$23:P$50,MATCH($T290,Reliability!$C$23:$C$50,0)),0),0)*$H290*$X290*$Y290),$D290)*$R290","v":0}]
[null,{"$f":"unique_contracts!B292","v":0},{"$f":"unique_contracts!D292","v":0},{"$f":"unique_contracts!J292","v":0},{"$f":"unique_contracts!M292","v":0},{"$f":"unique_contracts!N292","v":0},{"$f":"unique_contracts!P292","v":0},{"$f":"unique_contracts!R292","v":0},{"$f":"unique_contracts!V292","v":0},{"$f":"unique_contracts!AB292","v":0},{"$f":"unique_contracts!AM292","v":0},{"$f":"unique_contracts!AN292","v":0},{"$f":"unique_contracts!AO292","v":0},{"$f":"unique_contracts!AP292","v":0},{"$f":"unique_contracts!AQ292","v":0},{"$f":"unique_contracts!AR292","v":0},{"$f":"unique_contracts!BP292","v":0},0,{"$f":"IFERROR(IF(AND(I291>0,E291=\"NotHybrid\"),_xlfn.CONCAT(MAX(MIN(ROUNDDOWN(I291/D291,0),8),4),INDEX(resources!$G:$G,MATCH(B291,resources!$A:$A,0))),INDEX(resources!$G:$G,MATCH(B291,resources!$A:$A,0))),\"n/a\")","v":"n/a"},"n/a","n/a",0,0,1,1,{"$f":"MIN((IFERROR(IF(AND($V291<=Z$1,$W291>=Z$1),INDEX(Reliability!E$23:E$50,MATCH($S291,Reliability!$C$23:$C$50,0)),0),0)*IF($T291=\"n/a\",$D291*$Y291,$G291)+IFERROR(IF(AND($V291<=Z$1,$W291>=Z$1),INDEX(Reliability!E$23:E$50,MATCH($T291,Reliability!$C$23:$C$50,0)),0),0)*$H291*$X291*$Y291),$D291)*$R291","v":0},{"$f":"MIN((IFERROR(IF(AND($V291<=AA$1,$W291>=AA$1),INDEX(Reliability!F$23:F$50,MATCH($S291,Reliability!$C$23:$C$50,0)),0),0)*IF($T291=\"n/a\",$D291*$Y291,$G291)+IFERROR(IF(AND($V291<=AA$1,$W291>=AA$1),INDEX(Reliability!F$23:F$50,MATCH($T291,Reliability!$C$23:$C$50,0)),0),0)*$H291*$X291*$Y291),$D291)*$R291","v":0},{"$f":"MIN((IFERROR(IF(AND($V291<=AB$1,$W291>=AB$1),INDEX(Reliability!G$23:G$50,MATCH($S291,Reliability!$C$23:$C$50,0)),0),0)*IF($T291=\"n/a\",$D291*$Y291,$G291)+IFERROR(IF(AND($V291<=AB$1,$W291>=AB$1),INDEX(Reliability!G$23:G$50,MATCH($T291,Reliability!$C$23:$C$50,0)),0),0)*$H291*$X291*$Y291),$D291)*$R291","v":0},{"$f":"MIN((IFERROR(IF(AND($V291<=AC$1,$W291>=AC$1),INDEX(Reliability!H$23:H$50,MATCH($S291,Reliability!$C$23:$C$50,0)),0),0)*IF($T291=\"n/a\",$D291*$Y291,$G291)+IFERROR(IF(AND($V291<=AC$1,$W291>=AC$1),INDEX(Reliability!H$23:H$50,MATCH($T291,Reliability!$C$23:$C$50,0)),0),0)*$H291*$X291*$Y291),$D291)*$R291","v":0},{"$f":"MIN((IFERROR(IF(AND($V291<=AD$1,$W291>=AD$1),INDEX(Reliability!I$23:I$50,MATCH($S291,Reliability!$C$23:$C$50,0)),0),0)*IF($T291=\"n/a\",$D291*$Y291,$G291)+IFERROR(IF(AND($V291<=AD$1,$W291>=AD$1),INDEX(Reliability!I$23:I$50,MATCH($T291,Reliability!$C$23:$C$50,0)),0),0)*$H291*$X291*$Y291),$D291)*$R291","v":0},{"$f":"MIN((IFERROR(IF(AND($V291<=AE$1,$W291>=AE$1),INDEX(Reliability!J$23:J$50,MATCH($S291,Reliability!$C$23:$C$50,0)),0),0)*IF($T291=\"n/a\",$D291*$Y291,$G291)+IFERROR(IF(AND($V291<=AE$1,$W291>=AE$1),INDEX(Reliability!J$23:J$50,MATCH($T291,Reliability!$C$23:$C$50,0)),0),0)*$H291*$X291*$Y291),$D291)*$R291","v":0},{"$f":"MIN((IFERROR(IF(AND($V291<=AF$1,$W291>=AF$1),INDEX(Reliability!K$23:K$50,MATCH($S291,Reliability!$C$23:$C$50,0)),0),0)*IF($T291=\"n/a\",$D291*$Y291,$G291)+IFERROR(IF(AND($V291<=AF$1,$W291>=AF$1),INDEX(Reliability!K$23:K$50,MATCH($T291,Reliability!$C$23:$C$50,0)),0),0)*$H291*$X291*$Y291),$D291)*$R291","v":0},{"$f":"MIN((IFERROR(IF(AND($V291<=AG$1,$W291>=AG$1),INDEX(Reliability!L$23:L$50,MATCH($S291,Reliability!$C$23:$C$50,0)),0),0)*IF($T291=\"n/a\",$D291*$Y291,$G291)+IFERROR(IF(AND($V291<=AG$1,$W291>=AG$1),INDEX(Reliability!L$23:L$50,MATCH($T291,Reliability!$C$23:$C$50,0)),0),0)*$H291*$X291*$Y291),$D291)*$R291","v":0},{"$f":"MIN((IFERROR(IF(AND($V291<=AH$1,$W291>=AH$1),INDEX(Reliability!M$23:M$50,MATCH($S291,Reliability!$C$23:$C$50,0)),0),0)*IF($T291=\"n/a\",$D291*$Y291,$G291)+IFERROR(IF(AND($V291<=AH$1,$W291>=AH$1),INDEX(Reliability!M$23:M$50,MATCH($T291,Reliability!$C$23:$C$50,0)),0),0)*$H291*$X291*$Y291),$D291)*$R291","v":0},{"$f":"MIN((IFERROR(IF(AND($V291<=AI$1,$W291>=AI$1),INDEX(Reliability!N$23:N$50,MATCH($S291,Reliability!$C$23:$C$50,0)),0),0)*IF($T291=\"n/a\",$D291*$Y291,$G291)+IFERROR(IF(AND($V291<=AI$1,$W291>=AI$1),INDEX(Reliability!N$23:N$50,MATCH($T291,Reliability!$C$23:$C$50,0)),0),0)*$H291*$X291*$Y291),$D291)*$R291","v":0},{"$f":"MIN((IFERROR(IF(AND($V291<=AJ$1,$W291>=AJ$1),INDEX(Reliability!O$23:O$50,MATCH($S291,Reliability!$C$23:$C$50,0)),0),0)*IF($T291=\"n/a\",$D291*$Y291,$G291)+IFERROR(IF(AND($V291<=AJ$1,$W291>=AJ$1),INDEX(Reliability!O$23:O$50,MATCH($T291,Reliability!$C$23:$C$50,0)),0),0)*$H291*$X291*$Y291),$D291)*$R291","v":0},{"$f":"MIN((IFERROR(IF(AND($V291<=AK$1,$W291>=AK$1),INDEX(Reliability!P$23:P$50,MATCH($S291,Reliability!$C$23:$C$50,0)),0),0)*IF($T291=\"n/a\",$D291*$Y291,$G291)+IFERROR(IF(AND($V291<=AK$1,$W291>=AK$1),INDEX(Reliability!P$23:P$50,MATCH($T291,Reliability!$C$23:$C$50,0)),0),0)*$H291*$X291*$Y291),$D291)*$R291","v":0}]
[null,{"$f":"unique_contracts!B293","v":0},{"$f":"unique_contracts!D293","v":0},{"$f":"unique_contracts!J293","v":0},{"$f":"unique_contracts!M293","v":0},{"$f":"unique_contracts!N293","v":0},{"$f":"unique_contracts!P293","v":0},{"$f":"unique_contracts!R293","v":0},{"$f":"unique_contracts!V293","v":0},{"$f":"unique_contracts!AB293","v":0},{"$f":"unique_contracts!AM293","v":0},{"$f":"unique_contracts!AN293","v":0},{"$f":"unique_contracts!AO293","v":0},{"$f":"unique_contracts!AP293","v":0},{"$f":"unique_contracts!AQ293","v":0},{"$f":"unique_contracts!AR293","v":0},{"$f":"unique_contracts!BP293","v":0},0,{"$f":"IFERROR(IF(AND(I292>0,E292=\"NotHybrid\"),_xlfn.CONCAT(MAX(MIN(ROUNDDOWN(I292/D292,0),8),4),INDEX(resources!$G:$G,MATCH(B292,resources!$A:$A,0))),INDEX(resources!$G:$G,MATCH(B292,resources!$A:$A,0))),\"n/a\")","v":"n/a"},"n/a","n/a",0,0,1,1,{"$f":"MIN((IFERROR(IF(AND($V292<=Z$1,$W292>=Z$1),INDEX(Reliability!E$23:E$50,MATCH($S292,Reliability!$C$23:$C$50,0)),0),0)*IF($T292=\"n/a\",$D292*$Y292,$G292)+IFERROR(IF(AND($V292<=Z$1,$W292>=Z$1),INDEX(Reliability!E$23:E$50,MATCH($T292,Reliability!$C$23:$C$50,0)),0),0)*$H292*$X292*$Y292),$D292)*$R292","v":0},{"$f":"MIN((IFERROR(IF(AND($V292<=AA$1,$W292>=AA$1),INDEX(Reliability!F$23:F$50,MATCH($S292,Reliability!$C$23:$C$50,0)),0),0)*IF($T292=\"n/a\",$D292*$Y292,$G292)+IFERROR(IF(AND($V292<=AA$1,$W292>=AA$1),INDEX(Reliability!F$23:F$50,MATCH($T292,Reliability!$C$23:$C$50,0)),0),0)*$H292*$X292*$Y292),$D292)*$R292","v":0},{"$f":"MIN((IFERROR(IF(AND($V292<=AB$1,$W292>=AB$1),INDEX(Reliability!G$23:G$50,MATCH($S292,Reliability!$C$23:$C$50,0)),0),0)*IF($T292=\"n/a\",$D292*$Y292,$G292)+IFERROR(IF(AND($V292<=AB$1,$W292>=AB$1),INDEX(Reliability!G$23:G$50,MATCH($T292,Reliability!$C$23:$C$50,0)),0),0)*$H292*$X292*$Y292),$D292)*$R292","v":0},{"$f":"MIN((IFERROR(IF(AND($V292<=AC$1,$W292>=AC$1),INDEX(Reliability!H$23:H$50,MATCH($S292,Reliability!$C$23:$C$50,0)),0),0)*IF($T292=\"n/a\",$D292*$Y292,$G292)+IFERROR(IF(AND($V292<=AC$1,$W292>=AC$1),INDEX(Reliability!H$23:H$50,MATCH($T292,Reliability!$C$23:$C$50,0)),0),0)*$H292*$X292*$Y292),$D292)*$R292","v":0},{"$f":"MIN((IFERROR(IF(AND($V292<=AD$1,$W292>=AD$1),INDEX(Reliability!I$23:I$50,MATCH($S292,Reliability!$C$23:$C$50,0)),0),0)*IF($T292=\"n/a\",$D292*$Y292,$G292)+IFERROR(IF(AND($V292<=AD$1,$W292>=AD$1),INDEX(Reliability!I$23:I$50,MATCH($T292,Reliability!$C$23:$C$50,0)),0),0)*$H292*$X292*$Y292),$D292)*$R292","v":0},{"$f":"MIN((IFERROR(IF(AND($V292<=AE$1,$W292>=AE$1),INDEX(Reliability!J$23:J$50,MATCH($S292,Reliability!$C$23:$C$50,0)),0),0)*IF($T292=\"n/a\",$D292*$Y292,$G292)+IFERROR(IF(AND($V292<=AE$1,$W292>=AE$1),INDEX(Reliability!J$23:J$50,MATCH($T292,Reliability!$C$23:$C$50,0)),0),0)*$H292*$X292*$Y292),$D292)*$R292","v":0},{"$f":"MIN((IFERROR(IF(AND($V292<=AF$1,$W292>=AF$1),INDEX(Reliability!K$23:K$50,MATCH($S292,Reliability!$C$23:$C$50,0)),0),0)*IF($T292=\"n/a\",$D292*$Y292,$G292)+IFERROR(IF(AND($V292<=AF$1,$W292>=AF$1),INDEX(Reliability!K$23:K$50,MATCH($T292,Reliability!$C$23:$C$50,0)),0),0)*$H292*$X292*$Y292),$D292)*$R292","v":0},{"$f":"MIN((IFERROR(IF(AND($V292<=AG$1,$W292>=AG$1),INDEX(Reliability!L$23:L$50,MATCH($S292,Reliability!$C$23:$C$50,0)),0),0)*IF($T292=\"n/a\",$D292*$Y292,$G292)+IFERROR(IF(AND($V292<=AG$1,$W292>=AG$1),INDEX(Reliability!L$23:L$50,MATCH($T292,Reliability!$C$23:$C$50,0)),0),0)*$H292*$X292*$Y292),$D292)*$R292","v":0},{"$f":"MIN((IFERROR(IF(AND($V292<=AH$1,$W292>=AH$1),INDEX(Reliability!M$23:M$50,MATCH($S292,Reliability!$C$23:$C$50,0)),0),0)*IF($T292=\"n/a\",$D292*$Y292,$G292)+IFERROR(IF(AND($V292<=AH$1,$W292>=AH$1),INDEX(Reliability!M$23:M$50,MATCH($T292,Reliability!$C$23:$C$50,0)),0),0)*$H292*$X292*$Y292),$D292)*$R292","v":0},{"$f":"MIN((IFERROR(IF(AND($V292<=AI$1,$W292>=AI$1),INDEX(Reliability!N$23:N$50,MATCH($S292,Reliability!$C$23:$C$50,0)),0),0)*IF($T292=\"n/a\",$D292*$Y292,$G292)+IFERROR(IF(AND($V292<=AI$1,$W292>=AI$1),INDEX(Reliability!N$23:N$50,MATCH($T292,Reliability!$C$23:$C$50,0)),0),0)*$H292*$X292*$Y292),$D292)*$R292","v":0},{"$f":"MIN((IFERROR(IF(AND($V292<=AJ$1,$W292>=AJ$1),INDEX(Reliability!O$23:O$50,MATCH($S292,Reliability!$C$23:$C$50,0)),0),0)*IF($T292=\"n/a\",$D292*$Y292,$G292)+IFERROR(IF(AND($V292<=AJ$1,$W292>=AJ$1),INDEX(Reliability!O$23:O$50,MATCH($T292,Reliability!$C$23:$C$50,0)),0),0)*$H292*$X292*$Y292),$D292)*$R292","v":0},{"$f":"MIN((IFERROR(IF(AND($V292<=AK$1,$W292>=AK$1),INDEX(Reliability!P$23:P$50,MATCH($S292,Reliability!$C$23:$C$50,0)),0),0)*IF($T292=\"n/a\",$D292*$Y292,$G292)+IFERROR(IF(AND($V292<=AK$1,$W292>=AK$1),INDEX(Reliability!P$23:P$50,MATCH($T292,Reliability!$C$23:$C$50,0)),0),0)*$H292*$X292*$Y292),$D292)*$R292","v":0}]
[null,{"$f":"unique_contracts!B294","v":0},{"$f":"unique_contracts!D294","v":0},{"$f":"unique_contracts!J294","v":0},{"$f":"unique_contracts!M294","v":0},{"$f":"unique_contracts!N294","v":0},{"$f":"unique_contracts!P294","v":0},{"$f":"unique_contracts!R294","v":0},{"$f":"unique_contracts!V294","v":0},{"$f":"unique_contracts!AB294","v":0},{"$f":"unique_contracts!AM294","v":0},{"$f":"unique_contracts!AN294","v":0},{"$f":"unique_contracts!AO294","v":0},{"$f":"unique_contracts!AP294","v":0},{"$f":"unique_contracts!AQ294","v":0},{"$f":"unique_contracts!AR294","v":0},{"$f":"unique_contracts!BP294","v":0},0,{"$f":"IFERROR(IF(AND(I293>0,E293=\"NotHybrid\"),_xlfn.CONCAT(MAX(MIN(ROUNDDOWN(I293/D293,0),8),4),INDEX(resources!$G:$G,MATCH(B293,resources!$A:$A,0))),INDEX(resources!$G:$G,MATCH(B293,resources!$A:$A,0))),\"n/a\")","v":"n/a"},"n/a","n/a",0,0,1,1,{"$f":"MIN((IFERROR(IF(AND($V293<=Z$1,$W293>=Z$1),INDEX(Reliability!E$23:E$50,MATCH($S293,Reliability!$C$23:$C$50,0)),0),0)*IF($T293=\"n/a\",$D293*$Y293,$G293)+IFERROR(IF(AND($V293<=Z$1,$W293>=Z$1),INDEX(Reliability!E$23:E$50,MATCH($T293,Reliability!$C$23:$C$50,0)),0),0)*$H293*$X293*$Y293),$D293)*$R293","v":0},{"$f":"MIN((IFERROR(IF(AND($V293<=AA$1,$W293>=AA$1),INDEX(Reliability!F$23:F$50,MATCH($S293,Reliability!$C$23:$C$50,0)),0),0)*IF($T293=\"n/a\",$D293*$Y293,$G293)+IFERROR(IF(AND($V293<=AA$1,$W293>=AA$1),INDEX(Reliability!F$23:F$50,MATCH($T293,Reliability!$C$23:$C$50,0)),0),0)*$H293*$X293*$Y293),$D293)*$R293","v":0},{"$f":"MIN((IFERROR(IF(AND($V293<=AB$1,$W293>=AB$1),INDEX(Reliability!G$23:G$50,MATCH($S293,Reliability!$C$23:$C$50,0)),0),0)*IF($T293=\"n/a\",$D293*$Y293,$G293)+IFERROR(IF(AND($V293<=AB$1,$W293>=AB$1),INDEX(Reliability!G$23:G$50,MATCH($T293,Reliability!$C$23:$C$50,0)),0),0)*$H293*$X293*$Y293),$D293)*$R293","v":0},{"$f":"MIN((IFERROR(IF(AND($V293<=AC$1,$W293>=AC$1),INDEX(Reliability!H$23:H$50,MATCH($S293,Reliability!$C$23:$C$50,0)),0),0)*IF($T293=\"n/a\",$D293*$Y293,$G293)+IFERROR(IF(AND($V293<=AC$1,$W293>=AC$1),INDEX(Reliability!H$23:H$50,MATCH($T293,Reliability!$C$23:$C$50,0)),0),0)*$H293*$X293*$Y293),$D293)*$R293","v":0},{"$f":"MIN((IFERROR(IF(AND($V293<=AD$1,$W293>=AD$1),INDEX(Reliability!I$23:I$50,MATCH($S293,Reliability!$C$23:$C$50,0)),0),0)*IF($T293=\"n/a\",$D293*$Y293,$G293)+IFERROR(IF(AND($V293<=AD$1,$W293>=AD$1),INDEX(Reliability!I$23:I$50,MATCH($T293,Reliability!$C$23:$C$50,0)),0),0)*$H293*$X293*$Y293),$D293)*$R293","v":0},{"$f":"MIN((IFERROR(IF(AND($V293<=AE$1,$W293>=AE$1),INDEX(Reliability!J$23:J$50,MATCH($S293,Reliability!$C$23:$C$50,0)),0),0)*IF($T293=\"n/a\",$D293*$Y293,$G293)+IFERROR(IF(AND($V293<=AE$1,$W293>=AE$1),INDEX(Reliability!J$23:J$50,MATCH($T293,Reliability!$C$23:$C$50,0)),0),0)*$H293*$X293*$Y293),$D293)*$R293","v":0},{"$f":"MIN((IFERROR(IF(AND($V293<=AF$1,$W293>=AF$1),INDEX(Reliability!K$23:K$50,MATCH($S293,Reliability!$C$23:$C$50,0)),0),0)*IF($T293=\"n/a\",$D293*$Y293,$G293)+IFERROR(IF(AND($V293<=AF$1,$W293>=AF$1),INDEX(Reliability!K$23:K$50,MATCH($T293,Reliability!$C$23:$C$50,0)),0),0)*$H293*$X293*$Y293),$D293)*$R293","v":0},{"$f":"MIN((IFERROR(IF(AND($V293<=AG$1,$W293>=AG$1),INDEX(Reliability!L$23:L$50,MATCH($S293,Reliability!$C$23:$C$50,0)),0),0)*IF($T293=\"n/a\",$D293*$Y293,$G293)+IFERROR(IF(AND($V293<=AG$1,$W293>=AG$1),INDEX(Reliability!L$23:L$50,MATCH($T293,Reliability!$C$23:$C$50,0)),0),0)*$H293*$X293*$Y293),$D293)*$R293","v":0},{"$f":"MIN((IFERROR(IF(AND($V293<=AH$1,$W293>=AH$1),INDEX(Reliability!M$23:M$50,MATCH($S293,Reliability!$C$23:$C$50,0)),0),0)*IF($T293=\"n/a\",$D293*$Y293,$G293)+IFERROR(IF(AND($V293<=AH$1,$W293>=AH$1),INDEX(Reliability!M$23:M$50,MATCH($T293,Reliability!$C$23:$C$50,0)),0),0)*$H293*$X293*$Y293),$D293)*$R293","v":0},{"$f":"MIN((IFERROR(IF(AND($V293<=AI$1,$W293>=AI$1),INDEX(Reliability!N$23:N$50,MATCH($S293,Reliability!$C$23:$C$50,0)),0),0)*IF($T293=\"n/a\",$D293*$Y293,$G293)+IFERROR(IF(AND($V293<=AI$1,$W293>=AI$1),INDEX(Reliability!N$23:N$50,MATCH($T293,Reliability!$C$23:$C$50,0)),0),0)*$H293*$X293*$Y293),$D293)*$R293","v":0},{"$f":"MIN((IFERROR(IF(AND($V293<=AJ$1,$W293>=AJ$1),INDEX(Reliability!O$23:O$50,MATCH($S293,Reliability!$C$23:$C$50,0)),0),0)*IF($T293=\"n/a\",$D293*$Y293,$G293)+IFERROR(IF(AND($V293<=AJ$1,$W293>=AJ$1),INDEX(Reliability!O$23:O$50,MATCH($T293,Reliability!$C$23:$C$50,0)),0),0)*$H293*$X293*$Y293),$D293)*$R293","v":0},{"$f":"MIN((IFERROR(IF(AND($V293<=AK$1,$W293>=AK$1),INDEX(Reliability!P$23:P$50,MATCH($S293,Reliability!$C$23:$C$50,0)),0),0)*IF($T293=\"n/a\",$D293*$Y293,$G293)+IFERROR(IF(AND($V293<=AK$1,$W293>=AK$1),INDEX(Reliability!P$23:P$50,MATCH($T293,Reliability!$C$23:$C$50,0)),0),0)*$H293*$X293*$Y293),$D293)*$R293","v":0}]
[null,{"$f":"unique_contracts!B295","v":0},{"$f":"unique_contracts!D295","v":0},{"$f":"unique_contracts!J295","v":0},{"$f":"unique_contracts!M295","v":0},{"$f":"unique_contracts!N295","v":0},{"$f":"unique_contracts!P295","v":0},{"$f":"unique_contracts!R295","v":0},{"$f":"unique_contracts!V295","v":0},{"$f":"unique_contracts!AB295","v":0},{"$f":"unique_contracts!AM295","v":0},{"$f":"unique_contracts!AN295","v":0},{"$f":"unique_contracts!AO295","v":0},{"$f":"unique_contracts!AP295","v":0},{"$f":"unique_contracts!AQ295","v":0},{"$f":"unique_contracts!AR295","v":0},{"$f":"unique_contracts!BP295","v":0},0,{"$f":"IFERROR(IF(AND(I294>0,E294=\"NotHybrid\"),_xlfn.CONCAT(MAX(MIN(ROUNDDOWN(I294/D294,0),8),4),INDEX(resources!$G:$G,MATCH(B294,resources!$A:$A,0))),INDEX(resources!$G:$G,MATCH(B294,resources!$A:$A,0))),\"n/a\")","v":"n/a"},"n/a","n/a",0,0,1,1,{"$f":"MIN((IFERROR(IF(AND($V294<=Z$1,$W294>=Z$1),INDEX(Reliability!E$23:E$50,MATCH($S294,Reliability!$C$23:$C$50,0)),0),0)*IF($T294=\"n/a\",$D294*$Y294,$G294)+IFERROR(IF(AND($V294<=Z$1,$W294>=Z$1),INDEX(Reliability!E$23:E$50,MATCH($T294,Reliability!$C$23:$C$50,0)),0),0)*$H294*$X294*$Y294),$D294)*$R294","v":0},{"$f":"MIN((IFERROR(IF(AND($V294<=AA$1,$W294>=AA$1),INDEX(Reliability!F$23:F$50,MATCH($S294,Reliability!$C$23:$C$50,0)),0),0)*IF($T294=\"n/a\",$D294*$Y294,$G294)+IFERROR(IF(AND($V294<=AA$1,$W294>=AA$1),INDEX(Reliability!F$23:F$50,MATCH($T294,Reliability!$C$23:$C$50,0)),0),0)*$H294*$X294*$Y294),$D294)*$R294","v":0},{"$f":"MIN((IFERROR(IF(AND($V294<=AB$1,$W294>=AB$1),INDEX(Reliability!G$23:G$50,MATCH($S294,Reliability!$C$23:$C$50,0)),0),0)*IF($T294=\"n/a\",$D294*$Y294,$G294)+IFERROR(IF(AND($V294<=AB$1,$W294>=AB$1),INDEX(Reliability!G$23:G$50,MATCH($T294,Reliability!$C$23:$C$50,0)),0),0)*$H294*$X294*$Y294),$D294)*$R294","v":0},{"$f":"MIN((IFERROR(IF(AND($V294<=AC$1,$W294>=AC$1),INDEX(Reliability!H$23:H$50,MATCH($S294,Reliability!$C$23:$C$50,0)),0),0)*IF($T294=\"n/a\",$D294*$Y294,$G294)+IFERROR(IF(AND($V294<=AC$1,$W294>=AC$1),INDEX(Reliability!H$23:H$50,MATCH($T294,Reliability!$C$23:$C$50,0)),0),0)*$H294*$X294*$Y294),$D294)*$R294","v":0},{"$f":"MIN((IFERROR(IF(AND($V294<=AD$1,$W294>=AD$1),INDEX(Reliability!I$23:I$50,MATCH($S294,Reliability!$C$23:$C$50,0)),0),0)*IF($T294=\"n/a\",$D294*$Y294,$G294)+IFERROR(IF(AND($V294<=AD$1,$W294>=AD$1),INDEX(Reliability!I$23:I$50,MATCH($T294,Reliability!$C$23:$C$50,0)),0),0)*$H294*$X294*$Y294),$D294)*$R294","v":0},{"$f":"MIN((IFERROR(IF(AND($V294<=AE$1,$W294>=AE$1),INDEX(Reliability!J$23:J$50,MATCH($S294,Reliability!$C$23:$C$50,0)),0),0)*IF($T294=\"n/a\",$D294*$Y294,$G294)+IFERROR(IF(AND($V294<=AE$1,$W294>=AE$1),INDEX(Reliability!J$23:J$50,MATCH($T294,Reliability!$C$23:$C$50,0)),0),0)*$H294*$X294*$Y294),$D294)*$R294","v":0},{"$f":"MIN((IFERROR(IF(AND($V294<=AF$1,$W294>=AF$1),INDEX(Reliability!K$23:K$50,MATCH($S294,Reliability!$C$23:$C$50,0)),0),0)*IF($T294=\"n/a\",$D294*$Y294,$G294)+IFERROR(IF(AND($V294<=AF$1,$W294>=AF$1),INDEX(Reliability!K$23:K$50,MATCH($T294,Reliability!$C$23:$C$50,0)),0),0)*$H294*$X294*$Y294),$D294)*$R294","v":0},{"$f":"MIN((IFERROR(IF(AND($V294<=AG$1,$W294>=AG$1),INDEX(Reliability!L$23:L$50,MATCH($S294,Reliability!$C$23:$C$50,0)),0),0)*IF($T294=\"n/a\",$D294*$Y294,$G294)+IFERROR(IF(AND($V294<=AG$1,$W294>=AG$1),INDEX(Reliability!L$23:L$50,MATCH($T294,Reliability!$C$23:$C$50,0)),0),0)*$H294*$X294*$Y294),$D294)*$R294","v":0},{"$f":"MIN((IFERROR(IF(AND($V294<=AH$1,$W294>=AH$1),INDEX(Reliability!M$23:M$50,MATCH($S294,Reliability!$C$23:$C$50,0)),0),0)*IF($T294=\"n/a\",$D294*$Y294,$G294)+IFERROR(IF(AND($V294<=AH$1,$W294>=AH$1),INDEX(Reliability!M$23:M$50,MATCH($T294,Reliability!$C$23:$C$50,0)),0),0)*$H294*$X294*$Y294),$D294)*$R294","v":0},{"$f":"MIN((IFERROR(IF(AND($V294<=AI$1,$W294>=AI$1),INDEX(Reliability!N$23:N$50,MATCH($S294,Reliability!$C$23:$C$50,0)),0),0)*IF($T294=\"n/a\",$D294*$Y294,$G294)+IFERROR(IF(AND($V294<=AI$1,$W294>=AI$1),INDEX(Reliability!N$23:N$50,MATCH($T294,Reliability!$C$23:$C$50,0)),0),0)*$H294*$X294*$Y294),$D294)*$R294","v":0},{"$f":"MIN((IFERROR(IF(AND($V294<=AJ$1,$W294>=AJ$1),INDEX(Reliability!O$23:O$50,MATCH($S294,Reliability!$C$23:$C$50,0)),0),0)*IF($T294=\"n/a\",$D294*$Y294,$G294)+IFERROR(IF(AND($V294<=AJ$1,$W294>=AJ$1),INDEX(Reliability!O$23:O$50,MATCH($T294,Reliability!$C$23:$C$50,0)),0),0)*$H294*$X294*$Y294),$D294)*$R294","v":0},{"$f":"MIN((IFERROR(IF(AND($V294<=AK$1,$W294>=AK$1),INDEX(Reliability!P$23:P$50,MATCH($S294,Reliability!$C$23:$C$50,0)),0),0)*IF($T294=\"n/a\",$D294*$Y294,$G294)+IFERROR(IF(AND($V294<=AK$1,$W294>=AK$1),INDEX(Reliability!P$23:P$50,MATCH($T294,Reliability!$C$23:$C$50,0)),0),0)*$H294*$X294*$Y294),$D294)*$R294","v":0}]
[null,{"$f":"unique_contracts!B296","v":0},{"$f":"unique_contracts!D296","v":0},{"$f":"unique_contracts!J296","v":0},{"$f":"unique_contracts!M296","v":0},{"$f":"unique_contracts!N296","v":0},{"$f":"unique_contracts!P296","v":0},{"$f":"unique_contracts!R296","v":0},{"$f":"unique_contracts!V296","v":0},{"$f":"unique_contracts!AB296","v":0},{"$f":"unique_contracts!AM296","v":0},{"$f":"unique_contracts!AN296","v":0},{"$f":"unique_contracts!AO296","v":0},{"$f":"unique_contracts!AP296","v":0},{"$f":"unique_contracts!AQ296","v":0},{"$f":"unique_contracts!AR296","v":0},{"$f":"unique_contracts!BP296","v":0},0,{"$f":"IFERROR(IF(AND(I295>0,E295=\"NotHybrid\"),_xlfn.CONCAT(MAX(MIN(ROUNDDOWN(I295/D295,0),8),4),INDEX(resources!$G:$G,MATCH(B295,resources!$A:$A,0))),INDEX(resources!$G:$G,MATCH(B295,resources!$A:$A,0))),\"n/a\")","v":"n/a"},"n/a","n/a",0,0,1,1,{"$f":"MIN((IFERROR(IF(AND($V295<=Z$1,$W295>=Z$1),INDEX(Reliability!E$23:E$50,MATCH($S295,Reliability!$C$23:$C$50,0)),0),0)*IF($T295=\"n/a\",$D295*$Y295,$G295)+IFERROR(IF(AND($V295<=Z$1,$W295>=Z$1),INDEX(Reliability!E$23:E$50,MATCH($T295,Reliability!$C$23:$C$50,0)),0),0)*$H295*$X295*$Y295),$D295)*$R295","v":0},{"$f":"MIN((IFERROR(IF(AND($V295<=AA$1,$W295>=AA$1),INDEX(Reliability!F$23:F$50,MATCH($S295,Reliability!$C$23:$C$50,0)),0),0)*IF($T295=\"n/a\",$D295*$Y295,$G295)+IFERROR(IF(AND($V295<=AA$1,$W295>=AA$1),INDEX(Reliability!F$23:F$50,MATCH($T295,Reliability!$C$23:$C$50,0)),0),0)*$H295*$X295*$Y295),$D295)*$R295","v":0},{"$f":"MIN((IFERROR(IF(AND($V295<=AB$1,$W295>=AB$1),INDEX(Reliability!G$23:G$50,MATCH($S295,Reliability!$C$23:$C$50,0)),0),0)*IF($T295=\"n/a\",$D295*$Y295,$G295)+IFERROR(IF(AND($V295<=AB$1,$W295>=AB$1),INDEX(Reliability!G$23:G$50,MATCH($T295,Reliability!$C$23:$C$50,0)),0),0)*$H295*$X295*$Y295),$D295)*$R295","v":0},{"$f":"MIN((IFERROR(IF(AND($V295<=AC$1,$W295>=AC$1),INDEX(Reliability!H$23:H$50,MATCH($S295,Reliability!$C$23:$C$50,0)),0),0)*IF($T295=\"n/a\",$D295*$Y295,$G295)+IFERROR(IF(AND($V295<=AC$1,$W295>=AC$1),INDEX(Reliability!H$23:H$50,MATCH($T295,Reliability!$C$23:$C$50,0)),0),0)*$H295*$X295*$Y295),$D295)*$R295","v":0},{"$f":"MIN((IFERROR(IF(AND($V295<=AD$1,$W295>=AD$1),INDEX(Reliability!I$23:I$50,MATCH($S295,Reliability!$C$23:$C$50,0)),0),0)*IF($T295=\"n/a\",$D295*$Y295,$G295)+IFERROR(IF(AND($V295<=AD$1,$W295>=AD$1),INDEX(Reliability!I$23:I$50,MATCH($T295,Reliability!$C$23:$C$50,0)),0),0)*$H295*$X295*$Y295),$D295)*$R295","v":0},{"$f":"MIN((IFERROR(IF(AND($V295<=AE$1,$W295>=AE$1),INDEX(Reliability!J$23:J$50,MATCH($S295,Reliability!$C$23:$C$50,0)),0),0)*IF($T295=\"n/a\",$D295*$Y295,$G295)+IFERROR(IF(AND($V295<=AE$1,$W295>=AE$1),INDEX(Reliability!J$23:J$50,MATCH($T295,Reliability!$C$23:$C$50,0)),0),0)*$H295*$X295*$Y295),$D295)*$R295","v":0},{"$f":"MIN((IFERROR(IF(AND($V295<=AF$1,$W295>=AF$1),INDEX(Reliability!K$23:K$50,MATCH($S295,Reliability!$C$23:$C$50,0)),0),0)*IF($T295=\"n/a\",$D295*$Y295,$G295)+IFERROR(IF(AND($V295<=AF$1,$W295>=AF$1),INDEX(Reliability!K$23:K$50,MATCH($T295,Reliability!$C$23:$C$50,0)),0),0)*$H295*$X295*$Y295),$D295)*$R295","v":0},{"$f":"MIN((IFERROR(IF(AND($V295<=AG$1,$W295>=AG$1),INDEX(Reliability!L$23:L$50,MATCH($S295,Reliability!$C$23:$C$50,0)),0),0)*IF($T295=\"n/a\",$D295*$Y295,$G295)+IFERROR(IF(AND($V295<=AG$1,$W295>=AG$1),INDEX(Reliability!L$23:L$50,MATCH($T295,Reliability!$C$23:$C$50,0)),0),0)*$H295*$X295*$Y295),$D295)*$R295","v":0},{"$f":"MIN((IFERROR(IF(AND($V295<=AH$1,$W295>=AH$1),INDEX(Reliability!M$23:M$50,MATCH($S295,Reliability!$C$23:$C$50,0)),0),0)*IF($T295=\"n/a\",$D295*$Y295,$G295)+IFERROR(IF(AND($V295<=AH$1,$W295>=AH$1),INDEX(Reliability!M$23:M$50,MATCH($T295,Reliability!$C$23:$C$50,0)),0),0)*$H295*$X295*$Y295),$D295)*$R295","v":0},{"$f":"MIN((IFERROR(IF(AND($V295<=AI$1,$W295>=AI$1),INDEX(Reliability!N$23:N$50,MATCH($S295,Reliability!$C$23:$C$50,0)),0),0)*IF($T295=\"n/a\",$D295*$Y295,$G295)+IFERROR(IF(AND($V295<=AI$1,$W295>=AI$1),INDEX(Reliability!N$23:N$50,MATCH($T295,Reliability!$C$23:$C$50,0)),0),0)*$H295*$X295*$Y295),$D295)*$R295","v":0},{"$f":"MIN((IFERROR(IF(AND($V295<=AJ$1,$W295>=AJ$1),INDEX(Reliability!O$23:O$50,MATCH($S295,Reliability!$C$23:$C$50,0)),0),0)*IF($T295=\"n/a\",$D295*$Y295,$G295)+IFERROR(IF(AND($V295<=AJ$1,$W295>=AJ$1),INDEX(Reliability!O$23:O$50,MATCH($T295,Reliability!$C$23:$C$50,0)),0),0)*$H295*$X295*$Y295),$D295)*$R295","v":0},{"$f":"MIN((IFERROR(IF(AND($V295<=AK$1,$W295>=AK$1),INDEX(Reliability!P$23:P$50,MATCH($S295,Reliability!$C$23:$C$50,0)),0),0)*IF($T295=\"n/a\",$D295*$Y295,$G295)+IFERROR(IF(AND($V295<=AK$1,$W295>=AK$1),INDEX(Reliability!P$23:P$50,MATCH($T295,Reliability!$C$23:$C$50,0)),0),0)*$H295*$X295*$Y295),$D295)*$R295","v":0}]
[null,{"$f":"unique_contracts!B297","v":0},{"$f":"unique_contracts!D297","v":0},{"$f":"unique_contracts!J297","v":0},{"$f":"unique_contracts!M297","v":0},{"$f":"unique_contracts!N297","v":0},{"$f":"unique_contracts!P297","v":0},{"$f":"unique_contracts!R297","v":0},{"$f":"unique_contracts!V297","v":0},{"$f":"unique_contracts!AB297","v":0},{"$f":"unique_contracts!AM297","v":0},{"$f":"unique_contracts!AN297","v":0},{"$f":"unique_contracts!AO297","v":0},{"$f":"unique_contracts!AP297","v":0},{"$f":"unique_contracts!AQ297","v":0},{"$f":"unique_contracts!AR297","v":0},{"$f":"unique_contracts!BP297","v":0},0,{"$f":"IFERROR(IF(AND(I296>0,E296=\"NotHybrid\"),_xlfn.CONCAT(MAX(MIN(ROUNDDOWN(I296/D296,0),8),4),INDEX(resources!$G:$G,MATCH(B296,resources!$A:$A,0))),INDEX(resources!$G:$G,MATCH(B296,resources!$A:$A,0))),\"n/a\")","v":"n/a"},"n/a","n/a",0,0,1,1,{"$f":"MIN((IFERROR(IF(AND($V296<=Z$1,$W296>=Z$1),INDEX(Reliability!E$23:E$50,MATCH($S296,Reliability!$C$23:$C$50,0)),0),0)*IF($T296=\"n/a\",$D296*$Y296,$G296)+IFERROR(IF(AND($V296<=Z$1,$W296>=Z$1),INDEX(Reliability!E$23:E$50,MATCH($T296,Reliability!$C$23:$C$50,0)),0),0)*$H296*$X296*$Y296),$D296)*$R296","v":0},{"$f":"MIN((IFERROR(IF(AND($V296<=AA$1,$W296>=AA$1),INDEX(Reliability!F$23:F$50,MATCH($S296,Reliability!$C$23:$C$50,0)),0),0)*IF($T296=\"n/a\",$D296*$Y296,$G296)+IFERROR(IF(AND($V296<=AA$1,$W296>=AA$1),INDEX(Reliability!F$23:F$50,MATCH($T296,Reliability!$C$23:$C$50,0)),0),0)*$H296*$X296*$Y296),$D296)*$R296","v":0},{"$f":"MIN((IFERROR(IF(AND($V296<=AB$1,$W296>=AB$1),INDEX(Reliability!G$23:G$50,MATCH($S296,Reliability!$C$23:$C$50,0)),0),0)*IF($T296=\"n/a\",$D296*$Y296,$G296)+IFERROR(IF(AND($V296<=AB$1,$W296>=AB$1),INDEX(Reliability!G$23:G$50,MATCH($T296,Reliability!$C$23:$C$50,0)),0),0)*$H296*$X296*$Y296),$D296)*$R296","v":0},{"$f":"MIN((IFERROR(IF(AND($V296<=AC$1,$W296>=AC$1),INDEX(Reliability!H$23:H$50,MATCH($S296,Reliability!$C$23:$C$50,0)),0),0)*IF($T296=\"n/a\",$D296*$Y296,$G296)+IFERROR(IF(AND($V296<=AC$1,$W296>=AC$1),INDEX(Reliability!H$23:H$50,MATCH($T296,Reliability!$C$23:$C$50,0)),0),0)*$H296*$X296*$Y296),$D296)*$R296","v":0},{"$f":"MIN((IFERROR(IF(AND($V296<=AD$1,$W296>=AD$1),INDEX(Reliability!I$23:I$50,MATCH($S296,Reliability!$C$23:$C$50,0)),0),0)*IF($T296=\"n/a\",$D296*$Y296,$G296)+IFERROR(IF(AND($V296<=AD$1,$W296>=AD$1),INDEX(Reliability!I$23:I$50,MATCH($T296,Reliability!$C$23:$C$50,0)),0),0)*$H296*$X296*$Y296),$D296)*$R296","v":0},{"$f":"MIN((IFERROR(IF(AND($V296<=AE$1,$W296>=AE$1),INDEX(Reliability!J$23:J$50,MATCH($S296,Reliability!$C$23:$C$50,0)),0),0)*IF($T296=\"n/a\",$D296*$Y296,$G296)+IFERROR(IF(AND($V296<=AE$1,$W296>=AE$1),INDEX(Reliability!J$23:J$50,MATCH($T296,Reliability!$C$23:$C$50,0)),0),0)*$H296*$X296*$Y296),$D296)*$R296","v":0},{"$f":"MIN((IFERROR(IF(AND($V296<=AF$1,$W296>=AF$1),INDEX(Reliability!K$23:K$50,MATCH($S296,Reliability!$C$23:$C$50,0)),0),0)*IF($T296=\"n/a\",$D296*$Y296,$G296)+IFERROR(IF(AND($V296<=AF$1,$W296>=AF$1),INDEX(Reliability!K$23:K$50,MATCH($T296,Reliability!$C$23:$C$50,0)),0),0)*$H296*$X296*$Y296),$D296)*$R296","v":0},{"$f":"MIN((IFERROR(IF(AND($V296<=AG$1,$W296>=AG$1),INDEX(Reliability!L$23:L$50,MATCH($S296,Reliability!$C$23:$C$50,0)),0),0)*IF($T296=\"n/a\",$D296*$Y296,$G296)+IFERROR(IF(AND($V296<=AG$1,$W296>=AG$1),INDEX(Reliability!L$23:L$50,MATCH($T296,Reliability!$C$23:$C$50,0)),0),0)*$H296*$X296*$Y296),$D296)*$R296","v":0},{"$f":"MIN((IFERROR(IF(AND($V296<=AH$1,$W296>=AH$1),INDEX(Reliability!M$23:M$50,MATCH($S296,Reliability!$C$23:$C$50,0)),0),0)*IF($T296=\"n/a\",$D296*$Y296,$G296)+IFERROR(IF(AND($V296<=AH$1,$W296>=AH$1),INDEX(Reliability!M$23:M$50,MATCH($T296,Reliability!$C$23:$C$50,0)),0),0)*$H296*$X296*$Y296),$D296)*$R296","v":0},{"$f":"MIN((IFERROR(IF(AND($V296<=AI$1,$W296>=AI$1),INDEX(Reliability!N$23:N$50,MATCH($S296,Reliability!$C$23:$C$50,0)),0),0)*IF($T296=\"n/a\",$D296*$Y296,$G296)+IFERROR(IF(AND($V296<=AI$1,$W296>=AI$1),INDEX(Reliability!N$23:N$50,MATCH($T296,Reliability!$C$23:$C$50,0)),0),0)*$H296*$X296*$Y296),$D296)*$R296","v":0},{"$f":"MIN((IFERROR(IF(AND($V296<=AJ$1,$W296>=AJ$1),INDEX(Reliability!O$23:O$50,MATCH($S296,Reliability!$C$23:$C$50,0)),0),0)*IF($T296=\"n/a\",$D296*$Y296,$G296)+IFERROR(IF(AND($V296<=AJ$1,$W296>=AJ$1),INDEX(Reliability!O$23:O$50,MATCH($T296,Reliability!$C$23:$C$50,0)),0),0)*$H296*$X296*$Y296),$D296)*$R296","v":0},{"$f":"MIN((IFERROR(IF(AND($V296<=AK$1,$W296>=AK$1),INDEX(Reliability!P$23:P$50,MATCH($S296,Reliability!$C$23:$C$50,0)),0),0)*IF($T296=\"n/a\",$D296*$Y296,$G296)+IFERROR(IF(AND($V296<=AK$1,$W296>=AK$1),INDEX(Reliability!P$23:P$50,MATCH($T296,Reliability!$C$23:$C$50,0)),0),0)*$H296*$X296*$Y296),$D296)*$R296","v":0}]
[null,{"$f":"unique_contracts!B298","v":0},{"$f":"unique_contracts!D298","v":0},{"$f":"unique_contracts!J298","v":0},{"$f":"unique_contracts!M298","v":0},{"$f":"unique_contracts!N298","v":0},{"$f":"unique_contracts!P298","v":0},{"$f":"unique_contracts!R298","v":0},{"$f":"unique_contracts!V298","v":0},{"$f":"unique_contracts!AB298","v":0},{"$f":"unique_contracts!AM298","v":0},{"$f":"unique_contracts!AN298","v":0},{"$f":"unique_contracts!AO298","v":0},{"$f":"unique_contracts!AP298","v":0},{"$f":"unique_contracts!AQ298","v":0},{"$f":"unique_contracts!AR298","v":0},{"$f":"unique_contracts!BP298","v":0},0,{"$f":"IFERROR(IF(AND(I297>0,E297=\"NotHybrid\"),_xlfn.CONCAT(MAX(MIN(ROUNDDOWN(I297/D297,0),8),4),INDEX(resources!$G:$G,MATCH(B297,resources!$A:$A,0))),INDEX(resources!$G:$G,MATCH(B297,resources!$A:$A,0))),\"n/a\")","v":"n/a"},"n/a","n/a",0,0,1,1,{"$f":"MIN((IFERROR(IF(AND($V297<=Z$1,$W297>=Z$1),INDEX(Reliability!E$23:E$50,MATCH($S297,Reliability!$C$23:$C$50,0)),0),0)*IF($T297=\"n/a\",$D297*$Y297,$G297)+IFERROR(IF(AND($V297<=Z$1,$W297>=Z$1),INDEX(Reliability!E$23:E$50,MATCH($T297,Reliability!$C$23:$C$50,0)),0),0)*$H297*$X297*$Y297),$D297)*$R297","v":0},{"$f":"MIN((IFERROR(IF(AND($V297<=AA$1,$W297>=AA$1),INDEX(Reliability!F$23:F$50,MATCH($S297,Reliability!$C$23:$C$50,0)),0),0)*IF($T297=\"n/a\",$D297*$Y297,$G297)+IFERROR(IF(AND($V297<=AA$1,$W297>=AA$1),INDEX(Reliability!F$23:F$50,MATCH($T297,Reliability!$C$23:$C$50,0)),0),0)*$H297*$X297*$Y297),$D297)*$R297","v":0},{"$f":"MIN((IFERROR(IF(AND($V297<=AB$1,$W297>=AB$1),INDEX(Reliability!G$23:G$50,MATCH($S297,Reliability!$C$23:$C$50,0)),0),0)*IF($T297=\"n/a\",$D297*$Y297,$G297)+IFERROR(IF(AND($V297<=AB$1,$W297>=AB$1),INDEX(Reliability!G$23:G$50,MATCH($T297,Reliability!$C$23:$C$50,0)),0),0)*$H297*$X297*$Y297),$D297)*$R297","v":0},{"$f":"MIN((IFERROR(IF(AND($V297<=AC$1,$W297>=AC$1),INDEX(Reliability!H$23:H$50,MATCH($S297,Reliability!$C$23:$C$50,0)),0),0)*IF($T297=\"n/a\",$D297*$Y297,$G297)+IFERROR(IF(AND($V297<=AC$1,$W297>=AC$1),INDEX(Reliability!H$23:H$50,MATCH($T297,Reliability!$C$23:$C$50,0)),0),0)*$H297*$X297*$Y297),$D297)*$R297","v":0},{"$f":"MIN((IFERROR(IF(AND($V297<=AD$1,$W297>=AD$1),INDEX(Reliability!I$23:I$50,MATCH($S297,Reliability!$C$23:$C$50,0)),0),0)*IF($T297=\"n/a\",$D297*$Y297,$G297)+IFERROR(IF(AND($V297<=AD$1,$W297>=AD$1),INDEX(Reliability!I$23:I$50,MATCH($T297,Reliability!$C$23:$C$50,0)),0),0)*$H297*$X297*$Y297),$D297)*$R297","v":0},{"$f":"MIN((IFERROR(IF(AND($V297<=AE$1,$W297>=AE$1),INDEX(Reliability!J$23:J$50,MATCH($S297,Reliability!$C$23:$C$50,0)),0),0)*IF($T297=\"n/a\",$D297*$Y297,$G297)+IFERROR(IF(AND($V297<=AE$1,$W297>=AE$1),INDEX(Reliability!J$23:J$50,MATCH($T297,Reliability!$C$23:$C$50,0)),0),0)*$H297*$X297*$Y297),$D297)*$R297","v":0},{"$f":"MIN((IFERROR(IF(AND($V297<=AF$1,$W297>=AF$1),INDEX(Reliability!K$23:K$50,MATCH($S297,Reliability!$C$23:$C$50,0)),0),0)*IF($T297=\"n/a\",$D297*$Y297,$G297)+IFERROR(IF(AND($V297<=AF$1,$W297>=AF$1),INDEX(Reliability!K$23:K$50,MATCH($T297,Reliability!$C$23:$C$50,0)),0),0)*$H297*$X297*$Y297),$D297)*$R297","v":0},{"$f":"MIN((IFERROR(IF(AND($V297<=AG$1,$W297>=AG$1),INDEX(Reliability!L$23:L$50,MATCH($S297,Reliability!$C$23:$C$50,0)),0),0)*IF($T297=\"n/a\",$D297*$Y297,$G297)+IFERROR(IF(AND($V297<=AG$1,$W297>=AG$1),INDEX(Reliability!L$23:L$50,MATCH($T297,Reliability!$C$23:$C$50,0)),0),0)*$H297*$X297*$Y297),$D297)*$R297","v":0},{"$f":"MIN((IFERROR(IF(AND($V297<=AH$1,$W297>=AH$1),INDEX(Reliability!M$23:M$50,MATCH($S297,Reliability!$C$23:$C$50,0)),0),0)*IF($T297=\"n/a\",$D297*$Y297,$G297)+IFERROR(IF(AND($V297<=AH$1,$W297>=AH$1),INDEX(Reliability!M$23:M$50,MATCH($T297,Reliability!$C$23:$C$50,0)),0),0)*$H297*$X297*$Y297),$D297)*$R297","v":0},{"$f":"MIN((IFERROR(IF(AND($V297<=AI$1,$W297>=AI$1),INDEX(Reliability!N$23:N$50,MATCH($S297,Reliability!$C$23:$C$50,0)),0),0)*IF($T297=\"n/a\",$D297*$Y297,$G297)+IFERROR(IF(AND($V297<=AI$1,$W297>=AI$1),INDEX(Reliability!N$23:N$50,MATCH($T297,Reliability!$C$23:$C$50,0)),0),0)*$H297*$X297*$Y297),$D297)*$R297","v":0},{"$f":"MIN((IFERROR(IF(AND($V297<=AJ$1,$W297>=AJ$1),INDEX(Reliability!O$23:O$50,MATCH($S297,Reliability!$C$23:$C$50,0)),0),0)*IF($T297=\"n/a\",$D297*$Y297,$G297)+IFERROR(IF(AND($V297<=AJ$1,$W297>=AJ$1),INDEX(Reliability!O$23:O$50,MATCH($T297,Reliability!$C$23:$C$50,0)),0),0)*$H297*$X297*$Y297),$D297)*$R297","v":0},{"$f":"MIN((IFERROR(IF(AND($V297<=AK$1,$W297>=AK$1),INDEX(Reliability!P$23:P$50,MATCH($S297,Reliability!$C$23:$C$50,0)),0),0)*IF($T297=\"n/a\",$D297*$Y297,$G297)+IFERROR(IF(AND($V297<=AK$1,$W297>=AK$1),INDEX(Reliability!P$23:P$50,MATCH($T297,Reliability!$C$23:$C$50,0)),0),0)*$H297*$X297*$Y297),$D297)*$R297","v":0}]
[null,{"$f":"unique_contracts!B299","v":0},{"$f":"unique_contracts!D299","v":0},{"$f":"unique_contracts!J299","v":0},{"$f":"unique_contracts!M299","v":0},{"$f":"unique_contracts!N299","v":0},{"$f":"unique_contracts!P299","v":0},{"$f":"unique_contracts!R299","v":0},{"$f":"unique_contracts!V299","v":0},{"$f":"unique_contracts!AB299","v":0},{"$f":"unique_contracts!AM299","v":0},{"$f":"unique_contracts!AN299","v":0},{"$f":"unique_contracts!AO299","v":0},{"$f":"unique_contracts!AP299","v":0},{"$f":"unique_contracts!AQ299","v":0},{"$f":"unique_contracts!AR299","v":0},{"$f":"unique_contracts!BP299","v":0},0,{"$f":"IFERROR(IF(AND(I298>0,E298=\"NotHybrid\"),_xlfn.CONCAT(MAX(MIN(ROUNDDOWN(I298/D298,0),8),4),INDEX(resources!$G:$G,MATCH(B298,resources!$A:$A,0))),INDEX(resources!$G:$G,MATCH(B298,resources!$A:$A,0))),\"n/a\")","v":"n/a"},"n/a","n/a",0,0,1,1,{"$f":"MIN((IFERROR(IF(AND($V298<=Z$1,$W298>=Z$1),INDEX(Reliability!E$23:E$50,MATCH($S298,Reliability!$C$23:$C$50,0)),0),0)*IF($T298=\"n/a\",$D298*$Y298,$G298)+IFERROR(IF(AND($V298<=Z$1,$W298>=Z$1),INDEX(Reliability!E$23:E$50,MATCH($T298,Reliability!$C$23:$C$50,0)),0),0)*$H298*$X298*$Y298),$D298)*$R298","v":0},{"$f":"MIN((IFERROR(IF(AND($V298<=AA$1,$W298>=AA$1),INDEX(Reliability!F$23:F$50,MATCH($S298,Reliability!$C$23:$C$50,0)),0),0)*IF($T298=\"n/a\",$D298*$Y298,$G298)+IFERROR(IF(AND($V298<=AA$1,$W298>=AA$1),INDEX(Reliability!F$23:F$50,MATCH($T298,Reliability!$C$23:$C$50,0)),0),0)*$H298*$X298*$Y298),$D298)*$R298","v":0},{"$f":"MIN((IFERROR(IF(AND($V298<=AB$1,$W298>=AB$1),INDEX(Reliability!G$23:G$50,MATCH($S298,Reliability!$C$23:$C$50,0)),0),0)*IF($T298=\"n/a\",$D298*$Y298,$G298)+IFERROR(IF(AND($V298<=AB$1,$W298>=AB$1),INDEX(Reliability!G$23:G$50,MATCH($T298,Reliability!$C$23:$C$50,0)),0),0)*$H298*$X298*$Y298),$D298)*$R298","v":0},{"$f":"MIN((IFERROR(IF(AND($V298<=AC$1,$W298>=AC$1),INDEX(Reliability!H$23:H$50,MATCH($S298,Reliability!$C$23:$C$50,0)),0),0)*IF($T298=\"n/a\",$D298*$Y298,$G298)+IFERROR(IF(AND($V298<=AC$1,$W298>=AC$1),INDEX(Reliability!H$23:H$50,MATCH($T298,Reliability!$C$23:$C$50,0)),0),0)*$H298*$X298*$Y298),$D298)*$R298","v":0},{"$f":"MIN((IFERROR(IF(AND($V298<=AD$1,$W298>=AD$1),INDEX(Reliability!I$23:I$50,MATCH($S298,Reliability!$C$23:$C$50,0)),0),0)*IF($T298=\"n/a\",$D298*$Y298,$G298)+IFERROR(IF(AND($V298<=AD$1,$W298>=AD$1),INDEX(Reliability!I$23:I$50,MATCH($T298,Reliability!$C$23:$C$50,0)),0),0)*$H298*$X298*$Y298),$D298)*$R298","v":0},{"$f":"MIN((IFERROR(IF(AND($V298<=AE$1,$W298>=AE$1),INDEX(Reliability!J$23:J$50,MATCH($S298,Reliability!$C$23:$C$50,0)),0),0)*IF($T298=\"n/a\",$D298*$Y298,$G298)+IFERROR(IF(AND($V298<=AE$1,$W298>=AE$1),INDEX(Reliability!J$23:J$50,MATCH($T298,Reliability!$C$23:$C$50,0)),0),0)*$H298*$X298*$Y298),$D298)*$R298","v":0},{"$f":"MIN((IFERROR(IF(AND($V298<=AF$1,$W298>=AF$1),INDEX(Reliability!K$23:K$50,MATCH($S298,Reliability!$C$23:$C$50,0)),0),0)*IF($T298=\"n/a\",$D298*$Y298,$G298)+IFERROR(IF(AND($V298<=AF$1,$W298>=AF$1),INDEX(Reliability!K$23:K$50,MATCH($T298,Reliability!$C$23:$C$50,0)),0),0)*$H298*$X298*$Y298),$D298)*$R298","v":0},{"$f":"MIN((IFERROR(IF(AND($V298<=AG$1,$W298>=AG$1),INDEX(Reliability!L$23:L$50,MATCH($S298,Reliability!$C$23:$C$50,0)),0),0)*IF($T298=\"n/a\",$D298*$Y298,$G298)+IFERROR(IF(AND($V298<=AG$1,$W298>=AG$1),INDEX(Reliability!L$23:L$50,MATCH($T298,Reliability!$C$23:$C$50,0)),0),0)*$H298*$X298*$Y298),$D298)*$R298","v":0},{"$f":"MIN((IFERROR(IF(AND($V298<=AH$1,$W298>=AH$1),INDEX(Reliability!M$23:M$50,MATCH($S298,Reliability!$C$23:$C$50,0)),0),0)*IF($T298=\"n/a\",$D298*$Y298,$G298)+IFERROR(IF(AND($V298<=AH$1,$W298>=AH$1),INDEX(Reliability!M$23:M$50,MATCH($T298,Reliability!$C$23:$C$50,0)),0),0)*$H298*$X298*$Y298),$D298)*$R298","v":0},{"$f":"MIN((IFERROR(IF(AND($V298<=AI$1,$W298>=AI$1),INDEX(Reliability!N$23:N$50,MATCH($S298,Reliability!$C$23:$C$50,0)),0),0)*IF($T298=\"n/a\",$D298*$Y298,$G298)+IFERROR(IF(AND($V298<=AI$1,$W298>=AI$1),INDEX(Reliability!N$23:N$50,MATCH($T298,Reliability!$C$23:$C$50,0)),0),0)*$H298*$X298*$Y298),$D298)*$R298","v":0},{"$f":"MIN((IFERROR(IF(AND($V298<=AJ$1,$W298>=AJ$1),INDEX(Reliability!O$23:O$50,MATCH($S298,Reliability!$C$23:$C$50,0)),0),0)*IF($T298=\"n/a\",$D298*$Y298,$G298)+IFERROR(IF(AND($V298<=AJ$1,$W298>=AJ$1),INDEX(Reliability!O$23:O$50,MATCH($T298,Reliability!$C$23:$C$50,0)),0),0)*$H298*$X298*$Y298),$D298)*$R298","v":0},{"$f":"MIN((IFERROR(IF(AND($V298<=AK$1,$W298>=AK$1),INDEX(Reliability!P$23:P$50,MATCH($S298,Reliability!$C$23:$C$50,0)),0),0)*IF($T298=\"n/a\",$D298*$Y298,$G298)+IFERROR(IF(AND($V298<=AK$1,$W298>=AK$1),INDEX(Reliability!P$23:P$50,MATCH($T298,Reliability!$C$23:$C$50,0)),0),0)*$H298*$X298*$Y298),$D298)*$R298","v":0}]
[null,{"$f":"unique_contracts!B300","v":0},{"$f":"unique_contracts!D300","v":0},{"$f":"unique_contracts!J300","v":0},{"$f":"unique_contracts!M300","v":0},{"$f":"unique_contracts!N300","v":0},{"$f":"unique_contracts!P300","v":0},{"$f":"unique_contracts!R300","v":0},{"$f":"unique_contracts!V300","v":0},{"$f":"unique_contracts!AB300","v":0},{"$f":"unique_contracts!AM300","v":0},{"$f":"unique_contracts!AN300","v":0},{"$f":"unique_contracts!AO300","v":0},{"$f":"unique_contracts!AP300","v":0},{"$f":"unique_contracts!AQ300","v":0},{"$f":"unique_contracts!AR300","v":0},{"$f":"unique_contracts!BP300","v":0},0,{"$f":"IFERROR(IF(AND(I299>0,E299=\"NotHybrid\"),_xlfn.CONCAT(MAX(MIN(ROUNDDOWN(I299/D299,0),8),4),INDEX(resources!$G:$G,MATCH(B299,resources!$A:$A,0))),INDEX(resources!$G:$G,MATCH(B299,resources!$A:$A,0))),\"n/a\")","v":"n/a"},"n/a","n/a",0,0,1,1,{"$f":"MIN((IFERROR(IF(AND($V299<=Z$1,$W299>=Z$1),INDEX(Reliability!E$23:E$50,MATCH($S299,Reliability!$C$23:$C$50,0)),0),0)*IF($T299=\"n/a\",$D299*$Y299,$G299)+IFERROR(IF(AND($V299<=Z$1,$W299>=Z$1),INDEX(Reliability!E$23:E$50,MATCH($T299,Reliability!$C$23:$C$50,0)),0),0)*$H299*$X299*$Y299),$D299)*$R299","v":0},{"$f":"MIN((IFERROR(IF(AND($V299<=AA$1,$W299>=AA$1),INDEX(Reliability!F$23:F$50,MATCH($S299,Reliability!$C$23:$C$50,0)),0),0)*IF($T299=\"n/a\",$D299*$Y299,$G299)+IFERROR(IF(AND($V299<=AA$1,$W299>=AA$1),INDEX(Reliability!F$23:F$50,MATCH($T299,Reliability!$C$23:$C$50,0)),0),0)*$H299*$X299*$Y299),$D299)*$R299","v":0},{"$f":"MIN((IFERROR(IF(AND($V299<=AB$1,$W299>=AB$1),INDEX(Reliability!G$23:G$50,MATCH($S299,Reliability!$C$23:$C$50,0)),0),0)*IF($T299=\"n/a\",$D299*$Y299,$G299)+IFERROR(IF(AND($V299<=AB$1,$W299>=AB$1),INDEX(Reliability!G$23:G$50,MATCH($T299,Reliability!$C$23:$C$50,0)),0),0)*$H299*$X299*$Y299),$D299)*$R299","v":0},{"$f":"MIN((IFERROR(IF(AND($V299<=AC$1,$W299>=AC$1),INDEX(Reliability!H$23:H$50,MATCH($S299,Reliability!$C$23:$C$50,0)),0),0)*IF($T299=\"n/a\",$D299*$Y299,$G299)+IFERROR(IF(AND($V299<=AC$1,$W299>=AC$1),INDEX(Reliability!H$23:H$50,MATCH($T299,Reliability!$C$23:$C$50,0)),0),0)*$H299*$X299*$Y299),$D299)*$R299","v":0},{"$f":"MIN((IFERROR(IF(AND($V299<=AD$1,$W299>=AD$1),INDEX(Reliability!I$23:I$50,MATCH($S299,Reliability!$C$23:$C$50,0)),0),0)*IF($T299=\"n/a\",$D299*$Y299,$G299)+IFERROR(IF(AND($V299<=AD$1,$W299>=AD$1),INDEX(Reliability!I$23:I$50,MATCH($T299,Reliability!$C$23:$C$50,0)),0),0)*$H299*$X299*$Y299),$D299)*$R299","v":0},{"$f":"MIN((IFERROR(IF(AND($V299<=AE$1,$W299>=AE$1),INDEX(Reliability!J$23:J$50,MATCH($S299,Reliability!$C$23:$C$50,0)),0),0)*IF($T299=\"n/a\",$D299*$Y299,$G299)+IFERROR(IF(AND($V299<=AE$1,$W299>=AE$1),INDEX(Reliability!J$23:J$50,MATCH($T299,Reliability!$C$23:$C$50,0)),0),0)*$H299*$X299*$Y299),$D299)*$R299","v":0},{"$f":"MIN((IFERROR(IF(AND($V299<=AF$1,$W299>=AF$1),INDEX(Reliability!K$23:K$50,MATCH($S299,Reliability!$C$23:$C$50,0)),0),0)*IF($T299=\"n/a\",$D299*$Y299,$G299)+IFERROR(IF(AND($V299<=AF$1,$W299>=AF$1),INDEX(Reliability!K$23:K$50,MATCH($T299,Reliability!$C$23:$C$50,0)),0),0)*$H299*$X299*$Y299),$D299)*$R299","v":0},{"$f":"MIN((IFERROR(IF(AND($V299<=AG$1,$W299>=AG$1),INDEX(Reliability!L$23:L$50,MATCH($S299,Reliability!$C$23:$C$50,0)),0),0)*IF($T299=\"n/a\",$D299*$Y299,$G299)+IFERROR(IF(AND($V299<=AG$1,$W299>=AG$1),INDEX(Reliability!L$23:L$50,MATCH($T299,Reliability!$C$23:$C$50,0)),0),0)*$H299*$X299*$Y299),$D299)*$R299","v":0},{"$f":"MIN((IFERROR(IF(AND($V299<=AH$1,$W299>=AH$1),INDEX(Reliability!M$23:M$50,MATCH($S299,Reliability!$C$23:$C$50,0)),0),0)*IF($T299=\"n/a\",$D299*$Y299,$G299)+IFERROR(IF(AND($V299<=AH$1,$W299>=AH$1),INDEX(Reliability!M$23:M$50,MATCH($T299,Reliability!$C$23:$C$50,0)),0),0)*$H299*$X299*$Y299),$D299)*$R299","v":0},{"$f":"MIN((IFERROR(IF(AND($V299<=AI$1,$W299>=AI$1),INDEX(Reliability!N$23:N$50,MATCH($S299,Reliability!$C$23:$C$50,0)),0),0)*IF($T299=\"n/a\",$D299*$Y299,$G299)+IFERROR(IF(AND($V299<=AI$1,$W299>=AI$1),INDEX(Reliability!N$23:N$50,MATCH($T299,Reliability!$C$23:$C$50,0)),0),0)*$H299*$X299*$Y299),$D299)*$R299","v":0},{"$f":"MIN((IFERROR(IF(AND($V299<=AJ$1,$W299>=AJ$1),INDEX(Reliability!O$23:O$50,MATCH($S299,Reliability!$C$23:$C$50,0)),0),0)*IF($T299=\"n/a\",$D299*$Y299,$G299)+IFERROR(IF(AND($V299<=AJ$1,$W299>=AJ$1),INDEX(Reliability!O$23:O$50,MATCH($T299,Reliability!$C$23:$C$50,0)),0),0)*$H299*$X299*$Y299),$D299)*$R299","v":0},{"$f":"MIN((IFERROR(IF(AND($V299<=AK$1,$W299>=AK$1),INDEX(Reliability!P$23:P$50,MATCH($S299,Reliability!$C$23:$C$50,0)),0),0)*IF($T299=\"n/a\",$D299*$Y299,$G299)+IFERROR(IF(AND($V299<=AK$1,$W299>=AK$1),INDEX(Reliability!P$23:P$50,MATCH($T299,Reliability!$C$23:$C$50,0)),0),0)*$H299*$X299*$Y299),$D299)*$R299","v":0}]
[null,{"$f":"unique_contracts!B301","v":0},{"$f":"unique_contracts!D301","v":0},{"$f":"unique_contracts!J301","v":0},{"$f":"unique_contracts!M301","v":0},{"$f":"unique_contracts!N301","v":0},{"$f":"unique_contracts!P301","v":0},{"$f":"unique_contracts!R301","v":0},{"$f":"unique_contracts!V301","v":0},{"$f":"unique_contracts!AB301","v":0},{"$f":"unique_contracts!AM301","v":0},{"$f":"unique_contracts!AN301","v":0},{"$f":"unique_contracts!AO301","v":0},{"$f":"unique_contracts!AP301","v":0},{"$f":"unique_contracts!AQ301","v":0},{"$f":"unique_contracts!AR301","v":0},{"$f":"unique_contracts!BP301","v":0},0,{"$f":"IFERROR(IF(AND(I300>0,E300=\"NotHybrid\"),_xlfn.CONCAT(MAX(MIN(ROUNDDOWN(I300/D300,0),8),4),INDEX(resources!$G:$G,MATCH(B300,resources!$A:$A,0))),INDEX(resources!$G:$G,MATCH(B300,resources!$A:$A,0))),\"n/a\")","v":"n/a"},"n/a","n/a",0,0,1,1,{"$f":"MIN((IFERROR(IF(AND($V300<=Z$1,$W300>=Z$1),INDEX(Reliability!E$23:E$50,MATCH($S300,Reliability!$C$23:$C$50,0)),0),0)*IF($T300=\"n/a\",$D300*$Y300,$G300)+IFERROR(IF(AND($V300<=Z$1,$W300>=Z$1),INDEX(Reliability!E$23:E$50,MATCH($T300,Reliability!$C$23:$C$50,0)),0),0)*$H300*$X300*$Y300),$D300)*$R300","v":0},{"$f":"MIN((IFERROR(IF(AND($V300<=AA$1,$W300>=AA$1),INDEX(Reliability!F$23:F$50,MATCH($S300,Reliability!$C$23:$C$50,0)),0),0)*IF($T300=\"n/a\",$D300*$Y300,$G300)+IFERROR(IF(AND($V300<=AA$1,$W300>=AA$1),INDEX(Reliability!F$23:F$50,MATCH($T300,Reliability!$C$23:$C$50,0)),0),0)*$H300*$X300*$Y300),$D300)*$R300","v":0},{"$f":"MIN((IFERROR(IF(AND($V300<=AB$1,$W300>=AB$1),INDEX(Reliability!G$23:G$50,MATCH($S300,Reliability!$C$23:$C$50,0)),0),0)*IF($T300=\"n/a\",$D300*$Y300,$G300)+IFERROR(IF(AND($V300<=AB$1,$W300>=AB$1),INDEX(Reliability!G$23:G$50,MATCH($T300,Reliability!$C$23:$C$50,0)),0),0)*$H300*$X300*$Y300),$D300)*$R300","v":0},{"$f":"MIN((IFERROR(IF(AND($V300<=AC$1,$W300>=AC$1),INDEX(Reliability!H$23:H$50,MATCH($S300,Reliability!$C$23:$C$50,0)),0),0)*IF($T300=\"n/a\",$D300*$Y300,$G300)+IFERROR(IF(AND($V300<=AC$1,$W300>=AC$1),INDEX(Reliability!H$23:H$50,MATCH($T300,Reliability!$C$23:$C$50,0)),0),0)*$H300*$X300*$Y300),$D300)*$R300","v":0},{"$f":"MIN((IFERROR(IF(AND($V300<=AD$1,$W300>=AD$1),INDEX(Reliability!I$23:I$50,MATCH($S300,Reliability!$C$23:$C$50,0)),0),0)*IF($T300=\"n/a\",$D300*$Y300,$G300)+IFERROR(IF(AND($V300<=AD$1,$W300>=AD$1),INDEX(Reliability!I$23:I$50,MATCH($T300,Reliability!$C$23:$C$50,0)),0),0)*$H300*$X300*$Y300),$D300)*$R300","v":0},{"$f":"MIN((IFERROR(IF(AND($V300<=AE$1,$W300>=AE$1),INDEX(Reliability!J$23:J$50,MATCH($S300,Reliability!$C$23:$C$50,0)),0),0)*IF($T300=\"n/a\",$D300*$Y300,$G300)+IFERROR(IF(AND($V300<=AE$1,$W300>=AE$1),INDEX(Reliability!J$23:J$50,MATCH($T300,Reliability!$C$23:$C$50,0)),0),0)*$H300*$X300*$Y300),$D300)*$R300","v":0},{"$f":"MIN((IFERROR(IF(AND($V300<=AF$1,$W300>=AF$1),INDEX(Reliability!K$23:K$50,MATCH($S300,Reliability!$C$23:$C$50,0)),0),0)*IF($T300=\"n/a\",$D300*$Y300,$G300)+IFERROR(IF(AND($V300<=AF$1,$W300>=AF$1),INDEX(Reliability!K$23:K$50,MATCH($T300,Reliability!$C$23:$C$50,0)),0),0)*$H300*$X300*$Y300),$D300)*$R300","v":0},{"$f":"MIN((IFERROR(IF(AND($V300<=AG$1,$W300>=AG$1),INDEX(Reliability!L$23:L$50,MATCH($S300,Reliability!$C$23:$C$50,0)),0),0)*IF($T300=\"n/a\",$D300*$Y300,$G300)+IFERROR(IF(AND($V300<=AG$1,$W300>=AG$1),INDEX(Reliability!L$23:L$50,MATCH($T300,Reliability!$C$23:$C$50,0)),0),0)*$H300*$X300*$Y300),$D300)*$R300","v":0},{"$f":"MIN((IFERROR(IF(AND($V300<=AH$1,$W300>=AH$1),INDEX(Reliability!M$23:M$50,MATCH($S300,Reliability!$C$23:$C$50,0)),0),0)*IF($T300=\"n/a\",$D300*$Y300,$G300)+IFERROR(IF(AND($V300<=AH$1,$W300>=AH$1),INDEX(Reliability!M$23:M$50,MATCH($T300,Reliability!$C$23:$C$50,0)),0),0)*$H300*$X300*$Y300),$D300)*$R300","v":0},{"$f":"MIN((IFERROR(IF(AND($V300<=AI$1,$W300>=AI$1),INDEX(Reliability!N$23:N$50,MATCH($S300,Reliability!$C$23:$C$50,0)),0),0)*IF($T300=\"n/a\",$D300*$Y300,$G300)+IFERROR(IF(AND($V300<=AI$1,$W300>=AI$1),INDEX(Reliability!N$23:N$50,MATCH($T300,Reliability!$C$23:$C$50,0)),0),0)*$H300*$X300*$Y300),$D300)*$R300","v":0},{"$f":"MIN((IFERROR(IF(AND($V300<=AJ$1,$W300>=AJ$1),INDEX(Reliability!O$23:O$50,MATCH($S300,Reliability!$C$23:$C$50,0)),0),0)*IF($T300=\"n/a\",$D300*$Y300,$G300)+IFERROR(IF(AND($V300<=AJ$1,$W300>=AJ$1),INDEX(Reliability!O$23:O$50,MATCH($T300,Reliability!$C$23:$C$50,0)),0),0)*$H300*$X300*$Y300),$D300)*$R300","v":0},{"$f":"MIN((IFERROR(IF(AND($V300<=AK$1,$W300>=AK$1),INDEX(Reliability!P$23:P$50,MATCH($S300,Reliability!$C$23:$C$50,0)),0),0)*IF($T300=\"n/a\",$D300*$Y300,$G300)+IFERROR(IF(AND($V300<=AK$1,$W300>=AK$1),INDEX(Reliability!P$23:P$50,MATCH($T300,Reliability!$C$23:$C$50,0)),0),0)*$H300*$X300*$Y300),$D300)*$R300","v":0}]
[null,{"$f":"unique_contracts!B302","v":0},{"$f":"unique_contracts!D302","v":0},{"$f":"unique_contracts!J302","v":0},{"$f":"unique_contracts!M302","v":0},{"$f":"unique_contracts!N302","v":0},{"$f":"unique_contracts!P302","v":0},{"$f":"unique_contracts!R302","v":0},{"$f":"unique_contracts!V302","v":0},{"$f":"unique_contracts!AB302","v":0},{"$f":"unique_contracts!AM302","v":0},{"$f":"unique_contracts!AN302","v":0},{"$f":"unique_contracts!AO302","v":0},{"$f":"unique_contracts!AP302","v":0},{"$f":"unique_contracts!AQ302","v":0},{"$f":"unique_contracts!AR302","v":0},{"$f":"unique_contracts!BP302","v":0},0,{"$f":"IFERROR(IF(AND(I301>0,E301=\"NotHybrid\"),_xlfn.CONCAT(MAX(MIN(ROUNDDOWN(I301/D301,0),8),4),INDEX(resources!$G:$G,MATCH(B301,resources!$A:$A,0))),INDEX(resources!$G:$G,MATCH(B301,resources!$A:$A,0))),\"n/a\")","v":"n/a"},"n/a","n/a",0,0,1,1,{"$f":"MIN((IFERROR(IF(AND($V301<=Z$1,$W301>=Z$1),INDEX(Reliability!E$23:E$50,MATCH($S301,Reliability!$C$23:$C$50,0)),0),0)*IF($T301=\"n/a\",$D301*$Y301,$G301)+IFERROR(IF(AND($V301<=Z$1,$W301>=Z$1),INDEX(Reliability!E$23:E$50,MATCH($T301,Reliability!$C$23:$C$50,0)),0),0)*$H301*$X301*$Y301),$D301)*$R301","v":0},{"$f":"MIN((IFERROR(IF(AND($V301<=AA$1,$W301>=AA$1),INDEX(Reliability!F$23:F$50,MATCH($S301,Reliability!$C$23:$C$50,0)),0),0)*IF($T301=\"n/a\",$D301*$Y301,$G301)+IFERROR(IF(AND($V301<=AA$1,$W301>=AA$1),INDEX(Reliability!F$23:F$50,MATCH($T301,Reliability!$C$23:$C$50,0)),0),0)*$H301*$X301*$Y301),$D301)*$R301","v":0},{"$f":"MIN((IFERROR(IF(AND($V301<=AB$1,$W301>=AB$1),INDEX(Reliability!G$23:G$50,MATCH($S301,Reliability!$C$23:$C$50,0)),0),0)*IF($T301=\"n/a\",$D301*$Y301,$G301)+IFERROR(IF(AND($V301<=AB$1,$W301>=AB$1),INDEX(Reliability!G$23:G$50,MATCH($T301,Reliability!$C$23:$C$50,0)),0),0)*$H301*$X301*$Y301),$D301)*$R301","v":0},{"$f":"MIN((IFERROR(IF(AND($V301<=AC$1,$W301>=AC$1),INDEX(Reliability!H$23:H$50,MATCH($S301,Reliability!$C$23:$C$50,0)),0),0)*IF($T301=\"n/a\",$D301*$Y301,$G301)+IFERROR(IF(AND($V301<=AC$1,$W301>=AC$1),INDEX(Reliability!H$23:H$50,MATCH($T301,Reliability!$C$23:$C$50,0)),0),0)*$H301*$X301*$Y301),$D301)*$R301","v":0},{"$f":"MIN((IFERROR(IF(AND($V301<=AD$1,$W301>=AD$1),INDEX(Reliability!I$23:I$50,MATCH($S301,Reliability!$C$23:$C$50,0)),0),0)*IF($T301=\"n/a\",$D301*$Y301,$G301)+IFERROR(IF(AND($V301<=AD$1,$W301>=AD$1),INDEX(Reliability!I$23:I$50,MATCH($T301,Reliability!$C$23:$C$50,0)),0),0)*$H301*$X301*$Y301),$D301)*$R301","v":0},{"$f":"MIN((IFERROR(IF(AND($V301<=AE$1,$W301>=AE$1),INDEX(Reliability!J$23:J$50,MATCH($S301,Reliability!$C$23:$C$50,0)),0),0)*IF($T301=\"n/a\",$D301*$Y301,$G301)+IFERROR(IF(AND($V301<=AE$1,$W301>=AE$1),INDEX(Reliability!J$23:J$50,MATCH($T301,Reliability!$C$23:$C$50,0)),0),0)*$H301*$X301*$Y301),$D301)*$R301","v":0},{"$f":"MIN((IFERROR(IF(AND($V301<=AF$1,$W301>=AF$1),INDEX(Reliability!K$23:K$50,MATCH($S301,Reliability!$C$23:$C$50,0)),0),0)*IF($T301=\"n/a\",$D301*$Y301,$G301)+IFERROR(IF(AND($V301<=AF$1,$W301>=AF$1),INDEX(Reliability!K$23:K$50,MATCH($T301,Reliability!$C$23:$C$50,0)),0),0)*$H301*$X301*$Y301),$D301)*$R301","v":0},{"$f":"MIN((IFERROR(IF(AND($V301<=AG$1,$W301>=AG$1),INDEX(Reliability!L$23:L$50,MATCH($S301,Reliability!$C$23:$C$50,0)),0),0)*IF($T301=\"n/a\",$D301*$Y301,$G301)+IFERROR(IF(AND($V301<=AG$1,$W301>=AG$1),INDEX(Reliability!L$23:L$50,MATCH($T301,Reliability!$C$23:$C$50,0)),0),0)*$H301*$X301*$Y301),$D301)*$R301","v":0},{"$f":"MIN((IFERROR(IF(AND($V301<=AH$1,$W301>=AH$1),INDEX(Reliability!M$23:M$50,MATCH($S301,Reliability!$C$23:$C$50,0)),0),0)*IF($T301=\"n/a\",$D301*$Y301,$G301)+IFERROR(IF(AND($V301<=AH$1,$W301>=AH$1),INDEX(Reliability!M$23:M$50,MATCH($T301,Reliability!$C$23:$C$50,0)),0),0)*$H301*$X301*$Y301),$D301)*$R301","v":0},{"$f":"MIN((IFERROR(IF(AND($V301<=AI$1,$W301>=AI$1),INDEX(Reliability!N$23:N$50,MATCH($S301,Reliability!$C$23:$C$50,0)),0),0)*IF($T301=\"n/a\",$D301*$Y301,$G301)+IFERROR(IF(AND($V301<=AI$1,$W301>=AI$1),INDEX(Reliability!N$23:N$50,MATCH($T301,Reliability!$C$23:$C$50,0)),0),0)*$H301*$X301*$Y301),$D301)*$R301","v":0},{"$f":"MIN((IFERROR(IF(AND($V301<=AJ$1,$W301>=AJ$1),INDEX(Reliability!O$23:O$50,MATCH($S301,Reliability!$C$23:$C$50,0)),0),0)*IF($T301=\"n/a\",$D301*$Y301,$G301)+IFERROR(IF(AND($V301<=AJ$1,$W301>=AJ$1),INDEX(Reliability!O$23:O$50,MATCH($T301,Reliability!$C$23:$C$50,0)),0),0)*$H301*$X301*$Y301),$D301)*$R301","v":0},{"$f":"MIN((IFERROR(IF(AND($V301<=AK$1,$W301>=AK$1),INDEX(Reliability!P$23:P$50,MATCH($S301,Reliability!$C$23:$C$50,0)),0),0)*IF($T301=\"n/a\",$D301*$Y301,$G301)+IFERROR(IF(AND($V301<=AK$1,$W301>=AK$1),INDEX(Reliability!P$23:P$50,MATCH($T301,Reliability!$C$23:$C$50,0)),0),0)*$H301*$X301*$Y301),$D301)*$R301","v":0}]
[null,{"$f":"unique_contracts!B303","v":0},{"$f":"unique_contracts!D303","v":0},{"$f":"unique_contracts!J303","v":0},{"$f":"unique_contracts!M303","v":0},{"$f":"unique_contracts!N303","v":0},{"$f":"unique_contracts!P303","v":0},{"$f":"unique_contracts!R303","v":0},{"$f":"unique_contracts!V303","v":0},{"$f":"unique_contracts!AB303","v":0},{"$f":"unique_contracts!AM303","v":0},{"$f":"unique_contracts!AN303","v":0},{"$f":"unique_contracts!AO303","v":0},{"$f":"unique_contracts!AP303","v":0},{"$f":"unique_contracts!AQ303","v":0},{"$f":"unique_contracts!AR303","v":0},{"$f":"unique_contracts!BP303","v":0},0,{"$f":"IFERROR(IF(AND(I302>0,E302=\"NotHybrid\"),_xlfn.CONCAT(MAX(MIN(ROUNDDOWN(I302/D302,0),8),4),INDEX(resources!$G:$G,MATCH(B302,resources!$A:$A,0))),INDEX(resources!$G:$G,MATCH(B302,resources!$A:$A,0))),\"n/a\")","v":"n/a"},"n/a","n/a",0,0,1,1,{"$f":"MIN((IFERROR(IF(AND($V302<=Z$1,$W302>=Z$1),INDEX(Reliability!E$23:E$50,MATCH($S302,Reliability!$C$23:$C$50,0)),0),0)*IF($T302=\"n/a\",$D302*$Y302,$G302)+IFERROR(IF(AND($V302<=Z$1,$W302>=Z$1),INDEX(Reliability!E$23:E$50,MATCH($T302,Reliability!$C$23:$C$50,0)),0),0)*$H302*$X302*$Y302),$D302)*$R302","v":0},{"$f":"MIN((IFERROR(IF(AND($V302<=AA$1,$W302>=AA$1),INDEX(Reliability!F$23:F$50,MATCH($S302,Reliability!$C$23:$C$50,0)),0),0)*IF($T302=\"n/a\",$D302*$Y302,$G302)+IFERROR(IF(AND($V302<=AA$1,$W302>=AA$1),INDEX(Reliability!F$23:F$50,MATCH($T302,Reliability!$C$23:$C$50,0)),0),0)*$H302*$X302*$Y302),$D302)*$R302","v":0},{"$f":"MIN((IFERROR(IF(AND($V302<=AB$1,$W302>=AB$1),INDEX(Reliability!G$23:G$50,MATCH($S302,Reliability!$C$23:$C$50,0)),0),0)*IF($T302=\"n/a\",$D302*$Y302,$G302)+IFERROR(IF(AND($V302<=AB$1,$W302>=AB$1),INDEX(Reliability!G$23:G$50,MATCH($T302,Reliability!$C$23:$C$50,0)),0),0)*$H302*$X302*$Y302),$D302)*$R302","v":0},{"$f":"MIN((IFERROR(IF(AND($V302<=AC$1,$W302>=AC$1),INDEX(Reliability!H$23:H$50,MATCH($S302,Reliability!$C$23:$C$50,0)),0),0)*IF($T302=\"n/a\",$D302*$Y302,$G302)+IFERROR(IF(AND($V302<=AC$1,$W302>=AC$1),INDEX(Reliability!H$23:H$50,MATCH($T302,Reliability!$C$23:$C$50,0)),0),0)*$H302*$X302*$Y302),$D302)*$R302","v":0},{"$f":"MIN((IFERROR(IF(AND($V302<=AD$1,$W302>=AD$1),INDEX(Reliability!I$23:I$50,MATCH($S302,Reliability!$C$23:$C$50,0)),0),0)*IF($T302=\"n/a\",$D302*$Y302,$G302)+IFERROR(IF(AND($V302<=AD$1,$W302>=AD$1),INDEX(Reliability!I$23:I$50,MATCH($T302,Reliability!$C$23:$C$50,0)),0),0)*$H302*$X302*$Y302),$D302)*$R302","v":0},{"$f":"MIN((IFERROR(IF(AND($V302<=AE$1,$W302>=AE$1),INDEX(Reliability!J$23:J$50,MATCH($S302,Reliability!$C$23:$C$50,0)),0),0)*IF($T302=\"n/a\",$D302*$Y302,$G302)+IFERROR(IF(AND($V302<=AE$1,$W302>=AE$1),INDEX(Reliability!J$23:J$50,MATCH($T302,Reliability!$C$23:$C$50,0)),0),0)*$H302*$X302*$Y302),$D302)*$R302","v":0},{"$f":"MIN((IFERROR(IF(AND($V302<=AF$1,$W302>=AF$1),INDEX(Reliability!K$23:K$50,MATCH($S302,Reliability!$C$23:$C$50,0)),0),0)*IF($T302=\"n/a\",$D302*$Y302,$G302)+IFERROR(IF(AND($V302<=AF$1,$W302>=AF$1),INDEX(Reliability!K$23:K$50,MATCH($T302,Reliability!$C$23:$C$50,0)),0),0)*$H302*$X302*$Y302),$D302)*$R302","v":0},{"$f":"MIN((IFERROR(IF(AND($V302<=AG$1,$W302>=AG$1),INDEX(Reliability!L$23:L$50,MATCH($S302,Reliability!$C$23:$C$50,0)),0),0)*IF($T302=\"n/a\",$D302*$Y302,$G302)+IFERROR(IF(AND($V302<=AG$1,$W302>=AG$1),INDEX(Reliability!L$23:L$50,MATCH($T302,Reliability!$C$23:$C$50,0)),0),0)*$H302*$X302*$Y302),$D302)*$R302","v":0},{"$f":"MIN((IFERROR(IF(AND($V302<=AH$1,$W302>=AH$1),INDEX(Reliability!M$23:M$50,MATCH($S302,Reliability!$C$23:$C$50,0)),0),0)*IF($T302=\"n/a\",$D302*$Y302,$G302)+IFERROR(IF(AND($V302<=AH$1,$W302>=AH$1),INDEX(Reliability!M$23:M$50,MATCH($T302,Reliability!$C$23:$C$50,0)),0),0)*$H302*$X302*$Y302),$D302)*$R302","v":0},{"$f":"MIN((IFERROR(IF(AND($V302<=AI$1,$W302>=AI$1),INDEX(Reliability!N$23:N$50,MATCH($S302,Reliability!$C$23:$C$50,0)),0),0)*IF($T302=\"n/a\",$D302*$Y302,$G302)+IFERROR(IF(AND($V302<=AI$1,$W302>=AI$1),INDEX(Reliability!N$23:N$50,MATCH($T302,Reliability!$C$23:$C$50,0)),0),0)*$H302*$X302*$Y302),$D302)*$R302","v":0},{"$f":"MIN((IFERROR(IF(AND($V302<=AJ$1,$W302>=AJ$1),INDEX(Reliability!O$23:O$50,MATCH($S302,Reliability!$C$23:$C$50,0)),0),0)*IF($T302=\"n/a\",$D302*$Y302,$G302)+IFERROR(IF(AND($V302<=AJ$1,$W302>=AJ$1),INDEX(Reliability!O$23:O$50,MATCH($T302,Reliability!$C$23:$C$50,0)),0),0)*$H302*$X302*$Y302),$D302)*$R302","v":0},{"$f":"MIN((IFERROR(IF(AND($V302<=AK$1,$W302>=AK$1),INDEX(Reliability!P$23:P$50,MATCH($S302,Reliability!$C$23:$C$50,0)),0),0)*IF($T302=\"n/a\",$D302*$Y302,$G302)+IFERROR(IF(AND($V302<=AK$1,$W302>=AK$1),INDEX(Reliability!P$23:P$50,MATCH($T302,Reliability!$C$23:$C$50,0)),0),0)*$H302*$X302*$Y302),$D302)*$R302","v":0}]
[null,{"$f":"unique_contracts!B304","v":0},{"$f":"unique_contracts!D304","v":0},{"$f":"unique_contracts!J304","v":0},{"$f":"unique_contracts!M304","v":0},{"$f":"unique_contracts!N304","v":0},{"$f":"unique_contracts!P304","v":0},{"$f":"unique_contracts!R304","v":0},{"$f":"unique_contracts!V304","v":0},{"$f":"unique_contracts!AB304","v":0},{"$f":"unique_contracts!AM304","v":0},{"$f":"unique_contracts!AN304","v":0},{"$f":"unique_contracts!AO304","v":0},{"$f":"unique_contracts!AP304","v":0},{"$f":"unique_contracts!AQ304","v":0},{"$f":"unique_contracts!AR304","v":0},{"$f":"unique_contracts!BP304","v":0},0,{"$f":"IFERROR(IF(AND(I303>0,E303=\"NotHybrid\"),_xlfn.CONCAT(MAX(MIN(ROUNDDOWN(I303/D303,0),8),4),INDEX(resources!$G:$G,MATCH(B303,resources!$A:$A,0))),INDEX(resources!$G:$G,MATCH(B303,resources!$A:$A,0))),\"n/a\")","v":"n/a"},"n/a","n/a",0,0,1,1,{"$f":"MIN((IFERROR(IF(AND($V303<=Z$1,$W303>=Z$1),INDEX(Reliability!E$23:E$50,MATCH($S303,Reliability!$C$23:$C$50,0)),0),0)*IF($T303=\"n/a\",$D303*$Y303,$G303)+IFERROR(IF(AND($V303<=Z$1,$W303>=Z$1),INDEX(Reliability!E$23:E$50,MATCH($T303,Reliability!$C$23:$C$50,0)),0),0)*$H303*$X303*$Y303),$D303)*$R303","v":0},{"$f":"MIN((IFERROR(IF(AND($V303<=AA$1,$W303>=AA$1),INDEX(Reliability!F$23:F$50,MATCH($S303,Reliability!$C$23:$C$50,0)),0),0)*IF($T303=\"n/a\",$D303*$Y303,$G303)+IFERROR(IF(AND($V303<=AA$1,$W303>=AA$1),INDEX(Reliability!F$23:F$50,MATCH($T303,Reliability!$C$23:$C$50,0)),0),0)*$H303*$X303*$Y303),$D303)*$R303","v":0},{"$f":"MIN((IFERROR(IF(AND($V303<=AB$1,$W303>=AB$1),INDEX(Reliability!G$23:G$50,MATCH($S303,Reliability!$C$23:$C$50,0)),0),0)*IF($T303=\"n/a\",$D303*$Y303,$G303)+IFERROR(IF(AND($V303<=AB$1,$W303>=AB$1),INDEX(Reliability!G$23:G$50,MATCH($T303,Reliability!$C$23:$C$50,0)),0),0)*$H303*$X303*$Y303),$D303)*$R303","v":0},{"$f":"MIN((IFERROR(IF(AND($V303<=AC$1,$W303>=AC$1),INDEX(Reliability!H$23:H$50,MATCH($S303,Reliability!$C$23:$C$50,0)),0),0)*IF($T303=\"n/a\",$D303*$Y303,$G303)+IFERROR(IF(AND($V303<=AC$1,$W303>=AC$1),INDEX(Reliability!H$23:H$50,MATCH($T303,Reliability!$C$23:$C$50,0)),0),0)*$H303*$X303*$Y303),$D303)*$R303","v":0},{"$f":"MIN((IFERROR(IF(AND($V303<=AD$1,$W303>=AD$1),INDEX(Reliability!I$23:I$50,MATCH($S303,Reliability!$C$23:$C$50,0)),0),0)*IF($T303=\"n/a\",$D303*$Y303,$G303)+IFERROR(IF(AND($V303<=AD$1,$W303>=AD$1),INDEX(Reliability!I$23:I$50,MATCH($T303,Reliability!$C$23:$C$50,0)),0),0)*$H303*$X303*$Y303),$D303)*$R303","v":0},{"$f":"MIN((IFERROR(IF(AND($V303<=AE$1,$W303>=AE$1),INDEX(Reliability!J$23:J$50,MATCH($S303,Reliability!$C$23:$C$50,0)),0),0)*IF($T303=\"n/a\",$D303*$Y303,$G303)+IFERROR(IF(AND($V303<=AE$1,$W303>=AE$1),INDEX(Reliability!J$23:J$50,MATCH($T303,Reliability!$C$23:$C$50,0)),0),0)*$H303*$X303*$Y303),$D303)*$R303","v":0},{"$f":"MIN((IFERROR(IF(AND($V303<=AF$1,$W303>=AF$1),INDEX(Reliability!K$23:K$50,MATCH($S303,Reliability!$C$23:$C$50,0)),0),0)*IF($T303=\"n/a\",$D303*$Y303,$G303)+IFERROR(IF(AND($V303<=AF$1,$W303>=AF$1),INDEX(Reliability!K$23:K$50,MATCH($T303,Reliability!$C$23:$C$50,0)),0),0)*$H303*$X303*$Y303),$D303)*$R303","v":0},{"$f":"MIN((IFERROR(IF(AND($V303<=AG$1,$W303>=AG$1),INDEX(Reliability!L$23:L$50,MATCH($S303,Reliability!$C$23:$C$50,0)),0),0)*IF($T303=\"n/a\",$D303*$Y303,$G303)+IFERROR(IF(AND($V303<=AG$1,$W303>=AG$1),INDEX(Reliability!L$23:L$50,MATCH($T303,Reliability!$C$23:$C$50,0)),0),0)*$H303*$X303*$Y303),$D303)*$R303","v":0},{"$f":"MIN((IFERROR(IF(AND($V303<=AH$1,$W303>=AH$1),INDEX(Reliability!M$23:M$50,MATCH($S303,Reliability!$C$23:$C$50,0)),0),0)*IF($T303=\"n/a\",$D303*$Y303,$G303)+IFERROR(IF(AND($V303<=AH$1,$W303>=AH$1),INDEX(Reliability!M$23:M$50,MATCH($T303,Reliability!$C$23:$C$50,0)),0),0)*$H303*$X303*$Y303),$D303)*$R303","v":0},{"$f":"MIN((IFERROR(IF(AND($V303<=AI$1,$W303>=AI$1),INDEX(Reliability!N$23:N$50,MATCH($S303,Reliability!$C$23:$C$50,0)),0),0)*IF($T303=\"n/a\",$D303*$Y303,$G303)+IFERROR(IF(AND($V303<=AI$1,$W303>=AI$1),INDEX(Reliability!N$23:N$50,MATCH($T303,Reliability!$C$23:$C$50,0)),0),0)*$H303*$X303*$Y303),$D303)*$R303","v":0},{"$f":"MIN((IFERROR(IF(AND($V303<=AJ$1,$W303>=AJ$1),INDEX(Reliability!O$23:O$50,MATCH($S303,Reliability!$C$23:$C$50,0)),0),0)*IF($T303=\"n/a\",$D303*$Y303,$G303)+IFERROR(IF(AND($V303<=AJ$1,$W303>=AJ$1),INDEX(Reliability!O$23:O$50,MATCH($T303,Reliability!$C$23:$C$50,0)),0),0)*$H303*$X303*$Y303),$D303)*$R303","v":0},{"$f":"MIN((IFERROR(IF(AND($V303<=AK$1,$W303>=AK$1),INDEX(Reliability!P$23:P$50,MATCH($S303,Reliability!$C$23:$C$50,0)),0),0)*IF($T303=\"n/a\",$D303*$Y303,$G303)+IFERROR(IF(AND($V303<=AK$1,$W303>=AK$1),INDEX(Reliability!P$23:P$50,MATCH($T303,Reliability!$C$23:$C$50,0)),0),0)*$H303*$X303*$Y303),$D303)*$R303","v":0}]
[null,{"$f":"unique_contracts!B305","v":0},{"$f":"unique_contracts!D305","v":0},{"$f":"unique_contracts!J305","v":0},{"$f":"unique_contracts!M305","v":0},{"$f":"unique_contracts!N305","v":0},{"$f":"unique_contracts!P305","v":0},{"$f":"unique_contracts!R305","v":0},{"$f":"unique_contracts!V305","v":0},{"$f":"unique_contracts!AB305","v":0},{"$f":"unique_contracts!AM305","v":0},{"$f":"unique_contracts!AN305","v":0},{"$f":"unique_contracts!AO305","v":0},{"$f":"unique_contracts!AP305","v":0},{"$f":"unique_contracts!AQ305","v":0},{"$f":"unique_contracts!AR305","v":0},{"$f":"unique_contracts!BP305","v":0},0,{"$f":"IFERROR(IF(AND(I304>0,E304=\"NotHybrid\"),_xlfn.CONCAT(MAX(MIN(ROUNDDOWN(I304/D304,0),8),4),INDEX(resources!$G:$G,MATCH(B304,resources!$A:$A,0))),INDEX(resources!$G:$G,MATCH(B304,resources!$A:$A,0))),\"n/a\")","v":"n/a"},"n/a","n/a",0,0,1,1,{"$f":"MIN((IFERROR(IF(AND($V304<=Z$1,$W304>=Z$1),INDEX(Reliability!E$23:E$50,MATCH($S304,Reliability!$C$23:$C$50,0)),0),0)*IF($T304=\"n/a\",$D304*$Y304,$G304)+IFERROR(IF(AND($V304<=Z$1,$W304>=Z$1),INDEX(Reliability!E$23:E$50,MATCH($T304,Reliability!$C$23:$C$50,0)),0),0)*$H304*$X304*$Y304),$D304)*$R304","v":0},{"$f":"MIN((IFERROR(IF(AND($V304<=AA$1,$W304>=AA$1),INDEX(Reliability!F$23:F$50,MATCH($S304,Reliability!$C$23:$C$50,0)),0),0)*IF($T304=\"n/a\",$D304*$Y304,$G304)+IFERROR(IF(AND($V304<=AA$1,$W304>=AA$1),INDEX(Reliability!F$23:F$50,MATCH($T304,Reliability!$C$23:$C$50,0)),0),0)*$H304*$X304*$Y304),$D304)*$R304","v":0},{"$f":"MIN((IFERROR(IF(AND($V304<=AB$1,$W304>=AB$1),INDEX(Reliability!G$23:G$50,MATCH($S304,Reliability!$C$23:$C$50,0)),0),0)*IF($T304=\"n/a\",$D304*$Y304,$G304)+IFERROR(IF(AND($V304<=AB$1,$W304>=AB$1),INDEX(Reliability!G$23:G$50,MATCH($T304,Reliability!$C$23:$C$50,0)),0),0)*$H304*$X304*$Y304),$D304)*$R304","v":0},{"$f":"MIN((IFERROR(IF(AND($V304<=AC$1,$W304>=AC$1),INDEX(Reliability!H$23:H$50,MATCH($S304,Reliability!$C$23:$C$50,0)),0),0)*IF($T304=\"n/a\",$D304*$Y304,$G304)+IFERROR(IF(AND($V304<=AC$1,$W304>=AC$1),INDEX(Reliability!H$23:H$50,MATCH($T304,Reliability!$C$23:$C$50,0)),0),0)*$H304*$X304*$Y304),$D304)*$R304","v":0},{"$f":"MIN((IFERROR(IF(AND($V304<=AD$1,$W304>=AD$1),INDEX(Reliability!I$23:I$50,MATCH($S304,Reliability!$C$23:$C$50,0)),0),0)*IF($T304=\"n/a\",$D304*$Y304,$G304)+IFERROR(IF(AND($V304<=AD$1,$W304>=AD$1),INDEX(Reliability!I$23:I$50,MATCH($T304,Reliability!$C$23:$C$50,0)),0),0)*$H304*$X304*$Y304),$D304)*$R304","v":0},{"$f":"MIN((IFERROR(IF(AND($V304<=AE$1,$W304>=AE$1),INDEX(Reliability!J$23:J$50,MATCH($S304,Reliability!$C$23:$C$50,0)),0),0)*IF($T304=\"n/a\",$D304*$Y304,$G304)+IFERROR(IF(AND($V304<=AE$1,$W304>=AE$1),INDEX(Reliability!J$23:J$50,MATCH($T304,Reliability!$C$23:$C$50,0)),0),0)*$H304*$X304*$Y304),$D304)*$R304","v":0},{"$f":"MIN((IFERROR(IF(AND($V304<=AF$1,$W304>=AF$1),INDEX(Reliability!K$23:K$50,MATCH($S304,Reliability!$C$23:$C$50,0)),0),0)*IF($T304=\"n/a\",$D304*$Y304,$G304)+IFERROR(IF(AND($V304<=AF$1,$W304>=AF$1),INDEX(Reliability!K$23:K$50,MATCH($T304,Reliability!$C$23:$C$50,0)),0),0)*$H304*$X304*$Y304),$D304)*$R304","v":0},{"$f":"MIN((IFERROR(IF(AND($V304<=AG$1,$W304>=AG$1),INDEX(Reliability!L$23:L$50,MATCH($S304,Reliability!$C$23:$C$50,0)),0),0)*IF($T304=\"n/a\",$D304*$Y304,$G304)+IFERROR(IF(AND($V304<=AG$1,$W304>=AG$1),INDEX(Reliability!L$23:L$50,MATCH($T304,Reliability!$C$23:$C$50,0)),0),0)*$H304*$X304*$Y304),$D304)*$R304","v":0},{"$f":"MIN((IFERROR(IF(AND($V304<=AH$1,$W304>=AH$1),INDEX(Reliability!M$23:M$50,MATCH($S304,Reliability!$C$23:$C$50,0)),0),0)*IF($T304=\"n/a\",$D304*$Y304,$G304)+IFERROR(IF(AND($V304<=AH$1,$W304>=AH$1),INDEX(Reliability!M$23:M$50,MATCH($T304,Reliability!$C$23:$C$50,0)),0),0)*$H304*$X304*$Y304),$D304)*$R304","v":0},{"$f":"MIN((IFERROR(IF(AND($V304<=AI$1,$W304>=AI$1),INDEX(Reliability!N$23:N$50,MATCH($S304,Reliability!$C$23:$C$50,0)),0),0)*IF($T304=\"n/a\",$D304*$Y304,$G304)+IFERROR(IF(AND($V304<=AI$1,$W304>=AI$1),INDEX(Reliability!N$23:N$50,MATCH($T304,Reliability!$C$23:$C$50,0)),0),0)*$H304*$X304*$Y304),$D304)*$R304","v":0},{"$f":"MIN((IFERROR(IF(AND($V304<=AJ$1,$W304>=AJ$1),INDEX(Reliability!O$23:O$50,MATCH($S304,Reliability!$C$23:$C$50,0)),0),0)*IF($T304=\"n/a\",$D304*$Y304,$G304)+IFERROR(IF(AND($V304<=AJ$1,$W304>=AJ$1),INDEX(Reliability!O$23:O$50,MATCH($T304,Reliability!$C$23:$C$50,0)),0),0)*$H304*$X304*$Y304),$D304)*$R304","v":0},{"$f":"MIN((IFERROR(IF(AND($V304<=AK$1,$W304>=AK$1),INDEX(Reliability!P$23:P$50,MATCH($S304,Reliability!$C$23:$C$50,0)),0),0)*IF($T304=\"n/a\",$D304*$Y304,$G304)+IFERROR(IF(AND($V304<=AK$1,$W304>=AK$1),INDEX(Reliability!P$23:P$50,MATCH($T304,Reliability!$C$23:$C$50,0)),0),0)*$H304*$X304*$Y304),$D304)*$R304","v":0}]
[null,{"$f":"unique_contracts!B306","v":0},{"$f":"unique_contracts!D306","v":0},{"$f":"unique_contracts!J306","v":0},{"$f":"unique_contracts!M306","v":0},{"$f":"unique_contracts!N306","v":0},{"$f":"unique_contracts!P306","v":0},{"$f":"unique_contracts!R306","v":0},{"$f":"unique_contracts!V306","v":0},{"$f":"unique_contracts!AB306","v":0},{"$f":"unique_contracts!AM306","v":0},{"$f":"unique_contracts!AN306","v":0},{"$f":"unique_contracts!AO306","v":0},{"$f":"unique_contracts!AP306","v":0},{"$f":"unique_contracts!AQ306","v":0},{"$f":"unique_contracts!AR306","v":0},{"$f":"unique_contracts!BP306","v":0},0,{"$f":"IFERROR(IF(AND(I305>0,E305=\"NotHybrid\"),_xlfn.CONCAT(MAX(MIN(ROUNDDOWN(I305/D305,0),8),4),INDEX(resources!$G:$G,MATCH(B305,resources!$A:$A,0))),INDEX(resources!$G:$G,MATCH(B305,resources!$A:$A,0))),\"n/a\")","v":"n/a"},"n/a","n/a",0,0,1,1,{"$f":"MIN((IFERROR(IF(AND($V305<=Z$1,$W305>=Z$1),INDEX(Reliability!E$23:E$50,MATCH($S305,Reliability!$C$23:$C$50,0)),0),0)*IF($T305=\"n/a\",$D305*$Y305,$G305)+IFERROR(IF(AND($V305<=Z$1,$W305>=Z$1),INDEX(Reliability!E$23:E$50,MATCH($T305,Reliability!$C$23:$C$50,0)),0),0)*$H305*$X305*$Y305),$D305)*$R305","v":0},{"$f":"MIN((IFERROR(IF(AND($V305<=AA$1,$W305>=AA$1),INDEX(Reliability!F$23:F$50,MATCH($S305,Reliability!$C$23:$C$50,0)),0),0)*IF($T305=\"n/a\",$D305*$Y305,$G305)+IFERROR(IF(AND($V305<=AA$1,$W305>=AA$1),INDEX(Reliability!F$23:F$50,MATCH($T305,Reliability!$C$23:$C$50,0)),0),0)*$H305*$X305*$Y305),$D305)*$R305","v":0},{"$f":"MIN((IFERROR(IF(AND($V305<=AB$1,$W305>=AB$1),INDEX(Reliability!G$23:G$50,MATCH($S305,Reliability!$C$23:$C$50,0)),0),0)*IF($T305=\"n/a\",$D305*$Y305,$G305)+IFERROR(IF(AND($V305<=AB$1,$W305>=AB$1),INDEX(Reliability!G$23:G$50,MATCH($T305,Reliability!$C$23:$C$50,0)),0),0)*$H305*$X305*$Y305),$D305)*$R305","v":0},{"$f":"MIN((IFERROR(IF(AND($V305<=AC$1,$W305>=AC$1),INDEX(Reliability!H$23:H$50,MATCH($S305,Reliability!$C$23:$C$50,0)),0),0)*IF($T305=\"n/a\",$D305*$Y305,$G305)+IFERROR(IF(AND($V305<=AC$1,$W305>=AC$1),INDEX(Reliability!H$23:H$50,MATCH($T305,Reliability!$C$23:$C$50,0)),0),0)*$H305*$X305*$Y305),$D305)*$R305","v":0},{"$f":"MIN((IFERROR(IF(AND($V305<=AD$1,$W305>=AD$1),INDEX(Reliability!I$23:I$50,MATCH($S305,Reliability!$C$23:$C$50,0)),0),0)*IF($T305=\"n/a\",$D305*$Y305,$G305)+IFERROR(IF(AND($V305<=AD$1,$W305>=AD$1),INDEX(Reliability!I$23:I$50,MATCH($T305,Reliability!$C$23:$C$50,0)),0),0)*$H305*$X305*$Y305),$D305)*$R305","v":0},{"$f":"MIN((IFERROR(IF(AND($V305<=AE$1,$W305>=AE$1),INDEX(Reliability!J$23:J$50,MATCH($S305,Reliability!$C$23:$C$50,0)),0),0)*IF($T305=\"n/a\",$D305*$Y305,$G305)+IFERROR(IF(AND($V305<=AE$1,$W305>=AE$1),INDEX(Reliability!J$23:J$50,MATCH($T305,Reliability!$C$23:$C$50,0)),0),0)*$H305*$X305*$Y305),$D305)*$R305","v":0},{"$f":"MIN((IFERROR(IF(AND($V305<=AF$1,$W305>=AF$1),INDEX(Reliability!K$23:K$50,MATCH($S305,Reliability!$C$23:$C$50,0)),0),0)*IF($T305=\"n/a\",$D305*$Y305,$G305)+IFERROR(IF(AND($V305<=AF$1,$W305>=AF$1),INDEX(Reliability!K$23:K$50,MATCH($T305,Reliability!$C$23:$C$50,0)),0),0)*$H305*$X305*$Y305),$D305)*$R305","v":0},{"$f":"MIN((IFERROR(IF(AND($V305<=AG$1,$W305>=AG$1),INDEX(Reliability!L$23:L$50,MATCH($S305,Reliability!$C$23:$C$50,0)),0),0)*IF($T305=\"n/a\",$D305*$Y305,$G305)+IFERROR(IF(AND($V305<=AG$1,$W305>=AG$1),INDEX(Reliability!L$23:L$50,MATCH($T305,Reliability!$C$23:$C$50,0)),0),0)*$H305*$X305*$Y305),$D305)*$R305","v":0},{"$f":"MIN((IFERROR(IF(AND($V305<=AH$1,$W305>=AH$1),INDEX(Reliability!M$23:M$50,MATCH($S305,Reliability!$C$23:$C$50,0)),0),0)*IF($T305=\"n/a\",$D305*$Y305,$G305)+IFERROR(IF(AND($V305<=AH$1,$W305>=AH$1),INDEX(Reliability!M$23:M$50,MATCH($T305,Reliability!$C$23:$C$50,0)),0),0)*$H305*$X305*$Y305),$D305)*$R305","v":0},{"$f":"MIN((IFERROR(IF(AND($V305<=AI$1,$W305>=AI$1),INDEX(Reliability!N$23:N$50,MATCH($S305,Reliability!$C$23:$C$50,0)),0),0)*IF($T305=\"n/a\",$D305*$Y305,$G305)+IFERROR(IF(AND($V305<=AI$1,$W305>=AI$1),INDEX(Reliability!N$23:N$50,MATCH($T305,Reliability!$C$23:$C$50,0)),0),0)*$H305*$X305*$Y305),$D305)*$R305","v":0},{"$f":"MIN((IFERROR(IF(AND($V305<=AJ$1,$W305>=AJ$1),INDEX(Reliability!O$23:O$50,MATCH($S305,Reliability!$C$23:$C$50,0)),0),0)*IF($T305=\"n/a\",$D305*$Y305,$G305)+IFERROR(IF(AND($V305<=AJ$1,$W305>=AJ$1),INDEX(Reliability!O$23:O$50,MATCH($T305,Reliability!$C$23:$C$50,0)),0),0)*$H305*$X305*$Y305),$D305)*$R305","v":0},{"$f":"MIN((IFERROR(IF(AND($V305<=AK$1,$W305>=AK$1),INDEX(Reliability!P$23:P$50,MATCH($S305,Reliability!$C$23:$C$50,0)),0),0)*IF($T305=\"n/a\",$D305*$Y305,$G305)+IFERROR(IF(AND($V305<=AK$1,$W305>=AK$1),INDEX(Reliability!P$23:P$50,MATCH($T305,Reliability!$C$23:$C$50,0)),0),0)*$H305*$X305*$Y305),$D305)*$R305","v":0}]
[null,{"$f":"unique_contracts!B307","v":0},{"$f":"unique_contracts!D307","v":0},{"$f":"unique_contracts!J307","v":0},{"$f":"unique_contracts!M307","v":0},{"$f":"unique_contracts!N307","v":0},{"$f":"unique_contracts!P307","v":0},{"$f":"unique_contracts!R307","v":0},{"$f":"unique_contracts!V307","v":0},{"$f":"unique_contracts!AB307","v":0},{"$f":"unique_contracts!AM307","v":0},{"$f":"unique_contracts!AN307","v":0},{"$f":"unique_contracts!AO307","v":0},{"$f":"unique_contracts!AP307","v":0},{"$f":"unique_contracts!AQ307","v":0},{"$f":"unique_contracts!AR307","v":0},{"$f":"unique_contracts!BP307","v":0},0,{"$f":"IFERROR(IF(AND(I306>0,E306=\"NotHybrid\"),_xlfn.CONCAT(MAX(MIN(ROUNDDOWN(I306/D306,0),8),4),INDEX(resources!$G:$G,MATCH(B306,resources!$A:$A,0))),INDEX(resources!$G:$G,MATCH(B306,resources!$A:$A,0))),\"n/a\")","v":"n/a"},"n/a","n/a",0,0,1,1,{"$f":"MIN((IFERROR(IF(AND($V306<=Z$1,$W306>=Z$1),INDEX(Reliability!E$23:E$50,MATCH($S306,Reliability!$C$23:$C$50,0)),0),0)*IF($T306=\"n/a\",$D306*$Y306,$G306)+IFERROR(IF(AND($V306<=Z$1,$W306>=Z$1),INDEX(Reliability!E$23:E$50,MATCH($T306,Reliability!$C$23:$C$50,0)),0),0)*$H306*$X306*$Y306),$D306)*$R306","v":0},{"$f":"MIN((IFERROR(IF(AND($V306<=AA$1,$W306>=AA$1),INDEX(Reliability!F$23:F$50,MATCH($S306,Reliability!$C$23:$C$50,0)),0),0)*IF($T306=\"n/a\",$D306*$Y306,$G306)+IFERROR(IF(AND($V306<=AA$1,$W306>=AA$1),INDEX(Reliability!F$23:F$50,MATCH($T306,Reliability!$C$23:$C$50,0)),0),0)*$H306*$X306*$Y306),$D306)*$R306","v":0},{"$f":"MIN((IFERROR(IF(AND($V306<=AB$1,$W306>=AB$1),INDEX(Reliability!G$23:G$50,MATCH($S306,Reliability!$C$23:$C$50,0)),0),0)*IF($T306=\"n/a\",$D306*$Y306,$G306)+IFERROR(IF(AND($V306<=AB$1,$W306>=AB$1),INDEX(Reliability!G$23:G$50,MATCH($T306,Reliability!$C$23:$C$50,0)),0),0)*$H306*$X306*$Y306),$D306)*$R306","v":0},{"$f":"MIN((IFERROR(IF(AND($V306<=AC$1,$W306>=AC$1),INDEX(Reliability!H$23:H$50,MATCH($S306,Reliability!$C$23:$C$50,0)),0),0)*IF($T306=\"n/a\",$D306*$Y306,$G306)+IFERROR(IF(AND($V306<=AC$1,$W306>=AC$1),INDEX(Reliability!H$23:H$50,MATCH($T306,Reliability!$C$23:$C$50,0)),0),0)*$H306*$X306*$Y306),$D306)*$R306","v":0},{"$f":"MIN((IFERROR(IF(AND($V306<=AD$1,$W306>=AD$1),INDEX(Reliability!I$23:I$50,MATCH($S306,Reliability!$C$23:$C$50,0)),0),0)*IF($T306=\"n/a\",$D306*$Y306,$G306)+IFERROR(IF(AND($V306<=AD$1,$W306>=AD$1),INDEX(Reliability!I$23:I$50,MATCH($T306,Reliability!$C$23:$C$50,0)),0),0)*$H306*$X306*$Y306),$D306)*$R306","v":0},{"$f":"MIN((IFERROR(IF(AND($V306<=AE$1,$W306>=AE$1),INDEX(Reliability!J$23:J$50,MATCH($S306,Reliability!$C$23:$C$50,0)),0),0)*IF($T306=\"n/a\",$D306*$Y306,$G306)+IFERROR(IF(AND($V306<=AE$1,$W306>=AE$1),INDEX(Reliability!J$23:J$50,MATCH($T306,Reliability!$C$23:$C$50,0)),0),0)*$H306*$X306*$Y306),$D306)*$R306","v":0},{"$f":"MIN((IFERROR(IF(AND($V306<=AF$1,$W306>=AF$1),INDEX(Reliability!K$23:K$50,MATCH($S306,Reliability!$C$23:$C$50,0)),0),0)*IF($T306=\"n/a\",$D306*$Y306,$G306)+IFERROR(IF(AND($V306<=AF$1,$W306>=AF$1),INDEX(Reliability!K$23:K$50,MATCH($T306,Reliability!$C$23:$C$50,0)),0),0)*$H306*$X306*$Y306),$D306)*$R306","v":0},{"$f":"MIN((IFERROR(IF(AND($V306<=AG$1,$W306>=AG$1),INDEX(Reliability!L$23:L$50,MATCH($S306,Reliability!$C$23:$C$50,0)),0),0)*IF($T306=\"n/a\",$D306*$Y306,$G306)+IFERROR(IF(AND($V306<=AG$1,$W306>=AG$1),INDEX(Reliability!L$23:L$50,MATCH($T306,Reliability!$C$23:$C$50,0)),0),0)*$H306*$X306*$Y306),$D306)*$R306","v":0},{"$f":"MIN((IFERROR(IF(AND($V306<=AH$1,$W306>=AH$1),INDEX(Reliability!M$23:M$50,MATCH($S306,Reliability!$C$23:$C$50,0)),0),0)*IF($T306=\"n/a\",$D306*$Y306,$G306)+IFERROR(IF(AND($V306<=AH$1,$W306>=AH$1),INDEX(Reliability!M$23:M$50,MATCH($T306,Reliability!$C$23:$C$50,0)),0),0)*$H306*$X306*$Y306),$D306)*$R306","v":0},{"$f":"MIN((IFERROR(IF(AND($V306<=AI$1,$W306>=AI$1),INDEX(Reliability!N$23:N$50,MATCH($S306,Reliability!$C$23:$C$50,0)),0),0)*IF($T306=\"n/a\",$D306*$Y306,$G306)+IFERROR(IF(AND($V306<=AI$1,$W306>=AI$1),INDEX(Reliability!N$23:N$50,MATCH($T306,Reliability!$C$23:$C$50,0)),0),0)*$H306*$X306*$Y306),$D306)*$R306","v":0},{"$f":"MIN((IFERROR(IF(AND($V306<=AJ$1,$W306>=AJ$1),INDEX(Reliability!O$23:O$50,MATCH($S306,Reliability!$C$23:$C$50,0)),0),0)*IF($T306=\"n/a\",$D306*$Y306,$G306)+IFERROR(IF(AND($V306<=AJ$1,$W306>=AJ$1),INDEX(Reliability!O$23:O$50,MATCH($T306,Reliability!$C$23:$C$50,0)),0),0)*$H306*$X306*$Y306),$D306)*$R306","v":0},{"$f":"MIN((IFERROR(IF(AND($V306<=AK$1,$W306>=AK$1),INDEX(Reliability!P$23:P$50,MATCH($S306,Reliability!$C$23:$C$50,0)),0),0)*IF($T306=\"n/a\",$D306*$Y306,$G306)+IFERROR(IF(AND($V306<=AK$1,$W306>=AK$1),INDEX(Reliability!P$23:P$50,MATCH($T306,Reliability!$C$23:$C$50,0)),0),0)*$H306*$X306*$Y306),$D306)*$R306","v":0}]
[null,{"$f":"unique_contracts!B308","v":0},{"$f":"unique_contracts!D308","v":0},{"$f":"unique_contracts!J308","v":0},{"$f":"unique_contracts!M308","v":0},{"$f":"unique_contracts!N308","v":0},{"$f":"unique_contracts!P308","v":0},{"$f":"unique_contracts!R308","v":0},{"$f":"unique_contracts!V308","v":0},{"$f":"unique_contracts!AB308","v":0},{"$f":"unique_contracts!AM308","v":0},{"$f":"unique_contracts!AN308","v":0},{"$f":"unique_contracts!AO308","v":0},{"$f":"unique_contracts!AP308","v":0},{"$f":"unique_contracts!AQ308","v":0},{"$f":"unique_contracts!AR308","v":0},{"$f":"unique_contracts!BP308","v":0},0,{"$f":"IFERROR(IF(AND(I307>0,E307=\"NotHybrid\"),_xlfn.CONCAT(MAX(MIN(ROUNDDOWN(I307/D307,0),8),4),INDEX(resources!$G:$G,MATCH(B307,resources!$A:$A,0))),INDEX(resources!$G:$G,MATCH(B307,resources!$A:$A,0))),\"n/a\")","v":"n/a"},"n/a","n/a",0,0,1,1,{"$f":"MIN((IFERROR(IF(AND($V307<=Z$1,$W307>=Z$1),INDEX(Reliability!E$23:E$50,MATCH($S307,Reliability!$C$23:$C$50,0)),0),0)*IF($T307=\"n/a\",$D307*$Y307,$G307)+IFERROR(IF(AND($V307<=Z$1,$W307>=Z$1),INDEX(Reliability!E$23:E$50,MATCH($T307,Reliability!$C$23:$C$50,0)),0),0)*$H307*$X307*$Y307),$D307)*$R307","v":0},{"$f":"MIN((IFERROR(IF(AND($V307<=AA$1,$W307>=AA$1),INDEX(Reliability!F$23:F$50,MATCH($S307,Reliability!$C$23:$C$50,0)),0),0)*IF($T307=\"n/a\",$D307*$Y307,$G307)+IFERROR(IF(AND($V307<=AA$1,$W307>=AA$1),INDEX(Reliability!F$23:F$50,MATCH($T307,Reliability!$C$23:$C$50,0)),0),0)*$H307*$X307*$Y307),$D307)*$R307","v":0},{"$f":"MIN((IFERROR(IF(AND($V307<=AB$1,$W307>=AB$1),INDEX(Reliability!G$23:G$50,MATCH($S307,Reliability!$C$23:$C$50,0)),0),0)*IF($T307=\"n/a\",$D307*$Y307,$G307)+IFERROR(IF(AND($V307<=AB$1,$W307>=AB$1),INDEX(Reliability!G$23:G$50,MATCH($T307,Reliability!$C$23:$C$50,0)),0),0)*$H307*$X307*$Y307),$D307)*$R307","v":0},{"$f":"MIN((IFERROR(IF(AND($V307<=AC$1,$W307>=AC$1),INDEX(Reliability!H$23:H$50,MATCH($S307,Reliability!$C$23:$C$50,0)),0),0)*IF($T307=\"n/a\",$D307*$Y307,$G307)+IFERROR(IF(AND($V307<=AC$1,$W307>=AC$1),INDEX(Reliability!H$23:H$50,MATCH($T307,Reliability!$C$23:$C$50,0)),0),0)*$H307*$X307*$Y307),$D307)*$R307","v":0},{"$f":"MIN((IFERROR(IF(AND($V307<=AD$1,$W307>=AD$1),INDEX(Reliability!I$23:I$50,MATCH($S307,Reliability!$C$23:$C$50,0)),0),0)*IF($T307=\"n/a\",$D307*$Y307,$G307)+IFERROR(IF(AND($V307<=AD$1,$W307>=AD$1),INDEX(Reliability!I$23:I$50,MATCH($T307,Reliability!$C$23:$C$50,0)),0),0)*$H307*$X307*$Y307),$D307)*$R307","v":0},{"$f":"MIN((IFERROR(IF(AND($V307<=AE$1,$W307>=AE$1),INDEX(Reliability!J$23:J$50,MATCH($S307,Reliability!$C$23:$C$50,0)),0),0)*IF($T307=\"n/a\",$D307*$Y307,$G307)+IFERROR(IF(AND($V307<=AE$1,$W307>=AE$1),INDEX(Reliability!J$23:J$50,MATCH($T307,Reliability!$C$23:$C$50,0)),0),0)*$H307*$X307*$Y307),$D307)*$R307","v":0},{"$f":"MIN((IFERROR(IF(AND($V307<=AF$1,$W307>=AF$1),INDEX(Reliability!K$23:K$50,MATCH($S307,Reliability!$C$23:$C$50,0)),0),0)*IF($T307=\"n/a\",$D307*$Y307,$G307)+IFERROR(IF(AND($V307<=AF$1,$W307>=AF$1),INDEX(Reliability!K$23:K$50,MATCH($T307,Reliability!$C$23:$C$50,0)),0),0)*$H307*$X307*$Y307),$D307)*$R307","v":0},{"$f":"MIN((IFERROR(IF(AND($V307<=AG$1,$W307>=AG$1),INDEX(Reliability!L$23:L$50,MATCH($S307,Reliability!$C$23:$C$50,0)),0),0)*IF($T307=\"n/a\",$D307*$Y307,$G307)+IFERROR(IF(AND($V307<=AG$1,$W307>=AG$1),INDEX(Reliability!L$23:L$50,MATCH($T307,Reliability!$C$23:$C$50,0)),0),0)*$H307*$X307*$Y307),$D307)*$R307","v":0},{"$f":"MIN((IFERROR(IF(AND($V307<=AH$1,$W307>=AH$1),INDEX(Reliability!M$23:M$50,MATCH($S307,Reliability!$C$23:$C$50,0)),0),0)*IF($T307=\"n/a\",$D307*$Y307,$G307)+IFERROR(IF(AND($V307<=AH$1,$W307>=AH$1),INDEX(Reliability!M$23:M$50,MATCH($T307,Reliability!$C$23:$C$50,0)),0),0)*$H307*$X307*$Y307),$D307)*$R307","v":0},{"$f":"MIN((IFERROR(IF(AND($V307<=AI$1,$W307>=AI$1),INDEX(Reliability!N$23:N$50,MATCH($S307,Reliability!$C$23:$C$50,0)),0),0)*IF($T307=\"n/a\",$D307*$Y307,$G307)+IFERROR(IF(AND($V307<=AI$1,$W307>=AI$1),INDEX(Reliability!N$23:N$50,MATCH($T307,Reliability!$C$23:$C$50,0)),0),0)*$H307*$X307*$Y307),$D307)*$R307","v":0},{"$f":"MIN((IFERROR(IF(AND($V307<=AJ$1,$W307>=AJ$1),INDEX(Reliability!O$23:O$50,MATCH($S307,Reliability!$C$23:$C$50,0)),0),0)*IF($T307=\"n/a\",$D307*$Y307,$G307)+IFERROR(IF(AND($V307<=AJ$1,$W307>=AJ$1),INDEX(Reliability!O$23:O$50,MATCH($T307,Reliability!$C$23:$C$50,0)),0),0)*$H307*$X307*$Y307),$D307)*$R307","v":0},{"$f":"MIN((IFERROR(IF(AND($V307<=AK$1,$W307>=AK$1),INDEX(Reliability!P$23:P$50,MATCH($S307,Reliability!$C$23:$C$50,0)),0),0)*IF($T307=\"n/a\",$D307*$Y307,$G307)+IFERROR(IF(AND($V307<=AK$1,$W307>=AK$1),INDEX(Reliability!P$23:P$50,MATCH($T307,Reliability!$C$23:$C$50,0)),0),0)*$H307*$X307*$Y307),$D307)*$R307","v":0}]
[null,{"$f":"unique_contracts!B309","v":0},{"$f":"unique_contracts!D309","v":0},{"$f":"unique_contracts!J309","v":0},{"$f":"unique_contracts!M309","v":0},{"$f":"unique_contracts!N309","v":0},{"$f":"unique_contracts!P309","v":0},{"$f":"unique_contracts!R309","v":0},{"$f":"unique_contracts!V309","v":0},{"$f":"unique_contracts!AB309","v":0},{"$f":"unique_contracts!AM309","v":0},{"$f":"unique_contracts!AN309","v":0},{"$f":"unique_contracts!AO309","v":0},{"$f":"unique_contracts!AP309","v":0},{"$f":"unique_contracts!AQ309","v":0},{"$f":"unique_contracts!AR309","v":0},{"$f":"unique_contracts!BP309","v":0},0,{"$f":"IFERROR(IF(AND(I308>0,E308=\"NotHybrid\"),_xlfn.CONCAT(MAX(MIN(ROUNDDOWN(I308/D308,0),8),4),INDEX(resources!$G:$G,MATCH(B308,resources!$A:$A,0))),INDEX(resources!$G:$G,MATCH(B308,resources!$A:$A,0))),\"n/a\")","v":"n/a"},"n/a","n/a",0,0,1,1,{"$f":"MIN((IFERROR(IF(AND($V308<=Z$1,$W308>=Z$1),INDEX(Reliability!E$23:E$50,MATCH($S308,Reliability!$C$23:$C$50,0)),0),0)*IF($T308=\"n/a\",$D308*$Y308,$G308)+IFERROR(IF(AND($V308<=Z$1,$W308>=Z$1),INDEX(Reliability!E$23:E$50,MATCH($T308,Reliability!$C$23:$C$50,0)),0),0)*$H308*$X308*$Y308),$D308)*$R308","v":0},{"$f":"MIN((IFERROR(IF(AND($V308<=AA$1,$W308>=AA$1),INDEX(Reliability!F$23:F$50,MATCH($S308,Reliability!$C$23:$C$50,0)),0),0)*IF($T308=\"n/a\",$D308*$Y308,$G308)+IFERROR(IF(AND($V308<=AA$1,$W308>=AA$1),INDEX(Reliability!F$23:F$50,MATCH($T308,Reliability!$C$23:$C$50,0)),0),0)*$H308*$X308*$Y308),$D308)*$R308","v":0},{"$f":"MIN((IFERROR(IF(AND($V308<=AB$1,$W308>=AB$1),INDEX(Reliability!G$23:G$50,MATCH($S308,Reliability!$C$23:$C$50,0)),0),0)*IF($T308=\"n/a\",$D308*$Y308,$G308)+IFERROR(IF(AND($V308<=AB$1,$W308>=AB$1),INDEX(Reliability!G$23:G$50,MATCH($T308,Reliability!$C$23:$C$50,0)),0),0)*$H308*$X308*$Y308),$D308)*$R308","v":0},{"$f":"MIN((IFERROR(IF(AND($V308<=AC$1,$W308>=AC$1),INDEX(Reliability!H$23:H$50,MATCH($S308,Reliability!$C$23:$C$50,0)),0),0)*IF($T308=\"n/a\",$D308*$Y308,$G308)+IFERROR(IF(AND($V308<=AC$1,$W308>=AC$1),INDEX(Reliability!H$23:H$50,MATCH($T308,Reliability!$C$23:$C$50,0)),0),0)*$H308*$X308*$Y308),$D308)*$R308","v":0},{"$f":"MIN((IFERROR(IF(AND($V308<=AD$1,$W308>=AD$1),INDEX(Reliability!I$23:I$50,MATCH($S308,Reliability!$C$23:$C$50,0)),0),0)*IF($T308=\"n/a\",$D308*$Y308,$G308)+IFERROR(IF(AND($V308<=AD$1,$W308>=AD$1),INDEX(Reliability!I$23:I$50,MATCH($T308,Reliability!$C$23:$C$50,0)),0),0)*$H308*$X308*$Y308),$D308)*$R308","v":0},{"$f":"MIN((IFERROR(IF(AND($V308<=AE$1,$W308>=AE$1),INDEX(Reliability!J$23:J$50,MATCH($S308,Reliability!$C$23:$C$50,0)),0),0)*IF($T308=\"n/a\",$D308*$Y308,$G308)+IFERROR(IF(AND($V308<=AE$1,$W308>=AE$1),INDEX(Reliability!J$23:J$50,MATCH($T308,Reliability!$C$23:$C$50,0)),0),0)*$H308*$X308*$Y308),$D308)*$R308","v":0},{"$f":"MIN((IFERROR(IF(AND($V308<=AF$1,$W308>=AF$1),INDEX(Reliability!K$23:K$50,MATCH($S308,Reliability!$C$23:$C$50,0)),0),0)*IF($T308=\"n/a\",$D308*$Y308,$G308)+IFERROR(IF(AND($V308<=AF$1,$W308>=AF$1),INDEX(Reliability!K$23:K$50,MATCH($T308,Reliability!$C$23:$C$50,0)),0),0)*$H308*$X308*$Y308),$D308)*$R308","v":0},{"$f":"MIN((IFERROR(IF(AND($V308<=AG$1,$W308>=AG$1),INDEX(Reliability!L$23:L$50,MATCH($S308,Reliability!$C$23:$C$50,0)),0),0)*IF($T308=\"n/a\",$D308*$Y308,$G308)+IFERROR(IF(AND($V308<=AG$1,$W308>=AG$1),INDEX(Reliability!L$23:L$50,MATCH($T308,Reliability!$C$23:$C$50,0)),0),0)*$H308*$X308*$Y308),$D308)*$R308","v":0},{"$f":"MIN((IFERROR(IF(AND($V308<=AH$1,$W308>=AH$1),INDEX(Reliability!M$23:M$50,MATCH($S308,Reliability!$C$23:$C$50,0)),0),0)*IF($T308=\"n/a\",$D308*$Y308,$G308)+IFERROR(IF(AND($V308<=AH$1,$W308>=AH$1),INDEX(Reliability!M$23:M$50,MATCH($T308,Reliability!$C$23:$C$50,0)),0),0)*$H308*$X308*$Y308),$D308)*$R308","v":0},{"$f":"MIN((IFERROR(IF(AND($V308<=AI$1,$W308>=AI$1),INDEX(Reliability!N$23:N$50,MATCH($S308,Reliability!$C$23:$C$50,0)),0),0)*IF($T308=\"n/a\",$D308*$Y308,$G308)+IFERROR(IF(AND($V308<=AI$1,$W308>=AI$1),INDEX(Reliability!N$23:N$50,MATCH($T308,Reliability!$C$23:$C$50,0)),0),0)*$H308*$X308*$Y308),$D308)*$R308","v":0},{"$f":"MIN((IFERROR(IF(AND($V308<=AJ$1,$W308>=AJ$1),INDEX(Reliability!O$23:O$50,MATCH($S308,Reliability!$C$23:$C$50,0)),0),0)*IF($T308=\"n/a\",$D308*$Y308,$G308)+IFERROR(IF(AND($V308<=AJ$1,$W308>=AJ$1),INDEX(Reliability!O$23:O$50,MATCH($T308,Reliability!$C$23:$C$50,0)),0),0)*$H308*$X308*$Y308),$D308)*$R308","v":0},{"$f":"MIN((IFERROR(IF(AND($V308<=AK$1,$W308>=AK$1),INDEX(Reliability!P$23:P$50,MATCH($S308,Reliability!$C$23:$C$50,0)),0),0)*IF($T308=\"n/a\",$D308*$Y308,$G308)+IFERROR(IF(AND($V308<=AK$1,$W308>=AK$1),INDEX(Reliability!P$23:P$50,MATCH($T308,Reliability!$C$23:$C$50,0)),0),0)*$H308*$X308*$Y308),$D308)*$R308","v":0}]
[null,{"$f":"unique_contracts!B310","v":0},{"$f":"unique_contracts!D310","v":0},{"$f":"unique_contracts!J310","v":0},{"$f":"unique_contracts!M310","v":0},{"$f":"unique_contracts!N310","v":0},{"$f":"unique_contracts!P310","v":0},{"$f":"unique_contracts!R310","v":0},{"$f":"unique_contracts!V310","v":0},{"$f":"unique_contracts!AB310","v":0},{"$f":"unique_contracts!AM310","v":0},{"$f":"unique_contracts!AN310","v":0},{"$f":"unique_contracts!AO310","v":0},{"$f":"unique_contracts!AP310","v":0},{"$f":"unique_contracts!AQ310","v":0},{"$f":"unique_contracts!AR310","v":0},{"$f":"unique_contracts!BP310","v":0},0,{"$f":"IFERROR(IF(AND(I309>0,E309=\"NotHybrid\"),_xlfn.CONCAT(MAX(MIN(ROUNDDOWN(I309/D309,0),8),4),INDEX(resources!$G:$G,MATCH(B309,resources!$A:$A,0))),INDEX(resources!$G:$G,MATCH(B309,resources!$A:$A,0))),\"n/a\")","v":"n/a"},"n/a","n/a",0,0,1,1,{"$f":"MIN((IFERROR(IF(AND($V309<=Z$1,$W309>=Z$1),INDEX(Reliability!E$23:E$50,MATCH($S309,Reliability!$C$23:$C$50,0)),0),0)*IF($T309=\"n/a\",$D309*$Y309,$G309)+IFERROR(IF(AND($V309<=Z$1,$W309>=Z$1),INDEX(Reliability!E$23:E$50,MATCH($T309,Reliability!$C$23:$C$50,0)),0),0)*$H309*$X309*$Y309),$D309)*$R309","v":0},{"$f":"MIN((IFERROR(IF(AND($V309<=AA$1,$W309>=AA$1),INDEX(Reliability!F$23:F$50,MATCH($S309,Reliability!$C$23:$C$50,0)),0),0)*IF($T309=\"n/a\",$D309*$Y309,$G309)+IFERROR(IF(AND($V309<=AA$1,$W309>=AA$1),INDEX(Reliability!F$23:F$50,MATCH($T309,Reliability!$C$23:$C$50,0)),0),0)*$H309*$X309*$Y309),$D309)*$R309","v":0},{"$f":"MIN((IFERROR(IF(AND($V309<=AB$1,$W309>=AB$1),INDEX(Reliability!G$23:G$50,MATCH($S309,Reliability!$C$23:$C$50,0)),0),0)*IF($T309=\"n/a\",$D309*$Y309,$G309)+IFERROR(IF(AND($V309<=AB$1,$W309>=AB$1),INDEX(Reliability!G$23:G$50,MATCH($T309,Reliability!$C$23:$C$50,0)),0),0)*$H309*$X309*$Y309),$D309)*$R309","v":0},{"$f":"MIN((IFERROR(IF(AND($V309<=AC$1,$W309>=AC$1),INDEX(Reliability!H$23:H$50,MATCH($S309,Reliability!$C$23:$C$50,0)),0),0)*IF($T309=\"n/a\",$D309*$Y309,$G309)+IFERROR(IF(AND($V309<=AC$1,$W309>=AC$1),INDEX(Reliability!H$23:H$50,MATCH($T309,Reliability!$C$23:$C$50,0)),0),0)*$H309*$X309*$Y309),$D309)*$R309","v":0},{"$f":"MIN((IFERROR(IF(AND($V309<=AD$1,$W309>=AD$1),INDEX(Reliability!I$23:I$50,MATCH($S309,Reliability!$C$23:$C$50,0)),0),0)*IF($T309=\"n/a\",$D309*$Y309,$G309)+IFERROR(IF(AND($V309<=AD$1,$W309>=AD$1),INDEX(Reliability!I$23:I$50,MATCH($T309,Reliability!$C$23:$C$50,0)),0),0)*$H309*$X309*$Y309),$D309)*$R309","v":0},{"$f":"MIN((IFERROR(IF(AND($V309<=AE$1,$W309>=AE$1),INDEX(Reliability!J$23:J$50,MATCH($S309,Reliability!$C$23:$C$50,0)),0),0)*IF($T309=\"n/a\",$D309*$Y309,$G309)+IFERROR(IF(AND($V309<=AE$1,$W309>=AE$1),INDEX(Reliability!J$23:J$50,MATCH($T309,Reliability!$C$23:$C$50,0)),0),0)*$H309*$X309*$Y309),$D309)*$R309","v":0},{"$f":"MIN((IFERROR(IF(AND($V309<=AF$1,$W309>=AF$1),INDEX(Reliability!K$23:K$50,MATCH($S309,Reliability!$C$23:$C$50,0)),0),0)*IF($T309=\"n/a\",$D309*$Y309,$G309)+IFERROR(IF(AND($V309<=AF$1,$W309>=AF$1),INDEX(Reliability!K$23:K$50,MATCH($T309,Reliability!$C$23:$C$50,0)),0),0)*$H309*$X309*$Y309),$D309)*$R309","v":0},{"$f":"MIN((IFERROR(IF(AND($V309<=AG$1,$W309>=AG$1),INDEX(Reliability!L$23:L$50,MATCH($S309,Reliability!$C$23:$C$50,0)),0),0)*IF($T309=\"n/a\",$D309*$Y309,$G309)+IFERROR(IF(AND($V309<=AG$1,$W309>=AG$1),INDEX(Reliability!L$23:L$50,MATCH($T309,Reliability!$C$23:$C$50,0)),0),0)*$H309*$X309*$Y309),$D309)*$R309","v":0},{"$f":"MIN((IFERROR(IF(AND($V309<=AH$1,$W309>=AH$1),INDEX(Reliability!M$23:M$50,MATCH($S309,Reliability!$C$23:$C$50,0)),0),0)*IF($T309=\"n/a\",$D309*$Y309,$G309)+IFERROR(IF(AND($V309<=AH$1,$W309>=AH$1),INDEX(Reliability!M$23:M$50,MATCH($T309,Reliability!$C$23:$C$50,0)),0),0)*$H309*$X309*$Y309),$D309)*$R309","v":0},{"$f":"MIN((IFERROR(IF(AND($V309<=AI$1,$W309>=AI$1),INDEX(Reliability!N$23:N$50,MATCH($S309,Reliability!$C$23:$C$50,0)),0),0)*IF($T309=\"n/a\",$D309*$Y309,$G309)+IFERROR(IF(AND($V309<=AI$1,$W309>=AI$1),INDEX(Reliability!N$23:N$50,MATCH($T309,Reliability!$C$23:$C$50,0)),0),0)*$H309*$X309*$Y309),$D309)*$R309","v":0},{"$f":"MIN((IFERROR(IF(AND($V309<=AJ$1,$W309>=AJ$1),INDEX(Reliability!O$23:O$50,MATCH($S309,Reliability!$C$23:$C$50,0)),0),0)*IF($T309=\"n/a\",$D309*$Y309,$G309)+IFERROR(IF(AND($V309<=AJ$1,$W309>=AJ$1),INDEX(Reliability!O$23:O$50,MATCH($T309,Reliability!$C$23:$C$50,0)),0),0)*$H309*$X309*$Y309),$D309)*$R309","v":0},{"$f":"MIN((IFERROR(IF(AND($V309<=AK$1,$W309>=AK$1),INDEX(Reliability!P$23:P$50,MATCH($S309,Reliability!$C$23:$C$50,0)),0),0)*IF($T309=\"n/a\",$D309*$Y309,$G309)+IFERROR(IF(AND($V309<=AK$1,$W309>=AK$1),INDEX(Reliability!P$23:P$50,MATCH($T309,Reliability!$C$23:$C$50,0)),0),0)*$H309*$X309*$Y309),$D309)*$R309","v":0}]
[null,{"$f":"unique_contracts!B311","v":0},{"$f":"unique_contracts!D311","v":0},{"$f":"unique_contracts!J311","v":0},{"$f":"unique_contracts!M311","v":0},{"$f":"unique_contracts!N311","v":0},{"$f":"unique_contracts!P311","v":0},{"$f":"unique_contracts!R311","v":0},{"$f":"unique_contracts!V311","v":0},{"$f":"unique_contracts!AB311","v":0},{"$f":"unique_contracts!AM311","v":0},{"$f":"unique_contracts!AN311","v":0},{"$f":"unique_contracts!AO311","v":0},{"$f":"unique_contracts!AP311","v":0},{"$f":"unique_contracts!AQ311","v":0},{"$f":"unique_contracts!AR311","v":0},{"$f":"unique_contracts!BP311","v":0},0,{"$f":"IFERROR(IF(AND(I310>0,E310=\"NotHybrid\"),_xlfn.CONCAT(MAX(MIN(ROUNDDOWN(I310/D310,0),8),4),INDEX(resources!$G:$G,MATCH(B310,resources!$A:$A,0))),INDEX(resources!$G:$G,MATCH(B310,resources!$A:$A,0))),\"n/a\")","v":"n/a"},"n/a","n/a",0,0,1,1,{"$f":"MIN((IFERROR(IF(AND($V310<=Z$1,$W310>=Z$1),INDEX(Reliability!E$23:E$50,MATCH($S310,Reliability!$C$23:$C$50,0)),0),0)*IF($T310=\"n/a\",$D310*$Y310,$G310)+IFERROR(IF(AND($V310<=Z$1,$W310>=Z$1),INDEX(Reliability!E$23:E$50,MATCH($T310,Reliability!$C$23:$C$50,0)),0),0)*$H310*$X310*$Y310),$D310)*$R310","v":0},{"$f":"MIN((IFERROR(IF(AND($V310<=AA$1,$W310>=AA$1),INDEX(Reliability!F$23:F$50,MATCH($S310,Reliability!$C$23:$C$50,0)),0),0)*IF($T310=\"n/a\",$D310*$Y310,$G310)+IFERROR(IF(AND($V310<=AA$1,$W310>=AA$1),INDEX(Reliability!F$23:F$50,MATCH($T310,Reliability!$C$23:$C$50,0)),0),0)*$H310*$X310*$Y310),$D310)*$R310","v":0},{"$f":"MIN((IFERROR(IF(AND($V310<=AB$1,$W310>=AB$1),INDEX(Reliability!G$23:G$50,MATCH($S310,Reliability!$C$23:$C$50,0)),0),0)*IF($T310=\"n/a\",$D310*$Y310,$G310)+IFERROR(IF(AND($V310<=AB$1,$W310>=AB$1),INDEX(Reliability!G$23:G$50,MATCH($T310,Reliability!$C$23:$C$50,0)),0),0)*$H310*$X310*$Y310),$D310)*$R310","v":0},{"$f":"MIN((IFERROR(IF(AND($V310<=AC$1,$W310>=AC$1),INDEX(Reliability!H$23:H$50,MATCH($S310,Reliability!$C$23:$C$50,0)),0),0)*IF($T310=\"n/a\",$D310*$Y310,$G310)+IFERROR(IF(AND($V310<=AC$1,$W310>=AC$1),INDEX(Reliability!H$23:H$50,MATCH($T310,Reliability!$C$23:$C$50,0)),0),0)*$H310*$X310*$Y310),$D310)*$R310","v":0},{"$f":"MIN((IFERROR(IF(AND($V310<=AD$1,$W310>=AD$1),INDEX(Reliability!I$23:I$50,MATCH($S310,Reliability!$C$23:$C$50,0)),0),0)*IF($T310=\"n/a\",$D310*$Y310,$G310)+IFERROR(IF(AND($V310<=AD$1,$W310>=AD$1),INDEX(Reliability!I$23:I$50,MATCH($T310,Reliability!$C$23:$C$50,0)),0),0)*$H310*$X310*$Y310),$D310)*$R310","v":0},{"$f":"MIN((IFERROR(IF(AND($V310<=AE$1,$W310>=AE$1),INDEX(Reliability!J$23:J$50,MATCH($S310,Reliability!$C$23:$C$50,0)),0),0)*IF($T310=\"n/a\",$D310*$Y310,$G310)+IFERROR(IF(AND($V310<=AE$1,$W310>=AE$1),INDEX(Reliability!J$23:J$50,MATCH($T310,Reliability!$C$23:$C$50,0)),0),0)*$H310*$X310*$Y310),$D310)*$R310","v":0},{"$f":"MIN((IFERROR(IF(AND($V310<=AF$1,$W310>=AF$1),INDEX(Reliability!K$23:K$50,MATCH($S310,Reliability!$C$23:$C$50,0)),0),0)*IF($T310=\"n/a\",$D310*$Y310,$G310)+IFERROR(IF(AND($V310<=AF$1,$W310>=AF$1),INDEX(Reliability!K$23:K$50,MATCH($T310,Reliability!$C$23:$C$50,0)),0),0)*$H310*$X310*$Y310),$D310)*$R310","v":0},{"$f":"MIN((IFERROR(IF(AND($V310<=AG$1,$W310>=AG$1),INDEX(Reliability!L$23:L$50,MATCH($S310,Reliability!$C$23:$C$50,0)),0),0)*IF($T310=\"n/a\",$D310*$Y310,$G310)+IFERROR(IF(AND($V310<=AG$1,$W310>=AG$1),INDEX(Reliability!L$23:L$50,MATCH($T310,Reliability!$C$23:$C$50,0)),0),0)*$H310*$X310*$Y310),$D310)*$R310","v":0},{"$f":"MIN((IFERROR(IF(AND($V310<=AH$1,$W310>=AH$1),INDEX(Reliability!M$23:M$50,MATCH($S310,Reliability!$C$23:$C$50,0)),0),0)*IF($T310=\"n/a\",$D310*$Y310,$G310)+IFERROR(IF(AND($V310<=AH$1,$W310>=AH$1),INDEX(Reliability!M$23:M$50,MATCH($T310,Reliability!$C$23:$C$50,0)),0),0)*$H310*$X310*$Y310),$D310)*$R310","v":0},{"$f":"MIN((IFERROR(IF(AND($V310<=AI$1,$W310>=AI$1),INDEX(Reliability!N$23:N$50,MATCH($S310,Reliability!$C$23:$C$50,0)),0),0)*IF($T310=\"n/a\",$D310*$Y310,$G310)+IFERROR(IF(AND($V310<=AI$1,$W310>=AI$1),INDEX(Reliability!N$23:N$50,MATCH($T310,Reliability!$C$23:$C$50,0)),0),0)*$H310*$X310*$Y310),$D310)*$R310","v":0},{"$f":"MIN((IFERROR(IF(AND($V310<=AJ$1,$W310>=AJ$1),INDEX(Reliability!O$23:O$50,MATCH($S310,Reliability!$C$23:$C$50,0)),0),0)*IF($T310=\"n/a\",$D310*$Y310,$G310)+IFERROR(IF(AND($V310<=AJ$1,$W310>=AJ$1),INDEX(Reliability!O$23:O$50,MATCH($T310,Reliability!$C$23:$C$50,0)),0),0)*$H310*$X310*$Y310),$D310)*$R310","v":0},{"$f":"MIN((IFERROR(IF(AND($V310<=AK$1,$W310>=AK$1),INDEX(Reliability!P$23:P$50,MATCH($S310,Reliability!$C$23:$C$50,0)),0),0)*IF($T310=\"n/a\",$D310*$Y310,$G310)+IFERROR(IF(AND($V310<=AK$1,$W310>=AK$1),INDEX(Reliability!P$23:P$50,MATCH($T310,Reliability!$C$23:$C$50,0)),0),0)*$H310*$X310*$Y310),$D310)*$R310","v":0}]
[null,{"$f":"unique_contracts!B312","v":0},{"$f":"unique_contracts!D312","v":0},{"$f":"unique_contracts!J312","v":0},{"$f":"unique_contracts!M312","v":0},{"$f":"unique_contracts!N312","v":0},{"$f":"unique_contracts!P312","v":0},{"$f":"unique_contracts!R312","v":0},{"$f":"unique_contracts!V312","v":0},{"$f":"unique_contracts!AB312","v":0},{"$f":"unique_contracts!AM312","v":0},{"$f":"unique_contracts!AN312","v":0},{"$f":"unique_contracts!AO312","v":0},{"$f":"unique_contracts!AP312","v":0},{"$f":"unique_contracts!AQ312","v":0},{"$f":"unique_contracts!AR312","v":0},{"$f":"unique_contracts!BP312","v":0},0,{"$f":"IFERROR(IF(AND(I311>0,E311=\"NotHybrid\"),_xlfn.CONCAT(MAX(MIN(ROUNDDOWN(I311/D311,0),8),4),INDEX(resources!$G:$G,MATCH(B311,resources!$A:$A,0))),INDEX(resources!$G:$G,MATCH(B311,resources!$A:$A,0))),\"n/a\")","v":"n/a"},"n/a","n/a",0,0,1,1,{"$f":"MIN((IFERROR(IF(AND($V311<=Z$1,$W311>=Z$1),INDEX(Reliability!E$23:E$50,MATCH($S311,Reliability!$C$23:$C$50,0)),0),0)*IF($T311=\"n/a\",$D311*$Y311,$G311)+IFERROR(IF(AND($V311<=Z$1,$W311>=Z$1),INDEX(Reliability!E$23:E$50,MATCH($T311,Reliability!$C$23:$C$50,0)),0),0)*$H311*$X311*$Y311),$D311)*$R311","v":0},{"$f":"MIN((IFERROR(IF(AND($V311<=AA$1,$W311>=AA$1),INDEX(Reliability!F$23:F$50,MATCH($S311,Reliability!$C$23:$C$50,0)),0),0)*IF($T311=\"n/a\",$D311*$Y311,$G311)+IFERROR(IF(AND($V311<=AA$1,$W311>=AA$1),INDEX(Reliability!F$23:F$50,MATCH($T311,Reliability!$C$23:$C$50,0)),0),0)*$H311*$X311*$Y311),$D311)*$R311","v":0},{"$f":"MIN((IFERROR(IF(AND($V311<=AB$1,$W311>=AB$1),INDEX(Reliability!G$23:G$50,MATCH($S311,Reliability!$C$23:$C$50,0)),0),0)*IF($T311=\"n/a\",$D311*$Y311,$G311)+IFERROR(IF(AND($V311<=AB$1,$W311>=AB$1),INDEX(Reliability!G$23:G$50,MATCH($T311,Reliability!$C$23:$C$50,0)),0),0)*$H311*$X311*$Y311),$D311)*$R311","v":0},{"$f":"MIN((IFERROR(IF(AND($V311<=AC$1,$W311>=AC$1),INDEX(Reliability!H$23:H$50,MATCH($S311,Reliability!$C$23:$C$50,0)),0),0)*IF($T311=\"n/a\",$D311*$Y311,$G311)+IFERROR(IF(AND($V311<=AC$1,$W311>=AC$1),INDEX(Reliability!H$23:H$50,MATCH($T311,Reliability!$C$23:$C$50,0)),0),0)*$H311*$X311*$Y311),$D311)*$R311","v":0},{"$f":"MIN((IFERROR(IF(AND($V311<=AD$1,$W311>=AD$1),INDEX(Reliability!I$23:I$50,MATCH($S311,Reliability!$C$23:$C$50,0)),0),0)*IF($T311=\"n/a\",$D311*$Y311,$G311)+IFERROR(IF(AND($V311<=AD$1,$W311>=AD$1),INDEX(Reliability!I$23:I$50,MATCH($T311,Reliability!$C$23:$C$50,0)),0),0)*$H311*$X311*$Y311),$D311)*$R311","v":0},{"$f":"MIN((IFERROR(IF(AND($V311<=AE$1,$W311>=AE$1),INDEX(Reliability!J$23:J$50,MATCH($S311,Reliability!$C$23:$C$50,0)),0),0)*IF($T311=\"n/a\",$D311*$Y311,$G311)+IFERROR(IF(AND($V311<=AE$1,$W311>=AE$1),INDEX(Reliability!J$23:J$50,MATCH($T311,Reliability!$C$23:$C$50,0)),0),0)*$H311*$X311*$Y311),$D311)*$R311","v":0},{"$f":"MIN((IFERROR(IF(AND($V311<=AF$1,$W311>=AF$1),INDEX(Reliability!K$23:K$50,MATCH($S311,Reliability!$C$23:$C$50,0)),0),0)*IF($T311=\"n/a\",$D311*$Y311,$G311)+IFERROR(IF(AND($V311<=AF$1,$W311>=AF$1),INDEX(Reliability!K$23:K$50,MATCH($T311,Reliability!$C$23:$C$50,0)),0),0)*$H311*$X311*$Y311),$D311)*$R311","v":0},{"$f":"MIN((IFERROR(IF(AND($V311<=AG$1,$W311>=AG$1),INDEX(Reliability!L$23:L$50,MATCH($S311,Reliability!$C$23:$C$50,0)),0),0)*IF($T311=\"n/a\",$D311*$Y311,$G311)+IFERROR(IF(AND($V311<=AG$1,$W311>=AG$1),INDEX(Reliability!L$23:L$50,MATCH($T311,Reliability!$C$23:$C$50,0)),0),0)*$H311*$X311*$Y311),$D311)*$R311","v":0},{"$f":"MIN((IFERROR(IF(AND($V311<=AH$1,$W311>=AH$1),INDEX(Reliability!M$23:M$50,MATCH($S311,Reliability!$C$23:$C$50,0)),0),0)*IF($T311=\"n/a\",$D311*$Y311,$G311)+IFERROR(IF(AND($V311<=AH$1,$W311>=AH$1),INDEX(Reliability!M$23:M$50,MATCH($T311,Reliability!$C$23:$C$50,0)),0),0)*$H311*$X311*$Y311),$D311)*$R311","v":0},{"$f":"MIN((IFERROR(IF(AND($V311<=AI$1,$W311>=AI$1),INDEX(Reliability!N$23:N$50,MATCH($S311,Reliability!$C$23:$C$50,0)),0),0)*IF($T311=\"n/a\",$D311*$Y311,$G311)+IFERROR(IF(AND($V311<=AI$1,$W311>=AI$1),INDEX(Reliability!N$23:N$50,MATCH($T311,Reliability!$C$23:$C$50,0)),0),0)*$H311*$X311*$Y311),$D311)*$R311","v":0},{"$f":"MIN((IFERROR(IF(AND($V311<=AJ$1,$W311>=AJ$1),INDEX(Reliability!O$23:O$50,MATCH($S311,Reliability!$C$23:$C$50,0)),0),0)*IF($T311=\"n/a\",$D311*$Y311,$G311)+IFERROR(IF(AND($V311<=AJ$1,$W311>=AJ$1),INDEX(Reliability!O$23:O$50,MATCH($T311,Reliability!$C$23:$C$50,0)),0),0)*$H311*$X311*$Y311),$D311)*$R311","v":0},{"$f":"MIN((IFERROR(IF(AND($V311<=AK$1,$W311>=AK$1),INDEX(Reliability!P$23:P$50,MATCH($S311,Reliability!$C$23:$C$50,0)),0),0)*IF($T311=\"n/a\",$D311*$Y311,$G311)+IFERROR(IF(AND($V311<=AK$1,$W311>=AK$1),INDEX(Reliability!P$23:P$50,MATCH($T311,Reliability!$C$23:$C$50,0)),0),0)*$H311*$X311*$Y311),$D311)*$R311","v":0}]
[null,{"$f":"unique_contracts!B313","v":0},{"$f":"unique_contracts!D313","v":0},{"$f":"unique_contracts!J313","v":0},{"$f":"unique_contracts!M313","v":0},{"$f":"unique_contracts!N313","v":0},{"$f":"unique_contracts!P313","v":0},{"$f":"unique_contracts!R313","v":0},{"$f":"unique_contracts!V313","v":0},{"$f":"unique_contracts!AB313","v":0},{"$f":"unique_contracts!AM313","v":0},{"$f":"unique_contracts!AN313","v":0},{"$f":"unique_contracts!AO313","v":0},{"$f":"unique_contracts!AP313","v":0},{"$f":"unique_contracts!AQ313","v":0},{"$f":"unique_contracts!AR313","v":0},{"$f":"unique_contracts!BP313","v":0},0,{"$f":"IFERROR(IF(AND(I312>0,E312=\"NotHybrid\"),_xlfn.CONCAT(MAX(MIN(ROUNDDOWN(I312/D312,0),8),4),INDEX(resources!$G:$G,MATCH(B312,resources!$A:$A,0))),INDEX(resources!$G:$G,MATCH(B312,resources!$A:$A,0))),\"n/a\")","v":"n/a"},"n/a","n/a",0,0,1,1,{"$f":"MIN((IFERROR(IF(AND($V312<=Z$1,$W312>=Z$1),INDEX(Reliability!E$23:E$50,MATCH($S312,Reliability!$C$23:$C$50,0)),0),0)*IF($T312=\"n/a\",$D312*$Y312,$G312)+IFERROR(IF(AND($V312<=Z$1,$W312>=Z$1),INDEX(Reliability!E$23:E$50,MATCH($T312,Reliability!$C$23:$C$50,0)),0),0)*$H312*$X312*$Y312),$D312)*$R312","v":0},{"$f":"MIN((IFERROR(IF(AND($V312<=AA$1,$W312>=AA$1),INDEX(Reliability!F$23:F$50,MATCH($S312,Reliability!$C$23:$C$50,0)),0),0)*IF($T312=\"n/a\",$D312*$Y312,$G312)+IFERROR(IF(AND($V312<=AA$1,$W312>=AA$1),INDEX(Reliability!F$23:F$50,MATCH($T312,Reliability!$C$23:$C$50,0)),0),0)*$H312*$X312*$Y312),$D312)*$R312","v":0},{"$f":"MIN((IFERROR(IF(AND($V312<=AB$1,$W312>=AB$1),INDEX(Reliability!G$23:G$50,MATCH($S312,Reliability!$C$23:$C$50,0)),0),0)*IF($T312=\"n/a\",$D312*$Y312,$G312)+IFERROR(IF(AND($V312<=AB$1,$W312>=AB$1),INDEX(Reliability!G$23:G$50,MATCH($T312,Reliability!$C$23:$C$50,0)),0),0)*$H312*$X312*$Y312),$D312)*$R312","v":0},{"$f":"MIN((IFERROR(IF(AND($V312<=AC$1,$W312>=AC$1),INDEX(Reliability!H$23:H$50,MATCH($S312,Reliability!$C$23:$C$50,0)),0),0)*IF($T312=\"n/a\",$D312*$Y312,$G312)+IFERROR(IF(AND($V312<=AC$1,$W312>=AC$1),INDEX(Reliability!H$23:H$50,MATCH($T312,Reliability!$C$23:$C$50,0)),0),0)*$H312*$X312*$Y312),$D312)*$R312","v":0},{"$f":"MIN((IFERROR(IF(AND($V312<=AD$1,$W312>=AD$1),INDEX(Reliability!I$23:I$50,MATCH($S312,Reliability!$C$23:$C$50,0)),0),0)*IF($T312=\"n/a\",$D312*$Y312,$G312)+IFERROR(IF(AND($V312<=AD$1,$W312>=AD$1),INDEX(Reliability!I$23:I$50,MATCH($T312,Reliability!$C$23:$C$50,0)),0),0)*$H312*$X312*$Y312),$D312)*$R312","v":0},{"$f":"MIN((IFERROR(IF(AND($V312<=AE$1,$W312>=AE$1),INDEX(Reliability!J$23:J$50,MATCH($S312,Reliability!$C$23:$C$50,0)),0),0)*IF($T312=\"n/a\",$D312*$Y312,$G312)+IFERROR(IF(AND($V312<=AE$1,$W312>=AE$1),INDEX(Reliability!J$23:J$50,MATCH($T312,Reliability!$C$23:$C$50,0)),0),0)*$H312*$X312*$Y312),$D312)*$R312","v":0},{"$f":"MIN((IFERROR(IF(AND($V312<=AF$1,$W312>=AF$1),INDEX(Reliability!K$23:K$50,MATCH($S312,Reliability!$C$23:$C$50,0)),0),0)*IF($T312=\"n/a\",$D312*$Y312,$G312)+IFERROR(IF(AND($V312<=AF$1,$W312>=AF$1),INDEX(Reliability!K$23:K$50,MATCH($T312,Reliability!$C$23:$C$50,0)),0),0)*$H312*$X312*$Y312),$D312)*$R312","v":0},{"$f":"MIN((IFERROR(IF(AND($V312<=AG$1,$W312>=AG$1),INDEX(Reliability!L$23:L$50,MATCH($S312,Reliability!$C$23:$C$50,0)),0),0)*IF($T312=\"n/a\",$D312*$Y312,$G312)+IFERROR(IF(AND($V312<=AG$1,$W312>=AG$1),INDEX(Reliability!L$23:L$50,MATCH($T312,Reliability!$C$23:$C$50,0)),0),0)*$H312*$X312*$Y312),$D312)*$R312","v":0},{"$f":"MIN((IFERROR(IF(AND($V312<=AH$1,$W312>=AH$1),INDEX(Reliability!M$23:M$50,MATCH($S312,Reliability!$C$23:$C$50,0)),0),0)*IF($T312=\"n/a\",$D312*$Y312,$G312)+IFERROR(IF(AND($V312<=AH$1,$W312>=AH$1),INDEX(Reliability!M$23:M$50,MATCH($T312,Reliability!$C$23:$C$50,0)),0),0)*$H312*$X312*$Y312),$D312)*$R312","v":0},{"$f":"MIN((IFERROR(IF(AND($V312<=AI$1,$W312>=AI$1),INDEX(Reliability!N$23:N$50,MATCH($S312,Reliability!$C$23:$C$50,0)),0),0)*IF($T312=\"n/a\",$D312*$Y312,$G312)+IFERROR(IF(AND($V312<=AI$1,$W312>=AI$1),INDEX(Reliability!N$23:N$50,MATCH($T312,Reliability!$C$23:$C$50,0)),0),0)*$H312*$X312*$Y312),$D312)*$R312","v":0},{"$f":"MIN((IFERROR(IF(AND($V312<=AJ$1,$W312>=AJ$1),INDEX(Reliability!O$23:O$50,MATCH($S312,Reliability!$C$23:$C$50,0)),0),0)*IF($T312=\"n/a\",$D312*$Y312,$G312)+IFERROR(IF(AND($V312<=AJ$1,$W312>=AJ$1),INDEX(Reliability!O$23:O$50,MATCH($T312,Reliability!$C$23:$C$50,0)),0),0)*$H312*$X312*$Y312),$D312)*$R312","v":0},{"$f":"MIN((IFERROR(IF(AND($V312<=AK$1,$W312>=AK$1),INDEX(Reliability!P$23:P$50,MATCH($S312,Reliability!$C$23:$C$50,0)),0),0)*IF($T312=\"n/a\",$D312*$Y312,$G312)+IFERROR(IF(AND($V312<=AK$1,$W312>=AK$1),INDEX(Reliability!P$23:P$50,MATCH($T312,Reliability!$C$23:$C$50,0)),0),0)*$H312*$X312*$Y312),$D312)*$R312","v":0}]
[null,{"$f":"unique_contracts!B314","v":0},{"$f":"unique_contracts!D314","v":0},{"$f":"unique_contracts!J314","v":0},{"$f":"unique_contracts!M314","v":0},{"$f":"unique_contracts!N314","v":0},{"$f":"unique_contracts!P314","v":0},{"$f":"unique_contracts!R314","v":0},{"$f":"unique_contracts!V314","v":0},{"$f":"unique_contracts!AB314","v":0},{"$f":"unique_contracts!AM314","v":0},{"$f":"unique_contracts!AN314","v":0},{"$f":"unique_contracts!AO314","v":0},{"$f":"unique_contracts!AP314","v":0},{"$f":"unique_contracts!AQ314","v":0},{"$f":"unique_contracts!AR314","v":0},{"$f":"unique_contracts!BP314","v":0},0,{"$f":"IFERROR(IF(AND(I313>0,E313=\"NotHybrid\"),_xlfn.CONCAT(MAX(MIN(ROUNDDOWN(I313/D313,0),8),4),INDEX(resources!$G:$G,MATCH(B313,resources!$A:$A,0))),INDEX(resources!$G:$G,MATCH(B313,resources!$A:$A,0))),\"n/a\")","v":"n/a"},"n/a","n/a",0,0,1,1,{"$f":"MIN((IFERROR(IF(AND($V313<=Z$1,$W313>=Z$1),INDEX(Reliability!E$23:E$50,MATCH($S313,Reliability!$C$23:$C$50,0)),0),0)*IF($T313=\"n/a\",$D313*$Y313,$G313)+IFERROR(IF(AND($V313<=Z$1,$W313>=Z$1),INDEX(Reliability!E$23:E$50,MATCH($T313,Reliability!$C$23:$C$50,0)),0),0)*$H313*$X313*$Y313),$D313)*$R313","v":0},{"$f":"MIN((IFERROR(IF(AND($V313<=AA$1,$W313>=AA$1),INDEX(Reliability!F$23:F$50,MATCH($S313,Reliability!$C$23:$C$50,0)),0),0)*IF($T313=\"n/a\",$D313*$Y313,$G313)+IFERROR(IF(AND($V313<=AA$1,$W313>=AA$1),INDEX(Reliability!F$23:F$50,MATCH($T313,Reliability!$C$23:$C$50,0)),0),0)*$H313*$X313*$Y313),$D313)*$R313","v":0},{"$f":"MIN((IFERROR(IF(AND($V313<=AB$1,$W313>=AB$1),INDEX(Reliability!G$23:G$50,MATCH($S313,Reliability!$C$23:$C$50,0)),0),0)*IF($T313=\"n/a\",$D313*$Y313,$G313)+IFERROR(IF(AND($V313<=AB$1,$W313>=AB$1),INDEX(Reliability!G$23:G$50,MATCH($T313,Reliability!$C$23:$C$50,0)),0),0)*$H313*$X313*$Y313),$D313)*$R313","v":0},{"$f":"MIN((IFERROR(IF(AND($V313<=AC$1,$W313>=AC$1),INDEX(Reliability!H$23:H$50,MATCH($S313,Reliability!$C$23:$C$50,0)),0),0)*IF($T313=\"n/a\",$D313*$Y313,$G313)+IFERROR(IF(AND($V313<=AC$1,$W313>=AC$1),INDEX(Reliability!H$23:H$50,MATCH($T313,Reliability!$C$23:$C$50,0)),0),0)*$H313*$X313*$Y313),$D313)*$R313","v":0},{"$f":"MIN((IFERROR(IF(AND($V313<=AD$1,$W313>=AD$1),INDEX(Reliability!I$23:I$50,MATCH($S313,Reliability!$C$23:$C$50,0)),0),0)*IF($T313=\"n/a\",$D313*$Y313,$G313)+IFERROR(IF(AND($V313<=AD$1,$W313>=AD$1),INDEX(Reliability!I$23:I$50,MATCH($T313,Reliability!$C$23:$C$50,0)),0),0)*$H313*$X313*$Y313),$D313)*$R313","v":0},{"$f":"MIN((IFERROR(IF(AND($V313<=AE$1,$W313>=AE$1),INDEX(Reliability!J$23:J$50,MATCH($S313,Reliability!$C$23:$C$50,0)),0),0)*IF($T313=\"n/a\",$D313*$Y313,$G313)+IFERROR(IF(AND($V313<=AE$1,$W313>=AE$1),INDEX(Reliability!J$23:J$50,MATCH($T313,Reliability!$C$23:$C$50,0)),0),0)*$H313*$X313*$Y313),$D313)*$R313","v":0},{"$f":"MIN((IFERROR(IF(AND($V313<=AF$1,$W313>=AF$1),INDEX(Reliability!K$23:K$50,MATCH($S313,Reliability!$C$23:$C$50,0)),0),0)*IF($T313=\"n/a\",$D313*$Y313,$G313)+IFERROR(IF(AND($V313<=AF$1,$W313>=AF$1),INDEX(Reliability!K$23:K$50,MATCH($T313,Reliability!$C$23:$C$50,0)),0),0)*$H313*$X313*$Y313),$D313)*$R313","v":0},{"$f":"MIN((IFERROR(IF(AND($V313<=AG$1,$W313>=AG$1),INDEX(Reliability!L$23:L$50,MATCH($S313,Reliability!$C$23:$C$50,0)),0),0)*IF($T313=\"n/a\",$D313*$Y313,$G313)+IFERROR(IF(AND($V313<=AG$1,$W313>=AG$1),INDEX(Reliability!L$23:L$50,MATCH($T313,Reliability!$C$23:$C$50,0)),0),0)*$H313*$X313*$Y313),$D313)*$R313","v":0},{"$f":"MIN((IFERROR(IF(AND($V313<=AH$1,$W313>=AH$1),INDEX(Reliability!M$23:M$50,MATCH($S313,Reliability!$C$23:$C$50,0)),0),0)*IF($T313=\"n/a\",$D313*$Y313,$G313)+IFERROR(IF(AND($V313<=AH$1,$W313>=AH$1),INDEX(Reliability!M$23:M$50,MATCH($T313,Reliability!$C$23:$C$50,0)),0),0)*$H313*$X313*$Y313),$D313)*$R313","v":0},{"$f":"MIN((IFERROR(IF(AND($V313<=AI$1,$W313>=AI$1),INDEX(Reliability!N$23:N$50,MATCH($S313,Reliability!$C$23:$C$50,0)),0),0)*IF($T313=\"n/a\",$D313*$Y313,$G313)+IFERROR(IF(AND($V313<=AI$1,$W313>=AI$1),INDEX(Reliability!N$23:N$50,MATCH($T313,Reliability!$C$23:$C$50,0)),0),0)*$H313*$X313*$Y313),$D313)*$R313","v":0},{"$f":"MIN((IFERROR(IF(AND($V313<=AJ$1,$W313>=AJ$1),INDEX(Reliability!O$23:O$50,MATCH($S313,Reliability!$C$23:$C$50,0)),0),0)*IF($T313=\"n/a\",$D313*$Y313,$G313)+IFERROR(IF(AND($V313<=AJ$1,$W313>=AJ$1),INDEX(Reliability!O$23:O$50,MATCH($T313,Reliability!$C$23:$C$50,0)),0),0)*$H313*$X313*$Y313),$D313)*$R313","v":0},{"$f":"MIN((IFERROR(IF(AND($V313<=AK$1,$W313>=AK$1),INDEX(Reliability!P$23:P$50,MATCH($S313,Reliability!$C$23:$C$50,0)),0),0)*IF($T313=\"n/a\",$D313*$Y313,$G313)+IFERROR(IF(AND($V313<=AK$1,$W313>=AK$1),INDEX(Reliability!P$23:P$50,MATCH($T313,Reliability!$C$23:$C$50,0)),0),0)*$H313*$X313*$Y313),$D313)*$R313","v":0}]
[null,{"$f":"unique_contracts!B315","v":0},{"$f":"unique_contracts!D315","v":0},{"$f":"unique_contracts!J315","v":0},{"$f":"unique_contracts!M315","v":0},{"$f":"unique_contracts!N315","v":0},{"$f":"unique_contracts!P315","v":0},{"$f":"unique_contracts!R315","v":0},{"$f":"unique_contracts!V315","v":0},{"$f":"unique_contracts!AB315","v":0},{"$f":"unique_contracts!AM315","v":0},{"$f":"unique_contracts!AN315","v":0},{"$f":"unique_contracts!AO315","v":0},{"$f":"unique_contracts!AP315","v":0},{"$f":"unique_contracts!AQ315","v":0},{"$f":"unique_contracts!AR315","v":0},{"$f":"unique_contracts!BP315","v":0},0,{"$f":"IFERROR(IF(AND(I314>0,E314=\"NotHybrid\"),_xlfn.CONCAT(MAX(MIN(ROUNDDOWN(I314/D314,0),8),4),INDEX(resources!$G:$G,MATCH(B314,resources!$A:$A,0))),INDEX(resources!$G:$G,MATCH(B314,resources!$A:$A,0))),\"n/a\")","v":"n/a"},"n/a","n/a",0,0,1,1,{"$f":"MIN((IFERROR(IF(AND($V314<=Z$1,$W314>=Z$1),INDEX(Reliability!E$23:E$50,MATCH($S314,Reliability!$C$23:$C$50,0)),0),0)*IF($T314=\"n/a\",$D314*$Y314,$G314)+IFERROR(IF(AND($V314<=Z$1,$W314>=Z$1),INDEX(Reliability!E$23:E$50,MATCH($T314,Reliability!$C$23:$C$50,0)),0),0)*$H314*$X314*$Y314),$D314)*$R314","v":0},{"$f":"MIN((IFERROR(IF(AND($V314<=AA$1,$W314>=AA$1),INDEX(Reliability!F$23:F$50,MATCH($S314,Reliability!$C$23:$C$50,0)),0),0)*IF($T314=\"n/a\",$D314*$Y314,$G314)+IFERROR(IF(AND($V314<=AA$1,$W314>=AA$1),INDEX(Reliability!F$23:F$50,MATCH($T314,Reliability!$C$23:$C$50,0)),0),0)*$H314*$X314*$Y314),$D314)*$R314","v":0},{"$f":"MIN((IFERROR(IF(AND($V314<=AB$1,$W314>=AB$1),INDEX(Reliability!G$23:G$50,MATCH($S314,Reliability!$C$23:$C$50,0)),0),0)*IF($T314=\"n/a\",$D314*$Y314,$G314)+IFERROR(IF(AND($V314<=AB$1,$W314>=AB$1),INDEX(Reliability!G$23:G$50,MATCH($T314,Reliability!$C$23:$C$50,0)),0),0)*$H314*$X314*$Y314),$D314)*$R314","v":0},{"$f":"MIN((IFERROR(IF(AND($V314<=AC$1,$W314>=AC$1),INDEX(Reliability!H$23:H$50,MATCH($S314,Reliability!$C$23:$C$50,0)),0),0)*IF($T314=\"n/a\",$D314*$Y314,$G314)+IFERROR(IF(AND($V314<=AC$1,$W314>=AC$1),INDEX(Reliability!H$23:H$50,MATCH($T314,Reliability!$C$23:$C$50,0)),0),0)*$H314*$X314*$Y314),$D314)*$R314","v":0},{"$f":"MIN((IFERROR(IF(AND($V314<=AD$1,$W314>=AD$1),INDEX(Reliability!I$23:I$50,MATCH($S314,Reliability!$C$23:$C$50,0)),0),0)*IF($T314=\"n/a\",$D314*$Y314,$G314)+IFERROR(IF(AND($V314<=AD$1,$W314>=AD$1),INDEX(Reliability!I$23:I$50,MATCH($T314,Reliability!$C$23:$C$50,0)),0),0)*$H314*$X314*$Y314),$D314)*$R314","v":0},{"$f":"MIN((IFERROR(IF(AND($V314<=AE$1,$W314>=AE$1),INDEX(Reliability!J$23:J$50,MATCH($S314,Reliability!$C$23:$C$50,0)),0),0)*IF($T314=\"n/a\",$D314*$Y314,$G314)+IFERROR(IF(AND($V314<=AE$1,$W314>=AE$1),INDEX(Reliability!J$23:J$50,MATCH($T314,Reliability!$C$23:$C$50,0)),0),0)*$H314*$X314*$Y314),$D314)*$R314","v":0},{"$f":"MIN((IFERROR(IF(AND($V314<=AF$1,$W314>=AF$1),INDEX(Reliability!K$23:K$50,MATCH($S314,Reliability!$C$23:$C$50,0)),0),0)*IF($T314=\"n/a\",$D314*$Y314,$G314)+IFERROR(IF(AND($V314<=AF$1,$W314>=AF$1),INDEX(Reliability!K$23:K$50,MATCH($T314,Reliability!$C$23:$C$50,0)),0),0)*$H314*$X314*$Y314),$D314)*$R314","v":0},{"$f":"MIN((IFERROR(IF(AND($V314<=AG$1,$W314>=AG$1),INDEX(Reliability!L$23:L$50,MATCH($S314,Reliability!$C$23:$C$50,0)),0),0)*IF($T314=\"n/a\",$D314*$Y314,$G314)+IFERROR(IF(AND($V314<=AG$1,$W314>=AG$1),INDEX(Reliability!L$23:L$50,MATCH($T314,Reliability!$C$23:$C$50,0)),0),0)*$H314*$X314*$Y314),$D314)*$R314","v":0},{"$f":"MIN((IFERROR(IF(AND($V314<=AH$1,$W314>=AH$1),INDEX(Reliability!M$23:M$50,MATCH($S314,Reliability!$C$23:$C$50,0)),0),0)*IF($T314=\"n/a\",$D314*$Y314,$G314)+IFERROR(IF(AND($V314<=AH$1,$W314>=AH$1),INDEX(Reliability!M$23:M$50,MATCH($T314,Reliability!$C$23:$C$50,0)),0),0)*$H314*$X314*$Y314),$D314)*$R314","v":0},{"$f":"MIN((IFERROR(IF(AND($V314<=AI$1,$W314>=AI$1),INDEX(Reliability!N$23:N$50,MATCH($S314,Reliability!$C$23:$C$50,0)),0),0)*IF($T314=\"n/a\",$D314*$Y314,$G314)+IFERROR(IF(AND($V314<=AI$1,$W314>=AI$1),INDEX(Reliability!N$23:N$50,MATCH($T314,Reliability!$C$23:$C$50,0)),0),0)*$H314*$X314*$Y314),$D314)*$R314","v":0},{"$f":"MIN((IFERROR(IF(AND($V314<=AJ$1,$W314>=AJ$1),INDEX(Reliability!O$23:O$50,MATCH($S314,Reliability!$C$23:$C$50,0)),0),0)*IF($T314=\"n/a\",$D314*$Y314,$G314)+IFERROR(IF(AND($V314<=AJ$1,$W314>=AJ$1),INDEX(Reliability!O$23:O$50,MATCH($T314,Reliability!$C$23:$C$50,0)),0),0)*$H314*$X314*$Y314),$D314)*$R314","v":0},{"$f":"MIN((IFERROR(IF(AND($V314<=AK$1,$W314>=AK$1),INDEX(Reliability!P$23:P$50,MATCH($S314,Reliability!$C$23:$C$50,0)),0),0)*IF($T314=\"n/a\",$D314*$Y314,$G314)+IFERROR(IF(AND($V314<=AK$1,$W314>=AK$1),INDEX(Reliability!P$23:P$50,MATCH($T314,Reliability!$C$23:$C$50,0)),0),0)*$H314*$X314*$Y314),$D314)*$R314","v":0}]
[null,{"$f":"unique_contracts!B316","v":0},{"$f":"unique_contracts!D316","v":0},{"$f":"unique_contracts!J316","v":0},{"$f":"unique_contracts!M316","v":0},{"$f":"unique_contracts!N316","v":0},{"$f":"unique_contracts!P316","v":0},{"$f":"unique_contracts!R316","v":0},{"$f":"unique_contracts!V316","v":0},{"$f":"unique_contracts!AB316","v":0},{"$f":"unique_contracts!AM316","v":0},{"$f":"unique_contracts!AN316","v":0},{"$f":"unique_contracts!AO316","v":0},{"$f":"unique_contracts!AP316","v":0},{"$f":"unique_contracts!AQ316","v":0},{"$f":"unique_contracts!AR316","v":0},{"$f":"unique_contracts!BP316","v":0},0,{"$f":"IFERROR(IF(AND(I315>0,E315=\"NotHybrid\"),_xlfn.CONCAT(MAX(MIN(ROUNDDOWN(I315/D315,0),8),4),INDEX(resources!$G:$G,MATCH(B315,resources!$A:$A,0))),INDEX(resources!$G:$G,MATCH(B315,resources!$A:$A,0))),\"n/a\")","v":"n/a"},"n/a","n/a",0,0,1,1,{"$f":"MIN((IFERROR(IF(AND($V315<=Z$1,$W315>=Z$1),INDEX(Reliability!E$23:E$50,MATCH($S315,Reliability!$C$23:$C$50,0)),0),0)*IF($T315=\"n/a\",$D315*$Y315,$G315)+IFERROR(IF(AND($V315<=Z$1,$W315>=Z$1),INDEX(Reliability!E$23:E$50,MATCH($T315,Reliability!$C$23:$C$50,0)),0),0)*$H315*$X315*$Y315),$D315)*$R315","v":0},{"$f":"MIN((IFERROR(IF(AND($V315<=AA$1,$W315>=AA$1),INDEX(Reliability!F$23:F$50,MATCH($S315,Reliability!$C$23:$C$50,0)),0),0)*IF($T315=\"n/a\",$D315*$Y315,$G315)+IFERROR(IF(AND($V315<=AA$1,$W315>=AA$1),INDEX(Reliability!F$23:F$50,MATCH($T315,Reliability!$C$23:$C$50,0)),0),0)*$H315*$X315*$Y315),$D315)*$R315","v":0},{"$f":"MIN((IFERROR(IF(AND($V315<=AB$1,$W315>=AB$1),INDEX(Reliability!G$23:G$50,MATCH($S315,Reliability!$C$23:$C$50,0)),0),0)*IF($T315=\"n/a\",$D315*$Y315,$G315)+IFERROR(IF(AND($V315<=AB$1,$W315>=AB$1),INDEX(Reliability!G$23:G$50,MATCH($T315,Reliability!$C$23:$C$50,0)),0),0)*$H315*$X315*$Y315),$D315)*$R315","v":0},{"$f":"MIN((IFERROR(IF(AND($V315<=AC$1,$W315>=AC$1),INDEX(Reliability!H$23:H$50,MATCH($S315,Reliability!$C$23:$C$50,0)),0),0)*IF($T315=\"n/a\",$D315*$Y315,$G315)+IFERROR(IF(AND($V315<=AC$1,$W315>=AC$1),INDEX(Reliability!H$23:H$50,MATCH($T315,Reliability!$C$23:$C$50,0)),0),0)*$H315*$X315*$Y315),$D315)*$R315","v":0},{"$f":"MIN((IFERROR(IF(AND($V315<=AD$1,$W315>=AD$1),INDEX(Reliability!I$23:I$50,MATCH($S315,Reliability!$C$23:$C$50,0)),0),0)*IF($T315=\"n/a\",$D315*$Y315,$G315)+IFERROR(IF(AND($V315<=AD$1,$W315>=AD$1),INDEX(Reliability!I$23:I$50,MATCH($T315,Reliability!$C$23:$C$50,0)),0),0)*$H315*$X315*$Y315),$D315)*$R315","v":0},{"$f":"MIN((IFERROR(IF(AND($V315<=AE$1,$W315>=AE$1),INDEX(Reliability!J$23:J$50,MATCH($S315,Reliability!$C$23:$C$50,0)),0),0)*IF($T315=\"n/a\",$D315*$Y315,$G315)+IFERROR(IF(AND($V315<=AE$1,$W315>=AE$1),INDEX(Reliability!J$23:J$50,MATCH($T315,Reliability!$C$23:$C$50,0)),0),0)*$H315*$X315*$Y315),$D315)*$R315","v":0},{"$f":"MIN((IFERROR(IF(AND($V315<=AF$1,$W315>=AF$1),INDEX(Reliability!K$23:K$50,MATCH($S315,Reliability!$C$23:$C$50,0)),0),0)*IF($T315=\"n/a\",$D315*$Y315,$G315)+IFERROR(IF(AND($V315<=AF$1,$W315>=AF$1),INDEX(Reliability!K$23:K$50,MATCH($T315,Reliability!$C$23:$C$50,0)),0),0)*$H315*$X315*$Y315),$D315)*$R315","v":0},{"$f":"MIN((IFERROR(IF(AND($V315<=AG$1,$W315>=AG$1),INDEX(Reliability!L$23:L$50,MATCH($S315,Reliability!$C$23:$C$50,0)),0),0)*IF($T315=\"n/a\",$D315*$Y315,$G315)+IFERROR(IF(AND($V315<=AG$1,$W315>=AG$1),INDEX(Reliability!L$23:L$50,MATCH($T315,Reliability!$C$23:$C$50,0)),0),0)*$H315*$X315*$Y315),$D315)*$R315","v":0},{"$f":"MIN((IFERROR(IF(AND($V315<=AH$1,$W315>=AH$1),INDEX(Reliability!M$23:M$50,MATCH($S315,Reliability!$C$23:$C$50,0)),0),0)*IF($T315=\"n/a\",$D315*$Y315,$G315)+IFERROR(IF(AND($V315<=AH$1,$W315>=AH$1),INDEX(Reliability!M$23:M$50,MATCH($T315,Reliability!$C$23:$C$50,0)),0),0)*$H315*$X315*$Y315),$D315)*$R315","v":0},{"$f":"MIN((IFERROR(IF(AND($V315<=AI$1,$W315>=AI$1),INDEX(Reliability!N$23:N$50,MATCH($S315,Reliability!$C$23:$C$50,0)),0),0)*IF($T315=\"n/a\",$D315*$Y315,$G315)+IFERROR(IF(AND($V315<=AI$1,$W315>=AI$1),INDEX(Reliability!N$23:N$50,MATCH($T315,Reliability!$C$23:$C$50,0)),0),0)*$H315*$X315*$Y315),$D315)*$R315","v":0},{"$f":"MIN((IFERROR(IF(AND($V315<=AJ$1,$W315>=AJ$1),INDEX(Reliability!O$23:O$50,MATCH($S315,Reliability!$C$23:$C$50,0)),0),0)*IF($T315=\"n/a\",$D315*$Y315,$G315)+IFERROR(IF(AND($V315<=AJ$1,$W315>=AJ$1),INDEX(Reliability!O$23:O$50,MATCH($T315,Reliability!$C$23:$C$50,0)),0),0)*$H315*$X315*$Y315),$D315)*$R315","v":0},{"$f":"MIN((IFERROR(IF(AND($V315<=AK$1,$W315>=AK$1),INDEX(Reliability!P$23:P$50,MATCH($S315,Reliability!$C$23:$C$50,0)),0),0)*IF($T315=\"n/a\",$D315*$Y315,$G315)+IFERROR(IF(AND($V315<=AK$1,$W315>=AK$1),INDEX(Reliability!P$23:P$50,MATCH($T315,Reliability!$C$23:$C$50,0)),0),0)*$H315*$X315*$Y315),$D315)*$R315","v":0}]
[null,{"$f":"unique_contracts!B317","v":0},{"$f":"unique_contracts!D317","v":0},{"$f":"unique_contracts!J317","v":0},{"$f":"unique_contracts!M317","v":0},{"$f":"unique_contracts!N317","v":0},{"$f":"unique_contracts!P317","v":0},{"$f":"unique_contracts!R317","v":0},{"$f":"unique_contracts!V317","v":0},{"$f":"unique_contracts!AB317","v":0},{"$f":"unique_contracts!AM317","v":0},{"$f":"unique_contracts!AN317","v":0},{"$f":"unique_contracts!AO317","v":0},{"$f":"unique_contracts!AP317","v":0},{"$f":"unique_contracts!AQ317","v":0},{"$f":"unique_contracts!AR317","v":0},{"$f":"unique_contracts!BP317","v":0},0,{"$f":"IFERROR(IF(AND(I316>0,E316=\"NotHybrid\"),_xlfn.CONCAT(MAX(MIN(ROUNDDOWN(I316/D316,0),8),4),INDEX(resources!$G:$G,MATCH(B316,resources!$A:$A,0))),INDEX(resources!$G:$G,MATCH(B316,resources!$A:$A,0))),\"n/a\")","v":"n/a"},"n/a","n/a",0,0,1,1,{"$f":"MIN((IFERROR(IF(AND($V316<=Z$1,$W316>=Z$1),INDEX(Reliability!E$23:E$50,MATCH($S316,Reliability!$C$23:$C$50,0)),0),0)*IF($T316=\"n/a\",$D316*$Y316,$G316)+IFERROR(IF(AND($V316<=Z$1,$W316>=Z$1),INDEX(Reliability!E$23:E$50,MATCH($T316,Reliability!$C$23:$C$50,0)),0),0)*$H316*$X316*$Y316),$D316)*$R316","v":0},{"$f":"MIN((IFERROR(IF(AND($V316<=AA$1,$W316>=AA$1),INDEX(Reliability!F$23:F$50,MATCH($S316,Reliability!$C$23:$C$50,0)),0),0)*IF($T316=\"n/a\",$D316*$Y316,$G316)+IFERROR(IF(AND($V316<=AA$1,$W316>=AA$1),INDEX(Reliability!F$23:F$50,MATCH($T316,Reliability!$C$23:$C$50,0)),0),0)*$H316*$X316*$Y316),$D316)*$R316","v":0},{"$f":"MIN((IFERROR(IF(AND($V316<=AB$1,$W316>=AB$1),INDEX(Reliability!G$23:G$50,MATCH($S316,Reliability!$C$23:$C$50,0)),0),0)*IF($T316=\"n/a\",$D316*$Y316,$G316)+IFERROR(IF(AND($V316<=AB$1,$W316>=AB$1),INDEX(Reliability!G$23:G$50,MATCH($T316,Reliability!$C$23:$C$50,0)),0),0)*$H316*$X316*$Y316),$D316)*$R316","v":0},{"$f":"MIN((IFERROR(IF(AND($V316<=AC$1,$W316>=AC$1),INDEX(Reliability!H$23:H$50,MATCH($S316,Reliability!$C$23:$C$50,0)),0),0)*IF($T316=\"n/a\",$D316*$Y316,$G316)+IFERROR(IF(AND($V316<=AC$1,$W316>=AC$1),INDEX(Reliability!H$23:H$50,MATCH($T316,Reliability!$C$23:$C$50,0)),0),0)*$H316*$X316*$Y316),$D316)*$R316","v":0},{"$f":"MIN((IFERROR(IF(AND($V316<=AD$1,$W316>=AD$1),INDEX(Reliability!I$23:I$50,MATCH($S316,Reliability!$C$23:$C$50,0)),0),0)*IF($T316=\"n/a\",$D316*$Y316,$G316)+IFERROR(IF(AND($V316<=AD$1,$W316>=AD$1),INDEX(Reliability!I$23:I$50,MATCH($T316,Reliability!$C$23:$C$50,0)),0),0)*$H316*$X316*$Y316),$D316)*$R316","v":0},{"$f":"MIN((IFERROR(IF(AND($V316<=AE$1,$W316>=AE$1),INDEX(Reliability!J$23:J$50,MATCH($S316,Reliability!$C$23:$C$50,0)),0),0)*IF($T316=\"n/a\",$D316*$Y316,$G316)+IFERROR(IF(AND($V316<=AE$1,$W316>=AE$1),INDEX(Reliability!J$23:J$50,MATCH($T316,Reliability!$C$23:$C$50,0)),0),0)*$H316*$X316*$Y316),$D316)*$R316","v":0},{"$f":"MIN((IFERROR(IF(AND($V316<=AF$1,$W316>=AF$1),INDEX(Reliability!K$23:K$50,MATCH($S316,Reliability!$C$23:$C$50,0)),0),0)*IF($T316=\"n/a\",$D316*$Y316,$G316)+IFERROR(IF(AND($V316<=AF$1,$W316>=AF$1),INDEX(Reliability!K$23:K$50,MATCH($T316,Reliability!$C$23:$C$50,0)),0),0)*$H316*$X316*$Y316),$D316)*$R316","v":0},{"$f":"MIN((IFERROR(IF(AND($V316<=AG$1,$W316>=AG$1),INDEX(Reliability!L$23:L$50,MATCH($S316,Reliability!$C$23:$C$50,0)),0),0)*IF($T316=\"n/a\",$D316*$Y316,$G316)+IFERROR(IF(AND($V316<=AG$1,$W316>=AG$1),INDEX(Reliability!L$23:L$50,MATCH($T316,Reliability!$C$23:$C$50,0)),0),0)*$H316*$X316*$Y316),$D316)*$R316","v":0},{"$f":"MIN((IFERROR(IF(AND($V316<=AH$1,$W316>=AH$1),INDEX(Reliability!M$23:M$50,MATCH($S316,Reliability!$C$23:$C$50,0)),0),0)*IF($T316=\"n/a\",$D316*$Y316,$G316)+IFERROR(IF(AND($V316<=AH$1,$W316>=AH$1),INDEX(Reliability!M$23:M$50,MATCH($T316,Reliability!$C$23:$C$50,0)),0),0)*$H316*$X316*$Y316),$D316)*$R316","v":0},{"$f":"MIN((IFERROR(IF(AND($V316<=AI$1,$W316>=AI$1),INDEX(Reliability!N$23:N$50,MATCH($S316,Reliability!$C$23:$C$50,0)),0),0)*IF($T316=\"n/a\",$D316*$Y316,$G316)+IFERROR(IF(AND($V316<=AI$1,$W316>=AI$1),INDEX(Reliability!N$23:N$50,MATCH($T316,Reliability!$C$23:$C$50,0)),0),0)*$H316*$X316*$Y316),$D316)*$R316","v":0},{"$f":"MIN((IFERROR(IF(AND($V316<=AJ$1,$W316>=AJ$1),INDEX(Reliability!O$23:O$50,MATCH($S316,Reliability!$C$23:$C$50,0)),0),0)*IF($T316=\"n/a\",$D316*$Y316,$G316)+IFERROR(IF(AND($V316<=AJ$1,$W316>=AJ$1),INDEX(Reliability!O$23:O$50,MATCH($T316,Reliability!$C$23:$C$50,0)),0),0)*$H316*$X316*$Y316),$D316)*$R316","v":0},{"$f":"MIN((IFERROR(IF(AND($V316<=AK$1,$W316>=AK$1),INDEX(Reliability!P$23:P$50,MATCH($S316,Reliability!$C$23:$C$50,0)),0),0)*IF($T316=\"n/a\",$D316*$Y316,$G316)+IFERROR(IF(AND($V316<=AK$1,$W316>=AK$1),INDEX(Reliability!P$23:P$50,MATCH($T316,Reliability!$C$23:$C$50,0)),0),0)*$H316*$X316*$Y316),$D316)*$R316","v":0}]
[null,{"$f":"unique_contracts!B318","v":0},{"$f":"unique_contracts!D318","v":0},{"$f":"unique_contracts!J318","v":0},{"$f":"unique_contracts!M318","v":0},{"$f":"unique_contracts!N318","v":0},{"$f":"unique_contracts!P318","v":0},{"$f":"unique_contracts!R318","v":0},{"$f":"unique_contracts!V318","v":0},{"$f":"unique_contracts!AB318","v":0},{"$f":"unique_contracts!AM318","v":0},{"$f":"unique_contracts!AN318","v":0},{"$f":"unique_contracts!AO318","v":0},{"$f":"unique_contracts!AP318","v":0},{"$f":"unique_contracts!AQ318","v":0},{"$f":"unique_contracts!AR318","v":0},{"$f":"unique_contracts!BP318","v":0},0,{"$f":"IFERROR(IF(AND(I317>0,E317=\"NotHybrid\"),_xlfn.CONCAT(MAX(MIN(ROUNDDOWN(I317/D317,0),8),4),INDEX(resources!$G:$G,MATCH(B317,resources!$A:$A,0))),INDEX(resources!$G:$G,MATCH(B317,resources!$A:$A,0))),\"n/a\")","v":"n/a"},"n/a","n/a",0,0,1,1,{"$f":"MIN((IFERROR(IF(AND($V317<=Z$1,$W317>=Z$1),INDEX(Reliability!E$23:E$50,MATCH($S317,Reliability!$C$23:$C$50,0)),0),0)*IF($T317=\"n/a\",$D317*$Y317,$G317)+IFERROR(IF(AND($V317<=Z$1,$W317>=Z$1),INDEX(Reliability!E$23:E$50,MATCH($T317,Reliability!$C$23:$C$50,0)),0),0)*$H317*$X317*$Y317),$D317)*$R317","v":0},{"$f":"MIN((IFERROR(IF(AND($V317<=AA$1,$W317>=AA$1),INDEX(Reliability!F$23:F$50,MATCH($S317,Reliability!$C$23:$C$50,0)),0),0)*IF($T317=\"n/a\",$D317*$Y317,$G317)+IFERROR(IF(AND($V317<=AA$1,$W317>=AA$1),INDEX(Reliability!F$23:F$50,MATCH($T317,Reliability!$C$23:$C$50,0)),0),0)*$H317*$X317*$Y317),$D317)*$R317","v":0},{"$f":"MIN((IFERROR(IF(AND($V317<=AB$1,$W317>=AB$1),INDEX(Reliability!G$23:G$50,MATCH($S317,Reliability!$C$23:$C$50,0)),0),0)*IF($T317=\"n/a\",$D317*$Y317,$G317)+IFERROR(IF(AND($V317<=AB$1,$W317>=AB$1),INDEX(Reliability!G$23:G$50,MATCH($T317,Reliability!$C$23:$C$50,0)),0),0)*$H317*$X317*$Y317),$D317)*$R317","v":0},{"$f":"MIN((IFERROR(IF(AND($V317<=AC$1,$W317>=AC$1),INDEX(Reliability!H$23:H$50,MATCH($S317,Reliability!$C$23:$C$50,0)),0),0)*IF($T317=\"n/a\",$D317*$Y317,$G317)+IFERROR(IF(AND($V317<=AC$1,$W317>=AC$1),INDEX(Reliability!H$23:H$50,MATCH($T317,Reliability!$C$23:$C$50,0)),0),0)*$H317*$X317*$Y317),$D317)*$R317","v":0},{"$f":"MIN((IFERROR(IF(AND($V317<=AD$1,$W317>=AD$1),INDEX(Reliability!I$23:I$50,MATCH($S317,Reliability!$C$23:$C$50,0)),0),0)*IF($T317=\"n/a\",$D317*$Y317,$G317)+IFERROR(IF(AND($V317<=AD$1,$W317>=AD$1),INDEX(Reliability!I$23:I$50,MATCH($T317,Reliability!$C$23:$C$50,0)),0),0)*$H317*$X317*$Y317),$D317)*$R317","v":0},{"$f":"MIN((IFERROR(IF(AND($V317<=AE$1,$W317>=AE$1),INDEX(Reliability!J$23:J$50,MATCH($S317,Reliability!$C$23:$C$50,0)),0),0)*IF($T317=\"n/a\",$D317*$Y317,$G317)+IFERROR(IF(AND($V317<=AE$1,$W317>=AE$1),INDEX(Reliability!J$23:J$50,MATCH($T317,Reliability!$C$23:$C$50,0)),0),0)*$H317*$X317*$Y317),$D317)*$R317","v":0},{"$f":"MIN((IFERROR(IF(AND($V317<=AF$1,$W317>=AF$1),INDEX(Reliability!K$23:K$50,MATCH($S317,Reliability!$C$23:$C$50,0)),0),0)*IF($T317=\"n/a\",$D317*$Y317,$G317)+IFERROR(IF(AND($V317<=AF$1,$W317>=AF$1),INDEX(Reliability!K$23:K$50,MATCH($T317,Reliability!$C$23:$C$50,0)),0),0)*$H317*$X317*$Y317),$D317)*$R317","v":0},{"$f":"MIN((IFERROR(IF(AND($V317<=AG$1,$W317>=AG$1),INDEX(Reliability!L$23:L$50,MATCH($S317,Reliability!$C$23:$C$50,0)),0),0)*IF($T317=\"n/a\",$D317*$Y317,$G317)+IFERROR(IF(AND($V317<=AG$1,$W317>=AG$1),INDEX(Reliability!L$23:L$50,MATCH($T317,Reliability!$C$23:$C$50,0)),0),0)*$H317*$X317*$Y317),$D317)*$R317","v":0},{"$f":"MIN((IFERROR(IF(AND($V317<=AH$1,$W317>=AH$1),INDEX(Reliability!M$23:M$50,MATCH($S317,Reliability!$C$23:$C$50,0)),0),0)*IF($T317=\"n/a\",$D317*$Y317,$G317)+IFERROR(IF(AND($V317<=AH$1,$W317>=AH$1),INDEX(Reliability!M$23:M$50,MATCH($T317,Reliability!$C$23:$C$50,0)),0),0)*$H317*$X317*$Y317),$D317)*$R317","v":0},{"$f":"MIN((IFERROR(IF(AND($V317<=AI$1,$W317>=AI$1),INDEX(Reliability!N$23:N$50,MATCH($S317,Reliability!$C$23:$C$50,0)),0),0)*IF($T317=\"n/a\",$D317*$Y317,$G317)+IFERROR(IF(AND($V317<=AI$1,$W317>=AI$1),INDEX(Reliability!N$23:N$50,MATCH($T317,Reliability!$C$23:$C$50,0)),0),0)*$H317*$X317*$Y317),$D317)*$R317","v":0},{"$f":"MIN((IFERROR(IF(AND($V317<=AJ$1,$W317>=AJ$1),INDEX(Reliability!O$23:O$50,MATCH($S317,Reliability!$C$23:$C$50,0)),0),0)*IF($T317=\"n/a\",$D317*$Y317,$G317)+IFERROR(IF(AND($V317<=AJ$1,$W317>=AJ$1),INDEX(Reliability!O$23:O$50,MATCH($T317,Reliability!$C$23:$C$50,0)),0),0)*$H317*$X317*$Y317),$D317)*$R317","v":0},{"$f":"MIN((IFERROR(IF(AND($V317<=AK$1,$W317>=AK$1),INDEX(Reliability!P$23:P$50,MATCH($S317,Reliability!$C$23:$C$50,0)),0),0)*IF($T317=\"n/a\",$D317*$Y317,$G317)+IFERROR(IF(AND($V317<=AK$1,$W317>=AK$1),INDEX(Reliability!P$23:P$50,MATCH($T317,Reliability!$C$23:$C$50,0)),0),0)*$H317*$X317*$Y317),$D317)*$R317","v":0}]
[null,{"$f":"unique_contracts!B319","v":0},{"$f":"unique_contracts!D319","v":0},{"$f":"unique_contracts!J319","v":0},{"$f":"unique_contracts!M319","v":0},{"$f":"unique_contracts!N319","v":0},{"$f":"unique_contracts!P319","v":0},{"$f":"unique_contracts!R319","v":0},{"$f":"unique_contracts!V319","v":0},{"$f":"unique_contracts!AB319","v":0},{"$f":"unique_contracts!AM319","v":0},{"$f":"unique_contracts!AN319","v":0},{"$f":"unique_contracts!AO319","v":0},{"$f":"unique_contracts!AP319","v":0},{"$f":"unique_contracts!AQ319","v":0},{"$f":"unique_contracts!AR319","v":0},{"$f":"unique_contracts!BP319","v":0},0,{"$f":"IFERROR(IF(AND(I318>0,E318=\"NotHybrid\"),_xlfn.CONCAT(MAX(MIN(ROUNDDOWN(I318/D318,0),8),4),INDEX(resources!$G:$G,MATCH(B318,resources!$A:$A,0))),INDEX(resources!$G:$G,MATCH(B318,resources!$A:$A,0))),\"n/a\")","v":"n/a"},"n/a","n/a",0,0,1,1,{"$f":"MIN((IFERROR(IF(AND($V318<=Z$1,$W318>=Z$1),INDEX(Reliability!E$23:E$50,MATCH($S318,Reliability!$C$23:$C$50,0)),0),0)*IF($T318=\"n/a\",$D318*$Y318,$G318)+IFERROR(IF(AND($V318<=Z$1,$W318>=Z$1),INDEX(Reliability!E$23:E$50,MATCH($T318,Reliability!$C$23:$C$50,0)),0),0)*$H318*$X318*$Y318),$D318)*$R318","v":0},{"$f":"MIN((IFERROR(IF(AND($V318<=AA$1,$W318>=AA$1),INDEX(Reliability!F$23:F$50,MATCH($S318,Reliability!$C$23:$C$50,0)),0),0)*IF($T318=\"n/a\",$D318*$Y318,$G318)+IFERROR(IF(AND($V318<=AA$1,$W318>=AA$1),INDEX(Reliability!F$23:F$50,MATCH($T318,Reliability!$C$23:$C$50,0)),0),0)*$H318*$X318*$Y318),$D318)*$R318","v":0},{"$f":"MIN((IFERROR(IF(AND($V318<=AB$1,$W318>=AB$1),INDEX(Reliability!G$23:G$50,MATCH($S318,Reliability!$C$23:$C$50,0)),0),0)*IF($T318=\"n/a\",$D318*$Y318,$G318)+IFERROR(IF(AND($V318<=AB$1,$W318>=AB$1),INDEX(Reliability!G$23:G$50,MATCH($T318,Reliability!$C$23:$C$50,0)),0),0)*$H318*$X318*$Y318),$D318)*$R318","v":0},{"$f":"MIN((IFERROR(IF(AND($V318<=AC$1,$W318>=AC$1),INDEX(Reliability!H$23:H$50,MATCH($S318,Reliability!$C$23:$C$50,0)),0),0)*IF($T318=\"n/a\",$D318*$Y318,$G318)+IFERROR(IF(AND($V318<=AC$1,$W318>=AC$1),INDEX(Reliability!H$23:H$50,MATCH($T318,Reliability!$C$23:$C$50,0)),0),0)*$H318*$X318*$Y318),$D318)*$R318","v":0},{"$f":"MIN((IFERROR(IF(AND($V318<=AD$1,$W318>=AD$1),INDEX(Reliability!I$23:I$50,MATCH($S318,Reliability!$C$23:$C$50,0)),0),0)*IF($T318=\"n/a\",$D318*$Y318,$G318)+IFERROR(IF(AND($V318<=AD$1,$W318>=AD$1),INDEX(Reliability!I$23:I$50,MATCH($T318,Reliability!$C$23:$C$50,0)),0),0)*$H318*$X318*$Y318),$D318)*$R318","v":0},{"$f":"MIN((IFERROR(IF(AND($V318<=AE$1,$W318>=AE$1),INDEX(Reliability!J$23:J$50,MATCH($S318,Reliability!$C$23:$C$50,0)),0),0)*IF($T318=\"n/a\",$D318*$Y318,$G318)+IFERROR(IF(AND($V318<=AE$1,$W318>=AE$1),INDEX(Reliability!J$23:J$50,MATCH($T318,Reliability!$C$23:$C$50,0)),0),0)*$H318*$X318*$Y318),$D318)*$R318","v":0},{"$f":"MIN((IFERROR(IF(AND($V318<=AF$1,$W318>=AF$1),INDEX(Reliability!K$23:K$50,MATCH($S318,Reliability!$C$23:$C$50,0)),0),0)*IF($T318=\"n/a\",$D318*$Y318,$G318)+IFERROR(IF(AND($V318<=AF$1,$W318>=AF$1),INDEX(Reliability!K$23:K$50,MATCH($T318,Reliability!$C$23:$C$50,0)),0),0)*$H318*$X318*$Y318),$D318)*$R318","v":0},{"$f":"MIN((IFERROR(IF(AND($V318<=AG$1,$W318>=AG$1),INDEX(Reliability!L$23:L$50,MATCH($S318,Reliability!$C$23:$C$50,0)),0),0)*IF($T318=\"n/a\",$D318*$Y318,$G318)+IFERROR(IF(AND($V318<=AG$1,$W318>=AG$1),INDEX(Reliability!L$23:L$50,MATCH($T318,Reliability!$C$23:$C$50,0)),0),0)*$H318*$X318*$Y318),$D318)*$R318","v":0},{"$f":"MIN((IFERROR(IF(AND($V318<=AH$1,$W318>=AH$1),INDEX(Reliability!M$23:M$50,MATCH($S318,Reliability!$C$23:$C$50,0)),0),0)*IF($T318=\"n/a\",$D318*$Y318,$G318)+IFERROR(IF(AND($V318<=AH$1,$W318>=AH$1),INDEX(Reliability!M$23:M$50,MATCH($T318,Reliability!$C$23:$C$50,0)),0),0)*$H318*$X318*$Y318),$D318)*$R318","v":0},{"$f":"MIN((IFERROR(IF(AND($V318<=AI$1,$W318>=AI$1),INDEX(Reliability!N$23:N$50,MATCH($S318,Reliability!$C$23:$C$50,0)),0),0)*IF($T318=\"n/a\",$D318*$Y318,$G318)+IFERROR(IF(AND($V318<=AI$1,$W318>=AI$1),INDEX(Reliability!N$23:N$50,MATCH($T318,Reliability!$C$23:$C$50,0)),0),0)*$H318*$X318*$Y318),$D318)*$R318","v":0},{"$f":"MIN((IFERROR(IF(AND($V318<=AJ$1,$W318>=AJ$1),INDEX(Reliability!O$23:O$50,MATCH($S318,Reliability!$C$23:$C$50,0)),0),0)*IF($T318=\"n/a\",$D318*$Y318,$G318)+IFERROR(IF(AND($V318<=AJ$1,$W318>=AJ$1),INDEX(Reliability!O$23:O$50,MATCH($T318,Reliability!$C$23:$C$50,0)),0),0)*$H318*$X318*$Y318),$D318)*$R318","v":0},{"$f":"MIN((IFERROR(IF(AND($V318<=AK$1,$W318>=AK$1),INDEX(Reliability!P$23:P$50,MATCH($S318,Reliability!$C$23:$C$50,0)),0),0)*IF($T318=\"n/a\",$D318*$Y318,$G318)+IFERROR(IF(AND($V318<=AK$1,$W318>=AK$1),INDEX(Reliability!P$23:P$50,MATCH($T318,Reliability!$C$23:$C$50,0)),0),0)*$H318*$X318*$Y318),$D318)*$R318","v":0}]
[null,{"$f":"unique_contracts!B320","v":0},{"$f":"unique_contracts!D320","v":0},{"$f":"unique_contracts!J320","v":0},{"$f":"unique_contracts!M320","v":0},{"$f":"unique_contracts!N320","v":0},{"$f":"unique_contracts!P320","v":0},{"$f":"unique_contracts!R320","v":0},{"$f":"unique_contracts!V320","v":0},{"$f":"unique_contracts!AB320","v":0},{"$f":"unique_contracts!AM320","v":0},{"$f":"unique_contracts!AN320","v":0},{"$f":"unique_contracts!AO320","v":0},{"$f":"unique_contracts!AP320","v":0},{"$f":"unique_contracts!AQ320","v":0},{"$f":"unique_contracts!AR320","v":0},{"$f":"unique_contracts!BP320","v":0},0,{"$f":"IFERROR(IF(AND(I319>0,E319=\"NotHybrid\"),_xlfn.CONCAT(MAX(MIN(ROUNDDOWN(I319/D319,0),8),4),INDEX(resources!$G:$G,MATCH(B319,resources!$A:$A,0))),INDEX(resources!$G:$G,MATCH(B319,resources!$A:$A,0))),\"n/a\")","v":"n/a"},"n/a","n/a",0,0,1,1,{"$f":"MIN((IFERROR(IF(AND($V319<=Z$1,$W319>=Z$1),INDEX(Reliability!E$23:E$50,MATCH($S319,Reliability!$C$23:$C$50,0)),0),0)*IF($T319=\"n/a\",$D319*$Y319,$G319)+IFERROR(IF(AND($V319<=Z$1,$W319>=Z$1),INDEX(Reliability!E$23:E$50,MATCH($T319,Reliability!$C$23:$C$50,0)),0),0)*$H319*$X319*$Y319),$D319)*$R319","v":0},{"$f":"MIN((IFERROR(IF(AND($V319<=AA$1,$W319>=AA$1),INDEX(Reliability!F$23:F$50,MATCH($S319,Reliability!$C$23:$C$50,0)),0),0)*IF($T319=\"n/a\",$D319*$Y319,$G319)+IFERROR(IF(AND($V319<=AA$1,$W319>=AA$1),INDEX(Reliability!F$23:F$50,MATCH($T319,Reliability!$C$23:$C$50,0)),0),0)*$H319*$X319*$Y319),$D319)*$R319","v":0},{"$f":"MIN((IFERROR(IF(AND($V319<=AB$1,$W319>=AB$1),INDEX(Reliability!G$23:G$50,MATCH($S319,Reliability!$C$23:$C$50,0)),0),0)*IF($T319=\"n/a\",$D319*$Y319,$G319)+IFERROR(IF(AND($V319<=AB$1,$W319>=AB$1),INDEX(Reliability!G$23:G$50,MATCH($T319,Reliability!$C$23:$C$50,0)),0),0)*$H319*$X319*$Y319),$D319)*$R319","v":0},{"$f":"MIN((IFERROR(IF(AND($V319<=AC$1,$W319>=AC$1),INDEX(Reliability!H$23:H$50,MATCH($S319,Reliability!$C$23:$C$50,0)),0),0)*IF($T319=\"n/a\",$D319*$Y319,$G319)+IFERROR(IF(AND($V319<=AC$1,$W319>=AC$1),INDEX(Reliability!H$23:H$50,MATCH($T319,Reliability!$C$23:$C$50,0)),0),0)*$H319*$X319*$Y319),$D319)*$R319","v":0},{"$f":"MIN((IFERROR(IF(AND($V319<=AD$1,$W319>=AD$1),INDEX(Reliability!I$23:I$50,MATCH($S319,Reliability!$C$23:$C$50,0)),0),0)*IF($T319=\"n/a\",$D319*$Y319,$G319)+IFERROR(IF(AND($V319<=AD$1,$W319>=AD$1),INDEX(Reliability!I$23:I$50,MATCH($T319,Reliability!$C$23:$C$50,0)),0),0)*$H319*$X319*$Y319),$D319)*$R319","v":0},{"$f":"MIN((IFERROR(IF(AND($V319<=AE$1,$W319>=AE$1),INDEX(Reliability!J$23:J$50,MATCH($S319,Reliability!$C$23:$C$50,0)),0),0)*IF($T319=\"n/a\",$D319*$Y319,$G319)+IFERROR(IF(AND($V319<=AE$1,$W319>=AE$1),INDEX(Reliability!J$23:J$50,MATCH($T319,Reliability!$C$23:$C$50,0)),0),0)*$H319*$X319*$Y319),$D319)*$R319","v":0},{"$f":"MIN((IFERROR(IF(AND($V319<=AF$1,$W319>=AF$1),INDEX(Reliability!K$23:K$50,MATCH($S319,Reliability!$C$23:$C$50,0)),0),0)*IF($T319=\"n/a\",$D319*$Y319,$G319)+IFERROR(IF(AND($V319<=AF$1,$W319>=AF$1),INDEX(Reliability!K$23:K$50,MATCH($T319,Reliability!$C$23:$C$50,0)),0),0)*$H319*$X319*$Y319),$D319)*$R319","v":0},{"$f":"MIN((IFERROR(IF(AND($V319<=AG$1,$W319>=AG$1),INDEX(Reliability!L$23:L$50,MATCH($S319,Reliability!$C$23:$C$50,0)),0),0)*IF($T319=\"n/a\",$D319*$Y319,$G319)+IFERROR(IF(AND($V319<=AG$1,$W319>=AG$1),INDEX(Reliability!L$23:L$50,MATCH($T319,Reliability!$C$23:$C$50,0)),0),0)*$H319*$X319*$Y319),$D319)*$R319","v":0},{"$f":"MIN((IFERROR(IF(AND($V319<=AH$1,$W319>=AH$1),INDEX(Reliability!M$23:M$50,MATCH($S319,Reliability!$C$23:$C$50,0)),0),0)*IF($T319=\"n/a\",$D319*$Y319,$G319)+IFERROR(IF(AND($V319<=AH$1,$W319>=AH$1),INDEX(Reliability!M$23:M$50,MATCH($T319,Reliability!$C$23:$C$50,0)),0),0)*$H319*$X319*$Y319),$D319)*$R319","v":0},{"$f":"MIN((IFERROR(IF(AND($V319<=AI$1,$W319>=AI$1),INDEX(Reliability!N$23:N$50,MATCH($S319,Reliability!$C$23:$C$50,0)),0),0)*IF($T319=\"n/a\",$D319*$Y319,$G319)+IFERROR(IF(AND($V319<=AI$1,$W319>=AI$1),INDEX(Reliability!N$23:N$50,MATCH($T319,Reliability!$C$23:$C$50,0)),0),0)*$H319*$X319*$Y319),$D319)*$R319","v":0},{"$f":"MIN((IFERROR(IF(AND($V319<=AJ$1,$W319>=AJ$1),INDEX(Reliability!O$23:O$50,MATCH($S319,Reliability!$C$23:$C$50,0)),0),0)*IF($T319=\"n/a\",$D319*$Y319,$G319)+IFERROR(IF(AND($V319<=AJ$1,$W319>=AJ$1),INDEX(Reliability!O$23:O$50,MATCH($T319,Reliability!$C$23:$C$50,0)),0),0)*$H319*$X319*$Y319),$D319)*$R319","v":0},{"$f":"MIN((IFERROR(IF(AND($V319<=AK$1,$W319>=AK$1),INDEX(Reliability!P$23:P$50,MATCH($S319,Reliability!$C$23:$C$50,0)),0),0)*IF($T319=\"n/a\",$D319*$Y319,$G319)+IFERROR(IF(AND($V319<=AK$1,$W319>=AK$1),INDEX(Reliability!P$23:P$50,MATCH($T319,Reliability!$C$23:$C$50,0)),0),0)*$H319*$X319*$Y319),$D319)*$R319","v":0}]
[null,{"$f":"unique_contracts!B321","v":0},{"$f":"unique_contracts!D321","v":0},{"$f":"unique_contracts!J321","v":0},{"$f":"unique_contracts!M321","v":0},{"$f":"unique_contracts!N321","v":0},{"$f":"unique_contracts!P321","v":0},{"$f":"unique_contracts!R321","v":0},{"$f":"unique_contracts!V321","v":0},{"$f":"unique_contracts!AB321","v":0},{"$f":"unique_contracts!AM321","v":0},{"$f":"unique_contracts!AN321","v":0},{"$f":"unique_contracts!AO321","v":0},{"$f":"unique_contracts!AP321","v":0},{"$f":"unique_contracts!AQ321","v":0},{"$f":"unique_contracts!AR321","v":0},{"$f":"unique_contracts!BP321","v":0},0,{"$f":"IFERROR(IF(AND(I320>0,E320=\"NotHybrid\"),_xlfn.CONCAT(MAX(MIN(ROUNDDOWN(I320/D320,0),8),4),INDEX(resources!$G:$G,MATCH(B320,resources!$A:$A,0))),INDEX(resources!$G:$G,MATCH(B320,resources!$A:$A,0))),\"n/a\")","v":"n/a"},"n/a","n/a",0,0,1,1,{"$f":"MIN((IFERROR(IF(AND($V320<=Z$1,$W320>=Z$1),INDEX(Reliability!E$23:E$50,MATCH($S320,Reliability!$C$23:$C$50,0)),0),0)*IF($T320=\"n/a\",$D320*$Y320,$G320)+IFERROR(IF(AND($V320<=Z$1,$W320>=Z$1),INDEX(Reliability!E$23:E$50,MATCH($T320,Reliability!$C$23:$C$50,0)),0),0)*$H320*$X320*$Y320),$D320)*$R320","v":0},{"$f":"MIN((IFERROR(IF(AND($V320<=AA$1,$W320>=AA$1),INDEX(Reliability!F$23:F$50,MATCH($S320,Reliability!$C$23:$C$50,0)),0),0)*IF($T320=\"n/a\",$D320*$Y320,$G320)+IFERROR(IF(AND($V320<=AA$1,$W320>=AA$1),INDEX(Reliability!F$23:F$50,MATCH($T320,Reliability!$C$23:$C$50,0)),0),0)*$H320*$X320*$Y320),$D320)*$R320","v":0},{"$f":"MIN((IFERROR(IF(AND($V320<=AB$1,$W320>=AB$1),INDEX(Reliability!G$23:G$50,MATCH($S320,Reliability!$C$23:$C$50,0)),0),0)*IF($T320=\"n/a\",$D320*$Y320,$G320)+IFERROR(IF(AND($V320<=AB$1,$W320>=AB$1),INDEX(Reliability!G$23:G$50,MATCH($T320,Reliability!$C$23:$C$50,0)),0),0)*$H320*$X320*$Y320),$D320)*$R320","v":0},{"$f":"MIN((IFERROR(IF(AND($V320<=AC$1,$W320>=AC$1),INDEX(Reliability!H$23:H$50,MATCH($S320,Reliability!$C$23:$C$50,0)),0),0)*IF($T320=\"n/a\",$D320*$Y320,$G320)+IFERROR(IF(AND($V320<=AC$1,$W320>=AC$1),INDEX(Reliability!H$23:H$50,MATCH($T320,Reliability!$C$23:$C$50,0)),0),0)*$H320*$X320*$Y320),$D320)*$R320","v":0},{"$f":"MIN((IFERROR(IF(AND($V320<=AD$1,$W320>=AD$1),INDEX(Reliability!I$23:I$50,MATCH($S320,Reliability!$C$23:$C$50,0)),0),0)*IF($T320=\"n/a\",$D320*$Y320,$G320)+IFERROR(IF(AND($V320<=AD$1,$W320>=AD$1),INDEX(Reliability!I$23:I$50,MATCH($T320,Reliability!$C$23:$C$50,0)),0),0)*$H320*$X320*$Y320),$D320)*$R320","v":0},{"$f":"MIN((IFERROR(IF(AND($V320<=AE$1,$W320>=AE$1),INDEX(Reliability!J$23:J$50,MATCH($S320,Reliability!$C$23:$C$50,0)),0),0)*IF($T320=\"n/a\",$D320*$Y320,$G320)+IFERROR(IF(AND($V320<=AE$1,$W320>=AE$1),INDEX(Reliability!J$23:J$50,MATCH($T320,Reliability!$C$23:$C$50,0)),0),0)*$H320*$X320*$Y320),$D320)*$R320","v":0},{"$f":"MIN((IFERROR(IF(AND($V320<=AF$1,$W320>=AF$1),INDEX(Reliability!K$23:K$50,MATCH($S320,Reliability!$C$23:$C$50,0)),0),0)*IF($T320=\"n/a\",$D320*$Y320,$G320)+IFERROR(IF(AND($V320<=AF$1,$W320>=AF$1),INDEX(Reliability!K$23:K$50,MATCH($T320,Reliability!$C$23:$C$50,0)),0),0)*$H320*$X320*$Y320),$D320)*$R320","v":0},{"$f":"MIN((IFERROR(IF(AND($V320<=AG$1,$W320>=AG$1),INDEX(Reliability!L$23:L$50,MATCH($S320,Reliability!$C$23:$C$50,0)),0),0)*IF($T320=\"n/a\",$D320*$Y320,$G320)+IFERROR(IF(AND($V320<=AG$1,$W320>=AG$1),INDEX(Reliability!L$23:L$50,MATCH($T320,Reliability!$C$23:$C$50,0)),0),0)*$H320*$X320*$Y320),$D320)*$R320","v":0},{"$f":"MIN((IFERROR(IF(AND($V320<=AH$1,$W320>=AH$1),INDEX(Reliability!M$23:M$50,MATCH($S320,Reliability!$C$23:$C$50,0)),0),0)*IF($T320=\"n/a\",$D320*$Y320,$G320)+IFERROR(IF(AND($V320<=AH$1,$W320>=AH$1),INDEX(Reliability!M$23:M$50,MATCH($T320,Reliability!$C$23:$C$50,0)),0),0)*$H320*$X320*$Y320),$D320)*$R320","v":0},{"$f":"MIN((IFERROR(IF(AND($V320<=AI$1,$W320>=AI$1),INDEX(Reliability!N$23:N$50,MATCH($S320,Reliability!$C$23:$C$50,0)),0),0)*IF($T320=\"n/a\",$D320*$Y320,$G320)+IFERROR(IF(AND($V320<=AI$1,$W320>=AI$1),INDEX(Reliability!N$23:N$50,MATCH($T320,Reliability!$C$23:$C$50,0)),0),0)*$H320*$X320*$Y320),$D320)*$R320","v":0},{"$f":"MIN((IFERROR(IF(AND($V320<=AJ$1,$W320>=AJ$1),INDEX(Reliability!O$23:O$50,MATCH($S320,Reliability!$C$23:$C$50,0)),0),0)*IF($T320=\"n/a\",$D320*$Y320,$G320)+IFERROR(IF(AND($V320<=AJ$1,$W320>=AJ$1),INDEX(Reliability!O$23:O$50,MATCH($T320,Reliability!$C$23:$C$50,0)),0),0)*$H320*$X320*$Y320),$D320)*$R320","v":0},{"$f":"MIN((IFERROR(IF(AND($V320<=AK$1,$W320>=AK$1),INDEX(Reliability!P$23:P$50,MATCH($S320,Reliability!$C$23:$C$50,0)),0),0)*IF($T320=\"n/a\",$D320*$Y320,$G320)+IFERROR(IF(AND($V320<=AK$1,$W320>=AK$1),INDEX(Reliability!P$23:P$50,MATCH($T320,Reliability!$C$23:$C$50,0)),0),0)*$H320*$X320*$Y320),$D320)*$R320","v":0}]
[null,{"$f":"unique_contracts!B322","v":0},{"$f":"unique_contracts!D322","v":0},{"$f":"unique_contracts!J322","v":0},{"$f":"unique_contracts!M322","v":0},{"$f":"unique_contracts!N322","v":0},{"$f":"unique_contracts!P322","v":0},{"$f":"unique_contracts!R322","v":0},{"$f":"unique_contracts!V322","v":0},{"$f":"unique_contracts!AB322","v":0},{"$f":"unique_contracts!AM322","v":0},{"$f":"unique_contracts!AN322","v":0},{"$f":"unique_contracts!AO322","v":0},{"$f":"unique_contracts!AP322","v":0},{"$f":"unique_contracts!AQ322","v":0},{"$f":"unique_contracts!AR322","v":0},{"$f":"unique_contracts!BP322","v":0},0,{"$f":"IFERROR(IF(AND(I321>0,E321=\"NotHybrid\"),_xlfn.CONCAT(MAX(MIN(ROUNDDOWN(I321/D321,0),8),4),INDEX(resources!$G:$G,MATCH(B321,resources!$A:$A,0))),INDEX(resources!$G:$G,MATCH(B321,resources!$A:$A,0))),\"n/a\")","v":"n/a"},"n/a","n/a",0,0,1,1,{"$f":"MIN((IFERROR(IF(AND($V321<=Z$1,$W321>=Z$1),INDEX(Reliability!E$23:E$50,MATCH($S321,Reliability!$C$23:$C$50,0)),0),0)*IF($T321=\"n/a\",$D321*$Y321,$G321)+IFERROR(IF(AND($V321<=Z$1,$W321>=Z$1),INDEX(Reliability!E$23:E$50,MATCH($T321,Reliability!$C$23:$C$50,0)),0),0)*$H321*$X321*$Y321),$D321)*$R321","v":0},{"$f":"MIN((IFERROR(IF(AND($V321<=AA$1,$W321>=AA$1),INDEX(Reliability!F$23:F$50,MATCH($S321,Reliability!$C$23:$C$50,0)),0),0)*IF($T321=\"n/a\",$D321*$Y321,$G321)+IFERROR(IF(AND($V321<=AA$1,$W321>=AA$1),INDEX(Reliability!F$23:F$50,MATCH($T321,Reliability!$C$23:$C$50,0)),0),0)*$H321*$X321*$Y321),$D321)*$R321","v":0},{"$f":"MIN((IFERROR(IF(AND($V321<=AB$1,$W321>=AB$1),INDEX(Reliability!G$23:G$50,MATCH($S321,Reliability!$C$23:$C$50,0)),0),0)*IF($T321=\"n/a\",$D321*$Y321,$G321)+IFERROR(IF(AND($V321<=AB$1,$W321>=AB$1),INDEX(Reliability!G$23:G$50,MATCH($T321,Reliability!$C$23:$C$50,0)),0),0)*$H321*$X321*$Y321),$D321)*$R321","v":0},{"$f":"MIN((IFERROR(IF(AND($V321<=AC$1,$W321>=AC$1),INDEX(Reliability!H$23:H$50,MATCH($S321,Reliability!$C$23:$C$50,0)),0),0)*IF($T321=\"n/a\",$D321*$Y321,$G321)+IFERROR(IF(AND($V321<=AC$1,$W321>=AC$1),INDEX(Reliability!H$23:H$50,MATCH($T321,Reliability!$C$23:$C$50,0)),0),0)*$H321*$X321*$Y321),$D321)*$R321","v":0},{"$f":"MIN((IFERROR(IF(AND($V321<=AD$1,$W321>=AD$1),INDEX(Reliability!I$23:I$50,MATCH($S321,Reliability!$C$23:$C$50,0)),0),0)*IF($T321=\"n/a\",$D321*$Y321,$G321)+IFERROR(IF(AND($V321<=AD$1,$W321>=AD$1),INDEX(Reliability!I$23:I$50,MATCH($T321,Reliability!$C$23:$C$50,0)),0),0)*$H321*$X321*$Y321),$D321)*$R321","v":0},{"$f":"MIN((IFERROR(IF(AND($V321<=AE$1,$W321>=AE$1),INDEX(Reliability!J$23:J$50,MATCH($S321,Reliability!$C$23:$C$50,0)),0),0)*IF($T321=\"n/a\",$D321*$Y321,$G321)+IFERROR(IF(AND($V321<=AE$1,$W321>=AE$1),INDEX(Reliability!J$23:J$50,MATCH($T321,Reliability!$C$23:$C$50,0)),0),0)*$H321*$X321*$Y321),$D321)*$R321","v":0},{"$f":"MIN((IFERROR(IF(AND($V321<=AF$1,$W321>=AF$1),INDEX(Reliability!K$23:K$50,MATCH($S321,Reliability!$C$23:$C$50,0)),0),0)*IF($T321=\"n/a\",$D321*$Y321,$G321)+IFERROR(IF(AND($V321<=AF$1,$W321>=AF$1),INDEX(Reliability!K$23:K$50,MATCH($T321,Reliability!$C$23:$C$50,0)),0),0)*$H321*$X321*$Y321),$D321)*$R321","v":0},{"$f":"MIN((IFERROR(IF(AND($V321<=AG$1,$W321>=AG$1),INDEX(Reliability!L$23:L$50,MATCH($S321,Reliability!$C$23:$C$50,0)),0),0)*IF($T321=\"n/a\",$D321*$Y321,$G321)+IFERROR(IF(AND($V321<=AG$1,$W321>=AG$1),INDEX(Reliability!L$23:L$50,MATCH($T321,Reliability!$C$23:$C$50,0)),0),0)*$H321*$X321*$Y321),$D321)*$R321","v":0},{"$f":"MIN((IFERROR(IF(AND($V321<=AH$1,$W321>=AH$1),INDEX(Reliability!M$23:M$50,MATCH($S321,Reliability!$C$23:$C$50,0)),0),0)*IF($T321=\"n/a\",$D321*$Y321,$G321)+IFERROR(IF(AND($V321<=AH$1,$W321>=AH$1),INDEX(Reliability!M$23:M$50,MATCH($T321,Reliability!$C$23:$C$50,0)),0),0)*$H321*$X321*$Y321),$D321)*$R321","v":0},{"$f":"MIN((IFERROR(IF(AND($V321<=AI$1,$W321>=AI$1),INDEX(Reliability!N$23:N$50,MATCH($S321,Reliability!$C$23:$C$50,0)),0),0)*IF($T321=\"n/a\",$D321*$Y321,$G321)+IFERROR(IF(AND($V321<=AI$1,$W321>=AI$1),INDEX(Reliability!N$23:N$50,MATCH($T321,Reliability!$C$23:$C$50,0)),0),0)*$H321*$X321*$Y321),$D321)*$R321","v":0},{"$f":"MIN((IFERROR(IF(AND($V321<=AJ$1,$W321>=AJ$1),INDEX(Reliability!O$23:O$50,MATCH($S321,Reliability!$C$23:$C$50,0)),0),0)*IF($T321=\"n/a\",$D321*$Y321,$G321)+IFERROR(IF(AND($V321<=AJ$1,$W321>=AJ$1),INDEX(Reliability!O$23:O$50,MATCH($T321,Reliability!$C$23:$C$50,0)),0),0)*$H321*$X321*$Y321),$D321)*$R321","v":0},{"$f":"MIN((IFERROR(IF(AND($V321<=AK$1,$W321>=AK$1),INDEX(Reliability!P$23:P$50,MATCH($S321,Reliability!$C$23:$C$50,0)),0),0)*IF($T321=\"n/a\",$D321*$Y321,$G321)+IFERROR(IF(AND($V321<=AK$1,$W321>=AK$1),INDEX(Reliability!P$23:P$50,MATCH($T321,Reliability!$C$23:$C$50,0)),0),0)*$H321*$X321*$Y321),$D321)*$R321","v":0}]
[null,{"$f":"unique_contracts!B323","v":0},{"$f":"unique_contracts!D323","v":0},{"$f":"unique_contracts!J323","v":0},{"$f":"unique_contracts!M323","v":0},{"$f":"unique_contracts!N323","v":0},{"$f":"unique_contracts!P323","v":0},{"$f":"unique_contracts!R323","v":0},{"$f":"unique_contracts!V323","v":0},{"$f":"unique_contracts!AB323","v":0},{"$f":"unique_contracts!AM323","v":0},{"$f":"unique_contracts!AN323","v":0},{"$f":"unique_contracts!AO323","v":0},{"$f":"unique_contracts!AP323","v":0},{"$f":"unique_contracts!AQ323","v":0},{"$f":"unique_contracts!AR323","v":0},{"$f":"unique_contracts!BP323","v":0},0,{"$f":"IFERROR(IF(AND(I322>0,E322=\"NotHybrid\"),_xlfn.CONCAT(MAX(MIN(ROUNDDOWN(I322/D322,0),8),4),INDEX(resources!$G:$G,MATCH(B322,resources!$A:$A,0))),INDEX(resources!$G:$G,MATCH(B322,resources!$A:$A,0))),\"n/a\")","v":"n/a"},"n/a","n/a",0,0,1,1,{"$f":"MIN((IFERROR(IF(AND($V322<=Z$1,$W322>=Z$1),INDEX(Reliability!E$23:E$50,MATCH($S322,Reliability!$C$23:$C$50,0)),0),0)*IF($T322=\"n/a\",$D322*$Y322,$G322)+IFERROR(IF(AND($V322<=Z$1,$W322>=Z$1),INDEX(Reliability!E$23:E$50,MATCH($T322,Reliability!$C$23:$C$50,0)),0),0)*$H322*$X322*$Y322),$D322)*$R322","v":0},{"$f":"MIN((IFERROR(IF(AND($V322<=AA$1,$W322>=AA$1),INDEX(Reliability!F$23:F$50,MATCH($S322,Reliability!$C$23:$C$50,0)),0),0)*IF($T322=\"n/a\",$D322*$Y322,$G322)+IFERROR(IF(AND($V322<=AA$1,$W322>=AA$1),INDEX(Reliability!F$23:F$50,MATCH($T322,Reliability!$C$23:$C$50,0)),0),0)*$H322*$X322*$Y322),$D322)*$R322","v":0},{"$f":"MIN((IFERROR(IF(AND($V322<=AB$1,$W322>=AB$1),INDEX(Reliability!G$23:G$50,MATCH($S322,Reliability!$C$23:$C$50,0)),0),0)*IF($T322=\"n/a\",$D322*$Y322,$G322)+IFERROR(IF(AND($V322<=AB$1,$W322>=AB$1),INDEX(Reliability!G$23:G$50,MATCH($T322,Reliability!$C$23:$C$50,0)),0),0)*$H322*$X322*$Y322),$D322)*$R322","v":0},{"$f":"MIN((IFERROR(IF(AND($V322<=AC$1,$W322>=AC$1),INDEX(Reliability!H$23:H$50,MATCH($S322,Reliability!$C$23:$C$50,0)),0),0)*IF($T322=\"n/a\",$D322*$Y322,$G322)+IFERROR(IF(AND($V322<=AC$1,$W322>=AC$1),INDEX(Reliability!H$23:H$50,MATCH($T322,Reliability!$C$23:$C$50,0)),0),0)*$H322*$X322*$Y322),$D322)*$R322","v":0},{"$f":"MIN((IFERROR(IF(AND($V322<=AD$1,$W322>=AD$1),INDEX(Reliability!I$23:I$50,MATCH($S322,Reliability!$C$23:$C$50,0)),0),0)*IF($T322=\"n/a\",$D322*$Y322,$G322)+IFERROR(IF(AND($V322<=AD$1,$W322>=AD$1),INDEX(Reliability!I$23:I$50,MATCH($T322,Reliability!$C$23:$C$50,0)),0),0)*$H322*$X322*$Y322),$D322)*$R322","v":0},{"$f":"MIN((IFERROR(IF(AND($V322<=AE$1,$W322>=AE$1),INDEX(Reliability!J$23:J$50,MATCH($S322,Reliability!$C$23:$C$50,0)),0),0)*IF($T322=\"n/a\",$D322*$Y322,$G322)+IFERROR(IF(AND($V322<=AE$1,$W322>=AE$1),INDEX(Reliability!J$23:J$50,MATCH($T322,Reliability!$C$23:$C$50,0)),0),0)*$H322*$X322*$Y322),$D322)*$R322","v":0},{"$f":"MIN((IFERROR(IF(AND($V322<=AF$1,$W322>=AF$1),INDEX(Reliability!K$23:K$50,MATCH($S322,Reliability!$C$23:$C$50,0)),0),0)*IF($T322=\"n/a\",$D322*$Y322,$G322)+IFERROR(IF(AND($V322<=AF$1,$W322>=AF$1),INDEX(Reliability!K$23:K$50,MATCH($T322,Reliability!$C$23:$C$50,0)),0),0)*$H322*$X322*$Y322),$D322)*$R322","v":0},{"$f":"MIN((IFERROR(IF(AND($V322<=AG$1,$W322>=AG$1),INDEX(Reliability!L$23:L$50,MATCH($S322,Reliability!$C$23:$C$50,0)),0),0)*IF($T322=\"n/a\",$D322*$Y322,$G322)+IFERROR(IF(AND($V322<=AG$1,$W322>=AG$1),INDEX(Reliability!L$23:L$50,MATCH($T322,Reliability!$C$23:$C$50,0)),0),0)*$H322*$X322*$Y322),$D322)*$R322","v":0},{"$f":"MIN((IFERROR(IF(AND($V322<=AH$1,$W322>=AH$1),INDEX(Reliability!M$23:M$50,MATCH($S322,Reliability!$C$23:$C$50,0)),0),0)*IF($T322=\"n/a\",$D322*$Y322,$G322)+IFERROR(IF(AND($V322<=AH$1,$W322>=AH$1),INDEX(Reliability!M$23:M$50,MATCH($T322,Reliability!$C$23:$C$50,0)),0),0)*$H322*$X322*$Y322),$D322)*$R322","v":0},{"$f":"MIN((IFERROR(IF(AND($V322<=AI$1,$W322>=AI$1),INDEX(Reliability!N$23:N$50,MATCH($S322,Reliability!$C$23:$C$50,0)),0),0)*IF($T322=\"n/a\",$D322*$Y322,$G322)+IFERROR(IF(AND($V322<=AI$1,$W322>=AI$1),INDEX(Reliability!N$23:N$50,MATCH($T322,Reliability!$C$23:$C$50,0)),0),0)*$H322*$X322*$Y322),$D322)*$R322","v":0},{"$f":"MIN((IFERROR(IF(AND($V322<=AJ$1,$W322>=AJ$1),INDEX(Reliability!O$23:O$50,MATCH($S322,Reliability!$C$23:$C$50,0)),0),0)*IF($T322=\"n/a\",$D322*$Y322,$G322)+IFERROR(IF(AND($V322<=AJ$1,$W322>=AJ$1),INDEX(Reliability!O$23:O$50,MATCH($T322,Reliability!$C$23:$C$50,0)),0),0)*$H322*$X322*$Y322),$D322)*$R322","v":0},{"$f":"MIN((IFERROR(IF(AND($V322<=AK$1,$W322>=AK$1),INDEX(Reliability!P$23:P$50,MATCH($S322,Reliability!$C$23:$C$50,0)),0),0)*IF($T322=\"n/a\",$D322*$Y322,$G322)+IFERROR(IF(AND($V322<=AK$1,$W322>=AK$1),INDEX(Reliability!P$23:P$50,MATCH($T322,Reliability!$C$23:$C$50,0)),0),0)*$H322*$X322*$Y322),$D322)*$R322","v":0}]
[null,{"$f":"unique_contracts!B324","v":0},{"$f":"unique_contracts!D324","v":0},{"$f":"unique_contracts!J324","v":0},{"$f":"unique_contracts!M324","v":0},{"$f":"unique_contracts!N324","v":0},{"$f":"unique_contracts!P324","v":0},{"$f":"unique_contracts!R324","v":0},{"$f":"unique_contracts!V324","v":0},{"$f":"unique_contracts!AB324","v":0},{"$f":"unique_contracts!AM324","v":0},{"$f":"unique_contracts!AN324","v":0},{"$f":"unique_contracts!AO324","v":0},{"$f":"unique_contracts!AP324","v":0},{"$f":"unique_contracts!AQ324","v":0},{"$f":"unique_contracts!AR324","v":0},{"$f":"unique_contracts!BP324","v":0},0,{"$f":"IFERROR(IF(AND(I323>0,E323=\"NotHybrid\"),_xlfn.CONCAT(MAX(MIN(ROUNDDOWN(I323/D323,0),8),4),INDEX(resources!$G:$G,MATCH(B323,resources!$A:$A,0))),INDEX(resources!$G:$G,MATCH(B323,resources!$A:$A,0))),\"n/a\")","v":"n/a"},"n/a","n/a",0,0,1,1,{"$f":"MIN((IFERROR(IF(AND($V323<=Z$1,$W323>=Z$1),INDEX(Reliability!E$23:E$50,MATCH($S323,Reliability!$C$23:$C$50,0)),0),0)*IF($T323=\"n/a\",$D323*$Y323,$G323)+IFERROR(IF(AND($V323<=Z$1,$W323>=Z$1),INDEX(Reliability!E$23:E$50,MATCH($T323,Reliability!$C$23:$C$50,0)),0),0)*$H323*$X323*$Y323),$D323)*$R323","v":0},{"$f":"MIN((IFERROR(IF(AND($V323<=AA$1,$W323>=AA$1),INDEX(Reliability!F$23:F$50,MATCH($S323,Reliability!$C$23:$C$50,0)),0),0)*IF($T323=\"n/a\",$D323*$Y323,$G323)+IFERROR(IF(AND($V323<=AA$1,$W323>=AA$1),INDEX(Reliability!F$23:F$50,MATCH($T323,Reliability!$C$23:$C$50,0)),0),0)*$H323*$X323*$Y323),$D323)*$R323","v":0},{"$f":"MIN((IFERROR(IF(AND($V323<=AB$1,$W323>=AB$1),INDEX(Reliability!G$23:G$50,MATCH($S323,Reliability!$C$23:$C$50,0)),0),0)*IF($T323=\"n/a\",$D323*$Y323,$G323)+IFERROR(IF(AND($V323<=AB$1,$W323>=AB$1),INDEX(Reliability!G$23:G$50,MATCH($T323,Reliability!$C$23:$C$50,0)),0),0)*$H323*$X323*$Y323),$D323)*$R323","v":0},{"$f":"MIN((IFERROR(IF(AND($V323<=AC$1,$W323>=AC$1),INDEX(Reliability!H$23:H$50,MATCH($S323,Reliability!$C$23:$C$50,0)),0),0)*IF($T323=\"n/a\",$D323*$Y323,$G323)+IFERROR(IF(AND($V323<=AC$1,$W323>=AC$1),INDEX(Reliability!H$23:H$50,MATCH($T323,Reliability!$C$23:$C$50,0)),0),0)*$H323*$X323*$Y323),$D323)*$R323","v":0},{"$f":"MIN((IFERROR(IF(AND($V323<=AD$1,$W323>=AD$1),INDEX(Reliability!I$23:I$50,MATCH($S323,Reliability!$C$23:$C$50,0)),0),0)*IF($T323=\"n/a\",$D323*$Y323,$G323)+IFERROR(IF(AND($V323<=AD$1,$W323>=AD$1),INDEX(Reliability!I$23:I$50,MATCH($T323,Reliability!$C$23:$C$50,0)),0),0)*$H323*$X323*$Y323),$D323)*$R323","v":0},{"$f":"MIN((IFERROR(IF(AND($V323<=AE$1,$W323>=AE$1),INDEX(Reliability!J$23:J$50,MATCH($S323,Reliability!$C$23:$C$50,0)),0),0)*IF($T323=\"n/a\",$D323*$Y323,$G323)+IFERROR(IF(AND($V323<=AE$1,$W323>=AE$1),INDEX(Reliability!J$23:J$50,MATCH($T323,Reliability!$C$23:$C$50,0)),0),0)*$H323*$X323*$Y323),$D323)*$R323","v":0},{"$f":"MIN((IFERROR(IF(AND($V323<=AF$1,$W323>=AF$1),INDEX(Reliability!K$23:K$50,MATCH($S323,Reliability!$C$23:$C$50,0)),0),0)*IF($T323=\"n/a\",$D323*$Y323,$G323)+IFERROR(IF(AND($V323<=AF$1,$W323>=AF$1),INDEX(Reliability!K$23:K$50,MATCH($T323,Reliability!$C$23:$C$50,0)),0),0)*$H323*$X323*$Y323),$D323)*$R323","v":0},{"$f":"MIN((IFERROR(IF(AND($V323<=AG$1,$W323>=AG$1),INDEX(Reliability!L$23:L$50,MATCH($S323,Reliability!$C$23:$C$50,0)),0),0)*IF($T323=\"n/a\",$D323*$Y323,$G323)+IFERROR(IF(AND($V323<=AG$1,$W323>=AG$1),INDEX(Reliability!L$23:L$50,MATCH($T323,Reliability!$C$23:$C$50,0)),0),0)*$H323*$X323*$Y323),$D323)*$R323","v":0},{"$f":"MIN((IFERROR(IF(AND($V323<=AH$1,$W323>=AH$1),INDEX(Reliability!M$23:M$50,MATCH($S323,Reliability!$C$23:$C$50,0)),0),0)*IF($T323=\"n/a\",$D323*$Y323,$G323)+IFERROR(IF(AND($V323<=AH$1,$W323>=AH$1),INDEX(Reliability!M$23:M$50,MATCH($T323,Reliability!$C$23:$C$50,0)),0),0)*$H323*$X323*$Y323),$D323)*$R323","v":0},{"$f":"MIN((IFERROR(IF(AND($V323<=AI$1,$W323>=AI$1),INDEX(Reliability!N$23:N$50,MATCH($S323,Reliability!$C$23:$C$50,0)),0),0)*IF($T323=\"n/a\",$D323*$Y323,$G323)+IFERROR(IF(AND($V323<=AI$1,$W323>=AI$1),INDEX(Reliability!N$23:N$50,MATCH($T323,Reliability!$C$23:$C$50,0)),0),0)*$H323*$X323*$Y323),$D323)*$R323","v":0},{"$f":"MIN((IFERROR(IF(AND($V323<=AJ$1,$W323>=AJ$1),INDEX(Reliability!O$23:O$50,MATCH($S323,Reliability!$C$23:$C$50,0)),0),0)*IF($T323=\"n/a\",$D323*$Y323,$G323)+IFERROR(IF(AND($V323<=AJ$1,$W323>=AJ$1),INDEX(Reliability!O$23:O$50,MATCH($T323,Reliability!$C$23:$C$50,0)),0),0)*$H323*$X323*$Y323),$D323)*$R323","v":0},{"$f":"MIN((IFERROR(IF(AND($V323<=AK$1,$W323>=AK$1),INDEX(Reliability!P$23:P$50,MATCH($S323,Reliability!$C$23:$C$50,0)),0),0)*IF($T323=\"n/a\",$D323*$Y323,$G323)+IFERROR(IF(AND($V323<=AK$1,$W323>=AK$1),INDEX(Reliability!P$23:P$50,MATCH($T323,Reliability!$C$23:$C$50,0)),0),0)*$H323*$X323*$Y323),$D323)*$R323","v":0}]
[null,{"$f":"unique_contracts!B325","v":0},{"$f":"unique_contracts!D325","v":0},{"$f":"unique_contracts!J325","v":0},{"$f":"unique_contracts!M325","v":0},{"$f":"unique_contracts!N325","v":0},{"$f":"unique_contracts!P325","v":0},{"$f":"unique_contracts!R325","v":0},{"$f":"unique_contracts!V325","v":0},{"$f":"unique_contracts!AB325","v":0},{"$f":"unique_contracts!AM325","v":0},{"$f":"unique_contracts!AN325","v":0},{"$f":"unique_contracts!AO325","v":0},{"$f":"unique_contracts!AP325","v":0},{"$f":"unique_contracts!AQ325","v":0},{"$f":"unique_contracts!AR325","v":0},{"$f":"unique_contracts!BP325","v":0},0,{"$f":"IFERROR(IF(AND(I324>0,E324=\"NotHybrid\"),_xlfn.CONCAT(MAX(MIN(ROUNDDOWN(I324/D324,0),8),4),INDEX(resources!$G:$G,MATCH(B324,resources!$A:$A,0))),INDEX(resources!$G:$G,MATCH(B324,resources!$A:$A,0))),\"n/a\")","v":"n/a"},"n/a","n/a",0,0,1,1,{"$f":"MIN((IFERROR(IF(AND($V324<=Z$1,$W324>=Z$1),INDEX(Reliability!E$23:E$50,MATCH($S324,Reliability!$C$23:$C$50,0)),0),0)*IF($T324=\"n/a\",$D324*$Y324,$G324)+IFERROR(IF(AND($V324<=Z$1,$W324>=Z$1),INDEX(Reliability!E$23:E$50,MATCH($T324,Reliability!$C$23:$C$50,0)),0),0)*$H324*$X324*$Y324),$D324)*$R324","v":0},{"$f":"MIN((IFERROR(IF(AND($V324<=AA$1,$W324>=AA$1),INDEX(Reliability!F$23:F$50,MATCH($S324,Reliability!$C$23:$C$50,0)),0),0)*IF($T324=\"n/a\",$D324*$Y324,$G324)+IFERROR(IF(AND($V324<=AA$1,$W324>=AA$1),INDEX(Reliability!F$23:F$50,MATCH($T324,Reliability!$C$23:$C$50,0)),0),0)*$H324*$X324*$Y324),$D324)*$R324","v":0},{"$f":"MIN((IFERROR(IF(AND($V324<=AB$1,$W324>=AB$1),INDEX(Reliability!G$23:G$50,MATCH($S324,Reliability!$C$23:$C$50,0)),0),0)*IF($T324=\"n/a\",$D324*$Y324,$G324)+IFERROR(IF(AND($V324<=AB$1,$W324>=AB$1),INDEX(Reliability!G$23:G$50,MATCH($T324,Reliability!$C$23:$C$50,0)),0),0)*$H324*$X324*$Y324),$D324)*$R324","v":0},{"$f":"MIN((IFERROR(IF(AND($V324<=AC$1,$W324>=AC$1),INDEX(Reliability!H$23:H$50,MATCH($S324,Reliability!$C$23:$C$50,0)),0),0)*IF($T324=\"n/a\",$D324*$Y324,$G324)+IFERROR(IF(AND($V324<=AC$1,$W324>=AC$1),INDEX(Reliability!H$23:H$50,MATCH($T324,Reliability!$C$23:$C$50,0)),0),0)*$H324*$X324*$Y324),$D324)*$R324","v":0},{"$f":"MIN((IFERROR(IF(AND($V324<=AD$1,$W324>=AD$1),INDEX(Reliability!I$23:I$50,MATCH($S324,Reliability!$C$23:$C$50,0)),0),0)*IF($T324=\"n/a\",$D324*$Y324,$G324)+IFERROR(IF(AND($V324<=AD$1,$W324>=AD$1),INDEX(Reliability!I$23:I$50,MATCH($T324,Reliability!$C$23:$C$50,0)),0),0)*$H324*$X324*$Y324),$D324)*$R324","v":0},{"$f":"MIN((IFERROR(IF(AND($V324<=AE$1,$W324>=AE$1),INDEX(Reliability!J$23:J$50,MATCH($S324,Reliability!$C$23:$C$50,0)),0),0)*IF($T324=\"n/a\",$D324*$Y324,$G324)+IFERROR(IF(AND($V324<=AE$1,$W324>=AE$1),INDEX(Reliability!J$23:J$50,MATCH($T324,Reliability!$C$23:$C$50,0)),0),0)*$H324*$X324*$Y324),$D324)*$R324","v":0},{"$f":"MIN((IFERROR(IF(AND($V324<=AF$1,$W324>=AF$1),INDEX(Reliability!K$23:K$50,MATCH($S324,Reliability!$C$23:$C$50,0)),0),0)*IF($T324=\"n/a\",$D324*$Y324,$G324)+IFERROR(IF(AND($V324<=AF$1,$W324>=AF$1),INDEX(Reliability!K$23:K$50,MATCH($T324,Reliability!$C$23:$C$50,0)),0),0)*$H324*$X324*$Y324),$D324)*$R324","v":0},{"$f":"MIN((IFERROR(IF(AND($V324<=AG$1,$W324>=AG$1),INDEX(Reliability!L$23:L$50,MATCH($S324,Reliability!$C$23:$C$50,0)),0),0)*IF($T324=\"n/a\",$D324*$Y324,$G324)+IFERROR(IF(AND($V324<=AG$1,$W324>=AG$1),INDEX(Reliability!L$23:L$50,MATCH($T324,Reliability!$C$23:$C$50,0)),0),0)*$H324*$X324*$Y324),$D324)*$R324","v":0},{"$f":"MIN((IFERROR(IF(AND($V324<=AH$1,$W324>=AH$1),INDEX(Reliability!M$23:M$50,MATCH($S324,Reliability!$C$23:$C$50,0)),0),0)*IF($T324=\"n/a\",$D324*$Y324,$G324)+IFERROR(IF(AND($V324<=AH$1,$W324>=AH$1),INDEX(Reliability!M$23:M$50,MATCH($T324,Reliability!$C$23:$C$50,0)),0),0)*$H324*$X324*$Y324),$D324)*$R324","v":0},{"$f":"MIN((IFERROR(IF(AND($V324<=AI$1,$W324>=AI$1),INDEX(Reliability!N$23:N$50,MATCH($S324,Reliability!$C$23:$C$50,0)),0),0)*IF($T324=\"n/a\",$D324*$Y324,$G324)+IFERROR(IF(AND($V324<=AI$1,$W324>=AI$1),INDEX(Reliability!N$23:N$50,MATCH($T324,Reliability!$C$23:$C$50,0)),0),0)*$H324*$X324*$Y324),$D324)*$R324","v":0},{"$f":"MIN((IFERROR(IF(AND($V324<=AJ$1,$W324>=AJ$1),INDEX(Reliability!O$23:O$50,MATCH($S324,Reliability!$C$23:$C$50,0)),0),0)*IF($T324=\"n/a\",$D324*$Y324,$G324)+IFERROR(IF(AND($V324<=AJ$1,$W324>=AJ$1),INDEX(Reliability!O$23:O$50,MATCH($T324,Reliability!$C$23:$C$50,0)),0),0)*$H324*$X324*$Y324),$D324)*$R324","v":0},{"$f":"MIN((IFERROR(IF(AND($V324<=AK$1,$W324>=AK$1),INDEX(Reliability!P$23:P$50,MATCH($S324,Reliability!$C$23:$C$50,0)),0),0)*IF($T324=\"n/a\",$D324*$Y324,$G324)+IFERROR(IF(AND($V324<=AK$1,$W324>=AK$1),INDEX(Reliability!P$23:P$50,MATCH($T324,Reliability!$C$23:$C$50,0)),0),0)*$H324*$X324*$Y324),$D324)*$R324","v":0}]
[null,{"$f":"unique_contracts!B326","v":0},{"$f":"unique_contracts!D326","v":0},{"$f":"unique_contracts!J326","v":0},{"$f":"unique_contracts!M326","v":0},{"$f":"unique_contracts!N326","v":0},{"$f":"unique_contracts!P326","v":0},{"$f":"unique_contracts!R326","v":0},{"$f":"unique_contracts!V326","v":0},{"$f":"unique_contracts!AB326","v":0},{"$f":"unique_contracts!AM326","v":0},{"$f":"unique_contracts!AN326","v":0},{"$f":"unique_contracts!AO326","v":0},{"$f":"unique_contracts!AP326","v":0},{"$f":"unique_contracts!AQ326","v":0},{"$f":"unique_contracts!AR326","v":0},{"$f":"unique_contracts!BP326","v":0},0,{"$f":"IFERROR(IF(AND(I325>0,E325=\"NotHybrid\"),_xlfn.CONCAT(MAX(MIN(ROUNDDOWN(I325/D325,0),8),4),INDEX(resources!$G:$G,MATCH(B325,resources!$A:$A,0))),INDEX(resources!$G:$G,MATCH(B325,resources!$A:$A,0))),\"n/a\")","v":"n/a"},"n/a","n/a",0,0,1,1,{"$f":"MIN((IFERROR(IF(AND($V325<=Z$1,$W325>=Z$1),INDEX(Reliability!E$23:E$50,MATCH($S325,Reliability!$C$23:$C$50,0)),0),0)*IF($T325=\"n/a\",$D325*$Y325,$G325)+IFERROR(IF(AND($V325<=Z$1,$W325>=Z$1),INDEX(Reliability!E$23:E$50,MATCH($T325,Reliability!$C$23:$C$50,0)),0),0)*$H325*$X325*$Y325),$D325)*$R325","v":0},{"$f":"MIN((IFERROR(IF(AND($V325<=AA$1,$W325>=AA$1),INDEX(Reliability!F$23:F$50,MATCH($S325,Reliability!$C$23:$C$50,0)),0),0)*IF($T325=\"n/a\",$D325*$Y325,$G325)+IFERROR(IF(AND($V325<=AA$1,$W325>=AA$1),INDEX(Reliability!F$23:F$50,MATCH($T325,Reliability!$C$23:$C$50,0)),0),0)*$H325*$X325*$Y325),$D325)*$R325","v":0},{"$f":"MIN((IFERROR(IF(AND($V325<=AB$1,$W325>=AB$1),INDEX(Reliability!G$23:G$50,MATCH($S325,Reliability!$C$23:$C$50,0)),0),0)*IF($T325=\"n/a\",$D325*$Y325,$G325)+IFERROR(IF(AND($V325<=AB$1,$W325>=AB$1),INDEX(Reliability!G$23:G$50,MATCH($T325,Reliability!$C$23:$C$50,0)),0),0)*$H325*$X325*$Y325),$D325)*$R325","v":0},{"$f":"MIN((IFERROR(IF(AND($V325<=AC$1,$W325>=AC$1),INDEX(Reliability!H$23:H$50,MATCH($S325,Reliability!$C$23:$C$50,0)),0),0)*IF($T325=\"n/a\",$D325*$Y325,$G325)+IFERROR(IF(AND($V325<=AC$1,$W325>=AC$1),INDEX(Reliability!H$23:H$50,MATCH($T325,Reliability!$C$23:$C$50,0)),0),0)*$H325*$X325*$Y325),$D325)*$R325","v":0},{"$f":"MIN((IFERROR(IF(AND($V325<=AD$1,$W325>=AD$1),INDEX(Reliability!I$23:I$50,MATCH($S325,Reliability!$C$23:$C$50,0)),0),0)*IF($T325=\"n/a\",$D325*$Y325,$G325)+IFERROR(IF(AND($V325<=AD$1,$W325>=AD$1),INDEX(Reliability!I$23:I$50,MATCH($T325,Reliability!$C$23:$C$50,0)),0),0)*$H325*$X325*$Y325),$D325)*$R325","v":0},{"$f":"MIN((IFERROR(IF(AND($V325<=AE$1,$W325>=AE$1),INDEX(Reliability!J$23:J$50,MATCH($S325,Reliability!$C$23:$C$50,0)),0),0)*IF($T325=\"n/a\",$D325*$Y325,$G325)+IFERROR(IF(AND($V325<=AE$1,$W325>=AE$1),INDEX(Reliability!J$23:J$50,MATCH($T325,Reliability!$C$23:$C$50,0)),0),0)*$H325*$X325*$Y325),$D325)*$R325","v":0},{"$f":"MIN((IFERROR(IF(AND($V325<=AF$1,$W325>=AF$1),INDEX(Reliability!K$23:K$50,MATCH($S325,Reliability!$C$23:$C$50,0)),0),0)*IF($T325=\"n/a\",$D325*$Y325,$G325)+IFERROR(IF(AND($V325<=AF$1,$W325>=AF$1),INDEX(Reliability!K$23:K$50,MATCH($T325,Reliability!$C$23:$C$50,0)),0),0)*$H325*$X325*$Y325),$D325)*$R325","v":0},{"$f":"MIN((IFERROR(IF(AND($V325<=AG$1,$W325>=AG$1),INDEX(Reliability!L$23:L$50,MATCH($S325,Reliability!$C$23:$C$50,0)),0),0)*IF($T325=\"n/a\",$D325*$Y325,$G325)+IFERROR(IF(AND($V325<=AG$1,$W325>=AG$1),INDEX(Reliability!L$23:L$50,MATCH($T325,Reliability!$C$23:$C$50,0)),0),0)*$H325*$X325*$Y325),$D325)*$R325","v":0},{"$f":"MIN((IFERROR(IF(AND($V325<=AH$1,$W325>=AH$1),INDEX(Reliability!M$23:M$50,MATCH($S325,Reliability!$C$23:$C$50,0)),0),0)*IF($T325=\"n/a\",$D325*$Y325,$G325)+IFERROR(IF(AND($V325<=AH$1,$W325>=AH$1),INDEX(Reliability!M$23:M$50,MATCH($T325,Reliability!$C$23:$C$50,0)),0),0)*$H325*$X325*$Y325),$D325)*$R325","v":0},{"$f":"MIN((IFERROR(IF(AND($V325<=AI$1,$W325>=AI$1),INDEX(Reliability!N$23:N$50,MATCH($S325,Reliability!$C$23:$C$50,0)),0),0)*IF($T325=\"n/a\",$D325*$Y325,$G325)+IFERROR(IF(AND($V325<=AI$1,$W325>=AI$1),INDEX(Reliability!N$23:N$50,MATCH($T325,Reliability!$C$23:$C$50,0)),0),0)*$H325*$X325*$Y325),$D325)*$R325","v":0},{"$f":"MIN((IFERROR(IF(AND($V325<=AJ$1,$W325>=AJ$1),INDEX(Reliability!O$23:O$50,MATCH($S325,Reliability!$C$23:$C$50,0)),0),0)*IF($T325=\"n/a\",$D325*$Y325,$G325)+IFERROR(IF(AND($V325<=AJ$1,$W325>=AJ$1),INDEX(Reliability!O$23:O$50,MATCH($T325,Reliability!$C$23:$C$50,0)),0),0)*$H325*$X325*$Y325),$D325)*$R325","v":0},{"$f":"MIN((IFERROR(IF(AND($V325<=AK$1,$W325>=AK$1),INDEX(Reliability!P$23:P$50,MATCH($S325,Reliability!$C$23:$C$50,0)),0),0)*IF($T325=\"n/a\",$D325*$Y325,$G325)+IFERROR(IF(AND($V325<=AK$1,$W325>=AK$1),INDEX(Reliability!P$23:P$50,MATCH($T325,Reliability!$C$23:$C$50,0)),0),0)*$H325*$X325*$Y325),$D325)*$R325","v":0}]
[null,{"$f":"unique_contracts!B327","v":0},{"$f":"unique_contracts!D327","v":0},{"$f":"unique_contracts!J327","v":0},{"$f":"unique_contracts!M327","v":0},{"$f":"unique_contracts!N327","v":0},{"$f":"unique_contracts!P327","v":0},{"$f":"unique_contracts!R327","v":0},{"$f":"unique_contracts!V327","v":0},{"$f":"unique_contracts!AB327","v":0},{"$f":"unique_contracts!AM327","v":0},{"$f":"unique_contracts!AN327","v":0},{"$f":"unique_contracts!AO327","v":0},{"$f":"unique_contracts!AP327","v":0},{"$f":"unique_contracts!AQ327","v":0},{"$f":"unique_contracts!AR327","v":0},{"$f":"unique_contracts!BP327","v":0},0,{"$f":"IFERROR(IF(AND(I326>0,E326=\"NotHybrid\"),_xlfn.CONCAT(MAX(MIN(ROUNDDOWN(I326/D326,0),8),4),INDEX(resources!$G:$G,MATCH(B326,resources!$A:$A,0))),INDEX(resources!$G:$G,MATCH(B326,resources!$A:$A,0))),\"n/a\")","v":"n/a"},"n/a","n/a",0,0,1,1,{"$f":"MIN((IFERROR(IF(AND($V326<=Z$1,$W326>=Z$1),INDEX(Reliability!E$23:E$50,MATCH($S326,Reliability!$C$23:$C$50,0)),0),0)*IF($T326=\"n/a\",$D326*$Y326,$G326)+IFERROR(IF(AND($V326<=Z$1,$W326>=Z$1),INDEX(Reliability!E$23:E$50,MATCH($T326,Reliability!$C$23:$C$50,0)),0),0)*$H326*$X326*$Y326),$D326)*$R326","v":0},{"$f":"MIN((IFERROR(IF(AND($V326<=AA$1,$W326>=AA$1),INDEX(Reliability!F$23:F$50,MATCH($S326,Reliability!$C$23:$C$50,0)),0),0)*IF($T326=\"n/a\",$D326*$Y326,$G326)+IFERROR(IF(AND($V326<=AA$1,$W326>=AA$1),INDEX(Reliability!F$23:F$50,MATCH($T326,Reliability!$C$23:$C$50,0)),0),0)*$H326*$X326*$Y326),$D326)*$R326","v":0},{"$f":"MIN((IFERROR(IF(AND($V326<=AB$1,$W326>=AB$1),INDEX(Reliability!G$23:G$50,MATCH($S326,Reliability!$C$23:$C$50,0)),0),0)*IF($T326=\"n/a\",$D326*$Y326,$G326)+IFERROR(IF(AND($V326<=AB$1,$W326>=AB$1),INDEX(Reliability!G$23:G$50,MATCH($T326,Reliability!$C$23:$C$50,0)),0),0)*$H326*$X326*$Y326),$D326)*$R326","v":0},{"$f":"MIN((IFERROR(IF(AND($V326<=AC$1,$W326>=AC$1),INDEX(Reliability!H$23:H$50,MATCH($S326,Reliability!$C$23:$C$50,0)),0),0)*IF($T326=\"n/a\",$D326*$Y326,$G326)+IFERROR(IF(AND($V326<=AC$1,$W326>=AC$1),INDEX(Reliability!H$23:H$50,MATCH($T326,Reliability!$C$23:$C$50,0)),0),0)*$H326*$X326*$Y326),$D326)*$R326","v":0},{"$f":"MIN((IFERROR(IF(AND($V326<=AD$1,$W326>=AD$1),INDEX(Reliability!I$23:I$50,MATCH($S326,Reliability!$C$23:$C$50,0)),0),0)*IF($T326=\"n/a\",$D326*$Y326,$G326)+IFERROR(IF(AND($V326<=AD$1,$W326>=AD$1),INDEX(Reliability!I$23:I$50,MATCH($T326,Reliability!$C$23:$C$50,0)),0),0)*$H326*$X326*$Y326),$D326)*$R326","v":0},{"$f":"MIN((IFERROR(IF(AND($V326<=AE$1,$W326>=AE$1),INDEX(Reliability!J$23:J$50,MATCH($S326,Reliability!$C$23:$C$50,0)),0),0)*IF($T326=\"n/a\",$D326*$Y326,$G326)+IFERROR(IF(AND($V326<=AE$1,$W326>=AE$1),INDEX(Reliability!J$23:J$50,MATCH($T326,Reliability!$C$23:$C$50,0)),0),0)*$H326*$X326*$Y326),$D326)*$R326","v":0},{"$f":"MIN((IFERROR(IF(AND($V326<=AF$1,$W326>=AF$1),INDEX(Reliability!K$23:K$50,MATCH($S326,Reliability!$C$23:$C$50,0)),0),0)*IF($T326=\"n/a\",$D326*$Y326,$G326)+IFERROR(IF(AND($V326<=AF$1,$W326>=AF$1),INDEX(Reliability!K$23:K$50,MATCH($T326,Reliability!$C$23:$C$50,0)),0),0)*$H326*$X326*$Y326),$D326)*$R326","v":0},{"$f":"MIN((IFERROR(IF(AND($V326<=AG$1,$W326>=AG$1),INDEX(Reliability!L$23:L$50,MATCH($S326,Reliability!$C$23:$C$50,0)),0),0)*IF($T326=\"n/a\",$D326*$Y326,$G326)+IFERROR(IF(AND($V326<=AG$1,$W326>=AG$1),INDEX(Reliability!L$23:L$50,MATCH($T326,Reliability!$C$23:$C$50,0)),0),0)*$H326*$X326*$Y326),$D326)*$R326","v":0},{"$f":"MIN((IFERROR(IF(AND($V326<=AH$1,$W326>=AH$1),INDEX(Reliability!M$23:M$50,MATCH($S326,Reliability!$C$23:$C$50,0)),0),0)*IF($T326=\"n/a\",$D326*$Y326,$G326)+IFERROR(IF(AND($V326<=AH$1,$W326>=AH$1),INDEX(Reliability!M$23:M$50,MATCH($T326,Reliability!$C$23:$C$50,0)),0),0)*$H326*$X326*$Y326),$D326)*$R326","v":0},{"$f":"MIN((IFERROR(IF(AND($V326<=AI$1,$W326>=AI$1),INDEX(Reliability!N$23:N$50,MATCH($S326,Reliability!$C$23:$C$50,0)),0),0)*IF($T326=\"n/a\",$D326*$Y326,$G326)+IFERROR(IF(AND($V326<=AI$1,$W326>=AI$1),INDEX(Reliability!N$23:N$50,MATCH($T326,Reliability!$C$23:$C$50,0)),0),0)*$H326*$X326*$Y326),$D326)*$R326","v":0},{"$f":"MIN((IFERROR(IF(AND($V326<=AJ$1,$W326>=AJ$1),INDEX(Reliability!O$23:O$50,MATCH($S326,Reliability!$C$23:$C$50,0)),0),0)*IF($T326=\"n/a\",$D326*$Y326,$G326)+IFERROR(IF(AND($V326<=AJ$1,$W326>=AJ$1),INDEX(Reliability!O$23:O$50,MATCH($T326,Reliability!$C$23:$C$50,0)),0),0)*$H326*$X326*$Y326),$D326)*$R326","v":0},{"$f":"MIN((IFERROR(IF(AND($V326<=AK$1,$W326>=AK$1),INDEX(Reliability!P$23:P$50,MATCH($S326,Reliability!$C$23:$C$50,0)),0),0)*IF($T326=\"n/a\",$D326*$Y326,$G326)+IFERROR(IF(AND($V326<=AK$1,$W326>=AK$1),INDEX(Reliability!P$23:P$50,MATCH($T326,Reliability!$C$23:$C$50,0)),0),0)*$H326*$X326*$Y326),$D326)*$R326","v":0}]
[null,{"$f":"unique_contracts!B328","v":0},{"$f":"unique_contracts!D328","v":0},{"$f":"unique_contracts!J328","v":0},{"$f":"unique_contracts!M328","v":0},{"$f":"unique_contracts!N328","v":0},{"$f":"unique_contracts!P328","v":0},{"$f":"unique_contracts!R328","v":0},{"$f":"unique_contracts!V328","v":0},{"$f":"unique_contracts!AB328","v":0},{"$f":"unique_contracts!AM328","v":0},{"$f":"unique_contracts!AN328","v":0},{"$f":"unique_contracts!AO328","v":0},{"$f":"unique_contracts!AP328","v":0},{"$f":"unique_contracts!AQ328","v":0},{"$f":"unique_contracts!AR328","v":0},{"$f":"unique_contracts!BP328","v":0},0,{"$f":"IFERROR(IF(AND(I327>0,E327=\"NotHybrid\"),_xlfn.CONCAT(MAX(MIN(ROUNDDOWN(I327/D327,0),8),4),INDEX(resources!$G:$G,MATCH(B327,resources!$A:$A,0))),INDEX(resources!$G:$G,MATCH(B327,resources!$A:$A,0))),\"n/a\")","v":"n/a"},"n/a","n/a",0,0,1,1,{"$f":"MIN((IFERROR(IF(AND($V327<=Z$1,$W327>=Z$1),INDEX(Reliability!E$23:E$50,MATCH($S327,Reliability!$C$23:$C$50,0)),0),0)*IF($T327=\"n/a\",$D327*$Y327,$G327)+IFERROR(IF(AND($V327<=Z$1,$W327>=Z$1),INDEX(Reliability!E$23:E$50,MATCH($T327,Reliability!$C$23:$C$50,0)),0),0)*$H327*$X327*$Y327),$D327)*$R327","v":0},{"$f":"MIN((IFERROR(IF(AND($V327<=AA$1,$W327>=AA$1),INDEX(Reliability!F$23:F$50,MATCH($S327,Reliability!$C$23:$C$50,0)),0),0)*IF($T327=\"n/a\",$D327*$Y327,$G327)+IFERROR(IF(AND($V327<=AA$1,$W327>=AA$1),INDEX(Reliability!F$23:F$50,MATCH($T327,Reliability!$C$23:$C$50,0)),0),0)*$H327*$X327*$Y327),$D327)*$R327","v":0},{"$f":"MIN((IFERROR(IF(AND($V327<=AB$1,$W327>=AB$1),INDEX(Reliability!G$23:G$50,MATCH($S327,Reliability!$C$23:$C$50,0)),0),0)*IF($T327=\"n/a\",$D327*$Y327,$G327)+IFERROR(IF(AND($V327<=AB$1,$W327>=AB$1),INDEX(Reliability!G$23:G$50,MATCH($T327,Reliability!$C$23:$C$50,0)),0),0)*$H327*$X327*$Y327),$D327)*$R327","v":0},{"$f":"MIN((IFERROR(IF(AND($V327<=AC$1,$W327>=AC$1),INDEX(Reliability!H$23:H$50,MATCH($S327,Reliability!$C$23:$C$50,0)),0),0)*IF($T327=\"n/a\",$D327*$Y327,$G327)+IFERROR(IF(AND($V327<=AC$1,$W327>=AC$1),INDEX(Reliability!H$23:H$50,MATCH($T327,Reliability!$C$23:$C$50,0)),0),0)*$H327*$X327*$Y327),$D327)*$R327","v":0},{"$f":"MIN((IFERROR(IF(AND($V327<=AD$1,$W327>=AD$1),INDEX(Reliability!I$23:I$50,MATCH($S327,Reliability!$C$23:$C$50,0)),0),0)*IF($T327=\"n/a\",$D327*$Y327,$G327)+IFERROR(IF(AND($V327<=AD$1,$W327>=AD$1),INDEX(Reliability!I$23:I$50,MATCH($T327,Reliability!$C$23:$C$50,0)),0),0)*$H327*$X327*$Y327),$D327)*$R327","v":0},{"$f":"MIN((IFERROR(IF(AND($V327<=AE$1,$W327>=AE$1),INDEX(Reliability!J$23:J$50,MATCH($S327,Reliability!$C$23:$C$50,0)),0),0)*IF($T327=\"n/a\",$D327*$Y327,$G327)+IFERROR(IF(AND($V327<=AE$1,$W327>=AE$1),INDEX(Reliability!J$23:J$50,MATCH($T327,Reliability!$C$23:$C$50,0)),0),0)*$H327*$X327*$Y327),$D327)*$R327","v":0},{"$f":"MIN((IFERROR(IF(AND($V327<=AF$1,$W327>=AF$1),INDEX(Reliability!K$23:K$50,MATCH($S327,Reliability!$C$23:$C$50,0)),0),0)*IF($T327=\"n/a\",$D327*$Y327,$G327)+IFERROR(IF(AND($V327<=AF$1,$W327>=AF$1),INDEX(Reliability!K$23:K$50,MATCH($T327,Reliability!$C$23:$C$50,0)),0),0)*$H327*$X327*$Y327),$D327)*$R327","v":0},{"$f":"MIN((IFERROR(IF(AND($V327<=AG$1,$W327>=AG$1),INDEX(Reliability!L$23:L$50,MATCH($S327,Reliability!$C$23:$C$50,0)),0),0)*IF($T327=\"n/a\",$D327*$Y327,$G327)+IFERROR(IF(AND($V327<=AG$1,$W327>=AG$1),INDEX(Reliability!L$23:L$50,MATCH($T327,Reliability!$C$23:$C$50,0)),0),0)*$H327*$X327*$Y327),$D327)*$R327","v":0},{"$f":"MIN((IFERROR(IF(AND($V327<=AH$1,$W327>=AH$1),INDEX(Reliability!M$23:M$50,MATCH($S327,Reliability!$C$23:$C$50,0)),0),0)*IF($T327=\"n/a\",$D327*$Y327,$G327)+IFERROR(IF(AND($V327<=AH$1,$W327>=AH$1),INDEX(Reliability!M$23:M$50,MATCH($T327,Reliability!$C$23:$C$50,0)),0),0)*$H327*$X327*$Y327),$D327)*$R327","v":0},{"$f":"MIN((IFERROR(IF(AND($V327<=AI$1,$W327>=AI$1),INDEX(Reliability!N$23:N$50,MATCH($S327,Reliability!$C$23:$C$50,0)),0),0)*IF($T327=\"n/a\",$D327*$Y327,$G327)+IFERROR(IF(AND($V327<=AI$1,$W327>=AI$1),INDEX(Reliability!N$23:N$50,MATCH($T327,Reliability!$C$23:$C$50,0)),0),0)*$H327*$X327*$Y327),$D327)*$R327","v":0},{"$f":"MIN((IFERROR(IF(AND($V327<=AJ$1,$W327>=AJ$1),INDEX(Reliability!O$23:O$50,MATCH($S327,Reliability!$C$23:$C$50,0)),0),0)*IF($T327=\"n/a\",$D327*$Y327,$G327)+IFERROR(IF(AND($V327<=AJ$1,$W327>=AJ$1),INDEX(Reliability!O$23:O$50,MATCH($T327,Reliability!$C$23:$C$50,0)),0),0)*$H327*$X327*$Y327),$D327)*$R327","v":0},{"$f":"MIN((IFERROR(IF(AND($V327<=AK$1,$W327>=AK$1),INDEX(Reliability!P$23:P$50,MATCH($S327,Reliability!$C$23:$C$50,0)),0),0)*IF($T327=\"n/a\",$D327*$Y327,$G327)+IFERROR(IF(AND($V327<=AK$1,$W327>=AK$1),INDEX(Reliability!P$23:P$50,MATCH($T327,Reliability!$C$23:$C$50,0)),0),0)*$H327*$X327*$Y327),$D327)*$R327","v":0}]
[null,{"$f":"unique_contracts!B329","v":0},{"$f":"unique_contracts!D329","v":0},{"$f":"unique_contracts!J329","v":0},{"$f":"unique_contracts!M329","v":0},{"$f":"unique_contracts!N329","v":0},{"$f":"unique_contracts!P329","v":0},{"$f":"unique_contracts!R329","v":0},{"$f":"unique_contracts!V329","v":0},{"$f":"unique_contracts!AB329","v":0},{"$f":"unique_contracts!AM329","v":0},{"$f":"unique_contracts!AN329","v":0},{"$f":"unique_contracts!AO329","v":0},{"$f":"unique_contracts!AP329","v":0},{"$f":"unique_contracts!AQ329","v":0},{"$f":"unique_contracts!AR329","v":0},{"$f":"unique_contracts!BP329","v":0},0,{"$f":"IFERROR(IF(AND(I328>0,E328=\"NotHybrid\"),_xlfn.CONCAT(MAX(MIN(ROUNDDOWN(I328/D328,0),8),4),INDEX(resources!$G:$G,MATCH(B328,resources!$A:$A,0))),INDEX(resources!$G:$G,MATCH(B328,resources!$A:$A,0))),\"n/a\")","v":"n/a"},"n/a","n/a",0,0,1,1,{"$f":"MIN((IFERROR(IF(AND($V328<=Z$1,$W328>=Z$1),INDEX(Reliability!E$23:E$50,MATCH($S328,Reliability!$C$23:$C$50,0)),0),0)*IF($T328=\"n/a\",$D328*$Y328,$G328)+IFERROR(IF(AND($V328<=Z$1,$W328>=Z$1),INDEX(Reliability!E$23:E$50,MATCH($T328,Reliability!$C$23:$C$50,0)),0),0)*$H328*$X328*$Y328),$D328)*$R328","v":0},{"$f":"MIN((IFERROR(IF(AND($V328<=AA$1,$W328>=AA$1),INDEX(Reliability!F$23:F$50,MATCH($S328,Reliability!$C$23:$C$50,0)),0),0)*IF($T328=\"n/a\",$D328*$Y328,$G328)+IFERROR(IF(AND($V328<=AA$1,$W328>=AA$1),INDEX(Reliability!F$23:F$50,MATCH($T328,Reliability!$C$23:$C$50,0)),0),0)*$H328*$X328*$Y328),$D328)*$R328","v":0},{"$f":"MIN((IFERROR(IF(AND($V328<=AB$1,$W328>=AB$1),INDEX(Reliability!G$23:G$50,MATCH($S328,Reliability!$C$23:$C$50,0)),0),0)*IF($T328=\"n/a\",$D328*$Y328,$G328)+IFERROR(IF(AND($V328<=AB$1,$W328>=AB$1),INDEX(Reliability!G$23:G$50,MATCH($T328,Reliability!$C$23:$C$50,0)),0),0)*$H328*$X328*$Y328),$D328)*$R328","v":0},{"$f":"MIN((IFERROR(IF(AND($V328<=AC$1,$W328>=AC$1),INDEX(Reliability!H$23:H$50,MATCH($S328,Reliability!$C$23:$C$50,0)),0),0)*IF($T328=\"n/a\",$D328*$Y328,$G328)+IFERROR(IF(AND($V328<=AC$1,$W328>=AC$1),INDEX(Reliability!H$23:H$50,MATCH($T328,Reliability!$C$23:$C$50,0)),0),0)*$H328*$X328*$Y328),$D328)*$R328","v":0},{"$f":"MIN((IFERROR(IF(AND($V328<=AD$1,$W328>=AD$1),INDEX(Reliability!I$23:I$50,MATCH($S328,Reliability!$C$23:$C$50,0)),0),0)*IF($T328=\"n/a\",$D328*$Y328,$G328)+IFERROR(IF(AND($V328<=AD$1,$W328>=AD$1),INDEX(Reliability!I$23:I$50,MATCH($T328,Reliability!$C$23:$C$50,0)),0),0)*$H328*$X328*$Y328),$D328)*$R328","v":0},{"$f":"MIN((IFERROR(IF(AND($V328<=AE$1,$W328>=AE$1),INDEX(Reliability!J$23:J$50,MATCH($S328,Reliability!$C$23:$C$50,0)),0),0)*IF($T328=\"n/a\",$D328*$Y328,$G328)+IFERROR(IF(AND($V328<=AE$1,$W328>=AE$1),INDEX(Reliability!J$23:J$50,MATCH($T328,Reliability!$C$23:$C$50,0)),0),0)*$H328*$X328*$Y328),$D328)*$R328","v":0},{"$f":"MIN((IFERROR(IF(AND($V328<=AF$1,$W328>=AF$1),INDEX(Reliability!K$23:K$50,MATCH($S328,Reliability!$C$23:$C$50,0)),0),0)*IF($T328=\"n/a\",$D328*$Y328,$G328)+IFERROR(IF(AND($V328<=AF$1,$W328>=AF$1),INDEX(Reliability!K$23:K$50,MATCH($T328,Reliability!$C$23:$C$50,0)),0),0)*$H328*$X328*$Y328),$D328)*$R328","v":0},{"$f":"MIN((IFERROR(IF(AND($V328<=AG$1,$W328>=AG$1),INDEX(Reliability!L$23:L$50,MATCH($S328,Reliability!$C$23:$C$50,0)),0),0)*IF($T328=\"n/a\",$D328*$Y328,$G328)+IFERROR(IF(AND($V328<=AG$1,$W328>=AG$1),INDEX(Reliability!L$23:L$50,MATCH($T328,Reliability!$C$23:$C$50,0)),0),0)*$H328*$X328*$Y328),$D328)*$R328","v":0},{"$f":"MIN((IFERROR(IF(AND($V328<=AH$1,$W328>=AH$1),INDEX(Reliability!M$23:M$50,MATCH($S328,Reliability!$C$23:$C$50,0)),0),0)*IF($T328=\"n/a\",$D328*$Y328,$G328)+IFERROR(IF(AND($V328<=AH$1,$W328>=AH$1),INDEX(Reliability!M$23:M$50,MATCH($T328,Reliability!$C$23:$C$50,0)),0),0)*$H328*$X328*$Y328),$D328)*$R328","v":0},{"$f":"MIN((IFERROR(IF(AND($V328<=AI$1,$W328>=AI$1),INDEX(Reliability!N$23:N$50,MATCH($S328,Reliability!$C$23:$C$50,0)),0),0)*IF($T328=\"n/a\",$D328*$Y328,$G328)+IFERROR(IF(AND($V328<=AI$1,$W328>=AI$1),INDEX(Reliability!N$23:N$50,MATCH($T328,Reliability!$C$23:$C$50,0)),0),0)*$H328*$X328*$Y328),$D328)*$R328","v":0},{"$f":"MIN((IFERROR(IF(AND($V328<=AJ$1,$W328>=AJ$1),INDEX(Reliability!O$23:O$50,MATCH($S328,Reliability!$C$23:$C$50,0)),0),0)*IF($T328=\"n/a\",$D328*$Y328,$G328)+IFERROR(IF(AND($V328<=AJ$1,$W328>=AJ$1),INDEX(Reliability!O$23:O$50,MATCH($T328,Reliability!$C$23:$C$50,0)),0),0)*$H328*$X328*$Y328),$D328)*$R328","v":0},{"$f":"MIN((IFERROR(IF(AND($V328<=AK$1,$W328>=AK$1),INDEX(Reliability!P$23:P$50,MATCH($S328,Reliability!$C$23:$C$50,0)),0),0)*IF($T328=\"n/a\",$D328*$Y328,$G328)+IFERROR(IF(AND($V328<=AK$1,$W328>=AK$1),INDEX(Reliability!P$23:P$50,MATCH($T328,Reliability!$C$23:$C$50,0)),0),0)*$H328*$X328*$Y328),$D328)*$R328","v":0}]
[null,{"$f":"unique_contracts!B330","v":0},{"$f":"unique_contracts!D330","v":0},{"$f":"unique_contracts!J330","v":0},{"$f":"unique_contracts!M330","v":0},{"$f":"unique_contracts!N330","v":0},{"$f":"unique_contracts!P330","v":0},{"$f":"unique_contracts!R330","v":0},{"$f":"unique_contracts!V330","v":0},{"$f":"unique_contracts!AB330","v":0},{"$f":"unique_contracts!AM330","v":0},{"$f":"unique_contracts!AN330","v":0},{"$f":"unique_contracts!AO330","v":0},{"$f":"unique_contracts!AP330","v":0},{"$f":"unique_contracts!AQ330","v":0},{"$f":"unique_contracts!AR330","v":0},{"$f":"unique_contracts!BP330","v":0},0,{"$f":"IFERROR(IF(AND(I329>0,E329=\"NotHybrid\"),_xlfn.CONCAT(MAX(MIN(ROUNDDOWN(I329/D329,0),8),4),INDEX(resources!$G:$G,MATCH(B329,resources!$A:$A,0))),INDEX(resources!$G:$G,MATCH(B329,resources!$A:$A,0))),\"n/a\")","v":"n/a"},"n/a","n/a",0,0,1,1,{"$f":"MIN((IFERROR(IF(AND($V329<=Z$1,$W329>=Z$1),INDEX(Reliability!E$23:E$50,MATCH($S329,Reliability!$C$23:$C$50,0)),0),0)*IF($T329=\"n/a\",$D329*$Y329,$G329)+IFERROR(IF(AND($V329<=Z$1,$W329>=Z$1),INDEX(Reliability!E$23:E$50,MATCH($T329,Reliability!$C$23:$C$50,0)),0),0)*$H329*$X329*$Y329),$D329)*$R329","v":0},{"$f":"MIN((IFERROR(IF(AND($V329<=AA$1,$W329>=AA$1),INDEX(Reliability!F$23:F$50,MATCH($S329,Reliability!$C$23:$C$50,0)),0),0)*IF($T329=\"n/a\",$D329*$Y329,$G329)+IFERROR(IF(AND($V329<=AA$1,$W329>=AA$1),INDEX(Reliability!F$23:F$50,MATCH($T329,Reliability!$C$23:$C$50,0)),0),0)*$H329*$X329*$Y329),$D329)*$R329","v":0},{"$f":"MIN((IFERROR(IF(AND($V329<=AB$1,$W329>=AB$1),INDEX(Reliability!G$23:G$50,MATCH($S329,Reliability!$C$23:$C$50,0)),0),0)*IF($T329=\"n/a\",$D329*$Y329,$G329)+IFERROR(IF(AND($V329<=AB$1,$W329>=AB$1),INDEX(Reliability!G$23:G$50,MATCH($T329,Reliability!$C$23:$C$50,0)),0),0)*$H329*$X329*$Y329),$D329)*$R329","v":0},{"$f":"MIN((IFERROR(IF(AND($V329<=AC$1,$W329>=AC$1),INDEX(Reliability!H$23:H$50,MATCH($S329,Reliability!$C$23:$C$50,0)),0),0)*IF($T329=\"n/a\",$D329*$Y329,$G329)+IFERROR(IF(AND($V329<=AC$1,$W329>=AC$1),INDEX(Reliability!H$23:H$50,MATCH($T329,Reliability!$C$23:$C$50,0)),0),0)*$H329*$X329*$Y329),$D329)*$R329","v":0},{"$f":"MIN((IFERROR(IF(AND($V329<=AD$1,$W329>=AD$1),INDEX(Reliability!I$23:I$50,MATCH($S329,Reliability!$C$23:$C$50,0)),0),0)*IF($T329=\"n/a\",$D329*$Y329,$G329)+IFERROR(IF(AND($V329<=AD$1,$W329>=AD$1),INDEX(Reliability!I$23:I$50,MATCH($T329,Reliability!$C$23:$C$50,0)),0),0)*$H329*$X329*$Y329),$D329)*$R329","v":0},{"$f":"MIN((IFERROR(IF(AND($V329<=AE$1,$W329>=AE$1),INDEX(Reliability!J$23:J$50,MATCH($S329,Reliability!$C$23:$C$50,0)),0),0)*IF($T329=\"n/a\",$D329*$Y329,$G329)+IFERROR(IF(AND($V329<=AE$1,$W329>=AE$1),INDEX(Reliability!J$23:J$50,MATCH($T329,Reliability!$C$23:$C$50,0)),0),0)*$H329*$X329*$Y329),$D329)*$R329","v":0},{"$f":"MIN((IFERROR(IF(AND($V329<=AF$1,$W329>=AF$1),INDEX(Reliability!K$23:K$50,MATCH($S329,Reliability!$C$23:$C$50,0)),0),0)*IF($T329=\"n/a\",$D329*$Y329,$G329)+IFERROR(IF(AND($V329<=AF$1,$W329>=AF$1),INDEX(Reliability!K$23:K$50,MATCH($T329,Reliability!$C$23:$C$50,0)),0),0)*$H329*$X329*$Y329),$D329)*$R329","v":0},{"$f":"MIN((IFERROR(IF(AND($V329<=AG$1,$W329>=AG$1),INDEX(Reliability!L$23:L$50,MATCH($S329,Reliability!$C$23:$C$50,0)),0),0)*IF($T329=\"n/a\",$D329*$Y329,$G329)+IFERROR(IF(AND($V329<=AG$1,$W329>=AG$1),INDEX(Reliability!L$23:L$50,MATCH($T329,Reliability!$C$23:$C$50,0)),0),0)*$H329*$X329*$Y329),$D329)*$R329","v":0},{"$f":"MIN((IFERROR(IF(AND($V329<=AH$1,$W329>=AH$1),INDEX(Reliability!M$23:M$50,MATCH($S329,Reliability!$C$23:$C$50,0)),0),0)*IF($T329=\"n/a\",$D329*$Y329,$G329)+IFERROR(IF(AND($V329<=AH$1,$W329>=AH$1),INDEX(Reliability!M$23:M$50,MATCH($T329,Reliability!$C$23:$C$50,0)),0),0)*$H329*$X329*$Y329),$D329)*$R329","v":0},{"$f":"MIN((IFERROR(IF(AND($V329<=AI$1,$W329>=AI$1),INDEX(Reliability!N$23:N$50,MATCH($S329,Reliability!$C$23:$C$50,0)),0),0)*IF($T329=\"n/a\",$D329*$Y329,$G329)+IFERROR(IF(AND($V329<=AI$1,$W329>=AI$1),INDEX(Reliability!N$23:N$50,MATCH($T329,Reliability!$C$23:$C$50,0)),0),0)*$H329*$X329*$Y329),$D329)*$R329","v":0},{"$f":"MIN((IFERROR(IF(AND($V329<=AJ$1,$W329>=AJ$1),INDEX(Reliability!O$23:O$50,MATCH($S329,Reliability!$C$23:$C$50,0)),0),0)*IF($T329=\"n/a\",$D329*$Y329,$G329)+IFERROR(IF(AND($V329<=AJ$1,$W329>=AJ$1),INDEX(Reliability!O$23:O$50,MATCH($T329,Reliability!$C$23:$C$50,0)),0),0)*$H329*$X329*$Y329),$D329)*$R329","v":0},{"$f":"MIN((IFERROR(IF(AND($V329<=AK$1,$W329>=AK$1),INDEX(Reliability!P$23:P$50,MATCH($S329,Reliability!$C$23:$C$50,0)),0),0)*IF($T329=\"n/a\",$D329*$Y329,$G329)+IFERROR(IF(AND($V329<=AK$1,$W329>=AK$1),INDEX(Reliability!P$23:P$50,MATCH($T329,Reliability!$C$23:$C$50,0)),0),0)*$H329*$X329*$Y329),$D329)*$R329","v":0}]
[null,{"$f":"unique_contracts!B331","v":0},{"$f":"unique_contracts!D331","v":0},{"$f":"unique_contracts!J331","v":0},{"$f":"unique_contracts!M331","v":0},{"$f":"unique_contracts!N331","v":0},{"$f":"unique_contracts!P331","v":0},{"$f":"unique_contracts!R331","v":0},{"$f":"unique_contracts!V331","v":0},{"$f":"unique_contracts!AB331","v":0},{"$f":"unique_contracts!AM331","v":0},{"$f":"unique_contracts!AN331","v":0},{"$f":"unique_contracts!AO331","v":0},{"$f":"unique_contracts!AP331","v":0},{"$f":"unique_contracts!AQ331","v":0},{"$f":"unique_contracts!AR331","v":0},{"$f":"unique_contracts!BP331","v":0},0,{"$f":"IFERROR(IF(AND(I330>0,E330=\"NotHybrid\"),_xlfn.CONCAT(MAX(MIN(ROUNDDOWN(I330/D330,0),8),4),INDEX(resources!$G:$G,MATCH(B330,resources!$A:$A,0))),INDEX(resources!$G:$G,MATCH(B330,resources!$A:$A,0))),\"n/a\")","v":"n/a"},"n/a","n/a",0,0,1,1,{"$f":"MIN((IFERROR(IF(AND($V330<=Z$1,$W330>=Z$1),INDEX(Reliability!E$23:E$50,MATCH($S330,Reliability!$C$23:$C$50,0)),0),0)*IF($T330=\"n/a\",$D330*$Y330,$G330)+IFERROR(IF(AND($V330<=Z$1,$W330>=Z$1),INDEX(Reliability!E$23:E$50,MATCH($T330,Reliability!$C$23:$C$50,0)),0),0)*$H330*$X330*$Y330),$D330)*$R330","v":0},{"$f":"MIN((IFERROR(IF(AND($V330<=AA$1,$W330>=AA$1),INDEX(Reliability!F$23:F$50,MATCH($S330,Reliability!$C$23:$C$50,0)),0),0)*IF($T330=\"n/a\",$D330*$Y330,$G330)+IFERROR(IF(AND($V330<=AA$1,$W330>=AA$1),INDEX(Reliability!F$23:F$50,MATCH($T330,Reliability!$C$23:$C$50,0)),0),0)*$H330*$X330*$Y330),$D330)*$R330","v":0},{"$f":"MIN((IFERROR(IF(AND($V330<=AB$1,$W330>=AB$1),INDEX(Reliability!G$23:G$50,MATCH($S330,Reliability!$C$23:$C$50,0)),0),0)*IF($T330=\"n/a\",$D330*$Y330,$G330)+IFERROR(IF(AND($V330<=AB$1,$W330>=AB$1),INDEX(Reliability!G$23:G$50,MATCH($T330,Reliability!$C$23:$C$50,0)),0),0)*$H330*$X330*$Y330),$D330)*$R330","v":0},{"$f":"MIN((IFERROR(IF(AND($V330<=AC$1,$W330>=AC$1),INDEX(Reliability!H$23:H$50,MATCH($S330,Reliability!$C$23:$C$50,0)),0),0)*IF($T330=\"n/a\",$D330*$Y330,$G330)+IFERROR(IF(AND($V330<=AC$1,$W330>=AC$1),INDEX(Reliability!H$23:H$50,MATCH($T330,Reliability!$C$23:$C$50,0)),0),0)*$H330*$X330*$Y330),$D330)*$R330","v":0},{"$f":"MIN((IFERROR(IF(AND($V330<=AD$1,$W330>=AD$1),INDEX(Reliability!I$23:I$50,MATCH($S330,Reliability!$C$23:$C$50,0)),0),0)*IF($T330=\"n/a\",$D330*$Y330,$G330)+IFERROR(IF(AND($V330<=AD$1,$W330>=AD$1),INDEX(Reliability!I$23:I$50,MATCH($T330,Reliability!$C$23:$C$50,0)),0),0)*$H330*$X330*$Y330),$D330)*$R330","v":0},{"$f":"MIN((IFERROR(IF(AND($V330<=AE$1,$W330>=AE$1),INDEX(Reliability!J$23:J$50,MATCH($S330,Reliability!$C$23:$C$50,0)),0),0)*IF($T330=\"n/a\",$D330*$Y330,$G330)+IFERROR(IF(AND($V330<=AE$1,$W330>=AE$1),INDEX(Reliability!J$23:J$50,MATCH($T330,Reliability!$C$23:$C$50,0)),0),0)*$H330*$X330*$Y330),$D330)*$R330","v":0},{"$f":"MIN((IFERROR(IF(AND($V330<=AF$1,$W330>=AF$1),INDEX(Reliability!K$23:K$50,MATCH($S330,Reliability!$C$23:$C$50,0)),0),0)*IF($T330=\"n/a\",$D330*$Y330,$G330)+IFERROR(IF(AND($V330<=AF$1,$W330>=AF$1),INDEX(Reliability!K$23:K$50,MATCH($T330,Reliability!$C$23:$C$50,0)),0),0)*$H330*$X330*$Y330),$D330)*$R330","v":0},{"$f":"MIN((IFERROR(IF(AND($V330<=AG$1,$W330>=AG$1),INDEX(Reliability!L$23:L$50,MATCH($S330,Reliability!$C$23:$C$50,0)),0),0)*IF($T330=\"n/a\",$D330*$Y330,$G330)+IFERROR(IF(AND($V330<=AG$1,$W330>=AG$1),INDEX(Reliability!L$23:L$50,MATCH($T330,Reliability!$C$23:$C$50,0)),0),0)*$H330*$X330*$Y330),$D330)*$R330","v":0},{"$f":"MIN((IFERROR(IF(AND($V330<=AH$1,$W330>=AH$1),INDEX(Reliability!M$23:M$50,MATCH($S330,Reliability!$C$23:$C$50,0)),0),0)*IF($T330=\"n/a\",$D330*$Y330,$G330)+IFERROR(IF(AND($V330<=AH$1,$W330>=AH$1),INDEX(Reliability!M$23:M$50,MATCH($T330,Reliability!$C$23:$C$50,0)),0),0)*$H330*$X330*$Y330),$D330)*$R330","v":0},{"$f":"MIN((IFERROR(IF(AND($V330<=AI$1,$W330>=AI$1),INDEX(Reliability!N$23:N$50,MATCH($S330,Reliability!$C$23:$C$50,0)),0),0)*IF($T330=\"n/a\",$D330*$Y330,$G330)+IFERROR(IF(AND($V330<=AI$1,$W330>=AI$1),INDEX(Reliability!N$23:N$50,MATCH($T330,Reliability!$C$23:$C$50,0)),0),0)*$H330*$X330*$Y330),$D330)*$R330","v":0},{"$f":"MIN((IFERROR(IF(AND($V330<=AJ$1,$W330>=AJ$1),INDEX(Reliability!O$23:O$50,MATCH($S330,Reliability!$C$23:$C$50,0)),0),0)*IF($T330=\"n/a\",$D330*$Y330,$G330)+IFERROR(IF(AND($V330<=AJ$1,$W330>=AJ$1),INDEX(Reliability!O$23:O$50,MATCH($T330,Reliability!$C$23:$C$50,0)),0),0)*$H330*$X330*$Y330),$D330)*$R330","v":0},{"$f":"MIN((IFERROR(IF(AND($V330<=AK$1,$W330>=AK$1),INDEX(Reliability!P$23:P$50,MATCH($S330,Reliability!$C$23:$C$50,0)),0),0)*IF($T330=\"n/a\",$D330*$Y330,$G330)+IFERROR(IF(AND($V330<=AK$1,$W330>=AK$1),INDEX(Reliability!P$23:P$50,MATCH($T330,Reliability!$C$23:$C$50,0)),0),0)*$H330*$X330*$Y330),$D330)*$R330","v":0}]
[null,{"$f":"unique_contracts!B332","v":0},{"$f":"unique_contracts!D332","v":0},{"$f":"unique_contracts!J332","v":0},{"$f":"unique_contracts!M332","v":0},{"$f":"unique_contracts!N332","v":0},{"$f":"unique_contracts!P332","v":0},{"$f":"unique_contracts!R332","v":0},{"$f":"unique_contracts!V332","v":0},{"$f":"unique_contracts!AB332","v":0},{"$f":"unique_contracts!AM332","v":0},{"$f":"unique_contracts!AN332","v":0},{"$f":"unique_contracts!AO332","v":0},{"$f":"unique_contracts!AP332","v":0},{"$f":"unique_contracts!AQ332","v":0},{"$f":"unique_contracts!AR332","v":0},{"$f":"unique_contracts!BP332","v":0},0,{"$f":"IFERROR(IF(AND(I331>0,E331=\"NotHybrid\"),_xlfn.CONCAT(MAX(MIN(ROUNDDOWN(I331/D331,0),8),4),INDEX(resources!$G:$G,MATCH(B331,resources!$A:$A,0))),INDEX(resources!$G:$G,MATCH(B331,resources!$A:$A,0))),\"n/a\")","v":"n/a"},"n/a","n/a",0,0,1,1,{"$f":"MIN((IFERROR(IF(AND($V331<=Z$1,$W331>=Z$1),INDEX(Reliability!E$23:E$50,MATCH($S331,Reliability!$C$23:$C$50,0)),0),0)*IF($T331=\"n/a\",$D331*$Y331,$G331)+IFERROR(IF(AND($V331<=Z$1,$W331>=Z$1),INDEX(Reliability!E$23:E$50,MATCH($T331,Reliability!$C$23:$C$50,0)),0),0)*$H331*$X331*$Y331),$D331)*$R331","v":0},{"$f":"MIN((IFERROR(IF(AND($V331<=AA$1,$W331>=AA$1),INDEX(Reliability!F$23:F$50,MATCH($S331,Reliability!$C$23:$C$50,0)),0),0)*IF($T331=\"n/a\",$D331*$Y331,$G331)+IFERROR(IF(AND($V331<=AA$1,$W331>=AA$1),INDEX(Reliability!F$23:F$50,MATCH($T331,Reliability!$C$23:$C$50,0)),0),0)*$H331*$X331*$Y331),$D331)*$R331","v":0},{"$f":"MIN((IFERROR(IF(AND($V331<=AB$1,$W331>=AB$1),INDEX(Reliability!G$23:G$50,MATCH($S331,Reliability!$C$23:$C$50,0)),0),0)*IF($T331=\"n/a\",$D331*$Y331,$G331)+IFERROR(IF(AND($V331<=AB$1,$W331>=AB$1),INDEX(Reliability!G$23:G$50,MATCH($T331,Reliability!$C$23:$C$50,0)),0),0)*$H331*$X331*$Y331),$D331)*$R331","v":0},{"$f":"MIN((IFERROR(IF(AND($V331<=AC$1,$W331>=AC$1),INDEX(Reliability!H$23:H$50,MATCH($S331,Reliability!$C$23:$C$50,0)),0),0)*IF($T331=\"n/a\",$D331*$Y331,$G331)+IFERROR(IF(AND($V331<=AC$1,$W331>=AC$1),INDEX(Reliability!H$23:H$50,MATCH($T331,Reliability!$C$23:$C$50,0)),0),0)*$H331*$X331*$Y331),$D331)*$R331","v":0},{"$f":"MIN((IFERROR(IF(AND($V331<=AD$1,$W331>=AD$1),INDEX(Reliability!I$23:I$50,MATCH($S331,Reliability!$C$23:$C$50,0)),0),0)*IF($T331=\"n/a\",$D331*$Y331,$G331)+IFERROR(IF(AND($V331<=AD$1,$W331>=AD$1),INDEX(Reliability!I$23:I$50,MATCH($T331,Reliability!$C$23:$C$50,0)),0),0)*$H331*$X331*$Y331),$D331)*$R331","v":0},{"$f":"MIN((IFERROR(IF(AND($V331<=AE$1,$W331>=AE$1),INDEX(Reliability!J$23:J$50,MATCH($S331,Reliability!$C$23:$C$50,0)),0),0)*IF($T331=\"n/a\",$D331*$Y331,$G331)+IFERROR(IF(AND($V331<=AE$1,$W331>=AE$1),INDEX(Reliability!J$23:J$50,MATCH($T331,Reliability!$C$23:$C$50,0)),0),0)*$H331*$X331*$Y331),$D331)*$R331","v":0},{"$f":"MIN((IFERROR(IF(AND($V331<=AF$1,$W331>=AF$1),INDEX(Reliability!K$23:K$50,MATCH($S331,Reliability!$C$23:$C$50,0)),0),0)*IF($T331=\"n/a\",$D331*$Y331,$G331)+IFERROR(IF(AND($V331<=AF$1,$W331>=AF$1),INDEX(Reliability!K$23:K$50,MATCH($T331,Reliability!$C$23:$C$50,0)),0),0)*$H331*$X331*$Y331),$D331)*$R331","v":0},{"$f":"MIN((IFERROR(IF(AND($V331<=AG$1,$W331>=AG$1),INDEX(Reliability!L$23:L$50,MATCH($S331,Reliability!$C$23:$C$50,0)),0),0)*IF($T331=\"n/a\",$D331*$Y331,$G331)+IFERROR(IF(AND($V331<=AG$1,$W331>=AG$1),INDEX(Reliability!L$23:L$50,MATCH($T331,Reliability!$C$23:$C$50,0)),0),0)*$H331*$X331*$Y331),$D331)*$R331","v":0},{"$f":"MIN((IFERROR(IF(AND($V331<=AH$1,$W331>=AH$1),INDEX(Reliability!M$23:M$50,MATCH($S331,Reliability!$C$23:$C$50,0)),0),0)*IF($T331=\"n/a\",$D331*$Y331,$G331)+IFERROR(IF(AND($V331<=AH$1,$W331>=AH$1),INDEX(Reliability!M$23:M$50,MATCH($T331,Reliability!$C$23:$C$50,0)),0),0)*$H331*$X331*$Y331),$D331)*$R331","v":0},{"$f":"MIN((IFERROR(IF(AND($V331<=AI$1,$W331>=AI$1),INDEX(Reliability!N$23:N$50,MATCH($S331,Reliability!$C$23:$C$50,0)),0),0)*IF($T331=\"n/a\",$D331*$Y331,$G331)+IFERROR(IF(AND($V331<=AI$1,$W331>=AI$1),INDEX(Reliability!N$23:N$50,MATCH($T331,Reliability!$C$23:$C$50,0)),0),0)*$H331*$X331*$Y331),$D331)*$R331","v":0},{"$f":"MIN((IFERROR(IF(AND($V331<=AJ$1,$W331>=AJ$1),INDEX(Reliability!O$23:O$50,MATCH($S331,Reliability!$C$23:$C$50,0)),0),0)*IF($T331=\"n/a\",$D331*$Y331,$G331)+IFERROR(IF(AND($V331<=AJ$1,$W331>=AJ$1),INDEX(Reliability!O$23:O$50,MATCH($T331,Reliability!$C$23:$C$50,0)),0),0)*$H331*$X331*$Y331),$D331)*$R331","v":0},{"$f":"MIN((IFERROR(IF(AND($V331<=AK$1,$W331>=AK$1),INDEX(Reliability!P$23:P$50,MATCH($S331,Reliability!$C$23:$C$50,0)),0),0)*IF($T331=\"n/a\",$D331*$Y331,$G331)+IFERROR(IF(AND($V331<=AK$1,$W331>=AK$1),INDEX(Reliability!P$23:P$50,MATCH($T331,Reliability!$C$23:$C$50,0)),0),0)*$H331*$X331*$Y331),$D331)*$R331","v":0}]
[null,{"$f":"unique_contracts!B333","v":0},{"$f":"unique_contracts!D333","v":0},{"$f":"unique_contracts!J333","v":0},{"$f":"unique_contracts!M333","v":0},{"$f":"unique_contracts!N333","v":0},{"$f":"unique_contracts!P333","v":0},{"$f":"unique_contracts!R333","v":0},{"$f":"unique_contracts!V333","v":0},{"$f":"unique_contracts!AB333","v":0},{"$f":"unique_contracts!AM333","v":0},{"$f":"unique_contracts!AN333","v":0},{"$f":"unique_contracts!AO333","v":0},{"$f":"unique_contracts!AP333","v":0},{"$f":"unique_contracts!AQ333","v":0},{"$f":"unique_contracts!AR333","v":0},{"$f":"unique_contracts!BP333","v":0},0,{"$f":"IFERROR(IF(AND(I332>0,E332=\"NotHybrid\"),_xlfn.CONCAT(MAX(MIN(ROUNDDOWN(I332/D332,0),8),4),INDEX(resources!$G:$G,MATCH(B332,resources!$A:$A,0))),INDEX(resources!$G:$G,MATCH(B332,resources!$A:$A,0))),\"n/a\")","v":"n/a"},"n/a","n/a",0,0,1,1,{"$f":"MIN((IFERROR(IF(AND($V332<=Z$1,$W332>=Z$1),INDEX(Reliability!E$23:E$50,MATCH($S332,Reliability!$C$23:$C$50,0)),0),0)*IF($T332=\"n/a\",$D332*$Y332,$G332)+IFERROR(IF(AND($V332<=Z$1,$W332>=Z$1),INDEX(Reliability!E$23:E$50,MATCH($T332,Reliability!$C$23:$C$50,0)),0),0)*$H332*$X332*$Y332),$D332)*$R332","v":0},{"$f":"MIN((IFERROR(IF(AND($V332<=AA$1,$W332>=AA$1),INDEX(Reliability!F$23:F$50,MATCH($S332,Reliability!$C$23:$C$50,0)),0),0)*IF($T332=\"n/a\",$D332*$Y332,$G332)+IFERROR(IF(AND($V332<=AA$1,$W332>=AA$1),INDEX(Reliability!F$23:F$50,MATCH($T332,Reliability!$C$23:$C$50,0)),0),0)*$H332*$X332*$Y332),$D332)*$R332","v":0},{"$f":"MIN((IFERROR(IF(AND($V332<=AB$1,$W332>=AB$1),INDEX(Reliability!G$23:G$50,MATCH($S332,Reliability!$C$23:$C$50,0)),0),0)*IF($T332=\"n/a\",$D332*$Y332,$G332)+IFERROR(IF(AND($V332<=AB$1,$W332>=AB$1),INDEX(Reliability!G$23:G$50,MATCH($T332,Reliability!$C$23:$C$50,0)),0),0)*$H332*$X332*$Y332),$D332)*$R332","v":0},{"$f":"MIN((IFERROR(IF(AND($V332<=AC$1,$W332>=AC$1),INDEX(Reliability!H$23:H$50,MATCH($S332,Reliability!$C$23:$C$50,0)),0),0)*IF($T332=\"n/a\",$D332*$Y332,$G332)+IFERROR(IF(AND($V332<=AC$1,$W332>=AC$1),INDEX(Reliability!H$23:H$50,MATCH($T332,Reliability!$C$23:$C$50,0)),0),0)*$H332*$X332*$Y332),$D332)*$R332","v":0},{"$f":"MIN((IFERROR(IF(AND($V332<=AD$1,$W332>=AD$1),INDEX(Reliability!I$23:I$50,MATCH($S332,Reliability!$C$23:$C$50,0)),0),0)*IF($T332=\"n/a\",$D332*$Y332,$G332)+IFERROR(IF(AND($V332<=AD$1,$W332>=AD$1),INDEX(Reliability!I$23:I$50,MATCH($T332,Reliability!$C$23:$C$50,0)),0),0)*$H332*$X332*$Y332),$D332)*$R332","v":0},{"$f":"MIN((IFERROR(IF(AND($V332<=AE$1,$W332>=AE$1),INDEX(Reliability!J$23:J$50,MATCH($S332,Reliability!$C$23:$C$50,0)),0),0)*IF($T332=\"n/a\",$D332*$Y332,$G332)+IFERROR(IF(AND($V332<=AE$1,$W332>=AE$1),INDEX(Reliability!J$23:J$50,MATCH($T332,Reliability!$C$23:$C$50,0)),0),0)*$H332*$X332*$Y332),$D332)*$R332","v":0},{"$f":"MIN((IFERROR(IF(AND($V332<=AF$1,$W332>=AF$1),INDEX(Reliability!K$23:K$50,MATCH($S332,Reliability!$C$23:$C$50,0)),0),0)*IF($T332=\"n/a\",$D332*$Y332,$G332)+IFERROR(IF(AND($V332<=AF$1,$W332>=AF$1),INDEX(Reliability!K$23:K$50,MATCH($T332,Reliability!$C$23:$C$50,0)),0),0)*$H332*$X332*$Y332),$D332)*$R332","v":0},{"$f":"MIN((IFERROR(IF(AND($V332<=AG$1,$W332>=AG$1),INDEX(Reliability!L$23:L$50,MATCH($S332,Reliability!$C$23:$C$50,0)),0),0)*IF($T332=\"n/a\",$D332*$Y332,$G332)+IFERROR(IF(AND($V332<=AG$1,$W332>=AG$1),INDEX(Reliability!L$23:L$50,MATCH($T332,Reliability!$C$23:$C$50,0)),0),0)*$H332*$X332*$Y332),$D332)*$R332","v":0},{"$f":"MIN((IFERROR(IF(AND($V332<=AH$1,$W332>=AH$1),INDEX(Reliability!M$23:M$50,MATCH($S332,Reliability!$C$23:$C$50,0)),0),0)*IF($T332=\"n/a\",$D332*$Y332,$G332)+IFERROR(IF(AND($V332<=AH$1,$W332>=AH$1),INDEX(Reliability!M$23:M$50,MATCH($T332,Reliability!$C$23:$C$50,0)),0),0)*$H332*$X332*$Y332),$D332)*$R332","v":0},{"$f":"MIN((IFERROR(IF(AND($V332<=AI$1,$W332>=AI$1),INDEX(Reliability!N$23:N$50,MATCH($S332,Reliability!$C$23:$C$50,0)),0),0)*IF($T332=\"n/a\",$D332*$Y332,$G332)+IFERROR(IF(AND($V332<=AI$1,$W332>=AI$1),INDEX(Reliability!N$23:N$50,MATCH($T332,Reliability!$C$23:$C$50,0)),0),0)*$H332*$X332*$Y332),$D332)*$R332","v":0},{"$f":"MIN((IFERROR(IF(AND($V332<=AJ$1,$W332>=AJ$1),INDEX(Reliability!O$23:O$50,MATCH($S332,Reliability!$C$23:$C$50,0)),0),0)*IF($T332=\"n/a\",$D332*$Y332,$G332)+IFERROR(IF(AND($V332<=AJ$1,$W332>=AJ$1),INDEX(Reliability!O$23:O$50,MATCH($T332,Reliability!$C$23:$C$50,0)),0),0)*$H332*$X332*$Y332),$D332)*$R332","v":0},{"$f":"MIN((IFERROR(IF(AND($V332<=AK$1,$W332>=AK$1),INDEX(Reliability!P$23:P$50,MATCH($S332,Reliability!$C$23:$C$50,0)),0),0)*IF($T332=\"n/a\",$D332*$Y332,$G332)+IFERROR(IF(AND($V332<=AK$1,$W332>=AK$1),INDEX(Reliability!P$23:P$50,MATCH($T332,Reliability!$C$23:$C$50,0)),0),0)*$H332*$X332*$Y332),$D332)*$R332","v":0}]
[null,{"$f":"unique_contracts!B334","v":0},{"$f":"unique_contracts!D334","v":0},{"$f":"unique_contracts!J334","v":0},{"$f":"unique_contracts!M334","v":0},{"$f":"unique_contracts!N334","v":0},{"$f":"unique_contracts!P334","v":0},{"$f":"unique_contracts!R334","v":0},{"$f":"unique_contracts!V334","v":0},{"$f":"unique_contracts!AB334","v":0},{"$f":"unique_contracts!AM334","v":0},{"$f":"unique_contracts!AN334","v":0},{"$f":"unique_contracts!AO334","v":0},{"$f":"unique_contracts!AP334","v":0},{"$f":"unique_contracts!AQ334","v":0},{"$f":"unique_contracts!AR334","v":0},{"$f":"unique_contracts!BP334","v":0},0,{"$f":"IFERROR(IF(AND(I333>0,E333=\"NotHybrid\"),_xlfn.CONCAT(MAX(MIN(ROUNDDOWN(I333/D333,0),8),4),INDEX(resources!$G:$G,MATCH(B333,resources!$A:$A,0))),INDEX(resources!$G:$G,MATCH(B333,resources!$A:$A,0))),\"n/a\")","v":"n/a"},"n/a","n/a",0,0,1,1,{"$f":"MIN((IFERROR(IF(AND($V333<=Z$1,$W333>=Z$1),INDEX(Reliability!E$23:E$50,MATCH($S333,Reliability!$C$23:$C$50,0)),0),0)*IF($T333=\"n/a\",$D333*$Y333,$G333)+IFERROR(IF(AND($V333<=Z$1,$W333>=Z$1),INDEX(Reliability!E$23:E$50,MATCH($T333,Reliability!$C$23:$C$50,0)),0),0)*$H333*$X333*$Y333),$D333)*$R333","v":0},{"$f":"MIN((IFERROR(IF(AND($V333<=AA$1,$W333>=AA$1),INDEX(Reliability!F$23:F$50,MATCH($S333,Reliability!$C$23:$C$50,0)),0),0)*IF($T333=\"n/a\",$D333*$Y333,$G333)+IFERROR(IF(AND($V333<=AA$1,$W333>=AA$1),INDEX(Reliability!F$23:F$50,MATCH($T333,Reliability!$C$23:$C$50,0)),0),0)*$H333*$X333*$Y333),$D333)*$R333","v":0},{"$f":"MIN((IFERROR(IF(AND($V333<=AB$1,$W333>=AB$1),INDEX(Reliability!G$23:G$50,MATCH($S333,Reliability!$C$23:$C$50,0)),0),0)*IF($T333=\"n/a\",$D333*$Y333,$G333)+IFERROR(IF(AND($V333<=AB$1,$W333>=AB$1),INDEX(Reliability!G$23:G$50,MATCH($T333,Reliability!$C$23:$C$50,0)),0),0)*$H333*$X333*$Y333),$D333)*$R333","v":0},{"$f":"MIN((IFERROR(IF(AND($V333<=AC$1,$W333>=AC$1),INDEX(Reliability!H$23:H$50,MATCH($S333,Reliability!$C$23:$C$50,0)),0),0)*IF($T333=\"n/a\",$D333*$Y333,$G333)+IFERROR(IF(AND($V333<=AC$1,$W333>=AC$1),INDEX(Reliability!H$23:H$50,MATCH($T333,Reliability!$C$23:$C$50,0)),0),0)*$H333*$X333*$Y333),$D333)*$R333","v":0},{"$f":"MIN((IFERROR(IF(AND($V333<=AD$1,$W333>=AD$1),INDEX(Reliability!I$23:I$50,MATCH($S333,Reliability!$C$23:$C$50,0)),0),0)*IF($T333=\"n/a\",$D333*$Y333,$G333)+IFERROR(IF(AND($V333<=AD$1,$W333>=AD$1),INDEX(Reliability!I$23:I$50,MATCH($T333,Reliability!$C$23:$C$50,0)),0),0)*$H333*$X333*$Y333),$D333)*$R333","v":0},{"$f":"MIN((IFERROR(IF(AND($V333<=AE$1,$W333>=AE$1),INDEX(Reliability!J$23:J$50,MATCH($S333,Reliability!$C$23:$C$50,0)),0),0)*IF($T333=\"n/a\",$D333*$Y333,$G333)+IFERROR(IF(AND($V333<=AE$1,$W333>=AE$1),INDEX(Reliability!J$23:J$50,MATCH($T333,Reliability!$C$23:$C$50,0)),0),0)*$H333*$X333*$Y333),$D333)*$R333","v":0},{"$f":"MIN((IFERROR(IF(AND($V333<=AF$1,$W333>=AF$1),INDEX(Reliability!K$23:K$50,MATCH($S333,Reliability!$C$23:$C$50,0)),0),0)*IF($T333=\"n/a\",$D333*$Y333,$G333)+IFERROR(IF(AND($V333<=AF$1,$W333>=AF$1),INDEX(Reliability!K$23:K$50,MATCH($T333,Reliability!$C$23:$C$50,0)),0),0)*$H333*$X333*$Y333),$D333)*$R333","v":0},{"$f":"MIN((IFERROR(IF(AND($V333<=AG$1,$W333>=AG$1),INDEX(Reliability!L$23:L$50,MATCH($S333,Reliability!$C$23:$C$50,0)),0),0)*IF($T333=\"n/a\",$D333*$Y333,$G333)+IFERROR(IF(AND($V333<=AG$1,$W333>=AG$1),INDEX(Reliability!L$23:L$50,MATCH($T333,Reliability!$C$23:$C$50,0)),0),0)*$H333*$X333*$Y333),$D333)*$R333","v":0},{"$f":"MIN((IFERROR(IF(AND($V333<=AH$1,$W333>=AH$1),INDEX(Reliability!M$23:M$50,MATCH($S333,Reliability!$C$23:$C$50,0)),0),0)*IF($T333=\"n/a\",$D333*$Y333,$G333)+IFERROR(IF(AND($V333<=AH$1,$W333>=AH$1),INDEX(Reliability!M$23:M$50,MATCH($T333,Reliability!$C$23:$C$50,0)),0),0)*$H333*$X333*$Y333),$D333)*$R333","v":0},{"$f":"MIN((IFERROR(IF(AND($V333<=AI$1,$W333>=AI$1),INDEX(Reliability!N$23:N$50,MATCH($S333,Reliability!$C$23:$C$50,0)),0),0)*IF($T333=\"n/a\",$D333*$Y333,$G333)+IFERROR(IF(AND($V333<=AI$1,$W333>=AI$1),INDEX(Reliability!N$23:N$50,MATCH($T333,Reliability!$C$23:$C$50,0)),0),0)*$H333*$X333*$Y333),$D333)*$R333","v":0},{"$f":"MIN((IFERROR(IF(AND($V333<=AJ$1,$W333>=AJ$1),INDEX(Reliability!O$23:O$50,MATCH($S333,Reliability!$C$23:$C$50,0)),0),0)*IF($T333=\"n/a\",$D333*$Y333,$G333)+IFERROR(IF(AND($V333<=AJ$1,$W333>=AJ$1),INDEX(Reliability!O$23:O$50,MATCH($T333,Reliability!$C$23:$C$50,0)),0),0)*$H333*$X333*$Y333),$D333)*$R333","v":0},{"$f":"MIN((IFERROR(IF(AND($V333<=AK$1,$W333>=AK$1),INDEX(Reliability!P$23:P$50,MATCH($S333,Reliability!$C$23:$C$50,0)),0),0)*IF($T333=\"n/a\",$D333*$Y333,$G333)+IFERROR(IF(AND($V333<=AK$1,$W333>=AK$1),INDEX(Reliability!P$23:P$50,MATCH($T333,Reliability!$C$23:$C$50,0)),0),0)*$H333*$X333*$Y333),$D333)*$R333","v":0}]
[null,{"$f":"unique_contracts!B335","v":0},{"$f":"unique_contracts!D335","v":0},{"$f":"unique_contracts!J335","v":0},{"$f":"unique_contracts!M335","v":0},{"$f":"unique_contracts!N335","v":0},{"$f":"unique_contracts!P335","v":0},{"$f":"unique_contracts!R335","v":0},{"$f":"unique_contracts!V335","v":0},{"$f":"unique_contracts!AB335","v":0},{"$f":"unique_contracts!AM335","v":0},{"$f":"unique_contracts!AN335","v":0},{"$f":"unique_contracts!AO335","v":0},{"$f":"unique_contracts!AP335","v":0},{"$f":"unique_contracts!AQ335","v":0},{"$f":"unique_contracts!AR335","v":0},{"$f":"unique_contracts!BP335","v":0},0,{"$f":"IFERROR(IF(AND(I334>0,E334=\"NotHybrid\"),_xlfn.CONCAT(MAX(MIN(ROUNDDOWN(I334/D334,0),8),4),INDEX(resources!$G:$G,MATCH(B334,resources!$A:$A,0))),INDEX(resources!$G:$G,MATCH(B334,resources!$A:$A,0))),\"n/a\")","v":"n/a"},"n/a","n/a",0,0,1,1,{"$f":"MIN((IFERROR(IF(AND($V334<=Z$1,$W334>=Z$1),INDEX(Reliability!E$23:E$50,MATCH($S334,Reliability!$C$23:$C$50,0)),0),0)*IF($T334=\"n/a\",$D334*$Y334,$G334)+IFERROR(IF(AND($V334<=Z$1,$W334>=Z$1),INDEX(Reliability!E$23:E$50,MATCH($T334,Reliability!$C$23:$C$50,0)),0),0)*$H334*$X334*$Y334),$D334)*$R334","v":0},{"$f":"MIN((IFERROR(IF(AND($V334<=AA$1,$W334>=AA$1),INDEX(Reliability!F$23:F$50,MATCH($S334,Reliability!$C$23:$C$50,0)),0),0)*IF($T334=\"n/a\",$D334*$Y334,$G334)+IFERROR(IF(AND($V334<=AA$1,$W334>=AA$1),INDEX(Reliability!F$23:F$50,MATCH($T334,Reliability!$C$23:$C$50,0)),0),0)*$H334*$X334*$Y334),$D334)*$R334","v":0},{"$f":"MIN((IFERROR(IF(AND($V334<=AB$1,$W334>=AB$1),INDEX(Reliability!G$23:G$50,MATCH($S334,Reliability!$C$23:$C$50,0)),0),0)*IF($T334=\"n/a\",$D334*$Y334,$G334)+IFERROR(IF(AND($V334<=AB$1,$W334>=AB$1),INDEX(Reliability!G$23:G$50,MATCH($T334,Reliability!$C$23:$C$50,0)),0),0)*$H334*$X334*$Y334),$D334)*$R334","v":0},{"$f":"MIN((IFERROR(IF(AND($V334<=AC$1,$W334>=AC$1),INDEX(Reliability!H$23:H$50,MATCH($S334,Reliability!$C$23:$C$50,0)),0),0)*IF($T334=\"n/a\",$D334*$Y334,$G334)+IFERROR(IF(AND($V334<=AC$1,$W334>=AC$1),INDEX(Reliability!H$23:H$50,MATCH($T334,Reliability!$C$23:$C$50,0)),0),0)*$H334*$X334*$Y334),$D334)*$R334","v":0},{"$f":"MIN((IFERROR(IF(AND($V334<=AD$1,$W334>=AD$1),INDEX(Reliability!I$23:I$50,MATCH($S334,Reliability!$C$23:$C$50,0)),0),0)*IF($T334=\"n/a\",$D334*$Y334,$G334)+IFERROR(IF(AND($V334<=AD$1,$W334>=AD$1),INDEX(Reliability!I$23:I$50,MATCH($T334,Reliability!$C$23:$C$50,0)),0),0)*$H334*$X334*$Y334),$D334)*$R334","v":0},{"$f":"MIN((IFERROR(IF(AND($V334<=AE$1,$W334>=AE$1),INDEX(Reliability!J$23:J$50,MATCH($S334,Reliability!$C$23:$C$50,0)),0),0)*IF($T334=\"n/a\",$D334*$Y334,$G334)+IFERROR(IF(AND($V334<=AE$1,$W334>=AE$1),INDEX(Reliability!J$23:J$50,MATCH($T334,Reliability!$C$23:$C$50,0)),0),0)*$H334*$X334*$Y334),$D334)*$R334","v":0},{"$f":"MIN((IFERROR(IF(AND($V334<=AF$1,$W334>=AF$1),INDEX(Reliability!K$23:K$50,MATCH($S334,Reliability!$C$23:$C$50,0)),0),0)*IF($T334=\"n/a\",$D334*$Y334,$G334)+IFERROR(IF(AND($V334<=AF$1,$W334>=AF$1),INDEX(Reliability!K$23:K$50,MATCH($T334,Reliability!$C$23:$C$50,0)),0),0)*$H334*$X334*$Y334),$D334)*$R334","v":0},{"$f":"MIN((IFERROR(IF(AND($V334<=AG$1,$W334>=AG$1),INDEX(Reliability!L$23:L$50,MATCH($S334,Reliability!$C$23:$C$50,0)),0),0)*IF($T334=\"n/a\",$D334*$Y334,$G334)+IFERROR(IF(AND($V334<=AG$1,$W334>=AG$1),INDEX(Reliability!L$23:L$50,MATCH($T334,Reliability!$C$23:$C$50,0)),0),0)*$H334*$X334*$Y334),$D334)*$R334","v":0},{"$f":"MIN((IFERROR(IF(AND($V334<=AH$1,$W334>=AH$1),INDEX(Reliability!M$23:M$50,MATCH($S334,Reliability!$C$23:$C$50,0)),0),0)*IF($T334=\"n/a\",$D334*$Y334,$G334)+IFERROR(IF(AND($V334<=AH$1,$W334>=AH$1),INDEX(Reliability!M$23:M$50,MATCH($T334,Reliability!$C$23:$C$50,0)),0),0)*$H334*$X334*$Y334),$D334)*$R334","v":0},{"$f":"MIN((IFERROR(IF(AND($V334<=AI$1,$W334>=AI$1),INDEX(Reliability!N$23:N$50,MATCH($S334,Reliability!$C$23:$C$50,0)),0),0)*IF($T334=\"n/a\",$D334*$Y334,$G334)+IFERROR(IF(AND($V334<=AI$1,$W334>=AI$1),INDEX(Reliability!N$23:N$50,MATCH($T334,Reliability!$C$23:$C$50,0)),0),0)*$H334*$X334*$Y334),$D334)*$R334","v":0},{"$f":"MIN((IFERROR(IF(AND($V334<=AJ$1,$W334>=AJ$1),INDEX(Reliability!O$23:O$50,MATCH($S334,Reliability!$C$23:$C$50,0)),0),0)*IF($T334=\"n/a\",$D334*$Y334,$G334)+IFERROR(IF(AND($V334<=AJ$1,$W334>=AJ$1),INDEX(Reliability!O$23:O$50,MATCH($T334,Reliability!$C$23:$C$50,0)),0),0)*$H334*$X334*$Y334),$D334)*$R334","v":0},{"$f":"MIN((IFERROR(IF(AND($V334<=AK$1,$W334>=AK$1),INDEX(Reliability!P$23:P$50,MATCH($S334,Reliability!$C$23:$C$50,0)),0),0)*IF($T334=\"n/a\",$D334*$Y334,$G334)+IFERROR(IF(AND($V334<=AK$1,$W334>=AK$1),INDEX(Reliability!P$23:P$50,MATCH($T334,Reliability!$C$23:$C$50,0)),0),0)*$H334*$X334*$Y334),$D334)*$R334","v":0}]
[null,{"$f":"unique_contracts!B336","v":0},{"$f":"unique_contracts!D336","v":0},{"$f":"unique_contracts!J336","v":0},{"$f":"unique_contracts!M336","v":0},{"$f":"unique_contracts!N336","v":0},{"$f":"unique_contracts!P336","v":0},{"$f":"unique_contracts!R336","v":0},{"$f":"unique_contracts!V336","v":0},{"$f":"unique_contracts!AB336","v":0},{"$f":"unique_contracts!AM336","v":0},{"$f":"unique_contracts!AN336","v":0},{"$f":"unique_contracts!AO336","v":0},{"$f":"unique_contracts!AP336","v":0},{"$f":"unique_contracts!AQ336","v":0},{"$f":"unique_contracts!AR336","v":0},{"$f":"unique_contracts!BP336","v":0},0,{"$f":"IFERROR(IF(AND(I335>0,E335=\"NotHybrid\"),_xlfn.CONCAT(MAX(MIN(ROUNDDOWN(I335/D335,0),8),4),INDEX(resources!$G:$G,MATCH(B335,resources!$A:$A,0))),INDEX(resources!$G:$G,MATCH(B335,resources!$A:$A,0))),\"n/a\")","v":"n/a"},"n/a","n/a",0,0,1,1,{"$f":"MIN((IFERROR(IF(AND($V335<=Z$1,$W335>=Z$1),INDEX(Reliability!E$23:E$50,MATCH($S335,Reliability!$C$23:$C$50,0)),0),0)*IF($T335=\"n/a\",$D335*$Y335,$G335)+IFERROR(IF(AND($V335<=Z$1,$W335>=Z$1),INDEX(Reliability!E$23:E$50,MATCH($T335,Reliability!$C$23:$C$50,0)),0),0)*$H335*$X335*$Y335),$D335)*$R335","v":0},{"$f":"MIN((IFERROR(IF(AND($V335<=AA$1,$W335>=AA$1),INDEX(Reliability!F$23:F$50,MATCH($S335,Reliability!$C$23:$C$50,0)),0),0)*IF($T335=\"n/a\",$D335*$Y335,$G335)+IFERROR(IF(AND($V335<=AA$1,$W335>=AA$1),INDEX(Reliability!F$23:F$50,MATCH($T335,Reliability!$C$23:$C$50,0)),0),0)*$H335*$X335*$Y335),$D335)*$R335","v":0},{"$f":"MIN((IFERROR(IF(AND($V335<=AB$1,$W335>=AB$1),INDEX(Reliability!G$23:G$50,MATCH($S335,Reliability!$C$23:$C$50,0)),0),0)*IF($T335=\"n/a\",$D335*$Y335,$G335)+IFERROR(IF(AND($V335<=AB$1,$W335>=AB$1),INDEX(Reliability!G$23:G$50,MATCH($T335,Reliability!$C$23:$C$50,0)),0),0)*$H335*$X335*$Y335),$D335)*$R335","v":0},{"$f":"MIN((IFERROR(IF(AND($V335<=AC$1,$W335>=AC$1),INDEX(Reliability!H$23:H$50,MATCH($S335,Reliability!$C$23:$C$50,0)),0),0)*IF($T335=\"n/a\",$D335*$Y335,$G335)+IFERROR(IF(AND($V335<=AC$1,$W335>=AC$1),INDEX(Reliability!H$23:H$50,MATCH($T335,Reliability!$C$23:$C$50,0)),0),0)*$H335*$X335*$Y335),$D335)*$R335","v":0},{"$f":"MIN((IFERROR(IF(AND($V335<=AD$1,$W335>=AD$1),INDEX(Reliability!I$23:I$50,MATCH($S335,Reliability!$C$23:$C$50,0)),0),0)*IF($T335=\"n/a\",$D335*$Y335,$G335)+IFERROR(IF(AND($V335<=AD$1,$W335>=AD$1),INDEX(Reliability!I$23:I$50,MATCH($T335,Reliability!$C$23:$C$50,0)),0),0)*$H335*$X335*$Y335),$D335)*$R335","v":0},{"$f":"MIN((IFERROR(IF(AND($V335<=AE$1,$W335>=AE$1),INDEX(Reliability!J$23:J$50,MATCH($S335,Reliability!$C$23:$C$50,0)),0),0)*IF($T335=\"n/a\",$D335*$Y335,$G335)+IFERROR(IF(AND($V335<=AE$1,$W335>=AE$1),INDEX(Reliability!J$23:J$50,MATCH($T335,Reliability!$C$23:$C$50,0)),0),0)*$H335*$X335*$Y335),$D335)*$R335","v":0},{"$f":"MIN((IFERROR(IF(AND($V335<=AF$1,$W335>=AF$1),INDEX(Reliability!K$23:K$50,MATCH($S335,Reliability!$C$23:$C$50,0)),0),0)*IF($T335=\"n/a\",$D335*$Y335,$G335)+IFERROR(IF(AND($V335<=AF$1,$W335>=AF$1),INDEX(Reliability!K$23:K$50,MATCH($T335,Reliability!$C$23:$C$50,0)),0),0)*$H335*$X335*$Y335),$D335)*$R335","v":0},{"$f":"MIN((IFERROR(IF(AND($V335<=AG$1,$W335>=AG$1),INDEX(Reliability!L$23:L$50,MATCH($S335,Reliability!$C$23:$C$50,0)),0),0)*IF($T335=\"n/a\",$D335*$Y335,$G335)+IFERROR(IF(AND($V335<=AG$1,$W335>=AG$1),INDEX(Reliability!L$23:L$50,MATCH($T335,Reliability!$C$23:$C$50,0)),0),0)*$H335*$X335*$Y335),$D335)*$R335","v":0},{"$f":"MIN((IFERROR(IF(AND($V335<=AH$1,$W335>=AH$1),INDEX(Reliability!M$23:M$50,MATCH($S335,Reliability!$C$23:$C$50,0)),0),0)*IF($T335=\"n/a\",$D335*$Y335,$G335)+IFERROR(IF(AND($V335<=AH$1,$W335>=AH$1),INDEX(Reliability!M$23:M$50,MATCH($T335,Reliability!$C$23:$C$50,0)),0),0)*$H335*$X335*$Y335),$D335)*$R335","v":0},{"$f":"MIN((IFERROR(IF(AND($V335<=AI$1,$W335>=AI$1),INDEX(Reliability!N$23:N$50,MATCH($S335,Reliability!$C$23:$C$50,0)),0),0)*IF($T335=\"n/a\",$D335*$Y335,$G335)+IFERROR(IF(AND($V335<=AI$1,$W335>=AI$1),INDEX(Reliability!N$23:N$50,MATCH($T335,Reliability!$C$23:$C$50,0)),0),0)*$H335*$X335*$Y335),$D335)*$R335","v":0},{"$f":"MIN((IFERROR(IF(AND($V335<=AJ$1,$W335>=AJ$1),INDEX(Reliability!O$23:O$50,MATCH($S335,Reliability!$C$23:$C$50,0)),0),0)*IF($T335=\"n/a\",$D335*$Y335,$G335)+IFERROR(IF(AND($V335<=AJ$1,$W335>=AJ$1),INDEX(Reliability!O$23:O$50,MATCH($T335,Reliability!$C$23:$C$50,0)),0),0)*$H335*$X335*$Y335),$D335)*$R335","v":0},{"$f":"MIN((IFERROR(IF(AND($V335<=AK$1,$W335>=AK$1),INDEX(Reliability!P$23:P$50,MATCH($S335,Reliability!$C$23:$C$50,0)),0),0)*IF($T335=\"n/a\",$D335*$Y335,$G335)+IFERROR(IF(AND($V335<=AK$1,$W335>=AK$1),INDEX(Reliability!P$23:P$50,MATCH($T335,Reliability!$C$23:$C$50,0)),0),0)*$H335*$X335*$Y335),$D335)*$R335","v":0}]
[null,{"$f":"unique_contracts!B337","v":0},{"$f":"unique_contracts!D337","v":0},{"$f":"unique_contracts!J337","v":0},{"$f":"unique_contracts!M337","v":0},{"$f":"unique_contracts!N337","v":0},{"$f":"unique_contracts!P337","v":0},{"$f":"unique_contracts!R337","v":0},{"$f":"unique_contracts!V337","v":0},{"$f":"unique_contracts!AB337","v":0},{"$f":"unique_contracts!AM337","v":0},{"$f":"unique_contracts!AN337","v":0},{"$f":"unique_contracts!AO337","v":0},{"$f":"unique_contracts!AP337","v":0},{"$f":"unique_contracts!AQ337","v":0},{"$f":"unique_contracts!AR337","v":0},{"$f":"unique_contracts!BP337","v":0},0,{"$f":"IFERROR(IF(AND(I336>0,E336=\"NotHybrid\"),_xlfn.CONCAT(MAX(MIN(ROUNDDOWN(I336/D336,0),8),4),INDEX(resources!$G:$G,MATCH(B336,resources!$A:$A,0))),INDEX(resources!$G:$G,MATCH(B336,resources!$A:$A,0))),\"n/a\")","v":"n/a"},"n/a","n/a",0,0,1,1,{"$f":"MIN((IFERROR(IF(AND($V336<=Z$1,$W336>=Z$1),INDEX(Reliability!E$23:E$50,MATCH($S336,Reliability!$C$23:$C$50,0)),0),0)*IF($T336=\"n/a\",$D336*$Y336,$G336)+IFERROR(IF(AND($V336<=Z$1,$W336>=Z$1),INDEX(Reliability!E$23:E$50,MATCH($T336,Reliability!$C$23:$C$50,0)),0),0)*$H336*$X336*$Y336),$D336)*$R336","v":0},{"$f":"MIN((IFERROR(IF(AND($V336<=AA$1,$W336>=AA$1),INDEX(Reliability!F$23:F$50,MATCH($S336,Reliability!$C$23:$C$50,0)),0),0)*IF($T336=\"n/a\",$D336*$Y336,$G336)+IFERROR(IF(AND($V336<=AA$1,$W336>=AA$1),INDEX(Reliability!F$23:F$50,MATCH($T336,Reliability!$C$23:$C$50,0)),0),0)*$H336*$X336*$Y336),$D336)*$R336","v":0},{"$f":"MIN((IFERROR(IF(AND($V336<=AB$1,$W336>=AB$1),INDEX(Reliability!G$23:G$50,MATCH($S336,Reliability!$C$23:$C$50,0)),0),0)*IF($T336=\"n/a\",$D336*$Y336,$G336)+IFERROR(IF(AND($V336<=AB$1,$W336>=AB$1),INDEX(Reliability!G$23:G$50,MATCH($T336,Reliability!$C$23:$C$50,0)),0),0)*$H336*$X336*$Y336),$D336)*$R336","v":0},{"$f":"MIN((IFERROR(IF(AND($V336<=AC$1,$W336>=AC$1),INDEX(Reliability!H$23:H$50,MATCH($S336,Reliability!$C$23:$C$50,0)),0),0)*IF($T336=\"n/a\",$D336*$Y336,$G336)+IFERROR(IF(AND($V336<=AC$1,$W336>=AC$1),INDEX(Reliability!H$23:H$50,MATCH($T336,Reliability!$C$23:$C$50,0)),0),0)*$H336*$X336*$Y336),$D336)*$R336","v":0},{"$f":"MIN((IFERROR(IF(AND($V336<=AD$1,$W336>=AD$1),INDEX(Reliability!I$23:I$50,MATCH($S336,Reliability!$C$23:$C$50,0)),0),0)*IF($T336=\"n/a\",$D336*$Y336,$G336)+IFERROR(IF(AND($V336<=AD$1,$W336>=AD$1),INDEX(Reliability!I$23:I$50,MATCH($T336,Reliability!$C$23:$C$50,0)),0),0)*$H336*$X336*$Y336),$D336)*$R336","v":0},{"$f":"MIN((IFERROR(IF(AND($V336<=AE$1,$W336>=AE$1),INDEX(Reliability!J$23:J$50,MATCH($S336,Reliability!$C$23:$C$50,0)),0),0)*IF($T336=\"n/a\",$D336*$Y336,$G336)+IFERROR(IF(AND($V336<=AE$1,$W336>=AE$1),INDEX(Reliability!J$23:J$50,MATCH($T336,Reliability!$C$23:$C$50,0)),0),0)*$H336*$X336*$Y336),$D336)*$R336","v":0},{"$f":"MIN((IFERROR(IF(AND($V336<=AF$1,$W336>=AF$1),INDEX(Reliability!K$23:K$50,MATCH($S336,Reliability!$C$23:$C$50,0)),0),0)*IF($T336=\"n/a\",$D336*$Y336,$G336)+IFERROR(IF(AND($V336<=AF$1,$W336>=AF$1),INDEX(Reliability!K$23:K$50,MATCH($T336,Reliability!$C$23:$C$50,0)),0),0)*$H336*$X336*$Y336),$D336)*$R336","v":0},{"$f":"MIN((IFERROR(IF(AND($V336<=AG$1,$W336>=AG$1),INDEX(Reliability!L$23:L$50,MATCH($S336,Reliability!$C$23:$C$50,0)),0),0)*IF($T336=\"n/a\",$D336*$Y336,$G336)+IFERROR(IF(AND($V336<=AG$1,$W336>=AG$1),INDEX(Reliability!L$23:L$50,MATCH($T336,Reliability!$C$23:$C$50,0)),0),0)*$H336*$X336*$Y336),$D336)*$R336","v":0},{"$f":"MIN((IFERROR(IF(AND($V336<=AH$1,$W336>=AH$1),INDEX(Reliability!M$23:M$50,MATCH($S336,Reliability!$C$23:$C$50,0)),0),0)*IF($T336=\"n/a\",$D336*$Y336,$G336)+IFERROR(IF(AND($V336<=AH$1,$W336>=AH$1),INDEX(Reliability!M$23:M$50,MATCH($T336,Reliability!$C$23:$C$50,0)),0),0)*$H336*$X336*$Y336),$D336)*$R336","v":0},{"$f":"MIN((IFERROR(IF(AND($V336<=AI$1,$W336>=AI$1),INDEX(Reliability!N$23:N$50,MATCH($S336,Reliability!$C$23:$C$50,0)),0),0)*IF($T336=\"n/a\",$D336*$Y336,$G336)+IFERROR(IF(AND($V336<=AI$1,$W336>=AI$1),INDEX(Reliability!N$23:N$50,MATCH($T336,Reliability!$C$23:$C$50,0)),0),0)*$H336*$X336*$Y336),$D336)*$R336","v":0},{"$f":"MIN((IFERROR(IF(AND($V336<=AJ$1,$W336>=AJ$1),INDEX(Reliability!O$23:O$50,MATCH($S336,Reliability!$C$23:$C$50,0)),0),0)*IF($T336=\"n/a\",$D336*$Y336,$G336)+IFERROR(IF(AND($V336<=AJ$1,$W336>=AJ$1),INDEX(Reliability!O$23:O$50,MATCH($T336,Reliability!$C$23:$C$50,0)),0),0)*$H336*$X336*$Y336),$D336)*$R336","v":0},{"$f":"MIN((IFERROR(IF(AND($V336<=AK$1,$W336>=AK$1),INDEX(Reliability!P$23:P$50,MATCH($S336,Reliability!$C$23:$C$50,0)),0),0)*IF($T336=\"n/a\",$D336*$Y336,$G336)+IFERROR(IF(AND($V336<=AK$1,$W336>=AK$1),INDEX(Reliability!P$23:P$50,MATCH($T336,Reliability!$C$23:$C$50,0)),0),0)*$H336*$X336*$Y336),$D336)*$R336","v":0}]
[null,{"$f":"unique_contracts!B338","v":0},{"$f":"unique_contracts!D338","v":0},{"$f":"unique_contracts!J338","v":0},{"$f":"unique_contracts!M338","v":0},{"$f":"unique_contracts!N338","v":0},{"$f":"unique_contracts!P338","v":0},{"$f":"unique_contracts!R338","v":0},{"$f":"unique_contracts!V338","v":0},{"$f":"unique_contracts!AB338","v":0},{"$f":"unique_contracts!AM338","v":0},{"$f":"unique_contracts!AN338","v":0},{"$f":"unique_contracts!AO338","v":0},{"$f":"unique_contracts!AP338","v":0},{"$f":"unique_contracts!AQ338","v":0},{"$f":"unique_contracts!AR338","v":0},{"$f":"unique_contracts!BP338","v":0},0,{"$f":"IFERROR(IF(AND(I337>0,E337=\"NotHybrid\"),_xlfn.CONCAT(MAX(MIN(ROUNDDOWN(I337/D337,0),8),4),INDEX(resources!$G:$G,MATCH(B337,resources!$A:$A,0))),INDEX(resources!$G:$G,MATCH(B337,resources!$A:$A,0))),\"n/a\")","v":"n/a"},"n/a","n/a",0,0,1,1,{"$f":"MIN((IFERROR(IF(AND($V337<=Z$1,$W337>=Z$1),INDEX(Reliability!E$23:E$50,MATCH($S337,Reliability!$C$23:$C$50,0)),0),0)*IF($T337=\"n/a\",$D337*$Y337,$G337)+IFERROR(IF(AND($V337<=Z$1,$W337>=Z$1),INDEX(Reliability!E$23:E$50,MATCH($T337,Reliability!$C$23:$C$50,0)),0),0)*$H337*$X337*$Y337),$D337)*$R337","v":0},{"$f":"MIN((IFERROR(IF(AND($V337<=AA$1,$W337>=AA$1),INDEX(Reliability!F$23:F$50,MATCH($S337,Reliability!$C$23:$C$50,0)),0),0)*IF($T337=\"n/a\",$D337*$Y337,$G337)+IFERROR(IF(AND($V337<=AA$1,$W337>=AA$1),INDEX(Reliability!F$23:F$50,MATCH($T337,Reliability!$C$23:$C$50,0)),0),0)*$H337*$X337*$Y337),$D337)*$R337","v":0},{"$f":"MIN((IFERROR(IF(AND($V337<=AB$1,$W337>=AB$1),INDEX(Reliability!G$23:G$50,MATCH($S337,Reliability!$C$23:$C$50,0)),0),0)*IF($T337=\"n/a\",$D337*$Y337,$G337)+IFERROR(IF(AND($V337<=AB$1,$W337>=AB$1),INDEX(Reliability!G$23:G$50,MATCH($T337,Reliability!$C$23:$C$50,0)),0),0)*$H337*$X337*$Y337),$D337)*$R337","v":0},{"$f":"MIN((IFERROR(IF(AND($V337<=AC$1,$W337>=AC$1),INDEX(Reliability!H$23:H$50,MATCH($S337,Reliability!$C$23:$C$50,0)),0),0)*IF($T337=\"n/a\",$D337*$Y337,$G337)+IFERROR(IF(AND($V337<=AC$1,$W337>=AC$1),INDEX(Reliability!H$23:H$50,MATCH($T337,Reliability!$C$23:$C$50,0)),0),0)*$H337*$X337*$Y337),$D337)*$R337","v":0},{"$f":"MIN((IFERROR(IF(AND($V337<=AD$1,$W337>=AD$1),INDEX(Reliability!I$23:I$50,MATCH($S337,Reliability!$C$23:$C$50,0)),0),0)*IF($T337=\"n/a\",$D337*$Y337,$G337)+IFERROR(IF(AND($V337<=AD$1,$W337>=AD$1),INDEX(Reliability!I$23:I$50,MATCH($T337,Reliability!$C$23:$C$50,0)),0),0)*$H337*$X337*$Y337),$D337)*$R337","v":0},{"$f":"MIN((IFERROR(IF(AND($V337<=AE$1,$W337>=AE$1),INDEX(Reliability!J$23:J$50,MATCH($S337,Reliability!$C$23:$C$50,0)),0),0)*IF($T337=\"n/a\",$D337*$Y337,$G337)+IFERROR(IF(AND($V337<=AE$1,$W337>=AE$1),INDEX(Reliability!J$23:J$50,MATCH($T337,Reliability!$C$23:$C$50,0)),0),0)*$H337*$X337*$Y337),$D337)*$R337","v":0},{"$f":"MIN((IFERROR(IF(AND($V337<=AF$1,$W337>=AF$1),INDEX(Reliability!K$23:K$50,MATCH($S337,Reliability!$C$23:$C$50,0)),0),0)*IF($T337=\"n/a\",$D337*$Y337,$G337)+IFERROR(IF(AND($V337<=AF$1,$W337>=AF$1),INDEX(Reliability!K$23:K$50,MATCH($T337,Reliability!$C$23:$C$50,0)),0),0)*$H337*$X337*$Y337),$D337)*$R337","v":0},{"$f":"MIN((IFERROR(IF(AND($V337<=AG$1,$W337>=AG$1),INDEX(Reliability!L$23:L$50,MATCH($S337,Reliability!$C$23:$C$50,0)),0),0)*IF($T337=\"n/a\",$D337*$Y337,$G337)+IFERROR(IF(AND($V337<=AG$1,$W337>=AG$1),INDEX(Reliability!L$23:L$50,MATCH($T337,Reliability!$C$23:$C$50,0)),0),0)*$H337*$X337*$Y337),$D337)*$R337","v":0},{"$f":"MIN((IFERROR(IF(AND($V337<=AH$1,$W337>=AH$1),INDEX(Reliability!M$23:M$50,MATCH($S337,Reliability!$C$23:$C$50,0)),0),0)*IF($T337=\"n/a\",$D337*$Y337,$G337)+IFERROR(IF(AND($V337<=AH$1,$W337>=AH$1),INDEX(Reliability!M$23:M$50,MATCH($T337,Reliability!$C$23:$C$50,0)),0),0)*$H337*$X337*$Y337),$D337)*$R337","v":0},{"$f":"MIN((IFERROR(IF(AND($V337<=AI$1,$W337>=AI$1),INDEX(Reliability!N$23:N$50,MATCH($S337,Reliability!$C$23:$C$50,0)),0),0)*IF($T337=\"n/a\",$D337*$Y337,$G337)+IFERROR(IF(AND($V337<=AI$1,$W337>=AI$1),INDEX(Reliability!N$23:N$50,MATCH($T337,Reliability!$C$23:$C$50,0)),0),0)*$H337*$X337*$Y337),$D337)*$R337","v":0},{"$f":"MIN((IFERROR(IF(AND($V337<=AJ$1,$W337>=AJ$1),INDEX(Reliability!O$23:O$50,MATCH($S337,Reliability!$C$23:$C$50,0)),0),0)*IF($T337=\"n/a\",$D337*$Y337,$G337)+IFERROR(IF(AND($V337<=AJ$1,$W337>=AJ$1),INDEX(Reliability!O$23:O$50,MATCH($T337,Reliability!$C$23:$C$50,0)),0),0)*$H337*$X337*$Y337),$D337)*$R337","v":0},{"$f":"MIN((IFERROR(IF(AND($V337<=AK$1,$W337>=AK$1),INDEX(Reliability!P$23:P$50,MATCH($S337,Reliability!$C$23:$C$50,0)),0),0)*IF($T337=\"n/a\",$D337*$Y337,$G337)+IFERROR(IF(AND($V337<=AK$1,$W337>=AK$1),INDEX(Reliability!P$23:P$50,MATCH($T337,Reliability!$C$23:$C$50,0)),0),0)*$H337*$X337*$Y337),$D337)*$R337","v":0}]
[null,{"$f":"unique_contracts!B339","v":0},{"$f":"unique_contracts!D339","v":0},{"$f":"unique_contracts!J339","v":0},{"$f":"unique_contracts!M339","v":0},{"$f":"unique_contracts!N339","v":0},{"$f":"unique_contracts!P339","v":0},{"$f":"unique_contracts!R339","v":0},{"$f":"unique_contracts!V339","v":0},{"$f":"unique_contracts!AB339","v":0},{"$f":"unique_contracts!AM339","v":0},{"$f":"unique_contracts!AN339","v":0},{"$f":"unique_contracts!AO339","v":0},{"$f":"unique_contracts!AP339","v":0},{"$f":"unique_contracts!AQ339","v":0},{"$f":"unique_contracts!AR339","v":0},{"$f":"unique_contracts!BP339","v":0},0,{"$f":"IFERROR(IF(AND(I338>0,E338=\"NotHybrid\"),_xlfn.CONCAT(MAX(MIN(ROUNDDOWN(I338/D338,0),8),4),INDEX(resources!$G:$G,MATCH(B338,resources!$A:$A,0))),INDEX(resources!$G:$G,MATCH(B338,resources!$A:$A,0))),\"n/a\")","v":"n/a"},"n/a","n/a",0,0,1,1,{"$f":"MIN((IFERROR(IF(AND($V338<=Z$1,$W338>=Z$1),INDEX(Reliability!E$23:E$50,MATCH($S338,Reliability!$C$23:$C$50,0)),0),0)*IF($T338=\"n/a\",$D338*$Y338,$G338)+IFERROR(IF(AND($V338<=Z$1,$W338>=Z$1),INDEX(Reliability!E$23:E$50,MATCH($T338,Reliability!$C$23:$C$50,0)),0),0)*$H338*$X338*$Y338),$D338)*$R338","v":0},{"$f":"MIN((IFERROR(IF(AND($V338<=AA$1,$W338>=AA$1),INDEX(Reliability!F$23:F$50,MATCH($S338,Reliability!$C$23:$C$50,0)),0),0)*IF($T338=\"n/a\",$D338*$Y338,$G338)+IFERROR(IF(AND($V338<=AA$1,$W338>=AA$1),INDEX(Reliability!F$23:F$50,MATCH($T338,Reliability!$C$23:$C$50,0)),0),0)*$H338*$X338*$Y338),$D338)*$R338","v":0},{"$f":"MIN((IFERROR(IF(AND($V338<=AB$1,$W338>=AB$1),INDEX(Reliability!G$23:G$50,MATCH($S338,Reliability!$C$23:$C$50,0)),0),0)*IF($T338=\"n/a\",$D338*$Y338,$G338)+IFERROR(IF(AND($V338<=AB$1,$W338>=AB$1),INDEX(Reliability!G$23:G$50,MATCH($T338,Reliability!$C$23:$C$50,0)),0),0)*$H338*$X338*$Y338),$D338)*$R338","v":0},{"$f":"MIN((IFERROR(IF(AND($V338<=AC$1,$W338>=AC$1),INDEX(Reliability!H$23:H$50,MATCH($S338,Reliability!$C$23:$C$50,0)),0),0)*IF($T338=\"n/a\",$D338*$Y338,$G338)+IFERROR(IF(AND($V338<=AC$1,$W338>=AC$1),INDEX(Reliability!H$23:H$50,MATCH($T338,Reliability!$C$23:$C$50,0)),0),0)*$H338*$X338*$Y338),$D338)*$R338","v":0},{"$f":"MIN((IFERROR(IF(AND($V338<=AD$1,$W338>=AD$1),INDEX(Reliability!I$23:I$50,MATCH($S338,Reliability!$C$23:$C$50,0)),0),0)*IF($T338=\"n/a\",$D338*$Y338,$G338)+IFERROR(IF(AND($V338<=AD$1,$W338>=AD$1),INDEX(Reliability!I$23:I$50,MATCH($T338,Reliability!$C$23:$C$50,0)),0),0)*$H338*$X338*$Y338),$D338)*$R338","v":0},{"$f":"MIN((IFERROR(IF(AND($V338<=AE$1,$W338>=AE$1),INDEX(Reliability!J$23:J$50,MATCH($S338,Reliability!$C$23:$C$50,0)),0),0)*IF($T338=\"n/a\",$D338*$Y338,$G338)+IFERROR(IF(AND($V338<=AE$1,$W338>=AE$1),INDEX(Reliability!J$23:J$50,MATCH($T338,Reliability!$C$23:$C$50,0)),0),0)*$H338*$X338*$Y338),$D338)*$R338","v":0},{"$f":"MIN((IFERROR(IF(AND($V338<=AF$1,$W338>=AF$1),INDEX(Reliability!K$23:K$50,MATCH($S338,Reliability!$C$23:$C$50,0)),0),0)*IF($T338=\"n/a\",$D338*$Y338,$G338)+IFERROR(IF(AND($V338<=AF$1,$W338>=AF$1),INDEX(Reliability!K$23:K$50,MATCH($T338,Reliability!$C$23:$C$50,0)),0),0)*$H338*$X338*$Y338),$D338)*$R338","v":0},{"$f":"MIN((IFERROR(IF(AND($V338<=AG$1,$W338>=AG$1),INDEX(Reliability!L$23:L$50,MATCH($S338,Reliability!$C$23:$C$50,0)),0),0)*IF($T338=\"n/a\",$D338*$Y338,$G338)+IFERROR(IF(AND($V338<=AG$1,$W338>=AG$1),INDEX(Reliability!L$23:L$50,MATCH($T338,Reliability!$C$23:$C$50,0)),0),0)*$H338*$X338*$Y338),$D338)*$R338","v":0},{"$f":"MIN((IFERROR(IF(AND($V338<=AH$1,$W338>=AH$1),INDEX(Reliability!M$23:M$50,MATCH($S338,Reliability!$C$23:$C$50,0)),0),0)*IF($T338=\"n/a\",$D338*$Y338,$G338)+IFERROR(IF(AND($V338<=AH$1,$W338>=AH$1),INDEX(Reliability!M$23:M$50,MATCH($T338,Reliability!$C$23:$C$50,0)),0),0)*$H338*$X338*$Y338),$D338)*$R338","v":0},{"$f":"MIN((IFERROR(IF(AND($V338<=AI$1,$W338>=AI$1),INDEX(Reliability!N$23:N$50,MATCH($S338,Reliability!$C$23:$C$50,0)),0),0)*IF($T338=\"n/a\",$D338*$Y338,$G338)+IFERROR(IF(AND($V338<=AI$1,$W338>=AI$1),INDEX(Reliability!N$23:N$50,MATCH($T338,Reliability!$C$23:$C$50,0)),0),0)*$H338*$X338*$Y338),$D338)*$R338","v":0},{"$f":"MIN((IFERROR(IF(AND($V338<=AJ$1,$W338>=AJ$1),INDEX(Reliability!O$23:O$50,MATCH($S338,Reliability!$C$23:$C$50,0)),0),0)*IF($T338=\"n/a\",$D338*$Y338,$G338)+IFERROR(IF(AND($V338<=AJ$1,$W338>=AJ$1),INDEX(Reliability!O$23:O$50,MATCH($T338,Reliability!$C$23:$C$50,0)),0),0)*$H338*$X338*$Y338),$D338)*$R338","v":0},{"$f":"MIN((IFERROR(IF(AND($V338<=AK$1,$W338>=AK$1),INDEX(Reliability!P$23:P$50,MATCH($S338,Reliability!$C$23:$C$50,0)),0),0)*IF($T338=\"n/a\",$D338*$Y338,$G338)+IFERROR(IF(AND($V338<=AK$1,$W338>=AK$1),INDEX(Reliability!P$23:P$50,MATCH($T338,Reliability!$C$23:$C$50,0)),0),0)*$H338*$X338*$Y338),$D338)*$R338","v":0}]
[null,{"$f":"unique_contracts!B340","v":0},{"$f":"unique_contracts!D340","v":0},{"$f":"unique_contracts!J340","v":0},{"$f":"unique_contracts!M340","v":0},{"$f":"unique_contracts!N340","v":0},{"$f":"unique_contracts!P340","v":0},{"$f":"unique_contracts!R340","v":0},{"$f":"unique_contracts!V340","v":0},{"$f":"unique_contracts!AB340","v":0},{"$f":"unique_contracts!AM340","v":0},{"$f":"unique_contracts!AN340","v":0},{"$f":"unique_contracts!AO340","v":0},{"$f":"unique_contracts!AP340","v":0},{"$f":"unique_contracts!AQ340","v":0},{"$f":"unique_contracts!AR340","v":0},{"$f":"unique_contracts!BP340","v":0},0,{"$f":"IFERROR(IF(AND(I339>0,E339=\"NotHybrid\"),_xlfn.CONCAT(MAX(MIN(ROUNDDOWN(I339/D339,0),8),4),INDEX(resources!$G:$G,MATCH(B339,resources!$A:$A,0))),INDEX(resources!$G:$G,MATCH(B339,resources!$A:$A,0))),\"n/a\")","v":"n/a"},"n/a","n/a",0,0,1,1,{"$f":"MIN((IFERROR(IF(AND($V339<=Z$1,$W339>=Z$1),INDEX(Reliability!E$23:E$50,MATCH($S339,Reliability!$C$23:$C$50,0)),0),0)*IF($T339=\"n/a\",$D339*$Y339,$G339)+IFERROR(IF(AND($V339<=Z$1,$W339>=Z$1),INDEX(Reliability!E$23:E$50,MATCH($T339,Reliability!$C$23:$C$50,0)),0),0)*$H339*$X339*$Y339),$D339)*$R339","v":0},{"$f":"MIN((IFERROR(IF(AND($V339<=AA$1,$W339>=AA$1),INDEX(Reliability!F$23:F$50,MATCH($S339,Reliability!$C$23:$C$50,0)),0),0)*IF($T339=\"n/a\",$D339*$Y339,$G339)+IFERROR(IF(AND($V339<=AA$1,$W339>=AA$1),INDEX(Reliability!F$23:F$50,MATCH($T339,Reliability!$C$23:$C$50,0)),0),0)*$H339*$X339*$Y339),$D339)*$R339","v":0},{"$f":"MIN((IFERROR(IF(AND($V339<=AB$1,$W339>=AB$1),INDEX(Reliability!G$23:G$50,MATCH($S339,Reliability!$C$23:$C$50,0)),0),0)*IF($T339=\"n/a\",$D339*$Y339,$G339)+IFERROR(IF(AND($V339<=AB$1,$W339>=AB$1),INDEX(Reliability!G$23:G$50,MATCH($T339,Reliability!$C$23:$C$50,0)),0),0)*$H339*$X339*$Y339),$D339)*$R339","v":0},{"$f":"MIN((IFERROR(IF(AND($V339<=AC$1,$W339>=AC$1),INDEX(Reliability!H$23:H$50,MATCH($S339,Reliability!$C$23:$C$50,0)),0),0)*IF($T339=\"n/a\",$D339*$Y339,$G339)+IFERROR(IF(AND($V339<=AC$1,$W339>=AC$1),INDEX(Reliability!H$23:H$50,MATCH($T339,Reliability!$C$23:$C$50,0)),0),0)*$H339*$X339*$Y339),$D339)*$R339","v":0},{"$f":"MIN((IFERROR(IF(AND($V339<=AD$1,$W339>=AD$1),INDEX(Reliability!I$23:I$50,MATCH($S339,Reliability!$C$23:$C$50,0)),0),0)*IF($T339=\"n/a\",$D339*$Y339,$G339)+IFERROR(IF(AND($V339<=AD$1,$W339>=AD$1),INDEX(Reliability!I$23:I$50,MATCH($T339,Reliability!$C$23:$C$50,0)),0),0)*$H339*$X339*$Y339),$D339)*$R339","v":0},{"$f":"MIN((IFERROR(IF(AND($V339<=AE$1,$W339>=AE$1),INDEX(Reliability!J$23:J$50,MATCH($S339,Reliability!$C$23:$C$50,0)),0),0)*IF($T339=\"n/a\",$D339*$Y339,$G339)+IFERROR(IF(AND($V339<=AE$1,$W339>=AE$1),INDEX(Reliability!J$23:J$50,MATCH($T339,Reliability!$C$23:$C$50,0)),0),0)*$H339*$X339*$Y339),$D339)*$R339","v":0},{"$f":"MIN((IFERROR(IF(AND($V339<=AF$1,$W339>=AF$1),INDEX(Reliability!K$23:K$50,MATCH($S339,Reliability!$C$23:$C$50,0)),0),0)*IF($T339=\"n/a\",$D339*$Y339,$G339)+IFERROR(IF(AND($V339<=AF$1,$W339>=AF$1),INDEX(Reliability!K$23:K$50,MATCH($T339,Reliability!$C$23:$C$50,0)),0),0)*$H339*$X339*$Y339),$D339)*$R339","v":0},{"$f":"MIN((IFERROR(IF(AND($V339<=AG$1,$W339>=AG$1),INDEX(Reliability!L$23:L$50,MATCH($S339,Reliability!$C$23:$C$50,0)),0),0)*IF($T339=\"n/a\",$D339*$Y339,$G339)+IFERROR(IF(AND($V339<=AG$1,$W339>=AG$1),INDEX(Reliability!L$23:L$50,MATCH($T339,Reliability!$C$23:$C$50,0)),0),0)*$H339*$X339*$Y339),$D339)*$R339","v":0},{"$f":"MIN((IFERROR(IF(AND($V339<=AH$1,$W339>=AH$1),INDEX(Reliability!M$23:M$50,MATCH($S339,Reliability!$C$23:$C$50,0)),0),0)*IF($T339=\"n/a\",$D339*$Y339,$G339)+IFERROR(IF(AND($V339<=AH$1,$W339>=AH$1),INDEX(Reliability!M$23:M$50,MATCH($T339,Reliability!$C$23:$C$50,0)),0),0)*$H339*$X339*$Y339),$D339)*$R339","v":0},{"$f":"MIN((IFERROR(IF(AND($V339<=AI$1,$W339>=AI$1),INDEX(Reliability!N$23:N$50,MATCH($S339,Reliability!$C$23:$C$50,0)),0),0)*IF($T339=\"n/a\",$D339*$Y339,$G339)+IFERROR(IF(AND($V339<=AI$1,$W339>=AI$1),INDEX(Reliability!N$23:N$50,MATCH($T339,Reliability!$C$23:$C$50,0)),0),0)*$H339*$X339*$Y339),$D339)*$R339","v":0},{"$f":"MIN((IFERROR(IF(AND($V339<=AJ$1,$W339>=AJ$1),INDEX(Reliability!O$23:O$50,MATCH($S339,Reliability!$C$23:$C$50,0)),0),0)*IF($T339=\"n/a\",$D339*$Y339,$G339)+IFERROR(IF(AND($V339<=AJ$1,$W339>=AJ$1),INDEX(Reliability!O$23:O$50,MATCH($T339,Reliability!$C$23:$C$50,0)),0),0)*$H339*$X339*$Y339),$D339)*$R339","v":0},{"$f":"MIN((IFERROR(IF(AND($V339<=AK$1,$W339>=AK$1),INDEX(Reliability!P$23:P$50,MATCH($S339,Reliability!$C$23:$C$50,0)),0),0)*IF($T339=\"n/a\",$D339*$Y339,$G339)+IFERROR(IF(AND($V339<=AK$1,$W339>=AK$1),INDEX(Reliability!P$23:P$50,MATCH($T339,Reliability!$C$23:$C$50,0)),0),0)*$H339*$X339*$Y339),$D339)*$R339","v":0}]
[null,{"$f":"unique_contracts!B341","v":0},{"$f":"unique_contracts!D341","v":0},{"$f":"unique_contracts!J341","v":0},{"$f":"unique_contracts!M341","v":0},{"$f":"unique_contracts!N341","v":0},{"$f":"unique_contracts!P341","v":0},{"$f":"unique_contracts!R341","v":0},{"$f":"unique_contracts!V341","v":0},{"$f":"unique_contracts!AB341","v":0},{"$f":"unique_contracts!AM341","v":0},{"$f":"unique_contracts!AN341","v":0},{"$f":"unique_contracts!AO341","v":0},{"$f":"unique_contracts!AP341","v":0},{"$f":"unique_contracts!AQ341","v":0},{"$f":"unique_contracts!AR341","v":0},{"$f":"unique_contracts!BP341","v":0},0,{"$f":"IFERROR(IF(AND(I340>0,E340=\"NotHybrid\"),_xlfn.CONCAT(MAX(MIN(ROUNDDOWN(I340/D340,0),8),4),INDEX(resources!$G:$G,MATCH(B340,resources!$A:$A,0))),INDEX(resources!$G:$G,MATCH(B340,resources!$A:$A,0))),\"n/a\")","v":"n/a"},"n/a","n/a",0,0,1,1,{"$f":"MIN((IFERROR(IF(AND($V340<=Z$1,$W340>=Z$1),INDEX(Reliability!E$23:E$50,MATCH($S340,Reliability!$C$23:$C$50,0)),0),0)*IF($T340=\"n/a\",$D340*$Y340,$G340)+IFERROR(IF(AND($V340<=Z$1,$W340>=Z$1),INDEX(Reliability!E$23:E$50,MATCH($T340,Reliability!$C$23:$C$50,0)),0),0)*$H340*$X340*$Y340),$D340)*$R340","v":0},{"$f":"MIN((IFERROR(IF(AND($V340<=AA$1,$W340>=AA$1),INDEX(Reliability!F$23:F$50,MATCH($S340,Reliability!$C$23:$C$50,0)),0),0)*IF($T340=\"n/a\",$D340*$Y340,$G340)+IFERROR(IF(AND($V340<=AA$1,$W340>=AA$1),INDEX(Reliability!F$23:F$50,MATCH($T340,Reliability!$C$23:$C$50,0)),0),0)*$H340*$X340*$Y340),$D340)*$R340","v":0},{"$f":"MIN((IFERROR(IF(AND($V340<=AB$1,$W340>=AB$1),INDEX(Reliability!G$23:G$50,MATCH($S340,Reliability!$C$23:$C$50,0)),0),0)*IF($T340=\"n/a\",$D340*$Y340,$G340)+IFERROR(IF(AND($V340<=AB$1,$W340>=AB$1),INDEX(Reliability!G$23:G$50,MATCH($T340,Reliability!$C$23:$C$50,0)),0),0)*$H340*$X340*$Y340),$D340)*$R340","v":0},{"$f":"MIN((IFERROR(IF(AND($V340<=AC$1,$W340>=AC$1),INDEX(Reliability!H$23:H$50,MATCH($S340,Reliability!$C$23:$C$50,0)),0),0)*IF($T340=\"n/a\",$D340*$Y340,$G340)+IFERROR(IF(AND($V340<=AC$1,$W340>=AC$1),INDEX(Reliability!H$23:H$50,MATCH($T340,Reliability!$C$23:$C$50,0)),0),0)*$H340*$X340*$Y340),$D340)*$R340","v":0},{"$f":"MIN((IFERROR(IF(AND($V340<=AD$1,$W340>=AD$1),INDEX(Reliability!I$23:I$50,MATCH($S340,Reliability!$C$23:$C$50,0)),0),0)*IF($T340=\"n/a\",$D340*$Y340,$G340)+IFERROR(IF(AND($V340<=AD$1,$W340>=AD$1),INDEX(Reliability!I$23:I$50,MATCH($T340,Reliability!$C$23:$C$50,0)),0),0)*$H340*$X340*$Y340),$D340)*$R340","v":0},{"$f":"MIN((IFERROR(IF(AND($V340<=AE$1,$W340>=AE$1),INDEX(Reliability!J$23:J$50,MATCH($S340,Reliability!$C$23:$C$50,0)),0),0)*IF($T340=\"n/a\",$D340*$Y340,$G340)+IFERROR(IF(AND($V340<=AE$1,$W340>=AE$1),INDEX(Reliability!J$23:J$50,MATCH($T340,Reliability!$C$23:$C$50,0)),0),0)*$H340*$X340*$Y340),$D340)*$R340","v":0},{"$f":"MIN((IFERROR(IF(AND($V340<=AF$1,$W340>=AF$1),INDEX(Reliability!K$23:K$50,MATCH($S340,Reliability!$C$23:$C$50,0)),0),0)*IF($T340=\"n/a\",$D340*$Y340,$G340)+IFERROR(IF(AND($V340<=AF$1,$W340>=AF$1),INDEX(Reliability!K$23:K$50,MATCH($T340,Reliability!$C$23:$C$50,0)),0),0)*$H340*$X340*$Y340),$D340)*$R340","v":0},{"$f":"MIN((IFERROR(IF(AND($V340<=AG$1,$W340>=AG$1),INDEX(Reliability!L$23:L$50,MATCH($S340,Reliability!$C$23:$C$50,0)),0),0)*IF($T340=\"n/a\",$D340*$Y340,$G340)+IFERROR(IF(AND($V340<=AG$1,$W340>=AG$1),INDEX(Reliability!L$23:L$50,MATCH($T340,Reliability!$C$23:$C$50,0)),0),0)*$H340*$X340*$Y340),$D340)*$R340","v":0},{"$f":"MIN((IFERROR(IF(AND($V340<=AH$1,$W340>=AH$1),INDEX(Reliability!M$23:M$50,MATCH($S340,Reliability!$C$23:$C$50,0)),0),0)*IF($T340=\"n/a\",$D340*$Y340,$G340)+IFERROR(IF(AND($V340<=AH$1,$W340>=AH$1),INDEX(Reliability!M$23:M$50,MATCH($T340,Reliability!$C$23:$C$50,0)),0),0)*$H340*$X340*$Y340),$D340)*$R340","v":0},{"$f":"MIN((IFERROR(IF(AND($V340<=AI$1,$W340>=AI$1),INDEX(Reliability!N$23:N$50,MATCH($S340,Reliability!$C$23:$C$50,0)),0),0)*IF($T340=\"n/a\",$D340*$Y340,$G340)+IFERROR(IF(AND($V340<=AI$1,$W340>=AI$1),INDEX(Reliability!N$23:N$50,MATCH($T340,Reliability!$C$23:$C$50,0)),0),0)*$H340*$X340*$Y340),$D340)*$R340","v":0},{"$f":"MIN((IFERROR(IF(AND($V340<=AJ$1,$W340>=AJ$1),INDEX(Reliability!O$23:O$50,MATCH($S340,Reliability!$C$23:$C$50,0)),0),0)*IF($T340=\"n/a\",$D340*$Y340,$G340)+IFERROR(IF(AND($V340<=AJ$1,$W340>=AJ$1),INDEX(Reliability!O$23:O$50,MATCH($T340,Reliability!$C$23:$C$50,0)),0),0)*$H340*$X340*$Y340),$D340)*$R340","v":0},{"$f":"MIN((IFERROR(IF(AND($V340<=AK$1,$W340>=AK$1),INDEX(Reliability!P$23:P$50,MATCH($S340,Reliability!$C$23:$C$50,0)),0),0)*IF($T340=\"n/a\",$D340*$Y340,$G340)+IFERROR(IF(AND($V340<=AK$1,$W340>=AK$1),INDEX(Reliability!P$23:P$50,MATCH($T340,Reliability!$C$23:$C$50,0)),0),0)*$H340*$X340*$Y340),$D340)*$R340","v":0}]
[null,{"$f":"unique_contracts!B342","v":0},{"$f":"unique_contracts!D342","v":0},{"$f":"unique_contracts!J342","v":0},{"$f":"unique_contracts!M342","v":0},{"$f":"unique_contracts!N342","v":0},{"$f":"unique_contracts!P342","v":0},{"$f":"unique_contracts!R342","v":0},{"$f":"unique_contracts!V342","v":0},{"$f":"unique_contracts!AB342","v":0},{"$f":"unique_contracts!AM342","v":0},{"$f":"unique_contracts!AN342","v":0},{"$f":"unique_contracts!AO342","v":0},{"$f":"unique_contracts!AP342","v":0},{"$f":"unique_contracts!AQ342","v":0},{"$f":"unique_contracts!AR342","v":0},{"$f":"unique_contracts!BP342","v":0},0,{"$f":"IFERROR(IF(AND(I341>0,E341=\"NotHybrid\"),_xlfn.CONCAT(MAX(MIN(ROUNDDOWN(I341/D341,0),8),4),INDEX(resources!$G:$G,MATCH(B341,resources!$A:$A,0))),INDEX(resources!$G:$G,MATCH(B341,resources!$A:$A,0))),\"n/a\")","v":"n/a"},"n/a","n/a",0,0,1,1,{"$f":"MIN((IFERROR(IF(AND($V341<=Z$1,$W341>=Z$1),INDEX(Reliability!E$23:E$50,MATCH($S341,Reliability!$C$23:$C$50,0)),0),0)*IF($T341=\"n/a\",$D341*$Y341,$G341)+IFERROR(IF(AND($V341<=Z$1,$W341>=Z$1),INDEX(Reliability!E$23:E$50,MATCH($T341,Reliability!$C$23:$C$50,0)),0),0)*$H341*$X341*$Y341),$D341)*$R341","v":0},{"$f":"MIN((IFERROR(IF(AND($V341<=AA$1,$W341>=AA$1),INDEX(Reliability!F$23:F$50,MATCH($S341,Reliability!$C$23:$C$50,0)),0),0)*IF($T341=\"n/a\",$D341*$Y341,$G341)+IFERROR(IF(AND($V341<=AA$1,$W341>=AA$1),INDEX(Reliability!F$23:F$50,MATCH($T341,Reliability!$C$23:$C$50,0)),0),0)*$H341*$X341*$Y341),$D341)*$R341","v":0},{"$f":"MIN((IFERROR(IF(AND($V341<=AB$1,$W341>=AB$1),INDEX(Reliability!G$23:G$50,MATCH($S341,Reliability!$C$23:$C$50,0)),0),0)*IF($T341=\"n/a\",$D341*$Y341,$G341)+IFERROR(IF(AND($V341<=AB$1,$W341>=AB$1),INDEX(Reliability!G$23:G$50,MATCH($T341,Reliability!$C$23:$C$50,0)),0),0)*$H341*$X341*$Y341),$D341)*$R341","v":0},{"$f":"MIN((IFERROR(IF(AND($V341<=AC$1,$W341>=AC$1),INDEX(Reliability!H$23:H$50,MATCH($S341,Reliability!$C$23:$C$50,0)),0),0)*IF($T341=\"n/a\",$D341*$Y341,$G341)+IFERROR(IF(AND($V341<=AC$1,$W341>=AC$1),INDEX(Reliability!H$23:H$50,MATCH($T341,Reliability!$C$23:$C$50,0)),0),0)*$H341*$X341*$Y341),$D341)*$R341","v":0},{"$f":"MIN((IFERROR(IF(AND($V341<=AD$1,$W341>=AD$1),INDEX(Reliability!I$23:I$50,MATCH($S341,Reliability!$C$23:$C$50,0)),0),0)*IF($T341=\"n/a\",$D341*$Y341,$G341)+IFERROR(IF(AND($V341<=AD$1,$W341>=AD$1),INDEX(Reliability!I$23:I$50,MATCH($T341,Reliability!$C$23:$C$50,0)),0),0)*$H341*$X341*$Y341),$D341)*$R341","v":0},{"$f":"MIN((IFERROR(IF(AND($V341<=AE$1,$W341>=AE$1),INDEX(Reliability!J$23:J$50,MATCH($S341,Reliability!$C$23:$C$50,0)),0),0)*IF($T341=\"n/a\",$D341*$Y341,$G341)+IFERROR(IF(AND($V341<=AE$1,$W341>=AE$1),INDEX(Reliability!J$23:J$50,MATCH($T341,Reliability!$C$23:$C$50,0)),0),0)*$H341*$X341*$Y341),$D341)*$R341","v":0},{"$f":"MIN((IFERROR(IF(AND($V341<=AF$1,$W341>=AF$1),INDEX(Reliability!K$23:K$50,MATCH($S341,Reliability!$C$23:$C$50,0)),0),0)*IF($T341=\"n/a\",$D341*$Y341,$G341)+IFERROR(IF(AND($V341<=AF$1,$W341>=AF$1),INDEX(Reliability!K$23:K$50,MATCH($T341,Reliability!$C$23:$C$50,0)),0),0)*$H341*$X341*$Y341),$D341)*$R341","v":0},{"$f":"MIN((IFERROR(IF(AND($V341<=AG$1,$W341>=AG$1),INDEX(Reliability!L$23:L$50,MATCH($S341,Reliability!$C$23:$C$50,0)),0),0)*IF($T341=\"n/a\",$D341*$Y341,$G341)+IFERROR(IF(AND($V341<=AG$1,$W341>=AG$1),INDEX(Reliability!L$23:L$50,MATCH($T341,Reliability!$C$23:$C$50,0)),0),0)*$H341*$X341*$Y341),$D341)*$R341","v":0},{"$f":"MIN((IFERROR(IF(AND($V341<=AH$1,$W341>=AH$1),INDEX(Reliability!M$23:M$50,MATCH($S341,Reliability!$C$23:$C$50,0)),0),0)*IF($T341=\"n/a\",$D341*$Y341,$G341)+IFERROR(IF(AND($V341<=AH$1,$W341>=AH$1),INDEX(Reliability!M$23:M$50,MATCH($T341,Reliability!$C$23:$C$50,0)),0),0)*$H341*$X341*$Y341),$D341)*$R341","v":0},{"$f":"MIN((IFERROR(IF(AND($V341<=AI$1,$W341>=AI$1),INDEX(Reliability!N$23:N$50,MATCH($S341,Reliability!$C$23:$C$50,0)),0),0)*IF($T341=\"n/a\",$D341*$Y341,$G341)+IFERROR(IF(AND($V341<=AI$1,$W341>=AI$1),INDEX(Reliability!N$23:N$50,MATCH($T341,Reliability!$C$23:$C$50,0)),0),0)*$H341*$X341*$Y341),$D341)*$R341","v":0},{"$f":"MIN((IFERROR(IF(AND($V341<=AJ$1,$W341>=AJ$1),INDEX(Reliability!O$23:O$50,MATCH($S341,Reliability!$C$23:$C$50,0)),0),0)*IF($T341=\"n/a\",$D341*$Y341,$G341)+IFERROR(IF(AND($V341<=AJ$1,$W341>=AJ$1),INDEX(Reliability!O$23:O$50,MATCH($T341,Reliability!$C$23:$C$50,0)),0),0)*$H341*$X341*$Y341),$D341)*$R341","v":0},{"$f":"MIN((IFERROR(IF(AND($V341<=AK$1,$W341>=AK$1),INDEX(Reliability!P$23:P$50,MATCH($S341,Reliability!$C$23:$C$50,0)),0),0)*IF($T341=\"n/a\",$D341*$Y341,$G341)+IFERROR(IF(AND($V341<=AK$1,$W341>=AK$1),INDEX(Reliability!P$23:P$50,MATCH($T341,Reliability!$C$23:$C$50,0)),0),0)*$H341*$X341*$Y341),$D341)*$R341","v":0}]
[null,{"$f":"unique_contracts!B343","v":0},{"$f":"unique_contracts!D343","v":0},{"$f":"unique_contracts!J343","v":0},{"$f":"unique_contracts!M343","v":0},{"$f":"unique_contracts!N343","v":0},{"$f":"unique_contracts!P343","v":0},{"$f":"unique_contracts!R343","v":0},{"$f":"unique_contracts!V343","v":0},{"$f":"unique_contracts!AB343","v":0},{"$f":"unique_contracts!AM343","v":0},{"$f":"unique_contracts!AN343","v":0},{"$f":"unique_contracts!AO343","v":0},{"$f":"unique_contracts!AP343","v":0},{"$f":"unique_contracts!AQ343","v":0},{"$f":"unique_contracts!AR343","v":0},{"$f":"unique_contracts!BP343","v":0},0,{"$f":"IFERROR(IF(AND(I342>0,E342=\"NotHybrid\"),_xlfn.CONCAT(MAX(MIN(ROUNDDOWN(I342/D342,0),8),4),INDEX(resources!$G:$G,MATCH(B342,resources!$A:$A,0))),INDEX(resources!$G:$G,MATCH(B342,resources!$A:$A,0))),\"n/a\")","v":"n/a"},"n/a","n/a",0,0,1,1,{"$f":"MIN((IFERROR(IF(AND($V342<=Z$1,$W342>=Z$1),INDEX(Reliability!E$23:E$50,MATCH($S342,Reliability!$C$23:$C$50,0)),0),0)*IF($T342=\"n/a\",$D342*$Y342,$G342)+IFERROR(IF(AND($V342<=Z$1,$W342>=Z$1),INDEX(Reliability!E$23:E$50,MATCH($T342,Reliability!$C$23:$C$50,0)),0),0)*$H342*$X342*$Y342),$D342)*$R342","v":0},{"$f":"MIN((IFERROR(IF(AND($V342<=AA$1,$W342>=AA$1),INDEX(Reliability!F$23:F$50,MATCH($S342,Reliability!$C$23:$C$50,0)),0),0)*IF($T342=\"n/a\",$D342*$Y342,$G342)+IFERROR(IF(AND($V342<=AA$1,$W342>=AA$1),INDEX(Reliability!F$23:F$50,MATCH($T342,Reliability!$C$23:$C$50,0)),0),0)*$H342*$X342*$Y342),$D342)*$R342","v":0},{"$f":"MIN((IFERROR(IF(AND($V342<=AB$1,$W342>=AB$1),INDEX(Reliability!G$23:G$50,MATCH($S342,Reliability!$C$23:$C$50,0)),0),0)*IF($T342=\"n/a\",$D342*$Y342,$G342)+IFERROR(IF(AND($V342<=AB$1,$W342>=AB$1),INDEX(Reliability!G$23:G$50,MATCH($T342,Reliability!$C$23:$C$50,0)),0),0)*$H342*$X342*$Y342),$D342)*$R342","v":0},{"$f":"MIN((IFERROR(IF(AND($V342<=AC$1,$W342>=AC$1),INDEX(Reliability!H$23:H$50,MATCH($S342,Reliability!$C$23:$C$50,0)),0),0)*IF($T342=\"n/a\",$D342*$Y342,$G342)+IFERROR(IF(AND($V342<=AC$1,$W342>=AC$1),INDEX(Reliability!H$23:H$50,MATCH($T342,Reliability!$C$23:$C$50,0)),0),0)*$H342*$X342*$Y342),$D342)*$R342","v":0},{"$f":"MIN((IFERROR(IF(AND($V342<=AD$1,$W342>=AD$1),INDEX(Reliability!I$23:I$50,MATCH($S342,Reliability!$C$23:$C$50,0)),0),0)*IF($T342=\"n/a\",$D342*$Y342,$G342)+IFERROR(IF(AND($V342<=AD$1,$W342>=AD$1),INDEX(Reliability!I$23:I$50,MATCH($T342,Reliability!$C$23:$C$50,0)),0),0)*$H342*$X342*$Y342),$D342)*$R342","v":0},{"$f":"MIN((IFERROR(IF(AND($V342<=AE$1,$W342>=AE$1),INDEX(Reliability!J$23:J$50,MATCH($S342,Reliability!$C$23:$C$50,0)),0),0)*IF($T342=\"n/a\",$D342*$Y342,$G342)+IFERROR(IF(AND($V342<=AE$1,$W342>=AE$1),INDEX(Reliability!J$23:J$50,MATCH($T342,Reliability!$C$23:$C$50,0)),0),0)*$H342*$X342*$Y342),$D342)*$R342","v":0},{"$f":"MIN((IFERROR(IF(AND($V342<=AF$1,$W342>=AF$1),INDEX(Reliability!K$23:K$50,MATCH($S342,Reliability!$C$23:$C$50,0)),0),0)*IF($T342=\"n/a\",$D342*$Y342,$G342)+IFERROR(IF(AND($V342<=AF$1,$W342>=AF$1),INDEX(Reliability!K$23:K$50,MATCH($T342,Reliability!$C$23:$C$50,0)),0),0)*$H342*$X342*$Y342),$D342)*$R342","v":0},{"$f":"MIN((IFERROR(IF(AND($V342<=AG$1,$W342>=AG$1),INDEX(Reliability!L$23:L$50,MATCH($S342,Reliability!$C$23:$C$50,0)),0),0)*IF($T342=\"n/a\",$D342*$Y342,$G342)+IFERROR(IF(AND($V342<=AG$1,$W342>=AG$1),INDEX(Reliability!L$23:L$50,MATCH($T342,Reliability!$C$23:$C$50,0)),0),0)*$H342*$X342*$Y342),$D342)*$R342","v":0},{"$f":"MIN((IFERROR(IF(AND($V342<=AH$1,$W342>=AH$1),INDEX(Reliability!M$23:M$50,MATCH($S342,Reliability!$C$23:$C$50,0)),0),0)*IF($T342=\"n/a\",$D342*$Y342,$G342)+IFERROR(IF(AND($V342<=AH$1,$W342>=AH$1),INDEX(Reliability!M$23:M$50,MATCH($T342,Reliability!$C$23:$C$50,0)),0),0)*$H342*$X342*$Y342),$D342)*$R342","v":0},{"$f":"MIN((IFERROR(IF(AND($V342<=AI$1,$W342>=AI$1),INDEX(Reliability!N$23:N$50,MATCH($S342,Reliability!$C$23:$C$50,0)),0),0)*IF($T342=\"n/a\",$D342*$Y342,$G342)+IFERROR(IF(AND($V342<=AI$1,$W342>=AI$1),INDEX(Reliability!N$23:N$50,MATCH($T342,Reliability!$C$23:$C$50,0)),0),0)*$H342*$X342*$Y342),$D342)*$R342","v":0},{"$f":"MIN((IFERROR(IF(AND($V342<=AJ$1,$W342>=AJ$1),INDEX(Reliability!O$23:O$50,MATCH($S342,Reliability!$C$23:$C$50,0)),0),0)*IF($T342=\"n/a\",$D342*$Y342,$G342)+IFERROR(IF(AND($V342<=AJ$1,$W342>=AJ$1),INDEX(Reliability!O$23:O$50,MATCH($T342,Reliability!$C$23:$C$50,0)),0),0)*$H342*$X342*$Y342),$D342)*$R342","v":0},{"$f":"MIN((IFERROR(IF(AND($V342<=AK$1,$W342>=AK$1),INDEX(Reliability!P$23:P$50,MATCH($S342,Reliability!$C$23:$C$50,0)),0),0)*IF($T342=\"n/a\",$D342*$Y342,$G342)+IFERROR(IF(AND($V342<=AK$1,$W342>=AK$1),INDEX(Reliability!P$23:P$50,MATCH($T342,Reliability!$C$23:$C$50,0)),0),0)*$H342*$X342*$Y342),$D342)*$R342","v":0}]
[null,{"$f":"unique_contracts!B344","v":0},{"$f":"unique_contracts!D344","v":0},{"$f":"unique_contracts!J344","v":0},{"$f":"unique_contracts!M344","v":0},{"$f":"unique_contracts!N344","v":0},{"$f":"unique_contracts!P344","v":0},{"$f":"unique_contracts!R344","v":0},{"$f":"unique_contracts!V344","v":0},{"$f":"unique_contracts!AB344","v":0},{"$f":"unique_contracts!AM344","v":0},{"$f":"unique_contracts!AN344","v":0},{"$f":"unique_contracts!AO344","v":0},{"$f":"unique_contracts!AP344","v":0},{"$f":"unique_contracts!AQ344","v":0},{"$f":"unique_contracts!AR344","v":0},{"$f":"unique_contracts!BP344","v":0},0,{"$f":"IFERROR(IF(AND(I343>0,E343=\"NotHybrid\"),_xlfn.CONCAT(MAX(MIN(ROUNDDOWN(I343/D343,0),8),4),INDEX(resources!$G:$G,MATCH(B343,resources!$A:$A,0))),INDEX(resources!$G:$G,MATCH(B343,resources!$A:$A,0))),\"n/a\")","v":"n/a"},"n/a","n/a",0,0,1,1,{"$f":"MIN((IFERROR(IF(AND($V343<=Z$1,$W343>=Z$1),INDEX(Reliability!E$23:E$50,MATCH($S343,Reliability!$C$23:$C$50,0)),0),0)*IF($T343=\"n/a\",$D343*$Y343,$G343)+IFERROR(IF(AND($V343<=Z$1,$W343>=Z$1),INDEX(Reliability!E$23:E$50,MATCH($T343,Reliability!$C$23:$C$50,0)),0),0)*$H343*$X343*$Y343),$D343)*$R343","v":0},{"$f":"MIN((IFERROR(IF(AND($V343<=AA$1,$W343>=AA$1),INDEX(Reliability!F$23:F$50,MATCH($S343,Reliability!$C$23:$C$50,0)),0),0)*IF($T343=\"n/a\",$D343*$Y343,$G343)+IFERROR(IF(AND($V343<=AA$1,$W343>=AA$1),INDEX(Reliability!F$23:F$50,MATCH($T343,Reliability!$C$23:$C$50,0)),0),0)*$H343*$X343*$Y343),$D343)*$R343","v":0},{"$f":"MIN((IFERROR(IF(AND($V343<=AB$1,$W343>=AB$1),INDEX(Reliability!G$23:G$50,MATCH($S343,Reliability!$C$23:$C$50,0)),0),0)*IF($T343=\"n/a\",$D343*$Y343,$G343)+IFERROR(IF(AND($V343<=AB$1,$W343>=AB$1),INDEX(Reliability!G$23:G$50,MATCH($T343,Reliability!$C$23:$C$50,0)),0),0)*$H343*$X343*$Y343),$D343)*$R343","v":0},{"$f":"MIN((IFERROR(IF(AND($V343<=AC$1,$W343>=AC$1),INDEX(Reliability!H$23:H$50,MATCH($S343,Reliability!$C$23:$C$50,0)),0),0)*IF($T343=\"n/a\",$D343*$Y343,$G343)+IFERROR(IF(AND($V343<=AC$1,$W343>=AC$1),INDEX(Reliability!H$23:H$50,MATCH($T343,Reliability!$C$23:$C$50,0)),0),0)*$H343*$X343*$Y343),$D343)*$R343","v":0},{"$f":"MIN((IFERROR(IF(AND($V343<=AD$1,$W343>=AD$1),INDEX(Reliability!I$23:I$50,MATCH($S343,Reliability!$C$23:$C$50,0)),0),0)*IF($T343=\"n/a\",$D343*$Y343,$G343)+IFERROR(IF(AND($V343<=AD$1,$W343>=AD$1),INDEX(Reliability!I$23:I$50,MATCH($T343,Reliability!$C$23:$C$50,0)),0),0)*$H343*$X343*$Y343),$D343)*$R343","v":0},{"$f":"MIN((IFERROR(IF(AND($V343<=AE$1,$W343>=AE$1),INDEX(Reliability!J$23:J$50,MATCH($S343,Reliability!$C$23:$C$50,0)),0),0)*IF($T343=\"n/a\",$D343*$Y343,$G343)+IFERROR(IF(AND($V343<=AE$1,$W343>=AE$1),INDEX(Reliability!J$23:J$50,MATCH($T343,Reliability!$C$23:$C$50,0)),0),0)*$H343*$X343*$Y343),$D343)*$R343","v":0},{"$f":"MIN((IFERROR(IF(AND($V343<=AF$1,$W343>=AF$1),INDEX(Reliability!K$23:K$50,MATCH($S343,Reliability!$C$23:$C$50,0)),0),0)*IF($T343=\"n/a\",$D343*$Y343,$G343)+IFERROR(IF(AND($V343<=AF$1,$W343>=AF$1),INDEX(Reliability!K$23:K$50,MATCH($T343,Reliability!$C$23:$C$50,0)),0),0)*$H343*$X343*$Y343),$D343)*$R343","v":0},{"$f":"MIN((IFERROR(IF(AND($V343<=AG$1,$W343>=AG$1),INDEX(Reliability!L$23:L$50,MATCH($S343,Reliability!$C$23:$C$50,0)),0),0)*IF($T343=\"n/a\",$D343*$Y343,$G343)+IFERROR(IF(AND($V343<=AG$1,$W343>=AG$1),INDEX(Reliability!L$23:L$50,MATCH($T343,Reliability!$C$23:$C$50,0)),0),0)*$H343*$X343*$Y343),$D343)*$R343","v":0},{"$f":"MIN((IFERROR(IF(AND($V343<=AH$1,$W343>=AH$1),INDEX(Reliability!M$23:M$50,MATCH($S343,Reliability!$C$23:$C$50,0)),0),0)*IF($T343=\"n/a\",$D343*$Y343,$G343)+IFERROR(IF(AND($V343<=AH$1,$W343>=AH$1),INDEX(Reliability!M$23:M$50,MATCH($T343,Reliability!$C$23:$C$50,0)),0),0)*$H343*$X343*$Y343),$D343)*$R343","v":0},{"$f":"MIN((IFERROR(IF(AND($V343<=AI$1,$W343>=AI$1),INDEX(Reliability!N$23:N$50,MATCH($S343,Reliability!$C$23:$C$50,0)),0),0)*IF($T343=\"n/a\",$D343*$Y343,$G343)+IFERROR(IF(AND($V343<=AI$1,$W343>=AI$1),INDEX(Reliability!N$23:N$50,MATCH($T343,Reliability!$C$23:$C$50,0)),0),0)*$H343*$X343*$Y343),$D343)*$R343","v":0},{"$f":"MIN((IFERROR(IF(AND($V343<=AJ$1,$W343>=AJ$1),INDEX(Reliability!O$23:O$50,MATCH($S343,Reliability!$C$23:$C$50,0)),0),0)*IF($T343=\"n/a\",$D343*$Y343,$G343)+IFERROR(IF(AND($V343<=AJ$1,$W343>=AJ$1),INDEX(Reliability!O$23:O$50,MATCH($T343,Reliability!$C$23:$C$50,0)),0),0)*$H343*$X343*$Y343),$D343)*$R343","v":0},{"$f":"MIN((IFERROR(IF(AND($V343<=AK$1,$W343>=AK$1),INDEX(Reliability!P$23:P$50,MATCH($S343,Reliability!$C$23:$C$50,0)),0),0)*IF($T343=\"n/a\",$D343*$Y343,$G343)+IFERROR(IF(AND($V343<=AK$1,$W343>=AK$1),INDEX(Reliability!P$23:P$50,MATCH($T343,Reliability!$C$23:$C$50,0)),0),0)*$H343*$X343*$Y343),$D343)*$R343","v":0}]
[null,{"$f":"unique_contracts!B345","v":0},{"$f":"unique_contracts!D345","v":0},{"$f":"unique_contracts!J345","v":0},{"$f":"unique_contracts!M345","v":0},{"$f":"unique_contracts!N345","v":0},{"$f":"unique_contracts!P345","v":0},{"$f":"unique_contracts!R345","v":0},{"$f":"unique_contracts!V345","v":0},{"$f":"unique_contracts!AB345","v":0},{"$f":"unique_contracts!AM345","v":0},{"$f":"unique_contracts!AN345","v":0},{"$f":"unique_contracts!AO345","v":0},{"$f":"unique_contracts!AP345","v":0},{"$f":"unique_contracts!AQ345","v":0},{"$f":"unique_contracts!AR345","v":0},{"$f":"unique_contracts!BP345","v":0},0,{"$f":"IFERROR(IF(AND(I344>0,E344=\"NotHybrid\"),_xlfn.CONCAT(MAX(MIN(ROUNDDOWN(I344/D344,0),8),4),INDEX(resources!$G:$G,MATCH(B344,resources!$A:$A,0))),INDEX(resources!$G:$G,MATCH(B344,resources!$A:$A,0))),\"n/a\")","v":"n/a"},"n/a","n/a",0,0,1,1,{"$f":"MIN((IFERROR(IF(AND($V344<=Z$1,$W344>=Z$1),INDEX(Reliability!E$23:E$50,MATCH($S344,Reliability!$C$23:$C$50,0)),0),0)*IF($T344=\"n/a\",$D344*$Y344,$G344)+IFERROR(IF(AND($V344<=Z$1,$W344>=Z$1),INDEX(Reliability!E$23:E$50,MATCH($T344,Reliability!$C$23:$C$50,0)),0),0)*$H344*$X344*$Y344),$D344)*$R344","v":0},{"$f":"MIN((IFERROR(IF(AND($V344<=AA$1,$W344>=AA$1),INDEX(Reliability!F$23:F$50,MATCH($S344,Reliability!$C$23:$C$50,0)),0),0)*IF($T344=\"n/a\",$D344*$Y344,$G344)+IFERROR(IF(AND($V344<=AA$1,$W344>=AA$1),INDEX(Reliability!F$23:F$50,MATCH($T344,Reliability!$C$23:$C$50,0)),0),0)*$H344*$X344*$Y344),$D344)*$R344","v":0},{"$f":"MIN((IFERROR(IF(AND($V344<=AB$1,$W344>=AB$1),INDEX(Reliability!G$23:G$50,MATCH($S344,Reliability!$C$23:$C$50,0)),0),0)*IF($T344=\"n/a\",$D344*$Y344,$G344)+IFERROR(IF(AND($V344<=AB$1,$W344>=AB$1),INDEX(Reliability!G$23:G$50,MATCH($T344,Reliability!$C$23:$C$50,0)),0),0)*$H344*$X344*$Y344),$D344)*$R344","v":0},{"$f":"MIN((IFERROR(IF(AND($V344<=AC$1,$W344>=AC$1),INDEX(Reliability!H$23:H$50,MATCH($S344,Reliability!$C$23:$C$50,0)),0),0)*IF($T344=\"n/a\",$D344*$Y344,$G344)+IFERROR(IF(AND($V344<=AC$1,$W344>=AC$1),INDEX(Reliability!H$23:H$50,MATCH($T344,Reliability!$C$23:$C$50,0)),0),0)*$H344*$X344*$Y344),$D344)*$R344","v":0},{"$f":"MIN((IFERROR(IF(AND($V344<=AD$1,$W344>=AD$1),INDEX(Reliability!I$23:I$50,MATCH($S344,Reliability!$C$23:$C$50,0)),0),0)*IF($T344=\"n/a\",$D344*$Y344,$G344)+IFERROR(IF(AND($V344<=AD$1,$W344>=AD$1),INDEX(Reliability!I$23:I$50,MATCH($T344,Reliability!$C$23:$C$50,0)),0),0)*$H344*$X344*$Y344),$D344)*$R344","v":0},{"$f":"MIN((IFERROR(IF(AND($V344<=AE$1,$W344>=AE$1),INDEX(Reliability!J$23:J$50,MATCH($S344,Reliability!$C$23:$C$50,0)),0),0)*IF($T344=\"n/a\",$D344*$Y344,$G344)+IFERROR(IF(AND($V344<=AE$1,$W344>=AE$1),INDEX(Reliability!J$23:J$50,MATCH($T344,Reliability!$C$23:$C$50,0)),0),0)*$H344*$X344*$Y344),$D344)*$R344","v":0},{"$f":"MIN((IFERROR(IF(AND($V344<=AF$1,$W344>=AF$1),INDEX(Reliability!K$23:K$50,MATCH($S344,Reliability!$C$23:$C$50,0)),0),0)*IF($T344=\"n/a\",$D344*$Y344,$G344)+IFERROR(IF(AND($V344<=AF$1,$W344>=AF$1),INDEX(Reliability!K$23:K$50,MATCH($T344,Reliability!$C$23:$C$50,0)),0),0)*$H344*$X344*$Y344),$D344)*$R344","v":0},{"$f":"MIN((IFERROR(IF(AND($V344<=AG$1,$W344>=AG$1),INDEX(Reliability!L$23:L$50,MATCH($S344,Reliability!$C$23:$C$50,0)),0),0)*IF($T344=\"n/a\",$D344*$Y344,$G344)+IFERROR(IF(AND($V344<=AG$1,$W344>=AG$1),INDEX(Reliability!L$23:L$50,MATCH($T344,Reliability!$C$23:$C$50,0)),0),0)*$H344*$X344*$Y344),$D344)*$R344","v":0},{"$f":"MIN((IFERROR(IF(AND($V344<=AH$1,$W344>=AH$1),INDEX(Reliability!M$23:M$50,MATCH($S344,Reliability!$C$23:$C$50,0)),0),0)*IF($T344=\"n/a\",$D344*$Y344,$G344)+IFERROR(IF(AND($V344<=AH$1,$W344>=AH$1),INDEX(Reliability!M$23:M$50,MATCH($T344,Reliability!$C$23:$C$50,0)),0),0)*$H344*$X344*$Y344),$D344)*$R344","v":0},{"$f":"MIN((IFERROR(IF(AND($V344<=AI$1,$W344>=AI$1),INDEX(Reliability!N$23:N$50,MATCH($S344,Reliability!$C$23:$C$50,0)),0),0)*IF($T344=\"n/a\",$D344*$Y344,$G344)+IFERROR(IF(AND($V344<=AI$1,$W344>=AI$1),INDEX(Reliability!N$23:N$50,MATCH($T344,Reliability!$C$23:$C$50,0)),0),0)*$H344*$X344*$Y344),$D344)*$R344","v":0},{"$f":"MIN((IFERROR(IF(AND($V344<=AJ$1,$W344>=AJ$1),INDEX(Reliability!O$23:O$50,MATCH($S344,Reliability!$C$23:$C$50,0)),0),0)*IF($T344=\"n/a\",$D344*$Y344,$G344)+IFERROR(IF(AND($V344<=AJ$1,$W344>=AJ$1),INDEX(Reliability!O$23:O$50,MATCH($T344,Reliability!$C$23:$C$50,0)),0),0)*$H344*$X344*$Y344),$D344)*$R344","v":0},{"$f":"MIN((IFERROR(IF(AND($V344<=AK$1,$W344>=AK$1),INDEX(Reliability!P$23:P$50,MATCH($S344,Reliability!$C$23:$C$50,0)),0),0)*IF($T344=\"n/a\",$D344*$Y344,$G344)+IFERROR(IF(AND($V344<=AK$1,$W344>=AK$1),INDEX(Reliability!P$23:P$50,MATCH($T344,Reliability!$C$23:$C$50,0)),0),0)*$H344*$X344*$Y344),$D344)*$R344","v":0}]
[null,{"$f":"unique_contracts!B346","v":0},{"$f":"unique_contracts!D346","v":0},{"$f":"unique_contracts!J346","v":0},{"$f":"unique_contracts!M346","v":0},{"$f":"unique_contracts!N346","v":0},{"$f":"unique_contracts!P346","v":0},{"$f":"unique_contracts!R346","v":0},{"$f":"unique_contracts!V346","v":0},{"$f":"unique_contracts!AB346","v":0},{"$f":"unique_contracts!AM346","v":0},{"$f":"unique_contracts!AN346","v":0},{"$f":"unique_contracts!AO346","v":0},{"$f":"unique_contracts!AP346","v":0},{"$f":"unique_contracts!AQ346","v":0},{"$f":"unique_contracts!AR346","v":0},{"$f":"unique_contracts!BP346","v":0},0,{"$f":"IFERROR(IF(AND(I345>0,E345=\"NotHybrid\"),_xlfn.CONCAT(MAX(MIN(ROUNDDOWN(I345/D345,0),8),4),INDEX(resources!$G:$G,MATCH(B345,resources!$A:$A,0))),INDEX(resources!$G:$G,MATCH(B345,resources!$A:$A,0))),\"n/a\")","v":"n/a"},"n/a","n/a",0,0,1,1,{"$f":"MIN((IFERROR(IF(AND($V345<=Z$1,$W345>=Z$1),INDEX(Reliability!E$23:E$50,MATCH($S345,Reliability!$C$23:$C$50,0)),0),0)*IF($T345=\"n/a\",$D345*$Y345,$G345)+IFERROR(IF(AND($V345<=Z$1,$W345>=Z$1),INDEX(Reliability!E$23:E$50,MATCH($T345,Reliability!$C$23:$C$50,0)),0),0)*$H345*$X345*$Y345),$D345)*$R345","v":0},{"$f":"MIN((IFERROR(IF(AND($V345<=AA$1,$W345>=AA$1),INDEX(Reliability!F$23:F$50,MATCH($S345,Reliability!$C$23:$C$50,0)),0),0)*IF($T345=\"n/a\",$D345*$Y345,$G345)+IFERROR(IF(AND($V345<=AA$1,$W345>=AA$1),INDEX(Reliability!F$23:F$50,MATCH($T345,Reliability!$C$23:$C$50,0)),0),0)*$H345*$X345*$Y345),$D345)*$R345","v":0},{"$f":"MIN((IFERROR(IF(AND($V345<=AB$1,$W345>=AB$1),INDEX(Reliability!G$23:G$50,MATCH($S345,Reliability!$C$23:$C$50,0)),0),0)*IF($T345=\"n/a\",$D345*$Y345,$G345)+IFERROR(IF(AND($V345<=AB$1,$W345>=AB$1),INDEX(Reliability!G$23:G$50,MATCH($T345,Reliability!$C$23:$C$50,0)),0),0)*$H345*$X345*$Y345),$D345)*$R345","v":0},{"$f":"MIN((IFERROR(IF(AND($V345<=AC$1,$W345>=AC$1),INDEX(Reliability!H$23:H$50,MATCH($S345,Reliability!$C$23:$C$50,0)),0),0)*IF($T345=\"n/a\",$D345*$Y345,$G345)+IFERROR(IF(AND($V345<=AC$1,$W345>=AC$1),INDEX(Reliability!H$23:H$50,MATCH($T345,Reliability!$C$23:$C$50,0)),0),0)*$H345*$X345*$Y345),$D345)*$R345","v":0},{"$f":"MIN((IFERROR(IF(AND($V345<=AD$1,$W345>=AD$1),INDEX(Reliability!I$23:I$50,MATCH($S345,Reliability!$C$23:$C$50,0)),0),0)*IF($T345=\"n/a\",$D345*$Y345,$G345)+IFERROR(IF(AND($V345<=AD$1,$W345>=AD$1),INDEX(Reliability!I$23:I$50,MATCH($T345,Reliability!$C$23:$C$50,0)),0),0)*$H345*$X345*$Y345),$D345)*$R345","v":0},{"$f":"MIN((IFERROR(IF(AND($V345<=AE$1,$W345>=AE$1),INDEX(Reliability!J$23:J$50,MATCH($S345,Reliability!$C$23:$C$50,0)),0),0)*IF($T345=\"n/a\",$D345*$Y345,$G345)+IFERROR(IF(AND($V345<=AE$1,$W345>=AE$1),INDEX(Reliability!J$23:J$50,MATCH($T345,Reliability!$C$23:$C$50,0)),0),0)*$H345*$X345*$Y345),$D345)*$R345","v":0},{"$f":"MIN((IFERROR(IF(AND($V345<=AF$1,$W345>=AF$1),INDEX(Reliability!K$23:K$50,MATCH($S345,Reliability!$C$23:$C$50,0)),0),0)*IF($T345=\"n/a\",$D345*$Y345,$G345)+IFERROR(IF(AND($V345<=AF$1,$W345>=AF$1),INDEX(Reliability!K$23:K$50,MATCH($T345,Reliability!$C$23:$C$50,0)),0),0)*$H345*$X345*$Y345),$D345)*$R345","v":0},{"$f":"MIN((IFERROR(IF(AND($V345<=AG$1,$W345>=AG$1),INDEX(Reliability!L$23:L$50,MATCH($S345,Reliability!$C$23:$C$50,0)),0),0)*IF($T345=\"n/a\",$D345*$Y345,$G345)+IFERROR(IF(AND($V345<=AG$1,$W345>=AG$1),INDEX(Reliability!L$23:L$50,MATCH($T345,Reliability!$C$23:$C$50,0)),0),0)*$H345*$X345*$Y345),$D345)*$R345","v":0},{"$f":"MIN((IFERROR(IF(AND($V345<=AH$1,$W345>=AH$1),INDEX(Reliability!M$23:M$50,MATCH($S345,Reliability!$C$23:$C$50,0)),0),0)*IF($T345=\"n/a\",$D345*$Y345,$G345)+IFERROR(IF(AND($V345<=AH$1,$W345>=AH$1),INDEX(Reliability!M$23:M$50,MATCH($T345,Reliability!$C$23:$C$50,0)),0),0)*$H345*$X345*$Y345),$D345)*$R345","v":0},{"$f":"MIN((IFERROR(IF(AND($V345<=AI$1,$W345>=AI$1),INDEX(Reliability!N$23:N$50,MATCH($S345,Reliability!$C$23:$C$50,0)),0),0)*IF($T345=\"n/a\",$D345*$Y345,$G345)+IFERROR(IF(AND($V345<=AI$1,$W345>=AI$1),INDEX(Reliability!N$23:N$50,MATCH($T345,Reliability!$C$23:$C$50,0)),0),0)*$H345*$X345*$Y345),$D345)*$R345","v":0},{"$f":"MIN((IFERROR(IF(AND($V345<=AJ$1,$W345>=AJ$1),INDEX(Reliability!O$23:O$50,MATCH($S345,Reliability!$C$23:$C$50,0)),0),0)*IF($T345=\"n/a\",$D345*$Y345,$G345)+IFERROR(IF(AND($V345<=AJ$1,$W345>=AJ$1),INDEX(Reliability!O$23:O$50,MATCH($T345,Reliability!$C$23:$C$50,0)),0),0)*$H345*$X345*$Y345),$D345)*$R345","v":0},{"$f":"MIN((IFERROR(IF(AND($V345<=AK$1,$W345>=AK$1),INDEX(Reliability!P$23:P$50,MATCH($S345,Reliability!$C$23:$C$50,0)),0),0)*IF($T345=\"n/a\",$D345*$Y345,$G345)+IFERROR(IF(AND($V345<=AK$1,$W345>=AK$1),INDEX(Reliability!P$23:P$50,MATCH($T345,Reliability!$C$23:$C$50,0)),0),0)*$H345*$X345*$Y345),$D345)*$R345","v":0}]
[null,{"$f":"unique_contracts!B347","v":0},{"$f":"unique_contracts!D347","v":0},{"$f":"unique_contracts!J347","v":0},{"$f":"unique_contracts!M347","v":0},{"$f":"unique_contracts!N347","v":0},{"$f":"unique_contracts!P347","v":0},{"$f":"unique_contracts!R347","v":0},{"$f":"unique_contracts!V347","v":0},{"$f":"unique_contracts!AB347","v":0},{"$f":"unique_contracts!AM347","v":0},{"$f":"unique_contracts!AN347","v":0},{"$f":"unique_contracts!AO347","v":0},{"$f":"unique_contracts!AP347","v":0},{"$f":"unique_contracts!AQ347","v":0},{"$f":"unique_contracts!AR347","v":0},{"$f":"unique_contracts!BP347","v":0},0,{"$f":"IFERROR(IF(AND(I346>0,E346=\"NotHybrid\"),_xlfn.CONCAT(MAX(MIN(ROUNDDOWN(I346/D346,0),8),4),INDEX(resources!$G:$G,MATCH(B346,resources!$A:$A,0))),INDEX(resources!$G:$G,MATCH(B346,resources!$A:$A,0))),\"n/a\")","v":"n/a"},"n/a","n/a",0,0,1,1,{"$f":"MIN((IFERROR(IF(AND($V346<=Z$1,$W346>=Z$1),INDEX(Reliability!E$23:E$50,MATCH($S346,Reliability!$C$23:$C$50,0)),0),0)*IF($T346=\"n/a\",$D346*$Y346,$G346)+IFERROR(IF(AND($V346<=Z$1,$W346>=Z$1),INDEX(Reliability!E$23:E$50,MATCH($T346,Reliability!$C$23:$C$50,0)),0),0)*$H346*$X346*$Y346),$D346)*$R346","v":0},{"$f":"MIN((IFERROR(IF(AND($V346<=AA$1,$W346>=AA$1),INDEX(Reliability!F$23:F$50,MATCH($S346,Reliability!$C$23:$C$50,0)),0),0)*IF($T346=\"n/a\",$D346*$Y346,$G346)+IFERROR(IF(AND($V346<=AA$1,$W346>=AA$1),INDEX(Reliability!F$23:F$50,MATCH($T346,Reliability!$C$23:$C$50,0)),0),0)*$H346*$X346*$Y346),$D346)*$R346","v":0},{"$f":"MIN((IFERROR(IF(AND($V346<=AB$1,$W346>=AB$1),INDEX(Reliability!G$23:G$50,MATCH($S346,Reliability!$C$23:$C$50,0)),0),0)*IF($T346=\"n/a\",$D346*$Y346,$G346)+IFERROR(IF(AND($V346<=AB$1,$W346>=AB$1),INDEX(Reliability!G$23:G$50,MATCH($T346,Reliability!$C$23:$C$50,0)),0),0)*$H346*$X346*$Y346),$D346)*$R346","v":0},{"$f":"MIN((IFERROR(IF(AND($V346<=AC$1,$W346>=AC$1),INDEX(Reliability!H$23:H$50,MATCH($S346,Reliability!$C$23:$C$50,0)),0),0)*IF($T346=\"n/a\",$D346*$Y346,$G346)+IFERROR(IF(AND($V346<=AC$1,$W346>=AC$1),INDEX(Reliability!H$23:H$50,MATCH($T346,Reliability!$C$23:$C$50,0)),0),0)*$H346*$X346*$Y346),$D346)*$R346","v":0},{"$f":"MIN((IFERROR(IF(AND($V346<=AD$1,$W346>=AD$1),INDEX(Reliability!I$23:I$50,MATCH($S346,Reliability!$C$23:$C$50,0)),0),0)*IF($T346=\"n/a\",$D346*$Y346,$G346)+IFERROR(IF(AND($V346<=AD$1,$W346>=AD$1),INDEX(Reliability!I$23:I$50,MATCH($T346,Reliability!$C$23:$C$50,0)),0),0)*$H346*$X346*$Y346),$D346)*$R346","v":0},{"$f":"MIN((IFERROR(IF(AND($V346<=AE$1,$W346>=AE$1),INDEX(Reliability!J$23:J$50,MATCH($S346,Reliability!$C$23:$C$50,0)),0),0)*IF($T346=\"n/a\",$D346*$Y346,$G346)+IFERROR(IF(AND($V346<=AE$1,$W346>=AE$1),INDEX(Reliability!J$23:J$50,MATCH($T346,Reliability!$C$23:$C$50,0)),0),0)*$H346*$X346*$Y346),$D346)*$R346","v":0},{"$f":"MIN((IFERROR(IF(AND($V346<=AF$1,$W346>=AF$1),INDEX(Reliability!K$23:K$50,MATCH($S346,Reliability!$C$23:$C$50,0)),0),0)*IF($T346=\"n/a\",$D346*$Y346,$G346)+IFERROR(IF(AND($V346<=AF$1,$W346>=AF$1),INDEX(Reliability!K$23:K$50,MATCH($T346,Reliability!$C$23:$C$50,0)),0),0)*$H346*$X346*$Y346),$D346)*$R346","v":0},{"$f":"MIN((IFERROR(IF(AND($V346<=AG$1,$W346>=AG$1),INDEX(Reliability!L$23:L$50,MATCH($S346,Reliability!$C$23:$C$50,0)),0),0)*IF($T346=\"n/a\",$D346*$Y346,$G346)+IFERROR(IF(AND($V346<=AG$1,$W346>=AG$1),INDEX(Reliability!L$23:L$50,MATCH($T346,Reliability!$C$23:$C$50,0)),0),0)*$H346*$X346*$Y346),$D346)*$R346","v":0},{"$f":"MIN((IFERROR(IF(AND($V346<=AH$1,$W346>=AH$1),INDEX(Reliability!M$23:M$50,MATCH($S346,Reliability!$C$23:$C$50,0)),0),0)*IF($T346=\"n/a\",$D346*$Y346,$G346)+IFERROR(IF(AND($V346<=AH$1,$W346>=AH$1),INDEX(Reliability!M$23:M$50,MATCH($T346,Reliability!$C$23:$C$50,0)),0),0)*$H346*$X346*$Y346),$D346)*$R346","v":0},{"$f":"MIN((IFERROR(IF(AND($V346<=AI$1,$W346>=AI$1),INDEX(Reliability!N$23:N$50,MATCH($S346,Reliability!$C$23:$C$50,0)),0),0)*IF($T346=\"n/a\",$D346*$Y346,$G346)+IFERROR(IF(AND($V346<=AI$1,$W346>=AI$1),INDEX(Reliability!N$23:N$50,MATCH($T346,Reliability!$C$23:$C$50,0)),0),0)*$H346*$X346*$Y346),$D346)*$R346","v":0},{"$f":"MIN((IFERROR(IF(AND($V346<=AJ$1,$W346>=AJ$1),INDEX(Reliability!O$23:O$50,MATCH($S346,Reliability!$C$23:$C$50,0)),0),0)*IF($T346=\"n/a\",$D346*$Y346,$G346)+IFERROR(IF(AND($V346<=AJ$1,$W346>=AJ$1),INDEX(Reliability!O$23:O$50,MATCH($T346,Reliability!$C$23:$C$50,0)),0),0)*$H346*$X346*$Y346),$D346)*$R346","v":0},{"$f":"MIN((IFERROR(IF(AND($V346<=AK$1,$W346>=AK$1),INDEX(Reliability!P$23:P$50,MATCH($S346,Reliability!$C$23:$C$50,0)),0),0)*IF($T346=\"n/a\",$D346*$Y346,$G346)+IFERROR(IF(AND($V346<=AK$1,$W346>=AK$1),INDEX(Reliability!P$23:P$50,MATCH($T346,Reliability!$C$23:$C$50,0)),0),0)*$H346*$X346*$Y346),$D346)*$R346","v":0}]
[null,{"$f":"unique_contracts!B348","v":0},{"$f":"unique_contracts!D348","v":0},{"$f":"unique_contracts!J348","v":0},{"$f":"unique_contracts!M348","v":0},{"$f":"unique_contracts!N348","v":0},{"$f":"unique_contracts!P348","v":0},{"$f":"unique_contracts!R348","v":0},{"$f":"unique_contracts!V348","v":0},{"$f":"unique_contracts!AB348","v":0},{"$f":"unique_contracts!AM348","v":0},{"$f":"unique_contracts!AN348","v":0},{"$f":"unique_contracts!AO348","v":0},{"$f":"unique_contracts!AP348","v":0},{"$f":"unique_contracts!AQ348","v":0},{"$f":"unique_contracts!AR348","v":0},{"$f":"unique_contracts!BP348","v":0},{"$f":"IF(AND(J347=\"Sell\",ISNUMBER(SEARCH(\"Capacity\",Q347))),-1,IF(AND(NOT(J347=\"Sell\"),ISNUMBER(SEARCH(\"Capacity\",Q347))),1,0))","v":0},{"$f":"IFERROR(IF(AND(I347>0,E347=\"NotHybrid\"),_xlfn.CONCAT(MAX(MIN(ROUNDDOWN(I347/D347,0),8),4),INDEX(resources!$G:$G,MATCH(B347,resources!$A:$A,0))),INDEX(resources!$G:$G,MATCH(B347,resources!$A:$A,0))),\"n/a\")","v":"n/a"},{"$f":"IFERROR(IF(NOT(E347=\"NotHybrid\"),_xlfn.CONCAT(MAX(MIN(ROUNDDOWN(I347/H347,0),8),4),\"hr_batteries\"),\"n/a\"),\"n/a\")","v":"n/a"},{"$f":"IF(T347=\"n/a\",S347,\"hybrid\")","v":"n/a"},{"$f":"IFERROR(IF(DATE(K347,L347,M347)<=DATE(K347,6,1),K347,K347+1),0)","v":0},{"$f":"IFERROR(IF(DATE(N347,O347,P347)>=DATE(N347,10,1),N347,N347-1),0)","v":0},{"$f":"IF(OR(T347=\"n/a\",NOT(F347=\"NO\")),100%,IF(ISNUMBER(SEARCH(\"pv\",S347)),MIN(G347/(1*(ROUNDDOWN(I347/H347,0)/4)),H347)/H347,IF(ISNUMBER(SEARCH(\"wind\",S347)),MIN(G347/(2*(ROUNDDOWN(I347/H347,0)/4)),H347)/H347,1)))","v":1},{"$f":"IF(ISNUMBER(SEARCH(\"batteries\",S347)),MIN(ROUNDDOWN(I347/D347,0)/4,1), IF(ISNUMBER(SEARCH(\"batteries\",T347)),MIN(ROUNDDOWN(I347/H347,0)/4,1),1))","v":1},{"$f":"MIN((IFERROR(IF(AND($V347<=Z$1,$W347>=Z$1),INDEX(Reliability!E$23:E$50,MATCH($S347,Reliability!$C$23:$C$50,0)),0),0)*IF($T347=\"n/a\",$D347*$Y347,$G347)+IFERROR(IF(AND($V347<=Z$1,$W347>=Z$1),INDEX(Reliability!E$23:E$50,MATCH($T347,Reliability!$C$23:$C$50,0)),0),0)*$H347*$X347*$Y347),$D347)*$R347","v":0},{"$f":"MIN((IFERROR(IF(AND($V347<=AA$1,$W347>=AA$1),INDEX(Reliability!F$23:F$50,MATCH($S347,Reliability!$C$23:$C$50,0)),0),0)*IF($T347=\"n/a\",$D347*$Y347,$G347)+IFERROR(IF(AND($V347<=AA$1,$W347>=AA$1),INDEX(Reliability!F$23:F$50,MATCH($T347,Reliability!$C$23:$C$50,0)),0),0)*$H347*$X347*$Y347),$D347)*$R347","v":0},{"$f":"MIN((IFERROR(IF(AND($V347<=AB$1,$W347>=AB$1),INDEX(Reliability!G$23:G$50,MATCH($S347,Reliability!$C$23:$C$50,0)),0),0)*IF($T347=\"n/a\",$D347*$Y347,$G347)+IFERROR(IF(AND($V347<=AB$1,$W347>=AB$1),INDEX(Reliability!G$23:G$50,MATCH($T347,Reliability!$C$23:$C$50,0)),0),0)*$H347*$X347*$Y347),$D347)*$R347","v":0},{"$f":"MIN((IFERROR(IF(AND($V347<=AC$1,$W347>=AC$1),INDEX(Reliability!H$23:H$50,MATCH($S347,Reliability!$C$23:$C$50,0)),0),0)*IF($T347=\"n/a\",$D347*$Y347,$G347)+IFERROR(IF(AND($V347<=AC$1,$W347>=AC$1),INDEX(Reliability!H$23:H$50,MATCH($T347,Reliability!$C$23:$C$50,0)),0),0)*$H347*$X347*$Y347),$D347)*$R347","v":0},{"$f":"MIN((IFERROR(IF(AND($V347<=AD$1,$W347>=AD$1),INDEX(Reliability!I$23:I$50,MATCH($S347,Reliability!$C$23:$C$50,0)),0),0)*IF($T347=\"n/a\",$D347*$Y347,$G347)+IFERROR(IF(AND($V347<=AD$1,$W347>=AD$1),INDEX(Reliability!I$23:I$50,MATCH($T347,Reliability!$C$23:$C$50,0)),0),0)*$H347*$X347*$Y347),$D347)*$R347","v":0},{"$f":"MIN((IFERROR(IF(AND($V347<=AE$1,$W347>=AE$1),INDEX(Reliability!J$23:J$50,MATCH($S347,Reliability!$C$23:$C$50,0)),0),0)*IF($T347=\"n/a\",$D347*$Y347,$G347)+IFERROR(IF(AND($V347<=AE$1,$W347>=AE$1),INDEX(Reliability!J$23:J$50,MATCH($T347,Reliability!$C$23:$C$50,0)),0),0)*$H347*$X347*$Y347),$D347)*$R347","v":0},{"$f":"MIN((IFERROR(IF(AND($V347<=AF$1,$W347>=AF$1),INDEX(Reliability!K$23:K$50,MATCH($S347,Reliability!$C$23:$C$50,0)),0),0)*IF($T347=\"n/a\",$D347*$Y347,$G347)+IFERROR(IF(AND($V347<=AF$1,$W347>=AF$1),INDEX(Reliability!K$23:K$50,MATCH($T347,Reliability!$C$23:$C$50,0)),0),0)*$H347*$X347*$Y347),$D347)*$R347","v":0},{"$f":"MIN((IFERROR(IF(AND($V347<=AG$1,$W347>=AG$1),INDEX(Reliability!L$23:L$50,MATCH($S347,Reliability!$C$23:$C$50,0)),0),0)*IF($T347=\"n/a\",$D347*$Y347,$G347)+IFERROR(IF(AND($V347<=AG$1,$W347>=AG$1),INDEX(Reliability!L$23:L$50,MATCH($T347,Reliability!$C$23:$C$50,0)),0),0)*$H347*$X347*$Y347),$D347)*$R347","v":0},{"$f":"MIN((IFERROR(IF(AND($V347<=AH$1,$W347>=AH$1),INDEX(Reliability!M$23:M$50,MATCH($S347,Reliability!$C$23:$C$50,0)),0),0)*IF($T347=\"n/a\",$D347*$Y347,$G347)+IFERROR(IF(AND($V347<=AH$1,$W347>=AH$1),INDEX(Reliability!M$23:M$50,MATCH($T347,Reliability!$C$23:$C$50,0)),0),0)*$H347*$X347*$Y347),$D347)*$R347","v":0},{"$f":"MIN((IFERROR(IF(AND($V347<=AI$1,$W347>=AI$1),INDEX(Reliability!N$23:N$50,MATCH($S347,Reliability!$C$23:$C$50,0)),0),0)*IF($T347=\"n/a\",$D347*$Y347,$G347)+IFERROR(IF(AND($V347<=AI$1,$W347>=AI$1),INDEX(Reliability!N$23:N$50,MATCH($T347,Reliability!$C$23:$C$50,0)),0),0)*$H347*$X347*$Y347),$D347)*$R347","v":0},{"$f":"MIN((IFERROR(IF(AND($V347<=AJ$1,$W347>=AJ$1),INDEX(Reliability!O$23:O$50,MATCH($S347,Reliability!$C$23:$C$50,0)),0),0)*IF($T347=\"n/a\",$D347*$Y347,$G347)+IFERROR(IF(AND($V347<=AJ$1,$W347>=AJ$1),INDEX(Reliability!O$23:O$50,MATCH($T347,Reliability!$C$23:$C$50,0)),0),0)*$H347*$X347*$Y347),$D347)*$R347","v":0},{"$f":"MIN((IFERROR(IF(AND($V347<=AK$1,$W347>=AK$1),INDEX(Reliability!P$23:P$50,MATCH($S347,Reliability!$C$23:$C$50,0)),0),0)*IF($T347=\"n/a\",$D347*$Y347,$G347)+IFERROR(IF(AND($V347<=AK$1,$W347>=AK$1),INDEX(Reliability!P$23:P$50,MATCH($T347,Reliability!$C$23:$C$50,0)),0),0)*$H347*$X347*$Y347),$D347)*$R347","v":0}]
[null,{"$f":"unique_contracts!B349","v":0},{"$f":"unique_contracts!D349","v":0},{"$f":"unique_contracts!J349","v":0},{"$f":"unique_contracts!M349","v":0},{"$f":"unique_contracts!N349","v":0},{"$f":"unique_contracts!P349","v":0},{"$f":"unique_contracts!R349","v":0},{"$f":"unique_contracts!V349","v":0},{"$f":"unique_contracts!AB349","v":0},{"$f":"unique_contracts!AM349","v":0},{"$f":"unique_contracts!AN349","v":0},{"$f":"unique_contracts!AO349","v":0},{"$f":"unique_contracts!AP349","v":0},{"$f":"unique_contracts!AQ349","v":0},{"$f":"unique_contracts!AR349","v":0},{"$f":"unique_contracts!BP349","v":0},0,{"$f":"IFERROR(IF(AND(I348>0,E348=\"NotHybrid\"),_xlfn.CONCAT(MAX(MIN(ROUNDDOWN(I348/D348,0),8),4),INDEX(resources!$G:$G,MATCH(B348,resources!$A:$A,0))),INDEX(resources!$G:$G,MATCH(B348,resources!$A:$A,0))),\"n/a\")","v":"n/a"},"n/a","n/a",0,0,1,1,{"$f":"MIN((IFERROR(IF(AND($V348<=Z$1,$W348>=Z$1),INDEX(Reliability!E$23:E$50,MATCH($S348,Reliability!$C$23:$C$50,0)),0),0)*IF($T348=\"n/a\",$D348*$Y348,$G348)+IFERROR(IF(AND($V348<=Z$1,$W348>=Z$1),INDEX(Reliability!E$23:E$50,MATCH($T348,Reliability!$C$23:$C$50,0)),0),0)*$H348*$X348*$Y348),$D348)*$R348","v":0},{"$f":"MIN((IFERROR(IF(AND($V348<=AA$1,$W348>=AA$1),INDEX(Reliability!F$23:F$50,MATCH($S348,Reliability!$C$23:$C$50,0)),0),0)*IF($T348=\"n/a\",$D348*$Y348,$G348)+IFERROR(IF(AND($V348<=AA$1,$W348>=AA$1),INDEX(Reliability!F$23:F$50,MATCH($T348,Reliability!$C$23:$C$50,0)),0),0)*$H348*$X348*$Y348),$D348)*$R348","v":0},{"$f":"MIN((IFERROR(IF(AND($V348<=AB$1,$W348>=AB$1),INDEX(Reliability!G$23:G$50,MATCH($S348,Reliability!$C$23:$C$50,0)),0),0)*IF($T348=\"n/a\",$D348*$Y348,$G348)+IFERROR(IF(AND($V348<=AB$1,$W348>=AB$1),INDEX(Reliability!G$23:G$50,MATCH($T348,Reliability!$C$23:$C$50,0)),0),0)*$H348*$X348*$Y348),$D348)*$R348","v":0},{"$f":"MIN((IFERROR(IF(AND($V348<=AC$1,$W348>=AC$1),INDEX(Reliability!H$23:H$50,MATCH($S348,Reliability!$C$23:$C$50,0)),0),0)*IF($T348=\"n/a\",$D348*$Y348,$G348)+IFERROR(IF(AND($V348<=AC$1,$W348>=AC$1),INDEX(Reliability!H$23:H$50,MATCH($T348,Reliability!$C$23:$C$50,0)),0),0)*$H348*$X348*$Y348),$D348)*$R348","v":0},{"$f":"MIN((IFERROR(IF(AND($V348<=AD$1,$W348>=AD$1),INDEX(Reliability!I$23:I$50,MATCH($S348,Reliability!$C$23:$C$50,0)),0),0)*IF($T348=\"n/a\",$D348*$Y348,$G348)+IFERROR(IF(AND($V348<=AD$1,$W348>=AD$1),INDEX(Reliability!I$23:I$50,MATCH($T348,Reliability!$C$23:$C$50,0)),0),0)*$H348*$X348*$Y348),$D348)*$R348","v":0},{"$f":"MIN((IFERROR(IF(AND($V348<=AE$1,$W348>=AE$1),INDEX(Reliability!J$23:J$50,MATCH($S348,Reliability!$C$23:$C$50,0)),0),0)*IF($T348=\"n/a\",$D348*$Y348,$G348)+IFERROR(IF(AND($V348<=AE$1,$W348>=AE$1),INDEX(Reliability!J$23:J$50,MATCH($T348,Reliability!$C$23:$C$50,0)),0),0)*$H348*$X348*$Y348),$D348)*$R348","v":0},{"$f":"MIN((IFERROR(IF(AND($V348<=AF$1,$W348>=AF$1),INDEX(Reliability!K$23:K$50,MATCH($S348,Reliability!$C$23:$C$50,0)),0),0)*IF($T348=\"n/a\",$D348*$Y348,$G348)+IFERROR(IF(AND($V348<=AF$1,$W348>=AF$1),INDEX(Reliability!K$23:K$50,MATCH($T348,Reliability!$C$23:$C$50,0)),0),0)*$H348*$X348*$Y348),$D348)*$R348","v":0},{"$f":"MIN((IFERROR(IF(AND($V348<=AG$1,$W348>=AG$1),INDEX(Reliability!L$23:L$50,MATCH($S348,Reliability!$C$23:$C$50,0)),0),0)*IF($T348=\"n/a\",$D348*$Y348,$G348)+IFERROR(IF(AND($V348<=AG$1,$W348>=AG$1),INDEX(Reliability!L$23:L$50,MATCH($T348,Reliability!$C$23:$C$50,0)),0),0)*$H348*$X348*$Y348),$D348)*$R348","v":0},{"$f":"MIN((IFERROR(IF(AND($V348<=AH$1,$W348>=AH$1),INDEX(Reliability!M$23:M$50,MATCH($S348,Reliability!$C$23:$C$50,0)),0),0)*IF($T348=\"n/a\",$D348*$Y348,$G348)+IFERROR(IF(AND($V348<=AH$1,$W348>=AH$1),INDEX(Reliability!M$23:M$50,MATCH($T348,Reliability!$C$23:$C$50,0)),0),0)*$H348*$X348*$Y348),$D348)*$R348","v":0},{"$f":"MIN((IFERROR(IF(AND($V348<=AI$1,$W348>=AI$1),INDEX(Reliability!N$23:N$50,MATCH($S348,Reliability!$C$23:$C$50,0)),0),0)*IF($T348=\"n/a\",$D348*$Y348,$G348)+IFERROR(IF(AND($V348<=AI$1,$W348>=AI$1),INDEX(Reliability!N$23:N$50,MATCH($T348,Reliability!$C$23:$C$50,0)),0),0)*$H348*$X348*$Y348),$D348)*$R348","v":0},{"$f":"MIN((IFERROR(IF(AND($V348<=AJ$1,$W348>=AJ$1),INDEX(Reliability!O$23:O$50,MATCH($S348,Reliability!$C$23:$C$50,0)),0),0)*IF($T348=\"n/a\",$D348*$Y348,$G348)+IFERROR(IF(AND($V348<=AJ$1,$W348>=AJ$1),INDEX(Reliability!O$23:O$50,MATCH($T348,Reliability!$C$23:$C$50,0)),0),0)*$H348*$X348*$Y348),$D348)*$R348","v":0},{"$f":"MIN((IFERROR(IF(AND($V348<=AK$1,$W348>=AK$1),INDEX(Reliability!P$23:P$50,MATCH($S348,Reliability!$C$23:$C$50,0)),0),0)*IF($T348=\"n/a\",$D348*$Y348,$G348)+IFERROR(IF(AND($V348<=AK$1,$W348>=AK$1),INDEX(Reliability!P$23:P$50,MATCH($T348,Reliability!$C$23:$C$50,0)),0),0)*$H348*$X348*$Y348),$D348)*$R348","v":0}]
[null,{"$f":"unique_contracts!B350","v":0},{"$f":"unique_contracts!D350","v":0},{"$f":"unique_contracts!J350","v":0},{"$f":"unique_contracts!M350","v":0},{"$f":"unique_contracts!N350","v":0},{"$f":"unique_contracts!P350","v":0},{"$f":"unique_contracts!R350","v":0},{"$f":"unique_contracts!V350","v":0},{"$f":"unique_contracts!AB350","v":0},{"$f":"unique_contracts!AM350","v":0},{"$f":"unique_contracts!AN350","v":0},{"$f":"unique_contracts!AO350","v":0},{"$f":"unique_contracts!AP350","v":0},{"$f":"unique_contracts!AQ350","v":0},{"$f":"unique_contracts!AR350","v":0},{"$f":"unique_contracts!BP350","v":0},0,{"$f":"IFERROR(IF(AND(I349>0,E349=\"NotHybrid\"),_xlfn.CONCAT(MAX(MIN(ROUNDDOWN(I349/D349,0),8),4),INDEX(resources!$G:$G,MATCH(B349,resources!$A:$A,0))),INDEX(resources!$G:$G,MATCH(B349,resources!$A:$A,0))),\"n/a\")","v":"n/a"},"n/a","n/a",0,0,1,1,{"$f":"MIN((IFERROR(IF(AND($V349<=Z$1,$W349>=Z$1),INDEX(Reliability!E$23:E$50,MATCH($S349,Reliability!$C$23:$C$50,0)),0),0)*IF($T349=\"n/a\",$D349*$Y349,$G349)+IFERROR(IF(AND($V349<=Z$1,$W349>=Z$1),INDEX(Reliability!E$23:E$50,MATCH($T349,Reliability!$C$23:$C$50,0)),0),0)*$H349*$X349*$Y349),$D349)*$R349","v":0},{"$f":"MIN((IFERROR(IF(AND($V349<=AA$1,$W349>=AA$1),INDEX(Reliability!F$23:F$50,MATCH($S349,Reliability!$C$23:$C$50,0)),0),0)*IF($T349=\"n/a\",$D349*$Y349,$G349)+IFERROR(IF(AND($V349<=AA$1,$W349>=AA$1),INDEX(Reliability!F$23:F$50,MATCH($T349,Reliability!$C$23:$C$50,0)),0),0)*$H349*$X349*$Y349),$D349)*$R349","v":0},{"$f":"MIN((IFERROR(IF(AND($V349<=AB$1,$W349>=AB$1),INDEX(Reliability!G$23:G$50,MATCH($S349,Reliability!$C$23:$C$50,0)),0),0)*IF($T349=\"n/a\",$D349*$Y349,$G349)+IFERROR(IF(AND($V349<=AB$1,$W349>=AB$1),INDEX(Reliability!G$23:G$50,MATCH($T349,Reliability!$C$23:$C$50,0)),0),0)*$H349*$X349*$Y349),$D349)*$R349","v":0},{"$f":"MIN((IFERROR(IF(AND($V349<=AC$1,$W349>=AC$1),INDEX(Reliability!H$23:H$50,MATCH($S349,Reliability!$C$23:$C$50,0)),0),0)*IF($T349=\"n/a\",$D349*$Y349,$G349)+IFERROR(IF(AND($V349<=AC$1,$W349>=AC$1),INDEX(Reliability!H$23:H$50,MATCH($T349,Reliability!$C$23:$C$50,0)),0),0)*$H349*$X349*$Y349),$D349)*$R349","v":0},{"$f":"MIN((IFERROR(IF(AND($V349<=AD$1,$W349>=AD$1),INDEX(Reliability!I$23:I$50,MATCH($S349,Reliability!$C$23:$C$50,0)),0),0)*IF($T349=\"n/a\",$D349*$Y349,$G349)+IFERROR(IF(AND($V349<=AD$1,$W349>=AD$1),INDEX(Reliability!I$23:I$50,MATCH($T349,Reliability!$C$23:$C$50,0)),0),0)*$H349*$X349*$Y349),$D349)*$R349","v":0},{"$f":"MIN((IFERROR(IF(AND($V349<=AE$1,$W349>=AE$1),INDEX(Reliability!J$23:J$50,MATCH($S349,Reliability!$C$23:$C$50,0)),0),0)*IF($T349=\"n/a\",$D349*$Y349,$G349)+IFERROR(IF(AND($V349<=AE$1,$W349>=AE$1),INDEX(Reliability!J$23:J$50,MATCH($T349,Reliability!$C$23:$C$50,0)),0),0)*$H349*$X349*$Y349),$D349)*$R349","v":0},{"$f":"MIN((IFERROR(IF(AND($V349<=AF$1,$W349>=AF$1),INDEX(Reliability!K$23:K$50,MATCH($S349,Reliability!$C$23:$C$50,0)),0),0)*IF($T349=\"n/a\",$D349*$Y349,$G349)+IFERROR(IF(AND($V349<=AF$1,$W349>=AF$1),INDEX(Reliability!K$23:K$50,MATCH($T349,Reliability!$C$23:$C$50,0)),0),0)*$H349*$X349*$Y349),$D349)*$R349","v":0},{"$f":"MIN((IFERROR(IF(AND($V349<=AG$1,$W349>=AG$1),INDEX(Reliability!L$23:L$50,MATCH($S349,Reliability!$C$23:$C$50,0)),0),0)*IF($T349=\"n/a\",$D349*$Y349,$G349)+IFERROR(IF(AND($V349<=AG$1,$W349>=AG$1),INDEX(Reliability!L$23:L$50,MATCH($T349,Reliability!$C$23:$C$50,0)),0),0)*$H349*$X349*$Y349),$D349)*$R349","v":0},{"$f":"MIN((IFERROR(IF(AND($V349<=AH$1,$W349>=AH$1),INDEX(Reliability!M$23:M$50,MATCH($S349,Reliability!$C$23:$C$50,0)),0),0)*IF($T349=\"n/a\",$D349*$Y349,$G349)+IFERROR(IF(AND($V349<=AH$1,$W349>=AH$1),INDEX(Reliability!M$23:M$50,MATCH($T349,Reliability!$C$23:$C$50,0)),0),0)*$H349*$X349*$Y349),$D349)*$R349","v":0},{"$f":"MIN((IFERROR(IF(AND($V349<=AI$1,$W349>=AI$1),INDEX(Reliability!N$23:N$50,MATCH($S349,Reliability!$C$23:$C$50,0)),0),0)*IF($T349=\"n/a\",$D349*$Y349,$G349)+IFERROR(IF(AND($V349<=AI$1,$W349>=AI$1),INDEX(Reliability!N$23:N$50,MATCH($T349,Reliability!$C$23:$C$50,0)),0),0)*$H349*$X349*$Y349),$D349)*$R349","v":0},{"$f":"MIN((IFERROR(IF(AND($V349<=AJ$1,$W349>=AJ$1),INDEX(Reliability!O$23:O$50,MATCH($S349,Reliability!$C$23:$C$50,0)),0),0)*IF($T349=\"n/a\",$D349*$Y349,$G349)+IFERROR(IF(AND($V349<=AJ$1,$W349>=AJ$1),INDEX(Reliability!O$23:O$50,MATCH($T349,Reliability!$C$23:$C$50,0)),0),0)*$H349*$X349*$Y349),$D349)*$R349","v":0},{"$f":"MIN((IFERROR(IF(AND($V349<=AK$1,$W349>=AK$1),INDEX(Reliability!P$23:P$50,MATCH($S349,Reliability!$C$23:$C$50,0)),0),0)*IF($T349=\"n/a\",$D349*$Y349,$G349)+IFERROR(IF(AND($V349<=AK$1,$W349>=AK$1),INDEX(Reliability!P$23:P$50,MATCH($T349,Reliability!$C$23:$C$50,0)),0),0)*$H349*$X349*$Y349),$D349)*$R349","v":0}]
[null,{"$f":"unique_contracts!B351","v":0},{"$f":"unique_contracts!D351","v":0},{"$f":"unique_contracts!J351","v":0},{"$f":"unique_contracts!M351","v":0},{"$f":"unique_contracts!N351","v":0},{"$f":"unique_contracts!P351","v":0},{"$f":"unique_contracts!R351","v":0},{"$f":"unique_contracts!V351","v":0},{"$f":"unique_contracts!AB351","v":0},{"$f":"unique_contracts!AM351","v":0},{"$f":"unique_contracts!AN351","v":0},{"$f":"unique_contracts!AO351","v":0},{"$f":"unique_contracts!AP351","v":0},{"$f":"unique_contracts!AQ351","v":0},{"$f":"unique_contracts!AR351","v":0},{"$f":"unique_contracts!BP351","v":0},0,{"$f":"IFERROR(IF(AND(I350>0,E350=\"NotHybrid\"),_xlfn.CONCAT(MAX(MIN(ROUNDDOWN(I350/D350,0),8),4),INDEX(resources!$G:$G,MATCH(B350,resources!$A:$A,0))),INDEX(resources!$G:$G,MATCH(B350,resources!$A:$A,0))),\"n/a\")","v":"n/a"},"n/a","n/a",0,0,1,1,{"$f":"MIN((IFERROR(IF(AND($V350<=Z$1,$W350>=Z$1),INDEX(Reliability!E$23:E$50,MATCH($S350,Reliability!$C$23:$C$50,0)),0),0)*IF($T350=\"n/a\",$D350*$Y350,$G350)+IFERROR(IF(AND($V350<=Z$1,$W350>=Z$1),INDEX(Reliability!E$23:E$50,MATCH($T350,Reliability!$C$23:$C$50,0)),0),0)*$H350*$X350*$Y350),$D350)*$R350","v":0},{"$f":"MIN((IFERROR(IF(AND($V350<=AA$1,$W350>=AA$1),INDEX(Reliability!F$23:F$50,MATCH($S350,Reliability!$C$23:$C$50,0)),0),0)*IF($T350=\"n/a\",$D350*$Y350,$G350)+IFERROR(IF(AND($V350<=AA$1,$W350>=AA$1),INDEX(Reliability!F$23:F$50,MATCH($T350,Reliability!$C$23:$C$50,0)),0),0)*$H350*$X350*$Y350),$D350)*$R350","v":0},{"$f":"MIN((IFERROR(IF(AND($V350<=AB$1,$W350>=AB$1),INDEX(Reliability!G$23:G$50,MATCH($S350,Reliability!$C$23:$C$50,0)),0),0)*IF($T350=\"n/a\",$D350*$Y350,$G350)+IFERROR(IF(AND($V350<=AB$1,$W350>=AB$1),INDEX(Reliability!G$23:G$50,MATCH($T350,Reliability!$C$23:$C$50,0)),0),0)*$H350*$X350*$Y350),$D350)*$R350","v":0},{"$f":"MIN((IFERROR(IF(AND($V350<=AC$1,$W350>=AC$1),INDEX(Reliability!H$23:H$50,MATCH($S350,Reliability!$C$23:$C$50,0)),0),0)*IF($T350=\"n/a\",$D350*$Y350,$G350)+IFERROR(IF(AND($V350<=AC$1,$W350>=AC$1),INDEX(Reliability!H$23:H$50,MATCH($T350,Reliability!$C$23:$C$50,0)),0),0)*$H350*$X350*$Y350),$D350)*$R350","v":0},{"$f":"MIN((IFERROR(IF(AND($V350<=AD$1,$W350>=AD$1),INDEX(Reliability!I$23:I$50,MATCH($S350,Reliability!$C$23:$C$50,0)),0),0)*IF($T350=\"n/a\",$D350*$Y350,$G350)+IFERROR(IF(AND($V350<=AD$1,$W350>=AD$1),INDEX(Reliability!I$23:I$50,MATCH($T350,Reliability!$C$23:$C$50,0)),0),0)*$H350*$X350*$Y350),$D350)*$R350","v":0},{"$f":"MIN((IFERROR(IF(AND($V350<=AE$1,$W350>=AE$1),INDEX(Reliability!J$23:J$50,MATCH($S350,Reliability!$C$23:$C$50,0)),0),0)*IF($T350=\"n/a\",$D350*$Y350,$G350)+IFERROR(IF(AND($V350<=AE$1,$W350>=AE$1),INDEX(Reliability!J$23:J$50,MATCH($T350,Reliability!$C$23:$C$50,0)),0),0)*$H350*$X350*$Y350),$D350)*$R350","v":0},{"$f":"MIN((IFERROR(IF(AND($V350<=AF$1,$W350>=AF$1),INDEX(Reliability!K$23:K$50,MATCH($S350,Reliability!$C$23:$C$50,0)),0),0)*IF($T350=\"n/a\",$D350*$Y350,$G350)+IFERROR(IF(AND($V350<=AF$1,$W350>=AF$1),INDEX(Reliability!K$23:K$50,MATCH($T350,Reliability!$C$23:$C$50,0)),0),0)*$H350*$X350*$Y350),$D350)*$R350","v":0},{"$f":"MIN((IFERROR(IF(AND($V350<=AG$1,$W350>=AG$1),INDEX(Reliability!L$23:L$50,MATCH($S350,Reliability!$C$23:$C$50,0)),0),0)*IF($T350=\"n/a\",$D350*$Y350,$G350)+IFERROR(IF(AND($V350<=AG$1,$W350>=AG$1),INDEX(Reliability!L$23:L$50,MATCH($T350,Reliability!$C$23:$C$50,0)),0),0)*$H350*$X350*$Y350),$D350)*$R350","v":0},{"$f":"MIN((IFERROR(IF(AND($V350<=AH$1,$W350>=AH$1),INDEX(Reliability!M$23:M$50,MATCH($S350,Reliability!$C$23:$C$50,0)),0),0)*IF($T350=\"n/a\",$D350*$Y350,$G350)+IFERROR(IF(AND($V350<=AH$1,$W350>=AH$1),INDEX(Reliability!M$23:M$50,MATCH($T350,Reliability!$C$23:$C$50,0)),0),0)*$H350*$X350*$Y350),$D350)*$R350","v":0},{"$f":"MIN((IFERROR(IF(AND($V350<=AI$1,$W350>=AI$1),INDEX(Reliability!N$23:N$50,MATCH($S350,Reliability!$C$23:$C$50,0)),0),0)*IF($T350=\"n/a\",$D350*$Y350,$G350)+IFERROR(IF(AND($V350<=AI$1,$W350>=AI$1),INDEX(Reliability!N$23:N$50,MATCH($T350,Reliability!$C$23:$C$50,0)),0),0)*$H350*$X350*$Y350),$D350)*$R350","v":0},{"$f":"MIN((IFERROR(IF(AND($V350<=AJ$1,$W350>=AJ$1),INDEX(Reliability!O$23:O$50,MATCH($S350,Reliability!$C$23:$C$50,0)),0),0)*IF($T350=\"n/a\",$D350*$Y350,$G350)+IFERROR(IF(AND($V350<=AJ$1,$W350>=AJ$1),INDEX(Reliability!O$23:O$50,MATCH($T350,Reliability!$C$23:$C$50,0)),0),0)*$H350*$X350*$Y350),$D350)*$R350","v":0},{"$f":"MIN((IFERROR(IF(AND($V350<=AK$1,$W350>=AK$1),INDEX(Reliability!P$23:P$50,MATCH($S350,Reliability!$C$23:$C$50,0)),0),0)*IF($T350=\"n/a\",$D350*$Y350,$G350)+IFERROR(IF(AND($V350<=AK$1,$W350>=AK$1),INDEX(Reliability!P$23:P$50,MATCH($T350,Reliability!$C$23:$C$50,0)),0),0)*$H350*$X350*$Y350),$D350)*$R350","v":0}]
[null,{"$f":"unique_contracts!B352","v":0},{"$f":"unique_contracts!D352","v":0},{"$f":"unique_contracts!J352","v":0},{"$f":"unique_contracts!M352","v":0},{"$f":"unique_contracts!N352","v":0},{"$f":"unique_contracts!P352","v":0},{"$f":"unique_contracts!R352","v":0},{"$f":"unique_contracts!V352","v":0},{"$f":"unique_contracts!AB352","v":0},{"$f":"unique_contracts!AM352","v":0},{"$f":"unique_contracts!AN352","v":0},{"$f":"unique_contracts!AO352","v":0},{"$f":"unique_contracts!AP352","v":0},{"$f":"unique_contracts!AQ352","v":0},{"$f":"unique_contracts!AR352","v":0},{"$f":"unique_contracts!BP352","v":0},0,{"$f":"IFERROR(IF(AND(I351>0,E351=\"NotHybrid\"),_xlfn.CONCAT(MAX(MIN(ROUNDDOWN(I351/D351,0),8),4),INDEX(resources!$G:$G,MATCH(B351,resources!$A:$A,0))),INDEX(resources!$G:$G,MATCH(B351,resources!$A:$A,0))),\"n/a\")","v":"n/a"},"n/a","n/a",0,0,1,1,{"$f":"MIN((IFERROR(IF(AND($V351<=Z$1,$W351>=Z$1),INDEX(Reliability!E$23:E$50,MATCH($S351,Reliability!$C$23:$C$50,0)),0),0)*IF($T351=\"n/a\",$D351*$Y351,$G351)+IFERROR(IF(AND($V351<=Z$1,$W351>=Z$1),INDEX(Reliability!E$23:E$50,MATCH($T351,Reliability!$C$23:$C$50,0)),0),0)*$H351*$X351*$Y351),$D351)*$R351","v":0},{"$f":"MIN((IFERROR(IF(AND($V351<=AA$1,$W351>=AA$1),INDEX(Reliability!F$23:F$50,MATCH($S351,Reliability!$C$23:$C$50,0)),0),0)*IF($T351=\"n/a\",$D351*$Y351,$G351)+IFERROR(IF(AND($V351<=AA$1,$W351>=AA$1),INDEX(Reliability!F$23:F$50,MATCH($T351,Reliability!$C$23:$C$50,0)),0),0)*$H351*$X351*$Y351),$D351)*$R351","v":0},{"$f":"MIN((IFERROR(IF(AND($V351<=AB$1,$W351>=AB$1),INDEX(Reliability!G$23:G$50,MATCH($S351,Reliability!$C$23:$C$50,0)),0),0)*IF($T351=\"n/a\",$D351*$Y351,$G351)+IFERROR(IF(AND($V351<=AB$1,$W351>=AB$1),INDEX(Reliability!G$23:G$50,MATCH($T351,Reliability!$C$23:$C$50,0)),0),0)*$H351*$X351*$Y351),$D351)*$R351","v":0},{"$f":"MIN((IFERROR(IF(AND($V351<=AC$1,$W351>=AC$1),INDEX(Reliability!H$23:H$50,MATCH($S351,Reliability!$C$23:$C$50,0)),0),0)*IF($T351=\"n/a\",$D351*$Y351,$G351)+IFERROR(IF(AND($V351<=AC$1,$W351>=AC$1),INDEX(Reliability!H$23:H$50,MATCH($T351,Reliability!$C$23:$C$50,0)),0),0)*$H351*$X351*$Y351),$D351)*$R351","v":0},{"$f":"MIN((IFERROR(IF(AND($V351<=AD$1,$W351>=AD$1),INDEX(Reliability!I$23:I$50,MATCH($S351,Reliability!$C$23:$C$50,0)),0),0)*IF($T351=\"n/a\",$D351*$Y351,$G351)+IFERROR(IF(AND($V351<=AD$1,$W351>=AD$1),INDEX(Reliability!I$23:I$50,MATCH($T351,Reliability!$C$23:$C$50,0)),0),0)*$H351*$X351*$Y351),$D351)*$R351","v":0},{"$f":"MIN((IFERROR(IF(AND($V351<=AE$1,$W351>=AE$1),INDEX(Reliability!J$23:J$50,MATCH($S351,Reliability!$C$23:$C$50,0)),0),0)*IF($T351=\"n/a\",$D351*$Y351,$G351)+IFERROR(IF(AND($V351<=AE$1,$W351>=AE$1),INDEX(Reliability!J$23:J$50,MATCH($T351,Reliability!$C$23:$C$50,0)),0),0)*$H351*$X351*$Y351),$D351)*$R351","v":0},{"$f":"MIN((IFERROR(IF(AND($V351<=AF$1,$W351>=AF$1),INDEX(Reliability!K$23:K$50,MATCH($S351,Reliability!$C$23:$C$50,0)),0),0)*IF($T351=\"n/a\",$D351*$Y351,$G351)+IFERROR(IF(AND($V351<=AF$1,$W351>=AF$1),INDEX(Reliability!K$23:K$50,MATCH($T351,Reliability!$C$23:$C$50,0)),0),0)*$H351*$X351*$Y351),$D351)*$R351","v":0},{"$f":"MIN((IFERROR(IF(AND($V351<=AG$1,$W351>=AG$1),INDEX(Reliability!L$23:L$50,MATCH($S351,Reliability!$C$23:$C$50,0)),0),0)*IF($T351=\"n/a\",$D351*$Y351,$G351)+IFERROR(IF(AND($V351<=AG$1,$W351>=AG$1),INDEX(Reliability!L$23:L$50,MATCH($T351,Reliability!$C$23:$C$50,0)),0),0)*$H351*$X351*$Y351),$D351)*$R351","v":0},{"$f":"MIN((IFERROR(IF(AND($V351<=AH$1,$W351>=AH$1),INDEX(Reliability!M$23:M$50,MATCH($S351,Reliability!$C$23:$C$50,0)),0),0)*IF($T351=\"n/a\",$D351*$Y351,$G351)+IFERROR(IF(AND($V351<=AH$1,$W351>=AH$1),INDEX(Reliability!M$23:M$50,MATCH($T351,Reliability!$C$23:$C$50,0)),0),0)*$H351*$X351*$Y351),$D351)*$R351","v":0},{"$f":"MIN((IFERROR(IF(AND($V351<=AI$1,$W351>=AI$1),INDEX(Reliability!N$23:N$50,MATCH($S351,Reliability!$C$23:$C$50,0)),0),0)*IF($T351=\"n/a\",$D351*$Y351,$G351)+IFERROR(IF(AND($V351<=AI$1,$W351>=AI$1),INDEX(Reliability!N$23:N$50,MATCH($T351,Reliability!$C$23:$C$50,0)),0),0)*$H351*$X351*$Y351),$D351)*$R351","v":0},{"$f":"MIN((IFERROR(IF(AND($V351<=AJ$1,$W351>=AJ$1),INDEX(Reliability!O$23:O$50,MATCH($S351,Reliability!$C$23:$C$50,0)),0),0)*IF($T351=\"n/a\",$D351*$Y351,$G351)+IFERROR(IF(AND($V351<=AJ$1,$W351>=AJ$1),INDEX(Reliability!O$23:O$50,MATCH($T351,Reliability!$C$23:$C$50,0)),0),0)*$H351*$X351*$Y351),$D351)*$R351","v":0},{"$f":"MIN((IFERROR(IF(AND($V351<=AK$1,$W351>=AK$1),INDEX(Reliability!P$23:P$50,MATCH($S351,Reliability!$C$23:$C$50,0)),0),0)*IF($T351=\"n/a\",$D351*$Y351,$G351)+IFERROR(IF(AND($V351<=AK$1,$W351>=AK$1),INDEX(Reliability!P$23:P$50,MATCH($T351,Reliability!$C$23:$C$50,0)),0),0)*$H351*$X351*$Y351),$D351)*$R351","v":0}]
[null,{"$f":"unique_contracts!B353","v":0},{"$f":"unique_contracts!D353","v":0},{"$f":"unique_contracts!J353","v":0},{"$f":"unique_contracts!M353","v":0},{"$f":"unique_contracts!N353","v":0},{"$f":"unique_contracts!P353","v":0},{"$f":"unique_contracts!R353","v":0},{"$f":"unique_contracts!V353","v":0},{"$f":"unique_contracts!AB353","v":0},{"$f":"unique_contracts!AM353","v":0},{"$f":"unique_contracts!AN353","v":0},{"$f":"unique_contracts!AO353","v":0},{"$f":"unique_contracts!AP353","v":0},{"$f":"unique_contracts!AQ353","v":0},{"$f":"unique_contracts!AR353","v":0},{"$f":"unique_contracts!BP353","v":0},0,{"$f":"IFERROR(IF(AND(I352>0,E352=\"NotHybrid\"),_xlfn.CONCAT(MAX(MIN(ROUNDDOWN(I352/D352,0),8),4),INDEX(resources!$G:$G,MATCH(B352,resources!$A:$A,0))),INDEX(resources!$G:$G,MATCH(B352,resources!$A:$A,0))),\"n/a\")","v":"n/a"},"n/a","n/a",0,0,1,1,{"$f":"MIN((IFERROR(IF(AND($V352<=Z$1,$W352>=Z$1),INDEX(Reliability!E$23:E$50,MATCH($S352,Reliability!$C$23:$C$50,0)),0),0)*IF($T352=\"n/a\",$D352*$Y352,$G352)+IFERROR(IF(AND($V352<=Z$1,$W352>=Z$1),INDEX(Reliability!E$23:E$50,MATCH($T352,Reliability!$C$23:$C$50,0)),0),0)*$H352*$X352*$Y352),$D352)*$R352","v":0},{"$f":"MIN((IFERROR(IF(AND($V352<=AA$1,$W352>=AA$1),INDEX(Reliability!F$23:F$50,MATCH($S352,Reliability!$C$23:$C$50,0)),0),0)*IF($T352=\"n/a\",$D352*$Y352,$G352)+IFERROR(IF(AND($V352<=AA$1,$W352>=AA$1),INDEX(Reliability!F$23:F$50,MATCH($T352,Reliability!$C$23:$C$50,0)),0),0)*$H352*$X352*$Y352),$D352)*$R352","v":0},{"$f":"MIN((IFERROR(IF(AND($V352<=AB$1,$W352>=AB$1),INDEX(Reliability!G$23:G$50,MATCH($S352,Reliability!$C$23:$C$50,0)),0),0)*IF($T352=\"n/a\",$D352*$Y352,$G352)+IFERROR(IF(AND($V352<=AB$1,$W352>=AB$1),INDEX(Reliability!G$23:G$50,MATCH($T352,Reliability!$C$23:$C$50,0)),0),0)*$H352*$X352*$Y352),$D352)*$R352","v":0},{"$f":"MIN((IFERROR(IF(AND($V352<=AC$1,$W352>=AC$1),INDEX(Reliability!H$23:H$50,MATCH($S352,Reliability!$C$23:$C$50,0)),0),0)*IF($T352=\"n/a\",$D352*$Y352,$G352)+IFERROR(IF(AND($V352<=AC$1,$W352>=AC$1),INDEX(Reliability!H$23:H$50,MATCH($T352,Reliability!$C$23:$C$50,0)),0),0)*$H352*$X352*$Y352),$D352)*$R352","v":0},{"$f":"MIN((IFERROR(IF(AND($V352<=AD$1,$W352>=AD$1),INDEX(Reliability!I$23:I$50,MATCH($S352,Reliability!$C$23:$C$50,0)),0),0)*IF($T352=\"n/a\",$D352*$Y352,$G352)+IFERROR(IF(AND($V352<=AD$1,$W352>=AD$1),INDEX(Reliability!I$23:I$50,MATCH($T352,Reliability!$C$23:$C$50,0)),0),0)*$H352*$X352*$Y352),$D352)*$R352","v":0},{"$f":"MIN((IFERROR(IF(AND($V352<=AE$1,$W352>=AE$1),INDEX(Reliability!J$23:J$50,MATCH($S352,Reliability!$C$23:$C$50,0)),0),0)*IF($T352=\"n/a\",$D352*$Y352,$G352)+IFERROR(IF(AND($V352<=AE$1,$W352>=AE$1),INDEX(Reliability!J$23:J$50,MATCH($T352,Reliability!$C$23:$C$50,0)),0),0)*$H352*$X352*$Y352),$D352)*$R352","v":0},{"$f":"MIN((IFERROR(IF(AND($V352<=AF$1,$W352>=AF$1),INDEX(Reliability!K$23:K$50,MATCH($S352,Reliability!$C$23:$C$50,0)),0),0)*IF($T352=\"n/a\",$D352*$Y352,$G352)+IFERROR(IF(AND($V352<=AF$1,$W352>=AF$1),INDEX(Reliability!K$23:K$50,MATCH($T352,Reliability!$C$23:$C$50,0)),0),0)*$H352*$X352*$Y352),$D352)*$R352","v":0},{"$f":"MIN((IFERROR(IF(AND($V352<=AG$1,$W352>=AG$1),INDEX(Reliability!L$23:L$50,MATCH($S352,Reliability!$C$23:$C$50,0)),0),0)*IF($T352=\"n/a\",$D352*$Y352,$G352)+IFERROR(IF(AND($V352<=AG$1,$W352>=AG$1),INDEX(Reliability!L$23:L$50,MATCH($T352,Reliability!$C$23:$C$50,0)),0),0)*$H352*$X352*$Y352),$D352)*$R352","v":0},{"$f":"MIN((IFERROR(IF(AND($V352<=AH$1,$W352>=AH$1),INDEX(Reliability!M$23:M$50,MATCH($S352,Reliability!$C$23:$C$50,0)),0),0)*IF($T352=\"n/a\",$D352*$Y352,$G352)+IFERROR(IF(AND($V352<=AH$1,$W352>=AH$1),INDEX(Reliability!M$23:M$50,MATCH($T352,Reliability!$C$23:$C$50,0)),0),0)*$H352*$X352*$Y352),$D352)*$R352","v":0},{"$f":"MIN((IFERROR(IF(AND($V352<=AI$1,$W352>=AI$1),INDEX(Reliability!N$23:N$50,MATCH($S352,Reliability!$C$23:$C$50,0)),0),0)*IF($T352=\"n/a\",$D352*$Y352,$G352)+IFERROR(IF(AND($V352<=AI$1,$W352>=AI$1),INDEX(Reliability!N$23:N$50,MATCH($T352,Reliability!$C$23:$C$50,0)),0),0)*$H352*$X352*$Y352),$D352)*$R352","v":0},{"$f":"MIN((IFERROR(IF(AND($V352<=AJ$1,$W352>=AJ$1),INDEX(Reliability!O$23:O$50,MATCH($S352,Reliability!$C$23:$C$50,0)),0),0)*IF($T352=\"n/a\",$D352*$Y352,$G352)+IFERROR(IF(AND($V352<=AJ$1,$W352>=AJ$1),INDEX(Reliability!O$23:O$50,MATCH($T352,Reliability!$C$23:$C$50,0)),0),0)*$H352*$X352*$Y352),$D352)*$R352","v":0},{"$f":"MIN((IFERROR(IF(AND($V352<=AK$1,$W352>=AK$1),INDEX(Reliability!P$23:P$50,MATCH($S352,Reliability!$C$23:$C$50,0)),0),0)*IF($T352=\"n/a\",$D352*$Y352,$G352)+IFERROR(IF(AND($V352<=AK$1,$W352>=AK$1),INDEX(Reliability!P$23:P$50,MATCH($T352,Reliability!$C$23:$C$50,0)),0),0)*$H352*$X352*$Y352),$D352)*$R352","v":0}]
[null,{"$f":"unique_contracts!B354","v":0},{"$f":"unique_contracts!D354","v":0},{"$f":"unique_contracts!J354","v":0},{"$f":"unique_contracts!M354","v":0},{"$f":"unique_contracts!N354","v":0},{"$f":"unique_contracts!P354","v":0},{"$f":"unique_contracts!R354","v":0},{"$f":"unique_contracts!V354","v":0},{"$f":"unique_contracts!AB354","v":0},{"$f":"unique_contracts!AM354","v":0},{"$f":"unique_contracts!AN354","v":0},{"$f":"unique_contracts!AO354","v":0},{"$f":"unique_contracts!AP354","v":0},{"$f":"unique_contracts!AQ354","v":0},{"$f":"unique_contracts!AR354","v":0},{"$f":"unique_contracts!BP354","v":0},0,{"$f":"IFERROR(IF(AND(I353>0,E353=\"NotHybrid\"),_xlfn.CONCAT(MAX(MIN(ROUNDDOWN(I353/D353,0),8),4),INDEX(resources!$G:$G,MATCH(B353,resources!$A:$A,0))),INDEX(resources!$G:$G,MATCH(B353,resources!$A:$A,0))),\"n/a\")","v":"n/a"},"n/a","n/a",0,0,1,1,{"$f":"MIN((IFERROR(IF(AND($V353<=Z$1,$W353>=Z$1),INDEX(Reliability!E$23:E$50,MATCH($S353,Reliability!$C$23:$C$50,0)),0),0)*IF($T353=\"n/a\",$D353*$Y353,$G353)+IFERROR(IF(AND($V353<=Z$1,$W353>=Z$1),INDEX(Reliability!E$23:E$50,MATCH($T353,Reliability!$C$23:$C$50,0)),0),0)*$H353*$X353*$Y353),$D353)*$R353","v":0},{"$f":"MIN((IFERROR(IF(AND($V353<=AA$1,$W353>=AA$1),INDEX(Reliability!F$23:F$50,MATCH($S353,Reliability!$C$23:$C$50,0)),0),0)*IF($T353=\"n/a\",$D353*$Y353,$G353)+IFERROR(IF(AND($V353<=AA$1,$W353>=AA$1),INDEX(Reliability!F$23:F$50,MATCH($T353,Reliability!$C$23:$C$50,0)),0),0)*$H353*$X353*$Y353),$D353)*$R353","v":0},{"$f":"MIN((IFERROR(IF(AND($V353<=AB$1,$W353>=AB$1),INDEX(Reliability!G$23:G$50,MATCH($S353,Reliability!$C$23:$C$50,0)),0),0)*IF($T353=\"n/a\",$D353*$Y353,$G353)+IFERROR(IF(AND($V353<=AB$1,$W353>=AB$1),INDEX(Reliability!G$23:G$50,MATCH($T353,Reliability!$C$23:$C$50,0)),0),0)*$H353*$X353*$Y353),$D353)*$R353","v":0},{"$f":"MIN((IFERROR(IF(AND($V353<=AC$1,$W353>=AC$1),INDEX(Reliability!H$23:H$50,MATCH($S353,Reliability!$C$23:$C$50,0)),0),0)*IF($T353=\"n/a\",$D353*$Y353,$G353)+IFERROR(IF(AND($V353<=AC$1,$W353>=AC$1),INDEX(Reliability!H$23:H$50,MATCH($T353,Reliability!$C$23:$C$50,0)),0),0)*$H353*$X353*$Y353),$D353)*$R353","v":0},{"$f":"MIN((IFERROR(IF(AND($V353<=AD$1,$W353>=AD$1),INDEX(Reliability!I$23:I$50,MATCH($S353,Reliability!$C$23:$C$50,0)),0),0)*IF($T353=\"n/a\",$D353*$Y353,$G353)+IFERROR(IF(AND($V353<=AD$1,$W353>=AD$1),INDEX(Reliability!I$23:I$50,MATCH($T353,Reliability!$C$23:$C$50,0)),0),0)*$H353*$X353*$Y353),$D353)*$R353","v":0},{"$f":"MIN((IFERROR(IF(AND($V353<=AE$1,$W353>=AE$1),INDEX(Reliability!J$23:J$50,MATCH($S353,Reliability!$C$23:$C$50,0)),0),0)*IF($T353=\"n/a\",$D353*$Y353,$G353)+IFERROR(IF(AND($V353<=AE$1,$W353>=AE$1),INDEX(Reliability!J$23:J$50,MATCH($T353,Reliability!$C$23:$C$50,0)),0),0)*$H353*$X353*$Y353),$D353)*$R353","v":0},{"$f":"MIN((IFERROR(IF(AND($V353<=AF$1,$W353>=AF$1),INDEX(Reliability!K$23:K$50,MATCH($S353,Reliability!$C$23:$C$50,0)),0),0)*IF($T353=\"n/a\",$D353*$Y353,$G353)+IFERROR(IF(AND($V353<=AF$1,$W353>=AF$1),INDEX(Reliability!K$23:K$50,MATCH($T353,Reliability!$C$23:$C$50,0)),0),0)*$H353*$X353*$Y353),$D353)*$R353","v":0},{"$f":"MIN((IFERROR(IF(AND($V353<=AG$1,$W353>=AG$1),INDEX(Reliability!L$23:L$50,MATCH($S353,Reliability!$C$23:$C$50,0)),0),0)*IF($T353=\"n/a\",$D353*$Y353,$G353)+IFERROR(IF(AND($V353<=AG$1,$W353>=AG$1),INDEX(Reliability!L$23:L$50,MATCH($T353,Reliability!$C$23:$C$50,0)),0),0)*$H353*$X353*$Y353),$D353)*$R353","v":0},{"$f":"MIN((IFERROR(IF(AND($V353<=AH$1,$W353>=AH$1),INDEX(Reliability!M$23:M$50,MATCH($S353,Reliability!$C$23:$C$50,0)),0),0)*IF($T353=\"n/a\",$D353*$Y353,$G353)+IFERROR(IF(AND($V353<=AH$1,$W353>=AH$1),INDEX(Reliability!M$23:M$50,MATCH($T353,Reliability!$C$23:$C$50,0)),0),0)*$H353*$X353*$Y353),$D353)*$R353","v":0},{"$f":"MIN((IFERROR(IF(AND($V353<=AI$1,$W353>=AI$1),INDEX(Reliability!N$23:N$50,MATCH($S353,Reliability!$C$23:$C$50,0)),0),0)*IF($T353=\"n/a\",$D353*$Y353,$G353)+IFERROR(IF(AND($V353<=AI$1,$W353>=AI$1),INDEX(Reliability!N$23:N$50,MATCH($T353,Reliability!$C$23:$C$50,0)),0),0)*$H353*$X353*$Y353),$D353)*$R353","v":0},{"$f":"MIN((IFERROR(IF(AND($V353<=AJ$1,$W353>=AJ$1),INDEX(Reliability!O$23:O$50,MATCH($S353,Reliability!$C$23:$C$50,0)),0),0)*IF($T353=\"n/a\",$D353*$Y353,$G353)+IFERROR(IF(AND($V353<=AJ$1,$W353>=AJ$1),INDEX(Reliability!O$23:O$50,MATCH($T353,Reliability!$C$23:$C$50,0)),0),0)*$H353*$X353*$Y353),$D353)*$R353","v":0},{"$f":"MIN((IFERROR(IF(AND($V353<=AK$1,$W353>=AK$1),INDEX(Reliability!P$23:P$50,MATCH($S353,Reliability!$C$23:$C$50,0)),0),0)*IF($T353=\"n/a\",$D353*$Y353,$G353)+IFERROR(IF(AND($V353<=AK$1,$W353>=AK$1),INDEX(Reliability!P$23:P$50,MATCH($T353,Reliability!$C$23:$C$50,0)),0),0)*$H353*$X353*$Y353),$D353)*$R353","v":0}]
[null,{"$f":"unique_contracts!B355","v":0},{"$f":"unique_contracts!D355","v":0},{"$f":"unique_contracts!J355","v":0},{"$f":"unique_contracts!M355","v":0},{"$f":"unique_contracts!N355","v":0},{"$f":"unique_contracts!P355","v":0},{"$f":"unique_contracts!R355","v":0},{"$f":"unique_contracts!V355","v":0},{"$f":"unique_contracts!AB355","v":0},{"$f":"unique_contracts!AM355","v":0},{"$f":"unique_contracts!AN355","v":0},{"$f":"unique_contracts!AO355","v":0},{"$f":"unique_contracts!AP355","v":0},{"$f":"unique_contracts!AQ355","v":0},{"$f":"unique_contracts!AR355","v":0},{"$f":"unique_contracts!BP355","v":0},0,{"$f":"IFERROR(IF(AND(I354>0,E354=\"NotHybrid\"),_xlfn.CONCAT(MAX(MIN(ROUNDDOWN(I354/D354,0),8),4),INDEX(resources!$G:$G,MATCH(B354,resources!$A:$A,0))),INDEX(resources!$G:$G,MATCH(B354,resources!$A:$A,0))),\"n/a\")","v":"n/a"},"n/a","n/a",0,0,1,1,{"$f":"MIN((IFERROR(IF(AND($V354<=Z$1,$W354>=Z$1),INDEX(Reliability!E$23:E$50,MATCH($S354,Reliability!$C$23:$C$50,0)),0),0)*IF($T354=\"n/a\",$D354*$Y354,$G354)+IFERROR(IF(AND($V354<=Z$1,$W354>=Z$1),INDEX(Reliability!E$23:E$50,MATCH($T354,Reliability!$C$23:$C$50,0)),0),0)*$H354*$X354*$Y354),$D354)*$R354","v":0},{"$f":"MIN((IFERROR(IF(AND($V354<=AA$1,$W354>=AA$1),INDEX(Reliability!F$23:F$50,MATCH($S354,Reliability!$C$23:$C$50,0)),0),0)*IF($T354=\"n/a\",$D354*$Y354,$G354)+IFERROR(IF(AND($V354<=AA$1,$W354>=AA$1),INDEX(Reliability!F$23:F$50,MATCH($T354,Reliability!$C$23:$C$50,0)),0),0)*$H354*$X354*$Y354),$D354)*$R354","v":0},{"$f":"MIN((IFERROR(IF(AND($V354<=AB$1,$W354>=AB$1),INDEX(Reliability!G$23:G$50,MATCH($S354,Reliability!$C$23:$C$50,0)),0),0)*IF($T354=\"n/a\",$D354*$Y354,$G354)+IFERROR(IF(AND($V354<=AB$1,$W354>=AB$1),INDEX(Reliability!G$23:G$50,MATCH($T354,Reliability!$C$23:$C$50,0)),0),0)*$H354*$X354*$Y354),$D354)*$R354","v":0},{"$f":"MIN((IFERROR(IF(AND($V354<=AC$1,$W354>=AC$1),INDEX(Reliability!H$23:H$50,MATCH($S354,Reliability!$C$23:$C$50,0)),0),0)*IF($T354=\"n/a\",$D354*$Y354,$G354)+IFERROR(IF(AND($V354<=AC$1,$W354>=AC$1),INDEX(Reliability!H$23:H$50,MATCH($T354,Reliability!$C$23:$C$50,0)),0),0)*$H354*$X354*$Y354),$D354)*$R354","v":0},{"$f":"MIN((IFERROR(IF(AND($V354<=AD$1,$W354>=AD$1),INDEX(Reliability!I$23:I$50,MATCH($S354,Reliability!$C$23:$C$50,0)),0),0)*IF($T354=\"n/a\",$D354*$Y354,$G354)+IFERROR(IF(AND($V354<=AD$1,$W354>=AD$1),INDEX(Reliability!I$23:I$50,MATCH($T354,Reliability!$C$23:$C$50,0)),0),0)*$H354*$X354*$Y354),$D354)*$R354","v":0},{"$f":"MIN((IFERROR(IF(AND($V354<=AE$1,$W354>=AE$1),INDEX(Reliability!J$23:J$50,MATCH($S354,Reliability!$C$23:$C$50,0)),0),0)*IF($T354=\"n/a\",$D354*$Y354,$G354)+IFERROR(IF(AND($V354<=AE$1,$W354>=AE$1),INDEX(Reliability!J$23:J$50,MATCH($T354,Reliability!$C$23:$C$50,0)),0),0)*$H354*$X354*$Y354),$D354)*$R354","v":0},{"$f":"MIN((IFERROR(IF(AND($V354<=AF$1,$W354>=AF$1),INDEX(Reliability!K$23:K$50,MATCH($S354,Reliability!$C$23:$C$50,0)),0),0)*IF($T354=\"n/a\",$D354*$Y354,$G354)+IFERROR(IF(AND($V354<=AF$1,$W354>=AF$1),INDEX(Reliability!K$23:K$50,MATCH($T354,Reliability!$C$23:$C$50,0)),0),0)*$H354*$X354*$Y354),$D354)*$R354","v":0},{"$f":"MIN((IFERROR(IF(AND($V354<=AG$1,$W354>=AG$1),INDEX(Reliability!L$23:L$50,MATCH($S354,Reliability!$C$23:$C$50,0)),0),0)*IF($T354=\"n/a\",$D354*$Y354,$G354)+IFERROR(IF(AND($V354<=AG$1,$W354>=AG$1),INDEX(Reliability!L$23:L$50,MATCH($T354,Reliability!$C$23:$C$50,0)),0),0)*$H354*$X354*$Y354),$D354)*$R354","v":0},{"$f":"MIN((IFERROR(IF(AND($V354<=AH$1,$W354>=AH$1),INDEX(Reliability!M$23:M$50,MATCH($S354,Reliability!$C$23:$C$50,0)),0),0)*IF($T354=\"n/a\",$D354*$Y354,$G354)+IFERROR(IF(AND($V354<=AH$1,$W354>=AH$1),INDEX(Reliability!M$23:M$50,MATCH($T354,Reliability!$C$23:$C$50,0)),0),0)*$H354*$X354*$Y354),$D354)*$R354","v":0},{"$f":"MIN((IFERROR(IF(AND($V354<=AI$1,$W354>=AI$1),INDEX(Reliability!N$23:N$50,MATCH($S354,Reliability!$C$23:$C$50,0)),0),0)*IF($T354=\"n/a\",$D354*$Y354,$G354)+IFERROR(IF(AND($V354<=AI$1,$W354>=AI$1),INDEX(Reliability!N$23:N$50,MATCH($T354,Reliability!$C$23:$C$50,0)),0),0)*$H354*$X354*$Y354),$D354)*$R354","v":0},{"$f":"MIN((IFERROR(IF(AND($V354<=AJ$1,$W354>=AJ$1),INDEX(Reliability!O$23:O$50,MATCH($S354,Reliability!$C$23:$C$50,0)),0),0)*IF($T354=\"n/a\",$D354*$Y354,$G354)+IFERROR(IF(AND($V354<=AJ$1,$W354>=AJ$1),INDEX(Reliability!O$23:O$50,MATCH($T354,Reliability!$C$23:$C$50,0)),0),0)*$H354*$X354*$Y354),$D354)*$R354","v":0},{"$f":"MIN((IFERROR(IF(AND($V354<=AK$1,$W354>=AK$1),INDEX(Reliability!P$23:P$50,MATCH($S354,Reliability!$C$23:$C$50,0)),0),0)*IF($T354=\"n/a\",$D354*$Y354,$G354)+IFERROR(IF(AND($V354<=AK$1,$W354>=AK$1),INDEX(Reliability!P$23:P$50,MATCH($T354,Reliability!$C$23:$C$50,0)),0),0)*$H354*$X354*$Y354),$D354)*$R354","v":0}]
[null,{"$f":"unique_contracts!B356","v":0},{"$f":"unique_contracts!D356","v":0},{"$f":"unique_contracts!J356","v":0},{"$f":"unique_contracts!M356","v":0},{"$f":"unique_contracts!N356","v":0},{"$f":"unique_contracts!P356","v":0},{"$f":"unique_contracts!R356","v":0},{"$f":"unique_contracts!V356","v":0},{"$f":"unique_contracts!AB356","v":0},{"$f":"unique_contracts!AM356","v":0},{"$f":"unique_contracts!AN356","v":0},{"$f":"unique_contracts!AO356","v":0},{"$f":"unique_contracts!AP356","v":0},{"$f":"unique_contracts!AQ356","v":0},{"$f":"unique_contracts!AR356","v":0},{"$f":"unique_contracts!BP356","v":0},0,{"$f":"IFERROR(IF(AND(I355>0,E355=\"NotHybrid\"),_xlfn.CONCAT(MAX(MIN(ROUNDDOWN(I355/D355,0),8),4),INDEX(resources!$G:$G,MATCH(B355,resources!$A:$A,0))),INDEX(resources!$G:$G,MATCH(B355,resources!$A:$A,0))),\"n/a\")","v":"n/a"},"n/a","n/a",0,0,1,1,{"$f":"MIN((IFERROR(IF(AND($V355<=Z$1,$W355>=Z$1),INDEX(Reliability!E$23:E$50,MATCH($S355,Reliability!$C$23:$C$50,0)),0),0)*IF($T355=\"n/a\",$D355*$Y355,$G355)+IFERROR(IF(AND($V355<=Z$1,$W355>=Z$1),INDEX(Reliability!E$23:E$50,MATCH($T355,Reliability!$C$23:$C$50,0)),0),0)*$H355*$X355*$Y355),$D355)*$R355","v":0},{"$f":"MIN((IFERROR(IF(AND($V355<=AA$1,$W355>=AA$1),INDEX(Reliability!F$23:F$50,MATCH($S355,Reliability!$C$23:$C$50,0)),0),0)*IF($T355=\"n/a\",$D355*$Y355,$G355)+IFERROR(IF(AND($V355<=AA$1,$W355>=AA$1),INDEX(Reliability!F$23:F$50,MATCH($T355,Reliability!$C$23:$C$50,0)),0),0)*$H355*$X355*$Y355),$D355)*$R355","v":0},{"$f":"MIN((IFERROR(IF(AND($V355<=AB$1,$W355>=AB$1),INDEX(Reliability!G$23:G$50,MATCH($S355,Reliability!$C$23:$C$50,0)),0),0)*IF($T355=\"n/a\",$D355*$Y355,$G355)+IFERROR(IF(AND($V355<=AB$1,$W355>=AB$1),INDEX(Reliability!G$23:G$50,MATCH($T355,Reliability!$C$23:$C$50,0)),0),0)*$H355*$X355*$Y355),$D355)*$R355","v":0},{"$f":"MIN((IFERROR(IF(AND($V355<=AC$1,$W355>=AC$1),INDEX(Reliability!H$23:H$50,MATCH($S355,Reliability!$C$23:$C$50,0)),0),0)*IF($T355=\"n/a\",$D355*$Y355,$G355)+IFERROR(IF(AND($V355<=AC$1,$W355>=AC$1),INDEX(Reliability!H$23:H$50,MATCH($T355,Reliability!$C$23:$C$50,0)),0),0)*$H355*$X355*$Y355),$D355)*$R355","v":0},{"$f":"MIN((IFERROR(IF(AND($V355<=AD$1,$W355>=AD$1),INDEX(Reliability!I$23:I$50,MATCH($S355,Reliability!$C$23:$C$50,0)),0),0)*IF($T355=\"n/a\",$D355*$Y355,$G355)+IFERROR(IF(AND($V355<=AD$1,$W355>=AD$1),INDEX(Reliability!I$23:I$50,MATCH($T355,Reliability!$C$23:$C$50,0)),0),0)*$H355*$X355*$Y355),$D355)*$R355","v":0},{"$f":"MIN((IFERROR(IF(AND($V355<=AE$1,$W355>=AE$1),INDEX(Reliability!J$23:J$50,MATCH($S355,Reliability!$C$23:$C$50,0)),0),0)*IF($T355=\"n/a\",$D355*$Y355,$G355)+IFERROR(IF(AND($V355<=AE$1,$W355>=AE$1),INDEX(Reliability!J$23:J$50,MATCH($T355,Reliability!$C$23:$C$50,0)),0),0)*$H355*$X355*$Y355),$D355)*$R355","v":0},{"$f":"MIN((IFERROR(IF(AND($V355<=AF$1,$W355>=AF$1),INDEX(Reliability!K$23:K$50,MATCH($S355,Reliability!$C$23:$C$50,0)),0),0)*IF($T355=\"n/a\",$D355*$Y355,$G355)+IFERROR(IF(AND($V355<=AF$1,$W355>=AF$1),INDEX(Reliability!K$23:K$50,MATCH($T355,Reliability!$C$23:$C$50,0)),0),0)*$H355*$X355*$Y355),$D355)*$R355","v":0},{"$f":"MIN((IFERROR(IF(AND($V355<=AG$1,$W355>=AG$1),INDEX(Reliability!L$23:L$50,MATCH($S355,Reliability!$C$23:$C$50,0)),0),0)*IF($T355=\"n/a\",$D355*$Y355,$G355)+IFERROR(IF(AND($V355<=AG$1,$W355>=AG$1),INDEX(Reliability!L$23:L$50,MATCH($T355,Reliability!$C$23:$C$50,0)),0),0)*$H355*$X355*$Y355),$D355)*$R355","v":0},{"$f":"MIN((IFERROR(IF(AND($V355<=AH$1,$W355>=AH$1),INDEX(Reliability!M$23:M$50,MATCH($S355,Reliability!$C$23:$C$50,0)),0),0)*IF($T355=\"n/a\",$D355*$Y355,$G355)+IFERROR(IF(AND($V355<=AH$1,$W355>=AH$1),INDEX(Reliability!M$23:M$50,MATCH($T355,Reliability!$C$23:$C$50,0)),0),0)*$H355*$X355*$Y355),$D355)*$R355","v":0},{"$f":"MIN((IFERROR(IF(AND($V355<=AI$1,$W355>=AI$1),INDEX(Reliability!N$23:N$50,MATCH($S355,Reliability!$C$23:$C$50,0)),0),0)*IF($T355=\"n/a\",$D355*$Y355,$G355)+IFERROR(IF(AND($V355<=AI$1,$W355>=AI$1),INDEX(Reliability!N$23:N$50,MATCH($T355,Reliability!$C$23:$C$50,0)),0),0)*$H355*$X355*$Y355),$D355)*$R355","v":0},{"$f":"MIN((IFERROR(IF(AND($V355<=AJ$1,$W355>=AJ$1),INDEX(Reliability!O$23:O$50,MATCH($S355,Reliability!$C$23:$C$50,0)),0),0)*IF($T355=\"n/a\",$D355*$Y355,$G355)+IFERROR(IF(AND($V355<=AJ$1,$W355>=AJ$1),INDEX(Reliability!O$23:O$50,MATCH($T355,Reliability!$C$23:$C$50,0)),0),0)*$H355*$X355*$Y355),$D355)*$R355","v":0},{"$f":"MIN((IFERROR(IF(AND($V355<=AK$1,$W355>=AK$1),INDEX(Reliability!P$23:P$50,MATCH($S355,Reliability!$C$23:$C$50,0)),0),0)*IF($T355=\"n/a\",$D355*$Y355,$G355)+IFERROR(IF(AND($V355<=AK$1,$W355>=AK$1),INDEX(Reliability!P$23:P$50,MATCH($T355,Reliability!$C$23:$C$50,0)),0),0)*$H355*$X355*$Y355),$D355)*$R355","v":0}]
[null,{"$f":"unique_contracts!B357","v":0},{"$f":"unique_contracts!D357","v":0},{"$f":"unique_contracts!J357","v":0},{"$f":"unique_contracts!M357","v":0},{"$f":"unique_contracts!N357","v":0},{"$f":"unique_contracts!P357","v":0},{"$f":"unique_contracts!R357","v":0},{"$f":"unique_contracts!V357","v":0},{"$f":"unique_contracts!AB357","v":0},{"$f":"unique_contracts!AM357","v":0},{"$f":"unique_contracts!AN357","v":0},{"$f":"unique_contracts!AO357","v":0},{"$f":"unique_contracts!AP357","v":0},{"$f":"unique_contracts!AQ357","v":0},{"$f":"unique_contracts!AR357","v":0},{"$f":"unique_contracts!BP357","v":0},0,{"$f":"IFERROR(IF(AND(I356>0,E356=\"NotHybrid\"),_xlfn.CONCAT(MAX(MIN(ROUNDDOWN(I356/D356,0),8),4),INDEX(resources!$G:$G,MATCH(B356,resources!$A:$A,0))),INDEX(resources!$G:$G,MATCH(B356,resources!$A:$A,0))),\"n/a\")","v":"n/a"},"n/a","n/a",0,0,1,1,{"$f":"MIN((IFERROR(IF(AND($V356<=Z$1,$W356>=Z$1),INDEX(Reliability!E$23:E$50,MATCH($S356,Reliability!$C$23:$C$50,0)),0),0)*IF($T356=\"n/a\",$D356*$Y356,$G356)+IFERROR(IF(AND($V356<=Z$1,$W356>=Z$1),INDEX(Reliability!E$23:E$50,MATCH($T356,Reliability!$C$23:$C$50,0)),0),0)*$H356*$X356*$Y356),$D356)*$R356","v":0},{"$f":"MIN((IFERROR(IF(AND($V356<=AA$1,$W356>=AA$1),INDEX(Reliability!F$23:F$50,MATCH($S356,Reliability!$C$23:$C$50,0)),0),0)*IF($T356=\"n/a\",$D356*$Y356,$G356)+IFERROR(IF(AND($V356<=AA$1,$W356>=AA$1),INDEX(Reliability!F$23:F$50,MATCH($T356,Reliability!$C$23:$C$50,0)),0),0)*$H356*$X356*$Y356),$D356)*$R356","v":0},{"$f":"MIN((IFERROR(IF(AND($V356<=AB$1,$W356>=AB$1),INDEX(Reliability!G$23:G$50,MATCH($S356,Reliability!$C$23:$C$50,0)),0),0)*IF($T356=\"n/a\",$D356*$Y356,$G356)+IFERROR(IF(AND($V356<=AB$1,$W356>=AB$1),INDEX(Reliability!G$23:G$50,MATCH($T356,Reliability!$C$23:$C$50,0)),0),0)*$H356*$X356*$Y356),$D356)*$R356","v":0},{"$f":"MIN((IFERROR(IF(AND($V356<=AC$1,$W356>=AC$1),INDEX(Reliability!H$23:H$50,MATCH($S356,Reliability!$C$23:$C$50,0)),0),0)*IF($T356=\"n/a\",$D356*$Y356,$G356)+IFERROR(IF(AND($V356<=AC$1,$W356>=AC$1),INDEX(Reliability!H$23:H$50,MATCH($T356,Reliability!$C$23:$C$50,0)),0),0)*$H356*$X356*$Y356),$D356)*$R356","v":0},{"$f":"MIN((IFERROR(IF(AND($V356<=AD$1,$W356>=AD$1),INDEX(Reliability!I$23:I$50,MATCH($S356,Reliability!$C$23:$C$50,0)),0),0)*IF($T356=\"n/a\",$D356*$Y356,$G356)+IFERROR(IF(AND($V356<=AD$1,$W356>=AD$1),INDEX(Reliability!I$23:I$50,MATCH($T356,Reliability!$C$23:$C$50,0)),0),0)*$H356*$X356*$Y356),$D356)*$R356","v":0},{"$f":"MIN((IFERROR(IF(AND($V356<=AE$1,$W356>=AE$1),INDEX(Reliability!J$23:J$50,MATCH($S356,Reliability!$C$23:$C$50,0)),0),0)*IF($T356=\"n/a\",$D356*$Y356,$G356)+IFERROR(IF(AND($V356<=AE$1,$W356>=AE$1),INDEX(Reliability!J$23:J$50,MATCH($T356,Reliability!$C$23:$C$50,0)),0),0)*$H356*$X356*$Y356),$D356)*$R356","v":0},{"$f":"MIN((IFERROR(IF(AND($V356<=AF$1,$W356>=AF$1),INDEX(Reliability!K$23:K$50,MATCH($S356,Reliability!$C$23:$C$50,0)),0),0)*IF($T356=\"n/a\",$D356*$Y356,$G356)+IFERROR(IF(AND($V356<=AF$1,$W356>=AF$1),INDEX(Reliability!K$23:K$50,MATCH($T356,Reliability!$C$23:$C$50,0)),0),0)*$H356*$X356*$Y356),$D356)*$R356","v":0},{"$f":"MIN((IFERROR(IF(AND($V356<=AG$1,$W356>=AG$1),INDEX(Reliability!L$23:L$50,MATCH($S356,Reliability!$C$23:$C$50,0)),0),0)*IF($T356=\"n/a\",$D356*$Y356,$G356)+IFERROR(IF(AND($V356<=AG$1,$W356>=AG$1),INDEX(Reliability!L$23:L$50,MATCH($T356,Reliability!$C$23:$C$50,0)),0),0)*$H356*$X356*$Y356),$D356)*$R356","v":0},{"$f":"MIN((IFERROR(IF(AND($V356<=AH$1,$W356>=AH$1),INDEX(Reliability!M$23:M$50,MATCH($S356,Reliability!$C$23:$C$50,0)),0),0)*IF($T356=\"n/a\",$D356*$Y356,$G356)+IFERROR(IF(AND($V356<=AH$1,$W356>=AH$1),INDEX(Reliability!M$23:M$50,MATCH($T356,Reliability!$C$23:$C$50,0)),0),0)*$H356*$X356*$Y356),$D356)*$R356","v":0},{"$f":"MIN((IFERROR(IF(AND($V356<=AI$1,$W356>=AI$1),INDEX(Reliability!N$23:N$50,MATCH($S356,Reliability!$C$23:$C$50,0)),0),0)*IF($T356=\"n/a\",$D356*$Y356,$G356)+IFERROR(IF(AND($V356<=AI$1,$W356>=AI$1),INDEX(Reliability!N$23:N$50,MATCH($T356,Reliability!$C$23:$C$50,0)),0),0)*$H356*$X356*$Y356),$D356)*$R356","v":0},{"$f":"MIN((IFERROR(IF(AND($V356<=AJ$1,$W356>=AJ$1),INDEX(Reliability!O$23:O$50,MATCH($S356,Reliability!$C$23:$C$50,0)),0),0)*IF($T356=\"n/a\",$D356*$Y356,$G356)+IFERROR(IF(AND($V356<=AJ$1,$W356>=AJ$1),INDEX(Reliability!O$23:O$50,MATCH($T356,Reliability!$C$23:$C$50,0)),0),0)*$H356*$X356*$Y356),$D356)*$R356","v":0},{"$f":"MIN((IFERROR(IF(AND($V356<=AK$1,$W356>=AK$1),INDEX(Reliability!P$23:P$50,MATCH($S356,Reliability!$C$23:$C$50,0)),0),0)*IF($T356=\"n/a\",$D356*$Y356,$G356)+IFERROR(IF(AND($V356<=AK$1,$W356>=AK$1),INDEX(Reliability!P$23:P$50,MATCH($T356,Reliability!$C$23:$C$50,0)),0),0)*$H356*$X356*$Y356),$D356)*$R356","v":0}]
[null,{"$f":"unique_contracts!B358","v":0},{"$f":"unique_contracts!D358","v":0},{"$f":"unique_contracts!J358","v":0},{"$f":"unique_contracts!M358","v":0},{"$f":"unique_contracts!N358","v":0},{"$f":"unique_contracts!P358","v":0},{"$f":"unique_contracts!R358","v":0},{"$f":"unique_contracts!V358","v":0},{"$f":"unique_contracts!AB358","v":0},{"$f":"unique_contracts!AM358","v":0},{"$f":"unique_contracts!AN358","v":0},{"$f":"unique_contracts!AO358","v":0},{"$f":"unique_contracts!AP358","v":0},{"$f":"unique_contracts!AQ358","v":0},{"$f":"unique_contracts!AR358","v":0},{"$f":"unique_contracts!BP358","v":0},0,{"$f":"IFERROR(IF(AND(I357>0,E357=\"NotHybrid\"),_xlfn.CONCAT(MAX(MIN(ROUNDDOWN(I357/D357,0),8),4),INDEX(resources!$G:$G,MATCH(B357,resources!$A:$A,0))),INDEX(resources!$G:$G,MATCH(B357,resources!$A:$A,0))),\"n/a\")","v":"n/a"},"n/a","n/a",0,0,1,1,{"$f":"MIN((IFERROR(IF(AND($V357<=Z$1,$W357>=Z$1),INDEX(Reliability!E$23:E$50,MATCH($S357,Reliability!$C$23:$C$50,0)),0),0)*IF($T357=\"n/a\",$D357*$Y357,$G357)+IFERROR(IF(AND($V357<=Z$1,$W357>=Z$1),INDEX(Reliability!E$23:E$50,MATCH($T357,Reliability!$C$23:$C$50,0)),0),0)*$H357*$X357*$Y357),$D357)*$R357","v":0},{"$f":"MIN((IFERROR(IF(AND($V357<=AA$1,$W357>=AA$1),INDEX(Reliability!F$23:F$50,MATCH($S357,Reliability!$C$23:$C$50,0)),0),0)*IF($T357=\"n/a\",$D357*$Y357,$G357)+IFERROR(IF(AND($V357<=AA$1,$W357>=AA$1),INDEX(Reliability!F$23:F$50,MATCH($T357,Reliability!$C$23:$C$50,0)),0),0)*$H357*$X357*$Y357),$D357)*$R357","v":0},{"$f":"MIN((IFERROR(IF(AND($V357<=AB$1,$W357>=AB$1),INDEX(Reliability!G$23:G$50,MATCH($S357,Reliability!$C$23:$C$50,0)),0),0)*IF($T357=\"n/a\",$D357*$Y357,$G357)+IFERROR(IF(AND($V357<=AB$1,$W357>=AB$1),INDEX(Reliability!G$23:G$50,MATCH($T357,Reliability!$C$23:$C$50,0)),0),0)*$H357*$X357*$Y357),$D357)*$R357","v":0},{"$f":"MIN((IFERROR(IF(AND($V357<=AC$1,$W357>=AC$1),INDEX(Reliability!H$23:H$50,MATCH($S357,Reliability!$C$23:$C$50,0)),0),0)*IF($T357=\"n/a\",$D357*$Y357,$G357)+IFERROR(IF(AND($V357<=AC$1,$W357>=AC$1),INDEX(Reliability!H$23:H$50,MATCH($T357,Reliability!$C$23:$C$50,0)),0),0)*$H357*$X357*$Y357),$D357)*$R357","v":0},{"$f":"MIN((IFERROR(IF(AND($V357<=AD$1,$W357>=AD$1),INDEX(Reliability!I$23:I$50,MATCH($S357,Reliability!$C$23:$C$50,0)),0),0)*IF($T357=\"n/a\",$D357*$Y357,$G357)+IFERROR(IF(AND($V357<=AD$1,$W357>=AD$1),INDEX(Reliability!I$23:I$50,MATCH($T357,Reliability!$C$23:$C$50,0)),0),0)*$H357*$X357*$Y357),$D357)*$R357","v":0},{"$f":"MIN((IFERROR(IF(AND($V357<=AE$1,$W357>=AE$1),INDEX(Reliability!J$23:J$50,MATCH($S357,Reliability!$C$23:$C$50,0)),0),0)*IF($T357=\"n/a\",$D357*$Y357,$G357)+IFERROR(IF(AND($V357<=AE$1,$W357>=AE$1),INDEX(Reliability!J$23:J$50,MATCH($T357,Reliability!$C$23:$C$50,0)),0),0)*$H357*$X357*$Y357),$D357)*$R357","v":0},{"$f":"MIN((IFERROR(IF(AND($V357<=AF$1,$W357>=AF$1),INDEX(Reliability!K$23:K$50,MATCH($S357,Reliability!$C$23:$C$50,0)),0),0)*IF($T357=\"n/a\",$D357*$Y357,$G357)+IFERROR(IF(AND($V357<=AF$1,$W357>=AF$1),INDEX(Reliability!K$23:K$50,MATCH($T357,Reliability!$C$23:$C$50,0)),0),0)*$H357*$X357*$Y357),$D357)*$R357","v":0},{"$f":"MIN((IFERROR(IF(AND($V357<=AG$1,$W357>=AG$1),INDEX(Reliability!L$23:L$50,MATCH($S357,Reliability!$C$23:$C$50,0)),0),0)*IF($T357=\"n/a\",$D357*$Y357,$G357)+IFERROR(IF(AND($V357<=AG$1,$W357>=AG$1),INDEX(Reliability!L$23:L$50,MATCH($T357,Reliability!$C$23:$C$50,0)),0),0)*$H357*$X357*$Y357),$D357)*$R357","v":0},{"$f":"MIN((IFERROR(IF(AND($V357<=AH$1,$W357>=AH$1),INDEX(Reliability!M$23:M$50,MATCH($S357,Reliability!$C$23:$C$50,0)),0),0)*IF($T357=\"n/a\",$D357*$Y357,$G357)+IFERROR(IF(AND($V357<=AH$1,$W357>=AH$1),INDEX(Reliability!M$23:M$50,MATCH($T357,Reliability!$C$23:$C$50,0)),0),0)*$H357*$X357*$Y357),$D357)*$R357","v":0},{"$f":"MIN((IFERROR(IF(AND($V357<=AI$1,$W357>=AI$1),INDEX(Reliability!N$23:N$50,MATCH($S357,Reliability!$C$23:$C$50,0)),0),0)*IF($T357=\"n/a\",$D357*$Y357,$G357)+IFERROR(IF(AND($V357<=AI$1,$W357>=AI$1),INDEX(Reliability!N$23:N$50,MATCH($T357,Reliability!$C$23:$C$50,0)),0),0)*$H357*$X357*$Y357),$D357)*$R357","v":0},{"$f":"MIN((IFERROR(IF(AND($V357<=AJ$1,$W357>=AJ$1),INDEX(Reliability!O$23:O$50,MATCH($S357,Reliability!$C$23:$C$50,0)),0),0)*IF($T357=\"n/a\",$D357*$Y357,$G357)+IFERROR(IF(AND($V357<=AJ$1,$W357>=AJ$1),INDEX(Reliability!O$23:O$50,MATCH($T357,Reliability!$C$23:$C$50,0)),0),0)*$H357*$X357*$Y357),$D357)*$R357","v":0},{"$f":"MIN((IFERROR(IF(AND($V357<=AK$1,$W357>=AK$1),INDEX(Reliability!P$23:P$50,MATCH($S357,Reliability!$C$23:$C$50,0)),0),0)*IF($T357=\"n/a\",$D357*$Y357,$G357)+IFERROR(IF(AND($V357<=AK$1,$W357>=AK$1),INDEX(Reliability!P$23:P$50,MATCH($T357,Reliability!$C$23:$C$50,0)),0),0)*$H357*$X357*$Y357),$D357)*$R357","v":0}]
[null,{"$f":"unique_contracts!B359","v":0},{"$f":"unique_contracts!D359","v":0},{"$f":"unique_contracts!J359","v":0},{"$f":"unique_contracts!M359","v":0},{"$f":"unique_contracts!N359","v":0},{"$f":"unique_contracts!P359","v":0},{"$f":"unique_contracts!R359","v":0},{"$f":"unique_contracts!V359","v":0},{"$f":"unique_contracts!AB359","v":0},{"$f":"unique_contracts!AM359","v":0},{"$f":"unique_contracts!AN359","v":0},{"$f":"unique_contracts!AO359","v":0},{"$f":"unique_contracts!AP359","v":0},{"$f":"unique_contracts!AQ359","v":0},{"$f":"unique_contracts!AR359","v":0},{"$f":"unique_contracts!BP359","v":0},0,{"$f":"IFERROR(IF(AND(I358>0,E358=\"NotHybrid\"),_xlfn.CONCAT(MAX(MIN(ROUNDDOWN(I358/D358,0),8),4),INDEX(resources!$G:$G,MATCH(B358,resources!$A:$A,0))),INDEX(resources!$G:$G,MATCH(B358,resources!$A:$A,0))),\"n/a\")","v":"n/a"},"n/a","n/a",0,0,1,1,{"$f":"MIN((IFERROR(IF(AND($V358<=Z$1,$W358>=Z$1),INDEX(Reliability!E$23:E$50,MATCH($S358,Reliability!$C$23:$C$50,0)),0),0)*IF($T358=\"n/a\",$D358*$Y358,$G358)+IFERROR(IF(AND($V358<=Z$1,$W358>=Z$1),INDEX(Reliability!E$23:E$50,MATCH($T358,Reliability!$C$23:$C$50,0)),0),0)*$H358*$X358*$Y358),$D358)*$R358","v":0},{"$f":"MIN((IFERROR(IF(AND($V358<=AA$1,$W358>=AA$1),INDEX(Reliability!F$23:F$50,MATCH($S358,Reliability!$C$23:$C$50,0)),0),0)*IF($T358=\"n/a\",$D358*$Y358,$G358)+IFERROR(IF(AND($V358<=AA$1,$W358>=AA$1),INDEX(Reliability!F$23:F$50,MATCH($T358,Reliability!$C$23:$C$50,0)),0),0)*$H358*$X358*$Y358),$D358)*$R358","v":0},{"$f":"MIN((IFERROR(IF(AND($V358<=AB$1,$W358>=AB$1),INDEX(Reliability!G$23:G$50,MATCH($S358,Reliability!$C$23:$C$50,0)),0),0)*IF($T358=\"n/a\",$D358*$Y358,$G358)+IFERROR(IF(AND($V358<=AB$1,$W358>=AB$1),INDEX(Reliability!G$23:G$50,MATCH($T358,Reliability!$C$23:$C$50,0)),0),0)*$H358*$X358*$Y358),$D358)*$R358","v":0},{"$f":"MIN((IFERROR(IF(AND($V358<=AC$1,$W358>=AC$1),INDEX(Reliability!H$23:H$50,MATCH($S358,Reliability!$C$23:$C$50,0)),0),0)*IF($T358=\"n/a\",$D358*$Y358,$G358)+IFERROR(IF(AND($V358<=AC$1,$W358>=AC$1),INDEX(Reliability!H$23:H$50,MATCH($T358,Reliability!$C$23:$C$50,0)),0),0)*$H358*$X358*$Y358),$D358)*$R358","v":0},{"$f":"MIN((IFERROR(IF(AND($V358<=AD$1,$W358>=AD$1),INDEX(Reliability!I$23:I$50,MATCH($S358,Reliability!$C$23:$C$50,0)),0),0)*IF($T358=\"n/a\",$D358*$Y358,$G358)+IFERROR(IF(AND($V358<=AD$1,$W358>=AD$1),INDEX(Reliability!I$23:I$50,MATCH($T358,Reliability!$C$23:$C$50,0)),0),0)*$H358*$X358*$Y358),$D358)*$R358","v":0},{"$f":"MIN((IFERROR(IF(AND($V358<=AE$1,$W358>=AE$1),INDEX(Reliability!J$23:J$50,MATCH($S358,Reliability!$C$23:$C$50,0)),0),0)*IF($T358=\"n/a\",$D358*$Y358,$G358)+IFERROR(IF(AND($V358<=AE$1,$W358>=AE$1),INDEX(Reliability!J$23:J$50,MATCH($T358,Reliability!$C$23:$C$50,0)),0),0)*$H358*$X358*$Y358),$D358)*$R358","v":0},{"$f":"MIN((IFERROR(IF(AND($V358<=AF$1,$W358>=AF$1),INDEX(Reliability!K$23:K$50,MATCH($S358,Reliability!$C$23:$C$50,0)),0),0)*IF($T358=\"n/a\",$D358*$Y358,$G358)+IFERROR(IF(AND($V358<=AF$1,$W358>=AF$1),INDEX(Reliability!K$23:K$50,MATCH($T358,Reliability!$C$23:$C$50,0)),0),0)*$H358*$X358*$Y358),$D358)*$R358","v":0},{"$f":"MIN((IFERROR(IF(AND($V358<=AG$1,$W358>=AG$1),INDEX(Reliability!L$23:L$50,MATCH($S358,Reliability!$C$23:$C$50,0)),0),0)*IF($T358=\"n/a\",$D358*$Y358,$G358)+IFERROR(IF(AND($V358<=AG$1,$W358>=AG$1),INDEX(Reliability!L$23:L$50,MATCH($T358,Reliability!$C$23:$C$50,0)),0),0)*$H358*$X358*$Y358),$D358)*$R358","v":0},{"$f":"MIN((IFERROR(IF(AND($V358<=AH$1,$W358>=AH$1),INDEX(Reliability!M$23:M$50,MATCH($S358,Reliability!$C$23:$C$50,0)),0),0)*IF($T358=\"n/a\",$D358*$Y358,$G358)+IFERROR(IF(AND($V358<=AH$1,$W358>=AH$1),INDEX(Reliability!M$23:M$50,MATCH($T358,Reliability!$C$23:$C$50,0)),0),0)*$H358*$X358*$Y358),$D358)*$R358","v":0},{"$f":"MIN((IFERROR(IF(AND($V358<=AI$1,$W358>=AI$1),INDEX(Reliability!N$23:N$50,MATCH($S358,Reliability!$C$23:$C$50,0)),0),0)*IF($T358=\"n/a\",$D358*$Y358,$G358)+IFERROR(IF(AND($V358<=AI$1,$W358>=AI$1),INDEX(Reliability!N$23:N$50,MATCH($T358,Reliability!$C$23:$C$50,0)),0),0)*$H358*$X358*$Y358),$D358)*$R358","v":0},{"$f":"MIN((IFERROR(IF(AND($V358<=AJ$1,$W358>=AJ$1),INDEX(Reliability!O$23:O$50,MATCH($S358,Reliability!$C$23:$C$50,0)),0),0)*IF($T358=\"n/a\",$D358*$Y358,$G358)+IFERROR(IF(AND($V358<=AJ$1,$W358>=AJ$1),INDEX(Reliability!O$23:O$50,MATCH($T358,Reliability!$C$23:$C$50,0)),0),0)*$H358*$X358*$Y358),$D358)*$R358","v":0},{"$f":"MIN((IFERROR(IF(AND($V358<=AK$1,$W358>=AK$1),INDEX(Reliability!P$23:P$50,MATCH($S358,Reliability!$C$23:$C$50,0)),0),0)*IF($T358=\"n/a\",$D358*$Y358,$G358)+IFERROR(IF(AND($V358<=AK$1,$W358>=AK$1),INDEX(Reliability!P$23:P$50,MATCH($T358,Reliability!$C$23:$C$50,0)),0),0)*$H358*$X358*$Y358),$D358)*$R358","v":0}]
[null,{"$f":"unique_contracts!B360","v":0},{"$f":"unique_contracts!D360","v":0},{"$f":"unique_contracts!J360","v":0},{"$f":"unique_contracts!M360","v":0},{"$f":"unique_contracts!N360","v":0},{"$f":"unique_contracts!P360","v":0},{"$f":"unique_contracts!R360","v":0},{"$f":"unique_contracts!V360","v":0},{"$f":"unique_contracts!AB360","v":0},{"$f":"unique_contracts!AM360","v":0},{"$f":"unique_contracts!AN360","v":0},{"$f":"unique_contracts!AO360","v":0},{"$f":"unique_contracts!AP360","v":0},{"$f":"unique_contracts!AQ360","v":0},{"$f":"unique_contracts!AR360","v":0},{"$f":"unique_contracts!BP360","v":0},0,{"$f":"IFERROR(IF(AND(I359>0,E359=\"NotHybrid\"),_xlfn.CONCAT(MAX(MIN(ROUNDDOWN(I359/D359,0),8),4),INDEX(resources!$G:$G,MATCH(B359,resources!$A:$A,0))),INDEX(resources!$G:$G,MATCH(B359,resources!$A:$A,0))),\"n/a\")","v":"n/a"},"n/a","n/a",0,0,1,1,{"$f":"MIN((IFERROR(IF(AND($V359<=Z$1,$W359>=Z$1),INDEX(Reliability!E$23:E$50,MATCH($S359,Reliability!$C$23:$C$50,0)),0),0)*IF($T359=\"n/a\",$D359*$Y359,$G359)+IFERROR(IF(AND($V359<=Z$1,$W359>=Z$1),INDEX(Reliability!E$23:E$50,MATCH($T359,Reliability!$C$23:$C$50,0)),0),0)*$H359*$X359*$Y359),$D359)*$R359","v":0},{"$f":"MIN((IFERROR(IF(AND($V359<=AA$1,$W359>=AA$1),INDEX(Reliability!F$23:F$50,MATCH($S359,Reliability!$C$23:$C$50,0)),0),0)*IF($T359=\"n/a\",$D359*$Y359,$G359)+IFERROR(IF(AND($V359<=AA$1,$W359>=AA$1),INDEX(Reliability!F$23:F$50,MATCH($T359,Reliability!$C$23:$C$50,0)),0),0)*$H359*$X359*$Y359),$D359)*$R359","v":0},{"$f":"MIN((IFERROR(IF(AND($V359<=AB$1,$W359>=AB$1),INDEX(Reliability!G$23:G$50,MATCH($S359,Reliability!$C$23:$C$50,0)),0),0)*IF($T359=\"n/a\",$D359*$Y359,$G359)+IFERROR(IF(AND($V359<=AB$1,$W359>=AB$1),INDEX(Reliability!G$23:G$50,MATCH($T359,Reliability!$C$23:$C$50,0)),0),0)*$H359*$X359*$Y359),$D359)*$R359","v":0},{"$f":"MIN((IFERROR(IF(AND($V359<=AC$1,$W359>=AC$1),INDEX(Reliability!H$23:H$50,MATCH($S359,Reliability!$C$23:$C$50,0)),0),0)*IF($T359=\"n/a\",$D359*$Y359,$G359)+IFERROR(IF(AND($V359<=AC$1,$W359>=AC$1),INDEX(Reliability!H$23:H$50,MATCH($T359,Reliability!$C$23:$C$50,0)),0),0)*$H359*$X359*$Y359),$D359)*$R359","v":0},{"$f":"MIN((IFERROR(IF(AND($V359<=AD$1,$W359>=AD$1),INDEX(Reliability!I$23:I$50,MATCH($S359,Reliability!$C$23:$C$50,0)),0),0)*IF($T359=\"n/a\",$D359*$Y359,$G359)+IFERROR(IF(AND($V359<=AD$1,$W359>=AD$1),INDEX(Reliability!I$23:I$50,MATCH($T359,Reliability!$C$23:$C$50,0)),0),0)*$H359*$X359*$Y359),$D359)*$R359","v":0},{"$f":"MIN((IFERROR(IF(AND($V359<=AE$1,$W359>=AE$1),INDEX(Reliability!J$23:J$50,MATCH($S359,Reliability!$C$23:$C$50,0)),0),0)*IF($T359=\"n/a\",$D359*$Y359,$G359)+IFERROR(IF(AND($V359<=AE$1,$W359>=AE$1),INDEX(Reliability!J$23:J$50,MATCH($T359,Reliability!$C$23:$C$50,0)),0),0)*$H359*$X359*$Y359),$D359)*$R359","v":0},{"$f":"MIN((IFERROR(IF(AND($V359<=AF$1,$W359>=AF$1),INDEX(Reliability!K$23:K$50,MATCH($S359,Reliability!$C$23:$C$50,0)),0),0)*IF($T359=\"n/a\",$D359*$Y359,$G359)+IFERROR(IF(AND($V359<=AF$1,$W359>=AF$1),INDEX(Reliability!K$23:K$50,MATCH($T359,Reliability!$C$23:$C$50,0)),0),0)*$H359*$X359*$Y359),$D359)*$R359","v":0},{"$f":"MIN((IFERROR(IF(AND($V359<=AG$1,$W359>=AG$1),INDEX(Reliability!L$23:L$50,MATCH($S359,Reliability!$C$23:$C$50,0)),0),0)*IF($T359=\"n/a\",$D359*$Y359,$G359)+IFERROR(IF(AND($V359<=AG$1,$W359>=AG$1),INDEX(Reliability!L$23:L$50,MATCH($T359,Reliability!$C$23:$C$50,0)),0),0)*$H359*$X359*$Y359),$D359)*$R359","v":0},{"$f":"MIN((IFERROR(IF(AND($V359<=AH$1,$W359>=AH$1),INDEX(Reliability!M$23:M$50,MATCH($S359,Reliability!$C$23:$C$50,0)),0),0)*IF($T359=\"n/a\",$D359*$Y359,$G359)+IFERROR(IF(AND($V359<=AH$1,$W359>=AH$1),INDEX(Reliability!M$23:M$50,MATCH($T359,Reliability!$C$23:$C$50,0)),0),0)*$H359*$X359*$Y359),$D359)*$R359","v":0},{"$f":"MIN((IFERROR(IF(AND($V359<=AI$1,$W359>=AI$1),INDEX(Reliability!N$23:N$50,MATCH($S359,Reliability!$C$23:$C$50,0)),0),0)*IF($T359=\"n/a\",$D359*$Y359,$G359)+IFERROR(IF(AND($V359<=AI$1,$W359>=AI$1),INDEX(Reliability!N$23:N$50,MATCH($T359,Reliability!$C$23:$C$50,0)),0),0)*$H359*$X359*$Y359),$D359)*$R359","v":0},{"$f":"MIN((IFERROR(IF(AND($V359<=AJ$1,$W359>=AJ$1),INDEX(Reliability!O$23:O$50,MATCH($S359,Reliability!$C$23:$C$50,0)),0),0)*IF($T359=\"n/a\",$D359*$Y359,$G359)+IFERROR(IF(AND($V359<=AJ$1,$W359>=AJ$1),INDEX(Reliability!O$23:O$50,MATCH($T359,Reliability!$C$23:$C$50,0)),0),0)*$H359*$X359*$Y359),$D359)*$R359","v":0},{"$f":"MIN((IFERROR(IF(AND($V359<=AK$1,$W359>=AK$1),INDEX(Reliability!P$23:P$50,MATCH($S359,Reliability!$C$23:$C$50,0)),0),0)*IF($T359=\"n/a\",$D359*$Y359,$G359)+IFERROR(IF(AND($V359<=AK$1,$W359>=AK$1),INDEX(Reliability!P$23:P$50,MATCH($T359,Reliability!$C$23:$C$50,0)),0),0)*$H359*$X359*$Y359),$D359)*$R359","v":0}]
[null,{"$f":"unique_contracts!B361","v":0},{"$f":"unique_contracts!D361","v":0},{"$f":"unique_contracts!J361","v":0},{"$f":"unique_contracts!M361","v":0},{"$f":"unique_contracts!N361","v":0},{"$f":"unique_contracts!P361","v":0},{"$f":"unique_contracts!R361","v":0},{"$f":"unique_contracts!V361","v":0},{"$f":"unique_contracts!AB361","v":0},{"$f":"unique_contracts!AM361","v":0},{"$f":"unique_contracts!AN361","v":0},{"$f":"unique_contracts!AO361","v":0},{"$f":"unique_contracts!AP361","v":0},{"$f":"unique_contracts!AQ361","v":0},{"$f":"unique_contracts!AR361","v":0},{"$f":"unique_contracts!BP361","v":0},0,{"$f":"IFERROR(IF(AND(I360>0,E360=\"NotHybrid\"),_xlfn.CONCAT(MAX(MIN(ROUNDDOWN(I360/D360,0),8),4),INDEX(resources!$G:$G,MATCH(B360,resources!$A:$A,0))),INDEX(resources!$G:$G,MATCH(B360,resources!$A:$A,0))),\"n/a\")","v":"n/a"},"n/a","n/a",0,0,1,1,{"$f":"MIN((IFERROR(IF(AND($V360<=Z$1,$W360>=Z$1),INDEX(Reliability!E$23:E$50,MATCH($S360,Reliability!$C$23:$C$50,0)),0),0)*IF($T360=\"n/a\",$D360*$Y360,$G360)+IFERROR(IF(AND($V360<=Z$1,$W360>=Z$1),INDEX(Reliability!E$23:E$50,MATCH($T360,Reliability!$C$23:$C$50,0)),0),0)*$H360*$X360*$Y360),$D360)*$R360","v":0},{"$f":"MIN((IFERROR(IF(AND($V360<=AA$1,$W360>=AA$1),INDEX(Reliability!F$23:F$50,MATCH($S360,Reliability!$C$23:$C$50,0)),0),0)*IF($T360=\"n/a\",$D360*$Y360,$G360)+IFERROR(IF(AND($V360<=AA$1,$W360>=AA$1),INDEX(Reliability!F$23:F$50,MATCH($T360,Reliability!$C$23:$C$50,0)),0),0)*$H360*$X360*$Y360),$D360)*$R360","v":0},{"$f":"MIN((IFERROR(IF(AND($V360<=AB$1,$W360>=AB$1),INDEX(Reliability!G$23:G$50,MATCH($S360,Reliability!$C$23:$C$50,0)),0),0)*IF($T360=\"n/a\",$D360*$Y360,$G360)+IFERROR(IF(AND($V360<=AB$1,$W360>=AB$1),INDEX(Reliability!G$23:G$50,MATCH($T360,Reliability!$C$23:$C$50,0)),0),0)*$H360*$X360*$Y360),$D360)*$R360","v":0},{"$f":"MIN((IFERROR(IF(AND($V360<=AC$1,$W360>=AC$1),INDEX(Reliability!H$23:H$50,MATCH($S360,Reliability!$C$23:$C$50,0)),0),0)*IF($T360=\"n/a\",$D360*$Y360,$G360)+IFERROR(IF(AND($V360<=AC$1,$W360>=AC$1),INDEX(Reliability!H$23:H$50,MATCH($T360,Reliability!$C$23:$C$50,0)),0),0)*$H360*$X360*$Y360),$D360)*$R360","v":0},{"$f":"MIN((IFERROR(IF(AND($V360<=AD$1,$W360>=AD$1),INDEX(Reliability!I$23:I$50,MATCH($S360,Reliability!$C$23:$C$50,0)),0),0)*IF($T360=\"n/a\",$D360*$Y360,$G360)+IFERROR(IF(AND($V360<=AD$1,$W360>=AD$1),INDEX(Reliability!I$23:I$50,MATCH($T360,Reliability!$C$23:$C$50,0)),0),0)*$H360*$X360*$Y360),$D360)*$R360","v":0},{"$f":"MIN((IFERROR(IF(AND($V360<=AE$1,$W360>=AE$1),INDEX(Reliability!J$23:J$50,MATCH($S360,Reliability!$C$23:$C$50,0)),0),0)*IF($T360=\"n/a\",$D360*$Y360,$G360)+IFERROR(IF(AND($V360<=AE$1,$W360>=AE$1),INDEX(Reliability!J$23:J$50,MATCH($T360,Reliability!$C$23:$C$50,0)),0),0)*$H360*$X360*$Y360),$D360)*$R360","v":0},{"$f":"MIN((IFERROR(IF(AND($V360<=AF$1,$W360>=AF$1),INDEX(Reliability!K$23:K$50,MATCH($S360,Reliability!$C$23:$C$50,0)),0),0)*IF($T360=\"n/a\",$D360*$Y360,$G360)+IFERROR(IF(AND($V360<=AF$1,$W360>=AF$1),INDEX(Reliability!K$23:K$50,MATCH($T360,Reliability!$C$23:$C$50,0)),0),0)*$H360*$X360*$Y360),$D360)*$R360","v":0},{"$f":"MIN((IFERROR(IF(AND($V360<=AG$1,$W360>=AG$1),INDEX(Reliability!L$23:L$50,MATCH($S360,Reliability!$C$23:$C$50,0)),0),0)*IF($T360=\"n/a\",$D360*$Y360,$G360)+IFERROR(IF(AND($V360<=AG$1,$W360>=AG$1),INDEX(Reliability!L$23:L$50,MATCH($T360,Reliability!$C$23:$C$50,0)),0),0)*$H360*$X360*$Y360),$D360)*$R360","v":0},{"$f":"MIN((IFERROR(IF(AND($V360<=AH$1,$W360>=AH$1),INDEX(Reliability!M$23:M$50,MATCH($S360,Reliability!$C$23:$C$50,0)),0),0)*IF($T360=\"n/a\",$D360*$Y360,$G360)+IFERROR(IF(AND($V360<=AH$1,$W360>=AH$1),INDEX(Reliability!M$23:M$50,MATCH($T360,Reliability!$C$23:$C$50,0)),0),0)*$H360*$X360*$Y360),$D360)*$R360","v":0},{"$f":"MIN((IFERROR(IF(AND($V360<=AI$1,$W360>=AI$1),INDEX(Reliability!N$23:N$50,MATCH($S360,Reliability!$C$23:$C$50,0)),0),0)*IF($T360=\"n/a\",$D360*$Y360,$G360)+IFERROR(IF(AND($V360<=AI$1,$W360>=AI$1),INDEX(Reliability!N$23:N$50,MATCH($T360,Reliability!$C$23:$C$50,0)),0),0)*$H360*$X360*$Y360),$D360)*$R360","v":0},{"$f":"MIN((IFERROR(IF(AND($V360<=AJ$1,$W360>=AJ$1),INDEX(Reliability!O$23:O$50,MATCH($S360,Reliability!$C$23:$C$50,0)),0),0)*IF($T360=\"n/a\",$D360*$Y360,$G360)+IFERROR(IF(AND($V360<=AJ$1,$W360>=AJ$1),INDEX(Reliability!O$23:O$50,MATCH($T360,Reliability!$C$23:$C$50,0)),0),0)*$H360*$X360*$Y360),$D360)*$R360","v":0},{"$f":"MIN((IFERROR(IF(AND($V360<=AK$1,$W360>=AK$1),INDEX(Reliability!P$23:P$50,MATCH($S360,Reliability!$C$23:$C$50,0)),0),0)*IF($T360=\"n/a\",$D360*$Y360,$G360)+IFERROR(IF(AND($V360<=AK$1,$W360>=AK$1),INDEX(Reliability!P$23:P$50,MATCH($T360,Reliability!$C$23:$C$50,0)),0),0)*$H360*$X360*$Y360),$D360)*$R360","v":0}]
[null,{"$f":"unique_contracts!B362","v":0},{"$f":"unique_contracts!D362","v":0},{"$f":"unique_contracts!J362","v":0},{"$f":"unique_contracts!M362","v":0},{"$f":"unique_contracts!N362","v":0},{"$f":"unique_contracts!P362","v":0},{"$f":"unique_contracts!R362","v":0},{"$f":"unique_contracts!V362","v":0},{"$f":"unique_contracts!AB362","v":0},{"$f":"unique_contracts!AM362","v":0},{"$f":"unique_contracts!AN362","v":0},{"$f":"unique_contracts!AO362","v":0},{"$f":"unique_contracts!AP362","v":0},{"$f":"unique_contracts!AQ362","v":0},{"$f":"unique_contracts!AR362","v":0},{"$f":"unique_contracts!BP362","v":0},0,{"$f":"IFERROR(IF(AND(I361>0,E361=\"NotHybrid\"),_xlfn.CONCAT(MAX(MIN(ROUNDDOWN(I361/D361,0),8),4),INDEX(resources!$G:$G,MATCH(B361,resources!$A:$A,0))),INDEX(resources!$G:$G,MATCH(B361,resources!$A:$A,0))),\"n/a\")","v":"n/a"},"n/a","n/a",0,0,1,1,{"$f":"MIN((IFERROR(IF(AND($V361<=Z$1,$W361>=Z$1),INDEX(Reliability!E$23:E$50,MATCH($S361,Reliability!$C$23:$C$50,0)),0),0)*IF($T361=\"n/a\",$D361*$Y361,$G361)+IFERROR(IF(AND($V361<=Z$1,$W361>=Z$1),INDEX(Reliability!E$23:E$50,MATCH($T361,Reliability!$C$23:$C$50,0)),0),0)*$H361*$X361*$Y361),$D361)*$R361","v":0},{"$f":"MIN((IFERROR(IF(AND($V361<=AA$1,$W361>=AA$1),INDEX(Reliability!F$23:F$50,MATCH($S361,Reliability!$C$23:$C$50,0)),0),0)*IF($T361=\"n/a\",$D361*$Y361,$G361)+IFERROR(IF(AND($V361<=AA$1,$W361>=AA$1),INDEX(Reliability!F$23:F$50,MATCH($T361,Reliability!$C$23:$C$50,0)),0),0)*$H361*$X361*$Y361),$D361)*$R361","v":0},{"$f":"MIN((IFERROR(IF(AND($V361<=AB$1,$W361>=AB$1),INDEX(Reliability!G$23:G$50,MATCH($S361,Reliability!$C$23:$C$50,0)),0),0)*IF($T361=\"n/a\",$D361*$Y361,$G361)+IFERROR(IF(AND($V361<=AB$1,$W361>=AB$1),INDEX(Reliability!G$23:G$50,MATCH($T361,Reliability!$C$23:$C$50,0)),0),0)*$H361*$X361*$Y361),$D361)*$R361","v":0},{"$f":"MIN((IFERROR(IF(AND($V361<=AC$1,$W361>=AC$1),INDEX(Reliability!H$23:H$50,MATCH($S361,Reliability!$C$23:$C$50,0)),0),0)*IF($T361=\"n/a\",$D361*$Y361,$G361)+IFERROR(IF(AND($V361<=AC$1,$W361>=AC$1),INDEX(Reliability!H$23:H$50,MATCH($T361,Reliability!$C$23:$C$50,0)),0),0)*$H361*$X361*$Y361),$D361)*$R361","v":0},{"$f":"MIN((IFERROR(IF(AND($V361<=AD$1,$W361>=AD$1),INDEX(Reliability!I$23:I$50,MATCH($S361,Reliability!$C$23:$C$50,0)),0),0)*IF($T361=\"n/a\",$D361*$Y361,$G361)+IFERROR(IF(AND($V361<=AD$1,$W361>=AD$1),INDEX(Reliability!I$23:I$50,MATCH($T361,Reliability!$C$23:$C$50,0)),0),0)*$H361*$X361*$Y361),$D361)*$R361","v":0},{"$f":"MIN((IFERROR(IF(AND($V361<=AE$1,$W361>=AE$1),INDEX(Reliability!J$23:J$50,MATCH($S361,Reliability!$C$23:$C$50,0)),0),0)*IF($T361=\"n/a\",$D361*$Y361,$G361)+IFERROR(IF(AND($V361<=AE$1,$W361>=AE$1),INDEX(Reliability!J$23:J$50,MATCH($T361,Reliability!$C$23:$C$50,0)),0),0)*$H361*$X361*$Y361),$D361)*$R361","v":0},{"$f":"MIN((IFERROR(IF(AND($V361<=AF$1,$W361>=AF$1),INDEX(Reliability!K$23:K$50,MATCH($S361,Reliability!$C$23:$C$50,0)),0),0)*IF($T361=\"n/a\",$D361*$Y361,$G361)+IFERROR(IF(AND($V361<=AF$1,$W361>=AF$1),INDEX(Reliability!K$23:K$50,MATCH($T361,Reliability!$C$23:$C$50,0)),0),0)*$H361*$X361*$Y361),$D361)*$R361","v":0},{"$f":"MIN((IFERROR(IF(AND($V361<=AG$1,$W361>=AG$1),INDEX(Reliability!L$23:L$50,MATCH($S361,Reliability!$C$23:$C$50,0)),0),0)*IF($T361=\"n/a\",$D361*$Y361,$G361)+IFERROR(IF(AND($V361<=AG$1,$W361>=AG$1),INDEX(Reliability!L$23:L$50,MATCH($T361,Reliability!$C$23:$C$50,0)),0),0)*$H361*$X361*$Y361),$D361)*$R361","v":0},{"$f":"MIN((IFERROR(IF(AND($V361<=AH$1,$W361>=AH$1),INDEX(Reliability!M$23:M$50,MATCH($S361,Reliability!$C$23:$C$50,0)),0),0)*IF($T361=\"n/a\",$D361*$Y361,$G361)+IFERROR(IF(AND($V361<=AH$1,$W361>=AH$1),INDEX(Reliability!M$23:M$50,MATCH($T361,Reliability!$C$23:$C$50,0)),0),0)*$H361*$X361*$Y361),$D361)*$R361","v":0},{"$f":"MIN((IFERROR(IF(AND($V361<=AI$1,$W361>=AI$1),INDEX(Reliability!N$23:N$50,MATCH($S361,Reliability!$C$23:$C$50,0)),0),0)*IF($T361=\"n/a\",$D361*$Y361,$G361)+IFERROR(IF(AND($V361<=AI$1,$W361>=AI$1),INDEX(Reliability!N$23:N$50,MATCH($T361,Reliability!$C$23:$C$50,0)),0),0)*$H361*$X361*$Y361),$D361)*$R361","v":0},{"$f":"MIN((IFERROR(IF(AND($V361<=AJ$1,$W361>=AJ$1),INDEX(Reliability!O$23:O$50,MATCH($S361,Reliability!$C$23:$C$50,0)),0),0)*IF($T361=\"n/a\",$D361*$Y361,$G361)+IFERROR(IF(AND($V361<=AJ$1,$W361>=AJ$1),INDEX(Reliability!O$23:O$50,MATCH($T361,Reliability!$C$23:$C$50,0)),0),0)*$H361*$X361*$Y361),$D361)*$R361","v":0},{"$f":"MIN((IFERROR(IF(AND($V361<=AK$1,$W361>=AK$1),INDEX(Reliability!P$23:P$50,MATCH($S361,Reliability!$C$23:$C$50,0)),0),0)*IF($T361=\"n/a\",$D361*$Y361,$G361)+IFERROR(IF(AND($V361<=AK$1,$W361>=AK$1),INDEX(Reliability!P$23:P$50,MATCH($T361,Reliability!$C$23:$C$50,0)),0),0)*$H361*$X361*$Y361),$D361)*$R361","v":0}]
[null,{"$f":"unique_contracts!B363","v":0},{"$f":"unique_contracts!D363","v":0},{"$f":"unique_contracts!J363","v":0},{"$f":"unique_contracts!M363","v":0},{"$f":"unique_contracts!N363","v":0},{"$f":"unique_contracts!P363","v":0},{"$f":"unique_contracts!R363","v":0},{"$f":"unique_contracts!V363","v":0},{"$f":"unique_contracts!AB363","v":0},{"$f":"unique_contracts!AM363","v":0},{"$f":"unique_contracts!AN363","v":0},{"$f":"unique_contracts!AO363","v":0},{"$f":"unique_contracts!AP363","v":0},{"$f":"unique_contracts!AQ363","v":0},{"$f":"unique_contracts!AR363","v":0},{"$f":"unique_contracts!BP363","v":0},0,{"$f":"IFERROR(IF(AND(I362>0,E362=\"NotHybrid\"),_xlfn.CONCAT(MAX(MIN(ROUNDDOWN(I362/D362,0),8),4),INDEX(resources!$G:$G,MATCH(B362,resources!$A:$A,0))),INDEX(resources!$G:$G,MATCH(B362,resources!$A:$A,0))),\"n/a\")","v":"n/a"},"n/a","n/a",0,0,1,1,{"$f":"MIN((IFERROR(IF(AND($V362<=Z$1,$W362>=Z$1),INDEX(Reliability!E$23:E$50,MATCH($S362,Reliability!$C$23:$C$50,0)),0),0)*IF($T362=\"n/a\",$D362*$Y362,$G362)+IFERROR(IF(AND($V362<=Z$1,$W362>=Z$1),INDEX(Reliability!E$23:E$50,MATCH($T362,Reliability!$C$23:$C$50,0)),0),0)*$H362*$X362*$Y362),$D362)*$R362","v":0},{"$f":"MIN((IFERROR(IF(AND($V362<=AA$1,$W362>=AA$1),INDEX(Reliability!F$23:F$50,MATCH($S362,Reliability!$C$23:$C$50,0)),0),0)*IF($T362=\"n/a\",$D362*$Y362,$G362)+IFERROR(IF(AND($V362<=AA$1,$W362>=AA$1),INDEX(Reliability!F$23:F$50,MATCH($T362,Reliability!$C$23:$C$50,0)),0),0)*$H362*$X362*$Y362),$D362)*$R362","v":0},{"$f":"MIN((IFERROR(IF(AND($V362<=AB$1,$W362>=AB$1),INDEX(Reliability!G$23:G$50,MATCH($S362,Reliability!$C$23:$C$50,0)),0),0)*IF($T362=\"n/a\",$D362*$Y362,$G362)+IFERROR(IF(AND($V362<=AB$1,$W362>=AB$1),INDEX(Reliability!G$23:G$50,MATCH($T362,Reliability!$C$23:$C$50,0)),0),0)*$H362*$X362*$Y362),$D362)*$R362","v":0},{"$f":"MIN((IFERROR(IF(AND($V362<=AC$1,$W362>=AC$1),INDEX(Reliability!H$23:H$50,MATCH($S362,Reliability!$C$23:$C$50,0)),0),0)*IF($T362=\"n/a\",$D362*$Y362,$G362)+IFERROR(IF(AND($V362<=AC$1,$W362>=AC$1),INDEX(Reliability!H$23:H$50,MATCH($T362,Reliability!$C$23:$C$50,0)),0),0)*$H362*$X362*$Y362),$D362)*$R362","v":0},{"$f":"MIN((IFERROR(IF(AND($V362<=AD$1,$W362>=AD$1),INDEX(Reliability!I$23:I$50,MATCH($S362,Reliability!$C$23:$C$50,0)),0),0)*IF($T362=\"n/a\",$D362*$Y362,$G362)+IFERROR(IF(AND($V362<=AD$1,$W362>=AD$1),INDEX(Reliability!I$23:I$50,MATCH($T362,Reliability!$C$23:$C$50,0)),0),0)*$H362*$X362*$Y362),$D362)*$R362","v":0},{"$f":"MIN((IFERROR(IF(AND($V362<=AE$1,$W362>=AE$1),INDEX(Reliability!J$23:J$50,MATCH($S362,Reliability!$C$23:$C$50,0)),0),0)*IF($T362=\"n/a\",$D362*$Y362,$G362)+IFERROR(IF(AND($V362<=AE$1,$W362>=AE$1),INDEX(Reliability!J$23:J$50,MATCH($T362,Reliability!$C$23:$C$50,0)),0),0)*$H362*$X362*$Y362),$D362)*$R362","v":0},{"$f":"MIN((IFERROR(IF(AND($V362<=AF$1,$W362>=AF$1),INDEX(Reliability!K$23:K$50,MATCH($S362,Reliability!$C$23:$C$50,0)),0),0)*IF($T362=\"n/a\",$D362*$Y362,$G362)+IFERROR(IF(AND($V362<=AF$1,$W362>=AF$1),INDEX(Reliability!K$23:K$50,MATCH($T362,Reliability!$C$23:$C$50,0)),0),0)*$H362*$X362*$Y362),$D362)*$R362","v":0},{"$f":"MIN((IFERROR(IF(AND($V362<=AG$1,$W362>=AG$1),INDEX(Reliability!L$23:L$50,MATCH($S362,Reliability!$C$23:$C$50,0)),0),0)*IF($T362=\"n/a\",$D362*$Y362,$G362)+IFERROR(IF(AND($V362<=AG$1,$W362>=AG$1),INDEX(Reliability!L$23:L$50,MATCH($T362,Reliability!$C$23:$C$50,0)),0),0)*$H362*$X362*$Y362),$D362)*$R362","v":0},{"$f":"MIN((IFERROR(IF(AND($V362<=AH$1,$W362>=AH$1),INDEX(Reliability!M$23:M$50,MATCH($S362,Reliability!$C$23:$C$50,0)),0),0)*IF($T362=\"n/a\",$D362*$Y362,$G362)+IFERROR(IF(AND($V362<=AH$1,$W362>=AH$1),INDEX(Reliability!M$23:M$50,MATCH($T362,Reliability!$C$23:$C$50,0)),0),0)*$H362*$X362*$Y362),$D362)*$R362","v":0},{"$f":"MIN((IFERROR(IF(AND($V362<=AI$1,$W362>=AI$1),INDEX(Reliability!N$23:N$50,MATCH($S362,Reliability!$C$23:$C$50,0)),0),0)*IF($T362=\"n/a\",$D362*$Y362,$G362)+IFERROR(IF(AND($V362<=AI$1,$W362>=AI$1),INDEX(Reliability!N$23:N$50,MATCH($T362,Reliability!$C$23:$C$50,0)),0),0)*$H362*$X362*$Y362),$D362)*$R362","v":0},{"$f":"MIN((IFERROR(IF(AND($V362<=AJ$1,$W362>=AJ$1),INDEX(Reliability!O$23:O$50,MATCH($S362,Reliability!$C$23:$C$50,0)),0),0)*IF($T362=\"n/a\",$D362*$Y362,$G362)+IFERROR(IF(AND($V362<=AJ$1,$W362>=AJ$1),INDEX(Reliability!O$23:O$50,MATCH($T362,Reliability!$C$23:$C$50,0)),0),0)*$H362*$X362*$Y362),$D362)*$R362","v":0},{"$f":"MIN((IFERROR(IF(AND($V362<=AK$1,$W362>=AK$1),INDEX(Reliability!P$23:P$50,MATCH($S362,Reliability!$C$23:$C$50,0)),0),0)*IF($T362=\"n/a\",$D362*$Y362,$G362)+IFERROR(IF(AND($V362<=AK$1,$W362>=AK$1),INDEX(Reliability!P$23:P$50,MATCH($T362,Reliability!$C$23:$C$50,0)),0),0)*$H362*$X362*$Y362),$D362)*$R362","v":0}]
[null,{"$f":"unique_contracts!B364","v":0},{"$f":"unique_contracts!D364","v":0},{"$f":"unique_contracts!J364","v":0},{"$f":"unique_contracts!M364","v":0},{"$f":"unique_contracts!N364","v":0},{"$f":"unique_contracts!P364","v":0},{"$f":"unique_contracts!R364","v":0},{"$f":"unique_contracts!V364","v":0},{"$f":"unique_contracts!AB364","v":0},{"$f":"unique_contracts!AM364","v":0},{"$f":"unique_contracts!AN364","v":0},{"$f":"unique_contracts!AO364","v":0},{"$f":"unique_contracts!AP364","v":0},{"$f":"unique_contracts!AQ364","v":0},{"$f":"unique_contracts!AR364","v":0},{"$f":"unique_contracts!BP364","v":0},0,{"$f":"IFERROR(IF(AND(I363>0,E363=\"NotHybrid\"),_xlfn.CONCAT(MAX(MIN(ROUNDDOWN(I363/D363,0),8),4),INDEX(resources!$G:$G,MATCH(B363,resources!$A:$A,0))),INDEX(resources!$G:$G,MATCH(B363,resources!$A:$A,0))),\"n/a\")","v":"n/a"},"n/a","n/a",0,0,1,1,{"$f":"MIN((IFERROR(IF(AND($V363<=Z$1,$W363>=Z$1),INDEX(Reliability!E$23:E$50,MATCH($S363,Reliability!$C$23:$C$50,0)),0),0)*IF($T363=\"n/a\",$D363*$Y363,$G363)+IFERROR(IF(AND($V363<=Z$1,$W363>=Z$1),INDEX(Reliability!E$23:E$50,MATCH($T363,Reliability!$C$23:$C$50,0)),0),0)*$H363*$X363*$Y363),$D363)*$R363","v":0},{"$f":"MIN((IFERROR(IF(AND($V363<=AA$1,$W363>=AA$1),INDEX(Reliability!F$23:F$50,MATCH($S363,Reliability!$C$23:$C$50,0)),0),0)*IF($T363=\"n/a\",$D363*$Y363,$G363)+IFERROR(IF(AND($V363<=AA$1,$W363>=AA$1),INDEX(Reliability!F$23:F$50,MATCH($T363,Reliability!$C$23:$C$50,0)),0),0)*$H363*$X363*$Y363),$D363)*$R363","v":0},{"$f":"MIN((IFERROR(IF(AND($V363<=AB$1,$W363>=AB$1),INDEX(Reliability!G$23:G$50,MATCH($S363,Reliability!$C$23:$C$50,0)),0),0)*IF($T363=\"n/a\",$D363*$Y363,$G363)+IFERROR(IF(AND($V363<=AB$1,$W363>=AB$1),INDEX(Reliability!G$23:G$50,MATCH($T363,Reliability!$C$23:$C$50,0)),0),0)*$H363*$X363*$Y363),$D363)*$R363","v":0},{"$f":"MIN((IFERROR(IF(AND($V363<=AC$1,$W363>=AC$1),INDEX(Reliability!H$23:H$50,MATCH($S363,Reliability!$C$23:$C$50,0)),0),0)*IF($T363=\"n/a\",$D363*$Y363,$G363)+IFERROR(IF(AND($V363<=AC$1,$W363>=AC$1),INDEX(Reliability!H$23:H$50,MATCH($T363,Reliability!$C$23:$C$50,0)),0),0)*$H363*$X363*$Y363),$D363)*$R363","v":0},{"$f":"MIN((IFERROR(IF(AND($V363<=AD$1,$W363>=AD$1),INDEX(Reliability!I$23:I$50,MATCH($S363,Reliability!$C$23:$C$50,0)),0),0)*IF($T363=\"n/a\",$D363*$Y363,$G363)+IFERROR(IF(AND($V363<=AD$1,$W363>=AD$1),INDEX(Reliability!I$23:I$50,MATCH($T363,Reliability!$C$23:$C$50,0)),0),0)*$H363*$X363*$Y363),$D363)*$R363","v":0},{"$f":"MIN((IFERROR(IF(AND($V363<=AE$1,$W363>=AE$1),INDEX(Reliability!J$23:J$50,MATCH($S363,Reliability!$C$23:$C$50,0)),0),0)*IF($T363=\"n/a\",$D363*$Y363,$G363)+IFERROR(IF(AND($V363<=AE$1,$W363>=AE$1),INDEX(Reliability!J$23:J$50,MATCH($T363,Reliability!$C$23:$C$50,0)),0),0)*$H363*$X363*$Y363),$D363)*$R363","v":0},{"$f":"MIN((IFERROR(IF(AND($V363<=AF$1,$W363>=AF$1),INDEX(Reliability!K$23:K$50,MATCH($S363,Reliability!$C$23:$C$50,0)),0),0)*IF($T363=\"n/a\",$D363*$Y363,$G363)+IFERROR(IF(AND($V363<=AF$1,$W363>=AF$1),INDEX(Reliability!K$23:K$50,MATCH($T363,Reliability!$C$23:$C$50,0)),0),0)*$H363*$X363*$Y363),$D363)*$R363","v":0},{"$f":"MIN((IFERROR(IF(AND($V363<=AG$1,$W363>=AG$1),INDEX(Reliability!L$23:L$50,MATCH($S363,Reliability!$C$23:$C$50,0)),0),0)*IF($T363=\"n/a\",$D363*$Y363,$G363)+IFERROR(IF(AND($V363<=AG$1,$W363>=AG$1),INDEX(Reliability!L$23:L$50,MATCH($T363,Reliability!$C$23:$C$50,0)),0),0)*$H363*$X363*$Y363),$D363)*$R363","v":0},{"$f":"MIN((IFERROR(IF(AND($V363<=AH$1,$W363>=AH$1),INDEX(Reliability!M$23:M$50,MATCH($S363,Reliability!$C$23:$C$50,0)),0),0)*IF($T363=\"n/a\",$D363*$Y363,$G363)+IFERROR(IF(AND($V363<=AH$1,$W363>=AH$1),INDEX(Reliability!M$23:M$50,MATCH($T363,Reliability!$C$23:$C$50,0)),0),0)*$H363*$X363*$Y363),$D363)*$R363","v":0},{"$f":"MIN((IFERROR(IF(AND($V363<=AI$1,$W363>=AI$1),INDEX(Reliability!N$23:N$50,MATCH($S363,Reliability!$C$23:$C$50,0)),0),0)*IF($T363=\"n/a\",$D363*$Y363,$G363)+IFERROR(IF(AND($V363<=AI$1,$W363>=AI$1),INDEX(Reliability!N$23:N$50,MATCH($T363,Reliability!$C$23:$C$50,0)),0),0)*$H363*$X363*$Y363),$D363)*$R363","v":0},{"$f":"MIN((IFERROR(IF(AND($V363<=AJ$1,$W363>=AJ$1),INDEX(Reliability!O$23:O$50,MATCH($S363,Reliability!$C$23:$C$50,0)),0),0)*IF($T363=\"n/a\",$D363*$Y363,$G363)+IFERROR(IF(AND($V363<=AJ$1,$W363>=AJ$1),INDEX(Reliability!O$23:O$50,MATCH($T363,Reliability!$C$23:$C$50,0)),0),0)*$H363*$X363*$Y363),$D363)*$R363","v":0},{"$f":"MIN((IFERROR(IF(AND($V363<=AK$1,$W363>=AK$1),INDEX(Reliability!P$23:P$50,MATCH($S363,Reliability!$C$23:$C$50,0)),0),0)*IF($T363=\"n/a\",$D363*$Y363,$G363)+IFERROR(IF(AND($V363<=AK$1,$W363>=AK$1),INDEX(Reliability!P$23:P$50,MATCH($T363,Reliability!$C$23:$C$50,0)),0),0)*$H363*$X363*$Y363),$D363)*$R363","v":0}]
[null,{"$f":"unique_contracts!B365","v":0},{"$f":"unique_contracts!D365","v":0},{"$f":"unique_contracts!J365","v":0},{"$f":"unique_contracts!M365","v":0},{"$f":"unique_contracts!N365","v":0},{"$f":"unique_contracts!P365","v":0},{"$f":"unique_contracts!R365","v":0},{"$f":"unique_contracts!V365","v":0},{"$f":"unique_contracts!AB365","v":0},{"$f":"unique_contracts!AM365","v":0},{"$f":"unique_contracts!AN365","v":0},{"$f":"unique_contracts!AO365","v":0},{"$f":"unique_contracts!AP365","v":0},{"$f":"unique_contracts!AQ365","v":0},{"$f":"unique_contracts!AR365","v":0},{"$f":"unique_contracts!BP365","v":0},0,{"$f":"IFERROR(IF(AND(I364>0,E364=\"NotHybrid\"),_xlfn.CONCAT(MAX(MIN(ROUNDDOWN(I364/D364,0),8),4),INDEX(resources!$G:$G,MATCH(B364,resources!$A:$A,0))),INDEX(resources!$G:$G,MATCH(B364,resources!$A:$A,0))),\"n/a\")","v":"n/a"},"n/a","n/a",0,0,1,1,{"$f":"MIN((IFERROR(IF(AND($V364<=Z$1,$W364>=Z$1),INDEX(Reliability!E$23:E$50,MATCH($S364,Reliability!$C$23:$C$50,0)),0),0)*IF($T364=\"n/a\",$D364*$Y364,$G364)+IFERROR(IF(AND($V364<=Z$1,$W364>=Z$1),INDEX(Reliability!E$23:E$50,MATCH($T364,Reliability!$C$23:$C$50,0)),0),0)*$H364*$X364*$Y364),$D364)*$R364","v":0},{"$f":"MIN((IFERROR(IF(AND($V364<=AA$1,$W364>=AA$1),INDEX(Reliability!F$23:F$50,MATCH($S364,Reliability!$C$23:$C$50,0)),0),0)*IF($T364=\"n/a\",$D364*$Y364,$G364)+IFERROR(IF(AND($V364<=AA$1,$W364>=AA$1),INDEX(Reliability!F$23:F$50,MATCH($T364,Reliability!$C$23:$C$50,0)),0),0)*$H364*$X364*$Y364),$D364)*$R364","v":0},{"$f":"MIN((IFERROR(IF(AND($V364<=AB$1,$W364>=AB$1),INDEX(Reliability!G$23:G$50,MATCH($S364,Reliability!$C$23:$C$50,0)),0),0)*IF($T364=\"n/a\",$D364*$Y364,$G364)+IFERROR(IF(AND($V364<=AB$1,$W364>=AB$1),INDEX(Reliability!G$23:G$50,MATCH($T364,Reliability!$C$23:$C$50,0)),0),0)*$H364*$X364*$Y364),$D364)*$R364","v":0},{"$f":"MIN((IFERROR(IF(AND($V364<=AC$1,$W364>=AC$1),INDEX(Reliability!H$23:H$50,MATCH($S364,Reliability!$C$23:$C$50,0)),0),0)*IF($T364=\"n/a\",$D364*$Y364,$G364)+IFERROR(IF(AND($V364<=AC$1,$W364>=AC$1),INDEX(Reliability!H$23:H$50,MATCH($T364,Reliability!$C$23:$C$50,0)),0),0)*$H364*$X364*$Y364),$D364)*$R364","v":0},{"$f":"MIN((IFERROR(IF(AND($V364<=AD$1,$W364>=AD$1),INDEX(Reliability!I$23:I$50,MATCH($S364,Reliability!$C$23:$C$50,0)),0),0)*IF($T364=\"n/a\",$D364*$Y364,$G364)+IFERROR(IF(AND($V364<=AD$1,$W364>=AD$1),INDEX(Reliability!I$23:I$50,MATCH($T364,Reliability!$C$23:$C$50,0)),0),0)*$H364*$X364*$Y364),$D364)*$R364","v":0},{"$f":"MIN((IFERROR(IF(AND($V364<=AE$1,$W364>=AE$1),INDEX(Reliability!J$23:J$50,MATCH($S364,Reliability!$C$23:$C$50,0)),0),0)*IF($T364=\"n/a\",$D364*$Y364,$G364)+IFERROR(IF(AND($V364<=AE$1,$W364>=AE$1),INDEX(Reliability!J$23:J$50,MATCH($T364,Reliability!$C$23:$C$50,0)),0),0)*$H364*$X364*$Y364),$D364)*$R364","v":0},{"$f":"MIN((IFERROR(IF(AND($V364<=AF$1,$W364>=AF$1),INDEX(Reliability!K$23:K$50,MATCH($S364,Reliability!$C$23:$C$50,0)),0),0)*IF($T364=\"n/a\",$D364*$Y364,$G364)+IFERROR(IF(AND($V364<=AF$1,$W364>=AF$1),INDEX(Reliability!K$23:K$50,MATCH($T364,Reliability!$C$23:$C$50,0)),0),0)*$H364*$X364*$Y364),$D364)*$R364","v":0},{"$f":"MIN((IFERROR(IF(AND($V364<=AG$1,$W364>=AG$1),INDEX(Reliability!L$23:L$50,MATCH($S364,Reliability!$C$23:$C$50,0)),0),0)*IF($T364=\"n/a\",$D364*$Y364,$G364)+IFERROR(IF(AND($V364<=AG$1,$W364>=AG$1),INDEX(Reliability!L$23:L$50,MATCH($T364,Reliability!$C$23:$C$50,0)),0),0)*$H364*$X364*$Y364),$D364)*$R364","v":0},{"$f":"MIN((IFERROR(IF(AND($V364<=AH$1,$W364>=AH$1),INDEX(Reliability!M$23:M$50,MATCH($S364,Reliability!$C$23:$C$50,0)),0),0)*IF($T364=\"n/a\",$D364*$Y364,$G364)+IFERROR(IF(AND($V364<=AH$1,$W364>=AH$1),INDEX(Reliability!M$23:M$50,MATCH($T364,Reliability!$C$23:$C$50,0)),0),0)*$H364*$X364*$Y364),$D364)*$R364","v":0},{"$f":"MIN((IFERROR(IF(AND($V364<=AI$1,$W364>=AI$1),INDEX(Reliability!N$23:N$50,MATCH($S364,Reliability!$C$23:$C$50,0)),0),0)*IF($T364=\"n/a\",$D364*$Y364,$G364)+IFERROR(IF(AND($V364<=AI$1,$W364>=AI$1),INDEX(Reliability!N$23:N$50,MATCH($T364,Reliability!$C$23:$C$50,0)),0),0)*$H364*$X364*$Y364),$D364)*$R364","v":0},{"$f":"MIN((IFERROR(IF(AND($V364<=AJ$1,$W364>=AJ$1),INDEX(Reliability!O$23:O$50,MATCH($S364,Reliability!$C$23:$C$50,0)),0),0)*IF($T364=\"n/a\",$D364*$Y364,$G364)+IFERROR(IF(AND($V364<=AJ$1,$W364>=AJ$1),INDEX(Reliability!O$23:O$50,MATCH($T364,Reliability!$C$23:$C$50,0)),0),0)*$H364*$X364*$Y364),$D364)*$R364","v":0},{"$f":"MIN((IFERROR(IF(AND($V364<=AK$1,$W364>=AK$1),INDEX(Reliability!P$23:P$50,MATCH($S364,Reliability!$C$23:$C$50,0)),0),0)*IF($T364=\"n/a\",$D364*$Y364,$G364)+IFERROR(IF(AND($V364<=AK$1,$W364>=AK$1),INDEX(Reliability!P$23:P$50,MATCH($T364,Reliability!$C$23:$C$50,0)),0),0)*$H364*$X364*$Y364),$D364)*$R364","v":0}]
[null,{"$f":"unique_contracts!B366","v":0},{"$f":"unique_contracts!D366","v":0},{"$f":"unique_contracts!J366","v":0},{"$f":"unique_contracts!M366","v":0},{"$f":"unique_contracts!N366","v":0},{"$f":"unique_contracts!P366","v":0},{"$f":"unique_contracts!R366","v":0},{"$f":"unique_contracts!V366","v":0},{"$f":"unique_contracts!AB366","v":0},{"$f":"unique_contracts!AM366","v":0},{"$f":"unique_contracts!AN366","v":0},{"$f":"unique_contracts!AO366","v":0},{"$f":"unique_contracts!AP366","v":0},{"$f":"unique_contracts!AQ366","v":0},{"$f":"unique_contracts!AR366","v":0},{"$f":"unique_contracts!BP366","v":0},0,{"$f":"IFERROR(IF(AND(I365>0,E365=\"NotHybrid\"),_xlfn.CONCAT(MAX(MIN(ROUNDDOWN(I365/D365,0),8),4),INDEX(resources!$G:$G,MATCH(B365,resources!$A:$A,0))),INDEX(resources!$G:$G,MATCH(B365,resources!$A:$A,0))),\"n/a\")","v":"n/a"},"n/a","n/a",0,0,1,1,{"$f":"MIN((IFERROR(IF(AND($V365<=Z$1,$W365>=Z$1),INDEX(Reliability!E$23:E$50,MATCH($S365,Reliability!$C$23:$C$50,0)),0),0)*IF($T365=\"n/a\",$D365*$Y365,$G365)+IFERROR(IF(AND($V365<=Z$1,$W365>=Z$1),INDEX(Reliability!E$23:E$50,MATCH($T365,Reliability!$C$23:$C$50,0)),0),0)*$H365*$X365*$Y365),$D365)*$R365","v":0},{"$f":"MIN((IFERROR(IF(AND($V365<=AA$1,$W365>=AA$1),INDEX(Reliability!F$23:F$50,MATCH($S365,Reliability!$C$23:$C$50,0)),0),0)*IF($T365=\"n/a\",$D365*$Y365,$G365)+IFERROR(IF(AND($V365<=AA$1,$W365>=AA$1),INDEX(Reliability!F$23:F$50,MATCH($T365,Reliability!$C$23:$C$50,0)),0),0)*$H365*$X365*$Y365),$D365)*$R365","v":0},{"$f":"MIN((IFERROR(IF(AND($V365<=AB$1,$W365>=AB$1),INDEX(Reliability!G$23:G$50,MATCH($S365,Reliability!$C$23:$C$50,0)),0),0)*IF($T365=\"n/a\",$D365*$Y365,$G365)+IFERROR(IF(AND($V365<=AB$1,$W365>=AB$1),INDEX(Reliability!G$23:G$50,MATCH($T365,Reliability!$C$23:$C$50,0)),0),0)*$H365*$X365*$Y365),$D365)*$R365","v":0},{"$f":"MIN((IFERROR(IF(AND($V365<=AC$1,$W365>=AC$1),INDEX(Reliability!H$23:H$50,MATCH($S365,Reliability!$C$23:$C$50,0)),0),0)*IF($T365=\"n/a\",$D365*$Y365,$G365)+IFERROR(IF(AND($V365<=AC$1,$W365>=AC$1),INDEX(Reliability!H$23:H$50,MATCH($T365,Reliability!$C$23:$C$50,0)),0),0)*$H365*$X365*$Y365),$D365)*$R365","v":0},{"$f":"MIN((IFERROR(IF(AND($V365<=AD$1,$W365>=AD$1),INDEX(Reliability!I$23:I$50,MATCH($S365,Reliability!$C$23:$C$50,0)),0),0)*IF($T365=\"n/a\",$D365*$Y365,$G365)+IFERROR(IF(AND($V365<=AD$1,$W365>=AD$1),INDEX(Reliability!I$23:I$50,MATCH($T365,Reliability!$C$23:$C$50,0)),0),0)*$H365*$X365*$Y365),$D365)*$R365","v":0},{"$f":"MIN((IFERROR(IF(AND($V365<=AE$1,$W365>=AE$1),INDEX(Reliability!J$23:J$50,MATCH($S365,Reliability!$C$23:$C$50,0)),0),0)*IF($T365=\"n/a\",$D365*$Y365,$G365)+IFERROR(IF(AND($V365<=AE$1,$W365>=AE$1),INDEX(Reliability!J$23:J$50,MATCH($T365,Reliability!$C$23:$C$50,0)),0),0)*$H365*$X365*$Y365),$D365)*$R365","v":0},{"$f":"MIN((IFERROR(IF(AND($V365<=AF$1,$W365>=AF$1),INDEX(Reliability!K$23:K$50,MATCH($S365,Reliability!$C$23:$C$50,0)),0),0)*IF($T365=\"n/a\",$D365*$Y365,$G365)+IFERROR(IF(AND($V365<=AF$1,$W365>=AF$1),INDEX(Reliability!K$23:K$50,MATCH($T365,Reliability!$C$23:$C$50,0)),0),0)*$H365*$X365*$Y365),$D365)*$R365","v":0},{"$f":"MIN((IFERROR(IF(AND($V365<=AG$1,$W365>=AG$1),INDEX(Reliability!L$23:L$50,MATCH($S365,Reliability!$C$23:$C$50,0)),0),0)*IF($T365=\"n/a\",$D365*$Y365,$G365)+IFERROR(IF(AND($V365<=AG$1,$W365>=AG$1),INDEX(Reliability!L$23:L$50,MATCH($T365,Reliability!$C$23:$C$50,0)),0),0)*$H365*$X365*$Y365),$D365)*$R365","v":0},{"$f":"MIN((IFERROR(IF(AND($V365<=AH$1,$W365>=AH$1),INDEX(Reliability!M$23:M$50,MATCH($S365,Reliability!$C$23:$C$50,0)),0),0)*IF($T365=\"n/a\",$D365*$Y365,$G365)+IFERROR(IF(AND($V365<=AH$1,$W365>=AH$1),INDEX(Reliability!M$23:M$50,MATCH($T365,Reliability!$C$23:$C$50,0)),0),0)*$H365*$X365*$Y365),$D365)*$R365","v":0},{"$f":"MIN((IFERROR(IF(AND($V365<=AI$1,$W365>=AI$1),INDEX(Reliability!N$23:N$50,MATCH($S365,Reliability!$C$23:$C$50,0)),0),0)*IF($T365=\"n/a\",$D365*$Y365,$G365)+IFERROR(IF(AND($V365<=AI$1,$W365>=AI$1),INDEX(Reliability!N$23:N$50,MATCH($T365,Reliability!$C$23:$C$50,0)),0),0)*$H365*$X365*$Y365),$D365)*$R365","v":0},{"$f":"MIN((IFERROR(IF(AND($V365<=AJ$1,$W365>=AJ$1),INDEX(Reliability!O$23:O$50,MATCH($S365,Reliability!$C$23:$C$50,0)),0),0)*IF($T365=\"n/a\",$D365*$Y365,$G365)+IFERROR(IF(AND($V365<=AJ$1,$W365>=AJ$1),INDEX(Reliability!O$23:O$50,MATCH($T365,Reliability!$C$23:$C$50,0)),0),0)*$H365*$X365*$Y365),$D365)*$R365","v":0},{"$f":"MIN((IFERROR(IF(AND($V365<=AK$1,$W365>=AK$1),INDEX(Reliability!P$23:P$50,MATCH($S365,Reliability!$C$23:$C$50,0)),0),0)*IF($T365=\"n/a\",$D365*$Y365,$G365)+IFERROR(IF(AND($V365<=AK$1,$W365>=AK$1),INDEX(Reliability!P$23:P$50,MATCH($T365,Reliability!$C$23:$C$50,0)),0),0)*$H365*$X365*$Y365),$D365)*$R365","v":0}]
[null,{"$f":"unique_contracts!B367","v":0},{"$f":"unique_contracts!D367","v":0},{"$f":"unique_contracts!J367","v":0},{"$f":"unique_contracts!M367","v":0},{"$f":"unique_contracts!N367","v":0},{"$f":"unique_contracts!P367","v":0},{"$f":"unique_contracts!R367","v":0},{"$f":"unique_contracts!V367","v":0},{"$f":"unique_contracts!AB367","v":0},{"$f":"unique_contracts!AM367","v":0},{"$f":"unique_contracts!AN367","v":0},{"$f":"unique_contracts!AO367","v":0},{"$f":"unique_contracts!AP367","v":0},{"$f":"unique_contracts!AQ367","v":0},{"$f":"unique_contracts!AR367","v":0},{"$f":"unique_contracts!BP367","v":0},0,{"$f":"IFERROR(IF(AND(I366>0,E366=\"NotHybrid\"),_xlfn.CONCAT(MAX(MIN(ROUNDDOWN(I366/D366,0),8),4),INDEX(resources!$G:$G,MATCH(B366,resources!$A:$A,0))),INDEX(resources!$G:$G,MATCH(B366,resources!$A:$A,0))),\"n/a\")","v":"n/a"},"n/a","n/a",0,0,1,1,{"$f":"MIN((IFERROR(IF(AND($V366<=Z$1,$W366>=Z$1),INDEX(Reliability!E$23:E$50,MATCH($S366,Reliability!$C$23:$C$50,0)),0),0)*IF($T366=\"n/a\",$D366*$Y366,$G366)+IFERROR(IF(AND($V366<=Z$1,$W366>=Z$1),INDEX(Reliability!E$23:E$50,MATCH($T366,Reliability!$C$23:$C$50,0)),0),0)*$H366*$X366*$Y366),$D366)*$R366","v":0},{"$f":"MIN((IFERROR(IF(AND($V366<=AA$1,$W366>=AA$1),INDEX(Reliability!F$23:F$50,MATCH($S366,Reliability!$C$23:$C$50,0)),0),0)*IF($T366=\"n/a\",$D366*$Y366,$G366)+IFERROR(IF(AND($V366<=AA$1,$W366>=AA$1),INDEX(Reliability!F$23:F$50,MATCH($T366,Reliability!$C$23:$C$50,0)),0),0)*$H366*$X366*$Y366),$D366)*$R366","v":0},{"$f":"MIN((IFERROR(IF(AND($V366<=AB$1,$W366>=AB$1),INDEX(Reliability!G$23:G$50,MATCH($S366,Reliability!$C$23:$C$50,0)),0),0)*IF($T366=\"n/a\",$D366*$Y366,$G366)+IFERROR(IF(AND($V366<=AB$1,$W366>=AB$1),INDEX(Reliability!G$23:G$50,MATCH($T366,Reliability!$C$23:$C$50,0)),0),0)*$H366*$X366*$Y366),$D366)*$R366","v":0},{"$f":"MIN((IFERROR(IF(AND($V366<=AC$1,$W366>=AC$1),INDEX(Reliability!H$23:H$50,MATCH($S366,Reliability!$C$23:$C$50,0)),0),0)*IF($T366=\"n/a\",$D366*$Y366,$G366)+IFERROR(IF(AND($V366<=AC$1,$W366>=AC$1),INDEX(Reliability!H$23:H$50,MATCH($T366,Reliability!$C$23:$C$50,0)),0),0)*$H366*$X366*$Y366),$D366)*$R366","v":0},{"$f":"MIN((IFERROR(IF(AND($V366<=AD$1,$W366>=AD$1),INDEX(Reliability!I$23:I$50,MATCH($S366,Reliability!$C$23:$C$50,0)),0),0)*IF($T366=\"n/a\",$D366*$Y366,$G366)+IFERROR(IF(AND($V366<=AD$1,$W366>=AD$1),INDEX(Reliability!I$23:I$50,MATCH($T366,Reliability!$C$23:$C$50,0)),0),0)*$H366*$X366*$Y366),$D366)*$R366","v":0},{"$f":"MIN((IFERROR(IF(AND($V366<=AE$1,$W366>=AE$1),INDEX(Reliability!J$23:J$50,MATCH($S366,Reliability!$C$23:$C$50,0)),0),0)*IF($T366=\"n/a\",$D366*$Y366,$G366)+IFERROR(IF(AND($V366<=AE$1,$W366>=AE$1),INDEX(Reliability!J$23:J$50,MATCH($T366,Reliability!$C$23:$C$50,0)),0),0)*$H366*$X366*$Y366),$D366)*$R366","v":0},{"$f":"MIN((IFERROR(IF(AND($V366<=AF$1,$W366>=AF$1),INDEX(Reliability!K$23:K$50,MATCH($S366,Reliability!$C$23:$C$50,0)),0),0)*IF($T366=\"n/a\",$D366*$Y366,$G366)+IFERROR(IF(AND($V366<=AF$1,$W366>=AF$1),INDEX(Reliability!K$23:K$50,MATCH($T366,Reliability!$C$23:$C$50,0)),0),0)*$H366*$X366*$Y366),$D366)*$R366","v":0},{"$f":"MIN((IFERROR(IF(AND($V366<=AG$1,$W366>=AG$1),INDEX(Reliability!L$23:L$50,MATCH($S366,Reliability!$C$23:$C$50,0)),0),0)*IF($T366=\"n/a\",$D366*$Y366,$G366)+IFERROR(IF(AND($V366<=AG$1,$W366>=AG$1),INDEX(Reliability!L$23:L$50,MATCH($T366,Reliability!$C$23:$C$50,0)),0),0)*$H366*$X366*$Y366),$D366)*$R366","v":0},{"$f":"MIN((IFERROR(IF(AND($V366<=AH$1,$W366>=AH$1),INDEX(Reliability!M$23:M$50,MATCH($S366,Reliability!$C$23:$C$50,0)),0),0)*IF($T366=\"n/a\",$D366*$Y366,$G366)+IFERROR(IF(AND($V366<=AH$1,$W366>=AH$1),INDEX(Reliability!M$23:M$50,MATCH($T366,Reliability!$C$23:$C$50,0)),0),0)*$H366*$X366*$Y366),$D366)*$R366","v":0},{"$f":"MIN((IFERROR(IF(AND($V366<=AI$1,$W366>=AI$1),INDEX(Reliability!N$23:N$50,MATCH($S366,Reliability!$C$23:$C$50,0)),0),0)*IF($T366=\"n/a\",$D366*$Y366,$G366)+IFERROR(IF(AND($V366<=AI$1,$W366>=AI$1),INDEX(Reliability!N$23:N$50,MATCH($T366,Reliability!$C$23:$C$50,0)),0),0)*$H366*$X366*$Y366),$D366)*$R366","v":0},{"$f":"MIN((IFERROR(IF(AND($V366<=AJ$1,$W366>=AJ$1),INDEX(Reliability!O$23:O$50,MATCH($S366,Reliability!$C$23:$C$50,0)),0),0)*IF($T366=\"n/a\",$D366*$Y366,$G366)+IFERROR(IF(AND($V366<=AJ$1,$W366>=AJ$1),INDEX(Reliability!O$23:O$50,MATCH($T366,Reliability!$C$23:$C$50,0)),0),0)*$H366*$X366*$Y366),$D366)*$R366","v":0},{"$f":"MIN((IFERROR(IF(AND($V366<=AK$1,$W366>=AK$1),INDEX(Reliability!P$23:P$50,MATCH($S366,Reliability!$C$23:$C$50,0)),0),0)*IF($T366=\"n/a\",$D366*$Y366,$G366)+IFERROR(IF(AND($V366<=AK$1,$W366>=AK$1),INDEX(Reliability!P$23:P$50,MATCH($T366,Reliability!$C$23:$C$50,0)),0),0)*$H366*$X366*$Y366),$D366)*$R366","v":0}]
[null,{"$f":"unique_contracts!B368","v":0},{"$f":"unique_contracts!D368","v":0},{"$f":"unique_contracts!J368","v":0},{"$f":"unique_contracts!M368","v":0},{"$f":"unique_contracts!N368","v":0},{"$f":"unique_contracts!P368","v":0},{"$f":"unique_contracts!R368","v":0},{"$f":"unique_contracts!V368","v":0},{"$f":"unique_contracts!AB368","v":0},{"$f":"unique_contracts!AM368","v":0},{"$f":"unique_contracts!AN368","v":0},{"$f":"unique_contracts!AO368","v":0},{"$f":"unique_contracts!AP368","v":0},{"$f":"unique_contracts!AQ368","v":0},{"$f":"unique_contracts!AR368","v":0},{"$f":"unique_contracts!BP368","v":0},0,{"$f":"IFERROR(IF(AND(I367>0,E367=\"NotHybrid\"),_xlfn.CONCAT(MAX(MIN(ROUNDDOWN(I367/D367,0),8),4),INDEX(resources!$G:$G,MATCH(B367,resources!$A:$A,0))),INDEX(resources!$G:$G,MATCH(B367,resources!$A:$A,0))),\"n/a\")","v":"n/a"},"n/a","n/a",0,0,1,1,{"$f":"MIN((IFERROR(IF(AND($V367<=Z$1,$W367>=Z$1),INDEX(Reliability!E$23:E$50,MATCH($S367,Reliability!$C$23:$C$50,0)),0),0)*IF($T367=\"n/a\",$D367*$Y367,$G367)+IFERROR(IF(AND($V367<=Z$1,$W367>=Z$1),INDEX(Reliability!E$23:E$50,MATCH($T367,Reliability!$C$23:$C$50,0)),0),0)*$H367*$X367*$Y367),$D367)*$R367","v":0},{"$f":"MIN((IFERROR(IF(AND($V367<=AA$1,$W367>=AA$1),INDEX(Reliability!F$23:F$50,MATCH($S367,Reliability!$C$23:$C$50,0)),0),0)*IF($T367=\"n/a\",$D367*$Y367,$G367)+IFERROR(IF(AND($V367<=AA$1,$W367>=AA$1),INDEX(Reliability!F$23:F$50,MATCH($T367,Reliability!$C$23:$C$50,0)),0),0)*$H367*$X367*$Y367),$D367)*$R367","v":0},{"$f":"MIN((IFERROR(IF(AND($V367<=AB$1,$W367>=AB$1),INDEX(Reliability!G$23:G$50,MATCH($S367,Reliability!$C$23:$C$50,0)),0),0)*IF($T367=\"n/a\",$D367*$Y367,$G367)+IFERROR(IF(AND($V367<=AB$1,$W367>=AB$1),INDEX(Reliability!G$23:G$50,MATCH($T367,Reliability!$C$23:$C$50,0)),0),0)*$H367*$X367*$Y367),$D367)*$R367","v":0},{"$f":"MIN((IFERROR(IF(AND($V367<=AC$1,$W367>=AC$1),INDEX(Reliability!H$23:H$50,MATCH($S367,Reliability!$C$23:$C$50,0)),0),0)*IF($T367=\"n/a\",$D367*$Y367,$G367)+IFERROR(IF(AND($V367<=AC$1,$W367>=AC$1),INDEX(Reliability!H$23:H$50,MATCH($T367,Reliability!$C$23:$C$50,0)),0),0)*$H367*$X367*$Y367),$D367)*$R367","v":0},{"$f":"MIN((IFERROR(IF(AND($V367<=AD$1,$W367>=AD$1),INDEX(Reliability!I$23:I$50,MATCH($S367,Reliability!$C$23:$C$50,0)),0),0)*IF($T367=\"n/a\",$D367*$Y367,$G367)+IFERROR(IF(AND($V367<=AD$1,$W367>=AD$1),INDEX(Reliability!I$23:I$50,MATCH($T367,Reliability!$C$23:$C$50,0)),0),0)*$H367*$X367*$Y367),$D367)*$R367","v":0},{"$f":"MIN((IFERROR(IF(AND($V367<=AE$1,$W367>=AE$1),INDEX(Reliability!J$23:J$50,MATCH($S367,Reliability!$C$23:$C$50,0)),0),0)*IF($T367=\"n/a\",$D367*$Y367,$G367)+IFERROR(IF(AND($V367<=AE$1,$W367>=AE$1),INDEX(Reliability!J$23:J$50,MATCH($T367,Reliability!$C$23:$C$50,0)),0),0)*$H367*$X367*$Y367),$D367)*$R367","v":0},{"$f":"MIN((IFERROR(IF(AND($V367<=AF$1,$W367>=AF$1),INDEX(Reliability!K$23:K$50,MATCH($S367,Reliability!$C$23:$C$50,0)),0),0)*IF($T367=\"n/a\",$D367*$Y367,$G367)+IFERROR(IF(AND($V367<=AF$1,$W367>=AF$1),INDEX(Reliability!K$23:K$50,MATCH($T367,Reliability!$C$23:$C$50,0)),0),0)*$H367*$X367*$Y367),$D367)*$R367","v":0},{"$f":"MIN((IFERROR(IF(AND($V367<=AG$1,$W367>=AG$1),INDEX(Reliability!L$23:L$50,MATCH($S367,Reliability!$C$23:$C$50,0)),0),0)*IF($T367=\"n/a\",$D367*$Y367,$G367)+IFERROR(IF(AND($V367<=AG$1,$W367>=AG$1),INDEX(Reliability!L$23:L$50,MATCH($T367,Reliability!$C$23:$C$50,0)),0),0)*$H367*$X367*$Y367),$D367)*$R367","v":0},{"$f":"MIN((IFERROR(IF(AND($V367<=AH$1,$W367>=AH$1),INDEX(Reliability!M$23:M$50,MATCH($S367,Reliability!$C$23:$C$50,0)),0),0)*IF($T367=\"n/a\",$D367*$Y367,$G367)+IFERROR(IF(AND($V367<=AH$1,$W367>=AH$1),INDEX(Reliability!M$23:M$50,MATCH($T367,Reliability!$C$23:$C$50,0)),0),0)*$H367*$X367*$Y367),$D367)*$R367","v":0},{"$f":"MIN((IFERROR(IF(AND($V367<=AI$1,$W367>=AI$1),INDEX(Reliability!N$23:N$50,MATCH($S367,Reliability!$C$23:$C$50,0)),0),0)*IF($T367=\"n/a\",$D367*$Y367,$G367)+IFERROR(IF(AND($V367<=AI$1,$W367>=AI$1),INDEX(Reliability!N$23:N$50,MATCH($T367,Reliability!$C$23:$C$50,0)),0),0)*$H367*$X367*$Y367),$D367)*$R367","v":0},{"$f":"MIN((IFERROR(IF(AND($V367<=AJ$1,$W367>=AJ$1),INDEX(Reliability!O$23:O$50,MATCH($S367,Reliability!$C$23:$C$50,0)),0),0)*IF($T367=\"n/a\",$D367*$Y367,$G367)+IFERROR(IF(AND($V367<=AJ$1,$W367>=AJ$1),INDEX(Reliability!O$23:O$50,MATCH($T367,Reliability!$C$23:$C$50,0)),0),0)*$H367*$X367*$Y367),$D367)*$R367","v":0},{"$f":"MIN((IFERROR(IF(AND($V367<=AK$1,$W367>=AK$1),INDEX(Reliability!P$23:P$50,MATCH($S367,Reliability!$C$23:$C$50,0)),0),0)*IF($T367=\"n/a\",$D367*$Y367,$G367)+IFERROR(IF(AND($V367<=AK$1,$W367>=AK$1),INDEX(Reliability!P$23:P$50,MATCH($T367,Reliability!$C$23:$C$50,0)),0),0)*$H367*$X367*$Y367),$D367)*$R367","v":0}]
[null,{"$f":"unique_contracts!B369","v":0},{"$f":"unique_contracts!D369","v":0},{"$f":"unique_contracts!J369","v":0},{"$f":"unique_contracts!M369","v":0},{"$f":"unique_contracts!N369","v":0},{"$f":"unique_contracts!P369","v":0},{"$f":"unique_contracts!R369","v":0},{"$f":"unique_contracts!V369","v":0},{"$f":"unique_contracts!AB369","v":0},{"$f":"unique_contracts!AM369","v":0},{"$f":"unique_contracts!AN369","v":0},{"$f":"unique_contracts!AO369","v":0},{"$f":"unique_contracts!AP369","v":0},{"$f":"unique_contracts!AQ369","v":0},{"$f":"unique_contracts!AR369","v":0},{"$f":"unique_contracts!BP369","v":0},0,{"$f":"IFERROR(IF(AND(I368>0,E368=\"NotHybrid\"),_xlfn.CONCAT(MAX(MIN(ROUNDDOWN(I368/D368,0),8),4),INDEX(resources!$G:$G,MATCH(B368,resources!$A:$A,0))),INDEX(resources!$G:$G,MATCH(B368,resources!$A:$A,0))),\"n/a\")","v":"n/a"},"n/a","n/a",0,0,1,1,{"$f":"MIN((IFERROR(IF(AND($V368<=Z$1,$W368>=Z$1),INDEX(Reliability!E$23:E$50,MATCH($S368,Reliability!$C$23:$C$50,0)),0),0)*IF($T368=\"n/a\",$D368*$Y368,$G368)+IFERROR(IF(AND($V368<=Z$1,$W368>=Z$1),INDEX(Reliability!E$23:E$50,MATCH($T368,Reliability!$C$23:$C$50,0)),0),0)*$H368*$X368*$Y368),$D368)*$R368","v":0},{"$f":"MIN((IFERROR(IF(AND($V368<=AA$1,$W368>=AA$1),INDEX(Reliability!F$23:F$50,MATCH($S368,Reliability!$C$23:$C$50,0)),0),0)*IF($T368=\"n/a\",$D368*$Y368,$G368)+IFERROR(IF(AND($V368<=AA$1,$W368>=AA$1),INDEX(Reliability!F$23:F$50,MATCH($T368,Reliability!$C$23:$C$50,0)),0),0)*$H368*$X368*$Y368),$D368)*$R368","v":0},{"$f":"MIN((IFERROR(IF(AND($V368<=AB$1,$W368>=AB$1),INDEX(Reliability!G$23:G$50,MATCH($S368,Reliability!$C$23:$C$50,0)),0),0)*IF($T368=\"n/a\",$D368*$Y368,$G368)+IFERROR(IF(AND($V368<=AB$1,$W368>=AB$1),INDEX(Reliability!G$23:G$50,MATCH($T368,Reliability!$C$23:$C$50,0)),0),0)*$H368*$X368*$Y368),$D368)*$R368","v":0},{"$f":"MIN((IFERROR(IF(AND($V368<=AC$1,$W368>=AC$1),INDEX(Reliability!H$23:H$50,MATCH($S368,Reliability!$C$23:$C$50,0)),0),0)*IF($T368=\"n/a\",$D368*$Y368,$G368)+IFERROR(IF(AND($V368<=AC$1,$W368>=AC$1),INDEX(Reliability!H$23:H$50,MATCH($T368,Reliability!$C$23:$C$50,0)),0),0)*$H368*$X368*$Y368),$D368)*$R368","v":0},{"$f":"MIN((IFERROR(IF(AND($V368<=AD$1,$W368>=AD$1),INDEX(Reliability!I$23:I$50,MATCH($S368,Reliability!$C$23:$C$50,0)),0),0)*IF($T368=\"n/a\",$D368*$Y368,$G368)+IFERROR(IF(AND($V368<=AD$1,$W368>=AD$1),INDEX(Reliability!I$23:I$50,MATCH($T368,Reliability!$C$23:$C$50,0)),0),0)*$H368*$X368*$Y368),$D368)*$R368","v":0},{"$f":"MIN((IFERROR(IF(AND($V368<=AE$1,$W368>=AE$1),INDEX(Reliability!J$23:J$50,MATCH($S368,Reliability!$C$23:$C$50,0)),0),0)*IF($T368=\"n/a\",$D368*$Y368,$G368)+IFERROR(IF(AND($V368<=AE$1,$W368>=AE$1),INDEX(Reliability!J$23:J$50,MATCH($T368,Reliability!$C$23:$C$50,0)),0),0)*$H368*$X368*$Y368),$D368)*$R368","v":0},{"$f":"MIN((IFERROR(IF(AND($V368<=AF$1,$W368>=AF$1),INDEX(Reliability!K$23:K$50,MATCH($S368,Reliability!$C$23:$C$50,0)),0),0)*IF($T368=\"n/a\",$D368*$Y368,$G368)+IFERROR(IF(AND($V368<=AF$1,$W368>=AF$1),INDEX(Reliability!K$23:K$50,MATCH($T368,Reliability!$C$23:$C$50,0)),0),0)*$H368*$X368*$Y368),$D368)*$R368","v":0},{"$f":"MIN((IFERROR(IF(AND($V368<=AG$1,$W368>=AG$1),INDEX(Reliability!L$23:L$50,MATCH($S368,Reliability!$C$23:$C$50,0)),0),0)*IF($T368=\"n/a\",$D368*$Y368,$G368)+IFERROR(IF(AND($V368<=AG$1,$W368>=AG$1),INDEX(Reliability!L$23:L$50,MATCH($T368,Reliability!$C$23:$C$50,0)),0),0)*$H368*$X368*$Y368),$D368)*$R368","v":0},{"$f":"MIN((IFERROR(IF(AND($V368<=AH$1,$W368>=AH$1),INDEX(Reliability!M$23:M$50,MATCH($S368,Reliability!$C$23:$C$50,0)),0),0)*IF($T368=\"n/a\",$D368*$Y368,$G368)+IFERROR(IF(AND($V368<=AH$1,$W368>=AH$1),INDEX(Reliability!M$23:M$50,MATCH($T368,Reliability!$C$23:$C$50,0)),0),0)*$H368*$X368*$Y368),$D368)*$R368","v":0},{"$f":"MIN((IFERROR(IF(AND($V368<=AI$1,$W368>=AI$1),INDEX(Reliability!N$23:N$50,MATCH($S368,Reliability!$C$23:$C$50,0)),0),0)*IF($T368=\"n/a\",$D368*$Y368,$G368)+IFERROR(IF(AND($V368<=AI$1,$W368>=AI$1),INDEX(Reliability!N$23:N$50,MATCH($T368,Reliability!$C$23:$C$50,0)),0),0)*$H368*$X368*$Y368),$D368)*$R368","v":0},{"$f":"MIN((IFERROR(IF(AND($V368<=AJ$1,$W368>=AJ$1),INDEX(Reliability!O$23:O$50,MATCH($S368,Reliability!$C$23:$C$50,0)),0),0)*IF($T368=\"n/a\",$D368*$Y368,$G368)+IFERROR(IF(AND($V368<=AJ$1,$W368>=AJ$1),INDEX(Reliability!O$23:O$50,MATCH($T368,Reliability!$C$23:$C$50,0)),0),0)*$H368*$X368*$Y368),$D368)*$R368","v":0},{"$f":"MIN((IFERROR(IF(AND($V368<=AK$1,$W368>=AK$1),INDEX(Reliability!P$23:P$50,MATCH($S368,Reliability!$C$23:$C$50,0)),0),0)*IF($T368=\"n/a\",$D368*$Y368,$G368)+IFERROR(IF(AND($V368<=AK$1,$W368>=AK$1),INDEX(Reliability!P$23:P$50,MATCH($T368,Reliability!$C$23:$C$50,0)),0),0)*$H368*$X368*$Y368),$D368)*$R368","v":0}]
[null,{"$f":"unique_contracts!B370","v":0},{"$f":"unique_contracts!D370","v":0},{"$f":"unique_contracts!J370","v":0},{"$f":"unique_contracts!M370","v":0},{"$f":"unique_contracts!N370","v":0},{"$f":"unique_contracts!P370","v":0},{"$f":"unique_contracts!R370","v":0},{"$f":"unique_contracts!V370","v":0},{"$f":"unique_contracts!AB370","v":0},{"$f":"unique_contracts!AM370","v":0},{"$f":"unique_contracts!AN370","v":0},{"$f":"unique_contracts!AO370","v":0},{"$f":"unique_contracts!AP370","v":0},{"$f":"unique_contracts!AQ370","v":0},{"$f":"unique_contracts!AR370","v":0},{"$f":"unique_contracts!BP370","v":0},0,{"$f":"IFERROR(IF(AND(I369>0,E369=\"NotHybrid\"),_xlfn.CONCAT(MAX(MIN(ROUNDDOWN(I369/D369,0),8),4),INDEX(resources!$G:$G,MATCH(B369,resources!$A:$A,0))),INDEX(resources!$G:$G,MATCH(B369,resources!$A:$A,0))),\"n/a\")","v":"n/a"},"n/a","n/a",0,0,1,1,{"$f":"MIN((IFERROR(IF(AND($V369<=Z$1,$W369>=Z$1),INDEX(Reliability!E$23:E$50,MATCH($S369,Reliability!$C$23:$C$50,0)),0),0)*IF($T369=\"n/a\",$D369*$Y369,$G369)+IFERROR(IF(AND($V369<=Z$1,$W369>=Z$1),INDEX(Reliability!E$23:E$50,MATCH($T369,Reliability!$C$23:$C$50,0)),0),0)*$H369*$X369*$Y369),$D369)*$R369","v":0},{"$f":"MIN((IFERROR(IF(AND($V369<=AA$1,$W369>=AA$1),INDEX(Reliability!F$23:F$50,MATCH($S369,Reliability!$C$23:$C$50,0)),0),0)*IF($T369=\"n/a\",$D369*$Y369,$G369)+IFERROR(IF(AND($V369<=AA$1,$W369>=AA$1),INDEX(Reliability!F$23:F$50,MATCH($T369,Reliability!$C$23:$C$50,0)),0),0)*$H369*$X369*$Y369),$D369)*$R369","v":0},{"$f":"MIN((IFERROR(IF(AND($V369<=AB$1,$W369>=AB$1),INDEX(Reliability!G$23:G$50,MATCH($S369,Reliability!$C$23:$C$50,0)),0),0)*IF($T369=\"n/a\",$D369*$Y369,$G369)+IFERROR(IF(AND($V369<=AB$1,$W369>=AB$1),INDEX(Reliability!G$23:G$50,MATCH($T369,Reliability!$C$23:$C$50,0)),0),0)*$H369*$X369*$Y369),$D369)*$R369","v":0},{"$f":"MIN((IFERROR(IF(AND($V369<=AC$1,$W369>=AC$1),INDEX(Reliability!H$23:H$50,MATCH($S369,Reliability!$C$23:$C$50,0)),0),0)*IF($T369=\"n/a\",$D369*$Y369,$G369)+IFERROR(IF(AND($V369<=AC$1,$W369>=AC$1),INDEX(Reliability!H$23:H$50,MATCH($T369,Reliability!$C$23:$C$50,0)),0),0)*$H369*$X369*$Y369),$D369)*$R369","v":0},{"$f":"MIN((IFERROR(IF(AND($V369<=AD$1,$W369>=AD$1),INDEX(Reliability!I$23:I$50,MATCH($S369,Reliability!$C$23:$C$50,0)),0),0)*IF($T369=\"n/a\",$D369*$Y369,$G369)+IFERROR(IF(AND($V369<=AD$1,$W369>=AD$1),INDEX(Reliability!I$23:I$50,MATCH($T369,Reliability!$C$23:$C$50,0)),0),0)*$H369*$X369*$Y369),$D369)*$R369","v":0},{"$f":"MIN((IFERROR(IF(AND($V369<=AE$1,$W369>=AE$1),INDEX(Reliability!J$23:J$50,MATCH($S369,Reliability!$C$23:$C$50,0)),0),0)*IF($T369=\"n/a\",$D369*$Y369,$G369)+IFERROR(IF(AND($V369<=AE$1,$W369>=AE$1),INDEX(Reliability!J$23:J$50,MATCH($T369,Reliability!$C$23:$C$50,0)),0),0)*$H369*$X369*$Y369),$D369)*$R369","v":0},{"$f":"MIN((IFERROR(IF(AND($V369<=AF$1,$W369>=AF$1),INDEX(Reliability!K$23:K$50,MATCH($S369,Reliability!$C$23:$C$50,0)),0),0)*IF($T369=\"n/a\",$D369*$Y369,$G369)+IFERROR(IF(AND($V369<=AF$1,$W369>=AF$1),INDEX(Reliability!K$23:K$50,MATCH($T369,Reliability!$C$23:$C$50,0)),0),0)*$H369*$X369*$Y369),$D369)*$R369","v":0},{"$f":"MIN((IFERROR(IF(AND($V369<=AG$1,$W369>=AG$1),INDEX(Reliability!L$23:L$50,MATCH($S369,Reliability!$C$23:$C$50,0)),0),0)*IF($T369=\"n/a\",$D369*$Y369,$G369)+IFERROR(IF(AND($V369<=AG$1,$W369>=AG$1),INDEX(Reliability!L$23:L$50,MATCH($T369,Reliability!$C$23:$C$50,0)),0),0)*$H369*$X369*$Y369),$D369)*$R369","v":0},{"$f":"MIN((IFERROR(IF(AND($V369<=AH$1,$W369>=AH$1),INDEX(Reliability!M$23:M$50,MATCH($S369,Reliability!$C$23:$C$50,0)),0),0)*IF($T369=\"n/a\",$D369*$Y369,$G369)+IFERROR(IF(AND($V369<=AH$1,$W369>=AH$1),INDEX(Reliability!M$23:M$50,MATCH($T369,Reliability!$C$23:$C$50,0)),0),0)*$H369*$X369*$Y369),$D369)*$R369","v":0},{"$f":"MIN((IFERROR(IF(AND($V369<=AI$1,$W369>=AI$1),INDEX(Reliability!N$23:N$50,MATCH($S369,Reliability!$C$23:$C$50,0)),0),0)*IF($T369=\"n/a\",$D369*$Y369,$G369)+IFERROR(IF(AND($V369<=AI$1,$W369>=AI$1),INDEX(Reliability!N$23:N$50,MATCH($T369,Reliability!$C$23:$C$50,0)),0),0)*$H369*$X369*$Y369),$D369)*$R369","v":0},{"$f":"MIN((IFERROR(IF(AND($V369<=AJ$1,$W369>=AJ$1),INDEX(Reliability!O$23:O$50,MATCH($S369,Reliability!$C$23:$C$50,0)),0),0)*IF($T369=\"n/a\",$D369*$Y369,$G369)+IFERROR(IF(AND($V369<=AJ$1,$W369>=AJ$1),INDEX(Reliability!O$23:O$50,MATCH($T369,Reliability!$C$23:$C$50,0)),0),0)*$H369*$X369*$Y369),$D369)*$R369","v":0},{"$f":"MIN((IFERROR(IF(AND($V369<=AK$1,$W369>=AK$1),INDEX(Reliability!P$23:P$50,MATCH($S369,Reliability!$C$23:$C$50,0)),0),0)*IF($T369=\"n/a\",$D369*$Y369,$G369)+IFERROR(IF(AND($V369<=AK$1,$W369>=AK$1),INDEX(Reliability!P$23:P$50,MATCH($T369,Reliability!$C$23:$C$50,0)),0),0)*$H369*$X369*$Y369),$D369)*$R369","v":0}]
[null,{"$f":"unique_contracts!B371","v":0},{"$f":"unique_contracts!D371","v":0},{"$f":"unique_contracts!J371","v":0},{"$f":"unique_contracts!M371","v":0},{"$f":"unique_contracts!N371","v":0},{"$f":"unique_contracts!P371","v":0},{"$f":"unique_contracts!R371","v":0},{"$f":"unique_contracts!V371","v":0},{"$f":"unique_contracts!AB371","v":0},{"$f":"unique_contracts!AM371","v":0},{"$f":"unique_contracts!AN371","v":0},{"$f":"unique_contracts!AO371","v":0},{"$f":"unique_contracts!AP371","v":0},{"$f":"unique_contracts!AQ371","v":0},{"$f":"unique_contracts!AR371","v":0},{"$f":"unique_contracts!BP371","v":0},0,{"$f":"IFERROR(IF(AND(I370>0,E370=\"NotHybrid\"),_xlfn.CONCAT(MAX(MIN(ROUNDDOWN(I370/D370,0),8),4),INDEX(resources!$G:$G,MATCH(B370,resources!$A:$A,0))),INDEX(resources!$G:$G,MATCH(B370,resources!$A:$A,0))),\"n/a\")","v":"n/a"},"n/a","n/a",0,0,1,1,{"$f":"MIN((IFERROR(IF(AND($V370<=Z$1,$W370>=Z$1),INDEX(Reliability!E$23:E$50,MATCH($S370,Reliability!$C$23:$C$50,0)),0),0)*IF($T370=\"n/a\",$D370*$Y370,$G370)+IFERROR(IF(AND($V370<=Z$1,$W370>=Z$1),INDEX(Reliability!E$23:E$50,MATCH($T370,Reliability!$C$23:$C$50,0)),0),0)*$H370*$X370*$Y370),$D370)*$R370","v":0},{"$f":"MIN((IFERROR(IF(AND($V370<=AA$1,$W370>=AA$1),INDEX(Reliability!F$23:F$50,MATCH($S370,Reliability!$C$23:$C$50,0)),0),0)*IF($T370=\"n/a\",$D370*$Y370,$G370)+IFERROR(IF(AND($V370<=AA$1,$W370>=AA$1),INDEX(Reliability!F$23:F$50,MATCH($T370,Reliability!$C$23:$C$50,0)),0),0)*$H370*$X370*$Y370),$D370)*$R370","v":0},{"$f":"MIN((IFERROR(IF(AND($V370<=AB$1,$W370>=AB$1),INDEX(Reliability!G$23:G$50,MATCH($S370,Reliability!$C$23:$C$50,0)),0),0)*IF($T370=\"n/a\",$D370*$Y370,$G370)+IFERROR(IF(AND($V370<=AB$1,$W370>=AB$1),INDEX(Reliability!G$23:G$50,MATCH($T370,Reliability!$C$23:$C$50,0)),0),0)*$H370*$X370*$Y370),$D370)*$R370","v":0},{"$f":"MIN((IFERROR(IF(AND($V370<=AC$1,$W370>=AC$1),INDEX(Reliability!H$23:H$50,MATCH($S370,Reliability!$C$23:$C$50,0)),0),0)*IF($T370=\"n/a\",$D370*$Y370,$G370)+IFERROR(IF(AND($V370<=AC$1,$W370>=AC$1),INDEX(Reliability!H$23:H$50,MATCH($T370,Reliability!$C$23:$C$50,0)),0),0)*$H370*$X370*$Y370),$D370)*$R370","v":0},{"$f":"MIN((IFERROR(IF(AND($V370<=AD$1,$W370>=AD$1),INDEX(Reliability!I$23:I$50,MATCH($S370,Reliability!$C$23:$C$50,0)),0),0)*IF($T370=\"n/a\",$D370*$Y370,$G370)+IFERROR(IF(AND($V370<=AD$1,$W370>=AD$1),INDEX(Reliability!I$23:I$50,MATCH($T370,Reliability!$C$23:$C$50,0)),0),0)*$H370*$X370*$Y370),$D370)*$R370","v":0},{"$f":"MIN((IFERROR(IF(AND($V370<=AE$1,$W370>=AE$1),INDEX(Reliability!J$23:J$50,MATCH($S370,Reliability!$C$23:$C$50,0)),0),0)*IF($T370=\"n/a\",$D370*$Y370,$G370)+IFERROR(IF(AND($V370<=AE$1,$W370>=AE$1),INDEX(Reliability!J$23:J$50,MATCH($T370,Reliability!$C$23:$C$50,0)),0),0)*$H370*$X370*$Y370),$D370)*$R370","v":0},{"$f":"MIN((IFERROR(IF(AND($V370<=AF$1,$W370>=AF$1),INDEX(Reliability!K$23:K$50,MATCH($S370,Reliability!$C$23:$C$50,0)),0),0)*IF($T370=\"n/a\",$D370*$Y370,$G370)+IFERROR(IF(AND($V370<=AF$1,$W370>=AF$1),INDEX(Reliability!K$23:K$50,MATCH($T370,Reliability!$C$23:$C$50,0)),0),0)*$H370*$X370*$Y370),$D370)*$R370","v":0},{"$f":"MIN((IFERROR(IF(AND($V370<=AG$1,$W370>=AG$1),INDEX(Reliability!L$23:L$50,MATCH($S370,Reliability!$C$23:$C$50,0)),0),0)*IF($T370=\"n/a\",$D370*$Y370,$G370)+IFERROR(IF(AND($V370<=AG$1,$W370>=AG$1),INDEX(Reliability!L$23:L$50,MATCH($T370,Reliability!$C$23:$C$50,0)),0),0)*$H370*$X370*$Y370),$D370)*$R370","v":0},{"$f":"MIN((IFERROR(IF(AND($V370<=AH$1,$W370>=AH$1),INDEX(Reliability!M$23:M$50,MATCH($S370,Reliability!$C$23:$C$50,0)),0),0)*IF($T370=\"n/a\",$D370*$Y370,$G370)+IFERROR(IF(AND($V370<=AH$1,$W370>=AH$1),INDEX(Reliability!M$23:M$50,MATCH($T370,Reliability!$C$23:$C$50,0)),0),0)*$H370*$X370*$Y370),$D370)*$R370","v":0},{"$f":"MIN((IFERROR(IF(AND($V370<=AI$1,$W370>=AI$1),INDEX(Reliability!N$23:N$50,MATCH($S370,Reliability!$C$23:$C$50,0)),0),0)*IF($T370=\"n/a\",$D370*$Y370,$G370)+IFERROR(IF(AND($V370<=AI$1,$W370>=AI$1),INDEX(Reliability!N$23:N$50,MATCH($T370,Reliability!$C$23:$C$50,0)),0),0)*$H370*$X370*$Y370),$D370)*$R370","v":0},{"$f":"MIN((IFERROR(IF(AND($V370<=AJ$1,$W370>=AJ$1),INDEX(Reliability!O$23:O$50,MATCH($S370,Reliability!$C$23:$C$50,0)),0),0)*IF($T370=\"n/a\",$D370*$Y370,$G370)+IFERROR(IF(AND($V370<=AJ$1,$W370>=AJ$1),INDEX(Reliability!O$23:O$50,MATCH($T370,Reliability!$C$23:$C$50,0)),0),0)*$H370*$X370*$Y370),$D370)*$R370","v":0},{"$f":"MIN((IFERROR(IF(AND($V370<=AK$1,$W370>=AK$1),INDEX(Reliability!P$23:P$50,MATCH($S370,Reliability!$C$23:$C$50,0)),0),0)*IF($T370=\"n/a\",$D370*$Y370,$G370)+IFERROR(IF(AND($V370<=AK$1,$W370>=AK$1),INDEX(Reliability!P$23:P$50,MATCH($T370,Reliability!$C$23:$C$50,0)),0),0)*$H370*$X370*$Y370),$D370)*$R370","v":0}]
[null,{"$f":"unique_contracts!B372","v":0},{"$f":"unique_contracts!D372","v":0},{"$f":"unique_contracts!J372","v":0},{"$f":"unique_contracts!M372","v":0},{"$f":"unique_contracts!N372","v":0},{"$f":"unique_contracts!P372","v":0},{"$f":"unique_contracts!R372","v":0},{"$f":"unique_contracts!V372","v":0},{"$f":"unique_contracts!AB372","v":0},{"$f":"unique_contracts!AM372","v":0},{"$f":"unique_contracts!AN372","v":0},{"$f":"unique_contracts!AO372","v":0},{"$f":"unique_contracts!AP372","v":0},{"$f":"unique_contracts!AQ372","v":0},{"$f":"unique_contracts!AR372","v":0},{"$f":"unique_contracts!BP372","v":0},0,{"$f":"IFERROR(IF(AND(I371>0,E371=\"NotHybrid\"),_xlfn.CONCAT(MAX(MIN(ROUNDDOWN(I371/D371,0),8),4),INDEX(resources!$G:$G,MATCH(B371,resources!$A:$A,0))),INDEX(resources!$G:$G,MATCH(B371,resources!$A:$A,0))),\"n/a\")","v":"n/a"},"n/a","n/a",0,0,1,1,{"$f":"MIN((IFERROR(IF(AND($V371<=Z$1,$W371>=Z$1),INDEX(Reliability!E$23:E$50,MATCH($S371,Reliability!$C$23:$C$50,0)),0),0)*IF($T371=\"n/a\",$D371*$Y371,$G371)+IFERROR(IF(AND($V371<=Z$1,$W371>=Z$1),INDEX(Reliability!E$23:E$50,MATCH($T371,Reliability!$C$23:$C$50,0)),0),0)*$H371*$X371*$Y371),$D371)*$R371","v":0},{"$f":"MIN((IFERROR(IF(AND($V371<=AA$1,$W371>=AA$1),INDEX(Reliability!F$23:F$50,MATCH($S371,Reliability!$C$23:$C$50,0)),0),0)*IF($T371=\"n/a\",$D371*$Y371,$G371)+IFERROR(IF(AND($V371<=AA$1,$W371>=AA$1),INDEX(Reliability!F$23:F$50,MATCH($T371,Reliability!$C$23:$C$50,0)),0),0)*$H371*$X371*$Y371),$D371)*$R371","v":0},{"$f":"MIN((IFERROR(IF(AND($V371<=AB$1,$W371>=AB$1),INDEX(Reliability!G$23:G$50,MATCH($S371,Reliability!$C$23:$C$50,0)),0),0)*IF($T371=\"n/a\",$D371*$Y371,$G371)+IFERROR(IF(AND($V371<=AB$1,$W371>=AB$1),INDEX(Reliability!G$23:G$50,MATCH($T371,Reliability!$C$23:$C$50,0)),0),0)*$H371*$X371*$Y371),$D371)*$R371","v":0},{"$f":"MIN((IFERROR(IF(AND($V371<=AC$1,$W371>=AC$1),INDEX(Reliability!H$23:H$50,MATCH($S371,Reliability!$C$23:$C$50,0)),0),0)*IF($T371=\"n/a\",$D371*$Y371,$G371)+IFERROR(IF(AND($V371<=AC$1,$W371>=AC$1),INDEX(Reliability!H$23:H$50,MATCH($T371,Reliability!$C$23:$C$50,0)),0),0)*$H371*$X371*$Y371),$D371)*$R371","v":0},{"$f":"MIN((IFERROR(IF(AND($V371<=AD$1,$W371>=AD$1),INDEX(Reliability!I$23:I$50,MATCH($S371,Reliability!$C$23:$C$50,0)),0),0)*IF($T371=\"n/a\",$D371*$Y371,$G371)+IFERROR(IF(AND($V371<=AD$1,$W371>=AD$1),INDEX(Reliability!I$23:I$50,MATCH($T371,Reliability!$C$23:$C$50,0)),0),0)*$H371*$X371*$Y371),$D371)*$R371","v":0},{"$f":"MIN((IFERROR(IF(AND($V371<=AE$1,$W371>=AE$1),INDEX(Reliability!J$23:J$50,MATCH($S371,Reliability!$C$23:$C$50,0)),0),0)*IF($T371=\"n/a\",$D371*$Y371,$G371)+IFERROR(IF(AND($V371<=AE$1,$W371>=AE$1),INDEX(Reliability!J$23:J$50,MATCH($T371,Reliability!$C$23:$C$50,0)),0),0)*$H371*$X371*$Y371),$D371)*$R371","v":0},{"$f":"MIN((IFERROR(IF(AND($V371<=AF$1,$W371>=AF$1),INDEX(Reliability!K$23:K$50,MATCH($S371,Reliability!$C$23:$C$50,0)),0),0)*IF($T371=\"n/a\",$D371*$Y371,$G371)+IFERROR(IF(AND($V371<=AF$1,$W371>=AF$1),INDEX(Reliability!K$23:K$50,MATCH($T371,Reliability!$C$23:$C$50,0)),0),0)*$H371*$X371*$Y371),$D371)*$R371","v":0},{"$f":"MIN((IFERROR(IF(AND($V371<=AG$1,$W371>=AG$1),INDEX(Reliability!L$23:L$50,MATCH($S371,Reliability!$C$23:$C$50,0)),0),0)*IF($T371=\"n/a\",$D371*$Y371,$G371)+IFERROR(IF(AND($V371<=AG$1,$W371>=AG$1),INDEX(Reliability!L$23:L$50,MATCH($T371,Reliability!$C$23:$C$50,0)),0),0)*$H371*$X371*$Y371),$D371)*$R371","v":0},{"$f":"MIN((IFERROR(IF(AND($V371<=AH$1,$W371>=AH$1),INDEX(Reliability!M$23:M$50,MATCH($S371,Reliability!$C$23:$C$50,0)),0),0)*IF($T371=\"n/a\",$D371*$Y371,$G371)+IFERROR(IF(AND($V371<=AH$1,$W371>=AH$1),INDEX(Reliability!M$23:M$50,MATCH($T371,Reliability!$C$23:$C$50,0)),0),0)*$H371*$X371*$Y371),$D371)*$R371","v":0},{"$f":"MIN((IFERROR(IF(AND($V371<=AI$1,$W371>=AI$1),INDEX(Reliability!N$23:N$50,MATCH($S371,Reliability!$C$23:$C$50,0)),0),0)*IF($T371=\"n/a\",$D371*$Y371,$G371)+IFERROR(IF(AND($V371<=AI$1,$W371>=AI$1),INDEX(Reliability!N$23:N$50,MATCH($T371,Reliability!$C$23:$C$50,0)),0),0)*$H371*$X371*$Y371),$D371)*$R371","v":0},{"$f":"MIN((IFERROR(IF(AND($V371<=AJ$1,$W371>=AJ$1),INDEX(Reliability!O$23:O$50,MATCH($S371,Reliability!$C$23:$C$50,0)),0),0)*IF($T371=\"n/a\",$D371*$Y371,$G371)+IFERROR(IF(AND($V371<=AJ$1,$W371>=AJ$1),INDEX(Reliability!O$23:O$50,MATCH($T371,Reliability!$C$23:$C$50,0)),0),0)*$H371*$X371*$Y371),$D371)*$R371","v":0},{"$f":"MIN((IFERROR(IF(AND($V371<=AK$1,$W371>=AK$1),INDEX(Reliability!P$23:P$50,MATCH($S371,Reliability!$C$23:$C$50,0)),0),0)*IF($T371=\"n/a\",$D371*$Y371,$G371)+IFERROR(IF(AND($V371<=AK$1,$W371>=AK$1),INDEX(Reliability!P$23:P$50,MATCH($T371,Reliability!$C$23:$C$50,0)),0),0)*$H371*$X371*$Y371),$D371)*$R371","v":0}]
[null,{"$f":"unique_contracts!B373","v":0},{"$f":"unique_contracts!D373","v":0},{"$f":"unique_contracts!J373","v":0},{"$f":"unique_contracts!M373","v":0},{"$f":"unique_contracts!N373","v":0},{"$f":"unique_contracts!P373","v":0},{"$f":"unique_contracts!R373","v":0},{"$f":"unique_contracts!V373","v":0},{"$f":"unique_contracts!AB373","v":0},{"$f":"unique_contracts!AM373","v":0},{"$f":"unique_contracts!AN373","v":0},{"$f":"unique_contracts!AO373","v":0},{"$f":"unique_contracts!AP373","v":0},{"$f":"unique_contracts!AQ373","v":0},{"$f":"unique_contracts!AR373","v":0},{"$f":"unique_contracts!BP373","v":0},0,{"$f":"IFERROR(IF(AND(I372>0,E372=\"NotHybrid\"),_xlfn.CONCAT(MAX(MIN(ROUNDDOWN(I372/D372,0),8),4),INDEX(resources!$G:$G,MATCH(B372,resources!$A:$A,0))),INDEX(resources!$G:$G,MATCH(B372,resources!$A:$A,0))),\"n/a\")","v":"n/a"},"n/a","n/a",0,0,1,1,{"$f":"MIN((IFERROR(IF(AND($V372<=Z$1,$W372>=Z$1),INDEX(Reliability!E$23:E$50,MATCH($S372,Reliability!$C$23:$C$50,0)),0),0)*IF($T372=\"n/a\",$D372*$Y372,$G372)+IFERROR(IF(AND($V372<=Z$1,$W372>=Z$1),INDEX(Reliability!E$23:E$50,MATCH($T372,Reliability!$C$23:$C$50,0)),0),0)*$H372*$X372*$Y372),$D372)*$R372","v":0},{"$f":"MIN((IFERROR(IF(AND($V372<=AA$1,$W372>=AA$1),INDEX(Reliability!F$23:F$50,MATCH($S372,Reliability!$C$23:$C$50,0)),0),0)*IF($T372=\"n/a\",$D372*$Y372,$G372)+IFERROR(IF(AND($V372<=AA$1,$W372>=AA$1),INDEX(Reliability!F$23:F$50,MATCH($T372,Reliability!$C$23:$C$50,0)),0),0)*$H372*$X372*$Y372),$D372)*$R372","v":0},{"$f":"MIN((IFERROR(IF(AND($V372<=AB$1,$W372>=AB$1),INDEX(Reliability!G$23:G$50,MATCH($S372,Reliability!$C$23:$C$50,0)),0),0)*IF($T372=\"n/a\",$D372*$Y372,$G372)+IFERROR(IF(AND($V372<=AB$1,$W372>=AB$1),INDEX(Reliability!G$23:G$50,MATCH($T372,Reliability!$C$23:$C$50,0)),0),0)*$H372*$X372*$Y372),$D372)*$R372","v":0},{"$f":"MIN((IFERROR(IF(AND($V372<=AC$1,$W372>=AC$1),INDEX(Reliability!H$23:H$50,MATCH($S372,Reliability!$C$23:$C$50,0)),0),0)*IF($T372=\"n/a\",$D372*$Y372,$G372)+IFERROR(IF(AND($V372<=AC$1,$W372>=AC$1),INDEX(Reliability!H$23:H$50,MATCH($T372,Reliability!$C$23:$C$50,0)),0),0)*$H372*$X372*$Y372),$D372)*$R372","v":0},{"$f":"MIN((IFERROR(IF(AND($V372<=AD$1,$W372>=AD$1),INDEX(Reliability!I$23:I$50,MATCH($S372,Reliability!$C$23:$C$50,0)),0),0)*IF($T372=\"n/a\",$D372*$Y372,$G372)+IFERROR(IF(AND($V372<=AD$1,$W372>=AD$1),INDEX(Reliability!I$23:I$50,MATCH($T372,Reliability!$C$23:$C$50,0)),0),0)*$H372*$X372*$Y372),$D372)*$R372","v":0},{"$f":"MIN((IFERROR(IF(AND($V372<=AE$1,$W372>=AE$1),INDEX(Reliability!J$23:J$50,MATCH($S372,Reliability!$C$23:$C$50,0)),0),0)*IF($T372=\"n/a\",$D372*$Y372,$G372)+IFERROR(IF(AND($V372<=AE$1,$W372>=AE$1),INDEX(Reliability!J$23:J$50,MATCH($T372,Reliability!$C$23:$C$50,0)),0),0)*$H372*$X372*$Y372),$D372)*$R372","v":0},{"$f":"MIN((IFERROR(IF(AND($V372<=AF$1,$W372>=AF$1),INDEX(Reliability!K$23:K$50,MATCH($S372,Reliability!$C$23:$C$50,0)),0),0)*IF($T372=\"n/a\",$D372*$Y372,$G372)+IFERROR(IF(AND($V372<=AF$1,$W372>=AF$1),INDEX(Reliability!K$23:K$50,MATCH($T372,Reliability!$C$23:$C$50,0)),0),0)*$H372*$X372*$Y372),$D372)*$R372","v":0},{"$f":"MIN((IFERROR(IF(AND($V372<=AG$1,$W372>=AG$1),INDEX(Reliability!L$23:L$50,MATCH($S372,Reliability!$C$23:$C$50,0)),0),0)*IF($T372=\"n/a\",$D372*$Y372,$G372)+IFERROR(IF(AND($V372<=AG$1,$W372>=AG$1),INDEX(Reliability!L$23:L$50,MATCH($T372,Reliability!$C$23:$C$50,0)),0),0)*$H372*$X372*$Y372),$D372)*$R372","v":0},{"$f":"MIN((IFERROR(IF(AND($V372<=AH$1,$W372>=AH$1),INDEX(Reliability!M$23:M$50,MATCH($S372,Reliability!$C$23:$C$50,0)),0),0)*IF($T372=\"n/a\",$D372*$Y372,$G372)+IFERROR(IF(AND($V372<=AH$1,$W372>=AH$1),INDEX(Reliability!M$23:M$50,MATCH($T372,Reliability!$C$23:$C$50,0)),0),0)*$H372*$X372*$Y372),$D372)*$R372","v":0},{"$f":"MIN((IFERROR(IF(AND($V372<=AI$1,$W372>=AI$1),INDEX(Reliability!N$23:N$50,MATCH($S372,Reliability!$C$23:$C$50,0)),0),0)*IF($T372=\"n/a\",$D372*$Y372,$G372)+IFERROR(IF(AND($V372<=AI$1,$W372>=AI$1),INDEX(Reliability!N$23:N$50,MATCH($T372,Reliability!$C$23:$C$50,0)),0),0)*$H372*$X372*$Y372),$D372)*$R372","v":0},{"$f":"MIN((IFERROR(IF(AND($V372<=AJ$1,$W372>=AJ$1),INDEX(Reliability!O$23:O$50,MATCH($S372,Reliability!$C$23:$C$50,0)),0),0)*IF($T372=\"n/a\",$D372*$Y372,$G372)+IFERROR(IF(AND($V372<=AJ$1,$W372>=AJ$1),INDEX(Reliability!O$23:O$50,MATCH($T372,Reliability!$C$23:$C$50,0)),0),0)*$H372*$X372*$Y372),$D372)*$R372","v":0},{"$f":"MIN((IFERROR(IF(AND($V372<=AK$1,$W372>=AK$1),INDEX(Reliability!P$23:P$50,MATCH($S372,Reliability!$C$23:$C$50,0)),0),0)*IF($T372=\"n/a\",$D372*$Y372,$G372)+IFERROR(IF(AND($V372<=AK$1,$W372>=AK$1),INDEX(Reliability!P$23:P$50,MATCH($T372,Reliability!$C$23:$C$50,0)),0),0)*$H372*$X372*$Y372),$D372)*$R372","v":0}]
[null,{"$f":"unique_contracts!B374","v":0},{"$f":"unique_contracts!D374","v":0},{"$f":"unique_contracts!J374","v":0},{"$f":"unique_contracts!M374","v":0},{"$f":"unique_contracts!N374","v":0},{"$f":"unique_contracts!P374","v":0},{"$f":"unique_contracts!R374","v":0},{"$f":"unique_contracts!V374","v":0},{"$f":"unique_contracts!AB374","v":0},{"$f":"unique_contracts!AM374","v":0},{"$f":"unique_contracts!AN374","v":0},{"$f":"unique_contracts!AO374","v":0},{"$f":"unique_contracts!AP374","v":0},{"$f":"unique_contracts!AQ374","v":0},{"$f":"unique_contracts!AR374","v":0},{"$f":"unique_contracts!BP374","v":0},0,{"$f":"IFERROR(IF(AND(I373>0,E373=\"NotHybrid\"),_xlfn.CONCAT(MAX(MIN(ROUNDDOWN(I373/D373,0),8),4),INDEX(resources!$G:$G,MATCH(B373,resources!$A:$A,0))),INDEX(resources!$G:$G,MATCH(B373,resources!$A:$A,0))),\"n/a\")","v":"n/a"},"n/a","n/a",0,0,1,1,{"$f":"MIN((IFERROR(IF(AND($V373<=Z$1,$W373>=Z$1),INDEX(Reliability!E$23:E$50,MATCH($S373,Reliability!$C$23:$C$50,0)),0),0)*IF($T373=\"n/a\",$D373*$Y373,$G373)+IFERROR(IF(AND($V373<=Z$1,$W373>=Z$1),INDEX(Reliability!E$23:E$50,MATCH($T373,Reliability!$C$23:$C$50,0)),0),0)*$H373*$X373*$Y373),$D373)*$R373","v":0},{"$f":"MIN((IFERROR(IF(AND($V373<=AA$1,$W373>=AA$1),INDEX(Reliability!F$23:F$50,MATCH($S373,Reliability!$C$23:$C$50,0)),0),0)*IF($T373=\"n/a\",$D373*$Y373,$G373)+IFERROR(IF(AND($V373<=AA$1,$W373>=AA$1),INDEX(Reliability!F$23:F$50,MATCH($T373,Reliability!$C$23:$C$50,0)),0),0)*$H373*$X373*$Y373),$D373)*$R373","v":0},{"$f":"MIN((IFERROR(IF(AND($V373<=AB$1,$W373>=AB$1),INDEX(Reliability!G$23:G$50,MATCH($S373,Reliability!$C$23:$C$50,0)),0),0)*IF($T373=\"n/a\",$D373*$Y373,$G373)+IFERROR(IF(AND($V373<=AB$1,$W373>=AB$1),INDEX(Reliability!G$23:G$50,MATCH($T373,Reliability!$C$23:$C$50,0)),0),0)*$H373*$X373*$Y373),$D373)*$R373","v":0},{"$f":"MIN((IFERROR(IF(AND($V373<=AC$1,$W373>=AC$1),INDEX(Reliability!H$23:H$50,MATCH($S373,Reliability!$C$23:$C$50,0)),0),0)*IF($T373=\"n/a\",$D373*$Y373,$G373)+IFERROR(IF(AND($V373<=AC$1,$W373>=AC$1),INDEX(Reliability!H$23:H$50,MATCH($T373,Reliability!$C$23:$C$50,0)),0),0)*$H373*$X373*$Y373),$D373)*$R373","v":0},{"$f":"MIN((IFERROR(IF(AND($V373<=AD$1,$W373>=AD$1),INDEX(Reliability!I$23:I$50,MATCH($S373,Reliability!$C$23:$C$50,0)),0),0)*IF($T373=\"n/a\",$D373*$Y373,$G373)+IFERROR(IF(AND($V373<=AD$1,$W373>=AD$1),INDEX(Reliability!I$23:I$50,MATCH($T373,Reliability!$C$23:$C$50,0)),0),0)*$H373*$X373*$Y373),$D373)*$R373","v":0},{"$f":"MIN((IFERROR(IF(AND($V373<=AE$1,$W373>=AE$1),INDEX(Reliability!J$23:J$50,MATCH($S373,Reliability!$C$23:$C$50,0)),0),0)*IF($T373=\"n/a\",$D373*$Y373,$G373)+IFERROR(IF(AND($V373<=AE$1,$W373>=AE$1),INDEX(Reliability!J$23:J$50,MATCH($T373,Reliability!$C$23:$C$50,0)),0),0)*$H373*$X373*$Y373),$D373)*$R373","v":0},{"$f":"MIN((IFERROR(IF(AND($V373<=AF$1,$W373>=AF$1),INDEX(Reliability!K$23:K$50,MATCH($S373,Reliability!$C$23:$C$50,0)),0),0)*IF($T373=\"n/a\",$D373*$Y373,$G373)+IFERROR(IF(AND($V373<=AF$1,$W373>=AF$1),INDEX(Reliability!K$23:K$50,MATCH($T373,Reliability!$C$23:$C$50,0)),0),0)*$H373*$X373*$Y373),$D373)*$R373","v":0},{"$f":"MIN((IFERROR(IF(AND($V373<=AG$1,$W373>=AG$1),INDEX(Reliability!L$23:L$50,MATCH($S373,Reliability!$C$23:$C$50,0)),0),0)*IF($T373=\"n/a\",$D373*$Y373,$G373)+IFERROR(IF(AND($V373<=AG$1,$W373>=AG$1),INDEX(Reliability!L$23:L$50,MATCH($T373,Reliability!$C$23:$C$50,0)),0),0)*$H373*$X373*$Y373),$D373)*$R373","v":0},{"$f":"MIN((IFERROR(IF(AND($V373<=AH$1,$W373>=AH$1),INDEX(Reliability!M$23:M$50,MATCH($S373,Reliability!$C$23:$C$50,0)),0),0)*IF($T373=\"n/a\",$D373*$Y373,$G373)+IFERROR(IF(AND($V373<=AH$1,$W373>=AH$1),INDEX(Reliability!M$23:M$50,MATCH($T373,Reliability!$C$23:$C$50,0)),0),0)*$H373*$X373*$Y373),$D373)*$R373","v":0},{"$f":"MIN((IFERROR(IF(AND($V373<=AI$1,$W373>=AI$1),INDEX(Reliability!N$23:N$50,MATCH($S373,Reliability!$C$23:$C$50,0)),0),0)*IF($T373=\"n/a\",$D373*$Y373,$G373)+IFERROR(IF(AND($V373<=AI$1,$W373>=AI$1),INDEX(Reliability!N$23:N$50,MATCH($T373,Reliability!$C$23:$C$50,0)),0),0)*$H373*$X373*$Y373),$D373)*$R373","v":0},{"$f":"MIN((IFERROR(IF(AND($V373<=AJ$1,$W373>=AJ$1),INDEX(Reliability!O$23:O$50,MATCH($S373,Reliability!$C$23:$C$50,0)),0),0)*IF($T373=\"n/a\",$D373*$Y373,$G373)+IFERROR(IF(AND($V373<=AJ$1,$W373>=AJ$1),INDEX(Reliability!O$23:O$50,MATCH($T373,Reliability!$C$23:$C$50,0)),0),0)*$H373*$X373*$Y373),$D373)*$R373","v":0},{"$f":"MIN((IFERROR(IF(AND($V373<=AK$1,$W373>=AK$1),INDEX(Reliability!P$23:P$50,MATCH($S373,Reliability!$C$23:$C$50,0)),0),0)*IF($T373=\"n/a\",$D373*$Y373,$G373)+IFERROR(IF(AND($V373<=AK$1,$W373>=AK$1),INDEX(Reliability!P$23:P$50,MATCH($T373,Reliability!$C$23:$C$50,0)),0),0)*$H373*$X373*$Y373),$D373)*$R373","v":0}]
[null,{"$f":"unique_contracts!B375","v":0},{"$f":"unique_contracts!D375","v":0},{"$f":"unique_contracts!J375","v":0},{"$f":"unique_contracts!M375","v":0},{"$f":"unique_contracts!N375","v":0},{"$f":"unique_contracts!P375","v":0},{"$f":"unique_contracts!R375","v":0},{"$f":"unique_contracts!V375","v":0},{"$f":"unique_contracts!AB375","v":0},{"$f":"unique_contracts!AM375","v":0},{"$f":"unique_contracts!AN375","v":0},{"$f":"unique_contracts!AO375","v":0},{"$f":"unique_contracts!AP375","v":0},{"$f":"unique_contracts!AQ375","v":0},{"$f":"unique_contracts!AR375","v":0},{"$f":"unique_contracts!BP375","v":0},0,{"$f":"IFERROR(IF(AND(I374>0,E374=\"NotHybrid\"),_xlfn.CONCAT(MAX(MIN(ROUNDDOWN(I374/D374,0),8),4),INDEX(resources!$G:$G,MATCH(B374,resources!$A:$A,0))),INDEX(resources!$G:$G,MATCH(B374,resources!$A:$A,0))),\"n/a\")","v":"n/a"},"n/a","n/a",0,0,1,1,{"$f":"MIN((IFERROR(IF(AND($V374<=Z$1,$W374>=Z$1),INDEX(Reliability!E$23:E$50,MATCH($S374,Reliability!$C$23:$C$50,0)),0),0)*IF($T374=\"n/a\",$D374*$Y374,$G374)+IFERROR(IF(AND($V374<=Z$1,$W374>=Z$1),INDEX(Reliability!E$23:E$50,MATCH($T374,Reliability!$C$23:$C$50,0)),0),0)*$H374*$X374*$Y374),$D374)*$R374","v":0},{"$f":"MIN((IFERROR(IF(AND($V374<=AA$1,$W374>=AA$1),INDEX(Reliability!F$23:F$50,MATCH($S374,Reliability!$C$23:$C$50,0)),0),0)*IF($T374=\"n/a\",$D374*$Y374,$G374)+IFERROR(IF(AND($V374<=AA$1,$W374>=AA$1),INDEX(Reliability!F$23:F$50,MATCH($T374,Reliability!$C$23:$C$50,0)),0),0)*$H374*$X374*$Y374),$D374)*$R374","v":0},{"$f":"MIN((IFERROR(IF(AND($V374<=AB$1,$W374>=AB$1),INDEX(Reliability!G$23:G$50,MATCH($S374,Reliability!$C$23:$C$50,0)),0),0)*IF($T374=\"n/a\",$D374*$Y374,$G374)+IFERROR(IF(AND($V374<=AB$1,$W374>=AB$1),INDEX(Reliability!G$23:G$50,MATCH($T374,Reliability!$C$23:$C$50,0)),0),0)*$H374*$X374*$Y374),$D374)*$R374","v":0},{"$f":"MIN((IFERROR(IF(AND($V374<=AC$1,$W374>=AC$1),INDEX(Reliability!H$23:H$50,MATCH($S374,Reliability!$C$23:$C$50,0)),0),0)*IF($T374=\"n/a\",$D374*$Y374,$G374)+IFERROR(IF(AND($V374<=AC$1,$W374>=AC$1),INDEX(Reliability!H$23:H$50,MATCH($T374,Reliability!$C$23:$C$50,0)),0),0)*$H374*$X374*$Y374),$D374)*$R374","v":0},{"$f":"MIN((IFERROR(IF(AND($V374<=AD$1,$W374>=AD$1),INDEX(Reliability!I$23:I$50,MATCH($S374,Reliability!$C$23:$C$50,0)),0),0)*IF($T374=\"n/a\",$D374*$Y374,$G374)+IFERROR(IF(AND($V374<=AD$1,$W374>=AD$1),INDEX(Reliability!I$23:I$50,MATCH($T374,Reliability!$C$23:$C$50,0)),0),0)*$H374*$X374*$Y374),$D374)*$R374","v":0},{"$f":"MIN((IFERROR(IF(AND($V374<=AE$1,$W374>=AE$1),INDEX(Reliability!J$23:J$50,MATCH($S374,Reliability!$C$23:$C$50,0)),0),0)*IF($T374=\"n/a\",$D374*$Y374,$G374)+IFERROR(IF(AND($V374<=AE$1,$W374>=AE$1),INDEX(Reliability!J$23:J$50,MATCH($T374,Reliability!$C$23:$C$50,0)),0),0)*$H374*$X374*$Y374),$D374)*$R374","v":0},{"$f":"MIN((IFERROR(IF(AND($V374<=AF$1,$W374>=AF$1),INDEX(Reliability!K$23:K$50,MATCH($S374,Reliability!$C$23:$C$50,0)),0),0)*IF($T374=\"n/a\",$D374*$Y374,$G374)+IFERROR(IF(AND($V374<=AF$1,$W374>=AF$1),INDEX(Reliability!K$23:K$50,MATCH($T374,Reliability!$C$23:$C$50,0)),0),0)*$H374*$X374*$Y374),$D374)*$R374","v":0},{"$f":"MIN((IFERROR(IF(AND($V374<=AG$1,$W374>=AG$1),INDEX(Reliability!L$23:L$50,MATCH($S374,Reliability!$C$23:$C$50,0)),0),0)*IF($T374=\"n/a\",$D374*$Y374,$G374)+IFERROR(IF(AND($V374<=AG$1,$W374>=AG$1),INDEX(Reliability!L$23:L$50,MATCH($T374,Reliability!$C$23:$C$50,0)),0),0)*$H374*$X374*$Y374),$D374)*$R374","v":0},{"$f":"MIN((IFERROR(IF(AND($V374<=AH$1,$W374>=AH$1),INDEX(Reliability!M$23:M$50,MATCH($S374,Reliability!$C$23:$C$50,0)),0),0)*IF($T374=\"n/a\",$D374*$Y374,$G374)+IFERROR(IF(AND($V374<=AH$1,$W374>=AH$1),INDEX(Reliability!M$23:M$50,MATCH($T374,Reliability!$C$23:$C$50,0)),0),0)*$H374*$X374*$Y374),$D374)*$R374","v":0},{"$f":"MIN((IFERROR(IF(AND($V374<=AI$1,$W374>=AI$1),INDEX(Reliability!N$23:N$50,MATCH($S374,Reliability!$C$23:$C$50,0)),0),0)*IF($T374=\"n/a\",$D374*$Y374,$G374)+IFERROR(IF(AND($V374<=AI$1,$W374>=AI$1),INDEX(Reliability!N$23:N$50,MATCH($T374,Reliability!$C$23:$C$50,0)),0),0)*$H374*$X374*$Y374),$D374)*$R374","v":0},{"$f":"MIN((IFERROR(IF(AND($V374<=AJ$1,$W374>=AJ$1),INDEX(Reliability!O$23:O$50,MATCH($S374,Reliability!$C$23:$C$50,0)),0),0)*IF($T374=\"n/a\",$D374*$Y374,$G374)+IFERROR(IF(AND($V374<=AJ$1,$W374>=AJ$1),INDEX(Reliability!O$23:O$50,MATCH($T374,Reliability!$C$23:$C$50,0)),0),0)*$H374*$X374*$Y374),$D374)*$R374","v":0},{"$f":"MIN((IFERROR(IF(AND($V374<=AK$1,$W374>=AK$1),INDEX(Reliability!P$23:P$50,MATCH($S374,Reliability!$C$23:$C$50,0)),0),0)*IF($T374=\"n/a\",$D374*$Y374,$G374)+IFERROR(IF(AND($V374<=AK$1,$W374>=AK$1),INDEX(Reliability!P$23:P$50,MATCH($T374,Reliability!$C$23:$C$50,0)),0),0)*$H374*$X374*$Y374),$D374)*$R374","v":0}]
[null,{"$f":"unique_contracts!B376","v":0},{"$f":"unique_contracts!D376","v":0},{"$f":"unique_contracts!J376","v":0},{"$f":"unique_contracts!M376","v":0},{"$f":"unique_contracts!N376","v":0},{"$f":"unique_contracts!P376","v":0},{"$f":"unique_contracts!R376","v":0},{"$f":"unique_contracts!V376","v":0},{"$f":"unique_contracts!AB376","v":0},{"$f":"unique_contracts!AM376","v":0},{"$f":"unique_contracts!AN376","v":0},{"$f":"unique_contracts!AO376","v":0},{"$f":"unique_contracts!AP376","v":0},{"$f":"unique_contracts!AQ376","v":0},{"$f":"unique_contracts!AR376","v":0},{"$f":"unique_contracts!BP376","v":0},0,{"$f":"IFERROR(IF(AND(I375>0,E375=\"NotHybrid\"),_xlfn.CONCAT(MAX(MIN(ROUNDDOWN(I375/D375,0),8),4),INDEX(resources!$G:$G,MATCH(B375,resources!$A:$A,0))),INDEX(resources!$G:$G,MATCH(B375,resources!$A:$A,0))),\"n/a\")","v":"n/a"},"n/a","n/a",0,0,1,1,{"$f":"MIN((IFERROR(IF(AND($V375<=Z$1,$W375>=Z$1),INDEX(Reliability!E$23:E$50,MATCH($S375,Reliability!$C$23:$C$50,0)),0),0)*IF($T375=\"n/a\",$D375*$Y375,$G375)+IFERROR(IF(AND($V375<=Z$1,$W375>=Z$1),INDEX(Reliability!E$23:E$50,MATCH($T375,Reliability!$C$23:$C$50,0)),0),0)*$H375*$X375*$Y375),$D375)*$R375","v":0},{"$f":"MIN((IFERROR(IF(AND($V375<=AA$1,$W375>=AA$1),INDEX(Reliability!F$23:F$50,MATCH($S375,Reliability!$C$23:$C$50,0)),0),0)*IF($T375=\"n/a\",$D375*$Y375,$G375)+IFERROR(IF(AND($V375<=AA$1,$W375>=AA$1),INDEX(Reliability!F$23:F$50,MATCH($T375,Reliability!$C$23:$C$50,0)),0),0)*$H375*$X375*$Y375),$D375)*$R375","v":0},{"$f":"MIN((IFERROR(IF(AND($V375<=AB$1,$W375>=AB$1),INDEX(Reliability!G$23:G$50,MATCH($S375,Reliability!$C$23:$C$50,0)),0),0)*IF($T375=\"n/a\",$D375*$Y375,$G375)+IFERROR(IF(AND($V375<=AB$1,$W375>=AB$1),INDEX(Reliability!G$23:G$50,MATCH($T375,Reliability!$C$23:$C$50,0)),0),0)*$H375*$X375*$Y375),$D375)*$R375","v":0},{"$f":"MIN((IFERROR(IF(AND($V375<=AC$1,$W375>=AC$1),INDEX(Reliability!H$23:H$50,MATCH($S375,Reliability!$C$23:$C$50,0)),0),0)*IF($T375=\"n/a\",$D375*$Y375,$G375)+IFERROR(IF(AND($V375<=AC$1,$W375>=AC$1),INDEX(Reliability!H$23:H$50,MATCH($T375,Reliability!$C$23:$C$50,0)),0),0)*$H375*$X375*$Y375),$D375)*$R375","v":0},{"$f":"MIN((IFERROR(IF(AND($V375<=AD$1,$W375>=AD$1),INDEX(Reliability!I$23:I$50,MATCH($S375,Reliability!$C$23:$C$50,0)),0),0)*IF($T375=\"n/a\",$D375*$Y375,$G375)+IFERROR(IF(AND($V375<=AD$1,$W375>=AD$1),INDEX(Reliability!I$23:I$50,MATCH($T375,Reliability!$C$23:$C$50,0)),0),0)*$H375*$X375*$Y375),$D375)*$R375","v":0},{"$f":"MIN((IFERROR(IF(AND($V375<=AE$1,$W375>=AE$1),INDEX(Reliability!J$23:J$50,MATCH($S375,Reliability!$C$23:$C$50,0)),0),0)*IF($T375=\"n/a\",$D375*$Y375,$G375)+IFERROR(IF(AND($V375<=AE$1,$W375>=AE$1),INDEX(Reliability!J$23:J$50,MATCH($T375,Reliability!$C$23:$C$50,0)),0),0)*$H375*$X375*$Y375),$D375)*$R375","v":0},{"$f":"MIN((IFERROR(IF(AND($V375<=AF$1,$W375>=AF$1),INDEX(Reliability!K$23:K$50,MATCH($S375,Reliability!$C$23:$C$50,0)),0),0)*IF($T375=\"n/a\",$D375*$Y375,$G375)+IFERROR(IF(AND($V375<=AF$1,$W375>=AF$1),INDEX(Reliability!K$23:K$50,MATCH($T375,Reliability!$C$23:$C$50,0)),0),0)*$H375*$X375*$Y375),$D375)*$R375","v":0},{"$f":"MIN((IFERROR(IF(AND($V375<=AG$1,$W375>=AG$1),INDEX(Reliability!L$23:L$50,MATCH($S375,Reliability!$C$23:$C$50,0)),0),0)*IF($T375=\"n/a\",$D375*$Y375,$G375)+IFERROR(IF(AND($V375<=AG$1,$W375>=AG$1),INDEX(Reliability!L$23:L$50,MATCH($T375,Reliability!$C$23:$C$50,0)),0),0)*$H375*$X375*$Y375),$D375)*$R375","v":0},{"$f":"MIN((IFERROR(IF(AND($V375<=AH$1,$W375>=AH$1),INDEX(Reliability!M$23:M$50,MATCH($S375,Reliability!$C$23:$C$50,0)),0),0)*IF($T375=\"n/a\",$D375*$Y375,$G375)+IFERROR(IF(AND($V375<=AH$1,$W375>=AH$1),INDEX(Reliability!M$23:M$50,MATCH($T375,Reliability!$C$23:$C$50,0)),0),0)*$H375*$X375*$Y375),$D375)*$R375","v":0},{"$f":"MIN((IFERROR(IF(AND($V375<=AI$1,$W375>=AI$1),INDEX(Reliability!N$23:N$50,MATCH($S375,Reliability!$C$23:$C$50,0)),0),0)*IF($T375=\"n/a\",$D375*$Y375,$G375)+IFERROR(IF(AND($V375<=AI$1,$W375>=AI$1),INDEX(Reliability!N$23:N$50,MATCH($T375,Reliability!$C$23:$C$50,0)),0),0)*$H375*$X375*$Y375),$D375)*$R375","v":0},{"$f":"MIN((IFERROR(IF(AND($V375<=AJ$1,$W375>=AJ$1),INDEX(Reliability!O$23:O$50,MATCH($S375,Reliability!$C$23:$C$50,0)),0),0)*IF($T375=\"n/a\",$D375*$Y375,$G375)+IFERROR(IF(AND($V375<=AJ$1,$W375>=AJ$1),INDEX(Reliability!O$23:O$50,MATCH($T375,Reliability!$C$23:$C$50,0)),0),0)*$H375*$X375*$Y375),$D375)*$R375","v":0},{"$f":"MIN((IFERROR(IF(AND($V375<=AK$1,$W375>=AK$1),INDEX(Reliability!P$23:P$50,MATCH($S375,Reliability!$C$23:$C$50,0)),0),0)*IF($T375=\"n/a\",$D375*$Y375,$G375)+IFERROR(IF(AND($V375<=AK$1,$W375>=AK$1),INDEX(Reliability!P$23:P$50,MATCH($T375,Reliability!$C$23:$C$50,0)),0),0)*$H375*$X375*$Y375),$D375)*$R375","v":0}]
[null,{"$f":"unique_contracts!B377","v":0},{"$f":"unique_contracts!D377","v":0},{"$f":"unique_contracts!J377","v":0},{"$f":"unique_contracts!M377","v":0},{"$f":"unique_contracts!N377","v":0},{"$f":"unique_contracts!P377","v":0},{"$f":"unique_contracts!R377","v":0},{"$f":"unique_contracts!V377","v":0},{"$f":"unique_contracts!AB377","v":0},{"$f":"unique_contracts!AM377","v":0},{"$f":"unique_contracts!AN377","v":0},{"$f":"unique_contracts!AO377","v":0},{"$f":"unique_contracts!AP377","v":0},{"$f":"unique_contracts!AQ377","v":0},{"$f":"unique_contracts!AR377","v":0},{"$f":"unique_contracts!BP377","v":0},0,{"$f":"IFERROR(IF(AND(I376>0,E376=\"NotHybrid\"),_xlfn.CONCAT(MAX(MIN(ROUNDDOWN(I376/D376,0),8),4),INDEX(resources!$G:$G,MATCH(B376,resources!$A:$A,0))),INDEX(resources!$G:$G,MATCH(B376,resources!$A:$A,0))),\"n/a\")","v":"n/a"},"n/a","n/a",0,0,1,1,{"$f":"MIN((IFERROR(IF(AND($V376<=Z$1,$W376>=Z$1),INDEX(Reliability!E$23:E$50,MATCH($S376,Reliability!$C$23:$C$50,0)),0),0)*IF($T376=\"n/a\",$D376*$Y376,$G376)+IFERROR(IF(AND($V376<=Z$1,$W376>=Z$1),INDEX(Reliability!E$23:E$50,MATCH($T376,Reliability!$C$23:$C$50,0)),0),0)*$H376*$X376*$Y376),$D376)*$R376","v":0},{"$f":"MIN((IFERROR(IF(AND($V376<=AA$1,$W376>=AA$1),INDEX(Reliability!F$23:F$50,MATCH($S376,Reliability!$C$23:$C$50,0)),0),0)*IF($T376=\"n/a\",$D376*$Y376,$G376)+IFERROR(IF(AND($V376<=AA$1,$W376>=AA$1),INDEX(Reliability!F$23:F$50,MATCH($T376,Reliability!$C$23:$C$50,0)),0),0)*$H376*$X376*$Y376),$D376)*$R376","v":0},{"$f":"MIN((IFERROR(IF(AND($V376<=AB$1,$W376>=AB$1),INDEX(Reliability!G$23:G$50,MATCH($S376,Reliability!$C$23:$C$50,0)),0),0)*IF($T376=\"n/a\",$D376*$Y376,$G376)+IFERROR(IF(AND($V376<=AB$1,$W376>=AB$1),INDEX(Reliability!G$23:G$50,MATCH($T376,Reliability!$C$23:$C$50,0)),0),0)*$H376*$X376*$Y376),$D376)*$R376","v":0},{"$f":"MIN((IFERROR(IF(AND($V376<=AC$1,$W376>=AC$1),INDEX(Reliability!H$23:H$50,MATCH($S376,Reliability!$C$23:$C$50,0)),0),0)*IF($T376=\"n/a\",$D376*$Y376,$G376)+IFERROR(IF(AND($V376<=AC$1,$W376>=AC$1),INDEX(Reliability!H$23:H$50,MATCH($T376,Reliability!$C$23:$C$50,0)),0),0)*$H376*$X376*$Y376),$D376)*$R376","v":0},{"$f":"MIN((IFERROR(IF(AND($V376<=AD$1,$W376>=AD$1),INDEX(Reliability!I$23:I$50,MATCH($S376,Reliability!$C$23:$C$50,0)),0),0)*IF($T376=\"n/a\",$D376*$Y376,$G376)+IFERROR(IF(AND($V376<=AD$1,$W376>=AD$1),INDEX(Reliability!I$23:I$50,MATCH($T376,Reliability!$C$23:$C$50,0)),0),0)*$H376*$X376*$Y376),$D376)*$R376","v":0},{"$f":"MIN((IFERROR(IF(AND($V376<=AE$1,$W376>=AE$1),INDEX(Reliability!J$23:J$50,MATCH($S376,Reliability!$C$23:$C$50,0)),0),0)*IF($T376=\"n/a\",$D376*$Y376,$G376)+IFERROR(IF(AND($V376<=AE$1,$W376>=AE$1),INDEX(Reliability!J$23:J$50,MATCH($T376,Reliability!$C$23:$C$50,0)),0),0)*$H376*$X376*$Y376),$D376)*$R376","v":0},{"$f":"MIN((IFERROR(IF(AND($V376<=AF$1,$W376>=AF$1),INDEX(Reliability!K$23:K$50,MATCH($S376,Reliability!$C$23:$C$50,0)),0),0)*IF($T376=\"n/a\",$D376*$Y376,$G376)+IFERROR(IF(AND($V376<=AF$1,$W376>=AF$1),INDEX(Reliability!K$23:K$50,MATCH($T376,Reliability!$C$23:$C$50,0)),0),0)*$H376*$X376*$Y376),$D376)*$R376","v":0},{"$f":"MIN((IFERROR(IF(AND($V376<=AG$1,$W376>=AG$1),INDEX(Reliability!L$23:L$50,MATCH($S376,Reliability!$C$23:$C$50,0)),0),0)*IF($T376=\"n/a\",$D376*$Y376,$G376)+IFERROR(IF(AND($V376<=AG$1,$W376>=AG$1),INDEX(Reliability!L$23:L$50,MATCH($T376,Reliability!$C$23:$C$50,0)),0),0)*$H376*$X376*$Y376),$D376)*$R376","v":0},{"$f":"MIN((IFERROR(IF(AND($V376<=AH$1,$W376>=AH$1),INDEX(Reliability!M$23:M$50,MATCH($S376,Reliability!$C$23:$C$50,0)),0),0)*IF($T376=\"n/a\",$D376*$Y376,$G376)+IFERROR(IF(AND($V376<=AH$1,$W376>=AH$1),INDEX(Reliability!M$23:M$50,MATCH($T376,Reliability!$C$23:$C$50,0)),0),0)*$H376*$X376*$Y376),$D376)*$R376","v":0},{"$f":"MIN((IFERROR(IF(AND($V376<=AI$1,$W376>=AI$1),INDEX(Reliability!N$23:N$50,MATCH($S376,Reliability!$C$23:$C$50,0)),0),0)*IF($T376=\"n/a\",$D376*$Y376,$G376)+IFERROR(IF(AND($V376<=AI$1,$W376>=AI$1),INDEX(Reliability!N$23:N$50,MATCH($T376,Reliability!$C$23:$C$50,0)),0),0)*$H376*$X376*$Y376),$D376)*$R376","v":0},{"$f":"MIN((IFERROR(IF(AND($V376<=AJ$1,$W376>=AJ$1),INDEX(Reliability!O$23:O$50,MATCH($S376,Reliability!$C$23:$C$50,0)),0),0)*IF($T376=\"n/a\",$D376*$Y376,$G376)+IFERROR(IF(AND($V376<=AJ$1,$W376>=AJ$1),INDEX(Reliability!O$23:O$50,MATCH($T376,Reliability!$C$23:$C$50,0)),0),0)*$H376*$X376*$Y376),$D376)*$R376","v":0},{"$f":"MIN((IFERROR(IF(AND($V376<=AK$1,$W376>=AK$1),INDEX(Reliability!P$23:P$50,MATCH($S376,Reliability!$C$23:$C$50,0)),0),0)*IF($T376=\"n/a\",$D376*$Y376,$G376)+IFERROR(IF(AND($V376<=AK$1,$W376>=AK$1),INDEX(Reliability!P$23:P$50,MATCH($T376,Reliability!$C$23:$C$50,0)),0),0)*$H376*$X376*$Y376),$D376)*$R376","v":0}]
[null,{"$f":"unique_contracts!B378","v":0},{"$f":"unique_contracts!D378","v":0},{"$f":"unique_contracts!J378","v":0},{"$f":"unique_contracts!M378","v":0},{"$f":"unique_contracts!N378","v":0},{"$f":"unique_contracts!P378","v":0},{"$f":"unique_contracts!R378","v":0},{"$f":"unique_contracts!V378","v":0},{"$f":"unique_contracts!AB378","v":0},{"$f":"unique_contracts!AM378","v":0},{"$f":"unique_contracts!AN378","v":0},{"$f":"unique_contracts!AO378","v":0},{"$f":"unique_contracts!AP378","v":0},{"$f":"unique_contracts!AQ378","v":0},{"$f":"unique_contracts!AR378","v":0},{"$f":"unique_contracts!BP378","v":0},0,{"$f":"IFERROR(IF(AND(I377>0,E377=\"NotHybrid\"),_xlfn.CONCAT(MAX(MIN(ROUNDDOWN(I377/D377,0),8),4),INDEX(resources!$G:$G,MATCH(B377,resources!$A:$A,0))),INDEX(resources!$G:$G,MATCH(B377,resources!$A:$A,0))),\"n/a\")","v":"n/a"},"n/a","n/a",0,0,1,1,{"$f":"MIN((IFERROR(IF(AND($V377<=Z$1,$W377>=Z$1),INDEX(Reliability!E$23:E$50,MATCH($S377,Reliability!$C$23:$C$50,0)),0),0)*IF($T377=\"n/a\",$D377*$Y377,$G377)+IFERROR(IF(AND($V377<=Z$1,$W377>=Z$1),INDEX(Reliability!E$23:E$50,MATCH($T377,Reliability!$C$23:$C$50,0)),0),0)*$H377*$X377*$Y377),$D377)*$R377","v":0},{"$f":"MIN((IFERROR(IF(AND($V377<=AA$1,$W377>=AA$1),INDEX(Reliability!F$23:F$50,MATCH($S377,Reliability!$C$23:$C$50,0)),0),0)*IF($T377=\"n/a\",$D377*$Y377,$G377)+IFERROR(IF(AND($V377<=AA$1,$W377>=AA$1),INDEX(Reliability!F$23:F$50,MATCH($T377,Reliability!$C$23:$C$50,0)),0),0)*$H377*$X377*$Y377),$D377)*$R377","v":0},{"$f":"MIN((IFERROR(IF(AND($V377<=AB$1,$W377>=AB$1),INDEX(Reliability!G$23:G$50,MATCH($S377,Reliability!$C$23:$C$50,0)),0),0)*IF($T377=\"n/a\",$D377*$Y377,$G377)+IFERROR(IF(AND($V377<=AB$1,$W377>=AB$1),INDEX(Reliability!G$23:G$50,MATCH($T377,Reliability!$C$23:$C$50,0)),0),0)*$H377*$X377*$Y377),$D377)*$R377","v":0},{"$f":"MIN((IFERROR(IF(AND($V377<=AC$1,$W377>=AC$1),INDEX(Reliability!H$23:H$50,MATCH($S377,Reliability!$C$23:$C$50,0)),0),0)*IF($T377=\"n/a\",$D377*$Y377,$G377)+IFERROR(IF(AND($V377<=AC$1,$W377>=AC$1),INDEX(Reliability!H$23:H$50,MATCH($T377,Reliability!$C$23:$C$50,0)),0),0)*$H377*$X377*$Y377),$D377)*$R377","v":0},{"$f":"MIN((IFERROR(IF(AND($V377<=AD$1,$W377>=AD$1),INDEX(Reliability!I$23:I$50,MATCH($S377,Reliability!$C$23:$C$50,0)),0),0)*IF($T377=\"n/a\",$D377*$Y377,$G377)+IFERROR(IF(AND($V377<=AD$1,$W377>=AD$1),INDEX(Reliability!I$23:I$50,MATCH($T377,Reliability!$C$23:$C$50,0)),0),0)*$H377*$X377*$Y377),$D377)*$R377","v":0},{"$f":"MIN((IFERROR(IF(AND($V377<=AE$1,$W377>=AE$1),INDEX(Reliability!J$23:J$50,MATCH($S377,Reliability!$C$23:$C$50,0)),0),0)*IF($T377=\"n/a\",$D377*$Y377,$G377)+IFERROR(IF(AND($V377<=AE$1,$W377>=AE$1),INDEX(Reliability!J$23:J$50,MATCH($T377,Reliability!$C$23:$C$50,0)),0),0)*$H377*$X377*$Y377),$D377)*$R377","v":0},{"$f":"MIN((IFERROR(IF(AND($V377<=AF$1,$W377>=AF$1),INDEX(Reliability!K$23:K$50,MATCH($S377,Reliability!$C$23:$C$50,0)),0),0)*IF($T377=\"n/a\",$D377*$Y377,$G377)+IFERROR(IF(AND($V377<=AF$1,$W377>=AF$1),INDEX(Reliability!K$23:K$50,MATCH($T377,Reliability!$C$23:$C$50,0)),0),0)*$H377*$X377*$Y377),$D377)*$R377","v":0},{"$f":"MIN((IFERROR(IF(AND($V377<=AG$1,$W377>=AG$1),INDEX(Reliability!L$23:L$50,MATCH($S377,Reliability!$C$23:$C$50,0)),0),0)*IF($T377=\"n/a\",$D377*$Y377,$G377)+IFERROR(IF(AND($V377<=AG$1,$W377>=AG$1),INDEX(Reliability!L$23:L$50,MATCH($T377,Reliability!$C$23:$C$50,0)),0),0)*$H377*$X377*$Y377),$D377)*$R377","v":0},{"$f":"MIN((IFERROR(IF(AND($V377<=AH$1,$W377>=AH$1),INDEX(Reliability!M$23:M$50,MATCH($S377,Reliability!$C$23:$C$50,0)),0),0)*IF($T377=\"n/a\",$D377*$Y377,$G377)+IFERROR(IF(AND($V377<=AH$1,$W377>=AH$1),INDEX(Reliability!M$23:M$50,MATCH($T377,Reliability!$C$23:$C$50,0)),0),0)*$H377*$X377*$Y377),$D377)*$R377","v":0},{"$f":"MIN((IFERROR(IF(AND($V377<=AI$1,$W377>=AI$1),INDEX(Reliability!N$23:N$50,MATCH($S377,Reliability!$C$23:$C$50,0)),0),0)*IF($T377=\"n/a\",$D377*$Y377,$G377)+IFERROR(IF(AND($V377<=AI$1,$W377>=AI$1),INDEX(Reliability!N$23:N$50,MATCH($T377,Reliability!$C$23:$C$50,0)),0),0)*$H377*$X377*$Y377),$D377)*$R377","v":0},{"$f":"MIN((IFERROR(IF(AND($V377<=AJ$1,$W377>=AJ$1),INDEX(Reliability!O$23:O$50,MATCH($S377,Reliability!$C$23:$C$50,0)),0),0)*IF($T377=\"n/a\",$D377*$Y377,$G377)+IFERROR(IF(AND($V377<=AJ$1,$W377>=AJ$1),INDEX(Reliability!O$23:O$50,MATCH($T377,Reliability!$C$23:$C$50,0)),0),0)*$H377*$X377*$Y377),$D377)*$R377","v":0},{"$f":"MIN((IFERROR(IF(AND($V377<=AK$1,$W377>=AK$1),INDEX(Reliability!P$23:P$50,MATCH($S377,Reliability!$C$23:$C$50,0)),0),0)*IF($T377=\"n/a\",$D377*$Y377,$G377)+IFERROR(IF(AND($V377<=AK$1,$W377>=AK$1),INDEX(Reliability!P$23:P$50,MATCH($T377,Reliability!$C$23:$C$50,0)),0),0)*$H377*$X377*$Y377),$D377)*$R377","v":0}]
[null,{"$f":"unique_contracts!B379","v":0},{"$f":"unique_contracts!D379","v":0},{"$f":"unique_contracts!J379","v":0},{"$f":"unique_contracts!M379","v":0},{"$f":"unique_contracts!N379","v":0},{"$f":"unique_contracts!P379","v":0},{"$f":"unique_contracts!R379","v":0},{"$f":"unique_contracts!V379","v":0},{"$f":"unique_contracts!AB379","v":0},{"$f":"unique_contracts!AM379","v":0},{"$f":"unique_contracts!AN379","v":0},{"$f":"unique_contracts!AO379","v":0},{"$f":"unique_contracts!AP379","v":0},{"$f":"unique_contracts!AQ379","v":0},{"$f":"unique_contracts!AR379","v":0},{"$f":"unique_contracts!BP379","v":0},0,{"$f":"IFERROR(IF(AND(I378>0,E378=\"NotHybrid\"),_xlfn.CONCAT(MAX(MIN(ROUNDDOWN(I378/D378,0),8),4),INDEX(resources!$G:$G,MATCH(B378,resources!$A:$A,0))),INDEX(resources!$G:$G,MATCH(B378,resources!$A:$A,0))),\"n/a\")","v":"n/a"},"n/a","n/a",0,0,1,1,{"$f":"MIN((IFERROR(IF(AND($V378<=Z$1,$W378>=Z$1),INDEX(Reliability!E$23:E$50,MATCH($S378,Reliability!$C$23:$C$50,0)),0),0)*IF($T378=\"n/a\",$D378*$Y378,$G378)+IFERROR(IF(AND($V378<=Z$1,$W378>=Z$1),INDEX(Reliability!E$23:E$50,MATCH($T378,Reliability!$C$23:$C$50,0)),0),0)*$H378*$X378*$Y378),$D378)*$R378","v":0},{"$f":"MIN((IFERROR(IF(AND($V378<=AA$1,$W378>=AA$1),INDEX(Reliability!F$23:F$50,MATCH($S378,Reliability!$C$23:$C$50,0)),0),0)*IF($T378=\"n/a\",$D378*$Y378,$G378)+IFERROR(IF(AND($V378<=AA$1,$W378>=AA$1),INDEX(Reliability!F$23:F$50,MATCH($T378,Reliability!$C$23:$C$50,0)),0),0)*$H378*$X378*$Y378),$D378)*$R378","v":0},{"$f":"MIN((IFERROR(IF(AND($V378<=AB$1,$W378>=AB$1),INDEX(Reliability!G$23:G$50,MATCH($S378,Reliability!$C$23:$C$50,0)),0),0)*IF($T378=\"n/a\",$D378*$Y378,$G378)+IFERROR(IF(AND($V378<=AB$1,$W378>=AB$1),INDEX(Reliability!G$23:G$50,MATCH($T378,Reliability!$C$23:$C$50,0)),0),0)*$H378*$X378*$Y378),$D378)*$R378","v":0},{"$f":"MIN((IFERROR(IF(AND($V378<=AC$1,$W378>=AC$1),INDEX(Reliability!H$23:H$50,MATCH($S378,Reliability!$C$23:$C$50,0)),0),0)*IF($T378=\"n/a\",$D378*$Y378,$G378)+IFERROR(IF(AND($V378<=AC$1,$W378>=AC$1),INDEX(Reliability!H$23:H$50,MATCH($T378,Reliability!$C$23:$C$50,0)),0),0)*$H378*$X378*$Y378),$D378)*$R378","v":0},{"$f":"MIN((IFERROR(IF(AND($V378<=AD$1,$W378>=AD$1),INDEX(Reliability!I$23:I$50,MATCH($S378,Reliability!$C$23:$C$50,0)),0),0)*IF($T378=\"n/a\",$D378*$Y378,$G378)+IFERROR(IF(AND($V378<=AD$1,$W378>=AD$1),INDEX(Reliability!I$23:I$50,MATCH($T378,Reliability!$C$23:$C$50,0)),0),0)*$H378*$X378*$Y378),$D378)*$R378","v":0},{"$f":"MIN((IFERROR(IF(AND($V378<=AE$1,$W378>=AE$1),INDEX(Reliability!J$23:J$50,MATCH($S378,Reliability!$C$23:$C$50,0)),0),0)*IF($T378=\"n/a\",$D378*$Y378,$G378)+IFERROR(IF(AND($V378<=AE$1,$W378>=AE$1),INDEX(Reliability!J$23:J$50,MATCH($T378,Reliability!$C$23:$C$50,0)),0),0)*$H378*$X378*$Y378),$D378)*$R378","v":0},{"$f":"MIN((IFERROR(IF(AND($V378<=AF$1,$W378>=AF$1),INDEX(Reliability!K$23:K$50,MATCH($S378,Reliability!$C$23:$C$50,0)),0),0)*IF($T378=\"n/a\",$D378*$Y378,$G378)+IFERROR(IF(AND($V378<=AF$1,$W378>=AF$1),INDEX(Reliability!K$23:K$50,MATCH($T378,Reliability!$C$23:$C$50,0)),0),0)*$H378*$X378*$Y378),$D378)*$R378","v":0},{"$f":"MIN((IFERROR(IF(AND($V378<=AG$1,$W378>=AG$1),INDEX(Reliability!L$23:L$50,MATCH($S378,Reliability!$C$23:$C$50,0)),0),0)*IF($T378=\"n/a\",$D378*$Y378,$G378)+IFERROR(IF(AND($V378<=AG$1,$W378>=AG$1),INDEX(Reliability!L$23:L$50,MATCH($T378,Reliability!$C$23:$C$50,0)),0),0)*$H378*$X378*$Y378),$D378)*$R378","v":0},{"$f":"MIN((IFERROR(IF(AND($V378<=AH$1,$W378>=AH$1),INDEX(Reliability!M$23:M$50,MATCH($S378,Reliability!$C$23:$C$50,0)),0),0)*IF($T378=\"n/a\",$D378*$Y378,$G378)+IFERROR(IF(AND($V378<=AH$1,$W378>=AH$1),INDEX(Reliability!M$23:M$50,MATCH($T378,Reliability!$C$23:$C$50,0)),0),0)*$H378*$X378*$Y378),$D378)*$R378","v":0},{"$f":"MIN((IFERROR(IF(AND($V378<=AI$1,$W378>=AI$1),INDEX(Reliability!N$23:N$50,MATCH($S378,Reliability!$C$23:$C$50,0)),0),0)*IF($T378=\"n/a\",$D378*$Y378,$G378)+IFERROR(IF(AND($V378<=AI$1,$W378>=AI$1),INDEX(Reliability!N$23:N$50,MATCH($T378,Reliability!$C$23:$C$50,0)),0),0)*$H378*$X378*$Y378),$D378)*$R378","v":0},{"$f":"MIN((IFERROR(IF(AND($V378<=AJ$1,$W378>=AJ$1),INDEX(Reliability!O$23:O$50,MATCH($S378,Reliability!$C$23:$C$50,0)),0),0)*IF($T378=\"n/a\",$D378*$Y378,$G378)+IFERROR(IF(AND($V378<=AJ$1,$W378>=AJ$1),INDEX(Reliability!O$23:O$50,MATCH($T378,Reliability!$C$23:$C$50,0)),0),0)*$H378*$X378*$Y378),$D378)*$R378","v":0},{"$f":"MIN((IFERROR(IF(AND($V378<=AK$1,$W378>=AK$1),INDEX(Reliability!P$23:P$50,MATCH($S378,Reliability!$C$23:$C$50,0)),0),0)*IF($T378=\"n/a\",$D378*$Y378,$G378)+IFERROR(IF(AND($V378<=AK$1,$W378>=AK$1),INDEX(Reliability!P$23:P$50,MATCH($T378,Reliability!$C$23:$C$50,0)),0),0)*$H378*$X378*$Y378),$D378)*$R378","v":0}]
[null,{"$f":"unique_contracts!B380","v":0},{"$f":"unique_contracts!D380","v":0},{"$f":"unique_contracts!J380","v":0},{"$f":"unique_contracts!M380","v":0},{"$f":"unique_contracts!N380","v":0},{"$f":"unique_contracts!P380","v":0},{"$f":"unique_contracts!R380","v":0},{"$f":"unique_contracts!V380","v":0},{"$f":"unique_contracts!AB380","v":0},{"$f":"unique_contracts!AM380","v":0},{"$f":"unique_contracts!AN380","v":0},{"$f":"unique_contracts!AO380","v":0},{"$f":"unique_contracts!AP380","v":0},{"$f":"unique_contracts!AQ380","v":0},{"$f":"unique_contracts!AR380","v":0},{"$f":"unique_contracts!BP380","v":0},0,{"$f":"IFERROR(IF(AND(I379>0,E379=\"NotHybrid\"),_xlfn.CONCAT(MAX(MIN(ROUNDDOWN(I379/D379,0),8),4),INDEX(resources!$G:$G,MATCH(B379,resources!$A:$A,0))),INDEX(resources!$G:$G,MATCH(B379,resources!$A:$A,0))),\"n/a\")","v":"n/a"},"n/a","n/a",0,0,1,1,{"$f":"MIN((IFERROR(IF(AND($V379<=Z$1,$W379>=Z$1),INDEX(Reliability!E$23:E$50,MATCH($S379,Reliability!$C$23:$C$50,0)),0),0)*IF($T379=\"n/a\",$D379*$Y379,$G379)+IFERROR(IF(AND($V379<=Z$1,$W379>=Z$1),INDEX(Reliability!E$23:E$50,MATCH($T379,Reliability!$C$23:$C$50,0)),0),0)*$H379*$X379*$Y379),$D379)*$R379","v":0},{"$f":"MIN((IFERROR(IF(AND($V379<=AA$1,$W379>=AA$1),INDEX(Reliability!F$23:F$50,MATCH($S379,Reliability!$C$23:$C$50,0)),0),0)*IF($T379=\"n/a\",$D379*$Y379,$G379)+IFERROR(IF(AND($V379<=AA$1,$W379>=AA$1),INDEX(Reliability!F$23:F$50,MATCH($T379,Reliability!$C$23:$C$50,0)),0),0)*$H379*$X379*$Y379),$D379)*$R379","v":0},{"$f":"MIN((IFERROR(IF(AND($V379<=AB$1,$W379>=AB$1),INDEX(Reliability!G$23:G$50,MATCH($S379,Reliability!$C$23:$C$50,0)),0),0)*IF($T379=\"n/a\",$D379*$Y379,$G379)+IFERROR(IF(AND($V379<=AB$1,$W379>=AB$1),INDEX(Reliability!G$23:G$50,MATCH($T379,Reliability!$C$23:$C$50,0)),0),0)*$H379*$X379*$Y379),$D379)*$R379","v":0},{"$f":"MIN((IFERROR(IF(AND($V379<=AC$1,$W379>=AC$1),INDEX(Reliability!H$23:H$50,MATCH($S379,Reliability!$C$23:$C$50,0)),0),0)*IF($T379=\"n/a\",$D379*$Y379,$G379)+IFERROR(IF(AND($V379<=AC$1,$W379>=AC$1),INDEX(Reliability!H$23:H$50,MATCH($T379,Reliability!$C$23:$C$50,0)),0),0)*$H379*$X379*$Y379),$D379)*$R379","v":0},{"$f":"MIN((IFERROR(IF(AND($V379<=AD$1,$W379>=AD$1),INDEX(Reliability!I$23:I$50,MATCH($S379,Reliability!$C$23:$C$50,0)),0),0)*IF($T379=\"n/a\",$D379*$Y379,$G379)+IFERROR(IF(AND($V379<=AD$1,$W379>=AD$1),INDEX(Reliability!I$23:I$50,MATCH($T379,Reliability!$C$23:$C$50,0)),0),0)*$H379*$X379*$Y379),$D379)*$R379","v":0},{"$f":"MIN((IFERROR(IF(AND($V379<=AE$1,$W379>=AE$1),INDEX(Reliability!J$23:J$50,MATCH($S379,Reliability!$C$23:$C$50,0)),0),0)*IF($T379=\"n/a\",$D379*$Y379,$G379)+IFERROR(IF(AND($V379<=AE$1,$W379>=AE$1),INDEX(Reliability!J$23:J$50,MATCH($T379,Reliability!$C$23:$C$50,0)),0),0)*$H379*$X379*$Y379),$D379)*$R379","v":0},{"$f":"MIN((IFERROR(IF(AND($V379<=AF$1,$W379>=AF$1),INDEX(Reliability!K$23:K$50,MATCH($S379,Reliability!$C$23:$C$50,0)),0),0)*IF($T379=\"n/a\",$D379*$Y379,$G379)+IFERROR(IF(AND($V379<=AF$1,$W379>=AF$1),INDEX(Reliability!K$23:K$50,MATCH($T379,Reliability!$C$23:$C$50,0)),0),0)*$H379*$X379*$Y379),$D379)*$R379","v":0},{"$f":"MIN((IFERROR(IF(AND($V379<=AG$1,$W379>=AG$1),INDEX(Reliability!L$23:L$50,MATCH($S379,Reliability!$C$23:$C$50,0)),0),0)*IF($T379=\"n/a\",$D379*$Y379,$G379)+IFERROR(IF(AND($V379<=AG$1,$W379>=AG$1),INDEX(Reliability!L$23:L$50,MATCH($T379,Reliability!$C$23:$C$50,0)),0),0)*$H379*$X379*$Y379),$D379)*$R379","v":0},{"$f":"MIN((IFERROR(IF(AND($V379<=AH$1,$W379>=AH$1),INDEX(Reliability!M$23:M$50,MATCH($S379,Reliability!$C$23:$C$50,0)),0),0)*IF($T379=\"n/a\",$D379*$Y379,$G379)+IFERROR(IF(AND($V379<=AH$1,$W379>=AH$1),INDEX(Reliability!M$23:M$50,MATCH($T379,Reliability!$C$23:$C$50,0)),0),0)*$H379*$X379*$Y379),$D379)*$R379","v":0},{"$f":"MIN((IFERROR(IF(AND($V379<=AI$1,$W379>=AI$1),INDEX(Reliability!N$23:N$50,MATCH($S379,Reliability!$C$23:$C$50,0)),0),0)*IF($T379=\"n/a\",$D379*$Y379,$G379)+IFERROR(IF(AND($V379<=AI$1,$W379>=AI$1),INDEX(Reliability!N$23:N$50,MATCH($T379,Reliability!$C$23:$C$50,0)),0),0)*$H379*$X379*$Y379),$D379)*$R379","v":0},{"$f":"MIN((IFERROR(IF(AND($V379<=AJ$1,$W379>=AJ$1),INDEX(Reliability!O$23:O$50,MATCH($S379,Reliability!$C$23:$C$50,0)),0),0)*IF($T379=\"n/a\",$D379*$Y379,$G379)+IFERROR(IF(AND($V379<=AJ$1,$W379>=AJ$1),INDEX(Reliability!O$23:O$50,MATCH($T379,Reliability!$C$23:$C$50,0)),0),0)*$H379*$X379*$Y379),$D379)*$R379","v":0},{"$f":"MIN((IFERROR(IF(AND($V379<=AK$1,$W379>=AK$1),INDEX(Reliability!P$23:P$50,MATCH($S379,Reliability!$C$23:$C$50,0)),0),0)*IF($T379=\"n/a\",$D379*$Y379,$G379)+IFERROR(IF(AND($V379<=AK$1,$W379>=AK$1),INDEX(Reliability!P$23:P$50,MATCH($T379,Reliability!$C$23:$C$50,0)),0),0)*$H379*$X379*$Y379),$D379)*$R379","v":0}]
[null,{"$f":"unique_contracts!B381","v":0},{"$f":"unique_contracts!D381","v":0},{"$f":"unique_contracts!J381","v":0},{"$f":"unique_contracts!M381","v":0},{"$f":"unique_contracts!N381","v":0},{"$f":"unique_contracts!P381","v":0},{"$f":"unique_contracts!R381","v":0},{"$f":"unique_contracts!V381","v":0},{"$f":"unique_contracts!AB381","v":0},{"$f":"unique_contracts!AM381","v":0},{"$f":"unique_contracts!AN381","v":0},{"$f":"unique_contracts!AO381","v":0},{"$f":"unique_contracts!AP381","v":0},{"$f":"unique_contracts!AQ381","v":0},{"$f":"unique_contracts!AR381","v":0},{"$f":"unique_contracts!BP381","v":0},0,{"$f":"IFERROR(IF(AND(I380>0,E380=\"NotHybrid\"),_xlfn.CONCAT(MAX(MIN(ROUNDDOWN(I380/D380,0),8),4),INDEX(resources!$G:$G,MATCH(B380,resources!$A:$A,0))),INDEX(resources!$G:$G,MATCH(B380,resources!$A:$A,0))),\"n/a\")","v":"n/a"},"n/a","n/a",0,0,1,1,{"$f":"MIN((IFERROR(IF(AND($V380<=Z$1,$W380>=Z$1),INDEX(Reliability!E$23:E$50,MATCH($S380,Reliability!$C$23:$C$50,0)),0),0)*IF($T380=\"n/a\",$D380*$Y380,$G380)+IFERROR(IF(AND($V380<=Z$1,$W380>=Z$1),INDEX(Reliability!E$23:E$50,MATCH($T380,Reliability!$C$23:$C$50,0)),0),0)*$H380*$X380*$Y380),$D380)*$R380","v":0},{"$f":"MIN((IFERROR(IF(AND($V380<=AA$1,$W380>=AA$1),INDEX(Reliability!F$23:F$50,MATCH($S380,Reliability!$C$23:$C$50,0)),0),0)*IF($T380=\"n/a\",$D380*$Y380,$G380)+IFERROR(IF(AND($V380<=AA$1,$W380>=AA$1),INDEX(Reliability!F$23:F$50,MATCH($T380,Reliability!$C$23:$C$50,0)),0),0)*$H380*$X380*$Y380),$D380)*$R380","v":0},{"$f":"MIN((IFERROR(IF(AND($V380<=AB$1,$W380>=AB$1),INDEX(Reliability!G$23:G$50,MATCH($S380,Reliability!$C$23:$C$50,0)),0),0)*IF($T380=\"n/a\",$D380*$Y380,$G380)+IFERROR(IF(AND($V380<=AB$1,$W380>=AB$1),INDEX(Reliability!G$23:G$50,MATCH($T380,Reliability!$C$23:$C$50,0)),0),0)*$H380*$X380*$Y380),$D380)*$R380","v":0},{"$f":"MIN((IFERROR(IF(AND($V380<=AC$1,$W380>=AC$1),INDEX(Reliability!H$23:H$50,MATCH($S380,Reliability!$C$23:$C$50,0)),0),0)*IF($T380=\"n/a\",$D380*$Y380,$G380)+IFERROR(IF(AND($V380<=AC$1,$W380>=AC$1),INDEX(Reliability!H$23:H$50,MATCH($T380,Reliability!$C$23:$C$50,0)),0),0)*$H380*$X380*$Y380),$D380)*$R380","v":0},{"$f":"MIN((IFERROR(IF(AND($V380<=AD$1,$W380>=AD$1),INDEX(Reliability!I$23:I$50,MATCH($S380,Reliability!$C$23:$C$50,0)),0),0)*IF($T380=\"n/a\",$D380*$Y380,$G380)+IFERROR(IF(AND($V380<=AD$1,$W380>=AD$1),INDEX(Reliability!I$23:I$50,MATCH($T380,Reliability!$C$23:$C$50,0)),0),0)*$H380*$X380*$Y380),$D380)*$R380","v":0},{"$f":"MIN((IFERROR(IF(AND($V380<=AE$1,$W380>=AE$1),INDEX(Reliability!J$23:J$50,MATCH($S380,Reliability!$C$23:$C$50,0)),0),0)*IF($T380=\"n/a\",$D380*$Y380,$G380)+IFERROR(IF(AND($V380<=AE$1,$W380>=AE$1),INDEX(Reliability!J$23:J$50,MATCH($T380,Reliability!$C$23:$C$50,0)),0),0)*$H380*$X380*$Y380),$D380)*$R380","v":0},{"$f":"MIN((IFERROR(IF(AND($V380<=AF$1,$W380>=AF$1),INDEX(Reliability!K$23:K$50,MATCH($S380,Reliability!$C$23:$C$50,0)),0),0)*IF($T380=\"n/a\",$D380*$Y380,$G380)+IFERROR(IF(AND($V380<=AF$1,$W380>=AF$1),INDEX(Reliability!K$23:K$50,MATCH($T380,Reliability!$C$23:$C$50,0)),0),0)*$H380*$X380*$Y380),$D380)*$R380","v":0},{"$f":"MIN((IFERROR(IF(AND($V380<=AG$1,$W380>=AG$1),INDEX(Reliability!L$23:L$50,MATCH($S380,Reliability!$C$23:$C$50,0)),0),0)*IF($T380=\"n/a\",$D380*$Y380,$G380)+IFERROR(IF(AND($V380<=AG$1,$W380>=AG$1),INDEX(Reliability!L$23:L$50,MATCH($T380,Reliability!$C$23:$C$50,0)),0),0)*$H380*$X380*$Y380),$D380)*$R380","v":0},{"$f":"MIN((IFERROR(IF(AND($V380<=AH$1,$W380>=AH$1),INDEX(Reliability!M$23:M$50,MATCH($S380,Reliability!$C$23:$C$50,0)),0),0)*IF($T380=\"n/a\",$D380*$Y380,$G380)+IFERROR(IF(AND($V380<=AH$1,$W380>=AH$1),INDEX(Reliability!M$23:M$50,MATCH($T380,Reliability!$C$23:$C$50,0)),0),0)*$H380*$X380*$Y380),$D380)*$R380","v":0},{"$f":"MIN((IFERROR(IF(AND($V380<=AI$1,$W380>=AI$1),INDEX(Reliability!N$23:N$50,MATCH($S380,Reliability!$C$23:$C$50,0)),0),0)*IF($T380=\"n/a\",$D380*$Y380,$G380)+IFERROR(IF(AND($V380<=AI$1,$W380>=AI$1),INDEX(Reliability!N$23:N$50,MATCH($T380,Reliability!$C$23:$C$50,0)),0),0)*$H380*$X380*$Y380),$D380)*$R380","v":0},{"$f":"MIN((IFERROR(IF(AND($V380<=AJ$1,$W380>=AJ$1),INDEX(Reliability!O$23:O$50,MATCH($S380,Reliability!$C$23:$C$50,0)),0),0)*IF($T380=\"n/a\",$D380*$Y380,$G380)+IFERROR(IF(AND($V380<=AJ$1,$W380>=AJ$1),INDEX(Reliability!O$23:O$50,MATCH($T380,Reliability!$C$23:$C$50,0)),0),0)*$H380*$X380*$Y380),$D380)*$R380","v":0},{"$f":"MIN((IFERROR(IF(AND($V380<=AK$1,$W380>=AK$1),INDEX(Reliability!P$23:P$50,MATCH($S380,Reliability!$C$23:$C$50,0)),0),0)*IF($T380=\"n/a\",$D380*$Y380,$G380)+IFERROR(IF(AND($V380<=AK$1,$W380>=AK$1),INDEX(Reliability!P$23:P$50,MATCH($T380,Reliability!$C$23:$C$50,0)),0),0)*$H380*$X380*$Y380),$D380)*$R380","v":0}]
[null,{"$f":"unique_contracts!B382","v":0},{"$f":"unique_contracts!D382","v":0},{"$f":"unique_contracts!J382","v":0},{"$f":"unique_contracts!M382","v":0},{"$f":"unique_contracts!N382","v":0},{"$f":"unique_contracts!P382","v":0},{"$f":"unique_contracts!R382","v":0},{"$f":"unique_contracts!V382","v":0},{"$f":"unique_contracts!AB382","v":0},{"$f":"unique_contracts!AM382","v":0},{"$f":"unique_contracts!AN382","v":0},{"$f":"unique_contracts!AO382","v":0},{"$f":"unique_contracts!AP382","v":0},{"$f":"unique_contracts!AQ382","v":0},{"$f":"unique_contracts!AR382","v":0},{"$f":"unique_contracts!BP382","v":0},0,{"$f":"IFERROR(IF(AND(I381>0,E381=\"NotHybrid\"),_xlfn.CONCAT(MAX(MIN(ROUNDDOWN(I381/D381,0),8),4),INDEX(resources!$G:$G,MATCH(B381,resources!$A:$A,0))),INDEX(resources!$G:$G,MATCH(B381,resources!$A:$A,0))),\"n/a\")","v":"n/a"},"n/a","n/a",0,0,1,1,{"$f":"MIN((IFERROR(IF(AND($V381<=Z$1,$W381>=Z$1),INDEX(Reliability!E$23:E$50,MATCH($S381,Reliability!$C$23:$C$50,0)),0),0)*IF($T381=\"n/a\",$D381*$Y381,$G381)+IFERROR(IF(AND($V381<=Z$1,$W381>=Z$1),INDEX(Reliability!E$23:E$50,MATCH($T381,Reliability!$C$23:$C$50,0)),0),0)*$H381*$X381*$Y381),$D381)*$R381","v":0},{"$f":"MIN((IFERROR(IF(AND($V381<=AA$1,$W381>=AA$1),INDEX(Reliability!F$23:F$50,MATCH($S381,Reliability!$C$23:$C$50,0)),0),0)*IF($T381=\"n/a\",$D381*$Y381,$G381)+IFERROR(IF(AND($V381<=AA$1,$W381>=AA$1),INDEX(Reliability!F$23:F$50,MATCH($T381,Reliability!$C$23:$C$50,0)),0),0)*$H381*$X381*$Y381),$D381)*$R381","v":0},{"$f":"MIN((IFERROR(IF(AND($V381<=AB$1,$W381>=AB$1),INDEX(Reliability!G$23:G$50,MATCH($S381,Reliability!$C$23:$C$50,0)),0),0)*IF($T381=\"n/a\",$D381*$Y381,$G381)+IFERROR(IF(AND($V381<=AB$1,$W381>=AB$1),INDEX(Reliability!G$23:G$50,MATCH($T381,Reliability!$C$23:$C$50,0)),0),0)*$H381*$X381*$Y381),$D381)*$R381","v":0},{"$f":"MIN((IFERROR(IF(AND($V381<=AC$1,$W381>=AC$1),INDEX(Reliability!H$23:H$50,MATCH($S381,Reliability!$C$23:$C$50,0)),0),0)*IF($T381=\"n/a\",$D381*$Y381,$G381)+IFERROR(IF(AND($V381<=AC$1,$W381>=AC$1),INDEX(Reliability!H$23:H$50,MATCH($T381,Reliability!$C$23:$C$50,0)),0),0)*$H381*$X381*$Y381),$D381)*$R381","v":0},{"$f":"MIN((IFERROR(IF(AND($V381<=AD$1,$W381>=AD$1),INDEX(Reliability!I$23:I$50,MATCH($S381,Reliability!$C$23:$C$50,0)),0),0)*IF($T381=\"n/a\",$D381*$Y381,$G381)+IFERROR(IF(AND($V381<=AD$1,$W381>=AD$1),INDEX(Reliability!I$23:I$50,MATCH($T381,Reliability!$C$23:$C$50,0)),0),0)*$H381*$X381*$Y381),$D381)*$R381","v":0},{"$f":"MIN((IFERROR(IF(AND($V381<=AE$1,$W381>=AE$1),INDEX(Reliability!J$23:J$50,MATCH($S381,Reliability!$C$23:$C$50,0)),0),0)*IF($T381=\"n/a\",$D381*$Y381,$G381)+IFERROR(IF(AND($V381<=AE$1,$W381>=AE$1),INDEX(Reliability!J$23:J$50,MATCH($T381,Reliability!$C$23:$C$50,0)),0),0)*$H381*$X381*$Y381),$D381)*$R381","v":0},{"$f":"MIN((IFERROR(IF(AND($V381<=AF$1,$W381>=AF$1),INDEX(Reliability!K$23:K$50,MATCH($S381,Reliability!$C$23:$C$50,0)),0),0)*IF($T381=\"n/a\",$D381*$Y381,$G381)+IFERROR(IF(AND($V381<=AF$1,$W381>=AF$1),INDEX(Reliability!K$23:K$50,MATCH($T381,Reliability!$C$23:$C$50,0)),0),0)*$H381*$X381*$Y381),$D381)*$R381","v":0},{"$f":"MIN((IFERROR(IF(AND($V381<=AG$1,$W381>=AG$1),INDEX(Reliability!L$23:L$50,MATCH($S381,Reliability!$C$23:$C$50,0)),0),0)*IF($T381=\"n/a\",$D381*$Y381,$G381)+IFERROR(IF(AND($V381<=AG$1,$W381>=AG$1),INDEX(Reliability!L$23:L$50,MATCH($T381,Reliability!$C$23:$C$50,0)),0),0)*$H381*$X381*$Y381),$D381)*$R381","v":0},{"$f":"MIN((IFERROR(IF(AND($V381<=AH$1,$W381>=AH$1),INDEX(Reliability!M$23:M$50,MATCH($S381,Reliability!$C$23:$C$50,0)),0),0)*IF($T381=\"n/a\",$D381*$Y381,$G381)+IFERROR(IF(AND($V381<=AH$1,$W381>=AH$1),INDEX(Reliability!M$23:M$50,MATCH($T381,Reliability!$C$23:$C$50,0)),0),0)*$H381*$X381*$Y381),$D381)*$R381","v":0},{"$f":"MIN((IFERROR(IF(AND($V381<=AI$1,$W381>=AI$1),INDEX(Reliability!N$23:N$50,MATCH($S381,Reliability!$C$23:$C$50,0)),0),0)*IF($T381=\"n/a\",$D381*$Y381,$G381)+IFERROR(IF(AND($V381<=AI$1,$W381>=AI$1),INDEX(Reliability!N$23:N$50,MATCH($T381,Reliability!$C$23:$C$50,0)),0),0)*$H381*$X381*$Y381),$D381)*$R381","v":0},{"$f":"MIN((IFERROR(IF(AND($V381<=AJ$1,$W381>=AJ$1),INDEX(Reliability!O$23:O$50,MATCH($S381,Reliability!$C$23:$C$50,0)),0),0)*IF($T381=\"n/a\",$D381*$Y381,$G381)+IFERROR(IF(AND($V381<=AJ$1,$W381>=AJ$1),INDEX(Reliability!O$23:O$50,MATCH($T381,Reliability!$C$23:$C$50,0)),0),0)*$H381*$X381*$Y381),$D381)*$R381","v":0},{"$f":"MIN((IFERROR(IF(AND($V381<=AK$1,$W381>=AK$1),INDEX(Reliability!P$23:P$50,MATCH($S381,Reliability!$C$23:$C$50,0)),0),0)*IF($T381=\"n/a\",$D381*$Y381,$G381)+IFERROR(IF(AND($V381<=AK$1,$W381>=AK$1),INDEX(Reliability!P$23:P$50,MATCH($T381,Reliability!$C$23:$C$50,0)),0),0)*$H381*$X381*$Y381),$D381)*$R381","v":0}]
[null,{"$f":"unique_contracts!B383","v":0},{"$f":"unique_contracts!D383","v":0},{"$f":"unique_contracts!J383","v":0},{"$f":"unique_contracts!M383","v":0},{"$f":"unique_contracts!N383","v":0},{"$f":"unique_contracts!P383","v":0},{"$f":"unique_contracts!R383","v":0},{"$f":"unique_contracts!V383","v":0},{"$f":"unique_contracts!AB383","v":0},{"$f":"unique_contracts!AM383","v":0},{"$f":"unique_contracts!AN383","v":0},{"$f":"unique_contracts!AO383","v":0},{"$f":"unique_contracts!AP383","v":0},{"$f":"unique_contracts!AQ383","v":0},{"$f":"unique_contracts!AR383","v":0},{"$f":"unique_contracts!BP383","v":0},0,{"$f":"IFERROR(IF(AND(I382>0,E382=\"NotHybrid\"),_xlfn.CONCAT(MAX(MIN(ROUNDDOWN(I382/D382,0),8),4),INDEX(resources!$G:$G,MATCH(B382,resources!$A:$A,0))),INDEX(resources!$G:$G,MATCH(B382,resources!$A:$A,0))),\"n/a\")","v":"n/a"},"n/a","n/a",0,0,1,1,{"$f":"MIN((IFERROR(IF(AND($V382<=Z$1,$W382>=Z$1),INDEX(Reliability!E$23:E$50,MATCH($S382,Reliability!$C$23:$C$50,0)),0),0)*IF($T382=\"n/a\",$D382*$Y382,$G382)+IFERROR(IF(AND($V382<=Z$1,$W382>=Z$1),INDEX(Reliability!E$23:E$50,MATCH($T382,Reliability!$C$23:$C$50,0)),0),0)*$H382*$X382*$Y382),$D382)*$R382","v":0},{"$f":"MIN((IFERROR(IF(AND($V382<=AA$1,$W382>=AA$1),INDEX(Reliability!F$23:F$50,MATCH($S382,Reliability!$C$23:$C$50,0)),0),0)*IF($T382=\"n/a\",$D382*$Y382,$G382)+IFERROR(IF(AND($V382<=AA$1,$W382>=AA$1),INDEX(Reliability!F$23:F$50,MATCH($T382,Reliability!$C$23:$C$50,0)),0),0)*$H382*$X382*$Y382),$D382)*$R382","v":0},{"$f":"MIN((IFERROR(IF(AND($V382<=AB$1,$W382>=AB$1),INDEX(Reliability!G$23:G$50,MATCH($S382,Reliability!$C$23:$C$50,0)),0),0)*IF($T382=\"n/a\",$D382*$Y382,$G382)+IFERROR(IF(AND($V382<=AB$1,$W382>=AB$1),INDEX(Reliability!G$23:G$50,MATCH($T382,Reliability!$C$23:$C$50,0)),0),0)*$H382*$X382*$Y382),$D382)*$R382","v":0},{"$f":"MIN((IFERROR(IF(AND($V382<=AC$1,$W382>=AC$1),INDEX(Reliability!H$23:H$50,MATCH($S382,Reliability!$C$23:$C$50,0)),0),0)*IF($T382=\"n/a\",$D382*$Y382,$G382)+IFERROR(IF(AND($V382<=AC$1,$W382>=AC$1),INDEX(Reliability!H$23:H$50,MATCH($T382,Reliability!$C$23:$C$50,0)),0),0)*$H382*$X382*$Y382),$D382)*$R382","v":0},{"$f":"MIN((IFERROR(IF(AND($V382<=AD$1,$W382>=AD$1),INDEX(Reliability!I$23:I$50,MATCH($S382,Reliability!$C$23:$C$50,0)),0),0)*IF($T382=\"n/a\",$D382*$Y382,$G382)+IFERROR(IF(AND($V382<=AD$1,$W382>=AD$1),INDEX(Reliability!I$23:I$50,MATCH($T382,Reliability!$C$23:$C$50,0)),0),0)*$H382*$X382*$Y382),$D382)*$R382","v":0},{"$f":"MIN((IFERROR(IF(AND($V382<=AE$1,$W382>=AE$1),INDEX(Reliability!J$23:J$50,MATCH($S382,Reliability!$C$23:$C$50,0)),0),0)*IF($T382=\"n/a\",$D382*$Y382,$G382)+IFERROR(IF(AND($V382<=AE$1,$W382>=AE$1),INDEX(Reliability!J$23:J$50,MATCH($T382,Reliability!$C$23:$C$50,0)),0),0)*$H382*$X382*$Y382),$D382)*$R382","v":0},{"$f":"MIN((IFERROR(IF(AND($V382<=AF$1,$W382>=AF$1),INDEX(Reliability!K$23:K$50,MATCH($S382,Reliability!$C$23:$C$50,0)),0),0)*IF($T382=\"n/a\",$D382*$Y382,$G382)+IFERROR(IF(AND($V382<=AF$1,$W382>=AF$1),INDEX(Reliability!K$23:K$50,MATCH($T382,Reliability!$C$23:$C$50,0)),0),0)*$H382*$X382*$Y382),$D382)*$R382","v":0},{"$f":"MIN((IFERROR(IF(AND($V382<=AG$1,$W382>=AG$1),INDEX(Reliability!L$23:L$50,MATCH($S382,Reliability!$C$23:$C$50,0)),0),0)*IF($T382=\"n/a\",$D382*$Y382,$G382)+IFERROR(IF(AND($V382<=AG$1,$W382>=AG$1),INDEX(Reliability!L$23:L$50,MATCH($T382,Reliability!$C$23:$C$50,0)),0),0)*$H382*$X382*$Y382),$D382)*$R382","v":0},{"$f":"MIN((IFERROR(IF(AND($V382<=AH$1,$W382>=AH$1),INDEX(Reliability!M$23:M$50,MATCH($S382,Reliability!$C$23:$C$50,0)),0),0)*IF($T382=\"n/a\",$D382*$Y382,$G382)+IFERROR(IF(AND($V382<=AH$1,$W382>=AH$1),INDEX(Reliability!M$23:M$50,MATCH($T382,Reliability!$C$23:$C$50,0)),0),0)*$H382*$X382*$Y382),$D382)*$R382","v":0},{"$f":"MIN((IFERROR(IF(AND($V382<=AI$1,$W382>=AI$1),INDEX(Reliability!N$23:N$50,MATCH($S382,Reliability!$C$23:$C$50,0)),0),0)*IF($T382=\"n/a\",$D382*$Y382,$G382)+IFERROR(IF(AND($V382<=AI$1,$W382>=AI$1),INDEX(Reliability!N$23:N$50,MATCH($T382,Reliability!$C$23:$C$50,0)),0),0)*$H382*$X382*$Y382),$D382)*$R382","v":0},{"$f":"MIN((IFERROR(IF(AND($V382<=AJ$1,$W382>=AJ$1),INDEX(Reliability!O$23:O$50,MATCH($S382,Reliability!$C$23:$C$50,0)),0),0)*IF($T382=\"n/a\",$D382*$Y382,$G382)+IFERROR(IF(AND($V382<=AJ$1,$W382>=AJ$1),INDEX(Reliability!O$23:O$50,MATCH($T382,Reliability!$C$23:$C$50,0)),0),0)*$H382*$X382*$Y382),$D382)*$R382","v":0},{"$f":"MIN((IFERROR(IF(AND($V382<=AK$1,$W382>=AK$1),INDEX(Reliability!P$23:P$50,MATCH($S382,Reliability!$C$23:$C$50,0)),0),0)*IF($T382=\"n/a\",$D382*$Y382,$G382)+IFERROR(IF(AND($V382<=AK$1,$W382>=AK$1),INDEX(Reliability!P$23:P$50,MATCH($T382,Reliability!$C$23:$C$50,0)),0),0)*$H382*$X382*$Y382),$D382)*$R382","v":0}]
[null,{"$f":"unique_contracts!B384","v":0},{"$f":"unique_contracts!D384","v":0},{"$f":"unique_contracts!J384","v":0},{"$f":"unique_contracts!M384","v":0},{"$f":"unique_contracts!N384","v":0},{"$f":"unique_contracts!P384","v":0},{"$f":"unique_contracts!R384","v":0},{"$f":"unique_contracts!V384","v":0},{"$f":"unique_contracts!AB384","v":0},{"$f":"unique_contracts!AM384","v":0},{"$f":"unique_contracts!AN384","v":0},{"$f":"unique_contracts!AO384","v":0},{"$f":"unique_contracts!AP384","v":0},{"$f":"unique_contracts!AQ384","v":0},{"$f":"unique_contracts!AR384","v":0},{"$f":"unique_contracts!BP384","v":0},0,{"$f":"IFERROR(IF(AND(I383>0,E383=\"NotHybrid\"),_xlfn.CONCAT(MAX(MIN(ROUNDDOWN(I383/D383,0),8),4),INDEX(resources!$G:$G,MATCH(B383,resources!$A:$A,0))),INDEX(resources!$G:$G,MATCH(B383,resources!$A:$A,0))),\"n/a\")","v":"n/a"},"n/a","n/a",0,0,1,1,{"$f":"MIN((IFERROR(IF(AND($V383<=Z$1,$W383>=Z$1),INDEX(Reliability!E$23:E$50,MATCH($S383,Reliability!$C$23:$C$50,0)),0),0)*IF($T383=\"n/a\",$D383*$Y383,$G383)+IFERROR(IF(AND($V383<=Z$1,$W383>=Z$1),INDEX(Reliability!E$23:E$50,MATCH($T383,Reliability!$C$23:$C$50,0)),0),0)*$H383*$X383*$Y383),$D383)*$R383","v":0},{"$f":"MIN((IFERROR(IF(AND($V383<=AA$1,$W383>=AA$1),INDEX(Reliability!F$23:F$50,MATCH($S383,Reliability!$C$23:$C$50,0)),0),0)*IF($T383=\"n/a\",$D383*$Y383,$G383)+IFERROR(IF(AND($V383<=AA$1,$W383>=AA$1),INDEX(Reliability!F$23:F$50,MATCH($T383,Reliability!$C$23:$C$50,0)),0),0)*$H383*$X383*$Y383),$D383)*$R383","v":0},{"$f":"MIN((IFERROR(IF(AND($V383<=AB$1,$W383>=AB$1),INDEX(Reliability!G$23:G$50,MATCH($S383,Reliability!$C$23:$C$50,0)),0),0)*IF($T383=\"n/a\",$D383*$Y383,$G383)+IFERROR(IF(AND($V383<=AB$1,$W383>=AB$1),INDEX(Reliability!G$23:G$50,MATCH($T383,Reliability!$C$23:$C$50,0)),0),0)*$H383*$X383*$Y383),$D383)*$R383","v":0},{"$f":"MIN((IFERROR(IF(AND($V383<=AC$1,$W383>=AC$1),INDEX(Reliability!H$23:H$50,MATCH($S383,Reliability!$C$23:$C$50,0)),0),0)*IF($T383=\"n/a\",$D383*$Y383,$G383)+IFERROR(IF(AND($V383<=AC$1,$W383>=AC$1),INDEX(Reliability!H$23:H$50,MATCH($T383,Reliability!$C$23:$C$50,0)),0),0)*$H383*$X383*$Y383),$D383)*$R383","v":0},{"$f":"MIN((IFERROR(IF(AND($V383<=AD$1,$W383>=AD$1),INDEX(Reliability!I$23:I$50,MATCH($S383,Reliability!$C$23:$C$50,0)),0),0)*IF($T383=\"n/a\",$D383*$Y383,$G383)+IFERROR(IF(AND($V383<=AD$1,$W383>=AD$1),INDEX(Reliability!I$23:I$50,MATCH($T383,Reliability!$C$23:$C$50,0)),0),0)*$H383*$X383*$Y383),$D383)*$R383","v":0},{"$f":"MIN((IFERROR(IF(AND($V383<=AE$1,$W383>=AE$1),INDEX(Reliability!J$23:J$50,MATCH($S383,Reliability!$C$23:$C$50,0)),0),0)*IF($T383=\"n/a\",$D383*$Y383,$G383)+IFERROR(IF(AND($V383<=AE$1,$W383>=AE$1),INDEX(Reliability!J$23:J$50,MATCH($T383,Reliability!$C$23:$C$50,0)),0),0)*$H383*$X383*$Y383),$D383)*$R383","v":0},{"$f":"MIN((IFERROR(IF(AND($V383<=AF$1,$W383>=AF$1),INDEX(Reliability!K$23:K$50,MATCH($S383,Reliability!$C$23:$C$50,0)),0),0)*IF($T383=\"n/a\",$D383*$Y383,$G383)+IFERROR(IF(AND($V383<=AF$1,$W383>=AF$1),INDEX(Reliability!K$23:K$50,MATCH($T383,Reliability!$C$23:$C$50,0)),0),0)*$H383*$X383*$Y383),$D383)*$R383","v":0},{"$f":"MIN((IFERROR(IF(AND($V383<=AG$1,$W383>=AG$1),INDEX(Reliability!L$23:L$50,MATCH($S383,Reliability!$C$23:$C$50,0)),0),0)*IF($T383=\"n/a\",$D383*$Y383,$G383)+IFERROR(IF(AND($V383<=AG$1,$W383>=AG$1),INDEX(Reliability!L$23:L$50,MATCH($T383,Reliability!$C$23:$C$50,0)),0),0)*$H383*$X383*$Y383),$D383)*$R383","v":0},{"$f":"MIN((IFERROR(IF(AND($V383<=AH$1,$W383>=AH$1),INDEX(Reliability!M$23:M$50,MATCH($S383,Reliability!$C$23:$C$50,0)),0),0)*IF($T383=\"n/a\",$D383*$Y383,$G383)+IFERROR(IF(AND($V383<=AH$1,$W383>=AH$1),INDEX(Reliability!M$23:M$50,MATCH($T383,Reliability!$C$23:$C$50,0)),0),0)*$H383*$X383*$Y383),$D383)*$R383","v":0},{"$f":"MIN((IFERROR(IF(AND($V383<=AI$1,$W383>=AI$1),INDEX(Reliability!N$23:N$50,MATCH($S383,Reliability!$C$23:$C$50,0)),0),0)*IF($T383=\"n/a\",$D383*$Y383,$G383)+IFERROR(IF(AND($V383<=AI$1,$W383>=AI$1),INDEX(Reliability!N$23:N$50,MATCH($T383,Reliability!$C$23:$C$50,0)),0),0)*$H383*$X383*$Y383),$D383)*$R383","v":0},{"$f":"MIN((IFERROR(IF(AND($V383<=AJ$1,$W383>=AJ$1),INDEX(Reliability!O$23:O$50,MATCH($S383,Reliability!$C$23:$C$50,0)),0),0)*IF($T383=\"n/a\",$D383*$Y383,$G383)+IFERROR(IF(AND($V383<=AJ$1,$W383>=AJ$1),INDEX(Reliability!O$23:O$50,MATCH($T383,Reliability!$C$23:$C$50,0)),0),0)*$H383*$X383*$Y383),$D383)*$R383","v":0},{"$f":"MIN((IFERROR(IF(AND($V383<=AK$1,$W383>=AK$1),INDEX(Reliability!P$23:P$50,MATCH($S383,Reliability!$C$23:$C$50,0)),0),0)*IF($T383=\"n/a\",$D383*$Y383,$G383)+IFERROR(IF(AND($V383<=AK$1,$W383>=AK$1),INDEX(Reliability!P$23:P$50,MATCH($T383,Reliability!$C$23:$C$50,0)),0),0)*$H383*$X383*$Y383),$D383)*$R383","v":0}]
[null,{"$f":"unique_contracts!B385","v":0},{"$f":"unique_contracts!D385","v":0},{"$f":"unique_contracts!J385","v":0},{"$f":"unique_contracts!M385","v":0},{"$f":"unique_contracts!N385","v":0},{"$f":"unique_contracts!P385","v":0},{"$f":"unique_contracts!R385","v":0},{"$f":"unique_contracts!V385","v":0},{"$f":"unique_contracts!AB385","v":0},{"$f":"unique_contracts!AM385","v":0},{"$f":"unique_contracts!AN385","v":0},{"$f":"unique_contracts!AO385","v":0},{"$f":"unique_contracts!AP385","v":0},{"$f":"unique_contracts!AQ385","v":0},{"$f":"unique_contracts!AR385","v":0},{"$f":"unique_contracts!BP385","v":0},0,{"$f":"IFERROR(IF(AND(I384>0,E384=\"NotHybrid\"),_xlfn.CONCAT(MAX(MIN(ROUNDDOWN(I384/D384,0),8),4),INDEX(resources!$G:$G,MATCH(B384,resources!$A:$A,0))),INDEX(resources!$G:$G,MATCH(B384,resources!$A:$A,0))),\"n/a\")","v":"n/a"},"n/a","n/a",0,0,1,1,{"$f":"MIN((IFERROR(IF(AND($V384<=Z$1,$W384>=Z$1),INDEX(Reliability!E$23:E$50,MATCH($S384,Reliability!$C$23:$C$50,0)),0),0)*IF($T384=\"n/a\",$D384*$Y384,$G384)+IFERROR(IF(AND($V384<=Z$1,$W384>=Z$1),INDEX(Reliability!E$23:E$50,MATCH($T384,Reliability!$C$23:$C$50,0)),0),0)*$H384*$X384*$Y384),$D384)*$R384","v":0},{"$f":"MIN((IFERROR(IF(AND($V384<=AA$1,$W384>=AA$1),INDEX(Reliability!F$23:F$50,MATCH($S384,Reliability!$C$23:$C$50,0)),0),0)*IF($T384=\"n/a\",$D384*$Y384,$G384)+IFERROR(IF(AND($V384<=AA$1,$W384>=AA$1),INDEX(Reliability!F$23:F$50,MATCH($T384,Reliability!$C$23:$C$50,0)),0),0)*$H384*$X384*$Y384),$D384)*$R384","v":0},{"$f":"MIN((IFERROR(IF(AND($V384<=AB$1,$W384>=AB$1),INDEX(Reliability!G$23:G$50,MATCH($S384,Reliability!$C$23:$C$50,0)),0),0)*IF($T384=\"n/a\",$D384*$Y384,$G384)+IFERROR(IF(AND($V384<=AB$1,$W384>=AB$1),INDEX(Reliability!G$23:G$50,MATCH($T384,Reliability!$C$23:$C$50,0)),0),0)*$H384*$X384*$Y384),$D384)*$R384","v":0},{"$f":"MIN((IFERROR(IF(AND($V384<=AC$1,$W384>=AC$1),INDEX(Reliability!H$23:H$50,MATCH($S384,Reliability!$C$23:$C$50,0)),0),0)*IF($T384=\"n/a\",$D384*$Y384,$G384)+IFERROR(IF(AND($V384<=AC$1,$W384>=AC$1),INDEX(Reliability!H$23:H$50,MATCH($T384,Reliability!$C$23:$C$50,0)),0),0)*$H384*$X384*$Y384),$D384)*$R384","v":0},{"$f":"MIN((IFERROR(IF(AND($V384<=AD$1,$W384>=AD$1),INDEX(Reliability!I$23:I$50,MATCH($S384,Reliability!$C$23:$C$50,0)),0),0)*IF($T384=\"n/a\",$D384*$Y384,$G384)+IFERROR(IF(AND($V384<=AD$1,$W384>=AD$1),INDEX(Reliability!I$23:I$50,MATCH($T384,Reliability!$C$23:$C$50,0)),0),0)*$H384*$X384*$Y384),$D384)*$R384","v":0},{"$f":"MIN((IFERROR(IF(AND($V384<=AE$1,$W384>=AE$1),INDEX(Reliability!J$23:J$50,MATCH($S384,Reliability!$C$23:$C$50,0)),0),0)*IF($T384=\"n/a\",$D384*$Y384,$G384)+IFERROR(IF(AND($V384<=AE$1,$W384>=AE$1),INDEX(Reliability!J$23:J$50,MATCH($T384,Reliability!$C$23:$C$50,0)),0),0)*$H384*$X384*$Y384),$D384)*$R384","v":0},{"$f":"MIN((IFERROR(IF(AND($V384<=AF$1,$W384>=AF$1),INDEX(Reliability!K$23:K$50,MATCH($S384,Reliability!$C$23:$C$50,0)),0),0)*IF($T384=\"n/a\",$D384*$Y384,$G384)+IFERROR(IF(AND($V384<=AF$1,$W384>=AF$1),INDEX(Reliability!K$23:K$50,MATCH($T384,Reliability!$C$23:$C$50,0)),0),0)*$H384*$X384*$Y384),$D384)*$R384","v":0},{"$f":"MIN((IFERROR(IF(AND($V384<=AG$1,$W384>=AG$1),INDEX(Reliability!L$23:L$50,MATCH($S384,Reliability!$C$23:$C$50,0)),0),0)*IF($T384=\"n/a\",$D384*$Y384,$G384)+IFERROR(IF(AND($V384<=AG$1,$W384>=AG$1),INDEX(Reliability!L$23:L$50,MATCH($T384,Reliability!$C$23:$C$50,0)),0),0)*$H384*$X384*$Y384),$D384)*$R384","v":0},{"$f":"MIN((IFERROR(IF(AND($V384<=AH$1,$W384>=AH$1),INDEX(Reliability!M$23:M$50,MATCH($S384,Reliability!$C$23:$C$50,0)),0),0)*IF($T384=\"n/a\",$D384*$Y384,$G384)+IFERROR(IF(AND($V384<=AH$1,$W384>=AH$1),INDEX(Reliability!M$23:M$50,MATCH($T384,Reliability!$C$23:$C$50,0)),0),0)*$H384*$X384*$Y384),$D384)*$R384","v":0},{"$f":"MIN((IFERROR(IF(AND($V384<=AI$1,$W384>=AI$1),INDEX(Reliability!N$23:N$50,MATCH($S384,Reliability!$C$23:$C$50,0)),0),0)*IF($T384=\"n/a\",$D384*$Y384,$G384)+IFERROR(IF(AND($V384<=AI$1,$W384>=AI$1),INDEX(Reliability!N$23:N$50,MATCH($T384,Reliability!$C$23:$C$50,0)),0),0)*$H384*$X384*$Y384),$D384)*$R384","v":0},{"$f":"MIN((IFERROR(IF(AND($V384<=AJ$1,$W384>=AJ$1),INDEX(Reliability!O$23:O$50,MATCH($S384,Reliability!$C$23:$C$50,0)),0),0)*IF($T384=\"n/a\",$D384*$Y384,$G384)+IFERROR(IF(AND($V384<=AJ$1,$W384>=AJ$1),INDEX(Reliability!O$23:O$50,MATCH($T384,Reliability!$C$23:$C$50,0)),0),0)*$H384*$X384*$Y384),$D384)*$R384","v":0},{"$f":"MIN((IFERROR(IF(AND($V384<=AK$1,$W384>=AK$1),INDEX(Reliability!P$23:P$50,MATCH($S384,Reliability!$C$23:$C$50,0)),0),0)*IF($T384=\"n/a\",$D384*$Y384,$G384)+IFERROR(IF(AND($V384<=AK$1,$W384>=AK$1),INDEX(Reliability!P$23:P$50,MATCH($T384,Reliability!$C$23:$C$50,0)),0),0)*$H384*$X384*$Y384),$D384)*$R384","v":0}]
[null,{"$f":"unique_contracts!B386","v":0},{"$f":"unique_contracts!D386","v":0},{"$f":"unique_contracts!J386","v":0},{"$f":"unique_contracts!M386","v":0},{"$f":"unique_contracts!N386","v":0},{"$f":"unique_contracts!P386","v":0},{"$f":"unique_contracts!R386","v":0},{"$f":"unique_contracts!V386","v":0},{"$f":"unique_contracts!AB386","v":0},{"$f":"unique_contracts!AM386","v":0},{"$f":"unique_contracts!AN386","v":0},{"$f":"unique_contracts!AO386","v":0},{"$f":"unique_contracts!AP386","v":0},{"$f":"unique_contracts!AQ386","v":0},{"$f":"unique_contracts!AR386","v":0},{"$f":"unique_contracts!BP386","v":0},0,{"$f":"IFERROR(IF(AND(I385>0,E385=\"NotHybrid\"),_xlfn.CONCAT(MAX(MIN(ROUNDDOWN(I385/D385,0),8),4),INDEX(resources!$G:$G,MATCH(B385,resources!$A:$A,0))),INDEX(resources!$G:$G,MATCH(B385,resources!$A:$A,0))),\"n/a\")","v":"n/a"},"n/a","n/a",0,0,1,1,{"$f":"MIN((IFERROR(IF(AND($V385<=Z$1,$W385>=Z$1),INDEX(Reliability!E$23:E$50,MATCH($S385,Reliability!$C$23:$C$50,0)),0),0)*IF($T385=\"n/a\",$D385*$Y385,$G385)+IFERROR(IF(AND($V385<=Z$1,$W385>=Z$1),INDEX(Reliability!E$23:E$50,MATCH($T385,Reliability!$C$23:$C$50,0)),0),0)*$H385*$X385*$Y385),$D385)*$R385","v":0},{"$f":"MIN((IFERROR(IF(AND($V385<=AA$1,$W385>=AA$1),INDEX(Reliability!F$23:F$50,MATCH($S385,Reliability!$C$23:$C$50,0)),0),0)*IF($T385=\"n/a\",$D385*$Y385,$G385)+IFERROR(IF(AND($V385<=AA$1,$W385>=AA$1),INDEX(Reliability!F$23:F$50,MATCH($T385,Reliability!$C$23:$C$50,0)),0),0)*$H385*$X385*$Y385),$D385)*$R385","v":0},{"$f":"MIN((IFERROR(IF(AND($V385<=AB$1,$W385>=AB$1),INDEX(Reliability!G$23:G$50,MATCH($S385,Reliability!$C$23:$C$50,0)),0),0)*IF($T385=\"n/a\",$D385*$Y385,$G385)+IFERROR(IF(AND($V385<=AB$1,$W385>=AB$1),INDEX(Reliability!G$23:G$50,MATCH($T385,Reliability!$C$23:$C$50,0)),0),0)*$H385*$X385*$Y385),$D385)*$R385","v":0},{"$f":"MIN((IFERROR(IF(AND($V385<=AC$1,$W385>=AC$1),INDEX(Reliability!H$23:H$50,MATCH($S385,Reliability!$C$23:$C$50,0)),0),0)*IF($T385=\"n/a\",$D385*$Y385,$G385)+IFERROR(IF(AND($V385<=AC$1,$W385>=AC$1),INDEX(Reliability!H$23:H$50,MATCH($T385,Reliability!$C$23:$C$50,0)),0),0)*$H385*$X385*$Y385),$D385)*$R385","v":0},{"$f":"MIN((IFERROR(IF(AND($V385<=AD$1,$W385>=AD$1),INDEX(Reliability!I$23:I$50,MATCH($S385,Reliability!$C$23:$C$50,0)),0),0)*IF($T385=\"n/a\",$D385*$Y385,$G385)+IFERROR(IF(AND($V385<=AD$1,$W385>=AD$1),INDEX(Reliability!I$23:I$50,MATCH($T385,Reliability!$C$23:$C$50,0)),0),0)*$H385*$X385*$Y385),$D385)*$R385","v":0},{"$f":"MIN((IFERROR(IF(AND($V385<=AE$1,$W385>=AE$1),INDEX(Reliability!J$23:J$50,MATCH($S385,Reliability!$C$23:$C$50,0)),0),0)*IF($T385=\"n/a\",$D385*$Y385,$G385)+IFERROR(IF(AND($V385<=AE$1,$W385>=AE$1),INDEX(Reliability!J$23:J$50,MATCH($T385,Reliability!$C$23:$C$50,0)),0),0)*$H385*$X385*$Y385),$D385)*$R385","v":0},{"$f":"MIN((IFERROR(IF(AND($V385<=AF$1,$W385>=AF$1),INDEX(Reliability!K$23:K$50,MATCH($S385,Reliability!$C$23:$C$50,0)),0),0)*IF($T385=\"n/a\",$D385*$Y385,$G385)+IFERROR(IF(AND($V385<=AF$1,$W385>=AF$1),INDEX(Reliability!K$23:K$50,MATCH($T385,Reliability!$C$23:$C$50,0)),0),0)*$H385*$X385*$Y385),$D385)*$R385","v":0},{"$f":"MIN((IFERROR(IF(AND($V385<=AG$1,$W385>=AG$1),INDEX(Reliability!L$23:L$50,MATCH($S385,Reliability!$C$23:$C$50,0)),0),0)*IF($T385=\"n/a\",$D385*$Y385,$G385)+IFERROR(IF(AND($V385<=AG$1,$W385>=AG$1),INDEX(Reliability!L$23:L$50,MATCH($T385,Reliability!$C$23:$C$50,0)),0),0)*$H385*$X385*$Y385),$D385)*$R385","v":0},{"$f":"MIN((IFERROR(IF(AND($V385<=AH$1,$W385>=AH$1),INDEX(Reliability!M$23:M$50,MATCH($S385,Reliability!$C$23:$C$50,0)),0),0)*IF($T385=\"n/a\",$D385*$Y385,$G385)+IFERROR(IF(AND($V385<=AH$1,$W385>=AH$1),INDEX(Reliability!M$23:M$50,MATCH($T385,Reliability!$C$23:$C$50,0)),0),0)*$H385*$X385*$Y385),$D385)*$R385","v":0},{"$f":"MIN((IFERROR(IF(AND($V385<=AI$1,$W385>=AI$1),INDEX(Reliability!N$23:N$50,MATCH($S385,Reliability!$C$23:$C$50,0)),0),0)*IF($T385=\"n/a\",$D385*$Y385,$G385)+IFERROR(IF(AND($V385<=AI$1,$W385>=AI$1),INDEX(Reliability!N$23:N$50,MATCH($T385,Reliability!$C$23:$C$50,0)),0),0)*$H385*$X385*$Y385),$D385)*$R385","v":0},{"$f":"MIN((IFERROR(IF(AND($V385<=AJ$1,$W385>=AJ$1),INDEX(Reliability!O$23:O$50,MATCH($S385,Reliability!$C$23:$C$50,0)),0),0)*IF($T385=\"n/a\",$D385*$Y385,$G385)+IFERROR(IF(AND($V385<=AJ$1,$W385>=AJ$1),INDEX(Reliability!O$23:O$50,MATCH($T385,Reliability!$C$23:$C$50,0)),0),0)*$H385*$X385*$Y385),$D385)*$R385","v":0},{"$f":"MIN((IFERROR(IF(AND($V385<=AK$1,$W385>=AK$1),INDEX(Reliability!P$23:P$50,MATCH($S385,Reliability!$C$23:$C$50,0)),0),0)*IF($T385=\"n/a\",$D385*$Y385,$G385)+IFERROR(IF(AND($V385<=AK$1,$W385>=AK$1),INDEX(Reliability!P$23:P$50,MATCH($T385,Reliability!$C$23:$C$50,0)),0),0)*$H385*$X385*$Y385),$D385)*$R385","v":0}]
[null,{"$f":"unique_contracts!B387","v":0},{"$f":"unique_contracts!D387","v":0},{"$f":"unique_contracts!J387","v":0},{"$f":"unique_contracts!M387","v":0},{"$f":"unique_contracts!N387","v":0},{"$f":"unique_contracts!P387","v":0},{"$f":"unique_contracts!R387","v":0},{"$f":"unique_contracts!V387","v":0},{"$f":"unique_contracts!AB387","v":0},{"$f":"unique_contracts!AM387","v":0},{"$f":"unique_contracts!AN387","v":0},{"$f":"unique_contracts!AO387","v":0},{"$f":"unique_contracts!AP387","v":0},{"$f":"unique_contracts!AQ387","v":0},{"$f":"unique_contracts!AR387","v":0},{"$f":"unique_contracts!BP387","v":0},0,{"$f":"IFERROR(IF(AND(I386>0,E386=\"NotHybrid\"),_xlfn.CONCAT(MAX(MIN(ROUNDDOWN(I386/D386,0),8),4),INDEX(resources!$G:$G,MATCH(B386,resources!$A:$A,0))),INDEX(resources!$G:$G,MATCH(B386,resources!$A:$A,0))),\"n/a\")","v":"n/a"},"n/a","n/a",0,0,1,1,{"$f":"MIN((IFERROR(IF(AND($V386<=Z$1,$W386>=Z$1),INDEX(Reliability!E$23:E$50,MATCH($S386,Reliability!$C$23:$C$50,0)),0),0)*IF($T386=\"n/a\",$D386*$Y386,$G386)+IFERROR(IF(AND($V386<=Z$1,$W386>=Z$1),INDEX(Reliability!E$23:E$50,MATCH($T386,Reliability!$C$23:$C$50,0)),0),0)*$H386*$X386*$Y386),$D386)*$R386","v":0},{"$f":"MIN((IFERROR(IF(AND($V386<=AA$1,$W386>=AA$1),INDEX(Reliability!F$23:F$50,MATCH($S386,Reliability!$C$23:$C$50,0)),0),0)*IF($T386=\"n/a\",$D386*$Y386,$G386)+IFERROR(IF(AND($V386<=AA$1,$W386>=AA$1),INDEX(Reliability!F$23:F$50,MATCH($T386,Reliability!$C$23:$C$50,0)),0),0)*$H386*$X386*$Y386),$D386)*$R386","v":0},{"$f":"MIN((IFERROR(IF(AND($V386<=AB$1,$W386>=AB$1),INDEX(Reliability!G$23:G$50,MATCH($S386,Reliability!$C$23:$C$50,0)),0),0)*IF($T386=\"n/a\",$D386*$Y386,$G386)+IFERROR(IF(AND($V386<=AB$1,$W386>=AB$1),INDEX(Reliability!G$23:G$50,MATCH($T386,Reliability!$C$23:$C$50,0)),0),0)*$H386*$X386*$Y386),$D386)*$R386","v":0},{"$f":"MIN((IFERROR(IF(AND($V386<=AC$1,$W386>=AC$1),INDEX(Reliability!H$23:H$50,MATCH($S386,Reliability!$C$23:$C$50,0)),0),0)*IF($T386=\"n/a\",$D386*$Y386,$G386)+IFERROR(IF(AND($V386<=AC$1,$W386>=AC$1),INDEX(Reliability!H$23:H$50,MATCH($T386,Reliability!$C$23:$C$50,0)),0),0)*$H386*$X386*$Y386),$D386)*$R386","v":0},{"$f":"MIN((IFERROR(IF(AND($V386<=AD$1,$W386>=AD$1),INDEX(Reliability!I$23:I$50,MATCH($S386,Reliability!$C$23:$C$50,0)),0),0)*IF($T386=\"n/a\",$D386*$Y386,$G386)+IFERROR(IF(AND($V386<=AD$1,$W386>=AD$1),INDEX(Reliability!I$23:I$50,MATCH($T386,Reliability!$C$23:$C$50,0)),0),0)*$H386*$X386*$Y386),$D386)*$R386","v":0},{"$f":"MIN((IFERROR(IF(AND($V386<=AE$1,$W386>=AE$1),INDEX(Reliability!J$23:J$50,MATCH($S386,Reliability!$C$23:$C$50,0)),0),0)*IF($T386=\"n/a\",$D386*$Y386,$G386)+IFERROR(IF(AND($V386<=AE$1,$W386>=AE$1),INDEX(Reliability!J$23:J$50,MATCH($T386,Reliability!$C$23:$C$50,0)),0),0)*$H386*$X386*$Y386),$D386)*$R386","v":0},{"$f":"MIN((IFERROR(IF(AND($V386<=AF$1,$W386>=AF$1),INDEX(Reliability!K$23:K$50,MATCH($S386,Reliability!$C$23:$C$50,0)),0),0)*IF($T386=\"n/a\",$D386*$Y386,$G386)+IFERROR(IF(AND($V386<=AF$1,$W386>=AF$1),INDEX(Reliability!K$23:K$50,MATCH($T386,Reliability!$C$23:$C$50,0)),0),0)*$H386*$X386*$Y386),$D386)*$R386","v":0},{"$f":"MIN((IFERROR(IF(AND($V386<=AG$1,$W386>=AG$1),INDEX(Reliability!L$23:L$50,MATCH($S386,Reliability!$C$23:$C$50,0)),0),0)*IF($T386=\"n/a\",$D386*$Y386,$G386)+IFERROR(IF(AND($V386<=AG$1,$W386>=AG$1),INDEX(Reliability!L$23:L$50,MATCH($T386,Reliability!$C$23:$C$50,0)),0),0)*$H386*$X386*$Y386),$D386)*$R386","v":0},{"$f":"MIN((IFERROR(IF(AND($V386<=AH$1,$W386>=AH$1),INDEX(Reliability!M$23:M$50,MATCH($S386,Reliability!$C$23:$C$50,0)),0),0)*IF($T386=\"n/a\",$D386*$Y386,$G386)+IFERROR(IF(AND($V386<=AH$1,$W386>=AH$1),INDEX(Reliability!M$23:M$50,MATCH($T386,Reliability!$C$23:$C$50,0)),0),0)*$H386*$X386*$Y386),$D386)*$R386","v":0},{"$f":"MIN((IFERROR(IF(AND($V386<=AI$1,$W386>=AI$1),INDEX(Reliability!N$23:N$50,MATCH($S386,Reliability!$C$23:$C$50,0)),0),0)*IF($T386=\"n/a\",$D386*$Y386,$G386)+IFERROR(IF(AND($V386<=AI$1,$W386>=AI$1),INDEX(Reliability!N$23:N$50,MATCH($T386,Reliability!$C$23:$C$50,0)),0),0)*$H386*$X386*$Y386),$D386)*$R386","v":0},{"$f":"MIN((IFERROR(IF(AND($V386<=AJ$1,$W386>=AJ$1),INDEX(Reliability!O$23:O$50,MATCH($S386,Reliability!$C$23:$C$50,0)),0),0)*IF($T386=\"n/a\",$D386*$Y386,$G386)+IFERROR(IF(AND($V386<=AJ$1,$W386>=AJ$1),INDEX(Reliability!O$23:O$50,MATCH($T386,Reliability!$C$23:$C$50,0)),0),0)*$H386*$X386*$Y386),$D386)*$R386","v":0},{"$f":"MIN((IFERROR(IF(AND($V386<=AK$1,$W386>=AK$1),INDEX(Reliability!P$23:P$50,MATCH($S386,Reliability!$C$23:$C$50,0)),0),0)*IF($T386=\"n/a\",$D386*$Y386,$G386)+IFERROR(IF(AND($V386<=AK$1,$W386>=AK$1),INDEX(Reliability!P$23:P$50,MATCH($T386,Reliability!$C$23:$C$50,0)),0),0)*$H386*$X386*$Y386),$D386)*$R386","v":0}]
[null,{"$f":"unique_contracts!B388","v":0},{"$f":"unique_contracts!D388","v":0},{"$f":"unique_contracts!J388","v":0},{"$f":"unique_contracts!M388","v":0},{"$f":"unique_contracts!N388","v":0},{"$f":"unique_contracts!P388","v":0},{"$f":"unique_contracts!R388","v":0},{"$f":"unique_contracts!V388","v":0},{"$f":"unique_contracts!AB388","v":0},{"$f":"unique_contracts!AM388","v":0},{"$f":"unique_contracts!AN388","v":0},{"$f":"unique_contracts!AO388","v":0},{"$f":"unique_contracts!AP388","v":0},{"$f":"unique_contracts!AQ388","v":0},{"$f":"unique_contracts!AR388","v":0},{"$f":"unique_contracts!BP388","v":0},0,{"$f":"IFERROR(IF(AND(I387>0,E387=\"NotHybrid\"),_xlfn.CONCAT(MAX(MIN(ROUNDDOWN(I387/D387,0),8),4),INDEX(resources!$G:$G,MATCH(B387,resources!$A:$A,0))),INDEX(resources!$G:$G,MATCH(B387,resources!$A:$A,0))),\"n/a\")","v":"n/a"},"n/a","n/a",0,0,1,1,{"$f":"MIN((IFERROR(IF(AND($V387<=Z$1,$W387>=Z$1),INDEX(Reliability!E$23:E$50,MATCH($S387,Reliability!$C$23:$C$50,0)),0),0)*IF($T387=\"n/a\",$D387*$Y387,$G387)+IFERROR(IF(AND($V387<=Z$1,$W387>=Z$1),INDEX(Reliability!E$23:E$50,MATCH($T387,Reliability!$C$23:$C$50,0)),0),0)*$H387*$X387*$Y387),$D387)*$R387","v":0},{"$f":"MIN((IFERROR(IF(AND($V387<=AA$1,$W387>=AA$1),INDEX(Reliability!F$23:F$50,MATCH($S387,Reliability!$C$23:$C$50,0)),0),0)*IF($T387=\"n/a\",$D387*$Y387,$G387)+IFERROR(IF(AND($V387<=AA$1,$W387>=AA$1),INDEX(Reliability!F$23:F$50,MATCH($T387,Reliability!$C$23:$C$50,0)),0),0)*$H387*$X387*$Y387),$D387)*$R387","v":0},{"$f":"MIN((IFERROR(IF(AND($V387<=AB$1,$W387>=AB$1),INDEX(Reliability!G$23:G$50,MATCH($S387,Reliability!$C$23:$C$50,0)),0),0)*IF($T387=\"n/a\",$D387*$Y387,$G387)+IFERROR(IF(AND($V387<=AB$1,$W387>=AB$1),INDEX(Reliability!G$23:G$50,MATCH($T387,Reliability!$C$23:$C$50,0)),0),0)*$H387*$X387*$Y387),$D387)*$R387","v":0},{"$f":"MIN((IFERROR(IF(AND($V387<=AC$1,$W387>=AC$1),INDEX(Reliability!H$23:H$50,MATCH($S387,Reliability!$C$23:$C$50,0)),0),0)*IF($T387=\"n/a\",$D387*$Y387,$G387)+IFERROR(IF(AND($V387<=AC$1,$W387>=AC$1),INDEX(Reliability!H$23:H$50,MATCH($T387,Reliability!$C$23:$C$50,0)),0),0)*$H387*$X387*$Y387),$D387)*$R387","v":0},{"$f":"MIN((IFERROR(IF(AND($V387<=AD$1,$W387>=AD$1),INDEX(Reliability!I$23:I$50,MATCH($S387,Reliability!$C$23:$C$50,0)),0),0)*IF($T387=\"n/a\",$D387*$Y387,$G387)+IFERROR(IF(AND($V387<=AD$1,$W387>=AD$1),INDEX(Reliability!I$23:I$50,MATCH($T387,Reliability!$C$23:$C$50,0)),0),0)*$H387*$X387*$Y387),$D387)*$R387","v":0},{"$f":"MIN((IFERROR(IF(AND($V387<=AE$1,$W387>=AE$1),INDEX(Reliability!J$23:J$50,MATCH($S387,Reliability!$C$23:$C$50,0)),0),0)*IF($T387=\"n/a\",$D387*$Y387,$G387)+IFERROR(IF(AND($V387<=AE$1,$W387>=AE$1),INDEX(Reliability!J$23:J$50,MATCH($T387,Reliability!$C$23:$C$50,0)),0),0)*$H387*$X387*$Y387),$D387)*$R387","v":0},{"$f":"MIN((IFERROR(IF(AND($V387<=AF$1,$W387>=AF$1),INDEX(Reliability!K$23:K$50,MATCH($S387,Reliability!$C$23:$C$50,0)),0),0)*IF($T387=\"n/a\",$D387*$Y387,$G387)+IFERROR(IF(AND($V387<=AF$1,$W387>=AF$1),INDEX(Reliability!K$23:K$50,MATCH($T387,Reliability!$C$23:$C$50,0)),0),0)*$H387*$X387*$Y387),$D387)*$R387","v":0},{"$f":"MIN((IFERROR(IF(AND($V387<=AG$1,$W387>=AG$1),INDEX(Reliability!L$23:L$50,MATCH($S387,Reliability!$C$23:$C$50,0)),0),0)*IF($T387=\"n/a\",$D387*$Y387,$G387)+IFERROR(IF(AND($V387<=AG$1,$W387>=AG$1),INDEX(Reliability!L$23:L$50,MATCH($T387,Reliability!$C$23:$C$50,0)),0),0)*$H387*$X387*$Y387),$D387)*$R387","v":0},{"$f":"MIN((IFERROR(IF(AND($V387<=AH$1,$W387>=AH$1),INDEX(Reliability!M$23:M$50,MATCH($S387,Reliability!$C$23:$C$50,0)),0),0)*IF($T387=\"n/a\",$D387*$Y387,$G387)+IFERROR(IF(AND($V387<=AH$1,$W387>=AH$1),INDEX(Reliability!M$23:M$50,MATCH($T387,Reliability!$C$23:$C$50,0)),0),0)*$H387*$X387*$Y387),$D387)*$R387","v":0},{"$f":"MIN((IFERROR(IF(AND($V387<=AI$1,$W387>=AI$1),INDEX(Reliability!N$23:N$50,MATCH($S387,Reliability!$C$23:$C$50,0)),0),0)*IF($T387=\"n/a\",$D387*$Y387,$G387)+IFERROR(IF(AND($V387<=AI$1,$W387>=AI$1),INDEX(Reliability!N$23:N$50,MATCH($T387,Reliability!$C$23:$C$50,0)),0),0)*$H387*$X387*$Y387),$D387)*$R387","v":0},{"$f":"MIN((IFERROR(IF(AND($V387<=AJ$1,$W387>=AJ$1),INDEX(Reliability!O$23:O$50,MATCH($S387,Reliability!$C$23:$C$50,0)),0),0)*IF($T387=\"n/a\",$D387*$Y387,$G387)+IFERROR(IF(AND($V387<=AJ$1,$W387>=AJ$1),INDEX(Reliability!O$23:O$50,MATCH($T387,Reliability!$C$23:$C$50,0)),0),0)*$H387*$X387*$Y387),$D387)*$R387","v":0},{"$f":"MIN((IFERROR(IF(AND($V387<=AK$1,$W387>=AK$1),INDEX(Reliability!P$23:P$50,MATCH($S387,Reliability!$C$23:$C$50,0)),0),0)*IF($T387=\"n/a\",$D387*$Y387,$G387)+IFERROR(IF(AND($V387<=AK$1,$W387>=AK$1),INDEX(Reliability!P$23:P$50,MATCH($T387,Reliability!$C$23:$C$50,0)),0),0)*$H387*$X387*$Y387),$D387)*$R387","v":0}]
[null,{"$f":"unique_contracts!B389","v":0},{"$f":"unique_contracts!D389","v":0},{"$f":"unique_contracts!J389","v":0},{"$f":"unique_contracts!M389","v":0},{"$f":"unique_contracts!N389","v":0},{"$f":"unique_contracts!P389","v":0},{"$f":"unique_contracts!R389","v":0},{"$f":"unique_contracts!V389","v":0},{"$f":"unique_contracts!AB389","v":0},{"$f":"unique_contracts!AM389","v":0},{"$f":"unique_contracts!AN389","v":0},{"$f":"unique_contracts!AO389","v":0},{"$f":"unique_contracts!AP389","v":0},{"$f":"unique_contracts!AQ389","v":0},{"$f":"unique_contracts!AR389","v":0},{"$f":"unique_contracts!BP389","v":0},0,{"$f":"IFERROR(IF(AND(I388>0,E388=\"NotHybrid\"),_xlfn.CONCAT(MAX(MIN(ROUNDDOWN(I388/D388,0),8),4),INDEX(resources!$G:$G,MATCH(B388,resources!$A:$A,0))),INDEX(resources!$G:$G,MATCH(B388,resources!$A:$A,0))),\"n/a\")","v":"n/a"},"n/a","n/a",0,0,1,1,{"$f":"MIN((IFERROR(IF(AND($V388<=Z$1,$W388>=Z$1),INDEX(Reliability!E$23:E$50,MATCH($S388,Reliability!$C$23:$C$50,0)),0),0)*IF($T388=\"n/a\",$D388*$Y388,$G388)+IFERROR(IF(AND($V388<=Z$1,$W388>=Z$1),INDEX(Reliability!E$23:E$50,MATCH($T388,Reliability!$C$23:$C$50,0)),0),0)*$H388*$X388*$Y388),$D388)*$R388","v":0},{"$f":"MIN((IFERROR(IF(AND($V388<=AA$1,$W388>=AA$1),INDEX(Reliability!F$23:F$50,MATCH($S388,Reliability!$C$23:$C$50,0)),0),0)*IF($T388=\"n/a\",$D388*$Y388,$G388)+IFERROR(IF(AND($V388<=AA$1,$W388>=AA$1),INDEX(Reliability!F$23:F$50,MATCH($T388,Reliability!$C$23:$C$50,0)),0),0)*$H388*$X388*$Y388),$D388)*$R388","v":0},{"$f":"MIN((IFERROR(IF(AND($V388<=AB$1,$W388>=AB$1),INDEX(Reliability!G$23:G$50,MATCH($S388,Reliability!$C$23:$C$50,0)),0),0)*IF($T388=\"n/a\",$D388*$Y388,$G388)+IFERROR(IF(AND($V388<=AB$1,$W388>=AB$1),INDEX(Reliability!G$23:G$50,MATCH($T388,Reliability!$C$23:$C$50,0)),0),0)*$H388*$X388*$Y388),$D388)*$R388","v":0},{"$f":"MIN((IFERROR(IF(AND($V388<=AC$1,$W388>=AC$1),INDEX(Reliability!H$23:H$50,MATCH($S388,Reliability!$C$23:$C$50,0)),0),0)*IF($T388=\"n/a\",$D388*$Y388,$G388)+IFERROR(IF(AND($V388<=AC$1,$W388>=AC$1),INDEX(Reliability!H$23:H$50,MATCH($T388,Reliability!$C$23:$C$50,0)),0),0)*$H388*$X388*$Y388),$D388)*$R388","v":0},{"$f":"MIN((IFERROR(IF(AND($V388<=AD$1,$W388>=AD$1),INDEX(Reliability!I$23:I$50,MATCH($S388,Reliability!$C$23:$C$50,0)),0),0)*IF($T388=\"n/a\",$D388*$Y388,$G388)+IFERROR(IF(AND($V388<=AD$1,$W388>=AD$1),INDEX(Reliability!I$23:I$50,MATCH($T388,Reliability!$C$23:$C$50,0)),0),0)*$H388*$X388*$Y388),$D388)*$R388","v":0},{"$f":"MIN((IFERROR(IF(AND($V388<=AE$1,$W388>=AE$1),INDEX(Reliability!J$23:J$50,MATCH($S388,Reliability!$C$23:$C$50,0)),0),0)*IF($T388=\"n/a\",$D388*$Y388,$G388)+IFERROR(IF(AND($V388<=AE$1,$W388>=AE$1),INDEX(Reliability!J$23:J$50,MATCH($T388,Reliability!$C$23:$C$50,0)),0),0)*$H388*$X388*$Y388),$D388)*$R388","v":0},{"$f":"MIN((IFERROR(IF(AND($V388<=AF$1,$W388>=AF$1),INDEX(Reliability!K$23:K$50,MATCH($S388,Reliability!$C$23:$C$50,0)),0),0)*IF($T388=\"n/a\",$D388*$Y388,$G388)+IFERROR(IF(AND($V388<=AF$1,$W388>=AF$1),INDEX(Reliability!K$23:K$50,MATCH($T388,Reliability!$C$23:$C$50,0)),0),0)*$H388*$X388*$Y388),$D388)*$R388","v":0},{"$f":"MIN((IFERROR(IF(AND($V388<=AG$1,$W388>=AG$1),INDEX(Reliability!L$23:L$50,MATCH($S388,Reliability!$C$23:$C$50,0)),0),0)*IF($T388=\"n/a\",$D388*$Y388,$G388)+IFERROR(IF(AND($V388<=AG$1,$W388>=AG$1),INDEX(Reliability!L$23:L$50,MATCH($T388,Reliability!$C$23:$C$50,0)),0),0)*$H388*$X388*$Y388),$D388)*$R388","v":0},{"$f":"MIN((IFERROR(IF(AND($V388<=AH$1,$W388>=AH$1),INDEX(Reliability!M$23:M$50,MATCH($S388,Reliability!$C$23:$C$50,0)),0),0)*IF($T388=\"n/a\",$D388*$Y388,$G388)+IFERROR(IF(AND($V388<=AH$1,$W388>=AH$1),INDEX(Reliability!M$23:M$50,MATCH($T388,Reliability!$C$23:$C$50,0)),0),0)*$H388*$X388*$Y388),$D388)*$R388","v":0},{"$f":"MIN((IFERROR(IF(AND($V388<=AI$1,$W388>=AI$1),INDEX(Reliability!N$23:N$50,MATCH($S388,Reliability!$C$23:$C$50,0)),0),0)*IF($T388=\"n/a\",$D388*$Y388,$G388)+IFERROR(IF(AND($V388<=AI$1,$W388>=AI$1),INDEX(Reliability!N$23:N$50,MATCH($T388,Reliability!$C$23:$C$50,0)),0),0)*$H388*$X388*$Y388),$D388)*$R388","v":0},{"$f":"MIN((IFERROR(IF(AND($V388<=AJ$1,$W388>=AJ$1),INDEX(Reliability!O$23:O$50,MATCH($S388,Reliability!$C$23:$C$50,0)),0),0)*IF($T388=\"n/a\",$D388*$Y388,$G388)+IFERROR(IF(AND($V388<=AJ$1,$W388>=AJ$1),INDEX(Reliability!O$23:O$50,MATCH($T388,Reliability!$C$23:$C$50,0)),0),0)*$H388*$X388*$Y388),$D388)*$R388","v":0},{"$f":"MIN((IFERROR(IF(AND($V388<=AK$1,$W388>=AK$1),INDEX(Reliability!P$23:P$50,MATCH($S388,Reliability!$C$23:$C$50,0)),0),0)*IF($T388=\"n/a\",$D388*$Y388,$G388)+IFERROR(IF(AND($V388<=AK$1,$W388>=AK$1),INDEX(Reliability!P$23:P$50,MATCH($T388,Reliability!$C$23:$C$50,0)),0),0)*$H388*$X388*$Y388),$D388)*$R388","v":0}]
[null,{"$f":"unique_contracts!B390","v":0},{"$f":"unique_contracts!D390","v":0},{"$f":"unique_contracts!J390","v":0},{"$f":"unique_contracts!M390","v":0},{"$f":"unique_contracts!N390","v":0},{"$f":"unique_contracts!P390","v":0},{"$f":"unique_contracts!R390","v":0},{"$f":"unique_contracts!V390","v":0},{"$f":"unique_contracts!AB390","v":0},{"$f":"unique_contracts!AM390","v":0},{"$f":"unique_contracts!AN390","v":0},{"$f":"unique_contracts!AO390","v":0},{"$f":"unique_contracts!AP390","v":0},{"$f":"unique_contracts!AQ390","v":0},{"$f":"unique_contracts!AR390","v":0},{"$f":"unique_contracts!BP390","v":0},0,{"$f":"IFERROR(IF(AND(I389>0,E389=\"NotHybrid\"),_xlfn.CONCAT(MAX(MIN(ROUNDDOWN(I389/D389,0),8),4),INDEX(resources!$G:$G,MATCH(B389,resources!$A:$A,0))),INDEX(resources!$G:$G,MATCH(B389,resources!$A:$A,0))),\"n/a\")","v":"n/a"},"n/a","n/a",0,0,1,1,{"$f":"MIN((IFERROR(IF(AND($V389<=Z$1,$W389>=Z$1),INDEX(Reliability!E$23:E$50,MATCH($S389,Reliability!$C$23:$C$50,0)),0),0)*IF($T389=\"n/a\",$D389*$Y389,$G389)+IFERROR(IF(AND($V389<=Z$1,$W389>=Z$1),INDEX(Reliability!E$23:E$50,MATCH($T389,Reliability!$C$23:$C$50,0)),0),0)*$H389*$X389*$Y389),$D389)*$R389","v":0},{"$f":"MIN((IFERROR(IF(AND($V389<=AA$1,$W389>=AA$1),INDEX(Reliability!F$23:F$50,MATCH($S389,Reliability!$C$23:$C$50,0)),0),0)*IF($T389=\"n/a\",$D389*$Y389,$G389)+IFERROR(IF(AND($V389<=AA$1,$W389>=AA$1),INDEX(Reliability!F$23:F$50,MATCH($T389,Reliability!$C$23:$C$50,0)),0),0)*$H389*$X389*$Y389),$D389)*$R389","v":0},{"$f":"MIN((IFERROR(IF(AND($V389<=AB$1,$W389>=AB$1),INDEX(Reliability!G$23:G$50,MATCH($S389,Reliability!$C$23:$C$50,0)),0),0)*IF($T389=\"n/a\",$D389*$Y389,$G389)+IFERROR(IF(AND($V389<=AB$1,$W389>=AB$1),INDEX(Reliability!G$23:G$50,MATCH($T389,Reliability!$C$23:$C$50,0)),0),0)*$H389*$X389*$Y389),$D389)*$R389","v":0},{"$f":"MIN((IFERROR(IF(AND($V389<=AC$1,$W389>=AC$1),INDEX(Reliability!H$23:H$50,MATCH($S389,Reliability!$C$23:$C$50,0)),0),0)*IF($T389=\"n/a\",$D389*$Y389,$G389)+IFERROR(IF(AND($V389<=AC$1,$W389>=AC$1),INDEX(Reliability!H$23:H$50,MATCH($T389,Reliability!$C$23:$C$50,0)),0),0)*$H389*$X389*$Y389),$D389)*$R389","v":0},{"$f":"MIN((IFERROR(IF(AND($V389<=AD$1,$W389>=AD$1),INDEX(Reliability!I$23:I$50,MATCH($S389,Reliability!$C$23:$C$50,0)),0),0)*IF($T389=\"n/a\",$D389*$Y389,$G389)+IFERROR(IF(AND($V389<=AD$1,$W389>=AD$1),INDEX(Reliability!I$23:I$50,MATCH($T389,Reliability!$C$23:$C$50,0)),0),0)*$H389*$X389*$Y389),$D389)*$R389","v":0},{"$f":"MIN((IFERROR(IF(AND($V389<=AE$1,$W389>=AE$1),INDEX(Reliability!J$23:J$50,MATCH($S389,Reliability!$C$23:$C$50,0)),0),0)*IF($T389=\"n/a\",$D389*$Y389,$G389)+IFERROR(IF(AND($V389<=AE$1,$W389>=AE$1),INDEX(Reliability!J$23:J$50,MATCH($T389,Reliability!$C$23:$C$50,0)),0),0)*$H389*$X389*$Y389),$D389)*$R389","v":0},{"$f":"MIN((IFERROR(IF(AND($V389<=AF$1,$W389>=AF$1),INDEX(Reliability!K$23:K$50,MATCH($S389,Reliability!$C$23:$C$50,0)),0),0)*IF($T389=\"n/a\",$D389*$Y389,$G389)+IFERROR(IF(AND($V389<=AF$1,$W389>=AF$1),INDEX(Reliability!K$23:K$50,MATCH($T389,Reliability!$C$23:$C$50,0)),0),0)*$H389*$X389*$Y389),$D389)*$R389","v":0},{"$f":"MIN((IFERROR(IF(AND($V389<=AG$1,$W389>=AG$1),INDEX(Reliability!L$23:L$50,MATCH($S389,Reliability!$C$23:$C$50,0)),0),0)*IF($T389=\"n/a\",$D389*$Y389,$G389)+IFERROR(IF(AND($V389<=AG$1,$W389>=AG$1),INDEX(Reliability!L$23:L$50,MATCH($T389,Reliability!$C$23:$C$50,0)),0),0)*$H389*$X389*$Y389),$D389)*$R389","v":0},{"$f":"MIN((IFERROR(IF(AND($V389<=AH$1,$W389>=AH$1),INDEX(Reliability!M$23:M$50,MATCH($S389,Reliability!$C$23:$C$50,0)),0),0)*IF($T389=\"n/a\",$D389*$Y389,$G389)+IFERROR(IF(AND($V389<=AH$1,$W389>=AH$1),INDEX(Reliability!M$23:M$50,MATCH($T389,Reliability!$C$23:$C$50,0)),0),0)*$H389*$X389*$Y389),$D389)*$R389","v":0},{"$f":"MIN((IFERROR(IF(AND($V389<=AI$1,$W389>=AI$1),INDEX(Reliability!N$23:N$50,MATCH($S389,Reliability!$C$23:$C$50,0)),0),0)*IF($T389=\"n/a\",$D389*$Y389,$G389)+IFERROR(IF(AND($V389<=AI$1,$W389>=AI$1),INDEX(Reliability!N$23:N$50,MATCH($T389,Reliability!$C$23:$C$50,0)),0),0)*$H389*$X389*$Y389),$D389)*$R389","v":0},{"$f":"MIN((IFERROR(IF(AND($V389<=AJ$1,$W389>=AJ$1),INDEX(Reliability!O$23:O$50,MATCH($S389,Reliability!$C$23:$C$50,0)),0),0)*IF($T389=\"n/a\",$D389*$Y389,$G389)+IFERROR(IF(AND($V389<=AJ$1,$W389>=AJ$1),INDEX(Reliability!O$23:O$50,MATCH($T389,Reliability!$C$23:$C$50,0)),0),0)*$H389*$X389*$Y389),$D389)*$R389","v":0},{"$f":"MIN((IFERROR(IF(AND($V389<=AK$1,$W389>=AK$1),INDEX(Reliability!P$23:P$50,MATCH($S389,Reliability!$C$23:$C$50,0)),0),0)*IF($T389=\"n/a\",$D389*$Y389,$G389)+IFERROR(IF(AND($V389<=AK$1,$W389>=AK$1),INDEX(Reliability!P$23:P$50,MATCH($T389,Reliability!$C$23:$C$50,0)),0),0)*$H389*$X389*$Y389),$D389)*$R389","v":0}]
[null,{"$f":"unique_contracts!B391","v":0},{"$f":"unique_contracts!D391","v":0},{"$f":"unique_contracts!J391","v":0},{"$f":"unique_contracts!M391","v":0},{"$f":"unique_contracts!N391","v":0},{"$f":"unique_contracts!P391","v":0},{"$f":"unique_contracts!R391","v":0},{"$f":"unique_contracts!V391","v":0},{"$f":"unique_contracts!AB391","v":0},{"$f":"unique_contracts!AM391","v":0},{"$f":"unique_contracts!AN391","v":0},{"$f":"unique_contracts!AO391","v":0},{"$f":"unique_contracts!AP391","v":0},{"$f":"unique_contracts!AQ391","v":0},{"$f":"unique_contracts!AR391","v":0},{"$f":"unique_contracts!BP391","v":0},0,{"$f":"IFERROR(IF(AND(I390>0,E390=\"NotHybrid\"),_xlfn.CONCAT(MAX(MIN(ROUNDDOWN(I390/D390,0),8),4),INDEX(resources!$G:$G,MATCH(B390,resources!$A:$A,0))),INDEX(resources!$G:$G,MATCH(B390,resources!$A:$A,0))),\"n/a\")","v":"n/a"},"n/a","n/a",0,0,1,1,{"$f":"MIN((IFERROR(IF(AND($V390<=Z$1,$W390>=Z$1),INDEX(Reliability!E$23:E$50,MATCH($S390,Reliability!$C$23:$C$50,0)),0),0)*IF($T390=\"n/a\",$D390*$Y390,$G390)+IFERROR(IF(AND($V390<=Z$1,$W390>=Z$1),INDEX(Reliability!E$23:E$50,MATCH($T390,Reliability!$C$23:$C$50,0)),0),0)*$H390*$X390*$Y390),$D390)*$R390","v":0},{"$f":"MIN((IFERROR(IF(AND($V390<=AA$1,$W390>=AA$1),INDEX(Reliability!F$23:F$50,MATCH($S390,Reliability!$C$23:$C$50,0)),0),0)*IF($T390=\"n/a\",$D390*$Y390,$G390)+IFERROR(IF(AND($V390<=AA$1,$W390>=AA$1),INDEX(Reliability!F$23:F$50,MATCH($T390,Reliability!$C$23:$C$50,0)),0),0)*$H390*$X390*$Y390),$D390)*$R390","v":0},{"$f":"MIN((IFERROR(IF(AND($V390<=AB$1,$W390>=AB$1),INDEX(Reliability!G$23:G$50,MATCH($S390,Reliability!$C$23:$C$50,0)),0),0)*IF($T390=\"n/a\",$D390*$Y390,$G390)+IFERROR(IF(AND($V390<=AB$1,$W390>=AB$1),INDEX(Reliability!G$23:G$50,MATCH($T390,Reliability!$C$23:$C$50,0)),0),0)*$H390*$X390*$Y390),$D390)*$R390","v":0},{"$f":"MIN((IFERROR(IF(AND($V390<=AC$1,$W390>=AC$1),INDEX(Reliability!H$23:H$50,MATCH($S390,Reliability!$C$23:$C$50,0)),0),0)*IF($T390=\"n/a\",$D390*$Y390,$G390)+IFERROR(IF(AND($V390<=AC$1,$W390>=AC$1),INDEX(Reliability!H$23:H$50,MATCH($T390,Reliability!$C$23:$C$50,0)),0),0)*$H390*$X390*$Y390),$D390)*$R390","v":0},{"$f":"MIN((IFERROR(IF(AND($V390<=AD$1,$W390>=AD$1),INDEX(Reliability!I$23:I$50,MATCH($S390,Reliability!$C$23:$C$50,0)),0),0)*IF($T390=\"n/a\",$D390*$Y390,$G390)+IFERROR(IF(AND($V390<=AD$1,$W390>=AD$1),INDEX(Reliability!I$23:I$50,MATCH($T390,Reliability!$C$23:$C$50,0)),0),0)*$H390*$X390*$Y390),$D390)*$R390","v":0},{"$f":"MIN((IFERROR(IF(AND($V390<=AE$1,$W390>=AE$1),INDEX(Reliability!J$23:J$50,MATCH($S390,Reliability!$C$23:$C$50,0)),0),0)*IF($T390=\"n/a\",$D390*$Y390,$G390)+IFERROR(IF(AND($V390<=AE$1,$W390>=AE$1),INDEX(Reliability!J$23:J$50,MATCH($T390,Reliability!$C$23:$C$50,0)),0),0)*$H390*$X390*$Y390),$D390)*$R390","v":0},{"$f":"MIN((IFERROR(IF(AND($V390<=AF$1,$W390>=AF$1),INDEX(Reliability!K$23:K$50,MATCH($S390,Reliability!$C$23:$C$50,0)),0),0)*IF($T390=\"n/a\",$D390*$Y390,$G390)+IFERROR(IF(AND($V390<=AF$1,$W390>=AF$1),INDEX(Reliability!K$23:K$50,MATCH($T390,Reliability!$C$23:$C$50,0)),0),0)*$H390*$X390*$Y390),$D390)*$R390","v":0},{"$f":"MIN((IFERROR(IF(AND($V390<=AG$1,$W390>=AG$1),INDEX(Reliability!L$23:L$50,MATCH($S390,Reliability!$C$23:$C$50,0)),0),0)*IF($T390=\"n/a\",$D390*$Y390,$G390)+IFERROR(IF(AND($V390<=AG$1,$W390>=AG$1),INDEX(Reliability!L$23:L$50,MATCH($T390,Reliability!$C$23:$C$50,0)),0),0)*$H390*$X390*$Y390),$D390)*$R390","v":0},{"$f":"MIN((IFERROR(IF(AND($V390<=AH$1,$W390>=AH$1),INDEX(Reliability!M$23:M$50,MATCH($S390,Reliability!$C$23:$C$50,0)),0),0)*IF($T390=\"n/a\",$D390*$Y390,$G390)+IFERROR(IF(AND($V390<=AH$1,$W390>=AH$1),INDEX(Reliability!M$23:M$50,MATCH($T390,Reliability!$C$23:$C$50,0)),0),0)*$H390*$X390*$Y390),$D390)*$R390","v":0},{"$f":"MIN((IFERROR(IF(AND($V390<=AI$1,$W390>=AI$1),INDEX(Reliability!N$23:N$50,MATCH($S390,Reliability!$C$23:$C$50,0)),0),0)*IF($T390=\"n/a\",$D390*$Y390,$G390)+IFERROR(IF(AND($V390<=AI$1,$W390>=AI$1),INDEX(Reliability!N$23:N$50,MATCH($T390,Reliability!$C$23:$C$50,0)),0),0)*$H390*$X390*$Y390),$D390)*$R390","v":0},{"$f":"MIN((IFERROR(IF(AND($V390<=AJ$1,$W390>=AJ$1),INDEX(Reliability!O$23:O$50,MATCH($S390,Reliability!$C$23:$C$50,0)),0),0)*IF($T390=\"n/a\",$D390*$Y390,$G390)+IFERROR(IF(AND($V390<=AJ$1,$W390>=AJ$1),INDEX(Reliability!O$23:O$50,MATCH($T390,Reliability!$C$23:$C$50,0)),0),0)*$H390*$X390*$Y390),$D390)*$R390","v":0},{"$f":"MIN((IFERROR(IF(AND($V390<=AK$1,$W390>=AK$1),INDEX(Reliability!P$23:P$50,MATCH($S390,Reliability!$C$23:$C$50,0)),0),0)*IF($T390=\"n/a\",$D390*$Y390,$G390)+IFERROR(IF(AND($V390<=AK$1,$W390>=AK$1),INDEX(Reliability!P$23:P$50,MATCH($T390,Reliability!$C$23:$C$50,0)),0),0)*$H390*$X390*$Y390),$D390)*$R390","v":0}]
[null,{"$f":"unique_contracts!B392","v":0},{"$f":"unique_contracts!D392","v":0},{"$f":"unique_contracts!J392","v":0},{"$f":"unique_contracts!M392","v":0},{"$f":"unique_contracts!N392","v":0},{"$f":"unique_contracts!P392","v":0},{"$f":"unique_contracts!R392","v":0},{"$f":"unique_contracts!V392","v":0},{"$f":"unique_contracts!AB392","v":0},{"$f":"unique_contracts!AM392","v":0},{"$f":"unique_contracts!AN392","v":0},{"$f":"unique_contracts!AO392","v":0},{"$f":"unique_contracts!AP392","v":0},{"$f":"unique_contracts!AQ392","v":0},{"$f":"unique_contracts!AR392","v":0},{"$f":"unique_contracts!BP392","v":0},0,{"$f":"IFERROR(IF(AND(I391>0,E391=\"NotHybrid\"),_xlfn.CONCAT(MAX(MIN(ROUNDDOWN(I391/D391,0),8),4),INDEX(resources!$G:$G,MATCH(B391,resources!$A:$A,0))),INDEX(resources!$G:$G,MATCH(B391,resources!$A:$A,0))),\"n/a\")","v":"n/a"},"n/a","n/a",0,0,1,1,{"$f":"MIN((IFERROR(IF(AND($V391<=Z$1,$W391>=Z$1),INDEX(Reliability!E$23:E$50,MATCH($S391,Reliability!$C$23:$C$50,0)),0),0)*IF($T391=\"n/a\",$D391*$Y391,$G391)+IFERROR(IF(AND($V391<=Z$1,$W391>=Z$1),INDEX(Reliability!E$23:E$50,MATCH($T391,Reliability!$C$23:$C$50,0)),0),0)*$H391*$X391*$Y391),$D391)*$R391","v":0},{"$f":"MIN((IFERROR(IF(AND($V391<=AA$1,$W391>=AA$1),INDEX(Reliability!F$23:F$50,MATCH($S391,Reliability!$C$23:$C$50,0)),0),0)*IF($T391=\"n/a\",$D391*$Y391,$G391)+IFERROR(IF(AND($V391<=AA$1,$W391>=AA$1),INDEX(Reliability!F$23:F$50,MATCH($T391,Reliability!$C$23:$C$50,0)),0),0)*$H391*$X391*$Y391),$D391)*$R391","v":0},{"$f":"MIN((IFERROR(IF(AND($V391<=AB$1,$W391>=AB$1),INDEX(Reliability!G$23:G$50,MATCH($S391,Reliability!$C$23:$C$50,0)),0),0)*IF($T391=\"n/a\",$D391*$Y391,$G391)+IFERROR(IF(AND($V391<=AB$1,$W391>=AB$1),INDEX(Reliability!G$23:G$50,MATCH($T391,Reliability!$C$23:$C$50,0)),0),0)*$H391*$X391*$Y391),$D391)*$R391","v":0},{"$f":"MIN((IFERROR(IF(AND($V391<=AC$1,$W391>=AC$1),INDEX(Reliability!H$23:H$50,MATCH($S391,Reliability!$C$23:$C$50,0)),0),0)*IF($T391=\"n/a\",$D391*$Y391,$G391)+IFERROR(IF(AND($V391<=AC$1,$W391>=AC$1),INDEX(Reliability!H$23:H$50,MATCH($T391,Reliability!$C$23:$C$50,0)),0),0)*$H391*$X391*$Y391),$D391)*$R391","v":0},{"$f":"MIN((IFERROR(IF(AND($V391<=AD$1,$W391>=AD$1),INDEX(Reliability!I$23:I$50,MATCH($S391,Reliability!$C$23:$C$50,0)),0),0)*IF($T391=\"n/a\",$D391*$Y391,$G391)+IFERROR(IF(AND($V391<=AD$1,$W391>=AD$1),INDEX(Reliability!I$23:I$50,MATCH($T391,Reliability!$C$23:$C$50,0)),0),0)*$H391*$X391*$Y391),$D391)*$R391","v":0},{"$f":"MIN((IFERROR(IF(AND($V391<=AE$1,$W391>=AE$1),INDEX(Reliability!J$23:J$50,MATCH($S391,Reliability!$C$23:$C$50,0)),0),0)*IF($T391=\"n/a\",$D391*$Y391,$G391)+IFERROR(IF(AND($V391<=AE$1,$W391>=AE$1),INDEX(Reliability!J$23:J$50,MATCH($T391,Reliability!$C$23:$C$50,0)),0),0)*$H391*$X391*$Y391),$D391)*$R391","v":0},{"$f":"MIN((IFERROR(IF(AND($V391<=AF$1,$W391>=AF$1),INDEX(Reliability!K$23:K$50,MATCH($S391,Reliability!$C$23:$C$50,0)),0),0)*IF($T391=\"n/a\",$D391*$Y391,$G391)+IFERROR(IF(AND($V391<=AF$1,$W391>=AF$1),INDEX(Reliability!K$23:K$50,MATCH($T391,Reliability!$C$23:$C$50,0)),0),0)*$H391*$X391*$Y391),$D391)*$R391","v":0},{"$f":"MIN((IFERROR(IF(AND($V391<=AG$1,$W391>=AG$1),INDEX(Reliability!L$23:L$50,MATCH($S391,Reliability!$C$23:$C$50,0)),0),0)*IF($T391=\"n/a\",$D391*$Y391,$G391)+IFERROR(IF(AND($V391<=AG$1,$W391>=AG$1),INDEX(Reliability!L$23:L$50,MATCH($T391,Reliability!$C$23:$C$50,0)),0),0)*$H391*$X391*$Y391),$D391)*$R391","v":0},{"$f":"MIN((IFERROR(IF(AND($V391<=AH$1,$W391>=AH$1),INDEX(Reliability!M$23:M$50,MATCH($S391,Reliability!$C$23:$C$50,0)),0),0)*IF($T391=\"n/a\",$D391*$Y391,$G391)+IFERROR(IF(AND($V391<=AH$1,$W391>=AH$1),INDEX(Reliability!M$23:M$50,MATCH($T391,Reliability!$C$23:$C$50,0)),0),0)*$H391*$X391*$Y391),$D391)*$R391","v":0},{"$f":"MIN((IFERROR(IF(AND($V391<=AI$1,$W391>=AI$1),INDEX(Reliability!N$23:N$50,MATCH($S391,Reliability!$C$23:$C$50,0)),0),0)*IF($T391=\"n/a\",$D391*$Y391,$G391)+IFERROR(IF(AND($V391<=AI$1,$W391>=AI$1),INDEX(Reliability!N$23:N$50,MATCH($T391,Reliability!$C$23:$C$50,0)),0),0)*$H391*$X391*$Y391),$D391)*$R391","v":0},{"$f":"MIN((IFERROR(IF(AND($V391<=AJ$1,$W391>=AJ$1),INDEX(Reliability!O$23:O$50,MATCH($S391,Reliability!$C$23:$C$50,0)),0),0)*IF($T391=\"n/a\",$D391*$Y391,$G391)+IFERROR(IF(AND($V391<=AJ$1,$W391>=AJ$1),INDEX(Reliability!O$23:O$50,MATCH($T391,Reliability!$C$23:$C$50,0)),0),0)*$H391*$X391*$Y391),$D391)*$R391","v":0},{"$f":"MIN((IFERROR(IF(AND($V391<=AK$1,$W391>=AK$1),INDEX(Reliability!P$23:P$50,MATCH($S391,Reliability!$C$23:$C$50,0)),0),0)*IF($T391=\"n/a\",$D391*$Y391,$G391)+IFERROR(IF(AND($V391<=AK$1,$W391>=AK$1),INDEX(Reliability!P$23:P$50,MATCH($T391,Reliability!$C$23:$C$50,0)),0),0)*$H391*$X391*$Y391),$D391)*$R391","v":0}]
[null,{"$f":"unique_contracts!B393","v":0},{"$f":"unique_contracts!D393","v":0},{"$f":"unique_contracts!J393","v":0},{"$f":"unique_contracts!M393","v":0},{"$f":"unique_contracts!N393","v":0},{"$f":"unique_contracts!P393","v":0},{"$f":"unique_contracts!R393","v":0},{"$f":"unique_contracts!V393","v":0},{"$f":"unique_contracts!AB393","v":0},{"$f":"unique_contracts!AM393","v":0},{"$f":"unique_contracts!AN393","v":0},{"$f":"unique_contracts!AO393","v":0},{"$f":"unique_contracts!AP393","v":0},{"$f":"unique_contracts!AQ393","v":0},{"$f":"unique_contracts!AR393","v":0},{"$f":"unique_contracts!BP393","v":0},0,{"$f":"IFERROR(IF(AND(I392>0,E392=\"NotHybrid\"),_xlfn.CONCAT(MAX(MIN(ROUNDDOWN(I392/D392,0),8),4),INDEX(resources!$G:$G,MATCH(B392,resources!$A:$A,0))),INDEX(resources!$G:$G,MATCH(B392,resources!$A:$A,0))),\"n/a\")","v":"n/a"},"n/a","n/a",0,0,1,1,{"$f":"MIN((IFERROR(IF(AND($V392<=Z$1,$W392>=Z$1),INDEX(Reliability!E$23:E$50,MATCH($S392,Reliability!$C$23:$C$50,0)),0),0)*IF($T392=\"n/a\",$D392*$Y392,$G392)+IFERROR(IF(AND($V392<=Z$1,$W392>=Z$1),INDEX(Reliability!E$23:E$50,MATCH($T392,Reliability!$C$23:$C$50,0)),0),0)*$H392*$X392*$Y392),$D392)*$R392","v":0},{"$f":"MIN((IFERROR(IF(AND($V392<=AA$1,$W392>=AA$1),INDEX(Reliability!F$23:F$50,MATCH($S392,Reliability!$C$23:$C$50,0)),0),0)*IF($T392=\"n/a\",$D392*$Y392,$G392)+IFERROR(IF(AND($V392<=AA$1,$W392>=AA$1),INDEX(Reliability!F$23:F$50,MATCH($T392,Reliability!$C$23:$C$50,0)),0),0)*$H392*$X392*$Y392),$D392)*$R392","v":0},{"$f":"MIN((IFERROR(IF(AND($V392<=AB$1,$W392>=AB$1),INDEX(Reliability!G$23:G$50,MATCH($S392,Reliability!$C$23:$C$50,0)),0),0)*IF($T392=\"n/a\",$D392*$Y392,$G392)+IFERROR(IF(AND($V392<=AB$1,$W392>=AB$1),INDEX(Reliability!G$23:G$50,MATCH($T392,Reliability!$C$23:$C$50,0)),0),0)*$H392*$X392*$Y392),$D392)*$R392","v":0},{"$f":"MIN((IFERROR(IF(AND($V392<=AC$1,$W392>=AC$1),INDEX(Reliability!H$23:H$50,MATCH($S392,Reliability!$C$23:$C$50,0)),0),0)*IF($T392=\"n/a\",$D392*$Y392,$G392)+IFERROR(IF(AND($V392<=AC$1,$W392>=AC$1),INDEX(Reliability!H$23:H$50,MATCH($T392,Reliability!$C$23:$C$50,0)),0),0)*$H392*$X392*$Y392),$D392)*$R392","v":0},{"$f":"MIN((IFERROR(IF(AND($V392<=AD$1,$W392>=AD$1),INDEX(Reliability!I$23:I$50,MATCH($S392,Reliability!$C$23:$C$50,0)),0),0)*IF($T392=\"n/a\",$D392*$Y392,$G392)+IFERROR(IF(AND($V392<=AD$1,$W392>=AD$1),INDEX(Reliability!I$23:I$50,MATCH($T392,Reliability!$C$23:$C$50,0)),0),0)*$H392*$X392*$Y392),$D392)*$R392","v":0},{"$f":"MIN((IFERROR(IF(AND($V392<=AE$1,$W392>=AE$1),INDEX(Reliability!J$23:J$50,MATCH($S392,Reliability!$C$23:$C$50,0)),0),0)*IF($T392=\"n/a\",$D392*$Y392,$G392)+IFERROR(IF(AND($V392<=AE$1,$W392>=AE$1),INDEX(Reliability!J$23:J$50,MATCH($T392,Reliability!$C$23:$C$50,0)),0),0)*$H392*$X392*$Y392),$D392)*$R392","v":0},{"$f":"MIN((IFERROR(IF(AND($V392<=AF$1,$W392>=AF$1),INDEX(Reliability!K$23:K$50,MATCH($S392,Reliability!$C$23:$C$50,0)),0),0)*IF($T392=\"n/a\",$D392*$Y392,$G392)+IFERROR(IF(AND($V392<=AF$1,$W392>=AF$1),INDEX(Reliability!K$23:K$50,MATCH($T392,Reliability!$C$23:$C$50,0)),0),0)*$H392*$X392*$Y392),$D392)*$R392","v":0},{"$f":"MIN((IFERROR(IF(AND($V392<=AG$1,$W392>=AG$1),INDEX(Reliability!L$23:L$50,MATCH($S392,Reliability!$C$23:$C$50,0)),0),0)*IF($T392=\"n/a\",$D392*$Y392,$G392)+IFERROR(IF(AND($V392<=AG$1,$W392>=AG$1),INDEX(Reliability!L$23:L$50,MATCH($T392,Reliability!$C$23:$C$50,0)),0),0)*$H392*$X392*$Y392),$D392)*$R392","v":0},{"$f":"MIN((IFERROR(IF(AND($V392<=AH$1,$W392>=AH$1),INDEX(Reliability!M$23:M$50,MATCH($S392,Reliability!$C$23:$C$50,0)),0),0)*IF($T392=\"n/a\",$D392*$Y392,$G392)+IFERROR(IF(AND($V392<=AH$1,$W392>=AH$1),INDEX(Reliability!M$23:M$50,MATCH($T392,Reliability!$C$23:$C$50,0)),0),0)*$H392*$X392*$Y392),$D392)*$R392","v":0},{"$f":"MIN((IFERROR(IF(AND($V392<=AI$1,$W392>=AI$1),INDEX(Reliability!N$23:N$50,MATCH($S392,Reliability!$C$23:$C$50,0)),0),0)*IF($T392=\"n/a\",$D392*$Y392,$G392)+IFERROR(IF(AND($V392<=AI$1,$W392>=AI$1),INDEX(Reliability!N$23:N$50,MATCH($T392,Reliability!$C$23:$C$50,0)),0),0)*$H392*$X392*$Y392),$D392)*$R392","v":0},{"$f":"MIN((IFERROR(IF(AND($V392<=AJ$1,$W392>=AJ$1),INDEX(Reliability!O$23:O$50,MATCH($S392,Reliability!$C$23:$C$50,0)),0),0)*IF($T392=\"n/a\",$D392*$Y392,$G392)+IFERROR(IF(AND($V392<=AJ$1,$W392>=AJ$1),INDEX(Reliability!O$23:O$50,MATCH($T392,Reliability!$C$23:$C$50,0)),0),0)*$H392*$X392*$Y392),$D392)*$R392","v":0},{"$f":"MIN((IFERROR(IF(AND($V392<=AK$1,$W392>=AK$1),INDEX(Reliability!P$23:P$50,MATCH($S392,Reliability!$C$23:$C$50,0)),0),0)*IF($T392=\"n/a\",$D392*$Y392,$G392)+IFERROR(IF(AND($V392<=AK$1,$W392>=AK$1),INDEX(Reliability!P$23:P$50,MATCH($T392,Reliability!$C$23:$C$50,0)),0),0)*$H392*$X392*$Y392),$D392)*$R392","v":0}]
[null,{"$f":"unique_contracts!B394","v":0},{"$f":"unique_contracts!D394","v":0},{"$f":"unique_contracts!J394","v":0},{"$f":"unique_contracts!M394","v":0},{"$f":"unique_contracts!N394","v":0},{"$f":"unique_contracts!P394","v":0},{"$f":"unique_contracts!R394","v":0},{"$f":"unique_contracts!V394","v":0},{"$f":"unique_contracts!AB394","v":0},{"$f":"unique_contracts!AM394","v":0},{"$f":"unique_contracts!AN394","v":0},{"$f":"unique_contracts!AO394","v":0},{"$f":"unique_contracts!AP394","v":0},{"$f":"unique_contracts!AQ394","v":0},{"$f":"unique_contracts!AR394","v":0},{"$f":"unique_contracts!BP394","v":0},0,{"$f":"IFERROR(IF(AND(I393>0,E393=\"NotHybrid\"),_xlfn.CONCAT(MAX(MIN(ROUNDDOWN(I393/D393,0),8),4),INDEX(resources!$G:$G,MATCH(B393,resources!$A:$A,0))),INDEX(resources!$G:$G,MATCH(B393,resources!$A:$A,0))),\"n/a\")","v":"n/a"},"n/a","n/a",0,0,1,1,{"$f":"MIN((IFERROR(IF(AND($V393<=Z$1,$W393>=Z$1),INDEX(Reliability!E$23:E$50,MATCH($S393,Reliability!$C$23:$C$50,0)),0),0)*IF($T393=\"n/a\",$D393*$Y393,$G393)+IFERROR(IF(AND($V393<=Z$1,$W393>=Z$1),INDEX(Reliability!E$23:E$50,MATCH($T393,Reliability!$C$23:$C$50,0)),0),0)*$H393*$X393*$Y393),$D393)*$R393","v":0},{"$f":"MIN((IFERROR(IF(AND($V393<=AA$1,$W393>=AA$1),INDEX(Reliability!F$23:F$50,MATCH($S393,Reliability!$C$23:$C$50,0)),0),0)*IF($T393=\"n/a\",$D393*$Y393,$G393)+IFERROR(IF(AND($V393<=AA$1,$W393>=AA$1),INDEX(Reliability!F$23:F$50,MATCH($T393,Reliability!$C$23:$C$50,0)),0),0)*$H393*$X393*$Y393),$D393)*$R393","v":0},{"$f":"MIN((IFERROR(IF(AND($V393<=AB$1,$W393>=AB$1),INDEX(Reliability!G$23:G$50,MATCH($S393,Reliability!$C$23:$C$50,0)),0),0)*IF($T393=\"n/a\",$D393*$Y393,$G393)+IFERROR(IF(AND($V393<=AB$1,$W393>=AB$1),INDEX(Reliability!G$23:G$50,MATCH($T393,Reliability!$C$23:$C$50,0)),0),0)*$H393*$X393*$Y393),$D393)*$R393","v":0},{"$f":"MIN((IFERROR(IF(AND($V393<=AC$1,$W393>=AC$1),INDEX(Reliability!H$23:H$50,MATCH($S393,Reliability!$C$23:$C$50,0)),0),0)*IF($T393=\"n/a\",$D393*$Y393,$G393)+IFERROR(IF(AND($V393<=AC$1,$W393>=AC$1),INDEX(Reliability!H$23:H$50,MATCH($T393,Reliability!$C$23:$C$50,0)),0),0)*$H393*$X393*$Y393),$D393)*$R393","v":0},{"$f":"MIN((IFERROR(IF(AND($V393<=AD$1,$W393>=AD$1),INDEX(Reliability!I$23:I$50,MATCH($S393,Reliability!$C$23:$C$50,0)),0),0)*IF($T393=\"n/a\",$D393*$Y393,$G393)+IFERROR(IF(AND($V393<=AD$1,$W393>=AD$1),INDEX(Reliability!I$23:I$50,MATCH($T393,Reliability!$C$23:$C$50,0)),0),0)*$H393*$X393*$Y393),$D393)*$R393","v":0},{"$f":"MIN((IFERROR(IF(AND($V393<=AE$1,$W393>=AE$1),INDEX(Reliability!J$23:J$50,MATCH($S393,Reliability!$C$23:$C$50,0)),0),0)*IF($T393=\"n/a\",$D393*$Y393,$G393)+IFERROR(IF(AND($V393<=AE$1,$W393>=AE$1),INDEX(Reliability!J$23:J$50,MATCH($T393,Reliability!$C$23:$C$50,0)),0),0)*$H393*$X393*$Y393),$D393)*$R393","v":0},{"$f":"MIN((IFERROR(IF(AND($V393<=AF$1,$W393>=AF$1),INDEX(Reliability!K$23:K$50,MATCH($S393,Reliability!$C$23:$C$50,0)),0),0)*IF($T393=\"n/a\",$D393*$Y393,$G393)+IFERROR(IF(AND($V393<=AF$1,$W393>=AF$1),INDEX(Reliability!K$23:K$50,MATCH($T393,Reliability!$C$23:$C$50,0)),0),0)*$H393*$X393*$Y393),$D393)*$R393","v":0},{"$f":"MIN((IFERROR(IF(AND($V393<=AG$1,$W393>=AG$1),INDEX(Reliability!L$23:L$50,MATCH($S393,Reliability!$C$23:$C$50,0)),0),0)*IF($T393=\"n/a\",$D393*$Y393,$G393)+IFERROR(IF(AND($V393<=AG$1,$W393>=AG$1),INDEX(Reliability!L$23:L$50,MATCH($T393,Reliability!$C$23:$C$50,0)),0),0)*$H393*$X393*$Y393),$D393)*$R393","v":0},{"$f":"MIN((IFERROR(IF(AND($V393<=AH$1,$W393>=AH$1),INDEX(Reliability!M$23:M$50,MATCH($S393,Reliability!$C$23:$C$50,0)),0),0)*IF($T393=\"n/a\",$D393*$Y393,$G393)+IFERROR(IF(AND($V393<=AH$1,$W393>=AH$1),INDEX(Reliability!M$23:M$50,MATCH($T393,Reliability!$C$23:$C$50,0)),0),0)*$H393*$X393*$Y393),$D393)*$R393","v":0},{"$f":"MIN((IFERROR(IF(AND($V393<=AI$1,$W393>=AI$1),INDEX(Reliability!N$23:N$50,MATCH($S393,Reliability!$C$23:$C$50,0)),0),0)*IF($T393=\"n/a\",$D393*$Y393,$G393)+IFERROR(IF(AND($V393<=AI$1,$W393>=AI$1),INDEX(Reliability!N$23:N$50,MATCH($T393,Reliability!$C$23:$C$50,0)),0),0)*$H393*$X393*$Y393),$D393)*$R393","v":0},{"$f":"MIN((IFERROR(IF(AND($V393<=AJ$1,$W393>=AJ$1),INDEX(Reliability!O$23:O$50,MATCH($S393,Reliability!$C$23:$C$50,0)),0),0)*IF($T393=\"n/a\",$D393*$Y393,$G393)+IFERROR(IF(AND($V393<=AJ$1,$W393>=AJ$1),INDEX(Reliability!O$23:O$50,MATCH($T393,Reliability!$C$23:$C$50,0)),0),0)*$H393*$X393*$Y393),$D393)*$R393","v":0},{"$f":"MIN((IFERROR(IF(AND($V393<=AK$1,$W393>=AK$1),INDEX(Reliability!P$23:P$50,MATCH($S393,Reliability!$C$23:$C$50,0)),0),0)*IF($T393=\"n/a\",$D393*$Y393,$G393)+IFERROR(IF(AND($V393<=AK$1,$W393>=AK$1),INDEX(Reliability!P$23:P$50,MATCH($T393,Reliability!$C$23:$C$50,0)),0),0)*$H393*$X393*$Y393),$D393)*$R393","v":0}]
[null,{"$f":"unique_contracts!B395","v":0},{"$f":"unique_contracts!D395","v":0},{"$f":"unique_contracts!J395","v":0},{"$f":"unique_contracts!M395","v":0},{"$f":"unique_contracts!N395","v":0},{"$f":"unique_contracts!P395","v":0},{"$f":"unique_contracts!R395","v":0},{"$f":"unique_contracts!V395","v":0},{"$f":"unique_contracts!AB395","v":0},{"$f":"unique_contracts!AM395","v":0},{"$f":"unique_contracts!AN395","v":0},{"$f":"unique_contracts!AO395","v":0},{"$f":"unique_contracts!AP395","v":0},{"$f":"unique_contracts!AQ395","v":0},{"$f":"unique_contracts!AR395","v":0},{"$f":"unique_contracts!BP395","v":0},0,{"$f":"IFERROR(IF(AND(I394>0,E394=\"NotHybrid\"),_xlfn.CONCAT(MAX(MIN(ROUNDDOWN(I394/D394,0),8),4),INDEX(resources!$G:$G,MATCH(B394,resources!$A:$A,0))),INDEX(resources!$G:$G,MATCH(B394,resources!$A:$A,0))),\"n/a\")","v":"n/a"},"n/a","n/a",0,0,1,1,{"$f":"MIN((IFERROR(IF(AND($V394<=Z$1,$W394>=Z$1),INDEX(Reliability!E$23:E$50,MATCH($S394,Reliability!$C$23:$C$50,0)),0),0)*IF($T394=\"n/a\",$D394*$Y394,$G394)+IFERROR(IF(AND($V394<=Z$1,$W394>=Z$1),INDEX(Reliability!E$23:E$50,MATCH($T394,Reliability!$C$23:$C$50,0)),0),0)*$H394*$X394*$Y394),$D394)*$R394","v":0},{"$f":"MIN((IFERROR(IF(AND($V394<=AA$1,$W394>=AA$1),INDEX(Reliability!F$23:F$50,MATCH($S394,Reliability!$C$23:$C$50,0)),0),0)*IF($T394=\"n/a\",$D394*$Y394,$G394)+IFERROR(IF(AND($V394<=AA$1,$W394>=AA$1),INDEX(Reliability!F$23:F$50,MATCH($T394,Reliability!$C$23:$C$50,0)),0),0)*$H394*$X394*$Y394),$D394)*$R394","v":0},{"$f":"MIN((IFERROR(IF(AND($V394<=AB$1,$W394>=AB$1),INDEX(Reliability!G$23:G$50,MATCH($S394,Reliability!$C$23:$C$50,0)),0),0)*IF($T394=\"n/a\",$D394*$Y394,$G394)+IFERROR(IF(AND($V394<=AB$1,$W394>=AB$1),INDEX(Reliability!G$23:G$50,MATCH($T394,Reliability!$C$23:$C$50,0)),0),0)*$H394*$X394*$Y394),$D394)*$R394","v":0},{"$f":"MIN((IFERROR(IF(AND($V394<=AC$1,$W394>=AC$1),INDEX(Reliability!H$23:H$50,MATCH($S394,Reliability!$C$23:$C$50,0)),0),0)*IF($T394=\"n/a\",$D394*$Y394,$G394)+IFERROR(IF(AND($V394<=AC$1,$W394>=AC$1),INDEX(Reliability!H$23:H$50,MATCH($T394,Reliability!$C$23:$C$50,0)),0),0)*$H394*$X394*$Y394),$D394)*$R394","v":0},{"$f":"MIN((IFERROR(IF(AND($V394<=AD$1,$W394>=AD$1),INDEX(Reliability!I$23:I$50,MATCH($S394,Reliability!$C$23:$C$50,0)),0),0)*IF($T394=\"n/a\",$D394*$Y394,$G394)+IFERROR(IF(AND($V394<=AD$1,$W394>=AD$1),INDEX(Reliability!I$23:I$50,MATCH($T394,Reliability!$C$23:$C$50,0)),0),0)*$H394*$X394*$Y394),$D394)*$R394","v":0},{"$f":"MIN((IFERROR(IF(AND($V394<=AE$1,$W394>=AE$1),INDEX(Reliability!J$23:J$50,MATCH($S394,Reliability!$C$23:$C$50,0)),0),0)*IF($T394=\"n/a\",$D394*$Y394,$G394)+IFERROR(IF(AND($V394<=AE$1,$W394>=AE$1),INDEX(Reliability!J$23:J$50,MATCH($T394,Reliability!$C$23:$C$50,0)),0),0)*$H394*$X394*$Y394),$D394)*$R394","v":0},{"$f":"MIN((IFERROR(IF(AND($V394<=AF$1,$W394>=AF$1),INDEX(Reliability!K$23:K$50,MATCH($S394,Reliability!$C$23:$C$50,0)),0),0)*IF($T394=\"n/a\",$D394*$Y394,$G394)+IFERROR(IF(AND($V394<=AF$1,$W394>=AF$1),INDEX(Reliability!K$23:K$50,MATCH($T394,Reliability!$C$23:$C$50,0)),0),0)*$H394*$X394*$Y394),$D394)*$R394","v":0},{"$f":"MIN((IFERROR(IF(AND($V394<=AG$1,$W394>=AG$1),INDEX(Reliability!L$23:L$50,MATCH($S394,Reliability!$C$23:$C$50,0)),0),0)*IF($T394=\"n/a\",$D394*$Y394,$G394)+IFERROR(IF(AND($V394<=AG$1,$W394>=AG$1),INDEX(Reliability!L$23:L$50,MATCH($T394,Reliability!$C$23:$C$50,0)),0),0)*$H394*$X394*$Y394),$D394)*$R394","v":0},{"$f":"MIN((IFERROR(IF(AND($V394<=AH$1,$W394>=AH$1),INDEX(Reliability!M$23:M$50,MATCH($S394,Reliability!$C$23:$C$50,0)),0),0)*IF($T394=\"n/a\",$D394*$Y394,$G394)+IFERROR(IF(AND($V394<=AH$1,$W394>=AH$1),INDEX(Reliability!M$23:M$50,MATCH($T394,Reliability!$C$23:$C$50,0)),0),0)*$H394*$X394*$Y394),$D394)*$R394","v":0},{"$f":"MIN((IFERROR(IF(AND($V394<=AI$1,$W394>=AI$1),INDEX(Reliability!N$23:N$50,MATCH($S394,Reliability!$C$23:$C$50,0)),0),0)*IF($T394=\"n/a\",$D394*$Y394,$G394)+IFERROR(IF(AND($V394<=AI$1,$W394>=AI$1),INDEX(Reliability!N$23:N$50,MATCH($T394,Reliability!$C$23:$C$50,0)),0),0)*$H394*$X394*$Y394),$D394)*$R394","v":0},{"$f":"MIN((IFERROR(IF(AND($V394<=AJ$1,$W394>=AJ$1),INDEX(Reliability!O$23:O$50,MATCH($S394,Reliability!$C$23:$C$50,0)),0),0)*IF($T394=\"n/a\",$D394*$Y394,$G394)+IFERROR(IF(AND($V394<=AJ$1,$W394>=AJ$1),INDEX(Reliability!O$23:O$50,MATCH($T394,Reliability!$C$23:$C$50,0)),0),0)*$H394*$X394*$Y394),$D394)*$R394","v":0},{"$f":"MIN((IFERROR(IF(AND($V394<=AK$1,$W394>=AK$1),INDEX(Reliability!P$23:P$50,MATCH($S394,Reliability!$C$23:$C$50,0)),0),0)*IF($T394=\"n/a\",$D394*$Y394,$G394)+IFERROR(IF(AND($V394<=AK$1,$W394>=AK$1),INDEX(Reliability!P$23:P$50,MATCH($T394,Reliability!$C$23:$C$50,0)),0),0)*$H394*$X394*$Y394),$D394)*$R394","v":0}]
[null,{"$f":"unique_contracts!B396","v":0},{"$f":"unique_contracts!D396","v":0},{"$f":"unique_contracts!J396","v":0},{"$f":"unique_contracts!M396","v":0},{"$f":"unique_contracts!N396","v":0},{"$f":"unique_contracts!P396","v":0},{"$f":"unique_contracts!R396","v":0},{"$f":"unique_contracts!V396","v":0},{"$f":"unique_contracts!AB396","v":0},{"$f":"unique_contracts!AM396","v":0},{"$f":"unique_contracts!AN396","v":0},{"$f":"unique_contracts!AO396","v":0},{"$f":"unique_contracts!AP396","v":0},{"$f":"unique_contracts!AQ396","v":0},{"$f":"unique_contracts!AR396","v":0},{"$f":"unique_contracts!BP396","v":0},0,{"$f":"IFERROR(IF(AND(I395>0,E395=\"NotHybrid\"),_xlfn.CONCAT(MAX(MIN(ROUNDDOWN(I395/D395,0),8),4),INDEX(resources!$G:$G,MATCH(B395,resources!$A:$A,0))),INDEX(resources!$G:$G,MATCH(B395,resources!$A:$A,0))),\"n/a\")","v":"n/a"},"n/a","n/a",0,0,1,1,{"$f":"MIN((IFERROR(IF(AND($V395<=Z$1,$W395>=Z$1),INDEX(Reliability!E$23:E$50,MATCH($S395,Reliability!$C$23:$C$50,0)),0),0)*IF($T395=\"n/a\",$D395*$Y395,$G395)+IFERROR(IF(AND($V395<=Z$1,$W395>=Z$1),INDEX(Reliability!E$23:E$50,MATCH($T395,Reliability!$C$23:$C$50,0)),0),0)*$H395*$X395*$Y395),$D395)*$R395","v":0},{"$f":"MIN((IFERROR(IF(AND($V395<=AA$1,$W395>=AA$1),INDEX(Reliability!F$23:F$50,MATCH($S395,Reliability!$C$23:$C$50,0)),0),0)*IF($T395=\"n/a\",$D395*$Y395,$G395)+IFERROR(IF(AND($V395<=AA$1,$W395>=AA$1),INDEX(Reliability!F$23:F$50,MATCH($T395,Reliability!$C$23:$C$50,0)),0),0)*$H395*$X395*$Y395),$D395)*$R395","v":0},{"$f":"MIN((IFERROR(IF(AND($V395<=AB$1,$W395>=AB$1),INDEX(Reliability!G$23:G$50,MATCH($S395,Reliability!$C$23:$C$50,0)),0),0)*IF($T395=\"n/a\",$D395*$Y395,$G395)+IFERROR(IF(AND($V395<=AB$1,$W395>=AB$1),INDEX(Reliability!G$23:G$50,MATCH($T395,Reliability!$C$23:$C$50,0)),0),0)*$H395*$X395*$Y395),$D395)*$R395","v":0},{"$f":"MIN((IFERROR(IF(AND($V395<=AC$1,$W395>=AC$1),INDEX(Reliability!H$23:H$50,MATCH($S395,Reliability!$C$23:$C$50,0)),0),0)*IF($T395=\"n/a\",$D395*$Y395,$G395)+IFERROR(IF(AND($V395<=AC$1,$W395>=AC$1),INDEX(Reliability!H$23:H$50,MATCH($T395,Reliability!$C$23:$C$50,0)),0),0)*$H395*$X395*$Y395),$D395)*$R395","v":0},{"$f":"MIN((IFERROR(IF(AND($V395<=AD$1,$W395>=AD$1),INDEX(Reliability!I$23:I$50,MATCH($S395,Reliability!$C$23:$C$50,0)),0),0)*IF($T395=\"n/a\",$D395*$Y395,$G395)+IFERROR(IF(AND($V395<=AD$1,$W395>=AD$1),INDEX(Reliability!I$23:I$50,MATCH($T395,Reliability!$C$23:$C$50,0)),0),0)*$H395*$X395*$Y395),$D395)*$R395","v":0},{"$f":"MIN((IFERROR(IF(AND($V395<=AE$1,$W395>=AE$1),INDEX(Reliability!J$23:J$50,MATCH($S395,Reliability!$C$23:$C$50,0)),0),0)*IF($T395=\"n/a\",$D395*$Y395,$G395)+IFERROR(IF(AND($V395<=AE$1,$W395>=AE$1),INDEX(Reliability!J$23:J$50,MATCH($T395,Reliability!$C$23:$C$50,0)),0),0)*$H395*$X395*$Y395),$D395)*$R395","v":0},{"$f":"MIN((IFERROR(IF(AND($V395<=AF$1,$W395>=AF$1),INDEX(Reliability!K$23:K$50,MATCH($S395,Reliability!$C$23:$C$50,0)),0),0)*IF($T395=\"n/a\",$D395*$Y395,$G395)+IFERROR(IF(AND($V395<=AF$1,$W395>=AF$1),INDEX(Reliability!K$23:K$50,MATCH($T395,Reliability!$C$23:$C$50,0)),0),0)*$H395*$X395*$Y395),$D395)*$R395","v":0},{"$f":"MIN((IFERROR(IF(AND($V395<=AG$1,$W395>=AG$1),INDEX(Reliability!L$23:L$50,MATCH($S395,Reliability!$C$23:$C$50,0)),0),0)*IF($T395=\"n/a\",$D395*$Y395,$G395)+IFERROR(IF(AND($V395<=AG$1,$W395>=AG$1),INDEX(Reliability!L$23:L$50,MATCH($T395,Reliability!$C$23:$C$50,0)),0),0)*$H395*$X395*$Y395),$D395)*$R395","v":0},{"$f":"MIN((IFERROR(IF(AND($V395<=AH$1,$W395>=AH$1),INDEX(Reliability!M$23:M$50,MATCH($S395,Reliability!$C$23:$C$50,0)),0),0)*IF($T395=\"n/a\",$D395*$Y395,$G395)+IFERROR(IF(AND($V395<=AH$1,$W395>=AH$1),INDEX(Reliability!M$23:M$50,MATCH($T395,Reliability!$C$23:$C$50,0)),0),0)*$H395*$X395*$Y395),$D395)*$R395","v":0},{"$f":"MIN((IFERROR(IF(AND($V395<=AI$1,$W395>=AI$1),INDEX(Reliability!N$23:N$50,MATCH($S395,Reliability!$C$23:$C$50,0)),0),0)*IF($T395=\"n/a\",$D395*$Y395,$G395)+IFERROR(IF(AND($V395<=AI$1,$W395>=AI$1),INDEX(Reliability!N$23:N$50,MATCH($T395,Reliability!$C$23:$C$50,0)),0),0)*$H395*$X395*$Y395),$D395)*$R395","v":0},{"$f":"MIN((IFERROR(IF(AND($V395<=AJ$1,$W395>=AJ$1),INDEX(Reliability!O$23:O$50,MATCH($S395,Reliability!$C$23:$C$50,0)),0),0)*IF($T395=\"n/a\",$D395*$Y395,$G395)+IFERROR(IF(AND($V395<=AJ$1,$W395>=AJ$1),INDEX(Reliability!O$23:O$50,MATCH($T395,Reliability!$C$23:$C$50,0)),0),0)*$H395*$X395*$Y395),$D395)*$R395","v":0},{"$f":"MIN((IFERROR(IF(AND($V395<=AK$1,$W395>=AK$1),INDEX(Reliability!P$23:P$50,MATCH($S395,Reliability!$C$23:$C$50,0)),0),0)*IF($T395=\"n/a\",$D395*$Y395,$G395)+IFERROR(IF(AND($V395<=AK$1,$W395>=AK$1),INDEX(Reliability!P$23:P$50,MATCH($T395,Reliability!$C$23:$C$50,0)),0),0)*$H395*$X395*$Y395),$D395)*$R395","v":0}]
[null,{"$f":"unique_contracts!B397","v":0},{"$f":"unique_contracts!D397","v":0},{"$f":"unique_contracts!J397","v":0},{"$f":"unique_contracts!M397","v":0},{"$f":"unique_contracts!N397","v":0},{"$f":"unique_contracts!P397","v":0},{"$f":"unique_contracts!R397","v":0},{"$f":"unique_contracts!V397","v":0},{"$f":"unique_contracts!AB397","v":0},{"$f":"unique_contracts!AM397","v":0},{"$f":"unique_contracts!AN397","v":0},{"$f":"unique_contracts!AO397","v":0},{"$f":"unique_contracts!AP397","v":0},{"$f":"unique_contracts!AQ397","v":0},{"$f":"unique_contracts!AR397","v":0},{"$f":"unique_contracts!BP397","v":0},0,{"$f":"IFERROR(IF(AND(I396>0,E396=\"NotHybrid\"),_xlfn.CONCAT(MAX(MIN(ROUNDDOWN(I396/D396,0),8),4),INDEX(resources!$G:$G,MATCH(B396,resources!$A:$A,0))),INDEX(resources!$G:$G,MATCH(B396,resources!$A:$A,0))),\"n/a\")","v":"n/a"},"n/a","n/a",0,0,1,1,{"$f":"MIN((IFERROR(IF(AND($V396<=Z$1,$W396>=Z$1),INDEX(Reliability!E$23:E$50,MATCH($S396,Reliability!$C$23:$C$50,0)),0),0)*IF($T396=\"n/a\",$D396*$Y396,$G396)+IFERROR(IF(AND($V396<=Z$1,$W396>=Z$1),INDEX(Reliability!E$23:E$50,MATCH($T396,Reliability!$C$23:$C$50,0)),0),0)*$H396*$X396*$Y396),$D396)*$R396","v":0},{"$f":"MIN((IFERROR(IF(AND($V396<=AA$1,$W396>=AA$1),INDEX(Reliability!F$23:F$50,MATCH($S396,Reliability!$C$23:$C$50,0)),0),0)*IF($T396=\"n/a\",$D396*$Y396,$G396)+IFERROR(IF(AND($V396<=AA$1,$W396>=AA$1),INDEX(Reliability!F$23:F$50,MATCH($T396,Reliability!$C$23:$C$50,0)),0),0)*$H396*$X396*$Y396),$D396)*$R396","v":0},{"$f":"MIN((IFERROR(IF(AND($V396<=AB$1,$W396>=AB$1),INDEX(Reliability!G$23:G$50,MATCH($S396,Reliability!$C$23:$C$50,0)),0),0)*IF($T396=\"n/a\",$D396*$Y396,$G396)+IFERROR(IF(AND($V396<=AB$1,$W396>=AB$1),INDEX(Reliability!G$23:G$50,MATCH($T396,Reliability!$C$23:$C$50,0)),0),0)*$H396*$X396*$Y396),$D396)*$R396","v":0},{"$f":"MIN((IFERROR(IF(AND($V396<=AC$1,$W396>=AC$1),INDEX(Reliability!H$23:H$50,MATCH($S396,Reliability!$C$23:$C$50,0)),0),0)*IF($T396=\"n/a\",$D396*$Y396,$G396)+IFERROR(IF(AND($V396<=AC$1,$W396>=AC$1),INDEX(Reliability!H$23:H$50,MATCH($T396,Reliability!$C$23:$C$50,0)),0),0)*$H396*$X396*$Y396),$D396)*$R396","v":0},{"$f":"MIN((IFERROR(IF(AND($V396<=AD$1,$W396>=AD$1),INDEX(Reliability!I$23:I$50,MATCH($S396,Reliability!$C$23:$C$50,0)),0),0)*IF($T396=\"n/a\",$D396*$Y396,$G396)+IFERROR(IF(AND($V396<=AD$1,$W396>=AD$1),INDEX(Reliability!I$23:I$50,MATCH($T396,Reliability!$C$23:$C$50,0)),0),0)*$H396*$X396*$Y396),$D396)*$R396","v":0},{"$f":"MIN((IFERROR(IF(AND($V396<=AE$1,$W396>=AE$1),INDEX(Reliability!J$23:J$50,MATCH($S396,Reliability!$C$23:$C$50,0)),0),0)*IF($T396=\"n/a\",$D396*$Y396,$G396)+IFERROR(IF(AND($V396<=AE$1,$W396>=AE$1),INDEX(Reliability!J$23:J$50,MATCH($T396,Reliability!$C$23:$C$50,0)),0),0)*$H396*$X396*$Y396),$D396)*$R396","v":0},{"$f":"MIN((IFERROR(IF(AND($V396<=AF$1,$W396>=AF$1),INDEX(Reliability!K$23:K$50,MATCH($S396,Reliability!$C$23:$C$50,0)),0),0)*IF($T396=\"n/a\",$D396*$Y396,$G396)+IFERROR(IF(AND($V396<=AF$1,$W396>=AF$1),INDEX(Reliability!K$23:K$50,MATCH($T396,Reliability!$C$23:$C$50,0)),0),0)*$H396*$X396*$Y396),$D396)*$R396","v":0},{"$f":"MIN((IFERROR(IF(AND($V396<=AG$1,$W396>=AG$1),INDEX(Reliability!L$23:L$50,MATCH($S396,Reliability!$C$23:$C$50,0)),0),0)*IF($T396=\"n/a\",$D396*$Y396,$G396)+IFERROR(IF(AND($V396<=AG$1,$W396>=AG$1),INDEX(Reliability!L$23:L$50,MATCH($T396,Reliability!$C$23:$C$50,0)),0),0)*$H396*$X396*$Y396),$D396)*$R396","v":0},{"$f":"MIN((IFERROR(IF(AND($V396<=AH$1,$W396>=AH$1),INDEX(Reliability!M$23:M$50,MATCH($S396,Reliability!$C$23:$C$50,0)),0),0)*IF($T396=\"n/a\",$D396*$Y396,$G396)+IFERROR(IF(AND($V396<=AH$1,$W396>=AH$1),INDEX(Reliability!M$23:M$50,MATCH($T396,Reliability!$C$23:$C$50,0)),0),0)*$H396*$X396*$Y396),$D396)*$R396","v":0},{"$f":"MIN((IFERROR(IF(AND($V396<=AI$1,$W396>=AI$1),INDEX(Reliability!N$23:N$50,MATCH($S396,Reliability!$C$23:$C$50,0)),0),0)*IF($T396=\"n/a\",$D396*$Y396,$G396)+IFERROR(IF(AND($V396<=AI$1,$W396>=AI$1),INDEX(Reliability!N$23:N$50,MATCH($T396,Reliability!$C$23:$C$50,0)),0),0)*$H396*$X396*$Y396),$D396)*$R396","v":0},{"$f":"MIN((IFERROR(IF(AND($V396<=AJ$1,$W396>=AJ$1),INDEX(Reliability!O$23:O$50,MATCH($S396,Reliability!$C$23:$C$50,0)),0),0)*IF($T396=\"n/a\",$D396*$Y396,$G396)+IFERROR(IF(AND($V396<=AJ$1,$W396>=AJ$1),INDEX(Reliability!O$23:O$50,MATCH($T396,Reliability!$C$23:$C$50,0)),0),0)*$H396*$X396*$Y396),$D396)*$R396","v":0},{"$f":"MIN((IFERROR(IF(AND($V396<=AK$1,$W396>=AK$1),INDEX(Reliability!P$23:P$50,MATCH($S396,Reliability!$C$23:$C$50,0)),0),0)*IF($T396=\"n/a\",$D396*$Y396,$G396)+IFERROR(IF(AND($V396<=AK$1,$W396>=AK$1),INDEX(Reliability!P$23:P$50,MATCH($T396,Reliability!$C$23:$C$50,0)),0),0)*$H396*$X396*$Y396),$D396)*$R396","v":0}]
[null,{"$f":"unique_contracts!B398","v":0},{"$f":"unique_contracts!D398","v":0},{"$f":"unique_contracts!J398","v":0},{"$f":"unique_contracts!M398","v":0},{"$f":"unique_contracts!N398","v":0},{"$f":"unique_contracts!P398","v":0},{"$f":"unique_contracts!R398","v":0},{"$f":"unique_contracts!V398","v":0},{"$f":"unique_contracts!AB398","v":0},{"$f":"unique_contracts!AM398","v":0},{"$f":"unique_contracts!AN398","v":0},{"$f":"unique_contracts!AO398","v":0},{"$f":"unique_contracts!AP398","v":0},{"$f":"unique_contracts!AQ398","v":0},{"$f":"unique_contracts!AR398","v":0},{"$f":"unique_contracts!BP398","v":0},0,{"$f":"IFERROR(IF(AND(I397>0,E397=\"NotHybrid\"),_xlfn.CONCAT(MAX(MIN(ROUNDDOWN(I397/D397,0),8),4),INDEX(resources!$G:$G,MATCH(B397,resources!$A:$A,0))),INDEX(resources!$G:$G,MATCH(B397,resources!$A:$A,0))),\"n/a\")","v":"n/a"},"n/a","n/a",0,0,1,1,{"$f":"MIN((IFERROR(IF(AND($V397<=Z$1,$W397>=Z$1),INDEX(Reliability!E$23:E$50,MATCH($S397,Reliability!$C$23:$C$50,0)),0),0)*IF($T397=\"n/a\",$D397*$Y397,$G397)+IFERROR(IF(AND($V397<=Z$1,$W397>=Z$1),INDEX(Reliability!E$23:E$50,MATCH($T397,Reliability!$C$23:$C$50,0)),0),0)*$H397*$X397*$Y397),$D397)*$R397","v":0},{"$f":"MIN((IFERROR(IF(AND($V397<=AA$1,$W397>=AA$1),INDEX(Reliability!F$23:F$50,MATCH($S397,Reliability!$C$23:$C$50,0)),0),0)*IF($T397=\"n/a\",$D397*$Y397,$G397)+IFERROR(IF(AND($V397<=AA$1,$W397>=AA$1),INDEX(Reliability!F$23:F$50,MATCH($T397,Reliability!$C$23:$C$50,0)),0),0)*$H397*$X397*$Y397),$D397)*$R397","v":0},{"$f":"MIN((IFERROR(IF(AND($V397<=AB$1,$W397>=AB$1),INDEX(Reliability!G$23:G$50,MATCH($S397,Reliability!$C$23:$C$50,0)),0),0)*IF($T397=\"n/a\",$D397*$Y397,$G397)+IFERROR(IF(AND($V397<=AB$1,$W397>=AB$1),INDEX(Reliability!G$23:G$50,MATCH($T397,Reliability!$C$23:$C$50,0)),0),0)*$H397*$X397*$Y397),$D397)*$R397","v":0},{"$f":"MIN((IFERROR(IF(AND($V397<=AC$1,$W397>=AC$1),INDEX(Reliability!H$23:H$50,MATCH($S397,Reliability!$C$23:$C$50,0)),0),0)*IF($T397=\"n/a\",$D397*$Y397,$G397)+IFERROR(IF(AND($V397<=AC$1,$W397>=AC$1),INDEX(Reliability!H$23:H$50,MATCH($T397,Reliability!$C$23:$C$50,0)),0),0)*$H397*$X397*$Y397),$D397)*$R397","v":0},{"$f":"MIN((IFERROR(IF(AND($V397<=AD$1,$W397>=AD$1),INDEX(Reliability!I$23:I$50,MATCH($S397,Reliability!$C$23:$C$50,0)),0),0)*IF($T397=\"n/a\",$D397*$Y397,$G397)+IFERROR(IF(AND($V397<=AD$1,$W397>=AD$1),INDEX(Reliability!I$23:I$50,MATCH($T397,Reliability!$C$23:$C$50,0)),0),0)*$H397*$X397*$Y397),$D397)*$R397","v":0},{"$f":"MIN((IFERROR(IF(AND($V397<=AE$1,$W397>=AE$1),INDEX(Reliability!J$23:J$50,MATCH($S397,Reliability!$C$23:$C$50,0)),0),0)*IF($T397=\"n/a\",$D397*$Y397,$G397)+IFERROR(IF(AND($V397<=AE$1,$W397>=AE$1),INDEX(Reliability!J$23:J$50,MATCH($T397,Reliability!$C$23:$C$50,0)),0),0)*$H397*$X397*$Y397),$D397)*$R397","v":0},{"$f":"MIN((IFERROR(IF(AND($V397<=AF$1,$W397>=AF$1),INDEX(Reliability!K$23:K$50,MATCH($S397,Reliability!$C$23:$C$50,0)),0),0)*IF($T397=\"n/a\",$D397*$Y397,$G397)+IFERROR(IF(AND($V397<=AF$1,$W397>=AF$1),INDEX(Reliability!K$23:K$50,MATCH($T397,Reliability!$C$23:$C$50,0)),0),0)*$H397*$X397*$Y397),$D397)*$R397","v":0},{"$f":"MIN((IFERROR(IF(AND($V397<=AG$1,$W397>=AG$1),INDEX(Reliability!L$23:L$50,MATCH($S397,Reliability!$C$23:$C$50,0)),0),0)*IF($T397=\"n/a\",$D397*$Y397,$G397)+IFERROR(IF(AND($V397<=AG$1,$W397>=AG$1),INDEX(Reliability!L$23:L$50,MATCH($T397,Reliability!$C$23:$C$50,0)),0),0)*$H397*$X397*$Y397),$D397)*$R397","v":0},{"$f":"MIN((IFERROR(IF(AND($V397<=AH$1,$W397>=AH$1),INDEX(Reliability!M$23:M$50,MATCH($S397,Reliability!$C$23:$C$50,0)),0),0)*IF($T397=\"n/a\",$D397*$Y397,$G397)+IFERROR(IF(AND($V397<=AH$1,$W397>=AH$1),INDEX(Reliability!M$23:M$50,MATCH($T397,Reliability!$C$23:$C$50,0)),0),0)*$H397*$X397*$Y397),$D397)*$R397","v":0},{"$f":"MIN((IFERROR(IF(AND($V397<=AI$1,$W397>=AI$1),INDEX(Reliability!N$23:N$50,MATCH($S397,Reliability!$C$23:$C$50,0)),0),0)*IF($T397=\"n/a\",$D397*$Y397,$G397)+IFERROR(IF(AND($V397<=AI$1,$W397>=AI$1),INDEX(Reliability!N$23:N$50,MATCH($T397,Reliability!$C$23:$C$50,0)),0),0)*$H397*$X397*$Y397),$D397)*$R397","v":0},{"$f":"MIN((IFERROR(IF(AND($V397<=AJ$1,$W397>=AJ$1),INDEX(Reliability!O$23:O$50,MATCH($S397,Reliability!$C$23:$C$50,0)),0),0)*IF($T397=\"n/a\",$D397*$Y397,$G397)+IFERROR(IF(AND($V397<=AJ$1,$W397>=AJ$1),INDEX(Reliability!O$23:O$50,MATCH($T397,Reliability!$C$23:$C$50,0)),0),0)*$H397*$X397*$Y397),$D397)*$R397","v":0},{"$f":"MIN((IFERROR(IF(AND($V397<=AK$1,$W397>=AK$1),INDEX(Reliability!P$23:P$50,MATCH($S397,Reliability!$C$23:$C$50,0)),0),0)*IF($T397=\"n/a\",$D397*$Y397,$G397)+IFERROR(IF(AND($V397<=AK$1,$W397>=AK$1),INDEX(Reliability!P$23:P$50,MATCH($T397,Reliability!$C$23:$C$50,0)),0),0)*$H397*$X397*$Y397),$D397)*$R397","v":0}]
[null,{"$f":"unique_contracts!B399","v":0},{"$f":"unique_contracts!D399","v":0},{"$f":"unique_contracts!J399","v":0},{"$f":"unique_contracts!M399","v":0},{"$f":"unique_contracts!N399","v":0},{"$f":"unique_contracts!P399","v":0},{"$f":"unique_contracts!R399","v":0},{"$f":"unique_contracts!V399","v":0},{"$f":"unique_contracts!AB399","v":0},{"$f":"unique_contracts!AM399","v":0},{"$f":"unique_contracts!AN399","v":0},{"$f":"unique_contracts!AO399","v":0},{"$f":"unique_contracts!AP399","v":0},{"$f":"unique_contracts!AQ399","v":0},{"$f":"unique_contracts!AR399","v":0},{"$f":"unique_contracts!BP399","v":0},0,{"$f":"IFERROR(IF(AND(I398>0,E398=\"NotHybrid\"),_xlfn.CONCAT(MAX(MIN(ROUNDDOWN(I398/D398,0),8),4),INDEX(resources!$G:$G,MATCH(B398,resources!$A:$A,0))),INDEX(resources!$G:$G,MATCH(B398,resources!$A:$A,0))),\"n/a\")","v":"n/a"},"n/a","n/a",0,0,1,1,{"$f":"MIN((IFERROR(IF(AND($V398<=Z$1,$W398>=Z$1),INDEX(Reliability!E$23:E$50,MATCH($S398,Reliability!$C$23:$C$50,0)),0),0)*IF($T398=\"n/a\",$D398*$Y398,$G398)+IFERROR(IF(AND($V398<=Z$1,$W398>=Z$1),INDEX(Reliability!E$23:E$50,MATCH($T398,Reliability!$C$23:$C$50,0)),0),0)*$H398*$X398*$Y398),$D398)*$R398","v":0},{"$f":"MIN((IFERROR(IF(AND($V398<=AA$1,$W398>=AA$1),INDEX(Reliability!F$23:F$50,MATCH($S398,Reliability!$C$23:$C$50,0)),0),0)*IF($T398=\"n/a\",$D398*$Y398,$G398)+IFERROR(IF(AND($V398<=AA$1,$W398>=AA$1),INDEX(Reliability!F$23:F$50,MATCH($T398,Reliability!$C$23:$C$50,0)),0),0)*$H398*$X398*$Y398),$D398)*$R398","v":0},{"$f":"MIN((IFERROR(IF(AND($V398<=AB$1,$W398>=AB$1),INDEX(Reliability!G$23:G$50,MATCH($S398,Reliability!$C$23:$C$50,0)),0),0)*IF($T398=\"n/a\",$D398*$Y398,$G398)+IFERROR(IF(AND($V398<=AB$1,$W398>=AB$1),INDEX(Reliability!G$23:G$50,MATCH($T398,Reliability!$C$23:$C$50,0)),0),0)*$H398*$X398*$Y398),$D398)*$R398","v":0},{"$f":"MIN((IFERROR(IF(AND($V398<=AC$1,$W398>=AC$1),INDEX(Reliability!H$23:H$50,MATCH($S398,Reliability!$C$23:$C$50,0)),0),0)*IF($T398=\"n/a\",$D398*$Y398,$G398)+IFERROR(IF(AND($V398<=AC$1,$W398>=AC$1),INDEX(Reliability!H$23:H$50,MATCH($T398,Reliability!$C$23:$C$50,0)),0),0)*$H398*$X398*$Y398),$D398)*$R398","v":0},{"$f":"MIN((IFERROR(IF(AND($V398<=AD$1,$W398>=AD$1),INDEX(Reliability!I$23:I$50,MATCH($S398,Reliability!$C$23:$C$50,0)),0),0)*IF($T398=\"n/a\",$D398*$Y398,$G398)+IFERROR(IF(AND($V398<=AD$1,$W398>=AD$1),INDEX(Reliability!I$23:I$50,MATCH($T398,Reliability!$C$23:$C$50,0)),0),0)*$H398*$X398*$Y398),$D398)*$R398","v":0},{"$f":"MIN((IFERROR(IF(AND($V398<=AE$1,$W398>=AE$1),INDEX(Reliability!J$23:J$50,MATCH($S398,Reliability!$C$23:$C$50,0)),0),0)*IF($T398=\"n/a\",$D398*$Y398,$G398)+IFERROR(IF(AND($V398<=AE$1,$W398>=AE$1),INDEX(Reliability!J$23:J$50,MATCH($T398,Reliability!$C$23:$C$50,0)),0),0)*$H398*$X398*$Y398),$D398)*$R398","v":0},{"$f":"MIN((IFERROR(IF(AND($V398<=AF$1,$W398>=AF$1),INDEX(Reliability!K$23:K$50,MATCH($S398,Reliability!$C$23:$C$50,0)),0),0)*IF($T398=\"n/a\",$D398*$Y398,$G398)+IFERROR(IF(AND($V398<=AF$1,$W398>=AF$1),INDEX(Reliability!K$23:K$50,MATCH($T398,Reliability!$C$23:$C$50,0)),0),0)*$H398*$X398*$Y398),$D398)*$R398","v":0},{"$f":"MIN((IFERROR(IF(AND($V398<=AG$1,$W398>=AG$1),INDEX(Reliability!L$23:L$50,MATCH($S398,Reliability!$C$23:$C$50,0)),0),0)*IF($T398=\"n/a\",$D398*$Y398,$G398)+IFERROR(IF(AND($V398<=AG$1,$W398>=AG$1),INDEX(Reliability!L$23:L$50,MATCH($T398,Reliability!$C$23:$C$50,0)),0),0)*$H398*$X398*$Y398),$D398)*$R398","v":0},{"$f":"MIN((IFERROR(IF(AND($V398<=AH$1,$W398>=AH$1),INDEX(Reliability!M$23:M$50,MATCH($S398,Reliability!$C$23:$C$50,0)),0),0)*IF($T398=\"n/a\",$D398*$Y398,$G398)+IFERROR(IF(AND($V398<=AH$1,$W398>=AH$1),INDEX(Reliability!M$23:M$50,MATCH($T398,Reliability!$C$23:$C$50,0)),0),0)*$H398*$X398*$Y398),$D398)*$R398","v":0},{"$f":"MIN((IFERROR(IF(AND($V398<=AI$1,$W398>=AI$1),INDEX(Reliability!N$23:N$50,MATCH($S398,Reliability!$C$23:$C$50,0)),0),0)*IF($T398=\"n/a\",$D398*$Y398,$G398)+IFERROR(IF(AND($V398<=AI$1,$W398>=AI$1),INDEX(Reliability!N$23:N$50,MATCH($T398,Reliability!$C$23:$C$50,0)),0),0)*$H398*$X398*$Y398),$D398)*$R398","v":0},{"$f":"MIN((IFERROR(IF(AND($V398<=AJ$1,$W398>=AJ$1),INDEX(Reliability!O$23:O$50,MATCH($S398,Reliability!$C$23:$C$50,0)),0),0)*IF($T398=\"n/a\",$D398*$Y398,$G398)+IFERROR(IF(AND($V398<=AJ$1,$W398>=AJ$1),INDEX(Reliability!O$23:O$50,MATCH($T398,Reliability!$C$23:$C$50,0)),0),0)*$H398*$X398*$Y398),$D398)*$R398","v":0},{"$f":"MIN((IFERROR(IF(AND($V398<=AK$1,$W398>=AK$1),INDEX(Reliability!P$23:P$50,MATCH($S398,Reliability!$C$23:$C$50,0)),0),0)*IF($T398=\"n/a\",$D398*$Y398,$G398)+IFERROR(IF(AND($V398<=AK$1,$W398>=AK$1),INDEX(Reliability!P$23:P$50,MATCH($T398,Reliability!$C$23:$C$50,0)),0),0)*$H398*$X398*$Y398),$D398)*$R398","v":0}]
[null,{"$f":"unique_contracts!B400","v":0},{"$f":"unique_contracts!D400","v":0},{"$f":"unique_contracts!J400","v":0},{"$f":"unique_contracts!M400","v":0},{"$f":"unique_contracts!N400","v":0},{"$f":"unique_contracts!P400","v":0},{"$f":"unique_contracts!R400","v":0},{"$f":"unique_contracts!V400","v":0},{"$f":"unique_contracts!AB400","v":0},{"$f":"unique_contracts!AM400","v":0},{"$f":"unique_contracts!AN400","v":0},{"$f":"unique_contracts!AO400","v":0},{"$f":"unique_contracts!AP400","v":0},{"$f":"unique_contracts!AQ400","v":0},{"$f":"unique_contracts!AR400","v":0},{"$f":"unique_contracts!BP400","v":0},0,{"$f":"IFERROR(IF(AND(I399>0,E399=\"NotHybrid\"),_xlfn.CONCAT(MAX(MIN(ROUNDDOWN(I399/D399,0),8),4),INDEX(resources!$G:$G,MATCH(B399,resources!$A:$A,0))),INDEX(resources!$G:$G,MATCH(B399,resources!$A:$A,0))),\"n/a\")","v":"n/a"},"n/a","n/a",0,0,1,1,{"$f":"MIN((IFERROR(IF(AND($V399<=Z$1,$W399>=Z$1),INDEX(Reliability!E$23:E$50,MATCH($S399,Reliability!$C$23:$C$50,0)),0),0)*IF($T399=\"n/a\",$D399*$Y399,$G399)+IFERROR(IF(AND($V399<=Z$1,$W399>=Z$1),INDEX(Reliability!E$23:E$50,MATCH($T399,Reliability!$C$23:$C$50,0)),0),0)*$H399*$X399*$Y399),$D399)*$R399","v":0},{"$f":"MIN((IFERROR(IF(AND($V399<=AA$1,$W399>=AA$1),INDEX(Reliability!F$23:F$50,MATCH($S399,Reliability!$C$23:$C$50,0)),0),0)*IF($T399=\"n/a\",$D399*$Y399,$G399)+IFERROR(IF(AND($V399<=AA$1,$W399>=AA$1),INDEX(Reliability!F$23:F$50,MATCH($T399,Reliability!$C$23:$C$50,0)),0),0)*$H399*$X399*$Y399),$D399)*$R399","v":0},{"$f":"MIN((IFERROR(IF(AND($V399<=AB$1,$W399>=AB$1),INDEX(Reliability!G$23:G$50,MATCH($S399,Reliability!$C$23:$C$50,0)),0),0)*IF($T399=\"n/a\",$D399*$Y399,$G399)+IFERROR(IF(AND($V399<=AB$1,$W399>=AB$1),INDEX(Reliability!G$23:G$50,MATCH($T399,Reliability!$C$23:$C$50,0)),0),0)*$H399*$X399*$Y399),$D399)*$R399","v":0},{"$f":"MIN((IFERROR(IF(AND($V399<=AC$1,$W399>=AC$1),INDEX(Reliability!H$23:H$50,MATCH($S399,Reliability!$C$23:$C$50,0)),0),0)*IF($T399=\"n/a\",$D399*$Y399,$G399)+IFERROR(IF(AND($V399<=AC$1,$W399>=AC$1),INDEX(Reliability!H$23:H$50,MATCH($T399,Reliability!$C$23:$C$50,0)),0),0)*$H399*$X399*$Y399),$D399)*$R399","v":0},{"$f":"MIN((IFERROR(IF(AND($V399<=AD$1,$W399>=AD$1),INDEX(Reliability!I$23:I$50,MATCH($S399,Reliability!$C$23:$C$50,0)),0),0)*IF($T399=\"n/a\",$D399*$Y399,$G399)+IFERROR(IF(AND($V399<=AD$1,$W399>=AD$1),INDEX(Reliability!I$23:I$50,MATCH($T399,Reliability!$C$23:$C$50,0)),0),0)*$H399*$X399*$Y399),$D399)*$R399","v":0},{"$f":"MIN((IFERROR(IF(AND($V399<=AE$1,$W399>=AE$1),INDEX(Reliability!J$23:J$50,MATCH($S399,Reliability!$C$23:$C$50,0)),0),0)*IF($T399=\"n/a\",$D399*$Y399,$G399)+IFERROR(IF(AND($V399<=AE$1,$W399>=AE$1),INDEX(Reliability!J$23:J$50,MATCH($T399,Reliability!$C$23:$C$50,0)),0),0)*$H399*$X399*$Y399),$D399)*$R399","v":0},{"$f":"MIN((IFERROR(IF(AND($V399<=AF$1,$W399>=AF$1),INDEX(Reliability!K$23:K$50,MATCH($S399,Reliability!$C$23:$C$50,0)),0),0)*IF($T399=\"n/a\",$D399*$Y399,$G399)+IFERROR(IF(AND($V399<=AF$1,$W399>=AF$1),INDEX(Reliability!K$23:K$50,MATCH($T399,Reliability!$C$23:$C$50,0)),0),0)*$H399*$X399*$Y399),$D399)*$R399","v":0},{"$f":"MIN((IFERROR(IF(AND($V399<=AG$1,$W399>=AG$1),INDEX(Reliability!L$23:L$50,MATCH($S399,Reliability!$C$23:$C$50,0)),0),0)*IF($T399=\"n/a\",$D399*$Y399,$G399)+IFERROR(IF(AND($V399<=AG$1,$W399>=AG$1),INDEX(Reliability!L$23:L$50,MATCH($T399,Reliability!$C$23:$C$50,0)),0),0)*$H399*$X399*$Y399),$D399)*$R399","v":0},{"$f":"MIN((IFERROR(IF(AND($V399<=AH$1,$W399>=AH$1),INDEX(Reliability!M$23:M$50,MATCH($S399,Reliability!$C$23:$C$50,0)),0),0)*IF($T399=\"n/a\",$D399*$Y399,$G399)+IFERROR(IF(AND($V399<=AH$1,$W399>=AH$1),INDEX(Reliability!M$23:M$50,MATCH($T399,Reliability!$C$23:$C$50,0)),0),0)*$H399*$X399*$Y399),$D399)*$R399","v":0},{"$f":"MIN((IFERROR(IF(AND($V399<=AI$1,$W399>=AI$1),INDEX(Reliability!N$23:N$50,MATCH($S399,Reliability!$C$23:$C$50,0)),0),0)*IF($T399=\"n/a\",$D399*$Y399,$G399)+IFERROR(IF(AND($V399<=AI$1,$W399>=AI$1),INDEX(Reliability!N$23:N$50,MATCH($T399,Reliability!$C$23:$C$50,0)),0),0)*$H399*$X399*$Y399),$D399)*$R399","v":0},{"$f":"MIN((IFERROR(IF(AND($V399<=AJ$1,$W399>=AJ$1),INDEX(Reliability!O$23:O$50,MATCH($S399,Reliability!$C$23:$C$50,0)),0),0)*IF($T399=\"n/a\",$D399*$Y399,$G399)+IFERROR(IF(AND($V399<=AJ$1,$W399>=AJ$1),INDEX(Reliability!O$23:O$50,MATCH($T399,Reliability!$C$23:$C$50,0)),0),0)*$H399*$X399*$Y399),$D399)*$R399","v":0},{"$f":"MIN((IFERROR(IF(AND($V399<=AK$1,$W399>=AK$1),INDEX(Reliability!P$23:P$50,MATCH($S399,Reliability!$C$23:$C$50,0)),0),0)*IF($T399=\"n/a\",$D399*$Y399,$G399)+IFERROR(IF(AND($V399<=AK$1,$W399>=AK$1),INDEX(Reliability!P$23:P$50,MATCH($T399,Reliability!$C$23:$C$50,0)),0),0)*$H399*$X399*$Y399),$D399)*$R399","v":0}]
[null,{"$f":"unique_contracts!B401","v":0},{"$f":"unique_contracts!D401","v":0},{"$f":"unique_contracts!J401","v":0},{"$f":"unique_contracts!M401","v":0},{"$f":"unique_contracts!N401","v":0},{"$f":"unique_contracts!P401","v":0},{"$f":"unique_contracts!R401","v":0},{"$f":"unique_contracts!V401","v":0},{"$f":"unique_contracts!AB401","v":0},{"$f":"unique_contracts!AM401","v":0},{"$f":"unique_contracts!AN401","v":0},{"$f":"unique_contracts!AO401","v":0},{"$f":"unique_contracts!AP401","v":0},{"$f":"unique_contracts!AQ401","v":0},{"$f":"unique_contracts!AR401","v":0},{"$f":"unique_contracts!BP401","v":0},0,{"$f":"IFERROR(IF(AND(I400>0,E400=\"NotHybrid\"),_xlfn.CONCAT(MAX(MIN(ROUNDDOWN(I400/D400,0),8),4),INDEX(resources!$G:$G,MATCH(B400,resources!$A:$A,0))),INDEX(resources!$G:$G,MATCH(B400,resources!$A:$A,0))),\"n/a\")","v":"n/a"},"n/a","n/a",0,0,1,1,{"$f":"MIN((IFERROR(IF(AND($V400<=Z$1,$W400>=Z$1),INDEX(Reliability!E$23:E$50,MATCH($S400,Reliability!$C$23:$C$50,0)),0),0)*IF($T400=\"n/a\",$D400*$Y400,$G400)+IFERROR(IF(AND($V400<=Z$1,$W400>=Z$1),INDEX(Reliability!E$23:E$50,MATCH($T400,Reliability!$C$23:$C$50,0)),0),0)*$H400*$X400*$Y400),$D400)*$R400","v":0},{"$f":"MIN((IFERROR(IF(AND($V400<=AA$1,$W400>=AA$1),INDEX(Reliability!F$23:F$50,MATCH($S400,Reliability!$C$23:$C$50,0)),0),0)*IF($T400=\"n/a\",$D400*$Y400,$G400)+IFERROR(IF(AND($V400<=AA$1,$W400>=AA$1),INDEX(Reliability!F$23:F$50,MATCH($T400,Reliability!$C$23:$C$50,0)),0),0)*$H400*$X400*$Y400),$D400)*$R400","v":0},{"$f":"MIN((IFERROR(IF(AND($V400<=AB$1,$W400>=AB$1),INDEX(Reliability!G$23:G$50,MATCH($S400,Reliability!$C$23:$C$50,0)),0),0)*IF($T400=\"n/a\",$D400*$Y400,$G400)+IFERROR(IF(AND($V400<=AB$1,$W400>=AB$1),INDEX(Reliability!G$23:G$50,MATCH($T400,Reliability!$C$23:$C$50,0)),0),0)*$H400*$X400*$Y400),$D400)*$R400","v":0},{"$f":"MIN((IFERROR(IF(AND($V400<=AC$1,$W400>=AC$1),INDEX(Reliability!H$23:H$50,MATCH($S400,Reliability!$C$23:$C$50,0)),0),0)*IF($T400=\"n/a\",$D400*$Y400,$G400)+IFERROR(IF(AND($V400<=AC$1,$W400>=AC$1),INDEX(Reliability!H$23:H$50,MATCH($T400,Reliability!$C$23:$C$50,0)),0),0)*$H400*$X400*$Y400),$D400)*$R400","v":0},{"$f":"MIN((IFERROR(IF(AND($V400<=AD$1,$W400>=AD$1),INDEX(Reliability!I$23:I$50,MATCH($S400,Reliability!$C$23:$C$50,0)),0),0)*IF($T400=\"n/a\",$D400*$Y400,$G400)+IFERROR(IF(AND($V400<=AD$1,$W400>=AD$1),INDEX(Reliability!I$23:I$50,MATCH($T400,Reliability!$C$23:$C$50,0)),0),0)*$H400*$X400*$Y400),$D400)*$R400","v":0},{"$f":"MIN((IFERROR(IF(AND($V400<=AE$1,$W400>=AE$1),INDEX(Reliability!J$23:J$50,MATCH($S400,Reliability!$C$23:$C$50,0)),0),0)*IF($T400=\"n/a\",$D400*$Y400,$G400)+IFERROR(IF(AND($V400<=AE$1,$W400>=AE$1),INDEX(Reliability!J$23:J$50,MATCH($T400,Reliability!$C$23:$C$50,0)),0),0)*$H400*$X400*$Y400),$D400)*$R400","v":0},{"$f":"MIN((IFERROR(IF(AND($V400<=AF$1,$W400>=AF$1),INDEX(Reliability!K$23:K$50,MATCH($S400,Reliability!$C$23:$C$50,0)),0),0)*IF($T400=\"n/a\",$D400*$Y400,$G400)+IFERROR(IF(AND($V400<=AF$1,$W400>=AF$1),INDEX(Reliability!K$23:K$50,MATCH($T400,Reliability!$C$23:$C$50,0)),0),0)*$H400*$X400*$Y400),$D400)*$R400","v":0},{"$f":"MIN((IFERROR(IF(AND($V400<=AG$1,$W400>=AG$1),INDEX(Reliability!L$23:L$50,MATCH($S400,Reliability!$C$23:$C$50,0)),0),0)*IF($T400=\"n/a\",$D400*$Y400,$G400)+IFERROR(IF(AND($V400<=AG$1,$W400>=AG$1),INDEX(Reliability!L$23:L$50,MATCH($T400,Reliability!$C$23:$C$50,0)),0),0)*$H400*$X400*$Y400),$D400)*$R400","v":0},{"$f":"MIN((IFERROR(IF(AND($V400<=AH$1,$W400>=AH$1),INDEX(Reliability!M$23:M$50,MATCH($S400,Reliability!$C$23:$C$50,0)),0),0)*IF($T400=\"n/a\",$D400*$Y400,$G400)+IFERROR(IF(AND($V400<=AH$1,$W400>=AH$1),INDEX(Reliability!M$23:M$50,MATCH($T400,Reliability!$C$23:$C$50,0)),0),0)*$H400*$X400*$Y400),$D400)*$R400","v":0},{"$f":"MIN((IFERROR(IF(AND($V400<=AI$1,$W400>=AI$1),INDEX(Reliability!N$23:N$50,MATCH($S400,Reliability!$C$23:$C$50,0)),0),0)*IF($T400=\"n/a\",$D400*$Y400,$G400)+IFERROR(IF(AND($V400<=AI$1,$W400>=AI$1),INDEX(Reliability!N$23:N$50,MATCH($T400,Reliability!$C$23:$C$50,0)),0),0)*$H400*$X400*$Y400),$D400)*$R400","v":0},{"$f":"MIN((IFERROR(IF(AND($V400<=AJ$1,$W400>=AJ$1),INDEX(Reliability!O$23:O$50,MATCH($S400,Reliability!$C$23:$C$50,0)),0),0)*IF($T400=\"n/a\",$D400*$Y400,$G400)+IFERROR(IF(AND($V400<=AJ$1,$W400>=AJ$1),INDEX(Reliability!O$23:O$50,MATCH($T400,Reliability!$C$23:$C$50,0)),0),0)*$H400*$X400*$Y400),$D400)*$R400","v":0},{"$f":"MIN((IFERROR(IF(AND($V400<=AK$1,$W400>=AK$1),INDEX(Reliability!P$23:P$50,MATCH($S400,Reliability!$C$23:$C$50,0)),0),0)*IF($T400=\"n/a\",$D400*$Y400,$G400)+IFERROR(IF(AND($V400<=AK$1,$W400>=AK$1),INDEX(Reliability!P$23:P$50,MATCH($T400,Reliability!$C$23:$C$50,0)),0),0)*$H400*$X400*$Y400),$D400)*$R400","v":0}]
[null,{"$f":"unique_contracts!B402","v":0},{"$f":"unique_contracts!D402","v":0},{"$f":"unique_contracts!J402","v":0},{"$f":"unique_contracts!M402","v":0},{"$f":"unique_contracts!N402","v":0},{"$f":"unique_contracts!P402","v":0},{"$f":"unique_contracts!R402","v":0},{"$f":"unique_contracts!V402","v":0},{"$f":"unique_contracts!AB402","v":0},{"$f":"unique_contracts!AM402","v":0},{"$f":"unique_contracts!AN402","v":0},{"$f":"unique_contracts!AO402","v":0},{"$f":"unique_contracts!AP402","v":0},{"$f":"unique_contracts!AQ402","v":0},{"$f":"unique_contracts!AR402","v":0},{"$f":"unique_contracts!BP402","v":0},0,{"$f":"IFERROR(IF(AND(I401>0,E401=\"NotHybrid\"),_xlfn.CONCAT(MAX(MIN(ROUNDDOWN(I401/D401,0),8),4),INDEX(resources!$G:$G,MATCH(B401,resources!$A:$A,0))),INDEX(resources!$G:$G,MATCH(B401,resources!$A:$A,0))),\"n/a\")","v":"n/a"},"n/a","n/a",0,0,1,1,{"$f":"MIN((IFERROR(IF(AND($V401<=Z$1,$W401>=Z$1),INDEX(Reliability!E$23:E$50,MATCH($S401,Reliability!$C$23:$C$50,0)),0),0)*IF($T401=\"n/a\",$D401*$Y401,$G401)+IFERROR(IF(AND($V401<=Z$1,$W401>=Z$1),INDEX(Reliability!E$23:E$50,MATCH($T401,Reliability!$C$23:$C$50,0)),0),0)*$H401*$X401*$Y401),$D401)*$R401","v":0},{"$f":"MIN((IFERROR(IF(AND($V401<=AA$1,$W401>=AA$1),INDEX(Reliability!F$23:F$50,MATCH($S401,Reliability!$C$23:$C$50,0)),0),0)*IF($T401=\"n/a\",$D401*$Y401,$G401)+IFERROR(IF(AND($V401<=AA$1,$W401>=AA$1),INDEX(Reliability!F$23:F$50,MATCH($T401,Reliability!$C$23:$C$50,0)),0),0)*$H401*$X401*$Y401),$D401)*$R401","v":0},{"$f":"MIN((IFERROR(IF(AND($V401<=AB$1,$W401>=AB$1),INDEX(Reliability!G$23:G$50,MATCH($S401,Reliability!$C$23:$C$50,0)),0),0)*IF($T401=\"n/a\",$D401*$Y401,$G401)+IFERROR(IF(AND($V401<=AB$1,$W401>=AB$1),INDEX(Reliability!G$23:G$50,MATCH($T401,Reliability!$C$23:$C$50,0)),0),0)*$H401*$X401*$Y401),$D401)*$R401","v":0},{"$f":"MIN((IFERROR(IF(AND($V401<=AC$1,$W401>=AC$1),INDEX(Reliability!H$23:H$50,MATCH($S401,Reliability!$C$23:$C$50,0)),0),0)*IF($T401=\"n/a\",$D401*$Y401,$G401)+IFERROR(IF(AND($V401<=AC$1,$W401>=AC$1),INDEX(Reliability!H$23:H$50,MATCH($T401,Reliability!$C$23:$C$50,0)),0),0)*$H401*$X401*$Y401),$D401)*$R401","v":0},{"$f":"MIN((IFERROR(IF(AND($V401<=AD$1,$W401>=AD$1),INDEX(Reliability!I$23:I$50,MATCH($S401,Reliability!$C$23:$C$50,0)),0),0)*IF($T401=\"n/a\",$D401*$Y401,$G401)+IFERROR(IF(AND($V401<=AD$1,$W401>=AD$1),INDEX(Reliability!I$23:I$50,MATCH($T401,Reliability!$C$23:$C$50,0)),0),0)*$H401*$X401*$Y401),$D401)*$R401","v":0},{"$f":"MIN((IFERROR(IF(AND($V401<=AE$1,$W401>=AE$1),INDEX(Reliability!J$23:J$50,MATCH($S401,Reliability!$C$23:$C$50,0)),0),0)*IF($T401=\"n/a\",$D401*$Y401,$G401)+IFERROR(IF(AND($V401<=AE$1,$W401>=AE$1),INDEX(Reliability!J$23:J$50,MATCH($T401,Reliability!$C$23:$C$50,0)),0),0)*$H401*$X401*$Y401),$D401)*$R401","v":0},{"$f":"MIN((IFERROR(IF(AND($V401<=AF$1,$W401>=AF$1),INDEX(Reliability!K$23:K$50,MATCH($S401,Reliability!$C$23:$C$50,0)),0),0)*IF($T401=\"n/a\",$D401*$Y401,$G401)+IFERROR(IF(AND($V401<=AF$1,$W401>=AF$1),INDEX(Reliability!K$23:K$50,MATCH($T401,Reliability!$C$23:$C$50,0)),0),0)*$H401*$X401*$Y401),$D401)*$R401","v":0},{"$f":"MIN((IFERROR(IF(AND($V401<=AG$1,$W401>=AG$1),INDEX(Reliability!L$23:L$50,MATCH($S401,Reliability!$C$23:$C$50,0)),0),0)*IF($T401=\"n/a\",$D401*$Y401,$G401)+IFERROR(IF(AND($V401<=AG$1,$W401>=AG$1),INDEX(Reliability!L$23:L$50,MATCH($T401,Reliability!$C$23:$C$50,0)),0),0)*$H401*$X401*$Y401),$D401)*$R401","v":0},{"$f":"MIN((IFERROR(IF(AND($V401<=AH$1,$W401>=AH$1),INDEX(Reliability!M$23:M$50,MATCH($S401,Reliability!$C$23:$C$50,0)),0),0)*IF($T401=\"n/a\",$D401*$Y401,$G401)+IFERROR(IF(AND($V401<=AH$1,$W401>=AH$1),INDEX(Reliability!M$23:M$50,MATCH($T401,Reliability!$C$23:$C$50,0)),0),0)*$H401*$X401*$Y401),$D401)*$R401","v":0},{"$f":"MIN((IFERROR(IF(AND($V401<=AI$1,$W401>=AI$1),INDEX(Reliability!N$23:N$50,MATCH($S401,Reliability!$C$23:$C$50,0)),0),0)*IF($T401=\"n/a\",$D401*$Y401,$G401)+IFERROR(IF(AND($V401<=AI$1,$W401>=AI$1),INDEX(Reliability!N$23:N$50,MATCH($T401,Reliability!$C$23:$C$50,0)),0),0)*$H401*$X401*$Y401),$D401)*$R401","v":0},{"$f":"MIN((IFERROR(IF(AND($V401<=AJ$1,$W401>=AJ$1),INDEX(Reliability!O$23:O$50,MATCH($S401,Reliability!$C$23:$C$50,0)),0),0)*IF($T401=\"n/a\",$D401*$Y401,$G401)+IFERROR(IF(AND($V401<=AJ$1,$W401>=AJ$1),INDEX(Reliability!O$23:O$50,MATCH($T401,Reliability!$C$23:$C$50,0)),0),0)*$H401*$X401*$Y401),$D401)*$R401","v":0},{"$f":"MIN((IFERROR(IF(AND($V401<=AK$1,$W401>=AK$1),INDEX(Reliability!P$23:P$50,MATCH($S401,Reliability!$C$23:$C$50,0)),0),0)*IF($T401=\"n/a\",$D401*$Y401,$G401)+IFERROR(IF(AND($V401<=AK$1,$W401>=AK$1),INDEX(Reliability!P$23:P$50,MATCH($T401,Reliability!$C$23:$C$50,0)),0),0)*$H401*$X401*$Y401),$D401)*$R401","v":0}]
[null,{"$f":"unique_contracts!B403","v":0},{"$f":"unique_contracts!D403","v":0},{"$f":"unique_contracts!J403","v":0},{"$f":"unique_contracts!M403","v":0},{"$f":"unique_contracts!N403","v":0},{"$f":"unique_contracts!P403","v":0},{"$f":"unique_contracts!R403","v":0},{"$f":"unique_contracts!V403","v":0},{"$f":"unique_contracts!AB403","v":0},{"$f":"unique_contracts!AM403","v":0},{"$f":"unique_contracts!AN403","v":0},{"$f":"unique_contracts!AO403","v":0},{"$f":"unique_contracts!AP403","v":0},{"$f":"unique_contracts!AQ403","v":0},{"$f":"unique_contracts!AR403","v":0},{"$f":"unique_contracts!BP403","v":0},0,{"$f":"IFERROR(IF(AND(I402>0,E402=\"NotHybrid\"),_xlfn.CONCAT(MAX(MIN(ROUNDDOWN(I402/D402,0),8),4),INDEX(resources!$G:$G,MATCH(B402,resources!$A:$A,0))),INDEX(resources!$G:$G,MATCH(B402,resources!$A:$A,0))),\"n/a\")","v":"n/a"},"n/a","n/a",0,0,1,1,{"$f":"MIN((IFERROR(IF(AND($V402<=Z$1,$W402>=Z$1),INDEX(Reliability!E$23:E$50,MATCH($S402,Reliability!$C$23:$C$50,0)),0),0)*IF($T402=\"n/a\",$D402*$Y402,$G402)+IFERROR(IF(AND($V402<=Z$1,$W402>=Z$1),INDEX(Reliability!E$23:E$50,MATCH($T402,Reliability!$C$23:$C$50,0)),0),0)*$H402*$X402*$Y402),$D402)*$R402","v":0},{"$f":"MIN((IFERROR(IF(AND($V402<=AA$1,$W402>=AA$1),INDEX(Reliability!F$23:F$50,MATCH($S402,Reliability!$C$23:$C$50,0)),0),0)*IF($T402=\"n/a\",$D402*$Y402,$G402)+IFERROR(IF(AND($V402<=AA$1,$W402>=AA$1),INDEX(Reliability!F$23:F$50,MATCH($T402,Reliability!$C$23:$C$50,0)),0),0)*$H402*$X402*$Y402),$D402)*$R402","v":0},{"$f":"MIN((IFERROR(IF(AND($V402<=AB$1,$W402>=AB$1),INDEX(Reliability!G$23:G$50,MATCH($S402,Reliability!$C$23:$C$50,0)),0),0)*IF($T402=\"n/a\",$D402*$Y402,$G402)+IFERROR(IF(AND($V402<=AB$1,$W402>=AB$1),INDEX(Reliability!G$23:G$50,MATCH($T402,Reliability!$C$23:$C$50,0)),0),0)*$H402*$X402*$Y402),$D402)*$R402","v":0},{"$f":"MIN((IFERROR(IF(AND($V402<=AC$1,$W402>=AC$1),INDEX(Reliability!H$23:H$50,MATCH($S402,Reliability!$C$23:$C$50,0)),0),0)*IF($T402=\"n/a\",$D402*$Y402,$G402)+IFERROR(IF(AND($V402<=AC$1,$W402>=AC$1),INDEX(Reliability!H$23:H$50,MATCH($T402,Reliability!$C$23:$C$50,0)),0),0)*$H402*$X402*$Y402),$D402)*$R402","v":0},{"$f":"MIN((IFERROR(IF(AND($V402<=AD$1,$W402>=AD$1),INDEX(Reliability!I$23:I$50,MATCH($S402,Reliability!$C$23:$C$50,0)),0),0)*IF($T402=\"n/a\",$D402*$Y402,$G402)+IFERROR(IF(AND($V402<=AD$1,$W402>=AD$1),INDEX(Reliability!I$23:I$50,MATCH($T402,Reliability!$C$23:$C$50,0)),0),0)*$H402*$X402*$Y402),$D402)*$R402","v":0},{"$f":"MIN((IFERROR(IF(AND($V402<=AE$1,$W402>=AE$1),INDEX(Reliability!J$23:J$50,MATCH($S402,Reliability!$C$23:$C$50,0)),0),0)*IF($T402=\"n/a\",$D402*$Y402,$G402)+IFERROR(IF(AND($V402<=AE$1,$W402>=AE$1),INDEX(Reliability!J$23:J$50,MATCH($T402,Reliability!$C$23:$C$50,0)),0),0)*$H402*$X402*$Y402),$D402)*$R402","v":0},{"$f":"MIN((IFERROR(IF(AND($V402<=AF$1,$W402>=AF$1),INDEX(Reliability!K$23:K$50,MATCH($S402,Reliability!$C$23:$C$50,0)),0),0)*IF($T402=\"n/a\",$D402*$Y402,$G402)+IFERROR(IF(AND($V402<=AF$1,$W402>=AF$1),INDEX(Reliability!K$23:K$50,MATCH($T402,Reliability!$C$23:$C$50,0)),0),0)*$H402*$X402*$Y402),$D402)*$R402","v":0},{"$f":"MIN((IFERROR(IF(AND($V402<=AG$1,$W402>=AG$1),INDEX(Reliability!L$23:L$50,MATCH($S402,Reliability!$C$23:$C$50,0)),0),0)*IF($T402=\"n/a\",$D402*$Y402,$G402)+IFERROR(IF(AND($V402<=AG$1,$W402>=AG$1),INDEX(Reliability!L$23:L$50,MATCH($T402,Reliability!$C$23:$C$50,0)),0),0)*$H402*$X402*$Y402),$D402)*$R402","v":0},{"$f":"MIN((IFERROR(IF(AND($V402<=AH$1,$W402>=AH$1),INDEX(Reliability!M$23:M$50,MATCH($S402,Reliability!$C$23:$C$50,0)),0),0)*IF($T402=\"n/a\",$D402*$Y402,$G402)+IFERROR(IF(AND($V402<=AH$1,$W402>=AH$1),INDEX(Reliability!M$23:M$50,MATCH($T402,Reliability!$C$23:$C$50,0)),0),0)*$H402*$X402*$Y402),$D402)*$R402","v":0},{"$f":"MIN((IFERROR(IF(AND($V402<=AI$1,$W402>=AI$1),INDEX(Reliability!N$23:N$50,MATCH($S402,Reliability!$C$23:$C$50,0)),0),0)*IF($T402=\"n/a\",$D402*$Y402,$G402)+IFERROR(IF(AND($V402<=AI$1,$W402>=AI$1),INDEX(Reliability!N$23:N$50,MATCH($T402,Reliability!$C$23:$C$50,0)),0),0)*$H402*$X402*$Y402),$D402)*$R402","v":0},{"$f":"MIN((IFERROR(IF(AND($V402<=AJ$1,$W402>=AJ$1),INDEX(Reliability!O$23:O$50,MATCH($S402,Reliability!$C$23:$C$50,0)),0),0)*IF($T402=\"n/a\",$D402*$Y402,$G402)+IFERROR(IF(AND($V402<=AJ$1,$W402>=AJ$1),INDEX(Reliability!O$23:O$50,MATCH($T402,Reliability!$C$23:$C$50,0)),0),0)*$H402*$X402*$Y402),$D402)*$R402","v":0},{"$f":"MIN((IFERROR(IF(AND($V402<=AK$1,$W402>=AK$1),INDEX(Reliability!P$23:P$50,MATCH($S402,Reliability!$C$23:$C$50,0)),0),0)*IF($T402=\"n/a\",$D402*$Y402,$G402)+IFERROR(IF(AND($V402<=AK$1,$W402>=AK$1),INDEX(Reliability!P$23:P$50,MATCH($T402,Reliability!$C$23:$C$50,0)),0),0)*$H402*$X402*$Y402),$D402)*$R402","v":0}]
[null,{"$f":"unique_contracts!B404","v":0},{"$f":"unique_contracts!D404","v":0},{"$f":"unique_contracts!J404","v":0},{"$f":"unique_contracts!M404","v":0},{"$f":"unique_contracts!N404","v":0},{"$f":"unique_contracts!P404","v":0},{"$f":"unique_contracts!R404","v":0},{"$f":"unique_contracts!V404","v":0},{"$f":"unique_contracts!AB404","v":0},{"$f":"unique_contracts!AM404","v":0},{"$f":"unique_contracts!AN404","v":0},{"$f":"unique_contracts!AO404","v":0},{"$f":"unique_contracts!AP404","v":0},{"$f":"unique_contracts!AQ404","v":0},{"$f":"unique_contracts!AR404","v":0},{"$f":"unique_contracts!BP404","v":0},0,{"$f":"IFERROR(IF(AND(I403>0,E403=\"NotHybrid\"),_xlfn.CONCAT(MAX(MIN(ROUNDDOWN(I403/D403,0),8),4),INDEX(resources!$G:$G,MATCH(B403,resources!$A:$A,0))),INDEX(resources!$G:$G,MATCH(B403,resources!$A:$A,0))),\"n/a\")","v":"n/a"},"n/a","n/a",0,0,1,1,{"$f":"MIN((IFERROR(IF(AND($V403<=Z$1,$W403>=Z$1),INDEX(Reliability!E$23:E$50,MATCH($S403,Reliability!$C$23:$C$50,0)),0),0)*IF($T403=\"n/a\",$D403*$Y403,$G403)+IFERROR(IF(AND($V403<=Z$1,$W403>=Z$1),INDEX(Reliability!E$23:E$50,MATCH($T403,Reliability!$C$23:$C$50,0)),0),0)*$H403*$X403*$Y403),$D403)*$R403","v":0},{"$f":"MIN((IFERROR(IF(AND($V403<=AA$1,$W403>=AA$1),INDEX(Reliability!F$23:F$50,MATCH($S403,Reliability!$C$23:$C$50,0)),0),0)*IF($T403=\"n/a\",$D403*$Y403,$G403)+IFERROR(IF(AND($V403<=AA$1,$W403>=AA$1),INDEX(Reliability!F$23:F$50,MATCH($T403,Reliability!$C$23:$C$50,0)),0),0)*$H403*$X403*$Y403),$D403)*$R403","v":0},{"$f":"MIN((IFERROR(IF(AND($V403<=AB$1,$W403>=AB$1),INDEX(Reliability!G$23:G$50,MATCH($S403,Reliability!$C$23:$C$50,0)),0),0)*IF($T403=\"n/a\",$D403*$Y403,$G403)+IFERROR(IF(AND($V403<=AB$1,$W403>=AB$1),INDEX(Reliability!G$23:G$50,MATCH($T403,Reliability!$C$23:$C$50,0)),0),0)*$H403*$X403*$Y403),$D403)*$R403","v":0},{"$f":"MIN((IFERROR(IF(AND($V403<=AC$1,$W403>=AC$1),INDEX(Reliability!H$23:H$50,MATCH($S403,Reliability!$C$23:$C$50,0)),0),0)*IF($T403=\"n/a\",$D403*$Y403,$G403)+IFERROR(IF(AND($V403<=AC$1,$W403>=AC$1),INDEX(Reliability!H$23:H$50,MATCH($T403,Reliability!$C$23:$C$50,0)),0),0)*$H403*$X403*$Y403),$D403)*$R403","v":0},{"$f":"MIN((IFERROR(IF(AND($V403<=AD$1,$W403>=AD$1),INDEX(Reliability!I$23:I$50,MATCH($S403,Reliability!$C$23:$C$50,0)),0),0)*IF($T403=\"n/a\",$D403*$Y403,$G403)+IFERROR(IF(AND($V403<=AD$1,$W403>=AD$1),INDEX(Reliability!I$23:I$50,MATCH($T403,Reliability!$C$23:$C$50,0)),0),0)*$H403*$X403*$Y403),$D403)*$R403","v":0},{"$f":"MIN((IFERROR(IF(AND($V403<=AE$1,$W403>=AE$1),INDEX(Reliability!J$23:J$50,MATCH($S403,Reliability!$C$23:$C$50,0)),0),0)*IF($T403=\"n/a\",$D403*$Y403,$G403)+IFERROR(IF(AND($V403<=AE$1,$W403>=AE$1),INDEX(Reliability!J$23:J$50,MATCH($T403,Reliability!$C$23:$C$50,0)),0),0)*$H403*$X403*$Y403),$D403)*$R403","v":0},{"$f":"MIN((IFERROR(IF(AND($V403<=AF$1,$W403>=AF$1),INDEX(Reliability!K$23:K$50,MATCH($S403,Reliability!$C$23:$C$50,0)),0),0)*IF($T403=\"n/a\",$D403*$Y403,$G403)+IFERROR(IF(AND($V403<=AF$1,$W403>=AF$1),INDEX(Reliability!K$23:K$50,MATCH($T403,Reliability!$C$23:$C$50,0)),0),0)*$H403*$X403*$Y403),$D403)*$R403","v":0},{"$f":"MIN((IFERROR(IF(AND($V403<=AG$1,$W403>=AG$1),INDEX(Reliability!L$23:L$50,MATCH($S403,Reliability!$C$23:$C$50,0)),0),0)*IF($T403=\"n/a\",$D403*$Y403,$G403)+IFERROR(IF(AND($V403<=AG$1,$W403>=AG$1),INDEX(Reliability!L$23:L$50,MATCH($T403,Reliability!$C$23:$C$50,0)),0),0)*$H403*$X403*$Y403),$D403)*$R403","v":0},{"$f":"MIN((IFERROR(IF(AND($V403<=AH$1,$W403>=AH$1),INDEX(Reliability!M$23:M$50,MATCH($S403,Reliability!$C$23:$C$50,0)),0),0)*IF($T403=\"n/a\",$D403*$Y403,$G403)+IFERROR(IF(AND($V403<=AH$1,$W403>=AH$1),INDEX(Reliability!M$23:M$50,MATCH($T403,Reliability!$C$23:$C$50,0)),0),0)*$H403*$X403*$Y403),$D403)*$R403","v":0},{"$f":"MIN((IFERROR(IF(AND($V403<=AI$1,$W403>=AI$1),INDEX(Reliability!N$23:N$50,MATCH($S403,Reliability!$C$23:$C$50,0)),0),0)*IF($T403=\"n/a\",$D403*$Y403,$G403)+IFERROR(IF(AND($V403<=AI$1,$W403>=AI$1),INDEX(Reliability!N$23:N$50,MATCH($T403,Reliability!$C$23:$C$50,0)),0),0)*$H403*$X403*$Y403),$D403)*$R403","v":0},{"$f":"MIN((IFERROR(IF(AND($V403<=AJ$1,$W403>=AJ$1),INDEX(Reliability!O$23:O$50,MATCH($S403,Reliability!$C$23:$C$50,0)),0),0)*IF($T403=\"n/a\",$D403*$Y403,$G403)+IFERROR(IF(AND($V403<=AJ$1,$W403>=AJ$1),INDEX(Reliability!O$23:O$50,MATCH($T403,Reliability!$C$23:$C$50,0)),0),0)*$H403*$X403*$Y403),$D403)*$R403","v":0},{"$f":"MIN((IFERROR(IF(AND($V403<=AK$1,$W403>=AK$1),INDEX(Reliability!P$23:P$50,MATCH($S403,Reliability!$C$23:$C$50,0)),0),0)*IF($T403=\"n/a\",$D403*$Y403,$G403)+IFERROR(IF(AND($V403<=AK$1,$W403>=AK$1),INDEX(Reliability!P$23:P$50,MATCH($T403,Reliability!$C$23:$C$50,0)),0),0)*$H403*$X403*$Y403),$D403)*$R403","v":0}]
[null,{"$f":"unique_contracts!B405","v":0},{"$f":"unique_contracts!D405","v":0},{"$f":"unique_contracts!J405","v":0},{"$f":"unique_contracts!M405","v":0},{"$f":"unique_contracts!N405","v":0},{"$f":"unique_contracts!P405","v":0},{"$f":"unique_contracts!R405","v":0},{"$f":"unique_contracts!V405","v":0},{"$f":"unique_contracts!AB405","v":0},{"$f":"unique_contracts!AM405","v":0},{"$f":"unique_contracts!AN405","v":0},{"$f":"unique_contracts!AO405","v":0},{"$f":"unique_contracts!AP405","v":0},{"$f":"unique_contracts!AQ405","v":0},{"$f":"unique_contracts!AR405","v":0},{"$f":"unique_contracts!BP405","v":0},0,{"$f":"IFERROR(IF(AND(I404>0,E404=\"NotHybrid\"),_xlfn.CONCAT(MAX(MIN(ROUNDDOWN(I404/D404,0),8),4),INDEX(resources!$G:$G,MATCH(B404,resources!$A:$A,0))),INDEX(resources!$G:$G,MATCH(B404,resources!$A:$A,0))),\"n/a\")","v":"n/a"},"n/a","n/a",0,0,1,1,{"$f":"MIN((IFERROR(IF(AND($V404<=Z$1,$W404>=Z$1),INDEX(Reliability!E$23:E$50,MATCH($S404,Reliability!$C$23:$C$50,0)),0),0)*IF($T404=\"n/a\",$D404*$Y404,$G404)+IFERROR(IF(AND($V404<=Z$1,$W404>=Z$1),INDEX(Reliability!E$23:E$50,MATCH($T404,Reliability!$C$23:$C$50,0)),0),0)*$H404*$X404*$Y404),$D404)*$R404","v":0},{"$f":"MIN((IFERROR(IF(AND($V404<=AA$1,$W404>=AA$1),INDEX(Reliability!F$23:F$50,MATCH($S404,Reliability!$C$23:$C$50,0)),0),0)*IF($T404=\"n/a\",$D404*$Y404,$G404)+IFERROR(IF(AND($V404<=AA$1,$W404>=AA$1),INDEX(Reliability!F$23:F$50,MATCH($T404,Reliability!$C$23:$C$50,0)),0),0)*$H404*$X404*$Y404),$D404)*$R404","v":0},{"$f":"MIN((IFERROR(IF(AND($V404<=AB$1,$W404>=AB$1),INDEX(Reliability!G$23:G$50,MATCH($S404,Reliability!$C$23:$C$50,0)),0),0)*IF($T404=\"n/a\",$D404*$Y404,$G404)+IFERROR(IF(AND($V404<=AB$1,$W404>=AB$1),INDEX(Reliability!G$23:G$50,MATCH($T404,Reliability!$C$23:$C$50,0)),0),0)*$H404*$X404*$Y404),$D404)*$R404","v":0},{"$f":"MIN((IFERROR(IF(AND($V404<=AC$1,$W404>=AC$1),INDEX(Reliability!H$23:H$50,MATCH($S404,Reliability!$C$23:$C$50,0)),0),0)*IF($T404=\"n/a\",$D404*$Y404,$G404)+IFERROR(IF(AND($V404<=AC$1,$W404>=AC$1),INDEX(Reliability!H$23:H$50,MATCH($T404,Reliability!$C$23:$C$50,0)),0),0)*$H404*$X404*$Y404),$D404)*$R404","v":0},{"$f":"MIN((IFERROR(IF(AND($V404<=AD$1,$W404>=AD$1),INDEX(Reliability!I$23:I$50,MATCH($S404,Reliability!$C$23:$C$50,0)),0),0)*IF($T404=\"n/a\",$D404*$Y404,$G404)+IFERROR(IF(AND($V404<=AD$1,$W404>=AD$1),INDEX(Reliability!I$23:I$50,MATCH($T404,Reliability!$C$23:$C$50,0)),0),0)*$H404*$X404*$Y404),$D404)*$R404","v":0},{"$f":"MIN((IFERROR(IF(AND($V404<=AE$1,$W404>=AE$1),INDEX(Reliability!J$23:J$50,MATCH($S404,Reliability!$C$23:$C$50,0)),0),0)*IF($T404=\"n/a\",$D404*$Y404,$G404)+IFERROR(IF(AND($V404<=AE$1,$W404>=AE$1),INDEX(Reliability!J$23:J$50,MATCH($T404,Reliability!$C$23:$C$50,0)),0),0)*$H404*$X404*$Y404),$D404)*$R404","v":0},{"$f":"MIN((IFERROR(IF(AND($V404<=AF$1,$W404>=AF$1),INDEX(Reliability!K$23:K$50,MATCH($S404,Reliability!$C$23:$C$50,0)),0),0)*IF($T404=\"n/a\",$D404*$Y404,$G404)+IFERROR(IF(AND($V404<=AF$1,$W404>=AF$1),INDEX(Reliability!K$23:K$50,MATCH($T404,Reliability!$C$23:$C$50,0)),0),0)*$H404*$X404*$Y404),$D404)*$R404","v":0},{"$f":"MIN((IFERROR(IF(AND($V404<=AG$1,$W404>=AG$1),INDEX(Reliability!L$23:L$50,MATCH($S404,Reliability!$C$23:$C$50,0)),0),0)*IF($T404=\"n/a\",$D404*$Y404,$G404)+IFERROR(IF(AND($V404<=AG$1,$W404>=AG$1),INDEX(Reliability!L$23:L$50,MATCH($T404,Reliability!$C$23:$C$50,0)),0),0)*$H404*$X404*$Y404),$D404)*$R404","v":0},{"$f":"MIN((IFERROR(IF(AND($V404<=AH$1,$W404>=AH$1),INDEX(Reliability!M$23:M$50,MATCH($S404,Reliability!$C$23:$C$50,0)),0),0)*IF($T404=\"n/a\",$D404*$Y404,$G404)+IFERROR(IF(AND($V404<=AH$1,$W404>=AH$1),INDEX(Reliability!M$23:M$50,MATCH($T404,Reliability!$C$23:$C$50,0)),0),0)*$H404*$X404*$Y404),$D404)*$R404","v":0},{"$f":"MIN((IFERROR(IF(AND($V404<=AI$1,$W404>=AI$1),INDEX(Reliability!N$23:N$50,MATCH($S404,Reliability!$C$23:$C$50,0)),0),0)*IF($T404=\"n/a\",$D404*$Y404,$G404)+IFERROR(IF(AND($V404<=AI$1,$W404>=AI$1),INDEX(Reliability!N$23:N$50,MATCH($T404,Reliability!$C$23:$C$50,0)),0),0)*$H404*$X404*$Y404),$D404)*$R404","v":0},{"$f":"MIN((IFERROR(IF(AND($V404<=AJ$1,$W404>=AJ$1),INDEX(Reliability!O$23:O$50,MATCH($S404,Reliability!$C$23:$C$50,0)),0),0)*IF($T404=\"n/a\",$D404*$Y404,$G404)+IFERROR(IF(AND($V404<=AJ$1,$W404>=AJ$1),INDEX(Reliability!O$23:O$50,MATCH($T404,Reliability!$C$23:$C$50,0)),0),0)*$H404*$X404*$Y404),$D404)*$R404","v":0},{"$f":"MIN((IFERROR(IF(AND($V404<=AK$1,$W404>=AK$1),INDEX(Reliability!P$23:P$50,MATCH($S404,Reliability!$C$23:$C$50,0)),0),0)*IF($T404=\"n/a\",$D404*$Y404,$G404)+IFERROR(IF(AND($V404<=AK$1,$W404>=AK$1),INDEX(Reliability!P$23:P$50,MATCH($T404,Reliability!$C$23:$C$50,0)),0),0)*$H404*$X404*$Y404),$D404)*$R404","v":0}]
[null,{"$f":"unique_contracts!B406","v":0},{"$f":"unique_contracts!D406","v":0},{"$f":"unique_contracts!J406","v":0},{"$f":"unique_contracts!M406","v":0},{"$f":"unique_contracts!N406","v":0},{"$f":"unique_contracts!P406","v":0},{"$f":"unique_contracts!R406","v":0},{"$f":"unique_contracts!V406","v":0},{"$f":"unique_contracts!AB406","v":0},{"$f":"unique_contracts!AM406","v":0},{"$f":"unique_contracts!AN406","v":0},{"$f":"unique_contracts!AO406","v":0},{"$f":"unique_contracts!AP406","v":0},{"$f":"unique_contracts!AQ406","v":0},{"$f":"unique_contracts!AR406","v":0},{"$f":"unique_contracts!BP406","v":0},0,{"$f":"IFERROR(IF(AND(I405>0,E405=\"NotHybrid\"),_xlfn.CONCAT(MAX(MIN(ROUNDDOWN(I405/D405,0),8),4),INDEX(resources!$G:$G,MATCH(B405,resources!$A:$A,0))),INDEX(resources!$G:$G,MATCH(B405,resources!$A:$A,0))),\"n/a\")","v":"n/a"},"n/a","n/a",0,0,1,1,{"$f":"MIN((IFERROR(IF(AND($V405<=Z$1,$W405>=Z$1),INDEX(Reliability!E$23:E$50,MATCH($S405,Reliability!$C$23:$C$50,0)),0),0)*IF($T405=\"n/a\",$D405*$Y405,$G405)+IFERROR(IF(AND($V405<=Z$1,$W405>=Z$1),INDEX(Reliability!E$23:E$50,MATCH($T405,Reliability!$C$23:$C$50,0)),0),0)*$H405*$X405*$Y405),$D405)*$R405","v":0},{"$f":"MIN((IFERROR(IF(AND($V405<=AA$1,$W405>=AA$1),INDEX(Reliability!F$23:F$50,MATCH($S405,Reliability!$C$23:$C$50,0)),0),0)*IF($T405=\"n/a\",$D405*$Y405,$G405)+IFERROR(IF(AND($V405<=AA$1,$W405>=AA$1),INDEX(Reliability!F$23:F$50,MATCH($T405,Reliability!$C$23:$C$50,0)),0),0)*$H405*$X405*$Y405),$D405)*$R405","v":0},{"$f":"MIN((IFERROR(IF(AND($V405<=AB$1,$W405>=AB$1),INDEX(Reliability!G$23:G$50,MATCH($S405,Reliability!$C$23:$C$50,0)),0),0)*IF($T405=\"n/a\",$D405*$Y405,$G405)+IFERROR(IF(AND($V405<=AB$1,$W405>=AB$1),INDEX(Reliability!G$23:G$50,MATCH($T405,Reliability!$C$23:$C$50,0)),0),0)*$H405*$X405*$Y405),$D405)*$R405","v":0},{"$f":"MIN((IFERROR(IF(AND($V405<=AC$1,$W405>=AC$1),INDEX(Reliability!H$23:H$50,MATCH($S405,Reliability!$C$23:$C$50,0)),0),0)*IF($T405=\"n/a\",$D405*$Y405,$G405)+IFERROR(IF(AND($V405<=AC$1,$W405>=AC$1),INDEX(Reliability!H$23:H$50,MATCH($T405,Reliability!$C$23:$C$50,0)),0),0)*$H405*$X405*$Y405),$D405)*$R405","v":0},{"$f":"MIN((IFERROR(IF(AND($V405<=AD$1,$W405>=AD$1),INDEX(Reliability!I$23:I$50,MATCH($S405,Reliability!$C$23:$C$50,0)),0),0)*IF($T405=\"n/a\",$D405*$Y405,$G405)+IFERROR(IF(AND($V405<=AD$1,$W405>=AD$1),INDEX(Reliability!I$23:I$50,MATCH($T405,Reliability!$C$23:$C$50,0)),0),0)*$H405*$X405*$Y405),$D405)*$R405","v":0},{"$f":"MIN((IFERROR(IF(AND($V405<=AE$1,$W405>=AE$1),INDEX(Reliability!J$23:J$50,MATCH($S405,Reliability!$C$23:$C$50,0)),0),0)*IF($T405=\"n/a\",$D405*$Y405,$G405)+IFERROR(IF(AND($V405<=AE$1,$W405>=AE$1),INDEX(Reliability!J$23:J$50,MATCH($T405,Reliability!$C$23:$C$50,0)),0),0)*$H405*$X405*$Y405),$D405)*$R405","v":0},{"$f":"MIN((IFERROR(IF(AND($V405<=AF$1,$W405>=AF$1),INDEX(Reliability!K$23:K$50,MATCH($S405,Reliability!$C$23:$C$50,0)),0),0)*IF($T405=\"n/a\",$D405*$Y405,$G405)+IFERROR(IF(AND($V405<=AF$1,$W405>=AF$1),INDEX(Reliability!K$23:K$50,MATCH($T405,Reliability!$C$23:$C$50,0)),0),0)*$H405*$X405*$Y405),$D405)*$R405","v":0},{"$f":"MIN((IFERROR(IF(AND($V405<=AG$1,$W405>=AG$1),INDEX(Reliability!L$23:L$50,MATCH($S405,Reliability!$C$23:$C$50,0)),0),0)*IF($T405=\"n/a\",$D405*$Y405,$G405)+IFERROR(IF(AND($V405<=AG$1,$W405>=AG$1),INDEX(Reliability!L$23:L$50,MATCH($T405,Reliability!$C$23:$C$50,0)),0),0)*$H405*$X405*$Y405),$D405)*$R405","v":0},{"$f":"MIN((IFERROR(IF(AND($V405<=AH$1,$W405>=AH$1),INDEX(Reliability!M$23:M$50,MATCH($S405,Reliability!$C$23:$C$50,0)),0),0)*IF($T405=\"n/a\",$D405*$Y405,$G405)+IFERROR(IF(AND($V405<=AH$1,$W405>=AH$1),INDEX(Reliability!M$23:M$50,MATCH($T405,Reliability!$C$23:$C$50,0)),0),0)*$H405*$X405*$Y405),$D405)*$R405","v":0},{"$f":"MIN((IFERROR(IF(AND($V405<=AI$1,$W405>=AI$1),INDEX(Reliability!N$23:N$50,MATCH($S405,Reliability!$C$23:$C$50,0)),0),0)*IF($T405=\"n/a\",$D405*$Y405,$G405)+IFERROR(IF(AND($V405<=AI$1,$W405>=AI$1),INDEX(Reliability!N$23:N$50,MATCH($T405,Reliability!$C$23:$C$50,0)),0),0)*$H405*$X405*$Y405),$D405)*$R405","v":0},{"$f":"MIN((IFERROR(IF(AND($V405<=AJ$1,$W405>=AJ$1),INDEX(Reliability!O$23:O$50,MATCH($S405,Reliability!$C$23:$C$50,0)),0),0)*IF($T405=\"n/a\",$D405*$Y405,$G405)+IFERROR(IF(AND($V405<=AJ$1,$W405>=AJ$1),INDEX(Reliability!O$23:O$50,MATCH($T405,Reliability!$C$23:$C$50,0)),0),0)*$H405*$X405*$Y405),$D405)*$R405","v":0},{"$f":"MIN((IFERROR(IF(AND($V405<=AK$1,$W405>=AK$1),INDEX(Reliability!P$23:P$50,MATCH($S405,Reliability!$C$23:$C$50,0)),0),0)*IF($T405=\"n/a\",$D405*$Y405,$G405)+IFERROR(IF(AND($V405<=AK$1,$W405>=AK$1),INDEX(Reliability!P$23:P$50,MATCH($T405,Reliability!$C$23:$C$50,0)),0),0)*$H405*$X405*$Y405),$D405)*$R405","v":0}]
[null,{"$f":"unique_contracts!B407","v":0},{"$f":"unique_contracts!D407","v":0},{"$f":"unique_contracts!J407","v":0},{"$f":"unique_contracts!M407","v":0},{"$f":"unique_contracts!N407","v":0},{"$f":"unique_contracts!P407","v":0},{"$f":"unique_contracts!R407","v":0},{"$f":"unique_contracts!V407","v":0},{"$f":"unique_contracts!AB407","v":0},{"$f":"unique_contracts!AM407","v":0},{"$f":"unique_contracts!AN407","v":0},{"$f":"unique_contracts!AO407","v":0},{"$f":"unique_contracts!AP407","v":0},{"$f":"unique_contracts!AQ407","v":0},{"$f":"unique_contracts!AR407","v":0},{"$f":"unique_contracts!BP407","v":0},0,{"$f":"IFERROR(IF(AND(I406>0,E406=\"NotHybrid\"),_xlfn.CONCAT(MAX(MIN(ROUNDDOWN(I406/D406,0),8),4),INDEX(resources!$G:$G,MATCH(B406,resources!$A:$A,0))),INDEX(resources!$G:$G,MATCH(B406,resources!$A:$A,0))),\"n/a\")","v":"n/a"},"n/a","n/a",0,0,1,1,{"$f":"MIN((IFERROR(IF(AND($V406<=Z$1,$W406>=Z$1),INDEX(Reliability!E$23:E$50,MATCH($S406,Reliability!$C$23:$C$50,0)),0),0)*IF($T406=\"n/a\",$D406*$Y406,$G406)+IFERROR(IF(AND($V406<=Z$1,$W406>=Z$1),INDEX(Reliability!E$23:E$50,MATCH($T406,Reliability!$C$23:$C$50,0)),0),0)*$H406*$X406*$Y406),$D406)*$R406","v":0},{"$f":"MIN((IFERROR(IF(AND($V406<=AA$1,$W406>=AA$1),INDEX(Reliability!F$23:F$50,MATCH($S406,Reliability!$C$23:$C$50,0)),0),0)*IF($T406=\"n/a\",$D406*$Y406,$G406)+IFERROR(IF(AND($V406<=AA$1,$W406>=AA$1),INDEX(Reliability!F$23:F$50,MATCH($T406,Reliability!$C$23:$C$50,0)),0),0)*$H406*$X406*$Y406),$D406)*$R406","v":0},{"$f":"MIN((IFERROR(IF(AND($V406<=AB$1,$W406>=AB$1),INDEX(Reliability!G$23:G$50,MATCH($S406,Reliability!$C$23:$C$50,0)),0),0)*IF($T406=\"n/a\",$D406*$Y406,$G406)+IFERROR(IF(AND($V406<=AB$1,$W406>=AB$1),INDEX(Reliability!G$23:G$50,MATCH($T406,Reliability!$C$23:$C$50,0)),0),0)*$H406*$X406*$Y406),$D406)*$R406","v":0},{"$f":"MIN((IFERROR(IF(AND($V406<=AC$1,$W406>=AC$1),INDEX(Reliability!H$23:H$50,MATCH($S406,Reliability!$C$23:$C$50,0)),0),0)*IF($T406=\"n/a\",$D406*$Y406,$G406)+IFERROR(IF(AND($V406<=AC$1,$W406>=AC$1),INDEX(Reliability!H$23:H$50,MATCH($T406,Reliability!$C$23:$C$50,0)),0),0)*$H406*$X406*$Y406),$D406)*$R406","v":0},{"$f":"MIN((IFERROR(IF(AND($V406<=AD$1,$W406>=AD$1),INDEX(Reliability!I$23:I$50,MATCH($S406,Reliability!$C$23:$C$50,0)),0),0)*IF($T406=\"n/a\",$D406*$Y406,$G406)+IFERROR(IF(AND($V406<=AD$1,$W406>=AD$1),INDEX(Reliability!I$23:I$50,MATCH($T406,Reliability!$C$23:$C$50,0)),0),0)*$H406*$X406*$Y406),$D406)*$R406","v":0},{"$f":"MIN((IFERROR(IF(AND($V406<=AE$1,$W406>=AE$1),INDEX(Reliability!J$23:J$50,MATCH($S406,Reliability!$C$23:$C$50,0)),0),0)*IF($T406=\"n/a\",$D406*$Y406,$G406)+IFERROR(IF(AND($V406<=AE$1,$W406>=AE$1),INDEX(Reliability!J$23:J$50,MATCH($T406,Reliability!$C$23:$C$50,0)),0),0)*$H406*$X406*$Y406),$D406)*$R406","v":0},{"$f":"MIN((IFERROR(IF(AND($V406<=AF$1,$W406>=AF$1),INDEX(Reliability!K$23:K$50,MATCH($S406,Reliability!$C$23:$C$50,0)),0),0)*IF($T406=\"n/a\",$D406*$Y406,$G406)+IFERROR(IF(AND($V406<=AF$1,$W406>=AF$1),INDEX(Reliability!K$23:K$50,MATCH($T406,Reliability!$C$23:$C$50,0)),0),0)*$H406*$X406*$Y406),$D406)*$R406","v":0},{"$f":"MIN((IFERROR(IF(AND($V406<=AG$1,$W406>=AG$1),INDEX(Reliability!L$23:L$50,MATCH($S406,Reliability!$C$23:$C$50,0)),0),0)*IF($T406=\"n/a\",$D406*$Y406,$G406)+IFERROR(IF(AND($V406<=AG$1,$W406>=AG$1),INDEX(Reliability!L$23:L$50,MATCH($T406,Reliability!$C$23:$C$50,0)),0),0)*$H406*$X406*$Y406),$D406)*$R406","v":0},{"$f":"MIN((IFERROR(IF(AND($V406<=AH$1,$W406>=AH$1),INDEX(Reliability!M$23:M$50,MATCH($S406,Reliability!$C$23:$C$50,0)),0),0)*IF($T406=\"n/a\",$D406*$Y406,$G406)+IFERROR(IF(AND($V406<=AH$1,$W406>=AH$1),INDEX(Reliability!M$23:M$50,MATCH($T406,Reliability!$C$23:$C$50,0)),0),0)*$H406*$X406*$Y406),$D406)*$R406","v":0},{"$f":"MIN((IFERROR(IF(AND($V406<=AI$1,$W406>=AI$1),INDEX(Reliability!N$23:N$50,MATCH($S406,Reliability!$C$23:$C$50,0)),0),0)*IF($T406=\"n/a\",$D406*$Y406,$G406)+IFERROR(IF(AND($V406<=AI$1,$W406>=AI$1),INDEX(Reliability!N$23:N$50,MATCH($T406,Reliability!$C$23:$C$50,0)),0),0)*$H406*$X406*$Y406),$D406)*$R406","v":0},{"$f":"MIN((IFERROR(IF(AND($V406<=AJ$1,$W406>=AJ$1),INDEX(Reliability!O$23:O$50,MATCH($S406,Reliability!$C$23:$C$50,0)),0),0)*IF($T406=\"n/a\",$D406*$Y406,$G406)+IFERROR(IF(AND($V406<=AJ$1,$W406>=AJ$1),INDEX(Reliability!O$23:O$50,MATCH($T406,Reliability!$C$23:$C$50,0)),0),0)*$H406*$X406*$Y406),$D406)*$R406","v":0},{"$f":"MIN((IFERROR(IF(AND($V406<=AK$1,$W406>=AK$1),INDEX(Reliability!P$23:P$50,MATCH($S406,Reliability!$C$23:$C$50,0)),0),0)*IF($T406=\"n/a\",$D406*$Y406,$G406)+IFERROR(IF(AND($V406<=AK$1,$W406>=AK$1),INDEX(Reliability!P$23:P$50,MATCH($T406,Reliability!$C$23:$C$50,0)),0),0)*$H406*$X406*$Y406),$D406)*$R406","v":0}]
[null,{"$f":"unique_contracts!B408","v":0},{"$f":"unique_contracts!D408","v":0},{"$f":"unique_contracts!J408","v":0},{"$f":"unique_contracts!M408","v":0},{"$f":"unique_contracts!N408","v":0},{"$f":"unique_contracts!P408","v":0},{"$f":"unique_contracts!R408","v":0},{"$f":"unique_contracts!V408","v":0},{"$f":"unique_contracts!AB408","v":0},{"$f":"unique_contracts!AM408","v":0},{"$f":"unique_contracts!AN408","v":0},{"$f":"unique_contracts!AO408","v":0},{"$f":"unique_contracts!AP408","v":0},{"$f":"unique_contracts!AQ408","v":0},{"$f":"unique_contracts!AR408","v":0},{"$f":"unique_contracts!BP408","v":0},0,{"$f":"IFERROR(IF(AND(I407>0,E407=\"NotHybrid\"),_xlfn.CONCAT(MAX(MIN(ROUNDDOWN(I407/D407,0),8),4),INDEX(resources!$G:$G,MATCH(B407,resources!$A:$A,0))),INDEX(resources!$G:$G,MATCH(B407,resources!$A:$A,0))),\"n/a\")","v":"n/a"},"n/a","n/a",0,0,1,1,{"$f":"MIN((IFERROR(IF(AND($V407<=Z$1,$W407>=Z$1),INDEX(Reliability!E$23:E$50,MATCH($S407,Reliability!$C$23:$C$50,0)),0),0)*IF($T407=\"n/a\",$D407*$Y407,$G407)+IFERROR(IF(AND($V407<=Z$1,$W407>=Z$1),INDEX(Reliability!E$23:E$50,MATCH($T407,Reliability!$C$23:$C$50,0)),0),0)*$H407*$X407*$Y407),$D407)*$R407","v":0},{"$f":"MIN((IFERROR(IF(AND($V407<=AA$1,$W407>=AA$1),INDEX(Reliability!F$23:F$50,MATCH($S407,Reliability!$C$23:$C$50,0)),0),0)*IF($T407=\"n/a\",$D407*$Y407,$G407)+IFERROR(IF(AND($V407<=AA$1,$W407>=AA$1),INDEX(Reliability!F$23:F$50,MATCH($T407,Reliability!$C$23:$C$50,0)),0),0)*$H407*$X407*$Y407),$D407)*$R407","v":0},{"$f":"MIN((IFERROR(IF(AND($V407<=AB$1,$W407>=AB$1),INDEX(Reliability!G$23:G$50,MATCH($S407,Reliability!$C$23:$C$50,0)),0),0)*IF($T407=\"n/a\",$D407*$Y407,$G407)+IFERROR(IF(AND($V407<=AB$1,$W407>=AB$1),INDEX(Reliability!G$23:G$50,MATCH($T407,Reliability!$C$23:$C$50,0)),0),0)*$H407*$X407*$Y407),$D407)*$R407","v":0},{"$f":"MIN((IFERROR(IF(AND($V407<=AC$1,$W407>=AC$1),INDEX(Reliability!H$23:H$50,MATCH($S407,Reliability!$C$23:$C$50,0)),0),0)*IF($T407=\"n/a\",$D407*$Y407,$G407)+IFERROR(IF(AND($V407<=AC$1,$W407>=AC$1),INDEX(Reliability!H$23:H$50,MATCH($T407,Reliability!$C$23:$C$50,0)),0),0)*$H407*$X407*$Y407),$D407)*$R407","v":0},{"$f":"MIN((IFERROR(IF(AND($V407<=AD$1,$W407>=AD$1),INDEX(Reliability!I$23:I$50,MATCH($S407,Reliability!$C$23:$C$50,0)),0),0)*IF($T407=\"n/a\",$D407*$Y407,$G407)+IFERROR(IF(AND($V407<=AD$1,$W407>=AD$1),INDEX(Reliability!I$23:I$50,MATCH($T407,Reliability!$C$23:$C$50,0)),0),0)*$H407*$X407*$Y407),$D407)*$R407","v":0},{"$f":"MIN((IFERROR(IF(AND($V407<=AE$1,$W407>=AE$1),INDEX(Reliability!J$23:J$50,MATCH($S407,Reliability!$C$23:$C$50,0)),0),0)*IF($T407=\"n/a\",$D407*$Y407,$G407)+IFERROR(IF(AND($V407<=AE$1,$W407>=AE$1),INDEX(Reliability!J$23:J$50,MATCH($T407,Reliability!$C$23:$C$50,0)),0),0)*$H407*$X407*$Y407),$D407)*$R407","v":0},{"$f":"MIN((IFERROR(IF(AND($V407<=AF$1,$W407>=AF$1),INDEX(Reliability!K$23:K$50,MATCH($S407,Reliability!$C$23:$C$50,0)),0),0)*IF($T407=\"n/a\",$D407*$Y407,$G407)+IFERROR(IF(AND($V407<=AF$1,$W407>=AF$1),INDEX(Reliability!K$23:K$50,MATCH($T407,Reliability!$C$23:$C$50,0)),0),0)*$H407*$X407*$Y407),$D407)*$R407","v":0},{"$f":"MIN((IFERROR(IF(AND($V407<=AG$1,$W407>=AG$1),INDEX(Reliability!L$23:L$50,MATCH($S407,Reliability!$C$23:$C$50,0)),0),0)*IF($T407=\"n/a\",$D407*$Y407,$G407)+IFERROR(IF(AND($V407<=AG$1,$W407>=AG$1),INDEX(Reliability!L$23:L$50,MATCH($T407,Reliability!$C$23:$C$50,0)),0),0)*$H407*$X407*$Y407),$D407)*$R407","v":0},{"$f":"MIN((IFERROR(IF(AND($V407<=AH$1,$W407>=AH$1),INDEX(Reliability!M$23:M$50,MATCH($S407,Reliability!$C$23:$C$50,0)),0),0)*IF($T407=\"n/a\",$D407*$Y407,$G407)+IFERROR(IF(AND($V407<=AH$1,$W407>=AH$1),INDEX(Reliability!M$23:M$50,MATCH($T407,Reliability!$C$23:$C$50,0)),0),0)*$H407*$X407*$Y407),$D407)*$R407","v":0},{"$f":"MIN((IFERROR(IF(AND($V407<=AI$1,$W407>=AI$1),INDEX(Reliability!N$23:N$50,MATCH($S407,Reliability!$C$23:$C$50,0)),0),0)*IF($T407=\"n/a\",$D407*$Y407,$G407)+IFERROR(IF(AND($V407<=AI$1,$W407>=AI$1),INDEX(Reliability!N$23:N$50,MATCH($T407,Reliability!$C$23:$C$50,0)),0),0)*$H407*$X407*$Y407),$D407)*$R407","v":0},{"$f":"MIN((IFERROR(IF(AND($V407<=AJ$1,$W407>=AJ$1),INDEX(Reliability!O$23:O$50,MATCH($S407,Reliability!$C$23:$C$50,0)),0),0)*IF($T407=\"n/a\",$D407*$Y407,$G407)+IFERROR(IF(AND($V407<=AJ$1,$W407>=AJ$1),INDEX(Reliability!O$23:O$50,MATCH($T407,Reliability!$C$23:$C$50,0)),0),0)*$H407*$X407*$Y407),$D407)*$R407","v":0},{"$f":"MIN((IFERROR(IF(AND($V407<=AK$1,$W407>=AK$1),INDEX(Reliability!P$23:P$50,MATCH($S407,Reliability!$C$23:$C$50,0)),0),0)*IF($T407=\"n/a\",$D407*$Y407,$G407)+IFERROR(IF(AND($V407<=AK$1,$W407>=AK$1),INDEX(Reliability!P$23:P$50,MATCH($T407,Reliability!$C$23:$C$50,0)),0),0)*$H407*$X407*$Y407),$D407)*$R407","v":0}]
[null,{"$f":"unique_contracts!B409","v":0},{"$f":"unique_contracts!D409","v":0},{"$f":"unique_contracts!J409","v":0},{"$f":"unique_contracts!M409","v":0},{"$f":"unique_contracts!N409","v":0},{"$f":"unique_contracts!P409","v":0},{"$f":"unique_contracts!R409","v":0},{"$f":"unique_contracts!V409","v":0},{"$f":"unique_contracts!AB409","v":0},{"$f":"unique_contracts!AM409","v":0},{"$f":"unique_contracts!AN409","v":0},{"$f":"unique_contracts!AO409","v":0},{"$f":"unique_contracts!AP409","v":0},{"$f":"unique_contracts!AQ409","v":0},{"$f":"unique_contracts!AR409","v":0},{"$f":"unique_contracts!BP409","v":0},0,{"$f":"IFERROR(IF(AND(I408>0,E408=\"NotHybrid\"),_xlfn.CONCAT(MAX(MIN(ROUNDDOWN(I408/D408,0),8),4),INDEX(resources!$G:$G,MATCH(B408,resources!$A:$A,0))),INDEX(resources!$G:$G,MATCH(B408,resources!$A:$A,0))),\"n/a\")","v":"n/a"},"n/a","n/a",0,0,1,1,{"$f":"MIN((IFERROR(IF(AND($V408<=Z$1,$W408>=Z$1),INDEX(Reliability!E$23:E$50,MATCH($S408,Reliability!$C$23:$C$50,0)),0),0)*IF($T408=\"n/a\",$D408*$Y408,$G408)+IFERROR(IF(AND($V408<=Z$1,$W408>=Z$1),INDEX(Reliability!E$23:E$50,MATCH($T408,Reliability!$C$23:$C$50,0)),0),0)*$H408*$X408*$Y408),$D408)*$R408","v":0},{"$f":"MIN((IFERROR(IF(AND($V408<=AA$1,$W408>=AA$1),INDEX(Reliability!F$23:F$50,MATCH($S408,Reliability!$C$23:$C$50,0)),0),0)*IF($T408=\"n/a\",$D408*$Y408,$G408)+IFERROR(IF(AND($V408<=AA$1,$W408>=AA$1),INDEX(Reliability!F$23:F$50,MATCH($T408,Reliability!$C$23:$C$50,0)),0),0)*$H408*$X408*$Y408),$D408)*$R408","v":0},{"$f":"MIN((IFERROR(IF(AND($V408<=AB$1,$W408>=AB$1),INDEX(Reliability!G$23:G$50,MATCH($S408,Reliability!$C$23:$C$50,0)),0),0)*IF($T408=\"n/a\",$D408*$Y408,$G408)+IFERROR(IF(AND($V408<=AB$1,$W408>=AB$1),INDEX(Reliability!G$23:G$50,MATCH($T408,Reliability!$C$23:$C$50,0)),0),0)*$H408*$X408*$Y408),$D408)*$R408","v":0},{"$f":"MIN((IFERROR(IF(AND($V408<=AC$1,$W408>=AC$1),INDEX(Reliability!H$23:H$50,MATCH($S408,Reliability!$C$23:$C$50,0)),0),0)*IF($T408=\"n/a\",$D408*$Y408,$G408)+IFERROR(IF(AND($V408<=AC$1,$W408>=AC$1),INDEX(Reliability!H$23:H$50,MATCH($T408,Reliability!$C$23:$C$50,0)),0),0)*$H408*$X408*$Y408),$D408)*$R408","v":0},{"$f":"MIN((IFERROR(IF(AND($V408<=AD$1,$W408>=AD$1),INDEX(Reliability!I$23:I$50,MATCH($S408,Reliability!$C$23:$C$50,0)),0),0)*IF($T408=\"n/a\",$D408*$Y408,$G408)+IFERROR(IF(AND($V408<=AD$1,$W408>=AD$1),INDEX(Reliability!I$23:I$50,MATCH($T408,Reliability!$C$23:$C$50,0)),0),0)*$H408*$X408*$Y408),$D408)*$R408","v":0},{"$f":"MIN((IFERROR(IF(AND($V408<=AE$1,$W408>=AE$1),INDEX(Reliability!J$23:J$50,MATCH($S408,Reliability!$C$23:$C$50,0)),0),0)*IF($T408=\"n/a\",$D408*$Y408,$G408)+IFERROR(IF(AND($V408<=AE$1,$W408>=AE$1),INDEX(Reliability!J$23:J$50,MATCH($T408,Reliability!$C$23:$C$50,0)),0),0)*$H408*$X408*$Y408),$D408)*$R408","v":0},{"$f":"MIN((IFERROR(IF(AND($V408<=AF$1,$W408>=AF$1),INDEX(Reliability!K$23:K$50,MATCH($S408,Reliability!$C$23:$C$50,0)),0),0)*IF($T408=\"n/a\",$D408*$Y408,$G408)+IFERROR(IF(AND($V408<=AF$1,$W408>=AF$1),INDEX(Reliability!K$23:K$50,MATCH($T408,Reliability!$C$23:$C$50,0)),0),0)*$H408*$X408*$Y408),$D408)*$R408","v":0},{"$f":"MIN((IFERROR(IF(AND($V408<=AG$1,$W408>=AG$1),INDEX(Reliability!L$23:L$50,MATCH($S408,Reliability!$C$23:$C$50,0)),0),0)*IF($T408=\"n/a\",$D408*$Y408,$G408)+IFERROR(IF(AND($V408<=AG$1,$W408>=AG$1),INDEX(Reliability!L$23:L$50,MATCH($T408,Reliability!$C$23:$C$50,0)),0),0)*$H408*$X408*$Y408),$D408)*$R408","v":0},{"$f":"MIN((IFERROR(IF(AND($V408<=AH$1,$W408>=AH$1),INDEX(Reliability!M$23:M$50,MATCH($S408,Reliability!$C$23:$C$50,0)),0),0)*IF($T408=\"n/a\",$D408*$Y408,$G408)+IFERROR(IF(AND($V408<=AH$1,$W408>=AH$1),INDEX(Reliability!M$23:M$50,MATCH($T408,Reliability!$C$23:$C$50,0)),0),0)*$H408*$X408*$Y408),$D408)*$R408","v":0},{"$f":"MIN((IFERROR(IF(AND($V408<=AI$1,$W408>=AI$1),INDEX(Reliability!N$23:N$50,MATCH($S408,Reliability!$C$23:$C$50,0)),0),0)*IF($T408=\"n/a\",$D408*$Y408,$G408)+IFERROR(IF(AND($V408<=AI$1,$W408>=AI$1),INDEX(Reliability!N$23:N$50,MATCH($T408,Reliability!$C$23:$C$50,0)),0),0)*$H408*$X408*$Y408),$D408)*$R408","v":0},{"$f":"MIN((IFERROR(IF(AND($V408<=AJ$1,$W408>=AJ$1),INDEX(Reliability!O$23:O$50,MATCH($S408,Reliability!$C$23:$C$50,0)),0),0)*IF($T408=\"n/a\",$D408*$Y408,$G408)+IFERROR(IF(AND($V408<=AJ$1,$W408>=AJ$1),INDEX(Reliability!O$23:O$50,MATCH($T408,Reliability!$C$23:$C$50,0)),0),0)*$H408*$X408*$Y408),$D408)*$R408","v":0},{"$f":"MIN((IFERROR(IF(AND($V408<=AK$1,$W408>=AK$1),INDEX(Reliability!P$23:P$50,MATCH($S408,Reliability!$C$23:$C$50,0)),0),0)*IF($T408=\"n/a\",$D408*$Y408,$G408)+IFERROR(IF(AND($V408<=AK$1,$W408>=AK$1),INDEX(Reliability!P$23:P$50,MATCH($T408,Reliability!$C$23:$C$50,0)),0),0)*$H408*$X408*$Y408),$D408)*$R408","v":0}]
[null,{"$f":"unique_contracts!B410","v":0},{"$f":"unique_contracts!D410","v":0},{"$f":"unique_contracts!J410","v":0},{"$f":"unique_contracts!M410","v":0},{"$f":"unique_contracts!N410","v":0},{"$f":"unique_contracts!P410","v":0},{"$f":"unique_contracts!R410","v":0},{"$f":"unique_contracts!V410","v":0},{"$f":"unique_contracts!AB410","v":0},{"$f":"unique_contracts!AM410","v":0},{"$f":"unique_contracts!AN410","v":0},{"$f":"unique_contracts!AO410","v":0},{"$f":"unique_contracts!AP410","v":0},{"$f":"unique_contracts!AQ410","v":0},{"$f":"unique_contracts!AR410","v":0},{"$f":"unique_contracts!BP410","v":0},0,{"$f":"IFERROR(IF(AND(I409>0,E409=\"NotHybrid\"),_xlfn.CONCAT(MAX(MIN(ROUNDDOWN(I409/D409,0),8),4),INDEX(resources!$G:$G,MATCH(B409,resources!$A:$A,0))),INDEX(resources!$G:$G,MATCH(B409,resources!$A:$A,0))),\"n/a\")","v":"n/a"},"n/a","n/a",0,0,1,1,{"$f":"MIN((IFERROR(IF(AND($V409<=Z$1,$W409>=Z$1),INDEX(Reliability!E$23:E$50,MATCH($S409,Reliability!$C$23:$C$50,0)),0),0)*IF($T409=\"n/a\",$D409*$Y409,$G409)+IFERROR(IF(AND($V409<=Z$1,$W409>=Z$1),INDEX(Reliability!E$23:E$50,MATCH($T409,Reliability!$C$23:$C$50,0)),0),0)*$H409*$X409*$Y409),$D409)*$R409","v":0},{"$f":"MIN((IFERROR(IF(AND($V409<=AA$1,$W409>=AA$1),INDEX(Reliability!F$23:F$50,MATCH($S409,Reliability!$C$23:$C$50,0)),0),0)*IF($T409=\"n/a\",$D409*$Y409,$G409)+IFERROR(IF(AND($V409<=AA$1,$W409>=AA$1),INDEX(Reliability!F$23:F$50,MATCH($T409,Reliability!$C$23:$C$50,0)),0),0)*$H409*$X409*$Y409),$D409)*$R409","v":0},{"$f":"MIN((IFERROR(IF(AND($V409<=AB$1,$W409>=AB$1),INDEX(Reliability!G$23:G$50,MATCH($S409,Reliability!$C$23:$C$50,0)),0),0)*IF($T409=\"n/a\",$D409*$Y409,$G409)+IFERROR(IF(AND($V409<=AB$1,$W409>=AB$1),INDEX(Reliability!G$23:G$50,MATCH($T409,Reliability!$C$23:$C$50,0)),0),0)*$H409*$X409*$Y409),$D409)*$R409","v":0},{"$f":"MIN((IFERROR(IF(AND($V409<=AC$1,$W409>=AC$1),INDEX(Reliability!H$23:H$50,MATCH($S409,Reliability!$C$23:$C$50,0)),0),0)*IF($T409=\"n/a\",$D409*$Y409,$G409)+IFERROR(IF(AND($V409<=AC$1,$W409>=AC$1),INDEX(Reliability!H$23:H$50,MATCH($T409,Reliability!$C$23:$C$50,0)),0),0)*$H409*$X409*$Y409),$D409)*$R409","v":0},{"$f":"MIN((IFERROR(IF(AND($V409<=AD$1,$W409>=AD$1),INDEX(Reliability!I$23:I$50,MATCH($S409,Reliability!$C$23:$C$50,0)),0),0)*IF($T409=\"n/a\",$D409*$Y409,$G409)+IFERROR(IF(AND($V409<=AD$1,$W409>=AD$1),INDEX(Reliability!I$23:I$50,MATCH($T409,Reliability!$C$23:$C$50,0)),0),0)*$H409*$X409*$Y409),$D409)*$R409","v":0},{"$f":"MIN((IFERROR(IF(AND($V409<=AE$1,$W409>=AE$1),INDEX(Reliability!J$23:J$50,MATCH($S409,Reliability!$C$23:$C$50,0)),0),0)*IF($T409=\"n/a\",$D409*$Y409,$G409)+IFERROR(IF(AND($V409<=AE$1,$W409>=AE$1),INDEX(Reliability!J$23:J$50,MATCH($T409,Reliability!$C$23:$C$50,0)),0),0)*$H409*$X409*$Y409),$D409)*$R409","v":0},{"$f":"MIN((IFERROR(IF(AND($V409<=AF$1,$W409>=AF$1),INDEX(Reliability!K$23:K$50,MATCH($S409,Reliability!$C$23:$C$50,0)),0),0)*IF($T409=\"n/a\",$D409*$Y409,$G409)+IFERROR(IF(AND($V409<=AF$1,$W409>=AF$1),INDEX(Reliability!K$23:K$50,MATCH($T409,Reliability!$C$23:$C$50,0)),0),0)*$H409*$X409*$Y409),$D409)*$R409","v":0},{"$f":"MIN((IFERROR(IF(AND($V409<=AG$1,$W409>=AG$1),INDEX(Reliability!L$23:L$50,MATCH($S409,Reliability!$C$23:$C$50,0)),0),0)*IF($T409=\"n/a\",$D409*$Y409,$G409)+IFERROR(IF(AND($V409<=AG$1,$W409>=AG$1),INDEX(Reliability!L$23:L$50,MATCH($T409,Reliability!$C$23:$C$50,0)),0),0)*$H409*$X409*$Y409),$D409)*$R409","v":0},{"$f":"MIN((IFERROR(IF(AND($V409<=AH$1,$W409>=AH$1),INDEX(Reliability!M$23:M$50,MATCH($S409,Reliability!$C$23:$C$50,0)),0),0)*IF($T409=\"n/a\",$D409*$Y409,$G409)+IFERROR(IF(AND($V409<=AH$1,$W409>=AH$1),INDEX(Reliability!M$23:M$50,MATCH($T409,Reliability!$C$23:$C$50,0)),0),0)*$H409*$X409*$Y409),$D409)*$R409","v":0},{"$f":"MIN((IFERROR(IF(AND($V409<=AI$1,$W409>=AI$1),INDEX(Reliability!N$23:N$50,MATCH($S409,Reliability!$C$23:$C$50,0)),0),0)*IF($T409=\"n/a\",$D409*$Y409,$G409)+IFERROR(IF(AND($V409<=AI$1,$W409>=AI$1),INDEX(Reliability!N$23:N$50,MATCH($T409,Reliability!$C$23:$C$50,0)),0),0)*$H409*$X409*$Y409),$D409)*$R409","v":0},{"$f":"MIN((IFERROR(IF(AND($V409<=AJ$1,$W409>=AJ$1),INDEX(Reliability!O$23:O$50,MATCH($S409,Reliability!$C$23:$C$50,0)),0),0)*IF($T409=\"n/a\",$D409*$Y409,$G409)+IFERROR(IF(AND($V409<=AJ$1,$W409>=AJ$1),INDEX(Reliability!O$23:O$50,MATCH($T409,Reliability!$C$23:$C$50,0)),0),0)*$H409*$X409*$Y409),$D409)*$R409","v":0},{"$f":"MIN((IFERROR(IF(AND($V409<=AK$1,$W409>=AK$1),INDEX(Reliability!P$23:P$50,MATCH($S409,Reliability!$C$23:$C$50,0)),0),0)*IF($T409=\"n/a\",$D409*$Y409,$G409)+IFERROR(IF(AND($V409<=AK$1,$W409>=AK$1),INDEX(Reliability!P$23:P$50,MATCH($T409,Reliability!$C$23:$C$50,0)),0),0)*$H409*$X409*$Y409),$D409)*$R409","v":0}]
[null,{"$f":"unique_contracts!B411","v":0},{"$f":"unique_contracts!D411","v":0},{"$f":"unique_contracts!J411","v":0},{"$f":"unique_contracts!M411","v":0},{"$f":"unique_contracts!N411","v":0},{"$f":"unique_contracts!P411","v":0},{"$f":"unique_contracts!R411","v":0},{"$f":"unique_contracts!V411","v":0},{"$f":"unique_contracts!AB411","v":0},{"$f":"unique_contracts!AM411","v":0},{"$f":"unique_contracts!AN411","v":0},{"$f":"unique_contracts!AO411","v":0},{"$f":"unique_contracts!AP411","v":0},{"$f":"unique_contracts!AQ411","v":0},{"$f":"unique_contracts!AR411","v":0},{"$f":"unique_contracts!BP411","v":0},0,{"$f":"IFERROR(IF(AND(I410>0,E410=\"NotHybrid\"),_xlfn.CONCAT(MAX(MIN(ROUNDDOWN(I410/D410,0),8),4),INDEX(resources!$G:$G,MATCH(B410,resources!$A:$A,0))),INDEX(resources!$G:$G,MATCH(B410,resources!$A:$A,0))),\"n/a\")","v":"n/a"},"n/a","n/a",0,0,1,1,{"$f":"MIN((IFERROR(IF(AND($V410<=Z$1,$W410>=Z$1),INDEX(Reliability!E$23:E$50,MATCH($S410,Reliability!$C$23:$C$50,0)),0),0)*IF($T410=\"n/a\",$D410*$Y410,$G410)+IFERROR(IF(AND($V410<=Z$1,$W410>=Z$1),INDEX(Reliability!E$23:E$50,MATCH($T410,Reliability!$C$23:$C$50,0)),0),0)*$H410*$X410*$Y410),$D410)*$R410","v":0},{"$f":"MIN((IFERROR(IF(AND($V410<=AA$1,$W410>=AA$1),INDEX(Reliability!F$23:F$50,MATCH($S410,Reliability!$C$23:$C$50,0)),0),0)*IF($T410=\"n/a\",$D410*$Y410,$G410)+IFERROR(IF(AND($V410<=AA$1,$W410>=AA$1),INDEX(Reliability!F$23:F$50,MATCH($T410,Reliability!$C$23:$C$50,0)),0),0)*$H410*$X410*$Y410),$D410)*$R410","v":0},{"$f":"MIN((IFERROR(IF(AND($V410<=AB$1,$W410>=AB$1),INDEX(Reliability!G$23:G$50,MATCH($S410,Reliability!$C$23:$C$50,0)),0),0)*IF($T410=\"n/a\",$D410*$Y410,$G410)+IFERROR(IF(AND($V410<=AB$1,$W410>=AB$1),INDEX(Reliability!G$23:G$50,MATCH($T410,Reliability!$C$23:$C$50,0)),0),0)*$H410*$X410*$Y410),$D410)*$R410","v":0},{"$f":"MIN((IFERROR(IF(AND($V410<=AC$1,$W410>=AC$1),INDEX(Reliability!H$23:H$50,MATCH($S410,Reliability!$C$23:$C$50,0)),0),0)*IF($T410=\"n/a\",$D410*$Y410,$G410)+IFERROR(IF(AND($V410<=AC$1,$W410>=AC$1),INDEX(Reliability!H$23:H$50,MATCH($T410,Reliability!$C$23:$C$50,0)),0),0)*$H410*$X410*$Y410),$D410)*$R410","v":0},{"$f":"MIN((IFERROR(IF(AND($V410<=AD$1,$W410>=AD$1),INDEX(Reliability!I$23:I$50,MATCH($S410,Reliability!$C$23:$C$50,0)),0),0)*IF($T410=\"n/a\",$D410*$Y410,$G410)+IFERROR(IF(AND($V410<=AD$1,$W410>=AD$1),INDEX(Reliability!I$23:I$50,MATCH($T410,Reliability!$C$23:$C$50,0)),0),0)*$H410*$X410*$Y410),$D410)*$R410","v":0},{"$f":"MIN((IFERROR(IF(AND($V410<=AE$1,$W410>=AE$1),INDEX(Reliability!J$23:J$50,MATCH($S410,Reliability!$C$23:$C$50,0)),0),0)*IF($T410=\"n/a\",$D410*$Y410,$G410)+IFERROR(IF(AND($V410<=AE$1,$W410>=AE$1),INDEX(Reliability!J$23:J$50,MATCH($T410,Reliability!$C$23:$C$50,0)),0),0)*$H410*$X410*$Y410),$D410)*$R410","v":0},{"$f":"MIN((IFERROR(IF(AND($V410<=AF$1,$W410>=AF$1),INDEX(Reliability!K$23:K$50,MATCH($S410,Reliability!$C$23:$C$50,0)),0),0)*IF($T410=\"n/a\",$D410*$Y410,$G410)+IFERROR(IF(AND($V410<=AF$1,$W410>=AF$1),INDEX(Reliability!K$23:K$50,MATCH($T410,Reliability!$C$23:$C$50,0)),0),0)*$H410*$X410*$Y410),$D410)*$R410","v":0},{"$f":"MIN((IFERROR(IF(AND($V410<=AG$1,$W410>=AG$1),INDEX(Reliability!L$23:L$50,MATCH($S410,Reliability!$C$23:$C$50,0)),0),0)*IF($T410=\"n/a\",$D410*$Y410,$G410)+IFERROR(IF(AND($V410<=AG$1,$W410>=AG$1),INDEX(Reliability!L$23:L$50,MATCH($T410,Reliability!$C$23:$C$50,0)),0),0)*$H410*$X410*$Y410),$D410)*$R410","v":0},{"$f":"MIN((IFERROR(IF(AND($V410<=AH$1,$W410>=AH$1),INDEX(Reliability!M$23:M$50,MATCH($S410,Reliability!$C$23:$C$50,0)),0),0)*IF($T410=\"n/a\",$D410*$Y410,$G410)+IFERROR(IF(AND($V410<=AH$1,$W410>=AH$1),INDEX(Reliability!M$23:M$50,MATCH($T410,Reliability!$C$23:$C$50,0)),0),0)*$H410*$X410*$Y410),$D410)*$R410","v":0},{"$f":"MIN((IFERROR(IF(AND($V410<=AI$1,$W410>=AI$1),INDEX(Reliability!N$23:N$50,MATCH($S410,Reliability!$C$23:$C$50,0)),0),0)*IF($T410=\"n/a\",$D410*$Y410,$G410)+IFERROR(IF(AND($V410<=AI$1,$W410>=AI$1),INDEX(Reliability!N$23:N$50,MATCH($T410,Reliability!$C$23:$C$50,0)),0),0)*$H410*$X410*$Y410),$D410)*$R410","v":0},{"$f":"MIN((IFERROR(IF(AND($V410<=AJ$1,$W410>=AJ$1),INDEX(Reliability!O$23:O$50,MATCH($S410,Reliability!$C$23:$C$50,0)),0),0)*IF($T410=\"n/a\",$D410*$Y410,$G410)+IFERROR(IF(AND($V410<=AJ$1,$W410>=AJ$1),INDEX(Reliability!O$23:O$50,MATCH($T410,Reliability!$C$23:$C$50,0)),0),0)*$H410*$X410*$Y410),$D410)*$R410","v":0},{"$f":"MIN((IFERROR(IF(AND($V410<=AK$1,$W410>=AK$1),INDEX(Reliability!P$23:P$50,MATCH($S410,Reliability!$C$23:$C$50,0)),0),0)*IF($T410=\"n/a\",$D410*$Y410,$G410)+IFERROR(IF(AND($V410<=AK$1,$W410>=AK$1),INDEX(Reliability!P$23:P$50,MATCH($T410,Reliability!$C$23:$C$50,0)),0),0)*$H410*$X410*$Y410),$D410)*$R410","v":0}]
[null,{"$f":"unique_contracts!B412","v":0},{"$f":"unique_contracts!D412","v":0},{"$f":"unique_contracts!J412","v":0},{"$f":"unique_contracts!M412","v":0},{"$f":"unique_contracts!N412","v":0},{"$f":"unique_contracts!P412","v":0},{"$f":"unique_contracts!R412","v":0},{"$f":"unique_contracts!V412","v":0},{"$f":"unique_contracts!AB412","v":0},{"$f":"unique_contracts!AM412","v":0},{"$f":"unique_contracts!AN412","v":0},{"$f":"unique_contracts!AO412","v":0},{"$f":"unique_contracts!AP412","v":0},{"$f":"unique_contracts!AQ412","v":0},{"$f":"unique_contracts!AR412","v":0},{"$f":"unique_contracts!BP412","v":0},{"$f":"IF(AND(J411=\"Sell\",ISNUMBER(SEARCH(\"Capacity\",Q411))),-1,IF(AND(NOT(J411=\"Sell\"),ISNUMBER(SEARCH(\"Capacity\",Q411))),1,0))","v":0},{"$f":"IFERROR(IF(AND(I411>0,E411=\"NotHybrid\"),_xlfn.CONCAT(MAX(MIN(ROUNDDOWN(I411/D411,0),8),4),INDEX(resources!$G:$G,MATCH(B411,resources!$A:$A,0))),INDEX(resources!$G:$G,MATCH(B411,resources!$A:$A,0))),\"n/a\")","v":"n/a"},{"$f":"IFERROR(IF(NOT(E411=\"NotHybrid\"),_xlfn.CONCAT(MAX(MIN(ROUNDDOWN(I411/H411,0),8),4),\"hr_batteries\"),\"n/a\"),\"n/a\")","v":"n/a"},{"$f":"IF(T411=\"n/a\",S411,\"hybrid\")","v":"n/a"},{"$f":"IFERROR(IF(DATE(K411,L411,M411)<=DATE(K411,6,1),K411,K411+1),0)","v":0},{"$f":"IFERROR(IF(DATE(N411,O411,P411)>=DATE(N411,10,1),N411,N411-1),0)","v":0},{"$f":"IF(OR(T411=\"n/a\",NOT(F411=\"NO\")),100%,IF(ISNUMBER(SEARCH(\"pv\",S411)),MIN(G411/(1*(ROUNDDOWN(I411/H411,0)/4)),H411)/H411,IF(ISNUMBER(SEARCH(\"wind\",S411)),MIN(G411/(2*(ROUNDDOWN(I411/H411,0)/4)),H411)/H411,1)))","v":1},{"$f":"IF(ISNUMBER(SEARCH(\"batteries\",S411)),MIN(ROUNDDOWN(I411/D411,0)/4,1), IF(ISNUMBER(SEARCH(\"batteries\",T411)),MIN(ROUNDDOWN(I411/H411,0)/4,1),1))","v":1},{"$f":"MIN((IFERROR(IF(AND($V411<=Z$1,$W411>=Z$1),INDEX(Reliability!E$23:E$50,MATCH($S411,Reliability!$C$23:$C$50,0)),0),0)*IF($T411=\"n/a\",$D411*$Y411,$G411)+IFERROR(IF(AND($V411<=Z$1,$W411>=Z$1),INDEX(Reliability!E$23:E$50,MATCH($T411,Reliability!$C$23:$C$50,0)),0),0)*$H411*$X411*$Y411),$D411)*$R411","v":0},{"$f":"MIN((IFERROR(IF(AND($V411<=AA$1,$W411>=AA$1),INDEX(Reliability!F$23:F$50,MATCH($S411,Reliability!$C$23:$C$50,0)),0),0)*IF($T411=\"n/a\",$D411*$Y411,$G411)+IFERROR(IF(AND($V411<=AA$1,$W411>=AA$1),INDEX(Reliability!F$23:F$50,MATCH($T411,Reliability!$C$23:$C$50,0)),0),0)*$H411*$X411*$Y411),$D411)*$R411","v":0},{"$f":"MIN((IFERROR(IF(AND($V411<=AB$1,$W411>=AB$1),INDEX(Reliability!G$23:G$50,MATCH($S411,Reliability!$C$23:$C$50,0)),0),0)*IF($T411=\"n/a\",$D411*$Y411,$G411)+IFERROR(IF(AND($V411<=AB$1,$W411>=AB$1),INDEX(Reliability!G$23:G$50,MATCH($T411,Reliability!$C$23:$C$50,0)),0),0)*$H411*$X411*$Y411),$D411)*$R411","v":0},{"$f":"MIN((IFERROR(IF(AND($V411<=AC$1,$W411>=AC$1),INDEX(Reliability!H$23:H$50,MATCH($S411,Reliability!$C$23:$C$50,0)),0),0)*IF($T411=\"n/a\",$D411*$Y411,$G411)+IFERROR(IF(AND($V411<=AC$1,$W411>=AC$1),INDEX(Reliability!H$23:H$50,MATCH($T411,Reliability!$C$23:$C$50,0)),0),0)*$H411*$X411*$Y411),$D411)*$R411","v":0},{"$f":"MIN((IFERROR(IF(AND($V411<=AD$1,$W411>=AD$1),INDEX(Reliability!I$23:I$50,MATCH($S411,Reliability!$C$23:$C$50,0)),0),0)*IF($T411=\"n/a\",$D411*$Y411,$G411)+IFERROR(IF(AND($V411<=AD$1,$W411>=AD$1),INDEX(Reliability!I$23:I$50,MATCH($T411,Reliability!$C$23:$C$50,0)),0),0)*$H411*$X411*$Y411),$D411)*$R411","v":0},{"$f":"MIN((IFERROR(IF(AND($V411<=AE$1,$W411>=AE$1),INDEX(Reliability!J$23:J$50,MATCH($S411,Reliability!$C$23:$C$50,0)),0),0)*IF($T411=\"n/a\",$D411*$Y411,$G411)+IFERROR(IF(AND($V411<=AE$1,$W411>=AE$1),INDEX(Reliability!J$23:J$50,MATCH($T411,Reliability!$C$23:$C$50,0)),0),0)*$H411*$X411*$Y411),$D411)*$R411","v":0},{"$f":"MIN((IFERROR(IF(AND($V411<=AF$1,$W411>=AF$1),INDEX(Reliability!K$23:K$50,MATCH($S411,Reliability!$C$23:$C$50,0)),0),0)*IF($T411=\"n/a\",$D411*$Y411,$G411)+IFERROR(IF(AND($V411<=AF$1,$W411>=AF$1),INDEX(Reliability!K$23:K$50,MATCH($T411,Reliability!$C$23:$C$50,0)),0),0)*$H411*$X411*$Y411),$D411)*$R411","v":0},{"$f":"MIN((IFERROR(IF(AND($V411<=AG$1,$W411>=AG$1),INDEX(Reliability!L$23:L$50,MATCH($S411,Reliability!$C$23:$C$50,0)),0),0)*IF($T411=\"n/a\",$D411*$Y411,$G411)+IFERROR(IF(AND($V411<=AG$1,$W411>=AG$1),INDEX(Reliability!L$23:L$50,MATCH($T411,Reliability!$C$23:$C$50,0)),0),0)*$H411*$X411*$Y411),$D411)*$R411","v":0},{"$f":"MIN((IFERROR(IF(AND($V411<=AH$1,$W411>=AH$1),INDEX(Reliability!M$23:M$50,MATCH($S411,Reliability!$C$23:$C$50,0)),0),0)*IF($T411=\"n/a\",$D411*$Y411,$G411)+IFERROR(IF(AND($V411<=AH$1,$W411>=AH$1),INDEX(Reliability!M$23:M$50,MATCH($T411,Reliability!$C$23:$C$50,0)),0),0)*$H411*$X411*$Y411),$D411)*$R411","v":0},{"$f":"MIN((IFERROR(IF(AND($V411<=AI$1,$W411>=AI$1),INDEX(Reliability!N$23:N$50,MATCH($S411,Reliability!$C$23:$C$50,0)),0),0)*IF($T411=\"n/a\",$D411*$Y411,$G411)+IFERROR(IF(AND($V411<=AI$1,$W411>=AI$1),INDEX(Reliability!N$23:N$50,MATCH($T411,Reliability!$C$23:$C$50,0)),0),0)*$H411*$X411*$Y411),$D411)*$R411","v":0},{"$f":"MIN((IFERROR(IF(AND($V411<=AJ$1,$W411>=AJ$1),INDEX(Reliability!O$23:O$50,MATCH($S411,Reliability!$C$23:$C$50,0)),0),0)*IF($T411=\"n/a\",$D411*$Y411,$G411)+IFERROR(IF(AND($V411<=AJ$1,$W411>=AJ$1),INDEX(Reliability!O$23:O$50,MATCH($T411,Reliability!$C$23:$C$50,0)),0),0)*$H411*$X411*$Y411),$D411)*$R411","v":0},{"$f":"MIN((IFERROR(IF(AND($V411<=AK$1,$W411>=AK$1),INDEX(Reliability!P$23:P$50,MATCH($S411,Reliability!$C$23:$C$50,0)),0),0)*IF($T411=\"n/a\",$D411*$Y411,$G411)+IFERROR(IF(AND($V411<=AK$1,$W411>=AK$1),INDEX(Reliability!P$23:P$50,MATCH($T411,Reliability!$C$23:$C$50,0)),0),0)*$H411*$X411*$Y411),$D411)*$R411","v":0}]
[null,{"$f":"unique_contracts!B413","v":0},{"$f":"unique_contracts!D413","v":0},{"$f":"unique_contracts!J413","v":0},{"$f":"unique_contracts!M413","v":0},{"$f":"unique_contracts!N413","v":0},{"$f":"unique_contracts!P413","v":0},{"$f":"unique_contracts!R413","v":0},{"$f":"unique_contracts!V413","v":0},{"$f":"unique_contracts!AB413","v":0},{"$f":"unique_contracts!AM413","v":0},{"$f":"unique_contracts!AN413","v":0},{"$f":"unique_contracts!AO413","v":0},{"$f":"unique_contracts!AP413","v":0},{"$f":"unique_contracts!AQ413","v":0},{"$f":"unique_contracts!AR413","v":0},{"$f":"unique_contracts!BP413","v":0},0,{"$f":"IFERROR(IF(AND(I412>0,E412=\"NotHybrid\"),_xlfn.CONCAT(MAX(MIN(ROUNDDOWN(I412/D412,0),8),4),INDEX(resources!$G:$G,MATCH(B412,resources!$A:$A,0))),INDEX(resources!$G:$G,MATCH(B412,resources!$A:$A,0))),\"n/a\")","v":"n/a"},"n/a","n/a",0,0,1,1,{"$f":"MIN((IFERROR(IF(AND($V412<=Z$1,$W412>=Z$1),INDEX(Reliability!E$23:E$50,MATCH($S412,Reliability!$C$23:$C$50,0)),0),0)*IF($T412=\"n/a\",$D412*$Y412,$G412)+IFERROR(IF(AND($V412<=Z$1,$W412>=Z$1),INDEX(Reliability!E$23:E$50,MATCH($T412,Reliability!$C$23:$C$50,0)),0),0)*$H412*$X412*$Y412),$D412)*$R412","v":0},{"$f":"MIN((IFERROR(IF(AND($V412<=AA$1,$W412>=AA$1),INDEX(Reliability!F$23:F$50,MATCH($S412,Reliability!$C$23:$C$50,0)),0),0)*IF($T412=\"n/a\",$D412*$Y412,$G412)+IFERROR(IF(AND($V412<=AA$1,$W412>=AA$1),INDEX(Reliability!F$23:F$50,MATCH($T412,Reliability!$C$23:$C$50,0)),0),0)*$H412*$X412*$Y412),$D412)*$R412","v":0},{"$f":"MIN((IFERROR(IF(AND($V412<=AB$1,$W412>=AB$1),INDEX(Reliability!G$23:G$50,MATCH($S412,Reliability!$C$23:$C$50,0)),0),0)*IF($T412=\"n/a\",$D412*$Y412,$G412)+IFERROR(IF(AND($V412<=AB$1,$W412>=AB$1),INDEX(Reliability!G$23:G$50,MATCH($T412,Reliability!$C$23:$C$50,0)),0),0)*$H412*$X412*$Y412),$D412)*$R412","v":0},{"$f":"MIN((IFERROR(IF(AND($V412<=AC$1,$W412>=AC$1),INDEX(Reliability!H$23:H$50,MATCH($S412,Reliability!$C$23:$C$50,0)),0),0)*IF($T412=\"n/a\",$D412*$Y412,$G412)+IFERROR(IF(AND($V412<=AC$1,$W412>=AC$1),INDEX(Reliability!H$23:H$50,MATCH($T412,Reliability!$C$23:$C$50,0)),0),0)*$H412*$X412*$Y412),$D412)*$R412","v":0},{"$f":"MIN((IFERROR(IF(AND($V412<=AD$1,$W412>=AD$1),INDEX(Reliability!I$23:I$50,MATCH($S412,Reliability!$C$23:$C$50,0)),0),0)*IF($T412=\"n/a\",$D412*$Y412,$G412)+IFERROR(IF(AND($V412<=AD$1,$W412>=AD$1),INDEX(Reliability!I$23:I$50,MATCH($T412,Reliability!$C$23:$C$50,0)),0),0)*$H412*$X412*$Y412),$D412)*$R412","v":0},{"$f":"MIN((IFERROR(IF(AND($V412<=AE$1,$W412>=AE$1),INDEX(Reliability!J$23:J$50,MATCH($S412,Reliability!$C$23:$C$50,0)),0),0)*IF($T412=\"n/a\",$D412*$Y412,$G412)+IFERROR(IF(AND($V412<=AE$1,$W412>=AE$1),INDEX(Reliability!J$23:J$50,MATCH($T412,Reliability!$C$23:$C$50,0)),0),0)*$H412*$X412*$Y412),$D412)*$R412","v":0},{"$f":"MIN((IFERROR(IF(AND($V412<=AF$1,$W412>=AF$1),INDEX(Reliability!K$23:K$50,MATCH($S412,Reliability!$C$23:$C$50,0)),0),0)*IF($T412=\"n/a\",$D412*$Y412,$G412)+IFERROR(IF(AND($V412<=AF$1,$W412>=AF$1),INDEX(Reliability!K$23:K$50,MATCH($T412,Reliability!$C$23:$C$50,0)),0),0)*$H412*$X412*$Y412),$D412)*$R412","v":0},{"$f":"MIN((IFERROR(IF(AND($V412<=AG$1,$W412>=AG$1),INDEX(Reliability!L$23:L$50,MATCH($S412,Reliability!$C$23:$C$50,0)),0),0)*IF($T412=\"n/a\",$D412*$Y412,$G412)+IFERROR(IF(AND($V412<=AG$1,$W412>=AG$1),INDEX(Reliability!L$23:L$50,MATCH($T412,Reliability!$C$23:$C$50,0)),0),0)*$H412*$X412*$Y412),$D412)*$R412","v":0},{"$f":"MIN((IFERROR(IF(AND($V412<=AH$1,$W412>=AH$1),INDEX(Reliability!M$23:M$50,MATCH($S412,Reliability!$C$23:$C$50,0)),0),0)*IF($T412=\"n/a\",$D412*$Y412,$G412)+IFERROR(IF(AND($V412<=AH$1,$W412>=AH$1),INDEX(Reliability!M$23:M$50,MATCH($T412,Reliability!$C$23:$C$50,0)),0),0)*$H412*$X412*$Y412),$D412)*$R412","v":0},{"$f":"MIN((IFERROR(IF(AND($V412<=AI$1,$W412>=AI$1),INDEX(Reliability!N$23:N$50,MATCH($S412,Reliability!$C$23:$C$50,0)),0),0)*IF($T412=\"n/a\",$D412*$Y412,$G412)+IFERROR(IF(AND($V412<=AI$1,$W412>=AI$1),INDEX(Reliability!N$23:N$50,MATCH($T412,Reliability!$C$23:$C$50,0)),0),0)*$H412*$X412*$Y412),$D412)*$R412","v":0},{"$f":"MIN((IFERROR(IF(AND($V412<=AJ$1,$W412>=AJ$1),INDEX(Reliability!O$23:O$50,MATCH($S412,Reliability!$C$23:$C$50,0)),0),0)*IF($T412=\"n/a\",$D412*$Y412,$G412)+IFERROR(IF(AND($V412<=AJ$1,$W412>=AJ$1),INDEX(Reliability!O$23:O$50,MATCH($T412,Reliability!$C$23:$C$50,0)),0),0)*$H412*$X412*$Y412),$D412)*$R412","v":0},{"$f":"MIN((IFERROR(IF(AND($V412<=AK$1,$W412>=AK$1),INDEX(Reliability!P$23:P$50,MATCH($S412,Reliability!$C$23:$C$50,0)),0),0)*IF($T412=\"n/a\",$D412*$Y412,$G412)+IFERROR(IF(AND($V412<=AK$1,$W412>=AK$1),INDEX(Reliability!P$23:P$50,MATCH($T412,Reliability!$C$23:$C$50,0)),0),0)*$H412*$X412*$Y412),$D412)*$R412","v":0}]
[null,{"$f":"unique_contracts!B414","v":0},{"$f":"unique_contracts!D414","v":0},{"$f":"unique_contracts!J414","v":0},{"$f":"unique_contracts!M414","v":0},{"$f":"unique_contracts!N414","v":0},{"$f":"unique_contracts!P414","v":0},{"$f":"unique_contracts!R414","v":0},{"$f":"unique_contracts!V414","v":0},{"$f":"unique_contracts!AB414","v":0},{"$f":"unique_contracts!AM414","v":0},{"$f":"unique_contracts!AN414","v":0},{"$f":"unique_contracts!AO414","v":0},{"$f":"unique_contracts!AP414","v":0},{"$f":"unique_contracts!AQ414","v":0},{"$f":"unique_contracts!AR414","v":0},{"$f":"unique_contracts!BP414","v":0},0,{"$f":"IFERROR(IF(AND(I413>0,E413=\"NotHybrid\"),_xlfn.CONCAT(MAX(MIN(ROUNDDOWN(I413/D413,0),8),4),INDEX(resources!$G:$G,MATCH(B413,resources!$A:$A,0))),INDEX(resources!$G:$G,MATCH(B413,resources!$A:$A,0))),\"n/a\")","v":"n/a"},"n/a","n/a",0,0,1,1,{"$f":"MIN((IFERROR(IF(AND($V413<=Z$1,$W413>=Z$1),INDEX(Reliability!E$23:E$50,MATCH($S413,Reliability!$C$23:$C$50,0)),0),0)*IF($T413=\"n/a\",$D413*$Y413,$G413)+IFERROR(IF(AND($V413<=Z$1,$W413>=Z$1),INDEX(Reliability!E$23:E$50,MATCH($T413,Reliability!$C$23:$C$50,0)),0),0)*$H413*$X413*$Y413),$D413)*$R413","v":0},{"$f":"MIN((IFERROR(IF(AND($V413<=AA$1,$W413>=AA$1),INDEX(Reliability!F$23:F$50,MATCH($S413,Reliability!$C$23:$C$50,0)),0),0)*IF($T413=\"n/a\",$D413*$Y413,$G413)+IFERROR(IF(AND($V413<=AA$1,$W413>=AA$1),INDEX(Reliability!F$23:F$50,MATCH($T413,Reliability!$C$23:$C$50,0)),0),0)*$H413*$X413*$Y413),$D413)*$R413","v":0},{"$f":"MIN((IFERROR(IF(AND($V413<=AB$1,$W413>=AB$1),INDEX(Reliability!G$23:G$50,MATCH($S413,Reliability!$C$23:$C$50,0)),0),0)*IF($T413=\"n/a\",$D413*$Y413,$G413)+IFERROR(IF(AND($V413<=AB$1,$W413>=AB$1),INDEX(Reliability!G$23:G$50,MATCH($T413,Reliability!$C$23:$C$50,0)),0),0)*$H413*$X413*$Y413),$D413)*$R413","v":0},{"$f":"MIN((IFERROR(IF(AND($V413<=AC$1,$W413>=AC$1),INDEX(Reliability!H$23:H$50,MATCH($S413,Reliability!$C$23:$C$50,0)),0),0)*IF($T413=\"n/a\",$D413*$Y413,$G413)+IFERROR(IF(AND($V413<=AC$1,$W413>=AC$1),INDEX(Reliability!H$23:H$50,MATCH($T413,Reliability!$C$23:$C$50,0)),0),0)*$H413*$X413*$Y413),$D413)*$R413","v":0},{"$f":"MIN((IFERROR(IF(AND($V413<=AD$1,$W413>=AD$1),INDEX(Reliability!I$23:I$50,MATCH($S413,Reliability!$C$23:$C$50,0)),0),0)*IF($T413=\"n/a\",$D413*$Y413,$G413)+IFERROR(IF(AND($V413<=AD$1,$W413>=AD$1),INDEX(Reliability!I$23:I$50,MATCH($T413,Reliability!$C$23:$C$50,0)),0),0)*$H413*$X413*$Y413),$D413)*$R413","v":0},{"$f":"MIN((IFERROR(IF(AND($V413<=AE$1,$W413>=AE$1),INDEX(Reliability!J$23:J$50,MATCH($S413,Reliability!$C$23:$C$50,0)),0),0)*IF($T413=\"n/a\",$D413*$Y413,$G413)+IFERROR(IF(AND($V413<=AE$1,$W413>=AE$1),INDEX(Reliability!J$23:J$50,MATCH($T413,Reliability!$C$23:$C$50,0)),0),0)*$H413*$X413*$Y413),$D413)*$R413","v":0},{"$f":"MIN((IFERROR(IF(AND($V413<=AF$1,$W413>=AF$1),INDEX(Reliability!K$23:K$50,MATCH($S413,Reliability!$C$23:$C$50,0)),0),0)*IF($T413=\"n/a\",$D413*$Y413,$G413)+IFERROR(IF(AND($V413<=AF$1,$W413>=AF$1),INDEX(Reliability!K$23:K$50,MATCH($T413,Reliability!$C$23:$C$50,0)),0),0)*$H413*$X413*$Y413),$D413)*$R413","v":0},{"$f":"MIN((IFERROR(IF(AND($V413<=AG$1,$W413>=AG$1),INDEX(Reliability!L$23:L$50,MATCH($S413,Reliability!$C$23:$C$50,0)),0),0)*IF($T413=\"n/a\",$D413*$Y413,$G413)+IFERROR(IF(AND($V413<=AG$1,$W413>=AG$1),INDEX(Reliability!L$23:L$50,MATCH($T413,Reliability!$C$23:$C$50,0)),0),0)*$H413*$X413*$Y413),$D413)*$R413","v":0},{"$f":"MIN((IFERROR(IF(AND($V413<=AH$1,$W413>=AH$1),INDEX(Reliability!M$23:M$50,MATCH($S413,Reliability!$C$23:$C$50,0)),0),0)*IF($T413=\"n/a\",$D413*$Y413,$G413)+IFERROR(IF(AND($V413<=AH$1,$W413>=AH$1),INDEX(Reliability!M$23:M$50,MATCH($T413,Reliability!$C$23:$C$50,0)),0),0)*$H413*$X413*$Y413),$D413)*$R413","v":0},{"$f":"MIN((IFERROR(IF(AND($V413<=AI$1,$W413>=AI$1),INDEX(Reliability!N$23:N$50,MATCH($S413,Reliability!$C$23:$C$50,0)),0),0)*IF($T413=\"n/a\",$D413*$Y413,$G413)+IFERROR(IF(AND($V413<=AI$1,$W413>=AI$1),INDEX(Reliability!N$23:N$50,MATCH($T413,Reliability!$C$23:$C$50,0)),0),0)*$H413*$X413*$Y413),$D413)*$R413","v":0},{"$f":"MIN((IFERROR(IF(AND($V413<=AJ$1,$W413>=AJ$1),INDEX(Reliability!O$23:O$50,MATCH($S413,Reliability!$C$23:$C$50,0)),0),0)*IF($T413=\"n/a\",$D413*$Y413,$G413)+IFERROR(IF(AND($V413<=AJ$1,$W413>=AJ$1),INDEX(Reliability!O$23:O$50,MATCH($T413,Reliability!$C$23:$C$50,0)),0),0)*$H413*$X413*$Y413),$D413)*$R413","v":0},{"$f":"MIN((IFERROR(IF(AND($V413<=AK$1,$W413>=AK$1),INDEX(Reliability!P$23:P$50,MATCH($S413,Reliability!$C$23:$C$50,0)),0),0)*IF($T413=\"n/a\",$D413*$Y413,$G413)+IFERROR(IF(AND($V413<=AK$1,$W413>=AK$1),INDEX(Reliability!P$23:P$50,MATCH($T413,Reliability!$C$23:$C$50,0)),0),0)*$H413*$X413*$Y413),$D413)*$R413","v":0}]
[null,{"$f":"unique_contracts!B415","v":0},{"$f":"unique_contracts!D415","v":0},{"$f":"unique_contracts!J415","v":0},{"$f":"unique_contracts!M415","v":0},{"$f":"unique_contracts!N415","v":0},{"$f":"unique_contracts!P415","v":0},{"$f":"unique_contracts!R415","v":0},{"$f":"unique_contracts!V415","v":0},{"$f":"unique_contracts!AB415","v":0},{"$f":"unique_contracts!AM415","v":0},{"$f":"unique_contracts!AN415","v":0},{"$f":"unique_contracts!AO415","v":0},{"$f":"unique_contracts!AP415","v":0},{"$f":"unique_contracts!AQ415","v":0},{"$f":"unique_contracts!AR415","v":0},{"$f":"unique_contracts!BP415","v":0},0,{"$f":"IFERROR(IF(AND(I414>0,E414=\"NotHybrid\"),_xlfn.CONCAT(MAX(MIN(ROUNDDOWN(I414/D414,0),8),4),INDEX(resources!$G:$G,MATCH(B414,resources!$A:$A,0))),INDEX(resources!$G:$G,MATCH(B414,resources!$A:$A,0))),\"n/a\")","v":"n/a"},"n/a","n/a",0,0,1,1,{"$f":"MIN((IFERROR(IF(AND($V414<=Z$1,$W414>=Z$1),INDEX(Reliability!E$23:E$50,MATCH($S414,Reliability!$C$23:$C$50,0)),0),0)*IF($T414=\"n/a\",$D414*$Y414,$G414)+IFERROR(IF(AND($V414<=Z$1,$W414>=Z$1),INDEX(Reliability!E$23:E$50,MATCH($T414,Reliability!$C$23:$C$50,0)),0),0)*$H414*$X414*$Y414),$D414)*$R414","v":0},{"$f":"MIN((IFERROR(IF(AND($V414<=AA$1,$W414>=AA$1),INDEX(Reliability!F$23:F$50,MATCH($S414,Reliability!$C$23:$C$50,0)),0),0)*IF($T414=\"n/a\",$D414*$Y414,$G414)+IFERROR(IF(AND($V414<=AA$1,$W414>=AA$1),INDEX(Reliability!F$23:F$50,MATCH($T414,Reliability!$C$23:$C$50,0)),0),0)*$H414*$X414*$Y414),$D414)*$R414","v":0},{"$f":"MIN((IFERROR(IF(AND($V414<=AB$1,$W414>=AB$1),INDEX(Reliability!G$23:G$50,MATCH($S414,Reliability!$C$23:$C$50,0)),0),0)*IF($T414=\"n/a\",$D414*$Y414,$G414)+IFERROR(IF(AND($V414<=AB$1,$W414>=AB$1),INDEX(Reliability!G$23:G$50,MATCH($T414,Reliability!$C$23:$C$50,0)),0),0)*$H414*$X414*$Y414),$D414)*$R414","v":0},{"$f":"MIN((IFERROR(IF(AND($V414<=AC$1,$W414>=AC$1),INDEX(Reliability!H$23:H$50,MATCH($S414,Reliability!$C$23:$C$50,0)),0),0)*IF($T414=\"n/a\",$D414*$Y414,$G414)+IFERROR(IF(AND($V414<=AC$1,$W414>=AC$1),INDEX(Reliability!H$23:H$50,MATCH($T414,Reliability!$C$23:$C$50,0)),0),0)*$H414*$X414*$Y414),$D414)*$R414","v":0},{"$f":"MIN((IFERROR(IF(AND($V414<=AD$1,$W414>=AD$1),INDEX(Reliability!I$23:I$50,MATCH($S414,Reliability!$C$23:$C$50,0)),0),0)*IF($T414=\"n/a\",$D414*$Y414,$G414)+IFERROR(IF(AND($V414<=AD$1,$W414>=AD$1),INDEX(Reliability!I$23:I$50,MATCH($T414,Reliability!$C$23:$C$50,0)),0),0)*$H414*$X414*$Y414),$D414)*$R414","v":0},{"$f":"MIN((IFERROR(IF(AND($V414<=AE$1,$W414>=AE$1),INDEX(Reliability!J$23:J$50,MATCH($S414,Reliability!$C$23:$C$50,0)),0),0)*IF($T414=\"n/a\",$D414*$Y414,$G414)+IFERROR(IF(AND($V414<=AE$1,$W414>=AE$1),INDEX(Reliability!J$23:J$50,MATCH($T414,Reliability!$C$23:$C$50,0)),0),0)*$H414*$X414*$Y414),$D414)*$R414","v":0},{"$f":"MIN((IFERROR(IF(AND($V414<=AF$1,$W414>=AF$1),INDEX(Reliability!K$23:K$50,MATCH($S414,Reliability!$C$23:$C$50,0)),0),0)*IF($T414=\"n/a\",$D414*$Y414,$G414)+IFERROR(IF(AND($V414<=AF$1,$W414>=AF$1),INDEX(Reliability!K$23:K$50,MATCH($T414,Reliability!$C$23:$C$50,0)),0),0)*$H414*$X414*$Y414),$D414)*$R414","v":0},{"$f":"MIN((IFERROR(IF(AND($V414<=AG$1,$W414>=AG$1),INDEX(Reliability!L$23:L$50,MATCH($S414,Reliability!$C$23:$C$50,0)),0),0)*IF($T414=\"n/a\",$D414*$Y414,$G414)+IFERROR(IF(AND($V414<=AG$1,$W414>=AG$1),INDEX(Reliability!L$23:L$50,MATCH($T414,Reliability!$C$23:$C$50,0)),0),0)*$H414*$X414*$Y414),$D414)*$R414","v":0},{"$f":"MIN((IFERROR(IF(AND($V414<=AH$1,$W414>=AH$1),INDEX(Reliability!M$23:M$50,MATCH($S414,Reliability!$C$23:$C$50,0)),0),0)*IF($T414=\"n/a\",$D414*$Y414,$G414)+IFERROR(IF(AND($V414<=AH$1,$W414>=AH$1),INDEX(Reliability!M$23:M$50,MATCH($T414,Reliability!$C$23:$C$50,0)),0),0)*$H414*$X414*$Y414),$D414)*$R414","v":0},{"$f":"MIN((IFERROR(IF(AND($V414<=AI$1,$W414>=AI$1),INDEX(Reliability!N$23:N$50,MATCH($S414,Reliability!$C$23:$C$50,0)),0),0)*IF($T414=\"n/a\",$D414*$Y414,$G414)+IFERROR(IF(AND($V414<=AI$1,$W414>=AI$1),INDEX(Reliability!N$23:N$50,MATCH($T414,Reliability!$C$23:$C$50,0)),0),0)*$H414*$X414*$Y414),$D414)*$R414","v":0},{"$f":"MIN((IFERROR(IF(AND($V414<=AJ$1,$W414>=AJ$1),INDEX(Reliability!O$23:O$50,MATCH($S414,Reliability!$C$23:$C$50,0)),0),0)*IF($T414=\"n/a\",$D414*$Y414,$G414)+IFERROR(IF(AND($V414<=AJ$1,$W414>=AJ$1),INDEX(Reliability!O$23:O$50,MATCH($T414,Reliability!$C$23:$C$50,0)),0),0)*$H414*$X414*$Y414),$D414)*$R414","v":0},{"$f":"MIN((IFERROR(IF(AND($V414<=AK$1,$W414>=AK$1),INDEX(Reliability!P$23:P$50,MATCH($S414,Reliability!$C$23:$C$50,0)),0),0)*IF($T414=\"n/a\",$D414*$Y414,$G414)+IFERROR(IF(AND($V414<=AK$1,$W414>=AK$1),INDEX(Reliability!P$23:P$50,MATCH($T414,Reliability!$C$23:$C$50,0)),0),0)*$H414*$X414*$Y414),$D414)*$R414","v":0}]
[null,{"$f":"unique_contracts!B416","v":0},{"$f":"unique_contracts!D416","v":0},{"$f":"unique_contracts!J416","v":0},{"$f":"unique_contracts!M416","v":0},{"$f":"unique_contracts!N416","v":0},{"$f":"unique_contracts!P416","v":0},{"$f":"unique_contracts!R416","v":0},{"$f":"unique_contracts!V416","v":0},{"$f":"unique_contracts!AB416","v":0},{"$f":"unique_contracts!AM416","v":0},{"$f":"unique_contracts!AN416","v":0},{"$f":"unique_contracts!AO416","v":0},{"$f":"unique_contracts!AP416","v":0},{"$f":"unique_contracts!AQ416","v":0},{"$f":"unique_contracts!AR416","v":0},{"$f":"unique_contracts!BP416","v":0},0,{"$f":"IFERROR(IF(AND(I415>0,E415=\"NotHybrid\"),_xlfn.CONCAT(MAX(MIN(ROUNDDOWN(I415/D415,0),8),4),INDEX(resources!$G:$G,MATCH(B415,resources!$A:$A,0))),INDEX(resources!$G:$G,MATCH(B415,resources!$A:$A,0))),\"n/a\")","v":"n/a"},"n/a","n/a",0,0,1,1,{"$f":"MIN((IFERROR(IF(AND($V415<=Z$1,$W415>=Z$1),INDEX(Reliability!E$23:E$50,MATCH($S415,Reliability!$C$23:$C$50,0)),0),0)*IF($T415=\"n/a\",$D415*$Y415,$G415)+IFERROR(IF(AND($V415<=Z$1,$W415>=Z$1),INDEX(Reliability!E$23:E$50,MATCH($T415,Reliability!$C$23:$C$50,0)),0),0)*$H415*$X415*$Y415),$D415)*$R415","v":0},{"$f":"MIN((IFERROR(IF(AND($V415<=AA$1,$W415>=AA$1),INDEX(Reliability!F$23:F$50,MATCH($S415,Reliability!$C$23:$C$50,0)),0),0)*IF($T415=\"n/a\",$D415*$Y415,$G415)+IFERROR(IF(AND($V415<=AA$1,$W415>=AA$1),INDEX(Reliability!F$23:F$50,MATCH($T415,Reliability!$C$23:$C$50,0)),0),0)*$H415*$X415*$Y415),$D415)*$R415","v":0},{"$f":"MIN((IFERROR(IF(AND($V415<=AB$1,$W415>=AB$1),INDEX(Reliability!G$23:G$50,MATCH($S415,Reliability!$C$23:$C$50,0)),0),0)*IF($T415=\"n/a\",$D415*$Y415,$G415)+IFERROR(IF(AND($V415<=AB$1,$W415>=AB$1),INDEX(Reliability!G$23:G$50,MATCH($T415,Reliability!$C$23:$C$50,0)),0),0)*$H415*$X415*$Y415),$D415)*$R415","v":0},{"$f":"MIN((IFERROR(IF(AND($V415<=AC$1,$W415>=AC$1),INDEX(Reliability!H$23:H$50,MATCH($S415,Reliability!$C$23:$C$50,0)),0),0)*IF($T415=\"n/a\",$D415*$Y415,$G415)+IFERROR(IF(AND($V415<=AC$1,$W415>=AC$1),INDEX(Reliability!H$23:H$50,MATCH($T415,Reliability!$C$23:$C$50,0)),0),0)*$H415*$X415*$Y415),$D415)*$R415","v":0},{"$f":"MIN((IFERROR(IF(AND($V415<=AD$1,$W415>=AD$1),INDEX(Reliability!I$23:I$50,MATCH($S415,Reliability!$C$23:$C$50,0)),0),0)*IF($T415=\"n/a\",$D415*$Y415,$G415)+IFERROR(IF(AND($V415<=AD$1,$W415>=AD$1),INDEX(Reliability!I$23:I$50,MATCH($T415,Reliability!$C$23:$C$50,0)),0),0)*$H415*$X415*$Y415),$D415)*$R415","v":0},{"$f":"MIN((IFERROR(IF(AND($V415<=AE$1,$W415>=AE$1),INDEX(Reliability!J$23:J$50,MATCH($S415,Reliability!$C$23:$C$50,0)),0),0)*IF($T415=\"n/a\",$D415*$Y415,$G415)+IFERROR(IF(AND($V415<=AE$1,$W415>=AE$1),INDEX(Reliability!J$23:J$50,MATCH($T415,Reliability!$C$23:$C$50,0)),0),0)*$H415*$X415*$Y415),$D415)*$R415","v":0},{"$f":"MIN((IFERROR(IF(AND($V415<=AF$1,$W415>=AF$1),INDEX(Reliability!K$23:K$50,MATCH($S415,Reliability!$C$23:$C$50,0)),0),0)*IF($T415=\"n/a\",$D415*$Y415,$G415)+IFERROR(IF(AND($V415<=AF$1,$W415>=AF$1),INDEX(Reliability!K$23:K$50,MATCH($T415,Reliability!$C$23:$C$50,0)),0),0)*$H415*$X415*$Y415),$D415)*$R415","v":0},{"$f":"MIN((IFERROR(IF(AND($V415<=AG$1,$W415>=AG$1),INDEX(Reliability!L$23:L$50,MATCH($S415,Reliability!$C$23:$C$50,0)),0),0)*IF($T415=\"n/a\",$D415*$Y415,$G415)+IFERROR(IF(AND($V415<=AG$1,$W415>=AG$1),INDEX(Reliability!L$23:L$50,MATCH($T415,Reliability!$C$23:$C$50,0)),0),0)*$H415*$X415*$Y415),$D415)*$R415","v":0},{"$f":"MIN((IFERROR(IF(AND($V415<=AH$1,$W415>=AH$1),INDEX(Reliability!M$23:M$50,MATCH($S415,Reliability!$C$23:$C$50,0)),0),0)*IF($T415=\"n/a\",$D415*$Y415,$G415)+IFERROR(IF(AND($V415<=AH$1,$W415>=AH$1),INDEX(Reliability!M$23:M$50,MATCH($T415,Reliability!$C$23:$C$50,0)),0),0)*$H415*$X415*$Y415),$D415)*$R415","v":0},{"$f":"MIN((IFERROR(IF(AND($V415<=AI$1,$W415>=AI$1),INDEX(Reliability!N$23:N$50,MATCH($S415,Reliability!$C$23:$C$50,0)),0),0)*IF($T415=\"n/a\",$D415*$Y415,$G415)+IFERROR(IF(AND($V415<=AI$1,$W415>=AI$1),INDEX(Reliability!N$23:N$50,MATCH($T415,Reliability!$C$23:$C$50,0)),0),0)*$H415*$X415*$Y415),$D415)*$R415","v":0},{"$f":"MIN((IFERROR(IF(AND($V415<=AJ$1,$W415>=AJ$1),INDEX(Reliability!O$23:O$50,MATCH($S415,Reliability!$C$23:$C$50,0)),0),0)*IF($T415=\"n/a\",$D415*$Y415,$G415)+IFERROR(IF(AND($V415<=AJ$1,$W415>=AJ$1),INDEX(Reliability!O$23:O$50,MATCH($T415,Reliability!$C$23:$C$50,0)),0),0)*$H415*$X415*$Y415),$D415)*$R415","v":0},{"$f":"MIN((IFERROR(IF(AND($V415<=AK$1,$W415>=AK$1),INDEX(Reliability!P$23:P$50,MATCH($S415,Reliability!$C$23:$C$50,0)),0),0)*IF($T415=\"n/a\",$D415*$Y415,$G415)+IFERROR(IF(AND($V415<=AK$1,$W415>=AK$1),INDEX(Reliability!P$23:P$50,MATCH($T415,Reliability!$C$23:$C$50,0)),0),0)*$H415*$X415*$Y415),$D415)*$R415","v":0}]
[null,{"$f":"unique_contracts!B417","v":0},{"$f":"unique_contracts!D417","v":0},{"$f":"unique_contracts!J417","v":0},{"$f":"unique_contracts!M417","v":0},{"$f":"unique_contracts!N417","v":0},{"$f":"unique_contracts!P417","v":0},{"$f":"unique_contracts!R417","v":0},{"$f":"unique_contracts!V417","v":0},{"$f":"unique_contracts!AB417","v":0},{"$f":"unique_contracts!AM417","v":0},{"$f":"unique_contracts!AN417","v":0},{"$f":"unique_contracts!AO417","v":0},{"$f":"unique_contracts!AP417","v":0},{"$f":"unique_contracts!AQ417","v":0},{"$f":"unique_contracts!AR417","v":0},{"$f":"unique_contracts!BP417","v":0},0,{"$f":"IFERROR(IF(AND(I416>0,E416=\"NotHybrid\"),_xlfn.CONCAT(MAX(MIN(ROUNDDOWN(I416/D416,0),8),4),INDEX(resources!$G:$G,MATCH(B416,resources!$A:$A,0))),INDEX(resources!$G:$G,MATCH(B416,resources!$A:$A,0))),\"n/a\")","v":"n/a"},"n/a","n/a",0,0,1,1,{"$f":"MIN((IFERROR(IF(AND($V416<=Z$1,$W416>=Z$1),INDEX(Reliability!E$23:E$50,MATCH($S416,Reliability!$C$23:$C$50,0)),0),0)*IF($T416=\"n/a\",$D416*$Y416,$G416)+IFERROR(IF(AND($V416<=Z$1,$W416>=Z$1),INDEX(Reliability!E$23:E$50,MATCH($T416,Reliability!$C$23:$C$50,0)),0),0)*$H416*$X416*$Y416),$D416)*$R416","v":0},{"$f":"MIN((IFERROR(IF(AND($V416<=AA$1,$W416>=AA$1),INDEX(Reliability!F$23:F$50,MATCH($S416,Reliability!$C$23:$C$50,0)),0),0)*IF($T416=\"n/a\",$D416*$Y416,$G416)+IFERROR(IF(AND($V416<=AA$1,$W416>=AA$1),INDEX(Reliability!F$23:F$50,MATCH($T416,Reliability!$C$23:$C$50,0)),0),0)*$H416*$X416*$Y416),$D416)*$R416","v":0},{"$f":"MIN((IFERROR(IF(AND($V416<=AB$1,$W416>=AB$1),INDEX(Reliability!G$23:G$50,MATCH($S416,Reliability!$C$23:$C$50,0)),0),0)*IF($T416=\"n/a\",$D416*$Y416,$G416)+IFERROR(IF(AND($V416<=AB$1,$W416>=AB$1),INDEX(Reliability!G$23:G$50,MATCH($T416,Reliability!$C$23:$C$50,0)),0),0)*$H416*$X416*$Y416),$D416)*$R416","v":0},{"$f":"MIN((IFERROR(IF(AND($V416<=AC$1,$W416>=AC$1),INDEX(Reliability!H$23:H$50,MATCH($S416,Reliability!$C$23:$C$50,0)),0),0)*IF($T416=\"n/a\",$D416*$Y416,$G416)+IFERROR(IF(AND($V416<=AC$1,$W416>=AC$1),INDEX(Reliability!H$23:H$50,MATCH($T416,Reliability!$C$23:$C$50,0)),0),0)*$H416*$X416*$Y416),$D416)*$R416","v":0},{"$f":"MIN((IFERROR(IF(AND($V416<=AD$1,$W416>=AD$1),INDEX(Reliability!I$23:I$50,MATCH($S416,Reliability!$C$23:$C$50,0)),0),0)*IF($T416=\"n/a\",$D416*$Y416,$G416)+IFERROR(IF(AND($V416<=AD$1,$W416>=AD$1),INDEX(Reliability!I$23:I$50,MATCH($T416,Reliability!$C$23:$C$50,0)),0),0)*$H416*$X416*$Y416),$D416)*$R416","v":0},{"$f":"MIN((IFERROR(IF(AND($V416<=AE$1,$W416>=AE$1),INDEX(Reliability!J$23:J$50,MATCH($S416,Reliability!$C$23:$C$50,0)),0),0)*IF($T416=\"n/a\",$D416*$Y416,$G416)+IFERROR(IF(AND($V416<=AE$1,$W416>=AE$1),INDEX(Reliability!J$23:J$50,MATCH($T416,Reliability!$C$23:$C$50,0)),0),0)*$H416*$X416*$Y416),$D416)*$R416","v":0},{"$f":"MIN((IFERROR(IF(AND($V416<=AF$1,$W416>=AF$1),INDEX(Reliability!K$23:K$50,MATCH($S416,Reliability!$C$23:$C$50,0)),0),0)*IF($T416=\"n/a\",$D416*$Y416,$G416)+IFERROR(IF(AND($V416<=AF$1,$W416>=AF$1),INDEX(Reliability!K$23:K$50,MATCH($T416,Reliability!$C$23:$C$50,0)),0),0)*$H416*$X416*$Y416),$D416)*$R416","v":0},{"$f":"MIN((IFERROR(IF(AND($V416<=AG$1,$W416>=AG$1),INDEX(Reliability!L$23:L$50,MATCH($S416,Reliability!$C$23:$C$50,0)),0),0)*IF($T416=\"n/a\",$D416*$Y416,$G416)+IFERROR(IF(AND($V416<=AG$1,$W416>=AG$1),INDEX(Reliability!L$23:L$50,MATCH($T416,Reliability!$C$23:$C$50,0)),0),0)*$H416*$X416*$Y416),$D416)*$R416","v":0},{"$f":"MIN((IFERROR(IF(AND($V416<=AH$1,$W416>=AH$1),INDEX(Reliability!M$23:M$50,MATCH($S416,Reliability!$C$23:$C$50,0)),0),0)*IF($T416=\"n/a\",$D416*$Y416,$G416)+IFERROR(IF(AND($V416<=AH$1,$W416>=AH$1),INDEX(Reliability!M$23:M$50,MATCH($T416,Reliability!$C$23:$C$50,0)),0),0)*$H416*$X416*$Y416),$D416)*$R416","v":0},{"$f":"MIN((IFERROR(IF(AND($V416<=AI$1,$W416>=AI$1),INDEX(Reliability!N$23:N$50,MATCH($S416,Reliability!$C$23:$C$50,0)),0),0)*IF($T416=\"n/a\",$D416*$Y416,$G416)+IFERROR(IF(AND($V416<=AI$1,$W416>=AI$1),INDEX(Reliability!N$23:N$50,MATCH($T416,Reliability!$C$23:$C$50,0)),0),0)*$H416*$X416*$Y416),$D416)*$R416","v":0},{"$f":"MIN((IFERROR(IF(AND($V416<=AJ$1,$W416>=AJ$1),INDEX(Reliability!O$23:O$50,MATCH($S416,Reliability!$C$23:$C$50,0)),0),0)*IF($T416=\"n/a\",$D416*$Y416,$G416)+IFERROR(IF(AND($V416<=AJ$1,$W416>=AJ$1),INDEX(Reliability!O$23:O$50,MATCH($T416,Reliability!$C$23:$C$50,0)),0),0)*$H416*$X416*$Y416),$D416)*$R416","v":0},{"$f":"MIN((IFERROR(IF(AND($V416<=AK$1,$W416>=AK$1),INDEX(Reliability!P$23:P$50,MATCH($S416,Reliability!$C$23:$C$50,0)),0),0)*IF($T416=\"n/a\",$D416*$Y416,$G416)+IFERROR(IF(AND($V416<=AK$1,$W416>=AK$1),INDEX(Reliability!P$23:P$50,MATCH($T416,Reliability!$C$23:$C$50,0)),0),0)*$H416*$X416*$Y416),$D416)*$R416","v":0}]
[null,{"$f":"unique_contracts!B418","v":0},{"$f":"unique_contracts!D418","v":0},{"$f":"unique_contracts!J418","v":0},{"$f":"unique_contracts!M418","v":0},{"$f":"unique_contracts!N418","v":0},{"$f":"unique_contracts!P418","v":0},{"$f":"unique_contracts!R418","v":0},{"$f":"unique_contracts!V418","v":0},{"$f":"unique_contracts!AB418","v":0},{"$f":"unique_contracts!AM418","v":0},{"$f":"unique_contracts!AN418","v":0},{"$f":"unique_contracts!AO418","v":0},{"$f":"unique_contracts!AP418","v":0},{"$f":"unique_contracts!AQ418","v":0},{"$f":"unique_contracts!AR418","v":0},{"$f":"unique_contracts!BP418","v":0},0,{"$f":"IFERROR(IF(AND(I417>0,E417=\"NotHybrid\"),_xlfn.CONCAT(MAX(MIN(ROUNDDOWN(I417/D417,0),8),4),INDEX(resources!$G:$G,MATCH(B417,resources!$A:$A,0))),INDEX(resources!$G:$G,MATCH(B417,resources!$A:$A,0))),\"n/a\")","v":"n/a"},"n/a","n/a",0,0,1,1,{"$f":"MIN((IFERROR(IF(AND($V417<=Z$1,$W417>=Z$1),INDEX(Reliability!E$23:E$50,MATCH($S417,Reliability!$C$23:$C$50,0)),0),0)*IF($T417=\"n/a\",$D417*$Y417,$G417)+IFERROR(IF(AND($V417<=Z$1,$W417>=Z$1),INDEX(Reliability!E$23:E$50,MATCH($T417,Reliability!$C$23:$C$50,0)),0),0)*$H417*$X417*$Y417),$D417)*$R417","v":0},{"$f":"MIN((IFERROR(IF(AND($V417<=AA$1,$W417>=AA$1),INDEX(Reliability!F$23:F$50,MATCH($S417,Reliability!$C$23:$C$50,0)),0),0)*IF($T417=\"n/a\",$D417*$Y417,$G417)+IFERROR(IF(AND($V417<=AA$1,$W417>=AA$1),INDEX(Reliability!F$23:F$50,MATCH($T417,Reliability!$C$23:$C$50,0)),0),0)*$H417*$X417*$Y417),$D417)*$R417","v":0},{"$f":"MIN((IFERROR(IF(AND($V417<=AB$1,$W417>=AB$1),INDEX(Reliability!G$23:G$50,MATCH($S417,Reliability!$C$23:$C$50,0)),0),0)*IF($T417=\"n/a\",$D417*$Y417,$G417)+IFERROR(IF(AND($V417<=AB$1,$W417>=AB$1),INDEX(Reliability!G$23:G$50,MATCH($T417,Reliability!$C$23:$C$50,0)),0),0)*$H417*$X417*$Y417),$D417)*$R417","v":0},{"$f":"MIN((IFERROR(IF(AND($V417<=AC$1,$W417>=AC$1),INDEX(Reliability!H$23:H$50,MATCH($S417,Reliability!$C$23:$C$50,0)),0),0)*IF($T417=\"n/a\",$D417*$Y417,$G417)+IFERROR(IF(AND($V417<=AC$1,$W417>=AC$1),INDEX(Reliability!H$23:H$50,MATCH($T417,Reliability!$C$23:$C$50,0)),0),0)*$H417*$X417*$Y417),$D417)*$R417","v":0},{"$f":"MIN((IFERROR(IF(AND($V417<=AD$1,$W417>=AD$1),INDEX(Reliability!I$23:I$50,MATCH($S417,Reliability!$C$23:$C$50,0)),0),0)*IF($T417=\"n/a\",$D417*$Y417,$G417)+IFERROR(IF(AND($V417<=AD$1,$W417>=AD$1),INDEX(Reliability!I$23:I$50,MATCH($T417,Reliability!$C$23:$C$50,0)),0),0)*$H417*$X417*$Y417),$D417)*$R417","v":0},{"$f":"MIN((IFERROR(IF(AND($V417<=AE$1,$W417>=AE$1),INDEX(Reliability!J$23:J$50,MATCH($S417,Reliability!$C$23:$C$50,0)),0),0)*IF($T417=\"n/a\",$D417*$Y417,$G417)+IFERROR(IF(AND($V417<=AE$1,$W417>=AE$1),INDEX(Reliability!J$23:J$50,MATCH($T417,Reliability!$C$23:$C$50,0)),0),0)*$H417*$X417*$Y417),$D417)*$R417","v":0},{"$f":"MIN((IFERROR(IF(AND($V417<=AF$1,$W417>=AF$1),INDEX(Reliability!K$23:K$50,MATCH($S417,Reliability!$C$23:$C$50,0)),0),0)*IF($T417=\"n/a\",$D417*$Y417,$G417)+IFERROR(IF(AND($V417<=AF$1,$W417>=AF$1),INDEX(Reliability!K$23:K$50,MATCH($T417,Reliability!$C$23:$C$50,0)),0),0)*$H417*$X417*$Y417),$D417)*$R417","v":0},{"$f":"MIN((IFERROR(IF(AND($V417<=AG$1,$W417>=AG$1),INDEX(Reliability!L$23:L$50,MATCH($S417,Reliability!$C$23:$C$50,0)),0),0)*IF($T417=\"n/a\",$D417*$Y417,$G417)+IFERROR(IF(AND($V417<=AG$1,$W417>=AG$1),INDEX(Reliability!L$23:L$50,MATCH($T417,Reliability!$C$23:$C$50,0)),0),0)*$H417*$X417*$Y417),$D417)*$R417","v":0},{"$f":"MIN((IFERROR(IF(AND($V417<=AH$1,$W417>=AH$1),INDEX(Reliability!M$23:M$50,MATCH($S417,Reliability!$C$23:$C$50,0)),0),0)*IF($T417=\"n/a\",$D417*$Y417,$G417)+IFERROR(IF(AND($V417<=AH$1,$W417>=AH$1),INDEX(Reliability!M$23:M$50,MATCH($T417,Reliability!$C$23:$C$50,0)),0),0)*$H417*$X417*$Y417),$D417)*$R417","v":0},{"$f":"MIN((IFERROR(IF(AND($V417<=AI$1,$W417>=AI$1),INDEX(Reliability!N$23:N$50,MATCH($S417,Reliability!$C$23:$C$50,0)),0),0)*IF($T417=\"n/a\",$D417*$Y417,$G417)+IFERROR(IF(AND($V417<=AI$1,$W417>=AI$1),INDEX(Reliability!N$23:N$50,MATCH($T417,Reliability!$C$23:$C$50,0)),0),0)*$H417*$X417*$Y417),$D417)*$R417","v":0},{"$f":"MIN((IFERROR(IF(AND($V417<=AJ$1,$W417>=AJ$1),INDEX(Reliability!O$23:O$50,MATCH($S417,Reliability!$C$23:$C$50,0)),0),0)*IF($T417=\"n/a\",$D417*$Y417,$G417)+IFERROR(IF(AND($V417<=AJ$1,$W417>=AJ$1),INDEX(Reliability!O$23:O$50,MATCH($T417,Reliability!$C$23:$C$50,0)),0),0)*$H417*$X417*$Y417),$D417)*$R417","v":0},{"$f":"MIN((IFERROR(IF(AND($V417<=AK$1,$W417>=AK$1),INDEX(Reliability!P$23:P$50,MATCH($S417,Reliability!$C$23:$C$50,0)),0),0)*IF($T417=\"n/a\",$D417*$Y417,$G417)+IFERROR(IF(AND($V417<=AK$1,$W417>=AK$1),INDEX(Reliability!P$23:P$50,MATCH($T417,Reliability!$C$23:$C$50,0)),0),0)*$H417*$X417*$Y417),$D417)*$R417","v":0}]
[null,{"$f":"unique_contracts!B419","v":0},{"$f":"unique_contracts!D419","v":0},{"$f":"unique_contracts!J419","v":0},{"$f":"unique_contracts!M419","v":0},{"$f":"unique_contracts!N419","v":0},{"$f":"unique_contracts!P419","v":0},{"$f":"unique_contracts!R419","v":0},{"$f":"unique_contracts!V419","v":0},{"$f":"unique_contracts!AB419","v":0},{"$f":"unique_contracts!AM419","v":0},{"$f":"unique_contracts!AN419","v":0},{"$f":"unique_contracts!AO419","v":0},{"$f":"unique_contracts!AP419","v":0},{"$f":"unique_contracts!AQ419","v":0},{"$f":"unique_contracts!AR419","v":0},{"$f":"unique_contracts!BP419","v":0},0,{"$f":"IFERROR(IF(AND(I418>0,E418=\"NotHybrid\"),_xlfn.CONCAT(MAX(MIN(ROUNDDOWN(I418/D418,0),8),4),INDEX(resources!$G:$G,MATCH(B418,resources!$A:$A,0))),INDEX(resources!$G:$G,MATCH(B418,resources!$A:$A,0))),\"n/a\")","v":"n/a"},"n/a","n/a",0,0,1,1,{"$f":"MIN((IFERROR(IF(AND($V418<=Z$1,$W418>=Z$1),INDEX(Reliability!E$23:E$50,MATCH($S418,Reliability!$C$23:$C$50,0)),0),0)*IF($T418=\"n/a\",$D418*$Y418,$G418)+IFERROR(IF(AND($V418<=Z$1,$W418>=Z$1),INDEX(Reliability!E$23:E$50,MATCH($T418,Reliability!$C$23:$C$50,0)),0),0)*$H418*$X418*$Y418),$D418)*$R418","v":0},{"$f":"MIN((IFERROR(IF(AND($V418<=AA$1,$W418>=AA$1),INDEX(Reliability!F$23:F$50,MATCH($S418,Reliability!$C$23:$C$50,0)),0),0)*IF($T418=\"n/a\",$D418*$Y418,$G418)+IFERROR(IF(AND($V418<=AA$1,$W418>=AA$1),INDEX(Reliability!F$23:F$50,MATCH($T418,Reliability!$C$23:$C$50,0)),0),0)*$H418*$X418*$Y418),$D418)*$R418","v":0},{"$f":"MIN((IFERROR(IF(AND($V418<=AB$1,$W418>=AB$1),INDEX(Reliability!G$23:G$50,MATCH($S418,Reliability!$C$23:$C$50,0)),0),0)*IF($T418=\"n/a\",$D418*$Y418,$G418)+IFERROR(IF(AND($V418<=AB$1,$W418>=AB$1),INDEX(Reliability!G$23:G$50,MATCH($T418,Reliability!$C$23:$C$50,0)),0),0)*$H418*$X418*$Y418),$D418)*$R418","v":0},{"$f":"MIN((IFERROR(IF(AND($V418<=AC$1,$W418>=AC$1),INDEX(Reliability!H$23:H$50,MATCH($S418,Reliability!$C$23:$C$50,0)),0),0)*IF($T418=\"n/a\",$D418*$Y418,$G418)+IFERROR(IF(AND($V418<=AC$1,$W418>=AC$1),INDEX(Reliability!H$23:H$50,MATCH($T418,Reliability!$C$23:$C$50,0)),0),0)*$H418*$X418*$Y418),$D418)*$R418","v":0},{"$f":"MIN((IFERROR(IF(AND($V418<=AD$1,$W418>=AD$1),INDEX(Reliability!I$23:I$50,MATCH($S418,Reliability!$C$23:$C$50,0)),0),0)*IF($T418=\"n/a\",$D418*$Y418,$G418)+IFERROR(IF(AND($V418<=AD$1,$W418>=AD$1),INDEX(Reliability!I$23:I$50,MATCH($T418,Reliability!$C$23:$C$50,0)),0),0)*$H418*$X418*$Y418),$D418)*$R418","v":0},{"$f":"MIN((IFERROR(IF(AND($V418<=AE$1,$W418>=AE$1),INDEX(Reliability!J$23:J$50,MATCH($S418,Reliability!$C$23:$C$50,0)),0),0)*IF($T418=\"n/a\",$D418*$Y418,$G418)+IFERROR(IF(AND($V418<=AE$1,$W418>=AE$1),INDEX(Reliability!J$23:J$50,MATCH($T418,Reliability!$C$23:$C$50,0)),0),0)*$H418*$X418*$Y418),$D418)*$R418","v":0},{"$f":"MIN((IFERROR(IF(AND($V418<=AF$1,$W418>=AF$1),INDEX(Reliability!K$23:K$50,MATCH($S418,Reliability!$C$23:$C$50,0)),0),0)*IF($T418=\"n/a\",$D418*$Y418,$G418)+IFERROR(IF(AND($V418<=AF$1,$W418>=AF$1),INDEX(Reliability!K$23:K$50,MATCH($T418,Reliability!$C$23:$C$50,0)),0),0)*$H418*$X418*$Y418),$D418)*$R418","v":0},{"$f":"MIN((IFERROR(IF(AND($V418<=AG$1,$W418>=AG$1),INDEX(Reliability!L$23:L$50,MATCH($S418,Reliability!$C$23:$C$50,0)),0),0)*IF($T418=\"n/a\",$D418*$Y418,$G418)+IFERROR(IF(AND($V418<=AG$1,$W418>=AG$1),INDEX(Reliability!L$23:L$50,MATCH($T418,Reliability!$C$23:$C$50,0)),0),0)*$H418*$X418*$Y418),$D418)*$R418","v":0},{"$f":"MIN((IFERROR(IF(AND($V418<=AH$1,$W418>=AH$1),INDEX(Reliability!M$23:M$50,MATCH($S418,Reliability!$C$23:$C$50,0)),0),0)*IF($T418=\"n/a\",$D418*$Y418,$G418)+IFERROR(IF(AND($V418<=AH$1,$W418>=AH$1),INDEX(Reliability!M$23:M$50,MATCH($T418,Reliability!$C$23:$C$50,0)),0),0)*$H418*$X418*$Y418),$D418)*$R418","v":0},{"$f":"MIN((IFERROR(IF(AND($V418<=AI$1,$W418>=AI$1),INDEX(Reliability!N$23:N$50,MATCH($S418,Reliability!$C$23:$C$50,0)),0),0)*IF($T418=\"n/a\",$D418*$Y418,$G418)+IFERROR(IF(AND($V418<=AI$1,$W418>=AI$1),INDEX(Reliability!N$23:N$50,MATCH($T418,Reliability!$C$23:$C$50,0)),0),0)*$H418*$X418*$Y418),$D418)*$R418","v":0},{"$f":"MIN((IFERROR(IF(AND($V418<=AJ$1,$W418>=AJ$1),INDEX(Reliability!O$23:O$50,MATCH($S418,Reliability!$C$23:$C$50,0)),0),0)*IF($T418=\"n/a\",$D418*$Y418,$G418)+IFERROR(IF(AND($V418<=AJ$1,$W418>=AJ$1),INDEX(Reliability!O$23:O$50,MATCH($T418,Reliability!$C$23:$C$50,0)),0),0)*$H418*$X418*$Y418),$D418)*$R418","v":0},{"$f":"MIN((IFERROR(IF(AND($V418<=AK$1,$W418>=AK$1),INDEX(Reliability!P$23:P$50,MATCH($S418,Reliability!$C$23:$C$50,0)),0),0)*IF($T418=\"n/a\",$D418*$Y418,$G418)+IFERROR(IF(AND($V418<=AK$1,$W418>=AK$1),INDEX(Reliability!P$23:P$50,MATCH($T418,Reliability!$C$23:$C$50,0)),0),0)*$H418*$X418*$Y418),$D418)*$R418","v":0}]
[null,{"$f":"unique_contracts!B420","v":0},{"$f":"unique_contracts!D420","v":0},{"$f":"unique_contracts!J420","v":0},{"$f":"unique_contracts!M420","v":0},{"$f":"unique_contracts!N420","v":0},{"$f":"unique_contracts!P420","v":0},{"$f":"unique_contracts!R420","v":0},{"$f":"unique_contracts!V420","v":0},{"$f":"unique_contracts!AB420","v":0},{"$f":"unique_contracts!AM420","v":0},{"$f":"unique_contracts!AN420","v":0},{"$f":"unique_contracts!AO420","v":0},{"$f":"unique_contracts!AP420","v":0},{"$f":"unique_contracts!AQ420","v":0},{"$f":"unique_contracts!AR420","v":0},{"$f":"unique_contracts!BP420","v":0},0,{"$f":"IFERROR(IF(AND(I419>0,E419=\"NotHybrid\"),_xlfn.CONCAT(MAX(MIN(ROUNDDOWN(I419/D419,0),8),4),INDEX(resources!$G:$G,MATCH(B419,resources!$A:$A,0))),INDEX(resources!$G:$G,MATCH(B419,resources!$A:$A,0))),\"n/a\")","v":"n/a"},"n/a","n/a",0,0,1,1,{"$f":"MIN((IFERROR(IF(AND($V419<=Z$1,$W419>=Z$1),INDEX(Reliability!E$23:E$50,MATCH($S419,Reliability!$C$23:$C$50,0)),0),0)*IF($T419=\"n/a\",$D419*$Y419,$G419)+IFERROR(IF(AND($V419<=Z$1,$W419>=Z$1),INDEX(Reliability!E$23:E$50,MATCH($T419,Reliability!$C$23:$C$50,0)),0),0)*$H419*$X419*$Y419),$D419)*$R419","v":0},{"$f":"MIN((IFERROR(IF(AND($V419<=AA$1,$W419>=AA$1),INDEX(Reliability!F$23:F$50,MATCH($S419,Reliability!$C$23:$C$50,0)),0),0)*IF($T419=\"n/a\",$D419*$Y419,$G419)+IFERROR(IF(AND($V419<=AA$1,$W419>=AA$1),INDEX(Reliability!F$23:F$50,MATCH($T419,Reliability!$C$23:$C$50,0)),0),0)*$H419*$X419*$Y419),$D419)*$R419","v":0},{"$f":"MIN((IFERROR(IF(AND($V419<=AB$1,$W419>=AB$1),INDEX(Reliability!G$23:G$50,MATCH($S419,Reliability!$C$23:$C$50,0)),0),0)*IF($T419=\"n/a\",$D419*$Y419,$G419)+IFERROR(IF(AND($V419<=AB$1,$W419>=AB$1),INDEX(Reliability!G$23:G$50,MATCH($T419,Reliability!$C$23:$C$50,0)),0),0)*$H419*$X419*$Y419),$D419)*$R419","v":0},{"$f":"MIN((IFERROR(IF(AND($V419<=AC$1,$W419>=AC$1),INDEX(Reliability!H$23:H$50,MATCH($S419,Reliability!$C$23:$C$50,0)),0),0)*IF($T419=\"n/a\",$D419*$Y419,$G419)+IFERROR(IF(AND($V419<=AC$1,$W419>=AC$1),INDEX(Reliability!H$23:H$50,MATCH($T419,Reliability!$C$23:$C$50,0)),0),0)*$H419*$X419*$Y419),$D419)*$R419","v":0},{"$f":"MIN((IFERROR(IF(AND($V419<=AD$1,$W419>=AD$1),INDEX(Reliability!I$23:I$50,MATCH($S419,Reliability!$C$23:$C$50,0)),0),0)*IF($T419=\"n/a\",$D419*$Y419,$G419)+IFERROR(IF(AND($V419<=AD$1,$W419>=AD$1),INDEX(Reliability!I$23:I$50,MATCH($T419,Reliability!$C$23:$C$50,0)),0),0)*$H419*$X419*$Y419),$D419)*$R419","v":0},{"$f":"MIN((IFERROR(IF(AND($V419<=AE$1,$W419>=AE$1),INDEX(Reliability!J$23:J$50,MATCH($S419,Reliability!$C$23:$C$50,0)),0),0)*IF($T419=\"n/a\",$D419*$Y419,$G419)+IFERROR(IF(AND($V419<=AE$1,$W419>=AE$1),INDEX(Reliability!J$23:J$50,MATCH($T419,Reliability!$C$23:$C$50,0)),0),0)*$H419*$X419*$Y419),$D419)*$R419","v":0},{"$f":"MIN((IFERROR(IF(AND($V419<=AF$1,$W419>=AF$1),INDEX(Reliability!K$23:K$50,MATCH($S419,Reliability!$C$23:$C$50,0)),0),0)*IF($T419=\"n/a\",$D419*$Y419,$G419)+IFERROR(IF(AND($V419<=AF$1,$W419>=AF$1),INDEX(Reliability!K$23:K$50,MATCH($T419,Reliability!$C$23:$C$50,0)),0),0)*$H419*$X419*$Y419),$D419)*$R419","v":0},{"$f":"MIN((IFERROR(IF(AND($V419<=AG$1,$W419>=AG$1),INDEX(Reliability!L$23:L$50,MATCH($S419,Reliability!$C$23:$C$50,0)),0),0)*IF($T419=\"n/a\",$D419*$Y419,$G419)+IFERROR(IF(AND($V419<=AG$1,$W419>=AG$1),INDEX(Reliability!L$23:L$50,MATCH($T419,Reliability!$C$23:$C$50,0)),0),0)*$H419*$X419*$Y419),$D419)*$R419","v":0},{"$f":"MIN((IFERROR(IF(AND($V419<=AH$1,$W419>=AH$1),INDEX(Reliability!M$23:M$50,MATCH($S419,Reliability!$C$23:$C$50,0)),0),0)*IF($T419=\"n/a\",$D419*$Y419,$G419)+IFERROR(IF(AND($V419<=AH$1,$W419>=AH$1),INDEX(Reliability!M$23:M$50,MATCH($T419,Reliability!$C$23:$C$50,0)),0),0)*$H419*$X419*$Y419),$D419)*$R419","v":0},{"$f":"MIN((IFERROR(IF(AND($V419<=AI$1,$W419>=AI$1),INDEX(Reliability!N$23:N$50,MATCH($S419,Reliability!$C$23:$C$50,0)),0),0)*IF($T419=\"n/a\",$D419*$Y419,$G419)+IFERROR(IF(AND($V419<=AI$1,$W419>=AI$1),INDEX(Reliability!N$23:N$50,MATCH($T419,Reliability!$C$23:$C$50,0)),0),0)*$H419*$X419*$Y419),$D419)*$R419","v":0},{"$f":"MIN((IFERROR(IF(AND($V419<=AJ$1,$W419>=AJ$1),INDEX(Reliability!O$23:O$50,MATCH($S419,Reliability!$C$23:$C$50,0)),0),0)*IF($T419=\"n/a\",$D419*$Y419,$G419)+IFERROR(IF(AND($V419<=AJ$1,$W419>=AJ$1),INDEX(Reliability!O$23:O$50,MATCH($T419,Reliability!$C$23:$C$50,0)),0),0)*$H419*$X419*$Y419),$D419)*$R419","v":0},{"$f":"MIN((IFERROR(IF(AND($V419<=AK$1,$W419>=AK$1),INDEX(Reliability!P$23:P$50,MATCH($S419,Reliability!$C$23:$C$50,0)),0),0)*IF($T419=\"n/a\",$D419*$Y419,$G419)+IFERROR(IF(AND($V419<=AK$1,$W419>=AK$1),INDEX(Reliability!P$23:P$50,MATCH($T419,Reliability!$C$23:$C$50,0)),0),0)*$H419*$X419*$Y419),$D419)*$R419","v":0}]
[null,{"$f":"unique_contracts!B421","v":0},{"$f":"unique_contracts!D421","v":0},{"$f":"unique_contracts!J421","v":0},{"$f":"unique_contracts!M421","v":0},{"$f":"unique_contracts!N421","v":0},{"$f":"unique_contracts!P421","v":0},{"$f":"unique_contracts!R421","v":0},{"$f":"unique_contracts!V421","v":0},{"$f":"unique_contracts!AB421","v":0},{"$f":"unique_contracts!AM421","v":0},{"$f":"unique_contracts!AN421","v":0},{"$f":"unique_contracts!AO421","v":0},{"$f":"unique_contracts!AP421","v":0},{"$f":"unique_contracts!AQ421","v":0},{"$f":"unique_contracts!AR421","v":0},{"$f":"unique_contracts!BP421","v":0},0,{"$f":"IFERROR(IF(AND(I420>0,E420=\"NotHybrid\"),_xlfn.CONCAT(MAX(MIN(ROUNDDOWN(I420/D420,0),8),4),INDEX(resources!$G:$G,MATCH(B420,resources!$A:$A,0))),INDEX(resources!$G:$G,MATCH(B420,resources!$A:$A,0))),\"n/a\")","v":"n/a"},"n/a","n/a",0,0,1,1,{"$f":"MIN((IFERROR(IF(AND($V420<=Z$1,$W420>=Z$1),INDEX(Reliability!E$23:E$50,MATCH($S420,Reliability!$C$23:$C$50,0)),0),0)*IF($T420=\"n/a\",$D420*$Y420,$G420)+IFERROR(IF(AND($V420<=Z$1,$W420>=Z$1),INDEX(Reliability!E$23:E$50,MATCH($T420,Reliability!$C$23:$C$50,0)),0),0)*$H420*$X420*$Y420),$D420)*$R420","v":0},{"$f":"MIN((IFERROR(IF(AND($V420<=AA$1,$W420>=AA$1),INDEX(Reliability!F$23:F$50,MATCH($S420,Reliability!$C$23:$C$50,0)),0),0)*IF($T420=\"n/a\",$D420*$Y420,$G420)+IFERROR(IF(AND($V420<=AA$1,$W420>=AA$1),INDEX(Reliability!F$23:F$50,MATCH($T420,Reliability!$C$23:$C$50,0)),0),0)*$H420*$X420*$Y420),$D420)*$R420","v":0},{"$f":"MIN((IFERROR(IF(AND($V420<=AB$1,$W420>=AB$1),INDEX(Reliability!G$23:G$50,MATCH($S420,Reliability!$C$23:$C$50,0)),0),0)*IF($T420=\"n/a\",$D420*$Y420,$G420)+IFERROR(IF(AND($V420<=AB$1,$W420>=AB$1),INDEX(Reliability!G$23:G$50,MATCH($T420,Reliability!$C$23:$C$50,0)),0),0)*$H420*$X420*$Y420),$D420)*$R420","v":0},{"$f":"MIN((IFERROR(IF(AND($V420<=AC$1,$W420>=AC$1),INDEX(Reliability!H$23:H$50,MATCH($S420,Reliability!$C$23:$C$50,0)),0),0)*IF($T420=\"n/a\",$D420*$Y420,$G420)+IFERROR(IF(AND($V420<=AC$1,$W420>=AC$1),INDEX(Reliability!H$23:H$50,MATCH($T420,Reliability!$C$23:$C$50,0)),0),0)*$H420*$X420*$Y420),$D420)*$R420","v":0},{"$f":"MIN((IFERROR(IF(AND($V420<=AD$1,$W420>=AD$1),INDEX(Reliability!I$23:I$50,MATCH($S420,Reliability!$C$23:$C$50,0)),0),0)*IF($T420=\"n/a\",$D420*$Y420,$G420)+IFERROR(IF(AND($V420<=AD$1,$W420>=AD$1),INDEX(Reliability!I$23:I$50,MATCH($T420,Reliability!$C$23:$C$50,0)),0),0)*$H420*$X420*$Y420),$D420)*$R420","v":0},{"$f":"MIN((IFERROR(IF(AND($V420<=AE$1,$W420>=AE$1),INDEX(Reliability!J$23:J$50,MATCH($S420,Reliability!$C$23:$C$50,0)),0),0)*IF($T420=\"n/a\",$D420*$Y420,$G420)+IFERROR(IF(AND($V420<=AE$1,$W420>=AE$1),INDEX(Reliability!J$23:J$50,MATCH($T420,Reliability!$C$23:$C$50,0)),0),0)*$H420*$X420*$Y420),$D420)*$R420","v":0},{"$f":"MIN((IFERROR(IF(AND($V420<=AF$1,$W420>=AF$1),INDEX(Reliability!K$23:K$50,MATCH($S420,Reliability!$C$23:$C$50,0)),0),0)*IF($T420=\"n/a\",$D420*$Y420,$G420)+IFERROR(IF(AND($V420<=AF$1,$W420>=AF$1),INDEX(Reliability!K$23:K$50,MATCH($T420,Reliability!$C$23:$C$50,0)),0),0)*$H420*$X420*$Y420),$D420)*$R420","v":0},{"$f":"MIN((IFERROR(IF(AND($V420<=AG$1,$W420>=AG$1),INDEX(Reliability!L$23:L$50,MATCH($S420,Reliability!$C$23:$C$50,0)),0),0)*IF($T420=\"n/a\",$D420*$Y420,$G420)+IFERROR(IF(AND($V420<=AG$1,$W420>=AG$1),INDEX(Reliability!L$23:L$50,MATCH($T420,Reliability!$C$23:$C$50,0)),0),0)*$H420*$X420*$Y420),$D420)*$R420","v":0},{"$f":"MIN((IFERROR(IF(AND($V420<=AH$1,$W420>=AH$1),INDEX(Reliability!M$23:M$50,MATCH($S420,Reliability!$C$23:$C$50,0)),0),0)*IF($T420=\"n/a\",$D420*$Y420,$G420)+IFERROR(IF(AND($V420<=AH$1,$W420>=AH$1),INDEX(Reliability!M$23:M$50,MATCH($T420,Reliability!$C$23:$C$50,0)),0),0)*$H420*$X420*$Y420),$D420)*$R420","v":0},{"$f":"MIN((IFERROR(IF(AND($V420<=AI$1,$W420>=AI$1),INDEX(Reliability!N$23:N$50,MATCH($S420,Reliability!$C$23:$C$50,0)),0),0)*IF($T420=\"n/a\",$D420*$Y420,$G420)+IFERROR(IF(AND($V420<=AI$1,$W420>=AI$1),INDEX(Reliability!N$23:N$50,MATCH($T420,Reliability!$C$23:$C$50,0)),0),0)*$H420*$X420*$Y420),$D420)*$R420","v":0},{"$f":"MIN((IFERROR(IF(AND($V420<=AJ$1,$W420>=AJ$1),INDEX(Reliability!O$23:O$50,MATCH($S420,Reliability!$C$23:$C$50,0)),0),0)*IF($T420=\"n/a\",$D420*$Y420,$G420)+IFERROR(IF(AND($V420<=AJ$1,$W420>=AJ$1),INDEX(Reliability!O$23:O$50,MATCH($T420,Reliability!$C$23:$C$50,0)),0),0)*$H420*$X420*$Y420),$D420)*$R420","v":0},{"$f":"MIN((IFERROR(IF(AND($V420<=AK$1,$W420>=AK$1),INDEX(Reliability!P$23:P$50,MATCH($S420,Reliability!$C$23:$C$50,0)),0),0)*IF($T420=\"n/a\",$D420*$Y420,$G420)+IFERROR(IF(AND($V420<=AK$1,$W420>=AK$1),INDEX(Reliability!P$23:P$50,MATCH($T420,Reliability!$C$23:$C$50,0)),0),0)*$H420*$X420*$Y420),$D420)*$R420","v":0}]
[null,{"$f":"unique_contracts!B422","v":0},{"$f":"unique_contracts!D422","v":0},{"$f":"unique_contracts!J422","v":0},{"$f":"unique_contracts!M422","v":0},{"$f":"unique_contracts!N422","v":0},{"$f":"unique_contracts!P422","v":0},{"$f":"unique_contracts!R422","v":0},{"$f":"unique_contracts!V422","v":0},{"$f":"unique_contracts!AB422","v":0},{"$f":"unique_contracts!AM422","v":0},{"$f":"unique_contracts!AN422","v":0},{"$f":"unique_contracts!AO422","v":0},{"$f":"unique_contracts!AP422","v":0},{"$f":"unique_contracts!AQ422","v":0},{"$f":"unique_contracts!AR422","v":0},{"$f":"unique_contracts!BP422","v":0},0,{"$f":"IFERROR(IF(AND(I421>0,E421=\"NotHybrid\"),_xlfn.CONCAT(MAX(MIN(ROUNDDOWN(I421/D421,0),8),4),INDEX(resources!$G:$G,MATCH(B421,resources!$A:$A,0))),INDEX(resources!$G:$G,MATCH(B421,resources!$A:$A,0))),\"n/a\")","v":"n/a"},"n/a","n/a",0,0,1,1,{"$f":"MIN((IFERROR(IF(AND($V421<=Z$1,$W421>=Z$1),INDEX(Reliability!E$23:E$50,MATCH($S421,Reliability!$C$23:$C$50,0)),0),0)*IF($T421=\"n/a\",$D421*$Y421,$G421)+IFERROR(IF(AND($V421<=Z$1,$W421>=Z$1),INDEX(Reliability!E$23:E$50,MATCH($T421,Reliability!$C$23:$C$50,0)),0),0)*$H421*$X421*$Y421),$D421)*$R421","v":0},{"$f":"MIN((IFERROR(IF(AND($V421<=AA$1,$W421>=AA$1),INDEX(Reliability!F$23:F$50,MATCH($S421,Reliability!$C$23:$C$50,0)),0),0)*IF($T421=\"n/a\",$D421*$Y421,$G421)+IFERROR(IF(AND($V421<=AA$1,$W421>=AA$1),INDEX(Reliability!F$23:F$50,MATCH($T421,Reliability!$C$23:$C$50,0)),0),0)*$H421*$X421*$Y421),$D421)*$R421","v":0},{"$f":"MIN((IFERROR(IF(AND($V421<=AB$1,$W421>=AB$1),INDEX(Reliability!G$23:G$50,MATCH($S421,Reliability!$C$23:$C$50,0)),0),0)*IF($T421=\"n/a\",$D421*$Y421,$G421)+IFERROR(IF(AND($V421<=AB$1,$W421>=AB$1),INDEX(Reliability!G$23:G$50,MATCH($T421,Reliability!$C$23:$C$50,0)),0),0)*$H421*$X421*$Y421),$D421)*$R421","v":0},{"$f":"MIN((IFERROR(IF(AND($V421<=AC$1,$W421>=AC$1),INDEX(Reliability!H$23:H$50,MATCH($S421,Reliability!$C$23:$C$50,0)),0),0)*IF($T421=\"n/a\",$D421*$Y421,$G421)+IFERROR(IF(AND($V421<=AC$1,$W421>=AC$1),INDEX(Reliability!H$23:H$50,MATCH($T421,Reliability!$C$23:$C$50,0)),0),0)*$H421*$X421*$Y421),$D421)*$R421","v":0},{"$f":"MIN((IFERROR(IF(AND($V421<=AD$1,$W421>=AD$1),INDEX(Reliability!I$23:I$50,MATCH($S421,Reliability!$C$23:$C$50,0)),0),0)*IF($T421=\"n/a\",$D421*$Y421,$G421)+IFERROR(IF(AND($V421<=AD$1,$W421>=AD$1),INDEX(Reliability!I$23:I$50,MATCH($T421,Reliability!$C$23:$C$50,0)),0),0)*$H421*$X421*$Y421),$D421)*$R421","v":0},{"$f":"MIN((IFERROR(IF(AND($V421<=AE$1,$W421>=AE$1),INDEX(Reliability!J$23:J$50,MATCH($S421,Reliability!$C$23:$C$50,0)),0),0)*IF($T421=\"n/a\",$D421*$Y421,$G421)+IFERROR(IF(AND($V421<=AE$1,$W421>=AE$1),INDEX(Reliability!J$23:J$50,MATCH($T421,Reliability!$C$23:$C$50,0)),0),0)*$H421*$X421*$Y421),$D421)*$R421","v":0},{"$f":"MIN((IFERROR(IF(AND($V421<=AF$1,$W421>=AF$1),INDEX(Reliability!K$23:K$50,MATCH($S421,Reliability!$C$23:$C$50,0)),0),0)*IF($T421=\"n/a\",$D421*$Y421,$G421)+IFERROR(IF(AND($V421<=AF$1,$W421>=AF$1),INDEX(Reliability!K$23:K$50,MATCH($T421,Reliability!$C$23:$C$50,0)),0),0)*$H421*$X421*$Y421),$D421)*$R421","v":0},{"$f":"MIN((IFERROR(IF(AND($V421<=AG$1,$W421>=AG$1),INDEX(Reliability!L$23:L$50,MATCH($S421,Reliability!$C$23:$C$50,0)),0),0)*IF($T421=\"n/a\",$D421*$Y421,$G421)+IFERROR(IF(AND($V421<=AG$1,$W421>=AG$1),INDEX(Reliability!L$23:L$50,MATCH($T421,Reliability!$C$23:$C$50,0)),0),0)*$H421*$X421*$Y421),$D421)*$R421","v":0},{"$f":"MIN((IFERROR(IF(AND($V421<=AH$1,$W421>=AH$1),INDEX(Reliability!M$23:M$50,MATCH($S421,Reliability!$C$23:$C$50,0)),0),0)*IF($T421=\"n/a\",$D421*$Y421,$G421)+IFERROR(IF(AND($V421<=AH$1,$W421>=AH$1),INDEX(Reliability!M$23:M$50,MATCH($T421,Reliability!$C$23:$C$50,0)),0),0)*$H421*$X421*$Y421),$D421)*$R421","v":0},{"$f":"MIN((IFERROR(IF(AND($V421<=AI$1,$W421>=AI$1),INDEX(Reliability!N$23:N$50,MATCH($S421,Reliability!$C$23:$C$50,0)),0),0)*IF($T421=\"n/a\",$D421*$Y421,$G421)+IFERROR(IF(AND($V421<=AI$1,$W421>=AI$1),INDEX(Reliability!N$23:N$50,MATCH($T421,Reliability!$C$23:$C$50,0)),0),0)*$H421*$X421*$Y421),$D421)*$R421","v":0},{"$f":"MIN((IFERROR(IF(AND($V421<=AJ$1,$W421>=AJ$1),INDEX(Reliability!O$23:O$50,MATCH($S421,Reliability!$C$23:$C$50,0)),0),0)*IF($T421=\"n/a\",$D421*$Y421,$G421)+IFERROR(IF(AND($V421<=AJ$1,$W421>=AJ$1),INDEX(Reliability!O$23:O$50,MATCH($T421,Reliability!$C$23:$C$50,0)),0),0)*$H421*$X421*$Y421),$D421)*$R421","v":0},{"$f":"MIN((IFERROR(IF(AND($V421<=AK$1,$W421>=AK$1),INDEX(Reliability!P$23:P$50,MATCH($S421,Reliability!$C$23:$C$50,0)),0),0)*IF($T421=\"n/a\",$D421*$Y421,$G421)+IFERROR(IF(AND($V421<=AK$1,$W421>=AK$1),INDEX(Reliability!P$23:P$50,MATCH($T421,Reliability!$C$23:$C$50,0)),0),0)*$H421*$X421*$Y421),$D421)*$R421","v":0}]
[null,{"$f":"unique_contracts!B423","v":0},{"$f":"unique_contracts!D423","v":0},{"$f":"unique_contracts!J423","v":0},{"$f":"unique_contracts!M423","v":0},{"$f":"unique_contracts!N423","v":0},{"$f":"unique_contracts!P423","v":0},{"$f":"unique_contracts!R423","v":0},{"$f":"unique_contracts!V423","v":0},{"$f":"unique_contracts!AB423","v":0},{"$f":"unique_contracts!AM423","v":0},{"$f":"unique_contracts!AN423","v":0},{"$f":"unique_contracts!AO423","v":0},{"$f":"unique_contracts!AP423","v":0},{"$f":"unique_contracts!AQ423","v":0},{"$f":"unique_contracts!AR423","v":0},{"$f":"unique_contracts!BP423","v":0},0,{"$f":"IFERROR(IF(AND(I422>0,E422=\"NotHybrid\"),_xlfn.CONCAT(MAX(MIN(ROUNDDOWN(I422/D422,0),8),4),INDEX(resources!$G:$G,MATCH(B422,resources!$A:$A,0))),INDEX(resources!$G:$G,MATCH(B422,resources!$A:$A,0))),\"n/a\")","v":"n/a"},"n/a","n/a",0,0,1,1,{"$f":"MIN((IFERROR(IF(AND($V422<=Z$1,$W422>=Z$1),INDEX(Reliability!E$23:E$50,MATCH($S422,Reliability!$C$23:$C$50,0)),0),0)*IF($T422=\"n/a\",$D422*$Y422,$G422)+IFERROR(IF(AND($V422<=Z$1,$W422>=Z$1),INDEX(Reliability!E$23:E$50,MATCH($T422,Reliability!$C$23:$C$50,0)),0),0)*$H422*$X422*$Y422),$D422)*$R422","v":0},{"$f":"MIN((IFERROR(IF(AND($V422<=AA$1,$W422>=AA$1),INDEX(Reliability!F$23:F$50,MATCH($S422,Reliability!$C$23:$C$50,0)),0),0)*IF($T422=\"n/a\",$D422*$Y422,$G422)+IFERROR(IF(AND($V422<=AA$1,$W422>=AA$1),INDEX(Reliability!F$23:F$50,MATCH($T422,Reliability!$C$23:$C$50,0)),0),0)*$H422*$X422*$Y422),$D422)*$R422","v":0},{"$f":"MIN((IFERROR(IF(AND($V422<=AB$1,$W422>=AB$1),INDEX(Reliability!G$23:G$50,MATCH($S422,Reliability!$C$23:$C$50,0)),0),0)*IF($T422=\"n/a\",$D422*$Y422,$G422)+IFERROR(IF(AND($V422<=AB$1,$W422>=AB$1),INDEX(Reliability!G$23:G$50,MATCH($T422,Reliability!$C$23:$C$50,0)),0),0)*$H422*$X422*$Y422),$D422)*$R422","v":0},{"$f":"MIN((IFERROR(IF(AND($V422<=AC$1,$W422>=AC$1),INDEX(Reliability!H$23:H$50,MATCH($S422,Reliability!$C$23:$C$50,0)),0),0)*IF($T422=\"n/a\",$D422*$Y422,$G422)+IFERROR(IF(AND($V422<=AC$1,$W422>=AC$1),INDEX(Reliability!H$23:H$50,MATCH($T422,Reliability!$C$23:$C$50,0)),0),0)*$H422*$X422*$Y422),$D422)*$R422","v":0},{"$f":"MIN((IFERROR(IF(AND($V422<=AD$1,$W422>=AD$1),INDEX(Reliability!I$23:I$50,MATCH($S422,Reliability!$C$23:$C$50,0)),0),0)*IF($T422=\"n/a\",$D422*$Y422,$G422)+IFERROR(IF(AND($V422<=AD$1,$W422>=AD$1),INDEX(Reliability!I$23:I$50,MATCH($T422,Reliability!$C$23:$C$50,0)),0),0)*$H422*$X422*$Y422),$D422)*$R422","v":0},{"$f":"MIN((IFERROR(IF(AND($V422<=AE$1,$W422>=AE$1),INDEX(Reliability!J$23:J$50,MATCH($S422,Reliability!$C$23:$C$50,0)),0),0)*IF($T422=\"n/a\",$D422*$Y422,$G422)+IFERROR(IF(AND($V422<=AE$1,$W422>=AE$1),INDEX(Reliability!J$23:J$50,MATCH($T422,Reliability!$C$23:$C$50,0)),0),0)*$H422*$X422*$Y422),$D422)*$R422","v":0},{"$f":"MIN((IFERROR(IF(AND($V422<=AF$1,$W422>=AF$1),INDEX(Reliability!K$23:K$50,MATCH($S422,Reliability!$C$23:$C$50,0)),0),0)*IF($T422=\"n/a\",$D422*$Y422,$G422)+IFERROR(IF(AND($V422<=AF$1,$W422>=AF$1),INDEX(Reliability!K$23:K$50,MATCH($T422,Reliability!$C$23:$C$50,0)),0),0)*$H422*$X422*$Y422),$D422)*$R422","v":0},{"$f":"MIN((IFERROR(IF(AND($V422<=AG$1,$W422>=AG$1),INDEX(Reliability!L$23:L$50,MATCH($S422,Reliability!$C$23:$C$50,0)),0),0)*IF($T422=\"n/a\",$D422*$Y422,$G422)+IFERROR(IF(AND($V422<=AG$1,$W422>=AG$1),INDEX(Reliability!L$23:L$50,MATCH($T422,Reliability!$C$23:$C$50,0)),0),0)*$H422*$X422*$Y422),$D422)*$R422","v":0},{"$f":"MIN((IFERROR(IF(AND($V422<=AH$1,$W422>=AH$1),INDEX(Reliability!M$23:M$50,MATCH($S422,Reliability!$C$23:$C$50,0)),0),0)*IF($T422=\"n/a\",$D422*$Y422,$G422)+IFERROR(IF(AND($V422<=AH$1,$W422>=AH$1),INDEX(Reliability!M$23:M$50,MATCH($T422,Reliability!$C$23:$C$50,0)),0),0)*$H422*$X422*$Y422),$D422)*$R422","v":0},{"$f":"MIN((IFERROR(IF(AND($V422<=AI$1,$W422>=AI$1),INDEX(Reliability!N$23:N$50,MATCH($S422,Reliability!$C$23:$C$50,0)),0),0)*IF($T422=\"n/a\",$D422*$Y422,$G422)+IFERROR(IF(AND($V422<=AI$1,$W422>=AI$1),INDEX(Reliability!N$23:N$50,MATCH($T422,Reliability!$C$23:$C$50,0)),0),0)*$H422*$X422*$Y422),$D422)*$R422","v":0},{"$f":"MIN((IFERROR(IF(AND($V422<=AJ$1,$W422>=AJ$1),INDEX(Reliability!O$23:O$50,MATCH($S422,Reliability!$C$23:$C$50,0)),0),0)*IF($T422=\"n/a\",$D422*$Y422,$G422)+IFERROR(IF(AND($V422<=AJ$1,$W422>=AJ$1),INDEX(Reliability!O$23:O$50,MATCH($T422,Reliability!$C$23:$C$50,0)),0),0)*$H422*$X422*$Y422),$D422)*$R422","v":0},{"$f":"MIN((IFERROR(IF(AND($V422<=AK$1,$W422>=AK$1),INDEX(Reliability!P$23:P$50,MATCH($S422,Reliability!$C$23:$C$50,0)),0),0)*IF($T422=\"n/a\",$D422*$Y422,$G422)+IFERROR(IF(AND($V422<=AK$1,$W422>=AK$1),INDEX(Reliability!P$23:P$50,MATCH($T422,Reliability!$C$23:$C$50,0)),0),0)*$H422*$X422*$Y422),$D422)*$R422","v":0}]
[null,{"$f":"unique_contracts!B424","v":0},{"$f":"unique_contracts!D424","v":0},{"$f":"unique_contracts!J424","v":0},{"$f":"unique_contracts!M424","v":0},{"$f":"unique_contracts!N424","v":0},{"$f":"unique_contracts!P424","v":0},{"$f":"unique_contracts!R424","v":0},{"$f":"unique_contracts!V424","v":0},{"$f":"unique_contracts!AB424","v":0},{"$f":"unique_contracts!AM424","v":0},{"$f":"unique_contracts!AN424","v":0},{"$f":"unique_contracts!AO424","v":0},{"$f":"unique_contracts!AP424","v":0},{"$f":"unique_contracts!AQ424","v":0},{"$f":"unique_contracts!AR424","v":0},{"$f":"unique_contracts!BP424","v":0},0,{"$f":"IFERROR(IF(AND(I423>0,E423=\"NotHybrid\"),_xlfn.CONCAT(MAX(MIN(ROUNDDOWN(I423/D423,0),8),4),INDEX(resources!$G:$G,MATCH(B423,resources!$A:$A,0))),INDEX(resources!$G:$G,MATCH(B423,resources!$A:$A,0))),\"n/a\")","v":"n/a"},"n/a","n/a",0,0,1,1,{"$f":"MIN((IFERROR(IF(AND($V423<=Z$1,$W423>=Z$1),INDEX(Reliability!E$23:E$50,MATCH($S423,Reliability!$C$23:$C$50,0)),0),0)*IF($T423=\"n/a\",$D423*$Y423,$G423)+IFERROR(IF(AND($V423<=Z$1,$W423>=Z$1),INDEX(Reliability!E$23:E$50,MATCH($T423,Reliability!$C$23:$C$50,0)),0),0)*$H423*$X423*$Y423),$D423)*$R423","v":0},{"$f":"MIN((IFERROR(IF(AND($V423<=AA$1,$W423>=AA$1),INDEX(Reliability!F$23:F$50,MATCH($S423,Reliability!$C$23:$C$50,0)),0),0)*IF($T423=\"n/a\",$D423*$Y423,$G423)+IFERROR(IF(AND($V423<=AA$1,$W423>=AA$1),INDEX(Reliability!F$23:F$50,MATCH($T423,Reliability!$C$23:$C$50,0)),0),0)*$H423*$X423*$Y423),$D423)*$R423","v":0},{"$f":"MIN((IFERROR(IF(AND($V423<=AB$1,$W423>=AB$1),INDEX(Reliability!G$23:G$50,MATCH($S423,Reliability!$C$23:$C$50,0)),0),0)*IF($T423=\"n/a\",$D423*$Y423,$G423)+IFERROR(IF(AND($V423<=AB$1,$W423>=AB$1),INDEX(Reliability!G$23:G$50,MATCH($T423,Reliability!$C$23:$C$50,0)),0),0)*$H423*$X423*$Y423),$D423)*$R423","v":0},{"$f":"MIN((IFERROR(IF(AND($V423<=AC$1,$W423>=AC$1),INDEX(Reliability!H$23:H$50,MATCH($S423,Reliability!$C$23:$C$50,0)),0),0)*IF($T423=\"n/a\",$D423*$Y423,$G423)+IFERROR(IF(AND($V423<=AC$1,$W423>=AC$1),INDEX(Reliability!H$23:H$50,MATCH($T423,Reliability!$C$23:$C$50,0)),0),0)*$H423*$X423*$Y423),$D423)*$R423","v":0},{"$f":"MIN((IFERROR(IF(AND($V423<=AD$1,$W423>=AD$1),INDEX(Reliability!I$23:I$50,MATCH($S423,Reliability!$C$23:$C$50,0)),0),0)*IF($T423=\"n/a\",$D423*$Y423,$G423)+IFERROR(IF(AND($V423<=AD$1,$W423>=AD$1),INDEX(Reliability!I$23:I$50,MATCH($T423,Reliability!$C$23:$C$50,0)),0),0)*$H423*$X423*$Y423),$D423)*$R423","v":0},{"$f":"MIN((IFERROR(IF(AND($V423<=AE$1,$W423>=AE$1),INDEX(Reliability!J$23:J$50,MATCH($S423,Reliability!$C$23:$C$50,0)),0),0)*IF($T423=\"n/a\",$D423*$Y423,$G423)+IFERROR(IF(AND($V423<=AE$1,$W423>=AE$1),INDEX(Reliability!J$23:J$50,MATCH($T423,Reliability!$C$23:$C$50,0)),0),0)*$H423*$X423*$Y423),$D423)*$R423","v":0},{"$f":"MIN((IFERROR(IF(AND($V423<=AF$1,$W423>=AF$1),INDEX(Reliability!K$23:K$50,MATCH($S423,Reliability!$C$23:$C$50,0)),0),0)*IF($T423=\"n/a\",$D423*$Y423,$G423)+IFERROR(IF(AND($V423<=AF$1,$W423>=AF$1),INDEX(Reliability!K$23:K$50,MATCH($T423,Reliability!$C$23:$C$50,0)),0),0)*$H423*$X423*$Y423),$D423)*$R423","v":0},{"$f":"MIN((IFERROR(IF(AND($V423<=AG$1,$W423>=AG$1),INDEX(Reliability!L$23:L$50,MATCH($S423,Reliability!$C$23:$C$50,0)),0),0)*IF($T423=\"n/a\",$D423*$Y423,$G423)+IFERROR(IF(AND($V423<=AG$1,$W423>=AG$1),INDEX(Reliability!L$23:L$50,MATCH($T423,Reliability!$C$23:$C$50,0)),0),0)*$H423*$X423*$Y423),$D423)*$R423","v":0},{"$f":"MIN((IFERROR(IF(AND($V423<=AH$1,$W423>=AH$1),INDEX(Reliability!M$23:M$50,MATCH($S423,Reliability!$C$23:$C$50,0)),0),0)*IF($T423=\"n/a\",$D423*$Y423,$G423)+IFERROR(IF(AND($V423<=AH$1,$W423>=AH$1),INDEX(Reliability!M$23:M$50,MATCH($T423,Reliability!$C$23:$C$50,0)),0),0)*$H423*$X423*$Y423),$D423)*$R423","v":0},{"$f":"MIN((IFERROR(IF(AND($V423<=AI$1,$W423>=AI$1),INDEX(Reliability!N$23:N$50,MATCH($S423,Reliability!$C$23:$C$50,0)),0),0)*IF($T423=\"n/a\",$D423*$Y423,$G423)+IFERROR(IF(AND($V423<=AI$1,$W423>=AI$1),INDEX(Reliability!N$23:N$50,MATCH($T423,Reliability!$C$23:$C$50,0)),0),0)*$H423*$X423*$Y423),$D423)*$R423","v":0},{"$f":"MIN((IFERROR(IF(AND($V423<=AJ$1,$W423>=AJ$1),INDEX(Reliability!O$23:O$50,MATCH($S423,Reliability!$C$23:$C$50,0)),0),0)*IF($T423=\"n/a\",$D423*$Y423,$G423)+IFERROR(IF(AND($V423<=AJ$1,$W423>=AJ$1),INDEX(Reliability!O$23:O$50,MATCH($T423,Reliability!$C$23:$C$50,0)),0),0)*$H423*$X423*$Y423),$D423)*$R423","v":0},{"$f":"MIN((IFERROR(IF(AND($V423<=AK$1,$W423>=AK$1),INDEX(Reliability!P$23:P$50,MATCH($S423,Reliability!$C$23:$C$50,0)),0),0)*IF($T423=\"n/a\",$D423*$Y423,$G423)+IFERROR(IF(AND($V423<=AK$1,$W423>=AK$1),INDEX(Reliability!P$23:P$50,MATCH($T423,Reliability!$C$23:$C$50,0)),0),0)*$H423*$X423*$Y423),$D423)*$R423","v":0}]
[null,{"$f":"unique_contracts!B425","v":0},{"$f":"unique_contracts!D425","v":0},{"$f":"unique_contracts!J425","v":0},{"$f":"unique_contracts!M425","v":0},{"$f":"unique_contracts!N425","v":0},{"$f":"unique_contracts!P425","v":0},{"$f":"unique_contracts!R425","v":0},{"$f":"unique_contracts!V425","v":0},{"$f":"unique_contracts!AB425","v":0},{"$f":"unique_contracts!AM425","v":0},{"$f":"unique_contracts!AN425","v":0},{"$f":"unique_contracts!AO425","v":0},{"$f":"unique_contracts!AP425","v":0},{"$f":"unique_contracts!AQ425","v":0},{"$f":"unique_contracts!AR425","v":0},{"$f":"unique_contracts!BP425","v":0},0,{"$f":"IFERROR(IF(AND(I424>0,E424=\"NotHybrid\"),_xlfn.CONCAT(MAX(MIN(ROUNDDOWN(I424/D424,0),8),4),INDEX(resources!$G:$G,MATCH(B424,resources!$A:$A,0))),INDEX(resources!$G:$G,MATCH(B424,resources!$A:$A,0))),\"n/a\")","v":"n/a"},"n/a","n/a",0,0,1,1,{"$f":"MIN((IFERROR(IF(AND($V424<=Z$1,$W424>=Z$1),INDEX(Reliability!E$23:E$50,MATCH($S424,Reliability!$C$23:$C$50,0)),0),0)*IF($T424=\"n/a\",$D424*$Y424,$G424)+IFERROR(IF(AND($V424<=Z$1,$W424>=Z$1),INDEX(Reliability!E$23:E$50,MATCH($T424,Reliability!$C$23:$C$50,0)),0),0)*$H424*$X424*$Y424),$D424)*$R424","v":0},{"$f":"MIN((IFERROR(IF(AND($V424<=AA$1,$W424>=AA$1),INDEX(Reliability!F$23:F$50,MATCH($S424,Reliability!$C$23:$C$50,0)),0),0)*IF($T424=\"n/a\",$D424*$Y424,$G424)+IFERROR(IF(AND($V424<=AA$1,$W424>=AA$1),INDEX(Reliability!F$23:F$50,MATCH($T424,Reliability!$C$23:$C$50,0)),0),0)*$H424*$X424*$Y424),$D424)*$R424","v":0},{"$f":"MIN((IFERROR(IF(AND($V424<=AB$1,$W424>=AB$1),INDEX(Reliability!G$23:G$50,MATCH($S424,Reliability!$C$23:$C$50,0)),0),0)*IF($T424=\"n/a\",$D424*$Y424,$G424)+IFERROR(IF(AND($V424<=AB$1,$W424>=AB$1),INDEX(Reliability!G$23:G$50,MATCH($T424,Reliability!$C$23:$C$50,0)),0),0)*$H424*$X424*$Y424),$D424)*$R424","v":0},{"$f":"MIN((IFERROR(IF(AND($V424<=AC$1,$W424>=AC$1),INDEX(Reliability!H$23:H$50,MATCH($S424,Reliability!$C$23:$C$50,0)),0),0)*IF($T424=\"n/a\",$D424*$Y424,$G424)+IFERROR(IF(AND($V424<=AC$1,$W424>=AC$1),INDEX(Reliability!H$23:H$50,MATCH($T424,Reliability!$C$23:$C$50,0)),0),0)*$H424*$X424*$Y424),$D424)*$R424","v":0},{"$f":"MIN((IFERROR(IF(AND($V424<=AD$1,$W424>=AD$1),INDEX(Reliability!I$23:I$50,MATCH($S424,Reliability!$C$23:$C$50,0)),0),0)*IF($T424=\"n/a\",$D424*$Y424,$G424)+IFERROR(IF(AND($V424<=AD$1,$W424>=AD$1),INDEX(Reliability!I$23:I$50,MATCH($T424,Reliability!$C$23:$C$50,0)),0),0)*$H424*$X424*$Y424),$D424)*$R424","v":0},{"$f":"MIN((IFERROR(IF(AND($V424<=AE$1,$W424>=AE$1),INDEX(Reliability!J$23:J$50,MATCH($S424,Reliability!$C$23:$C$50,0)),0),0)*IF($T424=\"n/a\",$D424*$Y424,$G424)+IFERROR(IF(AND($V424<=AE$1,$W424>=AE$1),INDEX(Reliability!J$23:J$50,MATCH($T424,Reliability!$C$23:$C$50,0)),0),0)*$H424*$X424*$Y424),$D424)*$R424","v":0},{"$f":"MIN((IFERROR(IF(AND($V424<=AF$1,$W424>=AF$1),INDEX(Reliability!K$23:K$50,MATCH($S424,Reliability!$C$23:$C$50,0)),0),0)*IF($T424=\"n/a\",$D424*$Y424,$G424)+IFERROR(IF(AND($V424<=AF$1,$W424>=AF$1),INDEX(Reliability!K$23:K$50,MATCH($T424,Reliability!$C$23:$C$50,0)),0),0)*$H424*$X424*$Y424),$D424)*$R424","v":0},{"$f":"MIN((IFERROR(IF(AND($V424<=AG$1,$W424>=AG$1),INDEX(Reliability!L$23:L$50,MATCH($S424,Reliability!$C$23:$C$50,0)),0),0)*IF($T424=\"n/a\",$D424*$Y424,$G424)+IFERROR(IF(AND($V424<=AG$1,$W424>=AG$1),INDEX(Reliability!L$23:L$50,MATCH($T424,Reliability!$C$23:$C$50,0)),0),0)*$H424*$X424*$Y424),$D424)*$R424","v":0},{"$f":"MIN((IFERROR(IF(AND($V424<=AH$1,$W424>=AH$1),INDEX(Reliability!M$23:M$50,MATCH($S424,Reliability!$C$23:$C$50,0)),0),0)*IF($T424=\"n/a\",$D424*$Y424,$G424)+IFERROR(IF(AND($V424<=AH$1,$W424>=AH$1),INDEX(Reliability!M$23:M$50,MATCH($T424,Reliability!$C$23:$C$50,0)),0),0)*$H424*$X424*$Y424),$D424)*$R424","v":0},{"$f":"MIN((IFERROR(IF(AND($V424<=AI$1,$W424>=AI$1),INDEX(Reliability!N$23:N$50,MATCH($S424,Reliability!$C$23:$C$50,0)),0),0)*IF($T424=\"n/a\",$D424*$Y424,$G424)+IFERROR(IF(AND($V424<=AI$1,$W424>=AI$1),INDEX(Reliability!N$23:N$50,MATCH($T424,Reliability!$C$23:$C$50,0)),0),0)*$H424*$X424*$Y424),$D424)*$R424","v":0},{"$f":"MIN((IFERROR(IF(AND($V424<=AJ$1,$W424>=AJ$1),INDEX(Reliability!O$23:O$50,MATCH($S424,Reliability!$C$23:$C$50,0)),0),0)*IF($T424=\"n/a\",$D424*$Y424,$G424)+IFERROR(IF(AND($V424<=AJ$1,$W424>=AJ$1),INDEX(Reliability!O$23:O$50,MATCH($T424,Reliability!$C$23:$C$50,0)),0),0)*$H424*$X424*$Y424),$D424)*$R424","v":0},{"$f":"MIN((IFERROR(IF(AND($V424<=AK$1,$W424>=AK$1),INDEX(Reliability!P$23:P$50,MATCH($S424,Reliability!$C$23:$C$50,0)),0),0)*IF($T424=\"n/a\",$D424*$Y424,$G424)+IFERROR(IF(AND($V424<=AK$1,$W424>=AK$1),INDEX(Reliability!P$23:P$50,MATCH($T424,Reliability!$C$23:$C$50,0)),0),0)*$H424*$X424*$Y424),$D424)*$R424","v":0}]
[null,{"$f":"unique_contracts!B426","v":0},{"$f":"unique_contracts!D426","v":0},{"$f":"unique_contracts!J426","v":0},{"$f":"unique_contracts!M426","v":0},{"$f":"unique_contracts!N426","v":0},{"$f":"unique_contracts!P426","v":0},{"$f":"unique_contracts!R426","v":0},{"$f":"unique_contracts!V426","v":0},{"$f":"unique_contracts!AB426","v":0},{"$f":"unique_contracts!AM426","v":0},{"$f":"unique_contracts!AN426","v":0},{"$f":"unique_contracts!AO426","v":0},{"$f":"unique_contracts!AP426","v":0},{"$f":"unique_contracts!AQ426","v":0},{"$f":"unique_contracts!AR426","v":0},{"$f":"unique_contracts!BP426","v":0},0,{"$f":"IFERROR(IF(AND(I425>0,E425=\"NotHybrid\"),_xlfn.CONCAT(MAX(MIN(ROUNDDOWN(I425/D425,0),8),4),INDEX(resources!$G:$G,MATCH(B425,resources!$A:$A,0))),INDEX(resources!$G:$G,MATCH(B425,resources!$A:$A,0))),\"n/a\")","v":"n/a"},"n/a","n/a",0,0,1,1,{"$f":"MIN((IFERROR(IF(AND($V425<=Z$1,$W425>=Z$1),INDEX(Reliability!E$23:E$50,MATCH($S425,Reliability!$C$23:$C$50,0)),0),0)*IF($T425=\"n/a\",$D425*$Y425,$G425)+IFERROR(IF(AND($V425<=Z$1,$W425>=Z$1),INDEX(Reliability!E$23:E$50,MATCH($T425,Reliability!$C$23:$C$50,0)),0),0)*$H425*$X425*$Y425),$D425)*$R425","v":0},{"$f":"MIN((IFERROR(IF(AND($V425<=AA$1,$W425>=AA$1),INDEX(Reliability!F$23:F$50,MATCH($S425,Reliability!$C$23:$C$50,0)),0),0)*IF($T425=\"n/a\",$D425*$Y425,$G425)+IFERROR(IF(AND($V425<=AA$1,$W425>=AA$1),INDEX(Reliability!F$23:F$50,MATCH($T425,Reliability!$C$23:$C$50,0)),0),0)*$H425*$X425*$Y425),$D425)*$R425","v":0},{"$f":"MIN((IFERROR(IF(AND($V425<=AB$1,$W425>=AB$1),INDEX(Reliability!G$23:G$50,MATCH($S425,Reliability!$C$23:$C$50,0)),0),0)*IF($T425=\"n/a\",$D425*$Y425,$G425)+IFERROR(IF(AND($V425<=AB$1,$W425>=AB$1),INDEX(Reliability!G$23:G$50,MATCH($T425,Reliability!$C$23:$C$50,0)),0),0)*$H425*$X425*$Y425),$D425)*$R425","v":0},{"$f":"MIN((IFERROR(IF(AND($V425<=AC$1,$W425>=AC$1),INDEX(Reliability!H$23:H$50,MATCH($S425,Reliability!$C$23:$C$50,0)),0),0)*IF($T425=\"n/a\",$D425*$Y425,$G425)+IFERROR(IF(AND($V425<=AC$1,$W425>=AC$1),INDEX(Reliability!H$23:H$50,MATCH($T425,Reliability!$C$23:$C$50,0)),0),0)*$H425*$X425*$Y425),$D425)*$R425","v":0},{"$f":"MIN((IFERROR(IF(AND($V425<=AD$1,$W425>=AD$1),INDEX(Reliability!I$23:I$50,MATCH($S425,Reliability!$C$23:$C$50,0)),0),0)*IF($T425=\"n/a\",$D425*$Y425,$G425)+IFERROR(IF(AND($V425<=AD$1,$W425>=AD$1),INDEX(Reliability!I$23:I$50,MATCH($T425,Reliability!$C$23:$C$50,0)),0),0)*$H425*$X425*$Y425),$D425)*$R425","v":0},{"$f":"MIN((IFERROR(IF(AND($V425<=AE$1,$W425>=AE$1),INDEX(Reliability!J$23:J$50,MATCH($S425,Reliability!$C$23:$C$50,0)),0),0)*IF($T425=\"n/a\",$D425*$Y425,$G425)+IFERROR(IF(AND($V425<=AE$1,$W425>=AE$1),INDEX(Reliability!J$23:J$50,MATCH($T425,Reliability!$C$23:$C$50,0)),0),0)*$H425*$X425*$Y425),$D425)*$R425","v":0},{"$f":"MIN((IFERROR(IF(AND($V425<=AF$1,$W425>=AF$1),INDEX(Reliability!K$23:K$50,MATCH($S425,Reliability!$C$23:$C$50,0)),0),0)*IF($T425=\"n/a\",$D425*$Y425,$G425)+IFERROR(IF(AND($V425<=AF$1,$W425>=AF$1),INDEX(Reliability!K$23:K$50,MATCH($T425,Reliability!$C$23:$C$50,0)),0),0)*$H425*$X425*$Y425),$D425)*$R425","v":0},{"$f":"MIN((IFERROR(IF(AND($V425<=AG$1,$W425>=AG$1),INDEX(Reliability!L$23:L$50,MATCH($S425,Reliability!$C$23:$C$50,0)),0),0)*IF($T425=\"n/a\",$D425*$Y425,$G425)+IFERROR(IF(AND($V425<=AG$1,$W425>=AG$1),INDEX(Reliability!L$23:L$50,MATCH($T425,Reliability!$C$23:$C$50,0)),0),0)*$H425*$X425*$Y425),$D425)*$R425","v":0},{"$f":"MIN((IFERROR(IF(AND($V425<=AH$1,$W425>=AH$1),INDEX(Reliability!M$23:M$50,MATCH($S425,Reliability!$C$23:$C$50,0)),0),0)*IF($T425=\"n/a\",$D425*$Y425,$G425)+IFERROR(IF(AND($V425<=AH$1,$W425>=AH$1),INDEX(Reliability!M$23:M$50,MATCH($T425,Reliability!$C$23:$C$50,0)),0),0)*$H425*$X425*$Y425),$D425)*$R425","v":0},{"$f":"MIN((IFERROR(IF(AND($V425<=AI$1,$W425>=AI$1),INDEX(Reliability!N$23:N$50,MATCH($S425,Reliability!$C$23:$C$50,0)),0),0)*IF($T425=\"n/a\",$D425*$Y425,$G425)+IFERROR(IF(AND($V425<=AI$1,$W425>=AI$1),INDEX(Reliability!N$23:N$50,MATCH($T425,Reliability!$C$23:$C$50,0)),0),0)*$H425*$X425*$Y425),$D425)*$R425","v":0},{"$f":"MIN((IFERROR(IF(AND($V425<=AJ$1,$W425>=AJ$1),INDEX(Reliability!O$23:O$50,MATCH($S425,Reliability!$C$23:$C$50,0)),0),0)*IF($T425=\"n/a\",$D425*$Y425,$G425)+IFERROR(IF(AND($V425<=AJ$1,$W425>=AJ$1),INDEX(Reliability!O$23:O$50,MATCH($T425,Reliability!$C$23:$C$50,0)),0),0)*$H425*$X425*$Y425),$D425)*$R425","v":0},{"$f":"MIN((IFERROR(IF(AND($V425<=AK$1,$W425>=AK$1),INDEX(Reliability!P$23:P$50,MATCH($S425,Reliability!$C$23:$C$50,0)),0),0)*IF($T425=\"n/a\",$D425*$Y425,$G425)+IFERROR(IF(AND($V425<=AK$1,$W425>=AK$1),INDEX(Reliability!P$23:P$50,MATCH($T425,Reliability!$C$23:$C$50,0)),0),0)*$H425*$X425*$Y425),$D425)*$R425","v":0}]
[null,{"$f":"unique_contracts!B427","v":0},{"$f":"unique_contracts!D427","v":0},{"$f":"unique_contracts!J427","v":0},{"$f":"unique_contracts!M427","v":0},{"$f":"unique_contracts!N427","v":0},{"$f":"unique_contracts!P427","v":0},{"$f":"unique_contracts!R427","v":0},{"$f":"unique_contracts!V427","v":0},{"$f":"unique_contracts!AB427","v":0},{"$f":"unique_contracts!AM427","v":0},{"$f":"unique_contracts!AN427","v":0},{"$f":"unique_contracts!AO427","v":0},{"$f":"unique_contracts!AP427","v":0},{"$f":"unique_contracts!AQ427","v":0},{"$f":"unique_contracts!AR427","v":0},{"$f":"unique_contracts!BP427","v":0},0,{"$f":"IFERROR(IF(AND(I426>0,E426=\"NotHybrid\"),_xlfn.CONCAT(MAX(MIN(ROUNDDOWN(I426/D426,0),8),4),INDEX(resources!$G:$G,MATCH(B426,resources!$A:$A,0))),INDEX(resources!$G:$G,MATCH(B426,resources!$A:$A,0))),\"n/a\")","v":"n/a"},"n/a","n/a",0,0,1,1,{"$f":"MIN((IFERROR(IF(AND($V426<=Z$1,$W426>=Z$1),INDEX(Reliability!E$23:E$50,MATCH($S426,Reliability!$C$23:$C$50,0)),0),0)*IF($T426=\"n/a\",$D426*$Y426,$G426)+IFERROR(IF(AND($V426<=Z$1,$W426>=Z$1),INDEX(Reliability!E$23:E$50,MATCH($T426,Reliability!$C$23:$C$50,0)),0),0)*$H426*$X426*$Y426),$D426)*$R426","v":0},{"$f":"MIN((IFERROR(IF(AND($V426<=AA$1,$W426>=AA$1),INDEX(Reliability!F$23:F$50,MATCH($S426,Reliability!$C$23:$C$50,0)),0),0)*IF($T426=\"n/a\",$D426*$Y426,$G426)+IFERROR(IF(AND($V426<=AA$1,$W426>=AA$1),INDEX(Reliability!F$23:F$50,MATCH($T426,Reliability!$C$23:$C$50,0)),0),0)*$H426*$X426*$Y426),$D426)*$R426","v":0},{"$f":"MIN((IFERROR(IF(AND($V426<=AB$1,$W426>=AB$1),INDEX(Reliability!G$23:G$50,MATCH($S426,Reliability!$C$23:$C$50,0)),0),0)*IF($T426=\"n/a\",$D426*$Y426,$G426)+IFERROR(IF(AND($V426<=AB$1,$W426>=AB$1),INDEX(Reliability!G$23:G$50,MATCH($T426,Reliability!$C$23:$C$50,0)),0),0)*$H426*$X426*$Y426),$D426)*$R426","v":0},{"$f":"MIN((IFERROR(IF(AND($V426<=AC$1,$W426>=AC$1),INDEX(Reliability!H$23:H$50,MATCH($S426,Reliability!$C$23:$C$50,0)),0),0)*IF($T426=\"n/a\",$D426*$Y426,$G426)+IFERROR(IF(AND($V426<=AC$1,$W426>=AC$1),INDEX(Reliability!H$23:H$50,MATCH($T426,Reliability!$C$23:$C$50,0)),0),0)*$H426*$X426*$Y426),$D426)*$R426","v":0},{"$f":"MIN((IFERROR(IF(AND($V426<=AD$1,$W426>=AD$1),INDEX(Reliability!I$23:I$50,MATCH($S426,Reliability!$C$23:$C$50,0)),0),0)*IF($T426=\"n/a\",$D426*$Y426,$G426)+IFERROR(IF(AND($V426<=AD$1,$W426>=AD$1),INDEX(Reliability!I$23:I$50,MATCH($T426,Reliability!$C$23:$C$50,0)),0),0)*$H426*$X426*$Y426),$D426)*$R426","v":0},{"$f":"MIN((IFERROR(IF(AND($V426<=AE$1,$W426>=AE$1),INDEX(Reliability!J$23:J$50,MATCH($S426,Reliability!$C$23:$C$50,0)),0),0)*IF($T426=\"n/a\",$D426*$Y426,$G426)+IFERROR(IF(AND($V426<=AE$1,$W426>=AE$1),INDEX(Reliability!J$23:J$50,MATCH($T426,Reliability!$C$23:$C$50,0)),0),0)*$H426*$X426*$Y426),$D426)*$R426","v":0},{"$f":"MIN((IFERROR(IF(AND($V426<=AF$1,$W426>=AF$1),INDEX(Reliability!K$23:K$50,MATCH($S426,Reliability!$C$23:$C$50,0)),0),0)*IF($T426=\"n/a\",$D426*$Y426,$G426)+IFERROR(IF(AND($V426<=AF$1,$W426>=AF$1),INDEX(Reliability!K$23:K$50,MATCH($T426,Reliability!$C$23:$C$50,0)),0),0)*$H426*$X426*$Y426),$D426)*$R426","v":0},{"$f":"MIN((IFERROR(IF(AND($V426<=AG$1,$W426>=AG$1),INDEX(Reliability!L$23:L$50,MATCH($S426,Reliability!$C$23:$C$50,0)),0),0)*IF($T426=\"n/a\",$D426*$Y426,$G426)+IFERROR(IF(AND($V426<=AG$1,$W426>=AG$1),INDEX(Reliability!L$23:L$50,MATCH($T426,Reliability!$C$23:$C$50,0)),0),0)*$H426*$X426*$Y426),$D426)*$R426","v":0},{"$f":"MIN((IFERROR(IF(AND($V426<=AH$1,$W426>=AH$1),INDEX(Reliability!M$23:M$50,MATCH($S426,Reliability!$C$23:$C$50,0)),0),0)*IF($T426=\"n/a\",$D426*$Y426,$G426)+IFERROR(IF(AND($V426<=AH$1,$W426>=AH$1),INDEX(Reliability!M$23:M$50,MATCH($T426,Reliability!$C$23:$C$50,0)),0),0)*$H426*$X426*$Y426),$D426)*$R426","v":0},{"$f":"MIN((IFERROR(IF(AND($V426<=AI$1,$W426>=AI$1),INDEX(Reliability!N$23:N$50,MATCH($S426,Reliability!$C$23:$C$50,0)),0),0)*IF($T426=\"n/a\",$D426*$Y426,$G426)+IFERROR(IF(AND($V426<=AI$1,$W426>=AI$1),INDEX(Reliability!N$23:N$50,MATCH($T426,Reliability!$C$23:$C$50,0)),0),0)*$H426*$X426*$Y426),$D426)*$R426","v":0},{"$f":"MIN((IFERROR(IF(AND($V426<=AJ$1,$W426>=AJ$1),INDEX(Reliability!O$23:O$50,MATCH($S426,Reliability!$C$23:$C$50,0)),0),0)*IF($T426=\"n/a\",$D426*$Y426,$G426)+IFERROR(IF(AND($V426<=AJ$1,$W426>=AJ$1),INDEX(Reliability!O$23:O$50,MATCH($T426,Reliability!$C$23:$C$50,0)),0),0)*$H426*$X426*$Y426),$D426)*$R426","v":0},{"$f":"MIN((IFERROR(IF(AND($V426<=AK$1,$W426>=AK$1),INDEX(Reliability!P$23:P$50,MATCH($S426,Reliability!$C$23:$C$50,0)),0),0)*IF($T426=\"n/a\",$D426*$Y426,$G426)+IFERROR(IF(AND($V426<=AK$1,$W426>=AK$1),INDEX(Reliability!P$23:P$50,MATCH($T426,Reliability!$C$23:$C$50,0)),0),0)*$H426*$X426*$Y426),$D426)*$R426","v":0}]
[null,{"$f":"unique_contracts!B428","v":0},{"$f":"unique_contracts!D428","v":0},{"$f":"unique_contracts!J428","v":0},{"$f":"unique_contracts!M428","v":0},{"$f":"unique_contracts!N428","v":0},{"$f":"unique_contracts!P428","v":0},{"$f":"unique_contracts!R428","v":0},{"$f":"unique_contracts!V428","v":0},{"$f":"unique_contracts!AB428","v":0},{"$f":"unique_contracts!AM428","v":0},{"$f":"unique_contracts!AN428","v":0},{"$f":"unique_contracts!AO428","v":0},{"$f":"unique_contracts!AP428","v":0},{"$f":"unique_contracts!AQ428","v":0},{"$f":"unique_contracts!AR428","v":0},{"$f":"unique_contracts!BP428","v":0},0,{"$f":"IFERROR(IF(AND(I427>0,E427=\"NotHybrid\"),_xlfn.CONCAT(MAX(MIN(ROUNDDOWN(I427/D427,0),8),4),INDEX(resources!$G:$G,MATCH(B427,resources!$A:$A,0))),INDEX(resources!$G:$G,MATCH(B427,resources!$A:$A,0))),\"n/a\")","v":"n/a"},"n/a","n/a",0,0,1,1,{"$f":"MIN((IFERROR(IF(AND($V427<=Z$1,$W427>=Z$1),INDEX(Reliability!E$23:E$50,MATCH($S427,Reliability!$C$23:$C$50,0)),0),0)*IF($T427=\"n/a\",$D427*$Y427,$G427)+IFERROR(IF(AND($V427<=Z$1,$W427>=Z$1),INDEX(Reliability!E$23:E$50,MATCH($T427,Reliability!$C$23:$C$50,0)),0),0)*$H427*$X427*$Y427),$D427)*$R427","v":0},{"$f":"MIN((IFERROR(IF(AND($V427<=AA$1,$W427>=AA$1),INDEX(Reliability!F$23:F$50,MATCH($S427,Reliability!$C$23:$C$50,0)),0),0)*IF($T427=\"n/a\",$D427*$Y427,$G427)+IFERROR(IF(AND($V427<=AA$1,$W427>=AA$1),INDEX(Reliability!F$23:F$50,MATCH($T427,Reliability!$C$23:$C$50,0)),0),0)*$H427*$X427*$Y427),$D427)*$R427","v":0},{"$f":"MIN((IFERROR(IF(AND($V427<=AB$1,$W427>=AB$1),INDEX(Reliability!G$23:G$50,MATCH($S427,Reliability!$C$23:$C$50,0)),0),0)*IF($T427=\"n/a\",$D427*$Y427,$G427)+IFERROR(IF(AND($V427<=AB$1,$W427>=AB$1),INDEX(Reliability!G$23:G$50,MATCH($T427,Reliability!$C$23:$C$50,0)),0),0)*$H427*$X427*$Y427),$D427)*$R427","v":0},{"$f":"MIN((IFERROR(IF(AND($V427<=AC$1,$W427>=AC$1),INDEX(Reliability!H$23:H$50,MATCH($S427,Reliability!$C$23:$C$50,0)),0),0)*IF($T427=\"n/a\",$D427*$Y427,$G427)+IFERROR(IF(AND($V427<=AC$1,$W427>=AC$1),INDEX(Reliability!H$23:H$50,MATCH($T427,Reliability!$C$23:$C$50,0)),0),0)*$H427*$X427*$Y427),$D427)*$R427","v":0},{"$f":"MIN((IFERROR(IF(AND($V427<=AD$1,$W427>=AD$1),INDEX(Reliability!I$23:I$50,MATCH($S427,Reliability!$C$23:$C$50,0)),0),0)*IF($T427=\"n/a\",$D427*$Y427,$G427)+IFERROR(IF(AND($V427<=AD$1,$W427>=AD$1),INDEX(Reliability!I$23:I$50,MATCH($T427,Reliability!$C$23:$C$50,0)),0),0)*$H427*$X427*$Y427),$D427)*$R427","v":0},{"$f":"MIN((IFERROR(IF(AND($V427<=AE$1,$W427>=AE$1),INDEX(Reliability!J$23:J$50,MATCH($S427,Reliability!$C$23:$C$50,0)),0),0)*IF($T427=\"n/a\",$D427*$Y427,$G427)+IFERROR(IF(AND($V427<=AE$1,$W427>=AE$1),INDEX(Reliability!J$23:J$50,MATCH($T427,Reliability!$C$23:$C$50,0)),0),0)*$H427*$X427*$Y427),$D427)*$R427","v":0},{"$f":"MIN((IFERROR(IF(AND($V427<=AF$1,$W427>=AF$1),INDEX(Reliability!K$23:K$50,MATCH($S427,Reliability!$C$23:$C$50,0)),0),0)*IF($T427=\"n/a\",$D427*$Y427,$G427)+IFERROR(IF(AND($V427<=AF$1,$W427>=AF$1),INDEX(Reliability!K$23:K$50,MATCH($T427,Reliability!$C$23:$C$50,0)),0),0)*$H427*$X427*$Y427),$D427)*$R427","v":0},{"$f":"MIN((IFERROR(IF(AND($V427<=AG$1,$W427>=AG$1),INDEX(Reliability!L$23:L$50,MATCH($S427,Reliability!$C$23:$C$50,0)),0),0)*IF($T427=\"n/a\",$D427*$Y427,$G427)+IFERROR(IF(AND($V427<=AG$1,$W427>=AG$1),INDEX(Reliability!L$23:L$50,MATCH($T427,Reliability!$C$23:$C$50,0)),0),0)*$H427*$X427*$Y427),$D427)*$R427","v":0},{"$f":"MIN((IFERROR(IF(AND($V427<=AH$1,$W427>=AH$1),INDEX(Reliability!M$23:M$50,MATCH($S427,Reliability!$C$23:$C$50,0)),0),0)*IF($T427=\"n/a\",$D427*$Y427,$G427)+IFERROR(IF(AND($V427<=AH$1,$W427>=AH$1),INDEX(Reliability!M$23:M$50,MATCH($T427,Reliability!$C$23:$C$50,0)),0),0)*$H427*$X427*$Y427),$D427)*$R427","v":0},{"$f":"MIN((IFERROR(IF(AND($V427<=AI$1,$W427>=AI$1),INDEX(Reliability!N$23:N$50,MATCH($S427,Reliability!$C$23:$C$50,0)),0),0)*IF($T427=\"n/a\",$D427*$Y427,$G427)+IFERROR(IF(AND($V427<=AI$1,$W427>=AI$1),INDEX(Reliability!N$23:N$50,MATCH($T427,Reliability!$C$23:$C$50,0)),0),0)*$H427*$X427*$Y427),$D427)*$R427","v":0},{"$f":"MIN((IFERROR(IF(AND($V427<=AJ$1,$W427>=AJ$1),INDEX(Reliability!O$23:O$50,MATCH($S427,Reliability!$C$23:$C$50,0)),0),0)*IF($T427=\"n/a\",$D427*$Y427,$G427)+IFERROR(IF(AND($V427<=AJ$1,$W427>=AJ$1),INDEX(Reliability!O$23:O$50,MATCH($T427,Reliability!$C$23:$C$50,0)),0),0)*$H427*$X427*$Y427),$D427)*$R427","v":0},{"$f":"MIN((IFERROR(IF(AND($V427<=AK$1,$W427>=AK$1),INDEX(Reliability!P$23:P$50,MATCH($S427,Reliability!$C$23:$C$50,0)),0),0)*IF($T427=\"n/a\",$D427*$Y427,$G427)+IFERROR(IF(AND($V427<=AK$1,$W427>=AK$1),INDEX(Reliability!P$23:P$50,MATCH($T427,Reliability!$C$23:$C$50,0)),0),0)*$H427*$X427*$Y427),$D427)*$R427","v":0}]
[null,{"$f":"unique_contracts!B429","v":0},{"$f":"unique_contracts!D429","v":0},{"$f":"unique_contracts!J429","v":0},{"$f":"unique_contracts!M429","v":0},{"$f":"unique_contracts!N429","v":0},{"$f":"unique_contracts!P429","v":0},{"$f":"unique_contracts!R429","v":0},{"$f":"unique_contracts!V429","v":0},{"$f":"unique_contracts!AB429","v":0},{"$f":"unique_contracts!AM429","v":0},{"$f":"unique_contracts!AN429","v":0},{"$f":"unique_contracts!AO429","v":0},{"$f":"unique_contracts!AP429","v":0},{"$f":"unique_contracts!AQ429","v":0},{"$f":"unique_contracts!AR429","v":0},{"$f":"unique_contracts!BP429","v":0},0,{"$f":"IFERROR(IF(AND(I428>0,E428=\"NotHybrid\"),_xlfn.CONCAT(MAX(MIN(ROUNDDOWN(I428/D428,0),8),4),INDEX(resources!$G:$G,MATCH(B428,resources!$A:$A,0))),INDEX(resources!$G:$G,MATCH(B428,resources!$A:$A,0))),\"n/a\")","v":"n/a"},"n/a","n/a",0,0,1,1,{"$f":"MIN((IFERROR(IF(AND($V428<=Z$1,$W428>=Z$1),INDEX(Reliability!E$23:E$50,MATCH($S428,Reliability!$C$23:$C$50,0)),0),0)*IF($T428=\"n/a\",$D428*$Y428,$G428)+IFERROR(IF(AND($V428<=Z$1,$W428>=Z$1),INDEX(Reliability!E$23:E$50,MATCH($T428,Reliability!$C$23:$C$50,0)),0),0)*$H428*$X428*$Y428),$D428)*$R428","v":0},{"$f":"MIN((IFERROR(IF(AND($V428<=AA$1,$W428>=AA$1),INDEX(Reliability!F$23:F$50,MATCH($S428,Reliability!$C$23:$C$50,0)),0),0)*IF($T428=\"n/a\",$D428*$Y428,$G428)+IFERROR(IF(AND($V428<=AA$1,$W428>=AA$1),INDEX(Reliability!F$23:F$50,MATCH($T428,Reliability!$C$23:$C$50,0)),0),0)*$H428*$X428*$Y428),$D428)*$R428","v":0},{"$f":"MIN((IFERROR(IF(AND($V428<=AB$1,$W428>=AB$1),INDEX(Reliability!G$23:G$50,MATCH($S428,Reliability!$C$23:$C$50,0)),0),0)*IF($T428=\"n/a\",$D428*$Y428,$G428)+IFERROR(IF(AND($V428<=AB$1,$W428>=AB$1),INDEX(Reliability!G$23:G$50,MATCH($T428,Reliability!$C$23:$C$50,0)),0),0)*$H428*$X428*$Y428),$D428)*$R428","v":0},{"$f":"MIN((IFERROR(IF(AND($V428<=AC$1,$W428>=AC$1),INDEX(Reliability!H$23:H$50,MATCH($S428,Reliability!$C$23:$C$50,0)),0),0)*IF($T428=\"n/a\",$D428*$Y428,$G428)+IFERROR(IF(AND($V428<=AC$1,$W428>=AC$1),INDEX(Reliability!H$23:H$50,MATCH($T428,Reliability!$C$23:$C$50,0)),0),0)*$H428*$X428*$Y428),$D428)*$R428","v":0},{"$f":"MIN((IFERROR(IF(AND($V428<=AD$1,$W428>=AD$1),INDEX(Reliability!I$23:I$50,MATCH($S428,Reliability!$C$23:$C$50,0)),0),0)*IF($T428=\"n/a\",$D428*$Y428,$G428)+IFERROR(IF(AND($V428<=AD$1,$W428>=AD$1),INDEX(Reliability!I$23:I$50,MATCH($T428,Reliability!$C$23:$C$50,0)),0),0)*$H428*$X428*$Y428),$D428)*$R428","v":0},{"$f":"MIN((IFERROR(IF(AND($V428<=AE$1,$W428>=AE$1),INDEX(Reliability!J$23:J$50,MATCH($S428,Reliability!$C$23:$C$50,0)),0),0)*IF($T428=\"n/a\",$D428*$Y428,$G428)+IFERROR(IF(AND($V428<=AE$1,$W428>=AE$1),INDEX(Reliability!J$23:J$50,MATCH($T428,Reliability!$C$23:$C$50,0)),0),0)*$H428*$X428*$Y428),$D428)*$R428","v":0},{"$f":"MIN((IFERROR(IF(AND($V428<=AF$1,$W428>=AF$1),INDEX(Reliability!K$23:K$50,MATCH($S428,Reliability!$C$23:$C$50,0)),0),0)*IF($T428=\"n/a\",$D428*$Y428,$G428)+IFERROR(IF(AND($V428<=AF$1,$W428>=AF$1),INDEX(Reliability!K$23:K$50,MATCH($T428,Reliability!$C$23:$C$50,0)),0),0)*$H428*$X428*$Y428),$D428)*$R428","v":0},{"$f":"MIN((IFERROR(IF(AND($V428<=AG$1,$W428>=AG$1),INDEX(Reliability!L$23:L$50,MATCH($S428,Reliability!$C$23:$C$50,0)),0),0)*IF($T428=\"n/a\",$D428*$Y428,$G428)+IFERROR(IF(AND($V428<=AG$1,$W428>=AG$1),INDEX(Reliability!L$23:L$50,MATCH($T428,Reliability!$C$23:$C$50,0)),0),0)*$H428*$X428*$Y428),$D428)*$R428","v":0},{"$f":"MIN((IFERROR(IF(AND($V428<=AH$1,$W428>=AH$1),INDEX(Reliability!M$23:M$50,MATCH($S428,Reliability!$C$23:$C$50,0)),0),0)*IF($T428=\"n/a\",$D428*$Y428,$G428)+IFERROR(IF(AND($V428<=AH$1,$W428>=AH$1),INDEX(Reliability!M$23:M$50,MATCH($T428,Reliability!$C$23:$C$50,0)),0),0)*$H428*$X428*$Y428),$D428)*$R428","v":0},{"$f":"MIN((IFERROR(IF(AND($V428<=AI$1,$W428>=AI$1),INDEX(Reliability!N$23:N$50,MATCH($S428,Reliability!$C$23:$C$50,0)),0),0)*IF($T428=\"n/a\",$D428*$Y428,$G428)+IFERROR(IF(AND($V428<=AI$1,$W428>=AI$1),INDEX(Reliability!N$23:N$50,MATCH($T428,Reliability!$C$23:$C$50,0)),0),0)*$H428*$X428*$Y428),$D428)*$R428","v":0},{"$f":"MIN((IFERROR(IF(AND($V428<=AJ$1,$W428>=AJ$1),INDEX(Reliability!O$23:O$50,MATCH($S428,Reliability!$C$23:$C$50,0)),0),0)*IF($T428=\"n/a\",$D428*$Y428,$G428)+IFERROR(IF(AND($V428<=AJ$1,$W428>=AJ$1),INDEX(Reliability!O$23:O$50,MATCH($T428,Reliability!$C$23:$C$50,0)),0),0)*$H428*$X428*$Y428),$D428)*$R428","v":0},{"$f":"MIN((IFERROR(IF(AND($V428<=AK$1,$W428>=AK$1),INDEX(Reliability!P$23:P$50,MATCH($S428,Reliability!$C$23:$C$50,0)),0),0)*IF($T428=\"n/a\",$D428*$Y428,$G428)+IFERROR(IF(AND($V428<=AK$1,$W428>=AK$1),INDEX(Reliability!P$23:P$50,MATCH($T428,Reliability!$C$23:$C$50,0)),0),0)*$H428*$X428*$Y428),$D428)*$R428","v":0}]
[null,{"$f":"unique_contracts!B430","v":0},{"$f":"unique_contracts!D430","v":0},{"$f":"unique_contracts!J430","v":0},{"$f":"unique_contracts!M430","v":0},{"$f":"unique_contracts!N430","v":0},{"$f":"unique_contracts!P430","v":0},{"$f":"unique_contracts!R430","v":0},{"$f":"unique_contracts!V430","v":0},{"$f":"unique_contracts!AB430","v":0},{"$f":"unique_contracts!AM430","v":0},{"$f":"unique_contracts!AN430","v":0},{"$f":"unique_contracts!AO430","v":0},{"$f":"unique_contracts!AP430","v":0},{"$f":"unique_contracts!AQ430","v":0},{"$f":"unique_contracts!AR430","v":0},{"$f":"unique_contracts!BP430","v":0},0,{"$f":"IFERROR(IF(AND(I429>0,E429=\"NotHybrid\"),_xlfn.CONCAT(MAX(MIN(ROUNDDOWN(I429/D429,0),8),4),INDEX(resources!$G:$G,MATCH(B429,resources!$A:$A,0))),INDEX(resources!$G:$G,MATCH(B429,resources!$A:$A,0))),\"n/a\")","v":"n/a"},"n/a","n/a",0,0,1,1,{"$f":"MIN((IFERROR(IF(AND($V429<=Z$1,$W429>=Z$1),INDEX(Reliability!E$23:E$50,MATCH($S429,Reliability!$C$23:$C$50,0)),0),0)*IF($T429=\"n/a\",$D429*$Y429,$G429)+IFERROR(IF(AND($V429<=Z$1,$W429>=Z$1),INDEX(Reliability!E$23:E$50,MATCH($T429,Reliability!$C$23:$C$50,0)),0),0)*$H429*$X429*$Y429),$D429)*$R429","v":0},{"$f":"MIN((IFERROR(IF(AND($V429<=AA$1,$W429>=AA$1),INDEX(Reliability!F$23:F$50,MATCH($S429,Reliability!$C$23:$C$50,0)),0),0)*IF($T429=\"n/a\",$D429*$Y429,$G429)+IFERROR(IF(AND($V429<=AA$1,$W429>=AA$1),INDEX(Reliability!F$23:F$50,MATCH($T429,Reliability!$C$23:$C$50,0)),0),0)*$H429*$X429*$Y429),$D429)*$R429","v":0},{"$f":"MIN((IFERROR(IF(AND($V429<=AB$1,$W429>=AB$1),INDEX(Reliability!G$23:G$50,MATCH($S429,Reliability!$C$23:$C$50,0)),0),0)*IF($T429=\"n/a\",$D429*$Y429,$G429)+IFERROR(IF(AND($V429<=AB$1,$W429>=AB$1),INDEX(Reliability!G$23:G$50,MATCH($T429,Reliability!$C$23:$C$50,0)),0),0)*$H429*$X429*$Y429),$D429)*$R429","v":0},{"$f":"MIN((IFERROR(IF(AND($V429<=AC$1,$W429>=AC$1),INDEX(Reliability!H$23:H$50,MATCH($S429,Reliability!$C$23:$C$50,0)),0),0)*IF($T429=\"n/a\",$D429*$Y429,$G429)+IFERROR(IF(AND($V429<=AC$1,$W429>=AC$1),INDEX(Reliability!H$23:H$50,MATCH($T429,Reliability!$C$23:$C$50,0)),0),0)*$H429*$X429*$Y429),$D429)*$R429","v":0},{"$f":"MIN((IFERROR(IF(AND($V429<=AD$1,$W429>=AD$1),INDEX(Reliability!I$23:I$50,MATCH($S429,Reliability!$C$23:$C$50,0)),0),0)*IF($T429=\"n/a\",$D429*$Y429,$G429)+IFERROR(IF(AND($V429<=AD$1,$W429>=AD$1),INDEX(Reliability!I$23:I$50,MATCH($T429,Reliability!$C$23:$C$50,0)),0),0)*$H429*$X429*$Y429),$D429)*$R429","v":0},{"$f":"MIN((IFERROR(IF(AND($V429<=AE$1,$W429>=AE$1),INDEX(Reliability!J$23:J$50,MATCH($S429,Reliability!$C$23:$C$50,0)),0),0)*IF($T429=\"n/a\",$D429*$Y429,$G429)+IFERROR(IF(AND($V429<=AE$1,$W429>=AE$1),INDEX(Reliability!J$23:J$50,MATCH($T429,Reliability!$C$23:$C$50,0)),0),0)*$H429*$X429*$Y429),$D429)*$R429","v":0},{"$f":"MIN((IFERROR(IF(AND($V429<=AF$1,$W429>=AF$1),INDEX(Reliability!K$23:K$50,MATCH($S429,Reliability!$C$23:$C$50,0)),0),0)*IF($T429=\"n/a\",$D429*$Y429,$G429)+IFERROR(IF(AND($V429<=AF$1,$W429>=AF$1),INDEX(Reliability!K$23:K$50,MATCH($T429,Reliability!$C$23:$C$50,0)),0),0)*$H429*$X429*$Y429),$D429)*$R429","v":0},{"$f":"MIN((IFERROR(IF(AND($V429<=AG$1,$W429>=AG$1),INDEX(Reliability!L$23:L$50,MATCH($S429,Reliability!$C$23:$C$50,0)),0),0)*IF($T429=\"n/a\",$D429*$Y429,$G429)+IFERROR(IF(AND($V429<=AG$1,$W429>=AG$1),INDEX(Reliability!L$23:L$50,MATCH($T429,Reliability!$C$23:$C$50,0)),0),0)*$H429*$X429*$Y429),$D429)*$R429","v":0},{"$f":"MIN((IFERROR(IF(AND($V429<=AH$1,$W429>=AH$1),INDEX(Reliability!M$23:M$50,MATCH($S429,Reliability!$C$23:$C$50,0)),0),0)*IF($T429=\"n/a\",$D429*$Y429,$G429)+IFERROR(IF(AND($V429<=AH$1,$W429>=AH$1),INDEX(Reliability!M$23:M$50,MATCH($T429,Reliability!$C$23:$C$50,0)),0),0)*$H429*$X429*$Y429),$D429)*$R429","v":0},{"$f":"MIN((IFERROR(IF(AND($V429<=AI$1,$W429>=AI$1),INDEX(Reliability!N$23:N$50,MATCH($S429,Reliability!$C$23:$C$50,0)),0),0)*IF($T429=\"n/a\",$D429*$Y429,$G429)+IFERROR(IF(AND($V429<=AI$1,$W429>=AI$1),INDEX(Reliability!N$23:N$50,MATCH($T429,Reliability!$C$23:$C$50,0)),0),0)*$H429*$X429*$Y429),$D429)*$R429","v":0},{"$f":"MIN((IFERROR(IF(AND($V429<=AJ$1,$W429>=AJ$1),INDEX(Reliability!O$23:O$50,MATCH($S429,Reliability!$C$23:$C$50,0)),0),0)*IF($T429=\"n/a\",$D429*$Y429,$G429)+IFERROR(IF(AND($V429<=AJ$1,$W429>=AJ$1),INDEX(Reliability!O$23:O$50,MATCH($T429,Reliability!$C$23:$C$50,0)),0),0)*$H429*$X429*$Y429),$D429)*$R429","v":0},{"$f":"MIN((IFERROR(IF(AND($V429<=AK$1,$W429>=AK$1),INDEX(Reliability!P$23:P$50,MATCH($S429,Reliability!$C$23:$C$50,0)),0),0)*IF($T429=\"n/a\",$D429*$Y429,$G429)+IFERROR(IF(AND($V429<=AK$1,$W429>=AK$1),INDEX(Reliability!P$23:P$50,MATCH($T429,Reliability!$C$23:$C$50,0)),0),0)*$H429*$X429*$Y429),$D429)*$R429","v":0}]
[null,{"$f":"unique_contracts!B431","v":0},{"$f":"unique_contracts!D431","v":0},{"$f":"unique_contracts!J431","v":0},{"$f":"unique_contracts!M431","v":0},{"$f":"unique_contracts!N431","v":0},{"$f":"unique_contracts!P431","v":0},{"$f":"unique_contracts!R431","v":0},{"$f":"unique_contracts!V431","v":0},{"$f":"unique_contracts!AB431","v":0},{"$f":"unique_contracts!AM431","v":0},{"$f":"unique_contracts!AN431","v":0},{"$f":"unique_contracts!AO431","v":0},{"$f":"unique_contracts!AP431","v":0},{"$f":"unique_contracts!AQ431","v":0},{"$f":"unique_contracts!AR431","v":0},{"$f":"unique_contracts!BP431","v":0},0,{"$f":"IFERROR(IF(AND(I430>0,E430=\"NotHybrid\"),_xlfn.CONCAT(MAX(MIN(ROUNDDOWN(I430/D430,0),8),4),INDEX(resources!$G:$G,MATCH(B430,resources!$A:$A,0))),INDEX(resources!$G:$G,MATCH(B430,resources!$A:$A,0))),\"n/a\")","v":"n/a"},"n/a","n/a",0,0,1,1,{"$f":"MIN((IFERROR(IF(AND($V430<=Z$1,$W430>=Z$1),INDEX(Reliability!E$23:E$50,MATCH($S430,Reliability!$C$23:$C$50,0)),0),0)*IF($T430=\"n/a\",$D430*$Y430,$G430)+IFERROR(IF(AND($V430<=Z$1,$W430>=Z$1),INDEX(Reliability!E$23:E$50,MATCH($T430,Reliability!$C$23:$C$50,0)),0),0)*$H430*$X430*$Y430),$D430)*$R430","v":0},{"$f":"MIN((IFERROR(IF(AND($V430<=AA$1,$W430>=AA$1),INDEX(Reliability!F$23:F$50,MATCH($S430,Reliability!$C$23:$C$50,0)),0),0)*IF($T430=\"n/a\",$D430*$Y430,$G430)+IFERROR(IF(AND($V430<=AA$1,$W430>=AA$1),INDEX(Reliability!F$23:F$50,MATCH($T430,Reliability!$C$23:$C$50,0)),0),0)*$H430*$X430*$Y430),$D430)*$R430","v":0},{"$f":"MIN((IFERROR(IF(AND($V430<=AB$1,$W430>=AB$1),INDEX(Reliability!G$23:G$50,MATCH($S430,Reliability!$C$23:$C$50,0)),0),0)*IF($T430=\"n/a\",$D430*$Y430,$G430)+IFERROR(IF(AND($V430<=AB$1,$W430>=AB$1),INDEX(Reliability!G$23:G$50,MATCH($T430,Reliability!$C$23:$C$50,0)),0),0)*$H430*$X430*$Y430),$D430)*$R430","v":0},{"$f":"MIN((IFERROR(IF(AND($V430<=AC$1,$W430>=AC$1),INDEX(Reliability!H$23:H$50,MATCH($S430,Reliability!$C$23:$C$50,0)),0),0)*IF($T430=\"n/a\",$D430*$Y430,$G430)+IFERROR(IF(AND($V430<=AC$1,$W430>=AC$1),INDEX(Reliability!H$23:H$50,MATCH($T430,Reliability!$C$23:$C$50,0)),0),0)*$H430*$X430*$Y430),$D430)*$R430","v":0},{"$f":"MIN((IFERROR(IF(AND($V430<=AD$1,$W430>=AD$1),INDEX(Reliability!I$23:I$50,MATCH($S430,Reliability!$C$23:$C$50,0)),0),0)*IF($T430=\"n/a\",$D430*$Y430,$G430)+IFERROR(IF(AND($V430<=AD$1,$W430>=AD$1),INDEX(Reliability!I$23:I$50,MATCH($T430,Reliability!$C$23:$C$50,0)),0),0)*$H430*$X430*$Y430),$D430)*$R430","v":0},{"$f":"MIN((IFERROR(IF(AND($V430<=AE$1,$W430>=AE$1),INDEX(Reliability!J$23:J$50,MATCH($S430,Reliability!$C$23:$C$50,0)),0),0)*IF($T430=\"n/a\",$D430*$Y430,$G430)+IFERROR(IF(AND($V430<=AE$1,$W430>=AE$1),INDEX(Reliability!J$23:J$50,MATCH($T430,Reliability!$C$23:$C$50,0)),0),0)*$H430*$X430*$Y430),$D430)*$R430","v":0},{"$f":"MIN((IFERROR(IF(AND($V430<=AF$1,$W430>=AF$1),INDEX(Reliability!K$23:K$50,MATCH($S430,Reliability!$C$23:$C$50,0)),0),0)*IF($T430=\"n/a\",$D430*$Y430,$G430)+IFERROR(IF(AND($V430<=AF$1,$W430>=AF$1),INDEX(Reliability!K$23:K$50,MATCH($T430,Reliability!$C$23:$C$50,0)),0),0)*$H430*$X430*$Y430),$D430)*$R430","v":0},{"$f":"MIN((IFERROR(IF(AND($V430<=AG$1,$W430>=AG$1),INDEX(Reliability!L$23:L$50,MATCH($S430,Reliability!$C$23:$C$50,0)),0),0)*IF($T430=\"n/a\",$D430*$Y430,$G430)+IFERROR(IF(AND($V430<=AG$1,$W430>=AG$1),INDEX(Reliability!L$23:L$50,MATCH($T430,Reliability!$C$23:$C$50,0)),0),0)*$H430*$X430*$Y430),$D430)*$R430","v":0},{"$f":"MIN((IFERROR(IF(AND($V430<=AH$1,$W430>=AH$1),INDEX(Reliability!M$23:M$50,MATCH($S430,Reliability!$C$23:$C$50,0)),0),0)*IF($T430=\"n/a\",$D430*$Y430,$G430)+IFERROR(IF(AND($V430<=AH$1,$W430>=AH$1),INDEX(Reliability!M$23:M$50,MATCH($T430,Reliability!$C$23:$C$50,0)),0),0)*$H430*$X430*$Y430),$D430)*$R430","v":0},{"$f":"MIN((IFERROR(IF(AND($V430<=AI$1,$W430>=AI$1),INDEX(Reliability!N$23:N$50,MATCH($S430,Reliability!$C$23:$C$50,0)),0),0)*IF($T430=\"n/a\",$D430*$Y430,$G430)+IFERROR(IF(AND($V430<=AI$1,$W430>=AI$1),INDEX(Reliability!N$23:N$50,MATCH($T430,Reliability!$C$23:$C$50,0)),0),0)*$H430*$X430*$Y430),$D430)*$R430","v":0},{"$f":"MIN((IFERROR(IF(AND($V430<=AJ$1,$W430>=AJ$1),INDEX(Reliability!O$23:O$50,MATCH($S430,Reliability!$C$23:$C$50,0)),0),0)*IF($T430=\"n/a\",$D430*$Y430,$G430)+IFERROR(IF(AND($V430<=AJ$1,$W430>=AJ$1),INDEX(Reliability!O$23:O$50,MATCH($T430,Reliability!$C$23:$C$50,0)),0),0)*$H430*$X430*$Y430),$D430)*$R430","v":0},{"$f":"MIN((IFERROR(IF(AND($V430<=AK$1,$W430>=AK$1),INDEX(Reliability!P$23:P$50,MATCH($S430,Reliability!$C$23:$C$50,0)),0),0)*IF($T430=\"n/a\",$D430*$Y430,$G430)+IFERROR(IF(AND($V430<=AK$1,$W430>=AK$1),INDEX(Reliability!P$23:P$50,MATCH($T430,Reliability!$C$23:$C$50,0)),0),0)*$H430*$X430*$Y430),$D430)*$R430","v":0}]
[null,{"$f":"unique_contracts!B432","v":0},{"$f":"unique_contracts!D432","v":0},{"$f":"unique_contracts!J432","v":0},{"$f":"unique_contracts!M432","v":0},{"$f":"unique_contracts!N432","v":0},{"$f":"unique_contracts!P432","v":0},{"$f":"unique_contracts!R432","v":0},{"$f":"unique_contracts!V432","v":0},{"$f":"unique_contracts!AB432","v":0},{"$f":"unique_contracts!AM432","v":0},{"$f":"unique_contracts!AN432","v":0},{"$f":"unique_contracts!AO432","v":0},{"$f":"unique_contracts!AP432","v":0},{"$f":"unique_contracts!AQ432","v":0},{"$f":"unique_contracts!AR432","v":0},{"$f":"unique_contracts!BP432","v":0},0,{"$f":"IFERROR(IF(AND(I431>0,E431=\"NotHybrid\"),_xlfn.CONCAT(MAX(MIN(ROUNDDOWN(I431/D431,0),8),4),INDEX(resources!$G:$G,MATCH(B431,resources!$A:$A,0))),INDEX(resources!$G:$G,MATCH(B431,resources!$A:$A,0))),\"n/a\")","v":"n/a"},"n/a","n/a",0,0,1,1,{"$f":"MIN((IFERROR(IF(AND($V431<=Z$1,$W431>=Z$1),INDEX(Reliability!E$23:E$50,MATCH($S431,Reliability!$C$23:$C$50,0)),0),0)*IF($T431=\"n/a\",$D431*$Y431,$G431)+IFERROR(IF(AND($V431<=Z$1,$W431>=Z$1),INDEX(Reliability!E$23:E$50,MATCH($T431,Reliability!$C$23:$C$50,0)),0),0)*$H431*$X431*$Y431),$D431)*$R431","v":0},{"$f":"MIN((IFERROR(IF(AND($V431<=AA$1,$W431>=AA$1),INDEX(Reliability!F$23:F$50,MATCH($S431,Reliability!$C$23:$C$50,0)),0),0)*IF($T431=\"n/a\",$D431*$Y431,$G431)+IFERROR(IF(AND($V431<=AA$1,$W431>=AA$1),INDEX(Reliability!F$23:F$50,MATCH($T431,Reliability!$C$23:$C$50,0)),0),0)*$H431*$X431*$Y431),$D431)*$R431","v":0},{"$f":"MIN((IFERROR(IF(AND($V431<=AB$1,$W431>=AB$1),INDEX(Reliability!G$23:G$50,MATCH($S431,Reliability!$C$23:$C$50,0)),0),0)*IF($T431=\"n/a\",$D431*$Y431,$G431)+IFERROR(IF(AND($V431<=AB$1,$W431>=AB$1),INDEX(Reliability!G$23:G$50,MATCH($T431,Reliability!$C$23:$C$50,0)),0),0)*$H431*$X431*$Y431),$D431)*$R431","v":0},{"$f":"MIN((IFERROR(IF(AND($V431<=AC$1,$W431>=AC$1),INDEX(Reliability!H$23:H$50,MATCH($S431,Reliability!$C$23:$C$50,0)),0),0)*IF($T431=\"n/a\",$D431*$Y431,$G431)+IFERROR(IF(AND($V431<=AC$1,$W431>=AC$1),INDEX(Reliability!H$23:H$50,MATCH($T431,Reliability!$C$23:$C$50,0)),0),0)*$H431*$X431*$Y431),$D431)*$R431","v":0},{"$f":"MIN((IFERROR(IF(AND($V431<=AD$1,$W431>=AD$1),INDEX(Reliability!I$23:I$50,MATCH($S431,Reliability!$C$23:$C$50,0)),0),0)*IF($T431=\"n/a\",$D431*$Y431,$G431)+IFERROR(IF(AND($V431<=AD$1,$W431>=AD$1),INDEX(Reliability!I$23:I$50,MATCH($T431,Reliability!$C$23:$C$50,0)),0),0)*$H431*$X431*$Y431),$D431)*$R431","v":0},{"$f":"MIN((IFERROR(IF(AND($V431<=AE$1,$W431>=AE$1),INDEX(Reliability!J$23:J$50,MATCH($S431,Reliability!$C$23:$C$50,0)),0),0)*IF($T431=\"n/a\",$D431*$Y431,$G431)+IFERROR(IF(AND($V431<=AE$1,$W431>=AE$1),INDEX(Reliability!J$23:J$50,MATCH($T431,Reliability!$C$23:$C$50,0)),0),0)*$H431*$X431*$Y431),$D431)*$R431","v":0},{"$f":"MIN((IFERROR(IF(AND($V431<=AF$1,$W431>=AF$1),INDEX(Reliability!K$23:K$50,MATCH($S431,Reliability!$C$23:$C$50,0)),0),0)*IF($T431=\"n/a\",$D431*$Y431,$G431)+IFERROR(IF(AND($V431<=AF$1,$W431>=AF$1),INDEX(Reliability!K$23:K$50,MATCH($T431,Reliability!$C$23:$C$50,0)),0),0)*$H431*$X431*$Y431),$D431)*$R431","v":0},{"$f":"MIN((IFERROR(IF(AND($V431<=AG$1,$W431>=AG$1),INDEX(Reliability!L$23:L$50,MATCH($S431,Reliability!$C$23:$C$50,0)),0),0)*IF($T431=\"n/a\",$D431*$Y431,$G431)+IFERROR(IF(AND($V431<=AG$1,$W431>=AG$1),INDEX(Reliability!L$23:L$50,MATCH($T431,Reliability!$C$23:$C$50,0)),0),0)*$H431*$X431*$Y431),$D431)*$R431","v":0},{"$f":"MIN((IFERROR(IF(AND($V431<=AH$1,$W431>=AH$1),INDEX(Reliability!M$23:M$50,MATCH($S431,Reliability!$C$23:$C$50,0)),0),0)*IF($T431=\"n/a\",$D431*$Y431,$G431)+IFERROR(IF(AND($V431<=AH$1,$W431>=AH$1),INDEX(Reliability!M$23:M$50,MATCH($T431,Reliability!$C$23:$C$50,0)),0),0)*$H431*$X431*$Y431),$D431)*$R431","v":0},{"$f":"MIN((IFERROR(IF(AND($V431<=AI$1,$W431>=AI$1),INDEX(Reliability!N$23:N$50,MATCH($S431,Reliability!$C$23:$C$50,0)),0),0)*IF($T431=\"n/a\",$D431*$Y431,$G431)+IFERROR(IF(AND($V431<=AI$1,$W431>=AI$1),INDEX(Reliability!N$23:N$50,MATCH($T431,Reliability!$C$23:$C$50,0)),0),0)*$H431*$X431*$Y431),$D431)*$R431","v":0},{"$f":"MIN((IFERROR(IF(AND($V431<=AJ$1,$W431>=AJ$1),INDEX(Reliability!O$23:O$50,MATCH($S431,Reliability!$C$23:$C$50,0)),0),0)*IF($T431=\"n/a\",$D431*$Y431,$G431)+IFERROR(IF(AND($V431<=AJ$1,$W431>=AJ$1),INDEX(Reliability!O$23:O$50,MATCH($T431,Reliability!$C$23:$C$50,0)),0),0)*$H431*$X431*$Y431),$D431)*$R431","v":0},{"$f":"MIN((IFERROR(IF(AND($V431<=AK$1,$W431>=AK$1),INDEX(Reliability!P$23:P$50,MATCH($S431,Reliability!$C$23:$C$50,0)),0),0)*IF($T431=\"n/a\",$D431*$Y431,$G431)+IFERROR(IF(AND($V431<=AK$1,$W431>=AK$1),INDEX(Reliability!P$23:P$50,MATCH($T431,Reliability!$C$23:$C$50,0)),0),0)*$H431*$X431*$Y431),$D431)*$R431","v":0}]
[null,{"$f":"unique_contracts!B433","v":0},{"$f":"unique_contracts!D433","v":0},{"$f":"unique_contracts!J433","v":0},{"$f":"unique_contracts!M433","v":0},{"$f":"unique_contracts!N433","v":0},{"$f":"unique_contracts!P433","v":0},{"$f":"unique_contracts!R433","v":0},{"$f":"unique_contracts!V433","v":0},{"$f":"unique_contracts!AB433","v":0},{"$f":"unique_contracts!AM433","v":0},{"$f":"unique_contracts!AN433","v":0},{"$f":"unique_contracts!AO433","v":0},{"$f":"unique_contracts!AP433","v":0},{"$f":"unique_contracts!AQ433","v":0},{"$f":"unique_contracts!AR433","v":0},{"$f":"unique_contracts!BP433","v":0},0,{"$f":"IFERROR(IF(AND(I432>0,E432=\"NotHybrid\"),_xlfn.CONCAT(MAX(MIN(ROUNDDOWN(I432/D432,0),8),4),INDEX(resources!$G:$G,MATCH(B432,resources!$A:$A,0))),INDEX(resources!$G:$G,MATCH(B432,resources!$A:$A,0))),\"n/a\")","v":"n/a"},"n/a","n/a",0,0,1,1,{"$f":"MIN((IFERROR(IF(AND($V432<=Z$1,$W432>=Z$1),INDEX(Reliability!E$23:E$50,MATCH($S432,Reliability!$C$23:$C$50,0)),0),0)*IF($T432=\"n/a\",$D432*$Y432,$G432)+IFERROR(IF(AND($V432<=Z$1,$W432>=Z$1),INDEX(Reliability!E$23:E$50,MATCH($T432,Reliability!$C$23:$C$50,0)),0),0)*$H432*$X432*$Y432),$D432)*$R432","v":0},{"$f":"MIN((IFERROR(IF(AND($V432<=AA$1,$W432>=AA$1),INDEX(Reliability!F$23:F$50,MATCH($S432,Reliability!$C$23:$C$50,0)),0),0)*IF($T432=\"n/a\",$D432*$Y432,$G432)+IFERROR(IF(AND($V432<=AA$1,$W432>=AA$1),INDEX(Reliability!F$23:F$50,MATCH($T432,Reliability!$C$23:$C$50,0)),0),0)*$H432*$X432*$Y432),$D432)*$R432","v":0},{"$f":"MIN((IFERROR(IF(AND($V432<=AB$1,$W432>=AB$1),INDEX(Reliability!G$23:G$50,MATCH($S432,Reliability!$C$23:$C$50,0)),0),0)*IF($T432=\"n/a\",$D432*$Y432,$G432)+IFERROR(IF(AND($V432<=AB$1,$W432>=AB$1),INDEX(Reliability!G$23:G$50,MATCH($T432,Reliability!$C$23:$C$50,0)),0),0)*$H432*$X432*$Y432),$D432)*$R432","v":0},{"$f":"MIN((IFERROR(IF(AND($V432<=AC$1,$W432>=AC$1),INDEX(Reliability!H$23:H$50,MATCH($S432,Reliability!$C$23:$C$50,0)),0),0)*IF($T432=\"n/a\",$D432*$Y432,$G432)+IFERROR(IF(AND($V432<=AC$1,$W432>=AC$1),INDEX(Reliability!H$23:H$50,MATCH($T432,Reliability!$C$23:$C$50,0)),0),0)*$H432*$X432*$Y432),$D432)*$R432","v":0},{"$f":"MIN((IFERROR(IF(AND($V432<=AD$1,$W432>=AD$1),INDEX(Reliability!I$23:I$50,MATCH($S432,Reliability!$C$23:$C$50,0)),0),0)*IF($T432=\"n/a\",$D432*$Y432,$G432)+IFERROR(IF(AND($V432<=AD$1,$W432>=AD$1),INDEX(Reliability!I$23:I$50,MATCH($T432,Reliability!$C$23:$C$50,0)),0),0)*$H432*$X432*$Y432),$D432)*$R432","v":0},{"$f":"MIN((IFERROR(IF(AND($V432<=AE$1,$W432>=AE$1),INDEX(Reliability!J$23:J$50,MATCH($S432,Reliability!$C$23:$C$50,0)),0),0)*IF($T432=\"n/a\",$D432*$Y432,$G432)+IFERROR(IF(AND($V432<=AE$1,$W432>=AE$1),INDEX(Reliability!J$23:J$50,MATCH($T432,Reliability!$C$23:$C$50,0)),0),0)*$H432*$X432*$Y432),$D432)*$R432","v":0},{"$f":"MIN((IFERROR(IF(AND($V432<=AF$1,$W432>=AF$1),INDEX(Reliability!K$23:K$50,MATCH($S432,Reliability!$C$23:$C$50,0)),0),0)*IF($T432=\"n/a\",$D432*$Y432,$G432)+IFERROR(IF(AND($V432<=AF$1,$W432>=AF$1),INDEX(Reliability!K$23:K$50,MATCH($T432,Reliability!$C$23:$C$50,0)),0),0)*$H432*$X432*$Y432),$D432)*$R432","v":0},{"$f":"MIN((IFERROR(IF(AND($V432<=AG$1,$W432>=AG$1),INDEX(Reliability!L$23:L$50,MATCH($S432,Reliability!$C$23:$C$50,0)),0),0)*IF($T432=\"n/a\",$D432*$Y432,$G432)+IFERROR(IF(AND($V432<=AG$1,$W432>=AG$1),INDEX(Reliability!L$23:L$50,MATCH($T432,Reliability!$C$23:$C$50,0)),0),0)*$H432*$X432*$Y432),$D432)*$R432","v":0},{"$f":"MIN((IFERROR(IF(AND($V432<=AH$1,$W432>=AH$1),INDEX(Reliability!M$23:M$50,MATCH($S432,Reliability!$C$23:$C$50,0)),0),0)*IF($T432=\"n/a\",$D432*$Y432,$G432)+IFERROR(IF(AND($V432<=AH$1,$W432>=AH$1),INDEX(Reliability!M$23:M$50,MATCH($T432,Reliability!$C$23:$C$50,0)),0),0)*$H432*$X432*$Y432),$D432)*$R432","v":0},{"$f":"MIN((IFERROR(IF(AND($V432<=AI$1,$W432>=AI$1),INDEX(Reliability!N$23:N$50,MATCH($S432,Reliability!$C$23:$C$50,0)),0),0)*IF($T432=\"n/a\",$D432*$Y432,$G432)+IFERROR(IF(AND($V432<=AI$1,$W432>=AI$1),INDEX(Reliability!N$23:N$50,MATCH($T432,Reliability!$C$23:$C$50,0)),0),0)*$H432*$X432*$Y432),$D432)*$R432","v":0},{"$f":"MIN((IFERROR(IF(AND($V432<=AJ$1,$W432>=AJ$1),INDEX(Reliability!O$23:O$50,MATCH($S432,Reliability!$C$23:$C$50,0)),0),0)*IF($T432=\"n/a\",$D432*$Y432,$G432)+IFERROR(IF(AND($V432<=AJ$1,$W432>=AJ$1),INDEX(Reliability!O$23:O$50,MATCH($T432,Reliability!$C$23:$C$50,0)),0),0)*$H432*$X432*$Y432),$D432)*$R432","v":0},{"$f":"MIN((IFERROR(IF(AND($V432<=AK$1,$W432>=AK$1),INDEX(Reliability!P$23:P$50,MATCH($S432,Reliability!$C$23:$C$50,0)),0),0)*IF($T432=\"n/a\",$D432*$Y432,$G432)+IFERROR(IF(AND($V432<=AK$1,$W432>=AK$1),INDEX(Reliability!P$23:P$50,MATCH($T432,Reliability!$C$23:$C$50,0)),0),0)*$H432*$X432*$Y432),$D432)*$R432","v":0}]
[null,{"$f":"unique_contracts!B434","v":0},{"$f":"unique_contracts!D434","v":0},{"$f":"unique_contracts!J434","v":0},{"$f":"unique_contracts!M434","v":0},{"$f":"unique_contracts!N434","v":0},{"$f":"unique_contracts!P434","v":0},{"$f":"unique_contracts!R434","v":0},{"$f":"unique_contracts!V434","v":0},{"$f":"unique_contracts!AB434","v":0},{"$f":"unique_contracts!AM434","v":0},{"$f":"unique_contracts!AN434","v":0},{"$f":"unique_contracts!AO434","v":0},{"$f":"unique_contracts!AP434","v":0},{"$f":"unique_contracts!AQ434","v":0},{"$f":"unique_contracts!AR434","v":0},{"$f":"unique_contracts!BP434","v":0},0,{"$f":"IFERROR(IF(AND(I433>0,E433=\"NotHybrid\"),_xlfn.CONCAT(MAX(MIN(ROUNDDOWN(I433/D433,0),8),4),INDEX(resources!$G:$G,MATCH(B433,resources!$A:$A,0))),INDEX(resources!$G:$G,MATCH(B433,resources!$A:$A,0))),\"n/a\")","v":"n/a"},"n/a","n/a",0,0,1,1,{"$f":"MIN((IFERROR(IF(AND($V433<=Z$1,$W433>=Z$1),INDEX(Reliability!E$23:E$50,MATCH($S433,Reliability!$C$23:$C$50,0)),0),0)*IF($T433=\"n/a\",$D433*$Y433,$G433)+IFERROR(IF(AND($V433<=Z$1,$W433>=Z$1),INDEX(Reliability!E$23:E$50,MATCH($T433,Reliability!$C$23:$C$50,0)),0),0)*$H433*$X433*$Y433),$D433)*$R433","v":0},{"$f":"MIN((IFERROR(IF(AND($V433<=AA$1,$W433>=AA$1),INDEX(Reliability!F$23:F$50,MATCH($S433,Reliability!$C$23:$C$50,0)),0),0)*IF($T433=\"n/a\",$D433*$Y433,$G433)+IFERROR(IF(AND($V433<=AA$1,$W433>=AA$1),INDEX(Reliability!F$23:F$50,MATCH($T433,Reliability!$C$23:$C$50,0)),0),0)*$H433*$X433*$Y433),$D433)*$R433","v":0},{"$f":"MIN((IFERROR(IF(AND($V433<=AB$1,$W433>=AB$1),INDEX(Reliability!G$23:G$50,MATCH($S433,Reliability!$C$23:$C$50,0)),0),0)*IF($T433=\"n/a\",$D433*$Y433,$G433)+IFERROR(IF(AND($V433<=AB$1,$W433>=AB$1),INDEX(Reliability!G$23:G$50,MATCH($T433,Reliability!$C$23:$C$50,0)),0),0)*$H433*$X433*$Y433),$D433)*$R433","v":0},{"$f":"MIN((IFERROR(IF(AND($V433<=AC$1,$W433>=AC$1),INDEX(Reliability!H$23:H$50,MATCH($S433,Reliability!$C$23:$C$50,0)),0),0)*IF($T433=\"n/a\",$D433*$Y433,$G433)+IFERROR(IF(AND($V433<=AC$1,$W433>=AC$1),INDEX(Reliability!H$23:H$50,MATCH($T433,Reliability!$C$23:$C$50,0)),0),0)*$H433*$X433*$Y433),$D433)*$R433","v":0},{"$f":"MIN((IFERROR(IF(AND($V433<=AD$1,$W433>=AD$1),INDEX(Reliability!I$23:I$50,MATCH($S433,Reliability!$C$23:$C$50,0)),0),0)*IF($T433=\"n/a\",$D433*$Y433,$G433)+IFERROR(IF(AND($V433<=AD$1,$W433>=AD$1),INDEX(Reliability!I$23:I$50,MATCH($T433,Reliability!$C$23:$C$50,0)),0),0)*$H433*$X433*$Y433),$D433)*$R433","v":0},{"$f":"MIN((IFERROR(IF(AND($V433<=AE$1,$W433>=AE$1),INDEX(Reliability!J$23:J$50,MATCH($S433,Reliability!$C$23:$C$50,0)),0),0)*IF($T433=\"n/a\",$D433*$Y433,$G433)+IFERROR(IF(AND($V433<=AE$1,$W433>=AE$1),INDEX(Reliability!J$23:J$50,MATCH($T433,Reliability!$C$23:$C$50,0)),0),0)*$H433*$X433*$Y433),$D433)*$R433","v":0},{"$f":"MIN((IFERROR(IF(AND($V433<=AF$1,$W433>=AF$1),INDEX(Reliability!K$23:K$50,MATCH($S433,Reliability!$C$23:$C$50,0)),0),0)*IF($T433=\"n/a\",$D433*$Y433,$G433)+IFERROR(IF(AND($V433<=AF$1,$W433>=AF$1),INDEX(Reliability!K$23:K$50,MATCH($T433,Reliability!$C$23:$C$50,0)),0),0)*$H433*$X433*$Y433),$D433)*$R433","v":0},{"$f":"MIN((IFERROR(IF(AND($V433<=AG$1,$W433>=AG$1),INDEX(Reliability!L$23:L$50,MATCH($S433,Reliability!$C$23:$C$50,0)),0),0)*IF($T433=\"n/a\",$D433*$Y433,$G433)+IFERROR(IF(AND($V433<=AG$1,$W433>=AG$1),INDEX(Reliability!L$23:L$50,MATCH($T433,Reliability!$C$23:$C$50,0)),0),0)*$H433*$X433*$Y433),$D433)*$R433","v":0},{"$f":"MIN((IFERROR(IF(AND($V433<=AH$1,$W433>=AH$1),INDEX(Reliability!M$23:M$50,MATCH($S433,Reliability!$C$23:$C$50,0)),0),0)*IF($T433=\"n/a\",$D433*$Y433,$G433)+IFERROR(IF(AND($V433<=AH$1,$W433>=AH$1),INDEX(Reliability!M$23:M$50,MATCH($T433,Reliability!$C$23:$C$50,0)),0),0)*$H433*$X433*$Y433),$D433)*$R433","v":0},{"$f":"MIN((IFERROR(IF(AND($V433<=AI$1,$W433>=AI$1),INDEX(Reliability!N$23:N$50,MATCH($S433,Reliability!$C$23:$C$50,0)),0),0)*IF($T433=\"n/a\",$D433*$Y433,$G433)+IFERROR(IF(AND($V433<=AI$1,$W433>=AI$1),INDEX(Reliability!N$23:N$50,MATCH($T433,Reliability!$C$23:$C$50,0)),0),0)*$H433*$X433*$Y433),$D433)*$R433","v":0},{"$f":"MIN((IFERROR(IF(AND($V433<=AJ$1,$W433>=AJ$1),INDEX(Reliability!O$23:O$50,MATCH($S433,Reliability!$C$23:$C$50,0)),0),0)*IF($T433=\"n/a\",$D433*$Y433,$G433)+IFERROR(IF(AND($V433<=AJ$1,$W433>=AJ$1),INDEX(Reliability!O$23:O$50,MATCH($T433,Reliability!$C$23:$C$50,0)),0),0)*$H433*$X433*$Y433),$D433)*$R433","v":0},{"$f":"MIN((IFERROR(IF(AND($V433<=AK$1,$W433>=AK$1),INDEX(Reliability!P$23:P$50,MATCH($S433,Reliability!$C$23:$C$50,0)),0),0)*IF($T433=\"n/a\",$D433*$Y433,$G433)+IFERROR(IF(AND($V433<=AK$1,$W433>=AK$1),INDEX(Reliability!P$23:P$50,MATCH($T433,Reliability!$C$23:$C$50,0)),0),0)*$H433*$X433*$Y433),$D433)*$R433","v":0}]
[null,{"$f":"unique_contracts!B435","v":0},{"$f":"unique_contracts!D435","v":0},{"$f":"unique_contracts!J435","v":0},{"$f":"unique_contracts!M435","v":0},{"$f":"unique_contracts!N435","v":0},{"$f":"unique_contracts!P435","v":0},{"$f":"unique_contracts!R435","v":0},{"$f":"unique_contracts!V435","v":0},{"$f":"unique_contracts!AB435","v":0},{"$f":"unique_contracts!AM435","v":0},{"$f":"unique_contracts!AN435","v":0},{"$f":"unique_contracts!AO435","v":0},{"$f":"unique_contracts!AP435","v":0},{"$f":"unique_contracts!AQ435","v":0},{"$f":"unique_contracts!AR435","v":0},{"$f":"unique_contracts!BP435","v":0},0,{"$f":"IFERROR(IF(AND(I434>0,E434=\"NotHybrid\"),_xlfn.CONCAT(MAX(MIN(ROUNDDOWN(I434/D434,0),8),4),INDEX(resources!$G:$G,MATCH(B434,resources!$A:$A,0))),INDEX(resources!$G:$G,MATCH(B434,resources!$A:$A,0))),\"n/a\")","v":"n/a"},"n/a","n/a",0,0,1,1,{"$f":"MIN((IFERROR(IF(AND($V434<=Z$1,$W434>=Z$1),INDEX(Reliability!E$23:E$50,MATCH($S434,Reliability!$C$23:$C$50,0)),0),0)*IF($T434=\"n/a\",$D434*$Y434,$G434)+IFERROR(IF(AND($V434<=Z$1,$W434>=Z$1),INDEX(Reliability!E$23:E$50,MATCH($T434,Reliability!$C$23:$C$50,0)),0),0)*$H434*$X434*$Y434),$D434)*$R434","v":0},{"$f":"MIN((IFERROR(IF(AND($V434<=AA$1,$W434>=AA$1),INDEX(Reliability!F$23:F$50,MATCH($S434,Reliability!$C$23:$C$50,0)),0),0)*IF($T434=\"n/a\",$D434*$Y434,$G434)+IFERROR(IF(AND($V434<=AA$1,$W434>=AA$1),INDEX(Reliability!F$23:F$50,MATCH($T434,Reliability!$C$23:$C$50,0)),0),0)*$H434*$X434*$Y434),$D434)*$R434","v":0},{"$f":"MIN((IFERROR(IF(AND($V434<=AB$1,$W434>=AB$1),INDEX(Reliability!G$23:G$50,MATCH($S434,Reliability!$C$23:$C$50,0)),0),0)*IF($T434=\"n/a\",$D434*$Y434,$G434)+IFERROR(IF(AND($V434<=AB$1,$W434>=AB$1),INDEX(Reliability!G$23:G$50,MATCH($T434,Reliability!$C$23:$C$50,0)),0),0)*$H434*$X434*$Y434),$D434)*$R434","v":0},{"$f":"MIN((IFERROR(IF(AND($V434<=AC$1,$W434>=AC$1),INDEX(Reliability!H$23:H$50,MATCH($S434,Reliability!$C$23:$C$50,0)),0),0)*IF($T434=\"n/a\",$D434*$Y434,$G434)+IFERROR(IF(AND($V434<=AC$1,$W434>=AC$1),INDEX(Reliability!H$23:H$50,MATCH($T434,Reliability!$C$23:$C$50,0)),0),0)*$H434*$X434*$Y434),$D434)*$R434","v":0},{"$f":"MIN((IFERROR(IF(AND($V434<=AD$1,$W434>=AD$1),INDEX(Reliability!I$23:I$50,MATCH($S434,Reliability!$C$23:$C$50,0)),0),0)*IF($T434=\"n/a\",$D434*$Y434,$G434)+IFERROR(IF(AND($V434<=AD$1,$W434>=AD$1),INDEX(Reliability!I$23:I$50,MATCH($T434,Reliability!$C$23:$C$50,0)),0),0)*$H434*$X434*$Y434),$D434)*$R434","v":0},{"$f":"MIN((IFERROR(IF(AND($V434<=AE$1,$W434>=AE$1),INDEX(Reliability!J$23:J$50,MATCH($S434,Reliability!$C$23:$C$50,0)),0),0)*IF($T434=\"n/a\",$D434*$Y434,$G434)+IFERROR(IF(AND($V434<=AE$1,$W434>=AE$1),INDEX(Reliability!J$23:J$50,MATCH($T434,Reliability!$C$23:$C$50,0)),0),0)*$H434*$X434*$Y434),$D434)*$R434","v":0},{"$f":"MIN((IFERROR(IF(AND($V434<=AF$1,$W434>=AF$1),INDEX(Reliability!K$23:K$50,MATCH($S434,Reliability!$C$23:$C$50,0)),0),0)*IF($T434=\"n/a\",$D434*$Y434,$G434)+IFERROR(IF(AND($V434<=AF$1,$W434>=AF$1),INDEX(Reliability!K$23:K$50,MATCH($T434,Reliability!$C$23:$C$50,0)),0),0)*$H434*$X434*$Y434),$D434)*$R434","v":0},{"$f":"MIN((IFERROR(IF(AND($V434<=AG$1,$W434>=AG$1),INDEX(Reliability!L$23:L$50,MATCH($S434,Reliability!$C$23:$C$50,0)),0),0)*IF($T434=\"n/a\",$D434*$Y434,$G434)+IFERROR(IF(AND($V434<=AG$1,$W434>=AG$1),INDEX(Reliability!L$23:L$50,MATCH($T434,Reliability!$C$23:$C$50,0)),0),0)*$H434*$X434*$Y434),$D434)*$R434","v":0},{"$f":"MIN((IFERROR(IF(AND($V434<=AH$1,$W434>=AH$1),INDEX(Reliability!M$23:M$50,MATCH($S434,Reliability!$C$23:$C$50,0)),0),0)*IF($T434=\"n/a\",$D434*$Y434,$G434)+IFERROR(IF(AND($V434<=AH$1,$W434>=AH$1),INDEX(Reliability!M$23:M$50,MATCH($T434,Reliability!$C$23:$C$50,0)),0),0)*$H434*$X434*$Y434),$D434)*$R434","v":0},{"$f":"MIN((IFERROR(IF(AND($V434<=AI$1,$W434>=AI$1),INDEX(Reliability!N$23:N$50,MATCH($S434,Reliability!$C$23:$C$50,0)),0),0)*IF($T434=\"n/a\",$D434*$Y434,$G434)+IFERROR(IF(AND($V434<=AI$1,$W434>=AI$1),INDEX(Reliability!N$23:N$50,MATCH($T434,Reliability!$C$23:$C$50,0)),0),0)*$H434*$X434*$Y434),$D434)*$R434","v":0},{"$f":"MIN((IFERROR(IF(AND($V434<=AJ$1,$W434>=AJ$1),INDEX(Reliability!O$23:O$50,MATCH($S434,Reliability!$C$23:$C$50,0)),0),0)*IF($T434=\"n/a\",$D434*$Y434,$G434)+IFERROR(IF(AND($V434<=AJ$1,$W434>=AJ$1),INDEX(Reliability!O$23:O$50,MATCH($T434,Reliability!$C$23:$C$50,0)),0),0)*$H434*$X434*$Y434),$D434)*$R434","v":0},{"$f":"MIN((IFERROR(IF(AND($V434<=AK$1,$W434>=AK$1),INDEX(Reliability!P$23:P$50,MATCH($S434,Reliability!$C$23:$C$50,0)),0),0)*IF($T434=\"n/a\",$D434*$Y434,$G434)+IFERROR(IF(AND($V434<=AK$1,$W434>=AK$1),INDEX(Reliability!P$23:P$50,MATCH($T434,Reliability!$C$23:$C$50,0)),0),0)*$H434*$X434*$Y434),$D434)*$R434","v":0}]
[null,{"$f":"unique_contracts!B436","v":0},{"$f":"unique_contracts!D436","v":0},{"$f":"unique_contracts!J436","v":0},{"$f":"unique_contracts!M436","v":0},{"$f":"unique_contracts!N436","v":0},{"$f":"unique_contracts!P436","v":0},{"$f":"unique_contracts!R436","v":0},{"$f":"unique_contracts!V436","v":0},{"$f":"unique_contracts!AB436","v":0},{"$f":"unique_contracts!AM436","v":0},{"$f":"unique_contracts!AN436","v":0},{"$f":"unique_contracts!AO436","v":0},{"$f":"unique_contracts!AP436","v":0},{"$f":"unique_contracts!AQ436","v":0},{"$f":"unique_contracts!AR436","v":0},{"$f":"unique_contracts!BP436","v":0},0,{"$f":"IFERROR(IF(AND(I435>0,E435=\"NotHybrid\"),_xlfn.CONCAT(MAX(MIN(ROUNDDOWN(I435/D435,0),8),4),INDEX(resources!$G:$G,MATCH(B435,resources!$A:$A,0))),INDEX(resources!$G:$G,MATCH(B435,resources!$A:$A,0))),\"n/a\")","v":"n/a"},"n/a","n/a",0,0,1,1,{"$f":"MIN((IFERROR(IF(AND($V435<=Z$1,$W435>=Z$1),INDEX(Reliability!E$23:E$50,MATCH($S435,Reliability!$C$23:$C$50,0)),0),0)*IF($T435=\"n/a\",$D435*$Y435,$G435)+IFERROR(IF(AND($V435<=Z$1,$W435>=Z$1),INDEX(Reliability!E$23:E$50,MATCH($T435,Reliability!$C$23:$C$50,0)),0),0)*$H435*$X435*$Y435),$D435)*$R435","v":0},{"$f":"MIN((IFERROR(IF(AND($V435<=AA$1,$W435>=AA$1),INDEX(Reliability!F$23:F$50,MATCH($S435,Reliability!$C$23:$C$50,0)),0),0)*IF($T435=\"n/a\",$D435*$Y435,$G435)+IFERROR(IF(AND($V435<=AA$1,$W435>=AA$1),INDEX(Reliability!F$23:F$50,MATCH($T435,Reliability!$C$23:$C$50,0)),0),0)*$H435*$X435*$Y435),$D435)*$R435","v":0},{"$f":"MIN((IFERROR(IF(AND($V435<=AB$1,$W435>=AB$1),INDEX(Reliability!G$23:G$50,MATCH($S435,Reliability!$C$23:$C$50,0)),0),0)*IF($T435=\"n/a\",$D435*$Y435,$G435)+IFERROR(IF(AND($V435<=AB$1,$W435>=AB$1),INDEX(Reliability!G$23:G$50,MATCH($T435,Reliability!$C$23:$C$50,0)),0),0)*$H435*$X435*$Y435),$D435)*$R435","v":0},{"$f":"MIN((IFERROR(IF(AND($V435<=AC$1,$W435>=AC$1),INDEX(Reliability!H$23:H$50,MATCH($S435,Reliability!$C$23:$C$50,0)),0),0)*IF($T435=\"n/a\",$D435*$Y435,$G435)+IFERROR(IF(AND($V435<=AC$1,$W435>=AC$1),INDEX(Reliability!H$23:H$50,MATCH($T435,Reliability!$C$23:$C$50,0)),0),0)*$H435*$X435*$Y435),$D435)*$R435","v":0},{"$f":"MIN((IFERROR(IF(AND($V435<=AD$1,$W435>=AD$1),INDEX(Reliability!I$23:I$50,MATCH($S435,Reliability!$C$23:$C$50,0)),0),0)*IF($T435=\"n/a\",$D435*$Y435,$G435)+IFERROR(IF(AND($V435<=AD$1,$W435>=AD$1),INDEX(Reliability!I$23:I$50,MATCH($T435,Reliability!$C$23:$C$50,0)),0),0)*$H435*$X435*$Y435),$D435)*$R435","v":0},{"$f":"MIN((IFERROR(IF(AND($V435<=AE$1,$W435>=AE$1),INDEX(Reliability!J$23:J$50,MATCH($S435,Reliability!$C$23:$C$50,0)),0),0)*IF($T435=\"n/a\",$D435*$Y435,$G435)+IFERROR(IF(AND($V435<=AE$1,$W435>=AE$1),INDEX(Reliability!J$23:J$50,MATCH($T435,Reliability!$C$23:$C$50,0)),0),0)*$H435*$X435*$Y435),$D435)*$R435","v":0},{"$f":"MIN((IFERROR(IF(AND($V435<=AF$1,$W435>=AF$1),INDEX(Reliability!K$23:K$50,MATCH($S435,Reliability!$C$23:$C$50,0)),0),0)*IF($T435=\"n/a\",$D435*$Y435,$G435)+IFERROR(IF(AND($V435<=AF$1,$W435>=AF$1),INDEX(Reliability!K$23:K$50,MATCH($T435,Reliability!$C$23:$C$50,0)),0),0)*$H435*$X435*$Y435),$D435)*$R435","v":0},{"$f":"MIN((IFERROR(IF(AND($V435<=AG$1,$W435>=AG$1),INDEX(Reliability!L$23:L$50,MATCH($S435,Reliability!$C$23:$C$50,0)),0),0)*IF($T435=\"n/a\",$D435*$Y435,$G435)+IFERROR(IF(AND($V435<=AG$1,$W435>=AG$1),INDEX(Reliability!L$23:L$50,MATCH($T435,Reliability!$C$23:$C$50,0)),0),0)*$H435*$X435*$Y435),$D435)*$R435","v":0},{"$f":"MIN((IFERROR(IF(AND($V435<=AH$1,$W435>=AH$1),INDEX(Reliability!M$23:M$50,MATCH($S435,Reliability!$C$23:$C$50,0)),0),0)*IF($T435=\"n/a\",$D435*$Y435,$G435)+IFERROR(IF(AND($V435<=AH$1,$W435>=AH$1),INDEX(Reliability!M$23:M$50,MATCH($T435,Reliability!$C$23:$C$50,0)),0),0)*$H435*$X435*$Y435),$D435)*$R435","v":0},{"$f":"MIN((IFERROR(IF(AND($V435<=AI$1,$W435>=AI$1),INDEX(Reliability!N$23:N$50,MATCH($S435,Reliability!$C$23:$C$50,0)),0),0)*IF($T435=\"n/a\",$D435*$Y435,$G435)+IFERROR(IF(AND($V435<=AI$1,$W435>=AI$1),INDEX(Reliability!N$23:N$50,MATCH($T435,Reliability!$C$23:$C$50,0)),0),0)*$H435*$X435*$Y435),$D435)*$R435","v":0},{"$f":"MIN((IFERROR(IF(AND($V435<=AJ$1,$W435>=AJ$1),INDEX(Reliability!O$23:O$50,MATCH($S435,Reliability!$C$23:$C$50,0)),0),0)*IF($T435=\"n/a\",$D435*$Y435,$G435)+IFERROR(IF(AND($V435<=AJ$1,$W435>=AJ$1),INDEX(Reliability!O$23:O$50,MATCH($T435,Reliability!$C$23:$C$50,0)),0),0)*$H435*$X435*$Y435),$D435)*$R435","v":0},{"$f":"MIN((IFERROR(IF(AND($V435<=AK$1,$W435>=AK$1),INDEX(Reliability!P$23:P$50,MATCH($S435,Reliability!$C$23:$C$50,0)),0),0)*IF($T435=\"n/a\",$D435*$Y435,$G435)+IFERROR(IF(AND($V435<=AK$1,$W435>=AK$1),INDEX(Reliability!P$23:P$50,MATCH($T435,Reliability!$C$23:$C$50,0)),0),0)*$H435*$X435*$Y435),$D435)*$R435","v":0}]
[null,{"$f":"unique_contracts!B437","v":0},{"$f":"unique_contracts!D437","v":0},{"$f":"unique_contracts!J437","v":0},{"$f":"unique_contracts!M437","v":0},{"$f":"unique_contracts!N437","v":0},{"$f":"unique_contracts!P437","v":0},{"$f":"unique_contracts!R437","v":0},{"$f":"unique_contracts!V437","v":0},{"$f":"unique_contracts!AB437","v":0},{"$f":"unique_contracts!AM437","v":0},{"$f":"unique_contracts!AN437","v":0},{"$f":"unique_contracts!AO437","v":0},{"$f":"unique_contracts!AP437","v":0},{"$f":"unique_contracts!AQ437","v":0},{"$f":"unique_contracts!AR437","v":0},{"$f":"unique_contracts!BP437","v":0},0,{"$f":"IFERROR(IF(AND(I436>0,E436=\"NotHybrid\"),_xlfn.CONCAT(MAX(MIN(ROUNDDOWN(I436/D436,0),8),4),INDEX(resources!$G:$G,MATCH(B436,resources!$A:$A,0))),INDEX(resources!$G:$G,MATCH(B436,resources!$A:$A,0))),\"n/a\")","v":"n/a"},"n/a","n/a",0,0,1,1,{"$f":"MIN((IFERROR(IF(AND($V436<=Z$1,$W436>=Z$1),INDEX(Reliability!E$23:E$50,MATCH($S436,Reliability!$C$23:$C$50,0)),0),0)*IF($T436=\"n/a\",$D436*$Y436,$G436)+IFERROR(IF(AND($V436<=Z$1,$W436>=Z$1),INDEX(Reliability!E$23:E$50,MATCH($T436,Reliability!$C$23:$C$50,0)),0),0)*$H436*$X436*$Y436),$D436)*$R436","v":0},{"$f":"MIN((IFERROR(IF(AND($V436<=AA$1,$W436>=AA$1),INDEX(Reliability!F$23:F$50,MATCH($S436,Reliability!$C$23:$C$50,0)),0),0)*IF($T436=\"n/a\",$D436*$Y436,$G436)+IFERROR(IF(AND($V436<=AA$1,$W436>=AA$1),INDEX(Reliability!F$23:F$50,MATCH($T436,Reliability!$C$23:$C$50,0)),0),0)*$H436*$X436*$Y436),$D436)*$R436","v":0},{"$f":"MIN((IFERROR(IF(AND($V436<=AB$1,$W436>=AB$1),INDEX(Reliability!G$23:G$50,MATCH($S436,Reliability!$C$23:$C$50,0)),0),0)*IF($T436=\"n/a\",$D436*$Y436,$G436)+IFERROR(IF(AND($V436<=AB$1,$W436>=AB$1),INDEX(Reliability!G$23:G$50,MATCH($T436,Reliability!$C$23:$C$50,0)),0),0)*$H436*$X436*$Y436),$D436)*$R436","v":0},{"$f":"MIN((IFERROR(IF(AND($V436<=AC$1,$W436>=AC$1),INDEX(Reliability!H$23:H$50,MATCH($S436,Reliability!$C$23:$C$50,0)),0),0)*IF($T436=\"n/a\",$D436*$Y436,$G436)+IFERROR(IF(AND($V436<=AC$1,$W436>=AC$1),INDEX(Reliability!H$23:H$50,MATCH($T436,Reliability!$C$23:$C$50,0)),0),0)*$H436*$X436*$Y436),$D436)*$R436","v":0},{"$f":"MIN((IFERROR(IF(AND($V436<=AD$1,$W436>=AD$1),INDEX(Reliability!I$23:I$50,MATCH($S436,Reliability!$C$23:$C$50,0)),0),0)*IF($T436=\"n/a\",$D436*$Y436,$G436)+IFERROR(IF(AND($V436<=AD$1,$W436>=AD$1),INDEX(Reliability!I$23:I$50,MATCH($T436,Reliability!$C$23:$C$50,0)),0),0)*$H436*$X436*$Y436),$D436)*$R436","v":0},{"$f":"MIN((IFERROR(IF(AND($V436<=AE$1,$W436>=AE$1),INDEX(Reliability!J$23:J$50,MATCH($S436,Reliability!$C$23:$C$50,0)),0),0)*IF($T436=\"n/a\",$D436*$Y436,$G436)+IFERROR(IF(AND($V436<=AE$1,$W436>=AE$1),INDEX(Reliability!J$23:J$50,MATCH($T436,Reliability!$C$23:$C$50,0)),0),0)*$H436*$X436*$Y436),$D436)*$R436","v":0},{"$f":"MIN((IFERROR(IF(AND($V436<=AF$1,$W436>=AF$1),INDEX(Reliability!K$23:K$50,MATCH($S436,Reliability!$C$23:$C$50,0)),0),0)*IF($T436=\"n/a\",$D436*$Y436,$G436)+IFERROR(IF(AND($V436<=AF$1,$W436>=AF$1),INDEX(Reliability!K$23:K$50,MATCH($T436,Reliability!$C$23:$C$50,0)),0),0)*$H436*$X436*$Y436),$D436)*$R436","v":0},{"$f":"MIN((IFERROR(IF(AND($V436<=AG$1,$W436>=AG$1),INDEX(Reliability!L$23:L$50,MATCH($S436,Reliability!$C$23:$C$50,0)),0),0)*IF($T436=\"n/a\",$D436*$Y436,$G436)+IFERROR(IF(AND($V436<=AG$1,$W436>=AG$1),INDEX(Reliability!L$23:L$50,MATCH($T436,Reliability!$C$23:$C$50,0)),0),0)*$H436*$X436*$Y436),$D436)*$R436","v":0},{"$f":"MIN((IFERROR(IF(AND($V436<=AH$1,$W436>=AH$1),INDEX(Reliability!M$23:M$50,MATCH($S436,Reliability!$C$23:$C$50,0)),0),0)*IF($T436=\"n/a\",$D436*$Y436,$G436)+IFERROR(IF(AND($V436<=AH$1,$W436>=AH$1),INDEX(Reliability!M$23:M$50,MATCH($T436,Reliability!$C$23:$C$50,0)),0),0)*$H436*$X436*$Y436),$D436)*$R436","v":0},{"$f":"MIN((IFERROR(IF(AND($V436<=AI$1,$W436>=AI$1),INDEX(Reliability!N$23:N$50,MATCH($S436,Reliability!$C$23:$C$50,0)),0),0)*IF($T436=\"n/a\",$D436*$Y436,$G436)+IFERROR(IF(AND($V436<=AI$1,$W436>=AI$1),INDEX(Reliability!N$23:N$50,MATCH($T436,Reliability!$C$23:$C$50,0)),0),0)*$H436*$X436*$Y436),$D436)*$R436","v":0},{"$f":"MIN((IFERROR(IF(AND($V436<=AJ$1,$W436>=AJ$1),INDEX(Reliability!O$23:O$50,MATCH($S436,Reliability!$C$23:$C$50,0)),0),0)*IF($T436=\"n/a\",$D436*$Y436,$G436)+IFERROR(IF(AND($V436<=AJ$1,$W436>=AJ$1),INDEX(Reliability!O$23:O$50,MATCH($T436,Reliability!$C$23:$C$50,0)),0),0)*$H436*$X436*$Y436),$D436)*$R436","v":0},{"$f":"MIN((IFERROR(IF(AND($V436<=AK$1,$W436>=AK$1),INDEX(Reliability!P$23:P$50,MATCH($S436,Reliability!$C$23:$C$50,0)),0),0)*IF($T436=\"n/a\",$D436*$Y436,$G436)+IFERROR(IF(AND($V436<=AK$1,$W436>=AK$1),INDEX(Reliability!P$23:P$50,MATCH($T436,Reliability!$C$23:$C$50,0)),0),0)*$H436*$X436*$Y436),$D436)*$R436","v":0}]
[null,{"$f":"unique_contracts!B438","v":0},{"$f":"unique_contracts!D438","v":0},{"$f":"unique_contracts!J438","v":0},{"$f":"unique_contracts!M438","v":0},{"$f":"unique_contracts!N438","v":0},{"$f":"unique_contracts!P438","v":0},{"$f":"unique_contracts!R438","v":0},{"$f":"unique_contracts!V438","v":0},{"$f":"unique_contracts!AB438","v":0},{"$f":"unique_contracts!AM438","v":0},{"$f":"unique_contracts!AN438","v":0},{"$f":"unique_contracts!AO438","v":0},{"$f":"unique_contracts!AP438","v":0},{"$f":"unique_contracts!AQ438","v":0},{"$f":"unique_contracts!AR438","v":0},{"$f":"unique_contracts!BP438","v":0},0,{"$f":"IFERROR(IF(AND(I437>0,E437=\"NotHybrid\"),_xlfn.CONCAT(MAX(MIN(ROUNDDOWN(I437/D437,0),8),4),INDEX(resources!$G:$G,MATCH(B437,resources!$A:$A,0))),INDEX(resources!$G:$G,MATCH(B437,resources!$A:$A,0))),\"n/a\")","v":"n/a"},"n/a","n/a",0,0,1,1,{"$f":"MIN((IFERROR(IF(AND($V437<=Z$1,$W437>=Z$1),INDEX(Reliability!E$23:E$50,MATCH($S437,Reliability!$C$23:$C$50,0)),0),0)*IF($T437=\"n/a\",$D437*$Y437,$G437)+IFERROR(IF(AND($V437<=Z$1,$W437>=Z$1),INDEX(Reliability!E$23:E$50,MATCH($T437,Reliability!$C$23:$C$50,0)),0),0)*$H437*$X437*$Y437),$D437)*$R437","v":0},{"$f":"MIN((IFERROR(IF(AND($V437<=AA$1,$W437>=AA$1),INDEX(Reliability!F$23:F$50,MATCH($S437,Reliability!$C$23:$C$50,0)),0),0)*IF($T437=\"n/a\",$D437*$Y437,$G437)+IFERROR(IF(AND($V437<=AA$1,$W437>=AA$1),INDEX(Reliability!F$23:F$50,MATCH($T437,Reliability!$C$23:$C$50,0)),0),0)*$H437*$X437*$Y437),$D437)*$R437","v":0},{"$f":"MIN((IFERROR(IF(AND($V437<=AB$1,$W437>=AB$1),INDEX(Reliability!G$23:G$50,MATCH($S437,Reliability!$C$23:$C$50,0)),0),0)*IF($T437=\"n/a\",$D437*$Y437,$G437)+IFERROR(IF(AND($V437<=AB$1,$W437>=AB$1),INDEX(Reliability!G$23:G$50,MATCH($T437,Reliability!$C$23:$C$50,0)),0),0)*$H437*$X437*$Y437),$D437)*$R437","v":0},{"$f":"MIN((IFERROR(IF(AND($V437<=AC$1,$W437>=AC$1),INDEX(Reliability!H$23:H$50,MATCH($S437,Reliability!$C$23:$C$50,0)),0),0)*IF($T437=\"n/a\",$D437*$Y437,$G437)+IFERROR(IF(AND($V437<=AC$1,$W437>=AC$1),INDEX(Reliability!H$23:H$50,MATCH($T437,Reliability!$C$23:$C$50,0)),0),0)*$H437*$X437*$Y437),$D437)*$R437","v":0},{"$f":"MIN((IFERROR(IF(AND($V437<=AD$1,$W437>=AD$1),INDEX(Reliability!I$23:I$50,MATCH($S437,Reliability!$C$23:$C$50,0)),0),0)*IF($T437=\"n/a\",$D437*$Y437,$G437)+IFERROR(IF(AND($V437<=AD$1,$W437>=AD$1),INDEX(Reliability!I$23:I$50,MATCH($T437,Reliability!$C$23:$C$50,0)),0),0)*$H437*$X437*$Y437),$D437)*$R437","v":0},{"$f":"MIN((IFERROR(IF(AND($V437<=AE$1,$W437>=AE$1),INDEX(Reliability!J$23:J$50,MATCH($S437,Reliability!$C$23:$C$50,0)),0),0)*IF($T437=\"n/a\",$D437*$Y437,$G437)+IFERROR(IF(AND($V437<=AE$1,$W437>=AE$1),INDEX(Reliability!J$23:J$50,MATCH($T437,Reliability!$C$23:$C$50,0)),0),0)*$H437*$X437*$Y437),$D437)*$R437","v":0},{"$f":"MIN((IFERROR(IF(AND($V437<=AF$1,$W437>=AF$1),INDEX(Reliability!K$23:K$50,MATCH($S437,Reliability!$C$23:$C$50,0)),0),0)*IF($T437=\"n/a\",$D437*$Y437,$G437)+IFERROR(IF(AND($V437<=AF$1,$W437>=AF$1),INDEX(Reliability!K$23:K$50,MATCH($T437,Reliability!$C$23:$C$50,0)),0),0)*$H437*$X437*$Y437),$D437)*$R437","v":0},{"$f":"MIN((IFERROR(IF(AND($V437<=AG$1,$W437>=AG$1),INDEX(Reliability!L$23:L$50,MATCH($S437,Reliability!$C$23:$C$50,0)),0),0)*IF($T437=\"n/a\",$D437*$Y437,$G437)+IFERROR(IF(AND($V437<=AG$1,$W437>=AG$1),INDEX(Reliability!L$23:L$50,MATCH($T437,Reliability!$C$23:$C$50,0)),0),0)*$H437*$X437*$Y437),$D437)*$R437","v":0},{"$f":"MIN((IFERROR(IF(AND($V437<=AH$1,$W437>=AH$1),INDEX(Reliability!M$23:M$50,MATCH($S437,Reliability!$C$23:$C$50,0)),0),0)*IF($T437=\"n/a\",$D437*$Y437,$G437)+IFERROR(IF(AND($V437<=AH$1,$W437>=AH$1),INDEX(Reliability!M$23:M$50,MATCH($T437,Reliability!$C$23:$C$50,0)),0),0)*$H437*$X437*$Y437),$D437)*$R437","v":0},{"$f":"MIN((IFERROR(IF(AND($V437<=AI$1,$W437>=AI$1),INDEX(Reliability!N$23:N$50,MATCH($S437,Reliability!$C$23:$C$50,0)),0),0)*IF($T437=\"n/a\",$D437*$Y437,$G437)+IFERROR(IF(AND($V437<=AI$1,$W437>=AI$1),INDEX(Reliability!N$23:N$50,MATCH($T437,Reliability!$C$23:$C$50,0)),0),0)*$H437*$X437*$Y437),$D437)*$R437","v":0},{"$f":"MIN((IFERROR(IF(AND($V437<=AJ$1,$W437>=AJ$1),INDEX(Reliability!O$23:O$50,MATCH($S437,Reliability!$C$23:$C$50,0)),0),0)*IF($T437=\"n/a\",$D437*$Y437,$G437)+IFERROR(IF(AND($V437<=AJ$1,$W437>=AJ$1),INDEX(Reliability!O$23:O$50,MATCH($T437,Reliability!$C$23:$C$50,0)),0),0)*$H437*$X437*$Y437),$D437)*$R437","v":0},{"$f":"MIN((IFERROR(IF(AND($V437<=AK$1,$W437>=AK$1),INDEX(Reliability!P$23:P$50,MATCH($S437,Reliability!$C$23:$C$50,0)),0),0)*IF($T437=\"n/a\",$D437*$Y437,$G437)+IFERROR(IF(AND($V437<=AK$1,$W437>=AK$1),INDEX(Reliability!P$23:P$50,MATCH($T437,Reliability!$C$23:$C$50,0)),0),0)*$H437*$X437*$Y437),$D437)*$R437","v":0}]
[null,{"$f":"unique_contracts!B439","v":0},{"$f":"unique_contracts!D439","v":0},{"$f":"unique_contracts!J439","v":0},{"$f":"unique_contracts!M439","v":0},{"$f":"unique_contracts!N439","v":0},{"$f":"unique_contracts!P439","v":0},{"$f":"unique_contracts!R439","v":0},{"$f":"unique_contracts!V439","v":0},{"$f":"unique_contracts!AB439","v":0},{"$f":"unique_contracts!AM439","v":0},{"$f":"unique_contracts!AN439","v":0},{"$f":"unique_contracts!AO439","v":0},{"$f":"unique_contracts!AP439","v":0},{"$f":"unique_contracts!AQ439","v":0},{"$f":"unique_contracts!AR439","v":0},{"$f":"unique_contracts!BP439","v":0},0,{"$f":"IFERROR(IF(AND(I438>0,E438=\"NotHybrid\"),_xlfn.CONCAT(MAX(MIN(ROUNDDOWN(I438/D438,0),8),4),INDEX(resources!$G:$G,MATCH(B438,resources!$A:$A,0))),INDEX(resources!$G:$G,MATCH(B438,resources!$A:$A,0))),\"n/a\")","v":"n/a"},"n/a","n/a",0,0,1,1,{"$f":"MIN((IFERROR(IF(AND($V438<=Z$1,$W438>=Z$1),INDEX(Reliability!E$23:E$50,MATCH($S438,Reliability!$C$23:$C$50,0)),0),0)*IF($T438=\"n/a\",$D438*$Y438,$G438)+IFERROR(IF(AND($V438<=Z$1,$W438>=Z$1),INDEX(Reliability!E$23:E$50,MATCH($T438,Reliability!$C$23:$C$50,0)),0),0)*$H438*$X438*$Y438),$D438)*$R438","v":0},{"$f":"MIN((IFERROR(IF(AND($V438<=AA$1,$W438>=AA$1),INDEX(Reliability!F$23:F$50,MATCH($S438,Reliability!$C$23:$C$50,0)),0),0)*IF($T438=\"n/a\",$D438*$Y438,$G438)+IFERROR(IF(AND($V438<=AA$1,$W438>=AA$1),INDEX(Reliability!F$23:F$50,MATCH($T438,Reliability!$C$23:$C$50,0)),0),0)*$H438*$X438*$Y438),$D438)*$R438","v":0},{"$f":"MIN((IFERROR(IF(AND($V438<=AB$1,$W438>=AB$1),INDEX(Reliability!G$23:G$50,MATCH($S438,Reliability!$C$23:$C$50,0)),0),0)*IF($T438=\"n/a\",$D438*$Y438,$G438)+IFERROR(IF(AND($V438<=AB$1,$W438>=AB$1),INDEX(Reliability!G$23:G$50,MATCH($T438,Reliability!$C$23:$C$50,0)),0),0)*$H438*$X438*$Y438),$D438)*$R438","v":0},{"$f":"MIN((IFERROR(IF(AND($V438<=AC$1,$W438>=AC$1),INDEX(Reliability!H$23:H$50,MATCH($S438,Reliability!$C$23:$C$50,0)),0),0)*IF($T438=\"n/a\",$D438*$Y438,$G438)+IFERROR(IF(AND($V438<=AC$1,$W438>=AC$1),INDEX(Reliability!H$23:H$50,MATCH($T438,Reliability!$C$23:$C$50,0)),0),0)*$H438*$X438*$Y438),$D438)*$R438","v":0},{"$f":"MIN((IFERROR(IF(AND($V438<=AD$1,$W438>=AD$1),INDEX(Reliability!I$23:I$50,MATCH($S438,Reliability!$C$23:$C$50,0)),0),0)*IF($T438=\"n/a\",$D438*$Y438,$G438)+IFERROR(IF(AND($V438<=AD$1,$W438>=AD$1),INDEX(Reliability!I$23:I$50,MATCH($T438,Reliability!$C$23:$C$50,0)),0),0)*$H438*$X438*$Y438),$D438)*$R438","v":0},{"$f":"MIN((IFERROR(IF(AND($V438<=AE$1,$W438>=AE$1),INDEX(Reliability!J$23:J$50,MATCH($S438,Reliability!$C$23:$C$50,0)),0),0)*IF($T438=\"n/a\",$D438*$Y438,$G438)+IFERROR(IF(AND($V438<=AE$1,$W438>=AE$1),INDEX(Reliability!J$23:J$50,MATCH($T438,Reliability!$C$23:$C$50,0)),0),0)*$H438*$X438*$Y438),$D438)*$R438","v":0},{"$f":"MIN((IFERROR(IF(AND($V438<=AF$1,$W438>=AF$1),INDEX(Reliability!K$23:K$50,MATCH($S438,Reliability!$C$23:$C$50,0)),0),0)*IF($T438=\"n/a\",$D438*$Y438,$G438)+IFERROR(IF(AND($V438<=AF$1,$W438>=AF$1),INDEX(Reliability!K$23:K$50,MATCH($T438,Reliability!$C$23:$C$50,0)),0),0)*$H438*$X438*$Y438),$D438)*$R438","v":0},{"$f":"MIN((IFERROR(IF(AND($V438<=AG$1,$W438>=AG$1),INDEX(Reliability!L$23:L$50,MATCH($S438,Reliability!$C$23:$C$50,0)),0),0)*IF($T438=\"n/a\",$D438*$Y438,$G438)+IFERROR(IF(AND($V438<=AG$1,$W438>=AG$1),INDEX(Reliability!L$23:L$50,MATCH($T438,Reliability!$C$23:$C$50,0)),0),0)*$H438*$X438*$Y438),$D438)*$R438","v":0},{"$f":"MIN((IFERROR(IF(AND($V438<=AH$1,$W438>=AH$1),INDEX(Reliability!M$23:M$50,MATCH($S438,Reliability!$C$23:$C$50,0)),0),0)*IF($T438=\"n/a\",$D438*$Y438,$G438)+IFERROR(IF(AND($V438<=AH$1,$W438>=AH$1),INDEX(Reliability!M$23:M$50,MATCH($T438,Reliability!$C$23:$C$50,0)),0),0)*$H438*$X438*$Y438),$D438)*$R438","v":0},{"$f":"MIN((IFERROR(IF(AND($V438<=AI$1,$W438>=AI$1),INDEX(Reliability!N$23:N$50,MATCH($S438,Reliability!$C$23:$C$50,0)),0),0)*IF($T438=\"n/a\",$D438*$Y438,$G438)+IFERROR(IF(AND($V438<=AI$1,$W438>=AI$1),INDEX(Reliability!N$23:N$50,MATCH($T438,Reliability!$C$23:$C$50,0)),0),0)*$H438*$X438*$Y438),$D438)*$R438","v":0},{"$f":"MIN((IFERROR(IF(AND($V438<=AJ$1,$W438>=AJ$1),INDEX(Reliability!O$23:O$50,MATCH($S438,Reliability!$C$23:$C$50,0)),0),0)*IF($T438=\"n/a\",$D438*$Y438,$G438)+IFERROR(IF(AND($V438<=AJ$1,$W438>=AJ$1),INDEX(Reliability!O$23:O$50,MATCH($T438,Reliability!$C$23:$C$50,0)),0),0)*$H438*$X438*$Y438),$D438)*$R438","v":0},{"$f":"MIN((IFERROR(IF(AND($V438<=AK$1,$W438>=AK$1),INDEX(Reliability!P$23:P$50,MATCH($S438,Reliability!$C$23:$C$50,0)),0),0)*IF($T438=\"n/a\",$D438*$Y438,$G438)+IFERROR(IF(AND($V438<=AK$1,$W438>=AK$1),INDEX(Reliability!P$23:P$50,MATCH($T438,Reliability!$C$23:$C$50,0)),0),0)*$H438*$X438*$Y438),$D438)*$R438","v":0}]
[null,{"$f":"unique_contracts!B440","v":0},{"$f":"unique_contracts!D440","v":0},{"$f":"unique_contracts!J440","v":0},{"$f":"unique_contracts!M440","v":0},{"$f":"unique_contracts!N440","v":0},{"$f":"unique_contracts!P440","v":0},{"$f":"unique_contracts!R440","v":0},{"$f":"unique_contracts!V440","v":0},{"$f":"unique_contracts!AB440","v":0},{"$f":"unique_contracts!AM440","v":0},{"$f":"unique_contracts!AN440","v":0},{"$f":"unique_contracts!AO440","v":0},{"$f":"unique_contracts!AP440","v":0},{"$f":"unique_contracts!AQ440","v":0},{"$f":"unique_contracts!AR440","v":0},{"$f":"unique_contracts!BP440","v":0},0,{"$f":"IFERROR(IF(AND(I439>0,E439=\"NotHybrid\"),_xlfn.CONCAT(MAX(MIN(ROUNDDOWN(I439/D439,0),8),4),INDEX(resources!$G:$G,MATCH(B439,resources!$A:$A,0))),INDEX(resources!$G:$G,MATCH(B439,resources!$A:$A,0))),\"n/a\")","v":"n/a"},"n/a","n/a",0,0,1,1,{"$f":"MIN((IFERROR(IF(AND($V439<=Z$1,$W439>=Z$1),INDEX(Reliability!E$23:E$50,MATCH($S439,Reliability!$C$23:$C$50,0)),0),0)*IF($T439=\"n/a\",$D439*$Y439,$G439)+IFERROR(IF(AND($V439<=Z$1,$W439>=Z$1),INDEX(Reliability!E$23:E$50,MATCH($T439,Reliability!$C$23:$C$50,0)),0),0)*$H439*$X439*$Y439),$D439)*$R439","v":0},{"$f":"MIN((IFERROR(IF(AND($V439<=AA$1,$W439>=AA$1),INDEX(Reliability!F$23:F$50,MATCH($S439,Reliability!$C$23:$C$50,0)),0),0)*IF($T439=\"n/a\",$D439*$Y439,$G439)+IFERROR(IF(AND($V439<=AA$1,$W439>=AA$1),INDEX(Reliability!F$23:F$50,MATCH($T439,Reliability!$C$23:$C$50,0)),0),0)*$H439*$X439*$Y439),$D439)*$R439","v":0},{"$f":"MIN((IFERROR(IF(AND($V439<=AB$1,$W439>=AB$1),INDEX(Reliability!G$23:G$50,MATCH($S439,Reliability!$C$23:$C$50,0)),0),0)*IF($T439=\"n/a\",$D439*$Y439,$G439)+IFERROR(IF(AND($V439<=AB$1,$W439>=AB$1),INDEX(Reliability!G$23:G$50,MATCH($T439,Reliability!$C$23:$C$50,0)),0),0)*$H439*$X439*$Y439),$D439)*$R439","v":0},{"$f":"MIN((IFERROR(IF(AND($V439<=AC$1,$W439>=AC$1),INDEX(Reliability!H$23:H$50,MATCH($S439,Reliability!$C$23:$C$50,0)),0),0)*IF($T439=\"n/a\",$D439*$Y439,$G439)+IFERROR(IF(AND($V439<=AC$1,$W439>=AC$1),INDEX(Reliability!H$23:H$50,MATCH($T439,Reliability!$C$23:$C$50,0)),0),0)*$H439*$X439*$Y439),$D439)*$R439","v":0},{"$f":"MIN((IFERROR(IF(AND($V439<=AD$1,$W439>=AD$1),INDEX(Reliability!I$23:I$50,MATCH($S439,Reliability!$C$23:$C$50,0)),0),0)*IF($T439=\"n/a\",$D439*$Y439,$G439)+IFERROR(IF(AND($V439<=AD$1,$W439>=AD$1),INDEX(Reliability!I$23:I$50,MATCH($T439,Reliability!$C$23:$C$50,0)),0),0)*$H439*$X439*$Y439),$D439)*$R439","v":0},{"$f":"MIN((IFERROR(IF(AND($V439<=AE$1,$W439>=AE$1),INDEX(Reliability!J$23:J$50,MATCH($S439,Reliability!$C$23:$C$50,0)),0),0)*IF($T439=\"n/a\",$D439*$Y439,$G439)+IFERROR(IF(AND($V439<=AE$1,$W439>=AE$1),INDEX(Reliability!J$23:J$50,MATCH($T439,Reliability!$C$23:$C$50,0)),0),0)*$H439*$X439*$Y439),$D439)*$R439","v":0},{"$f":"MIN((IFERROR(IF(AND($V439<=AF$1,$W439>=AF$1),INDEX(Reliability!K$23:K$50,MATCH($S439,Reliability!$C$23:$C$50,0)),0),0)*IF($T439=\"n/a\",$D439*$Y439,$G439)+IFERROR(IF(AND($V439<=AF$1,$W439>=AF$1),INDEX(Reliability!K$23:K$50,MATCH($T439,Reliability!$C$23:$C$50,0)),0),0)*$H439*$X439*$Y439),$D439)*$R439","v":0},{"$f":"MIN((IFERROR(IF(AND($V439<=AG$1,$W439>=AG$1),INDEX(Reliability!L$23:L$50,MATCH($S439,Reliability!$C$23:$C$50,0)),0),0)*IF($T439=\"n/a\",$D439*$Y439,$G439)+IFERROR(IF(AND($V439<=AG$1,$W439>=AG$1),INDEX(Reliability!L$23:L$50,MATCH($T439,Reliability!$C$23:$C$50,0)),0),0)*$H439*$X439*$Y439),$D439)*$R439","v":0},{"$f":"MIN((IFERROR(IF(AND($V439<=AH$1,$W439>=AH$1),INDEX(Reliability!M$23:M$50,MATCH($S439,Reliability!$C$23:$C$50,0)),0),0)*IF($T439=\"n/a\",$D439*$Y439,$G439)+IFERROR(IF(AND($V439<=AH$1,$W439>=AH$1),INDEX(Reliability!M$23:M$50,MATCH($T439,Reliability!$C$23:$C$50,0)),0),0)*$H439*$X439*$Y439),$D439)*$R439","v":0},{"$f":"MIN((IFERROR(IF(AND($V439<=AI$1,$W439>=AI$1),INDEX(Reliability!N$23:N$50,MATCH($S439,Reliability!$C$23:$C$50,0)),0),0)*IF($T439=\"n/a\",$D439*$Y439,$G439)+IFERROR(IF(AND($V439<=AI$1,$W439>=AI$1),INDEX(Reliability!N$23:N$50,MATCH($T439,Reliability!$C$23:$C$50,0)),0),0)*$H439*$X439*$Y439),$D439)*$R439","v":0},{"$f":"MIN((IFERROR(IF(AND($V439<=AJ$1,$W439>=AJ$1),INDEX(Reliability!O$23:O$50,MATCH($S439,Reliability!$C$23:$C$50,0)),0),0)*IF($T439=\"n/a\",$D439*$Y439,$G439)+IFERROR(IF(AND($V439<=AJ$1,$W439>=AJ$1),INDEX(Reliability!O$23:O$50,MATCH($T439,Reliability!$C$23:$C$50,0)),0),0)*$H439*$X439*$Y439),$D439)*$R439","v":0},{"$f":"MIN((IFERROR(IF(AND($V439<=AK$1,$W439>=AK$1),INDEX(Reliability!P$23:P$50,MATCH($S439,Reliability!$C$23:$C$50,0)),0),0)*IF($T439=\"n/a\",$D439*$Y439,$G439)+IFERROR(IF(AND($V439<=AK$1,$W439>=AK$1),INDEX(Reliability!P$23:P$50,MATCH($T439,Reliability!$C$23:$C$50,0)),0),0)*$H439*$X439*$Y439),$D439)*$R439","v":0}]
[null,{"$f":"unique_contracts!B441","v":0},{"$f":"unique_contracts!D441","v":0},{"$f":"unique_contracts!J441","v":0},{"$f":"unique_contracts!M441","v":0},{"$f":"unique_contracts!N441","v":0},{"$f":"unique_contracts!P441","v":0},{"$f":"unique_contracts!R441","v":0},{"$f":"unique_contracts!V441","v":0},{"$f":"unique_contracts!AB441","v":0},{"$f":"unique_contracts!AM441","v":0},{"$f":"unique_contracts!AN441","v":0},{"$f":"unique_contracts!AO441","v":0},{"$f":"unique_contracts!AP441","v":0},{"$f":"unique_contracts!AQ441","v":0},{"$f":"unique_contracts!AR441","v":0},{"$f":"unique_contracts!BP441","v":0},0,{"$f":"IFERROR(IF(AND(I440>0,E440=\"NotHybrid\"),_xlfn.CONCAT(MAX(MIN(ROUNDDOWN(I440/D440,0),8),4),INDEX(resources!$G:$G,MATCH(B440,resources!$A:$A,0))),INDEX(resources!$G:$G,MATCH(B440,resources!$A:$A,0))),\"n/a\")","v":"n/a"},"n/a","n/a",0,0,1,1,{"$f":"MIN((IFERROR(IF(AND($V440<=Z$1,$W440>=Z$1),INDEX(Reliability!E$23:E$50,MATCH($S440,Reliability!$C$23:$C$50,0)),0),0)*IF($T440=\"n/a\",$D440*$Y440,$G440)+IFERROR(IF(AND($V440<=Z$1,$W440>=Z$1),INDEX(Reliability!E$23:E$50,MATCH($T440,Reliability!$C$23:$C$50,0)),0),0)*$H440*$X440*$Y440),$D440)*$R440","v":0},{"$f":"MIN((IFERROR(IF(AND($V440<=AA$1,$W440>=AA$1),INDEX(Reliability!F$23:F$50,MATCH($S440,Reliability!$C$23:$C$50,0)),0),0)*IF($T440=\"n/a\",$D440*$Y440,$G440)+IFERROR(IF(AND($V440<=AA$1,$W440>=AA$1),INDEX(Reliability!F$23:F$50,MATCH($T440,Reliability!$C$23:$C$50,0)),0),0)*$H440*$X440*$Y440),$D440)*$R440","v":0},{"$f":"MIN((IFERROR(IF(AND($V440<=AB$1,$W440>=AB$1),INDEX(Reliability!G$23:G$50,MATCH($S440,Reliability!$C$23:$C$50,0)),0),0)*IF($T440=\"n/a\",$D440*$Y440,$G440)+IFERROR(IF(AND($V440<=AB$1,$W440>=AB$1),INDEX(Reliability!G$23:G$50,MATCH($T440,Reliability!$C$23:$C$50,0)),0),0)*$H440*$X440*$Y440),$D440)*$R440","v":0},{"$f":"MIN((IFERROR(IF(AND($V440<=AC$1,$W440>=AC$1),INDEX(Reliability!H$23:H$50,MATCH($S440,Reliability!$C$23:$C$50,0)),0),0)*IF($T440=\"n/a\",$D440*$Y440,$G440)+IFERROR(IF(AND($V440<=AC$1,$W440>=AC$1),INDEX(Reliability!H$23:H$50,MATCH($T440,Reliability!$C$23:$C$50,0)),0),0)*$H440*$X440*$Y440),$D440)*$R440","v":0},{"$f":"MIN((IFERROR(IF(AND($V440<=AD$1,$W440>=AD$1),INDEX(Reliability!I$23:I$50,MATCH($S440,Reliability!$C$23:$C$50,0)),0),0)*IF($T440=\"n/a\",$D440*$Y440,$G440)+IFERROR(IF(AND($V440<=AD$1,$W440>=AD$1),INDEX(Reliability!I$23:I$50,MATCH($T440,Reliability!$C$23:$C$50,0)),0),0)*$H440*$X440*$Y440),$D440)*$R440","v":0},{"$f":"MIN((IFERROR(IF(AND($V440<=AE$1,$W440>=AE$1),INDEX(Reliability!J$23:J$50,MATCH($S440,Reliability!$C$23:$C$50,0)),0),0)*IF($T440=\"n/a\",$D440*$Y440,$G440)+IFERROR(IF(AND($V440<=AE$1,$W440>=AE$1),INDEX(Reliability!J$23:J$50,MATCH($T440,Reliability!$C$23:$C$50,0)),0),0)*$H440*$X440*$Y440),$D440)*$R440","v":0},{"$f":"MIN((IFERROR(IF(AND($V440<=AF$1,$W440>=AF$1),INDEX(Reliability!K$23:K$50,MATCH($S440,Reliability!$C$23:$C$50,0)),0),0)*IF($T440=\"n/a\",$D440*$Y440,$G440)+IFERROR(IF(AND($V440<=AF$1,$W440>=AF$1),INDEX(Reliability!K$23:K$50,MATCH($T440,Reliability!$C$23:$C$50,0)),0),0)*$H440*$X440*$Y440),$D440)*$R440","v":0},{"$f":"MIN((IFERROR(IF(AND($V440<=AG$1,$W440>=AG$1),INDEX(Reliability!L$23:L$50,MATCH($S440,Reliability!$C$23:$C$50,0)),0),0)*IF($T440=\"n/a\",$D440*$Y440,$G440)+IFERROR(IF(AND($V440<=AG$1,$W440>=AG$1),INDEX(Reliability!L$23:L$50,MATCH($T440,Reliability!$C$23:$C$50,0)),0),0)*$H440*$X440*$Y440),$D440)*$R440","v":0},{"$f":"MIN((IFERROR(IF(AND($V440<=AH$1,$W440>=AH$1),INDEX(Reliability!M$23:M$50,MATCH($S440,Reliability!$C$23:$C$50,0)),0),0)*IF($T440=\"n/a\",$D440*$Y440,$G440)+IFERROR(IF(AND($V440<=AH$1,$W440>=AH$1),INDEX(Reliability!M$23:M$50,MATCH($T440,Reliability!$C$23:$C$50,0)),0),0)*$H440*$X440*$Y440),$D440)*$R440","v":0},{"$f":"MIN((IFERROR(IF(AND($V440<=AI$1,$W440>=AI$1),INDEX(Reliability!N$23:N$50,MATCH($S440,Reliability!$C$23:$C$50,0)),0),0)*IF($T440=\"n/a\",$D440*$Y440,$G440)+IFERROR(IF(AND($V440<=AI$1,$W440>=AI$1),INDEX(Reliability!N$23:N$50,MATCH($T440,Reliability!$C$23:$C$50,0)),0),0)*$H440*$X440*$Y440),$D440)*$R440","v":0},{"$f":"MIN((IFERROR(IF(AND($V440<=AJ$1,$W440>=AJ$1),INDEX(Reliability!O$23:O$50,MATCH($S440,Reliability!$C$23:$C$50,0)),0),0)*IF($T440=\"n/a\",$D440*$Y440,$G440)+IFERROR(IF(AND($V440<=AJ$1,$W440>=AJ$1),INDEX(Reliability!O$23:O$50,MATCH($T440,Reliability!$C$23:$C$50,0)),0),0)*$H440*$X440*$Y440),$D440)*$R440","v":0},{"$f":"MIN((IFERROR(IF(AND($V440<=AK$1,$W440>=AK$1),INDEX(Reliability!P$23:P$50,MATCH($S440,Reliability!$C$23:$C$50,0)),0),0)*IF($T440=\"n/a\",$D440*$Y440,$G440)+IFERROR(IF(AND($V440<=AK$1,$W440>=AK$1),INDEX(Reliability!P$23:P$50,MATCH($T440,Reliability!$C$23:$C$50,0)),0),0)*$H440*$X440*$Y440),$D440)*$R440","v":0}]
[null,{"$f":"unique_contracts!B442","v":0},{"$f":"unique_contracts!D442","v":0},{"$f":"unique_contracts!J442","v":0},{"$f":"unique_contracts!M442","v":0},{"$f":"unique_contracts!N442","v":0},{"$f":"unique_contracts!P442","v":0},{"$f":"unique_contracts!R442","v":0},{"$f":"unique_contracts!V442","v":0},{"$f":"unique_contracts!AB442","v":0},{"$f":"unique_contracts!AM442","v":0},{"$f":"unique_contracts!AN442","v":0},{"$f":"unique_contracts!AO442","v":0},{"$f":"unique_contracts!AP442","v":0},{"$f":"unique_contracts!AQ442","v":0},{"$f":"unique_contracts!AR442","v":0},{"$f":"unique_contracts!BP442","v":0},0,{"$f":"IFERROR(IF(AND(I441>0,E441=\"NotHybrid\"),_xlfn.CONCAT(MAX(MIN(ROUNDDOWN(I441/D441,0),8),4),INDEX(resources!$G:$G,MATCH(B441,resources!$A:$A,0))),INDEX(resources!$G:$G,MATCH(B441,resources!$A:$A,0))),\"n/a\")","v":"n/a"},"n/a","n/a",0,0,1,1,{"$f":"MIN((IFERROR(IF(AND($V441<=Z$1,$W441>=Z$1),INDEX(Reliability!E$23:E$50,MATCH($S441,Reliability!$C$23:$C$50,0)),0),0)*IF($T441=\"n/a\",$D441*$Y441,$G441)+IFERROR(IF(AND($V441<=Z$1,$W441>=Z$1),INDEX(Reliability!E$23:E$50,MATCH($T441,Reliability!$C$23:$C$50,0)),0),0)*$H441*$X441*$Y441),$D441)*$R441","v":0},{"$f":"MIN((IFERROR(IF(AND($V441<=AA$1,$W441>=AA$1),INDEX(Reliability!F$23:F$50,MATCH($S441,Reliability!$C$23:$C$50,0)),0),0)*IF($T441=\"n/a\",$D441*$Y441,$G441)+IFERROR(IF(AND($V441<=AA$1,$W441>=AA$1),INDEX(Reliability!F$23:F$50,MATCH($T441,Reliability!$C$23:$C$50,0)),0),0)*$H441*$X441*$Y441),$D441)*$R441","v":0},{"$f":"MIN((IFERROR(IF(AND($V441<=AB$1,$W441>=AB$1),INDEX(Reliability!G$23:G$50,MATCH($S441,Reliability!$C$23:$C$50,0)),0),0)*IF($T441=\"n/a\",$D441*$Y441,$G441)+IFERROR(IF(AND($V441<=AB$1,$W441>=AB$1),INDEX(Reliability!G$23:G$50,MATCH($T441,Reliability!$C$23:$C$50,0)),0),0)*$H441*$X441*$Y441),$D441)*$R441","v":0},{"$f":"MIN((IFERROR(IF(AND($V441<=AC$1,$W441>=AC$1),INDEX(Reliability!H$23:H$50,MATCH($S441,Reliability!$C$23:$C$50,0)),0),0)*IF($T441=\"n/a\",$D441*$Y441,$G441)+IFERROR(IF(AND($V441<=AC$1,$W441>=AC$1),INDEX(Reliability!H$23:H$50,MATCH($T441,Reliability!$C$23:$C$50,0)),0),0)*$H441*$X441*$Y441),$D441)*$R441","v":0},{"$f":"MIN((IFERROR(IF(AND($V441<=AD$1,$W441>=AD$1),INDEX(Reliability!I$23:I$50,MATCH($S441,Reliability!$C$23:$C$50,0)),0),0)*IF($T441=\"n/a\",$D441*$Y441,$G441)+IFERROR(IF(AND($V441<=AD$1,$W441>=AD$1),INDEX(Reliability!I$23:I$50,MATCH($T441,Reliability!$C$23:$C$50,0)),0),0)*$H441*$X441*$Y441),$D441)*$R441","v":0},{"$f":"MIN((IFERROR(IF(AND($V441<=AE$1,$W441>=AE$1),INDEX(Reliability!J$23:J$50,MATCH($S441,Reliability!$C$23:$C$50,0)),0),0)*IF($T441=\"n/a\",$D441*$Y441,$G441)+IFERROR(IF(AND($V441<=AE$1,$W441>=AE$1),INDEX(Reliability!J$23:J$50,MATCH($T441,Reliability!$C$23:$C$50,0)),0),0)*$H441*$X441*$Y441),$D441)*$R441","v":0},{"$f":"MIN((IFERROR(IF(AND($V441<=AF$1,$W441>=AF$1),INDEX(Reliability!K$23:K$50,MATCH($S441,Reliability!$C$23:$C$50,0)),0),0)*IF($T441=\"n/a\",$D441*$Y441,$G441)+IFERROR(IF(AND($V441<=AF$1,$W441>=AF$1),INDEX(Reliability!K$23:K$50,MATCH($T441,Reliability!$C$23:$C$50,0)),0),0)*$H441*$X441*$Y441),$D441)*$R441","v":0},{"$f":"MIN((IFERROR(IF(AND($V441<=AG$1,$W441>=AG$1),INDEX(Reliability!L$23:L$50,MATCH($S441,Reliability!$C$23:$C$50,0)),0),0)*IF($T441=\"n/a\",$D441*$Y441,$G441)+IFERROR(IF(AND($V441<=AG$1,$W441>=AG$1),INDEX(Reliability!L$23:L$50,MATCH($T441,Reliability!$C$23:$C$50,0)),0),0)*$H441*$X441*$Y441),$D441)*$R441","v":0},{"$f":"MIN((IFERROR(IF(AND($V441<=AH$1,$W441>=AH$1),INDEX(Reliability!M$23:M$50,MATCH($S441,Reliability!$C$23:$C$50,0)),0),0)*IF($T441=\"n/a\",$D441*$Y441,$G441)+IFERROR(IF(AND($V441<=AH$1,$W441>=AH$1),INDEX(Reliability!M$23:M$50,MATCH($T441,Reliability!$C$23:$C$50,0)),0),0)*$H441*$X441*$Y441),$D441)*$R441","v":0},{"$f":"MIN((IFERROR(IF(AND($V441<=AI$1,$W441>=AI$1),INDEX(Reliability!N$23:N$50,MATCH($S441,Reliability!$C$23:$C$50,0)),0),0)*IF($T441=\"n/a\",$D441*$Y441,$G441)+IFERROR(IF(AND($V441<=AI$1,$W441>=AI$1),INDEX(Reliability!N$23:N$50,MATCH($T441,Reliability!$C$23:$C$50,0)),0),0)*$H441*$X441*$Y441),$D441)*$R441","v":0},{"$f":"MIN((IFERROR(IF(AND($V441<=AJ$1,$W441>=AJ$1),INDEX(Reliability!O$23:O$50,MATCH($S441,Reliability!$C$23:$C$50,0)),0),0)*IF($T441=\"n/a\",$D441*$Y441,$G441)+IFERROR(IF(AND($V441<=AJ$1,$W441>=AJ$1),INDEX(Reliability!O$23:O$50,MATCH($T441,Reliability!$C$23:$C$50,0)),0),0)*$H441*$X441*$Y441),$D441)*$R441","v":0},{"$f":"MIN((IFERROR(IF(AND($V441<=AK$1,$W441>=AK$1),INDEX(Reliability!P$23:P$50,MATCH($S441,Reliability!$C$23:$C$50,0)),0),0)*IF($T441=\"n/a\",$D441*$Y441,$G441)+IFERROR(IF(AND($V441<=AK$1,$W441>=AK$1),INDEX(Reliability!P$23:P$50,MATCH($T441,Reliability!$C$23:$C$50,0)),0),0)*$H441*$X441*$Y441),$D441)*$R441","v":0}]
[null,{"$f":"unique_contracts!B443","v":0},{"$f":"unique_contracts!D443","v":0},{"$f":"unique_contracts!J443","v":0},{"$f":"unique_contracts!M443","v":0},{"$f":"unique_contracts!N443","v":0},{"$f":"unique_contracts!P443","v":0},{"$f":"unique_contracts!R443","v":0},{"$f":"unique_contracts!V443","v":0},{"$f":"unique_contracts!AB443","v":0},{"$f":"unique_contracts!AM443","v":0},{"$f":"unique_contracts!AN443","v":0},{"$f":"unique_contracts!AO443","v":0},{"$f":"unique_contracts!AP443","v":0},{"$f":"unique_contracts!AQ443","v":0},{"$f":"unique_contracts!AR443","v":0},{"$f":"unique_contracts!BP443","v":0},0,{"$f":"IFERROR(IF(AND(I442>0,E442=\"NotHybrid\"),_xlfn.CONCAT(MAX(MIN(ROUNDDOWN(I442/D442,0),8),4),INDEX(resources!$G:$G,MATCH(B442,resources!$A:$A,0))),INDEX(resources!$G:$G,MATCH(B442,resources!$A:$A,0))),\"n/a\")","v":"n/a"},"n/a","n/a",0,0,1,1,{"$f":"MIN((IFERROR(IF(AND($V442<=Z$1,$W442>=Z$1),INDEX(Reliability!E$23:E$50,MATCH($S442,Reliability!$C$23:$C$50,0)),0),0)*IF($T442=\"n/a\",$D442*$Y442,$G442)+IFERROR(IF(AND($V442<=Z$1,$W442>=Z$1),INDEX(Reliability!E$23:E$50,MATCH($T442,Reliability!$C$23:$C$50,0)),0),0)*$H442*$X442*$Y442),$D442)*$R442","v":0},{"$f":"MIN((IFERROR(IF(AND($V442<=AA$1,$W442>=AA$1),INDEX(Reliability!F$23:F$50,MATCH($S442,Reliability!$C$23:$C$50,0)),0),0)*IF($T442=\"n/a\",$D442*$Y442,$G442)+IFERROR(IF(AND($V442<=AA$1,$W442>=AA$1),INDEX(Reliability!F$23:F$50,MATCH($T442,Reliability!$C$23:$C$50,0)),0),0)*$H442*$X442*$Y442),$D442)*$R442","v":0},{"$f":"MIN((IFERROR(IF(AND($V442<=AB$1,$W442>=AB$1),INDEX(Reliability!G$23:G$50,MATCH($S442,Reliability!$C$23:$C$50,0)),0),0)*IF($T442=\"n/a\",$D442*$Y442,$G442)+IFERROR(IF(AND($V442<=AB$1,$W442>=AB$1),INDEX(Reliability!G$23:G$50,MATCH($T442,Reliability!$C$23:$C$50,0)),0),0)*$H442*$X442*$Y442),$D442)*$R442","v":0},{"$f":"MIN((IFERROR(IF(AND($V442<=AC$1,$W442>=AC$1),INDEX(Reliability!H$23:H$50,MATCH($S442,Reliability!$C$23:$C$50,0)),0),0)*IF($T442=\"n/a\",$D442*$Y442,$G442)+IFERROR(IF(AND($V442<=AC$1,$W442>=AC$1),INDEX(Reliability!H$23:H$50,MATCH($T442,Reliability!$C$23:$C$50,0)),0),0)*$H442*$X442*$Y442),$D442)*$R442","v":0},{"$f":"MIN((IFERROR(IF(AND($V442<=AD$1,$W442>=AD$1),INDEX(Reliability!I$23:I$50,MATCH($S442,Reliability!$C$23:$C$50,0)),0),0)*IF($T442=\"n/a\",$D442*$Y442,$G442)+IFERROR(IF(AND($V442<=AD$1,$W442>=AD$1),INDEX(Reliability!I$23:I$50,MATCH($T442,Reliability!$C$23:$C$50,0)),0),0)*$H442*$X442*$Y442),$D442)*$R442","v":0},{"$f":"MIN((IFERROR(IF(AND($V442<=AE$1,$W442>=AE$1),INDEX(Reliability!J$23:J$50,MATCH($S442,Reliability!$C$23:$C$50,0)),0),0)*IF($T442=\"n/a\",$D442*$Y442,$G442)+IFERROR(IF(AND($V442<=AE$1,$W442>=AE$1),INDEX(Reliability!J$23:J$50,MATCH($T442,Reliability!$C$23:$C$50,0)),0),0)*$H442*$X442*$Y442),$D442)*$R442","v":0},{"$f":"MIN((IFERROR(IF(AND($V442<=AF$1,$W442>=AF$1),INDEX(Reliability!K$23:K$50,MATCH($S442,Reliability!$C$23:$C$50,0)),0),0)*IF($T442=\"n/a\",$D442*$Y442,$G442)+IFERROR(IF(AND($V442<=AF$1,$W442>=AF$1),INDEX(Reliability!K$23:K$50,MATCH($T442,Reliability!$C$23:$C$50,0)),0),0)*$H442*$X442*$Y442),$D442)*$R442","v":0},{"$f":"MIN((IFERROR(IF(AND($V442<=AG$1,$W442>=AG$1),INDEX(Reliability!L$23:L$50,MATCH($S442,Reliability!$C$23:$C$50,0)),0),0)*IF($T442=\"n/a\",$D442*$Y442,$G442)+IFERROR(IF(AND($V442<=AG$1,$W442>=AG$1),INDEX(Reliability!L$23:L$50,MATCH($T442,Reliability!$C$23:$C$50,0)),0),0)*$H442*$X442*$Y442),$D442)*$R442","v":0},{"$f":"MIN((IFERROR(IF(AND($V442<=AH$1,$W442>=AH$1),INDEX(Reliability!M$23:M$50,MATCH($S442,Reliability!$C$23:$C$50,0)),0),0)*IF($T442=\"n/a\",$D442*$Y442,$G442)+IFERROR(IF(AND($V442<=AH$1,$W442>=AH$1),INDEX(Reliability!M$23:M$50,MATCH($T442,Reliability!$C$23:$C$50,0)),0),0)*$H442*$X442*$Y442),$D442)*$R442","v":0},{"$f":"MIN((IFERROR(IF(AND($V442<=AI$1,$W442>=AI$1),INDEX(Reliability!N$23:N$50,MATCH($S442,Reliability!$C$23:$C$50,0)),0),0)*IF($T442=\"n/a\",$D442*$Y442,$G442)+IFERROR(IF(AND($V442<=AI$1,$W442>=AI$1),INDEX(Reliability!N$23:N$50,MATCH($T442,Reliability!$C$23:$C$50,0)),0),0)*$H442*$X442*$Y442),$D442)*$R442","v":0},{"$f":"MIN((IFERROR(IF(AND($V442<=AJ$1,$W442>=AJ$1),INDEX(Reliability!O$23:O$50,MATCH($S442,Reliability!$C$23:$C$50,0)),0),0)*IF($T442=\"n/a\",$D442*$Y442,$G442)+IFERROR(IF(AND($V442<=AJ$1,$W442>=AJ$1),INDEX(Reliability!O$23:O$50,MATCH($T442,Reliability!$C$23:$C$50,0)),0),0)*$H442*$X442*$Y442),$D442)*$R442","v":0},{"$f":"MIN((IFERROR(IF(AND($V442<=AK$1,$W442>=AK$1),INDEX(Reliability!P$23:P$50,MATCH($S442,Reliability!$C$23:$C$50,0)),0),0)*IF($T442=\"n/a\",$D442*$Y442,$G442)+IFERROR(IF(AND($V442<=AK$1,$W442>=AK$1),INDEX(Reliability!P$23:P$50,MATCH($T442,Reliability!$C$23:$C$50,0)),0),0)*$H442*$X442*$Y442),$D442)*$R442","v":0}]
[null,{"$f":"unique_contracts!B444","v":0},{"$f":"unique_contracts!D444","v":0},{"$f":"unique_contracts!J444","v":0},{"$f":"unique_contracts!M444","v":0},{"$f":"unique_contracts!N444","v":0},{"$f":"unique_contracts!P444","v":0},{"$f":"unique_contracts!R444","v":0},{"$f":"unique_contracts!V444","v":0},{"$f":"unique_contracts!AB444","v":0},{"$f":"unique_contracts!AM444","v":0},{"$f":"unique_contracts!AN444","v":0},{"$f":"unique_contracts!AO444","v":0},{"$f":"unique_contracts!AP444","v":0},{"$f":"unique_contracts!AQ444","v":0},{"$f":"unique_contracts!AR444","v":0},{"$f":"unique_contracts!BP444","v":0},0,{"$f":"IFERROR(IF(AND(I443>0,E443=\"NotHybrid\"),_xlfn.CONCAT(MAX(MIN(ROUNDDOWN(I443/D443,0),8),4),INDEX(resources!$G:$G,MATCH(B443,resources!$A:$A,0))),INDEX(resources!$G:$G,MATCH(B443,resources!$A:$A,0))),\"n/a\")","v":"n/a"},"n/a","n/a",0,0,1,1,{"$f":"MIN((IFERROR(IF(AND($V443<=Z$1,$W443>=Z$1),INDEX(Reliability!E$23:E$50,MATCH($S443,Reliability!$C$23:$C$50,0)),0),0)*IF($T443=\"n/a\",$D443*$Y443,$G443)+IFERROR(IF(AND($V443<=Z$1,$W443>=Z$1),INDEX(Reliability!E$23:E$50,MATCH($T443,Reliability!$C$23:$C$50,0)),0),0)*$H443*$X443*$Y443),$D443)*$R443","v":0},{"$f":"MIN((IFERROR(IF(AND($V443<=AA$1,$W443>=AA$1),INDEX(Reliability!F$23:F$50,MATCH($S443,Reliability!$C$23:$C$50,0)),0),0)*IF($T443=\"n/a\",$D443*$Y443,$G443)+IFERROR(IF(AND($V443<=AA$1,$W443>=AA$1),INDEX(Reliability!F$23:F$50,MATCH($T443,Reliability!$C$23:$C$50,0)),0),0)*$H443*$X443*$Y443),$D443)*$R443","v":0},{"$f":"MIN((IFERROR(IF(AND($V443<=AB$1,$W443>=AB$1),INDEX(Reliability!G$23:G$50,MATCH($S443,Reliability!$C$23:$C$50,0)),0),0)*IF($T443=\"n/a\",$D443*$Y443,$G443)+IFERROR(IF(AND($V443<=AB$1,$W443>=AB$1),INDEX(Reliability!G$23:G$50,MATCH($T443,Reliability!$C$23:$C$50,0)),0),0)*$H443*$X443*$Y443),$D443)*$R443","v":0},{"$f":"MIN((IFERROR(IF(AND($V443<=AC$1,$W443>=AC$1),INDEX(Reliability!H$23:H$50,MATCH($S443,Reliability!$C$23:$C$50,0)),0),0)*IF($T443=\"n/a\",$D443*$Y443,$G443)+IFERROR(IF(AND($V443<=AC$1,$W443>=AC$1),INDEX(Reliability!H$23:H$50,MATCH($T443,Reliability!$C$23:$C$50,0)),0),0)*$H443*$X443*$Y443),$D443)*$R443","v":0},{"$f":"MIN((IFERROR(IF(AND($V443<=AD$1,$W443>=AD$1),INDEX(Reliability!I$23:I$50,MATCH($S443,Reliability!$C$23:$C$50,0)),0),0)*IF($T443=\"n/a\",$D443*$Y443,$G443)+IFERROR(IF(AND($V443<=AD$1,$W443>=AD$1),INDEX(Reliability!I$23:I$50,MATCH($T443,Reliability!$C$23:$C$50,0)),0),0)*$H443*$X443*$Y443),$D443)*$R443","v":0},{"$f":"MIN((IFERROR(IF(AND($V443<=AE$1,$W443>=AE$1),INDEX(Reliability!J$23:J$50,MATCH($S443,Reliability!$C$23:$C$50,0)),0),0)*IF($T443=\"n/a\",$D443*$Y443,$G443)+IFERROR(IF(AND($V443<=AE$1,$W443>=AE$1),INDEX(Reliability!J$23:J$50,MATCH($T443,Reliability!$C$23:$C$50,0)),0),0)*$H443*$X443*$Y443),$D443)*$R443","v":0},{"$f":"MIN((IFERROR(IF(AND($V443<=AF$1,$W443>=AF$1),INDEX(Reliability!K$23:K$50,MATCH($S443,Reliability!$C$23:$C$50,0)),0),0)*IF($T443=\"n/a\",$D443*$Y443,$G443)+IFERROR(IF(AND($V443<=AF$1,$W443>=AF$1),INDEX(Reliability!K$23:K$50,MATCH($T443,Reliability!$C$23:$C$50,0)),0),0)*$H443*$X443*$Y443),$D443)*$R443","v":0},{"$f":"MIN((IFERROR(IF(AND($V443<=AG$1,$W443>=AG$1),INDEX(Reliability!L$23:L$50,MATCH($S443,Reliability!$C$23:$C$50,0)),0),0)*IF($T443=\"n/a\",$D443*$Y443,$G443)+IFERROR(IF(AND($V443<=AG$1,$W443>=AG$1),INDEX(Reliability!L$23:L$50,MATCH($T443,Reliability!$C$23:$C$50,0)),0),0)*$H443*$X443*$Y443),$D443)*$R443","v":0},{"$f":"MIN((IFERROR(IF(AND($V443<=AH$1,$W443>=AH$1),INDEX(Reliability!M$23:M$50,MATCH($S443,Reliability!$C$23:$C$50,0)),0),0)*IF($T443=\"n/a\",$D443*$Y443,$G443)+IFERROR(IF(AND($V443<=AH$1,$W443>=AH$1),INDEX(Reliability!M$23:M$50,MATCH($T443,Reliability!$C$23:$C$50,0)),0),0)*$H443*$X443*$Y443),$D443)*$R443","v":0},{"$f":"MIN((IFERROR(IF(AND($V443<=AI$1,$W443>=AI$1),INDEX(Reliability!N$23:N$50,MATCH($S443,Reliability!$C$23:$C$50,0)),0),0)*IF($T443=\"n/a\",$D443*$Y443,$G443)+IFERROR(IF(AND($V443<=AI$1,$W443>=AI$1),INDEX(Reliability!N$23:N$50,MATCH($T443,Reliability!$C$23:$C$50,0)),0),0)*$H443*$X443*$Y443),$D443)*$R443","v":0},{"$f":"MIN((IFERROR(IF(AND($V443<=AJ$1,$W443>=AJ$1),INDEX(Reliability!O$23:O$50,MATCH($S443,Reliability!$C$23:$C$50,0)),0),0)*IF($T443=\"n/a\",$D443*$Y443,$G443)+IFERROR(IF(AND($V443<=AJ$1,$W443>=AJ$1),INDEX(Reliability!O$23:O$50,MATCH($T443,Reliability!$C$23:$C$50,0)),0),0)*$H443*$X443*$Y443),$D443)*$R443","v":0},{"$f":"MIN((IFERROR(IF(AND($V443<=AK$1,$W443>=AK$1),INDEX(Reliability!P$23:P$50,MATCH($S443,Reliability!$C$23:$C$50,0)),0),0)*IF($T443=\"n/a\",$D443*$Y443,$G443)+IFERROR(IF(AND($V443<=AK$1,$W443>=AK$1),INDEX(Reliability!P$23:P$50,MATCH($T443,Reliability!$C$23:$C$50,0)),0),0)*$H443*$X443*$Y443),$D443)*$R443","v":0}]
[null,{"$f":"unique_contracts!B445","v":0},{"$f":"unique_contracts!D445","v":0},{"$f":"unique_contracts!J445","v":0},{"$f":"unique_contracts!M445","v":0},{"$f":"unique_contracts!N445","v":0},{"$f":"unique_contracts!P445","v":0},{"$f":"unique_contracts!R445","v":0},{"$f":"unique_contracts!V445","v":0},{"$f":"unique_contracts!AB445","v":0},{"$f":"unique_contracts!AM445","v":0},{"$f":"unique_contracts!AN445","v":0},{"$f":"unique_contracts!AO445","v":0},{"$f":"unique_contracts!AP445","v":0},{"$f":"unique_contracts!AQ445","v":0},{"$f":"unique_contracts!AR445","v":0},{"$f":"unique_contracts!BP445","v":0},0,{"$f":"IFERROR(IF(AND(I444>0,E444=\"NotHybrid\"),_xlfn.CONCAT(MAX(MIN(ROUNDDOWN(I444/D444,0),8),4),INDEX(resources!$G:$G,MATCH(B444,resources!$A:$A,0))),INDEX(resources!$G:$G,MATCH(B444,resources!$A:$A,0))),\"n/a\")","v":"n/a"},"n/a","n/a",0,0,1,1,{"$f":"MIN((IFERROR(IF(AND($V444<=Z$1,$W444>=Z$1),INDEX(Reliability!E$23:E$50,MATCH($S444,Reliability!$C$23:$C$50,0)),0),0)*IF($T444=\"n/a\",$D444*$Y444,$G444)+IFERROR(IF(AND($V444<=Z$1,$W444>=Z$1),INDEX(Reliability!E$23:E$50,MATCH($T444,Reliability!$C$23:$C$50,0)),0),0)*$H444*$X444*$Y444),$D444)*$R444","v":0},{"$f":"MIN((IFERROR(IF(AND($V444<=AA$1,$W444>=AA$1),INDEX(Reliability!F$23:F$50,MATCH($S444,Reliability!$C$23:$C$50,0)),0),0)*IF($T444=\"n/a\",$D444*$Y444,$G444)+IFERROR(IF(AND($V444<=AA$1,$W444>=AA$1),INDEX(Reliability!F$23:F$50,MATCH($T444,Reliability!$C$23:$C$50,0)),0),0)*$H444*$X444*$Y444),$D444)*$R444","v":0},{"$f":"MIN((IFERROR(IF(AND($V444<=AB$1,$W444>=AB$1),INDEX(Reliability!G$23:G$50,MATCH($S444,Reliability!$C$23:$C$50,0)),0),0)*IF($T444=\"n/a\",$D444*$Y444,$G444)+IFERROR(IF(AND($V444<=AB$1,$W444>=AB$1),INDEX(Reliability!G$23:G$50,MATCH($T444,Reliability!$C$23:$C$50,0)),0),0)*$H444*$X444*$Y444),$D444)*$R444","v":0},{"$f":"MIN((IFERROR(IF(AND($V444<=AC$1,$W444>=AC$1),INDEX(Reliability!H$23:H$50,MATCH($S444,Reliability!$C$23:$C$50,0)),0),0)*IF($T444=\"n/a\",$D444*$Y444,$G444)+IFERROR(IF(AND($V444<=AC$1,$W444>=AC$1),INDEX(Reliability!H$23:H$50,MATCH($T444,Reliability!$C$23:$C$50,0)),0),0)*$H444*$X444*$Y444),$D444)*$R444","v":0},{"$f":"MIN((IFERROR(IF(AND($V444<=AD$1,$W444>=AD$1),INDEX(Reliability!I$23:I$50,MATCH($S444,Reliability!$C$23:$C$50,0)),0),0)*IF($T444=\"n/a\",$D444*$Y444,$G444)+IFERROR(IF(AND($V444<=AD$1,$W444>=AD$1),INDEX(Reliability!I$23:I$50,MATCH($T444,Reliability!$C$23:$C$50,0)),0),0)*$H444*$X444*$Y444),$D444)*$R444","v":0},{"$f":"MIN((IFERROR(IF(AND($V444<=AE$1,$W444>=AE$1),INDEX(Reliability!J$23:J$50,MATCH($S444,Reliability!$C$23:$C$50,0)),0),0)*IF($T444=\"n/a\",$D444*$Y444,$G444)+IFERROR(IF(AND($V444<=AE$1,$W444>=AE$1),INDEX(Reliability!J$23:J$50,MATCH($T444,Reliability!$C$23:$C$50,0)),0),0)*$H444*$X444*$Y444),$D444)*$R444","v":0},{"$f":"MIN((IFERROR(IF(AND($V444<=AF$1,$W444>=AF$1),INDEX(Reliability!K$23:K$50,MATCH($S444,Reliability!$C$23:$C$50,0)),0),0)*IF($T444=\"n/a\",$D444*$Y444,$G444)+IFERROR(IF(AND($V444<=AF$1,$W444>=AF$1),INDEX(Reliability!K$23:K$50,MATCH($T444,Reliability!$C$23:$C$50,0)),0),0)*$H444*$X444*$Y444),$D444)*$R444","v":0},{"$f":"MIN((IFERROR(IF(AND($V444<=AG$1,$W444>=AG$1),INDEX(Reliability!L$23:L$50,MATCH($S444,Reliability!$C$23:$C$50,0)),0),0)*IF($T444=\"n/a\",$D444*$Y444,$G444)+IFERROR(IF(AND($V444<=AG$1,$W444>=AG$1),INDEX(Reliability!L$23:L$50,MATCH($T444,Reliability!$C$23:$C$50,0)),0),0)*$H444*$X444*$Y444),$D444)*$R444","v":0},{"$f":"MIN((IFERROR(IF(AND($V444<=AH$1,$W444>=AH$1),INDEX(Reliability!M$23:M$50,MATCH($S444,Reliability!$C$23:$C$50,0)),0),0)*IF($T444=\"n/a\",$D444*$Y444,$G444)+IFERROR(IF(AND($V444<=AH$1,$W444>=AH$1),INDEX(Reliability!M$23:M$50,MATCH($T444,Reliability!$C$23:$C$50,0)),0),0)*$H444*$X444*$Y444),$D444)*$R444","v":0},{"$f":"MIN((IFERROR(IF(AND($V444<=AI$1,$W444>=AI$1),INDEX(Reliability!N$23:N$50,MATCH($S444,Reliability!$C$23:$C$50,0)),0),0)*IF($T444=\"n/a\",$D444*$Y444,$G444)+IFERROR(IF(AND($V444<=AI$1,$W444>=AI$1),INDEX(Reliability!N$23:N$50,MATCH($T444,Reliability!$C$23:$C$50,0)),0),0)*$H444*$X444*$Y444),$D444)*$R444","v":0},{"$f":"MIN((IFERROR(IF(AND($V444<=AJ$1,$W444>=AJ$1),INDEX(Reliability!O$23:O$50,MATCH($S444,Reliability!$C$23:$C$50,0)),0),0)*IF($T444=\"n/a\",$D444*$Y444,$G444)+IFERROR(IF(AND($V444<=AJ$1,$W444>=AJ$1),INDEX(Reliability!O$23:O$50,MATCH($T444,Reliability!$C$23:$C$50,0)),0),0)*$H444*$X444*$Y444),$D444)*$R444","v":0},{"$f":"MIN((IFERROR(IF(AND($V444<=AK$1,$W444>=AK$1),INDEX(Reliability!P$23:P$50,MATCH($S444,Reliability!$C$23:$C$50,0)),0),0)*IF($T444=\"n/a\",$D444*$Y444,$G444)+IFERROR(IF(AND($V444<=AK$1,$W444>=AK$1),INDEX(Reliability!P$23:P$50,MATCH($T444,Reliability!$C$23:$C$50,0)),0),0)*$H444*$X444*$Y444),$D444)*$R444","v":0}]
[null,{"$f":"unique_contracts!B446","v":0},{"$f":"unique_contracts!D446","v":0},{"$f":"unique_contracts!J446","v":0},{"$f":"unique_contracts!M446","v":0},{"$f":"unique_contracts!N446","v":0},{"$f":"unique_contracts!P446","v":0},{"$f":"unique_contracts!R446","v":0},{"$f":"unique_contracts!V446","v":0},{"$f":"unique_contracts!AB446","v":0},{"$f":"unique_contracts!AM446","v":0},{"$f":"unique_contracts!AN446","v":0},{"$f":"unique_contracts!AO446","v":0},{"$f":"unique_contracts!AP446","v":0},{"$f":"unique_contracts!AQ446","v":0},{"$f":"unique_contracts!AR446","v":0},{"$f":"unique_contracts!BP446","v":0},0,{"$f":"IFERROR(IF(AND(I445>0,E445=\"NotHybrid\"),_xlfn.CONCAT(MAX(MIN(ROUNDDOWN(I445/D445,0),8),4),INDEX(resources!$G:$G,MATCH(B445,resources!$A:$A,0))),INDEX(resources!$G:$G,MATCH(B445,resources!$A:$A,0))),\"n/a\")","v":"n/a"},"n/a","n/a",0,0,1,1,{"$f":"MIN((IFERROR(IF(AND($V445<=Z$1,$W445>=Z$1),INDEX(Reliability!E$23:E$50,MATCH($S445,Reliability!$C$23:$C$50,0)),0),0)*IF($T445=\"n/a\",$D445*$Y445,$G445)+IFERROR(IF(AND($V445<=Z$1,$W445>=Z$1),INDEX(Reliability!E$23:E$50,MATCH($T445,Reliability!$C$23:$C$50,0)),0),0)*$H445*$X445*$Y445),$D445)*$R445","v":0},{"$f":"MIN((IFERROR(IF(AND($V445<=AA$1,$W445>=AA$1),INDEX(Reliability!F$23:F$50,MATCH($S445,Reliability!$C$23:$C$50,0)),0),0)*IF($T445=\"n/a\",$D445*$Y445,$G445)+IFERROR(IF(AND($V445<=AA$1,$W445>=AA$1),INDEX(Reliability!F$23:F$50,MATCH($T445,Reliability!$C$23:$C$50,0)),0),0)*$H445*$X445*$Y445),$D445)*$R445","v":0},{"$f":"MIN((IFERROR(IF(AND($V445<=AB$1,$W445>=AB$1),INDEX(Reliability!G$23:G$50,MATCH($S445,Reliability!$C$23:$C$50,0)),0),0)*IF($T445=\"n/a\",$D445*$Y445,$G445)+IFERROR(IF(AND($V445<=AB$1,$W445>=AB$1),INDEX(Reliability!G$23:G$50,MATCH($T445,Reliability!$C$23:$C$50,0)),0),0)*$H445*$X445*$Y445),$D445)*$R445","v":0},{"$f":"MIN((IFERROR(IF(AND($V445<=AC$1,$W445>=AC$1),INDEX(Reliability!H$23:H$50,MATCH($S445,Reliability!$C$23:$C$50,0)),0),0)*IF($T445=\"n/a\",$D445*$Y445,$G445)+IFERROR(IF(AND($V445<=AC$1,$W445>=AC$1),INDEX(Reliability!H$23:H$50,MATCH($T445,Reliability!$C$23:$C$50,0)),0),0)*$H445*$X445*$Y445),$D445)*$R445","v":0},{"$f":"MIN((IFERROR(IF(AND($V445<=AD$1,$W445>=AD$1),INDEX(Reliability!I$23:I$50,MATCH($S445,Reliability!$C$23:$C$50,0)),0),0)*IF($T445=\"n/a\",$D445*$Y445,$G445)+IFERROR(IF(AND($V445<=AD$1,$W445>=AD$1),INDEX(Reliability!I$23:I$50,MATCH($T445,Reliability!$C$23:$C$50,0)),0),0)*$H445*$X445*$Y445),$D445)*$R445","v":0},{"$f":"MIN((IFERROR(IF(AND($V445<=AE$1,$W445>=AE$1),INDEX(Reliability!J$23:J$50,MATCH($S445,Reliability!$C$23:$C$50,0)),0),0)*IF($T445=\"n/a\",$D445*$Y445,$G445)+IFERROR(IF(AND($V445<=AE$1,$W445>=AE$1),INDEX(Reliability!J$23:J$50,MATCH($T445,Reliability!$C$23:$C$50,0)),0),0)*$H445*$X445*$Y445),$D445)*$R445","v":0},{"$f":"MIN((IFERROR(IF(AND($V445<=AF$1,$W445>=AF$1),INDEX(Reliability!K$23:K$50,MATCH($S445,Reliability!$C$23:$C$50,0)),0),0)*IF($T445=\"n/a\",$D445*$Y445,$G445)+IFERROR(IF(AND($V445<=AF$1,$W445>=AF$1),INDEX(Reliability!K$23:K$50,MATCH($T445,Reliability!$C$23:$C$50,0)),0),0)*$H445*$X445*$Y445),$D445)*$R445","v":0},{"$f":"MIN((IFERROR(IF(AND($V445<=AG$1,$W445>=AG$1),INDEX(Reliability!L$23:L$50,MATCH($S445,Reliability!$C$23:$C$50,0)),0),0)*IF($T445=\"n/a\",$D445*$Y445,$G445)+IFERROR(IF(AND($V445<=AG$1,$W445>=AG$1),INDEX(Reliability!L$23:L$50,MATCH($T445,Reliability!$C$23:$C$50,0)),0),0)*$H445*$X445*$Y445),$D445)*$R445","v":0},{"$f":"MIN((IFERROR(IF(AND($V445<=AH$1,$W445>=AH$1),INDEX(Reliability!M$23:M$50,MATCH($S445,Reliability!$C$23:$C$50,0)),0),0)*IF($T445=\"n/a\",$D445*$Y445,$G445)+IFERROR(IF(AND($V445<=AH$1,$W445>=AH$1),INDEX(Reliability!M$23:M$50,MATCH($T445,Reliability!$C$23:$C$50,0)),0),0)*$H445*$X445*$Y445),$D445)*$R445","v":0},{"$f":"MIN((IFERROR(IF(AND($V445<=AI$1,$W445>=AI$1),INDEX(Reliability!N$23:N$50,MATCH($S445,Reliability!$C$23:$C$50,0)),0),0)*IF($T445=\"n/a\",$D445*$Y445,$G445)+IFERROR(IF(AND($V445<=AI$1,$W445>=AI$1),INDEX(Reliability!N$23:N$50,MATCH($T445,Reliability!$C$23:$C$50,0)),0),0)*$H445*$X445*$Y445),$D445)*$R445","v":0},{"$f":"MIN((IFERROR(IF(AND($V445<=AJ$1,$W445>=AJ$1),INDEX(Reliability!O$23:O$50,MATCH($S445,Reliability!$C$23:$C$50,0)),0),0)*IF($T445=\"n/a\",$D445*$Y445,$G445)+IFERROR(IF(AND($V445<=AJ$1,$W445>=AJ$1),INDEX(Reliability!O$23:O$50,MATCH($T445,Reliability!$C$23:$C$50,0)),0),0)*$H445*$X445*$Y445),$D445)*$R445","v":0},{"$f":"MIN((IFERROR(IF(AND($V445<=AK$1,$W445>=AK$1),INDEX(Reliability!P$23:P$50,MATCH($S445,Reliability!$C$23:$C$50,0)),0),0)*IF($T445=\"n/a\",$D445*$Y445,$G445)+IFERROR(IF(AND($V445<=AK$1,$W445>=AK$1),INDEX(Reliability!P$23:P$50,MATCH($T445,Reliability!$C$23:$C$50,0)),0),0)*$H445*$X445*$Y445),$D445)*$R445","v":0}]
[null,{"$f":"unique_contracts!B447","v":0},{"$f":"unique_contracts!D447","v":0},{"$f":"unique_contracts!J447","v":0},{"$f":"unique_contracts!M447","v":0},{"$f":"unique_contracts!N447","v":0},{"$f":"unique_contracts!P447","v":0},{"$f":"unique_contracts!R447","v":0},{"$f":"unique_contracts!V447","v":0},{"$f":"unique_contracts!AB447","v":0},{"$f":"unique_contracts!AM447","v":0},{"$f":"unique_contracts!AN447","v":0},{"$f":"unique_contracts!AO447","v":0},{"$f":"unique_contracts!AP447","v":0},{"$f":"unique_contracts!AQ447","v":0},{"$f":"unique_contracts!AR447","v":0},{"$f":"unique_contracts!BP447","v":0},0,{"$f":"IFERROR(IF(AND(I446>0,E446=\"NotHybrid\"),_xlfn.CONCAT(MAX(MIN(ROUNDDOWN(I446/D446,0),8),4),INDEX(resources!$G:$G,MATCH(B446,resources!$A:$A,0))),INDEX(resources!$G:$G,MATCH(B446,resources!$A:$A,0))),\"n/a\")","v":"n/a"},"n/a","n/a",0,0,1,1,{"$f":"MIN((IFERROR(IF(AND($V446<=Z$1,$W446>=Z$1),INDEX(Reliability!E$23:E$50,MATCH($S446,Reliability!$C$23:$C$50,0)),0),0)*IF($T446=\"n/a\",$D446*$Y446,$G446)+IFERROR(IF(AND($V446<=Z$1,$W446>=Z$1),INDEX(Reliability!E$23:E$50,MATCH($T446,Reliability!$C$23:$C$50,0)),0),0)*$H446*$X446*$Y446),$D446)*$R446","v":0},{"$f":"MIN((IFERROR(IF(AND($V446<=AA$1,$W446>=AA$1),INDEX(Reliability!F$23:F$50,MATCH($S446,Reliability!$C$23:$C$50,0)),0),0)*IF($T446=\"n/a\",$D446*$Y446,$G446)+IFERROR(IF(AND($V446<=AA$1,$W446>=AA$1),INDEX(Reliability!F$23:F$50,MATCH($T446,Reliability!$C$23:$C$50,0)),0),0)*$H446*$X446*$Y446),$D446)*$R446","v":0},{"$f":"MIN((IFERROR(IF(AND($V446<=AB$1,$W446>=AB$1),INDEX(Reliability!G$23:G$50,MATCH($S446,Reliability!$C$23:$C$50,0)),0),0)*IF($T446=\"n/a\",$D446*$Y446,$G446)+IFERROR(IF(AND($V446<=AB$1,$W446>=AB$1),INDEX(Reliability!G$23:G$50,MATCH($T446,Reliability!$C$23:$C$50,0)),0),0)*$H446*$X446*$Y446),$D446)*$R446","v":0},{"$f":"MIN((IFERROR(IF(AND($V446<=AC$1,$W446>=AC$1),INDEX(Reliability!H$23:H$50,MATCH($S446,Reliability!$C$23:$C$50,0)),0),0)*IF($T446=\"n/a\",$D446*$Y446,$G446)+IFERROR(IF(AND($V446<=AC$1,$W446>=AC$1),INDEX(Reliability!H$23:H$50,MATCH($T446,Reliability!$C$23:$C$50,0)),0),0)*$H446*$X446*$Y446),$D446)*$R446","v":0},{"$f":"MIN((IFERROR(IF(AND($V446<=AD$1,$W446>=AD$1),INDEX(Reliability!I$23:I$50,MATCH($S446,Reliability!$C$23:$C$50,0)),0),0)*IF($T446=\"n/a\",$D446*$Y446,$G446)+IFERROR(IF(AND($V446<=AD$1,$W446>=AD$1),INDEX(Reliability!I$23:I$50,MATCH($T446,Reliability!$C$23:$C$50,0)),0),0)*$H446*$X446*$Y446),$D446)*$R446","v":0},{"$f":"MIN((IFERROR(IF(AND($V446<=AE$1,$W446>=AE$1),INDEX(Reliability!J$23:J$50,MATCH($S446,Reliability!$C$23:$C$50,0)),0),0)*IF($T446=\"n/a\",$D446*$Y446,$G446)+IFERROR(IF(AND($V446<=AE$1,$W446>=AE$1),INDEX(Reliability!J$23:J$50,MATCH($T446,Reliability!$C$23:$C$50,0)),0),0)*$H446*$X446*$Y446),$D446)*$R446","v":0},{"$f":"MIN((IFERROR(IF(AND($V446<=AF$1,$W446>=AF$1),INDEX(Reliability!K$23:K$50,MATCH($S446,Reliability!$C$23:$C$50,0)),0),0)*IF($T446=\"n/a\",$D446*$Y446,$G446)+IFERROR(IF(AND($V446<=AF$1,$W446>=AF$1),INDEX(Reliability!K$23:K$50,MATCH($T446,Reliability!$C$23:$C$50,0)),0),0)*$H446*$X446*$Y446),$D446)*$R446","v":0},{"$f":"MIN((IFERROR(IF(AND($V446<=AG$1,$W446>=AG$1),INDEX(Reliability!L$23:L$50,MATCH($S446,Reliability!$C$23:$C$50,0)),0),0)*IF($T446=\"n/a\",$D446*$Y446,$G446)+IFERROR(IF(AND($V446<=AG$1,$W446>=AG$1),INDEX(Reliability!L$23:L$50,MATCH($T446,Reliability!$C$23:$C$50,0)),0),0)*$H446*$X446*$Y446),$D446)*$R446","v":0},{"$f":"MIN((IFERROR(IF(AND($V446<=AH$1,$W446>=AH$1),INDEX(Reliability!M$23:M$50,MATCH($S446,Reliability!$C$23:$C$50,0)),0),0)*IF($T446=\"n/a\",$D446*$Y446,$G446)+IFERROR(IF(AND($V446<=AH$1,$W446>=AH$1),INDEX(Reliability!M$23:M$50,MATCH($T446,Reliability!$C$23:$C$50,0)),0),0)*$H446*$X446*$Y446),$D446)*$R446","v":0},{"$f":"MIN((IFERROR(IF(AND($V446<=AI$1,$W446>=AI$1),INDEX(Reliability!N$23:N$50,MATCH($S446,Reliability!$C$23:$C$50,0)),0),0)*IF($T446=\"n/a\",$D446*$Y446,$G446)+IFERROR(IF(AND($V446<=AI$1,$W446>=AI$1),INDEX(Reliability!N$23:N$50,MATCH($T446,Reliability!$C$23:$C$50,0)),0),0)*$H446*$X446*$Y446),$D446)*$R446","v":0},{"$f":"MIN((IFERROR(IF(AND($V446<=AJ$1,$W446>=AJ$1),INDEX(Reliability!O$23:O$50,MATCH($S446,Reliability!$C$23:$C$50,0)),0),0)*IF($T446=\"n/a\",$D446*$Y446,$G446)+IFERROR(IF(AND($V446<=AJ$1,$W446>=AJ$1),INDEX(Reliability!O$23:O$50,MATCH($T446,Reliability!$C$23:$C$50,0)),0),0)*$H446*$X446*$Y446),$D446)*$R446","v":0},{"$f":"MIN((IFERROR(IF(AND($V446<=AK$1,$W446>=AK$1),INDEX(Reliability!P$23:P$50,MATCH($S446,Reliability!$C$23:$C$50,0)),0),0)*IF($T446=\"n/a\",$D446*$Y446,$G446)+IFERROR(IF(AND($V446<=AK$1,$W446>=AK$1),INDEX(Reliability!P$23:P$50,MATCH($T446,Reliability!$C$23:$C$50,0)),0),0)*$H446*$X446*$Y446),$D446)*$R446","v":0}]
[null,{"$f":"unique_contracts!B448","v":0},{"$f":"unique_contracts!D448","v":0},{"$f":"unique_contracts!J448","v":0},{"$f":"unique_contracts!M448","v":0},{"$f":"unique_contracts!N448","v":0},{"$f":"unique_contracts!P448","v":0},{"$f":"unique_contracts!R448","v":0},{"$f":"unique_contracts!V448","v":0},{"$f":"unique_contracts!AB448","v":0},{"$f":"unique_contracts!AM448","v":0},{"$f":"unique_contracts!AN448","v":0},{"$f":"unique_contracts!AO448","v":0},{"$f":"unique_contracts!AP448","v":0},{"$f":"unique_contracts!AQ448","v":0},{"$f":"unique_contracts!AR448","v":0},{"$f":"unique_contracts!BP448","v":0},0,{"$f":"IFERROR(IF(AND(I447>0,E447=\"NotHybrid\"),_xlfn.CONCAT(MAX(MIN(ROUNDDOWN(I447/D447,0),8),4),INDEX(resources!$G:$G,MATCH(B447,resources!$A:$A,0))),INDEX(resources!$G:$G,MATCH(B447,resources!$A:$A,0))),\"n/a\")","v":"n/a"},"n/a","n/a",0,0,1,1,{"$f":"MIN((IFERROR(IF(AND($V447<=Z$1,$W447>=Z$1),INDEX(Reliability!E$23:E$50,MATCH($S447,Reliability!$C$23:$C$50,0)),0),0)*IF($T447=\"n/a\",$D447*$Y447,$G447)+IFERROR(IF(AND($V447<=Z$1,$W447>=Z$1),INDEX(Reliability!E$23:E$50,MATCH($T447,Reliability!$C$23:$C$50,0)),0),0)*$H447*$X447*$Y447),$D447)*$R447","v":0},{"$f":"MIN((IFERROR(IF(AND($V447<=AA$1,$W447>=AA$1),INDEX(Reliability!F$23:F$50,MATCH($S447,Reliability!$C$23:$C$50,0)),0),0)*IF($T447=\"n/a\",$D447*$Y447,$G447)+IFERROR(IF(AND($V447<=AA$1,$W447>=AA$1),INDEX(Reliability!F$23:F$50,MATCH($T447,Reliability!$C$23:$C$50,0)),0),0)*$H447*$X447*$Y447),$D447)*$R447","v":0},{"$f":"MIN((IFERROR(IF(AND($V447<=AB$1,$W447>=AB$1),INDEX(Reliability!G$23:G$50,MATCH($S447,Reliability!$C$23:$C$50,0)),0),0)*IF($T447=\"n/a\",$D447*$Y447,$G447)+IFERROR(IF(AND($V447<=AB$1,$W447>=AB$1),INDEX(Reliability!G$23:G$50,MATCH($T447,Reliability!$C$23:$C$50,0)),0),0)*$H447*$X447*$Y447),$D447)*$R447","v":0},{"$f":"MIN((IFERROR(IF(AND($V447<=AC$1,$W447>=AC$1),INDEX(Reliability!H$23:H$50,MATCH($S447,Reliability!$C$23:$C$50,0)),0),0)*IF($T447=\"n/a\",$D447*$Y447,$G447)+IFERROR(IF(AND($V447<=AC$1,$W447>=AC$1),INDEX(Reliability!H$23:H$50,MATCH($T447,Reliability!$C$23:$C$50,0)),0),0)*$H447*$X447*$Y447),$D447)*$R447","v":0},{"$f":"MIN((IFERROR(IF(AND($V447<=AD$1,$W447>=AD$1),INDEX(Reliability!I$23:I$50,MATCH($S447,Reliability!$C$23:$C$50,0)),0),0)*IF($T447=\"n/a\",$D447*$Y447,$G447)+IFERROR(IF(AND($V447<=AD$1,$W447>=AD$1),INDEX(Reliability!I$23:I$50,MATCH($T447,Reliability!$C$23:$C$50,0)),0),0)*$H447*$X447*$Y447),$D447)*$R447","v":0},{"$f":"MIN((IFERROR(IF(AND($V447<=AE$1,$W447>=AE$1),INDEX(Reliability!J$23:J$50,MATCH($S447,Reliability!$C$23:$C$50,0)),0),0)*IF($T447=\"n/a\",$D447*$Y447,$G447)+IFERROR(IF(AND($V447<=AE$1,$W447>=AE$1),INDEX(Reliability!J$23:J$50,MATCH($T447,Reliability!$C$23:$C$50,0)),0),0)*$H447*$X447*$Y447),$D447)*$R447","v":0},{"$f":"MIN((IFERROR(IF(AND($V447<=AF$1,$W447>=AF$1),INDEX(Reliability!K$23:K$50,MATCH($S447,Reliability!$C$23:$C$50,0)),0),0)*IF($T447=\"n/a\",$D447*$Y447,$G447)+IFERROR(IF(AND($V447<=AF$1,$W447>=AF$1),INDEX(Reliability!K$23:K$50,MATCH($T447,Reliability!$C$23:$C$50,0)),0),0)*$H447*$X447*$Y447),$D447)*$R447","v":0},{"$f":"MIN((IFERROR(IF(AND($V447<=AG$1,$W447>=AG$1),INDEX(Reliability!L$23:L$50,MATCH($S447,Reliability!$C$23:$C$50,0)),0),0)*IF($T447=\"n/a\",$D447*$Y447,$G447)+IFERROR(IF(AND($V447<=AG$1,$W447>=AG$1),INDEX(Reliability!L$23:L$50,MATCH($T447,Reliability!$C$23:$C$50,0)),0),0)*$H447*$X447*$Y447),$D447)*$R447","v":0},{"$f":"MIN((IFERROR(IF(AND($V447<=AH$1,$W447>=AH$1),INDEX(Reliability!M$23:M$50,MATCH($S447,Reliability!$C$23:$C$50,0)),0),0)*IF($T447=\"n/a\",$D447*$Y447,$G447)+IFERROR(IF(AND($V447<=AH$1,$W447>=AH$1),INDEX(Reliability!M$23:M$50,MATCH($T447,Reliability!$C$23:$C$50,0)),0),0)*$H447*$X447*$Y447),$D447)*$R447","v":0},{"$f":"MIN((IFERROR(IF(AND($V447<=AI$1,$W447>=AI$1),INDEX(Reliability!N$23:N$50,MATCH($S447,Reliability!$C$23:$C$50,0)),0),0)*IF($T447=\"n/a\",$D447*$Y447,$G447)+IFERROR(IF(AND($V447<=AI$1,$W447>=AI$1),INDEX(Reliability!N$23:N$50,MATCH($T447,Reliability!$C$23:$C$50,0)),0),0)*$H447*$X447*$Y447),$D447)*$R447","v":0},{"$f":"MIN((IFERROR(IF(AND($V447<=AJ$1,$W447>=AJ$1),INDEX(Reliability!O$23:O$50,MATCH($S447,Reliability!$C$23:$C$50,0)),0),0)*IF($T447=\"n/a\",$D447*$Y447,$G447)+IFERROR(IF(AND($V447<=AJ$1,$W447>=AJ$1),INDEX(Reliability!O$23:O$50,MATCH($T447,Reliability!$C$23:$C$50,0)),0),0)*$H447*$X447*$Y447),$D447)*$R447","v":0},{"$f":"MIN((IFERROR(IF(AND($V447<=AK$1,$W447>=AK$1),INDEX(Reliability!P$23:P$50,MATCH($S447,Reliability!$C$23:$C$50,0)),0),0)*IF($T447=\"n/a\",$D447*$Y447,$G447)+IFERROR(IF(AND($V447<=AK$1,$W447>=AK$1),INDEX(Reliability!P$23:P$50,MATCH($T447,Reliability!$C$23:$C$50,0)),0),0)*$H447*$X447*$Y447),$D447)*$R447","v":0}]
[null,{"$f":"unique_contracts!B449","v":0},{"$f":"unique_contracts!D449","v":0},{"$f":"unique_contracts!J449","v":0},{"$f":"unique_contracts!M449","v":0},{"$f":"unique_contracts!N449","v":0},{"$f":"unique_contracts!P449","v":0},{"$f":"unique_contracts!R449","v":0},{"$f":"unique_contracts!V449","v":0},{"$f":"unique_contracts!AB449","v":0},{"$f":"unique_contracts!AM449","v":0},{"$f":"unique_contracts!AN449","v":0},{"$f":"unique_contracts!AO449","v":0},{"$f":"unique_contracts!AP449","v":0},{"$f":"unique_contracts!AQ449","v":0},{"$f":"unique_contracts!AR449","v":0},{"$f":"unique_contracts!BP449","v":0},0,{"$f":"IFERROR(IF(AND(I448>0,E448=\"NotHybrid\"),_xlfn.CONCAT(MAX(MIN(ROUNDDOWN(I448/D448,0),8),4),INDEX(resources!$G:$G,MATCH(B448,resources!$A:$A,0))),INDEX(resources!$G:$G,MATCH(B448,resources!$A:$A,0))),\"n/a\")","v":"n/a"},"n/a","n/a",0,0,1,1,{"$f":"MIN((IFERROR(IF(AND($V448<=Z$1,$W448>=Z$1),INDEX(Reliability!E$23:E$50,MATCH($S448,Reliability!$C$23:$C$50,0)),0),0)*IF($T448=\"n/a\",$D448*$Y448,$G448)+IFERROR(IF(AND($V448<=Z$1,$W448>=Z$1),INDEX(Reliability!E$23:E$50,MATCH($T448,Reliability!$C$23:$C$50,0)),0),0)*$H448*$X448*$Y448),$D448)*$R448","v":0},{"$f":"MIN((IFERROR(IF(AND($V448<=AA$1,$W448>=AA$1),INDEX(Reliability!F$23:F$50,MATCH($S448,Reliability!$C$23:$C$50,0)),0),0)*IF($T448=\"n/a\",$D448*$Y448,$G448)+IFERROR(IF(AND($V448<=AA$1,$W448>=AA$1),INDEX(Reliability!F$23:F$50,MATCH($T448,Reliability!$C$23:$C$50,0)),0),0)*$H448*$X448*$Y448),$D448)*$R448","v":0},{"$f":"MIN((IFERROR(IF(AND($V448<=AB$1,$W448>=AB$1),INDEX(Reliability!G$23:G$50,MATCH($S448,Reliability!$C$23:$C$50,0)),0),0)*IF($T448=\"n/a\",$D448*$Y448,$G448)+IFERROR(IF(AND($V448<=AB$1,$W448>=AB$1),INDEX(Reliability!G$23:G$50,MATCH($T448,Reliability!$C$23:$C$50,0)),0),0)*$H448*$X448*$Y448),$D448)*$R448","v":0},{"$f":"MIN((IFERROR(IF(AND($V448<=AC$1,$W448>=AC$1),INDEX(Reliability!H$23:H$50,MATCH($S448,Reliability!$C$23:$C$50,0)),0),0)*IF($T448=\"n/a\",$D448*$Y448,$G448)+IFERROR(IF(AND($V448<=AC$1,$W448>=AC$1),INDEX(Reliability!H$23:H$50,MATCH($T448,Reliability!$C$23:$C$50,0)),0),0)*$H448*$X448*$Y448),$D448)*$R448","v":0},{"$f":"MIN((IFERROR(IF(AND($V448<=AD$1,$W448>=AD$1),INDEX(Reliability!I$23:I$50,MATCH($S448,Reliability!$C$23:$C$50,0)),0),0)*IF($T448=\"n/a\",$D448*$Y448,$G448)+IFERROR(IF(AND($V448<=AD$1,$W448>=AD$1),INDEX(Reliability!I$23:I$50,MATCH($T448,Reliability!$C$23:$C$50,0)),0),0)*$H448*$X448*$Y448),$D448)*$R448","v":0},{"$f":"MIN((IFERROR(IF(AND($V448<=AE$1,$W448>=AE$1),INDEX(Reliability!J$23:J$50,MATCH($S448,Reliability!$C$23:$C$50,0)),0),0)*IF($T448=\"n/a\",$D448*$Y448,$G448)+IFERROR(IF(AND($V448<=AE$1,$W448>=AE$1),INDEX(Reliability!J$23:J$50,MATCH($T448,Reliability!$C$23:$C$50,0)),0),0)*$H448*$X448*$Y448),$D448)*$R448","v":0},{"$f":"MIN((IFERROR(IF(AND($V448<=AF$1,$W448>=AF$1),INDEX(Reliability!K$23:K$50,MATCH($S448,Reliability!$C$23:$C$50,0)),0),0)*IF($T448=\"n/a\",$D448*$Y448,$G448)+IFERROR(IF(AND($V448<=AF$1,$W448>=AF$1),INDEX(Reliability!K$23:K$50,MATCH($T448,Reliability!$C$23:$C$50,0)),0),0)*$H448*$X448*$Y448),$D448)*$R448","v":0},{"$f":"MIN((IFERROR(IF(AND($V448<=AG$1,$W448>=AG$1),INDEX(Reliability!L$23:L$50,MATCH($S448,Reliability!$C$23:$C$50,0)),0),0)*IF($T448=\"n/a\",$D448*$Y448,$G448)+IFERROR(IF(AND($V448<=AG$1,$W448>=AG$1),INDEX(Reliability!L$23:L$50,MATCH($T448,Reliability!$C$23:$C$50,0)),0),0)*$H448*$X448*$Y448),$D448)*$R448","v":0},{"$f":"MIN((IFERROR(IF(AND($V448<=AH$1,$W448>=AH$1),INDEX(Reliability!M$23:M$50,MATCH($S448,Reliability!$C$23:$C$50,0)),0),0)*IF($T448=\"n/a\",$D448*$Y448,$G448)+IFERROR(IF(AND($V448<=AH$1,$W448>=AH$1),INDEX(Reliability!M$23:M$50,MATCH($T448,Reliability!$C$23:$C$50,0)),0),0)*$H448*$X448*$Y448),$D448)*$R448","v":0},{"$f":"MIN((IFERROR(IF(AND($V448<=AI$1,$W448>=AI$1),INDEX(Reliability!N$23:N$50,MATCH($S448,Reliability!$C$23:$C$50,0)),0),0)*IF($T448=\"n/a\",$D448*$Y448,$G448)+IFERROR(IF(AND($V448<=AI$1,$W448>=AI$1),INDEX(Reliability!N$23:N$50,MATCH($T448,Reliability!$C$23:$C$50,0)),0),0)*$H448*$X448*$Y448),$D448)*$R448","v":0},{"$f":"MIN((IFERROR(IF(AND($V448<=AJ$1,$W448>=AJ$1),INDEX(Reliability!O$23:O$50,MATCH($S448,Reliability!$C$23:$C$50,0)),0),0)*IF($T448=\"n/a\",$D448*$Y448,$G448)+IFERROR(IF(AND($V448<=AJ$1,$W448>=AJ$1),INDEX(Reliability!O$23:O$50,MATCH($T448,Reliability!$C$23:$C$50,0)),0),0)*$H448*$X448*$Y448),$D448)*$R448","v":0},{"$f":"MIN((IFERROR(IF(AND($V448<=AK$1,$W448>=AK$1),INDEX(Reliability!P$23:P$50,MATCH($S448,Reliability!$C$23:$C$50,0)),0),0)*IF($T448=\"n/a\",$D448*$Y448,$G448)+IFERROR(IF(AND($V448<=AK$1,$W448>=AK$1),INDEX(Reliability!P$23:P$50,MATCH($T448,Reliability!$C$23:$C$50,0)),0),0)*$H448*$X448*$Y448),$D448)*$R448","v":0}]
[null,{"$f":"unique_contracts!B450","v":0},{"$f":"unique_contracts!D450","v":0},{"$f":"unique_contracts!J450","v":0},{"$f":"unique_contracts!M450","v":0},{"$f":"unique_contracts!N450","v":0},{"$f":"unique_contracts!P450","v":0},{"$f":"unique_contracts!R450","v":0},{"$f":"unique_contracts!V450","v":0},{"$f":"unique_contracts!AB450","v":0},{"$f":"unique_contracts!AM450","v":0},{"$f":"unique_contracts!AN450","v":0},{"$f":"unique_contracts!AO450","v":0},{"$f":"unique_contracts!AP450","v":0},{"$f":"unique_contracts!AQ450","v":0},{"$f":"unique_contracts!AR450","v":0},{"$f":"unique_contracts!BP450","v":0},0,{"$f":"IFERROR(IF(AND(I449>0,E449=\"NotHybrid\"),_xlfn.CONCAT(MAX(MIN(ROUNDDOWN(I449/D449,0),8),4),INDEX(resources!$G:$G,MATCH(B449,resources!$A:$A,0))),INDEX(resources!$G:$G,MATCH(B449,resources!$A:$A,0))),\"n/a\")","v":"n/a"},"n/a","n/a",0,0,1,1,{"$f":"MIN((IFERROR(IF(AND($V449<=Z$1,$W449>=Z$1),INDEX(Reliability!E$23:E$50,MATCH($S449,Reliability!$C$23:$C$50,0)),0),0)*IF($T449=\"n/a\",$D449*$Y449,$G449)+IFERROR(IF(AND($V449<=Z$1,$W449>=Z$1),INDEX(Reliability!E$23:E$50,MATCH($T449,Reliability!$C$23:$C$50,0)),0),0)*$H449*$X449*$Y449),$D449)*$R449","v":0},{"$f":"MIN((IFERROR(IF(AND($V449<=AA$1,$W449>=AA$1),INDEX(Reliability!F$23:F$50,MATCH($S449,Reliability!$C$23:$C$50,0)),0),0)*IF($T449=\"n/a\",$D449*$Y449,$G449)+IFERROR(IF(AND($V449<=AA$1,$W449>=AA$1),INDEX(Reliability!F$23:F$50,MATCH($T449,Reliability!$C$23:$C$50,0)),0),0)*$H449*$X449*$Y449),$D449)*$R449","v":0},{"$f":"MIN((IFERROR(IF(AND($V449<=AB$1,$W449>=AB$1),INDEX(Reliability!G$23:G$50,MATCH($S449,Reliability!$C$23:$C$50,0)),0),0)*IF($T449=\"n/a\",$D449*$Y449,$G449)+IFERROR(IF(AND($V449<=AB$1,$W449>=AB$1),INDEX(Reliability!G$23:G$50,MATCH($T449,Reliability!$C$23:$C$50,0)),0),0)*$H449*$X449*$Y449),$D449)*$R449","v":0},{"$f":"MIN((IFERROR(IF(AND($V449<=AC$1,$W449>=AC$1),INDEX(Reliability!H$23:H$50,MATCH($S449,Reliability!$C$23:$C$50,0)),0),0)*IF($T449=\"n/a\",$D449*$Y449,$G449)+IFERROR(IF(AND($V449<=AC$1,$W449>=AC$1),INDEX(Reliability!H$23:H$50,MATCH($T449,Reliability!$C$23:$C$50,0)),0),0)*$H449*$X449*$Y449),$D449)*$R449","v":0},{"$f":"MIN((IFERROR(IF(AND($V449<=AD$1,$W449>=AD$1),INDEX(Reliability!I$23:I$50,MATCH($S449,Reliability!$C$23:$C$50,0)),0),0)*IF($T449=\"n/a\",$D449*$Y449,$G449)+IFERROR(IF(AND($V449<=AD$1,$W449>=AD$1),INDEX(Reliability!I$23:I$50,MATCH($T449,Reliability!$C$23:$C$50,0)),0),0)*$H449*$X449*$Y449),$D449)*$R449","v":0},{"$f":"MIN((IFERROR(IF(AND($V449<=AE$1,$W449>=AE$1),INDEX(Reliability!J$23:J$50,MATCH($S449,Reliability!$C$23:$C$50,0)),0),0)*IF($T449=\"n/a\",$D449*$Y449,$G449)+IFERROR(IF(AND($V449<=AE$1,$W449>=AE$1),INDEX(Reliability!J$23:J$50,MATCH($T449,Reliability!$C$23:$C$50,0)),0),0)*$H449*$X449*$Y449),$D449)*$R449","v":0},{"$f":"MIN((IFERROR(IF(AND($V449<=AF$1,$W449>=AF$1),INDEX(Reliability!K$23:K$50,MATCH($S449,Reliability!$C$23:$C$50,0)),0),0)*IF($T449=\"n/a\",$D449*$Y449,$G449)+IFERROR(IF(AND($V449<=AF$1,$W449>=AF$1),INDEX(Reliability!K$23:K$50,MATCH($T449,Reliability!$C$23:$C$50,0)),0),0)*$H449*$X449*$Y449),$D449)*$R449","v":0},{"$f":"MIN((IFERROR(IF(AND($V449<=AG$1,$W449>=AG$1),INDEX(Reliability!L$23:L$50,MATCH($S449,Reliability!$C$23:$C$50,0)),0),0)*IF($T449=\"n/a\",$D449*$Y449,$G449)+IFERROR(IF(AND($V449<=AG$1,$W449>=AG$1),INDEX(Reliability!L$23:L$50,MATCH($T449,Reliability!$C$23:$C$50,0)),0),0)*$H449*$X449*$Y449),$D449)*$R449","v":0},{"$f":"MIN((IFERROR(IF(AND($V449<=AH$1,$W449>=AH$1),INDEX(Reliability!M$23:M$50,MATCH($S449,Reliability!$C$23:$C$50,0)),0),0)*IF($T449=\"n/a\",$D449*$Y449,$G449)+IFERROR(IF(AND($V449<=AH$1,$W449>=AH$1),INDEX(Reliability!M$23:M$50,MATCH($T449,Reliability!$C$23:$C$50,0)),0),0)*$H449*$X449*$Y449),$D449)*$R449","v":0},{"$f":"MIN((IFERROR(IF(AND($V449<=AI$1,$W449>=AI$1),INDEX(Reliability!N$23:N$50,MATCH($S449,Reliability!$C$23:$C$50,0)),0),0)*IF($T449=\"n/a\",$D449*$Y449,$G449)+IFERROR(IF(AND($V449<=AI$1,$W449>=AI$1),INDEX(Reliability!N$23:N$50,MATCH($T449,Reliability!$C$23:$C$50,0)),0),0)*$H449*$X449*$Y449),$D449)*$R449","v":0},{"$f":"MIN((IFERROR(IF(AND($V449<=AJ$1,$W449>=AJ$1),INDEX(Reliability!O$23:O$50,MATCH($S449,Reliability!$C$23:$C$50,0)),0),0)*IF($T449=\"n/a\",$D449*$Y449,$G449)+IFERROR(IF(AND($V449<=AJ$1,$W449>=AJ$1),INDEX(Reliability!O$23:O$50,MATCH($T449,Reliability!$C$23:$C$50,0)),0),0)*$H449*$X449*$Y449),$D449)*$R449","v":0},{"$f":"MIN((IFERROR(IF(AND($V449<=AK$1,$W449>=AK$1),INDEX(Reliability!P$23:P$50,MATCH($S449,Reliability!$C$23:$C$50,0)),0),0)*IF($T449=\"n/a\",$D449*$Y449,$G449)+IFERROR(IF(AND($V449<=AK$1,$W449>=AK$1),INDEX(Reliability!P$23:P$50,MATCH($T449,Reliability!$C$23:$C$50,0)),0),0)*$H449*$X449*$Y449),$D449)*$R449","v":0}]
[null,{"$f":"unique_contracts!B451","v":0},{"$f":"unique_contracts!D451","v":0},{"$f":"unique_contracts!J451","v":0},{"$f":"unique_contracts!M451","v":0},{"$f":"unique_contracts!N451","v":0},{"$f":"unique_contracts!P451","v":0},{"$f":"unique_contracts!R451","v":0},{"$f":"unique_contracts!V451","v":0},{"$f":"unique_contracts!AB451","v":0},{"$f":"unique_contracts!AM451","v":0},{"$f":"unique_contracts!AN451","v":0},{"$f":"unique_contracts!AO451","v":0},{"$f":"unique_contracts!AP451","v":0},{"$f":"unique_contracts!AQ451","v":0},{"$f":"unique_contracts!AR451","v":0},{"$f":"unique_contracts!BP451","v":0},0,{"$f":"IFERROR(IF(AND(I450>0,E450=\"NotHybrid\"),_xlfn.CONCAT(MAX(MIN(ROUNDDOWN(I450/D450,0),8),4),INDEX(resources!$G:$G,MATCH(B450,resources!$A:$A,0))),INDEX(resources!$G:$G,MATCH(B450,resources!$A:$A,0))),\"n/a\")","v":"n/a"},"n/a","n/a",0,0,1,1,{"$f":"MIN((IFERROR(IF(AND($V450<=Z$1,$W450>=Z$1),INDEX(Reliability!E$23:E$50,MATCH($S450,Reliability!$C$23:$C$50,0)),0),0)*IF($T450=\"n/a\",$D450*$Y450,$G450)+IFERROR(IF(AND($V450<=Z$1,$W450>=Z$1),INDEX(Reliability!E$23:E$50,MATCH($T450,Reliability!$C$23:$C$50,0)),0),0)*$H450*$X450*$Y450),$D450)*$R450","v":0},{"$f":"MIN((IFERROR(IF(AND($V450<=AA$1,$W450>=AA$1),INDEX(Reliability!F$23:F$50,MATCH($S450,Reliability!$C$23:$C$50,0)),0),0)*IF($T450=\"n/a\",$D450*$Y450,$G450)+IFERROR(IF(AND($V450<=AA$1,$W450>=AA$1),INDEX(Reliability!F$23:F$50,MATCH($T450,Reliability!$C$23:$C$50,0)),0),0)*$H450*$X450*$Y450),$D450)*$R450","v":0},{"$f":"MIN((IFERROR(IF(AND($V450<=AB$1,$W450>=AB$1),INDEX(Reliability!G$23:G$50,MATCH($S450,Reliability!$C$23:$C$50,0)),0),0)*IF($T450=\"n/a\",$D450*$Y450,$G450)+IFERROR(IF(AND($V450<=AB$1,$W450>=AB$1),INDEX(Reliability!G$23:G$50,MATCH($T450,Reliability!$C$23:$C$50,0)),0),0)*$H450*$X450*$Y450),$D450)*$R450","v":0},{"$f":"MIN((IFERROR(IF(AND($V450<=AC$1,$W450>=AC$1),INDEX(Reliability!H$23:H$50,MATCH($S450,Reliability!$C$23:$C$50,0)),0),0)*IF($T450=\"n/a\",$D450*$Y450,$G450)+IFERROR(IF(AND($V450<=AC$1,$W450>=AC$1),INDEX(Reliability!H$23:H$50,MATCH($T450,Reliability!$C$23:$C$50,0)),0),0)*$H450*$X450*$Y450),$D450)*$R450","v":0},{"$f":"MIN((IFERROR(IF(AND($V450<=AD$1,$W450>=AD$1),INDEX(Reliability!I$23:I$50,MATCH($S450,Reliability!$C$23:$C$50,0)),0),0)*IF($T450=\"n/a\",$D450*$Y450,$G450)+IFERROR(IF(AND($V450<=AD$1,$W450>=AD$1),INDEX(Reliability!I$23:I$50,MATCH($T450,Reliability!$C$23:$C$50,0)),0),0)*$H450*$X450*$Y450),$D450)*$R450","v":0},{"$f":"MIN((IFERROR(IF(AND($V450<=AE$1,$W450>=AE$1),INDEX(Reliability!J$23:J$50,MATCH($S450,Reliability!$C$23:$C$50,0)),0),0)*IF($T450=\"n/a\",$D450*$Y450,$G450)+IFERROR(IF(AND($V450<=AE$1,$W450>=AE$1),INDEX(Reliability!J$23:J$50,MATCH($T450,Reliability!$C$23:$C$50,0)),0),0)*$H450*$X450*$Y450),$D450)*$R450","v":0},{"$f":"MIN((IFERROR(IF(AND($V450<=AF$1,$W450>=AF$1),INDEX(Reliability!K$23:K$50,MATCH($S450,Reliability!$C$23:$C$50,0)),0),0)*IF($T450=\"n/a\",$D450*$Y450,$G450)+IFERROR(IF(AND($V450<=AF$1,$W450>=AF$1),INDEX(Reliability!K$23:K$50,MATCH($T450,Reliability!$C$23:$C$50,0)),0),0)*$H450*$X450*$Y450),$D450)*$R450","v":0},{"$f":"MIN((IFERROR(IF(AND($V450<=AG$1,$W450>=AG$1),INDEX(Reliability!L$23:L$50,MATCH($S450,Reliability!$C$23:$C$50,0)),0),0)*IF($T450=\"n/a\",$D450*$Y450,$G450)+IFERROR(IF(AND($V450<=AG$1,$W450>=AG$1),INDEX(Reliability!L$23:L$50,MATCH($T450,Reliability!$C$23:$C$50,0)),0),0)*$H450*$X450*$Y450),$D450)*$R450","v":0},{"$f":"MIN((IFERROR(IF(AND($V450<=AH$1,$W450>=AH$1),INDEX(Reliability!M$23:M$50,MATCH($S450,Reliability!$C$23:$C$50,0)),0),0)*IF($T450=\"n/a\",$D450*$Y450,$G450)+IFERROR(IF(AND($V450<=AH$1,$W450>=AH$1),INDEX(Reliability!M$23:M$50,MATCH($T450,Reliability!$C$23:$C$50,0)),0),0)*$H450*$X450*$Y450),$D450)*$R450","v":0},{"$f":"MIN((IFERROR(IF(AND($V450<=AI$1,$W450>=AI$1),INDEX(Reliability!N$23:N$50,MATCH($S450,Reliability!$C$23:$C$50,0)),0),0)*IF($T450=\"n/a\",$D450*$Y450,$G450)+IFERROR(IF(AND($V450<=AI$1,$W450>=AI$1),INDEX(Reliability!N$23:N$50,MATCH($T450,Reliability!$C$23:$C$50,0)),0),0)*$H450*$X450*$Y450),$D450)*$R450","v":0},{"$f":"MIN((IFERROR(IF(AND($V450<=AJ$1,$W450>=AJ$1),INDEX(Reliability!O$23:O$50,MATCH($S450,Reliability!$C$23:$C$50,0)),0),0)*IF($T450=\"n/a\",$D450*$Y450,$G450)+IFERROR(IF(AND($V450<=AJ$1,$W450>=AJ$1),INDEX(Reliability!O$23:O$50,MATCH($T450,Reliability!$C$23:$C$50,0)),0),0)*$H450*$X450*$Y450),$D450)*$R450","v":0},{"$f":"MIN((IFERROR(IF(AND($V450<=AK$1,$W450>=AK$1),INDEX(Reliability!P$23:P$50,MATCH($S450,Reliability!$C$23:$C$50,0)),0),0)*IF($T450=\"n/a\",$D450*$Y450,$G450)+IFERROR(IF(AND($V450<=AK$1,$W450>=AK$1),INDEX(Reliability!P$23:P$50,MATCH($T450,Reliability!$C$23:$C$50,0)),0),0)*$H450*$X450*$Y450),$D450)*$R450","v":0}]
[null,{"$f":"unique_contracts!B452","v":0},{"$f":"unique_contracts!D452","v":0},{"$f":"unique_contracts!J452","v":0},{"$f":"unique_contracts!M452","v":0},{"$f":"unique_contracts!N452","v":0},{"$f":"unique_contracts!P452","v":0},{"$f":"unique_contracts!R452","v":0},{"$f":"unique_contracts!V452","v":0},{"$f":"unique_contracts!AB452","v":0},{"$f":"unique_contracts!AM452","v":0},{"$f":"unique_contracts!AN452","v":0},{"$f":"unique_contracts!AO452","v":0},{"$f":"unique_contracts!AP452","v":0},{"$f":"unique_contracts!AQ452","v":0},{"$f":"unique_contracts!AR452","v":0},{"$f":"unique_contracts!BP452","v":0},0,{"$f":"IFERROR(IF(AND(I451>0,E451=\"NotHybrid\"),_xlfn.CONCAT(MAX(MIN(ROUNDDOWN(I451/D451,0),8),4),INDEX(resources!$G:$G,MATCH(B451,resources!$A:$A,0))),INDEX(resources!$G:$G,MATCH(B451,resources!$A:$A,0))),\"n/a\")","v":"n/a"},"n/a","n/a",0,0,1,1,{"$f":"MIN((IFERROR(IF(AND($V451<=Z$1,$W451>=Z$1),INDEX(Reliability!E$23:E$50,MATCH($S451,Reliability!$C$23:$C$50,0)),0),0)*IF($T451=\"n/a\",$D451*$Y451,$G451)+IFERROR(IF(AND($V451<=Z$1,$W451>=Z$1),INDEX(Reliability!E$23:E$50,MATCH($T451,Reliability!$C$23:$C$50,0)),0),0)*$H451*$X451*$Y451),$D451)*$R451","v":0},{"$f":"MIN((IFERROR(IF(AND($V451<=AA$1,$W451>=AA$1),INDEX(Reliability!F$23:F$50,MATCH($S451,Reliability!$C$23:$C$50,0)),0),0)*IF($T451=\"n/a\",$D451*$Y451,$G451)+IFERROR(IF(AND($V451<=AA$1,$W451>=AA$1),INDEX(Reliability!F$23:F$50,MATCH($T451,Reliability!$C$23:$C$50,0)),0),0)*$H451*$X451*$Y451),$D451)*$R451","v":0},{"$f":"MIN((IFERROR(IF(AND($V451<=AB$1,$W451>=AB$1),INDEX(Reliability!G$23:G$50,MATCH($S451,Reliability!$C$23:$C$50,0)),0),0)*IF($T451=\"n/a\",$D451*$Y451,$G451)+IFERROR(IF(AND($V451<=AB$1,$W451>=AB$1),INDEX(Reliability!G$23:G$50,MATCH($T451,Reliability!$C$23:$C$50,0)),0),0)*$H451*$X451*$Y451),$D451)*$R451","v":0},{"$f":"MIN((IFERROR(IF(AND($V451<=AC$1,$W451>=AC$1),INDEX(Reliability!H$23:H$50,MATCH($S451,Reliability!$C$23:$C$50,0)),0),0)*IF($T451=\"n/a\",$D451*$Y451,$G451)+IFERROR(IF(AND($V451<=AC$1,$W451>=AC$1),INDEX(Reliability!H$23:H$50,MATCH($T451,Reliability!$C$23:$C$50,0)),0),0)*$H451*$X451*$Y451),$D451)*$R451","v":0},{"$f":"MIN((IFERROR(IF(AND($V451<=AD$1,$W451>=AD$1),INDEX(Reliability!I$23:I$50,MATCH($S451,Reliability!$C$23:$C$50,0)),0),0)*IF($T451=\"n/a\",$D451*$Y451,$G451)+IFERROR(IF(AND($V451<=AD$1,$W451>=AD$1),INDEX(Reliability!I$23:I$50,MATCH($T451,Reliability!$C$23:$C$50,0)),0),0)*$H451*$X451*$Y451),$D451)*$R451","v":0},{"$f":"MIN((IFERROR(IF(AND($V451<=AE$1,$W451>=AE$1),INDEX(Reliability!J$23:J$50,MATCH($S451,Reliability!$C$23:$C$50,0)),0),0)*IF($T451=\"n/a\",$D451*$Y451,$G451)+IFERROR(IF(AND($V451<=AE$1,$W451>=AE$1),INDEX(Reliability!J$23:J$50,MATCH($T451,Reliability!$C$23:$C$50,0)),0),0)*$H451*$X451*$Y451),$D451)*$R451","v":0},{"$f":"MIN((IFERROR(IF(AND($V451<=AF$1,$W451>=AF$1),INDEX(Reliability!K$23:K$50,MATCH($S451,Reliability!$C$23:$C$50,0)),0),0)*IF($T451=\"n/a\",$D451*$Y451,$G451)+IFERROR(IF(AND($V451<=AF$1,$W451>=AF$1),INDEX(Reliability!K$23:K$50,MATCH($T451,Reliability!$C$23:$C$50,0)),0),0)*$H451*$X451*$Y451),$D451)*$R451","v":0},{"$f":"MIN((IFERROR(IF(AND($V451<=AG$1,$W451>=AG$1),INDEX(Reliability!L$23:L$50,MATCH($S451,Reliability!$C$23:$C$50,0)),0),0)*IF($T451=\"n/a\",$D451*$Y451,$G451)+IFERROR(IF(AND($V451<=AG$1,$W451>=AG$1),INDEX(Reliability!L$23:L$50,MATCH($T451,Reliability!$C$23:$C$50,0)),0),0)*$H451*$X451*$Y451),$D451)*$R451","v":0},{"$f":"MIN((IFERROR(IF(AND($V451<=AH$1,$W451>=AH$1),INDEX(Reliability!M$23:M$50,MATCH($S451,Reliability!$C$23:$C$50,0)),0),0)*IF($T451=\"n/a\",$D451*$Y451,$G451)+IFERROR(IF(AND($V451<=AH$1,$W451>=AH$1),INDEX(Reliability!M$23:M$50,MATCH($T451,Reliability!$C$23:$C$50,0)),0),0)*$H451*$X451*$Y451),$D451)*$R451","v":0},{"$f":"MIN((IFERROR(IF(AND($V451<=AI$1,$W451>=AI$1),INDEX(Reliability!N$23:N$50,MATCH($S451,Reliability!$C$23:$C$50,0)),0),0)*IF($T451=\"n/a\",$D451*$Y451,$G451)+IFERROR(IF(AND($V451<=AI$1,$W451>=AI$1),INDEX(Reliability!N$23:N$50,MATCH($T451,Reliability!$C$23:$C$50,0)),0),0)*$H451*$X451*$Y451),$D451)*$R451","v":0},{"$f":"MIN((IFERROR(IF(AND($V451<=AJ$1,$W451>=AJ$1),INDEX(Reliability!O$23:O$50,MATCH($S451,Reliability!$C$23:$C$50,0)),0),0)*IF($T451=\"n/a\",$D451*$Y451,$G451)+IFERROR(IF(AND($V451<=AJ$1,$W451>=AJ$1),INDEX(Reliability!O$23:O$50,MATCH($T451,Reliability!$C$23:$C$50,0)),0),0)*$H451*$X451*$Y451),$D451)*$R451","v":0},{"$f":"MIN((IFERROR(IF(AND($V451<=AK$1,$W451>=AK$1),INDEX(Reliability!P$23:P$50,MATCH($S451,Reliability!$C$23:$C$50,0)),0),0)*IF($T451=\"n/a\",$D451*$Y451,$G451)+IFERROR(IF(AND($V451<=AK$1,$W451>=AK$1),INDEX(Reliability!P$23:P$50,MATCH($T451,Reliability!$C$23:$C$50,0)),0),0)*$H451*$X451*$Y451),$D451)*$R451","v":0}]
[null,{"$f":"unique_contracts!B453","v":0},{"$f":"unique_contracts!D453","v":0},{"$f":"unique_contracts!J453","v":0},{"$f":"unique_contracts!M453","v":0},{"$f":"unique_contracts!N453","v":0},{"$f":"unique_contracts!P453","v":0},{"$f":"unique_contracts!R453","v":0},{"$f":"unique_contracts!V453","v":0},{"$f":"unique_contracts!AB453","v":0},{"$f":"unique_contracts!AM453","v":0},{"$f":"unique_contracts!AN453","v":0},{"$f":"unique_contracts!AO453","v":0},{"$f":"unique_contracts!AP453","v":0},{"$f":"unique_contracts!AQ453","v":0},{"$f":"unique_contracts!AR453","v":0},{"$f":"unique_contracts!BP453","v":0},0,{"$f":"IFERROR(IF(AND(I452>0,E452=\"NotHybrid\"),_xlfn.CONCAT(MAX(MIN(ROUNDDOWN(I452/D452,0),8),4),INDEX(resources!$G:$G,MATCH(B452,resources!$A:$A,0))),INDEX(resources!$G:$G,MATCH(B452,resources!$A:$A,0))),\"n/a\")","v":"n/a"},"n/a","n/a",0,0,1,1,{"$f":"MIN((IFERROR(IF(AND($V452<=Z$1,$W452>=Z$1),INDEX(Reliability!E$23:E$50,MATCH($S452,Reliability!$C$23:$C$50,0)),0),0)*IF($T452=\"n/a\",$D452*$Y452,$G452)+IFERROR(IF(AND($V452<=Z$1,$W452>=Z$1),INDEX(Reliability!E$23:E$50,MATCH($T452,Reliability!$C$23:$C$50,0)),0),0)*$H452*$X452*$Y452),$D452)*$R452","v":0},{"$f":"MIN((IFERROR(IF(AND($V452<=AA$1,$W452>=AA$1),INDEX(Reliability!F$23:F$50,MATCH($S452,Reliability!$C$23:$C$50,0)),0),0)*IF($T452=\"n/a\",$D452*$Y452,$G452)+IFERROR(IF(AND($V452<=AA$1,$W452>=AA$1),INDEX(Reliability!F$23:F$50,MATCH($T452,Reliability!$C$23:$C$50,0)),0),0)*$H452*$X452*$Y452),$D452)*$R452","v":0},{"$f":"MIN((IFERROR(IF(AND($V452<=AB$1,$W452>=AB$1),INDEX(Reliability!G$23:G$50,MATCH($S452,Reliability!$C$23:$C$50,0)),0),0)*IF($T452=\"n/a\",$D452*$Y452,$G452)+IFERROR(IF(AND($V452<=AB$1,$W452>=AB$1),INDEX(Reliability!G$23:G$50,MATCH($T452,Reliability!$C$23:$C$50,0)),0),0)*$H452*$X452*$Y452),$D452)*$R452","v":0},{"$f":"MIN((IFERROR(IF(AND($V452<=AC$1,$W452>=AC$1),INDEX(Reliability!H$23:H$50,MATCH($S452,Reliability!$C$23:$C$50,0)),0),0)*IF($T452=\"n/a\",$D452*$Y452,$G452)+IFERROR(IF(AND($V452<=AC$1,$W452>=AC$1),INDEX(Reliability!H$23:H$50,MATCH($T452,Reliability!$C$23:$C$50,0)),0),0)*$H452*$X452*$Y452),$D452)*$R452","v":0},{"$f":"MIN((IFERROR(IF(AND($V452<=AD$1,$W452>=AD$1),INDEX(Reliability!I$23:I$50,MATCH($S452,Reliability!$C$23:$C$50,0)),0),0)*IF($T452=\"n/a\",$D452*$Y452,$G452)+IFERROR(IF(AND($V452<=AD$1,$W452>=AD$1),INDEX(Reliability!I$23:I$50,MATCH($T452,Reliability!$C$23:$C$50,0)),0),0)*$H452*$X452*$Y452),$D452)*$R452","v":0},{"$f":"MIN((IFERROR(IF(AND($V452<=AE$1,$W452>=AE$1),INDEX(Reliability!J$23:J$50,MATCH($S452,Reliability!$C$23:$C$50,0)),0),0)*IF($T452=\"n/a\",$D452*$Y452,$G452)+IFERROR(IF(AND($V452<=AE$1,$W452>=AE$1),INDEX(Reliability!J$23:J$50,MATCH($T452,Reliability!$C$23:$C$50,0)),0),0)*$H452*$X452*$Y452),$D452)*$R452","v":0},{"$f":"MIN((IFERROR(IF(AND($V452<=AF$1,$W452>=AF$1),INDEX(Reliability!K$23:K$50,MATCH($S452,Reliability!$C$23:$C$50,0)),0),0)*IF($T452=\"n/a\",$D452*$Y452,$G452)+IFERROR(IF(AND($V452<=AF$1,$W452>=AF$1),INDEX(Reliability!K$23:K$50,MATCH($T452,Reliability!$C$23:$C$50,0)),0),0)*$H452*$X452*$Y452),$D452)*$R452","v":0},{"$f":"MIN((IFERROR(IF(AND($V452<=AG$1,$W452>=AG$1),INDEX(Reliability!L$23:L$50,MATCH($S452,Reliability!$C$23:$C$50,0)),0),0)*IF($T452=\"n/a\",$D452*$Y452,$G452)+IFERROR(IF(AND($V452<=AG$1,$W452>=AG$1),INDEX(Reliability!L$23:L$50,MATCH($T452,Reliability!$C$23:$C$50,0)),0),0)*$H452*$X452*$Y452),$D452)*$R452","v":0},{"$f":"MIN((IFERROR(IF(AND($V452<=AH$1,$W452>=AH$1),INDEX(Reliability!M$23:M$50,MATCH($S452,Reliability!$C$23:$C$50,0)),0),0)*IF($T452=\"n/a\",$D452*$Y452,$G452)+IFERROR(IF(AND($V452<=AH$1,$W452>=AH$1),INDEX(Reliability!M$23:M$50,MATCH($T452,Reliability!$C$23:$C$50,0)),0),0)*$H452*$X452*$Y452),$D452)*$R452","v":0},{"$f":"MIN((IFERROR(IF(AND($V452<=AI$1,$W452>=AI$1),INDEX(Reliability!N$23:N$50,MATCH($S452,Reliability!$C$23:$C$50,0)),0),0)*IF($T452=\"n/a\",$D452*$Y452,$G452)+IFERROR(IF(AND($V452<=AI$1,$W452>=AI$1),INDEX(Reliability!N$23:N$50,MATCH($T452,Reliability!$C$23:$C$50,0)),0),0)*$H452*$X452*$Y452),$D452)*$R452","v":0},{"$f":"MIN((IFERROR(IF(AND($V452<=AJ$1,$W452>=AJ$1),INDEX(Reliability!O$23:O$50,MATCH($S452,Reliability!$C$23:$C$50,0)),0),0)*IF($T452=\"n/a\",$D452*$Y452,$G452)+IFERROR(IF(AND($V452<=AJ$1,$W452>=AJ$1),INDEX(Reliability!O$23:O$50,MATCH($T452,Reliability!$C$23:$C$50,0)),0),0)*$H452*$X452*$Y452),$D452)*$R452","v":0},{"$f":"MIN((IFERROR(IF(AND($V452<=AK$1,$W452>=AK$1),INDEX(Reliability!P$23:P$50,MATCH($S452,Reliability!$C$23:$C$50,0)),0),0)*IF($T452=\"n/a\",$D452*$Y452,$G452)+IFERROR(IF(AND($V452<=AK$1,$W452>=AK$1),INDEX(Reliability!P$23:P$50,MATCH($T452,Reliability!$C$23:$C$50,0)),0),0)*$H452*$X452*$Y452),$D452)*$R452","v":0}]
[null,{"$f":"unique_contracts!B454","v":0},{"$f":"unique_contracts!D454","v":0},{"$f":"unique_contracts!J454","v":0},{"$f":"unique_contracts!M454","v":0},{"$f":"unique_contracts!N454","v":0},{"$f":"unique_contracts!P454","v":0},{"$f":"unique_contracts!R454","v":0},{"$f":"unique_contracts!V454","v":0},{"$f":"unique_contracts!AB454","v":0},{"$f":"unique_contracts!AM454","v":0},{"$f":"unique_contracts!AN454","v":0},{"$f":"unique_contracts!AO454","v":0},{"$f":"unique_contracts!AP454","v":0},{"$f":"unique_contracts!AQ454","v":0},{"$f":"unique_contracts!AR454","v":0},{"$f":"unique_contracts!BP454","v":0},0,{"$f":"IFERROR(IF(AND(I453>0,E453=\"NotHybrid\"),_xlfn.CONCAT(MAX(MIN(ROUNDDOWN(I453/D453,0),8),4),INDEX(resources!$G:$G,MATCH(B453,resources!$A:$A,0))),INDEX(resources!$G:$G,MATCH(B453,resources!$A:$A,0))),\"n/a\")","v":"n/a"},"n/a","n/a",0,0,1,1,{"$f":"MIN((IFERROR(IF(AND($V453<=Z$1,$W453>=Z$1),INDEX(Reliability!E$23:E$50,MATCH($S453,Reliability!$C$23:$C$50,0)),0),0)*IF($T453=\"n/a\",$D453*$Y453,$G453)+IFERROR(IF(AND($V453<=Z$1,$W453>=Z$1),INDEX(Reliability!E$23:E$50,MATCH($T453,Reliability!$C$23:$C$50,0)),0),0)*$H453*$X453*$Y453),$D453)*$R453","v":0},{"$f":"MIN((IFERROR(IF(AND($V453<=AA$1,$W453>=AA$1),INDEX(Reliability!F$23:F$50,MATCH($S453,Reliability!$C$23:$C$50,0)),0),0)*IF($T453=\"n/a\",$D453*$Y453,$G453)+IFERROR(IF(AND($V453<=AA$1,$W453>=AA$1),INDEX(Reliability!F$23:F$50,MATCH($T453,Reliability!$C$23:$C$50,0)),0),0)*$H453*$X453*$Y453),$D453)*$R453","v":0},{"$f":"MIN((IFERROR(IF(AND($V453<=AB$1,$W453>=AB$1),INDEX(Reliability!G$23:G$50,MATCH($S453,Reliability!$C$23:$C$50,0)),0),0)*IF($T453=\"n/a\",$D453*$Y453,$G453)+IFERROR(IF(AND($V453<=AB$1,$W453>=AB$1),INDEX(Reliability!G$23:G$50,MATCH($T453,Reliability!$C$23:$C$50,0)),0),0)*$H453*$X453*$Y453),$D453)*$R453","v":0},{"$f":"MIN((IFERROR(IF(AND($V453<=AC$1,$W453>=AC$1),INDEX(Reliability!H$23:H$50,MATCH($S453,Reliability!$C$23:$C$50,0)),0),0)*IF($T453=\"n/a\",$D453*$Y453,$G453)+IFERROR(IF(AND($V453<=AC$1,$W453>=AC$1),INDEX(Reliability!H$23:H$50,MATCH($T453,Reliability!$C$23:$C$50,0)),0),0)*$H453*$X453*$Y453),$D453)*$R453","v":0},{"$f":"MIN((IFERROR(IF(AND($V453<=AD$1,$W453>=AD$1),INDEX(Reliability!I$23:I$50,MATCH($S453,Reliability!$C$23:$C$50,0)),0),0)*IF($T453=\"n/a\",$D453*$Y453,$G453)+IFERROR(IF(AND($V453<=AD$1,$W453>=AD$1),INDEX(Reliability!I$23:I$50,MATCH($T453,Reliability!$C$23:$C$50,0)),0),0)*$H453*$X453*$Y453),$D453)*$R453","v":0},{"$f":"MIN((IFERROR(IF(AND($V453<=AE$1,$W453>=AE$1),INDEX(Reliability!J$23:J$50,MATCH($S453,Reliability!$C$23:$C$50,0)),0),0)*IF($T453=\"n/a\",$D453*$Y453,$G453)+IFERROR(IF(AND($V453<=AE$1,$W453>=AE$1),INDEX(Reliability!J$23:J$50,MATCH($T453,Reliability!$C$23:$C$50,0)),0),0)*$H453*$X453*$Y453),$D453)*$R453","v":0},{"$f":"MIN((IFERROR(IF(AND($V453<=AF$1,$W453>=AF$1),INDEX(Reliability!K$23:K$50,MATCH($S453,Reliability!$C$23:$C$50,0)),0),0)*IF($T453=\"n/a\",$D453*$Y453,$G453)+IFERROR(IF(AND($V453<=AF$1,$W453>=AF$1),INDEX(Reliability!K$23:K$50,MATCH($T453,Reliability!$C$23:$C$50,0)),0),0)*$H453*$X453*$Y453),$D453)*$R453","v":0},{"$f":"MIN((IFERROR(IF(AND($V453<=AG$1,$W453>=AG$1),INDEX(Reliability!L$23:L$50,MATCH($S453,Reliability!$C$23:$C$50,0)),0),0)*IF($T453=\"n/a\",$D453*$Y453,$G453)+IFERROR(IF(AND($V453<=AG$1,$W453>=AG$1),INDEX(Reliability!L$23:L$50,MATCH($T453,Reliability!$C$23:$C$50,0)),0),0)*$H453*$X453*$Y453),$D453)*$R453","v":0},{"$f":"MIN((IFERROR(IF(AND($V453<=AH$1,$W453>=AH$1),INDEX(Reliability!M$23:M$50,MATCH($S453,Reliability!$C$23:$C$50,0)),0),0)*IF($T453=\"n/a\",$D453*$Y453,$G453)+IFERROR(IF(AND($V453<=AH$1,$W453>=AH$1),INDEX(Reliability!M$23:M$50,MATCH($T453,Reliability!$C$23:$C$50,0)),0),0)*$H453*$X453*$Y453),$D453)*$R453","v":0},{"$f":"MIN((IFERROR(IF(AND($V453<=AI$1,$W453>=AI$1),INDEX(Reliability!N$23:N$50,MATCH($S453,Reliability!$C$23:$C$50,0)),0),0)*IF($T453=\"n/a\",$D453*$Y453,$G453)+IFERROR(IF(AND($V453<=AI$1,$W453>=AI$1),INDEX(Reliability!N$23:N$50,MATCH($T453,Reliability!$C$23:$C$50,0)),0),0)*$H453*$X453*$Y453),$D453)*$R453","v":0},{"$f":"MIN((IFERROR(IF(AND($V453<=AJ$1,$W453>=AJ$1),INDEX(Reliability!O$23:O$50,MATCH($S453,Reliability!$C$23:$C$50,0)),0),0)*IF($T453=\"n/a\",$D453*$Y453,$G453)+IFERROR(IF(AND($V453<=AJ$1,$W453>=AJ$1),INDEX(Reliability!O$23:O$50,MATCH($T453,Reliability!$C$23:$C$50,0)),0),0)*$H453*$X453*$Y453),$D453)*$R453","v":0},{"$f":"MIN((IFERROR(IF(AND($V453<=AK$1,$W453>=AK$1),INDEX(Reliability!P$23:P$50,MATCH($S453,Reliability!$C$23:$C$50,0)),0),0)*IF($T453=\"n/a\",$D453*$Y453,$G453)+IFERROR(IF(AND($V453<=AK$1,$W453>=AK$1),INDEX(Reliability!P$23:P$50,MATCH($T453,Reliability!$C$23:$C$50,0)),0),0)*$H453*$X453*$Y453),$D453)*$R453","v":0}]
[null,{"$f":"unique_contracts!B455","v":0},{"$f":"unique_contracts!D455","v":0},{"$f":"unique_contracts!J455","v":0},{"$f":"unique_contracts!M455","v":0},{"$f":"unique_contracts!N455","v":0},{"$f":"unique_contracts!P455","v":0},{"$f":"unique_contracts!R455","v":0},{"$f":"unique_contracts!V455","v":0},{"$f":"unique_contracts!AB455","v":0},{"$f":"unique_contracts!AM455","v":0},{"$f":"unique_contracts!AN455","v":0},{"$f":"unique_contracts!AO455","v":0},{"$f":"unique_contracts!AP455","v":0},{"$f":"unique_contracts!AQ455","v":0},{"$f":"unique_contracts!AR455","v":0},{"$f":"unique_contracts!BP455","v":0},0,{"$f":"IFERROR(IF(AND(I454>0,E454=\"NotHybrid\"),_xlfn.CONCAT(MAX(MIN(ROUNDDOWN(I454/D454,0),8),4),INDEX(resources!$G:$G,MATCH(B454,resources!$A:$A,0))),INDEX(resources!$G:$G,MATCH(B454,resources!$A:$A,0))),\"n/a\")","v":"n/a"},"n/a","n/a",0,0,1,1,{"$f":"MIN((IFERROR(IF(AND($V454<=Z$1,$W454>=Z$1),INDEX(Reliability!E$23:E$50,MATCH($S454,Reliability!$C$23:$C$50,0)),0),0)*IF($T454=\"n/a\",$D454*$Y454,$G454)+IFERROR(IF(AND($V454<=Z$1,$W454>=Z$1),INDEX(Reliability!E$23:E$50,MATCH($T454,Reliability!$C$23:$C$50,0)),0),0)*$H454*$X454*$Y454),$D454)*$R454","v":0},{"$f":"MIN((IFERROR(IF(AND($V454<=AA$1,$W454>=AA$1),INDEX(Reliability!F$23:F$50,MATCH($S454,Reliability!$C$23:$C$50,0)),0),0)*IF($T454=\"n/a\",$D454*$Y454,$G454)+IFERROR(IF(AND($V454<=AA$1,$W454>=AA$1),INDEX(Reliability!F$23:F$50,MATCH($T454,Reliability!$C$23:$C$50,0)),0),0)*$H454*$X454*$Y454),$D454)*$R454","v":0},{"$f":"MIN((IFERROR(IF(AND($V454<=AB$1,$W454>=AB$1),INDEX(Reliability!G$23:G$50,MATCH($S454,Reliability!$C$23:$C$50,0)),0),0)*IF($T454=\"n/a\",$D454*$Y454,$G454)+IFERROR(IF(AND($V454<=AB$1,$W454>=AB$1),INDEX(Reliability!G$23:G$50,MATCH($T454,Reliability!$C$23:$C$50,0)),0),0)*$H454*$X454*$Y454),$D454)*$R454","v":0},{"$f":"MIN((IFERROR(IF(AND($V454<=AC$1,$W454>=AC$1),INDEX(Reliability!H$23:H$50,MATCH($S454,Reliability!$C$23:$C$50,0)),0),0)*IF($T454=\"n/a\",$D454*$Y454,$G454)+IFERROR(IF(AND($V454<=AC$1,$W454>=AC$1),INDEX(Reliability!H$23:H$50,MATCH($T454,Reliability!$C$23:$C$50,0)),0),0)*$H454*$X454*$Y454),$D454)*$R454","v":0},{"$f":"MIN((IFERROR(IF(AND($V454<=AD$1,$W454>=AD$1),INDEX(Reliability!I$23:I$50,MATCH($S454,Reliability!$C$23:$C$50,0)),0),0)*IF($T454=\"n/a\",$D454*$Y454,$G454)+IFERROR(IF(AND($V454<=AD$1,$W454>=AD$1),INDEX(Reliability!I$23:I$50,MATCH($T454,Reliability!$C$23:$C$50,0)),0),0)*$H454*$X454*$Y454),$D454)*$R454","v":0},{"$f":"MIN((IFERROR(IF(AND($V454<=AE$1,$W454>=AE$1),INDEX(Reliability!J$23:J$50,MATCH($S454,Reliability!$C$23:$C$50,0)),0),0)*IF($T454=\"n/a\",$D454*$Y454,$G454)+IFERROR(IF(AND($V454<=AE$1,$W454>=AE$1),INDEX(Reliability!J$23:J$50,MATCH($T454,Reliability!$C$23:$C$50,0)),0),0)*$H454*$X454*$Y454),$D454)*$R454","v":0},{"$f":"MIN((IFERROR(IF(AND($V454<=AF$1,$W454>=AF$1),INDEX(Reliability!K$23:K$50,MATCH($S454,Reliability!$C$23:$C$50,0)),0),0)*IF($T454=\"n/a\",$D454*$Y454,$G454)+IFERROR(IF(AND($V454<=AF$1,$W454>=AF$1),INDEX(Reliability!K$23:K$50,MATCH($T454,Reliability!$C$23:$C$50,0)),0),0)*$H454*$X454*$Y454),$D454)*$R454","v":0},{"$f":"MIN((IFERROR(IF(AND($V454<=AG$1,$W454>=AG$1),INDEX(Reliability!L$23:L$50,MATCH($S454,Reliability!$C$23:$C$50,0)),0),0)*IF($T454=\"n/a\",$D454*$Y454,$G454)+IFERROR(IF(AND($V454<=AG$1,$W454>=AG$1),INDEX(Reliability!L$23:L$50,MATCH($T454,Reliability!$C$23:$C$50,0)),0),0)*$H454*$X454*$Y454),$D454)*$R454","v":0},{"$f":"MIN((IFERROR(IF(AND($V454<=AH$1,$W454>=AH$1),INDEX(Reliability!M$23:M$50,MATCH($S454,Reliability!$C$23:$C$50,0)),0),0)*IF($T454=\"n/a\",$D454*$Y454,$G454)+IFERROR(IF(AND($V454<=AH$1,$W454>=AH$1),INDEX(Reliability!M$23:M$50,MATCH($T454,Reliability!$C$23:$C$50,0)),0),0)*$H454*$X454*$Y454),$D454)*$R454","v":0},{"$f":"MIN((IFERROR(IF(AND($V454<=AI$1,$W454>=AI$1),INDEX(Reliability!N$23:N$50,MATCH($S454,Reliability!$C$23:$C$50,0)),0),0)*IF($T454=\"n/a\",$D454*$Y454,$G454)+IFERROR(IF(AND($V454<=AI$1,$W454>=AI$1),INDEX(Reliability!N$23:N$50,MATCH($T454,Reliability!$C$23:$C$50,0)),0),0)*$H454*$X454*$Y454),$D454)*$R454","v":0},{"$f":"MIN((IFERROR(IF(AND($V454<=AJ$1,$W454>=AJ$1),INDEX(Reliability!O$23:O$50,MATCH($S454,Reliability!$C$23:$C$50,0)),0),0)*IF($T454=\"n/a\",$D454*$Y454,$G454)+IFERROR(IF(AND($V454<=AJ$1,$W454>=AJ$1),INDEX(Reliability!O$23:O$50,MATCH($T454,Reliability!$C$23:$C$50,0)),0),0)*$H454*$X454*$Y454),$D454)*$R454","v":0},{"$f":"MIN((IFERROR(IF(AND($V454<=AK$1,$W454>=AK$1),INDEX(Reliability!P$23:P$50,MATCH($S454,Reliability!$C$23:$C$50,0)),0),0)*IF($T454=\"n/a\",$D454*$Y454,$G454)+IFERROR(IF(AND($V454<=AK$1,$W454>=AK$1),INDEX(Reliability!P$23:P$50,MATCH($T454,Reliability!$C$23:$C$50,0)),0),0)*$H454*$X454*$Y454),$D454)*$R454","v":0}]
[null,{"$f":"unique_contracts!B456","v":0},{"$f":"unique_contracts!D456","v":0},{"$f":"unique_contracts!J456","v":0},{"$f":"unique_contracts!M456","v":0},{"$f":"unique_contracts!N456","v":0},{"$f":"unique_contracts!P456","v":0},{"$f":"unique_contracts!R456","v":0},{"$f":"unique_contracts!V456","v":0},{"$f":"unique_contracts!AB456","v":0},{"$f":"unique_contracts!AM456","v":0},{"$f":"unique_contracts!AN456","v":0},{"$f":"unique_contracts!AO456","v":0},{"$f":"unique_contracts!AP456","v":0},{"$f":"unique_contracts!AQ456","v":0},{"$f":"unique_contracts!AR456","v":0},{"$f":"unique_contracts!BP456","v":0},0,{"$f":"IFERROR(IF(AND(I455>0,E455=\"NotHybrid\"),_xlfn.CONCAT(MAX(MIN(ROUNDDOWN(I455/D455,0),8),4),INDEX(resources!$G:$G,MATCH(B455,resources!$A:$A,0))),INDEX(resources!$G:$G,MATCH(B455,resources!$A:$A,0))),\"n/a\")","v":"n/a"},"n/a","n/a",0,0,1,1,{"$f":"MIN((IFERROR(IF(AND($V455<=Z$1,$W455>=Z$1),INDEX(Reliability!E$23:E$50,MATCH($S455,Reliability!$C$23:$C$50,0)),0),0)*IF($T455=\"n/a\",$D455*$Y455,$G455)+IFERROR(IF(AND($V455<=Z$1,$W455>=Z$1),INDEX(Reliability!E$23:E$50,MATCH($T455,Reliability!$C$23:$C$50,0)),0),0)*$H455*$X455*$Y455),$D455)*$R455","v":0},{"$f":"MIN((IFERROR(IF(AND($V455<=AA$1,$W455>=AA$1),INDEX(Reliability!F$23:F$50,MATCH($S455,Reliability!$C$23:$C$50,0)),0),0)*IF($T455=\"n/a\",$D455*$Y455,$G455)+IFERROR(IF(AND($V455<=AA$1,$W455>=AA$1),INDEX(Reliability!F$23:F$50,MATCH($T455,Reliability!$C$23:$C$50,0)),0),0)*$H455*$X455*$Y455),$D455)*$R455","v":0},{"$f":"MIN((IFERROR(IF(AND($V455<=AB$1,$W455>=AB$1),INDEX(Reliability!G$23:G$50,MATCH($S455,Reliability!$C$23:$C$50,0)),0),0)*IF($T455=\"n/a\",$D455*$Y455,$G455)+IFERROR(IF(AND($V455<=AB$1,$W455>=AB$1),INDEX(Reliability!G$23:G$50,MATCH($T455,Reliability!$C$23:$C$50,0)),0),0)*$H455*$X455*$Y455),$D455)*$R455","v":0},{"$f":"MIN((IFERROR(IF(AND($V455<=AC$1,$W455>=AC$1),INDEX(Reliability!H$23:H$50,MATCH($S455,Reliability!$C$23:$C$50,0)),0),0)*IF($T455=\"n/a\",$D455*$Y455,$G455)+IFERROR(IF(AND($V455<=AC$1,$W455>=AC$1),INDEX(Reliability!H$23:H$50,MATCH($T455,Reliability!$C$23:$C$50,0)),0),0)*$H455*$X455*$Y455),$D455)*$R455","v":0},{"$f":"MIN((IFERROR(IF(AND($V455<=AD$1,$W455>=AD$1),INDEX(Reliability!I$23:I$50,MATCH($S455,Reliability!$C$23:$C$50,0)),0),0)*IF($T455=\"n/a\",$D455*$Y455,$G455)+IFERROR(IF(AND($V455<=AD$1,$W455>=AD$1),INDEX(Reliability!I$23:I$50,MATCH($T455,Reliability!$C$23:$C$50,0)),0),0)*$H455*$X455*$Y455),$D455)*$R455","v":0},{"$f":"MIN((IFERROR(IF(AND($V455<=AE$1,$W455>=AE$1),INDEX(Reliability!J$23:J$50,MATCH($S455,Reliability!$C$23:$C$50,0)),0),0)*IF($T455=\"n/a\",$D455*$Y455,$G455)+IFERROR(IF(AND($V455<=AE$1,$W455>=AE$1),INDEX(Reliability!J$23:J$50,MATCH($T455,Reliability!$C$23:$C$50,0)),0),0)*$H455*$X455*$Y455),$D455)*$R455","v":0},{"$f":"MIN((IFERROR(IF(AND($V455<=AF$1,$W455>=AF$1),INDEX(Reliability!K$23:K$50,MATCH($S455,Reliability!$C$23:$C$50,0)),0),0)*IF($T455=\"n/a\",$D455*$Y455,$G455)+IFERROR(IF(AND($V455<=AF$1,$W455>=AF$1),INDEX(Reliability!K$23:K$50,MATCH($T455,Reliability!$C$23:$C$50,0)),0),0)*$H455*$X455*$Y455),$D455)*$R455","v":0},{"$f":"MIN((IFERROR(IF(AND($V455<=AG$1,$W455>=AG$1),INDEX(Reliability!L$23:L$50,MATCH($S455,Reliability!$C$23:$C$50,0)),0),0)*IF($T455=\"n/a\",$D455*$Y455,$G455)+IFERROR(IF(AND($V455<=AG$1,$W455>=AG$1),INDEX(Reliability!L$23:L$50,MATCH($T455,Reliability!$C$23:$C$50,0)),0),0)*$H455*$X455*$Y455),$D455)*$R455","v":0},{"$f":"MIN((IFERROR(IF(AND($V455<=AH$1,$W455>=AH$1),INDEX(Reliability!M$23:M$50,MATCH($S455,Reliability!$C$23:$C$50,0)),0),0)*IF($T455=\"n/a\",$D455*$Y455,$G455)+IFERROR(IF(AND($V455<=AH$1,$W455>=AH$1),INDEX(Reliability!M$23:M$50,MATCH($T455,Reliability!$C$23:$C$50,0)),0),0)*$H455*$X455*$Y455),$D455)*$R455","v":0},{"$f":"MIN((IFERROR(IF(AND($V455<=AI$1,$W455>=AI$1),INDEX(Reliability!N$23:N$50,MATCH($S455,Reliability!$C$23:$C$50,0)),0),0)*IF($T455=\"n/a\",$D455*$Y455,$G455)+IFERROR(IF(AND($V455<=AI$1,$W455>=AI$1),INDEX(Reliability!N$23:N$50,MATCH($T455,Reliability!$C$23:$C$50,0)),0),0)*$H455*$X455*$Y455),$D455)*$R455","v":0},{"$f":"MIN((IFERROR(IF(AND($V455<=AJ$1,$W455>=AJ$1),INDEX(Reliability!O$23:O$50,MATCH($S455,Reliability!$C$23:$C$50,0)),0),0)*IF($T455=\"n/a\",$D455*$Y455,$G455)+IFERROR(IF(AND($V455<=AJ$1,$W455>=AJ$1),INDEX(Reliability!O$23:O$50,MATCH($T455,Reliability!$C$23:$C$50,0)),0),0)*$H455*$X455*$Y455),$D455)*$R455","v":0},{"$f":"MIN((IFERROR(IF(AND($V455<=AK$1,$W455>=AK$1),INDEX(Reliability!P$23:P$50,MATCH($S455,Reliability!$C$23:$C$50,0)),0),0)*IF($T455=\"n/a\",$D455*$Y455,$G455)+IFERROR(IF(AND($V455<=AK$1,$W455>=AK$1),INDEX(Reliability!P$23:P$50,MATCH($T455,Reliability!$C$23:$C$50,0)),0),0)*$H455*$X455*$Y455),$D455)*$R455","v":0}]
[null,{"$f":"unique_contracts!B457","v":0},{"$f":"unique_contracts!D457","v":0},{"$f":"unique_contracts!J457","v":0},{"$f":"unique_contracts!M457","v":0},{"$f":"unique_contracts!N457","v":0},{"$f":"unique_contracts!P457","v":0},{"$f":"unique_contracts!R457","v":0},{"$f":"unique_contracts!V457","v":0},{"$f":"unique_contracts!AB457","v":0},{"$f":"unique_contracts!AM457","v":0},{"$f":"unique_contracts!AN457","v":0},{"$f":"unique_contracts!AO457","v":0},{"$f":"unique_contracts!AP457","v":0},{"$f":"unique_contracts!AQ457","v":0},{"$f":"unique_contracts!AR457","v":0},{"$f":"unique_contracts!BP457","v":0},0,{"$f":"IFERROR(IF(AND(I456>0,E456=\"NotHybrid\"),_xlfn.CONCAT(MAX(MIN(ROUNDDOWN(I456/D456,0),8),4),INDEX(resources!$G:$G,MATCH(B456,resources!$A:$A,0))),INDEX(resources!$G:$G,MATCH(B456,resources!$A:$A,0))),\"n/a\")","v":"n/a"},"n/a","n/a",0,0,1,1,{"$f":"MIN((IFERROR(IF(AND($V456<=Z$1,$W456>=Z$1),INDEX(Reliability!E$23:E$50,MATCH($S456,Reliability!$C$23:$C$50,0)),0),0)*IF($T456=\"n/a\",$D456*$Y456,$G456)+IFERROR(IF(AND($V456<=Z$1,$W456>=Z$1),INDEX(Reliability!E$23:E$50,MATCH($T456,Reliability!$C$23:$C$50,0)),0),0)*$H456*$X456*$Y456),$D456)*$R456","v":0},{"$f":"MIN((IFERROR(IF(AND($V456<=AA$1,$W456>=AA$1),INDEX(Reliability!F$23:F$50,MATCH($S456,Reliability!$C$23:$C$50,0)),0),0)*IF($T456=\"n/a\",$D456*$Y456,$G456)+IFERROR(IF(AND($V456<=AA$1,$W456>=AA$1),INDEX(Reliability!F$23:F$50,MATCH($T456,Reliability!$C$23:$C$50,0)),0),0)*$H456*$X456*$Y456),$D456)*$R456","v":0},{"$f":"MIN((IFERROR(IF(AND($V456<=AB$1,$W456>=AB$1),INDEX(Reliability!G$23:G$50,MATCH($S456,Reliability!$C$23:$C$50,0)),0),0)*IF($T456=\"n/a\",$D456*$Y456,$G456)+IFERROR(IF(AND($V456<=AB$1,$W456>=AB$1),INDEX(Reliability!G$23:G$50,MATCH($T456,Reliability!$C$23:$C$50,0)),0),0)*$H456*$X456*$Y456),$D456)*$R456","v":0},{"$f":"MIN((IFERROR(IF(AND($V456<=AC$1,$W456>=AC$1),INDEX(Reliability!H$23:H$50,MATCH($S456,Reliability!$C$23:$C$50,0)),0),0)*IF($T456=\"n/a\",$D456*$Y456,$G456)+IFERROR(IF(AND($V456<=AC$1,$W456>=AC$1),INDEX(Reliability!H$23:H$50,MATCH($T456,Reliability!$C$23:$C$50,0)),0),0)*$H456*$X456*$Y456),$D456)*$R456","v":0},{"$f":"MIN((IFERROR(IF(AND($V456<=AD$1,$W456>=AD$1),INDEX(Reliability!I$23:I$50,MATCH($S456,Reliability!$C$23:$C$50,0)),0),0)*IF($T456=\"n/a\",$D456*$Y456,$G456)+IFERROR(IF(AND($V456<=AD$1,$W456>=AD$1),INDEX(Reliability!I$23:I$50,MATCH($T456,Reliability!$C$23:$C$50,0)),0),0)*$H456*$X456*$Y456),$D456)*$R456","v":0},{"$f":"MIN((IFERROR(IF(AND($V456<=AE$1,$W456>=AE$1),INDEX(Reliability!J$23:J$50,MATCH($S456,Reliability!$C$23:$C$50,0)),0),0)*IF($T456=\"n/a\",$D456*$Y456,$G456)+IFERROR(IF(AND($V456<=AE$1,$W456>=AE$1),INDEX(Reliability!J$23:J$50,MATCH($T456,Reliability!$C$23:$C$50,0)),0),0)*$H456*$X456*$Y456),$D456)*$R456","v":0},{"$f":"MIN((IFERROR(IF(AND($V456<=AF$1,$W456>=AF$1),INDEX(Reliability!K$23:K$50,MATCH($S456,Reliability!$C$23:$C$50,0)),0),0)*IF($T456=\"n/a\",$D456*$Y456,$G456)+IFERROR(IF(AND($V456<=AF$1,$W456>=AF$1),INDEX(Reliability!K$23:K$50,MATCH($T456,Reliability!$C$23:$C$50,0)),0),0)*$H456*$X456*$Y456),$D456)*$R456","v":0},{"$f":"MIN((IFERROR(IF(AND($V456<=AG$1,$W456>=AG$1),INDEX(Reliability!L$23:L$50,MATCH($S456,Reliability!$C$23:$C$50,0)),0),0)*IF($T456=\"n/a\",$D456*$Y456,$G456)+IFERROR(IF(AND($V456<=AG$1,$W456>=AG$1),INDEX(Reliability!L$23:L$50,MATCH($T456,Reliability!$C$23:$C$50,0)),0),0)*$H456*$X456*$Y456),$D456)*$R456","v":0},{"$f":"MIN((IFERROR(IF(AND($V456<=AH$1,$W456>=AH$1),INDEX(Reliability!M$23:M$50,MATCH($S456,Reliability!$C$23:$C$50,0)),0),0)*IF($T456=\"n/a\",$D456*$Y456,$G456)+IFERROR(IF(AND($V456<=AH$1,$W456>=AH$1),INDEX(Reliability!M$23:M$50,MATCH($T456,Reliability!$C$23:$C$50,0)),0),0)*$H456*$X456*$Y456),$D456)*$R456","v":0},{"$f":"MIN((IFERROR(IF(AND($V456<=AI$1,$W456>=AI$1),INDEX(Reliability!N$23:N$50,MATCH($S456,Reliability!$C$23:$C$50,0)),0),0)*IF($T456=\"n/a\",$D456*$Y456,$G456)+IFERROR(IF(AND($V456<=AI$1,$W456>=AI$1),INDEX(Reliability!N$23:N$50,MATCH($T456,Reliability!$C$23:$C$50,0)),0),0)*$H456*$X456*$Y456),$D456)*$R456","v":0},{"$f":"MIN((IFERROR(IF(AND($V456<=AJ$1,$W456>=AJ$1),INDEX(Reliability!O$23:O$50,MATCH($S456,Reliability!$C$23:$C$50,0)),0),0)*IF($T456=\"n/a\",$D456*$Y456,$G456)+IFERROR(IF(AND($V456<=AJ$1,$W456>=AJ$1),INDEX(Reliability!O$23:O$50,MATCH($T456,Reliability!$C$23:$C$50,0)),0),0)*$H456*$X456*$Y456),$D456)*$R456","v":0},{"$f":"MIN((IFERROR(IF(AND($V456<=AK$1,$W456>=AK$1),INDEX(Reliability!P$23:P$50,MATCH($S456,Reliability!$C$23:$C$50,0)),0),0)*IF($T456=\"n/a\",$D456*$Y456,$G456)+IFERROR(IF(AND($V456<=AK$1,$W456>=AK$1),INDEX(Reliability!P$23:P$50,MATCH($T456,Reliability!$C$23:$C$50,0)),0),0)*$H456*$X456*$Y456),$D456)*$R456","v":0}]
[null,{"$f":"unique_contracts!B458","v":0},{"$f":"unique_contracts!D458","v":0},{"$f":"unique_contracts!J458","v":0},{"$f":"unique_contracts!M458","v":0},{"$f":"unique_contracts!N458","v":0},{"$f":"unique_contracts!P458","v":0},{"$f":"unique_contracts!R458","v":0},{"$f":"unique_contracts!V458","v":0},{"$f":"unique_contracts!AB458","v":0},{"$f":"unique_contracts!AM458","v":0},{"$f":"unique_contracts!AN458","v":0},{"$f":"unique_contracts!AO458","v":0},{"$f":"unique_contracts!AP458","v":0},{"$f":"unique_contracts!AQ458","v":0},{"$f":"unique_contracts!AR458","v":0},{"$f":"unique_contracts!BP458","v":0},0,{"$f":"IFERROR(IF(AND(I457>0,E457=\"NotHybrid\"),_xlfn.CONCAT(MAX(MIN(ROUNDDOWN(I457/D457,0),8),4),INDEX(resources!$G:$G,MATCH(B457,resources!$A:$A,0))),INDEX(resources!$G:$G,MATCH(B457,resources!$A:$A,0))),\"n/a\")","v":"n/a"},"n/a","n/a",0,0,1,1,{"$f":"MIN((IFERROR(IF(AND($V457<=Z$1,$W457>=Z$1),INDEX(Reliability!E$23:E$50,MATCH($S457,Reliability!$C$23:$C$50,0)),0),0)*IF($T457=\"n/a\",$D457*$Y457,$G457)+IFERROR(IF(AND($V457<=Z$1,$W457>=Z$1),INDEX(Reliability!E$23:E$50,MATCH($T457,Reliability!$C$23:$C$50,0)),0),0)*$H457*$X457*$Y457),$D457)*$R457","v":0},{"$f":"MIN((IFERROR(IF(AND($V457<=AA$1,$W457>=AA$1),INDEX(Reliability!F$23:F$50,MATCH($S457,Reliability!$C$23:$C$50,0)),0),0)*IF($T457=\"n/a\",$D457*$Y457,$G457)+IFERROR(IF(AND($V457<=AA$1,$W457>=AA$1),INDEX(Reliability!F$23:F$50,MATCH($T457,Reliability!$C$23:$C$50,0)),0),0)*$H457*$X457*$Y457),$D457)*$R457","v":0},{"$f":"MIN((IFERROR(IF(AND($V457<=AB$1,$W457>=AB$1),INDEX(Reliability!G$23:G$50,MATCH($S457,Reliability!$C$23:$C$50,0)),0),0)*IF($T457=\"n/a\",$D457*$Y457,$G457)+IFERROR(IF(AND($V457<=AB$1,$W457>=AB$1),INDEX(Reliability!G$23:G$50,MATCH($T457,Reliability!$C$23:$C$50,0)),0),0)*$H457*$X457*$Y457),$D457)*$R457","v":0},{"$f":"MIN((IFERROR(IF(AND($V457<=AC$1,$W457>=AC$1),INDEX(Reliability!H$23:H$50,MATCH($S457,Reliability!$C$23:$C$50,0)),0),0)*IF($T457=\"n/a\",$D457*$Y457,$G457)+IFERROR(IF(AND($V457<=AC$1,$W457>=AC$1),INDEX(Reliability!H$23:H$50,MATCH($T457,Reliability!$C$23:$C$50,0)),0),0)*$H457*$X457*$Y457),$D457)*$R457","v":0},{"$f":"MIN((IFERROR(IF(AND($V457<=AD$1,$W457>=AD$1),INDEX(Reliability!I$23:I$50,MATCH($S457,Reliability!$C$23:$C$50,0)),0),0)*IF($T457=\"n/a\",$D457*$Y457,$G457)+IFERROR(IF(AND($V457<=AD$1,$W457>=AD$1),INDEX(Reliability!I$23:I$50,MATCH($T457,Reliability!$C$23:$C$50,0)),0),0)*$H457*$X457*$Y457),$D457)*$R457","v":0},{"$f":"MIN((IFERROR(IF(AND($V457<=AE$1,$W457>=AE$1),INDEX(Reliability!J$23:J$50,MATCH($S457,Reliability!$C$23:$C$50,0)),0),0)*IF($T457=\"n/a\",$D457*$Y457,$G457)+IFERROR(IF(AND($V457<=AE$1,$W457>=AE$1),INDEX(Reliability!J$23:J$50,MATCH($T457,Reliability!$C$23:$C$50,0)),0),0)*$H457*$X457*$Y457),$D457)*$R457","v":0},{"$f":"MIN((IFERROR(IF(AND($V457<=AF$1,$W457>=AF$1),INDEX(Reliability!K$23:K$50,MATCH($S457,Reliability!$C$23:$C$50,0)),0),0)*IF($T457=\"n/a\",$D457*$Y457,$G457)+IFERROR(IF(AND($V457<=AF$1,$W457>=AF$1),INDEX(Reliability!K$23:K$50,MATCH($T457,Reliability!$C$23:$C$50,0)),0),0)*$H457*$X457*$Y457),$D457)*$R457","v":0},{"$f":"MIN((IFERROR(IF(AND($V457<=AG$1,$W457>=AG$1),INDEX(Reliability!L$23:L$50,MATCH($S457,Reliability!$C$23:$C$50,0)),0),0)*IF($T457=\"n/a\",$D457*$Y457,$G457)+IFERROR(IF(AND($V457<=AG$1,$W457>=AG$1),INDEX(Reliability!L$23:L$50,MATCH($T457,Reliability!$C$23:$C$50,0)),0),0)*$H457*$X457*$Y457),$D457)*$R457","v":0},{"$f":"MIN((IFERROR(IF(AND($V457<=AH$1,$W457>=AH$1),INDEX(Reliability!M$23:M$50,MATCH($S457,Reliability!$C$23:$C$50,0)),0),0)*IF($T457=\"n/a\",$D457*$Y457,$G457)+IFERROR(IF(AND($V457<=AH$1,$W457>=AH$1),INDEX(Reliability!M$23:M$50,MATCH($T457,Reliability!$C$23:$C$50,0)),0),0)*$H457*$X457*$Y457),$D457)*$R457","v":0},{"$f":"MIN((IFERROR(IF(AND($V457<=AI$1,$W457>=AI$1),INDEX(Reliability!N$23:N$50,MATCH($S457,Reliability!$C$23:$C$50,0)),0),0)*IF($T457=\"n/a\",$D457*$Y457,$G457)+IFERROR(IF(AND($V457<=AI$1,$W457>=AI$1),INDEX(Reliability!N$23:N$50,MATCH($T457,Reliability!$C$23:$C$50,0)),0),0)*$H457*$X457*$Y457),$D457)*$R457","v":0},{"$f":"MIN((IFERROR(IF(AND($V457<=AJ$1,$W457>=AJ$1),INDEX(Reliability!O$23:O$50,MATCH($S457,Reliability!$C$23:$C$50,0)),0),0)*IF($T457=\"n/a\",$D457*$Y457,$G457)+IFERROR(IF(AND($V457<=AJ$1,$W457>=AJ$1),INDEX(Reliability!O$23:O$50,MATCH($T457,Reliability!$C$23:$C$50,0)),0),0)*$H457*$X457*$Y457),$D457)*$R457","v":0},{"$f":"MIN((IFERROR(IF(AND($V457<=AK$1,$W457>=AK$1),INDEX(Reliability!P$23:P$50,MATCH($S457,Reliability!$C$23:$C$50,0)),0),0)*IF($T457=\"n/a\",$D457*$Y457,$G457)+IFERROR(IF(AND($V457<=AK$1,$W457>=AK$1),INDEX(Reliability!P$23:P$50,MATCH($T457,Reliability!$C$23:$C$50,0)),0),0)*$H457*$X457*$Y457),$D457)*$R457","v":0}]
[null,{"$f":"unique_contracts!B459","v":0},{"$f":"unique_contracts!D459","v":0},{"$f":"unique_contracts!J459","v":0},{"$f":"unique_contracts!M459","v":0},{"$f":"unique_contracts!N459","v":0},{"$f":"unique_contracts!P459","v":0},{"$f":"unique_contracts!R459","v":0},{"$f":"unique_contracts!V459","v":0},{"$f":"unique_contracts!AB459","v":0},{"$f":"unique_contracts!AM459","v":0},{"$f":"unique_contracts!AN459","v":0},{"$f":"unique_contracts!AO459","v":0},{"$f":"unique_contracts!AP459","v":0},{"$f":"unique_contracts!AQ459","v":0},{"$f":"unique_contracts!AR459","v":0},{"$f":"unique_contracts!BP459","v":0},0,{"$f":"IFERROR(IF(AND(I458>0,E458=\"NotHybrid\"),_xlfn.CONCAT(MAX(MIN(ROUNDDOWN(I458/D458,0),8),4),INDEX(resources!$G:$G,MATCH(B458,resources!$A:$A,0))),INDEX(resources!$G:$G,MATCH(B458,resources!$A:$A,0))),\"n/a\")","v":"n/a"},"n/a","n/a",0,0,1,1,{"$f":"MIN((IFERROR(IF(AND($V458<=Z$1,$W458>=Z$1),INDEX(Reliability!E$23:E$50,MATCH($S458,Reliability!$C$23:$C$50,0)),0),0)*IF($T458=\"n/a\",$D458*$Y458,$G458)+IFERROR(IF(AND($V458<=Z$1,$W458>=Z$1),INDEX(Reliability!E$23:E$50,MATCH($T458,Reliability!$C$23:$C$50,0)),0),0)*$H458*$X458*$Y458),$D458)*$R458","v":0},{"$f":"MIN((IFERROR(IF(AND($V458<=AA$1,$W458>=AA$1),INDEX(Reliability!F$23:F$50,MATCH($S458,Reliability!$C$23:$C$50,0)),0),0)*IF($T458=\"n/a\",$D458*$Y458,$G458)+IFERROR(IF(AND($V458<=AA$1,$W458>=AA$1),INDEX(Reliability!F$23:F$50,MATCH($T458,Reliability!$C$23:$C$50,0)),0),0)*$H458*$X458*$Y458),$D458)*$R458","v":0},{"$f":"MIN((IFERROR(IF(AND($V458<=AB$1,$W458>=AB$1),INDEX(Reliability!G$23:G$50,MATCH($S458,Reliability!$C$23:$C$50,0)),0),0)*IF($T458=\"n/a\",$D458*$Y458,$G458)+IFERROR(IF(AND($V458<=AB$1,$W458>=AB$1),INDEX(Reliability!G$23:G$50,MATCH($T458,Reliability!$C$23:$C$50,0)),0),0)*$H458*$X458*$Y458),$D458)*$R458","v":0},{"$f":"MIN((IFERROR(IF(AND($V458<=AC$1,$W458>=AC$1),INDEX(Reliability!H$23:H$50,MATCH($S458,Reliability!$C$23:$C$50,0)),0),0)*IF($T458=\"n/a\",$D458*$Y458,$G458)+IFERROR(IF(AND($V458<=AC$1,$W458>=AC$1),INDEX(Reliability!H$23:H$50,MATCH($T458,Reliability!$C$23:$C$50,0)),0),0)*$H458*$X458*$Y458),$D458)*$R458","v":0},{"$f":"MIN((IFERROR(IF(AND($V458<=AD$1,$W458>=AD$1),INDEX(Reliability!I$23:I$50,MATCH($S458,Reliability!$C$23:$C$50,0)),0),0)*IF($T458=\"n/a\",$D458*$Y458,$G458)+IFERROR(IF(AND($V458<=AD$1,$W458>=AD$1),INDEX(Reliability!I$23:I$50,MATCH($T458,Reliability!$C$23:$C$50,0)),0),0)*$H458*$X458*$Y458),$D458)*$R458","v":0},{"$f":"MIN((IFERROR(IF(AND($V458<=AE$1,$W458>=AE$1),INDEX(Reliability!J$23:J$50,MATCH($S458,Reliability!$C$23:$C$50,0)),0),0)*IF($T458=\"n/a\",$D458*$Y458,$G458)+IFERROR(IF(AND($V458<=AE$1,$W458>=AE$1),INDEX(Reliability!J$23:J$50,MATCH($T458,Reliability!$C$23:$C$50,0)),0),0)*$H458*$X458*$Y458),$D458)*$R458","v":0},{"$f":"MIN((IFERROR(IF(AND($V458<=AF$1,$W458>=AF$1),INDEX(Reliability!K$23:K$50,MATCH($S458,Reliability!$C$23:$C$50,0)),0),0)*IF($T458=\"n/a\",$D458*$Y458,$G458)+IFERROR(IF(AND($V458<=AF$1,$W458>=AF$1),INDEX(Reliability!K$23:K$50,MATCH($T458,Reliability!$C$23:$C$50,0)),0),0)*$H458*$X458*$Y458),$D458)*$R458","v":0},{"$f":"MIN((IFERROR(IF(AND($V458<=AG$1,$W458>=AG$1),INDEX(Reliability!L$23:L$50,MATCH($S458,Reliability!$C$23:$C$50,0)),0),0)*IF($T458=\"n/a\",$D458*$Y458,$G458)+IFERROR(IF(AND($V458<=AG$1,$W458>=AG$1),INDEX(Reliability!L$23:L$50,MATCH($T458,Reliability!$C$23:$C$50,0)),0),0)*$H458*$X458*$Y458),$D458)*$R458","v":0},{"$f":"MIN((IFERROR(IF(AND($V458<=AH$1,$W458>=AH$1),INDEX(Reliability!M$23:M$50,MATCH($S458,Reliability!$C$23:$C$50,0)),0),0)*IF($T458=\"n/a\",$D458*$Y458,$G458)+IFERROR(IF(AND($V458<=AH$1,$W458>=AH$1),INDEX(Reliability!M$23:M$50,MATCH($T458,Reliability!$C$23:$C$50,0)),0),0)*$H458*$X458*$Y458),$D458)*$R458","v":0},{"$f":"MIN((IFERROR(IF(AND($V458<=AI$1,$W458>=AI$1),INDEX(Reliability!N$23:N$50,MATCH($S458,Reliability!$C$23:$C$50,0)),0),0)*IF($T458=\"n/a\",$D458*$Y458,$G458)+IFERROR(IF(AND($V458<=AI$1,$W458>=AI$1),INDEX(Reliability!N$23:N$50,MATCH($T458,Reliability!$C$23:$C$50,0)),0),0)*$H458*$X458*$Y458),$D458)*$R458","v":0},{"$f":"MIN((IFERROR(IF(AND($V458<=AJ$1,$W458>=AJ$1),INDEX(Reliability!O$23:O$50,MATCH($S458,Reliability!$C$23:$C$50,0)),0),0)*IF($T458=\"n/a\",$D458*$Y458,$G458)+IFERROR(IF(AND($V458<=AJ$1,$W458>=AJ$1),INDEX(Reliability!O$23:O$50,MATCH($T458,Reliability!$C$23:$C$50,0)),0),0)*$H458*$X458*$Y458),$D458)*$R458","v":0},{"$f":"MIN((IFERROR(IF(AND($V458<=AK$1,$W458>=AK$1),INDEX(Reliability!P$23:P$50,MATCH($S458,Reliability!$C$23:$C$50,0)),0),0)*IF($T458=\"n/a\",$D458*$Y458,$G458)+IFERROR(IF(AND($V458<=AK$1,$W458>=AK$1),INDEX(Reliability!P$23:P$50,MATCH($T458,Reliability!$C$23:$C$50,0)),0),0)*$H458*$X458*$Y458),$D458)*$R458","v":0}]
[null,{"$f":"unique_contracts!B460","v":0},{"$f":"unique_contracts!D460","v":0},{"$f":"unique_contracts!J460","v":0},{"$f":"unique_contracts!M460","v":0},{"$f":"unique_contracts!N460","v":0},{"$f":"unique_contracts!P460","v":0},{"$f":"unique_contracts!R460","v":0},{"$f":"unique_contracts!V460","v":0},{"$f":"unique_contracts!AB460","v":0},{"$f":"unique_contracts!AM460","v":0},{"$f":"unique_contracts!AN460","v":0},{"$f":"unique_contracts!AO460","v":0},{"$f":"unique_contracts!AP460","v":0},{"$f":"unique_contracts!AQ460","v":0},{"$f":"unique_contracts!AR460","v":0},{"$f":"unique_contracts!BP460","v":0},0,{"$f":"IFERROR(IF(AND(I459>0,E459=\"NotHybrid\"),_xlfn.CONCAT(MAX(MIN(ROUNDDOWN(I459/D459,0),8),4),INDEX(resources!$G:$G,MATCH(B459,resources!$A:$A,0))),INDEX(resources!$G:$G,MATCH(B459,resources!$A:$A,0))),\"n/a\")","v":"n/a"},"n/a","n/a",0,0,1,1,{"$f":"MIN((IFERROR(IF(AND($V459<=Z$1,$W459>=Z$1),INDEX(Reliability!E$23:E$50,MATCH($S459,Reliability!$C$23:$C$50,0)),0),0)*IF($T459=\"n/a\",$D459*$Y459,$G459)+IFERROR(IF(AND($V459<=Z$1,$W459>=Z$1),INDEX(Reliability!E$23:E$50,MATCH($T459,Reliability!$C$23:$C$50,0)),0),0)*$H459*$X459*$Y459),$D459)*$R459","v":0},{"$f":"MIN((IFERROR(IF(AND($V459<=AA$1,$W459>=AA$1),INDEX(Reliability!F$23:F$50,MATCH($S459,Reliability!$C$23:$C$50,0)),0),0)*IF($T459=\"n/a\",$D459*$Y459,$G459)+IFERROR(IF(AND($V459<=AA$1,$W459>=AA$1),INDEX(Reliability!F$23:F$50,MATCH($T459,Reliability!$C$23:$C$50,0)),0),0)*$H459*$X459*$Y459),$D459)*$R459","v":0},{"$f":"MIN((IFERROR(IF(AND($V459<=AB$1,$W459>=AB$1),INDEX(Reliability!G$23:G$50,MATCH($S459,Reliability!$C$23:$C$50,0)),0),0)*IF($T459=\"n/a\",$D459*$Y459,$G459)+IFERROR(IF(AND($V459<=AB$1,$W459>=AB$1),INDEX(Reliability!G$23:G$50,MATCH($T459,Reliability!$C$23:$C$50,0)),0),0)*$H459*$X459*$Y459),$D459)*$R459","v":0},{"$f":"MIN((IFERROR(IF(AND($V459<=AC$1,$W459>=AC$1),INDEX(Reliability!H$23:H$50,MATCH($S459,Reliability!$C$23:$C$50,0)),0),0)*IF($T459=\"n/a\",$D459*$Y459,$G459)+IFERROR(IF(AND($V459<=AC$1,$W459>=AC$1),INDEX(Reliability!H$23:H$50,MATCH($T459,Reliability!$C$23:$C$50,0)),0),0)*$H459*$X459*$Y459),$D459)*$R459","v":0},{"$f":"MIN((IFERROR(IF(AND($V459<=AD$1,$W459>=AD$1),INDEX(Reliability!I$23:I$50,MATCH($S459,Reliability!$C$23:$C$50,0)),0),0)*IF($T459=\"n/a\",$D459*$Y459,$G459)+IFERROR(IF(AND($V459<=AD$1,$W459>=AD$1),INDEX(Reliability!I$23:I$50,MATCH($T459,Reliability!$C$23:$C$50,0)),0),0)*$H459*$X459*$Y459),$D459)*$R459","v":0},{"$f":"MIN((IFERROR(IF(AND($V459<=AE$1,$W459>=AE$1),INDEX(Reliability!J$23:J$50,MATCH($S459,Reliability!$C$23:$C$50,0)),0),0)*IF($T459=\"n/a\",$D459*$Y459,$G459)+IFERROR(IF(AND($V459<=AE$1,$W459>=AE$1),INDEX(Reliability!J$23:J$50,MATCH($T459,Reliability!$C$23:$C$50,0)),0),0)*$H459*$X459*$Y459),$D459)*$R459","v":0},{"$f":"MIN((IFERROR(IF(AND($V459<=AF$1,$W459>=AF$1),INDEX(Reliability!K$23:K$50,MATCH($S459,Reliability!$C$23:$C$50,0)),0),0)*IF($T459=\"n/a\",$D459*$Y459,$G459)+IFERROR(IF(AND($V459<=AF$1,$W459>=AF$1),INDEX(Reliability!K$23:K$50,MATCH($T459,Reliability!$C$23:$C$50,0)),0),0)*$H459*$X459*$Y459),$D459)*$R459","v":0},{"$f":"MIN((IFERROR(IF(AND($V459<=AG$1,$W459>=AG$1),INDEX(Reliability!L$23:L$50,MATCH($S459,Reliability!$C$23:$C$50,0)),0),0)*IF($T459=\"n/a\",$D459*$Y459,$G459)+IFERROR(IF(AND($V459<=AG$1,$W459>=AG$1),INDEX(Reliability!L$23:L$50,MATCH($T459,Reliability!$C$23:$C$50,0)),0),0)*$H459*$X459*$Y459),$D459)*$R459","v":0},{"$f":"MIN((IFERROR(IF(AND($V459<=AH$1,$W459>=AH$1),INDEX(Reliability!M$23:M$50,MATCH($S459,Reliability!$C$23:$C$50,0)),0),0)*IF($T459=\"n/a\",$D459*$Y459,$G459)+IFERROR(IF(AND($V459<=AH$1,$W459>=AH$1),INDEX(Reliability!M$23:M$50,MATCH($T459,Reliability!$C$23:$C$50,0)),0),0)*$H459*$X459*$Y459),$D459)*$R459","v":0},{"$f":"MIN((IFERROR(IF(AND($V459<=AI$1,$W459>=AI$1),INDEX(Reliability!N$23:N$50,MATCH($S459,Reliability!$C$23:$C$50,0)),0),0)*IF($T459=\"n/a\",$D459*$Y459,$G459)+IFERROR(IF(AND($V459<=AI$1,$W459>=AI$1),INDEX(Reliability!N$23:N$50,MATCH($T459,Reliability!$C$23:$C$50,0)),0),0)*$H459*$X459*$Y459),$D459)*$R459","v":0},{"$f":"MIN((IFERROR(IF(AND($V459<=AJ$1,$W459>=AJ$1),INDEX(Reliability!O$23:O$50,MATCH($S459,Reliability!$C$23:$C$50,0)),0),0)*IF($T459=\"n/a\",$D459*$Y459,$G459)+IFERROR(IF(AND($V459<=AJ$1,$W459>=AJ$1),INDEX(Reliability!O$23:O$50,MATCH($T459,Reliability!$C$23:$C$50,0)),0),0)*$H459*$X459*$Y459),$D459)*$R459","v":0},{"$f":"MIN((IFERROR(IF(AND($V459<=AK$1,$W459>=AK$1),INDEX(Reliability!P$23:P$50,MATCH($S459,Reliability!$C$23:$C$50,0)),0),0)*IF($T459=\"n/a\",$D459*$Y459,$G459)+IFERROR(IF(AND($V459<=AK$1,$W459>=AK$1),INDEX(Reliability!P$23:P$50,MATCH($T459,Reliability!$C$23:$C$50,0)),0),0)*$H459*$X459*$Y459),$D459)*$R459","v":0}]
[null,{"$f":"unique_contracts!B461","v":0},{"$f":"unique_contracts!D461","v":0},{"$f":"unique_contracts!J461","v":0},{"$f":"unique_contracts!M461","v":0},{"$f":"unique_contracts!N461","v":0},{"$f":"unique_contracts!P461","v":0},{"$f":"unique_contracts!R461","v":0},{"$f":"unique_contracts!V461","v":0},{"$f":"unique_contracts!AB461","v":0},{"$f":"unique_contracts!AM461","v":0},{"$f":"unique_contracts!AN461","v":0},{"$f":"unique_contracts!AO461","v":0},{"$f":"unique_contracts!AP461","v":0},{"$f":"unique_contracts!AQ461","v":0},{"$f":"unique_contracts!AR461","v":0},{"$f":"unique_contracts!BP461","v":0},0,{"$f":"IFERROR(IF(AND(I460>0,E460=\"NotHybrid\"),_xlfn.CONCAT(MAX(MIN(ROUNDDOWN(I460/D460,0),8),4),INDEX(resources!$G:$G,MATCH(B460,resources!$A:$A,0))),INDEX(resources!$G:$G,MATCH(B460,resources!$A:$A,0))),\"n/a\")","v":"n/a"},"n/a","n/a",0,0,1,1,{"$f":"MIN((IFERROR(IF(AND($V460<=Z$1,$W460>=Z$1),INDEX(Reliability!E$23:E$50,MATCH($S460,Reliability!$C$23:$C$50,0)),0),0)*IF($T460=\"n/a\",$D460*$Y460,$G460)+IFERROR(IF(AND($V460<=Z$1,$W460>=Z$1),INDEX(Reliability!E$23:E$50,MATCH($T460,Reliability!$C$23:$C$50,0)),0),0)*$H460*$X460*$Y460),$D460)*$R460","v":0},{"$f":"MIN((IFERROR(IF(AND($V460<=AA$1,$W460>=AA$1),INDEX(Reliability!F$23:F$50,MATCH($S460,Reliability!$C$23:$C$50,0)),0),0)*IF($T460=\"n/a\",$D460*$Y460,$G460)+IFERROR(IF(AND($V460<=AA$1,$W460>=AA$1),INDEX(Reliability!F$23:F$50,MATCH($T460,Reliability!$C$23:$C$50,0)),0),0)*$H460*$X460*$Y460),$D460)*$R460","v":0},{"$f":"MIN((IFERROR(IF(AND($V460<=AB$1,$W460>=AB$1),INDEX(Reliability!G$23:G$50,MATCH($S460,Reliability!$C$23:$C$50,0)),0),0)*IF($T460=\"n/a\",$D460*$Y460,$G460)+IFERROR(IF(AND($V460<=AB$1,$W460>=AB$1),INDEX(Reliability!G$23:G$50,MATCH($T460,Reliability!$C$23:$C$50,0)),0),0)*$H460*$X460*$Y460),$D460)*$R460","v":0},{"$f":"MIN((IFERROR(IF(AND($V460<=AC$1,$W460>=AC$1),INDEX(Reliability!H$23:H$50,MATCH($S460,Reliability!$C$23:$C$50,0)),0),0)*IF($T460=\"n/a\",$D460*$Y460,$G460)+IFERROR(IF(AND($V460<=AC$1,$W460>=AC$1),INDEX(Reliability!H$23:H$50,MATCH($T460,Reliability!$C$23:$C$50,0)),0),0)*$H460*$X460*$Y460),$D460)*$R460","v":0},{"$f":"MIN((IFERROR(IF(AND($V460<=AD$1,$W460>=AD$1),INDEX(Reliability!I$23:I$50,MATCH($S460,Reliability!$C$23:$C$50,0)),0),0)*IF($T460=\"n/a\",$D460*$Y460,$G460)+IFERROR(IF(AND($V460<=AD$1,$W460>=AD$1),INDEX(Reliability!I$23:I$50,MATCH($T460,Reliability!$C$23:$C$50,0)),0),0)*$H460*$X460*$Y460),$D460)*$R460","v":0},{"$f":"MIN((IFERROR(IF(AND($V460<=AE$1,$W460>=AE$1),INDEX(Reliability!J$23:J$50,MATCH($S460,Reliability!$C$23:$C$50,0)),0),0)*IF($T460=\"n/a\",$D460*$Y460,$G460)+IFERROR(IF(AND($V460<=AE$1,$W460>=AE$1),INDEX(Reliability!J$23:J$50,MATCH($T460,Reliability!$C$23:$C$50,0)),0),0)*$H460*$X460*$Y460),$D460)*$R460","v":0},{"$f":"MIN((IFERROR(IF(AND($V460<=AF$1,$W460>=AF$1),INDEX(Reliability!K$23:K$50,MATCH($S460,Reliability!$C$23:$C$50,0)),0),0)*IF($T460=\"n/a\",$D460*$Y460,$G460)+IFERROR(IF(AND($V460<=AF$1,$W460>=AF$1),INDEX(Reliability!K$23:K$50,MATCH($T460,Reliability!$C$23:$C$50,0)),0),0)*$H460*$X460*$Y460),$D460)*$R460","v":0},{"$f":"MIN((IFERROR(IF(AND($V460<=AG$1,$W460>=AG$1),INDEX(Reliability!L$23:L$50,MATCH($S460,Reliability!$C$23:$C$50,0)),0),0)*IF($T460=\"n/a\",$D460*$Y460,$G460)+IFERROR(IF(AND($V460<=AG$1,$W460>=AG$1),INDEX(Reliability!L$23:L$50,MATCH($T460,Reliability!$C$23:$C$50,0)),0),0)*$H460*$X460*$Y460),$D460)*$R460","v":0},{"$f":"MIN((IFERROR(IF(AND($V460<=AH$1,$W460>=AH$1),INDEX(Reliability!M$23:M$50,MATCH($S460,Reliability!$C$23:$C$50,0)),0),0)*IF($T460=\"n/a\",$D460*$Y460,$G460)+IFERROR(IF(AND($V460<=AH$1,$W460>=AH$1),INDEX(Reliability!M$23:M$50,MATCH($T460,Reliability!$C$23:$C$50,0)),0),0)*$H460*$X460*$Y460),$D460)*$R460","v":0},{"$f":"MIN((IFERROR(IF(AND($V460<=AI$1,$W460>=AI$1),INDEX(Reliability!N$23:N$50,MATCH($S460,Reliability!$C$23:$C$50,0)),0),0)*IF($T460=\"n/a\",$D460*$Y460,$G460)+IFERROR(IF(AND($V460<=AI$1,$W460>=AI$1),INDEX(Reliability!N$23:N$50,MATCH($T460,Reliability!$C$23:$C$50,0)),0),0)*$H460*$X460*$Y460),$D460)*$R460","v":0},{"$f":"MIN((IFERROR(IF(AND($V460<=AJ$1,$W460>=AJ$1),INDEX(Reliability!O$23:O$50,MATCH($S460,Reliability!$C$23:$C$50,0)),0),0)*IF($T460=\"n/a\",$D460*$Y460,$G460)+IFERROR(IF(AND($V460<=AJ$1,$W460>=AJ$1),INDEX(Reliability!O$23:O$50,MATCH($T460,Reliability!$C$23:$C$50,0)),0),0)*$H460*$X460*$Y460),$D460)*$R460","v":0},{"$f":"MIN((IFERROR(IF(AND($V460<=AK$1,$W460>=AK$1),INDEX(Reliability!P$23:P$50,MATCH($S460,Reliability!$C$23:$C$50,0)),0),0)*IF($T460=\"n/a\",$D460*$Y460,$G460)+IFERROR(IF(AND($V460<=AK$1,$W460>=AK$1),INDEX(Reliability!P$23:P$50,MATCH($T460,Reliability!$C$23:$C$50,0)),0),0)*$H460*$X460*$Y460),$D460)*$R460","v":0}]
[null,{"$f":"unique_contracts!B462","v":0},{"$f":"unique_contracts!D462","v":0},{"$f":"unique_contracts!J462","v":0},{"$f":"unique_contracts!M462","v":0},{"$f":"unique_contracts!N462","v":0},{"$f":"unique_contracts!P462","v":0},{"$f":"unique_contracts!R462","v":0},{"$f":"unique_contracts!V462","v":0},{"$f":"unique_contracts!AB462","v":0},{"$f":"unique_contracts!AM462","v":0},{"$f":"unique_contracts!AN462","v":0},{"$f":"unique_contracts!AO462","v":0},{"$f":"unique_contracts!AP462","v":0},{"$f":"unique_contracts!AQ462","v":0},{"$f":"unique_contracts!AR462","v":0},{"$f":"unique_contracts!BP462","v":0},0,{"$f":"IFERROR(IF(AND(I461>0,E461=\"NotHybrid\"),_xlfn.CONCAT(MAX(MIN(ROUNDDOWN(I461/D461,0),8),4),INDEX(resources!$G:$G,MATCH(B461,resources!$A:$A,0))),INDEX(resources!$G:$G,MATCH(B461,resources!$A:$A,0))),\"n/a\")","v":"n/a"},"n/a","n/a",0,0,1,1,{"$f":"MIN((IFERROR(IF(AND($V461<=Z$1,$W461>=Z$1),INDEX(Reliability!E$23:E$50,MATCH($S461,Reliability!$C$23:$C$50,0)),0),0)*IF($T461=\"n/a\",$D461*$Y461,$G461)+IFERROR(IF(AND($V461<=Z$1,$W461>=Z$1),INDEX(Reliability!E$23:E$50,MATCH($T461,Reliability!$C$23:$C$50,0)),0),0)*$H461*$X461*$Y461),$D461)*$R461","v":0},{"$f":"MIN((IFERROR(IF(AND($V461<=AA$1,$W461>=AA$1),INDEX(Reliability!F$23:F$50,MATCH($S461,Reliability!$C$23:$C$50,0)),0),0)*IF($T461=\"n/a\",$D461*$Y461,$G461)+IFERROR(IF(AND($V461<=AA$1,$W461>=AA$1),INDEX(Reliability!F$23:F$50,MATCH($T461,Reliability!$C$23:$C$50,0)),0),0)*$H461*$X461*$Y461),$D461)*$R461","v":0},{"$f":"MIN((IFERROR(IF(AND($V461<=AB$1,$W461>=AB$1),INDEX(Reliability!G$23:G$50,MATCH($S461,Reliability!$C$23:$C$50,0)),0),0)*IF($T461=\"n/a\",$D461*$Y461,$G461)+IFERROR(IF(AND($V461<=AB$1,$W461>=AB$1),INDEX(Reliability!G$23:G$50,MATCH($T461,Reliability!$C$23:$C$50,0)),0),0)*$H461*$X461*$Y461),$D461)*$R461","v":0},{"$f":"MIN((IFERROR(IF(AND($V461<=AC$1,$W461>=AC$1),INDEX(Reliability!H$23:H$50,MATCH($S461,Reliability!$C$23:$C$50,0)),0),0)*IF($T461=\"n/a\",$D461*$Y461,$G461)+IFERROR(IF(AND($V461<=AC$1,$W461>=AC$1),INDEX(Reliability!H$23:H$50,MATCH($T461,Reliability!$C$23:$C$50,0)),0),0)*$H461*$X461*$Y461),$D461)*$R461","v":0},{"$f":"MIN((IFERROR(IF(AND($V461<=AD$1,$W461>=AD$1),INDEX(Reliability!I$23:I$50,MATCH($S461,Reliability!$C$23:$C$50,0)),0),0)*IF($T461=\"n/a\",$D461*$Y461,$G461)+IFERROR(IF(AND($V461<=AD$1,$W461>=AD$1),INDEX(Reliability!I$23:I$50,MATCH($T461,Reliability!$C$23:$C$50,0)),0),0)*$H461*$X461*$Y461),$D461)*$R461","v":0},{"$f":"MIN((IFERROR(IF(AND($V461<=AE$1,$W461>=AE$1),INDEX(Reliability!J$23:J$50,MATCH($S461,Reliability!$C$23:$C$50,0)),0),0)*IF($T461=\"n/a\",$D461*$Y461,$G461)+IFERROR(IF(AND($V461<=AE$1,$W461>=AE$1),INDEX(Reliability!J$23:J$50,MATCH($T461,Reliability!$C$23:$C$50,0)),0),0)*$H461*$X461*$Y461),$D461)*$R461","v":0},{"$f":"MIN((IFERROR(IF(AND($V461<=AF$1,$W461>=AF$1),INDEX(Reliability!K$23:K$50,MATCH($S461,Reliability!$C$23:$C$50,0)),0),0)*IF($T461=\"n/a\",$D461*$Y461,$G461)+IFERROR(IF(AND($V461<=AF$1,$W461>=AF$1),INDEX(Reliability!K$23:K$50,MATCH($T461,Reliability!$C$23:$C$50,0)),0),0)*$H461*$X461*$Y461),$D461)*$R461","v":0},{"$f":"MIN((IFERROR(IF(AND($V461<=AG$1,$W461>=AG$1),INDEX(Reliability!L$23:L$50,MATCH($S461,Reliability!$C$23:$C$50,0)),0),0)*IF($T461=\"n/a\",$D461*$Y461,$G461)+IFERROR(IF(AND($V461<=AG$1,$W461>=AG$1),INDEX(Reliability!L$23:L$50,MATCH($T461,Reliability!$C$23:$C$50,0)),0),0)*$H461*$X461*$Y461),$D461)*$R461","v":0},{"$f":"MIN((IFERROR(IF(AND($V461<=AH$1,$W461>=AH$1),INDEX(Reliability!M$23:M$50,MATCH($S461,Reliability!$C$23:$C$50,0)),0),0)*IF($T461=\"n/a\",$D461*$Y461,$G461)+IFERROR(IF(AND($V461<=AH$1,$W461>=AH$1),INDEX(Reliability!M$23:M$50,MATCH($T461,Reliability!$C$23:$C$50,0)),0),0)*$H461*$X461*$Y461),$D461)*$R461","v":0},{"$f":"MIN((IFERROR(IF(AND($V461<=AI$1,$W461>=AI$1),INDEX(Reliability!N$23:N$50,MATCH($S461,Reliability!$C$23:$C$50,0)),0),0)*IF($T461=\"n/a\",$D461*$Y461,$G461)+IFERROR(IF(AND($V461<=AI$1,$W461>=AI$1),INDEX(Reliability!N$23:N$50,MATCH($T461,Reliability!$C$23:$C$50,0)),0),0)*$H461*$X461*$Y461),$D461)*$R461","v":0},{"$f":"MIN((IFERROR(IF(AND($V461<=AJ$1,$W461>=AJ$1),INDEX(Reliability!O$23:O$50,MATCH($S461,Reliability!$C$23:$C$50,0)),0),0)*IF($T461=\"n/a\",$D461*$Y461,$G461)+IFERROR(IF(AND($V461<=AJ$1,$W461>=AJ$1),INDEX(Reliability!O$23:O$50,MATCH($T461,Reliability!$C$23:$C$50,0)),0),0)*$H461*$X461*$Y461),$D461)*$R461","v":0},{"$f":"MIN((IFERROR(IF(AND($V461<=AK$1,$W461>=AK$1),INDEX(Reliability!P$23:P$50,MATCH($S461,Reliability!$C$23:$C$50,0)),0),0)*IF($T461=\"n/a\",$D461*$Y461,$G461)+IFERROR(IF(AND($V461<=AK$1,$W461>=AK$1),INDEX(Reliability!P$23:P$50,MATCH($T461,Reliability!$C$23:$C$50,0)),0),0)*$H461*$X461*$Y461),$D461)*$R461","v":0}]
[null,{"$f":"unique_contracts!B463","v":0},{"$f":"unique_contracts!D463","v":0},{"$f":"unique_contracts!J463","v":0},{"$f":"unique_contracts!M463","v":0},{"$f":"unique_contracts!N463","v":0},{"$f":"unique_contracts!P463","v":0},{"$f":"unique_contracts!R463","v":0},{"$f":"unique_contracts!V463","v":0},{"$f":"unique_contracts!AB463","v":0},{"$f":"unique_contracts!AM463","v":0},{"$f":"unique_contracts!AN463","v":0},{"$f":"unique_contracts!AO463","v":0},{"$f":"unique_contracts!AP463","v":0},{"$f":"unique_contracts!AQ463","v":0},{"$f":"unique_contracts!AR463","v":0},{"$f":"unique_contracts!BP463","v":0},0,{"$f":"IFERROR(IF(AND(I462>0,E462=\"NotHybrid\"),_xlfn.CONCAT(MAX(MIN(ROUNDDOWN(I462/D462,0),8),4),INDEX(resources!$G:$G,MATCH(B462,resources!$A:$A,0))),INDEX(resources!$G:$G,MATCH(B462,resources!$A:$A,0))),\"n/a\")","v":"n/a"},"n/a","n/a",0,0,1,1,{"$f":"MIN((IFERROR(IF(AND($V462<=Z$1,$W462>=Z$1),INDEX(Reliability!E$23:E$50,MATCH($S462,Reliability!$C$23:$C$50,0)),0),0)*IF($T462=\"n/a\",$D462*$Y462,$G462)+IFERROR(IF(AND($V462<=Z$1,$W462>=Z$1),INDEX(Reliability!E$23:E$50,MATCH($T462,Reliability!$C$23:$C$50,0)),0),0)*$H462*$X462*$Y462),$D462)*$R462","v":0},{"$f":"MIN((IFERROR(IF(AND($V462<=AA$1,$W462>=AA$1),INDEX(Reliability!F$23:F$50,MATCH($S462,Reliability!$C$23:$C$50,0)),0),0)*IF($T462=\"n/a\",$D462*$Y462,$G462)+IFERROR(IF(AND($V462<=AA$1,$W462>=AA$1),INDEX(Reliability!F$23:F$50,MATCH($T462,Reliability!$C$23:$C$50,0)),0),0)*$H462*$X462*$Y462),$D462)*$R462","v":0},{"$f":"MIN((IFERROR(IF(AND($V462<=AB$1,$W462>=AB$1),INDEX(Reliability!G$23:G$50,MATCH($S462,Reliability!$C$23:$C$50,0)),0),0)*IF($T462=\"n/a\",$D462*$Y462,$G462)+IFERROR(IF(AND($V462<=AB$1,$W462>=AB$1),INDEX(Reliability!G$23:G$50,MATCH($T462,Reliability!$C$23:$C$50,0)),0),0)*$H462*$X462*$Y462),$D462)*$R462","v":0},{"$f":"MIN((IFERROR(IF(AND($V462<=AC$1,$W462>=AC$1),INDEX(Reliability!H$23:H$50,MATCH($S462,Reliability!$C$23:$C$50,0)),0),0)*IF($T462=\"n/a\",$D462*$Y462,$G462)+IFERROR(IF(AND($V462<=AC$1,$W462>=AC$1),INDEX(Reliability!H$23:H$50,MATCH($T462,Reliability!$C$23:$C$50,0)),0),0)*$H462*$X462*$Y462),$D462)*$R462","v":0},{"$f":"MIN((IFERROR(IF(AND($V462<=AD$1,$W462>=AD$1),INDEX(Reliability!I$23:I$50,MATCH($S462,Reliability!$C$23:$C$50,0)),0),0)*IF($T462=\"n/a\",$D462*$Y462,$G462)+IFERROR(IF(AND($V462<=AD$1,$W462>=AD$1),INDEX(Reliability!I$23:I$50,MATCH($T462,Reliability!$C$23:$C$50,0)),0),0)*$H462*$X462*$Y462),$D462)*$R462","v":0},{"$f":"MIN((IFERROR(IF(AND($V462<=AE$1,$W462>=AE$1),INDEX(Reliability!J$23:J$50,MATCH($S462,Reliability!$C$23:$C$50,0)),0),0)*IF($T462=\"n/a\",$D462*$Y462,$G462)+IFERROR(IF(AND($V462<=AE$1,$W462>=AE$1),INDEX(Reliability!J$23:J$50,MATCH($T462,Reliability!$C$23:$C$50,0)),0),0)*$H462*$X462*$Y462),$D462)*$R462","v":0},{"$f":"MIN((IFERROR(IF(AND($V462<=AF$1,$W462>=AF$1),INDEX(Reliability!K$23:K$50,MATCH($S462,Reliability!$C$23:$C$50,0)),0),0)*IF($T462=\"n/a\",$D462*$Y462,$G462)+IFERROR(IF(AND($V462<=AF$1,$W462>=AF$1),INDEX(Reliability!K$23:K$50,MATCH($T462,Reliability!$C$23:$C$50,0)),0),0)*$H462*$X462*$Y462),$D462)*$R462","v":0},{"$f":"MIN((IFERROR(IF(AND($V462<=AG$1,$W462>=AG$1),INDEX(Reliability!L$23:L$50,MATCH($S462,Reliability!$C$23:$C$50,0)),0),0)*IF($T462=\"n/a\",$D462*$Y462,$G462)+IFERROR(IF(AND($V462<=AG$1,$W462>=AG$1),INDEX(Reliability!L$23:L$50,MATCH($T462,Reliability!$C$23:$C$50,0)),0),0)*$H462*$X462*$Y462),$D462)*$R462","v":0},{"$f":"MIN((IFERROR(IF(AND($V462<=AH$1,$W462>=AH$1),INDEX(Reliability!M$23:M$50,MATCH($S462,Reliability!$C$23:$C$50,0)),0),0)*IF($T462=\"n/a\",$D462*$Y462,$G462)+IFERROR(IF(AND($V462<=AH$1,$W462>=AH$1),INDEX(Reliability!M$23:M$50,MATCH($T462,Reliability!$C$23:$C$50,0)),0),0)*$H462*$X462*$Y462),$D462)*$R462","v":0},{"$f":"MIN((IFERROR(IF(AND($V462<=AI$1,$W462>=AI$1),INDEX(Reliability!N$23:N$50,MATCH($S462,Reliability!$C$23:$C$50,0)),0),0)*IF($T462=\"n/a\",$D462*$Y462,$G462)+IFERROR(IF(AND($V462<=AI$1,$W462>=AI$1),INDEX(Reliability!N$23:N$50,MATCH($T462,Reliability!$C$23:$C$50,0)),0),0)*$H462*$X462*$Y462),$D462)*$R462","v":0},{"$f":"MIN((IFERROR(IF(AND($V462<=AJ$1,$W462>=AJ$1),INDEX(Reliability!O$23:O$50,MATCH($S462,Reliability!$C$23:$C$50,0)),0),0)*IF($T462=\"n/a\",$D462*$Y462,$G462)+IFERROR(IF(AND($V462<=AJ$1,$W462>=AJ$1),INDEX(Reliability!O$23:O$50,MATCH($T462,Reliability!$C$23:$C$50,0)),0),0)*$H462*$X462*$Y462),$D462)*$R462","v":0},{"$f":"MIN((IFERROR(IF(AND($V462<=AK$1,$W462>=AK$1),INDEX(Reliability!P$23:P$50,MATCH($S462,Reliability!$C$23:$C$50,0)),0),0)*IF($T462=\"n/a\",$D462*$Y462,$G462)+IFERROR(IF(AND($V462<=AK$1,$W462>=AK$1),INDEX(Reliability!P$23:P$50,MATCH($T462,Reliability!$C$23:$C$50,0)),0),0)*$H462*$X462*$Y462),$D462)*$R462","v":0}]
[null,{"$f":"unique_contracts!B464","v":0},{"$f":"unique_contracts!D464","v":0},{"$f":"unique_contracts!J464","v":0},{"$f":"unique_contracts!M464","v":0},{"$f":"unique_contracts!N464","v":0},{"$f":"unique_contracts!P464","v":0},{"$f":"unique_contracts!R464","v":0},{"$f":"unique_contracts!V464","v":0},{"$f":"unique_contracts!AB464","v":0},{"$f":"unique_contracts!AM464","v":0},{"$f":"unique_contracts!AN464","v":0},{"$f":"unique_contracts!AO464","v":0},{"$f":"unique_contracts!AP464","v":0},{"$f":"unique_contracts!AQ464","v":0},{"$f":"unique_contracts!AR464","v":0},{"$f":"unique_contracts!BP464","v":0},0,{"$f":"IFERROR(IF(AND(I463>0,E463=\"NotHybrid\"),_xlfn.CONCAT(MAX(MIN(ROUNDDOWN(I463/D463,0),8),4),INDEX(resources!$G:$G,MATCH(B463,resources!$A:$A,0))),INDEX(resources!$G:$G,MATCH(B463,resources!$A:$A,0))),\"n/a\")","v":"n/a"},"n/a","n/a",0,0,1,1,{"$f":"MIN((IFERROR(IF(AND($V463<=Z$1,$W463>=Z$1),INDEX(Reliability!E$23:E$50,MATCH($S463,Reliability!$C$23:$C$50,0)),0),0)*IF($T463=\"n/a\",$D463*$Y463,$G463)+IFERROR(IF(AND($V463<=Z$1,$W463>=Z$1),INDEX(Reliability!E$23:E$50,MATCH($T463,Reliability!$C$23:$C$50,0)),0),0)*$H463*$X463*$Y463),$D463)*$R463","v":0},{"$f":"MIN((IFERROR(IF(AND($V463<=AA$1,$W463>=AA$1),INDEX(Reliability!F$23:F$50,MATCH($S463,Reliability!$C$23:$C$50,0)),0),0)*IF($T463=\"n/a\",$D463*$Y463,$G463)+IFERROR(IF(AND($V463<=AA$1,$W463>=AA$1),INDEX(Reliability!F$23:F$50,MATCH($T463,Reliability!$C$23:$C$50,0)),0),0)*$H463*$X463*$Y463),$D463)*$R463","v":0},{"$f":"MIN((IFERROR(IF(AND($V463<=AB$1,$W463>=AB$1),INDEX(Reliability!G$23:G$50,MATCH($S463,Reliability!$C$23:$C$50,0)),0),0)*IF($T463=\"n/a\",$D463*$Y463,$G463)+IFERROR(IF(AND($V463<=AB$1,$W463>=AB$1),INDEX(Reliability!G$23:G$50,MATCH($T463,Reliability!$C$23:$C$50,0)),0),0)*$H463*$X463*$Y463),$D463)*$R463","v":0},{"$f":"MIN((IFERROR(IF(AND($V463<=AC$1,$W463>=AC$1),INDEX(Reliability!H$23:H$50,MATCH($S463,Reliability!$C$23:$C$50,0)),0),0)*IF($T463=\"n/a\",$D463*$Y463,$G463)+IFERROR(IF(AND($V463<=AC$1,$W463>=AC$1),INDEX(Reliability!H$23:H$50,MATCH($T463,Reliability!$C$23:$C$50,0)),0),0)*$H463*$X463*$Y463),$D463)*$R463","v":0},{"$f":"MIN((IFERROR(IF(AND($V463<=AD$1,$W463>=AD$1),INDEX(Reliability!I$23:I$50,MATCH($S463,Reliability!$C$23:$C$50,0)),0),0)*IF($T463=\"n/a\",$D463*$Y463,$G463)+IFERROR(IF(AND($V463<=AD$1,$W463>=AD$1),INDEX(Reliability!I$23:I$50,MATCH($T463,Reliability!$C$23:$C$50,0)),0),0)*$H463*$X463*$Y463),$D463)*$R463","v":0},{"$f":"MIN((IFERROR(IF(AND($V463<=AE$1,$W463>=AE$1),INDEX(Reliability!J$23:J$50,MATCH($S463,Reliability!$C$23:$C$50,0)),0),0)*IF($T463=\"n/a\",$D463*$Y463,$G463)+IFERROR(IF(AND($V463<=AE$1,$W463>=AE$1),INDEX(Reliability!J$23:J$50,MATCH($T463,Reliability!$C$23:$C$50,0)),0),0)*$H463*$X463*$Y463),$D463)*$R463","v":0},{"$f":"MIN((IFERROR(IF(AND($V463<=AF$1,$W463>=AF$1),INDEX(Reliability!K$23:K$50,MATCH($S463,Reliability!$C$23:$C$50,0)),0),0)*IF($T463=\"n/a\",$D463*$Y463,$G463)+IFERROR(IF(AND($V463<=AF$1,$W463>=AF$1),INDEX(Reliability!K$23:K$50,MATCH($T463,Reliability!$C$23:$C$50,0)),0),0)*$H463*$X463*$Y463),$D463)*$R463","v":0},{"$f":"MIN((IFERROR(IF(AND($V463<=AG$1,$W463>=AG$1),INDEX(Reliability!L$23:L$50,MATCH($S463,Reliability!$C$23:$C$50,0)),0),0)*IF($T463=\"n/a\",$D463*$Y463,$G463)+IFERROR(IF(AND($V463<=AG$1,$W463>=AG$1),INDEX(Reliability!L$23:L$50,MATCH($T463,Reliability!$C$23:$C$50,0)),0),0)*$H463*$X463*$Y463),$D463)*$R463","v":0},{"$f":"MIN((IFERROR(IF(AND($V463<=AH$1,$W463>=AH$1),INDEX(Reliability!M$23:M$50,MATCH($S463,Reliability!$C$23:$C$50,0)),0),0)*IF($T463=\"n/a\",$D463*$Y463,$G463)+IFERROR(IF(AND($V463<=AH$1,$W463>=AH$1),INDEX(Reliability!M$23:M$50,MATCH($T463,Reliability!$C$23:$C$50,0)),0),0)*$H463*$X463*$Y463),$D463)*$R463","v":0},{"$f":"MIN((IFERROR(IF(AND($V463<=AI$1,$W463>=AI$1),INDEX(Reliability!N$23:N$50,MATCH($S463,Reliability!$C$23:$C$50,0)),0),0)*IF($T463=\"n/a\",$D463*$Y463,$G463)+IFERROR(IF(AND($V463<=AI$1,$W463>=AI$1),INDEX(Reliability!N$23:N$50,MATCH($T463,Reliability!$C$23:$C$50,0)),0),0)*$H463*$X463*$Y463),$D463)*$R463","v":0},{"$f":"MIN((IFERROR(IF(AND($V463<=AJ$1,$W463>=AJ$1),INDEX(Reliability!O$23:O$50,MATCH($S463,Reliability!$C$23:$C$50,0)),0),0)*IF($T463=\"n/a\",$D463*$Y463,$G463)+IFERROR(IF(AND($V463<=AJ$1,$W463>=AJ$1),INDEX(Reliability!O$23:O$50,MATCH($T463,Reliability!$C$23:$C$50,0)),0),0)*$H463*$X463*$Y463),$D463)*$R463","v":0},{"$f":"MIN((IFERROR(IF(AND($V463<=AK$1,$W463>=AK$1),INDEX(Reliability!P$23:P$50,MATCH($S463,Reliability!$C$23:$C$50,0)),0),0)*IF($T463=\"n/a\",$D463*$Y463,$G463)+IFERROR(IF(AND($V463<=AK$1,$W463>=AK$1),INDEX(Reliability!P$23:P$50,MATCH($T463,Reliability!$C$23:$C$50,0)),0),0)*$H463*$X463*$Y463),$D463)*$R463","v":0}]
[null,{"$f":"unique_contracts!B465","v":0},{"$f":"unique_contracts!D465","v":0},{"$f":"unique_contracts!J465","v":0},{"$f":"unique_contracts!M465","v":0},{"$f":"unique_contracts!N465","v":0},{"$f":"unique_contracts!P465","v":0},{"$f":"unique_contracts!R465","v":0},{"$f":"unique_contracts!V465","v":0},{"$f":"unique_contracts!AB465","v":0},{"$f":"unique_contracts!AM465","v":0},{"$f":"unique_contracts!AN465","v":0},{"$f":"unique_contracts!AO465","v":0},{"$f":"unique_contracts!AP465","v":0},{"$f":"unique_contracts!AQ465","v":0},{"$f":"unique_contracts!AR465","v":0},{"$f":"unique_contracts!BP465","v":0},0,{"$f":"IFERROR(IF(AND(I464>0,E464=\"NotHybrid\"),_xlfn.CONCAT(MAX(MIN(ROUNDDOWN(I464/D464,0),8),4),INDEX(resources!$G:$G,MATCH(B464,resources!$A:$A,0))),INDEX(resources!$G:$G,MATCH(B464,resources!$A:$A,0))),\"n/a\")","v":"n/a"},"n/a","n/a",0,0,1,1,{"$f":"MIN((IFERROR(IF(AND($V464<=Z$1,$W464>=Z$1),INDEX(Reliability!E$23:E$50,MATCH($S464,Reliability!$C$23:$C$50,0)),0),0)*IF($T464=\"n/a\",$D464*$Y464,$G464)+IFERROR(IF(AND($V464<=Z$1,$W464>=Z$1),INDEX(Reliability!E$23:E$50,MATCH($T464,Reliability!$C$23:$C$50,0)),0),0)*$H464*$X464*$Y464),$D464)*$R464","v":0},{"$f":"MIN((IFERROR(IF(AND($V464<=AA$1,$W464>=AA$1),INDEX(Reliability!F$23:F$50,MATCH($S464,Reliability!$C$23:$C$50,0)),0),0)*IF($T464=\"n/a\",$D464*$Y464,$G464)+IFERROR(IF(AND($V464<=AA$1,$W464>=AA$1),INDEX(Reliability!F$23:F$50,MATCH($T464,Reliability!$C$23:$C$50,0)),0),0)*$H464*$X464*$Y464),$D464)*$R464","v":0},{"$f":"MIN((IFERROR(IF(AND($V464<=AB$1,$W464>=AB$1),INDEX(Reliability!G$23:G$50,MATCH($S464,Reliability!$C$23:$C$50,0)),0),0)*IF($T464=\"n/a\",$D464*$Y464,$G464)+IFERROR(IF(AND($V464<=AB$1,$W464>=AB$1),INDEX(Reliability!G$23:G$50,MATCH($T464,Reliability!$C$23:$C$50,0)),0),0)*$H464*$X464*$Y464),$D464)*$R464","v":0},{"$f":"MIN((IFERROR(IF(AND($V464<=AC$1,$W464>=AC$1),INDEX(Reliability!H$23:H$50,MATCH($S464,Reliability!$C$23:$C$50,0)),0),0)*IF($T464=\"n/a\",$D464*$Y464,$G464)+IFERROR(IF(AND($V464<=AC$1,$W464>=AC$1),INDEX(Reliability!H$23:H$50,MATCH($T464,Reliability!$C$23:$C$50,0)),0),0)*$H464*$X464*$Y464),$D464)*$R464","v":0},{"$f":"MIN((IFERROR(IF(AND($V464<=AD$1,$W464>=AD$1),INDEX(Reliability!I$23:I$50,MATCH($S464,Reliability!$C$23:$C$50,0)),0),0)*IF($T464=\"n/a\",$D464*$Y464,$G464)+IFERROR(IF(AND($V464<=AD$1,$W464>=AD$1),INDEX(Reliability!I$23:I$50,MATCH($T464,Reliability!$C$23:$C$50,0)),0),0)*$H464*$X464*$Y464),$D464)*$R464","v":0},{"$f":"MIN((IFERROR(IF(AND($V464<=AE$1,$W464>=AE$1),INDEX(Reliability!J$23:J$50,MATCH($S464,Reliability!$C$23:$C$50,0)),0),0)*IF($T464=\"n/a\",$D464*$Y464,$G464)+IFERROR(IF(AND($V464<=AE$1,$W464>=AE$1),INDEX(Reliability!J$23:J$50,MATCH($T464,Reliability!$C$23:$C$50,0)),0),0)*$H464*$X464*$Y464),$D464)*$R464","v":0},{"$f":"MIN((IFERROR(IF(AND($V464<=AF$1,$W464>=AF$1),INDEX(Reliability!K$23:K$50,MATCH($S464,Reliability!$C$23:$C$50,0)),0),0)*IF($T464=\"n/a\",$D464*$Y464,$G464)+IFERROR(IF(AND($V464<=AF$1,$W464>=AF$1),INDEX(Reliability!K$23:K$50,MATCH($T464,Reliability!$C$23:$C$50,0)),0),0)*$H464*$X464*$Y464),$D464)*$R464","v":0},{"$f":"MIN((IFERROR(IF(AND($V464<=AG$1,$W464>=AG$1),INDEX(Reliability!L$23:L$50,MATCH($S464,Reliability!$C$23:$C$50,0)),0),0)*IF($T464=\"n/a\",$D464*$Y464,$G464)+IFERROR(IF(AND($V464<=AG$1,$W464>=AG$1),INDEX(Reliability!L$23:L$50,MATCH($T464,Reliability!$C$23:$C$50,0)),0),0)*$H464*$X464*$Y464),$D464)*$R464","v":0},{"$f":"MIN((IFERROR(IF(AND($V464<=AH$1,$W464>=AH$1),INDEX(Reliability!M$23:M$50,MATCH($S464,Reliability!$C$23:$C$50,0)),0),0)*IF($T464=\"n/a\",$D464*$Y464,$G464)+IFERROR(IF(AND($V464<=AH$1,$W464>=AH$1),INDEX(Reliability!M$23:M$50,MATCH($T464,Reliability!$C$23:$C$50,0)),0),0)*$H464*$X464*$Y464),$D464)*$R464","v":0},{"$f":"MIN((IFERROR(IF(AND($V464<=AI$1,$W464>=AI$1),INDEX(Reliability!N$23:N$50,MATCH($S464,Reliability!$C$23:$C$50,0)),0),0)*IF($T464=\"n/a\",$D464*$Y464,$G464)+IFERROR(IF(AND($V464<=AI$1,$W464>=AI$1),INDEX(Reliability!N$23:N$50,MATCH($T464,Reliability!$C$23:$C$50,0)),0),0)*$H464*$X464*$Y464),$D464)*$R464","v":0},{"$f":"MIN((IFERROR(IF(AND($V464<=AJ$1,$W464>=AJ$1),INDEX(Reliability!O$23:O$50,MATCH($S464,Reliability!$C$23:$C$50,0)),0),0)*IF($T464=\"n/a\",$D464*$Y464,$G464)+IFERROR(IF(AND($V464<=AJ$1,$W464>=AJ$1),INDEX(Reliability!O$23:O$50,MATCH($T464,Reliability!$C$23:$C$50,0)),0),0)*$H464*$X464*$Y464),$D464)*$R464","v":0},{"$f":"MIN((IFERROR(IF(AND($V464<=AK$1,$W464>=AK$1),INDEX(Reliability!P$23:P$50,MATCH($S464,Reliability!$C$23:$C$50,0)),0),0)*IF($T464=\"n/a\",$D464*$Y464,$G464)+IFERROR(IF(AND($V464<=AK$1,$W464>=AK$1),INDEX(Reliability!P$23:P$50,MATCH($T464,Reliability!$C$23:$C$50,0)),0),0)*$H464*$X464*$Y464),$D464)*$R464","v":0}]
[null,{"$f":"unique_contracts!B466","v":0},{"$f":"unique_contracts!D466","v":0},{"$f":"unique_contracts!J466","v":0},{"$f":"unique_contracts!M466","v":0},{"$f":"unique_contracts!N466","v":0},{"$f":"unique_contracts!P466","v":0},{"$f":"unique_contracts!R466","v":0},{"$f":"unique_contracts!V466","v":0},{"$f":"unique_contracts!AB466","v":0},{"$f":"unique_contracts!AM466","v":0},{"$f":"unique_contracts!AN466","v":0},{"$f":"unique_contracts!AO466","v":0},{"$f":"unique_contracts!AP466","v":0},{"$f":"unique_contracts!AQ466","v":0},{"$f":"unique_contracts!AR466","v":0},{"$f":"unique_contracts!BP466","v":0},0,{"$f":"IFERROR(IF(AND(I465>0,E465=\"NotHybrid\"),_xlfn.CONCAT(MAX(MIN(ROUNDDOWN(I465/D465,0),8),4),INDEX(resources!$G:$G,MATCH(B465,resources!$A:$A,0))),INDEX(resources!$G:$G,MATCH(B465,resources!$A:$A,0))),\"n/a\")","v":"n/a"},"n/a","n/a",0,0,1,1,{"$f":"MIN((IFERROR(IF(AND($V465<=Z$1,$W465>=Z$1),INDEX(Reliability!E$23:E$50,MATCH($S465,Reliability!$C$23:$C$50,0)),0),0)*IF($T465=\"n/a\",$D465*$Y465,$G465)+IFERROR(IF(AND($V465<=Z$1,$W465>=Z$1),INDEX(Reliability!E$23:E$50,MATCH($T465,Reliability!$C$23:$C$50,0)),0),0)*$H465*$X465*$Y465),$D465)*$R465","v":0},{"$f":"MIN((IFERROR(IF(AND($V465<=AA$1,$W465>=AA$1),INDEX(Reliability!F$23:F$50,MATCH($S465,Reliability!$C$23:$C$50,0)),0),0)*IF($T465=\"n/a\",$D465*$Y465,$G465)+IFERROR(IF(AND($V465<=AA$1,$W465>=AA$1),INDEX(Reliability!F$23:F$50,MATCH($T465,Reliability!$C$23:$C$50,0)),0),0)*$H465*$X465*$Y465),$D465)*$R465","v":0},{"$f":"MIN((IFERROR(IF(AND($V465<=AB$1,$W465>=AB$1),INDEX(Reliability!G$23:G$50,MATCH($S465,Reliability!$C$23:$C$50,0)),0),0)*IF($T465=\"n/a\",$D465*$Y465,$G465)+IFERROR(IF(AND($V465<=AB$1,$W465>=AB$1),INDEX(Reliability!G$23:G$50,MATCH($T465,Reliability!$C$23:$C$50,0)),0),0)*$H465*$X465*$Y465),$D465)*$R465","v":0},{"$f":"MIN((IFERROR(IF(AND($V465<=AC$1,$W465>=AC$1),INDEX(Reliability!H$23:H$50,MATCH($S465,Reliability!$C$23:$C$50,0)),0),0)*IF($T465=\"n/a\",$D465*$Y465,$G465)+IFERROR(IF(AND($V465<=AC$1,$W465>=AC$1),INDEX(Reliability!H$23:H$50,MATCH($T465,Reliability!$C$23:$C$50,0)),0),0)*$H465*$X465*$Y465),$D465)*$R465","v":0},{"$f":"MIN((IFERROR(IF(AND($V465<=AD$1,$W465>=AD$1),INDEX(Reliability!I$23:I$50,MATCH($S465,Reliability!$C$23:$C$50,0)),0),0)*IF($T465=\"n/a\",$D465*$Y465,$G465)+IFERROR(IF(AND($V465<=AD$1,$W465>=AD$1),INDEX(Reliability!I$23:I$50,MATCH($T465,Reliability!$C$23:$C$50,0)),0),0)*$H465*$X465*$Y465),$D465)*$R465","v":0},{"$f":"MIN((IFERROR(IF(AND($V465<=AE$1,$W465>=AE$1),INDEX(Reliability!J$23:J$50,MATCH($S465,Reliability!$C$23:$C$50,0)),0),0)*IF($T465=\"n/a\",$D465*$Y465,$G465)+IFERROR(IF(AND($V465<=AE$1,$W465>=AE$1),INDEX(Reliability!J$23:J$50,MATCH($T465,Reliability!$C$23:$C$50,0)),0),0)*$H465*$X465*$Y465),$D465)*$R465","v":0},{"$f":"MIN((IFERROR(IF(AND($V465<=AF$1,$W465>=AF$1),INDEX(Reliability!K$23:K$50,MATCH($S465,Reliability!$C$23:$C$50,0)),0),0)*IF($T465=\"n/a\",$D465*$Y465,$G465)+IFERROR(IF(AND($V465<=AF$1,$W465>=AF$1),INDEX(Reliability!K$23:K$50,MATCH($T465,Reliability!$C$23:$C$50,0)),0),0)*$H465*$X465*$Y465),$D465)*$R465","v":0},{"$f":"MIN((IFERROR(IF(AND($V465<=AG$1,$W465>=AG$1),INDEX(Reliability!L$23:L$50,MATCH($S465,Reliability!$C$23:$C$50,0)),0),0)*IF($T465=\"n/a\",$D465*$Y465,$G465)+IFERROR(IF(AND($V465<=AG$1,$W465>=AG$1),INDEX(Reliability!L$23:L$50,MATCH($T465,Reliability!$C$23:$C$50,0)),0),0)*$H465*$X465*$Y465),$D465)*$R465","v":0},{"$f":"MIN((IFERROR(IF(AND($V465<=AH$1,$W465>=AH$1),INDEX(Reliability!M$23:M$50,MATCH($S465,Reliability!$C$23:$C$50,0)),0),0)*IF($T465=\"n/a\",$D465*$Y465,$G465)+IFERROR(IF(AND($V465<=AH$1,$W465>=AH$1),INDEX(Reliability!M$23:M$50,MATCH($T465,Reliability!$C$23:$C$50,0)),0),0)*$H465*$X465*$Y465),$D465)*$R465","v":0},{"$f":"MIN((IFERROR(IF(AND($V465<=AI$1,$W465>=AI$1),INDEX(Reliability!N$23:N$50,MATCH($S465,Reliability!$C$23:$C$50,0)),0),0)*IF($T465=\"n/a\",$D465*$Y465,$G465)+IFERROR(IF(AND($V465<=AI$1,$W465>=AI$1),INDEX(Reliability!N$23:N$50,MATCH($T465,Reliability!$C$23:$C$50,0)),0),0)*$H465*$X465*$Y465),$D465)*$R465","v":0},{"$f":"MIN((IFERROR(IF(AND($V465<=AJ$1,$W465>=AJ$1),INDEX(Reliability!O$23:O$50,MATCH($S465,Reliability!$C$23:$C$50,0)),0),0)*IF($T465=\"n/a\",$D465*$Y465,$G465)+IFERROR(IF(AND($V465<=AJ$1,$W465>=AJ$1),INDEX(Reliability!O$23:O$50,MATCH($T465,Reliability!$C$23:$C$50,0)),0),0)*$H465*$X465*$Y465),$D465)*$R465","v":0},{"$f":"MIN((IFERROR(IF(AND($V465<=AK$1,$W465>=AK$1),INDEX(Reliability!P$23:P$50,MATCH($S465,Reliability!$C$23:$C$50,0)),0),0)*IF($T465=\"n/a\",$D465*$Y465,$G465)+IFERROR(IF(AND($V465<=AK$1,$W465>=AK$1),INDEX(Reliability!P$23:P$50,MATCH($T465,Reliability!$C$23:$C$50,0)),0),0)*$H465*$X465*$Y465),$D465)*$R465","v":0}]
[null,{"$f":"unique_contracts!B467","v":0},{"$f":"unique_contracts!D467","v":0},{"$f":"unique_contracts!J467","v":0},{"$f":"unique_contracts!M467","v":0},{"$f":"unique_contracts!N467","v":0},{"$f":"unique_contracts!P467","v":0},{"$f":"unique_contracts!R467","v":0},{"$f":"unique_contracts!V467","v":0},{"$f":"unique_contracts!AB467","v":0},{"$f":"unique_contracts!AM467","v":0},{"$f":"unique_contracts!AN467","v":0},{"$f":"unique_contracts!AO467","v":0},{"$f":"unique_contracts!AP467","v":0},{"$f":"unique_contracts!AQ467","v":0},{"$f":"unique_contracts!AR467","v":0},{"$f":"unique_contracts!BP467","v":0},0,{"$f":"IFERROR(IF(AND(I466>0,E466=\"NotHybrid\"),_xlfn.CONCAT(MAX(MIN(ROUNDDOWN(I466/D466,0),8),4),INDEX(resources!$G:$G,MATCH(B466,resources!$A:$A,0))),INDEX(resources!$G:$G,MATCH(B466,resources!$A:$A,0))),\"n/a\")","v":"n/a"},"n/a","n/a",0,0,1,1,{"$f":"MIN((IFERROR(IF(AND($V466<=Z$1,$W466>=Z$1),INDEX(Reliability!E$23:E$50,MATCH($S466,Reliability!$C$23:$C$50,0)),0),0)*IF($T466=\"n/a\",$D466*$Y466,$G466)+IFERROR(IF(AND($V466<=Z$1,$W466>=Z$1),INDEX(Reliability!E$23:E$50,MATCH($T466,Reliability!$C$23:$C$50,0)),0),0)*$H466*$X466*$Y466),$D466)*$R466","v":0},{"$f":"MIN((IFERROR(IF(AND($V466<=AA$1,$W466>=AA$1),INDEX(Reliability!F$23:F$50,MATCH($S466,Reliability!$C$23:$C$50,0)),0),0)*IF($T466=\"n/a\",$D466*$Y466,$G466)+IFERROR(IF(AND($V466<=AA$1,$W466>=AA$1),INDEX(Reliability!F$23:F$50,MATCH($T466,Reliability!$C$23:$C$50,0)),0),0)*$H466*$X466*$Y466),$D466)*$R466","v":0},{"$f":"MIN((IFERROR(IF(AND($V466<=AB$1,$W466>=AB$1),INDEX(Reliability!G$23:G$50,MATCH($S466,Reliability!$C$23:$C$50,0)),0),0)*IF($T466=\"n/a\",$D466*$Y466,$G466)+IFERROR(IF(AND($V466<=AB$1,$W466>=AB$1),INDEX(Reliability!G$23:G$50,MATCH($T466,Reliability!$C$23:$C$50,0)),0),0)*$H466*$X466*$Y466),$D466)*$R466","v":0},{"$f":"MIN((IFERROR(IF(AND($V466<=AC$1,$W466>=AC$1),INDEX(Reliability!H$23:H$50,MATCH($S466,Reliability!$C$23:$C$50,0)),0),0)*IF($T466=\"n/a\",$D466*$Y466,$G466)+IFERROR(IF(AND($V466<=AC$1,$W466>=AC$1),INDEX(Reliability!H$23:H$50,MATCH($T466,Reliability!$C$23:$C$50,0)),0),0)*$H466*$X466*$Y466),$D466)*$R466","v":0},{"$f":"MIN((IFERROR(IF(AND($V466<=AD$1,$W466>=AD$1),INDEX(Reliability!I$23:I$50,MATCH($S466,Reliability!$C$23:$C$50,0)),0),0)*IF($T466=\"n/a\",$D466*$Y466,$G466)+IFERROR(IF(AND($V466<=AD$1,$W466>=AD$1),INDEX(Reliability!I$23:I$50,MATCH($T466,Reliability!$C$23:$C$50,0)),0),0)*$H466*$X466*$Y466),$D466)*$R466","v":0},{"$f":"MIN((IFERROR(IF(AND($V466<=AE$1,$W466>=AE$1),INDEX(Reliability!J$23:J$50,MATCH($S466,Reliability!$C$23:$C$50,0)),0),0)*IF($T466=\"n/a\",$D466*$Y466,$G466)+IFERROR(IF(AND($V466<=AE$1,$W466>=AE$1),INDEX(Reliability!J$23:J$50,MATCH($T466,Reliability!$C$23:$C$50,0)),0),0)*$H466*$X466*$Y466),$D466)*$R466","v":0},{"$f":"MIN((IFERROR(IF(AND($V466<=AF$1,$W466>=AF$1),INDEX(Reliability!K$23:K$50,MATCH($S466,Reliability!$C$23:$C$50,0)),0),0)*IF($T466=\"n/a\",$D466*$Y466,$G466)+IFERROR(IF(AND($V466<=AF$1,$W466>=AF$1),INDEX(Reliability!K$23:K$50,MATCH($T466,Reliability!$C$23:$C$50,0)),0),0)*$H466*$X466*$Y466),$D466)*$R466","v":0},{"$f":"MIN((IFERROR(IF(AND($V466<=AG$1,$W466>=AG$1),INDEX(Reliability!L$23:L$50,MATCH($S466,Reliability!$C$23:$C$50,0)),0),0)*IF($T466=\"n/a\",$D466*$Y466,$G466)+IFERROR(IF(AND($V466<=AG$1,$W466>=AG$1),INDEX(Reliability!L$23:L$50,MATCH($T466,Reliability!$C$23:$C$50,0)),0),0)*$H466*$X466*$Y466),$D466)*$R466","v":0},{"$f":"MIN((IFERROR(IF(AND($V466<=AH$1,$W466>=AH$1),INDEX(Reliability!M$23:M$50,MATCH($S466,Reliability!$C$23:$C$50,0)),0),0)*IF($T466=\"n/a\",$D466*$Y466,$G466)+IFERROR(IF(AND($V466<=AH$1,$W466>=AH$1),INDEX(Reliability!M$23:M$50,MATCH($T466,Reliability!$C$23:$C$50,0)),0),0)*$H466*$X466*$Y466),$D466)*$R466","v":0},{"$f":"MIN((IFERROR(IF(AND($V466<=AI$1,$W466>=AI$1),INDEX(Reliability!N$23:N$50,MATCH($S466,Reliability!$C$23:$C$50,0)),0),0)*IF($T466=\"n/a\",$D466*$Y466,$G466)+IFERROR(IF(AND($V466<=AI$1,$W466>=AI$1),INDEX(Reliability!N$23:N$50,MATCH($T466,Reliability!$C$23:$C$50,0)),0),0)*$H466*$X466*$Y466),$D466)*$R466","v":0},{"$f":"MIN((IFERROR(IF(AND($V466<=AJ$1,$W466>=AJ$1),INDEX(Reliability!O$23:O$50,MATCH($S466,Reliability!$C$23:$C$50,0)),0),0)*IF($T466=\"n/a\",$D466*$Y466,$G466)+IFERROR(IF(AND($V466<=AJ$1,$W466>=AJ$1),INDEX(Reliability!O$23:O$50,MATCH($T466,Reliability!$C$23:$C$50,0)),0),0)*$H466*$X466*$Y466),$D466)*$R466","v":0},{"$f":"MIN((IFERROR(IF(AND($V466<=AK$1,$W466>=AK$1),INDEX(Reliability!P$23:P$50,MATCH($S466,Reliability!$C$23:$C$50,0)),0),0)*IF($T466=\"n/a\",$D466*$Y466,$G466)+IFERROR(IF(AND($V466<=AK$1,$W466>=AK$1),INDEX(Reliability!P$23:P$50,MATCH($T466,Reliability!$C$23:$C$50,0)),0),0)*$H466*$X466*$Y466),$D466)*$R466","v":0}]
[null,{"$f":"unique_contracts!B468","v":0},{"$f":"unique_contracts!D468","v":0},{"$f":"unique_contracts!J468","v":0},{"$f":"unique_contracts!M468","v":0},{"$f":"unique_contracts!N468","v":0},{"$f":"unique_contracts!P468","v":0},{"$f":"unique_contracts!R468","v":0},{"$f":"unique_contracts!V468","v":0},{"$f":"unique_contracts!AB468","v":0},{"$f":"unique_contracts!AM468","v":0},{"$f":"unique_contracts!AN468","v":0},{"$f":"unique_contracts!AO468","v":0},{"$f":"unique_contracts!AP468","v":0},{"$f":"unique_contracts!AQ468","v":0},{"$f":"unique_contracts!AR468","v":0},{"$f":"unique_contracts!BP468","v":0},0,{"$f":"IFERROR(IF(AND(I467>0,E467=\"NotHybrid\"),_xlfn.CONCAT(MAX(MIN(ROUNDDOWN(I467/D467,0),8),4),INDEX(resources!$G:$G,MATCH(B467,resources!$A:$A,0))),INDEX(resources!$G:$G,MATCH(B467,resources!$A:$A,0))),\"n/a\")","v":"n/a"},"n/a","n/a",0,0,1,1,{"$f":"MIN((IFERROR(IF(AND($V467<=Z$1,$W467>=Z$1),INDEX(Reliability!E$23:E$50,MATCH($S467,Reliability!$C$23:$C$50,0)),0),0)*IF($T467=\"n/a\",$D467*$Y467,$G467)+IFERROR(IF(AND($V467<=Z$1,$W467>=Z$1),INDEX(Reliability!E$23:E$50,MATCH($T467,Reliability!$C$23:$C$50,0)),0),0)*$H467*$X467*$Y467),$D467)*$R467","v":0},{"$f":"MIN((IFERROR(IF(AND($V467<=AA$1,$W467>=AA$1),INDEX(Reliability!F$23:F$50,MATCH($S467,Reliability!$C$23:$C$50,0)),0),0)*IF($T467=\"n/a\",$D467*$Y467,$G467)+IFERROR(IF(AND($V467<=AA$1,$W467>=AA$1),INDEX(Reliability!F$23:F$50,MATCH($T467,Reliability!$C$23:$C$50,0)),0),0)*$H467*$X467*$Y467),$D467)*$R467","v":0},{"$f":"MIN((IFERROR(IF(AND($V467<=AB$1,$W467>=AB$1),INDEX(Reliability!G$23:G$50,MATCH($S467,Reliability!$C$23:$C$50,0)),0),0)*IF($T467=\"n/a\",$D467*$Y467,$G467)+IFERROR(IF(AND($V467<=AB$1,$W467>=AB$1),INDEX(Reliability!G$23:G$50,MATCH($T467,Reliability!$C$23:$C$50,0)),0),0)*$H467*$X467*$Y467),$D467)*$R467","v":0},{"$f":"MIN((IFERROR(IF(AND($V467<=AC$1,$W467>=AC$1),INDEX(Reliability!H$23:H$50,MATCH($S467,Reliability!$C$23:$C$50,0)),0),0)*IF($T467=\"n/a\",$D467*$Y467,$G467)+IFERROR(IF(AND($V467<=AC$1,$W467>=AC$1),INDEX(Reliability!H$23:H$50,MATCH($T467,Reliability!$C$23:$C$50,0)),0),0)*$H467*$X467*$Y467),$D467)*$R467","v":0},{"$f":"MIN((IFERROR(IF(AND($V467<=AD$1,$W467>=AD$1),INDEX(Reliability!I$23:I$50,MATCH($S467,Reliability!$C$23:$C$50,0)),0),0)*IF($T467=\"n/a\",$D467*$Y467,$G467)+IFERROR(IF(AND($V467<=AD$1,$W467>=AD$1),INDEX(Reliability!I$23:I$50,MATCH($T467,Reliability!$C$23:$C$50,0)),0),0)*$H467*$X467*$Y467),$D467)*$R467","v":0},{"$f":"MIN((IFERROR(IF(AND($V467<=AE$1,$W467>=AE$1),INDEX(Reliability!J$23:J$50,MATCH($S467,Reliability!$C$23:$C$50,0)),0),0)*IF($T467=\"n/a\",$D467*$Y467,$G467)+IFERROR(IF(AND($V467<=AE$1,$W467>=AE$1),INDEX(Reliability!J$23:J$50,MATCH($T467,Reliability!$C$23:$C$50,0)),0),0)*$H467*$X467*$Y467),$D467)*$R467","v":0},{"$f":"MIN((IFERROR(IF(AND($V467<=AF$1,$W467>=AF$1),INDEX(Reliability!K$23:K$50,MATCH($S467,Reliability!$C$23:$C$50,0)),0),0)*IF($T467=\"n/a\",$D467*$Y467,$G467)+IFERROR(IF(AND($V467<=AF$1,$W467>=AF$1),INDEX(Reliability!K$23:K$50,MATCH($T467,Reliability!$C$23:$C$50,0)),0),0)*$H467*$X467*$Y467),$D467)*$R467","v":0},{"$f":"MIN((IFERROR(IF(AND($V467<=AG$1,$W467>=AG$1),INDEX(Reliability!L$23:L$50,MATCH($S467,Reliability!$C$23:$C$50,0)),0),0)*IF($T467=\"n/a\",$D467*$Y467,$G467)+IFERROR(IF(AND($V467<=AG$1,$W467>=AG$1),INDEX(Reliability!L$23:L$50,MATCH($T467,Reliability!$C$23:$C$50,0)),0),0)*$H467*$X467*$Y467),$D467)*$R467","v":0},{"$f":"MIN((IFERROR(IF(AND($V467<=AH$1,$W467>=AH$1),INDEX(Reliability!M$23:M$50,MATCH($S467,Reliability!$C$23:$C$50,0)),0),0)*IF($T467=\"n/a\",$D467*$Y467,$G467)+IFERROR(IF(AND($V467<=AH$1,$W467>=AH$1),INDEX(Reliability!M$23:M$50,MATCH($T467,Reliability!$C$23:$C$50,0)),0),0)*$H467*$X467*$Y467),$D467)*$R467","v":0},{"$f":"MIN((IFERROR(IF(AND($V467<=AI$1,$W467>=AI$1),INDEX(Reliability!N$23:N$50,MATCH($S467,Reliability!$C$23:$C$50,0)),0),0)*IF($T467=\"n/a\",$D467*$Y467,$G467)+IFERROR(IF(AND($V467<=AI$1,$W467>=AI$1),INDEX(Reliability!N$23:N$50,MATCH($T467,Reliability!$C$23:$C$50,0)),0),0)*$H467*$X467*$Y467),$D467)*$R467","v":0},{"$f":"MIN((IFERROR(IF(AND($V467<=AJ$1,$W467>=AJ$1),INDEX(Reliability!O$23:O$50,MATCH($S467,Reliability!$C$23:$C$50,0)),0),0)*IF($T467=\"n/a\",$D467*$Y467,$G467)+IFERROR(IF(AND($V467<=AJ$1,$W467>=AJ$1),INDEX(Reliability!O$23:O$50,MATCH($T467,Reliability!$C$23:$C$50,0)),0),0)*$H467*$X467*$Y467),$D467)*$R467","v":0},{"$f":"MIN((IFERROR(IF(AND($V467<=AK$1,$W467>=AK$1),INDEX(Reliability!P$23:P$50,MATCH($S467,Reliability!$C$23:$C$50,0)),0),0)*IF($T467=\"n/a\",$D467*$Y467,$G467)+IFERROR(IF(AND($V467<=AK$1,$W467>=AK$1),INDEX(Reliability!P$23:P$50,MATCH($T467,Reliability!$C$23:$C$50,0)),0),0)*$H467*$X467*$Y467),$D467)*$R467","v":0}]
[null,{"$f":"unique_contracts!B469","v":0},{"$f":"unique_contracts!D469","v":0},{"$f":"unique_contracts!J469","v":0},{"$f":"unique_contracts!M469","v":0},{"$f":"unique_contracts!N469","v":0},{"$f":"unique_contracts!P469","v":0},{"$f":"unique_contracts!R469","v":0},{"$f":"unique_contracts!V469","v":0},{"$f":"unique_contracts!AB469","v":0},{"$f":"unique_contracts!AM469","v":0},{"$f":"unique_contracts!AN469","v":0},{"$f":"unique_contracts!AO469","v":0},{"$f":"unique_contracts!AP469","v":0},{"$f":"unique_contracts!AQ469","v":0},{"$f":"unique_contracts!AR469","v":0},{"$f":"unique_contracts!BP469","v":0},0,{"$f":"IFERROR(IF(AND(I468>0,E468=\"NotHybrid\"),_xlfn.CONCAT(MAX(MIN(ROUNDDOWN(I468/D468,0),8),4),INDEX(resources!$G:$G,MATCH(B468,resources!$A:$A,0))),INDEX(resources!$G:$G,MATCH(B468,resources!$A:$A,0))),\"n/a\")","v":"n/a"},"n/a","n/a",0,0,1,1,{"$f":"MIN((IFERROR(IF(AND($V468<=Z$1,$W468>=Z$1),INDEX(Reliability!E$23:E$50,MATCH($S468,Reliability!$C$23:$C$50,0)),0),0)*IF($T468=\"n/a\",$D468*$Y468,$G468)+IFERROR(IF(AND($V468<=Z$1,$W468>=Z$1),INDEX(Reliability!E$23:E$50,MATCH($T468,Reliability!$C$23:$C$50,0)),0),0)*$H468*$X468*$Y468),$D468)*$R468","v":0},{"$f":"MIN((IFERROR(IF(AND($V468<=AA$1,$W468>=AA$1),INDEX(Reliability!F$23:F$50,MATCH($S468,Reliability!$C$23:$C$50,0)),0),0)*IF($T468=\"n/a\",$D468*$Y468,$G468)+IFERROR(IF(AND($V468<=AA$1,$W468>=AA$1),INDEX(Reliability!F$23:F$50,MATCH($T468,Reliability!$C$23:$C$50,0)),0),0)*$H468*$X468*$Y468),$D468)*$R468","v":0},{"$f":"MIN((IFERROR(IF(AND($V468<=AB$1,$W468>=AB$1),INDEX(Reliability!G$23:G$50,MATCH($S468,Reliability!$C$23:$C$50,0)),0),0)*IF($T468=\"n/a\",$D468*$Y468,$G468)+IFERROR(IF(AND($V468<=AB$1,$W468>=AB$1),INDEX(Reliability!G$23:G$50,MATCH($T468,Reliability!$C$23:$C$50,0)),0),0)*$H468*$X468*$Y468),$D468)*$R468","v":0},{"$f":"MIN((IFERROR(IF(AND($V468<=AC$1,$W468>=AC$1),INDEX(Reliability!H$23:H$50,MATCH($S468,Reliability!$C$23:$C$50,0)),0),0)*IF($T468=\"n/a\",$D468*$Y468,$G468)+IFERROR(IF(AND($V468<=AC$1,$W468>=AC$1),INDEX(Reliability!H$23:H$50,MATCH($T468,Reliability!$C$23:$C$50,0)),0),0)*$H468*$X468*$Y468),$D468)*$R468","v":0},{"$f":"MIN((IFERROR(IF(AND($V468<=AD$1,$W468>=AD$1),INDEX(Reliability!I$23:I$50,MATCH($S468,Reliability!$C$23:$C$50,0)),0),0)*IF($T468=\"n/a\",$D468*$Y468,$G468)+IFERROR(IF(AND($V468<=AD$1,$W468>=AD$1),INDEX(Reliability!I$23:I$50,MATCH($T468,Reliability!$C$23:$C$50,0)),0),0)*$H468*$X468*$Y468),$D468)*$R468","v":0},{"$f":"MIN((IFERROR(IF(AND($V468<=AE$1,$W468>=AE$1),INDEX(Reliability!J$23:J$50,MATCH($S468,Reliability!$C$23:$C$50,0)),0),0)*IF($T468=\"n/a\",$D468*$Y468,$G468)+IFERROR(IF(AND($V468<=AE$1,$W468>=AE$1),INDEX(Reliability!J$23:J$50,MATCH($T468,Reliability!$C$23:$C$50,0)),0),0)*$H468*$X468*$Y468),$D468)*$R468","v":0},{"$f":"MIN((IFERROR(IF(AND($V468<=AF$1,$W468>=AF$1),INDEX(Reliability!K$23:K$50,MATCH($S468,Reliability!$C$23:$C$50,0)),0),0)*IF($T468=\"n/a\",$D468*$Y468,$G468)+IFERROR(IF(AND($V468<=AF$1,$W468>=AF$1),INDEX(Reliability!K$23:K$50,MATCH($T468,Reliability!$C$23:$C$50,0)),0),0)*$H468*$X468*$Y468),$D468)*$R468","v":0},{"$f":"MIN((IFERROR(IF(AND($V468<=AG$1,$W468>=AG$1),INDEX(Reliability!L$23:L$50,MATCH($S468,Reliability!$C$23:$C$50,0)),0),0)*IF($T468=\"n/a\",$D468*$Y468,$G468)+IFERROR(IF(AND($V468<=AG$1,$W468>=AG$1),INDEX(Reliability!L$23:L$50,MATCH($T468,Reliability!$C$23:$C$50,0)),0),0)*$H468*$X468*$Y468),$D468)*$R468","v":0},{"$f":"MIN((IFERROR(IF(AND($V468<=AH$1,$W468>=AH$1),INDEX(Reliability!M$23:M$50,MATCH($S468,Reliability!$C$23:$C$50,0)),0),0)*IF($T468=\"n/a\",$D468*$Y468,$G468)+IFERROR(IF(AND($V468<=AH$1,$W468>=AH$1),INDEX(Reliability!M$23:M$50,MATCH($T468,Reliability!$C$23:$C$50,0)),0),0)*$H468*$X468*$Y468),$D468)*$R468","v":0},{"$f":"MIN((IFERROR(IF(AND($V468<=AI$1,$W468>=AI$1),INDEX(Reliability!N$23:N$50,MATCH($S468,Reliability!$C$23:$C$50,0)),0),0)*IF($T468=\"n/a\",$D468*$Y468,$G468)+IFERROR(IF(AND($V468<=AI$1,$W468>=AI$1),INDEX(Reliability!N$23:N$50,MATCH($T468,Reliability!$C$23:$C$50,0)),0),0)*$H468*$X468*$Y468),$D468)*$R468","v":0},{"$f":"MIN((IFERROR(IF(AND($V468<=AJ$1,$W468>=AJ$1),INDEX(Reliability!O$23:O$50,MATCH($S468,Reliability!$C$23:$C$50,0)),0),0)*IF($T468=\"n/a\",$D468*$Y468,$G468)+IFERROR(IF(AND($V468<=AJ$1,$W468>=AJ$1),INDEX(Reliability!O$23:O$50,MATCH($T468,Reliability!$C$23:$C$50,0)),0),0)*$H468*$X468*$Y468),$D468)*$R468","v":0},{"$f":"MIN((IFERROR(IF(AND($V468<=AK$1,$W468>=AK$1),INDEX(Reliability!P$23:P$50,MATCH($S468,Reliability!$C$23:$C$50,0)),0),0)*IF($T468=\"n/a\",$D468*$Y468,$G468)+IFERROR(IF(AND($V468<=AK$1,$W468>=AK$1),INDEX(Reliability!P$23:P$50,MATCH($T468,Reliability!$C$23:$C$50,0)),0),0)*$H468*$X468*$Y468),$D468)*$R468","v":0}]
[null,{"$f":"unique_contracts!B470","v":0},{"$f":"unique_contracts!D470","v":0},{"$f":"unique_contracts!J470","v":0},{"$f":"unique_contracts!M470","v":0},{"$f":"unique_contracts!N470","v":0},{"$f":"unique_contracts!P470","v":0},{"$f":"unique_contracts!R470","v":0},{"$f":"unique_contracts!V470","v":0},{"$f":"unique_contracts!AB470","v":0},{"$f":"unique_contracts!AM470","v":0},{"$f":"unique_contracts!AN470","v":0},{"$f":"unique_contracts!AO470","v":0},{"$f":"unique_contracts!AP470","v":0},{"$f":"unique_contracts!AQ470","v":0},{"$f":"unique_contracts!AR470","v":0},{"$f":"unique_contracts!BP470","v":0},0,{"$f":"IFERROR(IF(AND(I469>0,E469=\"NotHybrid\"),_xlfn.CONCAT(MAX(MIN(ROUNDDOWN(I469/D469,0),8),4),INDEX(resources!$G:$G,MATCH(B469,resources!$A:$A,0))),INDEX(resources!$G:$G,MATCH(B469,resources!$A:$A,0))),\"n/a\")","v":"n/a"},"n/a","n/a",0,0,1,1,{"$f":"MIN((IFERROR(IF(AND($V469<=Z$1,$W469>=Z$1),INDEX(Reliability!E$23:E$50,MATCH($S469,Reliability!$C$23:$C$50,0)),0),0)*IF($T469=\"n/a\",$D469*$Y469,$G469)+IFERROR(IF(AND($V469<=Z$1,$W469>=Z$1),INDEX(Reliability!E$23:E$50,MATCH($T469,Reliability!$C$23:$C$50,0)),0),0)*$H469*$X469*$Y469),$D469)*$R469","v":0},{"$f":"MIN((IFERROR(IF(AND($V469<=AA$1,$W469>=AA$1),INDEX(Reliability!F$23:F$50,MATCH($S469,Reliability!$C$23:$C$50,0)),0),0)*IF($T469=\"n/a\",$D469*$Y469,$G469)+IFERROR(IF(AND($V469<=AA$1,$W469>=AA$1),INDEX(Reliability!F$23:F$50,MATCH($T469,Reliability!$C$23:$C$50,0)),0),0)*$H469*$X469*$Y469),$D469)*$R469","v":0},{"$f":"MIN((IFERROR(IF(AND($V469<=AB$1,$W469>=AB$1),INDEX(Reliability!G$23:G$50,MATCH($S469,Reliability!$C$23:$C$50,0)),0),0)*IF($T469=\"n/a\",$D469*$Y469,$G469)+IFERROR(IF(AND($V469<=AB$1,$W469>=AB$1),INDEX(Reliability!G$23:G$50,MATCH($T469,Reliability!$C$23:$C$50,0)),0),0)*$H469*$X469*$Y469),$D469)*$R469","v":0},{"$f":"MIN((IFERROR(IF(AND($V469<=AC$1,$W469>=AC$1),INDEX(Reliability!H$23:H$50,MATCH($S469,Reliability!$C$23:$C$50,0)),0),0)*IF($T469=\"n/a\",$D469*$Y469,$G469)+IFERROR(IF(AND($V469<=AC$1,$W469>=AC$1),INDEX(Reliability!H$23:H$50,MATCH($T469,Reliability!$C$23:$C$50,0)),0),0)*$H469*$X469*$Y469),$D469)*$R469","v":0},{"$f":"MIN((IFERROR(IF(AND($V469<=AD$1,$W469>=AD$1),INDEX(Reliability!I$23:I$50,MATCH($S469,Reliability!$C$23:$C$50,0)),0),0)*IF($T469=\"n/a\",$D469*$Y469,$G469)+IFERROR(IF(AND($V469<=AD$1,$W469>=AD$1),INDEX(Reliability!I$23:I$50,MATCH($T469,Reliability!$C$23:$C$50,0)),0),0)*$H469*$X469*$Y469),$D469)*$R469","v":0},{"$f":"MIN((IFERROR(IF(AND($V469<=AE$1,$W469>=AE$1),INDEX(Reliability!J$23:J$50,MATCH($S469,Reliability!$C$23:$C$50,0)),0),0)*IF($T469=\"n/a\",$D469*$Y469,$G469)+IFERROR(IF(AND($V469<=AE$1,$W469>=AE$1),INDEX(Reliability!J$23:J$50,MATCH($T469,Reliability!$C$23:$C$50,0)),0),0)*$H469*$X469*$Y469),$D469)*$R469","v":0},{"$f":"MIN((IFERROR(IF(AND($V469<=AF$1,$W469>=AF$1),INDEX(Reliability!K$23:K$50,MATCH($S469,Reliability!$C$23:$C$50,0)),0),0)*IF($T469=\"n/a\",$D469*$Y469,$G469)+IFERROR(IF(AND($V469<=AF$1,$W469>=AF$1),INDEX(Reliability!K$23:K$50,MATCH($T469,Reliability!$C$23:$C$50,0)),0),0)*$H469*$X469*$Y469),$D469)*$R469","v":0},{"$f":"MIN((IFERROR(IF(AND($V469<=AG$1,$W469>=AG$1),INDEX(Reliability!L$23:L$50,MATCH($S469,Reliability!$C$23:$C$50,0)),0),0)*IF($T469=\"n/a\",$D469*$Y469,$G469)+IFERROR(IF(AND($V469<=AG$1,$W469>=AG$1),INDEX(Reliability!L$23:L$50,MATCH($T469,Reliability!$C$23:$C$50,0)),0),0)*$H469*$X469*$Y469),$D469)*$R469","v":0},{"$f":"MIN((IFERROR(IF(AND($V469<=AH$1,$W469>=AH$1),INDEX(Reliability!M$23:M$50,MATCH($S469,Reliability!$C$23:$C$50,0)),0),0)*IF($T469=\"n/a\",$D469*$Y469,$G469)+IFERROR(IF(AND($V469<=AH$1,$W469>=AH$1),INDEX(Reliability!M$23:M$50,MATCH($T469,Reliability!$C$23:$C$50,0)),0),0)*$H469*$X469*$Y469),$D469)*$R469","v":0},{"$f":"MIN((IFERROR(IF(AND($V469<=AI$1,$W469>=AI$1),INDEX(Reliability!N$23:N$50,MATCH($S469,Reliability!$C$23:$C$50,0)),0),0)*IF($T469=\"n/a\",$D469*$Y469,$G469)+IFERROR(IF(AND($V469<=AI$1,$W469>=AI$1),INDEX(Reliability!N$23:N$50,MATCH($T469,Reliability!$C$23:$C$50,0)),0),0)*$H469*$X469*$Y469),$D469)*$R469","v":0},{"$f":"MIN((IFERROR(IF(AND($V469<=AJ$1,$W469>=AJ$1),INDEX(Reliability!O$23:O$50,MATCH($S469,Reliability!$C$23:$C$50,0)),0),0)*IF($T469=\"n/a\",$D469*$Y469,$G469)+IFERROR(IF(AND($V469<=AJ$1,$W469>=AJ$1),INDEX(Reliability!O$23:O$50,MATCH($T469,Reliability!$C$23:$C$50,0)),0),0)*$H469*$X469*$Y469),$D469)*$R469","v":0},{"$f":"MIN((IFERROR(IF(AND($V469<=AK$1,$W469>=AK$1),INDEX(Reliability!P$23:P$50,MATCH($S469,Reliability!$C$23:$C$50,0)),0),0)*IF($T469=\"n/a\",$D469*$Y469,$G469)+IFERROR(IF(AND($V469<=AK$1,$W469>=AK$1),INDEX(Reliability!P$23:P$50,MATCH($T469,Reliability!$C$23:$C$50,0)),0),0)*$H469*$X469*$Y469),$D469)*$R469","v":0}]
[null,{"$f":"unique_contracts!B471","v":0},{"$f":"unique_contracts!D471","v":0},{"$f":"unique_contracts!J471","v":0},{"$f":"unique_contracts!M471","v":0},{"$f":"unique_contracts!N471","v":0},{"$f":"unique_contracts!P471","v":0},{"$f":"unique_contracts!R471","v":0},{"$f":"unique_contracts!V471","v":0},{"$f":"unique_contracts!AB471","v":0},{"$f":"unique_contracts!AM471","v":0},{"$f":"unique_contracts!AN471","v":0},{"$f":"unique_contracts!AO471","v":0},{"$f":"unique_contracts!AP471","v":0},{"$f":"unique_contracts!AQ471","v":0},{"$f":"unique_contracts!AR471","v":0},{"$f":"unique_contracts!BP471","v":0},0,{"$f":"IFERROR(IF(AND(I470>0,E470=\"NotHybrid\"),_xlfn.CONCAT(MAX(MIN(ROUNDDOWN(I470/D470,0),8),4),INDEX(resources!$G:$G,MATCH(B470,resources!$A:$A,0))),INDEX(resources!$G:$G,MATCH(B470,resources!$A:$A,0))),\"n/a\")","v":"n/a"},"n/a","n/a",0,0,1,1,{"$f":"MIN((IFERROR(IF(AND($V470<=Z$1,$W470>=Z$1),INDEX(Reliability!E$23:E$50,MATCH($S470,Reliability!$C$23:$C$50,0)),0),0)*IF($T470=\"n/a\",$D470*$Y470,$G470)+IFERROR(IF(AND($V470<=Z$1,$W470>=Z$1),INDEX(Reliability!E$23:E$50,MATCH($T470,Reliability!$C$23:$C$50,0)),0),0)*$H470*$X470*$Y470),$D470)*$R470","v":0},{"$f":"MIN((IFERROR(IF(AND($V470<=AA$1,$W470>=AA$1),INDEX(Reliability!F$23:F$50,MATCH($S470,Reliability!$C$23:$C$50,0)),0),0)*IF($T470=\"n/a\",$D470*$Y470,$G470)+IFERROR(IF(AND($V470<=AA$1,$W470>=AA$1),INDEX(Reliability!F$23:F$50,MATCH($T470,Reliability!$C$23:$C$50,0)),0),0)*$H470*$X470*$Y470),$D470)*$R470","v":0},{"$f":"MIN((IFERROR(IF(AND($V470<=AB$1,$W470>=AB$1),INDEX(Reliability!G$23:G$50,MATCH($S470,Reliability!$C$23:$C$50,0)),0),0)*IF($T470=\"n/a\",$D470*$Y470,$G470)+IFERROR(IF(AND($V470<=AB$1,$W470>=AB$1),INDEX(Reliability!G$23:G$50,MATCH($T470,Reliability!$C$23:$C$50,0)),0),0)*$H470*$X470*$Y470),$D470)*$R470","v":0},{"$f":"MIN((IFERROR(IF(AND($V470<=AC$1,$W470>=AC$1),INDEX(Reliability!H$23:H$50,MATCH($S470,Reliability!$C$23:$C$50,0)),0),0)*IF($T470=\"n/a\",$D470*$Y470,$G470)+IFERROR(IF(AND($V470<=AC$1,$W470>=AC$1),INDEX(Reliability!H$23:H$50,MATCH($T470,Reliability!$C$23:$C$50,0)),0),0)*$H470*$X470*$Y470),$D470)*$R470","v":0},{"$f":"MIN((IFERROR(IF(AND($V470<=AD$1,$W470>=AD$1),INDEX(Reliability!I$23:I$50,MATCH($S470,Reliability!$C$23:$C$50,0)),0),0)*IF($T470=\"n/a\",$D470*$Y470,$G470)+IFERROR(IF(AND($V470<=AD$1,$W470>=AD$1),INDEX(Reliability!I$23:I$50,MATCH($T470,Reliability!$C$23:$C$50,0)),0),0)*$H470*$X470*$Y470),$D470)*$R470","v":0},{"$f":"MIN((IFERROR(IF(AND($V470<=AE$1,$W470>=AE$1),INDEX(Reliability!J$23:J$50,MATCH($S470,Reliability!$C$23:$C$50,0)),0),0)*IF($T470=\"n/a\",$D470*$Y470,$G470)+IFERROR(IF(AND($V470<=AE$1,$W470>=AE$1),INDEX(Reliability!J$23:J$50,MATCH($T470,Reliability!$C$23:$C$50,0)),0),0)*$H470*$X470*$Y470),$D470)*$R470","v":0},{"$f":"MIN((IFERROR(IF(AND($V470<=AF$1,$W470>=AF$1),INDEX(Reliability!K$23:K$50,MATCH($S470,Reliability!$C$23:$C$50,0)),0),0)*IF($T470=\"n/a\",$D470*$Y470,$G470)+IFERROR(IF(AND($V470<=AF$1,$W470>=AF$1),INDEX(Reliability!K$23:K$50,MATCH($T470,Reliability!$C$23:$C$50,0)),0),0)*$H470*$X470*$Y470),$D470)*$R470","v":0},{"$f":"MIN((IFERROR(IF(AND($V470<=AG$1,$W470>=AG$1),INDEX(Reliability!L$23:L$50,MATCH($S470,Reliability!$C$23:$C$50,0)),0),0)*IF($T470=\"n/a\",$D470*$Y470,$G470)+IFERROR(IF(AND($V470<=AG$1,$W470>=AG$1),INDEX(Reliability!L$23:L$50,MATCH($T470,Reliability!$C$23:$C$50,0)),0),0)*$H470*$X470*$Y470),$D470)*$R470","v":0},{"$f":"MIN((IFERROR(IF(AND($V470<=AH$1,$W470>=AH$1),INDEX(Reliability!M$23:M$50,MATCH($S470,Reliability!$C$23:$C$50,0)),0),0)*IF($T470=\"n/a\",$D470*$Y470,$G470)+IFERROR(IF(AND($V470<=AH$1,$W470>=AH$1),INDEX(Reliability!M$23:M$50,MATCH($T470,Reliability!$C$23:$C$50,0)),0),0)*$H470*$X470*$Y470),$D470)*$R470","v":0},{"$f":"MIN((IFERROR(IF(AND($V470<=AI$1,$W470>=AI$1),INDEX(Reliability!N$23:N$50,MATCH($S470,Reliability!$C$23:$C$50,0)),0),0)*IF($T470=\"n/a\",$D470*$Y470,$G470)+IFERROR(IF(AND($V470<=AI$1,$W470>=AI$1),INDEX(Reliability!N$23:N$50,MATCH($T470,Reliability!$C$23:$C$50,0)),0),0)*$H470*$X470*$Y470),$D470)*$R470","v":0},{"$f":"MIN((IFERROR(IF(AND($V470<=AJ$1,$W470>=AJ$1),INDEX(Reliability!O$23:O$50,MATCH($S470,Reliability!$C$23:$C$50,0)),0),0)*IF($T470=\"n/a\",$D470*$Y470,$G470)+IFERROR(IF(AND($V470<=AJ$1,$W470>=AJ$1),INDEX(Reliability!O$23:O$50,MATCH($T470,Reliability!$C$23:$C$50,0)),0),0)*$H470*$X470*$Y470),$D470)*$R470","v":0},{"$f":"MIN((IFERROR(IF(AND($V470<=AK$1,$W470>=AK$1),INDEX(Reliability!P$23:P$50,MATCH($S470,Reliability!$C$23:$C$50,0)),0),0)*IF($T470=\"n/a\",$D470*$Y470,$G470)+IFERROR(IF(AND($V470<=AK$1,$W470>=AK$1),INDEX(Reliability!P$23:P$50,MATCH($T470,Reliability!$C$23:$C$50,0)),0),0)*$H470*$X470*$Y470),$D470)*$R470","v":0}]
[null,{"$f":"unique_contracts!B472","v":0},{"$f":"unique_contracts!D472","v":0},{"$f":"unique_contracts!J472","v":0},{"$f":"unique_contracts!M472","v":0},{"$f":"unique_contracts!N472","v":0},{"$f":"unique_contracts!P472","v":0},{"$f":"unique_contracts!R472","v":0},{"$f":"unique_contracts!V472","v":0},{"$f":"unique_contracts!AB472","v":0},{"$f":"unique_contracts!AM472","v":0},{"$f":"unique_contracts!AN472","v":0},{"$f":"unique_contracts!AO472","v":0},{"$f":"unique_contracts!AP472","v":0},{"$f":"unique_contracts!AQ472","v":0},{"$f":"unique_contracts!AR472","v":0},{"$f":"unique_contracts!BP472","v":0},0,{"$f":"IFERROR(IF(AND(I471>0,E471=\"NotHybrid\"),_xlfn.CONCAT(MAX(MIN(ROUNDDOWN(I471/D471,0),8),4),INDEX(resources!$G:$G,MATCH(B471,resources!$A:$A,0))),INDEX(resources!$G:$G,MATCH(B471,resources!$A:$A,0))),\"n/a\")","v":"n/a"},"n/a","n/a",0,0,1,1,{"$f":"MIN((IFERROR(IF(AND($V471<=Z$1,$W471>=Z$1),INDEX(Reliability!E$23:E$50,MATCH($S471,Reliability!$C$23:$C$50,0)),0),0)*IF($T471=\"n/a\",$D471*$Y471,$G471)+IFERROR(IF(AND($V471<=Z$1,$W471>=Z$1),INDEX(Reliability!E$23:E$50,MATCH($T471,Reliability!$C$23:$C$50,0)),0),0)*$H471*$X471*$Y471),$D471)*$R471","v":0},{"$f":"MIN((IFERROR(IF(AND($V471<=AA$1,$W471>=AA$1),INDEX(Reliability!F$23:F$50,MATCH($S471,Reliability!$C$23:$C$50,0)),0),0)*IF($T471=\"n/a\",$D471*$Y471,$G471)+IFERROR(IF(AND($V471<=AA$1,$W471>=AA$1),INDEX(Reliability!F$23:F$50,MATCH($T471,Reliability!$C$23:$C$50,0)),0),0)*$H471*$X471*$Y471),$D471)*$R471","v":0},{"$f":"MIN((IFERROR(IF(AND($V471<=AB$1,$W471>=AB$1),INDEX(Reliability!G$23:G$50,MATCH($S471,Reliability!$C$23:$C$50,0)),0),0)*IF($T471=\"n/a\",$D471*$Y471,$G471)+IFERROR(IF(AND($V471<=AB$1,$W471>=AB$1),INDEX(Reliability!G$23:G$50,MATCH($T471,Reliability!$C$23:$C$50,0)),0),0)*$H471*$X471*$Y471),$D471)*$R471","v":0},{"$f":"MIN((IFERROR(IF(AND($V471<=AC$1,$W471>=AC$1),INDEX(Reliability!H$23:H$50,MATCH($S471,Reliability!$C$23:$C$50,0)),0),0)*IF($T471=\"n/a\",$D471*$Y471,$G471)+IFERROR(IF(AND($V471<=AC$1,$W471>=AC$1),INDEX(Reliability!H$23:H$50,MATCH($T471,Reliability!$C$23:$C$50,0)),0),0)*$H471*$X471*$Y471),$D471)*$R471","v":0},{"$f":"MIN((IFERROR(IF(AND($V471<=AD$1,$W471>=AD$1),INDEX(Reliability!I$23:I$50,MATCH($S471,Reliability!$C$23:$C$50,0)),0),0)*IF($T471=\"n/a\",$D471*$Y471,$G471)+IFERROR(IF(AND($V471<=AD$1,$W471>=AD$1),INDEX(Reliability!I$23:I$50,MATCH($T471,Reliability!$C$23:$C$50,0)),0),0)*$H471*$X471*$Y471),$D471)*$R471","v":0},{"$f":"MIN((IFERROR(IF(AND($V471<=AE$1,$W471>=AE$1),INDEX(Reliability!J$23:J$50,MATCH($S471,Reliability!$C$23:$C$50,0)),0),0)*IF($T471=\"n/a\",$D471*$Y471,$G471)+IFERROR(IF(AND($V471<=AE$1,$W471>=AE$1),INDEX(Reliability!J$23:J$50,MATCH($T471,Reliability!$C$23:$C$50,0)),0),0)*$H471*$X471*$Y471),$D471)*$R471","v":0},{"$f":"MIN((IFERROR(IF(AND($V471<=AF$1,$W471>=AF$1),INDEX(Reliability!K$23:K$50,MATCH($S471,Reliability!$C$23:$C$50,0)),0),0)*IF($T471=\"n/a\",$D471*$Y471,$G471)+IFERROR(IF(AND($V471<=AF$1,$W471>=AF$1),INDEX(Reliability!K$23:K$50,MATCH($T471,Reliability!$C$23:$C$50,0)),0),0)*$H471*$X471*$Y471),$D471)*$R471","v":0},{"$f":"MIN((IFERROR(IF(AND($V471<=AG$1,$W471>=AG$1),INDEX(Reliability!L$23:L$50,MATCH($S471,Reliability!$C$23:$C$50,0)),0),0)*IF($T471=\"n/a\",$D471*$Y471,$G471)+IFERROR(IF(AND($V471<=AG$1,$W471>=AG$1),INDEX(Reliability!L$23:L$50,MATCH($T471,Reliability!$C$23:$C$50,0)),0),0)*$H471*$X471*$Y471),$D471)*$R471","v":0},{"$f":"MIN((IFERROR(IF(AND($V471<=AH$1,$W471>=AH$1),INDEX(Reliability!M$23:M$50,MATCH($S471,Reliability!$C$23:$C$50,0)),0),0)*IF($T471=\"n/a\",$D471*$Y471,$G471)+IFERROR(IF(AND($V471<=AH$1,$W471>=AH$1),INDEX(Reliability!M$23:M$50,MATCH($T471,Reliability!$C$23:$C$50,0)),0),0)*$H471*$X471*$Y471),$D471)*$R471","v":0},{"$f":"MIN((IFERROR(IF(AND($V471<=AI$1,$W471>=AI$1),INDEX(Reliability!N$23:N$50,MATCH($S471,Reliability!$C$23:$C$50,0)),0),0)*IF($T471=\"n/a\",$D471*$Y471,$G471)+IFERROR(IF(AND($V471<=AI$1,$W471>=AI$1),INDEX(Reliability!N$23:N$50,MATCH($T471,Reliability!$C$23:$C$50,0)),0),0)*$H471*$X471*$Y471),$D471)*$R471","v":0},{"$f":"MIN((IFERROR(IF(AND($V471<=AJ$1,$W471>=AJ$1),INDEX(Reliability!O$23:O$50,MATCH($S471,Reliability!$C$23:$C$50,0)),0),0)*IF($T471=\"n/a\",$D471*$Y471,$G471)+IFERROR(IF(AND($V471<=AJ$1,$W471>=AJ$1),INDEX(Reliability!O$23:O$50,MATCH($T471,Reliability!$C$23:$C$50,0)),0),0)*$H471*$X471*$Y471),$D471)*$R471","v":0},{"$f":"MIN((IFERROR(IF(AND($V471<=AK$1,$W471>=AK$1),INDEX(Reliability!P$23:P$50,MATCH($S471,Reliability!$C$23:$C$50,0)),0),0)*IF($T471=\"n/a\",$D471*$Y471,$G471)+IFERROR(IF(AND($V471<=AK$1,$W471>=AK$1),INDEX(Reliability!P$23:P$50,MATCH($T471,Reliability!$C$23:$C$50,0)),0),0)*$H471*$X471*$Y471),$D471)*$R471","v":0}]
[null,{"$f":"unique_contracts!B473","v":0},{"$f":"unique_contracts!D473","v":0},{"$f":"unique_contracts!J473","v":0},{"$f":"unique_contracts!M473","v":0},{"$f":"unique_contracts!N473","v":0},{"$f":"unique_contracts!P473","v":0},{"$f":"unique_contracts!R473","v":0},{"$f":"unique_contracts!V473","v":0},{"$f":"unique_contracts!AB473","v":0},{"$f":"unique_contracts!AM473","v":0},{"$f":"unique_contracts!AN473","v":0},{"$f":"unique_contracts!AO473","v":0},{"$f":"unique_contracts!AP473","v":0},{"$f":"unique_contracts!AQ473","v":0},{"$f":"unique_contracts!AR473","v":0},{"$f":"unique_contracts!BP473","v":0},0,{"$f":"IFERROR(IF(AND(I472>0,E472=\"NotHybrid\"),_xlfn.CONCAT(MAX(MIN(ROUNDDOWN(I472/D472,0),8),4),INDEX(resources!$G:$G,MATCH(B472,resources!$A:$A,0))),INDEX(resources!$G:$G,MATCH(B472,resources!$A:$A,0))),\"n/a\")","v":"n/a"},"n/a","n/a",0,0,1,1,{"$f":"MIN((IFERROR(IF(AND($V472<=Z$1,$W472>=Z$1),INDEX(Reliability!E$23:E$50,MATCH($S472,Reliability!$C$23:$C$50,0)),0),0)*IF($T472=\"n/a\",$D472*$Y472,$G472)+IFERROR(IF(AND($V472<=Z$1,$W472>=Z$1),INDEX(Reliability!E$23:E$50,MATCH($T472,Reliability!$C$23:$C$50,0)),0),0)*$H472*$X472*$Y472),$D472)*$R472","v":0},{"$f":"MIN((IFERROR(IF(AND($V472<=AA$1,$W472>=AA$1),INDEX(Reliability!F$23:F$50,MATCH($S472,Reliability!$C$23:$C$50,0)),0),0)*IF($T472=\"n/a\",$D472*$Y472,$G472)+IFERROR(IF(AND($V472<=AA$1,$W472>=AA$1),INDEX(Reliability!F$23:F$50,MATCH($T472,Reliability!$C$23:$C$50,0)),0),0)*$H472*$X472*$Y472),$D472)*$R472","v":0},{"$f":"MIN((IFERROR(IF(AND($V472<=AB$1,$W472>=AB$1),INDEX(Reliability!G$23:G$50,MATCH($S472,Reliability!$C$23:$C$50,0)),0),0)*IF($T472=\"n/a\",$D472*$Y472,$G472)+IFERROR(IF(AND($V472<=AB$1,$W472>=AB$1),INDEX(Reliability!G$23:G$50,MATCH($T472,Reliability!$C$23:$C$50,0)),0),0)*$H472*$X472*$Y472),$D472)*$R472","v":0},{"$f":"MIN((IFERROR(IF(AND($V472<=AC$1,$W472>=AC$1),INDEX(Reliability!H$23:H$50,MATCH($S472,Reliability!$C$23:$C$50,0)),0),0)*IF($T472=\"n/a\",$D472*$Y472,$G472)+IFERROR(IF(AND($V472<=AC$1,$W472>=AC$1),INDEX(Reliability!H$23:H$50,MATCH($T472,Reliability!$C$23:$C$50,0)),0),0)*$H472*$X472*$Y472),$D472)*$R472","v":0},{"$f":"MIN((IFERROR(IF(AND($V472<=AD$1,$W472>=AD$1),INDEX(Reliability!I$23:I$50,MATCH($S472,Reliability!$C$23:$C$50,0)),0),0)*IF($T472=\"n/a\",$D472*$Y472,$G472)+IFERROR(IF(AND($V472<=AD$1,$W472>=AD$1),INDEX(Reliability!I$23:I$50,MATCH($T472,Reliability!$C$23:$C$50,0)),0),0)*$H472*$X472*$Y472),$D472)*$R472","v":0},{"$f":"MIN((IFERROR(IF(AND($V472<=AE$1,$W472>=AE$1),INDEX(Reliability!J$23:J$50,MATCH($S472,Reliability!$C$23:$C$50,0)),0),0)*IF($T472=\"n/a\",$D472*$Y472,$G472)+IFERROR(IF(AND($V472<=AE$1,$W472>=AE$1),INDEX(Reliability!J$23:J$50,MATCH($T472,Reliability!$C$23:$C$50,0)),0),0)*$H472*$X472*$Y472),$D472)*$R472","v":0},{"$f":"MIN((IFERROR(IF(AND($V472<=AF$1,$W472>=AF$1),INDEX(Reliability!K$23:K$50,MATCH($S472,Reliability!$C$23:$C$50,0)),0),0)*IF($T472=\"n/a\",$D472*$Y472,$G472)+IFERROR(IF(AND($V472<=AF$1,$W472>=AF$1),INDEX(Reliability!K$23:K$50,MATCH($T472,Reliability!$C$23:$C$50,0)),0),0)*$H472*$X472*$Y472),$D472)*$R472","v":0},{"$f":"MIN((IFERROR(IF(AND($V472<=AG$1,$W472>=AG$1),INDEX(Reliability!L$23:L$50,MATCH($S472,Reliability!$C$23:$C$50,0)),0),0)*IF($T472=\"n/a\",$D472*$Y472,$G472)+IFERROR(IF(AND($V472<=AG$1,$W472>=AG$1),INDEX(Reliability!L$23:L$50,MATCH($T472,Reliability!$C$23:$C$50,0)),0),0)*$H472*$X472*$Y472),$D472)*$R472","v":0},{"$f":"MIN((IFERROR(IF(AND($V472<=AH$1,$W472>=AH$1),INDEX(Reliability!M$23:M$50,MATCH($S472,Reliability!$C$23:$C$50,0)),0),0)*IF($T472=\"n/a\",$D472*$Y472,$G472)+IFERROR(IF(AND($V472<=AH$1,$W472>=AH$1),INDEX(Reliability!M$23:M$50,MATCH($T472,Reliability!$C$23:$C$50,0)),0),0)*$H472*$X472*$Y472),$D472)*$R472","v":0},{"$f":"MIN((IFERROR(IF(AND($V472<=AI$1,$W472>=AI$1),INDEX(Reliability!N$23:N$50,MATCH($S472,Reliability!$C$23:$C$50,0)),0),0)*IF($T472=\"n/a\",$D472*$Y472,$G472)+IFERROR(IF(AND($V472<=AI$1,$W472>=AI$1),INDEX(Reliability!N$23:N$50,MATCH($T472,Reliability!$C$23:$C$50,0)),0),0)*$H472*$X472*$Y472),$D472)*$R472","v":0},{"$f":"MIN((IFERROR(IF(AND($V472<=AJ$1,$W472>=AJ$1),INDEX(Reliability!O$23:O$50,MATCH($S472,Reliability!$C$23:$C$50,0)),0),0)*IF($T472=\"n/a\",$D472*$Y472,$G472)+IFERROR(IF(AND($V472<=AJ$1,$W472>=AJ$1),INDEX(Reliability!O$23:O$50,MATCH($T472,Reliability!$C$23:$C$50,0)),0),0)*$H472*$X472*$Y472),$D472)*$R472","v":0},{"$f":"MIN((IFERROR(IF(AND($V472<=AK$1,$W472>=AK$1),INDEX(Reliability!P$23:P$50,MATCH($S472,Reliability!$C$23:$C$50,0)),0),0)*IF($T472=\"n/a\",$D472*$Y472,$G472)+IFERROR(IF(AND($V472<=AK$1,$W472>=AK$1),INDEX(Reliability!P$23:P$50,MATCH($T472,Reliability!$C$23:$C$50,0)),0),0)*$H472*$X472*$Y472),$D472)*$R472","v":0}]
[null,{"$f":"unique_contracts!B474","v":0},{"$f":"unique_contracts!D474","v":0},{"$f":"unique_contracts!J474","v":0},{"$f":"unique_contracts!M474","v":0},{"$f":"unique_contracts!N474","v":0},{"$f":"unique_contracts!P474","v":0},{"$f":"unique_contracts!R474","v":0},{"$f":"unique_contracts!V474","v":0},{"$f":"unique_contracts!AB474","v":0},{"$f":"unique_contracts!AM474","v":0},{"$f":"unique_contracts!AN474","v":0},{"$f":"unique_contracts!AO474","v":0},{"$f":"unique_contracts!AP474","v":0},{"$f":"unique_contracts!AQ474","v":0},{"$f":"unique_contracts!AR474","v":0},{"$f":"unique_contracts!BP474","v":0},0,{"$f":"IFERROR(IF(AND(I473>0,E473=\"NotHybrid\"),_xlfn.CONCAT(MAX(MIN(ROUNDDOWN(I473/D473,0),8),4),INDEX(resources!$G:$G,MATCH(B473,resources!$A:$A,0))),INDEX(resources!$G:$G,MATCH(B473,resources!$A:$A,0))),\"n/a\")","v":"n/a"},"n/a","n/a",0,0,1,1,{"$f":"MIN((IFERROR(IF(AND($V473<=Z$1,$W473>=Z$1),INDEX(Reliability!E$23:E$50,MATCH($S473,Reliability!$C$23:$C$50,0)),0),0)*IF($T473=\"n/a\",$D473*$Y473,$G473)+IFERROR(IF(AND($V473<=Z$1,$W473>=Z$1),INDEX(Reliability!E$23:E$50,MATCH($T473,Reliability!$C$23:$C$50,0)),0),0)*$H473*$X473*$Y473),$D473)*$R473","v":0},{"$f":"MIN((IFERROR(IF(AND($V473<=AA$1,$W473>=AA$1),INDEX(Reliability!F$23:F$50,MATCH($S473,Reliability!$C$23:$C$50,0)),0),0)*IF($T473=\"n/a\",$D473*$Y473,$G473)+IFERROR(IF(AND($V473<=AA$1,$W473>=AA$1),INDEX(Reliability!F$23:F$50,MATCH($T473,Reliability!$C$23:$C$50,0)),0),0)*$H473*$X473*$Y473),$D473)*$R473","v":0},{"$f":"MIN((IFERROR(IF(AND($V473<=AB$1,$W473>=AB$1),INDEX(Reliability!G$23:G$50,MATCH($S473,Reliability!$C$23:$C$50,0)),0),0)*IF($T473=\"n/a\",$D473*$Y473,$G473)+IFERROR(IF(AND($V473<=AB$1,$W473>=AB$1),INDEX(Reliability!G$23:G$50,MATCH($T473,Reliability!$C$23:$C$50,0)),0),0)*$H473*$X473*$Y473),$D473)*$R473","v":0},{"$f":"MIN((IFERROR(IF(AND($V473<=AC$1,$W473>=AC$1),INDEX(Reliability!H$23:H$50,MATCH($S473,Reliability!$C$23:$C$50,0)),0),0)*IF($T473=\"n/a\",$D473*$Y473,$G473)+IFERROR(IF(AND($V473<=AC$1,$W473>=AC$1),INDEX(Reliability!H$23:H$50,MATCH($T473,Reliability!$C$23:$C$50,0)),0),0)*$H473*$X473*$Y473),$D473)*$R473","v":0},{"$f":"MIN((IFERROR(IF(AND($V473<=AD$1,$W473>=AD$1),INDEX(Reliability!I$23:I$50,MATCH($S473,Reliability!$C$23:$C$50,0)),0),0)*IF($T473=\"n/a\",$D473*$Y473,$G473)+IFERROR(IF(AND($V473<=AD$1,$W473>=AD$1),INDEX(Reliability!I$23:I$50,MATCH($T473,Reliability!$C$23:$C$50,0)),0),0)*$H473*$X473*$Y473),$D473)*$R473","v":0},{"$f":"MIN((IFERROR(IF(AND($V473<=AE$1,$W473>=AE$1),INDEX(Reliability!J$23:J$50,MATCH($S473,Reliability!$C$23:$C$50,0)),0),0)*IF($T473=\"n/a\",$D473*$Y473,$G473)+IFERROR(IF(AND($V473<=AE$1,$W473>=AE$1),INDEX(Reliability!J$23:J$50,MATCH($T473,Reliability!$C$23:$C$50,0)),0),0)*$H473*$X473*$Y473),$D473)*$R473","v":0},{"$f":"MIN((IFERROR(IF(AND($V473<=AF$1,$W473>=AF$1),INDEX(Reliability!K$23:K$50,MATCH($S473,Reliability!$C$23:$C$50,0)),0),0)*IF($T473=\"n/a\",$D473*$Y473,$G473)+IFERROR(IF(AND($V473<=AF$1,$W473>=AF$1),INDEX(Reliability!K$23:K$50,MATCH($T473,Reliability!$C$23:$C$50,0)),0),0)*$H473*$X473*$Y473),$D473)*$R473","v":0},{"$f":"MIN((IFERROR(IF(AND($V473<=AG$1,$W473>=AG$1),INDEX(Reliability!L$23:L$50,MATCH($S473,Reliability!$C$23:$C$50,0)),0),0)*IF($T473=\"n/a\",$D473*$Y473,$G473)+IFERROR(IF(AND($V473<=AG$1,$W473>=AG$1),INDEX(Reliability!L$23:L$50,MATCH($T473,Reliability!$C$23:$C$50,0)),0),0)*$H473*$X473*$Y473),$D473)*$R473","v":0},{"$f":"MIN((IFERROR(IF(AND($V473<=AH$1,$W473>=AH$1),INDEX(Reliability!M$23:M$50,MATCH($S473,Reliability!$C$23:$C$50,0)),0),0)*IF($T473=\"n/a\",$D473*$Y473,$G473)+IFERROR(IF(AND($V473<=AH$1,$W473>=AH$1),INDEX(Reliability!M$23:M$50,MATCH($T473,Reliability!$C$23:$C$50,0)),0),0)*$H473*$X473*$Y473),$D473)*$R473","v":0},{"$f":"MIN((IFERROR(IF(AND($V473<=AI$1,$W473>=AI$1),INDEX(Reliability!N$23:N$50,MATCH($S473,Reliability!$C$23:$C$50,0)),0),0)*IF($T473=\"n/a\",$D473*$Y473,$G473)+IFERROR(IF(AND($V473<=AI$1,$W473>=AI$1),INDEX(Reliability!N$23:N$50,MATCH($T473,Reliability!$C$23:$C$50,0)),0),0)*$H473*$X473*$Y473),$D473)*$R473","v":0},{"$f":"MIN((IFERROR(IF(AND($V473<=AJ$1,$W473>=AJ$1),INDEX(Reliability!O$23:O$50,MATCH($S473,Reliability!$C$23:$C$50,0)),0),0)*IF($T473=\"n/a\",$D473*$Y473,$G473)+IFERROR(IF(AND($V473<=AJ$1,$W473>=AJ$1),INDEX(Reliability!O$23:O$50,MATCH($T473,Reliability!$C$23:$C$50,0)),0),0)*$H473*$X473*$Y473),$D473)*$R473","v":0},{"$f":"MIN((IFERROR(IF(AND($V473<=AK$1,$W473>=AK$1),INDEX(Reliability!P$23:P$50,MATCH($S473,Reliability!$C$23:$C$50,0)),0),0)*IF($T473=\"n/a\",$D473*$Y473,$G473)+IFERROR(IF(AND($V473<=AK$1,$W473>=AK$1),INDEX(Reliability!P$23:P$50,MATCH($T473,Reliability!$C$23:$C$50,0)),0),0)*$H473*$X473*$Y473),$D473)*$R473","v":0}]
[null,{"$f":"unique_contracts!B475","v":0},{"$f":"unique_contracts!D475","v":0},{"$f":"unique_contracts!J475","v":0},{"$f":"unique_contracts!M475","v":0},{"$f":"unique_contracts!N475","v":0},{"$f":"unique_contracts!P475","v":0},{"$f":"unique_contracts!R475","v":0},{"$f":"unique_contracts!V475","v":0},{"$f":"unique_contracts!AB475","v":0},{"$f":"unique_contracts!AM475","v":0},{"$f":"unique_contracts!AN475","v":0},{"$f":"unique_contracts!AO475","v":0},{"$f":"unique_contracts!AP475","v":0},{"$f":"unique_contracts!AQ475","v":0},{"$f":"unique_contracts!AR475","v":0},{"$f":"unique_contracts!BP475","v":0},0,{"$f":"IFERROR(IF(AND(I474>0,E474=\"NotHybrid\"),_xlfn.CONCAT(MAX(MIN(ROUNDDOWN(I474/D474,0),8),4),INDEX(resources!$G:$G,MATCH(B474,resources!$A:$A,0))),INDEX(resources!$G:$G,MATCH(B474,resources!$A:$A,0))),\"n/a\")","v":"n/a"},"n/a","n/a",0,0,1,1,{"$f":"MIN((IFERROR(IF(AND($V474<=Z$1,$W474>=Z$1),INDEX(Reliability!E$23:E$50,MATCH($S474,Reliability!$C$23:$C$50,0)),0),0)*IF($T474=\"n/a\",$D474*$Y474,$G474)+IFERROR(IF(AND($V474<=Z$1,$W474>=Z$1),INDEX(Reliability!E$23:E$50,MATCH($T474,Reliability!$C$23:$C$50,0)),0),0)*$H474*$X474*$Y474),$D474)*$R474","v":0},{"$f":"MIN((IFERROR(IF(AND($V474<=AA$1,$W474>=AA$1),INDEX(Reliability!F$23:F$50,MATCH($S474,Reliability!$C$23:$C$50,0)),0),0)*IF($T474=\"n/a\",$D474*$Y474,$G474)+IFERROR(IF(AND($V474<=AA$1,$W474>=AA$1),INDEX(Reliability!F$23:F$50,MATCH($T474,Reliability!$C$23:$C$50,0)),0),0)*$H474*$X474*$Y474),$D474)*$R474","v":0},{"$f":"MIN((IFERROR(IF(AND($V474<=AB$1,$W474>=AB$1),INDEX(Reliability!G$23:G$50,MATCH($S474,Reliability!$C$23:$C$50,0)),0),0)*IF($T474=\"n/a\",$D474*$Y474,$G474)+IFERROR(IF(AND($V474<=AB$1,$W474>=AB$1),INDEX(Reliability!G$23:G$50,MATCH($T474,Reliability!$C$23:$C$50,0)),0),0)*$H474*$X474*$Y474),$D474)*$R474","v":0},{"$f":"MIN((IFERROR(IF(AND($V474<=AC$1,$W474>=AC$1),INDEX(Reliability!H$23:H$50,MATCH($S474,Reliability!$C$23:$C$50,0)),0),0)*IF($T474=\"n/a\",$D474*$Y474,$G474)+IFERROR(IF(AND($V474<=AC$1,$W474>=AC$1),INDEX(Reliability!H$23:H$50,MATCH($T474,Reliability!$C$23:$C$50,0)),0),0)*$H474*$X474*$Y474),$D474)*$R474","v":0},{"$f":"MIN((IFERROR(IF(AND($V474<=AD$1,$W474>=AD$1),INDEX(Reliability!I$23:I$50,MATCH($S474,Reliability!$C$23:$C$50,0)),0),0)*IF($T474=\"n/a\",$D474*$Y474,$G474)+IFERROR(IF(AND($V474<=AD$1,$W474>=AD$1),INDEX(Reliability!I$23:I$50,MATCH($T474,Reliability!$C$23:$C$50,0)),0),0)*$H474*$X474*$Y474),$D474)*$R474","v":0},{"$f":"MIN((IFERROR(IF(AND($V474<=AE$1,$W474>=AE$1),INDEX(Reliability!J$23:J$50,MATCH($S474,Reliability!$C$23:$C$50,0)),0),0)*IF($T474=\"n/a\",$D474*$Y474,$G474)+IFERROR(IF(AND($V474<=AE$1,$W474>=AE$1),INDEX(Reliability!J$23:J$50,MATCH($T474,Reliability!$C$23:$C$50,0)),0),0)*$H474*$X474*$Y474),$D474)*$R474","v":0},{"$f":"MIN((IFERROR(IF(AND($V474<=AF$1,$W474>=AF$1),INDEX(Reliability!K$23:K$50,MATCH($S474,Reliability!$C$23:$C$50,0)),0),0)*IF($T474=\"n/a\",$D474*$Y474,$G474)+IFERROR(IF(AND($V474<=AF$1,$W474>=AF$1),INDEX(Reliability!K$23:K$50,MATCH($T474,Reliability!$C$23:$C$50,0)),0),0)*$H474*$X474*$Y474),$D474)*$R474","v":0},{"$f":"MIN((IFERROR(IF(AND($V474<=AG$1,$W474>=AG$1),INDEX(Reliability!L$23:L$50,MATCH($S474,Reliability!$C$23:$C$50,0)),0),0)*IF($T474=\"n/a\",$D474*$Y474,$G474)+IFERROR(IF(AND($V474<=AG$1,$W474>=AG$1),INDEX(Reliability!L$23:L$50,MATCH($T474,Reliability!$C$23:$C$50,0)),0),0)*$H474*$X474*$Y474),$D474)*$R474","v":0},{"$f":"MIN((IFERROR(IF(AND($V474<=AH$1,$W474>=AH$1),INDEX(Reliability!M$23:M$50,MATCH($S474,Reliability!$C$23:$C$50,0)),0),0)*IF($T474=\"n/a\",$D474*$Y474,$G474)+IFERROR(IF(AND($V474<=AH$1,$W474>=AH$1),INDEX(Reliability!M$23:M$50,MATCH($T474,Reliability!$C$23:$C$50,0)),0),0)*$H474*$X474*$Y474),$D474)*$R474","v":0},{"$f":"MIN((IFERROR(IF(AND($V474<=AI$1,$W474>=AI$1),INDEX(Reliability!N$23:N$50,MATCH($S474,Reliability!$C$23:$C$50,0)),0),0)*IF($T474=\"n/a\",$D474*$Y474,$G474)+IFERROR(IF(AND($V474<=AI$1,$W474>=AI$1),INDEX(Reliability!N$23:N$50,MATCH($T474,Reliability!$C$23:$C$50,0)),0),0)*$H474*$X474*$Y474),$D474)*$R474","v":0},{"$f":"MIN((IFERROR(IF(AND($V474<=AJ$1,$W474>=AJ$1),INDEX(Reliability!O$23:O$50,MATCH($S474,Reliability!$C$23:$C$50,0)),0),0)*IF($T474=\"n/a\",$D474*$Y474,$G474)+IFERROR(IF(AND($V474<=AJ$1,$W474>=AJ$1),INDEX(Reliability!O$23:O$50,MATCH($T474,Reliability!$C$23:$C$50,0)),0),0)*$H474*$X474*$Y474),$D474)*$R474","v":0},{"$f":"MIN((IFERROR(IF(AND($V474<=AK$1,$W474>=AK$1),INDEX(Reliability!P$23:P$50,MATCH($S474,Reliability!$C$23:$C$50,0)),0),0)*IF($T474=\"n/a\",$D474*$Y474,$G474)+IFERROR(IF(AND($V474<=AK$1,$W474>=AK$1),INDEX(Reliability!P$23:P$50,MATCH($T474,Reliability!$C$23:$C$50,0)),0),0)*$H474*$X474*$Y474),$D474)*$R474","v":0}]
[null,{"$f":"unique_contracts!B476","v":0},{"$f":"unique_contracts!D476","v":0},{"$f":"unique_contracts!J476","v":0},{"$f":"unique_contracts!M476","v":0},{"$f":"unique_contracts!N476","v":0},{"$f":"unique_contracts!P476","v":0},{"$f":"unique_contracts!R476","v":0},{"$f":"unique_contracts!V476","v":0},{"$f":"unique_contracts!AB476","v":0},{"$f":"unique_contracts!AM476","v":0},{"$f":"unique_contracts!AN476","v":0},{"$f":"unique_contracts!AO476","v":0},{"$f":"unique_contracts!AP476","v":0},{"$f":"unique_contracts!AQ476","v":0},{"$f":"unique_contracts!AR476","v":0},{"$f":"unique_contracts!BP476","v":0},{"$f":"IF(AND(J475=\"Sell\",ISNUMBER(SEARCH(\"Capacity\",Q475))),-1,IF(AND(NOT(J475=\"Sell\"),ISNUMBER(SEARCH(\"Capacity\",Q475))),1,0))","v":0},{"$f":"IFERROR(IF(AND(I475>0,E475=\"NotHybrid\"),_xlfn.CONCAT(MAX(MIN(ROUNDDOWN(I475/D475,0),8),4),INDEX(resources!$G:$G,MATCH(B475,resources!$A:$A,0))),INDEX(resources!$G:$G,MATCH(B475,resources!$A:$A,0))),\"n/a\")","v":"n/a"},{"$f":"IFERROR(IF(NOT(E475=\"NotHybrid\"),_xlfn.CONCAT(MAX(MIN(ROUNDDOWN(I475/H475,0),8),4),\"hr_batteries\"),\"n/a\"),\"n/a\")","v":"n/a"},{"$f":"IF(T475=\"n/a\",S475,\"hybrid\")","v":"n/a"},{"$f":"IFERROR(IF(DATE(K475,L475,M475)<=DATE(K475,6,1),K475,K475+1),0)","v":0},{"$f":"IFERROR(IF(DATE(N475,O475,P475)>=DATE(N475,10,1),N475,N475-1),0)","v":0},{"$f":"IF(OR(T475=\"n/a\",NOT(F475=\"NO\")),100%,IF(ISNUMBER(SEARCH(\"pv\",S475)),MIN(G475/(1*(ROUNDDOWN(I475/H475,0)/4)),H475)/H475,IF(ISNUMBER(SEARCH(\"wind\",S475)),MIN(G475/(2*(ROUNDDOWN(I475/H475,0)/4)),H475)/H475,1)))","v":1},{"$f":"IF(ISNUMBER(SEARCH(\"batteries\",S475)),MIN(ROUNDDOWN(I475/D475,0)/4,1), IF(ISNUMBER(SEARCH(\"batteries\",T475)),MIN(ROUNDDOWN(I475/H475,0)/4,1),1))","v":1},{"$f":"MIN((IFERROR(IF(AND($V475<=Z$1,$W475>=Z$1),INDEX(Reliability!E$23:E$50,MATCH($S475,Reliability!$C$23:$C$50,0)),0),0)*IF($T475=\"n/a\",$D475*$Y475,$G475)+IFERROR(IF(AND($V475<=Z$1,$W475>=Z$1),INDEX(Reliability!E$23:E$50,MATCH($T475,Reliability!$C$23:$C$50,0)),0),0)*$H475*$X475*$Y475),$D475)*$R475","v":0},{"$f":"MIN((IFERROR(IF(AND($V475<=AA$1,$W475>=AA$1),INDEX(Reliability!F$23:F$50,MATCH($S475,Reliability!$C$23:$C$50,0)),0),0)*IF($T475=\"n/a\",$D475*$Y475,$G475)+IFERROR(IF(AND($V475<=AA$1,$W475>=AA$1),INDEX(Reliability!F$23:F$50,MATCH($T475,Reliability!$C$23:$C$50,0)),0),0)*$H475*$X475*$Y475),$D475)*$R475","v":0},{"$f":"MIN((IFERROR(IF(AND($V475<=AB$1,$W475>=AB$1),INDEX(Reliability!G$23:G$50,MATCH($S475,Reliability!$C$23:$C$50,0)),0),0)*IF($T475=\"n/a\",$D475*$Y475,$G475)+IFERROR(IF(AND($V475<=AB$1,$W475>=AB$1),INDEX(Reliability!G$23:G$50,MATCH($T475,Reliability!$C$23:$C$50,0)),0),0)*$H475*$X475*$Y475),$D475)*$R475","v":0},{"$f":"MIN((IFERROR(IF(AND($V475<=AC$1,$W475>=AC$1),INDEX(Reliability!H$23:H$50,MATCH($S475,Reliability!$C$23:$C$50,0)),0),0)*IF($T475=\"n/a\",$D475*$Y475,$G475)+IFERROR(IF(AND($V475<=AC$1,$W475>=AC$1),INDEX(Reliability!H$23:H$50,MATCH($T475,Reliability!$C$23:$C$50,0)),0),0)*$H475*$X475*$Y475),$D475)*$R475","v":0},{"$f":"MIN((IFERROR(IF(AND($V475<=AD$1,$W475>=AD$1),INDEX(Reliability!I$23:I$50,MATCH($S475,Reliability!$C$23:$C$50,0)),0),0)*IF($T475=\"n/a\",$D475*$Y475,$G475)+IFERROR(IF(AND($V475<=AD$1,$W475>=AD$1),INDEX(Reliability!I$23:I$50,MATCH($T475,Reliability!$C$23:$C$50,0)),0),0)*$H475*$X475*$Y475),$D475)*$R475","v":0},{"$f":"MIN((IFERROR(IF(AND($V475<=AE$1,$W475>=AE$1),INDEX(Reliability!J$23:J$50,MATCH($S475,Reliability!$C$23:$C$50,0)),0),0)*IF($T475=\"n/a\",$D475*$Y475,$G475)+IFERROR(IF(AND($V475<=AE$1,$W475>=AE$1),INDEX(Reliability!J$23:J$50,MATCH($T475,Reliability!$C$23:$C$50,0)),0),0)*$H475*$X475*$Y475),$D475)*$R475","v":0},{"$f":"MIN((IFERROR(IF(AND($V475<=AF$1,$W475>=AF$1),INDEX(Reliability!K$23:K$50,MATCH($S475,Reliability!$C$23:$C$50,0)),0),0)*IF($T475=\"n/a\",$D475*$Y475,$G475)+IFERROR(IF(AND($V475<=AF$1,$W475>=AF$1),INDEX(Reliability!K$23:K$50,MATCH($T475,Reliability!$C$23:$C$50,0)),0),0)*$H475*$X475*$Y475),$D475)*$R475","v":0},{"$f":"MIN((IFERROR(IF(AND($V475<=AG$1,$W475>=AG$1),INDEX(Reliability!L$23:L$50,MATCH($S475,Reliability!$C$23:$C$50,0)),0),0)*IF($T475=\"n/a\",$D475*$Y475,$G475)+IFERROR(IF(AND($V475<=AG$1,$W475>=AG$1),INDEX(Reliability!L$23:L$50,MATCH($T475,Reliability!$C$23:$C$50,0)),0),0)*$H475*$X475*$Y475),$D475)*$R475","v":0},{"$f":"MIN((IFERROR(IF(AND($V475<=AH$1,$W475>=AH$1),INDEX(Reliability!M$23:M$50,MATCH($S475,Reliability!$C$23:$C$50,0)),0),0)*IF($T475=\"n/a\",$D475*$Y475,$G475)+IFERROR(IF(AND($V475<=AH$1,$W475>=AH$1),INDEX(Reliability!M$23:M$50,MATCH($T475,Reliability!$C$23:$C$50,0)),0),0)*$H475*$X475*$Y475),$D475)*$R475","v":0},{"$f":"MIN((IFERROR(IF(AND($V475<=AI$1,$W475>=AI$1),INDEX(Reliability!N$23:N$50,MATCH($S475,Reliability!$C$23:$C$50,0)),0),0)*IF($T475=\"n/a\",$D475*$Y475,$G475)+IFERROR(IF(AND($V475<=AI$1,$W475>=AI$1),INDEX(Reliability!N$23:N$50,MATCH($T475,Reliability!$C$23:$C$50,0)),0),0)*$H475*$X475*$Y475),$D475)*$R475","v":0},{"$f":"MIN((IFERROR(IF(AND($V475<=AJ$1,$W475>=AJ$1),INDEX(Reliability!O$23:O$50,MATCH($S475,Reliability!$C$23:$C$50,0)),0),0)*IF($T475=\"n/a\",$D475*$Y475,$G475)+IFERROR(IF(AND($V475<=AJ$1,$W475>=AJ$1),INDEX(Reliability!O$23:O$50,MATCH($T475,Reliability!$C$23:$C$50,0)),0),0)*$H475*$X475*$Y475),$D475)*$R475","v":0},{"$f":"MIN((IFERROR(IF(AND($V475<=AK$1,$W475>=AK$1),INDEX(Reliability!P$23:P$50,MATCH($S475,Reliability!$C$23:$C$50,0)),0),0)*IF($T475=\"n/a\",$D475*$Y475,$G475)+IFERROR(IF(AND($V475<=AK$1,$W475>=AK$1),INDEX(Reliability!P$23:P$50,MATCH($T475,Reliability!$C$23:$C$50,0)),0),0)*$H475*$X475*$Y475),$D475)*$R475","v":0}]
[null,{"$f":"unique_contracts!B477","v":0},{"$f":"unique_contracts!D477","v":0},{"$f":"unique_contracts!J477","v":0},{"$f":"unique_contracts!M477","v":0},{"$f":"unique_contracts!N477","v":0},{"$f":"unique_contracts!P477","v":0},{"$f":"unique_contracts!R477","v":0},{"$f":"unique_contracts!V477","v":0},{"$f":"unique_contracts!AB477","v":0},{"$f":"unique_contracts!AM477","v":0},{"$f":"unique_contracts!AN477","v":0},{"$f":"unique_contracts!AO477","v":0},{"$f":"unique_contracts!AP477","v":0},{"$f":"unique_contracts!AQ477","v":0},{"$f":"unique_contracts!AR477","v":0},{"$f":"unique_contracts!BP477","v":0},0,{"$f":"IFERROR(IF(AND(I476>0,E476=\"NotHybrid\"),_xlfn.CONCAT(MAX(MIN(ROUNDDOWN(I476/D476,0),8),4),INDEX(resources!$G:$G,MATCH(B476,resources!$A:$A,0))),INDEX(resources!$G:$G,MATCH(B476,resources!$A:$A,0))),\"n/a\")","v":"n/a"},"n/a","n/a",0,0,1,1,{"$f":"MIN((IFERROR(IF(AND($V476<=Z$1,$W476>=Z$1),INDEX(Reliability!E$23:E$50,MATCH($S476,Reliability!$C$23:$C$50,0)),0),0)*IF($T476=\"n/a\",$D476*$Y476,$G476)+IFERROR(IF(AND($V476<=Z$1,$W476>=Z$1),INDEX(Reliability!E$23:E$50,MATCH($T476,Reliability!$C$23:$C$50,0)),0),0)*$H476*$X476*$Y476),$D476)*$R476","v":0},{"$f":"MIN((IFERROR(IF(AND($V476<=AA$1,$W476>=AA$1),INDEX(Reliability!F$23:F$50,MATCH($S476,Reliability!$C$23:$C$50,0)),0),0)*IF($T476=\"n/a\",$D476*$Y476,$G476)+IFERROR(IF(AND($V476<=AA$1,$W476>=AA$1),INDEX(Reliability!F$23:F$50,MATCH($T476,Reliability!$C$23:$C$50,0)),0),0)*$H476*$X476*$Y476),$D476)*$R476","v":0},{"$f":"MIN((IFERROR(IF(AND($V476<=AB$1,$W476>=AB$1),INDEX(Reliability!G$23:G$50,MATCH($S476,Reliability!$C$23:$C$50,0)),0),0)*IF($T476=\"n/a\",$D476*$Y476,$G476)+IFERROR(IF(AND($V476<=AB$1,$W476>=AB$1),INDEX(Reliability!G$23:G$50,MATCH($T476,Reliability!$C$23:$C$50,0)),0),0)*$H476*$X476*$Y476),$D476)*$R476","v":0},{"$f":"MIN((IFERROR(IF(AND($V476<=AC$1,$W476>=AC$1),INDEX(Reliability!H$23:H$50,MATCH($S476,Reliability!$C$23:$C$50,0)),0),0)*IF($T476=\"n/a\",$D476*$Y476,$G476)+IFERROR(IF(AND($V476<=AC$1,$W476>=AC$1),INDEX(Reliability!H$23:H$50,MATCH($T476,Reliability!$C$23:$C$50,0)),0),0)*$H476*$X476*$Y476),$D476)*$R476","v":0},{"$f":"MIN((IFERROR(IF(AND($V476<=AD$1,$W476>=AD$1),INDEX(Reliability!I$23:I$50,MATCH($S476,Reliability!$C$23:$C$50,0)),0),0)*IF($T476=\"n/a\",$D476*$Y476,$G476)+IFERROR(IF(AND($V476<=AD$1,$W476>=AD$1),INDEX(Reliability!I$23:I$50,MATCH($T476,Reliability!$C$23:$C$50,0)),0),0)*$H476*$X476*$Y476),$D476)*$R476","v":0},{"$f":"MIN((IFERROR(IF(AND($V476<=AE$1,$W476>=AE$1),INDEX(Reliability!J$23:J$50,MATCH($S476,Reliability!$C$23:$C$50,0)),0),0)*IF($T476=\"n/a\",$D476*$Y476,$G476)+IFERROR(IF(AND($V476<=AE$1,$W476>=AE$1),INDEX(Reliability!J$23:J$50,MATCH($T476,Reliability!$C$23:$C$50,0)),0),0)*$H476*$X476*$Y476),$D476)*$R476","v":0},{"$f":"MIN((IFERROR(IF(AND($V476<=AF$1,$W476>=AF$1),INDEX(Reliability!K$23:K$50,MATCH($S476,Reliability!$C$23:$C$50,0)),0),0)*IF($T476=\"n/a\",$D476*$Y476,$G476)+IFERROR(IF(AND($V476<=AF$1,$W476>=AF$1),INDEX(Reliability!K$23:K$50,MATCH($T476,Reliability!$C$23:$C$50,0)),0),0)*$H476*$X476*$Y476),$D476)*$R476","v":0},{"$f":"MIN((IFERROR(IF(AND($V476<=AG$1,$W476>=AG$1),INDEX(Reliability!L$23:L$50,MATCH($S476,Reliability!$C$23:$C$50,0)),0),0)*IF($T476=\"n/a\",$D476*$Y476,$G476)+IFERROR(IF(AND($V476<=AG$1,$W476>=AG$1),INDEX(Reliability!L$23:L$50,MATCH($T476,Reliability!$C$23:$C$50,0)),0),0)*$H476*$X476*$Y476),$D476)*$R476","v":0},{"$f":"MIN((IFERROR(IF(AND($V476<=AH$1,$W476>=AH$1),INDEX(Reliability!M$23:M$50,MATCH($S476,Reliability!$C$23:$C$50,0)),0),0)*IF($T476=\"n/a\",$D476*$Y476,$G476)+IFERROR(IF(AND($V476<=AH$1,$W476>=AH$1),INDEX(Reliability!M$23:M$50,MATCH($T476,Reliability!$C$23:$C$50,0)),0),0)*$H476*$X476*$Y476),$D476)*$R476","v":0},{"$f":"MIN((IFERROR(IF(AND($V476<=AI$1,$W476>=AI$1),INDEX(Reliability!N$23:N$50,MATCH($S476,Reliability!$C$23:$C$50,0)),0),0)*IF($T476=\"n/a\",$D476*$Y476,$G476)+IFERROR(IF(AND($V476<=AI$1,$W476>=AI$1),INDEX(Reliability!N$23:N$50,MATCH($T476,Reliability!$C$23:$C$50,0)),0),0)*$H476*$X476*$Y476),$D476)*$R476","v":0},{"$f":"MIN((IFERROR(IF(AND($V476<=AJ$1,$W476>=AJ$1),INDEX(Reliability!O$23:O$50,MATCH($S476,Reliability!$C$23:$C$50,0)),0),0)*IF($T476=\"n/a\",$D476*$Y476,$G476)+IFERROR(IF(AND($V476<=AJ$1,$W476>=AJ$1),INDEX(Reliability!O$23:O$50,MATCH($T476,Reliability!$C$23:$C$50,0)),0),0)*$H476*$X476*$Y476),$D476)*$R476","v":0},{"$f":"MIN((IFERROR(IF(AND($V476<=AK$1,$W476>=AK$1),INDEX(Reliability!P$23:P$50,MATCH($S476,Reliability!$C$23:$C$50,0)),0),0)*IF($T476=\"n/a\",$D476*$Y476,$G476)+IFERROR(IF(AND($V476<=AK$1,$W476>=AK$1),INDEX(Reliability!P$23:P$50,MATCH($T476,Reliability!$C$23:$C$50,0)),0),0)*$H476*$X476*$Y476),$D476)*$R476","v":0}]
[null,{"$f":"unique_contracts!B478","v":0},{"$f":"unique_contracts!D478","v":0},{"$f":"unique_contracts!J478","v":0},{"$f":"unique_contracts!M478","v":0},{"$f":"unique_contracts!N478","v":0},{"$f":"unique_contracts!P478","v":0},{"$f":"unique_contracts!R478","v":0},{"$f":"unique_contracts!V478","v":0},{"$f":"unique_contracts!AB478","v":0},{"$f":"unique_contracts!AM478","v":0},{"$f":"unique_contracts!AN478","v":0},{"$f":"unique_contracts!AO478","v":0},{"$f":"unique_contracts!AP478","v":0},{"$f":"unique_contracts!AQ478","v":0},{"$f":"unique_contracts!AR478","v":0},{"$f":"unique_contracts!BP478","v":0},0,{"$f":"IFERROR(IF(AND(I477>0,E477=\"NotHybrid\"),_xlfn.CONCAT(MAX(MIN(ROUNDDOWN(I477/D477,0),8),4),INDEX(resources!$G:$G,MATCH(B477,resources!$A:$A,0))),INDEX(resources!$G:$G,MATCH(B477,resources!$A:$A,0))),\"n/a\")","v":"n/a"},"n/a","n/a",0,0,1,1,{"$f":"MIN((IFERROR(IF(AND($V477<=Z$1,$W477>=Z$1),INDEX(Reliability!E$23:E$50,MATCH($S477,Reliability!$C$23:$C$50,0)),0),0)*IF($T477=\"n/a\",$D477*$Y477,$G477)+IFERROR(IF(AND($V477<=Z$1,$W477>=Z$1),INDEX(Reliability!E$23:E$50,MATCH($T477,Reliability!$C$23:$C$50,0)),0),0)*$H477*$X477*$Y477),$D477)*$R477","v":0},{"$f":"MIN((IFERROR(IF(AND($V477<=AA$1,$W477>=AA$1),INDEX(Reliability!F$23:F$50,MATCH($S477,Reliability!$C$23:$C$50,0)),0),0)*IF($T477=\"n/a\",$D477*$Y477,$G477)+IFERROR(IF(AND($V477<=AA$1,$W477>=AA$1),INDEX(Reliability!F$23:F$50,MATCH($T477,Reliability!$C$23:$C$50,0)),0),0)*$H477*$X477*$Y477),$D477)*$R477","v":0},{"$f":"MIN((IFERROR(IF(AND($V477<=AB$1,$W477>=AB$1),INDEX(Reliability!G$23:G$50,MATCH($S477,Reliability!$C$23:$C$50,0)),0),0)*IF($T477=\"n/a\",$D477*$Y477,$G477)+IFERROR(IF(AND($V477<=AB$1,$W477>=AB$1),INDEX(Reliability!G$23:G$50,MATCH($T477,Reliability!$C$23:$C$50,0)),0),0)*$H477*$X477*$Y477),$D477)*$R477","v":0},{"$f":"MIN((IFERROR(IF(AND($V477<=AC$1,$W477>=AC$1),INDEX(Reliability!H$23:H$50,MATCH($S477,Reliability!$C$23:$C$50,0)),0),0)*IF($T477=\"n/a\",$D477*$Y477,$G477)+IFERROR(IF(AND($V477<=AC$1,$W477>=AC$1),INDEX(Reliability!H$23:H$50,MATCH($T477,Reliability!$C$23:$C$50,0)),0),0)*$H477*$X477*$Y477),$D477)*$R477","v":0},{"$f":"MIN((IFERROR(IF(AND($V477<=AD$1,$W477>=AD$1),INDEX(Reliability!I$23:I$50,MATCH($S477,Reliability!$C$23:$C$50,0)),0),0)*IF($T477=\"n/a\",$D477*$Y477,$G477)+IFERROR(IF(AND($V477<=AD$1,$W477>=AD$1),INDEX(Reliability!I$23:I$50,MATCH($T477,Reliability!$C$23:$C$50,0)),0),0)*$H477*$X477*$Y477),$D477)*$R477","v":0},{"$f":"MIN((IFERROR(IF(AND($V477<=AE$1,$W477>=AE$1),INDEX(Reliability!J$23:J$50,MATCH($S477,Reliability!$C$23:$C$50,0)),0),0)*IF($T477=\"n/a\",$D477*$Y477,$G477)+IFERROR(IF(AND($V477<=AE$1,$W477>=AE$1),INDEX(Reliability!J$23:J$50,MATCH($T477,Reliability!$C$23:$C$50,0)),0),0)*$H477*$X477*$Y477),$D477)*$R477","v":0},{"$f":"MIN((IFERROR(IF(AND($V477<=AF$1,$W477>=AF$1),INDEX(Reliability!K$23:K$50,MATCH($S477,Reliability!$C$23:$C$50,0)),0),0)*IF($T477=\"n/a\",$D477*$Y477,$G477)+IFERROR(IF(AND($V477<=AF$1,$W477>=AF$1),INDEX(Reliability!K$23:K$50,MATCH($T477,Reliability!$C$23:$C$50,0)),0),0)*$H477*$X477*$Y477),$D477)*$R477","v":0},{"$f":"MIN((IFERROR(IF(AND($V477<=AG$1,$W477>=AG$1),INDEX(Reliability!L$23:L$50,MATCH($S477,Reliability!$C$23:$C$50,0)),0),0)*IF($T477=\"n/a\",$D477*$Y477,$G477)+IFERROR(IF(AND($V477<=AG$1,$W477>=AG$1),INDEX(Reliability!L$23:L$50,MATCH($T477,Reliability!$C$23:$C$50,0)),0),0)*$H477*$X477*$Y477),$D477)*$R477","v":0},{"$f":"MIN((IFERROR(IF(AND($V477<=AH$1,$W477>=AH$1),INDEX(Reliability!M$23:M$50,MATCH($S477,Reliability!$C$23:$C$50,0)),0),0)*IF($T477=\"n/a\",$D477*$Y477,$G477)+IFERROR(IF(AND($V477<=AH$1,$W477>=AH$1),INDEX(Reliability!M$23:M$50,MATCH($T477,Reliability!$C$23:$C$50,0)),0),0)*$H477*$X477*$Y477),$D477)*$R477","v":0},{"$f":"MIN((IFERROR(IF(AND($V477<=AI$1,$W477>=AI$1),INDEX(Reliability!N$23:N$50,MATCH($S477,Reliability!$C$23:$C$50,0)),0),0)*IF($T477=\"n/a\",$D477*$Y477,$G477)+IFERROR(IF(AND($V477<=AI$1,$W477>=AI$1),INDEX(Reliability!N$23:N$50,MATCH($T477,Reliability!$C$23:$C$50,0)),0),0)*$H477*$X477*$Y477),$D477)*$R477","v":0},{"$f":"MIN((IFERROR(IF(AND($V477<=AJ$1,$W477>=AJ$1),INDEX(Reliability!O$23:O$50,MATCH($S477,Reliability!$C$23:$C$50,0)),0),0)*IF($T477=\"n/a\",$D477*$Y477,$G477)+IFERROR(IF(AND($V477<=AJ$1,$W477>=AJ$1),INDEX(Reliability!O$23:O$50,MATCH($T477,Reliability!$C$23:$C$50,0)),0),0)*$H477*$X477*$Y477),$D477)*$R477","v":0},{"$f":"MIN((IFERROR(IF(AND($V477<=AK$1,$W477>=AK$1),INDEX(Reliability!P$23:P$50,MATCH($S477,Reliability!$C$23:$C$50,0)),0),0)*IF($T477=\"n/a\",$D477*$Y477,$G477)+IFERROR(IF(AND($V477<=AK$1,$W477>=AK$1),INDEX(Reliability!P$23:P$50,MATCH($T477,Reliability!$C$23:$C$50,0)),0),0)*$H477*$X477*$Y477),$D477)*$R477","v":0}]
[null,{"$f":"unique_contracts!B479","v":0},{"$f":"unique_contracts!D479","v":0},{"$f":"unique_contracts!J479","v":0},{"$f":"unique_contracts!M479","v":0},{"$f":"unique_contracts!N479","v":0},{"$f":"unique_contracts!P479","v":0},{"$f":"unique_contracts!R479","v":0},{"$f":"unique_contracts!V479","v":0},{"$f":"unique_contracts!AB479","v":0},{"$f":"unique_contracts!AM479","v":0},{"$f":"unique_contracts!AN479","v":0},{"$f":"unique_contracts!AO479","v":0},{"$f":"unique_contracts!AP479","v":0},{"$f":"unique_contracts!AQ479","v":0},{"$f":"unique_contracts!AR479","v":0},{"$f":"unique_contracts!BP479","v":0},0,{"$f":"IFERROR(IF(AND(I478>0,E478=\"NotHybrid\"),_xlfn.CONCAT(MAX(MIN(ROUNDDOWN(I478/D478,0),8),4),INDEX(resources!$G:$G,MATCH(B478,resources!$A:$A,0))),INDEX(resources!$G:$G,MATCH(B478,resources!$A:$A,0))),\"n/a\")","v":"n/a"},"n/a","n/a",0,0,1,1,{"$f":"MIN((IFERROR(IF(AND($V478<=Z$1,$W478>=Z$1),INDEX(Reliability!E$23:E$50,MATCH($S478,Reliability!$C$23:$C$50,0)),0),0)*IF($T478=\"n/a\",$D478*$Y478,$G478)+IFERROR(IF(AND($V478<=Z$1,$W478>=Z$1),INDEX(Reliability!E$23:E$50,MATCH($T478,Reliability!$C$23:$C$50,0)),0),0)*$H478*$X478*$Y478),$D478)*$R478","v":0},{"$f":"MIN((IFERROR(IF(AND($V478<=AA$1,$W478>=AA$1),INDEX(Reliability!F$23:F$50,MATCH($S478,Reliability!$C$23:$C$50,0)),0),0)*IF($T478=\"n/a\",$D478*$Y478,$G478)+IFERROR(IF(AND($V478<=AA$1,$W478>=AA$1),INDEX(Reliability!F$23:F$50,MATCH($T478,Reliability!$C$23:$C$50,0)),0),0)*$H478*$X478*$Y478),$D478)*$R478","v":0},{"$f":"MIN((IFERROR(IF(AND($V478<=AB$1,$W478>=AB$1),INDEX(Reliability!G$23:G$50,MATCH($S478,Reliability!$C$23:$C$50,0)),0),0)*IF($T478=\"n/a\",$D478*$Y478,$G478)+IFERROR(IF(AND($V478<=AB$1,$W478>=AB$1),INDEX(Reliability!G$23:G$50,MATCH($T478,Reliability!$C$23:$C$50,0)),0),0)*$H478*$X478*$Y478),$D478)*$R478","v":0},{"$f":"MIN((IFERROR(IF(AND($V478<=AC$1,$W478>=AC$1),INDEX(Reliability!H$23:H$50,MATCH($S478,Reliability!$C$23:$C$50,0)),0),0)*IF($T478=\"n/a\",$D478*$Y478,$G478)+IFERROR(IF(AND($V478<=AC$1,$W478>=AC$1),INDEX(Reliability!H$23:H$50,MATCH($T478,Reliability!$C$23:$C$50,0)),0),0)*$H478*$X478*$Y478),$D478)*$R478","v":0},{"$f":"MIN((IFERROR(IF(AND($V478<=AD$1,$W478>=AD$1),INDEX(Reliability!I$23:I$50,MATCH($S478,Reliability!$C$23:$C$50,0)),0),0)*IF($T478=\"n/a\",$D478*$Y478,$G478)+IFERROR(IF(AND($V478<=AD$1,$W478>=AD$1),INDEX(Reliability!I$23:I$50,MATCH($T478,Reliability!$C$23:$C$50,0)),0),0)*$H478*$X478*$Y478),$D478)*$R478","v":0},{"$f":"MIN((IFERROR(IF(AND($V478<=AE$1,$W478>=AE$1),INDEX(Reliability!J$23:J$50,MATCH($S478,Reliability!$C$23:$C$50,0)),0),0)*IF($T478=\"n/a\",$D478*$Y478,$G478)+IFERROR(IF(AND($V478<=AE$1,$W478>=AE$1),INDEX(Reliability!J$23:J$50,MATCH($T478,Reliability!$C$23:$C$50,0)),0),0)*$H478*$X478*$Y478),$D478)*$R478","v":0},{"$f":"MIN((IFERROR(IF(AND($V478<=AF$1,$W478>=AF$1),INDEX(Reliability!K$23:K$50,MATCH($S478,Reliability!$C$23:$C$50,0)),0),0)*IF($T478=\"n/a\",$D478*$Y478,$G478)+IFERROR(IF(AND($V478<=AF$1,$W478>=AF$1),INDEX(Reliability!K$23:K$50,MATCH($T478,Reliability!$C$23:$C$50,0)),0),0)*$H478*$X478*$Y478),$D478)*$R478","v":0},{"$f":"MIN((IFERROR(IF(AND($V478<=AG$1,$W478>=AG$1),INDEX(Reliability!L$23:L$50,MATCH($S478,Reliability!$C$23:$C$50,0)),0),0)*IF($T478=\"n/a\",$D478*$Y478,$G478)+IFERROR(IF(AND($V478<=AG$1,$W478>=AG$1),INDEX(Reliability!L$23:L$50,MATCH($T478,Reliability!$C$23:$C$50,0)),0),0)*$H478*$X478*$Y478),$D478)*$R478","v":0},{"$f":"MIN((IFERROR(IF(AND($V478<=AH$1,$W478>=AH$1),INDEX(Reliability!M$23:M$50,MATCH($S478,Reliability!$C$23:$C$50,0)),0),0)*IF($T478=\"n/a\",$D478*$Y478,$G478)+IFERROR(IF(AND($V478<=AH$1,$W478>=AH$1),INDEX(Reliability!M$23:M$50,MATCH($T478,Reliability!$C$23:$C$50,0)),0),0)*$H478*$X478*$Y478),$D478)*$R478","v":0},{"$f":"MIN((IFERROR(IF(AND($V478<=AI$1,$W478>=AI$1),INDEX(Reliability!N$23:N$50,MATCH($S478,Reliability!$C$23:$C$50,0)),0),0)*IF($T478=\"n/a\",$D478*$Y478,$G478)+IFERROR(IF(AND($V478<=AI$1,$W478>=AI$1),INDEX(Reliability!N$23:N$50,MATCH($T478,Reliability!$C$23:$C$50,0)),0),0)*$H478*$X478*$Y478),$D478)*$R478","v":0},{"$f":"MIN((IFERROR(IF(AND($V478<=AJ$1,$W478>=AJ$1),INDEX(Reliability!O$23:O$50,MATCH($S478,Reliability!$C$23:$C$50,0)),0),0)*IF($T478=\"n/a\",$D478*$Y478,$G478)+IFERROR(IF(AND($V478<=AJ$1,$W478>=AJ$1),INDEX(Reliability!O$23:O$50,MATCH($T478,Reliability!$C$23:$C$50,0)),0),0)*$H478*$X478*$Y478),$D478)*$R478","v":0},{"$f":"MIN((IFERROR(IF(AND($V478<=AK$1,$W478>=AK$1),INDEX(Reliability!P$23:P$50,MATCH($S478,Reliability!$C$23:$C$50,0)),0),0)*IF($T478=\"n/a\",$D478*$Y478,$G478)+IFERROR(IF(AND($V478<=AK$1,$W478>=AK$1),INDEX(Reliability!P$23:P$50,MATCH($T478,Reliability!$C$23:$C$50,0)),0),0)*$H478*$X478*$Y478),$D478)*$R478","v":0}]
[null,{"$f":"unique_contracts!B480","v":0},{"$f":"unique_contracts!D480","v":0},{"$f":"unique_contracts!J480","v":0},{"$f":"unique_contracts!M480","v":0},{"$f":"unique_contracts!N480","v":0},{"$f":"unique_contracts!P480","v":0},{"$f":"unique_contracts!R480","v":0},{"$f":"unique_contracts!V480","v":0},{"$f":"unique_contracts!AB480","v":0},{"$f":"unique_contracts!AM480","v":0},{"$f":"unique_contracts!AN480","v":0},{"$f":"unique_contracts!AO480","v":0},{"$f":"unique_contracts!AP480","v":0},{"$f":"unique_contracts!AQ480","v":0},{"$f":"unique_contracts!AR480","v":0},{"$f":"unique_contracts!BP480","v":0},0,{"$f":"IFERROR(IF(AND(I479>0,E479=\"NotHybrid\"),_xlfn.CONCAT(MAX(MIN(ROUNDDOWN(I479/D479,0),8),4),INDEX(resources!$G:$G,MATCH(B479,resources!$A:$A,0))),INDEX(resources!$G:$G,MATCH(B479,resources!$A:$A,0))),\"n/a\")","v":"n/a"},"n/a","n/a",0,0,1,1,{"$f":"MIN((IFERROR(IF(AND($V479<=Z$1,$W479>=Z$1),INDEX(Reliability!E$23:E$50,MATCH($S479,Reliability!$C$23:$C$50,0)),0),0)*IF($T479=\"n/a\",$D479*$Y479,$G479)+IFERROR(IF(AND($V479<=Z$1,$W479>=Z$1),INDEX(Reliability!E$23:E$50,MATCH($T479,Reliability!$C$23:$C$50,0)),0),0)*$H479*$X479*$Y479),$D479)*$R479","v":0},{"$f":"MIN((IFERROR(IF(AND($V479<=AA$1,$W479>=AA$1),INDEX(Reliability!F$23:F$50,MATCH($S479,Reliability!$C$23:$C$50,0)),0),0)*IF($T479=\"n/a\",$D479*$Y479,$G479)+IFERROR(IF(AND($V479<=AA$1,$W479>=AA$1),INDEX(Reliability!F$23:F$50,MATCH($T479,Reliability!$C$23:$C$50,0)),0),0)*$H479*$X479*$Y479),$D479)*$R479","v":0},{"$f":"MIN((IFERROR(IF(AND($V479<=AB$1,$W479>=AB$1),INDEX(Reliability!G$23:G$50,MATCH($S479,Reliability!$C$23:$C$50,0)),0),0)*IF($T479=\"n/a\",$D479*$Y479,$G479)+IFERROR(IF(AND($V479<=AB$1,$W479>=AB$1),INDEX(Reliability!G$23:G$50,MATCH($T479,Reliability!$C$23:$C$50,0)),0),0)*$H479*$X479*$Y479),$D479)*$R479","v":0},{"$f":"MIN((IFERROR(IF(AND($V479<=AC$1,$W479>=AC$1),INDEX(Reliability!H$23:H$50,MATCH($S479,Reliability!$C$23:$C$50,0)),0),0)*IF($T479=\"n/a\",$D479*$Y479,$G479)+IFERROR(IF(AND($V479<=AC$1,$W479>=AC$1),INDEX(Reliability!H$23:H$50,MATCH($T479,Reliability!$C$23:$C$50,0)),0),0)*$H479*$X479*$Y479),$D479)*$R479","v":0},{"$f":"MIN((IFERROR(IF(AND($V479<=AD$1,$W479>=AD$1),INDEX(Reliability!I$23:I$50,MATCH($S479,Reliability!$C$23:$C$50,0)),0),0)*IF($T479=\"n/a\",$D479*$Y479,$G479)+IFERROR(IF(AND($V479<=AD$1,$W479>=AD$1),INDEX(Reliability!I$23:I$50,MATCH($T479,Reliability!$C$23:$C$50,0)),0),0)*$H479*$X479*$Y479),$D479)*$R479","v":0},{"$f":"MIN((IFERROR(IF(AND($V479<=AE$1,$W479>=AE$1),INDEX(Reliability!J$23:J$50,MATCH($S479,Reliability!$C$23:$C$50,0)),0),0)*IF($T479=\"n/a\",$D479*$Y479,$G479)+IFERROR(IF(AND($V479<=AE$1,$W479>=AE$1),INDEX(Reliability!J$23:J$50,MATCH($T479,Reliability!$C$23:$C$50,0)),0),0)*$H479*$X479*$Y479),$D479)*$R479","v":0},{"$f":"MIN((IFERROR(IF(AND($V479<=AF$1,$W479>=AF$1),INDEX(Reliability!K$23:K$50,MATCH($S479,Reliability!$C$23:$C$50,0)),0),0)*IF($T479=\"n/a\",$D479*$Y479,$G479)+IFERROR(IF(AND($V479<=AF$1,$W479>=AF$1),INDEX(Reliability!K$23:K$50,MATCH($T479,Reliability!$C$23:$C$50,0)),0),0)*$H479*$X479*$Y479),$D479)*$R479","v":0},{"$f":"MIN((IFERROR(IF(AND($V479<=AG$1,$W479>=AG$1),INDEX(Reliability!L$23:L$50,MATCH($S479,Reliability!$C$23:$C$50,0)),0),0)*IF($T479=\"n/a\",$D479*$Y479,$G479)+IFERROR(IF(AND($V479<=AG$1,$W479>=AG$1),INDEX(Reliability!L$23:L$50,MATCH($T479,Reliability!$C$23:$C$50,0)),0),0)*$H479*$X479*$Y479),$D479)*$R479","v":0},{"$f":"MIN((IFERROR(IF(AND($V479<=AH$1,$W479>=AH$1),INDEX(Reliability!M$23:M$50,MATCH($S479,Reliability!$C$23:$C$50,0)),0),0)*IF($T479=\"n/a\",$D479*$Y479,$G479)+IFERROR(IF(AND($V479<=AH$1,$W479>=AH$1),INDEX(Reliability!M$23:M$50,MATCH($T479,Reliability!$C$23:$C$50,0)),0),0)*$H479*$X479*$Y479),$D479)*$R479","v":0},{"$f":"MIN((IFERROR(IF(AND($V479<=AI$1,$W479>=AI$1),INDEX(Reliability!N$23:N$50,MATCH($S479,Reliability!$C$23:$C$50,0)),0),0)*IF($T479=\"n/a\",$D479*$Y479,$G479)+IFERROR(IF(AND($V479<=AI$1,$W479>=AI$1),INDEX(Reliability!N$23:N$50,MATCH($T479,Reliability!$C$23:$C$50,0)),0),0)*$H479*$X479*$Y479),$D479)*$R479","v":0},{"$f":"MIN((IFERROR(IF(AND($V479<=AJ$1,$W479>=AJ$1),INDEX(Reliability!O$23:O$50,MATCH($S479,Reliability!$C$23:$C$50,0)),0),0)*IF($T479=\"n/a\",$D479*$Y479,$G479)+IFERROR(IF(AND($V479<=AJ$1,$W479>=AJ$1),INDEX(Reliability!O$23:O$50,MATCH($T479,Reliability!$C$23:$C$50,0)),0),0)*$H479*$X479*$Y479),$D479)*$R479","v":0},{"$f":"MIN((IFERROR(IF(AND($V479<=AK$1,$W479>=AK$1),INDEX(Reliability!P$23:P$50,MATCH($S479,Reliability!$C$23:$C$50,0)),0),0)*IF($T479=\"n/a\",$D479*$Y479,$G479)+IFERROR(IF(AND($V479<=AK$1,$W479>=AK$1),INDEX(Reliability!P$23:P$50,MATCH($T479,Reliability!$C$23:$C$50,0)),0),0)*$H479*$X479*$Y479),$D479)*$R479","v":0}]
[null,{"$f":"unique_contracts!B481","v":0},{"$f":"unique_contracts!D481","v":0},{"$f":"unique_contracts!J481","v":0},{"$f":"unique_contracts!M481","v":0},{"$f":"unique_contracts!N481","v":0},{"$f":"unique_contracts!P481","v":0},{"$f":"unique_contracts!R481","v":0},{"$f":"unique_contracts!V481","v":0},{"$f":"unique_contracts!AB481","v":0},{"$f":"unique_contracts!AM481","v":0},{"$f":"unique_contracts!AN481","v":0},{"$f":"unique_contracts!AO481","v":0},{"$f":"unique_contracts!AP481","v":0},{"$f":"unique_contracts!AQ481","v":0},{"$f":"unique_contracts!AR481","v":0},{"$f":"unique_contracts!BP481","v":0},0,{"$f":"IFERROR(IF(AND(I480>0,E480=\"NotHybrid\"),_xlfn.CONCAT(MAX(MIN(ROUNDDOWN(I480/D480,0),8),4),INDEX(resources!$G:$G,MATCH(B480,resources!$A:$A,0))),INDEX(resources!$G:$G,MATCH(B480,resources!$A:$A,0))),\"n/a\")","v":"n/a"},"n/a","n/a",0,0,1,1,{"$f":"MIN((IFERROR(IF(AND($V480<=Z$1,$W480>=Z$1),INDEX(Reliability!E$23:E$50,MATCH($S480,Reliability!$C$23:$C$50,0)),0),0)*IF($T480=\"n/a\",$D480*$Y480,$G480)+IFERROR(IF(AND($V480<=Z$1,$W480>=Z$1),INDEX(Reliability!E$23:E$50,MATCH($T480,Reliability!$C$23:$C$50,0)),0),0)*$H480*$X480*$Y480),$D480)*$R480","v":0},{"$f":"MIN((IFERROR(IF(AND($V480<=AA$1,$W480>=AA$1),INDEX(Reliability!F$23:F$50,MATCH($S480,Reliability!$C$23:$C$50,0)),0),0)*IF($T480=\"n/a\",$D480*$Y480,$G480)+IFERROR(IF(AND($V480<=AA$1,$W480>=AA$1),INDEX(Reliability!F$23:F$50,MATCH($T480,Reliability!$C$23:$C$50,0)),0),0)*$H480*$X480*$Y480),$D480)*$R480","v":0},{"$f":"MIN((IFERROR(IF(AND($V480<=AB$1,$W480>=AB$1),INDEX(Reliability!G$23:G$50,MATCH($S480,Reliability!$C$23:$C$50,0)),0),0)*IF($T480=\"n/a\",$D480*$Y480,$G480)+IFERROR(IF(AND($V480<=AB$1,$W480>=AB$1),INDEX(Reliability!G$23:G$50,MATCH($T480,Reliability!$C$23:$C$50,0)),0),0)*$H480*$X480*$Y480),$D480)*$R480","v":0},{"$f":"MIN((IFERROR(IF(AND($V480<=AC$1,$W480>=AC$1),INDEX(Reliability!H$23:H$50,MATCH($S480,Reliability!$C$23:$C$50,0)),0),0)*IF($T480=\"n/a\",$D480*$Y480,$G480)+IFERROR(IF(AND($V480<=AC$1,$W480>=AC$1),INDEX(Reliability!H$23:H$50,MATCH($T480,Reliability!$C$23:$C$50,0)),0),0)*$H480*$X480*$Y480),$D480)*$R480","v":0},{"$f":"MIN((IFERROR(IF(AND($V480<=AD$1,$W480>=AD$1),INDEX(Reliability!I$23:I$50,MATCH($S480,Reliability!$C$23:$C$50,0)),0),0)*IF($T480=\"n/a\",$D480*$Y480,$G480)+IFERROR(IF(AND($V480<=AD$1,$W480>=AD$1),INDEX(Reliability!I$23:I$50,MATCH($T480,Reliability!$C$23:$C$50,0)),0),0)*$H480*$X480*$Y480),$D480)*$R480","v":0},{"$f":"MIN((IFERROR(IF(AND($V480<=AE$1,$W480>=AE$1),INDEX(Reliability!J$23:J$50,MATCH($S480,Reliability!$C$23:$C$50,0)),0),0)*IF($T480=\"n/a\",$D480*$Y480,$G480)+IFERROR(IF(AND($V480<=AE$1,$W480>=AE$1),INDEX(Reliability!J$23:J$50,MATCH($T480,Reliability!$C$23:$C$50,0)),0),0)*$H480*$X480*$Y480),$D480)*$R480","v":0},{"$f":"MIN((IFERROR(IF(AND($V480<=AF$1,$W480>=AF$1),INDEX(Reliability!K$23:K$50,MATCH($S480,Reliability!$C$23:$C$50,0)),0),0)*IF($T480=\"n/a\",$D480*$Y480,$G480)+IFERROR(IF(AND($V480<=AF$1,$W480>=AF$1),INDEX(Reliability!K$23:K$50,MATCH($T480,Reliability!$C$23:$C$50,0)),0),0)*$H480*$X480*$Y480),$D480)*$R480","v":0},{"$f":"MIN((IFERROR(IF(AND($V480<=AG$1,$W480>=AG$1),INDEX(Reliability!L$23:L$50,MATCH($S480,Reliability!$C$23:$C$50,0)),0),0)*IF($T480=\"n/a\",$D480*$Y480,$G480)+IFERROR(IF(AND($V480<=AG$1,$W480>=AG$1),INDEX(Reliability!L$23:L$50,MATCH($T480,Reliability!$C$23:$C$50,0)),0),0)*$H480*$X480*$Y480),$D480)*$R480","v":0},{"$f":"MIN((IFERROR(IF(AND($V480<=AH$1,$W480>=AH$1),INDEX(Reliability!M$23:M$50,MATCH($S480,Reliability!$C$23:$C$50,0)),0),0)*IF($T480=\"n/a\",$D480*$Y480,$G480)+IFERROR(IF(AND($V480<=AH$1,$W480>=AH$1),INDEX(Reliability!M$23:M$50,MATCH($T480,Reliability!$C$23:$C$50,0)),0),0)*$H480*$X480*$Y480),$D480)*$R480","v":0},{"$f":"MIN((IFERROR(IF(AND($V480<=AI$1,$W480>=AI$1),INDEX(Reliability!N$23:N$50,MATCH($S480,Reliability!$C$23:$C$50,0)),0),0)*IF($T480=\"n/a\",$D480*$Y480,$G480)+IFERROR(IF(AND($V480<=AI$1,$W480>=AI$1),INDEX(Reliability!N$23:N$50,MATCH($T480,Reliability!$C$23:$C$50,0)),0),0)*$H480*$X480*$Y480),$D480)*$R480","v":0},{"$f":"MIN((IFERROR(IF(AND($V480<=AJ$1,$W480>=AJ$1),INDEX(Reliability!O$23:O$50,MATCH($S480,Reliability!$C$23:$C$50,0)),0),0)*IF($T480=\"n/a\",$D480*$Y480,$G480)+IFERROR(IF(AND($V480<=AJ$1,$W480>=AJ$1),INDEX(Reliability!O$23:O$50,MATCH($T480,Reliability!$C$23:$C$50,0)),0),0)*$H480*$X480*$Y480),$D480)*$R480","v":0},{"$f":"MIN((IFERROR(IF(AND($V480<=AK$1,$W480>=AK$1),INDEX(Reliability!P$23:P$50,MATCH($S480,Reliability!$C$23:$C$50,0)),0),0)*IF($T480=\"n/a\",$D480*$Y480,$G480)+IFERROR(IF(AND($V480<=AK$1,$W480>=AK$1),INDEX(Reliability!P$23:P$50,MATCH($T480,Reliability!$C$23:$C$50,0)),0),0)*$H480*$X480*$Y480),$D480)*$R480","v":0}]
[null,{"$f":"unique_contracts!B482","v":0},{"$f":"unique_contracts!D482","v":0},{"$f":"unique_contracts!J482","v":0},{"$f":"unique_contracts!M482","v":0},{"$f":"unique_contracts!N482","v":0},{"$f":"unique_contracts!P482","v":0},{"$f":"unique_contracts!R482","v":0},{"$f":"unique_contracts!V482","v":0},{"$f":"unique_contracts!AB482","v":0},{"$f":"unique_contracts!AM482","v":0},{"$f":"unique_contracts!AN482","v":0},{"$f":"unique_contracts!AO482","v":0},{"$f":"unique_contracts!AP482","v":0},{"$f":"unique_contracts!AQ482","v":0},{"$f":"unique_contracts!AR482","v":0},{"$f":"unique_contracts!BP482","v":0},0,{"$f":"IFERROR(IF(AND(I481>0,E481=\"NotHybrid\"),_xlfn.CONCAT(MAX(MIN(ROUNDDOWN(I481/D481,0),8),4),INDEX(resources!$G:$G,MATCH(B481,resources!$A:$A,0))),INDEX(resources!$G:$G,MATCH(B481,resources!$A:$A,0))),\"n/a\")","v":"n/a"},"n/a","n/a",0,0,1,1,{"$f":"MIN((IFERROR(IF(AND($V481<=Z$1,$W481>=Z$1),INDEX(Reliability!E$23:E$50,MATCH($S481,Reliability!$C$23:$C$50,0)),0),0)*IF($T481=\"n/a\",$D481*$Y481,$G481)+IFERROR(IF(AND($V481<=Z$1,$W481>=Z$1),INDEX(Reliability!E$23:E$50,MATCH($T481,Reliability!$C$23:$C$50,0)),0),0)*$H481*$X481*$Y481),$D481)*$R481","v":0},{"$f":"MIN((IFERROR(IF(AND($V481<=AA$1,$W481>=AA$1),INDEX(Reliability!F$23:F$50,MATCH($S481,Reliability!$C$23:$C$50,0)),0),0)*IF($T481=\"n/a\",$D481*$Y481,$G481)+IFERROR(IF(AND($V481<=AA$1,$W481>=AA$1),INDEX(Reliability!F$23:F$50,MATCH($T481,Reliability!$C$23:$C$50,0)),0),0)*$H481*$X481*$Y481),$D481)*$R481","v":0},{"$f":"MIN((IFERROR(IF(AND($V481<=AB$1,$W481>=AB$1),INDEX(Reliability!G$23:G$50,MATCH($S481,Reliability!$C$23:$C$50,0)),0),0)*IF($T481=\"n/a\",$D481*$Y481,$G481)+IFERROR(IF(AND($V481<=AB$1,$W481>=AB$1),INDEX(Reliability!G$23:G$50,MATCH($T481,Reliability!$C$23:$C$50,0)),0),0)*$H481*$X481*$Y481),$D481)*$R481","v":0},{"$f":"MIN((IFERROR(IF(AND($V481<=AC$1,$W481>=AC$1),INDEX(Reliability!H$23:H$50,MATCH($S481,Reliability!$C$23:$C$50,0)),0),0)*IF($T481=\"n/a\",$D481*$Y481,$G481)+IFERROR(IF(AND($V481<=AC$1,$W481>=AC$1),INDEX(Reliability!H$23:H$50,MATCH($T481,Reliability!$C$23:$C$50,0)),0),0)*$H481*$X481*$Y481),$D481)*$R481","v":0},{"$f":"MIN((IFERROR(IF(AND($V481<=AD$1,$W481>=AD$1),INDEX(Reliability!I$23:I$50,MATCH($S481,Reliability!$C$23:$C$50,0)),0),0)*IF($T481=\"n/a\",$D481*$Y481,$G481)+IFERROR(IF(AND($V481<=AD$1,$W481>=AD$1),INDEX(Reliability!I$23:I$50,MATCH($T481,Reliability!$C$23:$C$50,0)),0),0)*$H481*$X481*$Y481),$D481)*$R481","v":0},{"$f":"MIN((IFERROR(IF(AND($V481<=AE$1,$W481>=AE$1),INDEX(Reliability!J$23:J$50,MATCH($S481,Reliability!$C$23:$C$50,0)),0),0)*IF($T481=\"n/a\",$D481*$Y481,$G481)+IFERROR(IF(AND($V481<=AE$1,$W481>=AE$1),INDEX(Reliability!J$23:J$50,MATCH($T481,Reliability!$C$23:$C$50,0)),0),0)*$H481*$X481*$Y481),$D481)*$R481","v":0},{"$f":"MIN((IFERROR(IF(AND($V481<=AF$1,$W481>=AF$1),INDEX(Reliability!K$23:K$50,MATCH($S481,Reliability!$C$23:$C$50,0)),0),0)*IF($T481=\"n/a\",$D481*$Y481,$G481)+IFERROR(IF(AND($V481<=AF$1,$W481>=AF$1),INDEX(Reliability!K$23:K$50,MATCH($T481,Reliability!$C$23:$C$50,0)),0),0)*$H481*$X481*$Y481),$D481)*$R481","v":0},{"$f":"MIN((IFERROR(IF(AND($V481<=AG$1,$W481>=AG$1),INDEX(Reliability!L$23:L$50,MATCH($S481,Reliability!$C$23:$C$50,0)),0),0)*IF($T481=\"n/a\",$D481*$Y481,$G481)+IFERROR(IF(AND($V481<=AG$1,$W481>=AG$1),INDEX(Reliability!L$23:L$50,MATCH($T481,Reliability!$C$23:$C$50,0)),0),0)*$H481*$X481*$Y481),$D481)*$R481","v":0},{"$f":"MIN((IFERROR(IF(AND($V481<=AH$1,$W481>=AH$1),INDEX(Reliability!M$23:M$50,MATCH($S481,Reliability!$C$23:$C$50,0)),0),0)*IF($T481=\"n/a\",$D481*$Y481,$G481)+IFERROR(IF(AND($V481<=AH$1,$W481>=AH$1),INDEX(Reliability!M$23:M$50,MATCH($T481,Reliability!$C$23:$C$50,0)),0),0)*$H481*$X481*$Y481),$D481)*$R481","v":0},{"$f":"MIN((IFERROR(IF(AND($V481<=AI$1,$W481>=AI$1),INDEX(Reliability!N$23:N$50,MATCH($S481,Reliability!$C$23:$C$50,0)),0),0)*IF($T481=\"n/a\",$D481*$Y481,$G481)+IFERROR(IF(AND($V481<=AI$1,$W481>=AI$1),INDEX(Reliability!N$23:N$50,MATCH($T481,Reliability!$C$23:$C$50,0)),0),0)*$H481*$X481*$Y481),$D481)*$R481","v":0},{"$f":"MIN((IFERROR(IF(AND($V481<=AJ$1,$W481>=AJ$1),INDEX(Reliability!O$23:O$50,MATCH($S481,Reliability!$C$23:$C$50,0)),0),0)*IF($T481=\"n/a\",$D481*$Y481,$G481)+IFERROR(IF(AND($V481<=AJ$1,$W481>=AJ$1),INDEX(Reliability!O$23:O$50,MATCH($T481,Reliability!$C$23:$C$50,0)),0),0)*$H481*$X481*$Y481),$D481)*$R481","v":0},{"$f":"MIN((IFERROR(IF(AND($V481<=AK$1,$W481>=AK$1),INDEX(Reliability!P$23:P$50,MATCH($S481,Reliability!$C$23:$C$50,0)),0),0)*IF($T481=\"n/a\",$D481*$Y481,$G481)+IFERROR(IF(AND($V481<=AK$1,$W481>=AK$1),INDEX(Reliability!P$23:P$50,MATCH($T481,Reliability!$C$23:$C$50,0)),0),0)*$H481*$X481*$Y481),$D481)*$R481","v":0}]
[null,{"$f":"unique_contracts!B483","v":0},{"$f":"unique_contracts!D483","v":0},{"$f":"unique_contracts!J483","v":0},{"$f":"unique_contracts!M483","v":0},{"$f":"unique_contracts!N483","v":0},{"$f":"unique_contracts!P483","v":0},{"$f":"unique_contracts!R483","v":0},{"$f":"unique_contracts!V483","v":0},{"$f":"unique_contracts!AB483","v":0},{"$f":"unique_contracts!AM483","v":0},{"$f":"unique_contracts!AN483","v":0},{"$f":"unique_contracts!AO483","v":0},{"$f":"unique_contracts!AP483","v":0},{"$f":"unique_contracts!AQ483","v":0},{"$f":"unique_contracts!AR483","v":0},{"$f":"unique_contracts!BP483","v":0},0,{"$f":"IFERROR(IF(AND(I482>0,E482=\"NotHybrid\"),_xlfn.CONCAT(MAX(MIN(ROUNDDOWN(I482/D482,0),8),4),INDEX(resources!$G:$G,MATCH(B482,resources!$A:$A,0))),INDEX(resources!$G:$G,MATCH(B482,resources!$A:$A,0))),\"n/a\")","v":"n/a"},"n/a","n/a",0,0,1,1,{"$f":"MIN((IFERROR(IF(AND($V482<=Z$1,$W482>=Z$1),INDEX(Reliability!E$23:E$50,MATCH($S482,Reliability!$C$23:$C$50,0)),0),0)*IF($T482=\"n/a\",$D482*$Y482,$G482)+IFERROR(IF(AND($V482<=Z$1,$W482>=Z$1),INDEX(Reliability!E$23:E$50,MATCH($T482,Reliability!$C$23:$C$50,0)),0),0)*$H482*$X482*$Y482),$D482)*$R482","v":0},{"$f":"MIN((IFERROR(IF(AND($V482<=AA$1,$W482>=AA$1),INDEX(Reliability!F$23:F$50,MATCH($S482,Reliability!$C$23:$C$50,0)),0),0)*IF($T482=\"n/a\",$D482*$Y482,$G482)+IFERROR(IF(AND($V482<=AA$1,$W482>=AA$1),INDEX(Reliability!F$23:F$50,MATCH($T482,Reliability!$C$23:$C$50,0)),0),0)*$H482*$X482*$Y482),$D482)*$R482","v":0},{"$f":"MIN((IFERROR(IF(AND($V482<=AB$1,$W482>=AB$1),INDEX(Reliability!G$23:G$50,MATCH($S482,Reliability!$C$23:$C$50,0)),0),0)*IF($T482=\"n/a\",$D482*$Y482,$G482)+IFERROR(IF(AND($V482<=AB$1,$W482>=AB$1),INDEX(Reliability!G$23:G$50,MATCH($T482,Reliability!$C$23:$C$50,0)),0),0)*$H482*$X482*$Y482),$D482)*$R482","v":0},{"$f":"MIN((IFERROR(IF(AND($V482<=AC$1,$W482>=AC$1),INDEX(Reliability!H$23:H$50,MATCH($S482,Reliability!$C$23:$C$50,0)),0),0)*IF($T482=\"n/a\",$D482*$Y482,$G482)+IFERROR(IF(AND($V482<=AC$1,$W482>=AC$1),INDEX(Reliability!H$23:H$50,MATCH($T482,Reliability!$C$23:$C$50,0)),0),0)*$H482*$X482*$Y482),$D482)*$R482","v":0},{"$f":"MIN((IFERROR(IF(AND($V482<=AD$1,$W482>=AD$1),INDEX(Reliability!I$23:I$50,MATCH($S482,Reliability!$C$23:$C$50,0)),0),0)*IF($T482=\"n/a\",$D482*$Y482,$G482)+IFERROR(IF(AND($V482<=AD$1,$W482>=AD$1),INDEX(Reliability!I$23:I$50,MATCH($T482,Reliability!$C$23:$C$50,0)),0),0)*$H482*$X482*$Y482),$D482)*$R482","v":0},{"$f":"MIN((IFERROR(IF(AND($V482<=AE$1,$W482>=AE$1),INDEX(Reliability!J$23:J$50,MATCH($S482,Reliability!$C$23:$C$50,0)),0),0)*IF($T482=\"n/a\",$D482*$Y482,$G482)+IFERROR(IF(AND($V482<=AE$1,$W482>=AE$1),INDEX(Reliability!J$23:J$50,MATCH($T482,Reliability!$C$23:$C$50,0)),0),0)*$H482*$X482*$Y482),$D482)*$R482","v":0},{"$f":"MIN((IFERROR(IF(AND($V482<=AF$1,$W482>=AF$1),INDEX(Reliability!K$23:K$50,MATCH($S482,Reliability!$C$23:$C$50,0)),0),0)*IF($T482=\"n/a\",$D482*$Y482,$G482)+IFERROR(IF(AND($V482<=AF$1,$W482>=AF$1),INDEX(Reliability!K$23:K$50,MATCH($T482,Reliability!$C$23:$C$50,0)),0),0)*$H482*$X482*$Y482),$D482)*$R482","v":0},{"$f":"MIN((IFERROR(IF(AND($V482<=AG$1,$W482>=AG$1),INDEX(Reliability!L$23:L$50,MATCH($S482,Reliability!$C$23:$C$50,0)),0),0)*IF($T482=\"n/a\",$D482*$Y482,$G482)+IFERROR(IF(AND($V482<=AG$1,$W482>=AG$1),INDEX(Reliability!L$23:L$50,MATCH($T482,Reliability!$C$23:$C$50,0)),0),0)*$H482*$X482*$Y482),$D482)*$R482","v":0},{"$f":"MIN((IFERROR(IF(AND($V482<=AH$1,$W482>=AH$1),INDEX(Reliability!M$23:M$50,MATCH($S482,Reliability!$C$23:$C$50,0)),0),0)*IF($T482=\"n/a\",$D482*$Y482,$G482)+IFERROR(IF(AND($V482<=AH$1,$W482>=AH$1),INDEX(Reliability!M$23:M$50,MATCH($T482,Reliability!$C$23:$C$50,0)),0),0)*$H482*$X482*$Y482),$D482)*$R482","v":0},{"$f":"MIN((IFERROR(IF(AND($V482<=AI$1,$W482>=AI$1),INDEX(Reliability!N$23:N$50,MATCH($S482,Reliability!$C$23:$C$50,0)),0),0)*IF($T482=\"n/a\",$D482*$Y482,$G482)+IFERROR(IF(AND($V482<=AI$1,$W482>=AI$1),INDEX(Reliability!N$23:N$50,MATCH($T482,Reliability!$C$23:$C$50,0)),0),0)*$H482*$X482*$Y482),$D482)*$R482","v":0},{"$f":"MIN((IFERROR(IF(AND($V482<=AJ$1,$W482>=AJ$1),INDEX(Reliability!O$23:O$50,MATCH($S482,Reliability!$C$23:$C$50,0)),0),0)*IF($T482=\"n/a\",$D482*$Y482,$G482)+IFERROR(IF(AND($V482<=AJ$1,$W482>=AJ$1),INDEX(Reliability!O$23:O$50,MATCH($T482,Reliability!$C$23:$C$50,0)),0),0)*$H482*$X482*$Y482),$D482)*$R482","v":0},{"$f":"MIN((IFERROR(IF(AND($V482<=AK$1,$W482>=AK$1),INDEX(Reliability!P$23:P$50,MATCH($S482,Reliability!$C$23:$C$50,0)),0),0)*IF($T482=\"n/a\",$D482*$Y482,$G482)+IFERROR(IF(AND($V482<=AK$1,$W482>=AK$1),INDEX(Reliability!P$23:P$50,MATCH($T482,Reliability!$C$23:$C$50,0)),0),0)*$H482*$X482*$Y482),$D482)*$R482","v":0}]
[null,{"$f":"unique_contracts!B484","v":0},{"$f":"unique_contracts!D484","v":0},{"$f":"unique_contracts!J484","v":0},{"$f":"unique_contracts!M484","v":0},{"$f":"unique_contracts!N484","v":0},{"$f":"unique_contracts!P484","v":0},{"$f":"unique_contracts!R484","v":0},{"$f":"unique_contracts!V484","v":0},{"$f":"unique_contracts!AB484","v":0},{"$f":"unique_contracts!AM484","v":0},{"$f":"unique_contracts!AN484","v":0},{"$f":"unique_contracts!AO484","v":0},{"$f":"unique_contracts!AP484","v":0},{"$f":"unique_contracts!AQ484","v":0},{"$f":"unique_contracts!AR484","v":0},{"$f":"unique_contracts!BP484","v":0},0,{"$f":"IFERROR(IF(AND(I483>0,E483=\"NotHybrid\"),_xlfn.CONCAT(MAX(MIN(ROUNDDOWN(I483/D483,0),8),4),INDEX(resources!$G:$G,MATCH(B483,resources!$A:$A,0))),INDEX(resources!$G:$G,MATCH(B483,resources!$A:$A,0))),\"n/a\")","v":"n/a"},"n/a","n/a",0,0,1,1,{"$f":"MIN((IFERROR(IF(AND($V483<=Z$1,$W483>=Z$1),INDEX(Reliability!E$23:E$50,MATCH($S483,Reliability!$C$23:$C$50,0)),0),0)*IF($T483=\"n/a\",$D483*$Y483,$G483)+IFERROR(IF(AND($V483<=Z$1,$W483>=Z$1),INDEX(Reliability!E$23:E$50,MATCH($T483,Reliability!$C$23:$C$50,0)),0),0)*$H483*$X483*$Y483),$D483)*$R483","v":0},{"$f":"MIN((IFERROR(IF(AND($V483<=AA$1,$W483>=AA$1),INDEX(Reliability!F$23:F$50,MATCH($S483,Reliability!$C$23:$C$50,0)),0),0)*IF($T483=\"n/a\",$D483*$Y483,$G483)+IFERROR(IF(AND($V483<=AA$1,$W483>=AA$1),INDEX(Reliability!F$23:F$50,MATCH($T483,Reliability!$C$23:$C$50,0)),0),0)*$H483*$X483*$Y483),$D483)*$R483","v":0},{"$f":"MIN((IFERROR(IF(AND($V483<=AB$1,$W483>=AB$1),INDEX(Reliability!G$23:G$50,MATCH($S483,Reliability!$C$23:$C$50,0)),0),0)*IF($T483=\"n/a\",$D483*$Y483,$G483)+IFERROR(IF(AND($V483<=AB$1,$W483>=AB$1),INDEX(Reliability!G$23:G$50,MATCH($T483,Reliability!$C$23:$C$50,0)),0),0)*$H483*$X483*$Y483),$D483)*$R483","v":0},{"$f":"MIN((IFERROR(IF(AND($V483<=AC$1,$W483>=AC$1),INDEX(Reliability!H$23:H$50,MATCH($S483,Reliability!$C$23:$C$50,0)),0),0)*IF($T483=\"n/a\",$D483*$Y483,$G483)+IFERROR(IF(AND($V483<=AC$1,$W483>=AC$1),INDEX(Reliability!H$23:H$50,MATCH($T483,Reliability!$C$23:$C$50,0)),0),0)*$H483*$X483*$Y483),$D483)*$R483","v":0},{"$f":"MIN((IFERROR(IF(AND($V483<=AD$1,$W483>=AD$1),INDEX(Reliability!I$23:I$50,MATCH($S483,Reliability!$C$23:$C$50,0)),0),0)*IF($T483=\"n/a\",$D483*$Y483,$G483)+IFERROR(IF(AND($V483<=AD$1,$W483>=AD$1),INDEX(Reliability!I$23:I$50,MATCH($T483,Reliability!$C$23:$C$50,0)),0),0)*$H483*$X483*$Y483),$D483)*$R483","v":0},{"$f":"MIN((IFERROR(IF(AND($V483<=AE$1,$W483>=AE$1),INDEX(Reliability!J$23:J$50,MATCH($S483,Reliability!$C$23:$C$50,0)),0),0)*IF($T483=\"n/a\",$D483*$Y483,$G483)+IFERROR(IF(AND($V483<=AE$1,$W483>=AE$1),INDEX(Reliability!J$23:J$50,MATCH($T483,Reliability!$C$23:$C$50,0)),0),0)*$H483*$X483*$Y483),$D483)*$R483","v":0},{"$f":"MIN((IFERROR(IF(AND($V483<=AF$1,$W483>=AF$1),INDEX(Reliability!K$23:K$50,MATCH($S483,Reliability!$C$23:$C$50,0)),0),0)*IF($T483=\"n/a\",$D483*$Y483,$G483)+IFERROR(IF(AND($V483<=AF$1,$W483>=AF$1),INDEX(Reliability!K$23:K$50,MATCH($T483,Reliability!$C$23:$C$50,0)),0),0)*$H483*$X483*$Y483),$D483)*$R483","v":0},{"$f":"MIN((IFERROR(IF(AND($V483<=AG$1,$W483>=AG$1),INDEX(Reliability!L$23:L$50,MATCH($S483,Reliability!$C$23:$C$50,0)),0),0)*IF($T483=\"n/a\",$D483*$Y483,$G483)+IFERROR(IF(AND($V483<=AG$1,$W483>=AG$1),INDEX(Reliability!L$23:L$50,MATCH($T483,Reliability!$C$23:$C$50,0)),0),0)*$H483*$X483*$Y483),$D483)*$R483","v":0},{"$f":"MIN((IFERROR(IF(AND($V483<=AH$1,$W483>=AH$1),INDEX(Reliability!M$23:M$50,MATCH($S483,Reliability!$C$23:$C$50,0)),0),0)*IF($T483=\"n/a\",$D483*$Y483,$G483)+IFERROR(IF(AND($V483<=AH$1,$W483>=AH$1),INDEX(Reliability!M$23:M$50,MATCH($T483,Reliability!$C$23:$C$50,0)),0),0)*$H483*$X483*$Y483),$D483)*$R483","v":0},{"$f":"MIN((IFERROR(IF(AND($V483<=AI$1,$W483>=AI$1),INDEX(Reliability!N$23:N$50,MATCH($S483,Reliability!$C$23:$C$50,0)),0),0)*IF($T483=\"n/a\",$D483*$Y483,$G483)+IFERROR(IF(AND($V483<=AI$1,$W483>=AI$1),INDEX(Reliability!N$23:N$50,MATCH($T483,Reliability!$C$23:$C$50,0)),0),0)*$H483*$X483*$Y483),$D483)*$R483","v":0},{"$f":"MIN((IFERROR(IF(AND($V483<=AJ$1,$W483>=AJ$1),INDEX(Reliability!O$23:O$50,MATCH($S483,Reliability!$C$23:$C$50,0)),0),0)*IF($T483=\"n/a\",$D483*$Y483,$G483)+IFERROR(IF(AND($V483<=AJ$1,$W483>=AJ$1),INDEX(Reliability!O$23:O$50,MATCH($T483,Reliability!$C$23:$C$50,0)),0),0)*$H483*$X483*$Y483),$D483)*$R483","v":0},{"$f":"MIN((IFERROR(IF(AND($V483<=AK$1,$W483>=AK$1),INDEX(Reliability!P$23:P$50,MATCH($S483,Reliability!$C$23:$C$50,0)),0),0)*IF($T483=\"n/a\",$D483*$Y483,$G483)+IFERROR(IF(AND($V483<=AK$1,$W483>=AK$1),INDEX(Reliability!P$23:P$50,MATCH($T483,Reliability!$C$23:$C$50,0)),0),0)*$H483*$X483*$Y483),$D483)*$R483","v":0}]
[null,{"$f":"unique_contracts!B485","v":0},{"$f":"unique_contracts!D485","v":0},{"$f":"unique_contracts!J485","v":0},{"$f":"unique_contracts!M485","v":0},{"$f":"unique_contracts!N485","v":0},{"$f":"unique_contracts!P485","v":0},{"$f":"unique_contracts!R485","v":0},{"$f":"unique_contracts!V485","v":0},{"$f":"unique_contracts!AB485","v":0},{"$f":"unique_contracts!AM485","v":0},{"$f":"unique_contracts!AN485","v":0},{"$f":"unique_contracts!AO485","v":0},{"$f":"unique_contracts!AP485","v":0},{"$f":"unique_contracts!AQ485","v":0},{"$f":"unique_contracts!AR485","v":0},{"$f":"unique_contracts!BP485","v":0},0,{"$f":"IFERROR(IF(AND(I484>0,E484=\"NotHybrid\"),_xlfn.CONCAT(MAX(MIN(ROUNDDOWN(I484/D484,0),8),4),INDEX(resources!$G:$G,MATCH(B484,resources!$A:$A,0))),INDEX(resources!$G:$G,MATCH(B484,resources!$A:$A,0))),\"n/a\")","v":"n/a"},"n/a","n/a",0,0,1,1,{"$f":"MIN((IFERROR(IF(AND($V484<=Z$1,$W484>=Z$1),INDEX(Reliability!E$23:E$50,MATCH($S484,Reliability!$C$23:$C$50,0)),0),0)*IF($T484=\"n/a\",$D484*$Y484,$G484)+IFERROR(IF(AND($V484<=Z$1,$W484>=Z$1),INDEX(Reliability!E$23:E$50,MATCH($T484,Reliability!$C$23:$C$50,0)),0),0)*$H484*$X484*$Y484),$D484)*$R484","v":0},{"$f":"MIN((IFERROR(IF(AND($V484<=AA$1,$W484>=AA$1),INDEX(Reliability!F$23:F$50,MATCH($S484,Reliability!$C$23:$C$50,0)),0),0)*IF($T484=\"n/a\",$D484*$Y484,$G484)+IFERROR(IF(AND($V484<=AA$1,$W484>=AA$1),INDEX(Reliability!F$23:F$50,MATCH($T484,Reliability!$C$23:$C$50,0)),0),0)*$H484*$X484*$Y484),$D484)*$R484","v":0},{"$f":"MIN((IFERROR(IF(AND($V484<=AB$1,$W484>=AB$1),INDEX(Reliability!G$23:G$50,MATCH($S484,Reliability!$C$23:$C$50,0)),0),0)*IF($T484=\"n/a\",$D484*$Y484,$G484)+IFERROR(IF(AND($V484<=AB$1,$W484>=AB$1),INDEX(Reliability!G$23:G$50,MATCH($T484,Reliability!$C$23:$C$50,0)),0),0)*$H484*$X484*$Y484),$D484)*$R484","v":0},{"$f":"MIN((IFERROR(IF(AND($V484<=AC$1,$W484>=AC$1),INDEX(Reliability!H$23:H$50,MATCH($S484,Reliability!$C$23:$C$50,0)),0),0)*IF($T484=\"n/a\",$D484*$Y484,$G484)+IFERROR(IF(AND($V484<=AC$1,$W484>=AC$1),INDEX(Reliability!H$23:H$50,MATCH($T484,Reliability!$C$23:$C$50,0)),0),0)*$H484*$X484*$Y484),$D484)*$R484","v":0},{"$f":"MIN((IFERROR(IF(AND($V484<=AD$1,$W484>=AD$1),INDEX(Reliability!I$23:I$50,MATCH($S484,Reliability!$C$23:$C$50,0)),0),0)*IF($T484=\"n/a\",$D484*$Y484,$G484)+IFERROR(IF(AND($V484<=AD$1,$W484>=AD$1),INDEX(Reliability!I$23:I$50,MATCH($T484,Reliability!$C$23:$C$50,0)),0),0)*$H484*$X484*$Y484),$D484)*$R484","v":0},{"$f":"MIN((IFERROR(IF(AND($V484<=AE$1,$W484>=AE$1),INDEX(Reliability!J$23:J$50,MATCH($S484,Reliability!$C$23:$C$50,0)),0),0)*IF($T484=\"n/a\",$D484*$Y484,$G484)+IFERROR(IF(AND($V484<=AE$1,$W484>=AE$1),INDEX(Reliability!J$23:J$50,MATCH($T484,Reliability!$C$23:$C$50,0)),0),0)*$H484*$X484*$Y484),$D484)*$R484","v":0},{"$f":"MIN((IFERROR(IF(AND($V484<=AF$1,$W484>=AF$1),INDEX(Reliability!K$23:K$50,MATCH($S484,Reliability!$C$23:$C$50,0)),0),0)*IF($T484=\"n/a\",$D484*$Y484,$G484)+IFERROR(IF(AND($V484<=AF$1,$W484>=AF$1),INDEX(Reliability!K$23:K$50,MATCH($T484,Reliability!$C$23:$C$50,0)),0),0)*$H484*$X484*$Y484),$D484)*$R484","v":0},{"$f":"MIN((IFERROR(IF(AND($V484<=AG$1,$W484>=AG$1),INDEX(Reliability!L$23:L$50,MATCH($S484,Reliability!$C$23:$C$50,0)),0),0)*IF($T484=\"n/a\",$D484*$Y484,$G484)+IFERROR(IF(AND($V484<=AG$1,$W484>=AG$1),INDEX(Reliability!L$23:L$50,MATCH($T484,Reliability!$C$23:$C$50,0)),0),0)*$H484*$X484*$Y484),$D484)*$R484","v":0},{"$f":"MIN((IFERROR(IF(AND($V484<=AH$1,$W484>=AH$1),INDEX(Reliability!M$23:M$50,MATCH($S484,Reliability!$C$23:$C$50,0)),0),0)*IF($T484=\"n/a\",$D484*$Y484,$G484)+IFERROR(IF(AND($V484<=AH$1,$W484>=AH$1),INDEX(Reliability!M$23:M$50,MATCH($T484,Reliability!$C$23:$C$50,0)),0),0)*$H484*$X484*$Y484),$D484)*$R484","v":0},{"$f":"MIN((IFERROR(IF(AND($V484<=AI$1,$W484>=AI$1),INDEX(Reliability!N$23:N$50,MATCH($S484,Reliability!$C$23:$C$50,0)),0),0)*IF($T484=\"n/a\",$D484*$Y484,$G484)+IFERROR(IF(AND($V484<=AI$1,$W484>=AI$1),INDEX(Reliability!N$23:N$50,MATCH($T484,Reliability!$C$23:$C$50,0)),0),0)*$H484*$X484*$Y484),$D484)*$R484","v":0},{"$f":"MIN((IFERROR(IF(AND($V484<=AJ$1,$W484>=AJ$1),INDEX(Reliability!O$23:O$50,MATCH($S484,Reliability!$C$23:$C$50,0)),0),0)*IF($T484=\"n/a\",$D484*$Y484,$G484)+IFERROR(IF(AND($V484<=AJ$1,$W484>=AJ$1),INDEX(Reliability!O$23:O$50,MATCH($T484,Reliability!$C$23:$C$50,0)),0),0)*$H484*$X484*$Y484),$D484)*$R484","v":0},{"$f":"MIN((IFERROR(IF(AND($V484<=AK$1,$W484>=AK$1),INDEX(Reliability!P$23:P$50,MATCH($S484,Reliability!$C$23:$C$50,0)),0),0)*IF($T484=\"n/a\",$D484*$Y484,$G484)+IFERROR(IF(AND($V484<=AK$1,$W484>=AK$1),INDEX(Reliability!P$23:P$50,MATCH($T484,Reliability!$C$23:$C$50,0)),0),0)*$H484*$X484*$Y484),$D484)*$R484","v":0}]
[null,{"$f":"unique_contracts!B486","v":0},{"$f":"unique_contracts!D486","v":0},{"$f":"unique_contracts!J486","v":0},{"$f":"unique_contracts!M486","v":0},{"$f":"unique_contracts!N486","v":0},{"$f":"unique_contracts!P486","v":0},{"$f":"unique_contracts!R486","v":0},{"$f":"unique_contracts!V486","v":0},{"$f":"unique_contracts!AB486","v":0},{"$f":"unique_contracts!AM486","v":0},{"$f":"unique_contracts!AN486","v":0},{"$f":"unique_contracts!AO486","v":0},{"$f":"unique_contracts!AP486","v":0},{"$f":"unique_contracts!AQ486","v":0},{"$f":"unique_contracts!AR486","v":0},{"$f":"unique_contracts!BP486","v":0},0,{"$f":"IFERROR(IF(AND(I485>0,E485=\"NotHybrid\"),_xlfn.CONCAT(MAX(MIN(ROUNDDOWN(I485/D485,0),8),4),INDEX(resources!$G:$G,MATCH(B485,resources!$A:$A,0))),INDEX(resources!$G:$G,MATCH(B485,resources!$A:$A,0))),\"n/a\")","v":"n/a"},"n/a","n/a",0,0,1,1,{"$f":"MIN((IFERROR(IF(AND($V485<=Z$1,$W485>=Z$1),INDEX(Reliability!E$23:E$50,MATCH($S485,Reliability!$C$23:$C$50,0)),0),0)*IF($T485=\"n/a\",$D485*$Y485,$G485)+IFERROR(IF(AND($V485<=Z$1,$W485>=Z$1),INDEX(Reliability!E$23:E$50,MATCH($T485,Reliability!$C$23:$C$50,0)),0),0)*$H485*$X485*$Y485),$D485)*$R485","v":0},{"$f":"MIN((IFERROR(IF(AND($V485<=AA$1,$W485>=AA$1),INDEX(Reliability!F$23:F$50,MATCH($S485,Reliability!$C$23:$C$50,0)),0),0)*IF($T485=\"n/a\",$D485*$Y485,$G485)+IFERROR(IF(AND($V485<=AA$1,$W485>=AA$1),INDEX(Reliability!F$23:F$50,MATCH($T485,Reliability!$C$23:$C$50,0)),0),0)*$H485*$X485*$Y485),$D485)*$R485","v":0},{"$f":"MIN((IFERROR(IF(AND($V485<=AB$1,$W485>=AB$1),INDEX(Reliability!G$23:G$50,MATCH($S485,Reliability!$C$23:$C$50,0)),0),0)*IF($T485=\"n/a\",$D485*$Y485,$G485)+IFERROR(IF(AND($V485<=AB$1,$W485>=AB$1),INDEX(Reliability!G$23:G$50,MATCH($T485,Reliability!$C$23:$C$50,0)),0),0)*$H485*$X485*$Y485),$D485)*$R485","v":0},{"$f":"MIN((IFERROR(IF(AND($V485<=AC$1,$W485>=AC$1),INDEX(Reliability!H$23:H$50,MATCH($S485,Reliability!$C$23:$C$50,0)),0),0)*IF($T485=\"n/a\",$D485*$Y485,$G485)+IFERROR(IF(AND($V485<=AC$1,$W485>=AC$1),INDEX(Reliability!H$23:H$50,MATCH($T485,Reliability!$C$23:$C$50,0)),0),0)*$H485*$X485*$Y485),$D485)*$R485","v":0},{"$f":"MIN((IFERROR(IF(AND($V485<=AD$1,$W485>=AD$1),INDEX(Reliability!I$23:I$50,MATCH($S485,Reliability!$C$23:$C$50,0)),0),0)*IF($T485=\"n/a\",$D485*$Y485,$G485)+IFERROR(IF(AND($V485<=AD$1,$W485>=AD$1),INDEX(Reliability!I$23:I$50,MATCH($T485,Reliability!$C$23:$C$50,0)),0),0)*$H485*$X485*$Y485),$D485)*$R485","v":0},{"$f":"MIN((IFERROR(IF(AND($V485<=AE$1,$W485>=AE$1),INDEX(Reliability!J$23:J$50,MATCH($S485,Reliability!$C$23:$C$50,0)),0),0)*IF($T485=\"n/a\",$D485*$Y485,$G485)+IFERROR(IF(AND($V485<=AE$1,$W485>=AE$1),INDEX(Reliability!J$23:J$50,MATCH($T485,Reliability!$C$23:$C$50,0)),0),0)*$H485*$X485*$Y485),$D485)*$R485","v":0},{"$f":"MIN((IFERROR(IF(AND($V485<=AF$1,$W485>=AF$1),INDEX(Reliability!K$23:K$50,MATCH($S485,Reliability!$C$23:$C$50,0)),0),0)*IF($T485=\"n/a\",$D485*$Y485,$G485)+IFERROR(IF(AND($V485<=AF$1,$W485>=AF$1),INDEX(Reliability!K$23:K$50,MATCH($T485,Reliability!$C$23:$C$50,0)),0),0)*$H485*$X485*$Y485),$D485)*$R485","v":0},{"$f":"MIN((IFERROR(IF(AND($V485<=AG$1,$W485>=AG$1),INDEX(Reliability!L$23:L$50,MATCH($S485,Reliability!$C$23:$C$50,0)),0),0)*IF($T485=\"n/a\",$D485*$Y485,$G485)+IFERROR(IF(AND($V485<=AG$1,$W485>=AG$1),INDEX(Reliability!L$23:L$50,MATCH($T485,Reliability!$C$23:$C$50,0)),0),0)*$H485*$X485*$Y485),$D485)*$R485","v":0},{"$f":"MIN((IFERROR(IF(AND($V485<=AH$1,$W485>=AH$1),INDEX(Reliability!M$23:M$50,MATCH($S485,Reliability!$C$23:$C$50,0)),0),0)*IF($T485=\"n/a\",$D485*$Y485,$G485)+IFERROR(IF(AND($V485<=AH$1,$W485>=AH$1),INDEX(Reliability!M$23:M$50,MATCH($T485,Reliability!$C$23:$C$50,0)),0),0)*$H485*$X485*$Y485),$D485)*$R485","v":0},{"$f":"MIN((IFERROR(IF(AND($V485<=AI$1,$W485>=AI$1),INDEX(Reliability!N$23:N$50,MATCH($S485,Reliability!$C$23:$C$50,0)),0),0)*IF($T485=\"n/a\",$D485*$Y485,$G485)+IFERROR(IF(AND($V485<=AI$1,$W485>=AI$1),INDEX(Reliability!N$23:N$50,MATCH($T485,Reliability!$C$23:$C$50,0)),0),0)*$H485*$X485*$Y485),$D485)*$R485","v":0},{"$f":"MIN((IFERROR(IF(AND($V485<=AJ$1,$W485>=AJ$1),INDEX(Reliability!O$23:O$50,MATCH($S485,Reliability!$C$23:$C$50,0)),0),0)*IF($T485=\"n/a\",$D485*$Y485,$G485)+IFERROR(IF(AND($V485<=AJ$1,$W485>=AJ$1),INDEX(Reliability!O$23:O$50,MATCH($T485,Reliability!$C$23:$C$50,0)),0),0)*$H485*$X485*$Y485),$D485)*$R485","v":0},{"$f":"MIN((IFERROR(IF(AND($V485<=AK$1,$W485>=AK$1),INDEX(Reliability!P$23:P$50,MATCH($S485,Reliability!$C$23:$C$50,0)),0),0)*IF($T485=\"n/a\",$D485*$Y485,$G485)+IFERROR(IF(AND($V485<=AK$1,$W485>=AK$1),INDEX(Reliability!P$23:P$50,MATCH($T485,Reliability!$C$23:$C$50,0)),0),0)*$H485*$X485*$Y485),$D485)*$R485","v":0}]
[null,{"$f":"unique_contracts!B487","v":0},{"$f":"unique_contracts!D487","v":0},{"$f":"unique_contracts!J487","v":0},{"$f":"unique_contracts!M487","v":0},{"$f":"unique_contracts!N487","v":0},{"$f":"unique_contracts!P487","v":0},{"$f":"unique_contracts!R487","v":0},{"$f":"unique_contracts!V487","v":0},{"$f":"unique_contracts!AB487","v":0},{"$f":"unique_contracts!AM487","v":0},{"$f":"unique_contracts!AN487","v":0},{"$f":"unique_contracts!AO487","v":0},{"$f":"unique_contracts!AP487","v":0},{"$f":"unique_contracts!AQ487","v":0},{"$f":"unique_contracts!AR487","v":0},{"$f":"unique_contracts!BP487","v":0},0,{"$f":"IFERROR(IF(AND(I486>0,E486=\"NotHybrid\"),_xlfn.CONCAT(MAX(MIN(ROUNDDOWN(I486/D486,0),8),4),INDEX(resources!$G:$G,MATCH(B486,resources!$A:$A,0))),INDEX(resources!$G:$G,MATCH(B486,resources!$A:$A,0))),\"n/a\")","v":"n/a"},"n/a","n/a",0,0,1,1,{"$f":"MIN((IFERROR(IF(AND($V486<=Z$1,$W486>=Z$1),INDEX(Reliability!E$23:E$50,MATCH($S486,Reliability!$C$23:$C$50,0)),0),0)*IF($T486=\"n/a\",$D486*$Y486,$G486)+IFERROR(IF(AND($V486<=Z$1,$W486>=Z$1),INDEX(Reliability!E$23:E$50,MATCH($T486,Reliability!$C$23:$C$50,0)),0),0)*$H486*$X486*$Y486),$D486)*$R486","v":0},{"$f":"MIN((IFERROR(IF(AND($V486<=AA$1,$W486>=AA$1),INDEX(Reliability!F$23:F$50,MATCH($S486,Reliability!$C$23:$C$50,0)),0),0)*IF($T486=\"n/a\",$D486*$Y486,$G486)+IFERROR(IF(AND($V486<=AA$1,$W486>=AA$1),INDEX(Reliability!F$23:F$50,MATCH($T486,Reliability!$C$23:$C$50,0)),0),0)*$H486*$X486*$Y486),$D486)*$R486","v":0},{"$f":"MIN((IFERROR(IF(AND($V486<=AB$1,$W486>=AB$1),INDEX(Reliability!G$23:G$50,MATCH($S486,Reliability!$C$23:$C$50,0)),0),0)*IF($T486=\"n/a\",$D486*$Y486,$G486)+IFERROR(IF(AND($V486<=AB$1,$W486>=AB$1),INDEX(Reliability!G$23:G$50,MATCH($T486,Reliability!$C$23:$C$50,0)),0),0)*$H486*$X486*$Y486),$D486)*$R486","v":0},{"$f":"MIN((IFERROR(IF(AND($V486<=AC$1,$W486>=AC$1),INDEX(Reliability!H$23:H$50,MATCH($S486,Reliability!$C$23:$C$50,0)),0),0)*IF($T486=\"n/a\",$D486*$Y486,$G486)+IFERROR(IF(AND($V486<=AC$1,$W486>=AC$1),INDEX(Reliability!H$23:H$50,MATCH($T486,Reliability!$C$23:$C$50,0)),0),0)*$H486*$X486*$Y486),$D486)*$R486","v":0},{"$f":"MIN((IFERROR(IF(AND($V486<=AD$1,$W486>=AD$1),INDEX(Reliability!I$23:I$50,MATCH($S486,Reliability!$C$23:$C$50,0)),0),0)*IF($T486=\"n/a\",$D486*$Y486,$G486)+IFERROR(IF(AND($V486<=AD$1,$W486>=AD$1),INDEX(Reliability!I$23:I$50,MATCH($T486,Reliability!$C$23:$C$50,0)),0),0)*$H486*$X486*$Y486),$D486)*$R486","v":0},{"$f":"MIN((IFERROR(IF(AND($V486<=AE$1,$W486>=AE$1),INDEX(Reliability!J$23:J$50,MATCH($S486,Reliability!$C$23:$C$50,0)),0),0)*IF($T486=\"n/a\",$D486*$Y486,$G486)+IFERROR(IF(AND($V486<=AE$1,$W486>=AE$1),INDEX(Reliability!J$23:J$50,MATCH($T486,Reliability!$C$23:$C$50,0)),0),0)*$H486*$X486*$Y486),$D486)*$R486","v":0},{"$f":"MIN((IFERROR(IF(AND($V486<=AF$1,$W486>=AF$1),INDEX(Reliability!K$23:K$50,MATCH($S486,Reliability!$C$23:$C$50,0)),0),0)*IF($T486=\"n/a\",$D486*$Y486,$G486)+IFERROR(IF(AND($V486<=AF$1,$W486>=AF$1),INDEX(Reliability!K$23:K$50,MATCH($T486,Reliability!$C$23:$C$50,0)),0),0)*$H486*$X486*$Y486),$D486)*$R486","v":0},{"$f":"MIN((IFERROR(IF(AND($V486<=AG$1,$W486>=AG$1),INDEX(Reliability!L$23:L$50,MATCH($S486,Reliability!$C$23:$C$50,0)),0),0)*IF($T486=\"n/a\",$D486*$Y486,$G486)+IFERROR(IF(AND($V486<=AG$1,$W486>=AG$1),INDEX(Reliability!L$23:L$50,MATCH($T486,Reliability!$C$23:$C$50,0)),0),0)*$H486*$X486*$Y486),$D486)*$R486","v":0},{"$f":"MIN((IFERROR(IF(AND($V486<=AH$1,$W486>=AH$1),INDEX(Reliability!M$23:M$50,MATCH($S486,Reliability!$C$23:$C$50,0)),0),0)*IF($T486=\"n/a\",$D486*$Y486,$G486)+IFERROR(IF(AND($V486<=AH$1,$W486>=AH$1),INDEX(Reliability!M$23:M$50,MATCH($T486,Reliability!$C$23:$C$50,0)),0),0)*$H486*$X486*$Y486),$D486)*$R486","v":0},{"$f":"MIN((IFERROR(IF(AND($V486<=AI$1,$W486>=AI$1),INDEX(Reliability!N$23:N$50,MATCH($S486,Reliability!$C$23:$C$50,0)),0),0)*IF($T486=\"n/a\",$D486*$Y486,$G486)+IFERROR(IF(AND($V486<=AI$1,$W486>=AI$1),INDEX(Reliability!N$23:N$50,MATCH($T486,Reliability!$C$23:$C$50,0)),0),0)*$H486*$X486*$Y486),$D486)*$R486","v":0},{"$f":"MIN((IFERROR(IF(AND($V486<=AJ$1,$W486>=AJ$1),INDEX(Reliability!O$23:O$50,MATCH($S486,Reliability!$C$23:$C$50,0)),0),0)*IF($T486=\"n/a\",$D486*$Y486,$G486)+IFERROR(IF(AND($V486<=AJ$1,$W486>=AJ$1),INDEX(Reliability!O$23:O$50,MATCH($T486,Reliability!$C$23:$C$50,0)),0),0)*$H486*$X486*$Y486),$D486)*$R486","v":0},{"$f":"MIN((IFERROR(IF(AND($V486<=AK$1,$W486>=AK$1),INDEX(Reliability!P$23:P$50,MATCH($S486,Reliability!$C$23:$C$50,0)),0),0)*IF($T486=\"n/a\",$D486*$Y486,$G486)+IFERROR(IF(AND($V486<=AK$1,$W486>=AK$1),INDEX(Reliability!P$23:P$50,MATCH($T486,Reliability!$C$23:$C$50,0)),0),0)*$H486*$X486*$Y486),$D486)*$R486","v":0}]
[null,{"$f":"unique_contracts!B488","v":0},{"$f":"unique_contracts!D488","v":0},{"$f":"unique_contracts!J488","v":0},{"$f":"unique_contracts!M488","v":0},{"$f":"unique_contracts!N488","v":0},{"$f":"unique_contracts!P488","v":0},{"$f":"unique_contracts!R488","v":0},{"$f":"unique_contracts!V488","v":0},{"$f":"unique_contracts!AB488","v":0},{"$f":"unique_contracts!AM488","v":0},{"$f":"unique_contracts!AN488","v":0},{"$f":"unique_contracts!AO488","v":0},{"$f":"unique_contracts!AP488","v":0},{"$f":"unique_contracts!AQ488","v":0},{"$f":"unique_contracts!AR488","v":0},{"$f":"unique_contracts!BP488","v":0},0,{"$f":"IFERROR(IF(AND(I487>0,E487=\"NotHybrid\"),_xlfn.CONCAT(MAX(MIN(ROUNDDOWN(I487/D487,0),8),4),INDEX(resources!$G:$G,MATCH(B487,resources!$A:$A,0))),INDEX(resources!$G:$G,MATCH(B487,resources!$A:$A,0))),\"n/a\")","v":"n/a"},"n/a","n/a",0,0,1,1,{"$f":"MIN((IFERROR(IF(AND($V487<=Z$1,$W487>=Z$1),INDEX(Reliability!E$23:E$50,MATCH($S487,Reliability!$C$23:$C$50,0)),0),0)*IF($T487=\"n/a\",$D487*$Y487,$G487)+IFERROR(IF(AND($V487<=Z$1,$W487>=Z$1),INDEX(Reliability!E$23:E$50,MATCH($T487,Reliability!$C$23:$C$50,0)),0),0)*$H487*$X487*$Y487),$D487)*$R487","v":0},{"$f":"MIN((IFERROR(IF(AND($V487<=AA$1,$W487>=AA$1),INDEX(Reliability!F$23:F$50,MATCH($S487,Reliability!$C$23:$C$50,0)),0),0)*IF($T487=\"n/a\",$D487*$Y487,$G487)+IFERROR(IF(AND($V487<=AA$1,$W487>=AA$1),INDEX(Reliability!F$23:F$50,MATCH($T487,Reliability!$C$23:$C$50,0)),0),0)*$H487*$X487*$Y487),$D487)*$R487","v":0},{"$f":"MIN((IFERROR(IF(AND($V487<=AB$1,$W487>=AB$1),INDEX(Reliability!G$23:G$50,MATCH($S487,Reliability!$C$23:$C$50,0)),0),0)*IF($T487=\"n/a\",$D487*$Y487,$G487)+IFERROR(IF(AND($V487<=AB$1,$W487>=AB$1),INDEX(Reliability!G$23:G$50,MATCH($T487,Reliability!$C$23:$C$50,0)),0),0)*$H487*$X487*$Y487),$D487)*$R487","v":0},{"$f":"MIN((IFERROR(IF(AND($V487<=AC$1,$W487>=AC$1),INDEX(Reliability!H$23:H$50,MATCH($S487,Reliability!$C$23:$C$50,0)),0),0)*IF($T487=\"n/a\",$D487*$Y487,$G487)+IFERROR(IF(AND($V487<=AC$1,$W487>=AC$1),INDEX(Reliability!H$23:H$50,MATCH($T487,Reliability!$C$23:$C$50,0)),0),0)*$H487*$X487*$Y487),$D487)*$R487","v":0},{"$f":"MIN((IFERROR(IF(AND($V487<=AD$1,$W487>=AD$1),INDEX(Reliability!I$23:I$50,MATCH($S487,Reliability!$C$23:$C$50,0)),0),0)*IF($T487=\"n/a\",$D487*$Y487,$G487)+IFERROR(IF(AND($V487<=AD$1,$W487>=AD$1),INDEX(Reliability!I$23:I$50,MATCH($T487,Reliability!$C$23:$C$50,0)),0),0)*$H487*$X487*$Y487),$D487)*$R487","v":0},{"$f":"MIN((IFERROR(IF(AND($V487<=AE$1,$W487>=AE$1),INDEX(Reliability!J$23:J$50,MATCH($S487,Reliability!$C$23:$C$50,0)),0),0)*IF($T487=\"n/a\",$D487*$Y487,$G487)+IFERROR(IF(AND($V487<=AE$1,$W487>=AE$1),INDEX(Reliability!J$23:J$50,MATCH($T487,Reliability!$C$23:$C$50,0)),0),0)*$H487*$X487*$Y487),$D487)*$R487","v":0},{"$f":"MIN((IFERROR(IF(AND($V487<=AF$1,$W487>=AF$1),INDEX(Reliability!K$23:K$50,MATCH($S487,Reliability!$C$23:$C$50,0)),0),0)*IF($T487=\"n/a\",$D487*$Y487,$G487)+IFERROR(IF(AND($V487<=AF$1,$W487>=AF$1),INDEX(Reliability!K$23:K$50,MATCH($T487,Reliability!$C$23:$C$50,0)),0),0)*$H487*$X487*$Y487),$D487)*$R487","v":0},{"$f":"MIN((IFERROR(IF(AND($V487<=AG$1,$W487>=AG$1),INDEX(Reliability!L$23:L$50,MATCH($S487,Reliability!$C$23:$C$50,0)),0),0)*IF($T487=\"n/a\",$D487*$Y487,$G487)+IFERROR(IF(AND($V487<=AG$1,$W487>=AG$1),INDEX(Reliability!L$23:L$50,MATCH($T487,Reliability!$C$23:$C$50,0)),0),0)*$H487*$X487*$Y487),$D487)*$R487","v":0},{"$f":"MIN((IFERROR(IF(AND($V487<=AH$1,$W487>=AH$1),INDEX(Reliability!M$23:M$50,MATCH($S487,Reliability!$C$23:$C$50,0)),0),0)*IF($T487=\"n/a\",$D487*$Y487,$G487)+IFERROR(IF(AND($V487<=AH$1,$W487>=AH$1),INDEX(Reliability!M$23:M$50,MATCH($T487,Reliability!$C$23:$C$50,0)),0),0)*$H487*$X487*$Y487),$D487)*$R487","v":0},{"$f":"MIN((IFERROR(IF(AND($V487<=AI$1,$W487>=AI$1),INDEX(Reliability!N$23:N$50,MATCH($S487,Reliability!$C$23:$C$50,0)),0),0)*IF($T487=\"n/a\",$D487*$Y487,$G487)+IFERROR(IF(AND($V487<=AI$1,$W487>=AI$1),INDEX(Reliability!N$23:N$50,MATCH($T487,Reliability!$C$23:$C$50,0)),0),0)*$H487*$X487*$Y487),$D487)*$R487","v":0},{"$f":"MIN((IFERROR(IF(AND($V487<=AJ$1,$W487>=AJ$1),INDEX(Reliability!O$23:O$50,MATCH($S487,Reliability!$C$23:$C$50,0)),0),0)*IF($T487=\"n/a\",$D487*$Y487,$G487)+IFERROR(IF(AND($V487<=AJ$1,$W487>=AJ$1),INDEX(Reliability!O$23:O$50,MATCH($T487,Reliability!$C$23:$C$50,0)),0),0)*$H487*$X487*$Y487),$D487)*$R487","v":0},{"$f":"MIN((IFERROR(IF(AND($V487<=AK$1,$W487>=AK$1),INDEX(Reliability!P$23:P$50,MATCH($S487,Reliability!$C$23:$C$50,0)),0),0)*IF($T487=\"n/a\",$D487*$Y487,$G487)+IFERROR(IF(AND($V487<=AK$1,$W487>=AK$1),INDEX(Reliability!P$23:P$50,MATCH($T487,Reliability!$C$23:$C$50,0)),0),0)*$H487*$X487*$Y487),$D487)*$R487","v":0}]
[null,{"$f":"unique_contracts!B489","v":0},{"$f":"unique_contracts!D489","v":0},{"$f":"unique_contracts!J489","v":0},{"$f":"unique_contracts!M489","v":0},{"$f":"unique_contracts!N489","v":0},{"$f":"unique_contracts!P489","v":0},{"$f":"unique_contracts!R489","v":0},{"$f":"unique_contracts!V489","v":0},{"$f":"unique_contracts!AB489","v":0},{"$f":"unique_contracts!AM489","v":0},{"$f":"unique_contracts!AN489","v":0},{"$f":"unique_contracts!AO489","v":0},{"$f":"unique_contracts!AP489","v":0},{"$f":"unique_contracts!AQ489","v":0},{"$f":"unique_contracts!AR489","v":0},{"$f":"unique_contracts!BP489","v":0},0,{"$f":"IFERROR(IF(AND(I488>0,E488=\"NotHybrid\"),_xlfn.CONCAT(MAX(MIN(ROUNDDOWN(I488/D488,0),8),4),INDEX(resources!$G:$G,MATCH(B488,resources!$A:$A,0))),INDEX(resources!$G:$G,MATCH(B488,resources!$A:$A,0))),\"n/a\")","v":"n/a"},"n/a","n/a",0,0,1,1,{"$f":"MIN((IFERROR(IF(AND($V488<=Z$1,$W488>=Z$1),INDEX(Reliability!E$23:E$50,MATCH($S488,Reliability!$C$23:$C$50,0)),0),0)*IF($T488=\"n/a\",$D488*$Y488,$G488)+IFERROR(IF(AND($V488<=Z$1,$W488>=Z$1),INDEX(Reliability!E$23:E$50,MATCH($T488,Reliability!$C$23:$C$50,0)),0),0)*$H488*$X488*$Y488),$D488)*$R488","v":0},{"$f":"MIN((IFERROR(IF(AND($V488<=AA$1,$W488>=AA$1),INDEX(Reliability!F$23:F$50,MATCH($S488,Reliability!$C$23:$C$50,0)),0),0)*IF($T488=\"n/a\",$D488*$Y488,$G488)+IFERROR(IF(AND($V488<=AA$1,$W488>=AA$1),INDEX(Reliability!F$23:F$50,MATCH($T488,Reliability!$C$23:$C$50,0)),0),0)*$H488*$X488*$Y488),$D488)*$R488","v":0},{"$f":"MIN((IFERROR(IF(AND($V488<=AB$1,$W488>=AB$1),INDEX(Reliability!G$23:G$50,MATCH($S488,Reliability!$C$23:$C$50,0)),0),0)*IF($T488=\"n/a\",$D488*$Y488,$G488)+IFERROR(IF(AND($V488<=AB$1,$W488>=AB$1),INDEX(Reliability!G$23:G$50,MATCH($T488,Reliability!$C$23:$C$50,0)),0),0)*$H488*$X488*$Y488),$D488)*$R488","v":0},{"$f":"MIN((IFERROR(IF(AND($V488<=AC$1,$W488>=AC$1),INDEX(Reliability!H$23:H$50,MATCH($S488,Reliability!$C$23:$C$50,0)),0),0)*IF($T488=\"n/a\",$D488*$Y488,$G488)+IFERROR(IF(AND($V488<=AC$1,$W488>=AC$1),INDEX(Reliability!H$23:H$50,MATCH($T488,Reliability!$C$23:$C$50,0)),0),0)*$H488*$X488*$Y488),$D488)*$R488","v":0},{"$f":"MIN((IFERROR(IF(AND($V488<=AD$1,$W488>=AD$1),INDEX(Reliability!I$23:I$50,MATCH($S488,Reliability!$C$23:$C$50,0)),0),0)*IF($T488=\"n/a\",$D488*$Y488,$G488)+IFERROR(IF(AND($V488<=AD$1,$W488>=AD$1),INDEX(Reliability!I$23:I$50,MATCH($T488,Reliability!$C$23:$C$50,0)),0),0)*$H488*$X488*$Y488),$D488)*$R488","v":0},{"$f":"MIN((IFERROR(IF(AND($V488<=AE$1,$W488>=AE$1),INDEX(Reliability!J$23:J$50,MATCH($S488,Reliability!$C$23:$C$50,0)),0),0)*IF($T488=\"n/a\",$D488*$Y488,$G488)+IFERROR(IF(AND($V488<=AE$1,$W488>=AE$1),INDEX(Reliability!J$23:J$50,MATCH($T488,Reliability!$C$23:$C$50,0)),0),0)*$H488*$X488*$Y488),$D488)*$R488","v":0},{"$f":"MIN((IFERROR(IF(AND($V488<=AF$1,$W488>=AF$1),INDEX(Reliability!K$23:K$50,MATCH($S488,Reliability!$C$23:$C$50,0)),0),0)*IF($T488=\"n/a\",$D488*$Y488,$G488)+IFERROR(IF(AND($V488<=AF$1,$W488>=AF$1),INDEX(Reliability!K$23:K$50,MATCH($T488,Reliability!$C$23:$C$50,0)),0),0)*$H488*$X488*$Y488),$D488)*$R488","v":0},{"$f":"MIN((IFERROR(IF(AND($V488<=AG$1,$W488>=AG$1),INDEX(Reliability!L$23:L$50,MATCH($S488,Reliability!$C$23:$C$50,0)),0),0)*IF($T488=\"n/a\",$D488*$Y488,$G488)+IFERROR(IF(AND($V488<=AG$1,$W488>=AG$1),INDEX(Reliability!L$23:L$50,MATCH($T488,Reliability!$C$23:$C$50,0)),0),0)*$H488*$X488*$Y488),$D488)*$R488","v":0},{"$f":"MIN((IFERROR(IF(AND($V488<=AH$1,$W488>=AH$1),INDEX(Reliability!M$23:M$50,MATCH($S488,Reliability!$C$23:$C$50,0)),0),0)*IF($T488=\"n/a\",$D488*$Y488,$G488)+IFERROR(IF(AND($V488<=AH$1,$W488>=AH$1),INDEX(Reliability!M$23:M$50,MATCH($T488,Reliability!$C$23:$C$50,0)),0),0)*$H488*$X488*$Y488),$D488)*$R488","v":0},{"$f":"MIN((IFERROR(IF(AND($V488<=AI$1,$W488>=AI$1),INDEX(Reliability!N$23:N$50,MATCH($S488,Reliability!$C$23:$C$50,0)),0),0)*IF($T488=\"n/a\",$D488*$Y488,$G488)+IFERROR(IF(AND($V488<=AI$1,$W488>=AI$1),INDEX(Reliability!N$23:N$50,MATCH($T488,Reliability!$C$23:$C$50,0)),0),0)*$H488*$X488*$Y488),$D488)*$R488","v":0},{"$f":"MIN((IFERROR(IF(AND($V488<=AJ$1,$W488>=AJ$1),INDEX(Reliability!O$23:O$50,MATCH($S488,Reliability!$C$23:$C$50,0)),0),0)*IF($T488=\"n/a\",$D488*$Y488,$G488)+IFERROR(IF(AND($V488<=AJ$1,$W488>=AJ$1),INDEX(Reliability!O$23:O$50,MATCH($T488,Reliability!$C$23:$C$50,0)),0),0)*$H488*$X488*$Y488),$D488)*$R488","v":0},{"$f":"MIN((IFERROR(IF(AND($V488<=AK$1,$W488>=AK$1),INDEX(Reliability!P$23:P$50,MATCH($S488,Reliability!$C$23:$C$50,0)),0),0)*IF($T488=\"n/a\",$D488*$Y488,$G488)+IFERROR(IF(AND($V488<=AK$1,$W488>=AK$1),INDEX(Reliability!P$23:P$50,MATCH($T488,Reliability!$C$23:$C$50,0)),0),0)*$H488*$X488*$Y488),$D488)*$R488","v":0}]
[null,{"$f":"unique_contracts!B490","v":0},{"$f":"unique_contracts!D490","v":0},{"$f":"unique_contracts!J490","v":0},{"$f":"unique_contracts!M490","v":0},{"$f":"unique_contracts!N490","v":0},{"$f":"unique_contracts!P490","v":0},{"$f":"unique_contracts!R490","v":0},{"$f":"unique_contracts!V490","v":0},{"$f":"unique_contracts!AB490","v":0},{"$f":"unique_contracts!AM490","v":0},{"$f":"unique_contracts!AN490","v":0},{"$f":"unique_contracts!AO490","v":0},{"$f":"unique_contracts!AP490","v":0},{"$f":"unique_contracts!AQ490","v":0},{"$f":"unique_contracts!AR490","v":0},{"$f":"unique_contracts!BP490","v":0},0,{"$f":"IFERROR(IF(AND(I489>0,E489=\"NotHybrid\"),_xlfn.CONCAT(MAX(MIN(ROUNDDOWN(I489/D489,0),8),4),INDEX(resources!$G:$G,MATCH(B489,resources!$A:$A,0))),INDEX(resources!$G:$G,MATCH(B489,resources!$A:$A,0))),\"n/a\")","v":"n/a"},"n/a","n/a",0,0,1,1,{"$f":"MIN((IFERROR(IF(AND($V489<=Z$1,$W489>=Z$1),INDEX(Reliability!E$23:E$50,MATCH($S489,Reliability!$C$23:$C$50,0)),0),0)*IF($T489=\"n/a\",$D489*$Y489,$G489)+IFERROR(IF(AND($V489<=Z$1,$W489>=Z$1),INDEX(Reliability!E$23:E$50,MATCH($T489,Reliability!$C$23:$C$50,0)),0),0)*$H489*$X489*$Y489),$D489)*$R489","v":0},{"$f":"MIN((IFERROR(IF(AND($V489<=AA$1,$W489>=AA$1),INDEX(Reliability!F$23:F$50,MATCH($S489,Reliability!$C$23:$C$50,0)),0),0)*IF($T489=\"n/a\",$D489*$Y489,$G489)+IFERROR(IF(AND($V489<=AA$1,$W489>=AA$1),INDEX(Reliability!F$23:F$50,MATCH($T489,Reliability!$C$23:$C$50,0)),0),0)*$H489*$X489*$Y489),$D489)*$R489","v":0},{"$f":"MIN((IFERROR(IF(AND($V489<=AB$1,$W489>=AB$1),INDEX(Reliability!G$23:G$50,MATCH($S489,Reliability!$C$23:$C$50,0)),0),0)*IF($T489=\"n/a\",$D489*$Y489,$G489)+IFERROR(IF(AND($V489<=AB$1,$W489>=AB$1),INDEX(Reliability!G$23:G$50,MATCH($T489,Reliability!$C$23:$C$50,0)),0),0)*$H489*$X489*$Y489),$D489)*$R489","v":0},{"$f":"MIN((IFERROR(IF(AND($V489<=AC$1,$W489>=AC$1),INDEX(Reliability!H$23:H$50,MATCH($S489,Reliability!$C$23:$C$50,0)),0),0)*IF($T489=\"n/a\",$D489*$Y489,$G489)+IFERROR(IF(AND($V489<=AC$1,$W489>=AC$1),INDEX(Reliability!H$23:H$50,MATCH($T489,Reliability!$C$23:$C$50,0)),0),0)*$H489*$X489*$Y489),$D489)*$R489","v":0},{"$f":"MIN((IFERROR(IF(AND($V489<=AD$1,$W489>=AD$1),INDEX(Reliability!I$23:I$50,MATCH($S489,Reliability!$C$23:$C$50,0)),0),0)*IF($T489=\"n/a\",$D489*$Y489,$G489)+IFERROR(IF(AND($V489<=AD$1,$W489>=AD$1),INDEX(Reliability!I$23:I$50,MATCH($T489,Reliability!$C$23:$C$50,0)),0),0)*$H489*$X489*$Y489),$D489)*$R489","v":0},{"$f":"MIN((IFERROR(IF(AND($V489<=AE$1,$W489>=AE$1),INDEX(Reliability!J$23:J$50,MATCH($S489,Reliability!$C$23:$C$50,0)),0),0)*IF($T489=\"n/a\",$D489*$Y489,$G489)+IFERROR(IF(AND($V489<=AE$1,$W489>=AE$1),INDEX(Reliability!J$23:J$50,MATCH($T489,Reliability!$C$23:$C$50,0)),0),0)*$H489*$X489*$Y489),$D489)*$R489","v":0},{"$f":"MIN((IFERROR(IF(AND($V489<=AF$1,$W489>=AF$1),INDEX(Reliability!K$23:K$50,MATCH($S489,Reliability!$C$23:$C$50,0)),0),0)*IF($T489=\"n/a\",$D489*$Y489,$G489)+IFERROR(IF(AND($V489<=AF$1,$W489>=AF$1),INDEX(Reliability!K$23:K$50,MATCH($T489,Reliability!$C$23:$C$50,0)),0),0)*$H489*$X489*$Y489),$D489)*$R489","v":0},{"$f":"MIN((IFERROR(IF(AND($V489<=AG$1,$W489>=AG$1),INDEX(Reliability!L$23:L$50,MATCH($S489,Reliability!$C$23:$C$50,0)),0),0)*IF($T489=\"n/a\",$D489*$Y489,$G489)+IFERROR(IF(AND($V489<=AG$1,$W489>=AG$1),INDEX(Reliability!L$23:L$50,MATCH($T489,Reliability!$C$23:$C$50,0)),0),0)*$H489*$X489*$Y489),$D489)*$R489","v":0},{"$f":"MIN((IFERROR(IF(AND($V489<=AH$1,$W489>=AH$1),INDEX(Reliability!M$23:M$50,MATCH($S489,Reliability!$C$23:$C$50,0)),0),0)*IF($T489=\"n/a\",$D489*$Y489,$G489)+IFERROR(IF(AND($V489<=AH$1,$W489>=AH$1),INDEX(Reliability!M$23:M$50,MATCH($T489,Reliability!$C$23:$C$50,0)),0),0)*$H489*$X489*$Y489),$D489)*$R489","v":0},{"$f":"MIN((IFERROR(IF(AND($V489<=AI$1,$W489>=AI$1),INDEX(Reliability!N$23:N$50,MATCH($S489,Reliability!$C$23:$C$50,0)),0),0)*IF($T489=\"n/a\",$D489*$Y489,$G489)+IFERROR(IF(AND($V489<=AI$1,$W489>=AI$1),INDEX(Reliability!N$23:N$50,MATCH($T489,Reliability!$C$23:$C$50,0)),0),0)*$H489*$X489*$Y489),$D489)*$R489","v":0},{"$f":"MIN((IFERROR(IF(AND($V489<=AJ$1,$W489>=AJ$1),INDEX(Reliability!O$23:O$50,MATCH($S489,Reliability!$C$23:$C$50,0)),0),0)*IF($T489=\"n/a\",$D489*$Y489,$G489)+IFERROR(IF(AND($V489<=AJ$1,$W489>=AJ$1),INDEX(Reliability!O$23:O$50,MATCH($T489,Reliability!$C$23:$C$50,0)),0),0)*$H489*$X489*$Y489),$D489)*$R489","v":0},{"$f":"MIN((IFERROR(IF(AND($V489<=AK$1,$W489>=AK$1),INDEX(Reliability!P$23:P$50,MATCH($S489,Reliability!$C$23:$C$50,0)),0),0)*IF($T489=\"n/a\",$D489*$Y489,$G489)+IFERROR(IF(AND($V489<=AK$1,$W489>=AK$1),INDEX(Reliability!P$23:P$50,MATCH($T489,Reliability!$C$23:$C$50,0)),0),0)*$H489*$X489*$Y489),$D489)*$R489","v":0}]
[null,{"$f":"unique_contracts!B491","v":0},{"$f":"unique_contracts!D491","v":0},{"$f":"unique_contracts!J491","v":0},{"$f":"unique_contracts!M491","v":0},{"$f":"unique_contracts!N491","v":0},{"$f":"unique_contracts!P491","v":0},{"$f":"unique_contracts!R491","v":0},{"$f":"unique_contracts!V491","v":0},{"$f":"unique_contracts!AB491","v":0},{"$f":"unique_contracts!AM491","v":0},{"$f":"unique_contracts!AN491","v":0},{"$f":"unique_contracts!AO491","v":0},{"$f":"unique_contracts!AP491","v":0},{"$f":"unique_contracts!AQ491","v":0},{"$f":"unique_contracts!AR491","v":0},{"$f":"unique_contracts!BP491","v":0},0,{"$f":"IFERROR(IF(AND(I490>0,E490=\"NotHybrid\"),_xlfn.CONCAT(MAX(MIN(ROUNDDOWN(I490/D490,0),8),4),INDEX(resources!$G:$G,MATCH(B490,resources!$A:$A,0))),INDEX(resources!$G:$G,MATCH(B490,resources!$A:$A,0))),\"n/a\")","v":"n/a"},"n/a","n/a",0,0,1,1,{"$f":"MIN((IFERROR(IF(AND($V490<=Z$1,$W490>=Z$1),INDEX(Reliability!E$23:E$50,MATCH($S490,Reliability!$C$23:$C$50,0)),0),0)*IF($T490=\"n/a\",$D490*$Y490,$G490)+IFERROR(IF(AND($V490<=Z$1,$W490>=Z$1),INDEX(Reliability!E$23:E$50,MATCH($T490,Reliability!$C$23:$C$50,0)),0),0)*$H490*$X490*$Y490),$D490)*$R490","v":0},{"$f":"MIN((IFERROR(IF(AND($V490<=AA$1,$W490>=AA$1),INDEX(Reliability!F$23:F$50,MATCH($S490,Reliability!$C$23:$C$50,0)),0),0)*IF($T490=\"n/a\",$D490*$Y490,$G490)+IFERROR(IF(AND($V490<=AA$1,$W490>=AA$1),INDEX(Reliability!F$23:F$50,MATCH($T490,Reliability!$C$23:$C$50,0)),0),0)*$H490*$X490*$Y490),$D490)*$R490","v":0},{"$f":"MIN((IFERROR(IF(AND($V490<=AB$1,$W490>=AB$1),INDEX(Reliability!G$23:G$50,MATCH($S490,Reliability!$C$23:$C$50,0)),0),0)*IF($T490=\"n/a\",$D490*$Y490,$G490)+IFERROR(IF(AND($V490<=AB$1,$W490>=AB$1),INDEX(Reliability!G$23:G$50,MATCH($T490,Reliability!$C$23:$C$50,0)),0),0)*$H490*$X490*$Y490),$D490)*$R490","v":0},{"$f":"MIN((IFERROR(IF(AND($V490<=AC$1,$W490>=AC$1),INDEX(Reliability!H$23:H$50,MATCH($S490,Reliability!$C$23:$C$50,0)),0),0)*IF($T490=\"n/a\",$D490*$Y490,$G490)+IFERROR(IF(AND($V490<=AC$1,$W490>=AC$1),INDEX(Reliability!H$23:H$50,MATCH($T490,Reliability!$C$23:$C$50,0)),0),0)*$H490*$X490*$Y490),$D490)*$R490","v":0},{"$f":"MIN((IFERROR(IF(AND($V490<=AD$1,$W490>=AD$1),INDEX(Reliability!I$23:I$50,MATCH($S490,Reliability!$C$23:$C$50,0)),0),0)*IF($T490=\"n/a\",$D490*$Y490,$G490)+IFERROR(IF(AND($V490<=AD$1,$W490>=AD$1),INDEX(Reliability!I$23:I$50,MATCH($T490,Reliability!$C$23:$C$50,0)),0),0)*$H490*$X490*$Y490),$D490)*$R490","v":0},{"$f":"MIN((IFERROR(IF(AND($V490<=AE$1,$W490>=AE$1),INDEX(Reliability!J$23:J$50,MATCH($S490,Reliability!$C$23:$C$50,0)),0),0)*IF($T490=\"n/a\",$D490*$Y490,$G490)+IFERROR(IF(AND($V490<=AE$1,$W490>=AE$1),INDEX(Reliability!J$23:J$50,MATCH($T490,Reliability!$C$23:$C$50,0)),0),0)*$H490*$X490*$Y490),$D490)*$R490","v":0},{"$f":"MIN((IFERROR(IF(AND($V490<=AF$1,$W490>=AF$1),INDEX(Reliability!K$23:K$50,MATCH($S490,Reliability!$C$23:$C$50,0)),0),0)*IF($T490=\"n/a\",$D490*$Y490,$G490)+IFERROR(IF(AND($V490<=AF$1,$W490>=AF$1),INDEX(Reliability!K$23:K$50,MATCH($T490,Reliability!$C$23:$C$50,0)),0),0)*$H490*$X490*$Y490),$D490)*$R490","v":0},{"$f":"MIN((IFERROR(IF(AND($V490<=AG$1,$W490>=AG$1),INDEX(Reliability!L$23:L$50,MATCH($S490,Reliability!$C$23:$C$50,0)),0),0)*IF($T490=\"n/a\",$D490*$Y490,$G490)+IFERROR(IF(AND($V490<=AG$1,$W490>=AG$1),INDEX(Reliability!L$23:L$50,MATCH($T490,Reliability!$C$23:$C$50,0)),0),0)*$H490*$X490*$Y490),$D490)*$R490","v":0},{"$f":"MIN((IFERROR(IF(AND($V490<=AH$1,$W490>=AH$1),INDEX(Reliability!M$23:M$50,MATCH($S490,Reliability!$C$23:$C$50,0)),0),0)*IF($T490=\"n/a\",$D490*$Y490,$G490)+IFERROR(IF(AND($V490<=AH$1,$W490>=AH$1),INDEX(Reliability!M$23:M$50,MATCH($T490,Reliability!$C$23:$C$50,0)),0),0)*$H490*$X490*$Y490),$D490)*$R490","v":0},{"$f":"MIN((IFERROR(IF(AND($V490<=AI$1,$W490>=AI$1),INDEX(Reliability!N$23:N$50,MATCH($S490,Reliability!$C$23:$C$50,0)),0),0)*IF($T490=\"n/a\",$D490*$Y490,$G490)+IFERROR(IF(AND($V490<=AI$1,$W490>=AI$1),INDEX(Reliability!N$23:N$50,MATCH($T490,Reliability!$C$23:$C$50,0)),0),0)*$H490*$X490*$Y490),$D490)*$R490","v":0},{"$f":"MIN((IFERROR(IF(AND($V490<=AJ$1,$W490>=AJ$1),INDEX(Reliability!O$23:O$50,MATCH($S490,Reliability!$C$23:$C$50,0)),0),0)*IF($T490=\"n/a\",$D490*$Y490,$G490)+IFERROR(IF(AND($V490<=AJ$1,$W490>=AJ$1),INDEX(Reliability!O$23:O$50,MATCH($T490,Reliability!$C$23:$C$50,0)),0),0)*$H490*$X490*$Y490),$D490)*$R490","v":0},{"$f":"MIN((IFERROR(IF(AND($V490<=AK$1,$W490>=AK$1),INDEX(Reliability!P$23:P$50,MATCH($S490,Reliability!$C$23:$C$50,0)),0),0)*IF($T490=\"n/a\",$D490*$Y490,$G490)+IFERROR(IF(AND($V490<=AK$1,$W490>=AK$1),INDEX(Reliability!P$23:P$50,MATCH($T490,Reliability!$C$23:$C$50,0)),0),0)*$H490*$X490*$Y490),$D490)*$R490","v":0}]
[null,{"$f":"unique_contracts!B492","v":0},{"$f":"unique_contracts!D492","v":0},{"$f":"unique_contracts!J492","v":0},{"$f":"unique_contracts!M492","v":0},{"$f":"unique_contracts!N492","v":0},{"$f":"unique_contracts!P492","v":0},{"$f":"unique_contracts!R492","v":0},{"$f":"unique_contracts!V492","v":0},{"$f":"unique_contracts!AB492","v":0},{"$f":"unique_contracts!AM492","v":0},{"$f":"unique_contracts!AN492","v":0},{"$f":"unique_contracts!AO492","v":0},{"$f":"unique_contracts!AP492","v":0},{"$f":"unique_contracts!AQ492","v":0},{"$f":"unique_contracts!AR492","v":0},{"$f":"unique_contracts!BP492","v":0},0,{"$f":"IFERROR(IF(AND(I491>0,E491=\"NotHybrid\"),_xlfn.CONCAT(MAX(MIN(ROUNDDOWN(I491/D491,0),8),4),INDEX(resources!$G:$G,MATCH(B491,resources!$A:$A,0))),INDEX(resources!$G:$G,MATCH(B491,resources!$A:$A,0))),\"n/a\")","v":"n/a"},"n/a","n/a",0,0,1,1,{"$f":"MIN((IFERROR(IF(AND($V491<=Z$1,$W491>=Z$1),INDEX(Reliability!E$23:E$50,MATCH($S491,Reliability!$C$23:$C$50,0)),0),0)*IF($T491=\"n/a\",$D491*$Y491,$G491)+IFERROR(IF(AND($V491<=Z$1,$W491>=Z$1),INDEX(Reliability!E$23:E$50,MATCH($T491,Reliability!$C$23:$C$50,0)),0),0)*$H491*$X491*$Y491),$D491)*$R491","v":0},{"$f":"MIN((IFERROR(IF(AND($V491<=AA$1,$W491>=AA$1),INDEX(Reliability!F$23:F$50,MATCH($S491,Reliability!$C$23:$C$50,0)),0),0)*IF($T491=\"n/a\",$D491*$Y491,$G491)+IFERROR(IF(AND($V491<=AA$1,$W491>=AA$1),INDEX(Reliability!F$23:F$50,MATCH($T491,Reliability!$C$23:$C$50,0)),0),0)*$H491*$X491*$Y491),$D491)*$R491","v":0},{"$f":"MIN((IFERROR(IF(AND($V491<=AB$1,$W491>=AB$1),INDEX(Reliability!G$23:G$50,MATCH($S491,Reliability!$C$23:$C$50,0)),0),0)*IF($T491=\"n/a\",$D491*$Y491,$G491)+IFERROR(IF(AND($V491<=AB$1,$W491>=AB$1),INDEX(Reliability!G$23:G$50,MATCH($T491,Reliability!$C$23:$C$50,0)),0),0)*$H491*$X491*$Y491),$D491)*$R491","v":0},{"$f":"MIN((IFERROR(IF(AND($V491<=AC$1,$W491>=AC$1),INDEX(Reliability!H$23:H$50,MATCH($S491,Reliability!$C$23:$C$50,0)),0),0)*IF($T491=\"n/a\",$D491*$Y491,$G491)+IFERROR(IF(AND($V491<=AC$1,$W491>=AC$1),INDEX(Reliability!H$23:H$50,MATCH($T491,Reliability!$C$23:$C$50,0)),0),0)*$H491*$X491*$Y491),$D491)*$R491","v":0},{"$f":"MIN((IFERROR(IF(AND($V491<=AD$1,$W491>=AD$1),INDEX(Reliability!I$23:I$50,MATCH($S491,Reliability!$C$23:$C$50,0)),0),0)*IF($T491=\"n/a\",$D491*$Y491,$G491)+IFERROR(IF(AND($V491<=AD$1,$W491>=AD$1),INDEX(Reliability!I$23:I$50,MATCH($T491,Reliability!$C$23:$C$50,0)),0),0)*$H491*$X491*$Y491),$D491)*$R491","v":0},{"$f":"MIN((IFERROR(IF(AND($V491<=AE$1,$W491>=AE$1),INDEX(Reliability!J$23:J$50,MATCH($S491,Reliability!$C$23:$C$50,0)),0),0)*IF($T491=\"n/a\",$D491*$Y491,$G491)+IFERROR(IF(AND($V491<=AE$1,$W491>=AE$1),INDEX(Reliability!J$23:J$50,MATCH($T491,Reliability!$C$23:$C$50,0)),0),0)*$H491*$X491*$Y491),$D491)*$R491","v":0},{"$f":"MIN((IFERROR(IF(AND($V491<=AF$1,$W491>=AF$1),INDEX(Reliability!K$23:K$50,MATCH($S491,Reliability!$C$23:$C$50,0)),0),0)*IF($T491=\"n/a\",$D491*$Y491,$G491)+IFERROR(IF(AND($V491<=AF$1,$W491>=AF$1),INDEX(Reliability!K$23:K$50,MATCH($T491,Reliability!$C$23:$C$50,0)),0),0)*$H491*$X491*$Y491),$D491)*$R491","v":0},{"$f":"MIN((IFERROR(IF(AND($V491<=AG$1,$W491>=AG$1),INDEX(Reliability!L$23:L$50,MATCH($S491,Reliability!$C$23:$C$50,0)),0),0)*IF($T491=\"n/a\",$D491*$Y491,$G491)+IFERROR(IF(AND($V491<=AG$1,$W491>=AG$1),INDEX(Reliability!L$23:L$50,MATCH($T491,Reliability!$C$23:$C$50,0)),0),0)*$H491*$X491*$Y491),$D491)*$R491","v":0},{"$f":"MIN((IFERROR(IF(AND($V491<=AH$1,$W491>=AH$1),INDEX(Reliability!M$23:M$50,MATCH($S491,Reliability!$C$23:$C$50,0)),0),0)*IF($T491=\"n/a\",$D491*$Y491,$G491)+IFERROR(IF(AND($V491<=AH$1,$W491>=AH$1),INDEX(Reliability!M$23:M$50,MATCH($T491,Reliability!$C$23:$C$50,0)),0),0)*$H491*$X491*$Y491),$D491)*$R491","v":0},{"$f":"MIN((IFERROR(IF(AND($V491<=AI$1,$W491>=AI$1),INDEX(Reliability!N$23:N$50,MATCH($S491,Reliability!$C$23:$C$50,0)),0),0)*IF($T491=\"n/a\",$D491*$Y491,$G491)+IFERROR(IF(AND($V491<=AI$1,$W491>=AI$1),INDEX(Reliability!N$23:N$50,MATCH($T491,Reliability!$C$23:$C$50,0)),0),0)*$H491*$X491*$Y491),$D491)*$R491","v":0},{"$f":"MIN((IFERROR(IF(AND($V491<=AJ$1,$W491>=AJ$1),INDEX(Reliability!O$23:O$50,MATCH($S491,Reliability!$C$23:$C$50,0)),0),0)*IF($T491=\"n/a\",$D491*$Y491,$G491)+IFERROR(IF(AND($V491<=AJ$1,$W491>=AJ$1),INDEX(Reliability!O$23:O$50,MATCH($T491,Reliability!$C$23:$C$50,0)),0),0)*$H491*$X491*$Y491),$D491)*$R491","v":0},{"$f":"MIN((IFERROR(IF(AND($V491<=AK$1,$W491>=AK$1),INDEX(Reliability!P$23:P$50,MATCH($S491,Reliability!$C$23:$C$50,0)),0),0)*IF($T491=\"n/a\",$D491*$Y491,$G491)+IFERROR(IF(AND($V491<=AK$1,$W491>=AK$1),INDEX(Reliability!P$23:P$50,MATCH($T491,Reliability!$C$23:$C$50,0)),0),0)*$H491*$X491*$Y491),$D491)*$R491","v":0}]
[null,{"$f":"unique_contracts!B493","v":0},{"$f":"unique_contracts!D493","v":0},{"$f":"unique_contracts!J493","v":0},{"$f":"unique_contracts!M493","v":0},{"$f":"unique_contracts!N493","v":0},{"$f":"unique_contracts!P493","v":0},{"$f":"unique_contracts!R493","v":0},{"$f":"unique_contracts!V493","v":0},{"$f":"unique_contracts!AB493","v":0},{"$f":"unique_contracts!AM493","v":0},{"$f":"unique_contracts!AN493","v":0},{"$f":"unique_contracts!AO493","v":0},{"$f":"unique_contracts!AP493","v":0},{"$f":"unique_contracts!AQ493","v":0},{"$f":"unique_contracts!AR493","v":0},{"$f":"unique_contracts!BP493","v":0},0,{"$f":"IFERROR(IF(AND(I492>0,E492=\"NotHybrid\"),_xlfn.CONCAT(MAX(MIN(ROUNDDOWN(I492/D492,0),8),4),INDEX(resources!$G:$G,MATCH(B492,resources!$A:$A,0))),INDEX(resources!$G:$G,MATCH(B492,resources!$A:$A,0))),\"n/a\")","v":"n/a"},"n/a","n/a",0,0,1,1,{"$f":"MIN((IFERROR(IF(AND($V492<=Z$1,$W492>=Z$1),INDEX(Reliability!E$23:E$50,MATCH($S492,Reliability!$C$23:$C$50,0)),0),0)*IF($T492=\"n/a\",$D492*$Y492,$G492)+IFERROR(IF(AND($V492<=Z$1,$W492>=Z$1),INDEX(Reliability!E$23:E$50,MATCH($T492,Reliability!$C$23:$C$50,0)),0),0)*$H492*$X492*$Y492),$D492)*$R492","v":0},{"$f":"MIN((IFERROR(IF(AND($V492<=AA$1,$W492>=AA$1),INDEX(Reliability!F$23:F$50,MATCH($S492,Reliability!$C$23:$C$50,0)),0),0)*IF($T492=\"n/a\",$D492*$Y492,$G492)+IFERROR(IF(AND($V492<=AA$1,$W492>=AA$1),INDEX(Reliability!F$23:F$50,MATCH($T492,Reliability!$C$23:$C$50,0)),0),0)*$H492*$X492*$Y492),$D492)*$R492","v":0},{"$f":"MIN((IFERROR(IF(AND($V492<=AB$1,$W492>=AB$1),INDEX(Reliability!G$23:G$50,MATCH($S492,Reliability!$C$23:$C$50,0)),0),0)*IF($T492=\"n/a\",$D492*$Y492,$G492)+IFERROR(IF(AND($V492<=AB$1,$W492>=AB$1),INDEX(Reliability!G$23:G$50,MATCH($T492,Reliability!$C$23:$C$50,0)),0),0)*$H492*$X492*$Y492),$D492)*$R492","v":0},{"$f":"MIN((IFERROR(IF(AND($V492<=AC$1,$W492>=AC$1),INDEX(Reliability!H$23:H$50,MATCH($S492,Reliability!$C$23:$C$50,0)),0),0)*IF($T492=\"n/a\",$D492*$Y492,$G492)+IFERROR(IF(AND($V492<=AC$1,$W492>=AC$1),INDEX(Reliability!H$23:H$50,MATCH($T492,Reliability!$C$23:$C$50,0)),0),0)*$H492*$X492*$Y492),$D492)*$R492","v":0},{"$f":"MIN((IFERROR(IF(AND($V492<=AD$1,$W492>=AD$1),INDEX(Reliability!I$23:I$50,MATCH($S492,Reliability!$C$23:$C$50,0)),0),0)*IF($T492=\"n/a\",$D492*$Y492,$G492)+IFERROR(IF(AND($V492<=AD$1,$W492>=AD$1),INDEX(Reliability!I$23:I$50,MATCH($T492,Reliability!$C$23:$C$50,0)),0),0)*$H492*$X492*$Y492),$D492)*$R492","v":0},{"$f":"MIN((IFERROR(IF(AND($V492<=AE$1,$W492>=AE$1),INDEX(Reliability!J$23:J$50,MATCH($S492,Reliability!$C$23:$C$50,0)),0),0)*IF($T492=\"n/a\",$D492*$Y492,$G492)+IFERROR(IF(AND($V492<=AE$1,$W492>=AE$1),INDEX(Reliability!J$23:J$50,MATCH($T492,Reliability!$C$23:$C$50,0)),0),0)*$H492*$X492*$Y492),$D492)*$R492","v":0},{"$f":"MIN((IFERROR(IF(AND($V492<=AF$1,$W492>=AF$1),INDEX(Reliability!K$23:K$50,MATCH($S492,Reliability!$C$23:$C$50,0)),0),0)*IF($T492=\"n/a\",$D492*$Y492,$G492)+IFERROR(IF(AND($V492<=AF$1,$W492>=AF$1),INDEX(Reliability!K$23:K$50,MATCH($T492,Reliability!$C$23:$C$50,0)),0),0)*$H492*$X492*$Y492),$D492)*$R492","v":0},{"$f":"MIN((IFERROR(IF(AND($V492<=AG$1,$W492>=AG$1),INDEX(Reliability!L$23:L$50,MATCH($S492,Reliability!$C$23:$C$50,0)),0),0)*IF($T492=\"n/a\",$D492*$Y492,$G492)+IFERROR(IF(AND($V492<=AG$1,$W492>=AG$1),INDEX(Reliability!L$23:L$50,MATCH($T492,Reliability!$C$23:$C$50,0)),0),0)*$H492*$X492*$Y492),$D492)*$R492","v":0},{"$f":"MIN((IFERROR(IF(AND($V492<=AH$1,$W492>=AH$1),INDEX(Reliability!M$23:M$50,MATCH($S492,Reliability!$C$23:$C$50,0)),0),0)*IF($T492=\"n/a\",$D492*$Y492,$G492)+IFERROR(IF(AND($V492<=AH$1,$W492>=AH$1),INDEX(Reliability!M$23:M$50,MATCH($T492,Reliability!$C$23:$C$50,0)),0),0)*$H492*$X492*$Y492),$D492)*$R492","v":0},{"$f":"MIN((IFERROR(IF(AND($V492<=AI$1,$W492>=AI$1),INDEX(Reliability!N$23:N$50,MATCH($S492,Reliability!$C$23:$C$50,0)),0),0)*IF($T492=\"n/a\",$D492*$Y492,$G492)+IFERROR(IF(AND($V492<=AI$1,$W492>=AI$1),INDEX(Reliability!N$23:N$50,MATCH($T492,Reliability!$C$23:$C$50,0)),0),0)*$H492*$X492*$Y492),$D492)*$R492","v":0},{"$f":"MIN((IFERROR(IF(AND($V492<=AJ$1,$W492>=AJ$1),INDEX(Reliability!O$23:O$50,MATCH($S492,Reliability!$C$23:$C$50,0)),0),0)*IF($T492=\"n/a\",$D492*$Y492,$G492)+IFERROR(IF(AND($V492<=AJ$1,$W492>=AJ$1),INDEX(Reliability!O$23:O$50,MATCH($T492,Reliability!$C$23:$C$50,0)),0),0)*$H492*$X492*$Y492),$D492)*$R492","v":0},{"$f":"MIN((IFERROR(IF(AND($V492<=AK$1,$W492>=AK$1),INDEX(Reliability!P$23:P$50,MATCH($S492,Reliability!$C$23:$C$50,0)),0),0)*IF($T492=\"n/a\",$D492*$Y492,$G492)+IFERROR(IF(AND($V492<=AK$1,$W492>=AK$1),INDEX(Reliability!P$23:P$50,MATCH($T492,Reliability!$C$23:$C$50,0)),0),0)*$H492*$X492*$Y492),$D492)*$R492","v":0}]
[null,{"$f":"unique_contracts!B494","v":0},{"$f":"unique_contracts!D494","v":0},{"$f":"unique_contracts!J494","v":0},{"$f":"unique_contracts!M494","v":0},{"$f":"unique_contracts!N494","v":0},{"$f":"unique_contracts!P494","v":0},{"$f":"unique_contracts!R494","v":0},{"$f":"unique_contracts!V494","v":0},{"$f":"unique_contracts!AB494","v":0},{"$f":"unique_contracts!AM494","v":0},{"$f":"unique_contracts!AN494","v":0},{"$f":"unique_contracts!AO494","v":0},{"$f":"unique_contracts!AP494","v":0},{"$f":"unique_contracts!AQ494","v":0},{"$f":"unique_contracts!AR494","v":0},{"$f":"unique_contracts!BP494","v":0},0,{"$f":"IFERROR(IF(AND(I493>0,E493=\"NotHybrid\"),_xlfn.CONCAT(MAX(MIN(ROUNDDOWN(I493/D493,0),8),4),INDEX(resources!$G:$G,MATCH(B493,resources!$A:$A,0))),INDEX(resources!$G:$G,MATCH(B493,resources!$A:$A,0))),\"n/a\")","v":"n/a"},"n/a","n/a",0,0,1,1,{"$f":"MIN((IFERROR(IF(AND($V493<=Z$1,$W493>=Z$1),INDEX(Reliability!E$23:E$50,MATCH($S493,Reliability!$C$23:$C$50,0)),0),0)*IF($T493=\"n/a\",$D493*$Y493,$G493)+IFERROR(IF(AND($V493<=Z$1,$W493>=Z$1),INDEX(Reliability!E$23:E$50,MATCH($T493,Reliability!$C$23:$C$50,0)),0),0)*$H493*$X493*$Y493),$D493)*$R493","v":0},{"$f":"MIN((IFERROR(IF(AND($V493<=AA$1,$W493>=AA$1),INDEX(Reliability!F$23:F$50,MATCH($S493,Reliability!$C$23:$C$50,0)),0),0)*IF($T493=\"n/a\",$D493*$Y493,$G493)+IFERROR(IF(AND($V493<=AA$1,$W493>=AA$1),INDEX(Reliability!F$23:F$50,MATCH($T493,Reliability!$C$23:$C$50,0)),0),0)*$H493*$X493*$Y493),$D493)*$R493","v":0},{"$f":"MIN((IFERROR(IF(AND($V493<=AB$1,$W493>=AB$1),INDEX(Reliability!G$23:G$50,MATCH($S493,Reliability!$C$23:$C$50,0)),0),0)*IF($T493=\"n/a\",$D493*$Y493,$G493)+IFERROR(IF(AND($V493<=AB$1,$W493>=AB$1),INDEX(Reliability!G$23:G$50,MATCH($T493,Reliability!$C$23:$C$50,0)),0),0)*$H493*$X493*$Y493),$D493)*$R493","v":0},{"$f":"MIN((IFERROR(IF(AND($V493<=AC$1,$W493>=AC$1),INDEX(Reliability!H$23:H$50,MATCH($S493,Reliability!$C$23:$C$50,0)),0),0)*IF($T493=\"n/a\",$D493*$Y493,$G493)+IFERROR(IF(AND($V493<=AC$1,$W493>=AC$1),INDEX(Reliability!H$23:H$50,MATCH($T493,Reliability!$C$23:$C$50,0)),0),0)*$H493*$X493*$Y493),$D493)*$R493","v":0},{"$f":"MIN((IFERROR(IF(AND($V493<=AD$1,$W493>=AD$1),INDEX(Reliability!I$23:I$50,MATCH($S493,Reliability!$C$23:$C$50,0)),0),0)*IF($T493=\"n/a\",$D493*$Y493,$G493)+IFERROR(IF(AND($V493<=AD$1,$W493>=AD$1),INDEX(Reliability!I$23:I$50,MATCH($T493,Reliability!$C$23:$C$50,0)),0),0)*$H493*$X493*$Y493),$D493)*$R493","v":0},{"$f":"MIN((IFERROR(IF(AND($V493<=AE$1,$W493>=AE$1),INDEX(Reliability!J$23:J$50,MATCH($S493,Reliability!$C$23:$C$50,0)),0),0)*IF($T493=\"n/a\",$D493*$Y493,$G493)+IFERROR(IF(AND($V493<=AE$1,$W493>=AE$1),INDEX(Reliability!J$23:J$50,MATCH($T493,Reliability!$C$23:$C$50,0)),0),0)*$H493*$X493*$Y493),$D493)*$R493","v":0},{"$f":"MIN((IFERROR(IF(AND($V493<=AF$1,$W493>=AF$1),INDEX(Reliability!K$23:K$50,MATCH($S493,Reliability!$C$23:$C$50,0)),0),0)*IF($T493=\"n/a\",$D493*$Y493,$G493)+IFERROR(IF(AND($V493<=AF$1,$W493>=AF$1),INDEX(Reliability!K$23:K$50,MATCH($T493,Reliability!$C$23:$C$50,0)),0),0)*$H493*$X493*$Y493),$D493)*$R493","v":0},{"$f":"MIN((IFERROR(IF(AND($V493<=AG$1,$W493>=AG$1),INDEX(Reliability!L$23:L$50,MATCH($S493,Reliability!$C$23:$C$50,0)),0),0)*IF($T493=\"n/a\",$D493*$Y493,$G493)+IFERROR(IF(AND($V493<=AG$1,$W493>=AG$1),INDEX(Reliability!L$23:L$50,MATCH($T493,Reliability!$C$23:$C$50,0)),0),0)*$H493*$X493*$Y493),$D493)*$R493","v":0},{"$f":"MIN((IFERROR(IF(AND($V493<=AH$1,$W493>=AH$1),INDEX(Reliability!M$23:M$50,MATCH($S493,Reliability!$C$23:$C$50,0)),0),0)*IF($T493=\"n/a\",$D493*$Y493,$G493)+IFERROR(IF(AND($V493<=AH$1,$W493>=AH$1),INDEX(Reliability!M$23:M$50,MATCH($T493,Reliability!$C$23:$C$50,0)),0),0)*$H493*$X493*$Y493),$D493)*$R493","v":0},{"$f":"MIN((IFERROR(IF(AND($V493<=AI$1,$W493>=AI$1),INDEX(Reliability!N$23:N$50,MATCH($S493,Reliability!$C$23:$C$50,0)),0),0)*IF($T493=\"n/a\",$D493*$Y493,$G493)+IFERROR(IF(AND($V493<=AI$1,$W493>=AI$1),INDEX(Reliability!N$23:N$50,MATCH($T493,Reliability!$C$23:$C$50,0)),0),0)*$H493*$X493*$Y493),$D493)*$R493","v":0},{"$f":"MIN((IFERROR(IF(AND($V493<=AJ$1,$W493>=AJ$1),INDEX(Reliability!O$23:O$50,MATCH($S493,Reliability!$C$23:$C$50,0)),0),0)*IF($T493=\"n/a\",$D493*$Y493,$G493)+IFERROR(IF(AND($V493<=AJ$1,$W493>=AJ$1),INDEX(Reliability!O$23:O$50,MATCH($T493,Reliability!$C$23:$C$50,0)),0),0)*$H493*$X493*$Y493),$D493)*$R493","v":0},{"$f":"MIN((IFERROR(IF(AND($V493<=AK$1,$W493>=AK$1),INDEX(Reliability!P$23:P$50,MATCH($S493,Reliability!$C$23:$C$50,0)),0),0)*IF($T493=\"n/a\",$D493*$Y493,$G493)+IFERROR(IF(AND($V493<=AK$1,$W493>=AK$1),INDEX(Reliability!P$23:P$50,MATCH($T493,Reliability!$C$23:$C$50,0)),0),0)*$H493*$X493*$Y493),$D493)*$R493","v":0}]

{"sheet":"resources","index":4,"n_rows":1778,"n_cols":7,"rows_kept":1778,"cut":false,"hidden":false,"merged":[]}
["resource","generator_name","MAXGEN","resolve_final_group","BAA_ID","supertype","elcc_type"]
["7STDRD_1_SOLAR1","SHAFTER_SOLAR",20,"caiso_solar","CISO","physical","utility_pv"]
["ACACIA_6_SOLAR","WEST_ANTELOPE_SOLAR",20,"caiso_solar","CISO","physical","utility_pv"]
["ADELANTO_SOLAR","NAN",10,"ldwp_solar","LADWP","physical","utility_pv"]
["ADERA_1_SOLAR1","ADERA_SOLAR",20,"caiso_solar","CISO","physical","utility_pv"]
["ADLIN_1_UNITS","GEYSERS_AIDLIN_AGGREGATE",22,"caiso_geothermal","CISO","physical","geothermal"]
["ADMEST_6_SOLAR","ADAMS_EAST",19,"caiso_solar","CISO","physical","utility_pv"]
["ADOBEE_1_SOLAR","ADOBE_SOLAR",20,"caiso_solar","CISO","physical","utility_pv"]
["AGCANA_X_HOOVER","HOOVER_POWER_PLANT",40,"caiso_hydro","WALC","specifiedimport","hydro"]
["AGRICO_6_PL3N5","FRESNO_PEAKER",22.69,"caiso_peaker1","CISO","physical","gas_ct"]
["AGRICO_7_UNIT","FRESNO_COGEN",49.9,"caiso_ccgt2","CISO","physical","gas_cc"]
["AGUCAL_5_SOLAR1","AGUA_CALIENTE_SOLAR",290,"caiso_solar","CISO","physical","utility_pv"]
["AKINGS_6_AMESR1","AMERICAN_KINGS_SOLAR",123,"caiso_solar","CISO","physical","utility_pv"]
["ALAMIT_2_PL1X3","ALAMITOS_ENERGY_CENTER_UNIT_7",674.7,"caiso_ccgt1","CISO","physical","gas_cc"]
["ALAMIT_7_ES1","ALAMITOS_ENERGY_STORAGE",100.45,"caiso_li_battery","CISO","physical","hr_batteries"]
["ALAMIT_7_UNIT_3","ALAMITOS_GEN_STA._UNIT_3",326.76,"caiso_st","CISO","physical","steam"]
["ALAMIT_7_UNIT_4","ALAMITOS_GEN_STA._UNIT_4",334.43,"caiso_st","CISO","physical","steam"]
["ALAMIT_7_UNIT_5","ALAMITOS_GEN_STA._UNIT_5",480,"caiso_st","CISO","physical","steam"]
["ALAMO_6_UNIT","ALAMO_POWER_PLANT",17,"caiso_hydro","CISO","physical","hydro"]
["ALHMBR_1_ALHSLR","SG_ALHAMBRA",50,"iid_solar","IID","specifiedimport","utility_pv"]
["ALLGNY_6_HYDRO1","SALMON_CREEK_HYDROELECTRIC_PROJECT",0.52,"caiso_small_hydro","CISO","physical","small_hydro"]
["ALMASL_2_AL6BT6","MAVERICK6STORAGE",50,"caiso_li_battery","CISO","physical","hr_batteries"]
["ALMASL_2_GS1SR1","ALMASOL_GENERATING_STATION_1",125,"caiso_solar","CISO","physical","utility_pv"]
["ALMASL_2_GS4SR4","ALMASOL_GENERATING_STATION_4",100,"caiso_solar","CISO","physical","utility_pv"]
["ALMASL_2_GS6SR6","ALMASOL_GENERATING_STATION_6",100,"caiso_solar","CISO","physical","utility_pv"]
["ALMASL_2_GS7SR7","ALMASOL_GENERATING_STATION_7",132,"caiso_solar","CISO","physical","utility_pv"]
["ALMEGT_1_UNIT_1","ALAMEDA_GT_UNIT_1",25,"caiso_peaker2","CISO","physical","gas_ct"]
["ALMEGT_1_UNIT_2","ALAMEDA_GT_UNIT_2",25,"caiso_peaker2","CISO","physical","gas_ct"]
["ALPSLR_1_NTHSLR","ALPAUGH_NORTH,_LLC",20,"caiso_solar","CISO","physical","utility_pv"]
["ALPSLR_1_SPSSLR","ALPAUGH_50_LLC",50,"caiso_solar","CISO","physical","utility_pv"]
["ALT6DN_2_WIND7","PINYON_PINES_1",164.31,"caiso_wind","CISO","physical","in_state_wind_south"]
["ALT6DS_2_WIND9","PINYON_PINES_2",132,"caiso_wind","CISO","physical","in_state_wind_south"]
["ALTA3A_2_CPCE4","ALTA_WIND_4",102,"caiso_wind","CISO","physical","in_state_wind_south"]
["ALTA3A_2_CPCE5","ALTA_WIND_5",168,"caiso_wind","CISO","physical","in_state_wind_south"]
["ALTA3A_2_CPCE8","ALTA_WIND_8",150,"caiso_wind","CISO","physical","in_state_wind_south"]
["ALTA4A_2_CPCW1","ALTA_WIND_1",150,"caiso_wind","CISO","physical","in_state_wind_south"]
["ALTA4B_2_CPCW2","ALTA_WIND_2",150,"caiso_wind","CISO","physical","in_state_wind_south"]
["ALTA4B_2_CPCW3","ALTA_WIND_3",150,"caiso_wind","CISO","physical","in_state_wind_south"]
["ALTA4B_2_CPCW6","MUSTANG_HILLS",150,"caiso_wind","CISO","physical","in_state_wind_south"]
["ALTA6B_2_WIND11","ALTA_WIND_11",88.15,"caiso_wind","CISO","physical","in_state_wind_south"]
["ALTA6E_2_WIND10","ALTA_WIND_10",134.84,"caiso_wind","CISO","physical","in_state_wind_south"]
["ALTAGASSTORAGE","NAN",40,"caiso_li_battery","CISO","physical","hr_batteries"]
["ALTWD_1_QF","NAN",28.84,"caiso_wind","CISO","physical","in_state_wind_south"]
["ALTWD_2_AT3WD3","ALTECH_3",9.8000000000000007,"caiso_wind","CISO","physical","in_state_wind_south"]
["ALTWD_2_COAWD1","COACHELLA_1",50.4,"caiso_wind","CISO","physical","in_state_wind_south"]
["ANAHM_2_CANYN1","CANYON_POWER_PLANT_UNIT_1",49.4,"caiso_peaker1","CISO","physical","gas_ct"]
["ANAHM_2_CANYN2","CANYON_POWER_PLANT_UNIT_2",49.4,"caiso_peaker1","CISO","physical","gas_ct"]
["ANAHM_2_CANYN3","CANYON_POWER_PLANT_UNIT_3",49.4,"caiso_peaker1","CISO","physical","gas_ct"]
["ANAHM_2_CANYN4","CANYON_POWER_PLANT_UNIT_4",49.4,"caiso_peaker1","CISO","physical","gas_ct"]
["ANAHM_7_CT","NAN",40.64,"caiso_peaker1","CISO","physical","gas_ct"]
["ANTLPE_2_QF","ANTELOPE QFS",4,"caiso_wind","CISO","physical","in_state_wind_south"]
["ANZA_6_SOLAR1","SEVILLE SOLAR ONE",20,"iid_solar","IID","specifiedimport","utility_pv"]
["APEX_CC","NAN",538.70000000000005,"ldwp_ccgt","LADWP","physical","gas_cc"]
["APLHIL_1_SFKHY1","SOUTH FORK POWERHOUSE",2.68,"caiso_hydro","CISO","physical","hydro"]
["APLHIL_1_SLABCK","SLAB CREEK HYDRO",1,"caiso_small_hydro","CISO","physical","small_hydro"]
["AQUAWS_2_AQWSR1","Aquamarine Westside",250,"caiso_solar","CISO","physical","utility_pv"]
["ARATINASOLAR","NAN",150,"caiso_solar","CISO","physical","utility_pv"]
["ARATINASTORAGE","NAN",50,"caiso_li_battery","CISO","physical","hr_batteries"]
["ARBWD_6_QF","WIND RESOURCE II",19.95,"caiso_wind","CISO","physical","in_state_wind_south"]
["ARCOGN_2_UNITS","WATSON COGENERATION",416.6,"caiso_chp","CISO","physical","cogen"]
["ARKANS_1_ARKSLR","SG ARKANSAS",50,"iid_solar","IID","specifiedimport","utility_pv"]
["ARLINT_5_SCEDYN","ARLINGTON VALLEY CC",565,"SW_CCGT","AZPS","specifiedimport","gas_cc"]
["ARLNTN_2_AR1SR1","Arlington",100,"caiso_solar","CISO","physical","utility_pv"]
["ARLNTN_2_ASUSR1","Arlington Solar 1",131,"caiso_solar","CISO","physical","utility_pv"]
["ARLVAL_5_SOLAR","ARLINGTON VALLEY SOLAR ENERGY II",127,"caiso_solar","SRP","specifiedimport","utility_pv"]
["ARVINN_6_ORION1","ORION 1 SOLAR",12,"caiso_solar","CISO","physical","utility_pv"]
["ARVINN_6_ORION2","ORION 2 SOLAR",8,"caiso_solar","CISO","physical","utility_pv"]
["ASTORA_2_SOLAR1","ASTORIA 1",100,"caiso_solar","CISO","physical","utility_pv"]
["ASTORA_2_SOLAR2","ASTORIA 2",75,"caiso_solar","CISO","physical","utility_pv"]
["ATHOS_5_AP1X2","INTERSECTSOLAR",250,"caiso_solar","CISO","physical","utility_pv"]
["ATHOS_5_AP2X2","Athos Power Plant 2",200,"caiso_solar","CISO","physical","utility_pv"]
["ATWEL2_1_SOLAR1","ATWELL WEST",20,"caiso_solar","CISO","physical","utility_pv"]
["ATWELL_1_SOLAR","ATWELL ISLAND PV SOLAR GENERATING FACI.",20,"caiso_solar","CISO","physical","utility_pv"]
["AVENAL_6_AVPARK","AVENAL PARK SOLAR PROJECT",6,"caiso_solar","CISO","physical","utility_pv"]
["AVENAL_6_AVSLR1","AVENAL SOLAR 1",7.9,"caiso_solar","CISO","physical","utility_pv"]
["AVENAL_6_AVSLR2","AVENAL SOLAR 2",7.9,"caiso_solar","CISO","physical","utility_pv"]
["AVENAL_6_SANDDG","SAND DRAG SOLAR PROJECT",19,"caiso_solar","CISO","physical","utility_pv"]
["AVENAL_6_SUNCTY","SUN CITY SOLAR PROJECT",20,"caiso_solar","CISO","physical","utility_pv"]
["AVSOLR_2_SOLAR","AV SOLAR RANCH 1",241.5,"caiso_solar","CISO","physical","utility_pv"]
["AZALEASOLAR","NAN",60,"caiso_solar","CISO","physical","utility_pv"]
["AZALEASTORAGE","NAN",38,"caiso_li_battery","CISO","physical","hr_batteries"]
["BAHIA_2_LKHSR1","LAKE HERMAN SOLAR",5,"caiso_solar","CISO","physical","utility_pv"]
["BALCHS_7_UNIT 1","BALCH 1 PH UNIT 1",31,"caiso_hydro","CISO","physical","hydro"]
["BALCHS_7_UNIT 2","BALCH 2 PH UNIT 2",52.5,"caiso_hydro","CISO","physical","hydro"]
["BALCHS_7_UNIT 3","BALCH 2 PH UNIT 3",54.6,"caiso_hydro","CISO","physical","hydro"]
["BANGOR_6_HYDRO","VIRGINIA RANCH DAM POWERPLANT",1,"caiso_small_hydro","CISO","physical","small_hydro"]
["BANKPP_2_NSPIN","BANKPP_2_NSPIN",270,"caiso_pumped_hydro","CISO","physical","pumped_storage"]
["BARRE_2_QF","BARRE QFS",0.2,"caiso_small_hydro","CISO","physical","small_hydro"]
["BARRE_6_PEAKER","BARRE PEAKER",47,"caiso_peaker1","CISO","physical","gas_ct"]
["BASICE_2_UNITS","KING CITY COGEN",120,"caiso_chp","CISO","physical","cogen"]
["BCTSYS_5_PWXDYN","BCTSYS_5_PWXDYN",428,"caiso_hydro","BPAT","specifiedimport","hydro"]
["BDGRCK_1_UNITS","BADGER CREEK LIMITED",48.08,"caiso_peaker1","CISO","physical","gas_ct"]
["BEACON_SOLAR_B","NAN",125,"ldwp_solar","LADWP","physical","utility_pv"]
["BEARDS_7_UNIT 1","BEARDSLEY HYDRO",11.5,"caiso_hydro","CISO","physical","hydro"]
["BEARMT_1_UNIT","BEAR MOUNTAIN LIMITED",49.21,"caiso_peaker2","CISO","physical","gas_ct"]
["BEJNLS_5_BV2SCEDYN","BROADVIEW 2",167,"caiso_wind","AZPS","specifiedimport","out_of_state_wind_AZNM"]
["BEKWJS_5_BV1SCEDYN","BROADVIEW 1",130,"caiso_wind","AZPS","specifiedimport","out_of_state_wind_AZNM"]
["BELDEN_7_UNIT 1","BELDEN HYDRO",119,"caiso_hydro","CISO","physical","hydro"]
["BELLEVUESOLARINV1","NAN",1.6,"caiso_solar","CISO","physical","utility_pv"]
["BGSKYN_2_AS2SR1","ANTELOPE SOLAR 2",105,"caiso_solar","CISO","physical","utility_pv"]
["BGSKYN_2_ASPSR2","ANTELOPE SOLAR 2 SAN PABLO",100,"caiso_solar","CISO","physical","utility_pv"]
["BGSKYN_2_ASSR1B","Antelope Solar 1B ",17,"caiso_solar","CISO","physical","utility_pv"]
["BGSKYN_2_ASSR3A","ANTELOPE SOLAR 3A",15,"caiso_solar","CISO","physical","utility_pv"]
["BGSKYN_2_ASSR3B","ANTELOPE SOLAR 3B",5,"caiso_solar","CISO","physical","utility_pv"]
["BGSKYN_2_BS3SR3","BIG SKY SOLAR 3",20,"caiso_solar","CISO","physical","utility_pv"]
["BIGBEAUSTORAGE","NAN",40,"caiso_li_battery","CISO","physical","hr_batteries"]
["BIGCRK_2_EXESWD","BIG CREEK HYDRO PROJECT PSP",820,"caiso_hydro","CISO","physical","hydro"]
["BIGCRK_7_DAM7","DAM 7 AT BIG CREEK (FISHWATER GEN)",0.3,"caiso_hydro","CISO","physical","hydro"]
["BIGCRK_7_MAMRES","MAMMOTH POOL RESERVOIR (FISHWATER",1.25,"caiso_small_hydro","CISO","physical","small_hydro"]
["BIGSKY_2_AS2BT1","Antelope Solar 2 LAB",127,"caiso_li_battery","CISO","physical","hr_batteries"]
["BIGSKY_2_ASLBT2","ANTELOPE SOLAR 2 LUNA",100,"caiso_li_battery","CISO","physical","hr_batteries"]
["BIGSKY_2_BSKSR6","BIG SKY SOLAR 6",20,"caiso_solar","CISO","physical","utility_pv"]
["BIGSKY_2_BSKSR7","BIG SKY SOLAR 7",20,"caiso_solar","CISO","physical","utility_pv"]
["BIGSKY_2_BSKSR8","BIG SKY SOLAR 8",20,"caiso_solar","CISO","physical","utility_pv"]
["BIGSKY_2_SOLAR1","ANTELOPE BIG SKY RANCH",20,"caiso_solar","CISO","physical","utility_pv"]
["BIGSKY_2_SOLAR2","BIG SKY SOLAR 4",40,"caiso_solar","CISO","physical","utility_pv"]
["BIGSKY_2_SOLAR3","BIG SKY SUMMER",20,"caiso_solar","CISO","physical","utility_pv"]
["BIGSKY_2_SOLAR4","WESTERN ANTELOPE BLUE SKY RANCH B",20,"caiso_solar","CISO","physical","utility_pv"]
["BIGSKY_2_SOLAR5","BIG SKY SOLAR 2",5,"caiso_solar","CISO","physical","utility_pv"]
["BIGSKY_2_SOLAR6","SOLVERDE 1",85,"caiso_solar","CISO","physical","utility_pv"]
["BIGSKY_2_SOLAR7","BIG SKY SOLAR 1",50,"caiso_solar","CISO","physical","utility_pv"]
["BIGSKY1","NAN",0.75,"caiso_biomass","CISO","physical","biomass_wood"]
["BIGSKY2","NAN",0.75,"caiso_biomass","CISO","physical","biomass_wood"]
["BIOMAS_1_UNIT 1","WOODLAND BIOMASS",25.5,"caiso_biomass","CISO","physical","biomass_wood"]
["BIOMASSONEGE1","NAN",14.4,"caiso_biomass","CISO","physical","biomass_wood"]
["BISHOP_1_ALAMO","BISHOP CREEK PLANT 2  AND  6",13.4,"caiso_small_hydro","CISO","physical","small_hydro"]
["BISHOP_1_UNITS","BISHOP CREEK PLANT 3  AND  4",15.8,"caiso_small_hydro","CISO","physical","small_hydro"]
["BKRFLD_2_SOLAR1","BAKERSFIELD 111",1.38,"caiso_solar","CISO","physical","utility_pv"]
["BLACK_7_UNIT 1","JAMES B. BLACK 1",85,"caiso_hydro","CISO","physical","hydro"]
["BLACK_7_UNIT 2","JAMES B. BLACK 2",84.1,"caiso_hydro","CISO","physical","hydro"]
["BLACK_WALNUT","NAN",15,"caiso_li_battery","CISO","physical","hr_batteries"]
["BLAST_1_WIND","MOUNTAIN VIEW IV WIND",49,"caiso_wind","CISO","physical","in_state_wind_south"]
["BLCKBT_2_STONEY","BLACK BUTTE HYDRO",6.2,"caiso_small_hydro","CISO","physical","small_hydro"]
["BLCKWL_6_SOLAR1","BLACKWELL SOLAR",12,"caiso_solar","CISO","physical","utility_pv"]
["BLKCRK_2_GMCBT1","GENESIS MCCOY BESS",230,"caiso_li_battery","CISO","physical","hr_batteries"]
["BLKCRK_2_SOLAR1","MCCOY STATION",250,"caiso_solar","CISO","physical","utility_pv"]
["BLKDIA_2_BDEBT1","BLACK DIAMOND ENERGY STORAGE",200,"caiso_li_battery","CISO","physical","hr_batteries"]
["BLM W_2_COSBT1","COSOSTORAGE",60,"caiso_li_battery","CISO","physical","hr_batteries"]
["BLM_2_UNITS","BLM EAST FACILITY",72,"caiso_geothermal","CISO","physical","geothermal"]
["BLUE_MOUNTAIN_ELECTRIC_COMPANY","NAN",3,"caiso_biomass","CISO","physical","biomass_wood"]
["BLULKE_6_BLUELK","NAN",12,"caiso_biomass","CISO","physical","biomass_wood"]
["BLYTHE_1_SOLAR1","BLYTHE SOLAR 1 PROJECT",21,"caiso_solar","CISO","physical","utility_pv"]
["BLYTHE_1_SOLAR2","BLYTHE GREEN 1",20,"caiso_solar","CISO","physical","utility_pv"]
["BLYTHESTORAGE1","NAN",63,"caiso_li_battery","CISO","physical","hr_batteries"]
["BNNIEN_7_ALTAPH","ALTA POWER HOUSE",1,"caiso_small_hydro","CISO","physical","small_hydro"]
["BOGUE_1_UNITA1","FEATHER RIVER ENERGY CENTER, UNIT #1",47.6,"caiso_peaker1","CISO","physical","gas_ct"]
["BORDER_6_UNITA1","CALPEAK POWER BORDER UNIT 1",51.25,"caiso_peaker2","CISO","physical","gas_ct"]
["BOWMN_6_HYDRO","NID HYDRO BOWMAN POWERHOUSE",3.6,"caiso_small_hydro","CISO","physical","small_hydro"]
["BRDGVL_7_BAKER","BAKER STATION HYDRO",1.49,"caiso_small_hydro","CISO","physical","small_hydro"]
["BRDSLD_2_HIWIND","HIGH WINDS ENERGY CENTER",162,"caiso_wind","CISO","physical","in_state_wind_north"]
["BRDSLD_2_MTZUM2","NEXTERA ENERGY MONTEZUMA WIND II",78.2,"caiso_wind","CISO","physical","in_state_wind_north"]
["BRDSLD_2_MTZUMA","FPL ENERGY MONTEZUMA WIND",36.799999999999997,"caiso_wind","CISO","physical","in_state_wind_north"]
["BRDSLD_2_SHILO1","SHILOH I WIND PROJECT",150,"caiso_wind","CISO","physical","in_state_wind_north"]
["BRDSLD_2_SHILO2","SHILOH WIND PROJECT 2",150,"caiso_wind","CISO","physical","in_state_wind_north"]
["BRDSLD_2_SHLO3A","SHILOH III WIND PROJECT, LLC",102.5,"caiso_wind","CISO","physical","in_state_wind_north"]
["BRDSLD_2_SHLO3B","SHILOH IV WIND PROJECT",100,"caiso_wind","CISO","physical","in_state_wind_north"]
["BREGGO_6_DEGRSL","DESERT GREEN SOLAR FARM",6.3,"caiso_solar","CISO","physical","utility_pv"]
["BREGGO_6_SOLAR","NRG BORREGO SOLAR ONE",26,"caiso_solar","CISO","physical","utility_pv"]
["BRODIE_2_WIND","CORAM BRODIE WIND PROJECT",102,"caiso_wind","CISO","physical","in_state_wind_south"]
["BUCKBL_2_PL1X3","BLYTHE ENERGY CENTER",493.63,"caiso_ccgt2","CISO","physical","gas_cc"]
["BUCKCK_2_HYDRO","LASSEN STATION HYDRO",0.99,"caiso_small_hydro","CISO","physical","small_hydro"]
["BUCKCK_7_OAKFLT","OAK FLAT",1.3,"caiso_small_hydro","CISO","physical","small_hydro"]
["BUCKCK_7_PL1X2","BUCKS CREEK AGGREGATE",57.25,"caiso_hydro","CISO","physical","hydro"]
["BUCKWD_1_NPALM1","NORTH PALM SPRINGS 1A",2.4,"caiso_solar","CISO","physical","utility_pv"]
["BUCKWD_1_QF","BUCKWIND RE-POWERING PROJECT",16.5,"caiso_wind","CISO","physical","in_state_wind_south"]
["BUCKWD_7_WINTCV","WINTEC ENERGY, LTD.",1.32,"caiso_wind","CISO","physical","in_state_wind_south"]
["BURNYF_2_UNIT 1","BURNEY FOREST POWER",29,"caiso_biomass","CISO","physical","biomass_wood"]
["BUTTVL_7_UNIT 1","BUTT VALLEY HYDRO",39.5,"caiso_hydro","CISO","physical","hydro"]
["CABALO_2_M2BSR1","MUSTANG 2 BARBARO SOLAR",50,"caiso_solar","CISO","physical","utility_pv"]
["CABALO_2_M2WSR2","MUSTANG 2 WHIRLAWAY SOLAR",100,"caiso_solar","CISO","physical","utility_pv"]
["CABZON_1_WINDA1","CABAZON WIND PROJECT",41,"caiso_wind","CISO","physical","in_state_wind_south"]
["CALFTN_2_CFSBT1","California Flats Storage",60,"caiso_li_battery","CISO","physical","hr_batteries"]
["CALFTN_2_SOLAR","CALIFORNIA FLATS NORTH",130,"caiso_solar","CISO","physical","utility_pv"]
["CALFTS_2_CFSSR1","CALIFORNIA FLATS SOLAR SOUTH",150,"caiso_solar","CISO","physical","utility_pv"]
["CALGEN_1_UNITS","COSO NAVY 1",80,"caiso_geothermal","CISO","physical","geothermal"]
["CALPIN_1_AGNEW","AGNEWS POWER PLANT",28.56,"caiso_ccgt1","CISO","physical","gas_cc"]
["CALPSS_6_SOLAR1","CALIPATRIA SOLAR FARM",19.899999999999999,"iid_solar","IID","specifiedimport","utility_pv"]
["CAMCHE_1_PL1X3","CAMANCHE UNITS  1, 2 &  3 AGGREGATE",9.99,"caiso_hydro","CISO","physical","hydro"]
["CAMDEN_6_RDDBM1","RUANN DAIRY DIGESTER BIOMAT",0.55000000000000004,"caiso_biomass","CISO","physical","biomass_wood"]
["CAMERON","NAN",2.4,"caiso_solar","CISO","physical","utility_pv"]
["CAMLOT_2_SOLAR1","CAMELOT",45,"caiso_solar","CISO","physical","utility_pv"]
["CAMLOT_2_SOLAR2","COLUMBIA TWO",15,"caiso_solar","CISO","physical","utility_pv"]
["CAMPFW_7_FARWST","CAMP FAR WEST HYDRO",8,"caiso_small_hydro","CISO","physical","small_hydro"]
["CANTUA_1_SOLAR","CANTUA SOLAR STATION",20,"caiso_solar","CISO","physical","utility_pv"]
["CAPWD_1_QF","EDOM HILLS WIND FARM",19.55,"caiso_wind","CISO","physical","in_state_wind_south"]
["CARBOU_7_PL2X3","CARIBOU PH 1 UNIT 2 & 3 AGGREGATE",49,"caiso_hydro","CISO","physical","hydro"]
["CARBOU_7_PL4X5","CARIBOU PH 2 UNIT 4 & 5 AGGREGATE",120,"caiso_hydro","CISO","physical","hydro"]
["CARBOU_7_UNIT 1","CARIBOU PH 1 UNIT 1",24,"caiso_hydro","CISO","physical","hydro"]
["CARGILLB6BIO1","NAN",1.1000000000000001,"caiso_biomass","CISO","physical","biomass_wood"]
["CARGILLB6BIO2","NAN",1.1000000000000001,"caiso_biomass","CISO","physical","biomass_wood"]
["CARLS1_2_CARCT1","CARLSBAD 1",422,"caiso_peaker1","CISO","physical","gas_ct"]
["CARLS2_1_CARCT1","CARLSBAD 2",105.5,"caiso_peaker1","CISO","physical","gas_ct"]
["CARSON_ICE_CC","NAN",62.7,"banc_ccgt","BANC","physical","gas_cc"]
["CARSON_ICE_PEAKER","NAN",42,"banc_peaker","BANC","physical","gas_ct"]
["CASADB_1_CD4GT1","NAN",40,"caiso_geothermal","CISO","physical","geothermal"]
["CASCADESTORAGE","NAN",25,"caiso_li_battery","CISO","physical","hr_batteries"]
["CASTAIC_1","NAN",240,"ldwp_pumped_hydro","LADWP","physical","pumped_storage"]
["CASTAIC_2","NAN",250,"ldwp_pumped_hydro","LADWP","physical","pumped_storage"]
["CASTAIC_3","NAN",240,"ldwp_pumped_hydro","LADWP","physical","pumped_storage"]
["CASTAIC_4","NAN",240,"ldwp_pumped_hydro","LADWP","physical","pumped_storage"]
["CASTAIC_5","NAN",240,"ldwp_pumped_hydro","LADWP","physical","pumped_storage"]
["CASTAIC_6","NAN",250,"ldwp_pumped_hydro","LADWP","physical","pumped_storage"]
["CASTVL_2_FCELL","NAN",1.4,"caiso_biomass","CISO","physical","biomass_wood"]
["CATLNA_2_SOLAR","CATALINA SOLAR - PHASES 1 AND 2",110,"caiso_solar","CISO","physical","utility_pv"]
["CATLNA_2_SOLAR2","CATALINA SOLAR 2",18,"caiso_solar","CISO","physical","utility_pv"]
["CAVLSR_2_BSOLAR","CALIFORNIA VALLEY SOLAR RANCH-PHASE B",40,"caiso_solar","CISO","physical","utility_pv"]
["CAVLSR_2_RSOLAR","CALIFORNIA VALLEY SOLAR RANCH-PHASE A",210,"caiso_solar","CISO","physical","utility_pv"]
["CAYTNO_2_VASCO","VASCO ROAD",4.3,"caiso_biomass","CISO","physical","biomass_wood"]
["CDWR07_2_GEN","CDWR07_2_GEN",415.3,"caiso_pumped_hydro","CISO","physical","pumped_storage"]
["CEDRCK_6_UNIT","WATER WHEEL RANCH",0.98,"caiso_small_hydro","CISO","physical","small_hydro"]
["CEDUCR_2_SOLAR1","DUCOR SOLAR 1",20,"caiso_solar","CISO","physical","utility_pv"]
["CEDUCR_2_SOLAR2","DUCOR SOLAR 2",20,"caiso_solar","CISO","physical","utility_pv"]
["CEDUCR_2_SOLAR3","DUCOR SOLAR 3",15,"caiso_solar","CISO","physical","utility_pv"]
["CEDUCR_2_SOLAR4","DUCOR SOLAR 4",20,"caiso_solar","CISO","physical","utility_pv"]
["CENT40_1_C40SR1","CENTRAL 40",40,"caiso_solar","CISO","physical","utility_pv"]
["CENTER_2_RHONDO","MWD RIO HONDO HYDROELECTRIC RECOVERY PLA",1.91,"caiso_hydro","CISO","physical","hydro"]
["CENTER_2_SOLAR1","PICO RIVERA",0.9,"caiso_solar","CISO","physical","utility_pv"]
["CENTER_2_TECNG1","TECHNICAST",0.99,"caiso_chp","CISO","physical","cogen"]
["CENTER_6_PEAKER","CENTER PEAKER",47.11,"caiso_peaker1","CISO","physical","gas_ct"]
["CENTRY_6_PL1X4","CENTURY GENERATING PLANT (AGGREGATE)",41.4,"caiso_peaker1","CISO","physical","gas_ct"]
["CHALANSOLAR","NAN",64.900000000000006,"caiso_solar","CISO","physical","utility_pv"]
["CHALANSTORAGE","NAN",25,"caiso_li_battery","CISO","physical","hr_batteries"]
["CHALK_1_UNIT","CHALK CLIFF LIMITED",48.67,"caiso_peaker2","CISO","physical","gas_ct"]
["CHARMN_2_PGONG1","PROCTER  AND  GAMBLE OXNARD I",19.87,"caiso_chp","CISO","physical","cogen"]
["CHEVCD_6_UNIT","CHEVRON USA (TAFT/CADET)",11.5,"caiso_chp","CISO","physical","cogen"]
["CHEVCO_6_UNIT 1","CHEVRON USA (COALINGA)",16.5,"caiso_chp","CISO","physical","cogen"]
["CHEVCO_6_UNIT 2","AERA ENERGY LLC. (COALINGA)",8.5,"caiso_chp","CISO","physical","cogen"]
["CHEVCY_1_UNIT","CHEVRON USA (CYMRIC)",24.3,"caiso_chp","CISO","physical","cogen"]
["CHEVMN_2_UNITS","CHEVRON U.S.A. UNITS 1 & 2 AGGREGATE",124.87,"caiso_chp","CISO","physical","cogen"]
["CHICPK_7_UNIT 1","CHICAGO PARK POWERHOUSE",42,"caiso_hydro","CISO","physical","hydro"]
["CHILLS_1_SYCENG","SYCAMORE ENERGY 1",1.5,"caiso_biomass","CISO","physical","biomass_wood"]
["CHILLS_7_UNITA1","SYCAMORE ENERGY 2",2.25,"caiso_biomass","CISO","physical","biomass_wood"]
["CHINO_2_APEBT1","POMONA ENERGY STORAGE",20,"caiso_li_battery","CISO","physical","hr_batteries"]
["CHINO_2_JURUPA","JURUPA",1.5,"caiso_solar","CISO","physical","utility_pv"]
["CHINO_2_QF","CHINO QFS",0.19,"caiso_biomass","CISO","physical","biomass_wood"]
["CHINO_2_SASOLR","SS SAN ANTONIO WEST LLC",1.5,"caiso_solar","CISO","physical","utility_pv"]
["CHINO_2_SOLAR","CHINO RT SOLAR 1",1,"caiso_solar","CISO","physical","utility_pv"]
["CHINO_2_SOLAR2","KONA SOLAR - TERRA FRANCESCA",1.49,"caiso_solar","CISO","physical","utility_pv"]
["CHINO_6_CIMGEN","CHINO CO-GENERATION",26,"caiso_chp","CISO","physical","cogen"]
["CHINO_6_SMPPAP","NAN",44,"caiso_peaker2","CISO","physical","gas_ct"]
["CHINO_7_MILIKN","MN MILLIKEN GENCO LLC",1.9,"caiso_biomass","CISO","physical","biomass_wood"]
["CHWCHL_1_BIOMAS","CHOW II BIOMASS TO ENERGY",10.8,"caiso_biomass","CISO","physical","biomass_wood"]
["CHWCHL_1_UNIT","CHOW 2 PEAKER PLANT",48.6,"caiso_reciprocating_engine","CISO","physical","ice"]
["CLINESCO_3_PVDYN","CLINES CORNERS",129.94,"caiso_wind","PNM","specifiedimport","out_of_state_wind_AZNM"]
["CLINESCO_3_WBDYN","CLINES CORNERS B",194.28,"caiso_wind","PNM","specifiedimport","out_of_state_wind_AZNM"]
["CLOVDL_1_SOLAR","CLOVERDALE SOLAR I",1.5,"caiso_solar","CISO","physical","utility_pv"]
["CLOVER_2_UNIT","CLOVER CREEK",0.99,"caiso_small_hydro","CISO","physical","small_hydro"]
["CLRKRD_6_LIMESD","LIME SADDLE HYDRO",2,"caiso_small_hydro","CISO","physical","small_hydro"]
["CLRMTK_1_QF","SMALL QF AGGREGATION - OAKLAND",1.25,"caiso_chp","CISO","physical","cogen"]
["CNTNLA_2_SOLAR1","CENTINELA SOLAR ENERGY I",125,"caiso_solar","CISO","physical","utility_pv"]
["CNTNLA_2_SOLAR2","CENTINELS SOLAR ENERGY 2",45.6,"caiso_solar","CISO","physical","utility_pv"]
["CNTRVL_6_UNIT","CENTERVILLE",6.4,"caiso_small_hydro","CISO","physical","small_hydro"]
["COACHELLA_1","NAN",20,"iid_peaker","IID","physical","gas_ct"]
["COACHELLA_2","NAN",20,"iid_peaker","IID","physical","gas_ct"]
["COACHELLA_3","NAN",20,"iid_peaker","IID","physical","gas_ct"]
["COACHELLA_4","NAN",20,"iid_peaker","IID","physical","gas_ct"]
["COACHELLA_BATTERY","NAN",31,"IID_Li_Battery","IID","physical","hr_batteries"]
["COACHELLAWIND","NAN",94.936000000000007,"caiso_wind","CISO","physical","in_state_wind_south"]
["COCOPP_2_CTG1","MARSH LANDING 1",204.2,"caiso_peaker1","CISO","physical","gas_ct"]
["COCOPP_2_CTG2","MARSH LANDING 2",202.7,"caiso_peaker1","CISO","physical","gas_ct"]
["COCOPP_2_CTG3","MARSH LANDING 3",208.96,"caiso_peaker1","CISO","physical","gas_ct"]
["COCOPP_2_CTG4","MARSH LANDING 4",204.29,"caiso_peaker1","CISO","physical","gas_ct"]
["COCOSB_6_SOLAR","OAKLEY SOLAR PROJECT",1.5,"caiso_solar","CISO","physical","utility_pv"]
["COGNAT_1_UNIT","STOCKTON BIOMAS",45,"caiso_biomass","CISO","physical","biomass_wood"]
["COLEMN_2_UNIT","COLEMAN",13,"caiso_small_hydro","CISO","physical","small_hydro"]
["COLGAT_7_UNIT 1","COLGATE POWERHOUSE UNIT 1",176.72,"caiso_hydro","CISO","physical","hydro"]
["COLGAT_7_UNIT 2","COLGATE POWERHOUSE UNIT 2",175.67,"caiso_hydro","CISO","physical","hydro"]
["COLGNS_2_CNSSR1","COLGREEN NORTH SHORE",74.8,"iid_solar","IID","specifiedimport","utility_pv"]
["COLPIN_6_COLLNS","COLLINS PINE",3.3,"caiso_biomass","CISO","physical","biomass_wood"]
["COLTON_6_AGUAM1","AGUA MANSA UNIT 1 (CITY OF COLTON)",43,"caiso_peaker2","CISO","physical","gas_ct"]
["COLUSA_2_PL1X3","COLUSA GENERATING STATION",641,"caiso_ccgt1","CISO","physical","gas_cc"]
["COLVIL_7_PL1X2","COLLIERVILLE HYDRO UNIT 1 & 2 AGGREGATE",246.86,"caiso_hydro","CISO","physical","hydro"]
["CONTRL_1_CASAD1","MAMMOTH G1",10,"caiso_geothermal","CISO","physical","geothermal"]
["CONTRL_1_CASAD2","MAMMOTH G2",10.5,"caiso_geothermal","CISO","physical","geothermal"]
["CONTRL_1_CASAD3","MAMMOTH G3",14,"caiso_geothermal","CISO","physical","geothermal"]
["CONTRL_1_LUNDY","LUNDY",3,"caiso_small_hydro","CISO","physical","small_hydro"]
["CONTRL_1_OXBOW","DIXIE VALLEY GEO",60,"caiso_geothermal","CISO","physical","geothermal"]
["CONTRL_1_POOLE","POOLE HYDRO PLANT 1",10.9,"caiso_small_hydro","CISO","physical","small_hydro"]
["CONTRL_1_QF","CONTROL QFS",2.9,"caiso_geothermal","CISO","physical","geothermal"]
["CONTRL_1_RUSHCK","RUSH CREEK",11.94,"caiso_small_hydro","CISO","physical","small_hydro"]
["COPMT2_2_SOLAR2","CMS2",155,"caiso_solar","CISO","physical","utility_pv"]
["COPMT4_2_SOLAR4","COPPER MOUNTAIN SOLAR 4",92,"caiso_solar","CISO","physical","utility_pv"]
["COPMTN_2_CM10","COPPER MOUNTAIN 10",10,"caiso_solar","CISO","physical","utility_pv"]
["COPMTN_2_SOLAR1","COPPER MOUNTAIN 48",48,"caiso_solar","CISO","physical","utility_pv"]
["COPPER_MOUNTAIN_3_01","COPPER_MOUNTAIN_3_01",26,"ldwp_solar","LADWP","physical","utility_pv"]
["COPPER_MOUNTAIN_3_02","COPPER_MOUNTAIN_3_02",27,"ldwp_solar","LADWP","physical","utility_pv"]
["COPPER_MOUNTAIN_3_03","COPPER_MOUNTAIN_3_03",26,"ldwp_solar","LADWP","physical","utility_pv"]
["COPPER_MOUNTAIN_3_04","COPPER_MOUNTAIN_3_04",28,"ldwp_solar","LADWP","physical","utility_pv"]
["COPPER_MOUNTAIN_3_05","COPPER_MOUNTAIN_3_05",25,"ldwp_solar","LADWP","physical","utility_pv"]
["COPPER_MOUNTAIN_3_06","COPPER_MOUNTAIN_3_06",26,"ldwp_solar","LADWP","physical","utility_pv"]
["COPPER_MOUNTAIN_3_07","COPPER_MOUNTAIN_3_07",27,"ldwp_solar","LADWP","physical","utility_pv"]
["COPPER_MOUNTAIN_3_08","COPPER_MOUNTAIN_3_08",26,"ldwp_solar","LADWP","physical","utility_pv"]
["COPPER_MOUNTAIN_3_09","COPPER_MOUNTAIN_3_09",24,"ldwp_solar","LADWP","physical","utility_pv"]
["COPPER_MOUNTAIN_3_10","COPPER_MOUNTAIN_3_10",20,"ldwp_solar","LADWP","physical","utility_pv"]
["CORCAN_1_SOLAR1","CID SOLAR",20,"caiso_solar","CISO","physical","utility_pv"]
["CORCAN_1_SOLAR2","CORCORAN CITY",11,"caiso_solar","CISO","physical","utility_pv"]
["CORDOVA_FIR_SOLAR","NAN",9.5,"banc_solar","BANC","physical","utility_pv"]
["CORONS_2_SOLAR","MASTER DEVELOPMENT CORONA",0.99,"caiso_solar","CISO","physical","utility_pv"]
["CORONS_6_CLRWTR","CLEARWATER POWER PLANT",28,"caiso_ccgt2","CISO","physical","gas_cc"]
["CORRAL_6_SJOAQN","AMERESCO SAN JOAQUIN",4.3,"caiso_biomass","CISO","physical","biomass_wood"]
["COSUMNES_CC","NAN",534.6,"banc_ccgt","BANC","physical","gas_cc"]
["COTTLE_2_FRNKNH","FRANKENHEIMER POWER PLANT",5.3,"caiso_small_hydro","CISO","physical","small_hydro"]
["COVERD_2_HCKHY1","HATCHET CREEK",6.89,"caiso_hydro","CISO","physical","hydro"]
["COVERD_2_MCKHY1","MONTGOMERY CREEK HYDRO",2.8,"caiso_hydro","CISO","physical","hydro"]
["COVERD_2_QFUNTS","COVE HYDROELECTRIC PROJECT",5.5,"caiso_small_hydro","CISO","physical","small_hydro"]
["COVERD_2_RCKHY1","ROARING CREEK",2,"caiso_hydro","CISO","physical","hydro"]
["COWCRK_2_UNIT","COW CREEK HYDRO",2,"caiso_small_hydro","CISO","physical","small_hydro"]
["CPSTNO_7_PRMADS","PRIMA DESCHECHA (CAPISTRANO)",6.1,"caiso_biomass","CISO","physical","cogen"]
["CPVERD_2_SOLAR","CAMPO VERDE SOLAR",139,"caiso_solar","CISO","physical","utility_pv"]
["CRELMN_6_RAMON1","RAMONA 1",2,"caiso_solar","CISO","physical","utility_pv"]
["CRELMN_6_RAMON2","RAMONA 2",5,"caiso_solar","CISO","physical","utility_pv"]
["CRELMN_6_RAMSR3","RAMONA SOLAR ENERGY",4.32,"caiso_solar","CISO","physical","utility_pv"]
["CRESSY_1_PARKER","PARKER POWERHOUSE",2.83,"caiso_small_hydro","CISO","physical","small_hydro"]
["CRESTA_7_PL1X2","CRESTA PH UNIT 1 & 2 AGGREGATE",70.400000000000006,"caiso_hydro","CISO","physical","hydro"]
["CRIMSN_2_CRMBT1","Crimson (CAISO), Sonoran West (LSEs)",200,"caiso_li_battery","CISO","physical","hr_batteries"]
["CRIMSN_2_CRMBT2","Crimson 2",150,"caiso_li_battery","CISO","physical","hr_batteries"]
["CRNEVL_6_CRNVA","CRANE VALLEY",0.9,"caiso_small_hydro","CISO","physical","small_hydro"]
["CRNEVL_6_SJQN 2","SAN JOAQUIN 2",3.2,"caiso_hydro","CISO","physical","hydro"]
["CRNEVL_6_SJQN 3","SAN JOAQUIN 3",4.2,"caiso_hydro","CISO","physical","hydro"]
["CROKET_7_UNIT","CROCKETT COGEN",240,"caiso_chp","CISO","physical","cogen"]
["CROWCREEKSOLAR","NAN",20,"caiso_solar","CISO","physical","utility_pv"]
["CROWCREEKSTORAGE","NAN",20,"caiso_li_battery","CISO","physical","hr_batteries"]
["CRSTWD_6_KUMYAY","KUMEYAAY WIND FARM",50,"caiso_wind","CISO","physical","in_state_wind_south"]
["CRWCKS_1_SOLAR1","CROW CREEK SOLAR 1",20,"caiso_solar","CISO","physical","utility_pv"]
["CSCCOG_1_UNIT 1","SANTA CLARA CO-GEN",7,"caiso_peaker1","CISO","physical","cogen"]
["CSCGNR_1_UNIT 1","GIANERA PEAKER UNIT 1",24.75,"caiso_peaker2","CISO","physical","gas_ct"]
["CSCGNR_1_UNIT 2","GIANERA PEAKER UNIT 2",24.75,"caiso_peaker2","CISO","physical","gas_ct"]
["CSLR4S_2_SOLAR","CSOLAR IV SOUTH",130,"caiso_solar","CISO","physical","utility_pv"]
["CSTOGA_6_LNDFIL","CLOVER FLAT LAND FILL GAS",0.85,"caiso_biomass","CISO","physical","biomass_wood"]
["CSTRVL_7_PL1X2","MARINA LAND FILL GAS",4.53,"caiso_biomass","CISO","physical","biomass_wood"]
["CSTRVL_7_QFUNTS","CASTROVILLE QF AGGREGATE",2,"caiso_biomass","CISO","physical","cogen"]
["CTNWDP_1_QF","SMALL QF AGGREGATION - BURNEY",0.5,"caiso_small_hydro","CISO","physical","small_hydro"]
["CUMBIA_1_SOLAR","COLUMBIA SOLAR ENERGY II",19,"caiso_solar","CISO","physical","utility_pv"]
["CUMMNG_6_SUNCT1","SUNSELECT 1",4,"caiso_chp","CISO","physical","cogen"]
["CURTIS_1_CANLCK","CANAL CREEK POWERHOUSE",0.9,"caiso_small_hydro","CISO","physical","small_hydro"]
["CURTIS_1_FARFLD","FAIRFIELD POWERHOUSE",0.9,"caiso_small_hydro","CISO","physical","small_hydro"]
["CUYAMS_6_CUYSR1","CUYAMA SOLAR",40,"caiso_solar","CISO","physical","utility_pv"]
["DAIRLD_1_CR1BM1","NAN",2,"caiso_biogas","CISO","physical","biogas"]
["DAIRLD_1_MD1SL1","MADERA 1",1.5,"caiso_solar","CISO","physical","utility_pv"]
["DAIRLD_1_MD2BM1","MADERA DIGESTER GENSET 2",0.8,"caiso_biomass","CISO","physical","biomass_wood"]
["DALYCT_1_FCELL","NAN",1.6,"caiso_biomass","CISO","physical","biomass_wood"]
["DAVID_TEVELDE_DAIRY_DIGESTER","NAN",1,"caiso_biogas","CISO","physical","biogas"]
["DAVIS_1_SOLAR1","GRASSLANDS 3",1,"caiso_solar","CISO","physical","utility_pv"]
["DAVIS_1_SOLAR2","GRASSLANDS 4",1,"caiso_solar","CISO","physical","utility_pv"]
["DAVIS_7_MNMETH","MM YOLO POWER LLC",4,"caiso_biogas","CISO","physical","biogas"]
["DEADCK_1_UNIT","DEADCK_1_UNIT",2,"caiso_small_hydro","CISO","physical","small_hydro"]
["DEERCR_6_UNIT 1","DEER CREEK",7,"caiso_hydro","CISO","physical","hydro"]
["DEL_RANCH_COMPANY","NAN",42,"iid_geothermal","IID","physical","geothermal"]
["DELAMO_2_SOLAR1","GOLDEN SPRINGS BUILDING H",1.5,"caiso_solar","CISO","physical","utility_pv"]
["DELAMO_2_SOLAR2","GOLDEN SPRINGS BUILDING M",1.75,"caiso_solar","CISO","physical","utility_pv"]
["DELAMO_2_SOLAR3","GOLDEN SPRINGS BUILDING G",1.25,"caiso_solar","CISO","physical","utility_pv"]
["DELAMO_2_SOLAR4","GOLDEN SPRINGS BUILDING F",1.3,"caiso_solar","CISO","physical","utility_pv"]
["DELAMO_2_SOLAR5","GOLDEN SPRINGS BUILDING L",1,"caiso_solar","CISO","physical","utility_pv"]
["DELAMO_2_SOLAR6","FREEWAY SPRINGS",2,"caiso_solar","CISO","physical","utility_pv"]
["DELAMO_2_SOLRC1","GOLDEN SPRINGS BUILDING C1",1.1599999999999999,"caiso_solar","CISO","physical","utility_pv"]
["DELAMO_2_SOLRD","GOLDEN SOLAR BUILDING D",1.25,"caiso_solar","CISO","physical","utility_pv"]
["DELSUR_6_BSOLAR","CENTRAL ANTELOPE DRY RANCH B",3,"caiso_solar","CISO","physical","utility_pv"]
["DELSUR_6_CREST","NAN",10,"caiso_solar","CISO","physical","utility_pv"]
["DELSUR_6_DRYFRB","DRY FARM RANCH B",5,"caiso_solar","CISO","physical","utility_pv"]
["DELSUR_6_SOLAR1","SUMMER SOLAR NORTH",6.5,"caiso_solar","CISO","physical","utility_pv"]
["DELSUR_6_SOLAR4","RADIANCE SOLAR 4",1.5,"caiso_solar","CISO","physical","utility_pv"]
["DELSUR_6_SOLAR5","RADIANCE SOLAR 5",1.5,"caiso_solar","CISO","physical","utility_pv"]
["DELTA_2_PL1X4","DELTA ENERGY CENTER AGGREGATE",880,"caiso_ccgt1","CISO","physical","gas_cc"]
["DESERT_POWER_3","NAN",50,"iid_geothermal","IID","physical","geothermal"]
["DESERT_VIEW","NAN",50,"caiso_biomass","IID","physical","biogas"]
["DEVERS_1_QF","NAN",92.639805999999993,"caiso_wind","CISO","physical","in_state_wind_south"]
["DEVERS_1_SEPV05","SEPV 5",2,"caiso_solar","CISO","physical","utility_pv"]
["DEVERS_1_SOLAR","CASCADE SOLAR",18.5,"caiso_solar","CISO","physical","utility_pv"]
["DEVERS_1_SOLAR1","SEPV8",12,"caiso_solar","CISO","physical","utility_pv"]
["DEVERS_1_SOLAR2","SEPV9",9,"caiso_solar","CISO","physical","utility_pv"]
["DEVERS_2_CS2SR4","CALIENTE SOLAR 2",0.91,"caiso_solar","CISO","physical","utility_pv"]
["DEVERS_2_DHSPG2","DESERT HOT SPRINGS 2",1.4,"caiso_solar","CISO","physical","utility_pv"]
["DEXZEL_1_UNIT","WESTERN POWER AND STEAM COGENERATION",20,"caiso_chp","CISO","physical","cogen"]
["DIABLO_7_UNIT 1","DIABLO CANYON UNIT 1",1150,"caiso_nuclear","CISO","physical","nuclear"]
["DIABLO_7_UNIT 2","DIABLO CANYON UNIT 2",1150,"caiso_nuclear","CISO","physical","nuclear"]
["DIAMOND_H_DAIRY_POWER","NAN",2,"caiso_biogas","CISO","physical","biogas"]
["DINUBA_6_UNIT","NAN",12,"caiso_biomass","CISO","physical","biomass_wood"]
["DISCOV_1_CHEVRN","CHEVRON USA (EASTRIDGE)",48.8,"caiso_chp","CISO","physical","cogen"]
["DIVSON_6_NSQF","NAN",47,"caiso_chp","CISO","physical","cogen"]
["DIXNLD_1_LNDFL","ZERO WASTE ENERGY",1.6,"caiso_biomass","CISO","physical","biomass_wood"]
["DMDVLY_1_UNITS","DIAMOND VALLEY LAKE PUMP-GEN PLANT",21,"caiso_hydro","CISO","physical","hydro"]
["DONNLS_7_UNIT","DONNELLS HYDRO",72,"caiso_hydro","CISO","physical","hydro"]
["DOSMGO_2_NSPIN","DOSMGO_2_NSPIN",159,"caiso_pumped_hydro","CISO","physical","pumped_storage"]
["DOUBLC_1_UNITS","DOUBLE \"C\" LIMITED",52.23,"caiso_peaker2","CISO","physical","gas_ct"]
["DOUBLEADIGESTER1","NAN",1.5,"caiso_biomass","CISO","physical","biomass_wood"]
["DOUBLEADIGESTER2","NAN",1.5,"caiso_biomass","CISO","physical","biomass_wood"]
["DOUBLEADIGESTER3","NAN",1.5,"caiso_biomass","CISO","physical","biomass_wood"]
["DRACKR_2_D4SR4B","DRACKER SOLAR UNIT 4B",62.5,"caiso_solar","CISO","physical","utility_pv"]
["DRACKR_2_DS3SR3","DRACKER SOLAR UNIT 3",125,"caiso_solar","CISO","physical","utility_pv"]
["DRACKR_2_DS4SR4","DRACKER SOLAR UNIT 4",62.5,"caiso_solar","CISO","physical","utility_pv"]
["DRACKR_2_DSUBT1","DRACKER SOLAR UNIT 1 BESS",63,"caiso_li_battery","CISO","physical","hr_batteries"]
["DRACKR_2_DSUBT2","DRACKER SOLAR UNIT 2 BESS",115,"caiso_li_battery","CISO","physical","hr_batteries"]
["DRACKR_2_DSUBT3","DRACKER SOLAR UNIT 3 BESS",115,"caiso_li_battery","CISO","physical","hr_batteries"]
["DRACKR_2_DSUBT4","Dracker Solar Unit 4 BESS",47,"caiso_li_battery","CISO","physical","hr_batteries"]
["DRACKR_2_SOLAR1","DRACKER SOLAR UNIT 1",110,"caiso_solar","CISO","physical","utility_pv"]
["DRACKR_2_SOLAR2","DRACKER SOLAR UNIT 2",125,"caiso_solar","CISO","physical","utility_pv"]
["DRACKR_3_DSUBT3","NAN",115,"caiso_li_battery","CISO","physical","hr_batteries"]
["DREWS_6_PL1X4","DREWS GENERATING PLANT",41.4,"caiso_peaker1","CISO","physical","gas_ct"]
["DREWSR_2_BHSSR1","Blue Hornet Solar",100,"caiso_solar","CISO","physical","utility_pv"]
["DRUM_7_PL1X2","DRUM PH 1 UNITS 1 & 2 AGGREGATE",26,"caiso_hydro","CISO","physical","hydro"]
["DRUM_7_PL3X4","DRUM PH 1 UNITS 3 & 4 AGGREGATE",28.9,"caiso_hydro","CISO","physical","hydro"]
["DRUM_7_UNIT 5","DRUM PH 2 UNIT 5",50,"caiso_hydro","CISO","physical","hydro"]
["DSABLA_7_UNIT","DE SABLA HYDRO",18.5,"caiso_small_hydro","CISO","physical","small_hydro"]
["DSFLWR_2_WS2SR1","WILLOW SPRINGS 2",100,"caiso_solar","CISO","physical","utility_pv"]
["DSRTHV_2_DH1SR1","DESERT HARVEST",80,"caiso_solar","CISO","physical","utility_pv"]
["DSRTHV_2_DH2BT1","DESERT HARVEST BESS",35,"caiso_li_battery","CISO","physical","hr_batteries"]
["DSRTHV_2_DH2SR2","DESERT HARVEST 2",70,"caiso_solar","CISO","physical","utility_pv"]
["DSRTSL_2_SOLAR1","DESERT STATELINE",296.19,"caiso_solar","CISO","physical","utility_pv"]
["DSRTSN_2_DS2X2","Desert Sunlight PV II Storage",230,"caiso_li_battery","CISO","physical","hr_batteries"]
["DSRTSN_2_SOLAR1","DESERT SUNLIGHT 300",300,"caiso_solar","CISO","physical","utility_pv"]
["DSRTSN_2_SOLAR2","DESERT SUNLIGHT 250",250,"caiso_solar","CISO","physical","utility_pv"]
["DTCHWD_2_BT3WND","BROOKFIELD TEHACHAPI 3",4.5,"caiso_wind","CISO","physical","in_state_wind_south"]
["DTCHWD_2_BT4WND","BROOKFIELD TEHACHAPI 4",6.52,"caiso_wind","CISO","physical","in_state_wind_south"]
["DUANE_1_PL1X3","DONALD VON RAESFELD POWER PROJECT",147.80000000000001,"caiso_ccgt2","CISO","physical","gas_cc"]
["DURNMESA_3_WBDYN","DURAN MESA",105.08,"caiso_wind","PNM","specifiedimport","out_of_state_wind_AZNM"]
["DUTCH1_7_UNIT 1","DUTCH FLAT 1 PH",22,"caiso_hydro","CISO","physical","hydro"]
["DUTCH2_7_UNIT 1","DUTCH FLAT 2 PH",26,"caiso_hydro","CISO","physical","hydro"]
["DVLCYN_1_UNITS","DEVIL CANYON HYDRO UNITS 1-4 AGGREGATE",235,"caiso_hydro","CISO","physical","hydro"]
["DYERSM_6_DSWWD1","DYER SUMMIT WIND REPOWER",44.8,"caiso_wind","CISO","physical","in_state_wind_north"]
["EARTH_ENERGY_1","NAN",11,"iid_geothermal","IID","physical","geothermal"]
["EASTWD_7_UNIT","EASTWOOD PUMP-GEN",200,"caiso_pumped_hydro","CISO","physical","pumped_storage"]
["EDMONS_2_NSPIN","EDMONS_2_NSPIN",775.8,"caiso_pumped_hydro","CISO","physical","pumped_storage"]
["EDWARD_2_E21SB1_LESR","EdSan 2 Edwards 1A",71,"caiso_li_battery","CISO","physical","hr_batteries"]
["EDWARD_2_E21SB1_SUN","EdSan 2 Edwards 1A",95,"caiso_solar","CISO","physical","utility_pv"]
["EDWARD_2_E23SB1","EdSan 2 Edwards 3",18,"caiso_solar","CISO","physical","utility_pv"]
["EDWARD_2_E23SB1_LESR","EdSan 2 Edwards 3",12,"caiso_li_battery","CISO","physical","hr_batteries"]
["EDWARD_2_ES2BT3","EdSan 2",85,"caiso_solar","CISO","physical","utility_pv"]
["EDWARD_2_ES2BT3_LESR","EdSan 2",66,"caiso_li_battery","CISO","physical","hr_batteries"]
["EEKTMN_6_SOLAR1","EE K SOLAR 1",20,"caiso_solar","CISO","physical","utility_pv"]
["EL_CENTRO_4","NAN",70,"iid_ccgt","IID","physical","gas_cc"]
["EL_CENTRO_CC2","NAN",108.8,"iid_ccgt","IID","physical","gas_cc"]
["EL_CENTRO_CC3","NAN",146.5,"iid_ccgt","IID","physical","gas_cc"]
["ELCABO_5_ECWSCEDYN","EL CABO WIND",298,"caiso_wind","AZPS","specifiedimport","out_of_state_wind_AZNM"]
["ELCAJN_6_DRGEN1","NAN",3,"caiso_li_battery","CISO","physical","hr_batteries"]
["ELCAJN_6_DRGEN2","NAN",1,"caiso_li_battery","CISO","physical","hr_batteries"]
["ELCAJN_6_EB1BT1","EASTERN BESS 1",7.5,"caiso_li_battery","CISO","physical","hr_batteries"]
["ELCAJN_6_LM6K","EL CAJON ENERGY CENTER",48.1,"caiso_peaker2","CISO","physical","gas_ct"]
["ELCAJN_6_UNITA1","CUYAMACA PEAK ENERGY PLANT",45.42,"caiso_peaker1","CISO","physical","gas_ct"]
["ELCAP_1_SOLAR","2097 HELTON",1.5,"caiso_solar","CISO","physical","utility_pv"]
["ELDORO_7_UNIT 1","EL DORADO UNIT 1",11,"caiso_hydro","CISO","physical","hydro"]
["ELDORO_7_UNIT 2","EL DORADO UNIT 2",11,"caiso_hydro","CISO","physical","hydro"]
["ELECTR_7_PL1X3","ELECTRA PH UNIT 1 & 2 AGGREGATE",93,"caiso_hydro","CISO","physical","hydro"]
["ELK_GROVE_1_SOLAR","NAN",50.9,"banc_solar","BANC","physical","utility_pv"]
["ELK_GROVE_2_SOLAR","NAN",37.9,"banc_solar","BANC","physical","utility_pv"]
["ELKCRK_6_STONYG","STONEY GORGE HYDRO AGGREGATE",4.9000000000000004,"caiso_small_hydro","CISO","physical","small_hydro"]
["ELKHIL_2_PL1X3","ELK HILLS COMBINED CYCLE (AGGREGATE)",551.70000000000005,"caiso_ccgt1","CISO","physical","gas_cc"]
["ELKHRN_1_EESX3","ELKHORN ENERGY STORAGE",182.5,"caiso_li_battery","CISO","physical","hr_batteries"]
["ELLIS_2_QF","ELLIS QFS",12,"caiso_peaker1","CISO","physical","gas_ct"]
["ELNIDP_6_BIOMAS","EL NIDO BIOMASS TO ENERGY",10.5,"caiso_biomass","CISO","physical","biomass_wood"]
["ELSEGN_2_UN1011","EL SEGUNDO ENERGY CENTER 5/6",263,"caiso_ccgt2","CISO","physical","gas_cc"]
["ELSEGN_2_UN2021","EL SEGUNDO ENERGY CENTER 7/8",263.68,"caiso_ccgt1","CISO","physical","gas_cc"]
["ENELBELLASTORAGE","NAN",10,"caiso_li_battery","CISO","physical","hr_batteries"]
["ENERGETICS_PV","NAN",4.8,"caiso_solar","CISO","physical","utility_pv"]
["ENERSJ_2_WIND","ESJ WIND ENERGY",155.1,"caiso_wind","CISO","physical","in_state_wind_south"]
["ENERSJ_5_ESJWD2","ENERGIA_SIERRA_JUAREZ_2_US_LLC",105,"caiso_wind","CISO","physical","in_state_wind_south"]
["ENWIND_2_WIND1","CAMERON RIDGE",47.1,"caiso_wind","CISO","physical","in_state_wind_south"]
["ENWIND_2_WIND2","RIDGETOP I",38.24,"caiso_wind","CISO","physical","in_state_wind_south"]
["ESCNDO_6_EB1BT1","ESCONDIDO BESS 1",10,"caiso_li_battery","CISO","physical","hr_batteries"]
["ESCNDO_6_EB2BT2","ESCONDIDO BESS 2",10,"caiso_li_battery","CISO","physical","hr_batteries"]
["ESCNDO_6_EB3BT3","ESCONDIDO BESS 3",10,"caiso_li_battery","CISO","physical","hr_batteries"]
["ESCNDO_6_PL1X2","MMC ESCONDIDO AGGREGATE",48.71,"caiso_peaker2","CISO","physical","gas_ct"]
["ESCNDO_6_UNITB1","CALPEAK POWER ENTERPRISE UNIT 1",48.04,"caiso_peaker2","CISO","physical","gas_ct"]
["ESCO_6_GLMQF","GOAL LINE COGEN",49.9,"caiso_chp","CISO","physical","cogen"]
["ESNHWR_2_WC1BT1","Wildcat I BESS",3,"caiso_li_battery","CISO","physical","hr_batteries"]
["ESQUON_6_LNDFIL","NEAL ROAD LANDFILL GENERATING FACILITY",2.1,"caiso_biomass","CISO","physical","biomass_wood"]
["ESTWND_2_OPPWD1","Oasis Power Plant Eastwind",57.14,"caiso_wind","CISO","physical","in_state_wind_south"]
["ETIWND_2_CHMPNE","CHAMPAGNE",1,"caiso_solar","CISO","physical","utility_pv"]
["ETIWND_2_FONTNA","FONTANALYTLE CREEK POWERHOUSE P",2.56,"caiso_small_hydro","CISO","physical","small_hydro"]
["ETIWND_2_RTS010","SPVP010 FONTANA RT SOLAR",1.5,"caiso_solar","CISO","physical","utility_pv"]
["ETIWND_2_RTS015","SPVP015",3,"caiso_solar","CISO","physical","utility_pv"]
["ETIWND_2_RTS017","SPVP017",3.5,"caiso_solar","CISO","physical","utility_pv"]
["ETIWND_2_RTS018","SPVP018 FONTANA RT SOLAR",1.5,"caiso_solar","CISO","physical","utility_pv"]
["ETIWND_2_RTS023","SPVP023 FONTANA RT SOLAR",2.5,"caiso_solar","CISO","physical","utility_pv"]
["ETIWND_2_RTS026","SPVP026",6,"caiso_solar","CISO","physical","utility_pv"]
["ETIWND_2_RTS027","SPVP027",2,"caiso_solar","CISO","physical","utility_pv"]
["ETIWND_2_SOLAR1","DEDEAUX ONTARIO",1,"caiso_solar","CISO","physical","utility_pv"]
["ETIWND_2_SOLAR2","ROCHESTER",1,"caiso_solar","CISO","physical","utility_pv"]
["ETIWND_2_SOLAR5","DULLES",2,"caiso_solar","CISO","physical","utility_pv"]
["ETIWND_2_UNIT1","ETIWND_2_UNIT1",33.6,"caiso_chp","CISO","physical","cogen"]
["ETIWND_6_GRPLND","GRAPELAND PEAKER",47.39,"caiso_peaker1","CISO","physical","gas_ct"]
["ETIWND_6_MWDETI","ETIWANDA RECOVERY HYDRO",24,"caiso_small_hydro","CISO","physical","small_hydro"]
["EXCHEC_7_UNIT 1","EXCHEQUER HYDRO",94.5,"caiso_hydro","CISO","physical","hydro"]
["EXCLSG_1_SOLAR","EXCELSIOR SOLAR",60,"caiso_solar","CISO","physical","utility_pv"]
["FAIRHV_6_UNIT","NAN",18.75,"caiso_biomass","CISO","physical","biomass_wood"]
["FALLBROOKSTORAGE","NAN",40,"caiso_li_battery","CISO","physical","hr_batteries"]
["FELLOW_7_QFUNTS","FELLOW QF AGGREGATE",6.2,"caiso_chp","CISO","physical","cogen"]
["FLOWD_2_RT2WD2","RIDGETOP 2",27.39,"caiso_wind","CISO","physical","in_state_wind_south"]
["FLOWD_2_WIND1","CAMERON RIDGE 2",11.9,"caiso_wind","CISO","physical","in_state_wind_south"]
["FLOWD2_2_FPLWND","DIABLO WINDS",18,"caiso_wind","CISO","physical","in_state_wind_north"]
["FMEADO_6_HELLHL","FMEADO_6_HELLHL",0.6,"caiso_hydro","CISO","physical","hydro"]
["FMEADO_7_UNIT","FRENCH MEADOWS HYDRO",16,"caiso_small_hydro","CISO","physical","small_hydro"]
["FORBST_7_UNIT 1","FORBESTOWN HYDRO",37.5,"caiso_hydro","CISO","physical","hydro"]
["FORKBU_6_UNIT","HYPOWER, INC. (FORKS OF BUTTE)",14.3,"caiso_hydro","CISO","physical","hydro"]
["FRESHW_1_SOLAR1","CORCORAN 3",20,"caiso_solar","CISO","physical","utility_pv"]
["FRESNOSOLAR","NAN",100,"caiso_solar","CISO","physical","utility_pv"]
["FRESNOSTORAGE","NAN",10,"caiso_li_battery","CISO","physical","hr_batteries"]
["FRIANT_6_UNITS","FRIANT DAM",25,"caiso_small_hydro","CISO","physical","small_hydro"]
["FRITO_1_LAY","FRITO-LAY",6,"caiso_chp","CISO","physical","cogen"]
["FRNTBW_6_SOLAR1","FRONTIER SOLAR",20,"caiso_solar","CISO","physical","utility_pv"]
["FROGTN_1_UTICAA","ANGELS POWERHOUSE",1.4,"caiso_hydro","CISO","physical","hydro"]
["FROGTN_1_UTICAM","MURPHYS POWERHOUSE",3.6,"caiso_hydro","CISO","physical","hydro"]
["FTSWRD_6_TRFORK","THREE FORKS WATER POWER PROJECT",1.63,"caiso_small_hydro","CISO","physical","small_hydro"]
["FTSWRD_7_QFUNTS","FTSWRD_7_QFUNTS",1.6,"caiso_small_hydro","CISO","physical","small_hydro"]
["FULTON_1_QF","SMALL QF AGGREGATION - ZENIA",1,"caiso_small_hydro","CISO","physical","small_hydro"]
["GALE_1_SR3SR3","SUNRAY 3",13.8,"caiso_solar","CISO","physical","utility_pv"]
["GANSO_1_WSTBM1","WESTSTAR DAIRY BIOGAS",1,"caiso_biogas","CISO","physical","biogas"]
["GARLND_2_GARBT1","GARLAND STORAGE",88,"caiso_li_battery","CISO","physical","hr_batteries"]
["GARLND_2_GASLR","GARLAND B",180,"caiso_solar","CISO","physical","utility_pv"]
["GARLND_2_GASLRA","GARLAND A",20,"caiso_solar","CISO","physical","utility_pv"]
["GARNET_1_SOLAR","NORTH PALM SPRINGS 4A",4,"caiso_solar","CISO","physical","utility_pv"]
["GARNET_1_SOLAR2","GARNET SOLAR POWER GENERATION STATION 1",4,"caiso_solar","CISO","physical","utility_pv"]
["GARNET_1_UNITS","GARNET GREEN POWER PROJECT AGGREGATE",16.5,"caiso_wind","CISO","physical","in_state_wind_south"]
["GARNET_1_WIND","GARNET WIND ENERGY CENTER",6.5,"caiso_wind","CISO","physical","in_state_wind_south"]
["GARNET_1_WINDS","GARNET WINDS AGGREGATION",22.5,"caiso_wind","CISO","physical","in_state_wind_south"]
["GARNET_1_WT3WND","WAGNER WIND",6,"caiso_wind","CISO","physical","in_state_wind_south"]
["GARNET_2_COAWD2","COACHELLA 2",10.8,"caiso_wind","CISO","physical","in_state_wind_south"]
["GARNET_2_DIFWD1","NAN",7.88,"caiso_wind","CISO","physical","in_state_wind_south"]
["GARNET_2_HYDRO","WHITEWATER HYDRO",1,"caiso_small_hydro","CISO","physical","small_hydro"]
["GARNET_2_WIND1","PHOENIX",11.2,"caiso_wind","CISO","physical","in_state_wind_south"]
["GARNET_2_WIND2","KAREN AVENUE WIND FARM",11.7,"caiso_wind","CISO","physical","in_state_wind_south"]
["GARNET_2_WIND3","SAN GORGONIO EAST",12.6,"caiso_wind","CISO","physical","in_state_wind_south"]
["GARNET_2_WIND4","WINDUSTRIES",9.8000000000000007,"caiso_wind","CISO","physical","in_state_wind_south"]
["GARNET_2_WIND5","EASTWIND",3,"caiso_wind","CISO","physical","in_state_wind_south"]
["GARNET_2_WPMWD6","WINTEC PALM",5.93,"caiso_wind","CISO","physical","in_state_wind_south"]
["GASKW1_2_GW1SR1","GASKELL WEST 1",20,"caiso_solar","CISO","physical","utility_pv"]
["GATES_2_SOLAR","GATES SOLAR STATION",20,"caiso_solar","CISO","physical","utility_pv"]
["GATES_2_WSOLAR","WEST GATES SOLAR STATION",10,"caiso_solar","CISO","physical","utility_pv"]
["GATEWY_2_GESBT1","GATEWAY ENERGY STROAGE",250,"caiso_li_battery","CISO","physical","hr_batteries"]
["GATWAY_2_PL1X3","GATEWAY GENERATING STATION",585,"caiso_ccgt1","CISO","physical","gas_cc"]
["GENESI_2_STG","GENESIS STATION",250,"caiso_solar","CISO","physical","utility_pv"]
["GEO_EAST_MESA_2_1","NAN",22,"iid_geothermal","IID","physical","geothermal"]
["GEO_EAST_MESA_3_1","NAN",22,"iid_geothermal","IID","physical","geothermal"]
["GEO_EAST_MESA_3_2","NAN",10,"iid_geothermal","IID","physical","geothermal"]
["GEYS11_7_UNIT11","GEYSERS UNIT 11 (HEALDSBURG)",86.8,"caiso_geothermal","CISO","physical","geothermal"]
["GEYS12_7_UNIT12","GEYSERS UNIT 12 (HEALDSBURG)",57,"caiso_geothermal","CISO","physical","geothermal"]
["GEYS13_7_UNIT13","GEYSERS UNIT 13 (HEALDSBURG)",73,"caiso_geothermal","CISO","physical","geothermal"]
["GEYS14_7_UNIT14","GEYSERS UNIT 14 (HEALDSBURG)",70,"caiso_geothermal","CISO","physical","geothermal"]
["GEYS16_7_UNIT16","GEYSERS UNIT 16 (HEALDSBURG)",63,"caiso_geothermal","CISO","physical","geothermal"]
["GEYS17_2_BOTRCK","NAN",10.01,"caiso_geothermal","CISO","physical","geothermal"]
["GEYS17_7_UNIT17","GEYSERS UNIT 17 (HEALDSBURG)",75.5,"caiso_geothermal","CISO","physical","geothermal"]
["GEYS18_7_UNIT18","GEYSERS UNIT 18 (HEALDSBURG)",72,"caiso_geothermal","CISO","physical","geothermal"]
["GEYS20_7_UNIT20","GEYSERS UNIT 20 (HEALDSBURG)",50,"caiso_geothermal","CISO","physical","geothermal"]
["GIFENS_6_BUGSL1","BURFORD GIFFEN",20,"caiso_solar","CISO","physical","utility_pv"]
["GIFFEN_6_SOLAR","GIFFEN SOLAR STATION",10,"caiso_solar","CISO","physical","utility_pv"]
["GIFFEN_6_SOLAR1","ASPIRATION SOLAR G",9,"caiso_solar","CISO","physical","utility_pv"]
["GILROY_1_UNIT","GILROY COGEN AGGREGATE",120,"caiso_ccgt1","CISO","physical","gas_ct"]
["GILRPP_1_PL1X2","GILROY ENERGY CENTER UNITS 1&2 AGGREGATE",95.2,"caiso_peaker2","CISO","physical","gas_ct"]
["GILRPP_1_PL3X4","GILROY ENERGY CENTER, UNIT #3",46.2,"caiso_peaker2","CISO","physical","gas_ct"]
["GLDFGR_6_SOLAR1","PORTAL RIDGE B",20,"caiso_solar","CISO","physical","utility_pv"]
["GLDFGR_6_SOLAR2","PORTAL RIDGE C",11.4,"caiso_solar","CISO","physical","utility_pv"]
["GLDTWN_6_COLUM3","COLUMBIA 3",10,"caiso_solar","CISO","physical","utility_pv"]
["GLDTWN_6_SOLAR","RIO GRANDE",5,"caiso_solar","CISO","physical","utility_pv"]
["GLNARM_2_UNIT 5","GLENARM TURBINE 5",65.81,"caiso_peaker2","CISO","physical","gas_cc"]
["GLNARM_7_UNIT 1","GLEN ARM UNIT 1",22.07,"caiso_peaker2","CISO","physical","gas_ct"]
["GLNARM_7_UNIT 2","GLEN ARM UNIT 2",22.3,"caiso_peaker2","CISO","physical","gas_ct"]
["GLNARM_7_UNIT 3","GLEN ARM UNIT 3",44.83,"caiso_peaker1","CISO","physical","gas_ct"]
["GLNARM_7_UNIT 4","GLEN ARM UNIT 4",42.42,"caiso_peaker1","CISO","physical","gas_ct"]
["GLOW_6_SOLAR","ANTELOPE POWER PLANT",20,"caiso_solar","CISO","physical","utility_pv"]
["GOLETA_2_QF","GOLETA QFS",0.25,"caiso_small_hydro","CISO","physical","small_hydro"]
["GOLETA_2_VALBT1","VALLECITO ENERGY STORAGE",10,"caiso_li_battery","CISO","physical","hr_batteries"]
["GOLETA_6_ELLWOD","ELLWOOD ENERGY SUPPORT FACILITY",54,"caiso_peaker2","CISO","physical","gas_ct"]
["GOLETA_6_EXGEN","EXXON COMPANY USA",48.2,"caiso_chp","CISO","physical","cogen"]
["GOLETA_6_GAVOTA","NAN",9.9,"caiso_chp","CISO","physical","cogen"]
["GOLETA_6_TAJIGS","NAN",2.84,"caiso_biogas","CISO","physical","biogas"]
["GOLETA_6_TR2BM2","Tajiguas Biogas Engines",1.99,"caiso_biomass","CISO","physical","biogas"]
["GONZLS_6_UNIT","JOHNSON CANYON LANDFILL",1.42,"caiso_biomass","CISO","physical","biomass_wood"]
["GOOSLK_1_SOLAR1","GOOSE LAKE",12,"caiso_solar","CISO","physical","utility_pv"]
["GRADYW_5_GDYWD1","GRADY WIND",200,"caiso_wind","AZPS","specifiedimport","out_of_state_wind_AZNM"]
["GRAYSON_3","NAN",18,"ldwp_st","LADWP","physical","steam"]
["GRAYSON_4","NAN",40,"ldwp_st","LADWP","physical","steam"]
["GRAYSON_5","NAN",40,"ldwp_st","LADWP","physical","steam"]
["GRAYSON_9","NAN",48,"ldwp_peaker","LADWP","physical","gas_ct"]
["GRAYSON_CC","NAN",102,"ldwp_ccgt","LADWP","physical","gas_cc"]
["GRIDLY_6_SOLAR","GRIDLEY MAIN TWO",2.5,"caiso_solar","CISO","physical","utility_pv"]
["GRIFFI_2_LSPDYN","GRIFFITH ENERGY",570,"sw_ccgt","WALC","specifiedimport","gas_cc"]
["GRIZLY_1_UNIT 1","GRIZZLY HYDRO",20,"caiso_hydro","CISO","physical","hydro"]
["GRNITE_6_ESCBT1","EnerSmart El Cajon",3,"caiso_li_battery","CISO","physical","hr_batteries"]
["GRNLF1_1_PL1X2","Greenleaf 1",60,"caiso_peaker2","CISO","physical","gas_ct"]
["GRNLF1_1_UNITS","NAN",49.2,"caiso_peaker1","CISO","physical","gas_ct"]
["GRNLF2_1_UNIT","GREENLEAF II COGEN",49.2,"caiso_chp","CISO","physical","cogen"]
["GRNVLY_7_SCLAND","SANTA CRUZ LANDFILL GENERATING PLANT",3.04,"caiso_biomass","CISO","physical","biomass_wood"]
["GRSCRK_6_BGCKWW","BIG CREEK WATER WORKS - CEDAR FLAT",5,"caiso_small_hydro","CISO","physical","small_hydro"]
["GRZZLY_1_BERKLY","BERKELEY COGENERATION",26.35,"caiso_chp","CISO","physical","cogen"]
["GUERNS_6_HD3BM3","HANFORD DIGESTER GENSET 3",1,"caiso_biogas","CISO","physical","biogas"]
["GUERNS_6_SOLAR","GUERNSEY SOLAR STATION",20,"caiso_solar","CISO","physical","utility_pv"]
["GUERNS_6_VH2BM1","HANFORD DIGESTER GENSET 2",1,"caiso_biogas","CISO","physical","biogas"]
["GWFPWR_1_UNITS","HANFORD PEAKER PLANT",98.46,"caiso_peaker2","CISO","physical","gas_ct"]
["GYS5X6_7_UNITS","GEYSERS UNITS 5 & 6 AGGREGATE",98.43,"caiso_geothermal","CISO","physical","geothermal"]
["GYS7X8_7_UNITS","GEYSERS UNITS 7 & 8 AGGREGATE",95.8,"caiso_geothermal","CISO","physical","geothermal"]
["GYSRVL_7_WSPRNG","WARM SPRINGS HYDRO",3.75,"caiso_small_hydro","CISO","physical","small_hydro"]
["HAASPH_7_PL1X2","HAAS PH UNIT 1 & 2 AGGREGATE",144,"caiso_hydro","CISO","physical","hydro"]
["HALSEY_6_UNIT","HALSEY HYDRO",13.5,"caiso_small_hydro","CISO","physical","small_hydro"]
["HARBGN_7_UNITS","HARBOR COGEN COMBINED CYCLE",109.01,"caiso_ccgt2","CISO","physical","gas_cc"]
["HARBOR_CC","NAN",231,"ldwp_ccgt","LADWP","physical","gas_cc"]
["HARBOR_UNIT_10","NAN",49,"ldwp_peaker","LADWP","physical","gas_ct"]
["HARBOR_UNIT_11","NAN",49,"ldwp_peaker","LADWP","physical","gas_ct"]
["HARBOR_UNIT_12","NAN",49,"ldwp_peaker","LADWP","physical","gas_ct"]
["HARBOR_UNIT_13","NAN",49,"ldwp_peaker","LADWP","physical","gas_ct"]
["HARBOR_UNIT_14","NAN",49,"ldwp_peaker","LADWP","physical","gas_ct"]
["HARDWK_6_STWBM1","STILL WATER RANCH DAIRY",1,"caiso_biogas","CISO","physical","biogas"]
["HAT_CREEK_BIOENERGY__LLC","NAN",2.88,"caiso_biomass","CISO","physical","biomass_wood"]
["HATCR1_7_UNIT","HAT CREEK  #1",8.5,"caiso_small_hydro","CISO","physical","small_hydro"]
["HATCR2_7_UNIT","HAT CREEK  #2",8.5,"caiso_small_hydro","CISO","physical","small_hydro"]
["HATLOS_6_BWDHY1","BIDWELL DITCH",2,"caiso_hydro","CISO","physical","hydro"]
["HATLOS_6_LSCRK","LOST CREEK 1 & 2 HYDRO CONVERSION",1.7,"caiso_small_hydro","CISO","physical","small_hydro"]
["HATRDG_2_WIND","HATCHET RIDGE WIND FARM",102,"caiso_wind","CISO","physical","in_state_wind_north"]
["HAYNES_1","NAN",222,"ldwp_st","LADWP","physical","steam"]
["HAYNES_11","NAN",96,"ldwp_peaker","LADWP","physical","gas_ct"]
["HAYNES_12","NAN",96,"ldwp_peaker","LADWP","physical","gas_ct"]
["HAYNES_13","NAN",96,"ldwp_peaker","LADWP","physical","gas_ct"]
["HAYNES_14","NAN",96,"ldwp_peaker","LADWP","physical","gas_ct"]
["HAYNES_15","NAN",96,"ldwp_peaker","LADWP","physical","gas_ct"]
["HAYNES_16","NAN",96,"ldwp_peaker","LADWP","physical","gas_ct"]
["HAYNES_2","NAN",222,"ldwp_st","LADWP","physical","steam"]
["HAYNES_CC","NAN",590,"ldwp_ccgt","LADWP","physical","gas_cc"]
["HAYPRS_6_HAYHD1","HAYPRESS LOWER",5.8,"caiso_small_hydro","CISO","physical","small_hydro"]
["HAYPRS_6_HAYHD2","HAYPRESS MIDDLE",6.7,"caiso_small_hydro","CISO","physical","small_hydro"]
["HEBER_GEO_1","NAN",8.75,"iid_geothermal","IID","physical","geothermal"]
["HEBER_GEO_2","NAN",4.37,"iid_geothermal","IID","physical","geothermal"]
["HEBER_GEO_COMPLEX","NAN",52,"iid_geothermal","IID","physical","geothermal"]
["HEBER_II","NAN",16,"iid_geothermal","IID","physical","geothermal"]
["HEBER_SOLAR_PV","NAN",10,"iid_solar","IID","physical","utility_pv"]
["HEDGE_SOLAR","NAN",1.5,"banc_solar","BANC","physical","utility_pv"]
["HELMPG_7_UNIT 1","HELMS PUMP-GEN UNIT 1",407,"caiso_pumped_hydro","CISO","physical","pumped_storage"]
["HELMPG_7_UNIT 2","HELMS PUMP-GEN UNIT 2",407,"caiso_pumped_hydro","CISO","physical","pumped_storage"]
["HELMPG_7_UNIT 3","HELMS PUMP-GEN UNIT 3",404,"caiso_pumped_hydro","CISO","physical","pumped_storage"]
["HENRTA_6_HDEBT1","HENRIETTA D ENERGY STORAGE",10,"caiso_li_battery","CISO","physical","hr_batteries"]
["HENRTA_6_SOLAR1","LEMOORE 1",1.5,"caiso_solar","CISO","physical","utility_pv"]
["HENRTA_6_SOLAR2","WESTSIDE SOLAR POWER PV1",2,"caiso_solar","CISO","physical","utility_pv"]
["HENRTA_6_UNITA1","GWF HENRIETTA PEAKER PLANT UNIT 1",49.98,"caiso_peaker2","CISO","physical","gas_ct"]
["HENRTA_6_UNITA2","GWF HENRIETTA PEAKER PLANT UNIT 2",49.42,"caiso_peaker2","CISO","physical","gas_ct"]
["HENRTS_1_SOLAR","HENRIETTA SOLAR PROJECT",100,"caiso_solar","CISO","physical","utility_pv"]
["HERDLN_6_BYHSR1","Byron Highway Solar",5,"caiso_solar","CISO","physical","utility_pv"]
["HIDSRT_2_UNITS","HIGH DESERT POWER PROJECT AGGREGATE",830,"caiso_ccgt1","CISO","physical","gas_cc"]
["HIGGNS_1_COMBIE","COMBIE SOUTH",1.5,"caiso_small_hydro","CISO","physical","small_hydro"]
["HIGGNS_7_QFUNTS","HIGGNS_7_QFUNTS",0.5,"caiso_hydro","CISO","physical","hydro"]
["HIGHDS_2_H5SBT1","HIGH 5 SOLAR BESS",50,"caiso_li_battery","CISO","physical","hr_batteries"]
["HIGHDS_2_H5SSR1","HIGH 5 SOLAR",100,"caiso_solar","CISO","physical","utility_pv"]
["HILAND_7_YOLOWD","CLEAR LAKE UNIT 1",3.75,"caiso_hydro","CISO","physical","hydro"]
["HINSON_6_CARBGN","BP WILMINGTON CALCINER",30,"caiso_chp","CISO","physical","cogen"]
["HINSON_6_LBECH1","LONG BEACH UNIT 1",63,"caiso_peaker2","CISO","physical","gas_ct"]
["HINSON_6_LBECH2","LONG BEACH UNIT 2",63,"caiso_peaker2","CISO","physical","gas_ct"]
["HINSON_6_LBECH3","LONG BEACH UNIT 3",63,"caiso_peaker2","CISO","physical","gas_ct"]
["HINSON_6_LBECH4","LONG BEACH UNIT 4",63,"caiso_peaker2","CISO","physical","gas_ct"]
["HINSON_6_SERRGN","SOUTHEAST RESOURCE RECOVERY",34,"caiso_chp","CISO","physical","cogen"]
["HMLTBR_6_UNITS","HAMILTON BRANCH PH (AGGREGATE)",4.9000000000000004,"caiso_small_hydro","CISO","physical","small_hydro"]
["HNTGBH_2_PL1X3","HUNTINGTON BEACH ENERGY",673.8,"caiso_ccgt1","CISO","physical","gas_cc"]
["HNTGBH_7_UNIT 2","HUNTINGTON BEACH GEN STA. UNIT 2",226.84,"caiso_st","CISO","physical","steam"]
["HOLGAT_1_BORAX","U.S. BORAX, UNIT 1",48.2,"caiso_chp","CISO","physical","cogen"]
["HOLSTR_1_SOLAR","SAN BENITO SMART PARK",1.5,"caiso_solar","CISO","physical","utility_pv"]
["HOLSTR_1_SOLAR2","HOLLISTER SOLAR",1.5,"caiso_solar","CISO","physical","utility_pv"]
["HOOLEYDIGESTER1","NAN",0.2,"caiso_biomass","CISO","physical","biomass_wood"]
["HOOLEYDIGESTER2","NAN",0.2,"caiso_biomass","CISO","physical","biomass_wood"]
["HOOVER_2_MWDDYN","HOOVER",249,"caiso_hydro","WALC","specifiedimport","hydro"]
["HOOVER_2_VEADYN","HOOVER",16,"caiso_hydro","WALC","specifiedimport","hydro"]
["HUDSON_RANCH_I","NAN",64.8,"iid_geothermal","IID","physical","geothermal"]
["HUMBPP_1_UNITS3","HUMBOLDT BAY GENERATING STATION 3",65.08,"caiso_reciprocating_engine","CISO","physical","ice"]
["HUMBPP_6_UNITS","HUMBOLDT BAY GENERATING STATION 1",97.62,"caiso_reciprocating_engine","CISO","physical","ice"]
["HUMBSB_1_QF","SMALL QF AGGREGATION - TRINITY",1.25,"caiso_hydro","CISO","physical","hydro"]
["HUMMINGBIRDSTORAGE","NAN",75,"caiso_li_battery","CISO","physical","hr_batteries"]
["HURON_6_SOLAR","HURON SOLAR STATION",20,"caiso_solar","CISO","physical","utility_pv"]
["HYTTHM_2_UNITS","HYATT-THERMALITO PUMP-GEN (AGGREGATE)",933.1,"caiso_hydro","CISO","physical","hydro"]
["IGNACO_1_QF","SMALL QF AGGREGATION - VALLEJO/DINSMORE",0.5,"caiso_chp","CISO","physical","cogen"]
["IMPERIAL_VALLEYIVSC2","NAN",20,"iid_solar","IID","physical","utility_pv"]
["INDIGO_1_UNIT 1","INDIGO PEAKER UNIT 1",45,"caiso_peaker2","CISO","physical","gas_ct"]
["INDIGO_1_UNIT 2","INDIGO PEAKER UNIT 2",45,"caiso_peaker2","CISO","physical","gas_ct"]
["INDIGO_1_UNIT 3","INDIGO PEAKER UNIT 3",45,"caiso_peaker2","CISO","physical","gas_ct"]
["INDVLY_1_UNITS","INDIAN VALLEY HYDRO",3.01,"caiso_small_hydro","CISO","physical","small_hydro"]
["INSKIP_2_UNIT","INSKIP HYDRO",8,"caiso_hydro","CISO","physical","hydro"]
["INTERMOUNTAIN_1","NAN",849.97,"ldwp_coal","LADWP","physical","coal"]
["INTERMOUNTAIN_2","NAN",849.97,"ldwp_coal","LADWP","physical","coal"]
["INTKEP_2_UNITS","CCSF HETCH_HETCHY HYDRO AGGREGATE",405,"caiso_hydro","CISO","physical","hydro"]
["INTMNT_3_ANAHEIM","INTERMOUNTAIN POWER PROJECT",236,"ldwp_coal","LADWP","specifiedimport","coal"]
["INTMNT_3_PASADENA","INTERMOUNTAIN POWER PROJECT",107,"ldwp_coal","LADWP","specifiedimport","coal"]
["INTMNT_3_RIVERSIDE","IPPDYN",136,"ldwp_coal","LADWP","specifiedimport","coal"]
["INTTRB_6_UNIT","INTERNATIONAL TURBINE RESEARCH",18.399999999999999,"caiso_wind","CISO","physical","in_state_wind_north"]
["IVANPA_1_UNIT1","IVANPAH 1",126,"caiso_solar","CISO","physical","utility_pv"]
["IVANPA_1_UNIT2","IVANPAH 2",133,"caiso_solar","CISO","physical","utility_pv"]
["IVANPA_1_UNIT3","IVANPAH 3",133,"caiso_solar","CISO","physical","utility_pv"]
["IVSLR2_2_SM2SR1","SILVER RIDGE MOUNT SIGNAL 2",150,"caiso_solar","CISO","physical","utility_pv"]
["IVSLRP_2_SOLAR1","SILVER RIDGE MOUNT SIGNAL",200,"caiso_solar","CISO","physical","utility_pv"]
["IVWEST_2_SOLAR1","IMPERIAL VALLEY WEST ( Q # 608)",150,"caiso_solar","CISO","physical","utility_pv"]
["JACMSR_1_JACSR1","JACUMBA SOLAR FARM",20,"caiso_solar","CISO","physical","utility_pv"]
["JANCRK_6_RCABT1","Redwood Coast Airport Microgrid",1.75,"caiso_li_battery","CISO","physical","hr_batteries"]
["JAVASR_1_JAVSR1","NAN",13.5,"caiso_solar","CISO","physical","utility_pv"]
["JAWBNE_2_NSRWND","NORTH SKY RIVER WIND PROJECT",160,"caiso_wind","CISO","physical","in_state_wind_south"]
["JAWBNE_2_SRWND","NAN",77,"caiso_wind","CISO","physical","in_state_wind_south"]
["JAWBNE_2_SRWWD2","Sky River Wind Repower B",30.2,"caiso_wind","CISO","physical","in_state_wind_south"]
["JAYNE_6_WLSLR","WESTLANDS SOLAR FARM PV 1",18,"caiso_solar","CISO","physical","utility_pv"]
["JJ_ELMORE","NAN",42,"iid_geothermal","IID","physical","geothermal"]
["JOANEC_2_STABT1","SANTA ANA STORAGE 1",20,"caiso_li_battery","CISO","physical","hr_batteries"]
["JOANEC_2_STABT2","Santa Ana Storage 2",20,"caiso_li_battery","CISO","physical","hr_batteries"]
["JOHANN_2_JOSBT1","JOHANNA STORAGE 1",10,"caiso_li_battery","CISO","physical","hr_batteries"]
["JOHANN_2_JOSBT2","JOHANNA STORAGE 2",10,"caiso_li_battery","CISO","physical","hr_batteries"]
["JOHANN_2_OCEBT2","ORANGE COUNTY ENERGY STORAGE 2",9,"caiso_li_battery","CISO","physical","hr_batteries"]
["JOHANN_2_OCEBT3","ORANGE COUNTY ENERGY STORAGE 3",6,"caiso_li_battery","CISO","physical","hr_batteries"]
["K_ROAD_MOAPA","NAN",250,"ldwp_solar","LADWP","physical","utility_pv"]
["K_ROAD_MODESTO","NAN",26.32,"banc_solar","BANC","physical","utility_pv"]
["KANSAS_6_SOLAR","RE KANSAS SOUTH",20,"caiso_solar","CISO","physical","utility_pv"]
["KEARNY_6_NESBT1","KEARNY NORTH ENERGY STORAGE",10,"caiso_li_battery","CISO","physical","hr_batteries"]
["KEARNY_6_SESBT2","KEARNY SOUTH ENERGY STORAGE",10,"caiso_li_battery","CISO","physical","hr_batteries"]
["KEKAWK_6_UNIT","STS HYDROPOWER LTD. (KEKAWAKA)",5.5,"caiso_small_hydro","CISO","physical","small_hydro"]
["KELSO_2_UNITS","MARIPOSA ENERGY",198.03,"caiso_peaker1","CISO","physical","gas_ct"]
["KELYRG_6_UNIT","KELLY RIDGE HYDRO",11,"caiso_small_hydro","CISO","physical","small_hydro"]
["KERKH2_7_UNIT 1","KERKHOFF PH 2 UNIT #1",153.9,"caiso_hydro","CISO","physical","hydro"]
["KERMAN_6_SOLAR1","FRESNO SOLAR SOUTH",1.5,"caiso_solar","CISO","physical","utility_pv"]
["KERMAN_6_SOLAR2","FRESNO SOLAR WEST",1.5,"caiso_solar","CISO","physical","utility_pv"]
["KERNFT_1_UNITS","KERN FRONT LIMITED",52.4,"caiso_chp","CISO","physical","cogen"]
["KERNRG_1_UNITS","SOUTH BELRIDGE COGEN FACILITY",55.2,"caiso_chp","CISO","physical","cogen"]
["KERRGN_1_UNIT 1","KERN RIVER HYDRO UNITS 1-4 AGGREGATE",25.6,"caiso_hydro","CISO","physical","hydro"]
["KIEFER_LANDFILL_1_1","NAN",3.5,"caiso_biomass","BANC","physical","biogas"]
["KIEFER_LANDFILL_1_2","NAN",3.5,"caiso_biomass","BANC","physical","biogas"]
["KIEFER_LANDFILL_1_3","NAN",3.5,"caiso_biomass","BANC","physical","biogas"]
["KIEFER_LANDFILL_2_1","NAN",3.5,"caiso_biomass","BANC","physical","biogas"]
["KIEFER_LANDFILL_2_2","NAN",3.5,"caiso_biomass","BANC","physical","biogas"]
["KILARC_2_UNIT 1","KILARC HYDRO",1.5,"caiso_small_hydro","CISO","physical","small_hydro"]
["KINGCO_1_KINGBR","KINGSBURG COGEN",34.5,"caiso_chp","CISO","physical","cogen"]
["KINGRV_7_UNIT 1","KINGS RIVER HYDRO UNIT 1",51.2,"caiso_hydro","CISO","physical","hydro"]
["KIRKER_7_KELCYN","KELLER CANYON LANDFILL GEN FACILICITY",3.56,"caiso_biomass","CISO","physical","biomass_wood"]
["KNGBRD_2_SOLAR1","KINGBIRD SOLAR A",20,"caiso_solar","CISO","physical","utility_pv"]
["KNGBRD_2_SOLAR2","KINGBIRD SOLAR B",20,"caiso_solar","CISO","physical","utility_pv"]
["KNGBRG_1_KBSLR1","KINGSBURG1",1.5,"caiso_solar","CISO","physical","utility_pv"]
["KNGBRG_1_KBSLR2","KINGSBURG2",1.5,"caiso_solar","CISO","physical","utility_pv"]
["KNGCTY_6_UNITA1","KING CITY ENERGY CENTER, UNIT 1",44.6,"caiso_peaker2","CISO","physical","gas_ct"]
["KNTSTH_6_SOLAR","KENT SOUTH",20,"caiso_solar","CISO","physical","utility_pv"]
["KRAMER_1_KJ5SR5","NAN",30,"caiso_solar","CISO","physical","utility_pv"]
["KRAMER_1_SEGS37","NAN",72.057623090000007,"caiso_solar","CISO","physical","utility_pv"]
["KRAMER_1_SEGSR3","NAN",30,"caiso_solar","CISO","physical","utility_pv"]
["KRAMER_1_SEGSR4","NAN",30.881838470000002,"caiso_solar","CISO","physical","utility_pv"]
["KRAMER_2_SEGS 8","KRAMER JUNCTION 8",80,"caiso_solar","CISO","physical","utility_pv"]
["KRAMER_2_SEGS 9","KRAMER JUNCTION 9",80,"caiso_solar","CISO","physical","utility_pv"]
["KRAMER_2_SEGS89","NAN",80,"caiso_solar","CISO","physical","utility_pv"]
["KRNCNY_6_UNIT","KERN CANYON POWERHOUSE",10.6,"caiso_small_hydro","CISO","physical","small_hydro"]
["KYCORA_6_KMSBT1","KEARNY MESA STORAGE",1,"caiso_li_battery","CISO","physical","hr_batteries"]
["LACIEN_2_VENICE","MWD VENICE HYDROELECTRIC RECOVERY PLANT",9.9499999999999993,"caiso_hydro","CISO","physical","hydro"]
["LAGBEL_6_QF","NAN",0.35,"caiso_chp","CISO","physical","cogen"]
["LAKE","NAN",51,"ldwp_peaker","LADWP","physical","gas_ct"]
["LAKESIDE_BIOGAS_LLC","NAN",3,"caiso_biogas","CISO","physical","biogas"]
["LAKHDG_6_UNIT 1","LAKE HODGES PUMPED STORAGE-UNIT1",20,"caiso_pumped_hydro","CISO","physical","pumped_storage"]
["LAKHDG_6_UNIT 2","LAKE HODGES PUMPED STORAGE-UNIT2",20,"caiso_pumped_hydro","CISO","physical","pumped_storage"]
["LAMONT_1_SOLAR1","REGULUS SOLAR",60,"caiso_solar","CISO","physical","utility_pv"]
["LAMONT_1_SOLAR2","REDWOOD SOLAR FARM 4",20,"caiso_solar","CISO","physical","utility_pv"]
["LAMONT_1_SOLAR3","WOODMERE SOLAR FARM",14.99,"caiso_solar","CISO","physical","utility_pv"]
["LAMONT_1_SOLAR4","HAYWORTH SOLAR FARM",26.66,"caiso_solar","CISO","physical","utility_pv"]
["LAMONT_1_SOLAR5","REDCREST SOLAR FARM",16.66,"caiso_solar","CISO","physical","utility_pv"]
["LAPAC_6_UNIT","LOUISIANA PACIFIC SAMOA",20,"caiso_biomass","CISO","physical","biomass_wood"]
["LAPLMA_2_UNIT 1","LA PALOMA GENERATING PLANT UNIT #1",267,"caiso_ccgt1","CISO","physical","gas_cc"]
["LAPLMA_2_UNIT 2","LA PALOMA GENERATING PLANT UNIT #2",266,"caiso_ccgt1","CISO","physical","gas_cc"]
["LAPLMA_2_UNIT 3","LA PALOMA GENERATING PLANT UNIT #3",266,"caiso_ccgt1","CISO","physical","gas_cc"]
["LAPLMA_2_UNIT 4","LA PALOMA GENERATING PLANT, UNIT #4",267,"caiso_ccgt1","CISO","physical","gas_cc"]
["LARKSP_6_UNIT 1","LARKSPUR PEAKER UNIT 1",46.1,"caiso_peaker1","CISO","physical","gas_ct"]
["LARKSP_6_UNIT 2","LARKSPUR PEAKER UNIT 2",47.98,"caiso_peaker1","CISO","physical","gas_ct"]
["LAROA2_2_UNITA1","LR2",322,"caiso_ccgt2","CISO","physical","gas_cc"]
["LASSEN_6_UNITS","HONEY LAKE POWER",30,"caiso_biomass","CISO","physical","biomass_wood"]
["LAWRNC_7_SUNYVL","CITY OF SUNNYVALE UNIT 1 AND 2",0.3,"caiso_chp","CISO","physical","cogen"]
["LEATHERS","NAN",42,"iid_geothermal","IID","physical","geothermal"]
["LEBECS_2_UNITS","PASTORIA ENERGY FACILITY",799.47,"caiso_ccgt1","CISO","physical","gas_cc"]
["LECEF_1_UNITS","LOS ESTEROS ENERGY FACILITY AGGREGATE",309.83999999999997,"caiso_ccgt2","CISO","physical","gas_cc"]
["LECONT_2_LESBT1","LeConte Energy Storage",125,"caiso_li_battery","CISO","physical","hr_batteries"]
["LEPRFD_1_KANSAS","KANSAS",20,"caiso_solar","CISO","physical","utility_pv"]
["LGHTHP_6_ICEGEN","CARSON COGENERATION",48,"caiso_ccgt1","CISO","physical","gas_ct"]
["LHILLS_6_SOLAR1","LOST HILLS SOLAR",20,"caiso_solar","CISO","physical","utility_pv"]
["LILIAC_6_SOLAR","MESA CREST",3,"caiso_solar","CISO","physical","utility_pv"]
["LITLRK_6_GBCSR1","GREEN BEANWORKS C",3,"caiso_solar","CISO","physical","utility_pv"]
["LITLRK_6_SEPV01","GESTAMP SOLAR 1",2,"caiso_solar","CISO","physical","utility_pv"]
["LITLRK_6_SOLAR1","LANCASTER LITTLE ROCK C",5,"caiso_solar","CISO","physical","utility_pv"]
["LITLRK_6_SOLAR2","PALMDALE 18",2,"caiso_solar","CISO","physical","utility_pv"]
["LITLRK_6_SOLAR3","ONE TEN PARTNERS",2,"caiso_solar","CISO","physical","utility_pv"]
["LITLRK_6_SOLAR4","LITTLE ROCK PHAM SOLAR",3,"caiso_solar","CISO","physical","utility_pv"]
["LIVEOK_6_SOLAR","HARRIS",1.25,"caiso_solar","CISO","physical","utility_pv"]
["LIVOAK_1_UNIT 1","LIVE OAK LIMITED",49.7,"caiso_peaker2","CISO","physical","gas_ct"]
["LLAGAS","NAN",20,"caiso_li_battery","CISO","physical","hr_batteries"]
["LMBEPK_2_UNITA1","LAMBIE ENERGY CENTER, UNIT #1",47.5,"caiso_peaker2","CISO","physical","gas_ct"]
["LMBEPK_2_UNITA2","CREED ENERGY CENTER, UNIT #1",47.6,"caiso_peaker2","CISO","physical","gas_ct"]
["LMBEPK_2_UNITA3","GOOSE HAVEN ENERGY CENTER, UNIT #1",47.4,"caiso_peaker2","CISO","physical","gas_ct"]
["LMEC_1_PL1X3","LOS MEDANOS ENERGY CENTER AGGREGATE",580,"caiso_ccgt1","CISO","physical","gas_cc"]
["LNCSTR_6_CREST","NAN",5.5,"caiso_solar","CISO","physical","utility_pv"]
["LNCSTR_6_SOLAR2","SEPV SIERRA NGR",2.75,"caiso_solar","CISO","physical","utility_pv"]
["LOCKFD_1_BEARCK","BEAR CREEK SOLAR",1.5,"caiso_solar","CISO","physical","utility_pv"]
["LOCKFD_1_KSOLAR","KETTLEMAN SOLAR",1,"caiso_solar","CISO","physical","utility_pv"]
["LODI25_2_UNIT 1","LODI GAS TURBINE",25,"caiso_peaker2","CISO","physical","gas_ct"]
["LODIEC_2_PL1X2","LODI ENERGY CENTER",302.58,"caiso_ccgt1","CISO","physical","gas_cc"]
["LOTUS_6_LSFSR1","LOTUS SOLAR FARM",50,"caiso_solar","CISO","physical","utility_pv"]
["LOWGAP_1_SUPHR","MILL & SULPHUR CREEK HYDRO",0.99,"caiso_small_hydro","CISO","physical","small_hydro"]
["LOWGAP_7_QFUNTS","MATTHEWS DAM HYDRO",1.35,"caiso_hydro","CISO","physical","hydro"]
["LTBEAR_1_LB3SR3","LITTLE BEAR 3 SOLAR",20,"caiso_solar","CISO","physical","utility_pv"]
["LTBEAR_1_LB4SR4","LITTLE BEAR 4",50,"caiso_solar","CISO","physical","utility_pv"]
["LTBEAR_1_LB4SR5","LITTLE BEAR 4 SOLAR 5",50,"caiso_solar","CISO","physical","utility_pv"]
["LTBERA_1_LB1SR1","LITTLE BEAR SOLAR 1",40,"caiso_solar","CISO","physical","utility_pv"]
["MAGNLA_6_ANAHEIM","MAGNOLIA POWER PLANT ANAHEIM",109,"ldwp_ccgt","LADWP","specifiedimport","gas_cc"]
["MAGNLA_6_CERRITOS","MAGNOLIA POWER PLANT CERRITOS",12,"ldwp_ccgt","LADWP","specifiedimport","gas_cc"]
["MAGNLA_6_COLTON","MAGNOLIA POWER PROJECT",12,"caiso_ccgt1","LADWP","specifiedimport","gas_cc"]
["MAGNLA_6_PASADENA","MAGNOLIA POWER PLANT - PASADENA",18,"caiso_ccgt1","LADWP","specifiedimport","gas_cc"]
["MAGNOLIA_CC","MAGNOLIA",301,"ldwp_ccgt","LADWP","physical","gas_cc"]
["MAGUND_1_BKISR1","BAKERSFIELD INDUSTRIAL 1",1,"caiso_solar","CISO","physical","utility_pv"]
["MAGUND_1_BKSSR2","BAKERSFIELD SOLAR 1",5.25,"caiso_solar","CISO","physical","utility_pv"]
["MALAGA_1_PL1X2","MALAGA POWER AGGREGATE",96,"caiso_peaker1","CISO","physical","gas_ct"]
["MALCHQ_7_UNIT 1","MALACHA HYDRO L.P.",32.5,"caiso_hydro","CISO","physical","hydro"]
["MALIN_5_BPADYN","MALIN_5_BPADYN",250,"CAISO_Imports","BPAT","specifiedimport","n/a"]
["MALIN_5_GCPDDYN","GRANT COUNTY HYDRO FACILITIES",125,"caiso_hydro","BPAT","specifiedimport","hydro"]
["MALIN_5_HERMDYN","MALIN_5_HERMDYN",308,"nw_ccgt","BPAT","specifiedimport","gas_cc"]
["MALIN_5_IBERDR","IBERDROLA CENTROID SYTEM RESOURCE",100,"caiso_wind","BPAT","specifiedimport","out_of_state_wind_WAOR"]
["MALIN_5_INHRED","CSF COLUMBIA GORGE",50,"caiso_wind","BPAT","specifiedimport","out_of_state_wind_WAOR"]
["MALIN_5_INHRPG","BIGLOW CANYON",50,"caiso_wind","BPAT","specifiedimport","out_of_state_wind_WAOR"]
["MANTEC_1_ML1SR1","MANTECA  LAND 1",1,"caiso_solar","CISO","physical","utility_pv"]
["MANZNA_2_WIND","MANZANA WIND",189,"caiso_wind","CISO","physical","in_state_wind_south"]
["MARCPW_6_SOLAR1","MARICOPA WEST SOLAR PV",20,"caiso_solar","CISO","physical","utility_pv"]
["MARTIN_1_SUNSET","SUNSET RESERVOIR - NORTH BASIN",4.5,"caiso_solar","CISO","physical","utility_pv"]
["MCARTH_6_FRIVRB","FALL RIVER MILLS PROJECT B",1.5,"caiso_solar","CISO","physical","utility_pv"]
["MCCALL_1_QF","FISH WATER",0.52,"caiso_small_hydro","CISO","physical","small_hydro"]
["MCCLELLAN_1","NAN",74,"banc_peaker","BANC","physical","gas_ct"]
["MCCLURE_1","NAN",62,"banc_peaker","BANC","physical","gas_ct"]
["MCCLURE_2","NAN",62,"banc_peaker","BANC","physical","gas_ct"]
["MCSWAN_6_UNITS","MC SWAIN HYDRO",10,"caiso_hydro","CISO","physical","hydro"]
["MDFKRL_2_PROJCT","MIDDLE FORK AND RALSTON PSP",210,"caiso_hydro","CISO","physical","hydro"]
["MELROSESTORAGE1","NAN",20,"caiso_li_battery","CISO","physical","hr_batteries"]
["MENBIO_6_RENEW1","CALRENEW - 1(A)",5,"caiso_solar","CISO","physical","utility_pv"]
["MENBIO_6_UNIT","NAN",25,"caiso_biomass","CISO","physical","biomass_wood"]
["MERCED_1_SOLAR1","MISSION SOLAR",1.5,"caiso_solar","CISO","physical","utility_pv"]
["MERCED_1_SOLAR2","MERCED SOLAR",1.5,"caiso_solar","CISO","physical","utility_pv"]
["MERCFL_6_UNIT","MERCED FALLS POWERHOUSE",3.5,"caiso_small_hydro","CISO","physical","small_hydro"]
["MESAP_1_QF","SMALL QF AGGREGATION - SAN LUIS OBISPO",1,"caiso_chp","CISO","physical","cogen"]
["MESAS_2_QF","NAN",2.9,"caiso_chp","CISO","physical","cogen"]
["MESQUITE_RECOVERY","NAN",27,"caiso_biomass","IID","physical","biogas"]
["METEC_2_PL1X3","METCALF ENERGY CENTER",593.16,"caiso_ccgt1","CISO","physical","gas_cc"]
["MIDSUN_1_PL1X2","North Midway Cogens 5A 5B",9.6,"caiso_peaker2","CISO","physical","gas_ct"]
["MIDWD_2_WIND1","NAN",7.81,"caiso_wind","CISO","physical","in_state_wind_south"]
["MIDWD_2_WIND2","CORAM ENERGY",3,"caiso_wind","CISO","physical","in_state_wind_south"]
["MIDWD_6_WNDLND","NAN",7.45,"caiso_wind","CISO","physical","in_state_wind_south"]
["MIDWD_7_CORAMB","CELLC 7.5 MW TEHACHAPI PROJECT",7.5,"caiso_wind","CISO","physical","in_state_wind_south"]
["MIDWY3_2_MDSSR1","MIDWAY SOUTH SOLAR FARM",20,"iid_solar","IID","specifiedimport","utility_pv"]
["MIDWYS_2_MIDSL1","MIDWAY SOLAR FARM",49.9,"iid_solar","IID","specifiedimport","utility_pv"]
["MILFORD_WIND_1_1","NAN",145,"nw_wind","LADWP","physical","out_of_state_wind_WYID"]
["MILFORD_WIND_1_2","NAN",58.5,"nw_wind","LADWP","physical","out_of_state_wind_WYID"]
["MILFORD_WIND_2","NAN",100,"nw_wind","LADWP","physical","out_of_state_wind_WYID"]
["MILFRD_7_PASADENA","MILFORD I",5,"nw_wind","LADWP","specifiedimport","out_of_state_wind_WYID"]
["MIRLOM_2_CORONA","MWD CORONA HYDROELECTRIC RECOVERY PLANT",2.85,"caiso_hydro","CISO","physical","hydro"]
["MIRLOM_2_LNDFL","MILLIKEN LANDFILL SOLAR",3,"caiso_solar","CISO","physical","utility_pv"]
["MIRLOM_2_MLBBTA","MIRA LOMA BESS A",10,"caiso_li_battery","CISO","physical","hr_batteries"]
["MIRLOM_2_MLBBTB","MIRA LOMA BESS B",10,"caiso_li_battery","CISO","physical","hr_batteries"]
["MIRLOM_2_ONTARO","ONTARIO RT SOLAR",5.5,"caiso_solar","CISO","physical","utility_pv"]
["MIRLOM_2_RTS032","SPVP032",1.5,"caiso_solar","CISO","physical","utility_pv"]
["MIRLOM_2_RTS033","SPVP033",1,"caiso_solar","CISO","physical","utility_pv"]
["MIRLOM_2_TEMESC","MWD TEMESCAL HYDROELECTRIC RECOVERY PLAN",2.85,"caiso_hydro","CISO","physical","hydro"]
["MIRLOM_6_PEAKER","MIRA LOMA PEAKER",46,"caiso_peaker1","CISO","physical","gas_ct"]
["MIRLOM_7_MWDLKM","LAKE MATHEWS HYDROELECTRIC RECOVERY PLAN",5,"caiso_hydro","CISO","physical","hydro"]
["MISSIX_1_QF","SMALL QF AGGREGATION - SAB FRABCUSCI",1,"caiso_chp","CISO","physical","cogen"]
["MKTRCK_1_UNIT 1","MCKITTRICK LIMITED",47.49,"caiso_peaker2","CISO","physical","gas_ct"]
["MLPTAS_7_QFUNTS","MLPTAS_7_QFUNTS",1,"caiso_chp","CISO","physical","cogen"]
["MM_SD_MIRAMAR2","NAN",1.6,"caiso_biomass","CISO","physical","biomass_wood"]
["MNDALY_6_MCGRTH","MCGRATH BEACH PEAKER",47.2,"caiso_peaker1","CISO","physical","gas_ct"]
["MNDOTA_1_SOLAR1","NORTH STAR SOLAR 1",60,"caiso_solar","CISO","physical","utility_pv"]
["MNDOTA_1_SOLAR2","CITIZEN SOLAR B",5,"caiso_solar","CISO","physical","utility_pv"]
["MNOCAERSSTORAGE","NAN",10,"caiso_li_battery","CISO","physical","hr_batteries"]
["MOJAVE_1_SIPHON","MOJAVE SIPHON POWER PLANT",14.36,"caiso_hydro","CISO","physical","hydro"]
["MOJAVW_2_SOLAR","MOJAVE WEST",20,"caiso_solar","CISO","physical","utility_pv"]
["MONLTH_6_BATTRY","TEHACHAPI STORAGE PROJECT",7.99,"caiso_li_battery","CISO","physical","hr_batteries"]
["MONLTS_2_MONWD4","NAN",6.1432232100000004,"caiso_wind","CISO","physical","in_state_wind_south"]
["MONLTS_2_MONWD5","NAN",4.04,"caiso_wind","CISO","physical","in_state_wind_south"]
["MONLTS_2_MONWD6","NAN",5.25,"caiso_wind","CISO","physical","in_state_wind_south"]
["MONLTS_2_MONWD7","NAN",6.1561563110000002,"caiso_wind","CISO","physical","in_state_wind_south"]
["MONTPH_7_UNITS","MONTICELLO HYDRO AGGREGATE",12.5,"caiso_small_hydro","CISO","physical","small_hydro"]
["MOORPK_2_ACOBT1","ACORN I BESS",2,"caiso_li_battery","CISO","physical","hr_batteries"]
["MOORPK_2_CALABS","CALABASAS GAS-TO-ENERGY FACILITY",6.96,"caiso_biomass","CISO","physical","biomass_wood"]
["MOORPK_6_QF","MOORPARK QFS",0.8,"caiso_small_hydro","CISO","physical","small_hydro"]
["MORWD_6_QF","MORWIND",38.159999999999997,"caiso_wind","CISO","physical","in_state_wind_south"]
["MOSSLD_1_QF","SMALL QF AGGREGATION - SANTA CRUZ",1,"caiso_chp","CISO","physical","cogen"]
["MOSSLD_2_PSP1","MOSS LANDING POWER BLOCK 1",510,"caiso_ccgt1","CISO","physical","gas_cc"]
["MOSSLD_2_PSP2","MOSS LANDING POWER BLOCK 2",510,"caiso_ccgt1","CISO","physical","gas_cc"]
["MRCHNT_2_PL1X3","DESERT STAR ENERGY CENTER",494.58,"caiso_ccgt1","CISO","physical","gas_cc"]
["MRGT_6_MEF2","MIRAMAR ENERGY FACILITY II",44,"caiso_peaker1","CISO","physical","gas_ct"]
["MRGT_6_MMAREF","MIRAMAR ENERGY FACILITY",45,"caiso_peaker1","CISO","physical","gas_ct"]
["MRGT_6_TGEBT1","TOP GUN ENERGY STORAGE",30,"caiso_li_battery","CISO","physical","hr_batteries"]
["MRLSDS_6_SOLAR1","MORELOS SOLAR",15,"caiso_solar","CISO","physical","utility_pv"]
["MSHGTS_6_MMARLF","MIRAMAR LANDFILL",5,"caiso_biomass","CISO","physical","biomass_wood"]
["MSOLAR_2_SOLAR1","MESQUITE SOLAR 1",165,"caiso_solar","CISO","physical","utility_pv"]
["MSOLAR_2_SOLAR2","MESQUITE SOLAR 2",100.81,"caiso_solar","CISO","physical","utility_pv"]
["MSOLAR_2_SOLAR3","MESQUITE SOLAR 3, LLC",152,"caiso_solar","CISO","physical","utility_pv"]
["MSQUIT_5_SERDYN","MSQUIT_5_SERDYN",625,"sw_ccgt","SRP","specifiedimport","gas_ct"]
["MSSION_2_QF","SMALL QF AGGREGATION - SAN DIEGO",2,"caiso_small_hydro","CISO","physical","small_hydro"]
["MSTANG_2_MTGBT1","MUSTANG 1 BESS",75,"caiso_li_battery","CISO","physical","hr_batteries"]
["MSTANG_2_SOLAR","MUSTANG",30,"caiso_solar","CISO","physical","utility_pv"]
["MSTANG_2_SOLAR3","MUSTANG 3",40,"caiso_solar","CISO","physical","utility_pv"]
["MSTANG_2_SOLAR4","MUSTANG 4",30,"caiso_solar","CISO","physical","utility_pv"]
["MTHSE_G_38380_1","NAN",20,"banc_solar","BANC","physical","utility_pv"]
["MTNPOS_1_UNIT","MT.POSO COGENERATION CO.",46.64,"caiso_biomass","CISO","physical","cogen"]
["MTWIND_1_MVPWD1","Mountain View Power Project I Repower",66.599999999999994,"caiso_wind","CISO","physical","in_state_wind_south"]
["MTWIND_1_UNIT 1","MOUNTAIN VIEW POWER PROJECT I",44.4,"caiso_wind","CISO","physical","in_state_wind_south"]
["MTWIND_1_UNIT 2","MOUNTAIN VIEW POWER PROJECT II",22.2,"caiso_wind","CISO","physical","in_state_wind_south"]
["MTWIND_1_UNIT 3","MOUNTAIN VIEW POWER PROJECT III",22.44,"caiso_wind","CISO","physical","in_state_wind_south"]
["MURRAY_6_UNIT","GROSSMONT HOSPITAL",4.12,"caiso_chp","CISO","physical","cogen"]
["NAPA_RECYCLING_BIOMASS_PLANT","NAN",1,"caiso_biomass","CISO","physical","biomass_wood"]
["NAROW1_2_UNIT","NARROWS PH 1 UNIT",12,"caiso_small_hydro","CISO","physical","small_hydro"]
["NAROW2_2_UNIT","NARROWS POWERHOUSE UNIT 2",55,"caiso_hydro","CISO","physical","hydro"]
["NAVYII_2_UNITS","COSO POWER DEVELOPER (NAVY II) AGGREGATE",90,"caiso_geothermal","CISO","physical","geothermal"]
["NCPA_7_GP1UN1","NCPA GEO PLANT 1 UNIT 1",38.85,"caiso_geothermal","CISO","physical","geothermal"]
["NCPA_7_GP1UN2","NCPA GEO PLANT 1 UNIT 2",39.94,"caiso_geothermal","CISO","physical","geothermal"]
["NCPA_7_GP2UN3","NCPA GEO PLANT 2 UNIT 3",42.42,"caiso_geothermal","CISO","physical","geothermal"]
["NCPA_7_GP2UN4","NCPA GEO PLANT 2 UNIT 4",52.73,"caiso_geothermal","CISO","physical","geothermal"]
["NEENACH_SOLAR","NAN",3,"ldwp_solar","LADWP","physical","utility_pv"]
["NEENCH_6_SOLAR","ALPINE SOLAR",66,"caiso_solar","CISO","physical","utility_pv"]
["NEWARK_1_QF","NEWARK 1 QF",0.1,"caiso_chp","CISO","physical","cogen"]
["NGILAA_5_SDGDYN","NGILAA_5_SDGDYN",57,"sw_ct","AZPS","specifiedimport","gas_ct"]
["NHOGAN_6_UNITS","NEW HOGAN PH AGGREGATE",4,"caiso_hydro","CISO","physical","hydro"]
["NILAND_1","NAN",50,"iid_peaker","IID","physical","gas_ct"]
["NILAND_2","NAN",50,"iid_peaker","IID","physical","gas_ct"]
["NIMTG_6_NICOGN","NORTH ISLAND COGEN",4.05,"caiso_chp","CISO","physical","cogen"]
["NIMTG_6_NIQF","NAN",42.7,"caiso_chp","CISO","physical","cogen"]
["NORTH_BRAWLEY_01","NAN",16,"iid_geothermal","IID","physical","geothermal"]
["NORTH_BRAWLEY_02","NAN",16,"iid_geothermal","IID","physical","geothermal"]
["NORTH_BRAWLEY_03","NAN",16,"iid_geothermal","IID","physical","geothermal"]
["NORTH_BRAWLEY_04","NAN",16,"iid_geothermal","IID","physical","geothermal"]
["NORTH_BRAWLEY_05","NAN",16,"iid_geothermal","IID","physical","geothermal"]
["NORTH_BRAWLEY_06","NAN",16,"iid_geothermal","IID","physical","geothermal"]
["NORTH_FORK_COMMUNITY_POWER","NAN",2,"caiso_biomass","CISO","physical","biomass_wood"]
["NOVATO_6_LNDFL","REDWOOD RENEWABLE ENERGY",3.9,"caiso_biogas","CISO","physical","biogas"]
["NWCSTL_7_UNIT 1","NEWCASTLE HYDRO",12,"caiso_hydro","CISO","physical","hydro"]
["NZWIND_2_WDSTR5","WINDSTREAM 6111",6.31,"caiso_wind","CISO","physical","in_state_wind_south"]
["NZWIND_6_CALWND","WIND RESOURCE I",9,"caiso_wind","CISO","physical","in_state_wind_south"]
["NZWIND_6_WDSTR","WINDSTREAM 39",3.35,"caiso_wind","CISO","physical","in_state_wind_south"]
["NZWIND_6_WDSTR2","WINDSTREAM 6040",4.07,"caiso_wind","CISO","physical","in_state_wind_south"]
["NZWIND_6_WDSTR3","WINDSTREAM 6041",3.86,"caiso_wind","CISO","physical","in_state_wind_south"]
["NZWIND_6_WDSTR4","WINDSTREAM 6042",6.77,"caiso_wind","CISO","physical","in_state_wind_south"]
["OAK C_1_EBMUD","MWWTP PGS 1 - ENGINES",6.9,"caiso_biogas","CISO","physical","biogas"]
["OAK C_7_UNIT 1","OAKLAND STATION C GT UNIT 1",55,"caiso_peaker2","CISO","physical","gas_ct"]
["OAK C_7_UNIT 3","OAKLAND STATION C GT UNIT 3",55,"caiso_peaker2","CISO","physical","gas_ct"]
["OAK C_7_UNIT_2","OAKLAND STATION C GT UNIT 2",55,"caiso_peaker2","CISO","physical","gas_ct"]
["OAK L_1_GTG1","MWWTP PGS 2 - TURBINE",4.5999999999999996,"caiso_biomass","CISO","physical","biomass_wood"]
["OAKWD_6_QF","OAK CREEK",27.87,"caiso_wind","CISO","physical","in_state_wind_south"]
["OAKWD_6_ZEPHWD","ZEPHYR PARK",3.5,"caiso_wind","CISO","physical","in_state_wind_south"]
["OASIS_6_CREST","NAN",13.5,"caiso_solar","CISO","physical","utility_pv"]
["OASIS_6_GBDSR4","GREEN BEANWORKS D",3,"caiso_solar","CISO","physical","utility_pv"]
["OASIS_6_LPPSR1","Lancaster Psomas PV",3,"caiso_solar","CISO","physical","utility_pv"]
["OASIS_6_SOLAR1","MORGAN LANCASTER I",1.5,"caiso_solar","CISO","physical","utility_pv"]
["OASIS_6_SOLAR2","OASIS SOLAR",20,"caiso_solar","CISO","physical","utility_pv"]
["OASIS_6_SOLAR3","SOCCER CENTER",3,"caiso_solar","CISO","physical","utility_pv"]
["OCI_SOLAR_LAKESIDE","NAN",2,"caiso_solar","CISO","physical","utility_pv"]
["OCTILO_5_WIND","OCOTILLO WIND ENERGY FACILITY",265,"caiso_wind","CISO","physical","in_state_wind_south"]
["OGROVE_6_PL1X2","ORANGE GROVE ENERGY CENTER",96,"caiso_peaker2","CISO","physical","gas_ct"]
["OILFLD_7_QFUNTS","NACIMIENTO HYDROELECTRIC PLANT",3.8,"caiso_hydro","CISO","physical","hydro"]
["OLDRIV_6_BIOGAS","BIDART OLD RIVER 1",2,"caiso_biomass","CISO","physical","biomass_wood"]
["OLDRIV_6_CESDBM","CES DAIRY BIOGAS",1,"caiso_biogas","CISO","physical","biogas"]
["OLDRIV_6_LKVBM1","LAKEVIEW DAIRY BIOGAS",1,"caiso_biogas","CISO","physical","biogas"]
["OLDRV1_6_SOLAR","OLD RIVER ONE",20,"caiso_solar","CISO","physical","utility_pv"]
["OLINDA_2_COYCRK","MWD COYOTE CREEK HYDROELECTRIC RECOVERY",3.13,"caiso_hydro","CISO","physical","hydro"]
["OLINDA_2_LNDFL2","BREA POWER II",28.1,"caiso_biomass","CISO","physical","biomass_wood"]
["OLINDA_2_QF","OLINDA QFS",0.4,"caiso_small_hydro","CISO","physical","small_hydro"]
["OLINDA_7_BLKSND","BLACKSAND GENERATING FACILITY",8,"caiso_biomass","CISO","physical","biomass_wood"]
["OLINDA_7_LNDFIL","NAN",5.6,"caiso_biomass","CISO","physical","biomass_wood"]
["OLIVE_O1","NAN",44,"ldwp_st","LADWP","physical","steam"]
["OLIVE_O2","NAN",55,"ldwp_st","LADWP","physical","steam"]
["OLIVEP_1_SOLAR","WHITE RIVER SOLAR",20,"caiso_solar","CISO","physical","utility_pv"]
["OLIVEP_1_SOLAR2","WHITE RIVER WEST",19.75,"caiso_solar","CISO","physical","utility_pv"]
["OLSEN_2_UNIT","OLSEN POWER PARTNERS",5.8,"caiso_small_hydro","CISO","physical","small_hydro"]
["OMAR_2_UNIT 1","KERN RIVER COGENERATION CO. UNIT 1",78,"caiso_peaker1","CISO","physical","gas_ct"]
["OMAR_2_UNIT 2","KERN RIVER COGENERATION CO. UNIT 2",78.11,"caiso_peaker1","CISO","physical","gas_ct"]
["OMAR_2_UNIT 3","KERN RIVER COGENERATION CO. UNIT 3",81.41,"caiso_peaker1","CISO","physical","gas_ct"]
["OMAR_2_UNIT 4","KERN RIVER COGENERATION CO. UNIT 4",81.44,"caiso_peaker1","CISO","physical","cogen"]
["ONLLPP_6_UNITS","O'NEILL PUMP-GEN (AGGREGATE)",25.2,"caiso_pumped_hydro","CISO","physical","pumped_storage"]
["ORLND_6_HIGHLI","HIGH LINE CANAL HYDRO",0.5,"caiso_hydro","CISO","physical","hydro"]
["ORLND_6_SOLAR1","ENERPARC CALIFORNIA 2",1.5,"caiso_solar","CISO","physical","utility_pv"]
["ORMESA_1_E","NAN",12.9,"iid_geothermal","IID","physical","geothermal"]
["ORMESA_1_H","NAN",12.9,"iid_geothermal","IID","physical","geothermal"]
["ORMESA_I","NAN",33.5,"iid_geothermal","IID","physical","geothermal"]
["ORMESA_II_OEC21","NAN",15,"iid_geothermal","IID","physical","geothermal"]
["ORMESA_II_OEC22","NAN",15,"iid_geothermal","IID","physical","geothermal"]
["ORMOND_7_UNIT 1","ORMOND BEACH GEN STA. UNIT 1",741.27,"caiso_st","CISO","physical","steam"]
["ORMOND_7_UNIT 2","ORMOND BEACH GEN STA. UNIT 2",750,"caiso_st","CISO","physical","steam"]
["ORNI33__LLC","NAN",20,"iid_solar","IID","physical","utility_pv"]
["OROLOM_1_SOLAR1","ORO LOMA SOLAR 1",10,"caiso_solar","CISO","physical","utility_pv"]
["OROLOM_1_SOLAR2","ORO LOMA SOLAR 2",10,"caiso_solar","CISO","physical","utility_pv"]
["OROVIL_6_UNIT","OROVILLE COGENERATION, LP",7.5,"caiso_chp","CISO","physical","cogen"]
["ORTGA_6_ME1SL1","MERCED 1",3,"caiso_solar","CISO","physical","utility_pv"]
["OSO_6_NSPIN","OSO_6_NSPIN",70,"caiso_pumped_hydro","CISO","physical","pumped_storage"]
["OTAY_6_ECVBT1","EnerSmart Chula Vista 1",3,"caiso_li_battery","CISO","physical","hr_batteries"]
["OTAY_6_ECVBT2","Chula Vista 2",3,"caiso_li_battery","CISO","physical","hr_batteries"]
["OTAY_6_LNDFL5","NAN",1.5,"caiso_biogas","CISO","physical","biogas"]
["OTAY_6_LNDFL6","NAN",1.5,"caiso_biogas","CISO","physical","biogas"]
["OTAY_6_PL1X2","CHULA VISTA ENERGY CENTER, LLC",35.5,"caiso_peaker2","CISO","physical","gas_ct"]
["OTAY_6_UNITB1","NAN",3,"caiso_biogas","CISO","physical","biogas"]
["OTMESA_2_PL1X3","OTAY MESA ENERGY CENTER",603.67999999999995,"caiso_ccgt1","CISO","physical","gas_cc"]
["OXBOW_6_DRUM","OXBOW HYDRO",5.8,"caiso_hydro","CISO","physical","hydro"]
["OXMTN_6_LNDFIL","OX MOUNTAIN LANDFILL GENERATING PLANT",10.62,"caiso_biomass","CISO","physical","biomass_wood"]
["PACLUM_6_UNIT","HUMBOLDT REDWOOD",28.8,"caiso_biomass","CISO","physical","biomass_wood"]
["PADUA_2_ONTARO","ONTARIO/SIERRA HYDRO PSP",1.92,"caiso_small_hydro","CISO","physical","small_hydro"]
["PADUA_2_SOLAR1","KONA SOLAR - RANCHO DC #1",1.75,"caiso_solar","CISO","physical","utility_pv"]
["PADUA_6_MWDSDM","SAN DIMAS HYDROELECTRIC RECOVERY PLANT",9.9,"caiso_hydro","CISO","physical","hydro"]
["PADUA_6_QF","PADUA QFS",1.82,"caiso_small_hydro","CISO","physical","small_hydro"]
["PADUA_7_SDIMAS","SAN DIMAS WASH HYDRO",1.05,"caiso_small_hydro","CISO","physical","small_hydro"]
["PAIGES_6_SOLAR","PAIGE SOLAR",20,"caiso_solar","CISO","physical","utility_pv"]
["PALALT_7_COBUG","COOPERATIVELY OWNED BACK UP GENERATOR",4.5,"caiso_peaker2","CISO","physical","gas_ct"]
["PALO_VERDE_3_LADWP","NAN",407,"ldwp_nuclear","LADWP","physical","nuclear"]
["PALOMR_2_PL1X3","PALOMAR ENERGY CENTER",575,"caiso_ccgt1","CISO","physical","gas_cc"]
["PANDOL_6_UNIT","NAN",49,"caiso_biomass","CISO","physical","biomass_wood"]
["PANSEA_1_PANARO","NAN",30,"caiso_wind","CISO","physical","in_state_wind_south"]
["PARDEB_6_UNITS","PARDEE POWER HOUSE",30,"caiso_hydro","CISO","physical","hydro"]
["PARQUEEOLICO","NAN",10,"caiso_wind","CISO","physical","in_state_wind_south"]
["PBLOSM_2_SOLAR","PEARBLOSSOM",9.5,"caiso_solar","CISO","physical","utility_pv"]
["PEABDY_2_LNDFIL","G2 ENERGY HAY ROAD POWER PLANT",1.6,"caiso_biomass","CISO","physical","biomass_wood"]
["PEABDY_2_LNDFL1","POTRERO HILLS ENERGY PRODUCERS",8,"caiso_biomass","CISO","physical","biomass_wood"]
["PEARBL_2_NSPIN","PEARBL_2_NSPIN",118,"caiso_pumped_hydro","CISO","physical","pumped_storage"]
["PEASE_1_TBEBT1","Tierra Buena Energy Storage",5,"caiso_li_battery","CISO","physical","hr_batteries"]
["PEORIA_1_SOLAR","SONORA 1",1.5,"caiso_solar","CISO","physical","utility_pv"]
["PGE_BAY_BIP_DO","NAN",90,"caiso_loadmod","CISO","physical","demand_response"]
["PGE_BAY_CBP DA_NONRES","NAN",0.1,"caiso_loadmod","CISO","physical","demand_response"]
["PGE_BAY_CBP DA_RES","NAN",0.1,"caiso_loadmod","CISO","physical","demand_response"]
["PGE_BAY_PDP_NON_RES","NAN",4,"caiso_loadmod","CISO","physical","demand_response"]
["PGE_BAY_SMARTAC_NON_RES","NAN",0.1,"caiso_loadmod","CISO","physical","demand_response"]
["PGE_BAY_SMARTAC_RES","NAN",0.1,"caiso_loadmod","CISO","physical","demand_response"]
["PGE_BAY_SMARTRATE_RES","NAN",0.1,"caiso_loadmod","CISO","physical","demand_response"]
["PGE_VAL_BIP_DO","NAN",267,"caiso_loadmod","CISO","physical","demand_response"]
["PGE_VAL_CBP_DA","NAN",0.1,"caiso_loadmod","CISO","physical","demand_response"]
["PGE_VAL_CBP_DA_RES","NAN",0.1,"caiso_loadmod","CISO","physical","demand_response"]
["PGE_VAL_SMARTAC_NON_RES","NAN",0.1,"caiso_loadmod","CISO","physical","demand_response"]
["PGE_VAL_SMARTAC_RES","NAN",0.1,"caiso_loadmod","CISO","physical","demand_response"]
["PGE_VAL_SMARTRATE_RES","NAN",2,"caiso_loadmod","CISO","physical","demand_response"]
["PHOENX_1_UNIT","PHOENIX PH",2,"caiso_small_hydro","CISO","physical","small_hydro"]
["PINE_TREE_SOLAR","NAN",8.5,"ldwp_solar","LADWP","physical","utility_pv"]
["PINE_TREE_WIND","NAN",120,"ldwp_wind","LADWP","physical","out_of_state_wind_WYID"]
["PINFLT_7_UNITS","PINE FLAT HYDRO AGGREGATE",198.51,"caiso_hydro","CISO","physical","hydro"]
["PIOPIC_2_CTG1","PIO PICO UNIT 1",111.3,"caiso_peaker1","CISO","physical","gas_ct"]
["PIOPIC_2_CTG2","PIO PICO UNIT 2",112.7,"caiso_peaker1","CISO","physical","gas_ct"]
["PIOPIC_2_CTG3","PIO PICO UNIT 3",112,"caiso_peaker1","CISO","physical","gas_ct"]
["PIT1_6_FRIVRA","FALL RIVER MILLS PROJECT A",1.5,"caiso_solar","CISO","physical","utility_pv"]
["PIT1_7_UNIT 1","PIT PH 1 UNIT 1",32,"caiso_hydro","CISO","physical","hydro"]
["PIT1_7_UNIT 2","PIT PH 1 UNIT 2",32,"caiso_hydro","CISO","physical","hydro"]
["PIT3_7_PL1X3","PIT PH 3 UNITS 1, 2 & 3 AGGREGATE",70.599999999999994,"caiso_hydro","CISO","physical","hydro"]
["PIT4_7_PL1X2","PIT PH 4 UNITS 1 & 2 AGGREGATE",95,"caiso_hydro","CISO","physical","hydro"]
["PIT5_7_PL1X2","PIT PH 5 UNITS 1 & 2 AGGREGATE",82,"caiso_hydro","CISO","physical","hydro"]
["PIT5_7_PL3X4","PIT PH 5 UNITS 3 & 4 AGGREGATE",82,"caiso_hydro","CISO","physical","hydro"]
["PIT5_7_QFUNTS","GRASSHOPPER FLAT HYDRO",1.1000000000000001,"caiso_hydro","CISO","physical","hydro"]
["PIT6_7_UNIT 1","PIT PH 6 UNIT 1",39,"caiso_hydro","CISO","physical","hydro"]
["PIT6_7_UNIT 2","PIT PH 6 UNIT 2",40,"caiso_hydro","CISO","physical","hydro"]
["PIT7_7_UNIT 1","PIT PH 7 UNIT 1",55.7,"caiso_hydro","CISO","physical","hydro"]
["PIT7_7_UNIT 2","PIT PH 7 UNIT 2",54.6,"caiso_hydro","CISO","physical","hydro"]
["PIUTE_6_GNBSR1","GREEN BEANWORKS B",3,"caiso_biomass","CISO","physical","utility_pv"]
["PLACVL_1_CHILIB","CHILI BAR HYDRO",8.4,"caiso_small_hydro","CISO","physical","small_hydro"]
["PLACVL_1_RCKCRE","ROCK CREEK HYDRO",5,"caiso_small_hydro","CISO","physical","small_hydro"]
["PLAINV_6_BSOLAR","WESTERN ANTELOPE BLUE SKY RANCH A",20,"caiso_solar","CISO","physical","utility_pv"]
["PLAINV_6_DSOLAR","WESTERN ANTELOPE DRY RANCH",10,"caiso_solar","CISO","physical","utility_pv"]
["PLAINV_6_NLRSR1","NORTH LANCASTER RANCH",20,"caiso_solar","CISO","physical","utility_pv"]
["PLAINV_6_SOLAR3","SIERRA SOLAR GREENWORKS LLC",20,"caiso_solar","CISO","physical","utility_pv"]
["PLAINV_6_SOLARC","CENTRAL ANTELOPE DRY RANCH C",20,"caiso_solar","CISO","physical","utility_pv"]
["PLMSSR_6_HISIER","HIGH SIERRA COGENERATION AGGREGATE",6,"caiso_chp","CISO","physical","cogen"]
["PLSNTG_7_LNCLND","LINCOLN LANDFILL POWER PLANT",4.9800000000000004,"caiso_biomass","CISO","physical","biomass_wood"]
["PMDLET_6_SOLAR1","SEPV PALMDALE EAST, LLC",10,"caiso_solar","CISO","physical","utility_pv"]
["PMPJCK_1_RB2SLR","RIO BRAVO SOLAR 2",20,"caiso_solar","CISO","physical","utility_pv"]
["PMPJCK_1_SOLAR1","PUMPJACK SOLAR I",20,"caiso_solar","CISO","physical","utility_pv"]
["PMPJCK_1_SOLAR2","RIO BRAVO SOLAR 1",20,"caiso_solar","CISO","physical","utility_pv"]
["PNCHEG_2_PL1X4","PANOCHE ENERGY CENTER (AGGREGATED)",401,"caiso_peaker1","CISO","physical","gas_ct"]
["PNCHPP_1_PL1X2","MIDWAY PEAKING AGGREGATE",119.91,"caiso_peaker2","CISO","physical","gas_ct"]
["PNCHVS_2_SOLAR","PANOCHE VALLEY SOLAR",140,"caiso_solar","CISO","physical","utility_pv"]
["PNOCHE_1_PL1X2","PANOCHE PEAKER",49.97,"caiso_peaker2","CISO","physical","gas_ct"]
["PNOCHE_1_UNITA1","CALPEAK POWER PANOCHE UNIT 1",52.01,"caiso_peaker2","CISO","physical","gas_ct"]
["POCATELLO_WASTE","NAN",0.46,"caiso_biomass","CISO","physical","biomass_wood"]
["POEPH_7_UNIT 1","POE HYDRO UNIT 1",69,"caiso_hydro","CISO","physical","hydro"]
["POEPH_7_UNIT 2","POE HYDRO UNIT 2",68.5,"caiso_hydro","CISO","physical","hydro"]
["POINTLOMA1","NAN",2.29,"caiso_biomass","CISO","physical","biomass_wood"]
["POINTLOMA2","NAN",2.29,"caiso_biomass","CISO","physical","biomass_wood"]
["POTTER_6_UNITS","POTTER VALLEY",10.1,"caiso_small_hydro","CISO","physical","small_hydro"]
["POTTER_7_VECINO","VECINO VINEYARDS LLC",1.25,"caiso_hydro","CISO","physical","hydro"]
["PRCTVY_1_MIGBT1","MIGUEL BESS",2,"caiso_biomass","CISO","physical","hr_batteries"]
["PRIMA_PLANT1","NAN",3,"caiso_biomass","CISO","physical","biomass_wood"]
["PRIMA_PLANT2","NAN",3,"caiso_biomass","CISO","physical","biomass_wood"]
["PRIMM_2_SOLAR1","SILVER STATE SOUTH",250,"caiso_solar","CISO","physical","utility_pv"]
["PROXIMASOLAR","NAN",50,"caiso_solar","CISO","physical","utility_pv"]
["PROXIMASTORAGE","NAN",5,"caiso_li_battery","CISO","physical","hr_batteries"]
["PSWEET_1_STCRUZ","SANTA CRUZ ENERGY LLC",1.6,"caiso_biogas","CISO","physical","biogas"]
["PSWEET_7_QFUNTS","PSWEET_7_QFUNTS",1,"caiso_chp","CISO","physical","cogen"]
["PTLOMA_6_NTCCGN","NAN",2.58,"caiso_chp","CISO","physical","cogen"]
["PTLOMA_6_NTCQF","NTC/MCRD COGENERATION",22.3,"caiso_chp","CISO","physical","cogen"]
["PUTHCR_1_PCNSB1","Putah Creek Solar Farm North",3,"caiso_solar","CISO","physical","utility_pv"]
["PUTHCR_1_SOLAR1","PUTAH CREEK SOLAR FARM",1.98,"caiso_solar","CISO","physical","utility_pv"]
["PVERDE_5_SCEDYN","PVERDE_5_SCEDYN",635,"caiso_nuclear","SRP","specifiedimport","nuclear"]
["PWEST_1_UNIT","PACIFIC WEST 1 WIND GENERATION",2.1,"caiso_wind","CISO","physical","in_state_wind_south"]
["QUARANTINASTORAGE","NAN",10,"caiso_li_battery","CISO","physical","hr_batteries"]
["RABBITBRUSHSTORAGE","NAN",20,"caiso_li_battery","CISO","physical","hr_batteries"]
["RACEWAYSOLAR","NAN",125,"caiso_solar","CISO","physical","utility_pv"]
["RACEWAYSTORAGE","NAN",80,"caiso_li_battery","CISO","physical","hr_batteries"]
["RAMON_2_SCEDYN","RAMON_2_SCEDYN",106.18,"iid_geothermal","IID","specifiedimport","geothermal"]
["RANCHO_2_SMUDSYSDYN","SMUD REGULATION MARKET",124,"caiso_specified_imports","BANC","specifiedimport","n/a"]
["RATSKE_2_NROSR1","NORTH ROSAMOND SOLAR",150,"caiso_solar","CISO","physical","utility_pv"]
["RATSKE_2_RBSSB1","Rabbitbrush Solar 1",60,"caiso_solar","CISO","physical","utility_pv"]
["RATSKE_2_RBSSB2","Rabbitbrush Solar 2",40,"caiso_solar","CISO","physical","utility_pv"]
["RCKCRK_7_UNIT 1","ROCK CREEK HYDRO UNIT 1",57,"caiso_hydro","CISO","physical","hydro"]
["RCKCRK_7_UNIT 2","ROCK CREEK HYDRO UNIT 2",56.9,"caiso_hydro","CISO","physical","hydro"]
["RDWAY_1_CREST","NAN",6.5,"caiso_solar","CISO","physical","utility_pv"]
["RE_BR1_26960_1","NAN",61.1,"ldwp_solar","LADWP","physical","utility_pv"]
["RE_GASKELL_WEST_3","NAN",20,"caiso_solar","CISO","physical","utility_pv"]
["RE_GASKELL_WEST_4","NAN",20,"caiso_solar","CISO","physical","utility_pv"]
["RE_GASKELL_WEST_5","NAN",20,"caiso_solar","CISO","physical","utility_pv"]
["RECTOR_2_CREST","NAN",14,"caiso_solar","CISO","physical","utility_pv"]
["RECTOR_2_IVANPV","IVANHOE TULARE PV",3.5,"caiso_solar","CISO","physical","utility_pv"]
["RECTOR_2_KAWEAH","KAWEAH PH 2 & 3 PSP AGGREGATE",6.55,"caiso_small_hydro","CISO","physical","small_hydro"]
["RECTOR_2_KAWH 1","KAWEAH PH 1 UNIT 1",2.25,"caiso_hydro","CISO","physical","hydro"]
["RECTOR_2_QF","KAWEAH UNIT 1",20.09,"caiso_small_hydro","CISO","physical","small_hydro"]
["RECTOR_2_TFDBM1","TWO FIETS DAIRY DIGESTER",0.8,"caiso_biomass","CISO","physical","biomass_wood"]
["RECTOR_7_TULARE","MM TULARE",1.5,"caiso_biomass","CISO","physical","biomass_wood"]
["REDBLF_6_UNIT","RED BLUFF PEAKER PLANT",44,"caiso_reciprocating_engine","CISO","physical","ice"]
["REDDING_POWER_1","NAN",17.03,"banc_peaker","BANC","physical","gas_ct"]
["REDDING_POWER_2","NAN",25.03,"banc_peaker","BANC","physical","gas_ct"]
["REDDING_POWER_3","NAN",25.03,"banc_peaker","BANC","physical","gas_ct"]
["REDDING_POWER_CC","NAN",121,"banc_ccgt","BANC","physical","gas_cc"]
["REDMAN_2_SOLAR","LANCASTER EAST AVENUE F",3.75,"caiso_solar","CISO","physical","utility_pv"]
["REDMAN_6_AVSSR1","ANTELOPE VALLEY SOLAR",3,"caiso_solar","CISO","physical","utility_pv"]
["REDOND_7_UNIT 5","REDONDO GEN STA. UNIT 5",178.87,"caiso_st","CISO","physical","steam"]
["REDOND_7_UNIT 6","REDONDO GEN STA. UNIT 6",175,"caiso_st","CISO","physical","steam"]
["REDOND_7_UNIT 8","REDONDO GEN STA. UNIT 8",480,"caiso_st","CISO","physical","steam"]
["REEDLY_6_SOLAR","TERZIAN",1.23,"caiso_solar","CISO","physical","utility_pv"]
["RENWD_1_QF","RENWIND RE-POWERING PROJECT",10,"caiso_wind","CISO","physical","in_state_wind_south"]
["REXFORDSOLAR","NAN",300,"caiso_solar","CISO","physical","utility_pv"]
["REXFORDSTORAGE","NAN",180,"caiso_li_battery","CISO","physical","hr_batteries"]
["RHONDO_6_PUENTE","NAN",4,"caiso_biogas","CISO","physical","biogas"]
["RICHMN_1_CHVSR2","CHEVRON 8.5",8.5,"caiso_solar","CISO","physical","utility_pv"]
["RICHMN_1_SOLAR","CHEVRON 2",2,"caiso_solar","CISO","physical","utility_pv"]
["RICHMN_7_BAYENV","BAY ENVIRONMENTAL (NOVE POWER)",2.5,"caiso_biomass","CISO","physical","biomass_wood"]
["RIOBRV_6_UNIT 1","RIO BRAVO HYDRO",14,"caiso_hydro","CISO","physical","hydro"]
["RIOOSO_1_QF","SMALL QF AGGREGATION - GRASS VALLEY",1.1100000000000001,"caiso_small_hydro","CISO","physical","small_hydro"]
["RIPON_1","NAN",50,"banc_peaker","BANC","physical","gas_ct"]
["RIPON_2","NAN",50,"banc_peaker","BANC","physical","gas_ct"]
["RNDMTN_2_SLSPHY1","SILVER SPRINGS",0.6,"caiso_hydro","CISO","physical","hydro"]
["RNDSBG_1_HZASR1","HAZEL A",2.99,"caiso_solar","CISO","physical","utility_pv"]
["ROCKWOOD_1","NAN",25,"iid_peaker","IID","physical","gas_ct"]
["ROCKWOOD_2","NAN",25,"iid_peaker","IID","physical","gas_ct"]
["ROLLIN_6_UNIT","ROLLINS HYDRO",13.5,"caiso_hydro","CISO","physical","hydro"]
["ROSEVILLE_1","NAN",25.6,"banc_peaker","BANC","physical","gas_ct"]
["ROSEVILLE_2","NAN",25.6,"banc_peaker","BANC","physical","gas_ct"]
["ROSMDW_2_WIND1","PACIFIC WIND - PHASE 1",140,"caiso_wind","CISO","physical","in_state_wind_south"]
["ROSMND_6_SOLAR","LANCASTER B",3,"caiso_solar","CISO","physical","utility_pv"]
["RSMSLR_6_SOLAR1","ROSAMOND ONE",20,"caiso_solar","CISO","physical","utility_pv"]
["RSMSLR_6_SOLAR2","ROSAMOND TWO",20,"caiso_solar","CISO","physical","utility_pv"]
["RTEDDY_2_SC1SR3","ROSAMOND WEST SOLAR CLEAN",40,"caiso_solar","CISO","physical","utility_pv"]
["RTEDDY_2_SEBSR3","ROSAMOND WEST SOLAR EAST BAY 3",56,"caiso_solar","CISO","physical","utility_pv"]
["RTEDDY_2_SEBSR4","ROSAMOND WEST SOLAR EAST BAY 4",56,"caiso_solar","CISO","physical","utility_pv"]
["RTEDDY_2_SOLAR1","ROSAMOND WEST SOLAR 1",54,"caiso_solar","CISO","physical","utility_pv"]
["RTEDDY_2_SOLAR2","ROSAMOND WEST SOLAR 2",54,"caiso_solar","CISO","physical","utility_pv"]
["RTEDDY_2_SPASR4","ROSAMOND WEST SOLAR PALO ALTO",26,"caiso_solar","CISO","physical","utility_pv"]
["RTEDDY_2_SRXSR4","ROSAMOND WEST SOLAR ROSIE X",13.6,"caiso_solar","CISO","physical","utility_pv"]
["RTREE_2_WIND1","RISING TREE 1",79.2,"caiso_wind","CISO","physical","in_state_wind_south"]
["RTREE_2_WIND2","RISING TREE 2",19.8,"caiso_wind","CISO","physical","in_state_wind_south"]
["RTREE_2_WIND3","RISING TREE 3",99,"caiso_wind","CISO","physical","in_state_wind_south"]
["RUSCTY_2_UNITS","RUSSELL CITY ENERGY CENTER",615.17999999999995,"caiso_ccgt2","CISO","physical","gas_cc"]
["RVRVEW_1_UNITA1","RIVERVIEW ENERGY CENTER (GP ANTIOCH)",47.6,"caiso_peaker2","CISO","physical","gas_ct"]
["RVSIDE_2_RERCU3","RIVERSIDE ENERGY RES. CTR UNIT 3",49,"caiso_peaker1","CISO","physical","gas_ct"]
["RVSIDE_2_RERCU4","RIVERSIDE ENERGY RES. CTR UNIT 4",49,"caiso_peaker1","CISO","physical","gas_ct"]
["RVSIDE_6_RERCU1","RIVERSIDE ENERGY RES. CTR UNIT 1",48.35,"caiso_peaker1","CISO","physical","gas_ct"]
["RVSIDE_6_RERCU2","RIVERSIDE ENERGY RES. CTR UNIT 2",48.5,"caiso_peaker2","CISO","physical","gas_ct"]
["RVSIDE_6_SOLAR1","TEQUESQUITE LANDFILL SOLAR PROJECT",7.5,"caiso_solar","CISO","physical","utility_pv"]
["RVSIDE_6_SPRING","SPRINGS GENERATION PROJECT AGGREGATE",36,"caiso_peaker1","CISO","physical","gas_ct"]
["S_RITA_6_SOLAR1","SUN HARVEST SOLAR",1.5,"caiso_solar","CISO","physical","utility_pv"]
["SALIRV_2_UNIT","SALINAS RIVER COGENERATION",39,"caiso_chp","CISO","physical","cogen"]
["SALTON_SEA_4","NAN",42,"iid_geothermal","IID","physical","geothermal"]
["SALTON_SEA_5","NAN",50,"iid_geothermal","IID","physical","geothermal"]
["SALTON_SEA_UNIT_2_G1","NAN",10,"iid_geothermal","IID","physical","geothermal"]
["SALTON_SEA_UNIT_2_G2","NAN",5,"iid_geothermal","IID","physical","geothermal"]
["SALTON_SEA_UNIT_2_G3","NAN",5,"iid_geothermal","IID","physical","geothermal"]
["SALTSP_7_UNITS","SALT SPRINGS HYDRO AGGREGATE",46,"caiso_hydro","CISO","physical","hydro"]
["SAMPSN_6_KELCO1","KELCO QUALIFYING FACILITY",25,"caiso_chp","CISO","physical","cogen"]
["SANBRN_2_EESSB2","EdSan 1 Edwards 0",166,"caiso_solar","CISO","physical","utility_pv"]
["SANBRN_2_ES1BT3","EdSan 1 Edwards 1",51,"caiso_solar","CISO","physical","utility_pv"]
["SANBRN_2_ES2SB3","EdSan 2 Sanborn 3",42,"caiso_solar","CISO","physical","utility_pv"]
["SANBRN_2_ESABT1","EDSAN 1A",100,"caiso_li_battery","CISO","physical","hr_batteries"]
["SANBRN_2_ESBBT1","EDSAN 1B",100,"caiso_li_battery","CISO","physical","hr_batteries"]
["SANBRN_2_SS2SB4","EdSan 2 Sanborn 4",36,"caiso_solar","CISO","physical","utility_pv"]
["SANDHILLCWIND","NAN",80,"caiso_wind","CISO","physical","in_state_wind_south"]
["SANDLT_2_SUNITS","MOJAVE SOLAR",275,"caiso_solar","CISO","physical","utility_pv"]
["SANDRINISOL","NAN",100,"caiso_solar","CISO","physical","utility_pv"]
["SANITR_6_UNITS","LACSD CARSON WATER POLLUTION AGGREGATE",8,"caiso_biogas","CISO","physical","biogas"]
["SANLOB_1_LNDFIL","COLD CANYON",1.5,"caiso_biomass","CISO","physical","biomass_wood"]
["SANLOB_1_OSFBM1","OLD SANTA FE ROAD",0.85,"caiso_biomass","CISO","physical","biomass_wood"]
["SANTA_BARBARA_COUNTY_PUBLIC_WORKS_DEPARTMENT","NAN",2.274,"caiso_biogas","CISO","physical","biogas"]
["SANTFG_7_UNITS","GEYSERS CALISTOGA AGGREGATE",72,"caiso_geothermal","CISO","physical","geothermal"]
["SANTGO_2_LNDFL1","BOWERMAN POWER",19.600000000000001,"caiso_biogas","CISO","physical","biogas"]
["SANTGO_2_MABBT1","MILLIKAN AVENUE BESS",2,"caiso_li_battery","CISO","physical","hr_batteries"]
["SANWD_1_QF","SAN GORGONIO FARMS WIND FARM",31,"caiso_wind","CISO","physical","in_state_wind_south"]
["SAUGUS_2_TOLAND","NAN",1.57,"caiso_biogas","CISO","physical","biogas"]
["SAUGUS_6_MWDFTH","FOOTHILL HYDROELECTRIC RECOVERY PLANT",9.1,"caiso_hydro","CISO","physical","hydro"]
["SAUGUS_6_PTCHGN","NAN",20.78,"caiso_chp","CISO","physical","cogen"]
["SAUGUS_6_QF","SAUGUS QFS",2.19,"caiso_small_hydro","CISO","physical","small_hydro"]
["SAUGUS_7_CHIQCN","CHIQUITA CANYON LANDFILL FAC",8,"caiso_biomass","CISO","physical","biomass_wood"]
["SAUGUS_7_LOPEZ","MM LOPEZ ENERGY",6.1,"caiso_biomass","CISO","physical","biomass_wood"]
["SBERDO_2_PSP3","MOUNTAINVIEW GEN STA. UNIT 3",555,"caiso_ccgt1","CISO","physical","gas_cc"]
["SBERDO_2_PSP4","MOUNTAINVIEW GEN STA. UNIT 4",555,"caiso_ccgt1","CISO","physical","gas_cc"]
["SBERDO_2_QF","NAN",10.6,"caiso_chp","CISO","physical","cogen"]
["SBERDO_2_REDLND","REDLANDS RT SOLAR",2,"caiso_solar","CISO","physical","utility_pv"]
["SBERDO_2_RTS005","SPVP005 REDLANDS RT SOLAR",2.5,"caiso_solar","CISO","physical","utility_pv"]
["SBERDO_2_RTS007","SPVP007 REDLANDS RT SOLAR",2.5,"caiso_solar","CISO","physical","utility_pv"]
["SBERDO_2_RTS011","SPVP011",3.5,"caiso_solar","CISO","physical","utility_pv"]
["SBERDO_2_RTS013","SPVP013",3.5,"caiso_solar","CISO","physical","utility_pv"]
["SBERDO_2_RTS016","SPVP016 REDLANDS RT SOLAR",1.5,"caiso_solar","CISO","physical","utility_pv"]
["SBERDO_2_RTS048","SPVP048",5,"caiso_solar","CISO","physical","utility_pv"]
["SBERDO_2_SNTANA","SANTA ANA PSP",6.95,"caiso_small_hydro","CISO","physical","small_hydro"]
["SBERDO_6_MILLCK","MILL CREEK PSP",3.93,"caiso_small_hydro","CISO","physical","small_hydro"]
["SCACOGEN2_CC","NAN",65.599999999999994,"banc_ccgt","BANC","physical","gas_cc"]
["SCACOGEN2GT","NAN",49,"banc_peaker","BANC","physical","gas_ct"]
["SCATTERGOOD_1","NAN",174,"ldwp_st","LADWP","physical","steam"]
["SCATTERGOOD_2","NAN",177,"ldwp_st","LADWP","physical","steam"]
["SCATTERGOOD_4","NAN",300,"ldwp_peaker","LADWP","physical","gas_ct"]
["SCATTERGOOD_5","NAN",100,"ldwp_peaker","LADWP","physical","gas_ct"]
["SCATTERGOOD_6","NAN",89,"ldwp_peaker","LADWP","physical","gas_ct"]
["SCATTERGOOD_7","NAN",89,"ldwp_peaker","LADWP","physical","gas_ct"]
["SCE_AP_I","NAN",19,"caiso_loadmod","CISO","physical","demand_response"]
["SCE_BIP_15","NAN",212,"caiso_loadmod","CISO","physical","demand_response"]
["SCE_BIP_30","NAN",606,"caiso_loadmod","CISO","physical","demand_response"]
["SCE_CBP_DA","NAN",0.1,"caiso_loadmod","CISO","physical","demand_response"]
["SCE_CBP_DO","NAN",1,"caiso_loadmod","CISO","physical","demand_response"]
["SCE_SDP_COMM","NAN",3,"caiso_loadmod","CISO","physical","demand_response"]
["SCE_SDP_RESD","NAN",1,"caiso_loadmod","CISO","physical","demand_response"]
["SCEHOV_2_HOOVER","SCEHOV_2_HOOVER",287.01,"caiso_hydro","WALC","specifiedimport","hydro"]
["SCHLTE_1_PL1X3","TRACY COMBINED CYCLE POWER PLANT",336.04,"caiso_ccgt2","CISO","physical","gas_cc"]
["SCHNDR_1_FIVPTS","FIVE POINTS SOLAR STATION",15,"caiso_solar","CISO","physical","utility_pv"]
["SCHNDR_1_OS2BM2","OPEN SKY DIGESTER GENSET 2",0.8,"caiso_biogas","CISO","physical","biogas"]
["SCHNDR_1_WSTSDE","WESTSIDE SOLAR STATION",15,"caiso_solar","CISO","physical","utility_pv"]
["SDGE_BIP","NAN",2,"caiso_loadmod","CISO","physical","demand_response"]
["SDGE_CBP_DA","NAN",0.1,"caiso_loadmod","CISO","physical","demand_response"]
["SDGE_CBP_DO","NAN",0.1,"caiso_loadmod","CISO","physical","demand_response"]
["SDGE_SUMM_SAV_RESD","NAN",0.1,"caiso_loadmod","CISO","physical","demand_response"]
["SDGE_SUMMER_SAVER_COM","NAN",0.1,"caiso_loadmod","CISO","physical","demand_response"]
["SDGEAC_SAVER_DA_COMM","NAN",0.1,"caiso_loadmod","CISO","physical","demand_response"]
["SDGEAC_SAVER_DA_RES","NAN",0.1,"caiso_loadmod","CISO","physical","demand_response"]
["SDGEAC_SAVER_DO_COMM","NAN",0.1,"caiso_loadmod","CISO","physical","demand_response"]
["SDGEAC_SAVER_DO_RES","NAN",0.1,"caiso_loadmod","CISO","physical","demand_response"]
["SDSU_GEN","NAN",7,"iid_solar","IID","physical","utility_pv"]
["SEARLS_7_ARGUS","ARGUS COGENERATION",19,"caiso_chp","CISO","physical","cogen"]
["SEAWST_6_LAPOS","SEA WEST ENERGY - SEAWEST",13,"caiso_wind","CISO","physical","in_state_wind_south"]
["SECOND_IMPERIAL01_12","NAN",33,"iid_geothermal","IID","physical","geothermal"]
["SEGS_1_SR2SL2","SUNRAY 2",20,"caiso_solar","CISO","physical","utility_pv"]
["SENTNL_2_CTG1","SENTINEL UNIT 1",107.68,"caiso_peaker1","CISO","physical","gas_ct"]
["SENTNL_2_CTG2","SENTINEL UNIT 2",102.5,"caiso_peaker1","CISO","physical","gas_ct"]
["SENTNL_2_CTG3","SENTINEL UNIT 3",105.69,"caiso_peaker1","CISO","physical","gas_ct"]
["SENTNL_2_CTG4","SENTINEL UNIT 4",106.55,"caiso_peaker1","CISO","physical","gas_ct"]
["SENTNL_2_CTG5","SENTINEL UNIT 5",107.52,"caiso_peaker1","CISO","physical","gas_ct"]
["SENTNL_2_CTG6","SENTINEL UNIT 6",105,"caiso_peaker1","CISO","physical","gas_ct"]
["SENTNL_2_CTG7","SENTINEL UNIT 7",106.73,"caiso_peaker1","CISO","physical","gas_ct"]
["SENTNL_2_CTG8","SENTINEL UNIT 8",106.85,"caiso_peaker1","CISO","physical","gas_ct"]
["SEPV_BOULEVARD_2","NAN",2.9,"caiso_solar","CISO","physical","utility_pv"]
["SEVILLE_2","NAN",32.5,"iid_solar","IID","physical","utility_pv"]
["SGREGY_6_SANGER","ALGONQUIN POWER SANGER 2",48.3,"caiso_chp","CISO","physical","cogen"]
["SHANDN_2_SBBBM1","SAN BERNARDINO BIOGAS",2.6,"caiso_biomass","CISO","physical","biomass_wood"]
["SHEEP_CREEK_ROAD_SOLAR_GENERATION_FACILITY_PROJECT","NAN",3,"caiso_solar","CISO","physical","utility_pv"]
["SHELRF_1_UNITS","SHELL OIL REFINERY AGGREGATE",100,"caiso_peaker2","CISO","physical","gas_ct"]
["SHUTLE_6_CREST","NAN",4,"caiso_solar","CISO","physical","utility_pv"]
["SIERRA_1_UNITS","HIGH SIERRA LIMITED",52.43,"caiso_peaker2","CISO","physical","gas_ct"]
["SIERRASTORAGE","NAN",10,"caiso_li_battery","CISO","physical","hr_batteries"]
["SIGHEB_6_MIRDYN","Heber South",17,"iid_geothermal","IID","specifiedimport","geothermal"]
["SISQUC_1_SMARIA","SANTA MARIA II LFG POWER PLANT",1.42,"caiso_biomass","CISO","physical","biomass_wood"]
["SKERN_6_SOLAR1","SOUTH KERN SOLAR PV PLANT",20,"caiso_solar","CISO","physical","utility_pv"]
["SKERN_6_SOLAR2","SKIC SOLAR",10,"caiso_solar","CISO","physical","utility_pv"]
["SLATE_2_SLASR1","SLATE",50.5,"caiso_solar","CISO","physical","utility_pv"]
["SLATE_2_SLASR2_SUN","Slate_2",46.5,"caiso_solar","CISO","physical","utility_pv"]
["SLATE_2_SLASR2_LESR","Slate_2",46.5,"caiso_li_battery","CISO","physical","hr_batteries"]
["SLATE_2_SLASR3_LESR","SLATE_3",33.799999999999997,"caiso_li_battery","CISO","physical","hr_batteries"]
["SLATE_2_SLASR3_SUN","SLATE_3",33.700000000000003,"caiso_solar","CISO","physical","utility_pv"]
["SLATE_2_SLASR4","SLATE_4",63,"caiso_solar","CISO","physical","utility_pv"]
["SLATE_2_SLASR5_LESR","Slate 5",10,"caiso_li_battery","CISO","physical","hr_batteries"]
["SLATE_2_SLASR5_SUN","Slate 5",16,"caiso_solar","CISO","physical","utility_pv"]
["SLRMS3_2_SRMSR1","SILVER RIDGE MOUNT SIGNAL 3",250,"caiso_solar","CISO","physical","utility_pv"]
["SLST13_2_SOLAR1","QUINTO SOLAR PV PROJECT",107.6,"caiso_solar","CISO","physical","utility_pv"]
["SLSTR1_2_SOLAR1","SOLAR STAR 1",310,"caiso_solar","CISO","physical","utility_pv"]
["SLSTR2_2_SOLAR2","SOLAR STAR 2",276,"caiso_solar","CISO","physical","utility_pv"]
["SLUISP_2_UNITS","SAN LUIS (GIANELLI) PUMP-GEN (AGGREGATE)",374.43,"caiso_pumped_hydro","CISO","physical","pumped_storage"]
["SLYCRK_1_UNIT 1","SLY CREEK HYDRO",13,"caiso_hydro","CISO","physical","hydro"]
["SMPRIP_1_SMPSON","RIPON COGENERATION UNIT 1",46.05,"caiso_peaker1","CISO","physical","cogen"]
["SMRCOS_6_LNDFIL","SAN MARCOS ENERGY",1.5,"caiso_biomass","CISO","physical","biomass_wood"]
["SMUDGO_7_UNIT 1","SONOMA POWER PLANT",64.8,"caiso_geothermal","CISO","physical","geothermal"]
["SMYRNA_1_DL1SR1","DELANO LAND 1",1,"caiso_solar","CISO","physical","utility_pv"]
["SNCLRA_2_HOWLNG","HOUWELINGS NURSERIES OXNARD, INC",13,"caiso_biomass","CISO","physical","biomass_wood"]
["SNCLRA_2_SILBT1","SILVERSTRAND BESS",11,"caiso_li_battery","CISO","physical","hr_batteries"]
["SNCLRA_2_SPRHYD","SPRINGVILLE HYDROELECTRIC GENERATOR",1,"caiso_small_hydro","CISO","physical","small_hydro"]
["SNCLRA_2_UNIT","CHANNEL ISLANDS POWER",27.5,"caiso_chp","CISO","physical","cogen"]
["SNCLRA_2_UNIT1","NEW INDY OXNARD",27.8,"caiso_chp","CISO","physical","cogen"]
["SNCLRA_2_VESBT1","VENTURA ENERGY STORAGE",100,"caiso_li_battery","CISO","physical","hr_batteries"]
["SNCLRA_6_OXGEN","OXGEN",47.7,"caiso_chp","CISO","physical","cogen"]
["SNCLRA_6_PROCGN","PROCTER AND GAMBLE OXNARD 2",47.9,"caiso_chp","CISO","physical","cogen"]
["SNCLRA_6_QF","SANTA CLARA QFS",1.65,"caiso_small_hydro","CISO","physical","small_hydro"]
["SNDBAR_7_UNIT 1","SANDBAR",16.2,"caiso_hydro","CISO","physical","hydro"]
["SNMALF_6_UNITS","SONOMA COUNTY LANDFILL",5,"caiso_biomass","CISO","physical","biomass_wood"]
["SNORA_2_SNRSLR","SG SORRENTO",50,"iid_solar","IID","specifiedimport","utility_pv"]
["SOL_GEN","NAN",20,"iid_solar","IID","physical","utility_pv"]
["SONRISASOLAR","NAN",100,"caiso_solar","CISO","physical","utility_pv"]
["SONRISASTORAGE","NAN",30,"caiso_li_battery","CISO","physical","hr_batteries"]
["SOUTH_2_UNIT","SOUTH HYDRO",7.1,"caiso_small_hydro","CISO","physical","small_hydro"]
["SPA_COGEN_3_CC","NAN",157,"banc_ccgt","BANC","physical","gas_cc"]
["SPANSH_6_FBEHY1","FIVE BEARS HYDROELECTRIC",0.99,"caiso_hydro","CISO","physical","hydro"]
["SPAULD_6_UNIT 3","SPAULDING HYDRO PH 3 UNIT",6.5,"caiso_hydro","CISO","physical","hydro"]
["SPAULD_6_UNIT12","SPAULDING HYDRO PH 1 & 2 AGGREGATE",11.4,"caiso_hydro","CISO","physical","hydro"]
["SPBURN_2_UNIT 1","BURNEY BIOMASS",22,"caiso_biomass","CISO","physical","biomass_wood"]
["SPBURN_7_SNOWMT","BURNEY CREEK HYDRO",3,"caiso_small_hydro","CISO","physical","small_hydro"]
["SPI LI_2_UNIT 1","LINCOLN BIOMASS",17.2,"caiso_biomass","CISO","physical","biomass_wood"]
["SPIAND_1_ANDSN2","SPI ANDERSON 2",27.15,"caiso_biomass","CISO","physical","biomass_wood"]
["SPICER_1_UNITS","SPICER HYDRO UNITS 1-3 AGGREGATE",6,"caiso_small_hydro","CISO","physical","small_hydro"]
["SPIFBD_1_PL1X2","SIERRA PACIFIC IND. (SONORA)",7.5,"caiso_biomass","CISO","physical","biomass_wood"]
["SPOINT_2_MEADDYN","SPOINT_2_MEADDYN",325,"SW_CCGT","WALC","specifiedimport","gas_cc"]
["SPOINT_2_PARKERDYN","SOUTHPOINT ENERGY CENTER",200,"SW_CCGT","WALC","specifiedimport","gas_cc"]
["SPQUIN_6_SRPCQU","QUINCY BIOMASS",24,"caiso_biomass","CISO","physical","biomass_wood"]
["SPRGAP_1_UNIT 1","SPRING GAP HYDRO",7,"caiso_hydro","CISO","physical","hydro"]
["SPRGVL_2_CREST","NAN",14,"caiso_solar","CISO","physical","utility_pv"]
["SPRGVL_2_EXETPV","EXETER TULARE PV",3.5,"caiso_solar","CISO","physical","utility_pv"]
["SPRGVL_2_LINDPV","LINDSAY TULARE PV",4,"caiso_solar","CISO","physical","utility_pv"]
["SPRGVL_2_PORTPV","PORTERVILLE TULARE PV",3.5,"caiso_solar","CISO","physical","utility_pv"]
["SPRGVL_2_QF","SPRINGVILLE QFS",0.18,"caiso_small_hydro","CISO","physical","cogen"]
["SPRGVL_2_TULE","TULE RIVER HYDRO PLANT (PG&E)",6.4,"caiso_small_hydro","CISO","physical","small_hydro"]
["SPRGVL_2_TULESC","TULE RIVER HYDRO PLANT (SCE)",2.5,"caiso_small_hydro","CISO","physical","small_hydro"]
["SPRINGBOK_1","NAN",108,"ldwp_solar","LADWP","physical","utility_pv"]
["SPRINGBOK_2","NAN",165,"ldwp_solar","LADWP","physical","utility_pv"]
["SPRINGBOK_3","NAN",90,"ldwp_solar","LADWP","physical","utility_pv"]
["SRINTL_6_UNIT","SRI INTERNATIONAL",6.9,"caiso_chp","CISO","physical","cogen"]
["STANIS_7_UNIT 1","STANISLAUS HYDRO",91,"caiso_hydro","CISO","physical","hydro"]
["STANTN_2_STAGT1","STANTON 1",49.65,"caiso_peaker1","CISO","physical","gas_ct"]
["STANTN_2_STAGT2","STANTON 2",49.65,"caiso_peaker1","CISO","physical","gas_ct"]
["STAUFF_1_UNIT","NAN",4.5999999999999996,"caiso_chp","CISO","physical","cogen"]
["STIGCT_2_LODI","LODI STIG UNIT",49.9,"caiso_peaker2","CISO","physical","gas_ct"]
["STNRES_1_UNIT","COVANTA STANISLAUS",19.899999999999999,"caiso_biomass","CISO","physical","biomass_wood"]
["STOILS_1_UNITS","CHEVRON RICHMOND REFINERY",56.2,"caiso_chp","CISO","physical","cogen"]
["STOREY_2_MDRCH2","MADERA CHOWCHILLA 2",0.56000000000000005,"caiso_small_hydro","CISO","physical","small_hydro"]
["STOREY_2_MDRCH3","MADERA CHOWCHILLA 3",0.42,"caiso_small_hydro","CISO","physical","small_hydro"]
["STOREY_2_MDRCH4","MADERA CHOWCHILLA 4",0.92,"caiso_small_hydro","CISO","physical","small_hydro"]
["STOREY_7_MDRCHW","MADERA CANAL SITE 980",1.84,"caiso_small_hydro","CISO","physical","small_hydro"]
["STRAUSSWIND","NAN",99,"caiso_wind","CISO","physical","in_state_wind_south"]
["STROUD_6_SOLAR","STROUD SOLAR STATION",20,"caiso_solar","CISO","physical","utility_pv"]
["STROUD_6_WWHSR1","WINTER WHEAT SOLAR FARM",1.5,"caiso_solar","CISO","physical","utility_pv"]
["SUMWHT_6_SWSSR1","SUMMER WHEAT SOLAR FARM",18.5,"caiso_solar","CISO","physical","utility_pv"]
["SUN_EDISON_VICTORVILLE_SOLAR","NAN",10,"caiso_solar","CISO","physical","utility_pv"]
["SUNCAT_2_A1ABT1","Arlington Solar Unit 1A BESS",43,"caiso_li_battery","CISO","physical","hr_batteries"]
["SUNCAT_2_A1BBT1","Arlington Solar Unit 1B BESS",67,"caiso_li_battery","CISO","physical","hr_batteries"]
["SUNCAT_2_A2ABT2","Arlington Solar Unit 2A BESS",132,"caiso_li_battery","CISO","physical","hr_batteries"]
["SUNPEAK_IID","NAN",23,"iid_solar","IID","physical","utility_pv"]
["SUNRIS_2_PL1X3","SUNRISE POWER PROJECT AGGREGATE II",586.02,"caiso_ccgt1","CISO","physical","gas_cc"]
["SUNSET_2_UNITS","MIDWAY SUNSET COGENERATION PLANT",248,"caiso_peaker1","CISO","physical","cogen"]
["SUNSHN_2_LNDFL","SUNSHINE GAS PRODUCERS",20,"caiso_biomass","CISO","physical","biomass_wood"]
["SUNSLR_1_SSVSR1","SUNSHINE VALLEY SOLAR 1",100,"caiso_solar","CISO","physical","utility_pv"]
["SUNSPT_2_WNASR1","WINDHUB SOLAR A",20,"caiso_solar","CISO","physical","utility_pv"]
["SUNST2_5_SS2SR1","SUN STREAMS SOLAR 2",150,"caiso_solar","CISO","physical","utility_pv"]
["SUNSTR_5_SS1SCEDYN","SUNSTREAM SOLAR 1",150,"SW_SOLAR","AZPS","specifiedimport","out_of_state_wind_AZNM"]
["SUTTER_2_CISO","SUTTER POWER PLANT PSEUDO-CISO",275,"caiso_ccgt1","BANC","specifiedimport","gas_cc"]
["SUTTERENERGYCC_TOTAL","SUTTER POWER PLANT",250,"banc_ccgt","BANC","physical","gas_cc"]
["SWIFT_1_NAS","YERBA BUENA BATTERY",4.8,"caiso_li_battery","CISO","physical","hr_batteries"]
["SYCAMR_2_UNIT 1","SYCAMORE COGENERATION UNIT 1",86,"caiso_chp","CISO","physical","cogen"]
["SYCAMR_2_UNIT 2","SYCAMORE COGENERATION UNIT 2",78,"caiso_peaker1","CISO","physical","gas_ct"]
["SYCAMR_2_UNIT 3","SYCAMORE COGENERATION UNIT 3",78,"caiso_chp","CISO","physical","cogen"]
["SYCAMR_2_UNIT 4","SYCAMORE COGENERATION UNIT 4",78,"caiso_peaker1","CISO","physical","gas_ct"]
["TANHIL_6_SOLART","BERRY COGEN 18",17,"caiso_chp","CISO","physical","cogen"]
["TBLMTN_6_QF","SMALL QF AGGREGATION - PARADISE",1.7,"caiso_small_hydro","CISO","physical","small_hydro"]
["TECOLOTE_3_WBDYN","TECOLOTE WIND",271.68,"caiso_wind","PNM","specifiedimport","out_of_state_wind_AZNM"]
["TEHAPI_2_PW1WD1","POINT WIND 1",47.49,"caiso_wind","CISO","physical","in_state_wind_south"]
["TEHAPI_2_PW2WD2","POINT WIND 2",14.4,"caiso_wind","CISO","physical","in_state_wind_south"]
["TEHAPI_2_WIND1","WIND WALL MONOLITH 1",19.850000000000001,"caiso_wind","CISO","physical","in_state_wind_south"]
["TEHAPI_2_WIND2","WIND WALL MONOLITH 2",23.66,"caiso_wind","CISO","physical","in_state_wind_south"]
["TENGEN_2_PL1X2","BERRY COGEN 42",40.200000000000003,"caiso_chp","CISO","physical","cogen"]
["TERMEX_2_PL1X3","TDM",625,"caiso_ccgt1","CISO","physical","gas_cc"]
["TESLA_1_QF","SMALL QF AGGREGATION - STOCKTON",2,"caiso_small_hydro","CISO","physical","small_hydro"]
["THERMONO1_2","NAN",14,"caiso_geothermal","CISO","physical","geothermal"]
["THREE_MILE_CANYON","NAN",9.9,"nw_wind","PACW","physical","out_of_state_wind_WAOR"]
["TIDWTR_2_UNITS","MARTINEZ COGEN LIMITED PARTNERSHIP",114.8,"caiso_chp","CISO","physical","cogen"]
["TIERRA_DEL_SOL__SOLAR_FARM","NAN",45,"iid_solar","IID","physical","utility_pv"]
["TIFFNY_1_DILLON","TIFFNY_1_DILLON",45,"caiso_wind","CISO","physical","in_state_wind_south"]
["TIGRCK_7_UNITS","TIGER CREEK HYDRO AGGREGATE",62,"caiso_hydro","CISO","physical","hydro"]
["TITANS_2_TTSSR1","TITAN SOLAR 1 PSEUDO",70,"caiso_solar","IID","specifiedimport","utility_pv"]
["TKOPWR_6_HYDRO","BEAR CREEK HYDROELECTRIC PROJECT",2.83,"caiso_small_hydro","CISO","physical","small_hydro"]
["TMPLTN_2_SOLAR","VINTNER SOLAR",1.5,"caiso_solar","CISO","physical","utility_pv"]
["TOADTW_6_UNIT","TOAD TOWN",1.5,"caiso_small_hydro","CISO","physical","small_hydro"]
["TOPAZ_2_SOLAR","TOPAZ SOLAR FARMS",550,"caiso_solar","CISO","physical","utility_pv"]
["TORTLA_1_SOLAR","LONGBOAT SOLAR",20,"caiso_solar","CISO","physical","utility_pv"]
["TOWNSITE_2_MEADDYN_LESR","Townsite Solar BESS",90,"caiso_li_battery","CISO","physical","hr_batteries"]
["TOWNSITE_2_MEADDYN_SUN","Townsite Solar BESS",90,"caiso_solar","CISO","physical","utility_pv"]
["TRNQL8_2_AMASR1","TRANQUILLITY 8 AMARILLO",20,"caiso_solar","CISO","physical","utility_pv"]
["TRNQL8_2_AZUSR1","TRANQUILLITY 8 AZUL",20,"caiso_solar","CISO","physical","utility_pv"]
["TRNQL8_2_ROJSR1","TRANQUILLITY 8 ROJO",100,"caiso_solar","CISO","physical","utility_pv"]
["TRNQL8_2_VERSR1","TRANQUILLITY 8 VERDE",60,"caiso_solar","CISO","physical","utility_pv"]
["TRNQLT_2_RETBT1","NAN",72,"caiso_li_battery","CISO","physical","hr_batteries"]
["TRNQLT_2_SOLAR","TRANQUILLITY",200,"caiso_solar","CISO","physical","utility_pv"]
["TRNSWD_1_QF","FPL ENERGY C WIND",38.97,"caiso_wind","CISO","physical","in_state_wind_south"]
["TULARE_2_TULBM1","TULARE BIOMAT FUEL CELL",2.8,"caiso_biomass","CISO","physical","biomass_wood"]
["TULEWD_1_TULWD1","TULE WIND",130.5,"caiso_wind","CISO","physical","in_state_wind_south"]
["TULLCK_7_UNITS","TULLOCK HYDRO",25.9,"caiso_hydro","CISO","physical","hydro"]
["TUPMAN_1_BIOGAS","ABEC BIDART-STOCKALE #1",0.6,"caiso_biomass","CISO","physical","biomass_wood"]
["TVYVLY_6_KRSHY1","Kings River Syphon",1.3,"caiso_hydro","CISO","physical","hydro"]
["TWISSL_6_SOLAR","NICKEL 1 (\"NLH1\")",1.5,"caiso_solar","CISO","physical","utility_pv"]
["TWISSL_6_SOLAR1","CORONAL LOST HILLS",20,"caiso_solar","CISO","physical","utility_pv"]
["TX_ELK_6_SOLAR1","CASTOR",1.5,"caiso_solar","CISO","physical","utility_pv"]
["TX-ELK_6_ECKSR2","EAGLE CREEK",3,"caiso_solar","CISO","physical","utility_pv"]
["TXMCKT_6_UNIT","MCKITTRICK COGEN",11.2,"caiso_chp","CISO","physical","cogen"]
["UC_DAVIS_MC","NAN",27,"banc_ccgt","BANC","physical","gas_cc"]
["UKIAH_7_LAKEMN","UKIAH LAKE MENDOCINO HYDRO",3.5,"caiso_small_hydro","CISO","physical","small_hydro"]
["ULTPCH_1_UCSBT1","Ultrapower Chinese Station BESS",10,"caiso_li_battery","CISO","physical","hr_batteries"]
["ULTPCH_1_UNIT 1","PACIFIC ULTRAPOWER CHINESE STATION",18,"caiso_biomass","CISO","physical","biomass_wood"]
["ULTPFR_1_UNIT 1","RIO BRAVO FRESNO",24.3,"caiso_biomass","CISO","physical","biomass_wood"]
["ULTRCK_2_UNIT","RIO BRAVO ROCKLIN",24.4,"caiso_biomass","CISO","physical","biomass_wood"]
["UNCHEM_1_UNIT","CONTRA COSTA CARBON PLANT",19,"caiso_chp","CISO","physical","cogen"]
["UNOCAL_1_UNITS","TOSCO (RODEO PLANT)",49.85,"caiso_chp","CISO","physical","cogen"]
["UNVRSY_1_UNIT 1","BERRY COGEN 38 - UNIT 1",38,"caiso_chp","CISO","physical","cogen"]
["USWND2_1_WIND1","GOLDEN HILLS A",42.96,"caiso_wind","CISO","physical","in_state_wind_north"]
["USWND2_1_WIND2","GOLDEN HILLS B",42.96,"caiso_wind","CISO","physical","in_state_wind_north"]
["USWND2_1_WIND3","GOLDEN HILLS C",46,"caiso_wind","CISO","physical","in_state_wind_north"]
["USWND4_2_UNIT2","ALTAMONT LANDFILL GAS TO ENERGY",7.4,"caiso_biogas","CISO","physical","biogas"]
["USWNDR_2_LABWD1","LABRISA WIND PROJECT",9,"caiso_wind","CISO","physical","in_state_wind_north"]
["USWNDR_2_SMUD","SOLANO WIND FARM",102.18,"caiso_wind","CISO","physical","in_state_wind_north"]
["USWNDR_2_SMUD2","SOLANO WIND PROJECT PHASE 3",127.8,"caiso_wind","CISO","physical","in_state_wind_north"]
["USWNDR_2_UNITS","NAN",8,"caiso_wind","CISO","physical","in_state_wind_south"]
["USWPFK_6_FRICK","FRICK SUMMIT WIND REPOWER",10,"caiso_wind","CISO","physical","in_state_wind_north"]
["USWPJR_2_UNITS","VASCO WIND",78.2,"caiso_wind","CISO","physical","in_state_wind_north"]
["V2_GEN","NAN",3.1,"iid_solar","IID","physical","utility_pv"]
["V3_GEN","NAN",3.1,"iid_solar","IID","physical","utility_pv"]
["VACADX_1_NAS","VACA-DIXON BATTERY",0.7,"caiso_li_battery","CISO","physical","hr_batteries"]
["VACADX_1_SOLAR","VACA-DIXON SOLAR STATION",2.5,"caiso_solar","CISO","physical","utility_pv"]
["VACADX_1_UNITA1","CALPEAK POWER VACA DIXON UNIT 1",50.61,"caiso_peaker2","CISO","physical","gas_ct"]
["VALLEY_5_PERRIS","MWD PERRIS HYDROELECTRIC RECOVERY PLANT",7.94,"caiso_small_hydro","CISO","physical","small_hydro"]
["VALLEY_5_REDMTN","MWD RED MOUNTAIN HYDROELECTRIC RECOVERY",5.9,"caiso_hydro","CISO","physical","hydro"]
["VALLEY_5_RTS044","NAN",8,"caiso_solar","CISO","physical","utility_pv"]
["VALLEY_5_SOLAR1","KONA SOLAR - MERIDIAN #1",1.49,"caiso_solar","CISO","physical","utility_pv"]
["VALLEY_5_SOLAR2","AP NORTH LAKE SOLAR",20,"caiso_solar","CISO","physical","utility_pv"]
["VALLEY_CC","NAN",529,"ldwp_ccgt","LADWP","physical","gas_cc"]
["VALLEY_UNIT_5","NAN",47,"ldwp_peaker","LADWP","physical","gas_ct"]
["VALTNE_2_AVASR1","VALENTINE SOLAR",100,"caiso_solar","CISO","physical","utility_pv"]
["VALTNE_2_TBBBT1","NAN",128,"caiso_solar","CISO","physical","utility_pv"]
["VALTNE_2_TRSBT1","Tropico Solar",70,"caiso_li_battery","CISO","physical","hr_batteries"]
["VAN_DER_KOOI_DAIRY_DIGESTER","NAN",0.8,"caiso_biogas","CISO","physical","biogas"]
["VEAVST_1_SOLAR","COMMUNITY SOLAR",14.4,"caiso_solar","CISO","physical","utility_pv"]
["VEDDER_1_SEKERN","TEXACO EXPLORATION & PROD (SE KERN RIVER",34.47,"caiso_chp","CISO","physical","cogen"]
["VEGA_6_SOLAR1","VEGA SOLAR",20,"caiso_solar","CISO","physical","utility_pv"]
["VENWD_1_WIND1","Windpark Unlimited 1",12.19591471,"caiso_wind","CISO","physical","in_state_wind_south"]
["VENWD_1_WIND2","Windpark Unlimited 2",16,"caiso_wind","CISO","physical","in_state_wind_south"]
["VENWD_1_WIND3","PAINTED HILLS",44.53,"caiso_wind","CISO","physical","in_state_wind_south"]
["VERNON_6_GONZL1","H. GONZALES UNIT #1",5.75,"caiso_peaker1","CISO","physical","gas_ct"]
["VERNON_6_GONZL2","H. GONZALES UNIT #2",5.75,"caiso_peaker1","CISO","physical","gas_ct"]
["VERNON_6_MALBRG","MALBURG GENERATING STATION",134,"caiso_ccgt2","CISO","physical","gas_cc"]
["VESTAL_2_KERN","KERN RIVER PH 3 UNITS 1 & 2 AGGREGATE",36.799999999999997,"caiso_hydro","CISO","physical","hydro"]
["VESTAL_2_RTS042","SPVP042 PORTERVILLE SOLAR",5,"caiso_solar","CISO","physical","utility_pv"]
["VESTAL_2_SOLAR1","NICOLIS",20,"caiso_solar","CISO","physical","utility_pv"]
["VESTAL_2_SOLAR2","TROPICO",14,"caiso_solar","CISO","physical","utility_pv"]
["VESTAL_2_TS5SR1","TULARE SOLAR 5",55.8,"caiso_solar","CISO","physical","utility_pv"]
["VESTAL_2_UNIT1","CALGREN-PIXLEY",5,"caiso_chp","CISO","physical","cogen"]
["VESTAL_2_WELLHD","WELLHEAD POWER DELANO",49,"caiso_peaker1","CISO","physical","gas_ct"]
["VESTAL_6_QF","ISABELLA HYDRO DAM 1",11.95,"caiso_small_hydro","CISO","physical","small_hydro"]
["VICTOR_1_CREST","NAN",24.49,"caiso_solar","CISO","physical","utility_pv"]
["VICTOR_1_EXSLRA","EXPRESSWAY SOLAR A",2,"caiso_solar","CISO","physical","utility_pv"]
["VICTOR_1_EXSLRB","EXPRESSWAY SOLAR B",2,"caiso_solar","CISO","physical","utility_pv"]
["VICTOR_1_LVSLR1","LONE VALLEY SOLAR PARK 1",10,"caiso_solar","CISO","physical","utility_pv"]
["VICTOR_1_LVSLR2","LONE VALLEY SOLAR PARK 2",20,"caiso_solar","CISO","physical","utility_pv"]
["VICTOR_1_SLRHES","SUNEDISON - HESPERIA",1.5,"caiso_solar","CISO","physical","utility_pv"]
["VICTOR_1_SOLAR1","VICTOR PHELAN SOLAR ONE",17.5,"caiso_solar","CISO","physical","utility_pv"]
["VICTOR_1_SOLAR2","ALAMO SOLAR",20,"caiso_solar","CISO","physical","utility_pv"]
["VICTOR_1_SOLAR3","ADELANTO SOLAR 2",7,"caiso_solar","CISO","physical","utility_pv"]
["VICTOR_1_SOLAR4","ADELANTO SOLAR",20,"caiso_solar","CISO","physical","utility_pv"]
["VICTOR_1_VDRYFA","VICTOR DRY FARM RANCH A",5,"caiso_solar","CISO","physical","utility_pv"]
["VICTOR_1_VDRYFB","VICTOR DRY FARM RANCH B",5,"caiso_solar","CISO","physical","utility_pv"]
["VILLPK_2_VALLYV","MWD VALLEY VIEW HYDROELECTRIC RECOVERY P",4.0999999999999996,"caiso_hydro","CISO","physical","hydro"]
["VILLPK_6_MWDYOR","YORBA LINDA HYDROELECTRIC RECOVERY PLANT",5.0999999999999996,"caiso_hydro","CISO","physical","hydro"]
["VINCNT_2_QF","NAN",207,"caiso_wind","CISO","physical","in_state_wind_south"]
["VINCNT_2_WESTWD","NAN",59,"caiso_wind","CISO","physical","in_state_wind_south"]
["VISTA_2_FCELL","CSUSB FUEL CELL",1.4,"caiso_chp","CISO","physical","cogen"]
["VISTA_2_RIALTO","RIALTO RT SOLAR",1,"caiso_solar","CISO","physical","utility_pv"]
["VISTA_2_RTS028","SPVP028",3.5,"caiso_solar","CISO","physical","utility_pv"]
["VISTA_6_QF","VISTA QFS",0.18,"caiso_small_hydro","CISO","physical","small_hydro"]
["VISTRA_5_DALBT1","DALLAS ENERGY STORAGE",100,"caiso_li_battery","CISO","physical","hr_batteries"]
["VISTRA_5_DALBT2","DALLAS ENERGY STORAGE 2",100,"caiso_li_battery","CISO","physical","hr_batteries"]
["VISTRA_5_DALBT3","DALLAS ENERGY STORAGE 3",100,"caiso_li_battery","CISO","physical","hr_batteries"]
["VISTRA_5_DALBT4","DALLAS ENERGY STORAGE 4",100,"caiso_li_battery","CISO","physical","hr_batteries"]
["VLCNTR_6_VCEBT1","Valley Center Energy Storage",54,"caiso_li_battery","CISO","physical","hr_batteries"]
["VLCNTR_6_VCEBT2","Valley Center Energy Storage B",50,"caiso_li_battery","CISO","physical","hr_batteries"]
["VLCNTR_6_VCSLR","COLE GRADE",2.33,"caiso_solar","CISO","physical","utility_pv"]
["VLCNTR_6_VCSLR1","VALLEY CENTER 1",2.5,"caiso_solar","CISO","physical","utility_pv"]
["VLCNTR_6_VCSLR2","VALLEY CENTER 2",5,"caiso_solar","CISO","physical","utility_pv"]
["VLYHOM_7_SSJID","WOODWARD POWER PLANT",3,"caiso_small_hydro","CISO","physical","small_hydro"]
["VOLTA_2_UNIT 1","VOLTA HYDRO UNIT 1",9.1,"caiso_hydro","CISO","physical","hydro"]
["VOLTA_2_UNIT 2","VOLTA HYDRO UNIT 2",1,"caiso_hydro","CISO","physical","hydro"]
["VOLTA_6_BAILCK","BAILEY CREEK RANCH",0.63,"caiso_hydro","CISO","physical","hydro"]
["VOLTA_6_DIGHYD","DIGGER CREEK RANCH HYDRO",0.6,"caiso_small_hydro","CISO","physical","small_hydro"]
["VOLTA_7_PONHY1","VOLTA_7_PONHY1",1.25,"caiso_hydro","CISO","physical","hydro"]
["VOLTA_7_QFUNTS","VOLTA_7_QFUNTS",0.15,"caiso_small_hydro","CISO","physical","small_hydro"]
["VOYAGR_2_VOAWD5","VOYAGER WIND OASIS ALTA",13.98,"caiso_wind","CISO","physical","in_state_wind_south"]
["VOYAGR_2_VOYWD1","VOYAGER 1",128.91,"caiso_wind","CISO","physical","in_state_wind_south"]
["VOYAGR_2_VOYWD2","VOYAGER WIND 2",126.35,"caiso_wind","CISO","physical","in_state_wind_south"]
["VOYAGR_2_VOYWD3","VOYAGER WIND 3",42.45,"caiso_wind","CISO","physical","in_state_wind_south"]
["VOYAGR_2_VOYWD4","VOYAGER WIND 4",21.01,"caiso_wind","CISO","physical","in_state_wind_south"]
["VSTAES_6_VESBT1","VISTA ENERGY STORAGE",40,"caiso_li_battery","CISO","physical","hr_batteries"]
["VULCAN_1","NAN",38,"iid_geothermal","IID","physical","geothermal"]
["VULCAN_2","NAN",10.74,"iid_geothermal","IID","physical","geothermal"]
["VULCAN_EXPANDER","NAN",10.5,"iid_geothermal","IID","physical","geothermal"]
["WADHAM_6_UNIT","WADHAM ENERGY LP",29.07,"caiso_biomass","CISO","physical","biomass_wood"]
["WALCRK_2_CTG1","WALNUT CREEK ENERGY PARK UNIT 1",96.43,"caiso_peaker1","CISO","physical","gas_ct"]
["WALCRK_2_CTG2","WALNUT CREEK ENERGY PARK UNIT 2",96.91,"caiso_peaker1","CISO","physical","gas_ct"]
["WALCRK_2_CTG3","WALNUT CREEK ENERGY PARK UNIT 3",96.65,"caiso_peaker1","CISO","physical","gas_ct"]
["WALCRK_2_CTG4","WALNUT CREEK ENERGY PARK UNIT 4",96.49,"caiso_peaker1","CISO","physical","gas_ct"]
["WALCRK_2_CTG5","WALNUT CREEK ENERGY PARK UNIT 5",96.65,"caiso_peaker1","CISO","physical","gas_ct"]
["WALNUT_2_SOLAR","INDUSTRY METROLINK PV 1",1.5,"caiso_solar","CISO","physical","utility_pv"]
["WALNUT_6_HILLGEN","PUENTE HILLS",47,"caiso_biomass","CISO","physical","biomass_wood"]
["WALNUT_7_WCOVCT","NAN",0.2,"caiso_geothermal","CISO","physical","geothermal"]
["WALNUT_7_WCOVST","MM WEST COVINA - ST UNIT",6.5,"caiso_biomass","CISO","physical","biomass_wood"]
["WARNE_2_UNIT","WARNE HYDRO AGGREGATE",76,"caiso_hydro","CISO","physical","hydro"]
["WAUKNA_1_SOLAR","CORCORAN SOLAR",20,"caiso_solar","CISO","physical","utility_pv"]
["WAUKNA_1_SOLAR2","CORCORAN 2",19.75,"caiso_solar","CISO","physical","utility_pv"]
["WDLEAF_7_UNIT 1","WOODLEAF HYDRO",60,"caiso_hydro","CISO","physical","hydro"]
["WEBER_6_FORWRD","FORWARD",4.2,"caiso_biomass","CISO","physical","biomass_wood"]
["WESTLANDSSOLAR","NAN",19.88,"caiso_solar","CISO","physical","utility_pv"]
["WESTPT_2_UNIT","WEST POINT HYDRO PLANT",14,"caiso_small_hydro","CISO","physical","small_hydro"]
["WFRESN_1_SOLAR","JOYA DEL SOL",1.5,"caiso_solar","CISO","physical","utility_pv"]
["WHEATL_6_LNDFIL","G2 ENERGY, OSTROM ROAD LLC",3.55,"caiso_biomass","CISO","physical","biomass_wood"]
["WHITEH_2_MEADDYN1","WHITE HILLS A",50,"caiso_wind","WALC","specifiedimport","out_of_state_wind_AZNM"]
["WHITEH_2_MEADDYN2","WHITE HILLS B",300,"caiso_wind","WALC","specifiedimport","out_of_state_wind_AZNM"]
["WHITNY_6_SOLAR","WHITNEY POINT SOLAR",20,"caiso_solar","CISO","physical","utility_pv"]
["WHTWTR_1_WINDA1","WHITEWATER HILL WIND PROJECT",61.5,"caiso_wind","CISO","physical","in_state_wind_south"]
["WILLMS_6_ARBBM1","Abel Road Bioenergy",3,"caiso_biomass","CISO","physical","biogas"]
["WILSONASOLAR","NAN",14,"caiso_solar","CISO","physical","utility_pv"]
["WISE_1_UNIT 1","WISE HYDRO UNIT 1",14.5,"caiso_hydro","CISO","physical","hydro"]
["WISE_1_UNIT 2","WISE HYDRO UNIT 2",3.2,"caiso_hydro","CISO","physical","hydro"]
["WISHON_6_UNITS","WISHON/SAN JOAQUIN  #1-A AGGREGATE",18.399999999999999,"caiso_small_hydro","CISO","physical","small_hydro"]
["WISTER_2_WISSR1","Wister Solar",20,"caiso_solar","CISO","physical","utility_pv"]
["WISTRA_2_WRSSR1","WISTARIA RANCH SOLAR",100,"caiso_solar","CISO","physical","utility_pv"]
["WLDWD_1_SOLAR1","WILDWOOD SOLAR I",20,"caiso_solar","CISO","physical","utility_pv"]
["WLDWD_1_SOLAR2","WILDWOOD SOLAR 2",15,"caiso_solar","CISO","physical","utility_pv"]
["WNDMAS_2_UNIT 1","BUENA VISTA ENERGY, LLC",38,"caiso_wind","CISO","physical","in_state_wind_north"]
["WNDSTR_2_WIND","WINDSTAR",120,"caiso_wind","CISO","physical","in_state_wind_south"]
["WOLFSK_1_UNITA1","WOLFSKILL ENERGY CENTER",46.9,"caiso_peaker2","CISO","physical","gas_ct"]
["WOODLAND_1","NAN",49,"banc_peaker","BANC","physical","gas_ct"]
["WOODLAND_3A","NAN",8.1999999999999993,"banc_reciprocating_engine","BANC","physical","ice"]
["WOODLAND_3B","NAN",8.1999999999999993,"banc_reciprocating_engine","BANC","physical","ice"]
["WOODLAND_3C","NAN",8.1999999999999993,"banc_reciprocating_engine","BANC","physical","ice"]
["WOODLAND_3D","NAN",8.1999999999999993,"banc_reciprocating_engine","BANC","physical","ice"]
["WOODLAND_3E","NAN",8.1999999999999993,"banc_reciprocating_engine","BANC","physical","ice"]
["WOODLAND_3F","NAN",8.1999999999999993,"banc_reciprocating_engine","BANC","physical","ice"]
["WOODLAND_CC","NAN",84.2,"banc_ccgt","BANC","physical","gas_cc"]
["WOODWR_1_HYDRO","QUINTEN LUALLEN",7.3,"caiso_hydro","CISO","physical","hydro"]
["WRGHTP_7_AMENGY","SMALL QF AGGREGATION - LOS BANOS",2.5,"caiso_hydro","CISO","physical","hydro"]
["WRGTSR_2_WSFSR1","WRIGHT SOLAR FREEMAN",200,"caiso_solar","CISO","physical","utility_pv"]
["WRIGHTFREEMANSTORAGE","NAN",80,"caiso_li_battery","CISO","physical","hr_batteries"]
["WSENGY_1_UNIT 1","WHEELABRATOR SHASTA",50,"caiso_biomass","CISO","physical","biomass_wood"]
["WSNR_2_CVPDYN","CENTRAL VALLEY 1",10,"caiso_hydro","BANC","specifiedimport","hydro"]
["WSNR_2_TESLADYN","CENTRAL VALLEY TESLA",10,"caiso_hydro","BANC","specifiedimport","hydro"]
["WSNR_5_TRCYDYN","CENTRAL VALLEY TRACY",10,"caiso_hydro","BANC","specifiedimport","hydro"]
["WSTWND_2_M89WD1_LESR","Mojave 89",70.599999999999994,"caiso_li_battery","CISO","physical","hr_batteries"]
["WSTWND_2_M89WD1_WIND","Mojave 89",82.65,"caiso_wind","CISO","physical","in_state_wind_south"]
["WSTWND_2_M90BT1","MOJAVE 90 BESS 1A",15.71,"caiso_li_battery","CISO","physical","hr_batteries"]
["WSTWND_2_M90WD2","MOJAVE 90",48.85,"caiso_wind","CISO","physical","in_state_wind_south"]
["WSTWND_2_SBSBT1","Sagebrush Solar 2",80,"caiso_li_battery","CISO","physical","hr_batteries"]
["YUBACT_1_SUNSWT","YUBA CITY COGEN",49.97,"caiso_chp","CISO","physical","cogen"]
["YUBACT_6_UNITA1","YUBA CITY ENERGY CENTER (CALPINE)",47.6,"caiso_peaker2","CISO","physical","gas_ct"]
["YUCCA_GT21","NAN",22,"iid_peaker","IID","physical","gas_ct"]
["YUCCA_ST1","NAN",75,"iid_st","IID","physical","steam"]
["ZOND_6_UNIT","ZOND WINDSYSTEMS INC.",17.100000000000001,"caiso_wind","CISO","physical","in_state_wind_north"]
["_BRANCH_GENERIC_AMARGO_ITC","AMARGOSA230",null,"nan","NAN","unspecifiedimport","n/a"]
["_BRANCH_GENERIC_BLYTHE_ITC","BLYTHE161",null,"nan","NAN","unspecifiedimport","n/a"]
["_BRANCH_GENERIC_CASCADE_ITC","CRAG",null,"nan","NAN","unspecifiedimport","n/a"]
["_BRANCH_GENERIC_CFE_ITC","CFETIJ & CFEROA",null,"nan","NAN","unspecifiedimport","n/a"]
["_BRANCH_GENERIC_COTPISO_ITC","TRCYCOTPISO",null,"nan","NAN","unspecifiedimport","n/a"]
["_BRANCH_GENERIC_CTW230_ITC","CTW230",null,"nan","NAN","unspecifiedimport","n/a"]
["_BRANCH_GENERIC_ELDORADO_ITC","WILLOWBEACH",null,"nan","NAN","unspecifiedimport","n/a"]
["_BRANCH_GENERIC_GONDIPPDC_ITC","GONIPP",null,"nan","NAN","unspecifiedimport","n/a"]
["_BRANCH_GENERIC_IID-SCE_ITC","MIR2",null,"nan","NAN","unspecifiedimport","n/a"]
["_BRANCH_GENERIC_IID-SDGE_ITC","IVLY2",null,"nan","NAN","unspecifiedimport","n/a"]
["_BRANCH_GENERIC_IPPDCADLN_ITC","IPP & IPPUTAH",null,"nan","NAN","unspecifiedimport","n/a"]
["_BRANCH_GENERIC_LAUGHLIN_ITC","MOHAVE500",null,"nan","NAN","unspecifiedimport","n/a"]
["_BRANCH_GENERIC_LLNL_ITC","LLL115",null,"nan","NAN","unspecifiedimport","n/a"]
["_BRANCH_GENERIC_MALIN500_ISL","MALIN500",null,"nan","NAN","unspecifiedimport","n/a"]
["_BRANCH_GENERIC_MARBLE_ITC","MARBLE60",null,"nan","NAN","unspecifiedimport","n/a"]
["_BRANCH_GENERIC_MCCLMKTPC_ITC","MCCULLOUG500",null,"nan","NAN","unspecifiedimport","n/a"]
["_BRANCH_GENERIC_MCCULLGH_ITC","ELDORADO500",null,"nan","NAN","unspecifiedimport","n/a"]
["_BRANCH_GENERIC_MEADMKTPC_ITC","MEAD5MSCHD",null,"nan","NAN","unspecifiedimport","n/a"]
["_BRANCH_GENERIC_MEADTMEAD_ITC","MEAD2MSCHD",null,"nan","NAN","unspecifiedimport","n/a"]
["_BRANCH_GENERIC_MEAD_ITC","MEAD230",null,"nan","NAN","unspecifiedimport","n/a"]
["_BRANCH_GENERIC_MERCHANT_ITC","ELDORADO230",null,"nan","NAN","unspecifiedimport","n/a"]
["_BRANCH_GENERIC_MERCURY_ITC","MERCURY138",null,"nan","NAN","unspecifiedimport","n/a"]
["_BRANCH_GENERIC_MKTPCADLN_ITC","MARKETPLACE",null,"nan","NAN","unspecifiedimport","n/a"]
["_BRANCH_GENERIC_MONAIPPDC_ITC","MDWP",null,"nan","NAN","unspecifiedimport","n/a"]
["_BRANCH_GENERIC_NEWMELONP_ITC","NML230",null,"nan","NAN","unspecifiedimport","n/a"]
["_BRANCH_GENERIC_NOB_ITC","NOB",null,"nan","NAN","unspecifiedimport","n/a"]
["_BRANCH_GENERIC_NORTHGILA500_ITC","NORTHGILA500",null,"nan","NAN","unspecifiedimport","n/a"]
["_BRANCH_GENERIC_NWEST230_ITC","NWEST",null,"nan","NAN","unspecifiedimport","n/a"]
["_BRANCH_GENERIC_OAKDALE_ITC","OAKDALE",null,"nan","NAN","unspecifiedimport","n/a"]
["_BRANCH_GENERIC_PALOVRDE_ITC","PVWEST",null,"nan","NAN","unspecifiedimport","n/a"]
["_BRANCH_GENERIC_PARKER_ITC","PARKER230",null,"nan","NAN","unspecifiedimport","n/a"]
["_BRANCH_GENERIC_RDM230_ITC","RDM230",null,"nan","NAN","unspecifiedimport","n/a"]
["_BRANCH_GENERIC_RNCHLAKE_ITC","LAKE & RANCHOSECO",null,"nan","NAN","unspecifiedimport","n/a"]
["_BRANCH_GENERIC_SILVERPK_ITC","SILVERPEAK55",null,"nan","NAN","unspecifiedimport","n/a"]
["_BRANCH_GENERIC_STANDIFORD_ITC","STANDIFORD",null,"nan","NAN","unspecifiedimport","n/a"]
["_BRANCH_GENERIC_SUMMIT_ITC","SUMMIT120",null,"nan","NAN","unspecifiedimport","n/a"]
["_BRANCH_GENERIC_SYLMAR-AC_ITC","SYLMAR",null,"nan","NAN","unspecifiedimport","n/a"]
["_BRANCH_GENERIC_TRACY230_ITC","TESLA230",null,"nan","NAN","unspecifiedimport","n/a"]
["_BRANCH_GENERIC_TRACY500_ITC","TRCYPGAE & TRCYCOTP",null,"nan","NAN","unspecifiedimport","n/a"]
["_BRANCH_GENERIC_TRCYTEA_ITC","TRCYTEA",null,"nan","NAN","unspecifiedimport","n/a"]
["_BRANCH_GENERIC_VICTVL_ITC","LUGO",null,"nan","NAN","unspecifiedimport","n/a"]
["_BRANCH_GENERIC_WESTLYLBNS_ITC","WESTLYQNTO",null,"nan","NAN","unspecifiedimport","n/a"]
["_BRANCH_GENERIC_WESTLYTSLA_ITC","WESTLYTSLA",null,"nan","NAN","unspecifiedimport","n/a"]
["_BRANCH_GENERIC_WSTWGMEAD_ITC","WESTWING500",null,"nan","NAN","unspecifiedimport","n/a"]
["_CREZ_GENERIC_ARIZONA_SOLAR","NAN",null,"caiso_solar","NAN","newresolve","utility_pv"]
["_CREZ_GENERIC_ARIZONA_WIND","NAN",null,"caiso_wind","NAN","newresolve","out_of_state_wind_AZNM"]
["_CREZ_GENERIC_BAJA_CALIFORNIA_SOLAR","NAN",null,"caiso_solar","NAN","newresolve","utility_pv"]
["_CREZ_GENERIC_BAJA_CALIFORNIA_WIND","NAN",null,"caiso_wind","NAN","newresolve","in_state_wind_south"]
["_CREZ_GENERIC_CAPE_MENDOCINO_OFFSHORE_WIND","NAN",null,"caiso_wind","NAN","newresolve","offshore_wind"]
["_CREZ_GENERIC_CARRIZO_SOLAR","NAN",null,"caiso_solar","NAN","newresolve","utility_pv"]
["_CREZ_GENERIC_CARRIZO_WIND","NAN",null,"caiso_wind","NAN","newresolve","in_state_wind_north"]
["_CREZ_GENERIC_CENTRAL_VALLEY_NORTH_LOS_BANOS_SOLAR","NAN",null,"caiso_solar","NAN","newresolve","utility_pv"]
["_CREZ_GENERIC_CENTRAL_VALLEY_NORTH_LOS_BANOS_WIND","NAN",null,"caiso_wind","NAN","newresolve","in_state_wind_north"]
["_CREZ_GENERIC_DEL_NORTE_OFFSHORE_WIND","NAN",null,"caiso_wind","NAN","newresolve","offshore_wind"]
["_CREZ_GENERIC_DIABLO_CANYON_EXT_TX_OFFSHORE_WIND","NAN",null,"caiso_wind","NAN","newresolve","offshore_wind"]
["_CREZ_GENERIC_DIABLO_CANYON_OFFSHORE_WIND","NAN",null,"caiso_wind","NAN","newresolve","offshore_wind"]
["_CREZ_GENERIC_DISTRIBUTED_SOLAR","NAN",null,"caiso_solar","NAN","newresolve","utility_pv"]
["_CREZ_GENERIC_DISTRIBUTED_WIND","NAN",null,"caiso_wind","NAN","newresolve","in_state_wind_south"]
["_CREZ_GENERIC_GREATER_IMPERIAL_GEOTHERMAL","NAN",null,"caiso_geothermal","NAN","newresolve","geothermal"]
["_CREZ_GENERIC_GREATER_IMPERIAL_SOLAR","NAN",null,"caiso_solar","NAN","newresolve","utility_pv"]
["_CREZ_GENERIC_GREATER_IMPERIAL_WIND","NAN",null,"caiso_wind","NAN","newresolve","in_state_wind_south"]
["_CREZ_GENERIC_GREATER_KRAMER_SOLAR","NAN",null,"caiso_solar","NAN","newresolve","utility_pv"]
["_CREZ_GENERIC_GREATER_KRAMER_WIND","NAN",null,"caiso_wind","NAN","newresolve","in_state_wind_south"]
["_CREZ_GENERIC_HUMBOLDT_BAY_OFFSHORE_WIND","NAN",null,"caiso_wind","NAN","newresolve","offshore_wind"]
["_CREZ_GENERIC_HUMBOLDT_WIND","NAN",null,"caiso_wind","NAN","newresolve","in_state_wind_north"]
["_CREZ_GENERIC_IDAHO_WIND","NAN",null,"caiso_wind","NAN","newresolve","out_of_state_wind_WYID"]
["_CREZ_GENERIC_INSTATE_BIOMASS","NAN",null,"caiso_biomass","NAN","newresolve","biomass_wood"]
["_CREZ_GENERIC_INYOKERN_NORTH_KRAMER_GEOTHERMAL","NAN",null,"caiso_geothermal","NAN","newresolve","geothermal"]
["_CREZ_GENERIC_INYOKERN_NORTH_KRAMER_SOLAR","NAN",null,"caiso_solar","NAN","newresolve","utility_pv"]
["_CREZ_GENERIC_KERN_GREATER_CARRIZO_SOLAR","NAN",null,"caiso_solar","NAN","newresolve","utility_pv"]
["_CREZ_GENERIC_KERN_GREATER_CARRIZO_WIND","NAN",null,"caiso_wind","NAN","newresolve","in_state_wind_north"]
["_CREZ_GENERIC_KRAMER_INYOKERN_EX_SOLAR","NAN",null,"caiso_solar","NAN","newresolve","utility_pv"]
["_CREZ_GENERIC_KRAMER_INYOKERN_EX_WIND","NAN",null,"caiso_wind","NAN","newresolve","in_state_wind_south"]
["_CREZ_GENERIC_MORRO_BAY_OFFSHORE_WIND","NAN",null,"caiso_wind","NAN","newresolve","offshore_wind"]
["_CREZ_GENERIC_MOUNTAIN_PASS_EL_DORADO_SOLAR","NAN",null,"caiso_solar","NAN","newresolve","utility_pv"]
["_CREZ_GENERIC_NEW_MEXICO_SOLAR","NAN",null,"caiso_solar","NAN","newresolve","utility_pv"]
["_CREZ_GENERIC_NEW_MEXICO_WIND","NAN",null,"caiso_wind","NAN","newresolve","out_of_state_wind_AZNM"]
["_CREZ_GENERIC_NORTHERN_CALIFORNIA_EX_GEOTHERMAL","NAN",null,"caiso_geothermal","NAN","newresolve","geothermal"]
["_CREZ_GENERIC_NORTHERN_CALIFORNIA_EX_SOLAR","NAN",null,"caiso_solar","NAN","newresolve","utility_pv"]
["_CREZ_GENERIC_NORTHERN_CALIFORNIA_EX_WIND","NAN",null,"caiso_wind","NAN","newresolve","in_state_wind_north"]
["_CREZ_GENERIC_NORTH_VICTOR_SOLAR","NAN",null,"caiso_solar","NAN","newresolve","utility_pv"]
["_CREZ_GENERIC_NW_BIOMASS","NAN",null,"caiso_biomass","NAN","newresolve","biomass_wood"]
["_CREZ_GENERIC_NW_EXT_TX_WIND","NAN",null,"caiso_wind","NAN","newresolve","in_state_wind_north"]
["_CREZ_GENERIC_NW_SMALL_HYDRO","NAN",null,"caiso_small_hydro","NAN","newresolve","small_hydro"]
["_CREZ_GENERIC_PACIFIC_NORTHWEST_GEOTHERMAL","NAN",null,"caiso_geothermal","NAN","newresolve","geothermal"]
["_CREZ_GENERIC_PACIFIC_NORTHWEST_WIND","NAN",null,"caiso_wind","NAN","newresolve","out_of_state_wind_WAOR"]
["_CREZ_GENERIC_RIVERSIDE_PALM_SPRINGS_GEOTHERMAL","NAN",null,"caiso_geothermal","NAN","newresolve","geothermal"]
["_CREZ_GENERIC_RIVERSIDE_PALM_SPRINGS_SOLAR","NAN",null,"caiso_solar","NAN","newresolve","utility_pv"]
["_CREZ_GENERIC_SACRAMENTO_RIVER_SOLAR","NAN",null,"caiso_solar","NAN","newresolve","utility_pv"]
["_CREZ_GENERIC_SACRAMENTO_RIVER_WIND","NAN",null,"caiso_wind","NAN","newresolve","in_state_wind_north"]
["_CREZ_GENERIC_SCADSNV_SOLAR","NAN",null,"caiso_solar","NAN","newresolve","utility_pv"]
["_CREZ_GENERIC_SCADSNV_WIND","NAN",null,"caiso_wind","NAN","newresolve","in_state_wind_south"]
["_CREZ_GENERIC_SOLANO_GEOTHERMAL","NAN",null,"caiso_geothermal","NAN","newresolve","geothermal"]
["_CREZ_GENERIC_SOLANO_SOLAR","NAN",null,"caiso_solar","NAN","newresolve","utility_pv"]
["_CREZ_GENERIC_SOLANO_SUBZONE_SOLAR","NAN",null,"caiso_solar","NAN","newresolve","utility_pv"]
["_CREZ_GENERIC_SOLANO_SUBZONE_WIND","NAN",null,"caiso_wind","NAN","newresolve","in_state_wind_north"]
["_CREZ_GENERIC_SOLANO_WIND","NAN",null,"caiso_wind","NAN","newresolve","in_state_wind_north"]
["_CREZ_GENERIC_SOUTHERN_CALIFORNIA_DESERT_EX_SOLAR","NAN",null,"caiso_solar","NAN","newresolve","utility_pv"]
["_CREZ_GENERIC_SOUTHERN_CALIFORNIA_DESERT_EX_WIND","NAN",null,"caiso_wind","NAN","newresolve","in_state_wind_south"]
["_CREZ_GENERIC_SOUTHERN_CA_DESERT_SOUTHERN_NV_SOLAR","NAN",null,"caiso_solar","NAN","newresolve","utility_pv"]
["_CREZ_GENERIC_SOUTHERN_CA_DESERT_SOUTHERN_NV_WIND","NAN",null,"caiso_wind","NAN","newresolve","in_state_wind_south"]
["_CREZ_GENERIC_SOUTHERN_NEVADA_GEOTHERMAL","NAN",null,"caiso_geothermal","NAN","newresolve","geothermal"]
["_CREZ_GENERIC_SOUTHERN_NEVADA_SOLAR","NAN",null,"caiso_solar","NAN","newresolve","utility_pv"]
["_CREZ_GENERIC_SOUTHERN_NEVADA_WIND","NAN",null,"caiso_wind","NAN","newresolve","in_state_wind_south"]
["_CREZ_GENERIC_SW_BIOMASS","NAN",null,"caiso_biomass","NAN","newresolve","biomass_wood"]
["_CREZ_GENERIC_SW_EXT_TX_WIND","NAN",null,"caiso_wind","NAN","newresolve","out_of_state_wind_AZNM"]
["_CREZ_GENERIC_TEHACHAPI_EX_SOLAR","NAN",null,"caiso_solar","NAN","newresolve","utility_pv"]
["_CREZ_GENERIC_TEHACHAPI_SOLAR","NAN",null,"caiso_solar","NAN","newresolve","utility_pv"]
["_CREZ_GENERIC_TEHACHAPI_WIND","NAN",null,"caiso_wind","NAN","newresolve","in_state_wind_south"]
["_CREZ_GENERIC_UTAH_SOLAR","NAN",null,"caiso_solar","NAN","newresolve","utility_pv"]
["_CREZ_GENERIC_UTAH_WIND","NAN",null,"caiso_wind","NAN","newresolve","out_of_state_wind_AZNM"]
["_CREZ_GENERIC_WESTLANDS_EX_SOLAR","NAN",null,"caiso_solar","NAN","newresolve","utility_pv"]
["_CREZ_GENERIC_WESTLANDS_EX_WIND","NAN",null,"caiso_wind","NAN","newresolve","in_state_wind_north"]
["_CREZ_GENERIC_WESTLANDS_SOLAR","NAN",null,"caiso_solar","NAN","newresolve","utility_pv"]
["_CREZ_GENERIC_WYOMING_WIND","NAN",null,"caiso_wind","NAN","newresolve","out_of_state_wind_WYID"]
["_CREZ_UNBUNDLEDREC_ARIZONA_SOLAR","NAN",null,"caiso_solar","NAN","unbundledrec","n/a"]
["_CREZ_UNBUNDLEDREC_ARIZONA_WIND","NAN",null,"caiso_wind","NAN","unbundledrec","n/a"]
["_CREZ_UNBUNDLEDREC_BAJA_CALIFORNIA_SOLAR","NAN",null,"caiso_solar","NAN","unbundledrec","n/a"]
["_CREZ_UNBUNDLEDREC_BAJA_CALIFORNIA_WIND","NAN",null,"caiso_wind","NAN","unbundledrec","n/a"]
["_CREZ_UNBUNDLEDREC_CAPE_MENDOCINO_OFFSHORE_WIND","NAN",null,"caiso_wind","NAN","unbundledrec","n/a"]
["_CREZ_UNBUNDLEDREC_CARRIZO_SOLAR","NAN",null,"caiso_solar","NAN","unbundledrec","n/a"]
["_CREZ_UNBUNDLEDREC_CARRIZO_WIND","NAN",null,"caiso_wind","NAN","unbundledrec","n/a"]
["_CREZ_UNBUNDLEDREC_CENTRAL_VALLEY_NORTH_LOS_BANOS_SOLAR","NAN",null,"caiso_solar","NAN","unbundledrec","n/a"]
["_CREZ_UNBUNDLEDREC_CENTRAL_VALLEY_NORTH_LOS_BANOS_WIND","NAN",null,"caiso_wind","NAN","unbundledrec","n/a"]
["_CREZ_UNBUNDLEDREC_DEL_NORTE_OFFSHORE_WIND","NAN",null,"caiso_wind","NAN","unbundledrec","n/a"]
["_CREZ_UNBUNDLEDREC_DIABLO_CANYON_EXT_TX_OFFSHORE_WIND","NAN",null,"caiso_wind","NAN","unbundledrec","n/a"]
["_CREZ_UNBUNDLEDREC_DIABLO_CANYON_OFFSHORE_WIND","NAN",null,"caiso_wind","NAN","unbundledrec","n/a"]
["_CREZ_UNBUNDLEDREC_DISTRIBUTED_SOLAR","NAN",null,"caiso_solar","NAN","unbundledrec","n/a"]
["_CREZ_UNBUNDLEDREC_DISTRIBUTED_WIND","NAN",null,"caiso_wind","NAN","unbundledrec","n/a"]
["_CREZ_UNBUNDLEDREC_GREATER_IMPERIAL_GEOTHERMAL","NAN",null,"caiso_geothermal","NAN","unbundledrec","n/a"]
["_CREZ_UNBUNDLEDREC_GREATER_IMPERIAL_SOLAR","NAN",null,"caiso_solar","NAN","unbundledrec","n/a"]
["_CREZ_UNBUNDLEDREC_GREATER_IMPERIAL_WIND","NAN",null,"caiso_wind","NAN","unbundledrec","n/a"]
["_CREZ_UNBUNDLEDREC_GREATER_KRAMER_SOLAR","NAN",null,"caiso_solar","NAN","unbundledrec","n/a"]
["_CREZ_UNBUNDLEDREC_GREATER_KRAMER_WIND","NAN",null,"caiso_wind","NAN","unbundledrec","n/a"]
["_CREZ_UNBUNDLEDREC_HUMBOLDT_BAY_OFFSHORE_WIND","NAN",null,"caiso_wind","NAN","unbundledrec","n/a"]
["_CREZ_UNBUNDLEDREC_HUMBOLDT_WIND","NAN",null,"caiso_wind","NAN","unbundledrec","n/a"]
["_CREZ_UNBUNDLEDREC_IDAHO_WIND","NAN",null,"caiso_wind","NAN","unbundledrec","n/a"]
["_CREZ_UNBUNDLEDREC_INSTATE_BIOMASS","NAN",null,"caiso_biomass","NAN","unbundledrec","n/a"]
["_CREZ_UNBUNDLEDREC_INYOKERN_NORTH_KRAMER_GEOTHERMAL","NAN",null,"caiso_geothermal","NAN","unbundledrec","n/a"]
["_CREZ_UNBUNDLEDREC_INYOKERN_NORTH_KRAMER_SOLAR","NAN",null,"caiso_solar","NAN","unbundledrec","n/a"]
["_CREZ_UNBUNDLEDREC_KERN_GREATER_CARRIZO_SOLAR","NAN",null,"caiso_solar","NAN","unbundledrec","n/a"]
["_CREZ_UNBUNDLEDREC_KERN_GREATER_CARRIZO_WIND","NAN",null,"caiso_wind","NAN","unbundledrec","n/a"]
["_CREZ_UNBUNDLEDREC_KRAMER_INYOKERN_EX_SOLAR","NAN",null,"caiso_solar","NAN","unbundledrec","n/a"]
["_CREZ_UNBUNDLEDREC_KRAMER_INYOKERN_EX_WIND","NAN",null,"caiso_wind","NAN","unbundledrec","n/a"]
["_CREZ_UNBUNDLEDREC_MORRO_BAY_OFFSHORE_WIND","NAN",null,"caiso_wind","NAN","unbundledrec","n/a"]
["_CREZ_UNBUNDLEDREC_MOUNTAIN_PASS_EL_DORADO_SOLAR","NAN",null,"caiso_solar","NAN","unbundledrec","n/a"]
["_CREZ_UNBUNDLEDREC_NEW_MEXICO_SOLAR","NAN",null,"caiso_solar","NAN","unbundledrec","n/a"]
["_CREZ_UNBUNDLEDREC_NEW_MEXICO_WIND","NAN",null,"caiso_wind","NAN","unbundledrec","n/a"]
["_CREZ_UNBUNDLEDREC_NORTHERN_CALIFORNIA_EX_GEOTHERMAL","NAN",null,"caiso_geothermal","NAN","unbundledrec","n/a"]
["_CREZ_UNBUNDLEDREC_NORTHERN_CALIFORNIA_EX_SOLAR","NAN",null,"caiso_solar","NAN","unbundledrec","n/a"]
["_CREZ_UNBUNDLEDREC_NORTHERN_CALIFORNIA_EX_WIND","NAN",null,"caiso_wind","NAN","unbundledrec","n/a"]
["_CREZ_UNBUNDLEDREC_NORTH_VICTOR_SOLAR","NAN",null,"caiso_solar","NAN","unbundledrec","n/a"]
["_CREZ_UNBUNDLEDREC_NW_BIOMASS","NAN",null,"caiso_biomass","NAN","unbundledrec","n/a"]
["_CREZ_UNBUNDLEDREC_NW_EXT_TX_WIND","NAN",null,"caiso_wind","NAN","unbundledrec","n/a"]
["_CREZ_UNBUNDLEDREC_NW_SMALL_HYDRO","NAN",null,"caiso_small_hydro","NAN","unbundledrec","n/a"]
["_CREZ_UNBUNDLEDREC_PACIFIC_NORTHWEST_GEOTHERMAL","NAN",null,"caiso_geothermal","NAN","unbundledrec","n/a"]
["_CREZ_UNBUNDLEDREC_PACIFIC_NORTHWEST_WIND","NAN",null,"caiso_wind","NAN","unbundledrec","n/a"]
["_CREZ_UNBUNDLEDREC_RIVERSIDE_PALM_SPRINGS_GEOTHERMAL","NAN",null,"caiso_geothermal","NAN","unbundledrec","n/a"]
["_CREZ_UNBUNDLEDREC_RIVERSIDE_PALM_SPRINGS_SOLAR","NAN",null,"caiso_solar","NAN","unbundledrec","n/a"]
["_CREZ_UNBUNDLEDREC_SACRAMENTO_RIVER_SOLAR","NAN",null,"caiso_solar","NAN","unbundledrec","n/a"]
["_CREZ_UNBUNDLEDREC_SACRAMENTO_RIVER_WIND","NAN",null,"caiso_wind","NAN","unbundledrec","n/a"]
["_CREZ_UNBUNDLEDREC_SCADSNV_SOLAR","NAN",null,"caiso_solar","NAN","unbundledrec","n/a"]
["_CREZ_UNBUNDLEDREC_SCADSNV_WIND","NAN",null,"caiso_wind","NAN","unbundledrec","n/a"]
["_CREZ_UNBUNDLEDREC_SOLANO_GEOTHERMAL","NAN",null,"caiso_geothermal","NAN","unbundledrec","n/a"]
["_CREZ_UNBUNDLEDREC_SOLANO_SOLAR","NAN",null,"caiso_solar","NAN","unbundledrec","n/a"]
["_CREZ_UNBUNDLEDREC_SOLANO_SUBZONE_SOLAR","NAN",null,"caiso_solar","NAN","unbundledrec","n/a"]
["_CREZ_UNBUNDLEDREC_SOLANO_SUBZONE_WIND","NAN",null,"caiso_wind","NAN","unbundledrec","n/a"]
["_CREZ_UNBUNDLEDREC_SOLANO_WIND","NAN",null,"caiso_wind","NAN","unbundledrec","n/a"]
["_CREZ_UNBUNDLEDREC_SOUTHERN_CALIFORNIA_DESERT_EX_SOLAR","NAN",null,"caiso_solar","NAN","unbundledrec","n/a"]
["_CREZ_UNBUNDLEDREC_SOUTHERN_CALIFORNIA_DESERT_EX_WIND","NAN",null,"caiso_wind","NAN","unbundledrec","n/a"]
["_CREZ_UNBUNDLEDREC_SOUTHERN_CA_DESERT_SOUTHERN_NV_SOLAR","NAN",null,"caiso_solar","NAN","unbundledrec","n/a"]
["_CREZ_UNBUNDLEDREC_SOUTHERN_CA_DESERT_SOUTHERN_NV_WIND","NAN",null,"caiso_wind","NAN","unbundledrec","n/a"]
["_CREZ_UNBUNDLEDREC_SOUTHERN_NEVADA_GEOTHERMAL","NAN",null,"caiso_geothermal","NAN","unbundledrec","n/a"]
["_CREZ_UNBUNDLEDREC_SOUTHERN_NEVADA_SOLAR","NAN",null,"caiso_solar","NAN","unbundledrec","n/a"]
["_CREZ_UNBUNDLEDREC_SOUTHERN_NEVADA_WIND","NAN",null,"caiso_wind","NAN","unbundledrec","n/a"]
["_CREZ_UNBUNDLEDREC_SW_BIOMASS","NAN",null,"caiso_biomass","NAN","unbundledrec","n/a"]
["_CREZ_UNBUNDLEDREC_SW_EXT_TX_WIND","NAN",null,"caiso_wind","NAN","unbundledrec","n/a"]
["_CREZ_UNBUNDLEDREC_TEHACHAPI_EX_SOLAR","NAN",null,"caiso_solar","NAN","unbundledrec","n/a"]
["_CREZ_UNBUNDLEDREC_TEHACHAPI_SOLAR","NAN",null,"caiso_solar","NAN","unbundledrec","n/a"]
["_CREZ_UNBUNDLEDREC_TEHACHAPI_WIND","NAN",null,"caiso_wind","NAN","unbundledrec","n/a"]
["_CREZ_UNBUNDLEDREC_UTAH_SOLAR","NAN",null,"caiso_solar","NAN","unbundledrec","n/a"]
["_CREZ_UNBUNDLEDREC_UTAH_WIND","NAN",null,"caiso_wind","NAN","unbundledrec","n/a"]
["_CREZ_UNBUNDLEDREC_WESTLANDS_EX_SOLAR","NAN",null,"caiso_solar","NAN","unbundledrec","n/a"]
["_CREZ_UNBUNDLEDREC_WESTLANDS_EX_WIND","NAN",null,"caiso_wind","NAN","unbundledrec","n/a"]
["_CREZ_UNBUNDLEDREC_WESTLANDS_SOLAR","NAN",null,"caiso_solar","NAN","unbundledrec","n/a"]
["_CREZ_UNBUNDLEDREC_WYOMING_WIND","NAN",null,"caiso_wind","NAN","unbundledrec","n/a"]
["_EXISTING_GENERIC_BATTERY_STORAGE","NAN",null,"caiso_battery","NAN","existinggeneric","hr_batteries"]
["_EXISTING_GENERIC_BIOGAS_LANDFILLGAS","NAN",null,"caiso_biomass","NAN","existinggeneric","biomass_wood"]
["_EXISTING_GENERIC_BIOMASS/WOOD","NAN",null,"caiso_biomass","NAN","existinggeneric","biomass_wood"]
["_EXISTING_GENERIC_COAL","NAN",null,"caiso_coal","NAN","existinggeneric","coal"]
["_EXISTING_GENERIC_COGEN","NAN",null,"caiso_chp","NAN","existinggeneric","cogen"]
["_EXISTING_GENERIC_COMBINED_CYCLE","NAN",null,"caiso_ccgt1","NAN","existinggeneric","gas_cc"]
["_EXISTING_GENERIC_DR","NAN",null,"caiso_dr","NAN","existinggeneric","demand_response"]
["_EXISTING_GENERIC_GEOTHERMAL","NAN",null,"caiso_geothermal","NAN","existinggeneric","geothermal"]
["_EXISTING_GENERIC_ICE","NAN",null,"caiso_reciprocating_engine","NAN","existinggeneric","ice"]
["_EXISTING_GENERIC_INSTATE_LARGE_HYDRO","NAN",null,"caiso_hydro","NAN","existinggeneric","hydro"]
["_EXISTING_GENERIC_INSTATE_SMALL_HYDRO","NAN",null,"caiso_hydro","NAN","existinggeneric","hydro"]
["_EXISTING_GENERIC_NUCLEAR","NAN",null,"caiso_nuclear","NAN","existinggeneric","nuclear"]
["_EXISTING_GENERIC_NW_HYDRO","NAN",null,"caiso_hydro","NAN","existinggeneric","hydro"]
["_EXISTING_GENERIC_PEAKER","NAN",null,"caiso_peaker1","NAN","existinggeneric","gas_ct"]
["_EXISTING_GENERIC_PUMPED_STORAGE_HYDRO","NAN",null,"caiso_pumped_hydro","NAN","existinggeneric","pumped_storage"]
["_EXISTING_GENERIC_SOLAR_1AXIS","NAN",null,"caiso_solar","NAN","existinggeneric","utility_pv"]
["_EXISTING_GENERIC_SOLAR_2AXIS","NAN",null,"caiso_solar","NAN","existinggeneric","utility_pv"]
["_EXISTING_GENERIC_SOLAR_FIXED","NAN",null,"caiso_solar","NAN","existinggeneric","utility_pv"]
["_EXISTING_GENERIC_SOLAR_THERMAL","NAN",null,"caiso_solar","NAN","existinggeneric","utility_pv"]
["_EXISTING_GENERIC_STEAM","NAN",null,"caiso_steam","NAN","existinggeneric","steam"]
["_EXISTING_GENERIC_UNKNOWN","NAN",null,"caiso_unknown","NAN","existinggeneric","n/a"]
["_EXISTING_GENERIC_WIND","NAN",null,"caiso_wind","NAN","existinggeneric","in_state_wind_south"]
["_NEW_BTM_DR","NAN",null,"caiso_loadmod","NAN","newloadmod","demand_response"]
["_NEW_BTM_EE","NAN",null,"caiso_loadmod","NAN","newloadmod","demand_response"]
["_NEW_BTM_RESOURCE","NAN",null,"caiso_loadmod","NAN","newloadmod","demand_response"]
["_NEW_DG","NAN",null,"caiso_loadmod","NAN","newloadmod","btm_pv"]
["_NEW_EV","NAN",null,"caiso_loadmod","NAN","newloadmod","demand_response"]
["_NEW_GENERIC_BATTERY_STORAGE","NAN",null,"caiso_battery","NAN","newgeneric","hr_batteries"]
["_NEW_GENERIC_BIOGAS_LANDFILLGAS","NAN",null,"caiso_biomass","NAN","newgeneric","biomass_wood"]
["_NEW_GENERIC_BIOMASS/WOOD","NAN",null,"caiso_biomass","NAN","newgeneric","biomass_wood"]
["_NEW_GENERIC_COAL","NAN",null,"caiso_coal","NAN","newgeneric","coal"]
["_NEW_GENERIC_COGEN","NAN",null,"caiso_chp","NAN","newgeneric","cogen"]
["_NEW_GENERIC_COMBINED_CYCLE","NAN",null,"caiso_ccgt1","NAN","newgeneric","gas_cc"]
["_NEW_GENERIC_DR","NAN",null,"caiso_dr","NAN","newgeneric","demand_response"]
["_NEW_GENERIC_GEOTHERMAL","NAN",null,"caiso_geothermal","NAN","newgeneric","geothermal"]
["_NEW_GENERIC_ICE","NAN",null,"caiso_reciprocating_engine","NAN","newgeneric","ice"]
["_NEW_GENERIC_INSTATE_LARGE_HYDRO","NAN",null,"caiso_hydro","NAN","newgeneric","hydro"]
["_NEW_GENERIC_INSTATE_SMALL_HYDRO","NAN",null,"caiso_hydro","NAN","newgeneric","hydro"]
["_NEW_GENERIC_NUCLEAR","NAN",null,"caiso_nuclear","NAN","newgeneric","nuclear"]
["_NEW_GENERIC_NW_HYDRO","NAN",null,"caiso_hydro","NAN","newgeneric","hydro"]
["_NEW_GENERIC_PEAKER","NAN",null,"caiso_peaker1","NAN","newgeneric","gas_ct"]
["_NEW_GENERIC_PUMPED_STORAGE_HYDRO","NAN",null,"caiso_pumped_hydro","NAN","newgeneric","pumped_storage"]
["_NEW_GENERIC_SOLAR_1AXIS","NAN",null,"caiso_solar","NAN","newgeneric","utility_pv"]
["_NEW_GENERIC_SOLAR_2AXIS","NAN",null,"caiso_solar","NAN","newgeneric","utility_pv"]
["_NEW_GENERIC_SOLAR_FIXED","NAN",null,"caiso_solar","NAN","newgeneric","utility_pv"]
["_NEW_GENERIC_SOLAR_THERMAL","NAN",null,"caiso_solar","NAN","newgeneric","utility_pv"]
["_NEW_GENERIC_STEAM","NAN",null,"caiso_steam","NAN","newgeneric","steam"]
["_NEW_GENERIC_UNKNOWN","NAN",null,"caiso_unknown","NAN","newgeneric","n/a"]
["_NEW_GENERIC_WIND","NAN",null,"caiso_wind","NAN","newgeneric","in_state_wind_south"]
["_NEW_TOU","NAN",null,"caiso_loadmod","NAN","newloadmod","demand_response"]
["_SUPPLIERS_CHOICE","NAN",null,"suppliers_choice","NAN","supplierschoice","n/a"]
["_UNSPECIFIED_NON_IMPORT","NAN",null,"unspecified_non_import","NAN","unspecifiednonimport","n/a"]

{"sheet":"lse_names","index":5,"n_rows":104,"n_cols":3,"rows_kept":104,"cut":false,"hidden":false,"merged":[]}
["lse","NAME","lse_type"]
["3PR","3 Phases Renewables","ESP"]
["APN","American PowerNet Management","ESP"]
["AVCE","Apple Valley Choice Energy","CCA"]
["CEI","Just Energy Solutions","ESP"]
["CES","Commercial Energy of Montana","ESP"]
["CNE","Constellation New Energy","ESP"]
["COBP","City of Baldwin Park","CCA"]
["COSB","City of Solana Beach","CCA"]
["CPA","Calpine Power America","ESP"]
["CPASC","Clean Power Alliance of Southern California","CCA"]
["CPSF","CleanPowerSF","CCA"]
["DCE","Desert Community Energy","CCA"]
["DEB","Direct Energy Business","ESP"]
["EBCE","East Bay Community Energy","CCA"]
["EIPS","EDF Industrial Power Services","ESP"]
["HANFORD","City of Hanford","CCA"]
["KCCP","King City Community Power","CCA"]
["LCE","Lancaster Choice Energy","CCA"]
["LPH","Liberty Power Holdings","ESP"]
["CCCE","Monterey Bay Community Power Authority","CCA"]
["MCE","Marin Clean Energy","CCA"]
["NES","Calpine Energy Solutions","ESP"]
["PALMDALE","City of Palmdale","CCA"]
["PCEA","Peninsula Clean Energy Authority","CCA"]
["PGE","Pacific Gas & Electric","IOU"]
["PIONEER","Pioneer Community Energy","CCA"]
["POMONA","City of Pomona","CCA"]
["PPG","Pilot Power Group","ESP"]
["PRIME","Pico Rivera Innovative Municipal Energy","CCA"]
["RCEA","Redwood Coast Energy Authority","CCA"]
["RMEA","Rancho Mirage Energy Authority","CCA"]
["SCE","Southern California Edison","IOU"]
["SDGE","San Diego Gas & Electric","IOU"]
["SENA","Shell Energy North America","ESP"]
["SJCE","San Jose Clean Energy","CCA"]
["SJP","San Jacinto Power","CCA"]
["SOMA","Sonoma Clean Power Authority","CCA"]
["SVCE","Silicon Valley Clean Energy Authority","CCA"]
["TNG","Tiger Natural Gas","ESP"]
["UC","University of California","ESP"]
["VCEA","Valley Clean Energy Alliance","CCA"]
["WCE","Western Community Energy","CCA"]
["PCORP","PacifiCorp","POU"]
["BVES","Bear Valley Electric Service","IOU"]
["LIB","Liberty Utilities","IOU"]
["BCE","Butte Choice Energy","CCA"]
["CEA","Clean Energy Alliance","CCA"]
["COM","City of Commerce","CCA"]
["SDCP","San Diego Community Power","CCA"]
["SBCE","Santa Barbara Clean Energy","CCA"]
["AGERA","Agera Energy, LLC","ESP"]
["GEXA","Gexa Energy California, LLC","ESP"]
["LPD","Liberty Power Delaware, LLC","ESP"]
["PALMCO","Palmco Power CA","ESP"]
["PRAX","Praxair Plainfield, Inc.","ESP"]
["TENA","Tenaska Power Services Co.","ESP"]
["YEP","Yep Energy","ESP"]
["ANZA","Anza Electric Cooperative","COOP"]
["PLUMAS","Plumas Sierra Rural Electric Cooperative","COOP"]
["SURPRISE","Surprise Valley Electrification Corporation","POU"]
["VEA","Valley Electric Association","COOP"]
["ANHM","Anaheim","CAISOPOU"]
["AZCO","Arizona Electric Power Cooperative","POU"]
["AZUA","Azusa","CAISOPOU"]
["BAN1","Banning","CAISOPOU"]
["BWPM","Burbank","POU"]
["CCSF","City and County San Francisco","CAISOPOU"]
["CLTN","Colton","CAISOPOU"]
["COR1","Corona","CAISOPOU"]
["CRCL","Cerritos","CAISOPOU"]
["GLEN","Glendale","POU"]
["IIDE","Imperial Irrigation District","POU"]
["INDU","Industry","CAISOPOU"]
["KIRK","Kirkwood","POU"]
["LADWP","LADWP","POU"]
["LASS","Lassen","CAISOPOU"]
["MEID","Merced","POU"]
["MID","Modesto Irrigation District","POU"]
["MVAL","Moreno Valley","CAISOPOU"]
["NCPA","Northern California Power Agency","CAISOPOU"]
["NEED","Needles","POU"]
["PASA","Pasadena","CAISOPOU"]
["PITT","Pittsburg","CAISOPOU"]
["PSTN","Stockton","CAISOPOU"]
["PWRPA","Power Water Resources Pooling Authority","CAISOPOU"]
["RCMU","Rancho Cucamonga","CAISOPOU"]
["RDG1","Redding","POU"]
["RSVL","Roseville","POU"]
["RVSD","Riverside","CAISOPOU"]
["SCOV","Shelter Cove","CAISOPOU"]
["SLAK","Shasta Lake","POU"]
["SMUD","SMUD","POU"]
["SNCL","Silicon Valley Power","CAISOPOU"]
["TIDM","Turlock Irrigation District","POU"]
["TRIN","Trinity","CAISOPOU"]
["TRUC","Truckee","POU"]
["VERN","Vernon","CAISOPOU"]
["VMUS","Victorville","CAISOPOU"]
["WEPA","Eastside Power Authority","CAISOPOU"]
["_OTHER","Multiple non-IOU LSEs"]
["_OTHER","Multiple LSEs"]
["_OTHER","Multiple IOUs"]
["_OTHER","non-LSE supplier","_OTHER"]

{"sheet":"misc","index":6,"n_rows":93,"n_cols":74,"rows_kept":93,"cut":false,"hidden":false,"merged":[]}
["contract_status","bool","yes_no","Year","int_count","transact","cap_areas","cap_sub_areas","state_county","d1911016_tranches","d2106035_tranche ","energy_capacity_from_resource","is_hybrid_paired","csp_cat","solar_Technology_sub_type","storage_Technology_sub_type","nqc_reporting_source","cam_d1911016_vamo_pcia",null,"25MMT ELCC (%)",null,null,null,null,null,null,null,null,null,null,null,null,null,"30MMT ELCC (%)",null,null,null,null,null,null,null,null,null,null,null,null,null,"25MMT MRN/TRN ratio",null,null,null,null,null,null,null,null,null,null,null,null,null,"30MMT MRN/TRN ratio"]
["Online",0,"YES","NA","NA","Buy","Humboldt","North Coast  Eagle Rock","NA","NA","NA","EnergyCapacity","NotHybrid","NA","Fixed","Li","In the contract","CAM",null,"elcc_type",2024,2025,2026,2027,2028,2029,2030,2031,2032,2033,2034,2035,null,"elcc_type",2024,2025,2026,2027,2028,2029,2030,2031,2032,2033,2034,2035,null,null,2024,2025,2026,2027,2028,2029,2030,2031,2032,2033,2034,2035,null,null,2024,2025,2026,2027,2028,2029,2030,2031,2032,2033,2034,2035]
["Review",1,"NO",1970,1,"Sell","NorthCoastNorthBay","North Coast  Fulton","AlpineCounty",1,"firm_ZE","EnergyOnly","ExistingBiomassExistingStorage","Large Hydro (GWh)","SolarThermal","Flow","Calculated","D.19-11-016",null,"in_state_wind_south",0.11841355076102321,0.13636070685128646,0.15430786294154972,0.10693659222396304,5.9565321506376369E-2,7.7201442724824779E-2,9.4837563943273195E-2,8.4644753263379724E-2,7.4451942583486252E-2,6.4259131903592781E-2,5.406632122369931E-2,4.3873510543805838E-2,null,"in_state_wind_south",0.15102941403529452,0.15178846902809942,0.15254752402090432,0.11848326121551586,8.4418998410127413E-2,8.3416882718990337E-2,8.2414767027853275E-2,7.4829691124404837E-2,6.72446152209564E-2,5.9659539317507955E-2,5.207446341405951E-2,4.4489387510611059E-2,null,null,0.77201871279722722,0.78867470616438251,0.80390270140610376,0.77610409059689334,0.75027694884377893,0.76246521023924085,0.77457060149091872,0.74274625791973614,0.71261162813758272,0.6827328847380274,0.65390251423413703,0.62577079443506212,null,null,0.80029848011116889,0.81896333891271367,0.83611438362607471,0.79544567238840358,0.75709177033813169,0.73673303550177849,0.71703757483484865,0.69918925792169562,0.68264892770624752,0.66607760402249072,0.65025016398978508,0.63484459547384975]
["PlannedExisting",null,"NA",1971,2,"Owned","Sierra","Sierra  Placer","AmadorCounty","1&2","firm_ZE_&_firm_ZE_ext","CapacityOnly","ExistingBiomassNewStorage","Imported Hydro (GWh)","1Axis","PSH",null,"VAMO",null,"in_state_wind_north",0.23682710152204642,0.27272141370257291,0.30861572588309943,0.21387318444792608,0.11913064301275274,0.15440288544964956,0.18967512788654639,0.16928950652675945,0.1489038851669725,0.12851826380718556,0.10813264244739862,8.7747021087611676E-2,null,"in_state_wind_north",0.30205882807058904,0.30357693805619884,0.30509504804180865,0.23696652243103172,0.16883799682025483,0.16683376543798067,0.16482953405570655,0.14965938224880967,0.1344892304419128,0.11931907863501591,0.10414892682811902,8.8978775021222117E-2]
["Development",null,null,1972,3,null,"Stockton","Sierra  Pease","AlamedaCounty",2,"firm_ZE_ext",null,"ExistingGeothermalExistingStorage","Asset Controlling Supplier (GWh)","2Axis","Other",null,"GHG-free PCIA",null,"out_of_state_wind_WYID",0.46897827577694978,0.45359083280372914,0.43820338983050844,0.38080451179552754,0.3234056337605466,0.32954852469028811,0.33569141562002963,0.32866160707229491,0.3216317985245602,0.31460198997682548,0.30757218142909076,0.30054237288135593,null,"out_of_state_wind_WYID",0.42559322033898306,0.39180370915668034,0.35801419797437761,0.37372282962154058,0.38943146126870348,0.31241064588858902,0.23538983050847456,0.24842033898305083,0.26145084745762709,0.27448135593220335,0.28751186440677962,0.30054237288135593]
["PlannedNew",null,null,1973,4,null,"GreaterBay","Sierra  Gold Hill-Drum","ButteCounty","2&3","general",null,"ExistingGeothermalNewStorage","Nuclear (GWh)",null,null,null,null,null,"out_of_state_wind_WAOR",0.28743829805684018,0.27800728462164043,0.26857627118644067,0.23339631368112979,0.19821635617581887,0.20198135384243465,0.20574635150905043,0.20143775917334206,0.19712916683763368,0.1928205745019253,0.18851198216621692,0.18420338983050849,null,"out_of_state_wind_WAOR",0.26084745762711864,0.24013775722506214,0.21942805682300565,0.22905592783255713,0.23868379884210861,0.1914774926413933,0.14427118644067796,0.15225762711864407,0.16024406779661018,0.1682305084745763,0.17621694915254241,0.18420338983050849]
[null,null,null,1974,5,null,"GreaterFresno","Stockton  Lockeford","CalaverasCounty","1&3","general_&_firm_ZE",null,"ExistingSolarExistingStorage","Biogas (GWh)",null,null,null,null,null,"out_of_state_wind_AZNM",0.42359328134692242,0.40969494575820697,0.39579661016949158,0.34395246226692811,0.29210831436436469,0.29765673197832476,0.30320514959228489,0.29685564509755674,0.29050614060282859,0.28415663610810044,0.27780713161337228,0.27145762711864413,null,"out_of_state_wind_AZNM",0.384406779661017,0.3538872211737758,0.32336766268653466,0.33755610417429471,0.35174454566205482,0.28217735757679013,0.21261016949152545,0.22437966101694917,0.2361491525423729,0.24791864406779662,0.25968813559322035,0.27145762711864413]
[null,null,null,1975,6,null,"Kern","Stockton  Tesla-Bellota","ColusaCounty",3,"general_&_firm_ZE_ext",null,"ExistingSolarNewStorage","Biomass (GWh)",null,null,null,null,null,"offshore_wind",0.66745107707355167,0.61580710432933394,0.56416313158511622,0.55718196245584084,0.55020079332656546,0.5803035093936455,0.61040622546072543,0.55232498036858035,0.49424373527643528,0.43616249018429021,0.37808124509214514,0.32,null,"offshore_wind",0.54900000000000004,0.50668405182051957,0.46436810364103909,0.48659667347489211,0.50882524330874512,0.46741262165437258,0.42599999999999999,0.40479999999999999,0.3836,0.3624,0.3412,0.32]
[null,null,null,1976,7,null,"BigCreekVentura","Greater Bay   Llagas","ContraCostaCounty","1&2&3","general_&_long_duration_storage",null,"ExistingThermalExistingStorage","Geothermal (GWh)",null,null,null,null,null,"utility_pv",0.12434584155282009,0.12102944303332039,0.11771304451382068,0.1001620473979912,8.261105028216173E-2,7.6604612550074003E-2,7.0598174817986262E-2,6.9278539854389004E-2,6.7958904890791746E-2,6.6639269927194489E-2,6.5319634963597231E-2,6.4000000000000001E-2,null,"utility_pv",9.6000000000000002E-2,0.10220064352589828,0.10840128705179657,0.1016803220430352,9.4959357034273828E-2,7.7479678517136913E-2,0.06,6.08E-2,6.1600000000000002E-2,6.2400000000000004E-2,6.3200000000000006E-2,6.4000000000000001E-2]
[null,null,null,1977,8,null,"LABasin","Greater Bay   San Jose","DelNorteCounty",null,"general_&_long_duration_storage_ext",null,"ExistingThermalNewStorage","Small Hydro (GWh)",null,null,null,null,null,"btm_pv",5.3182100841591383E-2,4.865045278619004E-2,4.4118804730788705E-2,5.2547949194918675E-2,6.0977093659048652E-2,5.4040407611745077E-2,4.7103721564441502E-2,4.8882977251553203E-2,5.0662232938664904E-2,5.2441488625776606E-2,5.4220744312888307E-2,5.6000000000000001E-2,null,"btm_pv",8.8999999999999996E-2,9.3703365409453621E-2,9.8406730818907232E-2,8.2703365409453611E-2,6.7000000000000004E-2,5.6000000000000001E-2,4.4999999999999998E-2,4.7199999999999999E-2,4.9399999999999999E-2,5.16E-2,5.3800000000000001E-2,5.6000000000000001E-2]
[null,null,null,1978,9,null,"SanDiegoImperialValley","Greater Bay   South Bay  Moss Landing","ElDoradoCounty",null,"general_&_ZE_gen_paired_dr",null,"ExistingWindExistingStorage","Wind Existing California (GWh)",null,null,null,null,null,"4hr_batteries",0.85399999999999998,0.86399999999999999,0.874,0.84499999999999997,0.81599999999999995,0.85299999999999998,0.89,0.79220000000000002,0.69440000000000002,0.59660000000000002,0.49880000000000002,0.40100000000000002,null,"4hr_batteries",0.88500000000000001,0.90149999999999997,0.91800000000000004,0.84550000000000003,0.77300000000000002,0.75900000000000001,0.745,0.67620000000000002,0.60740000000000005,0.53860000000000008,0.46980000000000011,0.40100000000000002]
[null,null,null,1979,10,null,"PacGE","Greater Bay  Oakland","FresnoCounty",null,"long_duration_storage",null,"ExistingWindNewStorage","Wind New PG&E (GWh)",null,null,null,null,null,"5hr_batteries",0.86399999999999999,0.86962499999999998,0.87524999999999997,0.85087500000000005,0.82650000000000001,0.85824999999999996,0.89,0.80695000000000006,0.72389999999999999,0.64084999999999992,0.55779999999999996,0.47475000000000001,null,"5hr_batteries",0.88675000000000004,0.90387499999999998,0.92100000000000004,0.85887500000000006,0.79675000000000007,0.78362500000000002,0.77049999999999996,0.71135000000000004,0.6522,0.59305000000000008,0.53390000000000004,0.47475000000000001]
[null,null,null,1980,11,null,"SCE","Greater Fresno  Panoche","GlennCounty",null,"long_duration_storage_&_firm_ZE",null,"NewBiomassExistingStorage","Wind New SCE SDG&E (GWh)",null,null,null,null,null,"6hr_batteries",0.874,0.87524999999999997,0.87649999999999995,0.85675000000000012,0.83699999999999997,0.86349999999999993,0.89,0.8217000000000001,0.75339999999999996,0.68509999999999982,0.6167999999999999,0.54849999999999999,null,"6hr_batteries",0.88850000000000007,0.90625,0.92400000000000004,0.87225000000000008,0.82050000000000001,0.80825000000000002,0.79599999999999993,0.74650000000000005,0.69699999999999995,0.64750000000000008,0.59799999999999998,0.54849999999999999]
[null,null,null,1981,12,null,"SDGE","Greater Fresno  Herndon","HumboldtCounty",null,"long_duration_storage_&_firm_ZE_ext",null,"NewBiomassNewStorage","Wind Pacific Northwest (GWh)",null,null,null,null,null,"7hr_batteries",0.88400000000000001,0.88087499999999996,0.87774999999999992,0.8626250000000002,0.84749999999999992,0.86874999999999991,0.89,0.83645000000000014,0.78289999999999993,0.72934999999999972,0.67579999999999985,0.62224999999999997,null,"7hr_batteries",0.8902500000000001,0.90862500000000002,0.92700000000000005,0.88562500000000011,0.84424999999999994,0.83287500000000003,0.8214999999999999,0.78165000000000007,0.7417999999999999,0.70195000000000007,0.66209999999999991,0.62224999999999997]
[null,null,null,1982,13,null,"AVA","Greater Fresno  Hanford","ImperialCounty",null,"long_duration_storage_&_long_duration_storage_ext",null,"NewGeothermalExistingStorage","Wind Wyoming (GWh)",null,null,null,null,null,"8hr_batteries",0.89400000000000002,0.88650000000000007,0.879,0.86850000000000005,0.85799999999999998,0.874,0.89,0.85119999999999996,0.8123999999999999,0.77359999999999984,0.73479999999999979,0.69599999999999995,null,"8hr_batteries",0.89200000000000002,0.91100000000000003,0.93,0.89900000000000002,0.86799999999999999,0.85749999999999993,0.84699999999999998,0.81679999999999997,0.78659999999999997,0.75639999999999996,0.72619999999999996,0.69599999999999995]
[null,null,null,1983,14,null,"AVRN","Greater Fresno  Coalinga","InyoCounty",null,"long_duration_storage_ext",null,"NewGeothermalNewStorage","Wind New Mexico (GWh)",null,null,null,null,null,"pumped_storage",0.90100000000000002,0.89,0.879,0.86850000000000005,0.85799999999999998,0.874,0.89,0.85860000000000003,0.82720000000000005,0.79580000000000006,0.76440000000000008,0.73299999999999998,null,"pumped_storage",0.89400000000000002,0.91400000000000003,0.93400000000000005,0.91300000000000003,0.89200000000000002,0.89050000000000007,0.88900000000000001,0.85780000000000001,0.8266,0.7954,0.76419999999999999,0.73299999999999998]
[null,null,null,1984,15,null,"AZPS","Greater Fresno  Borden","KernCounty",null,"long_duration_storage_ext_&_firm_ZE",null,"NewSolarExistingStorage","Wind Offshore Morro Bay (GWh)",null,null,null,null,null,"demand_response",0.7724039633086085,0.79750142153712067,0.82259887976563284,0.77486011512236863,0.72712135047910442,0.79507732791389651,0.86303330534868861,0.71922664427895089,0.57541998320921317,0.43161332213947545,0.28780666106973773,0.14399999999999999,null,"demand_response",0.89300000000000002,0.9083512608449148,0.92370252168982958,0.77235126084491479,0.621,0.60599999999999998,0.59099999999999997,0.50159999999999993,0.41219999999999996,0.32279999999999998,0.2334,0.14399999999999999]
[null,null,null,1985,16,null,"BANC","Greater Fresno  Reedley","KingsCounty",null,"long_duration_storage_ext_&_firm_ZE_ext",null,"NewSolarNewStorage","Wind Offshore Humboldt (GWh)",null,null,null,null,null,"hydro",0.50808542614523622,0.52136584004877395,0.53464625395231169,0.52463421830816248,0.51462218266401338,0.52965938625731068,0.54469658985060787,0.52172491439930901,0.4987532389480101,0.47578156349671119,0.45280988804541228,0.42983821259411337,null,"hydro",0.56660491660133128,0.5639186026863886,0.56123228877144593,0.53191654140391154,0.50260079403637703,0.49249487994717378,0.48238896585797048,0.47187881520519903,0.46136866455242759,0.45085851389965614,0.4403483632468847,0.42983821259411337]
[null,null,null,1986,17,null,"BPAT","Kern  Westpark","LakeCounty",null,"ZE_gen_paired_dr",null,"NewThermalExistingStorage","Solar Existing California (GWh)",null,null,null,null,null,"small_hydro",0.36439596011147751,0.37392059696589919,0.38344523382032081,0.37626465915023138,0.36908408448014196,0.37986868084682657,0.39065327721351117,0.37417812303529918,0.35770296885708719,0.3412278146788752,0.3247526605006632,0.3082775063224511,null,"small_hydro",0.40636580378868559,0.40443919482132551,0.40251258585396549,0.38148749960139383,0.36046241334882212,0.35321450959515949,0.34596660584149685,0.33842878593768772,0.33089096603387858,0.32335314613006944,0.3158153262262603,0.3082775063224511]
[null,null,null,1987,18,null,"CHPD","Kern  Kern Power-Tevis","LassenCounty",null,"ZE_gen_paired_dr_&_firm_ZE",null,"NewThermalNewStorage","Solar New PG&E (GWh)",null,null,null,null,null,"geothermal",0.86035735395693558,0.88845422376818506,0.91655109357943454,0.92141545041207906,0.92627980724472359,0.91906618301364429,0.91185255878256499,0.91955797078363211,0.92726338278469922,0.93496879478576633,0.94267420678683345,0.95037961878790056,null,"geothermal",0.86400365575892546,0.8782620417931235,0.89252042782732166,0.91001836007896375,0.92751629233060595,0.92280590133888829,0.91809551034717063,0.92538472229861102,0.93267393425005141,0.93996314620149179,0.94725235815293218,0.95454157010437257]
[null,null,null,1988,19,null,"CSTO","Kern  Kern Oil","LosAngelesCounty",null,"ZE_gen_paired_dr_&_firm_ZE_ext",null,"NewWindExistingStorage","Solar New SCE SDG&E (GWh)",null,null,null,null,null,"biomass_wood",0.7760796336578174,0.79410595910163018,0.81213228454544306,0.81927788031425353,0.82642347608306399,0.81498790039485203,0.80355232470664006,0.81956505086438813,0.8355777770221362,0.85159050317988427,0.86760322933763234,0.88361595549538019,null,"biomass_wood",0.78777252109464602,0.80873519104432079,0.82969786099399567,0.83028460488270484,0.83087134877141389,0.82344593040995451,0.81602051204849513,0.83149916107410415,0.84697781009971318,0.86245645912532221,0.87793510815093123,0.89341375717654026]
[null,null,null,1989,20,null,"DEAA","Kern  South Kern PP","MaderaCounty",null,"ZE_gen_paired_dr_&_long_duration_storage",null,"NewWindNewStorage","Solar Distributed (GWh)",null,null,null,null,null,"biogas",0.74993508538984277,0.76621477432747476,0.78249446326510674,0.78556571387656016,0.78863696448801368,0.77725397013863851,0.76587097578926322,0.78423035140973241,0.80258972703020159,0.82094910265067078,0.83930847827113997,0.85766785389160938,null,"biogas",0.75849976538356267,0.77833009661414909,0.79816042784473562,0.79513379797889616,0.7921071681130567,0.78251806948180391,0.77292897085055123,0.79192907385472411,0.81092917685889698,0.82992927986306986,0.84892938286724273,0.86792948587141583]
[null,null,null,1990,21,null,"DOPD","Big Creek/Ventura - Vesta","MarinCounty",null,"ZE_gen_paired_dr_&_long_duration_storage_ext",null,null,"Hybrid_or_Paired_Solar_and_Battery (GWh)",null,null,null,null,null,"nuclear",0.93356208910726446,0.93542040714074237,0.93727872517422017,0.93803958722410496,0.93880044927398987,0.93205531633495187,0.92531018339591387,0.93233873256863709,0.9393672817413603,0.94639583091408352,0.95342438008680674,0.96045292925952974,null,"nuclear",0.93139197880214852,0.93996144395127801,0.9485309091004076,0.94333376244952838,0.93813661579864904,0.93575640725694242,0.93337619871523581,0.93933118321638243,0.94528616771752905,0.95124115221867567,0.95719613671982229,0.96315112122096869]
[null,null,null,1991,22,null,"EPE","Big Creek/Ventura - Santa Clara","MariposaCounty",null,null,null,null,"Shed DR (MW)",null,null,null,null,null,"gas_cc",0.84405545915455138,0.85378805932691004,0.86352065949926871,0.86634980076266022,0.86917894202605173,0.85956321379360601,0.84994748556116018,0.86140444290247919,0.87286140024379821,0.88431835758511723,0.89577531492643625,0.90723227226775538,null,"gas_cc",0.84814757974875532,0.86263887009961904,0.87713016045048275,0.87417936920023021,0.87122857794997766,0.86089172285515003,0.85055486776032241,0.86298372454380101,0.87541258132727962,0.88784143811075822,0.90027029489423682,0.91269915167771554]
[null,null,null,1992,23,null,"GCPD","LA Basin  Eastern","MendocinoCounty",null,null,null,null,"Pumped Storage (MW)",null,null,null,null,null,"gas_ct",0.81237441831218216,0.83458266364683165,0.85679090898148114,0.84024564289456083,0.82370037680764052,0.80688071641969916,0.7900610560317578,0.80257508455656523,0.81508911308137266,0.82760314160618009,0.84011717013098752,0.85263119865579484,null,"gas_ct",0.80210397441153047,0.8164055166331512,0.83070705885477203,0.82614281229582409,0.82157856573687627,0.80581095377983025,0.79004334182278424,0.79962832305535969,0.80921330428793514,0.81879828552051059,0.82838326675308604,0.83796824798566139]
[null,null,null,1993,24,null,"GRIF","LA Basin  Western","MercedCounty",null,null,null,null,"Battery Storage (MWh Energy Capacity)",null,null,null,null,null,"cogen",0.93171659158246634,0.92982721151899872,0.9279378314555311,0.93426748239376611,0.94059713333200112,0.93177611621028944,0.92295509908857776,0.92509715629415346,0.92723921349972915,0.92938127070530485,0.93152332791088055,0.93366538511645647,null,"cogen",0.89510595870195142,0.92080923604040321,0.94651251337885489,0.91922536104575825,0.89193820871266161,0.89034739869657353,0.88875658868048535,0.89657566327297322,0.9043947378654611,0.91221381245794897,0.92003288705043684,0.92785196164292472]
[null,null,null,1994,25,null,"GRIS","LA Basin  El Nido","ModocCounty",null,null,null,null,"Storage Resource Custom Profile (MW)",null,null,null,null,null,"ice",0.93417725494886394,0.93953702885460977,0.94489680276035559,0.94420958116215314,0.94352235956395081,0.94551881178594521,0.94751526400793951,0.93432127731937176,0.92112729063080401,0.90793330394223626,0.89473931725366851,0.88154533056510087,null,"ice",0.92925750703154864,0.90155388721725416,0.87385026740295979,0.89802819899977204,0.92220613059658441,0.91831713786770974,0.91442814513883497,0.90430189637815794,0.89417564761748092,0.88404939885680389,0.87392315009612687,0.86379690133544973]
[null,null,null,1995,26,null,"GRMA","San Diego/Imperial Valley  San Diego","MonoCounty",null,null,null,null,"RPS Resource Custom Profile (GWh)",null,null,null,null,null,"coal",0.68780333538830307,0.70728773218306451,0.72677212897782595,0.72091463332629768,0.71505713767476942,0.68678495655552108,0.65851277543627273,0.68894203468715276,0.71937129393803279,0.74980055318891281,0.78022981243979284,0.81065907169067308,null,"coal",0.6905015932630254,0.71720881804551684,0.74391604282800827,0.73721266741320757,0.73050929199840686,0.71015565906334177,0.68980202612827657,0.71688684336924113,0.7439716606102057,0.77105647785117026,0.79814129509213483,0.82522611233309917]
[null,null,null,1996,27,null,"GWA","San Diego/Imperial Valley  El Cajon","MontereyCounty",null,null,null,null,"GHG-free non-RPS Resource Custom Profile (GWh)",null,null,null,null,null,"steam",0.77854029702421501,0.79236174105596691,0.80618318508771891,0.80202811428072351,0.79787304347372801,0.77781790021672426,0.75776275695972062,0.77934804431009863,0.80093333166047664,0.82251861901085466,0.84410390636123267,0.86568919371161046,null,"steam",0.7804543321668751,0.79939935861356859,0.81834438506026208,0.81358928131774333,0.80883417757522458,0.79439613253754293,0.77995808749986129,0.79917096278409228,0.81838383806832327,0.83759671335255426,0.85680958863678525,0.87602246392101613]
[null,null,null,1997,28,null,"HGMA","San Diego/Imperial Valley  Border","NapaCounty",null,null,null,null,"Coal (GWh)",null,null,null,null,null,"unspecified_import",1,1,1,1,1,1,1,1,1,1,1,1,null,"unspecified_import",1,1,1,1,1,1,1,1,1,1,1,1]
[null,null,null,1998,29,null,"IID","No_sub_area","NevadaCounty"]
[null,null,null,1999,30,null,"IPCO",null,"OrangeCounty"]
[null,null,null,2000,31,null,"LDWP",null,"PlacerCounty"]
[null,null,null,2001,null,null,"NEVP",null,"PlumasCounty"]
[null,null,null,2002,null,null,"NWMT",null,"RiversideCounty"]
[null,null,null,2003,null,null,"PACE",null,"SacramentoCounty"]
[null,null,null,2004,null,null,"PACW",null,"SanBenitoCounty"]
[null,null,null,2005,null,null,"PortGE",null,"SanBernardinoCounty"]
[null,null,null,2006,null,null,"PNM",null,"SanDiegoCounty"]
[null,null,null,2007,null,null,"PSCO",null,"SanFrancisco"]
[null,null,null,2008,null,null,"PSEI",null,"SanJoaquinCounty"]
[null,null,null,2009,null,null,"SCL",null,"SanLuisObispoCounty"]
[null,null,null,2010,null,null,"SRP",null,"SanMateoCounty"]
[null,null,null,2011,null,null,"SWPP",null,"SantaBarbaraCounty"]
[null,null,null,2012,null,null,"TEPC",null,"SantaClaraCounty"]
[null,null,null,2013,null,null,"TIDC",null,"SantaCruzCounty"]
[null,null,null,2014,null,null,"TPWR",null,"ShastaCounty"]
[null,null,null,2015,null,null,"WACM",null,"SierraCounty"]
[null,null,null,2016,null,null,"WALC",null,"SiskiyouCounty"]
[null,null,null,2017,null,null,"WAUW",null,"SolanoCounty"]
[null,null,null,2018,null,null,"WWA",null,"SonomaCounty"]
[null,null,null,2019,null,null,null,null,"StanislausCounty"]
[null,null,null,2020,null,null,null,null,"SutterCounty"]
[null,null,null,2021,null,null,null,null,"TehamaCounty"]
[null,null,null,2022,null,null,null,null,"TrinityCounty"]
[null,null,null,2023,null,null,null,null,"TulareCounty"]
[null,null,null,2024,null,null,null,null,"TuolumneCounty"]
[null,null,null,2025,null,null,null,null,"VenturaCounty"]
[null,null,null,2026,null,null,null,null,"YoloCounty"]
[null,null,null,2027,null,null,null,null,"YubaCounty"]
[null,null,null,2028,null,null,null,null,"Washington"]
[null,null,null,2029,null,null,null,null,"Oregon"]
[null,null,null,2030,null,null,null,null,"California"]
[null,null,null,2031,null,null,null,null,"Idaho"]
[null,null,null,2032,null,null,null,null,"Nevada"]
[null,null,null,2033,null,null,null,null,"Utah"]
[null,null,null,2034,null,null,null,null,"Arizona"]
[null,null,null,2035,null,null,null,null,"Colorado"]
[null,null,null,2036,null,null,null,null,"Wyoming"]
[null,null,null,2037,null,null,null,null,"Montana"]
[null,null,null,2038,null,null,null,null,"SouthDakota"]
[null,null,null,2039,null,null,null,null,"NewMexico"]
[null,null,null,2040,null,null,null,null,"Texas"]
[null,null,null,2041,null,null,null,null,"BritishColumbiaCanada"]
[null,null,null,2042,null,null,null,null,"AlbertaCanada"]
[null,null,null,2043,null,null,null,null,"BajaCaliforniaMexico"]
[null,null,null,2044]
[null,null,null,2045]
[null,null,null,2046]
[null,null,null,2047]
[null,null,null,2048]
[null,null,null,2049]
[null,null,null,2050]
[null,null,null,2051]
[null,null,null,2052]
[null,null,null,2053]
[null,null,null,2054]
[null,null,null,2055]
[null,null,null,2056]
[null,null,null,2057]
[null,null,null,2058]
[null,null,null,2059]
[null,null,null,2060]

{"sheet":"btm_pv_forecast","index":7,"n_rows":43,"n_cols":17,"rows_kept":43,"cut":false,"hidden":false,"merged":[]}
[]
[null,null,null,null,null,"Capacity (MW)"]
[null,"Service Area","Type","LSE CPUC ID","LSE Name",2024,2025,2026,2027,2028,2029,2030,2031,2032,2033,2034,2035]
[]
[null,"PGE","IOU","PGE","Pacific Gas and Electric (Bundled)",2483.8068589790723,2670.6038103689802,2858.9074246620553,3056.0035900636071,3256.6374079561342,3468.7628407033926,3666.9481221821034,3882.9316452981288,4089.8779554219054,4313.371000375545,4525.9710006049063,4733.5943482356379]
[null,"PGE","ESP",null,"Pacific Gas and Electric (Direct Access)",1044.2812727718472,1116.2856772500425,1188.7877162783418,1263.803082966863,1341.8643229155455,1417.5187133768627,1491.0134772441515,1560.1180533957549,1628.5101143427687,1691.9805408676923,1751.8540669200165,1806.595437887127]
[null,"PGE","CCA","3CE","Central Coast Community Energy",421.15158866235947,452.41756345284011,484.24656690264459,518.26131780701587,553.24666760565185,588.40650611030662,623.01932056784142,657.26665772916772,690.27502269615002,722.39237653960083,753.19576332979227,782.63020991442545]
[null,"PGE","CCA","CPSF","CleanPowerSF",272.19416399859608,293.24422043725548,314.64319486101334,337.11583948832134,360.59438348444075,384.43336439847536,408.20763606432604,431.73764612373708,454.71495834668525,477.48365101121402,499.30993106673799,522.15571416344596]
[null,"PGE","CCA","EBCE","East Bay Community Energy",617.76959431414195,667.81996111621743,718.63308662617487,771.46593233074759,827.57953531612543,883.45521722999354,939.61924241275983,994.0497540750838,1047.1904037722193,1098.0250495756795,1147.2771116564363,1195.6178051162908]
[null,"PGE","CCA","KCCP","King City Community Power",3.1274358840494534,3.3636520056169532,3.6050746596521281,3.8602955575569933,4.1281791027990744,4.4032289358735328,4.6760213764533942,4.9529948206200691,5.2230105835236342,5.4948898457039075,5.7600678791208466,6.0177562422379056]
[null,"PGE","CCA","MCE","Marin Clean Energy",527.86388071769511,563.93443402414778,600.94246843265171,639.69312653983377,682.55819738465698,725.04097687911815,779.38139222076563,819.26259007070894,863.34478143792842,897.0318566789806,932.88804641092975,967.05580668741084]
[null,"PGE","CCA","PCEA","Peninsula Clean Energy Authority",316.75083019541813,339.10983202487694,364.76233374423686,394.23905047890116,426.38292831492276,456.14532228889948,487.03461529488857,517.71009069627598,550.01922490357629,578.78887456209941,609.02186232936469,639.46893059021602]
[null,"PGE","CCA","PIONEER","Pioneer Community Energy",174.58370029279465,187.74625877084296,201.05464856586698,215.08391009554981,229.8694970939209,244.8625782047807,259.97134575100404,274.72346527719623,289.20527157432571,303.56593207859419,317.5371963463985,331.39997696384302]
[null,"PGE","CCA","RCEA","Redwood Coast Energy Authority",62.138081316377651,66.496059034432207,71.017362202773811,75.665120769114964,80.48241444552616,85.149414717258253,89.681980650495873,93.946685834520423,98.166583975000705,102.08317249026896,105.78473833742601,109.17589388091692]
[null,"PGE","CCA","SJCE","San José Clean Energy",350.21324007670898,376.68297404818878,403.56176136508725,432.00922554326763,461.8896518316966,492.40267793259045,522.9226245202517,553.27567634329318,583.10753624593087,612.88219212544936,641.84777737179513,670.34157413534956]
[null,"PGE","CCA","SVCEA","Silicon Valley Clean Energy Authority",337.44318241651644,362.59051649013793,388.24515038707466,415.37112983413044,443.77395346360737,472.77166743521479,501.68487615834687,530.5496873902905,558.89072034388994,587.07254600964177,614.43748105219868,641.20263112945668]
[null,"PGE","CCA","SOMA","Sonoma Clean Power",204.13485296036629,219.59562436786734,235.2439036449297,251.77557565799594,269.1820112432012,286.89668003285396,304.69389780741091,322.21442833329922,339.42850634791262,356.56934250918135,373.249630782145,389.75397688857419]
[null,"PGE","CCA","VCEA","Valley Clean Energy Alliance",65.848531141168294,71.437151445058674,77.281773889539011,83.386448610861379,90.055275571140967,96.31582884604012,102.91328573756282,109.38630667423828,116.1331870201184,122.13662570100729,128.23331103435945,134.24818004623634]
[]
[null,"SCE","IOU","SCE","Southern California Edison (Bundled)",3045.6552922272008,3285.9745840143787,3536.1960292967306,3798.2790020660741,4067.7244055505175,4348.1989093430002,4638.7565959445928,4940.7488752548306,5249.1653779558428,5563.6355709265245,5882.7329697236801,6204.3137106902432]
[null,"SCE","ESP",null,"Southern California Edison (Direct Access)",258.95906146369924,277.62600208478869,297.02638527422238,316.37784858260233,336.86391331946299,357.73704018578508,379.46587953282386,401.31059926563461,424.5472950956584,447.79511993059907,471.39999159290011,494.98519838813047]
[null,"SCE","CCA","AVCE","Apple Valley Choice Energy",30.105810709839815,32.504098777569489,34.999640542766912,37.614739331637956,40.333183111954085,43.12310859058897,46.028780876911163,48.950928205180396,51.950231455221179,54.992953646411216,58.077081456034364,61.221541257178046]
[null,"SCE","CCA","COBP","Baldwin Park, City of",0,0,0,0,0,0,0,0,0,0,0,0]
[null,"SCE","CCA","3CE","Central Coast Community Energy",32.356121861904604,34.517261561131555,36.74543728673023,38.944289016766014,41.258232396243102,43.594883574977111,46.011355626132783,48.418939402345309,50.967377906025639,54.12182524707773,57.34463397329494,60.639115401868459]
[null,"SCE","CCA","CPASC","Clean Power Alliance",450.60008333015799,486.24333359056698,523.36965046983676,562.17382235511957,602.420790304913,644.08973111529235,687.34816420565483,731.74792995995642,777.23741380376975,823.60382235055727,870.65873870250994,918.28722226338766]
[null,"SCE","CCA","DCE","Desert Community Energy",40.155911659818344,43.376864736966027,46.551308586475862,49.762575063189573,53.202232925325021,56.760100194548706,60.514505244911582,64.356704712958205,68.498466385423498,72.722493312596029,77.094043174101955,81.556600946759119]
[null,"SCE","CCA","PALMDALE","Energy for Palmdale’s Independent Choice",35.840654395407483,38.717773668025728,41.714924374379962,44.850035603148278,48.132406508891798,51.552254902433695,55.097841856349895,58.736857126406697,62.472700596974533,66.296201333130981,70.17896164272689,74.107870100483552]
[null,"SCE","CCA","LCE","Lancaster Choice Energy",73.470263496767444,79.311062182652734,85.390813960405325,91.755651295259938,98.367589469997796,105.19021935636306,112.28423354088909,119.49346715710085,126.88751642609698,134.41155535925506,142.04239713646993,149.7950010427553]
[null,"SCE","CCA","OCPA","Orange County Power Authority",231.53585360591782,250.12237441144057,269.48587689828724,289.73591928475497,310.94494346993008,333.03473425891934,355.94026056294121,379.44347029814105,403.57843760413255,428.2826627755893,453.3604768777987,478.74445052111685]
[null,"SCE","CCA","PRIME","Pico Rivera Innovative Municipal Energy",8.8923952763280738,9.5957720828242277,10.329020981488155,11.094986170340906,11.890104778081755,12.7158536019785,13.572318905283026,14.456504282250519,15.362060028030079,16.286996387416579,17.225860469836483,18.174285396629735]
[null,"SCE","CCA","POMONA","Pomona Choice Energy",7.2880577587742517,7.869595336699347,8.4749206298659043,9.1074951868775251,9.7690306633408159,10.455502185043979,11.16817613280136,11.894906469915695,12.641736220282057,13.404609790860244,14.178771151478042,14.963381478955935]
[null,"SCE","CCA","RMEA","Rancho Mirage Energy Authority",44.304687302455967,47.783423522818374,51.405954035538571,55.192667652781736,59.09813217013734,63.110057941521113,67.284832930406395,71.54118224157564,75.896386230828227,80.314746259163087,84.796122325001576,89.343601107090407]
[null,"SCE","CCA","SJP","San Jacinto Power",23.281495073276332,25.128685117914753,27.048137450882894,29.059803227878838,31.144702770405633,33.284659804525489,35.513193930581281,37.763581278087678,40.069242217898221,42.410318278891964,44.783120013682392,47.199221443893258]
[null,"SCE","CCA","SBCE","Santa Barbara Clean Energy",20.201907875010075,21.809132762762086,23.482680952108943,25.230641871321733,27.053917088533282,28.949848210270375,30.916659468529414,32.936290369029237,35.010241508733159,37.128698349933728,39.280056954004472,41.455877888372136]
[null,"SCE","CCA","WCE","Western Community Energy",0,0,0,0,0,0,0,0,0,0,0,0]
[]
[null,"SDGE","IOU","SDGE","San Diego Gas and Electric (Bundled)",437.78139682417225,467.84549294613203,499.56400126858233,532.59835107237791,565.47146178385049,599.19856840421085,633.04840821344931,667.18813196577651,701.33795975777446,735.50607155309069,769.22680036509394,801.97027864891277]
[null,"SDGE","ESP",null,"San Diego Gas and Electric (Direct Access)",474.14911934452368,506.55513983092959,539.92689089440546,573.93568311217416,608.14132180584556,641.9135161361578,675.20239358561423,707.35052775049087,740.02850320637583,771.59934018399008,803.32713088815751,834.28002302904827]
[null,"SDGE","CCA","CEA","Clean Energy Alliance",178.97203776598533,192.34463513481677,206.13388660007689,220.27452020315263,234.63608054337388,249.07499241226589,263.71028109593857,278.52035746155553,293.15367068089392,307.76427610454715,322.15944295728002,336.53779574392155]
[null,"SDGE","CCA","OCPA","Orange County Power Authority",20.393470210252048,21.917223852047211,23.488452385250447,25.099860562123684,26.736216456575136,28.381537126609626,30.049136316445441,31.736835651642885,33.404204025123718,35.069105858886168,36.709327592816699,38.347653727019953]
[null,"SDGE","CCA","SDCP","San Diego Community Power",954.55604432506641,1025.878297666075,1099.4227056516845,1174.8478000201712,1251.440620840355,1328.4530554207558,1406.5082794585526,1485.5043299005342,1563.5487501298323,1641.4777191694861,1718.2514881266513,1794.9365298510979]
[null," "," "," "," "," "," "," "," "," "," "," "," "," "," "," "," "]
[null,"BEAR","SMJ","BEAR","Bear Valley Electric Services",6.7720883629999999,7.3201908690000002,7.8906317369999996,8.4904644180000002,9.1160487989999996,9.7639140199999996,10.437312873,11.12148865,11.821896943,12.537238436999999,13.262848098999999,14.001250491]

{"sheet":"Reliability","index":8,"n_rows":257,"n_cols":16,"rows_kept":257,"cut":false,"hidden":false,"merged":[]}
["LSE Input"]
[null,null,25,"MMT"]
[]
[]
[null,null,"Reliability Need"]
[null,null,null,null,2024,2025,2026,2027,2028,2029,2030,2031,2032,2033,2034,2035]
[null,null,"CAISO gross peak (MW)",null,53530,54113,54769,55494,56125,56797,57454,58178,58827,59511,60161,60803]
[null,null,"PRM (%)",null,0.14000000000000001,0.14000000000000001,0.14000000000000001,0.14000000000000001,0.14000000000000001,0.14000000000000001,0.14000000000000001,0.14000000000000001,0.14000000000000001,0.14000000000000001,0.14000000000000001,0.14000000000000001]
[null,null,"CAISO total reliability need (TRN) (MW)",null,{"$f":"E7*(1+E8)","v":61024.200000000004},{"$f":"F7*(1+F8)","v":61688.820000000007},62436.66,63263.16,63982.500000000007,64748.580000000009,65497.560000000005,66322.920000000013,67062.780000000013,67842.540000000008,68583.540000000008,69315.420000000013]
[null,null,"MRN/TRN ratio",null,{"$f":"IF($C$2=25,misc!AW3,misc!BK3)","v":0.77201871279722722},{"$f":"IF($C$2=25,misc!AX3,misc!BL3)","v":0.78867470616438251},{"$f":"IF($C$2=25,misc!AY3,misc!BM3)","v":0.80390270140610376},{"$f":"IF($C$2=25,misc!AZ3,misc!BN3)","v":0.77610409059689334},{"$f":"IF($C$2=25,misc!BA3,misc!BO3)","v":0.75027694884377893},{"$f":"IF($C$2=25,misc!BB3,misc!BP3)","v":0.76246521023924085},{"$f":"IF($C$2=25,misc!BC3,misc!BQ3)","v":0.77457060149091872},{"$f":"IF($C$2=25,misc!BD3,misc!BR3)","v":0.74274625791973614},{"$f":"IF($C$2=25,misc!BE3,misc!BS3)","v":0.71261162813758272},{"$f":"IF($C$2=25,misc!BF3,misc!BT3)","v":0.6827328847380274},{"$f":"IF($C$2=25,misc!BG3,misc!BU3)","v":0.65390251423413703},{"$f":"IF($C$2=25,misc!BH3,misc!BV3)","v":0.62577079443506212}]
[null,null,"CAISO marginal reliability need (MRN) (MW)",null,{"$f":"E9*E10","v":47111.824333480559},{"$f":"F9*F10","v":48652.411987127489},50192.999640774426,49098.797260085761,48004.594879397089,49368.539662392315,50732.484445387541,49261.100644310034,47789.716843232527,46318.33304215502,44846.949241077513,43375.565439999998]
[null,null,"LSE managed peak share (%)"]
[null,null,"LSE MRN (MW)",null,{"$f":"E11*E12","v":0},{"$f":"F11*F12","v":0},0,0,0,0,0,0,0,0,0,0]
[]
[]
[null,null,"BTM PV"]
[null,null,null,null,2024,2025,2026,2027,2028,2029,2030,2031,2032,2033,2034,2035]
[null,null,"Capacity (MW)",null,317,339,365,394,426,456,487,518,550,579,609,639]
[]
[]
[null,null,"ELCC (%)"]
[null,null,"Resource Type",null,2024,2025,2026,2027,2028,2029,2030,2031,2032,2033,2034,2035]
[null,null,"in_state_wind_south",null,{"$f":"IF($C$2=25,misc!U3,misc!AI3)","v":0.11841355076102321},{"$f":"IF($C$2=25,misc!V3,misc!AJ3)","v":0.13636070685128646},{"$f":"IF($C$2=25,misc!W3,misc!AK3)","v":0.15430786294154972},{"$f":"IF($C$2=25,misc!X3,misc!AL3)","v":0.10693659222396304},{"$f":"IF($C$2=25,misc!Y3,misc!AM3)","v":5.9565321506376369E-2},{"$f":"IF($C$2=25,misc!Z3,misc!AN3)","v":7.7201442724824779E-2},{"$f":"IF($C$2=25,misc!AA3,misc!AO3)","v":9.4837563943273195E-2},{"$f":"IF($C$2=25,misc!AB3,misc!AP3)","v":8.4644753263379724E-2},{"$f":"IF($C$2=25,misc!AC3,misc!AQ3)","v":7.4451942583486252E-2},{"$f":"IF($C$2=25,misc!AD3,misc!AR3)","v":6.4259131903592781E-2},{"$f":"IF($C$2=25,misc!AE3,misc!AS3)","v":5.406632122369931E-2},{"$f":"IF($C$2=25,misc!AF3,misc!AT3)","v":4.3873510543805838E-2}]
[null,null,"in_state_wind_north",null,{"$f":"IF($C$2=25,misc!U4,misc!AI4)","v":0.23682710152204642},{"$f":"IF($C$2=25,misc!V4,misc!AJ4)","v":0.27272141370257291},{"$f":"IF($C$2=25,misc!W4,misc!AK4)","v":0.30861572588309943},{"$f":"IF($C$2=25,misc!X4,misc!AL4)","v":0.21387318444792608},{"$f":"IF($C$2=25,misc!Y4,misc!AM4)","v":0.11913064301275274},{"$f":"IF($C$2=25,misc!Z4,misc!AN4)","v":0.15440288544964956},{"$f":"IF($C$2=25,misc!AA4,misc!AO4)","v":0.18967512788654639},{"$f":"IF($C$2=25,misc!AB4,misc!AP4)","v":0.16928950652675945},{"$f":"IF($C$2=25,misc!AC4,misc!AQ4)","v":0.1489038851669725},{"$f":"IF($C$2=25,misc!AD4,misc!AR4)","v":0.12851826380718556},{"$f":"IF($C$2=25,misc!AE4,misc!AS4)","v":0.10813264244739862},{"$f":"IF($C$2=25,misc!AF4,misc!AT4)","v":8.7747021087611676E-2}]
[null,null,"out_of_state_wind_WYID",null,{"$f":"IF($C$2=25,misc!U5,misc!AI5)","v":0.46897827577694978},{"$f":"IF($C$2=25,misc!V5,misc!AJ5)","v":0.45359083280372914},{"$f":"IF($C$2=25,misc!W5,misc!AK5)","v":0.43820338983050844},{"$f":"IF($C$2=25,misc!X5,misc!AL5)","v":0.38080451179552754},{"$f":"IF($C$2=25,misc!Y5,misc!AM5)","v":0.3234056337605466},{"$f":"IF($C$2=25,misc!Z5,misc!AN5)","v":0.32954852469028811},{"$f":"IF($C$2=25,misc!AA5,misc!AO5)","v":0.33569141562002963},{"$f":"IF($C$2=25,misc!AB5,misc!AP5)","v":0.32866160707229491},{"$f":"IF($C$2=25,misc!AC5,misc!AQ5)","v":0.3216317985245602},{"$f":"IF($C$2=25,misc!AD5,misc!AR5)","v":0.31460198997682548},{"$f":"IF($C$2=25,misc!AE5,misc!AS5)","v":0.30757218142909076},{"$f":"IF($C$2=25,misc!AF5,misc!AT5)","v":0.30054237288135593}]
[null,null,"out_of_state_wind_WAOR",null,{"$f":"IF($C$2=25,misc!U6,misc!AI6)","v":0.28743829805684018},{"$f":"IF($C$2=25,misc!V6,misc!AJ6)","v":0.27800728462164043},{"$f":"IF($C$2=25,misc!W6,misc!AK6)","v":0.26857627118644067},{"$f":"IF($C$2=25,misc!X6,misc!AL6)","v":0.23339631368112979},{"$f":"IF($C$2=25,misc!Y6,misc!AM6)","v":0.19821635617581887},{"$f":"IF($C$2=25,misc!Z6,misc!AN6)","v":0.20198135384243465},{"$f":"IF($C$2=25,misc!AA6,misc!AO6)","v":0.20574635150905043},{"$f":"IF($C$2=25,misc!AB6,misc!AP6)","v":0.20143775917334206},{"$f":"IF($C$2=25,misc!AC6,misc!AQ6)","v":0.19712916683763368},{"$f":"IF($C$2=25,misc!AD6,misc!AR6)","v":0.1928205745019253},{"$f":"IF($C$2=25,misc!AE6,misc!AS6)","v":0.18851198216621692},{"$f":"IF($C$2=25,misc!AF6,misc!AT6)","v":0.18420338983050849}]
[null,null,"out_of_state_wind_AZNM",null,{"$f":"IF($C$2=25,misc!U7,misc!AI7)","v":0.42359328134692242},{"$f":"IF($C$2=25,misc!V7,misc!AJ7)","v":0.40969494575820697},{"$f":"IF($C$2=25,misc!W7,misc!AK7)","v":0.39579661016949158},{"$f":"IF($C$2=25,misc!X7,misc!AL7)","v":0.34395246226692811},{"$f":"IF($C$2=25,misc!Y7,misc!AM7)","v":0.29210831436436469},{"$f":"IF($C$2=25,misc!Z7,misc!AN7)","v":0.29765673197832476},{"$f":"IF($C$2=25,misc!AA7,misc!AO7)","v":0.30320514959228489},{"$f":"IF($C$2=25,misc!AB7,misc!AP7)","v":0.29685564509755674},{"$f":"IF($C$2=25,misc!AC7,misc!AQ7)","v":0.29050614060282859},{"$f":"IF($C$2=25,misc!AD7,misc!AR7)","v":0.28415663610810044},{"$f":"IF($C$2=25,misc!AE7,misc!AS7)","v":0.27780713161337228},{"$f":"IF($C$2=25,misc!AF7,misc!AT7)","v":0.27145762711864413}]
[null,null,"offshore_wind",null,{"$f":"IF($C$2=25,misc!U8,misc!AI8)","v":0.66745107707355167},{"$f":"IF($C$2=25,misc!V8,misc!AJ8)","v":0.61580710432933394},{"$f":"IF($C$2=25,misc!W8,misc!AK8)","v":0.56416313158511622},{"$f":"IF($C$2=25,misc!X8,misc!AL8)","v":0.55718196245584084},{"$f":"IF($C$2=25,misc!Y8,misc!AM8)","v":0.55020079332656546},{"$f":"IF($C$2=25,misc!Z8,misc!AN8)","v":0.5803035093936455},{"$f":"IF($C$2=25,misc!AA8,misc!AO8)","v":0.61040622546072543},{"$f":"IF($C$2=25,misc!AB8,misc!AP8)","v":0.55232498036858035},{"$f":"IF($C$2=25,misc!AC8,misc!AQ8)","v":0.49424373527643528},{"$f":"IF($C$2=25,misc!AD8,misc!AR8)","v":0.43616249018429021},{"$f":"IF($C$2=25,misc!AE8,misc!AS8)","v":0.37808124509214514},{"$f":"IF($C$2=25,misc!AF8,misc!AT8)","v":0.32}]
[null,null,"utility_pv",null,{"$f":"IF($C$2=25,misc!U9,misc!AI9)","v":0.12434584155282009},{"$f":"IF($C$2=25,misc!V9,misc!AJ9)","v":0.12102944303332039},{"$f":"IF($C$2=25,misc!W9,misc!AK9)","v":0.11771304451382068},{"$f":"IF($C$2=25,misc!X9,misc!AL9)","v":0.1001620473979912},{"$f":"IF($C$2=25,misc!Y9,misc!AM9)","v":8.261105028216173E-2},{"$f":"IF($C$2=25,misc!Z9,misc!AN9)","v":7.6604612550074003E-2},{"$f":"IF($C$2=25,misc!AA9,misc!AO9)","v":7.0598174817986262E-2},{"$f":"IF($C$2=25,misc!AB9,misc!AP9)","v":6.9278539854389004E-2},{"$f":"IF($C$2=25,misc!AC9,misc!AQ9)","v":6.7958904890791746E-2},{"$f":"IF($C$2=25,misc!AD9,misc!AR9)","v":6.6639269927194489E-2},{"$f":"IF($C$2=25,misc!AE9,misc!AS9)","v":6.5319634963597231E-2},{"$f":"IF($C$2=25,misc!AF9,misc!AT9)","v":6.4000000000000001E-2}]
[null,null,"btm_pv",null,{"$f":"IF($C$2=25,misc!U10,misc!AI10)","v":5.3182100841591383E-2},{"$f":"IF($C$2=25,misc!V10,misc!AJ10)","v":4.865045278619004E-2},{"$f":"IF($C$2=25,misc!W10,misc!AK10)","v":4.4118804730788705E-2},{"$f":"IF($C$2=25,misc!X10,misc!AL10)","v":5.2547949194918675E-2},{"$f":"IF($C$2=25,misc!Y10,misc!AM10)","v":6.0977093659048652E-2},{"$f":"IF($C$2=25,misc!Z10,misc!AN10)","v":5.4040407611745077E-2},{"$f":"IF($C$2=25,misc!AA10,misc!AO10)","v":4.7103721564441502E-2},{"$f":"IF($C$2=25,misc!AB10,misc!AP10)","v":4.8882977251553203E-2},{"$f":"IF($C$2=25,misc!AC10,misc!AQ10)","v":5.0662232938664904E-2},{"$f":"IF($C$2=25,misc!AD10,misc!AR10)","v":5.2441488625776606E-2},{"$f":"IF($C$2=25,misc!AE10,misc!AS10)","v":5.4220744312888307E-2},{"$f":"IF($C$2=25,misc!AF10,misc!AT10)","v":5.6000000000000001E-2}]
[null,null,"4hr_batteries",null,{"$f":"IF($C$2=25,misc!U11,misc!AI11)","v":0.85399999999999998},{"$f":"IF($C$2=25,misc!V11,misc!AJ11)","v":0.86399999999999999},{"$f":"IF($C$2=25,misc!W11,misc!AK11)","v":0.874},{"$f":"IF($C$2=25,misc!X11,misc!AL11)","v":0.84499999999999997},{"$f":"IF($C$2=25,misc!Y11,misc!AM11)","v":0.81599999999999995},{"$f":"IF($C$2=25,misc!Z11,misc!AN11)","v":0.85299999999999998},{"$f":"IF($C$2=25,misc!AA11,misc!AO11)","v":0.89},{"$f":"IF($C$2=25,misc!AB11,misc!AP11)","v":0.79220000000000002},{"$f":"IF($C$2=25,misc!AC11,misc!AQ11)","v":0.69440000000000002},{"$f":"IF($C$2=25,misc!AD11,misc!AR11)","v":0.59660000000000002},{"$f":"IF($C$2=25,misc!AE11,misc!AS11)","v":0.49880000000000002},{"$f":"IF($C$2=25,misc!AF11,misc!AT11)","v":0.40100000000000002}]
[null,null,"5hr_batteries",null,{"$f":"IF($C$2=25,misc!U12,misc!AI12)","v":0.86399999999999999},{"$f":"IF($C$2=25,misc!V12,misc!AJ12)","v":0.86962499999999998},{"$f":"IF($C$2=25,misc!W12,misc!AK12)","v":0.87524999999999997},{"$f":"IF($C$2=25,misc!X12,misc!AL12)","v":0.85087500000000005},{"$f":"IF($C$2=25,misc!Y12,misc!AM12)","v":0.82650000000000001},{"$f":"IF($C$2=25,misc!Z12,misc!AN12)","v":0.85824999999999996},{"$f":"IF($C$2=25,misc!AA12,misc!AO12)","v":0.89},{"$f":"IF($C$2=25,misc!AB12,misc!AP12)","v":0.80695000000000006},{"$f":"IF($C$2=25,misc!AC12,misc!AQ12)","v":0.72389999999999999},{"$f":"IF($C$2=25,misc!AD12,misc!AR12)","v":0.64084999999999992},{"$f":"IF($C$2=25,misc!AE12,misc!AS12)","v":0.55779999999999996},{"$f":"IF($C$2=25,misc!AF12,misc!AT12)","v":0.47475000000000001}]
[null,null,"6hr_batteries",null,{"$f":"IF($C$2=25,misc!U13,misc!AI13)","v":0.874},{"$f":"IF($C$2=25,misc!V13,misc!AJ13)","v":0.87524999999999997},{"$f":"IF($C$2=25,misc!W13,misc!AK13)","v":0.87649999999999995},{"$f":"IF($C$2=25,misc!X13,misc!AL13)","v":0.85675000000000012},{"$f":"IF($C$2=25,misc!Y13,misc!AM13)","v":0.83699999999999997},{"$f":"IF($C$2=25,misc!Z13,misc!AN13)","v":0.86349999999999993},{"$f":"IF($C$2=25,misc!AA13,misc!AO13)","v":0.89},{"$f":"IF($C$2=25,misc!AB13,misc!AP13)","v":0.8217000000000001},{"$f":"IF($C$2=25,misc!AC13,misc!AQ13)","v":0.75339999999999996},{"$f":"IF($C$2=25,misc!AD13,misc!AR13)","v":0.68509999999999982},{"$f":"IF($C$2=25,misc!AE13,misc!AS13)","v":0.6167999999999999},{"$f":"IF($C$2=25,misc!AF13,misc!AT13)","v":0.54849999999999999}]
[null,null,"7hr_batteries",null,{"$f":"IF($C$2=25,misc!U14,misc!AI14)","v":0.88400000000000001},{"$f":"IF($C$2=25,misc!V14,misc!AJ14)","v":0.88087499999999996},{"$f":"IF($C$2=25,misc!W14,misc!AK14)","v":0.87774999999999992},{"$f":"IF($C$2=25,misc!X14,misc!AL14)","v":0.8626250000000002},{"$f":"IF($C$2=25,misc!Y14,misc!AM14)","v":0.84749999999999992},{"$f":"IF($C$2=25,misc!Z14,misc!AN14)","v":0.86874999999999991},{"$f":"IF($C$2=25,misc!AA14,misc!AO14)","v":0.89},{"$f":"IF($C$2=25,misc!AB14,misc!AP14)","v":0.83645000000000014},{"$f":"IF($C$2=25,misc!AC14,misc!AQ14)","v":0.78289999999999993},{"$f":"IF($C$2=25,misc!AD14,misc!AR14)","v":0.72934999999999972},{"$f":"IF($C$2=25,misc!AE14,misc!AS14)","v":0.67579999999999985},{"$f":"IF($C$2=25,misc!AF14,misc!AT14)","v":0.62224999999999997}]
[null,null,"8hr_batteries",null,{"$f":"IF($C$2=25,misc!U15,misc!AI15)","v":0.89400000000000002},{"$f":"IF($C$2=25,misc!V15,misc!AJ15)","v":0.88650000000000007},{"$f":"IF($C$2=25,misc!W15,misc!AK15)","v":0.879},{"$f":"IF($C$2=25,misc!X15,misc!AL15)","v":0.86850000000000005},{"$f":"IF($C$2=25,misc!Y15,misc!AM15)","v":0.85799999999999998},{"$f":"IF($C$2=25,misc!Z15,misc!AN15)","v":0.874},{"$f":"IF($C$2=25,misc!AA15,misc!AO15)","v":0.89},{"$f":"IF($C$2=25,misc!AB15,misc!AP15)","v":0.85119999999999996},{"$f":"IF($C$2=25,misc!AC15,misc!AQ15)","v":0.8123999999999999},{"$f":"IF($C$2=25,misc!AD15,misc!AR15)","v":0.77359999999999984},{"$f":"IF($C$2=25,misc!AE15,misc!AS15)","v":0.73479999999999979},{"$f":"IF($C$2=25,misc!AF15,misc!AT15)","v":0.69599999999999995}]
[null,null,"pumped_storage",null,{"$f":"IF($C$2=25,misc!U16,misc!AI16)","v":0.90100000000000002},{"$f":"IF($C$2=25,misc!V16,misc!AJ16)","v":0.89},{"$f":"IF($C$2=25,misc!W16,misc!AK16)","v":0.879},{"$f":"IF($C$2=25,misc!X16,misc!AL16)","v":0.86850000000000005},{"$f":"IF($C$2=25,misc!Y16,misc!AM16)","v":0.85799999999999998},{"$f":"IF($C$2=25,misc!Z16,misc!AN16)","v":0.874},{"$f":"IF($C$2=25,misc!AA16,misc!AO16)","v":0.89},{"$f":"IF($C$2=25,misc!AB16,misc!AP16)","v":0.85860000000000003},{"$f":"IF($C$2=25,misc!AC16,misc!AQ16)","v":0.82720000000000005},{"$f":"IF($C$2=25,misc!AD16,misc!AR16)","v":0.79580000000000006},{"$f":"IF($C$2=25,misc!AE16,misc!AS16)","v":0.76440000000000008},{"$f":"IF($C$2=25,misc!AF16,misc!AT16)","v":0.73299999999999998}]
[null,null,"demand_response",null,{"$f":"IF($C$2=25,misc!U17,misc!AI17)","v":0.7724039633086085},{"$f":"IF($C$2=25,misc!V17,misc!AJ17)","v":0.79750142153712067},{"$f":"IF($C$2=25,misc!W17,misc!AK17)","v":0.82259887976563284},{"$f":"IF($C$2=25,misc!X17,misc!AL17)","v":0.77486011512236863},{"$f":"IF($C$2=25,misc!Y17,misc!AM17)","v":0.72712135047910442},{"$f":"IF($C$2=25,misc!Z17,misc!AN17)","v":0.79507732791389651},{"$f":"IF($C$2=25,misc!AA17,misc!AO17)","v":0.86303330534868861},{"$f":"IF($C$2=25,misc!AB17,misc!AP17)","v":0.71922664427895089},{"$f":"IF($C$2=25,misc!AC17,misc!AQ17)","v":0.57541998320921317},{"$f":"IF($C$2=25,misc!AD17,misc!AR17)","v":0.43161332213947545},{"$f":"IF($C$2=25,misc!AE17,misc!AS17)","v":0.28780666106973773},{"$f":"IF($C$2=25,misc!AF17,misc!AT17)","v":0.14399999999999999}]
[null,null,"hydro",null,{"$f":"IF($C$2=25,misc!U18,misc!AI18)","v":0.50808542614523622},{"$f":"IF($C$2=25,misc!V18,misc!AJ18)","v":0.52136584004877395},{"$f":"IF($C$2=25,misc!W18,misc!AK18)","v":0.53464625395231169},{"$f":"IF($C$2=25,misc!X18,misc!AL18)","v":0.52463421830816248},{"$f":"IF($C$2=25,misc!Y18,misc!AM18)","v":0.51462218266401338},{"$f":"IF($C$2=25,misc!Z18,misc!AN18)","v":0.52965938625731068},{"$f":"IF($C$2=25,misc!AA18,misc!AO18)","v":0.54469658985060787},{"$f":"IF($C$2=25,misc!AB18,misc!AP18)","v":0.52172491439930901},{"$f":"IF($C$2=25,misc!AC18,misc!AQ18)","v":0.4987532389480101},{"$f":"IF($C$2=25,misc!AD18,misc!AR18)","v":0.47578156349671119},{"$f":"IF($C$2=25,misc!AE18,misc!AS18)","v":0.45280988804541228},{"$f":"IF($C$2=25,misc!AF18,misc!AT18)","v":0.42983821259411337}]
[null,null,"small_hydro",null,{"$f":"IF($C$2=25,misc!U19,misc!AI19)","v":0.36439596011147751},{"$f":"IF($C$2=25,misc!V19,misc!AJ19)","v":0.37392059696589919},{"$f":"IF($C$2=25,misc!W19,misc!AK19)","v":0.38344523382032081},{"$f":"IF($C$2=25,misc!X19,misc!AL19)","v":0.37626465915023138},{"$f":"IF($C$2=25,misc!Y19,misc!AM19)","v":0.36908408448014196},{"$f":"IF($C$2=25,misc!Z19,misc!AN19)","v":0.37986868084682657},{"$f":"IF($C$2=25,misc!AA19,misc!AO19)","v":0.39065327721351117},{"$f":"IF($C$2=25,misc!AB19,misc!AP19)","v":0.37417812303529918},{"$f":"IF($C$2=25,misc!AC19,misc!AQ19)","v":0.35770296885708719},{"$f":"IF($C$2=25,misc!AD19,misc!AR19)","v":0.3412278146788752},{"$f":"IF($C$2=25,misc!AE19,misc!AS19)","v":0.3247526605006632},{"$f":"IF($C$2=25,misc!AF19,misc!AT19)","v":0.3082775063224511}]
[null,null,"geothermal",null,{"$f":"IF($C$2=25,misc!U20,misc!AI20)","v":0.86035735395693558},{"$f":"IF($C$2=25,misc!V20,misc!AJ20)","v":0.88845422376818506},{"$f":"IF($C$2=25,misc!W20,misc!AK20)","v":0.91655109357943454},{"$f":"IF($C$2=25,misc!X20,misc!AL20)","v":0.92141545041207906},{"$f":"IF($C$2=25,misc!Y20,misc!AM20)","v":0.92627980724472359},{"$f":"IF($C$2=25,misc!Z20,misc!AN20)","v":0.91906618301364429},{"$f":"IF($C$2=25,misc!AA20,misc!AO20)","v":0.91185255878256499},{"$f":"IF($C$2=25,misc!AB20,misc!AP20)","v":0.91955797078363211},{"$f":"IF($C$2=25,misc!AC20,misc!AQ20)","v":0.92726338278469922},{"$f":"IF($C$2=25,misc!AD20,misc!AR20)","v":0.93496879478576633},{"$f":"IF($C$2=25,misc!AE20,misc!AS20)","v":0.94267420678683345},{"$f":"IF($C$2=25,misc!AF20,misc!AT20)","v":0.95037961878790056}]
[null,null,"biomass_wood",null,{"$f":"IF($C$2=25,misc!U21,misc!AI21)","v":0.7760796336578174},{"$f":"IF($C$2=25,misc!V21,misc!AJ21)","v":0.79410595910163018},{"$f":"IF($C$2=25,misc!W21,misc!AK21)","v":0.81213228454544306},{"$f":"IF($C$2=25,misc!X21,misc!AL21)","v":0.81927788031425353},{"$f":"IF($C$2=25,misc!Y21,misc!AM21)","v":0.82642347608306399},{"$f":"IF($C$2=25,misc!Z21,misc!AN21)","v":0.81498790039485203},{"$f":"IF($C$2=25,misc!AA21,misc!AO21)","v":0.80355232470664006},{"$f":"IF($C$2=25,misc!AB21,misc!AP21)","v":0.81956505086438813},{"$f":"IF($C$2=25,misc!AC21,misc!AQ21)","v":0.8355777770221362},{"$f":"IF($C$2=25,misc!AD21,misc!AR21)","v":0.85159050317988427},{"$f":"IF($C$2=25,misc!AE21,misc!AS21)","v":0.86760322933763234},{"$f":"IF($C$2=25,misc!AF21,misc!AT21)","v":0.88361595549538019}]
[null,null,"biogas",null,{"$f":"IF($C$2=25,misc!U22,misc!AI22)","v":0.74993508538984277},{"$f":"IF($C$2=25,misc!V22,misc!AJ22)","v":0.76621477432747476},{"$f":"IF($C$2=25,misc!W22,misc!AK22)","v":0.78249446326510674},{"$f":"IF($C$2=25,misc!X22,misc!AL22)","v":0.78556571387656016},{"$f":"IF($C$2=25,misc!Y22,misc!AM22)","v":0.78863696448801368},{"$f":"IF($C$2=25,misc!Z22,misc!AN22)","v":0.77725397013863851},{"$f":"IF($C$2=25,misc!AA22,misc!AO22)","v":0.76587097578926322},{"$f":"IF($C$2=25,misc!AB22,misc!AP22)","v":0.78423035140973241},{"$f":"IF($C$2=25,misc!AC22,misc!AQ22)","v":0.80258972703020159},{"$f":"IF($C$2=25,misc!AD22,misc!AR22)","v":0.82094910265067078},{"$f":"IF($C$2=25,misc!AE22,misc!AS22)","v":0.83930847827113997},{"$f":"IF($C$2=25,misc!AF22,misc!AT22)","v":0.85766785389160938}]
[null,null,"nuclear",null,{"$f":"IF($C$2=25,misc!U23,misc!AI23)","v":0.93356208910726446},{"$f":"IF($C$2=25,misc!V23,misc!AJ23)","v":0.93542040714074237},{"$f":"IF($C$2=25,misc!W23,misc!AK23)","v":0.93727872517422017},{"$f":"IF($C$2=25,misc!X23,misc!AL23)","v":0.93803958722410496},{"$f":"IF($C$2=25,misc!Y23,misc!AM23)","v":0.93880044927398987},{"$f":"IF($C$2=25,misc!Z23,misc!AN23)","v":0.93205531633495187},{"$f":"IF($C$2=25,misc!AA23,misc!AO23)","v":0.92531018339591387},{"$f":"IF($C$2=25,misc!AB23,misc!AP23)","v":0.93233873256863709},{"$f":"IF($C$2=25,misc!AC23,misc!AQ23)","v":0.9393672817413603},{"$f":"IF($C$2=25,misc!AD23,misc!AR23)","v":0.94639583091408352},{"$f":"IF($C$2=25,misc!AE23,misc!AS23)","v":0.95342438008680674},{"$f":"IF($C$2=25,misc!AF23,misc!AT23)","v":0.96045292925952974}]
[null,null,"gas_cc",null,{"$f":"IF($C$2=25,misc!U24,misc!AI24)","v":0.84405545915455138},{"$f":"IF($C$2=25,misc!V24,misc!AJ24)","v":0.85378805932691004},{"$f":"IF($C$2=25,misc!W24,misc!AK24)","v":0.86352065949926871},{"$f":"IF($C$2=25,misc!X24,misc!AL24)","v":0.86634980076266022},{"$f":"IF($C$2=25,misc!Y24,misc!AM24)","v":0.86917894202605173},{"$f":"IF($C$2=25,misc!Z24,misc!AN24)","v":0.85956321379360601},{"$f":"IF($C$2=25,misc!AA24,misc!AO24)","v":0.84994748556116018},{"$f":"IF($C$2=25,misc!AB24,misc!AP24)","v":0.86140444290247919},{"$f":"IF($C$2=25,misc!AC24,misc!AQ24)","v":0.87286140024379821},{"$f":"IF($C$2=25,misc!AD24,misc!AR24)","v":0.88431835758511723},{"$f":"IF($C$2=25,misc!AE24,misc!AS24)","v":0.89577531492643625},{"$f":"IF($C$2=25,misc!AF24,misc!AT24)","v":0.90723227226775538}]
[null,null,"gas_ct",null,{"$f":"IF($C$2=25,misc!U25,misc!AI25)","v":0.81237441831218216},{"$f":"IF($C$2=25,misc!V25,misc!AJ25)","v":0.83458266364683165},{"$f":"IF($C$2=25,misc!W25,misc!AK25)","v":0.85679090898148114},{"$f":"IF($C$2=25,misc!X25,misc!AL25)","v":0.84024564289456083},{"$f":"IF($C$2=25,misc!Y25,misc!AM25)","v":0.82370037680764052},{"$f":"IF($C$2=25,misc!Z25,misc!AN25)","v":0.80688071641969916},{"$f":"IF($C$2=25,misc!AA25,misc!AO25)","v":0.7900610560317578},{"$f":"IF($C$2=25,misc!AB25,misc!AP25)","v":0.80257508455656523},{"$f":"IF($C$2=25,misc!AC25,misc!AQ25)","v":0.81508911308137266},{"$f":"IF($C$2=25,misc!AD25,misc!AR25)","v":0.82760314160618009},{"$f":"IF($C$2=25,misc!AE25,misc!AS25)","v":0.84011717013098752},{"$f":"IF($C$2=25,misc!AF25,misc!AT25)","v":0.85263119865579484}]
[null,null,"cogen",null,{"$f":"IF($C$2=25,misc!U26,misc!AI26)","v":0.93171659158246634},{"$f":"IF($C$2=25,misc!V26,misc!AJ26)","v":0.92982721151899872},{"$f":"IF($C$2=25,misc!W26,misc!AK26)","v":0.9279378314555311},{"$f":"IF($C$2=25,misc!X26,misc!AL26)","v":0.93426748239376611},{"$f":"IF($C$2=25,misc!Y26,misc!AM26)","v":0.94059713333200112},{"$f":"IF($C$2=25,misc!Z26,misc!AN26)","v":0.93177611621028944},{"$f":"IF($C$2=25,misc!AA26,misc!AO26)","v":0.92295509908857776},{"$f":"IF($C$2=25,misc!AB26,misc!AP26)","v":0.92509715629415346},{"$f":"IF($C$2=25,misc!AC26,misc!AQ26)","v":0.92723921349972915},{"$f":"IF($C$2=25,misc!AD26,misc!AR26)","v":0.92938127070530485},{"$f":"IF($C$2=25,misc!AE26,misc!AS26)","v":0.93152332791088055},{"$f":"IF($C$2=25,misc!AF26,misc!AT26)","v":0.93366538511645647}]
[null,null,"ice",null,{"$f":"IF($C$2=25,misc!U27,misc!AI27)","v":0.93417725494886394},{"$f":"IF($C$2=25,misc!V27,misc!AJ27)","v":0.93953702885460977},{"$f":"IF($C$2=25,misc!W27,misc!AK27)","v":0.94489680276035559},{"$f":"IF($C$2=25,misc!X27,misc!AL27)","v":0.94420958116215314},{"$f":"IF($C$2=25,misc!Y27,misc!AM27)","v":0.94352235956395081},{"$f":"IF($C$2=25,misc!Z27,misc!AN27)","v":0.94551881178594521},{"$f":"IF($C$2=25,misc!AA27,misc!AO27)","v":0.94751526400793951},{"$f":"IF($C$2=25,misc!AB27,misc!AP27)","v":0.93432127731937176},{"$f":"IF($C$2=25,misc!AC27,misc!AQ27)","v":0.92112729063080401},{"$f":"IF($C$2=25,misc!AD27,misc!AR27)","v":0.90793330394223626},{"$f":"IF($C$2=25,misc!AE27,misc!AS27)","v":0.89473931725366851},{"$f":"IF($C$2=25,misc!AF27,misc!AT27)","v":0.88154533056510087}]
[null,null,"coal",null,{"$f":"IF($C$2=25,misc!U28,misc!AI28)","v":0.68780333538830307},{"$f":"IF($C$2=25,misc!V28,misc!AJ28)","v":0.70728773218306451},{"$f":"IF($C$2=25,misc!W28,misc!AK28)","v":0.72677212897782595},{"$f":"IF($C$2=25,misc!X28,misc!AL28)","v":0.72091463332629768},{"$f":"IF($C$2=25,misc!Y28,misc!AM28)","v":0.71505713767476942},{"$f":"IF($C$2=25,misc!Z28,misc!AN28)","v":0.68678495655552108},{"$f":"IF($C$2=25,misc!AA28,misc!AO28)","v":0.65851277543627273},{"$f":"IF($C$2=25,misc!AB28,misc!AP28)","v":0.68894203468715276},{"$f":"IF($C$2=25,misc!AC28,misc!AQ28)","v":0.71937129393803279},{"$f":"IF($C$2=25,misc!AD28,misc!AR28)","v":0.74980055318891281},{"$f":"IF($C$2=25,misc!AE28,misc!AS28)","v":0.78022981243979284},{"$f":"IF($C$2=25,misc!AF28,misc!AT28)","v":0.81065907169067308}]
[null,null,"steam",null,{"$f":"IF($C$2=25,misc!U29,misc!AI29)","v":0.77854029702421501},{"$f":"IF($C$2=25,misc!V29,misc!AJ29)","v":0.79236174105596691},{"$f":"IF($C$2=25,misc!W29,misc!AK29)","v":0.80618318508771891},{"$f":"IF($C$2=25,misc!X29,misc!AL29)","v":0.80202811428072351},{"$f":"IF($C$2=25,misc!Y29,misc!AM29)","v":0.79787304347372801},{"$f":"IF($C$2=25,misc!Z29,misc!AN29)","v":0.77781790021672426},{"$f":"IF($C$2=25,misc!AA29,misc!AO29)","v":0.75776275695972062},{"$f":"IF($C$2=25,misc!AB29,misc!AP29)","v":0.77934804431009863},{"$f":"IF($C$2=25,misc!AC29,misc!AQ29)","v":0.80093333166047664},{"$f":"IF($C$2=25,misc!AD29,misc!AR29)","v":0.82251861901085466},{"$f":"IF($C$2=25,misc!AE29,misc!AS29)","v":0.84410390636123267},{"$f":"IF($C$2=25,misc!AF29,misc!AT29)","v":0.86568919371161046}]
[null,null,"unspecified_import",null,{"$f":"IF($C$2=25,misc!U30,misc!AI30)","v":1},{"$f":"IF($C$2=25,misc!V30,misc!AJ30)","v":1},{"$f":"IF($C$2=25,misc!W30,misc!AK30)","v":1},{"$f":"IF($C$2=25,misc!X30,misc!AL30)","v":1},{"$f":"IF($C$2=25,misc!Y30,misc!AM30)","v":1},{"$f":"IF($C$2=25,misc!Z30,misc!AN30)","v":1},{"$f":"IF($C$2=25,misc!AA30,misc!AO30)","v":1},{"$f":"IF($C$2=25,misc!AB30,misc!AP30)","v":1},{"$f":"IF($C$2=25,misc!AC30,misc!AQ30)","v":1},{"$f":"IF($C$2=25,misc!AD30,misc!AR30)","v":1},{"$f":"IF($C$2=25,misc!AE30,misc!AS30)","v":1},{"$f":"IF($C$2=25,misc!AF30,misc!AT30)","v":1}]
[]
[]
[]
[null,null,"Contract ELCC (effective MW)"]
[null,null,"Resource Type","Conrtact Status",2024,2025,2026,2027,2028,2029,2030,2031,2032,2033,2034,2035]
[null,null,"hybrid","Online"]
[null,null,"in_state_wind_south","Online"]
[null,null,"in_state_wind_north","Online"]
[null,null,"out_of_state_wind_WYID","Online"]
[null,null,"out_of_state_wind_WAOR","Online"]
[null,null,"out_of_state_wind_AZNM","Online"]
[null,null,"offshore_wind","Online"]
[null,null,"utility_pv","Online"]
[null,null,"btm_pv","Online"]
[null,null,"4hr_batteries","Online"]
[null,null,"5hr_batteries","Online"]
[null,null,"6hr_batteries","Online"]
[null,null,"7hr_batteries","Online"]
[null,null,"8hr_batteries","Online"]
[null,null,"pumped_storage","Online"]
[null,null,"demand_response","Online"]
[null,null,"hydro","Online"]
[null,null,"small_hydro","Online"]
[null,null,"geothermal","Online"]
[null,null,"biomass_wood","Online"]
[null,null,"biogas","Online"]
[null,null,"nuclear","Online"]
[null,null,"gas_cc","Online"]
[null,null,"gas_ct","Online"]
[null,null,"cogen","Online"]
[null,null,"ice","Online"]
[null,null,"coal","Online"]
[null,null,"steam","Online"]
[null,null,"unspecified_import","Online"]
[null,null,"hybrid","Development"]
[null,null,"in_state_wind_south","Development"]
[null,null,"in_state_wind_north","Development"]
[null,null,"out_of_state_wind_WYID","Development"]
[null,null,"out_of_state_wind_WAOR","Development"]
[null,null,"out_of_state_wind_AZNM","Development"]
[null,null,"offshore_wind","Development"]
[null,null,"utility_pv","Development"]
[null,null,"btm_pv","Development"]
[null,null,"4hr_batteries","Development"]
[null,null,"5hr_batteries","Development"]
[null,null,"6hr_batteries","Development"]
[null,null,"7hr_batteries","Development"]
[null,null,"8hr_batteries","Development"]
[null,null,"pumped_storage","Development"]
[null,null,"demand_response","Development"]
[null,null,"hydro","Development"]
[null,null,"small_hydro","Development"]
[null,null,"geothermal","Development"]
[null,null,"biomass_wood","Development"]
[null,null,"biogas","Development"]
[null,null,"nuclear","Development"]
[null,null,"gas_cc","Development"]
[null,null,"gas_ct","Development"]
[null,null,"cogen","Development"]
[null,null,"ice","Development"]
[null,null,"coal","Development"]
[null,null,"steam","Development"]
[null,null,"unspecified_import","Development"]
[null,null,"hybrid","Review"]
[null,null,"in_state_wind_south","Review"]
[null,null,"in_state_wind_north","Review"]
[null,null,"out_of_state_wind_WYID","Review"]
[null,null,"out_of_state_wind_WAOR","Review"]
[null,null,"out_of_state_wind_AZNM","Review"]
[null,null,"offshore_wind","Review"]
[null,null,"utility_pv","Review"]
[null,null,"btm_pv","Review"]
[null,null,"4hr_batteries","Review"]
[null,null,"5hr_batteries","Review"]
[null,null,"6hr_batteries","Review"]
[null,null,"7hr_batteries","Review"]
[null,null,"8hr_batteries","Review"]
[null,null,"pumped_storage","Review"]
[null,null,"demand_response","Review"]
[null,null,"hydro","Review"]
[null,null,"small_hydro","Review"]
[null,null,"geothermal","Review"]
[null,null,"biomass_wood","Review"]
[null,null,"biogas","Review"]
[null,null,"nuclear","Review"]
[null,null,"gas_cc","Review"]
[null,null,"gas_ct","Review"]
[null,null,"cogen","Review"]
[null,null,"ice","Review"]
[null,null,"coal","Review"]
[null,null,"steam","Review"]
[null,null,"unspecified_import","Review"]
[null,null,"hybrid","PlannedExisting"]
[null,null,"in_state_wind_south","PlannedExisting"]
[null,null,"in_state_wind_north","PlannedExisting"]
[null,null,"out_of_state_wind_WYID","PlannedExisting"]
[null,null,"out_of_state_wind_WAOR","PlannedExisting"]
[null,null,"out_of_state_wind_AZNM","PlannedExisting"]
[null,null,"offshore_wind","PlannedExisting"]
[null,null,"utility_pv","PlannedExisting"]
[null,null,"btm_pv","PlannedExisting"]
[null,null,"4hr_batteries","PlannedExisting"]
[null,null,"5hr_batteries","PlannedExisting"]
[null,null,"6hr_batteries","PlannedExisting"]
[null,null,"7hr_batteries","PlannedExisting"]
[null,null,"8hr_batteries","PlannedExisting"]
[null,null,"pumped_storage","PlannedExisting"]
[null,null,"demand_response","PlannedExisting"]
[null,null,"hydro","PlannedExisting"]
[null,null,"small_hydro","PlannedExisting"]
[null,null,"geothermal","PlannedExisting"]
[null,null,"biomass_wood","PlannedExisting"]
[null,null,"biogas","PlannedExisting"]
[null,null,"nuclear","PlannedExisting"]
[null,null,"gas_cc","PlannedExisting"]
[null,null,"gas_ct","PlannedExisting"]
[null,null,"cogen","PlannedExisting"]
[null,null,"ice","PlannedExisting"]
[null,null,"coal","PlannedExisting"]
[null,null,"steam","PlannedExisting"]
[null,null,"unspecified_import","PlannedExisting"]
[null,null,"hybrid","PlannedNew"]
[null,null,"in_state_wind_south","PlannedNew"]
[null,null,"in_state_wind_north","PlannedNew"]
[null,null,"out_of_state_wind_WYID","PlannedNew"]
[null,null,"out_of_state_wind_WAOR","PlannedNew"]
[null,null,"out_of_state_wind_AZNM","PlannedNew"]
[null,null,"offshore_wind","PlannedNew"]
[null,null,"utility_pv","PlannedNew"]
[null,null,"btm_pv","PlannedNew"]
[null,null,"4hr_batteries","PlannedNew"]
[null,null,"5hr_batteries","PlannedNew"]
[null,null,"6hr_batteries","PlannedNew"]
[null,null,"7hr_batteries","PlannedNew"]
[null,null,"8hr_batteries","PlannedNew"]
[null,null,"pumped_storage","PlannedNew"]
[null,null,"demand_response","PlannedNew"]
[null,null,"hydro","PlannedNew"]
[null,null,"small_hydro","PlannedNew"]
[null,null,"geothermal","PlannedNew"]
[null,null,"biomass_wood","PlannedNew"]
[null,null,"biogas","PlannedNew"]
[null,null,"nuclear","PlannedNew"]
[null,null,"gas_cc","PlannedNew"]
[null,null,"gas_ct","PlannedNew"]
[null,null,"cogen","PlannedNew"]
[null,null,"ice","PlannedNew"]
[null,null,"coal","PlannedNew"]
[null,null,"steam","PlannedNew"]
[null,null,"unspecified_import","PlannedNew"]
[null,null,"LSE total supply (effective MW)"]
[]
[]
[]
[null,null,"Load and Resource Table by Resource Type"]
[null,null,null,null,2024,2025,2026,2027,2028,2029,2030,2031,2032,2033,2034,2035]
[null,null,"LSE reliability need (MW)"]
[null,null,"ELCC by resource type (effective MW)"]
[null,null,"hybrid"]
[null,null,"in_state_wind_south"]
[null,null,"in_state_wind_north"]
[null,null,"out_of_state_wind_WYID"]
[null,null,"out_of_state_wind_WAOR"]
[null,null,"out_of_state_wind_AZNM"]
[null,null,"offshore_wind"]
[null,null,"utility_pv"]
[null,null,"btm_pv"]
[null,null,"4hr_batteries"]
[null,null,"5hr_batteries"]
[null,null,"6hr_batteries"]
[null,null,"7hr_batteries"]
[null,null,"8hr_batteries"]
[null,null,"pumped_storage"]
[null,null,"demand_response"]
[null,null,"hydro"]
[null,null,"small_hydro"]
[null,null,"geothermal"]
[null,null,"biomass_wood"]
[null,null,"biogas"]
[null,null,"nuclear"]
[null,null,"gas_cc"]
[null,null,"gas_ct"]
[null,null,"cogen"]
[null,null,"ice"]
[null,null,"coal"]
[null,null,"steam"]
[null,null,"unspecified_import"]
[null,null,"LSE total supply (effective MW)"]
[null,null,"Net capacity position (+ve = excess, -ve = shortfall) (effective MW)"]
[]
[]
[]
[]
[]
[]
[null,null,"Load and Resource Table by Contract Status"]
[null,null,null,null,2024,2025,2026,2027,2028,2029,2030,2031,2032,2033,2034,2035]
[null,null,"LSE reliability need (MW)"]
[null,null,"ELCC by contract status (effective MW)"]
[null,null,"Online"]
[null,null,"Development"]
[null,null,"Review"]
[null,null,"PlannedExisting"]
[null,null,"PlannedNew"]
[null,null,"BTM PV"]
[null,null,"LSE total supply (effective MW)"]
[null,null,"Net capacity position (+ve = excess, -ve = shortfall) (effective MW)"]

{"sheet":"CSPReportSheet","index":9,"n_rows":38,"n_cols":22,"rows_kept":38,"cut":false,"hidden":false,"merged":[[2,10,2,13],[2,14,2,17],[2,18,2,21],[1,10,1,21]]}
[]
[null,null,null,null,null,null,null,null,null,null,"NOTE: the below data is provided for troubleshooting purposes only."]
[null,null,null,null,null,null,null,null,null,null,"Bought/Owned",null,null,null,"Sold",null,null,null,"Net\n(GWh, MW, or MWh Energy Capacity)"]
[null,"Resource",2024,2026,2030,2035,"Units","Type",null,null,2024,2026,2030,2035,2024,2026,2030,2035,2024,2026,2030,2035]
[null,"Large Hydro",{"$f":"S5","v":0},{"$f":"T5","v":0},0,0,"GWh","GHG-Free",null,null,{"$f":"SUM(SUMIFS(unique_contracts!BT:BT,unique_contracts!$AB:$AB,{\"Buy\",\"Owned\"},unique_contracts!$BS:$BS,\"=\"&$B5&\" (\"&$G5&\")\",unique_contracts!$AM:$AM,\"<=\"&C$4,unique_contracts!$AP:$AP,\">=\"&C$4), SUMIFS(unique_contracts!BT:BT,unique_contracts!$AB:$AB,\"=\"&\"\",unique_contracts!$BS:$BS,\"=\"&$B5&\" (\"&$G5&\")\",unique_contracts!$AM:$AM,\"<=\"&C$4,unique_contracts!$AP:$AP,\">=\"&C$4))","v":0},{"$f":"SUM(SUMIFS(unique_contracts!BU:BU,unique_contracts!$AB:$AB,{\"Buy\",\"Owned\"},unique_contracts!$BS:$BS,\"=\"&$B5&\" (\"&$G5&\")\",unique_contracts!$AM:$AM,\"<=\"&D$4,unique_contracts!$AP:$AP,\">=\"&D$4), SUMIFS(unique_contracts!BU:BU,unique_contracts!$AB:$AB,\"=\"&\"\",unique_contracts!$BS:$BS,\"=\"&$B5&\" (\"&$G5&\")\",unique_contracts!$AM:$AM,\"<=\"&D$4,unique_contracts!$AP:$AP,\">=\"&D$4))","v":0},{"$f":"SUM(SUMIFS(unique_contracts!BV:BV,unique_contracts!$AB:$AB,{\"Buy\",\"Owned\"},unique_contracts!$BS:$BS,\"=\"&$B5&\" (\"&$G5&\")\",unique_contracts!$AM:$AM,\"<=\"&E$4,unique_contracts!$AP:$AP,\">=\"&E$4), SUMIFS(unique_contracts!BV:BV,unique_contracts!$AB:$AB,\"=\"&\"\",unique_contracts!$BS:$BS,\"=\"&$B5&\" (\"&$G5&\")\",unique_contracts!$AM:$AM,\"<=\"&E$4,unique_contracts!$AP:$AP,\">=\"&E$4))","v":0},{"$f":"SUM(SUMIFS(unique_contracts!BW:BW,unique_contracts!$AB:$AB,{\"Buy\",\"Owned\"},unique_contracts!$BS:$BS,\"=\"&$B5&\" (\"&$G5&\")\",unique_contracts!$AM:$AM,\"<=\"&F$4,unique_contracts!$AP:$AP,\">=\"&F$4), SUMIFS(unique_contracts!BW:BW,unique_contracts!$AB:$AB,\"=\"&\"\",unique_contracts!$BS:$BS,\"=\"&$B5&\" (\"&$G5&\")\",unique_contracts!$AM:$AM,\"<=\"&F$4,unique_contracts!$AP:$AP,\">=\"&F$4))","v":0},{"$f":"SUMIFS(unique_contracts!BT:BT,unique_contracts!$AB:$AB,\"=Sell\",unique_contracts!$BS:$BS,\"=\"&$B5&\" (\"&$G5&\")\",unique_contracts!$AM:$AM,\"<=\"&C$4,unique_contracts!$AP:$AP,\">=\"&C$4)","v":0},{"$f":"SUMIFS(unique_contracts!BU:BU,unique_contracts!$AB:$AB,\"=Sell\",unique_contracts!$BS:$BS,\"=\"&$B5&\" (\"&$G5&\")\",unique_contracts!$AM:$AM,\"<=\"&D$4,unique_contracts!$AP:$AP,\">=\"&D$4)","v":0},{"$f":"SUMIFS(unique_contracts!BV:BV,unique_contracts!$AB:$AB,\"=Sell\",unique_contracts!$BS:$BS,\"=\"&$B5&\" (\"&$G5&\")\",unique_contracts!$AM:$AM,\"<=\"&E$4,unique_contracts!$AP:$AP,\">=\"&E$4)","v":0},{"$f":"SUMIFS(unique_contracts!BW:BW,unique_contracts!$AB:$AB,\"=Sell\",unique_contracts!$BS:$BS,\"=\"&$B5&\" (\"&$G5&\")\",unique_contracts!$AM:$AM,\"<=\"&F$4,unique_contracts!$AP:$AP,\">=\"&F$4)","v":0},{"$f":"K5-O5","v":0},{"$f":"L5-P5","v":0},0,0]
[null,"Imported Hydro",{"$f":"S6","v":500},{"$f":"T6","v":0},0,0,"GWh","GHG-Free",null,null,{"$f":"SUM(SUMIFS(unique_contracts!BT:BT,unique_contracts!$AB:$AB,{\"Buy\",\"Owned\"},unique_contracts!$BS:$BS,\"=\"&$B6&\" (\"&$G6&\")\",unique_contracts!$AM:$AM,\"<=\"&C$4,unique_contracts!$AP:$AP,\">=\"&C$4), SUMIFS(unique_contracts!BT:BT,unique_contracts!$AB:$AB,\"=\"&\"\",unique_contracts!$BS:$BS,\"=\"&$B6&\" (\"&$G6&\")\",unique_contracts!$AM:$AM,\"<=\"&C$4,unique_contracts!$AP:$AP,\">=\"&C$4))","v":500},{"$f":"SUM(SUMIFS(unique_contracts!BU:BU,unique_contracts!$AB:$AB,{\"Buy\",\"Owned\"},unique_contracts!$BS:$BS,\"=\"&$B6&\" (\"&$G6&\")\",unique_contracts!$AM:$AM,\"<=\"&D$4,unique_contracts!$AP:$AP,\">=\"&D$4), SUMIFS(unique_contracts!BU:BU,unique_contracts!$AB:$AB,\"=\"&\"\",unique_contracts!$BS:$BS,\"=\"&$B6&\" (\"&$G6&\")\",unique_contracts!$AM:$AM,\"<=\"&D$4,unique_contracts!$AP:$AP,\">=\"&D$4))","v":0},{"$f":"SUM(SUMIFS(unique_contracts!BV:BV,unique_contracts!$AB:$AB,{\"Buy\",\"Owned\"},unique_contracts!$BS:$BS,\"=\"&$B6&\" (\"&$G6&\")\",unique_contracts!$AM:$AM,\"<=\"&E$4,unique_contracts!$AP:$AP,\">=\"&E$4), SUMIFS(unique_contracts!BV:BV,unique_contracts!$AB:$AB,\"=\"&\"\",unique_contracts!$BS:$BS,\"=\"&$B6&\" (\"&$G6&\")\",unique_contracts!$AM:$AM,\"<=\"&E$4,unique_contracts!$AP:$AP,\">=\"&E$4))","v":0},{"$f":"SUM(SUMIFS(unique_contracts!BW:BW,unique_contracts!$AB:$AB,{\"Buy\",\"Owned\"},unique_contracts!$BS:$BS,\"=\"&$B6&\" (\"&$G6&\")\",unique_contracts!$AM:$AM,\"<=\"&F$4,unique_contracts!$AP:$AP,\">=\"&F$4), SUMIFS(unique_contracts!BW:BW,unique_contracts!$AB:$AB,\"=\"&\"\",unique_contracts!$BS:$BS,\"=\"&$B6&\" (\"&$G6&\")\",unique_contracts!$AM:$AM,\"<=\"&F$4,unique_contracts!$AP:$AP,\">=\"&F$4))","v":0},{"$f":"SUMIFS(unique_contracts!BT:BT,unique_contracts!$AB:$AB,\"=Sell\",unique_contracts!$BS:$BS,\"=\"&$B6&\" (\"&$G6&\")\",unique_contracts!$AM:$AM,\"<=\"&C$4,unique_contracts!$AP:$AP,\">=\"&C$4)","v":0},{"$f":"SUMIFS(unique_contracts!BU:BU,unique_contracts!$AB:$AB,\"=Sell\",unique_contracts!$BS:$BS,\"=\"&$B6&\" (\"&$G6&\")\",unique_contracts!$AM:$AM,\"<=\"&D$4,unique_contracts!$AP:$AP,\">=\"&D$4)","v":0},{"$f":"SUMIFS(unique_contracts!BV:BV,unique_contracts!$AB:$AB,\"=Sell\",unique_contracts!$BS:$BS,\"=\"&$B6&\" (\"&$G6&\")\",unique_contracts!$AM:$AM,\"<=\"&E$4,unique_contracts!$AP:$AP,\">=\"&E$4)","v":0},{"$f":"SUMIFS(unique_contracts!BW:BW,unique_contracts!$AB:$AB,\"=Sell\",unique_contracts!$BS:$BS,\"=\"&$B6&\" (\"&$G6&\")\",unique_contracts!$AM:$AM,\"<=\"&F$4,unique_contracts!$AP:$AP,\">=\"&F$4)","v":0},{"$f":"K6-O6","v":500},{"$f":"L6-P6","v":0},{"$f":"M6-Q6","v":0},{"$f":"N6-R6","v":0}]
[null,"Asset Controlling Supplier",{"$f":"S7","v":0},0,0,0,"GWh","GHG-Free (Partial)",null,null,{"$f":"SUM(SUMIFS(unique_contracts!BT:BT,unique_contracts!$AB:$AB,{\"Buy\",\"Owned\"},unique_contracts!$BS:$BS,\"=\"&$B7&\" (\"&$G7&\")\",unique_contracts!$AM:$AM,\"<=\"&C$4,unique_contracts!$AP:$AP,\">=\"&C$4), SUMIFS(unique_contracts!BT:BT,unique_contracts!$AB:$AB,\"=\"&\"\",unique_contracts!$BS:$BS,\"=\"&$B7&\" (\"&$G7&\")\",unique_contracts!$AM:$AM,\"<=\"&C$4,unique_contracts!$AP:$AP,\">=\"&C$4))","v":0},{"$f":"SUM(SUMIFS(unique_contracts!BU:BU,unique_contracts!$AB:$AB,{\"Buy\",\"Owned\"},unique_contracts!$BS:$BS,\"=\"&$B7&\" (\"&$G7&\")\",unique_contracts!$AM:$AM,\"<=\"&D$4,unique_contracts!$AP:$AP,\">=\"&D$4), SUMIFS(unique_contracts!BU:BU,unique_contracts!$AB:$AB,\"=\"&\"\",unique_contracts!$BS:$BS,\"=\"&$B7&\" (\"&$G7&\")\",unique_contracts!$AM:$AM,\"<=\"&D$4,unique_contracts!$AP:$AP,\">=\"&D$4))","v":0},{"$f":"SUM(SUMIFS(unique_contracts!BV:BV,unique_contracts!$AB:$AB,{\"Buy\",\"Owned\"},unique_contracts!$BS:$BS,\"=\"&$B7&\" (\"&$G7&\")\",unique_contracts!$AM:$AM,\"<=\"&E$4,unique_contracts!$AP:$AP,\">=\"&E$4), SUMIFS(unique_contracts!BV:BV,unique_contracts!$AB:$AB,\"=\"&\"\",unique_contracts!$BS:$BS,\"=\"&$B7&\" (\"&$G7&\")\",unique_contracts!$AM:$AM,\"<=\"&E$4,unique_contracts!$AP:$AP,\">=\"&E$4))","v":0},{"$f":"SUM(SUMIFS(unique_contracts!BW:BW,unique_contracts!$AB:$AB,{\"Buy\",\"Owned\"},unique_contracts!$BS:$BS,\"=\"&$B7&\" (\"&$G7&\")\",unique_contracts!$AM:$AM,\"<=\"&F$4,unique_contracts!$AP:$AP,\">=\"&F$4), SUMIFS(unique_contracts!BW:BW,unique_contracts!$AB:$AB,\"=\"&\"\",unique_contracts!$BS:$BS,\"=\"&$B7&\" (\"&$G7&\")\",unique_contracts!$AM:$AM,\"<=\"&F$4,unique_contracts!$AP:$AP,\">=\"&F$4))","v":0},{"$f":"SUMIFS(unique_contracts!BT:BT,unique_contracts!$AB:$AB,\"=Sell\",unique_contracts!$BS:$BS,\"=\"&$B7&\" (\"&$G7&\")\",unique_contracts!$AM:$AM,\"<=\"&C$4,unique_contracts!$AP:$AP,\">=\"&C$4)","v":0},{"$f":"SUMIFS(unique_contracts!BU:BU,unique_contracts!$AB:$AB,\"=Sell\",unique_contracts!$BS:$BS,\"=\"&$B7&\" (\"&$G7&\")\",unique_contracts!$AM:$AM,\"<=\"&D$4,unique_contracts!$AP:$AP,\">=\"&D$4)","v":0},{"$f":"SUMIFS(unique_contracts!BV:BV,unique_contracts!$AB:$AB,\"=Sell\",unique_contracts!$BS:$BS,\"=\"&$B7&\" (\"&$G7&\")\",unique_contracts!$AM:$AM,\"<=\"&E$4,unique_contracts!$AP:$AP,\">=\"&E$4)","v":0},{"$f":"SUMIFS(unique_contracts!BW:BW,unique_contracts!$AB:$AB,\"=Sell\",unique_contracts!$BS:$BS,\"=\"&$B7&\" (\"&$G7&\")\",unique_contracts!$AM:$AM,\"<=\"&F$4,unique_contracts!$AP:$AP,\">=\"&F$4)","v":0},{"$f":"K7-O7","v":0},{"$f":"L7-P7","v":0},{"$f":"M7-Q7","v":0},{"$f":"N7-R7","v":0}]
[null,"Nuclear",{"$f":"S8","v":0},{"$f":"T8","v":0},{"$f":"U8","v":0},{"$f":"V8","v":0},"GWh","GHG-Free",null,null,{"$f":"SUM(SUMIFS(unique_contracts!BT:BT,unique_contracts!$AB:$AB,{\"Buy\",\"Owned\"},unique_contracts!$BS:$BS,\"=\"&$B8&\" (\"&$G8&\")\",unique_contracts!$AM:$AM,\"<=\"&C$4,unique_contracts!$AP:$AP,\">=\"&C$4), SUMIFS(unique_contracts!BT:BT,unique_contracts!$AB:$AB,\"=\"&\"\",unique_contracts!$BS:$BS,\"=\"&$B8&\" (\"&$G8&\")\",unique_contracts!$AM:$AM,\"<=\"&C$4,unique_contracts!$AP:$AP,\">=\"&C$4))","v":0},{"$f":"SUM(SUMIFS(unique_contracts!BU:BU,unique_contracts!$AB:$AB,{\"Buy\",\"Owned\"},unique_contracts!$BS:$BS,\"=\"&$B8&\" (\"&$G8&\")\",unique_contracts!$AM:$AM,\"<=\"&D$4,unique_contracts!$AP:$AP,\">=\"&D$4), SUMIFS(unique_contracts!BU:BU,unique_contracts!$AB:$AB,\"=\"&\"\",unique_contracts!$BS:$BS,\"=\"&$B8&\" (\"&$G8&\")\",unique_contracts!$AM:$AM,\"<=\"&D$4,unique_contracts!$AP:$AP,\">=\"&D$4))","v":0},{"$f":"SUM(SUMIFS(unique_contracts!BV:BV,unique_contracts!$AB:$AB,{\"Buy\",\"Owned\"},unique_contracts!$BS:$BS,\"=\"&$B8&\" (\"&$G8&\")\",unique_contracts!$AM:$AM,\"<=\"&E$4,unique_contracts!$AP:$AP,\">=\"&E$4), SUMIFS(unique_contracts!BV:BV,unique_contracts!$AB:$AB,\"=\"&\"\",unique_contracts!$BS:$BS,\"=\"&$B8&\" (\"&$G8&\")\",unique_contracts!$AM:$AM,\"<=\"&E$4,unique_contracts!$AP:$AP,\">=\"&E$4))","v":0},{"$f":"SUM(SUMIFS(unique_contracts!BW:BW,unique_contracts!$AB:$AB,{\"Buy\",\"Owned\"},unique_contracts!$BS:$BS,\"=\"&$B8&\" (\"&$G8&\")\",unique_contracts!$AM:$AM,\"<=\"&F$4,unique_contracts!$AP:$AP,\">=\"&F$4), SUMIFS(unique_contracts!BW:BW,unique_contracts!$AB:$AB,\"=\"&\"\",unique_contracts!$BS:$BS,\"=\"&$B8&\" (\"&$G8&\")\",unique_contracts!$AM:$AM,\"<=\"&F$4,unique_contracts!$AP:$AP,\">=\"&F$4))","v":0},{"$f":"SUMIFS(unique_contracts!BT:BT,unique_contracts!$AB:$AB,\"=Sell\",unique_contracts!$BS:$BS,\"=\"&$B8&\" (\"&$G8&\")\",unique_contracts!$AM:$AM,\"<=\"&C$4,unique_contracts!$AP:$AP,\">=\"&C$4)","v":0},{"$f":"SUMIFS(unique_contracts!BU:BU,unique_contracts!$AB:$AB,\"=Sell\",unique_contracts!$BS:$BS,\"=\"&$B8&\" (\"&$G8&\")\",unique_contracts!$AM:$AM,\"<=\"&D$4,unique_contracts!$AP:$AP,\">=\"&D$4)","v":0},{"$f":"SUMIFS(unique_contracts!BV:BV,unique_contracts!$AB:$AB,\"=Sell\",unique_contracts!$BS:$BS,\"=\"&$B8&\" (\"&$G8&\")\",unique_contracts!$AM:$AM,\"<=\"&E$4,unique_contracts!$AP:$AP,\">=\"&E$4)","v":0},{"$f":"SUMIFS(unique_contracts!BW:BW,unique_contracts!$AB:$AB,\"=Sell\",unique_contracts!$BS:$BS,\"=\"&$B8&\" (\"&$G8&\")\",unique_contracts!$AM:$AM,\"<=\"&F$4,unique_contracts!$AP:$AP,\">=\"&F$4)","v":0},0,0,0,0]
[null,"Biogas",0,0,0,0,"GWh","RPS Eligible",null,null,{"$f":"SUM(SUMIFS(unique_contracts!BT:BT,unique_contracts!$AB:$AB,{\"Buy\",\"Owned\"},unique_contracts!$BS:$BS,\"=\"&$B9&\" (\"&$G9&\")\",unique_contracts!$AM:$AM,\"<=\"&C$4,unique_contracts!$AP:$AP,\">=\"&C$4), SUMIFS(unique_contracts!BT:BT,unique_contracts!$AB:$AB,\"=\"&\"\",unique_contracts!$BS:$BS,\"=\"&$B9&\" (\"&$G9&\")\",unique_contracts!$AM:$AM,\"<=\"&C$4,unique_contracts!$AP:$AP,\">=\"&C$4))","v":0},{"$f":"SUM(SUMIFS(unique_contracts!BU:BU,unique_contracts!$AB:$AB,{\"Buy\",\"Owned\"},unique_contracts!$BS:$BS,\"=\"&$B9&\" (\"&$G9&\")\",unique_contracts!$AM:$AM,\"<=\"&D$4,unique_contracts!$AP:$AP,\">=\"&D$4), SUMIFS(unique_contracts!BU:BU,unique_contracts!$AB:$AB,\"=\"&\"\",unique_contracts!$BS:$BS,\"=\"&$B9&\" (\"&$G9&\")\",unique_contracts!$AM:$AM,\"<=\"&D$4,unique_contracts!$AP:$AP,\">=\"&D$4))","v":0},{"$f":"SUM(SUMIFS(unique_contracts!BV:BV,unique_contracts!$AB:$AB,{\"Buy\",\"Owned\"},unique_contracts!$BS:$BS,\"=\"&$B9&\" (\"&$G9&\")\",unique_contracts!$AM:$AM,\"<=\"&E$4,unique_contracts!$AP:$AP,\">=\"&E$4), SUMIFS(unique_contracts!BV:BV,unique_contracts!$AB:$AB,\"=\"&\"\",unique_contracts!$BS:$BS,\"=\"&$B9&\" (\"&$G9&\")\",unique_contracts!$AM:$AM,\"<=\"&E$4,unique_contracts!$AP:$AP,\">=\"&E$4))","v":0},{"$f":"SUM(SUMIFS(unique_contracts!BW:BW,unique_contracts!$AB:$AB,{\"Buy\",\"Owned\"},unique_contracts!$BS:$BS,\"=\"&$B9&\" (\"&$G9&\")\",unique_contracts!$AM:$AM,\"<=\"&F$4,unique_contracts!$AP:$AP,\">=\"&F$4), SUMIFS(unique_contracts!BW:BW,unique_contracts!$AB:$AB,\"=\"&\"\",unique_contracts!$BS:$BS,\"=\"&$B9&\" (\"&$G9&\")\",unique_contracts!$AM:$AM,\"<=\"&F$4,unique_contracts!$AP:$AP,\">=\"&F$4))","v":0},{"$f":"SUMIFS(unique_contracts!BT:BT,unique_contracts!$AB:$AB,\"=Sell\",unique_contracts!$BS:$BS,\"=\"&$B9&\" (\"&$G9&\")\",unique_contracts!$AM:$AM,\"<=\"&C$4,unique_contracts!$AP:$AP,\">=\"&C$4)","v":0},{"$f":"SUMIFS(unique_contracts!BU:BU,unique_contracts!$AB:$AB,\"=Sell\",unique_contracts!$BS:$BS,\"=\"&$B9&\" (\"&$G9&\")\",unique_contracts!$AM:$AM,\"<=\"&D$4,unique_contracts!$AP:$AP,\">=\"&D$4)","v":0},{"$f":"SUMIFS(unique_contracts!BV:BV,unique_contracts!$AB:$AB,\"=Sell\",unique_contracts!$BS:$BS,\"=\"&$B9&\" (\"&$G9&\")\",unique_contracts!$AM:$AM,\"<=\"&E$4,unique_contracts!$AP:$AP,\">=\"&E$4)","v":0},{"$f":"SUMIFS(unique_contracts!BW:BW,unique_contracts!$AB:$AB,\"=Sell\",unique_contracts!$BS:$BS,\"=\"&$B9&\" (\"&$G9&\")\",unique_contracts!$AM:$AM,\"<=\"&F$4,unique_contracts!$AP:$AP,\">=\"&F$4)","v":0},0,0,0,0]
[null,"Biomass",0,0,0,0,"GWh","RPS Eligible",null,null,{"$f":"SUM(SUMIFS(unique_contracts!BT:BT,unique_contracts!$AB:$AB,{\"Buy\",\"Owned\"},unique_contracts!$BS:$BS,\"=\"&$B10&\" (\"&$G10&\")\",unique_contracts!$AM:$AM,\"<=\"&C$4,unique_contracts!$AP:$AP,\">=\"&C$4), SUMIFS(unique_contracts!BT:BT,unique_contracts!$AB:$AB,\"=\"&\"\",unique_contracts!$BS:$BS,\"=\"&$B10&\" (\"&$G10&\")\",unique_contracts!$AM:$AM,\"<=\"&C$4,unique_contracts!$AP:$AP,\">=\"&C$4))","v":0},{"$f":"SUM(SUMIFS(unique_contracts!BU:BU,unique_contracts!$AB:$AB,{\"Buy\",\"Owned\"},unique_contracts!$BS:$BS,\"=\"&$B10&\" (\"&$G10&\")\",unique_contracts!$AM:$AM,\"<=\"&D$4,unique_contracts!$AP:$AP,\">=\"&D$4), SUMIFS(unique_contracts!BU:BU,unique_contracts!$AB:$AB,\"=\"&\"\",unique_contracts!$BS:$BS,\"=\"&$B10&\" (\"&$G10&\")\",unique_contracts!$AM:$AM,\"<=\"&D$4,unique_contracts!$AP:$AP,\">=\"&D$4))","v":0},{"$f":"SUM(SUMIFS(unique_contracts!BV:BV,unique_contracts!$AB:$AB,{\"Buy\",\"Owned\"},unique_contracts!$BS:$BS,\"=\"&$B10&\" (\"&$G10&\")\",unique_contracts!$AM:$AM,\"<=\"&E$4,unique_contracts!$AP:$AP,\">=\"&E$4), SUMIFS(unique_contracts!BV:BV,unique_contracts!$AB:$AB,\"=\"&\"\",unique_contracts!$BS:$BS,\"=\"&$B10&\" (\"&$G10&\")\",unique_contracts!$AM:$AM,\"<=\"&E$4,unique_contracts!$AP:$AP,\">=\"&E$4))","v":0},{"$f":"SUM(SUMIFS(unique_contracts!BW:BW,unique_contracts!$AB:$AB,{\"Buy\",\"Owned\"},unique_contracts!$BS:$BS,\"=\"&$B10&\" (\"&$G10&\")\",unique_contracts!$AM:$AM,\"<=\"&F$4,unique_contracts!$AP:$AP,\">=\"&F$4), SUMIFS(unique_contracts!BW:BW,unique_contracts!$AB:$AB,\"=\"&\"\",unique_contracts!$BS:$BS,\"=\"&$B10&\" (\"&$G10&\")\",unique_contracts!$AM:$AM,\"<=\"&F$4,unique_contracts!$AP:$AP,\">=\"&F$4))","v":0},{"$f":"SUMIFS(unique_contracts!BT:BT,unique_contracts!$AB:$AB,\"=Sell\",unique_contracts!$BS:$BS,\"=\"&$B10&\" (\"&$G10&\")\",unique_contracts!$AM:$AM,\"<=\"&C$4,unique_contracts!$AP:$AP,\">=\"&C$4)","v":0},{"$f":"SUMIFS(unique_contracts!BU:BU,unique_contracts!$AB:$AB,\"=Sell\",unique_contracts!$BS:$BS,\"=\"&$B10&\" (\"&$G10&\")\",unique_contracts!$AM:$AM,\"<=\"&D$4,unique_contracts!$AP:$AP,\">=\"&D$4)","v":0},{"$f":"SUMIFS(unique_contracts!BV:BV,unique_contracts!$AB:$AB,\"=Sell\",unique_contracts!$BS:$BS,\"=\"&$B10&\" (\"&$G10&\")\",unique_contracts!$AM:$AM,\"<=\"&E$4,unique_contracts!$AP:$AP,\">=\"&E$4)","v":0},{"$f":"SUMIFS(unique_contracts!BW:BW,unique_contracts!$AB:$AB,\"=Sell\",unique_contracts!$BS:$BS,\"=\"&$B10&\" (\"&$G10&\")\",unique_contracts!$AM:$AM,\"<=\"&F$4,unique_contracts!$AP:$AP,\">=\"&F$4)","v":0},0,0,0,0]
[null,"Geothermal",0,0,0,0,"GWh","RPS Eligible",null,null,{"$f":"SUM(SUMIFS(unique_contracts!BT:BT,unique_contracts!$AB:$AB,{\"Buy\",\"Owned\"},unique_contracts!$BS:$BS,\"=\"&$B11&\" (\"&$G11&\")\",unique_contracts!$AM:$AM,\"<=\"&C$4,unique_contracts!$AP:$AP,\">=\"&C$4), SUMIFS(unique_contracts!BT:BT,unique_contracts!$AB:$AB,\"=\"&\"\",unique_contracts!$BS:$BS,\"=\"&$B11&\" (\"&$G11&\")\",unique_contracts!$AM:$AM,\"<=\"&C$4,unique_contracts!$AP:$AP,\">=\"&C$4))","v":0},{"$f":"SUM(SUMIFS(unique_contracts!BU:BU,unique_contracts!$AB:$AB,{\"Buy\",\"Owned\"},unique_contracts!$BS:$BS,\"=\"&$B11&\" (\"&$G11&\")\",unique_contracts!$AM:$AM,\"<=\"&D$4,unique_contracts!$AP:$AP,\">=\"&D$4), SUMIFS(unique_contracts!BU:BU,unique_contracts!$AB:$AB,\"=\"&\"\",unique_contracts!$BS:$BS,\"=\"&$B11&\" (\"&$G11&\")\",unique_contracts!$AM:$AM,\"<=\"&D$4,unique_contracts!$AP:$AP,\">=\"&D$4))","v":0},{"$f":"SUM(SUMIFS(unique_contracts!BV:BV,unique_contracts!$AB:$AB,{\"Buy\",\"Owned\"},unique_contracts!$BS:$BS,\"=\"&$B11&\" (\"&$G11&\")\",unique_contracts!$AM:$AM,\"<=\"&E$4,unique_contracts!$AP:$AP,\">=\"&E$4), SUMIFS(unique_contracts!BV:BV,unique_contracts!$AB:$AB,\"=\"&\"\",unique_contracts!$BS:$BS,\"=\"&$B11&\" (\"&$G11&\")\",unique_contracts!$AM:$AM,\"<=\"&E$4,unique_contracts!$AP:$AP,\">=\"&E$4))","v":0},{"$f":"SUM(SUMIFS(unique_contracts!BW:BW,unique_contracts!$AB:$AB,{\"Buy\",\"Owned\"},unique_contracts!$BS:$BS,\"=\"&$B11&\" (\"&$G11&\")\",unique_contracts!$AM:$AM,\"<=\"&F$4,unique_contracts!$AP:$AP,\">=\"&F$4), SUMIFS(unique_contracts!BW:BW,unique_contracts!$AB:$AB,\"=\"&\"\",unique_contracts!$BS:$BS,\"=\"&$B11&\" (\"&$G11&\")\",unique_contracts!$AM:$AM,\"<=\"&F$4,unique_contracts!$AP:$AP,\">=\"&F$4))","v":0},{"$f":"SUMIFS(unique_contracts!BT:BT,unique_contracts!$AB:$AB,\"=Sell\",unique_contracts!$BS:$BS,\"=\"&$B11&\" (\"&$G11&\")\",unique_contracts!$AM:$AM,\"<=\"&C$4,unique_contracts!$AP:$AP,\">=\"&C$4)","v":0},{"$f":"SUMIFS(unique_contracts!BU:BU,unique_contracts!$AB:$AB,\"=Sell\",unique_contracts!$BS:$BS,\"=\"&$B11&\" (\"&$G11&\")\",unique_contracts!$AM:$AM,\"<=\"&D$4,unique_contracts!$AP:$AP,\">=\"&D$4)","v":0},{"$f":"SUMIFS(unique_contracts!BV:BV,unique_contracts!$AB:$AB,\"=Sell\",unique_contracts!$BS:$BS,\"=\"&$B11&\" (\"&$G11&\")\",unique_contracts!$AM:$AM,\"<=\"&E$4,unique_contracts!$AP:$AP,\">=\"&E$4)","v":0},{"$f":"SUMIFS(unique_contracts!BW:BW,unique_contracts!$AB:$AB,\"=Sell\",unique_contracts!$BS:$BS,\"=\"&$B11&\" (\"&$G11&\")\",unique_contracts!$AM:$AM,\"<=\"&F$4,unique_contracts!$AP:$AP,\">=\"&F$4)","v":0},0,0,0,0]
[null,"Small Hydro",0,0,0,0,"GWh","RPS Eligible",null,null,{"$f":"SUM(SUMIFS(unique_contracts!BT:BT,unique_contracts!$AB:$AB,{\"Buy\",\"Owned\"},unique_contracts!$BS:$BS,\"=\"&$B12&\" (\"&$G12&\")\",unique_contracts!$AM:$AM,\"<=\"&C$4,unique_contracts!$AP:$AP,\">=\"&C$4), SUMIFS(unique_contracts!BT:BT,unique_contracts!$AB:$AB,\"=\"&\"\",unique_contracts!$BS:$BS,\"=\"&$B12&\" (\"&$G12&\")\",unique_contracts!$AM:$AM,\"<=\"&C$4,unique_contracts!$AP:$AP,\">=\"&C$4))","v":0},{"$f":"SUM(SUMIFS(unique_contracts!BU:BU,unique_contracts!$AB:$AB,{\"Buy\",\"Owned\"},unique_contracts!$BS:$BS,\"=\"&$B12&\" (\"&$G12&\")\",unique_contracts!$AM:$AM,\"<=\"&D$4,unique_contracts!$AP:$AP,\">=\"&D$4), SUMIFS(unique_contracts!BU:BU,unique_contracts!$AB:$AB,\"=\"&\"\",unique_contracts!$BS:$BS,\"=\"&$B12&\" (\"&$G12&\")\",unique_contracts!$AM:$AM,\"<=\"&D$4,unique_contracts!$AP:$AP,\">=\"&D$4))","v":0},{"$f":"SUM(SUMIFS(unique_contracts!BV:BV,unique_contracts!$AB:$AB,{\"Buy\",\"Owned\"},unique_contracts!$BS:$BS,\"=\"&$B12&\" (\"&$G12&\")\",unique_contracts!$AM:$AM,\"<=\"&E$4,unique_contracts!$AP:$AP,\">=\"&E$4), SUMIFS(unique_contracts!BV:BV,unique_contracts!$AB:$AB,\"=\"&\"\",unique_contracts!$BS:$BS,\"=\"&$B12&\" (\"&$G12&\")\",unique_contracts!$AM:$AM,\"<=\"&E$4,unique_contracts!$AP:$AP,\">=\"&E$4))","v":0},{"$f":"SUM(SUMIFS(unique_contracts!BW:BW,unique_contracts!$AB:$AB,{\"Buy\",\"Owned\"},unique_contracts!$BS:$BS,\"=\"&$B12&\" (\"&$G12&\")\",unique_contracts!$AM:$AM,\"<=\"&F$4,unique_contracts!$AP:$AP,\">=\"&F$4), SUMIFS(unique_contracts!BW:BW,unique_contracts!$AB:$AB,\"=\"&\"\",unique_contracts!$BS:$BS,\"=\"&$B12&\" (\"&$G12&\")\",unique_contracts!$AM:$AM,\"<=\"&F$4,unique_contracts!$AP:$AP,\">=\"&F$4))","v":0},{"$f":"SUMIFS(unique_contracts!BT:BT,unique_contracts!$AB:$AB,\"=Sell\",unique_contracts!$BS:$BS,\"=\"&$B12&\" (\"&$G12&\")\",unique_contracts!$AM:$AM,\"<=\"&C$4,unique_contracts!$AP:$AP,\">=\"&C$4)","v":0},{"$f":"SUMIFS(unique_contracts!BU:BU,unique_contracts!$AB:$AB,\"=Sell\",unique_contracts!$BS:$BS,\"=\"&$B12&\" (\"&$G12&\")\",unique_contracts!$AM:$AM,\"<=\"&D$4,unique_contracts!$AP:$AP,\">=\"&D$4)","v":0},{"$f":"SUMIFS(unique_contracts!BV:BV,unique_contracts!$AB:$AB,\"=Sell\",unique_contracts!$BS:$BS,\"=\"&$B12&\" (\"&$G12&\")\",unique_contracts!$AM:$AM,\"<=\"&E$4,unique_contracts!$AP:$AP,\">=\"&E$4)","v":0},{"$f":"SUMIFS(unique_contracts!BW:BW,unique_contracts!$AB:$AB,\"=Sell\",unique_contracts!$BS:$BS,\"=\"&$B12&\" (\"&$G12&\")\",unique_contracts!$AM:$AM,\"<=\"&F$4,unique_contracts!$AP:$AP,\">=\"&F$4)","v":0},0,0,0,0]
[null,"Wind Resources"]
[null,"Wind Existing California",{"$f":"S14","v":0},{"$f":"T14","v":0},{"$f":"U14","v":0},{"$f":"V14","v":0},"GWh","RPS Eligible",null,null,{"$f":"SUM(SUMIFS(unique_contracts!BT:BT,unique_contracts!$AB:$AB,{\"Buy\",\"Owned\"},unique_contracts!$BS:$BS,\"=\"&$B14&\" (\"&$G14&\")\",unique_contracts!$AM:$AM,\"<=\"&C$4,unique_contracts!$AP:$AP,\">=\"&C$4), SUMIFS(unique_contracts!BT:BT,unique_contracts!$AB:$AB,\"=\"&\"\",unique_contracts!$BS:$BS,\"=\"&$B14&\" (\"&$G14&\")\",unique_contracts!$AM:$AM,\"<=\"&C$4,unique_contracts!$AP:$AP,\">=\"&C$4))","v":0},{"$f":"SUM(SUMIFS(unique_contracts!BU:BU,unique_contracts!$AB:$AB,{\"Buy\",\"Owned\"},unique_contracts!$BS:$BS,\"=\"&$B14&\" (\"&$G14&\")\",unique_contracts!$AM:$AM,\"<=\"&D$4,unique_contracts!$AP:$AP,\">=\"&D$4), SUMIFS(unique_contracts!BU:BU,unique_contracts!$AB:$AB,\"=\"&\"\",unique_contracts!$BS:$BS,\"=\"&$B14&\" (\"&$G14&\")\",unique_contracts!$AM:$AM,\"<=\"&D$4,unique_contracts!$AP:$AP,\">=\"&D$4))","v":0},{"$f":"SUM(SUMIFS(unique_contracts!BV:BV,unique_contracts!$AB:$AB,{\"Buy\",\"Owned\"},unique_contracts!$BS:$BS,\"=\"&$B14&\" (\"&$G14&\")\",unique_contracts!$AM:$AM,\"<=\"&E$4,unique_contracts!$AP:$AP,\">=\"&E$4), SUMIFS(unique_contracts!BV:BV,unique_contracts!$AB:$AB,\"=\"&\"\",unique_contracts!$BS:$BS,\"=\"&$B14&\" (\"&$G14&\")\",unique_contracts!$AM:$AM,\"<=\"&E$4,unique_contracts!$AP:$AP,\">=\"&E$4))","v":0},{"$f":"SUM(SUMIFS(unique_contracts!BW:BW,unique_contracts!$AB:$AB,{\"Buy\",\"Owned\"},unique_contracts!$BS:$BS,\"=\"&$B14&\" (\"&$G14&\")\",unique_contracts!$AM:$AM,\"<=\"&F$4,unique_contracts!$AP:$AP,\">=\"&F$4), SUMIFS(unique_contracts!BW:BW,unique_contracts!$AB:$AB,\"=\"&\"\",unique_contracts!$BS:$BS,\"=\"&$B14&\" (\"&$G14&\")\",unique_contracts!$AM:$AM,\"<=\"&F$4,unique_contracts!$AP:$AP,\">=\"&F$4))","v":0},{"$f":"SUMIFS(unique_contracts!BT:BT,unique_contracts!$AB:$AB,\"=Sell\",unique_contracts!$BS:$BS,\"=\"&$B14&\" (\"&$G14&\")\",unique_contracts!$AM:$AM,\"<=\"&C$4,unique_contracts!$AP:$AP,\">=\"&C$4)","v":0},{"$f":"SUMIFS(unique_contracts!BU:BU,unique_contracts!$AB:$AB,\"=Sell\",unique_contracts!$BS:$BS,\"=\"&$B14&\" (\"&$G14&\")\",unique_contracts!$AM:$AM,\"<=\"&D$4,unique_contracts!$AP:$AP,\">=\"&D$4)","v":0},{"$f":"SUMIFS(unique_contracts!BV:BV,unique_contracts!$AB:$AB,\"=Sell\",unique_contracts!$BS:$BS,\"=\"&$B14&\" (\"&$G14&\")\",unique_contracts!$AM:$AM,\"<=\"&E$4,unique_contracts!$AP:$AP,\">=\"&E$4)","v":0},{"$f":"SUMIFS(unique_contracts!BW:BW,unique_contracts!$AB:$AB,\"=Sell\",unique_contracts!$BS:$BS,\"=\"&$B14&\" (\"&$G14&\")\",unique_contracts!$AM:$AM,\"<=\"&F$4,unique_contracts!$AP:$AP,\">=\"&F$4)","v":0},0,0,0,0]
[null,"Wind New PG&E",0,0,0,0,"GWh","RPS Eligible",null,null,{"$f":"SUM(SUMIFS(unique_contracts!BT:BT,unique_contracts!$AB:$AB,{\"Buy\",\"Owned\"},unique_contracts!$BS:$BS,\"=\"&$B15&\" (\"&$G15&\")\",unique_contracts!$AM:$AM,\"<=\"&C$4,unique_contracts!$AP:$AP,\">=\"&C$4), SUMIFS(unique_contracts!BT:BT,unique_contracts!$AB:$AB,\"=\"&\"\",unique_contracts!$BS:$BS,\"=\"&$B15&\" (\"&$G15&\")\",unique_contracts!$AM:$AM,\"<=\"&C$4,unique_contracts!$AP:$AP,\">=\"&C$4))","v":0},{"$f":"SUM(SUMIFS(unique_contracts!BU:BU,unique_contracts!$AB:$AB,{\"Buy\",\"Owned\"},unique_contracts!$BS:$BS,\"=\"&$B15&\" (\"&$G15&\")\",unique_contracts!$AM:$AM,\"<=\"&D$4,unique_contracts!$AP:$AP,\">=\"&D$4), SUMIFS(unique_contracts!BU:BU,unique_contracts!$AB:$AB,\"=\"&\"\",unique_contracts!$BS:$BS,\"=\"&$B15&\" (\"&$G15&\")\",unique_contracts!$AM:$AM,\"<=\"&D$4,unique_contracts!$AP:$AP,\">=\"&D$4))","v":0},{"$f":"SUM(SUMIFS(unique_contracts!BV:BV,unique_contracts!$AB:$AB,{\"Buy\",\"Owned\"},unique_contracts!$BS:$BS,\"=\"&$B15&\" (\"&$G15&\")\",unique_contracts!$AM:$AM,\"<=\"&E$4,unique_contracts!$AP:$AP,\">=\"&E$4), SUMIFS(unique_contracts!BV:BV,unique_contracts!$AB:$AB,\"=\"&\"\",unique_contracts!$BS:$BS,\"=\"&$B15&\" (\"&$G15&\")\",unique_contracts!$AM:$AM,\"<=\"&E$4,unique_contracts!$AP:$AP,\">=\"&E$4))","v":0},{"$f":"SUM(SUMIFS(unique_contracts!BW:BW,unique_contracts!$AB:$AB,{\"Buy\",\"Owned\"},unique_contracts!$BS:$BS,\"=\"&$B15&\" (\"&$G15&\")\",unique_contracts!$AM:$AM,\"<=\"&F$4,unique_contracts!$AP:$AP,\">=\"&F$4), SUMIFS(unique_contracts!BW:BW,unique_contracts!$AB:$AB,\"=\"&\"\",unique_contracts!$BS:$BS,\"=\"&$B15&\" (\"&$G15&\")\",unique_contracts!$AM:$AM,\"<=\"&F$4,unique_contracts!$AP:$AP,\">=\"&F$4))","v":0},{"$f":"SUMIFS(unique_contracts!BT:BT,unique_contracts!$AB:$AB,\"=Sell\",unique_contracts!$BS:$BS,\"=\"&$B15&\" (\"&$G15&\")\",unique_contracts!$AM:$AM,\"<=\"&C$4,unique_contracts!$AP:$AP,\">=\"&C$4)","v":0},{"$f":"SUMIFS(unique_contracts!BU:BU,unique_contracts!$AB:$AB,\"=Sell\",unique_contracts!$BS:$BS,\"=\"&$B15&\" (\"&$G15&\")\",unique_contracts!$AM:$AM,\"<=\"&D$4,unique_contracts!$AP:$AP,\">=\"&D$4)","v":0},{"$f":"SUMIFS(unique_contracts!BV:BV,unique_contracts!$AB:$AB,\"=Sell\",unique_contracts!$BS:$BS,\"=\"&$B15&\" (\"&$G15&\")\",unique_contracts!$AM:$AM,\"<=\"&E$4,unique_contracts!$AP:$AP,\">=\"&E$4)","v":0},{"$f":"SUMIFS(unique_contracts!BW:BW,unique_contracts!$AB:$AB,\"=Sell\",unique_contracts!$BS:$BS,\"=\"&$B15&\" (\"&$G15&\")\",unique_contracts!$AM:$AM,\"<=\"&F$4,unique_contracts!$AP:$AP,\">=\"&F$4)","v":0},0,0,0,0]
[null,"Wind New SCE SDG&E",0,0,0,0,"GWh","RPS Eligible",null,null,{"$f":"SUM(SUMIFS(unique_contracts!BT:BT,unique_contracts!$AB:$AB,{\"Buy\",\"Owned\"},unique_contracts!$BS:$BS,\"=\"&$B16&\" (\"&$G16&\")\",unique_contracts!$AM:$AM,\"<=\"&C$4,unique_contracts!$AP:$AP,\">=\"&C$4), SUMIFS(unique_contracts!BT:BT,unique_contracts!$AB:$AB,\"=\"&\"\",unique_contracts!$BS:$BS,\"=\"&$B16&\" (\"&$G16&\")\",unique_contracts!$AM:$AM,\"<=\"&C$4,unique_contracts!$AP:$AP,\">=\"&C$4))","v":0},{"$f":"SUM(SUMIFS(unique_contracts!BU:BU,unique_contracts!$AB:$AB,{\"Buy\",\"Owned\"},unique_contracts!$BS:$BS,\"=\"&$B16&\" (\"&$G16&\")\",unique_contracts!$AM:$AM,\"<=\"&D$4,unique_contracts!$AP:$AP,\">=\"&D$4), SUMIFS(unique_contracts!BU:BU,unique_contracts!$AB:$AB,\"=\"&\"\",unique_contracts!$BS:$BS,\"=\"&$B16&\" (\"&$G16&\")\",unique_contracts!$AM:$AM,\"<=\"&D$4,unique_contracts!$AP:$AP,\">=\"&D$4))","v":0},{"$f":"SUM(SUMIFS(unique_contracts!BV:BV,unique_contracts!$AB:$AB,{\"Buy\",\"Owned\"},unique_contracts!$BS:$BS,\"=\"&$B16&\" (\"&$G16&\")\",unique_contracts!$AM:$AM,\"<=\"&E$4,unique_contracts!$AP:$AP,\">=\"&E$4), SUMIFS(unique_contracts!BV:BV,unique_contracts!$AB:$AB,\"=\"&\"\",unique_contracts!$BS:$BS,\"=\"&$B16&\" (\"&$G16&\")\",unique_contracts!$AM:$AM,\"<=\"&E$4,unique_contracts!$AP:$AP,\">=\"&E$4))","v":0},{"$f":"SUM(SUMIFS(unique_contracts!BW:BW,unique_contracts!$AB:$AB,{\"Buy\",\"Owned\"},unique_contracts!$BS:$BS,\"=\"&$B16&\" (\"&$G16&\")\",unique_contracts!$AM:$AM,\"<=\"&F$4,unique_contracts!$AP:$AP,\">=\"&F$4), SUMIFS(unique_contracts!BW:BW,unique_contracts!$AB:$AB,\"=\"&\"\",unique_contracts!$BS:$BS,\"=\"&$B16&\" (\"&$G16&\")\",unique_contracts!$AM:$AM,\"<=\"&F$4,unique_contracts!$AP:$AP,\">=\"&F$4))","v":0},{"$f":"SUMIFS(unique_contracts!BT:BT,unique_contracts!$AB:$AB,\"=Sell\",unique_contracts!$BS:$BS,\"=\"&$B16&\" (\"&$G16&\")\",unique_contracts!$AM:$AM,\"<=\"&C$4,unique_contracts!$AP:$AP,\">=\"&C$4)","v":0},{"$f":"SUMIFS(unique_contracts!BU:BU,unique_contracts!$AB:$AB,\"=Sell\",unique_contracts!$BS:$BS,\"=\"&$B16&\" (\"&$G16&\")\",unique_contracts!$AM:$AM,\"<=\"&D$4,unique_contracts!$AP:$AP,\">=\"&D$4)","v":0},{"$f":"SUMIFS(unique_contracts!BV:BV,unique_contracts!$AB:$AB,\"=Sell\",unique_contracts!$BS:$BS,\"=\"&$B16&\" (\"&$G16&\")\",unique_contracts!$AM:$AM,\"<=\"&E$4,unique_contracts!$AP:$AP,\">=\"&E$4)","v":0},{"$f":"SUMIFS(unique_contracts!BW:BW,unique_contracts!$AB:$AB,\"=Sell\",unique_contracts!$BS:$BS,\"=\"&$B16&\" (\"&$G16&\")\",unique_contracts!$AM:$AM,\"<=\"&F$4,unique_contracts!$AP:$AP,\">=\"&F$4)","v":0},0,0,0,0]
[null,"Wind Pacific Northwest",0,0,0,0,"GWh","RPS Eligible",null,null,{"$f":"SUM(SUMIFS(unique_contracts!BT:BT,unique_contracts!$AB:$AB,{\"Buy\",\"Owned\"},unique_contracts!$BS:$BS,\"=\"&$B17&\" (\"&$G17&\")\",unique_contracts!$AM:$AM,\"<=\"&C$4,unique_contracts!$AP:$AP,\">=\"&C$4), SUMIFS(unique_contracts!BT:BT,unique_contracts!$AB:$AB,\"=\"&\"\",unique_contracts!$BS:$BS,\"=\"&$B17&\" (\"&$G17&\")\",unique_contracts!$AM:$AM,\"<=\"&C$4,unique_contracts!$AP:$AP,\">=\"&C$4))","v":0},{"$f":"SUM(SUMIFS(unique_contracts!BU:BU,unique_contracts!$AB:$AB,{\"Buy\",\"Owned\"},unique_contracts!$BS:$BS,\"=\"&$B17&\" (\"&$G17&\")\",unique_contracts!$AM:$AM,\"<=\"&D$4,unique_contracts!$AP:$AP,\">=\"&D$4), SUMIFS(unique_contracts!BU:BU,unique_contracts!$AB:$AB,\"=\"&\"\",unique_contracts!$BS:$BS,\"=\"&$B17&\" (\"&$G17&\")\",unique_contracts!$AM:$AM,\"<=\"&D$4,unique_contracts!$AP:$AP,\">=\"&D$4))","v":0},{"$f":"SUM(SUMIFS(unique_contracts!BV:BV,unique_contracts!$AB:$AB,{\"Buy\",\"Owned\"},unique_contracts!$BS:$BS,\"=\"&$B17&\" (\"&$G17&\")\",unique_contracts!$AM:$AM,\"<=\"&E$4,unique_contracts!$AP:$AP,\">=\"&E$4), SUMIFS(unique_contracts!BV:BV,unique_contracts!$AB:$AB,\"=\"&\"\",unique_contracts!$BS:$BS,\"=\"&$B17&\" (\"&$G17&\")\",unique_contracts!$AM:$AM,\"<=\"&E$4,unique_contracts!$AP:$AP,\">=\"&E$4))","v":0},{"$f":"SUM(SUMIFS(unique_contracts!BW:BW,unique_contracts!$AB:$AB,{\"Buy\",\"Owned\"},unique_contracts!$BS:$BS,\"=\"&$B17&\" (\"&$G17&\")\",unique_contracts!$AM:$AM,\"<=\"&F$4,unique_contracts!$AP:$AP,\">=\"&F$4), SUMIFS(unique_contracts!BW:BW,unique_contracts!$AB:$AB,\"=\"&\"\",unique_contracts!$BS:$BS,\"=\"&$B17&\" (\"&$G17&\")\",unique_contracts!$AM:$AM,\"<=\"&F$4,unique_contracts!$AP:$AP,\">=\"&F$4))","v":0},{"$f":"SUMIFS(unique_contracts!BT:BT,unique_contracts!$AB:$AB,\"=Sell\",unique_contracts!$BS:$BS,\"=\"&$B17&\" (\"&$G17&\")\",unique_contracts!$AM:$AM,\"<=\"&C$4,unique_contracts!$AP:$AP,\">=\"&C$4)","v":0},{"$f":"SUMIFS(unique_contracts!BU:BU,unique_contracts!$AB:$AB,\"=Sell\",unique_contracts!$BS:$BS,\"=\"&$B17&\" (\"&$G17&\")\",unique_contracts!$AM:$AM,\"<=\"&D$4,unique_contracts!$AP:$AP,\">=\"&D$4)","v":0},{"$f":"SUMIFS(unique_contracts!BV:BV,unique_contracts!$AB:$AB,\"=Sell\",unique_contracts!$BS:$BS,\"=\"&$B17&\" (\"&$G17&\")\",unique_contracts!$AM:$AM,\"<=\"&E$4,unique_contracts!$AP:$AP,\">=\"&E$4)","v":0},{"$f":"SUMIFS(unique_contracts!BW:BW,unique_contracts!$AB:$AB,\"=Sell\",unique_contracts!$BS:$BS,\"=\"&$B17&\" (\"&$G17&\")\",unique_contracts!$AM:$AM,\"<=\"&F$4,unique_contracts!$AP:$AP,\">=\"&F$4)","v":0},0,0,0,0]
[null,"Wind Wyoming",0,0,0,0,"GWh","RPS Eligible",null,null,{"$f":"SUM(SUMIFS(unique_contracts!BT:BT,unique_contracts!$AB:$AB,{\"Buy\",\"Owned\"},unique_contracts!$BS:$BS,\"=\"&$B18&\" (\"&$G18&\")\",unique_contracts!$AM:$AM,\"<=\"&C$4,unique_contracts!$AP:$AP,\">=\"&C$4), SUMIFS(unique_contracts!BT:BT,unique_contracts!$AB:$AB,\"=\"&\"\",unique_contracts!$BS:$BS,\"=\"&$B18&\" (\"&$G18&\")\",unique_contracts!$AM:$AM,\"<=\"&C$4,unique_contracts!$AP:$AP,\">=\"&C$4))","v":0},{"$f":"SUM(SUMIFS(unique_contracts!BU:BU,unique_contracts!$AB:$AB,{\"Buy\",\"Owned\"},unique_contracts!$BS:$BS,\"=\"&$B18&\" (\"&$G18&\")\",unique_contracts!$AM:$AM,\"<=\"&D$4,unique_contracts!$AP:$AP,\">=\"&D$4), SUMIFS(unique_contracts!BU:BU,unique_contracts!$AB:$AB,\"=\"&\"\",unique_contracts!$BS:$BS,\"=\"&$B18&\" (\"&$G18&\")\",unique_contracts!$AM:$AM,\"<=\"&D$4,unique_contracts!$AP:$AP,\">=\"&D$4))","v":0},{"$f":"SUM(SUMIFS(unique_contracts!BV:BV,unique_contracts!$AB:$AB,{\"Buy\",\"Owned\"},unique_contracts!$BS:$BS,\"=\"&$B18&\" (\"&$G18&\")\",unique_contracts!$AM:$AM,\"<=\"&E$4,unique_contracts!$AP:$AP,\">=\"&E$4), SUMIFS(unique_contracts!BV:BV,unique_contracts!$AB:$AB,\"=\"&\"\",unique_contracts!$BS:$BS,\"=\"&$B18&\" (\"&$G18&\")\",unique_contracts!$AM:$AM,\"<=\"&E$4,unique_contracts!$AP:$AP,\">=\"&E$4))","v":0},{"$f":"SUM(SUMIFS(unique_contracts!BW:BW,unique_contracts!$AB:$AB,{\"Buy\",\"Owned\"},unique_contracts!$BS:$BS,\"=\"&$B18&\" (\"&$G18&\")\",unique_contracts!$AM:$AM,\"<=\"&F$4,unique_contracts!$AP:$AP,\">=\"&F$4), SUMIFS(unique_contracts!BW:BW,unique_contracts!$AB:$AB,\"=\"&\"\",unique_contracts!$BS:$BS,\"=\"&$B18&\" (\"&$G18&\")\",unique_contracts!$AM:$AM,\"<=\"&F$4,unique_contracts!$AP:$AP,\">=\"&F$4))","v":0},{"$f":"SUMIFS(unique_contracts!BT:BT,unique_contracts!$AB:$AB,\"=Sell\",unique_contracts!$BS:$BS,\"=\"&$B18&\" (\"&$G18&\")\",unique_contracts!$AM:$AM,\"<=\"&C$4,unique_contracts!$AP:$AP,\">=\"&C$4)","v":0},{"$f":"SUMIFS(unique_contracts!BU:BU,unique_contracts!$AB:$AB,\"=Sell\",unique_contracts!$BS:$BS,\"=\"&$B18&\" (\"&$G18&\")\",unique_contracts!$AM:$AM,\"<=\"&D$4,unique_contracts!$AP:$AP,\">=\"&D$4)","v":0},{"$f":"SUMIFS(unique_contracts!BV:BV,unique_contracts!$AB:$AB,\"=Sell\",unique_contracts!$BS:$BS,\"=\"&$B18&\" (\"&$G18&\")\",unique_contracts!$AM:$AM,\"<=\"&E$4,unique_contracts!$AP:$AP,\">=\"&E$4)","v":0},{"$f":"SUMIFS(unique_contracts!BW:BW,unique_contracts!$AB:$AB,\"=Sell\",unique_contracts!$BS:$BS,\"=\"&$B18&\" (\"&$G18&\")\",unique_contracts!$AM:$AM,\"<=\"&F$4,unique_contracts!$AP:$AP,\">=\"&F$4)","v":0},0,0,0,0]
[null,"Wind New Mexico",0,0,0,0,"GWh","RPS Eligible",null,null,{"$f":"SUM(SUMIFS(unique_contracts!BT:BT,unique_contracts!$AB:$AB,{\"Buy\",\"Owned\"},unique_contracts!$BS:$BS,\"=\"&$B19&\" (\"&$G19&\")\",unique_contracts!$AM:$AM,\"<=\"&C$4,unique_contracts!$AP:$AP,\">=\"&C$4), SUMIFS(unique_contracts!BT:BT,unique_contracts!$AB:$AB,\"=\"&\"\",unique_contracts!$BS:$BS,\"=\"&$B19&\" (\"&$G19&\")\",unique_contracts!$AM:$AM,\"<=\"&C$4,unique_contracts!$AP:$AP,\">=\"&C$4))","v":0},{"$f":"SUM(SUMIFS(unique_contracts!BU:BU,unique_contracts!$AB:$AB,{\"Buy\",\"Owned\"},unique_contracts!$BS:$BS,\"=\"&$B19&\" (\"&$G19&\")\",unique_contracts!$AM:$AM,\"<=\"&D$4,unique_contracts!$AP:$AP,\">=\"&D$4), SUMIFS(unique_contracts!BU:BU,unique_contracts!$AB:$AB,\"=\"&\"\",unique_contracts!$BS:$BS,\"=\"&$B19&\" (\"&$G19&\")\",unique_contracts!$AM:$AM,\"<=\"&D$4,unique_contracts!$AP:$AP,\">=\"&D$4))","v":0},{"$f":"SUM(SUMIFS(unique_contracts!BV:BV,unique_contracts!$AB:$AB,{\"Buy\",\"Owned\"},unique_contracts!$BS:$BS,\"=\"&$B19&\" (\"&$G19&\")\",unique_contracts!$AM:$AM,\"<=\"&E$4,unique_contracts!$AP:$AP,\">=\"&E$4), SUMIFS(unique_contracts!BV:BV,unique_contracts!$AB:$AB,\"=\"&\"\",unique_contracts!$BS:$BS,\"=\"&$B19&\" (\"&$G19&\")\",unique_contracts!$AM:$AM,\"<=\"&E$4,unique_contracts!$AP:$AP,\">=\"&E$4))","v":0},{"$f":"SUM(SUMIFS(unique_contracts!BW:BW,unique_contracts!$AB:$AB,{\"Buy\",\"Owned\"},unique_contracts!$BS:$BS,\"=\"&$B19&\" (\"&$G19&\")\",unique_contracts!$AM:$AM,\"<=\"&F$4,unique_contracts!$AP:$AP,\">=\"&F$4), SUMIFS(unique_contracts!BW:BW,unique_contracts!$AB:$AB,\"=\"&\"\",unique_contracts!$BS:$BS,\"=\"&$B19&\" (\"&$G19&\")\",unique_contracts!$AM:$AM,\"<=\"&F$4,unique_contracts!$AP:$AP,\">=\"&F$4))","v":0},{"$f":"SUMIFS(unique_contracts!BT:BT,unique_contracts!$AB:$AB,\"=Sell\",unique_contracts!$BS:$BS,\"=\"&$B19&\" (\"&$G19&\")\",unique_contracts!$AM:$AM,\"<=\"&C$4,unique_contracts!$AP:$AP,\">=\"&C$4)","v":0},{"$f":"SUMIFS(unique_contracts!BU:BU,unique_contracts!$AB:$AB,\"=Sell\",unique_contracts!$BS:$BS,\"=\"&$B19&\" (\"&$G19&\")\",unique_contracts!$AM:$AM,\"<=\"&D$4,unique_contracts!$AP:$AP,\">=\"&D$4)","v":0},{"$f":"SUMIFS(unique_contracts!BV:BV,unique_contracts!$AB:$AB,\"=Sell\",unique_contracts!$BS:$BS,\"=\"&$B19&\" (\"&$G19&\")\",unique_contracts!$AM:$AM,\"<=\"&E$4,unique_contracts!$AP:$AP,\">=\"&E$4)","v":0},{"$f":"SUMIFS(unique_contracts!BW:BW,unique_contracts!$AB:$AB,\"=Sell\",unique_contracts!$BS:$BS,\"=\"&$B19&\" (\"&$G19&\")\",unique_contracts!$AM:$AM,\"<=\"&F$4,unique_contracts!$AP:$AP,\">=\"&F$4)","v":0},0,0,0,0]
[null,"Wind Offshore Morro Bay",0,0,0,0,"GWh","RPS Eligible",null,null,{"$f":"SUM(SUMIFS(unique_contracts!BT:BT,unique_contracts!$AB:$AB,{\"Buy\",\"Owned\"},unique_contracts!$BS:$BS,\"=\"&$B20&\" (\"&$G20&\")\",unique_contracts!$AM:$AM,\"<=\"&C$4,unique_contracts!$AP:$AP,\">=\"&C$4), SUMIFS(unique_contracts!BT:BT,unique_contracts!$AB:$AB,\"=\"&\"\",unique_contracts!$BS:$BS,\"=\"&$B20&\" (\"&$G20&\")\",unique_contracts!$AM:$AM,\"<=\"&C$4,unique_contracts!$AP:$AP,\">=\"&C$4))","v":0},{"$f":"SUM(SUMIFS(unique_contracts!BU:BU,unique_contracts!$AB:$AB,{\"Buy\",\"Owned\"},unique_contracts!$BS:$BS,\"=\"&$B20&\" (\"&$G20&\")\",unique_contracts!$AM:$AM,\"<=\"&D$4,unique_contracts!$AP:$AP,\">=\"&D$4), SUMIFS(unique_contracts!BU:BU,unique_contracts!$AB:$AB,\"=\"&\"\",unique_contracts!$BS:$BS,\"=\"&$B20&\" (\"&$G20&\")\",unique_contracts!$AM:$AM,\"<=\"&D$4,unique_contracts!$AP:$AP,\">=\"&D$4))","v":0},{"$f":"SUM(SUMIFS(unique_contracts!BV:BV,unique_contracts!$AB:$AB,{\"Buy\",\"Owned\"},unique_contracts!$BS:$BS,\"=\"&$B20&\" (\"&$G20&\")\",unique_contracts!$AM:$AM,\"<=\"&E$4,unique_contracts!$AP:$AP,\">=\"&E$4), SUMIFS(unique_contracts!BV:BV,unique_contracts!$AB:$AB,\"=\"&\"\",unique_contracts!$BS:$BS,\"=\"&$B20&\" (\"&$G20&\")\",unique_contracts!$AM:$AM,\"<=\"&E$4,unique_contracts!$AP:$AP,\">=\"&E$4))","v":0},{"$f":"SUM(SUMIFS(unique_contracts!BW:BW,unique_contracts!$AB:$AB,{\"Buy\",\"Owned\"},unique_contracts!$BS:$BS,\"=\"&$B20&\" (\"&$G20&\")\",unique_contracts!$AM:$AM,\"<=\"&F$4,unique_contracts!$AP:$AP,\">=\"&F$4), SUMIFS(unique_contracts!BW:BW,unique_contracts!$AB:$AB,\"=\"&\"\",unique_contracts!$BS:$BS,\"=\"&$B20&\" (\"&$G20&\")\",unique_contracts!$AM:$AM,\"<=\"&F$4,unique_contracts!$AP:$AP,\">=\"&F$4))","v":0},{"$f":"SUMIFS(unique_contracts!BT:BT,unique_contracts!$AB:$AB,\"=Sell\",unique_contracts!$BS:$BS,\"=\"&$B20&\" (\"&$G20&\")\",unique_contracts!$AM:$AM,\"<=\"&C$4,unique_contracts!$AP:$AP,\">=\"&C$4)","v":0},{"$f":"SUMIFS(unique_contracts!BU:BU,unique_contracts!$AB:$AB,\"=Sell\",unique_contracts!$BS:$BS,\"=\"&$B20&\" (\"&$G20&\")\",unique_contracts!$AM:$AM,\"<=\"&D$4,unique_contracts!$AP:$AP,\">=\"&D$4)","v":0},{"$f":"SUMIFS(unique_contracts!BV:BV,unique_contracts!$AB:$AB,\"=Sell\",unique_contracts!$BS:$BS,\"=\"&$B20&\" (\"&$G20&\")\",unique_contracts!$AM:$AM,\"<=\"&E$4,unique_contracts!$AP:$AP,\">=\"&E$4)","v":0},{"$f":"SUMIFS(unique_contracts!BW:BW,unique_contracts!$AB:$AB,\"=Sell\",unique_contracts!$BS:$BS,\"=\"&$B20&\" (\"&$G20&\")\",unique_contracts!$AM:$AM,\"<=\"&F$4,unique_contracts!$AP:$AP,\">=\"&F$4)","v":0},0,0,0,0]
[null,"Wind Offshore Humboldt",0,0,0,0,"GWh","RPS Eligible",null,null,{"$f":"SUM(SUMIFS(unique_contracts!BT:BT,unique_contracts!$AB:$AB,{\"Buy\",\"Owned\"},unique_contracts!$BS:$BS,\"=\"&$B21&\" (\"&$G21&\")\",unique_contracts!$AM:$AM,\"<=\"&C$4,unique_contracts!$AP:$AP,\">=\"&C$4), SUMIFS(unique_contracts!BT:BT,unique_contracts!$AB:$AB,\"=\"&\"\",unique_contracts!$BS:$BS,\"=\"&$B21&\" (\"&$G21&\")\",unique_contracts!$AM:$AM,\"<=\"&C$4,unique_contracts!$AP:$AP,\">=\"&C$4))","v":0},{"$f":"SUM(SUMIFS(unique_contracts!BU:BU,unique_contracts!$AB:$AB,{\"Buy\",\"Owned\"},unique_contracts!$BS:$BS,\"=\"&$B21&\" (\"&$G21&\")\",unique_contracts!$AM:$AM,\"<=\"&D$4,unique_contracts!$AP:$AP,\">=\"&D$4), SUMIFS(unique_contracts!BU:BU,unique_contracts!$AB:$AB,\"=\"&\"\",unique_contracts!$BS:$BS,\"=\"&$B21&\" (\"&$G21&\")\",unique_contracts!$AM:$AM,\"<=\"&D$4,unique_contracts!$AP:$AP,\">=\"&D$4))","v":0},{"$f":"SUM(SUMIFS(unique_contracts!BV:BV,unique_contracts!$AB:$AB,{\"Buy\",\"Owned\"},unique_contracts!$BS:$BS,\"=\"&$B21&\" (\"&$G21&\")\",unique_contracts!$AM:$AM,\"<=\"&E$4,unique_contracts!$AP:$AP,\">=\"&E$4), SUMIFS(unique_contracts!BV:BV,unique_contracts!$AB:$AB,\"=\"&\"\",unique_contracts!$BS:$BS,\"=\"&$B21&\" (\"&$G21&\")\",unique_contracts!$AM:$AM,\"<=\"&E$4,unique_contracts!$AP:$AP,\">=\"&E$4))","v":0},{"$f":"SUM(SUMIFS(unique_contracts!BW:BW,unique_contracts!$AB:$AB,{\"Buy\",\"Owned\"},unique_contracts!$BS:$BS,\"=\"&$B21&\" (\"&$G21&\")\",unique_contracts!$AM:$AM,\"<=\"&F$4,unique_contracts!$AP:$AP,\">=\"&F$4), SUMIFS(unique_contracts!BW:BW,unique_contracts!$AB:$AB,\"=\"&\"\",unique_contracts!$BS:$BS,\"=\"&$B21&\" (\"&$G21&\")\",unique_contracts!$AM:$AM,\"<=\"&F$4,unique_contracts!$AP:$AP,\">=\"&F$4))","v":0},{"$f":"SUMIFS(unique_contracts!BT:BT,unique_contracts!$AB:$AB,\"=Sell\",unique_contracts!$BS:$BS,\"=\"&$B21&\" (\"&$G21&\")\",unique_contracts!$AM:$AM,\"<=\"&C$4,unique_contracts!$AP:$AP,\">=\"&C$4)","v":0},{"$f":"SUMIFS(unique_contracts!BU:BU,unique_contracts!$AB:$AB,\"=Sell\",unique_contracts!$BS:$BS,\"=\"&$B21&\" (\"&$G21&\")\",unique_contracts!$AM:$AM,\"<=\"&D$4,unique_contracts!$AP:$AP,\">=\"&D$4)","v":0},{"$f":"SUMIFS(unique_contracts!BV:BV,unique_contracts!$AB:$AB,\"=Sell\",unique_contracts!$BS:$BS,\"=\"&$B21&\" (\"&$G21&\")\",unique_contracts!$AM:$AM,\"<=\"&E$4,unique_contracts!$AP:$AP,\">=\"&E$4)","v":0},{"$f":"SUMIFS(unique_contracts!BW:BW,unique_contracts!$AB:$AB,\"=Sell\",unique_contracts!$BS:$BS,\"=\"&$B21&\" (\"&$G21&\")\",unique_contracts!$AM:$AM,\"<=\"&F$4,unique_contracts!$AP:$AP,\">=\"&F$4)","v":0},0,0,0,0]
[null,"Solar Resources"]
[null,"Solar Existing California",7.6340000000000003,7.6340000000000003,0,0,"GWh","RPS Eligible",null,null,{"$f":"SUM(SUMIFS(unique_contracts!BT:BT,unique_contracts!$AB:$AB,{\"Buy\",\"Owned\"},unique_contracts!$BS:$BS,\"=\"&$B23&\" (\"&$G23&\")\",unique_contracts!$AM:$AM,\"<=\"&C$4,unique_contracts!$AP:$AP,\">=\"&C$4), SUMIFS(unique_contracts!BT:BT,unique_contracts!$AB:$AB,\"=\"&\"\",unique_contracts!$BS:$BS,\"=\"&$B23&\" (\"&$G23&\")\",unique_contracts!$AM:$AM,\"<=\"&C$4,unique_contracts!$AP:$AP,\">=\"&C$4))","v":7.6340000000000003},{"$f":"SUM(SUMIFS(unique_contracts!BU:BU,unique_contracts!$AB:$AB,{\"Buy\",\"Owned\"},unique_contracts!$BS:$BS,\"=\"&$B23&\" (\"&$G23&\")\",unique_contracts!$AM:$AM,\"<=\"&D$4,unique_contracts!$AP:$AP,\">=\"&D$4), SUMIFS(unique_contracts!BU:BU,unique_contracts!$AB:$AB,\"=\"&\"\",unique_contracts!$BS:$BS,\"=\"&$B23&\" (\"&$G23&\")\",unique_contracts!$AM:$AM,\"<=\"&D$4,unique_contracts!$AP:$AP,\">=\"&D$4))","v":7.6340000000000003},{"$f":"SUM(SUMIFS(unique_contracts!BV:BV,unique_contracts!$AB:$AB,{\"Buy\",\"Owned\"},unique_contracts!$BS:$BS,\"=\"&$B23&\" (\"&$G23&\")\",unique_contracts!$AM:$AM,\"<=\"&E$4,unique_contracts!$AP:$AP,\">=\"&E$4), SUMIFS(unique_contracts!BV:BV,unique_contracts!$AB:$AB,\"=\"&\"\",unique_contracts!$BS:$BS,\"=\"&$B23&\" (\"&$G23&\")\",unique_contracts!$AM:$AM,\"<=\"&E$4,unique_contracts!$AP:$AP,\">=\"&E$4))","v":0},{"$f":"SUM(SUMIFS(unique_contracts!BW:BW,unique_contracts!$AB:$AB,{\"Buy\",\"Owned\"},unique_contracts!$BS:$BS,\"=\"&$B23&\" (\"&$G23&\")\",unique_contracts!$AM:$AM,\"<=\"&F$4,unique_contracts!$AP:$AP,\">=\"&F$4), SUMIFS(unique_contracts!BW:BW,unique_contracts!$AB:$AB,\"=\"&\"\",unique_contracts!$BS:$BS,\"=\"&$B23&\" (\"&$G23&\")\",unique_contracts!$AM:$AM,\"<=\"&F$4,unique_contracts!$AP:$AP,\">=\"&F$4))","v":0},{"$f":"SUMIFS(unique_contracts!BT:BT,unique_contracts!$AB:$AB,\"=Sell\",unique_contracts!$BS:$BS,\"=\"&$B23&\" (\"&$G23&\")\",unique_contracts!$AM:$AM,\"<=\"&C$4,unique_contracts!$AP:$AP,\">=\"&C$4)","v":0},{"$f":"SUMIFS(unique_contracts!BU:BU,unique_contracts!$AB:$AB,\"=Sell\",unique_contracts!$BS:$BS,\"=\"&$B23&\" (\"&$G23&\")\",unique_contracts!$AM:$AM,\"<=\"&D$4,unique_contracts!$AP:$AP,\">=\"&D$4)","v":0},{"$f":"SUMIFS(unique_contracts!BV:BV,unique_contracts!$AB:$AB,\"=Sell\",unique_contracts!$BS:$BS,\"=\"&$B23&\" (\"&$G23&\")\",unique_contracts!$AM:$AM,\"<=\"&E$4,unique_contracts!$AP:$AP,\">=\"&E$4)","v":0},{"$f":"SUMIFS(unique_contracts!BW:BW,unique_contracts!$AB:$AB,\"=Sell\",unique_contracts!$BS:$BS,\"=\"&$B23&\" (\"&$G23&\")\",unique_contracts!$AM:$AM,\"<=\"&F$4,unique_contracts!$AP:$AP,\">=\"&F$4)","v":0},7.6340000000000003,7.6340000000000003,0,0]
[null,"Solar New PG&E",8.2270000000000003,8.2270000000000003,8.2270000000000003,8.2270000000000003,"GWh","RPS Eligible",null,null,{"$f":"SUM(SUMIFS(unique_contracts!BT:BT,unique_contracts!$AB:$AB,{\"Buy\",\"Owned\"},unique_contracts!$BS:$BS,\"=\"&$B24&\" (\"&$G24&\")\",unique_contracts!$AM:$AM,\"<=\"&C$4,unique_contracts!$AP:$AP,\">=\"&C$4), SUMIFS(unique_contracts!BT:BT,unique_contracts!$AB:$AB,\"=\"&\"\",unique_contracts!$BS:$BS,\"=\"&$B24&\" (\"&$G24&\")\",unique_contracts!$AM:$AM,\"<=\"&C$4,unique_contracts!$AP:$AP,\">=\"&C$4))","v":8.2270000000000003},{"$f":"SUM(SUMIFS(unique_contracts!BU:BU,unique_contracts!$AB:$AB,{\"Buy\",\"Owned\"},unique_contracts!$BS:$BS,\"=\"&$B24&\" (\"&$G24&\")\",unique_contracts!$AM:$AM,\"<=\"&D$4,unique_contracts!$AP:$AP,\">=\"&D$4), SUMIFS(unique_contracts!BU:BU,unique_contracts!$AB:$AB,\"=\"&\"\",unique_contracts!$BS:$BS,\"=\"&$B24&\" (\"&$G24&\")\",unique_contracts!$AM:$AM,\"<=\"&D$4,unique_contracts!$AP:$AP,\">=\"&D$4))","v":8.2270000000000003},{"$f":"SUM(SUMIFS(unique_contracts!BV:BV,unique_contracts!$AB:$AB,{\"Buy\",\"Owned\"},unique_contracts!$BS:$BS,\"=\"&$B24&\" (\"&$G24&\")\",unique_contracts!$AM:$AM,\"<=\"&E$4,unique_contracts!$AP:$AP,\">=\"&E$4), SUMIFS(unique_contracts!BV:BV,unique_contracts!$AB:$AB,\"=\"&\"\",unique_contracts!$BS:$BS,\"=\"&$B24&\" (\"&$G24&\")\",unique_contracts!$AM:$AM,\"<=\"&E$4,unique_contracts!$AP:$AP,\">=\"&E$4))","v":8.2270000000000003},{"$f":"SUM(SUMIFS(unique_contracts!BW:BW,unique_contracts!$AB:$AB,{\"Buy\",\"Owned\"},unique_contracts!$BS:$BS,\"=\"&$B24&\" (\"&$G24&\")\",unique_contracts!$AM:$AM,\"<=\"&F$4,unique_contracts!$AP:$AP,\">=\"&F$4), SUMIFS(unique_contracts!BW:BW,unique_contracts!$AB:$AB,\"=\"&\"\",unique_contracts!$BS:$BS,\"=\"&$B24&\" (\"&$G24&\")\",unique_contracts!$AM:$AM,\"<=\"&F$4,unique_contracts!$AP:$AP,\">=\"&F$4))","v":8.2270000000000003},{"$f":"SUMIFS(unique_contracts!BT:BT,unique_contracts!$AB:$AB,\"=Sell\",unique_contracts!$BS:$BS,\"=\"&$B24&\" (\"&$G24&\")\",unique_contracts!$AM:$AM,\"<=\"&C$4,unique_contracts!$AP:$AP,\">=\"&C$4)","v":0},{"$f":"SUMIFS(unique_contracts!BU:BU,unique_contracts!$AB:$AB,\"=Sell\",unique_contracts!$BS:$BS,\"=\"&$B24&\" (\"&$G24&\")\",unique_contracts!$AM:$AM,\"<=\"&D$4,unique_contracts!$AP:$AP,\">=\"&D$4)","v":0},{"$f":"SUMIFS(unique_contracts!BV:BV,unique_contracts!$AB:$AB,\"=Sell\",unique_contracts!$BS:$BS,\"=\"&$B24&\" (\"&$G24&\")\",unique_contracts!$AM:$AM,\"<=\"&E$4,unique_contracts!$AP:$AP,\">=\"&E$4)","v":0},{"$f":"SUMIFS(unique_contracts!BW:BW,unique_contracts!$AB:$AB,\"=Sell\",unique_contracts!$BS:$BS,\"=\"&$B24&\" (\"&$G24&\")\",unique_contracts!$AM:$AM,\"<=\"&F$4,unique_contracts!$AP:$AP,\">=\"&F$4)","v":0},8.2270000000000003,8.2270000000000003,8.2270000000000003,8.2270000000000003]
[null,"Solar New SCE SDG&E",0,0,0,0,"GWh","RPS Eligible",null,null,{"$f":"SUM(SUMIFS(unique_contracts!BT:BT,unique_contracts!$AB:$AB,{\"Buy\",\"Owned\"},unique_contracts!$BS:$BS,\"=\"&$B25&\" (\"&$G25&\")\",unique_contracts!$AM:$AM,\"<=\"&C$4,unique_contracts!$AP:$AP,\">=\"&C$4), SUMIFS(unique_contracts!BT:BT,unique_contracts!$AB:$AB,\"=\"&\"\",unique_contracts!$BS:$BS,\"=\"&$B25&\" (\"&$G25&\")\",unique_contracts!$AM:$AM,\"<=\"&C$4,unique_contracts!$AP:$AP,\">=\"&C$4))","v":0},{"$f":"SUM(SUMIFS(unique_contracts!BU:BU,unique_contracts!$AB:$AB,{\"Buy\",\"Owned\"},unique_contracts!$BS:$BS,\"=\"&$B25&\" (\"&$G25&\")\",unique_contracts!$AM:$AM,\"<=\"&D$4,unique_contracts!$AP:$AP,\">=\"&D$4), SUMIFS(unique_contracts!BU:BU,unique_contracts!$AB:$AB,\"=\"&\"\",unique_contracts!$BS:$BS,\"=\"&$B25&\" (\"&$G25&\")\",unique_contracts!$AM:$AM,\"<=\"&D$4,unique_contracts!$AP:$AP,\">=\"&D$4))","v":0},{"$f":"SUM(SUMIFS(unique_contracts!BV:BV,unique_contracts!$AB:$AB,{\"Buy\",\"Owned\"},unique_contracts!$BS:$BS,\"=\"&$B25&\" (\"&$G25&\")\",unique_contracts!$AM:$AM,\"<=\"&E$4,unique_contracts!$AP:$AP,\">=\"&E$4), SUMIFS(unique_contracts!BV:BV,unique_contracts!$AB:$AB,\"=\"&\"\",unique_contracts!$BS:$BS,\"=\"&$B25&\" (\"&$G25&\")\",unique_contracts!$AM:$AM,\"<=\"&E$4,unique_contracts!$AP:$AP,\">=\"&E$4))","v":0},{"$f":"SUM(SUMIFS(unique_contracts!BW:BW,unique_contracts!$AB:$AB,{\"Buy\",\"Owned\"},unique_contracts!$BS:$BS,\"=\"&$B25&\" (\"&$G25&\")\",unique_contracts!$AM:$AM,\"<=\"&F$4,unique_contracts!$AP:$AP,\">=\"&F$4), SUMIFS(unique_contracts!BW:BW,unique_contracts!$AB:$AB,\"=\"&\"\",unique_contracts!$BS:$BS,\"=\"&$B25&\" (\"&$G25&\")\",unique_contracts!$AM:$AM,\"<=\"&F$4,unique_contracts!$AP:$AP,\">=\"&F$4))","v":0},{"$f":"SUMIFS(unique_contracts!BT:BT,unique_contracts!$AB:$AB,\"=Sell\",unique_contracts!$BS:$BS,\"=\"&$B25&\" (\"&$G25&\")\",unique_contracts!$AM:$AM,\"<=\"&C$4,unique_contracts!$AP:$AP,\">=\"&C$4)","v":0},{"$f":"SUMIFS(unique_contracts!BU:BU,unique_contracts!$AB:$AB,\"=Sell\",unique_contracts!$BS:$BS,\"=\"&$B25&\" (\"&$G25&\")\",unique_contracts!$AM:$AM,\"<=\"&D$4,unique_contracts!$AP:$AP,\">=\"&D$4)","v":0},{"$f":"SUMIFS(unique_contracts!BV:BV,unique_contracts!$AB:$AB,\"=Sell\",unique_contracts!$BS:$BS,\"=\"&$B25&\" (\"&$G25&\")\",unique_contracts!$AM:$AM,\"<=\"&E$4,unique_contracts!$AP:$AP,\">=\"&E$4)","v":0},{"$f":"SUMIFS(unique_contracts!BW:BW,unique_contracts!$AB:$AB,\"=Sell\",unique_contracts!$BS:$BS,\"=\"&$B25&\" (\"&$G25&\")\",unique_contracts!$AM:$AM,\"<=\"&F$4,unique_contracts!$AP:$AP,\">=\"&F$4)","v":0},0,0,0,0]
[null,"Solar Distributed",0,0,0,0,"GWh","RPS Eligible",null,null,{"$f":"SUM(SUMIFS(unique_contracts!BT:BT,unique_contracts!$AB:$AB,{\"Buy\",\"Owned\"},unique_contracts!$BS:$BS,\"=\"&$B26&\" (\"&$G26&\")\",unique_contracts!$AM:$AM,\"<=\"&C$4,unique_contracts!$AP:$AP,\">=\"&C$4), SUMIFS(unique_contracts!BT:BT,unique_contracts!$AB:$AB,\"=\"&\"\",unique_contracts!$BS:$BS,\"=\"&$B26&\" (\"&$G26&\")\",unique_contracts!$AM:$AM,\"<=\"&C$4,unique_contracts!$AP:$AP,\">=\"&C$4))","v":0},{"$f":"SUM(SUMIFS(unique_contracts!BU:BU,unique_contracts!$AB:$AB,{\"Buy\",\"Owned\"},unique_contracts!$BS:$BS,\"=\"&$B26&\" (\"&$G26&\")\",unique_contracts!$AM:$AM,\"<=\"&D$4,unique_contracts!$AP:$AP,\">=\"&D$4), SUMIFS(unique_contracts!BU:BU,unique_contracts!$AB:$AB,\"=\"&\"\",unique_contracts!$BS:$BS,\"=\"&$B26&\" (\"&$G26&\")\",unique_contracts!$AM:$AM,\"<=\"&D$4,unique_contracts!$AP:$AP,\">=\"&D$4))","v":0},{"$f":"SUM(SUMIFS(unique_contracts!BV:BV,unique_contracts!$AB:$AB,{\"Buy\",\"Owned\"},unique_contracts!$BS:$BS,\"=\"&$B26&\" (\"&$G26&\")\",unique_contracts!$AM:$AM,\"<=\"&E$4,unique_contracts!$AP:$AP,\">=\"&E$4), SUMIFS(unique_contracts!BV:BV,unique_contracts!$AB:$AB,\"=\"&\"\",unique_contracts!$BS:$BS,\"=\"&$B26&\" (\"&$G26&\")\",unique_contracts!$AM:$AM,\"<=\"&E$4,unique_contracts!$AP:$AP,\">=\"&E$4))","v":0},{"$f":"SUM(SUMIFS(unique_contracts!BW:BW,unique_contracts!$AB:$AB,{\"Buy\",\"Owned\"},unique_contracts!$BS:$BS,\"=\"&$B26&\" (\"&$G26&\")\",unique_contracts!$AM:$AM,\"<=\"&F$4,unique_contracts!$AP:$AP,\">=\"&F$4), SUMIFS(unique_contracts!BW:BW,unique_contracts!$AB:$AB,\"=\"&\"\",unique_contracts!$BS:$BS,\"=\"&$B26&\" (\"&$G26&\")\",unique_contracts!$AM:$AM,\"<=\"&F$4,unique_contracts!$AP:$AP,\">=\"&F$4))","v":0},{"$f":"SUMIFS(unique_contracts!BT:BT,unique_contracts!$AB:$AB,\"=Sell\",unique_contracts!$BS:$BS,\"=\"&$B26&\" (\"&$G26&\")\",unique_contracts!$AM:$AM,\"<=\"&C$4,unique_contracts!$AP:$AP,\">=\"&C$4)","v":0},{"$f":"SUMIFS(unique_contracts!BU:BU,unique_contracts!$AB:$AB,\"=Sell\",unique_contracts!$BS:$BS,\"=\"&$B26&\" (\"&$G26&\")\",unique_contracts!$AM:$AM,\"<=\"&D$4,unique_contracts!$AP:$AP,\">=\"&D$4)","v":0},{"$f":"SUMIFS(unique_contracts!BV:BV,unique_contracts!$AB:$AB,\"=Sell\",unique_contracts!$BS:$BS,\"=\"&$B26&\" (\"&$G26&\")\",unique_contracts!$AM:$AM,\"<=\"&E$4,unique_contracts!$AP:$AP,\">=\"&E$4)","v":0},{"$f":"SUMIFS(unique_contracts!BW:BW,unique_contracts!$AB:$AB,\"=Sell\",unique_contracts!$BS:$BS,\"=\"&$B26&\" (\"&$G26&\")\",unique_contracts!$AM:$AM,\"<=\"&F$4,unique_contracts!$AP:$AP,\">=\"&F$4)","v":0},0,0,0,0]
[null,"Hybrid",null,null,null,null,null,null,null,null,{"$f":"SUM(SUMIFS(unique_contracts!BT:BT,unique_contracts!$AB:$AB,{\"Buy\",\"Owned\"},unique_contracts!$BS:$BS,\"=\"&$B27&\" (\"&$G27&\")\",unique_contracts!$AM:$AM,\"<=\"&C$4,unique_contracts!$AP:$AP,\">=\"&C$4), SUMIFS(unique_contracts!BT:BT,unique_contracts!$AB:$AB,\"=\"&\"\",unique_contracts!$BS:$BS,\"=\"&$B27&\" (\"&$G27&\")\",unique_contracts!$AM:$AM,\"<=\"&C$4,unique_contracts!$AP:$AP,\">=\"&C$4))","v":0},{"$f":"SUM(SUMIFS(unique_contracts!BU:BU,unique_contracts!$AB:$AB,{\"Buy\",\"Owned\"},unique_contracts!$BS:$BS,\"=\"&$B27&\" (\"&$G27&\")\",unique_contracts!$AM:$AM,\"<=\"&D$4,unique_contracts!$AP:$AP,\">=\"&D$4), SUMIFS(unique_contracts!BU:BU,unique_contracts!$AB:$AB,\"=\"&\"\",unique_contracts!$BS:$BS,\"=\"&$B27&\" (\"&$G27&\")\",unique_contracts!$AM:$AM,\"<=\"&D$4,unique_contracts!$AP:$AP,\">=\"&D$4))","v":0},{"$f":"SUM(SUMIFS(unique_contracts!BV:BV,unique_contracts!$AB:$AB,{\"Buy\",\"Owned\"},unique_contracts!$BS:$BS,\"=\"&$B27&\" (\"&$G27&\")\",unique_contracts!$AM:$AM,\"<=\"&E$4,unique_contracts!$AP:$AP,\">=\"&E$4), SUMIFS(unique_contracts!BV:BV,unique_contracts!$AB:$AB,\"=\"&\"\",unique_contracts!$BS:$BS,\"=\"&$B27&\" (\"&$G27&\")\",unique_contracts!$AM:$AM,\"<=\"&E$4,unique_contracts!$AP:$AP,\">=\"&E$4))","v":0},{"$f":"SUM(SUMIFS(unique_contracts!BW:BW,unique_contracts!$AB:$AB,{\"Buy\",\"Owned\"},unique_contracts!$BS:$BS,\"=\"&$B27&\" (\"&$G27&\")\",unique_contracts!$AM:$AM,\"<=\"&F$4,unique_contracts!$AP:$AP,\">=\"&F$4), SUMIFS(unique_contracts!BW:BW,unique_contracts!$AB:$AB,\"=\"&\"\",unique_contracts!$BS:$BS,\"=\"&$B27&\" (\"&$G27&\")\",unique_contracts!$AM:$AM,\"<=\"&F$4,unique_contracts!$AP:$AP,\">=\"&F$4))","v":0},{"$f":"SUMIFS(unique_contracts!BT:BT,unique_contracts!$AB:$AB,\"=Sell\",unique_contracts!$BS:$BS,\"=\"&$B27&\" (\"&$G27&\")\",unique_contracts!$AM:$AM,\"<=\"&C$4,unique_contracts!$AP:$AP,\">=\"&C$4)","v":0},{"$f":"SUMIFS(unique_contracts!BU:BU,unique_contracts!$AB:$AB,\"=Sell\",unique_contracts!$BS:$BS,\"=\"&$B27&\" (\"&$G27&\")\",unique_contracts!$AM:$AM,\"<=\"&D$4,unique_contracts!$AP:$AP,\">=\"&D$4)","v":0},{"$f":"SUMIFS(unique_contracts!BV:BV,unique_contracts!$AB:$AB,\"=Sell\",unique_contracts!$BS:$BS,\"=\"&$B27&\" (\"&$G27&\")\",unique_contracts!$AM:$AM,\"<=\"&E$4,unique_contracts!$AP:$AP,\">=\"&E$4)","v":0},{"$f":"SUMIFS(unique_contracts!BW:BW,unique_contracts!$AB:$AB,\"=Sell\",unique_contracts!$BS:$BS,\"=\"&$B27&\" (\"&$G27&\")\",unique_contracts!$AM:$AM,\"<=\"&F$4,unique_contracts!$AP:$AP,\">=\"&F$4)","v":0},0,0,0,0]
[null,"Hybrid_or_Paired_Solar_and_Battery",0,0,0,0,"GWh","RPS Eligible",null,null,{"$f":"SUM(SUMIFS(unique_contracts!BT:BT,unique_contracts!$AB:$AB,{\"Buy\",\"Owned\"},unique_contracts!$BS:$BS,\"=\"&$B28&\" (\"&$G28&\")\",unique_contracts!$AM:$AM,\"<=\"&C$4,unique_contracts!$AP:$AP,\">=\"&C$4), SUMIFS(unique_contracts!BT:BT,unique_contracts!$AB:$AB,\"=\"&\"\",unique_contracts!$BS:$BS,\"=\"&$B28&\" (\"&$G28&\")\",unique_contracts!$AM:$AM,\"<=\"&C$4,unique_contracts!$AP:$AP,\">=\"&C$4))","v":0},{"$f":"SUM(SUMIFS(unique_contracts!BU:BU,unique_contracts!$AB:$AB,{\"Buy\",\"Owned\"},unique_contracts!$BS:$BS,\"=\"&$B28&\" (\"&$G28&\")\",unique_contracts!$AM:$AM,\"<=\"&D$4,unique_contracts!$AP:$AP,\">=\"&D$4), SUMIFS(unique_contracts!BU:BU,unique_contracts!$AB:$AB,\"=\"&\"\",unique_contracts!$BS:$BS,\"=\"&$B28&\" (\"&$G28&\")\",unique_contracts!$AM:$AM,\"<=\"&D$4,unique_contracts!$AP:$AP,\">=\"&D$4))","v":0},{"$f":"SUM(SUMIFS(unique_contracts!BV:BV,unique_contracts!$AB:$AB,{\"Buy\",\"Owned\"},unique_contracts!$BS:$BS,\"=\"&$B28&\" (\"&$G28&\")\",unique_contracts!$AM:$AM,\"<=\"&E$4,unique_contracts!$AP:$AP,\">=\"&E$4), SUMIFS(unique_contracts!BV:BV,unique_contracts!$AB:$AB,\"=\"&\"\",unique_contracts!$BS:$BS,\"=\"&$B28&\" (\"&$G28&\")\",unique_contracts!$AM:$AM,\"<=\"&E$4,unique_contracts!$AP:$AP,\">=\"&E$4))","v":0},{"$f":"SUM(SUMIFS(unique_contracts!BW:BW,unique_contracts!$AB:$AB,{\"Buy\",\"Owned\"},unique_contracts!$BS:$BS,\"=\"&$B28&\" (\"&$G28&\")\",unique_contracts!$AM:$AM,\"<=\"&F$4,unique_contracts!$AP:$AP,\">=\"&F$4), SUMIFS(unique_contracts!BW:BW,unique_contracts!$AB:$AB,\"=\"&\"\",unique_contracts!$BS:$BS,\"=\"&$B28&\" (\"&$G28&\")\",unique_contracts!$AM:$AM,\"<=\"&F$4,unique_contracts!$AP:$AP,\">=\"&F$4))","v":0},{"$f":"SUMIFS(unique_contracts!BT:BT,unique_contracts!$AB:$AB,\"=Sell\",unique_contracts!$BS:$BS,\"=\"&$B28&\" (\"&$G28&\")\",unique_contracts!$AM:$AM,\"<=\"&C$4,unique_contracts!$AP:$AP,\">=\"&C$4)","v":0},{"$f":"SUMIFS(unique_contracts!BU:BU,unique_contracts!$AB:$AB,\"=Sell\",unique_contracts!$BS:$BS,\"=\"&$B28&\" (\"&$G28&\")\",unique_contracts!$AM:$AM,\"<=\"&D$4,unique_contracts!$AP:$AP,\">=\"&D$4)","v":0},{"$f":"SUMIFS(unique_contracts!BV:BV,unique_contracts!$AB:$AB,\"=Sell\",unique_contracts!$BS:$BS,\"=\"&$B28&\" (\"&$G28&\")\",unique_contracts!$AM:$AM,\"<=\"&E$4,unique_contracts!$AP:$AP,\">=\"&E$4)","v":0},{"$f":"SUMIFS(unique_contracts!BW:BW,unique_contracts!$AB:$AB,\"=Sell\",unique_contracts!$BS:$BS,\"=\"&$B28&\" (\"&$G28&\")\",unique_contracts!$AM:$AM,\"<=\"&F$4,unique_contracts!$AP:$AP,\">=\"&F$4)","v":0},0,0,0,0]
[null,"Storage & DR"]
[null,"Shed DR",0,0,0,0,"MW","GHG-Free",null,null,{"$f":"SUM(SUMIFS(unique_contracts!BT:BT,unique_contracts!$AB:$AB,{\"Buy\",\"Owned\"},unique_contracts!$BS:$BS,\"=\"&$B30&\" (\"&$G30&\")\",unique_contracts!$AM:$AM,\"<=\"&C$4,unique_contracts!$AP:$AP,\">=\"&C$4), SUMIFS(unique_contracts!BT:BT,unique_contracts!$AB:$AB,\"=\"&\"\",unique_contracts!$BS:$BS,\"=\"&$B30&\" (\"&$G30&\")\",unique_contracts!$AM:$AM,\"<=\"&C$4,unique_contracts!$AP:$AP,\">=\"&C$4))","v":0},{"$f":"SUM(SUMIFS(unique_contracts!BU:BU,unique_contracts!$AB:$AB,{\"Buy\",\"Owned\"},unique_contracts!$BS:$BS,\"=\"&$B30&\" (\"&$G30&\")\",unique_contracts!$AM:$AM,\"<=\"&D$4,unique_contracts!$AP:$AP,\">=\"&D$4), SUMIFS(unique_contracts!BU:BU,unique_contracts!$AB:$AB,\"=\"&\"\",unique_contracts!$BS:$BS,\"=\"&$B30&\" (\"&$G30&\")\",unique_contracts!$AM:$AM,\"<=\"&D$4,unique_contracts!$AP:$AP,\">=\"&D$4))","v":0},{"$f":"SUM(SUMIFS(unique_contracts!BV:BV,unique_contracts!$AB:$AB,{\"Buy\",\"Owned\"},unique_contracts!$BS:$BS,\"=\"&$B30&\" (\"&$G30&\")\",unique_contracts!$AM:$AM,\"<=\"&E$4,unique_contracts!$AP:$AP,\">=\"&E$4), SUMIFS(unique_contracts!BV:BV,unique_contracts!$AB:$AB,\"=\"&\"\",unique_contracts!$BS:$BS,\"=\"&$B30&\" (\"&$G30&\")\",unique_contracts!$AM:$AM,\"<=\"&E$4,unique_contracts!$AP:$AP,\">=\"&E$4))","v":0},{"$f":"SUM(SUMIFS(unique_contracts!BW:BW,unique_contracts!$AB:$AB,{\"Buy\",\"Owned\"},unique_contracts!$BS:$BS,\"=\"&$B30&\" (\"&$G30&\")\",unique_contracts!$AM:$AM,\"<=\"&F$4,unique_contracts!$AP:$AP,\">=\"&F$4), SUMIFS(unique_contracts!BW:BW,unique_contracts!$AB:$AB,\"=\"&\"\",unique_contracts!$BS:$BS,\"=\"&$B30&\" (\"&$G30&\")\",unique_contracts!$AM:$AM,\"<=\"&F$4,unique_contracts!$AP:$AP,\">=\"&F$4))","v":0},{"$f":"SUMIFS(unique_contracts!BT:BT,unique_contracts!$AB:$AB,\"=Sell\",unique_contracts!$BS:$BS,\"=\"&$B30&\" (\"&$G30&\")\",unique_contracts!$AM:$AM,\"<=\"&C$4,unique_contracts!$AP:$AP,\">=\"&C$4)","v":0},{"$f":"SUMIFS(unique_contracts!BU:BU,unique_contracts!$AB:$AB,\"=Sell\",unique_contracts!$BS:$BS,\"=\"&$B30&\" (\"&$G30&\")\",unique_contracts!$AM:$AM,\"<=\"&D$4,unique_contracts!$AP:$AP,\">=\"&D$4)","v":0},{"$f":"SUMIFS(unique_contracts!BV:BV,unique_contracts!$AB:$AB,\"=Sell\",unique_contracts!$BS:$BS,\"=\"&$B30&\" (\"&$G30&\")\",unique_contracts!$AM:$AM,\"<=\"&E$4,unique_contracts!$AP:$AP,\">=\"&E$4)","v":0},{"$f":"SUMIFS(unique_contracts!BW:BW,unique_contracts!$AB:$AB,\"=Sell\",unique_contracts!$BS:$BS,\"=\"&$B30&\" (\"&$G30&\")\",unique_contracts!$AM:$AM,\"<=\"&F$4,unique_contracts!$AP:$AP,\">=\"&F$4)","v":0},0,0,0,0]
[null,"Pumped Storage",0,0,0,0,"MW","n/a",null,null,{"$f":"SUM(SUMIFS(unique_contracts!BT:BT,unique_contracts!$AB:$AB,{\"Buy\",\"Owned\"},unique_contracts!$BS:$BS,\"=\"&$B31&\" (\"&$G31&\")\",unique_contracts!$AM:$AM,\"<=\"&C$4,unique_contracts!$AP:$AP,\">=\"&C$4), SUMIFS(unique_contracts!BT:BT,unique_contracts!$AB:$AB,\"=\"&\"\",unique_contracts!$BS:$BS,\"=\"&$B31&\" (\"&$G31&\")\",unique_contracts!$AM:$AM,\"<=\"&C$4,unique_contracts!$AP:$AP,\">=\"&C$4))","v":0},{"$f":"SUM(SUMIFS(unique_contracts!BU:BU,unique_contracts!$AB:$AB,{\"Buy\",\"Owned\"},unique_contracts!$BS:$BS,\"=\"&$B31&\" (\"&$G31&\")\",unique_contracts!$AM:$AM,\"<=\"&D$4,unique_contracts!$AP:$AP,\">=\"&D$4), SUMIFS(unique_contracts!BU:BU,unique_contracts!$AB:$AB,\"=\"&\"\",unique_contracts!$BS:$BS,\"=\"&$B31&\" (\"&$G31&\")\",unique_contracts!$AM:$AM,\"<=\"&D$4,unique_contracts!$AP:$AP,\">=\"&D$4))","v":0},{"$f":"SUM(SUMIFS(unique_contracts!BV:BV,unique_contracts!$AB:$AB,{\"Buy\",\"Owned\"},unique_contracts!$BS:$BS,\"=\"&$B31&\" (\"&$G31&\")\",unique_contracts!$AM:$AM,\"<=\"&E$4,unique_contracts!$AP:$AP,\">=\"&E$4), SUMIFS(unique_contracts!BV:BV,unique_contracts!$AB:$AB,\"=\"&\"\",unique_contracts!$BS:$BS,\"=\"&$B31&\" (\"&$G31&\")\",unique_contracts!$AM:$AM,\"<=\"&E$4,unique_contracts!$AP:$AP,\">=\"&E$4))","v":0},{"$f":"SUM(SUMIFS(unique_contracts!BW:BW,unique_contracts!$AB:$AB,{\"Buy\",\"Owned\"},unique_contracts!$BS:$BS,\"=\"&$B31&\" (\"&$G31&\")\",unique_contracts!$AM:$AM,\"<=\"&F$4,unique_contracts!$AP:$AP,\">=\"&F$4), SUMIFS(unique_contracts!BW:BW,unique_contracts!$AB:$AB,\"=\"&\"\",unique_contracts!$BS:$BS,\"=\"&$B31&\" (\"&$G31&\")\",unique_contracts!$AM:$AM,\"<=\"&F$4,unique_contracts!$AP:$AP,\">=\"&F$4))","v":0},{"$f":"SUMIFS(unique_contracts!BT:BT,unique_contracts!$AB:$AB,\"=Sell\",unique_contracts!$BS:$BS,\"=\"&$B31&\" (\"&$G31&\")\",unique_contracts!$AM:$AM,\"<=\"&C$4,unique_contracts!$AP:$AP,\">=\"&C$4)","v":0},{"$f":"SUMIFS(unique_contracts!BU:BU,unique_contracts!$AB:$AB,\"=Sell\",unique_contracts!$BS:$BS,\"=\"&$B31&\" (\"&$G31&\")\",unique_contracts!$AM:$AM,\"<=\"&D$4,unique_contracts!$AP:$AP,\">=\"&D$4)","v":0},{"$f":"SUMIFS(unique_contracts!BV:BV,unique_contracts!$AB:$AB,\"=Sell\",unique_contracts!$BS:$BS,\"=\"&$B31&\" (\"&$G31&\")\",unique_contracts!$AM:$AM,\"<=\"&E$4,unique_contracts!$AP:$AP,\">=\"&E$4)","v":0},{"$f":"SUMIFS(unique_contracts!BW:BW,unique_contracts!$AB:$AB,\"=Sell\",unique_contracts!$BS:$BS,\"=\"&$B31&\" (\"&$G31&\")\",unique_contracts!$AM:$AM,\"<=\"&F$4,unique_contracts!$AP:$AP,\">=\"&F$4)","v":0},0,0,0,0]
[null,"Battery Storage",0,0,0,0,"MWh Energy Capacity","n/a",null,null,{"$f":"SUM(SUMIFS(unique_contracts!BT:BT,unique_contracts!$AB:$AB,{\"Buy\",\"Owned\"},unique_contracts!$BS:$BS,\"=\"&$B32&\" (\"&$G32&\")\",unique_contracts!$AM:$AM,\"<=\"&C$4,unique_contracts!$AP:$AP,\">=\"&C$4), SUMIFS(unique_contracts!BT:BT,unique_contracts!$AB:$AB,\"=\"&\"\",unique_contracts!$BS:$BS,\"=\"&$B32&\" (\"&$G32&\")\",unique_contracts!$AM:$AM,\"<=\"&C$4,unique_contracts!$AP:$AP,\">=\"&C$4))","v":0},{"$f":"SUM(SUMIFS(unique_contracts!BU:BU,unique_contracts!$AB:$AB,{\"Buy\",\"Owned\"},unique_contracts!$BS:$BS,\"=\"&$B32&\" (\"&$G32&\")\",unique_contracts!$AM:$AM,\"<=\"&D$4,unique_contracts!$AP:$AP,\">=\"&D$4), SUMIFS(unique_contracts!BU:BU,unique_contracts!$AB:$AB,\"=\"&\"\",unique_contracts!$BS:$BS,\"=\"&$B32&\" (\"&$G32&\")\",unique_contracts!$AM:$AM,\"<=\"&D$4,unique_contracts!$AP:$AP,\">=\"&D$4))","v":0},{"$f":"SUM(SUMIFS(unique_contracts!BV:BV,unique_contracts!$AB:$AB,{\"Buy\",\"Owned\"},unique_contracts!$BS:$BS,\"=\"&$B32&\" (\"&$G32&\")\",unique_contracts!$AM:$AM,\"<=\"&E$4,unique_contracts!$AP:$AP,\">=\"&E$4), SUMIFS(unique_contracts!BV:BV,unique_contracts!$AB:$AB,\"=\"&\"\",unique_contracts!$BS:$BS,\"=\"&$B32&\" (\"&$G32&\")\",unique_contracts!$AM:$AM,\"<=\"&E$4,unique_contracts!$AP:$AP,\">=\"&E$4))","v":0},{"$f":"SUM(SUMIFS(unique_contracts!BW:BW,unique_contracts!$AB:$AB,{\"Buy\",\"Owned\"},unique_contracts!$BS:$BS,\"=\"&$B32&\" (\"&$G32&\")\",unique_contracts!$AM:$AM,\"<=\"&F$4,unique_contracts!$AP:$AP,\">=\"&F$4), SUMIFS(unique_contracts!BW:BW,unique_contracts!$AB:$AB,\"=\"&\"\",unique_contracts!$BS:$BS,\"=\"&$B32&\" (\"&$G32&\")\",unique_contracts!$AM:$AM,\"<=\"&F$4,unique_contracts!$AP:$AP,\">=\"&F$4))","v":0},{"$f":"SUMIFS(unique_contracts!BT:BT,unique_contracts!$AB:$AB,\"=Sell\",unique_contracts!$BS:$BS,\"=\"&$B32&\" (\"&$G32&\")\",unique_contracts!$AM:$AM,\"<=\"&C$4,unique_contracts!$AP:$AP,\">=\"&C$4)","v":0},{"$f":"SUMIFS(unique_contracts!BU:BU,unique_contracts!$AB:$AB,\"=Sell\",unique_contracts!$BS:$BS,\"=\"&$B32&\" (\"&$G32&\")\",unique_contracts!$AM:$AM,\"<=\"&D$4,unique_contracts!$AP:$AP,\">=\"&D$4)","v":0},{"$f":"SUMIFS(unique_contracts!BV:BV,unique_contracts!$AB:$AB,\"=Sell\",unique_contracts!$BS:$BS,\"=\"&$B32&\" (\"&$G32&\")\",unique_contracts!$AM:$AM,\"<=\"&E$4,unique_contracts!$AP:$AP,\">=\"&E$4)","v":0},{"$f":"SUMIFS(unique_contracts!BW:BW,unique_contracts!$AB:$AB,\"=Sell\",unique_contracts!$BS:$BS,\"=\"&$B32&\" (\"&$G32&\")\",unique_contracts!$AM:$AM,\"<=\"&F$4,unique_contracts!$AP:$AP,\">=\"&F$4)","v":0},0,0,0,0]
[null,"User-Specified Profies"]
[null,"Storage Resource Custom Profile",100,{"$f":"T34","v":124.31},{"$f":"U34","v":174.31},{"$f":"V34","v":174.31},"MW","n/a",null,null,{"$f":"SUM(SUMIFS(unique_contracts!BT:BT,unique_contracts!$AB:$AB,{\"Buy\",\"Owned\"},unique_contracts!$BS:$BS,\"=\"&$B34&\" (\"&$G34&\")\",unique_contracts!$AM:$AM,\"<=\"&C$4,unique_contracts!$AP:$AP,\">=\"&C$4), SUMIFS(unique_contracts!BT:BT,unique_contracts!$AB:$AB,\"=\"&\"\",unique_contracts!$BS:$BS,\"=\"&$B34&\" (\"&$G34&\")\",unique_contracts!$AM:$AM,\"<=\"&C$4,unique_contracts!$AP:$AP,\">=\"&C$4))","v":100},{"$f":"SUM(SUMIFS(unique_contracts!BU:BU,unique_contracts!$AB:$AB,{\"Buy\",\"Owned\"},unique_contracts!$BS:$BS,\"=\"&$B34&\" (\"&$G34&\")\",unique_contracts!$AM:$AM,\"<=\"&D$4,unique_contracts!$AP:$AP,\">=\"&D$4), SUMIFS(unique_contracts!BU:BU,unique_contracts!$AB:$AB,\"=\"&\"\",unique_contracts!$BS:$BS,\"=\"&$B34&\" (\"&$G34&\")\",unique_contracts!$AM:$AM,\"<=\"&D$4,unique_contracts!$AP:$AP,\">=\"&D$4))","v":124.31},{"$f":"SUM(SUMIFS(unique_contracts!BV:BV,unique_contracts!$AB:$AB,{\"Buy\",\"Owned\"},unique_contracts!$BS:$BS,\"=\"&$B34&\" (\"&$G34&\")\",unique_contracts!$AM:$AM,\"<=\"&E$4,unique_contracts!$AP:$AP,\">=\"&E$4), SUMIFS(unique_contracts!BV:BV,unique_contracts!$AB:$AB,\"=\"&\"\",unique_contracts!$BS:$BS,\"=\"&$B34&\" (\"&$G34&\")\",unique_contracts!$AM:$AM,\"<=\"&E$4,unique_contracts!$AP:$AP,\">=\"&E$4))","v":174.31},{"$f":"SUM(SUMIFS(unique_contracts!BW:BW,unique_contracts!$AB:$AB,{\"Buy\",\"Owned\"},unique_contracts!$BS:$BS,\"=\"&$B34&\" (\"&$G34&\")\",unique_contracts!$AM:$AM,\"<=\"&F$4,unique_contracts!$AP:$AP,\">=\"&F$4), SUMIFS(unique_contracts!BW:BW,unique_contracts!$AB:$AB,\"=\"&\"\",unique_contracts!$BS:$BS,\"=\"&$B34&\" (\"&$G34&\")\",unique_contracts!$AM:$AM,\"<=\"&F$4,unique_contracts!$AP:$AP,\">=\"&F$4))","v":174.31},{"$f":"SUMIFS(unique_contracts!BT:BT,unique_contracts!$AB:$AB,\"=Sell\",unique_contracts!$BS:$BS,\"=\"&$B34&\" (\"&$G34&\")\",unique_contracts!$AM:$AM,\"<=\"&C$4,unique_contracts!$AP:$AP,\">=\"&C$4)","v":0},{"$f":"SUMIFS(unique_contracts!BU:BU,unique_contracts!$AB:$AB,\"=Sell\",unique_contracts!$BS:$BS,\"=\"&$B34&\" (\"&$G34&\")\",unique_contracts!$AM:$AM,\"<=\"&D$4,unique_contracts!$AP:$AP,\">=\"&D$4)","v":0},{"$f":"SUMIFS(unique_contracts!BV:BV,unique_contracts!$AB:$AB,\"=Sell\",unique_contracts!$BS:$BS,\"=\"&$B34&\" (\"&$G34&\")\",unique_contracts!$AM:$AM,\"<=\"&E$4,unique_contracts!$AP:$AP,\">=\"&E$4)","v":0},{"$f":"SUMIFS(unique_contracts!BW:BW,unique_contracts!$AB:$AB,\"=Sell\",unique_contracts!$BS:$BS,\"=\"&$B34&\" (\"&$G34&\")\",unique_contracts!$AM:$AM,\"<=\"&F$4,unique_contracts!$AP:$AP,\">=\"&F$4)","v":0},{"$f":"K34-O34","v":100},{"$f":"L34-P34","v":124.31},{"$f":"M34-Q34","v":174.31},{"$f":"N34-R34","v":174.31}]
[null,"RPS Resource Custom Profile (GWh)",2584.1621044835274,3836.3466794612009,4127.8914858223607,4667.4595716065451,"GWh","RPS Eligible",null,null,{"$f":"SUM(SUMIFS(unique_contracts!BT:BT,unique_contracts!$AB:$AB,{\"Buy\",\"Owned\"},unique_contracts!$BS:$BS,$B35,unique_contracts!$AM:$AM,\"<=\"&C$4,unique_contracts!$AP:$AP,\">=\"&C$4), SUMIFS(unique_contracts!BT:BT,unique_contracts!$AB:$AB,\"=\"&\"\",unique_contracts!$BS:$BS,\"=\"&$B35&\" (\"&$G35&\")\",unique_contracts!$AM:$AM,\"<=\"&C$4,unique_contracts!$AP:$AP,\">=\"&C$4))","v":2584.1621044835274},{"$f":"SUM(SUMIFS(unique_contracts!BU:BU,unique_contracts!$AB:$AB,{\"Buy\",\"Owned\"},unique_contracts!$BS:$BS,$B35,unique_contracts!$AM:$AM,\"<=\"&D$4,unique_contracts!$AP:$AP,\">=\"&D$4), SUMIFS(unique_contracts!BU:BU,unique_contracts!$AB:$AB,\"=\"&\"\",unique_contracts!$BS:$BS,\"=\"&$B35&\" (\"&$G35&\")\",unique_contracts!$AM:$AM,\"<=\"&D$4,unique_contracts!$AP:$AP,\">=\"&D$4))","v":4935.6283344727308},{"$f":"SUM(SUMIFS(unique_contracts!BV:BV,unique_contracts!$AB:$AB,{\"Buy\",\"Owned\"},unique_contracts!$BS:$BS,$B35,unique_contracts!$AM:$AM,\"<=\"&E$4,unique_contracts!$AP:$AP,\">=\"&E$4), SUMIFS(unique_contracts!BV:BV,unique_contracts!$AB:$AB,\"=\"&\"\",unique_contracts!$BS:$BS,\"=\"&$B35&\" (\"&$G35&\")\",unique_contracts!$AM:$AM,\"<=\"&E$4,unique_contracts!$AP:$AP,\">=\"&E$4))","v":5217.7093344727309},{"$f":"SUM(SUMIFS(unique_contracts!BW:BW,unique_contracts!$AB:$AB,{\"Buy\",\"Owned\"},unique_contracts!$BS:$BS,$B35,unique_contracts!$AM:$AM,\"<=\"&F$4,unique_contracts!$AP:$AP,\">=\"&F$4), SUMIFS(unique_contracts!BW:BW,unique_contracts!$AB:$AB,\"=\"&\"\",unique_contracts!$BS:$BS,\"=\"&$B35&\" (\"&$G35&\")\",unique_contracts!$AM:$AM,\"<=\"&F$4,unique_contracts!$AP:$AP,\">=\"&F$4))","v":6101.184696301505},{"$f":"SUMIFS(unique_contracts!BT:BT,unique_contracts!$AB:$AB,\"=Sell\",unique_contracts!$BS:$BS,$B35,unique_contracts!$AM:$AM,\"<=\"&C$4,unique_contracts!$AP:$AP,\">=\"&C$4)","v":0},{"$f":"SUMIFS(unique_contracts!BU:BU,unique_contracts!$AB:$AB,\"=Sell\",unique_contracts!$BS:$BS,$B35,unique_contracts!$AM:$AM,\"<=\"&D$4,unique_contracts!$AP:$AP,\">=\"&D$4)","v":1099.2816550115299},{"$f":"SUMIFS(unique_contracts!BV:BV,unique_contracts!$AB:$AB,\"=Sell\",unique_contracts!$BS:$BS,$B35,unique_contracts!$AM:$AM,\"<=\"&E$4,unique_contracts!$AP:$AP,\">=\"&E$4)","v":1089.81784865037},{"$f":"SUMIFS(unique_contracts!BW:BW,unique_contracts!$AB:$AB,\"=Sell\",unique_contracts!$BS:$BS,$B35,unique_contracts!$AM:$AM,\"<=\"&F$4,unique_contracts!$AP:$AP,\">=\"&F$4)","v":1433.72512469496},2584.1621044835274,3836.3466794612009,4127.8914858223607,4667.4595716065451]
[null,"GHG-free non-RPS Resource",0,0,0,0,"GWh","GHG-Free",null,null,{"$f":"SUM(SUMIFS(unique_contracts!BT:BT,unique_contracts!$AB:$AB,{\"Buy\",\"Owned\"},unique_contracts!$BS:$BS,\"=\"&$B36&\" (\"&$G36&\")\",unique_contracts!$AM:$AM,\"<=\"&C$4,unique_contracts!$AP:$AP,\">=\"&C$4), SUMIFS(unique_contracts!BT:BT,unique_contracts!$AB:$AB,\"=\"&\"\",unique_contracts!$BS:$BS,\"=\"&$B36&\" (\"&$G36&\")\",unique_contracts!$AM:$AM,\"<=\"&C$4,unique_contracts!$AP:$AP,\">=\"&C$4))","v":0},{"$f":"SUM(SUMIFS(unique_contracts!BU:BU,unique_contracts!$AB:$AB,{\"Buy\",\"Owned\"},unique_contracts!$BS:$BS,\"=\"&$B36&\" (\"&$G36&\")\",unique_contracts!$AM:$AM,\"<=\"&D$4,unique_contracts!$AP:$AP,\">=\"&D$4), SUMIFS(unique_contracts!BU:BU,unique_contracts!$AB:$AB,\"=\"&\"\",unique_contracts!$BS:$BS,\"=\"&$B36&\" (\"&$G36&\")\",unique_contracts!$AM:$AM,\"<=\"&D$4,unique_contracts!$AP:$AP,\">=\"&D$4))","v":0},{"$f":"SUM(SUMIFS(unique_contracts!BV:BV,unique_contracts!$AB:$AB,{\"Buy\",\"Owned\"},unique_contracts!$BS:$BS,\"=\"&$B36&\" (\"&$G36&\")\",unique_contracts!$AM:$AM,\"<=\"&E$4,unique_contracts!$AP:$AP,\">=\"&E$4), SUMIFS(unique_contracts!BV:BV,unique_contracts!$AB:$AB,\"=\"&\"\",unique_contracts!$BS:$BS,\"=\"&$B36&\" (\"&$G36&\")\",unique_contracts!$AM:$AM,\"<=\"&E$4,unique_contracts!$AP:$AP,\">=\"&E$4))","v":0},{"$f":"SUM(SUMIFS(unique_contracts!BW:BW,unique_contracts!$AB:$AB,{\"Buy\",\"Owned\"},unique_contracts!$BS:$BS,\"=\"&$B36&\" (\"&$G36&\")\",unique_contracts!$AM:$AM,\"<=\"&F$4,unique_contracts!$AP:$AP,\">=\"&F$4), SUMIFS(unique_contracts!BW:BW,unique_contracts!$AB:$AB,\"=\"&\"\",unique_contracts!$BS:$BS,\"=\"&$B36&\" (\"&$G36&\")\",unique_contracts!$AM:$AM,\"<=\"&F$4,unique_contracts!$AP:$AP,\">=\"&F$4))","v":0},{"$f":"SUMIFS(unique_contracts!BT:BT,unique_contracts!$AB:$AB,\"=Sell\",unique_contracts!$BS:$BS,\"=\"&$B36&\" (\"&$G36&\")\",unique_contracts!$AM:$AM,\"<=\"&C$4,unique_contracts!$AP:$AP,\">=\"&C$4)","v":0},{"$f":"SUMIFS(unique_contracts!BU:BU,unique_contracts!$AB:$AB,\"=Sell\",unique_contracts!$BS:$BS,\"=\"&$B36&\" (\"&$G36&\")\",unique_contracts!$AM:$AM,\"<=\"&D$4,unique_contracts!$AP:$AP,\">=\"&D$4)","v":0},{"$f":"SUMIFS(unique_contracts!BV:BV,unique_contracts!$AB:$AB,\"=Sell\",unique_contracts!$BS:$BS,\"=\"&$B36&\" (\"&$G36&\")\",unique_contracts!$AM:$AM,\"<=\"&E$4,unique_contracts!$AP:$AP,\">=\"&E$4)","v":0},{"$f":"SUMIFS(unique_contracts!BW:BW,unique_contracts!$AB:$AB,\"=Sell\",unique_contracts!$BS:$BS,\"=\"&$B36&\" (\"&$G36&\")\",unique_contracts!$AM:$AM,\"<=\"&F$4,unique_contracts!$AP:$AP,\">=\"&F$4)","v":0},0,0,0,0]
[null,"Coal"]
[null,"Coal",0,0,0,0,"GWh","n/a",null,null,{"$f":"SUM(SUMIFS(unique_contracts!BT:BT,unique_contracts!$AB:$AB,{\"Buy\",\"Owned\"},unique_contracts!$BS:$BS,\"=\"&$B38&\" (\"&$G38&\")\",unique_contracts!$AM:$AM,\"<=\"&C$4,unique_contracts!$AP:$AP,\">=\"&C$4), SUMIFS(unique_contracts!BT:BT,unique_contracts!$AB:$AB,\"=\"&\"\",unique_contracts!$BS:$BS,\"=\"&$B38&\" (\"&$G38&\")\",unique_contracts!$AM:$AM,\"<=\"&C$4,unique_contracts!$AP:$AP,\">=\"&C$4))","v":0},{"$f":"SUM(SUMIFS(unique_contracts!BU:BU,unique_contracts!$AB:$AB,{\"Buy\",\"Owned\"},unique_contracts!$BS:$BS,\"=\"&$B38&\" (\"&$G38&\")\",unique_contracts!$AM:$AM,\"<=\"&D$4,unique_contracts!$AP:$AP,\">=\"&D$4), SUMIFS(unique_contracts!BU:BU,unique_contracts!$AB:$AB,\"=\"&\"\",unique_contracts!$BS:$BS,\"=\"&$B38&\" (\"&$G38&\")\",unique_contracts!$AM:$AM,\"<=\"&D$4,unique_contracts!$AP:$AP,\">=\"&D$4))","v":0},{"$f":"SUM(SUMIFS(unique_contracts!BV:BV,unique_contracts!$AB:$AB,{\"Buy\",\"Owned\"},unique_contracts!$BS:$BS,\"=\"&$B38&\" (\"&$G38&\")\",unique_contracts!$AM:$AM,\"<=\"&E$4,unique_contracts!$AP:$AP,\">=\"&E$4), SUMIFS(unique_contracts!BV:BV,unique_contracts!$AB:$AB,\"=\"&\"\",unique_contracts!$BS:$BS,\"=\"&$B38&\" (\"&$G38&\")\",unique_contracts!$AM:$AM,\"<=\"&E$4,unique_contracts!$AP:$AP,\">=\"&E$4))","v":0},{"$f":"SUM(SUMIFS(unique_contracts!BW:BW,unique_contracts!$AB:$AB,{\"Buy\",\"Owned\"},unique_contracts!$BS:$BS,\"=\"&$B38&\" (\"&$G38&\")\",unique_contracts!$AM:$AM,\"<=\"&F$4,unique_contracts!$AP:$AP,\">=\"&F$4), SUMIFS(unique_contracts!BW:BW,unique_contracts!$AB:$AB,\"=\"&\"\",unique_contracts!$BS:$BS,\"=\"&$B38&\" (\"&$G38&\")\",unique_contracts!$AM:$AM,\"<=\"&F$4,unique_contracts!$AP:$AP,\">=\"&F$4))","v":0},{"$f":"SUMIFS(unique_contracts!BT:BT,unique_contracts!$AB:$AB,\"=Sell\",unique_contracts!$BS:$BS,\"=\"&$B38&\" (\"&$G38&\")\",unique_contracts!$AM:$AM,\"<=\"&C$4,unique_contracts!$AP:$AP,\">=\"&C$4)","v":0},{"$f":"SUMIFS(unique_contracts!BU:BU,unique_contracts!$AB:$AB,\"=Sell\",unique_contracts!$BS:$BS,\"=\"&$B38&\" (\"&$G38&\")\",unique_contracts!$AM:$AM,\"<=\"&D$4,unique_contracts!$AP:$AP,\">=\"&D$4)","v":0},{"$f":"SUMIFS(unique_contracts!BV:BV,unique_contracts!$AB:$AB,\"=Sell\",unique_contracts!$BS:$BS,\"=\"&$B38&\" (\"&$G38&\")\",unique_contracts!$AM:$AM,\"<=\"&E$4,unique_contracts!$AP:$AP,\">=\"&E$4)","v":0},{"$f":"SUMIFS(unique_contracts!BW:BW,unique_contracts!$AB:$AB,\"=Sell\",unique_contracts!$BS:$BS,\"=\"&$B38&\" (\"&$G38&\")\",unique_contracts!$AM:$AM,\"<=\"&F$4,unique_contracts!$AP:$AP,\">=\"&F$4)","v":0},0,0,0,0]

{"sheet":"ReportSheet","index":10,"n_rows":3,"n_cols":11,"rows_kept":3,"cut":false,"hidden":false,"merged":[]}
["Duplicated Contract IDs:","Entry with non-positive values:","Invalid resource error rows:","Rows missing required project viability associated data:","Rows missing required hybrid associated data:","Supertype Contract Status Error or Null Rows:","Transaction counterparty error rows:","Rows missing CSP GWh:","Rows with invalid buying_energy_capacity and csp_resource_category:","Rows missing MTR NQC:","Warning-total capacity is equal to or greater then generator plus storage MWs for rows:"]
[null,null,null,64]
[null,null,null,65]